{"text_format":"1","workbook":"xlsx","n_sheets":105,"sheets":["CONFIGURATION","Currency Table","Submission","FileStorage","Insurer Information","Content","Index","Import","Export","Import Differences","Attachments","Declaration","BSCR Rating","AML (LT Direct Only)","SAR & Sanc. (All)","AML Reference","Information Sheet","Financial Condition","Form 1SFS","Form 2SFS","Form 8SFS","Form 4EBS","Schedule II","Schedule II (EBS)","Schedule IIA","Schedule IIA (EBS)","Inv Recon (Original)","Investment Reconciliation","Schedule IIB (EBS)","Schedule IIC (EBS)","Schedule IID (EBS)","Schedule IIE (EBS)","Schedule IIF (EBS)","Grandfathered Equity Part","Non-Grandfathered Equity Part","Schedule IVB","Schedule IVB (EBS)","Schedule V","Schedule V(a)","Schedule V(c)","Schedule V(e)","Schedule V(f)","Schedule V(g)","Schedule V(k)","Schedule V(l)","Schedule V(m)","Schedule VI","Schedule VI (EBS)","Schedule VII","Schedule VII (EBS)","Schedule VIII","Schedule VIII (EBS)","Schedule VIIIA","Schedule VIIIA (EBS)","Schedule IX(a)","Schedule IX(b)","Schedule IX(c)","Schedule XII(a)","Schedule XII(b)","Schedule XVI","Schedule XVII","Schedule XVIII","Schedule XVIII (EBS)","Schedule XIX","Schedule XIXA","Schedule XX","Schedule XXA","Schedule XXI","Schedule XXIA","Schedule XXIII","Corp Gov","Risk Man","Identification","Measurement","Response","Monitoring & Reporting","Op Risk","Op Risk (Revised)","Summary","Fixed Income Investments","Fixed Income Investments (Rev.)","Equity Investments","Equity Investments (Revised)","Equity Grandfathering","Equity Investments (Grandf)","Equity Investments (Non-Grandf)","Interest Rate-Liquidity Risk","Interest Rate-Liquidity (Rev.)","Currency Risk","Currency Risk (Revised)","Concentration Risk","Concentration Risk (Revised)","Credit Risk","Credit Risk (Revised)","LT Insurance Risk","LT Other Insurance Risk","LT Variable Annuity Gte Risk","Company Specific Parameters","Crosscheck - SFS","Crosscheck-Model","Crosscheck - Op Risk","prt_res","CSP (Revised)","Correlation Matrix","HiddenFormulas"],"not_rendered":{"charts":3,"images":3,"macros":1,"external_links":0,"defined_names":215,"comments":32,"pivot_tables":0},"unopened":[],"bounds":{"document_bytes":16777216,"sheet_cells":100000,"rows_first":2000,"rows_last":500,"rows_between":2000,"halvings":0,"cell_chars":16384,"cell_head_chars":4096},"cells_cut":0,"cells_raw":0,"read":"whole","date_system":"1900"}

{"sheet":"CONFIGURATION","index":0,"n_rows":22,"n_cols":4,"rows_kept":22,"cut":false,"hidden":true,"merged":[]}
["ENTITY_ID",{"$f":"'Insurer Information'!F11","v":0}]
["ENTITY_NAME",{"$f":"'Insurer Information'!C7","v":"Enter Company Name"}]
["FILING_TYPE",{"$f":"\"BSCR\" & B11","v":"BSCRDandE"}]
["FILING_YEAR",{"$f":"YEAR('Insurer Information'!C3)","v":2019}]
["CONTACT_PERSON_NAME",{"$f":"'Insurer Information'!C15&\" \"&'Insurer Information'!F15","v":" "}]
["CONTACT_PERSON_EMAIL",{"$f":"'Insurer Information'!C29","v":0}]
["CONTACT_PERSON_PHONE",{"$f":"IF('Insurer Information'!E27=\"\",'Insurer Information'!C27,'Insurer Information'!C27&\" Extension:\"&'Insurer Information'!E27)","v":0}]
["OPTION"]
["COMMENT",{"$f":"IF(Submission!B17=\"\",\"\",Submission!B17)","v":""}]
["CURRENCY_CODE",{"$f":"VLOOKUP('Form 4EBS'!C4,'Currency Table'!A:B,2,FALSE)","v":"USD"}]
["CLASS",{"$f":"IF('Insurer Information'!F9=\"Class C\",\"C\",\"DandE\")","v":"DandE"}]
["DECIMALS",{"$f":"IF(C12=\"Units\",1,IF(C12=\"Thousand Units\",1000,\"\"))","v":1000},"Thousand Units",{"$f":"IF(CONFIGURATION!$B$12=\"\",\"\",IF(CONFIGURATION!$B$12>1,\" ('\"&MID(CONFIGURATION!$B$12,2,LEN(CONFIGURATION!$B$12))&\"s)\",\"\"))","v":" ('000s)"}]
["FILINGWEBSERVICE","https://xbrl.bma.bm:450/ExternalWebPH3-1/filing.ashx",null,"https://xbrl.bma.bm:450/ExternalWebPH3-1/filing.ashx"]
["VALIDATIONWEBSERVICE","https://xbrl.bma.bm:450/ExternalWebPH3-1/validator.ashx",null,"https://xbrl.bma.bm:450/ExternalWebPH3-1/validator.ashx"]
["FILINGCOUNTERWEBSERVICE","https://xbrl.bma.bm:450/ExternalWebPH3-1/FilingCounter.ashx",null,"https://xbrl.bma.bm:450/ExternalWebPH3-1/FilingCounter.ashx"]
["DUMMYWEBSERVICE","https://xbrl.bma.bm:450/ExternalWebPH3-1/dummy.ashx",null,"https://xbrl.bma.bm:450/ExternalWebPH3-1/dummy.ashx"]
["XBRLCONVERSIONWEBSERVICE","https://xbrl.bma.bm:450/ExternalWebPH3-1/XBRLConv.ashx",null,"https://xbrl.bma.bm:450/ExternalWebPH3-1/XBRLConv.ashx"]
["PREPOPULATEWEBSERVICE","https://xbrl.bma.bm:450/ExternalWebPH3-1/GetEntityDataByFilingYear.ashx"]
["PREYEARSTARTDATE",{"$f":"'Form 4EBS'!M5","v":"01/01/2018"}]
["PREYEARENDDATE",{"$f":"'Form 4EBS'!M6","v":"12/31/2018"}]
["SAVEDDATAPOPULATEWEBSERVICE"]
["FORMVERSION","2019 Year-end Model - Concen Grand"]

{"sheet":"Currency Table","index":1,"n_rows":170,"n_cols":4,"rows_kept":170,"cut":false,"hidden":true,"merged":[]}
["United States Dollars","USD",null,"Units"]
["Euro","EUR",null,"Thousand Units"]
["Afghanistan Afghanis","AFN"]
["Albania Leke","ALL"]
["Armenia Drams","AMD"]
["Netherlands Antilles Guilders","ANG"]
["Angola Kwanza","AOA"]
["Argentina Pesos","ARS"]
["Australia Dollars","AUD"]
["Aruba Guilders","AWG"]
["Azerbaijan New Manats","AZN"]
["Bosnia and Herzegovina Convertible Marka","BAM"]
["Barbados Dollars","BBD"]
["Bangladesh Taka","BDT"]
["Bulgaria Leva","BGN"]
["Bahrain Dinars","BHD"]
["Burundi Francs","BIF"]
["Bermuda Dollars","BMD"]
["Brunei Dollars","BND"]
["Bolivia Bolivianos","BOB"]
["Brazil Reais","BRL"]
["Bahamas Dollars","BSD"]
["Bhutan Ngultrum","BTN"]
["Botswana Pulas","BWP"]
["Belarus Rubles","BYR"]
["Belize Dollars","BZD"]
["Canada Dollars","CAD"]
["Congo/Kinshasa Francs","CDF"]
["Switzerland Francs","CHF"]
["Chile Pesos","CLP"]
["China Yuan Renminbi","CNY"]
["Colombia Pesos","COP"]
["Costa Rica Colones","CRC"]
["Cuba Convertible Pesos","CUC"]
["Cuba Pesos","CUP"]
["Cape Verde Escudos","CVE"]
["Czech Republic Koruny","CZK"]
["Djibouti Francs","DJF"]
["Denmark Kroner","DKK"]
["Dominican Republic Pesos","DOP"]
["Algeria Dinars","DZD"]
["Estonia Krooni","EEK"]
["Egypt Pounds","EGP"]
["Eritrea Nakfa","ERN"]
["Ethiopia Birr","ETB"]
["Fiji Dollars","FJD"]
["Falkland Islands Pounds","FKP"]
["United Kingdom Pounds","GBP"]
["Georgia Lari","GEL"]
["Guernsey Pounds","GGP"]
["Ghana Cedis","GHS"]
["Gibraltar Pounds","GIP"]
["Gambia Dalasi","GMD"]
["Guinea Francs","GNF"]
["Guatemala Quetzales","GTQ"]
["Guyana Dollars","GYD"]
["Hong Kong Dollars","HKD"]
["Honduras Lempiras","HNL"]
["Croatia Kuna","HRK"]
["Haiti Gourdes","HTG"]
["Hungary Forint","HUF"]
["Indonesia Rupiahs","IDR"]
["Israel New Shekels","ILS"]
["Isle of Man Pounds","IMP"]
["India Rupees","INR"]
["Iraq Dinars","IQD"]
["Iran Rials","IRR"]
["Iceland Kronur","ISK"]
["Jersey Pounds","JEP"]
["Jamaica Dollars","JMD"]
["Jordan Dinars","JOD"]
["Japan Yen","JPY"]
["Kenya Shillings","KES"]
["Kyrgyzstan Soms","KGS"]
["Cambodia Riels","KHR"]
["Comoros Francs","KMF"]
["North Korea Won","KPW"]
["South Korea Won","KRW"]
["Kuwait Dinars","KWD"]
["Cayman Islands Dollars","KYD"]
["Kazakhstan Tenge","KZT"]
["Laos Kips","LAK"]
["Lebanon Pounds","LBP"]
["Sri Lanka Rupees","LKR"]
["Liberia Dollars","LRD"]
["Lesotho Maloti","LSL"]
["Lithuania Litai","LTL"]
["Latvia Lati","LVL"]
["Libya Dinars","LYD"]
["Morocco Dirhams","MAD"]
["Moldova Lei","MDL"]
["Madagascar Ariary","MGA"]
["Macedonia Denars","MKD"]
["Myanmar Kyats","MMK"]
["Mongolia Tugriks","MNT"]
["Macau Patacas","MOP"]
["Mauritania Ouguiyas","MRO"]
["Mauritius Rupees","MUR"]
["Maldives Rufiyaa","MVR"]
["Malawi Kwachas","MWK"]
["Mexico Pesos","MXN"]
["Malaysia Ringgits","MYR"]
["Mozambique Meticais","MZN"]
["Namibia Dollars","NAD"]
["Nigeria Nairas","NGN"]
["Nicaragua Cordobas","NIO"]
["Norway Kroner","NOK"]
["Nepal Rupees","NPR"]
["New Zealand Dollars","NZD"]
["Oman Rials","OMR"]
["Panama Balboas","PAB"]
["Peru Nuevos Soles","PEN"]
["Papua New Guinea Kina","PGK"]
["Philippines Pesos","PHP"]
["Pakistan Rupees","PKR"]
["Poland Zlotych","PLN"]
["Paraguay Guarani","PYG"]
["Qatar Riyals","QAR"]
["Romania New Lei","RON"]
["Serbia Dinars","RSD"]
["Russia Rubles","RUB"]
["Rwanda Francs","RWF"]
["Saudi Arabia Riyals","SAR"]
["Solomon Islands Dollars","SBD"]
["Seychelles Rupees","SCR"]
["Sudan Pounds","SDG"]
["Sweden Kronor","SEK"]
["Singapore Dollars","SGD"]
["Saint Helena Pounds","SHP"]
["Slovakia Koruny","SKK"]
["Sierra Leone Leones","SLL"]
["Somalia Shillings","SOS"]
["Seborga Luigini","SPL"]
["Suriname Dollars","SRD"]
["São Tome and Principe Dobras","STD"]
["El Salvador Colones","SVC"]
["Syria Pounds","SYP"]
["Swaziland Emalangeni","SZL"]
["Thailand Baht","THB"]
["Tajikistan Somoni","TJS"]
["Turkmenistan Manats","TMM"]
["Tunisia Dinars","TND"]
["Tonga Pa'anga","TOP"]
["Turkey New Lira","TRY"]
["Trinidad and Tobago Dollars","TTD"]
["Tuvalu Dollars","TVD"]
["Taiwan New Dollars","TWD"]
["Tanzania Shillings","TZS"]
["Ukraine Hryvnia","UAH"]
["Uganda Shillings","UGX"]
["Uruguay Pesos","UYU"]
["Uzbekistan Sums","UZS"]
["Venezuela Bolivares","VEB"]
["Venezuela Bolivares Fuertes","VEF"]
["Vietnam Dong","VND"]
["Vanuatu Vatu","VUV"]
["Samoa Tala","WST"]
["Communauté Financière Africaine Francs BEAC","XAF"]
["Silver Ounces","XAG"]
["Gold Ounces","XAU"]
["East Caribbean Dollars","XCD"]
["International Monetary Fund Special Drawing Rights","XDR"]
["Communauté Financière Africaine Francs BCEAO","XOF"]
["Palladium Ounces","XPD"]
["Comptoirs Français du Pacifique Francs","XPF"]
["Platinum Ounces","XPT"]
["Yemen Rials","YER"]
["South Africa Rand","ZAR"]
["Zambia Kwacha","ZMK"]
["Zimbabwe Dollars","ZWD"]

{"sheet":"Submission","index":2,"n_rows":35,"n_cols":14,"rows_kept":35,"cut":false,"hidden":false,"merged":[[35,1,35,2],[16,1,16,2],[33,1,33,2],[0,0,0,2],[1,1,1,2],[4,1,4,2],[7,1,7,2]]}
[]
[null,{"$f":"IF('Insurer Information'!F9=\"\",\"BSCR Long Term Model\",\"BSCR for \"&'Insurer Information'!F9)","v":"BSCR for Class D"}]
[]
[null,null,null,null,"BSCRLT04272011"]
[null,"IMPORTANT: Completion of this submission requires an internet connection. \n\nQuestions and comments can be directed to: riskanalytics@bma.bm\n",null,null,"brrt_FormVersion",{"$f":"XBRLMap(E4,E5,'Insurer Information'!L1,'Insurer Information'!L2,CONFIGURATION!$B$10,\"BMA\",CONFIGURATION!$B$1,\"bscr\")","v":"Mapped"}]
[null,null,null,null,null,null,null,null,null,null,null,null,null,{"$f":"YEAR('Insurer Information'!C3)","v":2019}]
[]
[]
[null,null,"Select Unit: Prior to inputting BSCR form, select units which the monetory values are reported in."]
[null,null,"Get last saved data: Prefill form with last saved data from unfinished submission."]
[null,null,"Prepopulate previous data: Prefill form with previously submitted data"]
[null,null,"Input BSCR data"]
[null," ","Validate data: Prior to submitting to BMA validation of the data is required. To complete this step click the \"VALIDATE RETURN\" button. Users must acknowledge all failed validations and provide comments in the 'Comments' box below. Once the validation is complete click the location link to go to the error location."]
[null,null,"Save Data: Data can be saved prior to submission. Click the \"SAVE\" button to save the unfinished submisison. "]
[null,null,"Submit Data: Once data has been completed, please submit for review. To complete this step click the \"SUBMIT\" button. If data is submitted more than twice, the latest data will be accepted. You will be required to select a reason for re-submissions. The time to submit will vary depending on the speed of the internet connection. A white status bar will appear when the data is transmitting. Please wait for the submission acknowledgement and record your submission number for later reference.\n\nIf you receive Error #403 or #12029 during this step please create a rule on your firewall telling the document to use port 450. This may require IT assistance. We encourage you to test the submit functionality in advance, particularly if this is your first time submitting electronically. You may contact riskanalytics@bma.bm to coordinate testing."]
[null,"Comments:"]
[null,null,null,null,"brrt_FilingComments",{"$f":"XBRLMap(B17,E17,'Insurer Information'!L1,'Insurer Information'!L2,CONFIGURATION!$B$10,\"BMA\",CONFIGURATION!$B$1,\"bscr\")","v":"Mapped"}]
[null,"Validation results:"]
[null,"MSM requirement met",{"$f":"Summary!G31","v":"NO"}]
[null,"ECR requirment met",{"$f":"Summary!N114","v":"NO"}]
[null,"MSM Eligible Capital requirement met",{"$f":"Summary!E126","v":"NO"}]
[null,"ECR Eligible Capital requirement met",{"$f":"Summary!G126","v":"NO"}]
[null,"Capital Reduction requirement met",{"$f":"Summary!O31","v":"NO"}]
[null,"C&S Reduction requirement met",{"$f":"Summary!O19","v":"YES"}]
[null,"CISSA document attached",{"$f":"IF(Attachments!F35=\"<Attach file>\",\"Outstanding\",\"File Attached\")","v":"Outstanding"}]
[null,"FCR document attached",{"$f":"IF(Attachments!F25=\"<Attach file>\",\"Outstanding\",\"File Attached\")","v":"Outstanding"}]
[null,"DOC document attached",{"$f":"IF(Attachments!F15=\"<Attach file>\",\"Outstanding\",\"File Attached\")","v":"Outstanding"}]
[null,"Blank Schedules",{"$f":"Content!J3","v":42}]
[null,"Acknowledged",{"$f":"Content!K3","v":0}]
[null,"Failed Validation Checks",{"$f":"Content!L3","v":0}]
[null,"Acknowledged",{"$f":"Content!M3","v":0}]
[]
[null,"Comments from BMA:"]
[null,null,null,null,"brrt_FilingCommentsBMA",{"$f":"XBRLMap(B34,E34,'Insurer Information'!L1,'Insurer Information'!L2,CONFIGURATION!$B$10,\"BMA\",CONFIGURATION!$B$1,\"bscr\")","v":"Mapped"}]
[null,"Company Information'!E27","Validation failed (Contact person's phone number is necessary.)"]

{"sheet":"FileStorage","index":3,"n_rows":0,"n_cols":0,"rows_kept":0,"cut":false,"hidden":true,"merged":[]}

{"sheet":"Insurer Information","index":4,"n_rows":59,"n_cols":16,"rows_kept":59,"cut":false,"hidden":false,"merged":[[0,0,0,1],[6,2,6,5],[18,2,18,5]]}
["INSURER INFORMATION PAGE",null,null,null,null,null,{"$f":"HYPERLINK(\"#'Index'!A1\",\"Return to Index\")","v":"Return to Index"},null,null,null,null,{"$f":"IF(C3=\"\",\"\",TEXT(DATE(YEAR(C3+1)-1,MONTH(C3+1),DAY(C3+1)),\"mm/dd/yyyy\"))","v":"01/01/2019"},null,null,null,"bma_CompanyInformationPageAbstract"]
[null,{"$f":"C7","v":"Enter Company Name"},null,null,null,null,null,null,null,null,"",{"$f":"IF(C3=\"\",\"\",TEXT(C3,\"mm/dd/yyyy\"))","v":"12/31/2019"},null,null,null,""]
[null,"For the Year Ending ","2019-12-31",null,null,"Class D/E Model",null,null,null,null,"brrt_ReportForTheYearEnding",{"$f":"IF(C3=\"\",\"\",XBRLMap(C3,K3,$L$1,$L$2,CONFIGURATION!$B$10,\"BMA\",CONFIGURATION!$B$1,\"bscr\"))","v":"Mapped"},null,null,null,"bma_ReportForTheYearEnding"]
[null,null,null,null,null,null,null,null,null,null,"",null,null,null,null,""]
[null,"INSURER INFORMATION"]
[null,null,null,null,null,null,null,null,null,null,null,null,null,{"$f":"YEAR('Insurer Information'!C3)","v":2019},null,""]
[null,"Insurer Name","Enter Company Name",null,null,null,null,null,null,null,"brrt_OrganizationName",{"$f":"XBRLMap(C7,$K7,$L$1,$L$2,CONFIGURATION!$B$10,\"BMA\",CONFIGURATION!$B$1,\"bscr\")","v":"Mapped"},null,null,null,"bma_CompanyName"]
[null,null,null,null,null,null,null,null,null,null,"",null,null,null,null,""]
[null,"Date Incorporated/Organized",null,null,"Long-Term Business Class","Class D",null,null,null,null,"brrt_DateIncorporatedOrOrganized",{"$f":"IF(C9=\"\",\"\",XBRLMap(C9,$K9,$L$1,$L$2,CONFIGURATION!$B$10,\"BMA\",CONFIGURATION!$B$1,\"bscr\"))","v":""},null,null,null,"bma_DateIncorporatedOrganized"]
[null,null,null,null,null,null,null,null,null,null,"brrt_LicenseClass",{"$f":"XBRLMap(F9,$K10,$L$1,$L$2,CONFIGURATION!$B$10,\"BMA\",CONFIGURATION!$B$1,\"bscr\")","v":"Mapped"},null,null,null,""]
[null,"Date Commenced Business",null,null,"Registration No.",null,null,null,null,null,"brrt_DateCommencedBusiness",{"$f":"IF(C11=\"\",\"\",XBRLMap(C11,$K11,$L$1,$L$2,CONFIGURATION!$B$10,\"BMA\",CONFIGURATION!$B$1,\"bscr\"))","v":""},null,null,null,"bma_DateCommencedBusiness"]
[null,null,null,null,null,null,null,null,null,null,"brrt_RegistrationNo",{"$f":"XBRLMap(F11,$K12,$L$1,$L$2,CONFIGURATION!$B$10,\"BMA\",CONFIGURATION!$B$1,\"bscr\")","v":"Mapped"},null,null,null,""]
[null,"CONTACT PERSON FOR RISK BASED CAPITAL",null,null,null,null,null,null,null,null,""]
[null,null,null,null,null,null,null,null,null,null,"",null,null,null,null,""]
[null,"First Name",null,null,"Last Name",null,null,null,null,null,"brrt_ContactPersonFirstName",{"$f":"XBRLMap(C15,$K15,$L$1,$L$2,CONFIGURATION!$B$10,\"BMA\",CONFIGURATION!$B$1,\"bscr\")","v":"Mapped"},null,null,null,"bma_ContactPersonForRiskBasedCapitalFirstName"]
[null,null,null,null,null,null,null,null,null,null,"brrt_ContactPersonLastName",{"$f":"XBRLMap(F15,$K16,$L$1,$L$2,CONFIGURATION!$B$10,\"BMA\",CONFIGURATION!$B$1,\"bscr\")","v":"Mapped"},null,null,null,"bma_ContactPersonForRiskBasedCapitalLastName"]
[null,"CONTACT PERSON INFORMATION",null,null,null,null,null,null,null,null,""]
[null,null,null,null,null,null,null,null,null,null,"",null,null,null,null,""]
[null,"Street and Number of P.O. Box",null,null,null,null,null,null,null,null,"brrt_ContactPersonInformationStreetAndNumberOfPOBox",{"$f":"XBRLMap(C19,$K19,$L$1,$L$2,CONFIGURATION!$B$10,\"BMA\",CONFIGURATION!$B$1,\"bscr\")","v":"Mapped"},null,null,null,"bma_StreetAndNumberOfPOBox"]
[null,null,null,null,null,null,null,null,null,null,"",null,null,null,null,""]
[null,"City",null,null,null,null,null,null,null,null,"brrt_ContactPersonInformationCity",{"$f":"XBRLMap(C21,$K21,$L$1,$L$2,CONFIGURATION!$B$10,\"BMA\",CONFIGURATION!$B$1,\"bscr\")","v":"Mapped"},null,null,null,"bma_City"]
[null,null,null,null,null,null,null,null,null,null,"",null,null,null,null,""]
[null,"Country",null,null,null,null,null,null,null,null,"brrt_ContactPersonInformationCountry",{"$f":"XBRLMap(C23,$K23,$L$1,$L$2,CONFIGURATION!$B$10,\"BMA\",CONFIGURATION!$B$1,\"bscr\")","v":"Mapped"},null,null,null,"bma_Country"]
[null,null,null,null,null,null,null,null,null,null,"",null,null,null,null,""]
[null,"Postal Code",null,null,null,null,null,null,null,null,"brrt_ContactPersonInformationPostalCode",{"$f":"XBRLMap(C25,$K25,$L$1,$L$2,CONFIGURATION!$B$10,\"BMA\",CONFIGURATION!$B$1,\"bscr\")","v":"Mapped"},null,null,null,"bma_PostalCode"]
[null,null,null,null,null,null,null,null,null,null,"",null,null,null,null,""]
[null,"Phone Number",null,"Extension",null,null,null,null,null,null,"brrt_ContactPersonInformationPhoneNumber",{"$f":"XBRLMap(C27,$K27,$L$1,$L$2,CONFIGURATION!$B$10,\"BMA\",CONFIGURATION!$B$1,\"bscr\")","v":"Mapped"},null,null,null,"bma_PhoneNumber"]
[null,null,null,null,null,null,null,null,null,null,"brrt_ContactPersonInformationExtension",{"$f":"XBRLMap(E27,$K28,$L$1,$L$2,CONFIGURATION!$B$10,\"BMA\",CONFIGURATION!$B$1,\"bscr\")","v":"Mapped"},null,null,null,"bma_PhoneNumberExtension"]
[null,"Email",null,null,null,null,null,null,null,null,"brrt_ContactPersonInformationEmail",{"$f":"XBRLMap(C29,$K29,$L$1,$L$2,CONFIGURATION!$B$10,\"BMA\",CONFIGURATION!$B$1,\"bscr\")","v":"Mapped"},null,null,null,"bma_Email"]
[null,null,null,null,null,null,null,null,null,null,"",null,null,null,null,""]
[null,"Date Prepared",null,null,null,null,null,null,null,null,"brrt_ContactPersonInformationDatePrepared",{"$f":"IF(C31=\"\",\"\",XBRLMap(C31,$K31,$L$1,$L$2,CONFIGURATION!$B$10,\"BMA\",CONFIGURATION!$B$1,\"bscr\"))","v":""},null,null,null,"bma_DatePrepared"]
[null,null,null,null,null,null,null,null,null,null,""]
[]
[]
[]
[]
[]
[]
[]
[]
[]
[]
[]
[]
[]
[]
[]
[]
[]
[]
[]
[]
[]
[null,null,null,null,null,"Class A"]
[null,null,null,null,null,"Class B"]
[null,null,null,null,null,"Class C"]
[null,null,null,null,null,"Class D"]
[null,null,null,null,null,"Class E"]
[null," "]

{"sheet":"Content","index":5,"n_rows":182,"n_cols":20,"rows_kept":182,"cut":false,"hidden":false,"merged":[[26,2,27,2],[25,1,25,2],[170,1,170,2],[171,1,171,2],[100,1,100,2],[104,1,104,2],[108,1,108,2],[112,1,112,2],[155,1,155,2],[166,1,166,2],[167,1,167,2],[168,1,168,2],[169,1,169,2],[92,1,92,2],[94,1,94,2],[77,1,77,2],[114,1,114,2],[82,1,82,2],[86,1,86,2],[88,1,88,2],[96,1,96,2],[174,1,174,2],[134,1,134,2],[116,1,116,2],[120,1,120,2],[126,1,126,2],[118,1,118,2],[123,1,123,2],[129,1,129,2],[178,1,178,2],[23,1,23,2],[24,1,24,2],[30,1,30,2],[41,1,41,2],[40,1,40,2],[51,1,51,2],[143,1,143,2],[147,1,147,2],[151,1,151,2],[158,1,158,2],[162,1,162,2],[98,1,98,2],[102,1,102,2],[106,1,106,2],[110,1,110,2],[3,0,3,3],[4,0,4,2],[19,2,20,2],[21,2,22,2],[6,1,6,2],[7,1,7,2],[8,1,8,2],[9,1,9,2],[10,1,10,2],[11,1,11,2],[18,1,18,2],[12,1,12,2],[14,1,14,2],[87,3,87,4],[71,3,71,4],[31,2,32,2],[36,2,37,2],[65,3,65,4],[67,3,67,4],[68,3,68,4],[69,3,69,4],[70,3,70,4],[35,1,35,2],[54,1,54,2],[57,1,57,2],[64,1,64,2],[66,3,66,4],[72,3,72,4],[85,3,85,4],[73,3,73,4],[74,3,74,4],[83,3,83,4],[84,3,84,4],[75,3,75,4],[76,3,76,4],[42,1,42,2],[45,1,45,2],[48,1,48,2],[49,1,49,2],[50,1,50,2]]}
["CONTENT OF THE BSCR MODEL",null,null,null,null,null,{"$f":"HYPERLINK(\"#'Index'!A1\",\"Return to Index\")","v":"Return to Index"},null,null,"Blank","Acknowledge",false,"Acknowledge",null,null,null,null,null,null,{"$f":"IF(C3=\"\",\"\",TEXT(DATE(YEAR(C3+1)-1,MONTH(C3+1),DAY(C3+1)),\"mm/dd/yyyy\"))","v":"01/01/2019"}]
[{"$f":"+'Insurer Information'!C7","v":"Enter Company Name"},null,null,null,null,null,null,null,null,null,null,""]
["As At:",null,{"$f":"+'Form 4EBS'!C3","v":"2019-12-31"},null,null,null,null,null,null,{"$f":"COUNTIF(J20:J180,J1)","v":42},{"$f":"COUNTIF(K20:K180,\"Yes\")","v":0},{"$f":"COUNTIF(L20:L180,\"False.\")","v":0},{"$f":"COUNTIF(M20:M180,\"Yes\")","v":0}]
[{"$f":"HYPERLINK(\"#'Submission'!B17\",\"If Confirm Message Check Box is Selected, include comments in Submission Tab Cell B17\")","v":"If Confirm Message Check Box is Selected, include comments in Submission Tab Cell B17"},null,null,null,null,null,"Confirm"]
["Text in Column C Have Been Hyperlinked for Ease",null,null,"True / False","Difference $","Difference %","Message"]
[null,null,"Company Information / Reference Schedule",null,null,null,null,null,null,null,null,null,null,{"$f":"YEAR('Insurer Information'!C3)","v":2019}]
[1,{"$f":"HYPERLINK(\"#'Submission'!A1\",\"Submission Tab\")","v":"Submission Tab"}]
[{"$f":"A7+1","v":2},{"$f":"HYPERLINK(\"#'Index'!A1\",\"Index\")","v":"Index"}]
[{"$f":"A8+1","v":3},{"$f":"HYPERLINK(\"#'Attachments'!A1\",\"Attachments\")","v":"Attachments"}]
[4,{"$f":"HYPERLINK(\"#'Insurer Information'!A1\",\"Insurer Information\")","v":"Insurer Information"}]
[5,{"$f":"HYPERLINK(\"#'Declaration'!A1\",\"Declaration\")","v":"Declaration"}]
[6,{"$f":"HYPERLINK(\"#'Information Sheet'!A1\",\"Information Sheet\")","v":"Information Sheet"}]
[7,{"$f":"HYPERLINK(\"#'AML'!A1\",\"AML Questionnaire For Long-Term Direct Writers\")","v":"AML Questionnaire For Long-Term Direct Writers"}]
[{"$f":"A13+1","v":8},{"$f":"HYPERLINK(\"#'SAR & Sanc. (All)'!A1\",\"SARS and Sanctions for All Insurers\")","v":"SARS and Sanctions for All Insurers"}]
[{"$f":"A14+1","v":9},{"$f":"HYPERLINK(\"#'AML Reference'!A1\",\"AML Reference\")","v":"AML Reference"}]
[]
[null,null,"BSCR Schedules"]
[null,null,"Statutory Forms & Economic Balance Sheet"]
[{"$f":"A15+1","v":10},{"$f":"HYPERLINK(\"#'Form 1SFS'!A1\",\"Form 1SFS - Statutory Balance Sheet\")","v":"Form 1SFS - Statutory Balance Sheet"}]
[null,"i)",{"$f":"HYPERLINK(\"#'Form 1SFS'!A1\",\"Unconsolidated Assets equals Total Long-Term Business Insurance Reserves & Other Liabilities and Statutory Capital & Surplus\")","v":"Unconsolidated Assets equals Total Long-Term Business Insurance Reserves & Other Liabilities and Statutory Capital & Surplus"},{"$f":"IF('Insurer Information'!$F$2=\"Unconsolidated BSCR Model\",\"N/A\",IF(+'Form 1SFS'!H100=0,\"Form 1SFS Unconsolidated is Blank\",'Form 1SFS'!H202))","v":"Form 1SFS Unconsolidated is Blank"},{"$f":"'Form 1SFS'!H204","v":0},{"$f":"IF('Form 1SFS'!H100=0,0,'Form 1SFS'!H204/'Form 1SFS'!H100)","v":0},null,null,false,{"$f":"IF(D20=\"Form 1SFS Unconsolidated is Blank\",\"Blank\",\"\")","v":"Blank"},{"$f":"IF(J20=\"Blank\",IF(I20=TRUE,\"Yes\",\"\"),\"\")","v":""},{"$f":"IF(D20=\"False\",\"False.\",\"\")","v":""},{"$f":"IF(L20=\"\",\"\",IF(I20=TRUE,\"Yes\",\"\"))","v":""}]
[]
[null,"ii)",{"$f":"HYPERLINK(\"#'Form 1SFS'!A1\",\"Consolidated Assets equals Total Long-Term Business Insurance Reserves & Other Liabilities and Statutory Capital & Surplus\")","v":"Consolidated Assets equals Total Long-Term Business Insurance Reserves & Other Liabilities and Statutory Capital & Surplus"},{"$f":"IF(+'Form 1SFS'!K100=0,\"Form 1SFS Consolidated is Blank\",'Form 1SFS'!K202)","v":"Form 1SFS Consolidated is Blank"},{"$f":"'Form 1SFS'!K204","v":0},{"$f":"IF('Form 1SFS'!K100=0,0,'Form 1SFS'!K204/'Form 1SFS'!K100)","v":0},null,null,false,{"$f":"IF(D22=\"Form 1SFS Consolidated is Blank\",\"Blank\",\"\")","v":"Blank"},{"$f":"IF(J22=\"Blank\",IF(I22=TRUE,\"Yes\",\"\"),\"\")","v":""},{"$f":"IF(D22=\"False\",\"False.\",\"\")","v":""},{"$f":"IF(L22=\"\",\"\",IF(I22=TRUE,\"Yes\",\"\"))","v":""}]
[]
[{"$f":"A19+1","v":11},{"$f":"HYPERLINK(\"#'Form 2SFS'!A1\",\"Form 2SFS - Statutory Statement of Income\")","v":"Form 2SFS - Statutory Statement of Income"}]
[{"$f":"A24+1","v":12},{"$f":"HYPERLINK(\"#'Form 8SFS'!A1\",\"Form 8SFS - Statutory Statement of Capital & Surplus\")","v":"Form 8SFS - Statutory Statement of Capital & Surplus"}]
[{"$f":"A25+1","v":13},{"$f":"HYPERLINK(\"#'Form 4EBS'!A1\",\"Form 4EBS - Economic Balance Sheet\")","v":"Form 4EBS - Economic Balance Sheet"}]
[null,"i)",{"$f":"HYPERLINK(\"#'Form 4EBS'!A1\",\"Assets equals Total Long-Term Business Insurance Reserves & Other Liabilities and Statutory Capital & Surplus\")","v":"Assets equals Total Long-Term Business Insurance Reserves & Other Liabilities and Statutory Capital & Surplus"},{"$f":"IF(+'Form 4EBS'!F93=0,\"Form 4EBS is Blank\",'Form 4EBS'!F188)","v":"Form 4EBS is Blank"},{"$f":"+'Form 4EBS'!F190","v":0},{"$f":"IF(+'Form 4EBS'!F93=0,0,'Form 4EBS'!F190/'Form 4EBS'!F93)","v":0},null,null,false,{"$f":"IF(D27=\"Form 4EBS is Blank\",\"Blank\",\"\")","v":"Blank"},{"$f":"IF(J27=\"Blank\",IF(I27=TRUE,\"Yes\",\"\"),\"\")","v":""},{"$f":"IF(D27=\"False\",\"False.\",\"\")","v":""},{"$f":"IF(L27=\"\",\"\",IF(I27=TRUE,\"Yes\",\"\"))","v":""}]
[]
[]
[null,null,"BSCR Capital Schedules"]
[{"$f":"A26+1","v":14},{"$f":"HYPERLINK(\"#'Schedule II'!A1\",\"Schedule II - Schedule of Fixed Income & Equity Investments By BSCR Rating\")","v":"Schedule II - Schedule of Fixed Income & Equity Investments By BSCR Rating"}]
[null,"i)",{"$f":"HYPERLINK(\"#'Schedule II'!A1\",\"Quoted and Unquoted Bond Debentures as reported on Schedule II equals Form 1SFS\")","v":"Quoted and Unquoted Bond Debentures as reported on Schedule II equals Form 1SFS"},{"$f":"IF('Insurer Information'!$F$2=\"Unconsolidated BSCR Model\",\"N/A\",IF(('Form 1SFS'!F18+'Form 1SFS'!H18+'Form 1SFS'!F31+'Form 1SFS'!H31)=0,\"N/A\",IF('Schedule II'!T22=0,\"Schedule is Blank\",'Schedule II'!T24)))","v":"N/A"},{"$f":"+'Schedule II'!T26","v":0},{"$f":"IF(('Form 1SFS'!F18+'Form 1SFS'!H18+'Form 1SFS'!F31+'Form 1SFS'!H31)=0,0,(+'Schedule II'!T26/('Form 1SFS'!F18+'Form 1SFS'!H18+'Form 1SFS'!F31+'Form 1SFS'!H31)))","v":0},null,null,false,{"$f":"IF(D32=\"Schedule is Blank\",\"Blank\",\"\")","v":""},{"$f":"IF(J32=\"Blank\",IF(I32=TRUE,\"Yes\",\"\"),\"\")","v":""},{"$f":"IF(D32=\"False\",\"False.\",\"\")","v":""},{"$f":"IF(L32=\"\",\"\",IF(I32=TRUE,\"Yes\",\"\"))","v":""}]
[]
[null,"ii)",{"$f":"HYPERLINK(\"#'Schedule II'!A32\",\"Quoted and Unquoted Equities as reported on Schedule II equals Form 1SFS\")","v":"Quoted and Unquoted Equities as reported on Schedule II equals Form 1SFS"},{"$f":"IF('Insurer Information'!$F$2=\"Unconsolidated BSCR Model\",\"N/A\",IF(('Form 1SFS'!F23+'Form 1SFS'!H23+'Form 1SFS'!F36+'Form 1SFS'!H36)=0,\"N/A\",IF('Schedule II'!T44=0,\"Schedule is Blank\",'Schedule II'!T46)))","v":"N/A"},{"$f":"'Schedule II'!T48","v":0},{"$f":"IF(('Form 1SFS'!F23+'Form 1SFS'!H23+'Form 1SFS'!F36+'Form 1SFS'!H36)=0,0,('Schedule II'!T48/('Form 1SFS'!F23+'Form 1SFS'!H23+'Form 1SFS'!F36+'Form 1SFS'!H36)))","v":0},null,null,false,{"$f":"IF(D34=\"Schedule is Blank\",\"Blank\",\"\")","v":""},{"$f":"IF(J34=\"Blank\",IF(I34=TRUE,\"Yes\",\"\"),\"\")","v":""},{"$f":"IF(D34=\"False\",\"False.\",\"\")","v":""},{"$f":"IF(L34=\"\",\"\",IF(I34=TRUE,\"Yes\",\"\"))","v":""}]
[null,"iii)",{"$f":"HYPERLINK(\"#'Schedule II'!A55\",\"Mortgage Loans as reported on Schedule II equals Form 1SFS\")","v":"Mortgage Loans as reported on Schedule II equals Form 1SFS"},{"$f":"IF('Insurer Information'!$F$2=\"Unconsolidated BSCR Model\",\"N/A\",IF('Form 1SFS'!H53=0,\"N/A\",IF('Schedule II'!D62=0,\"Schedule is Blank\",'Schedule II'!D64)))","v":"N/A"},{"$f":"'Schedule II'!D66","v":0},{"$f":"IF('Form 1SFS'!H53=0,0,'Schedule II'!D66/'Form 1SFS'!H53)","v":0},null,null,false,{"$f":"IF(D35=\"Schedule is Blank\",\"Blank\",\"\")","v":""},"",{"$f":"IF(D35=\"False\",\"False.\",\"\")","v":""},""]
[{"$f":"A31+1","v":15},{"$f":"HYPERLINK(\"#'Schedule II (EBS)'!A1\",\"Schedule II (EBS) - Schedule of Fixed Income & Equity Investments By BSCR Rating\")","v":"Schedule II (EBS) - Schedule of Fixed Income & Equity Investments By BSCR Rating"}]
[null,"i)",{"$f":"HYPERLINK(\"#'Schedule II (EBS)'!A1\",\"Quoted and Unquoted Bond Debentures as reported on Schedule II (EBS) equals Form 1EBS\")","v":"Quoted and Unquoted Bond Debentures as reported on Schedule II (EBS) equals Form 1EBS"},{"$f":"IF(('Form 4EBS'!F13+'Form 4EBS'!F23)=0,\"N/A\",IF('Schedule II (EBS)'!T22=0,\"Schedule is Blank\",'Schedule II (EBS)'!T24))","v":"N/A"},{"$f":"+'Schedule II (EBS)'!T26","v":0},{"$f":"IF(('Form 4EBS'!F13+'Form 4EBS'!F23)=0,0,(+'Schedule II (EBS)'!T26/('Form 4EBS'!F13+'Form 4EBS'!F23)))","v":0},null,null,false,{"$f":"IF(D37=\"Schedule is Blank\",\"Blank\",\"\")","v":""},{"$f":"IF(J37=\"Blank\",IF(I37=TRUE,\"Yes\",\"\"),\"\")","v":""},{"$f":"IF(D37=\"False\",\"False.\",\"\")","v":""},{"$f":"IF(L37=\"\",\"\",IF(I37=TRUE,\"Yes\",\"\"))","v":""}]
[]
[null,"ii)",{"$f":"HYPERLINK(\"#'Schedule II (EBS)'!A32\",\"Quoted and Unquoted Equities as reported on Schedule II (EBS) equals Form 1EBS\")","v":"Quoted and Unquoted Equities as reported on Schedule II (EBS) equals Form 1EBS"},{"$f":"IF(('Form 4EBS'!F18+'Form 4EBS'!F28)=0,\"N/A\",IF('Schedule II (EBS)'!T44=0,\"Schedule is Blank\",'Schedule II (EBS)'!T46))","v":"N/A"},{"$f":"'Schedule II (EBS)'!T48","v":0},{"$f":"IF(('Form 4EBS'!F18+'Form 4EBS'!F28)=0,0,('Schedule II (EBS)'!T48/('Form 4EBS'!F18+'Form 4EBS'!F28)))","v":0},null,null,null,{"$f":"IF(D39=\"Schedule is Blank\",\"Blank\",\"\")","v":""},{"$f":"IF(J39=\"Blank\",IF(I39=TRUE,\"Yes\",\"\"),\"\")","v":""},{"$f":"IF(D39=\"False\",\"False.\",\"\")","v":""},{"$f":"IF(L39=\"\",\"\",IF(I39=TRUE,\"Yes\",\"\"))","v":""}]
[null,"iii)",{"$f":"HYPERLINK(\"#'Schedule II (EBS)'!A55\",\"Mortgage Loans as reported on Schedule II (EBS) equals Form 1EBS\")","v":"Mortgage Loans as reported on Schedule II (EBS) equals Form 1EBS"},{"$f":"IF('Form 4EBS'!F45=0,\"N/A\",IF('Schedule II (EBS)'!D62=0,\"Schedule is Blank\",'Schedule II (EBS)'!D64))","v":"N/A"},{"$f":"'Schedule II (EBS)'!D66","v":0},{"$f":"IF('Form 4EBS'!F45=0,0,'Schedule II (EBS)'!D66/'Form 4EBS'!F45)","v":0},null,null,null,{"$f":"IF(D40=\"Schedule is Blank\",\"Blank\",\"\")","v":""},"",{"$f":"IF(D40=\"False\",\"False.\",\"\")","v":""},""]
[{"$f":"A36+1","v":16},{"$f":"HYPERLINK(\"#'Schedule IIA'!A1\",\"Schedule IIA - Schedule of Funds Held by Ceding Reinsurers in Segregated Accounts\")","v":"Schedule IIA - Schedule of Funds Held by Ceding Reinsurers in Segregated Accounts"}]
[{"$f":"A41+1","v":17},{"$f":"HYPERLINK(\"#'Schedule IIA (EBS)'!A1\",\"Schedule IIA (EBS) - Schedule of Funds Held by Ceding Reinsurers in Segregated Accounts\")","v":"Schedule IIA (EBS) - Schedule of Funds Held by Ceding Reinsurers in Segregated Accounts"}]
[{"$f":"A42+1","v":18},{"$f":"HYPERLINK(\"#'Schedule IIB (EBS)'!A1\",\"Schedule IIB (EBS)- Schedule of Fixed Income & Equity Investments By BSCR Rating\")","v":"Schedule IIB (EBS)- Schedule of Fixed Income & Equity Investments By BSCR Rating"}]
[null,"Interest rate-sensitive investments",null,{"$f":"IF('Investment Reconciliation'!G10=0,\"N/A\",IF('Investment Reconciliation'!G28=0,\"Schedule is Blank\",'Investment Reconciliation'!G30))","v":"N/A"},{"$f":"'Investment Reconciliation'!G32","v":0},{"$f":"IF('Investment Reconciliation'!G28=0,0,('Investment Reconciliation'!G32)/'Investment Reconciliation'!G28)","v":0},null,null,null,{"$f":"IF(D44=\"Schedule is Blank\",\"Blank\",\"\")","v":""},{"$f":"IF(J44=\"Blank\",IF(I44=TRUE,\"Yes\",\"\"),\"\")","v":""},{"$f":"IF(D44=\"False\",\"False.\",\"\")","v":""},{"$f":"IF(L44=\"\",\"\",IF(I44=TRUE,\"Yes\",\"\"))","v":""}]
[null,"Investments sensitive to equity prices",null,{"$f":"IF('Investment Reconciliation'!H10=0,\"N/A\",IF('Investment Reconciliation'!H28=0,\"Schedule is Blank\",'Investment Reconciliation'!H30))","v":"N/A"},{"$f":"'Investment Reconciliation'!H32","v":0},{"$f":"IF('Investment Reconciliation'!H28=0,0,('Investment Reconciliation'!H32)/'Investment Reconciliation'!H28)","v":0},null,null,null,{"$f":"IF(D45=\"Schedule is Blank\",\"Blank\",\"\")","v":""},{"$f":"IF(J45=\"Blank\",IF(I45=TRUE,\"Yes\",\"\"),\"\")","v":""},{"$f":"IF(D45=\"False\",\"False.\",\"\")","v":""},{"$f":"IF(L45=\"\",\"\",IF(I45=TRUE,\"Yes\",\"\"))","v":""}]
[{"$f":"A43+1","v":19},{"$f":"HYPERLINK(\"#'Schedule IIC (EBS)'!A1\",\"Schedule IIC (EBS) - Schedule of Funds Held By Ceding Reinsurers in Segregated Accounts\")","v":"Schedule IIC (EBS) - Schedule of Funds Held By Ceding Reinsurers in Segregated Accounts"}]
[null,"Interest rate-sensitive investments",null,{"$f":"IF('Investment Reconciliation'!I10=0,\"N/A\",IF('Investment Reconciliation'!I28=0,\"Schedule is Blank\",'Investment Reconciliation'!I30))","v":"N/A"},{"$f":"'Investment Reconciliation'!I32","v":0},{"$f":"IF('Investment Reconciliation'!I28=0,0,('Investment Reconciliation'!I32)/'Investment Reconciliation'!I28)","v":0},null,null,null,{"$f":"IF(D47=\"Schedule is Blank\",\"Blank\",\"\")","v":""},{"$f":"IF(J47=\"Blank\",IF(I47=TRUE,\"Yes\",\"\"),\"\")","v":""},{"$f":"IF(D47=\"False\",\"False.\",\"\")","v":""},{"$f":"IF(L47=\"\",\"\",IF(I47=TRUE,\"Yes\",\"\"))","v":""}]
[null,"Investments sensitive to equity prices",null,{"$f":"IF('Investment Reconciliation'!J10=0,\"N/A\",IF('Investment Reconciliation'!J28=0,\"Schedule is Blank\",'Investment Reconciliation'!J30))","v":"N/A"},{"$f":"'Investment Reconciliation'!J32","v":0},{"$f":"IF('Investment Reconciliation'!J28=0,0,('Investment Reconciliation'!J32)/'Investment Reconciliation'!J28)","v":0},null,null,null,"","","",""]
[{"$f":"A46+1","v":20},{"$f":"HYPERLINK(\"#'Schedule IID (EBS)'!A1\",\"Schedule IID (EBS) - Schedule of Segregated Accounts\")","v":"Schedule IID (EBS) - Schedule of Segregated Accounts"},null,{"$f":"IF(('Form 4EBS'!F77+'Form 4EBS'!F78)=0,\"N/A\",IF('Schedule IID (EBS)'!D97=0,\"Schedule is Blank\",'Investment Reconciliation'!K30))","v":"N/A"},{"$f":"'Investment Reconciliation'!K32","v":0},{"$f":"IF('Investment Reconciliation'!K28=0,0,('Investment Reconciliation'!K32)/'Investment Reconciliation'!K28)","v":0},null,null,null,"","","",""]
[{"$f":"A49+1","v":21},{"$f":"HYPERLINK(\"#'Schedule IIE (EBS)'!A1\",\"Schedule IIE (EBS) - Schedule of Deposit Assets & Liabilities\")","v":"Schedule IIE (EBS) - Schedule of Deposit Assets & Liabilities"},null,{"$f":"IF('Form 4EBS'!F79=0,\"N/A\",IF('Schedule IIE (EBS)'!D97=0,\"Schedule is Blank\",'Investment Reconciliation'!M30))","v":"N/A"},{"$f":"'Investment Reconciliation'!M32","v":0},{"$f":"IF('Investment Reconciliation'!M28=0,0,('Investment Reconciliation'!M32)/'Investment Reconciliation'!M28)","v":0},null,null,null,"","","",""]
[{"$f":"A50+1","v":22},{"$f":"HYPERLINK(\"#'Schedule IIF (EBS)'!A1\",\"Schedule IIF (EBS) - Schedule of Sundry Assets\")","v":"Schedule IIF (EBS) - Schedule of Sundry Assets"},null,{"$f":"IF(('Form 4EBS'!F81+'Form 4EBS'!F83+'Form 4EBS'!F84)=0,\"N/A\",IF('Schedule IIF (EBS)'!D97=0,\"Schedule is Blank\",'Investment Reconciliation'!O30))","v":"N/A"},{"$f":"'Investment Reconciliation'!O32","v":0},{"$f":"IF('Investment Reconciliation'!O28=0,0,('Investment Reconciliation'!O32)/'Investment Reconciliation'!O28)","v":0},null,null,null,"","","",""]
[{"$f":"A51+1","v":23},{"$f":"HYPERLINK(\"#'Schedule IVB'!A1\",\"Schedule IVB - Schedule of Long-Term Business Premiums\")","v":"Schedule IVB - Schedule of Long-Term Business Premiums"}]
[null,"i)",{"$f":"HYPERLINK(\"#'Schedule IVB'!E15:O34\",\"Unconsolidated Gross Premiums Written\")","v":"Unconsolidated Gross Premiums Written"},{"$f":"IF('Form 2SFS'!I43=0,\"N/A\",IF('Schedule IVB'!M31=0,\"Schedule is Blank\",'Schedule IVB'!M33))","v":"N/A"},{"$f":"+'Schedule IVB'!M35","v":0},{"$f":"IF('Form 2SFS'!I43=0,0,'Schedule IVB'!M35/'Form 2SFS'!I43)","v":0},null,null,false,{"$f":"IF(D53=\"Schedule is Blank\",\"Blank\",\"\")","v":""},{"$f":"IF(J53=\"Blank\",IF(I53=TRUE,\"Yes\",\"\"),\"\")","v":""},{"$f":"IF(D53=\"False\",\"False.\",\"\")","v":""},{"$f":"IF(L53=\"\",\"\",IF(I53=TRUE,\"Yes\",\"\"))","v":""}]
[null,"ii)",{"$f":"HYPERLINK(\"#'Schedule IVB'!Q16:AA35\",\"Unconsolidated Net Premiums Written\")","v":"Unconsolidated Net Premiums Written"},{"$f":"IF('Form 2SFS'!I51=0,\"N/A\",IF('Schedule IVB'!Y31=0,\"Schedule is Blank\",'Schedule IVB'!Y33))","v":"N/A"},{"$f":"+'Schedule IVB'!Y35","v":0},{"$f":"IF('Form 2SFS'!I51=0,0,'Schedule IVB'!Y35/'Form 2SFS'!I51)","v":0},null,null,null,{"$f":"IF(D54=\"Schedule is Blank\",\"Blank\",\"\")","v":""},"",{"$f":"IF(D54=\"False\",\"False.\",\"\")","v":""},""]
[{"$f":"A52+1","v":24},{"$f":"HYPERLINK(\"#'Schedule IVB (EBS)'!A1\",\"Schedule IVB (EBS) - Schedule of Long-Term Business Premiums\")","v":"Schedule IVB (EBS) - Schedule of Long-Term Business Premiums"}]
[null,"i)",{"$f":"HYPERLINK(\"#'Schedule IVB (EBS)'!E15:O34\",\"Consolidated Gross Premiums Written\")","v":"Consolidated Gross Premiums Written"},{"$f":"IF('Form 2SFS'!M43=0,\"N/A\",IF('Schedule IVB (EBS)'!M31=0,\"Schedule is Blank\",'Schedule IVB (EBS)'!M33))","v":"N/A"},{"$f":"+'Schedule IVB (EBS)'!M35","v":0},{"$f":"IF('Form 2SFS'!M43=0,0,'Schedule IVB (EBS)'!M35/'Form 2SFS'!M43)","v":0},null,null,null,{"$f":"IF(D56=\"Schedule is Blank\",\"Blank\",\"\")","v":""},{"$f":"IF(J56=\"Blank\",IF(I56=TRUE,\"Yes\",\"\"),\"\")","v":""},{"$f":"IF(D56=\"False\",\"False.\",\"\")","v":""},{"$f":"IF(L56=\"\",\"\",IF(I56=TRUE,\"Yes\",\"\"))","v":""}]
[null,"ii)",{"$f":"HYPERLINK(\"#'Schedule IVB (EBS)'!Q15:AA34\",\"Consolidated Net Premiums Written\")","v":"Consolidated Net Premiums Written"},{"$f":"IF('Form 2SFS'!M51=0,\"N/A\",IF('Schedule IVB (EBS)'!Y31=0,\"Schedule is Blank\",'Schedule IVB (EBS)'!Y33))","v":"N/A"},{"$f":"+'Schedule IVB (EBS)'!Y35","v":0},{"$f":"IF('Form 2SFS'!M51=0,0,'Schedule IVB (EBS)'!Y35/'Form 2SFS'!M51)","v":0},null,null,null,{"$f":"IF(D57=\"Schedule is Blank\",\"Blank\",\"\")","v":""},"",{"$f":"IF(D57=\"False\",\"False.\",\"\")","v":""},""]
[{"$f":"A55+1","v":25},{"$f":"HYPERLINK(\"#'Schedule V'!A1\",\"Schedule V - Schedule of Risk Management\")","v":"Schedule V - Schedule of Risk Management"},null,null,null,null,null,null,false]
[null,"i)",{"$f":"HYPERLINK(\"#'Schedule V'!H11\",\"Effective Duration of Assets\")","v":"Effective Duration of Assets"},{"$f":"IF('Schedule V'!H11=0,\"Asset Duration is not Reported\",\"True\")","v":"Asset Duration is not Reported"},null,null,null,null,false,{"$f":"IF(D59=\"Asset Duration is not Reported\",\"Blank\",\"\")","v":"Blank"},{"$f":"IF(J59=\"Blank\",IF(I59=TRUE,\"Yes\",\"\"),\"\")","v":""}]
[null,"ii)",{"$f":"HYPERLINK(\"#'Schedule V'!H13\",\"Effective Duration of Liabilities\")","v":"Effective Duration of Liabilities"},{"$f":"IF('Schedule V'!H13=0,\"Liability Duration is not Reported\",\"True\")","v":"Liability Duration is not Reported"},null,null,null,null,false,{"$f":"IF(D60=\"Liability Duration is not Reported\",\"Blank\",\"\")","v":"Blank"},""]
[null,"iii)",{"$f":"HYPERLINK(\"#'Schedule V'!H15\",\"Weighted average of the difference in the asset duration and liability duration\")","v":"Weighted average of the difference in the asset duration and liability duration"},{"$f":"IF('Schedule V'!H15=0,\"Weighted Average is not Reported\",\"True\")","v":"Weighted Average is not Reported"},null,null,null,null,false]
[null,"iv)",{"$f":"HYPERLINK(\"#'Schedule V'!H19\",\"Reserves with Known Duration as a Percentage of Total Reserves\")","v":"Reserves with Known Duration as a Percentage of Total Reserves"},{"$f":"IF('Schedule V'!H19=0,\"Percentage is not Reported\",\"True\")","v":"Percentage is not Reported"},null,null,null,null,false,{"$f":"IF(D62=\"Percentage is not Reported\",\"Blank\",\"\")","v":"Blank"},{"$f":"IF(J62=\"Blank\",IF(I62=TRUE,\"Yes\",\"\"),\"\")","v":""}]
[null,"v)",{"$f":"HYPERLINK(\"#'Schedule V'!H24:I26\",\"Summary of Projected Performance\")","v":"Summary of Projected Performance"},{"$f":"IF(COUNTIF('Schedule V'!H24:H25,0)>0,\"Projected Performance is not Reported\",\"True\")","v":"Projected Performance is not Reported"},null,null,null,null,null,{"$f":"IF(D63=\"Projected Performance is not Reported\",\"Blank\",\"\")","v":"Blank"},""]
[null,"vi)",{"$f":"HYPERLINK(\"#'Schedule V'!H38:H41\",\"Deferred Accumulation Annuities Disclosure\")","v":"Deferred Accumulation Annuities Disclosure"},{"$f":"IF(COUNTIF('Schedule V'!H38:H41,0)=4,\"Def. Acc. Ann. is not Reported\",\"True\")","v":"Def. Acc. Ann. is not Reported"},null,null,null,null,false]
[{"$f":"A58+1","v":26},{"$f":"HYPERLINK(\"#'Schedule V(a)'!A1\",\"Schedule V(a) Schedule of Risk Management - Governance and Group Structure\")","v":"Schedule V(a) Schedule of Risk Management - Governance and Group Structure"}]
[null,"i)",{"$f":"HYPERLINK(\"#'Schedule V(a)'!E11\",\"Directors - Country of Residence\")","v":"Directors - Country of Residence"},{"$f":"IF('Schedule V(a)'!E12=0,\"Directors- Country of Residence is not Reported\",\"True\")","v":"Directors- Country of Residence is not Reported"},null,null,null,null,null,{"$f":"IF(D66=\"Directors- Country of Residence is not Reported\",\"Blank\",\"\")","v":"Blank"},{"$f":"IF(J66=\"Blank\",IF(I66=TRUE,\"Yes\",\"\"),\"\")","v":""}]
[null,"ii)",{"$f":"HYPERLINK(\"#'Schedule V(a)'!H11\",\"Directors - Status\")","v":"Directors - Status"},{"$f":"IF('Schedule V(a)'!H12=0,\"Directors- Status is not Reported\",\"True\")","v":"True"},null,null,null,null,null,{"$f":"IF(D67=\"Directors- Status is not Reported\",\"Blank\",\"\")","v":""},""]
[null,"iii)",{"$f":"HYPERLINK(\"#'Schedule V(a)'!E36\",\"Chief & Senior Executives - Country of Residence\")","v":"Chief & Senior Executives - Country of Residence"},{"$f":"IF('Schedule V(a)'!E37=0,\"Chief & Senior Executives - Country of Residence is not Reported\",\"True\")","v":"Chief & Senior Executives - Country of Residence is not Reported"},null,null,null,null,false,{"$f":"IF(D68=\"Chief & Senior Executives - Country of Residence is not Reported\",\"Blank\",\"\")","v":"Blank"},""]
[null,"iv)",{"$f":"HYPERLINK(\"#'Schedule V(a)'!H36\",\"Chief & Senior Executives - Employee Arrangement\")","v":"Chief & Senior Executives - Employee Arrangement"},{"$f":"IF('Schedule V(a)'!H37=0,\"Chief & Senior Executives - Employee Arrangement is not Reported\",\"True\")","v":"True"},null,null,null,null,false,{"$f":"IF(D69=\"Chief & Senior Executives - Employee Arrangement is not Reported\",\"Blank\",\"\")","v":""},""]
[null,"v)",{"$f":"HYPERLINK(\"#'Schedule V(a)'!J36\",\"Chief & Senior Executives - Description of Responsibilities\")","v":"Chief & Senior Executives - Description of Responsibilities"},{"$f":"IF('Schedule V(a)'!I37=0,\"Chief & Senior Executives - Description of Responsibilities is not Reported\",\"True\")","v":"True"},null,null,null,null,false,{"$f":"IF(D70=\"Chief & Senior Executives - Description of Responsibilities is not Reported\",\"Blank\",\"\")","v":""},""]
[null,"vi)",{"$f":"HYPERLINK(\"#'Schedule V(a)'!C60\",\"Jurisdiction of Activities\")","v":"Jurisdiction of Activities"},{"$f":"IF(COUNTIF('Schedule V(a)'!E65:E68,0)=0,\"True\",\"Jurisdiction of Activities is not Reported\")","v":"True"},null,null,null,null,false,{"$f":"IF(D71=\"Jurisdiction of Activities is not Reported\",\"Blank\",\"\")","v":""},""]
[null,"vii)",{"$f":"HYPERLINK(\"#'Schedule V(a)'!C67\",\"Jurisdiction of Operations\")","v":"Jurisdiction of Operations"},{"$f":"IF(COUNTIF('Schedule V(a)'!E72:E77,0)=0,\"True\",\"Jurisdiction of Operations is not Reported\")","v":"True"},null,null,null,null,null,{"$f":"IF(D72=\"Jurisdiction of Operations is not Reported\",\"Blank\",\"\")","v":""},""]
[null,"viii)",{"$f":"HYPERLINK(\"#'Schedule V(a)'!H69:H74\",\"Services Outsourced\")","v":"Services Outsourced"},{"$f":"IF(COUNTIF('Schedule V(a)'!H72:H77,0)=0,\"True\",\"Services Outsourced is not Reported\")","v":"True"},null,null,null,null,false,{"$f":"IF(D73=\"Services Outsourced is not Reported\",\"Blank\",\"\")","v":""},""]
[null,"ix)",{"$f":"HYPERLINK(\"#'Schedule V(a)'!G76\",\"Number of Employees in Bermuda\")","v":"Number of Employees in Bermuda"},{"$f":"IF('Schedule V(a)'!G98=0,\"Numbers of Employees in Bermuda is not Reported\",\"True\")","v":"Numbers of Employees in Bermuda is not Reported"},null,null,null,null,false,{"$f":"IF(D74=\"Numbers of Employees in Bermuda is not Reported\",\"Blank\",\"\")","v":"Blank"},""]
[null,"vii)",{"$f":"HYPERLINK(\"#'Schedule V(a)'!C79:G83\",\"Group Financial Position\")","v":"Group Financial Position"},{"$f":"IF(COUNTIF('Schedule V(a)'!G110:G114,0)=0,\"True\",\"Group Financial Position is not Reported\")","v":"Group Financial Position is not Reported"},null,null,null,null,null,{"$f":"IF(D75=\"Group Financial Position is not Reported\",\"Blank\",\"\")","v":"Blank"},""]
[null,"vi)",{"$f":"HYPERLINK(\"#'Schedule V(a)'!C99:G107\",\"Largest Balance Sheet Values\")","v":"Largest Balance Sheet Values"},{"$f":"IF(COUNTIF('Schedule V(a)'!C130:G138,0)=45,\"Largest Values is not Reported\",\"True\")","v":"Largest Values is not Reported"},null,null,null,null,null,{"$f":"IF(D76=\"Largest Values is not Reported\",\"Blank\",\"\")","v":"Blank"},""]
[null,"vi)",{"$f":"HYPERLINK(\"#'Schedule V(a)'!C111\",\"Subsequent Events\")","v":"Subsequent Events"},{"$f":"IF('Schedule V(a)'!C142=0,\"Subsequent Events is not Reported\",\"True\")","v":"Subsequent Events is not Reported"},null,null,null,null,null,{"$f":"IF(D77=\"Subsequent Events is not Reported\",\"Blank\",\"\")","v":"Blank"},""]
[{"$f":"A65+1","v":27},{"$f":"HYPERLINK(\"#'Schedule V(c)'!A1\",\"Schedule V(c) Schedule of Risk Management - Intra-Group Exposures\")","v":"Schedule V(c) Schedule of Risk Management - Intra-Group Exposures"}]
[null,"i)",{"$f":"HYPERLINK(\"#'Schedule V(c)'!E9\",\"10 Largest Counterparty Exposures\")","v":"10 Largest Counterparty Exposures"},{"$f":"IF('Schedule V(c)'!C13=0,\"Counterparty Exposure is not Completed\",\"True\")","v":"Counterparty Exposure is not Completed"},null,null,null,null,null,{"$f":"IF(D79=\"Counterparty Exposure is not Completed\",\"Blank\",\"\")","v":"Blank"},{"$f":"IF(J79=\"Blank\",IF(I79=TRUE,\"Yes\",\"\"),\"\")","v":""}]
[null,"ii)",{"$f":"HYPERLINK(\"#'Schedule V(c)'!E55\",\"Intra-Group Transactions\")","v":"Intra-Group Transactions"},{"$f":"IF('Schedule V(c)'!C59=0,\"Intra-Group Transactions is not Reported\",\"True\")","v":"Intra-Group Transactions is not Reported"},null,null,null,null,null,{"$f":"IF(D80=\"Intra-Group Transactions is not Reported\",\"Blank\",\"\")","v":"Blank"},""]
[null,"iii)",{"$f":"HYPERLINK(\"#'Schedule V(c)'!E86\",\"Intra-Group Reinsurance & Retrocession\")","v":"Intra-Group Reinsurance & Retrocession"},{"$f":"IF('Schedule V(c)'!C91=0,\"Intra-Group R/I is not Reported\",\"True\")","v":"Intra-Group R/I is not Reported"},null,null,null,null,null,{"$f":"IF(D81=\"Intra-Group R/I is not Reported\",\"Blank\",\"\")","v":"Blank"},""]
[null,"iv)",{"$f":"HYPERLINK(\"#'Schedule V(c)'!J115\",\"Proportion of Internal Reinsurance\")","v":"Proportion of Internal Reinsurance"},{"$f":"IF('Schedule V(c)'!L117=0,\"Proportion R/I is not Reported\",\"True\")","v":"Proportion R/I is not Reported"},null,null,null,null,null,{"$f":"IF(D82=\"Proportion R/I is not Reported\",\"Blank\",\"\")","v":"Blank"},""]
[{"$f":"A78+1","v":28},{"$f":"HYPERLINK(\"#'Schedule V(e)'!A1\",\"Schedule V(e) Schedule of Risk Management - Stress & Scenario Tests\")","v":"Schedule V(e) Schedule of Risk Management - Stress & Scenario Tests"}]
[null,"i)",{"$f":"HYPERLINK(\"#'Schedule V(e)'!F17:G22\",\"Financial Market Scenarios\")","v":"Financial Market Scenarios"},{"$f":"IF('Schedule V(e)'!H9=\"\",IF(COUNTBLANK('Schedule V(e)'!F13:G19)=0,\"True\",\"Financial Market Scenario is not Reported\"),\"True\")","v":"True"},null,null,null,null,null,{"$f":"IF(D84=\"Financial Market Scenario is not Reported\",\"Blank\",\"\")","v":""},{"$f":"IF(J84=\"Blank\",IF(I84=TRUE,\"Yes\",\"\"),\"\")","v":""}]
[null,"ii)",{"$f":"HYPERLINK(\"#'Schedule V(e)'!B31:L33\",\"Other Underwriting Loss Scenarios\")","v":"Other Underwriting Loss Scenarios"},{"$f":"IF('Schedule V(e)'!H9=\"\",IF(COUNTIF('Schedule V(e)'!I51:I53,0)=0,\"True\",\"Other Underwriting Loss Scenarios is not Reported\"),\"True\")","v":"Other Underwriting Loss Scenarios is not Reported"},null,null,null,null,null,{"$f":"IF(D85=\"Other Underwriting Loss Scenarios is not Reported\",\"Blank\",\"\")","v":"Blank"},""]
[null,"iii)",{"$f":"HYPERLINK(\"#'Schedule V(e)'!b54:D58\",\"Reinsurer Specific Worst Case Scenario\")","v":"Reinsurer Specific Worst Case Scenario"},{"$f":"IF((COUNTIF('Schedule V(e)'!D76:E77,0)+COUNTIF('Schedule V(e)'!D84:E85,0))>2,\"Reinsurer Expecific Scenario is not Reported\",\"True\")","v":"Reinsurer Expecific Scenario is not Reported"},null,null,null,null,null,{"$f":"IF(D86=\"Reinsurer Expecific Scenario is not Reported\",\"Blank\",\"\")","v":"Blank"},""]
[{"$f":"A83+1","v":29},{"$f":"HYPERLINK(\"#'Schedule V(f)'!A1\",\"Schedule V(f) Schedule of Risk Management - Modified Coinsurance Arrangements\")","v":"Schedule V(f) Schedule of Risk Management - Modified Coinsurance Arrangements"}]
[null,"i)",{"$f":"HYPERLINK(\"#'Schedule V(f)'!A1\",\"Modified Coinsurance Arrangements\")","v":"Modified Coinsurance Arrangements"},{"$f":"IF('Schedule V(f)'!J32=0,\"Schedule is Blank\",\"True\")","v":"Schedule is Blank"}]
[{"$f":"A87+1","v":30},{"$f":"HYPERLINK(\"#'Schedule V(g)'!A1\",\"Schedule V(g) Schedule of Risk Management - Reconciliation from GAAP Financial Statements to Form 1EBS\")","v":"Schedule V(g) Schedule of Risk Management - Reconciliation from GAAP Financial Statements to Form 1EBS"}]
[null,"i)",{"$f":"HYPERLINK(\"#'Schedule V(g)'!A1\",\"Statutory Financial Statement Assets equals Form 4EBS\")","v":"Statutory Financial Statement Assets equals Form 4EBS"},{"$f":"IF('Schedule V(g)'!D51=0,\"Schedule is Blank\",'Schedule V(g)'!D53)","v":"Schedule is Blank"},{"$f":"+'Schedule V(g)'!D55","v":0},{"$f":"IF('Schedule V(g)'!D51=0,0,'Schedule V(g)'!D55/'Form 4EBS'!F93)","v":0},null,null,null,{"$f":"IF(OR(D90=\"False\",D90=\"Schedule is Blank\"),\"Blank\",\"\")","v":"Blank"},{"$f":"IF(J90=\"Blank\",IF(I90=TRUE,\"Yes\",\"\"),\"\")","v":""},{"$f":"IF(D90=\"False\",\"False.\",\"\")","v":""},{"$f":"IF(L90=\"\",\"\",IF(I90=TRUE,\"Yes\",\"\"))","v":""}]
[null,"ii)",{"$f":"HYPERLINK(\"#'Schedule V(g)'!A1\",\"Statutory Financial Statement Liabilities equals Form 4EBS\")","v":"Statutory Financial Statement Liabilities equals Form 4EBS"},{"$f":"IF('Schedule V(g)'!E51=0,\"Schedule is Blank\",'Schedule V(g)'!E53)","v":"Schedule is Blank"},{"$f":"+'Schedule V(g)'!E55","v":0},{"$f":"IF('Schedule V(g)'!E51=0,0,'Schedule V(g)'!E55/'Form 4EBS'!F180)","v":0},null,null,null,{"$f":"IF(OR(D91=\"False\",D91=\"Schedule is Blank\"),\"Blank\",\"\")","v":"Blank"},"",{"$f":"IF(D91=\"False\",\"False.\",\"\")","v":""},""]
[null,"iii)",{"$f":"HYPERLINK(\"#'Schedule V(g)'!A1\",\"Statutory Financial Statement Capital & Surplus equals Form 4EBS\")","v":"Statutory Financial Statement Capital & Surplus equals Form 4EBS"},{"$f":"IF('Schedule V(g)'!G51=0,\"Schedule is Blank\",'Schedule V(g)'!G53)","v":"Schedule is Blank"},{"$f":"+'Schedule V(g)'!G55","v":0},{"$f":"IF('Schedule V(g)'!G51=0,0,'Schedule V(g)'!G55/'Form 4EBS'!F184)","v":0},null,null,null,{"$f":"IF(OR(D92=\"False\",D92=\"Schedule is Blank\"),\"Blank\",\"\")","v":"Blank"},"","",""]
[{"$f":"A89+1","v":31},{"$f":"HYPERLINK(\"#'Schedule V(k)'!A1\",\"Schedule V(k) Schedule of Risk Management - Details of Deposit Assets and Liabilities\")","v":"Schedule V(k) Schedule of Risk Management - Details of Deposit Assets and Liabilities"}]
[null,"i)",{"$f":"HYPERLINK(\"#'Schedule V(k)'!A1\",\"Details of Deposit Assets and Liabilities\")","v":"Details of Deposit Assets and Liabilities"},{"$f":"IF(('Form 1SFS'!F86+'Form 1SFS'!H86+'Form 1SFS'!K86)=0,\"N/A\",IF('Schedule V(k)'!F58=0,\"Schedule is Blank\",\"True\"))","v":"N/A"},null,null,null,null,false,{"$f":"IF(D94=\"Schedule is Blank\",\"Blank\",\"\")","v":""},{"$f":"IF(J94=\"Blank\",IF(I94=TRUE,\"Yes\",\"\"),\"\")","v":""}]
[{"$f":"A93+1","v":32},{"$f":"HYPERLINK(\"#'Schedule V(l)'!A1\",\"Schedule V(l) Schedule of Risk Management - Schedule of Segregated Accounts\")","v":"Schedule V(l) Schedule of Risk Management - Schedule of Segregated Accounts"}]
[null,"i)",{"$f":"HYPERLINK(\"#'Schedule V(l)'!A1\",\"Schedule of Segregated Accounts\")","v":"Schedule of Segregated Accounts"},{"$f":"IF(('Form 1SFS'!F85+'Form 1SFS'!K85+'Form 1SFS'!H83+'Form 1SFS'!K83+'Form 1SFS'!H84+'Form 1SFS'!K84)=0,\"N/A\",IF('Schedule V(l)'!BC9=0,\"Schedule is Blank\",\"True\"))","v":"N/A"},null,null,null,null,false,"",{"$f":"IF(J96=\"Blank\",IF(I96=TRUE,\"Yes\",\"\"),\"\")","v":""}]
[{"$f":"A95+1","v":33},{"$f":"HYPERLINK(\"#'Schedule VI'!A1\",\"Schedule VI - Schedule of Fixed Income Securities\")","v":"Schedule VI - Schedule of Fixed Income Securities"}]
[null,"i)",{"$f":"HYPERLINK(\"#'Schedule VI'!A1\",\"Fixed Income Securities equals Form 1SFS\")","v":"Fixed Income Securities equals Form 1SFS"},{"$f":"IF(('Form 1SFS'!F18+'Form 1SFS'!H18+'Form 1SFS'!F31+'Form 1SFS'!H31)=0,\"N/A\",IF('Schedule VI'!E28=0,\"Schedule is Blank\",'Schedule VI'!E30))","v":"N/A"},{"$f":"'Schedule VI'!E32","v":0},{"$f":"IF(('Form 1SFS'!F18+'Form 1SFS'!H18+'Form 1SFS'!F31+'Form 1SFS'!H31)=0,0,('Schedule VI'!E32)/('Form 1SFS'!F18+'Form 1SFS'!H18+'Form 1SFS'!F31+'Form 1SFS'!H31))","v":0},null,null,null,"",{"$f":"IF(J98=\"Blank\",IF(I98=TRUE,\"Yes\",\"\"),\"\")","v":""},{"$f":"IF(D98=\"False\",\"False.\",\"\")","v":""},{"$f":"IF(L98=\"\",\"\",IF(I98=TRUE,\"Yes\",\"\"))","v":""}]
[{"$f":"A97+1","v":34},{"$f":"HYPERLINK(\"#'Schedule VI (EBS)'!A1\",\"Schedule VI (EBS) - Schedule of Fixed Income Securities\")","v":"Schedule VI (EBS) - Schedule of Fixed Income Securities"}]
[null,"i)",{"$f":"HYPERLINK(\"#'Schedule VI (EBS)'!A1\",\"Fixed Income Securities equals Form 4EBS\")","v":"Fixed Income Securities equals Form 4EBS"},{"$f":"IF(('Form 4EBS'!F13+'Form 4EBS'!F23)=0,\"N/A\",IF('Schedule VI (EBS)'!E28=0,\"Schedule is Blank\",'Schedule VI (EBS)'!E30))","v":"N/A"},{"$f":"'Schedule VI (EBS)'!E32","v":0},{"$f":"IF(('Form 4EBS'!F13+'Form 4EBS'!F23)=0,0,('Schedule VI (EBS)'!E32)/('Form 4EBS'!F13+'Form 4EBS'!F23))","v":0},null,null,null,"",{"$f":"IF(J100=\"Blank\",IF(I100=TRUE,\"Yes\",\"\"),\"\")","v":""},{"$f":"IF(D100=\"False\",\"False.\",\"\")","v":""},{"$f":"IF(L100=\"\",\"\",IF(I100=TRUE,\"Yes\",\"\"))","v":""}]
[{"$f":"A99+1","v":35},{"$f":"HYPERLINK(\"#'Schedule VII'!A1\",\"Schedule VII - Schedule of Long-Term Insurance\")","v":"Schedule VII - Schedule of Long-Term Insurance"}]
[null,"i)",{"$f":"HYPERLINK(\"#'Schedule VII'!A1\",\"Long-Term Reserves\")","v":"Long-Term Reserves"},{"$f":"IF(('Form 1SFS'!H154+'Form 1SFS'!K154)=0,\"N/A\",IF('Schedule VII'!D48=0,\"Schedule is Blank\",\"True\"))","v":"N/A"},null,null,null,null,null,"",{"$f":"IF(J102=\"Blank\",IF(I102=TRUE,\"Yes\",\"\"),\"\")","v":""}]
[{"$f":"A101+1","v":36},{"$f":"HYPERLINK(\"#'Schedule VII (EBS)'!A1\",\"Schedule VII (EBS) - Schedule of Long-Term Insurance\")","v":"Schedule VII (EBS) - Schedule of Long-Term Insurance"}]
[null,"i)",{"$f":"HYPERLINK(\"#'Schedule VII (EBS)'!A1\",\"Long-Term Reserves\")","v":"Long-Term Reserves"},{"$f":"IF('Form 4EBS'!F134=0,\"N/A\",IF('Schedule VII (EBS)'!D48=0,\"Schedule is Blank\",\"True\"))","v":"N/A"},null,null,null,null,null,"",{"$f":"IF(J104=\"Blank\",IF(I104=TRUE,\"Yes\",\"\"),\"\")","v":""}]
[{"$f":"A103+1","v":37},{"$f":"HYPERLINK(\"#'Schedule VIII'!A1\",\"Schedule VIII - Schedule of Variable Annuity\")","v":"Schedule VIII - Schedule of Variable Annuity"}]
[null,"i)",{"$f":"HYPERLINK(\"#'Schedule VIII'!A1\",\"Long-Term Variable Annuity Reserves\")","v":"Long-Term Variable Annuity Reserves"},{"$f":"IF(('Form 1SFS'!H154+'Form 1SFS'!K154)=0,\"N/A\",IF('Schedule VIII'!F48=0,\"Schedule is Blank\",\"True\"))","v":"N/A"},null,null,null,null,null,"",{"$f":"IF(J106=\"Blank\",IF(I106=TRUE,\"Yes\",\"\"),\"\")","v":""}]
[{"$f":"A105+1","v":38},{"$f":"HYPERLINK(\"#'Schedule VIII (EBS)'!A1\",\"Schedule VIII (EBS) - Schedule of Variable Annuity\")","v":"Schedule VIII (EBS) - Schedule of Variable Annuity"}]
[null,"i)",{"$f":"HYPERLINK(\"#'Schedule VIII (EBS)'!A1\",\"Long-Term Variable Annuity Reserves\")","v":"Long-Term Variable Annuity Reserves"},{"$f":"IF('Form 4EBS'!F134=0,\"N/A\",IF('Schedule VIII (EBS)'!F48=0,\"Schedule is Blank\",\"True\"))","v":"N/A"},null,null,null,null,null,"",{"$f":"IF(J108=\"Blank\",IF(I108=TRUE,\"Yes\",\"\"),\"\")","v":""}]
[{"$f":"A107+1","v":39},{"$f":"HYPERLINK(\"#'Schedule VIIIA'!A1\",\"Schedule VIIIA - Schedule of Variable Annuity - Internal Capital Model\")","v":"Schedule VIIIA - Schedule of Variable Annuity - Internal Capital Model"}]
[null,"i)",{"$f":"HYPERLINK(\"#'Schedule VIIIA'!A1\",\"Long-Term Variable Annuity Capital Model\")","v":"Long-Term Variable Annuity Capital Model"},{"$f":"IF(('Form 1SFS'!H154+'Form 1SFS'!K154)=0,\"N/A\",IF('Schedule VIIIA'!S12=0,\"Schedule is Blank\",\"True\"))","v":"N/A"},null,null,null,null,null,"",{"$f":"IF(J110=\"Blank\",IF(I110=TRUE,\"Yes\",\"\"),\"\")","v":""}]
[{"$f":"A109+1","v":40},{"$f":"HYPERLINK(\"#'Schedule VIIIA (EBS)'!A1\",\"Schedule VIIIA (EBS) - Schedule of Variable Annuity - Internal Capital Model\")","v":"Schedule VIIIA (EBS) - Schedule of Variable Annuity - Internal Capital Model"}]
[null,"i)",{"$f":"HYPERLINK(\"#'Schedule VIIIA (EBS)'!A1\",\"Long-Term Variable Annuity Capital Model\")","v":"Long-Term Variable Annuity Capital Model"},{"$f":"IF('Form 4EBS'!F134=0,\"N/A\",IF('Schedule VIIIA (EBS)'!S12=0,\"Schedule is Blank\",\"True\"))","v":"N/A"},null,null,null,null,null,"",{"$f":"IF(J112=\"Blank\",IF(I112=TRUE,\"Yes\",\"\"),\"\")","v":""}]
[{"$f":"A111+1","v":41},{"$f":"HYPERLINK(\"#'Schedule XVIII'!A1\",\"Schedule XVIII Particulars of Reinsurance Balances\")","v":"Schedule XVIII Particulars of Reinsurance Balances"}]
[null,"i)",{"$f":"HYPERLINK(\"#'Schedule XVIII'!A1\",\"Reinsurance Balances as reported on Schedule XVIII & IIA equals Form 1SFS\")","v":"Reinsurance Balances as reported on Schedule XVIII & IIA equals Form 1SFS"},{"$f":"IF('Schedule XVIII'!G71=0,\"N/A\",IF('Schedule XVIII'!G54=0,\"Schedule is Blank\",'Schedule XVIII'!G76))","v":"N/A"},{"$f":"'Schedule XVIII'!G78","v":0},{"$f":"IF('Schedule XVIII'!G71=0,0,('Schedule XVIII'!G78)/'Schedule XVIII'!G71)","v":0},null,null,null,{"$f":"IF(D114=\"Schedule is Blank\",\"Blank\",\"\")","v":""},{"$f":"IF(J114=\"Blank\",IF(I114=TRUE,\"Yes\",\"\"),\"\")","v":""},{"$f":"IF(D114=\"False\",\"False.\",\"\")","v":""},{"$f":"IF(L114=\"\",\"\",IF(I114=TRUE,\"Yes\",\"\"))","v":""}]
[{"$f":"A113+1","v":42},{"$f":"HYPERLINK(\"#'Schedule XVIII (EBS)'!A1\",\"Schedule XVIII (EBS) Particulars of Reinsurance Balances\")","v":"Schedule XVIII (EBS) Particulars of Reinsurance Balances"}]
[null,"i)",{"$f":"HYPERLINK(\"#'Schedule XVIII (EBS)'!A1\",\"Reinsurance Balances as reported on Schedule XVIII (EBS) & IIA (EBS) equals Form 4EBS\")","v":"Reinsurance Balances as reported on Schedule XVIII (EBS) & IIA (EBS) equals Form 4EBS"},{"$f":"IF('Schedule XVIII (EBS)'!G71=0,\"N/A\",IF('Schedule XVIII (EBS)'!G54=0,\"Schedule is Blank\",'Schedule XVIII (EBS)'!G76))","v":"N/A"},{"$f":"'Schedule XVIII (EBS)'!G78","v":0},{"$f":"IF('Schedule XVIII (EBS)'!G71=0,0,('Schedule XVIII (EBS)'!G78)/'Schedule XVIII (EBS)'!G71)","v":0},null,null,null,{"$f":"IF(D116=\"Schedule is Blank\",\"Blank\",\"\")","v":""},{"$f":"IF(J116=\"Blank\",IF(I116=TRUE,\"Yes\",\"\"),\"\")","v":""},{"$f":"IF(D116=\"False\",\"False.\",\"\")","v":""},{"$f":"IF(L116=\"\",\"\",IF(I116=TRUE,\"Yes\",\"\"))","v":""}]
[{"$f":"A115+1","v":43},{"$f":"HYPERLINK(\"#'Schedule XIX'!A1\",\"Schedule XIX Particulars of Cash and Cash Equivalents\")","v":"Schedule XIX Particulars of Cash and Cash Equivalents"}]
[null,"i)",{"$f":"HYPERLINK(\"#'Schedule XIX'!A1\",\"Particulars of Cash and Cash Equivalents equals Form 4EBS\")","v":"Particulars of Cash and Cash Equivalents equals Form 4EBS"},{"$f":"IF('Schedule XIX'!H54=0,\"Schedule is Blank\",'Schedule XIX'!H74)","v":"Schedule is Blank"},{"$f":"'Schedule XIX'!H76","v":0},{"$f":"IF('Schedule XIX'!H54=0,0,('Schedule XIX'!H76)/'Schedule XIX'!H72)","v":0},null,null,null,{"$f":"IF(D118=\"Schedule is Blank\",\"Blank\",\"\")","v":"Blank"},{"$f":"IF(J118=\"Blank\",IF(I118=TRUE,\"Yes\",\"\"),\"\")","v":""},{"$f":"IF(D118=\"False\",\"False.\",\"\")","v":""},{"$f":"IF(L118=\"\",\"\",IF(I118=TRUE,\"Yes\",\"\"))","v":""}]
[{"$f":"A117+1","v":44},{"$f":"HYPERLINK(\"#'Schedule XIXA'!A1\",\"Schedule XIXA Particulars of Cash and Cash Equivalents\")","v":"Schedule XIXA Particulars of Cash and Cash Equivalents"}]
[null,"i)",{"$f":"HYPERLINK(\"#'Schedule XIXA'!A1\",\"Particulars of Cash and Cash Equivalents equals Form 4EBS\")","v":"Particulars of Cash and Cash Equivalents equals Form 4EBS"},{"$f":"IF('Schedule XIXA'!F54=0,\"Schedule is Blank\",'Schedule XIXA'!F74)","v":"Schedule is Blank"},{"$f":"'Schedule XIXA'!F77","v":0},{"$f":"IF('Schedule XIXA'!F72=0,0,('Schedule XIXA'!F76)/'Schedule XIXA'!F72)","v":0},null,null,null,{"$f":"IF(D120=\"Schedule is Blank\",\"Blank\",\"\")","v":"Blank"},{"$f":"IF(J120=\"Blank\",IF(I120=TRUE,\"Yes\",\"\"),\"\")","v":""},{"$f":"IF(D120=\"False\",\"False.\",\"\")","v":""},{"$f":"IF(L120=\"\",\"\",IF(I120=TRUE,\"Yes\",\"\"))","v":""}]
[{"$f":"A119+1","v":45},{"$f":"HYPERLINK(\"#'Schedule XX'!A1\",\"Schedule XX Schedule of Currency Risk\")","v":"Schedule XX Schedule of Currency Risk"}]
[null,"i)",{"$f":"HYPERLINK(\"#'Schedule XX'!A1\",\"Currency Test of Minimum of 95% Has Been Met\")","v":"Currency Test of Minimum of 95% Has Been Met"},{"$f":"IF(+'Schedule XX'!L24=0,\"Schedule is Blank\",'Schedule XX'!L30)","v":"Schedule is Blank"},{"$f":"'Schedule XX'!L27-'Schedule XX'!L24","v":0},{"$f":"-IF('Schedule XX'!L27=0,0,('Schedule XX'!L24-'Schedule XX'!L27)/'Schedule XX'!L27)","v":0},null,null,false,{"$f":"IF(D122=\"Schedule is Blank\",\"Blank\",\"\")","v":"Blank"},{"$f":"IF(J122=\"Blank\",IF(I122=TRUE,\"Yes\",\"\"),\"\")","v":""},{"$f":"IF(D122=\"False\",\"False.\",\"\")","v":""},{"$f":"IF(L122=\"\",\"\",IF(I122=TRUE,\"Yes\",\"\"))","v":""}]
[null,"ii)",{"$f":"HYPERLINK(\"#'Schedule XX'!T36\",\"Liabilities and ECR Charge has been completed\")","v":"Liabilities and ECR Charge has been completed"},{"$f":"IF(COUNTIF('Schedule XX'!L34:P36,0)>0,\"Schedule is not Complete\",\"True\")","v":"Schedule is not Complete"},null,null,null,null,null,{"$f":"IF(D123=\"Schedule is not complete\",\"Blank\",\"\")","v":"Blank"},""]
[{"$f":"A121+1","v":46},{"$f":"HYPERLINK(\"#'Schedule XXA'!A1\",\"Schedule XXA Schedule of Currency Risk\")","v":"Schedule XXA Schedule of Currency Risk"}]
[null,"i)",{"$f":"HYPERLINK(\"#'Schedule XXA'!A1\",\"Currency Test of Minimum of 95% Has Been Met\")","v":"Currency Test of Minimum of 95% Has Been Met"},{"$f":"IF('Schedule XXA'!D33=0,\"Schedule is Blank\",'Schedule XXA'!D39)","v":"Schedule is Blank"},{"$f":"'Schedule XXA'!D36-'Schedule XXA'!D33-'Schedule XXA'!F33-'Schedule XXA'!H33-'Schedule XXA'!J33-'Schedule XXA'!L33","v":0},{"$f":"IF('Schedule XXA'!D33=0,0,('Schedule XXA'!D36-'Schedule XXA'!D33-'Schedule XXA'!F33-'Schedule XXA'!H33-'Schedule XXA'!J33-'Schedule XXA'!L33)/'Schedule XXA'!D36)","v":0},null,null,null,{"$f":"IF(D125=\"Schedule is Blank\",\"Blank\",\"\")","v":"Blank"},{"$f":"IF(J125=\"Blank\",IF(I125=TRUE,\"Yes\",\"\"),\"\")","v":""},{"$f":"IF(D125=\"False\",\"False.\",\"\")","v":""},{"$f":"IF(L125=\"\",\"\",IF(I125=TRUE,\"Yes\",\"\"))","v":""}]
[null,"ii)",{"$f":"HYPERLINK(\"#'Schedule XXA'!P45\",\"Liabilities and ECR Charge has been completed\")","v":"Liabilities and ECR Charge has been completed"},{"$f":"IF(COUNTIF('Schedule XXA'!D43:H45,0)>0,\"Schedule is not Complete\",\"True\")","v":"Schedule is not Complete"},null,null,null,null,null,{"$f":"IF(D126=\"Schedule is not complete\",\"Blank\",\"\")","v":"Blank"},""]
[{"$f":"A124+1","v":47},{"$f":"HYPERLINK(\"#'Schedule XXI'!A1\",\"Schedule XXI Schedule of Concentration Risk\")","v":"Schedule XXI Schedule of Concentration Risk"}]
[null,"i)",{"$f":"HYPERLINK(\"#'Schedule XXI'!A1\",\"Particulars of Concentration Risk\")","v":"Particulars of Concentration Risk"},{"$f":"IF('Schedule XXI'!M58=0,\"Schedule is Blank\",\"True\")","v":"Schedule is Blank"},null,null,null,null,null,"Blank",{"$f":"IF(J128=\"Blank\",IF(I128=TRUE,\"Yes\",\"\"),\"\")","v":""}]
[null,"ii)",{"$f":"HYPERLINK(\"#'Schedule XXI'!A1\",\"Particulars of Concentration Risk - Bond Type and BSCR Rating Complete\")","v":"Particulars of Concentration Risk - Bond Type and BSCR Rating Complete"},{"$f":"IF('Schedule XXI'!M58=0,\"Schedule is Blank\",IF(ROUND('Schedule XXI'!M58-'Concentration Risk'!D111,0)=0,\"True\",\"Schedule is not Complete\"))","v":"Schedule is Blank"},{"$f":"'Schedule XXI'!M58-'Concentration Risk'!D111","v":0},{"$f":"IF('Schedule XXI'!M58=0,0,('Schedule XXI'!M58-'Concentration Risk'!D111)/'Schedule XXI'!M58)","v":0},null,null,null,{"$f":"IF(D129=\"Schedule is Blank\",\"Blank\",\"\")","v":"Blank"},""]
[{"$f":"A127+1","v":48},{"$f":"HYPERLINK(\"#'Schedule XXIA'!A1\",\"Schedule XXIA Schedule of Concentration Risk\")","v":"Schedule XXIA Schedule of Concentration Risk"}]
[null,"i)",{"$f":"HYPERLINK(\"#'Schedule XXIA'!A1\",\"Particulars of Concentration Risk\")","v":"Particulars of Concentration Risk"},{"$f":"IF('Schedule XXIA'!M58=0,\"Schedule is Blank\",\"True\")","v":"Schedule is Blank"},null,null,null,null,null,{"$f":"IF(D131=\"Schedule is Blank\",\"Blank\",\"\")","v":"Blank"},{"$f":"IF(J131=\"Blank\",IF(I131=TRUE,\"Yes\",\"\"),\"\")","v":""}]
[null,"ii)",{"$f":"HYPERLINK(\"#'Schedule XXIA'!A1\",\"Particulars of Concentration Risk - Bond Type and BSCR Rating Complete\")","v":"Particulars of Concentration Risk - Bond Type and BSCR Rating Complete"},{"$f":"IF('Schedule XXIA'!M58=0,\"Schedule is Blank\",IF(ROUND('Schedule XXIA'!M58-'Concentration Risk (Revised)'!D123,0)=0,\"True\",\"Schedule is not Complete\"))","v":"Schedule is Blank"},{"$f":"'Schedule XXIA'!H58-'Concentration Risk (Revised)'!D123","v":0},{"$f":"IF('Schedule XXIA'!H58=0,0,('Schedule XXIA'!H58-'Concentration Risk (Revised)'!D123)/'Schedule XXIA'!H58)","v":0},null,null,null,{"$f":"IF(D132=\"Schedule is Blank\",\"Blank\",\"\")","v":"Blank"},""]
[]
[null,"CISSA Schedules"]
[{"$f":"A130+1","v":49},{"$f":"HYPERLINK(\"#'Schedule IX(a)'!A1\",\"Schedule IX(a) - CISSA Capital Summary\")","v":"Schedule IX(a) - CISSA Capital Summary"}]
[null,"i)",{"$f":"HYPERLINK(\"#'Schedule IX(a)'!A1\",\"CISSA Capital Summary\")","v":"CISSA Capital Summary"},{"$f":"IF('Schedule IX(a)'!E31=0,\"CISSA Capital Summary is Blank\",\"True\")","v":"CISSA Capital Summary is Blank"},null,null,null,null,null,{"$f":"IF(D136=\"CISSA Capital Summary is Blank\",\"Blank\",\"\")","v":"Blank"},{"$f":"IF(J136=\"Blank\",IF(I136=TRUE,\"Yes\",\"\"),\"\")","v":""}]
[null,"ii)",{"$f":"HYPERLINK(\"#'Schedule IX(a)'!B44:C50\",\"Insurer's Reason for Maintaining CISSA Capital Amount\")","v":"Insurer's Reason for Maintaining CISSA Capital Amount"},{"$f":"IF(COUNTIF('Schedule IX(a)'!B44:B50,\"Select\")=7,\"CISSA Section is Blank\",\"True\")","v":"True"},null,null,null,null,null,{"$f":"IF(D137=\"CISSA Section is Blank\",\"Blank\",\"\")","v":""},""]
[null,"iii)",{"$f":"HYPERLINK(\"#'Schedule IX(a)'!B54:C60\",\"Insurer's Method of Aggregating CISSA Capital\")","v":"Insurer's Method of Aggregating CISSA Capital"},{"$f":"IF(COUNTIF('Schedule IX(a)'!B54:B60,\"Select\")=7,\"CISSA Section is Blank\",\"True\")","v":"True"},null,null,null,null,null,"",""]
[null,"iv)",{"$f":"HYPERLINK(\"#'Schedule IX(a)'!B64:C72\",\"Insurer's Contingency Plan\")","v":"Insurer's Contingency Plan"},{"$f":"IF(COUNTIF('Schedule IX(a)'!B64:B72,\"Select\")=9,\"CISSA Section is Blank\",\"True\")","v":"True"},null,null,null,null,null,"",""]
[null,"v)",{"$f":"HYPERLINK(\"#'Schedule IX(a)'!B74:G77\",\"Insurer's Confirmation of Contractual Commits under Stressed Situations\")","v":"Insurer's Confirmation of Contractual Commits under Stressed Situations"},{"$f":"IF('Schedule IX(a)'!G74=\"Select\",\"CISSA Section is Blank\",\"True\")","v":"True"},null,null,null,null,null,"",""]
[null,"vi)",{"$f":"HYPERLINK(\"#'Schedule IX(a)'!B79:G81\",\"Insurer's Confirmation of Issurance of Downstream of Debt\")","v":"Insurer's Confirmation of Issurance of Downstream of Debt"},{"$f":"IF('Schedule IX(a)'!G79=\"Select\",\"CISSA Section is Blank\",\"True\")","v":"True"},null,null,null,null,null,"",""]
[null,"vii)",{"$f":"HYPERLINK(\"#'Schedule IX(a)'!B83:G85\",\"Insurer's Confirmation of Receipt of Downstream of Debt\")","v":"Insurer's Confirmation of Receipt of Downstream of Debt"},{"$f":"IF('Schedule IX(a)'!G83=\"Select\",\"CISSA Section is Blank\",\"True\")","v":"True"},null,null,null,null,null,"",""]
[null,"viii)",{"$f":"HYPERLINK(\"#'Schedule IX(a)'!B87:G93\",\"Insurer's Confirmation of Transferrability of Assets\")","v":"Insurer's Confirmation of Transferrability of Assets"},{"$f":"IF('Schedule IX(a)'!G87=\"Select\",\"CISSA Section is Blank\",\"True\")","v":"True"},null,null,null,null,null,"",""]
[{"$f":"A135+1","v":50},{"$f":"HYPERLINK(\"#'Schedule IX(b)'!A1\",\"Schedule IX(b) - CISSA General Questions\")","v":"Schedule IX(b) - CISSA General Questions"}]
[null,"i)",{"$f":"HYPERLINK(\"#'Schedule IX(b)'!B8:F28\",\"CISSA Integration\")","v":"CISSA Integration"},{"$f":"IF('Schedule IX(b)'!F7=\"Select\",\"CISSA Section is Blank\",\"True\")","v":"True"},null,null,null,null,null,{"$f":"IF(D145=\"CISSA Section is Blank\",\"Blank\",\"\")","v":""},{"$f":"IF(J145=\"Blank\",IF(I145=TRUE,\"Yes\",\"\"),\"\")","v":""}]
[null,"ii)",{"$f":"HYPERLINK(\"#'Schedule IX(b)'!B31:F37\",\"CISSA General Questions\")","v":"CISSA General Questions"},{"$f":"IF(COUNTIF('Schedule IX(b)'!F29:F35,\"Select\")>=2,\"CISSA Section is Blank\",\"True\")","v":"True"},null,null,null,null,null,{"$f":"IF(D146=\"CISSA Section is Blank\",\"Blank\",\"\")","v":""},""]
[]
[{"$f":"A144+1","v":51},{"$f":"HYPERLINK(\"#'Schedule IX(c)'!A1\",\"Schedule IX(c) - CISSA Assessment of Material Risks\")","v":"Schedule IX(c) - CISSA Assessment of Material Risks"}]
[null,"i)",{"$f":"HYPERLINK(\"#'Schedule IX(c)'!B66:F82\",\"CISSA Model Assessment\")","v":"CISSA Model Assessment"}]
[]
[null,"Eligible Capital"]
[{"$f":"A148+1","v":52},{"$f":"HYPERLINK(\"#'Schedule XII(a)'!A1\",\"Schedule XII(a) - Schedule of Eligible Capital\")","v":"Schedule XII(a) - Schedule of Eligible Capital"}]
[null,"i)",{"$f":"HYPERLINK(\"#'Schedule XII(a)'!G26:G30\",\"Policyholder Obligations equals Form 4EBS\")","v":"Policyholder Obligations equals Form 4EBS"},{"$f":"IF('Schedule XII(a)'!H30=0,\"N/A\",IF('Schedule XII(a)'!G28=0,\"Schedule Not Completed\",IF(ROUND('Schedule XII(a)'!H32,0)=0,\"True\",\"False\")))","v":"N/A"},{"$f":"'Schedule XII(a)'!H32","v":0},{"$f":"IF('Schedule XII(a)'!G28=0,0,'Schedule XII(a)'!H32/'Form 4EBS'!F115)","v":0},null,null,null,{"$f":"IF(D153=\"Schedule Not Completed\",\"Blank\",\"\")","v":""},{"$f":"IF(J153=\"Blank\",IF(I153=TRUE,\"Yes\",\"\"),\"\")","v":""}]
[]
[null,"ii)",{"$f":"HYPERLINK(\"#'Schedule XII(a)'!J79:J81\",\"Eligible Capital equals Economic Available Capital & Surplus\")","v":"Eligible Capital equals Economic Available Capital & Surplus"},{"$f":"IF('Schedule XII(a)'!J79=0,\"N/A\",'Schedule XII(a)'!J81)","v":"N/A"},{"$f":"'Schedule XII(a)'!J83","v":0},{"$f":"IF('Schedule XII(a)'!J79=0,0,('Schedule XII(a)'!J83/'Schedule XII(a)'!J9))","v":0},null,null,null,{"$f":"IF(D155=\"N/A\",\"Blank\",\"\")","v":"Blank"},{"$f":"IF(J155=\"Blank\",IF(I155=TRUE,\"Yes\",\"\"),\"\")","v":""},{"$f":"IF(D155=\"False\",\"False.\",\"\")","v":""},{"$f":"IF(L155=\"\",\"\",IF(I155=TRUE,\"Yes\",\"\"))","v":""}]
[{"$f":"A152+1","v":53},{"$f":"HYPERLINK(\"#'Schedule XII(b)'!A1\",\"Schedule XII(b) - Schedule of Eligible Capital Additional Details\")","v":"Schedule XII(b) - Schedule of Eligible Capital Additional Details"}]
[]
[null,"Schedule of Non-Insurance Financial Operating Entities"]
[{"$f":"A156+1","v":54},{"$f":"HYPERLINK(\"#'Schedule XVI'!A1\",\"Schedule XVI - Schedule of Non-Insurance Financial Operating Entities\")","v":"Schedule XVI - Schedule of Non-Insurance Financial Operating Entities"}]
[null,"i)",{"$f":"HYPERLINK(\"#'Schedule XVI'!A1\",\"Schedule of Non-Insurance Financial Operating Entities\")","v":"Schedule of Non-Insurance Financial Operating Entities"},{"$f":"IF('Schedule XVI'!B11=0,\"Schedule is Blank\", \"True\")","v":"Schedule is Blank"},null,null,null,null,false,{"$f":"IF(D160=\"Schedule is Blank\",\"Blank\",\"\")","v":"Blank"},{"$f":"IF(J160=\"Blank\",IF(I160=TRUE,\"Yes\",\"\"),\"\")","v":""}]
[]
[null,"Schedule of Solvency"]
[{"$f":"A159+1","v":55},{"$f":"HYPERLINK(\"#'Schedule XVII'!A1\",\"Schedule XVII (EBS) - Schedule of Solvency\")","v":"Schedule XVII (EBS) - Schedule of Solvency"}]
[null,"i)",{"$f":"HYPERLINK(\"#'Schedule XVII'!A1\",\"Schedule of Solvency\")","v":"Schedule of Solvency"},{"$f":"IF('Schedule XVII'!J211=0,\"Schedule is Blank\", \"True\")","v":"Schedule is Blank"},null,null,null,null,false,{"$f":"IF(D164=\"Schedule is Blank\",\"Blank\",\"\")","v":"Blank"},{"$f":"IF(J164=\"Blank\",IF(I164=TRUE,\"Yes\",\"\"),\"\")","v":""}]
[]
[null,"Commercial Insurers Risk Assessment (CIRA)"]
[{"$f":"A163+1","v":56},{"$f":"HYPERLINK(\"#'Corp Gov'!A1\",\"Corporate Governance\")","v":"Corporate Governance"},null,{"$f":"IF('Corp Gov'!D18=0,\"Schedule is Blank\", \"Schedule is Completed\")","v":"Schedule is Blank"},null,null,null,null,null,{"$f":"IF(D167=\"Schedule is Blank\",\"Blank\",\"\")","v":"Blank"},{"$f":"IF(J167=\"Blank\",IF(I167=TRUE,\"Yes\",\"\"),\"\")","v":""}]
[{"$f":"A167+1","v":57},{"$f":"HYPERLINK(\"#'Risk Man'!A1\",\"Risk Management\")","v":"Risk Management"},null,{"$f":"IF('Risk Man'!D18=0,\"Schedule is Blank\", \"Schedule is Completed\")","v":"Schedule is Blank"},null,null,null,null,null,{"$f":"IF(D168=\"Schedule is Blank\",\"Blank\",\"\")","v":"Blank"},""]
[{"$f":"A168+1","v":58},{"$f":"HYPERLINK(\"#'Identification'!A1\",\"Identification (Class D & E Insurers Only)\")","v":"Identification (Class D & E Insurers Only)"},null,{"$f":"IF('Insurer Information'!$F$9=\"Class C\",\"N/A\",IF(Identification!M19=0,\"Schedule is Blank\", \"Schedule is Completed\"))","v":"Schedule is Blank"},null,null,null,null,null,"Blank",""]
[{"$f":"A169+1","v":59},{"$f":"HYPERLINK(\"#'Measurement'!A1\",\"Measurement (Class D & E Insurers Only)\")","v":"Measurement (Class D & E Insurers Only)"},null,{"$f":"IF('Insurer Information'!$F$9=\"Class C\",\"N/A\",IF(Measurement!M19=0,\"Schedule is Blank\", \"Schedule is Completed\"))","v":"Schedule is Blank"},null,null,null,null,null,"Blank",""]
[{"$f":"A170+1","v":60},{"$f":"HYPERLINK(\"#'Response'!A1\",\"Response (Class D & E Insurers Only)\")","v":"Response (Class D & E Insurers Only)"},null,{"$f":"IF('Insurer Information'!$F$9=\"Class C\",\"N/A\",IF(Response!M19=0,\"Schedule is Blank\", \"Schedule is Completed\"))","v":"Schedule is Blank"},null,null,null,null,null,"Blank",""]
[{"$f":"A171+1","v":61},{"$f":"HYPERLINK(\"#'Monitoring & Reporting'!A1\",\"Monitoring & Reporting (Class D & E Insurers Only)\")","v":"Monitoring & Reporting (Class D & E Insurers Only)"},null,{"$f":"IF('Insurer Information'!$F$9=\"Class C\",\"N/A\",IF('Monitoring & Reporting'!M19=0,\"Schedule is Blank\", \"Schedule is Completed\"))","v":"Schedule is Blank"},null,null,null,null,null,"Blank",""]
[]
[null,"Summary"]
[{"$f":"A172+1","v":62},{"$f":"HYPERLINK(\"#'Summary'!A1\",\"Summary Tab\")","v":"Summary Tab"}]
[null,"i)",{"$f":"HYPERLINK(\"#'Summary'!B65:F69\",\"ECR Ratio Met\")","v":"ECR Ratio Met"},{"$f":"IF(Summary!N76=0,\"ECR is Blank\",IF(Summary!N110>100%,\"ECR Ratio of \"&ROUND(Summary!N110,2)*100&\"% Met\",\"ECR of \"&ROUND(Summary!N110,2)*100&\"% is not Met\"))","v":"ECR is Blank"}]
[]
[null,"Company Specific Parameters"]
[{"$f":"A175+1","v":63},{"$f":"HYPERLINK(\"#'Comp Specific Parameters'!A1\",\"Company Specific Parameters\")","v":"Company Specific Parameters"}]
[null,"i)",{"$f":"HYPERLINK(\"#'Comp Specific Parameters'!A1\",\"Capital Charge has been amended\")","v":"Capital Charge has been amended"},{"$f":"IF(Summary!N68=0,\"No\",\"Adjustment made to a BSCR Capital Charge\")","v":"No"},{"$f":"ROUND(Summary!G68,0)","v":0},{"$f":"IF(Summary!G68=0,0,(Summary!G68)/Summary!G60)","v":0}]
[]
[null,null,null,null,null,null,null,null,null,null,null,""]

{"sheet":"Index","index":6,"n_rows":66,"n_cols":40,"rows_kept":66,"cut":false,"hidden":false,"merged":[[65,25,66,30],[41,39,42,44],[47,32,48,37],[47,39,48,44],[31,39,32,44],[47,25,48,30],[59,25,60,30],[59,39,60,44],[31,25,32,30],[41,25,42,30],[34,32,35,37],[65,2,66,7],[56,25,57,30],[56,9,57,14],[62,39,63,44],[62,2,63,7],[62,9,63,14],[65,9,66,14],[59,16,60,21],[56,39,57,44],[59,9,60,14],[65,16,66,21],[62,16,63,21],[62,32,63,37],[59,32,60,37],[62,25,63,30],[59,2,60,7],[31,2,32,7],[56,16,57,21],[56,32,57,37],[34,9,35,14],[28,2,29,7],[34,2,35,7],[34,25,35,30],[31,16,32,21],[34,16,35,21],[28,16,29,21],[28,32,29,37],[41,16,42,21],[47,2,48,7],[47,9,48,14],[47,16,48,21],[50,2,51,7],[22,16,23,21],[22,32,23,37],[7,2,8,7],[7,9,8,14],[13,2,14,7],[13,9,14,14],[13,16,14,21],[7,16,8,21],[16,9,17,14],[16,16,17,21],[19,9,20,14],[16,25,17,30],[19,25,20,30],[22,2,23,7],[13,25,14,30],[22,25,23,30],[4,25,5,30],[19,39,20,44],[22,39,23,44],[31,32,32,37],[13,39,14,44],[13,32,14,37],[16,32,17,37],[16,39,17,44],[4,39,5,44],[4,32,5,37],[19,32,20,37],[28,39,29,44],[25,32,26,37],[25,39,26,44],[28,25,29,30],[25,25,26,30],[4,16,5,21],[56,2,57,7],[41,2,42,7],[41,9,42,14],[28,9,29,14],[31,9,32,14],[50,9,51,14],[4,2,5,7],[25,2,26,7],[22,9,23,14],[4,9,5,14],[25,9,26,14],[19,2,20,7],[16,2,17,7],[25,16,26,21],[19,16,20,21]]}
[null,"INDEX"]
[null,{"$f":"'Insurer Information'!C7","v":"Enter Company Name"}]
[null,"CLICK BUTTON TO NAVIGATE"]
[]
[null,null,{"$f":"HYPERLINK(\"#'Submission'!A1\",\"Submission\")","v":"Submission"},null,null,null,null,null,null,{"$f":"HYPERLINK(\"#'Insurer Information'!A1\",\"Insurer Information\")","v":"Insurer Information"},null,null,null,null,null,null,{"$f":"HYPERLINK(\"#'Content'!A1\",\"Content\")","v":"Content"},null,null,null,null,null,null,null,null,{"$f":"HYPERLINK(\"#'Attachments'!A1\",\"Attachments\")","v":"Attachments"},null,null,null,null,null,null,{"$f":"HYPERLINK(\"#'BSCR Rating'!A1\",\"BSCR Rating\")","v":"BSCR Rating"},null,null,null,null,null,null,{"$f":"HYPERLINK(\"#'Declaration'!A1\",\"Declaration\")","v":"Declaration"}]
[]
[]
[null,null,{"$f":"HYPERLINK(\"#'AML (LT Direct Only)'!A1\",\"AML (for Direct LT Writers Only)\")","v":"AML (for Direct LT Writers Only)"},null,null,null,null,null,null,{"$f":"HYPERLINK(\"#'SAR & Sanc. (All)'!A1\",\"SAR & Sanctions (All insurers)\")","v":"SAR & Sanctions (All insurers)"},null,null,null,null,null,null,{"$f":"HYPERLINK(\"#'AML Reference'!A1\",\"AML Reference\")","v":"AML Reference"}]
[]
[]
[]
[null,"BSCR SCHEDULES"]
[]
[null,null,{"$f":"HYPERLINK(\"#'Information Sheet'!A1\",\"Information Sheet\")","v":"Information Sheet"},null,null,null,null,null,null,{"$f":"HYPERLINK(\"#'Form 1SFS'!A1\",\"Form 1SFS Balance Sheet\")","v":"Form 1SFS Balance Sheet"},null,null,null,null,null,null,{"$f":"HYPERLINK(\"#'Form 2SFS'!A1\",\"Form 2SFS Income Stmt\")","v":"Form 2SFS Income Stmt"},null,null,null,null,null,null,null,null,{"$f":"HYPERLINK(\"#'Form 8SFS'!A1\",\"Form 8SFS Capital & Surplus\")","v":"Form 8SFS Capital & Surplus"},null,null,null,null,null,null,{"$f":"HYPERLINK(\"#'Form 4EBS'!A1\",\"Form 4EBS Balance Sheet\")","v":"Form 4EBS Balance Sheet"},null,null,null,null,null,null,{"$f":"HYPERLINK(\"#'Schedule II'!A1\",\"Sch II     Investments\")","v":"Sch II     Investments"}]
[]
[]
[null,null,{"$f":"HYPERLINK(\"#'Schedule II (EBS)'!A1\",\"Sch II (EBS)    Investments\")","v":"Sch II (EBS)    Investments"},null,null,null,null,null,null,{"$f":"HYPERLINK(\"#'Schedule IIA'!A1\",\"Sch IIA          Funds Held\")","v":"Sch IIA          Funds Held"},null,null,null,null,null,null,{"$f":"HYPERLINK(\"#'Schedule IIA (EBS)'!A1\",\"Sch IIA (EBS)         Funds Held\")","v":"Sch IIA (EBS)         Funds Held"},null,null,null,null,null,null,null,null,{"$f":"HYPERLINK(\"#'Investment Reconciliation'!A1\",\"Investment Reconciliation\")","v":"Investment Reconciliation"},null,null,null,null,null,null,{"$f":"HYPERLINK(\"#'Schedule IIB (EBS)'!A1\",\"Sch IIB (EBS)   Investments\")","v":"Sch IIB (EBS)   Investments"},null,null,null,null,null,null,{"$f":"HYPERLINK(\"#'Schedule IIC (EBS)'!A1\",\"Sch IIC (EBS)         Funds Held\")","v":"Sch IIC (EBS)         Funds Held"}]
[]
[]
[null,null,{"$f":"HYPERLINK(\"#'SCHEDULE IID (EBS)'!A1\",\"Sch IID (EBS) Segregated Acc\")","v":"Sch IID (EBS) Segregated Acc"},null,null,null,null,null,null,{"$f":"HYPERLINK(\"#'SCHEDULE IIE (EBS)'!A1\",\"Sch IIE (EBS) Deposits\")","v":"Sch IIE (EBS) Deposits"},null,null,null,null,null,null,{"$f":"HYPERLINK(\"#'SCHEDULE IIF (EBS)'!A1\",\"Sch IIF (EBS) Other Sundry\")","v":"Sch IIF (EBS) Other Sundry"},null,null,null,null,null,null,null,null,{"$f":"HYPERLINK(\"#'Grandfathered Equity Part'!A1\",\"Grandfathered Equity Part\")","v":"Grandfathered Equity Part"},null,null,null,null,null,null,{"$f":"HYPERLINK(\"#'Non-Grandfathered Equity Part'!A1\",\"Non-Grand fathered Equity Part\")","v":"Non-Grand fathered Equity Part"},null,null,null,null,null,null,{"$f":"HYPERLINK(\"#'SCHEDULE IVB'!A1\",\"Sch IVB \nLT Premium\")","v":"Sch IVB \nLT Premium"}]
[]
[]
[null,null,{"$f":"HYPERLINK(\"#'SCHEDULE IVB (EBS)'!A1\",\"Sch IVB (EBS)\nLT Premium\")","v":"Sch IVB (EBS)\nLT Premium"},null,null,null,null,null,null,{"$f":"HYPERLINK(\"#'SCHEDULE V'!A1\",\"Sch V \nRisk Mgmt\")","v":"Sch V \nRisk Mgmt"},null,null,null,null,null,null,{"$f":"HYPERLINK(\"#'SCHEDULE V(a)'!A1\",\"Sch V(a) Governance\")","v":"Sch V(a) Governance"},null,null,null,null,null,null,null,null,{"$f":"HYPERLINK(\"#'SCHEDULE V(c)'!A1\",\"Sch V(c) \nIntra-Group\")","v":"Sch V(c) \nIntra-Group"},null,null,null,null,null,null,{"$f":"HYPERLINK(\"#'SCHEDULE V(e)'!A1\",\"Sch V(e)\nStress Scenario\")","v":"Sch V(e)\nStress Scenario"},null,null,null,null,null,null,{"$f":"HYPERLINK(\"#'SCHEDULE V(f)'!A1\",\"Sch V(f) \nMod-Coinsurance\")","v":"Sch V(f) \nMod-Coinsurance"}]
[]
[]
[null,null,{"$f":"HYPERLINK(\"#'SCHEDULE V(g)'!A1\",\"Sch V(g) \nGAAP-BSCR Rec\")","v":"Sch V(g) \nGAAP-BSCR Rec"},null,null,null,null,null,null,{"$f":"HYPERLINK(\"#'SCHEDULE V(k)'!A1\",\"Sch V(k) \nDeposit Assets\")","v":"Sch V(k) \nDeposit Assets"},null,null,null,null,null,null,{"$f":"HYPERLINK(\"#'SCHEDULE V(l)'!A1\",\"Sch V(l) Segregated Acc\")","v":"Sch V(l) Segregated Acc"},null,null,null,null,null,null,null,null,{"$f":"HYPERLINK(\"#'SCHEDULE V(m)'!A1\",\"Sch V(m) \nAlt. Capital\")","v":"Sch V(m) \nAlt. Capital"},null,null,null,null,null,null,{"$f":"HYPERLINK(\"#'SCHEDULE VI'!A1\",\"Sch VI\nFixed Income Sec\")","v":"Sch VI\nFixed Income Sec"},null,null,null,null,null,null,{"$f":"HYPERLINK(\"#'SCHEDULE VI (EBS)'!A1\",\"Sch VI (EBS)\nFixed Income Sec\")","v":"Sch VI (EBS)\nFixed Income Sec"}]
[]
[]
[null,null,{"$f":"HYPERLINK(\"#'SCHEDULE VII'!A1\",\"Sch VII\nLT Reserves\")","v":"Sch VII\nLT Reserves"},null,null,null,null,null,null,{"$f":"HYPERLINK(\"#'SCHEDULE VII (EBS)'!A1\",\"Sch VII (EBS)\nLT Reserves\")","v":"Sch VII (EBS)\nLT Reserves"},null,null,null,null,null,null,{"$f":"HYPERLINK(\"#'SCHEDULE VIII'!A1\",\"Sch VIII \nLT Annuity\")","v":"Sch VIII \nLT Annuity"},null,null,null,null,null,null,null,null,{"$f":"HYPERLINK(\"#'SCHEDULE VIII (EBS)'!A1\",\"Sch VIII (EBS) \nLT Annuity\")","v":"Sch VIII (EBS) \nLT Annuity"},null,null,null,null,null,null,{"$f":"HYPERLINK(\"#'SCHEDULE VIIIA'!A1\",\"Sch VIIIA\nInternal Model\")","v":"Sch VIIIA\nInternal Model"},null,null,null,null,null,null,{"$f":"HYPERLINK(\"#'SCHEDULE VIIIA (EBS)'!A1\",\"Sch VIIIA (EBS)\nInternal Model\")","v":"Sch VIIIA (EBS)\nInternal Model"}]
[]
[]
[null,null,{"$f":"HYPERLINK(\"#'SCHEDULE XVI'!A1\",\"Sch XVI \nNon-Insurance\")","v":"Sch XVI \nNon-Insurance"},null,null,null,null,null,null,{"$f":"HYPERLINK(\"#'SCHEDULE XVII'!A1\",\"Sch XVII \nSolvency Analysis\")","v":"Sch XVII \nSolvency Analysis"},null,null,null,null,null,null,{"$f":"HYPERLINK(\"#'SCHEDULE XVIII'!A1\",\"Sch XVIII \nCeded Reins\")","v":"Sch XVIII \nCeded Reins"},null,null,null,null,null,null,null,null,{"$f":"HYPERLINK(\"#'SCHEDULE XVIII (EBS)'!A1\",\"Sch XVIII (EBS)\nCeded Reins\")","v":"Sch XVIII (EBS)\nCeded Reins"},null,null,null,null,null,null,{"$f":"HYPERLINK(\"#'SCHEDULE XIX'!A1\",\"Sch XIX \nCash Counterpart\")","v":"Sch XIX \nCash Counterpart"},null,null,null,null,null,null,{"$f":"HYPERLINK(\"#'SCHEDULE XXIA'!A1\",\"Sch XXIA\nCash Counterpart\")","v":"Sch XXIA\nCash Counterpart"}]
[]
[]
[null,null,{"$f":"HYPERLINK(\"#'SCHEDULE XX'!A1\",\"Sch XX \nCurrency Analysis\")","v":"Sch XX \nCurrency Analysis"},null,null,null,null,null,null,{"$f":"HYPERLINK(\"#'SCHEDULE XXA'!A1\",\"Sch XXA\nCurrency Analysis\")","v":"Sch XXA\nCurrency Analysis"},null,null,null,null,null,null,{"$f":"HYPERLINK(\"#'SCHEDULE XXI'!A1\",\"Sch XXI \nCon Risk\")","v":"Sch XXI \nCon Risk"},null,null,null,null,null,null,null,null,{"$f":"HYPERLINK(\"#'SCHEDULE XXIA'!A1\",\"Sch XXIA \nCon Risk\")","v":"Sch XXIA \nCon Risk"},null,null,null,null,null,null,{"$f":"HYPERLINK(\"#'SCHEDULE XXIII'!A1\",\"Sch XXIII \nInterest Rates\")","v":"Sch XXIII \nInterest Rates"}]
[]
[]
[]
[]
[null,"CISSA",null,null,null,null,null,null,null,null,null,null,null,null,null,null,null,null,null,null,null,null,null,null,"ELIGIBLE CAPITAL"]
[]
[null,null,{"$f":"HYPERLINK(\"#'Schedule IX(a)'!A1\",\"Sch IX(a) \nCapital Summary\")","v":"Sch IX(a) \nCapital Summary"},null,null,null,null,null,null,{"$f":"HYPERLINK(\"#'Schedule IX(b)'!A1\",\"Sch IX(b)\nGen. Questions\")","v":"Sch IX(b)\nGen. Questions"},null,null,null,null,null,null,{"$f":"HYPERLINK(\"#'Schedule IX(c)'!A1\",\"Sch IX(c)\nRisk Assessment\")","v":"Sch IX(c)\nRisk Assessment"},null,null,null,null,null,null,null,null,{"$f":"HYPERLINK(\"#'Schedule XII(a)'!A1\",\"Schedule XII(a)\")","v":"Schedule XII(a)"},null,null,null,null,null,null,null,null,null,null,null,null,null,{"$f":"HYPERLINK(\"#'Schedule XII(b)'!A1\",\"Schedule XII(b)\")","v":"Schedule XII(b)"}]
[]
[]
[]
[null,"OPERATIONAL RISK CHARGE"]
[]
[null,null,{"$f":"HYPERLINK(\"#'Corp Gov'!A1\",\"Corporate Governance\")","v":"Corporate Governance"},null,null,null,null,null,null,{"$f":"HYPERLINK(\"#'Risk Man'!A1\",\"Risk Management\")","v":"Risk Management"},null,null,null,null,null,null,{"$f":"HYPERLINK(\"#'Identification'!A1\",\"Risk Identi. (Class D/E Only)\")","v":"Risk Identi. (Class D/E Only)"},null,null,null,null,null,null,null,null,{"$f":"HYPERLINK(\"#'Measurement'!A1\",\"Risk Meas. (Class D/E Only)\")","v":"Risk Meas. (Class D/E Only)"},null,null,null,null,null,null,{"$f":"HYPERLINK(\"#'Response'!A1\",\"Risk Response (Class D/E Only)\")","v":"Risk Response (Class D/E Only)"},null,null,null,null,null,null,{"$f":"HYPERLINK(\"#'Monitoring & Reporting'!A1\",\"Risk Mon. & Rep. (Class D/E Only)\")","v":"Risk Mon. & Rep. (Class D/E Only)"}]
[]
[]
[null,null,{"$f":"HYPERLINK(\"#'Op Risk'!A1\",\"Operational Risk Charge\")","v":"Operational Risk Charge"},null,null,null,null,null,null,{"$f":"HYPERLINK(\"#'Op Risk (Revised)'!A1\",\"Operational Risk Charge (Revised)\")","v":"Operational Risk Charge (Revised)"}]
[]
[]
[]
[null,"BSCR MODEL"]
[]
[null,null,{"$f":"HYPERLINK(\"#'Summary'!A1\",\"Summary\")","v":"Summary"},null,null,null,null,null,null,{"$f":"HYPERLINK(\"#'Fixed Income Investments'!A1\",\"Fixed Income Investments\")","v":"Fixed Income Investments"},null,null,null,null,null,null,{"$f":"HYPERLINK(\"#'Fixed Income Investments (Rev.)'!A1\",\"Fixed Income Inv. (Revised)\")","v":"Fixed Income Inv. (Revised)"},null,null,null,null,null,null,null,null,{"$f":"HYPERLINK(\"#'Equity Investments'!A1\",\"Equity Investments\")","v":"Equity Investments"},null,null,null,null,null,null,{"$f":"HYPERLINK(\"#'Equity Investments (Revised)'!A1\",\"Equity Inv. (Revised)\")","v":"Equity Inv. (Revised)"},null,null,null,null,null,null,{"$f":"HYPERLINK(\"#'Equity Grandfathering'!A1\",\"Equity Grandfathering\")","v":"Equity Grandfathering"}]
[]
[]
[null,null,{"$f":"HYPERLINK(\"#'Equity Investments (Grandf)'!A1\",\"Equity Inv. (Grandf)\")","v":"Equity Inv. (Grandf)"},null,null,null,null,null,null,{"$f":"HYPERLINK(\"#'Equity Investments (Non-Grandf)'!A1\",\"Equity Inv. \n(Non-Grandf)\")","v":"Equity Inv. \n(Non-Grandf)"},null,null,null,null,null,null,{"$f":"HYPERLINK(\"#'Interest Rate-Liquidity Risk'!A1\",\"Interest and Liquidity Risk\")","v":"Interest and Liquidity Risk"},null,null,null,null,null,null,null,null,{"$f":"HYPERLINK(\"#'Interest Rate-Liquidity (Rev.)'!A1\",\"Interest-Liquidity Risk (Revised)\")","v":"Interest-Liquidity Risk (Revised)"},null,null,null,null,null,null,{"$f":"HYPERLINK(\"#'Currency Risk'!A1\",\"Currency Risk\")","v":"Currency Risk"},null,null,null,null,null,null,{"$f":"HYPERLINK(\"#'Currency Risk (Revised)'!A1\",\"Currency Risk (Revised)\")","v":"Currency Risk (Revised)"}]
[]
[]
[null,null,{"$f":"HYPERLINK(\"#'Concentration Risk'!A1\",\"Concentration Risk\")","v":"Concentration Risk"},null,null,null,null,null,null,{"$f":"HYPERLINK(\"#'Concentration Risk (Revised)'!A1\",\"Concentration Risk (Revised)\")","v":"Concentration Risk (Revised)"},null,null,null,null,null,null,{"$f":"HYPERLINK(\"#'Credit Risk'!A1\",\"Credit Risk\")","v":"Credit Risk"},null,null,null,null,null,null,null,null,{"$f":"HYPERLINK(\"#'Credit Risk (Revised)'!A1\",\"Credit Risk (Revised)\")","v":"Credit Risk (Revised)"},null,null,null,null,null,null,{"$f":"HYPERLINK(\"#'LT Insurance Risk'!A1\",\"LT Insurance Risk\")","v":"LT Insurance Risk"},null,null,null,null,null,null,{"$f":"HYPERLINK(\"#'LT Other Insurance Risk'!A1\",\"LT Other Insurance Risk\")","v":"LT Other Insurance Risk"}]
[]
[]
[null,null,{"$f":"HYPERLINK(\"#'LT Variable Annuity Gte Risk'!A1\",\"LT Variable Annuity Gte Risk\")","v":"LT Variable Annuity Gte Risk"},null,null,null,null,null,null,{"$f":"HYPERLINK(\"#'Company Specific Parameters'!A1\",\"Company Specific Parameters\")","v":"Company Specific Parameters"},null,null,null,null,null,null,{"$f":"HYPERLINK(\"#'CSP (Revised)'!A1\",\"CSP (Revised)\")","v":"CSP (Revised)"},null,null,null,null,null,null,null,null,{"$f":"HYPERLINK(\"#'Correlation Matrix'!A1\",\"Correlation Matrix\")","v":"Correlation Matrix"}]

{"sheet":"Import","index":7,"n_rows":9880,"n_cols":17,"rows_kept":9880,"cut":false,"hidden":false,"merged":[[0,4,0,6],[0,8,0,10],[0,12,0,14]]}
[null,null,null,null,"Unconsolidated",null,null,null,"Consolidated",null,null,null,"EBS"]
["Sheet Name","Sheet Short Description","Field Code","Field Description",{"$f":"YEAR('Insurer Information'!$C$3)","v":2019},null,{"$f":"E2-1","v":2018},null,{"$f":"YEAR('Insurer Information'!$C$3)","v":2019},null,{"$f":"I2-1","v":2018},null,{"$f":"YEAR('Insurer Information'!$C$3)","v":2019},null,{"$f":"M2-1","v":2018}]
["Declaration",null,null,"Director 1",0]
["Declaration",null,null,"Date","00:00:00"]
["Declaration",null,null,"Director 2",0]
["Declaration",null,null,"Date","00:00:00"]
["Declaration",null,null,"Other Signatory",0]
["Declaration",null,null,"Date","00:00:00"]
[]
["Info Sheet",null,null,"(d) Statements Held at Registered Office","Select Yes/No"]
["Info Sheet",null,null,"(e) Filing Period - Period Start Date","00:00:00"]
["Info Sheet",null,null,"(g) Figures Translated at:",0]
["Info Sheet",null,null,"(h) Ultimate Parent",0]
["Info Sheet",null,null,"(i) Insurer's Parent Company",0]
["Info Sheet",null,null,"(j) Industry Sector of Insurer's Parent","Select from Drop-Down"]
["Info Sheet",null,null,"(k) Insurer's Ownership Structure","Select from Drop-Down"]
["Info Sheet",null,null,"(l) Insurer's Company Structure","Select from Drop-Down"]
["Info Sheet",null,null,"(l).1 Confirm if Company writes LT Insurance","Select Yes/No"]
["Info Sheet",null,null,"(l).2 LT Insurance written during the period","Select Yes/No"]
["Info Sheet",null,null,"(l).3 Subsidiares wrote Long-Term insurance","Select Yes/No"]
["Info Sheet",null,null,"(l).4 Subsidiares wrote LT Ins. Outside of BDA","Select Yes/No"]
["Info Sheet",null,null,"(l).5 Subsidiares Ins. Outside of BDA jurisdiction 1",0]
["Info Sheet",null,null,"(l).5 Subsidiares Ins. Outside of BDA jurisdiction 2",0]
["Info Sheet",null,null,"(l).5 Subsidiares Ins. Outside of BDA jurisdiction 3",0]
["Info Sheet",null,null,"(m)(i) Is the Insurer a Member of Ins. Group?","Select Yes/No"]
["Info Sheet",null,null,"(m)(ii) Are there Segregated Accounts?","Select Yes/No"]
["Info Sheet",null,null,"(m)(iii) IS the Insurer in Run-Off?","Select Yes/No"]
["Info Sheet",null,null,"(m)(iv) Statements have a Qualified Opinion?","Select Yes/No"]
["Info Sheet",null,null,"(m)(iv) Details of Qualified Opinion",0]
["Info Sheet",null,null,"(m)(v) Minimum Solvency Margin Met","Select Yes/No"]
["Info Sheet",null,null,"(n)(1) Certificate of Registration Date",""]
["Info Sheet",null,null,"(n)(2) # of Conditions",0]
["Info Sheet",null,null,"Effective Start Date of Condition - 1","00:00:00"]
["Info Sheet",null,null,"Effective Start Date of Condition - 2","00:00:00"]
["Info Sheet",null,null,"Effective Start Date of Condition - 3","00:00:00"]
["Info Sheet",null,null,"Effective Start Date of Condition - 4","00:00:00"]
["Info Sheet",null,null,"Effective Start Date of Condition - 5","00:00:00"]
["Info Sheet",null,null,"Effective Start Date of Condition - 6","00:00:00"]
["Info Sheet",null,null,"Effective Start Date of Condition - 7","00:00:00"]
["Info Sheet",null,null,"Effective Start Date of Condition - 8","00:00:00"]
["Info Sheet",null,null,"Effective Start Date of Condition - 9","00:00:00"]
["Info Sheet",null,null,"Effective Start Date of Condition - 10","00:00:00"]
["Info Sheet",null,null,"Effective End Date of Condition - 1","00:00:00"]
["Info Sheet",null,null,"Effective End Date of Condition - 2","00:00:00"]
["Info Sheet",null,null,"Effective End Date of Condition - 3","00:00:00"]
["Info Sheet",null,null,"Effective End Date of Condition - 4","00:00:00"]
["Info Sheet",null,null,"Effective End Date of Condition - 5","00:00:00"]
["Info Sheet",null,null,"Effective End Date of Condition - 6","00:00:00"]
["Info Sheet",null,null,"Effective End Date of Condition - 7","00:00:00"]
["Info Sheet",null,null,"Effective End Date of Condition - 8","00:00:00"]
["Info Sheet",null,null,"Effective End Date of Condition - 9","00:00:00"]
["Info Sheet",null,null,"Effective End Date of Condition - 10","00:00:00"]
["Info Sheet",null,null,"Description of Condition - 1",0]
["Info Sheet",null,null,"Description of Condition - 2",0]
["Info Sheet",null,null,"Description of Condition - 3",0]
["Info Sheet",null,null,"Description of Condition - 4",0]
["Info Sheet",null,null,"Description of Condition - 5",0]
["Info Sheet",null,null,"Description of Condition - 6",0]
["Info Sheet",null,null,"Description of Condition - 7",0]
["Info Sheet",null,null,"Description of Condition - 8",0]
["Info Sheet",null,null,"Description of Condition - 9",0]
["Info Sheet",null,null,"Description of Condition - 10",0]
["Info Sheet",null,null,"Insurer Complied with All Conditions?","Select Yes/No"]
["Info Sheet",null,null,"(p) # of Directions",0]
["Info Sheet",null,null,"Effective Start Date of Direction - 1","00:00:00"]
["Info Sheet",null,null,"Effective Start Date of Direction - 2","00:00:00"]
["Info Sheet",null,null,"Effective Start Date of Direction - 3","00:00:00"]
["Info Sheet",null,null,"Effective Start Date of Direction - 4","00:00:00"]
["Info Sheet",null,null,"Effective Start Date of Direction - 5","00:00:00"]
["Info Sheet",null,null,"Effective Start Date of Direction - 6","00:00:00"]
["Info Sheet",null,null,"Effective Start Date of Direction - 7","00:00:00"]
["Info Sheet",null,null,"Effective Start Date of Direction - 8","00:00:00"]
["Info Sheet",null,null,"Effective Start Date of Direction - 9","00:00:00"]
["Info Sheet",null,null,"Effective Start Date of Direction - 10","00:00:00"]
["Info Sheet",null,null,"Effective End Date of Direction - 1","00:00:00"]
["Info Sheet",null,null,"Effective End Date of Direction - 2","00:00:00"]
["Info Sheet",null,null,"Effective End Date of Direction - 3","00:00:00"]
["Info Sheet",null,null,"Effective End Date of Direction - 4","00:00:00"]
["Info Sheet",null,null,"Effective End Date of Direction - 5","00:00:00"]
["Info Sheet",null,null,"Effective End Date of Direction - 6","00:00:00"]
["Info Sheet",null,null,"Effective End Date of Direction - 7","00:00:00"]
["Info Sheet",null,null,"Effective End Date of Direction - 8","00:00:00"]
["Info Sheet",null,null,"Effective End Date of Direction - 9","00:00:00"]
["Info Sheet",null,null,"Effective End Date of Direction - 10","00:00:00"]
["Info Sheet",null,null,"Description of Direction - 1",0]
["Info Sheet",null,null,"Description of Direction - 2",0]
["Info Sheet",null,null,"Description of Direction - 3",0]
["Info Sheet",null,null,"Description of Direction - 4",0]
["Info Sheet",null,null,"Description of Direction - 5",0]
["Info Sheet",null,null,"Description of Direction - 6",0]
["Info Sheet",null,null,"Description of Direction - 7",0]
["Info Sheet",null,null,"Description of Direction - 8",0]
["Info Sheet",null,null,"Description of Direction - 9",0]
["Info Sheet",null,null,"Description of Direction - 10",0]
["Info Sheet",null,null,"(q) Confirm If Any Negative Responses?","Select Yes/No"]
["Info Sheet",null,null,"Details of Negative Responses",0]
[]
[null,null,null,"Balance Sheet"]
["Form 1SFS/1EBS","Balance Sheet LT/CON/EBS","1SFS1","Cash and Cash Equivalents",0,null,0,null,0,null,0,null,0,null,0]
["Form 1SFS/1EBS","Balance Sheet LT/CON/EBS","1SFS2ai","Quoted - Bonds - Held to Maturity",0,null,0,null,0,null,0]
["Form 1SFS/1EBS","Balance Sheet LT/CON/EBS","1SFS2aii","Quoted - Bonds - Other",0,null,0,null,0,null,0]
["Form 1SFS/1EBS","Balance Sheet LT/CON/EBS","1EBS2b","Quoted - Bonds - Total",null,null,null,null,null,null,null,null,0,null,0]
["Form 1SFS/1EBS","Balance Sheet LT/CON/EBS","1SFS2ci","Quoted - Equities - Common Stocks",0,null,0,null,0,null,0,null,0,null,0]
["Form 1SFS/1EBS","Balance Sheet LT/CON/EBS","1SFS2cii","Quoted - Equities - Preferred Stocks",0,null,0,null,0,null,0,null,0,null,0]
["Form 1SFS/1EBS","Balance Sheet LT/CON/EBS","1SFS2ciii","Quoted - Equities - Mutual Funds",0,null,0,null,0,null,0,null,0,null,0]
["Form 1SFS/1EBS","Balance Sheet LT/CON/EBS","1SFS2e","Quoted - Other Investments",0,null,0,null,0,null,0,null,0,null,0]
["Form 1SFS/1EBS","Balance Sheet LT/CON/EBS","1SFS3ai","Unquoted - Bonds - Held to Maturity",0,null,0,null,0,null,0]
["Form 1SFS/1EBS","Balance Sheet LT/CON/EBS","1SFS3aii","Unquoted - Bonds - Other",0,null,0,null,0,null,0]
["Form 1SFS/1EBS","Balance Sheet LT/CON/EBS","1EBS3b","Unquoted - Bonds - Total",null,null,null,null,null,null,null,null,0,null,0]
["Form 1SFS/1EBS","Balance Sheet LT/CON/EBS","1SFS3ci","Unquoted - Equities - Common Stocks",0,null,0,null,0,null,0,null,0,null,0]
["Form 1SFS/1EBS","Balance Sheet LT/CON/EBS","1SFS3cii","Unquoted - Equities - Preferred Stocks",0,null,0,null,0,null,0,null,0,null,0]
["Form 1SFS/1EBS","Balance Sheet LT/CON/EBS","1SFS3ciii","Unquoted - Equities - Mutual Funds",0,null,0,null,0,null,0,null,0,null,0]
["Form 1SFS/1EBS","Balance Sheet LT/CON/EBS","1SFS3e","Unquoted - Other Investments",0,null,0,null,0,null,0,null,0,null,0]
["Form 1SFS/1EBS","Balance Sheet LT/CON/EBS","1SFS4a","Inv. In Affiliates - Unregulated Ancillary",0,null,0,null,0,null,0,null,0,null,0]
["Form 1SFS/1EBS","Balance Sheet LT/CON/EBS","1SFS4b","Inv. In Affiliates - Unregulated Non-Fin. Oper.",0,null,0,null,0,null,0,null,0,null,0]
["Form 1SFS/1EBS","Balance Sheet LT/CON/EBS","1SFS4c","Inv. In Affiliates - Unregulated Fin. Operating",0,null,0,null,0,null,0,null,0,null,0]
["Form 1SFS/1EBS","Balance Sheet LT/CON/EBS","1SFS4d","Inv. In Affiliates - Regulated Non-Insurance",0,null,0,null,0,null,0,null,0,null,0]
["Form 1SFS/1EBS","Balance Sheet LT/CON/EBS","1SFS4e","Inv. In Affiliates - Regulated Insurance",0,null,0,null,0,null,0,null,0,null,0]
["Form 1SFS/1EBS","Balance Sheet LT/CON/EBS","1SFS4g","Advances To Affiliates",0,null,0,null,0,null,0,null,0,null,0]
["Form 1SFS/1EBS","Balance Sheet LT/CON/EBS","1SFS5a","Inv. In Mortg. Loans on Real Estate - 1st Lien",0,null,0,null,0,null,0,null,0,null,0]
["Form 1SFS/1EBS","Balance Sheet LT/CON/EBS","1SFS5b","Inv. In Mortg. Loans on Real Estate - Other",0,null,0,null,0,null,0,null,0,null,0]
["Form 1SFS/1EBS","Balance Sheet LT/CON/EBS","1SFS6","Policy Loans",0,null,0,null,0,null,0,null,0,null,0]
["Form 1SFS/1EBS","Balance Sheet LT/CON/EBS","1SFS7a","Real Estate - Occupied by Company",0,null,0,null,0,null,0,null,0,null,0]
["Form 1SFS/1EBS","Balance Sheet LT/CON/EBS","1SFS7b","Real Estate - Other",0,null,0,null,0,null,0,null,0,null,0]
["Form 1SFS/1EBS","Balance Sheet LT/CON/EBS","1SFS8","Collateral Loans",0,null,0,null,0,null,0,null,0,null,0]
["Form 1SFS/1EBS","Balance Sheet LT/CON/EBS","1SFS9","Investment Income Due and Accrued",0,null,0,null,0,null,0,null,0,null,0]
["Form 1SFS/1EBS","Balance Sheet LT/CON/EBS","1SFS10a","Accounts & Premium Rec. - In Collection",0,null,0,null,0,null,0,null,0,null,0]
["Form 1SFS/1EBS","Balance Sheet LT/CON/EBS","1SFS10b","Accounts & Premium Rec. - Not Yet Due ",0,null,0,null,0,null,0]
["Form 1SFS/1EBS","Balance Sheet LT/CON/EBS","1SFS10c","Accounts & Premium Rec. - Retro. Contracts",0,null,0,null,0,null,0,null,0,null,0]
["Form 1SFS/1EBS","Balance Sheet LT/CON/EBS","1SFS11a","R/I Balances Receivable - Foreign Affiliates",0,null,0,null,0,null,0,null,0,null,0]
["Form 1SFS/1EBS","Balance Sheet LT/CON/EBS","1SFS11b","R/I Balances Receivable - Domestic Affiliates",0,null,0,null,0,null,0,null,0,null,0]
["Form 1SFS/1EBS","Balance Sheet LT/CON/EBS","1SFS11c","R/I Balances Receivable - Pools & Assoc.",0,null,0,null,0,null,0,null,0,null,0]
["Form 1SFS/1EBS","Balance Sheet LT/CON/EBS","1SFS11d","R/I Balances Receivable - All Other",0,null,0,null,0,null,0,null,0,null,0]
["Form 1SFS/1EBS","Balance Sheet LT/CON/EBS","1EBS12a","Funds Held by Ceding Companies - Affiliates",null,null,null,null,null,null,null,null,0,null,0]
["Form 1SFS/1EBS","Balance Sheet LT/CON/EBS","1EBS12b","Funds Held by Ceding Companies - Non-Aff.",null,null,null,null,null,null,null,null,0,null,0]
["Form 1SFS/1EBS","Balance Sheet LT/CON/EBS","1SFS12","Funds Held by Ceding Companies ",0,null,0,null,0,null,0]
["Form 1SFS/1EBS","Balance Sheet LT/CON/EBS","1SFS13a","Sundry Assets - Derivatives",0,null,0,null,0,null,0,null,0,null,0]
["Form 1SFS/1EBS","Balance Sheet LT/CON/EBS","1SFS13b","Sundry Assets - SAC - LT- Variable Annuities",0,null,0,null,0,null,0,null,0,null,0]
["Form 1SFS/1EBS","Balance Sheet LT/CON/EBS","1SFS13c","Sundry Assets - SAC - LT- Others",0,null,0,null,0,null,0,null,0,null,0]
["Form 1SFS/1EBS","Balance Sheet LT/CON/EBS","1SFS13d","Sundry Assets - SAC - General Business",null,null,null,null,0,null,0]
["Form 1SFS/1EBS","Balance Sheet LT/CON/EBS","1SFS13e","Sundry Assets - Deposit Assets",0,null,0,null,0,null,0,null,0,null,0]
["Form 1SFS/1EBS","Balance Sheet LT/CON/EBS","1SFS13f","Sundry Assets - Deferred Acquisition Costs",0,null,0,null,0,null,0]
["Form 1SFS/1EBS","Balance Sheet LT/CON/EBS","1SFS13g","Sundry Assets - Net Rec. for Investments",0,null,0,null,0,null,0,null,0,null,0]
["Form 1SFS/1EBS","Balance Sheet LT/CON/EBS","1EBS13g","Sundry Assets - Intangible Assets",null,null,null,null,null,null,null,null,0,null,0]
["Form 1SFS/1EBS","Balance Sheet LT/CON/EBS","1EBS13h","Sundry Assets - Deferred Tax Assets",null,null,null,null,null,null,null,null,0,null,0]
["Form 1SFS/1EBS","Balance Sheet LT/CON/EBS","1EBS13i","Sundry Assets - Pension Benefit Surplus",null,null,null,null,null,null,null,null,0,null,0]
["Form 1SFS/1EBS","Balance Sheet LT/CON/EBS","1SFS13h","Sundry Assets - Other 1",0,null,0,null,0,null,0,null,0,null,0]
["Form 1SFS/1EBS","Balance Sheet LT/CON/EBS","1SFS13i","Sundry Assets - Other 2",0,null,0,null,0,null,0]
["Form 1SFS/1EBS","Balance Sheet LT/CON/EBS","1SFS13j","Sundry Assets - Other 3",0,null,0,null,0,null,0]
["Form 1SFS/1EBS","Balance Sheet LT/CON/EBS","1SFS14a","Letters of Credit",0,null,0,null,0,null,0,null,0,null,0]
["Form 1SFS/1EBS","Balance Sheet LT/CON/EBS","1SFS14b","Guarantees",0,null,0,null,0,null,0,null,0,null,0]
["Form 1SFS/1EBS","Balance Sheet LT/CON/EBS","1SFS14c","Other Instruments",0,null,0,null,0,null,0,null,0,null,0]
["Form 1SFS/1EBS","Balance Sheet LT/CON/EBS","1SFS15","Total Assets",0,null,0]
["Form 1SFS/1EBS","Balance Sheet LT/CON/EBS","1SFS16a","Unearned Premium Reserve - Gross",null,null,null,null,0,null,0]
["Form 1SFS/1EBS","Balance Sheet LT/CON/EBS","1SFS16bi","UPR - Ceded - Foreign Affiliates",null,null,null,null,0,null,0]
["Form 1SFS/1EBS","Balance Sheet LT/CON/EBS","1SFS16bii","UPR - Ceded - Domestic Affiliates",null,null,null,null,0,null,0]
["Form 1SFS/1EBS","Balance Sheet LT/CON/EBS","1SFS16biii","UPR - Ceded - Pools & Assoc.",null,null,null,null,0,null,0]
["Form 1SFS/1EBS","Balance Sheet LT/CON/EBS","1SFS16biv","UPR - Ceded - All Other",null,null,null,null,0,null,0]
["Form 1SFS/1EBS","Balance Sheet LT/CON/EBS","1SFS17a","Loss Provision - Gross",null,null,null,null,0,null,0]
["Form 1SFS/1EBS","Balance Sheet LT/CON/EBS","1SFS17bi","R/I Recoverable - Foreign Affiliates",null,null,null,null,0,null,0]
["Form 1SFS/1EBS","Balance Sheet LT/CON/EBS","1SFS17bii","R/I Recoverable - Domestic Affiliates",null,null,null,null,0,null,0]
["Form 1SFS/1EBS","Balance Sheet LT/CON/EBS","1SFS17biii","R/I Recoverable - Pools & Assoc.",null,null,null,null,0,null,0]
["Form 1SFS/1EBS","Balance Sheet LT/CON/EBS","1SFS17biv","R/I Recoverable - All Other",null,null,null,null,0,null,0]
["Form 1SFS/1EBS","Balance Sheet LT/CON/EBS","1SFS18","Risk Margin",null,null,null,null,0,null,0]
["Form 1SFS/1EBS","Balance Sheet LT/CON/EBS","1SFS20","Net - Reserves for Reported Claims",0,null,0,null,0,null,0,null,0,null,0]
["Form 1SFS/1EBS","Balance Sheet LT/CON/EBS","1SFS21","Net - Reserves for Unreported Claims",0,null,0,null,0,null,0,null,0,null,0]
["Form 1SFS/1EBS","Balance Sheet LT/CON/EBS","1SFS22","Net - Policy Reserves - Life",0,null,0,null,0,null,0,null,0,null,0]
["Form 1SFS/1EBS","Balance Sheet LT/CON/EBS","1SFS23","Net - Policy Reserves - Accident & Health",0,null,0,null,0,null,0,null,0,null,0]
["Form 1SFS/1EBS","Balance Sheet LT/CON/EBS","1SFS24","Net - Policyholder's Funds on Deposit",0,null,0,null,0,null,0,null,0,null,0]
["Form 1SFS/1EBS","Balance Sheet LT/CON/EBS","1SFS25","Net - Liability for Future Policyholder Dividends",0,null,0,null,0,null,0,null,0,null,0]
["Form 1SFS/1EBS","Balance Sheet LT/CON/EBS","1SFS26","Net - Other LT Insurance Reserves",0,null,0,null,0,null,0,null,0,null,0]
["Form 1SFS/1EBS","Balance Sheet LT/CON/EBS","1SFS27bi","R/I Recoverable - Foreign Affiliates",0,null,0,null,0,null,0,null,0,null,0]
["Form 1SFS/1EBS","Balance Sheet LT/CON/EBS","1SFS27bii","R/I Recoverable - Domestic Affiliates",0,null,0,null,0,null,0,null,0,null,0]
["Form 1SFS/1EBS","Balance Sheet LT/CON/EBS","1SFS27biii","R/I Recoverable - Pools & Assoc.",0,null,0,null,0,null,0,null,0,null,0]
["Form 1SFS/1EBS","Balance Sheet LT/CON/EBS","1SFS27biv","R/I Recoverable - All Other",0,null,0,null,0,null,0,null,0,null,0]
["Form 1SFS/1EBS","Balance Sheet LT/CON/EBS","1EBS27A","Risk Margin",null,null,null,null,null,null,null,null,0,null,0]
["Form 1SFS/1EBS","Balance Sheet LT/CON/EBS","1EBS27Ba","Gross Provision - Tech. Prov. Calc. on Whole",null,null,null,null,null,null,null,null,0,null,0]
["Form 1SFS/1EBS","Balance Sheet LT/CON/EBS","1EBS27Bbi","R/I Recoverable - Foreign Affiliates",null,null,null,null,null,null,null,null,0,null,0]
["Form 1SFS/1EBS","Balance Sheet LT/CON/EBS","1EBS27Bbii","R/I Recoverable - Domestic Affiliates",null,null,null,null,null,null,null,null,0,null,0]
["Form 1SFS/1EBS","Balance Sheet LT/CON/EBS","1EBS27Bbiii","R/I Recoverable - Pools & Assoc.",null,null,null,null,null,null,null,null,0,null,0]
["Form 1SFS/1EBS","Balance Sheet LT/CON/EBS","1EBS27Bbiv","R/I Recoverable - All Other",null,null,null,null,null,null,null,null,0,null,0]
["Form 1SFS/1EBS","Balance Sheet LT/CON/EBS","1SFS28","Insurance & R/I Balances Payable",0,null,0,null,0,null,0,null,0,null,0]
["Form 1SFS/1EBS","Balance Sheet LT/CON/EBS","1SFS29","Commissions, Expenses and Taxes Payable",0,null,0,null,0,null,0,null,0,null,0]
["Form 1SFS/1EBS","Balance Sheet LT/CON/EBS","1SFS30","Loans and Notes Payable",0,null,0,null,0,null,0,null,0,null,0]
["Form 1SFS/1EBS","Balance Sheet LT/CON/EBS","1SFS31a","Income Taxes Payable",0,null,0,null,0,null,0,null,0,null,0]
["Form 1SFS/1EBS","Balance Sheet LT/CON/EBS","1SFS31b","Deferred Taxes Payable",0,null,0,null,0,null,0,null,0,null,0]
["Form 1SFS/1EBS","Balance Sheet LT/CON/EBS","1SFS32","Amounts Due to Affiliates",0,null,0,null,0,null,0,null,0,null,0]
["Form 1SFS/1EBS","Balance Sheet LT/CON/EBS","1SFS33","Accounts Payable and Accrued Liabilities",0,null,0,null,0,null,0,null,0,null,0]
["Form 1SFS/1EBS","Balance Sheet LT/CON/EBS","1EBS34a","Funds Held under R/I Contracts - Affiliates",null,null,null,null,null,null,null,null,0,null,0]
["Form 1SFS/1EBS","Balance Sheet LT/CON/EBS","1EBS34b","Funds Held under R/I Contracts - Non-Aff.",null,null,null,null,null,null,null,null,0,null,0]
["Form 1SFS/1EBS","Balance Sheet LT/CON/EBS","1SFS34","Funds Held under R/I Contracts",0,null,0,null,0,null,0,null,0,null,0]
["Form 1SFS/1EBS","Balance Sheet LT/CON/EBS","1SFS35","Dividends Payable",0,null,0,null,0,null,0]
["Form 1SFS/1EBS","Balance Sheet LT/CON/EBS","1SFS36a","Sundry Liabilities - Derivative Instruments",0,null,0,null,0,null,0,null,0,null,0]
["Form 1SFS/1EBS","Balance Sheet LT/CON/EBS","1EBS36b","Sundry Liabilities - Der. Instr. - Non-Hedge Purp.",null,null,null,null,null,null,null,null,0,null,0]
["Form 1SFS/1EBS","Balance Sheet LT/CON/EBS","1SFS36b","Sundry Liabilities - Segregated Accounts",0,null,0,null,0,null,0,null,0,null,0]
["Form 1SFS/1EBS","Balance Sheet LT/CON/EBS","1EBS36d","Sundry Liabilities - SAC - LT - Other",null,null,null,null,null,null,null,null,0,null,0]
["Form 1SFS/1EBS","Balance Sheet LT/CON/EBS","1SFS36c","Sundry Liabilities - Deposit Liabilities",0,null,0,null,0,null,0,null,0,null,0]
["Form 1SFS/1EBS","Balance Sheet LT/CON/EBS","1EBS36g","Sundry Liabilities - Pension Benefit Oblig.",null,null,null,null,null,null,null,null,0,null,0]
["Form 1SFS/1EBS","Balance Sheet LT/CON/EBS","1SFS36h","Sundry Liabilities - Investments Purchased",0,null,0,null,0,null,0,null,0,null,0]
["Form 1SFS/1EBS","Balance Sheet LT/CON/EBS","1SFS36e","Sundry Liabilities - Other 1",0,null,0,null,0,null,0,null,0,null,0]
["Form 1SFS/1EBS","Balance Sheet LT/CON/EBS","1SFS36f","Sundry Liabilities - Other 2",0,null,0,null,0,null,0]
["Form 1SFS/1EBS","Balance Sheet LT/CON/EBS","1SFS36g","Sundry Liabilities - Other 3",0,null,0,null,0,null,0]
["Form 1SFS/1EBS","Balance Sheet LT/CON/EBS","1SFS37a","Letters of Credit",0,null,0,null,0,null,0,null,0,null,0]
["Form 1SFS/1EBS","Balance Sheet LT/CON/EBS","1SFS37b","Guarantees",0,null,0,null,0,null,0,null,0,null,0]
["Form 1SFS/1EBS","Balance Sheet LT/CON/EBS","1SFS37c","Other Instruments",0,null,0,null,0,null,0,null,0,null,0]
["Form 1SFS/1EBS","Balance Sheet LT/CON/EBS","1EBS40","Economic Capital & Surplus",null,null,null,null,null,null,null,null,0,null,0]
[]
["Form 1SFS","Balance Sheet GEN","1SFS1","Cash and Cash Equivalents",0,null,0]
["Form 1SFS","Balance Sheet GEN","1SFS2ai","Quoted - Bonds - Held to Maturity",0,null,0]
["Form 1SFS","Balance Sheet GEN","1SFS2aii","Quoted - Bonds - Other",0,null,0]
["Form 1SFS","Balance Sheet GEN","1SFS2ci","Quoted - Equities - Common Stocks",0,null,0]
["Form 1SFS","Balance Sheet GEN","1SFS2cii","Quoted - Equities - Preferred Stocks",0,null,0]
["Form 1SFS","Balance Sheet GEN","1SFS2ciii","Quoted - Equities - Mutual Funds",0,null,0]
["Form 1SFS","Balance Sheet GEN","1SFS2e","Quoted - Other Investments",0,null,0]
["Form 1SFS","Balance Sheet GEN","1SFS3ai","Unquoted - Bonds - Held to Maturity",0,null,0]
["Form 1SFS","Balance Sheet GEN","1SFS3aii","Unquoted - Bonds - Other",0,null,0]
["Form 1SFS","Balance Sheet GEN","1SFS3ci","Unquoted - Equities - Common Stocks",0,null,0]
["Form 1SFS","Balance Sheet GEN","1SFS3cii","Unquoted - Equities - Preferred Stocks",0,null,0]
["Form 1SFS","Balance Sheet GEN","1SFS3ciii","Unquoted - Equities - Mutual Funds",0,null,0]
["Form 1SFS","Balance Sheet GEN","1SFS3e","Unquoted - Other Investments",0,null,0]
["Form 1SFS","Balance Sheet GEN","1SFS4a","Inv. In Affiliates - Unregulated Ancillary",0,null,0]
["Form 1SFS","Balance Sheet GEN","1SFS4b","Inv. In Affiliates - Unregulated Non-Fin. Oper.",0,null,0]
["Form 1SFS","Balance Sheet GEN","1SFS4c","Inv. In Affiliates - Unregulated Fin. Operating",0,null,0]
["Form 1SFS","Balance Sheet GEN","1SFS4d","Inv. In Affiliates - Regulated Non-Insurance",0,null,0]
["Form 1SFS","Balance Sheet GEN","1SFS4e","Inv. In Affiliates - Regulated Insurance",0,null,0]
["Form 1SFS","Balance Sheet GEN","1SFS4g","Advances To Affiliates",0,null,0]
["Form 1SFS","Balance Sheet GEN","1SFS5a","Inv. In Mortg. Loans on Real Estate - 1st Lien",0,null,0]
["Form 1SFS","Balance Sheet GEN","1SFS5b","Inv. In Mortg. Loans on Real Estate - Other",0,null,0]
["Form 1SFS","Balance Sheet GEN","1SFS7a","Real Estate - Occupied by Company",0,null,0]
["Form 1SFS","Balance Sheet GEN","1SFS7b","Real Estate - Other",0,null,0]
["Form 1SFS","Balance Sheet GEN","1SFS8","Collateral Loans",0,null,0]
["Form 1SFS","Balance Sheet GEN","1SFS9","Investment Income Due and Accrued",0,null,0]
["Form 1SFS","Balance Sheet GEN","1SFS10a","Accounts & Premium Rec. - In Collection",0,null,0]
["Form 1SFS","Balance Sheet GEN","1SFS10b","Accounts & Premium Rec. - Not Yet Due ",0,null,0]
["Form 1SFS","Balance Sheet GEN","1SFS10c","Accounts & Premium Rec. - Retro. Contracts",0,null,0]
["Form 1SFS","Balance Sheet GEN","1SFS11a","R/I Balances Receivable - Foreign Affiliates",0,null,0]
["Form 1SFS","Balance Sheet GEN","1SFS11b","R/I Balances Receivable - Domestic Affiliates",0,null,0]
["Form 1SFS","Balance Sheet GEN","1SFS11c","R/I Balances Receivable - Pools & Assoc.",0,null,0]
["Form 1SFS","Balance Sheet GEN","1SFS11d","R/I Balances Receivable - All Other",0,null,0]
["Form 1SFS","Balance Sheet GEN","1SFS12","Funds Held by Ceding Companies ",0,null,0]
["Form 1SFS","Balance Sheet GEN","1SFS13a","Sundry Assets - Derivatives",0,null,0]
["Form 1SFS","Balance Sheet GEN","1SFS13d","Sundry Assets - SAC - General Business",0,null,0]
["Form 1SFS","Balance Sheet GEN","1SFS13e","Sundry Assets - Deposit Assets",0,null,0]
["Form 1SFS","Balance Sheet GEN","1SFS13f","Sundry Assets - Deferred Acquisition Costs",0,null,0]
["Form 1SFS","Balance Sheet GEN","1SFS36d","Sundry Assets - Net Rec. for Investments",0,null,0]
["Form 1SFS","Balance Sheet GEN","1SFS13h","Sundry Assets - Other 1",0,null,0]
["Form 1SFS","Balance Sheet GEN","1SFS13i","Sundry Assets - Other 2",0,null,0]
["Form 1SFS","Balance Sheet GEN","1SFS13j","Sundry Assets - Other 3",0,null,0]
["Form 1SFS","Balance Sheet GEN","1SFS14a","Letters of Credit",0,null,0]
["Form 1SFS","Balance Sheet GEN","1SFS14b","Guarantees",0,null,0]
["Form 1SFS","Balance Sheet GEN","1SFS14c","Other Instruments",0,null,0]
["Form 1SFS","Balance Sheet GEN","1SFS15","Total Assets",0,null,0]
["Form 1SFS","Balance Sheet GEN","1SFS16a","Unearned Premium Reserve - Gross",0,null,0]
["Form 1SFS","Balance Sheet GEN","1SFS16bi","UPR - Ceded - Foreign Affiliates",0,null,0]
["Form 1SFS","Balance Sheet GEN","1SFS16bii","UPR - Ceded - Domestic Affiliates",0,null,0]
["Form 1SFS","Balance Sheet GEN","1SFS16biii","UPR - Ceded - Pools & Assoc.",0,null,0]
["Form 1SFS","Balance Sheet GEN","1SFS16biv","UPR - Ceded - All Other",0,null,0]
["Form 1SFS","Balance Sheet GEN","1SFS17a","Loss Provision - Gross",0,null,0]
["Form 1SFS","Balance Sheet GEN","1SFS17bi","R/I Recoverable - Foreign Affiliates",0,null,0]
["Form 1SFS","Balance Sheet GEN","1SFS17bii","R/I Recoverable - Domestic Affiliates",0,null,0]
["Form 1SFS","Balance Sheet GEN","1SFS17biii","R/I Recoverable - Pools & Assoc.",0,null,0]
["Form 1SFS","Balance Sheet GEN","1SFS17biv","R/I Recoverable - All Other",0,null,0]
["Form 1SFS","Balance Sheet GEN","1SFS18","Other Insurance Reserves",0,null,0]
["Form 1SFS","Balance Sheet GEN","1SFS28","Insurance & R/I Balances Payable",0,null,0]
["Form 1SFS","Balance Sheet GEN","1SFS29","Commissions, Expenses and Taxes Payable",0,null,0]
["Form 1SFS","Balance Sheet GEN","1SFS30","Loans and Notes Payable",0,null,0]
["Form 1SFS","Balance Sheet GEN","1SFS31a","Income Taxes Payable",0,null,0]
["Form 1SFS","Balance Sheet GEN","1SFS31b","Deferred Taxes Payable",0,null,0]
["Form 1SFS","Balance Sheet GEN","1SFS32","Amounts Due to Affiliates",0,null,0]
["Form 1SFS","Balance Sheet GEN","1SFS33","Accounts Payable and Accrued Liabilities",0,null,0]
["Form 1SFS","Balance Sheet GEN","1SFS34","Funds Held under R/I Contracts",0,null,0]
["Form 1SFS","Balance Sheet GEN","1SFS35","Dividends Payable",0,null,0]
["Form 1SFS","Balance Sheet GEN","1SFS36a","Sundry Liabilities - Derivative Instruments",0,null,0]
["Form 1SFS","Balance Sheet GEN","1SFS36b","Sundry Liabilities - Segregated Accounts",0,null,0]
["Form 1SFS","Balance Sheet GEN","1SFS36c","Sundry Liabilities - Deposit Liabilities",0,null,0]
["Form 1SFS","Balance Sheet GEN","1SFS36d","Sundry Liabilities - Investments Purchased",0,null,0]
["Form 1SFS","Balance Sheet GEN","1SFS36e","Sundry Liabilities - Other 1",0,null,0]
["Form 1SFS","Balance Sheet GEN","1SFS36f","Sundry Liabilities - Other 2",0,null,0]
["Form 1SFS","Balance Sheet GEN","1SFS36g","Sundry Liabilities - Other 3",0,null,0]
["Form 1SFS","Balance Sheet GEN","1SFS37a","Letters of Credit",0,null,0]
["Form 1SFS","Balance Sheet GEN","1SFS37b","Guarantees",0,null,0]
["Form 1SFS","Balance Sheet GEN","1SFS37c","Other Instruments",0,null,0]
[]
["Form 1SFS","Notes","Form 1SFS","Line 10 - Collaterized Balances",0,null,0,null,null,null,null,null,0]
["Form 1SFS","Notes","Form 1SFS","Line 11(e) - Collaterized Balances",0,null,null,null,null,null,null,null,0]
["Form 1SFS","Notes","Form 1SFS","Line 27cii - Collat. in Favor of Insurer",0,null,null,null,null,null,null,null,0]
["Form 1SFS","Notes","Form 1SFS","Line 13 - Sundry Assets",0,null,0,null,null,null,null,null,0]
["Form 1SFS","Notes","Form 1SFS","Line 15 - Policy. Oblig. - Cash",0,null,0,null,null,null,null,null,0,null,0]
["Form 1SFS","Notes","Form 1SFS","Line 15 - Policy. Oblig. - Quoted. Inv.",0,null,0,null,null,null,null,null,0,null,0]
["Form 1SFS","Notes","Form 1SFS","Line 15 - Policy. Oblig. - Unquoted. Inv.",0,null,0,null,null,null,null,null,0,null,0]
["Form 1SFS","Notes","Form 1SFS","Line 15 - Policy. Oblig. - Funds Held",0,null,0,null,null,null,null,null,0,null,0]
["Form 1SFS","Notes","Form 1SFS","Line 15 - Policy. Oblig. - Other Assets",0,null,0,null,null,null,null,null,0,null,0]
["Form 1SFS","Notes","Form 1SFS","Line 15 - Policy. Oblig. - Total",0,null,0,null,null,null,null,null,0,null,0]
["Form 1SFS","Notes","Form 1SFS","Line 15 - Other - Cash",0,null,0,null,null,null,null,null,0,null,0]
["Form 1SFS","Notes","Form 1SFS","Line 15 - Other - Quoted. Inv.",0,null,0,null,null,null,null,null,0,null,0]
["Form 1SFS","Notes","Form 1SFS","Line 15 - Other - Unquoted. Inv.",0,null,0,null,null,null,null,null,0,null,0]
["Form 1SFS","Notes","Form 1SFS","Line 15 - Other - Other Assets",0,null,0,null,null,null,null,null,0,null,0]
["Form 1SFS","Notes","Form 1SFS","Line 15 - Other - Total",0,null,0,null,null,null,null,null,0,null,0]
["Form 1SFS","Notes","Form 1SFS","Line 36 - Sundry Liabilities",0,null,0,null,null,null,null,null,0]
["Form 1SFS","Notes","Form 1SFS","Line 37 - LOC's & Guarantees",0,null,0,null,null,null,null,null,0]
["Form 1SFS","Notes","Form 1SFS","Line 17 - Prior year note disclosure",0]
["Form 1SFS","Notes","Form 1SFS","Gross Provision - Beg. Of Year",0,null,0]
["Form 1SFS","Notes","Form 1SFS","R/I Recoverable - Beg. Of Year",0,null,0]
["Form 1SFS","Notes","Form 1SFS","Net Provision - Beg. Of Year",0,null,0]
["Form 1SFS","Notes","Form 1SFS","Acquisition / Sale of loss reserves (net):",0,null,0]
["Form 1SFS","Notes","Form 1SFS","Net Losses Incurred - Current Year",0,null,0]
["Form 1SFS","Notes","Form 1SFS","Net Losses Incurred - Prior Years",0,null,0]
["Form 1SFS","Notes","Form 1SFS","Net Losses Incurred - Total",0,null,0]
["Form 1SFS","Notes","Form 1SFS","Losses Paid - Current Year",0,null,0]
["Form 1SFS","Notes","Form 1SFS","Losses Paid - Prior Years",0,null,0]
["Form 1SFS","Notes","Form 1SFS","Losses Paid - Total",0,null,0]
["Form 1SFS","Notes","Form 1SFS","Foreign Exchange and Other",0,null,0]
["Form 1SFS","Notes","Form 1SFS","Net Provision - End Of Year",0,null,0]
["Form 1SFS","Notes","Form 1SFS","R/I Recoverable - End Of Year",0,null,0]
["Form 1SFS","Notes","Form 1SFS","Gross Provision - End Of Year",0,null,0]
["Form 1SFS","Notes","Form 1SFS","Insurance - Gross - Open Balance",0,null,0]
["Form 1SFS","Notes","Form 1SFS","Insurance - Gross - Terminations",0,null,0]
["Form 1SFS","Notes","Form 1SFS","Insurance - Gross - New Business",0,null,0]
["Form 1SFS","Notes","Form 1SFS","Insurance - Gross - Chg.In Force",0,null,0]
["Form 1SFS","Notes","Form 1SFS","Insurance - Gross - Mgmt Actions",0,null,0]
["Form 1SFS","Notes","Form 1SFS","Insurance - Gross - FX",0,null,0]
["Form 1SFS","Notes","Form 1SFS","Insurance - Gross - Closing Balance",0,null,0]
["Form 1SFS","Notes","Form 1SFS","Insurance - R/I - Open Balance",0,null,0]
["Form 1SFS","Notes","Form 1SFS","Insurance - R/I - Terminations",0,null,0]
["Form 1SFS","Notes","Form 1SFS","Insurance - R/I - New Business",0,null,0]
["Form 1SFS","Notes","Form 1SFS","Insurance - R/I - Chg.In Force",0,null,0]
["Form 1SFS","Notes","Form 1SFS","Insurance - R/I - Mgmt Actions",0,null,0]
["Form 1SFS","Notes","Form 1SFS","Insurance - R/I - FX",0,null,0]
["Form 1SFS","Notes","Form 1SFS","Insurance - R/I - Closing Balance",0,null,0]
["Form 1SFS","Notes","Form 1SFS","Invmnt - Gross - Open Balance",0,null,0]
["Form 1SFS","Notes","Form 1SFS","Invmnt - Gross - Terminations",0,null,0]
["Form 1SFS","Notes","Form 1SFS","Invmnt - Gross - New Business",0,null,0]
["Form 1SFS","Notes","Form 1SFS","Invmnt - Gross - Chg.In Force",0,null,0]
["Form 1SFS","Notes","Form 1SFS","Invmnt - Gross - Mgmt Actions",0,null,0]
["Form 1SFS","Notes","Form 1SFS","Invmnt - Gross - FX",0,null,0]
["Form 1SFS","Notes","Form 1SFS","Invmnt - Gross - Closing Balance",0,null,0]
["Form 1SFS","Notes","Form 1SFS","Invmnt - R/I - Open Balance",0,null,0]
["Form 1SFS","Notes","Form 1SFS","Invmnt - R/I - Terminations",0,null,0]
["Form 1SFS","Notes","Form 1SFS","Invmnt - R/I - New Business",0,null,0]
["Form 1SFS","Notes","Form 1SFS","Invmnt - R/I - Chg.In Force",0,null,0]
["Form 1SFS","Notes","Form 1SFS","Invmnt - R/I - Mgmt Actions",0,null,0]
["Form 1SFS","Notes","Form 1SFS","Invmnt - R/I - FX",0,null,0]
["Form 1SFS","Notes","Form 1SFS","Invmnt - R/I - Closing Balance",0,null,0]
[]
["1EBS","Notes","1EBS","Line 27Bcii - Collat. in Favor of Insurer",null,null,null,null,null,null,null,null,0]
["1EBS","Notes","1EBS","Line 36(i) - Any Other Liabilities",null,null,null,null,null,null,null,null,0]
["1EBS","Notes","1EBS","Line 36(f) - Details of Deposit Liab.",null,null,null,null,null,null,null,null,0]
["1EBS","Notes","1EBS","Line 40 - Recon. 1SFS 40 to EBS 40",null,null,null,null,null,null,null,null,0]
["1EBS","Notes","1EBS","Line 27ci - Adj. Counterparty Default",null,null,null,null,null,null,null,null,0]
["1EBS","Notes","1EBS","Line 27di - Premium in BBNI",null,null,null,null,null,null,null,null,0]
["1EBS","Notes","1EBS","Line 27dii - Tech Prov. In BBNI",null,null,null,null,null,null,null,null,0]
["1EBS","Notes","1EBS","Line 27diii - Best Est. that used Trans. Arrang.",null,null,null,null,null,null,null,null,0]
["1EBS","Notes","1EBS","Line 27div - Best Est. that not used Trans. Arrang.",null,null,null,null,null,null,null,null,0]
["1EBS","Notes","1EBS","Line 27dv - Scenario Based used",null,null,null,null,null,null,null,null,0]
["1EBS","Notes","1EBS","Line 27dvi - Scen. Based used Stand. Appro.",null,null,null,null,null,null,null,null,0]
["1EBS","Notes","1EBS","Line 27dvii - Scen. Based used Base Appro.",null,null,null,null,null,null,null,null,0]
["1EBS","Notes","1EBS","Line 27Bci - Adj. Counterparty Default",null,null,null,null,null,null,null,null,0]
["1EBS","Notes","1EBS","Line 27Bdi - Premium in BBNI",null,null,null,null,null,null,null,null,0]
["1EBS","Notes","1EBS","Line 27Bdii - Tech Prov. In BBNI",null,null,null,null,null,null,null,null,0]
[]
[null,null,null,"Income Statement"]
["Form 2SFS","Income Stmt Uncon LT / CON","2SFS1a","Gross Premium Written - Direct",null,null,null,null,0,null,0]
["Form 2SFS","Income Stmt Uncon LT / CON","2SFS1b","Gross Premium Written - Assumed",null,null,null,null,0,null,0]
["Form 2SFS","Income Stmt Uncon LT / CON","2SFS2","R/I Premiums Ceded",null,null,null,null,0,null,0]
["Form 2SFS","Income Stmt Uncon LT / CON","2SFS4","Change in Unearned Premiums",null,null,null,null,0,null,0]
["Form 2SFS","Income Stmt Uncon LT / CON","2SFS6","Other Insurance Income",null,null,null,null,0,null,0]
["Form 2SFS","Income Stmt Uncon LT / CON","2SFS8","Net Losses Incurred",null,null,null,null,0,null,0]
["Form 2SFS","Income Stmt Uncon LT / CON","2SFS9","Commissions & Brokerage",null,null,null,null,0,null,0]
["Form 2SFS","Income Stmt Uncon LT / CON","2SFS12a","Gross Premium Written - Direct",0,null,0,null,0,null,0]
["Form 2SFS","Income Stmt Uncon LT / CON","2SFS12b","Gross Premium Written - Assumed",0,null,0,null,0,null,0]
["Form 2SFS","Income Stmt Uncon LT / CON","2SFS13","R/I Premiums Ceded",0,null,0,null,0,null,0]
["Form 2SFS","Income Stmt Uncon LT / CON","2SFS14a","NPW - Life",0,null,0,null,0,null,0]
["Form 2SFS","Income Stmt Uncon LT / CON","2SFS14b","NPW - Annuities",0,null,0,null,0,null,0]
["Form 2SFS","Income Stmt Uncon LT / CON","2SFS14c","NPW - Accident & Health",0,null,0,null,0,null,0]
["Form 2SFS","Income Stmt Uncon LT / CON","2SFS15","Other Insurance Income",0,null,0,null,0,null,0]
["Form 2SFS","Income Stmt Uncon LT / CON","2SFS17","Claims - Life",0,null,0,null,0,null,0]
["Form 2SFS","Income Stmt Uncon LT / CON","2SFS18","Policyholders' Dividends",0,null,0,null,0,null,0]
["Form 2SFS","Income Stmt Uncon LT / CON","2SFS19","Surrenders",0,null,0,null,0,null,0]
["Form 2SFS","Income Stmt Uncon LT / CON","2SFS20","Maturities",0,null,0,null,0,null,0]
["Form 2SFS","Income Stmt Uncon LT / CON","2SFS21","Annuities",0,null,0,null,0,null,0]
["Form 2SFS","Income Stmt Uncon LT / CON","2SFS22","Accident & Health Benefits",0,null,0,null,0,null,0]
["Form 2SFS","Income Stmt Uncon LT / CON","2SFS23","Commissions",0,null,0,null,0,null,0]
["Form 2SFS","Income Stmt Uncon LT / CON","2SFS24","Other",0,null,0,null,0,null,0]
["Form 2SFS","Income Stmt Uncon LT / CON","2SFS26a","Change in Policy Reserves - Life",0,null,0,null,0,null,0]
["Form 2SFS","Income Stmt Uncon LT / CON","2SFS26b","Change in Policy Reserves - Annuities",0,null,0,null,0,null,0]
["Form 2SFS","Income Stmt Uncon LT / CON","2SFS26c","Change in Policy Reserves - Accid. & Health",0,null,0,null,0,null,0]
["Form 2SFS","Income Stmt Uncon LT / CON","2SFS30a","Operating Expense - G&A",0,null,0,null,0,null,0]
["Form 2SFS","Income Stmt Uncon LT / CON","2SFS30b","Operating Expense - Personnel Costs",0,null,0,null,0,null,0]
["Form 2SFS","Income Stmt Uncon LT / CON","2SFS30c","Operating Expense - Other",0,null,0,null,0,null,0]
["Form 2SFS","Income Stmt Uncon LT / CON","2SFS31","Investment Income",0,null,0,null,0,null,0]
["Form 2SFS","Income Stmt Uncon LT / CON","2SFS32","Other Income",0,null,0,null,0,null,0]
["Form 2SFS","Income Stmt Uncon LT / CON","2SFS34a","Income Tax - Current",0,null,0,null,0,null,0]
["Form 2SFS","Income Stmt Uncon LT / CON","2SFS34b","Income Tax - Deferred",0,null,0,null,0,null,0]
["Form 2SFS","Income Stmt Uncon LT / CON","2SFS36","Realized Gains/Losses",0,null,0,null,0,null,0]
["Form 2SFS","Income Stmt Uncon LT / CON","2SFS37","Interest Charges",0,null,0,null,0,null,0]
[]
["Form 2SFS","Income Stmt Uncon GEN","2SFS1a","Gross Premium Written - Direct",0,null,0]
["Form 2SFS","Income Stmt Uncon GEN","2SFS1b","Gross Premium Written - Assumed",0,null,0]
["Form 2SFS","Income Stmt Uncon GEN","2SFS2","R/I Premiums Ceded",0,null,0]
["Form 2SFS","Income Stmt Uncon GEN","2SFS4","Change in Unearned Premiums",0,null,0]
["Form 2SFS","Income Stmt Uncon GEN","2SFS6","Other Insurance Income",0,null,0]
["Form 2SFS","Income Stmt Uncon GEN","2SFS8","Net Losses Incurred",0,null,0]
["Form 2SFS","Income Stmt Uncon GEN","2SFS9","Commissions & Brokerage",0,null,0]
["Form 2SFS","Income Stmt Uncon GEN","2SFS30a","Operating Expense - G&A",0,null,0]
["Form 2SFS","Income Stmt Uncon GEN","2SFS30b","Operating Expense - Personnel Costs",0,null,0]
["Form 2SFS","Income Stmt Uncon GEN","2SFS30c","Operating Expense - Other",0,null,0]
["Form 2SFS","Income Stmt Uncon GEN","2SFS31","Investment Income",0,null,0]
["Form 2SFS","Income Stmt Uncon GEN","2SFS32","Other Income",0,null,0]
["Form 2SFS","Income Stmt Uncon GEN","2SFS34a","Income Tax - Current",0,null,0]
["Form 2SFS","Income Stmt Uncon GEN","2SFS34b","Income Tax - Deferred",0,null,0]
["Form 2SFS","Income Stmt Uncon GEN","2SFS36","Realized Gains/Losses",0,null,0]
["Form 2SFS","Income Stmt Uncon GEN","2SFS37","Interest Charges",0,null,0]
[]
[null,null,null,"Statement of Capital & Surplus"]
["Form 8SFS","Stmt of C&S Uncon LT / CON","8SFS1ai","Capital Stock",0,null,0]
["Form 8SFS","Stmt of C&S Uncon LT / CON",null,"Common Stock",null,null,null,null,0,null,0]
["Form 8SFS","Stmt of C&S Uncon LT / CON","8SFS1aii","Preferred Shares",null,null,null,null,0,null,0]
["Form 8SFS","Stmt of C&S Uncon LT / CON","8SFS1aiii","Treasury Shares",null,null,null,null,0,null,0]
["Form 8SFS","Stmt of C&S Uncon LT / CON","8SFS1b","Contributed Surplus",0,null,0,null,0,null,0]
["Form 8SFS","Stmt of C&S Uncon LT / CON","8SFS1ci","Other Fixed Capital - Hybrid Instruments",0,null,0,null,0,null,0]
["Form 8SFS","Stmt of C&S Uncon LT / CON","8SFS1cii","Other Fixed Capital - Guarantees & Others",0,null,0,null,0,null,0]
["Form 8SFS","Stmt of C&S Uncon LT / CON","8SFS2a","Statutory Surplus - Beginning of Year",0,null,0,null,0,null,0]
["Form 8SFS","Stmt of C&S Uncon LT / CON","8SFS2c","Dividends",0,null,0,null,0,null,0]
["Form 8SFS","Stmt of C&S Uncon LT / CON","8SFS2d","Unrealized Change in Investments",0,null,0,null,0,null,0]
["Form 8SFS","Stmt of C&S Uncon LT / CON","8SFS2e","Change in Non-Admitted Assets",0,null,0,null,0,null,0]
["Form 8SFS","Stmt of C&S Uncon LT / CON","8SFS2f","Change in Real Estate",0,null,0,null,0,null,0]
["Form 8SFS","Stmt of C&S Uncon LT / CON","8SFS2g","Change in Other Statutory Capital",0,null,0,null,0,null,0]
["Form 8SFS","Stmt of C&S Uncon LT / CON","8SFS3","Minority Interest",0,null,0,null,0,null,0]
[]
["Form 8SFS","Stmt of C&S Uncon GEN","8SFS1a","Common Stock",0,null,0]
["Form 8SFS","Stmt of C&S Uncon GEN","8SFS1b","Contributed Surplus",0,null,0]
["Form 8SFS","Stmt of C&S Uncon GEN","8SFS1ci","Other Fixed Capital - Hybrid Instruments",0,null,0]
["Form 8SFS","Stmt of C&S Uncon GEN","8SFS1cii","Other Fixed Capital - Guarantees & Others",0,null,0]
["Form 8SFS","Stmt of C&S Uncon GEN","8SFS2a","Statutory Surplus - Beginning of Year",0,null,0]
["Form 8SFS","Stmt of C&S Uncon GEN","8SFS2c","Dividends",0,null,0]
["Form 8SFS","Stmt of C&S Uncon GEN","8SFS2d","Unrealized Change in Investments",0,null,0]
["Form 8SFS","Stmt of C&S Uncon GEN","8SFS2e","Change in Non-Admitted Assets",0,null,0]
["Form 8SFS","Stmt of C&S Uncon GEN","8SFS2f","Change in Real Estate",0,null,0]
["Form 8SFS","Stmt of C&S Uncon GEN","8SFS2g","Change in Other Statutory Capital",0,null,0]
["Form 8SFS","Stmt of C&S Uncon GEN","8SFS3","Minority Interest",0,null,0]
[]
[null,null,null,"BSCR Schedules "]
["Sch II","Investments",null,"Corp. Bonds - BSCR Rate 0",0,null,0,null,null,null,null,null,0,null,0]
["Sch II","Investments",null,"Corp. Bonds - BSCR Rate 1",0,null,0,null,null,null,null,null,0,null,0]
["Sch II","Investments",null,"Corp. Bonds - BSCR Rate 2",0,null,0,null,null,null,null,null,0,null,0]
["Sch II","Investments",null,"Corp. Bonds - BSCR Rate 3",0,null,0,null,null,null,null,null,0,null,0]
["Sch II","Investments",null,"Corp. Bonds - BSCR Rate 4",0,null,0,null,null,null,null,null,0,null,0]
["Sch II","Investments",null,"Corp. Bonds - BSCR Rate 5",0,null,0,null,null,null,null,null,0,null,0]
["Sch II","Investments",null,"Corp. Bonds - BSCR Rate 6",0,null,0,null,null,null,null,null,0,null,0]
["Sch II","Investments",null,"Corp. Bonds - BSCR Rate 7",0,null,0,null,null,null,null,null,0,null,0]
["Sch II","Investments",null,"Corp. Bonds - BSCR Rate 8",0,null,0,null,null,null,null,null,0,null,0]
["Sch II","Investments",null,"Residential MBS - BSCR Rate 1",0,null,0,null,null,null,null,null,0,null,0]
["Sch II","Investments",null,"Residential MBS - BSCR Rate 2",0,null,0,null,null,null,null,null,0,null,0]
["Sch II","Investments",null,"Residential MBS - BSCR Rate 3",0,null,0,null,null,null,null,null,0,null,0]
["Sch II","Investments",null,"Residential MBS - BSCR Rate 4",0,null,0,null,null,null,null,null,0,null,0]
["Sch II","Investments",null,"Residential MBS - BSCR Rate 5",0,null,0,null,null,null,null,null,0,null,0]
["Sch II","Investments",null,"Residential MBS - BSCR Rate 6",0,null,0,null,null,null,null,null,0,null,0]
["Sch II","Investments",null,"Residential MBS - BSCR Rate 7",0,null,0,null,null,null,null,null,0,null,0]
["Sch II","Investments",null,"Residential MBS - BSCR Rate 8",0,null,0,null,null,null,null,null,0,null,0]
["Sch II","Investments",null,"Commercial MBS - BSCR Rate 1",0,null,0,null,null,null,null,null,0,null,0]
["Sch II","Investments",null,"Commercial MBS - BSCR Rate 2",0,null,0,null,null,null,null,null,0,null,0]
["Sch II","Investments",null,"Commercial MBS - BSCR Rate 3",0,null,0,null,null,null,null,null,0,null,0]
["Sch II","Investments",null,"Commercial MBS - BSCR Rate 4",0,null,0,null,null,null,null,null,0,null,0]
["Sch II","Investments",null,"Commercial MBS - BSCR Rate 5",0,null,0,null,null,null,null,null,0,null,0]
["Sch II","Investments",null,"Commercial MBS - BSCR Rate 6",0,null,0,null,null,null,null,null,0,null,0]
["Sch II","Investments",null,"Commercial MBS - BSCR Rate 7",0,null,0,null,null,null,null,null,0,null,0]
["Sch II","Investments",null,"Commercial MBS - BSCR Rate 8",0,null,0,null,null,null,null,null,0,null,0]
["Sch II","Investments",null,"Bonds Mutual Fund - BSCR Rate 0",0,null,0,null,null,null,null,null,0,null,0]
["Sch II","Investments",null,"Bonds Mutual Fund - BSCR Rate 1",0,null,0,null,null,null,null,null,0,null,0]
["Sch II","Investments",null,"Bonds Mutual Fund - BSCR Rate 2",0,null,0,null,null,null,null,null,0,null,0]
["Sch II","Investments",null,"Bonds Mutual Fund - BSCR Rate 3",0,null,0,null,null,null,null,null,0,null,0]
["Sch II","Investments",null,"Bonds Mutual Fund - BSCR Rate 4",0,null,0,null,null,null,null,null,0,null,0]
["Sch II","Investments",null,"Bonds Mutual Fund - BSCR Rate 5",0,null,0,null,null,null,null,null,0,null,0]
["Sch II","Investments",null,"Bonds Mutual Fund - BSCR Rate 6",0,null,0,null,null,null,null,null,0,null,0]
["Sch II","Investments",null,"Bonds Mutual Fund - BSCR Rate 7",0,null,0,null,null,null,null,null,0,null,0]
["Sch II","Investments",null,"Bonds Mutual Fund - BSCR Rate 8",0,null,0,null,null,null,null,null,0,null,0]
["Sch II","Investments",null,"Common Shares - Quoted",0,null,0,null,null,null,null,null,0,null,0]
["Sch II","Investments",null,"Common Shares - Unquoted",0,null,0,null,null,null,null,null,0,null,0]
["Sch II","Investments",null,"Preferred Shares - BSCR Rate 1",0,null,0,null,null,null,null,null,0,null,0]
["Sch II","Investments",null,"Preferred Shares - BSCR Rate 2",0,null,0,null,null,null,null,null,0,null,0]
["Sch II","Investments",null,"Preferred Shares - BSCR Rate 3",0,null,0,null,null,null,null,null,0,null,0]
["Sch II","Investments",null,"Preferred Shares - BSCR Rate 4",0,null,0,null,null,null,null,null,0,null,0]
["Sch II","Investments",null,"Preferred Shares - BSCR Rate 5",0,null,0,null,null,null,null,null,0,null,0]
["Sch II","Investments",null,"Preferred Shares - BSCR Rate 6",0,null,0,null,null,null,null,null,0,null,0]
["Sch II","Investments",null,"Preferred Shares - BSCR Rate 7",0,null,0,null,null,null,null,null,0,null,0]
["Sch II","Investments",null,"Preferred Shares - BSCR Rate 8",0,null,0,null,null,null,null,null,0,null,0]
["Sch II","Investments",null,"Equity Mutual Funds -  Quoted",0,null,0,null,null,null,null,null,0,null,0]
["Sch II","Investments",null,"Equity Mutual Funds -  Unquoted",0,null,0,null,null,null,null,null,0,null,0]
["Sch II","Investments",null,"Mortgage Loans - Insured",0,null,0,null,null,null,null,null,0,null,0]
["Sch II","Investments",null,"Mortgage Loans - Other Commercial",0,null,0,null,null,null,null,null,0,null,0]
["Sch II","Investments",null,"Mortgage Loans - Other Residential",0,null,0,null,null,null,null,null,0,null,0]
["Sch II","Investments",null,"Mortgage Loans - Not Good Stand.",0,null,0,null,null,null,null,null,0,null,0]
["Sch II","Investments",null,"NAIC Resid. MBS - Orig. Class 1",0,null,null,null,null,null,null,null,0]
["Sch II","Investments",null,"NAIC Resid. MBS - Orig. Class 2",0,null,null,null,null,null,null,null,0]
["Sch II","Investments",null,"NAIC Resid. MBS - Orig. Class 3",0,null,null,null,null,null,null,null,0]
["Sch II","Investments",null,"NAIC Resid. MBS - Orig. Class 4",0,null,null,null,null,null,null,null,0]
["Sch II","Investments",null,"NAIC Resid. MBS - Orig. Class 5",0,null,null,null,null,null,null,null,0]
["Sch II","Investments",null,"NAIC Resid. MBS - Orig. Class 6",0,null,null,null,null,null,null,null,0]
["Sch II","Investments",null,"NAIC Resid. MBS - Orig. Total",0,null,null,null,null,null,null,null,0]
["Sch II","Investments",null,"NAIC Resid. MBS - Rev. Class 1",0,null,null,null,null,null,null,null,0]
["Sch II","Investments",null,"NAIC Resid. MBS - Rev. Class 2",0,null,null,null,null,null,null,null,0]
["Sch II","Investments",null,"NAIC Resid. MBS - Rev. Class 3",0,null,null,null,null,null,null,null,0]
["Sch II","Investments",null,"NAIC Resid. MBS - Rev. Class 4",0,null,null,null,null,null,null,null,0]
["Sch II","Investments",null,"NAIC Resid. MBS - Rev. Class 5",0,null,null,null,null,null,null,null,0]
["Sch II","Investments",null,"NAIC Resid. MBS - Rev. Class 6",0,null,null,null,null,null,null,null,0]
["Sch II","Investments",null,"NAIC Resid. MBS - Rev. Total",0,null,null,null,null,null,null,null,0]
["Sch II","Investments",null,"NAIC Comm. MBS - Orig. Class 1",0,null,null,null,null,null,null,null,0]
["Sch II","Investments",null,"NAIC Comm. MBS - Orig. Class 2",0,null,null,null,null,null,null,null,0]
["Sch II","Investments",null,"NAIC Comm. MBS - Orig. Class 3",0,null,null,null,null,null,null,null,0]
["Sch II","Investments",null,"NAIC Comm. MBS - Orig. Class 4",0,null,null,null,null,null,null,null,0]
["Sch II","Investments",null,"NAIC Comm. MBS - Orig. Class 5",0,null,null,null,null,null,null,null,0]
["Sch II","Investments",null,"NAIC Comm. MBS - Orig. Class 6",0,null,null,null,null,null,null,null,0]
["Sch II","Investments",null,"NAIC Comm. MBS - Orig. Total",0,null,null,null,null,null,null,null,0]
["Sch II","Investments",null,"NAIC Comm. MBS - Rev. Class 1",0,null,null,null,null,null,null,null,0]
["Sch II","Investments",null,"NAIC Comm. MBS - Rev. Class 2",0,null,null,null,null,null,null,null,0]
["Sch II","Investments",null,"NAIC Comm. MBS - Rev. Class 3",0,null,null,null,null,null,null,null,0]
["Sch II","Investments",null,"NAIC Comm. MBS - Rev. Class 4",0,null,null,null,null,null,null,null,0]
["Sch II","Investments",null,"NAIC Comm. MBS - Rev. Class 5",0,null,null,null,null,null,null,null,0]
["Sch II","Investments",null,"NAIC Comm. MBS - Rev. Class 6",0,null,null,null,null,null,null,null,0]
["Sch II","Investments",null,"NAIC Comm. MBS - Rev. Total",0,null,null,null,null,null,null,null,0]
[]
["Sch IIA","Funds Held",null,"Corp. Bonds - BSCR Rate 0",0,null,0,null,null,null,null,null,0,null,0]
["Sch IIA","Funds Held",null,"Corp. Bonds - BSCR Rate 1",0,null,0,null,null,null,null,null,0,null,0]
["Sch IIA","Funds Held",null,"Corp. Bonds - BSCR Rate 2",0,null,0,null,null,null,null,null,0,null,0]
["Sch IIA","Funds Held",null,"Corp. Bonds - BSCR Rate 3",0,null,0,null,null,null,null,null,0,null,0]
["Sch IIA","Funds Held",null,"Corp. Bonds - BSCR Rate 4",0,null,0,null,null,null,null,null,0,null,0]
["Sch IIA","Funds Held",null,"Corp. Bonds - BSCR Rate 5",0,null,0,null,null,null,null,null,0,null,0]
["Sch IIA","Funds Held",null,"Corp. Bonds - BSCR Rate 6",0,null,0,null,null,null,null,null,0,null,0]
["Sch IIA","Funds Held",null,"Corp. Bonds - BSCR Rate 7",0,null,0,null,null,null,null,null,0,null,0]
["Sch IIA","Funds Held",null,"Corp. Bonds - BSCR Rate 8",0,null,0,null,null,null,null,null,0,null,0]
["Sch IIA","Funds Held",null,"Residential MBS - BSCR Rate 1",0,null,0,null,null,null,null,null,0,null,0]
["Sch IIA","Funds Held",null,"Residential MBS - BSCR Rate 2",0,null,0,null,null,null,null,null,0,null,0]
["Sch IIA","Funds Held",null,"Residential MBS - BSCR Rate 3",0,null,0,null,null,null,null,null,0,null,0]
["Sch IIA","Funds Held",null,"Residential MBS - BSCR Rate 4",0,null,0,null,null,null,null,null,0,null,0]
["Sch IIA","Funds Held",null,"Residential MBS - BSCR Rate 5",0,null,0,null,null,null,null,null,0,null,0]
["Sch IIA","Funds Held",null,"Residential MBS - BSCR Rate 6",0,null,0,null,null,null,null,null,0,null,0]
["Sch IIA","Funds Held",null,"Residential MBS - BSCR Rate 7",0,null,0,null,null,null,null,null,0,null,0]
["Sch IIA","Funds Held",null,"Residential MBS - BSCR Rate 8",0,null,0,null,null,null,null,null,0,null,0]
["Sch IIA","Funds Held",null,"Commercial MBS - BSCR Rate 1",0,null,0,null,null,null,null,null,0,null,0]
["Sch IIA","Funds Held",null,"Commercial MBS - BSCR Rate 2",0,null,0,null,null,null,null,null,0,null,0]
["Sch IIA","Funds Held",null,"Commercial MBS - BSCR Rate 3",0,null,0,null,null,null,null,null,0,null,0]
["Sch IIA","Funds Held",null,"Commercial MBS - BSCR Rate 4",0,null,0,null,null,null,null,null,0,null,0]
["Sch IIA","Funds Held",null,"Commercial MBS - BSCR Rate 5",0,null,0,null,null,null,null,null,0,null,0]
["Sch IIA","Funds Held",null,"Commercial MBS - BSCR Rate 6",0,null,0,null,null,null,null,null,0,null,0]
["Sch IIA","Funds Held",null,"Commercial MBS - BSCR Rate 7",0,null,0,null,null,null,null,null,0,null,0]
["Sch IIA","Funds Held",null,"Commercial MBS - BSCR Rate 8",0,null,0,null,null,null,null,null,0,null,0]
["Sch IIA","Funds Held",null,"Bonds Mutual Fund - BSCR Rate 0",0,null,0,null,null,null,null,null,0,null,0]
["Sch IIA","Funds Held",null,"Bonds Mutual Fund - BSCR Rate 1",0,null,0,null,null,null,null,null,0,null,0]
["Sch IIA","Funds Held",null,"Bonds Mutual Fund - BSCR Rate 2",0,null,0,null,null,null,null,null,0,null,0]
["Sch IIA","Funds Held",null,"Bonds Mutual Fund - BSCR Rate 3",0,null,0,null,null,null,null,null,0,null,0]
["Sch IIA","Funds Held",null,"Bonds Mutual Fund - BSCR Rate 4",0,null,0,null,null,null,null,null,0,null,0]
["Sch IIA","Funds Held",null,"Bonds Mutual Fund - BSCR Rate 5",0,null,0,null,null,null,null,null,0,null,0]
["Sch IIA","Funds Held",null,"Bonds Mutual Fund - BSCR Rate 6",0,null,0,null,null,null,null,null,0,null,0]
["Sch IIA","Funds Held",null,"Bonds Mutual Fund - BSCR Rate 7",0,null,0,null,null,null,null,null,0,null,0]
["Sch IIA","Funds Held",null,"Bonds Mutual Fund - BSCR Rate 8",0,null,0,null,null,null,null,null,0,null,0]
["Sch IIA","Funds Held",null,"Common Shares - Quoted",0,null,0,null,null,null,null,null,0,null,0]
["Sch IIA","Funds Held",null,"Common Shares - Unquoted",0,null,0,null,null,null,null,null,0,null,0]
["Sch IIA","Funds Held",null,"Preferred Shares - BSCR Rate 1",0,null,0,null,null,null,null,null,0,null,0]
["Sch IIA","Funds Held",null,"Preferred Shares - BSCR Rate 2",0,null,0,null,null,null,null,null,0,null,0]
["Sch IIA","Funds Held",null,"Preferred Shares - BSCR Rate 3",0,null,0,null,null,null,null,null,0,null,0]
["Sch IIA","Funds Held",null,"Preferred Shares - BSCR Rate 4",0,null,0,null,null,null,null,null,0,null,0]
["Sch IIA","Funds Held",null,"Preferred Shares - BSCR Rate 5",0,null,0,null,null,null,null,null,0,null,0]
["Sch IIA","Funds Held",null,"Preferred Shares - BSCR Rate 6",0,null,0,null,null,null,null,null,0,null,0]
["Sch IIA","Funds Held",null,"Preferred Shares - BSCR Rate 7",0,null,0,null,null,null,null,null,0,null,0]
["Sch IIA","Funds Held",null,"Preferred Shares - BSCR Rate 8",0,null,0,null,null,null,null,null,0,null,0]
["Sch IIA","Funds Held",null,"Equity Mutual Funds -  Quoted",0,null,0,null,null,null,null,null,0,null,0]
["Sch IIA","Funds Held",null,"Equity Mutual Funds -  Unquoted",0,null,0,null,null,null,null,null,0,null,0]
["Sch IIA","Funds Held",null,"Other Investments -  Quoted",0,null,0,null,null,null,null,null,0,null,0]
["Sch IIA","Funds Held",null,"Other Investments -  Unquoted",0,null,0,null,null,null,null,null,0,null,0]
["Sch IIA","Funds Held",null,"Mortgage Loans - Insured",0,null,0,null,null,null,null,null,0,null,0]
["Sch IIA","Funds Held",null,"Mortgage Loans - Other Commercial",0,null,0,null,null,null,null,null,0,null,0]
["Sch IIA","Funds Held",null,"Mortgage Loans - Other Residential",0,null,0,null,null,null,null,null,0,null,0]
["Sch IIA","Funds Held",null,"Mortgage Loans - Not Good Stand.",0,null,0,null,null,null,null,null,0,null,0]
["Sch IIA","Funds Held",null,"Cash and Cash Equivalents",0,null,0,null,null,null,null,null,0,null,0]
["Sch IIA","Funds Held",null,"NAIC Resid. MBS - Orig. Class 1",0,null,null,null,null,null,null,null,0]
["Sch IIA","Funds Held",null,"NAIC Resid. MBS - Orig. Class 2",0,null,null,null,null,null,null,null,0]
["Sch IIA","Funds Held",null,"NAIC Resid. MBS - Orig. Class 3",0,null,null,null,null,null,null,null,0]
["Sch IIA","Funds Held",null,"NAIC Resid. MBS - Orig. Class 4",0,null,null,null,null,null,null,null,0]
["Sch IIA","Funds Held",null,"NAIC Resid. MBS - Orig. Class 5",0,null,null,null,null,null,null,null,0]
["Sch IIA","Funds Held",null,"NAIC Resid. MBS - Orig. Class 6",0,null,null,null,null,null,null,null,0]
["Sch IIA","Funds Held",null,"NAIC Resid. MBS - Orig. Total",0,null,null,null,null,null,null,null,0]
["Sch IIA","Funds Held",null,"NAIC Resid. MBS - Rev. Class 1",0,null,null,null,null,null,null,null,0]
["Sch IIA","Funds Held",null,"NAIC Resid. MBS - Rev. Class 2",0,null,null,null,null,null,null,null,0]
["Sch IIA","Funds Held",null,"NAIC Resid. MBS - Rev. Class 3",0,null,null,null,null,null,null,null,0]
["Sch IIA","Funds Held",null,"NAIC Resid. MBS - Rev. Class 4",0,null,null,null,null,null,null,null,0]
["Sch IIA","Funds Held",null,"NAIC Resid. MBS - Rev. Class 5",0,null,null,null,null,null,null,null,0]
["Sch IIA","Funds Held",null,"NAIC Resid. MBS - Rev. Class 6",0,null,null,null,null,null,null,null,0]
["Sch IIA","Funds Held",null,"NAIC Resid. MBS - Rev. Total",0,null,null,null,null,null,null,null,0]
["Sch IIA","Funds Held",null,"NAIC Comm. MBS - Orig. Class 1",0,null,null,null,null,null,null,null,0]
["Sch IIA","Funds Held",null,"NAIC Comm. MBS - Orig. Class 2",0,null,null,null,null,null,null,null,0]
["Sch IIA","Funds Held",null,"NAIC Comm. MBS - Orig. Class 3",0,null,null,null,null,null,null,null,0]
["Sch IIA","Funds Held",null,"NAIC Comm. MBS - Orig. Class 4",0,null,null,null,null,null,null,null,0]
["Sch IIA","Funds Held",null,"NAIC Comm. MBS - Orig. Class 5",0,null,null,null,null,null,null,null,0]
["Sch IIA","Funds Held",null,"NAIC Comm. MBS - Orig. Class 6",0,null,null,null,null,null,null,null,0]
["Sch IIA","Funds Held",null,"NAIC Comm. MBS - Orig. Total",0,null,null,null,null,null,null,null,0]
["Sch IIA","Funds Held",null,"NAIC Comm. MBS - Rev. Class 1",0,null,null,null,null,null,null,null,0]
["Sch IIA","Funds Held",null,"NAIC Comm. MBS - Rev. Class 2",0,null,null,null,null,null,null,null,0]
["Sch IIA","Funds Held",null,"NAIC Comm. MBS - Rev. Class 3",0,null,null,null,null,null,null,null,0]
["Sch IIA","Funds Held",null,"NAIC Comm. MBS - Rev. Class 4",0,null,null,null,null,null,null,null,0]
["Sch IIA","Funds Held",null,"NAIC Comm. MBS - Rev. Class 5",0,null,null,null,null,null,null,null,0]
["Sch IIA","Funds Held",null,"NAIC Comm. MBS - Rev. Class 6",0,null,null,null,null,null,null,null,0]
["Sch IIA","Funds Held",null,"NAIC Comm. MBS - Rev. Total",0,null,null,null,null,null,null,null,0]
[]
["Sch IVA","LT Premium",null,"Unrelated - 1. Mortality",0,null,0,null,0,null,0]
["Sch IVA","LT Premium",null,"Unrelated - 2. Critical Illness",0,null,0,null,0,null,0]
["Sch IVA","LT Premium",null,"Unrelated - 3. Longevity",0,null,0,null,0,null,0]
["Sch IVA","LT Premium",null,"Unrelated - 4. Deferred Annuities ",0,null,0,null,0,null,0]
["Sch IVA","LT Premium",null,"Unrelated - 5i. Dis. Income: 1 Yr",0,null,0,null,0,null,0]
["Sch IVA","LT Premium",null,"Unrelated - 5ii. Dis. Income: 1-5 Yrs",0,null,0,null,0,null,0]
["Sch IVA","LT Premium",null,"Unrelated - 5iii. Dis. Income: 5+ Yrs",0,null,0,null,0,null,0]
["Sch IVA","LT Premium",null,"Unrelated - 6. Dis. Income: Active Liv",0,null,0,null,0,null,0]
["Sch IVA","LT Premium",null,"Unrelated - 7. Dis. Income: Claims in Pay",0,null,0,null,0,null,0]
["Sch IVA","LT Premium",null,"Unrelated - 8. Dis. Income: Claims in Pay Other",0,null,0,null,0,null,0]
["Sch IVA","LT Premium",null,"Unrelated - 9. Group Life",0,null,0,null,0,null,0]
["Sch IVA","LT Premium",null,"Unrelated - 10. Group Disability",0,null,0,null,0,null,0]
["Sch IVA","LT Premium",null,"Unrelated - 11. Group Health",0,null,0,null,0,null,0]
["Sch IVA","LT Premium",null,"Unrelated - 12. Stop Loss",0,null,0,null,0,null,0]
["Sch IVA","LT Premium",null,"Unrelated - 13. Riders",0,null,0,null,0,null,0]
["Sch IVA","LT Premium",null,"Unrelated - 14. Variable Annuities",0,null,0,null,0,null,0]
["Sch IVA","LT Premium",null,"Related - 1. Mortality",0,null,0,null,0,null,0]
["Sch IVA","LT Premium",null,"Related - 2. Critical Illness",0,null,0,null,0,null,0]
["Sch IVA","LT Premium",null,"Related - 3. Longevity",0,null,0,null,0,null,0]
["Sch IVA","LT Premium",null,"Related - 4. Deferred Annuities ",0,null,0,null,0,null,0]
["Sch IVA","LT Premium",null,"Related - 5i. Dis. Income: 1 Yr",0,null,0,null,0,null,0]
["Sch IVA","LT Premium",null,"Related - 5ii. Dis. Income: 1-5 Yrs",0,null,0,null,0,null,0]
["Sch IVA","LT Premium",null,"Related - 5iiii. Dis. Income: 5+ Yrs",0,null,0,null,0,null,0]
["Sch IVA","LT Premium",null,"Related - 6. Dis. Income: Active Liv",0,null,0,null,0,null,0]
["Sch IVA","LT Premium",null,"Related - 7. Dis. Income: Claims in Pay",0,null,0,null,0,null,0]
["Sch IVA","LT Premium",null,"Related - 8. Dis. Income: Claims in Pay Other",0,null,0,null,0,null,0]
["Sch IVA","LT Premium",null,"Related - 9. Group Life",0,null,0,null,0,null,0]
["Sch IVA","LT Premium",null,"Related - 10. Group Disability",0,null,0,null,0,null,0]
["Sch IVA","LT Premium",null,"Related - 11. Group Health",0,null,0,null,0,null,0]
["Sch IVA","LT Premium",null,"Related - 12. Stop Loss",0,null,0,null,0,null,0]
["Sch IVA","LT Premium",null,"Related - 13. Riders",0,null,0,null,0,null,0]
["Sch IVA","LT Premium",null,"Related - 14. Variable Annuities",0,null,0,null,0,null,0]
["Sch IVA","LT Premium",null,"Adj. Benefit -2 Yrs - 5i. Dis. Income: 1 Yr",0,null,0,null,0,null,0]
["Sch IVA","LT Premium",null,"Adj. Benefit -2 Yrs - 5ii. Dis. Income: 1-5 Yrs",0,null,0,null,0,null,0]
["Sch IVA","LT Premium",null,"Adj. Benefit -2 Yrs - 5iii. Dis. Income: 5+ Yrs",0,null,0,null,0,null,0]
["Sch IVA","LT Premium",null,"Adj. Benefit +2 Yrs - 5i. Dis. Income: 1 Yr",0,null,0,null,0,null,0]
["Sch IVA","LT Premium",null,"Adj. Benefit +2 Yrs - 5ii. Dis. Income: 1-5 Yrs",0,null,0,null,0,null,0]
["Sch IVA","LT Premium",null,"Adj. Benefit +2 Yrs - 5iii. Dis. Income: 5+ Yrs",0,null,0,null,0,null,0]
["Sch IVA","LT Premium",null,"Net - 1. Mortality",0,null,0,null,0,null,0]
["Sch IVA","LT Premium",null,"Net - 2. Critical Illness",0,null,0,null,0,null,0]
["Sch IVA","LT Premium",null,"Net - 3. Longevity",0,null,0,null,0,null,0]
["Sch IVA","LT Premium",null,"Net - 4. Deferred Annuities ",0,null,0,null,0,null,0]
["Sch IVA","LT Premium",null,"Net - 6. Dis. Income: Active Liv",0,null,0,null,0,null,0]
["Sch IVA","LT Premium",null,"Net - 7. Dis. Income: Claims in Pay",0,null,0,null,0,null,0]
["Sch IVA","LT Premium",null,"Net - 8. Dis. Income: Claims in Pay Other",0,null,0,null,0,null,0]
["Sch IVA","LT Premium",null,"Net - 9. Group Life",0,null,0,null,0,null,0]
["Sch IVA","LT Premium",null,"Net - 10. Group Disability",0,null,0,null,0,null,0]
["Sch IVA","LT Premium",null,"Net - 11. Group Health",0,null,0,null,0,null,0]
["Sch IVA","LT Premium",null,"Net - 12. Stop Loss",0,null,0,null,0,null,0]
["Sch IVA","LT Premium",null,"Net - 13. Riders",0,null,0,null,0,null,0]
["Sch IVA","LT Premium",null,"Net - 14. Variable Annuities",0,null,0,null,0,null,0]
[]
["Sch V","Risk Mgnt",null,"Asset Duration",null,null,null,null,null,null,null,null,0]
["Sch V","Risk Mgnt",null,"Liability Duration",null,null,null,null,null,null,null,null,0]
["Sch V","Risk Mgnt",null,"Weighted Average of Difference",null,null,null,null,0]
["Sch V","Risk Mgnt",null,"Reserves with Known Duration",null,null,null,null,0]
["Sch V","Risk Mgnt",null,"Projected Net Premium Written",null,null,null,null,0]
["Sch V","Risk Mgnt",null,"Projected % of Group ",null,null,null,null,0,null,null,null,0]
["Sch V","Risk Mgnt",null,"Projected Net Income",null,null,null,null,0]
["Sch V","Risk Mgnt",null,"a)Def Acc",null,null,null,null,0]
["Sch V","Risk Mgnt",null,"b)Def Acc",null,null,null,null,0]
["Sch V","Risk Mgnt",null,"c)Def Acc",null,null,null,null,0]
["Sch V","Risk Mgnt",null,"d)Def Acc",null,null,null,null,0]
[]
["Sch Va","Governance",null,"# of Directors",0]
["Sch Va","Governance",null,"Director Name - 1",0]
["Sch Va","Governance",null,"Director Name - 2",0]
["Sch Va","Governance",null,"Director Name - 3",0]
["Sch Va","Governance",null,"Director Name - 4",0]
["Sch Va","Governance",null,"Director Name - 5",0]
["Sch Va","Governance",null,"Director Name - 6",0]
["Sch Va","Governance",null,"Director Name - 7",0]
["Sch Va","Governance",null,"Director Name - 8",0]
["Sch Va","Governance",null,"Director Name - 9",0]
["Sch Va","Governance",null,"Director Name - 10",0]
["Sch Va","Governance",null,"Director Name - 11",0]
["Sch Va","Governance",null,"Director Name - 12",0]
["Sch Va","Governance",null,"Director Name - 13",0]
["Sch Va","Governance",null,"Director Name - 14",0]
["Sch Va","Governance",null,"Director Name - 15",0]
["Sch Va","Governance",null,"Director Name - 16",0]
["Sch Va","Governance",null,"Director Name - 17",0]
["Sch Va","Governance",null,"Director Name - 18",0]
["Sch Va","Governance",null,"Director Name - 19",0]
["Sch Va","Governance",null,"Director Name - 20",0]
["Sch Va","Governance",null,"Director Position - 1",0]
["Sch Va","Governance",null,"Director Position - 2",0]
["Sch Va","Governance",null,"Director Position - 3",0]
["Sch Va","Governance",null,"Director Position - 4",0]
["Sch Va","Governance",null,"Director Position - 5",0]
["Sch Va","Governance",null,"Director Position - 6",0]
["Sch Va","Governance",null,"Director Position - 7",0]
["Sch Va","Governance",null,"Director Position - 8",0]
["Sch Va","Governance",null,"Director Position - 9",0]
["Sch Va","Governance",null,"Director Position - 10",0]
["Sch Va","Governance",null,"Director Position - 11",0]
["Sch Va","Governance",null,"Director Position - 12",0]
["Sch Va","Governance",null,"Director Position - 13",0]
["Sch Va","Governance",null,"Director Position - 14",0]
["Sch Va","Governance",null,"Director Position - 15",0]
["Sch Va","Governance",null,"Director Position - 16",0]
["Sch Va","Governance",null,"Director Position - 17",0]
["Sch Va","Governance",null,"Director Position - 18",0]
["Sch Va","Governance",null,"Director Position - 19",0]
["Sch Va","Governance",null,"Director Position - 20",0]
["Sch Va","Governance",null,"Director Residence - 1",0]
["Sch Va","Governance",null,"Director Residence - 2",0]
["Sch Va","Governance",null,"Director Residence - 3",0]
["Sch Va","Governance",null,"Director Residence - 4",0]
["Sch Va","Governance",null,"Director Residence - 5",0]
["Sch Va","Governance",null,"Director Residence - 6",0]
["Sch Va","Governance",null,"Director Residence - 7",0]
["Sch Va","Governance",null,"Director Residence - 8",0]
["Sch Va","Governance",null,"Director Residence - 9",0]
["Sch Va","Governance",null,"Director Residence - 10",0]
["Sch Va","Governance",null,"Director Residence - 11",0]
["Sch Va","Governance",null,"Director Residence - 12",0]
["Sch Va","Governance",null,"Director Residence - 13",0]
["Sch Va","Governance",null,"Director Residence - 14",0]
["Sch Va","Governance",null,"Director Residence - 15",0]
["Sch Va","Governance",null,"Director Residence - 16",0]
["Sch Va","Governance",null,"Director Residence - 17",0]
["Sch Va","Governance",null,"Director Residence - 18",0]
["Sch Va","Governance",null,"Director Residence - 19",0]
["Sch Va","Governance",null,"Director Residence - 20",0]
["Sch Va","Governance",null,"Director Work Experience - 1",0]
["Sch Va","Governance",null,"Director Work Experience - 2",0]
["Sch Va","Governance",null,"Director Work Experience - 3",0]
["Sch Va","Governance",null,"Director Work Experience - 4",0]
["Sch Va","Governance",null,"Director Work Experience - 5",0]
["Sch Va","Governance",null,"Director Work Experience - 6",0]
["Sch Va","Governance",null,"Director Work Experience - 7",0]
["Sch Va","Governance",null,"Director Work Experience - 8",0]
["Sch Va","Governance",null,"Director Work Experience - 9",0]
["Sch Va","Governance",null,"Director Work Experience - 10",0]
["Sch Va","Governance",null,"Director Work Experience - 11",0]
["Sch Va","Governance",null,"Director Work Experience - 12",0]
["Sch Va","Governance",null,"Director Work Experience - 13",0]
["Sch Va","Governance",null,"Director Work Experience - 14",0]
["Sch Va","Governance",null,"Director Work Experience - 15",0]
["Sch Va","Governance",null,"Director Work Experience - 16",0]
["Sch Va","Governance",null,"Director Work Experience - 17",0]
["Sch Va","Governance",null,"Director Work Experience - 18",0]
["Sch Va","Governance",null,"Director Work Experience - 19",0]
["Sch Va","Governance",null,"Director Work Experience - 20",0]
["Sch Va","Governance",null,"Director Status on Board - 1","Select"]
["Sch Va","Governance",null,"Director Status on Board - 2","Select"]
["Sch Va","Governance",null,"Director Status on Board - 3","Select"]
["Sch Va","Governance",null,"Director Status on Board - 4","Select"]
["Sch Va","Governance",null,"Director Status on Board - 5","Select"]
["Sch Va","Governance",null,"Director Status on Board - 6","Select"]
["Sch Va","Governance",null,"Director Status on Board - 7","Select"]
["Sch Va","Governance",null,"Director Status on Board - 8","Select"]
["Sch Va","Governance",null,"Director Status on Board - 9","Select"]
["Sch Va","Governance",null,"Director Status on Board - 10","Select"]
["Sch Va","Governance",null,"Director Status on Board - 11","Select"]
["Sch Va","Governance",null,"Director Status on Board - 12","Select"]
["Sch Va","Governance",null,"Director Status on Board - 13","Select"]
["Sch Va","Governance",null,"Director Status on Board - 14","Select"]
["Sch Va","Governance",null,"Director Status on Board - 15","Select"]
["Sch Va","Governance",null,"Director Status on Board - 16","Select"]
["Sch Va","Governance",null,"Director Status on Board - 17","Select"]
["Sch Va","Governance",null,"Director Status on Board - 18","Select"]
["Sch Va","Governance",null,"Director Status on Board - 19","Select"]
["Sch Va","Governance",null,"Director Status on Board - 20","Select"]
["Sch Va","Governance",null,"# of Executives",0]
["Sch Va","Governance",null,"Executive Name - 1",0]
["Sch Va","Governance",null,"Executive Name - 2",0]
["Sch Va","Governance",null,"Executive Name - 3",0]
["Sch Va","Governance",null,"Executive Name - 4",0]
["Sch Va","Governance",null,"Executive Name - 5",0]
["Sch Va","Governance",null,"Executive Name - 6",0]
["Sch Va","Governance",null,"Executive Name - 7",0]
["Sch Va","Governance",null,"Executive Name - 8",0]
["Sch Va","Governance",null,"Executive Name - 9",0]
["Sch Va","Governance",null,"Executive Name - 10",0]
["Sch Va","Governance",null,"Executive Name - 11",0]
["Sch Va","Governance",null,"Executive Name - 12",0]
["Sch Va","Governance",null,"Executive Name - 13",0]
["Sch Va","Governance",null,"Executive Name - 14",0]
["Sch Va","Governance",null,"Executive Name - 15",0]
["Sch Va","Governance",null,"Executive Name - 16",0]
["Sch Va","Governance",null,"Executive Name - 17",0]
["Sch Va","Governance",null,"Executive Name - 18",0]
["Sch Va","Governance",null,"Executive Name - 19",0]
["Sch Va","Governance",null,"Executive Name - 20",0]
["Sch Va","Governance",null,"Executive Position - 1",0]
["Sch Va","Governance",null,"Executive Position - 2",0]
["Sch Va","Governance",null,"Executive Position - 3",0]
["Sch Va","Governance",null,"Executive Position - 4",0]
["Sch Va","Governance",null,"Executive Position - 5",0]
["Sch Va","Governance",null,"Executive Position - 6",0]
["Sch Va","Governance",null,"Executive Position - 7",0]
["Sch Va","Governance",null,"Executive Position - 8",0]
["Sch Va","Governance",null,"Executive Position - 9",0]
["Sch Va","Governance",null,"Executive Position - 10",0]
["Sch Va","Governance",null,"Executive Position - 11",0]
["Sch Va","Governance",null,"Executive Position - 12",0]
["Sch Va","Governance",null,"Executive Position - 13",0]
["Sch Va","Governance",null,"Executive Position - 14",0]
["Sch Va","Governance",null,"Executive Position - 15",0]
["Sch Va","Governance",null,"Executive Position - 16",0]
["Sch Va","Governance",null,"Executive Position - 17",0]
["Sch Va","Governance",null,"Executive Position - 18",0]
["Sch Va","Governance",null,"Executive Position - 19",0]
["Sch Va","Governance",null,"Executive Position - 20",0]
["Sch Va","Governance",null,"Executive Residence - 1",0]
["Sch Va","Governance",null,"Executive Residence - 2",0]
["Sch Va","Governance",null,"Executive Residence - 3",0]
["Sch Va","Governance",null,"Executive Residence - 4",0]
["Sch Va","Governance",null,"Executive Residence - 5",0]
["Sch Va","Governance",null,"Executive Residence - 6",0]
["Sch Va","Governance",null,"Executive Residence - 7",0]
["Sch Va","Governance",null,"Executive Residence - 8",0]
["Sch Va","Governance",null,"Executive Residence - 9",0]
["Sch Va","Governance",null,"Executive Residence - 10",0]
["Sch Va","Governance",null,"Executive Residence - 11",0]
["Sch Va","Governance",null,"Executive Residence - 12",0]
["Sch Va","Governance",null,"Executive Residence - 13",0]
["Sch Va","Governance",null,"Executive Residence - 14",0]
["Sch Va","Governance",null,"Executive Residence - 15",0]
["Sch Va","Governance",null,"Executive Residence - 16",0]
["Sch Va","Governance",null,"Executive Residence - 17",0]
["Sch Va","Governance",null,"Executive Residence - 18",0]
["Sch Va","Governance",null,"Executive Residence - 19",0]
["Sch Va","Governance",null,"Executive Residence - 20",0]
["Sch Va","Governance",null,"Executive Work Experience - 1",0]
["Sch Va","Governance",null,"Executive Work Experience - 2",0]
["Sch Va","Governance",null,"Executive Work Experience - 3",0]
["Sch Va","Governance",null,"Executive Work Experience - 4",0]
["Sch Va","Governance",null,"Executive Work Experience - 5",0]
["Sch Va","Governance",null,"Executive Work Experience - 6",0]
["Sch Va","Governance",null,"Executive Work Experience - 7",0]
["Sch Va","Governance",null,"Executive Work Experience - 8",0]
["Sch Va","Governance",null,"Executive Work Experience - 9",0]
["Sch Va","Governance",null,"Executive Work Experience - 10",0]
["Sch Va","Governance",null,"Executive Work Experience - 11",0]
["Sch Va","Governance",null,"Executive Work Experience - 12",0]
["Sch Va","Governance",null,"Executive Work Experience - 13",0]
["Sch Va","Governance",null,"Executive Work Experience - 14",0]
["Sch Va","Governance",null,"Executive Work Experience - 15",0]
["Sch Va","Governance",null,"Executive Work Experience - 16",0]
["Sch Va","Governance",null,"Executive Work Experience - 17",0]
["Sch Va","Governance",null,"Executive Work Experience - 18",0]
["Sch Va","Governance",null,"Executive Work Experience - 19",0]
["Sch Va","Governance",null,"Executive Work Experience - 20",0]
["Sch Va","Governance",null,"Executive Employee Arrangement - 1","Select"]
["Sch Va","Governance",null,"Executive Employee Arrangement - 2","Select"]
["Sch Va","Governance",null,"Executive Employee Arrangement - 3","Select"]
["Sch Va","Governance",null,"Executive Employee Arrangement - 4","Select"]
["Sch Va","Governance",null,"Executive Employee Arrangement - 5","Select"]
["Sch Va","Governance",null,"Executive Employee Arrangement - 6","Select"]
["Sch Va","Governance",null,"Executive Employee Arrangement - 7","Select"]
["Sch Va","Governance",null,"Executive Employee Arrangement - 8","Select"]
["Sch Va","Governance",null,"Executive Employee Arrangement - 9","Select"]
["Sch Va","Governance",null,"Executive Employee Arrangement - 10","Select"]
["Sch Va","Governance",null,"Executive Employee Arrangement - 11","Select"]
["Sch Va","Governance",null,"Executive Employee Arrangement - 12","Select"]
["Sch Va","Governance",null,"Executive Employee Arrangement - 13","Select"]
["Sch Va","Governance",null,"Executive Employee Arrangement - 14","Select"]
["Sch Va","Governance",null,"Executive Employee Arrangement - 15","Select"]
["Sch Va","Governance",null,"Executive Employee Arrangement - 16","Select"]
["Sch Va","Governance",null,"Executive Employee Arrangement - 17","Select"]
["Sch Va","Governance",null,"Executive Employee Arrangement - 18","Select"]
["Sch Va","Governance",null,"Executive Employee Arrangement - 19","Select"]
["Sch Va","Governance",null,"Executive Employee Arrangement - 20","Select"]
["Sch Va","Governance",null,"Executive Responsibilities - 1","Select"]
["Sch Va","Governance",null,"Executive Responsibilities - 2","Select"]
["Sch Va","Governance",null,"Executive Responsibilities - 3","Select"]
["Sch Va","Governance",null,"Executive Responsibilities - 4","Select"]
["Sch Va","Governance",null,"Executive Responsibilities - 5","Select"]
["Sch Va","Governance",null,"Executive Responsibilities - 6","Select"]
["Sch Va","Governance",null,"Executive Responsibilities - 7","Select"]
["Sch Va","Governance",null,"Executive Responsibilities - 8","Select"]
["Sch Va","Governance",null,"Executive Responsibilities - 9","Select"]
["Sch Va","Governance",null,"Executive Responsibilities - 10","Select"]
["Sch Va","Governance",null,"Executive Responsibilities - 11","Select"]
["Sch Va","Governance",null,"Executive Responsibilities - 12","Select"]
["Sch Va","Governance",null,"Executive Responsibilities - 13","Select"]
["Sch Va","Governance",null,"Executive Responsibilities - 14","Select"]
["Sch Va","Governance",null,"Executive Responsibilities - 15","Select"]
["Sch Va","Governance",null,"Executive Responsibilities - 16","Select"]
["Sch Va","Governance",null,"Executive Responsibilities - 17","Select"]
["Sch Va","Governance",null,"Executive Responsibilities - 18","Select"]
["Sch Va","Governance",null,"Executive Responsibilities - 19","Select"]
["Sch Va","Governance",null,"Executive Responsibilities - 20","Select"]
["Sch Va","Governance",null,"Tax Residency outside of Bermuda","Select Yes/No"]
["Sch Va","Governance",null,"If Yes, Tax Residency Jurisdiction","Select"]
["Sch Va","Governance",null,"BOD Activity - Strategic Direction","Select Yes/No"]
["Sch Va","Governance",null,"BOD Activity - Risk Appetite","Select Yes/No"]
["Sch Va","Governance",null,"BOD Activity - LOB Decisions","Select Yes/No"]
["Sch Va","Governance",null,"BOD Activity - Solvency Req.","Select Yes/No"]
["Sch Va","Governance",null,"BOD Location - Strategic Direction",0]
["Sch Va","Governance",null,"BOD Location - Risk Appetite",0]
["Sch Va","Governance",null,"BOD Location - LOB Decisions",0]
["Sch Va","Governance",null,"BOD Location - Solvency Req.",0]
["Sch Va","Governance",null,"U/W - Operation in Bermuda","Select Yes/No"]
["Sch Va","Governance",null,"Risk Mgmt. - Operation in Bermuda","Select Yes/No"]
["Sch Va","Governance",null,"Inv. Strategy - Operation in Bermuda","Select Yes/No"]
["Sch Va","Governance",null,"Actuarial - Operation in Bermuda","Select Yes/No"]
["Sch Va","Governance",null,"Compliance - Operation in Bermuda","Select Yes/No"]
["Sch Va","Governance",null,"Int. Audit - Operation in Bermuda","Select Yes/No"]
["Sch Va","Governance",null,"U/W - Operation Location",0]
["Sch Va","Governance",null,"Risk Mgmt. - Operation Location",0]
["Sch Va","Governance",null,"Inv. Strategy - Operation Location",0]
["Sch Va","Governance",null,"Actuarial - Operation Location",0]
["Sch Va","Governance",null,"Compliance - Operation Location",0]
["Sch Va","Governance",null,"Int. Audit - Operation Location",0]
["Sch Va","Governance",null,"U/W - Outsourced","Select Yes/No"]
["Sch Va","Governance",null,"Risk Mgmt. - Outsourced","Select Yes/No"]
["Sch Va","Governance",null,"Inv. Strategy - Outsourced","Select Yes/No"]
["Sch Va","Governance",null,"Actuarial - Outsourced","Select Yes/No"]
["Sch Va","Governance",null,"Compliance - Outsourced","Select Yes/No"]
["Sch Va","Governance",null,"Int. Audit - Outsourced","Select Yes/No"]
["Sch Va","Governance",null,"U/W - Provider Type","Select"]
["Sch Va","Governance",null,"Risk Mgmt. - Provider Type","Select"]
["Sch Va","Governance",null,"Inv. Strategy - Provider Type","Select"]
["Sch Va","Governance",null,"Actuarial - Provider Type","Select"]
["Sch Va","Governance",null,"Compliance - Provider Type","Select"]
["Sch Va","Governance",null,"Int. Audit - Provider Type","Select"]
["Sch Va","Governance",null,"U/W - Name of Provider",0]
["Sch Va","Governance",null,"Risk Mgmt. - Name of Provider",0]
["Sch Va","Governance",null,"Inv. Strategy - Name of Provider",0]
["Sch Va","Governance",null,"Actuarial - Name of Provider",0]
["Sch Va","Governance",null,"Compliance - Name of Provider",0]
["Sch Va","Governance",null,"Int. Audit - Name of Provider",0]
["Sch Va","Governance",null,"Services Outsourced - Principal Rep.","Select Yes/No"]
["Sch Va","Governance",null,"Services Outsourced - Director/Board Member","Select Yes/No"]
["Sch Va","Governance",null,"Services Outsourced - Senior Officer","Select Yes/No"]
["Sch Va","Governance",null,"Services Outsourced - Accounting","Select Yes/No"]
["Sch Va","Governance",null,"Services Outsourced - Prep. SFR/Prudential","Select Yes/No"]
["Sch Va","Governance",null,"Services Outsourced - Underwriting","Select Yes/No"]
["Sch Va","Governance",null,"Services Outsourced - Claims Handling","Select Yes/No"]
["Sch Va","Governance",null,"Services Outsourced - Risk Mgmt.","Select Yes/No"]
["Sch Va","Governance",null,"Services Outsourced - Investment","Select Yes/No"]
["Sch Va","Governance",null,"Services Outsourced - Treasury","Select Yes/No"]
["Sch Va","Governance",null,"Services Outsourced - Actuarial","Select Yes/No"]
["Sch Va","Governance",null,"Services Outsourced - Internal Audit","Select Yes/No"]
["Sch Va","Governance",null,"Services Outsourced - Compliance","Select Yes/No"]
["Sch Va","Governance",null,"Services Outsourced - AML/ATF/Sanctions","Select Yes/No"]
["Sch Va","Governance",null,"Services Outsourced - Money Laundering Officer","Select Yes/No"]
["Sch Va","Governance",null,"Services Outsourced - Other",0]
["Sch Va","Governance",null,"Services in BDA - Principal Rep.","Select Yes/No"]
["Sch Va","Governance",null,"Services in BDA - Director/Board Member","Select Yes/No"]
["Sch Va","Governance",null,"Services in BDA - Senior Officer","Select Yes/No"]
["Sch Va","Governance",null,"Services in BDA - Accounting","Select Yes/No"]
["Sch Va","Governance",null,"Services in BDA - Prep. SFR/Prudential","Select Yes/No"]
["Sch Va","Governance",null,"Services in BDA - Underwriting","Select Yes/No"]
["Sch Va","Governance",null,"Services in BDA - Claims Handling","Select Yes/No"]
["Sch Va","Governance",null,"Services in BDA - Risk Mgmt.","Select Yes/No"]
["Sch Va","Governance",null,"Services in BDA - Investment","Select Yes/No"]
["Sch Va","Governance",null,"Services in BDA - Treasury","Select Yes/No"]
["Sch Va","Governance",null,"Services in BDA - Actuarial","Select Yes/No"]
["Sch Va","Governance",null,"Services in BDA - Internal Audit","Select Yes/No"]
["Sch Va","Governance",null,"Services in BDA - Compliance","Select Yes/No"]
["Sch Va","Governance",null,"Services in BDA - AML/ATF/Sanctions","Select Yes/No"]
["Sch Va","Governance",null,"Services in BDA - Money Laundering Officer","Select Yes/No"]
["Sch Va","Governance",null,"Employees in BDA",0]
["Sch Va","Governance",null,"Number of Employes in BDA - Senior Executive",0]
["Sch Va","Governance",null,"Number of Employes in BDA - Senior Manager",0]
["Sch Va","Governance",null,"Number of Employes in BDA - Technical Officer",0]
["Sch Va","Governance",null,"Number of Employes in BDA - Admnistrative",0]
["Sch Va","Governance",null,"7a Group BOD-Strat. Decision- Location",null,null,null,null,0]
["Sch Va","Governance",null,"7b Group BOD-Risk Appet.- Location",null,null,null,null,0]
["Sch Va","Governance",null,"7c Group BOD-Corp. Struct.- Location",null,null,null,null,0]
["Sch Va","Governance",null,"7d Group BOD-LOB, Prod. & Mkt.- Location",null,null,null,null,0]
["Sch Va","Governance",null,"7e Group BOD-Assess Solvency- Location",null,null,null,null,0]
["Sch Va","Governance",null,"8. Group BOD - Reside",null,null,null,null,0]
["Sch Va","Governance",null,"9. Group Control Function - Reside",null,null,null,null,0]
["Sch Va","Governance",null,"10a Group's Total Assets",null,null,null,null,0]
["Sch Va","Governance",null,"10b Group's Total Reserves",null,null,null,null,0]
["Sch Va","Governance",null,"10c Group's Total Capital & Surplus",null,null,null,null,0]
["Sch Va","Governance",null,"Name of Insurer - 1",null,null,null,null,0]
["Sch Va","Governance",null,"Name of Insurer - 2",null,null,null,null,0]
["Sch Va","Governance",null,"Name of Insurer - 3",null,null,null,null,0]
["Sch Va","Governance",null,"Name of Insurer - 4",null,null,null,null,0]
["Sch Va","Governance",null,"Name of Insurer - 5",null,null,null,null,0]
["Sch Va","Governance",null,"Name of Insurer - 6",null,null,null,null,0]
["Sch Va","Governance",null,"Name of Insurer - 7",null,null,null,null,0]
["Sch Va","Governance",null,"Name of Insurer - 8",null,null,null,null,0]
["Sch Va","Governance",null,"Name of Insurer - 9",null,null,null,null,0]
["Sch Va","Governance",null,"Insurer Location - 1",null,null,null,null,0]
["Sch Va","Governance",null,"Insurer Location - 2",null,null,null,null,0]
["Sch Va","Governance",null,"Insurer Location - 3",null,null,null,null,0]
["Sch Va","Governance",null,"Insurer Location - 4",null,null,null,null,0]
["Sch Va","Governance",null,"Insurer Location - 5",null,null,null,null,0]
["Sch Va","Governance",null,"Insurer Location - 6",null,null,null,null,0]
["Sch Va","Governance",null,"Insurer Location - 7",null,null,null,null,0]
["Sch Va","Governance",null,"Insurer Location - 8",null,null,null,null,0]
["Sch Va","Governance",null,"Insurer Location - 9",null,null,null,null,0]
["Sch Va","Governance",null,"Insurer Asset - 1",null,null,null,null,0]
["Sch Va","Governance",null,"Insurer Asset - 2",null,null,null,null,0]
["Sch Va","Governance",null,"Insurer Asset - 3",null,null,null,null,0]
["Sch Va","Governance",null,"Insurer Asset - 4",null,null,null,null,0]
["Sch Va","Governance",null,"Insurer Asset - 5",null,null,null,null,0]
["Sch Va","Governance",null,"Insurer Asset - 6",null,null,null,null,0]
["Sch Va","Governance",null,"Insurer Asset - 7",null,null,null,null,0]
["Sch Va","Governance",null,"Insurer Asset - 8",null,null,null,null,0]
["Sch Va","Governance",null,"Insurer Asset - 9",null,null,null,null,0]
["Sch Va","Governance",null,"Insurer Reserve - 1",null,null,null,null,0]
["Sch Va","Governance",null,"Insurer Reserve - 2",null,null,null,null,0]
["Sch Va","Governance",null,"Insurer Reserve - 3",null,null,null,null,0]
["Sch Va","Governance",null,"Insurer Reserve - 4",null,null,null,null,0]
["Sch Va","Governance",null,"Insurer Reserve - 5",null,null,null,null,0]
["Sch Va","Governance",null,"Insurer Reserve - 6",null,null,null,null,0]
["Sch Va","Governance",null,"Insurer Reserve - 7",null,null,null,null,0]
["Sch Va","Governance",null,"Insurer Reserve - 8",null,null,null,null,0]
["Sch Va","Governance",null,"Insurer Reserve - 9",null,null,null,null,0]
["Sch Va","Governance",null,"Insurer Capital & Surplus - 1",null,null,null,null,0]
["Sch Va","Governance",null,"Insurer Capital & Surplus - 2",null,null,null,null,0]
["Sch Va","Governance",null,"Insurer Capital & Surplus - 3",null,null,null,null,0]
["Sch Va","Governance",null,"Insurer Capital & Surplus - 4",null,null,null,null,0]
["Sch Va","Governance",null,"Insurer Capital & Surplus - 5",null,null,null,null,0]
["Sch Va","Governance",null,"Insurer Capital & Surplus - 6",null,null,null,null,0]
["Sch Va","Governance",null,"Insurer Capital & Surplus - 7",null,null,null,null,0]
["Sch Va","Governance",null,"Insurer Capital & Surplus - 8",null,null,null,null,0]
["Sch Va","Governance",null,"Insurer Capital & Surplus - 9",null,null,null,null,0]
["Sch Va","Governance",null,"12 Subsequent Events",0]
[]
["Sch Vc","Group Structure",null,"# of Largest Counterparty Exposure",0]
["Sch Vc","Group Structure",null,"Counterparty Name - 1",0]
["Sch Vc","Group Structure",null,"Counterparty Name - 2",0]
["Sch Vc","Group Structure",null,"Counterparty Name - 3",0]
["Sch Vc","Group Structure",null,"Counterparty Name - 4",0]
["Sch Vc","Group Structure",null,"Counterparty Name - 5",0]
["Sch Vc","Group Structure",null,"Counterparty Name - 6",0]
["Sch Vc","Group Structure",null,"Counterparty Name - 7",0]
["Sch Vc","Group Structure",null,"Counterparty Name - 8",0]
["Sch Vc","Group Structure",null,"Counterparty Name - 9",0]
["Sch Vc","Group Structure",null,"Counterparty Name - 10",0]
["Sch Vc","Group Structure",null,"Counterparty Name - 11",0]
["Sch Vc","Group Structure",null,"Counterparty Name - 12",0]
["Sch Vc","Group Structure",null,"Counterparty Name - 13",0]
["Sch Vc","Group Structure",null,"Counterparty Name - 14",0]
["Sch Vc","Group Structure",null,"Counterparty Name - 15",0]
["Sch Vc","Group Structure",null,"Counterparty Name - 16",0]
["Sch Vc","Group Structure",null,"Counterparty Name - 17",0]
["Sch Vc","Group Structure",null,"Counterparty Name - 18",0]
["Sch Vc","Group Structure",null,"Counterparty Name - 19",0]
["Sch Vc","Group Structure",null,"Counterparty Name - 20",0]
["Sch Vc","Group Structure",null,"Counterparty Name - 21",0]
["Sch Vc","Group Structure",null,"Counterparty Name - 22",0]
["Sch Vc","Group Structure",null,"Counterparty Name - 23",0]
["Sch Vc","Group Structure",null,"Counterparty Name - 24",0]
["Sch Vc","Group Structure",null,"Counterparty Name - 25",0]
["Sch Vc","Group Structure",null,"Counterparty Location - 1",0]
["Sch Vc","Group Structure",null,"Counterparty Location - 2",0]
["Sch Vc","Group Structure",null,"Counterparty Location - 3",0]
["Sch Vc","Group Structure",null,"Counterparty Location - 4",0]
["Sch Vc","Group Structure",null,"Counterparty Location - 5",0]
["Sch Vc","Group Structure",null,"Counterparty Location - 6",0]
["Sch Vc","Group Structure",null,"Counterparty Location - 7",0]
["Sch Vc","Group Structure",null,"Counterparty Location - 8",0]
["Sch Vc","Group Structure",null,"Counterparty Location - 9",0]
["Sch Vc","Group Structure",null,"Counterparty Location - 10",0]
["Sch Vc","Group Structure",null,"Counterparty Location - 11",0]
["Sch Vc","Group Structure",null,"Counterparty Location - 12",0]
["Sch Vc","Group Structure",null,"Counterparty Location - 13",0]
["Sch Vc","Group Structure",null,"Counterparty Location - 14",0]
["Sch Vc","Group Structure",null,"Counterparty Location - 15",0]
["Sch Vc","Group Structure",null,"Counterparty Location - 16",0]
["Sch Vc","Group Structure",null,"Counterparty Location - 17",0]
["Sch Vc","Group Structure",null,"Counterparty Location - 18",0]
["Sch Vc","Group Structure",null,"Counterparty Location - 19",0]
["Sch Vc","Group Structure",null,"Counterparty Location - 20",0]
["Sch Vc","Group Structure",null,"Counterparty Location - 21",0]
["Sch Vc","Group Structure",null,"Counterparty Location - 22",0]
["Sch Vc","Group Structure",null,"Counterparty Location - 23",0]
["Sch Vc","Group Structure",null,"Counterparty Location - 24",0]
["Sch Vc","Group Structure",null,"Counterparty Location - 25",0]
["Sch Vc","Group Structure",null,"Exposure Face Value - 1",0]
["Sch Vc","Group Structure",null,"Exposure Face Value - 2",0]
["Sch Vc","Group Structure",null,"Exposure Face Value - 3",0]
["Sch Vc","Group Structure",null,"Exposure Face Value - 4",0]
["Sch Vc","Group Structure",null,"Exposure Face Value - 5",0]
["Sch Vc","Group Structure",null,"Exposure Face Value - 6",0]
["Sch Vc","Group Structure",null,"Exposure Face Value - 7",0]
["Sch Vc","Group Structure",null,"Exposure Face Value - 8",0]
["Sch Vc","Group Structure",null,"Exposure Face Value - 9",0]
["Sch Vc","Group Structure",null,"Exposure Face Value - 10",0]
["Sch Vc","Group Structure",null,"Exposure Face Value - 11",0]
["Sch Vc","Group Structure",null,"Exposure Face Value - 12",0]
["Sch Vc","Group Structure",null,"Exposure Face Value - 13",0]
["Sch Vc","Group Structure",null,"Exposure Face Value - 14",0]
["Sch Vc","Group Structure",null,"Exposure Face Value - 15",0]
["Sch Vc","Group Structure",null,"Exposure Face Value - 16",0]
["Sch Vc","Group Structure",null,"Exposure Face Value - 17",0]
["Sch Vc","Group Structure",null,"Exposure Face Value - 18",0]
["Sch Vc","Group Structure",null,"Exposure Face Value - 19",0]
["Sch Vc","Group Structure",null,"Exposure Face Value - 20",0]
["Sch Vc","Group Structure",null,"Exposure Face Value - 21",0]
["Sch Vc","Group Structure",null,"Exposure Face Value - 22",0]
["Sch Vc","Group Structure",null,"Exposure Face Value - 23",0]
["Sch Vc","Group Structure",null,"Exposure Face Value - 24",0]
["Sch Vc","Group Structure",null,"Exposure Face Value - 25",0]
["Sch Vc","Group Structure",null,"Exposure Market Value - 1",0]
["Sch Vc","Group Structure",null,"Exposure Market Value - 2",0]
["Sch Vc","Group Structure",null,"Exposure Market Value - 3",0]
["Sch Vc","Group Structure",null,"Exposure Market Value - 4",0]
["Sch Vc","Group Structure",null,"Exposure Market Value - 5",0]
["Sch Vc","Group Structure",null,"Exposure Market Value - 6",0]
["Sch Vc","Group Structure",null,"Exposure Market Value - 7",0]
["Sch Vc","Group Structure",null,"Exposure Market Value - 8",0]
["Sch Vc","Group Structure",null,"Exposure Market Value - 9",0]
["Sch Vc","Group Structure",null,"Exposure Market Value - 10",0]
["Sch Vc","Group Structure",null,"Exposure Market Value - 11",0]
["Sch Vc","Group Structure",null,"Exposure Market Value - 12",0]
["Sch Vc","Group Structure",null,"Exposure Market Value - 13",0]
["Sch Vc","Group Structure",null,"Exposure Market Value - 14",0]
["Sch Vc","Group Structure",null,"Exposure Market Value - 15",0]
["Sch Vc","Group Structure",null,"Exposure Market Value - 16",0]
["Sch Vc","Group Structure",null,"Exposure Market Value - 17",0]
["Sch Vc","Group Structure",null,"Exposure Market Value - 18",0]
["Sch Vc","Group Structure",null,"Exposure Market Value - 19",0]
["Sch Vc","Group Structure",null,"Exposure Market Value - 20",0]
["Sch Vc","Group Structure",null,"Exposure Market Value - 21",0]
["Sch Vc","Group Structure",null,"Exposure Market Value - 22",0]
["Sch Vc","Group Structure",null,"Exposure Market Value - 23",0]
["Sch Vc","Group Structure",null,"Exposure Market Value - 24",0]
["Sch Vc","Group Structure",null,"Exposure Market Value - 25",0]
["Sch Vc","Group Structure",null,"Transaction Type - 1",0]
["Sch Vc","Group Structure",null,"Transaction Type - 2",0]
["Sch Vc","Group Structure",null,"Transaction Type - 3",0]
["Sch Vc","Group Structure",null,"Transaction Type - 4",0]
["Sch Vc","Group Structure",null,"Transaction Type - 5",0]
["Sch Vc","Group Structure",null,"Transaction Type - 6",0]
["Sch Vc","Group Structure",null,"Transaction Type - 7",0]
["Sch Vc","Group Structure",null,"Transaction Type - 8",0]
["Sch Vc","Group Structure",null,"Transaction Type - 9",0]
["Sch Vc","Group Structure",null,"Transaction Type - 10",0]
["Sch Vc","Group Structure",null,"Transaction Type - 11",0]
["Sch Vc","Group Structure",null,"Transaction Type - 12",0]
["Sch Vc","Group Structure",null,"Transaction Type - 13",0]
["Sch Vc","Group Structure",null,"Transaction Type - 14",0]
["Sch Vc","Group Structure",null,"Transaction Type - 15",0]
["Sch Vc","Group Structure",null,"Transaction Type - 16",0]
["Sch Vc","Group Structure",null,"Transaction Type - 17",0]
["Sch Vc","Group Structure",null,"Transaction Type - 18",0]
["Sch Vc","Group Structure",null,"Transaction Type - 19",0]
["Sch Vc","Group Structure",null,"Transaction Type - 20",0]
["Sch Vc","Group Structure",null,"Transaction Type - 21",0]
["Sch Vc","Group Structure",null,"Transaction Type - 22",0]
["Sch Vc","Group Structure",null,"Transaction Type - 23",0]
["Sch Vc","Group Structure",null,"Transaction Type - 24",0]
["Sch Vc","Group Structure",null,"Transaction Type - 25",0]
["Sch Vc","Group Structure",null,"# of Material Intra-Group Transactions",0]
["Sch Vc","Group Structure",null,"Issuer/Borrower Name - 1",0]
["Sch Vc","Group Structure",null,"Issuer/Borrower Name - 2",0]
["Sch Vc","Group Structure",null,"Issuer/Borrower Name - 3",0]
["Sch Vc","Group Structure",null,"Issuer/Borrower Name - 4",0]
["Sch Vc","Group Structure",null,"Issuer/Borrower Name - 5",0]
["Sch Vc","Group Structure",null,"Issuer/Borrower Name - 6",0]
["Sch Vc","Group Structure",null,"Issuer/Borrower Name - 7",0]
["Sch Vc","Group Structure",null,"Issuer/Borrower Name - 8",0]
["Sch Vc","Group Structure",null,"Issuer/Borrower Name - 9",0]
["Sch Vc","Group Structure",null,"Issuer/Borrower Name - 10",0]
["Sch Vc","Group Structure",null,"Issuer/Borrower Name - 11",0]
["Sch Vc","Group Structure",null,"Issuer/Borrower Name - 12",0]
["Sch Vc","Group Structure",null,"Issuer/Borrower Name - 13",0]
["Sch Vc","Group Structure",null,"Issuer/Borrower Name - 14",0]
["Sch Vc","Group Structure",null,"Issuer/Borrower Name - 15",0]
["Sch Vc","Group Structure",null,"Issuer/Borrower Name - 16",0]
["Sch Vc","Group Structure",null,"Issuer/Borrower Name - 17",0]
["Sch Vc","Group Structure",null,"Issuer/Borrower Name - 18",0]
["Sch Vc","Group Structure",null,"Issuer/Borrower Name - 19",0]
["Sch Vc","Group Structure",null,"Issuer/Borrower Name - 20",0]
["Sch Vc","Group Structure",null,"Issuer/Borrower Name - 21",0]
["Sch Vc","Group Structure",null,"Issuer/Borrower Name - 22",0]
["Sch Vc","Group Structure",null,"Issuer/Borrower Name - 23",0]
["Sch Vc","Group Structure",null,"Issuer/Borrower Name - 24",0]
["Sch Vc","Group Structure",null,"Issuer/Borrower Name - 25",0]
["Sch Vc","Group Structure",null,"Issuer Jurisdiction - 1",0]
["Sch Vc","Group Structure",null,"Issuer Jurisdiction - 2",0]
["Sch Vc","Group Structure",null,"Issuer Jurisdiction - 3",0]
["Sch Vc","Group Structure",null,"Issuer Jurisdiction - 4",0]
["Sch Vc","Group Structure",null,"Issuer Jurisdiction - 5",0]
["Sch Vc","Group Structure",null,"Issuer Jurisdiction - 6",0]
["Sch Vc","Group Structure",null,"Issuer Jurisdiction - 7",0]
["Sch Vc","Group Structure",null,"Issuer Jurisdiction - 8",0]
["Sch Vc","Group Structure",null,"Issuer Jurisdiction - 9",0]
["Sch Vc","Group Structure",null,"Issuer Jurisdiction - 10",0]
["Sch Vc","Group Structure",null,"Issuer Jurisdiction - 11",0]
["Sch Vc","Group Structure",null,"Issuer Jurisdiction - 12",0]
["Sch Vc","Group Structure",null,"Issuer Jurisdiction - 13",0]
["Sch Vc","Group Structure",null,"Issuer Jurisdiction - 14",0]
["Sch Vc","Group Structure",null,"Issuer Jurisdiction - 15",0]
["Sch Vc","Group Structure",null,"Issuer Jurisdiction - 16",0]
["Sch Vc","Group Structure",null,"Issuer Jurisdiction - 17",0]
["Sch Vc","Group Structure",null,"Issuer Jurisdiction - 18",0]
["Sch Vc","Group Structure",null,"Issuer Jurisdiction - 19",0]
["Sch Vc","Group Structure",null,"Issuer Jurisdiction - 20",0]
["Sch Vc","Group Structure",null,"Issuer Jurisdiction - 21",0]
["Sch Vc","Group Structure",null,"Issuer Jurisdiction - 22",0]
["Sch Vc","Group Structure",null,"Issuer Jurisdiction - 23",0]
["Sch Vc","Group Structure",null,"Issuer Jurisdiction - 24",0]
["Sch Vc","Group Structure",null,"Issuer Jurisdiction - 25",0]
["Sch Vc","Group Structure",null,"Investor/Lendor Name - 1",0]
["Sch Vc","Group Structure",null,"Investor/Lendor Name - 2",0]
["Sch Vc","Group Structure",null,"Investor/Lendor Name - 3",0]
["Sch Vc","Group Structure",null,"Investor/Lendor Name - 4",0]
["Sch Vc","Group Structure",null,"Investor/Lendor Name - 5",0]
["Sch Vc","Group Structure",null,"Investor/Lendor Name - 6",0]
["Sch Vc","Group Structure",null,"Investor/Lendor Name - 7",0]
["Sch Vc","Group Structure",null,"Investor/Lendor Name - 8",0]
["Sch Vc","Group Structure",null,"Investor/Lendor Name - 9",0]
["Sch Vc","Group Structure",null,"Investor/Lendor Name - 10",0]
["Sch Vc","Group Structure",null,"Investor/Lendor Name - 11",0]
["Sch Vc","Group Structure",null,"Investor/Lendor Name - 12",0]
["Sch Vc","Group Structure",null,"Investor/Lendor Name - 13",0]
["Sch Vc","Group Structure",null,"Investor/Lendor Name - 14",0]
["Sch Vc","Group Structure",null,"Investor/Lendor Name - 15",0]
["Sch Vc","Group Structure",null,"Investor/Lendor Name - 16",0]
["Sch Vc","Group Structure",null,"Investor/Lendor Name - 17",0]
["Sch Vc","Group Structure",null,"Investor/Lendor Name - 18",0]
["Sch Vc","Group Structure",null,"Investor/Lendor Name - 19",0]
["Sch Vc","Group Structure",null,"Investor/Lendor Name - 20",0]
["Sch Vc","Group Structure",null,"Investor/Lendor Name - 21",0]
["Sch Vc","Group Structure",null,"Investor/Lendor Name - 22",0]
["Sch Vc","Group Structure",null,"Investor/Lendor Name - 23",0]
["Sch Vc","Group Structure",null,"Investor/Lendor Name - 24",0]
["Sch Vc","Group Structure",null,"Investor/Lendor Name - 25",0]
["Sch Vc","Group Structure",null,"Investor Jurisdiction - 1",0]
["Sch Vc","Group Structure",null,"Investor Jurisdiction - 2",0]
["Sch Vc","Group Structure",null,"Investor Jurisdiction - 3",0]
["Sch Vc","Group Structure",null,"Investor Jurisdiction - 4",0]
["Sch Vc","Group Structure",null,"Investor Jurisdiction - 5",0]
["Sch Vc","Group Structure",null,"Investor Jurisdiction - 6",0]
["Sch Vc","Group Structure",null,"Investor Jurisdiction - 7",0]
["Sch Vc","Group Structure",null,"Investor Jurisdiction - 8",0]
["Sch Vc","Group Structure",null,"Investor Jurisdiction - 9",0]
["Sch Vc","Group Structure",null,"Investor Jurisdiction - 10",0]
["Sch Vc","Group Structure",null,"Investor Jurisdiction - 11",0]
["Sch Vc","Group Structure",null,"Investor Jurisdiction - 12",0]
["Sch Vc","Group Structure",null,"Investor Jurisdiction - 13",0]
["Sch Vc","Group Structure",null,"Investor Jurisdiction - 14",0]
["Sch Vc","Group Structure",null,"Investor Jurisdiction - 15",0]
["Sch Vc","Group Structure",null,"Investor Jurisdiction - 16",0]
["Sch Vc","Group Structure",null,"Investor Jurisdiction - 17",0]
["Sch Vc","Group Structure",null,"Investor Jurisdiction - 18",0]
["Sch Vc","Group Structure",null,"Investor Jurisdiction - 19",0]
["Sch Vc","Group Structure",null,"Investor Jurisdiction - 20",0]
["Sch Vc","Group Structure",null,"Investor Jurisdiction - 21",0]
["Sch Vc","Group Structure",null,"Investor Jurisdiction - 22",0]
["Sch Vc","Group Structure",null,"Investor Jurisdiction - 23",0]
["Sch Vc","Group Structure",null,"Investor Jurisdiction - 24",0]
["Sch Vc","Group Structure",null,"Investor Jurisdiction - 25",0]
["Sch Vc","Group Structure",null,"Transaction Details - 1",0]
["Sch Vc","Group Structure",null,"Transaction Details - 2",0]
["Sch Vc","Group Structure",null,"Transaction Details - 3",0]
["Sch Vc","Group Structure",null,"Transaction Details - 4",0]
["Sch Vc","Group Structure",null,"Transaction Details - 5",0]
["Sch Vc","Group Structure",null,"Transaction Details - 6",0]
["Sch Vc","Group Structure",null,"Transaction Details - 7",0]
["Sch Vc","Group Structure",null,"Transaction Details - 8",0]
["Sch Vc","Group Structure",null,"Transaction Details - 9",0]
["Sch Vc","Group Structure",null,"Transaction Details - 10",0]
["Sch Vc","Group Structure",null,"Transaction Details - 11",0]
["Sch Vc","Group Structure",null,"Transaction Details - 12",0]
["Sch Vc","Group Structure",null,"Transaction Details - 13",0]
["Sch Vc","Group Structure",null,"Transaction Details - 14",0]
["Sch Vc","Group Structure",null,"Transaction Details - 15",0]
["Sch Vc","Group Structure",null,"Transaction Details - 16",0]
["Sch Vc","Group Structure",null,"Transaction Details - 17",0]
["Sch Vc","Group Structure",null,"Transaction Details - 18",0]
["Sch Vc","Group Structure",null,"Transaction Details - 19",0]
["Sch Vc","Group Structure",null,"Transaction Details - 20",0]
["Sch Vc","Group Structure",null,"Transaction Details - 21",0]
["Sch Vc","Group Structure",null,"Transaction Details - 22",0]
["Sch Vc","Group Structure",null,"Transaction Details - 23",0]
["Sch Vc","Group Structure",null,"Transaction Details - 24",0]
["Sch Vc","Group Structure",null,"Transaction Details - 25",0]
["Sch Vc","Group Structure",null,"Exposure Value - 1",0]
["Sch Vc","Group Structure",null,"Exposure Value - 2",0]
["Sch Vc","Group Structure",null,"Exposure Value - 3",0]
["Sch Vc","Group Structure",null,"Exposure Value - 4",0]
["Sch Vc","Group Structure",null,"Exposure Value - 5",0]
["Sch Vc","Group Structure",null,"Exposure Value - 6",0]
["Sch Vc","Group Structure",null,"Exposure Value - 7",0]
["Sch Vc","Group Structure",null,"Exposure Value - 8",0]
["Sch Vc","Group Structure",null,"Exposure Value - 9",0]
["Sch Vc","Group Structure",null,"Exposure Value - 10",0]
["Sch Vc","Group Structure",null,"Exposure Value - 11",0]
["Sch Vc","Group Structure",null,"Exposure Value - 12",0]
["Sch Vc","Group Structure",null,"Exposure Value - 13",0]
["Sch Vc","Group Structure",null,"Exposure Value - 14",0]
["Sch Vc","Group Structure",null,"Exposure Value - 15",0]
["Sch Vc","Group Structure",null,"Exposure Value - 16",0]
["Sch Vc","Group Structure",null,"Exposure Value - 17",0]
["Sch Vc","Group Structure",null,"Exposure Value - 18",0]
["Sch Vc","Group Structure",null,"Exposure Value - 19",0]
["Sch Vc","Group Structure",null,"Exposure Value - 20",0]
["Sch Vc","Group Structure",null,"Exposure Value - 21",0]
["Sch Vc","Group Structure",null,"Exposure Value - 22",0]
["Sch Vc","Group Structure",null,"Exposure Value - 23",0]
["Sch Vc","Group Structure",null,"Exposure Value - 24",0]
["Sch Vc","Group Structure",null,"Exposure Value - 25",0]
["Sch Vc","Group Structure",null,"# of Intra-Group R/I & Retro. Arrangement",0]
["Sch Vc","Group Structure",null,"Assuming Party Name - 1",0]
["Sch Vc","Group Structure",null,"Assuming Party Name - 2",0]
["Sch Vc","Group Structure",null,"Assuming Party Name - 3",0]
["Sch Vc","Group Structure",null,"Assuming Party Name - 4",0]
["Sch Vc","Group Structure",null,"Assuming Party Name - 5",0]
["Sch Vc","Group Structure",null,"Assuming Party Name - 6",0]
["Sch Vc","Group Structure",null,"Assuming Party Name - 7",0]
["Sch Vc","Group Structure",null,"Assuming Party Name - 8",0]
["Sch Vc","Group Structure",null,"Assuming Party Name - 9",0]
["Sch Vc","Group Structure",null,"Assuming Party Name - 10",0]
["Sch Vc","Group Structure",null,"Assuming Party Name - 11",0]
["Sch Vc","Group Structure",null,"Assuming Party Name - 12",0]
["Sch Vc","Group Structure",null,"Assuming Party Name - 13",0]
["Sch Vc","Group Structure",null,"Assuming Party Name - 14",0]
["Sch Vc","Group Structure",null,"Assuming Party Name - 15",0]
["Sch Vc","Group Structure",null,"Assuming Party Name - 16",0]
["Sch Vc","Group Structure",null,"Assuming Party Name - 17",0]
["Sch Vc","Group Structure",null,"Assuming Party Name - 18",0]
["Sch Vc","Group Structure",null,"Assuming Party Name - 19",0]
["Sch Vc","Group Structure",null,"Assuming Party Name - 20",0]
["Sch Vc","Group Structure",null,"Assuming Party Name - 21",0]
["Sch Vc","Group Structure",null,"Assuming Party Name - 22",0]
["Sch Vc","Group Structure",null,"Assuming Party Name - 23",0]
["Sch Vc","Group Structure",null,"Assuming Party Jurisdiction - 1",0]
["Sch Vc","Group Structure",null,"Assuming Party Jurisdiction - 2",0]
["Sch Vc","Group Structure",null,"Assuming Party Jurisdiction - 3",0]
["Sch Vc","Group Structure",null,"Assuming Party Jurisdiction - 4",0]
["Sch Vc","Group Structure",null,"Assuming Party Jurisdiction - 5",0]
["Sch Vc","Group Structure",null,"Assuming Party Jurisdiction - 6",0]
["Sch Vc","Group Structure",null,"Assuming Party Jurisdiction - 7",0]
["Sch Vc","Group Structure",null,"Assuming Party Jurisdiction - 8",0]
["Sch Vc","Group Structure",null,"Assuming Party Jurisdiction - 9",0]
["Sch Vc","Group Structure",null,"Assuming Party Jurisdiction - 10",0]
["Sch Vc","Group Structure",null,"Assuming Party Jurisdiction - 11",0]
["Sch Vc","Group Structure",null,"Assuming Party Jurisdiction - 12",0]
["Sch Vc","Group Structure",null,"Assuming Party Jurisdiction - 13",0]
["Sch Vc","Group Structure",null,"Assuming Party Jurisdiction - 14",0]
["Sch Vc","Group Structure",null,"Assuming Party Jurisdiction - 15",0]
["Sch Vc","Group Structure",null,"Assuming Party Jurisdiction - 16",0]
["Sch Vc","Group Structure",null,"Assuming Party Jurisdiction - 17",0]
["Sch Vc","Group Structure",null,"Assuming Party Jurisdiction - 18",0]
["Sch Vc","Group Structure",null,"Assuming Party Jurisdiction - 19",0]
["Sch Vc","Group Structure",null,"Assuming Party Jurisdiction - 20",0]
["Sch Vc","Group Structure",null,"Assuming Party Jurisdiction - 21",0]
["Sch Vc","Group Structure",null,"Assuming Party Jurisdiction - 22",0]
["Sch Vc","Group Structure",null,"Assuming Party Jurisdiction - 23",0]
["Sch Vc","Group Structure",null,"Assuming Party Rating - 1",0]
["Sch Vc","Group Structure",null,"Assuming Party Rating - 2",0]
["Sch Vc","Group Structure",null,"Assuming Party Rating - 3",0]
["Sch Vc","Group Structure",null,"Assuming Party Rating - 4",0]
["Sch Vc","Group Structure",null,"Assuming Party Rating - 5",0]
["Sch Vc","Group Structure",null,"Assuming Party Rating - 6",0]
["Sch Vc","Group Structure",null,"Assuming Party Rating - 7",0]
["Sch Vc","Group Structure",null,"Assuming Party Rating - 8",0]
["Sch Vc","Group Structure",null,"Assuming Party Rating - 9",0]
["Sch Vc","Group Structure",null,"Assuming Party Rating - 10",0]
["Sch Vc","Group Structure",null,"Assuming Party Rating - 11",0]
["Sch Vc","Group Structure",null,"Assuming Party Rating - 12",0]
["Sch Vc","Group Structure",null,"Assuming Party Rating - 13",0]
["Sch Vc","Group Structure",null,"Assuming Party Rating - 14",0]
["Sch Vc","Group Structure",null,"Assuming Party Rating - 15",0]
["Sch Vc","Group Structure",null,"Assuming Party Rating - 16",0]
["Sch Vc","Group Structure",null,"Assuming Party Rating - 17",0]
["Sch Vc","Group Structure",null,"Assuming Party Rating - 18",0]
["Sch Vc","Group Structure",null,"Assuming Party Rating - 19",0]
["Sch Vc","Group Structure",null,"Assuming Party Rating - 20",0]
["Sch Vc","Group Structure",null,"Assuming Party Rating - 21",0]
["Sch Vc","Group Structure",null,"Assuming Party Rating - 22",0]
["Sch Vc","Group Structure",null,"Assuming Party Rating - 23",0]
["Sch Vc","Group Structure",null,"Ceding Party Name - 1",0]
["Sch Vc","Group Structure",null,"Ceding Party Name - 2",0]
["Sch Vc","Group Structure",null,"Ceding Party Name - 3",0]
["Sch Vc","Group Structure",null,"Ceding Party Name - 4",0]
["Sch Vc","Group Structure",null,"Ceding Party Name - 5",0]
["Sch Vc","Group Structure",null,"Ceding Party Name - 6",0]
["Sch Vc","Group Structure",null,"Ceding Party Name - 7",0]
["Sch Vc","Group Structure",null,"Ceding Party Name - 8",0]
["Sch Vc","Group Structure",null,"Ceding Party Name - 9",0]
["Sch Vc","Group Structure",null,"Ceding Party Name - 10",0]
["Sch Vc","Group Structure",null,"Ceding Party Name - 11",0]
["Sch Vc","Group Structure",null,"Ceding Party Name - 12",0]
["Sch Vc","Group Structure",null,"Ceding Party Name - 13",0]
["Sch Vc","Group Structure",null,"Ceding Party Name - 14",0]
["Sch Vc","Group Structure",null,"Ceding Party Name - 15",0]
["Sch Vc","Group Structure",null,"Ceding Party Name - 16",0]
["Sch Vc","Group Structure",null,"Ceding Party Name - 17",0]
["Sch Vc","Group Structure",null,"Ceding Party Name - 18",0]
["Sch Vc","Group Structure",null,"Ceding Party Name - 19",0]
["Sch Vc","Group Structure",null,"Ceding Party Name - 20",0]
["Sch Vc","Group Structure",null,"Ceding Party Name - 21",0]
["Sch Vc","Group Structure",null,"Ceding Party Name - 22",0]
["Sch Vc","Group Structure",null,"Ceding Party Name - 23",0]
["Sch Vc","Group Structure",null,"Ceding Party Jurisdiction - 1",0]
["Sch Vc","Group Structure",null,"Ceding Party Jurisdiction - 2",0]
["Sch Vc","Group Structure",null,"Ceding Party Jurisdiction - 3",0]
["Sch Vc","Group Structure",null,"Ceding Party Jurisdiction - 4",0]
["Sch Vc","Group Structure",null,"Ceding Party Jurisdiction - 5",0]
["Sch Vc","Group Structure",null,"Ceding Party Jurisdiction - 6",0]
["Sch Vc","Group Structure",null,"Ceding Party Jurisdiction - 7",0]
["Sch Vc","Group Structure",null,"Ceding Party Jurisdiction - 8",0]
["Sch Vc","Group Structure",null,"Ceding Party Jurisdiction - 9",0]
["Sch Vc","Group Structure",null,"Ceding Party Jurisdiction - 10",0]
["Sch Vc","Group Structure",null,"Ceding Party Jurisdiction - 11",0]
["Sch Vc","Group Structure",null,"Ceding Party Jurisdiction - 12",0]
["Sch Vc","Group Structure",null,"Ceding Party Jurisdiction - 13",0]
["Sch Vc","Group Structure",null,"Ceding Party Jurisdiction - 14",0]
["Sch Vc","Group Structure",null,"Ceding Party Jurisdiction - 15",0]
["Sch Vc","Group Structure",null,"Ceding Party Jurisdiction - 16",0]
["Sch Vc","Group Structure",null,"Ceding Party Jurisdiction - 17",0]
["Sch Vc","Group Structure",null,"Ceding Party Jurisdiction - 18",0]
["Sch Vc","Group Structure",null,"Ceding Party Jurisdiction - 19",0]
["Sch Vc","Group Structure",null,"Ceding Party Jurisdiction - 20",0]
["Sch Vc","Group Structure",null,"Ceding Party Jurisdiction - 21",0]
["Sch Vc","Group Structure",null,"Ceding Party Jurisdiction - 22",0]
["Sch Vc","Group Structure",null,"Ceding Party Jurisdiction - 23",0]
["Sch Vc","Group Structure",null,"Ceding Party Rating - 1",0]
["Sch Vc","Group Structure",null,"Ceding Party Rating - 2",0]
["Sch Vc","Group Structure",null,"Ceding Party Rating - 3",0]
["Sch Vc","Group Structure",null,"Ceding Party Rating - 4",0]
["Sch Vc","Group Structure",null,"Ceding Party Rating - 5",0]
["Sch Vc","Group Structure",null,"Ceding Party Rating - 6",0]
["Sch Vc","Group Structure",null,"Ceding Party Rating - 7",0]
["Sch Vc","Group Structure",null,"Ceding Party Rating - 8",0]
["Sch Vc","Group Structure",null,"Ceding Party Rating - 9",0]
["Sch Vc","Group Structure",null,"Ceding Party Rating - 10",0]
["Sch Vc","Group Structure",null,"Ceding Party Rating - 11",0]
["Sch Vc","Group Structure",null,"Ceding Party Rating - 12",0]
["Sch Vc","Group Structure",null,"Ceding Party Rating - 13",0]
["Sch Vc","Group Structure",null,"Ceding Party Rating - 14",0]
["Sch Vc","Group Structure",null,"Ceding Party Rating - 15",0]
["Sch Vc","Group Structure",null,"Ceding Party Rating - 16",0]
["Sch Vc","Group Structure",null,"Ceding Party Rating - 17",0]
["Sch Vc","Group Structure",null,"Ceding Party Rating - 18",0]
["Sch Vc","Group Structure",null,"Ceding Party Rating - 19",0]
["Sch Vc","Group Structure",null,"Ceding Party Rating - 20",0]
["Sch Vc","Group Structure",null,"Ceding Party Rating - 21",0]
["Sch Vc","Group Structure",null,"Ceding Party Rating - 22",0]
["Sch Vc","Group Structure",null,"Ceding Party Rating - 23",0]
["Sch Vc","Group Structure",null,"Gross Exposure Limit - 1",0]
["Sch Vc","Group Structure",null,"Gross Exposure Limit - 2",0]
["Sch Vc","Group Structure",null,"Gross Exposure Limit - 3",0]
["Sch Vc","Group Structure",null,"Gross Exposure Limit - 4",0]
["Sch Vc","Group Structure",null,"Gross Exposure Limit - 5",0]
["Sch Vc","Group Structure",null,"Gross Exposure Limit - 6",0]
["Sch Vc","Group Structure",null,"Gross Exposure Limit - 7",0]
["Sch Vc","Group Structure",null,"Gross Exposure Limit - 8",0]
["Sch Vc","Group Structure",null,"Gross Exposure Limit - 9",0]
["Sch Vc","Group Structure",null,"Gross Exposure Limit - 10",0]
["Sch Vc","Group Structure",null,"Gross Exposure Limit - 11",0]
["Sch Vc","Group Structure",null,"Gross Exposure Limit - 12",0]
["Sch Vc","Group Structure",null,"Gross Exposure Limit - 13",0]
["Sch Vc","Group Structure",null,"Gross Exposure Limit - 14",0]
["Sch Vc","Group Structure",null,"Gross Exposure Limit - 15",0]
["Sch Vc","Group Structure",null,"Gross Exposure Limit - 16",0]
["Sch Vc","Group Structure",null,"Gross Exposure Limit - 17",0]
["Sch Vc","Group Structure",null,"Gross Exposure Limit - 18",0]
["Sch Vc","Group Structure",null,"Gross Exposure Limit - 19",0]
["Sch Vc","Group Structure",null,"Gross Exposure Limit - 20",0]
["Sch Vc","Group Structure",null,"Gross Exposure Limit - 21",0]
["Sch Vc","Group Structure",null,"Gross Exposure Limit - 22",0]
["Sch Vc","Group Structure",null,"Gross Exposure Limit - 23",0]
["Sch Vc","Group Structure",null,"Net Exposure Limit - 1",0]
["Sch Vc","Group Structure",null,"Net Exposure Limit - 2",0]
["Sch Vc","Group Structure",null,"Net Exposure Limit - 3",0]
["Sch Vc","Group Structure",null,"Net Exposure Limit - 4",0]
["Sch Vc","Group Structure",null,"Net Exposure Limit - 5",0]
["Sch Vc","Group Structure",null,"Net Exposure Limit - 6",0]
["Sch Vc","Group Structure",null,"Net Exposure Limit - 7",0]
["Sch Vc","Group Structure",null,"Net Exposure Limit - 8",0]
["Sch Vc","Group Structure",null,"Net Exposure Limit - 9",0]
["Sch Vc","Group Structure",null,"Net Exposure Limit - 10",0]
["Sch Vc","Group Structure",null,"Net Exposure Limit - 11",0]
["Sch Vc","Group Structure",null,"Net Exposure Limit - 12",0]
["Sch Vc","Group Structure",null,"Net Exposure Limit - 13",0]
["Sch Vc","Group Structure",null,"Net Exposure Limit - 14",0]
["Sch Vc","Group Structure",null,"Net Exposure Limit - 15",0]
["Sch Vc","Group Structure",null,"Net Exposure Limit - 16",0]
["Sch Vc","Group Structure",null,"Net Exposure Limit - 17",0]
["Sch Vc","Group Structure",null,"Net Exposure Limit - 18",0]
["Sch Vc","Group Structure",null,"Net Exposure Limit - 19",0]
["Sch Vc","Group Structure",null,"Net Exposure Limit - 20",0]
["Sch Vc","Group Structure",null,"Net Exposure Limit - 21",0]
["Sch Vc","Group Structure",null,"Net Exposure Limit - 22",0]
["Sch Vc","Group Structure",null,"Net Exposure Limit - 23",0]
["Sch Vc","Group Structure",null,"Gross Premium Written - 1",0]
["Sch Vc","Group Structure",null,"Gross Premium Written - 2",0]
["Sch Vc","Group Structure",null,"Gross Premium Written - 3",0]
["Sch Vc","Group Structure",null,"Gross Premium Written - 4",0]
["Sch Vc","Group Structure",null,"Gross Premium Written - 5",0]
["Sch Vc","Group Structure",null,"Gross Premium Written - 6",0]
["Sch Vc","Group Structure",null,"Gross Premium Written - 7",0]
["Sch Vc","Group Structure",null,"Gross Premium Written - 8",0]
["Sch Vc","Group Structure",null,"Gross Premium Written - 9",0]
["Sch Vc","Group Structure",null,"Gross Premium Written - 10",0]
["Sch Vc","Group Structure",null,"Gross Premium Written - 11",0]
["Sch Vc","Group Structure",null,"Gross Premium Written - 12",0]
["Sch Vc","Group Structure",null,"Gross Premium Written - 13",0]
["Sch Vc","Group Structure",null,"Gross Premium Written - 14",0]
["Sch Vc","Group Structure",null,"Gross Premium Written - 15",0]
["Sch Vc","Group Structure",null,"Gross Premium Written - 16",0]
["Sch Vc","Group Structure",null,"Gross Premium Written - 17",0]
["Sch Vc","Group Structure",null,"Gross Premium Written - 18",0]
["Sch Vc","Group Structure",null,"Gross Premium Written - 19",0]
["Sch Vc","Group Structure",null,"Gross Premium Written - 20",0]
["Sch Vc","Group Structure",null,"Gross Premium Written - 21",0]
["Sch Vc","Group Structure",null,"Gross Premium Written - 22",0]
["Sch Vc","Group Structure",null,"Gross Premium Written - 23",0]
["Sch Vc","Group Structure",null,"Net Premium Written - 1",0]
["Sch Vc","Group Structure",null,"Net Premium Written - 2",0]
["Sch Vc","Group Structure",null,"Net Premium Written - 3",0]
["Sch Vc","Group Structure",null,"Net Premium Written - 4",0]
["Sch Vc","Group Structure",null,"Net Premium Written - 5",0]
["Sch Vc","Group Structure",null,"Net Premium Written - 6",0]
["Sch Vc","Group Structure",null,"Net Premium Written - 7",0]
["Sch Vc","Group Structure",null,"Net Premium Written - 8",0]
["Sch Vc","Group Structure",null,"Net Premium Written - 9",0]
["Sch Vc","Group Structure",null,"Net Premium Written - 10",0]
["Sch Vc","Group Structure",null,"Net Premium Written - 11",0]
["Sch Vc","Group Structure",null,"Net Premium Written - 12",0]
["Sch Vc","Group Structure",null,"Net Premium Written - 13",0]
["Sch Vc","Group Structure",null,"Net Premium Written - 14",0]
["Sch Vc","Group Structure",null,"Net Premium Written - 15",0]
["Sch Vc","Group Structure",null,"Net Premium Written - 16",0]
["Sch Vc","Group Structure",null,"Net Premium Written - 17",0]
["Sch Vc","Group Structure",null,"Net Premium Written - 18",0]
["Sch Vc","Group Structure",null,"Net Premium Written - 19",0]
["Sch Vc","Group Structure",null,"Net Premium Written - 20",0]
["Sch Vc","Group Structure",null,"Net Premium Written - 21",0]
["Sch Vc","Group Structure",null,"Net Premium Written - 22",0]
["Sch Vc","Group Structure",null,"Net Premium Written - 23",0]
["Sch Vc","Group Structure",null,"Q4 Proportion of Internal R/I",0]
[]
["Sch Ve","Scenario Tests",null,"R1 Scenario - Assets",null,null,null,null,0]
["Sch Ve","Scenario Tests",null,"R2 Scenario - Assets",null,null,null,null,0]
["Sch Ve","Scenario Tests",null,"R3 Scenario - Assets",null,null,null,null,0]
["Sch Ve","Scenario Tests",null,"R4 Scenario - Assets",null,null,null,null,0]
["Sch Ve","Scenario Tests",null,"R5 Scenario - Assets",null,null,null,null,0]
["Sch Ve","Scenario Tests",null,"R6 Scenario - Assets",null,null,null,null,0]
["Sch Ve","Scenario Tests",null,"R7 Scenario - Assets",null,null,null,null,0]
["Sch Ve","Scenario Tests",null,"R8 Scenario - Assets",null,null,null,null,0]
["Sch Ve","Scenario Tests",null,"R1 Scenario - Liabilities",null,null,null,null,0]
["Sch Ve","Scenario Tests",null,"R2 Scenario - Liabilities",null,null,null,null,0]
["Sch Ve","Scenario Tests",null,"R3 Scenario - Liabilities",null,null,null,null,0]
["Sch Ve","Scenario Tests",null,"R4 Scenario - Liabilities",null,null,null,null,0]
["Sch Ve","Scenario Tests",null,"R5 Scenario - Liabilities",null,null,null,null,0]
["Sch Ve","Scenario Tests",null,"R6 Scenario - Liabilities",null,null,null,null,0]
["Sch Ve","Scenario Tests",null,"R7 Scenario - Liabilities",null,null,null,null,0]
["Sch Ve","Scenario Tests",null,"R8 Scenario - Liabilities",null,null,null,null,0]
["Sch Ve","Scenario Tests",null,"R5 - Greece",null,null,null,null,0]
["Sch Ve","Scenario Tests",null,"R5 - Italy",null,null,null,null,0]
["Sch Ve","Scenario Tests",null,"R5 - Portugal",null,null,null,null,0]
["Sch Ve","Scenario Tests",null,"R5 - Ukraine",null,null,null,null,0]
["Sch Ve","Scenario Tests",null,"R5 - Argentina",null,null,null,null,0]
["Sch Ve","Scenario Tests",null,"R5 - Turkey",null,null,null,null,0]
["Sch Ve","Scenario Tests",null,"Mortgage Loan - Shock 1 Rate",null,null,null,null,"Select"]
["Sch Ve","Scenario Tests",null,"Mortgage Loan - Shock 2 Rate",null,null,null,null,"Select"]
["Sch Ve","Scenario Tests",null,"Mortgage Loan - Shock 1 Assets",null,null,null,null,0]
["Sch Ve","Scenario Tests",null,"Mortgage Loan - Shock 2 Assets",null,null,null,null,0]
["Sch Ve","Scenario Tests",null,"Mortgage Loan - Shock 1 Liabilities",null,null,null,null,0]
["Sch Ve","Scenario Tests",null,"Mortgage Loan - Shock 2 Liabilities",null,null,null,null,0]
["Sch Ve","Scenario Tests",null,"Mortgage Loan - GPW - Related - Insurance - US",null,null,null,null,0]
["Sch Ve","Scenario Tests",null,"Mortgage Loan - GPW - Related - R/I - US",null,null,null,null,0]
["Sch Ve","Scenario Tests",null,"Mortgage Loan - GPW - Related - Insurance - Other",null,null,null,null,0]
["Sch Ve","Scenario Tests",null,"Mortgage Loan - GPW - Related - R/I - Other",null,null,null,null,0]
["Sch Ve","Scenario Tests",null,"Mortgage Loan - GPW - Related - Total",null,null,null,null,0]
["Sch Ve","Scenario Tests",null,"Mortgage Loan - GPW - Unrelated - Insurance - US",null,null,null,null,0]
["Sch Ve","Scenario Tests",null,"Mortgage Loan - GPW - Unrelated - R/I - US",null,null,null,null,0]
["Sch Ve","Scenario Tests",null,"Mortgage Loan - GPW - Unrelated - Insurance - Other",null,null,null,null,0]
["Sch Ve","Scenario Tests",null,"Mortgage Loan - GPW - Unrelated - R/I - Other",null,null,null,null,0]
["Sch Ve","Scenario Tests",null,"Mortgage Loan - GPW - Unrelated - Total",null,null,null,null,0]
["Sch Ve","Scenario Tests",null,"Mortgage Loan - NPW - Related - Insurance - US",null,null,null,null,0]
["Sch Ve","Scenario Tests",null,"Mortgage Loan - NPW - Related - R/I - US",null,null,null,null,0]
["Sch Ve","Scenario Tests",null,"Mortgage Loan - NPW - Related - Insurance - Other",null,null,null,null,0]
["Sch Ve","Scenario Tests",null,"Mortgage Loan - NPW - Related - R/I - Other",null,null,null,null,0]
["Sch Ve","Scenario Tests",null,"Mortgage Loan - NPW - Related - Total",null,null,null,null,0]
["Sch Ve","Scenario Tests",null,"Mortgage Loan - NPW - Unrelated - Insurance - US",null,null,null,null,0]
["Sch Ve","Scenario Tests",null,"Mortgage Loan - NPW - Unrelated - R/I - US",null,null,null,null,0]
["Sch Ve","Scenario Tests",null,"Mortgage Loan - NPW - Unrelated - Insurance - Other",null,null,null,null,0]
["Sch Ve","Scenario Tests",null,"Mortgage Loan - NPW - Unrelated - R/I - Other",null,null,null,null,0]
["Sch Ve","Scenario Tests",null,"Mortgage Loan - NPW - Unrelated - Total",null,null,null,null,0]
["Sch Ve","Scenario Tests",null,"Mortgage Loan - Claims - Related - Insurance - US",null,null,null,null,0]
["Sch Ve","Scenario Tests",null,"Mortgage Loan - Claims - Related - R/I - US",null,null,null,null,0]
["Sch Ve","Scenario Tests",null,"Mortgage Loan - Claims - Related - Insurance - Other",null,null,null,null,0]
["Sch Ve","Scenario Tests",null,"Mortgage Loan - Claims - Related - R/I - Other",null,null,null,null,0]
["Sch Ve","Scenario Tests",null,"Mortgage Loan - Claims - Related - Total",null,null,null,null,0]
["Sch Ve","Scenario Tests",null,"Mortgage Loan - Claims - Unrelated - Insurance - US",null,null,null,null,0]
["Sch Ve","Scenario Tests",null,"Mortgage Loan - Claims - Unrelated - R/I - US",null,null,null,null,0]
["Sch Ve","Scenario Tests",null,"Mortgage Loan - Claims - Unrelated - Insurance - Other",null,null,null,null,0]
["Sch Ve","Scenario Tests",null,"Mortgage Loan - Claims - Unrelated - R/I - Other",null,null,null,null,0]
["Sch Ve","Scenario Tests",null,"Mortgage Loan - Claims - Unrelated - Total",null,null,null,null,0]
["Sch Ve","Scenario Tests",null,"Mortgage Loan - Reserves - Related - Insurance - US",null,null,null,null,0]
["Sch Ve","Scenario Tests",null,"Mortgage Loan - Reserves - Related - R/I - US",null,null,null,null,0]
["Sch Ve","Scenario Tests",null,"Mortgage Loan - Reserves - Related - Insurance - Other",null,null,null,null,0]
["Sch Ve","Scenario Tests",null,"Mortgage Loan - Reserves - Related - R/I - Other",null,null,null,null,0]
["Sch Ve","Scenario Tests",null,"Mortgage Loan - Reserves - Related - Total",null,null,null,null,0]
["Sch Ve","Scenario Tests",null,"Mortgage Loan - Reserves - Unrelated - Insurance - US",null,null,null,null,0]
["Sch Ve","Scenario Tests",null,"Mortgage Loan - Reserves - Unrelated - R/I - US",null,null,null,null,0]
["Sch Ve","Scenario Tests",null,"Mortgage Loan - Reserves - Unrelated - Insurance - Other",null,null,null,null,0]
["Sch Ve","Scenario Tests",null,"Mortgage Loan - Reserves - Unrelated - R/I - Other",null,null,null,null,0]
["Sch Ve","Scenario Tests",null,"Mortgage Loan - Reserves - Unrelated - Total",null,null,null,null,0]
["Sch Ve","Scenario Tests",null,"Mortgage Loan - Insurance in Force",null,null,null,null,0]
["Sch Ve","Scenario Tests",null,"Mortgage Loan - Risk in Force",null,null,null,null,0]
["Sch Ve","Scenario Tests",null,"Mortgage Loan - Capital Held - Internal",null,null,null,null,0]
["Sch Ve","Scenario Tests",null,"Mortgage Loan - Capital Held - External",null,null,null,null,0]
["Sch Ve","Scenario Tests",null,"Mortgage Loan - Collateral Posted",null,null,null,null,0]
["Sch Ve","Scenario Tests",null,"Mortgage Loan - # of Policies in Force",null,null,null,null,0]
["Sch Ve","Scenario Tests",null,"Mortgage Loan - Loss Ratio",null,null,null,null,0]
["Sch Ve","Scenario Tests",null,"Mortgage Loan - Combined Ratio",null,null,null,null,0]
["Sch Ve","Scenario Tests",null,"Mortgage Loan - Weighted Average LTV",null,null,null,null,0]
["Sch Ve","Scenario Tests",null,"Mortgage Loan - Weighted Average FICO Score",null,null,null,null,0]
["Sch Ve","Scenario Tests",null,"Other Scenario - Name 1",null,null,null,null,0]
["Sch Ve","Scenario Tests",null,"Other Scenario - Name 2",null,null,null,null,0]
["Sch Ve","Scenario Tests",null,"Other Scenario - Name 3",null,null,null,null,0]
["Sch Ve","Scenario Tests",null," Other - Gross Loss 1",null,null,null,null,0]
["Sch Ve","Scenario Tests",null," Other - Gross Loss 2",null,null,null,null,0]
["Sch Ve","Scenario Tests",null," Other - Gross Loss 3",null,null,null,null,0]
["Sch Ve","Scenario Tests",null," Other - Net Loss 1",null,null,null,null,0]
["Sch Ve","Scenario Tests",null," Other - Net Loss 2",null,null,null,null,0]
["Sch Ve","Scenario Tests",null," Other - Net Loss 3",null,null,null,null,0]
["Sch Ve","Scenario Tests",null,"Rating Downgrade Details",null,null,null,null,0]
["Sch Ve","Scenario Tests",null,"Specific Worst Case Scen.- Details",null,null,null,null,0]
["Sch Ve","Scenario Tests",null,"Specific WC Scen.- Gross Loss",null,null,null,null,0]
["Sch Ve","Scenario Tests",null,"Specific WC Scen.- Net Loss",null,null,null,null,0]
["Sch Ve","Scenario Tests",null,"Reserve Stress Test - Details",null,null,null,null,0]
["Sch Ve","Scenario Tests",null,"Reserve Stress Test - Gross Loss",null,null,null,null,0]
["Sch Ve","Scenario Tests",null,"Reserve Stress Test - Net Loss",null,null,null,null,0]
["Sch Ve","Scenario Tests",null,"A1) Headquarters in Bermuda?","Select Yes/No"]
["Sch Ve","Scenario Tests",null,"A2) Number of users located in Bermuda","Select Amount"]
["Sch Ve","Scenario Tests",null,"A3) Number of users globally","Select Amount"]
["Sch Ve","Scenario Tests",null,"A4) Data centre in Bermuda to host servers","Select Yes/No"]
["Sch Ve","Scenario Tests",null,"A5) Utilize a cloud hosting company to host servers","Select Yes/No"]
["Sch Ve","Scenario Tests",null,"A6) Cybersecurity insurance coverage","Select Yes/No"]
["Sch Ve","Scenario Tests",null,"A7) Personal data of customers stored/processed","Select Yes/No"]
["Sch Ve","Scenario Tests",null,"A8) # of Credit card data stored/processed","Select Yes/No"]
["Sch Ve","Scenario Tests",null,"A9) Personal data stored/processed","Select Yes/No"]
["Sch Ve","Scenario Tests",null,"A10) Brochureware","Select Yes/No"]
["Sch Ve","Scenario Tests",null,"A11) Web applications","Select Yes/No"]
["Sch Ve","Scenario Tests",null,"A12) Web applications that processes","Select Yes/No"]
["Sch Ve","Scenario Tests",null,"A13) Dedicated IT Risk Manager","Select Yes/No"]
["Sch Ve","Scenario Tests",null,"A13a) Dedicated IT Risk Manager Details","Confirm role holder's name"]
["Sch Ve","Scenario Tests",null,"A14) Dedicated IT Security Manager","Select Yes/No"]
["Sch Ve","Scenario Tests",null,"A14a) Dedicated IT Security Manager","Confirm role holder's name"]
["Sch Ve","Scenario Tests",null,"A15) Dedicated IT Disaster Recovery Manager","Select Yes/No"]
["Sch Ve","Scenario Tests",null,"A15a) Dedicated IT Disaster Recovery Manager details","Confirm role holder's name"]
["Sch Ve","Scenario Tests",null,"A16) Dedicated Business Continuity Manager","Select Yes/No"]
["Sch Ve","Scenario Tests",null,"A16a) Dedicated Business Continuity Manager details","Confirm role holder's name"]
["Sch Ve","Scenario Tests",null,"A17) Designated Data Privacy Officer","Select Yes/No"]
["Sch Ve","Scenario Tests",null,"A17a) Designated Data Privacy Officer details","Confirm role holder's name"]
["Sch Ve","Scenario Tests",null,"A18) IT Audit completed annually","Select Yes/No"]
["Sch Ve","Scenario Tests",null,"A18a) IT Audit completed annually details","Date of last internal/external IT audit"]
["Sch Ve","Scenario Tests",null,"B1) Cyber security programme in place","Select Yes/No"]
["Sch Ve","Scenario Tests",null,"B2) Cyber programme status communicated to Senior Mgmt","Select Yes/No"]
["Sch Ve","Scenario Tests",null,"B3) Cyber Risk Policy approved by Board annually","Select Yes/No"]
["Sch Ve","Scenario Tests",null,"B4) 3 lines of defence clearly defined","Select Yes/No"]
["Sch Ve","Scenario Tests",null,"B5) Compliance with Data Protection requirements","Select Yes/No"]
["Sch Ve","Scenario Tests",null,"B6) Asset Management inventoried","Select Yes/No"]
["Sch Ve","Scenario Tests",null,"B7) Classified all data","Select Yes/No"]
["Sch Ve","Scenario Tests",null,"B8) 3rd Party security assessment in past year","Select Yes/No"]
["Sch Ve","Scenario Tests",null,"B9) Classed Data by sensitivity","Select Yes/No"]
["Sch Ve","Scenario Tests",null,"B10) Formal Process for software and hardware maintenance","Select Yes/No"]
["Sch Ve","Scenario Tests",null,"B11) Logical Assess Management Standard","Select Yes/No"]
["Sch Ve","Scenario Tests",null,"B12) Staff complete cybersecurity training","Select Yes/No"]
["Sch Ve","Scenario Tests",null,"B13) Penetration Testing completed within 1 yr","Select Yes/No"]
["Sch Ve","Scenario Tests",null,"B14) Segment enterprise network","Select Yes/No"]
["Sch Ve","Scenario Tests",null,"B15) Formal process for software changes","Select Yes/No"]
["Sch Ve","Scenario Tests",null,"B16) Security configuration standards","Select Yes/No"]
["Sch Ve","Scenario Tests",null,"B17) Detect-Process for threat alerting","Select Yes/No"]
["Sch Ve","Scenario Tests",null,"B18) Process to Monitor Info Systems","Select Yes/No"]
["Sch Ve","Scenario Tests",null,"B19) Centrally stores & archives logs","Select Yes/No"]
["Sch Ve","Scenario Tests",null,"B20) Doc. Incident Response Plan","Select Yes/No"]
["Sch Ve","Scenario Tests",null,"B21) 4th Line Expertise service for major incident","Select Yes/No"]
["Sch Ve","Scenario Tests",null,"B22) Business Continuity Plan tested last 12 months","Select Yes/No"]
["Sch Ve","Scenario Tests",null,"B23) Cyber Incident last 12 months","Select Yes/No"]
["Sch Ve","Scenario Tests",null,"C1) Antivirus software installed","Select Yes/No"]
["Sch Ve","Scenario Tests",null,"C2) APT Control in place","Select Yes/No"]
["Sch Ve","Scenario Tests",null,"C3) DLP controls in place","Select Yes/No"]
["Sch Ve","Scenario Tests",null,"C4) Internal Vulnerability scanning conducted","Select Yes/No"]
["Sch Ve","Scenario Tests",null,"C4a) Internal Vulnerability scanning frequency","Select Frequency"]
["Sch Ve","Scenario Tests",null,"C5) External Vulnerability scanning conducted","Select Yes/No"]
["Sch Ve","Scenario Tests",null,"C5a) External Vulnerability scanning frequency","Select Frequency"]
["Sch Ve","Scenario Tests",null,"C6) Regular Firewall Ruleset Reviews","Select Yes/No"]
["Sch Ve","Scenario Tests",null,"C7) Network IDS/IPS control","Select Yes/No"]
["Sch Ve","Scenario Tests",null,"C8) Internet borne DDOS defence in place","Select Yes/No"]
[]
["Sch Vf","Coinsurance",null,"Mod Co - Ceding Insurer 1",0]
["Sch Vf","Coinsurance",null,"Mod Co - Ceding Insurer 2",0]
["Sch Vf","Coinsurance",null,"Mod Co - Ceding Insurer 3",0]
["Sch Vf","Coinsurance",null,"Mod Co - Ceding Insurer 4",0]
["Sch Vf","Coinsurance",null,"Mod Co - Ceding Insurer 5",0]
["Sch Vf","Coinsurance",null,"Mod Co - Ceding Insurer 6",0]
["Sch Vf","Coinsurance",null,"Mod Co - Ceding Insurer 7",0]
["Sch Vf","Coinsurance",null,"Mod Co - Ceding Insurer 8",0]
["Sch Vf","Coinsurance",null,"Mod Co - Ceding Insurer 9",0]
["Sch Vf","Coinsurance",null,"Mod Co - Ceding Insurer 10",0]
["Sch Vf","Coinsurance",null,"Mod Co - Ceding Insurer 11",0]
["Sch Vf","Coinsurance",null,"Mod Co - Ceding Insurer 12",0]
["Sch Vf","Coinsurance",null,"Mod Co - Ceding Insurer 13",0]
["Sch Vf","Coinsurance",null,"Mod Co - Ceding Insurer 14",0]
["Sch Vf","Coinsurance",null,"Mod Co - Ceding Insurer 15",0]
["Sch Vf","Coinsurance",null,"Mod Co - Coverage 1","Select from Drop-Down"]
["Sch Vf","Coinsurance",null,"Mod Co - Coverage 2","Select from Drop-Down"]
["Sch Vf","Coinsurance",null,"Mod Co - Coverage 3","Select from Drop-Down"]
["Sch Vf","Coinsurance",null,"Mod Co - Coverage 4","Select from Drop-Down"]
["Sch Vf","Coinsurance",null,"Mod Co - Coverage 5","Select from Drop-Down"]
["Sch Vf","Coinsurance",null,"Mod Co - Coverage 6","Select from Drop-Down"]
["Sch Vf","Coinsurance",null,"Mod Co - Coverage 7","Select from Drop-Down"]
["Sch Vf","Coinsurance",null,"Mod Co - Coverage 8","Select from Drop-Down"]
["Sch Vf","Coinsurance",null,"Mod Co - Coverage 9","Select from Drop-Down"]
["Sch Vf","Coinsurance",null,"Mod Co - Coverage 10","Select from Drop-Down"]
["Sch Vf","Coinsurance",null,"Mod Co - Coverage 11","Select from Drop-Down"]
["Sch Vf","Coinsurance",null,"Mod Co - Coverage 12","Select from Drop-Down"]
["Sch Vf","Coinsurance",null,"Mod Co - Coverage 13","Select from Drop-Down"]
["Sch Vf","Coinsurance",null,"Mod Co - Coverage 14","Select from Drop-Down"]
["Sch Vf","Coinsurance",null,"Mod Co - Coverage 15","Select from Drop-Down"]
["Sch Vf","Coinsurance",null,"Mod Co - Reserve 1",0]
["Sch Vf","Coinsurance",null,"Mod Co - Reserve 2",0]
["Sch Vf","Coinsurance",null,"Mod Co - Reserve 3",0]
["Sch Vf","Coinsurance",null,"Mod Co - Reserve 4",0]
["Sch Vf","Coinsurance",null,"Mod Co - Reserve 5",0]
["Sch Vf","Coinsurance",null,"Mod Co - Reserve 6",0]
["Sch Vf","Coinsurance",null,"Mod Co - Reserve 7",0]
["Sch Vf","Coinsurance",null,"Mod Co - Reserve 8",0]
["Sch Vf","Coinsurance",null,"Mod Co - Reserve 9",0]
["Sch Vf","Coinsurance",null,"Mod Co - Reserve 10",0]
["Sch Vf","Coinsurance",null,"Mod Co - Reserve 11",0]
["Sch Vf","Coinsurance",null,"Mod Co - Reserve 12",0]
["Sch Vf","Coinsurance",null,"Mod Co - Reserve 13",0]
["Sch Vf","Coinsurance",null,"Mod Co - Reserve 14",0]
["Sch Vf","Coinsurance",null,"Mod Co - Reserve 15",0]
["Sch Vf","Coinsurance",null,"Mod Co - Reserve Total",0]
["Sch Vf","Coinsurance",null,"Affiliated Cedant - Cash",0]
["Sch Vf","Coinsurance",null,"Affiliated Cedant - Corporate Bonds",0]
["Sch Vf","Coinsurance",null,"Affiliated Cedant - Sovereign Bonds",0]
["Sch Vf","Coinsurance",null,"Affiliated Cedant - MBS",0]
["Sch Vf","Coinsurance",null,"Affiliated Cedant - Mortgage Loans",0]
["Sch Vf","Coinsurance",null,"Affiliated Cedant - Equities",0]
["Sch Vf","Coinsurance",null,"Affiliated Cedant - Other 1",0]
["Sch Vf","Coinsurance",null,"Affiliated Cedant - Other 2",0]
["Sch Vf","Coinsurance",null,"Affiliated Cedant - Other 3",0]
["Sch Vf","Coinsurance",null,"Affiliated Cedant - Other 4",0]
["Sch Vf","Coinsurance",null,"Affiliated Cedant - Other 5",0]
["Sch Vf","Coinsurance",null,"Affiliated Cedant - Other 6",0]
["Sch Vf","Coinsurance",null,"Affiliated Cedant - Other 7",0]
["Sch Vf","Coinsurance",null,"Affiliated Cedant - Total",0]
["Sch Vf","Coinsurance",null,"Non-Aff Cedant - Cash",0]
["Sch Vf","Coinsurance",null,"Non-Aff Cedant - Corporate Bonds",0]
["Sch Vf","Coinsurance",null,"Non-Aff Cedant - Sovereign Bonds",0]
["Sch Vf","Coinsurance",null,"Non-Aff Cedant - MBS",0]
["Sch Vf","Coinsurance",null,"Non-Aff Cedant - Mortgage Loans",0]
["Sch Vf","Coinsurance",null,"Non-Aff Cedant - Equities",0]
["Sch Vf","Coinsurance",null,"Non-Aff Cedant - Other 1",0]
["Sch Vf","Coinsurance",null,"Non-Aff Cedant - Other 2",0]
["Sch Vf","Coinsurance",null,"Non-Aff Cedant - Other 3",0]
["Sch Vf","Coinsurance",null,"Non-Aff Cedant - Other 4",0]
["Sch Vf","Coinsurance",null,"Non-Aff Cedant - Other 5",0]
["Sch Vf","Coinsurance",null,"Non-Aff Cedant - Other 6",0]
["Sch Vf","Coinsurance",null,"Non-Aff Cedant - Other 7",0]
["Sch Vf","Coinsurance",null,"Non-Aff Cedant - Total",0]
[]
["Sch Vg","GAAP - BSCR Rec",null,"Assets Fin. Stmts. - Open Balance",0]
["Sch Vg","GAAP - BSCR Rec",null,"Assets Fin. Stmts. - Prepaid Expenses",0]
["Sch Vg","GAAP - BSCR Rec",null,"Assets Fin. Stmts. - Goodwill",0]
["Sch Vg","GAAP - BSCR Rec",null,"Assets Fin. Stmts. - Intangible Assets",0]
["Sch Vg","GAAP - BSCR Rec",null,"Assets Fin. Stmts. - Other 1",0]
["Sch Vg","GAAP - BSCR Rec",null,"Assets Fin. Stmts. - Other 2",0]
["Sch Vg","GAAP - BSCR Rec",null,"Assets Fin. Stmts. - Other 3",0]
["Sch Vg","GAAP - BSCR Rec",null,"Assets Fin. Stmts. - Other 4",0]
["Sch Vg","GAAP - BSCR Rec",null,"Assets Fin. Stmts. - Other 5",0]
["Sch Vg","GAAP - BSCR Rec",null,"Assets Fin. Stmts. - Other 6",0]
["Sch Vg","GAAP - BSCR Rec",null,"Assets Fin. Stmts. - Other 7",0]
["Sch Vg","GAAP - BSCR Rec",null,"Liab. Fin. Stmts. - Open Balance",0]
["Sch Vg","GAAP - BSCR Rec",null,"Liab. Fin. Stmts. - Prepaid Expenses",0]
["Sch Vg","GAAP - BSCR Rec",null,"Liab. Fin. Stmts. - Goodwill",0]
["Sch Vg","GAAP - BSCR Rec",null,"Liab. Fin. Stmts. - Intangible Liab.",0]
["Sch Vg","GAAP - BSCR Rec",null,"Liab. Fin. Stmts. - Other 1",0]
["Sch Vg","GAAP - BSCR Rec",null,"Liab. Fin. Stmts. - Other 2",0]
["Sch Vg","GAAP - BSCR Rec",null,"Liab. Fin. Stmts. - Other 3",0]
["Sch Vg","GAAP - BSCR Rec",null,"Liab. Fin. Stmts. - Other 4",0]
["Sch Vg","GAAP - BSCR Rec",null,"Liab. Fin. Stmts. - Other 5",0]
["Sch Vg","GAAP - BSCR Rec",null,"Liab. Fin. Stmts. - Other 6",0]
["Sch Vg","GAAP - BSCR Rec",null,"Liab. Fin. Stmts. - Other 7",0]
["Sch Vg","GAAP - BSCR Rec",null,"Net. Inc. Fin. Stmts. - Open Balance",0]
["Sch Vg","GAAP - BSCR Rec",null,"Net. Inc. Fin. Stmts. - Prepaid Expenses",0]
["Sch Vg","GAAP - BSCR Rec",null,"Net. Inc. Fin. Stmts. - Goodwill",0]
["Sch Vg","GAAP - BSCR Rec",null,"Net. Inc. Fin. Stmts. - Intangible Net. Inc.",0]
["Sch Vg","GAAP - BSCR Rec",null,"Net. Inc. Fin. Stmts. - Other 1",0]
["Sch Vg","GAAP - BSCR Rec",null,"Net. Inc. Fin. Stmts. - Other 2",0]
["Sch Vg","GAAP - BSCR Rec",null,"Net. Inc. Fin. Stmts. - Other 3",0]
["Sch Vg","GAAP - BSCR Rec",null,"Net. Inc. Fin. Stmts. - Other 4",0]
["Sch Vg","GAAP - BSCR Rec",null,"Net. Inc. Fin. Stmts. - Other 5",0]
["Sch Vg","GAAP - BSCR Rec",null,"Net. Inc. Fin. Stmts. - Other 6",0]
["Sch Vg","GAAP - BSCR Rec",null,"Net. Inc. Fin. Stmts. - Other 7",0]
["Sch Vg","GAAP - BSCR Rec",null,"Capital & Surplus Fin. Stmts. - Open Balance",0]
["Sch Vg","GAAP - BSCR Rec",null,"Assets Form 1SFS - Form 1SFS",0]
["Sch Vg","GAAP - BSCR Rec",null,"Assets Form 1SFS - Gross Loss Provision",0]
["Sch Vg","GAAP - BSCR Rec",null,"Assets Form 1SFS - Gross Premium Provision",0]
["Sch Vg","GAAP - BSCR Rec",null,"Assets Form 1SFS - R/I Recoverable",0]
["Sch Vg","GAAP - BSCR Rec",null,"Assets Form 1SFS - Risk Margin",0]
["Sch Vg","GAAP - BSCR Rec",null,"Assets Form 1SFS - Contingent Liabilities",0]
["Sch Vg","GAAP - BSCR Rec",null,"Assets Form 1SFS - Goodwill",0]
["Sch Vg","GAAP - BSCR Rec",null,"Assets Form 1SFS - Deferred Tax",0]
["Sch Vg","GAAP - BSCR Rec",null,"Assets Form 1SFS - Quoted Investments",0]
["Sch Vg","GAAP - BSCR Rec",null,"Assets Form 1SFS - Unquoted Investments",0]
["Sch Vg","GAAP - BSCR Rec",null,"Assets Form 1SFS - Inv. In Affiliates",0]
["Sch Vg","GAAP - BSCR Rec",null,"Assets Form 1SFS - Real Estate",0]
["Sch Vg","GAAP - BSCR Rec",null,"Assets Form 1SFS - Off Balance Sheet Ins.",0]
["Sch Vg","GAAP - BSCR Rec",null,"Assets Form 1SFS - Debt Ins.",0]
["Sch Vg","GAAP - BSCR Rec",null,"Assets Form 1SFS - Intangible",0]
["Sch Vg","GAAP - BSCR Rec",null,"Assets Form 1SFS - Other 1",0]
["Sch Vg","GAAP - BSCR Rec",null,"Assets Form 1SFS - Other 2",0]
["Sch Vg","GAAP - BSCR Rec",null,"Assets Form 1SFS - Other 3",0]
["Sch Vg","GAAP - BSCR Rec",null,"Assets Form 1SFS - Total",0]
["Sch Vg","GAAP - BSCR Rec",null,"Liab. Form 1SFS - Form 1SFS",0]
["Sch Vg","GAAP - BSCR Rec",null,"Liab. Form 1SFS - Gross Loss Provision",0]
["Sch Vg","GAAP - BSCR Rec",null,"Liab. Form 1SFS - Gross Premium Provision",0]
["Sch Vg","GAAP - BSCR Rec",null,"Liab. Form 1SFS - R/I Recoverable",0]
["Sch Vg","GAAP - BSCR Rec",null,"Liab. Form 1SFS - Risk Margin",0]
["Sch Vg","GAAP - BSCR Rec",null,"Liab. Form 1SFS - Contingent Liabilities",0]
["Sch Vg","GAAP - BSCR Rec",null,"Liab. Form 1SFS - Goodwill",0]
["Sch Vg","GAAP - BSCR Rec",null,"Liab. Form 1SFS - Deferred Tax",0]
["Sch Vg","GAAP - BSCR Rec",null,"Liab. Form 1SFS - Quoted Investments",0]
["Sch Vg","GAAP - BSCR Rec",null,"Liab. Form 1SFS - Unquoted Investments",0]
["Sch Vg","GAAP - BSCR Rec",null,"Liab. Form 1SFS - Inv. In Affiliates",0]
["Sch Vg","GAAP - BSCR Rec",null,"Liab. Form 1SFS - Real Estate",0]
["Sch Vg","GAAP - BSCR Rec",null,"Liab. Form 1SFS - Off Balance Sheet Ins.",0]
["Sch Vg","GAAP - BSCR Rec",null,"Liab. Form 1SFS - Debt Ins.",0]
["Sch Vg","GAAP - BSCR Rec",null,"Liab. Form 1SFS - Intangible",0]
["Sch Vg","GAAP - BSCR Rec",null,"Liab. Form 1SFS - Other 1",0]
["Sch Vg","GAAP - BSCR Rec",null,"Liab. Form 1SFS - Other 2",0]
["Sch Vg","GAAP - BSCR Rec",null,"Liab. Form 1SFS - Other 3",0]
["Sch Vg","GAAP - BSCR Rec",null,"Liab. Form 1SFS - Total",0]
["Sch Vg","GAAP - BSCR Rec",null,"Net Inc. Form 1SFS - Form 1SFS",0]
["Sch Vg","GAAP - BSCR Rec",null,"Net Inc. Form 1SFS - Gross Loss Provision",0]
["Sch Vg","GAAP - BSCR Rec",null,"Net Inc. Form 1SFS - Gross Premium Provision",0]
["Sch Vg","GAAP - BSCR Rec",null,"Net Inc. Form 1SFS - R/I Recoverable",0]
["Sch Vg","GAAP - BSCR Rec",null,"Net Inc. Form 1SFS - Risk Margin",0]
["Sch Vg","GAAP - BSCR Rec",null,"Net Inc. Form 1SFS - Contingent Liabilities",0]
["Sch Vg","GAAP - BSCR Rec",null,"Net Inc. Form 1SFS - Goodwill",0]
["Sch Vg","GAAP - BSCR Rec",null,"Net Inc. Form 1SFS - Deferred Tax",0]
["Sch Vg","GAAP - BSCR Rec",null,"Net Inc. Form 1SFS - Quoted Investments",0]
["Sch Vg","GAAP - BSCR Rec",null,"Net Inc. Form 1SFS - Unquoted Investments",0]
["Sch Vg","GAAP - BSCR Rec",null,"Net Inc. Form 1SFS - Inv. In Affiliates",0]
["Sch Vg","GAAP - BSCR Rec",null,"Net Inc. Form 1SFS - Real Estate",0]
["Sch Vg","GAAP - BSCR Rec",null,"Net Inc. Form 1SFS - Off Balance Sheet Ins.",0]
["Sch Vg","GAAP - BSCR Rec",null,"Net Inc. Form 1SFS - Debt Ins.",0]
["Sch Vg","GAAP - BSCR Rec",null,"Net Inc. Form 1SFS - Intangible",0]
["Sch Vg","GAAP - BSCR Rec",null,"Net Inc. Form 1SFS - Other 1",0]
["Sch Vg","GAAP - BSCR Rec",null,"Net Inc. Form 1SFS - Other 2",0]
["Sch Vg","GAAP - BSCR Rec",null,"Net Inc. Form 1SFS - Other 3",0]
["Sch Vg","GAAP - BSCR Rec",null,"Net Inc. Form 1SFS - Total",0]
["Sch Vg","GAAP - BSCR Rec",null,"C&S Form 1SFS - Form 1SFS",0]
["Sch Vg","GAAP - BSCR Rec",null,"C&S Form 1SFS - Gross Loss Provision",0]
["Sch Vg","GAAP - BSCR Rec",null,"C&S Form 1SFS - Gross Premium Provision",0]
["Sch Vg","GAAP - BSCR Rec",null,"C&S Form 1SFS - R/I Recoverable",0]
["Sch Vg","GAAP - BSCR Rec",null,"C&S Form 1SFS - Risk Margin",0]
["Sch Vg","GAAP - BSCR Rec",null,"C&S Form 1SFS - Contingent Liabilities",0]
["Sch Vg","GAAP - BSCR Rec",null,"C&S Form 1SFS - Goodwill",0]
["Sch Vg","GAAP - BSCR Rec",null,"C&S Form 1SFS - Deferred Tax",0]
["Sch Vg","GAAP - BSCR Rec",null,"C&S Form 1SFS - Quoted Investments",0]
["Sch Vg","GAAP - BSCR Rec",null,"C&S Form 1SFS - Unquoted Investments",0]
["Sch Vg","GAAP - BSCR Rec",null,"C&S Form 1SFS - Inv. In Affiliates",0]
["Sch Vg","GAAP - BSCR Rec",null,"C&S Form 1SFS - Real Estate",0]
["Sch Vg","GAAP - BSCR Rec",null,"C&S Form 1SFS - Off Balance Sheet Ins.",0]
["Sch Vg","GAAP - BSCR Rec",null,"C&S Form 1SFS - Debt Ins.",0]
["Sch Vg","GAAP - BSCR Rec",null,"C&S Form 1SFS - Intangible",0]
["Sch Vg","GAAP - BSCR Rec",null,"C&S Form 1SFS - Other 1",0]
["Sch Vg","GAAP - BSCR Rec",null,"C&S Form 1SFS - Other 2",0]
["Sch Vg","GAAP - BSCR Rec",null,"C&S Form 1SFS - Other 3",0]
["Sch Vg","GAAP - BSCR Rec",null,"C&S Form 1SFS - Total",0]
[]
["Sch Vk","Deposit Details",null,"# of Deposit Assets & Liabilities",0]
["Sch Vk","Deposit Details",null,"Name of Exposure - 1",0]
["Sch Vk","Deposit Details",null,"Name of Exposure - 2",0]
["Sch Vk","Deposit Details",null,"Name of Exposure - 3",0]
["Sch Vk","Deposit Details",null,"Name of Exposure - 4",0]
["Sch Vk","Deposit Details",null,"Name of Exposure - 5",0]
["Sch Vk","Deposit Details",null,"Name of Exposure - 6",0]
["Sch Vk","Deposit Details",null,"Name of Exposure - 7",0]
["Sch Vk","Deposit Details",null,"Name of Exposure - 8",0]
["Sch Vk","Deposit Details",null,"Name of Exposure - 9",0]
["Sch Vk","Deposit Details",null,"Name of Exposure - 10",0]
["Sch Vk","Deposit Details",null,"Name of Exposure - 11",0]
["Sch Vk","Deposit Details",null,"Name of Exposure - 12",0]
["Sch Vk","Deposit Details",null,"Name of Exposure - 13",0]
["Sch Vk","Deposit Details",null,"Name of Exposure - 14",0]
["Sch Vk","Deposit Details",null,"Name of Exposure - 15",0]
["Sch Vk","Deposit Details",null,"Name of Exposure - 16",0]
["Sch Vk","Deposit Details",null,"Name of Exposure - 17",0]
["Sch Vk","Deposit Details",null,"Name of Exposure - 18",0]
["Sch Vk","Deposit Details",null,"Name of Exposure - 19",0]
["Sch Vk","Deposit Details",null,"Name of Exposure - 20",0]
["Sch Vk","Deposit Details",null,"Name of Exposure - 21",0]
["Sch Vk","Deposit Details",null,"Name of Exposure - 22",0]
["Sch Vk","Deposit Details",null,"Name of Exposure - 23",0]
["Sch Vk","Deposit Details",null,"Name of Exposure - 24",0]
["Sch Vk","Deposit Details",null,"Name of Exposure - 25",0]
["Sch Vk","Deposit Details",null,"Line of Business - 1",0]
["Sch Vk","Deposit Details",null,"Line of Business - 2",0]
["Sch Vk","Deposit Details",null,"Line of Business - 3",0]
["Sch Vk","Deposit Details",null,"Line of Business - 4",0]
["Sch Vk","Deposit Details",null,"Line of Business - 5",0]
["Sch Vk","Deposit Details",null,"Line of Business - 6",0]
["Sch Vk","Deposit Details",null,"Line of Business - 7",0]
["Sch Vk","Deposit Details",null,"Line of Business - 8",0]
["Sch Vk","Deposit Details",null,"Line of Business - 9",0]
["Sch Vk","Deposit Details",null,"Line of Business - 10",0]
["Sch Vk","Deposit Details",null,"Line of Business - 11",0]
["Sch Vk","Deposit Details",null,"Line of Business - 12",0]
["Sch Vk","Deposit Details",null,"Line of Business - 13",0]
["Sch Vk","Deposit Details",null,"Line of Business - 14",0]
["Sch Vk","Deposit Details",null,"Line of Business - 15",0]
["Sch Vk","Deposit Details",null,"Line of Business - 16",0]
["Sch Vk","Deposit Details",null,"Line of Business - 17",0]
["Sch Vk","Deposit Details",null,"Line of Business - 18",0]
["Sch Vk","Deposit Details",null,"Line of Business - 19",0]
["Sch Vk","Deposit Details",null,"Line of Business - 20",0]
["Sch Vk","Deposit Details",null,"Line of Business - 21",0]
["Sch Vk","Deposit Details",null,"Line of Business - 22",0]
["Sch Vk","Deposit Details",null,"Line of Business - 23",0]
["Sch Vk","Deposit Details",null,"Line of Business - 24",0]
["Sch Vk","Deposit Details",null,"Line of Business - 25",0]
["Sch Vk","Deposit Details",null,"Assets in Trust - 1",0]
["Sch Vk","Deposit Details",null,"Assets in Trust - 2",0]
["Sch Vk","Deposit Details",null,"Assets in Trust - 3",0]
["Sch Vk","Deposit Details",null,"Assets in Trust - 4",0]
["Sch Vk","Deposit Details",null,"Assets in Trust - 5",0]
["Sch Vk","Deposit Details",null,"Assets in Trust - 6",0]
["Sch Vk","Deposit Details",null,"Assets in Trust - 7",0]
["Sch Vk","Deposit Details",null,"Assets in Trust - 8",0]
["Sch Vk","Deposit Details",null,"Assets in Trust - 9",0]
["Sch Vk","Deposit Details",null,"Assets in Trust - 10",0]
["Sch Vk","Deposit Details",null,"Assets in Trust - 11",0]
["Sch Vk","Deposit Details",null,"Assets in Trust - 12",0]
["Sch Vk","Deposit Details",null,"Assets in Trust - 13",0]
["Sch Vk","Deposit Details",null,"Assets in Trust - 14",0]
["Sch Vk","Deposit Details",null,"Assets in Trust - 15",0]
["Sch Vk","Deposit Details",null,"Assets in Trust - 16",0]
["Sch Vk","Deposit Details",null,"Assets in Trust - 17",0]
["Sch Vk","Deposit Details",null,"Assets in Trust - 18",0]
["Sch Vk","Deposit Details",null,"Assets in Trust - 19",0]
["Sch Vk","Deposit Details",null,"Assets in Trust - 20",0]
["Sch Vk","Deposit Details",null,"Assets in Trust - 21",0]
["Sch Vk","Deposit Details",null,"Assets in Trust - 22",0]
["Sch Vk","Deposit Details",null,"Assets in Trust - 23",0]
["Sch Vk","Deposit Details",null,"Assets in Trust - 24",0]
["Sch Vk","Deposit Details",null,"Assets in Trust - 25",0]
["Sch Vk","Deposit Details",null,"Assets in Trust - Total",0]
["Sch Vk","Deposit Details",null,"Collateral - 1",0]
["Sch Vk","Deposit Details",null,"Collateral - 2",0]
["Sch Vk","Deposit Details",null,"Collateral - 3",0]
["Sch Vk","Deposit Details",null,"Collateral - 4",0]
["Sch Vk","Deposit Details",null,"Collateral - 5",0]
["Sch Vk","Deposit Details",null,"Collateral - 6",0]
["Sch Vk","Deposit Details",null,"Collateral - 7",0]
["Sch Vk","Deposit Details",null,"Collateral - 8",0]
["Sch Vk","Deposit Details",null,"Collateral - 9",0]
["Sch Vk","Deposit Details",null,"Collateral - 10",0]
["Sch Vk","Deposit Details",null,"Collateral - 11",0]
["Sch Vk","Deposit Details",null,"Collateral - 12",0]
["Sch Vk","Deposit Details",null,"Collateral - 13",0]
["Sch Vk","Deposit Details",null,"Collateral - 14",0]
["Sch Vk","Deposit Details",null,"Collateral - 15",0]
["Sch Vk","Deposit Details",null,"Collateral - 16",0]
["Sch Vk","Deposit Details",null,"Collateral - 17",0]
["Sch Vk","Deposit Details",null,"Collateral - 18",0]
["Sch Vk","Deposit Details",null,"Collateral - 19",0]
["Sch Vk","Deposit Details",null,"Collateral - 20",0]
["Sch Vk","Deposit Details",null,"Collateral - 21",0]
["Sch Vk","Deposit Details",null,"Collateral - 22",0]
["Sch Vk","Deposit Details",null,"Collateral - 23",0]
["Sch Vk","Deposit Details",null,"Collateral - 24",0]
["Sch Vk","Deposit Details",null,"Collateral - 25",0]
["Sch Vk","Deposit Details",null,"Collateral - Total",0]
["Sch Vk","Deposit Details",null,"GPW for the Period - 1",0]
["Sch Vk","Deposit Details",null,"GPW for the Period - 2",0]
["Sch Vk","Deposit Details",null,"GPW for the Period - 3",0]
["Sch Vk","Deposit Details",null,"GPW for the Period - 4",0]
["Sch Vk","Deposit Details",null,"GPW for the Period - 5",0]
["Sch Vk","Deposit Details",null,"GPW for the Period - 6",0]
["Sch Vk","Deposit Details",null,"GPW for the Period - 7",0]
["Sch Vk","Deposit Details",null,"GPW for the Period - 8",0]
["Sch Vk","Deposit Details",null,"GPW for the Period - 9",0]
["Sch Vk","Deposit Details",null,"GPW for the Period - 10",0]
["Sch Vk","Deposit Details",null,"GPW for the Period - 11",0]
["Sch Vk","Deposit Details",null,"GPW for the Period - 12",0]
["Sch Vk","Deposit Details",null,"GPW for the Period - 13",0]
["Sch Vk","Deposit Details",null,"GPW for the Period - 14",0]
["Sch Vk","Deposit Details",null,"GPW for the Period - 15",0]
["Sch Vk","Deposit Details",null,"GPW for the Period - 16",0]
["Sch Vk","Deposit Details",null,"GPW for the Period - 17",0]
["Sch Vk","Deposit Details",null,"GPW for the Period - 18",0]
["Sch Vk","Deposit Details",null,"GPW for the Period - 19",0]
["Sch Vk","Deposit Details",null,"GPW for the Period - 20",0]
["Sch Vk","Deposit Details",null,"GPW for the Period - 21",0]
["Sch Vk","Deposit Details",null,"GPW for the Period - 22",0]
["Sch Vk","Deposit Details",null,"GPW for the Period - 23",0]
["Sch Vk","Deposit Details",null,"GPW for the Period - 24",0]
["Sch Vk","Deposit Details",null,"GPW for the Period - 25",0]
["Sch Vk","Deposit Details",null,"GPW for the Period - Total",0]
["Sch Vk","Deposit Details",null,"NPW for the Period - 1",0]
["Sch Vk","Deposit Details",null,"NPW for the Period - 2",0]
["Sch Vk","Deposit Details",null,"NPW for the Period - 3",0]
["Sch Vk","Deposit Details",null,"NPW for the Period - 4",0]
["Sch Vk","Deposit Details",null,"NPW for the Period - 5",0]
["Sch Vk","Deposit Details",null,"NPW for the Period - 6",0]
["Sch Vk","Deposit Details",null,"NPW for the Period - 7",0]
["Sch Vk","Deposit Details",null,"NPW for the Period - 8",0]
["Sch Vk","Deposit Details",null,"NPW for the Period - 9",0]
["Sch Vk","Deposit Details",null,"NPW for the Period - 10",0]
["Sch Vk","Deposit Details",null,"NPW for the Period - 11",0]
["Sch Vk","Deposit Details",null,"NPW for the Period - 12",0]
["Sch Vk","Deposit Details",null,"NPW for the Period - 13",0]
["Sch Vk","Deposit Details",null,"NPW for the Period - 14",0]
["Sch Vk","Deposit Details",null,"NPW for the Period - 15",0]
["Sch Vk","Deposit Details",null,"NPW for the Period - 16",0]
["Sch Vk","Deposit Details",null,"NPW for the Period - 17",0]
["Sch Vk","Deposit Details",null,"NPW for the Period - 18",0]
["Sch Vk","Deposit Details",null,"NPW for the Period - 19",0]
["Sch Vk","Deposit Details",null,"NPW for the Period - 20",0]
["Sch Vk","Deposit Details",null,"NPW for the Period - 21",0]
["Sch Vk","Deposit Details",null,"NPW for the Period - 22",0]
["Sch Vk","Deposit Details",null,"NPW for the Period - 23",0]
["Sch Vk","Deposit Details",null,"NPW for the Period - 24",0]
["Sch Vk","Deposit Details",null,"NPW for the Period - 25",0]
["Sch Vk","Deposit Details",null,"NPW for the Period - Total",0]
["Sch Vk","Deposit Details",null,"Exposure - 1",0]
["Sch Vk","Deposit Details",null,"Exposure - 2",0]
["Sch Vk","Deposit Details",null,"Exposure - 3",0]
["Sch Vk","Deposit Details",null,"Exposure - 4",0]
["Sch Vk","Deposit Details",null,"Exposure - 5",0]
["Sch Vk","Deposit Details",null,"Exposure - 6",0]
["Sch Vk","Deposit Details",null,"Exposure - 7",0]
["Sch Vk","Deposit Details",null,"Exposure - 8",0]
["Sch Vk","Deposit Details",null,"Exposure - 9",0]
["Sch Vk","Deposit Details",null,"Exposure - 10",0]
["Sch Vk","Deposit Details",null,"Exposure - 11",0]
["Sch Vk","Deposit Details",null,"Exposure - 12",0]
["Sch Vk","Deposit Details",null,"Exposure - 13",0]
["Sch Vk","Deposit Details",null,"Exposure - 14",0]
["Sch Vk","Deposit Details",null,"Exposure - 15",0]
["Sch Vk","Deposit Details",null,"Exposure - 16",0]
["Sch Vk","Deposit Details",null,"Exposure - 17",0]
["Sch Vk","Deposit Details",null,"Exposure - 18",0]
["Sch Vk","Deposit Details",null,"Exposure - 19",0]
["Sch Vk","Deposit Details",null,"Exposure - 20",0]
["Sch Vk","Deposit Details",null,"Exposure - 21",0]
["Sch Vk","Deposit Details",null,"Exposure - 22",0]
["Sch Vk","Deposit Details",null,"Exposure - 23",0]
["Sch Vk","Deposit Details",null,"Exposure - 24",0]
["Sch Vk","Deposit Details",null,"Exposure - 25",0]
["Sch Vk","Deposit Details",null,"Exposure - Total",0]
["Sch Vk","Deposit Details",null,"Limit @ 99.0 TVAR - 1",0]
["Sch Vk","Deposit Details",null,"Limit @ 99.0 TVAR - 2",0]
["Sch Vk","Deposit Details",null,"Limit @ 99.0 TVAR - 3",0]
["Sch Vk","Deposit Details",null,"Limit @ 99.0 TVAR - 4",0]
["Sch Vk","Deposit Details",null,"Limit @ 99.0 TVAR - 5",0]
["Sch Vk","Deposit Details",null,"Limit @ 99.0 TVAR - 6",0]
["Sch Vk","Deposit Details",null,"Limit @ 99.0 TVAR - 7",0]
["Sch Vk","Deposit Details",null,"Limit @ 99.0 TVAR - 8",0]
["Sch Vk","Deposit Details",null,"Limit @ 99.0 TVAR - 9",0]
["Sch Vk","Deposit Details",null,"Limit @ 99.0 TVAR - 10",0]
["Sch Vk","Deposit Details",null,"Limit @ 99.0 TVAR - 11",0]
["Sch Vk","Deposit Details",null,"Limit @ 99.0 TVAR - 12",0]
["Sch Vk","Deposit Details",null,"Limit @ 99.0 TVAR - 13",0]
["Sch Vk","Deposit Details",null,"Limit @ 99.0 TVAR - 14",0]
["Sch Vk","Deposit Details",null,"Limit @ 99.0 TVAR - 15",0]
["Sch Vk","Deposit Details",null,"Limit @ 99.0 TVAR - 16",0]
["Sch Vk","Deposit Details",null,"Limit @ 99.0 TVAR - 17",0]
["Sch Vk","Deposit Details",null,"Limit @ 99.0 TVAR - 18",0]
["Sch Vk","Deposit Details",null,"Limit @ 99.0 TVAR - 19",0]
["Sch Vk","Deposit Details",null,"Limit @ 99.0 TVAR - 20",0]
["Sch Vk","Deposit Details",null,"Limit @ 99.0 TVAR - 21",0]
["Sch Vk","Deposit Details",null,"Limit @ 99.0 TVAR - 22",0]
["Sch Vk","Deposit Details",null,"Limit @ 99.0 TVAR - 23",0]
["Sch Vk","Deposit Details",null,"Limit @ 99.0 TVAR - 24",0]
["Sch Vk","Deposit Details",null,"Limit @ 99.0 TVAR - 25",0]
["Sch Vk","Deposit Details",null,"Limit @ 99.0 TVAR - Total",0]
["Sch Vk","Deposit Details",null,"Unlimited Exposure Details - 1",0]
["Sch Vk","Deposit Details",null,"Unlimited Exposure Details - 2",0]
["Sch Vk","Deposit Details",null,"Unlimited Exposure Details - 3",0]
["Sch Vk","Deposit Details",null,"Unlimited Exposure Details - 4",0]
["Sch Vk","Deposit Details",null,"Unlimited Exposure Details - 5",0]
["Sch Vk","Deposit Details",null,"Unlimited Exposure Details - 6",0]
["Sch Vk","Deposit Details",null,"Unlimited Exposure Details - 7",0]
["Sch Vk","Deposit Details",null,"Unlimited Exposure Details - 8",0]
["Sch Vk","Deposit Details",null,"Unlimited Exposure Details - 9",0]
["Sch Vk","Deposit Details",null,"Unlimited Exposure Details - 10",0]
["Sch Vk","Deposit Details",null,"Unlimited Exposure Details - 11",0]
["Sch Vk","Deposit Details",null,"Unlimited Exposure Details - 12",0]
["Sch Vk","Deposit Details",null,"Unlimited Exposure Details - 13",0]
["Sch Vk","Deposit Details",null,"Unlimited Exposure Details - 14",0]
["Sch Vk","Deposit Details",null,"Unlimited Exposure Details - 15",0]
["Sch Vk","Deposit Details",null,"Unlimited Exposure Details - 16",0]
["Sch Vk","Deposit Details",null,"Unlimited Exposure Details - 17",0]
["Sch Vk","Deposit Details",null,"Unlimited Exposure Details - 18",0]
["Sch Vk","Deposit Details",null,"Unlimited Exposure Details - 19",0]
["Sch Vk","Deposit Details",null,"Unlimited Exposure Details - 20",0]
["Sch Vk","Deposit Details",null,"Unlimited Exposure Details - 21",0]
["Sch Vk","Deposit Details",null,"Unlimited Exposure Details - 22",0]
["Sch Vk","Deposit Details",null,"Unlimited Exposure Details - 23",0]
["Sch Vk","Deposit Details",null,"Unlimited Exposure Details - 24",0]
["Sch Vk","Deposit Details",null,"Unlimited Exposure Details - 25",0]
[]
["Sch V(L)","Segregated Acc",null,"# of Segregated Accounts",0]
["Sch V(L)","Segregated Acc",null,"Cell Ref # - Cell 1",0]
["Sch V(L)","Segregated Acc",null,"Cell name - Cell 1",0]
["Sch V(L)","Segregated Acc",null,"Direct Insurer, Reinsurer or Both - Cell 1","Select Premiums Written"]
["Sch V(L)","Segregated Acc",null,"Total Assets - Cell 1",0]
["Sch V(L)","Segregated Acc",null,"Total Liabilities - Cell 1",0]
["Sch V(L)","Segregated Acc",null,"Statutory Surplus - Cell 1",0]
["Sch V(L)","Segregated Acc",null,"Statutory Capital - Cell 1",0]
["Sch V(L)","Segregated Acc",null,"Net Income - Cell 1",0]
["Sch V(L)","Segregated Acc",null,"Cash  - Cell 1",0]
["Sch V(L)","Segregated Acc",null,"Quoted: Bonds and Debentures - Cell 1",0]
["Sch V(L)","Segregated Acc",null,"Quoted: Equites - Cell 1",0]
["Sch V(L)","Segregated Acc",null,"Quoted: Other  - Cell 1",0]
["Sch V(L)","Segregated Acc",null,"Unquoted: Bonds and Debentures - Cell 1",0]
["Sch V(L)","Segregated Acc",null,"Unquoted: Equities - Cell 1",0]
["Sch V(L)","Segregated Acc",null,"Unquoted: Other - Cell 1",0]
["Sch V(L)","Segregated Acc",null,"Due from Affiliates - Cell 1",0]
["Sch V(L)","Segregated Acc",null,"Due to Affiliates - Cell 1",0]
["Sch V(L)","Segregated Acc",null,"Net Loss & Loss Expense Provisions - Cell 1",0]
["Sch V(L)","Segregated Acc",null,"Prior Year loss reserve development - Cell 1",0]
["Sch V(L)","Segregated Acc",null,"Reinsurance Recoverable Balance - Cell 1",0]
["Sch V(L)","Segregated Acc",null,"Cell is in Run-Off - Cell 1","Select Yes/No"]
["Sch V(L)","Segregated Acc",null,"currency used - Cell 1","Select Currency"]
["Sch V(L)","Segregated Acc",null,"Cell to Cell Activity  - Cell 1","Confirm Activity"]
["Sch V(L)","Segregated Acc",null,"Cell to Cell Activity Details - Cell 1",0]
["Sch V(L)","Segregated Acc",null,"General Cell to Cell Activity - Cell 1","Confirm Activity"]
["Sch V(L)","Segregated Acc",null,"General Cell to Cell Activity Details - Cell 1",0]
["Sch V(L)","Segregated Acc",null,"Cell Deficit - Cell 1",0]
["Sch V(L)","Segregated Acc",null,"Additional Capital Support - Cell 1","Confirm"]
["Sch V(L)","Segregated Acc",null,"Additional Capital Support Details - Cell 1",0]
["Sch V(L)","Segregated Acc",null,"Details of Benefical Owners of Risk - Cell 1","Confirm"]
["Sch V(L)","Segregated Acc",null,"Details of Benefical Owners of Cell - Cell 1","Confirm"]
["Sch V(L)","Segregated Acc",null,"Benefical Owners - Cell 1","Confirm"]
["Sch V(L)","Segregated Acc",null,"Benefical Ownership - Cell 1","Confirm Ownership"]
["Sch V(L)","Segregated Acc",null,"Benefical Ownership Add. Details - Cell 1",0]
["Sch V(L)","Segregated Acc",null,"Jurisdiction - Cell 1","Confirm Jurisdiction"]
["Sch V(L)","Segregated Acc",null,"Benefical Ownership Gov Intrument - Cell 1","Confirm Instrument"]
["Sch V(L)","Segregated Acc",null,"Benefical Ownership Gov Intrument Det. - Cell 1",0]
["Sch V(L)","Segregated Acc",null,"Indemnity Provisions - Cell 1","Select Yes/No"]
["Sch V(L)","Segregated Acc",null,"Limited recourse  - Cell 1","Select Yes/No"]
["Sch V(L)","Segregated Acc",null,"Primary Cell Funding - Cell 1","Select Funding"]
["Sch V(L)","Segregated Acc",null,"Limit of Cell  Funding/ Collateral - Cell 1","Confirm Funding / Collateral"]
["Sch V(L)","Segregated Acc",null,"Limit of Cell  Funding/ Collateral Details - Cell 1",0]
["Sch V(L)","Segregated Acc",null,"Operational Risk Mitigants - Cell 1","Confirm Mitigants & Attach Support"]
["Sch V(L)","Segregated Acc",null,"i) Statutory Line of Business - Cell 1","Select Line of Business"]
["Sch V(L)","Segregated Acc",null,"i) GPW - Cell 1",0]
["Sch V(L)","Segregated Acc",null,"i) Premiums Ceded - Cell 1",0]
["Sch V(L)","Segregated Acc",null,"i) NPW - Cell 1",0]
["Sch V(L)","Segregated Acc",null,"ii) Statutory Line of Business - Cell 1","Select Line of Business"]
["Sch V(L)","Segregated Acc",null,"ii) GPW - Cell 1",0]
["Sch V(L)","Segregated Acc",null,"ii) Premiums Ceded - Cell 1",0]
["Sch V(L)","Segregated Acc",null,"ii) NPW - Cell 1",0]
["Sch V(L)","Segregated Acc",null,"iii) Statutory Line of Business - Cell 1","Select Line of Business"]
["Sch V(L)","Segregated Acc",null,"iii) GPW - Cell 1",0]
["Sch V(L)","Segregated Acc",null,"iii) Premiums Ceded - Cell 1",0]
["Sch V(L)","Segregated Acc",null,"iii) NPW - Cell 1",0]
["Sch V(L)","Segregated Acc",null,"iv) Statutory Line of Business - Cell 1","Select Line of Business"]
["Sch V(L)","Segregated Acc",null,"iv) GPW - Cell 1",0]
["Sch V(L)","Segregated Acc",null,"iv) Premiums Ceded - Cell 1",0]
["Sch V(L)","Segregated Acc",null,"iv) NPW - Cell 1",0]
["Sch V(L)","Segregated Acc",null,"v) Statutory Line of Business - Cell 1","Select Line of Business"]
["Sch V(L)","Segregated Acc",null,"v) GPW - Cell 1",0]
["Sch V(L)","Segregated Acc",null,"v) Premiums Ceded - Cell 1",0]
["Sch V(L)","Segregated Acc",null,"v) NPW - Cell 1",0]
["Sch V(L)","Segregated Acc",null,"Cell Ref # - Cell 2",0]
["Sch V(L)","Segregated Acc",null,"Cell name - Cell 2",0]
["Sch V(L)","Segregated Acc",null,"Direct Insurer, Reinsurer or Both - Cell 2","Select Premiums Written"]
["Sch V(L)","Segregated Acc",null,"Total Assets - Cell 2",0]
["Sch V(L)","Segregated Acc",null,"Total Liabilities - Cell 2",0]
["Sch V(L)","Segregated Acc",null,"Statutory Surplus - Cell 2",0]
["Sch V(L)","Segregated Acc",null,"Statutory Capital - Cell 2",0]
["Sch V(L)","Segregated Acc",null,"Net Income - Cell 2",0]
["Sch V(L)","Segregated Acc",null,"Cash  - Cell 2",0]
["Sch V(L)","Segregated Acc",null,"Quoted: Bonds and Debentures - Cell 2",0]
["Sch V(L)","Segregated Acc",null,"Quoted: Equites - Cell 2",0]
["Sch V(L)","Segregated Acc",null,"Quoted: Other  - Cell 2",0]
["Sch V(L)","Segregated Acc",null,"Unquoted: Bonds and Debentures - Cell 2",0]
["Sch V(L)","Segregated Acc",null,"Unquoted: Equities - Cell 2",0]
["Sch V(L)","Segregated Acc",null,"Unquoted: Other - Cell 2",0]
["Sch V(L)","Segregated Acc",null,"Due from Affiliates - Cell 2",0]
["Sch V(L)","Segregated Acc",null,"Due to Affiliates - Cell 2",0]
["Sch V(L)","Segregated Acc",null,"Net Loss & Loss Expense Provisions - Cell 2",0]
["Sch V(L)","Segregated Acc",null,"Prior Year loss reserve development - Cell 2",0]
["Sch V(L)","Segregated Acc",null,"Reinsurance Recoverable Balance - Cell 2",0]
["Sch V(L)","Segregated Acc",null,"Cell is in Run-Off - Cell 2","Select Yes/No"]
["Sch V(L)","Segregated Acc",null,"currency used - Cell 2","Select Currency"]
["Sch V(L)","Segregated Acc",null,"Cell to Cell Activity  - Cell 2","Confirm Activity"]
["Sch V(L)","Segregated Acc",null,"Cell to Cell Activity Details - Cell 2",0]
["Sch V(L)","Segregated Acc",null,"General Cell to Cell Activity - Cell 2","Confirm Activity"]
["Sch V(L)","Segregated Acc",null,"General Cell to Cell Activity Details - Cell 2",0]
["Sch V(L)","Segregated Acc",null,"Cell Deficit - Cell 2",0]
["Sch V(L)","Segregated Acc",null,"Additional Capital Support - Cell 2","Confirm"]
["Sch V(L)","Segregated Acc",null,"Additional Capital Support Details - Cell 2",0]
["Sch V(L)","Segregated Acc",null,"Details of Benefical Owners of Risk - Cell 2","Confirm"]
["Sch V(L)","Segregated Acc",null,"Details of Benefical Owners of Cell - Cell 2","Confirm"]
["Sch V(L)","Segregated Acc",null,"Benefical Owners - Cell 2","Confirm"]
["Sch V(L)","Segregated Acc",null,"Benefical Ownership - Cell 2","Confirm Ownership"]
["Sch V(L)","Segregated Acc",null,"Benefical Ownership Add. Details - Cell 2",0]
["Sch V(L)","Segregated Acc",null,"Jurisdiction - Cell 2","Confirm Jurisdiction"]
["Sch V(L)","Segregated Acc",null,"Benefical Ownership Gov Intrument - Cell 2","Confirm Instrument"]
["Sch V(L)","Segregated Acc",null,"Benefical Ownership Gov Intrument Det. - Cell 2",0]
["Sch V(L)","Segregated Acc",null,"Indemnity Provisions - Cell 2","Select Yes/No"]
["Sch V(L)","Segregated Acc",null,"Limited recourse  - Cell 2","Select Yes/No"]
["Sch V(L)","Segregated Acc",null,"Primary Cell Funding - Cell 2","Select Funding"]
["Sch V(L)","Segregated Acc",null,"Limit of Cell  Funding/ Collateral - Cell 2","Confirm Funding / Collateral"]
["Sch V(L)","Segregated Acc",null,"Limit of Cell  Funding/ Collateral Details - Cell 2",0]
["Sch V(L)","Segregated Acc",null,"Operational Risk Mitigants - Cell 2","Confirm Mitigants & Attach Support"]
["Sch V(L)","Segregated Acc",null,"i) Statutory Line of Business - Cell 2","Select Line of Business"]
["Sch V(L)","Segregated Acc",null,"i) GPW - Cell 2",0]
["Sch V(L)","Segregated Acc",null,"i) Premiums Ceded - Cell 2",0]
["Sch V(L)","Segregated Acc",null,"i) NPW - Cell 2",0]
["Sch V(L)","Segregated Acc",null,"ii) Statutory Line of Business - Cell 2","Select Line of Business"]
["Sch V(L)","Segregated Acc",null,"ii) GPW - Cell 2",0]
["Sch V(L)","Segregated Acc",null,"ii) Premiums Ceded - Cell 2",0]
["Sch V(L)","Segregated Acc",null,"ii) NPW - Cell 2",0]
["Sch V(L)","Segregated Acc",null,"iii) Statutory Line of Business - Cell 2","Select Line of Business"]
["Sch V(L)","Segregated Acc",null,"iii) GPW - Cell 2",0]
["Sch V(L)","Segregated Acc",null,"iii) Premiums Ceded - Cell 2",0]
["Sch V(L)","Segregated Acc",null,"iii) NPW - Cell 2",0]
["Sch V(L)","Segregated Acc",null,"iv) Statutory Line of Business - Cell 2","Select Line of Business"]
["Sch V(L)","Segregated Acc",null,"iv) GPW - Cell 2",0]
["Sch V(L)","Segregated Acc",null,"iv) Premiums Ceded - Cell 2",0]
["Sch V(L)","Segregated Acc",null,"iv) NPW - Cell 2",0]
["Sch V(L)","Segregated Acc",null,"v) Statutory Line of Business - Cell 2","Select Line of Business"]
["Sch V(L)","Segregated Acc",null,"v) GPW - Cell 2",0]
["Sch V(L)","Segregated Acc",null,"v) Premiums Ceded - Cell 2",0]
["Sch V(L)","Segregated Acc",null,"v) NPW - Cell 2",0]
["Sch V(L)","Segregated Acc",null,"Cell Ref # - Cell 3",0]
["Sch V(L)","Segregated Acc",null,"Cell name - Cell 3",0]
["Sch V(L)","Segregated Acc",null,"Direct Insurer, Reinsurer or Both - Cell 3","Select Premiums Written"]
["Sch V(L)","Segregated Acc",null,"Total Assets - Cell 3",0]
["Sch V(L)","Segregated Acc",null,"Total Liabilities - Cell 3",0]
["Sch V(L)","Segregated Acc",null,"Statutory Surplus - Cell 3",0]
["Sch V(L)","Segregated Acc",null,"Statutory Capital - Cell 3",0]
["Sch V(L)","Segregated Acc",null,"Net Income - Cell 3",0]
["Sch V(L)","Segregated Acc",null,"Cash  - Cell 3",0]
["Sch V(L)","Segregated Acc",null,"Quoted: Bonds and Debentures - Cell 3",0]
["Sch V(L)","Segregated Acc",null,"Quoted: Equites - Cell 3",0]
["Sch V(L)","Segregated Acc",null,"Quoted: Other  - Cell 3",0]
["Sch V(L)","Segregated Acc",null,"Unquoted: Bonds and Debentures - Cell 3",0]
["Sch V(L)","Segregated Acc",null,"Unquoted: Equities - Cell 3",0]
["Sch V(L)","Segregated Acc",null,"Unquoted: Other - Cell 3",0]
["Sch V(L)","Segregated Acc",null,"Due from Affiliates - Cell 3",0]
["Sch V(L)","Segregated Acc",null,"Due to Affiliates - Cell 3",0]
["Sch V(L)","Segregated Acc",null,"Net Loss & Loss Expense Provisions - Cell 3",0]
["Sch V(L)","Segregated Acc",null,"Prior Year loss reserve development - Cell 3",0]
["Sch V(L)","Segregated Acc",null,"Reinsurance Recoverable Balance - Cell 3",0]
["Sch V(L)","Segregated Acc",null,"Cell is in Run-Off - Cell 3","Select Yes/No"]
["Sch V(L)","Segregated Acc",null,"currency used - Cell 3","Select Currency"]
["Sch V(L)","Segregated Acc",null,"Cell to Cell Activity  - Cell 3","Confirm Activity"]
["Sch V(L)","Segregated Acc",null,"Cell to Cell Activity Details - Cell 3",0]
["Sch V(L)","Segregated Acc",null,"General Cell to Cell Activity - Cell 3","Confirm Activity"]
["Sch V(L)","Segregated Acc",null,"General Cell to Cell Activity Details - Cell 3",0]
["Sch V(L)","Segregated Acc",null,"Cell Deficit - Cell 3",0]
["Sch V(L)","Segregated Acc",null,"Additional Capital Support - Cell 3","Confirm"]
["Sch V(L)","Segregated Acc",null,"Additional Capital Support Details - Cell 3",0]
["Sch V(L)","Segregated Acc",null,"Details of Benefical Owners of Risk - Cell 3","Confirm"]
["Sch V(L)","Segregated Acc",null,"Details of Benefical Owners of Cell - Cell 3","Confirm"]
["Sch V(L)","Segregated Acc",null,"Benefical Owners - Cell 3","Confirm"]
["Sch V(L)","Segregated Acc",null,"Benefical Ownership - Cell 3","Confirm Ownership"]
["Sch V(L)","Segregated Acc",null,"Benefical Ownership Add. Details - Cell 3",0]
["Sch V(L)","Segregated Acc",null,"Jurisdiction - Cell 3","Confirm Jurisdiction"]
["Sch V(L)","Segregated Acc",null,"Benefical Ownership Gov Intrument - Cell 3","Confirm Instrument"]
["Sch V(L)","Segregated Acc",null,"Benefical Ownership Gov Intrument Det. - Cell 3",0]
["Sch V(L)","Segregated Acc",null,"Indemnity Provisions - Cell 3","Select Yes/No"]
["Sch V(L)","Segregated Acc",null,"Limited recourse  - Cell 3","Select Yes/No"]
["Sch V(L)","Segregated Acc",null,"Primary Cell Funding - Cell 3","Select Funding"]
["Sch V(L)","Segregated Acc",null,"Limit of Cell  Funding/ Collateral - Cell 3","Confirm Funding / Collateral"]
["Sch V(L)","Segregated Acc",null,"Limit of Cell  Funding/ Collateral Details - Cell 3",0]
["Sch V(L)","Segregated Acc",null,"Operational Risk Mitigants - Cell 3","Confirm Mitigants & Attach Support"]
["Sch V(L)","Segregated Acc",null,"i) Statutory Line of Business - Cell 3","Select Line of Business"]
["Sch V(L)","Segregated Acc",null,"i) GPW - Cell 3",0]
["Sch V(L)","Segregated Acc",null,"i) Premiums Ceded - Cell 3",0]
["Sch V(L)","Segregated Acc",null,"i) NPW - Cell 3",0]
["Sch V(L)","Segregated Acc",null,"ii) Statutory Line of Business - Cell 3","Select Line of Business"]
["Sch V(L)","Segregated Acc",null,"ii) GPW - Cell 3",0]
["Sch V(L)","Segregated Acc",null,"ii) Premiums Ceded - Cell 3",0]
["Sch V(L)","Segregated Acc",null,"ii) NPW - Cell 3",0]
["Sch V(L)","Segregated Acc",null,"iii) Statutory Line of Business - Cell 3","Select Line of Business"]
["Sch V(L)","Segregated Acc",null,"iii) GPW - Cell 3",0]
["Sch V(L)","Segregated Acc",null,"iii) Premiums Ceded - Cell 3",0]
["Sch V(L)","Segregated Acc",null,"iii) NPW - Cell 3",0]
["Sch V(L)","Segregated Acc",null,"iv) Statutory Line of Business - Cell 3","Select Line of Business"]
["Sch V(L)","Segregated Acc",null,"iv) GPW - Cell 3",0]
["Sch V(L)","Segregated Acc",null,"iv) Premiums Ceded - Cell 3",0]
["Sch V(L)","Segregated Acc",null,"iv) NPW - Cell 3",0]
["Sch V(L)","Segregated Acc",null,"v) Statutory Line of Business - Cell 3","Select Line of Business"]
["Sch V(L)","Segregated Acc",null,"v) GPW - Cell 3",0]
["Sch V(L)","Segregated Acc",null,"v) Premiums Ceded - Cell 3",0]
["Sch V(L)","Segregated Acc",null,"v) NPW - Cell 3",0]
["Sch V(L)","Segregated Acc",null,"Cell Ref # - Cell 4",0]
["Sch V(L)","Segregated Acc",null,"Cell name - Cell 4",0]
["Sch V(L)","Segregated Acc",null,"Direct Insurer, Reinsurer or Both - Cell 4","Select Premiums Written"]
["Sch V(L)","Segregated Acc",null,"Total Assets - Cell 4",0]
["Sch V(L)","Segregated Acc",null,"Total Liabilities - Cell 4",0]
["Sch V(L)","Segregated Acc",null,"Statutory Surplus - Cell 4",0]
["Sch V(L)","Segregated Acc",null,"Statutory Capital - Cell 4",0]
["Sch V(L)","Segregated Acc",null,"Net Income - Cell 4",0]
["Sch V(L)","Segregated Acc",null,"Cash  - Cell 4",0]
["Sch V(L)","Segregated Acc",null,"Quoted: Bonds and Debentures - Cell 4",0]
["Sch V(L)","Segregated Acc",null,"Quoted: Equites - Cell 4",0]
["Sch V(L)","Segregated Acc",null,"Quoted: Other  - Cell 4",0]
["Sch V(L)","Segregated Acc",null,"Unquoted: Bonds and Debentures - Cell 4",0]
["Sch V(L)","Segregated Acc",null,"Unquoted: Equities - Cell 4",0]
["Sch V(L)","Segregated Acc",null,"Unquoted: Other - Cell 4",0]
["Sch V(L)","Segregated Acc",null,"Due from Affiliates - Cell 4",0]
["Sch V(L)","Segregated Acc",null,"Due to Affiliates - Cell 4",0]
["Sch V(L)","Segregated Acc",null,"Net Loss & Loss Expense Provisions - Cell 4",0]
["Sch V(L)","Segregated Acc",null,"Prior Year loss reserve development - Cell 4",0]
["Sch V(L)","Segregated Acc",null,"Reinsurance Recoverable Balance - Cell 4",0]
["Sch V(L)","Segregated Acc",null,"Cell is in Run-Off - Cell 4","Select Yes/No"]
["Sch V(L)","Segregated Acc",null,"currency used - Cell 4","Select Currency"]
["Sch V(L)","Segregated Acc",null,"Cell to Cell Activity  - Cell 4","Confirm Activity"]
["Sch V(L)","Segregated Acc",null,"Cell to Cell Activity Details - Cell 4",0]
["Sch V(L)","Segregated Acc",null,"General Cell to Cell Activity - Cell 4","Confirm Activity"]
["Sch V(L)","Segregated Acc",null,"General Cell to Cell Activity Details - Cell 4",0]
["Sch V(L)","Segregated Acc",null,"Cell Deficit - Cell 4",0]
["Sch V(L)","Segregated Acc",null,"Additional Capital Support - Cell 4","Confirm"]
["Sch V(L)","Segregated Acc",null,"Additional Capital Support Details - Cell 4",0]
["Sch V(L)","Segregated Acc",null,"Details of Benefical Owners of Risk - Cell 4","Confirm"]
["Sch V(L)","Segregated Acc",null,"Details of Benefical Owners of Cell - Cell 4","Confirm"]
["Sch V(L)","Segregated Acc",null,"Benefical Owners - Cell 4","Confirm"]
["Sch V(L)","Segregated Acc",null,"Benefical Ownership - Cell 4","Confirm Ownership"]
["Sch V(L)","Segregated Acc",null,"Benefical Ownership Add. Details - Cell 4",0]
["Sch V(L)","Segregated Acc",null,"Jurisdiction - Cell 4","Confirm Jurisdiction"]
["Sch V(L)","Segregated Acc",null,"Benefical Ownership Gov Intrument - Cell 4","Confirm Instrument"]
["Sch V(L)","Segregated Acc",null,"Benefical Ownership Gov Intrument Det. - Cell 4",0]
["Sch V(L)","Segregated Acc",null,"Indemnity Provisions - Cell 4","Select Yes/No"]
["Sch V(L)","Segregated Acc",null,"Limited recourse  - Cell 4","Select Yes/No"]
["Sch V(L)","Segregated Acc",null,"Primary Cell Funding - Cell 4","Select Funding"]
["Sch V(L)","Segregated Acc",null,"Limit of Cell  Funding/ Collateral - Cell 4","Confirm Funding / Collateral"]
["Sch V(L)","Segregated Acc",null,"Limit of Cell  Funding/ Collateral Details - Cell 4",0]
["Sch V(L)","Segregated Acc",null,"Operational Risk Mitigants - Cell 4","Confirm Mitigants & Attach Support"]
["Sch V(L)","Segregated Acc",null,"i) Statutory Line of Business - Cell 4","Select Line of Business"]
["Sch V(L)","Segregated Acc",null,"i) GPW - Cell 4",0]
["Sch V(L)","Segregated Acc",null,"i) Premiums Ceded - Cell 4",0]
["Sch V(L)","Segregated Acc",null,"i) NPW - Cell 4",0]
["Sch V(L)","Segregated Acc",null,"ii) Statutory Line of Business - Cell 4","Select Line of Business"]
["Sch V(L)","Segregated Acc",null,"ii) GPW - Cell 4",0]
["Sch V(L)","Segregated Acc",null,"ii) Premiums Ceded - Cell 4",0]
["Sch V(L)","Segregated Acc",null,"ii) NPW - Cell 4",0]
["Sch V(L)","Segregated Acc",null,"iii) Statutory Line of Business - Cell 4","Select Line of Business"]
["Sch V(L)","Segregated Acc",null,"iii) GPW - Cell 4",0]
["Sch V(L)","Segregated Acc",null,"iii) Premiums Ceded - Cell 4",0]
["Sch V(L)","Segregated Acc",null,"iii) NPW - Cell 4",0]
["Sch V(L)","Segregated Acc",null,"iv) Statutory Line of Business - Cell 4","Select Line of Business"]
["Sch V(L)","Segregated Acc",null,"iv) GPW - Cell 4",0]
["Sch V(L)","Segregated Acc",null,"iv) Premiums Ceded - Cell 4",0]
["Sch V(L)","Segregated Acc",null,"iv) NPW - Cell 4",0]
["Sch V(L)","Segregated Acc",null,"v) Statutory Line of Business - Cell 4","Select Line of Business"]
["Sch V(L)","Segregated Acc",null,"v) GPW - Cell 4",0]
["Sch V(L)","Segregated Acc",null,"v) Premiums Ceded - Cell 4",0]
["Sch V(L)","Segregated Acc",null,"v) NPW - Cell 4",0]
["Sch V(L)","Segregated Acc",null,"Cell Ref # - Cell 5",0]
["Sch V(L)","Segregated Acc",null,"Cell name - Cell 5",0]
["Sch V(L)","Segregated Acc",null,"Direct Insurer, Reinsurer or Both - Cell 5","Select Premiums Written"]
["Sch V(L)","Segregated Acc",null,"Total Assets - Cell 5",0]
["Sch V(L)","Segregated Acc",null,"Total Liabilities - Cell 5",0]
["Sch V(L)","Segregated Acc",null,"Statutory Surplus - Cell 5",0]
["Sch V(L)","Segregated Acc",null,"Statutory Capital - Cell 5",0]
["Sch V(L)","Segregated Acc",null,"Net Income - Cell 5",0]
["Sch V(L)","Segregated Acc",null,"Cash  - Cell 5",0]
["Sch V(L)","Segregated Acc",null,"Quoted: Bonds and Debentures - Cell 5",0]
["Sch V(L)","Segregated Acc",null,"Quoted: Equites - Cell 5",0]
["Sch V(L)","Segregated Acc",null,"Quoted: Other  - Cell 5",0]
["Sch V(L)","Segregated Acc",null,"Unquoted: Bonds and Debentures - Cell 5",0]
["Sch V(L)","Segregated Acc",null,"Unquoted: Equities - Cell 5",0]
["Sch V(L)","Segregated Acc",null,"Unquoted: Other - Cell 5",0]
["Sch V(L)","Segregated Acc",null,"Due from Affiliates - Cell 5",0]
["Sch V(L)","Segregated Acc",null,"Due to Affiliates - Cell 5",0]
["Sch V(L)","Segregated Acc",null,"Net Loss & Loss Expense Provisions - Cell 5",0]
["Sch V(L)","Segregated Acc",null,"Prior Year loss reserve development - Cell 5",0]
["Sch V(L)","Segregated Acc",null,"Reinsurance Recoverable Balance - Cell 5",0]
["Sch V(L)","Segregated Acc",null,"Cell is in Run-Off - Cell 5","Select Yes/No"]
["Sch V(L)","Segregated Acc",null,"currency used - Cell 5","Select Currency"]
["Sch V(L)","Segregated Acc",null,"Cell to Cell Activity  - Cell 5","Confirm Activity"]
["Sch V(L)","Segregated Acc",null,"Cell to Cell Activity Details - Cell 5",0]
["Sch V(L)","Segregated Acc",null,"General Cell to Cell Activity - Cell 5","Confirm Activity"]
["Sch V(L)","Segregated Acc",null,"General Cell to Cell Activity Details - Cell 5",0]
["Sch V(L)","Segregated Acc",null,"Cell Deficit - Cell 5",0]
["Sch V(L)","Segregated Acc",null,"Additional Capital Support - Cell 5","Confirm"]
["Sch V(L)","Segregated Acc",null,"Additional Capital Support Details - Cell 5",0]
["Sch V(L)","Segregated Acc",null,"Details of Benefical Owners of Risk - Cell 5","Confirm"]
["Sch V(L)","Segregated Acc",null,"Details of Benefical Owners of Cell - Cell 5","Confirm"]
["Sch V(L)","Segregated Acc",null,"Benefical Owners - Cell 5","Confirm"]
["Sch V(L)","Segregated Acc",null,"Benefical Ownership - Cell 5","Confirm Ownership"]
["Sch V(L)","Segregated Acc",null,"Benefical Ownership Add. Details - Cell 5",0]
["Sch V(L)","Segregated Acc",null,"Jurisdiction - Cell 5","Confirm Jurisdiction"]
["Sch V(L)","Segregated Acc",null,"Benefical Ownership Gov Intrument - Cell 5","Confirm Instrument"]
["Sch V(L)","Segregated Acc",null,"Benefical Ownership Gov Intrument Det. - Cell 5",0]
["Sch V(L)","Segregated Acc",null,"Indemnity Provisions - Cell 5","Select Yes/No"]
["Sch V(L)","Segregated Acc",null,"Limited recourse  - Cell 5","Select Yes/No"]
["Sch V(L)","Segregated Acc",null,"Primary Cell Funding - Cell 5","Select Funding"]
["Sch V(L)","Segregated Acc",null,"Limit of Cell  Funding/ Collateral - Cell 5","Confirm Funding / Collateral"]
["Sch V(L)","Segregated Acc",null,"Limit of Cell  Funding/ Collateral Details - Cell 5",0]
["Sch V(L)","Segregated Acc",null,"Operational Risk Mitigants - Cell 5","Confirm Mitigants & Attach Support"]
["Sch V(L)","Segregated Acc",null,"i) Statutory Line of Business - Cell 5","Select Line of Business"]
["Sch V(L)","Segregated Acc",null,"i) GPW - Cell 5",0]
["Sch V(L)","Segregated Acc",null,"i) Premiums Ceded - Cell 5",0]
["Sch V(L)","Segregated Acc",null,"i) NPW - Cell 5",0]
["Sch V(L)","Segregated Acc",null,"ii) Statutory Line of Business - Cell 5","Select Line of Business"]
["Sch V(L)","Segregated Acc",null,"ii) GPW - Cell 5",0]
["Sch V(L)","Segregated Acc",null,"ii) Premiums Ceded - Cell 5",0]
["Sch V(L)","Segregated Acc",null,"ii) NPW - Cell 5",0]
["Sch V(L)","Segregated Acc",null,"iii) Statutory Line of Business - Cell 5","Select Line of Business"]
["Sch V(L)","Segregated Acc",null,"iii) GPW - Cell 5",0]
["Sch V(L)","Segregated Acc",null,"iii) Premiums Ceded - Cell 5",0]
["Sch V(L)","Segregated Acc",null,"iii) NPW - Cell 5",0]
["Sch V(L)","Segregated Acc",null,"iv) Statutory Line of Business - Cell 5","Select Line of Business"]
["Sch V(L)","Segregated Acc",null,"iv) GPW - Cell 5",0]
["Sch V(L)","Segregated Acc",null,"iv) Premiums Ceded - Cell 5",0]
["Sch V(L)","Segregated Acc",null,"iv) NPW - Cell 5",0]
["Sch V(L)","Segregated Acc",null,"v) Statutory Line of Business - Cell 5","Select Line of Business"]
["Sch V(L)","Segregated Acc",null,"v) GPW - Cell 5",0]
["Sch V(L)","Segregated Acc",null,"v) Premiums Ceded - Cell 5",0]
["Sch V(L)","Segregated Acc",null,"v) NPW - Cell 5",0]
["Sch V(L)","Segregated Acc",null,"Cell Ref # - Cell 6",0]
["Sch V(L)","Segregated Acc",null,"Cell name - Cell 6",0]
["Sch V(L)","Segregated Acc",null,"Direct Insurer, Reinsurer or Both - Cell 6","Select Premiums Written"]
["Sch V(L)","Segregated Acc",null,"Total Assets - Cell 6",0]
["Sch V(L)","Segregated Acc",null,"Total Liabilities - Cell 6",0]
["Sch V(L)","Segregated Acc",null,"Statutory Surplus - Cell 6",0]
["Sch V(L)","Segregated Acc",null,"Statutory Capital - Cell 6",0]
["Sch V(L)","Segregated Acc",null,"Net Income - Cell 6",0]
["Sch V(L)","Segregated Acc",null,"Cash  - Cell 6",0]
["Sch V(L)","Segregated Acc",null,"Quoted: Bonds and Debentures - Cell 6",0]
["Sch V(L)","Segregated Acc",null,"Quoted: Equites - Cell 6",0]
["Sch V(L)","Segregated Acc",null,"Quoted: Other  - Cell 6",0]
["Sch V(L)","Segregated Acc",null,"Unquoted: Bonds and Debentures - Cell 6",0]
["Sch V(L)","Segregated Acc",null,"Unquoted: Equities - Cell 6",0]
["Sch V(L)","Segregated Acc",null,"Unquoted: Other - Cell 6",0]
["Sch V(L)","Segregated Acc",null,"Due from Affiliates - Cell 6",0]
["Sch V(L)","Segregated Acc",null,"Due to Affiliates - Cell 6",0]
["Sch V(L)","Segregated Acc",null,"Net Loss & Loss Expense Provisions - Cell 6",0]
["Sch V(L)","Segregated Acc",null,"Prior Year loss reserve development - Cell 6",0]
["Sch V(L)","Segregated Acc",null,"Reinsurance Recoverable Balance - Cell 6",0]
["Sch V(L)","Segregated Acc",null,"Cell is in Run-Off - Cell 6","Select Yes/No"]
["Sch V(L)","Segregated Acc",null,"currency used - Cell 6","Select Currency"]
["Sch V(L)","Segregated Acc",null,"Cell to Cell Activity  - Cell 6","Confirm Activity"]
["Sch V(L)","Segregated Acc",null,"Cell to Cell Activity Details - Cell 6",0]
["Sch V(L)","Segregated Acc",null,"General Cell to Cell Activity - Cell 6","Confirm Activity"]
["Sch V(L)","Segregated Acc",null,"General Cell to Cell Activity Details - Cell 6",0]
["Sch V(L)","Segregated Acc",null,"Cell Deficit - Cell 6",0]
["Sch V(L)","Segregated Acc",null,"Additional Capital Support - Cell 6","Confirm"]
["Sch V(L)","Segregated Acc",null,"Additional Capital Support Details - Cell 6",0]
["Sch V(L)","Segregated Acc",null,"Details of Benefical Owners of Risk - Cell 6","Confirm"]
["Sch V(L)","Segregated Acc",null,"Details of Benefical Owners of Cell - Cell 6","Confirm"]
["Sch V(L)","Segregated Acc",null,"Benefical Owners - Cell 6","Confirm"]
["Sch V(L)","Segregated Acc",null,"Benefical Ownership - Cell 6","Confirm Ownership"]
["Sch V(L)","Segregated Acc",null,"Benefical Ownership Add. Details - Cell 6",0]
["Sch V(L)","Segregated Acc",null,"Jurisdiction - Cell 6","Confirm Jurisdiction"]
["Sch V(L)","Segregated Acc",null,"Benefical Ownership Gov Intrument - Cell 6","Confirm Instrument"]
["Sch V(L)","Segregated Acc",null,"Benefical Ownership Gov Intrument Det. - Cell 6",0]
["Sch V(L)","Segregated Acc",null,"Indemnity Provisions - Cell 6","Select Yes/No"]
["Sch V(L)","Segregated Acc",null,"Limited recourse  - Cell 6","Select Yes/No"]
["Sch V(L)","Segregated Acc",null,"Primary Cell Funding - Cell 6","Select Funding"]
["Sch V(L)","Segregated Acc",null,"Limit of Cell  Funding/ Collateral - Cell 6","Confirm Funding / Collateral"]
["Sch V(L)","Segregated Acc",null,"Limit of Cell  Funding/ Collateral Details - Cell 6",0]
["Sch V(L)","Segregated Acc",null,"Operational Risk Mitigants - Cell 6","Confirm Mitigants & Attach Support"]
["Sch V(L)","Segregated Acc",null,"i) Statutory Line of Business - Cell 6","Select Line of Business"]
["Sch V(L)","Segregated Acc",null,"i) GPW - Cell 6",0]
["Sch V(L)","Segregated Acc",null,"i) Premiums Ceded - Cell 6",0]
["Sch V(L)","Segregated Acc",null,"i) NPW - Cell 6",0]
["Sch V(L)","Segregated Acc",null,"ii) Statutory Line of Business - Cell 6","Select Line of Business"]
["Sch V(L)","Segregated Acc",null,"ii) GPW - Cell 6",0]
["Sch V(L)","Segregated Acc",null,"ii) Premiums Ceded - Cell 6",0]
["Sch V(L)","Segregated Acc",null,"ii) NPW - Cell 6",0]
["Sch V(L)","Segregated Acc",null,"iii) Statutory Line of Business - Cell 6","Select Line of Business"]
["Sch V(L)","Segregated Acc",null,"iii) GPW - Cell 6",0]
["Sch V(L)","Segregated Acc",null,"iii) Premiums Ceded - Cell 6",0]
["Sch V(L)","Segregated Acc",null,"iii) NPW - Cell 6",0]
["Sch V(L)","Segregated Acc",null,"iv) Statutory Line of Business - Cell 6","Select Line of Business"]
["Sch V(L)","Segregated Acc",null,"iv) GPW - Cell 6",0]
["Sch V(L)","Segregated Acc",null,"iv) Premiums Ceded - Cell 6",0]
["Sch V(L)","Segregated Acc",null,"iv) NPW - Cell 6",0]
["Sch V(L)","Segregated Acc",null,"v) Statutory Line of Business - Cell 6","Select Line of Business"]
["Sch V(L)","Segregated Acc",null,"v) GPW - Cell 6",0]
["Sch V(L)","Segregated Acc",null,"v) Premiums Ceded - Cell 6",0]
["Sch V(L)","Segregated Acc",null,"v) NPW - Cell 6",0]
["Sch V(L)","Segregated Acc",null,"Cell Ref # - Cell 7",0]
["Sch V(L)","Segregated Acc",null,"Cell name - Cell 7",0]
["Sch V(L)","Segregated Acc",null,"Direct Insurer, Reinsurer or Both - Cell 7","Select Premiums Written"]
["Sch V(L)","Segregated Acc",null,"Total Assets - Cell 7",0]
["Sch V(L)","Segregated Acc",null,"Total Liabilities - Cell 7",0]
["Sch V(L)","Segregated Acc",null,"Statutory Surplus - Cell 7",0]
["Sch V(L)","Segregated Acc",null,"Statutory Capital - Cell 7",0]
["Sch V(L)","Segregated Acc",null,"Net Income - Cell 7",0]
["Sch V(L)","Segregated Acc",null,"Cash  - Cell 7",0]
["Sch V(L)","Segregated Acc",null,"Quoted: Bonds and Debentures - Cell 7",0]
["Sch V(L)","Segregated Acc",null,"Quoted: Equites - Cell 7",0]
["Sch V(L)","Segregated Acc",null,"Quoted: Other  - Cell 7",0]
["Sch V(L)","Segregated Acc",null,"Unquoted: Bonds and Debentures - Cell 7",0]
["Sch V(L)","Segregated Acc",null,"Unquoted: Equities - Cell 7",0]
["Sch V(L)","Segregated Acc",null,"Unquoted: Other - Cell 7",0]
["Sch V(L)","Segregated Acc",null,"Due from Affiliates - Cell 7",0]
["Sch V(L)","Segregated Acc",null,"Due to Affiliates - Cell 7",0]
["Sch V(L)","Segregated Acc",null,"Net Loss & Loss Expense Provisions - Cell 7",0]
["Sch V(L)","Segregated Acc",null,"Prior Year loss reserve development - Cell 7",0]
["Sch V(L)","Segregated Acc",null,"Reinsurance Recoverable Balance - Cell 7",0]
["Sch V(L)","Segregated Acc",null,"Cell is in Run-Off - Cell 7","Select Yes/No"]
["Sch V(L)","Segregated Acc",null,"currency used - Cell 7","Select Currency"]
["Sch V(L)","Segregated Acc",null,"Cell to Cell Activity  - Cell 7","Confirm Activity"]
["Sch V(L)","Segregated Acc",null,"Cell to Cell Activity Details - Cell 7",0]
["Sch V(L)","Segregated Acc",null,"General Cell to Cell Activity - Cell 7","Confirm Activity"]
["Sch V(L)","Segregated Acc",null,"General Cell to Cell Activity Details - Cell 7",0]
["Sch V(L)","Segregated Acc",null,"Cell Deficit - Cell 7",0]
["Sch V(L)","Segregated Acc",null,"Additional Capital Support - Cell 7","Confirm"]
["Sch V(L)","Segregated Acc",null,"Additional Capital Support Details - Cell 7",0]
["Sch V(L)","Segregated Acc",null,"Details of Benefical Owners of Risk - Cell 7","Confirm"]
["Sch V(L)","Segregated Acc",null,"Details of Benefical Owners of Cell - Cell 7","Confirm"]
["Sch V(L)","Segregated Acc",null,"Benefical Owners - Cell 7","Confirm"]
["Sch V(L)","Segregated Acc",null,"Benefical Ownership - Cell 7","Confirm Ownership"]
["Sch V(L)","Segregated Acc",null,"Benefical Ownership Add. Details - Cell 7",0]
["Sch V(L)","Segregated Acc",null,"Jurisdiction - Cell 7","Confirm Jurisdiction"]
["Sch V(L)","Segregated Acc",null,"Benefical Ownership Gov Intrument - Cell 7","Confirm Instrument"]
["Sch V(L)","Segregated Acc",null,"Benefical Ownership Gov Intrument Det. - Cell 7",0]
["Sch V(L)","Segregated Acc",null,"Indemnity Provisions - Cell 7","Select Yes/No"]
["Sch V(L)","Segregated Acc",null,"Limited recourse  - Cell 7","Select Yes/No"]
["Sch V(L)","Segregated Acc",null,"Primary Cell Funding - Cell 7","Select Funding"]
["Sch V(L)","Segregated Acc",null,"Limit of Cell  Funding/ Collateral - Cell 7","Confirm Funding / Collateral"]
["Sch V(L)","Segregated Acc",null,"Limit of Cell  Funding/ Collateral Details - Cell 7",0]
["Sch V(L)","Segregated Acc",null,"Operational Risk Mitigants - Cell 7","Confirm Mitigants & Attach Support"]
["Sch V(L)","Segregated Acc",null,"i) Statutory Line of Business - Cell 7","Select Line of Business"]
["Sch V(L)","Segregated Acc",null,"i) GPW - Cell 7",0]
["Sch V(L)","Segregated Acc",null,"i) Premiums Ceded - Cell 7",0]
["Sch V(L)","Segregated Acc",null,"i) NPW - Cell 7",0]
["Sch V(L)","Segregated Acc",null,"ii) Statutory Line of Business - Cell 7","Select Line of Business"]
["Sch V(L)","Segregated Acc",null,"ii) GPW - Cell 7",0]
["Sch V(L)","Segregated Acc",null,"ii) Premiums Ceded - Cell 7",0]
["Sch V(L)","Segregated Acc",null,"ii) NPW - Cell 7",0]
["Sch V(L)","Segregated Acc",null,"iii) Statutory Line of Business - Cell 7","Select Line of Business"]
["Sch V(L)","Segregated Acc",null,"iii) GPW - Cell 7",0]
["Sch V(L)","Segregated Acc",null,"iii) Premiums Ceded - Cell 7",0]
["Sch V(L)","Segregated Acc",null,"iii) NPW - Cell 7",0]
["Sch V(L)","Segregated Acc",null,"iv) Statutory Line of Business - Cell 7","Select Line of Business"]
["Sch V(L)","Segregated Acc",null,"iv) GPW - Cell 7",0]
["Sch V(L)","Segregated Acc",null,"iv) Premiums Ceded - Cell 7",0]
["Sch V(L)","Segregated Acc",null,"iv) NPW - Cell 7",0]
["Sch V(L)","Segregated Acc",null,"v) Statutory Line of Business - Cell 7","Select Line of Business"]
["Sch V(L)","Segregated Acc",null,"v) GPW - Cell 7",0]
["Sch V(L)","Segregated Acc",null,"v) Premiums Ceded - Cell 7",0]
["Sch V(L)","Segregated Acc",null,"v) NPW - Cell 7",0]
["Sch V(L)","Segregated Acc",null,"Cell Ref # - Cell 8",0]
["Sch V(L)","Segregated Acc",null,"Cell name - Cell 8",0]
["Sch V(L)","Segregated Acc",null,"Direct Insurer, Reinsurer or Both - Cell 8","Select Premiums Written"]
["Sch V(L)","Segregated Acc",null,"Total Assets - Cell 8",0]
["Sch V(L)","Segregated Acc",null,"Total Liabilities - Cell 8",0]
["Sch V(L)","Segregated Acc",null,"Statutory Surplus - Cell 8",0]
["Sch V(L)","Segregated Acc",null,"Statutory Capital - Cell 8",0]
["Sch V(L)","Segregated Acc",null,"Net Income - Cell 8",0]
["Sch V(L)","Segregated Acc",null,"Cash  - Cell 8",0]
["Sch V(L)","Segregated Acc",null,"Quoted: Bonds and Debentures - Cell 8",0]
["Sch V(L)","Segregated Acc",null,"Quoted: Equites - Cell 8",0]
["Sch V(L)","Segregated Acc",null,"Quoted: Other  - Cell 8",0]
["Sch V(L)","Segregated Acc",null,"Unquoted: Bonds and Debentures - Cell 8",0]
["Sch V(L)","Segregated Acc",null,"Unquoted: Equities - Cell 8",0]
["Sch V(L)","Segregated Acc",null,"Unquoted: Other - Cell 8",0]
["Sch V(L)","Segregated Acc",null,"Due from Affiliates - Cell 8",0]
["Sch V(L)","Segregated Acc",null,"Due to Affiliates - Cell 8",0]
["Sch V(L)","Segregated Acc",null,"Net Loss & Loss Expense Provisions - Cell 8",0]
["Sch V(L)","Segregated Acc",null,"Prior Year loss reserve development - Cell 8",0]
["Sch V(L)","Segregated Acc",null,"Reinsurance Recoverable Balance - Cell 8",0]
["Sch V(L)","Segregated Acc",null,"Cell is in Run-Off - Cell 8","Select Yes/No"]
["Sch V(L)","Segregated Acc",null,"currency used - Cell 8","Select Currency"]
["Sch V(L)","Segregated Acc",null,"Cell to Cell Activity  - Cell 8","Confirm Activity"]
["Sch V(L)","Segregated Acc",null,"Cell to Cell Activity Details - Cell 8",0]
["Sch V(L)","Segregated Acc",null,"General Cell to Cell Activity - Cell 8","Confirm Activity"]
["Sch V(L)","Segregated Acc",null,"General Cell to Cell Activity Details - Cell 8",0]
["Sch V(L)","Segregated Acc",null,"Cell Deficit - Cell 8",0]
["Sch V(L)","Segregated Acc",null,"Additional Capital Support - Cell 8","Confirm"]
["Sch V(L)","Segregated Acc",null,"Additional Capital Support Details - Cell 8",0]
["Sch V(L)","Segregated Acc",null,"Details of Benefical Owners of Risk - Cell 8","Confirm"]
["Sch V(L)","Segregated Acc",null,"Details of Benefical Owners of Cell - Cell 8","Confirm"]
["Sch V(L)","Segregated Acc",null,"Benefical Owners - Cell 8","Confirm"]
["Sch V(L)","Segregated Acc",null,"Benefical Ownership - Cell 8","Confirm Ownership"]
["Sch V(L)","Segregated Acc",null,"Benefical Ownership Add. Details - Cell 8",0]
["Sch V(L)","Segregated Acc",null,"Jurisdiction - Cell 8","Confirm Jurisdiction"]
["Sch V(L)","Segregated Acc",null,"Benefical Ownership Gov Intrument - Cell 8","Confirm Instrument"]
["Sch V(L)","Segregated Acc",null,"Benefical Ownership Gov Intrument Det. - Cell 8",0]
["Sch V(L)","Segregated Acc",null,"Indemnity Provisions - Cell 8","Select Yes/No"]
["Sch V(L)","Segregated Acc",null,"Limited recourse  - Cell 8","Select Yes/No"]
["Sch V(L)","Segregated Acc",null,"Primary Cell Funding - Cell 8","Select Funding"]
["Sch V(L)","Segregated Acc",null,"Limit of Cell  Funding/ Collateral - Cell 8","Confirm Funding / Collateral"]
["Sch V(L)","Segregated Acc",null,"Limit of Cell  Funding/ Collateral Details - Cell 8",0]
["Sch V(L)","Segregated Acc",null,"Operational Risk Mitigants - Cell 8","Confirm Mitigants & Attach Support"]
["Sch V(L)","Segregated Acc",null,"i) Statutory Line of Business - Cell 8","Select Line of Business"]
["Sch V(L)","Segregated Acc",null,"i) GPW - Cell 8",0]
["Sch V(L)","Segregated Acc",null,"i) Premiums Ceded - Cell 8",0]
["Sch V(L)","Segregated Acc",null,"i) NPW - Cell 8",0]
["Sch V(L)","Segregated Acc",null,"ii) Statutory Line of Business - Cell 8","Select Line of Business"]
["Sch V(L)","Segregated Acc",null,"ii) GPW - Cell 8",0]
["Sch V(L)","Segregated Acc",null,"ii) Premiums Ceded - Cell 8",0]
["Sch V(L)","Segregated Acc",null,"ii) NPW - Cell 8",0]
["Sch V(L)","Segregated Acc",null,"iii) Statutory Line of Business - Cell 8","Select Line of Business"]
["Sch V(L)","Segregated Acc",null,"iii) GPW - Cell 8",0]
["Sch V(L)","Segregated Acc",null,"iii) Premiums Ceded - Cell 8",0]
["Sch V(L)","Segregated Acc",null,"iii) NPW - Cell 8",0]
["Sch V(L)","Segregated Acc",null,"iv) Statutory Line of Business - Cell 8","Select Line of Business"]
["Sch V(L)","Segregated Acc",null,"iv) GPW - Cell 8",0]
["Sch V(L)","Segregated Acc",null,"iv) Premiums Ceded - Cell 8",0]
["Sch V(L)","Segregated Acc",null,"iv) NPW - Cell 8",0]
["Sch V(L)","Segregated Acc",null,"v) Statutory Line of Business - Cell 8","Select Line of Business"]
["Sch V(L)","Segregated Acc",null,"v) GPW - Cell 8",0]
["Sch V(L)","Segregated Acc",null,"v) Premiums Ceded - Cell 8",0]
["Sch V(L)","Segregated Acc",null,"v) NPW - Cell 8",0]
["Sch V(L)","Segregated Acc",null,"Cell Ref # - Cell 9",0]
["Sch V(L)","Segregated Acc",null,"Cell name - Cell 9",0]
["Sch V(L)","Segregated Acc",null,"Direct Insurer, Reinsurer or Both - Cell 9","Select Premiums Written"]
["Sch V(L)","Segregated Acc",null,"Total Assets - Cell 9",0]
["Sch V(L)","Segregated Acc",null,"Total Liabilities - Cell 9",0]
["Sch V(L)","Segregated Acc",null,"Statutory Surplus - Cell 9",0]
["Sch V(L)","Segregated Acc",null,"Statutory Capital - Cell 9",0]
["Sch V(L)","Segregated Acc",null,"Net Income - Cell 9",0]
["Sch V(L)","Segregated Acc",null,"Cash  - Cell 9",0]
["Sch V(L)","Segregated Acc",null,"Quoted: Bonds and Debentures - Cell 9",0]
["Sch V(L)","Segregated Acc",null,"Quoted: Equites - Cell 9",0]
["Sch V(L)","Segregated Acc",null,"Quoted: Other  - Cell 9",0]
["Sch V(L)","Segregated Acc",null,"Unquoted: Bonds and Debentures - Cell 9",0]
["Sch V(L)","Segregated Acc",null,"Unquoted: Equities - Cell 9",0]
["Sch V(L)","Segregated Acc",null,"Unquoted: Other - Cell 9",0]
["Sch V(L)","Segregated Acc",null,"Due from Affiliates - Cell 9",0]
["Sch V(L)","Segregated Acc",null,"Due to Affiliates - Cell 9",0]
["Sch V(L)","Segregated Acc",null,"Net Loss & Loss Expense Provisions - Cell 9",0]
["Sch V(L)","Segregated Acc",null,"Prior Year loss reserve development - Cell 9",0]
["Sch V(L)","Segregated Acc",null,"Reinsurance Recoverable Balance - Cell 9",0]
["Sch V(L)","Segregated Acc",null,"Cell is in Run-Off - Cell 9","Select Yes/No"]
["Sch V(L)","Segregated Acc",null,"currency used - Cell 9","Select Currency"]
["Sch V(L)","Segregated Acc",null,"Cell to Cell Activity  - Cell 9","Confirm Activity"]
["Sch V(L)","Segregated Acc",null,"Cell to Cell Activity Details - Cell 9",0]
["Sch V(L)","Segregated Acc",null,"General Cell to Cell Activity - Cell 9","Confirm Activity"]
["Sch V(L)","Segregated Acc",null,"General Cell to Cell Activity Details - Cell 9",0]
["Sch V(L)","Segregated Acc",null,"Cell Deficit - Cell 9",0]
["Sch V(L)","Segregated Acc",null,"Additional Capital Support - Cell 9","Confirm"]
["Sch V(L)","Segregated Acc",null,"Additional Capital Support Details - Cell 9",0]
["Sch V(L)","Segregated Acc",null,"Details of Benefical Owners of Risk - Cell 9","Confirm"]
["Sch V(L)","Segregated Acc",null,"Details of Benefical Owners of Cell - Cell 9","Confirm"]
["Sch V(L)","Segregated Acc",null,"Benefical Owners - Cell 9","Confirm"]
["Sch V(L)","Segregated Acc",null,"Benefical Ownership - Cell 9","Confirm Ownership"]
["Sch V(L)","Segregated Acc",null,"Benefical Ownership Add. Details - Cell 9",0]
["Sch V(L)","Segregated Acc",null,"Jurisdiction - Cell 9","Confirm Jurisdiction"]
["Sch V(L)","Segregated Acc",null,"Benefical Ownership Gov Intrument - Cell 9","Confirm Instrument"]
["Sch V(L)","Segregated Acc",null,"Benefical Ownership Gov Intrument Det. - Cell 9",0]
["Sch V(L)","Segregated Acc",null,"Indemnity Provisions - Cell 9","Select Yes/No"]
["Sch V(L)","Segregated Acc",null,"Limited recourse  - Cell 9","Select Yes/No"]
["Sch V(L)","Segregated Acc",null,"Primary Cell Funding - Cell 9","Select Funding"]
["Sch V(L)","Segregated Acc",null,"Limit of Cell  Funding/ Collateral - Cell 9","Confirm Funding / Collateral"]
["Sch V(L)","Segregated Acc",null,"Limit of Cell  Funding/ Collateral Details - Cell 9",0]
["Sch V(L)","Segregated Acc",null,"Operational Risk Mitigants - Cell 9","Confirm Mitigants & Attach Support"]
["Sch V(L)","Segregated Acc",null,"i) Statutory Line of Business - Cell 9","Select Line of Business"]
["Sch V(L)","Segregated Acc",null,"i) GPW - Cell 9",0]
["Sch V(L)","Segregated Acc",null,"i) Premiums Ceded - Cell 9",0]
["Sch V(L)","Segregated Acc",null,"i) NPW - Cell 9",0]
["Sch V(L)","Segregated Acc",null,"ii) Statutory Line of Business - Cell 9","Select Line of Business"]
["Sch V(L)","Segregated Acc",null,"ii) GPW - Cell 9",0]
["Sch V(L)","Segregated Acc",null,"ii) Premiums Ceded - Cell 9",0]
["Sch V(L)","Segregated Acc",null,"ii) NPW - Cell 9",0]
["Sch V(L)","Segregated Acc",null,"iii) Statutory Line of Business - Cell 9","Select Line of Business"]
["Sch V(L)","Segregated Acc",null,"iii) GPW - Cell 9",0]
["Sch V(L)","Segregated Acc",null,"iii) Premiums Ceded - Cell 9",0]
["Sch V(L)","Segregated Acc",null,"iii) NPW - Cell 9",0]
["Sch V(L)","Segregated Acc",null,"iv) Statutory Line of Business - Cell 9","Select Line of Business"]
["Sch V(L)","Segregated Acc",null,"iv) GPW - Cell 9",0]
["Sch V(L)","Segregated Acc",null,"iv) Premiums Ceded - Cell 9",0]
["Sch V(L)","Segregated Acc",null,"iv) NPW - Cell 9",0]
["Sch V(L)","Segregated Acc",null,"v) Statutory Line of Business - Cell 9","Select Line of Business"]
["Sch V(L)","Segregated Acc",null,"v) GPW - Cell 9",0]
["Sch V(L)","Segregated Acc",null,"v) Premiums Ceded - Cell 9",0]
["Sch V(L)","Segregated Acc",null,"v) NPW - Cell 9",0]
["Sch V(L)","Segregated Acc",null,"Cell Ref # - Cell 10",0]
["Sch V(L)","Segregated Acc",null,"Cell name - Cell 10",0]
["Sch V(L)","Segregated Acc",null,"Direct Insurer, Reinsurer or Both - Cell 10","Select Premiums Written"]
["Sch V(L)","Segregated Acc",null,"Total Assets - Cell 10",0]
["Sch V(L)","Segregated Acc",null,"Total Liabilities - Cell 10",0]
["Sch V(L)","Segregated Acc",null,"Statutory Surplus - Cell 10",0]
["Sch V(L)","Segregated Acc",null,"Statutory Capital - Cell 10",0]
["Sch V(L)","Segregated Acc",null,"Net Income - Cell 10",0]
["Sch V(L)","Segregated Acc",null,"Cash  - Cell 10",0]
["Sch V(L)","Segregated Acc",null,"Quoted: Bonds and Debentures - Cell 10",0]
["Sch V(L)","Segregated Acc",null,"Quoted: Equites - Cell 10",0]
["Sch V(L)","Segregated Acc",null,"Quoted: Other  - Cell 10",0]
["Sch V(L)","Segregated Acc",null,"Unquoted: Bonds and Debentures - Cell 10",0]
["Sch V(L)","Segregated Acc",null,"Unquoted: Equities - Cell 10",0]
["Sch V(L)","Segregated Acc",null,"Unquoted: Other - Cell 10",0]
["Sch V(L)","Segregated Acc",null,"Due from Affiliates - Cell 10",0]
["Sch V(L)","Segregated Acc",null,"Due to Affiliates - Cell 10",0]
["Sch V(L)","Segregated Acc",null,"Net Loss & Loss Expense Provisions - Cell 10",0]
["Sch V(L)","Segregated Acc",null,"Prior Year loss reserve development - Cell 10",0]
["Sch V(L)","Segregated Acc",null,"Reinsurance Recoverable Balance - Cell 10",0]
["Sch V(L)","Segregated Acc",null,"Cell is in Run-Off - Cell 10","Select Yes/No"]
["Sch V(L)","Segregated Acc",null,"currency used - Cell 10","Select Currency"]
["Sch V(L)","Segregated Acc",null,"Cell to Cell Activity  - Cell 10","Confirm Activity"]
["Sch V(L)","Segregated Acc",null,"Cell to Cell Activity Details - Cell 10",0]
["Sch V(L)","Segregated Acc",null,"General Cell to Cell Activity - Cell 10","Confirm Activity"]
["Sch V(L)","Segregated Acc",null,"General Cell to Cell Activity Details - Cell 10",0]
["Sch V(L)","Segregated Acc",null,"Cell Deficit - Cell 10",0]
["Sch V(L)","Segregated Acc",null,"Additional Capital Support - Cell 10","Confirm"]
["Sch V(L)","Segregated Acc",null,"Additional Capital Support Details - Cell 10",0]
["Sch V(L)","Segregated Acc",null,"Details of Benefical Owners of Risk - Cell 10","Confirm"]
["Sch V(L)","Segregated Acc",null,"Details of Benefical Owners of Cell - Cell 10","Confirm"]
["Sch V(L)","Segregated Acc",null,"Benefical Owners - Cell 10","Confirm"]
["Sch V(L)","Segregated Acc",null,"Benefical Ownership - Cell 10","Confirm Ownership"]
["Sch V(L)","Segregated Acc",null,"Benefical Ownership Add. Details - Cell 10",0]
["Sch V(L)","Segregated Acc",null,"Jurisdiction - Cell 10","Confirm Jurisdiction"]
["Sch V(L)","Segregated Acc",null,"Benefical Ownership Gov Intrument - Cell 10","Confirm Instrument"]
["Sch V(L)","Segregated Acc",null,"Benefical Ownership Gov Intrument Det. - Cell 10",0]
["Sch V(L)","Segregated Acc",null,"Indemnity Provisions - Cell 10","Select Yes/No"]
["Sch V(L)","Segregated Acc",null,"Limited recourse  - Cell 10","Select Yes/No"]
["Sch V(L)","Segregated Acc",null,"Primary Cell Funding - Cell 10","Select Funding"]
["Sch V(L)","Segregated Acc",null,"Limit of Cell  Funding/ Collateral - Cell 10","Confirm Funding / Collateral"]
["Sch V(L)","Segregated Acc",null,"Limit of Cell  Funding/ Collateral Details - Cell 10",0]
["Sch V(L)","Segregated Acc",null,"Operational Risk Mitigants - Cell 10","Confirm Mitigants & Attach Support"]
["Sch V(L)","Segregated Acc",null,"i) Statutory Line of Business - Cell 10","Select Line of Business"]
["Sch V(L)","Segregated Acc",null,"i) GPW - Cell 10",0]
["Sch V(L)","Segregated Acc",null,"i) Premiums Ceded - Cell 10",0]
["Sch V(L)","Segregated Acc",null,"i) NPW - Cell 10",0]
["Sch V(L)","Segregated Acc",null,"ii) Statutory Line of Business - Cell 10","Select Line of Business"]
["Sch V(L)","Segregated Acc",null,"ii) GPW - Cell 10",0]
["Sch V(L)","Segregated Acc",null,"ii) Premiums Ceded - Cell 10",0]
["Sch V(L)","Segregated Acc",null,"ii) NPW - Cell 10",0]
["Sch V(L)","Segregated Acc",null,"iii) Statutory Line of Business - Cell 10","Select Line of Business"]
["Sch V(L)","Segregated Acc",null,"iii) GPW - Cell 10",0]
["Sch V(L)","Segregated Acc",null,"iii) Premiums Ceded - Cell 10",0]
["Sch V(L)","Segregated Acc",null,"iii) NPW - Cell 10",0]
["Sch V(L)","Segregated Acc",null,"iv) Statutory Line of Business - Cell 10","Select Line of Business"]
["Sch V(L)","Segregated Acc",null,"iv) GPW - Cell 10",0]
["Sch V(L)","Segregated Acc",null,"iv) Premiums Ceded - Cell 10",0]
["Sch V(L)","Segregated Acc",null,"iv) NPW - Cell 10",0]
["Sch V(L)","Segregated Acc",null,"v) Statutory Line of Business - Cell 10","Select Line of Business"]
["Sch V(L)","Segregated Acc",null,"v) GPW - Cell 10",0]
["Sch V(L)","Segregated Acc",null,"v) Premiums Ceded - Cell 10",0]
["Sch V(L)","Segregated Acc",null,"v) NPW - Cell 10",0]
["Sch V(L)","Segregated Acc",null,"Cell Ref # - Cell 11",0]
["Sch V(L)","Segregated Acc",null,"Cell name - Cell 11",0]
["Sch V(L)","Segregated Acc",null,"Direct Insurer, Reinsurer or Both - Cell 11","Select Premiums Written"]
["Sch V(L)","Segregated Acc",null,"Total Assets - Cell 11",0]
["Sch V(L)","Segregated Acc",null,"Total Liabilities - Cell 11",0]
["Sch V(L)","Segregated Acc",null,"Statutory Surplus - Cell 11",0]
["Sch V(L)","Segregated Acc",null,"Statutory Capital - Cell 11",0]
["Sch V(L)","Segregated Acc",null,"Net Income - Cell 11",0]
["Sch V(L)","Segregated Acc",null,"Cash  - Cell 11",0]
["Sch V(L)","Segregated Acc",null,"Quoted: Bonds and Debentures - Cell 11",0]
["Sch V(L)","Segregated Acc",null,"Quoted: Equites - Cell 11",0]
["Sch V(L)","Segregated Acc",null,"Quoted: Other  - Cell 11",0]
["Sch V(L)","Segregated Acc",null,"Unquoted: Bonds and Debentures - Cell 11",0]
["Sch V(L)","Segregated Acc",null,"Unquoted: Equities - Cell 11",0]
["Sch V(L)","Segregated Acc",null,"Unquoted: Other - Cell 11",0]
["Sch V(L)","Segregated Acc",null,"Due from Affiliates - Cell 11",0]
["Sch V(L)","Segregated Acc",null,"Due to Affiliates - Cell 11",0]
["Sch V(L)","Segregated Acc",null,"Net Loss & Loss Expense Provisions - Cell 11",0]
["Sch V(L)","Segregated Acc",null,"Prior Year loss reserve development - Cell 11",0]
["Sch V(L)","Segregated Acc",null,"Reinsurance Recoverable Balance - Cell 11",0]
["Sch V(L)","Segregated Acc",null,"Cell is in Run-Off - Cell 11","Select Yes/No"]
["Sch V(L)","Segregated Acc",null,"currency used - Cell 11","Select Currency"]
["Sch V(L)","Segregated Acc",null,"Cell to Cell Activity  - Cell 11","Confirm Activity"]
["Sch V(L)","Segregated Acc",null,"Cell to Cell Activity Details - Cell 11",0]
["Sch V(L)","Segregated Acc",null,"General Cell to Cell Activity - Cell 11","Confirm Activity"]
["Sch V(L)","Segregated Acc",null,"General Cell to Cell Activity Details - Cell 11",0]
["Sch V(L)","Segregated Acc",null,"Cell Deficit - Cell 11",0]
["Sch V(L)","Segregated Acc",null,"Additional Capital Support - Cell 11","Confirm"]
["Sch V(L)","Segregated Acc",null,"Additional Capital Support Details - Cell 11",0]
["Sch V(L)","Segregated Acc",null,"Details of Benefical Owners of Risk - Cell 11","Confirm"]
["Sch V(L)","Segregated Acc",null,"Details of Benefical Owners of Cell - Cell 11","Confirm"]
["Sch V(L)","Segregated Acc",null,"Benefical Owners - Cell 11","Confirm"]
["Sch V(L)","Segregated Acc",null,"Benefical Ownership - Cell 11","Confirm Ownership"]
["Sch V(L)","Segregated Acc",null,"Benefical Ownership Add. Details - Cell 11",0]
["Sch V(L)","Segregated Acc",null,"Jurisdiction - Cell 11","Confirm Jurisdiction"]
["Sch V(L)","Segregated Acc",null,"Benefical Ownership Gov Intrument - Cell 11","Confirm Instrument"]
["Sch V(L)","Segregated Acc",null,"Benefical Ownership Gov Intrument Det. - Cell 11",0]
["Sch V(L)","Segregated Acc",null,"Indemnity Provisions - Cell 11","Select Yes/No"]
["Sch V(L)","Segregated Acc",null,"Limited recourse  - Cell 11","Select Yes/No"]
["Sch V(L)","Segregated Acc",null,"Primary Cell Funding - Cell 11","Select Funding"]
["Sch V(L)","Segregated Acc",null,"Limit of Cell  Funding/ Collateral - Cell 11","Confirm Funding / Collateral"]
["Sch V(L)","Segregated Acc",null,"Limit of Cell  Funding/ Collateral Details - Cell 11",0]
["Sch V(L)","Segregated Acc",null,"Operational Risk Mitigants - Cell 11","Confirm Mitigants & Attach Support"]
["Sch V(L)","Segregated Acc",null,"i) Statutory Line of Business - Cell 11","Select Line of Business"]
["Sch V(L)","Segregated Acc",null,"i) GPW - Cell 11",0]
["Sch V(L)","Segregated Acc",null,"i) Premiums Ceded - Cell 11",0]
["Sch V(L)","Segregated Acc",null,"i) NPW - Cell 11",0]
["Sch V(L)","Segregated Acc",null,"ii) Statutory Line of Business - Cell 11","Select Line of Business"]
["Sch V(L)","Segregated Acc",null,"ii) GPW - Cell 11",0]
["Sch V(L)","Segregated Acc",null,"ii) Premiums Ceded - Cell 11",0]
["Sch V(L)","Segregated Acc",null,"ii) NPW - Cell 11",0]
["Sch V(L)","Segregated Acc",null,"iii) Statutory Line of Business - Cell 11","Select Line of Business"]
["Sch V(L)","Segregated Acc",null,"iii) GPW - Cell 11",0]
["Sch V(L)","Segregated Acc",null,"iii) Premiums Ceded - Cell 11",0]
["Sch V(L)","Segregated Acc",null,"iii) NPW - Cell 11",0]
["Sch V(L)","Segregated Acc",null,"iv) Statutory Line of Business - Cell 11","Select Line of Business"]
["Sch V(L)","Segregated Acc",null,"iv) GPW - Cell 11",0]
["Sch V(L)","Segregated Acc",null,"iv) Premiums Ceded - Cell 11",0]
["Sch V(L)","Segregated Acc",null,"iv) NPW - Cell 11",0]
["Sch V(L)","Segregated Acc",null,"v) Statutory Line of Business - Cell 11","Select Line of Business"]
["Sch V(L)","Segregated Acc",null,"v) GPW - Cell 11",0]
["Sch V(L)","Segregated Acc",null,"v) Premiums Ceded - Cell 11",0]
["Sch V(L)","Segregated Acc",null,"v) NPW - Cell 11",0]
["Sch V(L)","Segregated Acc",null,"Cell Ref # - Cell 12",0]
["Sch V(L)","Segregated Acc",null,"Cell name - Cell 12",0]
["Sch V(L)","Segregated Acc",null,"Direct Insurer, Reinsurer or Both - Cell 12","Select Premiums Written"]
["Sch V(L)","Segregated Acc",null,"Total Assets - Cell 12",0]
["Sch V(L)","Segregated Acc",null,"Total Liabilities - Cell 12",0]
["Sch V(L)","Segregated Acc",null,"Statutory Surplus - Cell 12",0]
["Sch V(L)","Segregated Acc",null,"Statutory Capital - Cell 12",0]
["Sch V(L)","Segregated Acc",null,"Net Income - Cell 12",0]
["Sch V(L)","Segregated Acc",null,"Cash  - Cell 12",0]
["Sch V(L)","Segregated Acc",null,"Quoted: Bonds and Debentures - Cell 12",0]
["Sch V(L)","Segregated Acc",null,"Quoted: Equites - Cell 12",0]
["Sch V(L)","Segregated Acc",null,"Quoted: Other  - Cell 12",0]
["Sch V(L)","Segregated Acc",null,"Unquoted: Bonds and Debentures - Cell 12",0]
["Sch V(L)","Segregated Acc",null,"Unquoted: Equities - Cell 12",0]
["Sch V(L)","Segregated Acc",null,"Unquoted: Other - Cell 12",0]
["Sch V(L)","Segregated Acc",null,"Due from Affiliates - Cell 12",0]
["Sch V(L)","Segregated Acc",null,"Due to Affiliates - Cell 12",0]
["Sch V(L)","Segregated Acc",null,"Net Loss & Loss Expense Provisions - Cell 12",0]
["Sch V(L)","Segregated Acc",null,"Prior Year loss reserve development - Cell 12",0]
["Sch V(L)","Segregated Acc",null,"Reinsurance Recoverable Balance - Cell 12",0]
["Sch V(L)","Segregated Acc",null,"Cell is in Run-Off - Cell 12","Select Yes/No"]
["Sch V(L)","Segregated Acc",null,"currency used - Cell 12","Select Currency"]
["Sch V(L)","Segregated Acc",null,"Cell to Cell Activity  - Cell 12","Confirm Activity"]
["Sch V(L)","Segregated Acc",null,"Cell to Cell Activity Details - Cell 12",0]
["Sch V(L)","Segregated Acc",null,"General Cell to Cell Activity - Cell 12","Confirm Activity"]
["Sch V(L)","Segregated Acc",null,"General Cell to Cell Activity Details - Cell 12",0]
["Sch V(L)","Segregated Acc",null,"Cell Deficit - Cell 12",0]
["Sch V(L)","Segregated Acc",null,"Additional Capital Support - Cell 12","Confirm"]
["Sch V(L)","Segregated Acc",null,"Additional Capital Support Details - Cell 12",0]
["Sch V(L)","Segregated Acc",null,"Details of Benefical Owners of Risk - Cell 12","Confirm"]
["Sch V(L)","Segregated Acc",null,"Details of Benefical Owners of Cell - Cell 12","Confirm"]
["Sch V(L)","Segregated Acc",null,"Benefical Owners - Cell 12","Confirm"]
["Sch V(L)","Segregated Acc",null,"Benefical Ownership - Cell 12","Confirm Ownership"]
["Sch V(L)","Segregated Acc",null,"Benefical Ownership Add. Details - Cell 12",0]
["Sch V(L)","Segregated Acc",null,"Jurisdiction - Cell 12","Confirm Jurisdiction"]
["Sch V(L)","Segregated Acc",null,"Benefical Ownership Gov Intrument - Cell 12","Confirm Instrument"]
["Sch V(L)","Segregated Acc",null,"Benefical Ownership Gov Intrument Det. - Cell 12",0]
["Sch V(L)","Segregated Acc",null,"Indemnity Provisions - Cell 12","Select Yes/No"]
["Sch V(L)","Segregated Acc",null,"Limited recourse  - Cell 12","Select Yes/No"]
["Sch V(L)","Segregated Acc",null,"Primary Cell Funding - Cell 12","Select Funding"]
["Sch V(L)","Segregated Acc",null,"Limit of Cell  Funding/ Collateral - Cell 12","Confirm Funding / Collateral"]
["Sch V(L)","Segregated Acc",null,"Limit of Cell  Funding/ Collateral Details - Cell 12",0]
["Sch V(L)","Segregated Acc",null,"Operational Risk Mitigants - Cell 12","Confirm Mitigants & Attach Support"]
["Sch V(L)","Segregated Acc",null,"i) Statutory Line of Business - Cell 12","Select Line of Business"]
["Sch V(L)","Segregated Acc",null,"i) GPW - Cell 12",0]
["Sch V(L)","Segregated Acc",null,"i) Premiums Ceded - Cell 12",0]
["Sch V(L)","Segregated Acc",null,"i) NPW - Cell 12",0]
["Sch V(L)","Segregated Acc",null,"ii) Statutory Line of Business - Cell 12","Select Line of Business"]
["Sch V(L)","Segregated Acc",null,"ii) GPW - Cell 12",0]
["Sch V(L)","Segregated Acc",null,"ii) Premiums Ceded - Cell 12",0]
["Sch V(L)","Segregated Acc",null,"ii) NPW - Cell 12",0]
["Sch V(L)","Segregated Acc",null,"iii) Statutory Line of Business - Cell 12","Select Line of Business"]
["Sch V(L)","Segregated Acc",null,"iii) GPW - Cell 12",0]
["Sch V(L)","Segregated Acc",null,"iii) Premiums Ceded - Cell 12",0]
["Sch V(L)","Segregated Acc",null,"iii) NPW - Cell 12",0]
["Sch V(L)","Segregated Acc",null,"iv) Statutory Line of Business - Cell 12","Select Line of Business"]
["Sch V(L)","Segregated Acc",null,"iv) GPW - Cell 12",0]
["Sch V(L)","Segregated Acc",null,"iv) Premiums Ceded - Cell 12",0]
["Sch V(L)","Segregated Acc",null,"iv) NPW - Cell 12",0]
["Sch V(L)","Segregated Acc",null,"v) Statutory Line of Business - Cell 12","Select Line of Business"]
["Sch V(L)","Segregated Acc",null,"v) GPW - Cell 12",0]
["Sch V(L)","Segregated Acc",null,"v) Premiums Ceded - Cell 12",0]
["Sch V(L)","Segregated Acc",null,"v) NPW - Cell 12",0]
["Sch V(L)","Segregated Acc",null,"Cell Ref # - Cell 13",0]
["Sch V(L)","Segregated Acc",null,"Cell name - Cell 13",0]
["Sch V(L)","Segregated Acc",null,"Direct Insurer, Reinsurer or Both - Cell 13","Select Premiums Written"]
["Sch V(L)","Segregated Acc",null,"Total Assets - Cell 13",0]
["Sch V(L)","Segregated Acc",null,"Total Liabilities - Cell 13",0]
["Sch V(L)","Segregated Acc",null,"Statutory Surplus - Cell 13",0]
["Sch V(L)","Segregated Acc",null,"Statutory Capital - Cell 13",0]
["Sch V(L)","Segregated Acc",null,"Net Income - Cell 13",0]
["Sch V(L)","Segregated Acc",null,"Cash  - Cell 13",0]
["Sch V(L)","Segregated Acc",null,"Quoted: Bonds and Debentures - Cell 13",0]
["Sch V(L)","Segregated Acc",null,"Quoted: Equites - Cell 13",0]
["Sch V(L)","Segregated Acc",null,"Quoted: Other  - Cell 13",0]
["Sch V(L)","Segregated Acc",null,"Unquoted: Bonds and Debentures - Cell 13",0]
["Sch V(L)","Segregated Acc",null,"Unquoted: Equities - Cell 13",0]
["Sch V(L)","Segregated Acc",null,"Unquoted: Other - Cell 13",0]
["Sch V(L)","Segregated Acc",null,"Due from Affiliates - Cell 13",0]
["Sch V(L)","Segregated Acc",null,"Due to Affiliates - Cell 13",0]
["Sch V(L)","Segregated Acc",null,"Net Loss & Loss Expense Provisions - Cell 13",0]
["Sch V(L)","Segregated Acc",null,"Prior Year loss reserve development - Cell 13",0]
["Sch V(L)","Segregated Acc",null,"Reinsurance Recoverable Balance - Cell 13",0]
["Sch V(L)","Segregated Acc",null,"Cell is in Run-Off - Cell 13","Select Yes/No"]
["Sch V(L)","Segregated Acc",null,"currency used - Cell 13","Select Currency"]
["Sch V(L)","Segregated Acc",null,"Cell to Cell Activity  - Cell 13","Confirm Activity"]
["Sch V(L)","Segregated Acc",null,"Cell to Cell Activity Details - Cell 13",0]
["Sch V(L)","Segregated Acc",null,"General Cell to Cell Activity - Cell 13","Confirm Activity"]
["Sch V(L)","Segregated Acc",null,"General Cell to Cell Activity Details - Cell 13",0]
["Sch V(L)","Segregated Acc",null,"Cell Deficit - Cell 13",0]
["Sch V(L)","Segregated Acc",null,"Additional Capital Support - Cell 13","Confirm"]
["Sch V(L)","Segregated Acc",null,"Additional Capital Support Details - Cell 13",0]
["Sch V(L)","Segregated Acc",null,"Details of Benefical Owners of Risk - Cell 13","Confirm"]
["Sch V(L)","Segregated Acc",null,"Details of Benefical Owners of Cell - Cell 13","Confirm"]
["Sch V(L)","Segregated Acc",null,"Benefical Owners - Cell 13","Confirm"]
["Sch V(L)","Segregated Acc",null,"Benefical Ownership - Cell 13","Confirm Ownership"]
["Sch V(L)","Segregated Acc",null,"Benefical Ownership Add. Details - Cell 13",0]
["Sch V(L)","Segregated Acc",null,"Jurisdiction - Cell 13","Confirm Jurisdiction"]
["Sch V(L)","Segregated Acc",null,"Benefical Ownership Gov Intrument - Cell 13","Confirm Instrument"]
["Sch V(L)","Segregated Acc",null,"Benefical Ownership Gov Intrument Det. - Cell 13",0]
["Sch V(L)","Segregated Acc",null,"Indemnity Provisions - Cell 13","Select Yes/No"]
["Sch V(L)","Segregated Acc",null,"Limited recourse  - Cell 13","Select Yes/No"]
["Sch V(L)","Segregated Acc",null,"Primary Cell Funding - Cell 13","Select Funding"]
["Sch V(L)","Segregated Acc",null,"Limit of Cell  Funding/ Collateral - Cell 13","Confirm Funding / Collateral"]
["Sch V(L)","Segregated Acc",null,"Limit of Cell  Funding/ Collateral Details - Cell 13",0]
["Sch V(L)","Segregated Acc",null,"Operational Risk Mitigants - Cell 13","Confirm Mitigants & Attach Support"]
["Sch V(L)","Segregated Acc",null,"i) Statutory Line of Business - Cell 13","Select Line of Business"]
["Sch V(L)","Segregated Acc",null,"i) GPW - Cell 13",0]
["Sch V(L)","Segregated Acc",null,"i) Premiums Ceded - Cell 13",0]
["Sch V(L)","Segregated Acc",null,"i) NPW - Cell 13",0]
["Sch V(L)","Segregated Acc",null,"ii) Statutory Line of Business - Cell 13","Select Line of Business"]
["Sch V(L)","Segregated Acc",null,"ii) GPW - Cell 13",0]
["Sch V(L)","Segregated Acc",null,"ii) Premiums Ceded - Cell 13",0]
["Sch V(L)","Segregated Acc",null,"ii) NPW - Cell 13",0]
["Sch V(L)","Segregated Acc",null,"iii) Statutory Line of Business - Cell 13","Select Line of Business"]
["Sch V(L)","Segregated Acc",null,"iii) GPW - Cell 13",0]
["Sch V(L)","Segregated Acc",null,"iii) Premiums Ceded - Cell 13",0]
["Sch V(L)","Segregated Acc",null,"iii) NPW - Cell 13",0]
["Sch V(L)","Segregated Acc",null,"iv) Statutory Line of Business - Cell 13","Select Line of Business"]
["Sch V(L)","Segregated Acc",null,"iv) GPW - Cell 13",0]
["Sch V(L)","Segregated Acc",null,"iv) Premiums Ceded - Cell 13",0]
["Sch V(L)","Segregated Acc",null,"iv) NPW - Cell 13",0]
["Sch V(L)","Segregated Acc",null,"v) Statutory Line of Business - Cell 13","Select Line of Business"]
["Sch V(L)","Segregated Acc",null,"v) GPW - Cell 13",0]
["Sch V(L)","Segregated Acc",null,"v) Premiums Ceded - Cell 13",0]
["Sch V(L)","Segregated Acc",null,"v) NPW - Cell 13",0]
["Sch V(L)","Segregated Acc",null,"Cell Ref # - Cell 14",0]
["Sch V(L)","Segregated Acc",null,"Cell name - Cell 14",0]
["Sch V(L)","Segregated Acc",null,"Direct Insurer, Reinsurer or Both - Cell 14","Select Premiums Written"]
["Sch V(L)","Segregated Acc",null,"Total Assets - Cell 14",0]
["Sch V(L)","Segregated Acc",null,"Total Liabilities - Cell 14",0]
["Sch V(L)","Segregated Acc",null,"Statutory Surplus - Cell 14",0]
["Sch V(L)","Segregated Acc",null,"Statutory Capital - Cell 14",0]
["Sch V(L)","Segregated Acc",null,"Net Income - Cell 14",0]
["Sch V(L)","Segregated Acc",null,"Cash  - Cell 14",0]
["Sch V(L)","Segregated Acc",null,"Quoted: Bonds and Debentures - Cell 14",0]
["Sch V(L)","Segregated Acc",null,"Quoted: Equites - Cell 14",0]
["Sch V(L)","Segregated Acc",null,"Quoted: Other  - Cell 14",0]
["Sch V(L)","Segregated Acc",null,"Unquoted: Bonds and Debentures - Cell 14",0]
["Sch V(L)","Segregated Acc",null,"Unquoted: Equities - Cell 14",0]
["Sch V(L)","Segregated Acc",null,"Unquoted: Other - Cell 14",0]
["Sch V(L)","Segregated Acc",null,"Due from Affiliates - Cell 14",0]
["Sch V(L)","Segregated Acc",null,"Due to Affiliates - Cell 14",0]
["Sch V(L)","Segregated Acc",null,"Net Loss & Loss Expense Provisions - Cell 14",0]
["Sch V(L)","Segregated Acc",null,"Prior Year loss reserve development - Cell 14",0]
["Sch V(L)","Segregated Acc",null,"Reinsurance Recoverable Balance - Cell 14",0]
["Sch V(L)","Segregated Acc",null,"Cell is in Run-Off - Cell 14","Select Yes/No"]
["Sch V(L)","Segregated Acc",null,"currency used - Cell 14","Select Currency"]
["Sch V(L)","Segregated Acc",null,"Cell to Cell Activity  - Cell 14","Confirm Activity"]
["Sch V(L)","Segregated Acc",null,"Cell to Cell Activity Details - Cell 14",0]
["Sch V(L)","Segregated Acc",null,"General Cell to Cell Activity - Cell 14","Confirm Activity"]
["Sch V(L)","Segregated Acc",null,"General Cell to Cell Activity Details - Cell 14",0]
["Sch V(L)","Segregated Acc",null,"Cell Deficit - Cell 14",0]
["Sch V(L)","Segregated Acc",null,"Additional Capital Support - Cell 14","Confirm"]
["Sch V(L)","Segregated Acc",null,"Additional Capital Support Details - Cell 14",0]
["Sch V(L)","Segregated Acc",null,"Details of Benefical Owners of Risk - Cell 14","Confirm"]
["Sch V(L)","Segregated Acc",null,"Details of Benefical Owners of Cell - Cell 14","Confirm"]
["Sch V(L)","Segregated Acc",null,"Benefical Owners - Cell 14","Confirm"]
["Sch V(L)","Segregated Acc",null,"Benefical Ownership - Cell 14","Confirm Ownership"]
["Sch V(L)","Segregated Acc",null,"Benefical Ownership Add. Details - Cell 14",0]
["Sch V(L)","Segregated Acc",null,"Jurisdiction - Cell 14","Confirm Jurisdiction"]
["Sch V(L)","Segregated Acc",null,"Benefical Ownership Gov Intrument - Cell 14","Confirm Instrument"]
["Sch V(L)","Segregated Acc",null,"Benefical Ownership Gov Intrument Det. - Cell 14",0]
["Sch V(L)","Segregated Acc",null,"Indemnity Provisions - Cell 14","Select Yes/No"]
["Sch V(L)","Segregated Acc",null,"Limited recourse  - Cell 14","Select Yes/No"]
["Sch V(L)","Segregated Acc",null,"Primary Cell Funding - Cell 14","Select Funding"]
["Sch V(L)","Segregated Acc",null,"Limit of Cell  Funding/ Collateral - Cell 14","Confirm Funding / Collateral"]
["Sch V(L)","Segregated Acc",null,"Limit of Cell  Funding/ Collateral Details - Cell 14",0]
["Sch V(L)","Segregated Acc",null,"Operational Risk Mitigants - Cell 14","Confirm Mitigants & Attach Support"]
["Sch V(L)","Segregated Acc",null,"i) Statutory Line of Business - Cell 14","Select Line of Business"]
["Sch V(L)","Segregated Acc",null,"i) GPW - Cell 14",0]
["Sch V(L)","Segregated Acc",null,"i) Premiums Ceded - Cell 14",0]
["Sch V(L)","Segregated Acc",null,"i) NPW - Cell 14",0]
["Sch V(L)","Segregated Acc",null,"ii) Statutory Line of Business - Cell 14","Select Line of Business"]
["Sch V(L)","Segregated Acc",null,"ii) GPW - Cell 14",0]
["Sch V(L)","Segregated Acc",null,"ii) Premiums Ceded - Cell 14",0]
["Sch V(L)","Segregated Acc",null,"ii) NPW - Cell 14",0]
["Sch V(L)","Segregated Acc",null,"iii) Statutory Line of Business - Cell 14","Select Line of Business"]
["Sch V(L)","Segregated Acc",null,"iii) GPW - Cell 14",0]
["Sch V(L)","Segregated Acc",null,"iii) Premiums Ceded - Cell 14",0]
["Sch V(L)","Segregated Acc",null,"iii) NPW - Cell 14",0]
["Sch V(L)","Segregated Acc",null,"iv) Statutory Line of Business - Cell 14","Select Line of Business"]
["Sch V(L)","Segregated Acc",null,"iv) GPW - Cell 14",0]
["Sch V(L)","Segregated Acc",null,"iv) Premiums Ceded - Cell 14",0]
["Sch V(L)","Segregated Acc",null,"iv) NPW - Cell 14",0]
["Sch V(L)","Segregated Acc",null,"v) Statutory Line of Business - Cell 14","Select Line of Business"]
["Sch V(L)","Segregated Acc",null,"v) GPW - Cell 14",0]
["Sch V(L)","Segregated Acc",null,"v) Premiums Ceded - Cell 14",0]
["Sch V(L)","Segregated Acc",null,"v) NPW - Cell 14",0]
["Sch V(L)","Segregated Acc",null,"Cell Ref # - Cell 15",0]
["Sch V(L)","Segregated Acc",null,"Cell name - Cell 15",0]
["Sch V(L)","Segregated Acc",null,"Direct Insurer, Reinsurer or Both - Cell 15","Select Premiums Written"]
["Sch V(L)","Segregated Acc",null,"Total Assets - Cell 15",0]
["Sch V(L)","Segregated Acc",null,"Total Liabilities - Cell 15",0]
["Sch V(L)","Segregated Acc",null,"Statutory Surplus - Cell 15",0]
["Sch V(L)","Segregated Acc",null,"Statutory Capital - Cell 15",0]
["Sch V(L)","Segregated Acc",null,"Net Income - Cell 15",0]
["Sch V(L)","Segregated Acc",null,"Cash  - Cell 15",0]
["Sch V(L)","Segregated Acc",null,"Quoted: Bonds and Debentures - Cell 15",0]
["Sch V(L)","Segregated Acc",null,"Quoted: Equites - Cell 15",0]
["Sch V(L)","Segregated Acc",null,"Quoted: Other  - Cell 15",0]
["Sch V(L)","Segregated Acc",null,"Unquoted: Bonds and Debentures - Cell 15",0]
["Sch V(L)","Segregated Acc",null,"Unquoted: Equities - Cell 15",0]
["Sch V(L)","Segregated Acc",null,"Unquoted: Other - Cell 15",0]
["Sch V(L)","Segregated Acc",null,"Due from Affiliates - Cell 15",0]
["Sch V(L)","Segregated Acc",null,"Due to Affiliates - Cell 15",0]
["Sch V(L)","Segregated Acc",null,"Net Loss & Loss Expense Provisions - Cell 15",0]
["Sch V(L)","Segregated Acc",null,"Prior Year loss reserve development - Cell 15",0]
["Sch V(L)","Segregated Acc",null,"Reinsurance Recoverable Balance - Cell 15",0]
["Sch V(L)","Segregated Acc",null,"Cell is in Run-Off - Cell 15","Select Yes/No"]
["Sch V(L)","Segregated Acc",null,"currency used - Cell 15","Select Currency"]
["Sch V(L)","Segregated Acc",null,"Cell to Cell Activity  - Cell 15","Confirm Activity"]
["Sch V(L)","Segregated Acc",null,"Cell to Cell Activity Details - Cell 15",0]
["Sch V(L)","Segregated Acc",null,"General Cell to Cell Activity - Cell 15","Confirm Activity"]
["Sch V(L)","Segregated Acc",null,"General Cell to Cell Activity Details - Cell 15",0]
["Sch V(L)","Segregated Acc",null,"Cell Deficit - Cell 15",0]
["Sch V(L)","Segregated Acc",null,"Additional Capital Support - Cell 15","Confirm"]
["Sch V(L)","Segregated Acc",null,"Additional Capital Support Details - Cell 15",0]
["Sch V(L)","Segregated Acc",null,"Details of Benefical Owners of Risk - Cell 15","Confirm"]
["Sch V(L)","Segregated Acc",null,"Details of Benefical Owners of Cell - Cell 15","Confirm"]
["Sch V(L)","Segregated Acc",null,"Benefical Owners - Cell 15","Confirm"]
["Sch V(L)","Segregated Acc",null,"Benefical Ownership - Cell 15","Confirm Ownership"]
["Sch V(L)","Segregated Acc",null,"Benefical Ownership Add. Details - Cell 15",0]
["Sch V(L)","Segregated Acc",null,"Jurisdiction - Cell 15","Confirm Jurisdiction"]
["Sch V(L)","Segregated Acc",null,"Benefical Ownership Gov Intrument - Cell 15","Confirm Instrument"]
["Sch V(L)","Segregated Acc",null,"Benefical Ownership Gov Intrument Det. - Cell 15",0]
["Sch V(L)","Segregated Acc",null,"Indemnity Provisions - Cell 15","Select Yes/No"]
["Sch V(L)","Segregated Acc",null,"Limited recourse  - Cell 15","Select Yes/No"]
["Sch V(L)","Segregated Acc",null,"Primary Cell Funding - Cell 15","Select Funding"]
["Sch V(L)","Segregated Acc",null,"Limit of Cell  Funding/ Collateral - Cell 15","Confirm Funding / Collateral"]
["Sch V(L)","Segregated Acc",null,"Limit of Cell  Funding/ Collateral Details - Cell 15",0]
["Sch V(L)","Segregated Acc",null,"Operational Risk Mitigants - Cell 15","Confirm Mitigants & Attach Support"]
["Sch V(L)","Segregated Acc",null,"i) Statutory Line of Business - Cell 15","Select Line of Business"]
["Sch V(L)","Segregated Acc",null,"i) GPW - Cell 15",0]
["Sch V(L)","Segregated Acc",null,"i) Premiums Ceded - Cell 15",0]
["Sch V(L)","Segregated Acc",null,"i) NPW - Cell 15",0]
["Sch V(L)","Segregated Acc",null,"ii) Statutory Line of Business - Cell 15","Select Line of Business"]
["Sch V(L)","Segregated Acc",null,"ii) GPW - Cell 15",0]
["Sch V(L)","Segregated Acc",null,"ii) Premiums Ceded - Cell 15",0]
["Sch V(L)","Segregated Acc",null,"ii) NPW - Cell 15",0]
["Sch V(L)","Segregated Acc",null,"iii) Statutory Line of Business - Cell 15","Select Line of Business"]
["Sch V(L)","Segregated Acc",null,"iii) GPW - Cell 15",0]
["Sch V(L)","Segregated Acc",null,"iii) Premiums Ceded - Cell 15",0]
["Sch V(L)","Segregated Acc",null,"iii) NPW - Cell 15",0]
["Sch V(L)","Segregated Acc",null,"iv) Statutory Line of Business - Cell 15","Select Line of Business"]
["Sch V(L)","Segregated Acc",null,"iv) GPW - Cell 15",0]
["Sch V(L)","Segregated Acc",null,"iv) Premiums Ceded - Cell 15",0]
["Sch V(L)","Segregated Acc",null,"iv) NPW - Cell 15",0]
["Sch V(L)","Segregated Acc",null,"v) Statutory Line of Business - Cell 15","Select Line of Business"]
["Sch V(L)","Segregated Acc",null,"v) GPW - Cell 15",0]
["Sch V(L)","Segregated Acc",null,"v) Premiums Ceded - Cell 15",0]
["Sch V(L)","Segregated Acc",null,"v) NPW - Cell 15",0]
["Sch V(L)","Segregated Acc",null,"Cell Ref # - Cell 16",0]
["Sch V(L)","Segregated Acc",null,"Cell name - Cell 16",0]
["Sch V(L)","Segregated Acc",null,"Direct Insurer, Reinsurer or Both - Cell 16","Select Premiums Written"]
["Sch V(L)","Segregated Acc",null,"Total Assets - Cell 16",0]
["Sch V(L)","Segregated Acc",null,"Total Liabilities - Cell 16",0]
["Sch V(L)","Segregated Acc",null,"Statutory Surplus - Cell 16",0]
["Sch V(L)","Segregated Acc",null,"Statutory Capital - Cell 16",0]
["Sch V(L)","Segregated Acc",null,"Net Income - Cell 16",0]
["Sch V(L)","Segregated Acc",null,"Cash  - Cell 16",0]
["Sch V(L)","Segregated Acc",null,"Quoted: Bonds and Debentures - Cell 16",0]
["Sch V(L)","Segregated Acc",null,"Quoted: Equites - Cell 16",0]
["Sch V(L)","Segregated Acc",null,"Quoted: Other  - Cell 16",0]
["Sch V(L)","Segregated Acc",null,"Unquoted: Bonds and Debentures - Cell 16",0]
["Sch V(L)","Segregated Acc",null,"Unquoted: Equities - Cell 16",0]
["Sch V(L)","Segregated Acc",null,"Unquoted: Other - Cell 16",0]
["Sch V(L)","Segregated Acc",null,"Due from Affiliates - Cell 16",0]
["Sch V(L)","Segregated Acc",null,"Due to Affiliates - Cell 16",0]
["Sch V(L)","Segregated Acc",null,"Net Loss & Loss Expense Provisions - Cell 16",0]
["Sch V(L)","Segregated Acc",null,"Prior Year loss reserve development - Cell 16",0]
["Sch V(L)","Segregated Acc",null,"Reinsurance Recoverable Balance - Cell 16",0]
["Sch V(L)","Segregated Acc",null,"Cell is in Run-Off - Cell 16","Select Yes/No"]
["Sch V(L)","Segregated Acc",null,"currency used - Cell 16","Select Currency"]
["Sch V(L)","Segregated Acc",null,"Cell to Cell Activity  - Cell 16","Confirm Activity"]
["Sch V(L)","Segregated Acc",null,"Cell to Cell Activity Details - Cell 16",0]
["Sch V(L)","Segregated Acc",null,"General Cell to Cell Activity - Cell 16","Confirm Activity"]
["Sch V(L)","Segregated Acc",null,"General Cell to Cell Activity Details - Cell 16",0]
["Sch V(L)","Segregated Acc",null,"Cell Deficit - Cell 16",0]
["Sch V(L)","Segregated Acc",null,"Additional Capital Support - Cell 16","Confirm"]
["Sch V(L)","Segregated Acc",null,"Additional Capital Support Details - Cell 16",0]
["Sch V(L)","Segregated Acc",null,"Details of Benefical Owners of Risk - Cell 16","Confirm"]
["Sch V(L)","Segregated Acc",null,"Details of Benefical Owners of Cell - Cell 16","Confirm"]
["Sch V(L)","Segregated Acc",null,"Benefical Owners - Cell 16","Confirm"]
["Sch V(L)","Segregated Acc",null,"Benefical Ownership - Cell 16","Confirm Ownership"]
["Sch V(L)","Segregated Acc",null,"Benefical Ownership Add. Details - Cell 16",0]
["Sch V(L)","Segregated Acc",null,"Jurisdiction - Cell 16","Confirm Jurisdiction"]
["Sch V(L)","Segregated Acc",null,"Benefical Ownership Gov Intrument - Cell 16","Confirm Instrument"]
["Sch V(L)","Segregated Acc",null,"Benefical Ownership Gov Intrument Det. - Cell 16",0]
["Sch V(L)","Segregated Acc",null,"Indemnity Provisions - Cell 16","Select Yes/No"]
["Sch V(L)","Segregated Acc",null,"Limited recourse  - Cell 16","Select Yes/No"]
["Sch V(L)","Segregated Acc",null,"Primary Cell Funding - Cell 16","Select Funding"]
["Sch V(L)","Segregated Acc",null,"Limit of Cell  Funding/ Collateral - Cell 16","Confirm Funding / Collateral"]
["Sch V(L)","Segregated Acc",null,"Limit of Cell  Funding/ Collateral Details - Cell 16",0]
["Sch V(L)","Segregated Acc",null,"Operational Risk Mitigants - Cell 16","Confirm Mitigants & Attach Support"]
["Sch V(L)","Segregated Acc",null,"i) Statutory Line of Business - Cell 16","Select Line of Business"]
["Sch V(L)","Segregated Acc",null,"i) GPW - Cell 16",0]
["Sch V(L)","Segregated Acc",null,"i) Premiums Ceded - Cell 16",0]
["Sch V(L)","Segregated Acc",null,"i) NPW - Cell 16",0]
["Sch V(L)","Segregated Acc",null,"ii) Statutory Line of Business - Cell 16","Select Line of Business"]
["Sch V(L)","Segregated Acc",null,"ii) GPW - Cell 16",0]
["Sch V(L)","Segregated Acc",null,"ii) Premiums Ceded - Cell 16",0]
["Sch V(L)","Segregated Acc",null,"ii) NPW - Cell 16",0]
["Sch V(L)","Segregated Acc",null,"iii) Statutory Line of Business - Cell 16","Select Line of Business"]
["Sch V(L)","Segregated Acc",null,"iii) GPW - Cell 16",0]
["Sch V(L)","Segregated Acc",null,"iii) Premiums Ceded - Cell 16",0]
["Sch V(L)","Segregated Acc",null,"iii) NPW - Cell 16",0]
["Sch V(L)","Segregated Acc",null,"iv) Statutory Line of Business - Cell 16","Select Line of Business"]
["Sch V(L)","Segregated Acc",null,"iv) GPW - Cell 16",0]
["Sch V(L)","Segregated Acc",null,"iv) Premiums Ceded - Cell 16",0]
["Sch V(L)","Segregated Acc",null,"iv) NPW - Cell 16",0]
["Sch V(L)","Segregated Acc",null,"v) Statutory Line of Business - Cell 16","Select Line of Business"]
["Sch V(L)","Segregated Acc",null,"v) GPW - Cell 16",0]
["Sch V(L)","Segregated Acc",null,"v) Premiums Ceded - Cell 16",0]
["Sch V(L)","Segregated Acc",null,"v) NPW - Cell 16",0]
["Sch V(L)","Segregated Acc",null,"Cell Ref # - Cell 17",0]
["Sch V(L)","Segregated Acc",null,"Cell name - Cell 17",0]
["Sch V(L)","Segregated Acc",null,"Direct Insurer, Reinsurer or Both - Cell 17","Select Premiums Written"]
["Sch V(L)","Segregated Acc",null,"Total Assets - Cell 17",0]
["Sch V(L)","Segregated Acc",null,"Total Liabilities - Cell 17",0]
["Sch V(L)","Segregated Acc",null,"Statutory Surplus - Cell 17",0]
["Sch V(L)","Segregated Acc",null,"Statutory Capital - Cell 17",0]
["Sch V(L)","Segregated Acc",null,"Net Income - Cell 17",0]
["Sch V(L)","Segregated Acc",null,"Cash  - Cell 17",0]
["Sch V(L)","Segregated Acc",null,"Quoted: Bonds and Debentures - Cell 17",0]
["Sch V(L)","Segregated Acc",null,"Quoted: Equites - Cell 17",0]
["Sch V(L)","Segregated Acc",null,"Quoted: Other  - Cell 17",0]
["Sch V(L)","Segregated Acc",null,"Unquoted: Bonds and Debentures - Cell 17",0]
["Sch V(L)","Segregated Acc",null,"Unquoted: Equities - Cell 17",0]
["Sch V(L)","Segregated Acc",null,"Unquoted: Other - Cell 17",0]
["Sch V(L)","Segregated Acc",null,"Due from Affiliates - Cell 17",0]
["Sch V(L)","Segregated Acc",null,"Due to Affiliates - Cell 17",0]
["Sch V(L)","Segregated Acc",null,"Net Loss & Loss Expense Provisions - Cell 17",0]
["Sch V(L)","Segregated Acc",null,"Prior Year loss reserve development - Cell 17",0]
["Sch V(L)","Segregated Acc",null,"Reinsurance Recoverable Balance - Cell 17",0]
["Sch V(L)","Segregated Acc",null,"Cell is in Run-Off - Cell 17","Select Yes/No"]
["Sch V(L)","Segregated Acc",null,"currency used - Cell 17","Select Currency"]
["Sch V(L)","Segregated Acc",null,"Cell to Cell Activity  - Cell 17","Confirm Activity"]
["Sch V(L)","Segregated Acc",null,"Cell to Cell Activity Details - Cell 17",0]
["Sch V(L)","Segregated Acc",null,"General Cell to Cell Activity - Cell 17","Confirm Activity"]
["Sch V(L)","Segregated Acc",null,"General Cell to Cell Activity Details - Cell 17",0]
["Sch V(L)","Segregated Acc",null,"Cell Deficit - Cell 17",0]
["Sch V(L)","Segregated Acc",null,"Additional Capital Support - Cell 17","Confirm"]
["Sch V(L)","Segregated Acc",null,"Additional Capital Support Details - Cell 17",0]
["Sch V(L)","Segregated Acc",null,"Details of Benefical Owners of Risk - Cell 17","Confirm"]
["Sch V(L)","Segregated Acc",null,"Details of Benefical Owners of Cell - Cell 17","Confirm"]
["Sch V(L)","Segregated Acc",null,"Benefical Owners - Cell 17","Confirm"]
["Sch V(L)","Segregated Acc",null,"Benefical Ownership - Cell 17","Confirm Ownership"]
["Sch V(L)","Segregated Acc",null,"Benefical Ownership Add. Details - Cell 17",0]
["Sch V(L)","Segregated Acc",null,"Jurisdiction - Cell 17","Confirm Jurisdiction"]
["Sch V(L)","Segregated Acc",null,"Benefical Ownership Gov Intrument - Cell 17","Confirm Instrument"]
["Sch V(L)","Segregated Acc",null,"Benefical Ownership Gov Intrument Det. - Cell 17",0]
["Sch V(L)","Segregated Acc",null,"Indemnity Provisions - Cell 17","Select Yes/No"]
["Sch V(L)","Segregated Acc",null,"Limited recourse  - Cell 17","Select Yes/No"]
["Sch V(L)","Segregated Acc",null,"Primary Cell Funding - Cell 17","Select Funding"]
["Sch V(L)","Segregated Acc",null,"Limit of Cell  Funding/ Collateral - Cell 17","Confirm Funding / Collateral"]
["Sch V(L)","Segregated Acc",null,"Limit of Cell  Funding/ Collateral Details - Cell 17",0]
["Sch V(L)","Segregated Acc",null,"Operational Risk Mitigants - Cell 17","Confirm Mitigants & Attach Support"]
["Sch V(L)","Segregated Acc",null,"i) Statutory Line of Business - Cell 17","Select Line of Business"]
["Sch V(L)","Segregated Acc",null,"i) GPW - Cell 17",0]
["Sch V(L)","Segregated Acc",null,"i) Premiums Ceded - Cell 17",0]
["Sch V(L)","Segregated Acc",null,"i) NPW - Cell 17",0]
["Sch V(L)","Segregated Acc",null,"ii) Statutory Line of Business - Cell 17","Select Line of Business"]
["Sch V(L)","Segregated Acc",null,"ii) GPW - Cell 17",0]
["Sch V(L)","Segregated Acc",null,"ii) Premiums Ceded - Cell 17",0]
["Sch V(L)","Segregated Acc",null,"ii) NPW - Cell 17",0]
["Sch V(L)","Segregated Acc",null,"iii) Statutory Line of Business - Cell 17","Select Line of Business"]
["Sch V(L)","Segregated Acc",null,"iii) GPW - Cell 17",0]
["Sch V(L)","Segregated Acc",null,"iii) Premiums Ceded - Cell 17",0]
["Sch V(L)","Segregated Acc",null,"iii) NPW - Cell 17",0]
["Sch V(L)","Segregated Acc",null,"iv) Statutory Line of Business - Cell 17","Select Line of Business"]
["Sch V(L)","Segregated Acc",null,"iv) GPW - Cell 17",0]
["Sch V(L)","Segregated Acc",null,"iv) Premiums Ceded - Cell 17",0]
["Sch V(L)","Segregated Acc",null,"iv) NPW - Cell 17",0]
["Sch V(L)","Segregated Acc",null,"v) Statutory Line of Business - Cell 17","Select Line of Business"]
["Sch V(L)","Segregated Acc",null,"v) GPW - Cell 17",0]
["Sch V(L)","Segregated Acc",null,"v) Premiums Ceded - Cell 17",0]
["Sch V(L)","Segregated Acc",null,"v) NPW - Cell 17",0]
["Sch V(L)","Segregated Acc",null,"Cell Ref # - Cell 18",0]
["Sch V(L)","Segregated Acc",null,"Cell name - Cell 18",0]
["Sch V(L)","Segregated Acc",null,"Direct Insurer, Reinsurer or Both - Cell 18","Select Premiums Written"]
["Sch V(L)","Segregated Acc",null,"Total Assets - Cell 18",0]
["Sch V(L)","Segregated Acc",null,"Total Liabilities - Cell 18",0]
["Sch V(L)","Segregated Acc",null,"Statutory Surplus - Cell 18",0]
["Sch V(L)","Segregated Acc",null,"Statutory Capital - Cell 18",0]
["Sch V(L)","Segregated Acc",null,"Net Income - Cell 18",0]
["Sch V(L)","Segregated Acc",null,"Cash  - Cell 18",0]
["Sch V(L)","Segregated Acc",null,"Quoted: Bonds and Debentures - Cell 18",0]
["Sch V(L)","Segregated Acc",null,"Quoted: Equites - Cell 18",0]
["Sch V(L)","Segregated Acc",null,"Quoted: Other  - Cell 18",0]
["Sch V(L)","Segregated Acc",null,"Unquoted: Bonds and Debentures - Cell 18",0]
["Sch V(L)","Segregated Acc",null,"Unquoted: Equities - Cell 18",0]
["Sch V(L)","Segregated Acc",null,"Unquoted: Other - Cell 18",0]
["Sch V(L)","Segregated Acc",null,"Due from Affiliates - Cell 18",0]
["Sch V(L)","Segregated Acc",null,"Due to Affiliates - Cell 18",0]
["Sch V(L)","Segregated Acc",null,"Net Loss & Loss Expense Provisions - Cell 18",0]
["Sch V(L)","Segregated Acc",null,"Prior Year loss reserve development - Cell 18",0]
["Sch V(L)","Segregated Acc",null,"Reinsurance Recoverable Balance - Cell 18",0]
["Sch V(L)","Segregated Acc",null,"Cell is in Run-Off - Cell 18","Select Yes/No"]
["Sch V(L)","Segregated Acc",null,"currency used - Cell 18","Select Currency"]
["Sch V(L)","Segregated Acc",null,"Cell to Cell Activity  - Cell 18","Confirm Activity"]
["Sch V(L)","Segregated Acc",null,"Cell to Cell Activity Details - Cell 18",0]
["Sch V(L)","Segregated Acc",null,"General Cell to Cell Activity - Cell 18","Confirm Activity"]
["Sch V(L)","Segregated Acc",null,"General Cell to Cell Activity Details - Cell 18",0]
["Sch V(L)","Segregated Acc",null,"Cell Deficit - Cell 18",0]
["Sch V(L)","Segregated Acc",null,"Additional Capital Support - Cell 18","Confirm"]
["Sch V(L)","Segregated Acc",null,"Additional Capital Support Details - Cell 18",0]
["Sch V(L)","Segregated Acc",null,"Details of Benefical Owners of Risk - Cell 18","Confirm"]
["Sch V(L)","Segregated Acc",null,"Details of Benefical Owners of Cell - Cell 18","Confirm"]
["Sch V(L)","Segregated Acc",null,"Benefical Owners - Cell 18","Confirm"]
["Sch V(L)","Segregated Acc",null,"Benefical Ownership - Cell 18","Confirm Ownership"]
["Sch V(L)","Segregated Acc",null,"Benefical Ownership Add. Details - Cell 18",0]
["Sch V(L)","Segregated Acc",null,"Jurisdiction - Cell 18","Confirm Jurisdiction"]
["Sch V(L)","Segregated Acc",null,"Benefical Ownership Gov Intrument - Cell 18","Confirm Instrument"]
["Sch V(L)","Segregated Acc",null,"Benefical Ownership Gov Intrument Det. - Cell 18",0]
["Sch V(L)","Segregated Acc",null,"Indemnity Provisions - Cell 18","Select Yes/No"]
["Sch V(L)","Segregated Acc",null,"Limited recourse  - Cell 18","Select Yes/No"]
["Sch V(L)","Segregated Acc",null,"Primary Cell Funding - Cell 18","Select Funding"]
["Sch V(L)","Segregated Acc",null,"Limit of Cell  Funding/ Collateral - Cell 18","Confirm Funding / Collateral"]
["Sch V(L)","Segregated Acc",null,"Limit of Cell  Funding/ Collateral Details - Cell 18",0]
["Sch V(L)","Segregated Acc",null,"Operational Risk Mitigants - Cell 18","Confirm Mitigants & Attach Support"]
["Sch V(L)","Segregated Acc",null,"i) Statutory Line of Business - Cell 18","Select Line of Business"]
["Sch V(L)","Segregated Acc",null,"i) GPW - Cell 18",0]
["Sch V(L)","Segregated Acc",null,"i) Premiums Ceded - Cell 18",0]
["Sch V(L)","Segregated Acc",null,"i) NPW - Cell 18",0]
["Sch V(L)","Segregated Acc",null,"ii) Statutory Line of Business - Cell 18","Select Line of Business"]
["Sch V(L)","Segregated Acc",null,"ii) GPW - Cell 18",0]
["Sch V(L)","Segregated Acc",null,"ii) Premiums Ceded - Cell 18",0]
["Sch V(L)","Segregated Acc",null,"ii) NPW - Cell 18",0]
["Sch V(L)","Segregated Acc",null,"iii) Statutory Line of Business - Cell 18","Select Line of Business"]
["Sch V(L)","Segregated Acc",null,"iii) GPW - Cell 18",0]
["Sch V(L)","Segregated Acc",null,"iii) Premiums Ceded - Cell 18",0]
["Sch V(L)","Segregated Acc",null,"iii) NPW - Cell 18",0]
["Sch V(L)","Segregated Acc",null,"iv) Statutory Line of Business - Cell 18","Select Line of Business"]
["Sch V(L)","Segregated Acc",null,"iv) GPW - Cell 18",0]
["Sch V(L)","Segregated Acc",null,"iv) Premiums Ceded - Cell 18",0]
["Sch V(L)","Segregated Acc",null,"iv) NPW - Cell 18",0]
["Sch V(L)","Segregated Acc",null,"v) Statutory Line of Business - Cell 18","Select Line of Business"]
["Sch V(L)","Segregated Acc",null,"v) GPW - Cell 18",0]
["Sch V(L)","Segregated Acc",null,"v) Premiums Ceded - Cell 18",0]
["Sch V(L)","Segregated Acc",null,"v) NPW - Cell 18",0]
["Sch V(L)","Segregated Acc",null,"Cell Ref # - Cell 19",0]
["Sch V(L)","Segregated Acc",null,"Cell name - Cell 19",0]
["Sch V(L)","Segregated Acc",null,"Direct Insurer, Reinsurer or Both - Cell 19","Select Premiums Written"]
["Sch V(L)","Segregated Acc",null,"Total Assets - Cell 19",0]
["Sch V(L)","Segregated Acc",null,"Total Liabilities - Cell 19",0]
["Sch V(L)","Segregated Acc",null,"Statutory Surplus - Cell 19",0]
["Sch V(L)","Segregated Acc",null,"Statutory Capital - Cell 19",0]
["Sch V(L)","Segregated Acc",null,"Net Income - Cell 19",0]
["Sch V(L)","Segregated Acc",null,"Cash  - Cell 19",0]
["Sch V(L)","Segregated Acc",null,"Quoted: Bonds and Debentures - Cell 19",0]
["Sch V(L)","Segregated Acc",null,"Quoted: Equites - Cell 19",0]
["Sch V(L)","Segregated Acc",null,"Quoted: Other  - Cell 19",0]
["Sch V(L)","Segregated Acc",null,"Unquoted: Bonds and Debentures - Cell 19",0]
["Sch V(L)","Segregated Acc",null,"Unquoted: Equities - Cell 19",0]
["Sch V(L)","Segregated Acc",null,"Unquoted: Other - Cell 19",0]
["Sch V(L)","Segregated Acc",null,"Due from Affiliates - Cell 19",0]
["Sch V(L)","Segregated Acc",null,"Due to Affiliates - Cell 19",0]
["Sch V(L)","Segregated Acc",null,"Net Loss & Loss Expense Provisions - Cell 19",0]
["Sch V(L)","Segregated Acc",null,"Prior Year loss reserve development - Cell 19",0]
["Sch V(L)","Segregated Acc",null,"Reinsurance Recoverable Balance - Cell 19",0]
["Sch V(L)","Segregated Acc",null,"Cell is in Run-Off - Cell 19","Select Yes/No"]
["Sch V(L)","Segregated Acc",null,"currency used - Cell 19","Select Currency"]
["Sch V(L)","Segregated Acc",null,"Cell to Cell Activity  - Cell 19","Confirm Activity"]
["Sch V(L)","Segregated Acc",null,"Cell to Cell Activity Details - Cell 19",0]
["Sch V(L)","Segregated Acc",null,"General Cell to Cell Activity - Cell 19","Confirm Activity"]
["Sch V(L)","Segregated Acc",null,"General Cell to Cell Activity Details - Cell 19",0]
["Sch V(L)","Segregated Acc",null,"Cell Deficit - Cell 19",0]
["Sch V(L)","Segregated Acc",null,"Additional Capital Support - Cell 19","Confirm"]
["Sch V(L)","Segregated Acc",null,"Additional Capital Support Details - Cell 19",0]
["Sch V(L)","Segregated Acc",null,"Details of Benefical Owners of Risk - Cell 19","Confirm"]
["Sch V(L)","Segregated Acc",null,"Details of Benefical Owners of Cell - Cell 19","Confirm"]
["Sch V(L)","Segregated Acc",null,"Benefical Owners - Cell 19","Confirm"]
["Sch V(L)","Segregated Acc",null,"Benefical Ownership - Cell 19","Confirm Ownership"]
["Sch V(L)","Segregated Acc",null,"Benefical Ownership Add. Details - Cell 19",0]
["Sch V(L)","Segregated Acc",null,"Jurisdiction - Cell 19","Confirm Jurisdiction"]
["Sch V(L)","Segregated Acc",null,"Benefical Ownership Gov Intrument - Cell 19","Confirm Instrument"]
["Sch V(L)","Segregated Acc",null,"Benefical Ownership Gov Intrument Det. - Cell 19",0]
["Sch V(L)","Segregated Acc",null,"Indemnity Provisions - Cell 19","Select Yes/No"]
["Sch V(L)","Segregated Acc",null,"Limited recourse  - Cell 19","Select Yes/No"]
["Sch V(L)","Segregated Acc",null,"Primary Cell Funding - Cell 19","Select Funding"]
["Sch V(L)","Segregated Acc",null,"Limit of Cell  Funding/ Collateral - Cell 19","Confirm Funding / Collateral"]
["Sch V(L)","Segregated Acc",null,"Limit of Cell  Funding/ Collateral Details - Cell 19",0]
["Sch V(L)","Segregated Acc",null,"Operational Risk Mitigants - Cell 19","Confirm Mitigants & Attach Support"]
["Sch V(L)","Segregated Acc",null,"i) Statutory Line of Business - Cell 19","Select Line of Business"]
["Sch V(L)","Segregated Acc",null,"i) GPW - Cell 19",0]
["Sch V(L)","Segregated Acc",null,"i) Premiums Ceded - Cell 19",0]
["Sch V(L)","Segregated Acc",null,"i) NPW - Cell 19",0]
["Sch V(L)","Segregated Acc",null,"ii) Statutory Line of Business - Cell 19","Select Line of Business"]
["Sch V(L)","Segregated Acc",null,"ii) GPW - Cell 19",0]
["Sch V(L)","Segregated Acc",null,"ii) Premiums Ceded - Cell 19",0]
["Sch V(L)","Segregated Acc",null,"ii) NPW - Cell 19",0]
["Sch V(L)","Segregated Acc",null,"iii) Statutory Line of Business - Cell 19","Select Line of Business"]
["Sch V(L)","Segregated Acc",null,"iii) GPW - Cell 19",0]
["Sch V(L)","Segregated Acc",null,"iii) Premiums Ceded - Cell 19",0]
["Sch V(L)","Segregated Acc",null,"iii) NPW - Cell 19",0]
["Sch V(L)","Segregated Acc",null,"iv) Statutory Line of Business - Cell 19","Select Line of Business"]
["Sch V(L)","Segregated Acc",null,"iv) GPW - Cell 19",0]
["Sch V(L)","Segregated Acc",null,"iv) Premiums Ceded - Cell 19",0]
["Sch V(L)","Segregated Acc",null,"iv) NPW - Cell 19",0]
["Sch V(L)","Segregated Acc",null,"v) Statutory Line of Business - Cell 19","Select Line of Business"]
["Sch V(L)","Segregated Acc",null,"v) GPW - Cell 19",0]
["Sch V(L)","Segregated Acc",null,"v) Premiums Ceded - Cell 19",0]
["Sch V(L)","Segregated Acc",null,"v) NPW - Cell 19",0]
["Sch V(L)","Segregated Acc",null,"Cell Ref # - Cell 20",0]
["Sch V(L)","Segregated Acc",null,"Cell name - Cell 20",0]
["Sch V(L)","Segregated Acc",null,"Direct Insurer, Reinsurer or Both - Cell 20","Select Premiums Written"]
["Sch V(L)","Segregated Acc",null,"Total Assets - Cell 20",0]
["Sch V(L)","Segregated Acc",null,"Total Liabilities - Cell 20",0]
["Sch V(L)","Segregated Acc",null,"Statutory Surplus - Cell 20",0]
["Sch V(L)","Segregated Acc",null,"Statutory Capital - Cell 20",0]
["Sch V(L)","Segregated Acc",null,"Net Income - Cell 20",0]
["Sch V(L)","Segregated Acc",null,"Cash  - Cell 20",0]
["Sch V(L)","Segregated Acc",null,"Quoted: Bonds and Debentures - Cell 20",0]
["Sch V(L)","Segregated Acc",null,"Quoted: Equites - Cell 20",0]
["Sch V(L)","Segregated Acc",null,"Quoted: Other  - Cell 20",0]
["Sch V(L)","Segregated Acc",null,"Unquoted: Bonds and Debentures - Cell 20",0]
["Sch V(L)","Segregated Acc",null,"Unquoted: Equities - Cell 20",0]
["Sch V(L)","Segregated Acc",null,"Unquoted: Other - Cell 20",0]
["Sch V(L)","Segregated Acc",null,"Due from Affiliates - Cell 20",0]
["Sch V(L)","Segregated Acc",null,"Due to Affiliates - Cell 20",0]
["Sch V(L)","Segregated Acc",null,"Net Loss & Loss Expense Provisions - Cell 20",0]
["Sch V(L)","Segregated Acc",null,"Prior Year loss reserve development - Cell 20",0]
["Sch V(L)","Segregated Acc",null,"Reinsurance Recoverable Balance - Cell 20",0]
["Sch V(L)","Segregated Acc",null,"Cell is in Run-Off - Cell 20","Select Yes/No"]
["Sch V(L)","Segregated Acc",null,"currency used - Cell 20","Select Currency"]
["Sch V(L)","Segregated Acc",null,"Cell to Cell Activity  - Cell 20","Confirm Activity"]
["Sch V(L)","Segregated Acc",null,"Cell to Cell Activity Details - Cell 20",0]
["Sch V(L)","Segregated Acc",null,"General Cell to Cell Activity - Cell 20","Confirm Activity"]
["Sch V(L)","Segregated Acc",null,"General Cell to Cell Activity Details - Cell 20",0]
["Sch V(L)","Segregated Acc",null,"Cell Deficit - Cell 20",0]
["Sch V(L)","Segregated Acc",null,"Additional Capital Support - Cell 20","Confirm"]
["Sch V(L)","Segregated Acc",null,"Additional Capital Support Details - Cell 20",0]
["Sch V(L)","Segregated Acc",null,"Details of Benefical Owners of Risk - Cell 20","Confirm"]
["Sch V(L)","Segregated Acc",null,"Details of Benefical Owners of Cell - Cell 20","Confirm"]
["Sch V(L)","Segregated Acc",null,"Benefical Owners - Cell 20","Confirm"]
["Sch V(L)","Segregated Acc",null,"Benefical Ownership - Cell 20","Confirm Ownership"]
["Sch V(L)","Segregated Acc",null,"Benefical Ownership Add. Details - Cell 20",0]
["Sch V(L)","Segregated Acc",null,"Jurisdiction - Cell 20","Confirm Jurisdiction"]
["Sch V(L)","Segregated Acc",null,"Benefical Ownership Gov Intrument - Cell 20","Confirm Instrument"]
["Sch V(L)","Segregated Acc",null,"Benefical Ownership Gov Intrument Det. - Cell 20",0]
["Sch V(L)","Segregated Acc",null,"Indemnity Provisions - Cell 20","Select Yes/No"]
["Sch V(L)","Segregated Acc",null,"Limited recourse  - Cell 20","Select Yes/No"]
["Sch V(L)","Segregated Acc",null,"Primary Cell Funding - Cell 20","Select Funding"]
["Sch V(L)","Segregated Acc",null,"Limit of Cell  Funding/ Collateral - Cell 20","Confirm Funding / Collateral"]
["Sch V(L)","Segregated Acc",null,"Limit of Cell  Funding/ Collateral Details - Cell 20",0]
["Sch V(L)","Segregated Acc",null,"Operational Risk Mitigants - Cell 20","Confirm Mitigants & Attach Support"]
["Sch V(L)","Segregated Acc",null,"i) Statutory Line of Business - Cell 20","Select Line of Business"]
["Sch V(L)","Segregated Acc",null,"i) GPW - Cell 20",0]
["Sch V(L)","Segregated Acc",null,"i) Premiums Ceded - Cell 20",0]
["Sch V(L)","Segregated Acc",null,"i) NPW - Cell 20",0]
["Sch V(L)","Segregated Acc",null,"ii) Statutory Line of Business - Cell 20","Select Line of Business"]
["Sch V(L)","Segregated Acc",null,"ii) GPW - Cell 20",0]
["Sch V(L)","Segregated Acc",null,"ii) Premiums Ceded - Cell 20",0]
["Sch V(L)","Segregated Acc",null,"ii) NPW - Cell 20",0]
["Sch V(L)","Segregated Acc",null,"iii) Statutory Line of Business - Cell 20","Select Line of Business"]
["Sch V(L)","Segregated Acc",null,"iii) GPW - Cell 20",0]
["Sch V(L)","Segregated Acc",null,"iii) Premiums Ceded - Cell 20",0]
["Sch V(L)","Segregated Acc",null,"iii) NPW - Cell 20",0]
["Sch V(L)","Segregated Acc",null,"iv) Statutory Line of Business - Cell 20","Select Line of Business"]
["Sch V(L)","Segregated Acc",null,"iv) GPW - Cell 20",0]
["Sch V(L)","Segregated Acc",null,"iv) Premiums Ceded - Cell 20",0]
["Sch V(L)","Segregated Acc",null,"iv) NPW - Cell 20",0]
["Sch V(L)","Segregated Acc",null,"v) Statutory Line of Business - Cell 20","Select Line of Business"]
["Sch V(L)","Segregated Acc",null,"v) GPW - Cell 20",0]
["Sch V(L)","Segregated Acc",null,"v) Premiums Ceded - Cell 20",0]
["Sch V(L)","Segregated Acc",null,"v) NPW - Cell 20",0]
["Sch V(L)","Segregated Acc",null,"Cell Ref # - Cell 21",0]
["Sch V(L)","Segregated Acc",null,"Cell name - Cell 21",0]
["Sch V(L)","Segregated Acc",null,"Direct Insurer, Reinsurer or Both - Cell 21","Select Premiums Written"]
["Sch V(L)","Segregated Acc",null,"Total Assets - Cell 21",0]
["Sch V(L)","Segregated Acc",null,"Total Liabilities - Cell 21",0]
["Sch V(L)","Segregated Acc",null,"Statutory Surplus - Cell 21",0]
["Sch V(L)","Segregated Acc",null,"Statutory Capital - Cell 21",0]
["Sch V(L)","Segregated Acc",null,"Net Income - Cell 21",0]
["Sch V(L)","Segregated Acc",null,"Cash  - Cell 21",0]
["Sch V(L)","Segregated Acc",null,"Quoted: Bonds and Debentures - Cell 21",0]
["Sch V(L)","Segregated Acc",null,"Quoted: Equites - Cell 21",0]
["Sch V(L)","Segregated Acc",null,"Quoted: Other  - Cell 21",0]
["Sch V(L)","Segregated Acc",null,"Unquoted: Bonds and Debentures - Cell 21",0]
["Sch V(L)","Segregated Acc",null,"Unquoted: Equities - Cell 21",0]
["Sch V(L)","Segregated Acc",null,"Unquoted: Other - Cell 21",0]
["Sch V(L)","Segregated Acc",null,"Due from Affiliates - Cell 21",0]
["Sch V(L)","Segregated Acc",null,"Due to Affiliates - Cell 21",0]
["Sch V(L)","Segregated Acc",null,"Net Loss & Loss Expense Provisions - Cell 21",0]
["Sch V(L)","Segregated Acc",null,"Prior Year loss reserve development - Cell 21",0]
["Sch V(L)","Segregated Acc",null,"Reinsurance Recoverable Balance - Cell 21",0]
["Sch V(L)","Segregated Acc",null,"Cell is in Run-Off - Cell 21","Select Yes/No"]
["Sch V(L)","Segregated Acc",null,"currency used - Cell 21","Select Currency"]
["Sch V(L)","Segregated Acc",null,"Cell to Cell Activity  - Cell 21","Confirm Activity"]
["Sch V(L)","Segregated Acc",null,"Cell to Cell Activity Details - Cell 21",0]
["Sch V(L)","Segregated Acc",null,"General Cell to Cell Activity - Cell 21","Confirm Activity"]
["Sch V(L)","Segregated Acc",null,"General Cell to Cell Activity Details - Cell 21",0]
["Sch V(L)","Segregated Acc",null,"Cell Deficit - Cell 21",0]
["Sch V(L)","Segregated Acc",null,"Additional Capital Support - Cell 21","Confirm"]
["Sch V(L)","Segregated Acc",null,"Additional Capital Support Details - Cell 21",0]
["Sch V(L)","Segregated Acc",null,"Details of Benefical Owners of Risk - Cell 21","Confirm"]
["Sch V(L)","Segregated Acc",null,"Details of Benefical Owners of Cell - Cell 21","Confirm"]
["Sch V(L)","Segregated Acc",null,"Benefical Owners - Cell 21","Confirm"]
["Sch V(L)","Segregated Acc",null,"Benefical Ownership - Cell 21","Confirm Ownership"]
["Sch V(L)","Segregated Acc",null,"Benefical Ownership Add. Details - Cell 21",0]
["Sch V(L)","Segregated Acc",null,"Jurisdiction - Cell 21","Confirm Jurisdiction"]
["Sch V(L)","Segregated Acc",null,"Benefical Ownership Gov Intrument - Cell 21","Confirm Instrument"]
["Sch V(L)","Segregated Acc",null,"Benefical Ownership Gov Intrument Det. - Cell 21",0]
["Sch V(L)","Segregated Acc",null,"Indemnity Provisions - Cell 21","Select Yes/No"]
["Sch V(L)","Segregated Acc",null,"Limited recourse  - Cell 21","Select Yes/No"]
["Sch V(L)","Segregated Acc",null,"Primary Cell Funding - Cell 21","Select Funding"]
["Sch V(L)","Segregated Acc",null,"Limit of Cell  Funding/ Collateral - Cell 21","Confirm Funding / Collateral"]
["Sch V(L)","Segregated Acc",null,"Limit of Cell  Funding/ Collateral Details - Cell 21",0]
["Sch V(L)","Segregated Acc",null,"Operational Risk Mitigants - Cell 21","Confirm Mitigants & Attach Support"]
["Sch V(L)","Segregated Acc",null,"i) Statutory Line of Business - Cell 21","Select Line of Business"]
["Sch V(L)","Segregated Acc",null,"i) GPW - Cell 21",0]
["Sch V(L)","Segregated Acc",null,"i) Premiums Ceded - Cell 21",0]
["Sch V(L)","Segregated Acc",null,"i) NPW - Cell 21",0]
["Sch V(L)","Segregated Acc",null,"ii) Statutory Line of Business - Cell 21","Select Line of Business"]
["Sch V(L)","Segregated Acc",null,"ii) GPW - Cell 21",0]
["Sch V(L)","Segregated Acc",null,"ii) Premiums Ceded - Cell 21",0]
["Sch V(L)","Segregated Acc",null,"ii) NPW - Cell 21",0]
["Sch V(L)","Segregated Acc",null,"iii) Statutory Line of Business - Cell 21","Select Line of Business"]
["Sch V(L)","Segregated Acc",null,"iii) GPW - Cell 21",0]
["Sch V(L)","Segregated Acc",null,"iii) Premiums Ceded - Cell 21",0]
["Sch V(L)","Segregated Acc",null,"iii) NPW - Cell 21",0]
["Sch V(L)","Segregated Acc",null,"iv) Statutory Line of Business - Cell 21","Select Line of Business"]
["Sch V(L)","Segregated Acc",null,"iv) GPW - Cell 21",0]
["Sch V(L)","Segregated Acc",null,"iv) Premiums Ceded - Cell 21",0]
["Sch V(L)","Segregated Acc",null,"iv) NPW - Cell 21",0]
["Sch V(L)","Segregated Acc",null,"v) Statutory Line of Business - Cell 21","Select Line of Business"]
["Sch V(L)","Segregated Acc",null,"v) GPW - Cell 21",0]
["Sch V(L)","Segregated Acc",null,"v) Premiums Ceded - Cell 21",0]
["Sch V(L)","Segregated Acc",null,"v) NPW - Cell 21",0]
["Sch V(L)","Segregated Acc",null,"Cell Ref # - Cell 22",0]
["Sch V(L)","Segregated Acc",null,"Cell name - Cell 22",0]
["Sch V(L)","Segregated Acc",null,"Direct Insurer, Reinsurer or Both - Cell 22","Select Premiums Written"]
["Sch V(L)","Segregated Acc",null,"Total Assets - Cell 22",0]
["Sch V(L)","Segregated Acc",null,"Total Liabilities - Cell 22",0]
["Sch V(L)","Segregated Acc",null,"Statutory Surplus - Cell 22",0]
["Sch V(L)","Segregated Acc",null,"Statutory Capital - Cell 22",0]
["Sch V(L)","Segregated Acc",null,"Net Income - Cell 22",0]
["Sch V(L)","Segregated Acc",null,"Cash  - Cell 22",0]
["Sch V(L)","Segregated Acc",null,"Quoted: Bonds and Debentures - Cell 22",0]
["Sch V(L)","Segregated Acc",null,"Quoted: Equites - Cell 22",0]
["Sch V(L)","Segregated Acc",null,"Quoted: Other  - Cell 22",0]
["Sch V(L)","Segregated Acc",null,"Unquoted: Bonds and Debentures - Cell 22",0]
["Sch V(L)","Segregated Acc",null,"Unquoted: Equities - Cell 22",0]
["Sch V(L)","Segregated Acc",null,"Unquoted: Other - Cell 22",0]
["Sch V(L)","Segregated Acc",null,"Due from Affiliates - Cell 22",0]
["Sch V(L)","Segregated Acc",null,"Due to Affiliates - Cell 22",0]
["Sch V(L)","Segregated Acc",null,"Net Loss & Loss Expense Provisions - Cell 22",0]
["Sch V(L)","Segregated Acc",null,"Prior Year loss reserve development - Cell 22",0]
["Sch V(L)","Segregated Acc",null,"Reinsurance Recoverable Balance - Cell 22",0]
["Sch V(L)","Segregated Acc",null,"Cell is in Run-Off - Cell 22","Select Yes/No"]
["Sch V(L)","Segregated Acc",null,"currency used - Cell 22","Select Currency"]
["Sch V(L)","Segregated Acc",null,"Cell to Cell Activity  - Cell 22","Confirm Activity"]
["Sch V(L)","Segregated Acc",null,"Cell to Cell Activity Details - Cell 22",0]
["Sch V(L)","Segregated Acc",null,"General Cell to Cell Activity - Cell 22","Confirm Activity"]
["Sch V(L)","Segregated Acc",null,"General Cell to Cell Activity Details - Cell 22",0]
["Sch V(L)","Segregated Acc",null,"Cell Deficit - Cell 22",0]
["Sch V(L)","Segregated Acc",null,"Additional Capital Support - Cell 22","Confirm"]
["Sch V(L)","Segregated Acc",null,"Additional Capital Support Details - Cell 22",0]
["Sch V(L)","Segregated Acc",null,"Details of Benefical Owners of Risk - Cell 22","Confirm"]
["Sch V(L)","Segregated Acc",null,"Details of Benefical Owners of Cell - Cell 22","Confirm"]
["Sch V(L)","Segregated Acc",null,"Benefical Owners - Cell 22","Confirm"]
["Sch V(L)","Segregated Acc",null,"Benefical Ownership - Cell 22","Confirm Ownership"]
["Sch V(L)","Segregated Acc",null,"Benefical Ownership Add. Details - Cell 22",0]
["Sch V(L)","Segregated Acc",null,"Jurisdiction - Cell 22","Confirm Jurisdiction"]
["Sch V(L)","Segregated Acc",null,"Benefical Ownership Gov Intrument - Cell 22","Confirm Instrument"]
["Sch V(L)","Segregated Acc",null,"Benefical Ownership Gov Intrument Det. - Cell 22",0]
["Sch V(L)","Segregated Acc",null,"Indemnity Provisions - Cell 22","Select Yes/No"]
["Sch V(L)","Segregated Acc",null,"Limited recourse  - Cell 22","Select Yes/No"]
["Sch V(L)","Segregated Acc",null,"Primary Cell Funding - Cell 22","Select Funding"]
["Sch V(L)","Segregated Acc",null,"Limit of Cell  Funding/ Collateral - Cell 22","Confirm Funding / Collateral"]
["Sch V(L)","Segregated Acc",null,"Limit of Cell  Funding/ Collateral Details - Cell 22",0]
["Sch V(L)","Segregated Acc",null,"Operational Risk Mitigants - Cell 22","Confirm Mitigants & Attach Support"]
["Sch V(L)","Segregated Acc",null,"i) Statutory Line of Business - Cell 22","Select Line of Business"]
["Sch V(L)","Segregated Acc",null,"i) GPW - Cell 22",0]
["Sch V(L)","Segregated Acc",null,"i) Premiums Ceded - Cell 22",0]
["Sch V(L)","Segregated Acc",null,"i) NPW - Cell 22",0]
["Sch V(L)","Segregated Acc",null,"ii) Statutory Line of Business - Cell 22","Select Line of Business"]
["Sch V(L)","Segregated Acc",null,"ii) GPW - Cell 22",0]
["Sch V(L)","Segregated Acc",null,"ii) Premiums Ceded - Cell 22",0]
["Sch V(L)","Segregated Acc",null,"ii) NPW - Cell 22",0]
["Sch V(L)","Segregated Acc",null,"iii) Statutory Line of Business - Cell 22","Select Line of Business"]
["Sch V(L)","Segregated Acc",null,"iii) GPW - Cell 22",0]
["Sch V(L)","Segregated Acc",null,"iii) Premiums Ceded - Cell 22",0]
["Sch V(L)","Segregated Acc",null,"iii) NPW - Cell 22",0]
["Sch V(L)","Segregated Acc",null,"iv) Statutory Line of Business - Cell 22","Select Line of Business"]
["Sch V(L)","Segregated Acc",null,"iv) GPW - Cell 22",0]
["Sch V(L)","Segregated Acc",null,"iv) Premiums Ceded - Cell 22",0]
["Sch V(L)","Segregated Acc",null,"iv) NPW - Cell 22",0]
["Sch V(L)","Segregated Acc",null,"v) Statutory Line of Business - Cell 22","Select Line of Business"]
["Sch V(L)","Segregated Acc",null,"v) GPW - Cell 22",0]
["Sch V(L)","Segregated Acc",null,"v) Premiums Ceded - Cell 22",0]
["Sch V(L)","Segregated Acc",null,"v) NPW - Cell 22",0]
["Sch V(L)","Segregated Acc",null,"Cell Ref # - Cell 23",0]
["Sch V(L)","Segregated Acc",null,"Cell name - Cell 23",0]
["Sch V(L)","Segregated Acc",null,"Direct Insurer, Reinsurer or Both - Cell 23","Select Premiums Written"]
["Sch V(L)","Segregated Acc",null,"Total Assets - Cell 23",0]
["Sch V(L)","Segregated Acc",null,"Total Liabilities - Cell 23",0]
["Sch V(L)","Segregated Acc",null,"Statutory Surplus - Cell 23",0]
["Sch V(L)","Segregated Acc",null,"Statutory Capital - Cell 23",0]
["Sch V(L)","Segregated Acc",null,"Net Income - Cell 23",0]
["Sch V(L)","Segregated Acc",null,"Cash  - Cell 23",0]
["Sch V(L)","Segregated Acc",null,"Quoted: Bonds and Debentures - Cell 23",0]
["Sch V(L)","Segregated Acc",null,"Quoted: Equites - Cell 23",0]
["Sch V(L)","Segregated Acc",null,"Quoted: Other  - Cell 23",0]
["Sch V(L)","Segregated Acc",null,"Unquoted: Bonds and Debentures - Cell 23",0]
["Sch V(L)","Segregated Acc",null,"Unquoted: Equities - Cell 23",0]
["Sch V(L)","Segregated Acc",null,"Unquoted: Other - Cell 23",0]
["Sch V(L)","Segregated Acc",null,"Due from Affiliates - Cell 23",0]
["Sch V(L)","Segregated Acc",null,"Due to Affiliates - Cell 23",0]
["Sch V(L)","Segregated Acc",null,"Net Loss & Loss Expense Provisions - Cell 23",0]
["Sch V(L)","Segregated Acc",null,"Prior Year loss reserve development - Cell 23",0]
["Sch V(L)","Segregated Acc",null,"Reinsurance Recoverable Balance - Cell 23",0]
["Sch V(L)","Segregated Acc",null,"Cell is in Run-Off - Cell 23","Select Yes/No"]
["Sch V(L)","Segregated Acc",null,"currency used - Cell 23","Select Currency"]
["Sch V(L)","Segregated Acc",null,"Cell to Cell Activity  - Cell 23","Confirm Activity"]
["Sch V(L)","Segregated Acc",null,"Cell to Cell Activity Details - Cell 23",0]
["Sch V(L)","Segregated Acc",null,"General Cell to Cell Activity - Cell 23","Confirm Activity"]
["Sch V(L)","Segregated Acc",null,"General Cell to Cell Activity Details - Cell 23",0]
["Sch V(L)","Segregated Acc",null,"Cell Deficit - Cell 23",0]
["Sch V(L)","Segregated Acc",null,"Additional Capital Support - Cell 23","Confirm"]
["Sch V(L)","Segregated Acc",null,"Additional Capital Support Details - Cell 23",0]
["Sch V(L)","Segregated Acc",null,"Details of Benefical Owners of Risk - Cell 23","Confirm"]
["Sch V(L)","Segregated Acc",null,"Details of Benefical Owners of Cell - Cell 23","Confirm"]
["Sch V(L)","Segregated Acc",null,"Benefical Owners - Cell 23","Confirm"]
["Sch V(L)","Segregated Acc",null,"Benefical Ownership - Cell 23","Confirm Ownership"]
["Sch V(L)","Segregated Acc",null,"Benefical Ownership Add. Details - Cell 23",0]
["Sch V(L)","Segregated Acc",null,"Jurisdiction - Cell 23","Confirm Jurisdiction"]
["Sch V(L)","Segregated Acc",null,"Benefical Ownership Gov Intrument - Cell 23","Confirm Instrument"]
["Sch V(L)","Segregated Acc",null,"Benefical Ownership Gov Intrument Det. - Cell 23",0]
["Sch V(L)","Segregated Acc",null,"Indemnity Provisions - Cell 23","Select Yes/No"]
["Sch V(L)","Segregated Acc",null,"Limited recourse  - Cell 23","Select Yes/No"]
["Sch V(L)","Segregated Acc",null,"Primary Cell Funding - Cell 23","Select Funding"]
["Sch V(L)","Segregated Acc",null,"Limit of Cell  Funding/ Collateral - Cell 23","Confirm Funding / Collateral"]
["Sch V(L)","Segregated Acc",null,"Limit of Cell  Funding/ Collateral Details - Cell 23",0]
["Sch V(L)","Segregated Acc",null,"Operational Risk Mitigants - Cell 23","Confirm Mitigants & Attach Support"]
["Sch V(L)","Segregated Acc",null,"i) Statutory Line of Business - Cell 23","Select Line of Business"]
["Sch V(L)","Segregated Acc",null,"i) GPW - Cell 23",0]
["Sch V(L)","Segregated Acc",null,"i) Premiums Ceded - Cell 23",0]
["Sch V(L)","Segregated Acc",null,"i) NPW - Cell 23",0]
["Sch V(L)","Segregated Acc",null,"ii) Statutory Line of Business - Cell 23","Select Line of Business"]
["Sch V(L)","Segregated Acc",null,"ii) GPW - Cell 23",0]
["Sch V(L)","Segregated Acc",null,"ii) Premiums Ceded - Cell 23",0]
["Sch V(L)","Segregated Acc",null,"ii) NPW - Cell 23",0]
["Sch V(L)","Segregated Acc",null,"iii) Statutory Line of Business - Cell 23","Select Line of Business"]
["Sch V(L)","Segregated Acc",null,"iii) GPW - Cell 23",0]
["Sch V(L)","Segregated Acc",null,"iii) Premiums Ceded - Cell 23",0]
["Sch V(L)","Segregated Acc",null,"iii) NPW - Cell 23",0]
["Sch V(L)","Segregated Acc",null,"iv) Statutory Line of Business - Cell 23","Select Line of Business"]
["Sch V(L)","Segregated Acc",null,"iv) GPW - Cell 23",0]
["Sch V(L)","Segregated Acc",null,"iv) Premiums Ceded - Cell 23",0]
["Sch V(L)","Segregated Acc",null,"iv) NPW - Cell 23",0]
["Sch V(L)","Segregated Acc",null,"v) Statutory Line of Business - Cell 23","Select Line of Business"]
["Sch V(L)","Segregated Acc",null,"v) GPW - Cell 23",0]
["Sch V(L)","Segregated Acc",null,"v) Premiums Ceded - Cell 23",0]
["Sch V(L)","Segregated Acc",null,"v) NPW - Cell 23",0]
["Sch V(L)","Segregated Acc",null,"Cell Ref # - Cell 24",0]
["Sch V(L)","Segregated Acc",null,"Cell name - Cell 24",0]
["Sch V(L)","Segregated Acc",null,"Direct Insurer, Reinsurer or Both - Cell 24","Select Premiums Written"]
["Sch V(L)","Segregated Acc",null,"Total Assets - Cell 24",0]
["Sch V(L)","Segregated Acc",null,"Total Liabilities - Cell 24",0]
["Sch V(L)","Segregated Acc",null,"Statutory Surplus - Cell 24",0]
["Sch V(L)","Segregated Acc",null,"Statutory Capital - Cell 24",0]
["Sch V(L)","Segregated Acc",null,"Net Income - Cell 24",0]
["Sch V(L)","Segregated Acc",null,"Cash  - Cell 24",0]
["Sch V(L)","Segregated Acc",null,"Quoted: Bonds and Debentures - Cell 24",0]
["Sch V(L)","Segregated Acc",null,"Quoted: Equites - Cell 24",0]
["Sch V(L)","Segregated Acc",null,"Quoted: Other  - Cell 24",0]
["Sch V(L)","Segregated Acc",null,"Unquoted: Bonds and Debentures - Cell 24",0]
["Sch V(L)","Segregated Acc",null,"Unquoted: Equities - Cell 24",0]
["Sch V(L)","Segregated Acc",null,"Unquoted: Other - Cell 24",0]
["Sch V(L)","Segregated Acc",null,"Due from Affiliates - Cell 24",0]
["Sch V(L)","Segregated Acc",null,"Due to Affiliates - Cell 24",0]
["Sch V(L)","Segregated Acc",null,"Net Loss & Loss Expense Provisions - Cell 24",0]
["Sch V(L)","Segregated Acc",null,"Prior Year loss reserve development - Cell 24",0]
["Sch V(L)","Segregated Acc",null,"Reinsurance Recoverable Balance - Cell 24",0]
["Sch V(L)","Segregated Acc",null,"Cell is in Run-Off - Cell 24","Select Yes/No"]
["Sch V(L)","Segregated Acc",null,"currency used - Cell 24","Select Currency"]
["Sch V(L)","Segregated Acc",null,"Cell to Cell Activity  - Cell 24","Confirm Activity"]
["Sch V(L)","Segregated Acc",null,"Cell to Cell Activity Details - Cell 24",0]
["Sch V(L)","Segregated Acc",null,"General Cell to Cell Activity - Cell 24","Confirm Activity"]
["Sch V(L)","Segregated Acc",null,"General Cell to Cell Activity Details - Cell 24",0]
["Sch V(L)","Segregated Acc",null,"Cell Deficit - Cell 24",0]
["Sch V(L)","Segregated Acc",null,"Additional Capital Support - Cell 24","Confirm"]
["Sch V(L)","Segregated Acc",null,"Additional Capital Support Details - Cell 24",0]
["Sch V(L)","Segregated Acc",null,"Details of Benefical Owners of Risk - Cell 24","Confirm"]
["Sch V(L)","Segregated Acc",null,"Details of Benefical Owners of Cell - Cell 24","Confirm"]
["Sch V(L)","Segregated Acc",null,"Benefical Owners - Cell 24","Confirm"]
["Sch V(L)","Segregated Acc",null,"Benefical Ownership - Cell 24","Confirm Ownership"]
["Sch V(L)","Segregated Acc",null,"Benefical Ownership Add. Details - Cell 24",0]
["Sch V(L)","Segregated Acc",null,"Jurisdiction - Cell 24","Confirm Jurisdiction"]
["Sch V(L)","Segregated Acc",null,"Benefical Ownership Gov Intrument - Cell 24","Confirm Instrument"]
["Sch V(L)","Segregated Acc",null,"Benefical Ownership Gov Intrument Det. - Cell 24",0]
["Sch V(L)","Segregated Acc",null,"Indemnity Provisions - Cell 24","Select Yes/No"]
["Sch V(L)","Segregated Acc",null,"Limited recourse  - Cell 24","Select Yes/No"]
["Sch V(L)","Segregated Acc",null,"Primary Cell Funding - Cell 24","Select Funding"]
["Sch V(L)","Segregated Acc",null,"Limit of Cell  Funding/ Collateral - Cell 24","Confirm Funding / Collateral"]
["Sch V(L)","Segregated Acc",null,"Limit of Cell  Funding/ Collateral Details - Cell 24",0]
["Sch V(L)","Segregated Acc",null,"Operational Risk Mitigants - Cell 24","Confirm Mitigants & Attach Support"]
["Sch V(L)","Segregated Acc",null,"i) Statutory Line of Business - Cell 24","Select Line of Business"]
["Sch V(L)","Segregated Acc",null,"i) GPW - Cell 24",0]
["Sch V(L)","Segregated Acc",null,"i) Premiums Ceded - Cell 24",0]
["Sch V(L)","Segregated Acc",null,"i) NPW - Cell 24",0]
["Sch V(L)","Segregated Acc",null,"ii) Statutory Line of Business - Cell 24","Select Line of Business"]
["Sch V(L)","Segregated Acc",null,"ii) GPW - Cell 24",0]
["Sch V(L)","Segregated Acc",null,"ii) Premiums Ceded - Cell 24",0]
["Sch V(L)","Segregated Acc",null,"ii) NPW - Cell 24",0]
["Sch V(L)","Segregated Acc",null,"iii) Statutory Line of Business - Cell 24","Select Line of Business"]
["Sch V(L)","Segregated Acc",null,"iii) GPW - Cell 24",0]
["Sch V(L)","Segregated Acc",null,"iii) Premiums Ceded - Cell 24",0]
["Sch V(L)","Segregated Acc",null,"iii) NPW - Cell 24",0]
["Sch V(L)","Segregated Acc",null,"iv) Statutory Line of Business - Cell 24","Select Line of Business"]
["Sch V(L)","Segregated Acc",null,"iv) GPW - Cell 24",0]
["Sch V(L)","Segregated Acc",null,"iv) Premiums Ceded - Cell 24",0]
["Sch V(L)","Segregated Acc",null,"iv) NPW - Cell 24",0]
["Sch V(L)","Segregated Acc",null,"v) Statutory Line of Business - Cell 24","Select Line of Business"]
["Sch V(L)","Segregated Acc",null,"v) GPW - Cell 24",0]
["Sch V(L)","Segregated Acc",null,"v) Premiums Ceded - Cell 24",0]
["Sch V(L)","Segregated Acc",null,"v) NPW - Cell 24",0]
["Sch V(L)","Segregated Acc",null,"Cell Ref # - Cell 25",0]
["Sch V(L)","Segregated Acc",null,"Cell name - Cell 25",0]
["Sch V(L)","Segregated Acc",null,"Direct Insurer, Reinsurer or Both - Cell 25","Select Premiums Written"]
["Sch V(L)","Segregated Acc",null,"Total Assets - Cell 25",0]
["Sch V(L)","Segregated Acc",null,"Total Liabilities - Cell 25",0]
["Sch V(L)","Segregated Acc",null,"Statutory Surplus - Cell 25",0]
["Sch V(L)","Segregated Acc",null,"Statutory Capital - Cell 25",0]
["Sch V(L)","Segregated Acc",null,"Net Income - Cell 25",0]
["Sch V(L)","Segregated Acc",null,"Cash  - Cell 25",0]
["Sch V(L)","Segregated Acc",null,"Quoted: Bonds and Debentures - Cell 25",0]
["Sch V(L)","Segregated Acc",null,"Quoted: Equites - Cell 25",0]
["Sch V(L)","Segregated Acc",null,"Quoted: Other  - Cell 25",0]
["Sch V(L)","Segregated Acc",null,"Unquoted: Bonds and Debentures - Cell 25",0]
["Sch V(L)","Segregated Acc",null,"Unquoted: Equities - Cell 25",0]
["Sch V(L)","Segregated Acc",null,"Unquoted: Other - Cell 25",0]
["Sch V(L)","Segregated Acc",null,"Due from Affiliates - Cell 25",0]
["Sch V(L)","Segregated Acc",null,"Due to Affiliates - Cell 25",0]
["Sch V(L)","Segregated Acc",null,"Net Loss & Loss Expense Provisions - Cell 25",0]
["Sch V(L)","Segregated Acc",null,"Prior Year loss reserve development - Cell 25",0]
["Sch V(L)","Segregated Acc",null,"Reinsurance Recoverable Balance - Cell 25",0]
["Sch V(L)","Segregated Acc",null,"Cell is in Run-Off - Cell 25","Select Yes/No"]
["Sch V(L)","Segregated Acc",null,"currency used - Cell 25","Select Currency"]
["Sch V(L)","Segregated Acc",null,"Cell to Cell Activity  - Cell 25","Confirm Activity"]
["Sch V(L)","Segregated Acc",null,"Cell to Cell Activity Details - Cell 25",0]
["Sch V(L)","Segregated Acc",null,"General Cell to Cell Activity - Cell 25","Confirm Activity"]
["Sch V(L)","Segregated Acc",null,"General Cell to Cell Activity Details - Cell 25",0]
["Sch V(L)","Segregated Acc",null,"Cell Deficit - Cell 25",0]
["Sch V(L)","Segregated Acc",null,"Additional Capital Support - Cell 25","Confirm"]
["Sch V(L)","Segregated Acc",null,"Additional Capital Support Details - Cell 25",0]
["Sch V(L)","Segregated Acc",null,"Details of Benefical Owners of Risk - Cell 25","Confirm"]
["Sch V(L)","Segregated Acc",null,"Details of Benefical Owners of Cell - Cell 25","Confirm"]
["Sch V(L)","Segregated Acc",null,"Benefical Owners - Cell 25","Confirm"]
["Sch V(L)","Segregated Acc",null,"Benefical Ownership - Cell 25","Confirm Ownership"]
["Sch V(L)","Segregated Acc",null,"Benefical Ownership Add. Details - Cell 25",0]
["Sch V(L)","Segregated Acc",null,"Jurisdiction - Cell 25","Confirm Jurisdiction"]
["Sch V(L)","Segregated Acc",null,"Benefical Ownership Gov Intrument - Cell 25","Confirm Instrument"]
["Sch V(L)","Segregated Acc",null,"Benefical Ownership Gov Intrument Det. - Cell 25",0]
["Sch V(L)","Segregated Acc",null,"Indemnity Provisions - Cell 25","Select Yes/No"]
["Sch V(L)","Segregated Acc",null,"Limited recourse  - Cell 25","Select Yes/No"]
["Sch V(L)","Segregated Acc",null,"Primary Cell Funding - Cell 25","Select Funding"]
["Sch V(L)","Segregated Acc",null,"Limit of Cell  Funding/ Collateral - Cell 25","Confirm Funding / Collateral"]
["Sch V(L)","Segregated Acc",null,"Limit of Cell  Funding/ Collateral Details - Cell 25",0]
["Sch V(L)","Segregated Acc",null,"Operational Risk Mitigants - Cell 25","Confirm Mitigants & Attach Support"]
["Sch V(L)","Segregated Acc",null,"i) Statutory Line of Business - Cell 25","Select Line of Business"]
["Sch V(L)","Segregated Acc",null,"i) GPW - Cell 25",0]
["Sch V(L)","Segregated Acc",null,"i) Premiums Ceded - Cell 25",0]
["Sch V(L)","Segregated Acc",null,"i) NPW - Cell 25",0]
["Sch V(L)","Segregated Acc",null,"ii) Statutory Line of Business - Cell 25","Select Line of Business"]
["Sch V(L)","Segregated Acc",null,"ii) GPW - Cell 25",0]
["Sch V(L)","Segregated Acc",null,"ii) Premiums Ceded - Cell 25",0]
["Sch V(L)","Segregated Acc",null,"ii) NPW - Cell 25",0]
["Sch V(L)","Segregated Acc",null,"iii) Statutory Line of Business - Cell 25","Select Line of Business"]
["Sch V(L)","Segregated Acc",null,"iii) GPW - Cell 25",0]
["Sch V(L)","Segregated Acc",null,"iii) Premiums Ceded - Cell 25",0]
["Sch V(L)","Segregated Acc",null,"iii) NPW - Cell 25",0]
["Sch V(L)","Segregated Acc",null,"iv) Statutory Line of Business - Cell 25","Select Line of Business"]
["Sch V(L)","Segregated Acc",null,"iv) GPW - Cell 25",0]
["Sch V(L)","Segregated Acc",null,"iv) Premiums Ceded - Cell 25",0]
["Sch V(L)","Segregated Acc",null,"iv) NPW - Cell 25",0]
["Sch V(L)","Segregated Acc",null,"v) Statutory Line of Business - Cell 25","Select Line of Business"]
["Sch V(L)","Segregated Acc",null,"v) GPW - Cell 25",0]
["Sch V(L)","Segregated Acc",null,"v) Premiums Ceded - Cell 25",0]
["Sch V(L)","Segregated Acc",null,"v) NPW - Cell 25",0]
["Sch V(L)","Segregated Acc",null,"Total Assets - Gen Acc.",0]
["Sch V(L)","Segregated Acc",null,"Total Liabilities - Gen Acc.",0]
["Sch V(L)","Segregated Acc",null,"Statutory Surplus - Gen Acc.",0]
["Sch V(L)","Segregated Acc",null,"Statutory Capital - Gen Acc.",0]
["Sch V(L)","Segregated Acc",null,"Net Income - Gen Acc.",0]
["Sch V(L)","Segregated Acc",null,"Cash  - Gen Acc.",0]
["Sch V(L)","Segregated Acc",null,"Quoted: Bonds and Debentures - Gen Acc.",0]
["Sch V(L)","Segregated Acc",null,"Quoted: Equites - Gen Acc.",0]
["Sch V(L)","Segregated Acc",null,"Quoted: Other  - Gen Acc.",0]
["Sch V(L)","Segregated Acc",null,"Unquoted: Bonds and Debentures - Gen Acc.",0]
["Sch V(L)","Segregated Acc",null,"Unquoted: Equities - Gen Acc.",0]
["Sch V(L)","Segregated Acc",null,"Unquoted: Other - Gen Acc.",0]
["Sch V(L)","Segregated Acc",null,"Due from Affiliates - Gen Acc.",0]
["Sch V(L)","Segregated Acc",null,"Due to Affiliates - Gen Acc.",0]
["Sch V(L)","Segregated Acc",null,"Net Loss & Loss Expense Provisions - Gen Acc.",0]
["Sch V(L)","Segregated Acc",null,"Prior Year loss reserve development - Gen Acc.",0]
["Sch V(L)","Segregated Acc",null,"Reinsurance Recoverable Balance - Gen Acc.",0]
["Sch V(L)","Segregated Acc",null,"i) Statutory Line of Business - Gen Acc.","Select Line of Business"]
["Sch V(L)","Segregated Acc",null,"i) GPW - Gen Acc.",0]
["Sch V(L)","Segregated Acc",null,"i) Premiums Ceded - Gen Acc.",0]
["Sch V(L)","Segregated Acc",null,"i) NPW - Gen Acc.",0]
["Sch V(L)","Segregated Acc",null,"ii) Statutory Line of Business - Gen Acc.","Select Line of Business"]
["Sch V(L)","Segregated Acc",null,"ii) GPW - Gen Acc.",0]
["Sch V(L)","Segregated Acc",null,"ii) Premiums Ceded - Gen Acc.",0]
["Sch V(L)","Segregated Acc",null,"ii) NPW - Gen Acc.",0]
["Sch V(L)","Segregated Acc",null,"iii) Statutory Line of Business - Gen Acc.","Select Line of Business"]
["Sch V(L)","Segregated Acc",null,"iii) GPW - Gen Acc.",0]
["Sch V(L)","Segregated Acc",null,"iii) Premiums Ceded - Gen Acc.",0]
["Sch V(L)","Segregated Acc",null,"iii) NPW - Gen Acc.",0]
["Sch V(L)","Segregated Acc",null,"iv) Statutory Line of Business - Gen Acc.","Select Line of Business"]
["Sch V(L)","Segregated Acc",null,"iv) GPW - Gen Acc.",0]
["Sch V(L)","Segregated Acc",null,"iv) Premiums Ceded - Gen Acc.",0]
["Sch V(L)","Segregated Acc",null,"iv) NPW - Gen Acc.",0]
["Sch V(L)","Segregated Acc",null,"v) Statutory Line of Business - Gen Acc.","Select Line of Business"]
["Sch V(L)","Segregated Acc",null,"v) GPW - Gen Acc.",0]
["Sch V(L)","Segregated Acc",null,"v) Premiums Ceded - Gen Acc.",0]
["Sch V(L)","Segregated Acc",null,"v) NPW - Gen Acc.",0]
["Sch V(L)","Segregated Acc",null,"Comment on Statutory Asset Difference",0]
["Sch V(L)","Segregated Acc",null,"Comment on Statutory Liability Difference",0]
["Sch V(L)","Segregated Acc",null,"Comment on Statutory Capital & Surplus Difference",0]
[]
["Sch V(m)","Alternative Capital",null,"Structure of Insurer","Select from Drop Down"]
["Sch V(m)","Alternative Capital",null,"Number of Rows",0]
["Sch V(m)","Alternative Capital",null,"Name of Cedant - 1",0]
["Sch V(m)","Alternative Capital",null,"Name of Cedant - 2",0]
["Sch V(m)","Alternative Capital",null,"Name of Cedant - 3",0]
["Sch V(m)","Alternative Capital",null,"Name of Cedant - 4",0]
["Sch V(m)","Alternative Capital",null,"Name of Cedant - 5",0]
["Sch V(m)","Alternative Capital",null,"Name of Cedant - 6",0]
["Sch V(m)","Alternative Capital",null,"Name of Cedant - 7",0]
["Sch V(m)","Alternative Capital",null,"Name of Cedant - 8",0]
["Sch V(m)","Alternative Capital",null,"Name of Cedant - 9",0]
["Sch V(m)","Alternative Capital",null,"Name of Cedant - 10",0]
["Sch V(m)","Alternative Capital",null,"Name of Cedant - 11",0]
["Sch V(m)","Alternative Capital",null,"Name of Cedant - 12",0]
["Sch V(m)","Alternative Capital",null,"Name of Cedant - 13",0]
["Sch V(m)","Alternative Capital",null,"Name of Cedant - 14",0]
["Sch V(m)","Alternative Capital",null,"Name of Cedant - 15",0]
["Sch V(m)","Alternative Capital",null,"Name of Cedant - 16",0]
["Sch V(m)","Alternative Capital",null,"Name of Cedant - 17",0]
["Sch V(m)","Alternative Capital",null,"Name of Cedant - 18",0]
["Sch V(m)","Alternative Capital",null,"Name of Cedant - 19",0]
["Sch V(m)","Alternative Capital",null,"Name of Cedant - 20",0]
["Sch V(m)","Alternative Capital",null,"Name of Cedant - 21",0]
["Sch V(m)","Alternative Capital",null,"Name of Cedant - 22",0]
["Sch V(m)","Alternative Capital",null,"Name of Cedant - 23",0]
["Sch V(m)","Alternative Capital",null,"Name of Cedant - 24",0]
["Sch V(m)","Alternative Capital",null,"Name of Cedant - 25",0]
["Sch V(m)","Alternative Capital",null,"Contract Reference - 1",0]
["Sch V(m)","Alternative Capital",null,"Contract Reference - 2",0]
["Sch V(m)","Alternative Capital",null,"Contract Reference - 3",0]
["Sch V(m)","Alternative Capital",null,"Contract Reference - 4",0]
["Sch V(m)","Alternative Capital",null,"Contract Reference - 5",0]
["Sch V(m)","Alternative Capital",null,"Contract Reference - 6",0]
["Sch V(m)","Alternative Capital",null,"Contract Reference - 7",0]
["Sch V(m)","Alternative Capital",null,"Contract Reference - 8",0]
["Sch V(m)","Alternative Capital",null,"Contract Reference - 9",0]
["Sch V(m)","Alternative Capital",null,"Contract Reference - 10",0]
["Sch V(m)","Alternative Capital",null,"Contract Reference - 11",0]
["Sch V(m)","Alternative Capital",null,"Contract Reference - 12",0]
["Sch V(m)","Alternative Capital",null,"Contract Reference - 13",0]
["Sch V(m)","Alternative Capital",null,"Contract Reference - 14",0]
["Sch V(m)","Alternative Capital",null,"Contract Reference - 15",0]
["Sch V(m)","Alternative Capital",null,"Contract Reference - 16",0]
["Sch V(m)","Alternative Capital",null,"Contract Reference - 17",0]
["Sch V(m)","Alternative Capital",null,"Contract Reference - 18",0]
["Sch V(m)","Alternative Capital",null,"Contract Reference - 19",0]
["Sch V(m)","Alternative Capital",null,"Contract Reference - 20",0]
["Sch V(m)","Alternative Capital",null,"Contract Reference - 21",0]
["Sch V(m)","Alternative Capital",null,"Contract Reference - 22",0]
["Sch V(m)","Alternative Capital",null,"Contract Reference - 23",0]
["Sch V(m)","Alternative Capital",null,"Contract Reference - 24",0]
["Sch V(m)","Alternative Capital",null,"Contract Reference - 25",0]
["Sch V(m)","Alternative Capital",null,"Type of Coverage - 1","Select from Drop Down"]
["Sch V(m)","Alternative Capital",null,"Type of Coverage - 2","Select from Drop Down"]
["Sch V(m)","Alternative Capital",null,"Type of Coverage - 3","Select from Drop Down"]
["Sch V(m)","Alternative Capital",null,"Type of Coverage - 4","Select from Drop Down"]
["Sch V(m)","Alternative Capital",null,"Type of Coverage - 5","Select from Drop Down"]
["Sch V(m)","Alternative Capital",null,"Type of Coverage - 6","Select from Drop Down"]
["Sch V(m)","Alternative Capital",null,"Type of Coverage - 7","Select from Drop Down"]
["Sch V(m)","Alternative Capital",null,"Type of Coverage - 8","Select from Drop Down"]
["Sch V(m)","Alternative Capital",null,"Type of Coverage - 9","Select from Drop Down"]
["Sch V(m)","Alternative Capital",null,"Type of Coverage - 10","Select from Drop Down"]
["Sch V(m)","Alternative Capital",null,"Type of Coverage - 11","Select from Drop Down"]
["Sch V(m)","Alternative Capital",null,"Type of Coverage - 12","Select from Drop Down"]
["Sch V(m)","Alternative Capital",null,"Type of Coverage - 13","Select from Drop Down"]
["Sch V(m)","Alternative Capital",null,"Type of Coverage - 14","Select from Drop Down"]
["Sch V(m)","Alternative Capital",null,"Type of Coverage - 15","Select from Drop Down"]
["Sch V(m)","Alternative Capital",null,"Type of Coverage - 16","Select from Drop Down"]
["Sch V(m)","Alternative Capital",null,"Type of Coverage - 17","Select from Drop Down"]
["Sch V(m)","Alternative Capital",null,"Type of Coverage - 18","Select from Drop Down"]
["Sch V(m)","Alternative Capital",null,"Type of Coverage - 19","Select from Drop Down"]
["Sch V(m)","Alternative Capital",null,"Type of Coverage - 20","Select from Drop Down"]
["Sch V(m)","Alternative Capital",null,"Type of Coverage - 21","Select from Drop Down"]
["Sch V(m)","Alternative Capital",null,"Type of Coverage - 22","Select from Drop Down"]
["Sch V(m)","Alternative Capital",null,"Type of Coverage - 23","Select from Drop Down"]
["Sch V(m)","Alternative Capital",null,"Type of Coverage - 24","Select from Drop Down"]
["Sch V(m)","Alternative Capital",null,"Type of Coverage - 25","Select from Drop Down"]
["Sch V(m)","Alternative Capital",null,"Statutory Line of Business - 1","Select from Drop Down"]
["Sch V(m)","Alternative Capital",null,"Statutory Line of Business - 2","Select from Drop Down"]
["Sch V(m)","Alternative Capital",null,"Statutory Line of Business - 3","Select from Drop Down"]
["Sch V(m)","Alternative Capital",null,"Statutory Line of Business - 4","Select from Drop Down"]
["Sch V(m)","Alternative Capital",null,"Statutory Line of Business - 5","Select from Drop Down"]
["Sch V(m)","Alternative Capital",null,"Statutory Line of Business - 6","Select from Drop Down"]
["Sch V(m)","Alternative Capital",null,"Statutory Line of Business - 7","Select from Drop Down"]
["Sch V(m)","Alternative Capital",null,"Statutory Line of Business - 8","Select from Drop Down"]
["Sch V(m)","Alternative Capital",null,"Statutory Line of Business - 9","Select from Drop Down"]
["Sch V(m)","Alternative Capital",null,"Statutory Line of Business - 10","Select from Drop Down"]
["Sch V(m)","Alternative Capital",null,"Statutory Line of Business - 11","Select from Drop Down"]
["Sch V(m)","Alternative Capital",null,"Statutory Line of Business - 12","Select from Drop Down"]
["Sch V(m)","Alternative Capital",null,"Statutory Line of Business - 13","Select from Drop Down"]
["Sch V(m)","Alternative Capital",null,"Statutory Line of Business - 14","Select from Drop Down"]
["Sch V(m)","Alternative Capital",null,"Statutory Line of Business - 15","Select from Drop Down"]
["Sch V(m)","Alternative Capital",null,"Statutory Line of Business - 16","Select from Drop Down"]
["Sch V(m)","Alternative Capital",null,"Statutory Line of Business - 17","Select from Drop Down"]
["Sch V(m)","Alternative Capital",null,"Statutory Line of Business - 18","Select from Drop Down"]
["Sch V(m)","Alternative Capital",null,"Statutory Line of Business - 19","Select from Drop Down"]
["Sch V(m)","Alternative Capital",null,"Statutory Line of Business - 20","Select from Drop Down"]
["Sch V(m)","Alternative Capital",null,"Statutory Line of Business - 21","Select from Drop Down"]
["Sch V(m)","Alternative Capital",null,"Statutory Line of Business - 22","Select from Drop Down"]
["Sch V(m)","Alternative Capital",null,"Statutory Line of Business - 23","Select from Drop Down"]
["Sch V(m)","Alternative Capital",null,"Statutory Line of Business - 24","Select from Drop Down"]
["Sch V(m)","Alternative Capital",null,"Statutory Line of Business - 25","Select from Drop Down"]
["Sch V(m)","Alternative Capital",null,"Location of Coverage - 1","Select from Drop Down"]
["Sch V(m)","Alternative Capital",null,"Location of Coverage - 2","Select from Drop Down"]
["Sch V(m)","Alternative Capital",null,"Location of Coverage - 3","Select from Drop Down"]
["Sch V(m)","Alternative Capital",null,"Location of Coverage - 4","Select from Drop Down"]
["Sch V(m)","Alternative Capital",null,"Location of Coverage - 5","Select from Drop Down"]
["Sch V(m)","Alternative Capital",null,"Location of Coverage - 6","Select from Drop Down"]
["Sch V(m)","Alternative Capital",null,"Location of Coverage - 7","Select from Drop Down"]
["Sch V(m)","Alternative Capital",null,"Location of Coverage - 8","Select from Drop Down"]
["Sch V(m)","Alternative Capital",null,"Location of Coverage - 9","Select from Drop Down"]
["Sch V(m)","Alternative Capital",null,"Location of Coverage - 10","Select from Drop Down"]
["Sch V(m)","Alternative Capital",null,"Location of Coverage - 11","Select from Drop Down"]
["Sch V(m)","Alternative Capital",null,"Location of Coverage - 12","Select from Drop Down"]
["Sch V(m)","Alternative Capital",null,"Location of Coverage - 13","Select from Drop Down"]
["Sch V(m)","Alternative Capital",null,"Location of Coverage - 14","Select from Drop Down"]
["Sch V(m)","Alternative Capital",null,"Location of Coverage - 15","Select from Drop Down"]
["Sch V(m)","Alternative Capital",null,"Location of Coverage - 16","Select from Drop Down"]
["Sch V(m)","Alternative Capital",null,"Location of Coverage - 17","Select from Drop Down"]
["Sch V(m)","Alternative Capital",null,"Location of Coverage - 18","Select from Drop Down"]
["Sch V(m)","Alternative Capital",null,"Location of Coverage - 19","Select from Drop Down"]
["Sch V(m)","Alternative Capital",null,"Location of Coverage - 20","Select from Drop Down"]
["Sch V(m)","Alternative Capital",null,"Location of Coverage - 21","Select from Drop Down"]
["Sch V(m)","Alternative Capital",null,"Location of Coverage - 22","Select from Drop Down"]
["Sch V(m)","Alternative Capital",null,"Location of Coverage - 23","Select from Drop Down"]
["Sch V(m)","Alternative Capital",null,"Location of Coverage - 24","Select from Drop Down"]
["Sch V(m)","Alternative Capital",null,"Location of Coverage - 25","Select from Drop Down"]
["Sch V(m)","Alternative Capital",null,"Agg. Max. Limit at Inception - 1",0]
["Sch V(m)","Alternative Capital",null,"Agg. Max. Limit at Inception - 2",0]
["Sch V(m)","Alternative Capital",null,"Agg. Max. Limit at Inception - 3",0]
["Sch V(m)","Alternative Capital",null,"Agg. Max. Limit at Inception - 4",0]
["Sch V(m)","Alternative Capital",null,"Agg. Max. Limit at Inception - 5",0]
["Sch V(m)","Alternative Capital",null,"Agg. Max. Limit at Inception - 6",0]
["Sch V(m)","Alternative Capital",null,"Agg. Max. Limit at Inception - 7",0]
["Sch V(m)","Alternative Capital",null,"Agg. Max. Limit at Inception - 8",0]
["Sch V(m)","Alternative Capital",null,"Agg. Max. Limit at Inception - 9",0]
["Sch V(m)","Alternative Capital",null,"Agg. Max. Limit at Inception - 10",0]
["Sch V(m)","Alternative Capital",null,"Agg. Max. Limit at Inception - 11",0]
["Sch V(m)","Alternative Capital",null,"Agg. Max. Limit at Inception - 12",0]
["Sch V(m)","Alternative Capital",null,"Agg. Max. Limit at Inception - 13",0]
["Sch V(m)","Alternative Capital",null,"Agg. Max. Limit at Inception - 14",0]
["Sch V(m)","Alternative Capital",null,"Agg. Max. Limit at Inception - 15",0]
["Sch V(m)","Alternative Capital",null,"Agg. Max. Limit at Inception - 16",0]
["Sch V(m)","Alternative Capital",null,"Agg. Max. Limit at Inception - 17",0]
["Sch V(m)","Alternative Capital",null,"Agg. Max. Limit at Inception - 18",0]
["Sch V(m)","Alternative Capital",null,"Agg. Max. Limit at Inception - 19",0]
["Sch V(m)","Alternative Capital",null,"Agg. Max. Limit at Inception - 20",0]
["Sch V(m)","Alternative Capital",null,"Agg. Max. Limit at Inception - 21",0]
["Sch V(m)","Alternative Capital",null,"Agg. Max. Limit at Inception - 22",0]
["Sch V(m)","Alternative Capital",null,"Agg. Max. Limit at Inception - 23",0]
["Sch V(m)","Alternative Capital",null,"Agg. Max. Limit at Inception - 24",0]
["Sch V(m)","Alternative Capital",null,"Agg. Max. Limit at Inception - 25",0]
["Sch V(m)","Alternative Capital",null,"Agg. Max. Limit at Inception - Total",0]
["Sch V(m)","Alternative Capital",null,"Net Agg. Max. Limit at End of Year - 1",0]
["Sch V(m)","Alternative Capital",null,"Net Agg. Max. Limit at End of Year - 2",0]
["Sch V(m)","Alternative Capital",null,"Net Agg. Max. Limit at End of Year - 3",0]
["Sch V(m)","Alternative Capital",null,"Net Agg. Max. Limit at End of Year - 4",0]
["Sch V(m)","Alternative Capital",null,"Net Agg. Max. Limit at End of Year - 5",0]
["Sch V(m)","Alternative Capital",null,"Net Agg. Max. Limit at End of Year - 6",0]
["Sch V(m)","Alternative Capital",null,"Net Agg. Max. Limit at End of Year - 7",0]
["Sch V(m)","Alternative Capital",null,"Net Agg. Max. Limit at End of Year - 8",0]
["Sch V(m)","Alternative Capital",null,"Net Agg. Max. Limit at End of Year - 9",0]
["Sch V(m)","Alternative Capital",null,"Net Agg. Max. Limit at End of Year - 10",0]
["Sch V(m)","Alternative Capital",null,"Net Agg. Max. Limit at End of Year - 11",0]
["Sch V(m)","Alternative Capital",null,"Net Agg. Max. Limit at End of Year - 12",0]
["Sch V(m)","Alternative Capital",null,"Net Agg. Max. Limit at End of Year - 13",0]
["Sch V(m)","Alternative Capital",null,"Net Agg. Max. Limit at End of Year - 14",0]
["Sch V(m)","Alternative Capital",null,"Net Agg. Max. Limit at End of Year - 15",0]
["Sch V(m)","Alternative Capital",null,"Net Agg. Max. Limit at End of Year - 16",0]
["Sch V(m)","Alternative Capital",null,"Net Agg. Max. Limit at End of Year - 17",0]
["Sch V(m)","Alternative Capital",null,"Net Agg. Max. Limit at End of Year - 18",0]
["Sch V(m)","Alternative Capital",null,"Net Agg. Max. Limit at End of Year - 19",0]
["Sch V(m)","Alternative Capital",null,"Net Agg. Max. Limit at End of Year - 20",0]
["Sch V(m)","Alternative Capital",null,"Net Agg. Max. Limit at End of Year - 21",0]
["Sch V(m)","Alternative Capital",null,"Net Agg. Max. Limit at End of Year - 22",0]
["Sch V(m)","Alternative Capital",null,"Net Agg. Max. Limit at End of Year - 23",0]
["Sch V(m)","Alternative Capital",null,"Net Agg. Max. Limit at End of Year - 24",0]
["Sch V(m)","Alternative Capital",null,"Net Agg. Max. Limit at End of Year - 25",0]
["Sch V(m)","Alternative Capital",null,"Net Agg. Max. Limit at End of Year - Total",0]
["Sch V(m)","Alternative Capital",null,"Inception Date of Cover Period - 1","00:00:00"]
["Sch V(m)","Alternative Capital",null,"Inception Date of Cover Period - 2","00:00:00"]
["Sch V(m)","Alternative Capital",null,"Inception Date of Cover Period - 3","00:00:00"]
["Sch V(m)","Alternative Capital",null,"Inception Date of Cover Period - 4","00:00:00"]
["Sch V(m)","Alternative Capital",null,"Inception Date of Cover Period - 5","00:00:00"]
["Sch V(m)","Alternative Capital",null,"Inception Date of Cover Period - 6","00:00:00"]
["Sch V(m)","Alternative Capital",null,"Inception Date of Cover Period - 7","00:00:00"]
["Sch V(m)","Alternative Capital",null,"Inception Date of Cover Period - 8","00:00:00"]
["Sch V(m)","Alternative Capital",null,"Inception Date of Cover Period - 9","00:00:00"]
["Sch V(m)","Alternative Capital",null,"Inception Date of Cover Period - 10","00:00:00"]
["Sch V(m)","Alternative Capital",null,"Inception Date of Cover Period - 11","00:00:00"]
["Sch V(m)","Alternative Capital",null,"Inception Date of Cover Period - 12","00:00:00"]
["Sch V(m)","Alternative Capital",null,"Inception Date of Cover Period - 13","00:00:00"]
["Sch V(m)","Alternative Capital",null,"Inception Date of Cover Period - 14","00:00:00"]
["Sch V(m)","Alternative Capital",null,"Inception Date of Cover Period - 15","00:00:00"]
["Sch V(m)","Alternative Capital",null,"Inception Date of Cover Period - 16","00:00:00"]
["Sch V(m)","Alternative Capital",null,"Inception Date of Cover Period - 17","00:00:00"]
["Sch V(m)","Alternative Capital",null,"Inception Date of Cover Period - 18","00:00:00"]
["Sch V(m)","Alternative Capital",null,"Inception Date of Cover Period - 19","00:00:00"]
["Sch V(m)","Alternative Capital",null,"Inception Date of Cover Period - 20","00:00:00"]
["Sch V(m)","Alternative Capital",null,"Inception Date of Cover Period - 21","00:00:00"]
["Sch V(m)","Alternative Capital",null,"Inception Date of Cover Period - 22","00:00:00"]
["Sch V(m)","Alternative Capital",null,"Inception Date of Cover Period - 23","00:00:00"]
["Sch V(m)","Alternative Capital",null,"Inception Date of Cover Period - 24","00:00:00"]
["Sch V(m)","Alternative Capital",null,"Inception Date of Cover Period - 25","00:00:00"]
["Sch V(m)","Alternative Capital",null,"Effective Date of Contract - 1","00:00:00"]
["Sch V(m)","Alternative Capital",null,"Effective Date of Contract - 2","00:00:00"]
["Sch V(m)","Alternative Capital",null,"Effective Date of Contract - 3","00:00:00"]
["Sch V(m)","Alternative Capital",null,"Effective Date of Contract - 4","00:00:00"]
["Sch V(m)","Alternative Capital",null,"Effective Date of Contract - 5","00:00:00"]
["Sch V(m)","Alternative Capital",null,"Effective Date of Contract - 6","00:00:00"]
["Sch V(m)","Alternative Capital",null,"Effective Date of Contract - 7","00:00:00"]
["Sch V(m)","Alternative Capital",null,"Effective Date of Contract - 8","00:00:00"]
["Sch V(m)","Alternative Capital",null,"Effective Date of Contract - 9","00:00:00"]
["Sch V(m)","Alternative Capital",null,"Effective Date of Contract - 10","00:00:00"]
["Sch V(m)","Alternative Capital",null,"Effective Date of Contract - 11","00:00:00"]
["Sch V(m)","Alternative Capital",null,"Effective Date of Contract - 12","00:00:00"]
["Sch V(m)","Alternative Capital",null,"Effective Date of Contract - 13","00:00:00"]
["Sch V(m)","Alternative Capital",null,"Effective Date of Contract - 14","00:00:00"]
["Sch V(m)","Alternative Capital",null,"Effective Date of Contract - 15","00:00:00"]
["Sch V(m)","Alternative Capital",null,"Effective Date of Contract - 16","00:00:00"]
["Sch V(m)","Alternative Capital",null,"Effective Date of Contract - 17","00:00:00"]
["Sch V(m)","Alternative Capital",null,"Effective Date of Contract - 18","00:00:00"]
["Sch V(m)","Alternative Capital",null,"Effective Date of Contract - 19","00:00:00"]
["Sch V(m)","Alternative Capital",null,"Effective Date of Contract - 20","00:00:00"]
["Sch V(m)","Alternative Capital",null,"Effective Date of Contract - 21","00:00:00"]
["Sch V(m)","Alternative Capital",null,"Effective Date of Contract - 22","00:00:00"]
["Sch V(m)","Alternative Capital",null,"Effective Date of Contract - 23","00:00:00"]
["Sch V(m)","Alternative Capital",null,"Effective Date of Contract - 24","00:00:00"]
["Sch V(m)","Alternative Capital",null,"Effective Date of Contract - 25","00:00:00"]
["Sch V(m)","Alternative Capital",null,"Expiry Date of Cover - 1","00:00:00"]
["Sch V(m)","Alternative Capital",null,"Expiry Date of Cover - 2","00:00:00"]
["Sch V(m)","Alternative Capital",null,"Expiry Date of Cover - 3","00:00:00"]
["Sch V(m)","Alternative Capital",null,"Expiry Date of Cover - 4","00:00:00"]
["Sch V(m)","Alternative Capital",null,"Expiry Date of Cover - 5","00:00:00"]
["Sch V(m)","Alternative Capital",null,"Expiry Date of Cover - 6","00:00:00"]
["Sch V(m)","Alternative Capital",null,"Expiry Date of Cover - 7","00:00:00"]
["Sch V(m)","Alternative Capital",null,"Expiry Date of Cover - 8","00:00:00"]
["Sch V(m)","Alternative Capital",null,"Expiry Date of Cover - 9","00:00:00"]
["Sch V(m)","Alternative Capital",null,"Expiry Date of Cover - 10","00:00:00"]
["Sch V(m)","Alternative Capital",null,"Expiry Date of Cover - 11","00:00:00"]
["Sch V(m)","Alternative Capital",null,"Expiry Date of Cover - 12","00:00:00"]
["Sch V(m)","Alternative Capital",null,"Expiry Date of Cover - 13","00:00:00"]
["Sch V(m)","Alternative Capital",null,"Expiry Date of Cover - 14","00:00:00"]
["Sch V(m)","Alternative Capital",null,"Expiry Date of Cover - 15","00:00:00"]
["Sch V(m)","Alternative Capital",null,"Expiry Date of Cover - 16","00:00:00"]
["Sch V(m)","Alternative Capital",null,"Expiry Date of Cover - 17","00:00:00"]
["Sch V(m)","Alternative Capital",null,"Expiry Date of Cover - 18","00:00:00"]
["Sch V(m)","Alternative Capital",null,"Expiry Date of Cover - 19","00:00:00"]
["Sch V(m)","Alternative Capital",null,"Expiry Date of Cover - 20","00:00:00"]
["Sch V(m)","Alternative Capital",null,"Expiry Date of Cover - 21","00:00:00"]
["Sch V(m)","Alternative Capital",null,"Expiry Date of Cover - 22","00:00:00"]
["Sch V(m)","Alternative Capital",null,"Expiry Date of Cover - 23","00:00:00"]
["Sch V(m)","Alternative Capital",null,"Expiry Date of Cover - 24","00:00:00"]
["Sch V(m)","Alternative Capital",null,"Expiry Date of Cover - 25","00:00:00"]
["Sch V(m)","Alternative Capital",null,"Cover Period GPW - 1",0]
["Sch V(m)","Alternative Capital",null,"Cover Period GPW - 2",0]
["Sch V(m)","Alternative Capital",null,"Cover Period GPW - 3",0]
["Sch V(m)","Alternative Capital",null,"Cover Period GPW - 4",0]
["Sch V(m)","Alternative Capital",null,"Cover Period GPW - 5",0]
["Sch V(m)","Alternative Capital",null,"Cover Period GPW - 6",0]
["Sch V(m)","Alternative Capital",null,"Cover Period GPW - 7",0]
["Sch V(m)","Alternative Capital",null,"Cover Period GPW - 8",0]
["Sch V(m)","Alternative Capital",null,"Cover Period GPW - 9",0]
["Sch V(m)","Alternative Capital",null,"Cover Period GPW - 10",0]
["Sch V(m)","Alternative Capital",null,"Cover Period GPW - 11",0]
["Sch V(m)","Alternative Capital",null,"Cover Period GPW - 12",0]
["Sch V(m)","Alternative Capital",null,"Cover Period GPW - 13",0]
["Sch V(m)","Alternative Capital",null,"Cover Period GPW - 14",0]
["Sch V(m)","Alternative Capital",null,"Cover Period GPW - 15",0]
["Sch V(m)","Alternative Capital",null,"Cover Period GPW - 16",0]
["Sch V(m)","Alternative Capital",null,"Cover Period GPW - 17",0]
["Sch V(m)","Alternative Capital",null,"Cover Period GPW - 18",0]
["Sch V(m)","Alternative Capital",null,"Cover Period GPW - 19",0]
["Sch V(m)","Alternative Capital",null,"Cover Period GPW - 20",0]
["Sch V(m)","Alternative Capital",null,"Cover Period GPW - 21",0]
["Sch V(m)","Alternative Capital",null,"Cover Period GPW - 22",0]
["Sch V(m)","Alternative Capital",null,"Cover Period GPW - 23",0]
["Sch V(m)","Alternative Capital",null,"Cover Period GPW - 24",0]
["Sch V(m)","Alternative Capital",null,"Cover Period GPW - 25",0]
["Sch V(m)","Alternative Capital",null,"Cover Period GPW - Total",0]
["Sch V(m)","Alternative Capital",null,"Cover Period NPW - 1",0]
["Sch V(m)","Alternative Capital",null,"Cover Period NPW - 2",0]
["Sch V(m)","Alternative Capital",null,"Cover Period NPW - 3",0]
["Sch V(m)","Alternative Capital",null,"Cover Period NPW - 4",0]
["Sch V(m)","Alternative Capital",null,"Cover Period NPW - 5",0]
["Sch V(m)","Alternative Capital",null,"Cover Period NPW - 6",0]
["Sch V(m)","Alternative Capital",null,"Cover Period NPW - 7",0]
["Sch V(m)","Alternative Capital",null,"Cover Period NPW - 8",0]
["Sch V(m)","Alternative Capital",null,"Cover Period NPW - 9",0]
["Sch V(m)","Alternative Capital",null,"Cover Period NPW - 10",0]
["Sch V(m)","Alternative Capital",null,"Cover Period NPW - 11",0]
["Sch V(m)","Alternative Capital",null,"Cover Period NPW - 12",0]
["Sch V(m)","Alternative Capital",null,"Cover Period NPW - 13",0]
["Sch V(m)","Alternative Capital",null,"Cover Period NPW - 14",0]
["Sch V(m)","Alternative Capital",null,"Cover Period NPW - 15",0]
["Sch V(m)","Alternative Capital",null,"Cover Period NPW - 16",0]
["Sch V(m)","Alternative Capital",null,"Cover Period NPW - 17",0]
["Sch V(m)","Alternative Capital",null,"Cover Period NPW - 18",0]
["Sch V(m)","Alternative Capital",null,"Cover Period NPW - 19",0]
["Sch V(m)","Alternative Capital",null,"Cover Period NPW - 20",0]
["Sch V(m)","Alternative Capital",null,"Cover Period NPW - 21",0]
["Sch V(m)","Alternative Capital",null,"Cover Period NPW - 22",0]
["Sch V(m)","Alternative Capital",null,"Cover Period NPW - 23",0]
["Sch V(m)","Alternative Capital",null,"Cover Period NPW - 24",0]
["Sch V(m)","Alternative Capital",null,"Cover Period NPW - 25",0]
["Sch V(m)","Alternative Capital",null,"Cover Period NPW - Total",0]
["Sch V(m)","Alternative Capital",null,"Attachment Point - 1",0]
["Sch V(m)","Alternative Capital",null,"Attachment Point - 2",0]
["Sch V(m)","Alternative Capital",null,"Attachment Point - 3",0]
["Sch V(m)","Alternative Capital",null,"Attachment Point - 4",0]
["Sch V(m)","Alternative Capital",null,"Attachment Point - 5",0]
["Sch V(m)","Alternative Capital",null,"Attachment Point - 6",0]
["Sch V(m)","Alternative Capital",null,"Attachment Point - 7",0]
["Sch V(m)","Alternative Capital",null,"Attachment Point - 8",0]
["Sch V(m)","Alternative Capital",null,"Attachment Point - 9",0]
["Sch V(m)","Alternative Capital",null,"Attachment Point - 10",0]
["Sch V(m)","Alternative Capital",null,"Attachment Point - 11",0]
["Sch V(m)","Alternative Capital",null,"Attachment Point - 12",0]
["Sch V(m)","Alternative Capital",null,"Attachment Point - 13",0]
["Sch V(m)","Alternative Capital",null,"Attachment Point - 14",0]
["Sch V(m)","Alternative Capital",null,"Attachment Point - 15",0]
["Sch V(m)","Alternative Capital",null,"Attachment Point - 16",0]
["Sch V(m)","Alternative Capital",null,"Attachment Point - 17",0]
["Sch V(m)","Alternative Capital",null,"Attachment Point - 18",0]
["Sch V(m)","Alternative Capital",null,"Attachment Point - 19",0]
["Sch V(m)","Alternative Capital",null,"Attachment Point - 20",0]
["Sch V(m)","Alternative Capital",null,"Attachment Point - 21",0]
["Sch V(m)","Alternative Capital",null,"Attachment Point - 22",0]
["Sch V(m)","Alternative Capital",null,"Attachment Point - 23",0]
["Sch V(m)","Alternative Capital",null,"Attachment Point - 24",0]
["Sch V(m)","Alternative Capital",null,"Attachment Point - 25",0]
["Sch V(m)","Alternative Capital",null,"Attachment Point - Total",0]
["Sch V(m)","Alternative Capital",null,"Aggregate Losses Beg. Of Year - 1",0]
["Sch V(m)","Alternative Capital",null,"Aggregate Losses Beg. Of Year - 2",0]
["Sch V(m)","Alternative Capital",null,"Aggregate Losses Beg. Of Year - 3",0]
["Sch V(m)","Alternative Capital",null,"Aggregate Losses Beg. Of Year - 4",0]
["Sch V(m)","Alternative Capital",null,"Aggregate Losses Beg. Of Year - 5",0]
["Sch V(m)","Alternative Capital",null,"Aggregate Losses Beg. Of Year - 6",0]
["Sch V(m)","Alternative Capital",null,"Aggregate Losses Beg. Of Year - 7",0]
["Sch V(m)","Alternative Capital",null,"Aggregate Losses Beg. Of Year - 8",0]
["Sch V(m)","Alternative Capital",null,"Aggregate Losses Beg. Of Year - 9",0]
["Sch V(m)","Alternative Capital",null,"Aggregate Losses Beg. Of Year - 10",0]
["Sch V(m)","Alternative Capital",null,"Aggregate Losses Beg. Of Year - 11",0]
["Sch V(m)","Alternative Capital",null,"Aggregate Losses Beg. Of Year - 12",0]
["Sch V(m)","Alternative Capital",null,"Aggregate Losses Beg. Of Year - 13",0]
["Sch V(m)","Alternative Capital",null,"Aggregate Losses Beg. Of Year - 14",0]
["Sch V(m)","Alternative Capital",null,"Aggregate Losses Beg. Of Year - 15",0]
["Sch V(m)","Alternative Capital",null,"Aggregate Losses Beg. Of Year - 16",0]
["Sch V(m)","Alternative Capital",null,"Aggregate Losses Beg. Of Year - 17",0]
["Sch V(m)","Alternative Capital",null,"Aggregate Losses Beg. Of Year - 18",0]
["Sch V(m)","Alternative Capital",null,"Aggregate Losses Beg. Of Year - 19",0]
["Sch V(m)","Alternative Capital",null,"Aggregate Losses Beg. Of Year - 20",0]
["Sch V(m)","Alternative Capital",null,"Aggregate Losses Beg. Of Year - 21",0]
["Sch V(m)","Alternative Capital",null,"Aggregate Losses Beg. Of Year - 22",0]
["Sch V(m)","Alternative Capital",null,"Aggregate Losses Beg. Of Year - 23",0]
["Sch V(m)","Alternative Capital",null,"Aggregate Losses Beg. Of Year - 24",0]
["Sch V(m)","Alternative Capital",null,"Aggregate Losses Beg. Of Year - 25",0]
["Sch V(m)","Alternative Capital",null,"Aggregate Losses Beg. Of Year - Total",0]
["Sch V(m)","Alternative Capital",null,"Aggregate Losses Incurred - 1",0]
["Sch V(m)","Alternative Capital",null,"Aggregate Losses Incurred - 2",0]
["Sch V(m)","Alternative Capital",null,"Aggregate Losses Incurred - 3",0]
["Sch V(m)","Alternative Capital",null,"Aggregate Losses Incurred - 4",0]
["Sch V(m)","Alternative Capital",null,"Aggregate Losses Incurred - 5",0]
["Sch V(m)","Alternative Capital",null,"Aggregate Losses Incurred - 6",0]
["Sch V(m)","Alternative Capital",null,"Aggregate Losses Incurred - 7",0]
["Sch V(m)","Alternative Capital",null,"Aggregate Losses Incurred - 8",0]
["Sch V(m)","Alternative Capital",null,"Aggregate Losses Incurred - 9",0]
["Sch V(m)","Alternative Capital",null,"Aggregate Losses Incurred - 10",0]
["Sch V(m)","Alternative Capital",null,"Aggregate Losses Incurred - 11",0]
["Sch V(m)","Alternative Capital",null,"Aggregate Losses Incurred - 12",0]
["Sch V(m)","Alternative Capital",null,"Aggregate Losses Incurred - 13",0]
["Sch V(m)","Alternative Capital",null,"Aggregate Losses Incurred - 14",0]
["Sch V(m)","Alternative Capital",null,"Aggregate Losses Incurred - 15",0]
["Sch V(m)","Alternative Capital",null,"Aggregate Losses Incurred - 16",0]
["Sch V(m)","Alternative Capital",null,"Aggregate Losses Incurred - 17",0]
["Sch V(m)","Alternative Capital",null,"Aggregate Losses Incurred - 18",0]
["Sch V(m)","Alternative Capital",null,"Aggregate Losses Incurred - 19",0]
["Sch V(m)","Alternative Capital",null,"Aggregate Losses Incurred - 20",0]
["Sch V(m)","Alternative Capital",null,"Aggregate Losses Incurred - 21",0]
["Sch V(m)","Alternative Capital",null,"Aggregate Losses Incurred - 22",0]
["Sch V(m)","Alternative Capital",null,"Aggregate Losses Incurred - 23",0]
["Sch V(m)","Alternative Capital",null,"Aggregate Losses Incurred - 24",0]
["Sch V(m)","Alternative Capital",null,"Aggregate Losses Incurred - 25",0]
["Sch V(m)","Alternative Capital",null,"Aggregate Losses Incurred - Total",0]
["Sch V(m)","Alternative Capital",null,"Aggregate Losses End Of Year - 1",0]
["Sch V(m)","Alternative Capital",null,"Aggregate Losses End Of Year - 2",0]
["Sch V(m)","Alternative Capital",null,"Aggregate Losses End Of Year - 3",0]
["Sch V(m)","Alternative Capital",null,"Aggregate Losses End Of Year - 4",0]
["Sch V(m)","Alternative Capital",null,"Aggregate Losses End Of Year - 5",0]
["Sch V(m)","Alternative Capital",null,"Aggregate Losses End Of Year - 6",0]
["Sch V(m)","Alternative Capital",null,"Aggregate Losses End Of Year - 7",0]
["Sch V(m)","Alternative Capital",null,"Aggregate Losses End Of Year - 8",0]
["Sch V(m)","Alternative Capital",null,"Aggregate Losses End Of Year - 9",0]
["Sch V(m)","Alternative Capital",null,"Aggregate Losses End Of Year - 10",0]
["Sch V(m)","Alternative Capital",null,"Aggregate Losses End Of Year - 11",0]
["Sch V(m)","Alternative Capital",null,"Aggregate Losses End Of Year - 12",0]
["Sch V(m)","Alternative Capital",null,"Aggregate Losses End Of Year - 13",0]
["Sch V(m)","Alternative Capital",null,"Aggregate Losses End Of Year - 14",0]
["Sch V(m)","Alternative Capital",null,"Aggregate Losses End Of Year - 15",0]
["Sch V(m)","Alternative Capital",null,"Aggregate Losses End Of Year - 16",0]
["Sch V(m)","Alternative Capital",null,"Aggregate Losses End Of Year - 17",0]
["Sch V(m)","Alternative Capital",null,"Aggregate Losses End Of Year - 18",0]
["Sch V(m)","Alternative Capital",null,"Aggregate Losses End Of Year - 19",0]
["Sch V(m)","Alternative Capital",null,"Aggregate Losses End Of Year - 20",0]
["Sch V(m)","Alternative Capital",null,"Aggregate Losses End Of Year - 21",0]
["Sch V(m)","Alternative Capital",null,"Aggregate Losses End Of Year - 22",0]
["Sch V(m)","Alternative Capital",null,"Aggregate Losses End Of Year - 23",0]
["Sch V(m)","Alternative Capital",null,"Aggregate Losses End Of Year - 24",0]
["Sch V(m)","Alternative Capital",null,"Aggregate Losses End Of Year - 25",0]
["Sch V(m)","Alternative Capital",null,"Aggregate Losses End Of Year - Total",0]
["Sch V(m)","Alternative Capital",null,"Collateral Reserve Buffer - 1",0]
["Sch V(m)","Alternative Capital",null,"Collateral Reserve Buffer - 2",0]
["Sch V(m)","Alternative Capital",null,"Collateral Reserve Buffer - 3",0]
["Sch V(m)","Alternative Capital",null,"Collateral Reserve Buffer - 4",0]
["Sch V(m)","Alternative Capital",null,"Collateral Reserve Buffer - 5",0]
["Sch V(m)","Alternative Capital",null,"Collateral Reserve Buffer - 6",0]
["Sch V(m)","Alternative Capital",null,"Collateral Reserve Buffer - 7",0]
["Sch V(m)","Alternative Capital",null,"Collateral Reserve Buffer - 8",0]
["Sch V(m)","Alternative Capital",null,"Collateral Reserve Buffer - 9",0]
["Sch V(m)","Alternative Capital",null,"Collateral Reserve Buffer - 10",0]
["Sch V(m)","Alternative Capital",null,"Collateral Reserve Buffer - 11",0]
["Sch V(m)","Alternative Capital",null,"Collateral Reserve Buffer - 12",0]
["Sch V(m)","Alternative Capital",null,"Collateral Reserve Buffer - 13",0]
["Sch V(m)","Alternative Capital",null,"Collateral Reserve Buffer - 14",0]
["Sch V(m)","Alternative Capital",null,"Collateral Reserve Buffer - 15",0]
["Sch V(m)","Alternative Capital",null,"Collateral Reserve Buffer - 16",0]
["Sch V(m)","Alternative Capital",null,"Collateral Reserve Buffer - 17",0]
["Sch V(m)","Alternative Capital",null,"Collateral Reserve Buffer - 18",0]
["Sch V(m)","Alternative Capital",null,"Collateral Reserve Buffer - 19",0]
["Sch V(m)","Alternative Capital",null,"Collateral Reserve Buffer - 20",0]
["Sch V(m)","Alternative Capital",null,"Collateral Reserve Buffer - 21",0]
["Sch V(m)","Alternative Capital",null,"Collateral Reserve Buffer - 22",0]
["Sch V(m)","Alternative Capital",null,"Collateral Reserve Buffer - 23",0]
["Sch V(m)","Alternative Capital",null,"Collateral Reserve Buffer - 24",0]
["Sch V(m)","Alternative Capital",null,"Collateral Reserve Buffer - 25",0]
["Sch V(m)","Alternative Capital",null,"Collateral Reserve Buffer - Total",0]
["Sch V(m)","Alternative Capital",null,"Currency of Exposure - 1","Select from Drop Down"]
["Sch V(m)","Alternative Capital",null,"Currency of Exposure - 2","Select from Drop Down"]
["Sch V(m)","Alternative Capital",null,"Currency of Exposure - 3","Select from Drop Down"]
["Sch V(m)","Alternative Capital",null,"Currency of Exposure - 4","Select from Drop Down"]
["Sch V(m)","Alternative Capital",null,"Currency of Exposure - 5","Select from Drop Down"]
["Sch V(m)","Alternative Capital",null,"Currency of Exposure - 6","Select from Drop Down"]
["Sch V(m)","Alternative Capital",null,"Currency of Exposure - 7","Select from Drop Down"]
["Sch V(m)","Alternative Capital",null,"Currency of Exposure - 8","Select from Drop Down"]
["Sch V(m)","Alternative Capital",null,"Currency of Exposure - 9","Select from Drop Down"]
["Sch V(m)","Alternative Capital",null,"Currency of Exposure - 10","Select from Drop Down"]
["Sch V(m)","Alternative Capital",null,"Currency of Exposure - 11","Select from Drop Down"]
["Sch V(m)","Alternative Capital",null,"Currency of Exposure - 12","Select from Drop Down"]
["Sch V(m)","Alternative Capital",null,"Currency of Exposure - 13","Select from Drop Down"]
["Sch V(m)","Alternative Capital",null,"Currency of Exposure - 14","Select from Drop Down"]
["Sch V(m)","Alternative Capital",null,"Currency of Exposure - 15","Select from Drop Down"]
["Sch V(m)","Alternative Capital",null,"Currency of Exposure - 16","Select from Drop Down"]
["Sch V(m)","Alternative Capital",null,"Currency of Exposure - 17","Select from Drop Down"]
["Sch V(m)","Alternative Capital",null,"Currency of Exposure - 18","Select from Drop Down"]
["Sch V(m)","Alternative Capital",null,"Currency of Exposure - 19","Select from Drop Down"]
["Sch V(m)","Alternative Capital",null,"Currency of Exposure - 20","Select from Drop Down"]
["Sch V(m)","Alternative Capital",null,"Currency of Exposure - 21","Select from Drop Down"]
["Sch V(m)","Alternative Capital",null,"Currency of Exposure - 22","Select from Drop Down"]
["Sch V(m)","Alternative Capital",null,"Currency of Exposure - 23","Select from Drop Down"]
["Sch V(m)","Alternative Capital",null,"Currency of Exposure - 24","Select from Drop Down"]
["Sch V(m)","Alternative Capital",null,"Currency of Exposure - 25","Select from Drop Down"]
["Sch V(m)","Alternative Capital",null,"Nature of Collateral - 1","Select from Drop Down"]
["Sch V(m)","Alternative Capital",null,"Nature of Collateral - 2","Select from Drop Down"]
["Sch V(m)","Alternative Capital",null,"Nature of Collateral - 3","Select from Drop Down"]
["Sch V(m)","Alternative Capital",null,"Nature of Collateral - 4","Select from Drop Down"]
["Sch V(m)","Alternative Capital",null,"Nature of Collateral - 5","Select from Drop Down"]
["Sch V(m)","Alternative Capital",null,"Nature of Collateral - 6","Select from Drop Down"]
["Sch V(m)","Alternative Capital",null,"Nature of Collateral - 7","Select from Drop Down"]
["Sch V(m)","Alternative Capital",null,"Nature of Collateral - 8","Select from Drop Down"]
["Sch V(m)","Alternative Capital",null,"Nature of Collateral - 9","Select from Drop Down"]
["Sch V(m)","Alternative Capital",null,"Nature of Collateral - 10","Select from Drop Down"]
["Sch V(m)","Alternative Capital",null,"Nature of Collateral - 11","Select from Drop Down"]
["Sch V(m)","Alternative Capital",null,"Nature of Collateral - 12","Select from Drop Down"]
["Sch V(m)","Alternative Capital",null,"Nature of Collateral - 13","Select from Drop Down"]
["Sch V(m)","Alternative Capital",null,"Nature of Collateral - 14","Select from Drop Down"]
["Sch V(m)","Alternative Capital",null,"Nature of Collateral - 15","Select from Drop Down"]
["Sch V(m)","Alternative Capital",null,"Nature of Collateral - 16","Select from Drop Down"]
["Sch V(m)","Alternative Capital",null,"Nature of Collateral - 17","Select from Drop Down"]
["Sch V(m)","Alternative Capital",null,"Nature of Collateral - 18","Select from Drop Down"]
["Sch V(m)","Alternative Capital",null,"Nature of Collateral - 19","Select from Drop Down"]
["Sch V(m)","Alternative Capital",null,"Nature of Collateral - 20","Select from Drop Down"]
["Sch V(m)","Alternative Capital",null,"Nature of Collateral - 21","Select from Drop Down"]
["Sch V(m)","Alternative Capital",null,"Nature of Collateral - 22","Select from Drop Down"]
["Sch V(m)","Alternative Capital",null,"Nature of Collateral - 23","Select from Drop Down"]
["Sch V(m)","Alternative Capital",null,"Nature of Collateral - 24","Select from Drop Down"]
["Sch V(m)","Alternative Capital",null,"Nature of Collateral - 25","Select from Drop Down"]
["Sch V(m)","Alternative Capital",null,"Collateral Rating - 1","Select from Drop Down"]
["Sch V(m)","Alternative Capital",null,"Collateral Rating - 2","Select from Drop Down"]
["Sch V(m)","Alternative Capital",null,"Collateral Rating - 3","Select from Drop Down"]
["Sch V(m)","Alternative Capital",null,"Collateral Rating - 4","Select from Drop Down"]
["Sch V(m)","Alternative Capital",null,"Collateral Rating - 5","Select from Drop Down"]
["Sch V(m)","Alternative Capital",null,"Collateral Rating - 6","Select from Drop Down"]
["Sch V(m)","Alternative Capital",null,"Collateral Rating - 7","Select from Drop Down"]
["Sch V(m)","Alternative Capital",null,"Collateral Rating - 8","Select from Drop Down"]
["Sch V(m)","Alternative Capital",null,"Collateral Rating - 9","Select from Drop Down"]
["Sch V(m)","Alternative Capital",null,"Collateral Rating - 10","Select from Drop Down"]
["Sch V(m)","Alternative Capital",null,"Collateral Rating - 11","Select from Drop Down"]
["Sch V(m)","Alternative Capital",null,"Collateral Rating - 12","Select from Drop Down"]
["Sch V(m)","Alternative Capital",null,"Collateral Rating - 13","Select from Drop Down"]
["Sch V(m)","Alternative Capital",null,"Collateral Rating - 14","Select from Drop Down"]
["Sch V(m)","Alternative Capital",null,"Collateral Rating - 15","Select from Drop Down"]
["Sch V(m)","Alternative Capital",null,"Collateral Rating - 16","Select from Drop Down"]
["Sch V(m)","Alternative Capital",null,"Collateral Rating - 17","Select from Drop Down"]
["Sch V(m)","Alternative Capital",null,"Collateral Rating - 18","Select from Drop Down"]
["Sch V(m)","Alternative Capital",null,"Collateral Rating - 19","Select from Drop Down"]
["Sch V(m)","Alternative Capital",null,"Collateral Rating - 20","Select from Drop Down"]
["Sch V(m)","Alternative Capital",null,"Collateral Rating - 21","Select from Drop Down"]
["Sch V(m)","Alternative Capital",null,"Collateral Rating - 22","Select from Drop Down"]
["Sch V(m)","Alternative Capital",null,"Collateral Rating - 23","Select from Drop Down"]
["Sch V(m)","Alternative Capital",null,"Collateral Rating - 24","Select from Drop Down"]
["Sch V(m)","Alternative Capital",null,"Collateral Rating - 25","Select from Drop Down"]
["Sch V(m)","Alternative Capital",null,"Amount of Collateral - 1",0]
["Sch V(m)","Alternative Capital",null,"Amount of Collateral - 2",0]
["Sch V(m)","Alternative Capital",null,"Amount of Collateral - 3",0]
["Sch V(m)","Alternative Capital",null,"Amount of Collateral - 4",0]
["Sch V(m)","Alternative Capital",null,"Amount of Collateral - 5",0]
["Sch V(m)","Alternative Capital",null,"Amount of Collateral - 6",0]
["Sch V(m)","Alternative Capital",null,"Amount of Collateral - 7",0]
["Sch V(m)","Alternative Capital",null,"Amount of Collateral - 8",0]
["Sch V(m)","Alternative Capital",null,"Amount of Collateral - 9",0]
["Sch V(m)","Alternative Capital",null,"Amount of Collateral - 10",0]
["Sch V(m)","Alternative Capital",null,"Amount of Collateral - 11",0]
["Sch V(m)","Alternative Capital",null,"Amount of Collateral - 12",0]
["Sch V(m)","Alternative Capital",null,"Amount of Collateral - 13",0]
["Sch V(m)","Alternative Capital",null,"Amount of Collateral - 14",0]
["Sch V(m)","Alternative Capital",null,"Amount of Collateral - 15",0]
["Sch V(m)","Alternative Capital",null,"Amount of Collateral - 16",0]
["Sch V(m)","Alternative Capital",null,"Amount of Collateral - 17",0]
["Sch V(m)","Alternative Capital",null,"Amount of Collateral - 18",0]
["Sch V(m)","Alternative Capital",null,"Amount of Collateral - 19",0]
["Sch V(m)","Alternative Capital",null,"Amount of Collateral - 20",0]
["Sch V(m)","Alternative Capital",null,"Amount of Collateral - 21",0]
["Sch V(m)","Alternative Capital",null,"Amount of Collateral - 22",0]
["Sch V(m)","Alternative Capital",null,"Amount of Collateral - 23",0]
["Sch V(m)","Alternative Capital",null,"Amount of Collateral - 24",0]
["Sch V(m)","Alternative Capital",null,"Amount of Collateral - 25",0]
["Sch V(m)","Alternative Capital",null,"Amount of Collateral - Total",0]
["Sch V(m)","Alternative Capital",null,"Comments - 1",0]
["Sch V(m)","Alternative Capital",null,"Comments - 2",0]
["Sch V(m)","Alternative Capital",null,"Comments - 3",0]
["Sch V(m)","Alternative Capital",null,"Comments - 4",0]
["Sch V(m)","Alternative Capital",null,"Comments - 5",0]
["Sch V(m)","Alternative Capital",null,"Comments - 6",0]
["Sch V(m)","Alternative Capital",null,"Comments - 7",0]
["Sch V(m)","Alternative Capital",null,"Comments - 8",0]
["Sch V(m)","Alternative Capital",null,"Comments - 9",0]
["Sch V(m)","Alternative Capital",null,"Comments - 10",0]
["Sch V(m)","Alternative Capital",null,"Comments - 11",0]
["Sch V(m)","Alternative Capital",null,"Comments - 12",0]
["Sch V(m)","Alternative Capital",null,"Comments - 13",0]
["Sch V(m)","Alternative Capital",null,"Comments - 14",0]
["Sch V(m)","Alternative Capital",null,"Comments - 15",0]
["Sch V(m)","Alternative Capital",null,"Comments - 16",0]
["Sch V(m)","Alternative Capital",null,"Comments - 17",0]
["Sch V(m)","Alternative Capital",null,"Comments - 18",0]
["Sch V(m)","Alternative Capital",null,"Comments - 19",0]
["Sch V(m)","Alternative Capital",null,"Comments - 20",0]
["Sch V(m)","Alternative Capital",null,"Comments - 21",0]
["Sch V(m)","Alternative Capital",null,"Comments - 22",0]
["Sch V(m)","Alternative Capital",null,"Comments - 23",0]
["Sch V(m)","Alternative Capital",null,"Comments - 24",0]
["Sch V(m)","Alternative Capital",null,"Comments - 25",0]
["Sch V(m)","Alternative Capital",null,"General Comments",0]
[]
["Sch VI","Fixed Income Sec",null,"1a US Gov. Federal",0,null,null,null,null,null,null,null,0]
["Sch VI","Fixed Income Sec",null,"1b US Gov. Agency - MBS",0,null,null,null,null,null,null,null,0]
["Sch VI","Fixed Income Sec",null,"1c US Gov. Agency - Other",0,null,null,null,null,null,null,null,0]
["Sch VI","Fixed Income Sec",null,"2 Non-US Government",0,null,null,null,null,null,null,null,0]
["Sch VI","Fixed Income Sec",null,"3 States, Municipalities",0,null,null,null,null,null,null,null,0]
["Sch VI","Fixed Income Sec",null,"4a Corp Sec. - US Gov. backed",0,null,null,null,null,null,null,null,0]
["Sch VI","Fixed Income Sec",null,"4b Corp Sec. - Non-US Gov. backed",0,null,null,null,null,null,null,null,0]
["Sch VI","Fixed Income Sec",null,"4c Corp Sec. - FDIC Guaranteed",0,null,null,null,null,null,null,null,0]
["Sch VI","Fixed Income Sec",null,"4d Corp Sec. - Other ",0,null,null,null,null,null,null,null,0]
["Sch VI","Fixed Income Sec",null,"5 ABS",0,null,null,null,null,null,null,null,0]
["Sch VI","Fixed Income Sec",null,"6a MBS - Resid. Subprime",0,null,null,null,null,null,null,null,0]
["Sch VI","Fixed Income Sec",null,"6b MBS - Resid. Non-subprime",0,null,null,null,null,null,null,null,0]
["Sch VI","Fixed Income Sec",null,"6c MBS - Commercial",0,null,null,null,null,null,null,null,0]
["Sch VI","Fixed Income Sec",null,"7 Mutual Funds",0,null,null,null,null,null,null,null,0]
["Sch VI","Fixed Income Sec",null,"8 Bank Loans",0,null,null,null,null,null,null,null,0]
["Sch VI","Fixed Income Sec",null,"9 Cat Bonds & ILS",0,null,null,null,null,null,null,null,0]
["Sch VI","Fixed Income Sec",null,"10 Others",0,null,null,null,null,null,null,null,0]
["Sch VI","Fixed Income Sec",null,"Total",0,null,null,null,null,null,null,null,0]
["Sch VI","Fixed Income Sec",null,"Face Value - 1a US Gov. Federal",0,null,null,null,null,null,null,null,0]
["Sch VI","Fixed Income Sec",null,"Face Value - 1b US Gov. Agency - MBS",0,null,null,null,null,null,null,null,0]
["Sch VI","Fixed Income Sec",null,"Face Value - 1c US Gov. Agency - Other",0,null,null,null,null,null,null,null,0]
["Sch VI","Fixed Income Sec",null,"Face Value - 2 Non-US Government",0,null,null,null,null,null,null,null,0]
["Sch VI","Fixed Income Sec",null,"Face Value - 3 States, Municipalities",0,null,null,null,null,null,null,null,0]
["Sch VI","Fixed Income Sec",null,"Face Value - 4a Corp Sec. - US Gov. backed",0,null,null,null,null,null,null,null,0]
["Sch VI","Fixed Income Sec",null,"Face Value - 4b Corp Sec. - Non-US Gov. backed",0,null,null,null,null,null,null,null,0]
["Sch VI","Fixed Income Sec",null,"Face Value - 4c Corp Sec. - FDIC Guaranteed",0,null,null,null,null,null,null,null,0]
["Sch VI","Fixed Income Sec",null,"Face Value - 4d Corp Sec. - Other ",0,null,null,null,null,null,null,null,0]
["Sch VI","Fixed Income Sec",null,"Face Value - 5 ABS",0,null,null,null,null,null,null,null,0]
["Sch VI","Fixed Income Sec",null,"Face Value - 6a MBS - Resid. Subprime",0,null,null,null,null,null,null,null,0]
["Sch VI","Fixed Income Sec",null,"Face Value - 6b MBS - Resid. Non-subprime",0,null,null,null,null,null,null,null,0]
["Sch VI","Fixed Income Sec",null,"Face Value - 6c MBS - Commercial",0,null,null,null,null,null,null,null,0]
["Sch VI","Fixed Income Sec",null,"Face Value - 7 Mutual Funds",0,null,null,null,null,null,null,null,0]
["Sch VI","Fixed Income Sec",null,"Face Value - 8 Bank Loans",0,null,null,null,null,null,null,null,0]
["Sch VI","Fixed Income Sec",null,"Face Value - 9 Cat Bonds & ILS",0,null,null,null,null,null,null,null,0]
["Sch VI","Fixed Income Sec",null,"Face Value - 10 Others",0,null,null,null,null,null,null,null,0]
["Sch VI","Fixed Income Sec",null,"Face Value - Total",0,null,null,null,null,null,null,null,0]
["Sch VI","Fixed Income Sec",null,"Fair Value - 1a US Gov. Federal",0,null,null,null,null,null,null,null,0]
["Sch VI","Fixed Income Sec",null,"Fair Value - 1b US Gov. Agency - MBS",0,null,null,null,null,null,null,null,0]
["Sch VI","Fixed Income Sec",null,"Fair Value - 1c US Gov. Agency - Other",0,null,null,null,null,null,null,null,0]
["Sch VI","Fixed Income Sec",null,"Fair Value - 2 Non-US Government",0,null,null,null,null,null,null,null,0]
["Sch VI","Fixed Income Sec",null,"Fair Value - 3 States, Municipalities",0,null,null,null,null,null,null,null,0]
["Sch VI","Fixed Income Sec",null,"Fair Value - 4a Corp Sec. - US Gov. backed",0,null,null,null,null,null,null,null,0]
["Sch VI","Fixed Income Sec",null,"Fair Value - 4b Corp Sec. - Non-US Gov. backed",0,null,null,null,null,null,null,null,0]
["Sch VI","Fixed Income Sec",null,"Fair Value - 4c Corp Sec. - FDIC Guaranteed",0,null,null,null,null,null,null,null,0]
["Sch VI","Fixed Income Sec",null,"Fair Value - 4d Corp Sec. - Other ",0,null,null,null,null,null,null,null,0]
["Sch VI","Fixed Income Sec",null,"Fair Value - 5 ABS",0,null,null,null,null,null,null,null,0]
["Sch VI","Fixed Income Sec",null,"Fair Value - 6a MBS - Resid. Subprime",0,null,null,null,null,null,null,null,0]
["Sch VI","Fixed Income Sec",null,"Fair Value - 6b MBS - Resid. Non-subprime",0,null,null,null,null,null,null,null,0]
["Sch VI","Fixed Income Sec",null,"Fair Value - 6c MBS - Commercial",0,null,null,null,null,null,null,null,0]
["Sch VI","Fixed Income Sec",null,"Fair Value - 7 Mutual Funds",0,null,null,null,null,null,null,null,0]
["Sch VI","Fixed Income Sec",null,"Fair Value - 8 Bank Loans",0,null,null,null,null,null,null,null,0]
["Sch VI","Fixed Income Sec",null,"Fair Value - 9 Cat Bonds & ILS",0,null,null,null,null,null,null,null,0]
["Sch VI","Fixed Income Sec",null,"Fair Value - 10 Others",0,null,null,null,null,null,null,null,0]
["Sch VI","Fixed Income Sec",null,"Fair Value - Total",0,null,null,null,null,null,null,null,0]
["Sch VI","Fixed Income Sec",null,"YTM - 1a US Gov. Federal",0,null,null,null,null,null,null,null,0]
["Sch VI","Fixed Income Sec",null,"YTM - 1b US Gov. Agency - MBS",0,null,null,null,null,null,null,null,0]
["Sch VI","Fixed Income Sec",null,"YTM - 1c US Gov. Agency - Other",0,null,null,null,null,null,null,null,0]
["Sch VI","Fixed Income Sec",null,"YTM - 2 Non-US Government",0,null,null,null,null,null,null,null,0]
["Sch VI","Fixed Income Sec",null,"YTM - 3 States, Municipalities",0,null,null,null,null,null,null,null,0]
["Sch VI","Fixed Income Sec",null,"YTM - 4a Corp Sec. - US Gov. backed",0,null,null,null,null,null,null,null,0]
["Sch VI","Fixed Income Sec",null,"YTM - 4b Corp Sec. - Non-US Gov. backed",0,null,null,null,null,null,null,null,0]
["Sch VI","Fixed Income Sec",null,"YTM - 4c Corp Sec. - FDIC Guaranteed",0,null,null,null,null,null,null,null,0]
["Sch VI","Fixed Income Sec",null,"YTM - 4d Corp Sec. - Other ",0,null,null,null,null,null,null,null,0]
["Sch VI","Fixed Income Sec",null,"YTM - 5 ABS",0,null,null,null,null,null,null,null,0]
["Sch VI","Fixed Income Sec",null,"YTM - 6a MBS - Resid. Subprime",0,null,null,null,null,null,null,null,0]
["Sch VI","Fixed Income Sec",null,"YTM - 6b MBS - Resid. Non-subprime",0,null,null,null,null,null,null,null,0]
["Sch VI","Fixed Income Sec",null,"YTM - 6c MBS - Commercial",0,null,null,null,null,null,null,null,0]
["Sch VI","Fixed Income Sec",null,"YTM - 7 Mutual Funds",0,null,null,null,null,null,null,null,0]
["Sch VI","Fixed Income Sec",null,"YTM - 8 Bank Loans",0,null,null,null,null,null,null,null,0]
["Sch VI","Fixed Income Sec",null,"YTM - 9 Cat Bonds & ILS",0,null,null,null,null,null,null,null,0]
["Sch VI","Fixed Income Sec",null,"YTM - 10 Others",0,null,null,null,null,null,null,null,0]
["Sch VI","Fixed Income Sec",null,"Rate - 1a US Gov. Federal",0,null,null,null,null,null,null,null,0]
["Sch VI","Fixed Income Sec",null,"Rate - 1b US Gov. Agency - MBS",0,null,null,null,null,null,null,null,0]
["Sch VI","Fixed Income Sec",null,"Rate - 1c US Gov. Agency - Other",0,null,null,null,null,null,null,null,0]
["Sch VI","Fixed Income Sec",null,"Rate - 2 Non-US Government",0,null,null,null,null,null,null,null,0]
["Sch VI","Fixed Income Sec",null,"Rate - 3 States, Municipalities",0,null,null,null,null,null,null,null,0]
["Sch VI","Fixed Income Sec",null,"Rate - 4a Corp Sec. - US Gov. backed",0,null,null,null,null,null,null,null,0]
["Sch VI","Fixed Income Sec",null,"Rate - 4b Corp Sec. - Non-US Gov. backed",0,null,null,null,null,null,null,null,0]
["Sch VI","Fixed Income Sec",null,"Rate - 4c Corp Sec. - FDIC Guaranteed",0,null,null,null,null,null,null,null,0]
["Sch VI","Fixed Income Sec",null,"Rate - 4d Corp Sec. - Other ",0,null,null,null,null,null,null,null,0]
["Sch VI","Fixed Income Sec",null,"Rate - 5 ABS",0,null,null,null,null,null,null,null,0]
["Sch VI","Fixed Income Sec",null,"Rate - 6a MBS - Resid. Subprime",0,null,null,null,null,null,null,null,0]
["Sch VI","Fixed Income Sec",null,"Rate - 6b MBS - Resid. Non-subprime",0,null,null,null,null,null,null,null,0]
["Sch VI","Fixed Income Sec",null,"Rate - 6c MBS - Commercial",0,null,null,null,null,null,null,null,0]
["Sch VI","Fixed Income Sec",null,"Rate - 7 Mutual Funds",0,null,null,null,null,null,null,null,0]
["Sch VI","Fixed Income Sec",null,"Rate - 8 Bank Loans",0,null,null,null,null,null,null,null,0]
["Sch VI","Fixed Income Sec",null,"Rate - 9 Cat Bonds & ILS",0,null,null,null,null,null,null,null,0]
["Sch VI","Fixed Income Sec",null,"Rate - 10 Others",0,null,null,null,null,null,null,null,0]
["Sch VI","Fixed Income Sec",null,"Duration - 1a US Gov. Federal",0,null,null,null,null,null,null,null,0]
["Sch VI","Fixed Income Sec",null,"Duration - 1b US Gov. Agency - MBS",0,null,null,null,null,null,null,null,0]
["Sch VI","Fixed Income Sec",null,"Duration - 1c US Gov. Agency - Other",0,null,null,null,null,null,null,null,0]
["Sch VI","Fixed Income Sec",null,"Duration - 2 Non-US Government",0,null,null,null,null,null,null,null,0]
["Sch VI","Fixed Income Sec",null,"Duration - 3 States, Municipalities",0,null,null,null,null,null,null,null,0]
["Sch VI","Fixed Income Sec",null,"Duration - 4a Corp Sec. - US Gov. backed",0,null,null,null,null,null,null,null,0]
["Sch VI","Fixed Income Sec",null,"Duration - 4b Corp Sec. - Non-US Gov. backed",0,null,null,null,null,null,null,null,0]
["Sch VI","Fixed Income Sec",null,"Duration - 4c Corp Sec. - FDIC Guaranteed",0,null,null,null,null,null,null,null,0]
["Sch VI","Fixed Income Sec",null,"Duration - 4d Corp Sec. - Other ",0,null,null,null,null,null,null,null,0]
["Sch VI","Fixed Income Sec",null,"Duration - 5 ABS",0,null,null,null,null,null,null,null,0]
["Sch VI","Fixed Income Sec",null,"Duration - 6a MBS - Resid. Subprime",0,null,null,null,null,null,null,null,0]
["Sch VI","Fixed Income Sec",null,"Duration - 6b MBS - Resid. Non-subprime",0,null,null,null,null,null,null,null,0]
["Sch VI","Fixed Income Sec",null,"Duration - 6c MBS - Commercial",0,null,null,null,null,null,null,null,0]
["Sch VI","Fixed Income Sec",null,"Duration - 7 Mutual Funds",0,null,null,null,null,null,null,null,0]
["Sch VI","Fixed Income Sec",null,"Duration - 8 Bank Loans",0,null,null,null,null,null,null,null,0]
["Sch VI","Fixed Income Sec",null,"Duration - 9 Cat Bonds & ILS",0,null,null,null,null,null,null,null,0]
["Sch VI","Fixed Income Sec",null,"Duration - 10 Others",0,null,null,null,null,null,null,null,0]
["Sch VI","Fixed Income Sec",null,"Convexity - 1a US Gov. Federal",0,null,null,null,null,null,null,null,0]
["Sch VI","Fixed Income Sec",null,"Convexity - 1b US Gov. Agency - MBS",0,null,null,null,null,null,null,null,0]
["Sch VI","Fixed Income Sec",null,"Convexity - 1c US Gov. Agency - Other",0,null,null,null,null,null,null,null,0]
["Sch VI","Fixed Income Sec",null,"Convexity - 2 Non-US Government",0,null,null,null,null,null,null,null,0]
["Sch VI","Fixed Income Sec",null,"Convexity - 3 States, Municipalities",0,null,null,null,null,null,null,null,0]
["Sch VI","Fixed Income Sec",null,"Convexity - 4a Corp Sec. - US Gov. backed",0,null,null,null,null,null,null,null,0]
["Sch VI","Fixed Income Sec",null,"Convexity - 4b Corp Sec. - Non-US Gov. backed",0,null,null,null,null,null,null,null,0]
["Sch VI","Fixed Income Sec",null,"Convexity - 4c Corp Sec. - FDIC Guaranteed",0,null,null,null,null,null,null,null,0]
["Sch VI","Fixed Income Sec",null,"Convexity - 4d Corp Sec. - Other ",0,null,null,null,null,null,null,null,0]
["Sch VI","Fixed Income Sec",null,"Convexity - 5 ABS",0,null,null,null,null,null,null,null,0]
["Sch VI","Fixed Income Sec",null,"Convexity - 6a MBS - Resid. Subprime",0,null,null,null,null,null,null,null,0]
["Sch VI","Fixed Income Sec",null,"Convexity - 6b MBS - Resid. Non-subprime",0,null,null,null,null,null,null,null,0]
["Sch VI","Fixed Income Sec",null,"Convexity - 6c MBS - Commercial",0,null,null,null,null,null,null,null,0]
["Sch VI","Fixed Income Sec",null,"Convexity - 7 Mutual Funds",0,null,null,null,null,null,null,null,0]
["Sch VI","Fixed Income Sec",null,"Convexity - 8 Bank Loans",0,null,null,null,null,null,null,null,0]
["Sch VI","Fixed Income Sec",null,"Convexity - 9 Cat Bonds & ILS",0,null,null,null,null,null,null,null,0]
["Sch VI","Fixed Income Sec",null,"Convexity - 10 Others",0,null,null,null,null,null,null,null,0]
["Sch VI","Fixed Income Sec",null,"Portfolio Duration",0,null,null,null,null,null,null,null,0]
["Sch VI","Fixed Income Sec",null,"Portfolio Convexity",0,null,null,null,null,null,null,null,0]
[]
["Sch VII","LT Reserves",null,"1SFS 27d - 1. Mortality",0]
["Sch VII","LT Reserves",null,"1SFS 27d - 2. Critical Illness",0]
["Sch VII","LT Reserves",null,"1SFS 27d - 3a. Longevity - Imm Pay 0-55",0]
["Sch VII","LT Reserves",null,"1SFS 27d - 3b. Longevity - Imm Pay 55-65",0]
["Sch VII","LT Reserves",null,"1SFS 27d - 3c. Longevity - Imm Pay 66-70",0]
["Sch VII","LT Reserves",null,"1SFS 27d - 3d. Longevity - Imm Pay 71-80",0]
["Sch VII","LT Reserves",null,"1SFS 27d - 3e. Longevity - Imm Pay 81+",0]
["Sch VII","LT Reserves",null,"1SFS 27d - 3f. Longevity - Imm Pay Total",0]
["Sch VII","LT Reserves",null,"1SFS 27d - 4a. Longevity - Def Pay 0-55",0]
["Sch VII","LT Reserves",null,"1SFS 27d - 4b. Longevity - Def Pay 56-60",0]
["Sch VII","LT Reserves",null,"1SFS 27d - 4c. Longevity - Def Pay 61-65",0]
["Sch VII","LT Reserves",null,"1SFS 27d - 4d. Longevity - Def Pay 66-70",0]
["Sch VII","LT Reserves",null,"1SFS 27d - 4e. Longevity - Def Pay 71-75",0]
["Sch VII","LT Reserves",null,"1SFS 27d - 4f. Longevity - Def Pay 76+",0]
["Sch VII","LT Reserves",null,"1SFS 27d - 4g. Longevity - Def Pay Total",0]
["Sch VII","LT Reserves",null,"1SFS 27d - 5. Annuities Certain",0]
["Sch VII","LT Reserves",null,"1SFS 27d - 6. Deferred Acc. Annuities",0]
["Sch VII","LT Reserves",null,"1SFS 27d - 7d. Dis. Income: Active Lives Total",0]
["Sch VII","LT Reserves",null,"1SFS 27d - 8. Dis. Income: Active Liv",0]
["Sch VII","LT Reserves",null,"1SFS 27d - 9. Dis. Income: Claims in Pay",0]
["Sch VII","LT Reserves",null,"1SFS 27d - 10. Dis. Income: Claims in Pay Other",0]
["Sch VII","LT Reserves",null,"1SFS 27d - 11. Group Life",0]
["Sch VII","LT Reserves",null,"1SFS 27d - 12. Group Disability",0]
["Sch VII","LT Reserves",null,"1SFS 27d - 13. Group Health",0]
["Sch VII","LT Reserves",null,"1SFS 27d - 14. Stop Loss",0]
["Sch VII","LT Reserves",null,"1SFS 27d - 15. Riders",0]
["Sch VII","LT Reserves",null,"1SFS 27d - 16. Sub Total",0]
["Sch VII","LT Reserves",null,"1SFS 27d - 17. Variable Annuities",0]
["Sch VII","LT Reserves",null,"1SFS 27d - 18. Total",0]
["Sch VII","LT Reserves",null,"DAC - 1. Mortality",0]
["Sch VII","LT Reserves",null,"DAC - 2. Critical Illness",0]
["Sch VII","LT Reserves",null,"DAC - 3a. Longevity - Imm Pay 0-55",0]
["Sch VII","LT Reserves",null,"DAC - 3b. Longevity - Imm Pay 55-65",0]
["Sch VII","LT Reserves",null,"DAC - 3c. Longevity - Imm Pay 66-70",0]
["Sch VII","LT Reserves",null,"DAC - 3d. Longevity - Imm Pay 71-80",0]
["Sch VII","LT Reserves",null,"DAC - 3e. Longevity - Imm Pay 81+",0]
["Sch VII","LT Reserves",null,"DAC - 3f. Longevity - Imm Pay Total",0]
["Sch VII","LT Reserves",null,"DAC - 4a. Longevity - Def Pay 0-55",0]
["Sch VII","LT Reserves",null,"DAC - 4b. Longevity - Def Pay 56-60",0]
["Sch VII","LT Reserves",null,"DAC - 4c. Longevity - Def Pay 61-65",0]
["Sch VII","LT Reserves",null,"DAC - 4d. Longevity - Def Pay 66-70",0]
["Sch VII","LT Reserves",null,"DAC - 4e. Longevity - Def Pay 71-75",0]
["Sch VII","LT Reserves",null,"DAC - 4f. Longevity - Def Pay 76+",0]
["Sch VII","LT Reserves",null,"DAC - 4g. Longevity - Def Pay Total",0]
["Sch VII","LT Reserves",null,"DAC - 5. Annuities Certain",0]
["Sch VII","LT Reserves",null,"DAC - 6. Deferred Acc. Annuities",0]
["Sch VII","LT Reserves",null,"DAC - 7d. Dis. Income: Active Lives Total",0]
["Sch VII","LT Reserves",null,"DAC - 8. Dis. Income: Active Liv",0]
["Sch VII","LT Reserves",null,"DAC - 9. Dis. Income: Claims in Pay",0]
["Sch VII","LT Reserves",null,"DAC - 10. Dis. Income: Claims in Pay Other",0]
["Sch VII","LT Reserves",null,"DAC - 11. Group Life",0]
["Sch VII","LT Reserves",null,"DAC - 12. Group Disability",0]
["Sch VII","LT Reserves",null,"DAC - 13. Group Health",0]
["Sch VII","LT Reserves",null,"DAC - 14. Stop Loss",0]
["Sch VII","LT Reserves",null,"DAC - 15. Riders",0]
["Sch VII","LT Reserves",null,"DAC - 16. Sub Total",0]
["Sch VII","LT Reserves",null,"DAC - 17. Variable Annuities",0]
["Sch VII","LT Reserves",null,"DAC - 18. Total",0]
["Sch VII","LT Reserves",null,"VOBA - 1. Mortality",0]
["Sch VII","LT Reserves",null,"VOBA - 2. Critical Illness",0]
["Sch VII","LT Reserves",null,"VOBA - 3a. Longevity - Imm Pay 0-55",0]
["Sch VII","LT Reserves",null,"VOBA - 3b. Longevity - Imm Pay 55-65",0]
["Sch VII","LT Reserves",null,"VOBA - 3c. Longevity - Imm Pay 66-70",0]
["Sch VII","LT Reserves",null,"VOBA - 3d. Longevity - Imm Pay 71-80",0]
["Sch VII","LT Reserves",null,"VOBA - 3e. Longevity - Imm Pay 81+",0]
["Sch VII","LT Reserves",null,"VOBA - 3f. Longevity - Imm Pay Total",0]
["Sch VII","LT Reserves",null,"VOBA - 4a. Longevity - Def Pay 0-55",0]
["Sch VII","LT Reserves",null,"VOBA - 4b. Longevity - Def Pay 56-60",0]
["Sch VII","LT Reserves",null,"VOBA - 4c. Longevity - Def Pay 61-65",0]
["Sch VII","LT Reserves",null,"VOBA - 4d. Longevity - Def Pay 66-70",0]
["Sch VII","LT Reserves",null,"VOBA - 4e. Longevity - Def Pay 71-75",0]
["Sch VII","LT Reserves",null,"VOBA - 4f. Longevity - Def Pay 76+",0]
["Sch VII","LT Reserves",null,"VOBA - 4g. Longevity - Def Pay Total",0]
["Sch VII","LT Reserves",null,"VOBA - 5. Annuities Certain",0]
["Sch VII","LT Reserves",null,"VOBA - 6. Deferred Acc. Annuities",0]
["Sch VII","LT Reserves",null,"VOBA - 7d. Dis. Income: Active Lives Total",0]
["Sch VII","LT Reserves",null,"VOBA - 8. Dis. Income: Active Liv",0]
["Sch VII","LT Reserves",null,"VOBA - 9. Dis. Income: Claims in Pay",0]
["Sch VII","LT Reserves",null,"VOBA - 10. Dis. Income: Claims in Pay Other",0]
["Sch VII","LT Reserves",null,"VOBA - 11. Group Life",0]
["Sch VII","LT Reserves",null,"VOBA - 12. Group Disability",0]
["Sch VII","LT Reserves",null,"VOBA - 13. Group Health",0]
["Sch VII","LT Reserves",null,"VOBA - 14. Stop Loss",0]
["Sch VII","LT Reserves",null,"VOBA - 15. Riders",0]
["Sch VII","LT Reserves",null,"VOBA - 16. Sub Total",0]
["Sch VII","LT Reserves",null,"VOBA - 17. Variable Annuities",0]
["Sch VII","LT Reserves",null,"VOBA - 18. Total",0]
["Sch VII","LT Reserves",null,"PVFP - 1. Mortality",0]
["Sch VII","LT Reserves",null,"PVFP - 2. Critical Illness",0]
["Sch VII","LT Reserves",null,"PVFP - 3a. Longevity - Imm Pay 0-55",0]
["Sch VII","LT Reserves",null,"PVFP - 3b. Longevity - Imm Pay 55-65",0]
["Sch VII","LT Reserves",null,"PVFP - 3c. Longevity - Imm Pay 66-70",0]
["Sch VII","LT Reserves",null,"PVFP - 3d. Longevity - Imm Pay 71-80",0]
["Sch VII","LT Reserves",null,"PVFP - 3e. Longevity - Imm Pay 81+",0]
["Sch VII","LT Reserves",null,"PVFP - 3f. Longevity - Imm Pay Total",0]
["Sch VII","LT Reserves",null,"PVFP - 4a. Longevity - Def Pay 0-55",0]
["Sch VII","LT Reserves",null,"PVFP - 4b. Longevity - Def Pay 56-60",0]
["Sch VII","LT Reserves",null,"PVFP - 4c. Longevity - Def Pay 61-65",0]
["Sch VII","LT Reserves",null,"PVFP - 4d. Longevity - Def Pay 66-70",0]
["Sch VII","LT Reserves",null,"PVFP - 4e. Longevity - Def Pay 71-75",0]
["Sch VII","LT Reserves",null,"PVFP - 4f. Longevity - Def Pay 76+",0]
["Sch VII","LT Reserves",null,"PVFP - 4g. Longevity - Def Pay Total",0]
["Sch VII","LT Reserves",null,"PVFP - 5. Annuities Certain",0]
["Sch VII","LT Reserves",null,"PVFP - 6. Deferred Acc. Annuities",0]
["Sch VII","LT Reserves",null,"PVFP - 7d. Dis. Income: Active Lives Total",0]
["Sch VII","LT Reserves",null,"PVFP - 8. Dis. Income: Active Liv",0]
["Sch VII","LT Reserves",null,"PVFP - 9. Dis. Income: Claims in Pay",0]
["Sch VII","LT Reserves",null,"PVFP - 10. Dis. Income: Claims in Pay Other",0]
["Sch VII","LT Reserves",null,"PVFP - 11. Group Life",0]
["Sch VII","LT Reserves",null,"PVFP - 12. Group Disability",0]
["Sch VII","LT Reserves",null,"PVFP - 13. Group Health",0]
["Sch VII","LT Reserves",null,"PVFP - 14. Stop Loss",0]
["Sch VII","LT Reserves",null,"PVFP - 15. Riders",0]
["Sch VII","LT Reserves",null,"PVFP - 16. Sub Total",0]
["Sch VII","LT Reserves",null,"PVFP - 17. Variable Annuities",0]
["Sch VII","LT Reserves",null,"PVFP - 18. Total",0]
["Sch VII","LT Reserves",null,"Best Est. - 1. Mortality",0,null,null,null,null,null,null,null,0]
["Sch VII","LT Reserves",null,"Best Est. - 2. Critical Illness",0,null,null,null,null,null,null,null,0]
["Sch VII","LT Reserves",null,"Best Est. - 3a. Longevity - Imm Pay 0-55",0,null,null,null,null,null,null,null,0]
["Sch VII","LT Reserves",null,"Best Est. - 3b. Longevity - Imm Pay 55-65",0,null,null,null,null,null,null,null,0]
["Sch VII","LT Reserves",null,"Best Est. - 3c. Longevity - Imm Pay 66-70",0,null,null,null,null,null,null,null,0]
["Sch VII","LT Reserves",null,"Best Est. - 3d. Longevity - Imm Pay 71-80",0,null,null,null,null,null,null,null,0]
["Sch VII","LT Reserves",null,"Best Est. - 3e. Longevity - Imm Pay 81+",0,null,null,null,null,null,null,null,0]
["Sch VII","LT Reserves",null,"Best Est. - 3f. Longevity - Imm Pay Total",0,null,null,null,null,null,null,null,0]
["Sch VII","LT Reserves",null,"Best Est. - 4a. Longevity - Def Pay 0-55",0,null,null,null,null,null,null,null,0]
["Sch VII","LT Reserves",null,"Best Est. - 4b. Longevity - Def Pay 56-60",0,null,null,null,null,null,null,null,0]
["Sch VII","LT Reserves",null,"Best Est. - 4c. Longevity - Def Pay 61-65",0,null,null,null,null,null,null,null,0]
["Sch VII","LT Reserves",null,"Best Est. - 4d. Longevity - Def Pay 66-70",0,null,null,null,null,null,null,null,0]
["Sch VII","LT Reserves",null,"Best Est. - 4e. Longevity - Def Pay 71-75",0,null,null,null,null,null,null,null,0]
["Sch VII","LT Reserves",null,"Best Est. - 4f. Longevity - Def Pay 76+",0,null,null,null,null,null,null,null,0]
["Sch VII","LT Reserves",null,"Best Est. - 4g. Longevity - Def Pay Total",0,null,null,null,null,null,null,null,0]
["Sch VII","LT Reserves",null,"Best Est. - 5. Annuities Certain",0,null,null,null,null,null,null,null,0]
["Sch VII","LT Reserves",null,"Best Est. - 6. Deferred Acc. Annuities",0,null,null,null,null,null,null,null,0]
["Sch VII","LT Reserves",null,"Best Est. - 7d. Dis. Income: Active Lives Total",0,null,null,null,null,null,null,null,0]
["Sch VII","LT Reserves",null,"Best Est. - 8. Dis. Income: Active Liv",0,null,null,null,null,null,null,null,0]
["Sch VII","LT Reserves",null,"Best Est. - 9. Dis. Income: Claims in Pay",0,null,null,null,null,null,null,null,0]
["Sch VII","LT Reserves",null,"Best Est. - 10. Dis. Income: Claims in Pay Other",0,null,null,null,null,null,null,null,0]
["Sch VII","LT Reserves",null,"Best Est. - 11. Group Life",0,null,null,null,null,null,null,null,0]
["Sch VII","LT Reserves",null,"Best Est. - 12. Group Disability",0,null,null,null,null,null,null,null,0]
["Sch VII","LT Reserves",null,"Best Est. - 13. Group Health",0,null,null,null,null,null,null,null,0]
["Sch VII","LT Reserves",null,"Best Est. - 14. Stop Loss",0,null,null,null,null,null,null,null,0]
["Sch VII","LT Reserves",null,"Best Est. - 15. Riders",0,null,null,null,null,null,null,null,0]
["Sch VII","LT Reserves",null,"Best Est. - 16. Sub Total",0,null,null,null,null,null,null,null,0]
["Sch VII","LT Reserves",null,"Best Est. - 17. Variable Annuities",0,null,null,null,null,null,null,null,0]
["Sch VII","LT Reserves",null,"Best Est. - 18. Total",0,null,null,null,null,null,null,null,0]
["Sch VII","LT Reserves",null,"Adj Prod. - 1. Mortality",0,null,null,null,null,null,null,null,0]
["Sch VII","LT Reserves",null,"Adj Prod. - 2. Critical Illness",0,null,null,null,null,null,null,null,0]
["Sch VII","LT Reserves",null,"Net Amount @ Risk - 1. Mortality",0,null,null,null,null,null,null,null,0]
["Sch VII","LT Reserves",null,"Net Amount @ Risk - 2. Critical Illness",0,null,null,null,null,null,null,null,0]
["Sch VII","LT Reserves",null,"12. BBNI Prem. - 1. Mortality",null,null,null,null,null,null,null,null,0]
["Sch VII","LT Reserves",null,"12. BBNI Prem. - 2. Critical Illness",null,null,null,null,null,null,null,null,0]
["Sch VII","LT Reserves",null,"12. BBNI Prem. - 3f. Longevity - Imm Pay",null,null,null,null,null,null,null,null,0]
["Sch VII","LT Reserves",null,"12. BBNI Prem. - 4g. Longevity - Def Pay",null,null,null,null,null,null,null,null,0]
["Sch VII","LT Reserves",null,"12. BBNI Prem. - 5. Annuities Certain",null,null,null,null,null,null,null,null,0]
["Sch VII","LT Reserves",null,"12. BBNI Prem. - 6. Deferred Acc. Annuities",null,null,null,null,null,null,null,null,0]
["Sch VII","LT Reserves",null,"12. BBNI Prem. - 7d. Dis. Income: Active Lives ",null,null,null,null,null,null,null,null,0]
["Sch VII","LT Reserves",null,"12. BBNI Prem. - 8. Dis. Income: Active Liv",null,null,null,null,null,null,null,null,0]
["Sch VII","LT Reserves",null,"12. BBNI Prem. - 9. Dis. Income: Claims in Pay",null,null,null,null,null,null,null,null,0]
["Sch VII","LT Reserves",null,"12. BBNI Prem. - 10. Dis. Income: Claims in Pay Other",null,null,null,null,null,null,null,null,0]
["Sch VII","LT Reserves",null,"12. BBNI Prem. - 11. Group Life",null,null,null,null,null,null,null,null,0]
["Sch VII","LT Reserves",null,"12. BBNI Prem. - 12. Group Disability",null,null,null,null,null,null,null,null,0]
["Sch VII","LT Reserves",null,"12. BBNI Prem. - 13. Group Health",null,null,null,null,null,null,null,null,0]
["Sch VII","LT Reserves",null,"12. BBNI Prem. - 14. Stop Loss",null,null,null,null,null,null,null,null,0]
["Sch VII","LT Reserves",null,"12. BBNI Prem. - 15. Riders",null,null,null,null,null,null,null,null,0]
["Sch VII","LT Reserves",null,"12. BBNI Prem. - 16. Sub Total",null,null,null,null,null,null,null,null,0]
["Sch VII","LT Reserves",null,"12. BBNI Prem. - 17. Variable Annuities",null,null,null,null,null,null,null,null,0]
["Sch VII","LT Reserves",null,"12. BBNI Prem. - 18. Total",null,null,null,null,null,null,null,null,0]
["Sch VII","LT Reserves",null,"13. BBNI Best Est. - 1. Mortality",null,null,null,null,null,null,null,null,0]
["Sch VII","LT Reserves",null,"13. BBNI Best Est. - 2. Critical Illness",null,null,null,null,null,null,null,null,0]
["Sch VII","LT Reserves",null,"13. BBNI Best Est. - 3f. Longevity - Imm Pay",null,null,null,null,null,null,null,null,0]
["Sch VII","LT Reserves",null,"13. BBNI Best Est. - 4g. Longevity - Def Pay",null,null,null,null,null,null,null,null,0]
["Sch VII","LT Reserves",null,"13. BBNI Best Est. - 5. Annuities Certain",null,null,null,null,null,null,null,null,0]
["Sch VII","LT Reserves",null,"13. BBNI Best Est. - 6. Deferred Acc. Annuities",null,null,null,null,null,null,null,null,0]
["Sch VII","LT Reserves",null,"13. BBNI Best Est. - 7d. Dis. Income: Active Lives ",null,null,null,null,null,null,null,null,0]
["Sch VII","LT Reserves",null,"13. BBNI Best Est. - 8. Dis. Income: Active Liv",null,null,null,null,null,null,null,null,0]
["Sch VII","LT Reserves",null,"13. BBNI Best Est. - 9. Dis. Income: Claims in Pay",null,null,null,null,null,null,null,null,0]
["Sch VII","LT Reserves",null,"13. BBNI Best Est. - 10. Dis. Income: Claims in Pay Other",null,null,null,null,null,null,null,null,0]
["Sch VII","LT Reserves",null,"13. BBNI Best Est. - 11. Group Life",null,null,null,null,null,null,null,null,0]
["Sch VII","LT Reserves",null,"13. BBNI Best Est. - 12. Group Disability",null,null,null,null,null,null,null,null,0]
["Sch VII","LT Reserves",null,"13. BBNI Best Est. - 13. Group Health",null,null,null,null,null,null,null,null,0]
["Sch VII","LT Reserves",null,"13. BBNI Best Est. - 14. Stop Loss",null,null,null,null,null,null,null,null,0]
["Sch VII","LT Reserves",null,"13. BBNI Best Est. - 15. Riders",null,null,null,null,null,null,null,null,0]
["Sch VII","LT Reserves",null,"13. BBNI Best Est. - 16. Sub Total",null,null,null,null,null,null,null,null,0]
["Sch VII","LT Reserves",null,"13. BBNI Best Est. - 17. Variable Annuities",null,null,null,null,null,null,null,null,0]
["Sch VII","LT Reserves",null,"13. BBNI Best Est. - 18. Total",null,null,null,null,null,null,null,null,0]
["Sch VII","LT Reserves",null,"14. Best Est. Trans. - 1. Mortality",null,null,null,null,null,null,null,null,0]
["Sch VII","LT Reserves",null,"14. Best Est. Trans. - 2. Critical Illness",null,null,null,null,null,null,null,null,0]
["Sch VII","LT Reserves",null,"14. Best Est. Trans. - 3f. Longevity - Imm Pay",null,null,null,null,null,null,null,null,0]
["Sch VII","LT Reserves",null,"14. Best Est. Trans. - 4g. Longevity - Def Pay",null,null,null,null,null,null,null,null,0]
["Sch VII","LT Reserves",null,"14. Best Est. Trans. - 5. Annuities Certain",null,null,null,null,null,null,null,null,0]
["Sch VII","LT Reserves",null,"14. Best Est. Trans. - 6. Deferred Acc. Annuities",null,null,null,null,null,null,null,null,0]
["Sch VII","LT Reserves",null,"14. Best Est. Trans. - 7d. Dis. Income: Active Lives ",null,null,null,null,null,null,null,null,0]
["Sch VII","LT Reserves",null,"14. Best Est. Trans. - 8. Dis. Income: Active Liv",null,null,null,null,null,null,null,null,0]
["Sch VII","LT Reserves",null,"14. Best Est. Trans. - 9. Dis. Income: Claims in Pay",null,null,null,null,null,null,null,null,0]
["Sch VII","LT Reserves",null,"14. Best Est. Trans. - 10. Dis. Income: Claims in Pay Other",null,null,null,null,null,null,null,null,0]
["Sch VII","LT Reserves",null,"14. Best Est. Trans. - 11. Group Life",null,null,null,null,null,null,null,null,0]
["Sch VII","LT Reserves",null,"14. Best Est. Trans. - 12. Group Disability",null,null,null,null,null,null,null,null,0]
["Sch VII","LT Reserves",null,"14. Best Est. Trans. - 13. Group Health",null,null,null,null,null,null,null,null,0]
["Sch VII","LT Reserves",null,"14. Best Est. Trans. - 14. Stop Loss",null,null,null,null,null,null,null,null,0]
["Sch VII","LT Reserves",null,"14. Best Est. Trans. - 15. Riders",null,null,null,null,null,null,null,null,0]
["Sch VII","LT Reserves",null,"14. Best Est. Trans. - 16. Sub Total",null,null,null,null,null,null,null,null,0]
["Sch VII","LT Reserves",null,"14. Best Est. Trans. - 17. Variable Annuities",null,null,null,null,null,null,null,null,0]
["Sch VII","LT Reserves",null,"14. Best Est. Trans. - 18. Total",null,null,null,null,null,null,null,null,0]
["Sch VII","LT Reserves",null,"15. Best Est. W/O Trans. - 1. Mortality",null,null,null,null,null,null,null,null,0]
["Sch VII","LT Reserves",null,"15. Best Est. W/O Trans. - 2. Critical Illness",null,null,null,null,null,null,null,null,0]
["Sch VII","LT Reserves",null,"15. Best Est. W/O Trans. - 3f. Longevity - Imm Pay",null,null,null,null,null,null,null,null,0]
["Sch VII","LT Reserves",null,"15. Best Est. W/O Trans. - 4g. Longevity - Def Pay",null,null,null,null,null,null,null,null,0]
["Sch VII","LT Reserves",null,"15. Best Est. W/O Trans. - 5. Annuities Certain",null,null,null,null,null,null,null,null,0]
["Sch VII","LT Reserves",null,"15. Best Est. W/O Trans. - 6. Deferred Acc. Annuities",null,null,null,null,null,null,null,null,0]
["Sch VII","LT Reserves",null,"15. Best Est. W/O Trans. - 7d. Dis. Income: Active Lives ",null,null,null,null,null,null,null,null,0]
["Sch VII","LT Reserves",null,"15. Best Est. W/O Trans. - 8. Dis. Income: Active Liv",null,null,null,null,null,null,null,null,0]
["Sch VII","LT Reserves",null,"15. Best Est. W/O Trans. - 9. Dis. Income: Claims in Pay",null,null,null,null,null,null,null,null,0]
["Sch VII","LT Reserves",null,"15. Best Est. W/O Trans. - 10. Dis. Income: Claims in Pay Other",null,null,null,null,null,null,null,null,0]
["Sch VII","LT Reserves",null,"15. Best Est. W/O Trans. - 11. Group Life",null,null,null,null,null,null,null,null,0]
["Sch VII","LT Reserves",null,"15. Best Est. W/O Trans. - 12. Group Disability",null,null,null,null,null,null,null,null,0]
["Sch VII","LT Reserves",null,"15. Best Est. W/O Trans. - 13. Group Health",null,null,null,null,null,null,null,null,0]
["Sch VII","LT Reserves",null,"15. Best Est. W/O Trans. - 14. Stop Loss",null,null,null,null,null,null,null,null,0]
["Sch VII","LT Reserves",null,"15. Best Est. W/O Trans. - 15. Riders",null,null,null,null,null,null,null,null,0]
["Sch VII","LT Reserves",null,"15. Best Est. W/O Trans. - 16. Sub Total",null,null,null,null,null,null,null,null,0]
["Sch VII","LT Reserves",null,"15. Best Est. W/O Trans. - 17. Variable Annuities",null,null,null,null,null,null,null,null,0]
["Sch VII","LT Reserves",null,"15. Best Est. W/O Trans. - 18. Total",null,null,null,null,null,null,null,null,0]
["Sch VII","LT Reserves",null,"16. Scen. - 1. Mortality",null,null,null,null,null,null,null,null,0]
["Sch VII","LT Reserves",null,"16. Scen. - 2. Critical Illness",null,null,null,null,null,null,null,null,0]
["Sch VII","LT Reserves",null,"16. Scen. - 3f. Longevity - Imm Pay",null,null,null,null,null,null,null,null,0]
["Sch VII","LT Reserves",null,"16. Scen. - 4g. Longevity - Def Pay",null,null,null,null,null,null,null,null,0]
["Sch VII","LT Reserves",null,"16. Scen. - 5. Annuities Certain",null,null,null,null,null,null,null,null,0]
["Sch VII","LT Reserves",null,"16. Scen. - 6. Deferred Acc. Annuities",null,null,null,null,null,null,null,null,0]
["Sch VII","LT Reserves",null,"16. Scen. - 7d. Dis. Income: Active Lives ",null,null,null,null,null,null,null,null,0]
["Sch VII","LT Reserves",null,"16. Scen. - 8. Dis. Income: Active Liv",null,null,null,null,null,null,null,null,0]
["Sch VII","LT Reserves",null,"16. Scen. - 9. Dis. Income: Claims in Pay",null,null,null,null,null,null,null,null,0]
["Sch VII","LT Reserves",null,"16. Scen. - 10. Dis. Income: Claims in Pay Other",null,null,null,null,null,null,null,null,0]
["Sch VII","LT Reserves",null,"16. Scen. - 11. Group Life",null,null,null,null,null,null,null,null,0]
["Sch VII","LT Reserves",null,"16. Scen. - 12. Group Disability",null,null,null,null,null,null,null,null,0]
["Sch VII","LT Reserves",null,"16. Scen. - 13. Group Health",null,null,null,null,null,null,null,null,0]
["Sch VII","LT Reserves",null,"16. Scen. - 14. Stop Loss",null,null,null,null,null,null,null,null,0]
["Sch VII","LT Reserves",null,"16. Scen. - 15. Riders",null,null,null,null,null,null,null,null,0]
["Sch VII","LT Reserves",null,"16. Scen. - 16. Sub Total",null,null,null,null,null,null,null,null,0]
["Sch VII","LT Reserves",null,"16. Scen. - 17. Variable Annuities",null,null,null,null,null,null,null,null,0]
["Sch VII","LT Reserves",null,"16. Scen. - 18. Total",null,null,null,null,null,null,null,null,0]
["Sch VII","LT Reserves",null,"17. W/O  Scen. - 1. Mortality",null,null,null,null,null,null,null,null,0]
["Sch VII","LT Reserves",null,"17. W/O  Scen. - 2. Critical Illness",null,null,null,null,null,null,null,null,0]
["Sch VII","LT Reserves",null,"17. W/O  Scen. - 3f. Longevity - Imm Pay",null,null,null,null,null,null,null,null,0]
["Sch VII","LT Reserves",null,"17. W/O  Scen. - 4g. Longevity - Def Pay",null,null,null,null,null,null,null,null,0]
["Sch VII","LT Reserves",null,"17. W/O  Scen. - 5. Annuities Certain",null,null,null,null,null,null,null,null,0]
["Sch VII","LT Reserves",null,"17. W/O  Scen. - 6. Deferred Acc. Annuities",null,null,null,null,null,null,null,null,0]
["Sch VII","LT Reserves",null,"17. W/O  Scen. - 7d. Dis. Income: Active Lives ",null,null,null,null,null,null,null,null,0]
["Sch VII","LT Reserves",null,"17. W/O  Scen. - 8. Dis. Income: Active Liv",null,null,null,null,null,null,null,null,0]
["Sch VII","LT Reserves",null,"17. W/O  Scen. - 9. Dis. Income: Claims in Pay",null,null,null,null,null,null,null,null,0]
["Sch VII","LT Reserves",null,"17. W/O  Scen. - 10. Dis. Income: Claims in Pay Other",null,null,null,null,null,null,null,null,0]
["Sch VII","LT Reserves",null,"17. W/O  Scen. - 11. Group Life",null,null,null,null,null,null,null,null,0]
["Sch VII","LT Reserves",null,"17. W/O  Scen. - 12. Group Disability",null,null,null,null,null,null,null,null,0]
["Sch VII","LT Reserves",null,"17. W/O  Scen. - 13. Group Health",null,null,null,null,null,null,null,null,0]
["Sch VII","LT Reserves",null,"17. W/O  Scen. - 14. Stop Loss",null,null,null,null,null,null,null,null,0]
["Sch VII","LT Reserves",null,"17. W/O  Scen. - 15. Riders",null,null,null,null,null,null,null,null,0]
["Sch VII","LT Reserves",null,"17. W/O  Scen. - 16. Sub Total",null,null,null,null,null,null,null,null,0]
["Sch VII","LT Reserves",null,"17. W/O  Scen. - 17. Variable Annuities",null,null,null,null,null,null,null,null,0]
["Sch VII","LT Reserves",null,"17. W/O  Scen. - 18. Total",null,null,null,null,null,null,null,null,0]
["Sch VII","LT Reserves",null,"18. Base Scen. - 1. Mortality",null,null,null,null,null,null,null,null,0]
["Sch VII","LT Reserves",null,"18. Base Scen. - 2. Critical Illness",null,null,null,null,null,null,null,null,0]
["Sch VII","LT Reserves",null,"18. Base Scen. - 3f. Longevity - Imm Pay",null,null,null,null,null,null,null,null,0]
["Sch VII","LT Reserves",null,"18. Base Scen. - 4g. Longevity - Def Pay",null,null,null,null,null,null,null,null,0]
["Sch VII","LT Reserves",null,"18. Base Scen. - 5. Annuities Certain",null,null,null,null,null,null,null,null,0]
["Sch VII","LT Reserves",null,"18. Base Scen. - 6. Deferred Acc. Annuities",null,null,null,null,null,null,null,null,0]
["Sch VII","LT Reserves",null,"18. Base Scen. - 7d. Dis. Income: Active Lives ",null,null,null,null,null,null,null,null,0]
["Sch VII","LT Reserves",null,"18. Base Scen. - 8. Dis. Income: Active Liv",null,null,null,null,null,null,null,null,0]
["Sch VII","LT Reserves",null,"18. Base Scen. - 9. Dis. Income: Claims in Pay",null,null,null,null,null,null,null,null,0]
["Sch VII","LT Reserves",null,"18. Base Scen. - 10. Dis. Income: Claims in Pay Other",null,null,null,null,null,null,null,null,0]
["Sch VII","LT Reserves",null,"18. Base Scen. - 11. Group Life",null,null,null,null,null,null,null,null,0]
["Sch VII","LT Reserves",null,"18. Base Scen. - 12. Group Disability",null,null,null,null,null,null,null,null,0]
["Sch VII","LT Reserves",null,"18. Base Scen. - 13. Group Health",null,null,null,null,null,null,null,null,0]
["Sch VII","LT Reserves",null,"18. Base Scen. - 14. Stop Loss",null,null,null,null,null,null,null,null,0]
["Sch VII","LT Reserves",null,"18. Base Scen. - 15. Riders",null,null,null,null,null,null,null,null,0]
["Sch VII","LT Reserves",null,"18. Base Scen. - 16. Sub Total",null,null,null,null,null,null,null,null,0]
["Sch VII","LT Reserves",null,"18. Base Scen. - 17. Variable Annuities",null,null,null,null,null,null,null,null,0]
["Sch VII","LT Reserves",null,"18. Base Scen. - 18. Total",null,null,null,null,null,null,null,null,0]
["Sch VII","LT Reserves",null,"19. BBNI Prem. - 1. Mortality",null,null,null,null,null,null,null,null,0]
["Sch VII","LT Reserves",null,"19. BBNI Prem. - 2. Critical Illness",null,null,null,null,null,null,null,null,0]
["Sch VII","LT Reserves",null,"19. BBNI Prem. - 3f. Longevity - Imm Pay",null,null,null,null,null,null,null,null,0]
["Sch VII","LT Reserves",null,"19. BBNI Prem. - 4g. Longevity - Def Pay",null,null,null,null,null,null,null,null,0]
["Sch VII","LT Reserves",null,"19. BBNI Prem. - 5. Annuities Certain",null,null,null,null,null,null,null,null,0]
["Sch VII","LT Reserves",null,"19. BBNI Prem. - 6. Deferred Acc. Annuities",null,null,null,null,null,null,null,null,0]
["Sch VII","LT Reserves",null,"19. BBNI Prem. - 7d. Dis. Income: Active Lives ",null,null,null,null,null,null,null,null,0]
["Sch VII","LT Reserves",null,"19. BBNI Prem. - 8. Dis. Income: Active Liv",null,null,null,null,null,null,null,null,0]
["Sch VII","LT Reserves",null,"19. BBNI Prem. - 9. Dis. Income: Claims in Pay",null,null,null,null,null,null,null,null,0]
["Sch VII","LT Reserves",null,"19. BBNI Prem. - 10. Dis. Income: Claims in Pay Other",null,null,null,null,null,null,null,null,0]
["Sch VII","LT Reserves",null,"19. BBNI Prem. - 11. Group Life",null,null,null,null,null,null,null,null,0]
["Sch VII","LT Reserves",null,"19. BBNI Prem. - 12. Group Disability",null,null,null,null,null,null,null,null,0]
["Sch VII","LT Reserves",null,"19. BBNI Prem. - 13. Group Health",null,null,null,null,null,null,null,null,0]
["Sch VII","LT Reserves",null,"19. BBNI Prem. - 14. Stop Loss",null,null,null,null,null,null,null,null,0]
["Sch VII","LT Reserves",null,"19. BBNI Prem. - 15. Riders",null,null,null,null,null,null,null,null,0]
["Sch VII","LT Reserves",null,"19. BBNI Prem. - 16. Sub Total",null,null,null,null,null,null,null,null,0]
["Sch VII","LT Reserves",null,"19. BBNI Prem. - 17. Variable Annuities",null,null,null,null,null,null,null,null,0]
["Sch VII","LT Reserves",null,"19. BBNI Prem. - 18. Total",null,null,null,null,null,null,null,null,0]
["Sch VII","LT Reserves",null,"20. BBNI Est . - 1. Mortality",null,null,null,null,null,null,null,null,0]
["Sch VII","LT Reserves",null,"20. BBNI Est . - 2. Critical Illness",null,null,null,null,null,null,null,null,0]
["Sch VII","LT Reserves",null,"20. BBNI Est . - 3f. Longevity - Imm Pay",null,null,null,null,null,null,null,null,0]
["Sch VII","LT Reserves",null,"20. BBNI Est . - 4g. Longevity - Def Pay",null,null,null,null,null,null,null,null,0]
["Sch VII","LT Reserves",null,"20. BBNI Est . - 5. Annuities Certain",null,null,null,null,null,null,null,null,0]
["Sch VII","LT Reserves",null,"20. BBNI Est . - 6. Deferred Acc. Annuities",null,null,null,null,null,null,null,null,0]
["Sch VII","LT Reserves",null,"20. BBNI Est . - 7d. Dis. Income: Active Lives ",null,null,null,null,null,null,null,null,0]
["Sch VII","LT Reserves",null,"20. BBNI Est . - 8. Dis. Income: Active Liv",null,null,null,null,null,null,null,null,0]
["Sch VII","LT Reserves",null,"20. BBNI Est . - 9. Dis. Income: Claims in Pay",null,null,null,null,null,null,null,null,0]
["Sch VII","LT Reserves",null,"20. BBNI Est . - 10. Dis. Income: Claims in Pay Other",null,null,null,null,null,null,null,null,0]
["Sch VII","LT Reserves",null,"20. BBNI Est . - 11. Group Life",null,null,null,null,null,null,null,null,0]
["Sch VII","LT Reserves",null,"20. BBNI Est . - 12. Group Disability",null,null,null,null,null,null,null,null,0]
["Sch VII","LT Reserves",null,"20. BBNI Est . - 13. Group Health",null,null,null,null,null,null,null,null,0]
["Sch VII","LT Reserves",null,"20. BBNI Est . - 14. Stop Loss",null,null,null,null,null,null,null,null,0]
["Sch VII","LT Reserves",null,"20. BBNI Est . - 15. Riders",null,null,null,null,null,null,null,null,0]
["Sch VII","LT Reserves",null,"20. BBNI Est . - 16. Sub Total",null,null,null,null,null,null,null,null,0]
["Sch VII","LT Reserves",null,"20. BBNI Est . - 17. Variable Annuities",null,null,null,null,null,null,null,null,0]
["Sch VII","LT Reserves",null,"20. BBNI Est . - 18. Total",null,null,null,null,null,null,null,null,0]
[]
["Sch VIII","LT Annuity",null,"1. Reserve In Money - 1. GMDB - Return of Prem.",0,null,null,null,null,null,null,null,0]
["Sch VIII","LT Annuity",null,"1. Reserve In Money - 2. GMDB - End. Benefit",0,null,null,null,null,null,null,null,0]
["Sch VIII","LT Annuity",null,"1. Reserve In Money - 3. GMIB",0,null,null,null,null,null,null,null,0]
["Sch VIII","LT Annuity",null,"1. Reserve In Money - 4. GMWB",0,null,null,null,null,null,null,null,0]
["Sch VIII","LT Annuity",null,"1. Reserve In Money - 5. GEEB",0,null,null,null,null,null,null,null,0]
["Sch VIII","LT Annuity",null,"1. Reserve In Money - 6. GMAB - Mat. 0-1 Yr",0,null,null,null,null,null,null,null,0]
["Sch VIII","LT Annuity",null,"1. Reserve In Money - 7. GMAB - Mat. 1-2 Yrs",0,null,null,null,null,null,null,null,0]
["Sch VIII","LT Annuity",null,"1. Reserve In Money - 8. GMAB - Mat. 2-3 Yrs",0,null,null,null,null,null,null,null,0]
["Sch VIII","LT Annuity",null,"1. Reserve In Money - 9. GMAB - Mat. 3-4 Yrs",0,null,null,null,null,null,null,null,0]
["Sch VIII","LT Annuity",null,"1. Reserve In Money - 10. GMAB - Mat. 4-5 Yrs",0,null,null,null,null,null,null,null,0]
["Sch VIII","LT Annuity",null,"1. Reserve In Money - 11. GMAB - Mat. 5-6 Yrs",0,null,null,null,null,null,null,null,0]
["Sch VIII","LT Annuity",null,"1. Reserve In Money - 12. GMAB - Mat. 6-7 Yrs",0,null,null,null,null,null,null,null,0]
["Sch VIII","LT Annuity",null,"1. Reserve In Money - 13. GMAB - Mat. 7-8 Yrs",0,null,null,null,null,null,null,null,0]
["Sch VIII","LT Annuity",null,"1. Reserve In Money - 14. GMAB - Mat. 8-9 Yrs",0,null,null,null,null,null,null,null,0]
["Sch VIII","LT Annuity",null,"1. Reserve In Money - 15. GMAB - Mat. 9+ Yrs",0,null,null,null,null,null,null,null,0]
["Sch VIII","LT Annuity",null,"1. Reserve Out Money - 16. GMDB - Return of Prem.",0,null,null,null,null,null,null,null,0]
["Sch VIII","LT Annuity",null,"1. Reserve Out Money - 17. GMDB - Enh. Benefit",0,null,null,null,null,null,null,null,0]
["Sch VIII","LT Annuity",null,"1. Reserve Out Money - 18. GMIB",0,null,null,null,null,null,null,null,0]
["Sch VIII","LT Annuity",null,"1. Reserve Out Money - 19. GMWB",0,null,null,null,null,null,null,null,0]
["Sch VIII","LT Annuity",null,"1. Reserve Out Money - 20. GEEB",0,null,null,null,null,null,null,null,0]
["Sch VIII","LT Annuity",null,"1. Reserve Out Money - 21. GMAB - Mat. 0-1 Yr",0,null,null,null,null,null,null,null,0]
["Sch VIII","LT Annuity",null,"1. Reserve Out Money - 22. GMAB - Mat. 1-2 Yrs",0,null,null,null,null,null,null,null,0]
["Sch VIII","LT Annuity",null,"1. Reserve Out Money - 23. GMAB - Mat. 2-3 Yrs",0,null,null,null,null,null,null,null,0]
["Sch VIII","LT Annuity",null,"1. Reserve Out Money - 24. GMAB - Mat. 3-4 Yrs",0,null,null,null,null,null,null,null,0]
["Sch VIII","LT Annuity",null,"1. Reserve Out Money - 25. GMAB - Mat. 4-5 Yrs",0,null,null,null,null,null,null,null,0]
["Sch VIII","LT Annuity",null,"1. Reserve Out Money - 26. GMAB - Mat. 5-6 Yrs",0,null,null,null,null,null,null,null,0]
["Sch VIII","LT Annuity",null,"1. Reserve Out Money - 27. GMAB - Mat. 6-7 Yrs",0,null,null,null,null,null,null,null,0]
["Sch VIII","LT Annuity",null,"1. Reserve Out Money - 28. GMAB - Mat. 7-8 Yrs",0,null,null,null,null,null,null,null,0]
["Sch VIII","LT Annuity",null,"1. Reserve Out Money - 29. GMAB - Mat. 8-9 Yrs",0,null,null,null,null,null,null,null,0]
["Sch VIII","LT Annuity",null,"1. Reserve Out Money - 30. GMAB - Mat. 9+ Yrs",0,null,null,null,null,null,null,null,0]
["Sch VIII","LT Annuity",null,"1. - Total",0,null,null,null,null,null,null,null,0]
["Sch VIII","LT Annuity",null,"2. Vol. 0-10% In Money - 1. GMDB - Return of Prem.",0,null,null,null,null,null,null,null,0]
["Sch VIII","LT Annuity",null,"2. Vol. 0-10% In Money - 2. GMDB - Enh. Benefit",0,null,null,null,null,null,null,null,0]
["Sch VIII","LT Annuity",null,"2. Vol. 0-10% In Money - 3. GMIB",0,null,null,null,null,null,null,null,0]
["Sch VIII","LT Annuity",null,"2. Vol. 0-10% In Money - 4. GMWB",0,null,null,null,null,null,null,null,0]
["Sch VIII","LT Annuity",null,"2. Vol. 0-10% In Money - 5. GEEB",0,null,null,null,null,null,null,null,0]
["Sch VIII","LT Annuity",null,"2. Vol. 0-10% In Money - 6. GMAB - Mat. 0-1 Yr",0,null,null,null,null,null,null,null,0]
["Sch VIII","LT Annuity",null,"2. Vol. 0-10% In Money - 7. GMAB - Mat. 1-2 Yrs",0,null,null,null,null,null,null,null,0]
["Sch VIII","LT Annuity",null,"2. Vol. 0-10% In Money - 8. GMAB - Mat. 2-3 Yrs",0,null,null,null,null,null,null,null,0]
["Sch VIII","LT Annuity",null,"2. Vol. 0-10% In Money - 9. GMAB - Mat. 3-4 Yrs",0,null,null,null,null,null,null,null,0]
["Sch VIII","LT Annuity",null,"2. Vol. 0-10% In Money - 10. GMAB - Mat. 4-5 Yrs",0,null,null,null,null,null,null,null,0]
["Sch VIII","LT Annuity",null,"2. Vol. 0-10% In Money - 11. GMAB - Mat. 5-6 Yrs",0,null,null,null,null,null,null,null,0]
["Sch VIII","LT Annuity",null,"2. Vol. 0-10% In Money - 12. GMAB - Mat. 6-7 Yrs",0,null,null,null,null,null,null,null,0]
["Sch VIII","LT Annuity",null,"2. Vol. 0-10% In Money - 13. GMAB - Mat. 7-8 Yrs",0,null,null,null,null,null,null,null,0]
["Sch VIII","LT Annuity",null,"2. Vol. 0-10% In Money - 14. GMAB - Mat. 8-9 Yrs",0,null,null,null,null,null,null,null,0]
["Sch VIII","LT Annuity",null,"2. Vol. 0-10% In Money - 15. GMAB - Mat. 9+ Yrs",0,null,null,null,null,null,null,null,0]
["Sch VIII","LT Annuity",null,"2. Vol. 0-10% Out Money - 16. GMDB - Return of Prem.",0,null,null,null,null,null,null,null,0]
["Sch VIII","LT Annuity",null,"2. Vol. 0-10% Out Money - 17. GMDB - Enh. Benefit",0,null,null,null,null,null,null,null,0]
["Sch VIII","LT Annuity",null,"2. Vol. 0-10% Out Money - 18. GMIB",0,null,null,null,null,null,null,null,0]
["Sch VIII","LT Annuity",null,"2. Vol. 0-10% Out Money - 19. GMWB",0,null,null,null,null,null,null,null,0]
["Sch VIII","LT Annuity",null,"2. Vol. 0-10% Out Money - 20. GEEB",0,null,null,null,null,null,null,null,0]
["Sch VIII","LT Annuity",null,"2. Vol. 0-10% Out Money - 21. GMAB - Mat. 0-1 Yr",0,null,null,null,null,null,null,null,0]
["Sch VIII","LT Annuity",null,"2. Vol. 0-10% Out Money - 22. GMAB - Mat. 1-2 Yrs",0,null,null,null,null,null,null,null,0]
["Sch VIII","LT Annuity",null,"2. Vol. 0-10% Out Money - 23. GMAB - Mat. 2-3 Yrs",0,null,null,null,null,null,null,null,0]
["Sch VIII","LT Annuity",null,"2. Vol. 0-10% Out Money - 24. GMAB - Mat. 3-4 Yrs",0,null,null,null,null,null,null,null,0]
["Sch VIII","LT Annuity",null,"2. Vol. 0-10% Out Money - 25. GMAB - Mat. 4-5 Yrs",0,null,null,null,null,null,null,null,0]
["Sch VIII","LT Annuity",null,"2. Vol. 0-10% Out Money - 26. GMAB - Mat. 5-6 Yrs",0,null,null,null,null,null,null,null,0]
["Sch VIII","LT Annuity",null,"2. Vol. 0-10% Out Money - 27. GMAB - Mat. 6-7 Yrs",0,null,null,null,null,null,null,null,0]
["Sch VIII","LT Annuity",null,"2. Vol. 0-10% Out Money - 28. GMAB - Mat. 7-8 Yrs",0,null,null,null,null,null,null,null,0]
["Sch VIII","LT Annuity",null,"2. Vol. 0-10% Out Money - 29. GMAB - Mat. 8-9 Yrs",0,null,null,null,null,null,null,null,0]
["Sch VIII","LT Annuity",null,"2. Vol. 0-10% Out Money - 30. GMAB - Mat. 9+ Yrs",0,null,null,null,null,null,null,null,0]
["Sch VIII","LT Annuity",null,"2. Vol. 0-10% - Total",0,null,null,null,null,null,null,null,0]
["Sch VIII","LT Annuity",null,"3. Vol. 10-15% In Money - 1. GMDB - Return of Prem.",0,null,null,null,null,null,null,null,0]
["Sch VIII","LT Annuity",null,"3. Vol. 10-15% In Money - 2. GMDB - Enh. Benefit",0,null,null,null,null,null,null,null,0]
["Sch VIII","LT Annuity",null,"3. Vol. 10-15% In Money - 3. GMIB",0,null,null,null,null,null,null,null,0]
["Sch VIII","LT Annuity",null,"3. Vol. 10-15% In Money - 4. GMWB",0,null,null,null,null,null,null,null,0]
["Sch VIII","LT Annuity",null,"3. Vol. 10-15% In Money - 5. GEEB",0,null,null,null,null,null,null,null,0]
["Sch VIII","LT Annuity",null,"3. Vol. 10-15% In Money - 6. GMAB - Mat. 0-1 Yr",0,null,null,null,null,null,null,null,0]
["Sch VIII","LT Annuity",null,"3. Vol. 10-15% In Money - 7. GMAB - Mat. 1-2 Yrs",0,null,null,null,null,null,null,null,0]
["Sch VIII","LT Annuity",null,"3. Vol. 10-15% In Money - 8. GMAB - Mat. 2-3 Yrs",0,null,null,null,null,null,null,null,0]
["Sch VIII","LT Annuity",null,"3. Vol. 10-15% In Money - 9. GMAB - Mat. 3-4 Yrs",0,null,null,null,null,null,null,null,0]
["Sch VIII","LT Annuity",null,"3. Vol. 10-15% In Money - 10. GMAB - Mat. 4-5 Yrs",0,null,null,null,null,null,null,null,0]
["Sch VIII","LT Annuity",null,"3. Vol. 10-15% In Money - 11. GMAB - Mat. 5-6 Yrs",0,null,null,null,null,null,null,null,0]
["Sch VIII","LT Annuity",null,"3. Vol. 10-15% In Money - 12. GMAB - Mat. 6-7 Yrs",0,null,null,null,null,null,null,null,0]
["Sch VIII","LT Annuity",null,"3. Vol. 10-15% In Money - 13. GMAB - Mat. 7-8 Yrs",0,null,null,null,null,null,null,null,0]
["Sch VIII","LT Annuity",null,"3. Vol. 10-15% In Money - 14. GMAB - Mat. 8-9 Yrs",0,null,null,null,null,null,null,null,0]
["Sch VIII","LT Annuity",null,"3. Vol. 10-15% In Money - 15. GMAB - Mat. 9+ Yrs",0,null,null,null,null,null,null,null,0]
["Sch VIII","LT Annuity",null,"3. Vol. 10-15% Out Money - 16. GMDB - Return of Prem.",0,null,null,null,null,null,null,null,0]
["Sch VIII","LT Annuity",null,"3. Vol. 10-15% Out Money - 17. GMDB - Enh. Benefit",0,null,null,null,null,null,null,null,0]
["Sch VIII","LT Annuity",null,"3. Vol. 10-15% Out Money - 18. GMIB",0,null,null,null,null,null,null,null,0]
["Sch VIII","LT Annuity",null,"3. Vol. 10-15% Out Money - 19. GMWB",0,null,null,null,null,null,null,null,0]
["Sch VIII","LT Annuity",null,"3. Vol. 10-15% Out Money - 20. GEEB",0,null,null,null,null,null,null,null,0]
["Sch VIII","LT Annuity",null,"3. Vol. 10-15% Out Money - 21. GMAB - Mat. 0-1 Yr",0,null,null,null,null,null,null,null,0]
["Sch VIII","LT Annuity",null,"3. Vol. 10-15% Out Money - 22. GMAB - Mat. 1-2 Yrs",0,null,null,null,null,null,null,null,0]
["Sch VIII","LT Annuity",null,"3. Vol. 10-15% Out Money - 23. GMAB - Mat. 2-3 Yrs",0,null,null,null,null,null,null,null,0]
["Sch VIII","LT Annuity",null,"3. Vol. 10-15% Out Money - 24. GMAB - Mat. 3-4 Yrs",0,null,null,null,null,null,null,null,0]
["Sch VIII","LT Annuity",null,"3. Vol. 10-15% Out Money - 25. GMAB - Mat. 4-5 Yrs",0,null,null,null,null,null,null,null,0]
["Sch VIII","LT Annuity",null,"3. Vol. 10-15% Out Money - 26. GMAB - Mat. 5-6 Yrs",0,null,null,null,null,null,null,null,0]
["Sch VIII","LT Annuity",null,"3. Vol. 10-15% Out Money - 27. GMAB - Mat. 6-7 Yrs",0,null,null,null,null,null,null,null,0]
["Sch VIII","LT Annuity",null,"3. Vol. 10-15% Out Money - 28. GMAB - Mat. 7-8 Yrs",0,null,null,null,null,null,null,null,0]
["Sch VIII","LT Annuity",null,"3. Vol. 10-15% Out Money - 29. GMAB - Mat. 8-9 Yrs",0,null,null,null,null,null,null,null,0]
["Sch VIII","LT Annuity",null,"3. Vol. 10-15% Out Money - 30. GMAB - Mat. 9+ Yrs",0,null,null,null,null,null,null,null,0]
["Sch VIII","LT Annuity",null,"3. Vol. 10-15% - Total",0,null,null,null,null,null,null,null,0]
["Sch VIII","LT Annuity",null,"4. Vol. +15% In Money - 1. GMDB - Return of Prem.",0,null,null,null,null,null,null,null,0]
["Sch VIII","LT Annuity",null,"4. Vol. +15% In Money - 2. GMDB - Enh. Benefit",0,null,null,null,null,null,null,null,0]
["Sch VIII","LT Annuity",null,"4. Vol. +15% In Money - 3. GMIB",0,null,null,null,null,null,null,null,0]
["Sch VIII","LT Annuity",null,"4. Vol. +15% In Money - 4. GMWB",0,null,null,null,null,null,null,null,0]
["Sch VIII","LT Annuity",null,"4. Vol. +15% In Money - 5. GEEB",0,null,null,null,null,null,null,null,0]
["Sch VIII","LT Annuity",null,"4. Vol. +15% In Money - 6. GMAB - Mat. 0-1 Yr",0,null,null,null,null,null,null,null,0]
["Sch VIII","LT Annuity",null,"4. Vol. +15% In Money - 7. GMAB - Mat. 1-2 Yrs",0,null,null,null,null,null,null,null,0]
["Sch VIII","LT Annuity",null,"4. Vol. +15% In Money - 8. GMAB - Mat. 2-3 Yrs",0,null,null,null,null,null,null,null,0]
["Sch VIII","LT Annuity",null,"4. Vol. +15% In Money - 9. GMAB - Mat. 3-4 Yrs",0,null,null,null,null,null,null,null,0]
["Sch VIII","LT Annuity",null,"4. Vol. +15% In Money - 10. GMAB - Mat. 4-5 Yrs",0,null,null,null,null,null,null,null,0]
["Sch VIII","LT Annuity",null,"4. Vol. +15% In Money - 11. GMAB - Mat. 5-6 Yrs",0,null,null,null,null,null,null,null,0]
["Sch VIII","LT Annuity",null,"4. Vol. +15% In Money - 12. GMAB - Mat. 6-7 Yrs",0,null,null,null,null,null,null,null,0]
["Sch VIII","LT Annuity",null,"4. Vol. +15% In Money - 13. GMAB - Mat. 7-8 Yrs",0,null,null,null,null,null,null,null,0]
["Sch VIII","LT Annuity",null,"4. Vol. +15% In Money - 14. GMAB - Mat. 8-9 Yrs",0,null,null,null,null,null,null,null,0]
["Sch VIII","LT Annuity",null,"4. Vol. +15% In Money - 15. GMAB - Mat. 9+ Yrs",0,null,null,null,null,null,null,null,0]
["Sch VIII","LT Annuity",null,"4. Vol. +15% Out Money - 16. GMDB - Return of Prem.",0,null,null,null,null,null,null,null,0]
["Sch VIII","LT Annuity",null,"4. Vol. +15% Out Money - 17. GMDB - Enh. Benefit",0,null,null,null,null,null,null,null,0]
["Sch VIII","LT Annuity",null,"4. Vol. +15% Out Money - 18. GMIB",0,null,null,null,null,null,null,null,0]
["Sch VIII","LT Annuity",null,"4. Vol. +15% Out Money - 19. GMWB",0,null,null,null,null,null,null,null,0]
["Sch VIII","LT Annuity",null,"4. Vol. +15% Out Money - 20. GEEB",0,null,null,null,null,null,null,null,0]
["Sch VIII","LT Annuity",null,"4. Vol. +15% Out Money - 21. GMAB - Mat. 0-1 Yr",0,null,null,null,null,null,null,null,0]
["Sch VIII","LT Annuity",null,"4. Vol. +15% Out Money - 22. GMAB - Mat. 1-2 Yrs",0,null,null,null,null,null,null,null,0]
["Sch VIII","LT Annuity",null,"4. Vol. +15% Out Money - 23. GMAB - Mat. 2-3 Yrs",0,null,null,null,null,null,null,null,0]
["Sch VIII","LT Annuity",null,"4. Vol. +15% Out Money - 24. GMAB - Mat. 3-4 Yrs",0,null,null,null,null,null,null,null,0]
["Sch VIII","LT Annuity",null,"4. Vol. +15% Out Money - 25. GMAB - Mat. 4-5 Yrs",0,null,null,null,null,null,null,null,0]
["Sch VIII","LT Annuity",null,"4. Vol. +15% Out Money - 26. GMAB - Mat. 5-6 Yrs",0,null,null,null,null,null,null,null,0]
["Sch VIII","LT Annuity",null,"4. Vol. +15% Out Money - 27. GMAB - Mat. 6-7 Yrs",0,null,null,null,null,null,null,null,0]
["Sch VIII","LT Annuity",null,"4. Vol. +15% Out Money - 28. GMAB - Mat. 7-8 Yrs",0,null,null,null,null,null,null,null,0]
["Sch VIII","LT Annuity",null,"4. Vol. +15% Out Money - 29. GMAB - Mat. 8-9 Yrs",0,null,null,null,null,null,null,null,0]
["Sch VIII","LT Annuity",null,"4. Vol. +15% Out Money - 30. GMAB - Mat. 9+ Yrs",0,null,null,null,null,null,null,null,0]
["Sch VIII","LT Annuity",null,"4. Vol. +15% - Total",0,null,null,null,null,null,null,null,0]
["Sch VIII","LT Annuity",null,"5. Vol. 0-10% In Money - 1. GMDB - Return of Prem.",0,null,null,null,null,null,null,null,0]
["Sch VIII","LT Annuity",null,"5. Vol. 0-10% In Money - 2. GMDB - Enh. Benefit",0,null,null,null,null,null,null,null,0]
["Sch VIII","LT Annuity",null,"5. Vol. 0-10% In Money - 3. GMIB",0,null,null,null,null,null,null,null,0]
["Sch VIII","LT Annuity",null,"5. Vol. 0-10% In Money - 4. GMWB",0,null,null,null,null,null,null,null,0]
["Sch VIII","LT Annuity",null,"5. Vol. 0-10% In Money - 5. GEEB",0,null,null,null,null,null,null,null,0]
["Sch VIII","LT Annuity",null,"5. Vol. 0-10% In Money - 6. GMAB - Mat. 0-1 Yr",0,null,null,null,null,null,null,null,0]
["Sch VIII","LT Annuity",null,"5. Vol. 0-10% In Money - 7. GMAB - Mat. 1-2 Yrs",0,null,null,null,null,null,null,null,0]
["Sch VIII","LT Annuity",null,"5. Vol. 0-10% In Money - 8. GMAB - Mat. 2-3 Yrs",0,null,null,null,null,null,null,null,0]
["Sch VIII","LT Annuity",null,"5. Vol. 0-10% In Money - 9. GMAB - Mat. 3-4 Yrs",0,null,null,null,null,null,null,null,0]
["Sch VIII","LT Annuity",null,"5. Vol. 0-10% In Money - 10. GMAB - Mat. 4-5 Yrs",0,null,null,null,null,null,null,null,0]
["Sch VIII","LT Annuity",null,"5. Vol. 0-10% In Money - 11. GMAB - Mat. 5-6 Yrs",0,null,null,null,null,null,null,null,0]
["Sch VIII","LT Annuity",null,"5. Vol. 0-10% In Money - 12. GMAB - Mat. 6-7 Yrs",0,null,null,null,null,null,null,null,0]
["Sch VIII","LT Annuity",null,"5. Vol. 0-10% In Money - 13. GMAB - Mat. 7-8 Yrs",0,null,null,null,null,null,null,null,0]
["Sch VIII","LT Annuity",null,"5. Vol. 0-10% In Money - 14. GMAB - Mat. 8-9 Yrs",0,null,null,null,null,null,null,null,0]
["Sch VIII","LT Annuity",null,"5. Vol. 0-10% In Money - 15. GMAB - Mat. 9+ Yrs",0,null,null,null,null,null,null,null,0]
["Sch VIII","LT Annuity",null,"5. Vol. 0-10% - Total",0,null,null,null,null,null,null,null,0]
["Sch VIII","LT Annuity",null,"6. Vol. 10-15% In Money - 1. GMDB - Return of Prem.",0,null,null,null,null,null,null,null,0]
["Sch VIII","LT Annuity",null,"6. Vol. 10-15% In Money - 2. GMDB - Enh. Benefit",0,null,null,null,null,null,null,null,0]
["Sch VIII","LT Annuity",null,"6. Vol. 10-15% In Money - 3. GMIB",0,null,null,null,null,null,null,null,0]
["Sch VIII","LT Annuity",null,"6. Vol. 10-15% In Money - 4. GMWB",0,null,null,null,null,null,null,null,0]
["Sch VIII","LT Annuity",null,"6. Vol. 10-15% In Money - 5. GEEB",0,null,null,null,null,null,null,null,0]
["Sch VIII","LT Annuity",null,"6. Vol. 10-15% In Money - 6. GMAB - Mat. 0-1 Yr",0,null,null,null,null,null,null,null,0]
["Sch VIII","LT Annuity",null,"6. Vol. 10-15% In Money - 7. GMAB - Mat. 1-2 Yrs",0,null,null,null,null,null,null,null,0]
["Sch VIII","LT Annuity",null,"6. Vol. 10-15% In Money - 8. GMAB - Mat. 2-3 Yrs",0,null,null,null,null,null,null,null,0]
["Sch VIII","LT Annuity",null,"6. Vol. 10-15% In Money - 9. GMAB - Mat. 3-4 Yrs",0,null,null,null,null,null,null,null,0]
["Sch VIII","LT Annuity",null,"6. Vol. 10-15% In Money - 10. GMAB - Mat. 4-5 Yrs",0,null,null,null,null,null,null,null,0]
["Sch VIII","LT Annuity",null,"6. Vol. 10-15% In Money - 11. GMAB - Mat. 5-6 Yrs",0,null,null,null,null,null,null,null,0]
["Sch VIII","LT Annuity",null,"6. Vol. 10-15% In Money - 12. GMAB - Mat. 6-7 Yrs",0,null,null,null,null,null,null,null,0]
["Sch VIII","LT Annuity",null,"6. Vol. 10-15% In Money - 13. GMAB - Mat. 7-8 Yrs",0,null,null,null,null,null,null,null,0]
["Sch VIII","LT Annuity",null,"6. Vol. 10-15% In Money - 14. GMAB - Mat. 8-9 Yrs",0,null,null,null,null,null,null,null,0]
["Sch VIII","LT Annuity",null,"6. Vol. 10-15% In Money - 15. GMAB - Mat. 9+ Yrs",0,null,null,null,null,null,null,null,0]
["Sch VIII","LT Annuity",null,"6. Vol. 10-15% - Total",0,null,null,null,null,null,null,null,0]
["Sch VIII","LT Annuity",null,"7. Vol. +15% In Money - 1. GMDB - Return of Prem.",0,null,null,null,null,null,null,null,0]
["Sch VIII","LT Annuity",null,"7. Vol. +15% In Money - 2. GMDB - Enh. Benefit",0,null,null,null,null,null,null,null,0]
["Sch VIII","LT Annuity",null,"7. Vol. +15% In Money - 3. GMIB",0,null,null,null,null,null,null,null,0]
["Sch VIII","LT Annuity",null,"7. Vol. +15% In Money - 4. GMWB",0,null,null,null,null,null,null,null,0]
["Sch VIII","LT Annuity",null,"7. Vol. +15% In Money - 5. GEEB",0,null,null,null,null,null,null,null,0]
["Sch VIII","LT Annuity",null,"7. Vol. +15% In Money - 6. GMAB - Mat. 0-1 Yr",0,null,null,null,null,null,null,null,0]
["Sch VIII","LT Annuity",null,"7. Vol. +15% In Money - 7. GMAB - Mat. 1-2 Yrs",0,null,null,null,null,null,null,null,0]
["Sch VIII","LT Annuity",null,"7. Vol. +15% In Money - 8. GMAB - Mat. 2-3 Yrs",0,null,null,null,null,null,null,null,0]
["Sch VIII","LT Annuity",null,"7. Vol. +15% In Money - 9. GMAB - Mat. 3-4 Yrs",0,null,null,null,null,null,null,null,0]
["Sch VIII","LT Annuity",null,"7. Vol. +15% In Money - 10. GMAB - Mat. 4-5 Yrs",0,null,null,null,null,null,null,null,0]
["Sch VIII","LT Annuity",null,"7. Vol. +15% In Money - 11. GMAB - Mat. 5-6 Yrs",0,null,null,null,null,null,null,null,0]
["Sch VIII","LT Annuity",null,"7. Vol. +15% In Money - 12. GMAB - Mat. 6-7 Yrs",0,null,null,null,null,null,null,null,0]
["Sch VIII","LT Annuity",null,"7. Vol. +15% In Money - 13. GMAB - Mat. 7-8 Yrs",0,null,null,null,null,null,null,null,0]
["Sch VIII","LT Annuity",null,"7. Vol. +15% In Money - 14. GMAB - Mat. 8-9 Yrs",0,null,null,null,null,null,null,null,0]
["Sch VIII","LT Annuity",null,"7. Vol. +15% In Money - 15. GMAB - Mat. 9+ Yrs",0,null,null,null,null,null,null,null,0]
["Sch VIII","LT Annuity",null,"7. Vol. +15% - Total",0,null,null,null,null,null,null,null,0]
["Sch VIII","LT Annuity",null,"32. % of GMDB with Multiple Guarantees",0,null,null,null,null,null,null,null,0]
[]
["Sch VIIIA","LT Internal Model",null,"6. W/O Hedge - Internal Model Capital Req.",0,null,null,null,null,null,null,null,0]
["Sch VIIIA","LT Internal Model",null,"6. W/O Hedge - 2a. Stress Test - 20% Shock",0,null,null,null,null,null,null,null,0]
["Sch VIIIA","LT Internal Model",null,"6. W/O Hedge - 2b. Stress Test - +10% Vol.",0,null,null,null,null,null,null,null,0]
["Sch VIIIA","LT Internal Model",null,"6. W/O Hedge - 2c. Stress Test - Int. +/-100 bps",0,null,null,null,null,null,null,null,0]
["Sch VIIIA","LT Internal Model",null,"6. W/O Hedge - 3a. Stress Test - 1",0,null,null,null,null,null,null,null,0]
["Sch VIIIA","LT Internal Model",null,"6. W/O Hedge - 3b. Stress Test - 2",0,null,null,null,null,null,null,null,0]
["Sch VIIIA","LT Internal Model",null,"6. W/O Hedge - 3c. Stress Test - 3",0,null,null,null,null,null,null,null,0]
["Sch VIIIA","LT Internal Model",null,"6. W/O Hedge - 3d. Stress Test - 4",0,null,null,null,null,null,null,null,0]
["Sch VIIIA","LT Internal Model",null,"7. Hedge - Internal Model Capital Req.",0,null,null,null,null,null,null,null,0]
["Sch VIIIA","LT Internal Model",null,"7. Hedge - 2a. Stress Test - 20% Shock",0,null,null,null,null,null,null,null,0]
["Sch VIIIA","LT Internal Model",null,"7. Hedge - 2b. Stress Test - +10% Vol.",0,null,null,null,null,null,null,null,0]
["Sch VIIIA","LT Internal Model",null,"7. Hedge - 2c. Stress Test - Int. +/-100 bps",0,null,null,null,null,null,null,null,0]
["Sch VIIIA","LT Internal Model",null,"7. Hedge - 3a. Stress Test - 1",0,null,null,null,null,null,null,null,0]
["Sch VIIIA","LT Internal Model",null,"7. Hedge - 3b. Stress Test - 2",0,null,null,null,null,null,null,null,0]
["Sch VIIIA","LT Internal Model",null,"7. Hedge - 3c. Stress Test - 3",0,null,null,null,null,null,null,null,0]
["Sch VIIIA","LT Internal Model",null,"7. Hedge - 3d. Stress Test - 4",0,null,null,null,null,null,null,null,0]
["Sch VIIIA","LT Internal Model",null,"6-7. 3a. Description of Test - 1",0,null,null,null,null,null,null,null,0]
["Sch VIIIA","LT Internal Model",null,"6-7. 3b. Description of Test - 2",0,null,null,null,null,null,null,null,0]
["Sch VIIIA","LT Internal Model",null,"6-7. 3c. Description of Test - 3",0,null,null,null,null,null,null,null,0]
["Sch VIIIA","LT Internal Model",null,"6-7. 3d. Description of Test - 4",0,null,null,null,null,null,null,null,0]
["Sch VIIIA","LT Internal Model",null,"Policy Type - 1. Res. - GMDB - Ret. Of Prem.",0,null,null,null,null,null,null,null,0]
["Sch VIIIA","LT Internal Model",null,"Policy Type - 1. Res. - GMDB - Ratchet",0,null,null,null,null,null,null,null,0]
["Sch VIIIA","LT Internal Model",null,"Policy Type - 1. Res. - GMDB - Roll-up",0,null,null,null,null,null,null,null,0]
["Sch VIIIA","LT Internal Model",null,"Policy Type - 1. Res. - GMDB - w Comp Guar.",0,null,null,null,null,null,null,null,0]
["Sch VIIIA","LT Internal Model",null,"Policy Type - 1. Res. - GMIB - Ret. Of Prem.",0,null,null,null,null,null,null,null,0]
["Sch VIIIA","LT Internal Model",null,"Policy Type - 1. Res. - GMIB - Ratchet",0,null,null,null,null,null,null,null,0]
["Sch VIIIA","LT Internal Model",null,"Policy Type - 1. Res. - GMIB - Roll-up",0,null,null,null,null,null,null,null,0]
["Sch VIIIA","LT Internal Model",null,"Policy Type - 1. Res. - GMIB - W/ Comp Guar.",0,null,null,null,null,null,null,null,0]
["Sch VIIIA","LT Internal Model",null,"Policy Type - 1. Res. - GEEB",0,null,null,null,null,null,null,null,0]
["Sch VIIIA","LT Internal Model",null,"Policy Type - 1. Res. - GMWB",0,null,null,null,null,null,null,null,0]
["Sch VIIIA","LT Internal Model",null,"Policy Type - 1. Res. - GMWL",0,null,null,null,null,null,null,null,0]
["Sch VIIIA","LT Internal Model",null,"Policy Type - 1. Res. - GMAB",0,null,null,null,null,null,null,null,0]
["Sch VIIIA","LT Internal Model",null,"Policy Type - 1. Res. - GMAB w Comp. Guar.",0,null,null,null,null,null,null,null,0]
["Sch VIIIA","LT Internal Model",null,"Policy Type - 1. Res. - Total",0,null,null,null,null,null,null,null,0]
["Sch VIIIA","LT Internal Model",null,"Policy Type - 2. Policy Count - GMDB - Ret. Of Prem.",0,null,null,null,null,null,null,null,0]
["Sch VIIIA","LT Internal Model",null,"Policy Type - 2. Policy Count - GMDB - Ratchet",0,null,null,null,null,null,null,null,0]
["Sch VIIIA","LT Internal Model",null,"Policy Type - 2. Policy Count - GMDB - Roll-up",0,null,null,null,null,null,null,null,0]
["Sch VIIIA","LT Internal Model",null,"Policy Type - 2. Policy Count - GMDB - w Comp Guar.",0,null,null,null,null,null,null,null,0]
["Sch VIIIA","LT Internal Model",null,"Policy Type - 2. Policy Count - GMIB - Ret. Of Prem.",0,null,null,null,null,null,null,null,0]
["Sch VIIIA","LT Internal Model",null,"Policy Type - 2. Policy Count - GMIB - Ratchet",0,null,null,null,null,null,null,null,0]
["Sch VIIIA","LT Internal Model",null,"Policy Type - 2. Policy Count - GMIB - Roll-up",0,null,null,null,null,null,null,null,0]
["Sch VIIIA","LT Internal Model",null,"Policy Type - 2. Policy Count - GMIB - W/ Comp Guar.",0,null,null,null,null,null,null,null,0]
["Sch VIIIA","LT Internal Model",null,"Policy Type - 2. Policy Count - GEEB",0,null,null,null,null,null,null,null,0]
["Sch VIIIA","LT Internal Model",null,"Policy Type - 2. Policy Count - GMWB",0,null,null,null,null,null,null,null,0]
["Sch VIIIA","LT Internal Model",null,"Policy Type - 2. Policy Count - GMWL",0,null,null,null,null,null,null,null,0]
["Sch VIIIA","LT Internal Model",null,"Policy Type - 2. Policy Count - GMAB",0,null,null,null,null,null,null,null,0]
["Sch VIIIA","LT Internal Model",null,"Policy Type - 2. Policy Count - GMAB w Comp. Guar.",0,null,null,null,null,null,null,null,0]
["Sch VIIIA","LT Internal Model",null,"Policy Type - 2. Policy Count - Total",0,null,null,null,null,null,null,null,0]
["Sch VIIIA","LT Internal Model",null,"Policy Type - 3. Acc. Val. - GMDB - Ret. Of Prem.",0,null,null,null,null,null,null,null,0]
["Sch VIIIA","LT Internal Model",null,"Policy Type - 3. Acc. Val. - GMDB - Ratchet",0,null,null,null,null,null,null,null,0]
["Sch VIIIA","LT Internal Model",null,"Policy Type - 3. Acc. Val. - GMDB - Roll-up",0,null,null,null,null,null,null,null,0]
["Sch VIIIA","LT Internal Model",null,"Policy Type - 3. Acc. Val. - GMDB - w Comp Guar.",0,null,null,null,null,null,null,null,0]
["Sch VIIIA","LT Internal Model",null,"Policy Type - 3. Acc. Val. - GMIB - Ret. Of Prem.",0,null,null,null,null,null,null,null,0]
["Sch VIIIA","LT Internal Model",null,"Policy Type - 3. Acc. Val. - GMIB - Ratchet",0,null,null,null,null,null,null,null,0]
["Sch VIIIA","LT Internal Model",null,"Policy Type - 3. Acc. Val. - GMIB - Roll-up",0,null,null,null,null,null,null,null,0]
["Sch VIIIA","LT Internal Model",null,"Policy Type - 3. Acc. Val. - GMIB - W/ Comp Guar.",0,null,null,null,null,null,null,null,0]
["Sch VIIIA","LT Internal Model",null,"Policy Type - 3. Acc. Val. - GEEB",0,null,null,null,null,null,null,null,0]
["Sch VIIIA","LT Internal Model",null,"Policy Type - 3. Acc. Val. - GMWB",0,null,null,null,null,null,null,null,0]
["Sch VIIIA","LT Internal Model",null,"Policy Type - 3. Acc. Val. - GMWL",0,null,null,null,null,null,null,null,0]
["Sch VIIIA","LT Internal Model",null,"Policy Type - 3. Acc. Val. - GMAB",0,null,null,null,null,null,null,null,0]
["Sch VIIIA","LT Internal Model",null,"Policy Type - 3. Acc. Val. - GMAB w Comp. Guar.",0,null,null,null,null,null,null,null,0]
["Sch VIIIA","LT Internal Model",null,"Policy Type - 3. Acc. Val. - Total",0,null,null,null,null,null,null,null,0]
["Sch VIIIA","LT Internal Model",null,"Policy Type - 4. Guar. Val. - GMDB - Ret. Of Prem.",0,null,null,null,null,null,null,null,0]
["Sch VIIIA","LT Internal Model",null,"Policy Type - 4. Guar. Val. - GMDB - Ratchet",0,null,null,null,null,null,null,null,0]
["Sch VIIIA","LT Internal Model",null,"Policy Type - 4. Guar. Val. - GMDB - Roll-up",0,null,null,null,null,null,null,null,0]
["Sch VIIIA","LT Internal Model",null,"Policy Type - 4. Guar. Val. - GMDB - w Comp Guar.",0,null,null,null,null,null,null,null,0]
["Sch VIIIA","LT Internal Model",null,"Policy Type - 4. Guar. Val. - GMIB - Ret. Of Prem.",0,null,null,null,null,null,null,null,0]
["Sch VIIIA","LT Internal Model",null,"Policy Type - 4. Guar. Val. - GMIB - Ratchet",0,null,null,null,null,null,null,null,0]
["Sch VIIIA","LT Internal Model",null,"Policy Type - 4. Guar. Val. - GMIB - Roll-up",0,null,null,null,null,null,null,null,0]
["Sch VIIIA","LT Internal Model",null,"Policy Type - 4. Guar. Val. - GMIB - W/ Comp Guar.",0,null,null,null,null,null,null,null,0]
["Sch VIIIA","LT Internal Model",null,"Policy Type - 4. Guar. Val. - GEEB",0,null,null,null,null,null,null,null,0]
["Sch VIIIA","LT Internal Model",null,"Policy Type - 4. Guar. Val. - GMWB",0,null,null,null,null,null,null,null,0]
["Sch VIIIA","LT Internal Model",null,"Policy Type - 4. Guar. Val. - GMWL",0,null,null,null,null,null,null,null,0]
["Sch VIIIA","LT Internal Model",null,"Policy Type - 4. Guar. Val. - GMAB",0,null,null,null,null,null,null,null,0]
["Sch VIIIA","LT Internal Model",null,"Policy Type - 4. Guar. Val. - GMAB w Comp. Guar.",0,null,null,null,null,null,null,null,0]
["Sch VIIIA","LT Internal Model",null,"Policy Type - 4. Guar. Val. - Total",0,null,null,null,null,null,null,null,0]
["Sch VIIIA","LT Internal Model",null,"Policy Type - 5. NAR - GMDB - Ret. Of Prem.",0,null,null,null,null,null,null,null,0]
["Sch VIIIA","LT Internal Model",null,"Policy Type - 5. NAR - GMDB - Ratchet",0,null,null,null,null,null,null,null,0]
["Sch VIIIA","LT Internal Model",null,"Policy Type - 5. NAR - GMDB - Roll-up",0,null,null,null,null,null,null,null,0]
["Sch VIIIA","LT Internal Model",null,"Policy Type - 5. NAR - GMDB - w Comp Guar.",0,null,null,null,null,null,null,null,0]
["Sch VIIIA","LT Internal Model",null,"Policy Type - 5. NAR - GMIB - Ret. Of Prem.",0,null,null,null,null,null,null,null,0]
["Sch VIIIA","LT Internal Model",null,"Policy Type - 5. NAR - GMIB - Ratchet",0,null,null,null,null,null,null,null,0]
["Sch VIIIA","LT Internal Model",null,"Policy Type - 5. NAR - GMIB - Roll-up",0,null,null,null,null,null,null,null,0]
["Sch VIIIA","LT Internal Model",null,"Policy Type - 5. NAR - GMIB - W/ Comp Guar.",0,null,null,null,null,null,null,null,0]
["Sch VIIIA","LT Internal Model",null,"Policy Type - 5. NAR - GEEB",0,null,null,null,null,null,null,null,0]
["Sch VIIIA","LT Internal Model",null,"Policy Type - 5. NAR - GMWB",0,null,null,null,null,null,null,null,0]
["Sch VIIIA","LT Internal Model",null,"Policy Type - 5. NAR - GMWL",0,null,null,null,null,null,null,null,0]
["Sch VIIIA","LT Internal Model",null,"Policy Type - 5. NAR - GMAB",0,null,null,null,null,null,null,null,0]
["Sch VIIIA","LT Internal Model",null,"Policy Type - 5. NAR - GMAB w Comp. Guar.",0,null,null,null,null,null,null,null,0]
["Sch VIIIA","LT Internal Model",null,"Policy Type - 5. NAR - Total",0,null,null,null,null,null,null,null,0]
["Sch VIIIA","LT Internal Model",null,"Years Since Issue - 1. Stat. Res. - 0",0,null,null,null,null,null,null,null,0]
["Sch VIIIA","LT Internal Model",null,"Years Since Issue - 1. Stat. Res. - 1",0,null,null,null,null,null,null,null,0]
["Sch VIIIA","LT Internal Model",null,"Years Since Issue - 1. Stat. Res. - 2",0,null,null,null,null,null,null,null,0]
["Sch VIIIA","LT Internal Model",null,"Years Since Issue - 1. Stat. Res. - 3",0,null,null,null,null,null,null,null,0]
["Sch VIIIA","LT Internal Model",null,"Years Since Issue - 1. Stat. Res. - 4",0,null,null,null,null,null,null,null,0]
["Sch VIIIA","LT Internal Model",null,"Years Since Issue - 1. Stat. Res. - 5",0,null,null,null,null,null,null,null,0]
["Sch VIIIA","LT Internal Model",null,"Years Since Issue - 1. Stat. Res. - 6",0,null,null,null,null,null,null,null,0]
["Sch VIIIA","LT Internal Model",null,"Years Since Issue - 1. Stat. Res. - 7",0,null,null,null,null,null,null,null,0]
["Sch VIIIA","LT Internal Model",null,"Years Since Issue - 1. Stat. Res. - 8",0,null,null,null,null,null,null,null,0]
["Sch VIIIA","LT Internal Model",null,"Years Since Issue - 1. Stat. Res. - 9",0,null,null,null,null,null,null,null,0]
["Sch VIIIA","LT Internal Model",null,"Years Since Issue - 1. Stat. Res. - 10",0,null,null,null,null,null,null,null,0]
["Sch VIIIA","LT Internal Model",null,"Years Since Issue - 1. Stat. Res. - 11",0,null,null,null,null,null,null,null,0]
["Sch VIIIA","LT Internal Model",null,"Years Since Issue - 1. Stat. Res. - 12",0,null,null,null,null,null,null,null,0]
["Sch VIIIA","LT Internal Model",null,"Years Since Issue - 1. Stat. Res. - 13",0,null,null,null,null,null,null,null,0]
["Sch VIIIA","LT Internal Model",null,"Years Since Issue - 1. Stat. Res. - 14",0,null,null,null,null,null,null,null,0]
["Sch VIIIA","LT Internal Model",null,"Years Since Issue - 1. Stat. Res. - 15",0,null,null,null,null,null,null,null,0]
["Sch VIIIA","LT Internal Model",null,"Years Since Issue - 1. Stat. Res. - 15+",0,null,null,null,null,null,null,null,0]
["Sch VIIIA","LT Internal Model",null,"Years Since Issue - 1. Stat. Res. - Total",0,null,null,null,null,null,null,null,0]
["Sch VIIIA","LT Internal Model",null,"Years Since Issue - 2. Policy Count - 0",0,null,null,null,null,null,null,null,0]
["Sch VIIIA","LT Internal Model",null,"Years Since Issue - 2. Policy Count - 1",0,null,null,null,null,null,null,null,0]
["Sch VIIIA","LT Internal Model",null,"Years Since Issue - 2. Policy Count - 2",0,null,null,null,null,null,null,null,0]
["Sch VIIIA","LT Internal Model",null,"Years Since Issue - 2. Policy Count - 3",0,null,null,null,null,null,null,null,0]
["Sch VIIIA","LT Internal Model",null,"Years Since Issue - 2. Policy Count - 4",0,null,null,null,null,null,null,null,0]
["Sch VIIIA","LT Internal Model",null,"Years Since Issue - 2. Policy Count - 5",0,null,null,null,null,null,null,null,0]
["Sch VIIIA","LT Internal Model",null,"Years Since Issue - 2. Policy Count - 6",0,null,null,null,null,null,null,null,0]
["Sch VIIIA","LT Internal Model",null,"Years Since Issue - 2. Policy Count - 7",0,null,null,null,null,null,null,null,0]
["Sch VIIIA","LT Internal Model",null,"Years Since Issue - 2. Policy Count - 8",0,null,null,null,null,null,null,null,0]
["Sch VIIIA","LT Internal Model",null,"Years Since Issue - 2. Policy Count - 9",0,null,null,null,null,null,null,null,0]
["Sch VIIIA","LT Internal Model",null,"Years Since Issue - 2. Policy Count - 10",0,null,null,null,null,null,null,null,0]
["Sch VIIIA","LT Internal Model",null,"Years Since Issue - 2. Policy Count - 11",0,null,null,null,null,null,null,null,0]
["Sch VIIIA","LT Internal Model",null,"Years Since Issue - 2. Policy Count - 12",0,null,null,null,null,null,null,null,0]
["Sch VIIIA","LT Internal Model",null,"Years Since Issue - 2. Policy Count - 13",0,null,null,null,null,null,null,null,0]
["Sch VIIIA","LT Internal Model",null,"Years Since Issue - 2. Policy Count - 14",0,null,null,null,null,null,null,null,0]
["Sch VIIIA","LT Internal Model",null,"Years Since Issue - 2. Policy Count - 15",0,null,null,null,null,null,null,null,0]
["Sch VIIIA","LT Internal Model",null,"Years Since Issue - 2. Policy Count - 15+",0,null,null,null,null,null,null,null,0]
["Sch VIIIA","LT Internal Model",null,"Years Since Issue - 2. Policy Count - Total",0,null,null,null,null,null,null,null,0]
["Sch VIIIA","LT Internal Model",null,"Years Since Issue - 3. Acc. Val. - 0",0,null,null,null,null,null,null,null,0]
["Sch VIIIA","LT Internal Model",null,"Years Since Issue - 3. Acc. Val. - 1",0,null,null,null,null,null,null,null,0]
["Sch VIIIA","LT Internal Model",null,"Years Since Issue - 3. Acc. Val. - 2",0,null,null,null,null,null,null,null,0]
["Sch VIIIA","LT Internal Model",null,"Years Since Issue - 3. Acc. Val. - 3",0,null,null,null,null,null,null,null,0]
["Sch VIIIA","LT Internal Model",null,"Years Since Issue - 3. Acc. Val. - 4",0,null,null,null,null,null,null,null,0]
["Sch VIIIA","LT Internal Model",null,"Years Since Issue - 3. Acc. Val. - 5",0,null,null,null,null,null,null,null,0]
["Sch VIIIA","LT Internal Model",null,"Years Since Issue - 3. Acc. Val. - 6",0,null,null,null,null,null,null,null,0]
["Sch VIIIA","LT Internal Model",null,"Years Since Issue - 3. Acc. Val. - 7",0,null,null,null,null,null,null,null,0]
["Sch VIIIA","LT Internal Model",null,"Years Since Issue - 3. Acc. Val. - 8",0,null,null,null,null,null,null,null,0]
["Sch VIIIA","LT Internal Model",null,"Years Since Issue - 3. Acc. Val. - 9",0,null,null,null,null,null,null,null,0]
["Sch VIIIA","LT Internal Model",null,"Years Since Issue - 3. Acc. Val. - 10",0,null,null,null,null,null,null,null,0]
["Sch VIIIA","LT Internal Model",null,"Years Since Issue - 3. Acc. Val. - 11",0,null,null,null,null,null,null,null,0]
["Sch VIIIA","LT Internal Model",null,"Years Since Issue - 3. Acc. Val. - 12",0,null,null,null,null,null,null,null,0]
["Sch VIIIA","LT Internal Model",null,"Years Since Issue - 3. Acc. Val. - 13",0,null,null,null,null,null,null,null,0]
["Sch VIIIA","LT Internal Model",null,"Years Since Issue - 3. Acc. Val. - 14",0,null,null,null,null,null,null,null,0]
["Sch VIIIA","LT Internal Model",null,"Years Since Issue - 3. Acc. Val. - 15",0,null,null,null,null,null,null,null,0]
["Sch VIIIA","LT Internal Model",null,"Years Since Issue - 3. Acc. Val. - 15+",0,null,null,null,null,null,null,null,0]
["Sch VIIIA","LT Internal Model",null,"Years Since Issue - 3. Acc. Val. - Total",0,null,null,null,null,null,null,null,0]
["Sch VIIIA","LT Internal Model",null,"Years Since Issue - 4. Guar. Val. - 0",0,null,null,null,null,null,null,null,0]
["Sch VIIIA","LT Internal Model",null,"Years Since Issue - 4. Guar. Val. - 1",0,null,null,null,null,null,null,null,0]
["Sch VIIIA","LT Internal Model",null,"Years Since Issue - 4. Guar. Val. - 2",0,null,null,null,null,null,null,null,0]
["Sch VIIIA","LT Internal Model",null,"Years Since Issue - 4. Guar. Val. - 3",0,null,null,null,null,null,null,null,0]
["Sch VIIIA","LT Internal Model",null,"Years Since Issue - 4. Guar. Val. - 4",0,null,null,null,null,null,null,null,0]
["Sch VIIIA","LT Internal Model",null,"Years Since Issue - 4. Guar. Val. - 5",0,null,null,null,null,null,null,null,0]
["Sch VIIIA","LT Internal Model",null,"Years Since Issue - 4. Guar. Val. - 6",0,null,null,null,null,null,null,null,0]
["Sch VIIIA","LT Internal Model",null,"Years Since Issue - 4. Guar. Val. - 7",0,null,null,null,null,null,null,null,0]
["Sch VIIIA","LT Internal Model",null,"Years Since Issue - 4. Guar. Val. - 8",0,null,null,null,null,null,null,null,0]
["Sch VIIIA","LT Internal Model",null,"Years Since Issue - 4. Guar. Val. - 9",0,null,null,null,null,null,null,null,0]
["Sch VIIIA","LT Internal Model",null,"Years Since Issue - 4. Guar. Val. - 10",0,null,null,null,null,null,null,null,0]
["Sch VIIIA","LT Internal Model",null,"Years Since Issue - 4. Guar. Val. - 11",0,null,null,null,null,null,null,null,0]
["Sch VIIIA","LT Internal Model",null,"Years Since Issue - 4. Guar. Val. - 12",0,null,null,null,null,null,null,null,0]
["Sch VIIIA","LT Internal Model",null,"Years Since Issue - 4. Guar. Val. - 13",0,null,null,null,null,null,null,null,0]
["Sch VIIIA","LT Internal Model",null,"Years Since Issue - 4. Guar. Val. - 14",0,null,null,null,null,null,null,null,0]
["Sch VIIIA","LT Internal Model",null,"Years Since Issue - 4. Guar. Val. - 15",0,null,null,null,null,null,null,null,0]
["Sch VIIIA","LT Internal Model",null,"Years Since Issue - 4. Guar. Val. - 15+",0,null,null,null,null,null,null,null,0]
["Sch VIIIA","LT Internal Model",null,"Years Since Issue - 4. Guar. Val. - Total",0,null,null,null,null,null,null,null,0]
["Sch VIIIA","LT Internal Model",null,"Years Since Issue - 5. NAR - 0",0,null,null,null,null,null,null,null,0]
["Sch VIIIA","LT Internal Model",null,"Years Since Issue - 5. NAR - 1",0,null,null,null,null,null,null,null,0]
["Sch VIIIA","LT Internal Model",null,"Years Since Issue - 5. NAR - 2",0,null,null,null,null,null,null,null,0]
["Sch VIIIA","LT Internal Model",null,"Years Since Issue - 5. NAR - 3",0,null,null,null,null,null,null,null,0]
["Sch VIIIA","LT Internal Model",null,"Years Since Issue - 5. NAR - 4",0,null,null,null,null,null,null,null,0]
["Sch VIIIA","LT Internal Model",null,"Years Since Issue - 5. NAR - 5",0,null,null,null,null,null,null,null,0]
["Sch VIIIA","LT Internal Model",null,"Years Since Issue - 5. NAR - 6",0,null,null,null,null,null,null,null,0]
["Sch VIIIA","LT Internal Model",null,"Years Since Issue - 5. NAR - 7",0,null,null,null,null,null,null,null,0]
["Sch VIIIA","LT Internal Model",null,"Years Since Issue - 5. NAR - 8",0,null,null,null,null,null,null,null,0]
["Sch VIIIA","LT Internal Model",null,"Years Since Issue - 5. NAR - 9",0,null,null,null,null,null,null,null,0]
["Sch VIIIA","LT Internal Model",null,"Years Since Issue - 5. NAR - 10",0,null,null,null,null,null,null,null,0]
["Sch VIIIA","LT Internal Model",null,"Years Since Issue - 5. NAR - 11",0,null,null,null,null,null,null,null,0]
["Sch VIIIA","LT Internal Model",null,"Years Since Issue - 5. NAR - 12",0,null,null,null,null,null,null,null,0]
["Sch VIIIA","LT Internal Model",null,"Years Since Issue - 5. NAR - 13",0,null,null,null,null,null,null,null,0]
["Sch VIIIA","LT Internal Model",null,"Years Since Issue - 5. NAR - 14",0,null,null,null,null,null,null,null,0]
["Sch VIIIA","LT Internal Model",null,"Years Since Issue - 5. NAR - 15",0,null,null,null,null,null,null,null,0]
["Sch VIIIA","LT Internal Model",null,"Years Since Issue - 5. NAR - 15+",0,null,null,null,null,null,null,null,0]
["Sch VIIIA","LT Internal Model",null,"Years Since Issue - 5. NAR - Total",0,null,null,null,null,null,null,null,0]
["Sch VIIIA","LT Internal Model",null,"In/Out of Money - 1. Res. - -15%",0,null,null,null,null,null,null,null,0]
["Sch VIIIA","LT Internal Model",null,"In/Out of Money - 1. Res. - -15 to -5%",0,null,null,null,null,null,null,null,0]
["Sch VIIIA","LT Internal Model",null,"In/Out of Money - 1. Res. - -5 to +5%",0,null,null,null,null,null,null,null,0]
["Sch VIIIA","LT Internal Model",null,"In/Out of Money - 1. Res. - +5 to +15%",0,null,null,null,null,null,null,null,0]
["Sch VIIIA","LT Internal Model",null,"In/Out of Money - 1. Res. - +15%",0,null,null,null,null,null,null,null,0]
["Sch VIIIA","LT Internal Model",null,"In/Out of Money - 1. Res. - Total",0,null,null,null,null,null,null,null,0]
["Sch VIIIA","LT Internal Model",null,"In/Out of Money - 2. Policy Count - -15%",0,null,null,null,null,null,null,null,0]
["Sch VIIIA","LT Internal Model",null,"In/Out of Money - 2. Policy Count - -15 to -5%",0,null,null,null,null,null,null,null,0]
["Sch VIIIA","LT Internal Model",null,"In/Out of Money - 2. Policy Count - -5 to +5%",0,null,null,null,null,null,null,null,0]
["Sch VIIIA","LT Internal Model",null,"In/Out of Money - 2. Policy Count - +5 to +15%",0,null,null,null,null,null,null,null,0]
["Sch VIIIA","LT Internal Model",null,"In/Out of Money - 2. Policy Count - +15%",0,null,null,null,null,null,null,null,0]
["Sch VIIIA","LT Internal Model",null,"In/Out of Money - 2. Policy Count - Total",0,null,null,null,null,null,null,null,0]
["Sch VIIIA","LT Internal Model",null,"In/Out of Money - 3. Acc. Val. - -15%",0,null,null,null,null,null,null,null,0]
["Sch VIIIA","LT Internal Model",null,"In/Out of Money - 3. Acc. Val. - -15 to -5%",0,null,null,null,null,null,null,null,0]
["Sch VIIIA","LT Internal Model",null,"In/Out of Money - 3. Acc. Val. - -5 to +5%",0,null,null,null,null,null,null,null,0]
["Sch VIIIA","LT Internal Model",null,"In/Out of Money - 3. Acc. Val. - +5 to +15%",0,null,null,null,null,null,null,null,0]
["Sch VIIIA","LT Internal Model",null,"In/Out of Money - 3. Acc. Val. - +15%",0,null,null,null,null,null,null,null,0]
["Sch VIIIA","LT Internal Model",null,"In/Out of Money - 3. Acc. Val. - Total",0,null,null,null,null,null,null,null,0]
["Sch VIIIA","LT Internal Model",null,"In/Out of Money - 4. Guar. Val. - -15%",0,null,null,null,null,null,null,null,0]
["Sch VIIIA","LT Internal Model",null,"In/Out of Money - 4. Guar. Val. - -15 to -5%",0,null,null,null,null,null,null,null,0]
["Sch VIIIA","LT Internal Model",null,"In/Out of Money - 4. Guar. Val. - -5 to +5%",0,null,null,null,null,null,null,null,0]
["Sch VIIIA","LT Internal Model",null,"In/Out of Money - 4. Guar. Val. - +5 to +15%",0,null,null,null,null,null,null,null,0]
["Sch VIIIA","LT Internal Model",null,"In/Out of Money - 4. Guar. Val. - +15%",0,null,null,null,null,null,null,null,0]
["Sch VIIIA","LT Internal Model",null,"In/Out of Money - 4. Guar. Val. - Total",0,null,null,null,null,null,null,null,0]
["Sch VIIIA","LT Internal Model",null,"In/Out of Money - 5. NAR - -15%",0,null,null,null,null,null,null,null,0]
["Sch VIIIA","LT Internal Model",null,"In/Out of Money - 5. NAR - -15 to -5%",0,null,null,null,null,null,null,null,0]
["Sch VIIIA","LT Internal Model",null,"In/Out of Money - 5. NAR - -5 to +5%",0,null,null,null,null,null,null,null,0]
["Sch VIIIA","LT Internal Model",null,"In/Out of Money - 5. NAR - +5 to +15%",0,null,null,null,null,null,null,null,0]
["Sch VIIIA","LT Internal Model",null,"In/Out of Money - 5. NAR - +15%",0,null,null,null,null,null,null,null,0]
["Sch VIIIA","LT Internal Model",null,"In/Out of Money - 5. NAR - Total",0,null,null,null,null,null,null,null,0]
["Sch VIIIA","LT Internal Model",null,"Fund Volatility - 1. Reserve - 0-10%",0,null,null,null,null,null,null,null,0]
["Sch VIIIA","LT Internal Model",null,"Fund Volatility - 1. Reserve - 10-20%",0,null,null,null,null,null,null,null,0]
["Sch VIIIA","LT Internal Model",null,"Fund Volatility - 1. Reserve - +20%",0,null,null,null,null,null,null,null,0]
["Sch VIIIA","LT Internal Model",null,"Fund Volatility - 1. Reserve - Total",0,null,null,null,null,null,null,null,0]
["Sch VIIIA","LT Internal Model",null,"Fund Volatility - 2. Policy Count - 0-10%",0,null,null,null,null,null,null,null,0]
["Sch VIIIA","LT Internal Model",null,"Fund Volatility - 2. Policy Count - 10-20%",0,null,null,null,null,null,null,null,0]
["Sch VIIIA","LT Internal Model",null,"Fund Volatility - 2. Policy Count - +20%",0,null,null,null,null,null,null,null,0]
["Sch VIIIA","LT Internal Model",null,"Fund Volatility - 2. Policy Count - Total",0,null,null,null,null,null,null,null,0]
["Sch VIIIA","LT Internal Model",null,"Fund Volatility - 3. Acc. Val. - 0-10%",0,null,null,null,null,null,null,null,0]
["Sch VIIIA","LT Internal Model",null,"Fund Volatility - 3. Acc. Val. - 10-20%",0,null,null,null,null,null,null,null,0]
["Sch VIIIA","LT Internal Model",null,"Fund Volatility - 3. Acc. Val. - +20%",0,null,null,null,null,null,null,null,0]
["Sch VIIIA","LT Internal Model",null,"Fund Volatility - 3. Acc. Val. - Total",0,null,null,null,null,null,null,null,0]
["Sch VIIIA","LT Internal Model",null,"Fund Volatility - 4. Guar. Val. - 0-10%",0,null,null,null,null,null,null,null,0]
["Sch VIIIA","LT Internal Model",null,"Fund Volatility - 4. Guar. Val. - 10-20%",0,null,null,null,null,null,null,null,0]
["Sch VIIIA","LT Internal Model",null,"Fund Volatility - 4. Guar. Val. - +20%",0,null,null,null,null,null,null,null,0]
["Sch VIIIA","LT Internal Model",null,"Fund Volatility - 4. Guar. Val. - Total",0,null,null,null,null,null,null,null,0]
["Sch VIIIA","LT Internal Model",null,"Fund Volatility - 5. NAR - 0-10%",0,null,null,null,null,null,null,null,0]
["Sch VIIIA","LT Internal Model",null,"Fund Volatility - 5. NAR - 10-20%",0,null,null,null,null,null,null,null,0]
["Sch VIIIA","LT Internal Model",null,"Fund Volatility - 5. NAR - +20%",0,null,null,null,null,null,null,null,0]
["Sch VIIIA","LT Internal Model",null,"Fund Volatility - 5. NAR - Total",0,null,null,null,null,null,null,null,0]
["Sch VIIIA","LT Internal Model",null,"Yr to Next Maturity - 1. Reserve - 0",0,null,null,null,null,null,null,null,0]
["Sch VIIIA","LT Internal Model",null,"Yr to Next Maturity - 1. Reserve - 1",0,null,null,null,null,null,null,null,0]
["Sch VIIIA","LT Internal Model",null,"Yr to Next Maturity - 1. Reserve - 2",0,null,null,null,null,null,null,null,0]
["Sch VIIIA","LT Internal Model",null,"Yr to Next Maturity - 1. Reserve - 3",0,null,null,null,null,null,null,null,0]
["Sch VIIIA","LT Internal Model",null,"Yr to Next Maturity - 1. Reserve - 4",0,null,null,null,null,null,null,null,0]
["Sch VIIIA","LT Internal Model",null,"Yr to Next Maturity - 1. Reserve - 5",0,null,null,null,null,null,null,null,0]
["Sch VIIIA","LT Internal Model",null,"Yr to Next Maturity - 1. Reserve - 6",0,null,null,null,null,null,null,null,0]
["Sch VIIIA","LT Internal Model",null,"Yr to Next Maturity - 1. Reserve - 7",0,null,null,null,null,null,null,null,0]
["Sch VIIIA","LT Internal Model",null,"Yr to Next Maturity - 1. Reserve - 8",0,null,null,null,null,null,null,null,0]
["Sch VIIIA","LT Internal Model",null,"Yr to Next Maturity - 1. Reserve - 9",0,null,null,null,null,null,null,null,0]
["Sch VIIIA","LT Internal Model",null,"Yr to Next Maturity - 1. Reserve - 10",0,null,null,null,null,null,null,null,0]
["Sch VIIIA","LT Internal Model",null,"Yr to Next Maturity - 1. Reserve - Total",0,null,null,null,null,null,null,null,0]
["Sch VIIIA","LT Internal Model",null,"Yr to Next Maturity - 2. Policy Count - 0",0,null,null,null,null,null,null,null,0]
["Sch VIIIA","LT Internal Model",null,"Yr to Next Maturity - 2. Policy Count - 1",0,null,null,null,null,null,null,null,0]
["Sch VIIIA","LT Internal Model",null,"Yr to Next Maturity - 2. Policy Count - 2",0,null,null,null,null,null,null,null,0]
["Sch VIIIA","LT Internal Model",null,"Yr to Next Maturity - 2. Policy Count - 3",0,null,null,null,null,null,null,null,0]
["Sch VIIIA","LT Internal Model",null,"Yr to Next Maturity - 2. Policy Count - 4",0,null,null,null,null,null,null,null,0]
["Sch VIIIA","LT Internal Model",null,"Yr to Next Maturity - 2. Policy Count - 5",0,null,null,null,null,null,null,null,0]
["Sch VIIIA","LT Internal Model",null,"Yr to Next Maturity - 2. Policy Count - 6",0,null,null,null,null,null,null,null,0]
["Sch VIIIA","LT Internal Model",null,"Yr to Next Maturity - 2. Policy Count - 7",0,null,null,null,null,null,null,null,0]
["Sch VIIIA","LT Internal Model",null,"Yr to Next Maturity - 2. Policy Count - 8",0,null,null,null,null,null,null,null,0]
["Sch VIIIA","LT Internal Model",null,"Yr to Next Maturity - 2. Policy Count - 9",0,null,null,null,null,null,null,null,0]
["Sch VIIIA","LT Internal Model",null,"Yr to Next Maturity - 2. Policy Count - 10",0,null,null,null,null,null,null,null,0]
["Sch VIIIA","LT Internal Model",null,"Yr to Next Maturity - 2. Policy Count - Total",0,null,null,null,null,null,null,null,0]
["Sch VIIIA","LT Internal Model",null,"Yr to Next Maturity - 3. Acc. Val. - 0",0,null,null,null,null,null,null,null,0]
["Sch VIIIA","LT Internal Model",null,"Yr to Next Maturity - 3. Acc. Val. - 1",0,null,null,null,null,null,null,null,0]
["Sch VIIIA","LT Internal Model",null,"Yr to Next Maturity - 3. Acc. Val. - 2",0,null,null,null,null,null,null,null,0]
["Sch VIIIA","LT Internal Model",null,"Yr to Next Maturity - 3. Acc. Val. - 3",0,null,null,null,null,null,null,null,0]
["Sch VIIIA","LT Internal Model",null,"Yr to Next Maturity - 3. Acc. Val. - 4",0,null,null,null,null,null,null,null,0]
["Sch VIIIA","LT Internal Model",null,"Yr to Next Maturity - 3. Acc. Val. - 5",0,null,null,null,null,null,null,null,0]
["Sch VIIIA","LT Internal Model",null,"Yr to Next Maturity - 3. Acc. Val. - 6",0,null,null,null,null,null,null,null,0]
["Sch VIIIA","LT Internal Model",null,"Yr to Next Maturity - 3. Acc. Val. - 7",0,null,null,null,null,null,null,null,0]
["Sch VIIIA","LT Internal Model",null,"Yr to Next Maturity - 3. Acc. Val. - 8",0,null,null,null,null,null,null,null,0]
["Sch VIIIA","LT Internal Model",null,"Yr to Next Maturity - 3. Acc. Val. - 9",0,null,null,null,null,null,null,null,0]
["Sch VIIIA","LT Internal Model",null,"Yr to Next Maturity - 3. Acc. Val. - 10",0,null,null,null,null,null,null,null,0]
["Sch VIIIA","LT Internal Model",null,"Yr to Next Maturity - 3. Acc. Val. - Total",0,null,null,null,null,null,null,null,0]
["Sch VIIIA","LT Internal Model",null,"Yr to Next Maturity - 4. Guar. Val. - 0",0,null,null,null,null,null,null,null,0]
["Sch VIIIA","LT Internal Model",null,"Yr to Next Maturity - 4. Guar. Val. - 1",0,null,null,null,null,null,null,null,0]
["Sch VIIIA","LT Internal Model",null,"Yr to Next Maturity - 4. Guar. Val. - 2",0,null,null,null,null,null,null,null,0]
["Sch VIIIA","LT Internal Model",null,"Yr to Next Maturity - 4. Guar. Val. - 3",0,null,null,null,null,null,null,null,0]
["Sch VIIIA","LT Internal Model",null,"Yr to Next Maturity - 4. Guar. Val. - 4",0,null,null,null,null,null,null,null,0]
["Sch VIIIA","LT Internal Model",null,"Yr to Next Maturity - 4. Guar. Val. - 5",0,null,null,null,null,null,null,null,0]
["Sch VIIIA","LT Internal Model",null,"Yr to Next Maturity - 4. Guar. Val. - 6",0,null,null,null,null,null,null,null,0]
["Sch VIIIA","LT Internal Model",null,"Yr to Next Maturity - 4. Guar. Val. - 7",0,null,null,null,null,null,null,null,0]
["Sch VIIIA","LT Internal Model",null,"Yr to Next Maturity - 4. Guar. Val. - 8",0,null,null,null,null,null,null,null,0]
["Sch VIIIA","LT Internal Model",null,"Yr to Next Maturity - 4. Guar. Val. - 9",0,null,null,null,null,null,null,null,0]
["Sch VIIIA","LT Internal Model",null,"Yr to Next Maturity - 4. Guar. Val. - 10",0,null,null,null,null,null,null,null,0]
["Sch VIIIA","LT Internal Model",null,"Yr to Next Maturity - 4. Guar. Val. - Total",0,null,null,null,null,null,null,null,0]
["Sch VIIIA","LT Internal Model",null,"Yr to Next Maturity - 5. NAR - 0",0,null,null,null,null,null,null,null,0]
["Sch VIIIA","LT Internal Model",null,"Yr to Next Maturity - 5. NAR - 1",0,null,null,null,null,null,null,null,0]
["Sch VIIIA","LT Internal Model",null,"Yr to Next Maturity - 5. NAR - 2",0,null,null,null,null,null,null,null,0]
["Sch VIIIA","LT Internal Model",null,"Yr to Next Maturity - 5. NAR - 3",0,null,null,null,null,null,null,null,0]
["Sch VIIIA","LT Internal Model",null,"Yr to Next Maturity - 5. NAR - 4",0,null,null,null,null,null,null,null,0]
["Sch VIIIA","LT Internal Model",null,"Yr to Next Maturity - 5. NAR - 5",0,null,null,null,null,null,null,null,0]
["Sch VIIIA","LT Internal Model",null,"Yr to Next Maturity - 5. NAR - 6",0,null,null,null,null,null,null,null,0]
["Sch VIIIA","LT Internal Model",null,"Yr to Next Maturity - 5. NAR - 7",0,null,null,null,null,null,null,null,0]
["Sch VIIIA","LT Internal Model",null,"Yr to Next Maturity - 5. NAR - 8",0,null,null,null,null,null,null,null,0]
["Sch VIIIA","LT Internal Model",null,"Yr to Next Maturity - 5. NAR - 9",0,null,null,null,null,null,null,null,0]
["Sch VIIIA","LT Internal Model",null,"Yr to Next Maturity - 5. NAR - 10",0,null,null,null,null,null,null,null,0]
["Sch VIIIA","LT Internal Model",null,"Yr to Next Maturity - 5. NAR - Total",0,null,null,null,null,null,null,null,0]
[]
["Sch IX(a)","CISSA Capital Summary",null,{"$f":"IF('Insurer Information'!$F$9=\"Class C\",\"Insurance Risk\",\"Mortality Risk\")","v":"Mortality Risk"},null,null,null,null,null,null,null,null,0]
["Sch IX(a)","CISSA Capital Summary",null,"Longevity Risk (Class D & E insurers only)",null,null,null,null,null,null,null,null,0]
["Sch IX(a)","CISSA Capital Summary",null,"Morbidity Risk (Class D & E insurers only)",null,null,null,null,null,null,null,null,0]
["Sch IX(a)","CISSA Capital Summary",null,"Variable Annuity Risk (Class D & E insurers only)",null,null,null,null,null,null,null,null,0]
["Sch IX(a)","CISSA Capital Summary",null,"Other Risk (Class D & E insurers only)",null,null,null,null,null,null,null,null,0]
["Sch IX(a)","CISSA Capital Summary",null,"Stop Loss Risk (Class D & E insurers only)",null,null,null,null,null,null,null,null,0]
["Sch IX(a)","CISSA Capital Summary",null,"Rider Risk (Class D & E insurers only)",null,null,null,null,null,null,null,null,0]
["Sch IX(a)","CISSA Capital Summary",null,"Market Risk",null,null,null,null,null,null,null,null,0]
["Sch IX(a)","CISSA Capital Summary",null,"Credit Risk",null,null,null,null,null,null,null,null,0]
["Sch IX(a)","CISSA Capital Summary",null,"Interest Rate & Liquidity Risk",null,null,null,null,null,null,null,null,0]
["Sch IX(a)","CISSA Capital Summary",null,"Group, Concentration, & Strategic Risk",null,null,null,null,null,null,null,null,0]
["Sch IX(a)","CISSA Capital Summary",null,"Other Risk",null,null,null,null,null,null,null,null,0]
["Sch IX(a)","CISSA Capital Summary",null,"Capital Pre-Diversification",null,null,null,null,null,null,null,null,0]
["Sch IX(a)","CISSA Capital Summary",null,"Diversification Credit",null,null,null,null,null,null,null,null,0]
["Sch IX(a)","CISSA Capital Summary",null,"Capital after Diversification",null,null,null,null,null,null,null,null,0]
["Sch IX(a)","CISSA Capital Summary",null,"Operational Risk",null,null,null,null,null,null,null,null,0]
["Sch IX(a)","CISSA Capital Summary",null,"Total Internal Capital Risk",null,null,null,null,null,null,null,null,0]
["Sch IX(a)","CISSA Capital Summary",null,"1. Reason for CISSA - Rating Agency","Select Yes/No"]
["Sch IX(a)","CISSA Capital Summary",null,"1. Reason for CISSA - Market Share","Select Yes/No"]
["Sch IX(a)","CISSA Capital Summary",null,"1. Reason for CISSA - Business Expansion","Select Yes/No"]
["Sch IX(a)","CISSA Capital Summary",null,"1. Reason for CISSA - Nature of Product","Select Yes/No"]
["Sch IX(a)","CISSA Capital Summary",null,"1. Reason for CISSA - Downgrade of Risk","Select Yes/No"]
["Sch IX(a)","CISSA Capital Summary",null,"1. Reason for CISSA - Reg. Capital Req.","Select Yes/No"]
["Sch IX(a)","CISSA Capital Summary",null,"1. Reason for CISSA - Others","Select Yes/No"]
["Sch IX(a)","CISSA Capital Summary",null,"2. Agg. Risk Categories - Correlation Matrix","Select Yes/No"]
["Sch IX(a)","CISSA Capital Summary",null,"2. Agg. Risk Categories - Linear Correlation","Select Yes/No"]
["Sch IX(a)","CISSA Capital Summary",null,"2. Agg. Risk Categories - T-Copulas","Select Yes/No"]
["Sch IX(a)","CISSA Capital Summary",null,"2. Agg. Risk Categories - Gumbel Copulas","Select Yes/No"]
["Sch IX(a)","CISSA Capital Summary",null,"2. Agg. Risk Categories - Clayton Copulas","Select Yes/No"]
["Sch IX(a)","CISSA Capital Summary",null,"2. Agg. Risk Categories - Causal Driver","Select Yes/No"]
["Sch IX(a)","CISSA Capital Summary",null,"2. Agg. Risk Categories - Other","Select Yes/No"]
["Sch IX(a)","CISSA Capital Summary",null,"3. Contingency Plan - Parental Guarantees","Select Yes/No"]
["Sch IX(a)","CISSA Capital Summary",null,"3. Contingency Plan - Letters of Credit","Select Yes/No"]
["Sch IX(a)","CISSA Capital Summary",null,"3. Contingency Plan - Subordinated Debt","Select Yes/No"]
["Sch IX(a)","CISSA Capital Summary",null,"3. Contingency Plan - Preferred Shares","Select Yes/No"]
["Sch IX(a)","CISSA Capital Summary",null,"3. Contingency Plan - Float Add. Shares","Select Yes/No"]
["Sch IX(a)","CISSA Capital Summary",null,"3. Contingency Plan - Parent Capital Injection","Select Yes/No"]
["Sch IX(a)","CISSA Capital Summary",null,"3. Contingency Plan - Surplus Notes","Select Yes/No"]
["Sch IX(a)","CISSA Capital Summary",null,"3. Contingency Plan - Cat. Derivatives","Select Yes/No"]
["Sch IX(a)","CISSA Capital Summary",null,"3. Contingency Plan - Other","Select Yes/No"]
["Sch IX(a)","CISSA Capital Summary",null,"4. Insurer supports Others in Stressed Situation","Select Yes/No"]
["Sch IX(a)","CISSA Capital Summary",null,"4. Insurer supports Others - Description",0]
["Sch IX(a)","CISSA Capital Summary",null,"5. Insurer Issues Downstream Debt ","Select Yes/No"]
["Sch IX(a)","CISSA Capital Summary",null,"5. Insurer Issues Downstream Debt - Descrip.",0]
["Sch IX(a)","CISSA Capital Summary",null,"6. Insurer Receives Downstream Debt ","Select Yes/No"]
["Sch IX(a)","CISSA Capital Summary",null,"6. Insurer Receives Downstream Debt - Descrip.",0]
["Sch IX(a)","CISSA Capital Summary",null,"7. Insurer has Assets Restrict. and Not Trans.","Select Yes/No"]
["Sch IX(a)","CISSA Capital Summary",null,"7. Restricted Assets",0]
["Sch IX(a)","CISSA Capital Summary",null,"7. Reg. Capital Req. for Assets",0]
["Sch IX(a)","CISSA Capital Summary",null,"7. Restricted Assets in Excess of Cap. Req.",0]
[]
["Sch IX(b)","CISSA General Questions",null,"1. CISSA Integrated in Risk Mgmt. Process","Select Yes/No"]
["Sch IX(b)","CISSA General Questions",null,"1. CISSA Used For - Strategic Planning","Select Yes/No"]
["Sch IX(b)","CISSA General Questions",null,"1. CISSA Used For - Annual Bus. Planning","Select Yes/No"]
["Sch IX(b)","CISSA General Questions",null,"1. CISSA Used For - Setting Risk Limits","Select Yes/No"]
["Sch IX(b)","CISSA General Questions",null,"1. CISSA Used For - Setting Risk Appetite","Select Yes/No"]
["Sch IX(b)","CISSA General Questions",null,"1. CISSA Used For - Capital Adequacy","Select Yes/No"]
["Sch IX(b)","CISSA General Questions",null,"1. CISSA Used For - Alloc. Bus. Seg. & LOB","Select Yes/No"]
["Sch IX(b)","CISSA General Questions",null,"1. CISSA Used For - Capital Management","Select Yes/No"]
["Sch IX(b)","CISSA General Questions",null,"1. CISSA Used For - Pricing & U/W Guidelines","Select Yes/No"]
["Sch IX(b)","CISSA General Questions",null,"1. CISSA Used For - R/I Purchase","Select Yes/No"]
["Sch IX(b)","CISSA General Questions",null,"1. CISSA Used For - Investment Strategies","Select Yes/No"]
["Sch IX(b)","CISSA General Questions",null,"1. CISSA Used For - Reg. Requirements","Select Yes/No"]
["Sch IX(b)","CISSA General Questions",null,"1. CISSA Used For - Credit Rating","Select Yes/No"]
["Sch IX(b)","CISSA General Questions",null,"1. CISSA Used For - Investor Relations","Select Yes/No"]
["Sch IX(b)","CISSA General Questions",null,"1. CISSA Used For - Product Profitability","Select Yes/No"]
["Sch IX(b)","CISSA General Questions",null,"1. CISSA Used For - Performance Assessment","Select Yes/No"]
["Sch IX(b)","CISSA General Questions",null,"1. CISSA Used For - Mergers & Acquisitions","Select Yes/No"]
["Sch IX(b)","CISSA General Questions",null,"1. CISSA Used For - Others","Select Yes/No"]
["Sch IX(b)","CISSA General Questions",null,"1. CISSA Used For - Others - Description",0]
["Sch IX(b)","CISSA General Questions",null,"2. Insurer has applied reserve stress testing","Select Yes/No"]
["Sch IX(b)","CISSA General Questions",null,"3. CISSA process clearly documented","Select Yes/No"]
["Sch IX(b)","CISSA General Questions",null,"4. BOD & Senior Officers Review CISSA","Select"]
["Sch IX(b)","CISSA General Questions",null,"5. BOD & Senior Officers Review oversight","Select Yes/No"]
["Sch IX(b)","CISSA General Questions",null,"CISSA Comments",0]
[]
["Sch IX(c)","CISSA Assessment of Material Risks",null,"12a. Governance - BOD approval","Select Yes/No"]
["Sch IX(c)","CISSA Assessment of Material Risks",null,"12b. Governance - BOD review frequency","Select"]
["Sch IX(c)","CISSA Assessment of Material Risks",null,"12c. Governance - BOD review frequency","Select Yes/No"]
["Sch IX(c)","CISSA Assessment of Material Risks",null,"12d. Validation - Regular Review","Select Yes/No"]
["Sch IX(c)","CISSA Assessment of Material Risks",null,"12e. Validation - Performed","Select"]
["Sch IX(c)","CISSA Assessment of Material Risks",null,"12f. Validation - Check","Select Yes/No"]
["Sch IX(c)","CISSA Assessment of Material Risks",null,"12g. Document - Formal Structure","Select Yes/No"]
["Sch IX(c)","CISSA Assessment of Material Risks",null,"12h. Document - How Thorough","Select"]
["Sch IX(c)","CISSA Assessment of Material Risks",null,"12i. Document - BOD Review Frequency","Select"]
["Sch IX(c)","CISSA Assessment of Material Risks",null,"12j. Internal Controls - Rate of Controls","Select"]
["Sch IX(c)","CISSA Assessment of Material Risks",null,"12j. Internal Controls - Strict Protocols","Select Yes/No"]
["Sch IX(c)","CISSA Assessment of Material Risks",null,"12a. Gov. Comment - BOD approval",0]
["Sch IX(c)","CISSA Assessment of Material Risks",null,"12b. Gov. Comment - BOD review frequency",0]
["Sch IX(c)","CISSA Assessment of Material Risks",null,"12c. Gov. Comment - BOD review frequency",0]
["Sch IX(c)","CISSA Assessment of Material Risks",null,"12d. Validation - Regular Review",0]
["Sch IX(c)","CISSA Assessment of Material Risks",null,"12e. Validation - Performed",0]
["Sch IX(c)","CISSA Assessment of Material Risks",null,"12f. Validation - Check",0]
["Sch IX(c)","CISSA Assessment of Material Risks",null,"12g. Doc. Comment - Formal Structure",0]
["Sch IX(c)","CISSA Assessment of Material Risks",null,"12h. Doc. Comment - How Thorough",0]
["Sch IX(c)","CISSA Assessment of Material Risks",null,"12i. Doc. Comment - BOD Review Frequency",0]
["Sch IX(c)","CISSA Assessment of Material Risks",null,"12j. Int. Cont. Comment - Rate of Controls",0]
["Sch IX(c)","CISSA Assessment of Material Risks",null,"12j. Int. Cont. Comment - Strict Protocols",0]
["Sch IX(c)","CISSA Assessment of Material Risks",null,"12l. Risk Measure - Confidence Interval",0]
[]
["Sch XII(a)","Eligible Capital",null,"Contingent Liabilities for Encumb. Assets",null,null,null,null,null,null,null,null,0]
["Sch XII(a)","Eligible Capital",null,"Tier 1 - 1c. Statutory Economic Surplus",null,null,null,null,null,null,null,null,{"$f":"'Form 4EBS'!F184-'Form 8SFS'!O36","v":0}]
["Sch XII(a)","Eligible Capital",null,"Tier 1 - 1d. Capital Adjustments",null,null,null,null,null,null,null,null,0]
["Sch XII(a)","Eligible Capital",null,"Tier 1 - 1e. Hybrid Capital - Preferred Shares",null,null,null,null,null,null,null,null,0]
["Sch XII(a)","Eligible Capital",null,"Tier 1 - 1e. Other",null,null,null,null,null,null,null,null,0]
["Sch XII(a)","Eligible Capital",null,"Policyholder Obl. - Pledged Asset - Exceed",null,null,null,null,null,null,null,null,0]
["Sch XII(a)","Eligible Capital",null,"Policyholder Obl. - Pledged Asset - Equal",null,null,null,null,null,null,null,null,0]
["Sch XII(a)","Eligible Capital",null,"Policyholder Obl. - Pledged Asset - Less Than",null,null,null,null,null,null,null,null,0]
["Sch XII(a)","Eligible Capital",null,"Policyholder Obl. - Pledged Asset - Not Collat.",null,null,null,null,null,null,null,null,0]
["Sch XII(a)","Eligible Capital",null,"Policyholder Obl. - Pledged Asset - Total",null,null,null,null,null,null,null,null,0]
["Sch XII(a)","Eligible Capital",null,"Encumb. Assets - Pledged Asset - Exceed",null,null,null,null,null,null,null,null,0]
["Sch XII(a)","Eligible Capital",null,"Encumb. Assets - Pledged Asset - Equal",null,null,null,null,null,null,null,null,0]
["Sch XII(a)","Eligible Capital",null,"Encumb. Assets - Pledged Asset - Less Than",null,null,null,null,null,null,null,null,0]
["Sch XII(a)","Eligible Capital",null,"Encumb. Assets - Pledged Asset - Total",null,null,null,null,null,null,null,null,0]
["Sch XII(a)","Eligible Capital",null,"Capital charge - for excess of Tier 1 (h)(a)(i)",null,null,null,null,null,null,null,null,0]
["Sch XII(a)","Eligible Capital",null,"Capital charge - for excess of Tier 1 (h)(b)(i)",null,null,null,null,null,null,null,null,0]
["Sch XII(a)","Eligible Capital",null,"Tier 1 - 1j. Restricted Assets ",null,null,null,null,null,null,null,null,0]
["Sch XII(a)","Eligible Capital",null,"Tier 1 - Subordinated Debt",null,null,null,null,null,null,null,null,0]
["Sch XII(a)","Eligible Capital",null,"Tier 1 - Total Capital",null,null,null,null,null,null,null,null,0]
["Sch XII(a)","Eligible Capital",null,"Tier 2 Basic - a. Hybrid Capital Instruments",null,null,null,null,null,null,null,null,0]
["Sch XII(a)","Eligible Capital",null,"Tier 2 Basic - b. Other - Details",null,null,null,null,null,null,null,null,0]
["Sch XII(a)","Eligible Capital",null,"Tier 2 Basic - b. Other",null,null,null,null,null,null,null,null,0]
["Sch XII(a)","Eligible Capital",null,"Tier 2 Ancillary - a. Unpaid Common Shares",null,null,null,null,null,null,null,null,0]
["Sch XII(a)","Eligible Capital",null,"Tier 2 Ancillary - b. Unpaid Hybrid Capital",null,null,null,null,null,null,null,null,0]
["Sch XII(a)","Eligible Capital",null,"Tier 2 Ancillary - c. Preference Shares",null,null,null,null,null,null,null,null,0]
["Sch XII(a)","Eligible Capital",null,"Tier 2 Ancillary - d. Subordinated Debt",null,null,null,null,null,null,null,null,0]
["Sch XII(a)","Eligible Capital",null,"Tier 2 Ancillary - e. Letters of Credit",null,null,null,null,null,null,null,null,0]
["Sch XII(a)","Eligible Capital",null,"Tier 2 Ancillary - f. Guarantees",null,null,null,null,null,null,null,null,0]
["Sch XII(a)","Eligible Capital",null,"Tier 2 - Total Capital",null,null,null,null,null,null,null,null,0]
["Sch XII(a)","Eligible Capital",null,"Tier 3 Basic - a. Hybrid Capital Instruments",null,null,null,null,null,null,null,null,0]
["Sch XII(a)","Eligible Capital",null,"Tier 3 Ancillary - a. Subordinated Debt",null,null,null,null,null,null,null,null,0]
["Sch XII(a)","Eligible Capital",null,"Tier 3 Ancillary - b. Letters of Credit",null,null,null,null,null,null,null,null,0]
["Sch XII(a)","Eligible Capital",null,"Tier 3 Ancillary - c. Guarantees",null,null,null,null,null,null,null,null,0]
["Sch XII(a)","Eligible Capital",null,"Tier 3 - Total Capital",null,null,null,null,null,null,null,null,0]
["Sch XII(a)","Eligible Capital",null,"Total Eligible Capital",null,null,null,null,null,null,null,null,0]
["Sch XII(b)","Eligible Capital - Additional Details",null,"# of Form 8SFS - Other Fixed Capital Inst.",0]
["Sch XII(b)","Eligible Capital - Additional Details",null,"Description of Capital Instrument 1",0]
["Sch XII(b)","Eligible Capital - Additional Details",null,"Description of Capital Instrument 2",0]
["Sch XII(b)","Eligible Capital - Additional Details",null,"Description of Capital Instrument 3",0]
["Sch XII(b)","Eligible Capital - Additional Details",null,"Description of Capital Instrument 4",0]
["Sch XII(b)","Eligible Capital - Additional Details",null,"Description of Capital Instrument 5",0]
["Sch XII(b)","Eligible Capital - Additional Details",null,"Description of Capital Instrument 6",0]
["Sch XII(b)","Eligible Capital - Additional Details",null,"Description of Capital Instrument 7",0]
["Sch XII(b)","Eligible Capital - Additional Details",null,"Description of Capital Instrument 8",0]
["Sch XII(b)","Eligible Capital - Additional Details",null,"Description of Capital Instrument 9",0]
["Sch XII(b)","Eligible Capital - Additional Details",null,"Description of Capital Instrument 10",0]
["Sch XII(b)","Eligible Capital - Additional Details",null,"Description of Capital Instrument 11",0]
["Sch XII(b)","Eligible Capital - Additional Details",null,"Description of Capital Instrument 12",0]
["Sch XII(b)","Eligible Capital - Additional Details",null,"Description of Capital Instrument 13",0]
["Sch XII(b)","Eligible Capital - Additional Details",null,"Description of Capital Instrument 14",0]
["Sch XII(b)","Eligible Capital - Additional Details",null,"Description of Capital Instrument 15",0]
["Sch XII(b)","Eligible Capital - Additional Details",null,"Description of Capital Instrument 16",0]
["Sch XII(b)","Eligible Capital - Additional Details",null,"Description of Capital Instrument 17",0]
["Sch XII(b)","Eligible Capital - Additional Details",null,"Description of Capital Instrument 18",0]
["Sch XII(b)","Eligible Capital - Additional Details",null,"Description of Capital Instrument 19",0]
["Sch XII(b)","Eligible Capital - Additional Details",null,"Description of Capital Instrument 20",0]
["Sch XII(b)","Eligible Capital - Additional Details",null,"Date of Issue - Instrument 1","00:00:00"]
["Sch XII(b)","Eligible Capital - Additional Details",null,"Date of Issue - Instrument 2","00:00:00"]
["Sch XII(b)","Eligible Capital - Additional Details",null,"Date of Issue - Instrument 3","00:00:00"]
["Sch XII(b)","Eligible Capital - Additional Details",null,"Date of Issue - Instrument 4","00:00:00"]
["Sch XII(b)","Eligible Capital - Additional Details",null,"Date of Issue - Instrument 5","00:00:00"]
["Sch XII(b)","Eligible Capital - Additional Details",null,"Date of Issue - Instrument 6","00:00:00"]
["Sch XII(b)","Eligible Capital - Additional Details",null,"Date of Issue - Instrument 7","00:00:00"]
["Sch XII(b)","Eligible Capital - Additional Details",null,"Date of Issue - Instrument 8","00:00:00"]
["Sch XII(b)","Eligible Capital - Additional Details",null,"Date of Issue - Instrument 9","00:00:00"]
["Sch XII(b)","Eligible Capital - Additional Details",null,"Date of Issue - Instrument 10","00:00:00"]
["Sch XII(b)","Eligible Capital - Additional Details",null,"Date of Issue - Instrument 11","00:00:00"]
["Sch XII(b)","Eligible Capital - Additional Details",null,"Date of Issue - Instrument 12","00:00:00"]
["Sch XII(b)","Eligible Capital - Additional Details",null,"Date of Issue - Instrument 13","00:00:00"]
["Sch XII(b)","Eligible Capital - Additional Details",null,"Date of Issue - Instrument 14","00:00:00"]
["Sch XII(b)","Eligible Capital - Additional Details",null,"Date of Issue - Instrument 15","00:00:00"]
["Sch XII(b)","Eligible Capital - Additional Details",null,"Date of Issue - Instrument 16","00:00:00"]
["Sch XII(b)","Eligible Capital - Additional Details",null,"Date of Issue - Instrument 17","00:00:00"]
["Sch XII(b)","Eligible Capital - Additional Details",null,"Date of Issue - Instrument 18","00:00:00"]
["Sch XII(b)","Eligible Capital - Additional Details",null,"Date of Issue - Instrument 19","00:00:00"]
["Sch XII(b)","Eligible Capital - Additional Details",null,"Date of Issue - Instrument 20","00:00:00"]
["Sch XII(b)","Eligible Capital - Additional Details",null,"Maturity Date - Instrument 1","00:00:00"]
["Sch XII(b)","Eligible Capital - Additional Details",null,"Maturity Date - Instrument 2","00:00:00"]
["Sch XII(b)","Eligible Capital - Additional Details",null,"Maturity Date - Instrument 3","00:00:00"]
["Sch XII(b)","Eligible Capital - Additional Details",null,"Maturity Date - Instrument 4","00:00:00"]
["Sch XII(b)","Eligible Capital - Additional Details",null,"Maturity Date - Instrument 5","00:00:00"]
["Sch XII(b)","Eligible Capital - Additional Details",null,"Maturity Date - Instrument 6","00:00:00"]
["Sch XII(b)","Eligible Capital - Additional Details",null,"Maturity Date - Instrument 7","00:00:00"]
["Sch XII(b)","Eligible Capital - Additional Details",null,"Maturity Date - Instrument 8","00:00:00"]
["Sch XII(b)","Eligible Capital - Additional Details",null,"Maturity Date - Instrument 9","00:00:00"]
["Sch XII(b)","Eligible Capital - Additional Details",null,"Maturity Date - Instrument 10","00:00:00"]
["Sch XII(b)","Eligible Capital - Additional Details",null,"Maturity Date - Instrument 11","00:00:00"]
["Sch XII(b)","Eligible Capital - Additional Details",null,"Maturity Date - Instrument 12","00:00:00"]
["Sch XII(b)","Eligible Capital - Additional Details",null,"Maturity Date - Instrument 13","00:00:00"]
["Sch XII(b)","Eligible Capital - Additional Details",null,"Maturity Date - Instrument 14","00:00:00"]
["Sch XII(b)","Eligible Capital - Additional Details",null,"Maturity Date - Instrument 15","00:00:00"]
["Sch XII(b)","Eligible Capital - Additional Details",null,"Maturity Date - Instrument 16","00:00:00"]
["Sch XII(b)","Eligible Capital - Additional Details",null,"Maturity Date - Instrument 17","00:00:00"]
["Sch XII(b)","Eligible Capital - Additional Details",null,"Maturity Date - Instrument 18","00:00:00"]
["Sch XII(b)","Eligible Capital - Additional Details",null,"Maturity Date - Instrument 19","00:00:00"]
["Sch XII(b)","Eligible Capital - Additional Details",null,"Maturity Date - Instrument 20","00:00:00"]
["Sch XII(b)","Eligible Capital - Additional Details",null,"Authority Approval Date - Instrument 1","00:00:00"]
["Sch XII(b)","Eligible Capital - Additional Details",null,"Authority Approval Date - Instrument 2","00:00:00"]
["Sch XII(b)","Eligible Capital - Additional Details",null,"Authority Approval Date - Instrument 3","00:00:00"]
["Sch XII(b)","Eligible Capital - Additional Details",null,"Authority Approval Date - Instrument 4","00:00:00"]
["Sch XII(b)","Eligible Capital - Additional Details",null,"Authority Approval Date - Instrument 5","00:00:00"]
["Sch XII(b)","Eligible Capital - Additional Details",null,"Authority Approval Date - Instrument 6","00:00:00"]
["Sch XII(b)","Eligible Capital - Additional Details",null,"Authority Approval Date - Instrument 7","00:00:00"]
["Sch XII(b)","Eligible Capital - Additional Details",null,"Authority Approval Date - Instrument 8","00:00:00"]
["Sch XII(b)","Eligible Capital - Additional Details",null,"Authority Approval Date - Instrument 9","00:00:00"]
["Sch XII(b)","Eligible Capital - Additional Details",null,"Authority Approval Date - Instrument 10","00:00:00"]
["Sch XII(b)","Eligible Capital - Additional Details",null,"Authority Approval Date - Instrument 11","00:00:00"]
["Sch XII(b)","Eligible Capital - Additional Details",null,"Authority Approval Date - Instrument 12","00:00:00"]
["Sch XII(b)","Eligible Capital - Additional Details",null,"Authority Approval Date - Instrument 13","00:00:00"]
["Sch XII(b)","Eligible Capital - Additional Details",null,"Authority Approval Date - Instrument 14","00:00:00"]
["Sch XII(b)","Eligible Capital - Additional Details",null,"Authority Approval Date - Instrument 15","00:00:00"]
["Sch XII(b)","Eligible Capital - Additional Details",null,"Authority Approval Date - Instrument 16","00:00:00"]
["Sch XII(b)","Eligible Capital - Additional Details",null,"Authority Approval Date - Instrument 17","00:00:00"]
["Sch XII(b)","Eligible Capital - Additional Details",null,"Authority Approval Date - Instrument 18","00:00:00"]
["Sch XII(b)","Eligible Capital - Additional Details",null,"Authority Approval Date - Instrument 19","00:00:00"]
["Sch XII(b)","Eligible Capital - Additional Details",null,"Authority Approval Date - Instrument 20","00:00:00"]
["Sch XII(b)","Eligible Capital - Additional Details",null,"Valuation - Instrument 1",0]
["Sch XII(b)","Eligible Capital - Additional Details",null,"Valuation - Instrument 2",0]
["Sch XII(b)","Eligible Capital - Additional Details",null,"Valuation - Instrument 3",0]
["Sch XII(b)","Eligible Capital - Additional Details",null,"Valuation - Instrument 4",0]
["Sch XII(b)","Eligible Capital - Additional Details",null,"Valuation - Instrument 5",0]
["Sch XII(b)","Eligible Capital - Additional Details",null,"Valuation - Instrument 6",0]
["Sch XII(b)","Eligible Capital - Additional Details",null,"Valuation - Instrument 7",0]
["Sch XII(b)","Eligible Capital - Additional Details",null,"Valuation - Instrument 8",0]
["Sch XII(b)","Eligible Capital - Additional Details",null,"Valuation - Instrument 9",0]
["Sch XII(b)","Eligible Capital - Additional Details",null,"Valuation - Instrument 10",0]
["Sch XII(b)","Eligible Capital - Additional Details",null,"Valuation - Instrument 11",0]
["Sch XII(b)","Eligible Capital - Additional Details",null,"Valuation - Instrument 12",0]
["Sch XII(b)","Eligible Capital - Additional Details",null,"Valuation - Instrument 13",0]
["Sch XII(b)","Eligible Capital - Additional Details",null,"Valuation - Instrument 14",0]
["Sch XII(b)","Eligible Capital - Additional Details",null,"Valuation - Instrument 15",0]
["Sch XII(b)","Eligible Capital - Additional Details",null,"Valuation - Instrument 16",0]
["Sch XII(b)","Eligible Capital - Additional Details",null,"Valuation - Instrument 17",0]
["Sch XII(b)","Eligible Capital - Additional Details",null,"Valuation - Instrument 18",0]
["Sch XII(b)","Eligible Capital - Additional Details",null,"Valuation - Instrument 19",0]
["Sch XII(b)","Eligible Capital - Additional Details",null,"Valuation - Instrument 20",0]
["Sch XII(b)","Eligible Capital - Additional Details",null,"Tier - Instrument 1",0]
["Sch XII(b)","Eligible Capital - Additional Details",null,"Tier - Instrument 2",0]
["Sch XII(b)","Eligible Capital - Additional Details",null,"Tier - Instrument 3",0]
["Sch XII(b)","Eligible Capital - Additional Details",null,"Tier - Instrument 4",0]
["Sch XII(b)","Eligible Capital - Additional Details",null,"Tier - Instrument 5",0]
["Sch XII(b)","Eligible Capital - Additional Details",null,"Tier - Instrument 6",0]
["Sch XII(b)","Eligible Capital - Additional Details",null,"Tier - Instrument 7",0]
["Sch XII(b)","Eligible Capital - Additional Details",null,"Tier - Instrument 8",0]
["Sch XII(b)","Eligible Capital - Additional Details",null,"Tier - Instrument 9",0]
["Sch XII(b)","Eligible Capital - Additional Details",null,"Tier - Instrument 10",0]
["Sch XII(b)","Eligible Capital - Additional Details",null,"Tier - Instrument 11",0]
["Sch XII(b)","Eligible Capital - Additional Details",null,"Tier - Instrument 12",0]
["Sch XII(b)","Eligible Capital - Additional Details",null,"Tier - Instrument 13",0]
["Sch XII(b)","Eligible Capital - Additional Details",null,"Tier - Instrument 14",0]
["Sch XII(b)","Eligible Capital - Additional Details",null,"Tier - Instrument 15",0]
["Sch XII(b)","Eligible Capital - Additional Details",null,"Tier - Instrument 16",0]
["Sch XII(b)","Eligible Capital - Additional Details",null,"Tier - Instrument 17",0]
["Sch XII(b)","Eligible Capital - Additional Details",null,"Tier - Instrument 18",0]
["Sch XII(b)","Eligible Capital - Additional Details",null,"Tier - Instrument 19",0]
["Sch XII(b)","Eligible Capital - Additional Details",null,"Tier - Instrument 20",0]
[]
["Sch XVI","Non-Insurance",null,"# of Regulated Non-Insurance Entities",null,null,null,null,0]
["Sch XVI","Non-Insurance",null,"Entity Name - 1",null,null,null,null,0]
["Sch XVI","Non-Insurance",null,"Entity Name - 2",null,null,null,null,0]
["Sch XVI","Non-Insurance",null,"Entity Name - 3",null,null,null,null,0]
["Sch XVI","Non-Insurance",null,"Entity Name - 4",null,null,null,null,0]
["Sch XVI","Non-Insurance",null,"Entity Name - 5",null,null,null,null,0]
["Sch XVI","Non-Insurance",null,"Entity Name - 6",null,null,null,null,0]
["Sch XVI","Non-Insurance",null,"Entity Name - 7",null,null,null,null,0]
["Sch XVI","Non-Insurance",null,"Entity Name - 8",null,null,null,null,0]
["Sch XVI","Non-Insurance",null,"Entity Name - 9",null,null,null,null,0]
["Sch XVI","Non-Insurance",null,"Entity Name - 10",null,null,null,null,0]
["Sch XVI","Non-Insurance",null,"Entity Name - 11",null,null,null,null,0]
["Sch XVI","Non-Insurance",null,"Entity Name - 12",null,null,null,null,0]
["Sch XVI","Non-Insurance",null,"Entity Name - 13",null,null,null,null,0]
["Sch XVI","Non-Insurance",null,"Entity Name - 14",null,null,null,null,0]
["Sch XVI","Non-Insurance",null,"Entity Name - 15",null,null,null,null,0]
["Sch XVI","Non-Insurance",null,"Entity Jurisdiction - 1",null,null,null,null,0]
["Sch XVI","Non-Insurance",null,"Entity Jurisdiction - 2",null,null,null,null,0]
["Sch XVI","Non-Insurance",null,"Entity Jurisdiction - 3",null,null,null,null,0]
["Sch XVI","Non-Insurance",null,"Entity Jurisdiction - 4",null,null,null,null,0]
["Sch XVI","Non-Insurance",null,"Entity Jurisdiction - 5",null,null,null,null,0]
["Sch XVI","Non-Insurance",null,"Entity Jurisdiction - 6",null,null,null,null,0]
["Sch XVI","Non-Insurance",null,"Entity Jurisdiction - 7",null,null,null,null,0]
["Sch XVI","Non-Insurance",null,"Entity Jurisdiction - 8",null,null,null,null,0]
["Sch XVI","Non-Insurance",null,"Entity Jurisdiction - 9",null,null,null,null,0]
["Sch XVI","Non-Insurance",null,"Entity Jurisdiction - 10",null,null,null,null,0]
["Sch XVI","Non-Insurance",null,"Entity Jurisdiction - 11",null,null,null,null,0]
["Sch XVI","Non-Insurance",null,"Entity Jurisdiction - 12",null,null,null,null,0]
["Sch XVI","Non-Insurance",null,"Entity Jurisdiction - 13",null,null,null,null,0]
["Sch XVI","Non-Insurance",null,"Entity Jurisdiction - 14",null,null,null,null,0]
["Sch XVI","Non-Insurance",null,"Entity Jurisdiction - 15",null,null,null,null,0]
["Sch XVI","Non-Insurance",null,"Entity Sector - 1",null,null,null,null,"Select"]
["Sch XVI","Non-Insurance",null,"Entity Sector - 2",null,null,null,null,"Select"]
["Sch XVI","Non-Insurance",null,"Entity Sector - 3",null,null,null,null,"Select"]
["Sch XVI","Non-Insurance",null,"Entity Sector - 4",null,null,null,null,"Select"]
["Sch XVI","Non-Insurance",null,"Entity Sector - 5",null,null,null,null,"Select"]
["Sch XVI","Non-Insurance",null,"Entity Sector - 6",null,null,null,null,"Select"]
["Sch XVI","Non-Insurance",null,"Entity Sector - 7",null,null,null,null,"Select"]
["Sch XVI","Non-Insurance",null,"Entity Sector - 8",null,null,null,null,"Select"]
["Sch XVI","Non-Insurance",null,"Entity Sector - 9",null,null,null,null,"Select"]
["Sch XVI","Non-Insurance",null,"Entity Sector - 10",null,null,null,null,"Select"]
["Sch XVI","Non-Insurance",null,"Entity Sector - 11",null,null,null,null,"Select"]
["Sch XVI","Non-Insurance",null,"Entity Sector - 12",null,null,null,null,"Select"]
["Sch XVI","Non-Insurance",null,"Entity Sector - 13",null,null,null,null,"Select"]
["Sch XVI","Non-Insurance",null,"Entity Sector - 14",null,null,null,null,"Select"]
["Sch XVI","Non-Insurance",null,"Entity Sector - 15",null,null,null,null,"Select"]
["Sch XVI","Non-Insurance",null,"Entity Strategic Purpose - 1",null,null,null,null,0]
["Sch XVI","Non-Insurance",null,"Entity Strategic Purpose - 2",null,null,null,null,0]
["Sch XVI","Non-Insurance",null,"Entity Strategic Purpose - 3",null,null,null,null,0]
["Sch XVI","Non-Insurance",null,"Entity Strategic Purpose - 4",null,null,null,null,0]
["Sch XVI","Non-Insurance",null,"Entity Strategic Purpose - 5",null,null,null,null,0]
["Sch XVI","Non-Insurance",null,"Entity Strategic Purpose - 6",null,null,null,null,0]
["Sch XVI","Non-Insurance",null,"Entity Strategic Purpose - 7",null,null,null,null,0]
["Sch XVI","Non-Insurance",null,"Entity Strategic Purpose - 8",null,null,null,null,0]
["Sch XVI","Non-Insurance",null,"Entity Strategic Purpose - 9",null,null,null,null,0]
["Sch XVI","Non-Insurance",null,"Entity Strategic Purpose - 10",null,null,null,null,0]
["Sch XVI","Non-Insurance",null,"Entity Strategic Purpose - 11",null,null,null,null,0]
["Sch XVI","Non-Insurance",null,"Entity Strategic Purpose - 12",null,null,null,null,0]
["Sch XVI","Non-Insurance",null,"Entity Strategic Purpose - 13",null,null,null,null,0]
["Sch XVI","Non-Insurance",null,"Entity Strategic Purpose - 14",null,null,null,null,0]
["Sch XVI","Non-Insurance",null,"Entity Strategic Purpose - 15",null,null,null,null,0]
["Sch XVI","Non-Insurance",null,"Entity Type - 1",null,null,null,null,"Select"]
["Sch XVI","Non-Insurance",null,"Entity Type - 2",null,null,null,null,"Select"]
["Sch XVI","Non-Insurance",null,"Entity Type - 3",null,null,null,null,"Select"]
["Sch XVI","Non-Insurance",null,"Entity Type - 4",null,null,null,null,"Select"]
["Sch XVI","Non-Insurance",null,"Entity Type - 5",null,null,null,null,"Select"]
["Sch XVI","Non-Insurance",null,"Entity Type - 6",null,null,null,null,"Select"]
["Sch XVI","Non-Insurance",null,"Entity Type - 7",null,null,null,null,"Select"]
["Sch XVI","Non-Insurance",null,"Entity Type - 8",null,null,null,null,"Select"]
["Sch XVI","Non-Insurance",null,"Entity Type - 9",null,null,null,null,"Select"]
["Sch XVI","Non-Insurance",null,"Entity Type - 10",null,null,null,null,"Select"]
["Sch XVI","Non-Insurance",null,"Entity Type - 11",null,null,null,null,"Select"]
["Sch XVI","Non-Insurance",null,"Entity Type - 12",null,null,null,null,"Select"]
["Sch XVI","Non-Insurance",null,"Entity Type - 13",null,null,null,null,"Select"]
["Sch XVI","Non-Insurance",null,"Entity Type - 14",null,null,null,null,"Select"]
["Sch XVI","Non-Insurance",null,"Entity Type - 15",null,null,null,null,"Select"]
["Sch XVI","Non-Insurance",null,"Entity Product & Services - 1",null,null,null,null,0]
["Sch XVI","Non-Insurance",null,"Entity Product & Services - 2",null,null,null,null,0]
["Sch XVI","Non-Insurance",null,"Entity Product & Services - 3",null,null,null,null,0]
["Sch XVI","Non-Insurance",null,"Entity Product & Services - 4",null,null,null,null,0]
["Sch XVI","Non-Insurance",null,"Entity Product & Services - 5",null,null,null,null,0]
["Sch XVI","Non-Insurance",null,"Entity Product & Services - 6",null,null,null,null,0]
["Sch XVI","Non-Insurance",null,"Entity Product & Services - 7",null,null,null,null,0]
["Sch XVI","Non-Insurance",null,"Entity Product & Services - 8",null,null,null,null,0]
["Sch XVI","Non-Insurance",null,"Entity Product & Services - 9",null,null,null,null,0]
["Sch XVI","Non-Insurance",null,"Entity Product & Services - 10",null,null,null,null,0]
["Sch XVI","Non-Insurance",null,"Entity Product & Services - 11",null,null,null,null,0]
["Sch XVI","Non-Insurance",null,"Entity Product & Services - 12",null,null,null,null,0]
["Sch XVI","Non-Insurance",null,"Entity Product & Services - 13",null,null,null,null,0]
["Sch XVI","Non-Insurance",null,"Entity Product & Services - 14",null,null,null,null,0]
["Sch XVI","Non-Insurance",null,"Entity Product & Services - 15",null,null,null,null,0]
["Sch XVI","Non-Insurance",null,"Entity Participation - 1",null,null,null,null,"Select"]
["Sch XVI","Non-Insurance",null,"Entity Participation - 2",null,null,null,null,"Select"]
["Sch XVI","Non-Insurance",null,"Entity Participation - 3",null,null,null,null,"Select"]
["Sch XVI","Non-Insurance",null,"Entity Participation - 4",null,null,null,null,"Select"]
["Sch XVI","Non-Insurance",null,"Entity Participation - 5",null,null,null,null,"Select"]
["Sch XVI","Non-Insurance",null,"Entity Participation - 6",null,null,null,null,"Select"]
["Sch XVI","Non-Insurance",null,"Entity Participation - 7",null,null,null,null,"Select"]
["Sch XVI","Non-Insurance",null,"Entity Participation - 8",null,null,null,null,"Select"]
["Sch XVI","Non-Insurance",null,"Entity Participation - 9",null,null,null,null,"Select"]
["Sch XVI","Non-Insurance",null,"Entity Participation - 10",null,null,null,null,"Select"]
["Sch XVI","Non-Insurance",null,"Entity Participation - 11",null,null,null,null,"Select"]
["Sch XVI","Non-Insurance",null,"Entity Participation - 12",null,null,null,null,"Select"]
["Sch XVI","Non-Insurance",null,"Entity Participation - 13",null,null,null,null,"Select"]
["Sch XVI","Non-Insurance",null,"Entity Participation - 14",null,null,null,null,"Select"]
["Sch XVI","Non-Insurance",null,"Entity Participation - 15",null,null,null,null,"Select"]
["Sch XVI","Non-Insurance",null,"% Interest in Entity - 1",null,null,null,null,0]
["Sch XVI","Non-Insurance",null,"% Interest in Entity - 2",null,null,null,null,0]
["Sch XVI","Non-Insurance",null,"% Interest in Entity - 3",null,null,null,null,0]
["Sch XVI","Non-Insurance",null,"% Interest in Entity - 4",null,null,null,null,0]
["Sch XVI","Non-Insurance",null,"% Interest in Entity - 5",null,null,null,null,0]
["Sch XVI","Non-Insurance",null,"% Interest in Entity - 6",null,null,null,null,0]
["Sch XVI","Non-Insurance",null,"% Interest in Entity - 7",null,null,null,null,0]
["Sch XVI","Non-Insurance",null,"% Interest in Entity - 8",null,null,null,null,0]
["Sch XVI","Non-Insurance",null,"% Interest in Entity - 9",null,null,null,null,0]
["Sch XVI","Non-Insurance",null,"% Interest in Entity - 10",null,null,null,null,0]
["Sch XVI","Non-Insurance",null,"% Interest in Entity - 11",null,null,null,null,0]
["Sch XVI","Non-Insurance",null,"% Interest in Entity - 12",null,null,null,null,0]
["Sch XVI","Non-Insurance",null,"% Interest in Entity - 13",null,null,null,null,0]
["Sch XVI","Non-Insurance",null,"% Interest in Entity - 14",null,null,null,null,0]
["Sch XVI","Non-Insurance",null,"% Interest in Entity - 15",null,null,null,null,0]
["Sch XVI","Non-Insurance",null,"Total Assets in Entity - 1",null,null,null,null,0]
["Sch XVI","Non-Insurance",null,"Total Assets in Entity - 2",null,null,null,null,0]
["Sch XVI","Non-Insurance",null,"Total Assets in Entity - 3",null,null,null,null,0]
["Sch XVI","Non-Insurance",null,"Total Assets in Entity - 4",null,null,null,null,0]
["Sch XVI","Non-Insurance",null,"Total Assets in Entity - 5",null,null,null,null,0]
["Sch XVI","Non-Insurance",null,"Total Assets in Entity - 6",null,null,null,null,0]
["Sch XVI","Non-Insurance",null,"Total Assets in Entity - 7",null,null,null,null,0]
["Sch XVI","Non-Insurance",null,"Total Assets in Entity - 8",null,null,null,null,0]
["Sch XVI","Non-Insurance",null,"Total Assets in Entity - 9",null,null,null,null,0]
["Sch XVI","Non-Insurance",null,"Total Assets in Entity - 10",null,null,null,null,0]
["Sch XVI","Non-Insurance",null,"Total Assets in Entity - 11",null,null,null,null,0]
["Sch XVI","Non-Insurance",null,"Total Assets in Entity - 12",null,null,null,null,0]
["Sch XVI","Non-Insurance",null,"Total Assets in Entity - 13",null,null,null,null,0]
["Sch XVI","Non-Insurance",null,"Total Assets in Entity - 14",null,null,null,null,0]
["Sch XVI","Non-Insurance",null,"Total Assets in Entity - 15",null,null,null,null,0]
["Sch XVI","Non-Insurance",null,"Entity Total Assets",null,null,null,null,0]
["Sch XVI","Non-Insurance",null,"Investments in Entity - 1",null,null,null,null,0]
["Sch XVI","Non-Insurance",null,"Investments in Entity - 2",null,null,null,null,0]
["Sch XVI","Non-Insurance",null,"Investments in Entity - 3",null,null,null,null,0]
["Sch XVI","Non-Insurance",null,"Investments in Entity - 4",null,null,null,null,0]
["Sch XVI","Non-Insurance",null,"Investments in Entity - 5",null,null,null,null,0]
["Sch XVI","Non-Insurance",null,"Investments in Entity - 6",null,null,null,null,0]
["Sch XVI","Non-Insurance",null,"Investments in Entity - 7",null,null,null,null,0]
["Sch XVI","Non-Insurance",null,"Investments in Entity - 8",null,null,null,null,0]
["Sch XVI","Non-Insurance",null,"Investments in Entity - 9",null,null,null,null,0]
["Sch XVI","Non-Insurance",null,"Investments in Entity - 10",null,null,null,null,0]
["Sch XVI","Non-Insurance",null,"Investments in Entity - 11",null,null,null,null,0]
["Sch XVI","Non-Insurance",null,"Investments in Entity - 12",null,null,null,null,0]
["Sch XVI","Non-Insurance",null,"Investments in Entity - 13",null,null,null,null,0]
["Sch XVI","Non-Insurance",null,"Investments in Entity - 14",null,null,null,null,0]
["Sch XVI","Non-Insurance",null,"Investments in Entity - 15",null,null,null,null,0]
["Sch XVI","Non-Insurance",null,"Entity Total Investments",null,null,null,null,0]
["Sch XVI","Non-Insurance",null,"Regulatory Capital in Entity - 1",null,null,null,null,0]
["Sch XVI","Non-Insurance",null,"Regulatory Capital in Entity - 2",null,null,null,null,0]
["Sch XVI","Non-Insurance",null,"Regulatory Capital in Entity - 3",null,null,null,null,0]
["Sch XVI","Non-Insurance",null,"Regulatory Capital in Entity - 4",null,null,null,null,0]
["Sch XVI","Non-Insurance",null,"Regulatory Capital in Entity - 5",null,null,null,null,0]
["Sch XVI","Non-Insurance",null,"Regulatory Capital in Entity - 6",null,null,null,null,0]
["Sch XVI","Non-Insurance",null,"Regulatory Capital in Entity - 7",null,null,null,null,0]
["Sch XVI","Non-Insurance",null,"Regulatory Capital in Entity - 8",null,null,null,null,0]
["Sch XVI","Non-Insurance",null,"Regulatory Capital in Entity - 9",null,null,null,null,0]
["Sch XVI","Non-Insurance",null,"Regulatory Capital in Entity - 10",null,null,null,null,0]
["Sch XVI","Non-Insurance",null,"Regulatory Capital in Entity - 11",null,null,null,null,0]
["Sch XVI","Non-Insurance",null,"Regulatory Capital in Entity - 12",null,null,null,null,0]
["Sch XVI","Non-Insurance",null,"Regulatory Capital in Entity - 13",null,null,null,null,0]
["Sch XVI","Non-Insurance",null,"Regulatory Capital in Entity - 14",null,null,null,null,0]
["Sch XVI","Non-Insurance",null,"Regulatory Capital in Entity - 15",null,null,null,null,0]
[]
["Sch XVII","Sovency Analysis",null,"# of Entities",null,null,null,null,0]
["Sch XVII","Sovency Analysis",null,"Name of Entity - 1",null,null,null,null,0]
["Sch XVII","Sovency Analysis",null,"Name of Entity - 2",null,null,null,null,0]
["Sch XVII","Sovency Analysis",null,"Name of Entity - 3",null,null,null,null,0]
["Sch XVII","Sovency Analysis",null,"Name of Entity - 4",null,null,null,null,0]
["Sch XVII","Sovency Analysis",null,"Name of Entity - 5",null,null,null,null,0]
["Sch XVII","Sovency Analysis",null,"Name of Entity - 6",null,null,null,null,0]
["Sch XVII","Sovency Analysis",null,"Name of Entity - 7",null,null,null,null,0]
["Sch XVII","Sovency Analysis",null,"Name of Entity - 8",null,null,null,null,0]
["Sch XVII","Sovency Analysis",null,"Name of Entity - 9",null,null,null,null,0]
["Sch XVII","Sovency Analysis",null,"Name of Entity - 10",null,null,null,null,0]
["Sch XVII","Sovency Analysis",null,"Name of Entity - 11",null,null,null,null,0]
["Sch XVII","Sovency Analysis",null,"Name of Entity - 12",null,null,null,null,0]
["Sch XVII","Sovency Analysis",null,"Name of Entity - 13",null,null,null,null,0]
["Sch XVII","Sovency Analysis",null,"Name of Entity - 14",null,null,null,null,0]
["Sch XVII","Sovency Analysis",null,"Name of Entity - 15",null,null,null,null,0]
["Sch XVII","Sovency Analysis",null,"Name of Entity - 16",null,null,null,null,0]
["Sch XVII","Sovency Analysis",null,"Name of Entity - 17",null,null,null,null,0]
["Sch XVII","Sovency Analysis",null,"Name of Entity - 18",null,null,null,null,0]
["Sch XVII","Sovency Analysis",null,"Name of Entity - 19",null,null,null,null,0]
["Sch XVII","Sovency Analysis",null,"Name of Entity - 20",null,null,null,null,0]
["Sch XVII","Sovency Analysis",null,"Name of Entity - 21",null,null,null,null,0]
["Sch XVII","Sovency Analysis",null,"Name of Entity - 22",null,null,null,null,0]
["Sch XVII","Sovency Analysis",null,"Name of Entity - 23",null,null,null,null,0]
["Sch XVII","Sovency Analysis",null,"Name of Entity - 24",null,null,null,null,0]
["Sch XVII","Sovency Analysis",null,"Name of Entity - 25",null,null,null,null,0]
["Sch XVII","Sovency Analysis",null,"Name of Entity - 26",null,null,null,null,0]
["Sch XVII","Sovency Analysis",null,"Name of Entity - 27",null,null,null,null,0]
["Sch XVII","Sovency Analysis",null,"Name of Entity - 28",null,null,null,null,0]
["Sch XVII","Sovency Analysis",null,"Name of Entity - 29",null,null,null,null,0]
["Sch XVII","Sovency Analysis",null,"Name of Entity - 30",null,null,null,null,0]
["Sch XVII","Sovency Analysis",null,"Jurisdiction of Entity - 1",null,null,null,null,0]
["Sch XVII","Sovency Analysis",null,"Jurisdiction of Entity - 2",null,null,null,null,0]
["Sch XVII","Sovency Analysis",null,"Jurisdiction of Entity - 3",null,null,null,null,0]
["Sch XVII","Sovency Analysis",null,"Jurisdiction of Entity - 4",null,null,null,null,0]
["Sch XVII","Sovency Analysis",null,"Jurisdiction of Entity - 5",null,null,null,null,0]
["Sch XVII","Sovency Analysis",null,"Jurisdiction of Entity - 6",null,null,null,null,0]
["Sch XVII","Sovency Analysis",null,"Jurisdiction of Entity - 7",null,null,null,null,0]
["Sch XVII","Sovency Analysis",null,"Jurisdiction of Entity - 8",null,null,null,null,0]
["Sch XVII","Sovency Analysis",null,"Jurisdiction of Entity - 9",null,null,null,null,0]
["Sch XVII","Sovency Analysis",null,"Jurisdiction of Entity - 10",null,null,null,null,0]
["Sch XVII","Sovency Analysis",null,"Jurisdiction of Entity - 11",null,null,null,null,0]
["Sch XVII","Sovency Analysis",null,"Jurisdiction of Entity - 12",null,null,null,null,0]
["Sch XVII","Sovency Analysis",null,"Jurisdiction of Entity - 13",null,null,null,null,0]
["Sch XVII","Sovency Analysis",null,"Jurisdiction of Entity - 14",null,null,null,null,0]
["Sch XVII","Sovency Analysis",null,"Jurisdiction of Entity - 15",null,null,null,null,0]
["Sch XVII","Sovency Analysis",null,"Jurisdiction of Entity - 16",null,null,null,null,0]
["Sch XVII","Sovency Analysis",null,"Jurisdiction of Entity - 17",null,null,null,null,0]
["Sch XVII","Sovency Analysis",null,"Jurisdiction of Entity - 18",null,null,null,null,0]
["Sch XVII","Sovency Analysis",null,"Jurisdiction of Entity - 19",null,null,null,null,0]
["Sch XVII","Sovency Analysis",null,"Jurisdiction of Entity - 20",null,null,null,null,0]
["Sch XVII","Sovency Analysis",null,"Jurisdiction of Entity - 21",null,null,null,null,0]
["Sch XVII","Sovency Analysis",null,"Jurisdiction of Entity - 22",null,null,null,null,0]
["Sch XVII","Sovency Analysis",null,"Jurisdiction of Entity - 23",null,null,null,null,0]
["Sch XVII","Sovency Analysis",null,"Jurisdiction of Entity - 24",null,null,null,null,0]
["Sch XVII","Sovency Analysis",null,"Jurisdiction of Entity - 25",null,null,null,null,0]
["Sch XVII","Sovency Analysis",null,"Jurisdiction of Entity - 26",null,null,null,null,0]
["Sch XVII","Sovency Analysis",null,"Jurisdiction of Entity - 27",null,null,null,null,0]
["Sch XVII","Sovency Analysis",null,"Jurisdiction of Entity - 28",null,null,null,null,0]
["Sch XVII","Sovency Analysis",null,"Jurisdiction of Entity - 29",null,null,null,null,0]
["Sch XVII","Sovency Analysis",null,"Jurisdiction of Entity - 30",null,null,null,null,0]
["Sch XVII","Sovency Analysis",null,"Type of Entity - 1",null,null,null,null,"Select"]
["Sch XVII","Sovency Analysis",null,"Type of Entity - 2",null,null,null,null,"Select"]
["Sch XVII","Sovency Analysis",null,"Type of Entity - 3",null,null,null,null,"Select"]
["Sch XVII","Sovency Analysis",null,"Type of Entity - 4",null,null,null,null,"Select"]
["Sch XVII","Sovency Analysis",null,"Type of Entity - 5",null,null,null,null,"Select"]
["Sch XVII","Sovency Analysis",null,"Type of Entity - 6",null,null,null,null,"Select"]
["Sch XVII","Sovency Analysis",null,"Type of Entity - 7",null,null,null,null,"Select"]
["Sch XVII","Sovency Analysis",null,"Type of Entity - 8",null,null,null,null,"Select"]
["Sch XVII","Sovency Analysis",null,"Type of Entity - 9",null,null,null,null,"Select"]
["Sch XVII","Sovency Analysis",null,"Type of Entity - 10",null,null,null,null,"Select"]
["Sch XVII","Sovency Analysis",null,"Type of Entity - 11",null,null,null,null,"Select"]
["Sch XVII","Sovency Analysis",null,"Type of Entity - 12",null,null,null,null,"Select"]
["Sch XVII","Sovency Analysis",null,"Type of Entity - 13",null,null,null,null,"Select"]
["Sch XVII","Sovency Analysis",null,"Type of Entity - 14",null,null,null,null,"Select"]
["Sch XVII","Sovency Analysis",null,"Type of Entity - 15",null,null,null,null,"Select"]
["Sch XVII","Sovency Analysis",null,"Type of Entity - 16",null,null,null,null,"Select"]
["Sch XVII","Sovency Analysis",null,"Type of Entity - 17",null,null,null,null,"Select"]
["Sch XVII","Sovency Analysis",null,"Type of Entity - 18",null,null,null,null,"Select"]
["Sch XVII","Sovency Analysis",null,"Type of Entity - 19",null,null,null,null,"Select"]
["Sch XVII","Sovency Analysis",null,"Type of Entity - 20",null,null,null,null,"Select"]
["Sch XVII","Sovency Analysis",null,"Type of Entity - 21",null,null,null,null,"Select"]
["Sch XVII","Sovency Analysis",null,"Type of Entity - 22",null,null,null,null,"Select"]
["Sch XVII","Sovency Analysis",null,"Type of Entity - 23",null,null,null,null,"Select"]
["Sch XVII","Sovency Analysis",null,"Type of Entity - 24",null,null,null,null,"Select"]
["Sch XVII","Sovency Analysis",null,"Type of Entity - 25",null,null,null,null,"Select"]
["Sch XVII","Sovency Analysis",null,"Type of Entity - 26",null,null,null,null,"Select"]
["Sch XVII","Sovency Analysis",null,"Type of Entity - 27",null,null,null,null,"Select"]
["Sch XVII","Sovency Analysis",null,"Type of Entity - 28",null,null,null,null,"Select"]
["Sch XVII","Sovency Analysis",null,"Type of Entity - 29",null,null,null,null,"Select"]
["Sch XVII","Sovency Analysis",null,"Type of Entity - 30",null,null,null,null,"Select"]
["Sch XVII","Sovency Analysis",null,"% Ownership of Entity - 1",null,null,null,null,0]
["Sch XVII","Sovency Analysis",null,"% Ownership of Entity - 2",null,null,null,null,0]
["Sch XVII","Sovency Analysis",null,"% Ownership of Entity - 3",null,null,null,null,0]
["Sch XVII","Sovency Analysis",null,"% Ownership of Entity - 4",null,null,null,null,0]
["Sch XVII","Sovency Analysis",null,"% Ownership of Entity - 5",null,null,null,null,0]
["Sch XVII","Sovency Analysis",null,"% Ownership of Entity - 6",null,null,null,null,0]
["Sch XVII","Sovency Analysis",null,"% Ownership of Entity - 7",null,null,null,null,0]
["Sch XVII","Sovency Analysis",null,"% Ownership of Entity - 8",null,null,null,null,0]
["Sch XVII","Sovency Analysis",null,"% Ownership of Entity - 9",null,null,null,null,0]
["Sch XVII","Sovency Analysis",null,"% Ownership of Entity - 10",null,null,null,null,0]
["Sch XVII","Sovency Analysis",null,"% Ownership of Entity - 11",null,null,null,null,0]
["Sch XVII","Sovency Analysis",null,"% Ownership of Entity - 12",null,null,null,null,0]
["Sch XVII","Sovency Analysis",null,"% Ownership of Entity - 13",null,null,null,null,0]
["Sch XVII","Sovency Analysis",null,"% Ownership of Entity - 14",null,null,null,null,0]
["Sch XVII","Sovency Analysis",null,"% Ownership of Entity - 15",null,null,null,null,0]
["Sch XVII","Sovency Analysis",null,"% Ownership of Entity - 16",null,null,null,null,0]
["Sch XVII","Sovency Analysis",null,"% Ownership of Entity - 17",null,null,null,null,0]
["Sch XVII","Sovency Analysis",null,"% Ownership of Entity - 18",null,null,null,null,0]
["Sch XVII","Sovency Analysis",null,"% Ownership of Entity - 19",null,null,null,null,0]
["Sch XVII","Sovency Analysis",null,"% Ownership of Entity - 20",null,null,null,null,0]
["Sch XVII","Sovency Analysis",null,"% Ownership of Entity - 21",null,null,null,null,0]
["Sch XVII","Sovency Analysis",null,"% Ownership of Entity - 22",null,null,null,null,0]
["Sch XVII","Sovency Analysis",null,"% Ownership of Entity - 23",null,null,null,null,0]
["Sch XVII","Sovency Analysis",null,"% Ownership of Entity - 24",null,null,null,null,0]
["Sch XVII","Sovency Analysis",null,"% Ownership of Entity - 25",null,null,null,null,0]
["Sch XVII","Sovency Analysis",null,"% Ownership of Entity - 26",null,null,null,null,0]
["Sch XVII","Sovency Analysis",null,"% Ownership of Entity - 27",null,null,null,null,0]
["Sch XVII","Sovency Analysis",null,"% Ownership of Entity - 28",null,null,null,null,0]
["Sch XVII","Sovency Analysis",null,"% Ownership of Entity - 29",null,null,null,null,0]
["Sch XVII","Sovency Analysis",null,"% Ownership of Entity - 30",null,null,null,null,0]
["Sch XVII","Sovency Analysis",null,"GPW of Entity - 1",null,null,null,null,0]
["Sch XVII","Sovency Analysis",null,"GPW of Entity - 2",null,null,null,null,0]
["Sch XVII","Sovency Analysis",null,"GPW of Entity - 3",null,null,null,null,0]
["Sch XVII","Sovency Analysis",null,"GPW of Entity - 4",null,null,null,null,0]
["Sch XVII","Sovency Analysis",null,"GPW of Entity - 5",null,null,null,null,0]
["Sch XVII","Sovency Analysis",null,"GPW of Entity - 6",null,null,null,null,0]
["Sch XVII","Sovency Analysis",null,"GPW of Entity - 7",null,null,null,null,0]
["Sch XVII","Sovency Analysis",null,"GPW of Entity - 8",null,null,null,null,0]
["Sch XVII","Sovency Analysis",null,"GPW of Entity - 9",null,null,null,null,0]
["Sch XVII","Sovency Analysis",null,"GPW of Entity - 10",null,null,null,null,0]
["Sch XVII","Sovency Analysis",null,"GPW of Entity - 11",null,null,null,null,0]
["Sch XVII","Sovency Analysis",null,"GPW of Entity - 12",null,null,null,null,0]
["Sch XVII","Sovency Analysis",null,"GPW of Entity - 13",null,null,null,null,0]
["Sch XVII","Sovency Analysis",null,"GPW of Entity - 14",null,null,null,null,0]
["Sch XVII","Sovency Analysis",null,"GPW of Entity - 15",null,null,null,null,0]
["Sch XVII","Sovency Analysis",null,"GPW of Entity - 16",null,null,null,null,0]
["Sch XVII","Sovency Analysis",null,"GPW of Entity - 17",null,null,null,null,0]
["Sch XVII","Sovency Analysis",null,"GPW of Entity - 18",null,null,null,null,0]
["Sch XVII","Sovency Analysis",null,"GPW of Entity - 19",null,null,null,null,0]
["Sch XVII","Sovency Analysis",null,"GPW of Entity - 20",null,null,null,null,0]
["Sch XVII","Sovency Analysis",null,"GPW of Entity - 21",null,null,null,null,0]
["Sch XVII","Sovency Analysis",null,"GPW of Entity - 22",null,null,null,null,0]
["Sch XVII","Sovency Analysis",null,"GPW of Entity - 23",null,null,null,null,0]
["Sch XVII","Sovency Analysis",null,"GPW of Entity - 24",null,null,null,null,0]
["Sch XVII","Sovency Analysis",null,"GPW of Entity - 25",null,null,null,null,0]
["Sch XVII","Sovency Analysis",null,"GPW of Entity - 26",null,null,null,null,0]
["Sch XVII","Sovency Analysis",null,"GPW of Entity - 27",null,null,null,null,0]
["Sch XVII","Sovency Analysis",null,"GPW of Entity - 28",null,null,null,null,0]
["Sch XVII","Sovency Analysis",null,"GPW of Entity - 29",null,null,null,null,0]
["Sch XVII","Sovency Analysis",null,"GPW of Entity - 30",null,null,null,null,0]
["Sch XVII","Sovency Analysis",null,"Total GPW",null,null,null,null,0]
["Sch XVII","Sovency Analysis",null,"NPW of Entity - 1",null,null,null,null,0]
["Sch XVII","Sovency Analysis",null,"NPW of Entity - 2",null,null,null,null,0]
["Sch XVII","Sovency Analysis",null,"NPW of Entity - 3",null,null,null,null,0]
["Sch XVII","Sovency Analysis",null,"NPW of Entity - 4",null,null,null,null,0]
["Sch XVII","Sovency Analysis",null,"NPW of Entity - 5",null,null,null,null,0]
["Sch XVII","Sovency Analysis",null,"NPW of Entity - 6",null,null,null,null,0]
["Sch XVII","Sovency Analysis",null,"NPW of Entity - 7",null,null,null,null,0]
["Sch XVII","Sovency Analysis",null,"NPW of Entity - 8",null,null,null,null,0]
["Sch XVII","Sovency Analysis",null,"NPW of Entity - 9",null,null,null,null,0]
["Sch XVII","Sovency Analysis",null,"NPW of Entity - 10",null,null,null,null,0]
["Sch XVII","Sovency Analysis",null,"NPW of Entity - 11",null,null,null,null,0]
["Sch XVII","Sovency Analysis",null,"NPW of Entity - 12",null,null,null,null,0]
["Sch XVII","Sovency Analysis",null,"NPW of Entity - 13",null,null,null,null,0]
["Sch XVII","Sovency Analysis",null,"NPW of Entity - 14",null,null,null,null,0]
["Sch XVII","Sovency Analysis",null,"NPW of Entity - 15",null,null,null,null,0]
["Sch XVII","Sovency Analysis",null,"NPW of Entity - 16",null,null,null,null,0]
["Sch XVII","Sovency Analysis",null,"NPW of Entity - 17",null,null,null,null,0]
["Sch XVII","Sovency Analysis",null,"NPW of Entity - 18",null,null,null,null,0]
["Sch XVII","Sovency Analysis",null,"NPW of Entity - 19",null,null,null,null,0]
["Sch XVII","Sovency Analysis",null,"NPW of Entity - 20",null,null,null,null,0]
["Sch XVII","Sovency Analysis",null,"NPW of Entity - 21",null,null,null,null,0]
["Sch XVII","Sovency Analysis",null,"NPW of Entity - 22",null,null,null,null,0]
["Sch XVII","Sovency Analysis",null,"NPW of Entity - 23",null,null,null,null,0]
["Sch XVII","Sovency Analysis",null,"NPW of Entity - 24",null,null,null,null,0]
["Sch XVII","Sovency Analysis",null,"NPW of Entity - 25",null,null,null,null,0]
["Sch XVII","Sovency Analysis",null,"NPW of Entity - 26",null,null,null,null,0]
["Sch XVII","Sovency Analysis",null,"NPW of Entity - 27",null,null,null,null,0]
["Sch XVII","Sovency Analysis",null,"NPW of Entity - 28",null,null,null,null,0]
["Sch XVII","Sovency Analysis",null,"NPW of Entity - 29",null,null,null,null,0]
["Sch XVII","Sovency Analysis",null,"NPW of Entity - 30",null,null,null,null,0]
["Sch XVII","Sovency Analysis",null,"Total NPW",null,null,null,null,0]
["Sch XVII","Sovency Analysis",null,"Total Assets of Entity - 1",null,null,null,null,0]
["Sch XVII","Sovency Analysis",null,"Total Assets of Entity - 2",null,null,null,null,0]
["Sch XVII","Sovency Analysis",null,"Total Assets of Entity - 3",null,null,null,null,0]
["Sch XVII","Sovency Analysis",null,"Total Assets of Entity - 4",null,null,null,null,0]
["Sch XVII","Sovency Analysis",null,"Total Assets of Entity - 5",null,null,null,null,0]
["Sch XVII","Sovency Analysis",null,"Total Assets of Entity - 6",null,null,null,null,0]
["Sch XVII","Sovency Analysis",null,"Total Assets of Entity - 7",null,null,null,null,0]
["Sch XVII","Sovency Analysis",null,"Total Assets of Entity - 8",null,null,null,null,0]
["Sch XVII","Sovency Analysis",null,"Total Assets of Entity - 9",null,null,null,null,0]
["Sch XVII","Sovency Analysis",null,"Total Assets of Entity - 10",null,null,null,null,0]
["Sch XVII","Sovency Analysis",null,"Total Assets of Entity - 11",null,null,null,null,0]
["Sch XVII","Sovency Analysis",null,"Total Assets of Entity - 12",null,null,null,null,0]
["Sch XVII","Sovency Analysis",null,"Total Assets of Entity - 13",null,null,null,null,0]
["Sch XVII","Sovency Analysis",null,"Total Assets of Entity - 14",null,null,null,null,0]
["Sch XVII","Sovency Analysis",null,"Total Assets of Entity - 15",null,null,null,null,0]
["Sch XVII","Sovency Analysis",null,"Total Assets of Entity - 16",null,null,null,null,0]
["Sch XVII","Sovency Analysis",null,"Total Assets of Entity - 17",null,null,null,null,0]
["Sch XVII","Sovency Analysis",null,"Total Assets of Entity - 18",null,null,null,null,0]
["Sch XVII","Sovency Analysis",null,"Total Assets of Entity - 19",null,null,null,null,0]
["Sch XVII","Sovency Analysis",null,"Total Assets of Entity - 20",null,null,null,null,0]
["Sch XVII","Sovency Analysis",null,"Total Assets of Entity - 21",null,null,null,null,0]
["Sch XVII","Sovency Analysis",null,"Total Assets of Entity - 22",null,null,null,null,0]
["Sch XVII","Sovency Analysis",null,"Total Assets of Entity - 23",null,null,null,null,0]
["Sch XVII","Sovency Analysis",null,"Total Assets of Entity - 24",null,null,null,null,0]
["Sch XVII","Sovency Analysis",null,"Total Assets of Entity - 25",null,null,null,null,0]
["Sch XVII","Sovency Analysis",null,"Total Assets of Entity - 26",null,null,null,null,0]
["Sch XVII","Sovency Analysis",null,"Total Assets of Entity - 27",null,null,null,null,0]
["Sch XVII","Sovency Analysis",null,"Total Assets of Entity - 28",null,null,null,null,0]
["Sch XVII","Sovency Analysis",null,"Total Assets of Entity - 29",null,null,null,null,0]
["Sch XVII","Sovency Analysis",null,"Total Assets of Entity - 30",null,null,null,null,0]
["Sch XVII","Sovency Analysis",null,"Total Assets",null,null,null,null,0]
["Sch XVII","Sovency Analysis",null,"Net Assets of Entity - 1",null,null,null,null,0]
["Sch XVII","Sovency Analysis",null,"Net Assets of Entity - 2",null,null,null,null,0]
["Sch XVII","Sovency Analysis",null,"Net Assets of Entity - 3",null,null,null,null,0]
["Sch XVII","Sovency Analysis",null,"Net Assets of Entity - 4",null,null,null,null,0]
["Sch XVII","Sovency Analysis",null,"Net Assets of Entity - 5",null,null,null,null,0]
["Sch XVII","Sovency Analysis",null,"Net Assets of Entity - 6",null,null,null,null,0]
["Sch XVII","Sovency Analysis",null,"Net Assets of Entity - 7",null,null,null,null,0]
["Sch XVII","Sovency Analysis",null,"Net Assets of Entity - 8",null,null,null,null,0]
["Sch XVII","Sovency Analysis",null,"Net Assets of Entity - 9",null,null,null,null,0]
["Sch XVII","Sovency Analysis",null,"Net Assets of Entity - 10",null,null,null,null,0]
["Sch XVII","Sovency Analysis",null,"Net Assets of Entity - 11",null,null,null,null,0]
["Sch XVII","Sovency Analysis",null,"Net Assets of Entity - 12",null,null,null,null,0]
["Sch XVII","Sovency Analysis",null,"Net Assets of Entity - 13",null,null,null,null,0]
["Sch XVII","Sovency Analysis",null,"Net Assets of Entity - 14",null,null,null,null,0]
["Sch XVII","Sovency Analysis",null,"Net Assets of Entity - 15",null,null,null,null,0]
["Sch XVII","Sovency Analysis",null,"Net Assets of Entity - 16",null,null,null,null,0]
["Sch XVII","Sovency Analysis",null,"Net Assets of Entity - 17",null,null,null,null,0]
["Sch XVII","Sovency Analysis",null,"Net Assets of Entity - 18",null,null,null,null,0]
["Sch XVII","Sovency Analysis",null,"Net Assets of Entity - 19",null,null,null,null,0]
["Sch XVII","Sovency Analysis",null,"Net Assets of Entity - 20",null,null,null,null,0]
["Sch XVII","Sovency Analysis",null,"Net Assets of Entity - 21",null,null,null,null,0]
["Sch XVII","Sovency Analysis",null,"Net Assets of Entity - 22",null,null,null,null,0]
["Sch XVII","Sovency Analysis",null,"Net Assets of Entity - 23",null,null,null,null,0]
["Sch XVII","Sovency Analysis",null,"Net Assets of Entity - 24",null,null,null,null,0]
["Sch XVII","Sovency Analysis",null,"Net Assets of Entity - 25",null,null,null,null,0]
["Sch XVII","Sovency Analysis",null,"Net Assets of Entity - 26",null,null,null,null,0]
["Sch XVII","Sovency Analysis",null,"Net Assets of Entity - 27",null,null,null,null,0]
["Sch XVII","Sovency Analysis",null,"Net Assets of Entity - 28",null,null,null,null,0]
["Sch XVII","Sovency Analysis",null,"Net Assets of Entity - 29",null,null,null,null,0]
["Sch XVII","Sovency Analysis",null,"Net Assets of Entity - 30",null,null,null,null,0]
["Sch XVII","Sovency Analysis",null,"Net Assets Total",null,null,null,null,0]
["Sch XVII","Sovency Analysis",null,"Regulatory Capital of Entity - 1",null,null,null,null,0]
["Sch XVII","Sovency Analysis",null,"Regulatory Capital of Entity - 2",null,null,null,null,0]
["Sch XVII","Sovency Analysis",null,"Regulatory Capital of Entity - 3",null,null,null,null,0]
["Sch XVII","Sovency Analysis",null,"Regulatory Capital of Entity - 4",null,null,null,null,0]
["Sch XVII","Sovency Analysis",null,"Regulatory Capital of Entity - 5",null,null,null,null,0]
["Sch XVII","Sovency Analysis",null,"Regulatory Capital of Entity - 6",null,null,null,null,0]
["Sch XVII","Sovency Analysis",null,"Regulatory Capital of Entity - 7",null,null,null,null,0]
["Sch XVII","Sovency Analysis",null,"Regulatory Capital of Entity - 8",null,null,null,null,0]
["Sch XVII","Sovency Analysis",null,"Regulatory Capital of Entity - 9",null,null,null,null,0]
["Sch XVII","Sovency Analysis",null,"Regulatory Capital of Entity - 10",null,null,null,null,0]
["Sch XVII","Sovency Analysis",null,"Regulatory Capital of Entity - 11",null,null,null,null,0]
["Sch XVII","Sovency Analysis",null,"Regulatory Capital of Entity - 12",null,null,null,null,0]
["Sch XVII","Sovency Analysis",null,"Regulatory Capital of Entity - 13",null,null,null,null,0]
["Sch XVII","Sovency Analysis",null,"Regulatory Capital of Entity - 14",null,null,null,null,0]
["Sch XVII","Sovency Analysis",null,"Regulatory Capital of Entity - 15",null,null,null,null,0]
["Sch XVII","Sovency Analysis",null,"Regulatory Capital of Entity - 16",null,null,null,null,0]
["Sch XVII","Sovency Analysis",null,"Regulatory Capital of Entity - 17",null,null,null,null,0]
["Sch XVII","Sovency Analysis",null,"Regulatory Capital of Entity - 18",null,null,null,null,0]
["Sch XVII","Sovency Analysis",null,"Regulatory Capital of Entity - 19",null,null,null,null,0]
["Sch XVII","Sovency Analysis",null,"Regulatory Capital of Entity - 20",null,null,null,null,0]
["Sch XVII","Sovency Analysis",null,"Regulatory Capital of Entity - 21",null,null,null,null,0]
["Sch XVII","Sovency Analysis",null,"Regulatory Capital of Entity - 22",null,null,null,null,0]
["Sch XVII","Sovency Analysis",null,"Regulatory Capital of Entity - 23",null,null,null,null,0]
["Sch XVII","Sovency Analysis",null,"Regulatory Capital of Entity - 24",null,null,null,null,0]
["Sch XVII","Sovency Analysis",null,"Regulatory Capital of Entity - 25",null,null,null,null,0]
["Sch XVII","Sovency Analysis",null,"Regulatory Capital of Entity - 26",null,null,null,null,0]
["Sch XVII","Sovency Analysis",null,"Regulatory Capital of Entity - 27",null,null,null,null,0]
["Sch XVII","Sovency Analysis",null,"Regulatory Capital of Entity - 28",null,null,null,null,0]
["Sch XVII","Sovency Analysis",null,"Regulatory Capital of Entity - 29",null,null,null,null,0]
["Sch XVII","Sovency Analysis",null,"Regulatory Capital of Entity - 30",null,null,null,null,0]
["Sch XVII","Sovency Analysis",null,"Regulatory Capital Total",null,null,null,null,0]
[]
["Sch XVIII","Ceded Reins",null,"# of Reinsurers",0,null,null,null,null,null,null,null,0]
["Sch XVIII","Ceded Reins",null,"Reinsurer Name - 1",0,null,null,null,null,null,null,null,0]
["Sch XVIII","Ceded Reins",null,"Reinsurer Name - 2",0,null,null,null,null,null,null,null,0]
["Sch XVIII","Ceded Reins",null,"Reinsurer Name - 3",0,null,null,null,null,null,null,null,0]
["Sch XVIII","Ceded Reins",null,"Reinsurer Name - 4",0,null,null,null,null,null,null,null,0]
["Sch XVIII","Ceded Reins",null,"Reinsurer Name - 5",0,null,null,null,null,null,null,null,0]
["Sch XVIII","Ceded Reins",null,"Reinsurer Name - 6",0,null,null,null,null,null,null,null,0]
["Sch XVIII","Ceded Reins",null,"Reinsurer Name - 7",0,null,null,null,null,null,null,null,0]
["Sch XVIII","Ceded Reins",null,"Reinsurer Name - 8",0,null,null,null,null,null,null,null,0]
["Sch XVIII","Ceded Reins",null,"Reinsurer Name - 9",0,null,null,null,null,null,null,null,0]
["Sch XVIII","Ceded Reins",null,"Reinsurer Name - 10",0,null,null,null,null,null,null,null,0]
["Sch XVIII","Ceded Reins",null,"Reinsurer Name - 11",0,null,null,null,null,null,null,null,0]
["Sch XVIII","Ceded Reins",null,"Reinsurer Name - 12",0,null,null,null,null,null,null,null,0]
["Sch XVIII","Ceded Reins",null,"Reinsurer Name - 13",0,null,null,null,null,null,null,null,0]
["Sch XVIII","Ceded Reins",null,"Reinsurer Name - 14",0,null,null,null,null,null,null,null,0]
["Sch XVIII","Ceded Reins",null,"Reinsurer Name - 15",0,null,null,null,null,null,null,null,0]
["Sch XVIII","Ceded Reins",null,"Reinsurer Name - 16",0,null,null,null,null,null,null,null,0]
["Sch XVIII","Ceded Reins",null,"Reinsurer Name - 17",0,null,null,null,null,null,null,null,0]
["Sch XVIII","Ceded Reins",null,"Reinsurer Name - 18",0,null,null,null,null,null,null,null,0]
["Sch XVIII","Ceded Reins",null,"Reinsurer Name - 19",0,null,null,null,null,null,null,null,0]
["Sch XVIII","Ceded Reins",null,"Reinsurer Name - 20",0,null,null,null,null,null,null,null,0]
["Sch XVIII","Ceded Reins",null,"Reinsurer Name - 21",0,null,null,null,null,null,null,null,0]
["Sch XVIII","Ceded Reins",null,"Reinsurer Name - 22",0,null,null,null,null,null,null,null,0]
["Sch XVIII","Ceded Reins",null,"Reinsurer Name - 23",0,null,null,null,null,null,null,null,0]
["Sch XVIII","Ceded Reins",null,"Reinsurer Name - 24",0,null,null,null,null,null,null,null,0]
["Sch XVIII","Ceded Reins",null,"Reinsurer Name - 25",0,null,null,null,null,null,null,null,0]
["Sch XVIII","Ceded Reins",null,"Reinsurer Name - 26",0,null,null,null,null,null,null,null,0]
["Sch XVIII","Ceded Reins",null,"Reinsurer Name - 27",0,null,null,null,null,null,null,null,0]
["Sch XVIII","Ceded Reins",null,"Reinsurer Name - 28",0,null,null,null,null,null,null,null,0]
["Sch XVIII","Ceded Reins",null,"Reinsurer Name - 29",0,null,null,null,null,null,null,null,0]
["Sch XVIII","Ceded Reins",null,"Reinsurer Name - 30",0,null,null,null,null,null,null,null,0]
["Sch XVIII","Ceded Reins",null,"Reinsurer BSCR Rating - 1","Select",null,null,null,null,null,null,null,"Select"]
["Sch XVIII","Ceded Reins",null,"Reinsurer BSCR Rating - 2","Select",null,null,null,null,null,null,null,"Select"]
["Sch XVIII","Ceded Reins",null,"Reinsurer BSCR Rating - 3","Select",null,null,null,null,null,null,null,"Select"]
["Sch XVIII","Ceded Reins",null,"Reinsurer BSCR Rating - 4","Select",null,null,null,null,null,null,null,"Select"]
["Sch XVIII","Ceded Reins",null,"Reinsurer BSCR Rating - 5","Select",null,null,null,null,null,null,null,"Select"]
["Sch XVIII","Ceded Reins",null,"Reinsurer BSCR Rating - 6","Select",null,null,null,null,null,null,null,"Select"]
["Sch XVIII","Ceded Reins",null,"Reinsurer BSCR Rating - 7","Select",null,null,null,null,null,null,null,"Select"]
["Sch XVIII","Ceded Reins",null,"Reinsurer BSCR Rating - 8","Select",null,null,null,null,null,null,null,"Select"]
["Sch XVIII","Ceded Reins",null,"Reinsurer BSCR Rating - 9","Select",null,null,null,null,null,null,null,"Select"]
["Sch XVIII","Ceded Reins",null,"Reinsurer BSCR Rating - 10","Select",null,null,null,null,null,null,null,"Select"]
["Sch XVIII","Ceded Reins",null,"Reinsurer BSCR Rating - 11","Select",null,null,null,null,null,null,null,"Select"]
["Sch XVIII","Ceded Reins",null,"Reinsurer BSCR Rating - 12","Select",null,null,null,null,null,null,null,"Select"]
["Sch XVIII","Ceded Reins",null,"Reinsurer BSCR Rating - 13","Select",null,null,null,null,null,null,null,"Select"]
["Sch XVIII","Ceded Reins",null,"Reinsurer BSCR Rating - 14","Select",null,null,null,null,null,null,null,"Select"]
["Sch XVIII","Ceded Reins",null,"Reinsurer BSCR Rating - 15","Select",null,null,null,null,null,null,null,"Select"]
["Sch XVIII","Ceded Reins",null,"Reinsurer BSCR Rating - 16","Select",null,null,null,null,null,null,null,"Select"]
["Sch XVIII","Ceded Reins",null,"Reinsurer BSCR Rating - 17","Select",null,null,null,null,null,null,null,"Select"]
["Sch XVIII","Ceded Reins",null,"Reinsurer BSCR Rating - 18","Select",null,null,null,null,null,null,null,"Select"]
["Sch XVIII","Ceded Reins",null,"Reinsurer BSCR Rating - 19","Select",null,null,null,null,null,null,null,"Select"]
["Sch XVIII","Ceded Reins",null,"Reinsurer BSCR Rating - 20","Select",null,null,null,null,null,null,null,"Select"]
["Sch XVIII","Ceded Reins",null,"Reinsurer BSCR Rating - 21","Select",null,null,null,null,null,null,null,"Select"]
["Sch XVIII","Ceded Reins",null,"Reinsurer BSCR Rating - 22","Select",null,null,null,null,null,null,null,"Select"]
["Sch XVIII","Ceded Reins",null,"Reinsurer BSCR Rating - 23","Select",null,null,null,null,null,null,null,"Select"]
["Sch XVIII","Ceded Reins",null,"Reinsurer BSCR Rating - 24","Select",null,null,null,null,null,null,null,"Select"]
["Sch XVIII","Ceded Reins",null,"Reinsurer BSCR Rating - 25","Select",null,null,null,null,null,null,null,"Select"]
["Sch XVIII","Ceded Reins",null,"Reinsurer BSCR Rating - 26","Select",null,null,null,null,null,null,null,"Select"]
["Sch XVIII","Ceded Reins",null,"Reinsurer BSCR Rating - 27","Select",null,null,null,null,null,null,null,"Select"]
["Sch XVIII","Ceded Reins",null,"Reinsurer BSCR Rating - 28","Select",null,null,null,null,null,null,null,"Select"]
["Sch XVIII","Ceded Reins",null,"Reinsurer BSCR Rating - 29","Select",null,null,null,null,null,null,null,"Select"]
["Sch XVIII","Ceded Reins",null,"Reinsurer BSCR Rating - 30","Select",null,null,null,null,null,null,null,"Select"]
["Sch XVIII","Ceded Reins",null,"Reinsurer R/I Assets - 1",0,null,null,null,null,null,null,null,0]
["Sch XVIII","Ceded Reins",null,"Reinsurer R/I Assets - 2",0,null,null,null,null,null,null,null,0]
["Sch XVIII","Ceded Reins",null,"Reinsurer R/I Assets - 3",0,null,null,null,null,null,null,null,0]
["Sch XVIII","Ceded Reins",null,"Reinsurer R/I Assets - 4",0,null,null,null,null,null,null,null,0]
["Sch XVIII","Ceded Reins",null,"Reinsurer R/I Assets - 5",0,null,null,null,null,null,null,null,0]
["Sch XVIII","Ceded Reins",null,"Reinsurer R/I Assets - 6",0,null,null,null,null,null,null,null,0]
["Sch XVIII","Ceded Reins",null,"Reinsurer R/I Assets - 7",0,null,null,null,null,null,null,null,0]
["Sch XVIII","Ceded Reins",null,"Reinsurer R/I Assets - 8",0,null,null,null,null,null,null,null,0]
["Sch XVIII","Ceded Reins",null,"Reinsurer R/I Assets - 9",0,null,null,null,null,null,null,null,0]
["Sch XVIII","Ceded Reins",null,"Reinsurer R/I Assets - 10",0,null,null,null,null,null,null,null,0]
["Sch XVIII","Ceded Reins",null,"Reinsurer R/I Assets - 11",0,null,null,null,null,null,null,null,0]
["Sch XVIII","Ceded Reins",null,"Reinsurer R/I Assets - 12",0,null,null,null,null,null,null,null,0]
["Sch XVIII","Ceded Reins",null,"Reinsurer R/I Assets - 13",0,null,null,null,null,null,null,null,0]
["Sch XVIII","Ceded Reins",null,"Reinsurer R/I Assets - 14",0,null,null,null,null,null,null,null,0]
["Sch XVIII","Ceded Reins",null,"Reinsurer R/I Assets - 15",0,null,null,null,null,null,null,null,0]
["Sch XVIII","Ceded Reins",null,"Reinsurer R/I Assets - 16",0,null,null,null,null,null,null,null,0]
["Sch XVIII","Ceded Reins",null,"Reinsurer R/I Assets - 17",0,null,null,null,null,null,null,null,0]
["Sch XVIII","Ceded Reins",null,"Reinsurer R/I Assets - 18",0,null,null,null,null,null,null,null,0]
["Sch XVIII","Ceded Reins",null,"Reinsurer R/I Assets - 19",0,null,null,null,null,null,null,null,0]
["Sch XVIII","Ceded Reins",null,"Reinsurer R/I Assets - 20",0,null,null,null,null,null,null,null,0]
["Sch XVIII","Ceded Reins",null,"Reinsurer R/I Assets - 21",0,null,null,null,null,null,null,null,0]
["Sch XVIII","Ceded Reins",null,"Reinsurer R/I Assets - 22",0,null,null,null,null,null,null,null,0]
["Sch XVIII","Ceded Reins",null,"Reinsurer R/I Assets - 23",0,null,null,null,null,null,null,null,0]
["Sch XVIII","Ceded Reins",null,"Reinsurer R/I Assets - 24",0,null,null,null,null,null,null,null,0]
["Sch XVIII","Ceded Reins",null,"Reinsurer R/I Assets - 25",0,null,null,null,null,null,null,null,0]
["Sch XVIII","Ceded Reins",null,"Reinsurer R/I Assets - 26",0,null,null,null,null,null,null,null,0]
["Sch XVIII","Ceded Reins",null,"Reinsurer R/I Assets - 27",0,null,null,null,null,null,null,null,0]
["Sch XVIII","Ceded Reins",null,"Reinsurer R/I Assets - 28",0,null,null,null,null,null,null,null,0]
["Sch XVIII","Ceded Reins",null,"Reinsurer R/I Assets - 29",0,null,null,null,null,null,null,null,0]
["Sch XVIII","Ceded Reins",null,"Reinsurer R/I Assets - 30",0,null,null,null,null,null,null,null,0]
["Sch XVIII","Ceded Reins",null,"Reinsurer R/I Total - 30",0,null,null,null,null,null,null,null,0]
["Sch XVIII","Ceded Reins",null,"Reinsurer R/I Payable - 1",0,null,null,null,null,null,null,null,0]
["Sch XVIII","Ceded Reins",null,"Reinsurer R/I Payable - 2",0,null,null,null,null,null,null,null,0]
["Sch XVIII","Ceded Reins",null,"Reinsurer R/I Payable - 3",0,null,null,null,null,null,null,null,0]
["Sch XVIII","Ceded Reins",null,"Reinsurer R/I Payable - 4",0,null,null,null,null,null,null,null,0]
["Sch XVIII","Ceded Reins",null,"Reinsurer R/I Payable - 5",0,null,null,null,null,null,null,null,0]
["Sch XVIII","Ceded Reins",null,"Reinsurer R/I Payable - 6",0,null,null,null,null,null,null,null,0]
["Sch XVIII","Ceded Reins",null,"Reinsurer R/I Payable - 7",0,null,null,null,null,null,null,null,0]
["Sch XVIII","Ceded Reins",null,"Reinsurer R/I Payable - 8",0,null,null,null,null,null,null,null,0]
["Sch XVIII","Ceded Reins",null,"Reinsurer R/I Payable - 9",0,null,null,null,null,null,null,null,0]
["Sch XVIII","Ceded Reins",null,"Reinsurer R/I Payable - 10",0,null,null,null,null,null,null,null,0]
["Sch XVIII","Ceded Reins",null,"Reinsurer R/I Payable - 11",0,null,null,null,null,null,null,null,0]
["Sch XVIII","Ceded Reins",null,"Reinsurer R/I Payable - 12",0,null,null,null,null,null,null,null,0]
["Sch XVIII","Ceded Reins",null,"Reinsurer R/I Payable - 13",0,null,null,null,null,null,null,null,0]
["Sch XVIII","Ceded Reins",null,"Reinsurer R/I Payable - 14",0,null,null,null,null,null,null,null,0]
["Sch XVIII","Ceded Reins",null,"Reinsurer R/I Payable - 15",0,null,null,null,null,null,null,null,0]
["Sch XVIII","Ceded Reins",null,"Reinsurer R/I Payable - 16",0,null,null,null,null,null,null,null,0]
["Sch XVIII","Ceded Reins",null,"Reinsurer R/I Payable - 17",0,null,null,null,null,null,null,null,0]
["Sch XVIII","Ceded Reins",null,"Reinsurer R/I Payable - 18",0,null,null,null,null,null,null,null,0]
["Sch XVIII","Ceded Reins",null,"Reinsurer R/I Payable - 19",0,null,null,null,null,null,null,null,0]
["Sch XVIII","Ceded Reins",null,"Reinsurer R/I Payable - 20",0,null,null,null,null,null,null,null,0]
["Sch XVIII","Ceded Reins",null,"Reinsurer R/I Payable - 21",0,null,null,null,null,null,null,null,0]
["Sch XVIII","Ceded Reins",null,"Reinsurer R/I Payable - 22",0,null,null,null,null,null,null,null,0]
["Sch XVIII","Ceded Reins",null,"Reinsurer R/I Payable - 23",0,null,null,null,null,null,null,null,0]
["Sch XVIII","Ceded Reins",null,"Reinsurer R/I Payable - 24",0,null,null,null,null,null,null,null,0]
["Sch XVIII","Ceded Reins",null,"Reinsurer R/I Payable - 25",0,null,null,null,null,null,null,null,0]
["Sch XVIII","Ceded Reins",null,"Reinsurer R/I Payable - 26",0,null,null,null,null,null,null,null,0]
["Sch XVIII","Ceded Reins",null,"Reinsurer R/I Payable - 27",0,null,null,null,null,null,null,null,0]
["Sch XVIII","Ceded Reins",null,"Reinsurer R/I Payable - 28",0,null,null,null,null,null,null,null,0]
["Sch XVIII","Ceded Reins",null,"Reinsurer R/I Payable - 29",0,null,null,null,null,null,null,null,0]
["Sch XVIII","Ceded Reins",null,"Reinsurer R/I Payable - 30",0,null,null,null,null,null,null,null,0]
["Sch XVIII","Ceded Reins",null,"Reinsurer R/I Total - 30",0,null,null,null,null,null,null,null,0]
["Sch XVIII","Ceded Reins",null,"Reinsurer Collateral - 1",0,null,null,null,null,null,null,null,0]
["Sch XVIII","Ceded Reins",null,"Reinsurer Collateral - 2",0,null,null,null,null,null,null,null,0]
["Sch XVIII","Ceded Reins",null,"Reinsurer Collateral - 3",0,null,null,null,null,null,null,null,0]
["Sch XVIII","Ceded Reins",null,"Reinsurer Collateral - 4",0,null,null,null,null,null,null,null,0]
["Sch XVIII","Ceded Reins",null,"Reinsurer Collateral - 5",0,null,null,null,null,null,null,null,0]
["Sch XVIII","Ceded Reins",null,"Reinsurer Collateral - 6",0,null,null,null,null,null,null,null,0]
["Sch XVIII","Ceded Reins",null,"Reinsurer Collateral - 7",0,null,null,null,null,null,null,null,0]
["Sch XVIII","Ceded Reins",null,"Reinsurer Collateral - 8",0,null,null,null,null,null,null,null,0]
["Sch XVIII","Ceded Reins",null,"Reinsurer Collateral - 9",0,null,null,null,null,null,null,null,0]
["Sch XVIII","Ceded Reins",null,"Reinsurer Collateral - 10",0,null,null,null,null,null,null,null,0]
["Sch XVIII","Ceded Reins",null,"Reinsurer Collateral - 11",0,null,null,null,null,null,null,null,0]
["Sch XVIII","Ceded Reins",null,"Reinsurer Collateral - 12",0,null,null,null,null,null,null,null,0]
["Sch XVIII","Ceded Reins",null,"Reinsurer Collateral - 13",0,null,null,null,null,null,null,null,0]
["Sch XVIII","Ceded Reins",null,"Reinsurer Collateral - 14",0,null,null,null,null,null,null,null,0]
["Sch XVIII","Ceded Reins",null,"Reinsurer Collateral - 15",0,null,null,null,null,null,null,null,0]
["Sch XVIII","Ceded Reins",null,"Reinsurer Collateral - 16",0,null,null,null,null,null,null,null,0]
["Sch XVIII","Ceded Reins",null,"Reinsurer Collateral - 17",0,null,null,null,null,null,null,null,0]
["Sch XVIII","Ceded Reins",null,"Reinsurer Collateral - 18",0,null,null,null,null,null,null,null,0]
["Sch XVIII","Ceded Reins",null,"Reinsurer Collateral - 19",0,null,null,null,null,null,null,null,0]
["Sch XVIII","Ceded Reins",null,"Reinsurer Collateral - 20",0,null,null,null,null,null,null,null,0]
["Sch XVIII","Ceded Reins",null,"Reinsurer Collateral - 21",0,null,null,null,null,null,null,null,0]
["Sch XVIII","Ceded Reins",null,"Reinsurer Collateral - 22",0,null,null,null,null,null,null,null,0]
["Sch XVIII","Ceded Reins",null,"Reinsurer Collateral - 23",0,null,null,null,null,null,null,null,0]
["Sch XVIII","Ceded Reins",null,"Reinsurer Collateral - 24",0,null,null,null,null,null,null,null,0]
["Sch XVIII","Ceded Reins",null,"Reinsurer Collateral - 25",0,null,null,null,null,null,null,null,0]
["Sch XVIII","Ceded Reins",null,"Reinsurer Collateral - 26",0,null,null,null,null,null,null,null,0]
["Sch XVIII","Ceded Reins",null,"Reinsurer Collateral - 27",0,null,null,null,null,null,null,null,0]
["Sch XVIII","Ceded Reins",null,"Reinsurer Collateral - 28",0,null,null,null,null,null,null,null,0]
["Sch XVIII","Ceded Reins",null,"Reinsurer Collateral - 29",0,null,null,null,null,null,null,null,0]
["Sch XVIII","Ceded Reins",null,"Reinsurer Collateral - 30",0,null,null,null,null,null,null,null,0]
["Sch XVIII","Ceded Reins",null,"Reinsurer Collateral - Total",0,null,null,null,null,null,null,null,0]
["Sch XVIII","Ceded Reins",null,"R/I Assets - Exposure by BSCR Rate 0",0,null,null,null,null,null,null,null,0]
["Sch XVIII","Ceded Reins",null,"R/I Assets - Exposure by BSCR Rate 1",0,null,null,null,null,null,null,null,0]
["Sch XVIII","Ceded Reins",null,"R/I Assets - Exposure by BSCR Rate 2",0,null,null,null,null,null,null,null,0]
["Sch XVIII","Ceded Reins",null,"R/I Assets - Exposure by BSCR Rate 3",0,null,null,null,null,null,null,null,0]
["Sch XVIII","Ceded Reins",null,"R/I Assets - Exposure by BSCR Rate 4",0,null,null,null,null,null,null,null,0]
["Sch XVIII","Ceded Reins",null,"R/I Assets - Exposure by BSCR Rate 5",0,null,null,null,null,null,null,null,0]
["Sch XVIII","Ceded Reins",null,"R/I Assets - Exposure by BSCR Rate 6",0,null,null,null,null,null,null,null,0]
["Sch XVIII","Ceded Reins",null,"R/I Assets - Exposure by BSCR Rate 7",0,null,null,null,null,null,null,null,0]
["Sch XVIII","Ceded Reins",null,"R/I Assets - Exposure by BSCR Rate 8",0,null,null,null,null,null,null,null,0]
["Sch XVIII","Ceded Reins",null,"R/I Assets - Exposure Total",0,null,null,null,null,null,null,null,0]
["Sch XVIII","Ceded Reins",null,"R/I Assets - Single Cons. Exp.",0,null,null,null,null,null,null,null,0]
["Sch XVIII","Ceded Reins",null,"R/I Payable - Exposure by BSCR Rate 0",0,null,null,null,null,null,null,null,0]
["Sch XVIII","Ceded Reins",null,"R/I Payable - Exposure by BSCR Rate 1",0,null,null,null,null,null,null,null,0]
["Sch XVIII","Ceded Reins",null,"R/I Payable - Exposure by BSCR Rate 2",0,null,null,null,null,null,null,null,0]
["Sch XVIII","Ceded Reins",null,"R/I Payable - Exposure by BSCR Rate 3",0,null,null,null,null,null,null,null,0]
["Sch XVIII","Ceded Reins",null,"R/I Payable - Exposure by BSCR Rate 4",0,null,null,null,null,null,null,null,0]
["Sch XVIII","Ceded Reins",null,"R/I Payable - Exposure by BSCR Rate 5",0,null,null,null,null,null,null,null,0]
["Sch XVIII","Ceded Reins",null,"R/I Payable - Exposure by BSCR Rate 6",0,null,null,null,null,null,null,null,0]
["Sch XVIII","Ceded Reins",null,"R/I Payable - Exposure by BSCR Rate 7",0,null,null,null,null,null,null,null,0]
["Sch XVIII","Ceded Reins",null,"R/I Payable - Exposure by BSCR Rate 8",0,null,null,null,null,null,null,null,0]
["Sch XVIII","Ceded Reins",null,"R/I Payable - Exposure Total",0,null,null,null,null,null,null,null,0]
["Sch XVIII","Ceded Reins",null,"R/I Payable - Single Cons. Exp.",0,null,null,null,null,null,null,null,0]
["Sch XVIII","Ceded Reins",null,"Collateral - Exposure by BSCR Rate 0",0,null,null,null,null,null,null,null,0]
["Sch XVIII","Ceded Reins",null,"Collateral - Exposure by BSCR Rate 1",0,null,null,null,null,null,null,null,0]
["Sch XVIII","Ceded Reins",null,"Collateral - Exposure by BSCR Rate 2",0,null,null,null,null,null,null,null,0]
["Sch XVIII","Ceded Reins",null,"Collateral - Exposure by BSCR Rate 3",0,null,null,null,null,null,null,null,0]
["Sch XVIII","Ceded Reins",null,"Collateral - Exposure by BSCR Rate 4",0,null,null,null,null,null,null,null,0]
["Sch XVIII","Ceded Reins",null,"Collateral - Exposure by BSCR Rate 5",0,null,null,null,null,null,null,null,0]
["Sch XVIII","Ceded Reins",null,"Collateral - Exposure by BSCR Rate 6",0,null,null,null,null,null,null,null,0]
["Sch XVIII","Ceded Reins",null,"Collateral - Exposure by BSCR Rate 7",0,null,null,null,null,null,null,null,0]
["Sch XVIII","Ceded Reins",null,"Collateral - Exposure by BSCR Rate 8",0,null,null,null,null,null,null,null,0]
["Sch XVIII","Ceded Reins",null,"Collateral - Exposure Total",0,null,null,null,null,null,null,null,0]
[]
["Sch XIX","Cash Counterpart",null,"Number",0]
["Sch XIX","Cash Counterpart",null,"Name - Counterparty 1",0]
["Sch XIX","Cash Counterpart",null,"Name - Counterparty 2",0]
["Sch XIX","Cash Counterpart",null,"Name - Counterparty 3",0]
["Sch XIX","Cash Counterpart",null,"Name - Counterparty 4",0]
["Sch XIX","Cash Counterpart",null,"Name - Counterparty 5",0]
["Sch XIX","Cash Counterpart",null,"Name - Counterparty 6",0]
["Sch XIX","Cash Counterpart",null,"Name - Counterparty 7",0]
["Sch XIX","Cash Counterpart",null,"Name - Counterparty 8",0]
["Sch XIX","Cash Counterpart",null,"Name - Counterparty 9",0]
["Sch XIX","Cash Counterpart",null,"Name - Counterparty 10",0]
["Sch XIX","Cash Counterpart",null,"Name - Counterparty 11",0]
["Sch XIX","Cash Counterpart",null,"Name - Counterparty 12",0]
["Sch XIX","Cash Counterpart",null,"Name - Counterparty 13",0]
["Sch XIX","Cash Counterpart",null,"Name - Counterparty 14",0]
["Sch XIX","Cash Counterpart",null,"Name - Counterparty 15",0]
["Sch XIX","Cash Counterpart",null,"Name - Counterparty 16",0]
["Sch XIX","Cash Counterpart",null,"Name - Counterparty 17",0]
["Sch XIX","Cash Counterpart",null,"Name - Counterparty 18",0]
["Sch XIX","Cash Counterpart",null,"Name - Counterparty 19",0]
["Sch XIX","Cash Counterpart",null,"Name - Counterparty 20",0]
["Sch XIX","Cash Counterpart",null,"BSCR Rating - Counterparty 1","Select"]
["Sch XIX","Cash Counterpart",null,"BSCR Rating - Counterparty 2","Select"]
["Sch XIX","Cash Counterpart",null,"BSCR Rating - Counterparty 3","Select"]
["Sch XIX","Cash Counterpart",null,"BSCR Rating - Counterparty 4","Select"]
["Sch XIX","Cash Counterpart",null,"BSCR Rating - Counterparty 5","Select"]
["Sch XIX","Cash Counterpart",null,"BSCR Rating - Counterparty 6","Select"]
["Sch XIX","Cash Counterpart",null,"BSCR Rating - Counterparty 7","Select"]
["Sch XIX","Cash Counterpart",null,"BSCR Rating - Counterparty 8","Select"]
["Sch XIX","Cash Counterpart",null,"BSCR Rating - Counterparty 9","Select"]
["Sch XIX","Cash Counterpart",null,"BSCR Rating - Counterparty 10","Select"]
["Sch XIX","Cash Counterpart",null,"BSCR Rating - Counterparty 11","Select"]
["Sch XIX","Cash Counterpart",null,"BSCR Rating - Counterparty 12","Select"]
["Sch XIX","Cash Counterpart",null,"BSCR Rating - Counterparty 13","Select"]
["Sch XIX","Cash Counterpart",null,"BSCR Rating - Counterparty 14","Select"]
["Sch XIX","Cash Counterpart",null,"BSCR Rating - Counterparty 15","Select"]
["Sch XIX","Cash Counterpart",null,"BSCR Rating - Counterparty 16","Select"]
["Sch XIX","Cash Counterpart",null,"BSCR Rating - Counterparty 17","Select"]
["Sch XIX","Cash Counterpart",null,"BSCR Rating - Counterparty 18","Select"]
["Sch XIX","Cash Counterpart",null,"BSCR Rating - Counterparty 19","Select"]
["Sch XIX","Cash Counterpart",null,"BSCR Rating - Counterparty 20","Select"]
["Sch XIX","Cash Counterpart",null,"Counterparty Value 1",0,null,null,null,null,null,null,null,0]
["Sch XIX","Cash Counterpart",null,"Counterparty Value 2",0,null,null,null,null,null,null,null,0]
["Sch XIX","Cash Counterpart",null,"Counterparty Value 3",0,null,null,null,null,null,null,null,0]
["Sch XIX","Cash Counterpart",null,"Counterparty Value 4",0,null,null,null,null,null,null,null,0]
["Sch XIX","Cash Counterpart",null,"Counterparty Value 5",0,null,null,null,null,null,null,null,0]
["Sch XIX","Cash Counterpart",null,"Counterparty Value 6",0,null,null,null,null,null,null,null,0]
["Sch XIX","Cash Counterpart",null,"Counterparty Value 7",0,null,null,null,null,null,null,null,0]
["Sch XIX","Cash Counterpart",null,"Counterparty Value 8",0,null,null,null,null,null,null,null,0]
["Sch XIX","Cash Counterpart",null,"Counterparty Value 9",0,null,null,null,null,null,null,null,0]
["Sch XIX","Cash Counterpart",null,"Counterparty Value 10",0,null,null,null,null,null,null,null,0]
["Sch XIX","Cash Counterpart",null,"Counterparty Value 11",0,null,null,null,null,null,null,null,0]
["Sch XIX","Cash Counterpart",null,"Counterparty Value 12",0,null,null,null,null,null,null,null,0]
["Sch XIX","Cash Counterpart",null,"Counterparty Value 13",0,null,null,null,null,null,null,null,0]
["Sch XIX","Cash Counterpart",null,"Counterparty Value 14",0,null,null,null,null,null,null,null,0]
["Sch XIX","Cash Counterpart",null,"Counterparty Value 15",0,null,null,null,null,null,null,null,0]
["Sch XIX","Cash Counterpart",null,"Counterparty Value 16",0,null,null,null,null,null,null,null,0]
["Sch XIX","Cash Counterpart",null,"Counterparty Value 17",0,null,null,null,null,null,null,null,0]
["Sch XIX","Cash Counterpart",null,"Counterparty Value 18",0,null,null,null,null,null,null,null,0]
["Sch XIX","Cash Counterpart",null,"Counterparty Value 19",0,null,null,null,null,null,null,null,0]
["Sch XIX","Cash Counterpart",null,"Counterparty Value 20",0,null,null,null,null,null,null,null,0]
["Sch XIX","Cash Counterpart",null,"Counterparty Total",0,null,null,null,null,null,null,null,0]
["Sch XIX","Cash Counterpart",null,"Exposure BSCR Rate 0",0,null,null,null,null,null,null,null,0]
["Sch XIX","Cash Counterpart",null,"Exposure BSCR Rate 1",0,null,null,null,null,null,null,null,0]
["Sch XIX","Cash Counterpart",null,"Exposure BSCR Rate 2",0,null,null,null,null,null,null,null,0]
["Sch XIX","Cash Counterpart",null,"Exposure BSCR Rate 3",0,null,null,null,null,null,null,null,0]
["Sch XIX","Cash Counterpart",null,"Exposure BSCR Rate 4",0,null,null,null,null,null,null,null,0]
["Sch XIX","Cash Counterpart",null,"Exposure BSCR Rate 5",0,null,null,null,null,null,null,null,0]
["Sch XIX","Cash Counterpart",null,"Exposure BSCR Rate 6",0,null,null,null,null,null,null,null,0]
["Sch XIX","Cash Counterpart",null,"Exposure BSCR Rate 7",0,null,null,null,null,null,null,null,0]
["Sch XIX","Cash Counterpart",null,"Exposure BSCR Rate 8",0,null,null,null,null,null,null,null,0]
[]
["Sch XX","Currency Analysis",null,"Assets - USD",0,null,null,null,null,null,null,null,0]
["Sch XX","Currency Analysis",null,"Assets - Euro",0,null,null,null,null,null,null,null,0]
["Sch XX","Currency Analysis",null,"Assets - UK £",0,null,null,null,null,null,null,null,0]
["Sch XX","Currency Analysis",null,"Assets - CDN",0,null,null,null,null,null,null,null,0]
["Sch XX","Currency Analysis",null,"Assets - Japan Yen",0,null,null,null,null,null,null,null,0]
["Sch XX","Currency Analysis",null,"Assets - Other 1",0,null,null,null,null,null,null,null,0]
["Sch XX","Currency Analysis",null,"Assets - Other 2",0,null,null,null,null,null,null,null,0]
["Sch XX","Currency Analysis",null,"Assets - Other 3",0,null,null,null,null,null,null,null,0]
["Sch XX","Currency Analysis",null,"Assets - Other 4",0,null,null,null,null,null,null,null,0]
["Sch XX","Currency Analysis",null,"Assets - Other 5",0,null,null,null,null,null,null,null,0]
["Sch XX","Currency Analysis",null,"Assets - Other 6",0,null,null,null,null,null,null,null,0]
["Sch XX","Currency Analysis",null,"Assets - Other 7",0,null,null,null,null,null,null,null,0]
["Sch XX","Currency Analysis",null,"Assets - Other 8",0,null,null,null,null,null,null,null,0]
["Sch XX","Currency Analysis",null,"Assets - Other 9",0,null,null,null,null,null,null,null,0]
["Sch XX","Currency Analysis",null,"Assets - Other 10",0,null,null,null,null,null,null,null,0]
["Sch XX","Currency Analysis",null,"Assets - Total",0,null,null,null,null,null,null,null,0]
["Sch XX","Currency Analysis",null,"Hedge Assets - USD",0,null,null,null,null,null,null,null,0]
["Sch XX","Currency Analysis",null,"Hedge Assets - Euro",0,null,null,null,null,null,null,null,0]
["Sch XX","Currency Analysis",null,"Hedge Assets - UK £",0,null,null,null,null,null,null,null,0]
["Sch XX","Currency Analysis",null,"Hedge Assets - CDN",0,null,null,null,null,null,null,null,0]
["Sch XX","Currency Analysis",null,"Hedge Assets - Japan Yen",0,null,null,null,null,null,null,null,0]
["Sch XX","Currency Analysis",null,"Hedge Assets - Other 1",0,null,null,null,null,null,null,null,0]
["Sch XX","Currency Analysis",null,"Hedge Assets - Other 2",0,null,null,null,null,null,null,null,0]
["Sch XX","Currency Analysis",null,"Hedge Assets - Other 3",0,null,null,null,null,null,null,null,0]
["Sch XX","Currency Analysis",null,"Hedge Assets - Other 4",0,null,null,null,null,null,null,null,0]
["Sch XX","Currency Analysis",null,"Hedge Assets - Other 5",0,null,null,null,null,null,null,null,0]
["Sch XX","Currency Analysis",null,"Hedge Assets - Other 6",0,null,null,null,null,null,null,null,0]
["Sch XX","Currency Analysis",null,"Hedge Assets - Other 7",0,null,null,null,null,null,null,null,0]
["Sch XX","Currency Analysis",null,"Hedge Assets - Other 8",0,null,null,null,null,null,null,null,0]
["Sch XX","Currency Analysis",null,"Hedge Assets - Other 9",0,null,null,null,null,null,null,null,0]
["Sch XX","Currency Analysis",null,"Hedge Assets - Other 10",0,null,null,null,null,null,null,null,0]
["Sch XX","Currency Analysis",null,"Hedge Assets - Total",0,null,null,null,null,null,null,null,0]
["Sch XX","Currency Analysis",null,"Liab. - USD",0,null,null,null,null,null,null,null,0]
["Sch XX","Currency Analysis",null,"Liab. - Euro",0,null,null,null,null,null,null,null,0]
["Sch XX","Currency Analysis",null,"Liab. - UK £",0,null,null,null,null,null,null,null,0]
["Sch XX","Currency Analysis",null,"Liab. - CDN",0,null,null,null,null,null,null,null,0]
["Sch XX","Currency Analysis",null,"Liab. - Japan Yen",0,null,null,null,null,null,null,null,0]
["Sch XX","Currency Analysis",null,"Liab. - Other 1",0,null,null,null,null,null,null,null,0]
["Sch XX","Currency Analysis",null,"Liab. - Other 2",0,null,null,null,null,null,null,null,0]
["Sch XX","Currency Analysis",null,"Liab. - Other 3",0,null,null,null,null,null,null,null,0]
["Sch XX","Currency Analysis",null,"Liab. - Other 4",0,null,null,null,null,null,null,null,0]
["Sch XX","Currency Analysis",null,"Liab. - Other 5",0,null,null,null,null,null,null,null,0]
["Sch XX","Currency Analysis",null,"Liab. - Other 6",0,null,null,null,null,null,null,null,0]
["Sch XX","Currency Analysis",null,"Liab. - Other 7",0,null,null,null,null,null,null,null,0]
["Sch XX","Currency Analysis",null,"Liab. - Other 8",0,null,null,null,null,null,null,null,0]
["Sch XX","Currency Analysis",null,"Liab. - Other 9",0,null,null,null,null,null,null,null,0]
["Sch XX","Currency Analysis",null,"Liab. - Other 10",0,null,null,null,null,null,null,null,0]
["Sch XX","Currency Analysis",null,"Liab. - Total",0,null,null,null,null,null,null,null,0]
["Sch XX","Currency Analysis",null,"Hedge Liab. - USD",0,null,null,null,null,null,null,null,0]
["Sch XX","Currency Analysis",null,"Hedge Liab. - Euro",0,null,null,null,null,null,null,null,0]
["Sch XX","Currency Analysis",null,"Hedge Liab. - UK £",0,null,null,null,null,null,null,null,0]
["Sch XX","Currency Analysis",null,"Hedge Liab. - CDN",0,null,null,null,null,null,null,null,0]
["Sch XX","Currency Analysis",null,"Hedge Liab. - Japan Yen",0,null,null,null,null,null,null,null,0]
["Sch XX","Currency Analysis",null,"Hedge Liab. - Other 1",0,null,null,null,null,null,null,null,0]
["Sch XX","Currency Analysis",null,"Hedge Liab. - Other 2",0,null,null,null,null,null,null,null,0]
["Sch XX","Currency Analysis",null,"Hedge Liab. - Other 3",0,null,null,null,null,null,null,null,0]
["Sch XX","Currency Analysis",null,"Hedge Liab. - Other 4",0,null,null,null,null,null,null,null,0]
["Sch XX","Currency Analysis",null,"Hedge Liab. - Other 5",0,null,null,null,null,null,null,null,0]
["Sch XX","Currency Analysis",null,"Hedge Liab. - Other 6",0,null,null,null,null,null,null,null,0]
["Sch XX","Currency Analysis",null,"Hedge Liab. - Other 7",0,null,null,null,null,null,null,null,0]
["Sch XX","Currency Analysis",null,"Hedge Liab. - Other 8",0,null,null,null,null,null,null,null,0]
["Sch XX","Currency Analysis",null,"Hedge Liab. - Other 9",0,null,null,null,null,null,null,null,0]
["Sch XX","Currency Analysis",null,"Hedge Liab. - Other 10",0,null,null,null,null,null,null,null,0]
["Sch XX","Currency Analysis",null,"Hedge Liab. - Total",0,null,null,null,null,null,null,null,0]
["Sch XX","Currency Analysis",null,"Liabilities Prior Year 1",null,null,null,null,null,null,null,null,0]
["Sch XX","Currency Analysis",null,"Liabilities Prior Year 2",null,null,null,null,null,null,null,null,0]
["Sch XX","Currency Analysis",null,"Liabilities Prior Year 3",null,null,null,null,null,null,null,null,0]
["Sch XX","Currency Analysis",null,"ECR Prior Year 1",null,null,null,null,null,null,null,null,0]
["Sch XX","Currency Analysis",null,"ECR Prior Year 2",null,null,null,null,null,null,null,null,0]
["Sch XX","Currency Analysis",null,"ECR Prior Year 3",null,null,null,null,null,null,null,null,0]
[]
["Sch XXI","Inv Con Risk",null,"# of Exposures",0]
["Sch XXI","Inv Con Risk",null,"Name of Exposure - 1",0]
["Sch XXI","Inv Con Risk",null,"Name of Exposure - 2",0]
["Sch XXI","Inv Con Risk",null,"Name of Exposure - 3",0]
["Sch XXI","Inv Con Risk",null,"Name of Exposure - 4",0]
["Sch XXI","Inv Con Risk",null,"Name of Exposure - 5",0]
["Sch XXI","Inv Con Risk",null,"Name of Exposure - 6",0]
["Sch XXI","Inv Con Risk",null,"Name of Exposure - 7",0]
["Sch XXI","Inv Con Risk",null,"Name of Exposure - 8",0]
["Sch XXI","Inv Con Risk",null,"Name of Exposure - 9",0]
["Sch XXI","Inv Con Risk",null,"Name of Exposure - 10",0]
["Sch XXI","Inv Con Risk",null,"Name of Exposure - 11",0]
["Sch XXI","Inv Con Risk",null,"Name of Exposure - 12",0]
["Sch XXI","Inv Con Risk",null,"Name of Exposure - 13",0]
["Sch XXI","Inv Con Risk",null,"Name of Exposure - 14",0]
["Sch XXI","Inv Con Risk",null,"Name of Exposure - 15",0]
["Sch XXI","Inv Con Risk",null,"Name of Exposure - 16",0]
["Sch XXI","Inv Con Risk",null,"Name of Exposure - 17",0]
["Sch XXI","Inv Con Risk",null,"Name of Exposure - 18",0]
["Sch XXI","Inv Con Risk",null,"Name of Exposure - 19",0]
["Sch XXI","Inv Con Risk",null,"Name of Exposure - 20",0]
["Sch XXI","Inv Con Risk",null,"Name of Exposure - 21",0]
["Sch XXI","Inv Con Risk",null,"Name of Exposure - 22",0]
["Sch XXI","Inv Con Risk",null,"Name of Exposure - 23",0]
["Sch XXI","Inv Con Risk",null,"Name of Exposure - 24",0]
["Sch XXI","Inv Con Risk",null,"Name of Exposure - 25",0]
["Sch XXI","Inv Con Risk",null,"Asset Type - 1","Select",null,null,null,null,null,null,null,"Select"]
["Sch XXI","Inv Con Risk",null,"Asset Type - 2","Select",null,null,null,null,null,null,null,"Select"]
["Sch XXI","Inv Con Risk",null,"Asset Type - 3","Select",null,null,null,null,null,null,null,"Select"]
["Sch XXI","Inv Con Risk",null,"Asset Type - 4","Select",null,null,null,null,null,null,null,"Select"]
["Sch XXI","Inv Con Risk",null,"Asset Type - 5","Select",null,null,null,null,null,null,null,"Select"]
["Sch XXI","Inv Con Risk",null,"Asset Type - 6","Select",null,null,null,null,null,null,null,"Select"]
["Sch XXI","Inv Con Risk",null,"Asset Type - 7","Select",null,null,null,null,null,null,null,"Select"]
["Sch XXI","Inv Con Risk",null,"Asset Type - 8","Select",null,null,null,null,null,null,null,"Select"]
["Sch XXI","Inv Con Risk",null,"Asset Type - 9","Select",null,null,null,null,null,null,null,"Select"]
["Sch XXI","Inv Con Risk",null,"Asset Type - 10","Select",null,null,null,null,null,null,null,"Select"]
["Sch XXI","Inv Con Risk",null,"Asset Type - 11","Select",null,null,null,null,null,null,null,"Select"]
["Sch XXI","Inv Con Risk",null,"Asset Type - 12","Select",null,null,null,null,null,null,null,"Select"]
["Sch XXI","Inv Con Risk",null,"Asset Type - 13","Select",null,null,null,null,null,null,null,"Select"]
["Sch XXI","Inv Con Risk",null,"Asset Type - 14","Select",null,null,null,null,null,null,null,"Select"]
["Sch XXI","Inv Con Risk",null,"Asset Type - 15","Select",null,null,null,null,null,null,null,"Select"]
["Sch XXI","Inv Con Risk",null,"Asset Type - 16","Select",null,null,null,null,null,null,null,"Select"]
["Sch XXI","Inv Con Risk",null,"Asset Type - 17","Select",null,null,null,null,null,null,null,"Select"]
["Sch XXI","Inv Con Risk",null,"Asset Type - 18","Select",null,null,null,null,null,null,null,"Select"]
["Sch XXI","Inv Con Risk",null,"Asset Type - 19","Select",null,null,null,null,null,null,null,"Select"]
["Sch XXI","Inv Con Risk",null,"Asset Type - 20","Select",null,null,null,null,null,null,null,"Select"]
["Sch XXI","Inv Con Risk",null,"Asset Type - 21","Select",null,null,null,null,null,null,null,"Select"]
["Sch XXI","Inv Con Risk",null,"Asset Type - 22","Select",null,null,null,null,null,null,null,"Select"]
["Sch XXI","Inv Con Risk",null,"Asset Type - 23","Select",null,null,null,null,null,null,null,"Select"]
["Sch XXI","Inv Con Risk",null,"Asset Type - 24","Select",null,null,null,null,null,null,null,"Select"]
["Sch XXI","Inv Con Risk",null,"Asset Type - 25","Select",null,null,null,null,null,null,null,"Select"]
["Sch XXI","Inv Con Risk",null,"Bond Type - 1","Select",null,null,null,null,null,null,null,"Select"]
["Sch XXI","Inv Con Risk",null,"Bond Type - 2","Select",null,null,null,null,null,null,null,"Select"]
["Sch XXI","Inv Con Risk",null,"Bond Type - 3","Select",null,null,null,null,null,null,null,"Select"]
["Sch XXI","Inv Con Risk",null,"Bond Type - 4","Select",null,null,null,null,null,null,null,"Select"]
["Sch XXI","Inv Con Risk",null,"Bond Type - 5","Select",null,null,null,null,null,null,null,"Select"]
["Sch XXI","Inv Con Risk",null,"Bond Type - 6","Select",null,null,null,null,null,null,null,"Select"]
["Sch XXI","Inv Con Risk",null,"Bond Type - 7","Select",null,null,null,null,null,null,null,"Select"]
["Sch XXI","Inv Con Risk",null,"Bond Type - 8","Select",null,null,null,null,null,null,null,"Select"]
["Sch XXI","Inv Con Risk",null,"Bond Type - 9","Select",null,null,null,null,null,null,null,"Select"]
["Sch XXI","Inv Con Risk",null,"Bond Type - 10","Select",null,null,null,null,null,null,null,"Select"]
["Sch XXI","Inv Con Risk",null,"Bond Type - 11","Select",null,null,null,null,null,null,null,"Select"]
["Sch XXI","Inv Con Risk",null,"Bond Type - 12","Select",null,null,null,null,null,null,null,"Select"]
["Sch XXI","Inv Con Risk",null,"Bond Type - 13","Select",null,null,null,null,null,null,null,"Select"]
["Sch XXI","Inv Con Risk",null,"Bond Type - 14","Select",null,null,null,null,null,null,null,"Select"]
["Sch XXI","Inv Con Risk",null,"Bond Type - 15","Select",null,null,null,null,null,null,null,"Select"]
["Sch XXI","Inv Con Risk",null,"Bond Type - 16","Select",null,null,null,null,null,null,null,"Select"]
["Sch XXI","Inv Con Risk",null,"Bond Type - 17","Select",null,null,null,null,null,null,null,"Select"]
["Sch XXI","Inv Con Risk",null,"Bond Type - 18","Select",null,null,null,null,null,null,null,"Select"]
["Sch XXI","Inv Con Risk",null,"Bond Type - 19","Select",null,null,null,null,null,null,null,"Select"]
["Sch XXI","Inv Con Risk",null,"Bond Type - 20","Select",null,null,null,null,null,null,null,"Select"]
["Sch XXI","Inv Con Risk",null,"Bond Type - 21","Select",null,null,null,null,null,null,null,"Select"]
["Sch XXI","Inv Con Risk",null,"Bond Type - 22","Select",null,null,null,null,null,null,null,"Select"]
["Sch XXI","Inv Con Risk",null,"Bond Type - 23","Select",null,null,null,null,null,null,null,"Select"]
["Sch XXI","Inv Con Risk",null,"Bond Type - 24","Select",null,null,null,null,null,null,null,"Select"]
["Sch XXI","Inv Con Risk",null,"Bond Type - 25","Select",null,null,null,null,null,null,null,"Select"]
["Sch XXI","Inv Con Risk",null,"BSCR Rating - 1","Select",null,null,null,null,null,null,null,"Select"]
["Sch XXI","Inv Con Risk",null,"BSCR Rating - 2","Select",null,null,null,null,null,null,null,"Select"]
["Sch XXI","Inv Con Risk",null,"BSCR Rating - 3","Select",null,null,null,null,null,null,null,"Select"]
["Sch XXI","Inv Con Risk",null,"BSCR Rating - 4","Select",null,null,null,null,null,null,null,"Select"]
["Sch XXI","Inv Con Risk",null,"BSCR Rating - 5","Select",null,null,null,null,null,null,null,"Select"]
["Sch XXI","Inv Con Risk",null,"BSCR Rating - 6","Select",null,null,null,null,null,null,null,"Select"]
["Sch XXI","Inv Con Risk",null,"BSCR Rating - 7","Select",null,null,null,null,null,null,null,"Select"]
["Sch XXI","Inv Con Risk",null,"BSCR Rating - 8","Select",null,null,null,null,null,null,null,"Select"]
["Sch XXI","Inv Con Risk",null,"BSCR Rating - 9","Select",null,null,null,null,null,null,null,"Select"]
["Sch XXI","Inv Con Risk",null,"BSCR Rating - 10","Select",null,null,null,null,null,null,null,"Select"]
["Sch XXI","Inv Con Risk",null,"BSCR Rating - 11","Select",null,null,null,null,null,null,null,"Select"]
["Sch XXI","Inv Con Risk",null,"BSCR Rating - 12","Select",null,null,null,null,null,null,null,"Select"]
["Sch XXI","Inv Con Risk",null,"BSCR Rating - 13","Select",null,null,null,null,null,null,null,"Select"]
["Sch XXI","Inv Con Risk",null,"BSCR Rating - 14","Select",null,null,null,null,null,null,null,"Select"]
["Sch XXI","Inv Con Risk",null,"BSCR Rating - 15","Select",null,null,null,null,null,null,null,"Select"]
["Sch XXI","Inv Con Risk",null,"BSCR Rating - 16","Select",null,null,null,null,null,null,null,"Select"]
["Sch XXI","Inv Con Risk",null,"BSCR Rating - 17","Select",null,null,null,null,null,null,null,"Select"]
["Sch XXI","Inv Con Risk",null,"BSCR Rating - 18","Select",null,null,null,null,null,null,null,"Select"]
["Sch XXI","Inv Con Risk",null,"BSCR Rating - 19","Select",null,null,null,null,null,null,null,"Select"]
["Sch XXI","Inv Con Risk",null,"BSCR Rating - 20","Select",null,null,null,null,null,null,null,"Select"]
["Sch XXI","Inv Con Risk",null,"BSCR Rating - 21","Select",null,null,null,null,null,null,null,"Select"]
["Sch XXI","Inv Con Risk",null,"BSCR Rating - 22","Select",null,null,null,null,null,null,null,"Select"]
["Sch XXI","Inv Con Risk",null,"BSCR Rating - 23","Select",null,null,null,null,null,null,null,"Select"]
["Sch XXI","Inv Con Risk",null,"BSCR Rating - 24","Select",null,null,null,null,null,null,null,"Select"]
["Sch XXI","Inv Con Risk",null,"BSCR Rating - 25","Select",null,null,null,null,null,null,null,"Select"]
["Sch XXI","Inv Con Risk",null,"Asset Value - 1",0,null,null,null,null,null,null,null,0]
["Sch XXI","Inv Con Risk",null,"Asset Value - 2",0,null,null,null,null,null,null,null,0]
["Sch XXI","Inv Con Risk",null,"Asset Value - 3",0,null,null,null,null,null,null,null,0]
["Sch XXI","Inv Con Risk",null,"Asset Value - 4",0,null,null,null,null,null,null,null,0]
["Sch XXI","Inv Con Risk",null,"Asset Value - 5",0,null,null,null,null,null,null,null,0]
["Sch XXI","Inv Con Risk",null,"Asset Value - 6",0,null,null,null,null,null,null,null,0]
["Sch XXI","Inv Con Risk",null,"Asset Value - 7",0,null,null,null,null,null,null,null,0]
["Sch XXI","Inv Con Risk",null,"Asset Value - 8",0,null,null,null,null,null,null,null,0]
["Sch XXI","Inv Con Risk",null,"Asset Value - 9",0,null,null,null,null,null,null,null,0]
["Sch XXI","Inv Con Risk",null,"Asset Value - 10",0,null,null,null,null,null,null,null,0]
["Sch XXI","Inv Con Risk",null,"Asset Value - 11",0,null,null,null,null,null,null,null,0]
["Sch XXI","Inv Con Risk",null,"Asset Value - 12",0,null,null,null,null,null,null,null,0]
["Sch XXI","Inv Con Risk",null,"Asset Value - 13",0,null,null,null,null,null,null,null,0]
["Sch XXI","Inv Con Risk",null,"Asset Value - 14",0,null,null,null,null,null,null,null,0]
["Sch XXI","Inv Con Risk",null,"Asset Value - 15",0,null,null,null,null,null,null,null,0]
["Sch XXI","Inv Con Risk",null,"Asset Value - 16",0,null,null,null,null,null,null,null,0]
["Sch XXI","Inv Con Risk",null,"Asset Value - 17",0,null,null,null,null,null,null,null,0]
["Sch XXI","Inv Con Risk",null,"Asset Value - 18",0,null,null,null,null,null,null,null,0]
["Sch XXI","Inv Con Risk",null,"Asset Value - 19",0,null,null,null,null,null,null,null,0]
["Sch XXI","Inv Con Risk",null,"Asset Value - 20",0,null,null,null,null,null,null,null,0]
["Sch XXI","Inv Con Risk",null,"Asset Value - 21",0,null,null,null,null,null,null,null,0]
["Sch XXI","Inv Con Risk",null,"Asset Value - 22",0,null,null,null,null,null,null,null,0]
["Sch XXI","Inv Con Risk",null,"Asset Value - 23",0,null,null,null,null,null,null,null,0]
["Sch XXI","Inv Con Risk",null,"Asset Value - 24",0,null,null,null,null,null,null,null,0]
["Sch XXI","Inv Con Risk",null,"Asset Value - 25",0,null,null,null,null,null,null,null,0]
["Sch XXI","Inv Con Risk",null,"Asset Value - Total",0,null,null,null,null,null,null,null,0]
[]
["Op Risk","Corp Gov",null,"Corporate Governance Q1",null,null,null,null,0,null,null,null,null,null,null,null,0]
["Op Risk","Corp Gov",null,"Corporate Governance Q2 (Class C Only)",null,null,null,null,0,null,null,null,null,null,null,null,{"$f":"IF('Insurer Information'!$F$9=\"Class C\",200,0)","v":0}]
["Op Risk","Corp Gov",null,"Corporate Governance Q3",null,null,null,null,0]
["Op Risk","Corp Gov",null,"Corporate Governance Q4",null,null,null,null,0]
["Op Risk","Corp Gov",null,"Corporate Governance Q5",null,null,null,null,0]
["Op Risk","Corp Gov",null,"Corporate Governance Q6",null,null,null,null,0]
["Op Risk","Corp Gov",null,"Corporate Governance Q7",null,null,null,null,0]
["Op Risk","Risk Mngt",null,"Risk Management Q1",null,null,null,null,0,null,null,null,null,null,null,null,0]
["Op Risk","Risk Mngt",null,"Risk Management Q2",null,null,null,null,0,null,null,null,null,null,null,null,{"$f":"IF('Insurer Information'!$F$9=\"Class C\",200,150)","v":150}]
["Op Risk","Risk Mngt",null,"Risk Management Q3",null,null,null,null,0]
["Op Risk","Risk Mngt",null,"Risk Management Q4",null,null,null,null,0]
["Op Risk","Risk Mngt",null,"Risk Management Q5",null,null,null,null,0]
["Op Risk","Risk Mngt",null,"Risk Management Q6",null,null,null,null,0]
["Op Risk","Risk Mngt",null,"Risk Management Q7",null,null,null,null,0]
["Op Risk","Indentification",null,"Identification - Fraud (Class D/E Only)",null,null,null,null,0,null,null,null,null,null,null,null,{"$f":"IF('Insurer Information'!$F$9=\"Class C\",0,0)","v":0}]
["Op Risk","Indentification",null,"Identification - HR (Class D/E Only)",null,null,null,null,0,null,null,null,null,null,null,null,{"$f":"IF('Insurer Information'!$F$9=\"Class C\",0,50)","v":50}]
["Op Risk","Indentification",null,"Identification - Outsourcing (Class D/E Only)",null,null,null,null,0,null,null,null,null,null,null,null,{"$f":"IF('Insurer Information'!$F$9=\"Class C\",0,100)","v":100}]
["Op Risk","Indentification",null,"Identification - Dis. Channels (Class D/E Only)",null,null,null,null,0,null,null,null,null,null,null,null,{"$f":"IF('Insurer Information'!$F$9=\"Class C\",0,150)","v":150}]
["Op Risk","Indentification",null,"Identification - Bus. Processes (Class D/E Only)",null,null,null,null,0,null,null,null,null,null,null,null,{"$f":"IF('Insurer Information'!$F$9=\"Class C\",0,200)","v":200}]
["Op Risk","Indentification",null,"Identification - Bus. Continuity (Class D/E Only)",null,null,null,null,0]
["Op Risk","Indentification",null,"Identification - Info. Systems (Class D/E Only)",null,null,null,null,0]
["Op Risk","Indentification",null,"Identification - Compliance (Class D/E Only)",null,null,null,null,0]
["Op Risk","Measurement",null,"Measurement - Fraud (Class D/E Only)",null,null,null,null,0]
["Op Risk","Measurement",null,"Measurement - HR (Class D/E Only)",null,null,null,null,0]
["Op Risk","Measurement",null,"Measurement - Outsourcing (Class D/E Only)",null,null,null,null,0]
["Op Risk","Measurement",null,"Measurement - Dis. Channels (Class D/E Only)",null,null,null,null,0]
["Op Risk","Measurement",null,"Measurement - Bus. Processes (Class D/E Only)",null,null,null,null,0]
["Op Risk","Measurement",null,"Measurement - Bus. Continuity (Class D/E Only)",null,null,null,null,0]
["Op Risk","Measurement",null,"Measurement - Info. Systems (Class D/E Only)",null,null,null,null,0]
["Op Risk","Measurement",null,"Measurement - Compliance (Class D/E Only)",null,null,null,null,0]
["Op Risk","Response",null,"Response - Fraud (Class D/E Only)",null,null,null,null,0]
["Op Risk","Response",null,"Response - HR (Class D/E Only)",null,null,null,null,0]
["Op Risk","Response",null,"Response - Outsourcing (Class D/E Only)",null,null,null,null,0]
["Op Risk","Response",null,"Response - Dis. Channels (Class D/E Only)",null,null,null,null,0]
["Op Risk","Response",null,"Response - Bus. Processes (Class D/E Only)",null,null,null,null,0]
["Op Risk","Response",null,"Response - Bus. Continuity (Class D/E Only)",null,null,null,null,0]
["Op Risk","Response",null,"Response - Info. Systems (Class D/E Only)",null,null,null,null,0]
["Op Risk","Response",null,"Response - Compliance (Class D/E Only)",null,null,null,null,0]
["Op Risk","Mont. & Reporting",null,"Mont. & Reporting - Fraud (Class D/E Only)",null,null,null,null,0]
["Op Risk","Mont. & Reporting",null,"Mont. & Reporting - HR (Class D/E Only)",null,null,null,null,0]
["Op Risk","Mont. & Reporting",null,"Mont. & Reporting - Outsourcing (Class D/E Only)",null,null,null,null,0]
["Op Risk","Mont. & Reporting",null,"Mont. & Reporting - Dis. Channels (Class D/E Only)",null,null,null,null,0]
["Op Risk","Mont. & Reporting",null,"Mont. & Reporting - Bus. Processes (Class D/E Only)",null,null,null,null,0]
["Op Risk","Mont. & Reporting",null,"Mont. & Reporting - Bus. Continuity (Class D/E Only)",null,null,null,null,0]
["Op Risk","Mont. & Reporting",null,"Mont. & Reporting - Info. Systems (Class D/E Only)",null,null,null,null,0]
["Op Risk","Mont. & Reporting",null,"Mont. & Reporting - Compliance (Class D/E Only)",null,null,null,null,0]
[]
["Entry Fields for 2019 Methodology"]
[]
["Summary",null,null,"Deferred Tax Asset - T",null,null,null,null,null,null,null,null,0]
["Summary",null,null,"Deferred Tax Asset - Loss Carryback Provision",null,null,null,null,null,null,null,null,0]
["Summary",null,null,"Management Action - Net Future Discretionary Benefits / Bonus Reserve",null,null,null,null,null,null,null,null,0]
[]
["Interest Rate and Liquidity Risk",null,null,"Weighted Average Duration Gap between Assets and Liabilities - Without Management Actions",null,null,null,null,null,null,null,null,0]
[]
["Sch IIB","Investments",null,"Corp. Bonds - BSCR Rate 0",null,null,null,null,null,null,null,null,0,null,0]
["Sch IIB","Investments",null,"Corp. Bonds - BSCR Rate 1",null,null,null,null,null,null,null,null,0,null,0]
["Sch IIB","Investments",null,"Corp. Bonds - BSCR Rate 2",null,null,null,null,null,null,null,null,0,null,0]
["Sch IIB","Investments",null,"Corp. Bonds - BSCR Rate 3",null,null,null,null,null,null,null,null,0,null,0]
["Sch IIB","Investments",null,"Corp. Bonds - BSCR Rate 4",null,null,null,null,null,null,null,null,0,null,0]
["Sch IIB","Investments",null,"Corp. Bonds - BSCR Rate 5",null,null,null,null,null,null,null,null,0,null,0]
["Sch IIB","Investments",null,"Corp. Bonds - BSCR Rate 6",null,null,null,null,null,null,null,null,0,null,0]
["Sch IIB","Investments",null,"Corp. Bonds - BSCR Rate 7",null,null,null,null,null,null,null,null,0,null,0]
["Sch IIB","Investments",null,"Corp. Bonds - BSCR Rate 8",null,null,null,null,null,null,null,null,0,null,0]
["Sch IIB","Investments",null,"Residential MBS - BSCR Rate 1",null,null,null,null,null,null,null,null,0,null,0]
["Sch IIB","Investments",null,"Residential MBS - BSCR Rate 2",null,null,null,null,null,null,null,null,0,null,0]
["Sch IIB","Investments",null,"Residential MBS - BSCR Rate 3",null,null,null,null,null,null,null,null,0,null,0]
["Sch IIB","Investments",null,"Residential MBS - BSCR Rate 4",null,null,null,null,null,null,null,null,0,null,0]
["Sch IIB","Investments",null,"Residential MBS - BSCR Rate 5",null,null,null,null,null,null,null,null,0,null,0]
["Sch IIB","Investments",null,"Residential MBS - BSCR Rate 6",null,null,null,null,null,null,null,null,0,null,0]
["Sch IIB","Investments",null,"Residential MBS - BSCR Rate 7",null,null,null,null,null,null,null,null,0,null,0]
["Sch IIB","Investments",null,"Residential MBS - BSCR Rate 8",null,null,null,null,null,null,null,null,0,null,0]
["Sch IIB","Investments",null,"Commercial MBS - BSCR Rate 1",null,null,null,null,null,null,null,null,0,null,0]
["Sch IIB","Investments",null,"Commercial MBS - BSCR Rate 2",null,null,null,null,null,null,null,null,0,null,0]
["Sch IIB","Investments",null,"Commercial MBS - BSCR Rate 3",null,null,null,null,null,null,null,null,0,null,0]
["Sch IIB","Investments",null,"Commercial MBS - BSCR Rate 4",null,null,null,null,null,null,null,null,0,null,0]
["Sch IIB","Investments",null,"Commercial MBS - BSCR Rate 5",null,null,null,null,null,null,null,null,0,null,0]
["Sch IIB","Investments",null,"Commercial MBS - BSCR Rate 6",null,null,null,null,null,null,null,null,0,null,0]
["Sch IIB","Investments",null,"Commercial MBS - BSCR Rate 7",null,null,null,null,null,null,null,null,0,null,0]
["Sch IIB","Investments",null,"Commercial MBS - BSCR Rate 8",null,null,null,null,null,null,null,null,0,null,0]
["Sch IIB","Investments",null,"Bonds Mutual Fund - BSCR Rate 0",null,null,null,null,null,null,null,null,0,null,0]
["Sch IIB","Investments",null,"Bonds Mutual Fund - BSCR Rate 1",null,null,null,null,null,null,null,null,0,null,0]
["Sch IIB","Investments",null,"Bonds Mutual Fund - BSCR Rate 2",null,null,null,null,null,null,null,null,0,null,0]
["Sch IIB","Investments",null,"Bonds Mutual Fund - BSCR Rate 3",null,null,null,null,null,null,null,null,0,null,0]
["Sch IIB","Investments",null,"Bonds Mutual Fund - BSCR Rate 4",null,null,null,null,null,null,null,null,0,null,0]
["Sch IIB","Investments",null,"Bonds Mutual Fund - BSCR Rate 5",null,null,null,null,null,null,null,null,0,null,0]
["Sch IIB","Investments",null,"Bonds Mutual Fund - BSCR Rate 6",null,null,null,null,null,null,null,null,0,null,0]
["Sch IIB","Investments",null,"Bonds Mutual Fund - BSCR Rate 7",null,null,null,null,null,null,null,null,0,null,0]
["Sch IIB","Investments",null,"Bonds Mutual Fund - BSCR Rate 8",null,null,null,null,null,null,null,null,0,null,0]
["Sch IIB","Investments",null,"Mortgage Loans - Insured",null,null,null,null,null,null,null,null,0,null,0]
["Sch IIB","Investments",null,"Mortgage Loans - Other Commercial",null,null,null,null,null,null,null,null,0,null,0]
["Sch IIB","Investments",null,"Mortgage Loans - Other Residential",null,null,null,null,null,null,null,null,0,null,0]
["Sch IIB","Investments",null,"Mortgage Loans - Not Good Stand.",null,null,null,null,null,null,null,null,0,null,0]
["Sch IIB","Investments",null,"Long Positions - Before - Strategic Holdings - Listed",null,null,null,null,null,null,null,null,0]
["Sch IIB","Investments",null,"Long Positions - Before - Duration Based",null,null,null,null,null,null,null,null,0]
["Sch IIB","Investments",null,"Long Positions - Before - Listed Equity Securities in Developed Markets",null,null,null,null,null,null,null,null,0]
["Sch IIB","Investments",null,"Long Positions - Before - Preferred Stocks, BSCR Rating 1",null,null,null,null,null,null,null,null,0]
["Sch IIB","Investments",null,"Long Positions - Before - Preferred Stocks, BSCR Rating 2",null,null,null,null,null,null,null,null,0]
["Sch IIB","Investments",null,"Long Positions - Before - Preferred Stocks, BSCR Rating 3",null,null,null,null,null,null,null,null,0]
["Sch IIB","Investments",null,"Long Positions - Before - Preferred Stocks, BSCR Rating 4",null,null,null,null,null,null,null,null,0]
["Sch IIB","Investments",null,"Long Positions - Before - Preferred Stocks, BSCR Rating 5",null,null,null,null,null,null,null,null,0]
["Sch IIB","Investments",null,"Long Positions - Before - Preferred Stocks, BSCR Rating 6",null,null,null,null,null,null,null,null,0]
["Sch IIB","Investments",null,"Long Positions - Before - Preferred Stocks, BSCR Rating 7",null,null,null,null,null,null,null,null,0]
["Sch IIB","Investments",null,"Long Positions - Before - Preferred Stocks, BSCR Rating 8",null,null,null,null,null,null,null,null,0]
["Sch IIB","Investments",null,"Long Positions - Before - Equity Derivatives on Type 1 Equities",null,null,null,null,null,null,null,null,0]
["Sch IIB","Investments",null,"Long Positions - Before - Strategic Holdings - Unlisted",null,null,null,null,null,null,null,null,0]
["Sch IIB","Investments",null,"Long Positions - Before - Other Equities",null,null,null,null,null,null,null,null,0]
["Sch IIB","Investments",null,"Long Positions - Before - Letters of Credit",null,null,null,null,null,null,null,null,0]
["Sch IIB","Investments",null,"Long Positions - Before - Intangible assets",null,null,null,null,null,null,null,null,0]
["Sch IIB","Investments",null,"Long Positions - Before - Pension Benefit Surplus",null,null,null,null,null,null,null,null,0]
["Sch IIB","Investments",null,"Long Positions - Before - Equity Derivatives on Type 2 Equities",null,null,null,null,null,null,null,null,0]
["Sch IIB","Investments",null,"Long Positions - Before - Infrastructure",null,null,null,null,null,null,null,null,0]
["Sch IIB","Investments",null,"Long Positions - Before - Derivatives on Infrastructure",null,null,null,null,null,null,null,null,0]
["Sch IIB","Investments",null,"Long Positions - Before - Equity Real Estate 1",null,null,null,null,null,null,null,null,0]
["Sch IIB","Investments",null,"Long Positions - Before - Equity Real Estate 2",null,null,null,null,null,null,null,null,0]
["Sch IIB","Investments",null,"Long Positions - After - Strategic Holdings - Listed",null,null,null,null,null,null,null,null,0]
["Sch IIB","Investments",null,"Long Positions - After - Duration Based",null,null,null,null,null,null,null,null,0]
["Sch IIB","Investments",null,"Long Positions - After - Listed Equity Securities in Developed Markets",null,null,null,null,null,null,null,null,0]
["Sch IIB","Investments",null,"Long Positions - After - Preferred Stocks, BSCR Rating 1",null,null,null,null,null,null,null,null,0]
["Sch IIB","Investments",null,"Long Positions - After - Preferred Stocks, BSCR Rating 2",null,null,null,null,null,null,null,null,0]
["Sch IIB","Investments",null,"Long Positions - After - Preferred Stocks, BSCR Rating 3",null,null,null,null,null,null,null,null,0]
["Sch IIB","Investments",null,"Long Positions - After - Preferred Stocks, BSCR Rating 4",null,null,null,null,null,null,null,null,0]
["Sch IIB","Investments",null,"Long Positions - After - Preferred Stocks, BSCR Rating 5",null,null,null,null,null,null,null,null,0]
["Sch IIB","Investments",null,"Long Positions - After - Preferred Stocks, BSCR Rating 6",null,null,null,null,null,null,null,null,0]
["Sch IIB","Investments",null,"Long Positions - After - Preferred Stocks, BSCR Rating 7",null,null,null,null,null,null,null,null,0]
["Sch IIB","Investments",null,"Long Positions - After - Preferred Stocks, BSCR Rating 8",null,null,null,null,null,null,null,null,0]
["Sch IIB","Investments",null,"Long Positions - After - Equity Derivatives on Type 1 Equities",null,null,null,null,null,null,null,null,0]
["Sch IIB","Investments",null,"Long Positions - After - Strategic Holdings - Unlisted",null,null,null,null,null,null,null,null,0]
["Sch IIB","Investments",null,"Long Positions - After - Other Equities",null,null,null,null,null,null,null,null,0]
["Sch IIB","Investments",null,"Long Positions - After - Letters of Credit",null,null,null,null,null,null,null,null,0]
["Sch IIB","Investments",null,"Long Positions - After - Intangible assets",null,null,null,null,null,null,null,null,0]
["Sch IIB","Investments",null,"Long Positions - After - Pension Benefit Surplus",null,null,null,null,null,null,null,null,0]
["Sch IIB","Investments",null,"Long Positions - After - Equity Derivatives on Type 2 Equities",null,null,null,null,null,null,null,null,0]
["Sch IIB","Investments",null,"Long Positions - After - Infrastructure",null,null,null,null,null,null,null,null,0]
["Sch IIB","Investments",null,"Long Positions - After - Derivatives on Infrastructure",null,null,null,null,null,null,null,null,0]
["Sch IIB","Investments",null,"Long Positions - After - Equity Real Estate 1",null,null,null,null,null,null,null,null,0]
["Sch IIB","Investments",null,"Long Positions - After - Equity Real Estate 2",null,null,null,null,null,null,null,null,0]
["Sch IIB","Investments",null,"Short - Before - Qualified Assets - Strategic Holdings - Listed",null,null,null,null,null,null,null,null,0]
["Sch IIB","Investments",null,"Short - Before - Qualified Assets - Duration Based",null,null,null,null,null,null,null,null,0]
["Sch IIB","Investments",null,"Short - Before - Qualified Assets - Listed Equity Securities in Developed Markets",null,null,null,null,null,null,null,null,0]
["Sch IIB","Investments",null,"Short - Before - Qualified Assets - Preferred Stocks, BSCR Rating 1",null,null,null,null,null,null,null,null,0]
["Sch IIB","Investments",null,"Short - Before - Qualified Assets - Preferred Stocks, BSCR Rating 2",null,null,null,null,null,null,null,null,0]
["Sch IIB","Investments",null,"Short - Before - Qualified Assets - Preferred Stocks, BSCR Rating 3",null,null,null,null,null,null,null,null,0]
["Sch IIB","Investments",null,"Short - Before - Qualified Assets - Preferred Stocks, BSCR Rating 4",null,null,null,null,null,null,null,null,0]
["Sch IIB","Investments",null,"Short - Before - Qualified Assets - Preferred Stocks, BSCR Rating 5",null,null,null,null,null,null,null,null,0]
["Sch IIB","Investments",null,"Short - Before - Qualified Assets - Preferred Stocks, BSCR Rating 6",null,null,null,null,null,null,null,null,0]
["Sch IIB","Investments",null,"Short - Before - Qualified Assets - Preferred Stocks, BSCR Rating 7",null,null,null,null,null,null,null,null,0]
["Sch IIB","Investments",null,"Short - Before - Qualified Assets - Preferred Stocks, BSCR Rating 8",null,null,null,null,null,null,null,null,0]
["Sch IIB","Investments",null,"Short - Before - Qualified Assets - Equity Derivatives on Type 1 Equities",null,null,null,null,null,null,null,null,0]
["Sch IIB","Investments",null,"Short - Before - Qualified Assets - Strategic Holdings - Unlisted",null,null,null,null,null,null,null,null,0]
["Sch IIB","Investments",null,"Short - Before - Qualified Assets - Other Equities",null,null,null,null,null,null,null,null,0]
["Sch IIB","Investments",null,"Short - Before - Qualified Assets - Letters of Credit",null,null,null,null,null,null,null,null,0]
["Sch IIB","Investments",null,"Short - Before - Qualified Assets - Intangible assets",null,null,null,null,null,null,null,null,0]
["Sch IIB","Investments",null,"Short - Before - Qualified Assets - Pension Benefit Surplus",null,null,null,null,null,null,null,null,0]
["Sch IIB","Investments",null,"Short - Before - Qualified Assets - Equity Derivatives on Type 2 Equities",null,null,null,null,null,null,null,null,0]
["Sch IIB","Investments",null,"Short - Before - Qualified Assets - Infrastructure",null,null,null,null,null,null,null,null,0]
["Sch IIB","Investments",null,"Short - Before - Qualified Assets - Derivatives on Infrastructure",null,null,null,null,null,null,null,null,0]
["Sch IIB","Investments",null,"Short - Before - Qualified Assets - Equity Real Estate 1",null,null,null,null,null,null,null,null,0]
["Sch IIB","Investments",null,"Short - Before - Qualified Assets - Equity Real Estate 2",null,null,null,null,null,null,null,null,0]
["Sch IIB","Investments",null,"Short - After - Qualified Assets - Strategic Holdings - Listed",null,null,null,null,null,null,null,null,0]
["Sch IIB","Investments",null,"Short - After - Qualified Assets - Duration Based",null,null,null,null,null,null,null,null,0]
["Sch IIB","Investments",null,"Short - After - Qualified Assets - Listed Equity Securities in Developed Markets",null,null,null,null,null,null,null,null,0]
["Sch IIB","Investments",null,"Short - After - Qualified Assets - Preferred Stocks, BSCR Rating 1",null,null,null,null,null,null,null,null,0]
["Sch IIB","Investments",null,"Short - After - Qualified Assets - Preferred Stocks, BSCR Rating 2",null,null,null,null,null,null,null,null,0]
["Sch IIB","Investments",null,"Short - After - Qualified Assets - Preferred Stocks, BSCR Rating 3",null,null,null,null,null,null,null,null,0]
["Sch IIB","Investments",null,"Short - After - Qualified Assets - Preferred Stocks, BSCR Rating 4",null,null,null,null,null,null,null,null,0]
["Sch IIB","Investments",null,"Short - After - Qualified Assets - Preferred Stocks, BSCR Rating 5",null,null,null,null,null,null,null,null,0]
["Sch IIB","Investments",null,"Short - After - Qualified Assets - Preferred Stocks, BSCR Rating 6",null,null,null,null,null,null,null,null,0]
["Sch IIB","Investments",null,"Short - After - Qualified Assets - Preferred Stocks, BSCR Rating 7",null,null,null,null,null,null,null,null,0]
["Sch IIB","Investments",null,"Short - After - Qualified Assets - Preferred Stocks, BSCR Rating 8",null,null,null,null,null,null,null,null,0]
["Sch IIB","Investments",null,"Short - After - Qualified Assets - Equity Derivatives on Type 1 Equities",null,null,null,null,null,null,null,null,0]
["Sch IIB","Investments",null,"Short - After - Qualified Assets - Strategic Holdings - Unlisted",null,null,null,null,null,null,null,null,0]
["Sch IIB","Investments",null,"Short - After - Qualified Assets - Other Equities",null,null,null,null,null,null,null,null,0]
["Sch IIB","Investments",null,"Short - After - Qualified Assets - Letters of Credit",null,null,null,null,null,null,null,null,0]
["Sch IIB","Investments",null,"Short - After - Qualified Assets - Intangible assets",null,null,null,null,null,null,null,null,0]
["Sch IIB","Investments",null,"Short - After - Qualified Assets - Pension Benefit Surplus",null,null,null,null,null,null,null,null,0]
["Sch IIB","Investments",null,"Short - After - Qualified Assets - Equity Derivatives on Type 2 Equities",null,null,null,null,null,null,null,null,0]
["Sch IIB","Investments",null,"Short - After - Qualified Assets - Infrastructure",null,null,null,null,null,null,null,null,0]
["Sch IIB","Investments",null,"Short - After - Qualified Assets - Derivatives on Infrastructure",null,null,null,null,null,null,null,null,0]
["Sch IIB","Investments",null,"Short - After - Qualified Assets - Equity Real Estate 1",null,null,null,null,null,null,null,null,0]
["Sch IIB","Investments",null,"Short - After - Qualified Assets - Equity Real Estate 2",null,null,null,null,null,null,null,null,0]
["Sch IIB","Investments",null,"Short - Before - UnQualified Assets - Strategic Holdings - Listed",null,null,null,null,null,null,null,null,0]
["Sch IIB","Investments",null,"Short - Before - UnQualified Assets - Duration Based",null,null,null,null,null,null,null,null,0]
["Sch IIB","Investments",null,"Short - Before - UnQualified Assets - Listed Equity Securities in Developed Markets",null,null,null,null,null,null,null,null,0]
["Sch IIB","Investments",null,"Short - Before - UnQualified Assets - Preferred Stocks, BSCR Rating 1",null,null,null,null,null,null,null,null,0]
["Sch IIB","Investments",null,"Short - Before - UnQualified Assets - Preferred Stocks, BSCR Rating 2",null,null,null,null,null,null,null,null,0]
["Sch IIB","Investments",null,"Short - Before - UnQualified Assets - Preferred Stocks, BSCR Rating 3",null,null,null,null,null,null,null,null,0]
["Sch IIB","Investments",null,"Short - Before - UnQualified Assets - Preferred Stocks, BSCR Rating 4",null,null,null,null,null,null,null,null,0]
["Sch IIB","Investments",null,"Short - Before - UnQualified Assets - Preferred Stocks, BSCR Rating 5",null,null,null,null,null,null,null,null,0]
["Sch IIB","Investments",null,"Short - Before - UnQualified Assets - Preferred Stocks, BSCR Rating 6",null,null,null,null,null,null,null,null,0]
["Sch IIB","Investments",null,"Short - Before - UnQualified Assets - Preferred Stocks, BSCR Rating 7",null,null,null,null,null,null,null,null,0]
["Sch IIB","Investments",null,"Short - Before - UnQualified Assets - Preferred Stocks, BSCR Rating 8",null,null,null,null,null,null,null,null,0]
["Sch IIB","Investments",null,"Short - Before - UnQualified Assets - Equity Derivatives on Type 1 Equities",null,null,null,null,null,null,null,null,0]
["Sch IIB","Investments",null,"Short - Before - UnQualified Assets - Strategic Holdings - Unlisted",null,null,null,null,null,null,null,null,0]
["Sch IIB","Investments",null,"Short - Before - UnQualified Assets - Other Equities",null,null,null,null,null,null,null,null,0]
["Sch IIB","Investments",null,"Short - Before - UnQualified Assets - Letters of Credit",null,null,null,null,null,null,null,null,0]
["Sch IIB","Investments",null,"Short - Before - UnQualified Assets - Intangible assets",null,null,null,null,null,null,null,null,0]
["Sch IIB","Investments",null,"Short - Before - UnQualified Assets - Pension Benefit Surplus",null,null,null,null,null,null,null,null,0]
["Sch IIB","Investments",null,"Short - Before - UnQualified Assets - Equity Derivatives on Type 2 Equities",null,null,null,null,null,null,null,null,0]
["Sch IIB","Investments",null,"Short - Before - UnQualified Assets - Infrastructure",null,null,null,null,null,null,null,null,0]
["Sch IIB","Investments",null,"Short - Before - UnQualified Assets - Derivatives on Infrastructure",null,null,null,null,null,null,null,null,0]
["Sch IIB","Investments",null,"Short - Before - UnQualified Assets - Equity Real Estate 1",null,null,null,null,null,null,null,null,0]
["Sch IIB","Investments",null,"Short - Before - UnQualified Assets - Equity Real Estate 2",null,null,null,null,null,null,null,null,0]
["Sch IIB","Investments",null,"Short - After - UnQualified Assets - Strategic Holdings - Listed",null,null,null,null,null,null,null,null,0]
["Sch IIB","Investments",null,"Short - After - UnQualified Assets - Duration Based",null,null,null,null,null,null,null,null,0]
["Sch IIB","Investments",null,"Short - After - UnQualified Assets - Listed Equity Securities in Developed Markets",null,null,null,null,null,null,null,null,0]
["Sch IIB","Investments",null,"Short - After - UnQualified Assets - Preferred Stocks, BSCR Rating 1",null,null,null,null,null,null,null,null,0]
["Sch IIB","Investments",null,"Short - After - UnQualified Assets - Preferred Stocks, BSCR Rating 2",null,null,null,null,null,null,null,null,0]
["Sch IIB","Investments",null,"Short - After - UnQualified Assets - Preferred Stocks, BSCR Rating 3",null,null,null,null,null,null,null,null,0]
["Sch IIB","Investments",null,"Short - After - UnQualified Assets - Preferred Stocks, BSCR Rating 4",null,null,null,null,null,null,null,null,0]
["Sch IIB","Investments",null,"Short - After - UnQualified Assets - Preferred Stocks, BSCR Rating 5",null,null,null,null,null,null,null,null,0]
["Sch IIB","Investments",null,"Short - After - UnQualified Assets - Preferred Stocks, BSCR Rating 6",null,null,null,null,null,null,null,null,0]
["Sch IIB","Investments",null,"Short - After - UnQualified Assets - Preferred Stocks, BSCR Rating 7",null,null,null,null,null,null,null,null,0]
["Sch IIB","Investments",null,"Short - After - UnQualified Assets - Preferred Stocks, BSCR Rating 8",null,null,null,null,null,null,null,null,0]
["Sch IIB","Investments",null,"Short - After - UnQualified Assets - Equity Derivatives on Type 1 Equities",null,null,null,null,null,null,null,null,0]
["Sch IIB","Investments",null,"Short - After - UnQualified Assets - Strategic Holdings - Unlisted",null,null,null,null,null,null,null,null,0]
["Sch IIB","Investments",null,"Short - After - UnQualified Assets - Other Equities",null,null,null,null,null,null,null,null,0]
["Sch IIB","Investments",null,"Short - After - UnQualified Assets - Letters of Credit",null,null,null,null,null,null,null,null,0]
["Sch IIB","Investments",null,"Short - After - UnQualified Assets - Intangible assets",null,null,null,null,null,null,null,null,0]
["Sch IIB","Investments",null,"Short - After - UnQualified Assets - Pension Benefit Surplus",null,null,null,null,null,null,null,null,0]
["Sch IIB","Investments",null,"Short - After - UnQualified Assets - Equity Derivatives on Type 2 Equities",null,null,null,null,null,null,null,null,0]
["Sch IIB","Investments",null,"Short - After - UnQualified Assets - Infrastructure",null,null,null,null,null,null,null,null,0]
["Sch IIB","Investments",null,"Short - After - UnQualified Assets - Derivatives on Infrastructure",null,null,null,null,null,null,null,null,0]
["Sch IIB","Investments",null,"Short - After - UnQualified Assets - Equity Real Estate 1",null,null,null,null,null,null,null,null,0]
["Sch IIB","Investments",null,"Short - After - UnQualified Assets - Equity Real Estate 2",null,null,null,null,null,null,null,null,0]
["Sch IIB","Investments",null,"Liabilities - Before - W/O Mgmt Actions - Strategic Holdings - Listed",null,null,null,null,null,null,null,null,0]
["Sch IIB","Investments",null,"Liabilities - Before - W/O Mgmt Actions - Duration Based",null,null,null,null,null,null,null,null,0]
["Sch IIB","Investments",null,"Liabilities - Before - W/O Mgmt Actions - Listed Equity Securities in Developed Markets",null,null,null,null,null,null,null,null,0]
["Sch IIB","Investments",null,"Liabilities - Before - W/O Mgmt Actions - Preferred Stocks, BSCR Rating 1",null,null,null,null,null,null,null,null,0]
["Sch IIB","Investments",null,"Liabilities - Before - W/O Mgmt Actions - Preferred Stocks, BSCR Rating 2",null,null,null,null,null,null,null,null,0]
["Sch IIB","Investments",null,"Liabilities - Before - W/O Mgmt Actions - Preferred Stocks, BSCR Rating 3",null,null,null,null,null,null,null,null,0]
["Sch IIB","Investments",null,"Liabilities - Before - W/O Mgmt Actions - Preferred Stocks, BSCR Rating 4",null,null,null,null,null,null,null,null,0]
["Sch IIB","Investments",null,"Liabilities - Before - W/O Mgmt Actions - Preferred Stocks, BSCR Rating 5",null,null,null,null,null,null,null,null,0]
["Sch IIB","Investments",null,"Liabilities - Before - W/O Mgmt Actions - Preferred Stocks, BSCR Rating 6",null,null,null,null,null,null,null,null,0]
["Sch IIB","Investments",null,"Liabilities - Before - W/O Mgmt Actions - Preferred Stocks, BSCR Rating 7",null,null,null,null,null,null,null,null,0]
["Sch IIB","Investments",null,"Liabilities - Before - W/O Mgmt Actions - Preferred Stocks, BSCR Rating 8",null,null,null,null,null,null,null,null,0]
["Sch IIB","Investments",null,"Liabilities - Before - W/O Mgmt Actions - Equity Derivatives on Type 1 Equities",null,null,null,null,null,null,null,null,0]
["Sch IIB","Investments",null,"Liabilities - Before - W/O Mgmt Actions - Strategic Holdings - Unlisted",null,null,null,null,null,null,null,null,0]
["Sch IIB","Investments",null,"Liabilities - Before - W/O Mgmt Actions - Other Equities",null,null,null,null,null,null,null,null,0]
["Sch IIB","Investments",null,"Liabilities - Before - W/O Mgmt Actions - Letters of Credit",null,null,null,null,null,null,null,null,0]
["Sch IIB","Investments",null,"Liabilities - Before - W/O Mgmt Actions - Intangible assets",null,null,null,null,null,null,null,null,0]
["Sch IIB","Investments",null,"Liabilities - Before - W/O Mgmt Actions - Pension Benefit Surplus",null,null,null,null,null,null,null,null,0]
["Sch IIB","Investments",null,"Liabilities - Before - W/O Mgmt Actions - Equity Derivatives on Type 2 Equities",null,null,null,null,null,null,null,null,0]
["Sch IIB","Investments",null,"Liabilities - Before - W/O Mgmt Actions - Infrastructure",null,null,null,null,null,null,null,null,0]
["Sch IIB","Investments",null,"Liabilities - Before - W/O Mgmt Actions - Derivatives on Infrastructure",null,null,null,null,null,null,null,null,0]
["Sch IIB","Investments",null,"Liabilities - Before - W/O Mgmt Actions - Equity Real Estate 1",null,null,null,null,null,null,null,null,0]
["Sch IIB","Investments",null,"Liabilities - Before - W/O Mgmt Actions - Equity Real Estate 2",null,null,null,null,null,null,null,null,0]
["Sch IIB","Investments",null,"Liabilities - After - W/O Mgmt Actions - Strategic Holdings - Listed",null,null,null,null,null,null,null,null,0]
["Sch IIB","Investments",null,"Liabilities - After - W/O Mgmt Actions - Duration Based",null,null,null,null,null,null,null,null,0]
["Sch IIB","Investments",null,"Liabilities - After - W/O Mgmt Actions - Listed Equity Securities in Developed Markets",null,null,null,null,null,null,null,null,0]
["Sch IIB","Investments",null,"Liabilities - After - W/O Mgmt Actions - Preferred Stocks, BSCR Rating 1",null,null,null,null,null,null,null,null,0]
["Sch IIB","Investments",null,"Liabilities - After - W/O Mgmt Actions - Preferred Stocks, BSCR Rating 2",null,null,null,null,null,null,null,null,0]
["Sch IIB","Investments",null,"Liabilities - After - W/O Mgmt Actions - Preferred Stocks, BSCR Rating 3",null,null,null,null,null,null,null,null,0]
["Sch IIB","Investments",null,"Liabilities - After - W/O Mgmt Actions - Preferred Stocks, BSCR Rating 4",null,null,null,null,null,null,null,null,0]
["Sch IIB","Investments",null,"Liabilities - After - W/O Mgmt Actions - Preferred Stocks, BSCR Rating 5",null,null,null,null,null,null,null,null,0]
["Sch IIB","Investments",null,"Liabilities - After - W/O Mgmt Actions - Preferred Stocks, BSCR Rating 6",null,null,null,null,null,null,null,null,0]
["Sch IIB","Investments",null,"Liabilities - After - W/O Mgmt Actions - Preferred Stocks, BSCR Rating 7",null,null,null,null,null,null,null,null,0]
["Sch IIB","Investments",null,"Liabilities - After - W/O Mgmt Actions - Preferred Stocks, BSCR Rating 8",null,null,null,null,null,null,null,null,0]
["Sch IIB","Investments",null,"Liabilities - After - W/O Mgmt Actions - Equity Derivatives on Type 1 Equities",null,null,null,null,null,null,null,null,0]
["Sch IIB","Investments",null,"Liabilities - After - W/O Mgmt Actions - Strategic Holdings - Unlisted",null,null,null,null,null,null,null,null,0]
["Sch IIB","Investments",null,"Liabilities - After - W/O Mgmt Actions - Other Equities",null,null,null,null,null,null,null,null,0]
["Sch IIB","Investments",null,"Liabilities - After - W/O Mgmt Actions - Letters of Credit",null,null,null,null,null,null,null,null,0]
["Sch IIB","Investments",null,"Liabilities - After - W/O Mgmt Actions - Intangible assets",null,null,null,null,null,null,null,null,0]
["Sch IIB","Investments",null,"Liabilities - After - W/O Mgmt Actions - Pension Benefit Surplus",null,null,null,null,null,null,null,null,0]
["Sch IIB","Investments",null,"Liabilities - After - W/O Mgmt Actions - Equity Derivatives on Type 2 Equities",null,null,null,null,null,null,null,null,0]
["Sch IIB","Investments",null,"Liabilities - After - W/O Mgmt Actions - Infrastructure",null,null,null,null,null,null,null,null,0]
["Sch IIB","Investments",null,"Liabilities - After - W/O Mgmt Actions - Derivatives on Infrastructure",null,null,null,null,null,null,null,null,0]
["Sch IIB","Investments",null,"Liabilities - After - W/O Mgmt Actions - Equity Real Estate 1",null,null,null,null,null,null,null,null,0]
["Sch IIB","Investments",null,"Liabilities - After - W/O Mgmt Actions - Equity Real Estate 2",null,null,null,null,null,null,null,null,0]
["Sch IIB","Investments",null,"Liabilities - After - With Mgmt Actions - Strategic Holdings - Listed",null,null,null,null,null,null,null,null,0]
["Sch IIB","Investments",null,"Liabilities - After - With Mgmt Actions - Duration Based",null,null,null,null,null,null,null,null,0]
["Sch IIB","Investments",null,"Liabilities - After - With Mgmt Actions - Listed Equity Securities in Developed Markets",null,null,null,null,null,null,null,null,0]
["Sch IIB","Investments",null,"Liabilities - After - With Mgmt Actions - Preferred Stocks, BSCR Rating 1",null,null,null,null,null,null,null,null,0]
["Sch IIB","Investments",null,"Liabilities - After - With Mgmt Actions - Preferred Stocks, BSCR Rating 2",null,null,null,null,null,null,null,null,0]
["Sch IIB","Investments",null,"Liabilities - After - With Mgmt Actions - Preferred Stocks, BSCR Rating 3",null,null,null,null,null,null,null,null,0]
["Sch IIB","Investments",null,"Liabilities - After - With Mgmt Actions - Preferred Stocks, BSCR Rating 4",null,null,null,null,null,null,null,null,0]
["Sch IIB","Investments",null,"Liabilities - After - With Mgmt Actions - Preferred Stocks, BSCR Rating 5",null,null,null,null,null,null,null,null,0]
["Sch IIB","Investments",null,"Liabilities - After - With Mgmt Actions - Preferred Stocks, BSCR Rating 6",null,null,null,null,null,null,null,null,0]
["Sch IIB","Investments",null,"Liabilities - After - With Mgmt Actions - Preferred Stocks, BSCR Rating 7",null,null,null,null,null,null,null,null,0]
["Sch IIB","Investments",null,"Liabilities - After - With Mgmt Actions - Preferred Stocks, BSCR Rating 8",null,null,null,null,null,null,null,null,0]
["Sch IIB","Investments",null,"Liabilities - After - With Mgmt Actions - Equity Derivatives on Type 1 Equities",null,null,null,null,null,null,null,null,0]
["Sch IIB","Investments",null,"Liabilities - After - With Mgmt Actions - Strategic Holdings - Unlisted",null,null,null,null,null,null,null,null,0]
["Sch IIB","Investments",null,"Liabilities - After - With Mgmt Actions - Other Equities",null,null,null,null,null,null,null,null,0]
["Sch IIB","Investments",null,"Liabilities - After - With Mgmt Actions - Letters of Credit",null,null,null,null,null,null,null,null,0]
["Sch IIB","Investments",null,"Liabilities - After - With Mgmt Actions - Intangible assets",null,null,null,null,null,null,null,null,0]
["Sch IIB","Investments",null,"Liabilities - After - With Mgmt Actions - Pension Benefit Surplus",null,null,null,null,null,null,null,null,0]
["Sch IIB","Investments",null,"Liabilities - After - With Mgmt Actions - Equity Derivatives on Type 2 Equities",null,null,null,null,null,null,null,null,0]
["Sch IIB","Investments",null,"Liabilities - After - With Mgmt Actions - Infrastructure",null,null,null,null,null,null,null,null,0]
["Sch IIB","Investments",null,"Liabilities - After - With Mgmt Actions - Derivatives on Infrastructure",null,null,null,null,null,null,null,null,0]
["Sch IIB","Investments",null,"Liabilities - After - With Mgmt Actions - Equity Real Estate 1",null,null,null,null,null,null,null,null,0]
["Sch IIB","Investments",null,"Liabilities - After - With Mgmt Actions - Equity Real Estate 2",null,null,null,null,null,null,null,null,0]
["Sch IIB","Investments",null,"Credit Derivatives - Up - Before - Long-Rating 0",null,null,null,null,null,null,null,null,0]
["Sch IIB","Investments",null,"Credit Derivatives - Up - Before - Long-Rating 1",null,null,null,null,null,null,null,null,0]
["Sch IIB","Investments",null,"Credit Derivatives - Up - Before - Long-Rating 2",null,null,null,null,null,null,null,null,0]
["Sch IIB","Investments",null,"Credit Derivatives - Up - Before - Long-Rating 3",null,null,null,null,null,null,null,null,0]
["Sch IIB","Investments",null,"Credit Derivatives - Up - Before - Long-Rating 4",null,null,null,null,null,null,null,null,0]
["Sch IIB","Investments",null,"Credit Derivatives - Up - Before - Long-Rating 5",null,null,null,null,null,null,null,null,0]
["Sch IIB","Investments",null,"Credit Derivatives - Up - Before - Long-Rating 6",null,null,null,null,null,null,null,null,0]
["Sch IIB","Investments",null,"Credit Derivatives - Up - Before - Long-Rating 7",null,null,null,null,null,null,null,null,0]
["Sch IIB","Investments",null,"Credit Derivatives - Up - Before - Long-Rating 8",null,null,null,null,null,null,null,null,0]
["Sch IIB","Investments",null,"Credit Derivatives - Up - After - Long- Rating 0",null,null,null,null,null,null,null,null,0]
["Sch IIB","Investments",null,"Credit Derivatives - Up - After - Long- Rating 1",null,null,null,null,null,null,null,null,0]
["Sch IIB","Investments",null,"Credit Derivatives - Up - After - Long- Rating 2",null,null,null,null,null,null,null,null,0]
["Sch IIB","Investments",null,"Credit Derivatives - Up - After - Long- Rating 3",null,null,null,null,null,null,null,null,0]
["Sch IIB","Investments",null,"Credit Derivatives - Up - After - Long- Rating 4",null,null,null,null,null,null,null,null,0]
["Sch IIB","Investments",null,"Credit Derivatives - Up - After - Long- Rating 5",null,null,null,null,null,null,null,null,0]
["Sch IIB","Investments",null,"Credit Derivatives - Up - After - Long- Rating 6",null,null,null,null,null,null,null,null,0]
["Sch IIB","Investments",null,"Credit Derivatives - Up - After - Long- Rating 7",null,null,null,null,null,null,null,null,0]
["Sch IIB","Investments",null,"Credit Derivatives - Up - After - Long- Rating 8",null,null,null,null,null,null,null,null,0]
["Sch IIB","Investments",null,"Credit Derivatives - Up - Before - Short- Rating 0",null,null,null,null,null,null,null,null,0]
["Sch IIB","Investments",null,"Credit Derivatives - Up - Before - Short- Rating 1",null,null,null,null,null,null,null,null,0]
["Sch IIB","Investments",null,"Credit Derivatives - Up - Before - Short- Rating 2",null,null,null,null,null,null,null,null,0]
["Sch IIB","Investments",null,"Credit Derivatives - Up - Before - Short- Rating 3",null,null,null,null,null,null,null,null,0]
["Sch IIB","Investments",null,"Credit Derivatives - Up - Before - Short- Rating 4",null,null,null,null,null,null,null,null,0]
["Sch IIB","Investments",null,"Credit Derivatives - Up - Before - Short- Rating 5",null,null,null,null,null,null,null,null,0]
["Sch IIB","Investments",null,"Credit Derivatives - Up - Before - Short- Rating 6",null,null,null,null,null,null,null,null,0]
["Sch IIB","Investments",null,"Credit Derivatives - Up - Before - Short- Rating 7",null,null,null,null,null,null,null,null,0]
["Sch IIB","Investments",null,"Credit Derivatives - Up - Before - Short- Rating 8",null,null,null,null,null,null,null,null,0]
["Sch IIB","Investments",null,"Credit Derivatives - Up - After - Short- Rating 0",null,null,null,null,null,null,null,null,0]
["Sch IIB","Investments",null,"Credit Derivatives - Up - After - Short- Rating 1",null,null,null,null,null,null,null,null,0]
["Sch IIB","Investments",null,"Credit Derivatives - Up - After - Short- Rating 2",null,null,null,null,null,null,null,null,0]
["Sch IIB","Investments",null,"Credit Derivatives - Up - After - Short- Rating 3",null,null,null,null,null,null,null,null,0]
["Sch IIB","Investments",null,"Credit Derivatives - Up - After - Short- Rating 4",null,null,null,null,null,null,null,null,0]
["Sch IIB","Investments",null,"Credit Derivatives - Up - After - Short- Rating 5",null,null,null,null,null,null,null,null,0]
["Sch IIB","Investments",null,"Credit Derivatives - Up - After - Short- Rating 6",null,null,null,null,null,null,null,null,0]
["Sch IIB","Investments",null,"Credit Derivatives - Up - After - Short- Rating 7",null,null,null,null,null,null,null,null,0]
["Sch IIB","Investments",null,"Credit Derivatives - Up - After - Short- Rating 8",null,null,null,null,null,null,null,null,0]
["Sch IIB","Investments",null,"Credit Derivatives - Down - Before - Long-Rating 0",null,null,null,null,null,null,null,null,0]
["Sch IIB","Investments",null,"Credit Derivatives - Down - Before - Long-Rating 1",null,null,null,null,null,null,null,null,0]
["Sch IIB","Investments",null,"Credit Derivatives - Down - Before - Long-Rating 2",null,null,null,null,null,null,null,null,0]
["Sch IIB","Investments",null,"Credit Derivatives - Down - Before - Long-Rating 3",null,null,null,null,null,null,null,null,0]
["Sch IIB","Investments",null,"Credit Derivatives - Down - Before - Long-Rating 4",null,null,null,null,null,null,null,null,0]
["Sch IIB","Investments",null,"Credit Derivatives - Down - Before - Long-Rating 5",null,null,null,null,null,null,null,null,0]
["Sch IIB","Investments",null,"Credit Derivatives - Down - Before - Long-Rating 6",null,null,null,null,null,null,null,null,0]
["Sch IIB","Investments",null,"Credit Derivatives - Down - Before - Long-Rating 7",null,null,null,null,null,null,null,null,0]
["Sch IIB","Investments",null,"Credit Derivatives - Down - Before - Long-Rating 8",null,null,null,null,null,null,null,null,0]
["Sch IIB","Investments",null,"Credit Derivatives - Down - After - Long- Rating 0",null,null,null,null,null,null,null,null,0]
["Sch IIB","Investments",null,"Credit Derivatives - Down - After - Long- Rating 1",null,null,null,null,null,null,null,null,0]
["Sch IIB","Investments",null,"Credit Derivatives - Down - After - Long- Rating 2",null,null,null,null,null,null,null,null,0]
["Sch IIB","Investments",null,"Credit Derivatives - Down - After - Long- Rating 3",null,null,null,null,null,null,null,null,0]
["Sch IIB","Investments",null,"Credit Derivatives - Down - After - Long- Rating 4",null,null,null,null,null,null,null,null,0]
["Sch IIB","Investments",null,"Credit Derivatives - Down - After - Long- Rating 5",null,null,null,null,null,null,null,null,0]
["Sch IIB","Investments",null,"Credit Derivatives - Down - After - Long- Rating 6",null,null,null,null,null,null,null,null,0]
["Sch IIB","Investments",null,"Credit Derivatives - Down - After - Long- Rating 7",null,null,null,null,null,null,null,null,0]
["Sch IIB","Investments",null,"Credit Derivatives - Down - After - Long- Rating 8",null,null,null,null,null,null,null,null,0]
["Sch IIB","Investments",null,"Credit Derivatives - Down - Before - Short- Rating 0",null,null,null,null,null,null,null,null,0]
["Sch IIB","Investments",null,"Credit Derivatives - Down - Before - Short- Rating 1",null,null,null,null,null,null,null,null,0]
["Sch IIB","Investments",null,"Credit Derivatives - Down - Before - Short- Rating 2",null,null,null,null,null,null,null,null,0]
["Sch IIB","Investments",null,"Credit Derivatives - Down - Before - Short- Rating 3",null,null,null,null,null,null,null,null,0]
["Sch IIB","Investments",null,"Credit Derivatives - Down - Before - Short- Rating 4",null,null,null,null,null,null,null,null,0]
["Sch IIB","Investments",null,"Credit Derivatives - Down - Before - Short- Rating 5",null,null,null,null,null,null,null,null,0]
["Sch IIB","Investments",null,"Credit Derivatives - Down - Before - Short- Rating 6",null,null,null,null,null,null,null,null,0]
["Sch IIB","Investments",null,"Credit Derivatives - Down - Before - Short- Rating 7",null,null,null,null,null,null,null,null,0]
["Sch IIB","Investments",null,"Credit Derivatives - Down - Before - Short- Rating 8",null,null,null,null,null,null,null,null,0]
["Sch IIB","Investments",null,"Credit Derivatives - Down - After - Short- Rating 0",null,null,null,null,null,null,null,null,0]
["Sch IIB","Investments",null,"Credit Derivatives - Down - After - Short- Rating 1",null,null,null,null,null,null,null,null,0]
["Sch IIB","Investments",null,"Credit Derivatives - Down - After - Short- Rating 2",null,null,null,null,null,null,null,null,0]
["Sch IIB","Investments",null,"Credit Derivatives - Down - After - Short- Rating 3",null,null,null,null,null,null,null,null,0]
["Sch IIB","Investments",null,"Credit Derivatives - Down - After - Short- Rating 4",null,null,null,null,null,null,null,null,0]
["Sch IIB","Investments",null,"Credit Derivatives - Down - After - Short- Rating 5",null,null,null,null,null,null,null,null,0]
["Sch IIB","Investments",null,"Credit Derivatives - Down - After - Short- Rating 6",null,null,null,null,null,null,null,null,0]
["Sch IIB","Investments",null,"Credit Derivatives - Down - After - Short- Rating 7",null,null,null,null,null,null,null,null,0]
["Sch IIB","Investments",null,"Credit Derivatives - Down - After - Short- Rating 8",null,null,null,null,null,null,null,null,0]
["Sch IIB","Investments",null,"Counterparty Default Risk - MV of Derivatives - MV Positive - Rating 0",null,null,null,null,null,null,null,null,0]
["Sch IIB","Investments",null,"Counterparty Default Risk - MV of Derivatives - MV Positive - Rating 1",null,null,null,null,null,null,null,null,0]
["Sch IIB","Investments",null,"Counterparty Default Risk - MV of Derivatives - MV Positive - Rating 2",null,null,null,null,null,null,null,null,0]
["Sch IIB","Investments",null,"Counterparty Default Risk - MV of Derivatives - MV Positive - Rating 3",null,null,null,null,null,null,null,null,0]
["Sch IIB","Investments",null,"Counterparty Default Risk - MV of Derivatives - MV Positive - Rating 4",null,null,null,null,null,null,null,null,0]
["Sch IIB","Investments",null,"Counterparty Default Risk - MV of Derivatives - MV Positive - Rating 5",null,null,null,null,null,null,null,null,0]
["Sch IIB","Investments",null,"Counterparty Default Risk - MV of Derivatives - MV Positive - Rating 6",null,null,null,null,null,null,null,null,0]
["Sch IIB","Investments",null,"Counterparty Default Risk - MV of Derivatives - MV Positive - Rating 7",null,null,null,null,null,null,null,null,0]
["Sch IIB","Investments",null,"Counterparty Default Risk - MV of Derivatives - MV Positive - Rating 8",null,null,null,null,null,null,null,null,0]
["Sch IIB","Investments",null,"Counterparty Default Risk - MV of Derivatives - MV Negative - Rating 0",null,null,null,null,null,null,null,null,0]
["Sch IIB","Investments",null,"Counterparty Default Risk - MV of Derivatives - MV Negative - Rating 1",null,null,null,null,null,null,null,null,0]
["Sch IIB","Investments",null,"Counterparty Default Risk - MV of Derivatives - MV Negative - Rating 2",null,null,null,null,null,null,null,null,0]
["Sch IIB","Investments",null,"Counterparty Default Risk - MV of Derivatives - MV Negative - Rating 3",null,null,null,null,null,null,null,null,0]
["Sch IIB","Investments",null,"Counterparty Default Risk - MV of Derivatives - MV Negative - Rating 4",null,null,null,null,null,null,null,null,0]
["Sch IIB","Investments",null,"Counterparty Default Risk - MV of Derivatives - MV Negative - Rating 5",null,null,null,null,null,null,null,null,0]
["Sch IIB","Investments",null,"Counterparty Default Risk - MV of Derivatives - MV Negative - Rating 6",null,null,null,null,null,null,null,null,0]
["Sch IIB","Investments",null,"Counterparty Default Risk - MV of Derivatives - MV Negative - Rating 7",null,null,null,null,null,null,null,null,0]
["Sch IIB","Investments",null,"Counterparty Default Risk - MV of Derivatives - MV Negative - Rating 8",null,null,null,null,null,null,null,null,0]
["Sch IIB","Investments",null,"Counterparty Default Risk - MV of Collateral - Rating 0",null,null,null,null,null,null,null,null,0]
["Sch IIB","Investments",null,"Counterparty Default Risk - MV of Collateral - Rating 1",null,null,null,null,null,null,null,null,0]
["Sch IIB","Investments",null,"Counterparty Default Risk - MV of Collateral - Rating 2",null,null,null,null,null,null,null,null,0]
["Sch IIB","Investments",null,"Counterparty Default Risk - MV of Collateral - Rating 3",null,null,null,null,null,null,null,null,0]
["Sch IIB","Investments",null,"Counterparty Default Risk - MV of Collateral - Rating 4",null,null,null,null,null,null,null,null,0]
["Sch IIB","Investments",null,"Counterparty Default Risk - MV of Collateral - Rating 5",null,null,null,null,null,null,null,null,0]
["Sch IIB","Investments",null,"Counterparty Default Risk - MV of Collateral - Rating 6",null,null,null,null,null,null,null,null,0]
["Sch IIB","Investments",null,"Counterparty Default Risk - MV of Collateral - Rating 7",null,null,null,null,null,null,null,null,0]
["Sch IIB","Investments",null,"Counterparty Default Risk - MV of Collateral - Rating 8",null,null,null,null,null,null,null,null,0]
["Sch IIB","Investments",null,"Cash and Cash Equivalents",null,null,null,null,null,null,null,null,0]
["Sch IIB","Investments",null,"NAIC Resid. MBS - Orig. Class 1",null,null,null,null,null,null,null,null,0]
["Sch IIB","Investments",null,"NAIC Resid. MBS - Orig. Class 2",null,null,null,null,null,null,null,null,0]
["Sch IIB","Investments",null,"NAIC Resid. MBS - Orig. Class 3",null,null,null,null,null,null,null,null,0]
["Sch IIB","Investments",null,"NAIC Resid. MBS - Orig. Class 4",null,null,null,null,null,null,null,null,0]
["Sch IIB","Investments",null,"NAIC Resid. MBS - Orig. Class 5",null,null,null,null,null,null,null,null,0]
["Sch IIB","Investments",null,"NAIC Resid. MBS - Orig. Class 6",null,null,null,null,null,null,null,null,0]
["Sch IIB","Investments",null,"NAIC Resid. MBS - Orig. Total",null,null,null,null,null,null,null,null,0]
["Sch IIB","Investments",null,"NAIC Resid. MBS - Rev. Class 1",null,null,null,null,null,null,null,null,0]
["Sch IIB","Investments",null,"NAIC Resid. MBS - Rev. Class 2",null,null,null,null,null,null,null,null,0]
["Sch IIB","Investments",null,"NAIC Resid. MBS - Rev. Class 3",null,null,null,null,null,null,null,null,0]
["Sch IIB","Investments",null,"NAIC Resid. MBS - Rev. Class 4",null,null,null,null,null,null,null,null,0]
["Sch IIB","Investments",null,"NAIC Resid. MBS - Rev. Class 5",null,null,null,null,null,null,null,null,0]
["Sch IIB","Investments",null,"NAIC Resid. MBS - Rev. Class 6",null,null,null,null,null,null,null,null,0]
["Sch IIB","Investments",null,"NAIC Resid. MBS - Rev. Total",null,null,null,null,null,null,null,null,0]
["Sch IIB","Investments",null,"NAIC Comm. MBS - Orig. Class 1",null,null,null,null,null,null,null,null,0]
["Sch IIB","Investments",null,"NAIC Comm. MBS - Orig. Class 2",null,null,null,null,null,null,null,null,0]
["Sch IIB","Investments",null,"NAIC Comm. MBS - Orig. Class 3",null,null,null,null,null,null,null,null,0]
["Sch IIB","Investments",null,"NAIC Comm. MBS - Orig. Class 4",null,null,null,null,null,null,null,null,0]
["Sch IIB","Investments",null,"NAIC Comm. MBS - Orig. Class 5",null,null,null,null,null,null,null,null,0]
["Sch IIB","Investments",null,"NAIC Comm. MBS - Orig. Class 6",null,null,null,null,null,null,null,null,0]
["Sch IIB","Investments",null,"NAIC Comm. MBS - Orig. Total",null,null,null,null,null,null,null,null,0]
["Sch IIB","Investments",null,"NAIC Comm. MBS - Rev. Class 1",null,null,null,null,null,null,null,null,0]
["Sch IIB","Investments",null,"NAIC Comm. MBS - Rev. Class 2",null,null,null,null,null,null,null,null,0]
["Sch IIB","Investments",null,"NAIC Comm. MBS - Rev. Class 3",null,null,null,null,null,null,null,null,0]
["Sch IIB","Investments",null,"NAIC Comm. MBS - Rev. Class 4",null,null,null,null,null,null,null,null,0]
["Sch IIB","Investments",null,"NAIC Comm. MBS - Rev. Class 5",null,null,null,null,null,null,null,null,0]
["Sch IIB","Investments",null,"NAIC Comm. MBS - Rev. Class 6",null,null,null,null,null,null,null,null,0]
["Sch IIB","Investments",null,"NAIC Comm. MBS - Rev. Total",null,null,null,null,null,null,null,null,0]
[]
["Sch IIC","Funds Held",null,"Corp. Bonds - BSCR Rate 0",null,null,null,null,null,null,null,null,0,null,0]
["Sch IIC","Funds Held",null,"Corp. Bonds - BSCR Rate 1",null,null,null,null,null,null,null,null,0,null,0]
["Sch IIC","Funds Held",null,"Corp. Bonds - BSCR Rate 2",null,null,null,null,null,null,null,null,0,null,0]
["Sch IIC","Funds Held",null,"Corp. Bonds - BSCR Rate 3",null,null,null,null,null,null,null,null,0,null,0]
["Sch IIC","Funds Held",null,"Corp. Bonds - BSCR Rate 4",null,null,null,null,null,null,null,null,0,null,0]
["Sch IIC","Funds Held",null,"Corp. Bonds - BSCR Rate 5",null,null,null,null,null,null,null,null,0,null,0]
["Sch IIC","Funds Held",null,"Corp. Bonds - BSCR Rate 6",null,null,null,null,null,null,null,null,0,null,0]
["Sch IIC","Funds Held",null,"Corp. Bonds - BSCR Rate 7",null,null,null,null,null,null,null,null,0,null,0]
["Sch IIC","Funds Held",null,"Corp. Bonds - BSCR Rate 8",null,null,null,null,null,null,null,null,0,null,0]
["Sch IIC","Funds Held",null,"Residential MBS - BSCR Rate 1",null,null,null,null,null,null,null,null,0,null,0]
["Sch IIC","Funds Held",null,"Residential MBS - BSCR Rate 2",null,null,null,null,null,null,null,null,0,null,0]
["Sch IIC","Funds Held",null,"Residential MBS - BSCR Rate 3",null,null,null,null,null,null,null,null,0,null,0]
["Sch IIC","Funds Held",null,"Residential MBS - BSCR Rate 4",null,null,null,null,null,null,null,null,0,null,0]
["Sch IIC","Funds Held",null,"Residential MBS - BSCR Rate 5",null,null,null,null,null,null,null,null,0,null,0]
["Sch IIC","Funds Held",null,"Residential MBS - BSCR Rate 6",null,null,null,null,null,null,null,null,0,null,0]
["Sch IIC","Funds Held",null,"Residential MBS - BSCR Rate 7",null,null,null,null,null,null,null,null,0,null,0]
["Sch IIC","Funds Held",null,"Residential MBS - BSCR Rate 8",null,null,null,null,null,null,null,null,0,null,0]
["Sch IIC","Funds Held",null,"Commercial MBS - BSCR Rate 1",null,null,null,null,null,null,null,null,0,null,0]
["Sch IIC","Funds Held",null,"Commercial MBS - BSCR Rate 2",null,null,null,null,null,null,null,null,0,null,0]
["Sch IIC","Funds Held",null,"Commercial MBS - BSCR Rate 3",null,null,null,null,null,null,null,null,0,null,0]
["Sch IIC","Funds Held",null,"Commercial MBS - BSCR Rate 4",null,null,null,null,null,null,null,null,0,null,0]
["Sch IIC","Funds Held",null,"Commercial MBS - BSCR Rate 5",null,null,null,null,null,null,null,null,0,null,0]
["Sch IIC","Funds Held",null,"Commercial MBS - BSCR Rate 6",null,null,null,null,null,null,null,null,0,null,0]
["Sch IIC","Funds Held",null,"Commercial MBS - BSCR Rate 7",null,null,null,null,null,null,null,null,0,null,0]
["Sch IIC","Funds Held",null,"Commercial MBS - BSCR Rate 8",null,null,null,null,null,null,null,null,0,null,0]
["Sch IIC","Funds Held",null,"Bonds Mutual Fund - BSCR Rate 0",null,null,null,null,null,null,null,null,0,null,0]
["Sch IIC","Funds Held",null,"Bonds Mutual Fund - BSCR Rate 1",null,null,null,null,null,null,null,null,0,null,0]
["Sch IIC","Funds Held",null,"Bonds Mutual Fund - BSCR Rate 2",null,null,null,null,null,null,null,null,0,null,0]
["Sch IIC","Funds Held",null,"Bonds Mutual Fund - BSCR Rate 3",null,null,null,null,null,null,null,null,0,null,0]
["Sch IIC","Funds Held",null,"Bonds Mutual Fund - BSCR Rate 4",null,null,null,null,null,null,null,null,0,null,0]
["Sch IIC","Funds Held",null,"Bonds Mutual Fund - BSCR Rate 5",null,null,null,null,null,null,null,null,0,null,0]
["Sch IIC","Funds Held",null,"Bonds Mutual Fund - BSCR Rate 6",null,null,null,null,null,null,null,null,0,null,0]
["Sch IIC","Funds Held",null,"Bonds Mutual Fund - BSCR Rate 7",null,null,null,null,null,null,null,null,0,null,0]
["Sch IIC","Funds Held",null,"Bonds Mutual Fund - BSCR Rate 8",null,null,null,null,null,null,null,null,0,null,0]
["Sch IIC","Funds Held",null,"Mortgage Loans - Insured",null,null,null,null,null,null,null,null,0,null,0]
["Sch IIC","Funds Held",null,"Mortgage Loans - Other Commercial",null,null,null,null,null,null,null,null,0,null,0]
["Sch IIC","Funds Held",null,"Mortgage Loans - Other Residential",null,null,null,null,null,null,null,null,0,null,0]
["Sch IIC","Funds Held",null,"Mortgage Loans - Not Good Stand.",null,null,null,null,null,null,null,null,0,null,0]
["Sch IIC","Funds Held",null,"Long Positions - Before - Strategic Holdings - Listed",null,null,null,null,null,null,null,null,0]
["Sch IIC","Funds Held",null,"Long Positions - Before - Duration Based",null,null,null,null,null,null,null,null,0]
["Sch IIC","Funds Held",null,"Long Positions - Before - Listed Equity Securities in Developed Markets",null,null,null,null,null,null,null,null,0]
["Sch IIC","Funds Held",null,"Long Positions - Before - Preferred Stocks, BSCR Rating 1",null,null,null,null,null,null,null,null,0]
["Sch IIC","Funds Held",null,"Long Positions - Before - Preferred Stocks, BSCR Rating 2",null,null,null,null,null,null,null,null,0]
["Sch IIC","Funds Held",null,"Long Positions - Before - Preferred Stocks, BSCR Rating 3",null,null,null,null,null,null,null,null,0]
["Sch IIC","Funds Held",null,"Long Positions - Before - Preferred Stocks, BSCR Rating 4",null,null,null,null,null,null,null,null,0]
["Sch IIC","Funds Held",null,"Long Positions - Before - Preferred Stocks, BSCR Rating 5",null,null,null,null,null,null,null,null,0]
["Sch IIC","Funds Held",null,"Long Positions - Before - Preferred Stocks, BSCR Rating 6",null,null,null,null,null,null,null,null,0]
["Sch IIC","Funds Held",null,"Long Positions - Before - Preferred Stocks, BSCR Rating 7",null,null,null,null,null,null,null,null,0]
["Sch IIC","Funds Held",null,"Long Positions - Before - Preferred Stocks, BSCR Rating 8",null,null,null,null,null,null,null,null,0]
["Sch IIC","Funds Held",null,"Long Positions - Before - Equity Derivatives on Type 1 Equities",null,null,null,null,null,null,null,null,0]
["Sch IIC","Funds Held",null,"Long Positions - Before - Strategic Holdings - Unlisted",null,null,null,null,null,null,null,null,0]
["Sch IIC","Funds Held",null,"Long Positions - Before - Other Equities",null,null,null,null,null,null,null,null,0]
["Sch IIC","Funds Held",null,"Long Positions - Before - Letters of Credit",null,null,null,null,null,null,null,null,0]
["Sch IIC","Funds Held",null,"Long Positions - Before - Intangible assets",null,null,null,null,null,null,null,null,0]
["Sch IIC","Funds Held",null,"Long Positions - Before - Pension Benefit Surplus",null,null,null,null,null,null,null,null,0]
["Sch IIC","Funds Held",null,"Long Positions - Before - Equity Derivatives on Type 2 Equities",null,null,null,null,null,null,null,null,0]
["Sch IIC","Funds Held",null,"Long Positions - Before - Infrastructure",null,null,null,null,null,null,null,null,0]
["Sch IIC","Funds Held",null,"Long Positions - Before - Derivatives on Infrastructure",null,null,null,null,null,null,null,null,0]
["Sch IIC","Funds Held",null,"Long Positions - Before - Equity Real Estate 1",null,null,null,null,null,null,null,null,0]
["Sch IIC","Funds Held",null,"Long Positions - Before - Equity Real Estate 2",null,null,null,null,null,null,null,null,0]
["Sch IIC","Funds Held",null,"Long Positions - After - Strategic Holdings - Listed",null,null,null,null,null,null,null,null,0]
["Sch IIC","Funds Held",null,"Long Positions - After - Duration Based",null,null,null,null,null,null,null,null,0]
["Sch IIC","Funds Held",null,"Long Positions - After - Listed Equity Securities in Developed Markets",null,null,null,null,null,null,null,null,0]
["Sch IIC","Funds Held",null,"Long Positions - After - Preferred Stocks, BSCR Rating 1",null,null,null,null,null,null,null,null,0]
["Sch IIC","Funds Held",null,"Long Positions - After - Preferred Stocks, BSCR Rating 2",null,null,null,null,null,null,null,null,0]
["Sch IIC","Funds Held",null,"Long Positions - After - Preferred Stocks, BSCR Rating 3",null,null,null,null,null,null,null,null,0]
["Sch IIC","Funds Held",null,"Long Positions - After - Preferred Stocks, BSCR Rating 4",null,null,null,null,null,null,null,null,0]
["Sch IIC","Funds Held",null,"Long Positions - After - Preferred Stocks, BSCR Rating 5",null,null,null,null,null,null,null,null,0]
["Sch IIC","Funds Held",null,"Long Positions - After - Preferred Stocks, BSCR Rating 6",null,null,null,null,null,null,null,null,0]
["Sch IIC","Funds Held",null,"Long Positions - After - Preferred Stocks, BSCR Rating 7",null,null,null,null,null,null,null,null,0]
["Sch IIC","Funds Held",null,"Long Positions - After - Preferred Stocks, BSCR Rating 8",null,null,null,null,null,null,null,null,0]
["Sch IIC","Funds Held",null,"Long Positions - After - Equity Derivatives on Type 1 Equities",null,null,null,null,null,null,null,null,0]
["Sch IIC","Funds Held",null,"Long Positions - After - Strategic Holdings - Unlisted",null,null,null,null,null,null,null,null,0]
["Sch IIC","Funds Held",null,"Long Positions - After - Other Equities",null,null,null,null,null,null,null,null,0]
["Sch IIC","Funds Held",null,"Long Positions - After - Letters of Credit",null,null,null,null,null,null,null,null,0]
["Sch IIC","Funds Held",null,"Long Positions - After - Intangible assets",null,null,null,null,null,null,null,null,0]
["Sch IIC","Funds Held",null,"Long Positions - After - Pension Benefit Surplus",null,null,null,null,null,null,null,null,0]
["Sch IIC","Funds Held",null,"Long Positions - After - Equity Derivatives on Type 2 Equities",null,null,null,null,null,null,null,null,0]
["Sch IIC","Funds Held",null,"Long Positions - After - Infrastructure",null,null,null,null,null,null,null,null,0]
["Sch IIC","Funds Held",null,"Long Positions - After - Derivatives on Infrastructure",null,null,null,null,null,null,null,null,0]
["Sch IIC","Funds Held",null,"Long Positions - After - Equity Real Estate 1",null,null,null,null,null,null,null,null,0]
["Sch IIC","Funds Held",null,"Long Positions - After - Equity Real Estate 2",null,null,null,null,null,null,null,null,0]
["Sch IIC","Funds Held",null,"Short - Before - Qualified Assets - Strategic Holdings - Listed",null,null,null,null,null,null,null,null,0]
["Sch IIC","Funds Held",null,"Short - Before - Qualified Assets - Duration Based",null,null,null,null,null,null,null,null,0]
["Sch IIC","Funds Held",null,"Short - Before - Qualified Assets - Listed Equity Securities in Developed Markets",null,null,null,null,null,null,null,null,0]
["Sch IIC","Funds Held",null,"Short - Before - Qualified Assets - Preferred Stocks, BSCR Rating 1",null,null,null,null,null,null,null,null,0]
["Sch IIC","Funds Held",null,"Short - Before - Qualified Assets - Preferred Stocks, BSCR Rating 2",null,null,null,null,null,null,null,null,0]
["Sch IIC","Funds Held",null,"Short - Before - Qualified Assets - Preferred Stocks, BSCR Rating 3",null,null,null,null,null,null,null,null,0]
["Sch IIC","Funds Held",null,"Short - Before - Qualified Assets - Preferred Stocks, BSCR Rating 4",null,null,null,null,null,null,null,null,0]
["Sch IIC","Funds Held",null,"Short - Before - Qualified Assets - Preferred Stocks, BSCR Rating 5",null,null,null,null,null,null,null,null,0]
["Sch IIC","Funds Held",null,"Short - Before - Qualified Assets - Preferred Stocks, BSCR Rating 6",null,null,null,null,null,null,null,null,0]
["Sch IIC","Funds Held",null,"Short - Before - Qualified Assets - Preferred Stocks, BSCR Rating 7",null,null,null,null,null,null,null,null,0]
["Sch IIC","Funds Held",null,"Short - Before - Qualified Assets - Preferred Stocks, BSCR Rating 8",null,null,null,null,null,null,null,null,0]
["Sch IIC","Funds Held",null,"Short - Before - Qualified Assets - Equity Derivatives on Type 1 Equities",null,null,null,null,null,null,null,null,0]
["Sch IIC","Funds Held",null,"Short - Before - Qualified Assets - Strategic Holdings - Unlisted",null,null,null,null,null,null,null,null,0]
["Sch IIC","Funds Held",null,"Short - Before - Qualified Assets - Other Equities",null,null,null,null,null,null,null,null,0]
["Sch IIC","Funds Held",null,"Short - Before - Qualified Assets - Letters of Credit",null,null,null,null,null,null,null,null,0]
["Sch IIC","Funds Held",null,"Short - Before - Qualified Assets - Intangible assets",null,null,null,null,null,null,null,null,0]
["Sch IIC","Funds Held",null,"Short - Before - Qualified Assets - Pension Benefit Surplus",null,null,null,null,null,null,null,null,0]
["Sch IIC","Funds Held",null,"Short - Before - Qualified Assets - Equity Derivatives on Type 2 Equities",null,null,null,null,null,null,null,null,0]
["Sch IIC","Funds Held",null,"Short - Before - Qualified Assets - Infrastructure",null,null,null,null,null,null,null,null,0]
["Sch IIC","Funds Held",null,"Short - Before - Qualified Assets - Derivatives on Infrastructure",null,null,null,null,null,null,null,null,0]
["Sch IIC","Funds Held",null,"Short - Before - Qualified Assets - Equity Real Estate 1",null,null,null,null,null,null,null,null,0]
["Sch IIC","Funds Held",null,"Short - Before - Qualified Assets - Equity Real Estate 2",null,null,null,null,null,null,null,null,0]
["Sch IIC","Funds Held",null,"Short - After - Qualified Assets - Strategic Holdings - Listed",null,null,null,null,null,null,null,null,0]
["Sch IIC","Funds Held",null,"Short - After - Qualified Assets - Duration Based",null,null,null,null,null,null,null,null,0]
["Sch IIC","Funds Held",null,"Short - After - Qualified Assets - Listed Equity Securities in Developed Markets",null,null,null,null,null,null,null,null,0]
["Sch IIC","Funds Held",null,"Short - After - Qualified Assets - Preferred Stocks, BSCR Rating 1",null,null,null,null,null,null,null,null,0]
["Sch IIC","Funds Held",null,"Short - After - Qualified Assets - Preferred Stocks, BSCR Rating 2",null,null,null,null,null,null,null,null,0]
["Sch IIC","Funds Held",null,"Short - After - Qualified Assets - Preferred Stocks, BSCR Rating 3",null,null,null,null,null,null,null,null,0]
["Sch IIC","Funds Held",null,"Short - After - Qualified Assets - Preferred Stocks, BSCR Rating 4",null,null,null,null,null,null,null,null,0]
["Sch IIC","Funds Held",null,"Short - After - Qualified Assets - Preferred Stocks, BSCR Rating 5",null,null,null,null,null,null,null,null,0]
["Sch IIC","Funds Held",null,"Short - After - Qualified Assets - Preferred Stocks, BSCR Rating 6",null,null,null,null,null,null,null,null,0]
["Sch IIC","Funds Held",null,"Short - After - Qualified Assets - Preferred Stocks, BSCR Rating 7",null,null,null,null,null,null,null,null,0]
["Sch IIC","Funds Held",null,"Short - After - Qualified Assets - Preferred Stocks, BSCR Rating 8",null,null,null,null,null,null,null,null,0]
["Sch IIC","Funds Held",null,"Short - After - Qualified Assets - Equity Derivatives on Type 1 Equities",null,null,null,null,null,null,null,null,0]
["Sch IIC","Funds Held",null,"Short - After - Qualified Assets - Strategic Holdings - Unlisted",null,null,null,null,null,null,null,null,0]
["Sch IIC","Funds Held",null,"Short - After - Qualified Assets - Other Equities",null,null,null,null,null,null,null,null,0]
["Sch IIC","Funds Held",null,"Short - After - Qualified Assets - Letters of Credit",null,null,null,null,null,null,null,null,0]
["Sch IIC","Funds Held",null,"Short - After - Qualified Assets - Intangible assets",null,null,null,null,null,null,null,null,0]
["Sch IIC","Funds Held",null,"Short - After - Qualified Assets - Pension Benefit Surplus",null,null,null,null,null,null,null,null,0]
["Sch IIC","Funds Held",null,"Short - After - Qualified Assets - Equity Derivatives on Type 2 Equities",null,null,null,null,null,null,null,null,0]
["Sch IIC","Funds Held",null,"Short - After - Qualified Assets - Infrastructure",null,null,null,null,null,null,null,null,0]
["Sch IIC","Funds Held",null,"Short - After - Qualified Assets - Derivatives on Infrastructure",null,null,null,null,null,null,null,null,0]
["Sch IIC","Funds Held",null,"Short - After - Qualified Assets - Equity Real Estate 1",null,null,null,null,null,null,null,null,0]
["Sch IIC","Funds Held",null,"Short - After - Qualified Assets - Equity Real Estate 2",null,null,null,null,null,null,null,null,0]
["Sch IIC","Funds Held",null,"Short - Before - UnQualified Assets - Strategic Holdings - Listed",null,null,null,null,null,null,null,null,0]
["Sch IIC","Funds Held",null,"Short - Before - UnQualified Assets - Duration Based",null,null,null,null,null,null,null,null,0]
["Sch IIC","Funds Held",null,"Short - Before - UnQualified Assets - Listed Equity Securities in Developed Markets",null,null,null,null,null,null,null,null,0]
["Sch IIC","Funds Held",null,"Short - Before - UnQualified Assets - Preferred Stocks, BSCR Rating 1",null,null,null,null,null,null,null,null,0]
["Sch IIC","Funds Held",null,"Short - Before - UnQualified Assets - Preferred Stocks, BSCR Rating 2",null,null,null,null,null,null,null,null,0]
["Sch IIC","Funds Held",null,"Short - Before - UnQualified Assets - Preferred Stocks, BSCR Rating 3",null,null,null,null,null,null,null,null,0]
["Sch IIC","Funds Held",null,"Short - Before - UnQualified Assets - Preferred Stocks, BSCR Rating 4",null,null,null,null,null,null,null,null,0]
["Sch IIC","Funds Held",null,"Short - Before - UnQualified Assets - Preferred Stocks, BSCR Rating 5",null,null,null,null,null,null,null,null,0]
["Sch IIC","Funds Held",null,"Short - Before - UnQualified Assets - Preferred Stocks, BSCR Rating 6",null,null,null,null,null,null,null,null,0]
["Sch IIC","Funds Held",null,"Short - Before - UnQualified Assets - Preferred Stocks, BSCR Rating 7",null,null,null,null,null,null,null,null,0]
["Sch IIC","Funds Held",null,"Short - Before - UnQualified Assets - Preferred Stocks, BSCR Rating 8",null,null,null,null,null,null,null,null,0]
["Sch IIC","Funds Held",null,"Short - Before - UnQualified Assets - Equity Derivatives on Type 1 Equities",null,null,null,null,null,null,null,null,0]
["Sch IIC","Funds Held",null,"Short - Before - UnQualified Assets - Strategic Holdings - Unlisted",null,null,null,null,null,null,null,null,0]
["Sch IIC","Funds Held",null,"Short - Before - UnQualified Assets - Other Equities",null,null,null,null,null,null,null,null,0]
["Sch IIC","Funds Held",null,"Short - Before - UnQualified Assets - Letters of Credit",null,null,null,null,null,null,null,null,0]
["Sch IIC","Funds Held",null,"Short - Before - UnQualified Assets - Intangible assets",null,null,null,null,null,null,null,null,0]
["Sch IIC","Funds Held",null,"Short - Before - UnQualified Assets - Pension Benefit Surplus",null,null,null,null,null,null,null,null,0]
["Sch IIC","Funds Held",null,"Short - Before - UnQualified Assets - Equity Derivatives on Type 2 Equities",null,null,null,null,null,null,null,null,0]
["Sch IIC","Funds Held",null,"Short - Before - UnQualified Assets - Infrastructure",null,null,null,null,null,null,null,null,0]
["Sch IIC","Funds Held",null,"Short - Before - UnQualified Assets - Derivatives on Infrastructure",null,null,null,null,null,null,null,null,0]
["Sch IIC","Funds Held",null,"Short - Before - UnQualified Assets - Equity Real Estate 1",null,null,null,null,null,null,null,null,0]
["Sch IIC","Funds Held",null,"Short - Before - UnQualified Assets - Equity Real Estate 2",null,null,null,null,null,null,null,null,0]
["Sch IIC","Funds Held",null,"Short - After - UnQualified Assets - Strategic Holdings - Listed",null,null,null,null,null,null,null,null,0]
["Sch IIC","Funds Held",null,"Short - After - UnQualified Assets - Duration Based",null,null,null,null,null,null,null,null,0]
["Sch IIC","Funds Held",null,"Short - After - UnQualified Assets - Listed Equity Securities in Developed Markets",null,null,null,null,null,null,null,null,0]
["Sch IIC","Funds Held",null,"Short - After - UnQualified Assets - Preferred Stocks, BSCR Rating 1",null,null,null,null,null,null,null,null,0]
["Sch IIC","Funds Held",null,"Short - After - UnQualified Assets - Preferred Stocks, BSCR Rating 2",null,null,null,null,null,null,null,null,0]
["Sch IIC","Funds Held",null,"Short - After - UnQualified Assets - Preferred Stocks, BSCR Rating 3",null,null,null,null,null,null,null,null,0]
["Sch IIC","Funds Held",null,"Short - After - UnQualified Assets - Preferred Stocks, BSCR Rating 4",null,null,null,null,null,null,null,null,0]
["Sch IIC","Funds Held",null,"Short - After - UnQualified Assets - Preferred Stocks, BSCR Rating 5",null,null,null,null,null,null,null,null,0]
["Sch IIC","Funds Held",null,"Short - After - UnQualified Assets - Preferred Stocks, BSCR Rating 6",null,null,null,null,null,null,null,null,0]
["Sch IIC","Funds Held",null,"Short - After - UnQualified Assets - Preferred Stocks, BSCR Rating 7",null,null,null,null,null,null,null,null,0]
["Sch IIC","Funds Held",null,"Short - After - UnQualified Assets - Preferred Stocks, BSCR Rating 8",null,null,null,null,null,null,null,null,0]
["Sch IIC","Funds Held",null,"Short - After - UnQualified Assets - Equity Derivatives on Type 1 Equities",null,null,null,null,null,null,null,null,0]
["Sch IIC","Funds Held",null,"Short - After - UnQualified Assets - Strategic Holdings - Unlisted",null,null,null,null,null,null,null,null,0]
["Sch IIC","Funds Held",null,"Short - After - UnQualified Assets - Other Equities",null,null,null,null,null,null,null,null,0]
["Sch IIC","Funds Held",null,"Short - After - UnQualified Assets - Letters of Credit",null,null,null,null,null,null,null,null,0]
["Sch IIC","Funds Held",null,"Short - After - UnQualified Assets - Intangible assets",null,null,null,null,null,null,null,null,0]
["Sch IIC","Funds Held",null,"Short - After - UnQualified Assets - Pension Benefit Surplus",null,null,null,null,null,null,null,null,0]
["Sch IIC","Funds Held",null,"Short - After - UnQualified Assets - Equity Derivatives on Type 2 Equities",null,null,null,null,null,null,null,null,0]
["Sch IIC","Funds Held",null,"Short - After - UnQualified Assets - Infrastructure",null,null,null,null,null,null,null,null,0]
["Sch IIC","Funds Held",null,"Short - After - UnQualified Assets - Derivatives on Infrastructure",null,null,null,null,null,null,null,null,0]
["Sch IIC","Funds Held",null,"Short - After - UnQualified Assets - Equity Real Estate 1",null,null,null,null,null,null,null,null,0]
["Sch IIC","Funds Held",null,"Short - After - UnQualified Assets - Equity Real Estate 2",null,null,null,null,null,null,null,null,0]
["Sch IIC","Funds Held",null,"Liabilities - Before - W/O Mgmt Actions - Strategic Holdings - Listed",null,null,null,null,null,null,null,null,0]
["Sch IIC","Funds Held",null,"Liabilities - Before - W/O Mgmt Actions - Duration Based",null,null,null,null,null,null,null,null,0]
["Sch IIC","Funds Held",null,"Liabilities - Before - W/O Mgmt Actions - Listed Equity Securities in Developed Markets",null,null,null,null,null,null,null,null,0]
["Sch IIC","Funds Held",null,"Liabilities - Before - W/O Mgmt Actions - Preferred Stocks, BSCR Rating 1",null,null,null,null,null,null,null,null,0]
["Sch IIC","Funds Held",null,"Liabilities - Before - W/O Mgmt Actions - Preferred Stocks, BSCR Rating 2",null,null,null,null,null,null,null,null,0]
["Sch IIC","Funds Held",null,"Liabilities - Before - W/O Mgmt Actions - Preferred Stocks, BSCR Rating 3",null,null,null,null,null,null,null,null,0]
["Sch IIC","Funds Held",null,"Liabilities - Before - W/O Mgmt Actions - Preferred Stocks, BSCR Rating 4",null,null,null,null,null,null,null,null,0]
["Sch IIC","Funds Held",null,"Liabilities - Before - W/O Mgmt Actions - Preferred Stocks, BSCR Rating 5",null,null,null,null,null,null,null,null,0]
["Sch IIC","Funds Held",null,"Liabilities - Before - W/O Mgmt Actions - Preferred Stocks, BSCR Rating 6",null,null,null,null,null,null,null,null,0]
["Sch IIC","Funds Held",null,"Liabilities - Before - W/O Mgmt Actions - Preferred Stocks, BSCR Rating 7",null,null,null,null,null,null,null,null,0]
["Sch IIC","Funds Held",null,"Liabilities - Before - W/O Mgmt Actions - Preferred Stocks, BSCR Rating 8",null,null,null,null,null,null,null,null,0]
["Sch IIC","Funds Held",null,"Liabilities - Before - W/O Mgmt Actions - Equity Derivatives on Type 1 Equities",null,null,null,null,null,null,null,null,0]
["Sch IIC","Funds Held",null,"Liabilities - Before - W/O Mgmt Actions - Strategic Holdings - Unlisted",null,null,null,null,null,null,null,null,0]
["Sch IIC","Funds Held",null,"Liabilities - Before - W/O Mgmt Actions - Other Equities",null,null,null,null,null,null,null,null,0]
["Sch IIC","Funds Held",null,"Liabilities - Before - W/O Mgmt Actions - Letters of Credit",null,null,null,null,null,null,null,null,0]
["Sch IIC","Funds Held",null,"Liabilities - Before - W/O Mgmt Actions - Intangible assets",null,null,null,null,null,null,null,null,0]
["Sch IIC","Funds Held",null,"Liabilities - Before - W/O Mgmt Actions - Pension Benefit Surplus",null,null,null,null,null,null,null,null,0]
["Sch IIC","Funds Held",null,"Liabilities - Before - W/O Mgmt Actions - Equity Derivatives on Type 2 Equities",null,null,null,null,null,null,null,null,0]
["Sch IIC","Funds Held",null,"Liabilities - Before - W/O Mgmt Actions - Infrastructure",null,null,null,null,null,null,null,null,0]
["Sch IIC","Funds Held",null,"Liabilities - Before - W/O Mgmt Actions - Derivatives on Infrastructure",null,null,null,null,null,null,null,null,0]
["Sch IIC","Funds Held",null,"Liabilities - Before - W/O Mgmt Actions - Equity Real Estate 1",null,null,null,null,null,null,null,null,0]
["Sch IIC","Funds Held",null,"Liabilities - Before - W/O Mgmt Actions - Equity Real Estate 2",null,null,null,null,null,null,null,null,0]
["Sch IIC","Funds Held",null,"Liabilities - After - W/O Mgmt Actions - Strategic Holdings - Listed",null,null,null,null,null,null,null,null,0]
["Sch IIC","Funds Held",null,"Liabilities - After - W/O Mgmt Actions - Duration Based",null,null,null,null,null,null,null,null,0]
["Sch IIC","Funds Held",null,"Liabilities - After - W/O Mgmt Actions - Listed Equity Securities in Developed Markets",null,null,null,null,null,null,null,null,0]
["Sch IIC","Funds Held",null,"Liabilities - After - W/O Mgmt Actions - Preferred Stocks, BSCR Rating 1",null,null,null,null,null,null,null,null,0]
["Sch IIC","Funds Held",null,"Liabilities - After - W/O Mgmt Actions - Preferred Stocks, BSCR Rating 2",null,null,null,null,null,null,null,null,0]
["Sch IIC","Funds Held",null,"Liabilities - After - W/O Mgmt Actions - Preferred Stocks, BSCR Rating 3",null,null,null,null,null,null,null,null,0]
["Sch IIC","Funds Held",null,"Liabilities - After - W/O Mgmt Actions - Preferred Stocks, BSCR Rating 4",null,null,null,null,null,null,null,null,0]
["Sch IIC","Funds Held",null,"Liabilities - After - W/O Mgmt Actions - Preferred Stocks, BSCR Rating 5",null,null,null,null,null,null,null,null,0]
["Sch IIC","Funds Held",null,"Liabilities - After - W/O Mgmt Actions - Preferred Stocks, BSCR Rating 6",null,null,null,null,null,null,null,null,0]
["Sch IIC","Funds Held",null,"Liabilities - After - W/O Mgmt Actions - Preferred Stocks, BSCR Rating 7",null,null,null,null,null,null,null,null,0]
["Sch IIC","Funds Held",null,"Liabilities - After - W/O Mgmt Actions - Preferred Stocks, BSCR Rating 8",null,null,null,null,null,null,null,null,0]
["Sch IIC","Funds Held",null,"Liabilities - After - W/O Mgmt Actions - Equity Derivatives on Type 1 Equities",null,null,null,null,null,null,null,null,0]
["Sch IIC","Funds Held",null,"Liabilities - After - W/O Mgmt Actions - Strategic Holdings - Unlisted",null,null,null,null,null,null,null,null,0]
["Sch IIC","Funds Held",null,"Liabilities - After - W/O Mgmt Actions - Other Equities",null,null,null,null,null,null,null,null,0]
["Sch IIC","Funds Held",null,"Liabilities - After - W/O Mgmt Actions - Letters of Credit",null,null,null,null,null,null,null,null,0]
["Sch IIC","Funds Held",null,"Liabilities - After - W/O Mgmt Actions - Intangible assets",null,null,null,null,null,null,null,null,0]
["Sch IIC","Funds Held",null,"Liabilities - After - W/O Mgmt Actions - Pension Benefit Surplus",null,null,null,null,null,null,null,null,0]
["Sch IIC","Funds Held",null,"Liabilities - After - W/O Mgmt Actions - Equity Derivatives on Type 2 Equities",null,null,null,null,null,null,null,null,0]
["Sch IIC","Funds Held",null,"Liabilities - After - W/O Mgmt Actions - Infrastructure",null,null,null,null,null,null,null,null,0]
["Sch IIC","Funds Held",null,"Liabilities - After - W/O Mgmt Actions - Derivatives on Infrastructure",null,null,null,null,null,null,null,null,0]
["Sch IIC","Funds Held",null,"Liabilities - After - W/O Mgmt Actions - Equity Real Estate 1",null,null,null,null,null,null,null,null,0]
["Sch IIC","Funds Held",null,"Liabilities - After - W/O Mgmt Actions - Equity Real Estate 2",null,null,null,null,null,null,null,null,0]
["Sch IIC","Funds Held",null,"Liabilities - After - With Mgmt Actions - Strategic Holdings - Listed",null,null,null,null,null,null,null,null,0]
["Sch IIC","Funds Held",null,"Liabilities - After - With Mgmt Actions - Duration Based",null,null,null,null,null,null,null,null,0]
["Sch IIC","Funds Held",null,"Liabilities - After - With Mgmt Actions - Listed Equity Securities in Developed Markets",null,null,null,null,null,null,null,null,0]
["Sch IIC","Funds Held",null,"Liabilities - After - With Mgmt Actions - Preferred Stocks, BSCR Rating 1",null,null,null,null,null,null,null,null,0]
["Sch IIC","Funds Held",null,"Liabilities - After - With Mgmt Actions - Preferred Stocks, BSCR Rating 2",null,null,null,null,null,null,null,null,0]
["Sch IIC","Funds Held",null,"Liabilities - After - With Mgmt Actions - Preferred Stocks, BSCR Rating 3",null,null,null,null,null,null,null,null,0]
["Sch IIC","Funds Held",null,"Liabilities - After - With Mgmt Actions - Preferred Stocks, BSCR Rating 4",null,null,null,null,null,null,null,null,0]
["Sch IIC","Funds Held",null,"Liabilities - After - With Mgmt Actions - Preferred Stocks, BSCR Rating 5",null,null,null,null,null,null,null,null,0]
["Sch IIC","Funds Held",null,"Liabilities - After - With Mgmt Actions - Preferred Stocks, BSCR Rating 6",null,null,null,null,null,null,null,null,0]
["Sch IIC","Funds Held",null,"Liabilities - After - With Mgmt Actions - Preferred Stocks, BSCR Rating 7",null,null,null,null,null,null,null,null,0]
["Sch IIC","Funds Held",null,"Liabilities - After - With Mgmt Actions - Preferred Stocks, BSCR Rating 8",null,null,null,null,null,null,null,null,0]
["Sch IIC","Funds Held",null,"Liabilities - After - With Mgmt Actions - Equity Derivatives on Type 1 Equities",null,null,null,null,null,null,null,null,0]
["Sch IIC","Funds Held",null,"Liabilities - After - With Mgmt Actions - Strategic Holdings - Unlisted",null,null,null,null,null,null,null,null,0]
["Sch IIC","Funds Held",null,"Liabilities - After - With Mgmt Actions - Other Equities",null,null,null,null,null,null,null,null,0]
["Sch IIC","Funds Held",null,"Liabilities - After - With Mgmt Actions - Letters of Credit",null,null,null,null,null,null,null,null,0]
["Sch IIC","Funds Held",null,"Liabilities - After - With Mgmt Actions - Intangible assets",null,null,null,null,null,null,null,null,0]
["Sch IIC","Funds Held",null,"Liabilities - After - With Mgmt Actions - Pension Benefit Surplus",null,null,null,null,null,null,null,null,0]
["Sch IIC","Funds Held",null,"Liabilities - After - With Mgmt Actions - Equity Derivatives on Type 2 Equities",null,null,null,null,null,null,null,null,0]
["Sch IIC","Funds Held",null,"Liabilities - After - With Mgmt Actions - Infrastructure",null,null,null,null,null,null,null,null,0]
["Sch IIC","Funds Held",null,"Liabilities - After - With Mgmt Actions - Derivatives on Infrastructure",null,null,null,null,null,null,null,null,0]
["Sch IIC","Funds Held",null,"Liabilities - After - With Mgmt Actions - Equity Real Estate 1",null,null,null,null,null,null,null,null,0]
["Sch IIC","Funds Held",null,"Liabilities - After - With Mgmt Actions - Equity Real Estate 2",null,null,null,null,null,null,null,null,0]
["Sch IIC","Funds Held",null,"Credit Derivatives - Up - Before - Long-Rating 0",null,null,null,null,null,null,null,null,0]
["Sch IIC","Funds Held",null,"Credit Derivatives - Up - Before - Long-Rating 1",null,null,null,null,null,null,null,null,0]
["Sch IIC","Funds Held",null,"Credit Derivatives - Up - Before - Long-Rating 2",null,null,null,null,null,null,null,null,0]
["Sch IIC","Funds Held",null,"Credit Derivatives - Up - Before - Long-Rating 3",null,null,null,null,null,null,null,null,0]
["Sch IIC","Funds Held",null,"Credit Derivatives - Up - Before - Long-Rating 4",null,null,null,null,null,null,null,null,0]
["Sch IIC","Funds Held",null,"Credit Derivatives - Up - Before - Long-Rating 5",null,null,null,null,null,null,null,null,0]
["Sch IIC","Funds Held",null,"Credit Derivatives - Up - Before - Long-Rating 6",null,null,null,null,null,null,null,null,0]
["Sch IIC","Funds Held",null,"Credit Derivatives - Up - Before - Long-Rating 7",null,null,null,null,null,null,null,null,0]
["Sch IIC","Funds Held",null,"Credit Derivatives - Up - Before - Long-Rating 8",null,null,null,null,null,null,null,null,0]
["Sch IIC","Funds Held",null,"Credit Derivatives - Up - After - Long- Rating 0",null,null,null,null,null,null,null,null,0]
["Sch IIC","Funds Held",null,"Credit Derivatives - Up - After - Long- Rating 1",null,null,null,null,null,null,null,null,0]
["Sch IIC","Funds Held",null,"Credit Derivatives - Up - After - Long- Rating 2",null,null,null,null,null,null,null,null,0]
["Sch IIC","Funds Held",null,"Credit Derivatives - Up - After - Long- Rating 3",null,null,null,null,null,null,null,null,0]
["Sch IIC","Funds Held",null,"Credit Derivatives - Up - After - Long- Rating 4",null,null,null,null,null,null,null,null,0]
["Sch IIC","Funds Held",null,"Credit Derivatives - Up - After - Long- Rating 5",null,null,null,null,null,null,null,null,0]
["Sch IIC","Funds Held",null,"Credit Derivatives - Up - After - Long- Rating 6",null,null,null,null,null,null,null,null,0]
["Sch IIC","Funds Held",null,"Credit Derivatives - Up - After - Long- Rating 7",null,null,null,null,null,null,null,null,0]
["Sch IIC","Funds Held",null,"Credit Derivatives - Up - After - Long- Rating 8",null,null,null,null,null,null,null,null,0]
["Sch IIC","Funds Held",null,"Credit Derivatives - Up - Before - Short- Rating 0",null,null,null,null,null,null,null,null,0]
["Sch IIC","Funds Held",null,"Credit Derivatives - Up - Before - Short- Rating 1",null,null,null,null,null,null,null,null,0]
["Sch IIC","Funds Held",null,"Credit Derivatives - Up - Before - Short- Rating 2",null,null,null,null,null,null,null,null,0]
["Sch IIC","Funds Held",null,"Credit Derivatives - Up - Before - Short- Rating 3",null,null,null,null,null,null,null,null,0]
["Sch IIC","Funds Held",null,"Credit Derivatives - Up - Before - Short- Rating 4",null,null,null,null,null,null,null,null,0]
["Sch IIC","Funds Held",null,"Credit Derivatives - Up - Before - Short- Rating 5",null,null,null,null,null,null,null,null,0]
["Sch IIC","Funds Held",null,"Credit Derivatives - Up - Before - Short- Rating 6",null,null,null,null,null,null,null,null,0]
["Sch IIC","Funds Held",null,"Credit Derivatives - Up - Before - Short- Rating 7",null,null,null,null,null,null,null,null,0]
["Sch IIC","Funds Held",null,"Credit Derivatives - Up - Before - Short- Rating 8",null,null,null,null,null,null,null,null,0]
["Sch IIC","Funds Held",null,"Credit Derivatives - Up - After - Short- Rating 0",null,null,null,null,null,null,null,null,0]
["Sch IIC","Funds Held",null,"Credit Derivatives - Up - After - Short- Rating 1",null,null,null,null,null,null,null,null,0]
["Sch IIC","Funds Held",null,"Credit Derivatives - Up - After - Short- Rating 2",null,null,null,null,null,null,null,null,0]
["Sch IIC","Funds Held",null,"Credit Derivatives - Up - After - Short- Rating 3",null,null,null,null,null,null,null,null,0]
["Sch IIC","Funds Held",null,"Credit Derivatives - Up - After - Short- Rating 4",null,null,null,null,null,null,null,null,0]
["Sch IIC","Funds Held",null,"Credit Derivatives - Up - After - Short- Rating 5",null,null,null,null,null,null,null,null,0]
["Sch IIC","Funds Held",null,"Credit Derivatives - Up - After - Short- Rating 6",null,null,null,null,null,null,null,null,0]
["Sch IIC","Funds Held",null,"Credit Derivatives - Up - After - Short- Rating 7",null,null,null,null,null,null,null,null,0]
["Sch IIC","Funds Held",null,"Credit Derivatives - Up - After - Short- Rating 8",null,null,null,null,null,null,null,null,0]
["Sch IIC","Funds Held",null,"Credit Derivatives - Down - Before - Long-Rating 0",null,null,null,null,null,null,null,null,0]
["Sch IIC","Funds Held",null,"Credit Derivatives - Down - Before - Long-Rating 1",null,null,null,null,null,null,null,null,0]
["Sch IIC","Funds Held",null,"Credit Derivatives - Down - Before - Long-Rating 2",null,null,null,null,null,null,null,null,0]
["Sch IIC","Funds Held",null,"Credit Derivatives - Down - Before - Long-Rating 3",null,null,null,null,null,null,null,null,0]
["Sch IIC","Funds Held",null,"Credit Derivatives - Down - Before - Long-Rating 4",null,null,null,null,null,null,null,null,0]
["Sch IIC","Funds Held",null,"Credit Derivatives - Down - Before - Long-Rating 5",null,null,null,null,null,null,null,null,0]
["Sch IIC","Funds Held",null,"Credit Derivatives - Down - Before - Long-Rating 6",null,null,null,null,null,null,null,null,0]
["Sch IIC","Funds Held",null,"Credit Derivatives - Down - Before - Long-Rating 7",null,null,null,null,null,null,null,null,0]
["Sch IIC","Funds Held",null,"Credit Derivatives - Down - Before - Long-Rating 8",null,null,null,null,null,null,null,null,0]
["Sch IIC","Funds Held",null,"Credit Derivatives - Down - After - Long- Rating 0",null,null,null,null,null,null,null,null,0]
["Sch IIC","Funds Held",null,"Credit Derivatives - Down - After - Long- Rating 1",null,null,null,null,null,null,null,null,0]
["Sch IIC","Funds Held",null,"Credit Derivatives - Down - After - Long- Rating 2",null,null,null,null,null,null,null,null,0]
["Sch IIC","Funds Held",null,"Credit Derivatives - Down - After - Long- Rating 3",null,null,null,null,null,null,null,null,0]
["Sch IIC","Funds Held",null,"Credit Derivatives - Down - After - Long- Rating 4",null,null,null,null,null,null,null,null,0]
["Sch IIC","Funds Held",null,"Credit Derivatives - Down - After - Long- Rating 5",null,null,null,null,null,null,null,null,0]
["Sch IIC","Funds Held",null,"Credit Derivatives - Down - After - Long- Rating 6",null,null,null,null,null,null,null,null,0]
["Sch IIC","Funds Held",null,"Credit Derivatives - Down - After - Long- Rating 7",null,null,null,null,null,null,null,null,0]
["Sch IIC","Funds Held",null,"Credit Derivatives - Down - After - Long- Rating 8",null,null,null,null,null,null,null,null,0]
["Sch IIC","Funds Held",null,"Credit Derivatives - Down - Before - Short- Rating 0",null,null,null,null,null,null,null,null,0]
["Sch IIC","Funds Held",null,"Credit Derivatives - Down - Before - Short- Rating 1",null,null,null,null,null,null,null,null,0]
["Sch IIC","Funds Held",null,"Credit Derivatives - Down - Before - Short- Rating 2",null,null,null,null,null,null,null,null,0]
["Sch IIC","Funds Held",null,"Credit Derivatives - Down - Before - Short- Rating 3",null,null,null,null,null,null,null,null,0]
["Sch IIC","Funds Held",null,"Credit Derivatives - Down - Before - Short- Rating 4",null,null,null,null,null,null,null,null,0]
["Sch IIC","Funds Held",null,"Credit Derivatives - Down - Before - Short- Rating 5",null,null,null,null,null,null,null,null,0]
["Sch IIC","Funds Held",null,"Credit Derivatives - Down - Before - Short- Rating 6",null,null,null,null,null,null,null,null,0]
["Sch IIC","Funds Held",null,"Credit Derivatives - Down - Before - Short- Rating 7",null,null,null,null,null,null,null,null,0]
["Sch IIC","Funds Held",null,"Credit Derivatives - Down - Before - Short- Rating 8",null,null,null,null,null,null,null,null,0]
["Sch IIC","Funds Held",null,"Credit Derivatives - Down - After - Short- Rating 0",null,null,null,null,null,null,null,null,0]
["Sch IIC","Funds Held",null,"Credit Derivatives - Down - After - Short- Rating 1",null,null,null,null,null,null,null,null,0]
["Sch IIC","Funds Held",null,"Credit Derivatives - Down - After - Short- Rating 2",null,null,null,null,null,null,null,null,0]
["Sch IIC","Funds Held",null,"Credit Derivatives - Down - After - Short- Rating 3",null,null,null,null,null,null,null,null,0]
["Sch IIC","Funds Held",null,"Credit Derivatives - Down - After - Short- Rating 4",null,null,null,null,null,null,null,null,0]
["Sch IIC","Funds Held",null,"Credit Derivatives - Down - After - Short- Rating 5",null,null,null,null,null,null,null,null,0]
["Sch IIC","Funds Held",null,"Credit Derivatives - Down - After - Short- Rating 6",null,null,null,null,null,null,null,null,0]
["Sch IIC","Funds Held",null,"Credit Derivatives - Down - After - Short- Rating 7",null,null,null,null,null,null,null,null,0]
["Sch IIC","Funds Held",null,"Credit Derivatives - Down - After - Short- Rating 8",null,null,null,null,null,null,null,null,0]
["Sch IIC","Funds Held",null,"Counterparty Default Risk - MV of Derivatives - MV Positive - Rating 0",null,null,null,null,null,null,null,null,0]
["Sch IIC","Funds Held",null,"Counterparty Default Risk - MV of Derivatives - MV Positive - Rating 1",null,null,null,null,null,null,null,null,0]
["Sch IIC","Funds Held",null,"Counterparty Default Risk - MV of Derivatives - MV Positive - Rating 2",null,null,null,null,null,null,null,null,0]
["Sch IIC","Funds Held",null,"Counterparty Default Risk - MV of Derivatives - MV Positive - Rating 3",null,null,null,null,null,null,null,null,0]
["Sch IIC","Funds Held",null,"Counterparty Default Risk - MV of Derivatives - MV Positive - Rating 4",null,null,null,null,null,null,null,null,0]
["Sch IIC","Funds Held",null,"Counterparty Default Risk - MV of Derivatives - MV Positive - Rating 5",null,null,null,null,null,null,null,null,0]
["Sch IIC","Funds Held",null,"Counterparty Default Risk - MV of Derivatives - MV Positive - Rating 6",null,null,null,null,null,null,null,null,0]
["Sch IIC","Funds Held",null,"Counterparty Default Risk - MV of Derivatives - MV Positive - Rating 7",null,null,null,null,null,null,null,null,0]
["Sch IIC","Funds Held",null,"Counterparty Default Risk - MV of Derivatives - MV Positive - Rating 8",null,null,null,null,null,null,null,null,0]
["Sch IIC","Funds Held",null,"Counterparty Default Risk - MV of Derivatives - MV Negative - Rating 0",null,null,null,null,null,null,null,null,0]
["Sch IIC","Funds Held",null,"Counterparty Default Risk - MV of Derivatives - MV Negative - Rating 1",null,null,null,null,null,null,null,null,0]
["Sch IIC","Funds Held",null,"Counterparty Default Risk - MV of Derivatives - MV Negative - Rating 2",null,null,null,null,null,null,null,null,0]
["Sch IIC","Funds Held",null,"Counterparty Default Risk - MV of Derivatives - MV Negative - Rating 3",null,null,null,null,null,null,null,null,0]
["Sch IIC","Funds Held",null,"Counterparty Default Risk - MV of Derivatives - MV Negative - Rating 4",null,null,null,null,null,null,null,null,0]
["Sch IIC","Funds Held",null,"Counterparty Default Risk - MV of Derivatives - MV Negative - Rating 5",null,null,null,null,null,null,null,null,0]
["Sch IIC","Funds Held",null,"Counterparty Default Risk - MV of Derivatives - MV Negative - Rating 6",null,null,null,null,null,null,null,null,0]
["Sch IIC","Funds Held",null,"Counterparty Default Risk - MV of Derivatives - MV Negative - Rating 7",null,null,null,null,null,null,null,null,0]
["Sch IIC","Funds Held",null,"Counterparty Default Risk - MV of Derivatives - MV Negative - Rating 8",null,null,null,null,null,null,null,null,0]
["Sch IIC","Funds Held",null,"Counterparty Default Risk - MV of Collateral - Rating 0",null,null,null,null,null,null,null,null,0]
["Sch IIC","Funds Held",null,"Counterparty Default Risk - MV of Collateral - Rating 1",null,null,null,null,null,null,null,null,0]
["Sch IIC","Funds Held",null,"Counterparty Default Risk - MV of Collateral - Rating 2",null,null,null,null,null,null,null,null,0]
["Sch IIC","Funds Held",null,"Counterparty Default Risk - MV of Collateral - Rating 3",null,null,null,null,null,null,null,null,0]
["Sch IIC","Funds Held",null,"Counterparty Default Risk - MV of Collateral - Rating 4",null,null,null,null,null,null,null,null,0]
["Sch IIC","Funds Held",null,"Counterparty Default Risk - MV of Collateral - Rating 5",null,null,null,null,null,null,null,null,0]
["Sch IIC","Funds Held",null,"Counterparty Default Risk - MV of Collateral - Rating 6",null,null,null,null,null,null,null,null,0]
["Sch IIC","Funds Held",null,"Counterparty Default Risk - MV of Collateral - Rating 7",null,null,null,null,null,null,null,null,0]
["Sch IIC","Funds Held",null,"Counterparty Default Risk - MV of Collateral - Rating 8",null,null,null,null,null,null,null,null,0]
["Sch IIC","Funds Held",null,"Cash and Cash Equivalents",null,null,null,null,null,null,null,null,0]
[]
["Sch IID","Segregated Acc",null,"Corp. Bonds - BSCR Rate 0",null,null,null,null,null,null,null,null,0]
["Sch IID","Segregated Acc",null,"Corp. Bonds - BSCR Rate 1",null,null,null,null,null,null,null,null,0]
["Sch IID","Segregated Acc",null,"Corp. Bonds - BSCR Rate 2",null,null,null,null,null,null,null,null,0]
["Sch IID","Segregated Acc",null,"Corp. Bonds - BSCR Rate 3",null,null,null,null,null,null,null,null,0]
["Sch IID","Segregated Acc",null,"Corp. Bonds - BSCR Rate 4",null,null,null,null,null,null,null,null,0]
["Sch IID","Segregated Acc",null,"Corp. Bonds - BSCR Rate 5",null,null,null,null,null,null,null,null,0]
["Sch IID","Segregated Acc",null,"Corp. Bonds - BSCR Rate 6",null,null,null,null,null,null,null,null,0]
["Sch IID","Segregated Acc",null,"Corp. Bonds - BSCR Rate 7",null,null,null,null,null,null,null,null,0]
["Sch IID","Segregated Acc",null,"Corp. Bonds - BSCR Rate 8",null,null,null,null,null,null,null,null,0]
["Sch IID","Segregated Acc",null,"Liabilities Supported by Corp. Bonds - BSCR Rate 0",null,null,null,null,null,null,null,null,0]
["Sch IID","Segregated Acc",null,"Liabilities Supported by Corp. Bonds - BSCR Rate 1",null,null,null,null,null,null,null,null,0]
["Sch IID","Segregated Acc",null,"Liabilities Supported by Corp. Bonds - BSCR Rate 2",null,null,null,null,null,null,null,null,0]
["Sch IID","Segregated Acc",null,"Liabilities Supported by Corp. Bonds - BSCR Rate 3",null,null,null,null,null,null,null,null,0]
["Sch IID","Segregated Acc",null,"Liabilities Supported by Corp. Bonds - BSCR Rate 4",null,null,null,null,null,null,null,null,0]
["Sch IID","Segregated Acc",null,"Liabilities Supported by Corp. Bonds - BSCR Rate 5",null,null,null,null,null,null,null,null,0]
["Sch IID","Segregated Acc",null,"Liabilities Supported by Corp. Bonds - BSCR Rate 6",null,null,null,null,null,null,null,null,0]
["Sch IID","Segregated Acc",null,"Liabilities Supported by Corp. Bonds - BSCR Rate 7",null,null,null,null,null,null,null,null,0]
["Sch IID","Segregated Acc",null,"Liabilities Supported by Corp. Bonds - BSCR Rate 8",null,null,null,null,null,null,null,null,0]
["Sch IID","Segregated Acc",null,"Residential MBS - BSCR Rate 1",null,null,null,null,null,null,null,null,0]
["Sch IID","Segregated Acc",null,"Residential MBS - BSCR Rate 2",null,null,null,null,null,null,null,null,0]
["Sch IID","Segregated Acc",null,"Residential MBS - BSCR Rate 3",null,null,null,null,null,null,null,null,0]
["Sch IID","Segregated Acc",null,"Residential MBS - BSCR Rate 4",null,null,null,null,null,null,null,null,0]
["Sch IID","Segregated Acc",null,"Residential MBS - BSCR Rate 5",null,null,null,null,null,null,null,null,0]
["Sch IID","Segregated Acc",null,"Residential MBS - BSCR Rate 6",null,null,null,null,null,null,null,null,0]
["Sch IID","Segregated Acc",null,"Residential MBS - BSCR Rate 7",null,null,null,null,null,null,null,null,0]
["Sch IID","Segregated Acc",null,"Residential MBS - BSCR Rate 8",null,null,null,null,null,null,null,null,0]
["Sch IID","Segregated Acc",null,"Liabilities Supported by Residential MBS - BSCR Rate 1",null,null,null,null,null,null,null,null,0]
["Sch IID","Segregated Acc",null,"Liabilities Supported by Residential MBS - BSCR Rate 2",null,null,null,null,null,null,null,null,0]
["Sch IID","Segregated Acc",null,"Liabilities Supported by Residential MBS - BSCR Rate 3",null,null,null,null,null,null,null,null,0]
["Sch IID","Segregated Acc",null,"Liabilities Supported by Residential MBS - BSCR Rate 4",null,null,null,null,null,null,null,null,0]
["Sch IID","Segregated Acc",null,"Liabilities Supported by Residential MBS - BSCR Rate 5",null,null,null,null,null,null,null,null,0]
["Sch IID","Segregated Acc",null,"Liabilities Supported by Residential MBS - BSCR Rate 6",null,null,null,null,null,null,null,null,0]
["Sch IID","Segregated Acc",null,"Liabilities Supported by Residential MBS - BSCR Rate 7",null,null,null,null,null,null,null,null,0]
["Sch IID","Segregated Acc",null,"Liabilities Supported by Residential MBS - BSCR Rate 8",null,null,null,null,null,null,null,null,0]
["Sch IID","Segregated Acc",null,"Commercial MBS - BSCR Rate 1",null,null,null,null,null,null,null,null,0]
["Sch IID","Segregated Acc",null,"Commercial MBS - BSCR Rate 2",null,null,null,null,null,null,null,null,0]
["Sch IID","Segregated Acc",null,"Commercial MBS - BSCR Rate 3",null,null,null,null,null,null,null,null,0]
["Sch IID","Segregated Acc",null,"Commercial MBS - BSCR Rate 4",null,null,null,null,null,null,null,null,0]
["Sch IID","Segregated Acc",null,"Commercial MBS - BSCR Rate 5",null,null,null,null,null,null,null,null,0]
["Sch IID","Segregated Acc",null,"Commercial MBS - BSCR Rate 6",null,null,null,null,null,null,null,null,0]
["Sch IID","Segregated Acc",null,"Commercial MBS - BSCR Rate 7",null,null,null,null,null,null,null,null,0]
["Sch IID","Segregated Acc",null,"Commercial MBS - BSCR Rate 8",null,null,null,null,null,null,null,null,0]
["Sch IID","Segregated Acc",null,"Liabilities Supported by Commercial MBS - BSCR Rate 1",null,null,null,null,null,null,null,null,0]
["Sch IID","Segregated Acc",null,"Liabilities Supported by Commercial MBS - BSCR Rate 2",null,null,null,null,null,null,null,null,0]
["Sch IID","Segregated Acc",null,"Liabilities Supported by Commercial MBS - BSCR Rate 3",null,null,null,null,null,null,null,null,0]
["Sch IID","Segregated Acc",null,"Liabilities Supported by Commercial MBS - BSCR Rate 4",null,null,null,null,null,null,null,null,0]
["Sch IID","Segregated Acc",null,"Liabilities Supported by Commercial MBS - BSCR Rate 5",null,null,null,null,null,null,null,null,0]
["Sch IID","Segregated Acc",null,"Liabilities Supported by Commercial MBS - BSCR Rate 6",null,null,null,null,null,null,null,null,0]
["Sch IID","Segregated Acc",null,"Liabilities Supported by Commercial MBS - BSCR Rate 7",null,null,null,null,null,null,null,null,0]
["Sch IID","Segregated Acc",null,"Liabilities Supported by Commercial MBS - BSCR Rate 8",null,null,null,null,null,null,null,null,0]
["Sch IID","Segregated Acc",null,"Bonds Mutual Fund - BSCR Rate 0",null,null,null,null,null,null,null,null,0]
["Sch IID","Segregated Acc",null,"Bonds Mutual Fund - BSCR Rate 1",null,null,null,null,null,null,null,null,0]
["Sch IID","Segregated Acc",null,"Bonds Mutual Fund - BSCR Rate 2",null,null,null,null,null,null,null,null,0]
["Sch IID","Segregated Acc",null,"Bonds Mutual Fund - BSCR Rate 3",null,null,null,null,null,null,null,null,0]
["Sch IID","Segregated Acc",null,"Bonds Mutual Fund - BSCR Rate 4",null,null,null,null,null,null,null,null,0]
["Sch IID","Segregated Acc",null,"Bonds Mutual Fund - BSCR Rate 5",null,null,null,null,null,null,null,null,0]
["Sch IID","Segregated Acc",null,"Bonds Mutual Fund - BSCR Rate 6",null,null,null,null,null,null,null,null,0]
["Sch IID","Segregated Acc",null,"Bonds Mutual Fund - BSCR Rate 7",null,null,null,null,null,null,null,null,0]
["Sch IID","Segregated Acc",null,"Bonds Mutual Fund - BSCR Rate 8",null,null,null,null,null,null,null,null,0]
["Sch IID","Segregated Acc",null,"Liabilities Supported by Bonds Mutual Fund - BSCR Rate 0",null,null,null,null,null,null,null,null,0]
["Sch IID","Segregated Acc",null,"Liabilities Supported by Bonds Mutual Fund - BSCR Rate 1",null,null,null,null,null,null,null,null,0]
["Sch IID","Segregated Acc",null,"Liabilities Supported by Bonds Mutual Fund - BSCR Rate 2",null,null,null,null,null,null,null,null,0]
["Sch IID","Segregated Acc",null,"Liabilities Supported by Bonds Mutual Fund - BSCR Rate 3",null,null,null,null,null,null,null,null,0]
["Sch IID","Segregated Acc",null,"Liabilities Supported by Bonds Mutual Fund - BSCR Rate 4",null,null,null,null,null,null,null,null,0]
["Sch IID","Segregated Acc",null,"Liabilities Supported by Bonds Mutual Fund - BSCR Rate 5",null,null,null,null,null,null,null,null,0]
["Sch IID","Segregated Acc",null,"Liabilities Supported by Bonds Mutual Fund - BSCR Rate 6",null,null,null,null,null,null,null,null,0]
["Sch IID","Segregated Acc",null,"Liabilities Supported by Bonds Mutual Fund - BSCR Rate 7",null,null,null,null,null,null,null,null,0]
["Sch IID","Segregated Acc",null,"Liabilities Supported by Bonds Mutual Fund - BSCR Rate 8",null,null,null,null,null,null,null,null,0]
["Sch IID","Segregated Acc",null,"Mortgage Loans - Insured",null,null,null,null,null,null,null,null,0]
["Sch IID","Segregated Acc",null,"Mortgage Loans - Other Commercial",null,null,null,null,null,null,null,null,0]
["Sch IID","Segregated Acc",null,"Mortgage Loans - Other Residential",null,null,null,null,null,null,null,null,0]
["Sch IID","Segregated Acc",null,"Mortgage Loans - Not Good Stand.",null,null,null,null,null,null,null,null,0]
["Sch IID","Segregated Acc",null,"Liabilities Supported by Mortgage Loans - Insured",null,null,null,null,null,null,null,null,0]
["Sch IID","Segregated Acc",null,"Liabilities Supported by Mortgage Loans - Other Commercial",null,null,null,null,null,null,null,null,0]
["Sch IID","Segregated Acc",null,"Liabilities Supported by Mortgage Loans - Other Residential",null,null,null,null,null,null,null,null,0]
["Sch IID","Segregated Acc",null,"Liabilities Supported by Mortgage Loans - Not Good Stand.",null,null,null,null,null,null,null,null,0]
["Sch IID","Segregated Acc",null,"Long Positions - Before - Strategic Holdings - Listed",null,null,null,null,null,null,null,null,0]
["Sch IID","Segregated Acc",null,"Long Positions - Before - Duration Based",null,null,null,null,null,null,null,null,0]
["Sch IID","Segregated Acc",null,"Long Positions - Before - Listed Equity Securities in Developed Markets",null,null,null,null,null,null,null,null,0]
["Sch IID","Segregated Acc",null,"Long Positions - Before - Preferred Stocks, BSCR Rating 1",null,null,null,null,null,null,null,null,0]
["Sch IID","Segregated Acc",null,"Long Positions - Before - Preferred Stocks, BSCR Rating 2",null,null,null,null,null,null,null,null,0]
["Sch IID","Segregated Acc",null,"Long Positions - Before - Preferred Stocks, BSCR Rating 3",null,null,null,null,null,null,null,null,0]
["Sch IID","Segregated Acc",null,"Long Positions - Before - Preferred Stocks, BSCR Rating 4",null,null,null,null,null,null,null,null,0]
["Sch IID","Segregated Acc",null,"Long Positions - Before - Preferred Stocks, BSCR Rating 5",null,null,null,null,null,null,null,null,0]
["Sch IID","Segregated Acc",null,"Long Positions - Before - Preferred Stocks, BSCR Rating 6",null,null,null,null,null,null,null,null,0]
["Sch IID","Segregated Acc",null,"Long Positions - Before - Preferred Stocks, BSCR Rating 7",null,null,null,null,null,null,null,null,0]
["Sch IID","Segregated Acc",null,"Long Positions - Before - Preferred Stocks, BSCR Rating 8",null,null,null,null,null,null,null,null,0]
["Sch IID","Segregated Acc",null,"Long Positions - Before - Equity Derivatives on Type 1 Equities",null,null,null,null,null,null,null,null,0]
["Sch IID","Segregated Acc",null,"Long Positions - Before - Strategic Holdings - Unlisted",null,null,null,null,null,null,null,null,0]
["Sch IID","Segregated Acc",null,"Long Positions - Before - Other Equities",null,null,null,null,null,null,null,null,0]
["Sch IID","Segregated Acc",null,"Long Positions - Before - Letters of Credit",null,null,null,null,null,null,null,null,0]
["Sch IID","Segregated Acc",null,"Long Positions - Before - Intangible assets",null,null,null,null,null,null,null,null,0]
["Sch IID","Segregated Acc",null,"Long Positions - Before - Pension Benefit Surplus",null,null,null,null,null,null,null,null,0]
["Sch IID","Segregated Acc",null,"Long Positions - Before - Equity Derivatives on Type 2 Equities",null,null,null,null,null,null,null,null,0]
["Sch IID","Segregated Acc",null,"Long Positions - Before - Infrastructure",null,null,null,null,null,null,null,null,0]
["Sch IID","Segregated Acc",null,"Long Positions - Before - Derivatives on Infrastructure",null,null,null,null,null,null,null,null,0]
["Sch IID","Segregated Acc",null,"Long Positions - Before - Equity Real Estate 1",null,null,null,null,null,null,null,null,0]
["Sch IID","Segregated Acc",null,"Long Positions - Before - Equity Real Estate 2",null,null,null,null,null,null,null,null,0]
["Sch IID","Segregated Acc",null,"Long Positions - After - Strategic Holdings - Listed",null,null,null,null,null,null,null,null,0]
["Sch IID","Segregated Acc",null,"Long Positions - After - Duration Based",null,null,null,null,null,null,null,null,0]
["Sch IID","Segregated Acc",null,"Long Positions - After - Listed Equity Securities in Developed Markets",null,null,null,null,null,null,null,null,0]
["Sch IID","Segregated Acc",null,"Long Positions - After - Preferred Stocks, BSCR Rating 1",null,null,null,null,null,null,null,null,0]
["Sch IID","Segregated Acc",null,"Long Positions - After - Preferred Stocks, BSCR Rating 2",null,null,null,null,null,null,null,null,0]
["Sch IID","Segregated Acc",null,"Long Positions - After - Preferred Stocks, BSCR Rating 3",null,null,null,null,null,null,null,null,0]
["Sch IID","Segregated Acc",null,"Long Positions - After - Preferred Stocks, BSCR Rating 4",null,null,null,null,null,null,null,null,0]
["Sch IID","Segregated Acc",null,"Long Positions - After - Preferred Stocks, BSCR Rating 5",null,null,null,null,null,null,null,null,0]
["Sch IID","Segregated Acc",null,"Long Positions - After - Preferred Stocks, BSCR Rating 6",null,null,null,null,null,null,null,null,0]
["Sch IID","Segregated Acc",null,"Long Positions - After - Preferred Stocks, BSCR Rating 7",null,null,null,null,null,null,null,null,0]
["Sch IID","Segregated Acc",null,"Long Positions - After - Preferred Stocks, BSCR Rating 8",null,null,null,null,null,null,null,null,0]
["Sch IID","Segregated Acc",null,"Long Positions - After - Equity Derivatives on Type 1 Equities",null,null,null,null,null,null,null,null,0]
["Sch IID","Segregated Acc",null,"Long Positions - After - Strategic Holdings - Unlisted",null,null,null,null,null,null,null,null,0]
["Sch IID","Segregated Acc",null,"Long Positions - After - Other Equities",null,null,null,null,null,null,null,null,0]
["Sch IID","Segregated Acc",null,"Long Positions - After - Letters of Credit",null,null,null,null,null,null,null,null,0]
["Sch IID","Segregated Acc",null,"Long Positions - After - Intangible assets",null,null,null,null,null,null,null,null,0]
["Sch IID","Segregated Acc",null,"Long Positions - After - Pension Benefit Surplus",null,null,null,null,null,null,null,null,0]
["Sch IID","Segregated Acc",null,"Long Positions - After - Equity Derivatives on Type 2 Equities",null,null,null,null,null,null,null,null,0]
["Sch IID","Segregated Acc",null,"Long Positions - After - Infrastructure",null,null,null,null,null,null,null,null,0]
["Sch IID","Segregated Acc",null,"Long Positions - After - Derivatives on Infrastructure",null,null,null,null,null,null,null,null,0]
["Sch IID","Segregated Acc",null,"Long Positions - After - Equity Real Estate 1",null,null,null,null,null,null,null,null,0]
["Sch IID","Segregated Acc",null,"Long Positions - After - Equity Real Estate 2",null,null,null,null,null,null,null,null,0]
["Sch IID","Segregated Acc",null,"Short - Before - Qualified Assets - Strategic Holdings - Listed",null,null,null,null,null,null,null,null,0]
["Sch IID","Segregated Acc",null,"Short - Before - Qualified Assets - Duration Based",null,null,null,null,null,null,null,null,0]
["Sch IID","Segregated Acc",null,"Short - Before - Qualified Assets - Listed Equity Securities in Developed Markets",null,null,null,null,null,null,null,null,0]
["Sch IID","Segregated Acc",null,"Short - Before - Qualified Assets - Preferred Stocks, BSCR Rating 1",null,null,null,null,null,null,null,null,0]
["Sch IID","Segregated Acc",null,"Short - Before - Qualified Assets - Preferred Stocks, BSCR Rating 2",null,null,null,null,null,null,null,null,0]
["Sch IID","Segregated Acc",null,"Short - Before - Qualified Assets - Preferred Stocks, BSCR Rating 3",null,null,null,null,null,null,null,null,0]
["Sch IID","Segregated Acc",null,"Short - Before - Qualified Assets - Preferred Stocks, BSCR Rating 4",null,null,null,null,null,null,null,null,0]
["Sch IID","Segregated Acc",null,"Short - Before - Qualified Assets - Preferred Stocks, BSCR Rating 5",null,null,null,null,null,null,null,null,0]
["Sch IID","Segregated Acc",null,"Short - Before - Qualified Assets - Preferred Stocks, BSCR Rating 6",null,null,null,null,null,null,null,null,0]
["Sch IID","Segregated Acc",null,"Short - Before - Qualified Assets - Preferred Stocks, BSCR Rating 7",null,null,null,null,null,null,null,null,0]
["Sch IID","Segregated Acc",null,"Short - Before - Qualified Assets - Preferred Stocks, BSCR Rating 8",null,null,null,null,null,null,null,null,0]
["Sch IID","Segregated Acc",null,"Short - Before - Qualified Assets - Equity Derivatives on Type 1 Equities",null,null,null,null,null,null,null,null,0]
["Sch IID","Segregated Acc",null,"Short - Before - Qualified Assets - Strategic Holdings - Unlisted",null,null,null,null,null,null,null,null,0]
["Sch IID","Segregated Acc",null,"Short - Before - Qualified Assets - Other Equities",null,null,null,null,null,null,null,null,0]
["Sch IID","Segregated Acc",null,"Short - Before - Qualified Assets - Letters of Credit",null,null,null,null,null,null,null,null,0]
["Sch IID","Segregated Acc",null,"Short - Before - Qualified Assets - Intangible assets",null,null,null,null,null,null,null,null,0]
["Sch IID","Segregated Acc",null,"Short - Before - Qualified Assets - Pension Benefit Surplus",null,null,null,null,null,null,null,null,0]
["Sch IID","Segregated Acc",null,"Short - Before - Qualified Assets - Equity Derivatives on Type 2 Equities",null,null,null,null,null,null,null,null,0]
["Sch IID","Segregated Acc",null,"Short - Before - Qualified Assets - Infrastructure",null,null,null,null,null,null,null,null,0]
["Sch IID","Segregated Acc",null,"Short - Before - Qualified Assets - Derivatives on Infrastructure",null,null,null,null,null,null,null,null,0]
["Sch IID","Segregated Acc",null,"Short - Before - Qualified Assets - Equity Real Estate 1",null,null,null,null,null,null,null,null,0]
["Sch IID","Segregated Acc",null,"Short - Before - Qualified Assets - Equity Real Estate 2",null,null,null,null,null,null,null,null,0]
["Sch IID","Segregated Acc",null,"Short - After - Qualified Assets - Strategic Holdings - Listed",null,null,null,null,null,null,null,null,0]
["Sch IID","Segregated Acc",null,"Short - After - Qualified Assets - Duration Based",null,null,null,null,null,null,null,null,0]
["Sch IID","Segregated Acc",null,"Short - After - Qualified Assets - Listed Equity Securities in Developed Markets",null,null,null,null,null,null,null,null,0]
["Sch IID","Segregated Acc",null,"Short - After - Qualified Assets - Preferred Stocks, BSCR Rating 1",null,null,null,null,null,null,null,null,0]
["Sch IID","Segregated Acc",null,"Short - After - Qualified Assets - Preferred Stocks, BSCR Rating 2",null,null,null,null,null,null,null,null,0]
["Sch IID","Segregated Acc",null,"Short - After - Qualified Assets - Preferred Stocks, BSCR Rating 3",null,null,null,null,null,null,null,null,0]
["Sch IID","Segregated Acc",null,"Short - After - Qualified Assets - Preferred Stocks, BSCR Rating 4",null,null,null,null,null,null,null,null,0]
["Sch IID","Segregated Acc",null,"Short - After - Qualified Assets - Preferred Stocks, BSCR Rating 5",null,null,null,null,null,null,null,null,0]
["Sch IID","Segregated Acc",null,"Short - After - Qualified Assets - Preferred Stocks, BSCR Rating 6",null,null,null,null,null,null,null,null,0]
["Sch IID","Segregated Acc",null,"Short - After - Qualified Assets - Preferred Stocks, BSCR Rating 7",null,null,null,null,null,null,null,null,0]
["Sch IID","Segregated Acc",null,"Short - After - Qualified Assets - Preferred Stocks, BSCR Rating 8",null,null,null,null,null,null,null,null,0]
["Sch IID","Segregated Acc",null,"Short - After - Qualified Assets - Equity Derivatives on Type 1 Equities",null,null,null,null,null,null,null,null,0]
["Sch IID","Segregated Acc",null,"Short - After - Qualified Assets - Strategic Holdings - Unlisted",null,null,null,null,null,null,null,null,0]
["Sch IID","Segregated Acc",null,"Short - After - Qualified Assets - Other Equities",null,null,null,null,null,null,null,null,0]
["Sch IID","Segregated Acc",null,"Short - After - Qualified Assets - Letters of Credit",null,null,null,null,null,null,null,null,0]
["Sch IID","Segregated Acc",null,"Short - After - Qualified Assets - Intangible assets",null,null,null,null,null,null,null,null,0]
["Sch IID","Segregated Acc",null,"Short - After - Qualified Assets - Pension Benefit Surplus",null,null,null,null,null,null,null,null,0]
["Sch IID","Segregated Acc",null,"Short - After - Qualified Assets - Equity Derivatives on Type 2 Equities",null,null,null,null,null,null,null,null,0]
["Sch IID","Segregated Acc",null,"Short - After - Qualified Assets - Infrastructure",null,null,null,null,null,null,null,null,0]
["Sch IID","Segregated Acc",null,"Short - After - Qualified Assets - Derivatives on Infrastructure",null,null,null,null,null,null,null,null,0]
["Sch IID","Segregated Acc",null,"Short - After - Qualified Assets - Equity Real Estate 1",null,null,null,null,null,null,null,null,0]
["Sch IID","Segregated Acc",null,"Short - After - Qualified Assets - Equity Real Estate 2",null,null,null,null,null,null,null,null,0]
["Sch IID","Segregated Acc",null,"Short - Before - UnQualified Assets - Strategic Holdings - Listed",null,null,null,null,null,null,null,null,0]
["Sch IID","Segregated Acc",null,"Short - Before - UnQualified Assets - Duration Based",null,null,null,null,null,null,null,null,0]
["Sch IID","Segregated Acc",null,"Short - Before - UnQualified Assets - Listed Equity Securities in Developed Markets",null,null,null,null,null,null,null,null,0]
["Sch IID","Segregated Acc",null,"Short - Before - UnQualified Assets - Preferred Stocks, BSCR Rating 1",null,null,null,null,null,null,null,null,0]
["Sch IID","Segregated Acc",null,"Short - Before - UnQualified Assets - Preferred Stocks, BSCR Rating 2",null,null,null,null,null,null,null,null,0]
["Sch IID","Segregated Acc",null,"Short - Before - UnQualified Assets - Preferred Stocks, BSCR Rating 3",null,null,null,null,null,null,null,null,0]
["Sch IID","Segregated Acc",null,"Short - Before - UnQualified Assets - Preferred Stocks, BSCR Rating 4",null,null,null,null,null,null,null,null,0]
["Sch IID","Segregated Acc",null,"Short - Before - UnQualified Assets - Preferred Stocks, BSCR Rating 5",null,null,null,null,null,null,null,null,0]
["Sch IID","Segregated Acc",null,"Short - Before - UnQualified Assets - Preferred Stocks, BSCR Rating 6",null,null,null,null,null,null,null,null,0]
["Sch IID","Segregated Acc",null,"Short - Before - UnQualified Assets - Preferred Stocks, BSCR Rating 7",null,null,null,null,null,null,null,null,0]
["Sch IID","Segregated Acc",null,"Short - Before - UnQualified Assets - Preferred Stocks, BSCR Rating 8",null,null,null,null,null,null,null,null,0]
["Sch IID","Segregated Acc",null,"Short - Before - UnQualified Assets - Equity Derivatives on Type 1 Equities",null,null,null,null,null,null,null,null,0]
["Sch IID","Segregated Acc",null,"Short - Before - UnQualified Assets - Strategic Holdings - Unlisted",null,null,null,null,null,null,null,null,0]
["Sch IID","Segregated Acc",null,"Short - Before - UnQualified Assets - Other Equities",null,null,null,null,null,null,null,null,0]
["Sch IID","Segregated Acc",null,"Short - Before - UnQualified Assets - Letters of Credit",null,null,null,null,null,null,null,null,0]
["Sch IID","Segregated Acc",null,"Short - Before - UnQualified Assets - Intangible assets",null,null,null,null,null,null,null,null,0]
["Sch IID","Segregated Acc",null,"Short - Before - UnQualified Assets - Pension Benefit Surplus",null,null,null,null,null,null,null,null,0]
["Sch IID","Segregated Acc",null,"Short - Before - UnQualified Assets - Equity Derivatives on Type 2 Equities",null,null,null,null,null,null,null,null,0]
["Sch IID","Segregated Acc",null,"Short - Before - UnQualified Assets - Infrastructure",null,null,null,null,null,null,null,null,0]
["Sch IID","Segregated Acc",null,"Short - Before - UnQualified Assets - Derivatives on Infrastructure",null,null,null,null,null,null,null,null,0]
["Sch IID","Segregated Acc",null,"Short - Before - UnQualified Assets - Equity Real Estate 1",null,null,null,null,null,null,null,null,0]
["Sch IID","Segregated Acc",null,"Short - Before - UnQualified Assets - Equity Real Estate 2",null,null,null,null,null,null,null,null,0]
["Sch IID","Segregated Acc",null,"Short - After - UnQualified Assets - Strategic Holdings - Listed",null,null,null,null,null,null,null,null,0]
["Sch IID","Segregated Acc",null,"Short - After - UnQualified Assets - Duration Based",null,null,null,null,null,null,null,null,0]
["Sch IID","Segregated Acc",null,"Short - After - UnQualified Assets - Listed Equity Securities in Developed Markets",null,null,null,null,null,null,null,null,0]
["Sch IID","Segregated Acc",null,"Short - After - UnQualified Assets - Preferred Stocks, BSCR Rating 1",null,null,null,null,null,null,null,null,0]
["Sch IID","Segregated Acc",null,"Short - After - UnQualified Assets - Preferred Stocks, BSCR Rating 2",null,null,null,null,null,null,null,null,0]
["Sch IID","Segregated Acc",null,"Short - After - UnQualified Assets - Preferred Stocks, BSCR Rating 3",null,null,null,null,null,null,null,null,0]
["Sch IID","Segregated Acc",null,"Short - After - UnQualified Assets - Preferred Stocks, BSCR Rating 4",null,null,null,null,null,null,null,null,0]
["Sch IID","Segregated Acc",null,"Short - After - UnQualified Assets - Preferred Stocks, BSCR Rating 5",null,null,null,null,null,null,null,null,0]
["Sch IID","Segregated Acc",null,"Short - After - UnQualified Assets - Preferred Stocks, BSCR Rating 6",null,null,null,null,null,null,null,null,0]
["Sch IID","Segregated Acc",null,"Short - After - UnQualified Assets - Preferred Stocks, BSCR Rating 7",null,null,null,null,null,null,null,null,0]
["Sch IID","Segregated Acc",null,"Short - After - UnQualified Assets - Preferred Stocks, BSCR Rating 8",null,null,null,null,null,null,null,null,0]
["Sch IID","Segregated Acc",null,"Short - After - UnQualified Assets - Equity Derivatives on Type 1 Equities",null,null,null,null,null,null,null,null,0]
["Sch IID","Segregated Acc",null,"Short - After - UnQualified Assets - Strategic Holdings - Unlisted",null,null,null,null,null,null,null,null,0]
["Sch IID","Segregated Acc",null,"Short - After - UnQualified Assets - Other Equities",null,null,null,null,null,null,null,null,0]
["Sch IID","Segregated Acc",null,"Short - After - UnQualified Assets - Letters of Credit",null,null,null,null,null,null,null,null,0]
["Sch IID","Segregated Acc",null,"Short - After - UnQualified Assets - Intangible assets",null,null,null,null,null,null,null,null,0]
["Sch IID","Segregated Acc",null,"Short - After - UnQualified Assets - Pension Benefit Surplus",null,null,null,null,null,null,null,null,0]
["Sch IID","Segregated Acc",null,"Short - After - UnQualified Assets - Equity Derivatives on Type 2 Equities",null,null,null,null,null,null,null,null,0]
["Sch IID","Segregated Acc",null,"Short - After - UnQualified Assets - Infrastructure",null,null,null,null,null,null,null,null,0]
["Sch IID","Segregated Acc",null,"Short - After - UnQualified Assets - Derivatives on Infrastructure",null,null,null,null,null,null,null,null,0]
["Sch IID","Segregated Acc",null,"Short - After - UnQualified Assets - Equity Real Estate 1",null,null,null,null,null,null,null,null,0]
["Sch IID","Segregated Acc",null,"Short - After - UnQualified Assets - Equity Real Estate 2",null,null,null,null,null,null,null,null,0]
["Sch IID","Segregated Acc",null,"Liabilities - Before - W/O Mgmt Actions - Strategic Holdings - Listed",null,null,null,null,null,null,null,null,0]
["Sch IID","Segregated Acc",null,"Liabilities - Before - W/O Mgmt Actions - Duration Based",null,null,null,null,null,null,null,null,0]
["Sch IID","Segregated Acc",null,"Liabilities - Before - W/O Mgmt Actions - Listed Equity Securities in Developed Markets",null,null,null,null,null,null,null,null,0]
["Sch IID","Segregated Acc",null,"Liabilities - Before - W/O Mgmt Actions - Preferred Stocks, BSCR Rating 1",null,null,null,null,null,null,null,null,0]
["Sch IID","Segregated Acc",null,"Liabilities - Before - W/O Mgmt Actions - Preferred Stocks, BSCR Rating 2",null,null,null,null,null,null,null,null,0]
["Sch IID","Segregated Acc",null,"Liabilities - Before - W/O Mgmt Actions - Preferred Stocks, BSCR Rating 3",null,null,null,null,null,null,null,null,0]
["Sch IID","Segregated Acc",null,"Liabilities - Before - W/O Mgmt Actions - Preferred Stocks, BSCR Rating 4",null,null,null,null,null,null,null,null,0]
["Sch IID","Segregated Acc",null,"Liabilities - Before - W/O Mgmt Actions - Preferred Stocks, BSCR Rating 5",null,null,null,null,null,null,null,null,0]
["Sch IID","Segregated Acc",null,"Liabilities - Before - W/O Mgmt Actions - Preferred Stocks, BSCR Rating 6",null,null,null,null,null,null,null,null,0]
["Sch IID","Segregated Acc",null,"Liabilities - Before - W/O Mgmt Actions - Preferred Stocks, BSCR Rating 7",null,null,null,null,null,null,null,null,0]
["Sch IID","Segregated Acc",null,"Liabilities - Before - W/O Mgmt Actions - Preferred Stocks, BSCR Rating 8",null,null,null,null,null,null,null,null,0]
["Sch IID","Segregated Acc",null,"Liabilities - Before - W/O Mgmt Actions - Equity Derivatives on Type 1 Equities",null,null,null,null,null,null,null,null,0]
["Sch IID","Segregated Acc",null,"Liabilities - Before - W/O Mgmt Actions - Strategic Holdings - Unlisted",null,null,null,null,null,null,null,null,0]
["Sch IID","Segregated Acc",null,"Liabilities - Before - W/O Mgmt Actions - Other Equities",null,null,null,null,null,null,null,null,0]
["Sch IID","Segregated Acc",null,"Liabilities - Before - W/O Mgmt Actions - Letters of Credit",null,null,null,null,null,null,null,null,0]
["Sch IID","Segregated Acc",null,"Liabilities - Before - W/O Mgmt Actions - Intangible assets",null,null,null,null,null,null,null,null,0]
["Sch IID","Segregated Acc",null,"Liabilities - Before - W/O Mgmt Actions - Pension Benefit Surplus",null,null,null,null,null,null,null,null,0]
["Sch IID","Segregated Acc",null,"Liabilities - Before - W/O Mgmt Actions - Equity Derivatives on Type 2 Equities",null,null,null,null,null,null,null,null,0]
["Sch IID","Segregated Acc",null,"Liabilities - Before - W/O Mgmt Actions - Infrastructure",null,null,null,null,null,null,null,null,0]
["Sch IID","Segregated Acc",null,"Liabilities - Before - W/O Mgmt Actions - Derivatives on Infrastructure",null,null,null,null,null,null,null,null,0]
["Sch IID","Segregated Acc",null,"Liabilities - Before - W/O Mgmt Actions - Equity Real Estate 1",null,null,null,null,null,null,null,null,0]
["Sch IID","Segregated Acc",null,"Liabilities - Before - W/O Mgmt Actions - Equity Real Estate 2",null,null,null,null,null,null,null,null,0]
["Sch IID","Segregated Acc",null,"Liabilities - After - W/O Mgmt Actions - Strategic Holdings - Listed",null,null,null,null,null,null,null,null,0]
["Sch IID","Segregated Acc",null,"Liabilities - After - W/O Mgmt Actions - Duration Based",null,null,null,null,null,null,null,null,0]
["Sch IID","Segregated Acc",null,"Liabilities - After - W/O Mgmt Actions - Listed Equity Securities in Developed Markets",null,null,null,null,null,null,null,null,0]
["Sch IID","Segregated Acc",null,"Liabilities - After - W/O Mgmt Actions - Preferred Stocks, BSCR Rating 1",null,null,null,null,null,null,null,null,0]
["Sch IID","Segregated Acc",null,"Liabilities - After - W/O Mgmt Actions - Preferred Stocks, BSCR Rating 2",null,null,null,null,null,null,null,null,0]
["Sch IID","Segregated Acc",null,"Liabilities - After - W/O Mgmt Actions - Preferred Stocks, BSCR Rating 3",null,null,null,null,null,null,null,null,0]
["Sch IID","Segregated Acc",null,"Liabilities - After - W/O Mgmt Actions - Preferred Stocks, BSCR Rating 4",null,null,null,null,null,null,null,null,0]
["Sch IID","Segregated Acc",null,"Liabilities - After - W/O Mgmt Actions - Preferred Stocks, BSCR Rating 5",null,null,null,null,null,null,null,null,0]
["Sch IID","Segregated Acc",null,"Liabilities - After - W/O Mgmt Actions - Preferred Stocks, BSCR Rating 6",null,null,null,null,null,null,null,null,0]
["Sch IID","Segregated Acc",null,"Liabilities - After - W/O Mgmt Actions - Preferred Stocks, BSCR Rating 7",null,null,null,null,null,null,null,null,0]
["Sch IID","Segregated Acc",null,"Liabilities - After - W/O Mgmt Actions - Preferred Stocks, BSCR Rating 8",null,null,null,null,null,null,null,null,0]
["Sch IID","Segregated Acc",null,"Liabilities - After - W/O Mgmt Actions - Equity Derivatives on Type 1 Equities",null,null,null,null,null,null,null,null,0]
["Sch IID","Segregated Acc",null,"Liabilities - After - W/O Mgmt Actions - Strategic Holdings - Unlisted",null,null,null,null,null,null,null,null,0]
["Sch IID","Segregated Acc",null,"Liabilities - After - W/O Mgmt Actions - Other Equities",null,null,null,null,null,null,null,null,0]
["Sch IID","Segregated Acc",null,"Liabilities - After - W/O Mgmt Actions - Letters of Credit",null,null,null,null,null,null,null,null,0]
["Sch IID","Segregated Acc",null,"Liabilities - After - W/O Mgmt Actions - Intangible assets",null,null,null,null,null,null,null,null,0]
["Sch IID","Segregated Acc",null,"Liabilities - After - W/O Mgmt Actions - Pension Benefit Surplus",null,null,null,null,null,null,null,null,0]
["Sch IID","Segregated Acc",null,"Liabilities - After - W/O Mgmt Actions - Equity Derivatives on Type 2 Equities",null,null,null,null,null,null,null,null,0]
["Sch IID","Segregated Acc",null,"Liabilities - After - W/O Mgmt Actions - Infrastructure",null,null,null,null,null,null,null,null,0]
["Sch IID","Segregated Acc",null,"Liabilities - After - W/O Mgmt Actions - Derivatives on Infrastructure",null,null,null,null,null,null,null,null,0]
["Sch IID","Segregated Acc",null,"Liabilities - After - W/O Mgmt Actions - Equity Real Estate 1",null,null,null,null,null,null,null,null,0]
["Sch IID","Segregated Acc",null,"Liabilities - After - W/O Mgmt Actions - Equity Real Estate 2",null,null,null,null,null,null,null,null,0]
["Sch IID","Segregated Acc",null,"Liabilities - After - With Mgmt Actions - Strategic Holdings - Listed",null,null,null,null,null,null,null,null,0]
["Sch IID","Segregated Acc",null,"Liabilities - After - With Mgmt Actions - Duration Based",null,null,null,null,null,null,null,null,0]
["Sch IID","Segregated Acc",null,"Liabilities - After - With Mgmt Actions - Listed Equity Securities in Developed Markets",null,null,null,null,null,null,null,null,0]
["Sch IID","Segregated Acc",null,"Liabilities - After - With Mgmt Actions - Preferred Stocks, BSCR Rating 1",null,null,null,null,null,null,null,null,0]
["Sch IID","Segregated Acc",null,"Liabilities - After - With Mgmt Actions - Preferred Stocks, BSCR Rating 2",null,null,null,null,null,null,null,null,0]
["Sch IID","Segregated Acc",null,"Liabilities - After - With Mgmt Actions - Preferred Stocks, BSCR Rating 3",null,null,null,null,null,null,null,null,0]
["Sch IID","Segregated Acc",null,"Liabilities - After - With Mgmt Actions - Preferred Stocks, BSCR Rating 4",null,null,null,null,null,null,null,null,0]
["Sch IID","Segregated Acc",null,"Liabilities - After - With Mgmt Actions - Preferred Stocks, BSCR Rating 5",null,null,null,null,null,null,null,null,0]
["Sch IID","Segregated Acc",null,"Liabilities - After - With Mgmt Actions - Preferred Stocks, BSCR Rating 6",null,null,null,null,null,null,null,null,0]
["Sch IID","Segregated Acc",null,"Liabilities - After - With Mgmt Actions - Preferred Stocks, BSCR Rating 7",null,null,null,null,null,null,null,null,0]
["Sch IID","Segregated Acc",null,"Liabilities - After - With Mgmt Actions - Preferred Stocks, BSCR Rating 8",null,null,null,null,null,null,null,null,0]
["Sch IID","Segregated Acc",null,"Liabilities - After - With Mgmt Actions - Equity Derivatives on Type 1 Equities",null,null,null,null,null,null,null,null,0]
["Sch IID","Segregated Acc",null,"Liabilities - After - With Mgmt Actions - Strategic Holdings - Unlisted",null,null,null,null,null,null,null,null,0]
["Sch IID","Segregated Acc",null,"Liabilities - After - With Mgmt Actions - Other Equities",null,null,null,null,null,null,null,null,0]
["Sch IID","Segregated Acc",null,"Liabilities - After - With Mgmt Actions - Letters of Credit",null,null,null,null,null,null,null,null,0]
["Sch IID","Segregated Acc",null,"Liabilities - After - With Mgmt Actions - Intangible assets",null,null,null,null,null,null,null,null,0]
["Sch IID","Segregated Acc",null,"Liabilities - After - With Mgmt Actions - Pension Benefit Surplus",null,null,null,null,null,null,null,null,0]
["Sch IID","Segregated Acc",null,"Liabilities - After - With Mgmt Actions - Equity Derivatives on Type 2 Equities",null,null,null,null,null,null,null,null,0]
["Sch IID","Segregated Acc",null,"Liabilities - After - With Mgmt Actions - Infrastructure",null,null,null,null,null,null,null,null,0]
["Sch IID","Segregated Acc",null,"Liabilities - After - With Mgmt Actions - Derivatives on Infrastructure",null,null,null,null,null,null,null,null,0]
["Sch IID","Segregated Acc",null,"Liabilities - After - With Mgmt Actions - Equity Real Estate 1",null,null,null,null,null,null,null,null,0]
["Sch IID","Segregated Acc",null,"Liabilities - After - With Mgmt Actions - Equity Real Estate 2",null,null,null,null,null,null,null,null,0]
["Sch IID","Segregated Acc",null,"Credit Derivatives - Up - Before - Long-Rating 0",null,null,null,null,null,null,null,null,0]
["Sch IID","Segregated Acc",null,"Credit Derivatives - Up - Before - Long-Rating 1",null,null,null,null,null,null,null,null,0]
["Sch IID","Segregated Acc",null,"Credit Derivatives - Up - Before - Long-Rating 2",null,null,null,null,null,null,null,null,0]
["Sch IID","Segregated Acc",null,"Credit Derivatives - Up - Before - Long-Rating 3",null,null,null,null,null,null,null,null,0]
["Sch IID","Segregated Acc",null,"Credit Derivatives - Up - Before - Long-Rating 4",null,null,null,null,null,null,null,null,0]
["Sch IID","Segregated Acc",null,"Credit Derivatives - Up - Before - Long-Rating 5",null,null,null,null,null,null,null,null,0]
["Sch IID","Segregated Acc",null,"Credit Derivatives - Up - Before - Long-Rating 6",null,null,null,null,null,null,null,null,0]
["Sch IID","Segregated Acc",null,"Credit Derivatives - Up - Before - Long-Rating 7",null,null,null,null,null,null,null,null,0]
["Sch IID","Segregated Acc",null,"Credit Derivatives - Up - Before - Long-Rating 8",null,null,null,null,null,null,null,null,0]
["Sch IID","Segregated Acc",null,"Credit Derivatives - Up - After - Long- Rating 0",null,null,null,null,null,null,null,null,0]
["Sch IID","Segregated Acc",null,"Credit Derivatives - Up - After - Long- Rating 1",null,null,null,null,null,null,null,null,0]
["Sch IID","Segregated Acc",null,"Credit Derivatives - Up - After - Long- Rating 2",null,null,null,null,null,null,null,null,0]
["Sch IID","Segregated Acc",null,"Credit Derivatives - Up - After - Long- Rating 3",null,null,null,null,null,null,null,null,0]
["Sch IID","Segregated Acc",null,"Credit Derivatives - Up - After - Long- Rating 4",null,null,null,null,null,null,null,null,0]
["Sch IID","Segregated Acc",null,"Credit Derivatives - Up - After - Long- Rating 5",null,null,null,null,null,null,null,null,0]
["Sch IID","Segregated Acc",null,"Credit Derivatives - Up - After - Long- Rating 6",null,null,null,null,null,null,null,null,0]
["Sch IID","Segregated Acc",null,"Credit Derivatives - Up - After - Long- Rating 7",null,null,null,null,null,null,null,null,0]
["Sch IID","Segregated Acc",null,"Credit Derivatives - Up - After - Long- Rating 8",null,null,null,null,null,null,null,null,0]
["Sch IID","Segregated Acc",null,"Credit Derivatives - Up - Before - Short- Rating 0",null,null,null,null,null,null,null,null,0]
["Sch IID","Segregated Acc",null,"Credit Derivatives - Up - Before - Short- Rating 1",null,null,null,null,null,null,null,null,0]
["Sch IID","Segregated Acc",null,"Credit Derivatives - Up - Before - Short- Rating 2",null,null,null,null,null,null,null,null,0]
["Sch IID","Segregated Acc",null,"Credit Derivatives - Up - Before - Short- Rating 3",null,null,null,null,null,null,null,null,0]
["Sch IID","Segregated Acc",null,"Credit Derivatives - Up - Before - Short- Rating 4",null,null,null,null,null,null,null,null,0]
["Sch IID","Segregated Acc",null,"Credit Derivatives - Up - Before - Short- Rating 5",null,null,null,null,null,null,null,null,0]
["Sch IID","Segregated Acc",null,"Credit Derivatives - Up - Before - Short- Rating 6",null,null,null,null,null,null,null,null,0]
["Sch IID","Segregated Acc",null,"Credit Derivatives - Up - Before - Short- Rating 7",null,null,null,null,null,null,null,null,0]
["Sch IID","Segregated Acc",null,"Credit Derivatives - Up - Before - Short- Rating 8",null,null,null,null,null,null,null,null,0]
["Sch IID","Segregated Acc",null,"Credit Derivatives - Up - After - Short- Rating 0",null,null,null,null,null,null,null,null,0]
["Sch IID","Segregated Acc",null,"Credit Derivatives - Up - After - Short- Rating 1",null,null,null,null,null,null,null,null,0]
["Sch IID","Segregated Acc",null,"Credit Derivatives - Up - After - Short- Rating 2",null,null,null,null,null,null,null,null,0]
["Sch IID","Segregated Acc",null,"Credit Derivatives - Up - After - Short- Rating 3",null,null,null,null,null,null,null,null,0]
["Sch IID","Segregated Acc",null,"Credit Derivatives - Up - After - Short- Rating 4",null,null,null,null,null,null,null,null,0]
["Sch IID","Segregated Acc",null,"Credit Derivatives - Up - After - Short- Rating 5",null,null,null,null,null,null,null,null,0]
["Sch IID","Segregated Acc",null,"Credit Derivatives - Up - After - Short- Rating 6",null,null,null,null,null,null,null,null,0]
["Sch IID","Segregated Acc",null,"Credit Derivatives - Up - After - Short- Rating 7",null,null,null,null,null,null,null,null,0]
["Sch IID","Segregated Acc",null,"Credit Derivatives - Up - After - Short- Rating 8",null,null,null,null,null,null,null,null,0]
["Sch IID","Segregated Acc",null,"Credit Derivatives - Down - Before - Long-Rating 0",null,null,null,null,null,null,null,null,0]
["Sch IID","Segregated Acc",null,"Credit Derivatives - Down - Before - Long-Rating 1",null,null,null,null,null,null,null,null,0]
["Sch IID","Segregated Acc",null,"Credit Derivatives - Down - Before - Long-Rating 2",null,null,null,null,null,null,null,null,0]
["Sch IID","Segregated Acc",null,"Credit Derivatives - Down - Before - Long-Rating 3",null,null,null,null,null,null,null,null,0]
["Sch IID","Segregated Acc",null,"Credit Derivatives - Down - Before - Long-Rating 4",null,null,null,null,null,null,null,null,0]
["Sch IID","Segregated Acc",null,"Credit Derivatives - Down - Before - Long-Rating 5",null,null,null,null,null,null,null,null,0]
["Sch IID","Segregated Acc",null,"Credit Derivatives - Down - Before - Long-Rating 6",null,null,null,null,null,null,null,null,0]
["Sch IID","Segregated Acc",null,"Credit Derivatives - Down - Before - Long-Rating 7",null,null,null,null,null,null,null,null,0]
["Sch IID","Segregated Acc",null,"Credit Derivatives - Down - Before - Long-Rating 8",null,null,null,null,null,null,null,null,0]
["Sch IID","Segregated Acc",null,"Credit Derivatives - Down - After - Long- Rating 0",null,null,null,null,null,null,null,null,0]
["Sch IID","Segregated Acc",null,"Credit Derivatives - Down - After - Long- Rating 1",null,null,null,null,null,null,null,null,0]
["Sch IID","Segregated Acc",null,"Credit Derivatives - Down - After - Long- Rating 2",null,null,null,null,null,null,null,null,0]
["Sch IID","Segregated Acc",null,"Credit Derivatives - Down - After - Long- Rating 3",null,null,null,null,null,null,null,null,0]
["Sch IID","Segregated Acc",null,"Credit Derivatives - Down - After - Long- Rating 4",null,null,null,null,null,null,null,null,0]
["Sch IID","Segregated Acc",null,"Credit Derivatives - Down - After - Long- Rating 5",null,null,null,null,null,null,null,null,0]
["Sch IID","Segregated Acc",null,"Credit Derivatives - Down - After - Long- Rating 6",null,null,null,null,null,null,null,null,0]
["Sch IID","Segregated Acc",null,"Credit Derivatives - Down - After - Long- Rating 7",null,null,null,null,null,null,null,null,0]
["Sch IID","Segregated Acc",null,"Credit Derivatives - Down - After - Long- Rating 8",null,null,null,null,null,null,null,null,0]
["Sch IID","Segregated Acc",null,"Credit Derivatives - Down - Before - Short- Rating 0",null,null,null,null,null,null,null,null,0]
["Sch IID","Segregated Acc",null,"Credit Derivatives - Down - Before - Short- Rating 1",null,null,null,null,null,null,null,null,0]
["Sch IID","Segregated Acc",null,"Credit Derivatives - Down - Before - Short- Rating 2",null,null,null,null,null,null,null,null,0]
["Sch IID","Segregated Acc",null,"Credit Derivatives - Down - Before - Short- Rating 3",null,null,null,null,null,null,null,null,0]
["Sch IID","Segregated Acc",null,"Credit Derivatives - Down - Before - Short- Rating 4",null,null,null,null,null,null,null,null,0]
["Sch IID","Segregated Acc",null,"Credit Derivatives - Down - Before - Short- Rating 5",null,null,null,null,null,null,null,null,0]
["Sch IID","Segregated Acc",null,"Credit Derivatives - Down - Before - Short- Rating 6",null,null,null,null,null,null,null,null,0]
["Sch IID","Segregated Acc",null,"Credit Derivatives - Down - Before - Short- Rating 7",null,null,null,null,null,null,null,null,0]
["Sch IID","Segregated Acc",null,"Credit Derivatives - Down - Before - Short- Rating 8",null,null,null,null,null,null,null,null,0]
["Sch IID","Segregated Acc",null,"Credit Derivatives - Down - After - Short- Rating 0",null,null,null,null,null,null,null,null,0]
["Sch IID","Segregated Acc",null,"Credit Derivatives - Down - After - Short- Rating 1",null,null,null,null,null,null,null,null,0]
["Sch IID","Segregated Acc",null,"Credit Derivatives - Down - After - Short- Rating 2",null,null,null,null,null,null,null,null,0]
["Sch IID","Segregated Acc",null,"Credit Derivatives - Down - After - Short- Rating 3",null,null,null,null,null,null,null,null,0]
["Sch IID","Segregated Acc",null,"Credit Derivatives - Down - After - Short- Rating 4",null,null,null,null,null,null,null,null,0]
["Sch IID","Segregated Acc",null,"Credit Derivatives - Down - After - Short- Rating 5",null,null,null,null,null,null,null,null,0]
["Sch IID","Segregated Acc",null,"Credit Derivatives - Down - After - Short- Rating 6",null,null,null,null,null,null,null,null,0]
["Sch IID","Segregated Acc",null,"Credit Derivatives - Down - After - Short- Rating 7",null,null,null,null,null,null,null,null,0]
["Sch IID","Segregated Acc",null,"Credit Derivatives - Down - After - Short- Rating 8",null,null,null,null,null,null,null,null,0]
["Sch IID","Segregated Acc",null,"Counterparty Default Risk - MV of Derivatives - MV Positive - Rating 0",null,null,null,null,null,null,null,null,0]
["Sch IID","Segregated Acc",null,"Counterparty Default Risk - MV of Derivatives - MV Positive - Rating 1",null,null,null,null,null,null,null,null,0]
["Sch IID","Segregated Acc",null,"Counterparty Default Risk - MV of Derivatives - MV Positive - Rating 2",null,null,null,null,null,null,null,null,0]
["Sch IID","Segregated Acc",null,"Counterparty Default Risk - MV of Derivatives - MV Positive - Rating 3",null,null,null,null,null,null,null,null,0]
["Sch IID","Segregated Acc",null,"Counterparty Default Risk - MV of Derivatives - MV Positive - Rating 4",null,null,null,null,null,null,null,null,0]
["Sch IID","Segregated Acc",null,"Counterparty Default Risk - MV of Derivatives - MV Positive - Rating 5",null,null,null,null,null,null,null,null,0]
["Sch IID","Segregated Acc",null,"Counterparty Default Risk - MV of Derivatives - MV Positive - Rating 6",null,null,null,null,null,null,null,null,0]
["Sch IID","Segregated Acc",null,"Counterparty Default Risk - MV of Derivatives - MV Positive - Rating 7",null,null,null,null,null,null,null,null,0]
["Sch IID","Segregated Acc",null,"Counterparty Default Risk - MV of Derivatives - MV Positive - Rating 8",null,null,null,null,null,null,null,null,0]
["Sch IID","Segregated Acc",null,"Counterparty Default Risk - MV of Derivatives - MV Negative - Rating 0",null,null,null,null,null,null,null,null,0]
["Sch IID","Segregated Acc",null,"Counterparty Default Risk - MV of Derivatives - MV Negative - Rating 1",null,null,null,null,null,null,null,null,0]
["Sch IID","Segregated Acc",null,"Counterparty Default Risk - MV of Derivatives - MV Negative - Rating 2",null,null,null,null,null,null,null,null,0]
["Sch IID","Segregated Acc",null,"Counterparty Default Risk - MV of Derivatives - MV Negative - Rating 3",null,null,null,null,null,null,null,null,0]
["Sch IID","Segregated Acc",null,"Counterparty Default Risk - MV of Derivatives - MV Negative - Rating 4",null,null,null,null,null,null,null,null,0]
["Sch IID","Segregated Acc",null,"Counterparty Default Risk - MV of Derivatives - MV Negative - Rating 5",null,null,null,null,null,null,null,null,0]
["Sch IID","Segregated Acc",null,"Counterparty Default Risk - MV of Derivatives - MV Negative - Rating 6",null,null,null,null,null,null,null,null,0]
["Sch IID","Segregated Acc",null,"Counterparty Default Risk - MV of Derivatives - MV Negative - Rating 7",null,null,null,null,null,null,null,null,0]
["Sch IID","Segregated Acc",null,"Counterparty Default Risk - MV of Derivatives - MV Negative - Rating 8",null,null,null,null,null,null,null,null,0]
["Sch IID","Segregated Acc",null,"Counterparty Default Risk - MV of Collateral - Rating 0",null,null,null,null,null,null,null,null,0]
["Sch IID","Segregated Acc",null,"Counterparty Default Risk - MV of Collateral - Rating 1",null,null,null,null,null,null,null,null,0]
["Sch IID","Segregated Acc",null,"Counterparty Default Risk - MV of Collateral - Rating 2",null,null,null,null,null,null,null,null,0]
["Sch IID","Segregated Acc",null,"Counterparty Default Risk - MV of Collateral - Rating 3",null,null,null,null,null,null,null,null,0]
["Sch IID","Segregated Acc",null,"Counterparty Default Risk - MV of Collateral - Rating 4",null,null,null,null,null,null,null,null,0]
["Sch IID","Segregated Acc",null,"Counterparty Default Risk - MV of Collateral - Rating 5",null,null,null,null,null,null,null,null,0]
["Sch IID","Segregated Acc",null,"Counterparty Default Risk - MV of Collateral - Rating 6",null,null,null,null,null,null,null,null,0]
["Sch IID","Segregated Acc",null,"Counterparty Default Risk - MV of Collateral - Rating 7",null,null,null,null,null,null,null,null,0]
["Sch IID","Segregated Acc",null,"Counterparty Default Risk - MV of Collateral - Rating 8",null,null,null,null,null,null,null,null,0]
["Sch IID","Segregated Acc",null,"Cash and Cash Equivalents",null,null,null,null,null,null,null,null,0]
[]
["Sch IIE","Deposits",null,"Corp. Bonds - BSCR Rate 0",null,null,null,null,null,null,null,null,0,null,0]
["Sch IIE","Deposits",null,"Corp. Bonds - BSCR Rate 1",null,null,null,null,null,null,null,null,0,null,0]
["Sch IIE","Deposits",null,"Corp. Bonds - BSCR Rate 2",null,null,null,null,null,null,null,null,0,null,0]
["Sch IIE","Deposits",null,"Corp. Bonds - BSCR Rate 3",null,null,null,null,null,null,null,null,0,null,0]
["Sch IIE","Deposits",null,"Corp. Bonds - BSCR Rate 4",null,null,null,null,null,null,null,null,0,null,0]
["Sch IIE","Deposits",null,"Corp. Bonds - BSCR Rate 5",null,null,null,null,null,null,null,null,0,null,0]
["Sch IIE","Deposits",null,"Corp. Bonds - BSCR Rate 6",null,null,null,null,null,null,null,null,0,null,0]
["Sch IIE","Deposits",null,"Corp. Bonds - BSCR Rate 7",null,null,null,null,null,null,null,null,0,null,0]
["Sch IIE","Deposits",null,"Corp. Bonds - BSCR Rate 8",null,null,null,null,null,null,null,null,0,null,0]
["Sch IIE","Deposits",null,"Residential MBS - BSCR Rate 1",null,null,null,null,null,null,null,null,0,null,0]
["Sch IIE","Deposits",null,"Residential MBS - BSCR Rate 2",null,null,null,null,null,null,null,null,0,null,0]
["Sch IIE","Deposits",null,"Residential MBS - BSCR Rate 3",null,null,null,null,null,null,null,null,0,null,0]
["Sch IIE","Deposits",null,"Residential MBS - BSCR Rate 4",null,null,null,null,null,null,null,null,0,null,0]
["Sch IIE","Deposits",null,"Residential MBS - BSCR Rate 5",null,null,null,null,null,null,null,null,0,null,0]
["Sch IIE","Deposits",null,"Residential MBS - BSCR Rate 6",null,null,null,null,null,null,null,null,0,null,0]
["Sch IIE","Deposits",null,"Residential MBS - BSCR Rate 7",null,null,null,null,null,null,null,null,0,null,0]
["Sch IIE","Deposits",null,"Residential MBS - BSCR Rate 8",null,null,null,null,null,null,null,null,0,null,0]
["Sch IIE","Deposits",null,"Commercial MBS - BSCR Rate 1",null,null,null,null,null,null,null,null,0,null,0]
["Sch IIE","Deposits",null,"Commercial MBS - BSCR Rate 2",null,null,null,null,null,null,null,null,0,null,0]
["Sch IIE","Deposits",null,"Commercial MBS - BSCR Rate 3",null,null,null,null,null,null,null,null,0,null,0]
["Sch IIE","Deposits",null,"Commercial MBS - BSCR Rate 4",null,null,null,null,null,null,null,null,0,null,0]
["Sch IIE","Deposits",null,"Commercial MBS - BSCR Rate 5",null,null,null,null,null,null,null,null,0,null,0]
["Sch IIE","Deposits",null,"Commercial MBS - BSCR Rate 6",null,null,null,null,null,null,null,null,0,null,0]
["Sch IIE","Deposits",null,"Commercial MBS - BSCR Rate 7",null,null,null,null,null,null,null,null,0,null,0]
["Sch IIE","Deposits",null,"Commercial MBS - BSCR Rate 8",null,null,null,null,null,null,null,null,0,null,0]
["Sch IIE","Deposits",null,"Bonds Mutual Fund - BSCR Rate 0",null,null,null,null,null,null,null,null,0,null,0]
["Sch IIE","Deposits",null,"Bonds Mutual Fund - BSCR Rate 1",null,null,null,null,null,null,null,null,0,null,0]
["Sch IIE","Deposits",null,"Bonds Mutual Fund - BSCR Rate 2",null,null,null,null,null,null,null,null,0,null,0]
["Sch IIE","Deposits",null,"Bonds Mutual Fund - BSCR Rate 3",null,null,null,null,null,null,null,null,0,null,0]
["Sch IIE","Deposits",null,"Bonds Mutual Fund - BSCR Rate 4",null,null,null,null,null,null,null,null,0,null,0]
["Sch IIE","Deposits",null,"Bonds Mutual Fund - BSCR Rate 5",null,null,null,null,null,null,null,null,0,null,0]
["Sch IIE","Deposits",null,"Bonds Mutual Fund - BSCR Rate 6",null,null,null,null,null,null,null,null,0,null,0]
["Sch IIE","Deposits",null,"Bonds Mutual Fund - BSCR Rate 7",null,null,null,null,null,null,null,null,0,null,0]
["Sch IIE","Deposits",null,"Bonds Mutual Fund - BSCR Rate 8",null,null,null,null,null,null,null,null,0,null,0]
["Sch IIE","Deposits",null,"Mortgage Loans - Insured",null,null,null,null,null,null,null,null,0,null,0]
["Sch IIE","Deposits",null,"Mortgage Loans - Other Commercial",null,null,null,null,null,null,null,null,0,null,0]
["Sch IIE","Deposits",null,"Mortgage Loans - Other Residential",null,null,null,null,null,null,null,null,0,null,0]
["Sch IIE","Deposits",null,"Mortgage Loans - Not Good Stand.",null,null,null,null,null,null,null,null,0,null,0]
["Sch IIE","Deposits",null,"Long Positions - Before - Strategic Holdings - Listed",null,null,null,null,null,null,null,null,0]
["Sch IIE","Deposits",null,"Long Positions - Before - Duration Based",null,null,null,null,null,null,null,null,0]
["Sch IIE","Deposits",null,"Long Positions - Before - Listed Equity Securities in Developed Markets",null,null,null,null,null,null,null,null,0]
["Sch IIE","Deposits",null,"Long Positions - Before - Preferred Stocks, BSCR Rating 1",null,null,null,null,null,null,null,null,0]
["Sch IIE","Deposits",null,"Long Positions - Before - Preferred Stocks, BSCR Rating 2",null,null,null,null,null,null,null,null,0]
["Sch IIE","Deposits",null,"Long Positions - Before - Preferred Stocks, BSCR Rating 3",null,null,null,null,null,null,null,null,0]
["Sch IIE","Deposits",null,"Long Positions - Before - Preferred Stocks, BSCR Rating 4",null,null,null,null,null,null,null,null,0]
["Sch IIE","Deposits",null,"Long Positions - Before - Preferred Stocks, BSCR Rating 5",null,null,null,null,null,null,null,null,0]
["Sch IIE","Deposits",null,"Long Positions - Before - Preferred Stocks, BSCR Rating 6",null,null,null,null,null,null,null,null,0]
["Sch IIE","Deposits",null,"Long Positions - Before - Preferred Stocks, BSCR Rating 7",null,null,null,null,null,null,null,null,0]
["Sch IIE","Deposits",null,"Long Positions - Before - Preferred Stocks, BSCR Rating 8",null,null,null,null,null,null,null,null,0]
["Sch IIE","Deposits",null,"Long Positions - Before - Equity Derivatives on Type 1 Equities",null,null,null,null,null,null,null,null,0]
["Sch IIE","Deposits",null,"Long Positions - Before - Strategic Holdings - Unlisted",null,null,null,null,null,null,null,null,0]
["Sch IIE","Deposits",null,"Long Positions - Before - Other Equities",null,null,null,null,null,null,null,null,0]
["Sch IIE","Deposits",null,"Long Positions - Before - Letters of Credit",null,null,null,null,null,null,null,null,0]
["Sch IIE","Deposits",null,"Long Positions - Before - Intangible assets",null,null,null,null,null,null,null,null,0]
["Sch IIE","Deposits",null,"Long Positions - Before - Pension Benefit Surplus",null,null,null,null,null,null,null,null,0]
["Sch IIE","Deposits",null,"Long Positions - Before - Equity Derivatives on Type 2 Equities",null,null,null,null,null,null,null,null,0]
["Sch IIE","Deposits",null,"Long Positions - Before - Infrastructure",null,null,null,null,null,null,null,null,0]
["Sch IIE","Deposits",null,"Long Positions - Before - Derivatives on Infrastructure",null,null,null,null,null,null,null,null,0]
["Sch IIE","Deposits",null,"Long Positions - Before - Equity Real Estate 1",null,null,null,null,null,null,null,null,0]
["Sch IIE","Deposits",null,"Long Positions - Before - Equity Real Estate 2",null,null,null,null,null,null,null,null,0]
["Sch IIE","Deposits",null,"Long Positions - After - Strategic Holdings - Listed",null,null,null,null,null,null,null,null,0]
["Sch IIE","Deposits",null,"Long Positions - After - Duration Based",null,null,null,null,null,null,null,null,0]
["Sch IIE","Deposits",null,"Long Positions - After - Listed Equity Securities in Developed Markets",null,null,null,null,null,null,null,null,0]
["Sch IIE","Deposits",null,"Long Positions - After - Preferred Stocks, BSCR Rating 1",null,null,null,null,null,null,null,null,0]
["Sch IIE","Deposits",null,"Long Positions - After - Preferred Stocks, BSCR Rating 2",null,null,null,null,null,null,null,null,0]
["Sch IIE","Deposits",null,"Long Positions - After - Preferred Stocks, BSCR Rating 3",null,null,null,null,null,null,null,null,0]
["Sch IIE","Deposits",null,"Long Positions - After - Preferred Stocks, BSCR Rating 4",null,null,null,null,null,null,null,null,0]
["Sch IIE","Deposits",null,"Long Positions - After - Preferred Stocks, BSCR Rating 5",null,null,null,null,null,null,null,null,0]
["Sch IIE","Deposits",null,"Long Positions - After - Preferred Stocks, BSCR Rating 6",null,null,null,null,null,null,null,null,0]
["Sch IIE","Deposits",null,"Long Positions - After - Preferred Stocks, BSCR Rating 7",null,null,null,null,null,null,null,null,0]
["Sch IIE","Deposits",null,"Long Positions - After - Preferred Stocks, BSCR Rating 8",null,null,null,null,null,null,null,null,0]
["Sch IIE","Deposits",null,"Long Positions - After - Equity Derivatives on Type 1 Equities",null,null,null,null,null,null,null,null,0]
["Sch IIE","Deposits",null,"Long Positions - After - Strategic Holdings - Unlisted",null,null,null,null,null,null,null,null,0]
["Sch IIE","Deposits",null,"Long Positions - After - Other Equities",null,null,null,null,null,null,null,null,0]
["Sch IIE","Deposits",null,"Long Positions - After - Letters of Credit",null,null,null,null,null,null,null,null,0]
["Sch IIE","Deposits",null,"Long Positions - After - Intangible assets",null,null,null,null,null,null,null,null,0]
["Sch IIE","Deposits",null,"Long Positions - After - Pension Benefit Surplus",null,null,null,null,null,null,null,null,0]
["Sch IIE","Deposits",null,"Long Positions - After - Equity Derivatives on Type 2 Equities",null,null,null,null,null,null,null,null,0]
["Sch IIE","Deposits",null,"Long Positions - After - Infrastructure",null,null,null,null,null,null,null,null,0]
["Sch IIE","Deposits",null,"Long Positions - After - Derivatives on Infrastructure",null,null,null,null,null,null,null,null,0]
["Sch IIE","Deposits",null,"Long Positions - After - Equity Real Estate 1",null,null,null,null,null,null,null,null,0]
["Sch IIE","Deposits",null,"Long Positions - After - Equity Real Estate 2",null,null,null,null,null,null,null,null,0]
["Sch IIE","Deposits",null,"Short - Before - Qualified Assets - Strategic Holdings - Listed",null,null,null,null,null,null,null,null,0]
["Sch IIE","Deposits",null,"Short - Before - Qualified Assets - Duration Based",null,null,null,null,null,null,null,null,0]
["Sch IIE","Deposits",null,"Short - Before - Qualified Assets - Listed Equity Securities in Developed Markets",null,null,null,null,null,null,null,null,0]
["Sch IIE","Deposits",null,"Short - Before - Qualified Assets - Preferred Stocks, BSCR Rating 1",null,null,null,null,null,null,null,null,0]
["Sch IIE","Deposits",null,"Short - Before - Qualified Assets - Preferred Stocks, BSCR Rating 2",null,null,null,null,null,null,null,null,0]
["Sch IIE","Deposits",null,"Short - Before - Qualified Assets - Preferred Stocks, BSCR Rating 3",null,null,null,null,null,null,null,null,0]
["Sch IIE","Deposits",null,"Short - Before - Qualified Assets - Preferred Stocks, BSCR Rating 4",null,null,null,null,null,null,null,null,0]
["Sch IIE","Deposits",null,"Short - Before - Qualified Assets - Preferred Stocks, BSCR Rating 5",null,null,null,null,null,null,null,null,0]
["Sch IIE","Deposits",null,"Short - Before - Qualified Assets - Preferred Stocks, BSCR Rating 6",null,null,null,null,null,null,null,null,0]
["Sch IIE","Deposits",null,"Short - Before - Qualified Assets - Preferred Stocks, BSCR Rating 7",null,null,null,null,null,null,null,null,0]
["Sch IIE","Deposits",null,"Short - Before - Qualified Assets - Preferred Stocks, BSCR Rating 8",null,null,null,null,null,null,null,null,0]
["Sch IIE","Deposits",null,"Short - Before - Qualified Assets - Equity Derivatives on Type 1 Equities",null,null,null,null,null,null,null,null,0]
["Sch IIE","Deposits",null,"Short - Before - Qualified Assets - Strategic Holdings - Unlisted",null,null,null,null,null,null,null,null,0]
["Sch IIE","Deposits",null,"Short - Before - Qualified Assets - Other Equities",null,null,null,null,null,null,null,null,0]
["Sch IIE","Deposits",null,"Short - Before - Qualified Assets - Letters of Credit",null,null,null,null,null,null,null,null,0]
["Sch IIE","Deposits",null,"Short - Before - Qualified Assets - Intangible assets",null,null,null,null,null,null,null,null,0]
["Sch IIE","Deposits",null,"Short - Before - Qualified Assets - Pension Benefit Surplus",null,null,null,null,null,null,null,null,0]
["Sch IIE","Deposits",null,"Short - Before - Qualified Assets - Equity Derivatives on Type 2 Equities",null,null,null,null,null,null,null,null,0]
["Sch IIE","Deposits",null,"Short - Before - Qualified Assets - Infrastructure",null,null,null,null,null,null,null,null,0]
["Sch IIE","Deposits",null,"Short - Before - Qualified Assets - Derivatives on Infrastructure",null,null,null,null,null,null,null,null,0]
["Sch IIE","Deposits",null,"Short - Before - Qualified Assets - Equity Real Estate 1",null,null,null,null,null,null,null,null,0]
["Sch IIE","Deposits",null,"Short - Before - Qualified Assets - Equity Real Estate 2",null,null,null,null,null,null,null,null,0]
["Sch IIE","Deposits",null,"Short - After - Qualified Assets - Strategic Holdings - Listed",null,null,null,null,null,null,null,null,0]
["Sch IIE","Deposits",null,"Short - After - Qualified Assets - Duration Based",null,null,null,null,null,null,null,null,0]
["Sch IIE","Deposits",null,"Short - After - Qualified Assets - Listed Equity Securities in Developed Markets",null,null,null,null,null,null,null,null,0]
["Sch IIE","Deposits",null,"Short - After - Qualified Assets - Preferred Stocks, BSCR Rating 1",null,null,null,null,null,null,null,null,0]
["Sch IIE","Deposits",null,"Short - After - Qualified Assets - Preferred Stocks, BSCR Rating 2",null,null,null,null,null,null,null,null,0]
["Sch IIE","Deposits",null,"Short - After - Qualified Assets - Preferred Stocks, BSCR Rating 3",null,null,null,null,null,null,null,null,0]
["Sch IIE","Deposits",null,"Short - After - Qualified Assets - Preferred Stocks, BSCR Rating 4",null,null,null,null,null,null,null,null,0]
["Sch IIE","Deposits",null,"Short - After - Qualified Assets - Preferred Stocks, BSCR Rating 5",null,null,null,null,null,null,null,null,0]
["Sch IIE","Deposits",null,"Short - After - Qualified Assets - Preferred Stocks, BSCR Rating 6",null,null,null,null,null,null,null,null,0]
["Sch IIE","Deposits",null,"Short - After - Qualified Assets - Preferred Stocks, BSCR Rating 7",null,null,null,null,null,null,null,null,0]
["Sch IIE","Deposits",null,"Short - After - Qualified Assets - Preferred Stocks, BSCR Rating 8",null,null,null,null,null,null,null,null,0]
["Sch IIE","Deposits",null,"Short - After - Qualified Assets - Equity Derivatives on Type 1 Equities",null,null,null,null,null,null,null,null,0]
["Sch IIE","Deposits",null,"Short - After - Qualified Assets - Strategic Holdings - Unlisted",null,null,null,null,null,null,null,null,0]
["Sch IIE","Deposits",null,"Short - After - Qualified Assets - Other Equities",null,null,null,null,null,null,null,null,0]
["Sch IIE","Deposits",null,"Short - After - Qualified Assets - Letters of Credit",null,null,null,null,null,null,null,null,0]
["Sch IIE","Deposits",null,"Short - After - Qualified Assets - Intangible assets",null,null,null,null,null,null,null,null,0]
["Sch IIE","Deposits",null,"Short - After - Qualified Assets - Pension Benefit Surplus",null,null,null,null,null,null,null,null,0]
["Sch IIE","Deposits",null,"Short - After - Qualified Assets - Equity Derivatives on Type 2 Equities",null,null,null,null,null,null,null,null,0]
["Sch IIE","Deposits",null,"Short - After - Qualified Assets - Infrastructure",null,null,null,null,null,null,null,null,0]
["Sch IIE","Deposits",null,"Short - After - Qualified Assets - Derivatives on Infrastructure",null,null,null,null,null,null,null,null,0]
["Sch IIE","Deposits",null,"Short - After - Qualified Assets - Equity Real Estate 1",null,null,null,null,null,null,null,null,0]
["Sch IIE","Deposits",null,"Short - After - Qualified Assets - Equity Real Estate 2",null,null,null,null,null,null,null,null,0]
["Sch IIE","Deposits",null,"Short - Before - UnQualified Assets - Strategic Holdings - Listed",null,null,null,null,null,null,null,null,0]
["Sch IIE","Deposits",null,"Short - Before - UnQualified Assets - Duration Based",null,null,null,null,null,null,null,null,0]
["Sch IIE","Deposits",null,"Short - Before - UnQualified Assets - Listed Equity Securities in Developed Markets",null,null,null,null,null,null,null,null,0]
["Sch IIE","Deposits",null,"Short - Before - UnQualified Assets - Preferred Stocks, BSCR Rating 1",null,null,null,null,null,null,null,null,0]
["Sch IIE","Deposits",null,"Short - Before - UnQualified Assets - Preferred Stocks, BSCR Rating 2",null,null,null,null,null,null,null,null,0]
["Sch IIE","Deposits",null,"Short - Before - UnQualified Assets - Preferred Stocks, BSCR Rating 3",null,null,null,null,null,null,null,null,0]
["Sch IIE","Deposits",null,"Short - Before - UnQualified Assets - Preferred Stocks, BSCR Rating 4",null,null,null,null,null,null,null,null,0]
["Sch IIE","Deposits",null,"Short - Before - UnQualified Assets - Preferred Stocks, BSCR Rating 5",null,null,null,null,null,null,null,null,0]
["Sch IIE","Deposits",null,"Short - Before - UnQualified Assets - Preferred Stocks, BSCR Rating 6",null,null,null,null,null,null,null,null,0]
["Sch IIE","Deposits",null,"Short - Before - UnQualified Assets - Preferred Stocks, BSCR Rating 7",null,null,null,null,null,null,null,null,0]
["Sch IIE","Deposits",null,"Short - Before - UnQualified Assets - Preferred Stocks, BSCR Rating 8",null,null,null,null,null,null,null,null,0]
["Sch IIE","Deposits",null,"Short - Before - UnQualified Assets - Equity Derivatives on Type 1 Equities",null,null,null,null,null,null,null,null,0]
["Sch IIE","Deposits",null,"Short - Before - UnQualified Assets - Strategic Holdings - Unlisted",null,null,null,null,null,null,null,null,0]
["Sch IIE","Deposits",null,"Short - Before - UnQualified Assets - Other Equities",null,null,null,null,null,null,null,null,0]
["Sch IIE","Deposits",null,"Short - Before - UnQualified Assets - Letters of Credit",null,null,null,null,null,null,null,null,0]
["Sch IIE","Deposits",null,"Short - Before - UnQualified Assets - Intangible assets",null,null,null,null,null,null,null,null,0]
["Sch IIE","Deposits",null,"Short - Before - UnQualified Assets - Pension Benefit Surplus",null,null,null,null,null,null,null,null,0]
["Sch IIE","Deposits",null,"Short - Before - UnQualified Assets - Equity Derivatives on Type 2 Equities",null,null,null,null,null,null,null,null,0]
["Sch IIE","Deposits",null,"Short - Before - UnQualified Assets - Infrastructure",null,null,null,null,null,null,null,null,0]
["Sch IIE","Deposits",null,"Short - Before - UnQualified Assets - Derivatives on Infrastructure",null,null,null,null,null,null,null,null,0]
["Sch IIE","Deposits",null,"Short - Before - UnQualified Assets - Equity Real Estate 1",null,null,null,null,null,null,null,null,0]
["Sch IIE","Deposits",null,"Short - Before - UnQualified Assets - Equity Real Estate 2",null,null,null,null,null,null,null,null,0]
["Sch IIE","Deposits",null,"Short - After - UnQualified Assets - Strategic Holdings - Listed",null,null,null,null,null,null,null,null,0]
["Sch IIE","Deposits",null,"Short - After - UnQualified Assets - Duration Based",null,null,null,null,null,null,null,null,0]
["Sch IIE","Deposits",null,"Short - After - UnQualified Assets - Listed Equity Securities in Developed Markets",null,null,null,null,null,null,null,null,0]
["Sch IIE","Deposits",null,"Short - After - UnQualified Assets - Preferred Stocks, BSCR Rating 1",null,null,null,null,null,null,null,null,0]
["Sch IIE","Deposits",null,"Short - After - UnQualified Assets - Preferred Stocks, BSCR Rating 2",null,null,null,null,null,null,null,null,0]
["Sch IIE","Deposits",null,"Short - After - UnQualified Assets - Preferred Stocks, BSCR Rating 3",null,null,null,null,null,null,null,null,0]
["Sch IIE","Deposits",null,"Short - After - UnQualified Assets - Preferred Stocks, BSCR Rating 4",null,null,null,null,null,null,null,null,0]
["Sch IIE","Deposits",null,"Short - After - UnQualified Assets - Preferred Stocks, BSCR Rating 5",null,null,null,null,null,null,null,null,0]
["Sch IIE","Deposits",null,"Short - After - UnQualified Assets - Preferred Stocks, BSCR Rating 6",null,null,null,null,null,null,null,null,0]
["Sch IIE","Deposits",null,"Short - After - UnQualified Assets - Preferred Stocks, BSCR Rating 7",null,null,null,null,null,null,null,null,0]
["Sch IIE","Deposits",null,"Short - After - UnQualified Assets - Preferred Stocks, BSCR Rating 8",null,null,null,null,null,null,null,null,0]
["Sch IIE","Deposits",null,"Short - After - UnQualified Assets - Equity Derivatives on Type 1 Equities",null,null,null,null,null,null,null,null,0]
["Sch IIE","Deposits",null,"Short - After - UnQualified Assets - Strategic Holdings - Unlisted",null,null,null,null,null,null,null,null,0]
["Sch IIE","Deposits",null,"Short - After - UnQualified Assets - Other Equities",null,null,null,null,null,null,null,null,0]
["Sch IIE","Deposits",null,"Short - After - UnQualified Assets - Letters of Credit",null,null,null,null,null,null,null,null,0]
["Sch IIE","Deposits",null,"Short - After - UnQualified Assets - Intangible assets",null,null,null,null,null,null,null,null,0]
["Sch IIE","Deposits",null,"Short - After - UnQualified Assets - Pension Benefit Surplus",null,null,null,null,null,null,null,null,0]
["Sch IIE","Deposits",null,"Short - After - UnQualified Assets - Equity Derivatives on Type 2 Equities",null,null,null,null,null,null,null,null,0]
["Sch IIE","Deposits",null,"Short - After - UnQualified Assets - Infrastructure",null,null,null,null,null,null,null,null,0]
["Sch IIE","Deposits",null,"Short - After - UnQualified Assets - Derivatives on Infrastructure",null,null,null,null,null,null,null,null,0]
["Sch IIE","Deposits",null,"Short - After - UnQualified Assets - Equity Real Estate 1",null,null,null,null,null,null,null,null,0]
["Sch IIE","Deposits",null,"Short - After - UnQualified Assets - Equity Real Estate 2",null,null,null,null,null,null,null,null,0]
["Sch IIE","Deposits",null,"Liabilities - Before - W/O Mgmt Actions - Strategic Holdings - Listed",null,null,null,null,null,null,null,null,0]
["Sch IIE","Deposits",null,"Liabilities - Before - W/O Mgmt Actions - Duration Based",null,null,null,null,null,null,null,null,0]
["Sch IIE","Deposits",null,"Liabilities - Before - W/O Mgmt Actions - Listed Equity Securities in Developed Markets",null,null,null,null,null,null,null,null,0]
["Sch IIE","Deposits",null,"Liabilities - Before - W/O Mgmt Actions - Preferred Stocks, BSCR Rating 1",null,null,null,null,null,null,null,null,0]
["Sch IIE","Deposits",null,"Liabilities - Before - W/O Mgmt Actions - Preferred Stocks, BSCR Rating 2",null,null,null,null,null,null,null,null,0]
["Sch IIE","Deposits",null,"Liabilities - Before - W/O Mgmt Actions - Preferred Stocks, BSCR Rating 3",null,null,null,null,null,null,null,null,0]
["Sch IIE","Deposits",null,"Liabilities - Before - W/O Mgmt Actions - Preferred Stocks, BSCR Rating 4",null,null,null,null,null,null,null,null,0]
["Sch IIE","Deposits",null,"Liabilities - Before - W/O Mgmt Actions - Preferred Stocks, BSCR Rating 5",null,null,null,null,null,null,null,null,0]
["Sch IIE","Deposits",null,"Liabilities - Before - W/O Mgmt Actions - Preferred Stocks, BSCR Rating 6",null,null,null,null,null,null,null,null,0]
["Sch IIE","Deposits",null,"Liabilities - Before - W/O Mgmt Actions - Preferred Stocks, BSCR Rating 7",null,null,null,null,null,null,null,null,0]
["Sch IIE","Deposits",null,"Liabilities - Before - W/O Mgmt Actions - Preferred Stocks, BSCR Rating 8",null,null,null,null,null,null,null,null,0]
["Sch IIE","Deposits",null,"Liabilities - Before - W/O Mgmt Actions - Equity Derivatives on Type 1 Equities",null,null,null,null,null,null,null,null,0]
["Sch IIE","Deposits",null,"Liabilities - Before - W/O Mgmt Actions - Strategic Holdings - Unlisted",null,null,null,null,null,null,null,null,0]
["Sch IIE","Deposits",null,"Liabilities - Before - W/O Mgmt Actions - Other Equities",null,null,null,null,null,null,null,null,0]
["Sch IIE","Deposits",null,"Liabilities - Before - W/O Mgmt Actions - Letters of Credit",null,null,null,null,null,null,null,null,0]
["Sch IIE","Deposits",null,"Liabilities - Before - W/O Mgmt Actions - Intangible assets",null,null,null,null,null,null,null,null,0]
["Sch IIE","Deposits",null,"Liabilities - Before - W/O Mgmt Actions - Pension Benefit Surplus",null,null,null,null,null,null,null,null,0]
["Sch IIE","Deposits",null,"Liabilities - Before - W/O Mgmt Actions - Equity Derivatives on Type 2 Equities",null,null,null,null,null,null,null,null,0]
["Sch IIE","Deposits",null,"Liabilities - Before - W/O Mgmt Actions - Infrastructure",null,null,null,null,null,null,null,null,0]
["Sch IIE","Deposits",null,"Liabilities - Before - W/O Mgmt Actions - Derivatives on Infrastructure",null,null,null,null,null,null,null,null,0]
["Sch IIE","Deposits",null,"Liabilities - Before - W/O Mgmt Actions - Equity Real Estate 1",null,null,null,null,null,null,null,null,0]
["Sch IIE","Deposits",null,"Liabilities - Before - W/O Mgmt Actions - Equity Real Estate 2",null,null,null,null,null,null,null,null,0]
["Sch IIE","Deposits",null,"Liabilities - After - W/O Mgmt Actions - Strategic Holdings - Listed",null,null,null,null,null,null,null,null,0]
["Sch IIE","Deposits",null,"Liabilities - After - W/O Mgmt Actions - Duration Based",null,null,null,null,null,null,null,null,0]
["Sch IIE","Deposits",null,"Liabilities - After - W/O Mgmt Actions - Listed Equity Securities in Developed Markets",null,null,null,null,null,null,null,null,0]
["Sch IIE","Deposits",null,"Liabilities - After - W/O Mgmt Actions - Preferred Stocks, BSCR Rating 1",null,null,null,null,null,null,null,null,0]
["Sch IIE","Deposits",null,"Liabilities - After - W/O Mgmt Actions - Preferred Stocks, BSCR Rating 2",null,null,null,null,null,null,null,null,0]
["Sch IIE","Deposits",null,"Liabilities - After - W/O Mgmt Actions - Preferred Stocks, BSCR Rating 3",null,null,null,null,null,null,null,null,0]
["Sch IIE","Deposits",null,"Liabilities - After - W/O Mgmt Actions - Preferred Stocks, BSCR Rating 4",null,null,null,null,null,null,null,null,0]
["Sch IIE","Deposits",null,"Liabilities - After - W/O Mgmt Actions - Preferred Stocks, BSCR Rating 5",null,null,null,null,null,null,null,null,0]
["Sch IIE","Deposits",null,"Liabilities - After - W/O Mgmt Actions - Preferred Stocks, BSCR Rating 6",null,null,null,null,null,null,null,null,0]
["Sch IIE","Deposits",null,"Liabilities - After - W/O Mgmt Actions - Preferred Stocks, BSCR Rating 7",null,null,null,null,null,null,null,null,0]
["Sch IIE","Deposits",null,"Liabilities - After - W/O Mgmt Actions - Preferred Stocks, BSCR Rating 8",null,null,null,null,null,null,null,null,0]
["Sch IIE","Deposits",null,"Liabilities - After - W/O Mgmt Actions - Equity Derivatives on Type 1 Equities",null,null,null,null,null,null,null,null,0]
["Sch IIE","Deposits",null,"Liabilities - After - W/O Mgmt Actions - Strategic Holdings - Unlisted",null,null,null,null,null,null,null,null,0]
["Sch IIE","Deposits",null,"Liabilities - After - W/O Mgmt Actions - Other Equities",null,null,null,null,null,null,null,null,0]
["Sch IIE","Deposits",null,"Liabilities - After - W/O Mgmt Actions - Letters of Credit",null,null,null,null,null,null,null,null,0]
["Sch IIE","Deposits",null,"Liabilities - After - W/O Mgmt Actions - Intangible assets",null,null,null,null,null,null,null,null,0]
["Sch IIE","Deposits",null,"Liabilities - After - W/O Mgmt Actions - Pension Benefit Surplus",null,null,null,null,null,null,null,null,0]
["Sch IIE","Deposits",null,"Liabilities - After - W/O Mgmt Actions - Equity Derivatives on Type 2 Equities",null,null,null,null,null,null,null,null,0]
["Sch IIE","Deposits",null,"Liabilities - After - W/O Mgmt Actions - Infrastructure",null,null,null,null,null,null,null,null,0]
["Sch IIE","Deposits",null,"Liabilities - After - W/O Mgmt Actions - Derivatives on Infrastructure",null,null,null,null,null,null,null,null,0]
["Sch IIE","Deposits",null,"Liabilities - After - W/O Mgmt Actions - Equity Real Estate 1",null,null,null,null,null,null,null,null,0]
["Sch IIE","Deposits",null,"Liabilities - After - W/O Mgmt Actions - Equity Real Estate 2",null,null,null,null,null,null,null,null,0]
["Sch IIE","Deposits",null,"Liabilities - After - With Mgmt Actions - Strategic Holdings - Listed",null,null,null,null,null,null,null,null,0]
["Sch IIE","Deposits",null,"Liabilities - After - With Mgmt Actions - Duration Based",null,null,null,null,null,null,null,null,0]
["Sch IIE","Deposits",null,"Liabilities - After - With Mgmt Actions - Listed Equity Securities in Developed Markets",null,null,null,null,null,null,null,null,0]
["Sch IIE","Deposits",null,"Liabilities - After - With Mgmt Actions - Preferred Stocks, BSCR Rating 1",null,null,null,null,null,null,null,null,0]
["Sch IIE","Deposits",null,"Liabilities - After - With Mgmt Actions - Preferred Stocks, BSCR Rating 2",null,null,null,null,null,null,null,null,0]
["Sch IIE","Deposits",null,"Liabilities - After - With Mgmt Actions - Preferred Stocks, BSCR Rating 3",null,null,null,null,null,null,null,null,0]
["Sch IIE","Deposits",null,"Liabilities - After - With Mgmt Actions - Preferred Stocks, BSCR Rating 4",null,null,null,null,null,null,null,null,0]
["Sch IIE","Deposits",null,"Liabilities - After - With Mgmt Actions - Preferred Stocks, BSCR Rating 5",null,null,null,null,null,null,null,null,0]
["Sch IIE","Deposits",null,"Liabilities - After - With Mgmt Actions - Preferred Stocks, BSCR Rating 6",null,null,null,null,null,null,null,null,0]
["Sch IIE","Deposits",null,"Liabilities - After - With Mgmt Actions - Preferred Stocks, BSCR Rating 7",null,null,null,null,null,null,null,null,0]
["Sch IIE","Deposits",null,"Liabilities - After - With Mgmt Actions - Preferred Stocks, BSCR Rating 8",null,null,null,null,null,null,null,null,0]
["Sch IIE","Deposits",null,"Liabilities - After - With Mgmt Actions - Equity Derivatives on Type 1 Equities",null,null,null,null,null,null,null,null,0]
["Sch IIE","Deposits",null,"Liabilities - After - With Mgmt Actions - Strategic Holdings - Unlisted",null,null,null,null,null,null,null,null,0]
["Sch IIE","Deposits",null,"Liabilities - After - With Mgmt Actions - Other Equities",null,null,null,null,null,null,null,null,0]
["Sch IIE","Deposits",null,"Liabilities - After - With Mgmt Actions - Letters of Credit",null,null,null,null,null,null,null,null,0]
["Sch IIE","Deposits",null,"Liabilities - After - With Mgmt Actions - Intangible assets",null,null,null,null,null,null,null,null,0]
["Sch IIE","Deposits",null,"Liabilities - After - With Mgmt Actions - Pension Benefit Surplus",null,null,null,null,null,null,null,null,0]
["Sch IIE","Deposits",null,"Liabilities - After - With Mgmt Actions - Equity Derivatives on Type 2 Equities",null,null,null,null,null,null,null,null,0]
["Sch IIE","Deposits",null,"Liabilities - After - With Mgmt Actions - Infrastructure",null,null,null,null,null,null,null,null,0]
["Sch IIE","Deposits",null,"Liabilities - After - With Mgmt Actions - Derivatives on Infrastructure",null,null,null,null,null,null,null,null,0]
["Sch IIE","Deposits",null,"Liabilities - After - With Mgmt Actions - Equity Real Estate 1",null,null,null,null,null,null,null,null,0]
["Sch IIE","Deposits",null,"Liabilities - After - With Mgmt Actions - Equity Real Estate 2",null,null,null,null,null,null,null,null,0]
["Sch IIE","Deposits",null,"Credit Derivatives - Up - Before - Long-Rating 0",null,null,null,null,null,null,null,null,0]
["Sch IIE","Deposits",null,"Credit Derivatives - Up - Before - Long-Rating 1",null,null,null,null,null,null,null,null,0]
["Sch IIE","Deposits",null,"Credit Derivatives - Up - Before - Long-Rating 2",null,null,null,null,null,null,null,null,0]
["Sch IIE","Deposits",null,"Credit Derivatives - Up - Before - Long-Rating 3",null,null,null,null,null,null,null,null,0]
["Sch IIE","Deposits",null,"Credit Derivatives - Up - Before - Long-Rating 4",null,null,null,null,null,null,null,null,0]
["Sch IIE","Deposits",null,"Credit Derivatives - Up - Before - Long-Rating 5",null,null,null,null,null,null,null,null,0]
["Sch IIE","Deposits",null,"Credit Derivatives - Up - Before - Long-Rating 6",null,null,null,null,null,null,null,null,0]
["Sch IIE","Deposits",null,"Credit Derivatives - Up - Before - Long-Rating 7",null,null,null,null,null,null,null,null,0]
["Sch IIE","Deposits",null,"Credit Derivatives - Up - Before - Long-Rating 8",null,null,null,null,null,null,null,null,0]
["Sch IIE","Deposits",null,"Credit Derivatives - Up - After - Long- Rating 0",null,null,null,null,null,null,null,null,0]
["Sch IIE","Deposits",null,"Credit Derivatives - Up - After - Long- Rating 1",null,null,null,null,null,null,null,null,0]
["Sch IIE","Deposits",null,"Credit Derivatives - Up - After - Long- Rating 2",null,null,null,null,null,null,null,null,0]
["Sch IIE","Deposits",null,"Credit Derivatives - Up - After - Long- Rating 3",null,null,null,null,null,null,null,null,0]
["Sch IIE","Deposits",null,"Credit Derivatives - Up - After - Long- Rating 4",null,null,null,null,null,null,null,null,0]
["Sch IIE","Deposits",null,"Credit Derivatives - Up - After - Long- Rating 5",null,null,null,null,null,null,null,null,0]
["Sch IIE","Deposits",null,"Credit Derivatives - Up - After - Long- Rating 6",null,null,null,null,null,null,null,null,0]
["Sch IIE","Deposits",null,"Credit Derivatives - Up - After - Long- Rating 7",null,null,null,null,null,null,null,null,0]
["Sch IIE","Deposits",null,"Credit Derivatives - Up - After - Long- Rating 8",null,null,null,null,null,null,null,null,0]
["Sch IIE","Deposits",null,"Credit Derivatives - Up - Before - Short- Rating 0",null,null,null,null,null,null,null,null,0]
["Sch IIE","Deposits",null,"Credit Derivatives - Up - Before - Short- Rating 1",null,null,null,null,null,null,null,null,0]
["Sch IIE","Deposits",null,"Credit Derivatives - Up - Before - Short- Rating 2",null,null,null,null,null,null,null,null,0]
["Sch IIE","Deposits",null,"Credit Derivatives - Up - Before - Short- Rating 3",null,null,null,null,null,null,null,null,0]
["Sch IIE","Deposits",null,"Credit Derivatives - Up - Before - Short- Rating 4",null,null,null,null,null,null,null,null,0]
["Sch IIE","Deposits",null,"Credit Derivatives - Up - Before - Short- Rating 5",null,null,null,null,null,null,null,null,0]
["Sch IIE","Deposits",null,"Credit Derivatives - Up - Before - Short- Rating 6",null,null,null,null,null,null,null,null,0]
["Sch IIE","Deposits",null,"Credit Derivatives - Up - Before - Short- Rating 7",null,null,null,null,null,null,null,null,0]
["Sch IIE","Deposits",null,"Credit Derivatives - Up - Before - Short- Rating 8",null,null,null,null,null,null,null,null,0]
["Sch IIE","Deposits",null,"Credit Derivatives - Up - After - Short- Rating 0",null,null,null,null,null,null,null,null,0]
["Sch IIE","Deposits",null,"Credit Derivatives - Up - After - Short- Rating 1",null,null,null,null,null,null,null,null,0]
["Sch IIE","Deposits",null,"Credit Derivatives - Up - After - Short- Rating 2",null,null,null,null,null,null,null,null,0]
["Sch IIE","Deposits",null,"Credit Derivatives - Up - After - Short- Rating 3",null,null,null,null,null,null,null,null,0]
["Sch IIE","Deposits",null,"Credit Derivatives - Up - After - Short- Rating 4",null,null,null,null,null,null,null,null,0]
["Sch IIE","Deposits",null,"Credit Derivatives - Up - After - Short- Rating 5",null,null,null,null,null,null,null,null,0]
["Sch IIE","Deposits",null,"Credit Derivatives - Up - After - Short- Rating 6",null,null,null,null,null,null,null,null,0]
["Sch IIE","Deposits",null,"Credit Derivatives - Up - After - Short- Rating 7",null,null,null,null,null,null,null,null,0]
["Sch IIE","Deposits",null,"Credit Derivatives - Up - After - Short- Rating 8",null,null,null,null,null,null,null,null,0]
["Sch IIE","Deposits",null,"Credit Derivatives - Down - Before - Long-Rating 0",null,null,null,null,null,null,null,null,0]
["Sch IIE","Deposits",null,"Credit Derivatives - Down - Before - Long-Rating 1",null,null,null,null,null,null,null,null,0]
["Sch IIE","Deposits",null,"Credit Derivatives - Down - Before - Long-Rating 2",null,null,null,null,null,null,null,null,0]
["Sch IIE","Deposits",null,"Credit Derivatives - Down - Before - Long-Rating 3",null,null,null,null,null,null,null,null,0]
["Sch IIE","Deposits",null,"Credit Derivatives - Down - Before - Long-Rating 4",null,null,null,null,null,null,null,null,0]
["Sch IIE","Deposits",null,"Credit Derivatives - Down - Before - Long-Rating 5",null,null,null,null,null,null,null,null,0]
["Sch IIE","Deposits",null,"Credit Derivatives - Down - Before - Long-Rating 6",null,null,null,null,null,null,null,null,0]
["Sch IIE","Deposits",null,"Credit Derivatives - Down - Before - Long-Rating 7",null,null,null,null,null,null,null,null,0]
["Sch IIE","Deposits",null,"Credit Derivatives - Down - Before - Long-Rating 8",null,null,null,null,null,null,null,null,0]
["Sch IIE","Deposits",null,"Credit Derivatives - Down - After - Long- Rating 0",null,null,null,null,null,null,null,null,0]
["Sch IIE","Deposits",null,"Credit Derivatives - Down - After - Long- Rating 1",null,null,null,null,null,null,null,null,0]
["Sch IIE","Deposits",null,"Credit Derivatives - Down - After - Long- Rating 2",null,null,null,null,null,null,null,null,0]
["Sch IIE","Deposits",null,"Credit Derivatives - Down - After - Long- Rating 3",null,null,null,null,null,null,null,null,0]
["Sch IIE","Deposits",null,"Credit Derivatives - Down - After - Long- Rating 4",null,null,null,null,null,null,null,null,0]
["Sch IIE","Deposits",null,"Credit Derivatives - Down - After - Long- Rating 5",null,null,null,null,null,null,null,null,0]
["Sch IIE","Deposits",null,"Credit Derivatives - Down - After - Long- Rating 6",null,null,null,null,null,null,null,null,0]
["Sch IIE","Deposits",null,"Credit Derivatives - Down - After - Long- Rating 7",null,null,null,null,null,null,null,null,0]
["Sch IIE","Deposits",null,"Credit Derivatives - Down - After - Long- Rating 8",null,null,null,null,null,null,null,null,0]
["Sch IIE","Deposits",null,"Credit Derivatives - Down - Before - Short- Rating 0",null,null,null,null,null,null,null,null,0]
["Sch IIE","Deposits",null,"Credit Derivatives - Down - Before - Short- Rating 1",null,null,null,null,null,null,null,null,0]
["Sch IIE","Deposits",null,"Credit Derivatives - Down - Before - Short- Rating 2",null,null,null,null,null,null,null,null,0]
["Sch IIE","Deposits",null,"Credit Derivatives - Down - Before - Short- Rating 3",null,null,null,null,null,null,null,null,0]
["Sch IIE","Deposits",null,"Credit Derivatives - Down - Before - Short- Rating 4",null,null,null,null,null,null,null,null,0]
["Sch IIE","Deposits",null,"Credit Derivatives - Down - Before - Short- Rating 5",null,null,null,null,null,null,null,null,0]
["Sch IIE","Deposits",null,"Credit Derivatives - Down - Before - Short- Rating 6",null,null,null,null,null,null,null,null,0]
["Sch IIE","Deposits",null,"Credit Derivatives - Down - Before - Short- Rating 7",null,null,null,null,null,null,null,null,0]
["Sch IIE","Deposits",null,"Credit Derivatives - Down - Before - Short- Rating 8",null,null,null,null,null,null,null,null,0]
["Sch IIE","Deposits",null,"Credit Derivatives - Down - After - Short- Rating 0",null,null,null,null,null,null,null,null,0]
["Sch IIE","Deposits",null,"Credit Derivatives - Down - After - Short- Rating 1",null,null,null,null,null,null,null,null,0]
["Sch IIE","Deposits",null,"Credit Derivatives - Down - After - Short- Rating 2",null,null,null,null,null,null,null,null,0]
["Sch IIE","Deposits",null,"Credit Derivatives - Down - After - Short- Rating 3",null,null,null,null,null,null,null,null,0]
["Sch IIE","Deposits",null,"Credit Derivatives - Down - After - Short- Rating 4",null,null,null,null,null,null,null,null,0]
["Sch IIE","Deposits",null,"Credit Derivatives - Down - After - Short- Rating 5",null,null,null,null,null,null,null,null,0]
["Sch IIE","Deposits",null,"Credit Derivatives - Down - After - Short- Rating 6",null,null,null,null,null,null,null,null,0]
["Sch IIE","Deposits",null,"Credit Derivatives - Down - After - Short- Rating 7",null,null,null,null,null,null,null,null,0]
["Sch IIE","Deposits",null,"Credit Derivatives - Down - After - Short- Rating 8",null,null,null,null,null,null,null,null,0]
["Sch IIE","Deposits",null,"Counterparty Default Risk - MV of Derivatives - MV Positive - Rating 0",null,null,null,null,null,null,null,null,0]
["Sch IIE","Deposits",null,"Counterparty Default Risk - MV of Derivatives - MV Positive - Rating 1",null,null,null,null,null,null,null,null,0]
["Sch IIE","Deposits",null,"Counterparty Default Risk - MV of Derivatives - MV Positive - Rating 2",null,null,null,null,null,null,null,null,0]
["Sch IIE","Deposits",null,"Counterparty Default Risk - MV of Derivatives - MV Positive - Rating 3",null,null,null,null,null,null,null,null,0]
["Sch IIE","Deposits",null,"Counterparty Default Risk - MV of Derivatives - MV Positive - Rating 4",null,null,null,null,null,null,null,null,0]
["Sch IIE","Deposits",null,"Counterparty Default Risk - MV of Derivatives - MV Positive - Rating 5",null,null,null,null,null,null,null,null,0]
["Sch IIE","Deposits",null,"Counterparty Default Risk - MV of Derivatives - MV Positive - Rating 6",null,null,null,null,null,null,null,null,0]
["Sch IIE","Deposits",null,"Counterparty Default Risk - MV of Derivatives - MV Positive - Rating 7",null,null,null,null,null,null,null,null,0]
["Sch IIE","Deposits",null,"Counterparty Default Risk - MV of Derivatives - MV Positive - Rating 8",null,null,null,null,null,null,null,null,0]
["Sch IIE","Deposits",null,"Counterparty Default Risk - MV of Derivatives - MV Negative - Rating 0",null,null,null,null,null,null,null,null,0]
["Sch IIE","Deposits",null,"Counterparty Default Risk - MV of Derivatives - MV Negative - Rating 1",null,null,null,null,null,null,null,null,0]
["Sch IIE","Deposits",null,"Counterparty Default Risk - MV of Derivatives - MV Negative - Rating 2",null,null,null,null,null,null,null,null,0]
["Sch IIE","Deposits",null,"Counterparty Default Risk - MV of Derivatives - MV Negative - Rating 3",null,null,null,null,null,null,null,null,0]
["Sch IIE","Deposits",null,"Counterparty Default Risk - MV of Derivatives - MV Negative - Rating 4",null,null,null,null,null,null,null,null,0]
["Sch IIE","Deposits",null,"Counterparty Default Risk - MV of Derivatives - MV Negative - Rating 5",null,null,null,null,null,null,null,null,0]
["Sch IIE","Deposits",null,"Counterparty Default Risk - MV of Derivatives - MV Negative - Rating 6",null,null,null,null,null,null,null,null,0]
["Sch IIE","Deposits",null,"Counterparty Default Risk - MV of Derivatives - MV Negative - Rating 7",null,null,null,null,null,null,null,null,0]
["Sch IIE","Deposits",null,"Counterparty Default Risk - MV of Derivatives - MV Negative - Rating 8",null,null,null,null,null,null,null,null,0]
["Sch IIE","Deposits",null,"Counterparty Default Risk - MV of Collateral - Rating 0",null,null,null,null,null,null,null,null,0]
["Sch IIE","Deposits",null,"Counterparty Default Risk - MV of Collateral - Rating 1",null,null,null,null,null,null,null,null,0]
["Sch IIE","Deposits",null,"Counterparty Default Risk - MV of Collateral - Rating 2",null,null,null,null,null,null,null,null,0]
["Sch IIE","Deposits",null,"Counterparty Default Risk - MV of Collateral - Rating 3",null,null,null,null,null,null,null,null,0]
["Sch IIE","Deposits",null,"Counterparty Default Risk - MV of Collateral - Rating 4",null,null,null,null,null,null,null,null,0]
["Sch IIE","Deposits",null,"Counterparty Default Risk - MV of Collateral - Rating 5",null,null,null,null,null,null,null,null,0]
["Sch IIE","Deposits",null,"Counterparty Default Risk - MV of Collateral - Rating 6",null,null,null,null,null,null,null,null,0]
["Sch IIE","Deposits",null,"Counterparty Default Risk - MV of Collateral - Rating 7",null,null,null,null,null,null,null,null,0]
["Sch IIE","Deposits",null,"Counterparty Default Risk - MV of Collateral - Rating 8",null,null,null,null,null,null,null,null,0]
["Sch IIE","Deposits",null,"Cash and Cash Equivalents",null,null,null,null,null,null,null,null,0]
[]
["Sch IIF","Other Sundry",null,"Corp. Bonds - BSCR Rate 0",null,null,null,null,null,null,null,null,0,null,0]
["Sch IIF","Other Sundry",null,"Corp. Bonds - BSCR Rate 1",null,null,null,null,null,null,null,null,0,null,0]
["Sch IIF","Other Sundry",null,"Corp. Bonds - BSCR Rate 2",null,null,null,null,null,null,null,null,0,null,0]
["Sch IIF","Other Sundry",null,"Corp. Bonds - BSCR Rate 3",null,null,null,null,null,null,null,null,0,null,0]
["Sch IIF","Other Sundry",null,"Corp. Bonds - BSCR Rate 4",null,null,null,null,null,null,null,null,0,null,0]
["Sch IIF","Other Sundry",null,"Corp. Bonds - BSCR Rate 5",null,null,null,null,null,null,null,null,0,null,0]
["Sch IIF","Other Sundry",null,"Corp. Bonds - BSCR Rate 6",null,null,null,null,null,null,null,null,0,null,0]
["Sch IIF","Other Sundry",null,"Corp. Bonds - BSCR Rate 7",null,null,null,null,null,null,null,null,0,null,0]
["Sch IIF","Other Sundry",null,"Corp. Bonds - BSCR Rate 8",null,null,null,null,null,null,null,null,0,null,0]
["Sch IIF","Other Sundry",null,"Residential MBS - BSCR Rate 1",null,null,null,null,null,null,null,null,0,null,0]
["Sch IIF","Other Sundry",null,"Residential MBS - BSCR Rate 2",null,null,null,null,null,null,null,null,0,null,0]
["Sch IIF","Other Sundry",null,"Residential MBS - BSCR Rate 3",null,null,null,null,null,null,null,null,0,null,0]
["Sch IIF","Other Sundry",null,"Residential MBS - BSCR Rate 4",null,null,null,null,null,null,null,null,0,null,0]
["Sch IIF","Other Sundry",null,"Residential MBS - BSCR Rate 5",null,null,null,null,null,null,null,null,0,null,0]
["Sch IIF","Other Sundry",null,"Residential MBS - BSCR Rate 6",null,null,null,null,null,null,null,null,0,null,0]
["Sch IIF","Other Sundry",null,"Residential MBS - BSCR Rate 7",null,null,null,null,null,null,null,null,0,null,0]
["Sch IIF","Other Sundry",null,"Residential MBS - BSCR Rate 8",null,null,null,null,null,null,null,null,0,null,0]
["Sch IIF","Other Sundry",null,"Commercial MBS - BSCR Rate 1",null,null,null,null,null,null,null,null,0,null,0]
["Sch IIF","Other Sundry",null,"Commercial MBS - BSCR Rate 2",null,null,null,null,null,null,null,null,0,null,0]
["Sch IIF","Other Sundry",null,"Commercial MBS - BSCR Rate 3",null,null,null,null,null,null,null,null,0,null,0]
["Sch IIF","Other Sundry",null,"Commercial MBS - BSCR Rate 4",null,null,null,null,null,null,null,null,0,null,0]
["Sch IIF","Other Sundry",null,"Commercial MBS - BSCR Rate 5",null,null,null,null,null,null,null,null,0,null,0]
["Sch IIF","Other Sundry",null,"Commercial MBS - BSCR Rate 6",null,null,null,null,null,null,null,null,0,null,0]
["Sch IIF","Other Sundry",null,"Commercial MBS - BSCR Rate 7",null,null,null,null,null,null,null,null,0,null,0]
["Sch IIF","Other Sundry",null,"Commercial MBS - BSCR Rate 8",null,null,null,null,null,null,null,null,0,null,0]
["Sch IIF","Other Sundry",null,"Bonds Mutual Fund - BSCR Rate 0",null,null,null,null,null,null,null,null,0,null,0]
["Sch IIF","Other Sundry",null,"Bonds Mutual Fund - BSCR Rate 1",null,null,null,null,null,null,null,null,0,null,0]
["Sch IIF","Other Sundry",null,"Bonds Mutual Fund - BSCR Rate 2",null,null,null,null,null,null,null,null,0,null,0]
["Sch IIF","Other Sundry",null,"Bonds Mutual Fund - BSCR Rate 3",null,null,null,null,null,null,null,null,0,null,0]
["Sch IIF","Other Sundry",null,"Bonds Mutual Fund - BSCR Rate 4",null,null,null,null,null,null,null,null,0,null,0]
["Sch IIF","Other Sundry",null,"Bonds Mutual Fund - BSCR Rate 5",null,null,null,null,null,null,null,null,0,null,0]
["Sch IIF","Other Sundry",null,"Bonds Mutual Fund - BSCR Rate 6",null,null,null,null,null,null,null,null,0,null,0]
["Sch IIF","Other Sundry",null,"Bonds Mutual Fund - BSCR Rate 7",null,null,null,null,null,null,null,null,0,null,0]
["Sch IIF","Other Sundry",null,"Bonds Mutual Fund - BSCR Rate 8",null,null,null,null,null,null,null,null,0,null,0]
["Sch IIF","Other Sundry",null,"Mortgage Loans - Insured",null,null,null,null,null,null,null,null,0,null,0]
["Sch IIF","Other Sundry",null,"Mortgage Loans - Other Commercial",null,null,null,null,null,null,null,null,0,null,0]
["Sch IIF","Other Sundry",null,"Mortgage Loans - Other Residential",null,null,null,null,null,null,null,null,0,null,0]
["Sch IIF","Other Sundry",null,"Mortgage Loans - Not Good Stand.",null,null,null,null,null,null,null,null,0,null,0]
["Sch IIF","Other Sundry",null,"Long Positions - Before - Strategic Holdings - Listed",null,null,null,null,null,null,null,null,0]
["Sch IIF","Other Sundry",null,"Long Positions - Before - Duration Based",null,null,null,null,null,null,null,null,0]
["Sch IIF","Other Sundry",null,"Long Positions - Before - Listed Equity Securities in Developed Markets",null,null,null,null,null,null,null,null,0]
["Sch IIF","Other Sundry",null,"Long Positions - Before - Preferred Stocks, BSCR Rating 1",null,null,null,null,null,null,null,null,0]
["Sch IIF","Other Sundry",null,"Long Positions - Before - Preferred Stocks, BSCR Rating 2",null,null,null,null,null,null,null,null,0]
["Sch IIF","Other Sundry",null,"Long Positions - Before - Preferred Stocks, BSCR Rating 3",null,null,null,null,null,null,null,null,0]
["Sch IIF","Other Sundry",null,"Long Positions - Before - Preferred Stocks, BSCR Rating 4",null,null,null,null,null,null,null,null,0]
["Sch IIF","Other Sundry",null,"Long Positions - Before - Preferred Stocks, BSCR Rating 5",null,null,null,null,null,null,null,null,0]
["Sch IIF","Other Sundry",null,"Long Positions - Before - Preferred Stocks, BSCR Rating 6",null,null,null,null,null,null,null,null,0]
["Sch IIF","Other Sundry",null,"Long Positions - Before - Preferred Stocks, BSCR Rating 7",null,null,null,null,null,null,null,null,0]
["Sch IIF","Other Sundry",null,"Long Positions - Before - Preferred Stocks, BSCR Rating 8",null,null,null,null,null,null,null,null,0]
["Sch IIF","Other Sundry",null,"Long Positions - Before - Equity Derivatives on Type 1 Equities",null,null,null,null,null,null,null,null,0]
["Sch IIF","Other Sundry",null,"Long Positions - Before - Strategic Holdings - Unlisted",null,null,null,null,null,null,null,null,0]
["Sch IIF","Other Sundry",null,"Long Positions - Before - Other Equities",null,null,null,null,null,null,null,null,0]
["Sch IIF","Other Sundry",null,"Long Positions - Before - Letters of Credit",null,null,null,null,null,null,null,null,0]
["Sch IIF","Other Sundry",null,"Long Positions - Before - Intangible assets",null,null,null,null,null,null,null,null,0]
["Sch IIF","Other Sundry",null,"Long Positions - Before - Pension Benefit Surplus",null,null,null,null,null,null,null,null,0]
["Sch IIF","Other Sundry",null,"Long Positions - Before - Equity Derivatives on Type 2 Equities",null,null,null,null,null,null,null,null,0]
["Sch IIF","Other Sundry",null,"Long Positions - Before - Infrastructure",null,null,null,null,null,null,null,null,0]
["Sch IIF","Other Sundry",null,"Long Positions - Before - Derivatives on Infrastructure",null,null,null,null,null,null,null,null,0]
["Sch IIF","Other Sundry",null,"Long Positions - Before - Equity Real Estate 1",null,null,null,null,null,null,null,null,0]
["Sch IIF","Other Sundry",null,"Long Positions - Before - Equity Real Estate 2",null,null,null,null,null,null,null,null,0]
["Sch IIF","Other Sundry",null,"Long Positions - After - Strategic Holdings - Listed",null,null,null,null,null,null,null,null,0]
["Sch IIF","Other Sundry",null,"Long Positions - After - Duration Based",null,null,null,null,null,null,null,null,0]
["Sch IIF","Other Sundry",null,"Long Positions - After - Listed Equity Securities in Developed Markets",null,null,null,null,null,null,null,null,0]
["Sch IIF","Other Sundry",null,"Long Positions - After - Preferred Stocks, BSCR Rating 1",null,null,null,null,null,null,null,null,0]
["Sch IIF","Other Sundry",null,"Long Positions - After - Preferred Stocks, BSCR Rating 2",null,null,null,null,null,null,null,null,0]
["Sch IIF","Other Sundry",null,"Long Positions - After - Preferred Stocks, BSCR Rating 3",null,null,null,null,null,null,null,null,0]
["Sch IIF","Other Sundry",null,"Long Positions - After - Preferred Stocks, BSCR Rating 4",null,null,null,null,null,null,null,null,0]
["Sch IIF","Other Sundry",null,"Long Positions - After - Preferred Stocks, BSCR Rating 5",null,null,null,null,null,null,null,null,0]
["Sch IIF","Other Sundry",null,"Long Positions - After - Preferred Stocks, BSCR Rating 6",null,null,null,null,null,null,null,null,0]
["Sch IIF","Other Sundry",null,"Long Positions - After - Preferred Stocks, BSCR Rating 7",null,null,null,null,null,null,null,null,0]
["Sch IIF","Other Sundry",null,"Long Positions - After - Preferred Stocks, BSCR Rating 8",null,null,null,null,null,null,null,null,0]
["Sch IIF","Other Sundry",null,"Long Positions - After - Equity Derivatives on Type 1 Equities",null,null,null,null,null,null,null,null,0]
["Sch IIF","Other Sundry",null,"Long Positions - After - Strategic Holdings - Unlisted",null,null,null,null,null,null,null,null,0]
["Sch IIF","Other Sundry",null,"Long Positions - After - Other Equities",null,null,null,null,null,null,null,null,0]
["Sch IIF","Other Sundry",null,"Long Positions - After - Letters of Credit",null,null,null,null,null,null,null,null,0]
["Sch IIF","Other Sundry",null,"Long Positions - After - Intangible assets",null,null,null,null,null,null,null,null,0]
["Sch IIF","Other Sundry",null,"Long Positions - After - Pension Benefit Surplus",null,null,null,null,null,null,null,null,0]
["Sch IIF","Other Sundry",null,"Long Positions - After - Equity Derivatives on Type 2 Equities",null,null,null,null,null,null,null,null,0]
["Sch IIF","Other Sundry",null,"Long Positions - After - Infrastructure",null,null,null,null,null,null,null,null,0]
["Sch IIF","Other Sundry",null,"Long Positions - After - Derivatives on Infrastructure",null,null,null,null,null,null,null,null,0]
["Sch IIF","Other Sundry",null,"Long Positions - After - Equity Real Estate 1",null,null,null,null,null,null,null,null,0]
["Sch IIF","Other Sundry",null,"Long Positions - After - Equity Real Estate 2",null,null,null,null,null,null,null,null,0]
["Sch IIF","Other Sundry",null,"Short - Before - Qualified Assets - Strategic Holdings - Listed",null,null,null,null,null,null,null,null,0]
["Sch IIF","Other Sundry",null,"Short - Before - Qualified Assets - Duration Based",null,null,null,null,null,null,null,null,0]
["Sch IIF","Other Sundry",null,"Short - Before - Qualified Assets - Listed Equity Securities in Developed Markets",null,null,null,null,null,null,null,null,0]
["Sch IIF","Other Sundry",null,"Short - Before - Qualified Assets - Preferred Stocks, BSCR Rating 1",null,null,null,null,null,null,null,null,0]
["Sch IIF","Other Sundry",null,"Short - Before - Qualified Assets - Preferred Stocks, BSCR Rating 2",null,null,null,null,null,null,null,null,0]
["Sch IIF","Other Sundry",null,"Short - Before - Qualified Assets - Preferred Stocks, BSCR Rating 3",null,null,null,null,null,null,null,null,0]
["Sch IIF","Other Sundry",null,"Short - Before - Qualified Assets - Preferred Stocks, BSCR Rating 4",null,null,null,null,null,null,null,null,0]
["Sch IIF","Other Sundry",null,"Short - Before - Qualified Assets - Preferred Stocks, BSCR Rating 5",null,null,null,null,null,null,null,null,0]
["Sch IIF","Other Sundry",null,"Short - Before - Qualified Assets - Preferred Stocks, BSCR Rating 6",null,null,null,null,null,null,null,null,0]
["Sch IIF","Other Sundry",null,"Short - Before - Qualified Assets - Preferred Stocks, BSCR Rating 7",null,null,null,null,null,null,null,null,0]
["Sch IIF","Other Sundry",null,"Short - Before - Qualified Assets - Preferred Stocks, BSCR Rating 8",null,null,null,null,null,null,null,null,0]
["Sch IIF","Other Sundry",null,"Short - Before - Qualified Assets - Equity Derivatives on Type 1 Equities",null,null,null,null,null,null,null,null,0]
["Sch IIF","Other Sundry",null,"Short - Before - Qualified Assets - Strategic Holdings - Unlisted",null,null,null,null,null,null,null,null,0]
["Sch IIF","Other Sundry",null,"Short - Before - Qualified Assets - Other Equities",null,null,null,null,null,null,null,null,0]
["Sch IIF","Other Sundry",null,"Short - Before - Qualified Assets - Letters of Credit",null,null,null,null,null,null,null,null,0]
["Sch IIF","Other Sundry",null,"Short - Before - Qualified Assets - Intangible assets",null,null,null,null,null,null,null,null,0]
["Sch IIF","Other Sundry",null,"Short - Before - Qualified Assets - Pension Benefit Surplus",null,null,null,null,null,null,null,null,0]
["Sch IIF","Other Sundry",null,"Short - Before - Qualified Assets - Equity Derivatives on Type 2 Equities",null,null,null,null,null,null,null,null,0]
["Sch IIF","Other Sundry",null,"Short - Before - Qualified Assets - Infrastructure",null,null,null,null,null,null,null,null,0]
["Sch IIF","Other Sundry",null,"Short - Before - Qualified Assets - Derivatives on Infrastructure",null,null,null,null,null,null,null,null,0]
["Sch IIF","Other Sundry",null,"Short - Before - Qualified Assets - Equity Real Estate 1",null,null,null,null,null,null,null,null,0]
["Sch IIF","Other Sundry",null,"Short - Before - Qualified Assets - Equity Real Estate 2",null,null,null,null,null,null,null,null,0]
["Sch IIF","Other Sundry",null,"Short - After - Qualified Assets - Strategic Holdings - Listed",null,null,null,null,null,null,null,null,0]
["Sch IIF","Other Sundry",null,"Short - After - Qualified Assets - Duration Based",null,null,null,null,null,null,null,null,0]
["Sch IIF","Other Sundry",null,"Short - After - Qualified Assets - Listed Equity Securities in Developed Markets",null,null,null,null,null,null,null,null,0]
["Sch IIF","Other Sundry",null,"Short - After - Qualified Assets - Preferred Stocks, BSCR Rating 1",null,null,null,null,null,null,null,null,0]
["Sch IIF","Other Sundry",null,"Short - After - Qualified Assets - Preferred Stocks, BSCR Rating 2",null,null,null,null,null,null,null,null,0]
["Sch IIF","Other Sundry",null,"Short - After - Qualified Assets - Preferred Stocks, BSCR Rating 3",null,null,null,null,null,null,null,null,0]
["Sch IIF","Other Sundry",null,"Short - After - Qualified Assets - Preferred Stocks, BSCR Rating 4",null,null,null,null,null,null,null,null,0]
["Sch IIF","Other Sundry",null,"Short - After - Qualified Assets - Preferred Stocks, BSCR Rating 5",null,null,null,null,null,null,null,null,0]
["Sch IIF","Other Sundry",null,"Short - After - Qualified Assets - Preferred Stocks, BSCR Rating 6",null,null,null,null,null,null,null,null,0]
["Sch IIF","Other Sundry",null,"Short - After - Qualified Assets - Preferred Stocks, BSCR Rating 7",null,null,null,null,null,null,null,null,0]
["Sch IIF","Other Sundry",null,"Short - After - Qualified Assets - Preferred Stocks, BSCR Rating 8",null,null,null,null,null,null,null,null,0]
["Sch IIF","Other Sundry",null,"Short - After - Qualified Assets - Equity Derivatives on Type 1 Equities",null,null,null,null,null,null,null,null,0]
["Sch IIF","Other Sundry",null,"Short - After - Qualified Assets - Strategic Holdings - Unlisted",null,null,null,null,null,null,null,null,0]
["Sch IIF","Other Sundry",null,"Short - After - Qualified Assets - Other Equities",null,null,null,null,null,null,null,null,0]
["Sch IIF","Other Sundry",null,"Short - After - Qualified Assets - Letters of Credit",null,null,null,null,null,null,null,null,0]
["Sch IIF","Other Sundry",null,"Short - After - Qualified Assets - Intangible assets",null,null,null,null,null,null,null,null,0]
["Sch IIF","Other Sundry",null,"Short - After - Qualified Assets - Pension Benefit Surplus",null,null,null,null,null,null,null,null,0]
["Sch IIF","Other Sundry",null,"Short - After - Qualified Assets - Equity Derivatives on Type 2 Equities",null,null,null,null,null,null,null,null,0]
["Sch IIF","Other Sundry",null,"Short - After - Qualified Assets - Infrastructure",null,null,null,null,null,null,null,null,0]
["Sch IIF","Other Sundry",null,"Short - After - Qualified Assets - Derivatives on Infrastructure",null,null,null,null,null,null,null,null,0]
["Sch IIF","Other Sundry",null,"Short - After - Qualified Assets - Equity Real Estate 1",null,null,null,null,null,null,null,null,0]
["Sch IIF","Other Sundry",null,"Short - After - Qualified Assets - Equity Real Estate 2",null,null,null,null,null,null,null,null,0]
["Sch IIF","Other Sundry",null,"Short - Before - UnQualified Assets - Strategic Holdings - Listed",null,null,null,null,null,null,null,null,0]
["Sch IIF","Other Sundry",null,"Short - Before - UnQualified Assets - Duration Based",null,null,null,null,null,null,null,null,0]
["Sch IIF","Other Sundry",null,"Short - Before - UnQualified Assets - Listed Equity Securities in Developed Markets",null,null,null,null,null,null,null,null,0]
["Sch IIF","Other Sundry",null,"Short - Before - UnQualified Assets - Preferred Stocks, BSCR Rating 1",null,null,null,null,null,null,null,null,0]
["Sch IIF","Other Sundry",null,"Short - Before - UnQualified Assets - Preferred Stocks, BSCR Rating 2",null,null,null,null,null,null,null,null,0]
["Sch IIF","Other Sundry",null,"Short - Before - UnQualified Assets - Preferred Stocks, BSCR Rating 3",null,null,null,null,null,null,null,null,0]
["Sch IIF","Other Sundry",null,"Short - Before - UnQualified Assets - Preferred Stocks, BSCR Rating 4",null,null,null,null,null,null,null,null,0]
["Sch IIF","Other Sundry",null,"Short - Before - UnQualified Assets - Preferred Stocks, BSCR Rating 5",null,null,null,null,null,null,null,null,0]
["Sch IIF","Other Sundry",null,"Short - Before - UnQualified Assets - Preferred Stocks, BSCR Rating 6",null,null,null,null,null,null,null,null,0]
["Sch IIF","Other Sundry",null,"Short - Before - UnQualified Assets - Preferred Stocks, BSCR Rating 7",null,null,null,null,null,null,null,null,0]
["Sch IIF","Other Sundry",null,"Short - Before - UnQualified Assets - Preferred Stocks, BSCR Rating 8",null,null,null,null,null,null,null,null,0]
["Sch IIF","Other Sundry",null,"Short - Before - UnQualified Assets - Equity Derivatives on Type 1 Equities",null,null,null,null,null,null,null,null,0]
["Sch IIF","Other Sundry",null,"Short - Before - UnQualified Assets - Strategic Holdings - Unlisted",null,null,null,null,null,null,null,null,0]
["Sch IIF","Other Sundry",null,"Short - Before - UnQualified Assets - Other Equities",null,null,null,null,null,null,null,null,0]
["Sch IIF","Other Sundry",null,"Short - Before - UnQualified Assets - Letters of Credit",null,null,null,null,null,null,null,null,0]
["Sch IIF","Other Sundry",null,"Short - Before - UnQualified Assets - Intangible assets",null,null,null,null,null,null,null,null,0]
["Sch IIF","Other Sundry",null,"Short - Before - UnQualified Assets - Pension Benefit Surplus",null,null,null,null,null,null,null,null,0]
["Sch IIF","Other Sundry",null,"Short - Before - UnQualified Assets - Equity Derivatives on Type 2 Equities",null,null,null,null,null,null,null,null,0]
["Sch IIF","Other Sundry",null,"Short - Before - UnQualified Assets - Infrastructure",null,null,null,null,null,null,null,null,0]
["Sch IIF","Other Sundry",null,"Short - Before - UnQualified Assets - Derivatives on Infrastructure",null,null,null,null,null,null,null,null,0]
["Sch IIF","Other Sundry",null,"Short - Before - UnQualified Assets - Equity Real Estate 1",null,null,null,null,null,null,null,null,0]
["Sch IIF","Other Sundry",null,"Short - Before - UnQualified Assets - Equity Real Estate 2",null,null,null,null,null,null,null,null,0]
["Sch IIF","Other Sundry",null,"Short - After - UnQualified Assets - Strategic Holdings - Listed",null,null,null,null,null,null,null,null,0]
["Sch IIF","Other Sundry",null,"Short - After - UnQualified Assets - Duration Based",null,null,null,null,null,null,null,null,0]
["Sch IIF","Other Sundry",null,"Short - After - UnQualified Assets - Listed Equity Securities in Developed Markets",null,null,null,null,null,null,null,null,0]
["Sch IIF","Other Sundry",null,"Short - After - UnQualified Assets - Preferred Stocks, BSCR Rating 1",null,null,null,null,null,null,null,null,0]
["Sch IIF","Other Sundry",null,"Short - After - UnQualified Assets - Preferred Stocks, BSCR Rating 2",null,null,null,null,null,null,null,null,0]
["Sch IIF","Other Sundry",null,"Short - After - UnQualified Assets - Preferred Stocks, BSCR Rating 3",null,null,null,null,null,null,null,null,0]
["Sch IIF","Other Sundry",null,"Short - After - UnQualified Assets - Preferred Stocks, BSCR Rating 4",null,null,null,null,null,null,null,null,0]
["Sch IIF","Other Sundry",null,"Short - After - UnQualified Assets - Preferred Stocks, BSCR Rating 5",null,null,null,null,null,null,null,null,0]
["Sch IIF","Other Sundry",null,"Short - After - UnQualified Assets - Preferred Stocks, BSCR Rating 6",null,null,null,null,null,null,null,null,0]
["Sch IIF","Other Sundry",null,"Short - After - UnQualified Assets - Preferred Stocks, BSCR Rating 7",null,null,null,null,null,null,null,null,0]
["Sch IIF","Other Sundry",null,"Short - After - UnQualified Assets - Preferred Stocks, BSCR Rating 8",null,null,null,null,null,null,null,null,0]
["Sch IIF","Other Sundry",null,"Short - After - UnQualified Assets - Equity Derivatives on Type 1 Equities",null,null,null,null,null,null,null,null,0]
["Sch IIF","Other Sundry",null,"Short - After - UnQualified Assets - Strategic Holdings - Unlisted",null,null,null,null,null,null,null,null,0]
["Sch IIF","Other Sundry",null,"Short - After - UnQualified Assets - Other Equities",null,null,null,null,null,null,null,null,0]
["Sch IIF","Other Sundry",null,"Short - After - UnQualified Assets - Letters of Credit",null,null,null,null,null,null,null,null,0]
["Sch IIF","Other Sundry",null,"Short - After - UnQualified Assets - Intangible assets",null,null,null,null,null,null,null,null,0]
["Sch IIF","Other Sundry",null,"Short - After - UnQualified Assets - Pension Benefit Surplus",null,null,null,null,null,null,null,null,0]
["Sch IIF","Other Sundry",null,"Short - After - UnQualified Assets - Equity Derivatives on Type 2 Equities",null,null,null,null,null,null,null,null,0]
["Sch IIF","Other Sundry",null,"Short - After - UnQualified Assets - Infrastructure",null,null,null,null,null,null,null,null,0]
["Sch IIF","Other Sundry",null,"Short - After - UnQualified Assets - Derivatives on Infrastructure",null,null,null,null,null,null,null,null,0]
["Sch IIF","Other Sundry",null,"Short - After - UnQualified Assets - Equity Real Estate 1",null,null,null,null,null,null,null,null,0]
["Sch IIF","Other Sundry",null,"Short - After - UnQualified Assets - Equity Real Estate 2",null,null,null,null,null,null,null,null,0]
["Sch IIF","Other Sundry",null,"Liabilities - Before - W/O Mgmt Actions - Strategic Holdings - Listed",null,null,null,null,null,null,null,null,0]
["Sch IIF","Other Sundry",null,"Liabilities - Before - W/O Mgmt Actions - Duration Based",null,null,null,null,null,null,null,null,0]
["Sch IIF","Other Sundry",null,"Liabilities - Before - W/O Mgmt Actions - Listed Equity Securities in Developed Markets",null,null,null,null,null,null,null,null,0]
["Sch IIF","Other Sundry",null,"Liabilities - Before - W/O Mgmt Actions - Preferred Stocks, BSCR Rating 1",null,null,null,null,null,null,null,null,0]
["Sch IIF","Other Sundry",null,"Liabilities - Before - W/O Mgmt Actions - Preferred Stocks, BSCR Rating 2",null,null,null,null,null,null,null,null,0]
["Sch IIF","Other Sundry",null,"Liabilities - Before - W/O Mgmt Actions - Preferred Stocks, BSCR Rating 3",null,null,null,null,null,null,null,null,0]
["Sch IIF","Other Sundry",null,"Liabilities - Before - W/O Mgmt Actions - Preferred Stocks, BSCR Rating 4",null,null,null,null,null,null,null,null,0]
["Sch IIF","Other Sundry",null,"Liabilities - Before - W/O Mgmt Actions - Preferred Stocks, BSCR Rating 5",null,null,null,null,null,null,null,null,0]
["Sch IIF","Other Sundry",null,"Liabilities - Before - W/O Mgmt Actions - Preferred Stocks, BSCR Rating 6",null,null,null,null,null,null,null,null,0]
["Sch IIF","Other Sundry",null,"Liabilities - Before - W/O Mgmt Actions - Preferred Stocks, BSCR Rating 7",null,null,null,null,null,null,null,null,0]
["Sch IIF","Other Sundry",null,"Liabilities - Before - W/O Mgmt Actions - Preferred Stocks, BSCR Rating 8",null,null,null,null,null,null,null,null,0]
["Sch IIF","Other Sundry",null,"Liabilities - Before - W/O Mgmt Actions - Equity Derivatives on Type 1 Equities",null,null,null,null,null,null,null,null,0]
["Sch IIF","Other Sundry",null,"Liabilities - Before - W/O Mgmt Actions - Strategic Holdings - Unlisted",null,null,null,null,null,null,null,null,0]
["Sch IIF","Other Sundry",null,"Liabilities - Before - W/O Mgmt Actions - Other Equities",null,null,null,null,null,null,null,null,0]
["Sch IIF","Other Sundry",null,"Liabilities - Before - W/O Mgmt Actions - Letters of Credit",null,null,null,null,null,null,null,null,0]
["Sch IIF","Other Sundry",null,"Liabilities - Before - W/O Mgmt Actions - Intangible assets",null,null,null,null,null,null,null,null,0]
["Sch IIF","Other Sundry",null,"Liabilities - Before - W/O Mgmt Actions - Pension Benefit Surplus",null,null,null,null,null,null,null,null,0]
["Sch IIF","Other Sundry",null,"Liabilities - Before - W/O Mgmt Actions - Equity Derivatives on Type 2 Equities",null,null,null,null,null,null,null,null,0]
["Sch IIF","Other Sundry",null,"Liabilities - Before - W/O Mgmt Actions - Infrastructure",null,null,null,null,null,null,null,null,0]
["Sch IIF","Other Sundry",null,"Liabilities - Before - W/O Mgmt Actions - Derivatives on Infrastructure",null,null,null,null,null,null,null,null,0]
["Sch IIF","Other Sundry",null,"Liabilities - Before - W/O Mgmt Actions - Equity Real Estate 1",null,null,null,null,null,null,null,null,0]
["Sch IIF","Other Sundry",null,"Liabilities - Before - W/O Mgmt Actions - Equity Real Estate 2",null,null,null,null,null,null,null,null,0]
["Sch IIF","Other Sundry",null,"Liabilities - After - W/O Mgmt Actions - Strategic Holdings - Listed",null,null,null,null,null,null,null,null,0]
["Sch IIF","Other Sundry",null,"Liabilities - After - W/O Mgmt Actions - Duration Based",null,null,null,null,null,null,null,null,0]
["Sch IIF","Other Sundry",null,"Liabilities - After - W/O Mgmt Actions - Listed Equity Securities in Developed Markets",null,null,null,null,null,null,null,null,0]
["Sch IIF","Other Sundry",null,"Liabilities - After - W/O Mgmt Actions - Preferred Stocks, BSCR Rating 1",null,null,null,null,null,null,null,null,0]
["Sch IIF","Other Sundry",null,"Liabilities - After - W/O Mgmt Actions - Preferred Stocks, BSCR Rating 2",null,null,null,null,null,null,null,null,0]
["Sch IIF","Other Sundry",null,"Liabilities - After - W/O Mgmt Actions - Preferred Stocks, BSCR Rating 3",null,null,null,null,null,null,null,null,0]
["Sch IIF","Other Sundry",null,"Liabilities - After - W/O Mgmt Actions - Preferred Stocks, BSCR Rating 4",null,null,null,null,null,null,null,null,0]
["Sch IIF","Other Sundry",null,"Liabilities - After - W/O Mgmt Actions - Preferred Stocks, BSCR Rating 5",null,null,null,null,null,null,null,null,0]
["Sch IIF","Other Sundry",null,"Liabilities - After - W/O Mgmt Actions - Preferred Stocks, BSCR Rating 6",null,null,null,null,null,null,null,null,0]
["Sch IIF","Other Sundry",null,"Liabilities - After - W/O Mgmt Actions - Preferred Stocks, BSCR Rating 7",null,null,null,null,null,null,null,null,0]
["Sch IIF","Other Sundry",null,"Liabilities - After - W/O Mgmt Actions - Preferred Stocks, BSCR Rating 8",null,null,null,null,null,null,null,null,0]
["Sch IIF","Other Sundry",null,"Liabilities - After - W/O Mgmt Actions - Equity Derivatives on Type 1 Equities",null,null,null,null,null,null,null,null,0]
["Sch IIF","Other Sundry",null,"Liabilities - After - W/O Mgmt Actions - Strategic Holdings - Unlisted",null,null,null,null,null,null,null,null,0]
["Sch IIF","Other Sundry",null,"Liabilities - After - W/O Mgmt Actions - Other Equities",null,null,null,null,null,null,null,null,0]
["Sch IIF","Other Sundry",null,"Liabilities - After - W/O Mgmt Actions - Letters of Credit",null,null,null,null,null,null,null,null,0]
["Sch IIF","Other Sundry",null,"Liabilities - After - W/O Mgmt Actions - Intangible assets",null,null,null,null,null,null,null,null,0]
["Sch IIF","Other Sundry",null,"Liabilities - After - W/O Mgmt Actions - Pension Benefit Surplus",null,null,null,null,null,null,null,null,0]
["Sch IIF","Other Sundry",null,"Liabilities - After - W/O Mgmt Actions - Equity Derivatives on Type 2 Equities",null,null,null,null,null,null,null,null,0]
["Sch IIF","Other Sundry",null,"Liabilities - After - W/O Mgmt Actions - Infrastructure",null,null,null,null,null,null,null,null,0]
["Sch IIF","Other Sundry",null,"Liabilities - After - W/O Mgmt Actions - Derivatives on Infrastructure",null,null,null,null,null,null,null,null,0]
["Sch IIF","Other Sundry",null,"Liabilities - After - W/O Mgmt Actions - Equity Real Estate 1",null,null,null,null,null,null,null,null,0]
["Sch IIF","Other Sundry",null,"Liabilities - After - W/O Mgmt Actions - Equity Real Estate 2",null,null,null,null,null,null,null,null,0]
["Sch IIF","Other Sundry",null,"Liabilities - After - With Mgmt Actions - Strategic Holdings - Listed",null,null,null,null,null,null,null,null,0]
["Sch IIF","Other Sundry",null,"Liabilities - After - With Mgmt Actions - Duration Based",null,null,null,null,null,null,null,null,0]
["Sch IIF","Other Sundry",null,"Liabilities - After - With Mgmt Actions - Listed Equity Securities in Developed Markets",null,null,null,null,null,null,null,null,0]
["Sch IIF","Other Sundry",null,"Liabilities - After - With Mgmt Actions - Preferred Stocks, BSCR Rating 1",null,null,null,null,null,null,null,null,0]
["Sch IIF","Other Sundry",null,"Liabilities - After - With Mgmt Actions - Preferred Stocks, BSCR Rating 2",null,null,null,null,null,null,null,null,0]
["Sch IIF","Other Sundry",null,"Liabilities - After - With Mgmt Actions - Preferred Stocks, BSCR Rating 3",null,null,null,null,null,null,null,null,0]
["Sch IIF","Other Sundry",null,"Liabilities - After - With Mgmt Actions - Preferred Stocks, BSCR Rating 4",null,null,null,null,null,null,null,null,0]
["Sch IIF","Other Sundry",null,"Liabilities - After - With Mgmt Actions - Preferred Stocks, BSCR Rating 5",null,null,null,null,null,null,null,null,0]
["Sch IIF","Other Sundry",null,"Liabilities - After - With Mgmt Actions - Preferred Stocks, BSCR Rating 6",null,null,null,null,null,null,null,null,0]
["Sch IIF","Other Sundry",null,"Liabilities - After - With Mgmt Actions - Preferred Stocks, BSCR Rating 7",null,null,null,null,null,null,null,null,0]
["Sch IIF","Other Sundry",null,"Liabilities - After - With Mgmt Actions - Preferred Stocks, BSCR Rating 8",null,null,null,null,null,null,null,null,0]
["Sch IIF","Other Sundry",null,"Liabilities - After - With Mgmt Actions - Equity Derivatives on Type 1 Equities",null,null,null,null,null,null,null,null,0]
["Sch IIF","Other Sundry",null,"Liabilities - After - With Mgmt Actions - Strategic Holdings - Unlisted",null,null,null,null,null,null,null,null,0]
["Sch IIF","Other Sundry",null,"Liabilities - After - With Mgmt Actions - Other Equities",null,null,null,null,null,null,null,null,0]
["Sch IIF","Other Sundry",null,"Liabilities - After - With Mgmt Actions - Letters of Credit",null,null,null,null,null,null,null,null,0]
["Sch IIF","Other Sundry",null,"Liabilities - After - With Mgmt Actions - Intangible assets",null,null,null,null,null,null,null,null,0]
["Sch IIF","Other Sundry",null,"Liabilities - After - With Mgmt Actions - Pension Benefit Surplus",null,null,null,null,null,null,null,null,0]
["Sch IIF","Other Sundry",null,"Liabilities - After - With Mgmt Actions - Equity Derivatives on Type 2 Equities",null,null,null,null,null,null,null,null,0]
["Sch IIF","Other Sundry",null,"Liabilities - After - With Mgmt Actions - Infrastructure",null,null,null,null,null,null,null,null,0]
["Sch IIF","Other Sundry",null,"Liabilities - After - With Mgmt Actions - Derivatives on Infrastructure",null,null,null,null,null,null,null,null,0]
["Sch IIF","Other Sundry",null,"Liabilities - After - With Mgmt Actions - Equity Real Estate 1",null,null,null,null,null,null,null,null,0]
["Sch IIF","Other Sundry",null,"Liabilities - After - With Mgmt Actions - Equity Real Estate 2",null,null,null,null,null,null,null,null,0]
["Sch IIF","Other Sundry",null,"Credit Derivatives - Up - Before - Long-Rating 0",null,null,null,null,null,null,null,null,0]
["Sch IIF","Other Sundry",null,"Credit Derivatives - Up - Before - Long-Rating 1",null,null,null,null,null,null,null,null,0]
["Sch IIF","Other Sundry",null,"Credit Derivatives - Up - Before - Long-Rating 2",null,null,null,null,null,null,null,null,0]
["Sch IIF","Other Sundry",null,"Credit Derivatives - Up - Before - Long-Rating 3",null,null,null,null,null,null,null,null,0]
["Sch IIF","Other Sundry",null,"Credit Derivatives - Up - Before - Long-Rating 4",null,null,null,null,null,null,null,null,0]
["Sch IIF","Other Sundry",null,"Credit Derivatives - Up - Before - Long-Rating 5",null,null,null,null,null,null,null,null,0]
["Sch IIF","Other Sundry",null,"Credit Derivatives - Up - Before - Long-Rating 6",null,null,null,null,null,null,null,null,0]
["Sch IIF","Other Sundry",null,"Credit Derivatives - Up - Before - Long-Rating 7",null,null,null,null,null,null,null,null,0]
["Sch IIF","Other Sundry",null,"Credit Derivatives - Up - Before - Long-Rating 8",null,null,null,null,null,null,null,null,0]
["Sch IIF","Other Sundry",null,"Credit Derivatives - Up - After - Long- Rating 0",null,null,null,null,null,null,null,null,0]
["Sch IIF","Other Sundry",null,"Credit Derivatives - Up - After - Long- Rating 1",null,null,null,null,null,null,null,null,0]
["Sch IIF","Other Sundry",null,"Credit Derivatives - Up - After - Long- Rating 2",null,null,null,null,null,null,null,null,0]
["Sch IIF","Other Sundry",null,"Credit Derivatives - Up - After - Long- Rating 3",null,null,null,null,null,null,null,null,0]
["Sch IIF","Other Sundry",null,"Credit Derivatives - Up - After - Long- Rating 4",null,null,null,null,null,null,null,null,0]
["Sch IIF","Other Sundry",null,"Credit Derivatives - Up - After - Long- Rating 5",null,null,null,null,null,null,null,null,0]
["Sch IIF","Other Sundry",null,"Credit Derivatives - Up - After - Long- Rating 6",null,null,null,null,null,null,null,null,0]
["Sch IIF","Other Sundry",null,"Credit Derivatives - Up - After - Long- Rating 7",null,null,null,null,null,null,null,null,0]
["Sch IIF","Other Sundry",null,"Credit Derivatives - Up - After - Long- Rating 8",null,null,null,null,null,null,null,null,0]
["Sch IIF","Other Sundry",null,"Credit Derivatives - Up - Before - Short- Rating 0",null,null,null,null,null,null,null,null,0]
["Sch IIF","Other Sundry",null,"Credit Derivatives - Up - Before - Short- Rating 1",null,null,null,null,null,null,null,null,0]
["Sch IIF","Other Sundry",null,"Credit Derivatives - Up - Before - Short- Rating 2",null,null,null,null,null,null,null,null,0]
["Sch IIF","Other Sundry",null,"Credit Derivatives - Up - Before - Short- Rating 3",null,null,null,null,null,null,null,null,0]
["Sch IIF","Other Sundry",null,"Credit Derivatives - Up - Before - Short- Rating 4",null,null,null,null,null,null,null,null,0]
["Sch IIF","Other Sundry",null,"Credit Derivatives - Up - Before - Short- Rating 5",null,null,null,null,null,null,null,null,0]
["Sch IIF","Other Sundry",null,"Credit Derivatives - Up - Before - Short- Rating 6",null,null,null,null,null,null,null,null,0]
["Sch IIF","Other Sundry",null,"Credit Derivatives - Up - Before - Short- Rating 7",null,null,null,null,null,null,null,null,0]
["Sch IIF","Other Sundry",null,"Credit Derivatives - Up - Before - Short- Rating 8",null,null,null,null,null,null,null,null,0]
["Sch IIF","Other Sundry",null,"Credit Derivatives - Up - After - Short- Rating 0",null,null,null,null,null,null,null,null,0]
["Sch IIF","Other Sundry",null,"Credit Derivatives - Up - After - Short- Rating 1",null,null,null,null,null,null,null,null,0]
["Sch IIF","Other Sundry",null,"Credit Derivatives - Up - After - Short- Rating 2",null,null,null,null,null,null,null,null,0]
["Sch IIF","Other Sundry",null,"Credit Derivatives - Up - After - Short- Rating 3",null,null,null,null,null,null,null,null,0]
["Sch IIF","Other Sundry",null,"Credit Derivatives - Up - After - Short- Rating 4",null,null,null,null,null,null,null,null,0]
["Sch IIF","Other Sundry",null,"Credit Derivatives - Up - After - Short- Rating 5",null,null,null,null,null,null,null,null,0]
["Sch IIF","Other Sundry",null,"Credit Derivatives - Up - After - Short- Rating 6",null,null,null,null,null,null,null,null,0]
["Sch IIF","Other Sundry",null,"Credit Derivatives - Up - After - Short- Rating 7",null,null,null,null,null,null,null,null,0]
["Sch IIF","Other Sundry",null,"Credit Derivatives - Up - After - Short- Rating 8",null,null,null,null,null,null,null,null,0]
["Sch IIF","Other Sundry",null,"Credit Derivatives - Down - Before - Long-Rating 0",null,null,null,null,null,null,null,null,0]
["Sch IIF","Other Sundry",null,"Credit Derivatives - Down - Before - Long-Rating 1",null,null,null,null,null,null,null,null,0]
["Sch IIF","Other Sundry",null,"Credit Derivatives - Down - Before - Long-Rating 2",null,null,null,null,null,null,null,null,0]
["Sch IIF","Other Sundry",null,"Credit Derivatives - Down - Before - Long-Rating 3",null,null,null,null,null,null,null,null,0]
["Sch IIF","Other Sundry",null,"Credit Derivatives - Down - Before - Long-Rating 4",null,null,null,null,null,null,null,null,0]
["Sch IIF","Other Sundry",null,"Credit Derivatives - Down - Before - Long-Rating 5",null,null,null,null,null,null,null,null,0]
["Sch IIF","Other Sundry",null,"Credit Derivatives - Down - Before - Long-Rating 6",null,null,null,null,null,null,null,null,0]
["Sch IIF","Other Sundry",null,"Credit Derivatives - Down - Before - Long-Rating 7",null,null,null,null,null,null,null,null,0]
["Sch IIF","Other Sundry",null,"Credit Derivatives - Down - Before - Long-Rating 8",null,null,null,null,null,null,null,null,0]
["Sch IIF","Other Sundry",null,"Credit Derivatives - Down - After - Long- Rating 0",null,null,null,null,null,null,null,null,0]
["Sch IIF","Other Sundry",null,"Credit Derivatives - Down - After - Long- Rating 1",null,null,null,null,null,null,null,null,0]
["Sch IIF","Other Sundry",null,"Credit Derivatives - Down - After - Long- Rating 2",null,null,null,null,null,null,null,null,0]
["Sch IIF","Other Sundry",null,"Credit Derivatives - Down - After - Long- Rating 3",null,null,null,null,null,null,null,null,0]
["Sch IIF","Other Sundry",null,"Credit Derivatives - Down - After - Long- Rating 4",null,null,null,null,null,null,null,null,0]
["Sch IIF","Other Sundry",null,"Credit Derivatives - Down - After - Long- Rating 5",null,null,null,null,null,null,null,null,0]
["Sch IIF","Other Sundry",null,"Credit Derivatives - Down - After - Long- Rating 6",null,null,null,null,null,null,null,null,0]
["Sch IIF","Other Sundry",null,"Credit Derivatives - Down - After - Long- Rating 7",null,null,null,null,null,null,null,null,0]
["Sch IIF","Other Sundry",null,"Credit Derivatives - Down - After - Long- Rating 8",null,null,null,null,null,null,null,null,0]
["Sch IIF","Other Sundry",null,"Credit Derivatives - Down - Before - Short- Rating 0",null,null,null,null,null,null,null,null,0]
["Sch IIF","Other Sundry",null,"Credit Derivatives - Down - Before - Short- Rating 1",null,null,null,null,null,null,null,null,0]
["Sch IIF","Other Sundry",null,"Credit Derivatives - Down - Before - Short- Rating 2",null,null,null,null,null,null,null,null,0]
["Sch IIF","Other Sundry",null,"Credit Derivatives - Down - Before - Short- Rating 3",null,null,null,null,null,null,null,null,0]
["Sch IIF","Other Sundry",null,"Credit Derivatives - Down - Before - Short- Rating 4",null,null,null,null,null,null,null,null,0]
["Sch IIF","Other Sundry",null,"Credit Derivatives - Down - Before - Short- Rating 5",null,null,null,null,null,null,null,null,0]
["Sch IIF","Other Sundry",null,"Credit Derivatives - Down - Before - Short- Rating 6",null,null,null,null,null,null,null,null,0]
["Sch IIF","Other Sundry",null,"Credit Derivatives - Down - Before - Short- Rating 7",null,null,null,null,null,null,null,null,0]
["Sch IIF","Other Sundry",null,"Credit Derivatives - Down - Before - Short- Rating 8",null,null,null,null,null,null,null,null,0]
["Sch IIF","Other Sundry",null,"Credit Derivatives - Down - After - Short- Rating 0",null,null,null,null,null,null,null,null,0]
["Sch IIF","Other Sundry",null,"Credit Derivatives - Down - After - Short- Rating 1",null,null,null,null,null,null,null,null,0]
["Sch IIF","Other Sundry",null,"Credit Derivatives - Down - After - Short- Rating 2",null,null,null,null,null,null,null,null,0]
["Sch IIF","Other Sundry",null,"Credit Derivatives - Down - After - Short- Rating 3",null,null,null,null,null,null,null,null,0]
["Sch IIF","Other Sundry",null,"Credit Derivatives - Down - After - Short- Rating 4",null,null,null,null,null,null,null,null,0]
["Sch IIF","Other Sundry",null,"Credit Derivatives - Down - After - Short- Rating 5",null,null,null,null,null,null,null,null,0]
["Sch IIF","Other Sundry",null,"Credit Derivatives - Down - After - Short- Rating 6",null,null,null,null,null,null,null,null,0]
["Sch IIF","Other Sundry",null,"Credit Derivatives - Down - After - Short- Rating 7",null,null,null,null,null,null,null,null,0]
["Sch IIF","Other Sundry",null,"Credit Derivatives - Down - After - Short- Rating 8",null,null,null,null,null,null,null,null,0]
["Sch IIF","Other Sundry",null,"Counterparty Default Risk - MV of Derivatives - MV Positive - Rating 0",null,null,null,null,null,null,null,null,0]
["Sch IIF","Other Sundry",null,"Counterparty Default Risk - MV of Derivatives - MV Positive - Rating 1",null,null,null,null,null,null,null,null,0]
["Sch IIF","Other Sundry",null,"Counterparty Default Risk - MV of Derivatives - MV Positive - Rating 2",null,null,null,null,null,null,null,null,0]
["Sch IIF","Other Sundry",null,"Counterparty Default Risk - MV of Derivatives - MV Positive - Rating 3",null,null,null,null,null,null,null,null,0]
["Sch IIF","Other Sundry",null,"Counterparty Default Risk - MV of Derivatives - MV Positive - Rating 4",null,null,null,null,null,null,null,null,0]
["Sch IIF","Other Sundry",null,"Counterparty Default Risk - MV of Derivatives - MV Positive - Rating 5",null,null,null,null,null,null,null,null,0]
["Sch IIF","Other Sundry",null,"Counterparty Default Risk - MV of Derivatives - MV Positive - Rating 6",null,null,null,null,null,null,null,null,0]
["Sch IIF","Other Sundry",null,"Counterparty Default Risk - MV of Derivatives - MV Positive - Rating 7",null,null,null,null,null,null,null,null,0]
["Sch IIF","Other Sundry",null,"Counterparty Default Risk - MV of Derivatives - MV Positive - Rating 8",null,null,null,null,null,null,null,null,0]
["Sch IIF","Other Sundry",null,"Counterparty Default Risk - MV of Derivatives - MV Negative - Rating 0",null,null,null,null,null,null,null,null,0]
["Sch IIF","Other Sundry",null,"Counterparty Default Risk - MV of Derivatives - MV Negative - Rating 1",null,null,null,null,null,null,null,null,0]
["Sch IIF","Other Sundry",null,"Counterparty Default Risk - MV of Derivatives - MV Negative - Rating 2",null,null,null,null,null,null,null,null,0]
["Sch IIF","Other Sundry",null,"Counterparty Default Risk - MV of Derivatives - MV Negative - Rating 3",null,null,null,null,null,null,null,null,0]
["Sch IIF","Other Sundry",null,"Counterparty Default Risk - MV of Derivatives - MV Negative - Rating 4",null,null,null,null,null,null,null,null,0]
["Sch IIF","Other Sundry",null,"Counterparty Default Risk - MV of Derivatives - MV Negative - Rating 5",null,null,null,null,null,null,null,null,0]
["Sch IIF","Other Sundry",null,"Counterparty Default Risk - MV of Derivatives - MV Negative - Rating 6",null,null,null,null,null,null,null,null,0]
["Sch IIF","Other Sundry",null,"Counterparty Default Risk - MV of Derivatives - MV Negative - Rating 7",null,null,null,null,null,null,null,null,0]
["Sch IIF","Other Sundry",null,"Counterparty Default Risk - MV of Derivatives - MV Negative - Rating 8",null,null,null,null,null,null,null,null,0]
["Sch IIF","Other Sundry",null,"Counterparty Default Risk - MV of Collateral - Rating 0",null,null,null,null,null,null,null,null,0]
["Sch IIF","Other Sundry",null,"Counterparty Default Risk - MV of Collateral - Rating 1",null,null,null,null,null,null,null,null,0]
["Sch IIF","Other Sundry",null,"Counterparty Default Risk - MV of Collateral - Rating 2",null,null,null,null,null,null,null,null,0]
["Sch IIF","Other Sundry",null,"Counterparty Default Risk - MV of Collateral - Rating 3",null,null,null,null,null,null,null,null,0]
["Sch IIF","Other Sundry",null,"Counterparty Default Risk - MV of Collateral - Rating 4",null,null,null,null,null,null,null,null,0]
["Sch IIF","Other Sundry",null,"Counterparty Default Risk - MV of Collateral - Rating 5",null,null,null,null,null,null,null,null,0]
["Sch IIF","Other Sundry",null,"Counterparty Default Risk - MV of Collateral - Rating 6",null,null,null,null,null,null,null,null,0]
["Sch IIF","Other Sundry",null,"Counterparty Default Risk - MV of Collateral - Rating 7",null,null,null,null,null,null,null,null,0]
["Sch IIF","Other Sundry",null,"Counterparty Default Risk - MV of Collateral - Rating 8",null,null,null,null,null,null,null,null,0]
["Sch IIF","Other Sundry",null,"Cash and Cash Equivalents",null,null,null,null,null,null,null,null,0]
[]
["Sch XIXA","Cash Counterpart",null,"Number",null,null,null,null,null,null,null,null,0]
["Sch XIXA","Cash Counterpart",null,"Name - Counterparty 1",null,null,null,null,null,null,null,null,0]
["Sch XIXA","Cash Counterpart",null,"Name - Counterparty 2",null,null,null,null,null,null,null,null,0]
["Sch XIXA","Cash Counterpart",null,"Name - Counterparty 3",null,null,null,null,null,null,null,null,0]
["Sch XIXA","Cash Counterpart",null,"Name - Counterparty 4",null,null,null,null,null,null,null,null,0]
["Sch XIXA","Cash Counterpart",null,"Name - Counterparty 5",null,null,null,null,null,null,null,null,0]
["Sch XIXA","Cash Counterpart",null,"Name - Counterparty 6",null,null,null,null,null,null,null,null,0]
["Sch XIXA","Cash Counterpart",null,"Name - Counterparty 7",null,null,null,null,null,null,null,null,0]
["Sch XIXA","Cash Counterpart",null,"Name - Counterparty 8",null,null,null,null,null,null,null,null,0]
["Sch XIXA","Cash Counterpart",null,"Name - Counterparty 9",null,null,null,null,null,null,null,null,0]
["Sch XIXA","Cash Counterpart",null,"Name - Counterparty 10",null,null,null,null,null,null,null,null,0]
["Sch XIXA","Cash Counterpart",null,"Name - Counterparty 11",null,null,null,null,null,null,null,null,0]
["Sch XIXA","Cash Counterpart",null,"Name - Counterparty 12",null,null,null,null,null,null,null,null,0]
["Sch XIXA","Cash Counterpart",null,"Name - Counterparty 13",null,null,null,null,null,null,null,null,0]
["Sch XIXA","Cash Counterpart",null,"Name - Counterparty 14",null,null,null,null,null,null,null,null,0]
["Sch XIXA","Cash Counterpart",null,"Name - Counterparty 15",null,null,null,null,null,null,null,null,0]
["Sch XIXA","Cash Counterpart",null,"Name - Counterparty 16",null,null,null,null,null,null,null,null,0]
["Sch XIXA","Cash Counterpart",null,"Name - Counterparty 17",null,null,null,null,null,null,null,null,0]
["Sch XIXA","Cash Counterpart",null,"Name - Counterparty 18",null,null,null,null,null,null,null,null,0]
["Sch XIXA","Cash Counterpart",null,"Name - Counterparty 19",null,null,null,null,null,null,null,null,0]
["Sch XIXA","Cash Counterpart",null,"Name - Counterparty 20",null,null,null,null,null,null,null,null,0]
["Sch XIXA","Cash Counterpart",null,"BSCR Rating - Counterparty 1",null,null,null,null,null,null,null,null,"Select"]
["Sch XIXA","Cash Counterpart",null,"BSCR Rating - Counterparty 2",null,null,null,null,null,null,null,null,"Select"]
["Sch XIXA","Cash Counterpart",null,"BSCR Rating - Counterparty 3",null,null,null,null,null,null,null,null,"Select"]
["Sch XIXA","Cash Counterpart",null,"BSCR Rating - Counterparty 4",null,null,null,null,null,null,null,null,"Select"]
["Sch XIXA","Cash Counterpart",null,"BSCR Rating - Counterparty 5",null,null,null,null,null,null,null,null,"Select"]
["Sch XIXA","Cash Counterpart",null,"BSCR Rating - Counterparty 6",null,null,null,null,null,null,null,null,"Select"]
["Sch XIXA","Cash Counterpart",null,"BSCR Rating - Counterparty 7",null,null,null,null,null,null,null,null,"Select"]
["Sch XIXA","Cash Counterpart",null,"BSCR Rating - Counterparty 8",null,null,null,null,null,null,null,null,"Select"]
["Sch XIXA","Cash Counterpart",null,"BSCR Rating - Counterparty 9",null,null,null,null,null,null,null,null,"Select"]
["Sch XIXA","Cash Counterpart",null,"BSCR Rating - Counterparty 10",null,null,null,null,null,null,null,null,"Select"]
["Sch XIXA","Cash Counterpart",null,"BSCR Rating - Counterparty 11",null,null,null,null,null,null,null,null,"Select"]
["Sch XIXA","Cash Counterpart",null,"BSCR Rating - Counterparty 12",null,null,null,null,null,null,null,null,"Select"]
["Sch XIXA","Cash Counterpart",null,"BSCR Rating - Counterparty 13",null,null,null,null,null,null,null,null,"Select"]
["Sch XIXA","Cash Counterpart",null,"BSCR Rating - Counterparty 14",null,null,null,null,null,null,null,null,"Select"]
["Sch XIXA","Cash Counterpart",null,"BSCR Rating - Counterparty 15",null,null,null,null,null,null,null,null,"Select"]
["Sch XIXA","Cash Counterpart",null,"BSCR Rating - Counterparty 16",null,null,null,null,null,null,null,null,"Select"]
["Sch XIXA","Cash Counterpart",null,"BSCR Rating - Counterparty 17",null,null,null,null,null,null,null,null,"Select"]
["Sch XIXA","Cash Counterpart",null,"BSCR Rating - Counterparty 18",null,null,null,null,null,null,null,null,"Select"]
["Sch XIXA","Cash Counterpart",null,"BSCR Rating - Counterparty 19",null,null,null,null,null,null,null,null,"Select"]
["Sch XIXA","Cash Counterpart",null,"BSCR Rating - Counterparty 20",null,null,null,null,null,null,null,null,"Select"]
["Sch XIXA","Cash Counterpart",null,"Counterparty Value 1",null,null,null,null,null,null,null,null,0]
["Sch XIXA","Cash Counterpart",null,"Counterparty Value 2",null,null,null,null,null,null,null,null,0]
["Sch XIXA","Cash Counterpart",null,"Counterparty Value 3",null,null,null,null,null,null,null,null,0]
["Sch XIXA","Cash Counterpart",null,"Counterparty Value 4",null,null,null,null,null,null,null,null,0]
["Sch XIXA","Cash Counterpart",null,"Counterparty Value 5",null,null,null,null,null,null,null,null,0]
["Sch XIXA","Cash Counterpart",null,"Counterparty Value 6",null,null,null,null,null,null,null,null,0]
["Sch XIXA","Cash Counterpart",null,"Counterparty Value 7",null,null,null,null,null,null,null,null,0]
["Sch XIXA","Cash Counterpart",null,"Counterparty Value 8",null,null,null,null,null,null,null,null,0]
["Sch XIXA","Cash Counterpart",null,"Counterparty Value 9",null,null,null,null,null,null,null,null,0]
["Sch XIXA","Cash Counterpart",null,"Counterparty Value 10",null,null,null,null,null,null,null,null,0]
["Sch XIXA","Cash Counterpart",null,"Counterparty Value 11",null,null,null,null,null,null,null,null,0]
["Sch XIXA","Cash Counterpart",null,"Counterparty Value 12",null,null,null,null,null,null,null,null,0]
["Sch XIXA","Cash Counterpart",null,"Counterparty Value 13",null,null,null,null,null,null,null,null,0]
["Sch XIXA","Cash Counterpart",null,"Counterparty Value 14",null,null,null,null,null,null,null,null,0]
["Sch XIXA","Cash Counterpart",null,"Counterparty Value 15",null,null,null,null,null,null,null,null,0]
["Sch XIXA","Cash Counterpart",null,"Counterparty Value 16",null,null,null,null,null,null,null,null,0]
["Sch XIXA","Cash Counterpart",null,"Counterparty Value 17",null,null,null,null,null,null,null,null,0]
["Sch XIXA","Cash Counterpart",null,"Counterparty Value 18",null,null,null,null,null,null,null,null,0]
["Sch XIXA","Cash Counterpart",null,"Counterparty Value 19",null,null,null,null,null,null,null,null,0]
["Sch XIXA","Cash Counterpart",null,"Counterparty Value 20",null,null,null,null,null,null,null,null,0]
["Sch XIXA","Cash Counterpart",null,"Counterparty Total",null,null,null,null,null,null,null,null,0]
["Sch XIXA","Cash Counterpart",null,"Exposure BSCR Rate 0",null,null,null,null,null,null,null,null,0]
["Sch XIXA","Cash Counterpart",null,"Exposure BSCR Rate 1",null,null,null,null,null,null,null,null,0]
["Sch XIXA","Cash Counterpart",null,"Exposure BSCR Rate 2",null,null,null,null,null,null,null,null,0]
["Sch XIXA","Cash Counterpart",null,"Exposure BSCR Rate 3",null,null,null,null,null,null,null,null,0]
["Sch XIXA","Cash Counterpart",null,"Exposure BSCR Rate 4",null,null,null,null,null,null,null,null,0]
["Sch XIXA","Cash Counterpart",null,"Exposure BSCR Rate 5",null,null,null,null,null,null,null,null,0]
["Sch XIXA","Cash Counterpart",null,"Exposure BSCR Rate 6",null,null,null,null,null,null,null,null,0]
["Sch XIXA","Cash Counterpart",null,"Exposure BSCR Rate 7",null,null,null,null,null,null,null,null,0]
["Sch XIXA","Cash Counterpart",null,"Exposure BSCR Rate 8",null,null,null,null,null,null,null,null,0]
[]
["Sch XXA","Currency Shock",null,"Other Currency 1",null,null,null,null,null,null,null,null,"Other currency 1"]
["Sch XXA","Currency Shock",null,"Other Currency 2",null,null,null,null,null,null,null,null,"Other currency 2"]
["Sch XXA","Currency Shock",null,"Other Currency 3",null,null,null,null,null,null,null,null,"Other currency 3"]
["Sch XXA","Currency Shock",null,"Other Currency 4",null,null,null,null,null,null,null,null,"Other currency 4"]
["Sch XXA","Currency Shock",null,"Other Currency 5",null,null,null,null,null,null,null,null,"Other currency 5"]
["Sch XXA","Currency Shock",null,"Other Currency 6",null,null,null,null,null,null,null,null,"Other currency 6"]
["Sch XXA","Currency Shock",null,"Other Currency 7",null,null,null,null,null,null,null,null,"Other currency 7"]
["Sch XXA","Currency Shock",null,"Other Currency 8",null,null,null,null,null,null,null,null,"Other currency 8"]
["Sch XXA","Currency Shock",null,"Other Currency 9",null,null,null,null,null,null,null,null,"Other currency 9"]
["Sch XXA","Currency Shock",null,"Other Currency 10",null,null,null,null,null,null,null,null,"Other currency 10"]
["Sch XXA","Currency Shock",null,{"$f":"\"Before Shock - Assets - Excluding Currency - Sensitive Derivatives \"&'Schedule XXA'!$B$10","v":"Before Shock - Assets - Excluding Currency - Sensitive Derivatives United States Dollars"},null,null,null,null,null,null,null,null,0]
["Sch XXA","Currency Shock",null,{"$f":"\"Before Shock - Assets - Excluding Currency - Sensitive Derivatives \"&'Schedule XXA'!$B$11","v":"Before Shock - Assets - Excluding Currency - Sensitive Derivatives Bermuda Dollars"},null,null,null,null,null,null,null,null,0]
["Sch XXA","Currency Shock",null,{"$f":"\"Before Shock - Assets - Excluding Currency - Sensitive Derivatives \"&'Schedule XXA'!$B$12","v":"Before Shock - Assets - Excluding Currency - Sensitive Derivatives Qatar Riyals"},null,null,null,null,null,null,null,null,0]
["Sch XXA","Currency Shock",null,{"$f":"\"Before Shock - Assets - Excluding Currency - Sensitive Derivatives \"&'Schedule XXA'!$B$13","v":"Before Shock - Assets - Excluding Currency - Sensitive Derivatives Hong Kong Dollars"},null,null,null,null,null,null,null,null,0]
["Sch XXA","Currency Shock",null,{"$f":"\"Before Shock - Assets - Excluding Currency - Sensitive Derivatives \"&'Schedule XXA'!$B$14","v":"Before Shock - Assets - Excluding Currency - Sensitive Derivatives Euro"},null,null,null,null,null,null,null,null,0]
["Sch XXA","Currency Shock",null,{"$f":"\"Before Shock - Assets - Excluding Currency - Sensitive Derivatives \"&'Schedule XXA'!$B$15","v":"Before Shock - Assets - Excluding Currency - Sensitive Derivatives Denmark Kroner"},null,null,null,null,null,null,null,null,0]
["Sch XXA","Currency Shock",null,{"$f":"\"Before Shock - Assets - Excluding Currency - Sensitive Derivatives \"&'Schedule XXA'!$B$16","v":"Before Shock - Assets - Excluding Currency - Sensitive Derivatives Bulgaria Leva"},null,null,null,null,null,null,null,null,0]
["Sch XXA","Currency Shock",null,{"$f":"\"Before Shock - Assets - Excluding Currency - Sensitive Derivatives \"&'Schedule XXA'!$B$17","v":"Before Shock - Assets - Excluding Currency - Sensitive Derivatives West African CFA Francs"},null,null,null,null,null,null,null,null,0]
["Sch XXA","Currency Shock",null,{"$f":"\"Before Shock - Assets - Excluding Currency - Sensitive Derivatives \"&'Schedule XXA'!$B$18","v":"Before Shock - Assets - Excluding Currency - Sensitive Derivatives Central African CFA Francs"},null,null,null,null,null,null,null,null,0]
["Sch XXA","Currency Shock",null,{"$f":"\"Before Shock - Assets - Excluding Currency - Sensitive Derivatives \"&'Schedule XXA'!$B$19","v":"Before Shock - Assets - Excluding Currency - Sensitive Derivatives Comorian Francs"},null,null,null,null,null,null,null,null,0]
["Sch XXA","Currency Shock",null,{"$f":"\"Before Shock - Assets - Excluding Currency - Sensitive Derivatives \"&'Schedule XXA'!$B$20","v":"Before Shock - Assets - Excluding Currency - Sensitive Derivatives United Kingdom Pounds"},null,null,null,null,null,null,null,null,0]
["Sch XXA","Currency Shock",null,{"$f":"\"Before Shock - Assets - Excluding Currency - Sensitive Derivatives \"&'Schedule XXA'!$B$21","v":"Before Shock - Assets - Excluding Currency - Sensitive Derivatives Canada Dollars"},null,null,null,null,null,null,null,null,0]
["Sch XXA","Currency Shock",null,{"$f":"\"Before Shock - Assets - Excluding Currency - Sensitive Derivatives \"&'Schedule XXA'!$B$22","v":"Before Shock - Assets - Excluding Currency - Sensitive Derivatives Japan Yen"},null,null,null,null,null,null,null,null,0]
["Sch XXA","Currency Shock",null,{"$f":"\"Before Shock - Assets - Excluding Currency - Sensitive Derivatives \"&'Schedule XXA'!$B$23","v":"Before Shock - Assets - Excluding Currency - Sensitive Derivatives Other currency 1"},null,null,null,null,null,null,null,null,0]
["Sch XXA","Currency Shock",null,{"$f":"\"Before Shock - Assets - Excluding Currency - Sensitive Derivatives \"&'Schedule XXA'!$B$24","v":"Before Shock - Assets - Excluding Currency - Sensitive Derivatives Other currency 2"},null,null,null,null,null,null,null,null,0]
["Sch XXA","Currency Shock",null,{"$f":"\"Before Shock - Assets - Excluding Currency - Sensitive Derivatives \"&'Schedule XXA'!$B$25","v":"Before Shock - Assets - Excluding Currency - Sensitive Derivatives Other currency 3"},null,null,null,null,null,null,null,null,0]
["Sch XXA","Currency Shock",null,{"$f":"\"Before Shock - Assets - Excluding Currency - Sensitive Derivatives \"&'Schedule XXA'!$B$26","v":"Before Shock - Assets - Excluding Currency - Sensitive Derivatives Other currency 4"},null,null,null,null,null,null,null,null,0]
["Sch XXA","Currency Shock",null,{"$f":"\"Before Shock - Assets - Excluding Currency - Sensitive Derivatives \"&'Schedule XXA'!$B$27","v":"Before Shock - Assets - Excluding Currency - Sensitive Derivatives Other currency 5"},null,null,null,null,null,null,null,null,0]
["Sch XXA","Currency Shock",null,{"$f":"\"Before Shock - Assets - Excluding Currency - Sensitive Derivatives \"&'Schedule XXA'!$B$28","v":"Before Shock - Assets - Excluding Currency - Sensitive Derivatives Other currency 6"},null,null,null,null,null,null,null,null,0]
["Sch XXA","Currency Shock",null,{"$f":"\"Before Shock - Assets - Excluding Currency - Sensitive Derivatives \"&'Schedule XXA'!$B$29","v":"Before Shock - Assets - Excluding Currency - Sensitive Derivatives Other currency 7"},null,null,null,null,null,null,null,null,0]
["Sch XXA","Currency Shock",null,{"$f":"\"Before Shock - Assets - Excluding Currency - Sensitive Derivatives \"&'Schedule XXA'!$B$30","v":"Before Shock - Assets - Excluding Currency - Sensitive Derivatives Other currency 8"},null,null,null,null,null,null,null,null,0]
["Sch XXA","Currency Shock",null,{"$f":"\"Before Shock - Assets - Excluding Currency - Sensitive Derivatives \"&'Schedule XXA'!$B$31","v":"Before Shock - Assets - Excluding Currency - Sensitive Derivatives Other currency 9"},null,null,null,null,null,null,null,null,0]
["Sch XXA","Currency Shock",null,{"$f":"\"Before Shock - Assets - Excluding Currency - Sensitive Derivatives \"&'Schedule XXA'!$B$32","v":"Before Shock - Assets - Excluding Currency - Sensitive Derivatives Other currency 10"},null,null,null,null,null,null,null,null,0]
["Sch XXA","Currency Shock",null,{"$f":"\"Before Shock - Long Exposures - Currency Derivatives Qualifying as held for risk-mitigation purposes \"&'Schedule XXA'!$B$10","v":"Before Shock - Long Exposures - Currency Derivatives Qualifying as held for risk-mitigation purposes United States Dollars"},null,null,null,null,null,null,null,null,0]
["Sch XXA","Currency Shock",null,{"$f":"\"Before Shock - Long Exposures - Currency Derivatives Qualifying as held for risk-mitigation purposes \"&'Schedule XXA'!$B$11","v":"Before Shock - Long Exposures - Currency Derivatives Qualifying as held for risk-mitigation purposes Bermuda Dollars"},null,null,null,null,null,null,null,null,0]
["Sch XXA","Currency Shock",null,{"$f":"\"Before Shock - Long Exposures - Currency Derivatives Qualifying as held for risk-mitigation purposes \"&'Schedule XXA'!$B$12","v":"Before Shock - Long Exposures - Currency Derivatives Qualifying as held for risk-mitigation purposes Qatar Riyals"},null,null,null,null,null,null,null,null,0]
["Sch XXA","Currency Shock",null,{"$f":"\"Before Shock - Long Exposures - Currency Derivatives Qualifying as held for risk-mitigation purposes \"&'Schedule XXA'!$B$13","v":"Before Shock - Long Exposures - Currency Derivatives Qualifying as held for risk-mitigation purposes Hong Kong Dollars"},null,null,null,null,null,null,null,null,0]
["Sch XXA","Currency Shock",null,{"$f":"\"Before Shock - Long Exposures - Currency Derivatives Qualifying as held for risk-mitigation purposes \"&'Schedule XXA'!$B$14","v":"Before Shock - Long Exposures - Currency Derivatives Qualifying as held for risk-mitigation purposes Euro"},null,null,null,null,null,null,null,null,0]
["Sch XXA","Currency Shock",null,{"$f":"\"Before Shock - Long Exposures - Currency Derivatives Qualifying as held for risk-mitigation purposes \"&'Schedule XXA'!$B$15","v":"Before Shock - Long Exposures - Currency Derivatives Qualifying as held for risk-mitigation purposes Denmark Kroner"},null,null,null,null,null,null,null,null,0]
["Sch XXA","Currency Shock",null,{"$f":"\"Before Shock - Long Exposures - Currency Derivatives Qualifying as held for risk-mitigation purposes \"&'Schedule XXA'!$B$16","v":"Before Shock - Long Exposures - Currency Derivatives Qualifying as held for risk-mitigation purposes Bulgaria Leva"},null,null,null,null,null,null,null,null,0]
["Sch XXA","Currency Shock",null,{"$f":"\"Before Shock - Long Exposures - Currency Derivatives Qualifying as held for risk-mitigation purposes \"&'Schedule XXA'!$B$17","v":"Before Shock - Long Exposures - Currency Derivatives Qualifying as held for risk-mitigation purposes West African CFA Francs"},null,null,null,null,null,null,null,null,0]
["Sch XXA","Currency Shock",null,{"$f":"\"Before Shock - Long Exposures - Currency Derivatives Qualifying as held for risk-mitigation purposes \"&'Schedule XXA'!$B$18","v":"Before Shock - Long Exposures - Currency Derivatives Qualifying as held for risk-mitigation purposes Central African CFA Francs"},null,null,null,null,null,null,null,null,0]
["Sch XXA","Currency Shock",null,{"$f":"\"Before Shock - Long Exposures - Currency Derivatives Qualifying as held for risk-mitigation purposes \"&'Schedule XXA'!$B$19","v":"Before Shock - Long Exposures - Currency Derivatives Qualifying as held for risk-mitigation purposes Comorian Francs"},null,null,null,null,null,null,null,null,0]
["Sch XXA","Currency Shock",null,{"$f":"\"Before Shock - Long Exposures - Currency Derivatives Qualifying as held for risk-mitigation purposes \"&'Schedule XXA'!$B$20","v":"Before Shock - Long Exposures - Currency Derivatives Qualifying as held for risk-mitigation purposes United Kingdom Pounds"},null,null,null,null,null,null,null,null,0]
["Sch XXA","Currency Shock",null,{"$f":"\"Before Shock - Long Exposures - Currency Derivatives Qualifying as held for risk-mitigation purposes \"&'Schedule XXA'!$B$21","v":"Before Shock - Long Exposures - Currency Derivatives Qualifying as held for risk-mitigation purposes Canada Dollars"},null,null,null,null,null,null,null,null,0]
["Sch XXA","Currency Shock",null,{"$f":"\"Before Shock - Long Exposures - Currency Derivatives Qualifying as held for risk-mitigation purposes \"&'Schedule XXA'!$B$22","v":"Before Shock - Long Exposures - Currency Derivatives Qualifying as held for risk-mitigation purposes Japan Yen"},null,null,null,null,null,null,null,null,0]
["Sch XXA","Currency Shock",null,{"$f":"\"Before Shock - Long Exposures - Currency Derivatives Qualifying as held for risk-mitigation purposes \"&'Schedule XXA'!$B$23","v":"Before Shock - Long Exposures - Currency Derivatives Qualifying as held for risk-mitigation purposes Other currency 1"},null,null,null,null,null,null,null,null,0]
["Sch XXA","Currency Shock",null,{"$f":"\"Before Shock - Long Exposures - Currency Derivatives Qualifying as held for risk-mitigation purposes \"&'Schedule XXA'!$B$24","v":"Before Shock - Long Exposures - Currency Derivatives Qualifying as held for risk-mitigation purposes Other currency 2"},null,null,null,null,null,null,null,null,0]
["Sch XXA","Currency Shock",null,{"$f":"\"Before Shock - Long Exposures - Currency Derivatives Qualifying as held for risk-mitigation purposes \"&'Schedule XXA'!$B$25","v":"Before Shock - Long Exposures - Currency Derivatives Qualifying as held for risk-mitigation purposes Other currency 3"},null,null,null,null,null,null,null,null,0]
["Sch XXA","Currency Shock",null,{"$f":"\"Before Shock - Long Exposures - Currency Derivatives Qualifying as held for risk-mitigation purposes \"&'Schedule XXA'!$B$26","v":"Before Shock - Long Exposures - Currency Derivatives Qualifying as held for risk-mitigation purposes Other currency 4"},null,null,null,null,null,null,null,null,0]
["Sch XXA","Currency Shock",null,{"$f":"\"Before Shock - Long Exposures - Currency Derivatives Qualifying as held for risk-mitigation purposes \"&'Schedule XXA'!$B$27","v":"Before Shock - Long Exposures - Currency Derivatives Qualifying as held for risk-mitigation purposes Other currency 5"},null,null,null,null,null,null,null,null,0]
["Sch XXA","Currency Shock",null,{"$f":"\"Before Shock - Long Exposures - Currency Derivatives Qualifying as held for risk-mitigation purposes \"&'Schedule XXA'!$B$28","v":"Before Shock - Long Exposures - Currency Derivatives Qualifying as held for risk-mitigation purposes Other currency 6"},null,null,null,null,null,null,null,null,0]
["Sch XXA","Currency Shock",null,{"$f":"\"Before Shock - Long Exposures - Currency Derivatives Qualifying as held for risk-mitigation purposes \"&'Schedule XXA'!$B$29","v":"Before Shock - Long Exposures - Currency Derivatives Qualifying as held for risk-mitigation purposes Other currency 7"},null,null,null,null,null,null,null,null,0]
["Sch XXA","Currency Shock",null,{"$f":"\"Before Shock - Long Exposures - Currency Derivatives Qualifying as held for risk-mitigation purposes \"&'Schedule XXA'!$B$30","v":"Before Shock - Long Exposures - Currency Derivatives Qualifying as held for risk-mitigation purposes Other currency 8"},null,null,null,null,null,null,null,null,0]
["Sch XXA","Currency Shock",null,{"$f":"\"Before Shock - Long Exposures - Currency Derivatives Qualifying as held for risk-mitigation purposes \"&'Schedule XXA'!$B$31","v":"Before Shock - Long Exposures - Currency Derivatives Qualifying as held for risk-mitigation purposes Other currency 9"},null,null,null,null,null,null,null,null,0]
["Sch XXA","Currency Shock",null,{"$f":"\"Before Shock - Long Exposures - Currency Derivatives Qualifying as held for risk-mitigation purposes \"&'Schedule XXA'!$B$32","v":"Before Shock - Long Exposures - Currency Derivatives Qualifying as held for risk-mitigation purposes Other currency 10"},null,null,null,null,null,null,null,null,0]
["Sch XXA","Currency Shock",null,{"$f":"\"Before Shock - Long Exposures - Currency Derivatives Not Qualifying as held for risk-mitigation purposes \"&'Schedule XXA'!$B$10","v":"Before Shock - Long Exposures - Currency Derivatives Not Qualifying as held for risk-mitigation purposes United States Dollars"},null,null,null,null,null,null,null,null,0]
["Sch XXA","Currency Shock",null,{"$f":"\"Before Shock - Long Exposures - Currency Derivatives Not Qualifying as held for risk-mitigation purposes \"&'Schedule XXA'!$B$11","v":"Before Shock - Long Exposures - Currency Derivatives Not Qualifying as held for risk-mitigation purposes Bermuda Dollars"},null,null,null,null,null,null,null,null,0]
["Sch XXA","Currency Shock",null,{"$f":"\"Before Shock - Long Exposures - Currency Derivatives Not Qualifying as held for risk-mitigation purposes \"&'Schedule XXA'!$B$12","v":"Before Shock - Long Exposures - Currency Derivatives Not Qualifying as held for risk-mitigation purposes Qatar Riyals"},null,null,null,null,null,null,null,null,0]
["Sch XXA","Currency Shock",null,{"$f":"\"Before Shock - Long Exposures - Currency Derivatives Not Qualifying as held for risk-mitigation purposes \"&'Schedule XXA'!$B$13","v":"Before Shock - Long Exposures - Currency Derivatives Not Qualifying as held for risk-mitigation purposes Hong Kong Dollars"},null,null,null,null,null,null,null,null,0]
["Sch XXA","Currency Shock",null,{"$f":"\"Before Shock - Long Exposures - Currency Derivatives Not Qualifying as held for risk-mitigation purposes \"&'Schedule XXA'!$B$14","v":"Before Shock - Long Exposures - Currency Derivatives Not Qualifying as held for risk-mitigation purposes Euro"},null,null,null,null,null,null,null,null,0]
["Sch XXA","Currency Shock",null,{"$f":"\"Before Shock - Long Exposures - Currency Derivatives Not Qualifying as held for risk-mitigation purposes \"&'Schedule XXA'!$B$15","v":"Before Shock - Long Exposures - Currency Derivatives Not Qualifying as held for risk-mitigation purposes Denmark Kroner"},null,null,null,null,null,null,null,null,0]
["Sch XXA","Currency Shock",null,{"$f":"\"Before Shock - Long Exposures - Currency Derivatives Not Qualifying as held for risk-mitigation purposes \"&'Schedule XXA'!$B$16","v":"Before Shock - Long Exposures - Currency Derivatives Not Qualifying as held for risk-mitigation purposes Bulgaria Leva"},null,null,null,null,null,null,null,null,0]
["Sch XXA","Currency Shock",null,{"$f":"\"Before Shock - Long Exposures - Currency Derivatives Not Qualifying as held for risk-mitigation purposes \"&'Schedule XXA'!$B$17","v":"Before Shock - Long Exposures - Currency Derivatives Not Qualifying as held for risk-mitigation purposes West African CFA Francs"},null,null,null,null,null,null,null,null,0]
["Sch XXA","Currency Shock",null,{"$f":"\"Before Shock - Long Exposures - Currency Derivatives Not Qualifying as held for risk-mitigation purposes \"&'Schedule XXA'!$B$18","v":"Before Shock - Long Exposures - Currency Derivatives Not Qualifying as held for risk-mitigation purposes Central African CFA Francs"},null,null,null,null,null,null,null,null,0]
["Sch XXA","Currency Shock",null,{"$f":"\"Before Shock - Long Exposures - Currency Derivatives Not Qualifying as held for risk-mitigation purposes \"&'Schedule XXA'!$B$19","v":"Before Shock - Long Exposures - Currency Derivatives Not Qualifying as held for risk-mitigation purposes Comorian Francs"},null,null,null,null,null,null,null,null,0]
["Sch XXA","Currency Shock",null,{"$f":"\"Before Shock - Long Exposures - Currency Derivatives Not Qualifying as held for risk-mitigation purposes \"&'Schedule XXA'!$B$20","v":"Before Shock - Long Exposures - Currency Derivatives Not Qualifying as held for risk-mitigation purposes United Kingdom Pounds"},null,null,null,null,null,null,null,null,0]
["Sch XXA","Currency Shock",null,{"$f":"\"Before Shock - Long Exposures - Currency Derivatives Not Qualifying as held for risk-mitigation purposes \"&'Schedule XXA'!$B$21","v":"Before Shock - Long Exposures - Currency Derivatives Not Qualifying as held for risk-mitigation purposes Canada Dollars"},null,null,null,null,null,null,null,null,0]
["Sch XXA","Currency Shock",null,{"$f":"\"Before Shock - Long Exposures - Currency Derivatives Not Qualifying as held for risk-mitigation purposes \"&'Schedule XXA'!$B$22","v":"Before Shock - Long Exposures - Currency Derivatives Not Qualifying as held for risk-mitigation purposes Japan Yen"},null,null,null,null,null,null,null,null,0]
["Sch XXA","Currency Shock",null,{"$f":"\"Before Shock - Long Exposures - Currency Derivatives Not Qualifying as held for risk-mitigation purposes \"&'Schedule XXA'!$B$23","v":"Before Shock - Long Exposures - Currency Derivatives Not Qualifying as held for risk-mitigation purposes Other currency 1"},null,null,null,null,null,null,null,null,0]
["Sch XXA","Currency Shock",null,{"$f":"\"Before Shock - Long Exposures - Currency Derivatives Not Qualifying as held for risk-mitigation purposes \"&'Schedule XXA'!$B$24","v":"Before Shock - Long Exposures - Currency Derivatives Not Qualifying as held for risk-mitigation purposes Other currency 2"},null,null,null,null,null,null,null,null,0]
["Sch XXA","Currency Shock",null,{"$f":"\"Before Shock - Long Exposures - Currency Derivatives Not Qualifying as held for risk-mitigation purposes \"&'Schedule XXA'!$B$25","v":"Before Shock - Long Exposures - Currency Derivatives Not Qualifying as held for risk-mitigation purposes Other currency 3"},null,null,null,null,null,null,null,null,0]
["Sch XXA","Currency Shock",null,{"$f":"\"Before Shock - Long Exposures - Currency Derivatives Not Qualifying as held for risk-mitigation purposes \"&'Schedule XXA'!$B$26","v":"Before Shock - Long Exposures - Currency Derivatives Not Qualifying as held for risk-mitigation purposes Other currency 4"},null,null,null,null,null,null,null,null,0]
["Sch XXA","Currency Shock",null,{"$f":"\"Before Shock - Long Exposures - Currency Derivatives Not Qualifying as held for risk-mitigation purposes \"&'Schedule XXA'!$B$27","v":"Before Shock - Long Exposures - Currency Derivatives Not Qualifying as held for risk-mitigation purposes Other currency 5"},null,null,null,null,null,null,null,null,0]
["Sch XXA","Currency Shock",null,{"$f":"\"Before Shock - Long Exposures - Currency Derivatives Not Qualifying as held for risk-mitigation purposes \"&'Schedule XXA'!$B$28","v":"Before Shock - Long Exposures - Currency Derivatives Not Qualifying as held for risk-mitigation purposes Other currency 6"},null,null,null,null,null,null,null,null,0]
["Sch XXA","Currency Shock",null,{"$f":"\"Before Shock - Long Exposures - Currency Derivatives Not Qualifying as held for risk-mitigation purposes \"&'Schedule XXA'!$B$29","v":"Before Shock - Long Exposures - Currency Derivatives Not Qualifying as held for risk-mitigation purposes Other currency 7"},null,null,null,null,null,null,null,null,0]
["Sch XXA","Currency Shock",null,{"$f":"\"Before Shock - Long Exposures - Currency Derivatives Not Qualifying as held for risk-mitigation purposes \"&'Schedule XXA'!$B$30","v":"Before Shock - Long Exposures - Currency Derivatives Not Qualifying as held for risk-mitigation purposes Other currency 8"},null,null,null,null,null,null,null,null,0]
["Sch XXA","Currency Shock",null,{"$f":"\"Before Shock - Long Exposures - Currency Derivatives Not Qualifying as held for risk-mitigation purposes \"&'Schedule XXA'!$B$31","v":"Before Shock - Long Exposures - Currency Derivatives Not Qualifying as held for risk-mitigation purposes Other currency 9"},null,null,null,null,null,null,null,null,0]
["Sch XXA","Currency Shock",null,{"$f":"\"Before Shock - Long Exposures - Currency Derivatives Not Qualifying as held for risk-mitigation purposes \"&'Schedule XXA'!$B$32","v":"Before Shock - Long Exposures - Currency Derivatives Not Qualifying as held for risk-mitigation purposes Other currency 10"},null,null,null,null,null,null,null,null,0]
["Sch XXA","Currency Shock",null,{"$f":"\"Before Shock - Short Exposures - Currency Derivatives Qualifying as held for risk-mitigation purposes \"&'Schedule XXA'!$B$10","v":"Before Shock - Short Exposures - Currency Derivatives Qualifying as held for risk-mitigation purposes United States Dollars"},null,null,null,null,null,null,null,null,0]
["Sch XXA","Currency Shock",null,{"$f":"\"Before Shock - Short Exposures - Currency Derivatives Qualifying as held for risk-mitigation purposes \"&'Schedule XXA'!$B$11","v":"Before Shock - Short Exposures - Currency Derivatives Qualifying as held for risk-mitigation purposes Bermuda Dollars"},null,null,null,null,null,null,null,null,0]
["Sch XXA","Currency Shock",null,{"$f":"\"Before Shock - Short Exposures - Currency Derivatives Qualifying as held for risk-mitigation purposes \"&'Schedule XXA'!$B$12","v":"Before Shock - Short Exposures - Currency Derivatives Qualifying as held for risk-mitigation purposes Qatar Riyals"},null,null,null,null,null,null,null,null,0]
["Sch XXA","Currency Shock",null,{"$f":"\"Before Shock - Short Exposures - Currency Derivatives Qualifying as held for risk-mitigation purposes \"&'Schedule XXA'!$B$13","v":"Before Shock - Short Exposures - Currency Derivatives Qualifying as held for risk-mitigation purposes Hong Kong Dollars"},null,null,null,null,null,null,null,null,0]
["Sch XXA","Currency Shock",null,{"$f":"\"Before Shock - Short Exposures - Currency Derivatives Qualifying as held for risk-mitigation purposes \"&'Schedule XXA'!$B$14","v":"Before Shock - Short Exposures - Currency Derivatives Qualifying as held for risk-mitigation purposes Euro"},null,null,null,null,null,null,null,null,0]
["Sch XXA","Currency Shock",null,{"$f":"\"Before Shock - Short Exposures - Currency Derivatives Qualifying as held for risk-mitigation purposes \"&'Schedule XXA'!$B$15","v":"Before Shock - Short Exposures - Currency Derivatives Qualifying as held for risk-mitigation purposes Denmark Kroner"},null,null,null,null,null,null,null,null,0]
["Sch XXA","Currency Shock",null,{"$f":"\"Before Shock - Short Exposures - Currency Derivatives Qualifying as held for risk-mitigation purposes \"&'Schedule XXA'!$B$16","v":"Before Shock - Short Exposures - Currency Derivatives Qualifying as held for risk-mitigation purposes Bulgaria Leva"},null,null,null,null,null,null,null,null,0]
["Sch XXA","Currency Shock",null,{"$f":"\"Before Shock - Short Exposures - Currency Derivatives Qualifying as held for risk-mitigation purposes \"&'Schedule XXA'!$B$17","v":"Before Shock - Short Exposures - Currency Derivatives Qualifying as held for risk-mitigation purposes West African CFA Francs"},null,null,null,null,null,null,null,null,0]
["Sch XXA","Currency Shock",null,{"$f":"\"Before Shock - Short Exposures - Currency Derivatives Qualifying as held for risk-mitigation purposes \"&'Schedule XXA'!$B$18","v":"Before Shock - Short Exposures - Currency Derivatives Qualifying as held for risk-mitigation purposes Central African CFA Francs"},null,null,null,null,null,null,null,null,0]
["Sch XXA","Currency Shock",null,{"$f":"\"Before Shock - Short Exposures - Currency Derivatives Qualifying as held for risk-mitigation purposes \"&'Schedule XXA'!$B$19","v":"Before Shock - Short Exposures - Currency Derivatives Qualifying as held for risk-mitigation purposes Comorian Francs"},null,null,null,null,null,null,null,null,0]
["Sch XXA","Currency Shock",null,{"$f":"\"Before Shock - Short Exposures - Currency Derivatives Qualifying as held for risk-mitigation purposes \"&'Schedule XXA'!$B$20","v":"Before Shock - Short Exposures - Currency Derivatives Qualifying as held for risk-mitigation purposes United Kingdom Pounds"},null,null,null,null,null,null,null,null,0]
["Sch XXA","Currency Shock",null,{"$f":"\"Before Shock - Short Exposures - Currency Derivatives Qualifying as held for risk-mitigation purposes \"&'Schedule XXA'!$B$21","v":"Before Shock - Short Exposures - Currency Derivatives Qualifying as held for risk-mitigation purposes Canada Dollars"},null,null,null,null,null,null,null,null,0]
["Sch XXA","Currency Shock",null,{"$f":"\"Before Shock - Short Exposures - Currency Derivatives Qualifying as held for risk-mitigation purposes \"&'Schedule XXA'!$B$22","v":"Before Shock - Short Exposures - Currency Derivatives Qualifying as held for risk-mitigation purposes Japan Yen"},null,null,null,null,null,null,null,null,0]
["Sch XXA","Currency Shock",null,{"$f":"\"Before Shock - Short Exposures - Currency Derivatives Qualifying as held for risk-mitigation purposes \"&'Schedule XXA'!$B$23","v":"Before Shock - Short Exposures - Currency Derivatives Qualifying as held for risk-mitigation purposes Other currency 1"},null,null,null,null,null,null,null,null,0]
["Sch XXA","Currency Shock",null,{"$f":"\"Before Shock - Short Exposures - Currency Derivatives Qualifying as held for risk-mitigation purposes \"&'Schedule XXA'!$B$24","v":"Before Shock - Short Exposures - Currency Derivatives Qualifying as held for risk-mitigation purposes Other currency 2"},null,null,null,null,null,null,null,null,0]
["Sch XXA","Currency Shock",null,{"$f":"\"Before Shock - Short Exposures - Currency Derivatives Qualifying as held for risk-mitigation purposes \"&'Schedule XXA'!$B$25","v":"Before Shock - Short Exposures - Currency Derivatives Qualifying as held for risk-mitigation purposes Other currency 3"},null,null,null,null,null,null,null,null,0]
["Sch XXA","Currency Shock",null,{"$f":"\"Before Shock - Short Exposures - Currency Derivatives Qualifying as held for risk-mitigation purposes \"&'Schedule XXA'!$B$26","v":"Before Shock - Short Exposures - Currency Derivatives Qualifying as held for risk-mitigation purposes Other currency 4"},null,null,null,null,null,null,null,null,0]
["Sch XXA","Currency Shock",null,{"$f":"\"Before Shock - Short Exposures - Currency Derivatives Qualifying as held for risk-mitigation purposes \"&'Schedule XXA'!$B$27","v":"Before Shock - Short Exposures - Currency Derivatives Qualifying as held for risk-mitigation purposes Other currency 5"},null,null,null,null,null,null,null,null,0]
["Sch XXA","Currency Shock",null,{"$f":"\"Before Shock - Short Exposures - Currency Derivatives Qualifying as held for risk-mitigation purposes \"&'Schedule XXA'!$B$28","v":"Before Shock - Short Exposures - Currency Derivatives Qualifying as held for risk-mitigation purposes Other currency 6"},null,null,null,null,null,null,null,null,0]
["Sch XXA","Currency Shock",null,{"$f":"\"Before Shock - Short Exposures - Currency Derivatives Qualifying as held for risk-mitigation purposes \"&'Schedule XXA'!$B$29","v":"Before Shock - Short Exposures - Currency Derivatives Qualifying as held for risk-mitigation purposes Other currency 7"},null,null,null,null,null,null,null,null,0]
["Sch XXA","Currency Shock",null,{"$f":"\"Before Shock - Short Exposures - Currency Derivatives Qualifying as held for risk-mitigation purposes \"&'Schedule XXA'!$B$30","v":"Before Shock - Short Exposures - Currency Derivatives Qualifying as held for risk-mitigation purposes Other currency 8"},null,null,null,null,null,null,null,null,0]
["Sch XXA","Currency Shock",null,{"$f":"\"Before Shock - Short Exposures - Currency Derivatives Qualifying as held for risk-mitigation purposes \"&'Schedule XXA'!$B$31","v":"Before Shock - Short Exposures - Currency Derivatives Qualifying as held for risk-mitigation purposes Other currency 9"},null,null,null,null,null,null,null,null,0]
["Sch XXA","Currency Shock",null,{"$f":"\"Before Shock - Short Exposures - Currency Derivatives Qualifying as held for risk-mitigation purposes \"&'Schedule XXA'!$B$32","v":"Before Shock - Short Exposures - Currency Derivatives Qualifying as held for risk-mitigation purposes Other currency 10"},null,null,null,null,null,null,null,null,0]
["Sch XXA","Currency Shock",null,{"$f":"\"Before Shock - Short Exposures - Currency Derivatives Not Qualifying as held for risk-mitigation purposes \"&'Schedule XXA'!$B$10","v":"Before Shock - Short Exposures - Currency Derivatives Not Qualifying as held for risk-mitigation purposes United States Dollars"},null,null,null,null,null,null,null,null,0]
["Sch XXA","Currency Shock",null,{"$f":"\"Before Shock - Short Exposures - Currency Derivatives Not Qualifying as held for risk-mitigation purposes \"&'Schedule XXA'!$B$11","v":"Before Shock - Short Exposures - Currency Derivatives Not Qualifying as held for risk-mitigation purposes Bermuda Dollars"},null,null,null,null,null,null,null,null,0]
["Sch XXA","Currency Shock",null,{"$f":"\"Before Shock - Short Exposures - Currency Derivatives Not Qualifying as held for risk-mitigation purposes \"&'Schedule XXA'!$B$12","v":"Before Shock - Short Exposures - Currency Derivatives Not Qualifying as held for risk-mitigation purposes Qatar Riyals"},null,null,null,null,null,null,null,null,0]
["Sch XXA","Currency Shock",null,{"$f":"\"Before Shock - Short Exposures - Currency Derivatives Not Qualifying as held for risk-mitigation purposes \"&'Schedule XXA'!$B$13","v":"Before Shock - Short Exposures - Currency Derivatives Not Qualifying as held for risk-mitigation purposes Hong Kong Dollars"},null,null,null,null,null,null,null,null,0]
["Sch XXA","Currency Shock",null,{"$f":"\"Before Shock - Short Exposures - Currency Derivatives Not Qualifying as held for risk-mitigation purposes \"&'Schedule XXA'!$B$14","v":"Before Shock - Short Exposures - Currency Derivatives Not Qualifying as held for risk-mitigation purposes Euro"},null,null,null,null,null,null,null,null,0]
["Sch XXA","Currency Shock",null,{"$f":"\"Before Shock - Short Exposures - Currency Derivatives Not Qualifying as held for risk-mitigation purposes \"&'Schedule XXA'!$B$15","v":"Before Shock - Short Exposures - Currency Derivatives Not Qualifying as held for risk-mitigation purposes Denmark Kroner"},null,null,null,null,null,null,null,null,0]
["Sch XXA","Currency Shock",null,{"$f":"\"Before Shock - Short Exposures - Currency Derivatives Not Qualifying as held for risk-mitigation purposes \"&'Schedule XXA'!$B$16","v":"Before Shock - Short Exposures - Currency Derivatives Not Qualifying as held for risk-mitigation purposes Bulgaria Leva"},null,null,null,null,null,null,null,null,0]
["Sch XXA","Currency Shock",null,{"$f":"\"Before Shock - Short Exposures - Currency Derivatives Not Qualifying as held for risk-mitigation purposes \"&'Schedule XXA'!$B$17","v":"Before Shock - Short Exposures - Currency Derivatives Not Qualifying as held for risk-mitigation purposes West African CFA Francs"},null,null,null,null,null,null,null,null,0]
["Sch XXA","Currency Shock",null,{"$f":"\"Before Shock - Short Exposures - Currency Derivatives Not Qualifying as held for risk-mitigation purposes \"&'Schedule XXA'!$B$18","v":"Before Shock - Short Exposures - Currency Derivatives Not Qualifying as held for risk-mitigation purposes Central African CFA Francs"},null,null,null,null,null,null,null,null,0]
["Sch XXA","Currency Shock",null,{"$f":"\"Before Shock - Short Exposures - Currency Derivatives Not Qualifying as held for risk-mitigation purposes \"&'Schedule XXA'!$B$19","v":"Before Shock - Short Exposures - Currency Derivatives Not Qualifying as held for risk-mitigation purposes Comorian Francs"},null,null,null,null,null,null,null,null,0]
["Sch XXA","Currency Shock",null,{"$f":"\"Before Shock - Short Exposures - Currency Derivatives Not Qualifying as held for risk-mitigation purposes \"&'Schedule XXA'!$B$20","v":"Before Shock - Short Exposures - Currency Derivatives Not Qualifying as held for risk-mitigation purposes United Kingdom Pounds"},null,null,null,null,null,null,null,null,0]
["Sch XXA","Currency Shock",null,{"$f":"\"Before Shock - Short Exposures - Currency Derivatives Not Qualifying as held for risk-mitigation purposes \"&'Schedule XXA'!$B$21","v":"Before Shock - Short Exposures - Currency Derivatives Not Qualifying as held for risk-mitigation purposes Canada Dollars"},null,null,null,null,null,null,null,null,0]
["Sch XXA","Currency Shock",null,{"$f":"\"Before Shock - Short Exposures - Currency Derivatives Not Qualifying as held for risk-mitigation purposes \"&'Schedule XXA'!$B$22","v":"Before Shock - Short Exposures - Currency Derivatives Not Qualifying as held for risk-mitigation purposes Japan Yen"},null,null,null,null,null,null,null,null,0]
["Sch XXA","Currency Shock",null,{"$f":"\"Before Shock - Short Exposures - Currency Derivatives Not Qualifying as held for risk-mitigation purposes \"&'Schedule XXA'!$B$23","v":"Before Shock - Short Exposures - Currency Derivatives Not Qualifying as held for risk-mitigation purposes Other currency 1"},null,null,null,null,null,null,null,null,0]
["Sch XXA","Currency Shock",null,{"$f":"\"Before Shock - Short Exposures - Currency Derivatives Not Qualifying as held for risk-mitigation purposes \"&'Schedule XXA'!$B$24","v":"Before Shock - Short Exposures - Currency Derivatives Not Qualifying as held for risk-mitigation purposes Other currency 2"},null,null,null,null,null,null,null,null,0]
["Sch XXA","Currency Shock",null,{"$f":"\"Before Shock - Short Exposures - Currency Derivatives Not Qualifying as held for risk-mitigation purposes \"&'Schedule XXA'!$B$25","v":"Before Shock - Short Exposures - Currency Derivatives Not Qualifying as held for risk-mitigation purposes Other currency 3"},null,null,null,null,null,null,null,null,0]
["Sch XXA","Currency Shock",null,{"$f":"\"Before Shock - Short Exposures - Currency Derivatives Not Qualifying as held for risk-mitigation purposes \"&'Schedule XXA'!$B$26","v":"Before Shock - Short Exposures - Currency Derivatives Not Qualifying as held for risk-mitigation purposes Other currency 4"},null,null,null,null,null,null,null,null,0]
["Sch XXA","Currency Shock",null,{"$f":"\"Before Shock - Short Exposures - Currency Derivatives Not Qualifying as held for risk-mitigation purposes \"&'Schedule XXA'!$B$27","v":"Before Shock - Short Exposures - Currency Derivatives Not Qualifying as held for risk-mitigation purposes Other currency 5"},null,null,null,null,null,null,null,null,0]
["Sch XXA","Currency Shock",null,{"$f":"\"Before Shock - Short Exposures - Currency Derivatives Not Qualifying as held for risk-mitigation purposes \"&'Schedule XXA'!$B$28","v":"Before Shock - Short Exposures - Currency Derivatives Not Qualifying as held for risk-mitigation purposes Other currency 6"},null,null,null,null,null,null,null,null,0]
["Sch XXA","Currency Shock",null,{"$f":"\"Before Shock - Short Exposures - Currency Derivatives Not Qualifying as held for risk-mitigation purposes \"&'Schedule XXA'!$B$29","v":"Before Shock - Short Exposures - Currency Derivatives Not Qualifying as held for risk-mitigation purposes Other currency 7"},null,null,null,null,null,null,null,null,0]
["Sch XXA","Currency Shock",null,{"$f":"\"Before Shock - Short Exposures - Currency Derivatives Not Qualifying as held for risk-mitigation purposes \"&'Schedule XXA'!$B$30","v":"Before Shock - Short Exposures - Currency Derivatives Not Qualifying as held for risk-mitigation purposes Other currency 8"},null,null,null,null,null,null,null,null,0]
["Sch XXA","Currency Shock",null,{"$f":"\"Before Shock - Short Exposures - Currency Derivatives Not Qualifying as held for risk-mitigation purposes \"&'Schedule XXA'!$B$31","v":"Before Shock - Short Exposures - Currency Derivatives Not Qualifying as held for risk-mitigation purposes Other currency 9"},null,null,null,null,null,null,null,null,0]
["Sch XXA","Currency Shock",null,{"$f":"\"Before Shock - Short Exposures - Currency Derivatives Not Qualifying as held for risk-mitigation purposes \"&'Schedule XXA'!$B$32","v":"Before Shock - Short Exposures - Currency Derivatives Not Qualifying as held for risk-mitigation purposes Other currency 10"},null,null,null,null,null,null,null,null,0]
["Sch XXA","Currency Shock",null,{"$f":"\"Before Shock - B.E. Liabilities \"&'Schedule XXA'!$B$10","v":"Before Shock - B.E. Liabilities United States Dollars"},null,null,null,null,null,null,null,null,0]
["Sch XXA","Currency Shock",null,{"$f":"\"Before Shock - B.E. Liabilities \"&'Schedule XXA'!$B$11","v":"Before Shock - B.E. Liabilities Bermuda Dollars"},null,null,null,null,null,null,null,null,0]
["Sch XXA","Currency Shock",null,{"$f":"\"Before Shock - B.E. Liabilities \"&'Schedule XXA'!$B$12","v":"Before Shock - B.E. Liabilities Qatar Riyals"},null,null,null,null,null,null,null,null,0]
["Sch XXA","Currency Shock",null,{"$f":"\"Before Shock - B.E. Liabilities \"&'Schedule XXA'!$B$13","v":"Before Shock - B.E. Liabilities Hong Kong Dollars"},null,null,null,null,null,null,null,null,0]
["Sch XXA","Currency Shock",null,{"$f":"\"Before Shock - B.E. Liabilities \"&'Schedule XXA'!$B$14","v":"Before Shock - B.E. Liabilities Euro"},null,null,null,null,null,null,null,null,0]
["Sch XXA","Currency Shock",null,{"$f":"\"Before Shock - B.E. Liabilities \"&'Schedule XXA'!$B$15","v":"Before Shock - B.E. Liabilities Denmark Kroner"},null,null,null,null,null,null,null,null,0]
["Sch XXA","Currency Shock",null,{"$f":"\"Before Shock - B.E. Liabilities \"&'Schedule XXA'!$B$16","v":"Before Shock - B.E. Liabilities Bulgaria Leva"},null,null,null,null,null,null,null,null,0]
["Sch XXA","Currency Shock",null,{"$f":"\"Before Shock - B.E. Liabilities \"&'Schedule XXA'!$B$17","v":"Before Shock - B.E. Liabilities West African CFA Francs"},null,null,null,null,null,null,null,null,0]
["Sch XXA","Currency Shock",null,{"$f":"\"Before Shock - B.E. Liabilities \"&'Schedule XXA'!$B$18","v":"Before Shock - B.E. Liabilities Central African CFA Francs"},null,null,null,null,null,null,null,null,0]
["Sch XXA","Currency Shock",null,{"$f":"\"Before Shock - B.E. Liabilities \"&'Schedule XXA'!$B$19","v":"Before Shock - B.E. Liabilities Comorian Francs"},null,null,null,null,null,null,null,null,0]
["Sch XXA","Currency Shock",null,{"$f":"\"Before Shock - B.E. Liabilities \"&'Schedule XXA'!$B$20","v":"Before Shock - B.E. Liabilities United Kingdom Pounds"},null,null,null,null,null,null,null,null,0]
["Sch XXA","Currency Shock",null,{"$f":"\"Before Shock - B.E. Liabilities \"&'Schedule XXA'!$B$21","v":"Before Shock - B.E. Liabilities Canada Dollars"},null,null,null,null,null,null,null,null,0]
["Sch XXA","Currency Shock",null,{"$f":"\"Before Shock - B.E. Liabilities \"&'Schedule XXA'!$B$22","v":"Before Shock - B.E. Liabilities Japan Yen"},null,null,null,null,null,null,null,null,0]
["Sch XXA","Currency Shock",null,{"$f":"\"Before Shock - B.E. Liabilities \"&'Schedule XXA'!$B$23","v":"Before Shock - B.E. Liabilities Other currency 1"},null,null,null,null,null,null,null,null,0]
["Sch XXA","Currency Shock",null,{"$f":"\"Before Shock - B.E. Liabilities \"&'Schedule XXA'!$B$24","v":"Before Shock - B.E. Liabilities Other currency 2"},null,null,null,null,null,null,null,null,0]
["Sch XXA","Currency Shock",null,{"$f":"\"Before Shock - B.E. Liabilities \"&'Schedule XXA'!$B$25","v":"Before Shock - B.E. Liabilities Other currency 3"},null,null,null,null,null,null,null,null,0]
["Sch XXA","Currency Shock",null,{"$f":"\"Before Shock - B.E. Liabilities \"&'Schedule XXA'!$B$26","v":"Before Shock - B.E. Liabilities Other currency 4"},null,null,null,null,null,null,null,null,0]
["Sch XXA","Currency Shock",null,{"$f":"\"Before Shock - B.E. Liabilities \"&'Schedule XXA'!$B$27","v":"Before Shock - B.E. Liabilities Other currency 5"},null,null,null,null,null,null,null,null,0]
["Sch XXA","Currency Shock",null,{"$f":"\"Before Shock - B.E. Liabilities \"&'Schedule XXA'!$B$28","v":"Before Shock - B.E. Liabilities Other currency 6"},null,null,null,null,null,null,null,null,0]
["Sch XXA","Currency Shock",null,{"$f":"\"Before Shock - B.E. Liabilities \"&'Schedule XXA'!$B$29","v":"Before Shock - B.E. Liabilities Other currency 7"},null,null,null,null,null,null,null,null,0]
["Sch XXA","Currency Shock",null,{"$f":"\"Before Shock - B.E. Liabilities \"&'Schedule XXA'!$B$30","v":"Before Shock - B.E. Liabilities Other currency 8"},null,null,null,null,null,null,null,null,0]
["Sch XXA","Currency Shock",null,{"$f":"\"Before Shock - B.E. Liabilities \"&'Schedule XXA'!$B$31","v":"Before Shock - B.E. Liabilities Other currency 9"},null,null,null,null,null,null,null,null,0]
["Sch XXA","Currency Shock",null,{"$f":"\"Before Shock - B.E. Liabilities \"&'Schedule XXA'!$B$32","v":"Before Shock - B.E. Liabilities Other currency 10"},null,null,null,null,null,null,null,null,0]
["Sch XXA","Currency Shock",null,{"$f":"\"After Shock - Assets - Excluding Currency - Sensitive Derivatives \"&'Schedule XXA'!$B$10","v":"After Shock - Assets - Excluding Currency - Sensitive Derivatives United States Dollars"},null,null,null,null,null,null,null,null,0]
["Sch XXA","Currency Shock",null,{"$f":"\"After Shock - Assets - Excluding Currency - Sensitive Derivatives \"&'Schedule XXA'!$B$11","v":"After Shock - Assets - Excluding Currency - Sensitive Derivatives Bermuda Dollars"},null,null,null,null,null,null,null,null,0]
["Sch XXA","Currency Shock",null,{"$f":"\"After Shock - Assets - Excluding Currency - Sensitive Derivatives \"&'Schedule XXA'!$B$12","v":"After Shock - Assets - Excluding Currency - Sensitive Derivatives Qatar Riyals"},null,null,null,null,null,null,null,null,0]
["Sch XXA","Currency Shock",null,{"$f":"\"After Shock - Assets - Excluding Currency - Sensitive Derivatives \"&'Schedule XXA'!$B$13","v":"After Shock - Assets - Excluding Currency - Sensitive Derivatives Hong Kong Dollars"},null,null,null,null,null,null,null,null,0]
["Sch XXA","Currency Shock",null,{"$f":"\"After Shock - Assets - Excluding Currency - Sensitive Derivatives \"&'Schedule XXA'!$B$14","v":"After Shock - Assets - Excluding Currency - Sensitive Derivatives Euro"},null,null,null,null,null,null,null,null,0]
["Sch XXA","Currency Shock",null,{"$f":"\"After Shock - Assets - Excluding Currency - Sensitive Derivatives \"&'Schedule XXA'!$B$15","v":"After Shock - Assets - Excluding Currency - Sensitive Derivatives Denmark Kroner"},null,null,null,null,null,null,null,null,0]
["Sch XXA","Currency Shock",null,{"$f":"\"After Shock - Assets - Excluding Currency - Sensitive Derivatives \"&'Schedule XXA'!$B$16","v":"After Shock - Assets - Excluding Currency - Sensitive Derivatives Bulgaria Leva"},null,null,null,null,null,null,null,null,0]
["Sch XXA","Currency Shock",null,{"$f":"\"After Shock - Assets - Excluding Currency - Sensitive Derivatives \"&'Schedule XXA'!$B$17","v":"After Shock - Assets - Excluding Currency - Sensitive Derivatives West African CFA Francs"},null,null,null,null,null,null,null,null,0]
["Sch XXA","Currency Shock",null,{"$f":"\"After Shock - Assets - Excluding Currency - Sensitive Derivatives \"&'Schedule XXA'!$B$18","v":"After Shock - Assets - Excluding Currency - Sensitive Derivatives Central African CFA Francs"},null,null,null,null,null,null,null,null,0]
["Sch XXA","Currency Shock",null,{"$f":"\"After Shock - Assets - Excluding Currency - Sensitive Derivatives \"&'Schedule XXA'!$B$19","v":"After Shock - Assets - Excluding Currency - Sensitive Derivatives Comorian Francs"},null,null,null,null,null,null,null,null,0]
["Sch XXA","Currency Shock",null,{"$f":"\"After Shock - Assets - Excluding Currency - Sensitive Derivatives \"&'Schedule XXA'!$B$20","v":"After Shock - Assets - Excluding Currency - Sensitive Derivatives United Kingdom Pounds"},null,null,null,null,null,null,null,null,0]
["Sch XXA","Currency Shock",null,{"$f":"\"After Shock - Assets - Excluding Currency - Sensitive Derivatives \"&'Schedule XXA'!$B$21","v":"After Shock - Assets - Excluding Currency - Sensitive Derivatives Canada Dollars"},null,null,null,null,null,null,null,null,0]
["Sch XXA","Currency Shock",null,{"$f":"\"After Shock - Assets - Excluding Currency - Sensitive Derivatives \"&'Schedule XXA'!$B$22","v":"After Shock - Assets - Excluding Currency - Sensitive Derivatives Japan Yen"},null,null,null,null,null,null,null,null,0]
["Sch XXA","Currency Shock",null,{"$f":"\"After Shock - Assets - Excluding Currency - Sensitive Derivatives \"&'Schedule XXA'!$B$23","v":"After Shock - Assets - Excluding Currency - Sensitive Derivatives Other currency 1"},null,null,null,null,null,null,null,null,0]
["Sch XXA","Currency Shock",null,{"$f":"\"After Shock - Assets - Excluding Currency - Sensitive Derivatives \"&'Schedule XXA'!$B$24","v":"After Shock - Assets - Excluding Currency - Sensitive Derivatives Other currency 2"},null,null,null,null,null,null,null,null,0]
["Sch XXA","Currency Shock",null,{"$f":"\"After Shock - Assets - Excluding Currency - Sensitive Derivatives \"&'Schedule XXA'!$B$25","v":"After Shock - Assets - Excluding Currency - Sensitive Derivatives Other currency 3"},null,null,null,null,null,null,null,null,0]
["Sch XXA","Currency Shock",null,{"$f":"\"After Shock - Assets - Excluding Currency - Sensitive Derivatives \"&'Schedule XXA'!$B$26","v":"After Shock - Assets - Excluding Currency - Sensitive Derivatives Other currency 4"},null,null,null,null,null,null,null,null,0]
["Sch XXA","Currency Shock",null,{"$f":"\"After Shock - Assets - Excluding Currency - Sensitive Derivatives \"&'Schedule XXA'!$B$27","v":"After Shock - Assets - Excluding Currency - Sensitive Derivatives Other currency 5"},null,null,null,null,null,null,null,null,0]
["Sch XXA","Currency Shock",null,{"$f":"\"After Shock - Assets - Excluding Currency - Sensitive Derivatives \"&'Schedule XXA'!$B$28","v":"After Shock - Assets - Excluding Currency - Sensitive Derivatives Other currency 6"},null,null,null,null,null,null,null,null,0]
["Sch XXA","Currency Shock",null,{"$f":"\"After Shock - Assets - Excluding Currency - Sensitive Derivatives \"&'Schedule XXA'!$B$29","v":"After Shock - Assets - Excluding Currency - Sensitive Derivatives Other currency 7"},null,null,null,null,null,null,null,null,0]
["Sch XXA","Currency Shock",null,{"$f":"\"After Shock - Assets - Excluding Currency - Sensitive Derivatives \"&'Schedule XXA'!$B$30","v":"After Shock - Assets - Excluding Currency - Sensitive Derivatives Other currency 8"},null,null,null,null,null,null,null,null,0]
["Sch XXA","Currency Shock",null,{"$f":"\"After Shock - Assets - Excluding Currency - Sensitive Derivatives \"&'Schedule XXA'!$B$31","v":"After Shock - Assets - Excluding Currency - Sensitive Derivatives Other currency 9"},null,null,null,null,null,null,null,null,0]
["Sch XXA","Currency Shock",null,{"$f":"\"After Shock - Assets - Excluding Currency - Sensitive Derivatives \"&'Schedule XXA'!$B$32","v":"After Shock - Assets - Excluding Currency - Sensitive Derivatives Other currency 10"},null,null,null,null,null,null,null,null,0]
["Sch XXA","Currency Shock",null,{"$f":"\"After Shock - Long Exposures - Currency Derivatives Qualifying as held for risk-mitigation purposes \"&'Schedule XXA'!$B$10","v":"After Shock - Long Exposures - Currency Derivatives Qualifying as held for risk-mitigation purposes United States Dollars"},null,null,null,null,null,null,null,null,0]
["Sch XXA","Currency Shock",null,{"$f":"\"After Shock - Long Exposures - Currency Derivatives Qualifying as held for risk-mitigation purposes \"&'Schedule XXA'!$B$11","v":"After Shock - Long Exposures - Currency Derivatives Qualifying as held for risk-mitigation purposes Bermuda Dollars"},null,null,null,null,null,null,null,null,0]
["Sch XXA","Currency Shock",null,{"$f":"\"After Shock - Long Exposures - Currency Derivatives Qualifying as held for risk-mitigation purposes \"&'Schedule XXA'!$B$12","v":"After Shock - Long Exposures - Currency Derivatives Qualifying as held for risk-mitigation purposes Qatar Riyals"},null,null,null,null,null,null,null,null,0]
["Sch XXA","Currency Shock",null,{"$f":"\"After Shock - Long Exposures - Currency Derivatives Qualifying as held for risk-mitigation purposes \"&'Schedule XXA'!$B$13","v":"After Shock - Long Exposures - Currency Derivatives Qualifying as held for risk-mitigation purposes Hong Kong Dollars"},null,null,null,null,null,null,null,null,0]
["Sch XXA","Currency Shock",null,{"$f":"\"After Shock - Long Exposures - Currency Derivatives Qualifying as held for risk-mitigation purposes \"&'Schedule XXA'!$B$14","v":"After Shock - Long Exposures - Currency Derivatives Qualifying as held for risk-mitigation purposes Euro"},null,null,null,null,null,null,null,null,0]
["Sch XXA","Currency Shock",null,{"$f":"\"After Shock - Long Exposures - Currency Derivatives Qualifying as held for risk-mitigation purposes \"&'Schedule XXA'!$B$15","v":"After Shock - Long Exposures - Currency Derivatives Qualifying as held for risk-mitigation purposes Denmark Kroner"},null,null,null,null,null,null,null,null,0]
["Sch XXA","Currency Shock",null,{"$f":"\"After Shock - Long Exposures - Currency Derivatives Qualifying as held for risk-mitigation purposes \"&'Schedule XXA'!$B$16","v":"After Shock - Long Exposures - Currency Derivatives Qualifying as held for risk-mitigation purposes Bulgaria Leva"},null,null,null,null,null,null,null,null,0]
["Sch XXA","Currency Shock",null,{"$f":"\"After Shock - Long Exposures - Currency Derivatives Qualifying as held for risk-mitigation purposes \"&'Schedule XXA'!$B$17","v":"After Shock - Long Exposures - Currency Derivatives Qualifying as held for risk-mitigation purposes West African CFA Francs"},null,null,null,null,null,null,null,null,0]
["Sch XXA","Currency Shock",null,{"$f":"\"After Shock - Long Exposures - Currency Derivatives Qualifying as held for risk-mitigation purposes \"&'Schedule XXA'!$B$18","v":"After Shock - Long Exposures - Currency Derivatives Qualifying as held for risk-mitigation purposes Central African CFA Francs"},null,null,null,null,null,null,null,null,0]
["Sch XXA","Currency Shock",null,{"$f":"\"After Shock - Long Exposures - Currency Derivatives Qualifying as held for risk-mitigation purposes \"&'Schedule XXA'!$B$19","v":"After Shock - Long Exposures - Currency Derivatives Qualifying as held for risk-mitigation purposes Comorian Francs"},null,null,null,null,null,null,null,null,0]
["Sch XXA","Currency Shock",null,{"$f":"\"After Shock - Long Exposures - Currency Derivatives Qualifying as held for risk-mitigation purposes \"&'Schedule XXA'!$B$20","v":"After Shock - Long Exposures - Currency Derivatives Qualifying as held for risk-mitigation purposes United Kingdom Pounds"},null,null,null,null,null,null,null,null,0]
["Sch XXA","Currency Shock",null,{"$f":"\"After Shock - Long Exposures - Currency Derivatives Qualifying as held for risk-mitigation purposes \"&'Schedule XXA'!$B$21","v":"After Shock - Long Exposures - Currency Derivatives Qualifying as held for risk-mitigation purposes Canada Dollars"},null,null,null,null,null,null,null,null,0]
["Sch XXA","Currency Shock",null,{"$f":"\"After Shock - Long Exposures - Currency Derivatives Qualifying as held for risk-mitigation purposes \"&'Schedule XXA'!$B$22","v":"After Shock - Long Exposures - Currency Derivatives Qualifying as held for risk-mitigation purposes Japan Yen"},null,null,null,null,null,null,null,null,0]
["Sch XXA","Currency Shock",null,{"$f":"\"After Shock - Long Exposures - Currency Derivatives Qualifying as held for risk-mitigation purposes \"&'Schedule XXA'!$B$23","v":"After Shock - Long Exposures - Currency Derivatives Qualifying as held for risk-mitigation purposes Other currency 1"},null,null,null,null,null,null,null,null,0]
["Sch XXA","Currency Shock",null,{"$f":"\"After Shock - Long Exposures - Currency Derivatives Qualifying as held for risk-mitigation purposes \"&'Schedule XXA'!$B$24","v":"After Shock - Long Exposures - Currency Derivatives Qualifying as held for risk-mitigation purposes Other currency 2"},null,null,null,null,null,null,null,null,0]
["Sch XXA","Currency Shock",null,{"$f":"\"After Shock - Long Exposures - Currency Derivatives Qualifying as held for risk-mitigation purposes \"&'Schedule XXA'!$B$25","v":"After Shock - Long Exposures - Currency Derivatives Qualifying as held for risk-mitigation purposes Other currency 3"},null,null,null,null,null,null,null,null,0]
["Sch XXA","Currency Shock",null,{"$f":"\"After Shock - Long Exposures - Currency Derivatives Qualifying as held for risk-mitigation purposes \"&'Schedule XXA'!$B$26","v":"After Shock - Long Exposures - Currency Derivatives Qualifying as held for risk-mitigation purposes Other currency 4"},null,null,null,null,null,null,null,null,0]
["Sch XXA","Currency Shock",null,{"$f":"\"After Shock - Long Exposures - Currency Derivatives Qualifying as held for risk-mitigation purposes \"&'Schedule XXA'!$B$27","v":"After Shock - Long Exposures - Currency Derivatives Qualifying as held for risk-mitigation purposes Other currency 5"},null,null,null,null,null,null,null,null,0]
["Sch XXA","Currency Shock",null,{"$f":"\"After Shock - Long Exposures - Currency Derivatives Qualifying as held for risk-mitigation purposes \"&'Schedule XXA'!$B$28","v":"After Shock - Long Exposures - Currency Derivatives Qualifying as held for risk-mitigation purposes Other currency 6"},null,null,null,null,null,null,null,null,0]
["Sch XXA","Currency Shock",null,{"$f":"\"After Shock - Long Exposures - Currency Derivatives Qualifying as held for risk-mitigation purposes \"&'Schedule XXA'!$B$29","v":"After Shock - Long Exposures - Currency Derivatives Qualifying as held for risk-mitigation purposes Other currency 7"},null,null,null,null,null,null,null,null,0]
["Sch XXA","Currency Shock",null,{"$f":"\"After Shock - Long Exposures - Currency Derivatives Qualifying as held for risk-mitigation purposes \"&'Schedule XXA'!$B$30","v":"After Shock - Long Exposures - Currency Derivatives Qualifying as held for risk-mitigation purposes Other currency 8"},null,null,null,null,null,null,null,null,0]
["Sch XXA","Currency Shock",null,{"$f":"\"After Shock - Long Exposures - Currency Derivatives Qualifying as held for risk-mitigation purposes \"&'Schedule XXA'!$B$31","v":"After Shock - Long Exposures - Currency Derivatives Qualifying as held for risk-mitigation purposes Other currency 9"},null,null,null,null,null,null,null,null,0]
["Sch XXA","Currency Shock",null,{"$f":"\"After Shock - Long Exposures - Currency Derivatives Qualifying as held for risk-mitigation purposes \"&'Schedule XXA'!$B$32","v":"After Shock - Long Exposures - Currency Derivatives Qualifying as held for risk-mitigation purposes Other currency 10"},null,null,null,null,null,null,null,null,0]
["Sch XXA","Currency Shock",null,{"$f":"\"After Shock - Long Exposures - Currency Derivatives Not Qualifying as held for risk-mitigation purposes \"&'Schedule XXA'!$B$10","v":"After Shock - Long Exposures - Currency Derivatives Not Qualifying as held for risk-mitigation purposes United States Dollars"},null,null,null,null,null,null,null,null,0]
["Sch XXA","Currency Shock",null,{"$f":"\"After Shock - Long Exposures - Currency Derivatives Not Qualifying as held for risk-mitigation purposes \"&'Schedule XXA'!$B$11","v":"After Shock - Long Exposures - Currency Derivatives Not Qualifying as held for risk-mitigation purposes Bermuda Dollars"},null,null,null,null,null,null,null,null,0]
["Sch XXA","Currency Shock",null,{"$f":"\"After Shock - Long Exposures - Currency Derivatives Not Qualifying as held for risk-mitigation purposes \"&'Schedule XXA'!$B$12","v":"After Shock - Long Exposures - Currency Derivatives Not Qualifying as held for risk-mitigation purposes Qatar Riyals"},null,null,null,null,null,null,null,null,0]
["Sch XXA","Currency Shock",null,{"$f":"\"After Shock - Long Exposures - Currency Derivatives Not Qualifying as held for risk-mitigation purposes \"&'Schedule XXA'!$B$13","v":"After Shock - Long Exposures - Currency Derivatives Not Qualifying as held for risk-mitigation purposes Hong Kong Dollars"},null,null,null,null,null,null,null,null,0]
["Sch XXA","Currency Shock",null,{"$f":"\"After Shock - Long Exposures - Currency Derivatives Not Qualifying as held for risk-mitigation purposes \"&'Schedule XXA'!$B$14","v":"After Shock - Long Exposures - Currency Derivatives Not Qualifying as held for risk-mitigation purposes Euro"},null,null,null,null,null,null,null,null,0]
["Sch XXA","Currency Shock",null,{"$f":"\"After Shock - Long Exposures - Currency Derivatives Not Qualifying as held for risk-mitigation purposes \"&'Schedule XXA'!$B$15","v":"After Shock - Long Exposures - Currency Derivatives Not Qualifying as held for risk-mitigation purposes Denmark Kroner"},null,null,null,null,null,null,null,null,0]
["Sch XXA","Currency Shock",null,{"$f":"\"After Shock - Long Exposures - Currency Derivatives Not Qualifying as held for risk-mitigation purposes \"&'Schedule XXA'!$B$16","v":"After Shock - Long Exposures - Currency Derivatives Not Qualifying as held for risk-mitigation purposes Bulgaria Leva"},null,null,null,null,null,null,null,null,0]
["Sch XXA","Currency Shock",null,{"$f":"\"After Shock - Long Exposures - Currency Derivatives Not Qualifying as held for risk-mitigation purposes \"&'Schedule XXA'!$B$17","v":"After Shock - Long Exposures - Currency Derivatives Not Qualifying as held for risk-mitigation purposes West African CFA Francs"},null,null,null,null,null,null,null,null,0]
["Sch XXA","Currency Shock",null,{"$f":"\"After Shock - Long Exposures - Currency Derivatives Not Qualifying as held for risk-mitigation purposes \"&'Schedule XXA'!$B$18","v":"After Shock - Long Exposures - Currency Derivatives Not Qualifying as held for risk-mitigation purposes Central African CFA Francs"},null,null,null,null,null,null,null,null,0]
["Sch XXA","Currency Shock",null,{"$f":"\"After Shock - Long Exposures - Currency Derivatives Not Qualifying as held for risk-mitigation purposes \"&'Schedule XXA'!$B$19","v":"After Shock - Long Exposures - Currency Derivatives Not Qualifying as held for risk-mitigation purposes Comorian Francs"},null,null,null,null,null,null,null,null,0]
["Sch XXA","Currency Shock",null,{"$f":"\"After Shock - Long Exposures - Currency Derivatives Not Qualifying as held for risk-mitigation purposes \"&'Schedule XXA'!$B$20","v":"After Shock - Long Exposures - Currency Derivatives Not Qualifying as held for risk-mitigation purposes United Kingdom Pounds"},null,null,null,null,null,null,null,null,0]
["Sch XXA","Currency Shock",null,{"$f":"\"After Shock - Long Exposures - Currency Derivatives Not Qualifying as held for risk-mitigation purposes \"&'Schedule XXA'!$B$21","v":"After Shock - Long Exposures - Currency Derivatives Not Qualifying as held for risk-mitigation purposes Canada Dollars"},null,null,null,null,null,null,null,null,0]
["Sch XXA","Currency Shock",null,{"$f":"\"After Shock - Long Exposures - Currency Derivatives Not Qualifying as held for risk-mitigation purposes \"&'Schedule XXA'!$B$22","v":"After Shock - Long Exposures - Currency Derivatives Not Qualifying as held for risk-mitigation purposes Japan Yen"},null,null,null,null,null,null,null,null,0]
["Sch XXA","Currency Shock",null,{"$f":"\"After Shock - Long Exposures - Currency Derivatives Not Qualifying as held for risk-mitigation purposes \"&'Schedule XXA'!$B$23","v":"After Shock - Long Exposures - Currency Derivatives Not Qualifying as held for risk-mitigation purposes Other currency 1"},null,null,null,null,null,null,null,null,0]
["Sch XXA","Currency Shock",null,{"$f":"\"After Shock - Long Exposures - Currency Derivatives Not Qualifying as held for risk-mitigation purposes \"&'Schedule XXA'!$B$24","v":"After Shock - Long Exposures - Currency Derivatives Not Qualifying as held for risk-mitigation purposes Other currency 2"},null,null,null,null,null,null,null,null,0]
["Sch XXA","Currency Shock",null,{"$f":"\"After Shock - Long Exposures - Currency Derivatives Not Qualifying as held for risk-mitigation purposes \"&'Schedule XXA'!$B$25","v":"After Shock - Long Exposures - Currency Derivatives Not Qualifying as held for risk-mitigation purposes Other currency 3"},null,null,null,null,null,null,null,null,0]
["Sch XXA","Currency Shock",null,{"$f":"\"After Shock - Long Exposures - Currency Derivatives Not Qualifying as held for risk-mitigation purposes \"&'Schedule XXA'!$B$26","v":"After Shock - Long Exposures - Currency Derivatives Not Qualifying as held for risk-mitigation purposes Other currency 4"},null,null,null,null,null,null,null,null,0]
["Sch XXA","Currency Shock",null,{"$f":"\"After Shock - Long Exposures - Currency Derivatives Not Qualifying as held for risk-mitigation purposes \"&'Schedule XXA'!$B$27","v":"After Shock - Long Exposures - Currency Derivatives Not Qualifying as held for risk-mitigation purposes Other currency 5"},null,null,null,null,null,null,null,null,0]
["Sch XXA","Currency Shock",null,{"$f":"\"After Shock - Long Exposures - Currency Derivatives Not Qualifying as held for risk-mitigation purposes \"&'Schedule XXA'!$B$28","v":"After Shock - Long Exposures - Currency Derivatives Not Qualifying as held for risk-mitigation purposes Other currency 6"},null,null,null,null,null,null,null,null,0]
["Sch XXA","Currency Shock",null,{"$f":"\"After Shock - Long Exposures - Currency Derivatives Not Qualifying as held for risk-mitigation purposes \"&'Schedule XXA'!$B$29","v":"After Shock - Long Exposures - Currency Derivatives Not Qualifying as held for risk-mitigation purposes Other currency 7"},null,null,null,null,null,null,null,null,0]
["Sch XXA","Currency Shock",null,{"$f":"\"After Shock - Long Exposures - Currency Derivatives Not Qualifying as held for risk-mitigation purposes \"&'Schedule XXA'!$B$30","v":"After Shock - Long Exposures - Currency Derivatives Not Qualifying as held for risk-mitigation purposes Other currency 8"},null,null,null,null,null,null,null,null,0]
["Sch XXA","Currency Shock",null,{"$f":"\"After Shock - Long Exposures - Currency Derivatives Not Qualifying as held for risk-mitigation purposes \"&'Schedule XXA'!$B$31","v":"After Shock - Long Exposures - Currency Derivatives Not Qualifying as held for risk-mitigation purposes Other currency 9"},null,null,null,null,null,null,null,null,0]
["Sch XXA","Currency Shock",null,{"$f":"\"After Shock - Long Exposures - Currency Derivatives Not Qualifying as held for risk-mitigation purposes \"&'Schedule XXA'!$B$32","v":"After Shock - Long Exposures - Currency Derivatives Not Qualifying as held for risk-mitigation purposes Other currency 10"},null,null,null,null,null,null,null,null,0]
["Sch XXA","Currency Shock",null,{"$f":"\"After Shock - Short Exposures - Currency Derivatives Qualifying as held for risk-mitigation purposes \"&'Schedule XXA'!$B$10","v":"After Shock - Short Exposures - Currency Derivatives Qualifying as held for risk-mitigation purposes United States Dollars"},null,null,null,null,null,null,null,null,0]
["Sch XXA","Currency Shock",null,{"$f":"\"After Shock - Short Exposures - Currency Derivatives Qualifying as held for risk-mitigation purposes \"&'Schedule XXA'!$B$11","v":"After Shock - Short Exposures - Currency Derivatives Qualifying as held for risk-mitigation purposes Bermuda Dollars"},null,null,null,null,null,null,null,null,0]
["Sch XXA","Currency Shock",null,{"$f":"\"After Shock - Short Exposures - Currency Derivatives Qualifying as held for risk-mitigation purposes \"&'Schedule XXA'!$B$12","v":"After Shock - Short Exposures - Currency Derivatives Qualifying as held for risk-mitigation purposes Qatar Riyals"},null,null,null,null,null,null,null,null,0]
["Sch XXA","Currency Shock",null,{"$f":"\"After Shock - Short Exposures - Currency Derivatives Qualifying as held for risk-mitigation purposes \"&'Schedule XXA'!$B$13","v":"After Shock - Short Exposures - Currency Derivatives Qualifying as held for risk-mitigation purposes Hong Kong Dollars"},null,null,null,null,null,null,null,null,0]
["Sch XXA","Currency Shock",null,{"$f":"\"After Shock - Short Exposures - Currency Derivatives Qualifying as held for risk-mitigation purposes \"&'Schedule XXA'!$B$14","v":"After Shock - Short Exposures - Currency Derivatives Qualifying as held for risk-mitigation purposes Euro"},null,null,null,null,null,null,null,null,0]
["Sch XXA","Currency Shock",null,{"$f":"\"After Shock - Short Exposures - Currency Derivatives Qualifying as held for risk-mitigation purposes \"&'Schedule XXA'!$B$15","v":"After Shock - Short Exposures - Currency Derivatives Qualifying as held for risk-mitigation purposes Denmark Kroner"},null,null,null,null,null,null,null,null,0]
["Sch XXA","Currency Shock",null,{"$f":"\"After Shock - Short Exposures - Currency Derivatives Qualifying as held for risk-mitigation purposes \"&'Schedule XXA'!$B$16","v":"After Shock - Short Exposures - Currency Derivatives Qualifying as held for risk-mitigation purposes Bulgaria Leva"},null,null,null,null,null,null,null,null,0]
["Sch XXA","Currency Shock",null,{"$f":"\"After Shock - Short Exposures - Currency Derivatives Qualifying as held for risk-mitigation purposes \"&'Schedule XXA'!$B$17","v":"After Shock - Short Exposures - Currency Derivatives Qualifying as held for risk-mitigation purposes West African CFA Francs"},null,null,null,null,null,null,null,null,0]
["Sch XXA","Currency Shock",null,{"$f":"\"After Shock - Short Exposures - Currency Derivatives Qualifying as held for risk-mitigation purposes \"&'Schedule XXA'!$B$18","v":"After Shock - Short Exposures - Currency Derivatives Qualifying as held for risk-mitigation purposes Central African CFA Francs"},null,null,null,null,null,null,null,null,0]
["Sch XXA","Currency Shock",null,{"$f":"\"After Shock - Short Exposures - Currency Derivatives Qualifying as held for risk-mitigation purposes \"&'Schedule XXA'!$B$19","v":"After Shock - Short Exposures - Currency Derivatives Qualifying as held for risk-mitigation purposes Comorian Francs"},null,null,null,null,null,null,null,null,0]
["Sch XXA","Currency Shock",null,{"$f":"\"After Shock - Short Exposures - Currency Derivatives Qualifying as held for risk-mitigation purposes \"&'Schedule XXA'!$B$20","v":"After Shock - Short Exposures - Currency Derivatives Qualifying as held for risk-mitigation purposes United Kingdom Pounds"},null,null,null,null,null,null,null,null,0]
["Sch XXA","Currency Shock",null,{"$f":"\"After Shock - Short Exposures - Currency Derivatives Qualifying as held for risk-mitigation purposes \"&'Schedule XXA'!$B$21","v":"After Shock - Short Exposures - Currency Derivatives Qualifying as held for risk-mitigation purposes Canada Dollars"},null,null,null,null,null,null,null,null,0]
["Sch XXA","Currency Shock",null,{"$f":"\"After Shock - Short Exposures - Currency Derivatives Qualifying as held for risk-mitigation purposes \"&'Schedule XXA'!$B$22","v":"After Shock - Short Exposures - Currency Derivatives Qualifying as held for risk-mitigation purposes Japan Yen"},null,null,null,null,null,null,null,null,0]
["Sch XXA","Currency Shock",null,{"$f":"\"After Shock - Short Exposures - Currency Derivatives Qualifying as held for risk-mitigation purposes \"&'Schedule XXA'!$B$23","v":"After Shock - Short Exposures - Currency Derivatives Qualifying as held for risk-mitigation purposes Other currency 1"},null,null,null,null,null,null,null,null,0]
["Sch XXA","Currency Shock",null,{"$f":"\"After Shock - Short Exposures - Currency Derivatives Qualifying as held for risk-mitigation purposes \"&'Schedule XXA'!$B$24","v":"After Shock - Short Exposures - Currency Derivatives Qualifying as held for risk-mitigation purposes Other currency 2"},null,null,null,null,null,null,null,null,0]
["Sch XXA","Currency Shock",null,{"$f":"\"After Shock - Short Exposures - Currency Derivatives Qualifying as held for risk-mitigation purposes \"&'Schedule XXA'!$B$25","v":"After Shock - Short Exposures - Currency Derivatives Qualifying as held for risk-mitigation purposes Other currency 3"},null,null,null,null,null,null,null,null,0]
["Sch XXA","Currency Shock",null,{"$f":"\"After Shock - Short Exposures - Currency Derivatives Qualifying as held for risk-mitigation purposes \"&'Schedule XXA'!$B$26","v":"After Shock - Short Exposures - Currency Derivatives Qualifying as held for risk-mitigation purposes Other currency 4"},null,null,null,null,null,null,null,null,0]
["Sch XXA","Currency Shock",null,{"$f":"\"After Shock - Short Exposures - Currency Derivatives Qualifying as held for risk-mitigation purposes \"&'Schedule XXA'!$B$27","v":"After Shock - Short Exposures - Currency Derivatives Qualifying as held for risk-mitigation purposes Other currency 5"},null,null,null,null,null,null,null,null,0]
["Sch XXA","Currency Shock",null,{"$f":"\"After Shock - Short Exposures - Currency Derivatives Qualifying as held for risk-mitigation purposes \"&'Schedule XXA'!$B$28","v":"After Shock - Short Exposures - Currency Derivatives Qualifying as held for risk-mitigation purposes Other currency 6"},null,null,null,null,null,null,null,null,0]
["Sch XXA","Currency Shock",null,{"$f":"\"After Shock - Short Exposures - Currency Derivatives Qualifying as held for risk-mitigation purposes \"&'Schedule XXA'!$B$29","v":"After Shock - Short Exposures - Currency Derivatives Qualifying as held for risk-mitigation purposes Other currency 7"},null,null,null,null,null,null,null,null,0]
["Sch XXA","Currency Shock",null,{"$f":"\"After Shock - Short Exposures - Currency Derivatives Qualifying as held for risk-mitigation purposes \"&'Schedule XXA'!$B$30","v":"After Shock - Short Exposures - Currency Derivatives Qualifying as held for risk-mitigation purposes Other currency 8"},null,null,null,null,null,null,null,null,0]
["Sch XXA","Currency Shock",null,{"$f":"\"After Shock - Short Exposures - Currency Derivatives Qualifying as held for risk-mitigation purposes \"&'Schedule XXA'!$B$31","v":"After Shock - Short Exposures - Currency Derivatives Qualifying as held for risk-mitigation purposes Other currency 9"},null,null,null,null,null,null,null,null,0]
["Sch XXA","Currency Shock",null,{"$f":"\"After Shock - Short Exposures - Currency Derivatives Qualifying as held for risk-mitigation purposes \"&'Schedule XXA'!$B$32","v":"After Shock - Short Exposures - Currency Derivatives Qualifying as held for risk-mitigation purposes Other currency 10"},null,null,null,null,null,null,null,null,0]
["Sch XXA","Currency Shock",null,{"$f":"\"After Shock - Short Exposures - Currency Derivatives Not Qualifying as held for risk-mitigation purposes \"&'Schedule XXA'!$B$10","v":"After Shock - Short Exposures - Currency Derivatives Not Qualifying as held for risk-mitigation purposes United States Dollars"},null,null,null,null,null,null,null,null,0]
["Sch XXA","Currency Shock",null,{"$f":"\"After Shock - Short Exposures - Currency Derivatives Not Qualifying as held for risk-mitigation purposes \"&'Schedule XXA'!$B$11","v":"After Shock - Short Exposures - Currency Derivatives Not Qualifying as held for risk-mitigation purposes Bermuda Dollars"},null,null,null,null,null,null,null,null,0]
["Sch XXA","Currency Shock",null,{"$f":"\"After Shock - Short Exposures - Currency Derivatives Not Qualifying as held for risk-mitigation purposes \"&'Schedule XXA'!$B$12","v":"After Shock - Short Exposures - Currency Derivatives Not Qualifying as held for risk-mitigation purposes Qatar Riyals"},null,null,null,null,null,null,null,null,0]
["Sch XXA","Currency Shock",null,{"$f":"\"After Shock - Short Exposures - Currency Derivatives Not Qualifying as held for risk-mitigation purposes \"&'Schedule XXA'!$B$13","v":"After Shock - Short Exposures - Currency Derivatives Not Qualifying as held for risk-mitigation purposes Hong Kong Dollars"},null,null,null,null,null,null,null,null,0]
["Sch XXA","Currency Shock",null,{"$f":"\"After Shock - Short Exposures - Currency Derivatives Not Qualifying as held for risk-mitigation purposes \"&'Schedule XXA'!$B$14","v":"After Shock - Short Exposures - Currency Derivatives Not Qualifying as held for risk-mitigation purposes Euro"},null,null,null,null,null,null,null,null,0]
["Sch XXA","Currency Shock",null,{"$f":"\"After Shock - Short Exposures - Currency Derivatives Not Qualifying as held for risk-mitigation purposes \"&'Schedule XXA'!$B$15","v":"After Shock - Short Exposures - Currency Derivatives Not Qualifying as held for risk-mitigation purposes Denmark Kroner"},null,null,null,null,null,null,null,null,0]
["Sch XXA","Currency Shock",null,{"$f":"\"After Shock - Short Exposures - Currency Derivatives Not Qualifying as held for risk-mitigation purposes \"&'Schedule XXA'!$B$16","v":"After Shock - Short Exposures - Currency Derivatives Not Qualifying as held for risk-mitigation purposes Bulgaria Leva"},null,null,null,null,null,null,null,null,0]
["Sch XXA","Currency Shock",null,{"$f":"\"After Shock - Short Exposures - Currency Derivatives Not Qualifying as held for risk-mitigation purposes \"&'Schedule XXA'!$B$17","v":"After Shock - Short Exposures - Currency Derivatives Not Qualifying as held for risk-mitigation purposes West African CFA Francs"},null,null,null,null,null,null,null,null,0]
["Sch XXA","Currency Shock",null,{"$f":"\"After Shock - Short Exposures - Currency Derivatives Not Qualifying as held for risk-mitigation purposes \"&'Schedule XXA'!$B$18","v":"After Shock - Short Exposures - Currency Derivatives Not Qualifying as held for risk-mitigation purposes Central African CFA Francs"},null,null,null,null,null,null,null,null,0]
["Sch XXA","Currency Shock",null,{"$f":"\"After Shock - Short Exposures - Currency Derivatives Not Qualifying as held for risk-mitigation purposes \"&'Schedule XXA'!$B$19","v":"After Shock - Short Exposures - Currency Derivatives Not Qualifying as held for risk-mitigation purposes Comorian Francs"},null,null,null,null,null,null,null,null,0]
["Sch XXA","Currency Shock",null,{"$f":"\"After Shock - Short Exposures - Currency Derivatives Not Qualifying as held for risk-mitigation purposes \"&'Schedule XXA'!$B$20","v":"After Shock - Short Exposures - Currency Derivatives Not Qualifying as held for risk-mitigation purposes United Kingdom Pounds"},null,null,null,null,null,null,null,null,0]
["Sch XXA","Currency Shock",null,{"$f":"\"After Shock - Short Exposures - Currency Derivatives Not Qualifying as held for risk-mitigation purposes \"&'Schedule XXA'!$B$21","v":"After Shock - Short Exposures - Currency Derivatives Not Qualifying as held for risk-mitigation purposes Canada Dollars"},null,null,null,null,null,null,null,null,0]
["Sch XXA","Currency Shock",null,{"$f":"\"After Shock - Short Exposures - Currency Derivatives Not Qualifying as held for risk-mitigation purposes \"&'Schedule XXA'!$B$22","v":"After Shock - Short Exposures - Currency Derivatives Not Qualifying as held for risk-mitigation purposes Japan Yen"},null,null,null,null,null,null,null,null,0]
["Sch XXA","Currency Shock",null,{"$f":"\"After Shock - Short Exposures - Currency Derivatives Not Qualifying as held for risk-mitigation purposes \"&'Schedule XXA'!$B$23","v":"After Shock - Short Exposures - Currency Derivatives Not Qualifying as held for risk-mitigation purposes Other currency 1"},null,null,null,null,null,null,null,null,0]
["Sch XXA","Currency Shock",null,{"$f":"\"After Shock - Short Exposures - Currency Derivatives Not Qualifying as held for risk-mitigation purposes \"&'Schedule XXA'!$B$24","v":"After Shock - Short Exposures - Currency Derivatives Not Qualifying as held for risk-mitigation purposes Other currency 2"},null,null,null,null,null,null,null,null,0]
["Sch XXA","Currency Shock",null,{"$f":"\"After Shock - Short Exposures - Currency Derivatives Not Qualifying as held for risk-mitigation purposes \"&'Schedule XXA'!$B$25","v":"After Shock - Short Exposures - Currency Derivatives Not Qualifying as held for risk-mitigation purposes Other currency 3"},null,null,null,null,null,null,null,null,0]
["Sch XXA","Currency Shock",null,{"$f":"\"After Shock - Short Exposures - Currency Derivatives Not Qualifying as held for risk-mitigation purposes \"&'Schedule XXA'!$B$26","v":"After Shock - Short Exposures - Currency Derivatives Not Qualifying as held for risk-mitigation purposes Other currency 4"},null,null,null,null,null,null,null,null,0]
["Sch XXA","Currency Shock",null,{"$f":"\"After Shock - Short Exposures - Currency Derivatives Not Qualifying as held for risk-mitigation purposes \"&'Schedule XXA'!$B$27","v":"After Shock - Short Exposures - Currency Derivatives Not Qualifying as held for risk-mitigation purposes Other currency 5"},null,null,null,null,null,null,null,null,0]
["Sch XXA","Currency Shock",null,{"$f":"\"After Shock - Short Exposures - Currency Derivatives Not Qualifying as held for risk-mitigation purposes \"&'Schedule XXA'!$B$28","v":"After Shock - Short Exposures - Currency Derivatives Not Qualifying as held for risk-mitigation purposes Other currency 6"},null,null,null,null,null,null,null,null,0]
["Sch XXA","Currency Shock",null,{"$f":"\"After Shock - Short Exposures - Currency Derivatives Not Qualifying as held for risk-mitigation purposes \"&'Schedule XXA'!$B$29","v":"After Shock - Short Exposures - Currency Derivatives Not Qualifying as held for risk-mitigation purposes Other currency 7"},null,null,null,null,null,null,null,null,0]
["Sch XXA","Currency Shock",null,{"$f":"\"After Shock - Short Exposures - Currency Derivatives Not Qualifying as held for risk-mitigation purposes \"&'Schedule XXA'!$B$30","v":"After Shock - Short Exposures - Currency Derivatives Not Qualifying as held for risk-mitigation purposes Other currency 8"},null,null,null,null,null,null,null,null,0]
["Sch XXA","Currency Shock",null,{"$f":"\"After Shock - Short Exposures - Currency Derivatives Not Qualifying as held for risk-mitigation purposes \"&'Schedule XXA'!$B$31","v":"After Shock - Short Exposures - Currency Derivatives Not Qualifying as held for risk-mitigation purposes Other currency 9"},null,null,null,null,null,null,null,null,0]
["Sch XXA","Currency Shock",null,{"$f":"\"After Shock - Short Exposures - Currency Derivatives Not Qualifying as held for risk-mitigation purposes \"&'Schedule XXA'!$B$32","v":"After Shock - Short Exposures - Currency Derivatives Not Qualifying as held for risk-mitigation purposes Other currency 10"},null,null,null,null,null,null,null,null,0]
["Sch XXA","Currency Shock",null,{"$f":"\"After Shock - B.E. Liabilities \"&'Schedule XXA'!$B$10","v":"After Shock - B.E. Liabilities United States Dollars"},null,null,null,null,null,null,null,null,0]
["Sch XXA","Currency Shock",null,{"$f":"\"After Shock - B.E. Liabilities \"&'Schedule XXA'!$B$11","v":"After Shock - B.E. Liabilities Bermuda Dollars"},null,null,null,null,null,null,null,null,0]
["Sch XXA","Currency Shock",null,{"$f":"\"After Shock - B.E. Liabilities \"&'Schedule XXA'!$B$12","v":"After Shock - B.E. Liabilities Qatar Riyals"},null,null,null,null,null,null,null,null,0]
["Sch XXA","Currency Shock",null,{"$f":"\"After Shock - B.E. Liabilities \"&'Schedule XXA'!$B$13","v":"After Shock - B.E. Liabilities Hong Kong Dollars"},null,null,null,null,null,null,null,null,0]
["Sch XXA","Currency Shock",null,{"$f":"\"After Shock - B.E. Liabilities \"&'Schedule XXA'!$B$14","v":"After Shock - B.E. Liabilities Euro"},null,null,null,null,null,null,null,null,0]
["Sch XXA","Currency Shock",null,{"$f":"\"After Shock - B.E. Liabilities \"&'Schedule XXA'!$B$15","v":"After Shock - B.E. Liabilities Denmark Kroner"},null,null,null,null,null,null,null,null,0]
["Sch XXA","Currency Shock",null,{"$f":"\"After Shock - B.E. Liabilities \"&'Schedule XXA'!$B$16","v":"After Shock - B.E. Liabilities Bulgaria Leva"},null,null,null,null,null,null,null,null,0]
["Sch XXA","Currency Shock",null,{"$f":"\"After Shock - B.E. Liabilities \"&'Schedule XXA'!$B$17","v":"After Shock - B.E. Liabilities West African CFA Francs"},null,null,null,null,null,null,null,null,0]
["Sch XXA","Currency Shock",null,{"$f":"\"After Shock - B.E. Liabilities \"&'Schedule XXA'!$B$18","v":"After Shock - B.E. Liabilities Central African CFA Francs"},null,null,null,null,null,null,null,null,0]
["Sch XXA","Currency Shock",null,{"$f":"\"After Shock - B.E. Liabilities \"&'Schedule XXA'!$B$19","v":"After Shock - B.E. Liabilities Comorian Francs"},null,null,null,null,null,null,null,null,0]
["Sch XXA","Currency Shock",null,{"$f":"\"After Shock - B.E. Liabilities \"&'Schedule XXA'!$B$20","v":"After Shock - B.E. Liabilities United Kingdom Pounds"},null,null,null,null,null,null,null,null,0]
["Sch XXA","Currency Shock",null,{"$f":"\"After Shock - B.E. Liabilities \"&'Schedule XXA'!$B$21","v":"After Shock - B.E. Liabilities Canada Dollars"},null,null,null,null,null,null,null,null,0]
["Sch XXA","Currency Shock",null,{"$f":"\"After Shock - B.E. Liabilities \"&'Schedule XXA'!$B$22","v":"After Shock - B.E. Liabilities Japan Yen"},null,null,null,null,null,null,null,null,0]
["Sch XXA","Currency Shock",null,{"$f":"\"After Shock - B.E. Liabilities \"&'Schedule XXA'!$B$23","v":"After Shock - B.E. Liabilities Other currency 1"},null,null,null,null,null,null,null,null,0]
["Sch XXA","Currency Shock",null,{"$f":"\"After Shock - B.E. Liabilities \"&'Schedule XXA'!$B$24","v":"After Shock - B.E. Liabilities Other currency 2"},null,null,null,null,null,null,null,null,0]
["Sch XXA","Currency Shock",null,{"$f":"\"After Shock - B.E. Liabilities \"&'Schedule XXA'!$B$25","v":"After Shock - B.E. Liabilities Other currency 3"},null,null,null,null,null,null,null,null,0]
["Sch XXA","Currency Shock",null,{"$f":"\"After Shock - B.E. Liabilities \"&'Schedule XXA'!$B$26","v":"After Shock - B.E. Liabilities Other currency 4"},null,null,null,null,null,null,null,null,0]
["Sch XXA","Currency Shock",null,{"$f":"\"After Shock - B.E. Liabilities \"&'Schedule XXA'!$B$27","v":"After Shock - B.E. Liabilities Other currency 5"},null,null,null,null,null,null,null,null,0]
["Sch XXA","Currency Shock",null,{"$f":"\"After Shock - B.E. Liabilities \"&'Schedule XXA'!$B$28","v":"After Shock - B.E. Liabilities Other currency 6"},null,null,null,null,null,null,null,null,0]
["Sch XXA","Currency Shock",null,{"$f":"\"After Shock - B.E. Liabilities \"&'Schedule XXA'!$B$29","v":"After Shock - B.E. Liabilities Other currency 7"},null,null,null,null,null,null,null,null,0]
["Sch XXA","Currency Shock",null,{"$f":"\"After Shock - B.E. Liabilities \"&'Schedule XXA'!$B$30","v":"After Shock - B.E. Liabilities Other currency 8"},null,null,null,null,null,null,null,null,0]
["Sch XXA","Currency Shock",null,{"$f":"\"After Shock - B.E. Liabilities \"&'Schedule XXA'!$B$31","v":"After Shock - B.E. Liabilities Other currency 9"},null,null,null,null,null,null,null,null,0]
["Sch XXA","Currency Shock",null,{"$f":"\"After Shock - B.E. Liabilities \"&'Schedule XXA'!$B$32","v":"After Shock - B.E. Liabilities Other currency 10"},null,null,null,null,null,null,null,null,0]
["Sch XXA","Currency Shock",null,{"$f":"\"After Shock - Liabilities w Mgmt. Actions \"&'Schedule XXA'!$B$10","v":"After Shock - Liabilities w Mgmt. Actions United States Dollars"},null,null,null,null,null,null,null,null,0]
["Sch XXA","Currency Shock",null,{"$f":"\"After Shock - Liabilities w Mgmt. Actions \"&'Schedule XXA'!$B$11","v":"After Shock - Liabilities w Mgmt. Actions Bermuda Dollars"},null,null,null,null,null,null,null,null,0]
["Sch XXA","Currency Shock",null,{"$f":"\"After Shock - Liabilities w Mgmt. Actions \"&'Schedule XXA'!$B$12","v":"After Shock - Liabilities w Mgmt. Actions Qatar Riyals"},null,null,null,null,null,null,null,null,0]
["Sch XXA","Currency Shock",null,{"$f":"\"After Shock - Liabilities w Mgmt. Actions \"&'Schedule XXA'!$B$13","v":"After Shock - Liabilities w Mgmt. Actions Hong Kong Dollars"},null,null,null,null,null,null,null,null,0]
["Sch XXA","Currency Shock",null,{"$f":"\"After Shock - Liabilities w Mgmt. Actions \"&'Schedule XXA'!$B$14","v":"After Shock - Liabilities w Mgmt. Actions Euro"},null,null,null,null,null,null,null,null,0]
["Sch XXA","Currency Shock",null,{"$f":"\"After Shock - Liabilities w Mgmt. Actions \"&'Schedule XXA'!$B$15","v":"After Shock - Liabilities w Mgmt. Actions Denmark Kroner"},null,null,null,null,null,null,null,null,0]
["Sch XXA","Currency Shock",null,{"$f":"\"After Shock - Liabilities w Mgmt. Actions \"&'Schedule XXA'!$B$16","v":"After Shock - Liabilities w Mgmt. Actions Bulgaria Leva"},null,null,null,null,null,null,null,null,0]
["Sch XXA","Currency Shock",null,{"$f":"\"After Shock - Liabilities w Mgmt. Actions \"&'Schedule XXA'!$B$17","v":"After Shock - Liabilities w Mgmt. Actions West African CFA Francs"},null,null,null,null,null,null,null,null,0]
["Sch XXA","Currency Shock",null,{"$f":"\"After Shock - Liabilities w Mgmt. Actions \"&'Schedule XXA'!$B$18","v":"After Shock - Liabilities w Mgmt. Actions Central African CFA Francs"},null,null,null,null,null,null,null,null,0]
["Sch XXA","Currency Shock",null,{"$f":"\"After Shock - Liabilities w Mgmt. Actions \"&'Schedule XXA'!$B$19","v":"After Shock - Liabilities w Mgmt. Actions Comorian Francs"},null,null,null,null,null,null,null,null,0]
["Sch XXA","Currency Shock",null,{"$f":"\"After Shock - Liabilities w Mgmt. Actions \"&'Schedule XXA'!$B$20","v":"After Shock - Liabilities w Mgmt. Actions United Kingdom Pounds"},null,null,null,null,null,null,null,null,0]
["Sch XXA","Currency Shock",null,{"$f":"\"After Shock - Liabilities w Mgmt. Actions \"&'Schedule XXA'!$B$21","v":"After Shock - Liabilities w Mgmt. Actions Canada Dollars"},null,null,null,null,null,null,null,null,0]
["Sch XXA","Currency Shock",null,{"$f":"\"After Shock - Liabilities w Mgmt. Actions \"&'Schedule XXA'!$B$22","v":"After Shock - Liabilities w Mgmt. Actions Japan Yen"},null,null,null,null,null,null,null,null,0]
["Sch XXA","Currency Shock",null,{"$f":"\"After Shock - Liabilities w Mgmt. Actions \"&'Schedule XXA'!$B$23","v":"After Shock - Liabilities w Mgmt. Actions Other currency 1"},null,null,null,null,null,null,null,null,0]
["Sch XXA","Currency Shock",null,{"$f":"\"After Shock - Liabilities w Mgmt. Actions \"&'Schedule XXA'!$B$24","v":"After Shock - Liabilities w Mgmt. Actions Other currency 2"},null,null,null,null,null,null,null,null,0]
["Sch XXA","Currency Shock",null,{"$f":"\"After Shock - Liabilities w Mgmt. Actions \"&'Schedule XXA'!$B$25","v":"After Shock - Liabilities w Mgmt. Actions Other currency 3"},null,null,null,null,null,null,null,null,0]
["Sch XXA","Currency Shock",null,{"$f":"\"After Shock - Liabilities w Mgmt. Actions \"&'Schedule XXA'!$B$26","v":"After Shock - Liabilities w Mgmt. Actions Other currency 4"},null,null,null,null,null,null,null,null,0]
["Sch XXA","Currency Shock",null,{"$f":"\"After Shock - Liabilities w Mgmt. Actions \"&'Schedule XXA'!$B$27","v":"After Shock - Liabilities w Mgmt. Actions Other currency 5"},null,null,null,null,null,null,null,null,0]
["Sch XXA","Currency Shock",null,{"$f":"\"After Shock - Liabilities w Mgmt. Actions \"&'Schedule XXA'!$B$28","v":"After Shock - Liabilities w Mgmt. Actions Other currency 6"},null,null,null,null,null,null,null,null,0]
["Sch XXA","Currency Shock",null,{"$f":"\"After Shock - Liabilities w Mgmt. Actions \"&'Schedule XXA'!$B$29","v":"After Shock - Liabilities w Mgmt. Actions Other currency 7"},null,null,null,null,null,null,null,null,0]
["Sch XXA","Currency Shock",null,{"$f":"\"After Shock - Liabilities w Mgmt. Actions \"&'Schedule XXA'!$B$30","v":"After Shock - Liabilities w Mgmt. Actions Other currency 8"},null,null,null,null,null,null,null,null,0]
["Sch XXA","Currency Shock",null,{"$f":"\"After Shock - Liabilities w Mgmt. Actions \"&'Schedule XXA'!$B$31","v":"After Shock - Liabilities w Mgmt. Actions Other currency 9"},null,null,null,null,null,null,null,null,0]
["Sch XXA","Currency Shock",null,{"$f":"\"After Shock - Liabilities w Mgmt. Actions \"&'Schedule XXA'!$B$32","v":"After Shock - Liabilities w Mgmt. Actions Other currency 10"},null,null,null,null,null,null,null,null,0]
["Sch XXA","Currency Shock",null,"Liabilities Prior Year 1",null,null,null,null,null,null,null,null,0]
["Sch XXA","Currency Shock",null,"Liabilities Prior Year 2",null,null,null,null,null,null,null,null,0]
["Sch XXA","Currency Shock",null,"Liabilities Prior Year 3",null,null,null,null,null,null,null,null,0]
["Sch XXA","Currency Shock",null,"ECR Prior Year 1",null,null,null,null,null,null,null,null,0]
["Sch XXA","Currency Shock",null,"ECR Prior Year 2",null,null,null,null,null,null,null,null,0]
["Sch XXA","Currency Shock",null,"ECR Prior Year 3",null,null,null,null,null,null,null,null,0]
[]
["Sch XXIA","Inv Con Risk",null,"# of Exposures",0]
["Sch XXIA","Inv Con Risk",null,"Name of Exposure - 1",0]
["Sch XXIA","Inv Con Risk",null,"Name of Exposure - 2",0]
["Sch XXIA","Inv Con Risk",null,"Name of Exposure - 3",0]
["Sch XXIA","Inv Con Risk",null,"Name of Exposure - 4",0]
["Sch XXIA","Inv Con Risk",null,"Name of Exposure - 5",0]
["Sch XXIA","Inv Con Risk",null,"Name of Exposure - 6",0]
["Sch XXIA","Inv Con Risk",null,"Name of Exposure - 7",0]
["Sch XXIA","Inv Con Risk",null,"Name of Exposure - 8",0]
["Sch XXIA","Inv Con Risk",null,"Name of Exposure - 9",0]
["Sch XXIA","Inv Con Risk",null,"Name of Exposure - 10",0]
["Sch XXIA","Inv Con Risk",null,"Name of Exposure - 11",0]
["Sch XXIA","Inv Con Risk",null,"Name of Exposure - 12",0]
["Sch XXIA","Inv Con Risk",null,"Name of Exposure - 13",0]
["Sch XXIA","Inv Con Risk",null,"Name of Exposure - 14",0]
["Sch XXIA","Inv Con Risk",null,"Name of Exposure - 15",0]
["Sch XXIA","Inv Con Risk",null,"Name of Exposure - 16",0]
["Sch XXIA","Inv Con Risk",null,"Name of Exposure - 17",0]
["Sch XXIA","Inv Con Risk",null,"Name of Exposure - 18",0]
["Sch XXIA","Inv Con Risk",null,"Name of Exposure - 19",0]
["Sch XXIA","Inv Con Risk",null,"Name of Exposure - 20",0]
["Sch XXIA","Inv Con Risk",null,"Name of Exposure - 21",0]
["Sch XXIA","Inv Con Risk",null,"Name of Exposure - 22",0]
["Sch XXIA","Inv Con Risk",null,"Name of Exposure - 23",0]
["Sch XXIA","Inv Con Risk",null,"Name of Exposure - 24",0]
["Sch XXIA","Inv Con Risk",null,"Name of Exposure - 25",0]
["Sch XXIA","Inv Con Risk",null,"Name of Exposure - 26",0]
["Sch XXIA","Inv Con Risk",null,"Name of Exposure - 27",0]
["Sch XXIA","Inv Con Risk",null,"Name of Exposure - 28",0]
["Sch XXIA","Inv Con Risk",null,"Name of Exposure - 29",0]
["Sch XXIA","Inv Con Risk",null,"Name of Exposure - 30",0]
["Sch XXIA","Inv Con Risk",null,"Name of Exposure - 31",0]
["Sch XXIA","Inv Con Risk",null,"Name of Exposure - 32",0]
["Sch XXIA","Inv Con Risk",null,"Name of Exposure - 33",0]
["Sch XXIA","Inv Con Risk",null,"Name of Exposure - 34",0]
["Sch XXIA","Inv Con Risk",null,"Name of Exposure - 35",0]
["Sch XXIA","Inv Con Risk",null,"Name of Exposure - 36",0]
["Sch XXIA","Inv Con Risk",null,"Name of Exposure - 37",0]
["Sch XXIA","Inv Con Risk",null,"Name of Exposure - 38",0]
["Sch XXIA","Inv Con Risk",null,"Name of Exposure - 39",0]
["Sch XXIA","Inv Con Risk",null,"Name of Exposure - 40",0]
["Sch XXIA","Inv Con Risk",null,"Name of Exposure - 41",0]
["Sch XXIA","Inv Con Risk",null,"Name of Exposure - 42",0]
["Sch XXIA","Inv Con Risk",null,"Name of Exposure - 43",0]
["Sch XXIA","Inv Con Risk",null,"Name of Exposure - 44",0]
["Sch XXIA","Inv Con Risk",null,"Name of Exposure - 45",0]
["Sch XXIA","Inv Con Risk",null,"Name of Exposure - 46",0]
["Sch XXIA","Inv Con Risk",null,"Name of Exposure - 47",0]
["Sch XXIA","Inv Con Risk",null,"Name of Exposure - 48",0]
["Sch XXIA","Inv Con Risk",null,"Name of Exposure - 49",0]
["Sch XXIA","Inv Con Risk",null,"Name of Exposure - 50",0]
["Sch XXIA","Inv Con Risk",null,"Asset Type - 1","Select",null,null,null,null,null,null,null,"Select"]
["Sch XXIA","Inv Con Risk",null,"Asset Type - 2","Select",null,null,null,null,null,null,null,"Select"]
["Sch XXIA","Inv Con Risk",null,"Asset Type - 3","Select",null,null,null,null,null,null,null,"Select"]
["Sch XXIA","Inv Con Risk",null,"Asset Type - 4","Select",null,null,null,null,null,null,null,"Select"]
["Sch XXIA","Inv Con Risk",null,"Asset Type - 5","Select",null,null,null,null,null,null,null,"Select"]
["Sch XXIA","Inv Con Risk",null,"Asset Type - 6","Select",null,null,null,null,null,null,null,"Select"]
["Sch XXIA","Inv Con Risk",null,"Asset Type - 7","Select",null,null,null,null,null,null,null,"Select"]
["Sch XXIA","Inv Con Risk",null,"Asset Type - 8","Select",null,null,null,null,null,null,null,"Select"]
["Sch XXIA","Inv Con Risk",null,"Asset Type - 9","Select",null,null,null,null,null,null,null,"Select"]
["Sch XXIA","Inv Con Risk",null,"Asset Type - 10","Select",null,null,null,null,null,null,null,"Select"]
["Sch XXIA","Inv Con Risk",null,"Asset Type - 11","Select",null,null,null,null,null,null,null,"Select"]
["Sch XXIA","Inv Con Risk",null,"Asset Type - 12","Select",null,null,null,null,null,null,null,"Select"]
["Sch XXIA","Inv Con Risk",null,"Asset Type - 13","Select",null,null,null,null,null,null,null,"Select"]
["Sch XXIA","Inv Con Risk",null,"Asset Type - 14","Select",null,null,null,null,null,null,null,"Select"]
["Sch XXIA","Inv Con Risk",null,"Asset Type - 15","Select",null,null,null,null,null,null,null,"Select"]
["Sch XXIA","Inv Con Risk",null,"Asset Type - 16","Select",null,null,null,null,null,null,null,"Select"]
["Sch XXIA","Inv Con Risk",null,"Asset Type - 17","Select",null,null,null,null,null,null,null,"Select"]
["Sch XXIA","Inv Con Risk",null,"Asset Type - 18","Select",null,null,null,null,null,null,null,"Select"]
["Sch XXIA","Inv Con Risk",null,"Asset Type - 19","Select",null,null,null,null,null,null,null,"Select"]
["Sch XXIA","Inv Con Risk",null,"Asset Type - 20","Select",null,null,null,null,null,null,null,"Select"]
["Sch XXIA","Inv Con Risk",null,"Asset Type - 21","Select",null,null,null,null,null,null,null,"Select"]
["Sch XXIA","Inv Con Risk",null,"Asset Type - 22","Select",null,null,null,null,null,null,null,"Select"]
["Sch XXIA","Inv Con Risk",null,"Asset Type - 23","Select",null,null,null,null,null,null,null,"Select"]
["Sch XXIA","Inv Con Risk",null,"Asset Type - 24","Select",null,null,null,null,null,null,null,"Select"]
["Sch XXIA","Inv Con Risk",null,"Asset Type - 25","Select",null,null,null,null,null,null,null,"Select"]
["Sch XXIA","Inv Con Risk",null,"Asset Type - 26","Select",null,null,null,null,null,null,null,"Select"]
["Sch XXIA","Inv Con Risk",null,"Asset Type - 27","Select",null,null,null,null,null,null,null,"Select"]
["Sch XXIA","Inv Con Risk",null,"Asset Type - 28","Select",null,null,null,null,null,null,null,"Select"]
["Sch XXIA","Inv Con Risk",null,"Asset Type - 29","Select",null,null,null,null,null,null,null,"Select"]
["Sch XXIA","Inv Con Risk",null,"Asset Type - 30","Select",null,null,null,null,null,null,null,"Select"]
["Sch XXIA","Inv Con Risk",null,"Asset Type - 31","Select",null,null,null,null,null,null,null,"Select"]
["Sch XXIA","Inv Con Risk",null,"Asset Type - 32","Select",null,null,null,null,null,null,null,"Select"]
["Sch XXIA","Inv Con Risk",null,"Asset Type - 33","Select",null,null,null,null,null,null,null,"Select"]
["Sch XXIA","Inv Con Risk",null,"Asset Type - 34","Select",null,null,null,null,null,null,null,"Select"]
["Sch XXIA","Inv Con Risk",null,"Asset Type - 35","Select",null,null,null,null,null,null,null,"Select"]
["Sch XXIA","Inv Con Risk",null,"Asset Type - 36","Select",null,null,null,null,null,null,null,"Select"]
["Sch XXIA","Inv Con Risk",null,"Asset Type - 37","Select",null,null,null,null,null,null,null,"Select"]
["Sch XXIA","Inv Con Risk",null,"Asset Type - 38","Select",null,null,null,null,null,null,null,"Select"]
["Sch XXIA","Inv Con Risk",null,"Asset Type - 39","Select",null,null,null,null,null,null,null,"Select"]
["Sch XXIA","Inv Con Risk",null,"Asset Type - 40","Select",null,null,null,null,null,null,null,"Select"]
["Sch XXIA","Inv Con Risk",null,"Asset Type - 41","Select",null,null,null,null,null,null,null,"Select"]
["Sch XXIA","Inv Con Risk",null,"Asset Type - 42","Select",null,null,null,null,null,null,null,"Select"]
["Sch XXIA","Inv Con Risk",null,"Asset Type - 43","Select",null,null,null,null,null,null,null,"Select"]
["Sch XXIA","Inv Con Risk",null,"Asset Type - 44","Select",null,null,null,null,null,null,null,"Select"]
["Sch XXIA","Inv Con Risk",null,"Asset Type - 45","Select",null,null,null,null,null,null,null,"Select"]
["Sch XXIA","Inv Con Risk",null,"Asset Type - 46","Select",null,null,null,null,null,null,null,"Select"]
["Sch XXIA","Inv Con Risk",null,"Asset Type - 47","Select",null,null,null,null,null,null,null,"Select"]
["Sch XXIA","Inv Con Risk",null,"Asset Type - 48","Select",null,null,null,null,null,null,null,"Select"]
["Sch XXIA","Inv Con Risk",null,"Asset Type - 49","Select",null,null,null,null,null,null,null,"Select"]
["Sch XXIA","Inv Con Risk",null,"Asset Type - 50","Select",null,null,null,null,null,null,null,"Select"]
["Sch XXIA","Inv Con Risk",null,"Bond Type - 1","Select",null,null,null,null,null,null,null,"Select"]
["Sch XXIA","Inv Con Risk",null,"Bond Type - 2","Select",null,null,null,null,null,null,null,"Select"]
["Sch XXIA","Inv Con Risk",null,"Bond Type - 3","Select",null,null,null,null,null,null,null,"Select"]
["Sch XXIA","Inv Con Risk",null,"Bond Type - 4","Select",null,null,null,null,null,null,null,"Select"]
["Sch XXIA","Inv Con Risk",null,"Bond Type - 5","Select",null,null,null,null,null,null,null,"Select"]
["Sch XXIA","Inv Con Risk",null,"Bond Type - 6","Select",null,null,null,null,null,null,null,"Select"]
["Sch XXIA","Inv Con Risk",null,"Bond Type - 7","Select",null,null,null,null,null,null,null,"Select"]
["Sch XXIA","Inv Con Risk",null,"Bond Type - 8","Select",null,null,null,null,null,null,null,"Select"]
["Sch XXIA","Inv Con Risk",null,"Bond Type - 9","Select",null,null,null,null,null,null,null,"Select"]
["Sch XXIA","Inv Con Risk",null,"Bond Type - 10","Select",null,null,null,null,null,null,null,"Select"]
["Sch XXIA","Inv Con Risk",null,"Bond Type - 11","Select",null,null,null,null,null,null,null,"Select"]
["Sch XXIA","Inv Con Risk",null,"Bond Type - 12","Select",null,null,null,null,null,null,null,"Select"]
["Sch XXIA","Inv Con Risk",null,"Bond Type - 13","Select",null,null,null,null,null,null,null,"Select"]
["Sch XXIA","Inv Con Risk",null,"Bond Type - 14","Select",null,null,null,null,null,null,null,"Select"]
["Sch XXIA","Inv Con Risk",null,"Bond Type - 15","Select",null,null,null,null,null,null,null,"Select"]
["Sch XXIA","Inv Con Risk",null,"Bond Type - 16","Select",null,null,null,null,null,null,null,"Select"]
["Sch XXIA","Inv Con Risk",null,"Bond Type - 17","Select",null,null,null,null,null,null,null,"Select"]
["Sch XXIA","Inv Con Risk",null,"Bond Type - 18","Select",null,null,null,null,null,null,null,"Select"]
["Sch XXIA","Inv Con Risk",null,"Bond Type - 19","Select",null,null,null,null,null,null,null,"Select"]
["Sch XXIA","Inv Con Risk",null,"Bond Type - 20","Select",null,null,null,null,null,null,null,"Select"]
["Sch XXIA","Inv Con Risk",null,"Bond Type - 21","Select",null,null,null,null,null,null,null,"Select"]
["Sch XXIA","Inv Con Risk",null,"Bond Type - 22","Select",null,null,null,null,null,null,null,"Select"]
["Sch XXIA","Inv Con Risk",null,"Bond Type - 23","Select",null,null,null,null,null,null,null,"Select"]
["Sch XXIA","Inv Con Risk",null,"Bond Type - 24","Select",null,null,null,null,null,null,null,"Select"]
["Sch XXIA","Inv Con Risk",null,"Bond Type - 25","Select",null,null,null,null,null,null,null,"Select"]
["Sch XXIA","Inv Con Risk",null,"Bond Type - 26","Select",null,null,null,null,null,null,null,"Select"]
["Sch XXIA","Inv Con Risk",null,"Bond Type - 27","Select",null,null,null,null,null,null,null,"Select"]
["Sch XXIA","Inv Con Risk",null,"Bond Type - 28","Select",null,null,null,null,null,null,null,"Select"]
["Sch XXIA","Inv Con Risk",null,"Bond Type - 29","Select",null,null,null,null,null,null,null,"Select"]
["Sch XXIA","Inv Con Risk",null,"Bond Type - 30","Select",null,null,null,null,null,null,null,"Select"]
["Sch XXIA","Inv Con Risk",null,"Bond Type - 31","Select",null,null,null,null,null,null,null,"Select"]
["Sch XXIA","Inv Con Risk",null,"Bond Type - 32","Select",null,null,null,null,null,null,null,"Select"]
["Sch XXIA","Inv Con Risk",null,"Bond Type - 33","Select",null,null,null,null,null,null,null,"Select"]
["Sch XXIA","Inv Con Risk",null,"Bond Type - 34","Select",null,null,null,null,null,null,null,"Select"]
["Sch XXIA","Inv Con Risk",null,"Bond Type - 35","Select",null,null,null,null,null,null,null,"Select"]
["Sch XXIA","Inv Con Risk",null,"Bond Type - 36","Select",null,null,null,null,null,null,null,"Select"]
["Sch XXIA","Inv Con Risk",null,"Bond Type - 37","Select",null,null,null,null,null,null,null,"Select"]
["Sch XXIA","Inv Con Risk",null,"Bond Type - 38","Select",null,null,null,null,null,null,null,"Select"]
["Sch XXIA","Inv Con Risk",null,"Bond Type - 39","Select",null,null,null,null,null,null,null,"Select"]
["Sch XXIA","Inv Con Risk",null,"Bond Type - 40","Select",null,null,null,null,null,null,null,"Select"]
["Sch XXIA","Inv Con Risk",null,"Bond Type - 41","Select",null,null,null,null,null,null,null,"Select"]
["Sch XXIA","Inv Con Risk",null,"Bond Type - 42","Select",null,null,null,null,null,null,null,"Select"]
["Sch XXIA","Inv Con Risk",null,"Bond Type - 43","Select",null,null,null,null,null,null,null,"Select"]
["Sch XXIA","Inv Con Risk",null,"Bond Type - 44","Select",null,null,null,null,null,null,null,"Select"]
["Sch XXIA","Inv Con Risk",null,"Bond Type - 45","Select",null,null,null,null,null,null,null,"Select"]
["Sch XXIA","Inv Con Risk",null,"Bond Type - 46","Select",null,null,null,null,null,null,null,"Select"]
["Sch XXIA","Inv Con Risk",null,"Bond Type - 47","Select",null,null,null,null,null,null,null,"Select"]
["Sch XXIA","Inv Con Risk",null,"Bond Type - 48","Select",null,null,null,null,null,null,null,"Select"]
["Sch XXIA","Inv Con Risk",null,"Bond Type - 49","Select",null,null,null,null,null,null,null,"Select"]
["Sch XXIA","Inv Con Risk",null,"Bond Type - 50","Select",null,null,null,null,null,null,null,"Select"]
["Sch XXIA","Inv Con Risk",null,"BSCR Rating - 1","Select",null,null,null,null,null,null,null,"Select"]
["Sch XXIA","Inv Con Risk",null,"BSCR Rating - 2","Select",null,null,null,null,null,null,null,"Select"]
["Sch XXIA","Inv Con Risk",null,"BSCR Rating - 3","Select",null,null,null,null,null,null,null,"Select"]
["Sch XXIA","Inv Con Risk",null,"BSCR Rating - 4","Select",null,null,null,null,null,null,null,"Select"]
["Sch XXIA","Inv Con Risk",null,"BSCR Rating - 5","Select",null,null,null,null,null,null,null,"Select"]
["Sch XXIA","Inv Con Risk",null,"BSCR Rating - 6","Select",null,null,null,null,null,null,null,"Select"]
["Sch XXIA","Inv Con Risk",null,"BSCR Rating - 7","Select",null,null,null,null,null,null,null,"Select"]
["Sch XXIA","Inv Con Risk",null,"BSCR Rating - 8","Select",null,null,null,null,null,null,null,"Select"]
["Sch XXIA","Inv Con Risk",null,"BSCR Rating - 9","Select",null,null,null,null,null,null,null,"Select"]
["Sch XXIA","Inv Con Risk",null,"BSCR Rating - 10","Select",null,null,null,null,null,null,null,"Select"]
["Sch XXIA","Inv Con Risk",null,"BSCR Rating - 11","Select",null,null,null,null,null,null,null,"Select"]
["Sch XXIA","Inv Con Risk",null,"BSCR Rating - 12","Select",null,null,null,null,null,null,null,"Select"]
["Sch XXIA","Inv Con Risk",null,"BSCR Rating - 13","Select",null,null,null,null,null,null,null,"Select"]
["Sch XXIA","Inv Con Risk",null,"BSCR Rating - 14","Select",null,null,null,null,null,null,null,"Select"]
["Sch XXIA","Inv Con Risk",null,"BSCR Rating - 15","Select",null,null,null,null,null,null,null,"Select"]
["Sch XXIA","Inv Con Risk",null,"BSCR Rating - 16","Select",null,null,null,null,null,null,null,"Select"]
["Sch XXIA","Inv Con Risk",null,"BSCR Rating - 17","Select",null,null,null,null,null,null,null,"Select"]
["Sch XXIA","Inv Con Risk",null,"BSCR Rating - 18","Select",null,null,null,null,null,null,null,"Select"]
["Sch XXIA","Inv Con Risk",null,"BSCR Rating - 19","Select",null,null,null,null,null,null,null,"Select"]
["Sch XXIA","Inv Con Risk",null,"BSCR Rating - 20","Select",null,null,null,null,null,null,null,"Select"]
["Sch XXIA","Inv Con Risk",null,"BSCR Rating - 21","Select",null,null,null,null,null,null,null,"Select"]
["Sch XXIA","Inv Con Risk",null,"BSCR Rating - 22","Select",null,null,null,null,null,null,null,"Select"]
["Sch XXIA","Inv Con Risk",null,"BSCR Rating - 23","Select",null,null,null,null,null,null,null,"Select"]
["Sch XXIA","Inv Con Risk",null,"BSCR Rating - 24","Select",null,null,null,null,null,null,null,"Select"]
["Sch XXIA","Inv Con Risk",null,"BSCR Rating - 25","Select",null,null,null,null,null,null,null,"Select"]
["Sch XXIA","Inv Con Risk",null,"BSCR Rating - 26","Select",null,null,null,null,null,null,null,"Select"]
["Sch XXIA","Inv Con Risk",null,"BSCR Rating - 27","Select",null,null,null,null,null,null,null,"Select"]
["Sch XXIA","Inv Con Risk",null,"BSCR Rating - 28","Select",null,null,null,null,null,null,null,"Select"]
["Sch XXIA","Inv Con Risk",null,"BSCR Rating - 29","Select",null,null,null,null,null,null,null,"Select"]
["Sch XXIA","Inv Con Risk",null,"BSCR Rating - 30","Select",null,null,null,null,null,null,null,"Select"]
["Sch XXIA","Inv Con Risk",null,"BSCR Rating - 31","Select",null,null,null,null,null,null,null,"Select"]
["Sch XXIA","Inv Con Risk",null,"BSCR Rating - 32","Select",null,null,null,null,null,null,null,"Select"]
["Sch XXIA","Inv Con Risk",null,"BSCR Rating - 33","Select",null,null,null,null,null,null,null,"Select"]
["Sch XXIA","Inv Con Risk",null,"BSCR Rating - 34","Select",null,null,null,null,null,null,null,"Select"]
["Sch XXIA","Inv Con Risk",null,"BSCR Rating - 35","Select",null,null,null,null,null,null,null,"Select"]
["Sch XXIA","Inv Con Risk",null,"BSCR Rating - 36","Select",null,null,null,null,null,null,null,"Select"]
["Sch XXIA","Inv Con Risk",null,"BSCR Rating - 37","Select",null,null,null,null,null,null,null,"Select"]
["Sch XXIA","Inv Con Risk",null,"BSCR Rating - 38","Select",null,null,null,null,null,null,null,"Select"]
["Sch XXIA","Inv Con Risk",null,"BSCR Rating - 39","Select",null,null,null,null,null,null,null,"Select"]
["Sch XXIA","Inv Con Risk",null,"BSCR Rating - 40","Select",null,null,null,null,null,null,null,"Select"]
["Sch XXIA","Inv Con Risk",null,"BSCR Rating - 41","Select",null,null,null,null,null,null,null,"Select"]
["Sch XXIA","Inv Con Risk",null,"BSCR Rating - 42","Select",null,null,null,null,null,null,null,"Select"]
["Sch XXIA","Inv Con Risk",null,"BSCR Rating - 43","Select",null,null,null,null,null,null,null,"Select"]
["Sch XXIA","Inv Con Risk",null,"BSCR Rating - 44","Select",null,null,null,null,null,null,null,"Select"]
["Sch XXIA","Inv Con Risk",null,"BSCR Rating - 45","Select",null,null,null,null,null,null,null,"Select"]
["Sch XXIA","Inv Con Risk",null,"BSCR Rating - 46","Select",null,null,null,null,null,null,null,"Select"]
["Sch XXIA","Inv Con Risk",null,"BSCR Rating - 47","Select",null,null,null,null,null,null,null,"Select"]
["Sch XXIA","Inv Con Risk",null,"BSCR Rating - 48","Select",null,null,null,null,null,null,null,"Select"]
["Sch XXIA","Inv Con Risk",null,"BSCR Rating - 49","Select",null,null,null,null,null,null,null,"Select"]
["Sch XXIA","Inv Con Risk",null,"BSCR Rating - 50","Select",null,null,null,null,null,null,null,"Select"]
["Sch XXIA","Inv Con Risk",null,"Asset Value - 1",0,null,null,null,null,null,null,null,0]
["Sch XXIA","Inv Con Risk",null,"Asset Value - 2",0,null,null,null,null,null,null,null,0]
["Sch XXIA","Inv Con Risk",null,"Asset Value - 3",0,null,null,null,null,null,null,null,0]
["Sch XXIA","Inv Con Risk",null,"Asset Value - 4",0,null,null,null,null,null,null,null,0]
["Sch XXIA","Inv Con Risk",null,"Asset Value - 5",0,null,null,null,null,null,null,null,0]
["Sch XXIA","Inv Con Risk",null,"Asset Value - 6",0,null,null,null,null,null,null,null,0]
["Sch XXIA","Inv Con Risk",null,"Asset Value - 7",0,null,null,null,null,null,null,null,0]
["Sch XXIA","Inv Con Risk",null,"Asset Value - 8",0,null,null,null,null,null,null,null,0]
["Sch XXIA","Inv Con Risk",null,"Asset Value - 9",0,null,null,null,null,null,null,null,0]
["Sch XXIA","Inv Con Risk",null,"Asset Value - 10",0,null,null,null,null,null,null,null,0]
["Sch XXIA","Inv Con Risk",null,"Asset Value - 11",0,null,null,null,null,null,null,null,0]
["Sch XXIA","Inv Con Risk",null,"Asset Value - 12",0,null,null,null,null,null,null,null,0]
["Sch XXIA","Inv Con Risk",null,"Asset Value - 13",0,null,null,null,null,null,null,null,0]
["Sch XXIA","Inv Con Risk",null,"Asset Value - 14",0,null,null,null,null,null,null,null,0]
["Sch XXIA","Inv Con Risk",null,"Asset Value - 15",0,null,null,null,null,null,null,null,0]
["Sch XXIA","Inv Con Risk",null,"Asset Value - 16",0,null,null,null,null,null,null,null,0]
["Sch XXIA","Inv Con Risk",null,"Asset Value - 17",0,null,null,null,null,null,null,null,0]
["Sch XXIA","Inv Con Risk",null,"Asset Value - 18",0,null,null,null,null,null,null,null,0]
["Sch XXIA","Inv Con Risk",null,"Asset Value - 19",0,null,null,null,null,null,null,null,0]
["Sch XXIA","Inv Con Risk",null,"Asset Value - 20",0,null,null,null,null,null,null,null,0]
["Sch XXIA","Inv Con Risk",null,"Asset Value - 21",0,null,null,null,null,null,null,null,0]
["Sch XXIA","Inv Con Risk",null,"Asset Value - 22",0,null,null,null,null,null,null,null,0]
["Sch XXIA","Inv Con Risk",null,"Asset Value - 23",0,null,null,null,null,null,null,null,0]
["Sch XXIA","Inv Con Risk",null,"Asset Value - 24",0,null,null,null,null,null,null,null,0]
["Sch XXIA","Inv Con Risk",null,"Asset Value - 25",0,null,null,null,null,null,null,null,0]
["Sch XXIA","Inv Con Risk",null,"Asset Value - 26",0,null,null,null,null,null,null,null,0]
["Sch XXIA","Inv Con Risk",null,"Asset Value - 27",0,null,null,null,null,null,null,null,0]
["Sch XXIA","Inv Con Risk",null,"Asset Value - 28",0,null,null,null,null,null,null,null,0]
["Sch XXIA","Inv Con Risk",null,"Asset Value - 29",0,null,null,null,null,null,null,null,0]
["Sch XXIA","Inv Con Risk",null,"Asset Value - 30",0,null,null,null,null,null,null,null,0]
["Sch XXIA","Inv Con Risk",null,"Asset Value - 31",0,null,null,null,null,null,null,null,0]
["Sch XXIA","Inv Con Risk",null,"Asset Value - 32",0,null,null,null,null,null,null,null,0]
["Sch XXIA","Inv Con Risk",null,"Asset Value - 33",0,null,null,null,null,null,null,null,0]
["Sch XXIA","Inv Con Risk",null,"Asset Value - 34",0,null,null,null,null,null,null,null,0]
["Sch XXIA","Inv Con Risk",null,"Asset Value - 35",0,null,null,null,null,null,null,null,0]
["Sch XXIA","Inv Con Risk",null,"Asset Value - 36",0,null,null,null,null,null,null,null,0]
["Sch XXIA","Inv Con Risk",null,"Asset Value - 37",0,null,null,null,null,null,null,null,0]
["Sch XXIA","Inv Con Risk",null,"Asset Value - 38",0,null,null,null,null,null,null,null,0]
["Sch XXIA","Inv Con Risk",null,"Asset Value - 39",0,null,null,null,null,null,null,null,0]
["Sch XXIA","Inv Con Risk",null,"Asset Value - 40",0,null,null,null,null,null,null,null,0]
["Sch XXIA","Inv Con Risk",null,"Asset Value - 41",0,null,null,null,null,null,null,null,0]
["Sch XXIA","Inv Con Risk",null,"Asset Value - 42",0,null,null,null,null,null,null,null,0]
["Sch XXIA","Inv Con Risk",null,"Asset Value - 43",0,null,null,null,null,null,null,null,0]
["Sch XXIA","Inv Con Risk",null,"Asset Value - 44",0,null,null,null,null,null,null,null,0]
["Sch XXIA","Inv Con Risk",null,"Asset Value - 45",0,null,null,null,null,null,null,null,0]
["Sch XXIA","Inv Con Risk",null,"Asset Value - 46",0,null,null,null,null,null,null,null,0]
["Sch XXIA","Inv Con Risk",null,"Asset Value - 47",0,null,null,null,null,null,null,null,0]
["Sch XXIA","Inv Con Risk",null,"Asset Value - 48",0,null,null,null,null,null,null,null,0]
["Sch XXIA","Inv Con Risk",null,"Asset Value - 49",0,null,null,null,null,null,null,null,0]
["Sch XXIA","Inv Con Risk",null,"Asset Value - 50",0,null,null,null,null,null,null,null,0]
["Sch XXIA","Inv Con Risk",null,"Asset Value - Total",0,null,null,null,null,null,null,null,0]
[]
["Sch XXIII","Interest Rates",null,"Other currency 1",null,null,null,null,null,null,null,null,"Other currency 1"]
["Sch XXIII","Interest Rates",null,"Other currency 2",null,null,null,null,null,null,null,null,"Other currency 2"]
["Sch XXIII","Interest Rates",null,"Other currency 3",null,null,null,null,null,null,null,null,"Other currency 3"]
["Sch XXIII","Interest Rates",null,"Other currency 4",null,null,null,null,null,null,null,null,"Other currency 4"]
["Sch XXIII","Interest Rates",null,"Other currency 5",null,null,null,null,null,null,null,null,"Other currency 5"]
["Sch XXIII","Interest Rates",null,"Other currency 6",null,null,null,null,null,null,null,null,"Other currency 6"]
["Sch XXIII","Interest Rates",null,"Other currency 7",null,null,null,null,null,null,null,null,"Other currency 7"]
["Sch XXIII","Interest Rates",null,"Other currency 8",null,null,null,null,null,null,null,null,"Other currency 8"]
["Sch XXIII","Interest Rates",null,"Other currency 9",null,null,null,null,null,null,null,null,"Other currency 9"]
["Sch XXIII","Interest Rates",null,"Other currency 10",null,null,null,null,null,null,null,null,"Other currency 10"]
["Sch XXIII","Interest Rates",null,"Int. Down - Before Shock - Other - Qualifying Assets - United States Dollars",null,null,null,null,null,null,null,null,0]
["Sch XXIII","Interest Rates",null,"Int. Down - Before Shock - Other - Qualifying Assets - Euro",null,null,null,null,null,null,null,null,0]
["Sch XXIII","Interest Rates",null,"Int. Down - Before Shock - Other - Qualifying Assets - United Kingdom Pounds",null,null,null,null,null,null,null,null,0]
["Sch XXIII","Interest Rates",null,"Int. Down - Before Shock - Other - Qualifying Assets - Japan Yen",null,null,null,null,null,null,null,null,0]
["Sch XXIII","Interest Rates",null,"Int. Down - Before Shock - Other - Qualifying Assets - Canada Dollars",null,null,null,null,null,null,null,null,0]
["Sch XXIII","Interest Rates",null,"Int. Down - Before Shock - Other - Qualifying Assets - Swiss Francs",null,null,null,null,null,null,null,null,0]
["Sch XXIII","Interest Rates",null,"Int. Down - Before Shock - Other - Qualifying Assets - Australia Dollar",null,null,null,null,null,null,null,null,0]
["Sch XXIII","Interest Rates",null,"Int. Down - Before Shock - Other - Qualifying Assets - New Zealand Dollar",null,null,null,null,null,null,null,null,0]
["Sch XXIII","Interest Rates",null,{"$f":"\"Int. Down - Before Shock - Other - Qualifying Assets - \"&'Schedule XXIII'!$C$18","v":"Int. Down - Before Shock - Other - Qualifying Assets - Other currency 1"},null,null,null,null,null,null,null,null,0]
["Sch XXIII","Interest Rates",null,{"$f":"\"Int. Down - Before Shock - Other - Qualifying Assets - \"&'Schedule XXIII'!$C$19","v":"Int. Down - Before Shock - Other - Qualifying Assets - Other currency 2"},null,null,null,null,null,null,null,null,0]
["Sch XXIII","Interest Rates",null,{"$f":"\"Int. Down - Before Shock - Other - Qualifying Assets - \"&'Schedule XXIII'!$C$20","v":"Int. Down - Before Shock - Other - Qualifying Assets - Other currency 3"},null,null,null,null,null,null,null,null,0]
["Sch XXIII","Interest Rates",null,{"$f":"\"Int. Down - Before Shock - Other - Qualifying Assets - \"&'Schedule XXIII'!$C$21","v":"Int. Down - Before Shock - Other - Qualifying Assets - Other currency 4"},null,null,null,null,null,null,null,null,0]
["Sch XXIII","Interest Rates",null,{"$f":"\"Int. Down - Before Shock - Other - Qualifying Assets - \"&'Schedule XXIII'!$C$22","v":"Int. Down - Before Shock - Other - Qualifying Assets - Other currency 5"},null,null,null,null,null,null,null,null,0]
["Sch XXIII","Interest Rates",null,{"$f":"\"Int. Down - Before Shock - Other - Qualifying Assets - \"&'Schedule XXIII'!$C$23","v":"Int. Down - Before Shock - Other - Qualifying Assets - Other currency 6"},null,null,null,null,null,null,null,null,0]
["Sch XXIII","Interest Rates",null,{"$f":"\"Int. Down - Before Shock - Other - Qualifying Assets - \"&'Schedule XXIII'!$C$24","v":"Int. Down - Before Shock - Other - Qualifying Assets - Other currency 7"},null,null,null,null,null,null,null,null,0]
["Sch XXIII","Interest Rates",null,{"$f":"\"Int. Down - Before Shock - Other - Qualifying Assets - \"&'Schedule XXIII'!$C$25","v":"Int. Down - Before Shock - Other - Qualifying Assets - Other currency 8"},null,null,null,null,null,null,null,null,0]
["Sch XXIII","Interest Rates",null,{"$f":"\"Int. Down - Before Shock - Other - Qualifying Assets - \"&'Schedule XXIII'!$C$26","v":"Int. Down - Before Shock - Other - Qualifying Assets - Other currency 9"},null,null,null,null,null,null,null,null,0]
["Sch XXIII","Interest Rates",null,{"$f":"\"Int. Down - Before Shock - Other - Qualifying Assets - \"&'Schedule XXIII'!$C$27","v":"Int. Down - Before Shock - Other - Qualifying Assets - Other currency 10"},null,null,null,null,null,null,null,null,0]
["Sch XXIII","Interest Rates",null,"Int. Down - Before Shock - Other - Qualifying Assets - Total",null,null,null,null,null,null,null,null,0]
["Sch XXIII","Interest Rates",null,"Int. Down - After Shock - Other - Qualifying Assets - United States Dollars",null,null,null,null,null,null,null,null,0]
["Sch XXIII","Interest Rates",null,"Int. Down - After Shock - Other - Qualifying Assets - Euro",null,null,null,null,null,null,null,null,0]
["Sch XXIII","Interest Rates",null,"Int. Down - After Shock - Other - Qualifying Assets - United Kingdom Pounds",null,null,null,null,null,null,null,null,0]
["Sch XXIII","Interest Rates",null,"Int. Down - After Shock - Other - Qualifying Assets - Japan Yen",null,null,null,null,null,null,null,null,0]
["Sch XXIII","Interest Rates",null,"Int. Down - After Shock - Other - Qualifying Assets - Canada Dollars",null,null,null,null,null,null,null,null,0]
["Sch XXIII","Interest Rates",null,"Int. Down - After Shock - Other - Qualifying Assets - Swiss Francs",null,null,null,null,null,null,null,null,0]
["Sch XXIII","Interest Rates",null,"Int. Down - After Shock - Other - Qualifying Assets - Australia Dollar",null,null,null,null,null,null,null,null,0]
["Sch XXIII","Interest Rates",null,"Int. Down - After Shock - Other - Qualifying Assets - New Zealand Dollar",null,null,null,null,null,null,null,null,0]
["Sch XXIII","Interest Rates",null,{"$f":"\"Int. Down - After Shock - Other - Qualifying Assets - \"&'Schedule XXIII'!$C$18","v":"Int. Down - After Shock - Other - Qualifying Assets - Other currency 1"},null,null,null,null,null,null,null,null,0]
["Sch XXIII","Interest Rates",null,{"$f":"\"Int. Down - After Shock - Other - Qualifying Assets - \"&'Schedule XXIII'!$C$19","v":"Int. Down - After Shock - Other - Qualifying Assets - Other currency 2"},null,null,null,null,null,null,null,null,0]
["Sch XXIII","Interest Rates",null,{"$f":"\"Int. Down - After Shock - Other - Qualifying Assets - \"&'Schedule XXIII'!$C$20","v":"Int. Down - After Shock - Other - Qualifying Assets - Other currency 3"},null,null,null,null,null,null,null,null,0]
["Sch XXIII","Interest Rates",null,{"$f":"\"Int. Down - After Shock - Other - Qualifying Assets - \"&'Schedule XXIII'!$C$21","v":"Int. Down - After Shock - Other - Qualifying Assets - Other currency 4"},null,null,null,null,null,null,null,null,0]
["Sch XXIII","Interest Rates",null,{"$f":"\"Int. Down - After Shock - Other - Qualifying Assets - \"&'Schedule XXIII'!$C$22","v":"Int. Down - After Shock - Other - Qualifying Assets - Other currency 5"},null,null,null,null,null,null,null,null,0]
["Sch XXIII","Interest Rates",null,{"$f":"\"Int. Down - After Shock - Other - Qualifying Assets - \"&'Schedule XXIII'!$C$23","v":"Int. Down - After Shock - Other - Qualifying Assets - Other currency 6"},null,null,null,null,null,null,null,null,0]
["Sch XXIII","Interest Rates",null,{"$f":"\"Int. Down - After Shock - Other - Qualifying Assets - \"&'Schedule XXIII'!$C$24","v":"Int. Down - After Shock - Other - Qualifying Assets - Other currency 7"},null,null,null,null,null,null,null,null,0]
["Sch XXIII","Interest Rates",null,{"$f":"\"Int. Down - After Shock - Other - Qualifying Assets - \"&'Schedule XXIII'!$C$25","v":"Int. Down - After Shock - Other - Qualifying Assets - Other currency 8"},null,null,null,null,null,null,null,null,0]
["Sch XXIII","Interest Rates",null,{"$f":"\"Int. Down - After Shock - Other - Qualifying Assets - \"&'Schedule XXIII'!$C$26","v":"Int. Down - After Shock - Other - Qualifying Assets - Other currency 9"},null,null,null,null,null,null,null,null,0]
["Sch XXIII","Interest Rates",null,{"$f":"\"Int. Down - After Shock - Other - Qualifying Assets - \"&'Schedule XXIII'!$C$27","v":"Int. Down - After Shock - Other - Qualifying Assets - Other currency 10"},null,null,null,null,null,null,null,null,0]
["Sch XXIII","Interest Rates",null,"Int. Down - After Shock - Other - Qualifying Assets - Total",null,null,null,null,null,null,null,null,0]
["Sch XXIII","Interest Rates",null,"Int. Down - Before Shock - Other - Liab. w/o Mgmt Action - United States Dollars",null,null,null,null,null,null,null,null,0]
["Sch XXIII","Interest Rates",null,"Int. Down - Before Shock - Other - Liab. w/o Mgmt Action - Euro",null,null,null,null,null,null,null,null,0]
["Sch XXIII","Interest Rates",null,"Int. Down - Before Shock - Other - Liab. w/o Mgmt Action - United Kingdom Pounds",null,null,null,null,null,null,null,null,0]
["Sch XXIII","Interest Rates",null,"Int. Down - Before Shock - Other - Liab. w/o Mgmt Action - Japan Yen",null,null,null,null,null,null,null,null,0]
["Sch XXIII","Interest Rates",null,"Int. Down - Before Shock - Other - Liab. w/o Mgmt Action - Canada Dollars",null,null,null,null,null,null,null,null,0]
["Sch XXIII","Interest Rates",null,"Int. Down - Before Shock - Other - Liab. w/o Mgmt Action - Swiss Francs",null,null,null,null,null,null,null,null,0]
["Sch XXIII","Interest Rates",null,"Int. Down - Before Shock - Other - Liab. w/o Mgmt Action - Australia Dollar",null,null,null,null,null,null,null,null,0]
["Sch XXIII","Interest Rates",null,"Int. Down - Before Shock - Other - Liab. w/o Mgmt Action - New Zealand Dollar",null,null,null,null,null,null,null,null,0]
["Sch XXIII","Interest Rates",null,{"$f":"\"Int. Down - Before Shock - Other - Liab. w/o Mgmt Action - \"&'Schedule XXIII'!$C$18","v":"Int. Down - Before Shock - Other - Liab. w/o Mgmt Action - Other currency 1"},null,null,null,null,null,null,null,null,0]
["Sch XXIII","Interest Rates",null,{"$f":"\"Int. Down - Before Shock - Other - Liab. w/o Mgmt Action - \"&'Schedule XXIII'!$C$19","v":"Int. Down - Before Shock - Other - Liab. w/o Mgmt Action - Other currency 2"},null,null,null,null,null,null,null,null,0]
["Sch XXIII","Interest Rates",null,{"$f":"\"Int. Down - Before Shock - Other - Liab. w/o Mgmt Action - \"&'Schedule XXIII'!$C$20","v":"Int. Down - Before Shock - Other - Liab. w/o Mgmt Action - Other currency 3"},null,null,null,null,null,null,null,null,0]
["Sch XXIII","Interest Rates",null,{"$f":"\"Int. Down - Before Shock - Other - Liab. w/o Mgmt Action - \"&'Schedule XXIII'!$C$21","v":"Int. Down - Before Shock - Other - Liab. w/o Mgmt Action - Other currency 4"},null,null,null,null,null,null,null,null,0]
["Sch XXIII","Interest Rates",null,{"$f":"\"Int. Down - Before Shock - Other - Liab. w/o Mgmt Action - \"&'Schedule XXIII'!$C$22","v":"Int. Down - Before Shock - Other - Liab. w/o Mgmt Action - Other currency 5"},null,null,null,null,null,null,null,null,0]
["Sch XXIII","Interest Rates",null,{"$f":"\"Int. Down - Before Shock - Other - Liab. w/o Mgmt Action - \"&'Schedule XXIII'!$C$23","v":"Int. Down - Before Shock - Other - Liab. w/o Mgmt Action - Other currency 6"},null,null,null,null,null,null,null,null,0]
["Sch XXIII","Interest Rates",null,{"$f":"\"Int. Down - Before Shock - Other - Liab. w/o Mgmt Action - \"&'Schedule XXIII'!$C$24","v":"Int. Down - Before Shock - Other - Liab. w/o Mgmt Action - Other currency 7"},null,null,null,null,null,null,null,null,0]
["Sch XXIII","Interest Rates",null,{"$f":"\"Int. Down - Before Shock - Other - Liab. w/o Mgmt Action - \"&'Schedule XXIII'!$C$25","v":"Int. Down - Before Shock - Other - Liab. w/o Mgmt Action - Other currency 8"},null,null,null,null,null,null,null,null,0]
["Sch XXIII","Interest Rates",null,{"$f":"\"Int. Down - Before Shock - Other - Liab. w/o Mgmt Action - \"&'Schedule XXIII'!$C$26","v":"Int. Down - Before Shock - Other - Liab. w/o Mgmt Action - Other currency 9"},null,null,null,null,null,null,null,null,0]
["Sch XXIII","Interest Rates",null,{"$f":"\"Int. Down - Before Shock - Other - Liab. w/o Mgmt Action - \"&'Schedule XXIII'!$C$27","v":"Int. Down - Before Shock - Other - Liab. w/o Mgmt Action - Other currency 10"},null,null,null,null,null,null,null,null,0]
["Sch XXIII","Interest Rates",null,"Int. Down - Before Shock - Other - Liab. w/o Mgmt Action - Total",null,null,null,null,null,null,null,null,0]
["Sch XXIII","Interest Rates",null,"Int. Down - After Shock - Other - Liab. w/o Mgmt Action - United States Dollars",null,null,null,null,null,null,null,null,0]
["Sch XXIII","Interest Rates",null,"Int. Down - After Shock - Other - Liab. w/o Mgmt Action - Euro",null,null,null,null,null,null,null,null,0]
["Sch XXIII","Interest Rates",null,"Int. Down - After Shock - Other - Liab. w/o Mgmt Action - United Kingdom Pounds",null,null,null,null,null,null,null,null,0]
["Sch XXIII","Interest Rates",null,"Int. Down - After Shock - Other - Liab. w/o Mgmt Action - Japan Yen",null,null,null,null,null,null,null,null,0]
["Sch XXIII","Interest Rates",null,"Int. Down - After Shock - Other - Liab. w/o Mgmt Action - Canada Dollars",null,null,null,null,null,null,null,null,0]
["Sch XXIII","Interest Rates",null,"Int. Down - After Shock - Other - Liab. w/o Mgmt Action - Swiss Francs",null,null,null,null,null,null,null,null,0]
["Sch XXIII","Interest Rates",null,"Int. Down - After Shock - Other - Liab. w/o Mgmt Action - Australia Dollar",null,null,null,null,null,null,null,null,0]
["Sch XXIII","Interest Rates",null,"Int. Down - After Shock - Other - Liab. w/o Mgmt Action - New Zealand Dollar",null,null,null,null,null,null,null,null,0]
["Sch XXIII","Interest Rates",null,{"$f":"\"Int. Down - After Shock - Other - Liab. w/o Mgmt Action - \"&'Schedule XXIII'!$C$18","v":"Int. Down - After Shock - Other - Liab. w/o Mgmt Action - Other currency 1"},null,null,null,null,null,null,null,null,0]
["Sch XXIII","Interest Rates",null,{"$f":"\"Int. Down - After Shock - Other - Liab. w/o Mgmt Action - \"&'Schedule XXIII'!$C$19","v":"Int. Down - After Shock - Other - Liab. w/o Mgmt Action - Other currency 2"},null,null,null,null,null,null,null,null,0]
["Sch XXIII","Interest Rates",null,{"$f":"\"Int. Down - After Shock - Other - Liab. w/o Mgmt Action - \"&'Schedule XXIII'!$C$20","v":"Int. Down - After Shock - Other - Liab. w/o Mgmt Action - Other currency 3"},null,null,null,null,null,null,null,null,0]
["Sch XXIII","Interest Rates",null,{"$f":"\"Int. Down - After Shock - Other - Liab. w/o Mgmt Action - \"&'Schedule XXIII'!$C$21","v":"Int. Down - After Shock - Other - Liab. w/o Mgmt Action - Other currency 4"},null,null,null,null,null,null,null,null,0]
["Sch XXIII","Interest Rates",null,{"$f":"\"Int. Down - After Shock - Other - Liab. w/o Mgmt Action - \"&'Schedule XXIII'!$C$22","v":"Int. Down - After Shock - Other - Liab. w/o Mgmt Action - Other currency 5"},null,null,null,null,null,null,null,null,0]
["Sch XXIII","Interest Rates",null,{"$f":"\"Int. Down - After Shock - Other - Liab. w/o Mgmt Action - \"&'Schedule XXIII'!$C$23","v":"Int. Down - After Shock - Other - Liab. w/o Mgmt Action - Other currency 6"},null,null,null,null,null,null,null,null,0]
["Sch XXIII","Interest Rates",null,{"$f":"\"Int. Down - After Shock - Other - Liab. w/o Mgmt Action - \"&'Schedule XXIII'!$C$24","v":"Int. Down - After Shock - Other - Liab. w/o Mgmt Action - Other currency 7"},null,null,null,null,null,null,null,null,0]
["Sch XXIII","Interest Rates",null,{"$f":"\"Int. Down - After Shock - Other - Liab. w/o Mgmt Action - \"&'Schedule XXIII'!$C$25","v":"Int. Down - After Shock - Other - Liab. w/o Mgmt Action - Other currency 8"},null,null,null,null,null,null,null,null,0]
["Sch XXIII","Interest Rates",null,{"$f":"\"Int. Down - After Shock - Other - Liab. w/o Mgmt Action - \"&'Schedule XXIII'!$C$26","v":"Int. Down - After Shock - Other - Liab. w/o Mgmt Action - Other currency 9"},null,null,null,null,null,null,null,null,0]
["Sch XXIII","Interest Rates",null,{"$f":"\"Int. Down - After Shock - Other - Liab. w/o Mgmt Action - \"&'Schedule XXIII'!$C$27","v":"Int. Down - After Shock - Other - Liab. w/o Mgmt Action - Other currency 10"},null,null,null,null,null,null,null,null,0]
["Sch XXIII","Interest Rates",null,"Int. Down - After Shock - Other - Liab. w/o Mgmt Action - Total",null,null,null,null,null,null,null,null,0]
["Sch XXIII","Interest Rates",null,"Int. Down - After Shock - Other - Liab. with Mgmt Action - United States Dollars",null,null,null,null,null,null,null,null,0]
["Sch XXIII","Interest Rates",null,"Int. Down - After Shock - Other - Liab. with Mgmt Action - Euro",null,null,null,null,null,null,null,null,0]
["Sch XXIII","Interest Rates",null,"Int. Down - After Shock - Other - Liab. with Mgmt Action - United Kingdom Pounds",null,null,null,null,null,null,null,null,0]
["Sch XXIII","Interest Rates",null,"Int. Down - After Shock - Other - Liab. with Mgmt Action - Japan Yen",null,null,null,null,null,null,null,null,0]
["Sch XXIII","Interest Rates",null,"Int. Down - After Shock - Other - Liab. with Mgmt Action - Canada Dollars",null,null,null,null,null,null,null,null,0]
["Sch XXIII","Interest Rates",null,"Int. Down - After Shock - Other - Liab. with Mgmt Action - Swiss Francs",null,null,null,null,null,null,null,null,0]
["Sch XXIII","Interest Rates",null,"Int. Down - After Shock - Other - Liab. with Mgmt Action - Australia Dollar",null,null,null,null,null,null,null,null,0]
["Sch XXIII","Interest Rates",null,"Int. Down - After Shock - Other - Liab. with Mgmt Action - New Zealand Dollar",null,null,null,null,null,null,null,null,0]
["Sch XXIII","Interest Rates",null,{"$f":"\"Int. Down - After Shock - Other - Liab. with Mgmt Action - \"&'Schedule XXIII'!$C$18","v":"Int. Down - After Shock - Other - Liab. with Mgmt Action - Other currency 1"},null,null,null,null,null,null,null,null,0]
["Sch XXIII","Interest Rates",null,{"$f":"\"Int. Down - After Shock - Other - Liab. with Mgmt Action - \"&'Schedule XXIII'!$C$19","v":"Int. Down - After Shock - Other - Liab. with Mgmt Action - Other currency 2"},null,null,null,null,null,null,null,null,0]
["Sch XXIII","Interest Rates",null,{"$f":"\"Int. Down - After Shock - Other - Liab. with Mgmt Action - \"&'Schedule XXIII'!$C$20","v":"Int. Down - After Shock - Other - Liab. with Mgmt Action - Other currency 3"},null,null,null,null,null,null,null,null,0]
["Sch XXIII","Interest Rates",null,{"$f":"\"Int. Down - After Shock - Other - Liab. with Mgmt Action - \"&'Schedule XXIII'!$C$21","v":"Int. Down - After Shock - Other - Liab. with Mgmt Action - Other currency 4"},null,null,null,null,null,null,null,null,0]
["Sch XXIII","Interest Rates",null,{"$f":"\"Int. Down - After Shock - Other - Liab. with Mgmt Action - \"&'Schedule XXIII'!$C$22","v":"Int. Down - After Shock - Other - Liab. with Mgmt Action - Other currency 5"},null,null,null,null,null,null,null,null,0]
["Sch XXIII","Interest Rates",null,{"$f":"\"Int. Down - After Shock - Other - Liab. with Mgmt Action - \"&'Schedule XXIII'!$C$23","v":"Int. Down - After Shock - Other - Liab. with Mgmt Action - Other currency 6"},null,null,null,null,null,null,null,null,0]
["Sch XXIII","Interest Rates",null,{"$f":"\"Int. Down - After Shock - Other - Liab. with Mgmt Action - \"&'Schedule XXIII'!$C$24","v":"Int. Down - After Shock - Other - Liab. with Mgmt Action - Other currency 7"},null,null,null,null,null,null,null,null,0]
["Sch XXIII","Interest Rates",null,{"$f":"\"Int. Down - After Shock - Other - Liab. with Mgmt Action - \"&'Schedule XXIII'!$C$25","v":"Int. Down - After Shock - Other - Liab. with Mgmt Action - Other currency 8"},null,null,null,null,null,null,null,null,0]
["Sch XXIII","Interest Rates",null,{"$f":"\"Int. Down - After Shock - Other - Liab. with Mgmt Action - \"&'Schedule XXIII'!$C$26","v":"Int. Down - After Shock - Other - Liab. with Mgmt Action - Other currency 9"},null,null,null,null,null,null,null,null,0]
["Sch XXIII","Interest Rates",null,{"$f":"\"Int. Down - After Shock - Other - Liab. with Mgmt Action - \"&'Schedule XXIII'!$C$27","v":"Int. Down - After Shock - Other - Liab. with Mgmt Action - Other currency 10"},null,null,null,null,null,null,null,null,0]
["Sch XXIII","Interest Rates",null,"Int. Down - After Shock - Other - Liab. with Mgmt Action - Total",null,null,null,null,null,null,null,null,0]
["Sch XXIII","Interest Rates",null,"Int. Down - Before Shock - Derivatives - Qualifying Assets - United States Dollars",null,null,null,null,null,null,null,null,0]
["Sch XXIII","Interest Rates",null,"Int. Down - Before Shock - Derivatives - Qualifying Assets - Euro",null,null,null,null,null,null,null,null,0]
["Sch XXIII","Interest Rates",null,"Int. Down - Before Shock - Derivatives - Qualifying Assets - United Kingdom Pounds",null,null,null,null,null,null,null,null,0]
["Sch XXIII","Interest Rates",null,"Int. Down - Before Shock - Derivatives - Qualifying Assets - Japan Yen",null,null,null,null,null,null,null,null,0]
["Sch XXIII","Interest Rates",null,"Int. Down - Before Shock - Derivatives - Qualifying Assets - Canada Dollars",null,null,null,null,null,null,null,null,0]
["Sch XXIII","Interest Rates",null,"Int. Down - Before Shock - Derivatives - Qualifying Assets - Swiss Francs",null,null,null,null,null,null,null,null,0]
["Sch XXIII","Interest Rates",null,"Int. Down - Before Shock - Derivatives - Qualifying Assets - Australia Dollar",null,null,null,null,null,null,null,null,0]
["Sch XXIII","Interest Rates",null,"Int. Down - Before Shock - Derivatives - Qualifying Assets - New Zealand Dollar",null,null,null,null,null,null,null,null,0]
["Sch XXIII","Interest Rates",null,{"$f":"\"Int. Down - Before Shock - Derivatives - Qualifying Assets - \"&'Schedule XXIII'!$C$18","v":"Int. Down - Before Shock - Derivatives - Qualifying Assets - Other currency 1"},null,null,null,null,null,null,null,null,0]
["Sch XXIII","Interest Rates",null,{"$f":"\"Int. Down - Before Shock - Derivatives - Qualifying Assets - \"&'Schedule XXIII'!$C$19","v":"Int. Down - Before Shock - Derivatives - Qualifying Assets - Other currency 2"},null,null,null,null,null,null,null,null,0]
["Sch XXIII","Interest Rates",null,{"$f":"\"Int. Down - Before Shock - Derivatives - Qualifying Assets - \"&'Schedule XXIII'!$C$20","v":"Int. Down - Before Shock - Derivatives - Qualifying Assets - Other currency 3"},null,null,null,null,null,null,null,null,0]
["Sch XXIII","Interest Rates",null,{"$f":"\"Int. Down - Before Shock - Derivatives - Qualifying Assets - \"&'Schedule XXIII'!$C$21","v":"Int. Down - Before Shock - Derivatives - Qualifying Assets - Other currency 4"},null,null,null,null,null,null,null,null,0]
["Sch XXIII","Interest Rates",null,{"$f":"\"Int. Down - Before Shock - Derivatives - Qualifying Assets - \"&'Schedule XXIII'!$C$22","v":"Int. Down - Before Shock - Derivatives - Qualifying Assets - Other currency 5"},null,null,null,null,null,null,null,null,0]
["Sch XXIII","Interest Rates",null,{"$f":"\"Int. Down - Before Shock - Derivatives - Qualifying Assets - \"&'Schedule XXIII'!$C$23","v":"Int. Down - Before Shock - Derivatives - Qualifying Assets - Other currency 6"},null,null,null,null,null,null,null,null,0]
["Sch XXIII","Interest Rates",null,{"$f":"\"Int. Down - Before Shock - Derivatives - Qualifying Assets - \"&'Schedule XXIII'!$C$24","v":"Int. Down - Before Shock - Derivatives - Qualifying Assets - Other currency 7"},null,null,null,null,null,null,null,null,0]
["Sch XXIII","Interest Rates",null,{"$f":"\"Int. Down - Before Shock - Derivatives - Qualifying Assets - \"&'Schedule XXIII'!$C$25","v":"Int. Down - Before Shock - Derivatives - Qualifying Assets - Other currency 8"},null,null,null,null,null,null,null,null,0]
["Sch XXIII","Interest Rates",null,{"$f":"\"Int. Down - Before Shock - Derivatives - Qualifying Assets - \"&'Schedule XXIII'!$C$26","v":"Int. Down - Before Shock - Derivatives - Qualifying Assets - Other currency 9"},null,null,null,null,null,null,null,null,0]
["Sch XXIII","Interest Rates",null,{"$f":"\"Int. Down - Before Shock - Derivatives - Qualifying Assets - \"&'Schedule XXIII'!$C$27","v":"Int. Down - Before Shock - Derivatives - Qualifying Assets - Other currency 10"},null,null,null,null,null,null,null,null,0]
["Sch XXIII","Interest Rates",null,"Int. Down - Before Shock - Derivatives - Qualifying Assets - Total",null,null,null,null,null,null,null,null,0]
["Sch XXIII","Interest Rates",null,"Int. Down - After Shock - Derivatives - Qualifying Assets - United States Dollars",null,null,null,null,null,null,null,null,0]
["Sch XXIII","Interest Rates",null,"Int. Down - After Shock - Derivatives - Qualifying Assets - Euro",null,null,null,null,null,null,null,null,0]
["Sch XXIII","Interest Rates",null,"Int. Down - After Shock - Derivatives - Qualifying Assets - United Kingdom Pounds",null,null,null,null,null,null,null,null,0]
["Sch XXIII","Interest Rates",null,"Int. Down - After Shock - Derivatives - Qualifying Assets - Japan Yen",null,null,null,null,null,null,null,null,0]
["Sch XXIII","Interest Rates",null,"Int. Down - After Shock - Derivatives - Qualifying Assets - Canada Dollars",null,null,null,null,null,null,null,null,0]
["Sch XXIII","Interest Rates",null,"Int. Down - After Shock - Derivatives - Qualifying Assets - Swiss Francs",null,null,null,null,null,null,null,null,0]
["Sch XXIII","Interest Rates",null,"Int. Down - After Shock - Derivatives - Qualifying Assets - Australia Dollar",null,null,null,null,null,null,null,null,0]
["Sch XXIII","Interest Rates",null,"Int. Down - After Shock - Derivatives - Qualifying Assets - New Zealand Dollar",null,null,null,null,null,null,null,null,0]
["Sch XXIII","Interest Rates",null,{"$f":"\"Int. Down - After Shock - Derivatives - Qualifying Assets - \"&'Schedule XXIII'!$C$18","v":"Int. Down - After Shock - Derivatives - Qualifying Assets - Other currency 1"},null,null,null,null,null,null,null,null,0]
["Sch XXIII","Interest Rates",null,{"$f":"\"Int. Down - After Shock - Derivatives - Qualifying Assets - \"&'Schedule XXIII'!$C$19","v":"Int. Down - After Shock - Derivatives - Qualifying Assets - Other currency 2"},null,null,null,null,null,null,null,null,0]
["Sch XXIII","Interest Rates",null,{"$f":"\"Int. Down - After Shock - Derivatives - Qualifying Assets - \"&'Schedule XXIII'!$C$20","v":"Int. Down - After Shock - Derivatives - Qualifying Assets - Other currency 3"},null,null,null,null,null,null,null,null,0]
["Sch XXIII","Interest Rates",null,{"$f":"\"Int. Down - After Shock - Derivatives - Qualifying Assets - \"&'Schedule XXIII'!$C$21","v":"Int. Down - After Shock - Derivatives - Qualifying Assets - Other currency 4"},null,null,null,null,null,null,null,null,0]
["Sch XXIII","Interest Rates",null,{"$f":"\"Int. Down - After Shock - Derivatives - Qualifying Assets - \"&'Schedule XXIII'!$C$22","v":"Int. Down - After Shock - Derivatives - Qualifying Assets - Other currency 5"},null,null,null,null,null,null,null,null,0]
["Sch XXIII","Interest Rates",null,{"$f":"\"Int. Down - After Shock - Derivatives - Qualifying Assets - \"&'Schedule XXIII'!$C$23","v":"Int. Down - After Shock - Derivatives - Qualifying Assets - Other currency 6"},null,null,null,null,null,null,null,null,0]
["Sch XXIII","Interest Rates",null,{"$f":"\"Int. Down - After Shock - Derivatives - Qualifying Assets - \"&'Schedule XXIII'!$C$24","v":"Int. Down - After Shock - Derivatives - Qualifying Assets - Other currency 7"},null,null,null,null,null,null,null,null,0]
["Sch XXIII","Interest Rates",null,{"$f":"\"Int. Down - After Shock - Derivatives - Qualifying Assets - \"&'Schedule XXIII'!$C$25","v":"Int. Down - After Shock - Derivatives - Qualifying Assets - Other currency 8"},null,null,null,null,null,null,null,null,0]
["Sch XXIII","Interest Rates",null,{"$f":"\"Int. Down - After Shock - Derivatives - Qualifying Assets - \"&'Schedule XXIII'!$C$26","v":"Int. Down - After Shock - Derivatives - Qualifying Assets - Other currency 9"},null,null,null,null,null,null,null,null,0]
["Sch XXIII","Interest Rates",null,{"$f":"\"Int. Down - After Shock - Derivatives - Qualifying Assets - \"&'Schedule XXIII'!$C$27","v":"Int. Down - After Shock - Derivatives - Qualifying Assets - Other currency 10"},null,null,null,null,null,null,null,null,0]
["Sch XXIII","Interest Rates",null,"Int. Down - After Shock - Derivatives - Qualifying Assets - Total",null,null,null,null,null,null,null,null,0]
["Sch XXIII","Interest Rates",null,"Int. Down - Before Shock - Derivatives - Not Qualifying Assets - United States Dollars",null,null,null,null,null,null,null,null,0]
["Sch XXIII","Interest Rates",null,"Int. Down - Before Shock - Derivatives - Not Qualifying Assets - Euro",null,null,null,null,null,null,null,null,0]
["Sch XXIII","Interest Rates",null,"Int. Down - Before Shock - Derivatives - Not Qualifying Assets - United Kingdom Pounds",null,null,null,null,null,null,null,null,0]
["Sch XXIII","Interest Rates",null,"Int. Down - Before Shock - Derivatives - Not Qualifying Assets - Japan Yen",null,null,null,null,null,null,null,null,0]
["Sch XXIII","Interest Rates",null,"Int. Down - Before Shock - Derivatives - Not Qualifying Assets - Canada Dollars",null,null,null,null,null,null,null,null,0]
["Sch XXIII","Interest Rates",null,"Int. Down - Before Shock - Derivatives - Not Qualifying Assets - Swiss Francs",null,null,null,null,null,null,null,null,0]
["Sch XXIII","Interest Rates",null,"Int. Down - Before Shock - Derivatives - Not Qualifying Assets - Australia Dollar",null,null,null,null,null,null,null,null,0]
["Sch XXIII","Interest Rates",null,"Int. Down - Before Shock - Derivatives - Not Qualifying Assets - New Zealand Dollar",null,null,null,null,null,null,null,null,0]
["Sch XXIII","Interest Rates",null,{"$f":"\"Int. Down - Before Shock - Derivatives - Not Qualifying Assets - \"&'Schedule XXIII'!$C$18","v":"Int. Down - Before Shock - Derivatives - Not Qualifying Assets - Other currency 1"},null,null,null,null,null,null,null,null,0]
["Sch XXIII","Interest Rates",null,{"$f":"\"Int. Down - Before Shock - Derivatives - Not Qualifying Assets - \"&'Schedule XXIII'!$C$19","v":"Int. Down - Before Shock - Derivatives - Not Qualifying Assets - Other currency 2"},null,null,null,null,null,null,null,null,0]
["Sch XXIII","Interest Rates",null,{"$f":"\"Int. Down - Before Shock - Derivatives - Not Qualifying Assets - \"&'Schedule XXIII'!$C$20","v":"Int. Down - Before Shock - Derivatives - Not Qualifying Assets - Other currency 3"},null,null,null,null,null,null,null,null,0]
["Sch XXIII","Interest Rates",null,{"$f":"\"Int. Down - Before Shock - Derivatives - Not Qualifying Assets - \"&'Schedule XXIII'!$C$21","v":"Int. Down - Before Shock - Derivatives - Not Qualifying Assets - Other currency 4"},null,null,null,null,null,null,null,null,0]
["Sch XXIII","Interest Rates",null,{"$f":"\"Int. Down - Before Shock - Derivatives - Not Qualifying Assets - \"&'Schedule XXIII'!$C$22","v":"Int. Down - Before Shock - Derivatives - Not Qualifying Assets - Other currency 5"},null,null,null,null,null,null,null,null,0]
["Sch XXIII","Interest Rates",null,{"$f":"\"Int. Down - Before Shock - Derivatives - Not Qualifying Assets - \"&'Schedule XXIII'!$C$23","v":"Int. Down - Before Shock - Derivatives - Not Qualifying Assets - Other currency 6"},null,null,null,null,null,null,null,null,0]
["Sch XXIII","Interest Rates",null,{"$f":"\"Int. Down - Before Shock - Derivatives - Not Qualifying Assets - \"&'Schedule XXIII'!$C$24","v":"Int. Down - Before Shock - Derivatives - Not Qualifying Assets - Other currency 7"},null,null,null,null,null,null,null,null,0]
["Sch XXIII","Interest Rates",null,{"$f":"\"Int. Down - Before Shock - Derivatives - Not Qualifying Assets - \"&'Schedule XXIII'!$C$25","v":"Int. Down - Before Shock - Derivatives - Not Qualifying Assets - Other currency 8"},null,null,null,null,null,null,null,null,0]
["Sch XXIII","Interest Rates",null,{"$f":"\"Int. Down - Before Shock - Derivatives - Not Qualifying Assets - \"&'Schedule XXIII'!$C$26","v":"Int. Down - Before Shock - Derivatives - Not Qualifying Assets - Other currency 9"},null,null,null,null,null,null,null,null,0]
["Sch XXIII","Interest Rates",null,{"$f":"\"Int. Down - Before Shock - Derivatives - Not Qualifying Assets - \"&'Schedule XXIII'!$C$27","v":"Int. Down - Before Shock - Derivatives - Not Qualifying Assets - Other currency 10"},null,null,null,null,null,null,null,null,0]
["Sch XXIII","Interest Rates",null,"Int. Down - Before Shock - Derivatives - Not Qualifying Assets - Total",null,null,null,null,null,null,null,null,0]
["Sch XXIII","Interest Rates",null,"Int. Down - After Shock - Derivatives - Not Qualifying Assets - United States Dollars",null,null,null,null,null,null,null,null,0]
["Sch XXIII","Interest Rates",null,"Int. Down - After Shock - Derivatives - Not Qualifying Assets - Euro",null,null,null,null,null,null,null,null,0]
["Sch XXIII","Interest Rates",null,"Int. Down - After Shock - Derivatives - Not Qualifying Assets - United Kingdom Pounds",null,null,null,null,null,null,null,null,0]
["Sch XXIII","Interest Rates",null,"Int. Down - After Shock - Derivatives - Not Qualifying Assets - Japan Yen",null,null,null,null,null,null,null,null,0]
["Sch XXIII","Interest Rates",null,"Int. Down - After Shock - Derivatives - Not Qualifying Assets - Canada Dollars",null,null,null,null,null,null,null,null,0]
["Sch XXIII","Interest Rates",null,"Int. Down - After Shock - Derivatives - Not Qualifying Assets - Swiss Francs",null,null,null,null,null,null,null,null,0]
["Sch XXIII","Interest Rates",null,"Int. Down - After Shock - Derivatives - Not Qualifying Assets - Australia Dollar",null,null,null,null,null,null,null,null,0]
["Sch XXIII","Interest Rates",null,"Int. Down - After Shock - Derivatives - Not Qualifying Assets - New Zealand Dollar",null,null,null,null,null,null,null,null,0]
["Sch XXIII","Interest Rates",null,{"$f":"\"Int. Down - After Shock - Derivatives - Not Qualifying Assets - \"&'Schedule XXIII'!$C$18","v":"Int. Down - After Shock - Derivatives - Not Qualifying Assets - Other currency 1"},null,null,null,null,null,null,null,null,0]
["Sch XXIII","Interest Rates",null,{"$f":"\"Int. Down - After Shock - Derivatives - Not Qualifying Assets - \"&'Schedule XXIII'!$C$19","v":"Int. Down - After Shock - Derivatives - Not Qualifying Assets - Other currency 2"},null,null,null,null,null,null,null,null,0]
["Sch XXIII","Interest Rates",null,{"$f":"\"Int. Down - After Shock - Derivatives - Not Qualifying Assets - \"&'Schedule XXIII'!$C$20","v":"Int. Down - After Shock - Derivatives - Not Qualifying Assets - Other currency 3"},null,null,null,null,null,null,null,null,0]
["Sch XXIII","Interest Rates",null,{"$f":"\"Int. Down - After Shock - Derivatives - Not Qualifying Assets - \"&'Schedule XXIII'!$C$21","v":"Int. Down - After Shock - Derivatives - Not Qualifying Assets - Other currency 4"},null,null,null,null,null,null,null,null,0]
["Sch XXIII","Interest Rates",null,{"$f":"\"Int. Down - After Shock - Derivatives - Not Qualifying Assets - \"&'Schedule XXIII'!$C$22","v":"Int. Down - After Shock - Derivatives - Not Qualifying Assets - Other currency 5"},null,null,null,null,null,null,null,null,0]
["Sch XXIII","Interest Rates",null,{"$f":"\"Int. Down - After Shock - Derivatives - Not Qualifying Assets - \"&'Schedule XXIII'!$C$23","v":"Int. Down - After Shock - Derivatives - Not Qualifying Assets - Other currency 6"},null,null,null,null,null,null,null,null,0]
["Sch XXIII","Interest Rates",null,{"$f":"\"Int. Down - After Shock - Derivatives - Not Qualifying Assets - \"&'Schedule XXIII'!$C$24","v":"Int. Down - After Shock - Derivatives - Not Qualifying Assets - Other currency 7"},null,null,null,null,null,null,null,null,0]
["Sch XXIII","Interest Rates",null,{"$f":"\"Int. Down - After Shock - Derivatives - Not Qualifying Assets - \"&'Schedule XXIII'!$C$25","v":"Int. Down - After Shock - Derivatives - Not Qualifying Assets - Other currency 8"},null,null,null,null,null,null,null,null,0]
["Sch XXIII","Interest Rates",null,{"$f":"\"Int. Down - After Shock - Derivatives - Not Qualifying Assets - \"&'Schedule XXIII'!$C$26","v":"Int. Down - After Shock - Derivatives - Not Qualifying Assets - Other currency 9"},null,null,null,null,null,null,null,null,0]
["Sch XXIII","Interest Rates",null,{"$f":"\"Int. Down - After Shock - Derivatives - Not Qualifying Assets - \"&'Schedule XXIII'!$C$27","v":"Int. Down - After Shock - Derivatives - Not Qualifying Assets - Other currency 10"},null,null,null,null,null,null,null,null,0]
["Sch XXIII","Interest Rates",null,"Int. Down - After Shock - Derivatives - Not Qualifying Assets - Total",null,null,null,null,null,null,null,null,0]
["Sch XXIII","Interest Rates",null,"Int. Down - Before Shock - Derivatives - Liab. w/o Mgmt Action - United States Dollars",null,null,null,null,null,null,null,null,0]
["Sch XXIII","Interest Rates",null,"Int. Down - Before Shock - Derivatives - Liab. w/o Mgmt Action - Euro",null,null,null,null,null,null,null,null,0]
["Sch XXIII","Interest Rates",null,"Int. Down - Before Shock - Derivatives - Liab. w/o Mgmt Action - United Kingdom Pounds",null,null,null,null,null,null,null,null,0]
["Sch XXIII","Interest Rates",null,"Int. Down - Before Shock - Derivatives - Liab. w/o Mgmt Action - Japan Yen",null,null,null,null,null,null,null,null,0]
["Sch XXIII","Interest Rates",null,"Int. Down - Before Shock - Derivatives - Liab. w/o Mgmt Action - Canada Dollars",null,null,null,null,null,null,null,null,0]
["Sch XXIII","Interest Rates",null,"Int. Down - Before Shock - Derivatives - Liab. w/o Mgmt Action - Swiss Francs",null,null,null,null,null,null,null,null,0]
["Sch XXIII","Interest Rates",null,"Int. Down - Before Shock - Derivatives - Liab. w/o Mgmt Action - Australia Dollar",null,null,null,null,null,null,null,null,0]
["Sch XXIII","Interest Rates",null,"Int. Down - Before Shock - Derivatives - Liab. w/o Mgmt Action - New Zealand Dollar",null,null,null,null,null,null,null,null,0]
["Sch XXIII","Interest Rates",null,{"$f":"\"Int. Down - Before Shock - Derivatives - Liab. w/o Mgmt Action - \"&'Schedule XXIII'!$C$18","v":"Int. Down - Before Shock - Derivatives - Liab. w/o Mgmt Action - Other currency 1"},null,null,null,null,null,null,null,null,0]
["Sch XXIII","Interest Rates",null,{"$f":"\"Int. Down - Before Shock - Derivatives - Liab. w/o Mgmt Action - \"&'Schedule XXIII'!$C$19","v":"Int. Down - Before Shock - Derivatives - Liab. w/o Mgmt Action - Other currency 2"},null,null,null,null,null,null,null,null,0]
["Sch XXIII","Interest Rates",null,{"$f":"\"Int. Down - Before Shock - Derivatives - Liab. w/o Mgmt Action - \"&'Schedule XXIII'!$C$20","v":"Int. Down - Before Shock - Derivatives - Liab. w/o Mgmt Action - Other currency 3"},null,null,null,null,null,null,null,null,0]
["Sch XXIII","Interest Rates",null,{"$f":"\"Int. Down - Before Shock - Derivatives - Liab. w/o Mgmt Action - \"&'Schedule XXIII'!$C$21","v":"Int. Down - Before Shock - Derivatives - Liab. w/o Mgmt Action - Other currency 4"},null,null,null,null,null,null,null,null,0]
["Sch XXIII","Interest Rates",null,{"$f":"\"Int. Down - Before Shock - Derivatives - Liab. w/o Mgmt Action - \"&'Schedule XXIII'!$C$22","v":"Int. Down - Before Shock - Derivatives - Liab. w/o Mgmt Action - Other currency 5"},null,null,null,null,null,null,null,null,0]
["Sch XXIII","Interest Rates",null,{"$f":"\"Int. Down - Before Shock - Derivatives - Liab. w/o Mgmt Action - \"&'Schedule XXIII'!$C$23","v":"Int. Down - Before Shock - Derivatives - Liab. w/o Mgmt Action - Other currency 6"},null,null,null,null,null,null,null,null,0]
["Sch XXIII","Interest Rates",null,{"$f":"\"Int. Down - Before Shock - Derivatives - Liab. w/o Mgmt Action - \"&'Schedule XXIII'!$C$24","v":"Int. Down - Before Shock - Derivatives - Liab. w/o Mgmt Action - Other currency 7"},null,null,null,null,null,null,null,null,0]
["Sch XXIII","Interest Rates",null,{"$f":"\"Int. Down - Before Shock - Derivatives - Liab. w/o Mgmt Action - \"&'Schedule XXIII'!$C$25","v":"Int. Down - Before Shock - Derivatives - Liab. w/o Mgmt Action - Other currency 8"},null,null,null,null,null,null,null,null,0]
["Sch XXIII","Interest Rates",null,{"$f":"\"Int. Down - Before Shock - Derivatives - Liab. w/o Mgmt Action - \"&'Schedule XXIII'!$C$26","v":"Int. Down - Before Shock - Derivatives - Liab. w/o Mgmt Action - Other currency 9"},null,null,null,null,null,null,null,null,0]
["Sch XXIII","Interest Rates",null,{"$f":"\"Int. Down - Before Shock - Derivatives - Liab. w/o Mgmt Action - \"&'Schedule XXIII'!$C$27","v":"Int. Down - Before Shock - Derivatives - Liab. w/o Mgmt Action - Other currency 10"},null,null,null,null,null,null,null,null,0]
["Sch XXIII","Interest Rates",null,"Int. Down - Before Shock - Derivatives - Liab. w/o Mgmt Action - Total",null,null,null,null,null,null,null,null,0]
["Sch XXIII","Interest Rates",null,"Int. Down - After Shock - Derivatives - Liab. w/o Mgmt Action - United States Dollars",null,null,null,null,null,null,null,null,0]
["Sch XXIII","Interest Rates",null,"Int. Down - After Shock - Derivatives - Liab. w/o Mgmt Action - Euro",null,null,null,null,null,null,null,null,0]
["Sch XXIII","Interest Rates",null,"Int. Down - After Shock - Derivatives - Liab. w/o Mgmt Action - United Kingdom Pounds",null,null,null,null,null,null,null,null,0]
["Sch XXIII","Interest Rates",null,"Int. Down - After Shock - Derivatives - Liab. w/o Mgmt Action - Japan Yen",null,null,null,null,null,null,null,null,0]
["Sch XXIII","Interest Rates",null,"Int. Down - After Shock - Derivatives - Liab. w/o Mgmt Action - Canada Dollars",null,null,null,null,null,null,null,null,0]
["Sch XXIII","Interest Rates",null,"Int. Down - After Shock - Derivatives - Liab. w/o Mgmt Action - Swiss Francs",null,null,null,null,null,null,null,null,0]
["Sch XXIII","Interest Rates",null,"Int. Down - After Shock - Derivatives - Liab. w/o Mgmt Action - Australia Dollar",null,null,null,null,null,null,null,null,0]
["Sch XXIII","Interest Rates",null,"Int. Down - After Shock - Derivatives - Liab. w/o Mgmt Action - New Zealand Dollar",null,null,null,null,null,null,null,null,0]
["Sch XXIII","Interest Rates",null,{"$f":"\"Int. Down - After Shock - Derivatives - Liab. w/o Mgmt Action - \"&'Schedule XXIII'!$C$18","v":"Int. Down - After Shock - Derivatives - Liab. w/o Mgmt Action - Other currency 1"},null,null,null,null,null,null,null,null,0]
["Sch XXIII","Interest Rates",null,{"$f":"\"Int. Down - After Shock - Derivatives - Liab. w/o Mgmt Action - \"&'Schedule XXIII'!$C$19","v":"Int. Down - After Shock - Derivatives - Liab. w/o Mgmt Action - Other currency 2"},null,null,null,null,null,null,null,null,0]
["Sch XXIII","Interest Rates",null,{"$f":"\"Int. Down - After Shock - Derivatives - Liab. w/o Mgmt Action - \"&'Schedule XXIII'!$C$20","v":"Int. Down - After Shock - Derivatives - Liab. w/o Mgmt Action - Other currency 3"},null,null,null,null,null,null,null,null,0]
["Sch XXIII","Interest Rates",null,{"$f":"\"Int. Down - After Shock - Derivatives - Liab. w/o Mgmt Action - \"&'Schedule XXIII'!$C$21","v":"Int. Down - After Shock - Derivatives - Liab. w/o Mgmt Action - Other currency 4"},null,null,null,null,null,null,null,null,0]
["Sch XXIII","Interest Rates",null,{"$f":"\"Int. Down - After Shock - Derivatives - Liab. w/o Mgmt Action - \"&'Schedule XXIII'!$C$22","v":"Int. Down - After Shock - Derivatives - Liab. w/o Mgmt Action - Other currency 5"},null,null,null,null,null,null,null,null,0]
["Sch XXIII","Interest Rates",null,{"$f":"\"Int. Down - After Shock - Derivatives - Liab. w/o Mgmt Action - \"&'Schedule XXIII'!$C$23","v":"Int. Down - After Shock - Derivatives - Liab. w/o Mgmt Action - Other currency 6"},null,null,null,null,null,null,null,null,0]
["Sch XXIII","Interest Rates",null,{"$f":"\"Int. Down - After Shock - Derivatives - Liab. w/o Mgmt Action - \"&'Schedule XXIII'!$C$24","v":"Int. Down - After Shock - Derivatives - Liab. w/o Mgmt Action - Other currency 7"},null,null,null,null,null,null,null,null,0]
["Sch XXIII","Interest Rates",null,{"$f":"\"Int. Down - After Shock - Derivatives - Liab. w/o Mgmt Action - \"&'Schedule XXIII'!$C$25","v":"Int. Down - After Shock - Derivatives - Liab. w/o Mgmt Action - Other currency 8"},null,null,null,null,null,null,null,null,0]
["Sch XXIII","Interest Rates",null,{"$f":"\"Int. Down - After Shock - Derivatives - Liab. w/o Mgmt Action - \"&'Schedule XXIII'!$C$26","v":"Int. Down - After Shock - Derivatives - Liab. w/o Mgmt Action - Other currency 9"},null,null,null,null,null,null,null,null,0]
["Sch XXIII","Interest Rates",null,{"$f":"\"Int. Down - After Shock - Derivatives - Liab. w/o Mgmt Action - \"&'Schedule XXIII'!$C$27","v":"Int. Down - After Shock - Derivatives - Liab. w/o Mgmt Action - Other currency 10"},null,null,null,null,null,null,null,null,0]
["Sch XXIII","Interest Rates",null,"Int. Down - After Shock - Derivatives - Liab. w/o Mgmt Action - Total",null,null,null,null,null,null,null,null,0]
["Sch XXIII","Interest Rates",null,"Int. Down - After Shock - Derivatives - Liab. with Mgmt Action - United States Dollars",null,null,null,null,null,null,null,null,0]
["Sch XXIII","Interest Rates",null,"Int. Down - After Shock - Derivatives - Liab. with Mgmt Action - Euro",null,null,null,null,null,null,null,null,0]
["Sch XXIII","Interest Rates",null,"Int. Down - After Shock - Derivatives - Liab. with Mgmt Action - United Kingdom Pounds",null,null,null,null,null,null,null,null,0]
["Sch XXIII","Interest Rates",null,"Int. Down - After Shock - Derivatives - Liab. with Mgmt Action - Japan Yen",null,null,null,null,null,null,null,null,0]
["Sch XXIII","Interest Rates",null,"Int. Down - After Shock - Derivatives - Liab. with Mgmt Action - Canada Dollars",null,null,null,null,null,null,null,null,0]
["Sch XXIII","Interest Rates",null,"Int. Down - After Shock - Derivatives - Liab. with Mgmt Action - Swiss Francs",null,null,null,null,null,null,null,null,0]
["Sch XXIII","Interest Rates",null,"Int. Down - After Shock - Derivatives - Liab. with Mgmt Action - Australia Dollar",null,null,null,null,null,null,null,null,0]
["Sch XXIII","Interest Rates",null,"Int. Down - After Shock - Derivatives - Liab. with Mgmt Action - New Zealand Dollar",null,null,null,null,null,null,null,null,0]
["Sch XXIII","Interest Rates",null,{"$f":"\"Int. Down - After Shock - Derivatives - Liab. with Mgmt Action - \"&'Schedule XXIII'!$C$18","v":"Int. Down - After Shock - Derivatives - Liab. with Mgmt Action - Other currency 1"},null,null,null,null,null,null,null,null,0]
["Sch XXIII","Interest Rates",null,{"$f":"\"Int. Down - After Shock - Derivatives - Liab. with Mgmt Action - \"&'Schedule XXIII'!$C$19","v":"Int. Down - After Shock - Derivatives - Liab. with Mgmt Action - Other currency 2"},null,null,null,null,null,null,null,null,0]
["Sch XXIII","Interest Rates",null,{"$f":"\"Int. Down - After Shock - Derivatives - Liab. with Mgmt Action - \"&'Schedule XXIII'!$C$20","v":"Int. Down - After Shock - Derivatives - Liab. with Mgmt Action - Other currency 3"},null,null,null,null,null,null,null,null,0]
["Sch XXIII","Interest Rates",null,{"$f":"\"Int. Down - After Shock - Derivatives - Liab. with Mgmt Action - \"&'Schedule XXIII'!$C$21","v":"Int. Down - After Shock - Derivatives - Liab. with Mgmt Action - Other currency 4"},null,null,null,null,null,null,null,null,0]
["Sch XXIII","Interest Rates",null,{"$f":"\"Int. Down - After Shock - Derivatives - Liab. with Mgmt Action - \"&'Schedule XXIII'!$C$22","v":"Int. Down - After Shock - Derivatives - Liab. with Mgmt Action - Other currency 5"},null,null,null,null,null,null,null,null,0]
["Sch XXIII","Interest Rates",null,{"$f":"\"Int. Down - After Shock - Derivatives - Liab. with Mgmt Action - \"&'Schedule XXIII'!$C$23","v":"Int. Down - After Shock - Derivatives - Liab. with Mgmt Action - Other currency 6"},null,null,null,null,null,null,null,null,0]
["Sch XXIII","Interest Rates",null,{"$f":"\"Int. Down - After Shock - Derivatives - Liab. with Mgmt Action - \"&'Schedule XXIII'!$C$24","v":"Int. Down - After Shock - Derivatives - Liab. with Mgmt Action - Other currency 7"},null,null,null,null,null,null,null,null,0]
["Sch XXIII","Interest Rates",null,{"$f":"\"Int. Down - After Shock - Derivatives - Liab. with Mgmt Action - \"&'Schedule XXIII'!$C$25","v":"Int. Down - After Shock - Derivatives - Liab. with Mgmt Action - Other currency 8"},null,null,null,null,null,null,null,null,0]
["Sch XXIII","Interest Rates",null,{"$f":"\"Int. Down - After Shock - Derivatives - Liab. with Mgmt Action - \"&'Schedule XXIII'!$C$26","v":"Int. Down - After Shock - Derivatives - Liab. with Mgmt Action - Other currency 9"},null,null,null,null,null,null,null,null,0]
["Sch XXIII","Interest Rates",null,{"$f":"\"Int. Down - After Shock - Derivatives - Liab. with Mgmt Action - \"&'Schedule XXIII'!$C$27","v":"Int. Down - After Shock - Derivatives - Liab. with Mgmt Action - Other currency 10"},null,null,null,null,null,null,null,null,0]
["Sch XXIII","Interest Rates",null,"Int. Down - After Shock - Derivatives - Liab. with Mgmt Action - Total",null,null,null,null,null,null,null,null,0]
["Sch XXIII","Interest Rates",null,"Other currency 1",null,null,null,null,null,null,null,null,"Other currency 1"]
["Sch XXIII","Interest Rates",null,"Other currency 2",null,null,null,null,null,null,null,null,"Other currency 2"]
["Sch XXIII","Interest Rates",null,"Other currency 3",null,null,null,null,null,null,null,null,"Other currency 3"]
["Sch XXIII","Interest Rates",null,"Other currency 4",null,null,null,null,null,null,null,null,"Other currency 4"]
["Sch XXIII","Interest Rates",null,"Other currency 5",null,null,null,null,null,null,null,null,"Other currency 5"]
["Sch XXIII","Interest Rates",null,"Other currency 6",null,null,null,null,null,null,null,null,"Other currency 6"]
["Sch XXIII","Interest Rates",null,"Other currency 7",null,null,null,null,null,null,null,null,"Other currency 7"]
["Sch XXIII","Interest Rates",null,"Other currency 8",null,null,null,null,null,null,null,null,"Other currency 8"]
["Sch XXIII","Interest Rates",null,"Other currency 9",null,null,null,null,null,null,null,null,"Other currency 9"]
["Sch XXIII","Interest Rates",null,"Other currency 10",null,null,null,null,null,null,null,null,"Other currency 10"]
["Sch XXIII","Interest Rates",null,"Int. Up - Before Shock - Other - Qualifying Assets - United States Dollars",null,null,null,null,null,null,null,null,0]
["Sch XXIII","Interest Rates",null,"Int. Up - Before Shock - Other - Qualifying Assets - Euro",null,null,null,null,null,null,null,null,0]
["Sch XXIII","Interest Rates",null,"Int. Up - Before Shock - Other - Qualifying Assets - United Kingdom Pounds",null,null,null,null,null,null,null,null,0]
["Sch XXIII","Interest Rates",null,"Int. Up - Before Shock - Other - Qualifying Assets - Japan Yen",null,null,null,null,null,null,null,null,0]
["Sch XXIII","Interest Rates",null,"Int. Up - Before Shock - Other - Qualifying Assets - Canada Dollars",null,null,null,null,null,null,null,null,0]
["Sch XXIII","Interest Rates",null,"Int. Up - Before Shock - Other - Qualifying Assets - Swiss Francs",null,null,null,null,null,null,null,null,0]
["Sch XXIII","Interest Rates",null,"Int. Up - Before Shock - Other - Qualifying Assets - Australia Dollar",null,null,null,null,null,null,null,null,0]
["Sch XXIII","Interest Rates",null,"Int. Up - Before Shock - Other - Qualifying Assets - New Zealand Dollar",null,null,null,null,null,null,null,null,0]
["Sch XXIII","Interest Rates",null,{"$f":"\"Int. Up - Before Shock - Other - Qualifying Assets - \"&'Schedule XXIII'!$C$18","v":"Int. Up - Before Shock - Other - Qualifying Assets - Other currency 1"},null,null,null,null,null,null,null,null,0]
["Sch XXIII","Interest Rates",null,{"$f":"\"Int. Up - Before Shock - Other - Qualifying Assets - \"&'Schedule XXIII'!$C$19","v":"Int. Up - Before Shock - Other - Qualifying Assets - Other currency 2"},null,null,null,null,null,null,null,null,0]
["Sch XXIII","Interest Rates",null,{"$f":"\"Int. Up - Before Shock - Other - Qualifying Assets - \"&'Schedule XXIII'!$C$20","v":"Int. Up - Before Shock - Other - Qualifying Assets - Other currency 3"},null,null,null,null,null,null,null,null,0]
["Sch XXIII","Interest Rates",null,{"$f":"\"Int. Up - Before Shock - Other - Qualifying Assets - \"&'Schedule XXIII'!$C$21","v":"Int. Up - Before Shock - Other - Qualifying Assets - Other currency 4"},null,null,null,null,null,null,null,null,0]
["Sch XXIII","Interest Rates",null,{"$f":"\"Int. Up - Before Shock - Other - Qualifying Assets - \"&'Schedule XXIII'!$C$22","v":"Int. Up - Before Shock - Other - Qualifying Assets - Other currency 5"},null,null,null,null,null,null,null,null,0]
["Sch XXIII","Interest Rates",null,{"$f":"\"Int. Up - Before Shock - Other - Qualifying Assets - \"&'Schedule XXIII'!$C$23","v":"Int. Up - Before Shock - Other - Qualifying Assets - Other currency 6"},null,null,null,null,null,null,null,null,0]
["Sch XXIII","Interest Rates",null,{"$f":"\"Int. Up - Before Shock - Other - Qualifying Assets - \"&'Schedule XXIII'!$C$24","v":"Int. Up - Before Shock - Other - Qualifying Assets - Other currency 7"},null,null,null,null,null,null,null,null,0]
["Sch XXIII","Interest Rates",null,{"$f":"\"Int. Up - Before Shock - Other - Qualifying Assets - \"&'Schedule XXIII'!$C$25","v":"Int. Up - Before Shock - Other - Qualifying Assets - Other currency 8"},null,null,null,null,null,null,null,null,0]
["Sch XXIII","Interest Rates",null,{"$f":"\"Int. Up - Before Shock - Other - Qualifying Assets - \"&'Schedule XXIII'!$C$26","v":"Int. Up - Before Shock - Other - Qualifying Assets - Other currency 9"},null,null,null,null,null,null,null,null,0]
["Sch XXIII","Interest Rates",null,{"$f":"\"Int. Up - Before Shock - Other - Qualifying Assets - \"&'Schedule XXIII'!$C$27","v":"Int. Up - Before Shock - Other - Qualifying Assets - Other currency 10"},null,null,null,null,null,null,null,null,0]
["Sch XXIII","Interest Rates",null,"Int. Up - Before Shock - Other - Qualifying Assets - Total",null,null,null,null,null,null,null,null,0]
["Sch XXIII","Interest Rates",null,"Int. Up - After Shock - Other - Qualifying Assets - United States Dollars",null,null,null,null,null,null,null,null,0]
["Sch XXIII","Interest Rates",null,"Int. Up - After Shock - Other - Qualifying Assets - Euro",null,null,null,null,null,null,null,null,0]
["Sch XXIII","Interest Rates",null,"Int. Up - After Shock - Other - Qualifying Assets - United Kingdom Pounds",null,null,null,null,null,null,null,null,0]
["Sch XXIII","Interest Rates",null,"Int. Up - After Shock - Other - Qualifying Assets - Japan Yen",null,null,null,null,null,null,null,null,0]
["Sch XXIII","Interest Rates",null,"Int. Up - After Shock - Other - Qualifying Assets - Canada Dollars",null,null,null,null,null,null,null,null,0]
["Sch XXIII","Interest Rates",null,"Int. Up - After Shock - Other - Qualifying Assets - Swiss Francs",null,null,null,null,null,null,null,null,0]
["Sch XXIII","Interest Rates",null,"Int. Up - After Shock - Other - Qualifying Assets - Australia Dollar",null,null,null,null,null,null,null,null,0]
["Sch XXIII","Interest Rates",null,"Int. Up - After Shock - Other - Qualifying Assets - New Zealand Dollar",null,null,null,null,null,null,null,null,0]
["Sch XXIII","Interest Rates",null,{"$f":"\"Int. Up - After Shock - Other - Qualifying Assets - \"&'Schedule XXIII'!$C$18","v":"Int. Up - After Shock - Other - Qualifying Assets - Other currency 1"},null,null,null,null,null,null,null,null,0]
["Sch XXIII","Interest Rates",null,{"$f":"\"Int. Up - After Shock - Other - Qualifying Assets - \"&'Schedule XXIII'!$C$19","v":"Int. Up - After Shock - Other - Qualifying Assets - Other currency 2"},null,null,null,null,null,null,null,null,0]
["Sch XXIII","Interest Rates",null,{"$f":"\"Int. Up - After Shock - Other - Qualifying Assets - \"&'Schedule XXIII'!$C$20","v":"Int. Up - After Shock - Other - Qualifying Assets - Other currency 3"},null,null,null,null,null,null,null,null,0]
["Sch XXIII","Interest Rates",null,{"$f":"\"Int. Up - After Shock - Other - Qualifying Assets - \"&'Schedule XXIII'!$C$21","v":"Int. Up - After Shock - Other - Qualifying Assets - Other currency 4"},null,null,null,null,null,null,null,null,0]
["Sch XXIII","Interest Rates",null,{"$f":"\"Int. Up - After Shock - Other - Qualifying Assets - \"&'Schedule XXIII'!$C$22","v":"Int. Up - After Shock - Other - Qualifying Assets - Other currency 5"},null,null,null,null,null,null,null,null,0]
["Sch XXIII","Interest Rates",null,{"$f":"\"Int. Up - After Shock - Other - Qualifying Assets - \"&'Schedule XXIII'!$C$23","v":"Int. Up - After Shock - Other - Qualifying Assets - Other currency 6"},null,null,null,null,null,null,null,null,0]
["Sch XXIII","Interest Rates",null,{"$f":"\"Int. Up - After Shock - Other - Qualifying Assets - \"&'Schedule XXIII'!$C$24","v":"Int. Up - After Shock - Other - Qualifying Assets - Other currency 7"},null,null,null,null,null,null,null,null,0]
["Sch XXIII","Interest Rates",null,{"$f":"\"Int. Up - After Shock - Other - Qualifying Assets - \"&'Schedule XXIII'!$C$25","v":"Int. Up - After Shock - Other - Qualifying Assets - Other currency 8"},null,null,null,null,null,null,null,null,0]
["Sch XXIII","Interest Rates",null,{"$f":"\"Int. Up - After Shock - Other - Qualifying Assets - \"&'Schedule XXIII'!$C$26","v":"Int. Up - After Shock - Other - Qualifying Assets - Other currency 9"},null,null,null,null,null,null,null,null,0]
["Sch XXIII","Interest Rates",null,{"$f":"\"Int. Up - After Shock - Other - Qualifying Assets - \"&'Schedule XXIII'!$C$27","v":"Int. Up - After Shock - Other - Qualifying Assets - Other currency 10"},null,null,null,null,null,null,null,null,0]
["Sch XXIII","Interest Rates",null,"Int. Up - After Shock - Other - Qualifying Assets - Total",null,null,null,null,null,null,null,null,0]
["Sch XXIII","Interest Rates",null,"Int. Up - Before Shock - Other - Liab. w/o Mgmt Action - United States Dollars",null,null,null,null,null,null,null,null,0]
["Sch XXIII","Interest Rates",null,"Int. Up - Before Shock - Other - Liab. w/o Mgmt Action - Euro",null,null,null,null,null,null,null,null,0]
["Sch XXIII","Interest Rates",null,"Int. Up - Before Shock - Other - Liab. w/o Mgmt Action - United Kingdom Pounds",null,null,null,null,null,null,null,null,0]
["Sch XXIII","Interest Rates",null,"Int. Up - Before Shock - Other - Liab. w/o Mgmt Action - Japan Yen",null,null,null,null,null,null,null,null,0]
["Sch XXIII","Interest Rates",null,"Int. Up - Before Shock - Other - Liab. w/o Mgmt Action - Canada Dollars",null,null,null,null,null,null,null,null,0]
["Sch XXIII","Interest Rates",null,"Int. Up - Before Shock - Other - Liab. w/o Mgmt Action - Swiss Francs",null,null,null,null,null,null,null,null,0]
["Sch XXIII","Interest Rates",null,"Int. Up - Before Shock - Other - Liab. w/o Mgmt Action - Australia Dollar",null,null,null,null,null,null,null,null,0]
["Sch XXIII","Interest Rates",null,"Int. Up - Before Shock - Other - Liab. w/o Mgmt Action - New Zealand Dollar",null,null,null,null,null,null,null,null,0]
["Sch XXIII","Interest Rates",null,{"$f":"\"Int. Up - Before Shock - Other - Liab. w/o Mgmt Action - \"&'Schedule XXIII'!$C$18","v":"Int. Up - Before Shock - Other - Liab. w/o Mgmt Action - Other currency 1"},null,null,null,null,null,null,null,null,0]
["Sch XXIII","Interest Rates",null,{"$f":"\"Int. Up - Before Shock - Other - Liab. w/o Mgmt Action - \"&'Schedule XXIII'!$C$19","v":"Int. Up - Before Shock - Other - Liab. w/o Mgmt Action - Other currency 2"},null,null,null,null,null,null,null,null,0]
["Sch XXIII","Interest Rates",null,{"$f":"\"Int. Up - Before Shock - Other - Liab. w/o Mgmt Action - \"&'Schedule XXIII'!$C$20","v":"Int. Up - Before Shock - Other - Liab. w/o Mgmt Action - Other currency 3"},null,null,null,null,null,null,null,null,0]
["Sch XXIII","Interest Rates",null,{"$f":"\"Int. Up - Before Shock - Other - Liab. w/o Mgmt Action - \"&'Schedule XXIII'!$C$21","v":"Int. Up - Before Shock - Other - Liab. w/o Mgmt Action - Other currency 4"},null,null,null,null,null,null,null,null,0]
["Sch XXIII","Interest Rates",null,{"$f":"\"Int. Up - Before Shock - Other - Liab. w/o Mgmt Action - \"&'Schedule XXIII'!$C$22","v":"Int. Up - Before Shock - Other - Liab. w/o Mgmt Action - Other currency 5"},null,null,null,null,null,null,null,null,0]
["Sch XXIII","Interest Rates",null,{"$f":"\"Int. Up - Before Shock - Other - Liab. w/o Mgmt Action - \"&'Schedule XXIII'!$C$23","v":"Int. Up - Before Shock - Other - Liab. w/o Mgmt Action - Other currency 6"},null,null,null,null,null,null,null,null,0]
["Sch XXIII","Interest Rates",null,{"$f":"\"Int. Up - Before Shock - Other - Liab. w/o Mgmt Action - \"&'Schedule XXIII'!$C$24","v":"Int. Up - Before Shock - Other - Liab. w/o Mgmt Action - Other currency 7"},null,null,null,null,null,null,null,null,0]
["Sch XXIII","Interest Rates",null,{"$f":"\"Int. Up - Before Shock - Other - Liab. w/o Mgmt Action - \"&'Schedule XXIII'!$C$25","v":"Int. Up - Before Shock - Other - Liab. w/o Mgmt Action - Other currency 8"},null,null,null,null,null,null,null,null,0]
["Sch XXIII","Interest Rates",null,{"$f":"\"Int. Up - Before Shock - Other - Liab. w/o Mgmt Action - \"&'Schedule XXIII'!$C$26","v":"Int. Up - Before Shock - Other - Liab. w/o Mgmt Action - Other currency 9"},null,null,null,null,null,null,null,null,0]
["Sch XXIII","Interest Rates",null,{"$f":"\"Int. Up - Before Shock - Other - Liab. w/o Mgmt Action - \"&'Schedule XXIII'!$C$27","v":"Int. Up - Before Shock - Other - Liab. w/o Mgmt Action - Other currency 10"},null,null,null,null,null,null,null,null,0]
["Sch XXIII","Interest Rates",null,"Int. Up - Before Shock - Other - Liab. w/o Mgmt Action - Total",null,null,null,null,null,null,null,null,0]
["Sch XXIII","Interest Rates",null,"Int. Up - After Shock - Other - Liab. w/o Mgmt Action - United States Dollars",null,null,null,null,null,null,null,null,0]
["Sch XXIII","Interest Rates",null,"Int. Up - After Shock - Other - Liab. w/o Mgmt Action - Euro",null,null,null,null,null,null,null,null,0]
["Sch XXIII","Interest Rates",null,"Int. Up - After Shock - Other - Liab. w/o Mgmt Action - United Kingdom Pounds",null,null,null,null,null,null,null,null,0]
["Sch XXIII","Interest Rates",null,"Int. Up - After Shock - Other - Liab. w/o Mgmt Action - Japan Yen",null,null,null,null,null,null,null,null,0]
["Sch XXIII","Interest Rates",null,"Int. Up - After Shock - Other - Liab. w/o Mgmt Action - Canada Dollars",null,null,null,null,null,null,null,null,0]
["Sch XXIII","Interest Rates",null,"Int. Up - After Shock - Other - Liab. w/o Mgmt Action - Swiss Francs",null,null,null,null,null,null,null,null,0]
["Sch XXIII","Interest Rates",null,"Int. Up - After Shock - Other - Liab. w/o Mgmt Action - Australia Dollar",null,null,null,null,null,null,null,null,0]
["Sch XXIII","Interest Rates",null,"Int. Up - After Shock - Other - Liab. w/o Mgmt Action - New Zealand Dollar",null,null,null,null,null,null,null,null,0]
["Sch XXIII","Interest Rates",null,{"$f":"\"Int. Up - After Shock - Other - Liab. w/o Mgmt Action - \"&'Schedule XXIII'!$C$18","v":"Int. Up - After Shock - Other - Liab. w/o Mgmt Action - Other currency 1"},null,null,null,null,null,null,null,null,0]
["Sch XXIII","Interest Rates",null,{"$f":"\"Int. Up - After Shock - Other - Liab. w/o Mgmt Action - \"&'Schedule XXIII'!$C$19","v":"Int. Up - After Shock - Other - Liab. w/o Mgmt Action - Other currency 2"},null,null,null,null,null,null,null,null,0]
["Sch XXIII","Interest Rates",null,{"$f":"\"Int. Up - After Shock - Other - Liab. w/o Mgmt Action - \"&'Schedule XXIII'!$C$20","v":"Int. Up - After Shock - Other - Liab. w/o Mgmt Action - Other currency 3"},null,null,null,null,null,null,null,null,0]
["Sch XXIII","Interest Rates",null,{"$f":"\"Int. Up - After Shock - Other - Liab. w/o Mgmt Action - \"&'Schedule XXIII'!$C$21","v":"Int. Up - After Shock - Other - Liab. w/o Mgmt Action - Other currency 4"},null,null,null,null,null,null,null,null,0]
["Sch XXIII","Interest Rates",null,{"$f":"\"Int. Up - After Shock - Other - Liab. w/o Mgmt Action - \"&'Schedule XXIII'!$C$22","v":"Int. Up - After Shock - Other - Liab. w/o Mgmt Action - Other currency 5"},null,null,null,null,null,null,null,null,0]
["Sch XXIII","Interest Rates",null,{"$f":"\"Int. Up - After Shock - Other - Liab. w/o Mgmt Action - \"&'Schedule XXIII'!$C$23","v":"Int. Up - After Shock - Other - Liab. w/o Mgmt Action - Other currency 6"},null,null,null,null,null,null,null,null,0]
["Sch XXIII","Interest Rates",null,{"$f":"\"Int. Up - After Shock - Other - Liab. w/o Mgmt Action - \"&'Schedule XXIII'!$C$24","v":"Int. Up - After Shock - Other - Liab. w/o Mgmt Action - Other currency 7"},null,null,null,null,null,null,null,null,0]
["Sch XXIII","Interest Rates",null,{"$f":"\"Int. Up - After Shock - Other - Liab. w/o Mgmt Action - \"&'Schedule XXIII'!$C$25","v":"Int. Up - After Shock - Other - Liab. w/o Mgmt Action - Other currency 8"},null,null,null,null,null,null,null,null,0]
["Sch XXIII","Interest Rates",null,{"$f":"\"Int. Up - After Shock - Other - Liab. w/o Mgmt Action - \"&'Schedule XXIII'!$C$26","v":"Int. Up - After Shock - Other - Liab. w/o Mgmt Action - Other currency 9"},null,null,null,null,null,null,null,null,0]
["Sch XXIII","Interest Rates",null,{"$f":"\"Int. Up - After Shock - Other - Liab. w/o Mgmt Action - \"&'Schedule XXIII'!$C$27","v":"Int. Up - After Shock - Other - Liab. w/o Mgmt Action - Other currency 10"},null,null,null,null,null,null,null,null,0]
["Sch XXIII","Interest Rates",null,"Int. Up - After Shock - Other - Liab. w/o Mgmt Action - Total",null,null,null,null,null,null,null,null,0]
["Sch XXIII","Interest Rates",null,"Int. Up - After Shock - Other - Liab. with Mgmt Action - United States Dollars",null,null,null,null,null,null,null,null,0]
["Sch XXIII","Interest Rates",null,"Int. Up - After Shock - Other - Liab. with Mgmt Action - Euro",null,null,null,null,null,null,null,null,0]
["Sch XXIII","Interest Rates",null,"Int. Up - After Shock - Other - Liab. with Mgmt Action - United Kingdom Pounds",null,null,null,null,null,null,null,null,0]
["Sch XXIII","Interest Rates",null,"Int. Up - After Shock - Other - Liab. with Mgmt Action - Japan Yen",null,null,null,null,null,null,null,null,0]
["Sch XXIII","Interest Rates",null,"Int. Up - After Shock - Other - Liab. with Mgmt Action - Canada Dollars",null,null,null,null,null,null,null,null,0]
["Sch XXIII","Interest Rates",null,"Int. Up - After Shock - Other - Liab. with Mgmt Action - Swiss Francs",null,null,null,null,null,null,null,null,0]
["Sch XXIII","Interest Rates",null,"Int. Up - After Shock - Other - Liab. with Mgmt Action - Australia Dollar",null,null,null,null,null,null,null,null,0]
["Sch XXIII","Interest Rates",null,"Int. Up - After Shock - Other - Liab. with Mgmt Action - New Zealand Dollar",null,null,null,null,null,null,null,null,0]
["Sch XXIII","Interest Rates",null,{"$f":"\"Int. Up - After Shock - Other - Liab. with Mgmt Action - \"&'Schedule XXIII'!$C$18","v":"Int. Up - After Shock - Other - Liab. with Mgmt Action - Other currency 1"},null,null,null,null,null,null,null,null,0]
["Sch XXIII","Interest Rates",null,{"$f":"\"Int. Up - After Shock - Other - Liab. with Mgmt Action - \"&'Schedule XXIII'!$C$19","v":"Int. Up - After Shock - Other - Liab. with Mgmt Action - Other currency 2"},null,null,null,null,null,null,null,null,0]
["Sch XXIII","Interest Rates",null,{"$f":"\"Int. Up - After Shock - Other - Liab. with Mgmt Action - \"&'Schedule XXIII'!$C$20","v":"Int. Up - After Shock - Other - Liab. with Mgmt Action - Other currency 3"},null,null,null,null,null,null,null,null,0]
["Sch XXIII","Interest Rates",null,{"$f":"\"Int. Up - After Shock - Other - Liab. with Mgmt Action - \"&'Schedule XXIII'!$C$21","v":"Int. Up - After Shock - Other - Liab. with Mgmt Action - Other currency 4"},null,null,null,null,null,null,null,null,0]
["Sch XXIII","Interest Rates",null,{"$f":"\"Int. Up - After Shock - Other - Liab. with Mgmt Action - \"&'Schedule XXIII'!$C$22","v":"Int. Up - After Shock - Other - Liab. with Mgmt Action - Other currency 5"},null,null,null,null,null,null,null,null,0]
["Sch XXIII","Interest Rates",null,{"$f":"\"Int. Up - After Shock - Other - Liab. with Mgmt Action - \"&'Schedule XXIII'!$C$23","v":"Int. Up - After Shock - Other - Liab. with Mgmt Action - Other currency 6"},null,null,null,null,null,null,null,null,0]
["Sch XXIII","Interest Rates",null,{"$f":"\"Int. Up - After Shock - Other - Liab. with Mgmt Action - \"&'Schedule XXIII'!$C$24","v":"Int. Up - After Shock - Other - Liab. with Mgmt Action - Other currency 7"},null,null,null,null,null,null,null,null,0]
["Sch XXIII","Interest Rates",null,{"$f":"\"Int. Up - After Shock - Other - Liab. with Mgmt Action - \"&'Schedule XXIII'!$C$25","v":"Int. Up - After Shock - Other - Liab. with Mgmt Action - Other currency 8"},null,null,null,null,null,null,null,null,0]
["Sch XXIII","Interest Rates",null,{"$f":"\"Int. Up - After Shock - Other - Liab. with Mgmt Action - \"&'Schedule XXIII'!$C$26","v":"Int. Up - After Shock - Other - Liab. with Mgmt Action - Other currency 9"},null,null,null,null,null,null,null,null,0]
["Sch XXIII","Interest Rates",null,{"$f":"\"Int. Up - After Shock - Other - Liab. with Mgmt Action - \"&'Schedule XXIII'!$C$27","v":"Int. Up - After Shock - Other - Liab. with Mgmt Action - Other currency 10"},null,null,null,null,null,null,null,null,0]
["Sch XXIII","Interest Rates",null,"Int. Up - After Shock - Other - Liab. with Mgmt Action - Total",null,null,null,null,null,null,null,null,0]
["Sch XXIII","Interest Rates",null,"Int. Up - Before Shock - Derivatives - Qualifying Assets - United States Dollars",null,null,null,null,null,null,null,null,0]
["Sch XXIII","Interest Rates",null,"Int. Up - Before Shock - Derivatives - Qualifying Assets - Euro",null,null,null,null,null,null,null,null,0]
["Sch XXIII","Interest Rates",null,"Int. Up - Before Shock - Derivatives - Qualifying Assets - United Kingdom Pounds",null,null,null,null,null,null,null,null,0]
["Sch XXIII","Interest Rates",null,"Int. Up - Before Shock - Derivatives - Qualifying Assets - Japan Yen",null,null,null,null,null,null,null,null,0]
["Sch XXIII","Interest Rates",null,"Int. Up - Before Shock - Derivatives - Qualifying Assets - Canada Dollars",null,null,null,null,null,null,null,null,0]
["Sch XXIII","Interest Rates",null,"Int. Up - Before Shock - Derivatives - Qualifying Assets - Swiss Francs",null,null,null,null,null,null,null,null,0]
["Sch XXIII","Interest Rates",null,"Int. Up - Before Shock - Derivatives - Qualifying Assets - Australia Dollar",null,null,null,null,null,null,null,null,0]
["Sch XXIII","Interest Rates",null,"Int. Up - Before Shock - Derivatives - Qualifying Assets - New Zealand Dollar",null,null,null,null,null,null,null,null,0]
["Sch XXIII","Interest Rates",null,{"$f":"\"Int. Up - Before Shock - Derivatives - Qualifying Assets - \"&'Schedule XXIII'!$C$18","v":"Int. Up - Before Shock - Derivatives - Qualifying Assets - Other currency 1"},null,null,null,null,null,null,null,null,0]
["Sch XXIII","Interest Rates",null,{"$f":"\"Int. Up - Before Shock - Derivatives - Qualifying Assets - \"&'Schedule XXIII'!$C$19","v":"Int. Up - Before Shock - Derivatives - Qualifying Assets - Other currency 2"},null,null,null,null,null,null,null,null,0]
["Sch XXIII","Interest Rates",null,{"$f":"\"Int. Up - Before Shock - Derivatives - Qualifying Assets - \"&'Schedule XXIII'!$C$20","v":"Int. Up - Before Shock - Derivatives - Qualifying Assets - Other currency 3"},null,null,null,null,null,null,null,null,0]
["Sch XXIII","Interest Rates",null,{"$f":"\"Int. Up - Before Shock - Derivatives - Qualifying Assets - \"&'Schedule XXIII'!$C$21","v":"Int. Up - Before Shock - Derivatives - Qualifying Assets - Other currency 4"},null,null,null,null,null,null,null,null,0]
["Sch XXIII","Interest Rates",null,{"$f":"\"Int. Up - Before Shock - Derivatives - Qualifying Assets - \"&'Schedule XXIII'!$C$22","v":"Int. Up - Before Shock - Derivatives - Qualifying Assets - Other currency 5"},null,null,null,null,null,null,null,null,0]
["Sch XXIII","Interest Rates",null,{"$f":"\"Int. Up - Before Shock - Derivatives - Qualifying Assets - \"&'Schedule XXIII'!$C$23","v":"Int. Up - Before Shock - Derivatives - Qualifying Assets - Other currency 6"},null,null,null,null,null,null,null,null,0]
["Sch XXIII","Interest Rates",null,{"$f":"\"Int. Up - Before Shock - Derivatives - Qualifying Assets - \"&'Schedule XXIII'!$C$24","v":"Int. Up - Before Shock - Derivatives - Qualifying Assets - Other currency 7"},null,null,null,null,null,null,null,null,0]
["Sch XXIII","Interest Rates",null,{"$f":"\"Int. Up - Before Shock - Derivatives - Qualifying Assets - \"&'Schedule XXIII'!$C$25","v":"Int. Up - Before Shock - Derivatives - Qualifying Assets - Other currency 8"},null,null,null,null,null,null,null,null,0]
["Sch XXIII","Interest Rates",null,{"$f":"\"Int. Up - Before Shock - Derivatives - Qualifying Assets - \"&'Schedule XXIII'!$C$26","v":"Int. Up - Before Shock - Derivatives - Qualifying Assets - Other currency 9"},null,null,null,null,null,null,null,null,0]
["Sch XXIII","Interest Rates",null,{"$f":"\"Int. Up - Before Shock - Derivatives - Qualifying Assets - \"&'Schedule XXIII'!$C$27","v":"Int. Up - Before Shock - Derivatives - Qualifying Assets - Other currency 10"},null,null,null,null,null,null,null,null,0]
["Sch XXIII","Interest Rates",null,"Int. Up - Before Shock - Derivatives - Qualifying Assets - Total",null,null,null,null,null,null,null,null,0]
["Sch XXIII","Interest Rates",null,"Int. Up - After Shock - Derivatives - Qualifying Assets - United States Dollars",null,null,null,null,null,null,null,null,0]
["Sch XXIII","Interest Rates",null,"Int. Up - After Shock - Derivatives - Qualifying Assets - Euro",null,null,null,null,null,null,null,null,0]
["Sch XXIII","Interest Rates",null,"Int. Up - After Shock - Derivatives - Qualifying Assets - United Kingdom Pounds",null,null,null,null,null,null,null,null,0]
["Sch XXIII","Interest Rates",null,"Int. Up - After Shock - Derivatives - Qualifying Assets - Japan Yen",null,null,null,null,null,null,null,null,0]
["Sch XXIII","Interest Rates",null,"Int. Up - After Shock - Derivatives - Qualifying Assets - Canada Dollars",null,null,null,null,null,null,null,null,0]
["Sch XXIII","Interest Rates",null,"Int. Up - After Shock - Derivatives - Qualifying Assets - Swiss Francs",null,null,null,null,null,null,null,null,0]
["Sch XXIII","Interest Rates",null,"Int. Up - After Shock - Derivatives - Qualifying Assets - Australia Dollar",null,null,null,null,null,null,null,null,0]
["Sch XXIII","Interest Rates",null,"Int. Up - After Shock - Derivatives - Qualifying Assets - New Zealand Dollar",null,null,null,null,null,null,null,null,0]
["Sch XXIII","Interest Rates",null,{"$f":"\"Int. Up - After Shock - Derivatives - Qualifying Assets - \"&'Schedule XXIII'!$C$18","v":"Int. Up - After Shock - Derivatives - Qualifying Assets - Other currency 1"},null,null,null,null,null,null,null,null,0]
["Sch XXIII","Interest Rates",null,{"$f":"\"Int. Up - After Shock - Derivatives - Qualifying Assets - \"&'Schedule XXIII'!$C$19","v":"Int. Up - After Shock - Derivatives - Qualifying Assets - Other currency 2"},null,null,null,null,null,null,null,null,0]
["Sch XXIII","Interest Rates",null,{"$f":"\"Int. Up - After Shock - Derivatives - Qualifying Assets - \"&'Schedule XXIII'!$C$20","v":"Int. Up - After Shock - Derivatives - Qualifying Assets - Other currency 3"},null,null,null,null,null,null,null,null,0]
["Sch XXIII","Interest Rates",null,{"$f":"\"Int. Up - After Shock - Derivatives - Qualifying Assets - \"&'Schedule XXIII'!$C$21","v":"Int. Up - After Shock - Derivatives - Qualifying Assets - Other currency 4"},null,null,null,null,null,null,null,null,0]
["Sch XXIII","Interest Rates",null,{"$f":"\"Int. Up - After Shock - Derivatives - Qualifying Assets - \"&'Schedule XXIII'!$C$22","v":"Int. Up - After Shock - Derivatives - Qualifying Assets - Other currency 5"},null,null,null,null,null,null,null,null,0]
["Sch XXIII","Interest Rates",null,{"$f":"\"Int. Up - After Shock - Derivatives - Qualifying Assets - \"&'Schedule XXIII'!$C$23","v":"Int. Up - After Shock - Derivatives - Qualifying Assets - Other currency 6"},null,null,null,null,null,null,null,null,0]
["Sch XXIII","Interest Rates",null,{"$f":"\"Int. Up - After Shock - Derivatives - Qualifying Assets - \"&'Schedule XXIII'!$C$24","v":"Int. Up - After Shock - Derivatives - Qualifying Assets - Other currency 7"},null,null,null,null,null,null,null,null,0]
["Sch XXIII","Interest Rates",null,{"$f":"\"Int. Up - After Shock - Derivatives - Qualifying Assets - \"&'Schedule XXIII'!$C$25","v":"Int. Up - After Shock - Derivatives - Qualifying Assets - Other currency 8"},null,null,null,null,null,null,null,null,0]
["Sch XXIII","Interest Rates",null,{"$f":"\"Int. Up - After Shock - Derivatives - Qualifying Assets - \"&'Schedule XXIII'!$C$26","v":"Int. Up - After Shock - Derivatives - Qualifying Assets - Other currency 9"},null,null,null,null,null,null,null,null,0]
["Sch XXIII","Interest Rates",null,{"$f":"\"Int. Up - After Shock - Derivatives - Qualifying Assets - \"&'Schedule XXIII'!$C$27","v":"Int. Up - After Shock - Derivatives - Qualifying Assets - Other currency 10"},null,null,null,null,null,null,null,null,0]
["Sch XXIII","Interest Rates",null,"Int. Up - After Shock - Derivatives - Qualifying Assets - Total",null,null,null,null,null,null,null,null,0]
["Sch XXIII","Interest Rates",null,"Int. Up - Before Shock - Derivatives - Not Qualifying Assets - United States Dollars",null,null,null,null,null,null,null,null,0]
["Sch XXIII","Interest Rates",null,"Int. Up - Before Shock - Derivatives - Not Qualifying Assets - Euro",null,null,null,null,null,null,null,null,0]
["Sch XXIII","Interest Rates",null,"Int. Up - Before Shock - Derivatives - Not Qualifying Assets - United Kingdom Pounds",null,null,null,null,null,null,null,null,0]
["Sch XXIII","Interest Rates",null,"Int. Up - Before Shock - Derivatives - Not Qualifying Assets - Japan Yen",null,null,null,null,null,null,null,null,0]
["Sch XXIII","Interest Rates",null,"Int. Up - Before Shock - Derivatives - Not Qualifying Assets - Canada Dollars",null,null,null,null,null,null,null,null,0]
["Sch XXIII","Interest Rates",null,"Int. Up - Before Shock - Derivatives - Not Qualifying Assets - Swiss Francs",null,null,null,null,null,null,null,null,0]
["Sch XXIII","Interest Rates",null,"Int. Up - Before Shock - Derivatives - Not Qualifying Assets - Australia Dollar",null,null,null,null,null,null,null,null,0]
["Sch XXIII","Interest Rates",null,"Int. Up - Before Shock - Derivatives - Not Qualifying Assets - New Zealand Dollar",null,null,null,null,null,null,null,null,0]
["Sch XXIII","Interest Rates",null,{"$f":"\"Int. Up - Before Shock - Derivatives - Not Qualifying Assets - \"&'Schedule XXIII'!$C$18","v":"Int. Up - Before Shock - Derivatives - Not Qualifying Assets - Other currency 1"},null,null,null,null,null,null,null,null,0]
["Sch XXIII","Interest Rates",null,{"$f":"\"Int. Up - Before Shock - Derivatives - Not Qualifying Assets - \"&'Schedule XXIII'!$C$19","v":"Int. Up - Before Shock - Derivatives - Not Qualifying Assets - Other currency 2"},null,null,null,null,null,null,null,null,0]
["Sch XXIII","Interest Rates",null,{"$f":"\"Int. Up - Before Shock - Derivatives - Not Qualifying Assets - \"&'Schedule XXIII'!$C$20","v":"Int. Up - Before Shock - Derivatives - Not Qualifying Assets - Other currency 3"},null,null,null,null,null,null,null,null,0]
["Sch XXIII","Interest Rates",null,{"$f":"\"Int. Up - Before Shock - Derivatives - Not Qualifying Assets - \"&'Schedule XXIII'!$C$21","v":"Int. Up - Before Shock - Derivatives - Not Qualifying Assets - Other currency 4"},null,null,null,null,null,null,null,null,0]
["Sch XXIII","Interest Rates",null,{"$f":"\"Int. Up - Before Shock - Derivatives - Not Qualifying Assets - \"&'Schedule XXIII'!$C$22","v":"Int. Up - Before Shock - Derivatives - Not Qualifying Assets - Other currency 5"},null,null,null,null,null,null,null,null,0]
["Sch XXIII","Interest Rates",null,{"$f":"\"Int. Up - Before Shock - Derivatives - Not Qualifying Assets - \"&'Schedule XXIII'!$C$23","v":"Int. Up - Before Shock - Derivatives - Not Qualifying Assets - Other currency 6"},null,null,null,null,null,null,null,null,0]
["Sch XXIII","Interest Rates",null,{"$f":"\"Int. Up - Before Shock - Derivatives - Not Qualifying Assets - \"&'Schedule XXIII'!$C$24","v":"Int. Up - Before Shock - Derivatives - Not Qualifying Assets - Other currency 7"},null,null,null,null,null,null,null,null,0]
["Sch XXIII","Interest Rates",null,{"$f":"\"Int. Up - Before Shock - Derivatives - Not Qualifying Assets - \"&'Schedule XXIII'!$C$25","v":"Int. Up - Before Shock - Derivatives - Not Qualifying Assets - Other currency 8"},null,null,null,null,null,null,null,null,0]
["Sch XXIII","Interest Rates",null,{"$f":"\"Int. Up - Before Shock - Derivatives - Not Qualifying Assets - \"&'Schedule XXIII'!$C$26","v":"Int. Up - Before Shock - Derivatives - Not Qualifying Assets - Other currency 9"},null,null,null,null,null,null,null,null,0]
["Sch XXIII","Interest Rates",null,{"$f":"\"Int. Up - Before Shock - Derivatives - Not Qualifying Assets - \"&'Schedule XXIII'!$C$27","v":"Int. Up - Before Shock - Derivatives - Not Qualifying Assets - Other currency 10"},null,null,null,null,null,null,null,null,0]
["Sch XXIII","Interest Rates",null,"Int. Up - Before Shock - Derivatives - Not Qualifying Assets - Total",null,null,null,null,null,null,null,null,0]
["Sch XXIII","Interest Rates",null,"Int. Up - After Shock - Derivatives - Not Qualifying Assets - United States Dollars",null,null,null,null,null,null,null,null,0]
["Sch XXIII","Interest Rates",null,"Int. Up - After Shock - Derivatives - Not Qualifying Assets - Euro",null,null,null,null,null,null,null,null,0]
["Sch XXIII","Interest Rates",null,"Int. Up - After Shock - Derivatives - Not Qualifying Assets - United Kingdom Pounds",null,null,null,null,null,null,null,null,0]
["Sch XXIII","Interest Rates",null,"Int. Up - After Shock - Derivatives - Not Qualifying Assets - Japan Yen",null,null,null,null,null,null,null,null,0]
["Sch XXIII","Interest Rates",null,"Int. Up - After Shock - Derivatives - Not Qualifying Assets - Canada Dollars",null,null,null,null,null,null,null,null,0]
["Sch XXIII","Interest Rates",null,"Int. Up - After Shock - Derivatives - Not Qualifying Assets - Swiss Francs",null,null,null,null,null,null,null,null,0]
["Sch XXIII","Interest Rates",null,"Int. Up - After Shock - Derivatives - Not Qualifying Assets - Australia Dollar",null,null,null,null,null,null,null,null,0]
["Sch XXIII","Interest Rates",null,"Int. Up - After Shock - Derivatives - Not Qualifying Assets - New Zealand Dollar",null,null,null,null,null,null,null,null,0]
["Sch XXIII","Interest Rates",null,{"$f":"\"Int. Up - After Shock - Derivatives - Not Qualifying Assets - \"&'Schedule XXIII'!$C$18","v":"Int. Up - After Shock - Derivatives - Not Qualifying Assets - Other currency 1"},null,null,null,null,null,null,null,null,0]
["Sch XXIII","Interest Rates",null,{"$f":"\"Int. Up - After Shock - Derivatives - Not Qualifying Assets - \"&'Schedule XXIII'!$C$19","v":"Int. Up - After Shock - Derivatives - Not Qualifying Assets - Other currency 2"},null,null,null,null,null,null,null,null,0]
["Sch XXIII","Interest Rates",null,{"$f":"\"Int. Up - After Shock - Derivatives - Not Qualifying Assets - \"&'Schedule XXIII'!$C$20","v":"Int. Up - After Shock - Derivatives - Not Qualifying Assets - Other currency 3"},null,null,null,null,null,null,null,null,0]
["Sch XXIII","Interest Rates",null,{"$f":"\"Int. Up - After Shock - Derivatives - Not Qualifying Assets - \"&'Schedule XXIII'!$C$21","v":"Int. Up - After Shock - Derivatives - Not Qualifying Assets - Other currency 4"},null,null,null,null,null,null,null,null,0]
["Sch XXIII","Interest Rates",null,{"$f":"\"Int. Up - After Shock - Derivatives - Not Qualifying Assets - \"&'Schedule XXIII'!$C$22","v":"Int. Up - After Shock - Derivatives - Not Qualifying Assets - Other currency 5"},null,null,null,null,null,null,null,null,0]
["Sch XXIII","Interest Rates",null,{"$f":"\"Int. Up - After Shock - Derivatives - Not Qualifying Assets - \"&'Schedule XXIII'!$C$23","v":"Int. Up - After Shock - Derivatives - Not Qualifying Assets - Other currency 6"},null,null,null,null,null,null,null,null,0]
["Sch XXIII","Interest Rates",null,{"$f":"\"Int. Up - After Shock - Derivatives - Not Qualifying Assets - \"&'Schedule XXIII'!$C$24","v":"Int. Up - After Shock - Derivatives - Not Qualifying Assets - Other currency 7"},null,null,null,null,null,null,null,null,0]
["Sch XXIII","Interest Rates",null,{"$f":"\"Int. Up - After Shock - Derivatives - Not Qualifying Assets - \"&'Schedule XXIII'!$C$25","v":"Int. Up - After Shock - Derivatives - Not Qualifying Assets - Other currency 8"},null,null,null,null,null,null,null,null,0]
["Sch XXIII","Interest Rates",null,{"$f":"\"Int. Up - After Shock - Derivatives - Not Qualifying Assets - \"&'Schedule XXIII'!$C$26","v":"Int. Up - After Shock - Derivatives - Not Qualifying Assets - Other currency 9"},null,null,null,null,null,null,null,null,0]
["Sch XXIII","Interest Rates",null,{"$f":"\"Int. Up - After Shock - Derivatives - Not Qualifying Assets - \"&'Schedule XXIII'!$C$27","v":"Int. Up - After Shock - Derivatives - Not Qualifying Assets - Other currency 10"},null,null,null,null,null,null,null,null,0]
["Sch XXIII","Interest Rates",null,"Int. Up - After Shock - Derivatives - Not Qualifying Assets - Total",null,null,null,null,null,null,null,null,0]
["Sch XXIII","Interest Rates",null,"Int. Up - Before Shock - Derivatives - Liab. w/o Mgmt Action - United States Dollars",null,null,null,null,null,null,null,null,0]
["Sch XXIII","Interest Rates",null,"Int. Up - Before Shock - Derivatives - Liab. w/o Mgmt Action - Euro",null,null,null,null,null,null,null,null,0]
["Sch XXIII","Interest Rates",null,"Int. Up - Before Shock - Derivatives - Liab. w/o Mgmt Action - United Kingdom Pounds",null,null,null,null,null,null,null,null,0]
["Sch XXIII","Interest Rates",null,"Int. Up - Before Shock - Derivatives - Liab. w/o Mgmt Action - Japan Yen",null,null,null,null,null,null,null,null,0]
["Sch XXIII","Interest Rates",null,"Int. Up - Before Shock - Derivatives - Liab. w/o Mgmt Action - Canada Dollars",null,null,null,null,null,null,null,null,0]
["Sch XXIII","Interest Rates",null,"Int. Up - Before Shock - Derivatives - Liab. w/o Mgmt Action - Swiss Francs",null,null,null,null,null,null,null,null,0]
["Sch XXIII","Interest Rates",null,"Int. Up - Before Shock - Derivatives - Liab. w/o Mgmt Action - Australia Dollar",null,null,null,null,null,null,null,null,0]
["Sch XXIII","Interest Rates",null,"Int. Up - Before Shock - Derivatives - Liab. w/o Mgmt Action - New Zealand Dollar",null,null,null,null,null,null,null,null,0]
["Sch XXIII","Interest Rates",null,{"$f":"\"Int. Up - Before Shock - Derivatives - Liab. w/o Mgmt Action - \"&'Schedule XXIII'!$C$18","v":"Int. Up - Before Shock - Derivatives - Liab. w/o Mgmt Action - Other currency 1"},null,null,null,null,null,null,null,null,0]
["Sch XXIII","Interest Rates",null,{"$f":"\"Int. Up - Before Shock - Derivatives - Liab. w/o Mgmt Action - \"&'Schedule XXIII'!$C$19","v":"Int. Up - Before Shock - Derivatives - Liab. w/o Mgmt Action - Other currency 2"},null,null,null,null,null,null,null,null,0]
["Sch XXIII","Interest Rates",null,{"$f":"\"Int. Up - Before Shock - Derivatives - Liab. w/o Mgmt Action - \"&'Schedule XXIII'!$C$20","v":"Int. Up - Before Shock - Derivatives - Liab. w/o Mgmt Action - Other currency 3"},null,null,null,null,null,null,null,null,0]
["Sch XXIII","Interest Rates",null,{"$f":"\"Int. Up - Before Shock - Derivatives - Liab. w/o Mgmt Action - \"&'Schedule XXIII'!$C$21","v":"Int. Up - Before Shock - Derivatives - Liab. w/o Mgmt Action - Other currency 4"},null,null,null,null,null,null,null,null,0]
["Sch XXIII","Interest Rates",null,{"$f":"\"Int. Up - Before Shock - Derivatives - Liab. w/o Mgmt Action - \"&'Schedule XXIII'!$C$22","v":"Int. Up - Before Shock - Derivatives - Liab. w/o Mgmt Action - Other currency 5"},null,null,null,null,null,null,null,null,0]
["Sch XXIII","Interest Rates",null,{"$f":"\"Int. Up - Before Shock - Derivatives - Liab. w/o Mgmt Action - \"&'Schedule XXIII'!$C$23","v":"Int. Up - Before Shock - Derivatives - Liab. w/o Mgmt Action - Other currency 6"},null,null,null,null,null,null,null,null,0]
["Sch XXIII","Interest Rates",null,{"$f":"\"Int. Up - Before Shock - Derivatives - Liab. w/o Mgmt Action - \"&'Schedule XXIII'!$C$24","v":"Int. Up - Before Shock - Derivatives - Liab. w/o Mgmt Action - Other currency 7"},null,null,null,null,null,null,null,null,0]
["Sch XXIII","Interest Rates",null,{"$f":"\"Int. Up - Before Shock - Derivatives - Liab. w/o Mgmt Action - \"&'Schedule XXIII'!$C$25","v":"Int. Up - Before Shock - Derivatives - Liab. w/o Mgmt Action - Other currency 8"},null,null,null,null,null,null,null,null,0]
["Sch XXIII","Interest Rates",null,{"$f":"\"Int. Up - Before Shock - Derivatives - Liab. w/o Mgmt Action - \"&'Schedule XXIII'!$C$26","v":"Int. Up - Before Shock - Derivatives - Liab. w/o Mgmt Action - Other currency 9"},null,null,null,null,null,null,null,null,0]
["Sch XXIII","Interest Rates",null,{"$f":"\"Int. Up - Before Shock - Derivatives - Liab. w/o Mgmt Action - \"&'Schedule XXIII'!$C$27","v":"Int. Up - Before Shock - Derivatives - Liab. w/o Mgmt Action - Other currency 10"},null,null,null,null,null,null,null,null,0]
["Sch XXIII","Interest Rates",null,"Int. Up - Before Shock - Derivatives - Liab. w/o Mgmt Action - Total",null,null,null,null,null,null,null,null,0]
["Sch XXIII","Interest Rates",null,"Int. Up - After Shock - Derivatives - Liab. w/o Mgmt Action - United States Dollars",null,null,null,null,null,null,null,null,0]
["Sch XXIII","Interest Rates",null,"Int. Up - After Shock - Derivatives - Liab. w/o Mgmt Action - Euro",null,null,null,null,null,null,null,null,0]
["Sch XXIII","Interest Rates",null,"Int. Up - After Shock - Derivatives - Liab. w/o Mgmt Action - United Kingdom Pounds",null,null,null,null,null,null,null,null,0]
["Sch XXIII","Interest Rates",null,"Int. Up - After Shock - Derivatives - Liab. w/o Mgmt Action - Japan Yen",null,null,null,null,null,null,null,null,0]
["Sch XXIII","Interest Rates",null,"Int. Up - After Shock - Derivatives - Liab. w/o Mgmt Action - Canada Dollars",null,null,null,null,null,null,null,null,0]
["Sch XXIII","Interest Rates",null,"Int. Up - After Shock - Derivatives - Liab. w/o Mgmt Action - Swiss Francs",null,null,null,null,null,null,null,null,0]
["Sch XXIII","Interest Rates",null,"Int. Up - After Shock - Derivatives - Liab. w/o Mgmt Action - Australia Dollar",null,null,null,null,null,null,null,null,0]
["Sch XXIII","Interest Rates",null,"Int. Up - After Shock - Derivatives - Liab. w/o Mgmt Action - New Zealand Dollar",null,null,null,null,null,null,null,null,0]
["Sch XXIII","Interest Rates",null,{"$f":"\"Int. Up - After Shock - Derivatives - Liab. w/o Mgmt Action - \"&'Schedule XXIII'!$C$18","v":"Int. Up - After Shock - Derivatives - Liab. w/o Mgmt Action - Other currency 1"},null,null,null,null,null,null,null,null,0]
["Sch XXIII","Interest Rates",null,{"$f":"\"Int. Up - After Shock - Derivatives - Liab. w/o Mgmt Action - \"&'Schedule XXIII'!$C$19","v":"Int. Up - After Shock - Derivatives - Liab. w/o Mgmt Action - Other currency 2"},null,null,null,null,null,null,null,null,0]
["Sch XXIII","Interest Rates",null,{"$f":"\"Int. Up - After Shock - Derivatives - Liab. w/o Mgmt Action - \"&'Schedule XXIII'!$C$20","v":"Int. Up - After Shock - Derivatives - Liab. w/o Mgmt Action - Other currency 3"},null,null,null,null,null,null,null,null,0]
["Sch XXIII","Interest Rates",null,{"$f":"\"Int. Up - After Shock - Derivatives - Liab. w/o Mgmt Action - \"&'Schedule XXIII'!$C$21","v":"Int. Up - After Shock - Derivatives - Liab. w/o Mgmt Action - Other currency 4"},null,null,null,null,null,null,null,null,0]
["Sch XXIII","Interest Rates",null,{"$f":"\"Int. Up - After Shock - Derivatives - Liab. w/o Mgmt Action - \"&'Schedule XXIII'!$C$22","v":"Int. Up - After Shock - Derivatives - Liab. w/o Mgmt Action - Other currency 5"},null,null,null,null,null,null,null,null,0]
["Sch XXIII","Interest Rates",null,{"$f":"\"Int. Up - After Shock - Derivatives - Liab. w/o Mgmt Action - \"&'Schedule XXIII'!$C$23","v":"Int. Up - After Shock - Derivatives - Liab. w/o Mgmt Action - Other currency 6"},null,null,null,null,null,null,null,null,0]
["Sch XXIII","Interest Rates",null,{"$f":"\"Int. Up - After Shock - Derivatives - Liab. w/o Mgmt Action - \"&'Schedule XXIII'!$C$24","v":"Int. Up - After Shock - Derivatives - Liab. w/o Mgmt Action - Other currency 7"},null,null,null,null,null,null,null,null,0]
["Sch XXIII","Interest Rates",null,{"$f":"\"Int. Up - After Shock - Derivatives - Liab. w/o Mgmt Action - \"&'Schedule XXIII'!$C$25","v":"Int. Up - After Shock - Derivatives - Liab. w/o Mgmt Action - Other currency 8"},null,null,null,null,null,null,null,null,0]
["Sch XXIII","Interest Rates",null,{"$f":"\"Int. Up - After Shock - Derivatives - Liab. w/o Mgmt Action - \"&'Schedule XXIII'!$C$26","v":"Int. Up - After Shock - Derivatives - Liab. w/o Mgmt Action - Other currency 9"},null,null,null,null,null,null,null,null,0]
["Sch XXIII","Interest Rates",null,{"$f":"\"Int. Up - After Shock - Derivatives - Liab. w/o Mgmt Action - \"&'Schedule XXIII'!$C$27","v":"Int. Up - After Shock - Derivatives - Liab. w/o Mgmt Action - Other currency 10"},null,null,null,null,null,null,null,null,0]
["Sch XXIII","Interest Rates",null,"Int. Up - After Shock - Derivatives - Liab. w/o Mgmt Action - Total",null,null,null,null,null,null,null,null,0]
["Sch XXIII","Interest Rates",null,"Int. Up - After Shock - Derivatives - Liab. with Mgmt Action - United States Dollars",null,null,null,null,null,null,null,null,0]
["Sch XXIII","Interest Rates",null,"Int. Up - After Shock - Derivatives - Liab. with Mgmt Action - Euro",null,null,null,null,null,null,null,null,0]
["Sch XXIII","Interest Rates",null,"Int. Up - After Shock - Derivatives - Liab. with Mgmt Action - United Kingdom Pounds",null,null,null,null,null,null,null,null,0]
["Sch XXIII","Interest Rates",null,"Int. Up - After Shock - Derivatives - Liab. with Mgmt Action - Japan Yen",null,null,null,null,null,null,null,null,0]
["Sch XXIII","Interest Rates",null,"Int. Up - After Shock - Derivatives - Liab. with Mgmt Action - Canada Dollars",null,null,null,null,null,null,null,null,0]
["Sch XXIII","Interest Rates",null,"Int. Up - After Shock - Derivatives - Liab. with Mgmt Action - Swiss Francs",null,null,null,null,null,null,null,null,0]
["Sch XXIII","Interest Rates",null,"Int. Up - After Shock - Derivatives - Liab. with Mgmt Action - Australia Dollar",null,null,null,null,null,null,null,null,0]
["Sch XXIII","Interest Rates",null,"Int. Up - After Shock - Derivatives - Liab. with Mgmt Action - New Zealand Dollar",null,null,null,null,null,null,null,null,0]
["Sch XXIII","Interest Rates",null,{"$f":"\"Int. Up - After Shock - Derivatives - Liab. with Mgmt Action - \"&'Schedule XXIII'!$C$18","v":"Int. Up - After Shock - Derivatives - Liab. with Mgmt Action - Other currency 1"},null,null,null,null,null,null,null,null,0]
["Sch XXIII","Interest Rates",null,{"$f":"\"Int. Up - After Shock - Derivatives - Liab. with Mgmt Action - \"&'Schedule XXIII'!$C$19","v":"Int. Up - After Shock - Derivatives - Liab. with Mgmt Action - Other currency 2"},null,null,null,null,null,null,null,null,0]
["Sch XXIII","Interest Rates",null,{"$f":"\"Int. Up - After Shock - Derivatives - Liab. with Mgmt Action - \"&'Schedule XXIII'!$C$20","v":"Int. Up - After Shock - Derivatives - Liab. with Mgmt Action - Other currency 3"},null,null,null,null,null,null,null,null,0]
["Sch XXIII","Interest Rates",null,{"$f":"\"Int. Up - After Shock - Derivatives - Liab. with Mgmt Action - \"&'Schedule XXIII'!$C$21","v":"Int. Up - After Shock - Derivatives - Liab. with Mgmt Action - Other currency 4"},null,null,null,null,null,null,null,null,0]
["Sch XXIII","Interest Rates",null,{"$f":"\"Int. Up - After Shock - Derivatives - Liab. with Mgmt Action - \"&'Schedule XXIII'!$C$22","v":"Int. Up - After Shock - Derivatives - Liab. with Mgmt Action - Other currency 5"},null,null,null,null,null,null,null,null,0]
["Sch XXIII","Interest Rates",null,{"$f":"\"Int. Up - After Shock - Derivatives - Liab. with Mgmt Action - \"&'Schedule XXIII'!$C$23","v":"Int. Up - After Shock - Derivatives - Liab. with Mgmt Action - Other currency 6"},null,null,null,null,null,null,null,null,0]
["Sch XXIII","Interest Rates",null,{"$f":"\"Int. Up - After Shock - Derivatives - Liab. with Mgmt Action - \"&'Schedule XXIII'!$C$24","v":"Int. Up - After Shock - Derivatives - Liab. with Mgmt Action - Other currency 7"},null,null,null,null,null,null,null,null,0]
["Sch XXIII","Interest Rates",null,{"$f":"\"Int. Up - After Shock - Derivatives - Liab. with Mgmt Action - \"&'Schedule XXIII'!$C$25","v":"Int. Up - After Shock - Derivatives - Liab. with Mgmt Action - Other currency 8"},null,null,null,null,null,null,null,null,0]
["Sch XXIII","Interest Rates",null,{"$f":"\"Int. Up - After Shock - Derivatives - Liab. with Mgmt Action - \"&'Schedule XXIII'!$C$26","v":"Int. Up - After Shock - Derivatives - Liab. with Mgmt Action - Other currency 9"},null,null,null,null,null,null,null,null,0]
["Sch XXIII","Interest Rates",null,{"$f":"\"Int. Up - After Shock - Derivatives - Liab. with Mgmt Action - \"&'Schedule XXIII'!$C$27","v":"Int. Up - After Shock - Derivatives - Liab. with Mgmt Action - Other currency 10"},null,null,null,null,null,null,null,null,0]
["Sch XXIII","Interest Rates",null,"Int. Up - After Shock - Derivatives - Liab. with Mgmt Action - Total",null,null,null,null,null,null,null,null,0]
[]
["Equity Grandfather","Equity Grandfather",null,"Long Positions - Before - Strategic Holdings - Listed",null,null,null,null,null,null,null,null,0]
["Equity Grandfather","Equity Grandfather",null,"Long Positions - Before - Duration Based",null,null,null,null,null,null,null,null,0]
["Equity Grandfather","Equity Grandfather",null,"Long Positions - Before - Listed Equity Securities in Developed Markets",null,null,null,null,null,null,null,null,0]
["Equity Grandfather","Equity Grandfather",null,"Long Positions - Before - Preferred Stocks, BSCR Rating 1",null,null,null,null,null,null,null,null,0]
["Equity Grandfather","Equity Grandfather",null,"Long Positions - Before - Preferred Stocks, BSCR Rating 2",null,null,null,null,null,null,null,null,0]
["Equity Grandfather","Equity Grandfather",null,"Long Positions - Before - Preferred Stocks, BSCR Rating 3",null,null,null,null,null,null,null,null,0]
["Equity Grandfather","Equity Grandfather",null,"Long Positions - Before - Preferred Stocks, BSCR Rating 4",null,null,null,null,null,null,null,null,0]
["Equity Grandfather","Equity Grandfather",null,"Long Positions - Before - Preferred Stocks, BSCR Rating 5",null,null,null,null,null,null,null,null,0]
["Equity Grandfather","Equity Grandfather",null,"Long Positions - Before - Preferred Stocks, BSCR Rating 6",null,null,null,null,null,null,null,null,0]
["Equity Grandfather","Equity Grandfather",null,"Long Positions - Before - Preferred Stocks, BSCR Rating 7",null,null,null,null,null,null,null,null,0]
["Equity Grandfather","Equity Grandfather",null,"Long Positions - Before - Preferred Stocks, BSCR Rating 8",null,null,null,null,null,null,null,null,0]
["Equity Grandfather","Equity Grandfather",null,"Long Positions - Before - Equity Derivatives on Type 1 Equities",null,null,null,null,null,null,null,null,0]
["Equity Grandfather","Equity Grandfather",null,"Long Positions - Before - Strategic Holdings - Unlisted",null,null,null,null,null,null,null,null,0]
["Equity Grandfather","Equity Grandfather",null,"Long Positions - Before - Other Equities",null,null,null,null,null,null,null,null,0]
["Equity Grandfather","Equity Grandfather",null,"Long Positions - Before - Letters of Credit",null,null,null,null,null,null,null,null,0]
["Equity Grandfather","Equity Grandfather",null,"Long Positions - Before - Intangible assets",null,null,null,null,null,null,null,null,0]
["Equity Grandfather","Equity Grandfather",null,"Long Positions - Before - Pension Benefit Surplus",null,null,null,null,null,null,null,null,0]
["Equity Grandfather","Equity Grandfather",null,"Long Positions - Before - Equity Derivatives on Type 2 Equities",null,null,null,null,null,null,null,null,0]
["Equity Grandfather","Equity Grandfather",null,"Long Positions - Before - Infrastructure",null,null,null,null,null,null,null,null,0]
["Equity Grandfather","Equity Grandfather",null,"Long Positions - Before - Derivatives on Infrastructure",null,null,null,null,null,null,null,null,0]
["Equity Grandfather","Equity Grandfather",null,"Long Positions - Before - Equity Real Estate 1",null,null,null,null,null,null,null,null,0]
["Equity Grandfather","Equity Grandfather",null,"Long Positions - Before - Equity Real Estate 2",null,null,null,null,null,null,null,null,0]
["Equity Grandfather","Equity Grandfather",null,"Long Positions - After - Strategic Holdings - Listed",null,null,null,null,null,null,null,null,0]
["Equity Grandfather","Equity Grandfather",null,"Long Positions - After - Duration Based",null,null,null,null,null,null,null,null,0]
["Equity Grandfather","Equity Grandfather",null,"Long Positions - After - Listed Equity Securities in Developed Markets",null,null,null,null,null,null,null,null,0]
["Equity Grandfather","Equity Grandfather",null,"Long Positions - After - Preferred Stocks, BSCR Rating 1",null,null,null,null,null,null,null,null,0]
["Equity Grandfather","Equity Grandfather",null,"Long Positions - After - Preferred Stocks, BSCR Rating 2",null,null,null,null,null,null,null,null,0]
["Equity Grandfather","Equity Grandfather",null,"Long Positions - After - Preferred Stocks, BSCR Rating 3",null,null,null,null,null,null,null,null,0]
["Equity Grandfather","Equity Grandfather",null,"Long Positions - After - Preferred Stocks, BSCR Rating 4",null,null,null,null,null,null,null,null,0]
["Equity Grandfather","Equity Grandfather",null,"Long Positions - After - Preferred Stocks, BSCR Rating 5",null,null,null,null,null,null,null,null,0]
["Equity Grandfather","Equity Grandfather",null,"Long Positions - After - Preferred Stocks, BSCR Rating 6",null,null,null,null,null,null,null,null,0]
["Equity Grandfather","Equity Grandfather",null,"Long Positions - After - Preferred Stocks, BSCR Rating 7",null,null,null,null,null,null,null,null,0]
["Equity Grandfather","Equity Grandfather",null,"Long Positions - After - Preferred Stocks, BSCR Rating 8",null,null,null,null,null,null,null,null,0]
["Equity Grandfather","Equity Grandfather",null,"Long Positions - After - Equity Derivatives on Type 1 Equities",null,null,null,null,null,null,null,null,0]
["Equity Grandfather","Equity Grandfather",null,"Long Positions - After - Strategic Holdings - Unlisted",null,null,null,null,null,null,null,null,0]
["Equity Grandfather","Equity Grandfather",null,"Long Positions - After - Other Equities",null,null,null,null,null,null,null,null,0]
["Equity Grandfather","Equity Grandfather",null,"Long Positions - After - Letters of Credit",null,null,null,null,null,null,null,null,0]
["Equity Grandfather","Equity Grandfather",null,"Long Positions - After - Intangible assets",null,null,null,null,null,null,null,null,0]
["Equity Grandfather","Equity Grandfather",null,"Long Positions - After - Pension Benefit Surplus",null,null,null,null,null,null,null,null,0]
["Equity Grandfather","Equity Grandfather",null,"Long Positions - After - Equity Derivatives on Type 2 Equities",null,null,null,null,null,null,null,null,0]
["Equity Grandfather","Equity Grandfather",null,"Long Positions - After - Infrastructure",null,null,null,null,null,null,null,null,0]
["Equity Grandfather","Equity Grandfather",null,"Long Positions - After - Derivatives on Infrastructure",null,null,null,null,null,null,null,null,0]
["Equity Grandfather","Equity Grandfather",null,"Long Positions - After - Equity Real Estate 1",null,null,null,null,null,null,null,null,0]
["Equity Grandfather","Equity Grandfather",null,"Long Positions - After - Equity Real Estate 2",null,null,null,null,null,null,null,null,0]
["Equity Grandfather","Equity Grandfather",null,"Short - Before - Qualified Assets - Strategic Holdings - Listed",null,null,null,null,null,null,null,null,0]
["Equity Grandfather","Equity Grandfather",null,"Short - Before - Qualified Assets - Duration Based",null,null,null,null,null,null,null,null,0]
["Equity Grandfather","Equity Grandfather",null,"Short - Before - Qualified Assets - Listed Equity Securities in Developed Markets",null,null,null,null,null,null,null,null,0]
["Equity Grandfather","Equity Grandfather",null,"Short - Before - Qualified Assets - Preferred Stocks, BSCR Rating 1",null,null,null,null,null,null,null,null,0]
["Equity Grandfather","Equity Grandfather",null,"Short - Before - Qualified Assets - Preferred Stocks, BSCR Rating 2",null,null,null,null,null,null,null,null,0]
["Equity Grandfather","Equity Grandfather",null,"Short - Before - Qualified Assets - Preferred Stocks, BSCR Rating 3",null,null,null,null,null,null,null,null,0]
["Equity Grandfather","Equity Grandfather",null,"Short - Before - Qualified Assets - Preferred Stocks, BSCR Rating 4",null,null,null,null,null,null,null,null,0]
["Equity Grandfather","Equity Grandfather",null,"Short - Before - Qualified Assets - Preferred Stocks, BSCR Rating 5",null,null,null,null,null,null,null,null,0]
["Equity Grandfather","Equity Grandfather",null,"Short - Before - Qualified Assets - Preferred Stocks, BSCR Rating 6",null,null,null,null,null,null,null,null,0]
["Equity Grandfather","Equity Grandfather",null,"Short - Before - Qualified Assets - Preferred Stocks, BSCR Rating 7",null,null,null,null,null,null,null,null,0]
["Equity Grandfather","Equity Grandfather",null,"Short - Before - Qualified Assets - Preferred Stocks, BSCR Rating 8",null,null,null,null,null,null,null,null,0]
["Equity Grandfather","Equity Grandfather",null,"Short - Before - Qualified Assets - Equity Derivatives on Type 1 Equities",null,null,null,null,null,null,null,null,0]
["Equity Grandfather","Equity Grandfather",null,"Short - Before - Qualified Assets - Strategic Holdings - Unlisted",null,null,null,null,null,null,null,null,0]
["Equity Grandfather","Equity Grandfather",null,"Short - Before - Qualified Assets - Other Equities",null,null,null,null,null,null,null,null,0]
["Equity Grandfather","Equity Grandfather",null,"Short - Before - Qualified Assets - Letters of Credit",null,null,null,null,null,null,null,null,0]
["Equity Grandfather","Equity Grandfather",null,"Short - Before - Qualified Assets - Intangible assets",null,null,null,null,null,null,null,null,0]
["Equity Grandfather","Equity Grandfather",null,"Short - Before - Qualified Assets - Pension Benefit Surplus",null,null,null,null,null,null,null,null,0]
["Equity Grandfather","Equity Grandfather",null,"Short - Before - Qualified Assets - Equity Derivatives on Type 2 Equities",null,null,null,null,null,null,null,null,0]
["Equity Grandfather","Equity Grandfather",null,"Short - Before - Qualified Assets - Infrastructure",null,null,null,null,null,null,null,null,0]
["Equity Grandfather","Equity Grandfather",null,"Short - Before - Qualified Assets - Derivatives on Infrastructure",null,null,null,null,null,null,null,null,0]
["Equity Grandfather","Equity Grandfather",null,"Short - Before - Qualified Assets - Equity Real Estate 1",null,null,null,null,null,null,null,null,0]
["Equity Grandfather","Equity Grandfather",null,"Short - Before - Qualified Assets - Equity Real Estate 2",null,null,null,null,null,null,null,null,0]
["Equity Grandfather","Equity Grandfather",null,"Short - After - Qualified Assets - Strategic Holdings - Listed",null,null,null,null,null,null,null,null,0]
["Equity Grandfather","Equity Grandfather",null,"Short - After - Qualified Assets - Duration Based",null,null,null,null,null,null,null,null,0]
["Equity Grandfather","Equity Grandfather",null,"Short - After - Qualified Assets - Listed Equity Securities in Developed Markets",null,null,null,null,null,null,null,null,0]
["Equity Grandfather","Equity Grandfather",null,"Short - After - Qualified Assets - Preferred Stocks, BSCR Rating 1",null,null,null,null,null,null,null,null,0]
["Equity Grandfather","Equity Grandfather",null,"Short - After - Qualified Assets - Preferred Stocks, BSCR Rating 2",null,null,null,null,null,null,null,null,0]
["Equity Grandfather","Equity Grandfather",null,"Short - After - Qualified Assets - Preferred Stocks, BSCR Rating 3",null,null,null,null,null,null,null,null,0]
["Equity Grandfather","Equity Grandfather",null,"Short - After - Qualified Assets - Preferred Stocks, BSCR Rating 4",null,null,null,null,null,null,null,null,0]
["Equity Grandfather","Equity Grandfather",null,"Short - After - Qualified Assets - Preferred Stocks, BSCR Rating 5",null,null,null,null,null,null,null,null,0]
["Equity Grandfather","Equity Grandfather",null,"Short - After - Qualified Assets - Preferred Stocks, BSCR Rating 6",null,null,null,null,null,null,null,null,0]
["Equity Grandfather","Equity Grandfather",null,"Short - After - Qualified Assets - Preferred Stocks, BSCR Rating 7",null,null,null,null,null,null,null,null,0]
["Equity Grandfather","Equity Grandfather",null,"Short - After - Qualified Assets - Preferred Stocks, BSCR Rating 8",null,null,null,null,null,null,null,null,0]
["Equity Grandfather","Equity Grandfather",null,"Short - After - Qualified Assets - Equity Derivatives on Type 1 Equities",null,null,null,null,null,null,null,null,0]
["Equity Grandfather","Equity Grandfather",null,"Short - After - Qualified Assets - Strategic Holdings - Unlisted",null,null,null,null,null,null,null,null,0]
["Equity Grandfather","Equity Grandfather",null,"Short - After - Qualified Assets - Other Equities",null,null,null,null,null,null,null,null,0]
["Equity Grandfather","Equity Grandfather",null,"Short - After - Qualified Assets - Letters of Credit",null,null,null,null,null,null,null,null,0]
["Equity Grandfather","Equity Grandfather",null,"Short - After - Qualified Assets - Intangible assets",null,null,null,null,null,null,null,null,0]
["Equity Grandfather","Equity Grandfather",null,"Short - After - Qualified Assets - Pension Benefit Surplus",null,null,null,null,null,null,null,null,0]
["Equity Grandfather","Equity Grandfather",null,"Short - After - Qualified Assets - Equity Derivatives on Type 2 Equities",null,null,null,null,null,null,null,null,0]
["Equity Grandfather","Equity Grandfather",null,"Short - After - Qualified Assets - Infrastructure",null,null,null,null,null,null,null,null,0]
["Equity Grandfather","Equity Grandfather",null,"Short - After - Qualified Assets - Derivatives on Infrastructure",null,null,null,null,null,null,null,null,0]
["Equity Grandfather","Equity Grandfather",null,"Short - After - Qualified Assets - Equity Real Estate 1",null,null,null,null,null,null,null,null,0]
["Equity Grandfather","Equity Grandfather",null,"Short - After - Qualified Assets - Equity Real Estate 2",null,null,null,null,null,null,null,null,0]
["Equity Grandfather","Equity Grandfather",null,"Short - Before - UnQualified Assets - Strategic Holdings - Listed",null,null,null,null,null,null,null,null,0]
["Equity Grandfather","Equity Grandfather",null,"Short - Before - UnQualified Assets - Duration Based",null,null,null,null,null,null,null,null,0]
["Equity Grandfather","Equity Grandfather",null,"Short - Before - UnQualified Assets - Listed Equity Securities in Developed Markets",null,null,null,null,null,null,null,null,0]
["Equity Grandfather","Equity Grandfather",null,"Short - Before - UnQualified Assets - Preferred Stocks, BSCR Rating 1",null,null,null,null,null,null,null,null,0]
["Equity Grandfather","Equity Grandfather",null,"Short - Before - UnQualified Assets - Preferred Stocks, BSCR Rating 2",null,null,null,null,null,null,null,null,0]
["Equity Grandfather","Equity Grandfather",null,"Short - Before - UnQualified Assets - Preferred Stocks, BSCR Rating 3",null,null,null,null,null,null,null,null,0]
["Equity Grandfather","Equity Grandfather",null,"Short - Before - UnQualified Assets - Preferred Stocks, BSCR Rating 4",null,null,null,null,null,null,null,null,0]
["Equity Grandfather","Equity Grandfather",null,"Short - Before - UnQualified Assets - Preferred Stocks, BSCR Rating 5",null,null,null,null,null,null,null,null,0]
["Equity Grandfather","Equity Grandfather",null,"Short - Before - UnQualified Assets - Preferred Stocks, BSCR Rating 6",null,null,null,null,null,null,null,null,0]
["Equity Grandfather","Equity Grandfather",null,"Short - Before - UnQualified Assets - Preferred Stocks, BSCR Rating 7",null,null,null,null,null,null,null,null,0]
["Equity Grandfather","Equity Grandfather",null,"Short - Before - UnQualified Assets - Preferred Stocks, BSCR Rating 8",null,null,null,null,null,null,null,null,0]
["Equity Grandfather","Equity Grandfather",null,"Short - Before - UnQualified Assets - Equity Derivatives on Type 1 Equities",null,null,null,null,null,null,null,null,0]
["Equity Grandfather","Equity Grandfather",null,"Short - Before - UnQualified Assets - Strategic Holdings - Unlisted",null,null,null,null,null,null,null,null,0]
["Equity Grandfather","Equity Grandfather",null,"Short - Before - UnQualified Assets - Other Equities",null,null,null,null,null,null,null,null,0]
["Equity Grandfather","Equity Grandfather",null,"Short - Before - UnQualified Assets - Letters of Credit",null,null,null,null,null,null,null,null,0]
["Equity Grandfather","Equity Grandfather",null,"Short - Before - UnQualified Assets - Intangible assets",null,null,null,null,null,null,null,null,0]
["Equity Grandfather","Equity Grandfather",null,"Short - Before - UnQualified Assets - Pension Benefit Surplus",null,null,null,null,null,null,null,null,0]
["Equity Grandfather","Equity Grandfather",null,"Short - Before - UnQualified Assets - Equity Derivatives on Type 2 Equities",null,null,null,null,null,null,null,null,0]
["Equity Grandfather","Equity Grandfather",null,"Short - Before - UnQualified Assets - Infrastructure",null,null,null,null,null,null,null,null,0]
["Equity Grandfather","Equity Grandfather",null,"Short - Before - UnQualified Assets - Derivatives on Infrastructure",null,null,null,null,null,null,null,null,0]
["Equity Grandfather","Equity Grandfather",null,"Short - Before - UnQualified Assets - Equity Real Estate 1",null,null,null,null,null,null,null,null,0]
["Equity Grandfather","Equity Grandfather",null,"Short - Before - UnQualified Assets - Equity Real Estate 2",null,null,null,null,null,null,null,null,0]
["Equity Grandfather","Equity Grandfather",null,"Short - After - UnQualified Assets - Strategic Holdings - Listed",null,null,null,null,null,null,null,null,0]
["Equity Grandfather","Equity Grandfather",null,"Short - After - UnQualified Assets - Duration Based",null,null,null,null,null,null,null,null,0]
["Equity Grandfather","Equity Grandfather",null,"Short - After - UnQualified Assets - Listed Equity Securities in Developed Markets",null,null,null,null,null,null,null,null,0]
["Equity Grandfather","Equity Grandfather",null,"Short - After - UnQualified Assets - Preferred Stocks, BSCR Rating 1",null,null,null,null,null,null,null,null,0]
["Equity Grandfather","Equity Grandfather",null,"Short - After - UnQualified Assets - Preferred Stocks, BSCR Rating 2",null,null,null,null,null,null,null,null,0]
["Equity Grandfather","Equity Grandfather",null,"Short - After - UnQualified Assets - Preferred Stocks, BSCR Rating 3",null,null,null,null,null,null,null,null,0]
["Equity Grandfather","Equity Grandfather",null,"Short - After - UnQualified Assets - Preferred Stocks, BSCR Rating 4",null,null,null,null,null,null,null,null,0]
["Equity Grandfather","Equity Grandfather",null,"Short - After - UnQualified Assets - Preferred Stocks, BSCR Rating 5",null,null,null,null,null,null,null,null,0]
["Equity Grandfather","Equity Grandfather",null,"Short - After - UnQualified Assets - Preferred Stocks, BSCR Rating 6",null,null,null,null,null,null,null,null,0]
["Equity Grandfather","Equity Grandfather",null,"Short - After - UnQualified Assets - Preferred Stocks, BSCR Rating 7",null,null,null,null,null,null,null,null,0]
["Equity Grandfather","Equity Grandfather",null,"Short - After - UnQualified Assets - Preferred Stocks, BSCR Rating 8",null,null,null,null,null,null,null,null,0]
["Equity Grandfather","Equity Grandfather",null,"Short - After - UnQualified Assets - Equity Derivatives on Type 1 Equities",null,null,null,null,null,null,null,null,0]
["Equity Grandfather","Equity Grandfather",null,"Short - After - UnQualified Assets - Strategic Holdings - Unlisted",null,null,null,null,null,null,null,null,0]
["Equity Grandfather","Equity Grandfather",null,"Short - After - UnQualified Assets - Other Equities",null,null,null,null,null,null,null,null,0]
["Equity Grandfather","Equity Grandfather",null,"Short - After - UnQualified Assets - Letters of Credit",null,null,null,null,null,null,null,null,0]
["Equity Grandfather","Equity Grandfather",null,"Short - After - UnQualified Assets - Intangible assets",null,null,null,null,null,null,null,null,0]
["Equity Grandfather","Equity Grandfather",null,"Short - After - UnQualified Assets - Pension Benefit Surplus",null,null,null,null,null,null,null,null,0]
["Equity Grandfather","Equity Grandfather",null,"Short - After - UnQualified Assets - Equity Derivatives on Type 2 Equities",null,null,null,null,null,null,null,null,0]
["Equity Grandfather","Equity Grandfather",null,"Short - After - UnQualified Assets - Infrastructure",null,null,null,null,null,null,null,null,0]
["Equity Grandfather","Equity Grandfather",null,"Short - After - UnQualified Assets - Derivatives on Infrastructure",null,null,null,null,null,null,null,null,0]
["Equity Grandfather","Equity Grandfather",null,"Short - After - UnQualified Assets - Equity Real Estate 1",null,null,null,null,null,null,null,null,0]
["Equity Grandfather","Equity Grandfather",null,"Short - After - UnQualified Assets - Equity Real Estate 2",null,null,null,null,null,null,null,null,0]
["Equity Grandfather","Equity Grandfather",null,"Liabilities - Before - W/O Mgmt Actions - Strategic Holdings - Listed",null,null,null,null,null,null,null,null,0]
["Equity Grandfather","Equity Grandfather",null,"Liabilities - Before - W/O Mgmt Actions - Duration Based",null,null,null,null,null,null,null,null,0]
["Equity Grandfather","Equity Grandfather",null,"Liabilities - Before - W/O Mgmt Actions - Listed Equity Securities in Developed Markets",null,null,null,null,null,null,null,null,0]
["Equity Grandfather","Equity Grandfather",null,"Liabilities - Before - W/O Mgmt Actions - Preferred Stocks, BSCR Rating 1",null,null,null,null,null,null,null,null,0]
["Equity Grandfather","Equity Grandfather",null,"Liabilities - Before - W/O Mgmt Actions - Preferred Stocks, BSCR Rating 2",null,null,null,null,null,null,null,null,0]
["Equity Grandfather","Equity Grandfather",null,"Liabilities - Before - W/O Mgmt Actions - Preferred Stocks, BSCR Rating 3",null,null,null,null,null,null,null,null,0]
["Equity Grandfather","Equity Grandfather",null,"Liabilities - Before - W/O Mgmt Actions - Preferred Stocks, BSCR Rating 4",null,null,null,null,null,null,null,null,0]
["Equity Grandfather","Equity Grandfather",null,"Liabilities - Before - W/O Mgmt Actions - Preferred Stocks, BSCR Rating 5",null,null,null,null,null,null,null,null,0]
["Equity Grandfather","Equity Grandfather",null,"Liabilities - Before - W/O Mgmt Actions - Preferred Stocks, BSCR Rating 6",null,null,null,null,null,null,null,null,0]
["Equity Grandfather","Equity Grandfather",null,"Liabilities - Before - W/O Mgmt Actions - Preferred Stocks, BSCR Rating 7",null,null,null,null,null,null,null,null,0]
["Equity Grandfather","Equity Grandfather",null,"Liabilities - Before - W/O Mgmt Actions - Preferred Stocks, BSCR Rating 8",null,null,null,null,null,null,null,null,0]
["Equity Grandfather","Equity Grandfather",null,"Liabilities - Before - W/O Mgmt Actions - Equity Derivatives on Type 1 Equities",null,null,null,null,null,null,null,null,0]
["Equity Grandfather","Equity Grandfather",null,"Liabilities - Before - W/O Mgmt Actions - Strategic Holdings - Unlisted",null,null,null,null,null,null,null,null,0]
["Equity Grandfather","Equity Grandfather",null,"Liabilities - Before - W/O Mgmt Actions - Other Equities",null,null,null,null,null,null,null,null,0]
["Equity Grandfather","Equity Grandfather",null,"Liabilities - Before - W/O Mgmt Actions - Letters of Credit",null,null,null,null,null,null,null,null,0]
["Equity Grandfather","Equity Grandfather",null,"Liabilities - Before - W/O Mgmt Actions - Intangible assets",null,null,null,null,null,null,null,null,0]
["Equity Grandfather","Equity Grandfather",null,"Liabilities - Before - W/O Mgmt Actions - Pension Benefit Surplus",null,null,null,null,null,null,null,null,0]
["Equity Grandfather","Equity Grandfather",null,"Liabilities - Before - W/O Mgmt Actions - Equity Derivatives on Type 2 Equities",null,null,null,null,null,null,null,null,0]
["Equity Grandfather","Equity Grandfather",null,"Liabilities - Before - W/O Mgmt Actions - Infrastructure",null,null,null,null,null,null,null,null,0]
["Equity Grandfather","Equity Grandfather",null,"Liabilities - Before - W/O Mgmt Actions - Derivatives on Infrastructure",null,null,null,null,null,null,null,null,0]
["Equity Grandfather","Equity Grandfather",null,"Liabilities - Before - W/O Mgmt Actions - Equity Real Estate 1",null,null,null,null,null,null,null,null,0]
["Equity Grandfather","Equity Grandfather",null,"Liabilities - Before - W/O Mgmt Actions - Equity Real Estate 2",null,null,null,null,null,null,null,null,0]
["Equity Grandfather","Equity Grandfather",null,"Liabilities - After - W/O Mgmt Actions - Strategic Holdings - Listed",null,null,null,null,null,null,null,null,0]
["Equity Grandfather","Equity Grandfather",null,"Liabilities - After - W/O Mgmt Actions - Duration Based",null,null,null,null,null,null,null,null,0]
["Equity Grandfather","Equity Grandfather",null,"Liabilities - After - W/O Mgmt Actions - Listed Equity Securities in Developed Markets",null,null,null,null,null,null,null,null,0]
["Equity Grandfather","Equity Grandfather",null,"Liabilities - After - W/O Mgmt Actions - Preferred Stocks, BSCR Rating 1",null,null,null,null,null,null,null,null,0]
["Equity Grandfather","Equity Grandfather",null,"Liabilities - After - W/O Mgmt Actions - Preferred Stocks, BSCR Rating 2",null,null,null,null,null,null,null,null,0]
["Equity Grandfather","Equity Grandfather",null,"Liabilities - After - W/O Mgmt Actions - Preferred Stocks, BSCR Rating 3",null,null,null,null,null,null,null,null,0]
["Equity Grandfather","Equity Grandfather",null,"Liabilities - After - W/O Mgmt Actions - Preferred Stocks, BSCR Rating 4",null,null,null,null,null,null,null,null,0]
["Equity Grandfather","Equity Grandfather",null,"Liabilities - After - W/O Mgmt Actions - Preferred Stocks, BSCR Rating 5",null,null,null,null,null,null,null,null,0]
["Equity Grandfather","Equity Grandfather",null,"Liabilities - After - W/O Mgmt Actions - Preferred Stocks, BSCR Rating 6",null,null,null,null,null,null,null,null,0]
["Equity Grandfather","Equity Grandfather",null,"Liabilities - After - W/O Mgmt Actions - Preferred Stocks, BSCR Rating 7",null,null,null,null,null,null,null,null,0]
["Equity Grandfather","Equity Grandfather",null,"Liabilities - After - W/O Mgmt Actions - Preferred Stocks, BSCR Rating 8",null,null,null,null,null,null,null,null,0]
["Equity Grandfather","Equity Grandfather",null,"Liabilities - After - W/O Mgmt Actions - Equity Derivatives on Type 1 Equities",null,null,null,null,null,null,null,null,0]
["Equity Grandfather","Equity Grandfather",null,"Liabilities - After - W/O Mgmt Actions - Strategic Holdings - Unlisted",null,null,null,null,null,null,null,null,0]
["Equity Grandfather","Equity Grandfather",null,"Liabilities - After - W/O Mgmt Actions - Other Equities",null,null,null,null,null,null,null,null,0]
["Equity Grandfather","Equity Grandfather",null,"Liabilities - After - W/O Mgmt Actions - Letters of Credit",null,null,null,null,null,null,null,null,0]
["Equity Grandfather","Equity Grandfather",null,"Liabilities - After - W/O Mgmt Actions - Intangible assets",null,null,null,null,null,null,null,null,0]
["Equity Grandfather","Equity Grandfather",null,"Liabilities - After - W/O Mgmt Actions - Pension Benefit Surplus",null,null,null,null,null,null,null,null,0]
["Equity Grandfather","Equity Grandfather",null,"Liabilities - After - W/O Mgmt Actions - Equity Derivatives on Type 2 Equities",null,null,null,null,null,null,null,null,0]
["Equity Grandfather","Equity Grandfather",null,"Liabilities - After - W/O Mgmt Actions - Infrastructure",null,null,null,null,null,null,null,null,0]
["Equity Grandfather","Equity Grandfather",null,"Liabilities - After - W/O Mgmt Actions - Derivatives on Infrastructure",null,null,null,null,null,null,null,null,0]
["Equity Grandfather","Equity Grandfather",null,"Liabilities - After - W/O Mgmt Actions - Equity Real Estate 1",null,null,null,null,null,null,null,null,0]
["Equity Grandfather","Equity Grandfather",null,"Liabilities - After - W/O Mgmt Actions - Equity Real Estate 2",null,null,null,null,null,null,null,null,0]
["Equity Grandfather","Equity Grandfather",null,"Liabilities - After - With Mgmt Actions - Strategic Holdings - Listed",null,null,null,null,null,null,null,null,0]
["Equity Grandfather","Equity Grandfather",null,"Liabilities - After - With Mgmt Actions - Duration Based",null,null,null,null,null,null,null,null,0]
["Equity Grandfather","Equity Grandfather",null,"Liabilities - After - With Mgmt Actions - Listed Equity Securities in Developed Markets",null,null,null,null,null,null,null,null,0]
["Equity Grandfather","Equity Grandfather",null,"Liabilities - After - With Mgmt Actions - Preferred Stocks, BSCR Rating 1",null,null,null,null,null,null,null,null,0]
["Equity Grandfather","Equity Grandfather",null,"Liabilities - After - With Mgmt Actions - Preferred Stocks, BSCR Rating 2",null,null,null,null,null,null,null,null,0]
["Equity Grandfather","Equity Grandfather",null,"Liabilities - After - With Mgmt Actions - Preferred Stocks, BSCR Rating 3",null,null,null,null,null,null,null,null,0]
["Equity Grandfather","Equity Grandfather",null,"Liabilities - After - With Mgmt Actions - Preferred Stocks, BSCR Rating 4",null,null,null,null,null,null,null,null,0]
["Equity Grandfather","Equity Grandfather",null,"Liabilities - After - With Mgmt Actions - Preferred Stocks, BSCR Rating 5",null,null,null,null,null,null,null,null,0]
["Equity Grandfather","Equity Grandfather",null,"Liabilities - After - With Mgmt Actions - Preferred Stocks, BSCR Rating 6",null,null,null,null,null,null,null,null,0]
["Equity Grandfather","Equity Grandfather",null,"Liabilities - After - With Mgmt Actions - Preferred Stocks, BSCR Rating 7",null,null,null,null,null,null,null,null,0]
["Equity Grandfather","Equity Grandfather",null,"Liabilities - After - With Mgmt Actions - Preferred Stocks, BSCR Rating 8",null,null,null,null,null,null,null,null,0]
["Equity Grandfather","Equity Grandfather",null,"Liabilities - After - With Mgmt Actions - Equity Derivatives on Type 1 Equities",null,null,null,null,null,null,null,null,0]
["Equity Grandfather","Equity Grandfather",null,"Liabilities - After - With Mgmt Actions - Strategic Holdings - Unlisted",null,null,null,null,null,null,null,null,0]
["Equity Grandfather","Equity Grandfather",null,"Liabilities - After - With Mgmt Actions - Other Equities",null,null,null,null,null,null,null,null,0]
["Equity Grandfather","Equity Grandfather",null,"Liabilities - After - With Mgmt Actions - Letters of Credit",null,null,null,null,null,null,null,null,0]
["Equity Grandfather","Equity Grandfather",null,"Liabilities - After - With Mgmt Actions - Intangible assets",null,null,null,null,null,null,null,null,0]
["Equity Grandfather","Equity Grandfather",null,"Liabilities - After - With Mgmt Actions - Pension Benefit Surplus",null,null,null,null,null,null,null,null,0]
["Equity Grandfather","Equity Grandfather",null,"Liabilities - After - With Mgmt Actions - Equity Derivatives on Type 2 Equities",null,null,null,null,null,null,null,null,0]
["Equity Grandfather","Equity Grandfather",null,"Liabilities - After - With Mgmt Actions - Infrastructure",null,null,null,null,null,null,null,null,0]
["Equity Grandfather","Equity Grandfather",null,"Liabilities - After - With Mgmt Actions - Derivatives on Infrastructure",null,null,null,null,null,null,null,null,0]
["Equity Grandfather","Equity Grandfather",null,"Liabilities - After - With Mgmt Actions - Equity Real Estate 1",null,null,null,null,null,null,null,null,0]
["Equity Grandfather","Equity Grandfather",null,"Liabilities - After - With Mgmt Actions - Equity Real Estate 2",null,null,null,null,null,null,null,null,0]
[]
["Equity Grandfather","Equity Grandfather",null,"Common Shares - Quoted",null,null,null,null,null,null,null,null,0]
["Equity Grandfather","Equity Grandfather",null,"Common Shares - Unquoted",null,null,null,null,null,null,null,null,0]
["Equity Grandfather","Equity Grandfather",null,"Equity Mutual Funds",null,null,null,null,null,null,null,null,0]
["Equity Grandfather","Equity Grandfather",null,"Preferred Shares - BSCR Rate 1",null,null,null,null,null,null,null,null,0]
["Equity Grandfather","Equity Grandfather",null,"Preferred Shares - BSCR Rate 2",null,null,null,null,null,null,null,null,0]
["Equity Grandfather","Equity Grandfather",null,"Preferred Shares - BSCR Rate 3",null,null,null,null,null,null,null,null,0]
["Equity Grandfather","Equity Grandfather",null,"Preferred Shares - BSCR Rate 4",null,null,null,null,null,null,null,null,0]
["Equity Grandfather","Equity Grandfather",null,"Preferred Shares - BSCR Rate 5",null,null,null,null,null,null,null,null,0]
["Equity Grandfather","Equity Grandfather",null,"Preferred Shares - BSCR Rate 6",null,null,null,null,null,null,null,null,0]
["Equity Grandfather","Equity Grandfather",null,"Preferred Shares - BSCR Rate 7",null,null,null,null,null,null,null,null,0]
["Equity Grandfather","Equity Grandfather",null,"Preferred Shares - BSCR Rate 8",null,null,null,null,null,null,null,null,0]
["Equity Grandfather","Equity Grandfather",null,"Real Estate - Occupied by Company",null,null,null,null,null,null,null,null,0]
["Equity Grandfather","Equity Grandfather",null,"Real Estate - Other",null,null,null,null,null,null,null,null,0]
["Equity Grandfather","Equity Grandfather",null,"Other Investments",null,null,null,null,null,null,null,null,0]
["Equity Grandfather","Equity Grandfather",null,"Sundry Assets",null,null,null,null,null,null,null,null,0]
["Equity Grandfather","Equity Grandfather",null,"Inv. In Affiliates - Unregulated Ancillary",null,null,null,null,null,null,null,null,0]
["Equity Grandfather","Equity Grandfather",null,"Inv. In Affiliates - Unregulated Non-Fin. Oper.",null,null,null,null,null,null,null,null,0]
["Equity Grandfather","Equity Grandfather",null,"Inv. In Affiliates - Unregulated Fin. Operating",null,null,null,null,null,null,null,null,0]
["Equity Grandfather","Equity Grandfather",null,"Inv. In Affiliates - Regulated Insurance",null,null,null,null,null,null,null,null,0]
[]
["AML","AML Questionnaire",null,"A.1 # of Policies",0]
["AML","AML Questionnaire",null,"A.2 Risk Rate Policies","Select Yes/No"]
["AML","AML Questionnaire",null,"A.3 # Policies - Low Risk",0]
["AML","AML Questionnaire",null,"A.3 # Policies - Medium Risk",0]
["AML","AML Questionnaire",null,"A.3 # Policies - High Risk",0]
["AML","AML Questionnaire",null,"A.3 # Policies - Unknown Risk",0]
["AML","AML Questionnaire",null,"A.3 # Policies - Total Risk",0]
["AML","AML Questionnaire",null,"B.1 GPW",0]
["AML","AML Questionnaire",null,"B.1(a) % Unrelated",0]
["AML","AML Questionnaire",null,"B.1(b) % incidental",0]
["AML","AML Questionnaire",null,"B.1 GPW - (i) Mortality - Term Assurance",0]
["AML","AML Questionnaire",null,"B.1 GPW - (ii) Mortality - Whole Life",0]
["AML","AML Questionnaire",null,"B.1 GPW - (iii) Mortality - Universal Life",0]
["AML","AML Questionnaire",null,"B.1 GPW - (b) Critical Illness ",0]
["AML","AML Questionnaire",null,"B.1 GPW - (c) Longevity (immediate pay-out annuities)",0]
["AML","AML Questionnaire",null,"B.1 GPW - (d) Longevity (deferred pay-out annuities)",0]
["AML","AML Questionnaire",null,"B.1 GPW - (e) Annuities certain only",0]
["AML","AML Questionnaire",null,"B.1 GPW - (f) Deferred accumulation annuities",0]
["AML","AML Questionnaire",null,"B.1 GPW - (g) Disability Income: active lives - including waiver of premium and long-term care",0]
["AML","AML Questionnaire",null,"B.1 GPW - (h) Disability income: active lives - other accident and sickness",0]
["AML","AML Questionnaire",null,"B.1 GPW - (i) Disability income: claims in payment - including waiver of premium and long-term care",0]
["AML","AML Questionnaire",null,"B.1 GPW - (j) Disability income: claims in payment - other accident and sickness",0]
["AML","AML Questionnaire",null,"B.1 GPW - (k) Group Life",0]
["AML","AML Questionnaire",null,"B.1 GPW - (l) Group Disability",0]
["AML","AML Questionnaire",null,"B.1 GPW - (m) Group Health",0]
["AML","AML Questionnaire",null,"B.1 GPW - (n) Stop Loss",0]
["AML","AML Questionnaire",null,"B.1 GPW - (o) Rider ",0]
["AML","AML Questionnaire",null,"B.1 GPW - (p) Variable Annuities",0]
["AML","AML Questionnaire",null,"B.1 GPW - (q) Other Lines of Business",0]
["AML","AML Questionnaire",null,"B.1 GPW - General Business",0]
["AML","AML Questionnaire",null,"B.1 GPW - Other LOB",0]
["AML","AML Questionnaire",null,"B.1 GPW - Total GPW",0]
["AML","AML Questionnaire",null,"B.1 # Policies - (i) Mortality - Term Assurance",0]
["AML","AML Questionnaire",null,"B.1 # Policies - (ii) Mortality - Whole Life",0]
["AML","AML Questionnaire",null,"B.1 # Policies - (iii) Mortality - Universal Life",0]
["AML","AML Questionnaire",null,"B.1 # Policies - (b) Critical Illness ",0]
["AML","AML Questionnaire",null,"B.1 # Policies - (c) Longevity (immediate pay-out annuities)",0]
["AML","AML Questionnaire",null,"B.1 # Policies - (d) Longevity (deferred pay-out annuities)",0]
["AML","AML Questionnaire",null,"B.1 # Policies - (e) Annuities certain only",0]
["AML","AML Questionnaire",null,"B.1 # Policies - (f) Deferred accumulation annuities",0]
["AML","AML Questionnaire",null,"B.1 # Policies - (g) Disability Income: active lives - including waiver of premium and long-term care",0]
["AML","AML Questionnaire",null,"B.1 # Policies - (h) Disability income: active lives - other accident and sickness",0]
["AML","AML Questionnaire",null,"B.1 # Policies - (i) Disability income: claims in payment - including waiver of premium and long-term care",0]
["AML","AML Questionnaire",null,"B.1 # Policies - (j) Disability income: claims in payment - other accident and sickness",0]
["AML","AML Questionnaire",null,"B.1 # Policies - (k) Group Life",0]
["AML","AML Questionnaire",null,"B.1 # Policies - (l) Group Disability",0]
["AML","AML Questionnaire",null,"B.1 # Policies - (m) Group Health",0]
["AML","AML Questionnaire",null,"B.1 # Policies - (n) Stop Loss",0]
["AML","AML Questionnaire",null,"B.1 # Policies - (o) Rider",0]
["AML","AML Questionnaire",null,"B.1 # Policies - (p) Variable Annuities",0]
["AML","AML Questionnaire",null,"B.1 # Policies - (q) Other Lines of Business",0]
["AML","AML Questionnaire",null,"B.1 # Policies - General Business",0]
["AML","AML Questionnaire",null,"B.1 # Policies - Other LOB",0]
["AML","AML Questionnaire",null,"B.1 # Policies - Total # Policies",0]
["AML","AML Questionnaire",null,"B.2 Paid - (i) Mortality - Term Assurance",0]
["AML","AML Questionnaire",null,"B.2 Paid - (ii) Mortality - Whole Life",0]
["AML","AML Questionnaire",null,"B.2 Paid - (iii) Mortality - Universal Life",0]
["AML","AML Questionnaire",null,"B.2 Paid - (b) Critical Illness ",0]
["AML","AML Questionnaire",null,"B.2 Paid - (c) Longevity (immediate pay-out annuities)",0]
["AML","AML Questionnaire",null,"B.2 Paid - (d) Longevity (deferred pay-out annuities)",0]
["AML","AML Questionnaire",null,"B.2 Paid - (e) Annuities certain only",0]
["AML","AML Questionnaire",null,"B.2 Paid - (f) Deferred accumulation annuities",0]
["AML","AML Questionnaire",null,"B.2 Paid - (g) Disability Income: active lives - including waiver of premium and long-term care",0]
["AML","AML Questionnaire",null,"B.2 Paid - (h) Disability income: active lives - other accident and sickness",0]
["AML","AML Questionnaire",null,"B.2 Paid - (i) Disability income: claims in payment - including waiver of premium and long-term care",0]
["AML","AML Questionnaire",null,"B.2 Paid - (j) Disability income: claims in payment - other accident and sickness",0]
["AML","AML Questionnaire",null,"B.2 Paid - (k) Group Life",0]
["AML","AML Questionnaire",null,"B.2 Paid - (l) Group Disability",0]
["AML","AML Questionnaire",null,"B.2 Paid - (m) Group Health",0]
["AML","AML Questionnaire",null,"B.2 Paid - (n) Stop Loss",0]
["AML","AML Questionnaire",null,"B.2 Paid - (o) Rider ",0]
["AML","AML Questionnaire",null,"B.2 Paid - (p) Variable Annuities",0]
["AML","AML Questionnaire",null,"B.2 Paid - (q) Other Lines of Business",0]
["AML","AML Questionnaire",null,"B.2 Paid - General Business",0]
["AML","AML Questionnaire",null,"B.2 Paid - Other LOB",0]
["AML","AML Questionnaire",null,"B.2 Paid - Total Paid",0]
["AML","AML Questionnaire",null,"B.2 # Policies - (i) Mortality - Term Assurance",0]
["AML","AML Questionnaire",null,"B.2 # Policies - (ii) Mortality - Whole Life",0]
["AML","AML Questionnaire",null,"B.2 # Policies - (iii) Mortality - Universal Life",0]
["AML","AML Questionnaire",null,"B.2 # Policies - (b) Critical Illness ",0]
["AML","AML Questionnaire",null,"B.2 # Policies - (c) Longevity (immediate pay-out annuities)",0]
["AML","AML Questionnaire",null,"B.2 # Policies - (d) Longevity (deferred pay-out annuities)",0]
["AML","AML Questionnaire",null,"B.2 # Policies - (e) Annuities certain only",0]
["AML","AML Questionnaire",null,"B.2 # Policies - (f) Deferred accumulation annuities",0]
["AML","AML Questionnaire",null,"B.2 # Policies - (g) Disability Income: active lives - including waiver of premium and long-term care",0]
["AML","AML Questionnaire",null,"B.2 # Policies - (h) Disability income: active lives - other accident and sickness",0]
["AML","AML Questionnaire",null,"B.2 # Policies - (i) Disability income: claims in payment - including waiver of premium and long-term care",0]
["AML","AML Questionnaire",null,"B.2 # Policies - (j) Disability income: claims in payment - other accident and sickness",0]
["AML","AML Questionnaire",null,"B.2 # Policies - (k) Group Life",0]
["AML","AML Questionnaire",null,"B.2 # Policies - (l) Group Disability",0]
["AML","AML Questionnaire",null,"B.2 # Policies - (m) Group Health",0]
["AML","AML Questionnaire",null,"B.2 # Policies - (n) Stop Loss",0]
["AML","AML Questionnaire",null,"B.2 # Policies - (o) Rider",0]
["AML","AML Questionnaire",null,"B.2 # Policies - (p) Variable Annuities",0]
["AML","AML Questionnaire",null,"B.2 # Policies - (q) Other Lines of Business",0]
["AML","AML Questionnaire",null,"B.2 # Policies - General Business",0]
["AML","AML Questionnaire",null,"B.2 # Policies - Other LOB",0]
["AML","AML Questionnaire",null,"B.2 # Policies - Total # Policies",0]
["AML","AML Questionnaire",null,"B.3 Premium - Bank Transfer",0]
["AML","AML Questionnaire",null,"B.3 Premium - Cash",0]
["AML","AML Questionnaire",null,"B.3 Premium - Cheque",0]
["AML","AML Questionnaire",null,"B.3 Premium - Credit Card",0]
["AML","AML Questionnaire",null,"B.3 Premium - Virtual Currencies",0]
["AML","AML Questionnaire",null,"B.3 Premium - Other",0]
["AML","AML Questionnaire",null,"B.3 Premium - Total",0]
["AML","AML Questionnaire",null,"B.3 Claims - Bank Transfer",0]
["AML","AML Questionnaire",null,"B.3 Claims - Cash",0]
["AML","AML Questionnaire",null,"B.3 Claims - Cheque",0]
["AML","AML Questionnaire",null,"B.3 Claims - Credit Card",0]
["AML","AML Questionnaire",null,"B.3 Claims - Virtual Currencies",0]
["AML","AML Questionnaire",null,"B.3 Claims - Other",0]
["AML","AML Questionnaire",null,"B.3 Claims - Total",0]
["AML","AML Questionnaire",null,"B.3 Other Details",0]
["AML","AML Questionnaire",null,"B.4 Accept 3rd Party Payments","Select Yes/No"]
["AML","AML Questionnaire",null,"B.4 If yes, Details",0]
["AML","AML Questionnaire",null,"C.1 Business Relationships - Face to Face",0]
["AML","AML Questionnaire",null,"C.1 Business Relationships - Intermediary",0]
["AML","AML Questionnaire",null,"C.1 Business Relationships - Phone, Email",0]
["AML","AML Questionnaire",null,"C.1 Business Relationships - Other",0]
["AML","AML Questionnaire",null,"C.1 Business Relationships - Total",0]
["AML","AML Questionnaire",null,"D.1 PEP's Identified","Select Yes/No"]
["AML","AML Questionnaire",null,"D.2 GPW - Zone 1 - Central & Western Asia",0]
["AML","AML Questionnaire",null,"D.2 GPW - Zone 2 - Eastern Asia",0]
["AML","AML Questionnaire",null,"D.2 GPW - Zone 3 - South & South Eastern Asia",0]
["AML","AML Questionnaire",null,"D.2 GPW - Zone 4 - Oceania",0]
["AML","AML Questionnaire",null,"D.2 GPW - Zone 5 - Northern Africa",0]
["AML","AML Questionnaire",null,"D.2 GPW - Zone 6 - Southern Africa",0]
["AML","AML Questionnaire",null,"D.2 GPW - Zone 7 - Eastern Europe",0]
["AML","AML Questionnaire",null,"D.2 GPW - Zone 8 - Northern Europe",0]
["AML","AML Questionnaire",null,"D.2 GPW - Zone 9 - Southern Europe",0]
["AML","AML Questionnaire",null,"D.2 GPW - Zone 10 - Western Europe",0]
["AML","AML Questionnaire",null,"D.2 GPW - Zone 11 -  North America ",0]
["AML","AML Questionnaire",null,"D.2 GPW - Zone 12 - Caribbean",0]
["AML","AML Questionnaire",null,"D.2 GPW - Zone 13 - Eastern South America",0]
["AML","AML Questionnaire",null,"D.2 GPW - Zone 14 - N, S & W South America",0]
["AML","AML Questionnaire",null,"D.2 GPW - Zone 15 - North East United States",0]
["AML","AML Questionnaire",null,"D.2 GPW - Zone 16 - South-East United States",0]
["AML","AML Questionnaire",null,"D.2 GPW - Zone 17 - Mid-West United States",0]
["AML","AML Questionnaire",null,"D.2 GPW - Zone 18 - Western United States",0]
["AML","AML Questionnaire",null,"D.2 GPW - Zone 19 - Central America",0]
["AML","AML Questionnaire",null,"D.2 GPW - Zone 20 - Bermuda",0]
["AML","AML Questionnaire",null,"D.2 GPW - Zone 20 - Total",0]
["AML","AML Questionnaire",null,"D.2 # of Policies - Zone 1 - Central & Western Asia",0]
["AML","AML Questionnaire",null,"D.2 # of Policies - Zone 2 - Eastern Asia",0]
["AML","AML Questionnaire",null,"D.2 # of Policies - Zone 3 - South & South Eastern Asia",0]
["AML","AML Questionnaire",null,"D.2 # of Policies - Zone 4 - Oceania",0]
["AML","AML Questionnaire",null,"D.2 # of Policies - Zone 5 - Northern Africa",0]
["AML","AML Questionnaire",null,"D.2 # of Policies - Zone 6 - Southern Africa",0]
["AML","AML Questionnaire",null,"D.2 # of Policies - Zone 7 - Eastern Europe",0]
["AML","AML Questionnaire",null,"D.2 # of Policies - Zone 8 - Northern Europe",0]
["AML","AML Questionnaire",null,"D.2 # of Policies - Zone 9 - Southern Europe",0]
["AML","AML Questionnaire",null,"D.2 # of Policies - Zone 10 - Western Europe",0]
["AML","AML Questionnaire",null,"D.2 # of Policies - Zone 11 -  North America ",0]
["AML","AML Questionnaire",null,"D.2 # of Policies - Zone 12 - Caribbean",0]
["AML","AML Questionnaire",null,"D.2 # of Policies - Zone 13 - Eastern South America",0]
["AML","AML Questionnaire",null,"D.2 # of Policies - Zone 14 - N, S & W South America",0]
["AML","AML Questionnaire",null,"D.2 # of Policies - Zone 15 - North East United States",0]
["AML","AML Questionnaire",null,"D.2 # of Policies - Zone 16 - South-East United States",0]
["AML","AML Questionnaire",null,"D.2 # of Policies - Zone 17 - Mid-West United States",0]
["AML","AML Questionnaire",null,"D.2 # of Policies - Zone 18 - Western United States",0]
["AML","AML Questionnaire",null,"D.2 # of Policies - Zone 19 - Central America",0]
["AML","AML Questionnaire",null,"D.2 # of Policies - Zone 20 - Bermuda",0]
["AML","AML Questionnaire",null,"D.2 # of Policies - Zone 20 - Total",0]
["AML","AML Questionnaire",null,"D.2 # of PEP - Zone 1 - Central & Western Asia",0]
["AML","AML Questionnaire",null,"D.2 # of PEP - Zone 2 - Eastern Asia",0]
["AML","AML Questionnaire",null,"D.2 # of PEP - Zone 3 - South & South Eastern Asia",0]
["AML","AML Questionnaire",null,"D.2 # of PEP - Zone 4 - Oceania",0]
["AML","AML Questionnaire",null,"D.2 # of PEP - Zone 5 - Northern Africa",0]
["AML","AML Questionnaire",null,"D.2 # of PEP - Zone 6 - Southern Africa",0]
["AML","AML Questionnaire",null,"D.2 # of PEP - Zone 7 - Eastern Europe",0]
["AML","AML Questionnaire",null,"D.2 # of PEP - Zone 8 - Northern Europe",0]
["AML","AML Questionnaire",null,"D.2 # of PEP - Zone 9 - Southern Europe",0]
["AML","AML Questionnaire",null,"D.2 # of PEP - Zone 10 - Western Europe",0]
["AML","AML Questionnaire",null,"D.2 # of PEP - Zone 11 -  North America ",0]
["AML","AML Questionnaire",null,"D.2 # of PEP - Zone 12 - Caribbean",0]
["AML","AML Questionnaire",null,"D.2 # of PEP - Zone 13 - Eastern South America",0]
["AML","AML Questionnaire",null,"D.2 # of PEP - Zone 14 - N, S & W South America",0]
["AML","AML Questionnaire",null,"D.2 # of PEP - Zone 15 - North East United States",0]
["AML","AML Questionnaire",null,"D.2 # of PEP - Zone 16 - South-East United States",0]
["AML","AML Questionnaire",null,"D.2 # of PEP - Zone 17 - Mid-West United States",0]
["AML","AML Questionnaire",null,"D.2 # of PEP - Zone 18 - Western United States",0]
["AML","AML Questionnaire",null,"D.2 # of PEP - Zone 19 - Central America",0]
["AML","AML Questionnaire",null,"D.2 # of PEP - Zone 20 - Bermuda",0]
["AML","AML Questionnaire",null,"D.2 # of PEP - Zone 20 - Total",0]
["AML","AML Questionnaire",null,"D.3 Transaction Monitoring","Select Yes/No"]
["AML","AML Questionnaire",null,"D.4 # Beneficiaries - Zone 1 - Central & Western Asia",0]
["AML","AML Questionnaire",null,"D.4 # Beneficiaries - Zone 2 - Eastern Asia",0]
["AML","AML Questionnaire",null,"D.4 # Beneficiaries - Zone 3 - South & South Eastern Asia",0]
["AML","AML Questionnaire",null,"D.4 # Beneficiaries - Zone 4 - Oceania",0]
["AML","AML Questionnaire",null,"D.4 # Beneficiaries - Zone 5 - Northern Africa",0]
["AML","AML Questionnaire",null,"D.4 # Beneficiaries - Zone 6 - Southern Africa",0]
["AML","AML Questionnaire",null,"D.4 # Beneficiaries - Zone 7 - Eastern Europe",0]
["AML","AML Questionnaire",null,"D.4 # Beneficiaries - Zone 8 - Northern Europe",0]
["AML","AML Questionnaire",null,"D.4 # Beneficiaries - Zone 9 - Southern Europe",0]
["AML","AML Questionnaire",null,"D.4 # Beneficiaries - Zone 10 - Western Europe",0]
["AML","AML Questionnaire",null,"D.4 # Beneficiaries - Zone 11 -  North America ",0]
["AML","AML Questionnaire",null,"D.4 # Beneficiaries - Zone 12 - Caribbean",0]
["AML","AML Questionnaire",null,"D.4 # Beneficiaries - Zone 13 - Eastern South America",0]
["AML","AML Questionnaire",null,"D.4 # Beneficiaries - Zone 14 - N, S & W South America",0]
["AML","AML Questionnaire",null,"D.4 # Beneficiaries - Zone 15 - North East United States",0]
["AML","AML Questionnaire",null,"D.4 # Beneficiaries - Zone 16 - South-East United States",0]
["AML","AML Questionnaire",null,"D.4 # Beneficiaries - Zone 17 - Mid-West United States",0]
["AML","AML Questionnaire",null,"D.4 # Beneficiaries - Zone 18 - Western United States",0]
["AML","AML Questionnaire",null,"D.4 # Beneficiaries - Zone 19 - Central America",0]
["AML","AML Questionnaire",null,"D.4 # Beneficiaries - Zone 20 - Bermuda",0]
["AML","AML Questionnaire",null,"D.4 # Beneficiaries - Zone 20 - Total",0]
["AML","AML Questionnaire",null,"D.4 # Policies - Zone 1 - Central & Western Asia",0]
["AML","AML Questionnaire",null,"D.4 # Policies - Zone 2 - Eastern Asia",0]
["AML","AML Questionnaire",null,"D.4 # Policies - Zone 3 - South & South Eastern Asia",0]
["AML","AML Questionnaire",null,"D.4 # Policies - Zone 4 - Oceania",0]
["AML","AML Questionnaire",null,"D.4 # Policies - Zone 5 - Northern Africa",0]
["AML","AML Questionnaire",null,"D.4 # Policies - Zone 6 - Southern Africa",0]
["AML","AML Questionnaire",null,"D.4 # Policies - Zone 7 - Eastern Europe",0]
["AML","AML Questionnaire",null,"D.4 # Policies - Zone 8 - Northern Europe",0]
["AML","AML Questionnaire",null,"D.4 # Policies - Zone 9 - Southern Europe",0]
["AML","AML Questionnaire",null,"D.4 # Policies - Zone 10 - Western Europe",0]
["AML","AML Questionnaire",null,"D.4 # Policies - Zone 11 -  North America ",0]
["AML","AML Questionnaire",null,"D.4 # Policies - Zone 12 - Caribbean",0]
["AML","AML Questionnaire",null,"D.4 # Policies - Zone 13 - Eastern South America",0]
["AML","AML Questionnaire",null,"D.4 # Policies - Zone 14 - N, S & W South America",0]
["AML","AML Questionnaire",null,"D.4 # Policies - Zone 15 - North East United States",0]
["AML","AML Questionnaire",null,"D.4 # Policies - Zone 16 - South-East United States",0]
["AML","AML Questionnaire",null,"D.4 # Policies - Zone 17 - Mid-West United States",0]
["AML","AML Questionnaire",null,"D.4 # Policies - Zone 18 - Western United States",0]
["AML","AML Questionnaire",null,"D.4 # Policies - Zone 19 - Central America",0]
["AML","AML Questionnaire",null,"D.4 # Policies - Zone 20 - Bermuda",0]
["AML","AML Questionnaire",null,"D.4 # Policies - Zone 20 - Total",0]
["AML","AML Questionnaire",null,"D.4 Claims Paid - Zone 1 - Central & Western Asia",0]
["AML","AML Questionnaire",null,"D.4 Claims Paid - Zone 2 - Eastern Asia",0]
["AML","AML Questionnaire",null,"D.4 Claims Paid - Zone 3 - South & South Eastern Asia",0]
["AML","AML Questionnaire",null,"D.4 Claims Paid - Zone 4 - Oceania",0]
["AML","AML Questionnaire",null,"D.4 Claims Paid - Zone 5 - Northern Africa",0]
["AML","AML Questionnaire",null,"D.4 Claims Paid - Zone 6 - Southern Africa",0]
["AML","AML Questionnaire",null,"D.4 Claims Paid - Zone 7 - Eastern Europe",0]
["AML","AML Questionnaire",null,"D.4 Claims Paid - Zone 8 - Northern Europe",0]
["AML","AML Questionnaire",null,"D.4 Claims Paid - Zone 9 - Southern Europe",0]
["AML","AML Questionnaire",null,"D.4 Claims Paid - Zone 10 - Western Europe",0]
["AML","AML Questionnaire",null,"D.4 Claims Paid - Zone 11 -  North America ",0]
["AML","AML Questionnaire",null,"D.4 Claims Paid - Zone 12 - Caribbean",0]
["AML","AML Questionnaire",null,"D.4 Claims Paid - Zone 13 - Eastern South America",0]
["AML","AML Questionnaire",null,"D.4 Claims Paid - Zone 14 - N, S & W South America",0]
["AML","AML Questionnaire",null,"D.4 Claims Paid - Zone 15 - North East United States",0]
["AML","AML Questionnaire",null,"D.4 Claims Paid - Zone 16 - South-East United States",0]
["AML","AML Questionnaire",null,"D.4 Claims Paid - Zone 17 - Mid-West United States",0]
["AML","AML Questionnaire",null,"D.4 Claims Paid - Zone 18 - Western United States",0]
["AML","AML Questionnaire",null,"D.4 Claims Paid - Zone 19 - Central America",0]
["AML","AML Questionnaire",null,"D.4 Claims Paid - Zone 20 - Bermuda",0]
["AML","AML Questionnaire",null,"D.4 Claims Paid - Zone 20 - Total",0]
["AML","AML Questionnaire",null,"D.4 # PEPs - Zone 1 - Central & Western Asia",0]
["AML","AML Questionnaire",null,"D.4 # PEPs - Zone 2 - Eastern Asia",0]
["AML","AML Questionnaire",null,"D.4 # PEPs - Zone 3 - South & South Eastern Asia",0]
["AML","AML Questionnaire",null,"D.4 # PEPs - Zone 4 - Oceania",0]
["AML","AML Questionnaire",null,"D.4 # PEPs - Zone 5 - Northern Africa",0]
["AML","AML Questionnaire",null,"D.4 # PEPs - Zone 6 - Southern Africa",0]
["AML","AML Questionnaire",null,"D.4 # PEPs - Zone 7 - Eastern Europe",0]
["AML","AML Questionnaire",null,"D.4 # PEPs - Zone 8 - Northern Europe",0]
["AML","AML Questionnaire",null,"D.4 # PEPs - Zone 9 - Southern Europe",0]
["AML","AML Questionnaire",null,"D.4 # PEPs - Zone 10 - Western Europe",0]
["AML","AML Questionnaire",null,"D.4 # PEPs - Zone 11 -  North America ",0]
["AML","AML Questionnaire",null,"D.4 # PEPs - Zone 12 - Caribbean",0]
["AML","AML Questionnaire",null,"D.4 # PEPs - Zone 13 - Eastern South America",0]
["AML","AML Questionnaire",null,"D.4 # PEPs - Zone 14 - N, S & W South America",0]
["AML","AML Questionnaire",null,"D.4 # PEPs - Zone 15 - North East United States",0]
["AML","AML Questionnaire",null,"D.4 # PEPs - Zone 16 - South-East United States",0]
["AML","AML Questionnaire",null,"D.4 # PEPs - Zone 17 - Mid-West United States",0]
["AML","AML Questionnaire",null,"D.4 # PEPs - Zone 18 - Western United States",0]
["AML","AML Questionnaire",null,"D.4 # PEPs - Zone 19 - Central America",0]
["AML","AML Questionnaire",null,"D.4 # PEPs - Zone 20 - Bermuda",0]
["AML","AML Questionnaire",null,"D.4 # PEPs - Zone 20 - Total",0]
["AML","AML Questionnaire",null,"F.1 ML & TF Employee Training","Select Yes/No"]
["AML","AML Questionnaire",null,"F.1(a) New Employees","Select Yes/No"]
["AML","AML Questionnaire",null,"F.1(b) Program Specific or Generic","Select Yes/No"]
["AML","AML Questionnaire",null,"F.1(c) Training Frequency","Select Years"]
["AML","AML Questionnaire",null,"F.2 # of Employees - Full Time",0]
["AML","AML Questionnaire",null,"F.2 # of Employees - Part Time",0]
["AML","AML Questionnaire",null,"F.2.1 Compliance Officer Work Terms","(Select Terms)"]
["AML","AML Questionnaire",null,"F.2.2 Reporting Officer Work Terms","(Select Terms)"]
["AML","AML Questionnaire",null,"F.3 Recruit Staff - Verify Name","Select Yes/No"]
["AML","AML Questionnaire",null,"F.3 Recruit Staff - Verify Address","Select Yes/No"]
["AML","AML Questionnaire",null,"F.3 Recruit Staff - Verify Staff PEP","Select Yes/No"]
["AML","AML Questionnaire",null,"F.3 Recruit Staff - Verify Sanction List","Select Yes/No"]
["AML","AML Questionnaire",null,"F.3 Recruit Staff - Verify Negative Press","Select Yes/No"]
["AML","AML Questionnaire",null,"F.3 Recruit Staff - Verify Employee History","Select Yes/No"]
["AML","AML Questionnaire",null,"F.3 Recruit Staff - Verify References","Select Yes/No"]
["AML","AML Questionnaire",null,"F.3 Recruit Staff - Verify Reg Action","Select Yes/No"]
["AML","AML Questionnaire",null,"F.3 Recruit Staff - Verify Criminal Convictions","Select Yes/No"]
["AML","AML Questionnaire",null,"F.4 Compliance Officer Senior Mgmnt","Select Yes/No"]
["AML","AML Questionnaire",null,"G.1 AML/ATF Specific LT Insurance","Select Yes/No"]
["AML","AML Questionnaire",null,"G.2 AML/ATF GB or Reinsurance","Select Yes/No"]
["AML","AML Questionnaire",null,"G.3 AML/ATF Other Controls","Select Yes/No"]
["AML","AML Questionnaire",null,"G.3 AML/ATF Other Controls - Details",0]
["AML","AML Questionnaire",null,"G.4 AML/ATF Rating Frequency","Select Years"]
["AML","AML Questionnaire",null,"G.5 Approval of New Business - Low Risk","Select Yes/No"]
["AML","AML Questionnaire",null,"G.5 Approval of New Business - Medium Risk","Select Yes/No"]
["AML","AML Questionnaire",null,"G.5 Approval of New Business - High Risk","Select Yes/No"]
["AML","AML Questionnaire",null,"G.6 Approval of Existing Business - Low Risk","Select Yes/No"]
["AML","AML Questionnaire",null,"G.6 Approval of Existing Business - Medium Risk","Select Yes/No"]
["AML","AML Questionnaire",null,"G.6 Approval of Existing Business - High Risk","Select Yes/No"]
["AML","AML Questionnaire",null,"G.7 AML/ATF Manuals with BDA Laws","Select Yes/No"]
["AML","AML Questionnaire",null,"G.7.1 AML/ATF Manuals Reviewed","Select Years"]
["AML","AML Questionnaire",null,"G.8 Last AML/ATF Risk Assessment","(Select)"]
["AML","AML Questionnaire",null,"G.9 AML/ATF Independent Audit ","(Select)"]
["AML","AML Questionnaire",null,"G.10 Last Compliance Report","(Select)"]
["AML","AML Questionnaire",null,"G.11 Document ML/TF Prior to Launch","Select Yes/No"]
["AML","AML Questionnaire",null,"H.1.1 Insurer Part of Group","Select Yes/No"]
["AML","AML Questionnaire",null,"H.1.1.1 Group Name",0]
["AML","AML Questionnaire",null,"H.1.1.1 Group ROC #",0]
["AML","AML Questionnaire",null,"H.1.1.2 Listed on Exchange","Select Yes/No"]
["AML","AML Questionnaire",null,"H.1.1.2 Exchange 1",0]
["AML","AML Questionnaire",null,"H.1.1.2 Exchange 2",0]
["AML","AML Questionnaire",null,"H.1.1.2 Exchange 3",0]
["AML","AML Questionnaire",null,"H.2(a) # of SAC Registered accounts",0]
["AML","AML Questionnaire",null,"H.2(i) # of Active SAC",0]
["AML","AML Questionnaire",null,"H.2(ii) # of Non-Active SAC",0]
["AML","AML Questionnaire",null,"H.3 Private Act Confirmation","Select Yes/No"]
["AML","AML Questionnaire",null,"H.3(a) # of Designated Inv. Contracts",0]
["AML","AML Questionnaire",null,"H.3(b) Net Account Value of Designated Inv. Contracts",0]
["AML","AML Questionnaire",null,"H.3 Other Comments",0]
["AML","AML Questionnaire",null,"I. Corporate Governance Q1","Select Yes/No"]
["AML","AML Questionnaire",null,"I. Corporate Governance Q2","Select Yes/No"]
["AML","AML Questionnaire",null,"I. Corporate Governance Q3","Select Yes/No"]
["AML","AML Questionnaire",null,"I. Corporate Governance Q4","Select Yes/No"]
["AML","AML Questionnaire",null,"I. Corporate Governance Q5","Select Yes/No"]
["AML","AML Questionnaire",null,"I. Corporate Governance Q6","Select Yes/No"]
["AML","AML Questionnaire",null,"I. Corporate Governance Q7","Select Yes/No"]
["AML","AML Questionnaire",null,"I. Corporate Governance Q8","Select Yes/No"]
["AML","AML Questionnaire",null,"I. Corporate Governance Q9","Select Yes/No"]
["AML","AML Questionnaire",null,"I. Corporate Governance Q10","Select Yes/No"]
["AML","AML Questionnaire",null,"I. Corporate Governance Q11","Select Yes/No"]
["AML","AML Questionnaire",null,"I. Corporate Governance Q12","Select Yes/No"]
["AML","AML Questionnaire",null,"I. Corporate Governance Q13","Select Yes/No"]
["AML","AML Questionnaire",null,"I. Employee Integrity Q14","Select Yes/No"]
["AML","AML Questionnaire",null,"I. Employee Integrity Q15","Select Yes/No"]
["AML","AML Questionnaire",null,"I. Employee Integrity Q16","Select Yes/No"]
["AML","AML Questionnaire",null,"I. Employee Integrity Q17","Select Yes/No"]
["AML","AML Questionnaire",null,"I. Employee Integrity Q18","Select Yes/No"]
["AML","AML Questionnaire",null,"I. Employee Knowledge Q19","Select Yes/No"]
["AML","AML Questionnaire",null,"I. Employee Knowledge Q20","Select Yes/No"]
["AML","AML Questionnaire",null,"I. Employee Knowledge Q21","Select Yes/No"]
["AML","AML Questionnaire",null,"I. Employee Knowledge Q22","Select Yes/No"]
["AML","AML Questionnaire",null,"I. Employee Knowledge Q23","Select Yes/No"]
["AML","AML Questionnaire",null,"I. Employee Knowledge Q24","Select Yes/No"]
["AML","AML Questionnaire",null,"I. Employee Knowledge Q25","Select Yes/No"]
["AML","AML Questionnaire",null,"I. Employee Knowledge Q26","Select Yes/No"]
["AML","AML Questionnaire",null,"I. Employee Knowledge Q27","Select Yes/No"]
["AML","AML Questionnaire",null,"I. Employee Compliance Q28","Select Yes/No"]
["AML","AML Questionnaire",null,"I. Employee Compliance Q29","Select Yes/No"]
["AML","AML Questionnaire",null,"I. Employee Compliance Q30","Select Yes/No"]
["AML","AML Questionnaire",null,"I. Employee Compliance Q31","Select Yes/No"]
[]
["Sar & Sanc.","SAR & Santions",null,"E.1 Registered GoAML","Select Yes/No"]
["Sar & Sanc.","SAR & Santions",null,"E.1.1 When","(Select)"]
["Sar & Sanc.","SAR & Santions",null,"E.1.1 Name",0]
["Sar & Sanc.","SAR & Santions",null,"E.1.2 Another Registered","Select Yes/No"]
["Sar & Sanc.","SAR & Santions",null,"E.1.3 Name",0]
["Sar & Sanc.","SAR & Santions",null,"E.1.4 Filed SAR",0]
["Sar & Sanc.","SAR & Santions",null,"E.2 SAR Filed - Internal - Current Year",0]
["Sar & Sanc.","SAR & Santions",null,"E.2 SAR Filed - Internal - Prior Year",0]
["Sar & Sanc.","SAR & Santions",null,"E.2 SAR Filed - Internal - 2 Years Prior",0]
["Sar & Sanc.","SAR & Santions",null,"E.2 SAR Filed - Internal - 3 Years Prior",0]
["Sar & Sanc.","SAR & Santions",null,"E.2 SAR Filed - Internal - Total",0]
["Sar & Sanc.","SAR & Santions",null,"E.2 SAR Filed - w FIA - Current Year",0]
["Sar & Sanc.","SAR & Santions",null,"E.2 SAR Filed - w FIA - Prior Year",0]
["Sar & Sanc.","SAR & Santions",null,"E.2 SAR Filed - w FIA - 2 Years Prior",0]
["Sar & Sanc.","SAR & Santions",null,"E.2 SAR Filed - w FIA - 3 Years Prior",0]
["Sar & Sanc.","SAR & Santions",null,"E.2 SAR Filed - w FIA - Total",0]
["Sar & Sanc.","SAR & Santions",null,"E.2 Additional Comments",0]
["Sar & Sanc.","SAR & Santions",null,"E. Sanction - 1. Screen insurers","Select Yes/No"]
["Sar & Sanc.","SAR & Santions",null,"E. Sanction - 2. Screen employees","Select Yes/No"]
["Sar & Sanc.","SAR & Santions",null,"E. Sanction - 3. Freeze Assets","Select Yes/No"]
["Sar & Sanc.","SAR & Santions",null,"E. Sanction - 3.1 # of Assets Frozen",0]
["Sar & Sanc.","SAR & Santions",null,"E. Sanction - 3.2 Group ID 1",0]
["Sar & Sanc.","SAR & Santions",null,"E. Sanction - 3.2 Group ID 2",0]
["Sar & Sanc.","SAR & Santions",null,"E. Sanction - 3.2 Group ID 3",0]
["Sar & Sanc.","SAR & Santions",null,"E. Sanction - 3.2 Group ID 4",0]
["Sar & Sanc.","SAR & Santions",null,"E. Sanction - 3.2 Name Given 1",0]
["Sar & Sanc.","SAR & Santions",null,"E. Sanction - 3.2 Name Given 2",0]
["Sar & Sanc.","SAR & Santions",null,"E. Sanction - 3.2 Name Given 3",0]
["Sar & Sanc.","SAR & Santions",null,"E. Sanction - 3.2 Name Given 4",0]
["Sar & Sanc.","SAR & Santions",null,"E. Sanction - 3.2 Owned 1",0]
["Sar & Sanc.","SAR & Santions",null,"E. Sanction - 3.2 Owned 2",0]
["Sar & Sanc.","SAR & Santions",null,"E. Sanction - 3.2 Owned 3",0]
["Sar & Sanc.","SAR & Santions",null,"E. Sanction - 3.2 Owned 4",0]
["Sar & Sanc.","SAR & Santions",null,"E. Sanction - 3.2 Value of Assets 1",0]
["Sar & Sanc.","SAR & Santions",null,"E. Sanction - 3.2 Value of Assets 2",0]
["Sar & Sanc.","SAR & Santions",null,"E. Sanction - 3.2 Value of Assets 3",0]
["Sar & Sanc.","SAR & Santions",null,"E. Sanction - 3.2 Value of Assets 4",0]
["Sar & Sanc.","SAR & Santions",null,"E. Sanction - 3.2 Value of Total",0]
["Sar & Sanc.","SAR & Santions",null,"E. Sanction - 4 Frequency of Screen for Sanctions","Select"]
["Sar & Sanc.","SAR & Santions",null,"E. Sanction - Additional Comments ",0]

{"sheet":"Export","index":8,"n_rows":9880,"n_cols":15,"rows_kept":9880,"cut":false,"hidden":false,"merged":[[0,4,0,6],[0,8,0,10],[0,12,0,14]]}
[null,null,null,null,"Unconsolidated",null,null,null,"Consolidated",null,null,null,"EBS"]
["Sheet Name","Sheet Short Description","Field Code","Field Description",{"$f":"YEAR('Insurer Information'!$C$3)","v":2019},null,{"$f":"E2-1","v":2018},null,{"$f":"YEAR('Insurer Information'!$C$3)","v":2019},null,{"$f":"I2-1","v":2018},null,{"$f":"YEAR('Insurer Information'!$C$3)","v":2019},null,{"$f":"M2-1","v":2018}]
["Declaration",null,null,"Director 1",{"$f":"Declaration!C20","v":0}]
["Declaration",null,null,"Date",{"$f":"Declaration!C23","v":"00:00:00"}]
["Declaration",null,null,"Director 2",{"$f":"Declaration!C28","v":0}]
["Declaration",null,null,"Date",{"$f":"Declaration!C31","v":"00:00:00"}]
["Declaration",null,null,"Other Signatory",{"$f":"Declaration!C35","v":0}]
["Declaration",null,null,"Date",{"$f":"Declaration!C38","v":"00:00:00"}]
[]
["Info Sheet",null,null,"(d) Statements Held at Registered Office",{"$f":"'Information Sheet'!H9","v":"Select Yes/No"}]
["Info Sheet",null,null,"(e) Filing Period - Period Start Date",{"$f":"'Information Sheet'!H13","v":"00:00:00"}]
["Info Sheet",null,null,"(g) Figures Translated at:",{"$f":"'Information Sheet'!H18","v":0}]
["Info Sheet",null,null,"(h) Ultimate Parent",{"$f":"'Information Sheet'!H20","v":0}]
["Info Sheet",null,null,"(i) Insurer's Parent Company",{"$f":"'Information Sheet'!H22","v":0}]
["Info Sheet",null,null,"(j) Industry Sector of Insurer's Parent",{"$f":"'Information Sheet'!H24","v":"Select from Drop-Down"}]
["Info Sheet",null,null,"(k) Insurer's Ownership Structure",{"$f":"'Information Sheet'!H26","v":"Select from Drop-Down"}]
["Info Sheet",null,null,"(l) Insurer's Company Structure",{"$f":"'Information Sheet'!H28","v":"Select from Drop-Down"}]
["Info Sheet",null,null,"(l).1 Confirm if Company writes LT Insurance",{"$f":"'Information Sheet'!H29","v":"Select Yes/No"}]
["Info Sheet",null,null,"(l).2 LT Insurance written during the period",{"$f":"'Information Sheet'!H30","v":"Select Yes/No"}]
["Info Sheet",null,null,"(l).3 Subsidiares wrote Long-Term insurance",{"$f":"'Information Sheet'!H31","v":"Select Yes/No"}]
["Info Sheet",null,null,"(l).4 Subsidiares wrote LT Ins. Outside of BDA",{"$f":"'Information Sheet'!H32","v":"Select Yes/No"}]
["Info Sheet",null,null,"(l).5 Subsidiares Ins. Outside of BDA jurisdiction 1",{"$f":"'Information Sheet'!H33","v":0}]
["Info Sheet",null,null,"(l).5 Subsidiares Ins. Outside of BDA jurisdiction 2",{"$f":"'Information Sheet'!H34","v":0}]
["Info Sheet",null,null,"(l).5 Subsidiares Ins. Outside of BDA jurisdiction 3",{"$f":"'Information Sheet'!H35","v":0}]
["Info Sheet",null,null,"(m)(i) Is the Insurer a Member of Ins. Group?",{"$f":"'Information Sheet'!H38","v":"Select Yes/No"}]
["Info Sheet",null,null,"(m)(ii) Are there Segregated Accounts?",{"$f":"'Information Sheet'!H39","v":"Select Yes/No"}]
["Info Sheet",null,null,"(m)(iii) IS the Insurer in Run-Off?",{"$f":"'Information Sheet'!H40","v":"Select Yes/No"}]
["Info Sheet",null,null,"(m)(iv) Statements have a Qualified Opinion?",{"$f":"'Information Sheet'!H41","v":"Select Yes/No"}]
["Info Sheet",null,null,"(m)(iv) Details of Qualified Opinion",{"$f":"'Information Sheet'!C43","v":0}]
["Info Sheet",null,null,"(m)(v) Minimum Solvency Margin Met",{"$f":"'Information Sheet'!H46","v":"Select Yes/No"}]
["Info Sheet",null,null,"(n)(1) Certificate of Registration Date",{"$f":"'Information Sheet'!H51","v":""}]
["Info Sheet",null,null,"(n)(2) # of Conditions",{"$f":"'Information Sheet'!H53","v":0}]
["Info Sheet",null,null,"Effective Start Date of Condition - 1",{"$f":"'Information Sheet'!E56","v":"00:00:00"}]
["Info Sheet",null,null,"Effective Start Date of Condition - 2",{"$f":"'Information Sheet'!E57","v":"00:00:00"}]
["Info Sheet",null,null,"Effective Start Date of Condition - 3",{"$f":"'Information Sheet'!E58","v":"00:00:00"}]
["Info Sheet",null,null,"Effective Start Date of Condition - 4",{"$f":"'Information Sheet'!E59","v":"00:00:00"}]
["Info Sheet",null,null,"Effective Start Date of Condition - 5",{"$f":"'Information Sheet'!E60","v":"00:00:00"}]
["Info Sheet",null,null,"Effective Start Date of Condition - 6",{"$f":"'Information Sheet'!E61","v":"00:00:00"}]
["Info Sheet",null,null,"Effective Start Date of Condition - 7",{"$f":"'Information Sheet'!E62","v":"00:00:00"}]
["Info Sheet",null,null,"Effective Start Date of Condition - 8",{"$f":"'Information Sheet'!E63","v":"00:00:00"}]
["Info Sheet",null,null,"Effective Start Date of Condition - 9",{"$f":"'Information Sheet'!E64","v":"00:00:00"}]
["Info Sheet",null,null,"Effective Start Date of Condition - 10",{"$f":"'Information Sheet'!E65","v":"00:00:00"}]
["Info Sheet",null,null,"Effective End Date of Condition - 1",{"$f":"'Information Sheet'!F56","v":"00:00:00"}]
["Info Sheet",null,null,"Effective End Date of Condition - 2",{"$f":"'Information Sheet'!F57","v":"00:00:00"}]
["Info Sheet",null,null,"Effective End Date of Condition - 3",{"$f":"'Information Sheet'!F58","v":"00:00:00"}]
["Info Sheet",null,null,"Effective End Date of Condition - 4",{"$f":"'Information Sheet'!F59","v":"00:00:00"}]
["Info Sheet",null,null,"Effective End Date of Condition - 5",{"$f":"'Information Sheet'!F60","v":"00:00:00"}]
["Info Sheet",null,null,"Effective End Date of Condition - 6",{"$f":"'Information Sheet'!F61","v":"00:00:00"}]
["Info Sheet",null,null,"Effective End Date of Condition - 7",{"$f":"'Information Sheet'!F62","v":"00:00:00"}]
["Info Sheet",null,null,"Effective End Date of Condition - 8",{"$f":"'Information Sheet'!F63","v":"00:00:00"}]
["Info Sheet",null,null,"Effective End Date of Condition - 9",{"$f":"'Information Sheet'!F64","v":"00:00:00"}]
["Info Sheet",null,null,"Effective End Date of Condition - 10",{"$f":"'Information Sheet'!F65","v":"00:00:00"}]
["Info Sheet",null,null,"Description of Condition - 1",{"$f":"'Information Sheet'!G56","v":0}]
["Info Sheet",null,null,"Description of Condition - 2",{"$f":"'Information Sheet'!G57","v":0}]
["Info Sheet",null,null,"Description of Condition - 3",{"$f":"'Information Sheet'!G58","v":0}]
["Info Sheet",null,null,"Description of Condition - 4",{"$f":"'Information Sheet'!G59","v":0}]
["Info Sheet",null,null,"Description of Condition - 5",{"$f":"'Information Sheet'!G60","v":0}]
["Info Sheet",null,null,"Description of Condition - 6",{"$f":"'Information Sheet'!G61","v":0}]
["Info Sheet",null,null,"Description of Condition - 7",{"$f":"'Information Sheet'!G62","v":0}]
["Info Sheet",null,null,"Description of Condition - 8",{"$f":"'Information Sheet'!G63","v":0}]
["Info Sheet",null,null,"Description of Condition - 9",{"$f":"'Information Sheet'!G64","v":0}]
["Info Sheet",null,null,"Description of Condition - 10",{"$f":"'Information Sheet'!G65","v":0}]
["Info Sheet",null,null,"Insurer Complied with All Conditions?",{"$f":"'Information Sheet'!H67","v":"Select Yes/No"}]
["Info Sheet",null,null,"(p) # of Directions",{"$f":"'Information Sheet'!H71","v":0}]
["Info Sheet",null,null,"Effective Start Date of Direction - 1",{"$f":"'Information Sheet'!E74","v":"00:00:00"}]
["Info Sheet",null,null,"Effective Start Date of Direction - 2",{"$f":"'Information Sheet'!E75","v":"00:00:00"}]
["Info Sheet",null,null,"Effective Start Date of Direction - 3",{"$f":"'Information Sheet'!E76","v":"00:00:00"}]
["Info Sheet",null,null,"Effective Start Date of Direction - 4",{"$f":"'Information Sheet'!E77","v":"00:00:00"}]
["Info Sheet",null,null,"Effective Start Date of Direction - 5",{"$f":"'Information Sheet'!E78","v":"00:00:00"}]
["Info Sheet",null,null,"Effective Start Date of Direction - 6",{"$f":"'Information Sheet'!E79","v":"00:00:00"}]
["Info Sheet",null,null,"Effective Start Date of Direction - 7",{"$f":"'Information Sheet'!E80","v":"00:00:00"}]
["Info Sheet",null,null,"Effective Start Date of Direction - 8",{"$f":"'Information Sheet'!E81","v":"00:00:00"}]
["Info Sheet",null,null,"Effective Start Date of Direction - 9",{"$f":"'Information Sheet'!E82","v":"00:00:00"}]
["Info Sheet",null,null,"Effective Start Date of Direction - 10",{"$f":"'Information Sheet'!E83","v":"00:00:00"}]
["Info Sheet",null,null,"Effective End Date of Direction - 1",{"$f":"'Information Sheet'!F74","v":"00:00:00"}]
["Info Sheet",null,null,"Effective End Date of Direction - 2",{"$f":"'Information Sheet'!F75","v":"00:00:00"}]
["Info Sheet",null,null,"Effective End Date of Direction - 3",{"$f":"'Information Sheet'!F76","v":"00:00:00"}]
["Info Sheet",null,null,"Effective End Date of Direction - 4",{"$f":"'Information Sheet'!F77","v":"00:00:00"}]
["Info Sheet",null,null,"Effective End Date of Direction - 5",{"$f":"'Information Sheet'!F78","v":"00:00:00"}]
["Info Sheet",null,null,"Effective End Date of Direction - 6",{"$f":"'Information Sheet'!F79","v":"00:00:00"}]
["Info Sheet",null,null,"Effective End Date of Direction - 7",{"$f":"'Information Sheet'!F80","v":"00:00:00"}]
["Info Sheet",null,null,"Effective End Date of Direction - 8",{"$f":"'Information Sheet'!F81","v":"00:00:00"}]
["Info Sheet",null,null,"Effective End Date of Direction - 9",{"$f":"'Information Sheet'!F82","v":"00:00:00"}]
["Info Sheet",null,null,"Effective End Date of Direction - 10",{"$f":"'Information Sheet'!F83","v":"00:00:00"}]
["Info Sheet",null,null,"Description of Direction - 1",{"$f":"'Information Sheet'!G74","v":0}]
["Info Sheet",null,null,"Description of Direction - 2",{"$f":"'Information Sheet'!G75","v":0}]
["Info Sheet",null,null,"Description of Direction - 3",{"$f":"'Information Sheet'!G76","v":0}]
["Info Sheet",null,null,"Description of Direction - 4",{"$f":"'Information Sheet'!G77","v":0}]
["Info Sheet",null,null,"Description of Direction - 5",{"$f":"'Information Sheet'!G78","v":0}]
["Info Sheet",null,null,"Description of Direction - 6",{"$f":"'Information Sheet'!G79","v":0}]
["Info Sheet",null,null,"Description of Direction - 7",{"$f":"'Information Sheet'!G80","v":0}]
["Info Sheet",null,null,"Description of Direction - 8",{"$f":"'Information Sheet'!G81","v":0}]
["Info Sheet",null,null,"Description of Direction - 9",{"$f":"'Information Sheet'!G82","v":0}]
["Info Sheet",null,null,"Description of Direction - 10",{"$f":"'Information Sheet'!G83","v":0}]
["Info Sheet",null,null,"(q) Confirm If Any Negative Responses?",{"$f":"'Information Sheet'!H87","v":"Select Yes/No"}]
["Info Sheet",null,null,"Details of Negative Responses",{"$f":"'Information Sheet'!C89","v":0}]
[]
[null,null,null,"Balance Sheet"]
["Form 1SFS/1EBS","Balance Sheet LT/CON/EBS","1SFS1","Cash and Cash Equivalents",{"$f":"'Form 1SFS'!H12","v":0},null,{"$f":"'Form 1SFS'!I12","v":0},null,{"$f":"'Form 1SFS'!K12","v":0},null,{"$f":"'Form 1SFS'!M12","v":0},null,{"$f":"'Form 4EBS'!F10","v":0},null,{"$f":"'Form 4EBS'!H10","v":0}]
["Form 1SFS/1EBS","Balance Sheet LT/CON/EBS","1SFS2ai","Quoted - Bonds - Held to Maturity",{"$f":"'Form 1SFS'!H16","v":0},null,{"$f":"'Form 1SFS'!I16","v":0},null,{"$f":"'Form 1SFS'!K16","v":0},null,{"$f":"'Form 1SFS'!M16","v":0}]
["Form 1SFS/1EBS","Balance Sheet LT/CON/EBS","1SFS2aii","Quoted - Bonds - Other",{"$f":"'Form 1SFS'!H17","v":0},null,{"$f":"'Form 1SFS'!I17","v":0},null,{"$f":"'Form 1SFS'!K17","v":0},null,{"$f":"'Form 1SFS'!M17","v":0}]
["Form 1SFS/1EBS","Balance Sheet LT/CON/EBS","1EBS2b","Quoted - Bonds - Total",null,null,null,null,null,null,null,null,{"$f":"'Form 4EBS'!F13","v":0},null,{"$f":"'Form 4EBS'!H13","v":0}]
["Form 1SFS/1EBS","Balance Sheet LT/CON/EBS","1SFS2ci","Quoted - Equities - Common Stocks",{"$f":"'Form 1SFS'!H20","v":0},null,{"$f":"'Form 1SFS'!I20","v":0},null,{"$f":"'Form 1SFS'!K20","v":0},null,{"$f":"'Form 1SFS'!M20","v":0},null,{"$f":"'Form 4EBS'!F15","v":0},null,{"$f":"'Form 4EBS'!H15","v":0}]
["Form 1SFS/1EBS","Balance Sheet LT/CON/EBS","1SFS2cii","Quoted - Equities - Preferred Stocks",{"$f":"'Form 1SFS'!H21","v":0},null,{"$f":"'Form 1SFS'!I21","v":0},null,{"$f":"'Form 1SFS'!K21","v":0},null,{"$f":"'Form 1SFS'!M21","v":0},null,{"$f":"'Form 4EBS'!F16","v":0},null,{"$f":"'Form 4EBS'!H16","v":0}]
["Form 1SFS/1EBS","Balance Sheet LT/CON/EBS","1SFS2ciii","Quoted - Equities - Mutual Funds",{"$f":"'Form 1SFS'!H22","v":0},null,{"$f":"'Form 1SFS'!I22","v":0},null,{"$f":"'Form 1SFS'!K22","v":0},null,{"$f":"'Form 1SFS'!M22","v":0},null,{"$f":"'Form 4EBS'!F17","v":0},null,{"$f":"'Form 4EBS'!H17","v":0}]
["Form 1SFS/1EBS","Balance Sheet LT/CON/EBS","1SFS2e","Quoted - Other Investments",{"$f":"'Form 1SFS'!H24","v":0},null,{"$f":"'Form 1SFS'!I24","v":0},null,{"$f":"'Form 1SFS'!K24","v":0},null,{"$f":"'Form 1SFS'!M24","v":0},null,{"$f":"'Form 4EBS'!F19","v":0},null,{"$f":"'Form 4EBS'!H19","v":0}]
["Form 1SFS/1EBS","Balance Sheet LT/CON/EBS","1SFS3ai","Unquoted - Bonds - Held to Maturity",{"$f":"'Form 1SFS'!H29","v":0},null,{"$f":"'Form 1SFS'!I29","v":0},null,{"$f":"'Form 1SFS'!K29","v":0},null,{"$f":"'Form 1SFS'!M29","v":0}]
["Form 1SFS/1EBS","Balance Sheet LT/CON/EBS","1SFS3aii","Unquoted - Bonds - Other",{"$f":"'Form 1SFS'!H30","v":0},null,{"$f":"'Form 1SFS'!I30","v":0},null,{"$f":"'Form 1SFS'!K30","v":0},null,{"$f":"'Form 1SFS'!M30","v":0}]
["Form 1SFS/1EBS","Balance Sheet LT/CON/EBS","1EBS3b","Unquoted - Bonds - Total",null,null,null,null,null,null,null,null,{"$f":"'Form 4EBS'!F23","v":0},null,{"$f":"'Form 4EBS'!H23","v":0}]
["Form 1SFS/1EBS","Balance Sheet LT/CON/EBS","1SFS3ci","Unquoted - Equities - Common Stocks",{"$f":"'Form 1SFS'!H33","v":0},null,{"$f":"'Form 1SFS'!I33","v":0},null,{"$f":"'Form 1SFS'!K33","v":0},null,{"$f":"'Form 1SFS'!M33","v":0},null,{"$f":"'Form 4EBS'!F25","v":0},null,{"$f":"'Form 4EBS'!H25","v":0}]
["Form 1SFS/1EBS","Balance Sheet LT/CON/EBS","1SFS3cii","Unquoted - Equities - Preferred Stocks",{"$f":"'Form 1SFS'!H34","v":0},null,{"$f":"'Form 1SFS'!I34","v":0},null,{"$f":"'Form 1SFS'!K34","v":0},null,{"$f":"'Form 1SFS'!M34","v":0},null,{"$f":"'Form 4EBS'!F26","v":0},null,{"$f":"'Form 4EBS'!H26","v":0}]
["Form 1SFS/1EBS","Balance Sheet LT/CON/EBS","1SFS3ciii","Unquoted - Equities - Mutual Funds",{"$f":"'Form 1SFS'!H35","v":0},null,{"$f":"'Form 1SFS'!I35","v":0},null,{"$f":"'Form 1SFS'!K35","v":0},null,{"$f":"'Form 1SFS'!M35","v":0},null,{"$f":"'Form 4EBS'!F27","v":0},null,{"$f":"'Form 4EBS'!H27","v":0}]
["Form 1SFS/1EBS","Balance Sheet LT/CON/EBS","1SFS3e","Unquoted - Other Investments",{"$f":"'Form 1SFS'!H37","v":0},null,{"$f":"'Form 1SFS'!I37","v":0},null,{"$f":"'Form 1SFS'!K37","v":0},null,{"$f":"'Form 1SFS'!M37","v":0},null,{"$f":"'Form 4EBS'!F29","v":0},null,{"$f":"'Form 4EBS'!H29","v":0}]
["Form 1SFS/1EBS","Balance Sheet LT/CON/EBS","1SFS4a","Inv. In Affiliates - Unregulated Ancillary",{"$f":"'Form 1SFS'!H41","v":0},null,{"$f":"'Form 1SFS'!I41","v":0},null,{"$f":"'Form 1SFS'!K41","v":0},null,{"$f":"'Form 1SFS'!M41","v":0},null,{"$f":"'Form 4EBS'!F33","v":0},null,{"$f":"'Form 4EBS'!H33","v":0}]
["Form 1SFS/1EBS","Balance Sheet LT/CON/EBS","1SFS4b","Inv. In Affiliates - Unregulated Non-Fin. Oper.",{"$f":"'Form 1SFS'!H42","v":0},null,{"$f":"'Form 1SFS'!I42","v":0},null,{"$f":"'Form 1SFS'!K42","v":0},null,{"$f":"'Form 1SFS'!M42","v":0},null,{"$f":"'Form 4EBS'!F34","v":0},null,{"$f":"'Form 4EBS'!H34","v":0}]
["Form 1SFS/1EBS","Balance Sheet LT/CON/EBS","1SFS4c","Inv. In Affiliates - Unregulated Fin. Operating",{"$f":"'Form 1SFS'!H43","v":0},null,{"$f":"'Form 1SFS'!I43","v":0},null,{"$f":"'Form 1SFS'!K43","v":0},null,{"$f":"'Form 1SFS'!M43","v":0},null,{"$f":"'Form 4EBS'!F35","v":0},null,{"$f":"'Form 4EBS'!H35","v":0}]
["Form 1SFS/1EBS","Balance Sheet LT/CON/EBS","1SFS4d","Inv. In Affiliates - Regulated Non-Insurance",{"$f":"'Form 1SFS'!H44","v":0},null,{"$f":"'Form 1SFS'!I44","v":0},null,{"$f":"'Form 1SFS'!K44","v":0},null,{"$f":"'Form 1SFS'!M44","v":0},null,{"$f":"'Form 4EBS'!F36","v":0},null,{"$f":"'Form 4EBS'!H36","v":0}]
["Form 1SFS/1EBS","Balance Sheet LT/CON/EBS","1SFS4e","Inv. In Affiliates - Regulated Insurance",{"$f":"'Form 1SFS'!H45","v":0},null,{"$f":"'Form 1SFS'!I45","v":0},null,{"$f":"'Form 1SFS'!K45","v":0},null,{"$f":"'Form 1SFS'!M45","v":0},null,{"$f":"'Form 4EBS'!F37","v":0},null,{"$f":"'Form 4EBS'!H37","v":0}]
["Form 1SFS/1EBS","Balance Sheet LT/CON/EBS","1SFS4g","Advances To Affiliates",{"$f":"'Form 1SFS'!H47","v":0},null,{"$f":"'Form 1SFS'!I47","v":0},null,{"$f":"'Form 1SFS'!K47","v":0},null,{"$f":"'Form 1SFS'!M47","v":0},null,{"$f":"'Form 4EBS'!F39","v":0},null,{"$f":"'Form 4EBS'!H39","v":0}]
["Form 1SFS/1EBS","Balance Sheet LT/CON/EBS","1SFS5a","Inv. In Mortg. Loans on Real Estate - 1st Lien",{"$f":"'Form 1SFS'!H51","v":0},null,{"$f":"'Form 1SFS'!I51","v":0},null,{"$f":"'Form 1SFS'!K51","v":0},null,{"$f":"'Form 1SFS'!M51","v":0},null,{"$f":"'Form 4EBS'!F43","v":0},null,{"$f":"'Form 4EBS'!H43","v":0}]
["Form 1SFS/1EBS","Balance Sheet LT/CON/EBS","1SFS5b","Inv. In Mortg. Loans on Real Estate - Other",{"$f":"'Form 1SFS'!H52","v":0},null,{"$f":"'Form 1SFS'!I52","v":0},null,{"$f":"'Form 1SFS'!K52","v":0},null,{"$f":"'Form 1SFS'!M52","v":0},null,{"$f":"'Form 4EBS'!F44","v":0},null,{"$f":"'Form 4EBS'!H44","v":0}]
["Form 1SFS/1EBS","Balance Sheet LT/CON/EBS","1SFS6","Policy Loans",{"$f":"'Form 1SFS'!H55","v":0},null,{"$f":"'Form 1SFS'!I55","v":0},null,{"$f":"'Form 1SFS'!K55","v":0},null,{"$f":"'Form 1SFS'!M55","v":0},null,{"$f":"'Form 4EBS'!F47","v":0},null,{"$f":"'Form 4EBS'!H47","v":0}]
["Form 1SFS/1EBS","Balance Sheet LT/CON/EBS","1SFS7a","Real Estate - Occupied by Company",{"$f":"'Form 1SFS'!H58","v":0},null,{"$f":"'Form 1SFS'!I58","v":0},null,{"$f":"'Form 1SFS'!K58","v":0},null,{"$f":"'Form 1SFS'!M58","v":0},null,{"$f":"'Form 4EBS'!F50","v":0},null,{"$f":"'Form 4EBS'!H50","v":0}]
["Form 1SFS/1EBS","Balance Sheet LT/CON/EBS","1SFS7b","Real Estate - Other",{"$f":"'Form 1SFS'!H59","v":0},null,{"$f":"'Form 1SFS'!I59","v":0},null,{"$f":"'Form 1SFS'!K59","v":0},null,{"$f":"'Form 1SFS'!M59","v":0},null,{"$f":"'Form 4EBS'!F51","v":0},null,{"$f":"'Form 4EBS'!H51","v":0}]
["Form 1SFS/1EBS","Balance Sheet LT/CON/EBS","1SFS8","Collateral Loans",{"$f":"'Form 1SFS'!H62","v":0},null,{"$f":"'Form 1SFS'!I62","v":0},null,{"$f":"'Form 1SFS'!K62","v":0},null,{"$f":"'Form 1SFS'!M62","v":0},null,{"$f":"'Form 4EBS'!F54","v":0},null,{"$f":"'Form 4EBS'!H54","v":0}]
["Form 1SFS/1EBS","Balance Sheet LT/CON/EBS","1SFS9","Investment Income Due and Accrued",{"$f":"'Form 1SFS'!H64","v":0},null,{"$f":"'Form 1SFS'!I64","v":0},null,{"$f":"'Form 1SFS'!K64","v":0},null,{"$f":"'Form 1SFS'!M64","v":0},null,{"$f":"'Form 4EBS'!F56","v":0},null,{"$f":"'Form 4EBS'!H56","v":0}]
["Form 1SFS/1EBS","Balance Sheet LT/CON/EBS","1SFS10a","Accounts & Premium Rec. - In Collection",{"$f":"'Form 1SFS'!H67","v":0},null,{"$f":"'Form 1SFS'!I67","v":0},null,{"$f":"'Form 1SFS'!K67","v":0},null,{"$f":"'Form 1SFS'!M67","v":0},null,{"$f":"'Form 4EBS'!F59","v":0},null,{"$f":"'Form 4EBS'!H59","v":0}]
["Form 1SFS/1EBS","Balance Sheet LT/CON/EBS","1SFS10b","Accounts & Premium Rec. - Not Yet Due ",{"$f":"'Form 1SFS'!H68","v":0},null,{"$f":"'Form 1SFS'!I68","v":0},null,{"$f":"'Form 1SFS'!K68","v":0},null,{"$f":"'Form 1SFS'!M68","v":0}]
["Form 1SFS/1EBS","Balance Sheet LT/CON/EBS","1SFS10c","Accounts & Premium Rec. - Retro. Contracts",{"$f":"'Form 1SFS'!H69","v":0},null,{"$f":"'Form 1SFS'!I69","v":0},null,{"$f":"'Form 1SFS'!K69","v":0},null,{"$f":"'Form 1SFS'!M69","v":0},null,{"$f":"'Form 4EBS'!F60","v":0},null,{"$f":"'Form 4EBS'!H60","v":0}]
["Form 1SFS/1EBS","Balance Sheet LT/CON/EBS","1SFS11a","R/I Balances Receivable - Foreign Affiliates",{"$f":"'Form 1SFS'!H73","v":0},null,{"$f":"'Form 1SFS'!I73","v":0},null,{"$f":"'Form 1SFS'!K73","v":0},null,{"$f":"'Form 1SFS'!M73","v":0},null,{"$f":"'Form 4EBS'!F64","v":0},null,{"$f":"'Form 4EBS'!H64","v":0}]
["Form 1SFS/1EBS","Balance Sheet LT/CON/EBS","1SFS11b","R/I Balances Receivable - Domestic Affiliates",{"$f":"'Form 1SFS'!H74","v":0},null,{"$f":"'Form 1SFS'!I74","v":0},null,{"$f":"'Form 1SFS'!K74","v":0},null,{"$f":"'Form 1SFS'!M74","v":0},null,{"$f":"'Form 4EBS'!F65","v":0},null,{"$f":"'Form 4EBS'!H65","v":0}]
["Form 1SFS/1EBS","Balance Sheet LT/CON/EBS","1SFS11c","R/I Balances Receivable - Pools & Assoc.",{"$f":"'Form 1SFS'!H75","v":0},null,{"$f":"'Form 1SFS'!I75","v":0},null,{"$f":"'Form 1SFS'!K75","v":0},null,{"$f":"'Form 1SFS'!M75","v":0},null,{"$f":"'Form 4EBS'!F66","v":0},null,{"$f":"'Form 4EBS'!H66","v":0}]
["Form 1SFS/1EBS","Balance Sheet LT/CON/EBS","1SFS11d","R/I Balances Receivable - All Other",{"$f":"'Form 1SFS'!H76","v":0},null,{"$f":"'Form 1SFS'!I76","v":0},null,{"$f":"'Form 1SFS'!K76","v":0},null,{"$f":"'Form 1SFS'!M76","v":0},null,{"$f":"'Form 4EBS'!F67","v":0},null,{"$f":"'Form 4EBS'!H67","v":0}]
["Form 1SFS/1EBS","Balance Sheet LT/CON/EBS","1EBS12a","Funds Held by Ceding Companies - Affiliates",null,null,null,null,null,null,null,null,{"$f":"'Form 4EBS'!F71","v":0},null,{"$f":"'Form 4EBS'!H71","v":0}]
["Form 1SFS/1EBS","Balance Sheet LT/CON/EBS","1EBS12b","Funds Held by Ceding Companies - Non-Aff.",null,null,null,null,null,null,null,null,{"$f":"'Form 4EBS'!F72","v":0},null,{"$f":"'Form 4EBS'!H72","v":0}]
["Form 1SFS/1EBS","Balance Sheet LT/CON/EBS","1SFS12","Funds Held by Ceding Companies ",{"$f":"'Form 1SFS'!H79","v":0},null,{"$f":"'Form 1SFS'!I79","v":0},null,{"$f":"'Form 1SFS'!K79","v":0},null,{"$f":"'Form 1SFS'!M79","v":0}]
["Form 1SFS/1EBS","Balance Sheet LT/CON/EBS","1SFS13a","Sundry Assets - Derivatives",{"$f":"'Form 1SFS'!H82","v":0},null,{"$f":"'Form 1SFS'!I82","v":0},null,{"$f":"'Form 1SFS'!K82","v":0},null,{"$f":"'Form 1SFS'!M82","v":0},null,{"$f":"'Form 4EBS'!F76","v":0},null,{"$f":"'Form 4EBS'!H76","v":0}]
["Form 1SFS/1EBS","Balance Sheet LT/CON/EBS","1SFS13b","Sundry Assets - SAC - LT- Variable Annuities",{"$f":"'Form 1SFS'!H83","v":0},null,{"$f":"'Form 1SFS'!I83","v":0},null,{"$f":"'Form 1SFS'!K83","v":0},null,{"$f":"'Form 1SFS'!M83","v":0},null,{"$f":"'Form 4EBS'!F77","v":0},null,{"$f":"'Form 4EBS'!H77","v":0}]
["Form 1SFS/1EBS","Balance Sheet LT/CON/EBS","1SFS13c","Sundry Assets - SAC - LT- Others",{"$f":"'Form 1SFS'!H84","v":0},null,{"$f":"'Form 1SFS'!I84","v":0},null,{"$f":"'Form 1SFS'!K84","v":0},null,{"$f":"'Form 1SFS'!M84","v":0},null,{"$f":"'Form 4EBS'!F78","v":0},null,{"$f":"'Form 4EBS'!H78","v":0}]
["Form 1SFS/1EBS","Balance Sheet LT/CON/EBS","1SFS13d","Sundry Assets - SAC - General Business",null,null,null,null,{"$f":"'Form 1SFS'!K85","v":0},null,{"$f":"'Form 1SFS'!M85","v":0}]
["Form 1SFS/1EBS","Balance Sheet LT/CON/EBS","1SFS13e","Sundry Assets - Deposit Assets",{"$f":"'Form 1SFS'!H86","v":0},null,{"$f":"'Form 1SFS'!I86","v":0},null,{"$f":"'Form 1SFS'!K86","v":0},null,{"$f":"'Form 1SFS'!M86","v":0},null,{"$f":"'Form 4EBS'!F79","v":0},null,{"$f":"'Form 4EBS'!H79","v":0}]
["Form 1SFS/1EBS","Balance Sheet LT/CON/EBS","1SFS13f","Sundry Assets - Deferred Acquisition Costs",{"$f":"'Form 1SFS'!H87","v":0},null,{"$f":"'Form 1SFS'!I87","v":0},null,{"$f":"'Form 1SFS'!K87","v":0},null,{"$f":"'Form 1SFS'!M87","v":0}]
["Form 1SFS/1EBS","Balance Sheet LT/CON/EBS","1SFS13g","Sundry Assets - Net Rec. for Investments",{"$f":"'Form 1SFS'!H88","v":0},null,{"$f":"'Form 1SFS'!I88","v":0},null,{"$f":"'Form 1SFS'!K88","v":0},null,{"$f":"'Form 1SFS'!M88","v":0},null,{"$f":"'Form 4EBS'!F80","v":0},null,{"$f":"'Form 4EBS'!H80","v":0}]
["Form 1SFS/1EBS","Balance Sheet LT/CON/EBS","1EBS13g","Sundry Assets - Intangible Assets",null,null,null,null,null,null,null,null,{"$f":"'Form 4EBS'!F81","v":0},null,{"$f":"'Form 4EBS'!H81","v":0}]
["Form 1SFS/1EBS","Balance Sheet LT/CON/EBS","1EBS13h","Sundry Assets - Deferred Tax Assets",null,null,null,null,null,null,null,null,{"$f":"'Form 4EBS'!F82","v":0},null,{"$f":"'Form 4EBS'!H82","v":0}]
["Form 1SFS/1EBS","Balance Sheet LT/CON/EBS","1EBS13i","Sundry Assets - Pension Benefit Surplus",null,null,null,null,null,null,null,null,{"$f":"'Form 4EBS'!F83","v":0},null,{"$f":"'Form 4EBS'!H83","v":0}]
["Form 1SFS/1EBS","Balance Sheet LT/CON/EBS","1SFS13h","Sundry Assets - Other 1",{"$f":"'Form 1SFS'!H89","v":0},null,{"$f":"'Form 1SFS'!I89","v":0},null,{"$f":"'Form 1SFS'!K89","v":0},null,{"$f":"'Form 1SFS'!M89","v":0},null,{"$f":"'Form 4EBS'!F84","v":0},null,{"$f":"'Form 4EBS'!H84","v":0}]
["Form 1SFS/1EBS","Balance Sheet LT/CON/EBS","1SFS13i","Sundry Assets - Other 2",{"$f":"'Form 1SFS'!H90","v":0},null,{"$f":"'Form 1SFS'!I90","v":0},null,{"$f":"'Form 1SFS'!K90","v":0},null,{"$f":"'Form 1SFS'!M90","v":0}]
["Form 1SFS/1EBS","Balance Sheet LT/CON/EBS","1SFS13j","Sundry Assets - Other 3",{"$f":"'Form 1SFS'!H91","v":0},null,{"$f":"'Form 1SFS'!I91","v":0},null,{"$f":"'Form 1SFS'!K91","v":0},null,{"$f":"'Form 1SFS'!M91","v":0}]
["Form 1SFS/1EBS","Balance Sheet LT/CON/EBS","1SFS14a","Letters of Credit",{"$f":"'Form 1SFS'!H95","v":0},null,{"$f":"'Form 1SFS'!I95","v":0},null,{"$f":"'Form 1SFS'!K95","v":0},null,{"$f":"'Form 1SFS'!M95","v":0},null,{"$f":"'Form 4EBS'!F88","v":0},null,{"$f":"'Form 4EBS'!H88","v":0}]
["Form 1SFS/1EBS","Balance Sheet LT/CON/EBS","1SFS14b","Guarantees",{"$f":"'Form 1SFS'!H96","v":0},null,{"$f":"'Form 1SFS'!I96","v":0},null,{"$f":"'Form 1SFS'!K96","v":0},null,{"$f":"'Form 1SFS'!M96","v":0},null,{"$f":"'Form 4EBS'!F89","v":0},null,{"$f":"'Form 4EBS'!H89","v":0}]
["Form 1SFS/1EBS","Balance Sheet LT/CON/EBS","1SFS14c","Other Instruments",{"$f":"'Form 1SFS'!H97","v":0},null,{"$f":"'Form 1SFS'!I97","v":0},null,{"$f":"'Form 1SFS'!K97","v":0},null,{"$f":"'Form 1SFS'!M97","v":0},null,{"$f":"'Form 4EBS'!F90","v":0},null,{"$f":"'Form 4EBS'!H90","v":0}]
["Form 1SFS/1EBS","Balance Sheet LT/CON/EBS","1SFS15","Total Assets",{"$f":"'Form 1SFS'!H100","v":0},null,{"$f":"'Form 1SFS'!I100","v":0}]
["Form 1SFS/1EBS","Balance Sheet LT/CON/EBS","1SFS16a","Unearned Premium Reserve - Gross",null,null,null,null,{"$f":"'Form 1SFS'!K107","v":0},null,{"$f":"'Form 1SFS'!M107","v":0}]
["Form 1SFS/1EBS","Balance Sheet LT/CON/EBS","1SFS16bi","UPR - Ceded - Foreign Affiliates",null,null,null,null,{"$f":"'Form 1SFS'!K109","v":0},null,{"$f":"'Form 1SFS'!M109","v":0}]
["Form 1SFS/1EBS","Balance Sheet LT/CON/EBS","1SFS16bii","UPR - Ceded - Domestic Affiliates",null,null,null,null,{"$f":"'Form 1SFS'!K110","v":0},null,{"$f":"'Form 1SFS'!M110","v":0}]
["Form 1SFS/1EBS","Balance Sheet LT/CON/EBS","1SFS16biii","UPR - Ceded - Pools & Assoc.",null,null,null,null,{"$f":"'Form 1SFS'!K111","v":0},null,{"$f":"'Form 1SFS'!M111","v":0}]
["Form 1SFS/1EBS","Balance Sheet LT/CON/EBS","1SFS16biv","UPR - Ceded - All Other",null,null,null,null,{"$f":"'Form 1SFS'!K112","v":0},null,{"$f":"'Form 1SFS'!M112","v":0}]
["Form 1SFS/1EBS","Balance Sheet LT/CON/EBS","1SFS17a","Loss Provision - Gross",null,null,null,null,{"$f":"'Form 1SFS'!K117","v":0},null,{"$f":"'Form 1SFS'!M117","v":0}]
["Form 1SFS/1EBS","Balance Sheet LT/CON/EBS","1SFS17bi","R/I Recoverable - Foreign Affiliates",null,null,null,null,{"$f":"'Form 1SFS'!K119","v":0},null,{"$f":"'Form 1SFS'!M119","v":0}]
["Form 1SFS/1EBS","Balance Sheet LT/CON/EBS","1SFS17bii","R/I Recoverable - Domestic Affiliates",null,null,null,null,{"$f":"'Form 1SFS'!K120","v":0},null,{"$f":"'Form 1SFS'!M120","v":0}]
["Form 1SFS/1EBS","Balance Sheet LT/CON/EBS","1SFS17biii","R/I Recoverable - Pools & Assoc.",null,null,null,null,{"$f":"'Form 1SFS'!K121","v":0},null,{"$f":"'Form 1SFS'!M121","v":0}]
["Form 1SFS/1EBS","Balance Sheet LT/CON/EBS","1SFS17biv","R/I Recoverable - All Other",null,null,null,null,{"$f":"'Form 1SFS'!K122","v":0},null,{"$f":"'Form 1SFS'!M122","v":0}]
["Form 1SFS/1EBS","Balance Sheet LT/CON/EBS","1SFS18","Risk Margin",null,null,null,null,{"$f":"'Form 1SFS'!K126","v":0},null,{"$f":"'Form 1SFS'!M126","v":0}]
["Form 1SFS/1EBS","Balance Sheet LT/CON/EBS","1SFS20","Net - Reserves for Reported Claims",{"$f":"'Form 1SFS'!H132","v":0},null,{"$f":"'Form 1SFS'!I132","v":0},null,{"$f":"'Form 1SFS'!K132","v":0},null,{"$f":"'Form 1SFS'!M132","v":0},null,{"$f":"'Form 4EBS'!F100","v":0},null,{"$f":"'Form 4EBS'!H100","v":0}]
["Form 1SFS/1EBS","Balance Sheet LT/CON/EBS","1SFS21","Net - Reserves for Unreported Claims",{"$f":"'Form 1SFS'!H134","v":0},null,{"$f":"'Form 1SFS'!I134","v":0},null,{"$f":"'Form 1SFS'!K134","v":0},null,{"$f":"'Form 1SFS'!M134","v":0},null,{"$f":"'Form 4EBS'!F102","v":0},null,{"$f":"'Form 4EBS'!H102","v":0}]
["Form 1SFS/1EBS","Balance Sheet LT/CON/EBS","1SFS22","Net - Policy Reserves - Life",{"$f":"'Form 1SFS'!H136","v":0},null,{"$f":"'Form 1SFS'!I136","v":0},null,{"$f":"'Form 1SFS'!K136","v":0},null,{"$f":"'Form 1SFS'!M136","v":0},null,{"$f":"'Form 4EBS'!F104","v":0},null,{"$f":"'Form 4EBS'!H104","v":0}]
["Form 1SFS/1EBS","Balance Sheet LT/CON/EBS","1SFS23","Net - Policy Reserves - Accident & Health",{"$f":"'Form 1SFS'!H138","v":0},null,{"$f":"'Form 1SFS'!I138","v":0},null,{"$f":"'Form 1SFS'!K138","v":0},null,{"$f":"'Form 1SFS'!M138","v":0},null,{"$f":"'Form 4EBS'!F106","v":0},null,{"$f":"'Form 4EBS'!H106","v":0}]
["Form 1SFS/1EBS","Balance Sheet LT/CON/EBS","1SFS24","Net - Policyholder's Funds on Deposit",{"$f":"'Form 1SFS'!H140","v":0},null,{"$f":"'Form 1SFS'!I140","v":0},null,{"$f":"'Form 1SFS'!K140","v":0},null,{"$f":"'Form 1SFS'!M140","v":0},null,{"$f":"'Form 4EBS'!F108","v":0},null,{"$f":"'Form 4EBS'!H108","v":0}]
["Form 1SFS/1EBS","Balance Sheet LT/CON/EBS","1SFS25","Net - Liability for Future Policyholder Dividends",{"$f":"'Form 1SFS'!H142","v":0},null,{"$f":"'Form 1SFS'!I142","v":0},null,{"$f":"'Form 1SFS'!K142","v":0},null,{"$f":"'Form 1SFS'!M142","v":0},null,{"$f":"'Form 4EBS'!F110","v":0},null,{"$f":"'Form 4EBS'!H110","v":0}]
["Form 1SFS/1EBS","Balance Sheet LT/CON/EBS","1SFS26","Net - Other LT Insurance Reserves",{"$f":"'Form 1SFS'!H144","v":0},null,{"$f":"'Form 1SFS'!I144","v":0},null,{"$f":"'Form 1SFS'!K144","v":0},null,{"$f":"'Form 1SFS'!M144","v":0},null,{"$f":"'Form 4EBS'!F112","v":0},null,{"$f":"'Form 4EBS'!H112","v":0}]
["Form 1SFS/1EBS","Balance Sheet LT/CON/EBS","1SFS27bi","R/I Recoverable - Foreign Affiliates",{"$f":"'Form 1SFS'!H149","v":0},null,{"$f":"'Form 1SFS'!I149","v":0},null,{"$f":"'Form 1SFS'!K149","v":0},null,{"$f":"'Form 1SFS'!M149","v":0},null,{"$f":"'Form 4EBS'!F117","v":0},null,{"$f":"'Form 4EBS'!H117","v":0}]
["Form 1SFS/1EBS","Balance Sheet LT/CON/EBS","1SFS27bii","R/I Recoverable - Domestic Affiliates",{"$f":"'Form 1SFS'!H150","v":0},null,{"$f":"'Form 1SFS'!I150","v":0},null,{"$f":"'Form 1SFS'!K150","v":0},null,{"$f":"'Form 1SFS'!M150","v":0},null,{"$f":"'Form 4EBS'!F118","v":0},null,{"$f":"'Form 4EBS'!H118","v":0}]
["Form 1SFS/1EBS","Balance Sheet LT/CON/EBS","1SFS27biii","R/I Recoverable - Pools & Assoc.",{"$f":"'Form 1SFS'!H151","v":0},null,{"$f":"'Form 1SFS'!I151","v":0},null,{"$f":"'Form 1SFS'!K151","v":0},null,{"$f":"'Form 1SFS'!M151","v":0},null,{"$f":"'Form 4EBS'!F119","v":0},null,{"$f":"'Form 4EBS'!H119","v":0}]
["Form 1SFS/1EBS","Balance Sheet LT/CON/EBS","1SFS27biv","R/I Recoverable - All Other",{"$f":"'Form 1SFS'!H152","v":0},null,{"$f":"'Form 1SFS'!I152","v":0},null,{"$f":"'Form 1SFS'!K152","v":0},null,{"$f":"'Form 1SFS'!M152","v":0},null,{"$f":"'Form 4EBS'!F120","v":0},null,{"$f":"'Form 4EBS'!H120","v":0}]
["Form 1SFS/1EBS","Balance Sheet LT/CON/EBS","1EBS27A","Risk Margin",null,null,null,null,null,null,null,null,{"$f":"'Form 4EBS'!F124","v":0},null,{"$f":"'Form 4EBS'!H124","v":0}]
["Form 1SFS/1EBS","Balance Sheet LT/CON/EBS","1EBS27Ba","Gross Provision - Tech. Prov. Calc. on Whole",null,null,null,null,null,null,null,null,{"$f":"'Form 4EBS'!F127","v":0},null,{"$f":"'Form 4EBS'!H127","v":0}]
["Form 1SFS/1EBS","Balance Sheet LT/CON/EBS","1EBS27Bbi","R/I Recoverable - Foreign Affiliates",null,null,null,null,null,null,null,null,{"$f":"'Form 4EBS'!F129","v":0},null,{"$f":"'Form 4EBS'!H129","v":0}]
["Form 1SFS/1EBS","Balance Sheet LT/CON/EBS","1EBS27Bbii","R/I Recoverable - Domestic Affiliates",null,null,null,null,null,null,null,null,{"$f":"'Form 4EBS'!F130","v":0},null,{"$f":"'Form 4EBS'!H130","v":0}]
["Form 1SFS/1EBS","Balance Sheet LT/CON/EBS","1EBS27Bbiii","R/I Recoverable - Pools & Assoc.",null,null,null,null,null,null,null,null,{"$f":"'Form 4EBS'!F131","v":0},null,{"$f":"'Form 4EBS'!H131","v":0}]
["Form 1SFS/1EBS","Balance Sheet LT/CON/EBS","1EBS27Bbiv","R/I Recoverable - All Other",null,null,null,null,null,null,null,null,{"$f":"'Form 4EBS'!F132","v":0},null,{"$f":"'Form 4EBS'!H132","v":0}]
["Form 1SFS/1EBS","Balance Sheet LT/CON/EBS","1SFS28","Insurance & R/I Balances Payable",{"$f":"'Form 1SFS'!H158","v":0},null,{"$f":"'Form 1SFS'!I158","v":0},null,{"$f":"'Form 1SFS'!K158","v":0},null,{"$f":"'Form 1SFS'!M158","v":0},null,{"$f":"'Form 4EBS'!F140","v":0},null,{"$f":"'Form 4EBS'!H140","v":0}]
["Form 1SFS/1EBS","Balance Sheet LT/CON/EBS","1SFS29","Commissions, Expenses and Taxes Payable",{"$f":"'Form 1SFS'!H160","v":0},null,{"$f":"'Form 1SFS'!I160","v":0},null,{"$f":"'Form 1SFS'!K160","v":0},null,{"$f":"'Form 1SFS'!M160","v":0},null,{"$f":"'Form 4EBS'!F142","v":0},null,{"$f":"'Form 4EBS'!H142","v":0}]
["Form 1SFS/1EBS","Balance Sheet LT/CON/EBS","1SFS30","Loans and Notes Payable",{"$f":"'Form 1SFS'!H162","v":0},null,{"$f":"'Form 1SFS'!I162","v":0},null,{"$f":"'Form 1SFS'!K162","v":0},null,{"$f":"'Form 1SFS'!M162","v":0},null,{"$f":"'Form 4EBS'!F144","v":0},null,{"$f":"'Form 4EBS'!H144","v":0}]
["Form 1SFS/1EBS","Balance Sheet LT/CON/EBS","1SFS31a","Income Taxes Payable",{"$f":"'Form 1SFS'!H164","v":0},null,{"$f":"'Form 1SFS'!I164","v":0},null,{"$f":"'Form 1SFS'!K164","v":0},null,{"$f":"'Form 1SFS'!M164","v":0},null,{"$f":"'Form 4EBS'!F147","v":0},null,{"$f":"'Form 4EBS'!H147","v":0}]
["Form 1SFS/1EBS","Balance Sheet LT/CON/EBS","1SFS31b","Deferred Taxes Payable",{"$f":"'Form 1SFS'!H166","v":0},null,{"$f":"'Form 1SFS'!I166","v":0},null,{"$f":"'Form 1SFS'!K166","v":0},null,{"$f":"'Form 1SFS'!M166","v":0},null,{"$f":"'Form 4EBS'!F148","v":0},null,{"$f":"'Form 4EBS'!H148","v":0}]
["Form 1SFS/1EBS","Balance Sheet LT/CON/EBS","1SFS32","Amounts Due to Affiliates",{"$f":"'Form 1SFS'!H168","v":0},null,{"$f":"'Form 1SFS'!I168","v":0},null,{"$f":"'Form 1SFS'!K168","v":0},null,{"$f":"'Form 1SFS'!M168","v":0},null,{"$f":"'Form 4EBS'!F150","v":0},null,{"$f":"'Form 4EBS'!H150","v":0}]
["Form 1SFS/1EBS","Balance Sheet LT/CON/EBS","1SFS33","Accounts Payable and Accrued Liabilities",{"$f":"'Form 1SFS'!H170","v":0},null,{"$f":"'Form 1SFS'!I170","v":0},null,{"$f":"'Form 1SFS'!K170","v":0},null,{"$f":"'Form 1SFS'!M170","v":0},null,{"$f":"'Form 4EBS'!F152","v":0},null,{"$f":"'Form 4EBS'!H152","v":0}]
["Form 1SFS/1EBS","Balance Sheet LT/CON/EBS","1EBS34a","Funds Held under R/I Contracts - Affiliates",null,null,null,null,null,null,null,null,{"$f":"'Form 4EBS'!F155","v":0},null,{"$f":"'Form 4EBS'!H155","v":0}]
["Form 1SFS/1EBS","Balance Sheet LT/CON/EBS","1EBS34b","Funds Held under R/I Contracts - Non-Aff.",null,null,null,null,null,null,null,null,{"$f":"'Form 4EBS'!F156","v":0},null,{"$f":"'Form 4EBS'!H156","v":0}]
["Form 1SFS/1EBS","Balance Sheet LT/CON/EBS","1SFS34","Funds Held under R/I Contracts",{"$f":"'Form 1SFS'!H172","v":0},null,{"$f":"'Form 1SFS'!I172","v":0},null,{"$f":"'Form 1SFS'!K172","v":0},null,{"$f":"'Form 1SFS'!M172","v":0},null,{"$f":"'Form 4EBS'!F157","v":0},null,{"$f":"'Form 4EBS'!H157","v":0}]
["Form 1SFS/1EBS","Balance Sheet LT/CON/EBS","1SFS35","Dividends Payable",{"$f":"'Form 1SFS'!H174","v":0},null,{"$f":"'Form 1SFS'!I174","v":0},null,{"$f":"'Form 1SFS'!K174","v":0},null,{"$f":"'Form 1SFS'!M174","v":0},null,{"$f":"'Form 4EBS'!F159","v":0},null,{"$f":"'Form 4EBS'!H159","v":0}]
["Form 1SFS/1EBS","Balance Sheet LT/CON/EBS","1SFS36a","Sundry Liabilities - Derivative Instruments",{"$f":"'Form 1SFS'!H177","v":0},null,{"$f":"'Form 1SFS'!I177","v":0},null,{"$f":"'Form 1SFS'!K177","v":0},null,{"$f":"'Form 1SFS'!M177","v":0},null,{"$f":"'Form 4EBS'!F162","v":0},null,{"$f":"'Form 4EBS'!H162","v":0}]
["Form 1SFS/1EBS","Balance Sheet LT/CON/EBS","1EBS36b","Sundry Liabilities - Der. Instr. - Non-Hedge Purp.",null,null,null,null,null,null,null,null,{"$f":"'Form 4EBS'!F163","v":0},null,{"$f":"'Form 4EBS'!H163","v":0}]
["Form 1SFS/1EBS","Balance Sheet LT/CON/EBS","1SFS36b","Sundry Liabilities - Segregated Accounts",{"$f":"'Form 1SFS'!H178","v":0},null,{"$f":"'Form 1SFS'!I178","v":0},null,{"$f":"'Form 1SFS'!K178","v":0},null,{"$f":"'Form 1SFS'!M178","v":0},null,{"$f":"'Form 4EBS'!F164","v":0},null,{"$f":"'Form 4EBS'!H164","v":0}]
["Form 1SFS/1EBS","Balance Sheet LT/CON/EBS","1EBS36d","Sundry Liabilities - SAC - LT - Other",null,null,null,null,null,null,null,null,{"$f":"'Form 4EBS'!F165","v":0},null,{"$f":"'Form 4EBS'!H165","v":0}]
["Form 1SFS/1EBS","Balance Sheet LT/CON/EBS","1SFS36c","Sundry Liabilities - Deposit Liabilities",{"$f":"'Form 1SFS'!H179","v":0},null,{"$f":"'Form 1SFS'!I179","v":0},null,{"$f":"'Form 1SFS'!K179","v":0},null,{"$f":"'Form 1SFS'!M179","v":0},null,{"$f":"'Form 4EBS'!F166","v":0},null,{"$f":"'Form 4EBS'!H166","v":0}]
["Form 1SFS/1EBS","Balance Sheet LT/CON/EBS","1EBS36g","Sundry Liabilities - Pension Benefit Oblig.",null,null,null,null,null,null,null,null,{"$f":"'Form 4EBS'!F167","v":0},null,{"$f":"'Form 4EBS'!H167","v":0}]
["Form 1SFS/1EBS","Balance Sheet LT/CON/EBS","1SFS36h","Sundry Liabilities - Investments Purchased",{"$f":"'Form 1SFS'!H180","v":0},null,{"$f":"'Form 1SFS'!I180","v":0},null,{"$f":"'Form 1SFS'!K180","v":0},null,{"$f":"'Form 1SFS'!M180","v":0},null,{"$f":"'Form 4EBS'!F168","v":0},null,{"$f":"'Form 4EBS'!H168","v":0}]
["Form 1SFS/1EBS","Balance Sheet LT/CON/EBS","1SFS36e","Sundry Liabilities - Other 1",{"$f":"'Form 1SFS'!H181","v":0},null,{"$f":"'Form 1SFS'!I181","v":0},null,{"$f":"'Form 1SFS'!K181","v":0},null,{"$f":"'Form 1SFS'!M181","v":0},null,{"$f":"'Form 4EBS'!F169","v":0},null,{"$f":"'Form 4EBS'!H169","v":0}]
["Form 1SFS/1EBS","Balance Sheet LT/CON/EBS","1SFS36f","Sundry Liabilities - Other 2",{"$f":"'Form 1SFS'!H182","v":0},null,{"$f":"'Form 1SFS'!I182","v":0},null,{"$f":"'Form 1SFS'!K182","v":0},null,{"$f":"'Form 1SFS'!M182","v":0}]
["Form 1SFS/1EBS","Balance Sheet LT/CON/EBS","1SFS36g","Sundry Liabilities - Other 3",{"$f":"'Form 1SFS'!H183","v":0},null,{"$f":"'Form 1SFS'!I183","v":0},null,{"$f":"'Form 1SFS'!K183","v":0},null,{"$f":"'Form 1SFS'!M183","v":0}]
["Form 1SFS/1EBS","Balance Sheet LT/CON/EBS","1SFS37a","Letters of Credit",{"$f":"'Form 1SFS'!H187","v":0},null,{"$f":"'Form 1SFS'!I187","v":0},null,{"$f":"'Form 1SFS'!K187","v":0},null,{"$f":"'Form 1SFS'!M187","v":0},null,{"$f":"'Form 4EBS'!F173","v":0},null,{"$f":"'Form 4EBS'!H173","v":0}]
["Form 1SFS/1EBS","Balance Sheet LT/CON/EBS","1SFS37b","Guarantees",{"$f":"'Form 1SFS'!H188","v":0},null,{"$f":"'Form 1SFS'!I188","v":0},null,{"$f":"'Form 1SFS'!K188","v":0},null,{"$f":"'Form 1SFS'!M188","v":0},null,{"$f":"'Form 4EBS'!F174","v":0},null,{"$f":"'Form 4EBS'!H174","v":0}]
["Form 1SFS/1EBS","Balance Sheet LT/CON/EBS","1SFS37c","Other Instruments",{"$f":"'Form 1SFS'!H189","v":0},null,{"$f":"'Form 1SFS'!I189","v":0},null,{"$f":"'Form 1SFS'!K189","v":0},null,{"$f":"'Form 1SFS'!M189","v":0},null,{"$f":"'Form 4EBS'!F175","v":0},null,{"$f":"'Form 4EBS'!H175","v":0}]
["Form 1SFS/1EBS","Balance Sheet LT/CON/EBS","1EBS40","Economic Capital & Surplus",null,null,null,null,null,null,null,null,{"$f":"'Form 4EBS'!F184","v":0},null,{"$f":"'Form 4EBS'!H184","v":0}]
[]
["Form 1SFS","Balance Sheet GEN","1SFS1","Cash and Cash Equivalents",{"$f":"'Form 1SFS'!F12","v":0},null,{"$f":"'Form 1SFS'!G12","v":0}]
["Form 1SFS","Balance Sheet GEN","1SFS2ai","Quoted - Bonds - Held to Maturity",{"$f":"'Form 1SFS'!F16","v":0},null,{"$f":"'Form 1SFS'!G16","v":0}]
["Form 1SFS","Balance Sheet GEN","1SFS2aii","Quoted - Bonds - Other",{"$f":"'Form 1SFS'!F17","v":0},null,{"$f":"'Form 1SFS'!G17","v":0}]
["Form 1SFS","Balance Sheet GEN","1SFS2ci","Quoted - Equities - Common Stocks",{"$f":"'Form 1SFS'!F20","v":0},null,{"$f":"'Form 1SFS'!G20","v":0}]
["Form 1SFS","Balance Sheet GEN","1SFS2cii","Quoted - Equities - Preferred Stocks",{"$f":"'Form 1SFS'!F21","v":0},null,{"$f":"'Form 1SFS'!G21","v":0}]
["Form 1SFS","Balance Sheet GEN","1SFS2ciii","Quoted - Equities - Mutual Funds",{"$f":"'Form 1SFS'!F22","v":0},null,{"$f":"'Form 1SFS'!G22","v":0}]
["Form 1SFS","Balance Sheet GEN","1SFS2e","Quoted - Other Investments",{"$f":"'Form 1SFS'!F24","v":0},null,{"$f":"'Form 1SFS'!G24","v":0}]
["Form 1SFS","Balance Sheet GEN","1SFS3ai","Unquoted - Bonds - Held to Maturity",{"$f":"'Form 1SFS'!F29","v":0},null,{"$f":"'Form 1SFS'!G29","v":0}]
["Form 1SFS","Balance Sheet GEN","1SFS3aii","Unquoted - Bonds - Other",{"$f":"'Form 1SFS'!F30","v":0},null,{"$f":"'Form 1SFS'!G30","v":0}]
["Form 1SFS","Balance Sheet GEN","1SFS3ci","Unquoted - Equities - Common Stocks",{"$f":"'Form 1SFS'!F33","v":0},null,{"$f":"'Form 1SFS'!G33","v":0}]
["Form 1SFS","Balance Sheet GEN","1SFS3cii","Unquoted - Equities - Preferred Stocks",{"$f":"'Form 1SFS'!F34","v":0},null,{"$f":"'Form 1SFS'!G34","v":0}]
["Form 1SFS","Balance Sheet GEN","1SFS3ciii","Unquoted - Equities - Mutual Funds",{"$f":"'Form 1SFS'!F35","v":0},null,{"$f":"'Form 1SFS'!G35","v":0}]
["Form 1SFS","Balance Sheet GEN","1SFS3e","Unquoted - Other Investments",{"$f":"'Form 1SFS'!F37","v":0},null,{"$f":"'Form 1SFS'!G37","v":0}]
["Form 1SFS","Balance Sheet GEN","1SFS4a","Inv. In Affiliates - Unregulated Ancillary",{"$f":"'Form 1SFS'!F41","v":0},null,{"$f":"'Form 1SFS'!G41","v":0}]
["Form 1SFS","Balance Sheet GEN","1SFS4b","Inv. In Affiliates - Unregulated Non-Fin. Oper.",{"$f":"'Form 1SFS'!F42","v":0},null,{"$f":"'Form 1SFS'!G42","v":0}]
["Form 1SFS","Balance Sheet GEN","1SFS4c","Inv. In Affiliates - Unregulated Fin. Operating",{"$f":"'Form 1SFS'!F43","v":0},null,{"$f":"'Form 1SFS'!G43","v":0}]
["Form 1SFS","Balance Sheet GEN","1SFS4d","Inv. In Affiliates - Regulated Non-Insurance",{"$f":"'Form 1SFS'!F44","v":0},null,{"$f":"'Form 1SFS'!G44","v":0}]
["Form 1SFS","Balance Sheet GEN","1SFS4e","Inv. In Affiliates - Regulated Insurance",{"$f":"'Form 1SFS'!F45","v":0},null,{"$f":"'Form 1SFS'!G45","v":0}]
["Form 1SFS","Balance Sheet GEN","1SFS4g","Advances To Affiliates",{"$f":"'Form 1SFS'!F47","v":0},null,{"$f":"'Form 1SFS'!G47","v":0}]
["Form 1SFS","Balance Sheet GEN","1SFS5a","Inv. In Mortg. Loans on Real Estate - 1st Lien",{"$f":"'Form 1SFS'!F51","v":0},null,{"$f":"'Form 1SFS'!G51","v":0}]
["Form 1SFS","Balance Sheet GEN","1SFS5b","Inv. In Mortg. Loans on Real Estate - Other",{"$f":"'Form 1SFS'!F52","v":0},null,{"$f":"'Form 1SFS'!G52","v":0}]
["Form 1SFS","Balance Sheet GEN","1SFS7a","Real Estate - Occupied by Company",{"$f":"'Form 1SFS'!F58","v":0},null,{"$f":"'Form 1SFS'!G58","v":0}]
["Form 1SFS","Balance Sheet GEN","1SFS7b","Real Estate - Other",{"$f":"'Form 1SFS'!F59","v":0},null,{"$f":"'Form 1SFS'!G59","v":0}]
["Form 1SFS","Balance Sheet GEN","1SFS8","Collateral Loans",{"$f":"'Form 1SFS'!F62","v":0},null,{"$f":"'Form 1SFS'!G62","v":0}]
["Form 1SFS","Balance Sheet GEN","1SFS9","Investment Income Due and Accrued",{"$f":"'Form 1SFS'!F64","v":0},null,{"$f":"'Form 1SFS'!G64","v":0}]
["Form 1SFS","Balance Sheet GEN","1SFS10a","Accounts & Premium Rec. - In Collection",{"$f":"'Form 1SFS'!F67","v":0},null,{"$f":"'Form 1SFS'!G67","v":0}]
["Form 1SFS","Balance Sheet GEN","1SFS10b","Accounts & Premium Rec. - Not Yet Due ",{"$f":"'Form 1SFS'!F68","v":0},null,{"$f":"'Form 1SFS'!G68","v":0}]
["Form 1SFS","Balance Sheet GEN","1SFS10c","Accounts & Premium Rec. - Retro. Contracts",{"$f":"'Form 1SFS'!F69","v":0},null,{"$f":"'Form 1SFS'!G69","v":0}]
["Form 1SFS","Balance Sheet GEN","1SFS11a","R/I Balances Receivable - Foreign Affiliates",{"$f":"'Form 1SFS'!F73","v":0},null,{"$f":"'Form 1SFS'!G73","v":0}]
["Form 1SFS","Balance Sheet GEN","1SFS11b","R/I Balances Receivable - Domestic Affiliates",{"$f":"'Form 1SFS'!F74","v":0},null,{"$f":"'Form 1SFS'!G74","v":0}]
["Form 1SFS","Balance Sheet GEN","1SFS11c","R/I Balances Receivable - Pools & Assoc.",{"$f":"'Form 1SFS'!F75","v":0},null,{"$f":"'Form 1SFS'!G75","v":0}]
["Form 1SFS","Balance Sheet GEN","1SFS11d","R/I Balances Receivable - All Other",{"$f":"'Form 1SFS'!F76","v":0},null,{"$f":"'Form 1SFS'!G76","v":0}]
["Form 1SFS","Balance Sheet GEN","1SFS12","Funds Held by Ceding Companies ",{"$f":"'Form 1SFS'!F79","v":0},null,{"$f":"'Form 1SFS'!G79","v":0}]
["Form 1SFS","Balance Sheet GEN","1SFS13a","Sundry Assets - Derivatives",{"$f":"'Form 1SFS'!F82","v":0},null,{"$f":"'Form 1SFS'!G82","v":0}]
["Form 1SFS","Balance Sheet GEN","1SFS13d","Sundry Assets - SAC - General Business",{"$f":"'Form 1SFS'!F85","v":0},null,{"$f":"'Form 1SFS'!G85","v":0}]
["Form 1SFS","Balance Sheet GEN","1SFS13e","Sundry Assets - Deposit Assets",{"$f":"'Form 1SFS'!F86","v":0},null,{"$f":"'Form 1SFS'!G86","v":0}]
["Form 1SFS","Balance Sheet GEN","1SFS13f","Sundry Assets - Deferred Acquisition Costs",{"$f":"'Form 1SFS'!F87","v":0},null,{"$f":"'Form 1SFS'!G87","v":0}]
["Form 1SFS","Balance Sheet GEN","1SFS36d","Sundry Assets - Net Rec. for Investments",{"$f":"'Form 1SFS'!F88","v":0},null,{"$f":"'Form 1SFS'!G88","v":0}]
["Form 1SFS","Balance Sheet GEN","1SFS13h","Sundry Assets - Other 1",{"$f":"'Form 1SFS'!F89","v":0},null,{"$f":"'Form 1SFS'!G89","v":0}]
["Form 1SFS","Balance Sheet GEN","1SFS13i","Sundry Assets - Other 2",{"$f":"'Form 1SFS'!F90","v":0},null,{"$f":"'Form 1SFS'!G90","v":0}]
["Form 1SFS","Balance Sheet GEN","1SFS13j","Sundry Assets - Other 3",{"$f":"'Form 1SFS'!F91","v":0},null,{"$f":"'Form 1SFS'!G91","v":0}]
["Form 1SFS","Balance Sheet GEN","1SFS14a","Letters of Credit",{"$f":"'Form 1SFS'!F95","v":0},null,{"$f":"'Form 1SFS'!G95","v":0}]
["Form 1SFS","Balance Sheet GEN","1SFS14b","Guarantees",{"$f":"'Form 1SFS'!F96","v":0},null,{"$f":"'Form 1SFS'!G96","v":0}]
["Form 1SFS","Balance Sheet GEN","1SFS14c","Other Instruments",{"$f":"'Form 1SFS'!F97","v":0},null,{"$f":"'Form 1SFS'!G97","v":0}]
["Form 1SFS","Balance Sheet GEN","1SFS15","Total Assets",{"$f":"'Form 1SFS'!F100","v":0},null,{"$f":"'Form 1SFS'!G100","v":0}]
["Form 1SFS","Balance Sheet GEN","1SFS16a","Unearned Premium Reserve - Gross",{"$f":"'Form 1SFS'!F107","v":0},null,{"$f":"'Form 1SFS'!G107","v":0}]
["Form 1SFS","Balance Sheet GEN","1SFS16bi","UPR - Ceded - Foreign Affiliates",{"$f":"'Form 1SFS'!F109","v":0},null,{"$f":"'Form 1SFS'!G109","v":0}]
["Form 1SFS","Balance Sheet GEN","1SFS16bii","UPR - Ceded - Domestic Affiliates",{"$f":"'Form 1SFS'!F110","v":0},null,{"$f":"'Form 1SFS'!G110","v":0}]
["Form 1SFS","Balance Sheet GEN","1SFS16biii","UPR - Ceded - Pools & Assoc.",{"$f":"'Form 1SFS'!F111","v":0},null,{"$f":"'Form 1SFS'!G111","v":0}]
["Form 1SFS","Balance Sheet GEN","1SFS16biv","UPR - Ceded - All Other",{"$f":"'Form 1SFS'!F112","v":0},null,{"$f":"'Form 1SFS'!G112","v":0}]
["Form 1SFS","Balance Sheet GEN","1SFS17a","Loss Provision - Gross",{"$f":"'Form 1SFS'!F117","v":0},null,{"$f":"'Form 1SFS'!G117","v":0}]
["Form 1SFS","Balance Sheet GEN","1SFS17bi","R/I Recoverable - Foreign Affiliates",{"$f":"'Form 1SFS'!F119","v":0},null,{"$f":"'Form 1SFS'!G119","v":0}]
["Form 1SFS","Balance Sheet GEN","1SFS17bii","R/I Recoverable - Domestic Affiliates",{"$f":"'Form 1SFS'!F120","v":0},null,{"$f":"'Form 1SFS'!G120","v":0}]
["Form 1SFS","Balance Sheet GEN","1SFS17biii","R/I Recoverable - Pools & Assoc.",{"$f":"'Form 1SFS'!F121","v":0},null,{"$f":"'Form 1SFS'!G121","v":0}]
["Form 1SFS","Balance Sheet GEN","1SFS17biv","R/I Recoverable - All Other",{"$f":"'Form 1SFS'!F122","v":0},null,{"$f":"'Form 1SFS'!G122","v":0}]
["Form 1SFS","Balance Sheet GEN","1SFS18","Other Insurance Reserves",{"$f":"'Form 1SFS'!F126","v":0},null,{"$f":"'Form 1SFS'!G126","v":0}]
["Form 1SFS","Balance Sheet GEN","1SFS28","Insurance & R/I Balances Payable",{"$f":"'Form 1SFS'!F158","v":0},null,{"$f":"'Form 1SFS'!G158","v":0}]
["Form 1SFS","Balance Sheet GEN","1SFS29","Commissions, Expenses and Taxes Payable",{"$f":"'Form 1SFS'!F160","v":0},null,{"$f":"'Form 1SFS'!G160","v":0}]
["Form 1SFS","Balance Sheet GEN","1SFS30","Loans and Notes Payable",{"$f":"'Form 1SFS'!F162","v":0},null,{"$f":"'Form 1SFS'!G162","v":0}]
["Form 1SFS","Balance Sheet GEN","1SFS31a","Income Taxes Payable",{"$f":"'Form 1SFS'!F164","v":0},null,{"$f":"'Form 1SFS'!G164","v":0}]
["Form 1SFS","Balance Sheet GEN","1SFS31b","Deferred Taxes Payable",{"$f":"'Form 1SFS'!F166","v":0},null,{"$f":"'Form 1SFS'!G166","v":0}]
["Form 1SFS","Balance Sheet GEN","1SFS32","Amounts Due to Affiliates",{"$f":"'Form 1SFS'!F168","v":0},null,{"$f":"'Form 1SFS'!G168","v":0}]
["Form 1SFS","Balance Sheet GEN","1SFS33","Accounts Payable and Accrued Liabilities",{"$f":"'Form 1SFS'!F170","v":0},null,{"$f":"'Form 1SFS'!G170","v":0}]
["Form 1SFS","Balance Sheet GEN","1SFS34","Funds Held under R/I Contracts",{"$f":"'Form 1SFS'!F172","v":0},null,{"$f":"'Form 1SFS'!G172","v":0}]
["Form 1SFS","Balance Sheet GEN","1SFS35","Dividends Payable",{"$f":"'Form 1SFS'!F174","v":0},null,{"$f":"'Form 1SFS'!G174","v":0}]
["Form 1SFS","Balance Sheet GEN","1SFS36a","Sundry Liabilities - Derivative Instruments",{"$f":"'Form 1SFS'!F177","v":0},null,{"$f":"'Form 1SFS'!G177","v":0}]
["Form 1SFS","Balance Sheet GEN","1SFS36b","Sundry Liabilities - Segregated Accounts",{"$f":"'Form 1SFS'!F178","v":0},null,{"$f":"'Form 1SFS'!G178","v":0}]
["Form 1SFS","Balance Sheet GEN","1SFS36c","Sundry Liabilities - Deposit Liabilities",{"$f":"'Form 1SFS'!F179","v":0},null,{"$f":"'Form 1SFS'!G179","v":0}]
["Form 1SFS","Balance Sheet GEN","1SFS36d","Sundry Liabilities - Investments Purchased",{"$f":"'Form 1SFS'!F180","v":0},null,{"$f":"'Form 1SFS'!G180","v":0}]
["Form 1SFS","Balance Sheet GEN","1SFS36e","Sundry Liabilities - Other 1",{"$f":"'Form 1SFS'!F181","v":0},null,{"$f":"'Form 1SFS'!G181","v":0}]
["Form 1SFS","Balance Sheet GEN","1SFS36f","Sundry Liabilities - Other 2",{"$f":"'Form 1SFS'!F182","v":0},null,{"$f":"'Form 1SFS'!G182","v":0}]
["Form 1SFS","Balance Sheet GEN","1SFS36g","Sundry Liabilities - Other 3",{"$f":"'Form 1SFS'!F183","v":0},null,{"$f":"'Form 1SFS'!G183","v":0}]
["Form 1SFS","Balance Sheet GEN","1SFS37a","Letters of Credit",{"$f":"'Form 1SFS'!F187","v":0},null,{"$f":"'Form 1SFS'!G187","v":0}]
["Form 1SFS","Balance Sheet GEN","1SFS37b","Guarantees",{"$f":"'Form 1SFS'!F188","v":0},null,{"$f":"'Form 1SFS'!G188","v":0}]
["Form 1SFS","Balance Sheet GEN","1SFS37c","Other Instruments",{"$f":"'Form 1SFS'!F189","v":0},null,{"$f":"'Form 1SFS'!G189","v":0}]
[]
["Form 1SFS","Notes","Form 1SFS","Line 10 - Collaterized Balances",{"$f":"'Form 1SFS'!K210","v":0},null,{"$f":"'Form 1SFS'!M210","v":0},null,null,null,null,null,{"$f":"'Form 4EBS'!F196","v":0}]
["Form 1SFS","Notes","Form 1SFS","Line 11(e) - Collaterized Balances",{"$f":"'Form 1SFS'!K212","v":0},null,null,null,null,null,null,null,{"$f":"'Form 4EBS'!F197","v":0}]
["Form 1SFS","Notes","Form 1SFS","Line 27cii - Collat. in Favor of Insurer",{"$f":"'Form 1SFS'!K214","v":0},null,null,null,null,null,null,null,{"$f":"'Form 4EBS'!F198","v":0}]
["Form 1SFS","Notes","Form 1SFS","Line 13 - Sundry Assets",{"$f":"'Form 1SFS'!K216","v":0},null,{"$f":"'Form 1SFS'!M216","v":0},null,null,null,null,null,{"$f":"'Form 4EBS'!F200","v":0}]
["Form 1SFS","Notes","Form 1SFS","Line 15 - Policy. Oblig. - Cash",{"$f":"'Form 1SFS'!K221","v":0},null,{"$f":"'Form 1SFS'!M221","v":0},null,null,null,null,null,{"$f":"'Form 4EBS'!F206","v":0},null,{"$f":"'Form 4EBS'!H206","v":0}]
["Form 1SFS","Notes","Form 1SFS","Line 15 - Policy. Oblig. - Quoted. Inv.",{"$f":"'Form 1SFS'!K222","v":0},null,{"$f":"'Form 1SFS'!M222","v":0},null,null,null,null,null,{"$f":"'Form 4EBS'!F207","v":0},null,{"$f":"'Form 4EBS'!H207","v":0}]
["Form 1SFS","Notes","Form 1SFS","Line 15 - Policy. Oblig. - Unquoted. Inv.",{"$f":"'Form 1SFS'!K223","v":0},null,{"$f":"'Form 1SFS'!M223","v":0},null,null,null,null,null,{"$f":"'Form 4EBS'!F208","v":0},null,{"$f":"'Form 4EBS'!H208","v":0}]
["Form 1SFS","Notes","Form 1SFS","Line 15 - Policy. Oblig. - Funds Held",{"$f":"'Form 1SFS'!K224","v":0},null,{"$f":"'Form 1SFS'!M224","v":0},null,null,null,null,null,{"$f":"'Form 4EBS'!F209","v":0},null,{"$f":"'Form 4EBS'!H209","v":0}]
["Form 1SFS","Notes","Form 1SFS","Line 15 - Policy. Oblig. - Other Assets",{"$f":"'Form 1SFS'!K225","v":0},null,{"$f":"'Form 1SFS'!M225","v":0},null,null,null,null,null,{"$f":"'Form 4EBS'!F210","v":0},null,{"$f":"'Form 4EBS'!H210","v":0}]
["Form 1SFS","Notes","Form 1SFS","Line 15 - Policy. Oblig. - Total",{"$f":"'Form 1SFS'!K226","v":0},null,{"$f":"'Form 1SFS'!M226","v":0},null,null,null,null,null,{"$f":"'Form 4EBS'!F211","v":0},null,{"$f":"'Form 4EBS'!H211","v":0}]
["Form 1SFS","Notes","Form 1SFS","Line 15 - Other - Cash",{"$f":"'Form 1SFS'!K231","v":0},null,{"$f":"'Form 1SFS'!M231","v":0},null,null,null,null,null,{"$f":"'Form 4EBS'!F216","v":0},null,{"$f":"'Form 4EBS'!H216","v":0}]
["Form 1SFS","Notes","Form 1SFS","Line 15 - Other - Quoted. Inv.",{"$f":"'Form 1SFS'!K232","v":0},null,{"$f":"'Form 1SFS'!M232","v":0},null,null,null,null,null,{"$f":"'Form 4EBS'!F217","v":0},null,{"$f":"'Form 4EBS'!H217","v":0}]
["Form 1SFS","Notes","Form 1SFS","Line 15 - Other - Unquoted. Inv.",{"$f":"'Form 1SFS'!K233","v":0},null,{"$f":"'Form 1SFS'!M233","v":0},null,null,null,null,null,{"$f":"'Form 4EBS'!F218","v":0},null,{"$f":"'Form 4EBS'!H218","v":0}]
["Form 1SFS","Notes","Form 1SFS","Line 15 - Other - Other Assets",{"$f":"'Form 1SFS'!K234","v":0},null,{"$f":"'Form 1SFS'!M234","v":0},null,null,null,null,null,{"$f":"'Form 4EBS'!F219","v":0},null,{"$f":"'Form 4EBS'!H219","v":0}]
["Form 1SFS","Notes","Form 1SFS","Line 15 - Other - Total",{"$f":"'Form 1SFS'!K235","v":0},null,{"$f":"'Form 1SFS'!M235","v":0},null,null,null,null,null,{"$f":"'Form 4EBS'!F220","v":0},null,{"$f":"'Form 4EBS'!H220","v":0}]
["Form 1SFS","Notes","Form 1SFS","Line 36 - Sundry Liabilities",{"$f":"'Form 1SFS'!K237","v":0},null,{"$f":"'Form 1SFS'!M237","v":0},null,null,null,null,null,{"$f":"'Form 4EBS'!F222","v":0}]
["Form 1SFS","Notes","Form 1SFS","Line 37 - LOC's & Guarantees",{"$f":"'Form 1SFS'!K239","v":0},null,{"$f":"'Form 1SFS'!M239","v":0},null,null,null,null,null,{"$f":"'Form 4EBS'!F224","v":0}]
["Form 1SFS","Notes","Form 1SFS","Line 17 - Prior year note disclosure",{"$f":"'Form 1SFS'!I242","v":0}]
["Form 1SFS","Notes","Form 1SFS","Gross Provision - Beg. Of Year",{"$f":"'Form 1SFS'!K251","v":0},null,{"$f":"'Form 1SFS'!M251","v":0}]
["Form 1SFS","Notes","Form 1SFS","R/I Recoverable - Beg. Of Year",{"$f":"'Form 1SFS'!K253","v":0},null,{"$f":"'Form 1SFS'!M253","v":0}]
["Form 1SFS","Notes","Form 1SFS","Net Provision - Beg. Of Year",{"$f":"'Form 1SFS'!K255","v":0},null,{"$f":"'Form 1SFS'!M255","v":0}]
["Form 1SFS","Notes","Form 1SFS","Acquisition / Sale of loss reserves (net):",{"$f":"'Form 1SFS'!K257","v":0},null,{"$f":"'Form 1SFS'!M257","v":0}]
["Form 1SFS","Notes","Form 1SFS","Net Losses Incurred - Current Year",{"$f":"'Form 1SFS'!K261","v":0},null,{"$f":"'Form 1SFS'!M261","v":0}]
["Form 1SFS","Notes","Form 1SFS","Net Losses Incurred - Prior Years",{"$f":"'Form 1SFS'!K262","v":0},null,{"$f":"'Form 1SFS'!M262","v":0}]
["Form 1SFS","Notes","Form 1SFS","Net Losses Incurred - Total",{"$f":"'Form 1SFS'!K264","v":0},null,{"$f":"'Form 1SFS'!M264","v":0}]
["Form 1SFS","Notes","Form 1SFS","Losses Paid - Current Year",{"$f":"'Form 1SFS'!K268","v":0},null,{"$f":"'Form 1SFS'!M268","v":0}]
["Form 1SFS","Notes","Form 1SFS","Losses Paid - Prior Years",{"$f":"'Form 1SFS'!K269","v":0},null,{"$f":"'Form 1SFS'!M269","v":0}]
["Form 1SFS","Notes","Form 1SFS","Losses Paid - Total",{"$f":"'Form 1SFS'!K271","v":0},null,{"$f":"'Form 1SFS'!M271","v":0}]
["Form 1SFS","Notes","Form 1SFS","Foreign Exchange and Other",{"$f":"'Form 1SFS'!K273","v":0},null,{"$f":"'Form 1SFS'!M273","v":0}]
["Form 1SFS","Notes","Form 1SFS","Net Provision - End Of Year",{"$f":"'Form 1SFS'!K275","v":0},null,{"$f":"'Form 1SFS'!M275","v":0}]
["Form 1SFS","Notes","Form 1SFS","R/I Recoverable - End Of Year",{"$f":"'Form 1SFS'!K277","v":0},null,{"$f":"'Form 1SFS'!M277","v":0}]
["Form 1SFS","Notes","Form 1SFS","Gross Provision - End Of Year",{"$f":"'Form 1SFS'!K279","v":0},null,{"$f":"'Form 1SFS'!M279","v":0}]
["Form 1SFS","Notes","Form 1SFS","Insurance - Gross - Open Balance",{"$f":"'Form 1SFS'!D321","v":0},null,{"$f":"'Form 1SFS'!D330","v":0}]
["Form 1SFS","Notes","Form 1SFS","Insurance - Gross - Terminations",{"$f":"'Form 1SFS'!D322","v":0},null,{"$f":"'Form 1SFS'!D331","v":0}]
["Form 1SFS","Notes","Form 1SFS","Insurance - Gross - New Business",{"$f":"'Form 1SFS'!D323","v":0},null,{"$f":"'Form 1SFS'!D332","v":0}]
["Form 1SFS","Notes","Form 1SFS","Insurance - Gross - Chg.In Force",{"$f":"'Form 1SFS'!D324","v":0},null,{"$f":"'Form 1SFS'!D333","v":0}]
["Form 1SFS","Notes","Form 1SFS","Insurance - Gross - Mgmt Actions",{"$f":"'Form 1SFS'!D325","v":0},null,{"$f":"'Form 1SFS'!D334","v":0}]
["Form 1SFS","Notes","Form 1SFS","Insurance - Gross - FX",{"$f":"'Form 1SFS'!D326","v":0},null,{"$f":"'Form 1SFS'!D335","v":0}]
["Form 1SFS","Notes","Form 1SFS","Insurance - Gross - Closing Balance",{"$f":"'Form 1SFS'!D327","v":0},null,{"$f":"'Form 1SFS'!D336","v":0}]
["Form 1SFS","Notes","Form 1SFS","Insurance - R/I - Open Balance",{"$f":"'Form 1SFS'!E321","v":0},null,{"$f":"'Form 1SFS'!E330","v":0}]
["Form 1SFS","Notes","Form 1SFS","Insurance - R/I - Terminations",{"$f":"'Form 1SFS'!E322","v":0},null,{"$f":"'Form 1SFS'!E331","v":0}]
["Form 1SFS","Notes","Form 1SFS","Insurance - R/I - New Business",{"$f":"'Form 1SFS'!E323","v":0},null,{"$f":"'Form 1SFS'!E332","v":0}]
["Form 1SFS","Notes","Form 1SFS","Insurance - R/I - Chg.In Force",{"$f":"'Form 1SFS'!E324","v":0},null,{"$f":"'Form 1SFS'!E333","v":0}]
["Form 1SFS","Notes","Form 1SFS","Insurance - R/I - Mgmt Actions",{"$f":"'Form 1SFS'!E325","v":0},null,{"$f":"'Form 1SFS'!E334","v":0}]
["Form 1SFS","Notes","Form 1SFS","Insurance - R/I - FX",{"$f":"'Form 1SFS'!E326","v":0},null,{"$f":"'Form 1SFS'!E335","v":0}]
["Form 1SFS","Notes","Form 1SFS","Insurance - R/I - Closing Balance",{"$f":"'Form 1SFS'!E327","v":0},null,{"$f":"'Form 1SFS'!E336","v":0}]
["Form 1SFS","Notes","Form 1SFS","Invmnt - Gross - Open Balance",{"$f":"'Form 1SFS'!K321","v":0},null,{"$f":"'Form 1SFS'!K330","v":0}]
["Form 1SFS","Notes","Form 1SFS","Invmnt - Gross - Terminations",{"$f":"'Form 1SFS'!K322","v":0},null,{"$f":"'Form 1SFS'!K331","v":0}]
["Form 1SFS","Notes","Form 1SFS","Invmnt - Gross - New Business",{"$f":"'Form 1SFS'!K323","v":0},null,{"$f":"'Form 1SFS'!K332","v":0}]
["Form 1SFS","Notes","Form 1SFS","Invmnt - Gross - Chg.In Force",{"$f":"'Form 1SFS'!K324","v":0},null,{"$f":"'Form 1SFS'!K333","v":0}]
["Form 1SFS","Notes","Form 1SFS","Invmnt - Gross - Mgmt Actions",{"$f":"'Form 1SFS'!K325","v":0},null,{"$f":"'Form 1SFS'!K334","v":0}]
["Form 1SFS","Notes","Form 1SFS","Invmnt - Gross - FX",{"$f":"'Form 1SFS'!K326","v":0},null,{"$f":"'Form 1SFS'!K335","v":0}]
["Form 1SFS","Notes","Form 1SFS","Invmnt - Gross - Closing Balance",{"$f":"'Form 1SFS'!K327","v":0},null,{"$f":"'Form 1SFS'!K336","v":0}]
["Form 1SFS","Notes","Form 1SFS","Invmnt - R/I - Open Balance",{"$f":"'Form 1SFS'!M321","v":0},null,{"$f":"'Form 1SFS'!M330","v":0}]
["Form 1SFS","Notes","Form 1SFS","Invmnt - R/I - Terminations",{"$f":"'Form 1SFS'!M322","v":0},null,{"$f":"'Form 1SFS'!M331","v":0}]
["Form 1SFS","Notes","Form 1SFS","Invmnt - R/I - New Business",{"$f":"'Form 1SFS'!M323","v":0},null,{"$f":"'Form 1SFS'!M332","v":0}]
["Form 1SFS","Notes","Form 1SFS","Invmnt - R/I - Chg.In Force",{"$f":"'Form 1SFS'!M324","v":0},null,{"$f":"'Form 1SFS'!M333","v":0}]
["Form 1SFS","Notes","Form 1SFS","Invmnt - R/I - Mgmt Actions",{"$f":"'Form 1SFS'!M325","v":0},null,{"$f":"'Form 1SFS'!M334","v":0}]
["Form 1SFS","Notes","Form 1SFS","Invmnt - R/I - FX",{"$f":"'Form 1SFS'!M326","v":0},null,{"$f":"'Form 1SFS'!M335","v":0}]
["Form 1SFS","Notes","Form 1SFS","Invmnt - R/I - Closing Balance",{"$f":"'Form 1SFS'!M327","v":0},null,{"$f":"'Form 1SFS'!M336","v":0}]
[]
["1EBS","Notes","1EBS","Line 27Bcii - Collat. in Favor of Insurer",null,null,null,null,null,null,null,null,{"$f":"'Form 4EBS'!F199","v":0}]
["1EBS","Notes","1EBS","Line 36(i) - Any Other Liabilities",null,null,null,null,null,null,null,null,{"$f":"'Form 4EBS'!F201","v":0}]
["1EBS","Notes","1EBS","Line 36(f) - Details of Deposit Liab.",null,null,null,null,null,null,null,null,{"$f":"'Form 4EBS'!F223","v":0}]
["1EBS","Notes","1EBS","Line 40 - Recon. 1SFS 40 to EBS 40",null,null,null,null,null,null,null,null,{"$f":"'Form 4EBS'!F225","v":0}]
["1EBS","Notes","1EBS","Line 27ci - Adj. Counterparty Default",null,null,null,null,null,null,null,null,{"$f":"'Form 4EBS'!F228","v":0}]
["1EBS","Notes","1EBS","Line 27di - Premium in BBNI",null,null,null,null,null,null,null,null,{"$f":"'Form 4EBS'!F229","v":0}]
["1EBS","Notes","1EBS","Line 27dii - Tech Prov. In BBNI",null,null,null,null,null,null,null,null,{"$f":"'Form 4EBS'!F230","v":0}]
["1EBS","Notes","1EBS","Line 27diii - Best Est. that used Trans. Arrang.",null,null,null,null,null,null,null,null,{"$f":"'Form 4EBS'!F231","v":0}]
["1EBS","Notes","1EBS","Line 27div - Best Est. that not used Trans. Arrang.",null,null,null,null,null,null,null,null,{"$f":"'Form 4EBS'!F232","v":0}]
["1EBS","Notes","1EBS","Line 27dv - Scenario Based used",null,null,null,null,null,null,null,null,{"$f":"'Form 4EBS'!F233","v":0}]
["1EBS","Notes","1EBS","Line 27dvi - Scen. Based used Stand. Appro.",null,null,null,null,null,null,null,null,{"$f":"'Form 4EBS'!F234","v":0}]
["1EBS","Notes","1EBS","Line 27dvii - Scen. Based used Base Appro.",null,null,null,null,null,null,null,null,{"$f":"'Form 4EBS'!F235","v":0}]
["1EBS","Notes","1EBS","Line 27Bci - Adj. Counterparty Default",null,null,null,null,null,null,null,null,{"$f":"'Form 4EBS'!F236","v":0}]
["1EBS","Notes","1EBS","Line 27Bdi - Premium in BBNI",null,null,null,null,null,null,null,null,{"$f":"'Form 4EBS'!F237","v":0}]
["1EBS","Notes","1EBS","Line 27Bdii - Tech Prov. In BBNI",null,null,null,null,null,null,null,null,{"$f":"'Form 4EBS'!F238","v":0}]
[]
[null,null,null,"Income Statement"]
["Form 2SFS","Income Stmt Uncon LT / CON","2SFS1a","Gross Premium Written - Direct",null,null,null,null,{"$f":"'Form 2SFS'!M12","v":0},null,{"$f":"'Form 2SFS'!O12","v":0}]
["Form 2SFS","Income Stmt Uncon LT / CON","2SFS1b","Gross Premium Written - Assumed",null,null,null,null,{"$f":"'Form 2SFS'!M13","v":0},null,{"$f":"'Form 2SFS'!O13","v":0}]
["Form 2SFS","Income Stmt Uncon LT / CON","2SFS2","R/I Premiums Ceded",null,null,null,null,{"$f":"'Form 2SFS'!M16","v":0},null,{"$f":"'Form 2SFS'!O16","v":0}]
["Form 2SFS","Income Stmt Uncon LT / CON","2SFS4","Change in Unearned Premiums",null,null,null,null,{"$f":"'Form 2SFS'!M20","v":0},null,{"$f":"'Form 2SFS'!O20","v":0}]
["Form 2SFS","Income Stmt Uncon LT / CON","2SFS6","Other Insurance Income",null,null,null,null,{"$f":"'Form 2SFS'!M24","v":0},null,{"$f":"'Form 2SFS'!O24","v":0}]
["Form 2SFS","Income Stmt Uncon LT / CON","2SFS8","Net Losses Incurred",null,null,null,null,{"$f":"'Form 2SFS'!M30","v":0},null,{"$f":"'Form 2SFS'!O30","v":0}]
["Form 2SFS","Income Stmt Uncon LT / CON","2SFS9","Commissions & Brokerage",null,null,null,null,{"$f":"'Form 2SFS'!M32","v":0},null,{"$f":"'Form 2SFS'!O32","v":0}]
["Form 2SFS","Income Stmt Uncon LT / CON","2SFS12a","Gross Premium Written - Direct",{"$f":"'Form 2SFS'!I41","v":0},null,{"$f":"'Form 2SFS'!K41","v":0},null,{"$f":"'Form 2SFS'!M41","v":0},null,{"$f":"'Form 2SFS'!O41","v":0}]
["Form 2SFS","Income Stmt Uncon LT / CON","2SFS12b","Gross Premium Written - Assumed",{"$f":"'Form 2SFS'!I42","v":0},null,{"$f":"'Form 2SFS'!K42","v":0},null,{"$f":"'Form 2SFS'!M42","v":0},null,{"$f":"'Form 2SFS'!O42","v":0}]
["Form 2SFS","Income Stmt Uncon LT / CON","2SFS13","R/I Premiums Ceded",{"$f":"'Form 2SFS'!I45","v":0},null,{"$f":"'Form 2SFS'!K45","v":0},null,{"$f":"'Form 2SFS'!M45","v":0},null,{"$f":"'Form 2SFS'!O45","v":0}]
["Form 2SFS","Income Stmt Uncon LT / CON","2SFS14a","NPW - Life",{"$f":"'Form 2SFS'!I48","v":0},null,{"$f":"'Form 2SFS'!K48","v":0},null,{"$f":"'Form 2SFS'!M48","v":0},null,{"$f":"'Form 2SFS'!O48","v":0}]
["Form 2SFS","Income Stmt Uncon LT / CON","2SFS14b","NPW - Annuities",{"$f":"'Form 2SFS'!I49","v":0},null,{"$f":"'Form 2SFS'!K49","v":0},null,{"$f":"'Form 2SFS'!M49","v":0},null,{"$f":"'Form 2SFS'!O49","v":0}]
["Form 2SFS","Income Stmt Uncon LT / CON","2SFS14c","NPW - Accident & Health",{"$f":"'Form 2SFS'!I50","v":0},null,{"$f":"'Form 2SFS'!K50","v":0},null,{"$f":"'Form 2SFS'!M50","v":0},null,{"$f":"'Form 2SFS'!O50","v":0}]
["Form 2SFS","Income Stmt Uncon LT / CON","2SFS15","Other Insurance Income",{"$f":"'Form 2SFS'!I53","v":0},null,{"$f":"'Form 2SFS'!K53","v":0},null,{"$f":"'Form 2SFS'!M53","v":0},null,{"$f":"'Form 2SFS'!O53","v":0}]
["Form 2SFS","Income Stmt Uncon LT / CON","2SFS17","Claims - Life",{"$f":"'Form 2SFS'!I59","v":0},null,{"$f":"'Form 2SFS'!K59","v":0},null,{"$f":"'Form 2SFS'!M59","v":0},null,{"$f":"'Form 2SFS'!O59","v":0}]
["Form 2SFS","Income Stmt Uncon LT / CON","2SFS18","Policyholders' Dividends",{"$f":"'Form 2SFS'!I61","v":0},null,{"$f":"'Form 2SFS'!K61","v":0},null,{"$f":"'Form 2SFS'!M61","v":0},null,{"$f":"'Form 2SFS'!O61","v":0}]
["Form 2SFS","Income Stmt Uncon LT / CON","2SFS19","Surrenders",{"$f":"'Form 2SFS'!I63","v":0},null,{"$f":"'Form 2SFS'!K63","v":0},null,{"$f":"'Form 2SFS'!M63","v":0},null,{"$f":"'Form 2SFS'!O63","v":0}]
["Form 2SFS","Income Stmt Uncon LT / CON","2SFS20","Maturities",{"$f":"'Form 2SFS'!I65","v":0},null,{"$f":"'Form 2SFS'!K65","v":0},null,{"$f":"'Form 2SFS'!M65","v":0},null,{"$f":"'Form 2SFS'!O65","v":0}]
["Form 2SFS","Income Stmt Uncon LT / CON","2SFS21","Annuities",{"$f":"'Form 2SFS'!I67","v":0},null,{"$f":"'Form 2SFS'!K67","v":0},null,{"$f":"'Form 2SFS'!M67","v":0},null,{"$f":"'Form 2SFS'!O67","v":0}]
["Form 2SFS","Income Stmt Uncon LT / CON","2SFS22","Accident & Health Benefits",{"$f":"'Form 2SFS'!I69","v":0},null,{"$f":"'Form 2SFS'!K69","v":0},null,{"$f":"'Form 2SFS'!M69","v":0},null,{"$f":"'Form 2SFS'!O69","v":0}]
["Form 2SFS","Income Stmt Uncon LT / CON","2SFS23","Commissions",{"$f":"'Form 2SFS'!I71","v":0},null,{"$f":"'Form 2SFS'!K71","v":0},null,{"$f":"'Form 2SFS'!M71","v":0},null,{"$f":"'Form 2SFS'!O71","v":0}]
["Form 2SFS","Income Stmt Uncon LT / CON","2SFS24","Other",{"$f":"'Form 2SFS'!I73","v":0},null,{"$f":"'Form 2SFS'!K73","v":0},null,{"$f":"'Form 2SFS'!M73","v":0},null,{"$f":"'Form 2SFS'!O73","v":0}]
["Form 2SFS","Income Stmt Uncon LT / CON","2SFS26a","Change in Policy Reserves - Life",{"$f":"'Form 2SFS'!I78","v":0},null,{"$f":"'Form 2SFS'!K78","v":0},null,{"$f":"'Form 2SFS'!M78","v":0},null,{"$f":"'Form 2SFS'!O78","v":0}]
["Form 2SFS","Income Stmt Uncon LT / CON","2SFS26b","Change in Policy Reserves - Annuities",{"$f":"'Form 2SFS'!I79","v":0},null,{"$f":"'Form 2SFS'!K79","v":0},null,{"$f":"'Form 2SFS'!M79","v":0},null,{"$f":"'Form 2SFS'!O79","v":0}]
["Form 2SFS","Income Stmt Uncon LT / CON","2SFS26c","Change in Policy Reserves - Accid. & Health",{"$f":"'Form 2SFS'!I80","v":0},null,{"$f":"'Form 2SFS'!K80","v":0},null,{"$f":"'Form 2SFS'!M80","v":0},null,{"$f":"'Form 2SFS'!O80","v":0}]
["Form 2SFS","Income Stmt Uncon LT / CON","2SFS30a","Operating Expense - G&A",{"$f":"'Form 2SFS'!I93","v":0},null,{"$f":"'Form 2SFS'!K93","v":0},null,{"$f":"'Form 2SFS'!M93","v":0},null,{"$f":"'Form 2SFS'!O93","v":0}]
["Form 2SFS","Income Stmt Uncon LT / CON","2SFS30b","Operating Expense - Personnel Costs",{"$f":"'Form 2SFS'!I94","v":0},null,{"$f":"'Form 2SFS'!K94","v":0},null,{"$f":"'Form 2SFS'!M94","v":0},null,{"$f":"'Form 2SFS'!O94","v":0}]
["Form 2SFS","Income Stmt Uncon LT / CON","2SFS30c","Operating Expense - Other",{"$f":"'Form 2SFS'!I95","v":0},null,{"$f":"'Form 2SFS'!K95","v":0},null,{"$f":"'Form 2SFS'!M95","v":0},null,{"$f":"'Form 2SFS'!O95","v":0}]
["Form 2SFS","Income Stmt Uncon LT / CON","2SFS31","Investment Income",{"$f":"'Form 2SFS'!I98","v":0},null,{"$f":"'Form 2SFS'!K98","v":0},null,{"$f":"'Form 2SFS'!M98","v":0},null,{"$f":"'Form 2SFS'!O98","v":0}]
["Form 2SFS","Income Stmt Uncon LT / CON","2SFS32","Other Income",{"$f":"'Form 2SFS'!I100","v":0},null,{"$f":"'Form 2SFS'!K100","v":0},null,{"$f":"'Form 2SFS'!M100","v":0},null,{"$f":"'Form 2SFS'!O100","v":0}]
["Form 2SFS","Income Stmt Uncon LT / CON","2SFS34a","Income Tax - Current",{"$f":"'Form 2SFS'!I105","v":0},null,{"$f":"'Form 2SFS'!K105","v":0},null,{"$f":"'Form 2SFS'!M105","v":0},null,{"$f":"'Form 2SFS'!O105","v":0}]
["Form 2SFS","Income Stmt Uncon LT / CON","2SFS34b","Income Tax - Deferred",{"$f":"'Form 2SFS'!I106","v":0},null,{"$f":"'Form 2SFS'!K106","v":0},null,{"$f":"'Form 2SFS'!M106","v":0},null,{"$f":"'Form 2SFS'!O106","v":0}]
["Form 2SFS","Income Stmt Uncon LT / CON","2SFS36","Realized Gains/Losses",{"$f":"'Form 2SFS'!I111","v":0},null,{"$f":"'Form 2SFS'!K111","v":0},null,{"$f":"'Form 2SFS'!M111","v":0},null,{"$f":"'Form 2SFS'!O111","v":0}]
["Form 2SFS","Income Stmt Uncon LT / CON","2SFS37","Interest Charges",{"$f":"'Form 2SFS'!I113","v":0},null,{"$f":"'Form 2SFS'!K113","v":0},null,{"$f":"'Form 2SFS'!M113","v":0},null,{"$f":"'Form 2SFS'!O113","v":0}]
[]
["Form 2SFS","Income Stmt Uncon GEN","2SFS1a","Gross Premium Written - Direct",{"$f":"'Form 2SFS'!E12","v":0},null,{"$f":"'Form 2SFS'!G12","v":0}]
["Form 2SFS","Income Stmt Uncon GEN","2SFS1b","Gross Premium Written - Assumed",{"$f":"'Form 2SFS'!E13","v":0},null,{"$f":"'Form 2SFS'!G13","v":0}]
["Form 2SFS","Income Stmt Uncon GEN","2SFS2","R/I Premiums Ceded",{"$f":"'Form 2SFS'!E16","v":0},null,{"$f":"'Form 2SFS'!G16","v":0}]
["Form 2SFS","Income Stmt Uncon GEN","2SFS4","Change in Unearned Premiums",{"$f":"'Form 2SFS'!E20","v":0},null,{"$f":"'Form 2SFS'!G20","v":0}]
["Form 2SFS","Income Stmt Uncon GEN","2SFS6","Other Insurance Income",{"$f":"'Form 2SFS'!E24","v":0},null,{"$f":"'Form 2SFS'!G24","v":0}]
["Form 2SFS","Income Stmt Uncon GEN","2SFS8","Net Losses Incurred",{"$f":"'Form 2SFS'!E30","v":0},null,{"$f":"'Form 2SFS'!G30","v":0}]
["Form 2SFS","Income Stmt Uncon GEN","2SFS9","Commissions & Brokerage",{"$f":"'Form 2SFS'!E32","v":0},null,{"$f":"'Form 2SFS'!G32","v":0}]
["Form 2SFS","Income Stmt Uncon GEN","2SFS30a","Operating Expense - G&A",{"$f":"'Form 2SFS'!E93","v":0},null,{"$f":"'Form 2SFS'!G93","v":0}]
["Form 2SFS","Income Stmt Uncon GEN","2SFS30b","Operating Expense - Personnel Costs",{"$f":"'Form 2SFS'!E94","v":0},null,{"$f":"'Form 2SFS'!G94","v":0}]
["Form 2SFS","Income Stmt Uncon GEN","2SFS30c","Operating Expense - Other",{"$f":"'Form 2SFS'!E95","v":0},null,{"$f":"'Form 2SFS'!G95","v":0}]
["Form 2SFS","Income Stmt Uncon GEN","2SFS31","Investment Income",{"$f":"'Form 2SFS'!E98","v":0},null,{"$f":"'Form 2SFS'!G98","v":0}]
["Form 2SFS","Income Stmt Uncon GEN","2SFS32","Other Income",{"$f":"'Form 2SFS'!E100","v":0},null,{"$f":"'Form 2SFS'!G100","v":0}]
["Form 2SFS","Income Stmt Uncon GEN","2SFS34a","Income Tax - Current",{"$f":"'Form 2SFS'!E105","v":0},null,{"$f":"'Form 2SFS'!G105","v":0}]
["Form 2SFS","Income Stmt Uncon GEN","2SFS34b","Income Tax - Deferred",{"$f":"'Form 2SFS'!E106","v":0},null,{"$f":"'Form 2SFS'!G106","v":0}]
["Form 2SFS","Income Stmt Uncon GEN","2SFS36","Realized Gains/Losses",{"$f":"'Form 2SFS'!E111","v":0},null,{"$f":"'Form 2SFS'!G111","v":0}]
["Form 2SFS","Income Stmt Uncon GEN","2SFS37","Interest Charges",{"$f":"'Form 2SFS'!E113","v":0},null,{"$f":"'Form 2SFS'!G113","v":0}]
[]
[null,null,null,"Statement of Capital & Surplus"]
["Form 8SFS","Stmt of C&S Uncon LT / CON","8SFS1ai","Capital Stock",{"$f":"'Form 8SFS'!K11","v":0},null,{"$f":"'Form 8SFS'!M11","v":0}]
["Form 8SFS","Stmt of C&S Uncon LT / CON",null,"Common Stock",null,null,null,null,{"$f":"'Form 8SFS'!O12","v":0},null,{"$f":"'Form 8SFS'!Q12","v":0}]
["Form 8SFS","Stmt of C&S Uncon LT / CON","8SFS1aii","Preferred Shares",null,null,null,null,{"$f":"'Form 8SFS'!O17","v":0},null,{"$f":"'Form 8SFS'!Q17","v":0}]
["Form 8SFS","Stmt of C&S Uncon LT / CON","8SFS1aiii","Treasury Shares",null,null,null,null,{"$f":"'Form 8SFS'!O25","v":0},null,{"$f":"'Form 8SFS'!Q25","v":0}]
["Form 8SFS","Stmt of C&S Uncon LT / CON","8SFS1b","Contributed Surplus",{"$f":"'Form 8SFS'!K29","v":0},null,{"$f":"'Form 8SFS'!M29","v":0},null,{"$f":"'Form 8SFS'!O29","v":0},null,{"$f":"'Form 8SFS'!Q29","v":0}]
["Form 8SFS","Stmt of C&S Uncon LT / CON","8SFS1ci","Other Fixed Capital - Hybrid Instruments",{"$f":"'Form 8SFS'!K32","v":0},null,{"$f":"'Form 8SFS'!M32","v":0},null,{"$f":"'Form 8SFS'!O32","v":0},null,{"$f":"'Form 8SFS'!Q32","v":0}]
["Form 8SFS","Stmt of C&S Uncon LT / CON","8SFS1cii","Other Fixed Capital - Guarantees & Others",{"$f":"'Form 8SFS'!K33","v":0},null,{"$f":"'Form 8SFS'!M33","v":0},null,{"$f":"'Form 8SFS'!O33","v":0},null,{"$f":"'Form 8SFS'!Q33","v":0}]
["Form 8SFS","Stmt of C&S Uncon LT / CON","8SFS2a","Statutory Surplus - Beginning of Year",{"$f":"'Form 8SFS'!K40","v":0},null,{"$f":"'Form 8SFS'!M40","v":0},null,{"$f":"'Form 8SFS'!O40","v":0},null,{"$f":"'Form 8SFS'!Q40","v":0}]
["Form 8SFS","Stmt of C&S Uncon LT / CON","8SFS2c","Dividends",{"$f":"'Form 8SFS'!K44","v":0},null,{"$f":"'Form 8SFS'!M44","v":0},null,{"$f":"'Form 8SFS'!O44","v":0},null,{"$f":"'Form 8SFS'!Q44","v":0}]
["Form 8SFS","Stmt of C&S Uncon LT / CON","8SFS2d","Unrealized Change in Investments",{"$f":"'Form 8SFS'!K46","v":0},null,{"$f":"'Form 8SFS'!M46","v":0},null,{"$f":"'Form 8SFS'!O46","v":0},null,{"$f":"'Form 8SFS'!Q46","v":0}]
["Form 8SFS","Stmt of C&S Uncon LT / CON","8SFS2e","Change in Non-Admitted Assets",{"$f":"'Form 8SFS'!K48","v":0},null,{"$f":"'Form 8SFS'!M48","v":0},null,{"$f":"'Form 8SFS'!O48","v":0},null,{"$f":"'Form 8SFS'!Q48","v":0}]
["Form 8SFS","Stmt of C&S Uncon LT / CON","8SFS2f","Change in Real Estate",{"$f":"'Form 8SFS'!K50","v":0},null,{"$f":"'Form 8SFS'!M50","v":0},null,{"$f":"'Form 8SFS'!O50","v":0},null,{"$f":"'Form 8SFS'!Q50","v":0}]
["Form 8SFS","Stmt of C&S Uncon LT / CON","8SFS2g","Change in Other Statutory Capital",{"$f":"'Form 8SFS'!K52","v":0},null,{"$f":"'Form 8SFS'!M52","v":0},null,{"$f":"'Form 8SFS'!O52","v":0},null,{"$f":"'Form 8SFS'!Q52","v":0}]
["Form 8SFS","Stmt of C&S Uncon LT / CON","8SFS3","Minority Interest",{"$f":"'Form 8SFS'!K56","v":0},null,{"$f":"'Form 8SFS'!M56","v":0},null,{"$f":"'Form 8SFS'!O56","v":0},null,{"$f":"'Form 8SFS'!Q56","v":0}]
[]
["Form 8SFS","Stmt of C&S Uncon GEN","8SFS1a","Common Stock",{"$f":"'Form 8SFS'!G11","v":0},null,{"$f":"'Form 8SFS'!I11","v":0}]
["Form 8SFS","Stmt of C&S Uncon GEN","8SFS1b","Contributed Surplus",{"$f":"'Form 8SFS'!G29","v":0},null,{"$f":"'Form 8SFS'!I29","v":0}]
["Form 8SFS","Stmt of C&S Uncon GEN","8SFS1ci","Other Fixed Capital - Hybrid Instruments",{"$f":"'Form 8SFS'!G32","v":0},null,{"$f":"'Form 8SFS'!I32","v":0}]
["Form 8SFS","Stmt of C&S Uncon GEN","8SFS1cii","Other Fixed Capital - Guarantees & Others",{"$f":"'Form 8SFS'!G33","v":0},null,{"$f":"'Form 8SFS'!I33","v":0}]
["Form 8SFS","Stmt of C&S Uncon GEN","8SFS2a","Statutory Surplus - Beginning of Year",{"$f":"'Form 8SFS'!G40","v":0},null,{"$f":"'Form 8SFS'!I40","v":0}]
["Form 8SFS","Stmt of C&S Uncon GEN","8SFS2c","Dividends",{"$f":"'Form 8SFS'!G44","v":0},null,{"$f":"'Form 8SFS'!I44","v":0}]
["Form 8SFS","Stmt of C&S Uncon GEN","8SFS2d","Unrealized Change in Investments",{"$f":"'Form 8SFS'!G46","v":0},null,{"$f":"'Form 8SFS'!I46","v":0}]
["Form 8SFS","Stmt of C&S Uncon GEN","8SFS2e","Change in Non-Admitted Assets",{"$f":"'Form 8SFS'!G48","v":0},null,{"$f":"'Form 8SFS'!I48","v":0}]
["Form 8SFS","Stmt of C&S Uncon GEN","8SFS2f","Change in Real Estate",{"$f":"'Form 8SFS'!G50","v":0},null,{"$f":"'Form 8SFS'!I50","v":0}]
["Form 8SFS","Stmt of C&S Uncon GEN","8SFS2g","Change in Other Statutory Capital",{"$f":"'Form 8SFS'!G52","v":0},null,{"$f":"'Form 8SFS'!I52","v":0}]
["Form 8SFS","Stmt of C&S Uncon GEN","8SFS3","Minority Interest",{"$f":"'Form 8SFS'!G56","v":0},null,{"$f":"'Form 8SFS'!I56","v":0}]
[]
[null,null,null,"BSCR Schedules "]
["Sch II","Investments",null,"Corp. Bonds - BSCR Rate 0",{"$f":"'Schedule II'!D12","v":0},null,{"$f":"'Schedule II'!F12","v":0},null,null,null,null,null,{"$f":"'Schedule II (EBS)'!D12","v":0},null,{"$f":"'Schedule II (EBS)'!F12","v":0}]
["Sch II","Investments",null,"Corp. Bonds - BSCR Rate 1",{"$f":"'Schedule II'!D13","v":0},null,{"$f":"'Schedule II'!F13","v":0},null,null,null,null,null,{"$f":"'Schedule II (EBS)'!D13","v":0},null,{"$f":"'Schedule II (EBS)'!F13","v":0}]
["Sch II","Investments",null,"Corp. Bonds - BSCR Rate 2",{"$f":"'Schedule II'!D14","v":0},null,{"$f":"'Schedule II'!F14","v":0},null,null,null,null,null,{"$f":"'Schedule II (EBS)'!D14","v":0},null,{"$f":"'Schedule II (EBS)'!F14","v":0}]
["Sch II","Investments",null,"Corp. Bonds - BSCR Rate 3",{"$f":"'Schedule II'!D15","v":0},null,{"$f":"'Schedule II'!F15","v":0},null,null,null,null,null,{"$f":"'Schedule II (EBS)'!D15","v":0},null,{"$f":"'Schedule II (EBS)'!F15","v":0}]
["Sch II","Investments",null,"Corp. Bonds - BSCR Rate 4",{"$f":"'Schedule II'!D16","v":0},null,{"$f":"'Schedule II'!F16","v":0},null,null,null,null,null,{"$f":"'Schedule II (EBS)'!D16","v":0},null,{"$f":"'Schedule II (EBS)'!F16","v":0}]
["Sch II","Investments",null,"Corp. Bonds - BSCR Rate 5",{"$f":"'Schedule II'!D17","v":0},null,{"$f":"'Schedule II'!F17","v":0},null,null,null,null,null,{"$f":"'Schedule II (EBS)'!D17","v":0},null,{"$f":"'Schedule II (EBS)'!F17","v":0}]
["Sch II","Investments",null,"Corp. Bonds - BSCR Rate 6",{"$f":"'Schedule II'!D18","v":0},null,{"$f":"'Schedule II'!F18","v":0},null,null,null,null,null,{"$f":"'Schedule II (EBS)'!D18","v":0},null,{"$f":"'Schedule II (EBS)'!F18","v":0}]
["Sch II","Investments",null,"Corp. Bonds - BSCR Rate 7",{"$f":"'Schedule II'!D19","v":0},null,{"$f":"'Schedule II'!F19","v":0},null,null,null,null,null,{"$f":"'Schedule II (EBS)'!D19","v":0},null,{"$f":"'Schedule II (EBS)'!F19","v":0}]
["Sch II","Investments",null,"Corp. Bonds - BSCR Rate 8",{"$f":"'Schedule II'!D20","v":0},null,{"$f":"'Schedule II'!F20","v":0},null,null,null,null,null,{"$f":"'Schedule II (EBS)'!D20","v":0},null,{"$f":"'Schedule II (EBS)'!F20","v":0}]
["Sch II","Investments",null,"Residential MBS - BSCR Rate 1",{"$f":"'Schedule II'!H13","v":0},null,{"$f":"'Schedule II'!J13","v":0},null,null,null,null,null,{"$f":"'Schedule II (EBS)'!H13","v":0},null,{"$f":"'Schedule II (EBS)'!J13","v":0}]
["Sch II","Investments",null,"Residential MBS - BSCR Rate 2",{"$f":"'Schedule II'!H14","v":0},null,{"$f":"'Schedule II'!J14","v":0},null,null,null,null,null,{"$f":"'Schedule II (EBS)'!H14","v":0},null,{"$f":"'Schedule II (EBS)'!J14","v":0}]
["Sch II","Investments",null,"Residential MBS - BSCR Rate 3",{"$f":"'Schedule II'!H15","v":0},null,{"$f":"'Schedule II'!J15","v":0},null,null,null,null,null,{"$f":"'Schedule II (EBS)'!H15","v":0},null,{"$f":"'Schedule II (EBS)'!J15","v":0}]
["Sch II","Investments",null,"Residential MBS - BSCR Rate 4",{"$f":"'Schedule II'!H16","v":0},null,{"$f":"'Schedule II'!J16","v":0},null,null,null,null,null,{"$f":"'Schedule II (EBS)'!H16","v":0},null,{"$f":"'Schedule II (EBS)'!J16","v":0}]
["Sch II","Investments",null,"Residential MBS - BSCR Rate 5",{"$f":"'Schedule II'!H17","v":0},null,{"$f":"'Schedule II'!J17","v":0},null,null,null,null,null,{"$f":"'Schedule II (EBS)'!H17","v":0},null,{"$f":"'Schedule II (EBS)'!J17","v":0}]
["Sch II","Investments",null,"Residential MBS - BSCR Rate 6",{"$f":"'Schedule II'!H18","v":0},null,{"$f":"'Schedule II'!J18","v":0},null,null,null,null,null,{"$f":"'Schedule II (EBS)'!H18","v":0},null,{"$f":"'Schedule II (EBS)'!J18","v":0}]
["Sch II","Investments",null,"Residential MBS - BSCR Rate 7",{"$f":"'Schedule II'!H19","v":0},null,{"$f":"'Schedule II'!J19","v":0},null,null,null,null,null,{"$f":"'Schedule II (EBS)'!H19","v":0},null,{"$f":"'Schedule II (EBS)'!J19","v":0}]
["Sch II","Investments",null,"Residential MBS - BSCR Rate 8",{"$f":"'Schedule II'!H20","v":0},null,{"$f":"'Schedule II'!J20","v":0},null,null,null,null,null,{"$f":"'Schedule II (EBS)'!H20","v":0},null,{"$f":"'Schedule II (EBS)'!J20","v":0}]
["Sch II","Investments",null,"Commercial MBS - BSCR Rate 1",{"$f":"'Schedule II'!L13","v":0},null,{"$f":"'Schedule II'!N13","v":0},null,null,null,null,null,{"$f":"'Schedule II (EBS)'!L13","v":0},null,{"$f":"'Schedule II (EBS)'!N13","v":0}]
["Sch II","Investments",null,"Commercial MBS - BSCR Rate 2",{"$f":"'Schedule II'!L14","v":0},null,{"$f":"'Schedule II'!N14","v":0},null,null,null,null,null,{"$f":"'Schedule II (EBS)'!L14","v":0},null,{"$f":"'Schedule II (EBS)'!N14","v":0}]
["Sch II","Investments",null,"Commercial MBS - BSCR Rate 3",{"$f":"'Schedule II'!L15","v":0},null,{"$f":"'Schedule II'!N15","v":0},null,null,null,null,null,{"$f":"'Schedule II (EBS)'!L15","v":0},null,{"$f":"'Schedule II (EBS)'!N15","v":0}]
["Sch II","Investments",null,"Commercial MBS - BSCR Rate 4",{"$f":"'Schedule II'!L16","v":0},null,{"$f":"'Schedule II'!N16","v":0},null,null,null,null,null,{"$f":"'Schedule II (EBS)'!L16","v":0},null,{"$f":"'Schedule II (EBS)'!N16","v":0}]
["Sch II","Investments",null,"Commercial MBS - BSCR Rate 5",{"$f":"'Schedule II'!L17","v":0},null,{"$f":"'Schedule II'!N17","v":0},null,null,null,null,null,{"$f":"'Schedule II (EBS)'!L17","v":0},null,{"$f":"'Schedule II (EBS)'!N17","v":0}]
["Sch II","Investments",null,"Commercial MBS - BSCR Rate 6",{"$f":"'Schedule II'!L18","v":0},null,{"$f":"'Schedule II'!N18","v":0},null,null,null,null,null,{"$f":"'Schedule II (EBS)'!L18","v":0},null,{"$f":"'Schedule II (EBS)'!N18","v":0}]
["Sch II","Investments",null,"Commercial MBS - BSCR Rate 7",{"$f":"'Schedule II'!L19","v":0},null,{"$f":"'Schedule II'!N19","v":0},null,null,null,null,null,{"$f":"'Schedule II (EBS)'!L19","v":0},null,{"$f":"'Schedule II (EBS)'!N19","v":0}]
["Sch II","Investments",null,"Commercial MBS - BSCR Rate 8",{"$f":"'Schedule II'!L20","v":0},null,{"$f":"'Schedule II'!N20","v":0},null,null,null,null,null,{"$f":"'Schedule II (EBS)'!L20","v":0},null,{"$f":"'Schedule II (EBS)'!N20","v":0}]
["Sch II","Investments",null,"Bonds Mutual Fund - BSCR Rate 0",{"$f":"'Schedule II'!P12","v":0},null,{"$f":"'Schedule II'!R12","v":0},null,null,null,null,null,{"$f":"'Schedule II (EBS)'!P12","v":0},null,{"$f":"'Schedule II (EBS)'!R12","v":0}]
["Sch II","Investments",null,"Bonds Mutual Fund - BSCR Rate 1",{"$f":"'Schedule II'!P13","v":0},null,{"$f":"'Schedule II'!R13","v":0},null,null,null,null,null,{"$f":"'Schedule II (EBS)'!P13","v":0},null,{"$f":"'Schedule II (EBS)'!R13","v":0}]
["Sch II","Investments",null,"Bonds Mutual Fund - BSCR Rate 2",{"$f":"'Schedule II'!P14","v":0},null,{"$f":"'Schedule II'!R14","v":0},null,null,null,null,null,{"$f":"'Schedule II (EBS)'!P14","v":0},null,{"$f":"'Schedule II (EBS)'!R14","v":0}]
["Sch II","Investments",null,"Bonds Mutual Fund - BSCR Rate 3",{"$f":"'Schedule II'!P15","v":0},null,{"$f":"'Schedule II'!R15","v":0},null,null,null,null,null,{"$f":"'Schedule II (EBS)'!P15","v":0},null,{"$f":"'Schedule II (EBS)'!R15","v":0}]
["Sch II","Investments",null,"Bonds Mutual Fund - BSCR Rate 4",{"$f":"'Schedule II'!P16","v":0},null,{"$f":"'Schedule II'!R16","v":0},null,null,null,null,null,{"$f":"'Schedule II (EBS)'!P16","v":0},null,{"$f":"'Schedule II (EBS)'!R16","v":0}]
["Sch II","Investments",null,"Bonds Mutual Fund - BSCR Rate 5",{"$f":"'Schedule II'!P17","v":0},null,{"$f":"'Schedule II'!R17","v":0},null,null,null,null,null,{"$f":"'Schedule II (EBS)'!P17","v":0},null,{"$f":"'Schedule II (EBS)'!R17","v":0}]
["Sch II","Investments",null,"Bonds Mutual Fund - BSCR Rate 6",{"$f":"'Schedule II'!P18","v":0},null,{"$f":"'Schedule II'!R18","v":0},null,null,null,null,null,{"$f":"'Schedule II (EBS)'!P18","v":0},null,{"$f":"'Schedule II (EBS)'!R18","v":0}]
["Sch II","Investments",null,"Bonds Mutual Fund - BSCR Rate 7",{"$f":"'Schedule II'!P19","v":0},null,{"$f":"'Schedule II'!R19","v":0},null,null,null,null,null,{"$f":"'Schedule II (EBS)'!P19","v":0},null,{"$f":"'Schedule II (EBS)'!R19","v":0}]
["Sch II","Investments",null,"Bonds Mutual Fund - BSCR Rate 8",{"$f":"'Schedule II'!P20","v":0},null,{"$f":"'Schedule II'!R20","v":0},null,null,null,null,null,{"$f":"'Schedule II (EBS)'!P20","v":0},null,{"$f":"'Schedule II (EBS)'!R20","v":0}]
["Sch II","Investments",null,"Common Shares - Quoted",{"$f":"'Schedule II'!D41","v":0},null,{"$f":"'Schedule II'!F41","v":0},null,null,null,null,null,{"$f":"'Schedule II (EBS)'!D41","v":0},null,{"$f":"'Schedule II (EBS)'!F41","v":0}]
["Sch II","Investments",null,"Common Shares - Unquoted",{"$f":"'Schedule II'!D42","v":0},null,{"$f":"'Schedule II'!F42","v":0},null,null,null,null,null,{"$f":"'Schedule II (EBS)'!D42","v":0},null,{"$f":"'Schedule II (EBS)'!F42","v":0}]
["Sch II","Investments",null,"Preferred Shares - BSCR Rate 1",{"$f":"'Schedule II'!H33","v":0},null,{"$f":"'Schedule II'!J33","v":0},null,null,null,null,null,{"$f":"'Schedule II (EBS)'!H33","v":0},null,{"$f":"'Schedule II (EBS)'!J33","v":0}]
["Sch II","Investments",null,"Preferred Shares - BSCR Rate 2",{"$f":"'Schedule II'!H34","v":0},null,{"$f":"'Schedule II'!J34","v":0},null,null,null,null,null,{"$f":"'Schedule II (EBS)'!H34","v":0},null,{"$f":"'Schedule II (EBS)'!J34","v":0}]
["Sch II","Investments",null,"Preferred Shares - BSCR Rate 3",{"$f":"'Schedule II'!H35","v":0},null,{"$f":"'Schedule II'!J35","v":0},null,null,null,null,null,{"$f":"'Schedule II (EBS)'!H35","v":0},null,{"$f":"'Schedule II (EBS)'!J35","v":0}]
["Sch II","Investments",null,"Preferred Shares - BSCR Rate 4",{"$f":"'Schedule II'!H36","v":0},null,{"$f":"'Schedule II'!J36","v":0},null,null,null,null,null,{"$f":"'Schedule II (EBS)'!H36","v":0},null,{"$f":"'Schedule II (EBS)'!J36","v":0}]
["Sch II","Investments",null,"Preferred Shares - BSCR Rate 5",{"$f":"'Schedule II'!H37","v":0},null,{"$f":"'Schedule II'!J37","v":0},null,null,null,null,null,{"$f":"'Schedule II (EBS)'!H37","v":0},null,{"$f":"'Schedule II (EBS)'!J37","v":0}]
["Sch II","Investments",null,"Preferred Shares - BSCR Rate 6",{"$f":"'Schedule II'!H38","v":0},null,{"$f":"'Schedule II'!J38","v":0},null,null,null,null,null,{"$f":"'Schedule II (EBS)'!H38","v":0},null,{"$f":"'Schedule II (EBS)'!J38","v":0}]
["Sch II","Investments",null,"Preferred Shares - BSCR Rate 7",{"$f":"'Schedule II'!H39","v":0},null,{"$f":"'Schedule II'!J39","v":0},null,null,null,null,null,{"$f":"'Schedule II (EBS)'!H39","v":0},null,{"$f":"'Schedule II (EBS)'!J39","v":0}]
["Sch II","Investments",null,"Preferred Shares - BSCR Rate 8",{"$f":"'Schedule II'!H40","v":0},null,{"$f":"'Schedule II'!J40","v":0},null,null,null,null,null,{"$f":"'Schedule II (EBS)'!H40","v":0},null,{"$f":"'Schedule II (EBS)'!J40","v":0}]
["Sch II","Investments",null,"Equity Mutual Funds -  Quoted",{"$f":"'Schedule II'!L41","v":0},null,{"$f":"'Schedule II'!N41","v":0},null,null,null,null,null,{"$f":"'Schedule II (EBS)'!L41","v":0},null,{"$f":"'Schedule II (EBS)'!N41","v":0}]
["Sch II","Investments",null,"Equity Mutual Funds -  Unquoted",{"$f":"'Schedule II'!L42","v":0},null,{"$f":"'Schedule II'!N42","v":0},null,null,null,null,null,{"$f":"'Schedule II (EBS)'!L42","v":0},null,{"$f":"'Schedule II (EBS)'!N42","v":0}]
["Sch II","Investments",null,"Mortgage Loans - Insured",{"$f":"'Schedule II'!D57","v":0},null,{"$f":"'Schedule II'!F57","v":0},null,null,null,null,null,{"$f":"'Schedule II (EBS)'!D57","v":0},null,{"$f":"'Schedule II (EBS)'!F57","v":0}]
["Sch II","Investments",null,"Mortgage Loans - Other Commercial",{"$f":"'Schedule II'!D58","v":0},null,{"$f":"'Schedule II'!F58","v":0},null,null,null,null,null,{"$f":"'Schedule II (EBS)'!D58","v":0},null,{"$f":"'Schedule II (EBS)'!F58","v":0}]
["Sch II","Investments",null,"Mortgage Loans - Other Residential",{"$f":"'Schedule II'!D59","v":0},null,{"$f":"'Schedule II'!F59","v":0},null,null,null,null,null,{"$f":"'Schedule II (EBS)'!D59","v":0},null,{"$f":"'Schedule II (EBS)'!F59","v":0}]
["Sch II","Investments",null,"Mortgage Loans - Not Good Stand.",{"$f":"'Schedule II'!D60","v":0},null,{"$f":"'Schedule II'!F60","v":0},null,null,null,null,null,{"$f":"'Schedule II (EBS)'!D60","v":0},null,{"$f":"'Schedule II (EBS)'!F60","v":0}]
["Sch II","Investments",null,"NAIC Resid. MBS - Orig. Class 1",{"$f":"'Schedule II'!L56","v":0},null,null,null,null,null,null,null,{"$f":"'Schedule II (EBS)'!L55","v":0}]
["Sch II","Investments",null,"NAIC Resid. MBS - Orig. Class 2",{"$f":"'Schedule II'!L57","v":0},null,null,null,null,null,null,null,{"$f":"'Schedule II (EBS)'!L56","v":0}]
["Sch II","Investments",null,"NAIC Resid. MBS - Orig. Class 3",{"$f":"'Schedule II'!L58","v":0},null,null,null,null,null,null,null,{"$f":"'Schedule II (EBS)'!L57","v":0}]
["Sch II","Investments",null,"NAIC Resid. MBS - Orig. Class 4",{"$f":"'Schedule II'!L59","v":0},null,null,null,null,null,null,null,{"$f":"'Schedule II (EBS)'!L58","v":0}]
["Sch II","Investments",null,"NAIC Resid. MBS - Orig. Class 5",{"$f":"'Schedule II'!L60","v":0},null,null,null,null,null,null,null,{"$f":"'Schedule II (EBS)'!L59","v":0}]
["Sch II","Investments",null,"NAIC Resid. MBS - Orig. Class 6",{"$f":"'Schedule II'!L61","v":0},null,null,null,null,null,null,null,{"$f":"'Schedule II (EBS)'!L60","v":0}]
["Sch II","Investments",null,"NAIC Resid. MBS - Orig. Total",{"$f":"'Schedule II'!L63","v":0},null,null,null,null,null,null,null,{"$f":"'Schedule II (EBS)'!L62","v":0}]
["Sch II","Investments",null,"NAIC Resid. MBS - Rev. Class 1",{"$f":"'Schedule II'!N56","v":0},null,null,null,null,null,null,null,{"$f":"'Schedule II (EBS)'!N55","v":0}]
["Sch II","Investments",null,"NAIC Resid. MBS - Rev. Class 2",{"$f":"'Schedule II'!N57","v":0},null,null,null,null,null,null,null,{"$f":"'Schedule II (EBS)'!N56","v":0}]
["Sch II","Investments",null,"NAIC Resid. MBS - Rev. Class 3",{"$f":"'Schedule II'!N58","v":0},null,null,null,null,null,null,null,{"$f":"'Schedule II (EBS)'!N57","v":0}]
["Sch II","Investments",null,"NAIC Resid. MBS - Rev. Class 4",{"$f":"'Schedule II'!N59","v":0},null,null,null,null,null,null,null,{"$f":"'Schedule II (EBS)'!N58","v":0}]
["Sch II","Investments",null,"NAIC Resid. MBS - Rev. Class 5",{"$f":"'Schedule II'!N60","v":0},null,null,null,null,null,null,null,{"$f":"'Schedule II (EBS)'!N59","v":0}]
["Sch II","Investments",null,"NAIC Resid. MBS - Rev. Class 6",{"$f":"'Schedule II'!N61","v":0},null,null,null,null,null,null,null,{"$f":"'Schedule II (EBS)'!N60","v":0}]
["Sch II","Investments",null,"NAIC Resid. MBS - Rev. Total",{"$f":"'Schedule II'!N63","v":0},null,null,null,null,null,null,null,{"$f":"'Schedule II (EBS)'!N62","v":0}]
["Sch II","Investments",null,"NAIC Comm. MBS - Orig. Class 1",{"$f":"'Schedule II'!P56","v":0},null,null,null,null,null,null,null,{"$f":"'Schedule II (EBS)'!P55","v":0}]
["Sch II","Investments",null,"NAIC Comm. MBS - Orig. Class 2",{"$f":"'Schedule II'!P57","v":0},null,null,null,null,null,null,null,{"$f":"'Schedule II (EBS)'!P56","v":0}]
["Sch II","Investments",null,"NAIC Comm. MBS - Orig. Class 3",{"$f":"'Schedule II'!P58","v":0},null,null,null,null,null,null,null,{"$f":"'Schedule II (EBS)'!P57","v":0}]
["Sch II","Investments",null,"NAIC Comm. MBS - Orig. Class 4",{"$f":"'Schedule II'!P59","v":0},null,null,null,null,null,null,null,{"$f":"'Schedule II (EBS)'!P58","v":0}]
["Sch II","Investments",null,"NAIC Comm. MBS - Orig. Class 5",{"$f":"'Schedule II'!P60","v":0},null,null,null,null,null,null,null,{"$f":"'Schedule II (EBS)'!P59","v":0}]
["Sch II","Investments",null,"NAIC Comm. MBS - Orig. Class 6",{"$f":"'Schedule II'!P61","v":0},null,null,null,null,null,null,null,{"$f":"'Schedule II (EBS)'!P60","v":0}]
["Sch II","Investments",null,"NAIC Comm. MBS - Orig. Total",{"$f":"'Schedule II'!P63","v":0},null,null,null,null,null,null,null,{"$f":"'Schedule II (EBS)'!P62","v":0}]
["Sch II","Investments",null,"NAIC Comm. MBS - Rev. Class 1",{"$f":"'Schedule II'!R56","v":0},null,null,null,null,null,null,null,{"$f":"'Schedule II (EBS)'!R55","v":0}]
["Sch II","Investments",null,"NAIC Comm. MBS - Rev. Class 2",{"$f":"'Schedule II'!R57","v":0},null,null,null,null,null,null,null,{"$f":"'Schedule II (EBS)'!R56","v":0}]
["Sch II","Investments",null,"NAIC Comm. MBS - Rev. Class 3",{"$f":"'Schedule II'!R58","v":0},null,null,null,null,null,null,null,{"$f":"'Schedule II (EBS)'!R57","v":0}]
["Sch II","Investments",null,"NAIC Comm. MBS - Rev. Class 4",{"$f":"'Schedule II'!R59","v":0},null,null,null,null,null,null,null,{"$f":"'Schedule II (EBS)'!R58","v":0}]
["Sch II","Investments",null,"NAIC Comm. MBS - Rev. Class 5",{"$f":"'Schedule II'!R60","v":0},null,null,null,null,null,null,null,{"$f":"'Schedule II (EBS)'!R59","v":0}]
["Sch II","Investments",null,"NAIC Comm. MBS - Rev. Class 6",{"$f":"'Schedule II'!R61","v":0},null,null,null,null,null,null,null,{"$f":"'Schedule II (EBS)'!R60","v":0}]
["Sch II","Investments",null,"NAIC Comm. MBS - Rev. Total",{"$f":"'Schedule II'!R63","v":0},null,null,null,null,null,null,null,{"$f":"'Schedule II (EBS)'!R62","v":0}]
[]
["Sch IIA","Funds Held",null,"Corp. Bonds - BSCR Rate 0",{"$f":"'Schedule IIA'!D12","v":0},null,{"$f":"'Schedule IIA'!F12","v":0},null,null,null,null,null,{"$f":"'Schedule IIA (EBS)'!D12","v":0},null,{"$f":"'Schedule IIA (EBS)'!F12","v":0}]
["Sch IIA","Funds Held",null,"Corp. Bonds - BSCR Rate 1",{"$f":"'Schedule IIA'!D13","v":0},null,{"$f":"'Schedule IIA'!F13","v":0},null,null,null,null,null,{"$f":"'Schedule IIA (EBS)'!D13","v":0},null,{"$f":"'Schedule IIA (EBS)'!F13","v":0}]
["Sch IIA","Funds Held",null,"Corp. Bonds - BSCR Rate 2",{"$f":"'Schedule IIA'!D14","v":0},null,{"$f":"'Schedule IIA'!F14","v":0},null,null,null,null,null,{"$f":"'Schedule IIA (EBS)'!D14","v":0},null,{"$f":"'Schedule IIA (EBS)'!F14","v":0}]
["Sch IIA","Funds Held",null,"Corp. Bonds - BSCR Rate 3",{"$f":"'Schedule IIA'!D15","v":0},null,{"$f":"'Schedule IIA'!F15","v":0},null,null,null,null,null,{"$f":"'Schedule IIA (EBS)'!D15","v":0},null,{"$f":"'Schedule IIA (EBS)'!F15","v":0}]
["Sch IIA","Funds Held",null,"Corp. Bonds - BSCR Rate 4",{"$f":"'Schedule IIA'!D16","v":0},null,{"$f":"'Schedule IIA'!F16","v":0},null,null,null,null,null,{"$f":"'Schedule IIA (EBS)'!D16","v":0},null,{"$f":"'Schedule IIA (EBS)'!F16","v":0}]
["Sch IIA","Funds Held",null,"Corp. Bonds - BSCR Rate 5",{"$f":"'Schedule IIA'!D17","v":0},null,{"$f":"'Schedule IIA'!F17","v":0},null,null,null,null,null,{"$f":"'Schedule IIA (EBS)'!D17","v":0},null,{"$f":"'Schedule IIA (EBS)'!F17","v":0}]
["Sch IIA","Funds Held",null,"Corp. Bonds - BSCR Rate 6",{"$f":"'Schedule IIA'!D18","v":0},null,{"$f":"'Schedule IIA'!F18","v":0},null,null,null,null,null,{"$f":"'Schedule IIA (EBS)'!D18","v":0},null,{"$f":"'Schedule IIA (EBS)'!F18","v":0}]
["Sch IIA","Funds Held",null,"Corp. Bonds - BSCR Rate 7",{"$f":"'Schedule IIA'!D19","v":0},null,{"$f":"'Schedule IIA'!F19","v":0},null,null,null,null,null,{"$f":"'Schedule IIA (EBS)'!D19","v":0},null,{"$f":"'Schedule IIA (EBS)'!F19","v":0}]
["Sch IIA","Funds Held",null,"Corp. Bonds - BSCR Rate 8",{"$f":"'Schedule IIA'!D20","v":0},null,{"$f":"'Schedule IIA'!F20","v":0},null,null,null,null,null,{"$f":"'Schedule IIA (EBS)'!D20","v":0},null,{"$f":"'Schedule IIA (EBS)'!F20","v":0}]
["Sch IIA","Funds Held",null,"Residential MBS - BSCR Rate 1",{"$f":"'Schedule IIA'!H13","v":0},null,{"$f":"'Schedule IIA'!J13","v":0},null,null,null,null,null,{"$f":"'Schedule IIA (EBS)'!H13","v":0},null,{"$f":"'Schedule IIA (EBS)'!J13","v":0}]
["Sch IIA","Funds Held",null,"Residential MBS - BSCR Rate 2",{"$f":"'Schedule IIA'!H14","v":0},null,{"$f":"'Schedule IIA'!J14","v":0},null,null,null,null,null,{"$f":"'Schedule IIA (EBS)'!H14","v":0},null,{"$f":"'Schedule IIA (EBS)'!J14","v":0}]
["Sch IIA","Funds Held",null,"Residential MBS - BSCR Rate 3",{"$f":"'Schedule IIA'!H15","v":0},null,{"$f":"'Schedule IIA'!J15","v":0},null,null,null,null,null,{"$f":"'Schedule IIA (EBS)'!H15","v":0},null,{"$f":"'Schedule IIA (EBS)'!J15","v":0}]
["Sch IIA","Funds Held",null,"Residential MBS - BSCR Rate 4",{"$f":"'Schedule IIA'!H16","v":0},null,{"$f":"'Schedule IIA'!J16","v":0},null,null,null,null,null,{"$f":"'Schedule IIA (EBS)'!H16","v":0},null,{"$f":"'Schedule IIA (EBS)'!J16","v":0}]
["Sch IIA","Funds Held",null,"Residential MBS - BSCR Rate 5",{"$f":"'Schedule IIA'!H17","v":0},null,{"$f":"'Schedule IIA'!J17","v":0},null,null,null,null,null,{"$f":"'Schedule IIA (EBS)'!H17","v":0},null,{"$f":"'Schedule IIA (EBS)'!J17","v":0}]
["Sch IIA","Funds Held",null,"Residential MBS - BSCR Rate 6",{"$f":"'Schedule IIA'!H18","v":0},null,{"$f":"'Schedule IIA'!J18","v":0},null,null,null,null,null,{"$f":"'Schedule IIA (EBS)'!H18","v":0},null,{"$f":"'Schedule IIA (EBS)'!J18","v":0}]
["Sch IIA","Funds Held",null,"Residential MBS - BSCR Rate 7",{"$f":"'Schedule IIA'!H19","v":0},null,{"$f":"'Schedule IIA'!J19","v":0},null,null,null,null,null,{"$f":"'Schedule IIA (EBS)'!H19","v":0},null,{"$f":"'Schedule IIA (EBS)'!J19","v":0}]
["Sch IIA","Funds Held",null,"Residential MBS - BSCR Rate 8",{"$f":"'Schedule IIA'!H20","v":0},null,{"$f":"'Schedule IIA'!J20","v":0},null,null,null,null,null,{"$f":"'Schedule IIA (EBS)'!H20","v":0},null,{"$f":"'Schedule IIA (EBS)'!J20","v":0}]
["Sch IIA","Funds Held",null,"Commercial MBS - BSCR Rate 1",{"$f":"'Schedule IIA'!L13","v":0},null,{"$f":"'Schedule IIA'!N13","v":0},null,null,null,null,null,{"$f":"'Schedule IIA (EBS)'!L13","v":0},null,{"$f":"'Schedule IIA (EBS)'!N13","v":0}]
["Sch IIA","Funds Held",null,"Commercial MBS - BSCR Rate 2",{"$f":"'Schedule IIA'!L14","v":0},null,{"$f":"'Schedule IIA'!N14","v":0},null,null,null,null,null,{"$f":"'Schedule IIA (EBS)'!L14","v":0},null,{"$f":"'Schedule IIA (EBS)'!N14","v":0}]
["Sch IIA","Funds Held",null,"Commercial MBS - BSCR Rate 3",{"$f":"'Schedule IIA'!L15","v":0},null,{"$f":"'Schedule IIA'!N15","v":0},null,null,null,null,null,{"$f":"'Schedule IIA (EBS)'!L15","v":0},null,{"$f":"'Schedule IIA (EBS)'!N15","v":0}]
["Sch IIA","Funds Held",null,"Commercial MBS - BSCR Rate 4",{"$f":"'Schedule IIA'!L16","v":0},null,{"$f":"'Schedule IIA'!N16","v":0},null,null,null,null,null,{"$f":"'Schedule IIA (EBS)'!L16","v":0},null,{"$f":"'Schedule IIA (EBS)'!N16","v":0}]
["Sch IIA","Funds Held",null,"Commercial MBS - BSCR Rate 5",{"$f":"'Schedule IIA'!L17","v":0},null,{"$f":"'Schedule IIA'!N17","v":0},null,null,null,null,null,{"$f":"'Schedule IIA (EBS)'!L17","v":0},null,{"$f":"'Schedule IIA (EBS)'!N17","v":0}]
["Sch IIA","Funds Held",null,"Commercial MBS - BSCR Rate 6",{"$f":"'Schedule IIA'!L18","v":0},null,{"$f":"'Schedule IIA'!N18","v":0},null,null,null,null,null,{"$f":"'Schedule IIA (EBS)'!L18","v":0},null,{"$f":"'Schedule IIA (EBS)'!N18","v":0}]
["Sch IIA","Funds Held",null,"Commercial MBS - BSCR Rate 7",{"$f":"'Schedule IIA'!L19","v":0},null,{"$f":"'Schedule IIA'!N19","v":0},null,null,null,null,null,{"$f":"'Schedule IIA (EBS)'!L19","v":0},null,{"$f":"'Schedule IIA (EBS)'!N19","v":0}]
["Sch IIA","Funds Held",null,"Commercial MBS - BSCR Rate 8",{"$f":"'Schedule IIA'!L20","v":0},null,{"$f":"'Schedule IIA'!N20","v":0},null,null,null,null,null,{"$f":"'Schedule IIA (EBS)'!L20","v":0},null,{"$f":"'Schedule IIA (EBS)'!N20","v":0}]
["Sch IIA","Funds Held",null,"Bonds Mutual Fund - BSCR Rate 0",{"$f":"'Schedule IIA'!P12","v":0},null,{"$f":"'Schedule IIA'!R12","v":0},null,null,null,null,null,{"$f":"'Schedule IIA (EBS)'!P12","v":0},null,{"$f":"'Schedule IIA (EBS)'!R12","v":0}]
["Sch IIA","Funds Held",null,"Bonds Mutual Fund - BSCR Rate 1",{"$f":"'Schedule IIA'!P13","v":0},null,{"$f":"'Schedule IIA'!R13","v":0},null,null,null,null,null,{"$f":"'Schedule IIA (EBS)'!P13","v":0},null,{"$f":"'Schedule IIA (EBS)'!R13","v":0}]
["Sch IIA","Funds Held",null,"Bonds Mutual Fund - BSCR Rate 2",{"$f":"'Schedule IIA'!P14","v":0},null,{"$f":"'Schedule IIA'!R14","v":0},null,null,null,null,null,{"$f":"'Schedule IIA (EBS)'!P14","v":0},null,{"$f":"'Schedule IIA (EBS)'!R14","v":0}]
["Sch IIA","Funds Held",null,"Bonds Mutual Fund - BSCR Rate 3",{"$f":"'Schedule IIA'!P15","v":0},null,{"$f":"'Schedule IIA'!R15","v":0},null,null,null,null,null,{"$f":"'Schedule IIA (EBS)'!P15","v":0},null,{"$f":"'Schedule IIA (EBS)'!R15","v":0}]
["Sch IIA","Funds Held",null,"Bonds Mutual Fund - BSCR Rate 4",{"$f":"'Schedule IIA'!P16","v":0},null,{"$f":"'Schedule IIA'!R16","v":0},null,null,null,null,null,{"$f":"'Schedule IIA (EBS)'!P16","v":0},null,{"$f":"'Schedule IIA (EBS)'!R16","v":0}]
["Sch IIA","Funds Held",null,"Bonds Mutual Fund - BSCR Rate 5",{"$f":"'Schedule IIA'!P17","v":0},null,{"$f":"'Schedule IIA'!R17","v":0},null,null,null,null,null,{"$f":"'Schedule IIA (EBS)'!P17","v":0},null,{"$f":"'Schedule IIA (EBS)'!R17","v":0}]
["Sch IIA","Funds Held",null,"Bonds Mutual Fund - BSCR Rate 6",{"$f":"'Schedule IIA'!P18","v":0},null,{"$f":"'Schedule IIA'!R18","v":0},null,null,null,null,null,{"$f":"'Schedule IIA (EBS)'!P18","v":0},null,{"$f":"'Schedule IIA (EBS)'!R18","v":0}]
["Sch IIA","Funds Held",null,"Bonds Mutual Fund - BSCR Rate 7",{"$f":"'Schedule IIA'!P19","v":0},null,{"$f":"'Schedule IIA'!R19","v":0},null,null,null,null,null,{"$f":"'Schedule IIA (EBS)'!P19","v":0},null,{"$f":"'Schedule IIA (EBS)'!R19","v":0}]
["Sch IIA","Funds Held",null,"Bonds Mutual Fund - BSCR Rate 8",{"$f":"'Schedule IIA'!P20","v":0},null,{"$f":"'Schedule IIA'!R20","v":0},null,null,null,null,null,{"$f":"'Schedule IIA (EBS)'!P20","v":0},null,{"$f":"'Schedule IIA (EBS)'!R20","v":0}]
["Sch IIA","Funds Held",null,"Common Shares - Quoted",{"$f":"'Schedule IIA'!D41","v":0},null,{"$f":"'Schedule IIA'!F41","v":0},null,null,null,null,null,{"$f":"'Schedule IIA (EBS)'!D41","v":0},null,{"$f":"'Schedule IIA (EBS)'!F41","v":0}]
["Sch IIA","Funds Held",null,"Common Shares - Unquoted",{"$f":"'Schedule IIA'!D42","v":0},null,{"$f":"'Schedule IIA'!F42","v":0},null,null,null,null,null,{"$f":"'Schedule IIA (EBS)'!D42","v":0},null,{"$f":"'Schedule IIA (EBS)'!F42","v":0}]
["Sch IIA","Funds Held",null,"Preferred Shares - BSCR Rate 1",{"$f":"'Schedule IIA'!H33","v":0},null,{"$f":"'Schedule IIA'!J33","v":0},null,null,null,null,null,{"$f":"'Schedule IIA (EBS)'!H33","v":0},null,{"$f":"'Schedule IIA (EBS)'!J33","v":0}]
["Sch IIA","Funds Held",null,"Preferred Shares - BSCR Rate 2",{"$f":"'Schedule IIA'!H34","v":0},null,{"$f":"'Schedule IIA'!J34","v":0},null,null,null,null,null,{"$f":"'Schedule IIA (EBS)'!H34","v":0},null,{"$f":"'Schedule IIA (EBS)'!J34","v":0}]
["Sch IIA","Funds Held",null,"Preferred Shares - BSCR Rate 3",{"$f":"'Schedule IIA'!H35","v":0},null,{"$f":"'Schedule IIA'!J35","v":0},null,null,null,null,null,{"$f":"'Schedule IIA (EBS)'!H35","v":0},null,{"$f":"'Schedule IIA (EBS)'!J35","v":0}]
["Sch IIA","Funds Held",null,"Preferred Shares - BSCR Rate 4",{"$f":"'Schedule IIA'!H36","v":0},null,{"$f":"'Schedule IIA'!J36","v":0},null,null,null,null,null,{"$f":"'Schedule IIA (EBS)'!H36","v":0},null,{"$f":"'Schedule IIA (EBS)'!J36","v":0}]
["Sch IIA","Funds Held",null,"Preferred Shares - BSCR Rate 5",{"$f":"'Schedule IIA'!H37","v":0},null,{"$f":"'Schedule IIA'!J37","v":0},null,null,null,null,null,{"$f":"'Schedule IIA (EBS)'!H37","v":0},null,{"$f":"'Schedule IIA (EBS)'!J37","v":0}]
["Sch IIA","Funds Held",null,"Preferred Shares - BSCR Rate 6",{"$f":"'Schedule IIA'!H38","v":0},null,{"$f":"'Schedule IIA'!J38","v":0},null,null,null,null,null,{"$f":"'Schedule IIA (EBS)'!H38","v":0},null,{"$f":"'Schedule IIA (EBS)'!J38","v":0}]
["Sch IIA","Funds Held",null,"Preferred Shares - BSCR Rate 7",{"$f":"'Schedule IIA'!H39","v":0},null,{"$f":"'Schedule IIA'!J39","v":0},null,null,null,null,null,{"$f":"'Schedule IIA (EBS)'!H39","v":0},null,{"$f":"'Schedule IIA (EBS)'!J39","v":0}]
["Sch IIA","Funds Held",null,"Preferred Shares - BSCR Rate 8",{"$f":"'Schedule IIA'!H40","v":0},null,{"$f":"'Schedule IIA'!J40","v":0},null,null,null,null,null,{"$f":"'Schedule IIA (EBS)'!H40","v":0},null,{"$f":"'Schedule IIA (EBS)'!J40","v":0}]
["Sch IIA","Funds Held",null,"Equity Mutual Funds -  Quoted",{"$f":"'Schedule IIA'!L41","v":0},null,{"$f":"'Schedule IIA'!N41","v":0},null,null,null,null,null,{"$f":"'Schedule IIA (EBS)'!L41","v":0},null,{"$f":"'Schedule IIA (EBS)'!N41","v":0}]
["Sch IIA","Funds Held",null,"Equity Mutual Funds -  Unquoted",{"$f":"'Schedule IIA'!L42","v":0},null,{"$f":"'Schedule IIA'!N42","v":0},null,null,null,null,null,{"$f":"'Schedule IIA (EBS)'!L42","v":0},null,{"$f":"'Schedule IIA (EBS)'!N42","v":0}]
["Sch IIA","Funds Held",null,"Other Investments -  Quoted",{"$f":"'Schedule IIA'!P41","v":0},null,{"$f":"'Schedule IIA'!R41","v":0},null,null,null,null,null,{"$f":"'Schedule IIA (EBS)'!P41","v":0},null,{"$f":"'Schedule IIA (EBS)'!R41","v":0}]
["Sch IIA","Funds Held",null,"Other Investments -  Unquoted",{"$f":"'Schedule IIA'!P42","v":0},null,{"$f":"'Schedule IIA'!R42","v":0},null,null,null,null,null,{"$f":"'Schedule IIA (EBS)'!P42","v":0},null,{"$f":"'Schedule IIA (EBS)'!R42","v":0}]
["Sch IIA","Funds Held",null,"Mortgage Loans - Insured",{"$f":"'Schedule IIA'!D57","v":0},null,{"$f":"'Schedule IIA'!F57","v":0},null,null,null,null,null,{"$f":"'Schedule IIA (EBS)'!D57","v":0},null,{"$f":"'Schedule IIA (EBS)'!F57","v":0}]
["Sch IIA","Funds Held",null,"Mortgage Loans - Other Commercial",{"$f":"'Schedule IIA'!D58","v":0},null,{"$f":"'Schedule IIA'!F58","v":0},null,null,null,null,null,{"$f":"'Schedule IIA (EBS)'!D58","v":0},null,{"$f":"'Schedule IIA (EBS)'!F58","v":0}]
["Sch IIA","Funds Held",null,"Mortgage Loans - Other Residential",{"$f":"'Schedule IIA'!D59","v":0},null,{"$f":"'Schedule IIA'!F59","v":0},null,null,null,null,null,{"$f":"'Schedule IIA (EBS)'!D59","v":0},null,{"$f":"'Schedule IIA (EBS)'!F59","v":0}]
["Sch IIA","Funds Held",null,"Mortgage Loans - Not Good Stand.",{"$f":"'Schedule IIA'!D60","v":0},null,{"$f":"'Schedule IIA'!F60","v":0},null,null,null,null,null,{"$f":"'Schedule IIA (EBS)'!D60","v":0},null,{"$f":"'Schedule IIA (EBS)'!F60","v":0}]
["Sch IIA","Funds Held",null,"Cash and Cash Equivalents",{"$f":"'Schedule IIA'!D68","v":0},null,{"$f":"'Schedule IIA'!F68","v":0},null,null,null,null,null,{"$f":"'Schedule IIA (EBS)'!D68","v":0},null,{"$f":"'Schedule IIA (EBS)'!F68","v":0}]
["Sch IIA","Funds Held",null,"NAIC Resid. MBS - Orig. Class 1",{"$f":"'Schedule IIA'!L55","v":0},null,null,null,null,null,null,null,{"$f":"'Schedule IIA (EBS)'!L55","v":0}]
["Sch IIA","Funds Held",null,"NAIC Resid. MBS - Orig. Class 2",{"$f":"'Schedule IIA'!L56","v":0},null,null,null,null,null,null,null,{"$f":"'Schedule IIA (EBS)'!L56","v":0}]
["Sch IIA","Funds Held",null,"NAIC Resid. MBS - Orig. Class 3",{"$f":"'Schedule IIA'!L57","v":0},null,null,null,null,null,null,null,{"$f":"'Schedule IIA (EBS)'!L57","v":0}]
["Sch IIA","Funds Held",null,"NAIC Resid. MBS - Orig. Class 4",{"$f":"'Schedule IIA'!L58","v":0},null,null,null,null,null,null,null,{"$f":"'Schedule IIA (EBS)'!L58","v":0}]
["Sch IIA","Funds Held",null,"NAIC Resid. MBS - Orig. Class 5",{"$f":"'Schedule IIA'!L59","v":0},null,null,null,null,null,null,null,{"$f":"'Schedule IIA (EBS)'!L59","v":0}]
["Sch IIA","Funds Held",null,"NAIC Resid. MBS - Orig. Class 6",{"$f":"'Schedule IIA'!L60","v":0},null,null,null,null,null,null,null,{"$f":"'Schedule IIA (EBS)'!L60","v":0}]
["Sch IIA","Funds Held",null,"NAIC Resid. MBS - Orig. Total",{"$f":"'Schedule IIA'!L62","v":0},null,null,null,null,null,null,null,{"$f":"'Schedule IIA (EBS)'!L62","v":0}]
["Sch IIA","Funds Held",null,"NAIC Resid. MBS - Rev. Class 1",{"$f":"'Schedule IIA'!N55","v":0},null,null,null,null,null,null,null,{"$f":"'Schedule IIA (EBS)'!N55","v":0}]
["Sch IIA","Funds Held",null,"NAIC Resid. MBS - Rev. Class 2",{"$f":"'Schedule IIA'!N56","v":0},null,null,null,null,null,null,null,{"$f":"'Schedule IIA (EBS)'!N56","v":0}]
["Sch IIA","Funds Held",null,"NAIC Resid. MBS - Rev. Class 3",{"$f":"'Schedule IIA'!N57","v":0},null,null,null,null,null,null,null,{"$f":"'Schedule IIA (EBS)'!N57","v":0}]
["Sch IIA","Funds Held",null,"NAIC Resid. MBS - Rev. Class 4",{"$f":"'Schedule IIA'!N58","v":0},null,null,null,null,null,null,null,{"$f":"'Schedule IIA (EBS)'!N58","v":0}]
["Sch IIA","Funds Held",null,"NAIC Resid. MBS - Rev. Class 5",{"$f":"'Schedule IIA'!N59","v":0},null,null,null,null,null,null,null,{"$f":"'Schedule IIA (EBS)'!N59","v":0}]
["Sch IIA","Funds Held",null,"NAIC Resid. MBS - Rev. Class 6",{"$f":"'Schedule IIA'!N60","v":0},null,null,null,null,null,null,null,{"$f":"'Schedule IIA (EBS)'!N60","v":0}]
["Sch IIA","Funds Held",null,"NAIC Resid. MBS - Rev. Total",{"$f":"'Schedule IIA'!N62","v":0},null,null,null,null,null,null,null,{"$f":"'Schedule IIA (EBS)'!N62","v":0}]
["Sch IIA","Funds Held",null,"NAIC Comm. MBS - Orig. Class 1",{"$f":"'Schedule IIA'!P55","v":0},null,null,null,null,null,null,null,{"$f":"'Schedule IIA (EBS)'!P55","v":0}]
["Sch IIA","Funds Held",null,"NAIC Comm. MBS - Orig. Class 2",{"$f":"'Schedule IIA'!P56","v":0},null,null,null,null,null,null,null,{"$f":"'Schedule IIA (EBS)'!P56","v":0}]
["Sch IIA","Funds Held",null,"NAIC Comm. MBS - Orig. Class 3",{"$f":"'Schedule IIA'!P57","v":0},null,null,null,null,null,null,null,{"$f":"'Schedule IIA (EBS)'!P57","v":0}]
["Sch IIA","Funds Held",null,"NAIC Comm. MBS - Orig. Class 4",{"$f":"'Schedule IIA'!P58","v":0},null,null,null,null,null,null,null,{"$f":"'Schedule IIA (EBS)'!P58","v":0}]
["Sch IIA","Funds Held",null,"NAIC Comm. MBS - Orig. Class 5",{"$f":"'Schedule IIA'!P59","v":0},null,null,null,null,null,null,null,{"$f":"'Schedule IIA (EBS)'!P59","v":0}]
["Sch IIA","Funds Held",null,"NAIC Comm. MBS - Orig. Class 6",{"$f":"'Schedule IIA'!P60","v":0},null,null,null,null,null,null,null,{"$f":"'Schedule IIA (EBS)'!P60","v":0}]
["Sch IIA","Funds Held",null,"NAIC Comm. MBS - Orig. Total",{"$f":"'Schedule IIA'!P62","v":0},null,null,null,null,null,null,null,{"$f":"'Schedule IIA (EBS)'!P62","v":0}]
["Sch IIA","Funds Held",null,"NAIC Comm. MBS - Rev. Class 1",{"$f":"'Schedule IIA'!R55","v":0},null,null,null,null,null,null,null,{"$f":"'Schedule IIA (EBS)'!R55","v":0}]
["Sch IIA","Funds Held",null,"NAIC Comm. MBS - Rev. Class 2",{"$f":"'Schedule IIA'!R56","v":0},null,null,null,null,null,null,null,{"$f":"'Schedule IIA (EBS)'!R56","v":0}]
["Sch IIA","Funds Held",null,"NAIC Comm. MBS - Rev. Class 3",{"$f":"'Schedule IIA'!R57","v":0},null,null,null,null,null,null,null,{"$f":"'Schedule IIA (EBS)'!R57","v":0}]
["Sch IIA","Funds Held",null,"NAIC Comm. MBS - Rev. Class 4",{"$f":"'Schedule IIA'!R58","v":0},null,null,null,null,null,null,null,{"$f":"'Schedule IIA (EBS)'!R58","v":0}]
["Sch IIA","Funds Held",null,"NAIC Comm. MBS - Rev. Class 5",{"$f":"'Schedule IIA'!R59","v":0},null,null,null,null,null,null,null,{"$f":"'Schedule IIA (EBS)'!R59","v":0}]
["Sch IIA","Funds Held",null,"NAIC Comm. MBS - Rev. Class 6",{"$f":"'Schedule IIA'!R60","v":0},null,null,null,null,null,null,null,{"$f":"'Schedule IIA (EBS)'!R60","v":0}]
["Sch IIA","Funds Held",null,"NAIC Comm. MBS - Rev. Total",{"$f":"'Schedule IIA'!R62","v":0},null,null,null,null,null,null,null,{"$f":"'Schedule IIA (EBS)'!R62","v":0}]
[]
["Sch IVA","LT Premium",null,"Unrelated - 1. Mortality",{"$f":"'Schedule IVB'!E12","v":0},null,{"$f":"'Schedule IVB'!G12","v":0},null,{"$f":"'Schedule IVB (EBS)'!E12","v":0},null,{"$f":"'Schedule IVB (EBS)'!G12","v":0}]
["Sch IVA","LT Premium",null,"Unrelated - 2. Critical Illness",{"$f":"'Schedule IVB'!E13","v":0},null,{"$f":"'Schedule IVB'!G13","v":0},null,{"$f":"'Schedule IVB (EBS)'!E13","v":0},null,{"$f":"'Schedule IVB (EBS)'!G13","v":0}]
["Sch IVA","LT Premium",null,"Unrelated - 3. Longevity",{"$f":"'Schedule IVB'!E14","v":0},null,{"$f":"'Schedule IVB'!G14","v":0},null,{"$f":"'Schedule IVB (EBS)'!E14","v":0},null,{"$f":"'Schedule IVB (EBS)'!G14","v":0}]
["Sch IVA","LT Premium",null,"Unrelated - 4. Deferred Annuities ",{"$f":"'Schedule IVB'!E15","v":0},null,{"$f":"'Schedule IVB'!G15","v":0},null,{"$f":"'Schedule IVB (EBS)'!E15","v":0},null,{"$f":"'Schedule IVB (EBS)'!G15","v":0}]
["Sch IVA","LT Premium",null,"Unrelated - 5i. Dis. Income: 1 Yr",{"$f":"'Schedule IVB'!E17","v":0},null,{"$f":"'Schedule IVB'!G17","v":0},null,{"$f":"'Schedule IVB (EBS)'!E17","v":0},null,{"$f":"'Schedule IVB (EBS)'!G17","v":0}]
["Sch IVA","LT Premium",null,"Unrelated - 5ii. Dis. Income: 1-5 Yrs",{"$f":"'Schedule IVB'!E18","v":0},null,{"$f":"'Schedule IVB'!G18","v":0},null,{"$f":"'Schedule IVB (EBS)'!E18","v":0},null,{"$f":"'Schedule IVB (EBS)'!G18","v":0}]
["Sch IVA","LT Premium",null,"Unrelated - 5iii. Dis. Income: 5+ Yrs",{"$f":"'Schedule IVB'!E19","v":0},null,{"$f":"'Schedule IVB'!G19","v":0},null,{"$f":"'Schedule IVB (EBS)'!E19","v":0},null,{"$f":"'Schedule IVB (EBS)'!G19","v":0}]
["Sch IVA","LT Premium",null,"Unrelated - 6. Dis. Income: Active Liv",{"$f":"'Schedule IVB'!E20","v":0},null,{"$f":"'Schedule IVB'!G20","v":0},null,{"$f":"'Schedule IVB (EBS)'!E20","v":0},null,{"$f":"'Schedule IVB (EBS)'!G20","v":0}]
["Sch IVA","LT Premium",null,"Unrelated - 7. Dis. Income: Claims in Pay",{"$f":"'Schedule IVB'!E22","v":0},null,{"$f":"'Schedule IVB'!G22","v":0},null,{"$f":"'Schedule IVB (EBS)'!E22","v":0},null,{"$f":"'Schedule IVB (EBS)'!G22","v":0}]
["Sch IVA","LT Premium",null,"Unrelated - 8. Dis. Income: Claims in Pay Other",{"$f":"'Schedule IVB'!E23","v":0},null,{"$f":"'Schedule IVB'!G23","v":0},null,{"$f":"'Schedule IVB (EBS)'!E23","v":0},null,{"$f":"'Schedule IVB (EBS)'!G23","v":0}]
["Sch IVA","LT Premium",null,"Unrelated - 9. Group Life",{"$f":"'Schedule IVB'!E25","v":0},null,{"$f":"'Schedule IVB'!G25","v":0},null,{"$f":"'Schedule IVB (EBS)'!E25","v":0},null,{"$f":"'Schedule IVB (EBS)'!G25","v":0}]
["Sch IVA","LT Premium",null,"Unrelated - 10. Group Disability",{"$f":"'Schedule IVB'!E26","v":0},null,{"$f":"'Schedule IVB'!G26","v":0},null,{"$f":"'Schedule IVB (EBS)'!E26","v":0},null,{"$f":"'Schedule IVB (EBS)'!G26","v":0}]
["Sch IVA","LT Premium",null,"Unrelated - 11. Group Health",{"$f":"'Schedule IVB'!E27","v":0},null,{"$f":"'Schedule IVB'!G27","v":0},null,{"$f":"'Schedule IVB (EBS)'!E27","v":0},null,{"$f":"'Schedule IVB (EBS)'!G27","v":0}]
["Sch IVA","LT Premium",null,"Unrelated - 12. Stop Loss",{"$f":"'Schedule IVB'!E28","v":0},null,{"$f":"'Schedule IVB'!G28","v":0},null,{"$f":"'Schedule IVB (EBS)'!E28","v":0},null,{"$f":"'Schedule IVB (EBS)'!G28","v":0}]
["Sch IVA","LT Premium",null,"Unrelated - 13. Riders",{"$f":"'Schedule IVB'!E29","v":0},null,{"$f":"'Schedule IVB'!G29","v":0},null,{"$f":"'Schedule IVB (EBS)'!E29","v":0},null,{"$f":"'Schedule IVB (EBS)'!G29","v":0}]
["Sch IVA","LT Premium",null,"Unrelated - 14. Variable Annuities",{"$f":"'Schedule IVB'!E30","v":0},null,{"$f":"'Schedule IVB'!G30","v":0},null,{"$f":"'Schedule IVB (EBS)'!E30","v":0},null,{"$f":"'Schedule IVB (EBS)'!G30","v":0}]
["Sch IVA","LT Premium",null,"Related - 1. Mortality",{"$f":"'Schedule IVB'!I12","v":0},null,{"$f":"'Schedule IVB'!K12","v":0},null,{"$f":"'Schedule IVB (EBS)'!I12","v":0},null,{"$f":"'Schedule IVB (EBS)'!K12","v":0}]
["Sch IVA","LT Premium",null,"Related - 2. Critical Illness",{"$f":"'Schedule IVB'!I13","v":0},null,{"$f":"'Schedule IVB'!K13","v":0},null,{"$f":"'Schedule IVB (EBS)'!I13","v":0},null,{"$f":"'Schedule IVB (EBS)'!K13","v":0}]
["Sch IVA","LT Premium",null,"Related - 3. Longevity",{"$f":"'Schedule IVB'!I14","v":0},null,{"$f":"'Schedule IVB'!K14","v":0},null,{"$f":"'Schedule IVB (EBS)'!I14","v":0},null,{"$f":"'Schedule IVB (EBS)'!K14","v":0}]
["Sch IVA","LT Premium",null,"Related - 4. Deferred Annuities ",{"$f":"'Schedule IVB'!I15","v":0},null,{"$f":"'Schedule IVB'!K15","v":0},null,{"$f":"'Schedule IVB (EBS)'!I15","v":0},null,{"$f":"'Schedule IVB (EBS)'!K15","v":0}]
["Sch IVA","LT Premium",null,"Related - 5i. Dis. Income: 1 Yr",{"$f":"'Schedule IVB'!I17","v":0},null,{"$f":"'Schedule IVB'!K17","v":0},null,{"$f":"'Schedule IVB (EBS)'!I17","v":0},null,{"$f":"'Schedule IVB (EBS)'!K17","v":0}]
["Sch IVA","LT Premium",null,"Related - 5ii. Dis. Income: 1-5 Yrs",{"$f":"'Schedule IVB'!I18","v":0},null,{"$f":"'Schedule IVB'!K18","v":0},null,{"$f":"'Schedule IVB (EBS)'!I18","v":0},null,{"$f":"'Schedule IVB (EBS)'!K18","v":0}]
["Sch IVA","LT Premium",null,"Related - 5iiii. Dis. Income: 5+ Yrs",{"$f":"'Schedule IVB'!I19","v":0},null,{"$f":"'Schedule IVB'!K19","v":0},null,{"$f":"'Schedule IVB (EBS)'!I19","v":0},null,{"$f":"'Schedule IVB (EBS)'!K19","v":0}]
["Sch IVA","LT Premium",null,"Related - 6. Dis. Income: Active Liv",{"$f":"'Schedule IVB'!I20","v":0},null,{"$f":"'Schedule IVB'!K20","v":0},null,{"$f":"'Schedule IVB (EBS)'!I20","v":0},null,{"$f":"'Schedule IVB (EBS)'!K20","v":0}]
["Sch IVA","LT Premium",null,"Related - 7. Dis. Income: Claims in Pay",{"$f":"'Schedule IVB'!I22","v":0},null,{"$f":"'Schedule IVB'!K22","v":0},null,{"$f":"'Schedule IVB (EBS)'!I22","v":0},null,{"$f":"'Schedule IVB (EBS)'!K22","v":0}]
["Sch IVA","LT Premium",null,"Related - 8. Dis. Income: Claims in Pay Other",{"$f":"'Schedule IVB'!I23","v":0},null,{"$f":"'Schedule IVB'!K23","v":0},null,{"$f":"'Schedule IVB (EBS)'!I23","v":0},null,{"$f":"'Schedule IVB (EBS)'!K23","v":0}]
["Sch IVA","LT Premium",null,"Related - 9. Group Life",{"$f":"'Schedule IVB'!I25","v":0},null,{"$f":"'Schedule IVB'!K25","v":0},null,{"$f":"'Schedule IVB (EBS)'!I25","v":0},null,{"$f":"'Schedule IVB (EBS)'!K25","v":0}]
["Sch IVA","LT Premium",null,"Related - 10. Group Disability",{"$f":"'Schedule IVB'!I26","v":0},null,{"$f":"'Schedule IVB'!K26","v":0},null,{"$f":"'Schedule IVB (EBS)'!I26","v":0},null,{"$f":"'Schedule IVB (EBS)'!K26","v":0}]
["Sch IVA","LT Premium",null,"Related - 11. Group Health",{"$f":"'Schedule IVB'!I27","v":0},null,{"$f":"'Schedule IVB'!K27","v":0},null,{"$f":"'Schedule IVB (EBS)'!I27","v":0},null,{"$f":"'Schedule IVB (EBS)'!K27","v":0}]
["Sch IVA","LT Premium",null,"Related - 12. Stop Loss",{"$f":"'Schedule IVB'!I28","v":0},null,{"$f":"'Schedule IVB'!K28","v":0},null,{"$f":"'Schedule IVB (EBS)'!I28","v":0},null,{"$f":"'Schedule IVB (EBS)'!K28","v":0}]
["Sch IVA","LT Premium",null,"Related - 13. Riders",{"$f":"'Schedule IVB'!I29","v":0},null,{"$f":"'Schedule IVB'!K29","v":0},null,{"$f":"'Schedule IVB (EBS)'!I29","v":0},null,{"$f":"'Schedule IVB (EBS)'!K29","v":0}]
["Sch IVA","LT Premium",null,"Related - 14. Variable Annuities",{"$f":"'Schedule IVB'!I30","v":0},null,{"$f":"'Schedule IVB'!K30","v":0},null,{"$f":"'Schedule IVB (EBS)'!I30","v":0},null,{"$f":"'Schedule IVB (EBS)'!K30","v":0}]
["Sch IVA","LT Premium",null,"Adj. Benefit -2 Yrs - 5i. Dis. Income: 1 Yr",{"$f":"'Schedule IVB'!Q17","v":0},null,{"$f":"'Schedule IVB'!S17","v":0},null,{"$f":"'Schedule IVB (EBS)'!Q17","v":0},null,{"$f":"'Schedule IVB (EBS)'!S17","v":0}]
["Sch IVA","LT Premium",null,"Adj. Benefit -2 Yrs - 5ii. Dis. Income: 1-5 Yrs",{"$f":"'Schedule IVB'!Q18","v":0},null,{"$f":"'Schedule IVB'!S18","v":0},null,{"$f":"'Schedule IVB (EBS)'!Q18","v":0},null,{"$f":"'Schedule IVB (EBS)'!S18","v":0}]
["Sch IVA","LT Premium",null,"Adj. Benefit -2 Yrs - 5iii. Dis. Income: 5+ Yrs",{"$f":"'Schedule IVB'!Q19","v":0},null,{"$f":"'Schedule IVB'!S19","v":0},null,{"$f":"'Schedule IVB (EBS)'!Q19","v":0},null,{"$f":"'Schedule IVB (EBS)'!S19","v":0}]
["Sch IVA","LT Premium",null,"Adj. Benefit +2 Yrs - 5i. Dis. Income: 1 Yr",{"$f":"'Schedule IVB'!U17","v":0},null,{"$f":"'Schedule IVB'!W17","v":0},null,{"$f":"'Schedule IVB (EBS)'!U17","v":0},null,{"$f":"'Schedule IVB (EBS)'!W17","v":0}]
["Sch IVA","LT Premium",null,"Adj. Benefit +2 Yrs - 5ii. Dis. Income: 1-5 Yrs",{"$f":"'Schedule IVB'!U18","v":0},null,{"$f":"'Schedule IVB'!W18","v":0},null,{"$f":"'Schedule IVB (EBS)'!U18","v":0},null,{"$f":"'Schedule IVB (EBS)'!W18","v":0}]
["Sch IVA","LT Premium",null,"Adj. Benefit +2 Yrs - 5iii. Dis. Income: 5+ Yrs",{"$f":"'Schedule IVB'!U19","v":0},null,{"$f":"'Schedule IVB'!W19","v":0},null,{"$f":"'Schedule IVB (EBS)'!U19","v":0},null,{"$f":"'Schedule IVB (EBS)'!W19","v":0}]
["Sch IVA","LT Premium",null,"Net - 1. Mortality",{"$f":"'Schedule IVB'!Y12","v":0},null,{"$f":"'Schedule IVB'!AA12","v":0},null,{"$f":"'Schedule IVB (EBS)'!Y12","v":0},null,{"$f":"'Schedule IVB (EBS)'!AA12","v":0}]
["Sch IVA","LT Premium",null,"Net - 2. Critical Illness",{"$f":"'Schedule IVB'!Y13","v":0},null,{"$f":"'Schedule IVB'!AA13","v":0},null,{"$f":"'Schedule IVB (EBS)'!Y13","v":0},null,{"$f":"'Schedule IVB (EBS)'!AA13","v":0}]
["Sch IVA","LT Premium",null,"Net - 3. Longevity",{"$f":"'Schedule IVB'!Y14","v":0},null,{"$f":"'Schedule IVB'!AA14","v":0},null,{"$f":"'Schedule IVB (EBS)'!Y14","v":0},null,{"$f":"'Schedule IVB (EBS)'!AA14","v":0}]
["Sch IVA","LT Premium",null,"Net - 4. Deferred Annuities ",{"$f":"'Schedule IVB'!Y15","v":0},null,{"$f":"'Schedule IVB'!AA15","v":0},null,{"$f":"'Schedule IVB (EBS)'!Y15","v":0},null,{"$f":"'Schedule IVB (EBS)'!AA15","v":0}]
["Sch IVA","LT Premium",null,"Net - 6. Dis. Income: Active Liv",{"$f":"'Schedule IVB'!Y20","v":0},null,{"$f":"'Schedule IVB'!AA20","v":0},null,{"$f":"'Schedule IVB (EBS)'!Y20","v":0},null,{"$f":"'Schedule IVB (EBS)'!AA20","v":0}]
["Sch IVA","LT Premium",null,"Net - 7. Dis. Income: Claims in Pay",{"$f":"'Schedule IVB'!Y22","v":0},null,{"$f":"'Schedule IVB'!AA22","v":0},null,{"$f":"'Schedule IVB (EBS)'!Y22","v":0},null,{"$f":"'Schedule IVB (EBS)'!AA22","v":0}]
["Sch IVA","LT Premium",null,"Net - 8. Dis. Income: Claims in Pay Other",{"$f":"'Schedule IVB'!Y23","v":0},null,{"$f":"'Schedule IVB'!AA23","v":0},null,{"$f":"'Schedule IVB (EBS)'!Y23","v":0},null,{"$f":"'Schedule IVB (EBS)'!AA23","v":0}]
["Sch IVA","LT Premium",null,"Net - 9. Group Life",{"$f":"'Schedule IVB'!Y25","v":0},null,{"$f":"'Schedule IVB'!AA25","v":0},null,{"$f":"'Schedule IVB (EBS)'!Y25","v":0},null,{"$f":"'Schedule IVB (EBS)'!AA25","v":0}]
["Sch IVA","LT Premium",null,"Net - 10. Group Disability",{"$f":"'Schedule IVB'!Y26","v":0},null,{"$f":"'Schedule IVB'!AA26","v":0},null,{"$f":"'Schedule IVB (EBS)'!Y26","v":0},null,{"$f":"'Schedule IVB (EBS)'!AA26","v":0}]
["Sch IVA","LT Premium",null,"Net - 11. Group Health",{"$f":"'Schedule IVB'!Y27","v":0},null,{"$f":"'Schedule IVB'!AA27","v":0},null,{"$f":"'Schedule IVB (EBS)'!Y27","v":0},null,{"$f":"'Schedule IVB (EBS)'!AA27","v":0}]
["Sch IVA","LT Premium",null,"Net - 12. Stop Loss",{"$f":"'Schedule IVB'!Y28","v":0},null,{"$f":"'Schedule IVB'!AA28","v":0},null,{"$f":"'Schedule IVB (EBS)'!Y28","v":0},null,{"$f":"'Schedule IVB (EBS)'!AA28","v":0}]
["Sch IVA","LT Premium",null,"Net - 13. Riders",{"$f":"'Schedule IVB'!Y29","v":0},null,{"$f":"'Schedule IVB'!AA29","v":0},null,{"$f":"'Schedule IVB (EBS)'!Y29","v":0},null,{"$f":"'Schedule IVB (EBS)'!AA29","v":0}]
["Sch IVA","LT Premium",null,"Net - 14. Variable Annuities",{"$f":"'Schedule IVB'!Y30","v":0},null,{"$f":"'Schedule IVB'!AA30","v":0},null,{"$f":"'Schedule IVB (EBS)'!Y30","v":0},null,{"$f":"'Schedule IVB (EBS)'!AA30","v":0}]
[]
["Sch V","Risk Mgnt",null,"Asset Duration",null,null,null,null,null,null,null,null,{"$f":"'Schedule V'!H11","v":0}]
["Sch V","Risk Mgnt",null,"Liability Duration",null,null,null,null,null,null,null,null,{"$f":"'Schedule V'!H13","v":0}]
["Sch V","Risk Mgnt",null,"Weighted Average of Difference",null,null,null,null,{"$f":"'Schedule V'!H15","v":0}]
["Sch V","Risk Mgnt",null,"Reserves with Known Duration",null,null,null,null,{"$f":"'Schedule V'!H19","v":0}]
["Sch V","Risk Mgnt",null,"Projected Net Premium Written",null,null,null,null,{"$f":"'Schedule V'!H24","v":0}]
["Sch V","Risk Mgnt",null,"Projected % of Group ",null,null,null,null,{"$f":"'Schedule V'!I26","v":0},null,null,null,{"$f":"'Schedule V'!I25","v":0}]
["Sch V","Risk Mgnt",null,"Projected Net Income",null,null,null,null,{"$f":"'Schedule V'!H25","v":0}]
["Sch V","Risk Mgnt",null,"a)Def Acc",null,null,null,null,{"$f":"'Schedule V'!H38","v":0}]
["Sch V","Risk Mgnt",null,"b)Def Acc",null,null,null,null,{"$f":"'Schedule V'!H39","v":0}]
["Sch V","Risk Mgnt",null,"c)Def Acc",null,null,null,null,{"$f":"'Schedule V'!H40","v":0}]
["Sch V","Risk Mgnt",null,"d)Def Acc",null,null,null,null,{"$f":"'Schedule V'!H41","v":0}]
[]
["Sch Va","Governance",null,"# of Directors",{"$f":"'Schedule V(a)'!D8","v":0}]
["Sch Va","Governance",null,"Director Name - 1",{"$f":"'Schedule V(a)'!C12","v":0}]
["Sch Va","Governance",null,"Director Name - 2",{"$f":"'Schedule V(a)'!C13","v":0}]
["Sch Va","Governance",null,"Director Name - 3",{"$f":"'Schedule V(a)'!C14","v":0}]
["Sch Va","Governance",null,"Director Name - 4",{"$f":"'Schedule V(a)'!C15","v":0}]
["Sch Va","Governance",null,"Director Name - 5",{"$f":"'Schedule V(a)'!C16","v":0}]
["Sch Va","Governance",null,"Director Name - 6",{"$f":"'Schedule V(a)'!C17","v":0}]
["Sch Va","Governance",null,"Director Name - 7",{"$f":"'Schedule V(a)'!C18","v":0}]
["Sch Va","Governance",null,"Director Name - 8",{"$f":"'Schedule V(a)'!C19","v":0}]
["Sch Va","Governance",null,"Director Name - 9",{"$f":"'Schedule V(a)'!C20","v":0}]
["Sch Va","Governance",null,"Director Name - 10",{"$f":"'Schedule V(a)'!C21","v":0}]
["Sch Va","Governance",null,"Director Name - 11",{"$f":"'Schedule V(a)'!C22","v":0}]
["Sch Va","Governance",null,"Director Name - 12",{"$f":"'Schedule V(a)'!C23","v":0}]
["Sch Va","Governance",null,"Director Name - 13",{"$f":"'Schedule V(a)'!C24","v":0}]
["Sch Va","Governance",null,"Director Name - 14",{"$f":"'Schedule V(a)'!C25","v":0}]
["Sch Va","Governance",null,"Director Name - 15",{"$f":"'Schedule V(a)'!C26","v":0}]
["Sch Va","Governance",null,"Director Name - 16",{"$f":"'Schedule V(a)'!C27","v":0}]
["Sch Va","Governance",null,"Director Name - 17",{"$f":"'Schedule V(a)'!C28","v":0}]
["Sch Va","Governance",null,"Director Name - 18",{"$f":"'Schedule V(a)'!C29","v":0}]
["Sch Va","Governance",null,"Director Name - 19",{"$f":"'Schedule V(a)'!C30","v":0}]
["Sch Va","Governance",null,"Director Name - 20",{"$f":"'Schedule V(a)'!C31","v":0}]
["Sch Va","Governance",null,"Director Position - 1",{"$f":"'Schedule V(a)'!D12","v":0}]
["Sch Va","Governance",null,"Director Position - 2",{"$f":"'Schedule V(a)'!D13","v":0}]
["Sch Va","Governance",null,"Director Position - 3",{"$f":"'Schedule V(a)'!D14","v":0}]
["Sch Va","Governance",null,"Director Position - 4",{"$f":"'Schedule V(a)'!D15","v":0}]
["Sch Va","Governance",null,"Director Position - 5",{"$f":"'Schedule V(a)'!D16","v":0}]
["Sch Va","Governance",null,"Director Position - 6",{"$f":"'Schedule V(a)'!D17","v":0}]
["Sch Va","Governance",null,"Director Position - 7",{"$f":"'Schedule V(a)'!D18","v":0}]
["Sch Va","Governance",null,"Director Position - 8",{"$f":"'Schedule V(a)'!D19","v":0}]
["Sch Va","Governance",null,"Director Position - 9",{"$f":"'Schedule V(a)'!D20","v":0}]
["Sch Va","Governance",null,"Director Position - 10",{"$f":"'Schedule V(a)'!D21","v":0}]
["Sch Va","Governance",null,"Director Position - 11",{"$f":"'Schedule V(a)'!D22","v":0}]
["Sch Va","Governance",null,"Director Position - 12",{"$f":"'Schedule V(a)'!D23","v":0}]
["Sch Va","Governance",null,"Director Position - 13",{"$f":"'Schedule V(a)'!D24","v":0}]
["Sch Va","Governance",null,"Director Position - 14",{"$f":"'Schedule V(a)'!D25","v":0}]
["Sch Va","Governance",null,"Director Position - 15",{"$f":"'Schedule V(a)'!D26","v":0}]
["Sch Va","Governance",null,"Director Position - 16",{"$f":"'Schedule V(a)'!D27","v":0}]
["Sch Va","Governance",null,"Director Position - 17",{"$f":"'Schedule V(a)'!D28","v":0}]
["Sch Va","Governance",null,"Director Position - 18",{"$f":"'Schedule V(a)'!D29","v":0}]
["Sch Va","Governance",null,"Director Position - 19",{"$f":"'Schedule V(a)'!D30","v":0}]
["Sch Va","Governance",null,"Director Position - 20",{"$f":"'Schedule V(a)'!D31","v":0}]
["Sch Va","Governance",null,"Director Residence - 1",{"$f":"'Schedule V(a)'!E12","v":0}]
["Sch Va","Governance",null,"Director Residence - 2",{"$f":"'Schedule V(a)'!E13","v":0}]
["Sch Va","Governance",null,"Director Residence - 3",{"$f":"'Schedule V(a)'!E14","v":0}]
["Sch Va","Governance",null,"Director Residence - 4",{"$f":"'Schedule V(a)'!E15","v":0}]
["Sch Va","Governance",null,"Director Residence - 5",{"$f":"'Schedule V(a)'!E16","v":0}]
["Sch Va","Governance",null,"Director Residence - 6",{"$f":"'Schedule V(a)'!E17","v":0}]
["Sch Va","Governance",null,"Director Residence - 7",{"$f":"'Schedule V(a)'!E18","v":0}]
["Sch Va","Governance",null,"Director Residence - 8",{"$f":"'Schedule V(a)'!E19","v":0}]
["Sch Va","Governance",null,"Director Residence - 9",{"$f":"'Schedule V(a)'!E20","v":0}]
["Sch Va","Governance",null,"Director Residence - 10",{"$f":"'Schedule V(a)'!E21","v":0}]
["Sch Va","Governance",null,"Director Residence - 11",{"$f":"'Schedule V(a)'!E22","v":0}]
["Sch Va","Governance",null,"Director Residence - 12",{"$f":"'Schedule V(a)'!E23","v":0}]
["Sch Va","Governance",null,"Director Residence - 13",{"$f":"'Schedule V(a)'!E24","v":0}]
["Sch Va","Governance",null,"Director Residence - 14",{"$f":"'Schedule V(a)'!E25","v":0}]
["Sch Va","Governance",null,"Director Residence - 15",{"$f":"'Schedule V(a)'!E26","v":0}]
["Sch Va","Governance",null,"Director Residence - 16",{"$f":"'Schedule V(a)'!E27","v":0}]
["Sch Va","Governance",null,"Director Residence - 17",{"$f":"'Schedule V(a)'!E28","v":0}]
["Sch Va","Governance",null,"Director Residence - 18",{"$f":"'Schedule V(a)'!E29","v":0}]
["Sch Va","Governance",null,"Director Residence - 19",{"$f":"'Schedule V(a)'!E30","v":0}]
["Sch Va","Governance",null,"Director Residence - 20",{"$f":"'Schedule V(a)'!E31","v":0}]
["Sch Va","Governance",null,"Director Work Experience - 1",{"$f":"'Schedule V(a)'!F12","v":0}]
["Sch Va","Governance",null,"Director Work Experience - 2",{"$f":"'Schedule V(a)'!F13","v":0}]
["Sch Va","Governance",null,"Director Work Experience - 3",{"$f":"'Schedule V(a)'!F14","v":0}]
["Sch Va","Governance",null,"Director Work Experience - 4",{"$f":"'Schedule V(a)'!F15","v":0}]
["Sch Va","Governance",null,"Director Work Experience - 5",{"$f":"'Schedule V(a)'!F16","v":0}]
["Sch Va","Governance",null,"Director Work Experience - 6",{"$f":"'Schedule V(a)'!F17","v":0}]
["Sch Va","Governance",null,"Director Work Experience - 7",{"$f":"'Schedule V(a)'!F18","v":0}]
["Sch Va","Governance",null,"Director Work Experience - 8",{"$f":"'Schedule V(a)'!F19","v":0}]
["Sch Va","Governance",null,"Director Work Experience - 9",{"$f":"'Schedule V(a)'!F20","v":0}]
["Sch Va","Governance",null,"Director Work Experience - 10",{"$f":"'Schedule V(a)'!F21","v":0}]
["Sch Va","Governance",null,"Director Work Experience - 11",{"$f":"'Schedule V(a)'!F22","v":0}]
["Sch Va","Governance",null,"Director Work Experience - 12",{"$f":"'Schedule V(a)'!F23","v":0}]
["Sch Va","Governance",null,"Director Work Experience - 13",{"$f":"'Schedule V(a)'!F24","v":0}]
["Sch Va","Governance",null,"Director Work Experience - 14",{"$f":"'Schedule V(a)'!F25","v":0}]
["Sch Va","Governance",null,"Director Work Experience - 15",{"$f":"'Schedule V(a)'!F26","v":0}]
["Sch Va","Governance",null,"Director Work Experience - 16",{"$f":"'Schedule V(a)'!F27","v":0}]
["Sch Va","Governance",null,"Director Work Experience - 17",{"$f":"'Schedule V(a)'!F28","v":0}]
["Sch Va","Governance",null,"Director Work Experience - 18",{"$f":"'Schedule V(a)'!F29","v":0}]
["Sch Va","Governance",null,"Director Work Experience - 19",{"$f":"'Schedule V(a)'!F30","v":0}]
["Sch Va","Governance",null,"Director Work Experience - 20",{"$f":"'Schedule V(a)'!F31","v":0}]
["Sch Va","Governance",null,"Director Status on Board - 1",{"$f":"'Schedule V(a)'!H12","v":"Select"}]
["Sch Va","Governance",null,"Director Status on Board - 2",{"$f":"'Schedule V(a)'!H13","v":"Select"}]
["Sch Va","Governance",null,"Director Status on Board - 3",{"$f":"'Schedule V(a)'!H14","v":"Select"}]
["Sch Va","Governance",null,"Director Status on Board - 4",{"$f":"'Schedule V(a)'!H15","v":"Select"}]
["Sch Va","Governance",null,"Director Status on Board - 5",{"$f":"'Schedule V(a)'!H16","v":"Select"}]
["Sch Va","Governance",null,"Director Status on Board - 6",{"$f":"'Schedule V(a)'!H17","v":"Select"}]
["Sch Va","Governance",null,"Director Status on Board - 7",{"$f":"'Schedule V(a)'!H18","v":"Select"}]
["Sch Va","Governance",null,"Director Status on Board - 8",{"$f":"'Schedule V(a)'!H19","v":"Select"}]
["Sch Va","Governance",null,"Director Status on Board - 9",{"$f":"'Schedule V(a)'!H20","v":"Select"}]
["Sch Va","Governance",null,"Director Status on Board - 10",{"$f":"'Schedule V(a)'!H21","v":"Select"}]
["Sch Va","Governance",null,"Director Status on Board - 11",{"$f":"'Schedule V(a)'!H22","v":"Select"}]
["Sch Va","Governance",null,"Director Status on Board - 12",{"$f":"'Schedule V(a)'!H23","v":"Select"}]
["Sch Va","Governance",null,"Director Status on Board - 13",{"$f":"'Schedule V(a)'!H24","v":"Select"}]
["Sch Va","Governance",null,"Director Status on Board - 14",{"$f":"'Schedule V(a)'!H25","v":"Select"}]
["Sch Va","Governance",null,"Director Status on Board - 15",{"$f":"'Schedule V(a)'!H26","v":"Select"}]
["Sch Va","Governance",null,"Director Status on Board - 16",{"$f":"'Schedule V(a)'!H27","v":"Select"}]
["Sch Va","Governance",null,"Director Status on Board - 17",{"$f":"'Schedule V(a)'!H28","v":"Select"}]
["Sch Va","Governance",null,"Director Status on Board - 18",{"$f":"'Schedule V(a)'!H29","v":"Select"}]
["Sch Va","Governance",null,"Director Status on Board - 19",{"$f":"'Schedule V(a)'!H30","v":"Select"}]
["Sch Va","Governance",null,"Director Status on Board - 20",{"$f":"'Schedule V(a)'!H31","v":"Select"}]
["Sch Va","Governance",null,"# of Executives",{"$f":"'Schedule V(a)'!D33","v":0}]
["Sch Va","Governance",null,"Executive Name - 1",{"$f":"'Schedule V(a)'!C37","v":0}]
["Sch Va","Governance",null,"Executive Name - 2",{"$f":"'Schedule V(a)'!C38","v":0}]
["Sch Va","Governance",null,"Executive Name - 3",{"$f":"'Schedule V(a)'!C39","v":0}]
["Sch Va","Governance",null,"Executive Name - 4",{"$f":"'Schedule V(a)'!C40","v":0}]
["Sch Va","Governance",null,"Executive Name - 5",{"$f":"'Schedule V(a)'!C41","v":0}]
["Sch Va","Governance",null,"Executive Name - 6",{"$f":"'Schedule V(a)'!C42","v":0}]
["Sch Va","Governance",null,"Executive Name - 7",{"$f":"'Schedule V(a)'!C43","v":0}]
["Sch Va","Governance",null,"Executive Name - 8",{"$f":"'Schedule V(a)'!C44","v":0}]
["Sch Va","Governance",null,"Executive Name - 9",{"$f":"'Schedule V(a)'!C45","v":0}]
["Sch Va","Governance",null,"Executive Name - 10",{"$f":"'Schedule V(a)'!C46","v":0}]
["Sch Va","Governance",null,"Executive Name - 11",{"$f":"'Schedule V(a)'!C47","v":0}]
["Sch Va","Governance",null,"Executive Name - 12",{"$f":"'Schedule V(a)'!C48","v":0}]
["Sch Va","Governance",null,"Executive Name - 13",{"$f":"'Schedule V(a)'!C49","v":0}]
["Sch Va","Governance",null,"Executive Name - 14",{"$f":"'Schedule V(a)'!C50","v":0}]
["Sch Va","Governance",null,"Executive Name - 15",{"$f":"'Schedule V(a)'!C51","v":0}]
["Sch Va","Governance",null,"Executive Name - 16",{"$f":"'Schedule V(a)'!C52","v":0}]
["Sch Va","Governance",null,"Executive Name - 17",{"$f":"'Schedule V(a)'!C53","v":0}]
["Sch Va","Governance",null,"Executive Name - 18",{"$f":"'Schedule V(a)'!C54","v":0}]
["Sch Va","Governance",null,"Executive Name - 19",{"$f":"'Schedule V(a)'!C55","v":0}]
["Sch Va","Governance",null,"Executive Name - 20",{"$f":"'Schedule V(a)'!C56","v":0}]
["Sch Va","Governance",null,"Executive Position - 1",{"$f":"'Schedule V(a)'!D37","v":0}]
["Sch Va","Governance",null,"Executive Position - 2",{"$f":"'Schedule V(a)'!D38","v":0}]
["Sch Va","Governance",null,"Executive Position - 3",{"$f":"'Schedule V(a)'!D39","v":0}]
["Sch Va","Governance",null,"Executive Position - 4",{"$f":"'Schedule V(a)'!D40","v":0}]
["Sch Va","Governance",null,"Executive Position - 5",{"$f":"'Schedule V(a)'!D41","v":0}]
["Sch Va","Governance",null,"Executive Position - 6",{"$f":"'Schedule V(a)'!D42","v":0}]
["Sch Va","Governance",null,"Executive Position - 7",{"$f":"'Schedule V(a)'!D43","v":0}]
["Sch Va","Governance",null,"Executive Position - 8",{"$f":"'Schedule V(a)'!D44","v":0}]
["Sch Va","Governance",null,"Executive Position - 9",{"$f":"'Schedule V(a)'!D45","v":0}]
["Sch Va","Governance",null,"Executive Position - 10",{"$f":"'Schedule V(a)'!D46","v":0}]
["Sch Va","Governance",null,"Executive Position - 11",{"$f":"'Schedule V(a)'!D47","v":0}]
["Sch Va","Governance",null,"Executive Position - 12",{"$f":"'Schedule V(a)'!D48","v":0}]
["Sch Va","Governance",null,"Executive Position - 13",{"$f":"'Schedule V(a)'!D49","v":0}]
["Sch Va","Governance",null,"Executive Position - 14",{"$f":"'Schedule V(a)'!D50","v":0}]
["Sch Va","Governance",null,"Executive Position - 15",{"$f":"'Schedule V(a)'!D51","v":0}]
["Sch Va","Governance",null,"Executive Position - 16",{"$f":"'Schedule V(a)'!D52","v":0}]
["Sch Va","Governance",null,"Executive Position - 17",{"$f":"'Schedule V(a)'!D53","v":0}]
["Sch Va","Governance",null,"Executive Position - 18",{"$f":"'Schedule V(a)'!D54","v":0}]
["Sch Va","Governance",null,"Executive Position - 19",{"$f":"'Schedule V(a)'!D55","v":0}]
["Sch Va","Governance",null,"Executive Position - 20",{"$f":"'Schedule V(a)'!D56","v":0}]
["Sch Va","Governance",null,"Executive Residence - 1",{"$f":"'Schedule V(a)'!E37","v":0}]
["Sch Va","Governance",null,"Executive Residence - 2",{"$f":"'Schedule V(a)'!E38","v":0}]
["Sch Va","Governance",null,"Executive Residence - 3",{"$f":"'Schedule V(a)'!E39","v":0}]
["Sch Va","Governance",null,"Executive Residence - 4",{"$f":"'Schedule V(a)'!E40","v":0}]
["Sch Va","Governance",null,"Executive Residence - 5",{"$f":"'Schedule V(a)'!E41","v":0}]
["Sch Va","Governance",null,"Executive Residence - 6",{"$f":"'Schedule V(a)'!E42","v":0}]
["Sch Va","Governance",null,"Executive Residence - 7",{"$f":"'Schedule V(a)'!E43","v":0}]
["Sch Va","Governance",null,"Executive Residence - 8",{"$f":"'Schedule V(a)'!E44","v":0}]
["Sch Va","Governance",null,"Executive Residence - 9",{"$f":"'Schedule V(a)'!E45","v":0}]
["Sch Va","Governance",null,"Executive Residence - 10",{"$f":"'Schedule V(a)'!E46","v":0}]
["Sch Va","Governance",null,"Executive Residence - 11",{"$f":"'Schedule V(a)'!E47","v":0}]
["Sch Va","Governance",null,"Executive Residence - 12",{"$f":"'Schedule V(a)'!E48","v":0}]
["Sch Va","Governance",null,"Executive Residence - 13",{"$f":"'Schedule V(a)'!E49","v":0}]
["Sch Va","Governance",null,"Executive Residence - 14",{"$f":"'Schedule V(a)'!E50","v":0}]
["Sch Va","Governance",null,"Executive Residence - 15",{"$f":"'Schedule V(a)'!E51","v":0}]
["Sch Va","Governance",null,"Executive Residence - 16",{"$f":"'Schedule V(a)'!E52","v":0}]
["Sch Va","Governance",null,"Executive Residence - 17",{"$f":"'Schedule V(a)'!E53","v":0}]
["Sch Va","Governance",null,"Executive Residence - 18",{"$f":"'Schedule V(a)'!E54","v":0}]
["Sch Va","Governance",null,"Executive Residence - 19",{"$f":"'Schedule V(a)'!E55","v":0}]
["Sch Va","Governance",null,"Executive Residence - 20",{"$f":"'Schedule V(a)'!E56","v":0}]
["Sch Va","Governance",null,"Executive Work Experience - 1",{"$f":"'Schedule V(a)'!F37","v":0}]
["Sch Va","Governance",null,"Executive Work Experience - 2",{"$f":"'Schedule V(a)'!F38","v":0}]
["Sch Va","Governance",null,"Executive Work Experience - 3",{"$f":"'Schedule V(a)'!F39","v":0}]
["Sch Va","Governance",null,"Executive Work Experience - 4",{"$f":"'Schedule V(a)'!F40","v":0}]
["Sch Va","Governance",null,"Executive Work Experience - 5",{"$f":"'Schedule V(a)'!F41","v":0}]
["Sch Va","Governance",null,"Executive Work Experience - 6",{"$f":"'Schedule V(a)'!F42","v":0}]
["Sch Va","Governance",null,"Executive Work Experience - 7",{"$f":"'Schedule V(a)'!F43","v":0}]
["Sch Va","Governance",null,"Executive Work Experience - 8",{"$f":"'Schedule V(a)'!F44","v":0}]
["Sch Va","Governance",null,"Executive Work Experience - 9",{"$f":"'Schedule V(a)'!F45","v":0}]
["Sch Va","Governance",null,"Executive Work Experience - 10",{"$f":"'Schedule V(a)'!F46","v":0}]
["Sch Va","Governance",null,"Executive Work Experience - 11",{"$f":"'Schedule V(a)'!F47","v":0}]
["Sch Va","Governance",null,"Executive Work Experience - 12",{"$f":"'Schedule V(a)'!F48","v":0}]
["Sch Va","Governance",null,"Executive Work Experience - 13",{"$f":"'Schedule V(a)'!F49","v":0}]
["Sch Va","Governance",null,"Executive Work Experience - 14",{"$f":"'Schedule V(a)'!F50","v":0}]
["Sch Va","Governance",null,"Executive Work Experience - 15",{"$f":"'Schedule V(a)'!F51","v":0}]
["Sch Va","Governance",null,"Executive Work Experience - 16",{"$f":"'Schedule V(a)'!F52","v":0}]
["Sch Va","Governance",null,"Executive Work Experience - 17",{"$f":"'Schedule V(a)'!F53","v":0}]
["Sch Va","Governance",null,"Executive Work Experience - 18",{"$f":"'Schedule V(a)'!F54","v":0}]
["Sch Va","Governance",null,"Executive Work Experience - 19",{"$f":"'Schedule V(a)'!F55","v":0}]
["Sch Va","Governance",null,"Executive Work Experience - 20",{"$f":"'Schedule V(a)'!F56","v":0}]
["Sch Va","Governance",null,"Executive Employee Arrangement - 1",{"$f":"'Schedule V(a)'!H37","v":"Select"}]
["Sch Va","Governance",null,"Executive Employee Arrangement - 2",{"$f":"'Schedule V(a)'!H38","v":"Select"}]
["Sch Va","Governance",null,"Executive Employee Arrangement - 3",{"$f":"'Schedule V(a)'!H39","v":"Select"}]
["Sch Va","Governance",null,"Executive Employee Arrangement - 4",{"$f":"'Schedule V(a)'!H40","v":"Select"}]
["Sch Va","Governance",null,"Executive Employee Arrangement - 5",{"$f":"'Schedule V(a)'!H41","v":"Select"}]
["Sch Va","Governance",null,"Executive Employee Arrangement - 6",{"$f":"'Schedule V(a)'!H42","v":"Select"}]
["Sch Va","Governance",null,"Executive Employee Arrangement - 7",{"$f":"'Schedule V(a)'!H43","v":"Select"}]
["Sch Va","Governance",null,"Executive Employee Arrangement - 8",{"$f":"'Schedule V(a)'!H44","v":"Select"}]
["Sch Va","Governance",null,"Executive Employee Arrangement - 9",{"$f":"'Schedule V(a)'!H45","v":"Select"}]
["Sch Va","Governance",null,"Executive Employee Arrangement - 10",{"$f":"'Schedule V(a)'!H46","v":"Select"}]
["Sch Va","Governance",null,"Executive Employee Arrangement - 11",{"$f":"'Schedule V(a)'!H47","v":"Select"}]
["Sch Va","Governance",null,"Executive Employee Arrangement - 12",{"$f":"'Schedule V(a)'!H48","v":"Select"}]
["Sch Va","Governance",null,"Executive Employee Arrangement - 13",{"$f":"'Schedule V(a)'!H49","v":"Select"}]
["Sch Va","Governance",null,"Executive Employee Arrangement - 14",{"$f":"'Schedule V(a)'!H50","v":"Select"}]
["Sch Va","Governance",null,"Executive Employee Arrangement - 15",{"$f":"'Schedule V(a)'!H51","v":"Select"}]
["Sch Va","Governance",null,"Executive Employee Arrangement - 16",{"$f":"'Schedule V(a)'!H52","v":"Select"}]
["Sch Va","Governance",null,"Executive Employee Arrangement - 17",{"$f":"'Schedule V(a)'!H53","v":"Select"}]
["Sch Va","Governance",null,"Executive Employee Arrangement - 18",{"$f":"'Schedule V(a)'!H54","v":"Select"}]
["Sch Va","Governance",null,"Executive Employee Arrangement - 19",{"$f":"'Schedule V(a)'!H55","v":"Select"}]
["Sch Va","Governance",null,"Executive Employee Arrangement - 20",{"$f":"'Schedule V(a)'!H56","v":"Select"}]
["Sch Va","Governance",null,"Executive Responsibilities - 1",{"$f":"'Schedule V(a)'!I37","v":"Select"}]
["Sch Va","Governance",null,"Executive Responsibilities - 2",{"$f":"'Schedule V(a)'!I38","v":"Select"}]
["Sch Va","Governance",null,"Executive Responsibilities - 3",{"$f":"'Schedule V(a)'!I39","v":"Select"}]
["Sch Va","Governance",null,"Executive Responsibilities - 4",{"$f":"'Schedule V(a)'!I40","v":"Select"}]
["Sch Va","Governance",null,"Executive Responsibilities - 5",{"$f":"'Schedule V(a)'!I41","v":"Select"}]
["Sch Va","Governance",null,"Executive Responsibilities - 6",{"$f":"'Schedule V(a)'!I42","v":"Select"}]
["Sch Va","Governance",null,"Executive Responsibilities - 7",{"$f":"'Schedule V(a)'!I43","v":"Select"}]
["Sch Va","Governance",null,"Executive Responsibilities - 8",{"$f":"'Schedule V(a)'!I44","v":"Select"}]
["Sch Va","Governance",null,"Executive Responsibilities - 9",{"$f":"'Schedule V(a)'!I45","v":"Select"}]
["Sch Va","Governance",null,"Executive Responsibilities - 10",{"$f":"'Schedule V(a)'!I46","v":"Select"}]
["Sch Va","Governance",null,"Executive Responsibilities - 11",{"$f":"'Schedule V(a)'!I47","v":"Select"}]
["Sch Va","Governance",null,"Executive Responsibilities - 12",{"$f":"'Schedule V(a)'!I48","v":"Select"}]
["Sch Va","Governance",null,"Executive Responsibilities - 13",{"$f":"'Schedule V(a)'!I49","v":"Select"}]
["Sch Va","Governance",null,"Executive Responsibilities - 14",{"$f":"'Schedule V(a)'!I50","v":"Select"}]
["Sch Va","Governance",null,"Executive Responsibilities - 15",{"$f":"'Schedule V(a)'!I51","v":"Select"}]
["Sch Va","Governance",null,"Executive Responsibilities - 16",{"$f":"'Schedule V(a)'!I52","v":"Select"}]
["Sch Va","Governance",null,"Executive Responsibilities - 17",{"$f":"'Schedule V(a)'!I53","v":"Select"}]
["Sch Va","Governance",null,"Executive Responsibilities - 18",{"$f":"'Schedule V(a)'!I54","v":"Select"}]
["Sch Va","Governance",null,"Executive Responsibilities - 19",{"$f":"'Schedule V(a)'!I55","v":"Select"}]
["Sch Va","Governance",null,"Executive Responsibilities - 20",{"$f":"'Schedule V(a)'!I56","v":"Select"}]
["Sch Va","Governance",null,"Tax Residency outside of Bermuda",{"$f":"'Schedule V(a)'!H61","v":"Select Yes/No"}]
["Sch Va","Governance",null,"If Yes, Tax Residency Jurisdiction",{"$f":"'Schedule V(a)'!I61","v":"Select"}]
["Sch Va","Governance",null,"BOD Activity - Strategic Direction",{"$f":"'Schedule V(a)'!E65","v":"Select Yes/No"}]
["Sch Va","Governance",null,"BOD Activity - Risk Appetite",{"$f":"'Schedule V(a)'!E66","v":"Select Yes/No"}]
["Sch Va","Governance",null,"BOD Activity - LOB Decisions",{"$f":"'Schedule V(a)'!E67","v":"Select Yes/No"}]
["Sch Va","Governance",null,"BOD Activity - Solvency Req.",{"$f":"'Schedule V(a)'!E68","v":"Select Yes/No"}]
["Sch Va","Governance",null,"BOD Location - Strategic Direction",{"$f":"IF('Schedule V(a)'!F65=\"\",\"Bermuda\",'Schedule V(a)'!F65)","v":0}]
["Sch Va","Governance",null,"BOD Location - Risk Appetite",{"$f":"IF('Schedule V(a)'!F66=\"\",\"Bermuda\",'Schedule V(a)'!F66)","v":0}]
["Sch Va","Governance",null,"BOD Location - LOB Decisions",{"$f":"IF('Schedule V(a)'!F67=\"\",\"Bermuda\",'Schedule V(a)'!F67)","v":0}]
["Sch Va","Governance",null,"BOD Location - Solvency Req.",{"$f":"IF('Schedule V(a)'!F68=\"\",\"Bermuda\",'Schedule V(a)'!F68)","v":0}]
["Sch Va","Governance",null,"U/W - Operation in Bermuda",{"$f":"'Schedule V(a)'!E72","v":"Select Yes/No"}]
["Sch Va","Governance",null,"Risk Mgmt. - Operation in Bermuda",{"$f":"'Schedule V(a)'!E73","v":"Select Yes/No"}]
["Sch Va","Governance",null,"Inv. Strategy - Operation in Bermuda",{"$f":"'Schedule V(a)'!E74","v":"Select Yes/No"}]
["Sch Va","Governance",null,"Actuarial - Operation in Bermuda",{"$f":"'Schedule V(a)'!E75","v":"Select Yes/No"}]
["Sch Va","Governance",null,"Compliance - Operation in Bermuda",{"$f":"'Schedule V(a)'!E76","v":"Select Yes/No"}]
["Sch Va","Governance",null,"Int. Audit - Operation in Bermuda",{"$f":"'Schedule V(a)'!E77","v":"Select Yes/No"}]
["Sch Va","Governance",null,"U/W - Operation Location",{"$f":"IF('Schedule V(a)'!F72=\"\",\"Bermuda\",'Schedule V(a)'!F72)","v":0}]
["Sch Va","Governance",null,"Risk Mgmt. - Operation Location",{"$f":"IF('Schedule V(a)'!F73=\"\",\"Bermuda\",'Schedule V(a)'!F73)","v":0}]
["Sch Va","Governance",null,"Inv. Strategy - Operation Location",{"$f":"IF('Schedule V(a)'!F74=\"\",\"Bermuda\",'Schedule V(a)'!F74)","v":0}]
["Sch Va","Governance",null,"Actuarial - Operation Location",{"$f":"IF('Schedule V(a)'!F75=\"\",\"Bermuda\",'Schedule V(a)'!F75)","v":0}]
["Sch Va","Governance",null,"Compliance - Operation Location",{"$f":"IF('Schedule V(a)'!F76=\"\",\"Bermuda\",'Schedule V(a)'!F76)","v":0}]
["Sch Va","Governance",null,"Int. Audit - Operation Location",{"$f":"IF('Schedule V(a)'!F77=\"\",\"Bermuda\",'Schedule V(a)'!F77)","v":0}]
["Sch Va","Governance",null,"U/W - Outsourced",{"$f":"'Schedule V(a)'!H72","v":"Select Yes/No"}]
["Sch Va","Governance",null,"Risk Mgmt. - Outsourced",{"$f":"'Schedule V(a)'!H73","v":"Select Yes/No"}]
["Sch Va","Governance",null,"Inv. Strategy - Outsourced",{"$f":"'Schedule V(a)'!H74","v":"Select Yes/No"}]
["Sch Va","Governance",null,"Actuarial - Outsourced",{"$f":"'Schedule V(a)'!H75","v":"Select Yes/No"}]
["Sch Va","Governance",null,"Compliance - Outsourced",{"$f":"'Schedule V(a)'!H76","v":"Select Yes/No"}]
["Sch Va","Governance",null,"Int. Audit - Outsourced",{"$f":"'Schedule V(a)'!H77","v":"Select Yes/No"}]
["Sch Va","Governance",null,"U/W - Provider Type",{"$f":"'Schedule V(a)'!I72","v":"Select"}]
["Sch Va","Governance",null,"Risk Mgmt. - Provider Type",{"$f":"'Schedule V(a)'!I73","v":"Select"}]
["Sch Va","Governance",null,"Inv. Strategy - Provider Type",{"$f":"'Schedule V(a)'!I74","v":"Select"}]
["Sch Va","Governance",null,"Actuarial - Provider Type",{"$f":"'Schedule V(a)'!I75","v":"Select"}]
["Sch Va","Governance",null,"Compliance - Provider Type",{"$f":"'Schedule V(a)'!I76","v":"Select"}]
["Sch Va","Governance",null,"Int. Audit - Provider Type",{"$f":"'Schedule V(a)'!I77","v":"Select"}]
["Sch Va","Governance",null,"U/W - Name of Provider",{"$f":"'Schedule V(a)'!J72","v":0}]
["Sch Va","Governance",null,"Risk Mgmt. - Name of Provider",{"$f":"'Schedule V(a)'!J73","v":0}]
["Sch Va","Governance",null,"Inv. Strategy - Name of Provider",{"$f":"'Schedule V(a)'!J74","v":0}]
["Sch Va","Governance",null,"Actuarial - Name of Provider",{"$f":"'Schedule V(a)'!J75","v":0}]
["Sch Va","Governance",null,"Compliance - Name of Provider",{"$f":"'Schedule V(a)'!J76","v":0}]
["Sch Va","Governance",null,"Int. Audit - Name of Provider",{"$f":"'Schedule V(a)'!J77","v":0}]
["Sch Va","Governance",null,"Services Outsourced - Principal Rep.",{"$f":"'Schedule V(a)'!F81","v":"Select Yes/No"}]
["Sch Va","Governance",null,"Services Outsourced - Director/Board Member",{"$f":"'Schedule V(a)'!F82","v":"Select Yes/No"}]
["Sch Va","Governance",null,"Services Outsourced - Senior Officer",{"$f":"'Schedule V(a)'!F83","v":"Select Yes/No"}]
["Sch Va","Governance",null,"Services Outsourced - Accounting",{"$f":"'Schedule V(a)'!F84","v":"Select Yes/No"}]
["Sch Va","Governance",null,"Services Outsourced - Prep. SFR/Prudential",{"$f":"'Schedule V(a)'!F85","v":"Select Yes/No"}]
["Sch Va","Governance",null,"Services Outsourced - Underwriting",{"$f":"'Schedule V(a)'!F86","v":"Select Yes/No"}]
["Sch Va","Governance",null,"Services Outsourced - Claims Handling",{"$f":"'Schedule V(a)'!F87","v":"Select Yes/No"}]
["Sch Va","Governance",null,"Services Outsourced - Risk Mgmt.",{"$f":"'Schedule V(a)'!F88","v":"Select Yes/No"}]
["Sch Va","Governance",null,"Services Outsourced - Investment",{"$f":"'Schedule V(a)'!F89","v":"Select Yes/No"}]
["Sch Va","Governance",null,"Services Outsourced - Treasury",{"$f":"'Schedule V(a)'!F90","v":"Select Yes/No"}]
["Sch Va","Governance",null,"Services Outsourced - Actuarial",{"$f":"'Schedule V(a)'!F91","v":"Select Yes/No"}]
["Sch Va","Governance",null,"Services Outsourced - Internal Audit",{"$f":"'Schedule V(a)'!F92","v":"Select Yes/No"}]
["Sch Va","Governance",null,"Services Outsourced - Compliance",{"$f":"'Schedule V(a)'!F93","v":"Select Yes/No"}]
["Sch Va","Governance",null,"Services Outsourced - AML/ATF/Sanctions",{"$f":"'Schedule V(a)'!F94","v":"Select Yes/No"}]
["Sch Va","Governance",null,"Services Outsourced - Money Laundering Officer",{"$f":"'Schedule V(a)'!F95","v":"Select Yes/No"}]
["Sch Va","Governance",null,"Services Outsourced - Other",{"$f":"'Schedule V(a)'!D96","v":0}]
["Sch Va","Governance",null,"Services in BDA - Principal Rep.",{"$f":"'Schedule V(a)'!G81","v":"Select Yes/No"}]
["Sch Va","Governance",null,"Services in BDA - Director/Board Member",{"$f":"'Schedule V(a)'!G82","v":"Select Yes/No"}]
["Sch Va","Governance",null,"Services in BDA - Senior Officer",{"$f":"'Schedule V(a)'!G83","v":"Select Yes/No"}]
["Sch Va","Governance",null,"Services in BDA - Accounting",{"$f":"'Schedule V(a)'!G84","v":"Select Yes/No"}]
["Sch Va","Governance",null,"Services in BDA - Prep. SFR/Prudential",{"$f":"'Schedule V(a)'!G85","v":"Select Yes/No"}]
["Sch Va","Governance",null,"Services in BDA - Underwriting",{"$f":"'Schedule V(a)'!G86","v":"Select Yes/No"}]
["Sch Va","Governance",null,"Services in BDA - Claims Handling",{"$f":"'Schedule V(a)'!G87","v":"Select Yes/No"}]
["Sch Va","Governance",null,"Services in BDA - Risk Mgmt.",{"$f":"'Schedule V(a)'!G88","v":"Select Yes/No"}]
["Sch Va","Governance",null,"Services in BDA - Investment",{"$f":"'Schedule V(a)'!G89","v":"Select Yes/No"}]
["Sch Va","Governance",null,"Services in BDA - Treasury",{"$f":"'Schedule V(a)'!G90","v":"Select Yes/No"}]
["Sch Va","Governance",null,"Services in BDA - Actuarial",{"$f":"'Schedule V(a)'!G91","v":"Select Yes/No"}]
["Sch Va","Governance",null,"Services in BDA - Internal Audit",{"$f":"'Schedule V(a)'!G92","v":"Select Yes/No"}]
["Sch Va","Governance",null,"Services in BDA - Compliance",{"$f":"'Schedule V(a)'!G93","v":"Select Yes/No"}]
["Sch Va","Governance",null,"Services in BDA - AML/ATF/Sanctions",{"$f":"'Schedule V(a)'!G94","v":"Select Yes/No"}]
["Sch Va","Governance",null,"Services in BDA - Money Laundering Officer",{"$f":"'Schedule V(a)'!G95","v":"Select Yes/No"}]
["Sch Va","Governance",null,"Employees in BDA",{"$f":"'Schedule V(a)'!G98","v":0}]
["Sch Va","Governance",null,"Number of Employes in BDA - Senior Executive",{"$f":"'Schedule V(a)'!G101","v":0}]
["Sch Va","Governance",null,"Number of Employes in BDA - Senior Manager",{"$f":"'Schedule V(a)'!G102","v":0}]
["Sch Va","Governance",null,"Number of Employes in BDA - Technical Officer",{"$f":"'Schedule V(a)'!G103","v":0}]
["Sch Va","Governance",null,"Number of Employes in BDA - Admnistrative",{"$f":"'Schedule V(a)'!G104","v":0}]
["Sch Va","Governance",null,"7a Group BOD-Strat. Decision- Location",null,null,null,null,{"$f":"'Schedule V(a)'!G110","v":0}]
["Sch Va","Governance",null,"7b Group BOD-Risk Appet.- Location",null,null,null,null,{"$f":"'Schedule V(a)'!G111","v":0}]
["Sch Va","Governance",null,"7c Group BOD-Corp. Struct.- Location",null,null,null,null,{"$f":"'Schedule V(a)'!G112","v":0}]
["Sch Va","Governance",null,"7d Group BOD-LOB, Prod. & Mkt.- Location",null,null,null,null,{"$f":"'Schedule V(a)'!G113","v":0}]
["Sch Va","Governance",null,"7e Group BOD-Assess Solvency- Location",null,null,null,null,{"$f":"'Schedule V(a)'!G114","v":0}]
["Sch Va","Governance",null,"8. Group BOD - Reside",null,null,null,null,{"$f":"'Schedule V(a)'!G117","v":0}]
["Sch Va","Governance",null,"9. Group Control Function - Reside",null,null,null,null,{"$f":"'Schedule V(a)'!G120","v":0}]
["Sch Va","Governance",null,"10a Group's Total Assets",null,null,null,null,{"$f":"'Schedule V(a)'!G123","v":0}]
["Sch Va","Governance",null,"10b Group's Total Reserves",null,null,null,null,{"$f":"'Schedule V(a)'!G124","v":0}]
["Sch Va","Governance",null,"10c Group's Total Capital & Surplus",null,null,null,null,{"$f":"'Schedule V(a)'!G125","v":0}]
["Sch Va","Governance",null,"Name of Insurer - 1",null,null,null,null,{"$f":"'Schedule V(a)'!C130","v":0}]
["Sch Va","Governance",null,"Name of Insurer - 2",null,null,null,null,{"$f":"'Schedule V(a)'!C131","v":0}]
["Sch Va","Governance",null,"Name of Insurer - 3",null,null,null,null,{"$f":"'Schedule V(a)'!C132","v":0}]
["Sch Va","Governance",null,"Name of Insurer - 4",null,null,null,null,{"$f":"'Schedule V(a)'!C133","v":0}]
["Sch Va","Governance",null,"Name of Insurer - 5",null,null,null,null,{"$f":"'Schedule V(a)'!C134","v":0}]
["Sch Va","Governance",null,"Name of Insurer - 6",null,null,null,null,{"$f":"'Schedule V(a)'!C135","v":0}]
["Sch Va","Governance",null,"Name of Insurer - 7",null,null,null,null,{"$f":"'Schedule V(a)'!C136","v":0}]
["Sch Va","Governance",null,"Name of Insurer - 8",null,null,null,null,{"$f":"'Schedule V(a)'!C137","v":0}]
["Sch Va","Governance",null,"Name of Insurer - 9",null,null,null,null,{"$f":"'Schedule V(a)'!C138","v":0}]
["Sch Va","Governance",null,"Insurer Location - 1",null,null,null,null,{"$f":"'Schedule V(a)'!D130","v":0}]
["Sch Va","Governance",null,"Insurer Location - 2",null,null,null,null,{"$f":"'Schedule V(a)'!D131","v":0}]
["Sch Va","Governance",null,"Insurer Location - 3",null,null,null,null,{"$f":"'Schedule V(a)'!D132","v":0}]
["Sch Va","Governance",null,"Insurer Location - 4",null,null,null,null,{"$f":"'Schedule V(a)'!D133","v":0}]
["Sch Va","Governance",null,"Insurer Location - 5",null,null,null,null,{"$f":"'Schedule V(a)'!D134","v":0}]
["Sch Va","Governance",null,"Insurer Location - 6",null,null,null,null,{"$f":"'Schedule V(a)'!D135","v":0}]
["Sch Va","Governance",null,"Insurer Location - 7",null,null,null,null,{"$f":"'Schedule V(a)'!D136","v":0}]
["Sch Va","Governance",null,"Insurer Location - 8",null,null,null,null,{"$f":"'Schedule V(a)'!D137","v":0}]
["Sch Va","Governance",null,"Insurer Location - 9",null,null,null,null,{"$f":"'Schedule V(a)'!D138","v":0}]
["Sch Va","Governance",null,"Insurer Asset - 1",null,null,null,null,{"$f":"'Schedule V(a)'!E130","v":0}]
["Sch Va","Governance",null,"Insurer Asset - 2",null,null,null,null,{"$f":"'Schedule V(a)'!E131","v":0}]
["Sch Va","Governance",null,"Insurer Asset - 3",null,null,null,null,{"$f":"'Schedule V(a)'!E132","v":0}]
["Sch Va","Governance",null,"Insurer Asset - 4",null,null,null,null,{"$f":"'Schedule V(a)'!E133","v":0}]
["Sch Va","Governance",null,"Insurer Asset - 5",null,null,null,null,{"$f":"'Schedule V(a)'!E134","v":0}]
["Sch Va","Governance",null,"Insurer Asset - 6",null,null,null,null,{"$f":"'Schedule V(a)'!E135","v":0}]
["Sch Va","Governance",null,"Insurer Asset - 7",null,null,null,null,{"$f":"'Schedule V(a)'!E136","v":0}]
["Sch Va","Governance",null,"Insurer Asset - 8",null,null,null,null,{"$f":"'Schedule V(a)'!E137","v":0}]
["Sch Va","Governance",null,"Insurer Asset - 9",null,null,null,null,{"$f":"'Schedule V(a)'!E138","v":0}]
["Sch Va","Governance",null,"Insurer Reserve - 1",null,null,null,null,{"$f":"'Schedule V(a)'!F130","v":0}]
["Sch Va","Governance",null,"Insurer Reserve - 2",null,null,null,null,{"$f":"'Schedule V(a)'!F131","v":0}]
["Sch Va","Governance",null,"Insurer Reserve - 3",null,null,null,null,{"$f":"'Schedule V(a)'!F132","v":0}]
["Sch Va","Governance",null,"Insurer Reserve - 4",null,null,null,null,{"$f":"'Schedule V(a)'!F133","v":0}]
["Sch Va","Governance",null,"Insurer Reserve - 5",null,null,null,null,{"$f":"'Schedule V(a)'!F134","v":0}]
["Sch Va","Governance",null,"Insurer Reserve - 6",null,null,null,null,{"$f":"'Schedule V(a)'!F135","v":0}]
["Sch Va","Governance",null,"Insurer Reserve - 7",null,null,null,null,{"$f":"'Schedule V(a)'!F136","v":0}]
["Sch Va","Governance",null,"Insurer Reserve - 8",null,null,null,null,{"$f":"'Schedule V(a)'!F137","v":0}]
["Sch Va","Governance",null,"Insurer Reserve - 9",null,null,null,null,{"$f":"'Schedule V(a)'!F138","v":0}]
["Sch Va","Governance",null,"Insurer Capital & Surplus - 1",null,null,null,null,{"$f":"'Schedule V(a)'!G130","v":0}]
["Sch Va","Governance",null,"Insurer Capital & Surplus - 2",null,null,null,null,{"$f":"'Schedule V(a)'!G131","v":0}]
["Sch Va","Governance",null,"Insurer Capital & Surplus - 3",null,null,null,null,{"$f":"'Schedule V(a)'!G132","v":0}]
["Sch Va","Governance",null,"Insurer Capital & Surplus - 4",null,null,null,null,{"$f":"'Schedule V(a)'!G133","v":0}]
["Sch Va","Governance",null,"Insurer Capital & Surplus - 5",null,null,null,null,{"$f":"'Schedule V(a)'!G134","v":0}]
["Sch Va","Governance",null,"Insurer Capital & Surplus - 6",null,null,null,null,{"$f":"'Schedule V(a)'!G135","v":0}]
["Sch Va","Governance",null,"Insurer Capital & Surplus - 7",null,null,null,null,{"$f":"'Schedule V(a)'!G136","v":0}]
["Sch Va","Governance",null,"Insurer Capital & Surplus - 8",null,null,null,null,{"$f":"'Schedule V(a)'!G137","v":0}]
["Sch Va","Governance",null,"Insurer Capital & Surplus - 9",null,null,null,null,{"$f":"'Schedule V(a)'!G138","v":0}]
["Sch Va","Governance",null,"12 Subsequent Events",{"$f":"'Schedule V(a)'!C142","v":0}]
[]
["Sch Vc","Group Structure",null,"# of Largest Counterparty Exposure",{"$f":"'Schedule V(c)'!E9","v":0}]
["Sch Vc","Group Structure",null,"Counterparty Name - 1",{"$f":"'Schedule V(c)'!C13","v":0}]
["Sch Vc","Group Structure",null,"Counterparty Name - 2",{"$f":"'Schedule V(c)'!C14","v":0}]
["Sch Vc","Group Structure",null,"Counterparty Name - 3",{"$f":"'Schedule V(c)'!C15","v":0}]
["Sch Vc","Group Structure",null,"Counterparty Name - 4",{"$f":"'Schedule V(c)'!C16","v":0}]
["Sch Vc","Group Structure",null,"Counterparty Name - 5",{"$f":"'Schedule V(c)'!C17","v":0}]
["Sch Vc","Group Structure",null,"Counterparty Name - 6",{"$f":"'Schedule V(c)'!C18","v":0}]
["Sch Vc","Group Structure",null,"Counterparty Name - 7",{"$f":"'Schedule V(c)'!C19","v":0}]
["Sch Vc","Group Structure",null,"Counterparty Name - 8",{"$f":"'Schedule V(c)'!C20","v":0}]
["Sch Vc","Group Structure",null,"Counterparty Name - 9",{"$f":"'Schedule V(c)'!C21","v":0}]
["Sch Vc","Group Structure",null,"Counterparty Name - 10",{"$f":"'Schedule V(c)'!C22","v":0}]
["Sch Vc","Group Structure",null,"Counterparty Name - 11",{"$f":"'Schedule V(c)'!C23","v":0}]
["Sch Vc","Group Structure",null,"Counterparty Name - 12",{"$f":"'Schedule V(c)'!C24","v":0}]
["Sch Vc","Group Structure",null,"Counterparty Name - 13",{"$f":"'Schedule V(c)'!C25","v":0}]
["Sch Vc","Group Structure",null,"Counterparty Name - 14",{"$f":"'Schedule V(c)'!C26","v":0}]
["Sch Vc","Group Structure",null,"Counterparty Name - 15",{"$f":"'Schedule V(c)'!C27","v":0}]
["Sch Vc","Group Structure",null,"Counterparty Name - 16",{"$f":"'Schedule V(c)'!C28","v":0}]
["Sch Vc","Group Structure",null,"Counterparty Name - 17",{"$f":"'Schedule V(c)'!C29","v":0}]
["Sch Vc","Group Structure",null,"Counterparty Name - 18",{"$f":"'Schedule V(c)'!C30","v":0}]
["Sch Vc","Group Structure",null,"Counterparty Name - 19",{"$f":"'Schedule V(c)'!C31","v":0}]
["Sch Vc","Group Structure",null,"Counterparty Name - 20",{"$f":"'Schedule V(c)'!C32","v":0}]
["Sch Vc","Group Structure",null,"Counterparty Name - 21",{"$f":"'Schedule V(c)'!C33","v":0}]
["Sch Vc","Group Structure",null,"Counterparty Name - 22",{"$f":"'Schedule V(c)'!C34","v":0}]
["Sch Vc","Group Structure",null,"Counterparty Name - 23",{"$f":"'Schedule V(c)'!C35","v":0}]
["Sch Vc","Group Structure",null,"Counterparty Name - 24",{"$f":"'Schedule V(c)'!C36","v":0}]
["Sch Vc","Group Structure",null,"Counterparty Name - 25",{"$f":"'Schedule V(c)'!C37","v":0}]
["Sch Vc","Group Structure",null,"Counterparty Location - 1",{"$f":"'Schedule V(c)'!G13","v":0}]
["Sch Vc","Group Structure",null,"Counterparty Location - 2",{"$f":"'Schedule V(c)'!G14","v":0}]
["Sch Vc","Group Structure",null,"Counterparty Location - 3",{"$f":"'Schedule V(c)'!G15","v":0}]
["Sch Vc","Group Structure",null,"Counterparty Location - 4",{"$f":"'Schedule V(c)'!G16","v":0}]
["Sch Vc","Group Structure",null,"Counterparty Location - 5",{"$f":"'Schedule V(c)'!G17","v":0}]
["Sch Vc","Group Structure",null,"Counterparty Location - 6",{"$f":"'Schedule V(c)'!G18","v":0}]
["Sch Vc","Group Structure",null,"Counterparty Location - 7",{"$f":"'Schedule V(c)'!G19","v":0}]
["Sch Vc","Group Structure",null,"Counterparty Location - 8",{"$f":"'Schedule V(c)'!G20","v":0}]
["Sch Vc","Group Structure",null,"Counterparty Location - 9",{"$f":"'Schedule V(c)'!G21","v":0}]
["Sch Vc","Group Structure",null,"Counterparty Location - 10",{"$f":"'Schedule V(c)'!G22","v":0}]
["Sch Vc","Group Structure",null,"Counterparty Location - 11",{"$f":"'Schedule V(c)'!G23","v":0}]
["Sch Vc","Group Structure",null,"Counterparty Location - 12",{"$f":"'Schedule V(c)'!G24","v":0}]
["Sch Vc","Group Structure",null,"Counterparty Location - 13",{"$f":"'Schedule V(c)'!G25","v":0}]
["Sch Vc","Group Structure",null,"Counterparty Location - 14",{"$f":"'Schedule V(c)'!G26","v":0}]
["Sch Vc","Group Structure",null,"Counterparty Location - 15",{"$f":"'Schedule V(c)'!G27","v":0}]
["Sch Vc","Group Structure",null,"Counterparty Location - 16",{"$f":"'Schedule V(c)'!G28","v":0}]
["Sch Vc","Group Structure",null,"Counterparty Location - 17",{"$f":"'Schedule V(c)'!G29","v":0}]
["Sch Vc","Group Structure",null,"Counterparty Location - 18",{"$f":"'Schedule V(c)'!G30","v":0}]
["Sch Vc","Group Structure",null,"Counterparty Location - 19",{"$f":"'Schedule V(c)'!G31","v":0}]
["Sch Vc","Group Structure",null,"Counterparty Location - 20",{"$f":"'Schedule V(c)'!G32","v":0}]
["Sch Vc","Group Structure",null,"Counterparty Location - 21",{"$f":"'Schedule V(c)'!G33","v":0}]
["Sch Vc","Group Structure",null,"Counterparty Location - 22",{"$f":"'Schedule V(c)'!G34","v":0}]
["Sch Vc","Group Structure",null,"Counterparty Location - 23",{"$f":"'Schedule V(c)'!G35","v":0}]
["Sch Vc","Group Structure",null,"Counterparty Location - 24",{"$f":"'Schedule V(c)'!G36","v":0}]
["Sch Vc","Group Structure",null,"Counterparty Location - 25",{"$f":"'Schedule V(c)'!G37","v":0}]
["Sch Vc","Group Structure",null,"Exposure Face Value - 1",{"$f":"'Schedule V(c)'!H13","v":0}]
["Sch Vc","Group Structure",null,"Exposure Face Value - 2",{"$f":"'Schedule V(c)'!H14","v":0}]
["Sch Vc","Group Structure",null,"Exposure Face Value - 3",{"$f":"'Schedule V(c)'!H15","v":0}]
["Sch Vc","Group Structure",null,"Exposure Face Value - 4",{"$f":"'Schedule V(c)'!H16","v":0}]
["Sch Vc","Group Structure",null,"Exposure Face Value - 5",{"$f":"'Schedule V(c)'!H17","v":0}]
["Sch Vc","Group Structure",null,"Exposure Face Value - 6",{"$f":"'Schedule V(c)'!H18","v":0}]
["Sch Vc","Group Structure",null,"Exposure Face Value - 7",{"$f":"'Schedule V(c)'!H19","v":0}]
["Sch Vc","Group Structure",null,"Exposure Face Value - 8",{"$f":"'Schedule V(c)'!H20","v":0}]
["Sch Vc","Group Structure",null,"Exposure Face Value - 9",{"$f":"'Schedule V(c)'!H21","v":0}]
["Sch Vc","Group Structure",null,"Exposure Face Value - 10",{"$f":"'Schedule V(c)'!H22","v":0}]
["Sch Vc","Group Structure",null,"Exposure Face Value - 11",{"$f":"'Schedule V(c)'!H23","v":0}]
["Sch Vc","Group Structure",null,"Exposure Face Value - 12",{"$f":"'Schedule V(c)'!H24","v":0}]
["Sch Vc","Group Structure",null,"Exposure Face Value - 13",{"$f":"'Schedule V(c)'!H25","v":0}]
["Sch Vc","Group Structure",null,"Exposure Face Value - 14",{"$f":"'Schedule V(c)'!H26","v":0}]
["Sch Vc","Group Structure",null,"Exposure Face Value - 15",{"$f":"'Schedule V(c)'!H27","v":0}]
["Sch Vc","Group Structure",null,"Exposure Face Value - 16",{"$f":"'Schedule V(c)'!H28","v":0}]
["Sch Vc","Group Structure",null,"Exposure Face Value - 17",{"$f":"'Schedule V(c)'!H29","v":0}]
["Sch Vc","Group Structure",null,"Exposure Face Value - 18",{"$f":"'Schedule V(c)'!H30","v":0}]
["Sch Vc","Group Structure",null,"Exposure Face Value - 19",{"$f":"'Schedule V(c)'!H31","v":0}]
["Sch Vc","Group Structure",null,"Exposure Face Value - 20",{"$f":"'Schedule V(c)'!H32","v":0}]
["Sch Vc","Group Structure",null,"Exposure Face Value - 21",{"$f":"'Schedule V(c)'!H33","v":0}]
["Sch Vc","Group Structure",null,"Exposure Face Value - 22",{"$f":"'Schedule V(c)'!H34","v":0}]
["Sch Vc","Group Structure",null,"Exposure Face Value - 23",{"$f":"'Schedule V(c)'!H35","v":0}]
["Sch Vc","Group Structure",null,"Exposure Face Value - 24",{"$f":"'Schedule V(c)'!H36","v":0}]
["Sch Vc","Group Structure",null,"Exposure Face Value - 25",{"$f":"'Schedule V(c)'!H37","v":0}]
["Sch Vc","Group Structure",null,"Exposure Market Value - 1",{"$f":"'Schedule V(c)'!I13","v":0}]
["Sch Vc","Group Structure",null,"Exposure Market Value - 2",{"$f":"'Schedule V(c)'!I14","v":0}]
["Sch Vc","Group Structure",null,"Exposure Market Value - 3",{"$f":"'Schedule V(c)'!I15","v":0}]
["Sch Vc","Group Structure",null,"Exposure Market Value - 4",{"$f":"'Schedule V(c)'!I16","v":0}]
["Sch Vc","Group Structure",null,"Exposure Market Value - 5",{"$f":"'Schedule V(c)'!I17","v":0}]
["Sch Vc","Group Structure",null,"Exposure Market Value - 6",{"$f":"'Schedule V(c)'!I18","v":0}]
["Sch Vc","Group Structure",null,"Exposure Market Value - 7",{"$f":"'Schedule V(c)'!I19","v":0}]
["Sch Vc","Group Structure",null,"Exposure Market Value - 8",{"$f":"'Schedule V(c)'!I20","v":0}]
["Sch Vc","Group Structure",null,"Exposure Market Value - 9",{"$f":"'Schedule V(c)'!I21","v":0}]
["Sch Vc","Group Structure",null,"Exposure Market Value - 10",{"$f":"'Schedule V(c)'!I22","v":0}]
["Sch Vc","Group Structure",null,"Exposure Market Value - 11",{"$f":"'Schedule V(c)'!I23","v":0}]
["Sch Vc","Group Structure",null,"Exposure Market Value - 12",{"$f":"'Schedule V(c)'!I24","v":0}]
["Sch Vc","Group Structure",null,"Exposure Market Value - 13",{"$f":"'Schedule V(c)'!I25","v":0}]
["Sch Vc","Group Structure",null,"Exposure Market Value - 14",{"$f":"'Schedule V(c)'!I26","v":0}]
["Sch Vc","Group Structure",null,"Exposure Market Value - 15",{"$f":"'Schedule V(c)'!I27","v":0}]
["Sch Vc","Group Structure",null,"Exposure Market Value - 16",{"$f":"'Schedule V(c)'!I28","v":0}]
["Sch Vc","Group Structure",null,"Exposure Market Value - 17",{"$f":"'Schedule V(c)'!I29","v":0}]
["Sch Vc","Group Structure",null,"Exposure Market Value - 18",{"$f":"'Schedule V(c)'!I30","v":0}]
["Sch Vc","Group Structure",null,"Exposure Market Value - 19",{"$f":"'Schedule V(c)'!I31","v":0}]
["Sch Vc","Group Structure",null,"Exposure Market Value - 20",{"$f":"'Schedule V(c)'!I32","v":0}]
["Sch Vc","Group Structure",null,"Exposure Market Value - 21",{"$f":"'Schedule V(c)'!I33","v":0}]
["Sch Vc","Group Structure",null,"Exposure Market Value - 22",{"$f":"'Schedule V(c)'!I34","v":0}]
["Sch Vc","Group Structure",null,"Exposure Market Value - 23",{"$f":"'Schedule V(c)'!I35","v":0}]
["Sch Vc","Group Structure",null,"Exposure Market Value - 24",{"$f":"'Schedule V(c)'!I36","v":0}]
["Sch Vc","Group Structure",null,"Exposure Market Value - 25",{"$f":"'Schedule V(c)'!I37","v":0}]
["Sch Vc","Group Structure",null,"Transaction Type - 1",{"$f":"'Schedule V(c)'!J13","v":0}]
["Sch Vc","Group Structure",null,"Transaction Type - 2",{"$f":"'Schedule V(c)'!J14","v":0}]
["Sch Vc","Group Structure",null,"Transaction Type - 3",{"$f":"'Schedule V(c)'!J15","v":0}]
["Sch Vc","Group Structure",null,"Transaction Type - 4",{"$f":"'Schedule V(c)'!J16","v":0}]
["Sch Vc","Group Structure",null,"Transaction Type - 5",{"$f":"'Schedule V(c)'!J17","v":0}]
["Sch Vc","Group Structure",null,"Transaction Type - 6",{"$f":"'Schedule V(c)'!J18","v":0}]
["Sch Vc","Group Structure",null,"Transaction Type - 7",{"$f":"'Schedule V(c)'!J19","v":0}]
["Sch Vc","Group Structure",null,"Transaction Type - 8",{"$f":"'Schedule V(c)'!J20","v":0}]
["Sch Vc","Group Structure",null,"Transaction Type - 9",{"$f":"'Schedule V(c)'!J21","v":0}]
["Sch Vc","Group Structure",null,"Transaction Type - 10",{"$f":"'Schedule V(c)'!J22","v":0}]
["Sch Vc","Group Structure",null,"Transaction Type - 11",{"$f":"'Schedule V(c)'!J23","v":0}]
["Sch Vc","Group Structure",null,"Transaction Type - 12",{"$f":"'Schedule V(c)'!J24","v":0}]
["Sch Vc","Group Structure",null,"Transaction Type - 13",{"$f":"'Schedule V(c)'!J25","v":0}]
["Sch Vc","Group Structure",null,"Transaction Type - 14",{"$f":"'Schedule V(c)'!J26","v":0}]
["Sch Vc","Group Structure",null,"Transaction Type - 15",{"$f":"'Schedule V(c)'!J27","v":0}]
["Sch Vc","Group Structure",null,"Transaction Type - 16",{"$f":"'Schedule V(c)'!J28","v":0}]
["Sch Vc","Group Structure",null,"Transaction Type - 17",{"$f":"'Schedule V(c)'!J29","v":0}]
["Sch Vc","Group Structure",null,"Transaction Type - 18",{"$f":"'Schedule V(c)'!J30","v":0}]
["Sch Vc","Group Structure",null,"Transaction Type - 19",{"$f":"'Schedule V(c)'!J31","v":0}]
["Sch Vc","Group Structure",null,"Transaction Type - 20",{"$f":"'Schedule V(c)'!J32","v":0}]
["Sch Vc","Group Structure",null,"Transaction Type - 21",{"$f":"'Schedule V(c)'!J33","v":0}]
["Sch Vc","Group Structure",null,"Transaction Type - 22",{"$f":"'Schedule V(c)'!J34","v":0}]
["Sch Vc","Group Structure",null,"Transaction Type - 23",{"$f":"'Schedule V(c)'!J35","v":0}]
["Sch Vc","Group Structure",null,"Transaction Type - 24",{"$f":"'Schedule V(c)'!J36","v":0}]
["Sch Vc","Group Structure",null,"Transaction Type - 25",{"$f":"'Schedule V(c)'!J37","v":0}]
["Sch Vc","Group Structure",null,"# of Material Intra-Group Transactions",{"$f":"'Schedule V(c)'!E55","v":0}]
["Sch Vc","Group Structure",null,"Issuer/Borrower Name - 1",{"$f":"'Schedule V(c)'!C59","v":0}]
["Sch Vc","Group Structure",null,"Issuer/Borrower Name - 2",{"$f":"'Schedule V(c)'!C60","v":0}]
["Sch Vc","Group Structure",null,"Issuer/Borrower Name - 3",{"$f":"'Schedule V(c)'!C61","v":0}]
["Sch Vc","Group Structure",null,"Issuer/Borrower Name - 4",{"$f":"'Schedule V(c)'!C62","v":0}]
["Sch Vc","Group Structure",null,"Issuer/Borrower Name - 5",{"$f":"'Schedule V(c)'!C63","v":0}]
["Sch Vc","Group Structure",null,"Issuer/Borrower Name - 6",{"$f":"'Schedule V(c)'!C64","v":0}]
["Sch Vc","Group Structure",null,"Issuer/Borrower Name - 7",{"$f":"'Schedule V(c)'!C65","v":0}]
["Sch Vc","Group Structure",null,"Issuer/Borrower Name - 8",{"$f":"'Schedule V(c)'!C66","v":0}]
["Sch Vc","Group Structure",null,"Issuer/Borrower Name - 9",{"$f":"'Schedule V(c)'!C67","v":0}]
["Sch Vc","Group Structure",null,"Issuer/Borrower Name - 10",{"$f":"'Schedule V(c)'!C68","v":0}]
["Sch Vc","Group Structure",null,"Issuer/Borrower Name - 11",{"$f":"'Schedule V(c)'!C69","v":0}]
["Sch Vc","Group Structure",null,"Issuer/Borrower Name - 12",{"$f":"'Schedule V(c)'!C70","v":0}]
["Sch Vc","Group Structure",null,"Issuer/Borrower Name - 13",{"$f":"'Schedule V(c)'!C71","v":0}]
["Sch Vc","Group Structure",null,"Issuer/Borrower Name - 14",{"$f":"'Schedule V(c)'!C72","v":0}]
["Sch Vc","Group Structure",null,"Issuer/Borrower Name - 15",{"$f":"'Schedule V(c)'!C73","v":0}]
["Sch Vc","Group Structure",null,"Issuer/Borrower Name - 16",{"$f":"'Schedule V(c)'!C74","v":0}]
["Sch Vc","Group Structure",null,"Issuer/Borrower Name - 17",{"$f":"'Schedule V(c)'!C75","v":0}]
["Sch Vc","Group Structure",null,"Issuer/Borrower Name - 18",{"$f":"'Schedule V(c)'!C76","v":0}]
["Sch Vc","Group Structure",null,"Issuer/Borrower Name - 19",{"$f":"'Schedule V(c)'!C77","v":0}]
["Sch Vc","Group Structure",null,"Issuer/Borrower Name - 20",{"$f":"'Schedule V(c)'!C78","v":0}]
["Sch Vc","Group Structure",null,"Issuer/Borrower Name - 21",{"$f":"'Schedule V(c)'!C79","v":0}]
["Sch Vc","Group Structure",null,"Issuer/Borrower Name - 22",{"$f":"'Schedule V(c)'!C80","v":0}]
["Sch Vc","Group Structure",null,"Issuer/Borrower Name - 23",{"$f":"'Schedule V(c)'!C81","v":0}]
["Sch Vc","Group Structure",null,"Issuer/Borrower Name - 24",{"$f":"'Schedule V(c)'!C82","v":0}]
["Sch Vc","Group Structure",null,"Issuer/Borrower Name - 25",{"$f":"'Schedule V(c)'!C83","v":0}]
["Sch Vc","Group Structure",null,"Issuer Jurisdiction - 1",{"$f":"'Schedule V(c)'!D59","v":0}]
["Sch Vc","Group Structure",null,"Issuer Jurisdiction - 2",{"$f":"'Schedule V(c)'!D60","v":0}]
["Sch Vc","Group Structure",null,"Issuer Jurisdiction - 3",{"$f":"'Schedule V(c)'!D61","v":0}]
["Sch Vc","Group Structure",null,"Issuer Jurisdiction - 4",{"$f":"'Schedule V(c)'!D62","v":0}]
["Sch Vc","Group Structure",null,"Issuer Jurisdiction - 5",{"$f":"'Schedule V(c)'!D63","v":0}]
["Sch Vc","Group Structure",null,"Issuer Jurisdiction - 6",{"$f":"'Schedule V(c)'!D64","v":0}]
["Sch Vc","Group Structure",null,"Issuer Jurisdiction - 7",{"$f":"'Schedule V(c)'!D65","v":0}]
["Sch Vc","Group Structure",null,"Issuer Jurisdiction - 8",{"$f":"'Schedule V(c)'!D66","v":0}]
["Sch Vc","Group Structure",null,"Issuer Jurisdiction - 9",{"$f":"'Schedule V(c)'!D67","v":0}]
["Sch Vc","Group Structure",null,"Issuer Jurisdiction - 10",{"$f":"'Schedule V(c)'!D68","v":0}]
["Sch Vc","Group Structure",null,"Issuer Jurisdiction - 11",{"$f":"'Schedule V(c)'!D69","v":0}]
["Sch Vc","Group Structure",null,"Issuer Jurisdiction - 12",{"$f":"'Schedule V(c)'!D70","v":0}]
["Sch Vc","Group Structure",null,"Issuer Jurisdiction - 13",{"$f":"'Schedule V(c)'!D71","v":0}]
["Sch Vc","Group Structure",null,"Issuer Jurisdiction - 14",{"$f":"'Schedule V(c)'!D72","v":0}]
["Sch Vc","Group Structure",null,"Issuer Jurisdiction - 15",{"$f":"'Schedule V(c)'!D73","v":0}]
["Sch Vc","Group Structure",null,"Issuer Jurisdiction - 16",{"$f":"'Schedule V(c)'!D74","v":0}]
["Sch Vc","Group Structure",null,"Issuer Jurisdiction - 17",{"$f":"'Schedule V(c)'!D75","v":0}]
["Sch Vc","Group Structure",null,"Issuer Jurisdiction - 18",{"$f":"'Schedule V(c)'!D76","v":0}]
["Sch Vc","Group Structure",null,"Issuer Jurisdiction - 19",{"$f":"'Schedule V(c)'!D77","v":0}]
["Sch Vc","Group Structure",null,"Issuer Jurisdiction - 20",{"$f":"'Schedule V(c)'!D78","v":0}]
["Sch Vc","Group Structure",null,"Issuer Jurisdiction - 21",{"$f":"'Schedule V(c)'!D79","v":0}]
["Sch Vc","Group Structure",null,"Issuer Jurisdiction - 22",{"$f":"'Schedule V(c)'!D80","v":0}]
["Sch Vc","Group Structure",null,"Issuer Jurisdiction - 23",{"$f":"'Schedule V(c)'!D81","v":0}]
["Sch Vc","Group Structure",null,"Issuer Jurisdiction - 24",{"$f":"'Schedule V(c)'!D82","v":0}]
["Sch Vc","Group Structure",null,"Issuer Jurisdiction - 25",{"$f":"'Schedule V(c)'!D83","v":0}]
["Sch Vc","Group Structure",null,"Investor/Lendor Name - 1",{"$f":"'Schedule V(c)'!E59","v":0}]
["Sch Vc","Group Structure",null,"Investor/Lendor Name - 2",{"$f":"'Schedule V(c)'!E60","v":0}]
["Sch Vc","Group Structure",null,"Investor/Lendor Name - 3",{"$f":"'Schedule V(c)'!E61","v":0}]
["Sch Vc","Group Structure",null,"Investor/Lendor Name - 4",{"$f":"'Schedule V(c)'!E62","v":0}]
["Sch Vc","Group Structure",null,"Investor/Lendor Name - 5",{"$f":"'Schedule V(c)'!E63","v":0}]
["Sch Vc","Group Structure",null,"Investor/Lendor Name - 6",{"$f":"'Schedule V(c)'!E64","v":0}]
["Sch Vc","Group Structure",null,"Investor/Lendor Name - 7",{"$f":"'Schedule V(c)'!E65","v":0}]
["Sch Vc","Group Structure",null,"Investor/Lendor Name - 8",{"$f":"'Schedule V(c)'!E66","v":0}]
["Sch Vc","Group Structure",null,"Investor/Lendor Name - 9",{"$f":"'Schedule V(c)'!E67","v":0}]
["Sch Vc","Group Structure",null,"Investor/Lendor Name - 10",{"$f":"'Schedule V(c)'!E68","v":0}]
["Sch Vc","Group Structure",null,"Investor/Lendor Name - 11",{"$f":"'Schedule V(c)'!E69","v":0}]
["Sch Vc","Group Structure",null,"Investor/Lendor Name - 12",{"$f":"'Schedule V(c)'!E70","v":0}]
["Sch Vc","Group Structure",null,"Investor/Lendor Name - 13",{"$f":"'Schedule V(c)'!E71","v":0}]
["Sch Vc","Group Structure",null,"Investor/Lendor Name - 14",{"$f":"'Schedule V(c)'!E72","v":0}]
["Sch Vc","Group Structure",null,"Investor/Lendor Name - 15",{"$f":"'Schedule V(c)'!E73","v":0}]
["Sch Vc","Group Structure",null,"Investor/Lendor Name - 16",{"$f":"'Schedule V(c)'!E74","v":0}]
["Sch Vc","Group Structure",null,"Investor/Lendor Name - 17",{"$f":"'Schedule V(c)'!E75","v":0}]
["Sch Vc","Group Structure",null,"Investor/Lendor Name - 18",{"$f":"'Schedule V(c)'!E76","v":0}]
["Sch Vc","Group Structure",null,"Investor/Lendor Name - 19",{"$f":"'Schedule V(c)'!E77","v":0}]
["Sch Vc","Group Structure",null,"Investor/Lendor Name - 20",{"$f":"'Schedule V(c)'!E78","v":0}]
["Sch Vc","Group Structure",null,"Investor/Lendor Name - 21",{"$f":"'Schedule V(c)'!E79","v":0}]
["Sch Vc","Group Structure",null,"Investor/Lendor Name - 22",{"$f":"'Schedule V(c)'!E80","v":0}]
["Sch Vc","Group Structure",null,"Investor/Lendor Name - 23",{"$f":"'Schedule V(c)'!E81","v":0}]
["Sch Vc","Group Structure",null,"Investor/Lendor Name - 24",{"$f":"'Schedule V(c)'!E82","v":0}]
["Sch Vc","Group Structure",null,"Investor/Lendor Name - 25",{"$f":"'Schedule V(c)'!E83","v":0}]
["Sch Vc","Group Structure",null,"Investor Jurisdiction - 1",{"$f":"'Schedule V(c)'!F59","v":0}]
["Sch Vc","Group Structure",null,"Investor Jurisdiction - 2",{"$f":"'Schedule V(c)'!F60","v":0}]
["Sch Vc","Group Structure",null,"Investor Jurisdiction - 3",{"$f":"'Schedule V(c)'!F61","v":0}]
["Sch Vc","Group Structure",null,"Investor Jurisdiction - 4",{"$f":"'Schedule V(c)'!F62","v":0}]
["Sch Vc","Group Structure",null,"Investor Jurisdiction - 5",{"$f":"'Schedule V(c)'!F63","v":0}]
["Sch Vc","Group Structure",null,"Investor Jurisdiction - 6",{"$f":"'Schedule V(c)'!F64","v":0}]
["Sch Vc","Group Structure",null,"Investor Jurisdiction - 7",{"$f":"'Schedule V(c)'!F65","v":0}]
["Sch Vc","Group Structure",null,"Investor Jurisdiction - 8",{"$f":"'Schedule V(c)'!F66","v":0}]
["Sch Vc","Group Structure",null,"Investor Jurisdiction - 9",{"$f":"'Schedule V(c)'!F67","v":0}]
["Sch Vc","Group Structure",null,"Investor Jurisdiction - 10",{"$f":"'Schedule V(c)'!F68","v":0}]
["Sch Vc","Group Structure",null,"Investor Jurisdiction - 11",{"$f":"'Schedule V(c)'!F69","v":0}]
["Sch Vc","Group Structure",null,"Investor Jurisdiction - 12",{"$f":"'Schedule V(c)'!F70","v":0}]
["Sch Vc","Group Structure",null,"Investor Jurisdiction - 13",{"$f":"'Schedule V(c)'!F71","v":0}]
["Sch Vc","Group Structure",null,"Investor Jurisdiction - 14",{"$f":"'Schedule V(c)'!F72","v":0}]
["Sch Vc","Group Structure",null,"Investor Jurisdiction - 15",{"$f":"'Schedule V(c)'!F73","v":0}]
["Sch Vc","Group Structure",null,"Investor Jurisdiction - 16",{"$f":"'Schedule V(c)'!F74","v":0}]
["Sch Vc","Group Structure",null,"Investor Jurisdiction - 17",{"$f":"'Schedule V(c)'!F75","v":0}]
["Sch Vc","Group Structure",null,"Investor Jurisdiction - 18",{"$f":"'Schedule V(c)'!F76","v":0}]
["Sch Vc","Group Structure",null,"Investor Jurisdiction - 19",{"$f":"'Schedule V(c)'!F77","v":0}]
["Sch Vc","Group Structure",null,"Investor Jurisdiction - 20",{"$f":"'Schedule V(c)'!F78","v":0}]
["Sch Vc","Group Structure",null,"Investor Jurisdiction - 21",{"$f":"'Schedule V(c)'!F79","v":0}]
["Sch Vc","Group Structure",null,"Investor Jurisdiction - 22",{"$f":"'Schedule V(c)'!F80","v":0}]
["Sch Vc","Group Structure",null,"Investor Jurisdiction - 23",{"$f":"'Schedule V(c)'!F81","v":0}]
["Sch Vc","Group Structure",null,"Investor Jurisdiction - 24",{"$f":"'Schedule V(c)'!F82","v":0}]
["Sch Vc","Group Structure",null,"Investor Jurisdiction - 25",{"$f":"'Schedule V(c)'!F83","v":0}]
["Sch Vc","Group Structure",null,"Transaction Details - 1",{"$f":"'Schedule V(c)'!G59","v":0}]
["Sch Vc","Group Structure",null,"Transaction Details - 2",{"$f":"'Schedule V(c)'!G60","v":0}]
["Sch Vc","Group Structure",null,"Transaction Details - 3",{"$f":"'Schedule V(c)'!G61","v":0}]
["Sch Vc","Group Structure",null,"Transaction Details - 4",{"$f":"'Schedule V(c)'!G62","v":0}]
["Sch Vc","Group Structure",null,"Transaction Details - 5",{"$f":"'Schedule V(c)'!G63","v":0}]
["Sch Vc","Group Structure",null,"Transaction Details - 6",{"$f":"'Schedule V(c)'!G64","v":0}]
["Sch Vc","Group Structure",null,"Transaction Details - 7",{"$f":"'Schedule V(c)'!G65","v":0}]
["Sch Vc","Group Structure",null,"Transaction Details - 8",{"$f":"'Schedule V(c)'!G66","v":0}]
["Sch Vc","Group Structure",null,"Transaction Details - 9",{"$f":"'Schedule V(c)'!G67","v":0}]
["Sch Vc","Group Structure",null,"Transaction Details - 10",{"$f":"'Schedule V(c)'!G68","v":0}]
["Sch Vc","Group Structure",null,"Transaction Details - 11",{"$f":"'Schedule V(c)'!G69","v":0}]
["Sch Vc","Group Structure",null,"Transaction Details - 12",{"$f":"'Schedule V(c)'!G70","v":0}]
["Sch Vc","Group Structure",null,"Transaction Details - 13",{"$f":"'Schedule V(c)'!G71","v":0}]
["Sch Vc","Group Structure",null,"Transaction Details - 14",{"$f":"'Schedule V(c)'!G72","v":0}]
["Sch Vc","Group Structure",null,"Transaction Details - 15",{"$f":"'Schedule V(c)'!G73","v":0}]
["Sch Vc","Group Structure",null,"Transaction Details - 16",{"$f":"'Schedule V(c)'!G74","v":0}]
["Sch Vc","Group Structure",null,"Transaction Details - 17",{"$f":"'Schedule V(c)'!G75","v":0}]
["Sch Vc","Group Structure",null,"Transaction Details - 18",{"$f":"'Schedule V(c)'!G76","v":0}]
["Sch Vc","Group Structure",null,"Transaction Details - 19",{"$f":"'Schedule V(c)'!G77","v":0}]
["Sch Vc","Group Structure",null,"Transaction Details - 20",{"$f":"'Schedule V(c)'!G78","v":0}]
["Sch Vc","Group Structure",null,"Transaction Details - 21",{"$f":"'Schedule V(c)'!G79","v":0}]
["Sch Vc","Group Structure",null,"Transaction Details - 22",{"$f":"'Schedule V(c)'!G80","v":0}]
["Sch Vc","Group Structure",null,"Transaction Details - 23",{"$f":"'Schedule V(c)'!G81","v":0}]
["Sch Vc","Group Structure",null,"Transaction Details - 24",{"$f":"'Schedule V(c)'!G82","v":0}]
["Sch Vc","Group Structure",null,"Transaction Details - 25",{"$f":"'Schedule V(c)'!H83","v":0}]
["Sch Vc","Group Structure",null,"Exposure Value - 1",{"$f":"'Schedule V(c)'!J59","v":0}]
["Sch Vc","Group Structure",null,"Exposure Value - 2",{"$f":"'Schedule V(c)'!J60","v":0}]
["Sch Vc","Group Structure",null,"Exposure Value - 3",{"$f":"'Schedule V(c)'!J61","v":0}]
["Sch Vc","Group Structure",null,"Exposure Value - 4",{"$f":"'Schedule V(c)'!J62","v":0}]
["Sch Vc","Group Structure",null,"Exposure Value - 5",{"$f":"'Schedule V(c)'!J63","v":0}]
["Sch Vc","Group Structure",null,"Exposure Value - 6",{"$f":"'Schedule V(c)'!J64","v":0}]
["Sch Vc","Group Structure",null,"Exposure Value - 7",{"$f":"'Schedule V(c)'!J65","v":0}]
["Sch Vc","Group Structure",null,"Exposure Value - 8",{"$f":"'Schedule V(c)'!J66","v":0}]
["Sch Vc","Group Structure",null,"Exposure Value - 9",{"$f":"'Schedule V(c)'!J67","v":0}]
["Sch Vc","Group Structure",null,"Exposure Value - 10",{"$f":"'Schedule V(c)'!J68","v":0}]
["Sch Vc","Group Structure",null,"Exposure Value - 11",{"$f":"'Schedule V(c)'!J69","v":0}]
["Sch Vc","Group Structure",null,"Exposure Value - 12",{"$f":"'Schedule V(c)'!J70","v":0}]
["Sch Vc","Group Structure",null,"Exposure Value - 13",{"$f":"'Schedule V(c)'!J71","v":0}]
["Sch Vc","Group Structure",null,"Exposure Value - 14",{"$f":"'Schedule V(c)'!J72","v":0}]
["Sch Vc","Group Structure",null,"Exposure Value - 15",{"$f":"'Schedule V(c)'!J73","v":0}]
["Sch Vc","Group Structure",null,"Exposure Value - 16",{"$f":"'Schedule V(c)'!J74","v":0}]
["Sch Vc","Group Structure",null,"Exposure Value - 17",{"$f":"'Schedule V(c)'!J75","v":0}]
["Sch Vc","Group Structure",null,"Exposure Value - 18",{"$f":"'Schedule V(c)'!J76","v":0}]
["Sch Vc","Group Structure",null,"Exposure Value - 19",{"$f":"'Schedule V(c)'!J77","v":0}]
["Sch Vc","Group Structure",null,"Exposure Value - 20",{"$f":"'Schedule V(c)'!J78","v":0}]
["Sch Vc","Group Structure",null,"Exposure Value - 21",{"$f":"'Schedule V(c)'!J79","v":0}]
["Sch Vc","Group Structure",null,"Exposure Value - 22",{"$f":"'Schedule V(c)'!J80","v":0}]
["Sch Vc","Group Structure",null,"Exposure Value - 23",{"$f":"'Schedule V(c)'!J81","v":0}]
["Sch Vc","Group Structure",null,"Exposure Value - 24",{"$f":"'Schedule V(c)'!J82","v":0}]
["Sch Vc","Group Structure",null,"Exposure Value - 25",{"$f":"'Schedule V(c)'!I83","v":0}]
["Sch Vc","Group Structure",null,"# of Intra-Group R/I & Retro. Arrangement",{"$f":"'Schedule V(c)'!E86","v":10}]
["Sch Vc","Group Structure",null,"Assuming Party Name - 1",{"$f":"'Schedule V(c)'!C91","v":0}]
["Sch Vc","Group Structure",null,"Assuming Party Name - 2",{"$f":"'Schedule V(c)'!C92","v":0}]
["Sch Vc","Group Structure",null,"Assuming Party Name - 3",{"$f":"'Schedule V(c)'!C93","v":0}]
["Sch Vc","Group Structure",null,"Assuming Party Name - 4",{"$f":"'Schedule V(c)'!C94","v":0}]
["Sch Vc","Group Structure",null,"Assuming Party Name - 5",{"$f":"'Schedule V(c)'!C95","v":0}]
["Sch Vc","Group Structure",null,"Assuming Party Name - 6",{"$f":"'Schedule V(c)'!C96","v":0}]
["Sch Vc","Group Structure",null,"Assuming Party Name - 7",{"$f":"'Schedule V(c)'!C97","v":0}]
["Sch Vc","Group Structure",null,"Assuming Party Name - 8",{"$f":"'Schedule V(c)'!C98","v":0}]
["Sch Vc","Group Structure",null,"Assuming Party Name - 9",{"$f":"'Schedule V(c)'!C99","v":0}]
["Sch Vc","Group Structure",null,"Assuming Party Name - 10",{"$f":"'Schedule V(c)'!C100","v":0}]
["Sch Vc","Group Structure",null,"Assuming Party Name - 11",{"$f":"'Schedule V(c)'!C101","v":0}]
["Sch Vc","Group Structure",null,"Assuming Party Name - 12",{"$f":"'Schedule V(c)'!C102","v":0}]
["Sch Vc","Group Structure",null,"Assuming Party Name - 13",{"$f":"'Schedule V(c)'!C103","v":0}]
["Sch Vc","Group Structure",null,"Assuming Party Name - 14",{"$f":"'Schedule V(c)'!C104","v":0}]
["Sch Vc","Group Structure",null,"Assuming Party Name - 15",{"$f":"'Schedule V(c)'!C105","v":0}]
["Sch Vc","Group Structure",null,"Assuming Party Name - 16",{"$f":"'Schedule V(c)'!C106","v":0}]
["Sch Vc","Group Structure",null,"Assuming Party Name - 17",{"$f":"'Schedule V(c)'!C107","v":0}]
["Sch Vc","Group Structure",null,"Assuming Party Name - 18",{"$f":"'Schedule V(c)'!C108","v":0}]
["Sch Vc","Group Structure",null,"Assuming Party Name - 19",{"$f":"'Schedule V(c)'!C109","v":0}]
["Sch Vc","Group Structure",null,"Assuming Party Name - 20",{"$f":"'Schedule V(c)'!C110","v":0}]
["Sch Vc","Group Structure",null,"Assuming Party Name - 21",{"$f":"'Schedule V(c)'!C111","v":0}]
["Sch Vc","Group Structure",null,"Assuming Party Name - 22",{"$f":"'Schedule V(c)'!C112","v":0}]
["Sch Vc","Group Structure",null,"Assuming Party Name - 23",{"$f":"'Schedule V(c)'!C113","v":0}]
["Sch Vc","Group Structure",null,"Assuming Party Jurisdiction - 1",{"$f":"'Schedule V(c)'!D91","v":0}]
["Sch Vc","Group Structure",null,"Assuming Party Jurisdiction - 2",{"$f":"'Schedule V(c)'!D92","v":0}]
["Sch Vc","Group Structure",null,"Assuming Party Jurisdiction - 3",{"$f":"'Schedule V(c)'!D93","v":0}]
["Sch Vc","Group Structure",null,"Assuming Party Jurisdiction - 4",{"$f":"'Schedule V(c)'!D94","v":0}]
["Sch Vc","Group Structure",null,"Assuming Party Jurisdiction - 5",{"$f":"'Schedule V(c)'!D95","v":0}]
["Sch Vc","Group Structure",null,"Assuming Party Jurisdiction - 6",{"$f":"'Schedule V(c)'!D96","v":0}]
["Sch Vc","Group Structure",null,"Assuming Party Jurisdiction - 7",{"$f":"'Schedule V(c)'!D97","v":0}]
["Sch Vc","Group Structure",null,"Assuming Party Jurisdiction - 8",{"$f":"'Schedule V(c)'!D98","v":0}]
["Sch Vc","Group Structure",null,"Assuming Party Jurisdiction - 9",{"$f":"'Schedule V(c)'!D99","v":0}]
["Sch Vc","Group Structure",null,"Assuming Party Jurisdiction - 10",{"$f":"'Schedule V(c)'!D100","v":0}]
["Sch Vc","Group Structure",null,"Assuming Party Jurisdiction - 11",{"$f":"'Schedule V(c)'!D101","v":0}]
["Sch Vc","Group Structure",null,"Assuming Party Jurisdiction - 12",{"$f":"'Schedule V(c)'!D102","v":0}]
["Sch Vc","Group Structure",null,"Assuming Party Jurisdiction - 13",{"$f":"'Schedule V(c)'!D103","v":0}]
["Sch Vc","Group Structure",null,"Assuming Party Jurisdiction - 14",{"$f":"'Schedule V(c)'!D104","v":0}]
["Sch Vc","Group Structure",null,"Assuming Party Jurisdiction - 15",{"$f":"'Schedule V(c)'!D105","v":0}]
["Sch Vc","Group Structure",null,"Assuming Party Jurisdiction - 16",{"$f":"'Schedule V(c)'!D106","v":0}]
["Sch Vc","Group Structure",null,"Assuming Party Jurisdiction - 17",{"$f":"'Schedule V(c)'!D107","v":0}]
["Sch Vc","Group Structure",null,"Assuming Party Jurisdiction - 18",{"$f":"'Schedule V(c)'!D108","v":0}]
["Sch Vc","Group Structure",null,"Assuming Party Jurisdiction - 19",{"$f":"'Schedule V(c)'!D109","v":0}]
["Sch Vc","Group Structure",null,"Assuming Party Jurisdiction - 20",{"$f":"'Schedule V(c)'!D110","v":0}]
["Sch Vc","Group Structure",null,"Assuming Party Jurisdiction - 21",{"$f":"'Schedule V(c)'!D111","v":0}]
["Sch Vc","Group Structure",null,"Assuming Party Jurisdiction - 22",{"$f":"'Schedule V(c)'!D112","v":0}]
["Sch Vc","Group Structure",null,"Assuming Party Jurisdiction - 23",{"$f":"'Schedule V(c)'!D113","v":0}]
["Sch Vc","Group Structure",null,"Assuming Party Rating - 1",{"$f":"'Schedule V(c)'!E91","v":0}]
["Sch Vc","Group Structure",null,"Assuming Party Rating - 2",{"$f":"'Schedule V(c)'!E92","v":0}]
["Sch Vc","Group Structure",null,"Assuming Party Rating - 3",{"$f":"'Schedule V(c)'!E93","v":0}]
["Sch Vc","Group Structure",null,"Assuming Party Rating - 4",{"$f":"'Schedule V(c)'!E94","v":0}]
["Sch Vc","Group Structure",null,"Assuming Party Rating - 5",{"$f":"'Schedule V(c)'!E95","v":0}]
["Sch Vc","Group Structure",null,"Assuming Party Rating - 6",{"$f":"'Schedule V(c)'!E96","v":0}]
["Sch Vc","Group Structure",null,"Assuming Party Rating - 7",{"$f":"'Schedule V(c)'!E97","v":0}]
["Sch Vc","Group Structure",null,"Assuming Party Rating - 8",{"$f":"'Schedule V(c)'!E98","v":0}]
["Sch Vc","Group Structure",null,"Assuming Party Rating - 9",{"$f":"'Schedule V(c)'!E99","v":0}]
["Sch Vc","Group Structure",null,"Assuming Party Rating - 10",{"$f":"'Schedule V(c)'!E100","v":0}]
["Sch Vc","Group Structure",null,"Assuming Party Rating - 11",{"$f":"'Schedule V(c)'!E101","v":0}]
["Sch Vc","Group Structure",null,"Assuming Party Rating - 12",{"$f":"'Schedule V(c)'!E102","v":0}]
["Sch Vc","Group Structure",null,"Assuming Party Rating - 13",{"$f":"'Schedule V(c)'!E103","v":0}]
["Sch Vc","Group Structure",null,"Assuming Party Rating - 14",{"$f":"'Schedule V(c)'!E104","v":0}]
["Sch Vc","Group Structure",null,"Assuming Party Rating - 15",{"$f":"'Schedule V(c)'!E105","v":0}]
["Sch Vc","Group Structure",null,"Assuming Party Rating - 16",{"$f":"'Schedule V(c)'!E106","v":0}]
["Sch Vc","Group Structure",null,"Assuming Party Rating - 17",{"$f":"'Schedule V(c)'!E107","v":0}]
["Sch Vc","Group Structure",null,"Assuming Party Rating - 18",{"$f":"'Schedule V(c)'!E108","v":0}]
["Sch Vc","Group Structure",null,"Assuming Party Rating - 19",{"$f":"'Schedule V(c)'!E109","v":0}]
["Sch Vc","Group Structure",null,"Assuming Party Rating - 20",{"$f":"'Schedule V(c)'!E110","v":0}]
["Sch Vc","Group Structure",null,"Assuming Party Rating - 21",{"$f":"'Schedule V(c)'!E111","v":0}]
["Sch Vc","Group Structure",null,"Assuming Party Rating - 22",{"$f":"'Schedule V(c)'!E112","v":0}]
["Sch Vc","Group Structure",null,"Assuming Party Rating - 23",{"$f":"'Schedule V(c)'!E113","v":0}]
["Sch Vc","Group Structure",null,"Ceding Party Name - 1",{"$f":"'Schedule V(c)'!F91","v":0}]
["Sch Vc","Group Structure",null,"Ceding Party Name - 2",{"$f":"'Schedule V(c)'!F92","v":0}]
["Sch Vc","Group Structure",null,"Ceding Party Name - 3",{"$f":"'Schedule V(c)'!F93","v":0}]
["Sch Vc","Group Structure",null,"Ceding Party Name - 4",{"$f":"'Schedule V(c)'!F94","v":0}]
["Sch Vc","Group Structure",null,"Ceding Party Name - 5",{"$f":"'Schedule V(c)'!F95","v":0}]
["Sch Vc","Group Structure",null,"Ceding Party Name - 6",{"$f":"'Schedule V(c)'!F96","v":0}]
["Sch Vc","Group Structure",null,"Ceding Party Name - 7",{"$f":"'Schedule V(c)'!F97","v":0}]
["Sch Vc","Group Structure",null,"Ceding Party Name - 8",{"$f":"'Schedule V(c)'!F98","v":0}]
["Sch Vc","Group Structure",null,"Ceding Party Name - 9",{"$f":"'Schedule V(c)'!F99","v":0}]
["Sch Vc","Group Structure",null,"Ceding Party Name - 10",{"$f":"'Schedule V(c)'!F100","v":0}]
["Sch Vc","Group Structure",null,"Ceding Party Name - 11",{"$f":"'Schedule V(c)'!F101","v":0}]
["Sch Vc","Group Structure",null,"Ceding Party Name - 12",{"$f":"'Schedule V(c)'!F102","v":0}]
["Sch Vc","Group Structure",null,"Ceding Party Name - 13",{"$f":"'Schedule V(c)'!F103","v":0}]
["Sch Vc","Group Structure",null,"Ceding Party Name - 14",{"$f":"'Schedule V(c)'!F104","v":0}]
["Sch Vc","Group Structure",null,"Ceding Party Name - 15",{"$f":"'Schedule V(c)'!F105","v":0}]
["Sch Vc","Group Structure",null,"Ceding Party Name - 16",{"$f":"'Schedule V(c)'!F106","v":0}]
["Sch Vc","Group Structure",null,"Ceding Party Name - 17",{"$f":"'Schedule V(c)'!F107","v":0}]
["Sch Vc","Group Structure",null,"Ceding Party Name - 18",{"$f":"'Schedule V(c)'!F108","v":0}]
["Sch Vc","Group Structure",null,"Ceding Party Name - 19",{"$f":"'Schedule V(c)'!F109","v":0}]
["Sch Vc","Group Structure",null,"Ceding Party Name - 20",{"$f":"'Schedule V(c)'!F110","v":0}]
["Sch Vc","Group Structure",null,"Ceding Party Name - 21",{"$f":"'Schedule V(c)'!F111","v":0}]
["Sch Vc","Group Structure",null,"Ceding Party Name - 22",{"$f":"'Schedule V(c)'!F112","v":0}]
["Sch Vc","Group Structure",null,"Ceding Party Name - 23",{"$f":"'Schedule V(c)'!F113","v":0}]
["Sch Vc","Group Structure",null,"Ceding Party Jurisdiction - 1",{"$f":"'Schedule V(c)'!G91","v":0}]
["Sch Vc","Group Structure",null,"Ceding Party Jurisdiction - 2",{"$f":"'Schedule V(c)'!G92","v":0}]
["Sch Vc","Group Structure",null,"Ceding Party Jurisdiction - 3",{"$f":"'Schedule V(c)'!G93","v":0}]
["Sch Vc","Group Structure",null,"Ceding Party Jurisdiction - 4",{"$f":"'Schedule V(c)'!G94","v":0}]
["Sch Vc","Group Structure",null,"Ceding Party Jurisdiction - 5",{"$f":"'Schedule V(c)'!G95","v":0}]
["Sch Vc","Group Structure",null,"Ceding Party Jurisdiction - 6",{"$f":"'Schedule V(c)'!G96","v":0}]
["Sch Vc","Group Structure",null,"Ceding Party Jurisdiction - 7",{"$f":"'Schedule V(c)'!G97","v":0}]
["Sch Vc","Group Structure",null,"Ceding Party Jurisdiction - 8",{"$f":"'Schedule V(c)'!G98","v":0}]
["Sch Vc","Group Structure",null,"Ceding Party Jurisdiction - 9",{"$f":"'Schedule V(c)'!G99","v":0}]
["Sch Vc","Group Structure",null,"Ceding Party Jurisdiction - 10",{"$f":"'Schedule V(c)'!G100","v":0}]
["Sch Vc","Group Structure",null,"Ceding Party Jurisdiction - 11",{"$f":"'Schedule V(c)'!G101","v":0}]
["Sch Vc","Group Structure",null,"Ceding Party Jurisdiction - 12",{"$f":"'Schedule V(c)'!G102","v":0}]
["Sch Vc","Group Structure",null,"Ceding Party Jurisdiction - 13",{"$f":"'Schedule V(c)'!G103","v":0}]
["Sch Vc","Group Structure",null,"Ceding Party Jurisdiction - 14",{"$f":"'Schedule V(c)'!G104","v":0}]
["Sch Vc","Group Structure",null,"Ceding Party Jurisdiction - 15",{"$f":"'Schedule V(c)'!G105","v":0}]
["Sch Vc","Group Structure",null,"Ceding Party Jurisdiction - 16",{"$f":"'Schedule V(c)'!G106","v":0}]
["Sch Vc","Group Structure",null,"Ceding Party Jurisdiction - 17",{"$f":"'Schedule V(c)'!G107","v":0}]
["Sch Vc","Group Structure",null,"Ceding Party Jurisdiction - 18",{"$f":"'Schedule V(c)'!G108","v":0}]
["Sch Vc","Group Structure",null,"Ceding Party Jurisdiction - 19",{"$f":"'Schedule V(c)'!G109","v":0}]
["Sch Vc","Group Structure",null,"Ceding Party Jurisdiction - 20",{"$f":"'Schedule V(c)'!G110","v":0}]
["Sch Vc","Group Structure",null,"Ceding Party Jurisdiction - 21",{"$f":"'Schedule V(c)'!G111","v":0}]
["Sch Vc","Group Structure",null,"Ceding Party Jurisdiction - 22",{"$f":"'Schedule V(c)'!G112","v":0}]
["Sch Vc","Group Structure",null,"Ceding Party Jurisdiction - 23",{"$f":"'Schedule V(c)'!G113","v":0}]
["Sch Vc","Group Structure",null,"Ceding Party Rating - 1",{"$f":"'Schedule V(c)'!H91","v":0}]
["Sch Vc","Group Structure",null,"Ceding Party Rating - 2",{"$f":"'Schedule V(c)'!H92","v":0}]
["Sch Vc","Group Structure",null,"Ceding Party Rating - 3",{"$f":"'Schedule V(c)'!H93","v":0}]
["Sch Vc","Group Structure",null,"Ceding Party Rating - 4",{"$f":"'Schedule V(c)'!H94","v":0}]
["Sch Vc","Group Structure",null,"Ceding Party Rating - 5",{"$f":"'Schedule V(c)'!H95","v":0}]
["Sch Vc","Group Structure",null,"Ceding Party Rating - 6",{"$f":"'Schedule V(c)'!H96","v":0}]
["Sch Vc","Group Structure",null,"Ceding Party Rating - 7",{"$f":"'Schedule V(c)'!H97","v":0}]
["Sch Vc","Group Structure",null,"Ceding Party Rating - 8",{"$f":"'Schedule V(c)'!H98","v":0}]
["Sch Vc","Group Structure",null,"Ceding Party Rating - 9",{"$f":"'Schedule V(c)'!H99","v":0}]
["Sch Vc","Group Structure",null,"Ceding Party Rating - 10",{"$f":"'Schedule V(c)'!H100","v":0}]
["Sch Vc","Group Structure",null,"Ceding Party Rating - 11",{"$f":"'Schedule V(c)'!H101","v":0}]
["Sch Vc","Group Structure",null,"Ceding Party Rating - 12",{"$f":"'Schedule V(c)'!H102","v":0}]
["Sch Vc","Group Structure",null,"Ceding Party Rating - 13",{"$f":"'Schedule V(c)'!H103","v":0}]
["Sch Vc","Group Structure",null,"Ceding Party Rating - 14",{"$f":"'Schedule V(c)'!H104","v":0}]
["Sch Vc","Group Structure",null,"Ceding Party Rating - 15",{"$f":"'Schedule V(c)'!H105","v":0}]
["Sch Vc","Group Structure",null,"Ceding Party Rating - 16",{"$f":"'Schedule V(c)'!H106","v":0}]
["Sch Vc","Group Structure",null,"Ceding Party Rating - 17",{"$f":"'Schedule V(c)'!H107","v":0}]
["Sch Vc","Group Structure",null,"Ceding Party Rating - 18",{"$f":"'Schedule V(c)'!H108","v":0}]
["Sch Vc","Group Structure",null,"Ceding Party Rating - 19",{"$f":"'Schedule V(c)'!H109","v":0}]
["Sch Vc","Group Structure",null,"Ceding Party Rating - 20",{"$f":"'Schedule V(c)'!H110","v":0}]
["Sch Vc","Group Structure",null,"Ceding Party Rating - 21",{"$f":"'Schedule V(c)'!H111","v":0}]
["Sch Vc","Group Structure",null,"Ceding Party Rating - 22",{"$f":"'Schedule V(c)'!H112","v":0}]
["Sch Vc","Group Structure",null,"Ceding Party Rating - 23",{"$f":"'Schedule V(c)'!H113","v":0}]
["Sch Vc","Group Structure",null,"Gross Exposure Limit - 1",{"$f":"'Schedule V(c)'!I91","v":0}]
["Sch Vc","Group Structure",null,"Gross Exposure Limit - 2",{"$f":"'Schedule V(c)'!I92","v":0}]
["Sch Vc","Group Structure",null,"Gross Exposure Limit - 3",{"$f":"'Schedule V(c)'!I93","v":0}]
["Sch Vc","Group Structure",null,"Gross Exposure Limit - 4",{"$f":"'Schedule V(c)'!I94","v":0}]
["Sch Vc","Group Structure",null,"Gross Exposure Limit - 5",{"$f":"'Schedule V(c)'!I95","v":0}]
["Sch Vc","Group Structure",null,"Gross Exposure Limit - 6",{"$f":"'Schedule V(c)'!I96","v":0}]
["Sch Vc","Group Structure",null,"Gross Exposure Limit - 7",{"$f":"'Schedule V(c)'!I97","v":0}]
["Sch Vc","Group Structure",null,"Gross Exposure Limit - 8",{"$f":"'Schedule V(c)'!I98","v":0}]
["Sch Vc","Group Structure",null,"Gross Exposure Limit - 9",{"$f":"'Schedule V(c)'!I99","v":0}]
["Sch Vc","Group Structure",null,"Gross Exposure Limit - 10",{"$f":"'Schedule V(c)'!I100","v":0}]
["Sch Vc","Group Structure",null,"Gross Exposure Limit - 11",{"$f":"'Schedule V(c)'!I101","v":0}]
["Sch Vc","Group Structure",null,"Gross Exposure Limit - 12",{"$f":"'Schedule V(c)'!I102","v":0}]
["Sch Vc","Group Structure",null,"Gross Exposure Limit - 13",{"$f":"'Schedule V(c)'!I103","v":0}]
["Sch Vc","Group Structure",null,"Gross Exposure Limit - 14",{"$f":"'Schedule V(c)'!I104","v":0}]
["Sch Vc","Group Structure",null,"Gross Exposure Limit - 15",{"$f":"'Schedule V(c)'!I105","v":0}]
["Sch Vc","Group Structure",null,"Gross Exposure Limit - 16",{"$f":"'Schedule V(c)'!I106","v":0}]
["Sch Vc","Group Structure",null,"Gross Exposure Limit - 17",{"$f":"'Schedule V(c)'!I107","v":0}]
["Sch Vc","Group Structure",null,"Gross Exposure Limit - 18",{"$f":"'Schedule V(c)'!I108","v":0}]
["Sch Vc","Group Structure",null,"Gross Exposure Limit - 19",{"$f":"'Schedule V(c)'!I109","v":0}]
["Sch Vc","Group Structure",null,"Gross Exposure Limit - 20",{"$f":"'Schedule V(c)'!I110","v":0}]
["Sch Vc","Group Structure",null,"Gross Exposure Limit - 21",{"$f":"'Schedule V(c)'!I111","v":0}]
["Sch Vc","Group Structure",null,"Gross Exposure Limit - 22",{"$f":"'Schedule V(c)'!I112","v":0}]
["Sch Vc","Group Structure",null,"Gross Exposure Limit - 23",{"$f":"'Schedule V(c)'!I113","v":0}]
["Sch Vc","Group Structure",null,"Net Exposure Limit - 1",{"$f":"'Schedule V(c)'!J91","v":0}]
["Sch Vc","Group Structure",null,"Net Exposure Limit - 2",{"$f":"'Schedule V(c)'!J92","v":0}]
["Sch Vc","Group Structure",null,"Net Exposure Limit - 3",{"$f":"'Schedule V(c)'!J93","v":0}]
["Sch Vc","Group Structure",null,"Net Exposure Limit - 4",{"$f":"'Schedule V(c)'!J94","v":0}]
["Sch Vc","Group Structure",null,"Net Exposure Limit - 5",{"$f":"'Schedule V(c)'!J95","v":0}]
["Sch Vc","Group Structure",null,"Net Exposure Limit - 6",{"$f":"'Schedule V(c)'!J96","v":0}]
["Sch Vc","Group Structure",null,"Net Exposure Limit - 7",{"$f":"'Schedule V(c)'!J97","v":0}]
["Sch Vc","Group Structure",null,"Net Exposure Limit - 8",{"$f":"'Schedule V(c)'!J98","v":0}]
["Sch Vc","Group Structure",null,"Net Exposure Limit - 9",{"$f":"'Schedule V(c)'!J99","v":0}]
["Sch Vc","Group Structure",null,"Net Exposure Limit - 10",{"$f":"'Schedule V(c)'!J100","v":0}]
["Sch Vc","Group Structure",null,"Net Exposure Limit - 11",{"$f":"'Schedule V(c)'!J101","v":0}]
["Sch Vc","Group Structure",null,"Net Exposure Limit - 12",{"$f":"'Schedule V(c)'!J102","v":0}]
["Sch Vc","Group Structure",null,"Net Exposure Limit - 13",{"$f":"'Schedule V(c)'!J103","v":0}]
["Sch Vc","Group Structure",null,"Net Exposure Limit - 14",{"$f":"'Schedule V(c)'!J104","v":0}]
["Sch Vc","Group Structure",null,"Net Exposure Limit - 15",{"$f":"'Schedule V(c)'!J105","v":0}]
["Sch Vc","Group Structure",null,"Net Exposure Limit - 16",{"$f":"'Schedule V(c)'!J106","v":0}]
["Sch Vc","Group Structure",null,"Net Exposure Limit - 17",{"$f":"'Schedule V(c)'!J107","v":0}]
["Sch Vc","Group Structure",null,"Net Exposure Limit - 18",{"$f":"'Schedule V(c)'!J108","v":0}]
["Sch Vc","Group Structure",null,"Net Exposure Limit - 19",{"$f":"'Schedule V(c)'!J109","v":0}]
["Sch Vc","Group Structure",null,"Net Exposure Limit - 20",{"$f":"'Schedule V(c)'!J110","v":0}]
["Sch Vc","Group Structure",null,"Net Exposure Limit - 21",{"$f":"'Schedule V(c)'!J111","v":0}]
["Sch Vc","Group Structure",null,"Net Exposure Limit - 22",{"$f":"'Schedule V(c)'!J112","v":0}]
["Sch Vc","Group Structure",null,"Net Exposure Limit - 23",{"$f":"'Schedule V(c)'!J113","v":0}]
["Sch Vc","Group Structure",null,"Gross Premium Written - 1",{"$f":"'Schedule V(c)'!K91","v":0}]
["Sch Vc","Group Structure",null,"Gross Premium Written - 2",{"$f":"'Schedule V(c)'!K92","v":0}]
["Sch Vc","Group Structure",null,"Gross Premium Written - 3",{"$f":"'Schedule V(c)'!K93","v":0}]
["Sch Vc","Group Structure",null,"Gross Premium Written - 4",{"$f":"'Schedule V(c)'!K94","v":0}]
["Sch Vc","Group Structure",null,"Gross Premium Written - 5",{"$f":"'Schedule V(c)'!K95","v":0}]
["Sch Vc","Group Structure",null,"Gross Premium Written - 6",{"$f":"'Schedule V(c)'!K96","v":0}]
["Sch Vc","Group Structure",null,"Gross Premium Written - 7",{"$f":"'Schedule V(c)'!K97","v":0}]
["Sch Vc","Group Structure",null,"Gross Premium Written - 8",{"$f":"'Schedule V(c)'!K98","v":0}]
["Sch Vc","Group Structure",null,"Gross Premium Written - 9",{"$f":"'Schedule V(c)'!K99","v":0}]
["Sch Vc","Group Structure",null,"Gross Premium Written - 10",{"$f":"'Schedule V(c)'!K100","v":0}]
["Sch Vc","Group Structure",null,"Gross Premium Written - 11",{"$f":"'Schedule V(c)'!K101","v":0}]
["Sch Vc","Group Structure",null,"Gross Premium Written - 12",{"$f":"'Schedule V(c)'!K102","v":0}]
["Sch Vc","Group Structure",null,"Gross Premium Written - 13",{"$f":"'Schedule V(c)'!K103","v":0}]
["Sch Vc","Group Structure",null,"Gross Premium Written - 14",{"$f":"'Schedule V(c)'!K104","v":0}]
["Sch Vc","Group Structure",null,"Gross Premium Written - 15",{"$f":"'Schedule V(c)'!K105","v":0}]
["Sch Vc","Group Structure",null,"Gross Premium Written - 16",{"$f":"'Schedule V(c)'!K106","v":0}]
["Sch Vc","Group Structure",null,"Gross Premium Written - 17",{"$f":"'Schedule V(c)'!K107","v":0}]
["Sch Vc","Group Structure",null,"Gross Premium Written - 18",{"$f":"'Schedule V(c)'!K108","v":0}]
["Sch Vc","Group Structure",null,"Gross Premium Written - 19",{"$f":"'Schedule V(c)'!K109","v":0}]
["Sch Vc","Group Structure",null,"Gross Premium Written - 20",{"$f":"'Schedule V(c)'!K110","v":0}]
["Sch Vc","Group Structure",null,"Gross Premium Written - 21",{"$f":"'Schedule V(c)'!K111","v":0}]
["Sch Vc","Group Structure",null,"Gross Premium Written - 22",{"$f":"'Schedule V(c)'!K112","v":0}]
["Sch Vc","Group Structure",null,"Gross Premium Written - 23",{"$f":"'Schedule V(c)'!K113","v":0}]
["Sch Vc","Group Structure",null,"Net Premium Written - 1",{"$f":"'Schedule V(c)'!L91","v":0}]
["Sch Vc","Group Structure",null,"Net Premium Written - 2",{"$f":"'Schedule V(c)'!L92","v":0}]
["Sch Vc","Group Structure",null,"Net Premium Written - 3",{"$f":"'Schedule V(c)'!L93","v":0}]
["Sch Vc","Group Structure",null,"Net Premium Written - 4",{"$f":"'Schedule V(c)'!L94","v":0}]
["Sch Vc","Group Structure",null,"Net Premium Written - 5",{"$f":"'Schedule V(c)'!L95","v":0}]
["Sch Vc","Group Structure",null,"Net Premium Written - 6",{"$f":"'Schedule V(c)'!L96","v":0}]
["Sch Vc","Group Structure",null,"Net Premium Written - 7",{"$f":"'Schedule V(c)'!L97","v":0}]
["Sch Vc","Group Structure",null,"Net Premium Written - 8",{"$f":"'Schedule V(c)'!L98","v":0}]
["Sch Vc","Group Structure",null,"Net Premium Written - 9",{"$f":"'Schedule V(c)'!L99","v":0}]
["Sch Vc","Group Structure",null,"Net Premium Written - 10",{"$f":"'Schedule V(c)'!L100","v":0}]
["Sch Vc","Group Structure",null,"Net Premium Written - 11",{"$f":"'Schedule V(c)'!L101","v":0}]
["Sch Vc","Group Structure",null,"Net Premium Written - 12",{"$f":"'Schedule V(c)'!L102","v":0}]
["Sch Vc","Group Structure",null,"Net Premium Written - 13",{"$f":"'Schedule V(c)'!L103","v":0}]
["Sch Vc","Group Structure",null,"Net Premium Written - 14",{"$f":"'Schedule V(c)'!L104","v":0}]
["Sch Vc","Group Structure",null,"Net Premium Written - 15",{"$f":"'Schedule V(c)'!L105","v":0}]
["Sch Vc","Group Structure",null,"Net Premium Written - 16",{"$f":"'Schedule V(c)'!L106","v":0}]
["Sch Vc","Group Structure",null,"Net Premium Written - 17",{"$f":"'Schedule V(c)'!L107","v":0}]
["Sch Vc","Group Structure",null,"Net Premium Written - 18",{"$f":"'Schedule V(c)'!L108","v":0}]
["Sch Vc","Group Structure",null,"Net Premium Written - 19",{"$f":"'Schedule V(c)'!L109","v":0}]
["Sch Vc","Group Structure",null,"Net Premium Written - 20",{"$f":"'Schedule V(c)'!L110","v":0}]
["Sch Vc","Group Structure",null,"Net Premium Written - 21",{"$f":"'Schedule V(c)'!L111","v":0}]
["Sch Vc","Group Structure",null,"Net Premium Written - 22",{"$f":"'Schedule V(c)'!L112","v":0}]
["Sch Vc","Group Structure",null,"Net Premium Written - 23",{"$f":"'Schedule V(c)'!L113","v":0}]
["Sch Vc","Group Structure",null,"Q4 Proportion of Internal R/I",{"$f":"'Schedule V(c)'!L117","v":0}]
[]
["Sch Ve","Scenario Tests",null,"R1 Scenario - Assets",null,null,null,null,{"$f":"'Schedule V(e)'!F13","v":0}]
["Sch Ve","Scenario Tests",null,"R2 Scenario - Assets",null,null,null,null,{"$f":"'Schedule V(e)'!F14","v":0}]
["Sch Ve","Scenario Tests",null,"R3 Scenario - Assets",null,null,null,null,{"$f":"'Schedule V(e)'!F15","v":0}]
["Sch Ve","Scenario Tests",null,"R4 Scenario - Assets",null,null,null,null,{"$f":"'Schedule V(e)'!F16","v":0}]
["Sch Ve","Scenario Tests",null,"R5 Scenario - Assets",null,null,null,null,{"$f":"'Schedule V(e)'!F17","v":0}]
["Sch Ve","Scenario Tests",null,"R6 Scenario - Assets",null,null,null,null,{"$f":"'Schedule V(e)'!F18","v":0}]
["Sch Ve","Scenario Tests",null,"R7 Scenario - Assets",null,null,null,null,{"$f":"'Schedule V(e)'!F19","v":0}]
["Sch Ve","Scenario Tests",null,"R8 Scenario - Assets",null,null,null,null,{"$f":"'Schedule V(e)'!F20","v":0}]
["Sch Ve","Scenario Tests",null,"R1 Scenario - Liabilities",null,null,null,null,{"$f":"'Schedule V(e)'!G13","v":0}]
["Sch Ve","Scenario Tests",null,"R2 Scenario - Liabilities",null,null,null,null,{"$f":"'Schedule V(e)'!G14","v":0}]
["Sch Ve","Scenario Tests",null,"R3 Scenario - Liabilities",null,null,null,null,{"$f":"'Schedule V(e)'!G15","v":0}]
["Sch Ve","Scenario Tests",null,"R4 Scenario - Liabilities",null,null,null,null,{"$f":"'Schedule V(e)'!G16","v":0}]
["Sch Ve","Scenario Tests",null,"R5 Scenario - Liabilities",null,null,null,null,{"$f":"'Schedule V(e)'!G17","v":0}]
["Sch Ve","Scenario Tests",null,"R6 Scenario - Liabilities",null,null,null,null,{"$f":"'Schedule V(e)'!G18","v":0}]
["Sch Ve","Scenario Tests",null,"R7 Scenario - Liabilities",null,null,null,null,{"$f":"'Schedule V(e)'!G19","v":0}]
["Sch Ve","Scenario Tests",null,"R8 Scenario - Liabilities",null,null,null,null,{"$f":"'Schedule V(e)'!G20","v":0}]
["Sch Ve","Scenario Tests",null,"R5 - Greece",null,null,null,null,{"$f":"'Schedule V(e)'!E23","v":0}]
["Sch Ve","Scenario Tests",null,"R5 - Italy",null,null,null,null,{"$f":"'Schedule V(e)'!F23","v":0}]
["Sch Ve","Scenario Tests",null,"R5 - Portugal",null,null,null,null,{"$f":"'Schedule V(e)'!G23","v":0}]
["Sch Ve","Scenario Tests",null,"R5 - Ukraine",null,null,null,null,{"$f":"'Schedule V(e)'!H23","v":0}]
["Sch Ve","Scenario Tests",null,"R5 - Argentina",null,null,null,null,{"$f":"'Schedule V(e)'!I23","v":0}]
["Sch Ve","Scenario Tests",null,"R5 - Turkey",null,null,null,null,{"$f":"'Schedule V(e)'!J23","v":0}]
["Sch Ve","Scenario Tests",null,"Mortgage Loan - Shock 1 Rate",null,null,null,null,{"$f":"'Schedule V(e)'!D27","v":"Select"}]
["Sch Ve","Scenario Tests",null,"Mortgage Loan - Shock 2 Rate",null,null,null,null,{"$f":"'Schedule V(e)'!D28","v":"Select"}]
["Sch Ve","Scenario Tests",null,"Mortgage Loan - Shock 1 Assets",null,null,null,null,{"$f":"'Schedule V(e)'!F27","v":0}]
["Sch Ve","Scenario Tests",null,"Mortgage Loan - Shock 2 Assets",null,null,null,null,{"$f":"'Schedule V(e)'!F28","v":0}]
["Sch Ve","Scenario Tests",null,"Mortgage Loan - Shock 1 Liabilities",null,null,null,null,{"$f":"'Schedule V(e)'!G27","v":0}]
["Sch Ve","Scenario Tests",null,"Mortgage Loan - Shock 2 Liabilities",null,null,null,null,{"$f":"'Schedule V(e)'!G28","v":0}]
["Sch Ve","Scenario Tests",null,"Mortgage Loan - GPW - Related - Insurance - US",null,null,null,null,{"$f":"'Schedule V(e)'!D32","v":0}]
["Sch Ve","Scenario Tests",null,"Mortgage Loan - GPW - Related - R/I - US",null,null,null,null,{"$f":"'Schedule V(e)'!D33","v":0}]
["Sch Ve","Scenario Tests",null,"Mortgage Loan - GPW - Related - Insurance - Other",null,null,null,null,{"$f":"'Schedule V(e)'!D34","v":0}]
["Sch Ve","Scenario Tests",null,"Mortgage Loan - GPW - Related - R/I - Other",null,null,null,null,{"$f":"'Schedule V(e)'!D35","v":0}]
["Sch Ve","Scenario Tests",null,"Mortgage Loan - GPW - Related - Total",null,null,null,null,{"$f":"'Schedule V(e)'!D36","v":0}]
["Sch Ve","Scenario Tests",null,"Mortgage Loan - GPW - Unrelated - Insurance - US",null,null,null,null,{"$f":"'Schedule V(e)'!E32","v":0}]
["Sch Ve","Scenario Tests",null,"Mortgage Loan - GPW - Unrelated - R/I - US",null,null,null,null,{"$f":"'Schedule V(e)'!E33","v":0}]
["Sch Ve","Scenario Tests",null,"Mortgage Loan - GPW - Unrelated - Insurance - Other",null,null,null,null,{"$f":"'Schedule V(e)'!E34","v":0}]
["Sch Ve","Scenario Tests",null,"Mortgage Loan - GPW - Unrelated - R/I - Other",null,null,null,null,{"$f":"'Schedule V(e)'!E35","v":0}]
["Sch Ve","Scenario Tests",null,"Mortgage Loan - GPW - Unrelated - Total",null,null,null,null,{"$f":"'Schedule V(e)'!E36","v":0}]
["Sch Ve","Scenario Tests",null,"Mortgage Loan - NPW - Related - Insurance - US",null,null,null,null,{"$f":"'Schedule V(e)'!F32","v":0}]
["Sch Ve","Scenario Tests",null,"Mortgage Loan - NPW - Related - R/I - US",null,null,null,null,{"$f":"'Schedule V(e)'!F33","v":0}]
["Sch Ve","Scenario Tests",null,"Mortgage Loan - NPW - Related - Insurance - Other",null,null,null,null,{"$f":"'Schedule V(e)'!F34","v":0}]
["Sch Ve","Scenario Tests",null,"Mortgage Loan - NPW - Related - R/I - Other",null,null,null,null,{"$f":"'Schedule V(e)'!F35","v":0}]
["Sch Ve","Scenario Tests",null,"Mortgage Loan - NPW - Related - Total",null,null,null,null,{"$f":"'Schedule V(e)'!F36","v":0}]
["Sch Ve","Scenario Tests",null,"Mortgage Loan - NPW - Unrelated - Insurance - US",null,null,null,null,{"$f":"'Schedule V(e)'!G32","v":0}]
["Sch Ve","Scenario Tests",null,"Mortgage Loan - NPW - Unrelated - R/I - US",null,null,null,null,{"$f":"'Schedule V(e)'!G33","v":0}]
["Sch Ve","Scenario Tests",null,"Mortgage Loan - NPW - Unrelated - Insurance - Other",null,null,null,null,{"$f":"'Schedule V(e)'!G34","v":0}]
["Sch Ve","Scenario Tests",null,"Mortgage Loan - NPW - Unrelated - R/I - Other",null,null,null,null,{"$f":"'Schedule V(e)'!G35","v":0}]
["Sch Ve","Scenario Tests",null,"Mortgage Loan - NPW - Unrelated - Total",null,null,null,null,{"$f":"'Schedule V(e)'!G36","v":0}]
["Sch Ve","Scenario Tests",null,"Mortgage Loan - Claims - Related - Insurance - US",null,null,null,null,{"$f":"'Schedule V(e)'!H32","v":0}]
["Sch Ve","Scenario Tests",null,"Mortgage Loan - Claims - Related - R/I - US",null,null,null,null,{"$f":"'Schedule V(e)'!H33","v":0}]
["Sch Ve","Scenario Tests",null,"Mortgage Loan - Claims - Related - Insurance - Other",null,null,null,null,{"$f":"'Schedule V(e)'!H34","v":0}]
["Sch Ve","Scenario Tests",null,"Mortgage Loan - Claims - Related - R/I - Other",null,null,null,null,{"$f":"'Schedule V(e)'!H35","v":0}]
["Sch Ve","Scenario Tests",null,"Mortgage Loan - Claims - Related - Total",null,null,null,null,{"$f":"'Schedule V(e)'!H36","v":0}]
["Sch Ve","Scenario Tests",null,"Mortgage Loan - Claims - Unrelated - Insurance - US",null,null,null,null,{"$f":"'Schedule V(e)'!I32","v":0}]
["Sch Ve","Scenario Tests",null,"Mortgage Loan - Claims - Unrelated - R/I - US",null,null,null,null,{"$f":"'Schedule V(e)'!I33","v":0}]
["Sch Ve","Scenario Tests",null,"Mortgage Loan - Claims - Unrelated - Insurance - Other",null,null,null,null,{"$f":"'Schedule V(e)'!I34","v":0}]
["Sch Ve","Scenario Tests",null,"Mortgage Loan - Claims - Unrelated - R/I - Other",null,null,null,null,{"$f":"'Schedule V(e)'!I35","v":0}]
["Sch Ve","Scenario Tests",null,"Mortgage Loan - Claims - Unrelated - Total",null,null,null,null,{"$f":"'Schedule V(e)'!I36","v":0}]
["Sch Ve","Scenario Tests",null,"Mortgage Loan - Reserves - Related - Insurance - US",null,null,null,null,{"$f":"'Schedule V(e)'!J32","v":0}]
["Sch Ve","Scenario Tests",null,"Mortgage Loan - Reserves - Related - R/I - US",null,null,null,null,{"$f":"'Schedule V(e)'!J33","v":0}]
["Sch Ve","Scenario Tests",null,"Mortgage Loan - Reserves - Related - Insurance - Other",null,null,null,null,{"$f":"'Schedule V(e)'!J34","v":0}]
["Sch Ve","Scenario Tests",null,"Mortgage Loan - Reserves - Related - R/I - Other",null,null,null,null,{"$f":"'Schedule V(e)'!J35","v":0}]
["Sch Ve","Scenario Tests",null,"Mortgage Loan - Reserves - Related - Total",null,null,null,null,{"$f":"'Schedule V(e)'!J36","v":0}]
["Sch Ve","Scenario Tests",null,"Mortgage Loan - Reserves - Unrelated - Insurance - US",null,null,null,null,{"$f":"'Schedule V(e)'!K32","v":0}]
["Sch Ve","Scenario Tests",null,"Mortgage Loan - Reserves - Unrelated - R/I - US",null,null,null,null,{"$f":"'Schedule V(e)'!K33","v":0}]
["Sch Ve","Scenario Tests",null,"Mortgage Loan - Reserves - Unrelated - Insurance - Other",null,null,null,null,{"$f":"'Schedule V(e)'!K34","v":0}]
["Sch Ve","Scenario Tests",null,"Mortgage Loan - Reserves - Unrelated - R/I - Other",null,null,null,null,{"$f":"'Schedule V(e)'!K35","v":0}]
["Sch Ve","Scenario Tests",null,"Mortgage Loan - Reserves - Unrelated - Total",null,null,null,null,{"$f":"'Schedule V(e)'!K36","v":0}]
["Sch Ve","Scenario Tests",null,"Mortgage Loan - Insurance in Force",null,null,null,null,{"$f":"'Schedule V(e)'!C40","v":0}]
["Sch Ve","Scenario Tests",null,"Mortgage Loan - Risk in Force",null,null,null,null,{"$f":"'Schedule V(e)'!D40","v":0}]
["Sch Ve","Scenario Tests",null,"Mortgage Loan - Capital Held - Internal",null,null,null,null,{"$f":"'Schedule V(e)'!E40","v":0}]
["Sch Ve","Scenario Tests",null,"Mortgage Loan - Capital Held - External",null,null,null,null,{"$f":"'Schedule V(e)'!F40","v":0}]
["Sch Ve","Scenario Tests",null,"Mortgage Loan - Collateral Posted",null,null,null,null,{"$f":"'Schedule V(e)'!G40","v":0}]
["Sch Ve","Scenario Tests",null,"Mortgage Loan - # of Policies in Force",null,null,null,null,{"$f":"'Schedule V(e)'!H40","v":0}]
["Sch Ve","Scenario Tests",null,"Mortgage Loan - Loss Ratio",null,null,null,null,{"$f":"'Schedule V(e)'!I40","v":0}]
["Sch Ve","Scenario Tests",null,"Mortgage Loan - Combined Ratio",null,null,null,null,{"$f":"'Schedule V(e)'!J40","v":0}]
["Sch Ve","Scenario Tests",null,"Mortgage Loan - Weighted Average LTV",null,null,null,null,{"$f":"'Schedule V(e)'!K40","v":0}]
["Sch Ve","Scenario Tests",null,"Mortgage Loan - Weighted Average FICO Score",null,null,null,null,{"$f":"'Schedule V(e)'!L40","v":0}]
["Sch Ve","Scenario Tests",null,"Other Scenario - Name 1",null,null,null,null,{"$f":"'Schedule V(e)'!B51","v":0}]
["Sch Ve","Scenario Tests",null,"Other Scenario - Name 2",null,null,null,null,{"$f":"'Schedule V(e)'!B52","v":0}]
["Sch Ve","Scenario Tests",null,"Other Scenario - Name 3",null,null,null,null,{"$f":"'Schedule V(e)'!B53","v":0}]
["Sch Ve","Scenario Tests",null," Other - Gross Loss 1",null,null,null,null,{"$f":"'Schedule V(e)'!G51","v":0}]
["Sch Ve","Scenario Tests",null," Other - Gross Loss 2",null,null,null,null,{"$f":"'Schedule V(e)'!G52","v":0}]
["Sch Ve","Scenario Tests",null," Other - Gross Loss 3",null,null,null,null,{"$f":"'Schedule V(e)'!G53","v":0}]
["Sch Ve","Scenario Tests",null," Other - Net Loss 1",null,null,null,null,{"$f":"'Schedule V(e)'!I51","v":0}]
["Sch Ve","Scenario Tests",null," Other - Net Loss 2",null,null,null,null,{"$f":"'Schedule V(e)'!I52","v":0}]
["Sch Ve","Scenario Tests",null," Other - Net Loss 3",null,null,null,null,{"$f":"'Schedule V(e)'!I53","v":0}]
["Sch Ve","Scenario Tests",null,"Rating Downgrade Details",null,null,null,null,{"$f":"'Schedule V(e)'!B57","v":0}]
["Sch Ve","Scenario Tests",null,"Specific Worst Case Scen.- Details",null,null,null,null,{"$f":"'Schedule V(e)'!D74","v":0}]
["Sch Ve","Scenario Tests",null,"Specific WC Scen.- Gross Loss",null,null,null,null,{"$f":"'Schedule V(e)'!D76","v":0}]
["Sch Ve","Scenario Tests",null,"Specific WC Scen.- Net Loss",null,null,null,null,{"$f":"'Schedule V(e)'!D77","v":0}]
["Sch Ve","Scenario Tests",null,"Reserve Stress Test - Details",null,null,null,null,{"$f":"'Schedule V(e)'!D82","v":0}]
["Sch Ve","Scenario Tests",null,"Reserve Stress Test - Gross Loss",null,null,null,null,{"$f":"'Schedule V(e)'!D84","v":0}]
["Sch Ve","Scenario Tests",null,"Reserve Stress Test - Net Loss",null,null,null,null,{"$f":"'Schedule V(e)'!D85","v":0}]
["Sch Ve","Scenario Tests",null,"A1) Headquarters in Bermuda?",{"$f":"'Schedule V(e)'!I105","v":"Select Yes/No"}]
["Sch Ve","Scenario Tests",null,"A2) Number of users located in Bermuda",{"$f":"'Schedule V(e)'!I106","v":"Select Amount"}]
["Sch Ve","Scenario Tests",null,"A3) Number of users globally",{"$f":"'Schedule V(e)'!I107","v":"Select Amount"}]
["Sch Ve","Scenario Tests",null,"A4) Data centre in Bermuda to host servers",{"$f":"'Schedule V(e)'!I108","v":"Select Yes/No"}]
["Sch Ve","Scenario Tests",null,"A5) Utilize a cloud hosting company to host servers",{"$f":"'Schedule V(e)'!I109","v":"Select Yes/No"}]
["Sch Ve","Scenario Tests",null,"A6) Cybersecurity insurance coverage",{"$f":"'Schedule V(e)'!I110","v":"Select Yes/No"}]
["Sch Ve","Scenario Tests",null,"A7) Personal data of customers stored/processed",{"$f":"'Schedule V(e)'!I112","v":"Select Yes/No"}]
["Sch Ve","Scenario Tests",null,"A8) # of Credit card data stored/processed",{"$f":"'Schedule V(e)'!I113","v":"Select Yes/No"}]
["Sch Ve","Scenario Tests",null,"A9) Personal data stored/processed",{"$f":"'Schedule V(e)'!I114","v":"Select Yes/No"}]
["Sch Ve","Scenario Tests",null,"A10) Brochureware",{"$f":"'Schedule V(e)'!I116","v":"Select Yes/No"}]
["Sch Ve","Scenario Tests",null,"A11) Web applications",{"$f":"'Schedule V(e)'!I117","v":"Select Yes/No"}]
["Sch Ve","Scenario Tests",null,"A12) Web applications that processes",{"$f":"'Schedule V(e)'!I118","v":"Select Yes/No"}]
["Sch Ve","Scenario Tests",null,"A13) Dedicated IT Risk Manager",{"$f":"'Schedule V(e)'!I120","v":"Select Yes/No"}]
["Sch Ve","Scenario Tests",null,"A13a) Dedicated IT Risk Manager Details",{"$f":"'Schedule V(e)'!J120","v":"Confirm role holder's name"}]
["Sch Ve","Scenario Tests",null,"A14) Dedicated IT Security Manager",{"$f":"'Schedule V(e)'!I121","v":"Select Yes/No"}]
["Sch Ve","Scenario Tests",null,"A14a) Dedicated IT Security Manager",{"$f":"'Schedule V(e)'!J121","v":"Confirm role holder's name"}]
["Sch Ve","Scenario Tests",null,"A15) Dedicated IT Disaster Recovery Manager",{"$f":"'Schedule V(e)'!I122","v":"Select Yes/No"}]
["Sch Ve","Scenario Tests",null,"A15a) Dedicated IT Disaster Recovery Manager details",{"$f":"'Schedule V(e)'!J122","v":"Confirm role holder's name"}]
["Sch Ve","Scenario Tests",null,"A16) Dedicated Business Continuity Manager",{"$f":"'Schedule V(e)'!I123","v":"Select Yes/No"}]
["Sch Ve","Scenario Tests",null,"A16a) Dedicated Business Continuity Manager details",{"$f":"'Schedule V(e)'!J123","v":"Confirm role holder's name"}]
["Sch Ve","Scenario Tests",null,"A17) Designated Data Privacy Officer",{"$f":"'Schedule V(e)'!I124","v":"Select Yes/No"}]
["Sch Ve","Scenario Tests",null,"A17a) Designated Data Privacy Officer details",{"$f":"'Schedule V(e)'!J124","v":"Confirm role holder's name"}]
["Sch Ve","Scenario Tests",null,"A18) IT Audit completed annually",{"$f":"'Schedule V(e)'!J125","v":"Date of last internal/external IT audit"}]
["Sch Ve","Scenario Tests",null,"A18a) IT Audit completed annually details",{"$f":"'Schedule V(e)'!J125","v":"Date of last internal/external IT audit"}]
["Sch Ve","Scenario Tests",null,"B1) Cyber security programme in place",{"$f":"'Schedule V(e)'!I129","v":"Select Yes/No"}]
["Sch Ve","Scenario Tests",null,"B2) Cyber programme status communicated to Senior Mgmt",{"$f":"'Schedule V(e)'!I130","v":"Select Yes/No"}]
["Sch Ve","Scenario Tests",null,"B3) Cyber Risk Policy approved by Board annually",{"$f":"'Schedule V(e)'!I131","v":"Select Yes/No"}]
["Sch Ve","Scenario Tests",null,"B4) 3 lines of defence clearly defined",{"$f":"'Schedule V(e)'!I132","v":"Select Yes/No"}]
["Sch Ve","Scenario Tests",null,"B5) Compliance with Data Protection requirements",{"$f":"'Schedule V(e)'!I133","v":"Select Yes/No"}]
["Sch Ve","Scenario Tests",null,"B6) Asset Management inventoried",{"$f":"'Schedule V(e)'!I134","v":"Select Yes/No"}]
["Sch Ve","Scenario Tests",null,"B7) Classified all data",{"$f":"'Schedule V(e)'!I135","v":"Select Yes/No"}]
["Sch Ve","Scenario Tests",null,"B8) 3rd Party security assessment in past year",{"$f":"'Schedule V(e)'!I136","v":"Select Yes/No"}]
["Sch Ve","Scenario Tests",null,"B9) Classed Data by sensitivity",{"$f":"'Schedule V(e)'!I138","v":"Select Yes/No"}]
["Sch Ve","Scenario Tests",null,"B10) Formal Process for software and hardware maintenance",{"$f":"'Schedule V(e)'!I139","v":"Select Yes/No"}]
["Sch Ve","Scenario Tests",null,"B11) Logical Assess Management Standard",{"$f":"'Schedule V(e)'!I140","v":"Select Yes/No"}]
["Sch Ve","Scenario Tests",null,"B12) Staff complete cybersecurity training",{"$f":"'Schedule V(e)'!I141","v":"Select Yes/No"}]
["Sch Ve","Scenario Tests",null,"B13) Penetration Testing completed within 1 yr",{"$f":"'Schedule V(e)'!I142","v":"Select Yes/No"}]
["Sch Ve","Scenario Tests",null,"B14) Segment enterprise network",{"$f":"'Schedule V(e)'!I143","v":"Select Yes/No"}]
["Sch Ve","Scenario Tests",null,"B15) Formal process for software changes",{"$f":"'Schedule V(e)'!I144","v":"Select Yes/No"}]
["Sch Ve","Scenario Tests",null,"B16) Security configuration standards",{"$f":"'Schedule V(e)'!I145","v":"Select Yes/No"}]
["Sch Ve","Scenario Tests",null,"B17) Detect-Process for threat alerting",{"$f":"'Schedule V(e)'!I147","v":"Select Yes/No"}]
["Sch Ve","Scenario Tests",null,"B18) Process to Monitor Info Systems",{"$f":"'Schedule V(e)'!I148","v":"Select Yes/No"}]
["Sch Ve","Scenario Tests",null,"B19) Centrally stores & archives logs",{"$f":"'Schedule V(e)'!I149","v":"Select Yes/No"}]
["Sch Ve","Scenario Tests",null,"B20) Doc. Incident Response Plan",{"$f":"'Schedule V(e)'!I151","v":"Select Yes/No"}]
["Sch Ve","Scenario Tests",null,"B21) 4th Line Expertise service for major incident",{"$f":"'Schedule V(e)'!I152","v":"Select Yes/No"}]
["Sch Ve","Scenario Tests",null,"B22) Business Continuity Plan tested last 12 months",{"$f":"'Schedule V(e)'!I154","v":"Select Yes/No"}]
["Sch Ve","Scenario Tests",null,"B23) Cyber Incident last 12 months",{"$f":"'Schedule V(e)'!I155","v":"Select Yes/No"}]
["Sch Ve","Scenario Tests",null,"C1) Antivirus software installed",{"$f":"'Schedule V(e)'!I159","v":"Select Yes/No"}]
["Sch Ve","Scenario Tests",null,"C2) APT Control in place",{"$f":"'Schedule V(e)'!I160","v":"Select Yes/No"}]
["Sch Ve","Scenario Tests",null,"C3) DLP controls in place",{"$f":"'Schedule V(e)'!I161","v":"Select Yes/No"}]
["Sch Ve","Scenario Tests",null,"C4) Internal Vulnerability scanning conducted",{"$f":"'Schedule V(e)'!I162","v":"Select Yes/No"}]
["Sch Ve","Scenario Tests",null,"C4a) Internal Vulnerability scanning frequency",{"$f":"'Schedule V(e)'!J162","v":"Select Frequency"}]
["Sch Ve","Scenario Tests",null,"C5) External Vulnerability scanning conducted",{"$f":"'Schedule V(e)'!I163","v":"Select Yes/No"}]
["Sch Ve","Scenario Tests",null,"C5a) External Vulnerability scanning frequency",{"$f":"'Schedule V(e)'!J163","v":"Select Frequency"}]
["Sch Ve","Scenario Tests",null,"C6) Regular Firewall Ruleset Reviews",{"$f":"'Schedule V(e)'!I164","v":"Select Yes/No"}]
["Sch Ve","Scenario Tests",null,"C7) Network IDS/IPS control",{"$f":"'Schedule V(e)'!I165","v":"Select Yes/No"}]
["Sch Ve","Scenario Tests",null,"C8) Internet borne DDOS defence in place",{"$f":"'Schedule V(e)'!I166","v":"Select Yes/No"}]
[]
["Sch Vf","Coinsurance",null,"Mod Co - Ceding Insurer 1",{"$f":"+'Schedule V(f)'!C12","v":0}]
["Sch Vf","Coinsurance",null,"Mod Co - Ceding Insurer 2",{"$f":"+'Schedule V(f)'!C13","v":0}]
["Sch Vf","Coinsurance",null,"Mod Co - Ceding Insurer 3",{"$f":"+'Schedule V(f)'!C14","v":0}]
["Sch Vf","Coinsurance",null,"Mod Co - Ceding Insurer 4",{"$f":"+'Schedule V(f)'!C15","v":0}]
["Sch Vf","Coinsurance",null,"Mod Co - Ceding Insurer 5",{"$f":"+'Schedule V(f)'!C16","v":0}]
["Sch Vf","Coinsurance",null,"Mod Co - Ceding Insurer 6",{"$f":"+'Schedule V(f)'!C17","v":0}]
["Sch Vf","Coinsurance",null,"Mod Co - Ceding Insurer 7",{"$f":"+'Schedule V(f)'!C18","v":0}]
["Sch Vf","Coinsurance",null,"Mod Co - Ceding Insurer 8",{"$f":"+'Schedule V(f)'!C19","v":0}]
["Sch Vf","Coinsurance",null,"Mod Co - Ceding Insurer 9",{"$f":"+'Schedule V(f)'!C20","v":0}]
["Sch Vf","Coinsurance",null,"Mod Co - Ceding Insurer 10",{"$f":"+'Schedule V(f)'!C21","v":0}]
["Sch Vf","Coinsurance",null,"Mod Co - Ceding Insurer 11",{"$f":"+'Schedule V(f)'!C22","v":0}]
["Sch Vf","Coinsurance",null,"Mod Co - Ceding Insurer 12",{"$f":"+'Schedule V(f)'!C23","v":0}]
["Sch Vf","Coinsurance",null,"Mod Co - Ceding Insurer 13",{"$f":"+'Schedule V(f)'!C24","v":0}]
["Sch Vf","Coinsurance",null,"Mod Co - Ceding Insurer 14",{"$f":"+'Schedule V(f)'!C25","v":0}]
["Sch Vf","Coinsurance",null,"Mod Co - Ceding Insurer 15",{"$f":"+'Schedule V(f)'!C26","v":0}]
["Sch Vf","Coinsurance",null,"Mod Co - Coverage 1",{"$f":"+'Schedule V(f)'!F12","v":"Select from Drop-Down"}]
["Sch Vf","Coinsurance",null,"Mod Co - Coverage 2",{"$f":"+'Schedule V(f)'!F13","v":"Select from Drop-Down"}]
["Sch Vf","Coinsurance",null,"Mod Co - Coverage 3",{"$f":"+'Schedule V(f)'!F14","v":"Select from Drop-Down"}]
["Sch Vf","Coinsurance",null,"Mod Co - Coverage 4",{"$f":"+'Schedule V(f)'!F15","v":"Select from Drop-Down"}]
["Sch Vf","Coinsurance",null,"Mod Co - Coverage 5",{"$f":"+'Schedule V(f)'!F16","v":"Select from Drop-Down"}]
["Sch Vf","Coinsurance",null,"Mod Co - Coverage 6",{"$f":"+'Schedule V(f)'!F17","v":"Select from Drop-Down"}]
["Sch Vf","Coinsurance",null,"Mod Co - Coverage 7",{"$f":"+'Schedule V(f)'!F18","v":"Select from Drop-Down"}]
["Sch Vf","Coinsurance",null,"Mod Co - Coverage 8",{"$f":"+'Schedule V(f)'!F19","v":"Select from Drop-Down"}]
["Sch Vf","Coinsurance",null,"Mod Co - Coverage 9",{"$f":"+'Schedule V(f)'!F20","v":"Select from Drop-Down"}]
["Sch Vf","Coinsurance",null,"Mod Co - Coverage 10",{"$f":"+'Schedule V(f)'!F21","v":"Select from Drop-Down"}]
["Sch Vf","Coinsurance",null,"Mod Co - Coverage 11",{"$f":"+'Schedule V(f)'!F22","v":"Select from Drop-Down"}]
["Sch Vf","Coinsurance",null,"Mod Co - Coverage 12",{"$f":"+'Schedule V(f)'!F23","v":"Select from Drop-Down"}]
["Sch Vf","Coinsurance",null,"Mod Co - Coverage 13",{"$f":"+'Schedule V(f)'!F24","v":"Select from Drop-Down"}]
["Sch Vf","Coinsurance",null,"Mod Co - Coverage 14",{"$f":"+'Schedule V(f)'!F25","v":"Select from Drop-Down"}]
["Sch Vf","Coinsurance",null,"Mod Co - Coverage 15",{"$f":"+'Schedule V(f)'!F26","v":"Select from Drop-Down"}]
["Sch Vf","Coinsurance",null,"Mod Co - Reserve 1",{"$f":"'Schedule V(f)'!J12","v":0}]
["Sch Vf","Coinsurance",null,"Mod Co - Reserve 2",{"$f":"'Schedule V(f)'!J13","v":0}]
["Sch Vf","Coinsurance",null,"Mod Co - Reserve 3",{"$f":"'Schedule V(f)'!J14","v":0}]
["Sch Vf","Coinsurance",null,"Mod Co - Reserve 4",{"$f":"'Schedule V(f)'!J15","v":0}]
["Sch Vf","Coinsurance",null,"Mod Co - Reserve 5",{"$f":"'Schedule V(f)'!J16","v":0}]
["Sch Vf","Coinsurance",null,"Mod Co - Reserve 6",{"$f":"'Schedule V(f)'!J17","v":0}]
["Sch Vf","Coinsurance",null,"Mod Co - Reserve 7",{"$f":"'Schedule V(f)'!J18","v":0}]
["Sch Vf","Coinsurance",null,"Mod Co - Reserve 8",{"$f":"'Schedule V(f)'!J19","v":0}]
["Sch Vf","Coinsurance",null,"Mod Co - Reserve 9",{"$f":"'Schedule V(f)'!J20","v":0}]
["Sch Vf","Coinsurance",null,"Mod Co - Reserve 10",{"$f":"'Schedule V(f)'!J21","v":0}]
["Sch Vf","Coinsurance",null,"Mod Co - Reserve 11",{"$f":"'Schedule V(f)'!J22","v":0}]
["Sch Vf","Coinsurance",null,"Mod Co - Reserve 12",{"$f":"'Schedule V(f)'!J23","v":0}]
["Sch Vf","Coinsurance",null,"Mod Co - Reserve 13",{"$f":"'Schedule V(f)'!J24","v":0}]
["Sch Vf","Coinsurance",null,"Mod Co - Reserve 14",{"$f":"'Schedule V(f)'!J25","v":0}]
["Sch Vf","Coinsurance",null,"Mod Co - Reserve 15",{"$f":"'Schedule V(f)'!J26","v":0}]
["Sch Vf","Coinsurance",null,"Mod Co - Reserve Total",{"$f":"'Schedule V(f)'!J32","v":0}]
["Sch Vf","Coinsurance",null,"Affiliated Cedant - Cash",{"$f":"'Schedule V(f)'!F39","v":0}]
["Sch Vf","Coinsurance",null,"Affiliated Cedant - Corporate Bonds",{"$f":"'Schedule V(f)'!F40","v":0}]
["Sch Vf","Coinsurance",null,"Affiliated Cedant - Sovereign Bonds",{"$f":"'Schedule V(f)'!F41","v":0}]
["Sch Vf","Coinsurance",null,"Affiliated Cedant - MBS",{"$f":"'Schedule V(f)'!F42","v":0}]
["Sch Vf","Coinsurance",null,"Affiliated Cedant - Mortgage Loans",{"$f":"'Schedule V(f)'!F43","v":0}]
["Sch Vf","Coinsurance",null,"Affiliated Cedant - Equities",{"$f":"'Schedule V(f)'!F44","v":0}]
["Sch Vf","Coinsurance",null,"Affiliated Cedant - Other 1",{"$f":"'Schedule V(f)'!F45","v":0}]
["Sch Vf","Coinsurance",null,"Affiliated Cedant - Other 2",{"$f":"'Schedule V(f)'!F46","v":0}]
["Sch Vf","Coinsurance",null,"Affiliated Cedant - Other 3",{"$f":"'Schedule V(f)'!F47","v":0}]
["Sch Vf","Coinsurance",null,"Affiliated Cedant - Other 4",{"$f":"'Schedule V(f)'!F48","v":0}]
["Sch Vf","Coinsurance",null,"Affiliated Cedant - Other 5",{"$f":"'Schedule V(f)'!F49","v":0}]
["Sch Vf","Coinsurance",null,"Affiliated Cedant - Other 6",{"$f":"'Schedule V(f)'!F50","v":0}]
["Sch Vf","Coinsurance",null,"Affiliated Cedant - Other 7",{"$f":"'Schedule V(f)'!F51","v":0}]
["Sch Vf","Coinsurance",null,"Affiliated Cedant - Total",{"$f":"'Schedule V(f)'!F52","v":0}]
["Sch Vf","Coinsurance",null,"Non-Aff Cedant - Cash",{"$f":"'Schedule V(f)'!H39","v":0}]
["Sch Vf","Coinsurance",null,"Non-Aff Cedant - Corporate Bonds",{"$f":"'Schedule V(f)'!H40","v":0}]
["Sch Vf","Coinsurance",null,"Non-Aff Cedant - Sovereign Bonds",{"$f":"'Schedule V(f)'!H41","v":0}]
["Sch Vf","Coinsurance",null,"Non-Aff Cedant - MBS",{"$f":"'Schedule V(f)'!H42","v":0}]
["Sch Vf","Coinsurance",null,"Non-Aff Cedant - Mortgage Loans",{"$f":"'Schedule V(f)'!H43","v":0}]
["Sch Vf","Coinsurance",null,"Non-Aff Cedant - Equities",{"$f":"'Schedule V(f)'!H44","v":0}]
["Sch Vf","Coinsurance",null,"Non-Aff Cedant - Other 1",{"$f":"'Schedule V(f)'!H45","v":0}]
["Sch Vf","Coinsurance",null,"Non-Aff Cedant - Other 2",{"$f":"'Schedule V(f)'!H46","v":0}]
["Sch Vf","Coinsurance",null,"Non-Aff Cedant - Other 3",{"$f":"'Schedule V(f)'!H47","v":0}]
["Sch Vf","Coinsurance",null,"Non-Aff Cedant - Other 4",{"$f":"'Schedule V(f)'!H48","v":0}]
["Sch Vf","Coinsurance",null,"Non-Aff Cedant - Other 5",{"$f":"'Schedule V(f)'!H49","v":0}]
["Sch Vf","Coinsurance",null,"Non-Aff Cedant - Other 6",{"$f":"'Schedule V(f)'!H50","v":0}]
["Sch Vf","Coinsurance",null,"Non-Aff Cedant - Other 7",{"$f":"'Schedule V(f)'!H51","v":0}]
["Sch Vf","Coinsurance",null,"Non-Aff Cedant - Total",{"$f":"'Schedule V(f)'!H52","v":0}]
[]
["Sch Vg","GAAP - BSCR Rec",null,"Assets Fin. Stmts. - Open Balance",{"$f":"'Schedule V(g)'!D10","v":0}]
["Sch Vg","GAAP - BSCR Rec",null,"Assets Fin. Stmts. - Prepaid Expenses",{"$f":"'Schedule V(g)'!D11","v":0}]
["Sch Vg","GAAP - BSCR Rec",null,"Assets Fin. Stmts. - Goodwill",{"$f":"'Schedule V(g)'!D12","v":0}]
["Sch Vg","GAAP - BSCR Rec",null,"Assets Fin. Stmts. - Intangible Assets",{"$f":"'Schedule V(g)'!D13","v":0}]
["Sch Vg","GAAP - BSCR Rec",null,"Assets Fin. Stmts. - Other 1",{"$f":"'Schedule V(g)'!D14","v":0}]
["Sch Vg","GAAP - BSCR Rec",null,"Assets Fin. Stmts. - Other 2",{"$f":"'Schedule V(g)'!D15","v":0}]
["Sch Vg","GAAP - BSCR Rec",null,"Assets Fin. Stmts. - Other 3",{"$f":"'Schedule V(g)'!D16","v":0}]
["Sch Vg","GAAP - BSCR Rec",null,"Assets Fin. Stmts. - Other 4",{"$f":"'Schedule V(g)'!D17","v":0}]
["Sch Vg","GAAP - BSCR Rec",null,"Assets Fin. Stmts. - Other 5",{"$f":"'Schedule V(g)'!D18","v":0}]
["Sch Vg","GAAP - BSCR Rec",null,"Assets Fin. Stmts. - Other 6",{"$f":"'Schedule V(g)'!D19","v":0}]
["Sch Vg","GAAP - BSCR Rec",null,"Assets Fin. Stmts. - Other 7",{"$f":"'Schedule V(g)'!D20","v":0}]
["Sch Vg","GAAP - BSCR Rec",null,"Liab. Fin. Stmts. - Open Balance",{"$f":"'Schedule V(g)'!E10","v":0}]
["Sch Vg","GAAP - BSCR Rec",null,"Liab. Fin. Stmts. - Prepaid Expenses",{"$f":"'Schedule V(g)'!E11","v":0}]
["Sch Vg","GAAP - BSCR Rec",null,"Liab. Fin. Stmts. - Goodwill",{"$f":"'Schedule V(g)'!E12","v":0}]
["Sch Vg","GAAP - BSCR Rec",null,"Liab. Fin. Stmts. - Intangible Liab.",{"$f":"'Schedule V(g)'!E13","v":0}]
["Sch Vg","GAAP - BSCR Rec",null,"Liab. Fin. Stmts. - Other 1",{"$f":"'Schedule V(g)'!E14","v":0}]
["Sch Vg","GAAP - BSCR Rec",null,"Liab. Fin. Stmts. - Other 2",{"$f":"'Schedule V(g)'!E15","v":0}]
["Sch Vg","GAAP - BSCR Rec",null,"Liab. Fin. Stmts. - Other 3",{"$f":"'Schedule V(g)'!E16","v":0}]
["Sch Vg","GAAP - BSCR Rec",null,"Liab. Fin. Stmts. - Other 4",{"$f":"'Schedule V(g)'!E17","v":0}]
["Sch Vg","GAAP - BSCR Rec",null,"Liab. Fin. Stmts. - Other 5",{"$f":"'Schedule V(g)'!E18","v":0}]
["Sch Vg","GAAP - BSCR Rec",null,"Liab. Fin. Stmts. - Other 6",{"$f":"'Schedule V(g)'!E19","v":0}]
["Sch Vg","GAAP - BSCR Rec",null,"Liab. Fin. Stmts. - Other 7",{"$f":"'Schedule V(g)'!E20","v":0}]
["Sch Vg","GAAP - BSCR Rec",null,"Net. Inc. Fin. Stmts. - Open Balance",{"$f":"'Schedule V(g)'!F10","v":0}]
["Sch Vg","GAAP - BSCR Rec",null,"Net. Inc. Fin. Stmts. - Prepaid Expenses",{"$f":"'Schedule V(g)'!F11","v":0}]
["Sch Vg","GAAP - BSCR Rec",null,"Net. Inc. Fin. Stmts. - Goodwill",{"$f":"'Schedule V(g)'!F12","v":0}]
["Sch Vg","GAAP - BSCR Rec",null,"Net. Inc. Fin. Stmts. - Intangible Net. Inc.",{"$f":"'Schedule V(g)'!F13","v":0}]
["Sch Vg","GAAP - BSCR Rec",null,"Net. Inc. Fin. Stmts. - Other 1",{"$f":"'Schedule V(g)'!F14","v":0}]
["Sch Vg","GAAP - BSCR Rec",null,"Net. Inc. Fin. Stmts. - Other 2",{"$f":"'Schedule V(g)'!F15","v":0}]
["Sch Vg","GAAP - BSCR Rec",null,"Net. Inc. Fin. Stmts. - Other 3",{"$f":"'Schedule V(g)'!F16","v":0}]
["Sch Vg","GAAP - BSCR Rec",null,"Net. Inc. Fin. Stmts. - Other 4",{"$f":"'Schedule V(g)'!F17","v":0}]
["Sch Vg","GAAP - BSCR Rec",null,"Net. Inc. Fin. Stmts. - Other 5",{"$f":"'Schedule V(g)'!F18","v":0}]
["Sch Vg","GAAP - BSCR Rec",null,"Net. Inc. Fin. Stmts. - Other 6",{"$f":"'Schedule V(g)'!F19","v":0}]
["Sch Vg","GAAP - BSCR Rec",null,"Net. Inc. Fin. Stmts. - Other 7",{"$f":"'Schedule V(g)'!F20","v":0}]
["Sch Vg","GAAP - BSCR Rec",null,"Capital & Surplus Fin. Stmts. - Open Balance",{"$f":"'Schedule V(g)'!G10","v":0}]
["Sch Vg","GAAP - BSCR Rec",null,"Assets Form 1SFS - Form 1SFS",{"$f":"'Schedule V(g)'!D30","v":0}]
["Sch Vg","GAAP - BSCR Rec",null,"Assets Form 1SFS - Gross Loss Provision",{"$f":"'Schedule V(g)'!D31","v":0}]
["Sch Vg","GAAP - BSCR Rec",null,"Assets Form 1SFS - Gross Premium Provision",{"$f":"'Schedule V(g)'!D32","v":0}]
["Sch Vg","GAAP - BSCR Rec",null,"Assets Form 1SFS - R/I Recoverable",{"$f":"'Schedule V(g)'!D33","v":0}]
["Sch Vg","GAAP - BSCR Rec",null,"Assets Form 1SFS - Risk Margin",{"$f":"'Schedule V(g)'!D34","v":0}]
["Sch Vg","GAAP - BSCR Rec",null,"Assets Form 1SFS - Contingent Liabilities",{"$f":"'Schedule V(g)'!D35","v":0}]
["Sch Vg","GAAP - BSCR Rec",null,"Assets Form 1SFS - Goodwill",{"$f":"'Schedule V(g)'!D36","v":0}]
["Sch Vg","GAAP - BSCR Rec",null,"Assets Form 1SFS - Deferred Tax",{"$f":"'Schedule V(g)'!D37","v":0}]
["Sch Vg","GAAP - BSCR Rec",null,"Assets Form 1SFS - Quoted Investments",{"$f":"'Schedule V(g)'!D38","v":0}]
["Sch Vg","GAAP - BSCR Rec",null,"Assets Form 1SFS - Unquoted Investments",{"$f":"'Schedule V(g)'!D39","v":0}]
["Sch Vg","GAAP - BSCR Rec",null,"Assets Form 1SFS - Inv. In Affiliates",{"$f":"'Schedule V(g)'!D40","v":0}]
["Sch Vg","GAAP - BSCR Rec",null,"Assets Form 1SFS - Real Estate",{"$f":"'Schedule V(g)'!D41","v":0}]
["Sch Vg","GAAP - BSCR Rec",null,"Assets Form 1SFS - Off Balance Sheet Ins.",{"$f":"'Schedule V(g)'!D42","v":0}]
["Sch Vg","GAAP - BSCR Rec",null,"Assets Form 1SFS - Debt Ins.",{"$f":"'Schedule V(g)'!D43","v":0}]
["Sch Vg","GAAP - BSCR Rec",null,"Assets Form 1SFS - Intangible",{"$f":"'Schedule V(g)'!D44","v":0}]
["Sch Vg","GAAP - BSCR Rec",null,"Assets Form 1SFS - Other 1",{"$f":"'Schedule V(g)'!D45","v":0}]
["Sch Vg","GAAP - BSCR Rec",null,"Assets Form 1SFS - Other 2",{"$f":"'Schedule V(g)'!D46","v":0}]
["Sch Vg","GAAP - BSCR Rec",null,"Assets Form 1SFS - Other 3",{"$f":"'Schedule V(g)'!D47","v":0}]
["Sch Vg","GAAP - BSCR Rec",null,"Assets Form 1SFS - Total",{"$f":"'Schedule V(g)'!D51","v":0}]
["Sch Vg","GAAP - BSCR Rec",null,"Liab. Form 1SFS - Form 1SFS",{"$f":"'Schedule V(g)'!E30","v":0}]
["Sch Vg","GAAP - BSCR Rec",null,"Liab. Form 1SFS - Gross Loss Provision",{"$f":"'Schedule V(g)'!E31","v":0}]
["Sch Vg","GAAP - BSCR Rec",null,"Liab. Form 1SFS - Gross Premium Provision",{"$f":"'Schedule V(g)'!E32","v":0}]
["Sch Vg","GAAP - BSCR Rec",null,"Liab. Form 1SFS - R/I Recoverable",{"$f":"'Schedule V(g)'!E33","v":0}]
["Sch Vg","GAAP - BSCR Rec",null,"Liab. Form 1SFS - Risk Margin",{"$f":"'Schedule V(g)'!E34","v":0}]
["Sch Vg","GAAP - BSCR Rec",null,"Liab. Form 1SFS - Contingent Liabilities",{"$f":"'Schedule V(g)'!E35","v":0}]
["Sch Vg","GAAP - BSCR Rec",null,"Liab. Form 1SFS - Goodwill",{"$f":"'Schedule V(g)'!E36","v":0}]
["Sch Vg","GAAP - BSCR Rec",null,"Liab. Form 1SFS - Deferred Tax",{"$f":"'Schedule V(g)'!E37","v":0}]
["Sch Vg","GAAP - BSCR Rec",null,"Liab. Form 1SFS - Quoted Investments",{"$f":"'Schedule V(g)'!E38","v":0}]
["Sch Vg","GAAP - BSCR Rec",null,"Liab. Form 1SFS - Unquoted Investments",{"$f":"'Schedule V(g)'!E39","v":0}]
["Sch Vg","GAAP - BSCR Rec",null,"Liab. Form 1SFS - Inv. In Affiliates",{"$f":"'Schedule V(g)'!E40","v":0}]
["Sch Vg","GAAP - BSCR Rec",null,"Liab. Form 1SFS - Real Estate",{"$f":"'Schedule V(g)'!E41","v":0}]
["Sch Vg","GAAP - BSCR Rec",null,"Liab. Form 1SFS - Off Balance Sheet Ins.",{"$f":"'Schedule V(g)'!E42","v":0}]
["Sch Vg","GAAP - BSCR Rec",null,"Liab. Form 1SFS - Debt Ins.",{"$f":"'Schedule V(g)'!E43","v":0}]
["Sch Vg","GAAP - BSCR Rec",null,"Liab. Form 1SFS - Intangible",{"$f":"'Schedule V(g)'!E44","v":0}]
["Sch Vg","GAAP - BSCR Rec",null,"Liab. Form 1SFS - Other 1",{"$f":"'Schedule V(g)'!E45","v":0}]
["Sch Vg","GAAP - BSCR Rec",null,"Liab. Form 1SFS - Other 2",{"$f":"'Schedule V(g)'!E46","v":0}]
["Sch Vg","GAAP - BSCR Rec",null,"Liab. Form 1SFS - Other 3",{"$f":"'Schedule V(g)'!E47","v":0}]
["Sch Vg","GAAP - BSCR Rec",null,"Liab. Form 1SFS - Total",{"$f":"'Schedule V(g)'!E51","v":0}]
["Sch Vg","GAAP - BSCR Rec",null,"Net Inc. Form 1SFS - Form 1SFS",{"$f":"'Schedule V(g)'!F30","v":0}]
["Sch Vg","GAAP - BSCR Rec",null,"Net Inc. Form 1SFS - Gross Loss Provision",{"$f":"'Schedule V(g)'!F31","v":0}]
["Sch Vg","GAAP - BSCR Rec",null,"Net Inc. Form 1SFS - Gross Premium Provision",{"$f":"'Schedule V(g)'!F32","v":0}]
["Sch Vg","GAAP - BSCR Rec",null,"Net Inc. Form 1SFS - R/I Recoverable",{"$f":"'Schedule V(g)'!F33","v":0}]
["Sch Vg","GAAP - BSCR Rec",null,"Net Inc. Form 1SFS - Risk Margin",{"$f":"'Schedule V(g)'!F34","v":0}]
["Sch Vg","GAAP - BSCR Rec",null,"Net Inc. Form 1SFS - Contingent Liabilities",{"$f":"'Schedule V(g)'!F35","v":0}]
["Sch Vg","GAAP - BSCR Rec",null,"Net Inc. Form 1SFS - Goodwill",{"$f":"'Schedule V(g)'!F36","v":0}]
["Sch Vg","GAAP - BSCR Rec",null,"Net Inc. Form 1SFS - Deferred Tax",{"$f":"'Schedule V(g)'!F37","v":0}]
["Sch Vg","GAAP - BSCR Rec",null,"Net Inc. Form 1SFS - Quoted Investments",{"$f":"'Schedule V(g)'!F38","v":0}]
["Sch Vg","GAAP - BSCR Rec",null,"Net Inc. Form 1SFS - Unquoted Investments",{"$f":"'Schedule V(g)'!F39","v":0}]
["Sch Vg","GAAP - BSCR Rec",null,"Net Inc. Form 1SFS - Inv. In Affiliates",{"$f":"'Schedule V(g)'!F40","v":0}]
["Sch Vg","GAAP - BSCR Rec",null,"Net Inc. Form 1SFS - Real Estate",{"$f":"'Schedule V(g)'!F41","v":0}]
["Sch Vg","GAAP - BSCR Rec",null,"Net Inc. Form 1SFS - Off Balance Sheet Ins.",{"$f":"'Schedule V(g)'!F42","v":0}]
["Sch Vg","GAAP - BSCR Rec",null,"Net Inc. Form 1SFS - Debt Ins.",{"$f":"'Schedule V(g)'!F43","v":0}]
["Sch Vg","GAAP - BSCR Rec",null,"Net Inc. Form 1SFS - Intangible",{"$f":"'Schedule V(g)'!F44","v":0}]
["Sch Vg","GAAP - BSCR Rec",null,"Net Inc. Form 1SFS - Other 1",{"$f":"'Schedule V(g)'!F45","v":0}]
["Sch Vg","GAAP - BSCR Rec",null,"Net Inc. Form 1SFS - Other 2",{"$f":"'Schedule V(g)'!F46","v":0}]
["Sch Vg","GAAP - BSCR Rec",null,"Net Inc. Form 1SFS - Other 3",{"$f":"'Schedule V(g)'!F47","v":0}]
["Sch Vg","GAAP - BSCR Rec",null,"Net Inc. Form 1SFS - Total",{"$f":"'Schedule V(g)'!F51","v":0}]
["Sch Vg","GAAP - BSCR Rec",null,"C&S Form 1SFS - Form 1SFS",{"$f":"'Schedule V(g)'!G30","v":0}]
["Sch Vg","GAAP - BSCR Rec",null,"C&S Form 1SFS - Gross Loss Provision",{"$f":"'Schedule V(g)'!G31","v":0}]
["Sch Vg","GAAP - BSCR Rec",null,"C&S Form 1SFS - Gross Premium Provision",{"$f":"'Schedule V(g)'!G32","v":0}]
["Sch Vg","GAAP - BSCR Rec",null,"C&S Form 1SFS - R/I Recoverable",{"$f":"'Schedule V(g)'!G33","v":0}]
["Sch Vg","GAAP - BSCR Rec",null,"C&S Form 1SFS - Risk Margin",{"$f":"'Schedule V(g)'!G34","v":0}]
["Sch Vg","GAAP - BSCR Rec",null,"C&S Form 1SFS - Contingent Liabilities",{"$f":"'Schedule V(g)'!G35","v":0}]
["Sch Vg","GAAP - BSCR Rec",null,"C&S Form 1SFS - Goodwill",{"$f":"'Schedule V(g)'!G36","v":0}]
["Sch Vg","GAAP - BSCR Rec",null,"C&S Form 1SFS - Deferred Tax",{"$f":"'Schedule V(g)'!G37","v":0}]
["Sch Vg","GAAP - BSCR Rec",null,"C&S Form 1SFS - Quoted Investments",{"$f":"'Schedule V(g)'!G38","v":0}]
["Sch Vg","GAAP - BSCR Rec",null,"C&S Form 1SFS - Unquoted Investments",{"$f":"'Schedule V(g)'!G39","v":0}]
["Sch Vg","GAAP - BSCR Rec",null,"C&S Form 1SFS - Inv. In Affiliates",{"$f":"'Schedule V(g)'!G40","v":0}]
["Sch Vg","GAAP - BSCR Rec",null,"C&S Form 1SFS - Real Estate",{"$f":"'Schedule V(g)'!G41","v":0}]
["Sch Vg","GAAP - BSCR Rec",null,"C&S Form 1SFS - Off Balance Sheet Ins.",{"$f":"'Schedule V(g)'!G42","v":0}]
["Sch Vg","GAAP - BSCR Rec",null,"C&S Form 1SFS - Debt Ins.",{"$f":"'Schedule V(g)'!G43","v":0}]
["Sch Vg","GAAP - BSCR Rec",null,"C&S Form 1SFS - Intangible",{"$f":"'Schedule V(g)'!G44","v":0}]
["Sch Vg","GAAP - BSCR Rec",null,"C&S Form 1SFS - Other 1",{"$f":"'Schedule V(g)'!G45","v":0}]
["Sch Vg","GAAP - BSCR Rec",null,"C&S Form 1SFS - Other 2",{"$f":"'Schedule V(g)'!G46","v":0}]
["Sch Vg","GAAP - BSCR Rec",null,"C&S Form 1SFS - Other 3",{"$f":"'Schedule V(g)'!G47","v":0}]
["Sch Vg","GAAP - BSCR Rec",null,"C&S Form 1SFS - Total",{"$f":"'Schedule V(g)'!G51","v":0}]
[]
["Sch Vk","Deposit Details",null,"# of Deposit Assets & Liabilities",{"$f":"'Schedule V(k)'!E3","v":0}]
["Sch Vk","Deposit Details",null,"Name of Exposure - 1",{"$f":"'Schedule V(k)'!C8","v":0}]
["Sch Vk","Deposit Details",null,"Name of Exposure - 2",{"$f":"'Schedule V(k)'!C9","v":0}]
["Sch Vk","Deposit Details",null,"Name of Exposure - 3",{"$f":"'Schedule V(k)'!C10","v":0}]
["Sch Vk","Deposit Details",null,"Name of Exposure - 4",{"$f":"'Schedule V(k)'!C11","v":0}]
["Sch Vk","Deposit Details",null,"Name of Exposure - 5",{"$f":"'Schedule V(k)'!C12","v":0}]
["Sch Vk","Deposit Details",null,"Name of Exposure - 6",{"$f":"'Schedule V(k)'!C13","v":0}]
["Sch Vk","Deposit Details",null,"Name of Exposure - 7",{"$f":"'Schedule V(k)'!C14","v":0}]
["Sch Vk","Deposit Details",null,"Name of Exposure - 8",{"$f":"'Schedule V(k)'!C15","v":0}]
["Sch Vk","Deposit Details",null,"Name of Exposure - 9",{"$f":"'Schedule V(k)'!C16","v":0}]
["Sch Vk","Deposit Details",null,"Name of Exposure - 10",{"$f":"'Schedule V(k)'!C17","v":0}]
["Sch Vk","Deposit Details",null,"Name of Exposure - 11",{"$f":"'Schedule V(k)'!C18","v":0}]
["Sch Vk","Deposit Details",null,"Name of Exposure - 12",{"$f":"'Schedule V(k)'!C19","v":0}]
["Sch Vk","Deposit Details",null,"Name of Exposure - 13",{"$f":"'Schedule V(k)'!C20","v":0}]
["Sch Vk","Deposit Details",null,"Name of Exposure - 14",{"$f":"'Schedule V(k)'!C21","v":0}]
["Sch Vk","Deposit Details",null,"Name of Exposure - 15",{"$f":"'Schedule V(k)'!C22","v":0}]
["Sch Vk","Deposit Details",null,"Name of Exposure - 16",{"$f":"'Schedule V(k)'!C23","v":0}]
["Sch Vk","Deposit Details",null,"Name of Exposure - 17",{"$f":"'Schedule V(k)'!C24","v":0}]
["Sch Vk","Deposit Details",null,"Name of Exposure - 18",{"$f":"'Schedule V(k)'!C25","v":0}]
["Sch Vk","Deposit Details",null,"Name of Exposure - 19",{"$f":"'Schedule V(k)'!C26","v":0}]
["Sch Vk","Deposit Details",null,"Name of Exposure - 20",{"$f":"'Schedule V(k)'!C27","v":0}]
["Sch Vk","Deposit Details",null,"Name of Exposure - 21",{"$f":"'Schedule V(k)'!C28","v":0}]
["Sch Vk","Deposit Details",null,"Name of Exposure - 22",{"$f":"'Schedule V(k)'!C29","v":0}]
["Sch Vk","Deposit Details",null,"Name of Exposure - 23",{"$f":"'Schedule V(k)'!C30","v":0}]
["Sch Vk","Deposit Details",null,"Name of Exposure - 24",{"$f":"'Schedule V(k)'!C31","v":0}]
["Sch Vk","Deposit Details",null,"Name of Exposure - 25",{"$f":"'Schedule V(k)'!C32","v":0}]
["Sch Vk","Deposit Details",null,"Line of Business - 1",{"$f":"'Schedule V(k)'!E8","v":0}]
["Sch Vk","Deposit Details",null,"Line of Business - 2",{"$f":"'Schedule V(k)'!E9","v":0}]
["Sch Vk","Deposit Details",null,"Line of Business - 3",{"$f":"'Schedule V(k)'!E10","v":0}]
["Sch Vk","Deposit Details",null,"Line of Business - 4",{"$f":"'Schedule V(k)'!E11","v":0}]
["Sch Vk","Deposit Details",null,"Line of Business - 5",{"$f":"'Schedule V(k)'!E12","v":0}]
["Sch Vk","Deposit Details",null,"Line of Business - 6",{"$f":"'Schedule V(k)'!E13","v":0}]
["Sch Vk","Deposit Details",null,"Line of Business - 7",{"$f":"'Schedule V(k)'!E14","v":0}]
["Sch Vk","Deposit Details",null,"Line of Business - 8",{"$f":"'Schedule V(k)'!E15","v":0}]
["Sch Vk","Deposit Details",null,"Line of Business - 9",{"$f":"'Schedule V(k)'!E16","v":0}]
["Sch Vk","Deposit Details",null,"Line of Business - 10",{"$f":"'Schedule V(k)'!E17","v":0}]
["Sch Vk","Deposit Details",null,"Line of Business - 11",{"$f":"'Schedule V(k)'!E18","v":0}]
["Sch Vk","Deposit Details",null,"Line of Business - 12",{"$f":"'Schedule V(k)'!E19","v":0}]
["Sch Vk","Deposit Details",null,"Line of Business - 13",{"$f":"'Schedule V(k)'!E20","v":0}]
["Sch Vk","Deposit Details",null,"Line of Business - 14",{"$f":"'Schedule V(k)'!E21","v":0}]
["Sch Vk","Deposit Details",null,"Line of Business - 15",{"$f":"'Schedule V(k)'!E22","v":0}]
["Sch Vk","Deposit Details",null,"Line of Business - 16",{"$f":"'Schedule V(k)'!E23","v":0}]
["Sch Vk","Deposit Details",null,"Line of Business - 17",{"$f":"'Schedule V(k)'!E24","v":0}]
["Sch Vk","Deposit Details",null,"Line of Business - 18",{"$f":"'Schedule V(k)'!E25","v":0}]
["Sch Vk","Deposit Details",null,"Line of Business - 19",{"$f":"'Schedule V(k)'!E26","v":0}]
["Sch Vk","Deposit Details",null,"Line of Business - 20",{"$f":"'Schedule V(k)'!E27","v":0}]
["Sch Vk","Deposit Details",null,"Line of Business - 21",{"$f":"'Schedule V(k)'!E28","v":0}]
["Sch Vk","Deposit Details",null,"Line of Business - 22",{"$f":"'Schedule V(k)'!E29","v":0}]
["Sch Vk","Deposit Details",null,"Line of Business - 23",{"$f":"'Schedule V(k)'!E30","v":0}]
["Sch Vk","Deposit Details",null,"Line of Business - 24",{"$f":"'Schedule V(k)'!E31","v":0}]
["Sch Vk","Deposit Details",null,"Line of Business - 25",{"$f":"'Schedule V(k)'!E32","v":0}]
["Sch Vk","Deposit Details",null,"Assets in Trust - 1",{"$f":"'Schedule V(k)'!F8","v":0}]
["Sch Vk","Deposit Details",null,"Assets in Trust - 2",{"$f":"'Schedule V(k)'!F9","v":0}]
["Sch Vk","Deposit Details",null,"Assets in Trust - 3",{"$f":"'Schedule V(k)'!F10","v":0}]
["Sch Vk","Deposit Details",null,"Assets in Trust - 4",{"$f":"'Schedule V(k)'!F11","v":0}]
["Sch Vk","Deposit Details",null,"Assets in Trust - 5",{"$f":"'Schedule V(k)'!F12","v":0}]
["Sch Vk","Deposit Details",null,"Assets in Trust - 6",{"$f":"'Schedule V(k)'!F13","v":0}]
["Sch Vk","Deposit Details",null,"Assets in Trust - 7",{"$f":"'Schedule V(k)'!F14","v":0}]
["Sch Vk","Deposit Details",null,"Assets in Trust - 8",{"$f":"'Schedule V(k)'!F15","v":0}]
["Sch Vk","Deposit Details",null,"Assets in Trust - 9",{"$f":"'Schedule V(k)'!F16","v":0}]
["Sch Vk","Deposit Details",null,"Assets in Trust - 10",{"$f":"'Schedule V(k)'!F17","v":0}]
["Sch Vk","Deposit Details",null,"Assets in Trust - 11",{"$f":"'Schedule V(k)'!F18","v":0}]
["Sch Vk","Deposit Details",null,"Assets in Trust - 12",{"$f":"'Schedule V(k)'!F19","v":0}]
["Sch Vk","Deposit Details",null,"Assets in Trust - 13",{"$f":"'Schedule V(k)'!F20","v":0}]
["Sch Vk","Deposit Details",null,"Assets in Trust - 14",{"$f":"'Schedule V(k)'!F21","v":0}]
["Sch Vk","Deposit Details",null,"Assets in Trust - 15",{"$f":"'Schedule V(k)'!F22","v":0}]
["Sch Vk","Deposit Details",null,"Assets in Trust - 16",{"$f":"'Schedule V(k)'!F23","v":0}]
["Sch Vk","Deposit Details",null,"Assets in Trust - 17",{"$f":"'Schedule V(k)'!F24","v":0}]
["Sch Vk","Deposit Details",null,"Assets in Trust - 18",{"$f":"'Schedule V(k)'!F25","v":0}]
["Sch Vk","Deposit Details",null,"Assets in Trust - 19",{"$f":"'Schedule V(k)'!F26","v":0}]
["Sch Vk","Deposit Details",null,"Assets in Trust - 20",{"$f":"'Schedule V(k)'!F27","v":0}]
["Sch Vk","Deposit Details",null,"Assets in Trust - 21",{"$f":"'Schedule V(k)'!F28","v":0}]
["Sch Vk","Deposit Details",null,"Assets in Trust - 22",{"$f":"'Schedule V(k)'!F29","v":0}]
["Sch Vk","Deposit Details",null,"Assets in Trust - 23",{"$f":"'Schedule V(k)'!F30","v":0}]
["Sch Vk","Deposit Details",null,"Assets in Trust - 24",{"$f":"'Schedule V(k)'!F31","v":0}]
["Sch Vk","Deposit Details",null,"Assets in Trust - 25",{"$f":"'Schedule V(k)'!F32","v":0}]
["Sch Vk","Deposit Details",null,"Assets in Trust - Total",{"$f":"'Schedule V(k)'!F58","v":0}]
["Sch Vk","Deposit Details",null,"Collateral - 1",{"$f":"'Schedule V(k)'!G8","v":0}]
["Sch Vk","Deposit Details",null,"Collateral - 2",{"$f":"'Schedule V(k)'!G9","v":0}]
["Sch Vk","Deposit Details",null,"Collateral - 3",{"$f":"'Schedule V(k)'!G10","v":0}]
["Sch Vk","Deposit Details",null,"Collateral - 4",{"$f":"'Schedule V(k)'!G11","v":0}]
["Sch Vk","Deposit Details",null,"Collateral - 5",{"$f":"'Schedule V(k)'!G12","v":0}]
["Sch Vk","Deposit Details",null,"Collateral - 6",{"$f":"'Schedule V(k)'!G13","v":0}]
["Sch Vk","Deposit Details",null,"Collateral - 7",{"$f":"'Schedule V(k)'!G14","v":0}]
["Sch Vk","Deposit Details",null,"Collateral - 8",{"$f":"'Schedule V(k)'!G15","v":0}]
["Sch Vk","Deposit Details",null,"Collateral - 9",{"$f":"'Schedule V(k)'!G16","v":0}]
["Sch Vk","Deposit Details",null,"Collateral - 10",{"$f":"'Schedule V(k)'!G17","v":0}]
["Sch Vk","Deposit Details",null,"Collateral - 11",{"$f":"'Schedule V(k)'!G18","v":0}]
["Sch Vk","Deposit Details",null,"Collateral - 12",{"$f":"'Schedule V(k)'!G19","v":0}]
["Sch Vk","Deposit Details",null,"Collateral - 13",{"$f":"'Schedule V(k)'!G20","v":0}]
["Sch Vk","Deposit Details",null,"Collateral - 14",{"$f":"'Schedule V(k)'!G21","v":0}]
["Sch Vk","Deposit Details",null,"Collateral - 15",{"$f":"'Schedule V(k)'!G22","v":0}]
["Sch Vk","Deposit Details",null,"Collateral - 16",{"$f":"'Schedule V(k)'!G23","v":0}]
["Sch Vk","Deposit Details",null,"Collateral - 17",{"$f":"'Schedule V(k)'!G24","v":0}]
["Sch Vk","Deposit Details",null,"Collateral - 18",{"$f":"'Schedule V(k)'!G25","v":0}]
["Sch Vk","Deposit Details",null,"Collateral - 19",{"$f":"'Schedule V(k)'!G26","v":0}]
["Sch Vk","Deposit Details",null,"Collateral - 20",{"$f":"'Schedule V(k)'!G27","v":0}]
["Sch Vk","Deposit Details",null,"Collateral - 21",{"$f":"'Schedule V(k)'!G28","v":0}]
["Sch Vk","Deposit Details",null,"Collateral - 22",{"$f":"'Schedule V(k)'!G29","v":0}]
["Sch Vk","Deposit Details",null,"Collateral - 23",{"$f":"'Schedule V(k)'!G30","v":0}]
["Sch Vk","Deposit Details",null,"Collateral - 24",{"$f":"'Schedule V(k)'!G31","v":0}]
["Sch Vk","Deposit Details",null,"Collateral - 25",{"$f":"'Schedule V(k)'!G32","v":0}]
["Sch Vk","Deposit Details",null,"Collateral - Total",{"$f":"'Schedule V(k)'!G58","v":0}]
["Sch Vk","Deposit Details",null,"GPW for the Period - 1",{"$f":"'Schedule V(k)'!H8","v":0}]
["Sch Vk","Deposit Details",null,"GPW for the Period - 2",{"$f":"'Schedule V(k)'!H9","v":0}]
["Sch Vk","Deposit Details",null,"GPW for the Period - 3",{"$f":"'Schedule V(k)'!H10","v":0}]
["Sch Vk","Deposit Details",null,"GPW for the Period - 4",{"$f":"'Schedule V(k)'!H11","v":0}]
["Sch Vk","Deposit Details",null,"GPW for the Period - 5",{"$f":"'Schedule V(k)'!H12","v":0}]
["Sch Vk","Deposit Details",null,"GPW for the Period - 6",{"$f":"'Schedule V(k)'!H13","v":0}]
["Sch Vk","Deposit Details",null,"GPW for the Period - 7",{"$f":"'Schedule V(k)'!H14","v":0}]
["Sch Vk","Deposit Details",null,"GPW for the Period - 8",{"$f":"'Schedule V(k)'!H15","v":0}]
["Sch Vk","Deposit Details",null,"GPW for the Period - 9",{"$f":"'Schedule V(k)'!H16","v":0}]
["Sch Vk","Deposit Details",null,"GPW for the Period - 10",{"$f":"'Schedule V(k)'!H17","v":0}]
["Sch Vk","Deposit Details",null,"GPW for the Period - 11",{"$f":"'Schedule V(k)'!H18","v":0}]
["Sch Vk","Deposit Details",null,"GPW for the Period - 12",{"$f":"'Schedule V(k)'!H19","v":0}]
["Sch Vk","Deposit Details",null,"GPW for the Period - 13",{"$f":"'Schedule V(k)'!H20","v":0}]
["Sch Vk","Deposit Details",null,"GPW for the Period - 14",{"$f":"'Schedule V(k)'!H21","v":0}]
["Sch Vk","Deposit Details",null,"GPW for the Period - 15",{"$f":"'Schedule V(k)'!H22","v":0}]
["Sch Vk","Deposit Details",null,"GPW for the Period - 16",{"$f":"'Schedule V(k)'!H23","v":0}]
["Sch Vk","Deposit Details",null,"GPW for the Period - 17",{"$f":"'Schedule V(k)'!H24","v":0}]
["Sch Vk","Deposit Details",null,"GPW for the Period - 18",{"$f":"'Schedule V(k)'!H25","v":0}]
["Sch Vk","Deposit Details",null,"GPW for the Period - 19",{"$f":"'Schedule V(k)'!H26","v":0}]
["Sch Vk","Deposit Details",null,"GPW for the Period - 20",{"$f":"'Schedule V(k)'!H27","v":0}]
["Sch Vk","Deposit Details",null,"GPW for the Period - 21",{"$f":"'Schedule V(k)'!H28","v":0}]
["Sch Vk","Deposit Details",null,"GPW for the Period - 22",{"$f":"'Schedule V(k)'!H29","v":0}]
["Sch Vk","Deposit Details",null,"GPW for the Period - 23",{"$f":"'Schedule V(k)'!H30","v":0}]
["Sch Vk","Deposit Details",null,"GPW for the Period - 24",{"$f":"'Schedule V(k)'!H31","v":0}]
["Sch Vk","Deposit Details",null,"GPW for the Period - 25",{"$f":"'Schedule V(k)'!H32","v":0}]
["Sch Vk","Deposit Details",null,"GPW for the Period - Total",{"$f":"'Schedule V(k)'!H58","v":0}]
["Sch Vk","Deposit Details",null,"NPW for the Period - 1",{"$f":"'Schedule V(k)'!I8","v":0}]
["Sch Vk","Deposit Details",null,"NPW for the Period - 2",{"$f":"'Schedule V(k)'!I9","v":0}]
["Sch Vk","Deposit Details",null,"NPW for the Period - 3",{"$f":"'Schedule V(k)'!I10","v":0}]
["Sch Vk","Deposit Details",null,"NPW for the Period - 4",{"$f":"'Schedule V(k)'!I11","v":0}]
["Sch Vk","Deposit Details",null,"NPW for the Period - 5",{"$f":"'Schedule V(k)'!I12","v":0}]
["Sch Vk","Deposit Details",null,"NPW for the Period - 6",{"$f":"'Schedule V(k)'!I13","v":0}]
["Sch Vk","Deposit Details",null,"NPW for the Period - 7",{"$f":"'Schedule V(k)'!I14","v":0}]
["Sch Vk","Deposit Details",null,"NPW for the Period - 8",{"$f":"'Schedule V(k)'!I15","v":0}]
["Sch Vk","Deposit Details",null,"NPW for the Period - 9",{"$f":"'Schedule V(k)'!I16","v":0}]
["Sch Vk","Deposit Details",null,"NPW for the Period - 10",{"$f":"'Schedule V(k)'!I17","v":0}]
["Sch Vk","Deposit Details",null,"NPW for the Period - 11",{"$f":"'Schedule V(k)'!I18","v":0}]
["Sch Vk","Deposit Details",null,"NPW for the Period - 12",{"$f":"'Schedule V(k)'!I19","v":0}]
["Sch Vk","Deposit Details",null,"NPW for the Period - 13",{"$f":"'Schedule V(k)'!I20","v":0}]
["Sch Vk","Deposit Details",null,"NPW for the Period - 14",{"$f":"'Schedule V(k)'!I21","v":0}]
["Sch Vk","Deposit Details",null,"NPW for the Period - 15",{"$f":"'Schedule V(k)'!I22","v":0}]
["Sch Vk","Deposit Details",null,"NPW for the Period - 16",{"$f":"'Schedule V(k)'!I23","v":0}]
["Sch Vk","Deposit Details",null,"NPW for the Period - 17",{"$f":"'Schedule V(k)'!I24","v":0}]
["Sch Vk","Deposit Details",null,"NPW for the Period - 18",{"$f":"'Schedule V(k)'!I25","v":0}]
["Sch Vk","Deposit Details",null,"NPW for the Period - 19",{"$f":"'Schedule V(k)'!I26","v":0}]
["Sch Vk","Deposit Details",null,"NPW for the Period - 20",{"$f":"'Schedule V(k)'!I27","v":0}]
["Sch Vk","Deposit Details",null,"NPW for the Period - 21",{"$f":"'Schedule V(k)'!I28","v":0}]
["Sch Vk","Deposit Details",null,"NPW for the Period - 22",{"$f":"'Schedule V(k)'!I29","v":0}]
["Sch Vk","Deposit Details",null,"NPW for the Period - 23",{"$f":"'Schedule V(k)'!I30","v":0}]
["Sch Vk","Deposit Details",null,"NPW for the Period - 24",{"$f":"'Schedule V(k)'!I31","v":0}]
["Sch Vk","Deposit Details",null,"NPW for the Period - 25",{"$f":"'Schedule V(k)'!I32","v":0}]
["Sch Vk","Deposit Details",null,"NPW for the Period - Total",{"$f":"'Schedule V(k)'!I58","v":0}]
["Sch Vk","Deposit Details",null,"Exposure - 1",{"$f":"'Schedule V(k)'!J8","v":0}]
["Sch Vk","Deposit Details",null,"Exposure - 2",{"$f":"'Schedule V(k)'!J9","v":0}]
["Sch Vk","Deposit Details",null,"Exposure - 3",{"$f":"'Schedule V(k)'!J10","v":0}]
["Sch Vk","Deposit Details",null,"Exposure - 4",{"$f":"'Schedule V(k)'!J11","v":0}]
["Sch Vk","Deposit Details",null,"Exposure - 5",{"$f":"'Schedule V(k)'!J12","v":0}]
["Sch Vk","Deposit Details",null,"Exposure - 6",{"$f":"'Schedule V(k)'!J13","v":0}]
["Sch Vk","Deposit Details",null,"Exposure - 7",{"$f":"'Schedule V(k)'!J14","v":0}]
["Sch Vk","Deposit Details",null,"Exposure - 8",{"$f":"'Schedule V(k)'!J15","v":0}]
["Sch Vk","Deposit Details",null,"Exposure - 9",{"$f":"'Schedule V(k)'!J16","v":0}]
["Sch Vk","Deposit Details",null,"Exposure - 10",{"$f":"'Schedule V(k)'!J17","v":0}]
["Sch Vk","Deposit Details",null,"Exposure - 11",{"$f":"'Schedule V(k)'!J18","v":0}]
["Sch Vk","Deposit Details",null,"Exposure - 12",{"$f":"'Schedule V(k)'!J19","v":0}]
["Sch Vk","Deposit Details",null,"Exposure - 13",{"$f":"'Schedule V(k)'!J20","v":0}]
["Sch Vk","Deposit Details",null,"Exposure - 14",{"$f":"'Schedule V(k)'!J21","v":0}]
["Sch Vk","Deposit Details",null,"Exposure - 15",{"$f":"'Schedule V(k)'!J22","v":0}]
["Sch Vk","Deposit Details",null,"Exposure - 16",{"$f":"'Schedule V(k)'!J23","v":0}]
["Sch Vk","Deposit Details",null,"Exposure - 17",{"$f":"'Schedule V(k)'!J24","v":0}]
["Sch Vk","Deposit Details",null,"Exposure - 18",{"$f":"'Schedule V(k)'!J25","v":0}]
["Sch Vk","Deposit Details",null,"Exposure - 19",{"$f":"'Schedule V(k)'!J26","v":0}]
["Sch Vk","Deposit Details",null,"Exposure - 20",{"$f":"'Schedule V(k)'!J27","v":0}]
["Sch Vk","Deposit Details",null,"Exposure - 21",{"$f":"'Schedule V(k)'!J28","v":0}]
["Sch Vk","Deposit Details",null,"Exposure - 22",{"$f":"'Schedule V(k)'!J29","v":0}]
["Sch Vk","Deposit Details",null,"Exposure - 23",{"$f":"'Schedule V(k)'!J30","v":0}]
["Sch Vk","Deposit Details",null,"Exposure - 24",{"$f":"'Schedule V(k)'!J31","v":0}]
["Sch Vk","Deposit Details",null,"Exposure - 25",{"$f":"'Schedule V(k)'!J32","v":0}]
["Sch Vk","Deposit Details",null,"Exposure - Total",{"$f":"'Schedule V(k)'!J58","v":0}]
["Sch Vk","Deposit Details",null,"Limit @ 99.0 TVAR - 1",{"$f":"'Schedule V(k)'!K8","v":0}]
["Sch Vk","Deposit Details",null,"Limit @ 99.0 TVAR - 2",{"$f":"'Schedule V(k)'!K9","v":0}]
["Sch Vk","Deposit Details",null,"Limit @ 99.0 TVAR - 3",{"$f":"'Schedule V(k)'!K10","v":0}]
["Sch Vk","Deposit Details",null,"Limit @ 99.0 TVAR - 4",{"$f":"'Schedule V(k)'!K11","v":0}]
["Sch Vk","Deposit Details",null,"Limit @ 99.0 TVAR - 5",{"$f":"'Schedule V(k)'!K12","v":0}]
["Sch Vk","Deposit Details",null,"Limit @ 99.0 TVAR - 6",{"$f":"'Schedule V(k)'!K13","v":0}]
["Sch Vk","Deposit Details",null,"Limit @ 99.0 TVAR - 7",{"$f":"'Schedule V(k)'!K14","v":0}]
["Sch Vk","Deposit Details",null,"Limit @ 99.0 TVAR - 8",{"$f":"'Schedule V(k)'!K15","v":0}]
["Sch Vk","Deposit Details",null,"Limit @ 99.0 TVAR - 9",{"$f":"'Schedule V(k)'!K16","v":0}]
["Sch Vk","Deposit Details",null,"Limit @ 99.0 TVAR - 10",{"$f":"'Schedule V(k)'!K17","v":0}]
["Sch Vk","Deposit Details",null,"Limit @ 99.0 TVAR - 11",{"$f":"'Schedule V(k)'!K18","v":0}]
["Sch Vk","Deposit Details",null,"Limit @ 99.0 TVAR - 12",{"$f":"'Schedule V(k)'!K19","v":0}]
["Sch Vk","Deposit Details",null,"Limit @ 99.0 TVAR - 13",{"$f":"'Schedule V(k)'!K20","v":0}]
["Sch Vk","Deposit Details",null,"Limit @ 99.0 TVAR - 14",{"$f":"'Schedule V(k)'!K21","v":0}]
["Sch Vk","Deposit Details",null,"Limit @ 99.0 TVAR - 15",{"$f":"'Schedule V(k)'!K22","v":0}]
["Sch Vk","Deposit Details",null,"Limit @ 99.0 TVAR - 16",{"$f":"'Schedule V(k)'!K23","v":0}]
["Sch Vk","Deposit Details",null,"Limit @ 99.0 TVAR - 17",{"$f":"'Schedule V(k)'!K24","v":0}]
["Sch Vk","Deposit Details",null,"Limit @ 99.0 TVAR - 18",{"$f":"'Schedule V(k)'!K25","v":0}]
["Sch Vk","Deposit Details",null,"Limit @ 99.0 TVAR - 19",{"$f":"'Schedule V(k)'!K26","v":0}]
["Sch Vk","Deposit Details",null,"Limit @ 99.0 TVAR - 20",{"$f":"'Schedule V(k)'!K27","v":0}]
["Sch Vk","Deposit Details",null,"Limit @ 99.0 TVAR - 21",{"$f":"'Schedule V(k)'!K28","v":0}]
["Sch Vk","Deposit Details",null,"Limit @ 99.0 TVAR - 22",{"$f":"'Schedule V(k)'!K29","v":0}]
["Sch Vk","Deposit Details",null,"Limit @ 99.0 TVAR - 23",{"$f":"'Schedule V(k)'!K30","v":0}]
["Sch Vk","Deposit Details",null,"Limit @ 99.0 TVAR - 24",{"$f":"'Schedule V(k)'!K31","v":0}]
["Sch Vk","Deposit Details",null,"Limit @ 99.0 TVAR - 25",{"$f":"'Schedule V(k)'!K32","v":0}]
["Sch Vk","Deposit Details",null,"Limit @ 99.0 TVAR - Total",{"$f":"'Schedule V(k)'!K58","v":0}]
["Sch Vk","Deposit Details",null,"Unlimited Exposure Details - 1",{"$f":"'Schedule V(k)'!L8","v":0}]
["Sch Vk","Deposit Details",null,"Unlimited Exposure Details - 2",{"$f":"'Schedule V(k)'!L9","v":0}]
["Sch Vk","Deposit Details",null,"Unlimited Exposure Details - 3",{"$f":"'Schedule V(k)'!L10","v":0}]
["Sch Vk","Deposit Details",null,"Unlimited Exposure Details - 4",{"$f":"'Schedule V(k)'!L11","v":0}]
["Sch Vk","Deposit Details",null,"Unlimited Exposure Details - 5",{"$f":"'Schedule V(k)'!L12","v":0}]
["Sch Vk","Deposit Details",null,"Unlimited Exposure Details - 6",{"$f":"'Schedule V(k)'!L13","v":0}]
["Sch Vk","Deposit Details",null,"Unlimited Exposure Details - 7",{"$f":"'Schedule V(k)'!L14","v":0}]
["Sch Vk","Deposit Details",null,"Unlimited Exposure Details - 8",{"$f":"'Schedule V(k)'!L15","v":0}]
["Sch Vk","Deposit Details",null,"Unlimited Exposure Details - 9",{"$f":"'Schedule V(k)'!L16","v":0}]
["Sch Vk","Deposit Details",null,"Unlimited Exposure Details - 10",{"$f":"'Schedule V(k)'!L17","v":0}]
["Sch Vk","Deposit Details",null,"Unlimited Exposure Details - 11",{"$f":"'Schedule V(k)'!L18","v":0}]
["Sch Vk","Deposit Details",null,"Unlimited Exposure Details - 12",{"$f":"'Schedule V(k)'!L19","v":0}]
["Sch Vk","Deposit Details",null,"Unlimited Exposure Details - 13",{"$f":"'Schedule V(k)'!L20","v":0}]
["Sch Vk","Deposit Details",null,"Unlimited Exposure Details - 14",{"$f":"'Schedule V(k)'!L21","v":0}]
["Sch Vk","Deposit Details",null,"Unlimited Exposure Details - 15",{"$f":"'Schedule V(k)'!L22","v":0}]
["Sch Vk","Deposit Details",null,"Unlimited Exposure Details - 16",{"$f":"'Schedule V(k)'!L23","v":0}]
["Sch Vk","Deposit Details",null,"Unlimited Exposure Details - 17",{"$f":"'Schedule V(k)'!L24","v":0}]
["Sch Vk","Deposit Details",null,"Unlimited Exposure Details - 18",{"$f":"'Schedule V(k)'!L25","v":0}]
["Sch Vk","Deposit Details",null,"Unlimited Exposure Details - 19",{"$f":"'Schedule V(k)'!L26","v":0}]
["Sch Vk","Deposit Details",null,"Unlimited Exposure Details - 20",{"$f":"'Schedule V(k)'!L27","v":0}]
["Sch Vk","Deposit Details",null,"Unlimited Exposure Details - 21",{"$f":"'Schedule V(k)'!L28","v":0}]
["Sch Vk","Deposit Details",null,"Unlimited Exposure Details - 22",{"$f":"'Schedule V(k)'!L29","v":0}]
["Sch Vk","Deposit Details",null,"Unlimited Exposure Details - 23",{"$f":"'Schedule V(k)'!L30","v":0}]
["Sch Vk","Deposit Details",null,"Unlimited Exposure Details - 24",{"$f":"'Schedule V(k)'!L31","v":0}]
["Sch Vk","Deposit Details",null,"Unlimited Exposure Details - 25",{"$f":"'Schedule V(k)'!L32","v":0}]
[]
["Sch V(L)","Segregated Acc",null,"# of Segregated Accounts",{"$f":"'Schedule V(l)'!E3","v":0}]
["Sch V(L)","Segregated Acc",null,"Cell Ref # - Cell 1",{"$f":"'Schedule V(l)'!D6","v":0}]
["Sch V(L)","Segregated Acc",null,"Cell name - Cell 1",{"$f":"'Schedule V(l)'!D7","v":0}]
["Sch V(L)","Segregated Acc",null,"Direct Insurer, Reinsurer or Both - Cell 1",{"$f":"'Schedule V(l)'!D8","v":"Select Premiums Written"}]
["Sch V(L)","Segregated Acc",null,"Total Assets - Cell 1",{"$f":"'Schedule V(l)'!D9","v":0}]
["Sch V(L)","Segregated Acc",null,"Total Liabilities - Cell 1",{"$f":"'Schedule V(l)'!D10","v":0}]
["Sch V(L)","Segregated Acc",null,"Statutory Surplus - Cell 1",{"$f":"'Schedule V(l)'!D11","v":0}]
["Sch V(L)","Segregated Acc",null,"Statutory Capital - Cell 1",{"$f":"'Schedule V(l)'!D12","v":0}]
["Sch V(L)","Segregated Acc",null,"Net Income - Cell 1",{"$f":"'Schedule V(l)'!D14","v":0}]
["Sch V(L)","Segregated Acc",null,"Cash  - Cell 1",{"$f":"'Schedule V(l)'!D15","v":0}]
["Sch V(L)","Segregated Acc",null,"Quoted: Bonds and Debentures - Cell 1",{"$f":"'Schedule V(l)'!D16","v":0}]
["Sch V(L)","Segregated Acc",null,"Quoted: Equites - Cell 1",{"$f":"'Schedule V(l)'!D17","v":0}]
["Sch V(L)","Segregated Acc",null,"Quoted: Other  - Cell 1",{"$f":"'Schedule V(l)'!D18","v":0}]
["Sch V(L)","Segregated Acc",null,"Unquoted: Bonds and Debentures - Cell 1",{"$f":"'Schedule V(l)'!D19","v":0}]
["Sch V(L)","Segregated Acc",null,"Unquoted: Equities - Cell 1",{"$f":"'Schedule V(l)'!D20","v":0}]
["Sch V(L)","Segregated Acc",null,"Unquoted: Other - Cell 1",{"$f":"'Schedule V(l)'!D21","v":0}]
["Sch V(L)","Segregated Acc",null,"Due from Affiliates - Cell 1",{"$f":"'Schedule V(l)'!D22","v":0}]
["Sch V(L)","Segregated Acc",null,"Due to Affiliates - Cell 1",{"$f":"'Schedule V(l)'!D23","v":0}]
["Sch V(L)","Segregated Acc",null,"Net Loss & Loss Expense Provisions - Cell 1",{"$f":"'Schedule V(l)'!D24","v":0}]
["Sch V(L)","Segregated Acc",null,"Prior Year loss reserve development - Cell 1",{"$f":"'Schedule V(l)'!D25","v":0}]
["Sch V(L)","Segregated Acc",null,"Reinsurance Recoverable Balance - Cell 1",{"$f":"'Schedule V(l)'!D26","v":0}]
["Sch V(L)","Segregated Acc",null,"Cell is in Run-Off - Cell 1",{"$f":"'Schedule V(l)'!D27","v":"Select Yes/No"}]
["Sch V(L)","Segregated Acc",null,"currency used - Cell 1",{"$f":"'Schedule V(l)'!D28","v":"Select Currency"}]
["Sch V(L)","Segregated Acc",null,"Cell to Cell Activity  - Cell 1",{"$f":"'Schedule V(l)'!D29","v":"Confirm Activity"}]
["Sch V(L)","Segregated Acc",null,"Cell to Cell Activity Details - Cell 1",{"$f":"'Schedule V(l)'!D30","v":0}]
["Sch V(L)","Segregated Acc",null,"General Cell to Cell Activity - Cell 1",{"$f":"'Schedule V(l)'!D31","v":"Confirm Activity"}]
["Sch V(L)","Segregated Acc",null,"General Cell to Cell Activity Details - Cell 1",{"$f":"'Schedule V(l)'!D32","v":0}]
["Sch V(L)","Segregated Acc",null,"Cell Deficit - Cell 1",{"$f":"'Schedule V(l)'!D33","v":0}]
["Sch V(L)","Segregated Acc",null,"Additional Capital Support - Cell 1",{"$f":"'Schedule V(l)'!D34","v":"Confirm"}]
["Sch V(L)","Segregated Acc",null,"Additional Capital Support Details - Cell 1",{"$f":"'Schedule V(l)'!D35","v":0}]
["Sch V(L)","Segregated Acc",null,"Details of Benefical Owners of Risk - Cell 1",{"$f":"'Schedule V(l)'!D36","v":"Confirm"}]
["Sch V(L)","Segregated Acc",null,"Details of Benefical Owners of Cell - Cell 1",{"$f":"'Schedule V(l)'!D37","v":"Confirm"}]
["Sch V(L)","Segregated Acc",null,"Benefical Owners - Cell 1",{"$f":"'Schedule V(l)'!D38","v":"Confirm"}]
["Sch V(L)","Segregated Acc",null,"Benefical Ownership - Cell 1",{"$f":"'Schedule V(l)'!D39","v":"Confirm Ownership"}]
["Sch V(L)","Segregated Acc",null,"Benefical Ownership Add. Details - Cell 1",{"$f":"'Schedule V(l)'!D40","v":0}]
["Sch V(L)","Segregated Acc",null,"Jurisdiction - Cell 1",{"$f":"'Schedule V(l)'!D41","v":"Confirm Jurisdiction"}]
["Sch V(L)","Segregated Acc",null,"Benefical Ownership Gov Intrument - Cell 1",{"$f":"'Schedule V(l)'!D42","v":"Confirm Instrument"}]
["Sch V(L)","Segregated Acc",null,"Benefical Ownership Gov Intrument Det. - Cell 1",{"$f":"'Schedule V(l)'!D43","v":0}]
["Sch V(L)","Segregated Acc",null,"Indemnity Provisions - Cell 1",{"$f":"'Schedule V(l)'!D44","v":"Select Yes/No"}]
["Sch V(L)","Segregated Acc",null,"Limited recourse  - Cell 1",{"$f":"'Schedule V(l)'!D45","v":"Select Yes/No"}]
["Sch V(L)","Segregated Acc",null,"Primary Cell Funding - Cell 1",{"$f":"'Schedule V(l)'!D46","v":"Select Funding"}]
["Sch V(L)","Segregated Acc",null,"Limit of Cell  Funding/ Collateral - Cell 1",{"$f":"'Schedule V(l)'!D47","v":"Confirm Funding / Collateral"}]
["Sch V(L)","Segregated Acc",null,"Limit of Cell  Funding/ Collateral Details - Cell 1",{"$f":"'Schedule V(l)'!D48","v":0}]
["Sch V(L)","Segregated Acc",null,"Operational Risk Mitigants - Cell 1",{"$f":"'Schedule V(l)'!D49","v":"Confirm Mitigants & Attach Support"}]
["Sch V(L)","Segregated Acc",null,"i) Statutory Line of Business - Cell 1",{"$f":"'Schedule V(l)'!D55","v":"Select Line of Business"}]
["Sch V(L)","Segregated Acc",null,"i) GPW - Cell 1",{"$f":"'Schedule V(l)'!D56","v":0}]
["Sch V(L)","Segregated Acc",null,"i) Premiums Ceded - Cell 1",{"$f":"'Schedule V(l)'!D57","v":0}]
["Sch V(L)","Segregated Acc",null,"i) NPW - Cell 1",{"$f":"'Schedule V(l)'!D58","v":0}]
["Sch V(L)","Segregated Acc",null,"ii) Statutory Line of Business - Cell 1",{"$f":"'Schedule V(l)'!D59","v":"Select Line of Business"}]
["Sch V(L)","Segregated Acc",null,"ii) GPW - Cell 1",{"$f":"'Schedule V(l)'!D60","v":0}]
["Sch V(L)","Segregated Acc",null,"ii) Premiums Ceded - Cell 1",{"$f":"'Schedule V(l)'!D61","v":0}]
["Sch V(L)","Segregated Acc",null,"ii) NPW - Cell 1",{"$f":"'Schedule V(l)'!D62","v":0}]
["Sch V(L)","Segregated Acc",null,"iii) Statutory Line of Business - Cell 1",{"$f":"'Schedule V(l)'!D63","v":"Select Line of Business"}]
["Sch V(L)","Segregated Acc",null,"iii) GPW - Cell 1",{"$f":"'Schedule V(l)'!D64","v":0}]
["Sch V(L)","Segregated Acc",null,"iii) Premiums Ceded - Cell 1",{"$f":"'Schedule V(l)'!D65","v":0}]
["Sch V(L)","Segregated Acc",null,"iii) NPW - Cell 1",{"$f":"'Schedule V(l)'!D66","v":0}]
["Sch V(L)","Segregated Acc",null,"iv) Statutory Line of Business - Cell 1",{"$f":"'Schedule V(l)'!D67","v":"Select Line of Business"}]
["Sch V(L)","Segregated Acc",null,"iv) GPW - Cell 1",{"$f":"'Schedule V(l)'!D68","v":0}]
["Sch V(L)","Segregated Acc",null,"iv) Premiums Ceded - Cell 1",{"$f":"'Schedule V(l)'!D69","v":0}]
["Sch V(L)","Segregated Acc",null,"iv) NPW - Cell 1",{"$f":"'Schedule V(l)'!D70","v":0}]
["Sch V(L)","Segregated Acc",null,"v) Statutory Line of Business - Cell 1",{"$f":"'Schedule V(l)'!D71","v":"Select Line of Business"}]
["Sch V(L)","Segregated Acc",null,"v) GPW - Cell 1",{"$f":"'Schedule V(l)'!D72","v":0}]
["Sch V(L)","Segregated Acc",null,"v) Premiums Ceded - Cell 1",{"$f":"'Schedule V(l)'!D73","v":0}]
["Sch V(L)","Segregated Acc",null,"v) NPW - Cell 1",{"$f":"'Schedule V(l)'!D74","v":0}]
["Sch V(L)","Segregated Acc",null,"Cell Ref # - Cell 2",{"$f":"'Schedule V(l)'!E6","v":0}]
["Sch V(L)","Segregated Acc",null,"Cell name - Cell 2",{"$f":"'Schedule V(l)'!E7","v":0}]
["Sch V(L)","Segregated Acc",null,"Direct Insurer, Reinsurer or Both - Cell 2",{"$f":"'Schedule V(l)'!E8","v":"Select Premiums Written"}]
["Sch V(L)","Segregated Acc",null,"Total Assets - Cell 2",{"$f":"'Schedule V(l)'!E9","v":0}]
["Sch V(L)","Segregated Acc",null,"Total Liabilities - Cell 2",{"$f":"'Schedule V(l)'!E10","v":0}]
["Sch V(L)","Segregated Acc",null,"Statutory Surplus - Cell 2",{"$f":"'Schedule V(l)'!E11","v":0}]
["Sch V(L)","Segregated Acc",null,"Statutory Capital - Cell 2",{"$f":"'Schedule V(l)'!E12","v":0}]
["Sch V(L)","Segregated Acc",null,"Net Income - Cell 2",{"$f":"'Schedule V(l)'!E14","v":0}]
["Sch V(L)","Segregated Acc",null,"Cash  - Cell 2",{"$f":"'Schedule V(l)'!E15","v":0}]
["Sch V(L)","Segregated Acc",null,"Quoted: Bonds and Debentures - Cell 2",{"$f":"'Schedule V(l)'!E16","v":0}]
["Sch V(L)","Segregated Acc",null,"Quoted: Equites - Cell 2",{"$f":"'Schedule V(l)'!E17","v":0}]
["Sch V(L)","Segregated Acc",null,"Quoted: Other  - Cell 2",{"$f":"'Schedule V(l)'!E18","v":0}]
["Sch V(L)","Segregated Acc",null,"Unquoted: Bonds and Debentures - Cell 2",{"$f":"'Schedule V(l)'!E19","v":0}]
["Sch V(L)","Segregated Acc",null,"Unquoted: Equities - Cell 2",{"$f":"'Schedule V(l)'!E20","v":0}]
["Sch V(L)","Segregated Acc",null,"Unquoted: Other - Cell 2",{"$f":"'Schedule V(l)'!E21","v":0}]
["Sch V(L)","Segregated Acc",null,"Due from Affiliates - Cell 2",{"$f":"'Schedule V(l)'!E22","v":0}]
["Sch V(L)","Segregated Acc",null,"Due to Affiliates - Cell 2",{"$f":"'Schedule V(l)'!E23","v":0}]
["Sch V(L)","Segregated Acc",null,"Net Loss & Loss Expense Provisions - Cell 2",{"$f":"'Schedule V(l)'!E24","v":0}]
["Sch V(L)","Segregated Acc",null,"Prior Year loss reserve development - Cell 2",{"$f":"'Schedule V(l)'!E25","v":0}]
["Sch V(L)","Segregated Acc",null,"Reinsurance Recoverable Balance - Cell 2",{"$f":"'Schedule V(l)'!E26","v":0}]
["Sch V(L)","Segregated Acc",null,"Cell is in Run-Off - Cell 2",{"$f":"'Schedule V(l)'!E27","v":"Select Yes/No"}]
["Sch V(L)","Segregated Acc",null,"currency used - Cell 2",{"$f":"'Schedule V(l)'!E28","v":"Select Currency"}]
["Sch V(L)","Segregated Acc",null,"Cell to Cell Activity  - Cell 2",{"$f":"'Schedule V(l)'!E29","v":"Confirm Activity"}]
["Sch V(L)","Segregated Acc",null,"Cell to Cell Activity Details - Cell 2",{"$f":"'Schedule V(l)'!E30","v":0}]
["Sch V(L)","Segregated Acc",null,"General Cell to Cell Activity - Cell 2",{"$f":"'Schedule V(l)'!E31","v":"Confirm Activity"}]
["Sch V(L)","Segregated Acc",null,"General Cell to Cell Activity Details - Cell 2",{"$f":"'Schedule V(l)'!E32","v":0}]
["Sch V(L)","Segregated Acc",null,"Cell Deficit - Cell 2",{"$f":"'Schedule V(l)'!E33","v":0}]
["Sch V(L)","Segregated Acc",null,"Additional Capital Support - Cell 2",{"$f":"'Schedule V(l)'!E34","v":"Confirm"}]
["Sch V(L)","Segregated Acc",null,"Additional Capital Support Details - Cell 2",{"$f":"'Schedule V(l)'!E35","v":0}]
["Sch V(L)","Segregated Acc",null,"Details of Benefical Owners of Risk - Cell 2",{"$f":"'Schedule V(l)'!E36","v":"Confirm"}]
["Sch V(L)","Segregated Acc",null,"Details of Benefical Owners of Cell - Cell 2",{"$f":"'Schedule V(l)'!E37","v":"Confirm"}]
["Sch V(L)","Segregated Acc",null,"Benefical Owners - Cell 2",{"$f":"'Schedule V(l)'!E38","v":"Confirm"}]
["Sch V(L)","Segregated Acc",null,"Benefical Ownership - Cell 2",{"$f":"'Schedule V(l)'!E39","v":"Confirm Ownership"}]
["Sch V(L)","Segregated Acc",null,"Benefical Ownership Add. Details - Cell 2",{"$f":"'Schedule V(l)'!E40","v":0}]
["Sch V(L)","Segregated Acc",null,"Jurisdiction - Cell 2",{"$f":"'Schedule V(l)'!E41","v":"Confirm Jurisdiction"}]
["Sch V(L)","Segregated Acc",null,"Benefical Ownership Gov Intrument - Cell 2",{"$f":"'Schedule V(l)'!E42","v":"Confirm Instrument"}]
["Sch V(L)","Segregated Acc",null,"Benefical Ownership Gov Intrument Det. - Cell 2",{"$f":"'Schedule V(l)'!E43","v":0}]
["Sch V(L)","Segregated Acc",null,"Indemnity Provisions - Cell 2",{"$f":"'Schedule V(l)'!E44","v":"Select Yes/No"}]
["Sch V(L)","Segregated Acc",null,"Limited recourse  - Cell 2",{"$f":"'Schedule V(l)'!E45","v":"Select Yes/No"}]
["Sch V(L)","Segregated Acc",null,"Primary Cell Funding - Cell 2",{"$f":"'Schedule V(l)'!E46","v":"Select Funding"}]
["Sch V(L)","Segregated Acc",null,"Limit of Cell  Funding/ Collateral - Cell 2",{"$f":"'Schedule V(l)'!E47","v":"Confirm Funding / Collateral"}]
["Sch V(L)","Segregated Acc",null,"Limit of Cell  Funding/ Collateral Details - Cell 2",{"$f":"'Schedule V(l)'!E48","v":0}]
["Sch V(L)","Segregated Acc",null,"Operational Risk Mitigants - Cell 2",{"$f":"'Schedule V(l)'!E49","v":"Confirm Mitigants & Attach Support"}]
["Sch V(L)","Segregated Acc",null,"i) Statutory Line of Business - Cell 2",{"$f":"'Schedule V(l)'!E55","v":"Select Line of Business"}]
["Sch V(L)","Segregated Acc",null,"i) GPW - Cell 2",{"$f":"'Schedule V(l)'!E56","v":0}]
["Sch V(L)","Segregated Acc",null,"i) Premiums Ceded - Cell 2",{"$f":"'Schedule V(l)'!E57","v":0}]
["Sch V(L)","Segregated Acc",null,"i) NPW - Cell 2",{"$f":"'Schedule V(l)'!E58","v":0}]
["Sch V(L)","Segregated Acc",null,"ii) Statutory Line of Business - Cell 2",{"$f":"'Schedule V(l)'!E59","v":"Select Line of Business"}]
["Sch V(L)","Segregated Acc",null,"ii) GPW - Cell 2",{"$f":"'Schedule V(l)'!E60","v":0}]
["Sch V(L)","Segregated Acc",null,"ii) Premiums Ceded - Cell 2",{"$f":"'Schedule V(l)'!E61","v":0}]
["Sch V(L)","Segregated Acc",null,"ii) NPW - Cell 2",{"$f":"'Schedule V(l)'!E62","v":0}]
["Sch V(L)","Segregated Acc",null,"iii) Statutory Line of Business - Cell 2",{"$f":"'Schedule V(l)'!E63","v":"Select Line of Business"}]
["Sch V(L)","Segregated Acc",null,"iii) GPW - Cell 2",{"$f":"'Schedule V(l)'!E64","v":0}]
["Sch V(L)","Segregated Acc",null,"iii) Premiums Ceded - Cell 2",{"$f":"'Schedule V(l)'!E65","v":0}]
["Sch V(L)","Segregated Acc",null,"iii) NPW - Cell 2",{"$f":"'Schedule V(l)'!E66","v":0}]
["Sch V(L)","Segregated Acc",null,"iv) Statutory Line of Business - Cell 2",{"$f":"'Schedule V(l)'!E67","v":"Select Line of Business"}]
["Sch V(L)","Segregated Acc",null,"iv) GPW - Cell 2",{"$f":"'Schedule V(l)'!E68","v":0}]
["Sch V(L)","Segregated Acc",null,"iv) Premiums Ceded - Cell 2",{"$f":"'Schedule V(l)'!E69","v":0}]
["Sch V(L)","Segregated Acc",null,"iv) NPW - Cell 2",{"$f":"'Schedule V(l)'!E70","v":0}]
["Sch V(L)","Segregated Acc",null,"v) Statutory Line of Business - Cell 2",{"$f":"'Schedule V(l)'!E71","v":"Select Line of Business"}]
["Sch V(L)","Segregated Acc",null,"v) GPW - Cell 2",{"$f":"'Schedule V(l)'!E72","v":0}]
["Sch V(L)","Segregated Acc",null,"v) Premiums Ceded - Cell 2",{"$f":"'Schedule V(l)'!E73","v":0}]
["Sch V(L)","Segregated Acc",null,"v) NPW - Cell 2",{"$f":"'Schedule V(l)'!E74","v":0}]
["Sch V(L)","Segregated Acc",null,"Cell Ref # - Cell 3",{"$f":"'Schedule V(l)'!F6","v":0}]
["Sch V(L)","Segregated Acc",null,"Cell name - Cell 3",{"$f":"'Schedule V(l)'!F7","v":0}]
["Sch V(L)","Segregated Acc",null,"Direct Insurer, Reinsurer or Both - Cell 3",{"$f":"'Schedule V(l)'!F8","v":"Select Premiums Written"}]
["Sch V(L)","Segregated Acc",null,"Total Assets - Cell 3",{"$f":"'Schedule V(l)'!F9","v":0}]
["Sch V(L)","Segregated Acc",null,"Total Liabilities - Cell 3",{"$f":"'Schedule V(l)'!F10","v":0}]
["Sch V(L)","Segregated Acc",null,"Statutory Surplus - Cell 3",{"$f":"'Schedule V(l)'!F11","v":0}]
["Sch V(L)","Segregated Acc",null,"Statutory Capital - Cell 3",{"$f":"'Schedule V(l)'!F12","v":0}]
["Sch V(L)","Segregated Acc",null,"Net Income - Cell 3",{"$f":"'Schedule V(l)'!F14","v":0}]
["Sch V(L)","Segregated Acc",null,"Cash  - Cell 3",{"$f":"'Schedule V(l)'!F15","v":0}]
["Sch V(L)","Segregated Acc",null,"Quoted: Bonds and Debentures - Cell 3",{"$f":"'Schedule V(l)'!F16","v":0}]
["Sch V(L)","Segregated Acc",null,"Quoted: Equites - Cell 3",{"$f":"'Schedule V(l)'!F17","v":0}]
["Sch V(L)","Segregated Acc",null,"Quoted: Other  - Cell 3",{"$f":"'Schedule V(l)'!F18","v":0}]
["Sch V(L)","Segregated Acc",null,"Unquoted: Bonds and Debentures - Cell 3",{"$f":"'Schedule V(l)'!F19","v":0}]
["Sch V(L)","Segregated Acc",null,"Unquoted: Equities - Cell 3",{"$f":"'Schedule V(l)'!F20","v":0}]
["Sch V(L)","Segregated Acc",null,"Unquoted: Other - Cell 3",{"$f":"'Schedule V(l)'!F21","v":0}]
["Sch V(L)","Segregated Acc",null,"Due from Affiliates - Cell 3",{"$f":"'Schedule V(l)'!F22","v":0}]
["Sch V(L)","Segregated Acc",null,"Due to Affiliates - Cell 3",{"$f":"'Schedule V(l)'!F23","v":0}]
["Sch V(L)","Segregated Acc",null,"Net Loss & Loss Expense Provisions - Cell 3",{"$f":"'Schedule V(l)'!F24","v":0}]
["Sch V(L)","Segregated Acc",null,"Prior Year loss reserve development - Cell 3",{"$f":"'Schedule V(l)'!F25","v":0}]
["Sch V(L)","Segregated Acc",null,"Reinsurance Recoverable Balance - Cell 3",{"$f":"'Schedule V(l)'!F26","v":0}]
["Sch V(L)","Segregated Acc",null,"Cell is in Run-Off - Cell 3",{"$f":"'Schedule V(l)'!F27","v":"Select Yes/No"}]
["Sch V(L)","Segregated Acc",null,"currency used - Cell 3",{"$f":"'Schedule V(l)'!F28","v":"Select Currency"}]
["Sch V(L)","Segregated Acc",null,"Cell to Cell Activity  - Cell 3",{"$f":"'Schedule V(l)'!F29","v":"Confirm Activity"}]
["Sch V(L)","Segregated Acc",null,"Cell to Cell Activity Details - Cell 3",{"$f":"'Schedule V(l)'!F30","v":0}]
["Sch V(L)","Segregated Acc",null,"General Cell to Cell Activity - Cell 3",{"$f":"'Schedule V(l)'!F31","v":"Confirm Activity"}]
["Sch V(L)","Segregated Acc",null,"General Cell to Cell Activity Details - Cell 3",{"$f":"'Schedule V(l)'!F32","v":0}]
["Sch V(L)","Segregated Acc",null,"Cell Deficit - Cell 3",{"$f":"'Schedule V(l)'!F33","v":0}]
["Sch V(L)","Segregated Acc",null,"Additional Capital Support - Cell 3",{"$f":"'Schedule V(l)'!F34","v":"Confirm"}]
["Sch V(L)","Segregated Acc",null,"Additional Capital Support Details - Cell 3",{"$f":"'Schedule V(l)'!F35","v":0}]
["Sch V(L)","Segregated Acc",null,"Details of Benefical Owners of Risk - Cell 3",{"$f":"'Schedule V(l)'!F36","v":"Confirm"}]
["Sch V(L)","Segregated Acc",null,"Details of Benefical Owners of Cell - Cell 3",{"$f":"'Schedule V(l)'!F37","v":"Confirm"}]
["Sch V(L)","Segregated Acc",null,"Benefical Owners - Cell 3",{"$f":"'Schedule V(l)'!F38","v":"Confirm"}]
["Sch V(L)","Segregated Acc",null,"Benefical Ownership - Cell 3",{"$f":"'Schedule V(l)'!F39","v":"Confirm Ownership"}]
["Sch V(L)","Segregated Acc",null,"Benefical Ownership Add. Details - Cell 3",{"$f":"'Schedule V(l)'!F40","v":0}]
["Sch V(L)","Segregated Acc",null,"Jurisdiction - Cell 3",{"$f":"'Schedule V(l)'!F41","v":"Confirm Jurisdiction"}]
["Sch V(L)","Segregated Acc",null,"Benefical Ownership Gov Intrument - Cell 3",{"$f":"'Schedule V(l)'!F42","v":"Confirm Instrument"}]
["Sch V(L)","Segregated Acc",null,"Benefical Ownership Gov Intrument Det. - Cell 3",{"$f":"'Schedule V(l)'!F43","v":0}]
["Sch V(L)","Segregated Acc",null,"Indemnity Provisions - Cell 3",{"$f":"'Schedule V(l)'!F44","v":"Select Yes/No"}]
["Sch V(L)","Segregated Acc",null,"Limited recourse  - Cell 3",{"$f":"'Schedule V(l)'!F45","v":"Select Yes/No"}]
["Sch V(L)","Segregated Acc",null,"Primary Cell Funding - Cell 3",{"$f":"'Schedule V(l)'!F46","v":"Select Funding"}]
["Sch V(L)","Segregated Acc",null,"Limit of Cell  Funding/ Collateral - Cell 3",{"$f":"'Schedule V(l)'!F47","v":"Confirm Funding / Collateral"}]
["Sch V(L)","Segregated Acc",null,"Limit of Cell  Funding/ Collateral Details - Cell 3",{"$f":"'Schedule V(l)'!F48","v":0}]
["Sch V(L)","Segregated Acc",null,"Operational Risk Mitigants - Cell 3",{"$f":"'Schedule V(l)'!F49","v":"Confirm Mitigants & Attach Support"}]
["Sch V(L)","Segregated Acc",null,"i) Statutory Line of Business - Cell 3",{"$f":"'Schedule V(l)'!F55","v":"Select Line of Business"}]
["Sch V(L)","Segregated Acc",null,"i) GPW - Cell 3",{"$f":"'Schedule V(l)'!F56","v":0}]
["Sch V(L)","Segregated Acc",null,"i) Premiums Ceded - Cell 3",{"$f":"'Schedule V(l)'!F57","v":0}]
["Sch V(L)","Segregated Acc",null,"i) NPW - Cell 3",{"$f":"'Schedule V(l)'!F58","v":0}]
["Sch V(L)","Segregated Acc",null,"ii) Statutory Line of Business - Cell 3",{"$f":"'Schedule V(l)'!F59","v":"Select Line of Business"}]
["Sch V(L)","Segregated Acc",null,"ii) GPW - Cell 3",{"$f":"'Schedule V(l)'!F60","v":0}]
["Sch V(L)","Segregated Acc",null,"ii) Premiums Ceded - Cell 3",{"$f":"'Schedule V(l)'!F61","v":0}]
["Sch V(L)","Segregated Acc",null,"ii) NPW - Cell 3",{"$f":"'Schedule V(l)'!F62","v":0}]
["Sch V(L)","Segregated Acc",null,"iii) Statutory Line of Business - Cell 3",{"$f":"'Schedule V(l)'!F63","v":"Select Line of Business"}]
["Sch V(L)","Segregated Acc",null,"iii) GPW - Cell 3",{"$f":"'Schedule V(l)'!F64","v":0}]
["Sch V(L)","Segregated Acc",null,"iii) Premiums Ceded - Cell 3",{"$f":"'Schedule V(l)'!F65","v":0}]
["Sch V(L)","Segregated Acc",null,"iii) NPW - Cell 3",{"$f":"'Schedule V(l)'!F66","v":0}]
["Sch V(L)","Segregated Acc",null,"iv) Statutory Line of Business - Cell 3",{"$f":"'Schedule V(l)'!F67","v":"Select Line of Business"}]
["Sch V(L)","Segregated Acc",null,"iv) GPW - Cell 3",{"$f":"'Schedule V(l)'!F68","v":0}]
["Sch V(L)","Segregated Acc",null,"iv) Premiums Ceded - Cell 3",{"$f":"'Schedule V(l)'!F69","v":0}]
["Sch V(L)","Segregated Acc",null,"iv) NPW - Cell 3",{"$f":"'Schedule V(l)'!F70","v":0}]
["Sch V(L)","Segregated Acc",null,"v) Statutory Line of Business - Cell 3",{"$f":"'Schedule V(l)'!F71","v":"Select Line of Business"}]
["Sch V(L)","Segregated Acc",null,"v) GPW - Cell 3",{"$f":"'Schedule V(l)'!F72","v":0}]
["Sch V(L)","Segregated Acc",null,"v) Premiums Ceded - Cell 3",{"$f":"'Schedule V(l)'!F73","v":0}]
["Sch V(L)","Segregated Acc",null,"v) NPW - Cell 3",{"$f":"'Schedule V(l)'!F74","v":0}]
["Sch V(L)","Segregated Acc",null,"Cell Ref # - Cell 4",{"$f":"'Schedule V(l)'!G6","v":0}]
["Sch V(L)","Segregated Acc",null,"Cell name - Cell 4",{"$f":"'Schedule V(l)'!G7","v":0}]
["Sch V(L)","Segregated Acc",null,"Direct Insurer, Reinsurer or Both - Cell 4",{"$f":"'Schedule V(l)'!G8","v":"Select Premiums Written"}]
["Sch V(L)","Segregated Acc",null,"Total Assets - Cell 4",{"$f":"'Schedule V(l)'!G9","v":0}]
["Sch V(L)","Segregated Acc",null,"Total Liabilities - Cell 4",{"$f":"'Schedule V(l)'!G10","v":0}]
["Sch V(L)","Segregated Acc",null,"Statutory Surplus - Cell 4",{"$f":"'Schedule V(l)'!G11","v":0}]
["Sch V(L)","Segregated Acc",null,"Statutory Capital - Cell 4",{"$f":"'Schedule V(l)'!G12","v":0}]
["Sch V(L)","Segregated Acc",null,"Net Income - Cell 4",{"$f":"'Schedule V(l)'!G14","v":0}]
["Sch V(L)","Segregated Acc",null,"Cash  - Cell 4",{"$f":"'Schedule V(l)'!G15","v":0}]
["Sch V(L)","Segregated Acc",null,"Quoted: Bonds and Debentures - Cell 4",{"$f":"'Schedule V(l)'!G16","v":0}]
["Sch V(L)","Segregated Acc",null,"Quoted: Equites - Cell 4",{"$f":"'Schedule V(l)'!G17","v":0}]
["Sch V(L)","Segregated Acc",null,"Quoted: Other  - Cell 4",{"$f":"'Schedule V(l)'!G18","v":0}]
["Sch V(L)","Segregated Acc",null,"Unquoted: Bonds and Debentures - Cell 4",{"$f":"'Schedule V(l)'!G19","v":0}]
["Sch V(L)","Segregated Acc",null,"Unquoted: Equities - Cell 4",{"$f":"'Schedule V(l)'!G20","v":0}]
["Sch V(L)","Segregated Acc",null,"Unquoted: Other - Cell 4",{"$f":"'Schedule V(l)'!G21","v":0}]
["Sch V(L)","Segregated Acc",null,"Due from Affiliates - Cell 4",{"$f":"'Schedule V(l)'!G22","v":0}]
["Sch V(L)","Segregated Acc",null,"Due to Affiliates - Cell 4",{"$f":"'Schedule V(l)'!G23","v":0}]
["Sch V(L)","Segregated Acc",null,"Net Loss & Loss Expense Provisions - Cell 4",{"$f":"'Schedule V(l)'!G24","v":0}]
["Sch V(L)","Segregated Acc",null,"Prior Year loss reserve development - Cell 4",{"$f":"'Schedule V(l)'!G25","v":0}]
["Sch V(L)","Segregated Acc",null,"Reinsurance Recoverable Balance - Cell 4",{"$f":"'Schedule V(l)'!G26","v":0}]
["Sch V(L)","Segregated Acc",null,"Cell is in Run-Off - Cell 4",{"$f":"'Schedule V(l)'!G27","v":"Select Yes/No"}]
["Sch V(L)","Segregated Acc",null,"currency used - Cell 4",{"$f":"'Schedule V(l)'!G28","v":"Select Currency"}]
["Sch V(L)","Segregated Acc",null,"Cell to Cell Activity  - Cell 4",{"$f":"'Schedule V(l)'!G29","v":"Confirm Activity"}]
["Sch V(L)","Segregated Acc",null,"Cell to Cell Activity Details - Cell 4",{"$f":"'Schedule V(l)'!G30","v":0}]
["Sch V(L)","Segregated Acc",null,"General Cell to Cell Activity - Cell 4",{"$f":"'Schedule V(l)'!G31","v":"Confirm Activity"}]
["Sch V(L)","Segregated Acc",null,"General Cell to Cell Activity Details - Cell 4",{"$f":"'Schedule V(l)'!G32","v":0}]
["Sch V(L)","Segregated Acc",null,"Cell Deficit - Cell 4",{"$f":"'Schedule V(l)'!G33","v":0}]
["Sch V(L)","Segregated Acc",null,"Additional Capital Support - Cell 4",{"$f":"'Schedule V(l)'!G34","v":"Confirm"}]
["Sch V(L)","Segregated Acc",null,"Additional Capital Support Details - Cell 4",{"$f":"'Schedule V(l)'!G35","v":0}]
["Sch V(L)","Segregated Acc",null,"Details of Benefical Owners of Risk - Cell 4",{"$f":"'Schedule V(l)'!G36","v":"Confirm"}]
["Sch V(L)","Segregated Acc",null,"Details of Benefical Owners of Cell - Cell 4",{"$f":"'Schedule V(l)'!G37","v":"Confirm"}]
["Sch V(L)","Segregated Acc",null,"Benefical Owners - Cell 4",{"$f":"'Schedule V(l)'!G38","v":"Confirm"}]
["Sch V(L)","Segregated Acc",null,"Benefical Ownership - Cell 4",{"$f":"'Schedule V(l)'!G39","v":"Confirm Ownership"}]
["Sch V(L)","Segregated Acc",null,"Benefical Ownership Add. Details - Cell 4",{"$f":"'Schedule V(l)'!G40","v":0}]
["Sch V(L)","Segregated Acc",null,"Jurisdiction - Cell 4",{"$f":"'Schedule V(l)'!G41","v":"Confirm Jurisdiction"}]
["Sch V(L)","Segregated Acc",null,"Benefical Ownership Gov Intrument - Cell 4",{"$f":"'Schedule V(l)'!G42","v":"Confirm Instrument"}]
["Sch V(L)","Segregated Acc",null,"Benefical Ownership Gov Intrument Det. - Cell 4",{"$f":"'Schedule V(l)'!G43","v":0}]
["Sch V(L)","Segregated Acc",null,"Indemnity Provisions - Cell 4",{"$f":"'Schedule V(l)'!G44","v":"Select Yes/No"}]
["Sch V(L)","Segregated Acc",null,"Limited recourse  - Cell 4",{"$f":"'Schedule V(l)'!G45","v":"Select Yes/No"}]
["Sch V(L)","Segregated Acc",null,"Primary Cell Funding - Cell 4",{"$f":"'Schedule V(l)'!G46","v":"Select Funding"}]
["Sch V(L)","Segregated Acc",null,"Limit of Cell  Funding/ Collateral - Cell 4",{"$f":"'Schedule V(l)'!G47","v":"Confirm Funding / Collateral"}]
["Sch V(L)","Segregated Acc",null,"Limit of Cell  Funding/ Collateral Details - Cell 4",{"$f":"'Schedule V(l)'!G48","v":0}]
["Sch V(L)","Segregated Acc",null,"Operational Risk Mitigants - Cell 4",{"$f":"'Schedule V(l)'!G49","v":"Confirm Mitigants & Attach Support"}]
["Sch V(L)","Segregated Acc",null,"i) Statutory Line of Business - Cell 4",{"$f":"'Schedule V(l)'!G55","v":"Select Line of Business"}]
["Sch V(L)","Segregated Acc",null,"i) GPW - Cell 4",{"$f":"'Schedule V(l)'!G56","v":0}]
["Sch V(L)","Segregated Acc",null,"i) Premiums Ceded - Cell 4",{"$f":"'Schedule V(l)'!G57","v":0}]
["Sch V(L)","Segregated Acc",null,"i) NPW - Cell 4",{"$f":"'Schedule V(l)'!G58","v":0}]
["Sch V(L)","Segregated Acc",null,"ii) Statutory Line of Business - Cell 4",{"$f":"'Schedule V(l)'!G59","v":"Select Line of Business"}]
["Sch V(L)","Segregated Acc",null,"ii) GPW - Cell 4",{"$f":"'Schedule V(l)'!G60","v":0}]
["Sch V(L)","Segregated Acc",null,"ii) Premiums Ceded - Cell 4",{"$f":"'Schedule V(l)'!G61","v":0}]
["Sch V(L)","Segregated Acc",null,"ii) NPW - Cell 4",{"$f":"'Schedule V(l)'!G62","v":0}]
["Sch V(L)","Segregated Acc",null,"iii) Statutory Line of Business - Cell 4",{"$f":"'Schedule V(l)'!G63","v":"Select Line of Business"}]
["Sch V(L)","Segregated Acc",null,"iii) GPW - Cell 4",{"$f":"'Schedule V(l)'!G64","v":0}]
["Sch V(L)","Segregated Acc",null,"iii) Premiums Ceded - Cell 4",{"$f":"'Schedule V(l)'!G65","v":0}]
["Sch V(L)","Segregated Acc",null,"iii) NPW - Cell 4",{"$f":"'Schedule V(l)'!G66","v":0}]
["Sch V(L)","Segregated Acc",null,"iv) Statutory Line of Business - Cell 4",{"$f":"'Schedule V(l)'!G67","v":"Select Line of Business"}]
["Sch V(L)","Segregated Acc",null,"iv) GPW - Cell 4",{"$f":"'Schedule V(l)'!G68","v":0}]
["Sch V(L)","Segregated Acc",null,"iv) Premiums Ceded - Cell 4",{"$f":"'Schedule V(l)'!G69","v":0}]
["Sch V(L)","Segregated Acc",null,"iv) NPW - Cell 4",{"$f":"'Schedule V(l)'!G70","v":0}]
["Sch V(L)","Segregated Acc",null,"v) Statutory Line of Business - Cell 4",{"$f":"'Schedule V(l)'!G71","v":"Select Line of Business"}]
["Sch V(L)","Segregated Acc",null,"v) GPW - Cell 4",{"$f":"'Schedule V(l)'!G72","v":0}]
["Sch V(L)","Segregated Acc",null,"v) Premiums Ceded - Cell 4",{"$f":"'Schedule V(l)'!G73","v":0}]
["Sch V(L)","Segregated Acc",null,"v) NPW - Cell 4",{"$f":"'Schedule V(l)'!G74","v":0}]
["Sch V(L)","Segregated Acc",null,"Cell Ref # - Cell 5",{"$f":"'Schedule V(l)'!H6","v":0}]
["Sch V(L)","Segregated Acc",null,"Cell name - Cell 5",{"$f":"'Schedule V(l)'!H7","v":0}]
["Sch V(L)","Segregated Acc",null,"Direct Insurer, Reinsurer or Both - Cell 5",{"$f":"'Schedule V(l)'!H8","v":"Select Premiums Written"}]
["Sch V(L)","Segregated Acc",null,"Total Assets - Cell 5",{"$f":"'Schedule V(l)'!H9","v":0}]
["Sch V(L)","Segregated Acc",null,"Total Liabilities - Cell 5",{"$f":"'Schedule V(l)'!H10","v":0}]
["Sch V(L)","Segregated Acc",null,"Statutory Surplus - Cell 5",{"$f":"'Schedule V(l)'!H11","v":0}]
["Sch V(L)","Segregated Acc",null,"Statutory Capital - Cell 5",{"$f":"'Schedule V(l)'!H12","v":0}]
["Sch V(L)","Segregated Acc",null,"Net Income - Cell 5",{"$f":"'Schedule V(l)'!H14","v":0}]
["Sch V(L)","Segregated Acc",null,"Cash  - Cell 5",{"$f":"'Schedule V(l)'!H15","v":0}]
["Sch V(L)","Segregated Acc",null,"Quoted: Bonds and Debentures - Cell 5",{"$f":"'Schedule V(l)'!H16","v":0}]
["Sch V(L)","Segregated Acc",null,"Quoted: Equites - Cell 5",{"$f":"'Schedule V(l)'!H17","v":0}]
["Sch V(L)","Segregated Acc",null,"Quoted: Other  - Cell 5",{"$f":"'Schedule V(l)'!H18","v":0}]
["Sch V(L)","Segregated Acc",null,"Unquoted: Bonds and Debentures - Cell 5",{"$f":"'Schedule V(l)'!H19","v":0}]
["Sch V(L)","Segregated Acc",null,"Unquoted: Equities - Cell 5",{"$f":"'Schedule V(l)'!H20","v":0}]
["Sch V(L)","Segregated Acc",null,"Unquoted: Other - Cell 5",{"$f":"'Schedule V(l)'!H21","v":0}]
["Sch V(L)","Segregated Acc",null,"Due from Affiliates - Cell 5",{"$f":"'Schedule V(l)'!H22","v":0}]
["Sch V(L)","Segregated Acc",null,"Due to Affiliates - Cell 5",{"$f":"'Schedule V(l)'!H23","v":0}]
["Sch V(L)","Segregated Acc",null,"Net Loss & Loss Expense Provisions - Cell 5",{"$f":"'Schedule V(l)'!H24","v":0}]
["Sch V(L)","Segregated Acc",null,"Prior Year loss reserve development - Cell 5",{"$f":"'Schedule V(l)'!H25","v":0}]
["Sch V(L)","Segregated Acc",null,"Reinsurance Recoverable Balance - Cell 5",{"$f":"'Schedule V(l)'!H26","v":0}]
["Sch V(L)","Segregated Acc",null,"Cell is in Run-Off - Cell 5",{"$f":"'Schedule V(l)'!H27","v":"Select Yes/No"}]
["Sch V(L)","Segregated Acc",null,"currency used - Cell 5",{"$f":"'Schedule V(l)'!H28","v":"Select Currency"}]
["Sch V(L)","Segregated Acc",null,"Cell to Cell Activity  - Cell 5",{"$f":"'Schedule V(l)'!H29","v":"Confirm Activity"}]
["Sch V(L)","Segregated Acc",null,"Cell to Cell Activity Details - Cell 5",{"$f":"'Schedule V(l)'!H30","v":0}]
["Sch V(L)","Segregated Acc",null,"General Cell to Cell Activity - Cell 5",{"$f":"'Schedule V(l)'!H31","v":"Confirm Activity"}]
["Sch V(L)","Segregated Acc",null,"General Cell to Cell Activity Details - Cell 5",{"$f":"'Schedule V(l)'!H32","v":0}]
["Sch V(L)","Segregated Acc",null,"Cell Deficit - Cell 5",{"$f":"'Schedule V(l)'!H33","v":0}]
["Sch V(L)","Segregated Acc",null,"Additional Capital Support - Cell 5",{"$f":"'Schedule V(l)'!H34","v":"Confirm"}]
["Sch V(L)","Segregated Acc",null,"Additional Capital Support Details - Cell 5",{"$f":"'Schedule V(l)'!H35","v":0}]
["Sch V(L)","Segregated Acc",null,"Details of Benefical Owners of Risk - Cell 5",{"$f":"'Schedule V(l)'!H36","v":"Confirm"}]
["Sch V(L)","Segregated Acc",null,"Details of Benefical Owners of Cell - Cell 5",{"$f":"'Schedule V(l)'!H37","v":"Confirm"}]
["Sch V(L)","Segregated Acc",null,"Benefical Owners - Cell 5",{"$f":"'Schedule V(l)'!H38","v":"Confirm"}]
["Sch V(L)","Segregated Acc",null,"Benefical Ownership - Cell 5",{"$f":"'Schedule V(l)'!H39","v":"Confirm Ownership"}]
["Sch V(L)","Segregated Acc",null,"Benefical Ownership Add. Details - Cell 5",{"$f":"'Schedule V(l)'!H40","v":0}]
["Sch V(L)","Segregated Acc",null,"Jurisdiction - Cell 5",{"$f":"'Schedule V(l)'!H41","v":"Confirm Jurisdiction"}]
["Sch V(L)","Segregated Acc",null,"Benefical Ownership Gov Intrument - Cell 5",{"$f":"'Schedule V(l)'!H42","v":"Confirm Instrument"}]
["Sch V(L)","Segregated Acc",null,"Benefical Ownership Gov Intrument Det. - Cell 5",{"$f":"'Schedule V(l)'!H43","v":0}]
["Sch V(L)","Segregated Acc",null,"Indemnity Provisions - Cell 5",{"$f":"'Schedule V(l)'!H44","v":"Select Yes/No"}]
["Sch V(L)","Segregated Acc",null,"Limited recourse  - Cell 5",{"$f":"'Schedule V(l)'!H45","v":"Select Yes/No"}]
["Sch V(L)","Segregated Acc",null,"Primary Cell Funding - Cell 5",{"$f":"'Schedule V(l)'!H46","v":"Select Funding"}]
["Sch V(L)","Segregated Acc",null,"Limit of Cell  Funding/ Collateral - Cell 5",{"$f":"'Schedule V(l)'!H47","v":"Confirm Funding / Collateral"}]
["Sch V(L)","Segregated Acc",null,"Limit of Cell  Funding/ Collateral Details - Cell 5",{"$f":"'Schedule V(l)'!H48","v":0}]
["Sch V(L)","Segregated Acc",null,"Operational Risk Mitigants - Cell 5",{"$f":"'Schedule V(l)'!H49","v":"Confirm Mitigants & Attach Support"}]
["Sch V(L)","Segregated Acc",null,"i) Statutory Line of Business - Cell 5",{"$f":"'Schedule V(l)'!H55","v":"Select Line of Business"}]
["Sch V(L)","Segregated Acc",null,"i) GPW - Cell 5",{"$f":"'Schedule V(l)'!H56","v":0}]
["Sch V(L)","Segregated Acc",null,"i) Premiums Ceded - Cell 5",{"$f":"'Schedule V(l)'!H57","v":0}]
["Sch V(L)","Segregated Acc",null,"i) NPW - Cell 5",{"$f":"'Schedule V(l)'!H58","v":0}]
["Sch V(L)","Segregated Acc",null,"ii) Statutory Line of Business - Cell 5",{"$f":"'Schedule V(l)'!H59","v":"Select Line of Business"}]
["Sch V(L)","Segregated Acc",null,"ii) GPW - Cell 5",{"$f":"'Schedule V(l)'!H60","v":0}]
["Sch V(L)","Segregated Acc",null,"ii) Premiums Ceded - Cell 5",{"$f":"'Schedule V(l)'!H61","v":0}]
["Sch V(L)","Segregated Acc",null,"ii) NPW - Cell 5",{"$f":"'Schedule V(l)'!H62","v":0}]
["Sch V(L)","Segregated Acc",null,"iii) Statutory Line of Business - Cell 5",{"$f":"'Schedule V(l)'!H63","v":"Select Line of Business"}]
["Sch V(L)","Segregated Acc",null,"iii) GPW - Cell 5",{"$f":"'Schedule V(l)'!H64","v":0}]
["Sch V(L)","Segregated Acc",null,"iii) Premiums Ceded - Cell 5",{"$f":"'Schedule V(l)'!H65","v":0}]
["Sch V(L)","Segregated Acc",null,"iii) NPW - Cell 5",{"$f":"'Schedule V(l)'!H66","v":0}]
["Sch V(L)","Segregated Acc",null,"iv) Statutory Line of Business - Cell 5",{"$f":"'Schedule V(l)'!H67","v":"Select Line of Business"}]
["Sch V(L)","Segregated Acc",null,"iv) GPW - Cell 5",{"$f":"'Schedule V(l)'!H68","v":0}]
["Sch V(L)","Segregated Acc",null,"iv) Premiums Ceded - Cell 5",{"$f":"'Schedule V(l)'!H69","v":0}]
["Sch V(L)","Segregated Acc",null,"iv) NPW - Cell 5",{"$f":"'Schedule V(l)'!H70","v":0}]
["Sch V(L)","Segregated Acc",null,"v) Statutory Line of Business - Cell 5",{"$f":"'Schedule V(l)'!H71","v":"Select Line of Business"}]
["Sch V(L)","Segregated Acc",null,"v) GPW - Cell 5",{"$f":"'Schedule V(l)'!H72","v":0}]
["Sch V(L)","Segregated Acc",null,"v) Premiums Ceded - Cell 5",{"$f":"'Schedule V(l)'!H73","v":0}]
["Sch V(L)","Segregated Acc",null,"v) NPW - Cell 5",{"$f":"'Schedule V(l)'!H74","v":0}]
["Sch V(L)","Segregated Acc",null,"Cell Ref # - Cell 6",{"$f":"'Schedule V(l)'!I6","v":0}]
["Sch V(L)","Segregated Acc",null,"Cell name - Cell 6",{"$f":"'Schedule V(l)'!I7","v":0}]
["Sch V(L)","Segregated Acc",null,"Direct Insurer, Reinsurer or Both - Cell 6",{"$f":"'Schedule V(l)'!I8","v":"Select Premiums Written"}]
["Sch V(L)","Segregated Acc",null,"Total Assets - Cell 6",{"$f":"'Schedule V(l)'!I9","v":0}]
["Sch V(L)","Segregated Acc",null,"Total Liabilities - Cell 6",{"$f":"'Schedule V(l)'!I10","v":0}]
["Sch V(L)","Segregated Acc",null,"Statutory Surplus - Cell 6",{"$f":"'Schedule V(l)'!I11","v":0}]
["Sch V(L)","Segregated Acc",null,"Statutory Capital - Cell 6",{"$f":"'Schedule V(l)'!I12","v":0}]
["Sch V(L)","Segregated Acc",null,"Net Income - Cell 6",{"$f":"'Schedule V(l)'!I14","v":0}]
["Sch V(L)","Segregated Acc",null,"Cash  - Cell 6",{"$f":"'Schedule V(l)'!I15","v":0}]
["Sch V(L)","Segregated Acc",null,"Quoted: Bonds and Debentures - Cell 6",{"$f":"'Schedule V(l)'!I16","v":0}]
["Sch V(L)","Segregated Acc",null,"Quoted: Equites - Cell 6",{"$f":"'Schedule V(l)'!I17","v":0}]
["Sch V(L)","Segregated Acc",null,"Quoted: Other  - Cell 6",{"$f":"'Schedule V(l)'!I18","v":0}]
["Sch V(L)","Segregated Acc",null,"Unquoted: Bonds and Debentures - Cell 6",{"$f":"'Schedule V(l)'!I19","v":0}]
["Sch V(L)","Segregated Acc",null,"Unquoted: Equities - Cell 6",{"$f":"'Schedule V(l)'!I20","v":0}]
["Sch V(L)","Segregated Acc",null,"Unquoted: Other - Cell 6",{"$f":"'Schedule V(l)'!I21","v":0}]
["Sch V(L)","Segregated Acc",null,"Due from Affiliates - Cell 6",{"$f":"'Schedule V(l)'!I22","v":0}]
["Sch V(L)","Segregated Acc",null,"Due to Affiliates - Cell 6",{"$f":"'Schedule V(l)'!I23","v":0}]
["Sch V(L)","Segregated Acc",null,"Net Loss & Loss Expense Provisions - Cell 6",{"$f":"'Schedule V(l)'!I24","v":0}]
["Sch V(L)","Segregated Acc",null,"Prior Year loss reserve development - Cell 6",{"$f":"'Schedule V(l)'!I25","v":0}]
["Sch V(L)","Segregated Acc",null,"Reinsurance Recoverable Balance - Cell 6",{"$f":"'Schedule V(l)'!I26","v":0}]
["Sch V(L)","Segregated Acc",null,"Cell is in Run-Off - Cell 6",{"$f":"'Schedule V(l)'!I27","v":"Select Yes/No"}]
["Sch V(L)","Segregated Acc",null,"currency used - Cell 6",{"$f":"'Schedule V(l)'!I28","v":"Select Currency"}]
["Sch V(L)","Segregated Acc",null,"Cell to Cell Activity  - Cell 6",{"$f":"'Schedule V(l)'!I29","v":"Confirm Activity"}]
["Sch V(L)","Segregated Acc",null,"Cell to Cell Activity Details - Cell 6",{"$f":"'Schedule V(l)'!I30","v":0}]
["Sch V(L)","Segregated Acc",null,"General Cell to Cell Activity - Cell 6",{"$f":"'Schedule V(l)'!I31","v":"Confirm Activity"}]
["Sch V(L)","Segregated Acc",null,"General Cell to Cell Activity Details - Cell 6",{"$f":"'Schedule V(l)'!I32","v":0}]
["Sch V(L)","Segregated Acc",null,"Cell Deficit - Cell 6",{"$f":"'Schedule V(l)'!I33","v":0}]
["Sch V(L)","Segregated Acc",null,"Additional Capital Support - Cell 6",{"$f":"'Schedule V(l)'!I34","v":"Confirm"}]
["Sch V(L)","Segregated Acc",null,"Additional Capital Support Details - Cell 6",{"$f":"'Schedule V(l)'!I35","v":0}]
["Sch V(L)","Segregated Acc",null,"Details of Benefical Owners of Risk - Cell 6",{"$f":"'Schedule V(l)'!I36","v":"Confirm"}]
["Sch V(L)","Segregated Acc",null,"Details of Benefical Owners of Cell - Cell 6",{"$f":"'Schedule V(l)'!I37","v":"Confirm"}]
["Sch V(L)","Segregated Acc",null,"Benefical Owners - Cell 6",{"$f":"'Schedule V(l)'!I38","v":"Confirm"}]
["Sch V(L)","Segregated Acc",null,"Benefical Ownership - Cell 6",{"$f":"'Schedule V(l)'!I39","v":"Confirm Ownership"}]
["Sch V(L)","Segregated Acc",null,"Benefical Ownership Add. Details - Cell 6",{"$f":"'Schedule V(l)'!I40","v":0}]
["Sch V(L)","Segregated Acc",null,"Jurisdiction - Cell 6",{"$f":"'Schedule V(l)'!I41","v":"Confirm Jurisdiction"}]
["Sch V(L)","Segregated Acc",null,"Benefical Ownership Gov Intrument - Cell 6",{"$f":"'Schedule V(l)'!I42","v":"Confirm Instrument"}]
["Sch V(L)","Segregated Acc",null,"Benefical Ownership Gov Intrument Det. - Cell 6",{"$f":"'Schedule V(l)'!I43","v":0}]
["Sch V(L)","Segregated Acc",null,"Indemnity Provisions - Cell 6",{"$f":"'Schedule V(l)'!I44","v":"Select Yes/No"}]
["Sch V(L)","Segregated Acc",null,"Limited recourse  - Cell 6",{"$f":"'Schedule V(l)'!I45","v":"Select Yes/No"}]
["Sch V(L)","Segregated Acc",null,"Primary Cell Funding - Cell 6",{"$f":"'Schedule V(l)'!I46","v":"Select Funding"}]
["Sch V(L)","Segregated Acc",null,"Limit of Cell  Funding/ Collateral - Cell 6",{"$f":"'Schedule V(l)'!I47","v":"Confirm Funding / Collateral"}]
["Sch V(L)","Segregated Acc",null,"Limit of Cell  Funding/ Collateral Details - Cell 6",{"$f":"'Schedule V(l)'!I48","v":0}]
["Sch V(L)","Segregated Acc",null,"Operational Risk Mitigants - Cell 6",{"$f":"'Schedule V(l)'!I49","v":"Confirm Mitigants & Attach Support"}]
["Sch V(L)","Segregated Acc",null,"i) Statutory Line of Business - Cell 6",{"$f":"'Schedule V(l)'!I55","v":"Select Line of Business"}]
["Sch V(L)","Segregated Acc",null,"i) GPW - Cell 6",{"$f":"'Schedule V(l)'!I56","v":0}]
["Sch V(L)","Segregated Acc",null,"i) Premiums Ceded - Cell 6",{"$f":"'Schedule V(l)'!I57","v":0}]
["Sch V(L)","Segregated Acc",null,"i) NPW - Cell 6",{"$f":"'Schedule V(l)'!I58","v":0}]
["Sch V(L)","Segregated Acc",null,"ii) Statutory Line of Business - Cell 6",{"$f":"'Schedule V(l)'!I59","v":"Select Line of Business"}]
["Sch V(L)","Segregated Acc",null,"ii) GPW - Cell 6",{"$f":"'Schedule V(l)'!I60","v":0}]
["Sch V(L)","Segregated Acc",null,"ii) Premiums Ceded - Cell 6",{"$f":"'Schedule V(l)'!I61","v":0}]
["Sch V(L)","Segregated Acc",null,"ii) NPW - Cell 6",{"$f":"'Schedule V(l)'!I62","v":0}]
["Sch V(L)","Segregated Acc",null,"iii) Statutory Line of Business - Cell 6",{"$f":"'Schedule V(l)'!I63","v":"Select Line of Business"}]
["Sch V(L)","Segregated Acc",null,"iii) GPW - Cell 6",{"$f":"'Schedule V(l)'!I64","v":0}]
["Sch V(L)","Segregated Acc",null,"iii) Premiums Ceded - Cell 6",{"$f":"'Schedule V(l)'!I65","v":0}]
["Sch V(L)","Segregated Acc",null,"iii) NPW - Cell 6",{"$f":"'Schedule V(l)'!I66","v":0}]
["Sch V(L)","Segregated Acc",null,"iv) Statutory Line of Business - Cell 6",{"$f":"'Schedule V(l)'!I67","v":"Select Line of Business"}]
["Sch V(L)","Segregated Acc",null,"iv) GPW - Cell 6",{"$f":"'Schedule V(l)'!I68","v":0}]
["Sch V(L)","Segregated Acc",null,"iv) Premiums Ceded - Cell 6",{"$f":"'Schedule V(l)'!I69","v":0}]
["Sch V(L)","Segregated Acc",null,"iv) NPW - Cell 6",{"$f":"'Schedule V(l)'!I70","v":0}]
["Sch V(L)","Segregated Acc",null,"v) Statutory Line of Business - Cell 6",{"$f":"'Schedule V(l)'!I71","v":"Select Line of Business"}]
["Sch V(L)","Segregated Acc",null,"v) GPW - Cell 6",{"$f":"'Schedule V(l)'!I72","v":0}]
["Sch V(L)","Segregated Acc",null,"v) Premiums Ceded - Cell 6",{"$f":"'Schedule V(l)'!I73","v":0}]
["Sch V(L)","Segregated Acc",null,"v) NPW - Cell 6",{"$f":"'Schedule V(l)'!I74","v":0}]
["Sch V(L)","Segregated Acc",null,"Cell Ref # - Cell 7",{"$f":"'Schedule V(l)'!J6","v":0}]
["Sch V(L)","Segregated Acc",null,"Cell name - Cell 7",{"$f":"'Schedule V(l)'!J7","v":0}]
["Sch V(L)","Segregated Acc",null,"Direct Insurer, Reinsurer or Both - Cell 7",{"$f":"'Schedule V(l)'!J8","v":"Select Premiums Written"}]
["Sch V(L)","Segregated Acc",null,"Total Assets - Cell 7",{"$f":"'Schedule V(l)'!J9","v":0}]
["Sch V(L)","Segregated Acc",null,"Total Liabilities - Cell 7",{"$f":"'Schedule V(l)'!J10","v":0}]
["Sch V(L)","Segregated Acc",null,"Statutory Surplus - Cell 7",{"$f":"'Schedule V(l)'!J11","v":0}]
["Sch V(L)","Segregated Acc",null,"Statutory Capital - Cell 7",{"$f":"'Schedule V(l)'!J12","v":0}]
["Sch V(L)","Segregated Acc",null,"Net Income - Cell 7",{"$f":"'Schedule V(l)'!J14","v":0}]
["Sch V(L)","Segregated Acc",null,"Cash  - Cell 7",{"$f":"'Schedule V(l)'!J15","v":0}]
["Sch V(L)","Segregated Acc",null,"Quoted: Bonds and Debentures - Cell 7",{"$f":"'Schedule V(l)'!J16","v":0}]
["Sch V(L)","Segregated Acc",null,"Quoted: Equites - Cell 7",{"$f":"'Schedule V(l)'!J17","v":0}]
["Sch V(L)","Segregated Acc",null,"Quoted: Other  - Cell 7",{"$f":"'Schedule V(l)'!J18","v":0}]
["Sch V(L)","Segregated Acc",null,"Unquoted: Bonds and Debentures - Cell 7",{"$f":"'Schedule V(l)'!J19","v":0}]
["Sch V(L)","Segregated Acc",null,"Unquoted: Equities - Cell 7",{"$f":"'Schedule V(l)'!J20","v":0}]
["Sch V(L)","Segregated Acc",null,"Unquoted: Other - Cell 7",{"$f":"'Schedule V(l)'!J21","v":0}]
["Sch V(L)","Segregated Acc",null,"Due from Affiliates - Cell 7",{"$f":"'Schedule V(l)'!J22","v":0}]
["Sch V(L)","Segregated Acc",null,"Due to Affiliates - Cell 7",{"$f":"'Schedule V(l)'!J23","v":0}]
["Sch V(L)","Segregated Acc",null,"Net Loss & Loss Expense Provisions - Cell 7",{"$f":"'Schedule V(l)'!J24","v":0}]
["Sch V(L)","Segregated Acc",null,"Prior Year loss reserve development - Cell 7",{"$f":"'Schedule V(l)'!J25","v":0}]
["Sch V(L)","Segregated Acc",null,"Reinsurance Recoverable Balance - Cell 7",{"$f":"'Schedule V(l)'!J26","v":0}]
["Sch V(L)","Segregated Acc",null,"Cell is in Run-Off - Cell 7",{"$f":"'Schedule V(l)'!J27","v":"Select Yes/No"}]
["Sch V(L)","Segregated Acc",null,"currency used - Cell 7",{"$f":"'Schedule V(l)'!J28","v":"Select Currency"}]
["Sch V(L)","Segregated Acc",null,"Cell to Cell Activity  - Cell 7",{"$f":"'Schedule V(l)'!J29","v":"Confirm Activity"}]
["Sch V(L)","Segregated Acc",null,"Cell to Cell Activity Details - Cell 7",{"$f":"'Schedule V(l)'!J30","v":0}]
["Sch V(L)","Segregated Acc",null,"General Cell to Cell Activity - Cell 7",{"$f":"'Schedule V(l)'!J31","v":"Confirm Activity"}]
["Sch V(L)","Segregated Acc",null,"General Cell to Cell Activity Details - Cell 7",{"$f":"'Schedule V(l)'!J32","v":0}]
["Sch V(L)","Segregated Acc",null,"Cell Deficit - Cell 7",{"$f":"'Schedule V(l)'!J33","v":0}]
["Sch V(L)","Segregated Acc",null,"Additional Capital Support - Cell 7",{"$f":"'Schedule V(l)'!J34","v":"Confirm"}]
["Sch V(L)","Segregated Acc",null,"Additional Capital Support Details - Cell 7",{"$f":"'Schedule V(l)'!J35","v":0}]
["Sch V(L)","Segregated Acc",null,"Details of Benefical Owners of Risk - Cell 7",{"$f":"'Schedule V(l)'!J36","v":"Confirm"}]
["Sch V(L)","Segregated Acc",null,"Details of Benefical Owners of Cell - Cell 7",{"$f":"'Schedule V(l)'!J37","v":"Confirm"}]
["Sch V(L)","Segregated Acc",null,"Benefical Owners - Cell 7",{"$f":"'Schedule V(l)'!J38","v":"Confirm"}]
["Sch V(L)","Segregated Acc",null,"Benefical Ownership - Cell 7",{"$f":"'Schedule V(l)'!J39","v":"Confirm Ownership"}]
["Sch V(L)","Segregated Acc",null,"Benefical Ownership Add. Details - Cell 7",{"$f":"'Schedule V(l)'!J40","v":0}]
["Sch V(L)","Segregated Acc",null,"Jurisdiction - Cell 7",{"$f":"'Schedule V(l)'!J41","v":"Confirm Jurisdiction"}]
["Sch V(L)","Segregated Acc",null,"Benefical Ownership Gov Intrument - Cell 7",{"$f":"'Schedule V(l)'!J42","v":"Confirm Instrument"}]
["Sch V(L)","Segregated Acc",null,"Benefical Ownership Gov Intrument Det. - Cell 7",{"$f":"'Schedule V(l)'!J43","v":0}]
["Sch V(L)","Segregated Acc",null,"Indemnity Provisions - Cell 7",{"$f":"'Schedule V(l)'!J44","v":"Select Yes/No"}]
["Sch V(L)","Segregated Acc",null,"Limited recourse  - Cell 7",{"$f":"'Schedule V(l)'!J45","v":"Select Yes/No"}]
["Sch V(L)","Segregated Acc",null,"Primary Cell Funding - Cell 7",{"$f":"'Schedule V(l)'!J46","v":"Select Funding"}]
["Sch V(L)","Segregated Acc",null,"Limit of Cell  Funding/ Collateral - Cell 7",{"$f":"'Schedule V(l)'!J47","v":"Confirm Funding / Collateral"}]
["Sch V(L)","Segregated Acc",null,"Limit of Cell  Funding/ Collateral Details - Cell 7",{"$f":"'Schedule V(l)'!J48","v":0}]
["Sch V(L)","Segregated Acc",null,"Operational Risk Mitigants - Cell 7",{"$f":"'Schedule V(l)'!J49","v":"Confirm Mitigants & Attach Support"}]
["Sch V(L)","Segregated Acc",null,"i) Statutory Line of Business - Cell 7",{"$f":"'Schedule V(l)'!J55","v":"Select Line of Business"}]
["Sch V(L)","Segregated Acc",null,"i) GPW - Cell 7",{"$f":"'Schedule V(l)'!J56","v":0}]
["Sch V(L)","Segregated Acc",null,"i) Premiums Ceded - Cell 7",{"$f":"'Schedule V(l)'!J57","v":0}]
["Sch V(L)","Segregated Acc",null,"i) NPW - Cell 7",{"$f":"'Schedule V(l)'!J58","v":0}]
["Sch V(L)","Segregated Acc",null,"ii) Statutory Line of Business - Cell 7",{"$f":"'Schedule V(l)'!J59","v":"Select Line of Business"}]
["Sch V(L)","Segregated Acc",null,"ii) GPW - Cell 7",{"$f":"'Schedule V(l)'!J60","v":0}]
["Sch V(L)","Segregated Acc",null,"ii) Premiums Ceded - Cell 7",{"$f":"'Schedule V(l)'!J61","v":0}]
["Sch V(L)","Segregated Acc",null,"ii) NPW - Cell 7",{"$f":"'Schedule V(l)'!J62","v":0}]
["Sch V(L)","Segregated Acc",null,"iii) Statutory Line of Business - Cell 7",{"$f":"'Schedule V(l)'!J63","v":"Select Line of Business"}]
["Sch V(L)","Segregated Acc",null,"iii) GPW - Cell 7",{"$f":"'Schedule V(l)'!J64","v":0}]
["Sch V(L)","Segregated Acc",null,"iii) Premiums Ceded - Cell 7",{"$f":"'Schedule V(l)'!J65","v":0}]
["Sch V(L)","Segregated Acc",null,"iii) NPW - Cell 7",{"$f":"'Schedule V(l)'!J66","v":0}]
["Sch V(L)","Segregated Acc",null,"iv) Statutory Line of Business - Cell 7",{"$f":"'Schedule V(l)'!J67","v":"Select Line of Business"}]
["Sch V(L)","Segregated Acc",null,"iv) GPW - Cell 7",{"$f":"'Schedule V(l)'!J68","v":0}]
["Sch V(L)","Segregated Acc",null,"iv) Premiums Ceded - Cell 7",{"$f":"'Schedule V(l)'!J69","v":0}]
["Sch V(L)","Segregated Acc",null,"iv) NPW - Cell 7",{"$f":"'Schedule V(l)'!J70","v":0}]
["Sch V(L)","Segregated Acc",null,"v) Statutory Line of Business - Cell 7",{"$f":"'Schedule V(l)'!J71","v":"Select Line of Business"}]
["Sch V(L)","Segregated Acc",null,"v) GPW - Cell 7",{"$f":"'Schedule V(l)'!J72","v":0}]
["Sch V(L)","Segregated Acc",null,"v) Premiums Ceded - Cell 7",{"$f":"'Schedule V(l)'!J73","v":0}]
["Sch V(L)","Segregated Acc",null,"v) NPW - Cell 7",{"$f":"'Schedule V(l)'!J74","v":0}]
["Sch V(L)","Segregated Acc",null,"Cell Ref # - Cell 8",{"$f":"'Schedule V(l)'!K6","v":0}]
["Sch V(L)","Segregated Acc",null,"Cell name - Cell 8",{"$f":"'Schedule V(l)'!K7","v":0}]
["Sch V(L)","Segregated Acc",null,"Direct Insurer, Reinsurer or Both - Cell 8",{"$f":"'Schedule V(l)'!K8","v":"Select Premiums Written"}]
["Sch V(L)","Segregated Acc",null,"Total Assets - Cell 8",{"$f":"'Schedule V(l)'!K9","v":0}]
["Sch V(L)","Segregated Acc",null,"Total Liabilities - Cell 8",{"$f":"'Schedule V(l)'!K10","v":0}]
["Sch V(L)","Segregated Acc",null,"Statutory Surplus - Cell 8",{"$f":"'Schedule V(l)'!K11","v":0}]
["Sch V(L)","Segregated Acc",null,"Statutory Capital - Cell 8",{"$f":"'Schedule V(l)'!K12","v":0}]
["Sch V(L)","Segregated Acc",null,"Net Income - Cell 8",{"$f":"'Schedule V(l)'!K14","v":0}]
["Sch V(L)","Segregated Acc",null,"Cash  - Cell 8",{"$f":"'Schedule V(l)'!K15","v":0}]
["Sch V(L)","Segregated Acc",null,"Quoted: Bonds and Debentures - Cell 8",{"$f":"'Schedule V(l)'!K16","v":0}]
["Sch V(L)","Segregated Acc",null,"Quoted: Equites - Cell 8",{"$f":"'Schedule V(l)'!K17","v":0}]
["Sch V(L)","Segregated Acc",null,"Quoted: Other  - Cell 8",{"$f":"'Schedule V(l)'!K18","v":0}]
["Sch V(L)","Segregated Acc",null,"Unquoted: Bonds and Debentures - Cell 8",{"$f":"'Schedule V(l)'!K19","v":0}]
["Sch V(L)","Segregated Acc",null,"Unquoted: Equities - Cell 8",{"$f":"'Schedule V(l)'!K20","v":0}]
["Sch V(L)","Segregated Acc",null,"Unquoted: Other - Cell 8",{"$f":"'Schedule V(l)'!K21","v":0}]
["Sch V(L)","Segregated Acc",null,"Due from Affiliates - Cell 8",{"$f":"'Schedule V(l)'!K22","v":0}]
["Sch V(L)","Segregated Acc",null,"Due to Affiliates - Cell 8",{"$f":"'Schedule V(l)'!K23","v":0}]
["Sch V(L)","Segregated Acc",null,"Net Loss & Loss Expense Provisions - Cell 8",{"$f":"'Schedule V(l)'!K24","v":0}]
["Sch V(L)","Segregated Acc",null,"Prior Year loss reserve development - Cell 8",{"$f":"'Schedule V(l)'!K25","v":0}]
["Sch V(L)","Segregated Acc",null,"Reinsurance Recoverable Balance - Cell 8",{"$f":"'Schedule V(l)'!K26","v":0}]
["Sch V(L)","Segregated Acc",null,"Cell is in Run-Off - Cell 8",{"$f":"'Schedule V(l)'!K27","v":"Select Yes/No"}]
["Sch V(L)","Segregated Acc",null,"currency used - Cell 8",{"$f":"'Schedule V(l)'!K28","v":"Select Currency"}]
["Sch V(L)","Segregated Acc",null,"Cell to Cell Activity  - Cell 8",{"$f":"'Schedule V(l)'!K29","v":"Confirm Activity"}]
["Sch V(L)","Segregated Acc",null,"Cell to Cell Activity Details - Cell 8",{"$f":"'Schedule V(l)'!K30","v":0}]
["Sch V(L)","Segregated Acc",null,"General Cell to Cell Activity - Cell 8",{"$f":"'Schedule V(l)'!K31","v":"Confirm Activity"}]
["Sch V(L)","Segregated Acc",null,"General Cell to Cell Activity Details - Cell 8",{"$f":"'Schedule V(l)'!K32","v":0}]
["Sch V(L)","Segregated Acc",null,"Cell Deficit - Cell 8",{"$f":"'Schedule V(l)'!K33","v":0}]
["Sch V(L)","Segregated Acc",null,"Additional Capital Support - Cell 8",{"$f":"'Schedule V(l)'!K34","v":"Confirm"}]
["Sch V(L)","Segregated Acc",null,"Additional Capital Support Details - Cell 8",{"$f":"'Schedule V(l)'!K35","v":0}]
["Sch V(L)","Segregated Acc",null,"Details of Benefical Owners of Risk - Cell 8",{"$f":"'Schedule V(l)'!K36","v":"Confirm"}]
["Sch V(L)","Segregated Acc",null,"Details of Benefical Owners of Cell - Cell 8",{"$f":"'Schedule V(l)'!K37","v":"Confirm"}]
["Sch V(L)","Segregated Acc",null,"Benefical Owners - Cell 8",{"$f":"'Schedule V(l)'!K38","v":"Confirm"}]
["Sch V(L)","Segregated Acc",null,"Benefical Ownership - Cell 8",{"$f":"'Schedule V(l)'!K39","v":"Confirm Ownership"}]
["Sch V(L)","Segregated Acc",null,"Benefical Ownership Add. Details - Cell 8",{"$f":"'Schedule V(l)'!K40","v":0}]
["Sch V(L)","Segregated Acc",null,"Jurisdiction - Cell 8",{"$f":"'Schedule V(l)'!K41","v":"Confirm Jurisdiction"}]
["Sch V(L)","Segregated Acc",null,"Benefical Ownership Gov Intrument - Cell 8",{"$f":"'Schedule V(l)'!K42","v":"Confirm Instrument"}]
["Sch V(L)","Segregated Acc",null,"Benefical Ownership Gov Intrument Det. - Cell 8",{"$f":"'Schedule V(l)'!K43","v":0}]
["Sch V(L)","Segregated Acc",null,"Indemnity Provisions - Cell 8",{"$f":"'Schedule V(l)'!K44","v":"Select Yes/No"}]
["Sch V(L)","Segregated Acc",null,"Limited recourse  - Cell 8",{"$f":"'Schedule V(l)'!K45","v":"Select Yes/No"}]
["Sch V(L)","Segregated Acc",null,"Primary Cell Funding - Cell 8",{"$f":"'Schedule V(l)'!K46","v":"Select Funding"}]
["Sch V(L)","Segregated Acc",null,"Limit of Cell  Funding/ Collateral - Cell 8",{"$f":"'Schedule V(l)'!K47","v":"Confirm Funding / Collateral"}]
["Sch V(L)","Segregated Acc",null,"Limit of Cell  Funding/ Collateral Details - Cell 8",{"$f":"'Schedule V(l)'!K48","v":0}]
["Sch V(L)","Segregated Acc",null,"Operational Risk Mitigants - Cell 8",{"$f":"'Schedule V(l)'!K49","v":"Confirm Mitigants & Attach Support"}]
["Sch V(L)","Segregated Acc",null,"i) Statutory Line of Business - Cell 8",{"$f":"'Schedule V(l)'!K55","v":"Select Line of Business"}]
["Sch V(L)","Segregated Acc",null,"i) GPW - Cell 8",{"$f":"'Schedule V(l)'!K56","v":0}]
["Sch V(L)","Segregated Acc",null,"i) Premiums Ceded - Cell 8",{"$f":"'Schedule V(l)'!K57","v":0}]
["Sch V(L)","Segregated Acc",null,"i) NPW - Cell 8",{"$f":"'Schedule V(l)'!K58","v":0}]
["Sch V(L)","Segregated Acc",null,"ii) Statutory Line of Business - Cell 8",{"$f":"'Schedule V(l)'!K59","v":"Select Line of Business"}]
["Sch V(L)","Segregated Acc",null,"ii) GPW - Cell 8",{"$f":"'Schedule V(l)'!K60","v":0}]
["Sch V(L)","Segregated Acc",null,"ii) Premiums Ceded - Cell 8",{"$f":"'Schedule V(l)'!K61","v":0}]
["Sch V(L)","Segregated Acc",null,"ii) NPW - Cell 8",{"$f":"'Schedule V(l)'!K62","v":0}]
["Sch V(L)","Segregated Acc",null,"iii) Statutory Line of Business - Cell 8",{"$f":"'Schedule V(l)'!K63","v":"Select Line of Business"}]
["Sch V(L)","Segregated Acc",null,"iii) GPW - Cell 8",{"$f":"'Schedule V(l)'!K64","v":0}]
["Sch V(L)","Segregated Acc",null,"iii) Premiums Ceded - Cell 8",{"$f":"'Schedule V(l)'!K65","v":0}]
["Sch V(L)","Segregated Acc",null,"iii) NPW - Cell 8",{"$f":"'Schedule V(l)'!K66","v":0}]
["Sch V(L)","Segregated Acc",null,"iv) Statutory Line of Business - Cell 8",{"$f":"'Schedule V(l)'!K67","v":"Select Line of Business"}]
["Sch V(L)","Segregated Acc",null,"iv) GPW - Cell 8",{"$f":"'Schedule V(l)'!K68","v":0}]
["Sch V(L)","Segregated Acc",null,"iv) Premiums Ceded - Cell 8",{"$f":"'Schedule V(l)'!K69","v":0}]
["Sch V(L)","Segregated Acc",null,"iv) NPW - Cell 8",{"$f":"'Schedule V(l)'!K70","v":0}]
["Sch V(L)","Segregated Acc",null,"v) Statutory Line of Business - Cell 8",{"$f":"'Schedule V(l)'!K71","v":"Select Line of Business"}]
["Sch V(L)","Segregated Acc",null,"v) GPW - Cell 8",{"$f":"'Schedule V(l)'!K72","v":0}]
["Sch V(L)","Segregated Acc",null,"v) Premiums Ceded - Cell 8",{"$f":"'Schedule V(l)'!K73","v":0}]
["Sch V(L)","Segregated Acc",null,"v) NPW - Cell 8",{"$f":"'Schedule V(l)'!K74","v":0}]
["Sch V(L)","Segregated Acc",null,"Cell Ref # - Cell 9",{"$f":"'Schedule V(l)'!L6","v":0}]
["Sch V(L)","Segregated Acc",null,"Cell name - Cell 9",{"$f":"'Schedule V(l)'!L7","v":0}]
["Sch V(L)","Segregated Acc",null,"Direct Insurer, Reinsurer or Both - Cell 9",{"$f":"'Schedule V(l)'!L8","v":"Select Premiums Written"}]
["Sch V(L)","Segregated Acc",null,"Total Assets - Cell 9",{"$f":"'Schedule V(l)'!L9","v":0}]
["Sch V(L)","Segregated Acc",null,"Total Liabilities - Cell 9",{"$f":"'Schedule V(l)'!L10","v":0}]
["Sch V(L)","Segregated Acc",null,"Statutory Surplus - Cell 9",{"$f":"'Schedule V(l)'!L11","v":0}]
["Sch V(L)","Segregated Acc",null,"Statutory Capital - Cell 9",{"$f":"'Schedule V(l)'!L12","v":0}]
["Sch V(L)","Segregated Acc",null,"Net Income - Cell 9",{"$f":"'Schedule V(l)'!L14","v":0}]
["Sch V(L)","Segregated Acc",null,"Cash  - Cell 9",{"$f":"'Schedule V(l)'!L15","v":0}]
["Sch V(L)","Segregated Acc",null,"Quoted: Bonds and Debentures - Cell 9",{"$f":"'Schedule V(l)'!L16","v":0}]
["Sch V(L)","Segregated Acc",null,"Quoted: Equites - Cell 9",{"$f":"'Schedule V(l)'!L17","v":0}]
["Sch V(L)","Segregated Acc",null,"Quoted: Other  - Cell 9",{"$f":"'Schedule V(l)'!L18","v":0}]
["Sch V(L)","Segregated Acc",null,"Unquoted: Bonds and Debentures - Cell 9",{"$f":"'Schedule V(l)'!L19","v":0}]
["Sch V(L)","Segregated Acc",null,"Unquoted: Equities - Cell 9",{"$f":"'Schedule V(l)'!L20","v":0}]
["Sch V(L)","Segregated Acc",null,"Unquoted: Other - Cell 9",{"$f":"'Schedule V(l)'!L21","v":0}]
["Sch V(L)","Segregated Acc",null,"Due from Affiliates - Cell 9",{"$f":"'Schedule V(l)'!L22","v":0}]
["Sch V(L)","Segregated Acc",null,"Due to Affiliates - Cell 9",{"$f":"'Schedule V(l)'!L23","v":0}]
["Sch V(L)","Segregated Acc",null,"Net Loss & Loss Expense Provisions - Cell 9",{"$f":"'Schedule V(l)'!L24","v":0}]
["Sch V(L)","Segregated Acc",null,"Prior Year loss reserve development - Cell 9",{"$f":"'Schedule V(l)'!L25","v":0}]
["Sch V(L)","Segregated Acc",null,"Reinsurance Recoverable Balance - Cell 9",{"$f":"'Schedule V(l)'!L26","v":0}]
["Sch V(L)","Segregated Acc",null,"Cell is in Run-Off - Cell 9",{"$f":"'Schedule V(l)'!L27","v":"Select Yes/No"}]
["Sch V(L)","Segregated Acc",null,"currency used - Cell 9",{"$f":"'Schedule V(l)'!L28","v":"Select Currency"}]
["Sch V(L)","Segregated Acc",null,"Cell to Cell Activity  - Cell 9",{"$f":"'Schedule V(l)'!L29","v":"Confirm Activity"}]
["Sch V(L)","Segregated Acc",null,"Cell to Cell Activity Details - Cell 9",{"$f":"'Schedule V(l)'!L30","v":0}]
["Sch V(L)","Segregated Acc",null,"General Cell to Cell Activity - Cell 9",{"$f":"'Schedule V(l)'!L31","v":"Confirm Activity"}]
["Sch V(L)","Segregated Acc",null,"General Cell to Cell Activity Details - Cell 9",{"$f":"'Schedule V(l)'!L32","v":0}]
["Sch V(L)","Segregated Acc",null,"Cell Deficit - Cell 9",{"$f":"'Schedule V(l)'!L33","v":0}]
["Sch V(L)","Segregated Acc",null,"Additional Capital Support - Cell 9",{"$f":"'Schedule V(l)'!L34","v":"Confirm"}]
["Sch V(L)","Segregated Acc",null,"Additional Capital Support Details - Cell 9",{"$f":"'Schedule V(l)'!L35","v":0}]
["Sch V(L)","Segregated Acc",null,"Details of Benefical Owners of Risk - Cell 9",{"$f":"'Schedule V(l)'!L36","v":"Confirm"}]
["Sch V(L)","Segregated Acc",null,"Details of Benefical Owners of Cell - Cell 9",{"$f":"'Schedule V(l)'!L37","v":"Confirm"}]
["Sch V(L)","Segregated Acc",null,"Benefical Owners - Cell 9",{"$f":"'Schedule V(l)'!L38","v":"Confirm"}]
["Sch V(L)","Segregated Acc",null,"Benefical Ownership - Cell 9",{"$f":"'Schedule V(l)'!L39","v":"Confirm Ownership"}]
["Sch V(L)","Segregated Acc",null,"Benefical Ownership Add. Details - Cell 9",{"$f":"'Schedule V(l)'!L40","v":0}]
["Sch V(L)","Segregated Acc",null,"Jurisdiction - Cell 9",{"$f":"'Schedule V(l)'!L41","v":"Confirm Jurisdiction"}]
["Sch V(L)","Segregated Acc",null,"Benefical Ownership Gov Intrument - Cell 9",{"$f":"'Schedule V(l)'!L42","v":"Confirm Instrument"}]
["Sch V(L)","Segregated Acc",null,"Benefical Ownership Gov Intrument Det. - Cell 9",{"$f":"'Schedule V(l)'!L43","v":0}]
["Sch V(L)","Segregated Acc",null,"Indemnity Provisions - Cell 9",{"$f":"'Schedule V(l)'!L44","v":"Select Yes/No"}]
["Sch V(L)","Segregated Acc",null,"Limited recourse  - Cell 9",{"$f":"'Schedule V(l)'!L45","v":"Select Yes/No"}]
["Sch V(L)","Segregated Acc",null,"Primary Cell Funding - Cell 9",{"$f":"'Schedule V(l)'!L46","v":"Select Funding"}]
["Sch V(L)","Segregated Acc",null,"Limit of Cell  Funding/ Collateral - Cell 9",{"$f":"'Schedule V(l)'!L47","v":"Confirm Funding / Collateral"}]
["Sch V(L)","Segregated Acc",null,"Limit of Cell  Funding/ Collateral Details - Cell 9",{"$f":"'Schedule V(l)'!L48","v":0}]
["Sch V(L)","Segregated Acc",null,"Operational Risk Mitigants - Cell 9",{"$f":"'Schedule V(l)'!L49","v":"Confirm Mitigants & Attach Support"}]
["Sch V(L)","Segregated Acc",null,"i) Statutory Line of Business - Cell 9",{"$f":"'Schedule V(l)'!L55","v":"Select Line of Business"}]
["Sch V(L)","Segregated Acc",null,"i) GPW - Cell 9",{"$f":"'Schedule V(l)'!L56","v":0}]
["Sch V(L)","Segregated Acc",null,"i) Premiums Ceded - Cell 9",{"$f":"'Schedule V(l)'!L57","v":0}]
["Sch V(L)","Segregated Acc",null,"i) NPW - Cell 9",{"$f":"'Schedule V(l)'!L58","v":0}]
["Sch V(L)","Segregated Acc",null,"ii) Statutory Line of Business - Cell 9",{"$f":"'Schedule V(l)'!L59","v":"Select Line of Business"}]
["Sch V(L)","Segregated Acc",null,"ii) GPW - Cell 9",{"$f":"'Schedule V(l)'!L60","v":0}]
["Sch V(L)","Segregated Acc",null,"ii) Premiums Ceded - Cell 9",{"$f":"'Schedule V(l)'!L61","v":0}]
["Sch V(L)","Segregated Acc",null,"ii) NPW - Cell 9",{"$f":"'Schedule V(l)'!L62","v":0}]
["Sch V(L)","Segregated Acc",null,"iii) Statutory Line of Business - Cell 9",{"$f":"'Schedule V(l)'!L63","v":"Select Line of Business"}]
["Sch V(L)","Segregated Acc",null,"iii) GPW - Cell 9",{"$f":"'Schedule V(l)'!L64","v":0}]
["Sch V(L)","Segregated Acc",null,"iii) Premiums Ceded - Cell 9",{"$f":"'Schedule V(l)'!L65","v":0}]
["Sch V(L)","Segregated Acc",null,"iii) NPW - Cell 9",{"$f":"'Schedule V(l)'!L66","v":0}]
["Sch V(L)","Segregated Acc",null,"iv) Statutory Line of Business - Cell 9",{"$f":"'Schedule V(l)'!L67","v":"Select Line of Business"}]
["Sch V(L)","Segregated Acc",null,"iv) GPW - Cell 9",{"$f":"'Schedule V(l)'!L68","v":0}]
["Sch V(L)","Segregated Acc",null,"iv) Premiums Ceded - Cell 9",{"$f":"'Schedule V(l)'!L69","v":0}]
["Sch V(L)","Segregated Acc",null,"iv) NPW - Cell 9",{"$f":"'Schedule V(l)'!L70","v":0}]
["Sch V(L)","Segregated Acc",null,"v) Statutory Line of Business - Cell 9",{"$f":"'Schedule V(l)'!L71","v":"Select Line of Business"}]
["Sch V(L)","Segregated Acc",null,"v) GPW - Cell 9",{"$f":"'Schedule V(l)'!L72","v":0}]
["Sch V(L)","Segregated Acc",null,"v) Premiums Ceded - Cell 9",{"$f":"'Schedule V(l)'!L73","v":0}]
["Sch V(L)","Segregated Acc",null,"v) NPW - Cell 9",{"$f":"'Schedule V(l)'!L74","v":0}]
["Sch V(L)","Segregated Acc",null,"Cell Ref # - Cell 10",{"$f":"'Schedule V(l)'!M6","v":0}]
["Sch V(L)","Segregated Acc",null,"Cell name - Cell 10",{"$f":"'Schedule V(l)'!M7","v":0}]
["Sch V(L)","Segregated Acc",null,"Direct Insurer, Reinsurer or Both - Cell 10",{"$f":"'Schedule V(l)'!M8","v":"Select Premiums Written"}]
["Sch V(L)","Segregated Acc",null,"Total Assets - Cell 10",{"$f":"'Schedule V(l)'!M9","v":0}]
["Sch V(L)","Segregated Acc",null,"Total Liabilities - Cell 10",{"$f":"'Schedule V(l)'!M10","v":0}]
["Sch V(L)","Segregated Acc",null,"Statutory Surplus - Cell 10",{"$f":"'Schedule V(l)'!M11","v":0}]
["Sch V(L)","Segregated Acc",null,"Statutory Capital - Cell 10",{"$f":"'Schedule V(l)'!M12","v":0}]
["Sch V(L)","Segregated Acc",null,"Net Income - Cell 10",{"$f":"'Schedule V(l)'!M14","v":0}]
["Sch V(L)","Segregated Acc",null,"Cash  - Cell 10",{"$f":"'Schedule V(l)'!M15","v":0}]
["Sch V(L)","Segregated Acc",null,"Quoted: Bonds and Debentures - Cell 10",{"$f":"'Schedule V(l)'!M16","v":0}]
["Sch V(L)","Segregated Acc",null,"Quoted: Equites - Cell 10",{"$f":"'Schedule V(l)'!M17","v":0}]
["Sch V(L)","Segregated Acc",null,"Quoted: Other  - Cell 10",{"$f":"'Schedule V(l)'!M18","v":0}]
["Sch V(L)","Segregated Acc",null,"Unquoted: Bonds and Debentures - Cell 10",{"$f":"'Schedule V(l)'!M19","v":0}]
["Sch V(L)","Segregated Acc",null,"Unquoted: Equities - Cell 10",{"$f":"'Schedule V(l)'!M20","v":0}]
["Sch V(L)","Segregated Acc",null,"Unquoted: Other - Cell 10",{"$f":"'Schedule V(l)'!M21","v":0}]
["Sch V(L)","Segregated Acc",null,"Due from Affiliates - Cell 10",{"$f":"'Schedule V(l)'!M22","v":0}]
["Sch V(L)","Segregated Acc",null,"Due to Affiliates - Cell 10",{"$f":"'Schedule V(l)'!M23","v":0}]
["Sch V(L)","Segregated Acc",null,"Net Loss & Loss Expense Provisions - Cell 10",{"$f":"'Schedule V(l)'!M24","v":0}]
["Sch V(L)","Segregated Acc",null,"Prior Year loss reserve development - Cell 10",{"$f":"'Schedule V(l)'!M25","v":0}]
["Sch V(L)","Segregated Acc",null,"Reinsurance Recoverable Balance - Cell 10",{"$f":"'Schedule V(l)'!M26","v":0}]
["Sch V(L)","Segregated Acc",null,"Cell is in Run-Off - Cell 10",{"$f":"'Schedule V(l)'!M27","v":"Select Yes/No"}]
["Sch V(L)","Segregated Acc",null,"currency used - Cell 10",{"$f":"'Schedule V(l)'!M28","v":"Select Currency"}]
["Sch V(L)","Segregated Acc",null,"Cell to Cell Activity  - Cell 10",{"$f":"'Schedule V(l)'!M29","v":"Confirm Activity"}]
["Sch V(L)","Segregated Acc",null,"Cell to Cell Activity Details - Cell 10",{"$f":"'Schedule V(l)'!M30","v":0}]
["Sch V(L)","Segregated Acc",null,"General Cell to Cell Activity - Cell 10",{"$f":"'Schedule V(l)'!M31","v":"Confirm Activity"}]
["Sch V(L)","Segregated Acc",null,"General Cell to Cell Activity Details - Cell 10",{"$f":"'Schedule V(l)'!M32","v":0}]
["Sch V(L)","Segregated Acc",null,"Cell Deficit - Cell 10",{"$f":"'Schedule V(l)'!M33","v":0}]
["Sch V(L)","Segregated Acc",null,"Additional Capital Support - Cell 10",{"$f":"'Schedule V(l)'!M34","v":"Confirm"}]
["Sch V(L)","Segregated Acc",null,"Additional Capital Support Details - Cell 10",{"$f":"'Schedule V(l)'!M35","v":0}]
["Sch V(L)","Segregated Acc",null,"Details of Benefical Owners of Risk - Cell 10",{"$f":"'Schedule V(l)'!M36","v":"Confirm"}]
["Sch V(L)","Segregated Acc",null,"Details of Benefical Owners of Cell - Cell 10",{"$f":"'Schedule V(l)'!M37","v":"Confirm"}]
["Sch V(L)","Segregated Acc",null,"Benefical Owners - Cell 10",{"$f":"'Schedule V(l)'!M38","v":"Confirm"}]
["Sch V(L)","Segregated Acc",null,"Benefical Ownership - Cell 10",{"$f":"'Schedule V(l)'!M39","v":"Confirm Ownership"}]
["Sch V(L)","Segregated Acc",null,"Benefical Ownership Add. Details - Cell 10",{"$f":"'Schedule V(l)'!M40","v":0}]
["Sch V(L)","Segregated Acc",null,"Jurisdiction - Cell 10",{"$f":"'Schedule V(l)'!M41","v":"Confirm Jurisdiction"}]
["Sch V(L)","Segregated Acc",null,"Benefical Ownership Gov Intrument - Cell 10",{"$f":"'Schedule V(l)'!M42","v":"Confirm Instrument"}]
["Sch V(L)","Segregated Acc",null,"Benefical Ownership Gov Intrument Det. - Cell 10",{"$f":"'Schedule V(l)'!M43","v":0}]
["Sch V(L)","Segregated Acc",null,"Indemnity Provisions - Cell 10",{"$f":"'Schedule V(l)'!M44","v":"Select Yes/No"}]
["Sch V(L)","Segregated Acc",null,"Limited recourse  - Cell 10",{"$f":"'Schedule V(l)'!M45","v":"Select Yes/No"}]
["Sch V(L)","Segregated Acc",null,"Primary Cell Funding - Cell 10",{"$f":"'Schedule V(l)'!M46","v":"Select Funding"}]
["Sch V(L)","Segregated Acc",null,"Limit of Cell  Funding/ Collateral - Cell 10",{"$f":"'Schedule V(l)'!M47","v":"Confirm Funding / Collateral"}]
["Sch V(L)","Segregated Acc",null,"Limit of Cell  Funding/ Collateral Details - Cell 10",{"$f":"'Schedule V(l)'!M48","v":0}]
["Sch V(L)","Segregated Acc",null,"Operational Risk Mitigants - Cell 10",{"$f":"'Schedule V(l)'!M49","v":"Confirm Mitigants & Attach Support"}]
["Sch V(L)","Segregated Acc",null,"i) Statutory Line of Business - Cell 10",{"$f":"'Schedule V(l)'!M55","v":"Select Line of Business"}]
["Sch V(L)","Segregated Acc",null,"i) GPW - Cell 10",{"$f":"'Schedule V(l)'!M56","v":0}]
["Sch V(L)","Segregated Acc",null,"i) Premiums Ceded - Cell 10",{"$f":"'Schedule V(l)'!M57","v":0}]
["Sch V(L)","Segregated Acc",null,"i) NPW - Cell 10",{"$f":"'Schedule V(l)'!M58","v":0}]
["Sch V(L)","Segregated Acc",null,"ii) Statutory Line of Business - Cell 10",{"$f":"'Schedule V(l)'!M59","v":"Select Line of Business"}]
["Sch V(L)","Segregated Acc",null,"ii) GPW - Cell 10",{"$f":"'Schedule V(l)'!M60","v":0}]
["Sch V(L)","Segregated Acc",null,"ii) Premiums Ceded - Cell 10",{"$f":"'Schedule V(l)'!M61","v":0}]
["Sch V(L)","Segregated Acc",null,"ii) NPW - Cell 10",{"$f":"'Schedule V(l)'!M62","v":0}]
["Sch V(L)","Segregated Acc",null,"iii) Statutory Line of Business - Cell 10",{"$f":"'Schedule V(l)'!M63","v":"Select Line of Business"}]
["Sch V(L)","Segregated Acc",null,"iii) GPW - Cell 10",{"$f":"'Schedule V(l)'!M64","v":0}]
["Sch V(L)","Segregated Acc",null,"iii) Premiums Ceded - Cell 10",{"$f":"'Schedule V(l)'!M65","v":0}]
["Sch V(L)","Segregated Acc",null,"iii) NPW - Cell 10",{"$f":"'Schedule V(l)'!M66","v":0}]
["Sch V(L)","Segregated Acc",null,"iv) Statutory Line of Business - Cell 10",{"$f":"'Schedule V(l)'!M67","v":"Select Line of Business"}]
["Sch V(L)","Segregated Acc",null,"iv) GPW - Cell 10",{"$f":"'Schedule V(l)'!M68","v":0}]
["Sch V(L)","Segregated Acc",null,"iv) Premiums Ceded - Cell 10",{"$f":"'Schedule V(l)'!M69","v":0}]
["Sch V(L)","Segregated Acc",null,"iv) NPW - Cell 10",{"$f":"'Schedule V(l)'!M70","v":0}]
["Sch V(L)","Segregated Acc",null,"v) Statutory Line of Business - Cell 10",{"$f":"'Schedule V(l)'!M71","v":"Select Line of Business"}]
["Sch V(L)","Segregated Acc",null,"v) GPW - Cell 10",{"$f":"'Schedule V(l)'!M72","v":0}]
["Sch V(L)","Segregated Acc",null,"v) Premiums Ceded - Cell 10",{"$f":"'Schedule V(l)'!M73","v":0}]
["Sch V(L)","Segregated Acc",null,"v) NPW - Cell 10",{"$f":"'Schedule V(l)'!M74","v":0}]
["Sch V(L)","Segregated Acc",null,"Cell Ref # - Cell 11",{"$f":"'Schedule V(l)'!N6","v":2019}]
["Sch V(L)","Segregated Acc",null,"Cell name - Cell 11",{"$f":"'Schedule V(l)'!N7","v":0}]
["Sch V(L)","Segregated Acc",null,"Direct Insurer, Reinsurer or Both - Cell 11",{"$f":"'Schedule V(l)'!N8","v":"Select Premiums Written"}]
["Sch V(L)","Segregated Acc",null,"Total Assets - Cell 11",{"$f":"'Schedule V(l)'!N9","v":0}]
["Sch V(L)","Segregated Acc",null,"Total Liabilities - Cell 11",{"$f":"'Schedule V(l)'!N10","v":0}]
["Sch V(L)","Segregated Acc",null,"Statutory Surplus - Cell 11",{"$f":"'Schedule V(l)'!N11","v":0}]
["Sch V(L)","Segregated Acc",null,"Statutory Capital - Cell 11",{"$f":"'Schedule V(l)'!N12","v":0}]
["Sch V(L)","Segregated Acc",null,"Net Income - Cell 11",{"$f":"'Schedule V(l)'!N14","v":0}]
["Sch V(L)","Segregated Acc",null,"Cash  - Cell 11",{"$f":"'Schedule V(l)'!N15","v":0}]
["Sch V(L)","Segregated Acc",null,"Quoted: Bonds and Debentures - Cell 11",{"$f":"'Schedule V(l)'!N16","v":0}]
["Sch V(L)","Segregated Acc",null,"Quoted: Equites - Cell 11",{"$f":"'Schedule V(l)'!N17","v":0}]
["Sch V(L)","Segregated Acc",null,"Quoted: Other  - Cell 11",{"$f":"'Schedule V(l)'!N18","v":0}]
["Sch V(L)","Segregated Acc",null,"Unquoted: Bonds and Debentures - Cell 11",{"$f":"'Schedule V(l)'!N19","v":0}]
["Sch V(L)","Segregated Acc",null,"Unquoted: Equities - Cell 11",{"$f":"'Schedule V(l)'!N20","v":0}]
["Sch V(L)","Segregated Acc",null,"Unquoted: Other - Cell 11",{"$f":"'Schedule V(l)'!N21","v":0}]
["Sch V(L)","Segregated Acc",null,"Due from Affiliates - Cell 11",{"$f":"'Schedule V(l)'!N22","v":0}]
["Sch V(L)","Segregated Acc",null,"Due to Affiliates - Cell 11",{"$f":"'Schedule V(l)'!N23","v":0}]
["Sch V(L)","Segregated Acc",null,"Net Loss & Loss Expense Provisions - Cell 11",{"$f":"'Schedule V(l)'!N24","v":0}]
["Sch V(L)","Segregated Acc",null,"Prior Year loss reserve development - Cell 11",{"$f":"'Schedule V(l)'!N25","v":0}]
["Sch V(L)","Segregated Acc",null,"Reinsurance Recoverable Balance - Cell 11",{"$f":"'Schedule V(l)'!N26","v":0}]
["Sch V(L)","Segregated Acc",null,"Cell is in Run-Off - Cell 11",{"$f":"'Schedule V(l)'!N27","v":"Select Yes/No"}]
["Sch V(L)","Segregated Acc",null,"currency used - Cell 11",{"$f":"'Schedule V(l)'!N28","v":"Select Currency"}]
["Sch V(L)","Segregated Acc",null,"Cell to Cell Activity  - Cell 11",{"$f":"'Schedule V(l)'!N29","v":"Confirm Activity"}]
["Sch V(L)","Segregated Acc",null,"Cell to Cell Activity Details - Cell 11",{"$f":"'Schedule V(l)'!N30","v":0}]
["Sch V(L)","Segregated Acc",null,"General Cell to Cell Activity - Cell 11",{"$f":"'Schedule V(l)'!N31","v":"Confirm Activity"}]
["Sch V(L)","Segregated Acc",null,"General Cell to Cell Activity Details - Cell 11",{"$f":"'Schedule V(l)'!N32","v":0}]
["Sch V(L)","Segregated Acc",null,"Cell Deficit - Cell 11",{"$f":"'Schedule V(l)'!N33","v":0}]
["Sch V(L)","Segregated Acc",null,"Additional Capital Support - Cell 11",{"$f":"'Schedule V(l)'!N34","v":"Confirm"}]
["Sch V(L)","Segregated Acc",null,"Additional Capital Support Details - Cell 11",{"$f":"'Schedule V(l)'!N35","v":0}]
["Sch V(L)","Segregated Acc",null,"Details of Benefical Owners of Risk - Cell 11",{"$f":"'Schedule V(l)'!N36","v":"Confirm"}]
["Sch V(L)","Segregated Acc",null,"Details of Benefical Owners of Cell - Cell 11",{"$f":"'Schedule V(l)'!N37","v":"Confirm"}]
["Sch V(L)","Segregated Acc",null,"Benefical Owners - Cell 11",{"$f":"'Schedule V(l)'!N38","v":"Confirm"}]
["Sch V(L)","Segregated Acc",null,"Benefical Ownership - Cell 11",{"$f":"'Schedule V(l)'!N39","v":"Confirm Ownership"}]
["Sch V(L)","Segregated Acc",null,"Benefical Ownership Add. Details - Cell 11",{"$f":"'Schedule V(l)'!N40","v":0}]
["Sch V(L)","Segregated Acc",null,"Jurisdiction - Cell 11",{"$f":"'Schedule V(l)'!N41","v":"Confirm Jurisdiction"}]
["Sch V(L)","Segregated Acc",null,"Benefical Ownership Gov Intrument - Cell 11",{"$f":"'Schedule V(l)'!N42","v":"Confirm Instrument"}]
["Sch V(L)","Segregated Acc",null,"Benefical Ownership Gov Intrument Det. - Cell 11",{"$f":"'Schedule V(l)'!N43","v":0}]
["Sch V(L)","Segregated Acc",null,"Indemnity Provisions - Cell 11",{"$f":"'Schedule V(l)'!N44","v":"Select Yes/No"}]
["Sch V(L)","Segregated Acc",null,"Limited recourse  - Cell 11",{"$f":"'Schedule V(l)'!N45","v":"Select Yes/No"}]
["Sch V(L)","Segregated Acc",null,"Primary Cell Funding - Cell 11",{"$f":"'Schedule V(l)'!N46","v":"Select Funding"}]
["Sch V(L)","Segregated Acc",null,"Limit of Cell  Funding/ Collateral - Cell 11",{"$f":"'Schedule V(l)'!N47","v":"Confirm Funding / Collateral"}]
["Sch V(L)","Segregated Acc",null,"Limit of Cell  Funding/ Collateral Details - Cell 11",{"$f":"'Schedule V(l)'!N48","v":0}]
["Sch V(L)","Segregated Acc",null,"Operational Risk Mitigants - Cell 11",{"$f":"'Schedule V(l)'!N49","v":"Confirm Mitigants & Attach Support"}]
["Sch V(L)","Segregated Acc",null,"i) Statutory Line of Business - Cell 11",{"$f":"'Schedule V(l)'!N55","v":"Select Line of Business"}]
["Sch V(L)","Segregated Acc",null,"i) GPW - Cell 11",{"$f":"'Schedule V(l)'!N56","v":0}]
["Sch V(L)","Segregated Acc",null,"i) Premiums Ceded - Cell 11",{"$f":"'Schedule V(l)'!N57","v":0}]
["Sch V(L)","Segregated Acc",null,"i) NPW - Cell 11",{"$f":"'Schedule V(l)'!N58","v":0}]
["Sch V(L)","Segregated Acc",null,"ii) Statutory Line of Business - Cell 11",{"$f":"'Schedule V(l)'!N59","v":"Select Line of Business"}]
["Sch V(L)","Segregated Acc",null,"ii) GPW - Cell 11",{"$f":"'Schedule V(l)'!N60","v":0}]
["Sch V(L)","Segregated Acc",null,"ii) Premiums Ceded - Cell 11",{"$f":"'Schedule V(l)'!N61","v":0}]
["Sch V(L)","Segregated Acc",null,"ii) NPW - Cell 11",{"$f":"'Schedule V(l)'!N62","v":0}]
["Sch V(L)","Segregated Acc",null,"iii) Statutory Line of Business - Cell 11",{"$f":"'Schedule V(l)'!N63","v":"Select Line of Business"}]
["Sch V(L)","Segregated Acc",null,"iii) GPW - Cell 11",{"$f":"'Schedule V(l)'!N64","v":0}]
["Sch V(L)","Segregated Acc",null,"iii) Premiums Ceded - Cell 11",{"$f":"'Schedule V(l)'!N65","v":0}]
["Sch V(L)","Segregated Acc",null,"iii) NPW - Cell 11",{"$f":"'Schedule V(l)'!N66","v":0}]
["Sch V(L)","Segregated Acc",null,"iv) Statutory Line of Business - Cell 11",{"$f":"'Schedule V(l)'!N67","v":"Select Line of Business"}]
["Sch V(L)","Segregated Acc",null,"iv) GPW - Cell 11",{"$f":"'Schedule V(l)'!N68","v":0}]
["Sch V(L)","Segregated Acc",null,"iv) Premiums Ceded - Cell 11",{"$f":"'Schedule V(l)'!N69","v":0}]
["Sch V(L)","Segregated Acc",null,"iv) NPW - Cell 11",{"$f":"'Schedule V(l)'!N70","v":0}]
["Sch V(L)","Segregated Acc",null,"v) Statutory Line of Business - Cell 11",{"$f":"'Schedule V(l)'!N71","v":"Select Line of Business"}]
["Sch V(L)","Segregated Acc",null,"v) GPW - Cell 11",{"$f":"'Schedule V(l)'!N72","v":0}]
["Sch V(L)","Segregated Acc",null,"v) Premiums Ceded - Cell 11",{"$f":"'Schedule V(l)'!N73","v":0}]
["Sch V(L)","Segregated Acc",null,"v) NPW - Cell 11",{"$f":"'Schedule V(l)'!N74","v":0}]
["Sch V(L)","Segregated Acc",null,"Cell Ref # - Cell 12",{"$f":"'Schedule V(l)'!O6","v":0}]
["Sch V(L)","Segregated Acc",null,"Cell name - Cell 12",{"$f":"'Schedule V(l)'!O7","v":0}]
["Sch V(L)","Segregated Acc",null,"Direct Insurer, Reinsurer or Both - Cell 12",{"$f":"'Schedule V(l)'!O8","v":"Select Premiums Written"}]
["Sch V(L)","Segregated Acc",null,"Total Assets - Cell 12",{"$f":"'Schedule V(l)'!O9","v":0}]
["Sch V(L)","Segregated Acc",null,"Total Liabilities - Cell 12",{"$f":"'Schedule V(l)'!O10","v":0}]
["Sch V(L)","Segregated Acc",null,"Statutory Surplus - Cell 12",{"$f":"'Schedule V(l)'!O11","v":0}]
["Sch V(L)","Segregated Acc",null,"Statutory Capital - Cell 12",{"$f":"'Schedule V(l)'!O12","v":0}]
["Sch V(L)","Segregated Acc",null,"Net Income - Cell 12",{"$f":"'Schedule V(l)'!O14","v":0}]
["Sch V(L)","Segregated Acc",null,"Cash  - Cell 12",{"$f":"'Schedule V(l)'!O15","v":0}]
["Sch V(L)","Segregated Acc",null,"Quoted: Bonds and Debentures - Cell 12",{"$f":"'Schedule V(l)'!O16","v":0}]
["Sch V(L)","Segregated Acc",null,"Quoted: Equites - Cell 12",{"$f":"'Schedule V(l)'!O17","v":0}]
["Sch V(L)","Segregated Acc",null,"Quoted: Other  - Cell 12",{"$f":"'Schedule V(l)'!O18","v":0}]
["Sch V(L)","Segregated Acc",null,"Unquoted: Bonds and Debentures - Cell 12",{"$f":"'Schedule V(l)'!O19","v":0}]
["Sch V(L)","Segregated Acc",null,"Unquoted: Equities - Cell 12",{"$f":"'Schedule V(l)'!O20","v":0}]
["Sch V(L)","Segregated Acc",null,"Unquoted: Other - Cell 12",{"$f":"'Schedule V(l)'!O21","v":0}]
["Sch V(L)","Segregated Acc",null,"Due from Affiliates - Cell 12",{"$f":"'Schedule V(l)'!O22","v":0}]
["Sch V(L)","Segregated Acc",null,"Due to Affiliates - Cell 12",{"$f":"'Schedule V(l)'!O23","v":0}]
["Sch V(L)","Segregated Acc",null,"Net Loss & Loss Expense Provisions - Cell 12",{"$f":"'Schedule V(l)'!O24","v":0}]
["Sch V(L)","Segregated Acc",null,"Prior Year loss reserve development - Cell 12",{"$f":"'Schedule V(l)'!O25","v":0}]
["Sch V(L)","Segregated Acc",null,"Reinsurance Recoverable Balance - Cell 12",{"$f":"'Schedule V(l)'!O26","v":0}]
["Sch V(L)","Segregated Acc",null,"Cell is in Run-Off - Cell 12",{"$f":"'Schedule V(l)'!O27","v":"Select Yes/No"}]
["Sch V(L)","Segregated Acc",null,"currency used - Cell 12",{"$f":"'Schedule V(l)'!O28","v":"Select Currency"}]
["Sch V(L)","Segregated Acc",null,"Cell to Cell Activity  - Cell 12",{"$f":"'Schedule V(l)'!O29","v":"Confirm Activity"}]
["Sch V(L)","Segregated Acc",null,"Cell to Cell Activity Details - Cell 12",{"$f":"'Schedule V(l)'!O30","v":0}]
["Sch V(L)","Segregated Acc",null,"General Cell to Cell Activity - Cell 12",{"$f":"'Schedule V(l)'!O31","v":"Confirm Activity"}]
["Sch V(L)","Segregated Acc",null,"General Cell to Cell Activity Details - Cell 12",{"$f":"'Schedule V(l)'!O32","v":0}]
["Sch V(L)","Segregated Acc",null,"Cell Deficit - Cell 12",{"$f":"'Schedule V(l)'!O33","v":0}]
["Sch V(L)","Segregated Acc",null,"Additional Capital Support - Cell 12",{"$f":"'Schedule V(l)'!O34","v":"Confirm"}]
["Sch V(L)","Segregated Acc",null,"Additional Capital Support Details - Cell 12",{"$f":"'Schedule V(l)'!O35","v":0}]
["Sch V(L)","Segregated Acc",null,"Details of Benefical Owners of Risk - Cell 12",{"$f":"'Schedule V(l)'!O36","v":"Confirm"}]
["Sch V(L)","Segregated Acc",null,"Details of Benefical Owners of Cell - Cell 12",{"$f":"'Schedule V(l)'!O37","v":"Confirm"}]
["Sch V(L)","Segregated Acc",null,"Benefical Owners - Cell 12",{"$f":"'Schedule V(l)'!O38","v":"Confirm"}]
["Sch V(L)","Segregated Acc",null,"Benefical Ownership - Cell 12",{"$f":"'Schedule V(l)'!O39","v":"Confirm Ownership"}]
["Sch V(L)","Segregated Acc",null,"Benefical Ownership Add. Details - Cell 12",{"$f":"'Schedule V(l)'!O40","v":0}]
["Sch V(L)","Segregated Acc",null,"Jurisdiction - Cell 12",{"$f":"'Schedule V(l)'!O41","v":"Confirm Jurisdiction"}]
["Sch V(L)","Segregated Acc",null,"Benefical Ownership Gov Intrument - Cell 12",{"$f":"'Schedule V(l)'!O42","v":"Confirm Instrument"}]
["Sch V(L)","Segregated Acc",null,"Benefical Ownership Gov Intrument Det. - Cell 12",{"$f":"'Schedule V(l)'!O43","v":0}]
["Sch V(L)","Segregated Acc",null,"Indemnity Provisions - Cell 12",{"$f":"'Schedule V(l)'!O44","v":"Select Yes/No"}]
["Sch V(L)","Segregated Acc",null,"Limited recourse  - Cell 12",{"$f":"'Schedule V(l)'!O45","v":"Select Yes/No"}]
["Sch V(L)","Segregated Acc",null,"Primary Cell Funding - Cell 12",{"$f":"'Schedule V(l)'!O46","v":"Select Funding"}]
["Sch V(L)","Segregated Acc",null,"Limit of Cell  Funding/ Collateral - Cell 12",{"$f":"'Schedule V(l)'!O47","v":"Confirm Funding / Collateral"}]
["Sch V(L)","Segregated Acc",null,"Limit of Cell  Funding/ Collateral Details - Cell 12",{"$f":"'Schedule V(l)'!O48","v":0}]
["Sch V(L)","Segregated Acc",null,"Operational Risk Mitigants - Cell 12",{"$f":"'Schedule V(l)'!O49","v":"Confirm Mitigants & Attach Support"}]
["Sch V(L)","Segregated Acc",null,"i) Statutory Line of Business - Cell 12",{"$f":"'Schedule V(l)'!O55","v":"Select Line of Business"}]
["Sch V(L)","Segregated Acc",null,"i) GPW - Cell 12",{"$f":"'Schedule V(l)'!O56","v":0}]
["Sch V(L)","Segregated Acc",null,"i) Premiums Ceded - Cell 12",{"$f":"'Schedule V(l)'!O57","v":0}]
["Sch V(L)","Segregated Acc",null,"i) NPW - Cell 12",{"$f":"'Schedule V(l)'!O58","v":0}]
["Sch V(L)","Segregated Acc",null,"ii) Statutory Line of Business - Cell 12",{"$f":"'Schedule V(l)'!O59","v":"Select Line of Business"}]
["Sch V(L)","Segregated Acc",null,"ii) GPW - Cell 12",{"$f":"'Schedule V(l)'!O60","v":0}]
["Sch V(L)","Segregated Acc",null,"ii) Premiums Ceded - Cell 12",{"$f":"'Schedule V(l)'!O61","v":0}]
["Sch V(L)","Segregated Acc",null,"ii) NPW - Cell 12",{"$f":"'Schedule V(l)'!O62","v":0}]
["Sch V(L)","Segregated Acc",null,"iii) Statutory Line of Business - Cell 12",{"$f":"'Schedule V(l)'!O63","v":"Select Line of Business"}]
["Sch V(L)","Segregated Acc",null,"iii) GPW - Cell 12",{"$f":"'Schedule V(l)'!O64","v":0}]
["Sch V(L)","Segregated Acc",null,"iii) Premiums Ceded - Cell 12",{"$f":"'Schedule V(l)'!O65","v":0}]
["Sch V(L)","Segregated Acc",null,"iii) NPW - Cell 12",{"$f":"'Schedule V(l)'!O66","v":0}]
["Sch V(L)","Segregated Acc",null,"iv) Statutory Line of Business - Cell 12",{"$f":"'Schedule V(l)'!O67","v":"Select Line of Business"}]
["Sch V(L)","Segregated Acc",null,"iv) GPW - Cell 12",{"$f":"'Schedule V(l)'!O68","v":0}]
["Sch V(L)","Segregated Acc",null,"iv) Premiums Ceded - Cell 12",{"$f":"'Schedule V(l)'!O69","v":0}]
["Sch V(L)","Segregated Acc",null,"iv) NPW - Cell 12",{"$f":"'Schedule V(l)'!O70","v":0}]
["Sch V(L)","Segregated Acc",null,"v) Statutory Line of Business - Cell 12",{"$f":"'Schedule V(l)'!O71","v":"Select Line of Business"}]
["Sch V(L)","Segregated Acc",null,"v) GPW - Cell 12",{"$f":"'Schedule V(l)'!O72","v":0}]
["Sch V(L)","Segregated Acc",null,"v) Premiums Ceded - Cell 12",{"$f":"'Schedule V(l)'!O73","v":0}]
["Sch V(L)","Segregated Acc",null,"v) NPW - Cell 12",{"$f":"'Schedule V(l)'!O74","v":0}]
["Sch V(L)","Segregated Acc",null,"Cell Ref # - Cell 13",{"$f":"'Schedule V(l)'!P6","v":0}]
["Sch V(L)","Segregated Acc",null,"Cell name - Cell 13",{"$f":"'Schedule V(l)'!P7","v":0}]
["Sch V(L)","Segregated Acc",null,"Direct Insurer, Reinsurer or Both - Cell 13",{"$f":"'Schedule V(l)'!P8","v":"Select Premiums Written"}]
["Sch V(L)","Segregated Acc",null,"Total Assets - Cell 13",{"$f":"'Schedule V(l)'!P9","v":0}]
["Sch V(L)","Segregated Acc",null,"Total Liabilities - Cell 13",{"$f":"'Schedule V(l)'!P10","v":0}]
["Sch V(L)","Segregated Acc",null,"Statutory Surplus - Cell 13",{"$f":"'Schedule V(l)'!P11","v":0}]
["Sch V(L)","Segregated Acc",null,"Statutory Capital - Cell 13",{"$f":"'Schedule V(l)'!P12","v":0}]
["Sch V(L)","Segregated Acc",null,"Net Income - Cell 13",{"$f":"'Schedule V(l)'!P14","v":0}]
["Sch V(L)","Segregated Acc",null,"Cash  - Cell 13",{"$f":"'Schedule V(l)'!P15","v":0}]
["Sch V(L)","Segregated Acc",null,"Quoted: Bonds and Debentures - Cell 13",{"$f":"'Schedule V(l)'!P16","v":0}]
["Sch V(L)","Segregated Acc",null,"Quoted: Equites - Cell 13",{"$f":"'Schedule V(l)'!P17","v":0}]
["Sch V(L)","Segregated Acc",null,"Quoted: Other  - Cell 13",{"$f":"'Schedule V(l)'!P18","v":0}]
["Sch V(L)","Segregated Acc",null,"Unquoted: Bonds and Debentures - Cell 13",{"$f":"'Schedule V(l)'!P19","v":0}]
["Sch V(L)","Segregated Acc",null,"Unquoted: Equities - Cell 13",{"$f":"'Schedule V(l)'!P20","v":0}]
["Sch V(L)","Segregated Acc",null,"Unquoted: Other - Cell 13",{"$f":"'Schedule V(l)'!P21","v":0}]
["Sch V(L)","Segregated Acc",null,"Due from Affiliates - Cell 13",{"$f":"'Schedule V(l)'!P22","v":0}]
["Sch V(L)","Segregated Acc",null,"Due to Affiliates - Cell 13",{"$f":"'Schedule V(l)'!P23","v":0}]
["Sch V(L)","Segregated Acc",null,"Net Loss & Loss Expense Provisions - Cell 13",{"$f":"'Schedule V(l)'!P24","v":0}]
["Sch V(L)","Segregated Acc",null,"Prior Year loss reserve development - Cell 13",{"$f":"'Schedule V(l)'!P25","v":0}]
["Sch V(L)","Segregated Acc",null,"Reinsurance Recoverable Balance - Cell 13",{"$f":"'Schedule V(l)'!P26","v":0}]
["Sch V(L)","Segregated Acc",null,"Cell is in Run-Off - Cell 13",{"$f":"'Schedule V(l)'!P27","v":"Select Yes/No"}]
["Sch V(L)","Segregated Acc",null,"currency used - Cell 13",{"$f":"'Schedule V(l)'!P28","v":"Select Currency"}]
["Sch V(L)","Segregated Acc",null,"Cell to Cell Activity  - Cell 13",{"$f":"'Schedule V(l)'!P29","v":"Confirm Activity"}]
["Sch V(L)","Segregated Acc",null,"Cell to Cell Activity Details - Cell 13",{"$f":"'Schedule V(l)'!P30","v":0}]
["Sch V(L)","Segregated Acc",null,"General Cell to Cell Activity - Cell 13",{"$f":"'Schedule V(l)'!P31","v":"Confirm Activity"}]
["Sch V(L)","Segregated Acc",null,"General Cell to Cell Activity Details - Cell 13",{"$f":"'Schedule V(l)'!P32","v":0}]
["Sch V(L)","Segregated Acc",null,"Cell Deficit - Cell 13",{"$f":"'Schedule V(l)'!P33","v":0}]
["Sch V(L)","Segregated Acc",null,"Additional Capital Support - Cell 13",{"$f":"'Schedule V(l)'!P34","v":"Confirm"}]
["Sch V(L)","Segregated Acc",null,"Additional Capital Support Details - Cell 13",{"$f":"'Schedule V(l)'!P35","v":0}]
["Sch V(L)","Segregated Acc",null,"Details of Benefical Owners of Risk - Cell 13",{"$f":"'Schedule V(l)'!P36","v":"Confirm"}]
["Sch V(L)","Segregated Acc",null,"Details of Benefical Owners of Cell - Cell 13",{"$f":"'Schedule V(l)'!P37","v":"Confirm"}]
["Sch V(L)","Segregated Acc",null,"Benefical Owners - Cell 13",{"$f":"'Schedule V(l)'!P38","v":"Confirm"}]
["Sch V(L)","Segregated Acc",null,"Benefical Ownership - Cell 13",{"$f":"'Schedule V(l)'!P39","v":"Confirm Ownership"}]
["Sch V(L)","Segregated Acc",null,"Benefical Ownership Add. Details - Cell 13",{"$f":"'Schedule V(l)'!P40","v":0}]
["Sch V(L)","Segregated Acc",null,"Jurisdiction - Cell 13",{"$f":"'Schedule V(l)'!P41","v":"Confirm Jurisdiction"}]
["Sch V(L)","Segregated Acc",null,"Benefical Ownership Gov Intrument - Cell 13",{"$f":"'Schedule V(l)'!P42","v":"Confirm Instrument"}]
["Sch V(L)","Segregated Acc",null,"Benefical Ownership Gov Intrument Det. - Cell 13",{"$f":"'Schedule V(l)'!P43","v":0}]
["Sch V(L)","Segregated Acc",null,"Indemnity Provisions - Cell 13",{"$f":"'Schedule V(l)'!P44","v":"Select Yes/No"}]
["Sch V(L)","Segregated Acc",null,"Limited recourse  - Cell 13",{"$f":"'Schedule V(l)'!P45","v":"Select Yes/No"}]
["Sch V(L)","Segregated Acc",null,"Primary Cell Funding - Cell 13",{"$f":"'Schedule V(l)'!P46","v":"Select Funding"}]
["Sch V(L)","Segregated Acc",null,"Limit of Cell  Funding/ Collateral - Cell 13",{"$f":"'Schedule V(l)'!P47","v":"Confirm Funding / Collateral"}]
["Sch V(L)","Segregated Acc",null,"Limit of Cell  Funding/ Collateral Details - Cell 13",{"$f":"'Schedule V(l)'!P48","v":0}]
["Sch V(L)","Segregated Acc",null,"Operational Risk Mitigants - Cell 13",{"$f":"'Schedule V(l)'!P49","v":"Confirm Mitigants & Attach Support"}]
["Sch V(L)","Segregated Acc",null,"i) Statutory Line of Business - Cell 13",{"$f":"'Schedule V(l)'!P55","v":"Select Line of Business"}]
["Sch V(L)","Segregated Acc",null,"i) GPW - Cell 13",{"$f":"'Schedule V(l)'!P56","v":0}]
["Sch V(L)","Segregated Acc",null,"i) Premiums Ceded - Cell 13",{"$f":"'Schedule V(l)'!P57","v":0}]
["Sch V(L)","Segregated Acc",null,"i) NPW - Cell 13",{"$f":"'Schedule V(l)'!P58","v":0}]
["Sch V(L)","Segregated Acc",null,"ii) Statutory Line of Business - Cell 13",{"$f":"'Schedule V(l)'!P59","v":"Select Line of Business"}]
["Sch V(L)","Segregated Acc",null,"ii) GPW - Cell 13",{"$f":"'Schedule V(l)'!P60","v":0}]
["Sch V(L)","Segregated Acc",null,"ii) Premiums Ceded - Cell 13",{"$f":"'Schedule V(l)'!P61","v":0}]
["Sch V(L)","Segregated Acc",null,"ii) NPW - Cell 13",{"$f":"'Schedule V(l)'!P62","v":0}]
["Sch V(L)","Segregated Acc",null,"iii) Statutory Line of Business - Cell 13",{"$f":"'Schedule V(l)'!P63","v":"Select Line of Business"}]
["Sch V(L)","Segregated Acc",null,"iii) GPW - Cell 13",{"$f":"'Schedule V(l)'!P64","v":0}]
["Sch V(L)","Segregated Acc",null,"iii) Premiums Ceded - Cell 13",{"$f":"'Schedule V(l)'!P65","v":0}]
["Sch V(L)","Segregated Acc",null,"iii) NPW - Cell 13",{"$f":"'Schedule V(l)'!P66","v":0}]
["Sch V(L)","Segregated Acc",null,"iv) Statutory Line of Business - Cell 13",{"$f":"'Schedule V(l)'!P67","v":"Select Line of Business"}]
["Sch V(L)","Segregated Acc",null,"iv) GPW - Cell 13",{"$f":"'Schedule V(l)'!P68","v":0}]
["Sch V(L)","Segregated Acc",null,"iv) Premiums Ceded - Cell 13",{"$f":"'Schedule V(l)'!P69","v":0}]
["Sch V(L)","Segregated Acc",null,"iv) NPW - Cell 13",{"$f":"'Schedule V(l)'!P70","v":0}]
["Sch V(L)","Segregated Acc",null,"v) Statutory Line of Business - Cell 13",{"$f":"'Schedule V(l)'!P71","v":"Select Line of Business"}]
["Sch V(L)","Segregated Acc",null,"v) GPW - Cell 13",{"$f":"'Schedule V(l)'!P72","v":0}]
["Sch V(L)","Segregated Acc",null,"v) Premiums Ceded - Cell 13",{"$f":"'Schedule V(l)'!P73","v":0}]
["Sch V(L)","Segregated Acc",null,"v) NPW - Cell 13",{"$f":"'Schedule V(l)'!P74","v":0}]
["Sch V(L)","Segregated Acc",null,"Cell Ref # - Cell 14",{"$f":"'Schedule V(l)'!Q6","v":0}]
["Sch V(L)","Segregated Acc",null,"Cell name - Cell 14",{"$f":"'Schedule V(l)'!Q7","v":0}]
["Sch V(L)","Segregated Acc",null,"Direct Insurer, Reinsurer or Both - Cell 14",{"$f":"'Schedule V(l)'!Q8","v":"Select Premiums Written"}]
["Sch V(L)","Segregated Acc",null,"Total Assets - Cell 14",{"$f":"'Schedule V(l)'!Q9","v":0}]
["Sch V(L)","Segregated Acc",null,"Total Liabilities - Cell 14",{"$f":"'Schedule V(l)'!Q10","v":0}]
["Sch V(L)","Segregated Acc",null,"Statutory Surplus - Cell 14",{"$f":"'Schedule V(l)'!Q11","v":0}]
["Sch V(L)","Segregated Acc",null,"Statutory Capital - Cell 14",{"$f":"'Schedule V(l)'!Q12","v":0}]
["Sch V(L)","Segregated Acc",null,"Net Income - Cell 14",{"$f":"'Schedule V(l)'!Q14","v":0}]
["Sch V(L)","Segregated Acc",null,"Cash  - Cell 14",{"$f":"'Schedule V(l)'!Q15","v":0}]
["Sch V(L)","Segregated Acc",null,"Quoted: Bonds and Debentures - Cell 14",{"$f":"'Schedule V(l)'!Q16","v":0}]
["Sch V(L)","Segregated Acc",null,"Quoted: Equites - Cell 14",{"$f":"'Schedule V(l)'!Q17","v":0}]
["Sch V(L)","Segregated Acc",null,"Quoted: Other  - Cell 14",{"$f":"'Schedule V(l)'!Q18","v":0}]
["Sch V(L)","Segregated Acc",null,"Unquoted: Bonds and Debentures - Cell 14",{"$f":"'Schedule V(l)'!Q19","v":0}]
["Sch V(L)","Segregated Acc",null,"Unquoted: Equities - Cell 14",{"$f":"'Schedule V(l)'!Q20","v":0}]
["Sch V(L)","Segregated Acc",null,"Unquoted: Other - Cell 14",{"$f":"'Schedule V(l)'!Q21","v":0}]
["Sch V(L)","Segregated Acc",null,"Due from Affiliates - Cell 14",{"$f":"'Schedule V(l)'!Q22","v":0}]
["Sch V(L)","Segregated Acc",null,"Due to Affiliates - Cell 14",{"$f":"'Schedule V(l)'!Q23","v":0}]
["Sch V(L)","Segregated Acc",null,"Net Loss & Loss Expense Provisions - Cell 14",{"$f":"'Schedule V(l)'!Q24","v":0}]
["Sch V(L)","Segregated Acc",null,"Prior Year loss reserve development - Cell 14",{"$f":"'Schedule V(l)'!Q25","v":0}]
["Sch V(L)","Segregated Acc",null,"Reinsurance Recoverable Balance - Cell 14",{"$f":"'Schedule V(l)'!Q26","v":0}]
["Sch V(L)","Segregated Acc",null,"Cell is in Run-Off - Cell 14",{"$f":"'Schedule V(l)'!Q27","v":"Select Yes/No"}]
["Sch V(L)","Segregated Acc",null,"currency used - Cell 14",{"$f":"'Schedule V(l)'!Q28","v":"Select Currency"}]
["Sch V(L)","Segregated Acc",null,"Cell to Cell Activity  - Cell 14",{"$f":"'Schedule V(l)'!Q29","v":"Confirm Activity"}]
["Sch V(L)","Segregated Acc",null,"Cell to Cell Activity Details - Cell 14",{"$f":"'Schedule V(l)'!Q30","v":0}]
["Sch V(L)","Segregated Acc",null,"General Cell to Cell Activity - Cell 14",{"$f":"'Schedule V(l)'!Q31","v":"Confirm Activity"}]
["Sch V(L)","Segregated Acc",null,"General Cell to Cell Activity Details - Cell 14",{"$f":"'Schedule V(l)'!Q32","v":0}]
["Sch V(L)","Segregated Acc",null,"Cell Deficit - Cell 14",{"$f":"'Schedule V(l)'!Q33","v":0}]
["Sch V(L)","Segregated Acc",null,"Additional Capital Support - Cell 14",{"$f":"'Schedule V(l)'!Q34","v":"Confirm"}]
["Sch V(L)","Segregated Acc",null,"Additional Capital Support Details - Cell 14",{"$f":"'Schedule V(l)'!Q35","v":0}]
["Sch V(L)","Segregated Acc",null,"Details of Benefical Owners of Risk - Cell 14",{"$f":"'Schedule V(l)'!Q36","v":"Confirm"}]
["Sch V(L)","Segregated Acc",null,"Details of Benefical Owners of Cell - Cell 14",{"$f":"'Schedule V(l)'!Q37","v":"Confirm"}]
["Sch V(L)","Segregated Acc",null,"Benefical Owners - Cell 14",{"$f":"'Schedule V(l)'!Q38","v":"Confirm"}]
["Sch V(L)","Segregated Acc",null,"Benefical Ownership - Cell 14",{"$f":"'Schedule V(l)'!Q39","v":"Confirm Ownership"}]
["Sch V(L)","Segregated Acc",null,"Benefical Ownership Add. Details - Cell 14",{"$f":"'Schedule V(l)'!Q40","v":0}]
["Sch V(L)","Segregated Acc",null,"Jurisdiction - Cell 14",{"$f":"'Schedule V(l)'!Q41","v":"Confirm Jurisdiction"}]
["Sch V(L)","Segregated Acc",null,"Benefical Ownership Gov Intrument - Cell 14",{"$f":"'Schedule V(l)'!Q42","v":"Confirm Instrument"}]
["Sch V(L)","Segregated Acc",null,"Benefical Ownership Gov Intrument Det. - Cell 14",{"$f":"'Schedule V(l)'!Q43","v":0}]
["Sch V(L)","Segregated Acc",null,"Indemnity Provisions - Cell 14",{"$f":"'Schedule V(l)'!Q44","v":"Select Yes/No"}]
["Sch V(L)","Segregated Acc",null,"Limited recourse  - Cell 14",{"$f":"'Schedule V(l)'!Q45","v":"Select Yes/No"}]
["Sch V(L)","Segregated Acc",null,"Primary Cell Funding - Cell 14",{"$f":"'Schedule V(l)'!Q46","v":"Select Funding"}]
["Sch V(L)","Segregated Acc",null,"Limit of Cell  Funding/ Collateral - Cell 14",{"$f":"'Schedule V(l)'!Q47","v":"Confirm Funding / Collateral"}]
["Sch V(L)","Segregated Acc",null,"Limit of Cell  Funding/ Collateral Details - Cell 14",{"$f":"'Schedule V(l)'!Q48","v":0}]
["Sch V(L)","Segregated Acc",null,"Operational Risk Mitigants - Cell 14",{"$f":"'Schedule V(l)'!Q49","v":"Confirm Mitigants & Attach Support"}]
["Sch V(L)","Segregated Acc",null,"i) Statutory Line of Business - Cell 14",{"$f":"'Schedule V(l)'!Q55","v":"Select Line of Business"}]
["Sch V(L)","Segregated Acc",null,"i) GPW - Cell 14",{"$f":"'Schedule V(l)'!Q56","v":0}]
["Sch V(L)","Segregated Acc",null,"i) Premiums Ceded - Cell 14",{"$f":"'Schedule V(l)'!Q57","v":0}]
["Sch V(L)","Segregated Acc",null,"i) NPW - Cell 14",{"$f":"'Schedule V(l)'!Q58","v":0}]
["Sch V(L)","Segregated Acc",null,"ii) Statutory Line of Business - Cell 14",{"$f":"'Schedule V(l)'!Q59","v":"Select Line of Business"}]
["Sch V(L)","Segregated Acc",null,"ii) GPW - Cell 14",{"$f":"'Schedule V(l)'!Q60","v":0}]
["Sch V(L)","Segregated Acc",null,"ii) Premiums Ceded - Cell 14",{"$f":"'Schedule V(l)'!Q61","v":0}]
["Sch V(L)","Segregated Acc",null,"ii) NPW - Cell 14",{"$f":"'Schedule V(l)'!Q62","v":0}]
["Sch V(L)","Segregated Acc",null,"iii) Statutory Line of Business - Cell 14",{"$f":"'Schedule V(l)'!Q63","v":"Select Line of Business"}]
["Sch V(L)","Segregated Acc",null,"iii) GPW - Cell 14",{"$f":"'Schedule V(l)'!Q64","v":0}]
["Sch V(L)","Segregated Acc",null,"iii) Premiums Ceded - Cell 14",{"$f":"'Schedule V(l)'!Q65","v":0}]
["Sch V(L)","Segregated Acc",null,"iii) NPW - Cell 14",{"$f":"'Schedule V(l)'!Q66","v":0}]
["Sch V(L)","Segregated Acc",null,"iv) Statutory Line of Business - Cell 14",{"$f":"'Schedule V(l)'!Q67","v":"Select Line of Business"}]
["Sch V(L)","Segregated Acc",null,"iv) GPW - Cell 14",{"$f":"'Schedule V(l)'!Q68","v":0}]
["Sch V(L)","Segregated Acc",null,"iv) Premiums Ceded - Cell 14",{"$f":"'Schedule V(l)'!Q69","v":0}]
["Sch V(L)","Segregated Acc",null,"iv) NPW - Cell 14",{"$f":"'Schedule V(l)'!Q70","v":0}]
["Sch V(L)","Segregated Acc",null,"v) Statutory Line of Business - Cell 14",{"$f":"'Schedule V(l)'!Q71","v":"Select Line of Business"}]
["Sch V(L)","Segregated Acc",null,"v) GPW - Cell 14",{"$f":"'Schedule V(l)'!Q72","v":0}]
["Sch V(L)","Segregated Acc",null,"v) Premiums Ceded - Cell 14",{"$f":"'Schedule V(l)'!Q73","v":0}]
["Sch V(L)","Segregated Acc",null,"v) NPW - Cell 14",{"$f":"'Schedule V(l)'!Q74","v":0}]
["Sch V(L)","Segregated Acc",null,"Cell Ref # - Cell 15",{"$f":"'Schedule V(l)'!R6","v":0}]
["Sch V(L)","Segregated Acc",null,"Cell name - Cell 15",{"$f":"'Schedule V(l)'!R7","v":0}]
["Sch V(L)","Segregated Acc",null,"Direct Insurer, Reinsurer or Both - Cell 15",{"$f":"'Schedule V(l)'!R8","v":"Select Premiums Written"}]
["Sch V(L)","Segregated Acc",null,"Total Assets - Cell 15",{"$f":"'Schedule V(l)'!R9","v":0}]
["Sch V(L)","Segregated Acc",null,"Total Liabilities - Cell 15",{"$f":"'Schedule V(l)'!R10","v":0}]
["Sch V(L)","Segregated Acc",null,"Statutory Surplus - Cell 15",{"$f":"'Schedule V(l)'!R11","v":0}]
["Sch V(L)","Segregated Acc",null,"Statutory Capital - Cell 15",{"$f":"'Schedule V(l)'!R12","v":0}]
["Sch V(L)","Segregated Acc",null,"Net Income - Cell 15",{"$f":"'Schedule V(l)'!R14","v":0}]
["Sch V(L)","Segregated Acc",null,"Cash  - Cell 15",{"$f":"'Schedule V(l)'!R15","v":0}]
["Sch V(L)","Segregated Acc",null,"Quoted: Bonds and Debentures - Cell 15",{"$f":"'Schedule V(l)'!R16","v":0}]
["Sch V(L)","Segregated Acc",null,"Quoted: Equites - Cell 15",{"$f":"'Schedule V(l)'!R17","v":0}]
["Sch V(L)","Segregated Acc",null,"Quoted: Other  - Cell 15",{"$f":"'Schedule V(l)'!R18","v":0}]
["Sch V(L)","Segregated Acc",null,"Unquoted: Bonds and Debentures - Cell 15",{"$f":"'Schedule V(l)'!R19","v":0}]
["Sch V(L)","Segregated Acc",null,"Unquoted: Equities - Cell 15",{"$f":"'Schedule V(l)'!R20","v":0}]
["Sch V(L)","Segregated Acc",null,"Unquoted: Other - Cell 15",{"$f":"'Schedule V(l)'!R21","v":0}]
["Sch V(L)","Segregated Acc",null,"Due from Affiliates - Cell 15",{"$f":"'Schedule V(l)'!R22","v":0}]
["Sch V(L)","Segregated Acc",null,"Due to Affiliates - Cell 15",{"$f":"'Schedule V(l)'!R23","v":0}]
["Sch V(L)","Segregated Acc",null,"Net Loss & Loss Expense Provisions - Cell 15",{"$f":"'Schedule V(l)'!R24","v":0}]
["Sch V(L)","Segregated Acc",null,"Prior Year loss reserve development - Cell 15",{"$f":"'Schedule V(l)'!R25","v":0}]
["Sch V(L)","Segregated Acc",null,"Reinsurance Recoverable Balance - Cell 15",{"$f":"'Schedule V(l)'!R26","v":0}]
["Sch V(L)","Segregated Acc",null,"Cell is in Run-Off - Cell 15",{"$f":"'Schedule V(l)'!R27","v":"Select Yes/No"}]
["Sch V(L)","Segregated Acc",null,"currency used - Cell 15",{"$f":"'Schedule V(l)'!R28","v":"Select Currency"}]
["Sch V(L)","Segregated Acc",null,"Cell to Cell Activity  - Cell 15",{"$f":"'Schedule V(l)'!R29","v":"Confirm Activity"}]
["Sch V(L)","Segregated Acc",null,"Cell to Cell Activity Details - Cell 15",{"$f":"'Schedule V(l)'!R30","v":0}]
["Sch V(L)","Segregated Acc",null,"General Cell to Cell Activity - Cell 15",{"$f":"'Schedule V(l)'!R31","v":"Confirm Activity"}]
["Sch V(L)","Segregated Acc",null,"General Cell to Cell Activity Details - Cell 15",{"$f":"'Schedule V(l)'!R32","v":0}]
["Sch V(L)","Segregated Acc",null,"Cell Deficit - Cell 15",{"$f":"'Schedule V(l)'!R33","v":0}]
["Sch V(L)","Segregated Acc",null,"Additional Capital Support - Cell 15",{"$f":"'Schedule V(l)'!R34","v":"Confirm"}]
["Sch V(L)","Segregated Acc",null,"Additional Capital Support Details - Cell 15",{"$f":"'Schedule V(l)'!R35","v":0}]
["Sch V(L)","Segregated Acc",null,"Details of Benefical Owners of Risk - Cell 15",{"$f":"'Schedule V(l)'!R36","v":"Confirm"}]
["Sch V(L)","Segregated Acc",null,"Details of Benefical Owners of Cell - Cell 15",{"$f":"'Schedule V(l)'!R37","v":"Confirm"}]
["Sch V(L)","Segregated Acc",null,"Benefical Owners - Cell 15",{"$f":"'Schedule V(l)'!R38","v":"Confirm"}]
["Sch V(L)","Segregated Acc",null,"Benefical Ownership - Cell 15",{"$f":"'Schedule V(l)'!R39","v":"Confirm Ownership"}]
["Sch V(L)","Segregated Acc",null,"Benefical Ownership Add. Details - Cell 15",{"$f":"'Schedule V(l)'!R40","v":0}]
["Sch V(L)","Segregated Acc",null,"Jurisdiction - Cell 15",{"$f":"'Schedule V(l)'!R41","v":"Confirm Jurisdiction"}]
["Sch V(L)","Segregated Acc",null,"Benefical Ownership Gov Intrument - Cell 15",{"$f":"'Schedule V(l)'!R42","v":"Confirm Instrument"}]
["Sch V(L)","Segregated Acc",null,"Benefical Ownership Gov Intrument Det. - Cell 15",{"$f":"'Schedule V(l)'!R43","v":0}]
["Sch V(L)","Segregated Acc",null,"Indemnity Provisions - Cell 15",{"$f":"'Schedule V(l)'!R44","v":"Select Yes/No"}]
["Sch V(L)","Segregated Acc",null,"Limited recourse  - Cell 15",{"$f":"'Schedule V(l)'!R45","v":"Select Yes/No"}]
["Sch V(L)","Segregated Acc",null,"Primary Cell Funding - Cell 15",{"$f":"'Schedule V(l)'!R46","v":"Select Funding"}]
["Sch V(L)","Segregated Acc",null,"Limit of Cell  Funding/ Collateral - Cell 15",{"$f":"'Schedule V(l)'!R47","v":"Confirm Funding / Collateral"}]
["Sch V(L)","Segregated Acc",null,"Limit of Cell  Funding/ Collateral Details - Cell 15",{"$f":"'Schedule V(l)'!R48","v":0}]
["Sch V(L)","Segregated Acc",null,"Operational Risk Mitigants - Cell 15",{"$f":"'Schedule V(l)'!R49","v":"Confirm Mitigants & Attach Support"}]
["Sch V(L)","Segregated Acc",null,"i) Statutory Line of Business - Cell 15",{"$f":"'Schedule V(l)'!R55","v":"Select Line of Business"}]
["Sch V(L)","Segregated Acc",null,"i) GPW - Cell 15",{"$f":"'Schedule V(l)'!R56","v":0}]
["Sch V(L)","Segregated Acc",null,"i) Premiums Ceded - Cell 15",{"$f":"'Schedule V(l)'!R57","v":0}]
["Sch V(L)","Segregated Acc",null,"i) NPW - Cell 15",{"$f":"'Schedule V(l)'!R58","v":0}]
["Sch V(L)","Segregated Acc",null,"ii) Statutory Line of Business - Cell 15",{"$f":"'Schedule V(l)'!R59","v":"Select Line of Business"}]
["Sch V(L)","Segregated Acc",null,"ii) GPW - Cell 15",{"$f":"'Schedule V(l)'!R60","v":0}]
["Sch V(L)","Segregated Acc",null,"ii) Premiums Ceded - Cell 15",{"$f":"'Schedule V(l)'!R61","v":0}]
["Sch V(L)","Segregated Acc",null,"ii) NPW - Cell 15",{"$f":"'Schedule V(l)'!R62","v":0}]
["Sch V(L)","Segregated Acc",null,"iii) Statutory Line of Business - Cell 15",{"$f":"'Schedule V(l)'!R63","v":"Select Line of Business"}]
["Sch V(L)","Segregated Acc",null,"iii) GPW - Cell 15",{"$f":"'Schedule V(l)'!R64","v":0}]
["Sch V(L)","Segregated Acc",null,"iii) Premiums Ceded - Cell 15",{"$f":"'Schedule V(l)'!R65","v":0}]
["Sch V(L)","Segregated Acc",null,"iii) NPW - Cell 15",{"$f":"'Schedule V(l)'!R66","v":0}]
["Sch V(L)","Segregated Acc",null,"iv) Statutory Line of Business - Cell 15",{"$f":"'Schedule V(l)'!R67","v":"Select Line of Business"}]
["Sch V(L)","Segregated Acc",null,"iv) GPW - Cell 15",{"$f":"'Schedule V(l)'!R68","v":0}]
["Sch V(L)","Segregated Acc",null,"iv) Premiums Ceded - Cell 15",{"$f":"'Schedule V(l)'!R69","v":0}]
["Sch V(L)","Segregated Acc",null,"iv) NPW - Cell 15",{"$f":"'Schedule V(l)'!R70","v":0}]
["Sch V(L)","Segregated Acc",null,"v) Statutory Line of Business - Cell 15",{"$f":"'Schedule V(l)'!R71","v":"Select Line of Business"}]
["Sch V(L)","Segregated Acc",null,"v) GPW - Cell 15",{"$f":"'Schedule V(l)'!R72","v":0}]
["Sch V(L)","Segregated Acc",null,"v) Premiums Ceded - Cell 15",{"$f":"'Schedule V(l)'!R73","v":0}]
["Sch V(L)","Segregated Acc",null,"v) NPW - Cell 15",{"$f":"'Schedule V(l)'!R74","v":0}]
["Sch V(L)","Segregated Acc",null,"Cell Ref # - Cell 16",{"$f":"'Schedule V(l)'!S6","v":0}]
["Sch V(L)","Segregated Acc",null,"Cell name - Cell 16",{"$f":"'Schedule V(l)'!S7","v":0}]
["Sch V(L)","Segregated Acc",null,"Direct Insurer, Reinsurer or Both - Cell 16",{"$f":"'Schedule V(l)'!S8","v":"Select Premiums Written"}]
["Sch V(L)","Segregated Acc",null,"Total Assets - Cell 16",{"$f":"'Schedule V(l)'!S9","v":0}]
["Sch V(L)","Segregated Acc",null,"Total Liabilities - Cell 16",{"$f":"'Schedule V(l)'!S10","v":0}]
["Sch V(L)","Segregated Acc",null,"Statutory Surplus - Cell 16",{"$f":"'Schedule V(l)'!S11","v":0}]
["Sch V(L)","Segregated Acc",null,"Statutory Capital - Cell 16",{"$f":"'Schedule V(l)'!S12","v":0}]
["Sch V(L)","Segregated Acc",null,"Net Income - Cell 16",{"$f":"'Schedule V(l)'!S14","v":0}]
["Sch V(L)","Segregated Acc",null,"Cash  - Cell 16",{"$f":"'Schedule V(l)'!S15","v":0}]
["Sch V(L)","Segregated Acc",null,"Quoted: Bonds and Debentures - Cell 16",{"$f":"'Schedule V(l)'!S16","v":0}]
["Sch V(L)","Segregated Acc",null,"Quoted: Equites - Cell 16",{"$f":"'Schedule V(l)'!S17","v":0}]
["Sch V(L)","Segregated Acc",null,"Quoted: Other  - Cell 16",{"$f":"'Schedule V(l)'!S18","v":0}]
["Sch V(L)","Segregated Acc",null,"Unquoted: Bonds and Debentures - Cell 16",{"$f":"'Schedule V(l)'!S19","v":0}]
["Sch V(L)","Segregated Acc",null,"Unquoted: Equities - Cell 16",{"$f":"'Schedule V(l)'!S20","v":0}]
["Sch V(L)","Segregated Acc",null,"Unquoted: Other - Cell 16",{"$f":"'Schedule V(l)'!S21","v":0}]
["Sch V(L)","Segregated Acc",null,"Due from Affiliates - Cell 16",{"$f":"'Schedule V(l)'!S22","v":0}]
["Sch V(L)","Segregated Acc",null,"Due to Affiliates - Cell 16",{"$f":"'Schedule V(l)'!S23","v":0}]
["Sch V(L)","Segregated Acc",null,"Net Loss & Loss Expense Provisions - Cell 16",{"$f":"'Schedule V(l)'!S24","v":0}]
["Sch V(L)","Segregated Acc",null,"Prior Year loss reserve development - Cell 16",{"$f":"'Schedule V(l)'!S25","v":0}]
["Sch V(L)","Segregated Acc",null,"Reinsurance Recoverable Balance - Cell 16",{"$f":"'Schedule V(l)'!S26","v":0}]
["Sch V(L)","Segregated Acc",null,"Cell is in Run-Off - Cell 16",{"$f":"'Schedule V(l)'!S27","v":"Select Yes/No"}]
["Sch V(L)","Segregated Acc",null,"currency used - Cell 16",{"$f":"'Schedule V(l)'!S28","v":"Select Currency"}]
["Sch V(L)","Segregated Acc",null,"Cell to Cell Activity  - Cell 16",{"$f":"'Schedule V(l)'!S29","v":"Confirm Activity"}]
["Sch V(L)","Segregated Acc",null,"Cell to Cell Activity Details - Cell 16",{"$f":"'Schedule V(l)'!S30","v":0}]
["Sch V(L)","Segregated Acc",null,"General Cell to Cell Activity - Cell 16",{"$f":"'Schedule V(l)'!S31","v":"Confirm Activity"}]
["Sch V(L)","Segregated Acc",null,"General Cell to Cell Activity Details - Cell 16",{"$f":"'Schedule V(l)'!S32","v":0}]
["Sch V(L)","Segregated Acc",null,"Cell Deficit - Cell 16",{"$f":"'Schedule V(l)'!S33","v":0}]
["Sch V(L)","Segregated Acc",null,"Additional Capital Support - Cell 16",{"$f":"'Schedule V(l)'!S34","v":"Confirm"}]
["Sch V(L)","Segregated Acc",null,"Additional Capital Support Details - Cell 16",{"$f":"'Schedule V(l)'!S35","v":0}]
["Sch V(L)","Segregated Acc",null,"Details of Benefical Owners of Risk - Cell 16",{"$f":"'Schedule V(l)'!S36","v":"Confirm"}]
["Sch V(L)","Segregated Acc",null,"Details of Benefical Owners of Cell - Cell 16",{"$f":"'Schedule V(l)'!S37","v":"Confirm"}]
["Sch V(L)","Segregated Acc",null,"Benefical Owners - Cell 16",{"$f":"'Schedule V(l)'!S38","v":"Confirm"}]
["Sch V(L)","Segregated Acc",null,"Benefical Ownership - Cell 16",{"$f":"'Schedule V(l)'!S39","v":"Confirm Ownership"}]
["Sch V(L)","Segregated Acc",null,"Benefical Ownership Add. Details - Cell 16",{"$f":"'Schedule V(l)'!S40","v":0}]
["Sch V(L)","Segregated Acc",null,"Jurisdiction - Cell 16",{"$f":"'Schedule V(l)'!S41","v":"Confirm Jurisdiction"}]
["Sch V(L)","Segregated Acc",null,"Benefical Ownership Gov Intrument - Cell 16",{"$f":"'Schedule V(l)'!S42","v":"Confirm Instrument"}]
["Sch V(L)","Segregated Acc",null,"Benefical Ownership Gov Intrument Det. - Cell 16",{"$f":"'Schedule V(l)'!S43","v":0}]
["Sch V(L)","Segregated Acc",null,"Indemnity Provisions - Cell 16",{"$f":"'Schedule V(l)'!S44","v":"Select Yes/No"}]
["Sch V(L)","Segregated Acc",null,"Limited recourse  - Cell 16",{"$f":"'Schedule V(l)'!S45","v":"Select Yes/No"}]
["Sch V(L)","Segregated Acc",null,"Primary Cell Funding - Cell 16",{"$f":"'Schedule V(l)'!S46","v":"Select Funding"}]
["Sch V(L)","Segregated Acc",null,"Limit of Cell  Funding/ Collateral - Cell 16",{"$f":"'Schedule V(l)'!S47","v":"Confirm Funding / Collateral"}]
["Sch V(L)","Segregated Acc",null,"Limit of Cell  Funding/ Collateral Details - Cell 16",{"$f":"'Schedule V(l)'!S48","v":0}]
["Sch V(L)","Segregated Acc",null,"Operational Risk Mitigants - Cell 16",{"$f":"'Schedule V(l)'!S49","v":"Confirm Mitigants & Attach Support"}]
["Sch V(L)","Segregated Acc",null,"i) Statutory Line of Business - Cell 16",{"$f":"'Schedule V(l)'!S55","v":"Select Line of Business"}]
["Sch V(L)","Segregated Acc",null,"i) GPW - Cell 16",{"$f":"'Schedule V(l)'!S56","v":0}]
["Sch V(L)","Segregated Acc",null,"i) Premiums Ceded - Cell 16",{"$f":"'Schedule V(l)'!S57","v":0}]
["Sch V(L)","Segregated Acc",null,"i) NPW - Cell 16",{"$f":"'Schedule V(l)'!S58","v":0}]
["Sch V(L)","Segregated Acc",null,"ii) Statutory Line of Business - Cell 16",{"$f":"'Schedule V(l)'!S59","v":"Select Line of Business"}]
["Sch V(L)","Segregated Acc",null,"ii) GPW - Cell 16",{"$f":"'Schedule V(l)'!S60","v":0}]
["Sch V(L)","Segregated Acc",null,"ii) Premiums Ceded - Cell 16",{"$f":"'Schedule V(l)'!S61","v":0}]
["Sch V(L)","Segregated Acc",null,"ii) NPW - Cell 16",{"$f":"'Schedule V(l)'!S62","v":0}]
["Sch V(L)","Segregated Acc",null,"iii) Statutory Line of Business - Cell 16",{"$f":"'Schedule V(l)'!S63","v":"Select Line of Business"}]
["Sch V(L)","Segregated Acc",null,"iii) GPW - Cell 16",{"$f":"'Schedule V(l)'!S64","v":0}]
["Sch V(L)","Segregated Acc",null,"iii) Premiums Ceded - Cell 16",{"$f":"'Schedule V(l)'!S65","v":0}]
["Sch V(L)","Segregated Acc",null,"iii) NPW - Cell 16",{"$f":"'Schedule V(l)'!S66","v":0}]
["Sch V(L)","Segregated Acc",null,"iv) Statutory Line of Business - Cell 16",{"$f":"'Schedule V(l)'!S67","v":"Select Line of Business"}]
["Sch V(L)","Segregated Acc",null,"iv) GPW - Cell 16",{"$f":"'Schedule V(l)'!S68","v":0}]
["Sch V(L)","Segregated Acc",null,"iv) Premiums Ceded - Cell 16",{"$f":"'Schedule V(l)'!S69","v":0}]
["Sch V(L)","Segregated Acc",null,"iv) NPW - Cell 16",{"$f":"'Schedule V(l)'!S70","v":0}]
["Sch V(L)","Segregated Acc",null,"v) Statutory Line of Business - Cell 16",{"$f":"'Schedule V(l)'!S71","v":"Select Line of Business"}]
["Sch V(L)","Segregated Acc",null,"v) GPW - Cell 16",{"$f":"'Schedule V(l)'!S72","v":0}]
["Sch V(L)","Segregated Acc",null,"v) Premiums Ceded - Cell 16",{"$f":"'Schedule V(l)'!S73","v":0}]
["Sch V(L)","Segregated Acc",null,"v) NPW - Cell 16",{"$f":"'Schedule V(l)'!S74","v":0}]
["Sch V(L)","Segregated Acc",null,"Cell Ref # - Cell 17",{"$f":"'Schedule V(l)'!T6","v":0}]
["Sch V(L)","Segregated Acc",null,"Cell name - Cell 17",{"$f":"'Schedule V(l)'!T7","v":0}]
["Sch V(L)","Segregated Acc",null,"Direct Insurer, Reinsurer or Both - Cell 17",{"$f":"'Schedule V(l)'!T8","v":"Select Premiums Written"}]
["Sch V(L)","Segregated Acc",null,"Total Assets - Cell 17",{"$f":"'Schedule V(l)'!T9","v":0}]
["Sch V(L)","Segregated Acc",null,"Total Liabilities - Cell 17",{"$f":"'Schedule V(l)'!T10","v":0}]
["Sch V(L)","Segregated Acc",null,"Statutory Surplus - Cell 17",{"$f":"'Schedule V(l)'!T11","v":0}]
["Sch V(L)","Segregated Acc",null,"Statutory Capital - Cell 17",{"$f":"'Schedule V(l)'!T12","v":0}]
["Sch V(L)","Segregated Acc",null,"Net Income - Cell 17",{"$f":"'Schedule V(l)'!T14","v":0}]
["Sch V(L)","Segregated Acc",null,"Cash  - Cell 17",{"$f":"'Schedule V(l)'!T15","v":0}]
["Sch V(L)","Segregated Acc",null,"Quoted: Bonds and Debentures - Cell 17",{"$f":"'Schedule V(l)'!T16","v":0}]
["Sch V(L)","Segregated Acc",null,"Quoted: Equites - Cell 17",{"$f":"'Schedule V(l)'!T17","v":0}]
["Sch V(L)","Segregated Acc",null,"Quoted: Other  - Cell 17",{"$f":"'Schedule V(l)'!T18","v":0}]
["Sch V(L)","Segregated Acc",null,"Unquoted: Bonds and Debentures - Cell 17",{"$f":"'Schedule V(l)'!T19","v":0}]
["Sch V(L)","Segregated Acc",null,"Unquoted: Equities - Cell 17",{"$f":"'Schedule V(l)'!T20","v":0}]
["Sch V(L)","Segregated Acc",null,"Unquoted: Other - Cell 17",{"$f":"'Schedule V(l)'!T21","v":0}]
["Sch V(L)","Segregated Acc",null,"Due from Affiliates - Cell 17",{"$f":"'Schedule V(l)'!T22","v":0}]
["Sch V(L)","Segregated Acc",null,"Due to Affiliates - Cell 17",{"$f":"'Schedule V(l)'!T23","v":0}]
["Sch V(L)","Segregated Acc",null,"Net Loss & Loss Expense Provisions - Cell 17",{"$f":"'Schedule V(l)'!T24","v":0}]
["Sch V(L)","Segregated Acc",null,"Prior Year loss reserve development - Cell 17",{"$f":"'Schedule V(l)'!T25","v":0}]
["Sch V(L)","Segregated Acc",null,"Reinsurance Recoverable Balance - Cell 17",{"$f":"'Schedule V(l)'!T26","v":0}]
["Sch V(L)","Segregated Acc",null,"Cell is in Run-Off - Cell 17",{"$f":"'Schedule V(l)'!T27","v":"Select Yes/No"}]
["Sch V(L)","Segregated Acc",null,"currency used - Cell 17",{"$f":"'Schedule V(l)'!T28","v":"Select Currency"}]
["Sch V(L)","Segregated Acc",null,"Cell to Cell Activity  - Cell 17",{"$f":"'Schedule V(l)'!T29","v":"Confirm Activity"}]
["Sch V(L)","Segregated Acc",null,"Cell to Cell Activity Details - Cell 17",{"$f":"'Schedule V(l)'!T30","v":0}]
["Sch V(L)","Segregated Acc",null,"General Cell to Cell Activity - Cell 17",{"$f":"'Schedule V(l)'!T31","v":"Confirm Activity"}]
["Sch V(L)","Segregated Acc",null,"General Cell to Cell Activity Details - Cell 17",{"$f":"'Schedule V(l)'!T32","v":0}]
["Sch V(L)","Segregated Acc",null,"Cell Deficit - Cell 17",{"$f":"'Schedule V(l)'!T33","v":0}]
["Sch V(L)","Segregated Acc",null,"Additional Capital Support - Cell 17",{"$f":"'Schedule V(l)'!T34","v":"Confirm"}]
["Sch V(L)","Segregated Acc",null,"Additional Capital Support Details - Cell 17",{"$f":"'Schedule V(l)'!T35","v":0}]
["Sch V(L)","Segregated Acc",null,"Details of Benefical Owners of Risk - Cell 17",{"$f":"'Schedule V(l)'!T36","v":"Confirm"}]
["Sch V(L)","Segregated Acc",null,"Details of Benefical Owners of Cell - Cell 17",{"$f":"'Schedule V(l)'!T37","v":"Confirm"}]
["Sch V(L)","Segregated Acc",null,"Benefical Owners - Cell 17",{"$f":"'Schedule V(l)'!T38","v":"Confirm"}]
["Sch V(L)","Segregated Acc",null,"Benefical Ownership - Cell 17",{"$f":"'Schedule V(l)'!T39","v":"Confirm Ownership"}]
["Sch V(L)","Segregated Acc",null,"Benefical Ownership Add. Details - Cell 17",{"$f":"'Schedule V(l)'!T40","v":0}]
["Sch V(L)","Segregated Acc",null,"Jurisdiction - Cell 17",{"$f":"'Schedule V(l)'!T41","v":"Confirm Jurisdiction"}]
["Sch V(L)","Segregated Acc",null,"Benefical Ownership Gov Intrument - Cell 17",{"$f":"'Schedule V(l)'!T42","v":"Confirm Instrument"}]
["Sch V(L)","Segregated Acc",null,"Benefical Ownership Gov Intrument Det. - Cell 17",{"$f":"'Schedule V(l)'!T43","v":0}]
["Sch V(L)","Segregated Acc",null,"Indemnity Provisions - Cell 17",{"$f":"'Schedule V(l)'!T44","v":"Select Yes/No"}]
["Sch V(L)","Segregated Acc",null,"Limited recourse  - Cell 17",{"$f":"'Schedule V(l)'!T45","v":"Select Yes/No"}]
["Sch V(L)","Segregated Acc",null,"Primary Cell Funding - Cell 17",{"$f":"'Schedule V(l)'!T46","v":"Select Funding"}]
["Sch V(L)","Segregated Acc",null,"Limit of Cell  Funding/ Collateral - Cell 17",{"$f":"'Schedule V(l)'!T47","v":"Confirm Funding / Collateral"}]
["Sch V(L)","Segregated Acc",null,"Limit of Cell  Funding/ Collateral Details - Cell 17",{"$f":"'Schedule V(l)'!T48","v":0}]
["Sch V(L)","Segregated Acc",null,"Operational Risk Mitigants - Cell 17",{"$f":"'Schedule V(l)'!T49","v":"Confirm Mitigants & Attach Support"}]
["Sch V(L)","Segregated Acc",null,"i) Statutory Line of Business - Cell 17",{"$f":"'Schedule V(l)'!T55","v":"Select Line of Business"}]
["Sch V(L)","Segregated Acc",null,"i) GPW - Cell 17",{"$f":"'Schedule V(l)'!T56","v":0}]
["Sch V(L)","Segregated Acc",null,"i) Premiums Ceded - Cell 17",{"$f":"'Schedule V(l)'!T57","v":0}]
["Sch V(L)","Segregated Acc",null,"i) NPW - Cell 17",{"$f":"'Schedule V(l)'!T58","v":0}]
["Sch V(L)","Segregated Acc",null,"ii) Statutory Line of Business - Cell 17",{"$f":"'Schedule V(l)'!T59","v":"Select Line of Business"}]
["Sch V(L)","Segregated Acc",null,"ii) GPW - Cell 17",{"$f":"'Schedule V(l)'!T60","v":0}]
["Sch V(L)","Segregated Acc",null,"ii) Premiums Ceded - Cell 17",{"$f":"'Schedule V(l)'!T61","v":0}]
["Sch V(L)","Segregated Acc",null,"ii) NPW - Cell 17",{"$f":"'Schedule V(l)'!T62","v":0}]
["Sch V(L)","Segregated Acc",null,"iii) Statutory Line of Business - Cell 17",{"$f":"'Schedule V(l)'!T63","v":"Select Line of Business"}]
["Sch V(L)","Segregated Acc",null,"iii) GPW - Cell 17",{"$f":"'Schedule V(l)'!T64","v":0}]
["Sch V(L)","Segregated Acc",null,"iii) Premiums Ceded - Cell 17",{"$f":"'Schedule V(l)'!T65","v":0}]
["Sch V(L)","Segregated Acc",null,"iii) NPW - Cell 17",{"$f":"'Schedule V(l)'!T66","v":0}]
["Sch V(L)","Segregated Acc",null,"iv) Statutory Line of Business - Cell 17",{"$f":"'Schedule V(l)'!T67","v":"Select Line of Business"}]
["Sch V(L)","Segregated Acc",null,"iv) GPW - Cell 17",{"$f":"'Schedule V(l)'!T68","v":0}]
["Sch V(L)","Segregated Acc",null,"iv) Premiums Ceded - Cell 17",{"$f":"'Schedule V(l)'!T69","v":0}]
["Sch V(L)","Segregated Acc",null,"iv) NPW - Cell 17",{"$f":"'Schedule V(l)'!T70","v":0}]
["Sch V(L)","Segregated Acc",null,"v) Statutory Line of Business - Cell 17",{"$f":"'Schedule V(l)'!T71","v":"Select Line of Business"}]
["Sch V(L)","Segregated Acc",null,"v) GPW - Cell 17",{"$f":"'Schedule V(l)'!T72","v":0}]
["Sch V(L)","Segregated Acc",null,"v) Premiums Ceded - Cell 17",{"$f":"'Schedule V(l)'!T73","v":0}]
["Sch V(L)","Segregated Acc",null,"v) NPW - Cell 17",{"$f":"'Schedule V(l)'!T74","v":0}]
["Sch V(L)","Segregated Acc",null,"Cell Ref # - Cell 18",{"$f":"'Schedule V(l)'!U6","v":0}]
["Sch V(L)","Segregated Acc",null,"Cell name - Cell 18",{"$f":"'Schedule V(l)'!U7","v":0}]
["Sch V(L)","Segregated Acc",null,"Direct Insurer, Reinsurer or Both - Cell 18",{"$f":"'Schedule V(l)'!U8","v":"Select Premiums Written"}]
["Sch V(L)","Segregated Acc",null,"Total Assets - Cell 18",{"$f":"'Schedule V(l)'!U9","v":0}]
["Sch V(L)","Segregated Acc",null,"Total Liabilities - Cell 18",{"$f":"'Schedule V(l)'!U10","v":0}]
["Sch V(L)","Segregated Acc",null,"Statutory Surplus - Cell 18",{"$f":"'Schedule V(l)'!U11","v":0}]
["Sch V(L)","Segregated Acc",null,"Statutory Capital - Cell 18",{"$f":"'Schedule V(l)'!U12","v":0}]
["Sch V(L)","Segregated Acc",null,"Net Income - Cell 18",{"$f":"'Schedule V(l)'!U14","v":0}]
["Sch V(L)","Segregated Acc",null,"Cash  - Cell 18",{"$f":"'Schedule V(l)'!U15","v":0}]
["Sch V(L)","Segregated Acc",null,"Quoted: Bonds and Debentures - Cell 18",{"$f":"'Schedule V(l)'!U16","v":0}]
["Sch V(L)","Segregated Acc",null,"Quoted: Equites - Cell 18",{"$f":"'Schedule V(l)'!U17","v":0}]
["Sch V(L)","Segregated Acc",null,"Quoted: Other  - Cell 18",{"$f":"'Schedule V(l)'!U18","v":0}]
["Sch V(L)","Segregated Acc",null,"Unquoted: Bonds and Debentures - Cell 18",{"$f":"'Schedule V(l)'!U19","v":0}]
["Sch V(L)","Segregated Acc",null,"Unquoted: Equities - Cell 18",{"$f":"'Schedule V(l)'!U20","v":0}]
["Sch V(L)","Segregated Acc",null,"Unquoted: Other - Cell 18",{"$f":"'Schedule V(l)'!U21","v":0}]
["Sch V(L)","Segregated Acc",null,"Due from Affiliates - Cell 18",{"$f":"'Schedule V(l)'!U22","v":0}]
["Sch V(L)","Segregated Acc",null,"Due to Affiliates - Cell 18",{"$f":"'Schedule V(l)'!U23","v":0}]
["Sch V(L)","Segregated Acc",null,"Net Loss & Loss Expense Provisions - Cell 18",{"$f":"'Schedule V(l)'!U24","v":0}]
["Sch V(L)","Segregated Acc",null,"Prior Year loss reserve development - Cell 18",{"$f":"'Schedule V(l)'!U25","v":0}]
["Sch V(L)","Segregated Acc",null,"Reinsurance Recoverable Balance - Cell 18",{"$f":"'Schedule V(l)'!U26","v":0}]
["Sch V(L)","Segregated Acc",null,"Cell is in Run-Off - Cell 18",{"$f":"'Schedule V(l)'!U27","v":"Select Yes/No"}]
["Sch V(L)","Segregated Acc",null,"currency used - Cell 18",{"$f":"'Schedule V(l)'!U28","v":"Select Currency"}]
["Sch V(L)","Segregated Acc",null,"Cell to Cell Activity  - Cell 18",{"$f":"'Schedule V(l)'!U29","v":"Confirm Activity"}]
["Sch V(L)","Segregated Acc",null,"Cell to Cell Activity Details - Cell 18",{"$f":"'Schedule V(l)'!U30","v":0}]
["Sch V(L)","Segregated Acc",null,"General Cell to Cell Activity - Cell 18",{"$f":"'Schedule V(l)'!U31","v":"Confirm Activity"}]
["Sch V(L)","Segregated Acc",null,"General Cell to Cell Activity Details - Cell 18",{"$f":"'Schedule V(l)'!U32","v":0}]
["Sch V(L)","Segregated Acc",null,"Cell Deficit - Cell 18",{"$f":"'Schedule V(l)'!U33","v":0}]
["Sch V(L)","Segregated Acc",null,"Additional Capital Support - Cell 18",{"$f":"'Schedule V(l)'!U34","v":"Confirm"}]
["Sch V(L)","Segregated Acc",null,"Additional Capital Support Details - Cell 18",{"$f":"'Schedule V(l)'!U35","v":0}]
["Sch V(L)","Segregated Acc",null,"Details of Benefical Owners of Risk - Cell 18",{"$f":"'Schedule V(l)'!U36","v":"Confirm"}]
["Sch V(L)","Segregated Acc",null,"Details of Benefical Owners of Cell - Cell 18",{"$f":"'Schedule V(l)'!U37","v":"Confirm"}]
["Sch V(L)","Segregated Acc",null,"Benefical Owners - Cell 18",{"$f":"'Schedule V(l)'!U38","v":"Confirm"}]
["Sch V(L)","Segregated Acc",null,"Benefical Ownership - Cell 18",{"$f":"'Schedule V(l)'!U39","v":"Confirm Ownership"}]
["Sch V(L)","Segregated Acc",null,"Benefical Ownership Add. Details - Cell 18",{"$f":"'Schedule V(l)'!U40","v":0}]
["Sch V(L)","Segregated Acc",null,"Jurisdiction - Cell 18",{"$f":"'Schedule V(l)'!U41","v":"Confirm Jurisdiction"}]
["Sch V(L)","Segregated Acc",null,"Benefical Ownership Gov Intrument - Cell 18",{"$f":"'Schedule V(l)'!U42","v":"Confirm Instrument"}]
["Sch V(L)","Segregated Acc",null,"Benefical Ownership Gov Intrument Det. - Cell 18",{"$f":"'Schedule V(l)'!U43","v":0}]
["Sch V(L)","Segregated Acc",null,"Indemnity Provisions - Cell 18",{"$f":"'Schedule V(l)'!U44","v":"Select Yes/No"}]
["Sch V(L)","Segregated Acc",null,"Limited recourse  - Cell 18",{"$f":"'Schedule V(l)'!U45","v":"Select Yes/No"}]
["Sch V(L)","Segregated Acc",null,"Primary Cell Funding - Cell 18",{"$f":"'Schedule V(l)'!U46","v":"Select Funding"}]
["Sch V(L)","Segregated Acc",null,"Limit of Cell  Funding/ Collateral - Cell 18",{"$f":"'Schedule V(l)'!U47","v":"Confirm Funding / Collateral"}]
["Sch V(L)","Segregated Acc",null,"Limit of Cell  Funding/ Collateral Details - Cell 18",{"$f":"'Schedule V(l)'!U48","v":0}]
["Sch V(L)","Segregated Acc",null,"Operational Risk Mitigants - Cell 18",{"$f":"'Schedule V(l)'!U49","v":"Confirm Mitigants & Attach Support"}]
["Sch V(L)","Segregated Acc",null,"i) Statutory Line of Business - Cell 18",{"$f":"'Schedule V(l)'!U55","v":"Select Line of Business"}]
["Sch V(L)","Segregated Acc",null,"i) GPW - Cell 18",{"$f":"'Schedule V(l)'!U56","v":0}]
["Sch V(L)","Segregated Acc",null,"i) Premiums Ceded - Cell 18",{"$f":"'Schedule V(l)'!U57","v":0}]
["Sch V(L)","Segregated Acc",null,"i) NPW - Cell 18",{"$f":"'Schedule V(l)'!U58","v":0}]
["Sch V(L)","Segregated Acc",null,"ii) Statutory Line of Business - Cell 18",{"$f":"'Schedule V(l)'!U59","v":"Select Line of Business"}]
["Sch V(L)","Segregated Acc",null,"ii) GPW - Cell 18",{"$f":"'Schedule V(l)'!U60","v":0}]
["Sch V(L)","Segregated Acc",null,"ii) Premiums Ceded - Cell 18",{"$f":"'Schedule V(l)'!U61","v":0}]
["Sch V(L)","Segregated Acc",null,"ii) NPW - Cell 18",{"$f":"'Schedule V(l)'!U62","v":0}]
["Sch V(L)","Segregated Acc",null,"iii) Statutory Line of Business - Cell 18",{"$f":"'Schedule V(l)'!U63","v":"Select Line of Business"}]
["Sch V(L)","Segregated Acc",null,"iii) GPW - Cell 18",{"$f":"'Schedule V(l)'!U64","v":0}]
["Sch V(L)","Segregated Acc",null,"iii) Premiums Ceded - Cell 18",{"$f":"'Schedule V(l)'!U65","v":0}]
["Sch V(L)","Segregated Acc",null,"iii) NPW - Cell 18",{"$f":"'Schedule V(l)'!U66","v":0}]
["Sch V(L)","Segregated Acc",null,"iv) Statutory Line of Business - Cell 18",{"$f":"'Schedule V(l)'!U67","v":"Select Line of Business"}]
["Sch V(L)","Segregated Acc",null,"iv) GPW - Cell 18",{"$f":"'Schedule V(l)'!U68","v":0}]
["Sch V(L)","Segregated Acc",null,"iv) Premiums Ceded - Cell 18",{"$f":"'Schedule V(l)'!U69","v":0}]
["Sch V(L)","Segregated Acc",null,"iv) NPW - Cell 18",{"$f":"'Schedule V(l)'!U70","v":0}]
["Sch V(L)","Segregated Acc",null,"v) Statutory Line of Business - Cell 18",{"$f":"'Schedule V(l)'!U71","v":"Select Line of Business"}]
["Sch V(L)","Segregated Acc",null,"v) GPW - Cell 18",{"$f":"'Schedule V(l)'!U72","v":0}]
["Sch V(L)","Segregated Acc",null,"v) Premiums Ceded - Cell 18",{"$f":"'Schedule V(l)'!U73","v":0}]
["Sch V(L)","Segregated Acc",null,"v) NPW - Cell 18",{"$f":"'Schedule V(l)'!U74","v":0}]
["Sch V(L)","Segregated Acc",null,"Cell Ref # - Cell 19",{"$f":"'Schedule V(l)'!V6","v":0}]
["Sch V(L)","Segregated Acc",null,"Cell name - Cell 19",{"$f":"'Schedule V(l)'!V7","v":0}]
["Sch V(L)","Segregated Acc",null,"Direct Insurer, Reinsurer or Both - Cell 19",{"$f":"'Schedule V(l)'!V8","v":"Select Premiums Written"}]
["Sch V(L)","Segregated Acc",null,"Total Assets - Cell 19",{"$f":"'Schedule V(l)'!V9","v":0}]
["Sch V(L)","Segregated Acc",null,"Total Liabilities - Cell 19",{"$f":"'Schedule V(l)'!V10","v":0}]
["Sch V(L)","Segregated Acc",null,"Statutory Surplus - Cell 19",{"$f":"'Schedule V(l)'!V11","v":0}]
["Sch V(L)","Segregated Acc",null,"Statutory Capital - Cell 19",{"$f":"'Schedule V(l)'!V12","v":0}]
["Sch V(L)","Segregated Acc",null,"Net Income - Cell 19",{"$f":"'Schedule V(l)'!V14","v":0}]
["Sch V(L)","Segregated Acc",null,"Cash  - Cell 19",{"$f":"'Schedule V(l)'!V15","v":0}]
["Sch V(L)","Segregated Acc",null,"Quoted: Bonds and Debentures - Cell 19",{"$f":"'Schedule V(l)'!V16","v":0}]
["Sch V(L)","Segregated Acc",null,"Quoted: Equites - Cell 19",{"$f":"'Schedule V(l)'!V17","v":0}]
["Sch V(L)","Segregated Acc",null,"Quoted: Other  - Cell 19",{"$f":"'Schedule V(l)'!V18","v":0}]
["Sch V(L)","Segregated Acc",null,"Unquoted: Bonds and Debentures - Cell 19",{"$f":"'Schedule V(l)'!V19","v":0}]
["Sch V(L)","Segregated Acc",null,"Unquoted: Equities - Cell 19",{"$f":"'Schedule V(l)'!V20","v":0}]
["Sch V(L)","Segregated Acc",null,"Unquoted: Other - Cell 19",{"$f":"'Schedule V(l)'!V21","v":0}]
["Sch V(L)","Segregated Acc",null,"Due from Affiliates - Cell 19",{"$f":"'Schedule V(l)'!V22","v":0}]
["Sch V(L)","Segregated Acc",null,"Due to Affiliates - Cell 19",{"$f":"'Schedule V(l)'!V23","v":0}]
["Sch V(L)","Segregated Acc",null,"Net Loss & Loss Expense Provisions - Cell 19",{"$f":"'Schedule V(l)'!V24","v":0}]
["Sch V(L)","Segregated Acc",null,"Prior Year loss reserve development - Cell 19",{"$f":"'Schedule V(l)'!V25","v":0}]
["Sch V(L)","Segregated Acc",null,"Reinsurance Recoverable Balance - Cell 19",{"$f":"'Schedule V(l)'!V26","v":0}]
["Sch V(L)","Segregated Acc",null,"Cell is in Run-Off - Cell 19",{"$f":"'Schedule V(l)'!V27","v":"Select Yes/No"}]
["Sch V(L)","Segregated Acc",null,"currency used - Cell 19",{"$f":"'Schedule V(l)'!V28","v":"Select Currency"}]
["Sch V(L)","Segregated Acc",null,"Cell to Cell Activity  - Cell 19",{"$f":"'Schedule V(l)'!V29","v":"Confirm Activity"}]
["Sch V(L)","Segregated Acc",null,"Cell to Cell Activity Details - Cell 19",{"$f":"'Schedule V(l)'!V30","v":0}]
["Sch V(L)","Segregated Acc",null,"General Cell to Cell Activity - Cell 19",{"$f":"'Schedule V(l)'!V31","v":"Confirm Activity"}]
["Sch V(L)","Segregated Acc",null,"General Cell to Cell Activity Details - Cell 19",{"$f":"'Schedule V(l)'!V32","v":0}]
["Sch V(L)","Segregated Acc",null,"Cell Deficit - Cell 19",{"$f":"'Schedule V(l)'!V33","v":0}]
["Sch V(L)","Segregated Acc",null,"Additional Capital Support - Cell 19",{"$f":"'Schedule V(l)'!V34","v":"Confirm"}]
["Sch V(L)","Segregated Acc",null,"Additional Capital Support Details - Cell 19",{"$f":"'Schedule V(l)'!V35","v":0}]
["Sch V(L)","Segregated Acc",null,"Details of Benefical Owners of Risk - Cell 19",{"$f":"'Schedule V(l)'!V36","v":"Confirm"}]
["Sch V(L)","Segregated Acc",null,"Details of Benefical Owners of Cell - Cell 19",{"$f":"'Schedule V(l)'!V37","v":"Confirm"}]
["Sch V(L)","Segregated Acc",null,"Benefical Owners - Cell 19",{"$f":"'Schedule V(l)'!V38","v":"Confirm"}]
["Sch V(L)","Segregated Acc",null,"Benefical Ownership - Cell 19",{"$f":"'Schedule V(l)'!V39","v":"Confirm Ownership"}]
["Sch V(L)","Segregated Acc",null,"Benefical Ownership Add. Details - Cell 19",{"$f":"'Schedule V(l)'!V40","v":0}]
["Sch V(L)","Segregated Acc",null,"Jurisdiction - Cell 19",{"$f":"'Schedule V(l)'!V41","v":"Confirm Jurisdiction"}]
["Sch V(L)","Segregated Acc",null,"Benefical Ownership Gov Intrument - Cell 19",{"$f":"'Schedule V(l)'!V42","v":"Confirm Instrument"}]
["Sch V(L)","Segregated Acc",null,"Benefical Ownership Gov Intrument Det. - Cell 19",{"$f":"'Schedule V(l)'!V43","v":0}]
["Sch V(L)","Segregated Acc",null,"Indemnity Provisions - Cell 19",{"$f":"'Schedule V(l)'!V44","v":"Select Yes/No"}]
["Sch V(L)","Segregated Acc",null,"Limited recourse  - Cell 19",{"$f":"'Schedule V(l)'!V45","v":"Select Yes/No"}]
["Sch V(L)","Segregated Acc",null,"Primary Cell Funding - Cell 19",{"$f":"'Schedule V(l)'!V46","v":"Select Funding"}]
["Sch V(L)","Segregated Acc",null,"Limit of Cell  Funding/ Collateral - Cell 19",{"$f":"'Schedule V(l)'!V47","v":"Confirm Funding / Collateral"}]
["Sch V(L)","Segregated Acc",null,"Limit of Cell  Funding/ Collateral Details - Cell 19",{"$f":"'Schedule V(l)'!V48","v":0}]
["Sch V(L)","Segregated Acc",null,"Operational Risk Mitigants - Cell 19",{"$f":"'Schedule V(l)'!V49","v":"Confirm Mitigants & Attach Support"}]
["Sch V(L)","Segregated Acc",null,"i) Statutory Line of Business - Cell 19",{"$f":"'Schedule V(l)'!V55","v":"Select Line of Business"}]
["Sch V(L)","Segregated Acc",null,"i) GPW - Cell 19",{"$f":"'Schedule V(l)'!V56","v":0}]
["Sch V(L)","Segregated Acc",null,"i) Premiums Ceded - Cell 19",{"$f":"'Schedule V(l)'!V57","v":0}]
["Sch V(L)","Segregated Acc",null,"i) NPW - Cell 19",{"$f":"'Schedule V(l)'!V58","v":0}]
["Sch V(L)","Segregated Acc",null,"ii) Statutory Line of Business - Cell 19",{"$f":"'Schedule V(l)'!V59","v":"Select Line of Business"}]
["Sch V(L)","Segregated Acc",null,"ii) GPW - Cell 19",{"$f":"'Schedule V(l)'!V60","v":0}]
["Sch V(L)","Segregated Acc",null,"ii) Premiums Ceded - Cell 19",{"$f":"'Schedule V(l)'!V61","v":0}]
["Sch V(L)","Segregated Acc",null,"ii) NPW - Cell 19",{"$f":"'Schedule V(l)'!V62","v":0}]
["Sch V(L)","Segregated Acc",null,"iii) Statutory Line of Business - Cell 19",{"$f":"'Schedule V(l)'!V63","v":"Select Line of Business"}]
["Sch V(L)","Segregated Acc",null,"iii) GPW - Cell 19",{"$f":"'Schedule V(l)'!V64","v":0}]
["Sch V(L)","Segregated Acc",null,"iii) Premiums Ceded - Cell 19",{"$f":"'Schedule V(l)'!V65","v":0}]
["Sch V(L)","Segregated Acc",null,"iii) NPW - Cell 19",{"$f":"'Schedule V(l)'!V66","v":0}]
["Sch V(L)","Segregated Acc",null,"iv) Statutory Line of Business - Cell 19",{"$f":"'Schedule V(l)'!V67","v":"Select Line of Business"}]
["Sch V(L)","Segregated Acc",null,"iv) GPW - Cell 19",{"$f":"'Schedule V(l)'!V68","v":0}]
["Sch V(L)","Segregated Acc",null,"iv) Premiums Ceded - Cell 19",{"$f":"'Schedule V(l)'!V69","v":0}]
["Sch V(L)","Segregated Acc",null,"iv) NPW - Cell 19",{"$f":"'Schedule V(l)'!V70","v":0}]
["Sch V(L)","Segregated Acc",null,"v) Statutory Line of Business - Cell 19",{"$f":"'Schedule V(l)'!V71","v":"Select Line of Business"}]
["Sch V(L)","Segregated Acc",null,"v) GPW - Cell 19",{"$f":"'Schedule V(l)'!V72","v":0}]
["Sch V(L)","Segregated Acc",null,"v) Premiums Ceded - Cell 19",{"$f":"'Schedule V(l)'!V73","v":0}]
["Sch V(L)","Segregated Acc",null,"v) NPW - Cell 19",{"$f":"'Schedule V(l)'!V74","v":0}]
["Sch V(L)","Segregated Acc",null,"Cell Ref # - Cell 20",{"$f":"'Schedule V(l)'!W6","v":0}]
["Sch V(L)","Segregated Acc",null,"Cell name - Cell 20",{"$f":"'Schedule V(l)'!W7","v":0}]
["Sch V(L)","Segregated Acc",null,"Direct Insurer, Reinsurer or Both - Cell 20",{"$f":"'Schedule V(l)'!W8","v":"Select Premiums Written"}]
["Sch V(L)","Segregated Acc",null,"Total Assets - Cell 20",{"$f":"'Schedule V(l)'!W9","v":0}]
["Sch V(L)","Segregated Acc",null,"Total Liabilities - Cell 20",{"$f":"'Schedule V(l)'!W10","v":0}]
["Sch V(L)","Segregated Acc",null,"Statutory Surplus - Cell 20",{"$f":"'Schedule V(l)'!W11","v":0}]
["Sch V(L)","Segregated Acc",null,"Statutory Capital - Cell 20",{"$f":"'Schedule V(l)'!W12","v":0}]
["Sch V(L)","Segregated Acc",null,"Net Income - Cell 20",{"$f":"'Schedule V(l)'!W14","v":0}]
["Sch V(L)","Segregated Acc",null,"Cash  - Cell 20",{"$f":"'Schedule V(l)'!W15","v":0}]
["Sch V(L)","Segregated Acc",null,"Quoted: Bonds and Debentures - Cell 20",{"$f":"'Schedule V(l)'!W16","v":0}]
["Sch V(L)","Segregated Acc",null,"Quoted: Equites - Cell 20",{"$f":"'Schedule V(l)'!W17","v":0}]
["Sch V(L)","Segregated Acc",null,"Quoted: Other  - Cell 20",{"$f":"'Schedule V(l)'!W18","v":0}]
["Sch V(L)","Segregated Acc",null,"Unquoted: Bonds and Debentures - Cell 20",{"$f":"'Schedule V(l)'!W19","v":0}]
["Sch V(L)","Segregated Acc",null,"Unquoted: Equities - Cell 20",{"$f":"'Schedule V(l)'!W20","v":0}]
["Sch V(L)","Segregated Acc",null,"Unquoted: Other - Cell 20",{"$f":"'Schedule V(l)'!W21","v":0}]
["Sch V(L)","Segregated Acc",null,"Due from Affiliates - Cell 20",{"$f":"'Schedule V(l)'!W22","v":0}]
["Sch V(L)","Segregated Acc",null,"Due to Affiliates - Cell 20",{"$f":"'Schedule V(l)'!W23","v":0}]
["Sch V(L)","Segregated Acc",null,"Net Loss & Loss Expense Provisions - Cell 20",{"$f":"'Schedule V(l)'!W24","v":0}]
["Sch V(L)","Segregated Acc",null,"Prior Year loss reserve development - Cell 20",{"$f":"'Schedule V(l)'!W25","v":0}]
["Sch V(L)","Segregated Acc",null,"Reinsurance Recoverable Balance - Cell 20",{"$f":"'Schedule V(l)'!W26","v":0}]
["Sch V(L)","Segregated Acc",null,"Cell is in Run-Off - Cell 20",{"$f":"'Schedule V(l)'!W27","v":"Select Yes/No"}]
["Sch V(L)","Segregated Acc",null,"currency used - Cell 20",{"$f":"'Schedule V(l)'!W28","v":"Select Currency"}]
["Sch V(L)","Segregated Acc",null,"Cell to Cell Activity  - Cell 20",{"$f":"'Schedule V(l)'!W29","v":"Confirm Activity"}]
["Sch V(L)","Segregated Acc",null,"Cell to Cell Activity Details - Cell 20",{"$f":"'Schedule V(l)'!W30","v":0}]
["Sch V(L)","Segregated Acc",null,"General Cell to Cell Activity - Cell 20",{"$f":"'Schedule V(l)'!W31","v":"Confirm Activity"}]
["Sch V(L)","Segregated Acc",null,"General Cell to Cell Activity Details - Cell 20",{"$f":"'Schedule V(l)'!W32","v":0}]
["Sch V(L)","Segregated Acc",null,"Cell Deficit - Cell 20",{"$f":"'Schedule V(l)'!W33","v":0}]
["Sch V(L)","Segregated Acc",null,"Additional Capital Support - Cell 20",{"$f":"'Schedule V(l)'!W34","v":"Confirm"}]
["Sch V(L)","Segregated Acc",null,"Additional Capital Support Details - Cell 20",{"$f":"'Schedule V(l)'!W35","v":0}]
["Sch V(L)","Segregated Acc",null,"Details of Benefical Owners of Risk - Cell 20",{"$f":"'Schedule V(l)'!W36","v":"Confirm"}]
["Sch V(L)","Segregated Acc",null,"Details of Benefical Owners of Cell - Cell 20",{"$f":"'Schedule V(l)'!W37","v":"Confirm"}]
["Sch V(L)","Segregated Acc",null,"Benefical Owners - Cell 20",{"$f":"'Schedule V(l)'!W38","v":"Confirm"}]
["Sch V(L)","Segregated Acc",null,"Benefical Ownership - Cell 20",{"$f":"'Schedule V(l)'!W39","v":"Confirm Ownership"}]
["Sch V(L)","Segregated Acc",null,"Benefical Ownership Add. Details - Cell 20",{"$f":"'Schedule V(l)'!W40","v":0}]
["Sch V(L)","Segregated Acc",null,"Jurisdiction - Cell 20",{"$f":"'Schedule V(l)'!W41","v":"Confirm Jurisdiction"}]
["Sch V(L)","Segregated Acc",null,"Benefical Ownership Gov Intrument - Cell 20",{"$f":"'Schedule V(l)'!W42","v":"Confirm Instrument"}]
["Sch V(L)","Segregated Acc",null,"Benefical Ownership Gov Intrument Det. - Cell 20",{"$f":"'Schedule V(l)'!W43","v":0}]
["Sch V(L)","Segregated Acc",null,"Indemnity Provisions - Cell 20",{"$f":"'Schedule V(l)'!W44","v":"Select Yes/No"}]
["Sch V(L)","Segregated Acc",null,"Limited recourse  - Cell 20",{"$f":"'Schedule V(l)'!W45","v":"Select Yes/No"}]
["Sch V(L)","Segregated Acc",null,"Primary Cell Funding - Cell 20",{"$f":"'Schedule V(l)'!W46","v":"Select Funding"}]
["Sch V(L)","Segregated Acc",null,"Limit of Cell  Funding/ Collateral - Cell 20",{"$f":"'Schedule V(l)'!W47","v":"Confirm Funding / Collateral"}]
["Sch V(L)","Segregated Acc",null,"Limit of Cell  Funding/ Collateral Details - Cell 20",{"$f":"'Schedule V(l)'!W48","v":0}]
["Sch V(L)","Segregated Acc",null,"Operational Risk Mitigants - Cell 20",{"$f":"'Schedule V(l)'!W49","v":"Confirm Mitigants & Attach Support"}]
["Sch V(L)","Segregated Acc",null,"i) Statutory Line of Business - Cell 20",{"$f":"'Schedule V(l)'!W55","v":"Select Line of Business"}]
["Sch V(L)","Segregated Acc",null,"i) GPW - Cell 20",{"$f":"'Schedule V(l)'!W56","v":0}]
["Sch V(L)","Segregated Acc",null,"i) Premiums Ceded - Cell 20",{"$f":"'Schedule V(l)'!W57","v":0}]
["Sch V(L)","Segregated Acc",null,"i) NPW - Cell 20",{"$f":"'Schedule V(l)'!W58","v":0}]
["Sch V(L)","Segregated Acc",null,"ii) Statutory Line of Business - Cell 20",{"$f":"'Schedule V(l)'!W59","v":"Select Line of Business"}]
["Sch V(L)","Segregated Acc",null,"ii) GPW - Cell 20",{"$f":"'Schedule V(l)'!W60","v":0}]
["Sch V(L)","Segregated Acc",null,"ii) Premiums Ceded - Cell 20",{"$f":"'Schedule V(l)'!W61","v":0}]
["Sch V(L)","Segregated Acc",null,"ii) NPW - Cell 20",{"$f":"'Schedule V(l)'!W62","v":0}]
["Sch V(L)","Segregated Acc",null,"iii) Statutory Line of Business - Cell 20",{"$f":"'Schedule V(l)'!W63","v":"Select Line of Business"}]
["Sch V(L)","Segregated Acc",null,"iii) GPW - Cell 20",{"$f":"'Schedule V(l)'!W64","v":0}]
["Sch V(L)","Segregated Acc",null,"iii) Premiums Ceded - Cell 20",{"$f":"'Schedule V(l)'!W65","v":0}]
["Sch V(L)","Segregated Acc",null,"iii) NPW - Cell 20",{"$f":"'Schedule V(l)'!W66","v":0}]
["Sch V(L)","Segregated Acc",null,"iv) Statutory Line of Business - Cell 20",{"$f":"'Schedule V(l)'!W67","v":"Select Line of Business"}]
["Sch V(L)","Segregated Acc",null,"iv) GPW - Cell 20",{"$f":"'Schedule V(l)'!W68","v":0}]
["Sch V(L)","Segregated Acc",null,"iv) Premiums Ceded - Cell 20",{"$f":"'Schedule V(l)'!W69","v":0}]
["Sch V(L)","Segregated Acc",null,"iv) NPW - Cell 20",{"$f":"'Schedule V(l)'!W70","v":0}]
["Sch V(L)","Segregated Acc",null,"v) Statutory Line of Business - Cell 20",{"$f":"'Schedule V(l)'!W71","v":"Select Line of Business"}]
["Sch V(L)","Segregated Acc",null,"v) GPW - Cell 20",{"$f":"'Schedule V(l)'!W72","v":0}]
["Sch V(L)","Segregated Acc",null,"v) Premiums Ceded - Cell 20",{"$f":"'Schedule V(l)'!W73","v":0}]
["Sch V(L)","Segregated Acc",null,"v) NPW - Cell 20",{"$f":"'Schedule V(l)'!W74","v":0}]
["Sch V(L)","Segregated Acc",null,"Cell Ref # - Cell 21",{"$f":"'Schedule V(l)'!X6","v":0}]
["Sch V(L)","Segregated Acc",null,"Cell name - Cell 21",{"$f":"'Schedule V(l)'!X7","v":0}]
["Sch V(L)","Segregated Acc",null,"Direct Insurer, Reinsurer or Both - Cell 21",{"$f":"'Schedule V(l)'!X8","v":"Select Premiums Written"}]
["Sch V(L)","Segregated Acc",null,"Total Assets - Cell 21",{"$f":"'Schedule V(l)'!X9","v":0}]
["Sch V(L)","Segregated Acc",null,"Total Liabilities - Cell 21",{"$f":"'Schedule V(l)'!X10","v":0}]
["Sch V(L)","Segregated Acc",null,"Statutory Surplus - Cell 21",{"$f":"'Schedule V(l)'!X11","v":0}]
["Sch V(L)","Segregated Acc",null,"Statutory Capital - Cell 21",{"$f":"'Schedule V(l)'!X12","v":0}]
["Sch V(L)","Segregated Acc",null,"Net Income - Cell 21",{"$f":"'Schedule V(l)'!X14","v":0}]
["Sch V(L)","Segregated Acc",null,"Cash  - Cell 21",{"$f":"'Schedule V(l)'!X15","v":0}]
["Sch V(L)","Segregated Acc",null,"Quoted: Bonds and Debentures - Cell 21",{"$f":"'Schedule V(l)'!X16","v":0}]
["Sch V(L)","Segregated Acc",null,"Quoted: Equites - Cell 21",{"$f":"'Schedule V(l)'!X17","v":0}]
["Sch V(L)","Segregated Acc",null,"Quoted: Other  - Cell 21",{"$f":"'Schedule V(l)'!X18","v":0}]
["Sch V(L)","Segregated Acc",null,"Unquoted: Bonds and Debentures - Cell 21",{"$f":"'Schedule V(l)'!X19","v":0}]
["Sch V(L)","Segregated Acc",null,"Unquoted: Equities - Cell 21",{"$f":"'Schedule V(l)'!X20","v":0}]
["Sch V(L)","Segregated Acc",null,"Unquoted: Other - Cell 21",{"$f":"'Schedule V(l)'!X21","v":0}]
["Sch V(L)","Segregated Acc",null,"Due from Affiliates - Cell 21",{"$f":"'Schedule V(l)'!X22","v":0}]
["Sch V(L)","Segregated Acc",null,"Due to Affiliates - Cell 21",{"$f":"'Schedule V(l)'!X23","v":0}]
["Sch V(L)","Segregated Acc",null,"Net Loss & Loss Expense Provisions - Cell 21",{"$f":"'Schedule V(l)'!X24","v":0}]
["Sch V(L)","Segregated Acc",null,"Prior Year loss reserve development - Cell 21",{"$f":"'Schedule V(l)'!X25","v":0}]
["Sch V(L)","Segregated Acc",null,"Reinsurance Recoverable Balance - Cell 21",{"$f":"'Schedule V(l)'!X26","v":0}]
["Sch V(L)","Segregated Acc",null,"Cell is in Run-Off - Cell 21",{"$f":"'Schedule V(l)'!X27","v":"Select Yes/No"}]
["Sch V(L)","Segregated Acc",null,"currency used - Cell 21",{"$f":"'Schedule V(l)'!X28","v":"Select Currency"}]
["Sch V(L)","Segregated Acc",null,"Cell to Cell Activity  - Cell 21",{"$f":"'Schedule V(l)'!X29","v":"Confirm Activity"}]
["Sch V(L)","Segregated Acc",null,"Cell to Cell Activity Details - Cell 21",{"$f":"'Schedule V(l)'!X30","v":0}]
["Sch V(L)","Segregated Acc",null,"General Cell to Cell Activity - Cell 21",{"$f":"'Schedule V(l)'!X31","v":"Confirm Activity"}]
["Sch V(L)","Segregated Acc",null,"General Cell to Cell Activity Details - Cell 21",{"$f":"'Schedule V(l)'!X32","v":0}]
["Sch V(L)","Segregated Acc",null,"Cell Deficit - Cell 21",{"$f":"'Schedule V(l)'!X33","v":0}]
["Sch V(L)","Segregated Acc",null,"Additional Capital Support - Cell 21",{"$f":"'Schedule V(l)'!X34","v":"Confirm"}]
["Sch V(L)","Segregated Acc",null,"Additional Capital Support Details - Cell 21",{"$f":"'Schedule V(l)'!X35","v":0}]
["Sch V(L)","Segregated Acc",null,"Details of Benefical Owners of Risk - Cell 21",{"$f":"'Schedule V(l)'!X36","v":"Confirm"}]
["Sch V(L)","Segregated Acc",null,"Details of Benefical Owners of Cell - Cell 21",{"$f":"'Schedule V(l)'!X37","v":"Confirm"}]
["Sch V(L)","Segregated Acc",null,"Benefical Owners - Cell 21",{"$f":"'Schedule V(l)'!X38","v":"Confirm"}]
["Sch V(L)","Segregated Acc",null,"Benefical Ownership - Cell 21",{"$f":"'Schedule V(l)'!X39","v":"Confirm Ownership"}]
["Sch V(L)","Segregated Acc",null,"Benefical Ownership Add. Details - Cell 21",{"$f":"'Schedule V(l)'!X40","v":0}]
["Sch V(L)","Segregated Acc",null,"Jurisdiction - Cell 21",{"$f":"'Schedule V(l)'!X41","v":"Confirm Jurisdiction"}]
["Sch V(L)","Segregated Acc",null,"Benefical Ownership Gov Intrument - Cell 21",{"$f":"'Schedule V(l)'!X42","v":"Confirm Instrument"}]
["Sch V(L)","Segregated Acc",null,"Benefical Ownership Gov Intrument Det. - Cell 21",{"$f":"'Schedule V(l)'!X43","v":0}]
["Sch V(L)","Segregated Acc",null,"Indemnity Provisions - Cell 21",{"$f":"'Schedule V(l)'!X44","v":"Select Yes/No"}]
["Sch V(L)","Segregated Acc",null,"Limited recourse  - Cell 21",{"$f":"'Schedule V(l)'!X45","v":"Select Yes/No"}]
["Sch V(L)","Segregated Acc",null,"Primary Cell Funding - Cell 21",{"$f":"'Schedule V(l)'!X46","v":"Select Funding"}]
["Sch V(L)","Segregated Acc",null,"Limit of Cell  Funding/ Collateral - Cell 21",{"$f":"'Schedule V(l)'!X47","v":"Confirm Funding / Collateral"}]
["Sch V(L)","Segregated Acc",null,"Limit of Cell  Funding/ Collateral Details - Cell 21",{"$f":"'Schedule V(l)'!X48","v":0}]
["Sch V(L)","Segregated Acc",null,"Operational Risk Mitigants - Cell 21",{"$f":"'Schedule V(l)'!X49","v":"Confirm Mitigants & Attach Support"}]
["Sch V(L)","Segregated Acc",null,"i) Statutory Line of Business - Cell 21",{"$f":"'Schedule V(l)'!X55","v":"Select Line of Business"}]
["Sch V(L)","Segregated Acc",null,"i) GPW - Cell 21",{"$f":"'Schedule V(l)'!X56","v":0}]
["Sch V(L)","Segregated Acc",null,"i) Premiums Ceded - Cell 21",{"$f":"'Schedule V(l)'!X57","v":0}]
["Sch V(L)","Segregated Acc",null,"i) NPW - Cell 21",{"$f":"'Schedule V(l)'!X58","v":0}]
["Sch V(L)","Segregated Acc",null,"ii) Statutory Line of Business - Cell 21",{"$f":"'Schedule V(l)'!X59","v":"Select Line of Business"}]
["Sch V(L)","Segregated Acc",null,"ii) GPW - Cell 21",{"$f":"'Schedule V(l)'!X60","v":0}]
["Sch V(L)","Segregated Acc",null,"ii) Premiums Ceded - Cell 21",{"$f":"'Schedule V(l)'!X61","v":0}]
["Sch V(L)","Segregated Acc",null,"ii) NPW - Cell 21",{"$f":"'Schedule V(l)'!X62","v":0}]
["Sch V(L)","Segregated Acc",null,"iii) Statutory Line of Business - Cell 21",{"$f":"'Schedule V(l)'!X63","v":"Select Line of Business"}]
["Sch V(L)","Segregated Acc",null,"iii) GPW - Cell 21",{"$f":"'Schedule V(l)'!X64","v":0}]
["Sch V(L)","Segregated Acc",null,"iii) Premiums Ceded - Cell 21",{"$f":"'Schedule V(l)'!X65","v":0}]
["Sch V(L)","Segregated Acc",null,"iii) NPW - Cell 21",{"$f":"'Schedule V(l)'!X66","v":0}]
["Sch V(L)","Segregated Acc",null,"iv) Statutory Line of Business - Cell 21",{"$f":"'Schedule V(l)'!X67","v":"Select Line of Business"}]
["Sch V(L)","Segregated Acc",null,"iv) GPW - Cell 21",{"$f":"'Schedule V(l)'!X68","v":0}]
["Sch V(L)","Segregated Acc",null,"iv) Premiums Ceded - Cell 21",{"$f":"'Schedule V(l)'!X69","v":0}]
["Sch V(L)","Segregated Acc",null,"iv) NPW - Cell 21",{"$f":"'Schedule V(l)'!X70","v":0}]
["Sch V(L)","Segregated Acc",null,"v) Statutory Line of Business - Cell 21",{"$f":"'Schedule V(l)'!X71","v":"Select Line of Business"}]
["Sch V(L)","Segregated Acc",null,"v) GPW - Cell 21",{"$f":"'Schedule V(l)'!X72","v":0}]
["Sch V(L)","Segregated Acc",null,"v) Premiums Ceded - Cell 21",{"$f":"'Schedule V(l)'!X73","v":0}]
["Sch V(L)","Segregated Acc",null,"v) NPW - Cell 21",{"$f":"'Schedule V(l)'!X74","v":0}]
["Sch V(L)","Segregated Acc",null,"Cell Ref # - Cell 22",{"$f":"'Schedule V(l)'!Y6","v":0}]
["Sch V(L)","Segregated Acc",null,"Cell name - Cell 22",{"$f":"'Schedule V(l)'!Y7","v":0}]
["Sch V(L)","Segregated Acc",null,"Direct Insurer, Reinsurer or Both - Cell 22",{"$f":"'Schedule V(l)'!Y8","v":"Select Premiums Written"}]
["Sch V(L)","Segregated Acc",null,"Total Assets - Cell 22",{"$f":"'Schedule V(l)'!Y9","v":0}]
["Sch V(L)","Segregated Acc",null,"Total Liabilities - Cell 22",{"$f":"'Schedule V(l)'!Y10","v":0}]
["Sch V(L)","Segregated Acc",null,"Statutory Surplus - Cell 22",{"$f":"'Schedule V(l)'!Y11","v":0}]
["Sch V(L)","Segregated Acc",null,"Statutory Capital - Cell 22",{"$f":"'Schedule V(l)'!Y12","v":0}]
["Sch V(L)","Segregated Acc",null,"Net Income - Cell 22",{"$f":"'Schedule V(l)'!Y14","v":0}]
["Sch V(L)","Segregated Acc",null,"Cash  - Cell 22",{"$f":"'Schedule V(l)'!Y15","v":0}]
["Sch V(L)","Segregated Acc",null,"Quoted: Bonds and Debentures - Cell 22",{"$f":"'Schedule V(l)'!Y16","v":0}]
["Sch V(L)","Segregated Acc",null,"Quoted: Equites - Cell 22",{"$f":"'Schedule V(l)'!Y17","v":0}]
["Sch V(L)","Segregated Acc",null,"Quoted: Other  - Cell 22",{"$f":"'Schedule V(l)'!Y18","v":0}]
["Sch V(L)","Segregated Acc",null,"Unquoted: Bonds and Debentures - Cell 22",{"$f":"'Schedule V(l)'!Y19","v":0}]
["Sch V(L)","Segregated Acc",null,"Unquoted: Equities - Cell 22",{"$f":"'Schedule V(l)'!Y20","v":0}]
["Sch V(L)","Segregated Acc",null,"Unquoted: Other - Cell 22",{"$f":"'Schedule V(l)'!Y21","v":0}]
["Sch V(L)","Segregated Acc",null,"Due from Affiliates - Cell 22",{"$f":"'Schedule V(l)'!Y22","v":0}]
["Sch V(L)","Segregated Acc",null,"Due to Affiliates - Cell 22",{"$f":"'Schedule V(l)'!Y23","v":0}]
["Sch V(L)","Segregated Acc",null,"Net Loss & Loss Expense Provisions - Cell 22",{"$f":"'Schedule V(l)'!Y24","v":0}]
["Sch V(L)","Segregated Acc",null,"Prior Year loss reserve development - Cell 22",{"$f":"'Schedule V(l)'!Y25","v":0}]
["Sch V(L)","Segregated Acc",null,"Reinsurance Recoverable Balance - Cell 22",{"$f":"'Schedule V(l)'!Y26","v":0}]
["Sch V(L)","Segregated Acc",null,"Cell is in Run-Off - Cell 22",{"$f":"'Schedule V(l)'!Y27","v":"Select Yes/No"}]
["Sch V(L)","Segregated Acc",null,"currency used - Cell 22",{"$f":"'Schedule V(l)'!Y28","v":"Select Currency"}]
["Sch V(L)","Segregated Acc",null,"Cell to Cell Activity  - Cell 22",{"$f":"'Schedule V(l)'!Y29","v":"Confirm Activity"}]
["Sch V(L)","Segregated Acc",null,"Cell to Cell Activity Details - Cell 22",{"$f":"'Schedule V(l)'!Y30","v":0}]
["Sch V(L)","Segregated Acc",null,"General Cell to Cell Activity - Cell 22",{"$f":"'Schedule V(l)'!Y31","v":"Confirm Activity"}]
["Sch V(L)","Segregated Acc",null,"General Cell to Cell Activity Details - Cell 22",{"$f":"'Schedule V(l)'!Y32","v":0}]
["Sch V(L)","Segregated Acc",null,"Cell Deficit - Cell 22",{"$f":"'Schedule V(l)'!Y33","v":0}]
["Sch V(L)","Segregated Acc",null,"Additional Capital Support - Cell 22",{"$f":"'Schedule V(l)'!Y34","v":"Confirm"}]
["Sch V(L)","Segregated Acc",null,"Additional Capital Support Details - Cell 22",{"$f":"'Schedule V(l)'!Y35","v":0}]
["Sch V(L)","Segregated Acc",null,"Details of Benefical Owners of Risk - Cell 22",{"$f":"'Schedule V(l)'!Y36","v":"Confirm"}]
["Sch V(L)","Segregated Acc",null,"Details of Benefical Owners of Cell - Cell 22",{"$f":"'Schedule V(l)'!Y37","v":"Confirm"}]
["Sch V(L)","Segregated Acc",null,"Benefical Owners - Cell 22",{"$f":"'Schedule V(l)'!Y38","v":"Confirm"}]
["Sch V(L)","Segregated Acc",null,"Benefical Ownership - Cell 22",{"$f":"'Schedule V(l)'!Y39","v":"Confirm Ownership"}]
["Sch V(L)","Segregated Acc",null,"Benefical Ownership Add. Details - Cell 22",{"$f":"'Schedule V(l)'!Y40","v":0}]
["Sch V(L)","Segregated Acc",null,"Jurisdiction - Cell 22",{"$f":"'Schedule V(l)'!Y41","v":"Confirm Jurisdiction"}]
["Sch V(L)","Segregated Acc",null,"Benefical Ownership Gov Intrument - Cell 22",{"$f":"'Schedule V(l)'!Y42","v":"Confirm Instrument"}]
["Sch V(L)","Segregated Acc",null,"Benefical Ownership Gov Intrument Det. - Cell 22",{"$f":"'Schedule V(l)'!Y43","v":0}]
["Sch V(L)","Segregated Acc",null,"Indemnity Provisions - Cell 22",{"$f":"'Schedule V(l)'!Y44","v":"Select Yes/No"}]
["Sch V(L)","Segregated Acc",null,"Limited recourse  - Cell 22",{"$f":"'Schedule V(l)'!Y45","v":"Select Yes/No"}]
["Sch V(L)","Segregated Acc",null,"Primary Cell Funding - Cell 22",{"$f":"'Schedule V(l)'!Y46","v":"Select Funding"}]
["Sch V(L)","Segregated Acc",null,"Limit of Cell  Funding/ Collateral - Cell 22",{"$f":"'Schedule V(l)'!Y47","v":"Confirm Funding / Collateral"}]
["Sch V(L)","Segregated Acc",null,"Limit of Cell  Funding/ Collateral Details - Cell 22",{"$f":"'Schedule V(l)'!Y48","v":0}]
["Sch V(L)","Segregated Acc",null,"Operational Risk Mitigants - Cell 22",{"$f":"'Schedule V(l)'!Y49","v":"Confirm Mitigants & Attach Support"}]
["Sch V(L)","Segregated Acc",null,"i) Statutory Line of Business - Cell 22",{"$f":"'Schedule V(l)'!Y55","v":"Select Line of Business"}]
["Sch V(L)","Segregated Acc",null,"i) GPW - Cell 22",{"$f":"'Schedule V(l)'!Y56","v":0}]
["Sch V(L)","Segregated Acc",null,"i) Premiums Ceded - Cell 22",{"$f":"'Schedule V(l)'!Y57","v":0}]
["Sch V(L)","Segregated Acc",null,"i) NPW - Cell 22",{"$f":"'Schedule V(l)'!Y58","v":0}]
["Sch V(L)","Segregated Acc",null,"ii) Statutory Line of Business - Cell 22",{"$f":"'Schedule V(l)'!Y59","v":"Select Line of Business"}]
["Sch V(L)","Segregated Acc",null,"ii) GPW - Cell 22",{"$f":"'Schedule V(l)'!Y60","v":0}]
["Sch V(L)","Segregated Acc",null,"ii) Premiums Ceded - Cell 22",{"$f":"'Schedule V(l)'!Y61","v":0}]
["Sch V(L)","Segregated Acc",null,"ii) NPW - Cell 22",{"$f":"'Schedule V(l)'!Y62","v":0}]
["Sch V(L)","Segregated Acc",null,"iii) Statutory Line of Business - Cell 22",{"$f":"'Schedule V(l)'!Y63","v":"Select Line of Business"}]
["Sch V(L)","Segregated Acc",null,"iii) GPW - Cell 22",{"$f":"'Schedule V(l)'!Y64","v":0}]
["Sch V(L)","Segregated Acc",null,"iii) Premiums Ceded - Cell 22",{"$f":"'Schedule V(l)'!Y65","v":0}]
["Sch V(L)","Segregated Acc",null,"iii) NPW - Cell 22",{"$f":"'Schedule V(l)'!Y66","v":0}]
["Sch V(L)","Segregated Acc",null,"iv) Statutory Line of Business - Cell 22",{"$f":"'Schedule V(l)'!Y67","v":"Select Line of Business"}]
["Sch V(L)","Segregated Acc",null,"iv) GPW - Cell 22",{"$f":"'Schedule V(l)'!Y68","v":0}]
["Sch V(L)","Segregated Acc",null,"iv) Premiums Ceded - Cell 22",{"$f":"'Schedule V(l)'!Y69","v":0}]
["Sch V(L)","Segregated Acc",null,"iv) NPW - Cell 22",{"$f":"'Schedule V(l)'!Y70","v":0}]
["Sch V(L)","Segregated Acc",null,"v) Statutory Line of Business - Cell 22",{"$f":"'Schedule V(l)'!Y71","v":"Select Line of Business"}]
["Sch V(L)","Segregated Acc",null,"v) GPW - Cell 22",{"$f":"'Schedule V(l)'!Y72","v":0}]
["Sch V(L)","Segregated Acc",null,"v) Premiums Ceded - Cell 22",{"$f":"'Schedule V(l)'!Y73","v":0}]
["Sch V(L)","Segregated Acc",null,"v) NPW - Cell 22",{"$f":"'Schedule V(l)'!Y74","v":0}]
["Sch V(L)","Segregated Acc",null,"Cell Ref # - Cell 23",{"$f":"'Schedule V(l)'!Z6","v":0}]
["Sch V(L)","Segregated Acc",null,"Cell name - Cell 23",{"$f":"'Schedule V(l)'!Z7","v":0}]
["Sch V(L)","Segregated Acc",null,"Direct Insurer, Reinsurer or Both - Cell 23",{"$f":"'Schedule V(l)'!Z8","v":"Select Premiums Written"}]
["Sch V(L)","Segregated Acc",null,"Total Assets - Cell 23",{"$f":"'Schedule V(l)'!Z9","v":0}]
["Sch V(L)","Segregated Acc",null,"Total Liabilities - Cell 23",{"$f":"'Schedule V(l)'!Z10","v":0}]
["Sch V(L)","Segregated Acc",null,"Statutory Surplus - Cell 23",{"$f":"'Schedule V(l)'!Z11","v":0}]
["Sch V(L)","Segregated Acc",null,"Statutory Capital - Cell 23",{"$f":"'Schedule V(l)'!Z12","v":0}]
["Sch V(L)","Segregated Acc",null,"Net Income - Cell 23",{"$f":"'Schedule V(l)'!Z14","v":0}]
["Sch V(L)","Segregated Acc",null,"Cash  - Cell 23",{"$f":"'Schedule V(l)'!Z15","v":0}]
["Sch V(L)","Segregated Acc",null,"Quoted: Bonds and Debentures - Cell 23",{"$f":"'Schedule V(l)'!Z16","v":0}]
["Sch V(L)","Segregated Acc",null,"Quoted: Equites - Cell 23",{"$f":"'Schedule V(l)'!Z17","v":0}]
["Sch V(L)","Segregated Acc",null,"Quoted: Other  - Cell 23",{"$f":"'Schedule V(l)'!Z18","v":0}]
["Sch V(L)","Segregated Acc",null,"Unquoted: Bonds and Debentures - Cell 23",{"$f":"'Schedule V(l)'!Z19","v":0}]
["Sch V(L)","Segregated Acc",null,"Unquoted: Equities - Cell 23",{"$f":"'Schedule V(l)'!Z20","v":0}]
["Sch V(L)","Segregated Acc",null,"Unquoted: Other - Cell 23",{"$f":"'Schedule V(l)'!Z21","v":0}]
["Sch V(L)","Segregated Acc",null,"Due from Affiliates - Cell 23",{"$f":"'Schedule V(l)'!Z22","v":0}]
["Sch V(L)","Segregated Acc",null,"Due to Affiliates - Cell 23",{"$f":"'Schedule V(l)'!Z23","v":0}]
["Sch V(L)","Segregated Acc",null,"Net Loss & Loss Expense Provisions - Cell 23",{"$f":"'Schedule V(l)'!Z24","v":0}]
["Sch V(L)","Segregated Acc",null,"Prior Year loss reserve development - Cell 23",{"$f":"'Schedule V(l)'!Z25","v":0}]
["Sch V(L)","Segregated Acc",null,"Reinsurance Recoverable Balance - Cell 23",{"$f":"'Schedule V(l)'!Z26","v":0}]
["Sch V(L)","Segregated Acc",null,"Cell is in Run-Off - Cell 23",{"$f":"'Schedule V(l)'!Z27","v":"Select Yes/No"}]
["Sch V(L)","Segregated Acc",null,"currency used - Cell 23",{"$f":"'Schedule V(l)'!Z28","v":"Select Currency"}]
["Sch V(L)","Segregated Acc",null,"Cell to Cell Activity  - Cell 23",{"$f":"'Schedule V(l)'!Z29","v":"Confirm Activity"}]
["Sch V(L)","Segregated Acc",null,"Cell to Cell Activity Details - Cell 23",{"$f":"'Schedule V(l)'!Z30","v":0}]
["Sch V(L)","Segregated Acc",null,"General Cell to Cell Activity - Cell 23",{"$f":"'Schedule V(l)'!Z31","v":"Confirm Activity"}]
["Sch V(L)","Segregated Acc",null,"General Cell to Cell Activity Details - Cell 23",{"$f":"'Schedule V(l)'!Z32","v":0}]
["Sch V(L)","Segregated Acc",null,"Cell Deficit - Cell 23",{"$f":"'Schedule V(l)'!Z33","v":0}]
["Sch V(L)","Segregated Acc",null,"Additional Capital Support - Cell 23",{"$f":"'Schedule V(l)'!Z34","v":"Confirm"}]
["Sch V(L)","Segregated Acc",null,"Additional Capital Support Details - Cell 23",{"$f":"'Schedule V(l)'!Z35","v":0}]
["Sch V(L)","Segregated Acc",null,"Details of Benefical Owners of Risk - Cell 23",{"$f":"'Schedule V(l)'!Z36","v":"Confirm"}]
["Sch V(L)","Segregated Acc",null,"Details of Benefical Owners of Cell - Cell 23",{"$f":"'Schedule V(l)'!Z37","v":"Confirm"}]
["Sch V(L)","Segregated Acc",null,"Benefical Owners - Cell 23",{"$f":"'Schedule V(l)'!Z38","v":"Confirm"}]
["Sch V(L)","Segregated Acc",null,"Benefical Ownership - Cell 23",{"$f":"'Schedule V(l)'!Z39","v":"Confirm Ownership"}]
["Sch V(L)","Segregated Acc",null,"Benefical Ownership Add. Details - Cell 23",{"$f":"'Schedule V(l)'!Z40","v":0}]
["Sch V(L)","Segregated Acc",null,"Jurisdiction - Cell 23",{"$f":"'Schedule V(l)'!Z41","v":"Confirm Jurisdiction"}]
["Sch V(L)","Segregated Acc",null,"Benefical Ownership Gov Intrument - Cell 23",{"$f":"'Schedule V(l)'!Z42","v":"Confirm Instrument"}]
["Sch V(L)","Segregated Acc",null,"Benefical Ownership Gov Intrument Det. - Cell 23",{"$f":"'Schedule V(l)'!Z43","v":0}]
["Sch V(L)","Segregated Acc",null,"Indemnity Provisions - Cell 23",{"$f":"'Schedule V(l)'!Z44","v":"Select Yes/No"}]
["Sch V(L)","Segregated Acc",null,"Limited recourse  - Cell 23",{"$f":"'Schedule V(l)'!Z45","v":"Select Yes/No"}]
["Sch V(L)","Segregated Acc",null,"Primary Cell Funding - Cell 23",{"$f":"'Schedule V(l)'!Z46","v":"Select Funding"}]
["Sch V(L)","Segregated Acc",null,"Limit of Cell  Funding/ Collateral - Cell 23",{"$f":"'Schedule V(l)'!Z47","v":"Confirm Funding / Collateral"}]
["Sch V(L)","Segregated Acc",null,"Limit of Cell  Funding/ Collateral Details - Cell 23",{"$f":"'Schedule V(l)'!Z48","v":0}]
["Sch V(L)","Segregated Acc",null,"Operational Risk Mitigants - Cell 23",{"$f":"'Schedule V(l)'!Z49","v":"Confirm Mitigants & Attach Support"}]
["Sch V(L)","Segregated Acc",null,"i) Statutory Line of Business - Cell 23",{"$f":"'Schedule V(l)'!Z55","v":"Select Line of Business"}]
["Sch V(L)","Segregated Acc",null,"i) GPW - Cell 23",{"$f":"'Schedule V(l)'!Z56","v":0}]
["Sch V(L)","Segregated Acc",null,"i) Premiums Ceded - Cell 23",{"$f":"'Schedule V(l)'!Z57","v":0}]
["Sch V(L)","Segregated Acc",null,"i) NPW - Cell 23",{"$f":"'Schedule V(l)'!Z58","v":0}]
["Sch V(L)","Segregated Acc",null,"ii) Statutory Line of Business - Cell 23",{"$f":"'Schedule V(l)'!Z59","v":"Select Line of Business"}]
["Sch V(L)","Segregated Acc",null,"ii) GPW - Cell 23",{"$f":"'Schedule V(l)'!Z60","v":0}]
["Sch V(L)","Segregated Acc",null,"ii) Premiums Ceded - Cell 23",{"$f":"'Schedule V(l)'!Z61","v":0}]
["Sch V(L)","Segregated Acc",null,"ii) NPW - Cell 23",{"$f":"'Schedule V(l)'!Z62","v":0}]
["Sch V(L)","Segregated Acc",null,"iii) Statutory Line of Business - Cell 23",{"$f":"'Schedule V(l)'!Z63","v":"Select Line of Business"}]
["Sch V(L)","Segregated Acc",null,"iii) GPW - Cell 23",{"$f":"'Schedule V(l)'!Z64","v":0}]
["Sch V(L)","Segregated Acc",null,"iii) Premiums Ceded - Cell 23",{"$f":"'Schedule V(l)'!Z65","v":0}]
["Sch V(L)","Segregated Acc",null,"iii) NPW - Cell 23",{"$f":"'Schedule V(l)'!Z66","v":0}]
["Sch V(L)","Segregated Acc",null,"iv) Statutory Line of Business - Cell 23",{"$f":"'Schedule V(l)'!Z67","v":"Select Line of Business"}]
["Sch V(L)","Segregated Acc",null,"iv) GPW - Cell 23",{"$f":"'Schedule V(l)'!Z68","v":0}]
["Sch V(L)","Segregated Acc",null,"iv) Premiums Ceded - Cell 23",{"$f":"'Schedule V(l)'!Z69","v":0}]
["Sch V(L)","Segregated Acc",null,"iv) NPW - Cell 23",{"$f":"'Schedule V(l)'!Z70","v":0}]
["Sch V(L)","Segregated Acc",null,"v) Statutory Line of Business - Cell 23",{"$f":"'Schedule V(l)'!Z71","v":"Select Line of Business"}]
["Sch V(L)","Segregated Acc",null,"v) GPW - Cell 23",{"$f":"'Schedule V(l)'!Z72","v":0}]
["Sch V(L)","Segregated Acc",null,"v) Premiums Ceded - Cell 23",{"$f":"'Schedule V(l)'!Z73","v":0}]
["Sch V(L)","Segregated Acc",null,"v) NPW - Cell 23",{"$f":"'Schedule V(l)'!Z74","v":0}]
["Sch V(L)","Segregated Acc",null,"Cell Ref # - Cell 24",{"$f":"'Schedule V(l)'!AA6","v":0}]
["Sch V(L)","Segregated Acc",null,"Cell name - Cell 24",{"$f":"'Schedule V(l)'!AA7","v":0}]
["Sch V(L)","Segregated Acc",null,"Direct Insurer, Reinsurer or Both - Cell 24",{"$f":"'Schedule V(l)'!AA8","v":"Select Premiums Written"}]
["Sch V(L)","Segregated Acc",null,"Total Assets - Cell 24",{"$f":"'Schedule V(l)'!AA9","v":0}]
["Sch V(L)","Segregated Acc",null,"Total Liabilities - Cell 24",{"$f":"'Schedule V(l)'!AA10","v":0}]
["Sch V(L)","Segregated Acc",null,"Statutory Surplus - Cell 24",{"$f":"'Schedule V(l)'!AA11","v":0}]
["Sch V(L)","Segregated Acc",null,"Statutory Capital - Cell 24",{"$f":"'Schedule V(l)'!AA12","v":0}]
["Sch V(L)","Segregated Acc",null,"Net Income - Cell 24",{"$f":"'Schedule V(l)'!AA14","v":0}]
["Sch V(L)","Segregated Acc",null,"Cash  - Cell 24",{"$f":"'Schedule V(l)'!AA15","v":0}]
["Sch V(L)","Segregated Acc",null,"Quoted: Bonds and Debentures - Cell 24",{"$f":"'Schedule V(l)'!AA16","v":0}]
["Sch V(L)","Segregated Acc",null,"Quoted: Equites - Cell 24",{"$f":"'Schedule V(l)'!AA17","v":0}]
["Sch V(L)","Segregated Acc",null,"Quoted: Other  - Cell 24",{"$f":"'Schedule V(l)'!AA18","v":0}]
["Sch V(L)","Segregated Acc",null,"Unquoted: Bonds and Debentures - Cell 24",{"$f":"'Schedule V(l)'!AA19","v":0}]
["Sch V(L)","Segregated Acc",null,"Unquoted: Equities - Cell 24",{"$f":"'Schedule V(l)'!AA20","v":0}]
["Sch V(L)","Segregated Acc",null,"Unquoted: Other - Cell 24",{"$f":"'Schedule V(l)'!AA21","v":0}]
["Sch V(L)","Segregated Acc",null,"Due from Affiliates - Cell 24",{"$f":"'Schedule V(l)'!AA22","v":0}]
["Sch V(L)","Segregated Acc",null,"Due to Affiliates - Cell 24",{"$f":"'Schedule V(l)'!AA23","v":0}]
["Sch V(L)","Segregated Acc",null,"Net Loss & Loss Expense Provisions - Cell 24",{"$f":"'Schedule V(l)'!AA24","v":0}]
["Sch V(L)","Segregated Acc",null,"Prior Year loss reserve development - Cell 24",{"$f":"'Schedule V(l)'!AA25","v":0}]
["Sch V(L)","Segregated Acc",null,"Reinsurance Recoverable Balance - Cell 24",{"$f":"'Schedule V(l)'!AA26","v":0}]
["Sch V(L)","Segregated Acc",null,"Cell is in Run-Off - Cell 24",{"$f":"'Schedule V(l)'!AA27","v":"Select Yes/No"}]
["Sch V(L)","Segregated Acc",null,"currency used - Cell 24",{"$f":"'Schedule V(l)'!AA28","v":"Select Currency"}]
["Sch V(L)","Segregated Acc",null,"Cell to Cell Activity  - Cell 24",{"$f":"'Schedule V(l)'!AA29","v":"Confirm Activity"}]
["Sch V(L)","Segregated Acc",null,"Cell to Cell Activity Details - Cell 24",{"$f":"'Schedule V(l)'!AA30","v":0}]
["Sch V(L)","Segregated Acc",null,"General Cell to Cell Activity - Cell 24",{"$f":"'Schedule V(l)'!AA31","v":"Confirm Activity"}]
["Sch V(L)","Segregated Acc",null,"General Cell to Cell Activity Details - Cell 24",{"$f":"'Schedule V(l)'!AA32","v":0}]
["Sch V(L)","Segregated Acc",null,"Cell Deficit - Cell 24",{"$f":"'Schedule V(l)'!AA33","v":0}]
["Sch V(L)","Segregated Acc",null,"Additional Capital Support - Cell 24",{"$f":"'Schedule V(l)'!AA34","v":"Confirm"}]
["Sch V(L)","Segregated Acc",null,"Additional Capital Support Details - Cell 24",{"$f":"'Schedule V(l)'!AA35","v":0}]
["Sch V(L)","Segregated Acc",null,"Details of Benefical Owners of Risk - Cell 24",{"$f":"'Schedule V(l)'!AA36","v":"Confirm"}]
["Sch V(L)","Segregated Acc",null,"Details of Benefical Owners of Cell - Cell 24",{"$f":"'Schedule V(l)'!AA37","v":"Confirm"}]
["Sch V(L)","Segregated Acc",null,"Benefical Owners - Cell 24",{"$f":"'Schedule V(l)'!AA38","v":"Confirm"}]
["Sch V(L)","Segregated Acc",null,"Benefical Ownership - Cell 24",{"$f":"'Schedule V(l)'!AA39","v":"Confirm Ownership"}]
["Sch V(L)","Segregated Acc",null,"Benefical Ownership Add. Details - Cell 24",{"$f":"'Schedule V(l)'!AA40","v":0}]
["Sch V(L)","Segregated Acc",null,"Jurisdiction - Cell 24",{"$f":"'Schedule V(l)'!AA41","v":"Confirm Jurisdiction"}]
["Sch V(L)","Segregated Acc",null,"Benefical Ownership Gov Intrument - Cell 24",{"$f":"'Schedule V(l)'!AA42","v":"Confirm Instrument"}]
["Sch V(L)","Segregated Acc",null,"Benefical Ownership Gov Intrument Det. - Cell 24",{"$f":"'Schedule V(l)'!AA43","v":0}]
["Sch V(L)","Segregated Acc",null,"Indemnity Provisions - Cell 24",{"$f":"'Schedule V(l)'!AA44","v":"Select Yes/No"}]
["Sch V(L)","Segregated Acc",null,"Limited recourse  - Cell 24",{"$f":"'Schedule V(l)'!AA45","v":"Select Yes/No"}]
["Sch V(L)","Segregated Acc",null,"Primary Cell Funding - Cell 24",{"$f":"'Schedule V(l)'!AA46","v":"Select Funding"}]
["Sch V(L)","Segregated Acc",null,"Limit of Cell  Funding/ Collateral - Cell 24",{"$f":"'Schedule V(l)'!AA47","v":"Confirm Funding / Collateral"}]
["Sch V(L)","Segregated Acc",null,"Limit of Cell  Funding/ Collateral Details - Cell 24",{"$f":"'Schedule V(l)'!AA48","v":0}]
["Sch V(L)","Segregated Acc",null,"Operational Risk Mitigants - Cell 24",{"$f":"'Schedule V(l)'!AA49","v":"Confirm Mitigants & Attach Support"}]
["Sch V(L)","Segregated Acc",null,"i) Statutory Line of Business - Cell 24",{"$f":"'Schedule V(l)'!AA55","v":"Select Line of Business"}]
["Sch V(L)","Segregated Acc",null,"i) GPW - Cell 24",{"$f":"'Schedule V(l)'!AA56","v":0}]
["Sch V(L)","Segregated Acc",null,"i) Premiums Ceded - Cell 24",{"$f":"'Schedule V(l)'!AA57","v":0}]
["Sch V(L)","Segregated Acc",null,"i) NPW - Cell 24",{"$f":"'Schedule V(l)'!AA58","v":0}]
["Sch V(L)","Segregated Acc",null,"ii) Statutory Line of Business - Cell 24",{"$f":"'Schedule V(l)'!AA59","v":"Select Line of Business"}]
["Sch V(L)","Segregated Acc",null,"ii) GPW - Cell 24",{"$f":"'Schedule V(l)'!AA60","v":0}]
["Sch V(L)","Segregated Acc",null,"ii) Premiums Ceded - Cell 24",{"$f":"'Schedule V(l)'!AA61","v":0}]
["Sch V(L)","Segregated Acc",null,"ii) NPW - Cell 24",{"$f":"'Schedule V(l)'!AA62","v":0}]
["Sch V(L)","Segregated Acc",null,"iii) Statutory Line of Business - Cell 24",{"$f":"'Schedule V(l)'!AA63","v":"Select Line of Business"}]
["Sch V(L)","Segregated Acc",null,"iii) GPW - Cell 24",{"$f":"'Schedule V(l)'!AA64","v":0}]
["Sch V(L)","Segregated Acc",null,"iii) Premiums Ceded - Cell 24",{"$f":"'Schedule V(l)'!AA65","v":0}]
["Sch V(L)","Segregated Acc",null,"iii) NPW - Cell 24",{"$f":"'Schedule V(l)'!AA66","v":0}]
["Sch V(L)","Segregated Acc",null,"iv) Statutory Line of Business - Cell 24",{"$f":"'Schedule V(l)'!AA67","v":"Select Line of Business"}]
["Sch V(L)","Segregated Acc",null,"iv) GPW - Cell 24",{"$f":"'Schedule V(l)'!AA68","v":0}]
["Sch V(L)","Segregated Acc",null,"iv) Premiums Ceded - Cell 24",{"$f":"'Schedule V(l)'!AA69","v":0}]
["Sch V(L)","Segregated Acc",null,"iv) NPW - Cell 24",{"$f":"'Schedule V(l)'!AA70","v":0}]
["Sch V(L)","Segregated Acc",null,"v) Statutory Line of Business - Cell 24",{"$f":"'Schedule V(l)'!AA71","v":"Select Line of Business"}]
["Sch V(L)","Segregated Acc",null,"v) GPW - Cell 24",{"$f":"'Schedule V(l)'!AA72","v":0}]
["Sch V(L)","Segregated Acc",null,"v) Premiums Ceded - Cell 24",{"$f":"'Schedule V(l)'!AA73","v":0}]
["Sch V(L)","Segregated Acc",null,"v) NPW - Cell 24",{"$f":"'Schedule V(l)'!AA74","v":0}]
["Sch V(L)","Segregated Acc",null,"Cell Ref # - Cell 25",{"$f":"'Schedule V(l)'!AB6","v":0}]
["Sch V(L)","Segregated Acc",null,"Cell name - Cell 25",{"$f":"'Schedule V(l)'!AB7","v":0}]
["Sch V(L)","Segregated Acc",null,"Direct Insurer, Reinsurer or Both - Cell 25",{"$f":"'Schedule V(l)'!AB8","v":"Select Premiums Written"}]
["Sch V(L)","Segregated Acc",null,"Total Assets - Cell 25",{"$f":"'Schedule V(l)'!AB9","v":0}]
["Sch V(L)","Segregated Acc",null,"Total Liabilities - Cell 25",{"$f":"'Schedule V(l)'!AB10","v":0}]
["Sch V(L)","Segregated Acc",null,"Statutory Surplus - Cell 25",{"$f":"'Schedule V(l)'!AB11","v":0}]
["Sch V(L)","Segregated Acc",null,"Statutory Capital - Cell 25",{"$f":"'Schedule V(l)'!AB12","v":0}]
["Sch V(L)","Segregated Acc",null,"Net Income - Cell 25",{"$f":"'Schedule V(l)'!AB14","v":0}]
["Sch V(L)","Segregated Acc",null,"Cash  - Cell 25",{"$f":"'Schedule V(l)'!AB15","v":0}]
["Sch V(L)","Segregated Acc",null,"Quoted: Bonds and Debentures - Cell 25",{"$f":"'Schedule V(l)'!AB16","v":0}]
["Sch V(L)","Segregated Acc",null,"Quoted: Equites - Cell 25",{"$f":"'Schedule V(l)'!AB17","v":0}]
["Sch V(L)","Segregated Acc",null,"Quoted: Other  - Cell 25",{"$f":"'Schedule V(l)'!AB18","v":0}]
["Sch V(L)","Segregated Acc",null,"Unquoted: Bonds and Debentures - Cell 25",{"$f":"'Schedule V(l)'!AB19","v":0}]
["Sch V(L)","Segregated Acc",null,"Unquoted: Equities - Cell 25",{"$f":"'Schedule V(l)'!AB20","v":0}]
["Sch V(L)","Segregated Acc",null,"Unquoted: Other - Cell 25",{"$f":"'Schedule V(l)'!AB21","v":0}]
["Sch V(L)","Segregated Acc",null,"Due from Affiliates - Cell 25",{"$f":"'Schedule V(l)'!AB22","v":0}]
["Sch V(L)","Segregated Acc",null,"Due to Affiliates - Cell 25",{"$f":"'Schedule V(l)'!AB23","v":0}]
["Sch V(L)","Segregated Acc",null,"Net Loss & Loss Expense Provisions - Cell 25",{"$f":"'Schedule V(l)'!AB24","v":0}]
["Sch V(L)","Segregated Acc",null,"Prior Year loss reserve development - Cell 25",{"$f":"'Schedule V(l)'!AB25","v":0}]
["Sch V(L)","Segregated Acc",null,"Reinsurance Recoverable Balance - Cell 25",{"$f":"'Schedule V(l)'!AB26","v":0}]
["Sch V(L)","Segregated Acc",null,"Cell is in Run-Off - Cell 25",{"$f":"'Schedule V(l)'!AB27","v":"Select Yes/No"}]
["Sch V(L)","Segregated Acc",null,"currency used - Cell 25",{"$f":"'Schedule V(l)'!AB28","v":"Select Currency"}]
["Sch V(L)","Segregated Acc",null,"Cell to Cell Activity  - Cell 25",{"$f":"'Schedule V(l)'!AB29","v":"Confirm Activity"}]
["Sch V(L)","Segregated Acc",null,"Cell to Cell Activity Details - Cell 25",{"$f":"'Schedule V(l)'!AB30","v":0}]
["Sch V(L)","Segregated Acc",null,"General Cell to Cell Activity - Cell 25",{"$f":"'Schedule V(l)'!AB31","v":"Confirm Activity"}]
["Sch V(L)","Segregated Acc",null,"General Cell to Cell Activity Details - Cell 25",{"$f":"'Schedule V(l)'!AB32","v":0}]
["Sch V(L)","Segregated Acc",null,"Cell Deficit - Cell 25",{"$f":"'Schedule V(l)'!AB33","v":0}]
["Sch V(L)","Segregated Acc",null,"Additional Capital Support - Cell 25",{"$f":"'Schedule V(l)'!AB34","v":"Confirm"}]
["Sch V(L)","Segregated Acc",null,"Additional Capital Support Details - Cell 25",{"$f":"'Schedule V(l)'!AB35","v":0}]
["Sch V(L)","Segregated Acc",null,"Details of Benefical Owners of Risk - Cell 25",{"$f":"'Schedule V(l)'!AB36","v":"Confirm"}]
["Sch V(L)","Segregated Acc",null,"Details of Benefical Owners of Cell - Cell 25",{"$f":"'Schedule V(l)'!AB37","v":"Confirm"}]
["Sch V(L)","Segregated Acc",null,"Benefical Owners - Cell 25",{"$f":"'Schedule V(l)'!AB38","v":"Confirm"}]
["Sch V(L)","Segregated Acc",null,"Benefical Ownership - Cell 25",{"$f":"'Schedule V(l)'!AB39","v":"Confirm Ownership"}]
["Sch V(L)","Segregated Acc",null,"Benefical Ownership Add. Details - Cell 25",{"$f":"'Schedule V(l)'!AB40","v":0}]
["Sch V(L)","Segregated Acc",null,"Jurisdiction - Cell 25",{"$f":"'Schedule V(l)'!AB41","v":"Confirm Jurisdiction"}]
["Sch V(L)","Segregated Acc",null,"Benefical Ownership Gov Intrument - Cell 25",{"$f":"'Schedule V(l)'!AB42","v":"Confirm Instrument"}]
["Sch V(L)","Segregated Acc",null,"Benefical Ownership Gov Intrument Det. - Cell 25",{"$f":"'Schedule V(l)'!AB43","v":0}]
["Sch V(L)","Segregated Acc",null,"Indemnity Provisions - Cell 25",{"$f":"'Schedule V(l)'!AB44","v":"Select Yes/No"}]
["Sch V(L)","Segregated Acc",null,"Limited recourse  - Cell 25",{"$f":"'Schedule V(l)'!AB45","v":"Select Yes/No"}]
["Sch V(L)","Segregated Acc",null,"Primary Cell Funding - Cell 25",{"$f":"'Schedule V(l)'!AB46","v":"Select Funding"}]
["Sch V(L)","Segregated Acc",null,"Limit of Cell  Funding/ Collateral - Cell 25",{"$f":"'Schedule V(l)'!AB47","v":"Confirm Funding / Collateral"}]
["Sch V(L)","Segregated Acc",null,"Limit of Cell  Funding/ Collateral Details - Cell 25",{"$f":"'Schedule V(l)'!AB48","v":0}]
["Sch V(L)","Segregated Acc",null,"Operational Risk Mitigants - Cell 25",{"$f":"'Schedule V(l)'!AB49","v":"Confirm Mitigants & Attach Support"}]
["Sch V(L)","Segregated Acc",null,"i) Statutory Line of Business - Cell 25",{"$f":"'Schedule V(l)'!AB55","v":"Select Line of Business"}]
["Sch V(L)","Segregated Acc",null,"i) GPW - Cell 25",{"$f":"'Schedule V(l)'!AB56","v":0}]
["Sch V(L)","Segregated Acc",null,"i) Premiums Ceded - Cell 25",{"$f":"'Schedule V(l)'!AB57","v":0}]
["Sch V(L)","Segregated Acc",null,"i) NPW - Cell 25",{"$f":"'Schedule V(l)'!AB58","v":0}]
["Sch V(L)","Segregated Acc",null,"ii) Statutory Line of Business - Cell 25",{"$f":"'Schedule V(l)'!AB59","v":"Select Line of Business"}]
["Sch V(L)","Segregated Acc",null,"ii) GPW - Cell 25",{"$f":"'Schedule V(l)'!AB60","v":0}]
["Sch V(L)","Segregated Acc",null,"ii) Premiums Ceded - Cell 25",{"$f":"'Schedule V(l)'!AB61","v":0}]
["Sch V(L)","Segregated Acc",null,"ii) NPW - Cell 25",{"$f":"'Schedule V(l)'!AB62","v":0}]
["Sch V(L)","Segregated Acc",null,"iii) Statutory Line of Business - Cell 25",{"$f":"'Schedule V(l)'!AB63","v":"Select Line of Business"}]
["Sch V(L)","Segregated Acc",null,"iii) GPW - Cell 25",{"$f":"'Schedule V(l)'!AB64","v":0}]
["Sch V(L)","Segregated Acc",null,"iii) Premiums Ceded - Cell 25",{"$f":"'Schedule V(l)'!AB65","v":0}]
["Sch V(L)","Segregated Acc",null,"iii) NPW - Cell 25",{"$f":"'Schedule V(l)'!AB66","v":0}]
["Sch V(L)","Segregated Acc",null,"iv) Statutory Line of Business - Cell 25",{"$f":"'Schedule V(l)'!AB67","v":"Select Line of Business"}]
["Sch V(L)","Segregated Acc",null,"iv) GPW - Cell 25",{"$f":"'Schedule V(l)'!AB68","v":0}]
["Sch V(L)","Segregated Acc",null,"iv) Premiums Ceded - Cell 25",{"$f":"'Schedule V(l)'!AB69","v":0}]
["Sch V(L)","Segregated Acc",null,"iv) NPW - Cell 25",{"$f":"'Schedule V(l)'!AB70","v":0}]
["Sch V(L)","Segregated Acc",null,"v) Statutory Line of Business - Cell 25",{"$f":"'Schedule V(l)'!AB71","v":"Select Line of Business"}]
["Sch V(L)","Segregated Acc",null,"v) GPW - Cell 25",{"$f":"'Schedule V(l)'!AB72","v":0}]
["Sch V(L)","Segregated Acc",null,"v) Premiums Ceded - Cell 25",{"$f":"'Schedule V(l)'!AB73","v":0}]
["Sch V(L)","Segregated Acc",null,"v) NPW - Cell 25",{"$f":"'Schedule V(l)'!AB74","v":0}]
["Sch V(L)","Segregated Acc",null,"Total Assets - Gen Acc.",{"$f":"'Schedule V(l)'!BE9","v":0}]
["Sch V(L)","Segregated Acc",null,"Total Liabilities - Gen Acc.",{"$f":"'Schedule V(l)'!BE10","v":0}]
["Sch V(L)","Segregated Acc",null,"Statutory Surplus - Gen Acc.",{"$f":"'Schedule V(l)'!BE11","v":0}]
["Sch V(L)","Segregated Acc",null,"Statutory Capital - Gen Acc.",{"$f":"'Schedule V(l)'!BE12","v":0}]
["Sch V(L)","Segregated Acc",null,"Net Income - Gen Acc.",{"$f":"'Schedule V(l)'!BE14","v":0}]
["Sch V(L)","Segregated Acc",null,"Cash  - Gen Acc.",{"$f":"'Schedule V(l)'!BE15","v":0}]
["Sch V(L)","Segregated Acc",null,"Quoted: Bonds and Debentures - Gen Acc.",{"$f":"'Schedule V(l)'!BE16","v":0}]
["Sch V(L)","Segregated Acc",null,"Quoted: Equites - Gen Acc.",{"$f":"'Schedule V(l)'!BE17","v":0}]
["Sch V(L)","Segregated Acc",null,"Quoted: Other  - Gen Acc.",{"$f":"'Schedule V(l)'!BE18","v":0}]
["Sch V(L)","Segregated Acc",null,"Unquoted: Bonds and Debentures - Gen Acc.",{"$f":"'Schedule V(l)'!BE19","v":0}]
["Sch V(L)","Segregated Acc",null,"Unquoted: Equities - Gen Acc.",{"$f":"'Schedule V(l)'!BE20","v":0}]
["Sch V(L)","Segregated Acc",null,"Unquoted: Other - Gen Acc.",{"$f":"'Schedule V(l)'!BE21","v":0}]
["Sch V(L)","Segregated Acc",null,"Due from Affiliates - Gen Acc.",{"$f":"'Schedule V(l)'!BE22","v":0}]
["Sch V(L)","Segregated Acc",null,"Due to Affiliates - Gen Acc.",{"$f":"'Schedule V(l)'!BE23","v":0}]
["Sch V(L)","Segregated Acc",null,"Net Loss & Loss Expense Provisions - Gen Acc.",{"$f":"'Schedule V(l)'!BE24","v":0}]
["Sch V(L)","Segregated Acc",null,"Prior Year loss reserve development - Gen Acc.",{"$f":"'Schedule V(l)'!BE25","v":0}]
["Sch V(L)","Segregated Acc",null,"Reinsurance Recoverable Balance - Gen Acc.",{"$f":"'Schedule V(l)'!BE26","v":0}]
["Sch V(L)","Segregated Acc",null,"i) Statutory Line of Business - Gen Acc.",{"$f":"'Schedule V(l)'!BE55","v":"Select Line of Business"}]
["Sch V(L)","Segregated Acc",null,"i) GPW - Gen Acc.",{"$f":"'Schedule V(l)'!BE56","v":0}]
["Sch V(L)","Segregated Acc",null,"i) Premiums Ceded - Gen Acc.",{"$f":"'Schedule V(l)'!BE57","v":0}]
["Sch V(L)","Segregated Acc",null,"i) NPW - Gen Acc.",{"$f":"'Schedule V(l)'!BE58","v":0}]
["Sch V(L)","Segregated Acc",null,"ii) Statutory Line of Business - Gen Acc.",{"$f":"'Schedule V(l)'!BE59","v":"Select Line of Business"}]
["Sch V(L)","Segregated Acc",null,"ii) GPW - Gen Acc.",{"$f":"'Schedule V(l)'!BE60","v":0}]
["Sch V(L)","Segregated Acc",null,"ii) Premiums Ceded - Gen Acc.",{"$f":"'Schedule V(l)'!BE61","v":0}]
["Sch V(L)","Segregated Acc",null,"ii) NPW - Gen Acc.",{"$f":"'Schedule V(l)'!BE62","v":0}]
["Sch V(L)","Segregated Acc",null,"iii) Statutory Line of Business - Gen Acc.",{"$f":"'Schedule V(l)'!BE63","v":"Select Line of Business"}]
["Sch V(L)","Segregated Acc",null,"iii) GPW - Gen Acc.",{"$f":"'Schedule V(l)'!BE64","v":0}]
["Sch V(L)","Segregated Acc",null,"iii) Premiums Ceded - Gen Acc.",{"$f":"'Schedule V(l)'!BE65","v":0}]
["Sch V(L)","Segregated Acc",null,"iii) NPW - Gen Acc.",{"$f":"'Schedule V(l)'!BE66","v":0}]
["Sch V(L)","Segregated Acc",null,"iv) Statutory Line of Business - Gen Acc.",{"$f":"'Schedule V(l)'!BE67","v":"Select Line of Business"}]
["Sch V(L)","Segregated Acc",null,"iv) GPW - Gen Acc.",{"$f":"'Schedule V(l)'!BE68","v":0}]
["Sch V(L)","Segregated Acc",null,"iv) Premiums Ceded - Gen Acc.",{"$f":"'Schedule V(l)'!BE69","v":0}]
["Sch V(L)","Segregated Acc",null,"iv) NPW - Gen Acc.",{"$f":"'Schedule V(l)'!BE70","v":0}]
["Sch V(L)","Segregated Acc",null,"v) Statutory Line of Business - Gen Acc.",{"$f":"'Schedule V(l)'!BE71","v":"Select Line of Business"}]
["Sch V(L)","Segregated Acc",null,"v) GPW - Gen Acc.",{"$f":"'Schedule V(l)'!BE72","v":0}]
["Sch V(L)","Segregated Acc",null,"v) Premiums Ceded - Gen Acc.",{"$f":"'Schedule V(l)'!BE73","v":0}]
["Sch V(L)","Segregated Acc",null,"v) NPW - Gen Acc.",{"$f":"'Schedule V(l)'!BE74","v":0}]
["Sch V(L)","Segregated Acc",null,"Comment on Statutory Asset Difference",{"$f":"'Schedule V(l)'!BM9","v":0}]
["Sch V(L)","Segregated Acc",null,"Comment on Statutory Liability Difference",{"$f":"'Schedule V(l)'!BM10","v":0}]
["Sch V(L)","Segregated Acc",null,"Comment on Statutory Capital & Surplus Difference",{"$f":"'Schedule V(l)'!BM11","v":0}]
[]
["Sch V(m)","Alternative Capital",null,"Structure of Insurer",{"$f":"'Schedule V(m)'!C3","v":"Select from Drop Down"}]
["Sch V(m)","Alternative Capital",null,"Number of Rows",{"$f":"'Schedule V(m)'!C6","v":0}]
["Sch V(m)","Alternative Capital",null,"Name of Cedant - 1",{"$f":"'Schedule V(m)'!B11","v":0}]
["Sch V(m)","Alternative Capital",null,"Name of Cedant - 2",{"$f":"'Schedule V(m)'!B12","v":0}]
["Sch V(m)","Alternative Capital",null,"Name of Cedant - 3",{"$f":"'Schedule V(m)'!B13","v":0}]
["Sch V(m)","Alternative Capital",null,"Name of Cedant - 4",{"$f":"'Schedule V(m)'!B14","v":0}]
["Sch V(m)","Alternative Capital",null,"Name of Cedant - 5",{"$f":"'Schedule V(m)'!B15","v":0}]
["Sch V(m)","Alternative Capital",null,"Name of Cedant - 6",{"$f":"'Schedule V(m)'!B16","v":0}]
["Sch V(m)","Alternative Capital",null,"Name of Cedant - 7",{"$f":"'Schedule V(m)'!B17","v":0}]
["Sch V(m)","Alternative Capital",null,"Name of Cedant - 8",{"$f":"'Schedule V(m)'!B18","v":0}]
["Sch V(m)","Alternative Capital",null,"Name of Cedant - 9",{"$f":"'Schedule V(m)'!B19","v":0}]
["Sch V(m)","Alternative Capital",null,"Name of Cedant - 10",{"$f":"'Schedule V(m)'!B20","v":0}]
["Sch V(m)","Alternative Capital",null,"Name of Cedant - 11",{"$f":"'Schedule V(m)'!B21","v":0}]
["Sch V(m)","Alternative Capital",null,"Name of Cedant - 12",{"$f":"'Schedule V(m)'!B22","v":0}]
["Sch V(m)","Alternative Capital",null,"Name of Cedant - 13",{"$f":"'Schedule V(m)'!B23","v":0}]
["Sch V(m)","Alternative Capital",null,"Name of Cedant - 14",{"$f":"'Schedule V(m)'!B24","v":0}]
["Sch V(m)","Alternative Capital",null,"Name of Cedant - 15",{"$f":"'Schedule V(m)'!B25","v":0}]
["Sch V(m)","Alternative Capital",null,"Name of Cedant - 16",{"$f":"'Schedule V(m)'!B26","v":0}]
["Sch V(m)","Alternative Capital",null,"Name of Cedant - 17",{"$f":"'Schedule V(m)'!B27","v":0}]
["Sch V(m)","Alternative Capital",null,"Name of Cedant - 18",{"$f":"'Schedule V(m)'!B28","v":0}]
["Sch V(m)","Alternative Capital",null,"Name of Cedant - 19",{"$f":"'Schedule V(m)'!B29","v":0}]
["Sch V(m)","Alternative Capital",null,"Name of Cedant - 20",{"$f":"'Schedule V(m)'!B30","v":0}]
["Sch V(m)","Alternative Capital",null,"Name of Cedant - 21",{"$f":"'Schedule V(m)'!B31","v":0}]
["Sch V(m)","Alternative Capital",null,"Name of Cedant - 22",{"$f":"'Schedule V(m)'!B32","v":0}]
["Sch V(m)","Alternative Capital",null,"Name of Cedant - 23",{"$f":"'Schedule V(m)'!B33","v":0}]
["Sch V(m)","Alternative Capital",null,"Name of Cedant - 24",{"$f":"'Schedule V(m)'!B34","v":0}]
["Sch V(m)","Alternative Capital",null,"Name of Cedant - 25",{"$f":"'Schedule V(m)'!B35","v":0}]
["Sch V(m)","Alternative Capital",null,"Contract Reference - 1",{"$f":"'Schedule V(m)'!C11","v":0}]
["Sch V(m)","Alternative Capital",null,"Contract Reference - 2",{"$f":"'Schedule V(m)'!C12","v":0}]
["Sch V(m)","Alternative Capital",null,"Contract Reference - 3",{"$f":"'Schedule V(m)'!C13","v":0}]
["Sch V(m)","Alternative Capital",null,"Contract Reference - 4",{"$f":"'Schedule V(m)'!C14","v":0}]
["Sch V(m)","Alternative Capital",null,"Contract Reference - 5",{"$f":"'Schedule V(m)'!C15","v":0}]
["Sch V(m)","Alternative Capital",null,"Contract Reference - 6",{"$f":"'Schedule V(m)'!C16","v":0}]
["Sch V(m)","Alternative Capital",null,"Contract Reference - 7",{"$f":"'Schedule V(m)'!C17","v":0}]
["Sch V(m)","Alternative Capital",null,"Contract Reference - 8",{"$f":"'Schedule V(m)'!C18","v":0}]
["Sch V(m)","Alternative Capital",null,"Contract Reference - 9",{"$f":"'Schedule V(m)'!C19","v":0}]
["Sch V(m)","Alternative Capital",null,"Contract Reference - 10",{"$f":"'Schedule V(m)'!C20","v":0}]
["Sch V(m)","Alternative Capital",null,"Contract Reference - 11",{"$f":"'Schedule V(m)'!C21","v":0}]
["Sch V(m)","Alternative Capital",null,"Contract Reference - 12",{"$f":"'Schedule V(m)'!C22","v":0}]
["Sch V(m)","Alternative Capital",null,"Contract Reference - 13",{"$f":"'Schedule V(m)'!C23","v":0}]
["Sch V(m)","Alternative Capital",null,"Contract Reference - 14",{"$f":"'Schedule V(m)'!C24","v":0}]
["Sch V(m)","Alternative Capital",null,"Contract Reference - 15",{"$f":"'Schedule V(m)'!C25","v":0}]
["Sch V(m)","Alternative Capital",null,"Contract Reference - 16",{"$f":"'Schedule V(m)'!C26","v":0}]
["Sch V(m)","Alternative Capital",null,"Contract Reference - 17",{"$f":"'Schedule V(m)'!C27","v":0}]
["Sch V(m)","Alternative Capital",null,"Contract Reference - 18",{"$f":"'Schedule V(m)'!C28","v":0}]
["Sch V(m)","Alternative Capital",null,"Contract Reference - 19",{"$f":"'Schedule V(m)'!C29","v":0}]
["Sch V(m)","Alternative Capital",null,"Contract Reference - 20",{"$f":"'Schedule V(m)'!C30","v":0}]
["Sch V(m)","Alternative Capital",null,"Contract Reference - 21",{"$f":"'Schedule V(m)'!C31","v":0}]
["Sch V(m)","Alternative Capital",null,"Contract Reference - 22",{"$f":"'Schedule V(m)'!C32","v":0}]
["Sch V(m)","Alternative Capital",null,"Contract Reference - 23",{"$f":"'Schedule V(m)'!C33","v":0}]
["Sch V(m)","Alternative Capital",null,"Contract Reference - 24",{"$f":"'Schedule V(m)'!C34","v":0}]
["Sch V(m)","Alternative Capital",null,"Contract Reference - 25",{"$f":"'Schedule V(m)'!C35","v":0}]
["Sch V(m)","Alternative Capital",null,"Type of Coverage - 1",{"$f":"'Schedule V(m)'!D11","v":"Select from Drop Down"}]
["Sch V(m)","Alternative Capital",null,"Type of Coverage - 2",{"$f":"'Schedule V(m)'!D12","v":"Select from Drop Down"}]
["Sch V(m)","Alternative Capital",null,"Type of Coverage - 3",{"$f":"'Schedule V(m)'!D13","v":"Select from Drop Down"}]
["Sch V(m)","Alternative Capital",null,"Type of Coverage - 4",{"$f":"'Schedule V(m)'!D14","v":"Select from Drop Down"}]
["Sch V(m)","Alternative Capital",null,"Type of Coverage - 5",{"$f":"'Schedule V(m)'!D15","v":"Select from Drop Down"}]
["Sch V(m)","Alternative Capital",null,"Type of Coverage - 6",{"$f":"'Schedule V(m)'!D16","v":"Select from Drop Down"}]
["Sch V(m)","Alternative Capital",null,"Type of Coverage - 7",{"$f":"'Schedule V(m)'!D17","v":"Select from Drop Down"}]
["Sch V(m)","Alternative Capital",null,"Type of Coverage - 8",{"$f":"'Schedule V(m)'!D18","v":"Select from Drop Down"}]
["Sch V(m)","Alternative Capital",null,"Type of Coverage - 9",{"$f":"'Schedule V(m)'!D19","v":"Select from Drop Down"}]
["Sch V(m)","Alternative Capital",null,"Type of Coverage - 10",{"$f":"'Schedule V(m)'!D20","v":"Select from Drop Down"}]
["Sch V(m)","Alternative Capital",null,"Type of Coverage - 11",{"$f":"'Schedule V(m)'!D21","v":"Select from Drop Down"}]
["Sch V(m)","Alternative Capital",null,"Type of Coverage - 12",{"$f":"'Schedule V(m)'!D22","v":"Select from Drop Down"}]
["Sch V(m)","Alternative Capital",null,"Type of Coverage - 13",{"$f":"'Schedule V(m)'!D23","v":"Select from Drop Down"}]
["Sch V(m)","Alternative Capital",null,"Type of Coverage - 14",{"$f":"'Schedule V(m)'!D24","v":"Select from Drop Down"}]
["Sch V(m)","Alternative Capital",null,"Type of Coverage - 15",{"$f":"'Schedule V(m)'!D25","v":"Select from Drop Down"}]
["Sch V(m)","Alternative Capital",null,"Type of Coverage - 16",{"$f":"'Schedule V(m)'!D26","v":"Select from Drop Down"}]
["Sch V(m)","Alternative Capital",null,"Type of Coverage - 17",{"$f":"'Schedule V(m)'!D27","v":"Select from Drop Down"}]
["Sch V(m)","Alternative Capital",null,"Type of Coverage - 18",{"$f":"'Schedule V(m)'!D28","v":"Select from Drop Down"}]
["Sch V(m)","Alternative Capital",null,"Type of Coverage - 19",{"$f":"'Schedule V(m)'!D29","v":"Select from Drop Down"}]
["Sch V(m)","Alternative Capital",null,"Type of Coverage - 20",{"$f":"'Schedule V(m)'!D30","v":"Select from Drop Down"}]
["Sch V(m)","Alternative Capital",null,"Type of Coverage - 21",{"$f":"'Schedule V(m)'!D31","v":"Select from Drop Down"}]
["Sch V(m)","Alternative Capital",null,"Type of Coverage - 22",{"$f":"'Schedule V(m)'!D32","v":"Select from Drop Down"}]
["Sch V(m)","Alternative Capital",null,"Type of Coverage - 23",{"$f":"'Schedule V(m)'!D33","v":"Select from Drop Down"}]
["Sch V(m)","Alternative Capital",null,"Type of Coverage - 24",{"$f":"'Schedule V(m)'!D34","v":"Select from Drop Down"}]
["Sch V(m)","Alternative Capital",null,"Type of Coverage - 25",{"$f":"'Schedule V(m)'!D35","v":"Select from Drop Down"}]
["Sch V(m)","Alternative Capital",null,"Statutory Line of Business - 1",{"$f":"'Schedule V(m)'!E11","v":"Select from Drop Down"}]
["Sch V(m)","Alternative Capital",null,"Statutory Line of Business - 2",{"$f":"'Schedule V(m)'!E12","v":"Select from Drop Down"}]
["Sch V(m)","Alternative Capital",null,"Statutory Line of Business - 3",{"$f":"'Schedule V(m)'!E13","v":"Select from Drop Down"}]
["Sch V(m)","Alternative Capital",null,"Statutory Line of Business - 4",{"$f":"'Schedule V(m)'!E14","v":"Select from Drop Down"}]
["Sch V(m)","Alternative Capital",null,"Statutory Line of Business - 5",{"$f":"'Schedule V(m)'!E15","v":"Select from Drop Down"}]
["Sch V(m)","Alternative Capital",null,"Statutory Line of Business - 6",{"$f":"'Schedule V(m)'!E16","v":"Select from Drop Down"}]
["Sch V(m)","Alternative Capital",null,"Statutory Line of Business - 7",{"$f":"'Schedule V(m)'!E17","v":"Select from Drop Down"}]
["Sch V(m)","Alternative Capital",null,"Statutory Line of Business - 8",{"$f":"'Schedule V(m)'!E18","v":"Select from Drop Down"}]
["Sch V(m)","Alternative Capital",null,"Statutory Line of Business - 9",{"$f":"'Schedule V(m)'!E19","v":"Select from Drop Down"}]
["Sch V(m)","Alternative Capital",null,"Statutory Line of Business - 10",{"$f":"'Schedule V(m)'!E20","v":"Select from Drop Down"}]
["Sch V(m)","Alternative Capital",null,"Statutory Line of Business - 11",{"$f":"'Schedule V(m)'!E21","v":"Select from Drop Down"}]
["Sch V(m)","Alternative Capital",null,"Statutory Line of Business - 12",{"$f":"'Schedule V(m)'!E22","v":"Select from Drop Down"}]
["Sch V(m)","Alternative Capital",null,"Statutory Line of Business - 13",{"$f":"'Schedule V(m)'!E23","v":"Select from Drop Down"}]
["Sch V(m)","Alternative Capital",null,"Statutory Line of Business - 14",{"$f":"'Schedule V(m)'!E24","v":"Select from Drop Down"}]
["Sch V(m)","Alternative Capital",null,"Statutory Line of Business - 15",{"$f":"'Schedule V(m)'!E25","v":"Select from Drop Down"}]
["Sch V(m)","Alternative Capital",null,"Statutory Line of Business - 16",{"$f":"'Schedule V(m)'!E26","v":"Select from Drop Down"}]
["Sch V(m)","Alternative Capital",null,"Statutory Line of Business - 17",{"$f":"'Schedule V(m)'!E27","v":"Select from Drop Down"}]
["Sch V(m)","Alternative Capital",null,"Statutory Line of Business - 18",{"$f":"'Schedule V(m)'!E28","v":"Select from Drop Down"}]
["Sch V(m)","Alternative Capital",null,"Statutory Line of Business - 19",{"$f":"'Schedule V(m)'!E29","v":"Select from Drop Down"}]
["Sch V(m)","Alternative Capital",null,"Statutory Line of Business - 20",{"$f":"'Schedule V(m)'!E30","v":"Select from Drop Down"}]
["Sch V(m)","Alternative Capital",null,"Statutory Line of Business - 21",{"$f":"'Schedule V(m)'!E31","v":"Select from Drop Down"}]
["Sch V(m)","Alternative Capital",null,"Statutory Line of Business - 22",{"$f":"'Schedule V(m)'!E32","v":"Select from Drop Down"}]
["Sch V(m)","Alternative Capital",null,"Statutory Line of Business - 23",{"$f":"'Schedule V(m)'!E33","v":"Select from Drop Down"}]
["Sch V(m)","Alternative Capital",null,"Statutory Line of Business - 24",{"$f":"'Schedule V(m)'!E34","v":"Select from Drop Down"}]
["Sch V(m)","Alternative Capital",null,"Statutory Line of Business - 25",{"$f":"'Schedule V(m)'!E35","v":"Select from Drop Down"}]
["Sch V(m)","Alternative Capital",null,"Location of Coverage - 1",{"$f":"'Schedule V(m)'!F11","v":"Select from Drop Down"}]
["Sch V(m)","Alternative Capital",null,"Location of Coverage - 2",{"$f":"'Schedule V(m)'!F12","v":"Select from Drop Down"}]
["Sch V(m)","Alternative Capital",null,"Location of Coverage - 3",{"$f":"'Schedule V(m)'!F13","v":"Select from Drop Down"}]
["Sch V(m)","Alternative Capital",null,"Location of Coverage - 4",{"$f":"'Schedule V(m)'!F14","v":"Select from Drop Down"}]
["Sch V(m)","Alternative Capital",null,"Location of Coverage - 5",{"$f":"'Schedule V(m)'!F15","v":"Select from Drop Down"}]
["Sch V(m)","Alternative Capital",null,"Location of Coverage - 6",{"$f":"'Schedule V(m)'!F16","v":"Select from Drop Down"}]
["Sch V(m)","Alternative Capital",null,"Location of Coverage - 7",{"$f":"'Schedule V(m)'!F17","v":"Select from Drop Down"}]
["Sch V(m)","Alternative Capital",null,"Location of Coverage - 8",{"$f":"'Schedule V(m)'!F18","v":"Select from Drop Down"}]
["Sch V(m)","Alternative Capital",null,"Location of Coverage - 9",{"$f":"'Schedule V(m)'!F19","v":"Select from Drop Down"}]
["Sch V(m)","Alternative Capital",null,"Location of Coverage - 10",{"$f":"'Schedule V(m)'!F20","v":"Select from Drop Down"}]
["Sch V(m)","Alternative Capital",null,"Location of Coverage - 11",{"$f":"'Schedule V(m)'!F21","v":"Select from Drop Down"}]
["Sch V(m)","Alternative Capital",null,"Location of Coverage - 12",{"$f":"'Schedule V(m)'!F22","v":"Select from Drop Down"}]
["Sch V(m)","Alternative Capital",null,"Location of Coverage - 13",{"$f":"'Schedule V(m)'!F23","v":"Select from Drop Down"}]
["Sch V(m)","Alternative Capital",null,"Location of Coverage - 14",{"$f":"'Schedule V(m)'!F24","v":"Select from Drop Down"}]
["Sch V(m)","Alternative Capital",null,"Location of Coverage - 15",{"$f":"'Schedule V(m)'!F25","v":"Select from Drop Down"}]
["Sch V(m)","Alternative Capital",null,"Location of Coverage - 16",{"$f":"'Schedule V(m)'!F26","v":"Select from Drop Down"}]
["Sch V(m)","Alternative Capital",null,"Location of Coverage - 17",{"$f":"'Schedule V(m)'!F27","v":"Select from Drop Down"}]
["Sch V(m)","Alternative Capital",null,"Location of Coverage - 18",{"$f":"'Schedule V(m)'!F28","v":"Select from Drop Down"}]
["Sch V(m)","Alternative Capital",null,"Location of Coverage - 19",{"$f":"'Schedule V(m)'!F29","v":"Select from Drop Down"}]
["Sch V(m)","Alternative Capital",null,"Location of Coverage - 20",{"$f":"'Schedule V(m)'!F30","v":"Select from Drop Down"}]
["Sch V(m)","Alternative Capital",null,"Location of Coverage - 21",{"$f":"'Schedule V(m)'!F31","v":"Select from Drop Down"}]
["Sch V(m)","Alternative Capital",null,"Location of Coverage - 22",{"$f":"'Schedule V(m)'!F32","v":"Select from Drop Down"}]
["Sch V(m)","Alternative Capital",null,"Location of Coverage - 23",{"$f":"'Schedule V(m)'!F33","v":"Select from Drop Down"}]
["Sch V(m)","Alternative Capital",null,"Location of Coverage - 24",{"$f":"'Schedule V(m)'!F34","v":"Select from Drop Down"}]
["Sch V(m)","Alternative Capital",null,"Location of Coverage - 25",{"$f":"'Schedule V(m)'!F35","v":"Select from Drop Down"}]
["Sch V(m)","Alternative Capital",null,"Agg. Max. Limit at Inception - 1",{"$f":"'Schedule V(m)'!G11","v":0}]
["Sch V(m)","Alternative Capital",null,"Agg. Max. Limit at Inception - 2",{"$f":"'Schedule V(m)'!G12","v":0}]
["Sch V(m)","Alternative Capital",null,"Agg. Max. Limit at Inception - 3",{"$f":"'Schedule V(m)'!G13","v":0}]
["Sch V(m)","Alternative Capital",null,"Agg. Max. Limit at Inception - 4",{"$f":"'Schedule V(m)'!G14","v":0}]
["Sch V(m)","Alternative Capital",null,"Agg. Max. Limit at Inception - 5",{"$f":"'Schedule V(m)'!G15","v":0}]
["Sch V(m)","Alternative Capital",null,"Agg. Max. Limit at Inception - 6",{"$f":"'Schedule V(m)'!G16","v":0}]
["Sch V(m)","Alternative Capital",null,"Agg. Max. Limit at Inception - 7",{"$f":"'Schedule V(m)'!G17","v":0}]
["Sch V(m)","Alternative Capital",null,"Agg. Max. Limit at Inception - 8",{"$f":"'Schedule V(m)'!G18","v":0}]
["Sch V(m)","Alternative Capital",null,"Agg. Max. Limit at Inception - 9",{"$f":"'Schedule V(m)'!G19","v":0}]
["Sch V(m)","Alternative Capital",null,"Agg. Max. Limit at Inception - 10",{"$f":"'Schedule V(m)'!G20","v":0}]
["Sch V(m)","Alternative Capital",null,"Agg. Max. Limit at Inception - 11",{"$f":"'Schedule V(m)'!G21","v":0}]
["Sch V(m)","Alternative Capital",null,"Agg. Max. Limit at Inception - 12",{"$f":"'Schedule V(m)'!G22","v":0}]
["Sch V(m)","Alternative Capital",null,"Agg. Max. Limit at Inception - 13",{"$f":"'Schedule V(m)'!G23","v":0}]
["Sch V(m)","Alternative Capital",null,"Agg. Max. Limit at Inception - 14",{"$f":"'Schedule V(m)'!G24","v":0}]
["Sch V(m)","Alternative Capital",null,"Agg. Max. Limit at Inception - 15",{"$f":"'Schedule V(m)'!G25","v":0}]
["Sch V(m)","Alternative Capital",null,"Agg. Max. Limit at Inception - 16",{"$f":"'Schedule V(m)'!G26","v":0}]
["Sch V(m)","Alternative Capital",null,"Agg. Max. Limit at Inception - 17",{"$f":"'Schedule V(m)'!G27","v":0}]
["Sch V(m)","Alternative Capital",null,"Agg. Max. Limit at Inception - 18",{"$f":"'Schedule V(m)'!G28","v":0}]
["Sch V(m)","Alternative Capital",null,"Agg. Max. Limit at Inception - 19",{"$f":"'Schedule V(m)'!G29","v":0}]
["Sch V(m)","Alternative Capital",null,"Agg. Max. Limit at Inception - 20",{"$f":"'Schedule V(m)'!G30","v":0}]
["Sch V(m)","Alternative Capital",null,"Agg. Max. Limit at Inception - 21",{"$f":"'Schedule V(m)'!G31","v":0}]
["Sch V(m)","Alternative Capital",null,"Agg. Max. Limit at Inception - 22",{"$f":"'Schedule V(m)'!G32","v":0}]
["Sch V(m)","Alternative Capital",null,"Agg. Max. Limit at Inception - 23",{"$f":"'Schedule V(m)'!G33","v":0}]
["Sch V(m)","Alternative Capital",null,"Agg. Max. Limit at Inception - 24",{"$f":"'Schedule V(m)'!G34","v":0}]
["Sch V(m)","Alternative Capital",null,"Agg. Max. Limit at Inception - 25",{"$f":"'Schedule V(m)'!G35","v":0}]
["Sch V(m)","Alternative Capital",null,"Agg. Max. Limit at Inception - Total",{"$f":"'Schedule V(m)'!G1512","v":0}]
["Sch V(m)","Alternative Capital",null,"Net Agg. Max. Limit at End of Year - 1",{"$f":"'Schedule V(m)'!H11","v":0}]
["Sch V(m)","Alternative Capital",null,"Net Agg. Max. Limit at End of Year - 2",{"$f":"'Schedule V(m)'!H12","v":0}]
["Sch V(m)","Alternative Capital",null,"Net Agg. Max. Limit at End of Year - 3",{"$f":"'Schedule V(m)'!H13","v":0}]
["Sch V(m)","Alternative Capital",null,"Net Agg. Max. Limit at End of Year - 4",{"$f":"'Schedule V(m)'!H14","v":0}]
["Sch V(m)","Alternative Capital",null,"Net Agg. Max. Limit at End of Year - 5",{"$f":"'Schedule V(m)'!H15","v":0}]
["Sch V(m)","Alternative Capital",null,"Net Agg. Max. Limit at End of Year - 6",{"$f":"'Schedule V(m)'!H16","v":0}]
["Sch V(m)","Alternative Capital",null,"Net Agg. Max. Limit at End of Year - 7",{"$f":"'Schedule V(m)'!H17","v":0}]
["Sch V(m)","Alternative Capital",null,"Net Agg. Max. Limit at End of Year - 8",{"$f":"'Schedule V(m)'!H18","v":0}]
["Sch V(m)","Alternative Capital",null,"Net Agg. Max. Limit at End of Year - 9",{"$f":"'Schedule V(m)'!H19","v":0}]
["Sch V(m)","Alternative Capital",null,"Net Agg. Max. Limit at End of Year - 10",{"$f":"'Schedule V(m)'!H20","v":0}]
["Sch V(m)","Alternative Capital",null,"Net Agg. Max. Limit at End of Year - 11",{"$f":"'Schedule V(m)'!H21","v":0}]
["Sch V(m)","Alternative Capital",null,"Net Agg. Max. Limit at End of Year - 12",{"$f":"'Schedule V(m)'!H22","v":0}]
["Sch V(m)","Alternative Capital",null,"Net Agg. Max. Limit at End of Year - 13",{"$f":"'Schedule V(m)'!H23","v":0}]
["Sch V(m)","Alternative Capital",null,"Net Agg. Max. Limit at End of Year - 14",{"$f":"'Schedule V(m)'!H24","v":0}]
["Sch V(m)","Alternative Capital",null,"Net Agg. Max. Limit at End of Year - 15",{"$f":"'Schedule V(m)'!H25","v":0}]
["Sch V(m)","Alternative Capital",null,"Net Agg. Max. Limit at End of Year - 16",{"$f":"'Schedule V(m)'!H26","v":0}]
["Sch V(m)","Alternative Capital",null,"Net Agg. Max. Limit at End of Year - 17",{"$f":"'Schedule V(m)'!H27","v":0}]
["Sch V(m)","Alternative Capital",null,"Net Agg. Max. Limit at End of Year - 18",{"$f":"'Schedule V(m)'!H28","v":0}]
["Sch V(m)","Alternative Capital",null,"Net Agg. Max. Limit at End of Year - 19",{"$f":"'Schedule V(m)'!H29","v":0}]
["Sch V(m)","Alternative Capital",null,"Net Agg. Max. Limit at End of Year - 20",{"$f":"'Schedule V(m)'!H30","v":0}]
["Sch V(m)","Alternative Capital",null,"Net Agg. Max. Limit at End of Year - 21",{"$f":"'Schedule V(m)'!H31","v":0}]
["Sch V(m)","Alternative Capital",null,"Net Agg. Max. Limit at End of Year - 22",{"$f":"'Schedule V(m)'!H32","v":0}]
["Sch V(m)","Alternative Capital",null,"Net Agg. Max. Limit at End of Year - 23",{"$f":"'Schedule V(m)'!H33","v":0}]
["Sch V(m)","Alternative Capital",null,"Net Agg. Max. Limit at End of Year - 24",{"$f":"'Schedule V(m)'!H34","v":0}]
["Sch V(m)","Alternative Capital",null,"Net Agg. Max. Limit at End of Year - 25",{"$f":"'Schedule V(m)'!H35","v":0}]
["Sch V(m)","Alternative Capital",null,"Net Agg. Max. Limit at End of Year - Total",{"$f":"'Schedule V(m)'!H1512","v":0}]
["Sch V(m)","Alternative Capital",null,"Inception Date of Cover Period - 1",{"$f":"'Schedule V(m)'!I11","v":""}]
["Sch V(m)","Alternative Capital",null,"Inception Date of Cover Period - 2",{"$f":"'Schedule V(m)'!I12","v":""}]
["Sch V(m)","Alternative Capital",null,"Inception Date of Cover Period - 3",{"$f":"'Schedule V(m)'!I13","v":""}]
["Sch V(m)","Alternative Capital",null,"Inception Date of Cover Period - 4",{"$f":"'Schedule V(m)'!I14","v":""}]
["Sch V(m)","Alternative Capital",null,"Inception Date of Cover Period - 5",{"$f":"'Schedule V(m)'!I15","v":""}]
["Sch V(m)","Alternative Capital",null,"Inception Date of Cover Period - 6",{"$f":"'Schedule V(m)'!I16","v":""}]
["Sch V(m)","Alternative Capital",null,"Inception Date of Cover Period - 7",{"$f":"'Schedule V(m)'!I17","v":""}]
["Sch V(m)","Alternative Capital",null,"Inception Date of Cover Period - 8",{"$f":"'Schedule V(m)'!I18","v":""}]
["Sch V(m)","Alternative Capital",null,"Inception Date of Cover Period - 9",{"$f":"'Schedule V(m)'!I19","v":""}]
["Sch V(m)","Alternative Capital",null,"Inception Date of Cover Period - 10",{"$f":"'Schedule V(m)'!I20","v":""}]
["Sch V(m)","Alternative Capital",null,"Inception Date of Cover Period - 11",{"$f":"'Schedule V(m)'!I21","v":""}]
["Sch V(m)","Alternative Capital",null,"Inception Date of Cover Period - 12",{"$f":"'Schedule V(m)'!I22","v":""}]
["Sch V(m)","Alternative Capital",null,"Inception Date of Cover Period - 13",{"$f":"'Schedule V(m)'!I23","v":""}]
["Sch V(m)","Alternative Capital",null,"Inception Date of Cover Period - 14",{"$f":"'Schedule V(m)'!I24","v":""}]
["Sch V(m)","Alternative Capital",null,"Inception Date of Cover Period - 15",{"$f":"'Schedule V(m)'!I25","v":""}]
["Sch V(m)","Alternative Capital",null,"Inception Date of Cover Period - 16",{"$f":"'Schedule V(m)'!I26","v":""}]
["Sch V(m)","Alternative Capital",null,"Inception Date of Cover Period - 17",{"$f":"'Schedule V(m)'!I27","v":""}]
["Sch V(m)","Alternative Capital",null,"Inception Date of Cover Period - 18",{"$f":"'Schedule V(m)'!I28","v":""}]
["Sch V(m)","Alternative Capital",null,"Inception Date of Cover Period - 19",{"$f":"'Schedule V(m)'!I29","v":""}]
["Sch V(m)","Alternative Capital",null,"Inception Date of Cover Period - 20",{"$f":"'Schedule V(m)'!I30","v":""}]
["Sch V(m)","Alternative Capital",null,"Inception Date of Cover Period - 21",{"$f":"'Schedule V(m)'!I31","v":""}]
["Sch V(m)","Alternative Capital",null,"Inception Date of Cover Period - 22",{"$f":"'Schedule V(m)'!I32","v":""}]
["Sch V(m)","Alternative Capital",null,"Inception Date of Cover Period - 23",{"$f":"'Schedule V(m)'!I33","v":""}]
["Sch V(m)","Alternative Capital",null,"Inception Date of Cover Period - 24",{"$f":"'Schedule V(m)'!I34","v":""}]
["Sch V(m)","Alternative Capital",null,"Inception Date of Cover Period - 25",{"$f":"'Schedule V(m)'!I35","v":""}]
["Sch V(m)","Alternative Capital",null,"Effective Date of Contract - 1",{"$f":"'Schedule V(m)'!J11","v":""}]
["Sch V(m)","Alternative Capital",null,"Effective Date of Contract - 2",{"$f":"'Schedule V(m)'!J12","v":""}]
["Sch V(m)","Alternative Capital",null,"Effective Date of Contract - 3",{"$f":"'Schedule V(m)'!J13","v":""}]
["Sch V(m)","Alternative Capital",null,"Effective Date of Contract - 4",{"$f":"'Schedule V(m)'!J14","v":""}]
["Sch V(m)","Alternative Capital",null,"Effective Date of Contract - 5",{"$f":"'Schedule V(m)'!J15","v":""}]
["Sch V(m)","Alternative Capital",null,"Effective Date of Contract - 6",{"$f":"'Schedule V(m)'!J16","v":""}]
["Sch V(m)","Alternative Capital",null,"Effective Date of Contract - 7",{"$f":"'Schedule V(m)'!J17","v":""}]
["Sch V(m)","Alternative Capital",null,"Effective Date of Contract - 8",{"$f":"'Schedule V(m)'!J18","v":""}]
["Sch V(m)","Alternative Capital",null,"Effective Date of Contract - 9",{"$f":"'Schedule V(m)'!J19","v":""}]
["Sch V(m)","Alternative Capital",null,"Effective Date of Contract - 10",{"$f":"'Schedule V(m)'!J20","v":""}]
["Sch V(m)","Alternative Capital",null,"Effective Date of Contract - 11",{"$f":"'Schedule V(m)'!J21","v":""}]
["Sch V(m)","Alternative Capital",null,"Effective Date of Contract - 12",{"$f":"'Schedule V(m)'!J22","v":""}]
["Sch V(m)","Alternative Capital",null,"Effective Date of Contract - 13",{"$f":"'Schedule V(m)'!J23","v":""}]
["Sch V(m)","Alternative Capital",null,"Effective Date of Contract - 14",{"$f":"'Schedule V(m)'!J24","v":""}]
["Sch V(m)","Alternative Capital",null,"Effective Date of Contract - 15",{"$f":"'Schedule V(m)'!J25","v":""}]
["Sch V(m)","Alternative Capital",null,"Effective Date of Contract - 16",{"$f":"'Schedule V(m)'!J26","v":""}]
["Sch V(m)","Alternative Capital",null,"Effective Date of Contract - 17",{"$f":"'Schedule V(m)'!J27","v":""}]
["Sch V(m)","Alternative Capital",null,"Effective Date of Contract - 18",{"$f":"'Schedule V(m)'!J28","v":""}]
["Sch V(m)","Alternative Capital",null,"Effective Date of Contract - 19",{"$f":"'Schedule V(m)'!J29","v":""}]
["Sch V(m)","Alternative Capital",null,"Effective Date of Contract - 20",{"$f":"'Schedule V(m)'!J30","v":""}]
["Sch V(m)","Alternative Capital",null,"Effective Date of Contract - 21",{"$f":"'Schedule V(m)'!J31","v":""}]
["Sch V(m)","Alternative Capital",null,"Effective Date of Contract - 22",{"$f":"'Schedule V(m)'!J32","v":""}]
["Sch V(m)","Alternative Capital",null,"Effective Date of Contract - 23",{"$f":"'Schedule V(m)'!J33","v":""}]
["Sch V(m)","Alternative Capital",null,"Effective Date of Contract - 24",{"$f":"'Schedule V(m)'!J34","v":""}]
["Sch V(m)","Alternative Capital",null,"Effective Date of Contract - 25",{"$f":"'Schedule V(m)'!J35","v":""}]
["Sch V(m)","Alternative Capital",null,"Expiry Date of Cover - 1",{"$f":"'Schedule V(m)'!K11","v":""}]
["Sch V(m)","Alternative Capital",null,"Expiry Date of Cover - 2",{"$f":"'Schedule V(m)'!K12","v":""}]
["Sch V(m)","Alternative Capital",null,"Expiry Date of Cover - 3",{"$f":"'Schedule V(m)'!K13","v":""}]
["Sch V(m)","Alternative Capital",null,"Expiry Date of Cover - 4",{"$f":"'Schedule V(m)'!K14","v":""}]
["Sch V(m)","Alternative Capital",null,"Expiry Date of Cover - 5",{"$f":"'Schedule V(m)'!K15","v":""}]
["Sch V(m)","Alternative Capital",null,"Expiry Date of Cover - 6",{"$f":"'Schedule V(m)'!K16","v":""}]
["Sch V(m)","Alternative Capital",null,"Expiry Date of Cover - 7",{"$f":"'Schedule V(m)'!K17","v":""}]
["Sch V(m)","Alternative Capital",null,"Expiry Date of Cover - 8",{"$f":"'Schedule V(m)'!K18","v":""}]
["Sch V(m)","Alternative Capital",null,"Expiry Date of Cover - 9",{"$f":"'Schedule V(m)'!K19","v":""}]
["Sch V(m)","Alternative Capital",null,"Expiry Date of Cover - 10",{"$f":"'Schedule V(m)'!K20","v":""}]
["Sch V(m)","Alternative Capital",null,"Expiry Date of Cover - 11",{"$f":"'Schedule V(m)'!K21","v":""}]
["Sch V(m)","Alternative Capital",null,"Expiry Date of Cover - 12",{"$f":"'Schedule V(m)'!K22","v":""}]
["Sch V(m)","Alternative Capital",null,"Expiry Date of Cover - 13",{"$f":"'Schedule V(m)'!K23","v":""}]
["Sch V(m)","Alternative Capital",null,"Expiry Date of Cover - 14",{"$f":"'Schedule V(m)'!K24","v":""}]
["Sch V(m)","Alternative Capital",null,"Expiry Date of Cover - 15",{"$f":"'Schedule V(m)'!K25","v":""}]
["Sch V(m)","Alternative Capital",null,"Expiry Date of Cover - 16",{"$f":"'Schedule V(m)'!K26","v":""}]
["Sch V(m)","Alternative Capital",null,"Expiry Date of Cover - 17",{"$f":"'Schedule V(m)'!K27","v":""}]
["Sch V(m)","Alternative Capital",null,"Expiry Date of Cover - 18",{"$f":"'Schedule V(m)'!K28","v":""}]
["Sch V(m)","Alternative Capital",null,"Expiry Date of Cover - 19",{"$f":"'Schedule V(m)'!K29","v":""}]
["Sch V(m)","Alternative Capital",null,"Expiry Date of Cover - 20",{"$f":"'Schedule V(m)'!K30","v":""}]
["Sch V(m)","Alternative Capital",null,"Expiry Date of Cover - 21",{"$f":"'Schedule V(m)'!K31","v":""}]
["Sch V(m)","Alternative Capital",null,"Expiry Date of Cover - 22",{"$f":"'Schedule V(m)'!K32","v":""}]
["Sch V(m)","Alternative Capital",null,"Expiry Date of Cover - 23",{"$f":"'Schedule V(m)'!K33","v":""}]
["Sch V(m)","Alternative Capital",null,"Expiry Date of Cover - 24",{"$f":"'Schedule V(m)'!K34","v":""}]
["Sch V(m)","Alternative Capital",null,"Expiry Date of Cover - 25",{"$f":"'Schedule V(m)'!K35","v":""}]
["Sch V(m)","Alternative Capital",null,"Cover Period GPW - 1",{"$f":"'Schedule V(m)'!L11","v":0}]
["Sch V(m)","Alternative Capital",null,"Cover Period GPW - 2",{"$f":"'Schedule V(m)'!L12","v":0}]
["Sch V(m)","Alternative Capital",null,"Cover Period GPW - 3",{"$f":"'Schedule V(m)'!L13","v":0}]
["Sch V(m)","Alternative Capital",null,"Cover Period GPW - 4",{"$f":"'Schedule V(m)'!L14","v":0}]
["Sch V(m)","Alternative Capital",null,"Cover Period GPW - 5",{"$f":"'Schedule V(m)'!L15","v":0}]
["Sch V(m)","Alternative Capital",null,"Cover Period GPW - 6",{"$f":"'Schedule V(m)'!L16","v":0}]
["Sch V(m)","Alternative Capital",null,"Cover Period GPW - 7",{"$f":"'Schedule V(m)'!L17","v":0}]
["Sch V(m)","Alternative Capital",null,"Cover Period GPW - 8",{"$f":"'Schedule V(m)'!L18","v":0}]
["Sch V(m)","Alternative Capital",null,"Cover Period GPW - 9",{"$f":"'Schedule V(m)'!L19","v":0}]
["Sch V(m)","Alternative Capital",null,"Cover Period GPW - 10",{"$f":"'Schedule V(m)'!L20","v":0}]
["Sch V(m)","Alternative Capital",null,"Cover Period GPW - 11",{"$f":"'Schedule V(m)'!L21","v":0}]
["Sch V(m)","Alternative Capital",null,"Cover Period GPW - 12",{"$f":"'Schedule V(m)'!L22","v":0}]
["Sch V(m)","Alternative Capital",null,"Cover Period GPW - 13",{"$f":"'Schedule V(m)'!L23","v":0}]
["Sch V(m)","Alternative Capital",null,"Cover Period GPW - 14",{"$f":"'Schedule V(m)'!L24","v":0}]
["Sch V(m)","Alternative Capital",null,"Cover Period GPW - 15",{"$f":"'Schedule V(m)'!L25","v":0}]
["Sch V(m)","Alternative Capital",null,"Cover Period GPW - 16",{"$f":"'Schedule V(m)'!L26","v":0}]
["Sch V(m)","Alternative Capital",null,"Cover Period GPW - 17",{"$f":"'Schedule V(m)'!L27","v":0}]
["Sch V(m)","Alternative Capital",null,"Cover Period GPW - 18",{"$f":"'Schedule V(m)'!L28","v":0}]
["Sch V(m)","Alternative Capital",null,"Cover Period GPW - 19",{"$f":"'Schedule V(m)'!L29","v":0}]
["Sch V(m)","Alternative Capital",null,"Cover Period GPW - 20",{"$f":"'Schedule V(m)'!L30","v":0}]
["Sch V(m)","Alternative Capital",null,"Cover Period GPW - 21",{"$f":"'Schedule V(m)'!L31","v":0}]
["Sch V(m)","Alternative Capital",null,"Cover Period GPW - 22",{"$f":"'Schedule V(m)'!L32","v":0}]
["Sch V(m)","Alternative Capital",null,"Cover Period GPW - 23",{"$f":"'Schedule V(m)'!L33","v":0}]
["Sch V(m)","Alternative Capital",null,"Cover Period GPW - 24",{"$f":"'Schedule V(m)'!L34","v":0}]
["Sch V(m)","Alternative Capital",null,"Cover Period GPW - 25",{"$f":"'Schedule V(m)'!L35","v":0}]
["Sch V(m)","Alternative Capital",null,"Cover Period GPW - Total",{"$f":"'Schedule V(m)'!L1512","v":0}]
["Sch V(m)","Alternative Capital",null,"Cover Period NPW - 1",{"$f":"'Schedule V(m)'!M11","v":0}]
["Sch V(m)","Alternative Capital",null,"Cover Period NPW - 2",{"$f":"'Schedule V(m)'!M12","v":0}]
["Sch V(m)","Alternative Capital",null,"Cover Period NPW - 3",{"$f":"'Schedule V(m)'!M13","v":0}]
["Sch V(m)","Alternative Capital",null,"Cover Period NPW - 4",{"$f":"'Schedule V(m)'!M14","v":0}]
["Sch V(m)","Alternative Capital",null,"Cover Period NPW - 5",{"$f":"'Schedule V(m)'!M15","v":0}]
["Sch V(m)","Alternative Capital",null,"Cover Period NPW - 6",{"$f":"'Schedule V(m)'!M16","v":0}]
["Sch V(m)","Alternative Capital",null,"Cover Period NPW - 7",{"$f":"'Schedule V(m)'!M17","v":0}]
["Sch V(m)","Alternative Capital",null,"Cover Period NPW - 8",{"$f":"'Schedule V(m)'!M18","v":0}]
["Sch V(m)","Alternative Capital",null,"Cover Period NPW - 9",{"$f":"'Schedule V(m)'!M19","v":0}]
["Sch V(m)","Alternative Capital",null,"Cover Period NPW - 10",{"$f":"'Schedule V(m)'!M20","v":0}]
["Sch V(m)","Alternative Capital",null,"Cover Period NPW - 11",{"$f":"'Schedule V(m)'!M21","v":0}]
["Sch V(m)","Alternative Capital",null,"Cover Period NPW - 12",{"$f":"'Schedule V(m)'!M22","v":0}]
["Sch V(m)","Alternative Capital",null,"Cover Period NPW - 13",{"$f":"'Schedule V(m)'!M23","v":0}]
["Sch V(m)","Alternative Capital",null,"Cover Period NPW - 14",{"$f":"'Schedule V(m)'!M24","v":0}]
["Sch V(m)","Alternative Capital",null,"Cover Period NPW - 15",{"$f":"'Schedule V(m)'!M25","v":0}]
["Sch V(m)","Alternative Capital",null,"Cover Period NPW - 16",{"$f":"'Schedule V(m)'!M26","v":0}]
["Sch V(m)","Alternative Capital",null,"Cover Period NPW - 17",{"$f":"'Schedule V(m)'!M27","v":0}]
["Sch V(m)","Alternative Capital",null,"Cover Period NPW - 18",{"$f":"'Schedule V(m)'!M28","v":0}]
["Sch V(m)","Alternative Capital",null,"Cover Period NPW - 19",{"$f":"'Schedule V(m)'!M29","v":0}]
["Sch V(m)","Alternative Capital",null,"Cover Period NPW - 20",{"$f":"'Schedule V(m)'!M30","v":0}]
["Sch V(m)","Alternative Capital",null,"Cover Period NPW - 21",{"$f":"'Schedule V(m)'!M31","v":0}]
["Sch V(m)","Alternative Capital",null,"Cover Period NPW - 22",{"$f":"'Schedule V(m)'!M32","v":0}]
["Sch V(m)","Alternative Capital",null,"Cover Period NPW - 23",{"$f":"'Schedule V(m)'!M33","v":0}]
["Sch V(m)","Alternative Capital",null,"Cover Period NPW - 24",{"$f":"'Schedule V(m)'!M34","v":0}]
["Sch V(m)","Alternative Capital",null,"Cover Period NPW - 25",{"$f":"'Schedule V(m)'!M35","v":0}]
["Sch V(m)","Alternative Capital",null,"Cover Period NPW - Total",{"$f":"'Schedule V(m)'!M1512","v":0}]
["Sch V(m)","Alternative Capital",null,"Attachment Point - 1",{"$f":"'Schedule V(m)'!N11","v":0}]
["Sch V(m)","Alternative Capital",null,"Attachment Point - 2",{"$f":"'Schedule V(m)'!N12","v":0}]
["Sch V(m)","Alternative Capital",null,"Attachment Point - 3",{"$f":"'Schedule V(m)'!N13","v":0}]
["Sch V(m)","Alternative Capital",null,"Attachment Point - 4",{"$f":"'Schedule V(m)'!N14","v":0}]
["Sch V(m)","Alternative Capital",null,"Attachment Point - 5",{"$f":"'Schedule V(m)'!N15","v":0}]
["Sch V(m)","Alternative Capital",null,"Attachment Point - 6",{"$f":"'Schedule V(m)'!N16","v":0}]
["Sch V(m)","Alternative Capital",null,"Attachment Point - 7",{"$f":"'Schedule V(m)'!N17","v":0}]
["Sch V(m)","Alternative Capital",null,"Attachment Point - 8",{"$f":"'Schedule V(m)'!N18","v":0}]
["Sch V(m)","Alternative Capital",null,"Attachment Point - 9",{"$f":"'Schedule V(m)'!N19","v":0}]
["Sch V(m)","Alternative Capital",null,"Attachment Point - 10",{"$f":"'Schedule V(m)'!N20","v":0}]
["Sch V(m)","Alternative Capital",null,"Attachment Point - 11",{"$f":"'Schedule V(m)'!N21","v":0}]
["Sch V(m)","Alternative Capital",null,"Attachment Point - 12",{"$f":"'Schedule V(m)'!N22","v":0}]
["Sch V(m)","Alternative Capital",null,"Attachment Point - 13",{"$f":"'Schedule V(m)'!N23","v":0}]
["Sch V(m)","Alternative Capital",null,"Attachment Point - 14",{"$f":"'Schedule V(m)'!N24","v":0}]
["Sch V(m)","Alternative Capital",null,"Attachment Point - 15",{"$f":"'Schedule V(m)'!N25","v":0}]
["Sch V(m)","Alternative Capital",null,"Attachment Point - 16",{"$f":"'Schedule V(m)'!N26","v":0}]
["Sch V(m)","Alternative Capital",null,"Attachment Point - 17",{"$f":"'Schedule V(m)'!N27","v":0}]
["Sch V(m)","Alternative Capital",null,"Attachment Point - 18",{"$f":"'Schedule V(m)'!N28","v":0}]
["Sch V(m)","Alternative Capital",null,"Attachment Point - 19",{"$f":"'Schedule V(m)'!N29","v":0}]
["Sch V(m)","Alternative Capital",null,"Attachment Point - 20",{"$f":"'Schedule V(m)'!N30","v":0}]
["Sch V(m)","Alternative Capital",null,"Attachment Point - 21",{"$f":"'Schedule V(m)'!N31","v":0}]
["Sch V(m)","Alternative Capital",null,"Attachment Point - 22",{"$f":"'Schedule V(m)'!N32","v":0}]
["Sch V(m)","Alternative Capital",null,"Attachment Point - 23",{"$f":"'Schedule V(m)'!N33","v":0}]
["Sch V(m)","Alternative Capital",null,"Attachment Point - 24",{"$f":"'Schedule V(m)'!N34","v":0}]
["Sch V(m)","Alternative Capital",null,"Attachment Point - 25",{"$f":"'Schedule V(m)'!N35","v":0}]
["Sch V(m)","Alternative Capital",null,"Attachment Point - Total",{"$f":"'Schedule V(m)'!N1512","v":0}]
["Sch V(m)","Alternative Capital",null,"Aggregate Losses Beg. Of Year - 1",{"$f":"'Schedule V(m)'!O11","v":0}]
["Sch V(m)","Alternative Capital",null,"Aggregate Losses Beg. Of Year - 2",{"$f":"'Schedule V(m)'!O12","v":0}]
["Sch V(m)","Alternative Capital",null,"Aggregate Losses Beg. Of Year - 3",{"$f":"'Schedule V(m)'!O13","v":0}]
["Sch V(m)","Alternative Capital",null,"Aggregate Losses Beg. Of Year - 4",{"$f":"'Schedule V(m)'!O14","v":0}]
["Sch V(m)","Alternative Capital",null,"Aggregate Losses Beg. Of Year - 5",{"$f":"'Schedule V(m)'!O15","v":0}]
["Sch V(m)","Alternative Capital",null,"Aggregate Losses Beg. Of Year - 6",{"$f":"'Schedule V(m)'!O16","v":0}]
["Sch V(m)","Alternative Capital",null,"Aggregate Losses Beg. Of Year - 7",{"$f":"'Schedule V(m)'!O17","v":0}]
["Sch V(m)","Alternative Capital",null,"Aggregate Losses Beg. Of Year - 8",{"$f":"'Schedule V(m)'!O18","v":0}]
["Sch V(m)","Alternative Capital",null,"Aggregate Losses Beg. Of Year - 9",{"$f":"'Schedule V(m)'!O19","v":0}]
["Sch V(m)","Alternative Capital",null,"Aggregate Losses Beg. Of Year - 10",{"$f":"'Schedule V(m)'!O20","v":0}]
["Sch V(m)","Alternative Capital",null,"Aggregate Losses Beg. Of Year - 11",{"$f":"'Schedule V(m)'!O21","v":0}]
["Sch V(m)","Alternative Capital",null,"Aggregate Losses Beg. Of Year - 12",{"$f":"'Schedule V(m)'!O22","v":0}]
["Sch V(m)","Alternative Capital",null,"Aggregate Losses Beg. Of Year - 13",{"$f":"'Schedule V(m)'!O23","v":0}]
["Sch V(m)","Alternative Capital",null,"Aggregate Losses Beg. Of Year - 14",{"$f":"'Schedule V(m)'!O24","v":0}]
["Sch V(m)","Alternative Capital",null,"Aggregate Losses Beg. Of Year - 15",{"$f":"'Schedule V(m)'!O25","v":0}]
["Sch V(m)","Alternative Capital",null,"Aggregate Losses Beg. Of Year - 16",{"$f":"'Schedule V(m)'!O26","v":0}]
["Sch V(m)","Alternative Capital",null,"Aggregate Losses Beg. Of Year - 17",{"$f":"'Schedule V(m)'!O27","v":0}]
["Sch V(m)","Alternative Capital",null,"Aggregate Losses Beg. Of Year - 18",{"$f":"'Schedule V(m)'!O28","v":0}]
["Sch V(m)","Alternative Capital",null,"Aggregate Losses Beg. Of Year - 19",{"$f":"'Schedule V(m)'!O29","v":0}]
["Sch V(m)","Alternative Capital",null,"Aggregate Losses Beg. Of Year - 20",{"$f":"'Schedule V(m)'!O30","v":0}]
["Sch V(m)","Alternative Capital",null,"Aggregate Losses Beg. Of Year - 21",{"$f":"'Schedule V(m)'!O31","v":0}]
["Sch V(m)","Alternative Capital",null,"Aggregate Losses Beg. Of Year - 22",{"$f":"'Schedule V(m)'!O32","v":0}]
["Sch V(m)","Alternative Capital",null,"Aggregate Losses Beg. Of Year - 23",{"$f":"'Schedule V(m)'!O33","v":0}]
["Sch V(m)","Alternative Capital",null,"Aggregate Losses Beg. Of Year - 24",{"$f":"'Schedule V(m)'!O34","v":0}]
["Sch V(m)","Alternative Capital",null,"Aggregate Losses Beg. Of Year - 25",{"$f":"'Schedule V(m)'!O35","v":0}]
["Sch V(m)","Alternative Capital",null,"Aggregate Losses Beg. Of Year - Total",{"$f":"'Schedule V(m)'!O1512","v":0}]
["Sch V(m)","Alternative Capital",null,"Aggregate Losses Incurred - 1",{"$f":"'Schedule V(m)'!P11","v":0}]
["Sch V(m)","Alternative Capital",null,"Aggregate Losses Incurred - 2",{"$f":"'Schedule V(m)'!P12","v":0}]
["Sch V(m)","Alternative Capital",null,"Aggregate Losses Incurred - 3",{"$f":"'Schedule V(m)'!P13","v":0}]
["Sch V(m)","Alternative Capital",null,"Aggregate Losses Incurred - 4",{"$f":"'Schedule V(m)'!P14","v":0}]
["Sch V(m)","Alternative Capital",null,"Aggregate Losses Incurred - 5",{"$f":"'Schedule V(m)'!P15","v":0}]
["Sch V(m)","Alternative Capital",null,"Aggregate Losses Incurred - 6",{"$f":"'Schedule V(m)'!P16","v":0}]
["Sch V(m)","Alternative Capital",null,"Aggregate Losses Incurred - 7",{"$f":"'Schedule V(m)'!P17","v":0}]
["Sch V(m)","Alternative Capital",null,"Aggregate Losses Incurred - 8",{"$f":"'Schedule V(m)'!P18","v":0}]
["Sch V(m)","Alternative Capital",null,"Aggregate Losses Incurred - 9",{"$f":"'Schedule V(m)'!P19","v":0}]
["Sch V(m)","Alternative Capital",null,"Aggregate Losses Incurred - 10",{"$f":"'Schedule V(m)'!P20","v":0}]
["Sch V(m)","Alternative Capital",null,"Aggregate Losses Incurred - 11",{"$f":"'Schedule V(m)'!P21","v":0}]
["Sch V(m)","Alternative Capital",null,"Aggregate Losses Incurred - 12",{"$f":"'Schedule V(m)'!P22","v":0}]
["Sch V(m)","Alternative Capital",null,"Aggregate Losses Incurred - 13",{"$f":"'Schedule V(m)'!P23","v":0}]
["Sch V(m)","Alternative Capital",null,"Aggregate Losses Incurred - 14",{"$f":"'Schedule V(m)'!P24","v":0}]
["Sch V(m)","Alternative Capital",null,"Aggregate Losses Incurred - 15",{"$f":"'Schedule V(m)'!P25","v":0}]
["Sch V(m)","Alternative Capital",null,"Aggregate Losses Incurred - 16",{"$f":"'Schedule V(m)'!P26","v":0}]
["Sch V(m)","Alternative Capital",null,"Aggregate Losses Incurred - 17",{"$f":"'Schedule V(m)'!P27","v":0}]
["Sch V(m)","Alternative Capital",null,"Aggregate Losses Incurred - 18",{"$f":"'Schedule V(m)'!P28","v":0}]
["Sch V(m)","Alternative Capital",null,"Aggregate Losses Incurred - 19",{"$f":"'Schedule V(m)'!P29","v":0}]
["Sch V(m)","Alternative Capital",null,"Aggregate Losses Incurred - 20",{"$f":"'Schedule V(m)'!P30","v":0}]
["Sch V(m)","Alternative Capital",null,"Aggregate Losses Incurred - 21",{"$f":"'Schedule V(m)'!P31","v":0}]
["Sch V(m)","Alternative Capital",null,"Aggregate Losses Incurred - 22",{"$f":"'Schedule V(m)'!P32","v":0}]
["Sch V(m)","Alternative Capital",null,"Aggregate Losses Incurred - 23",{"$f":"'Schedule V(m)'!P33","v":0}]
["Sch V(m)","Alternative Capital",null,"Aggregate Losses Incurred - 24",{"$f":"'Schedule V(m)'!P34","v":0}]
["Sch V(m)","Alternative Capital",null,"Aggregate Losses Incurred - 25",{"$f":"'Schedule V(m)'!P35","v":0}]
["Sch V(m)","Alternative Capital",null,"Aggregate Losses Incurred - Total",{"$f":"'Schedule V(m)'!P1512","v":0}]
["Sch V(m)","Alternative Capital",null,"Aggregate Losses End Of Year - 1",{"$f":"'Schedule V(m)'!Q11","v":0}]
["Sch V(m)","Alternative Capital",null,"Aggregate Losses End Of Year - 2",{"$f":"'Schedule V(m)'!Q12","v":0}]
["Sch V(m)","Alternative Capital",null,"Aggregate Losses End Of Year - 3",{"$f":"'Schedule V(m)'!Q13","v":0}]
["Sch V(m)","Alternative Capital",null,"Aggregate Losses End Of Year - 4",{"$f":"'Schedule V(m)'!Q14","v":0}]
["Sch V(m)","Alternative Capital",null,"Aggregate Losses End Of Year - 5",{"$f":"'Schedule V(m)'!Q15","v":0}]
["Sch V(m)","Alternative Capital",null,"Aggregate Losses End Of Year - 6",{"$f":"'Schedule V(m)'!Q16","v":0}]
["Sch V(m)","Alternative Capital",null,"Aggregate Losses End Of Year - 7",{"$f":"'Schedule V(m)'!Q17","v":0}]
["Sch V(m)","Alternative Capital",null,"Aggregate Losses End Of Year - 8",{"$f":"'Schedule V(m)'!Q18","v":0}]
["Sch V(m)","Alternative Capital",null,"Aggregate Losses End Of Year - 9",{"$f":"'Schedule V(m)'!Q19","v":0}]
["Sch V(m)","Alternative Capital",null,"Aggregate Losses End Of Year - 10",{"$f":"'Schedule V(m)'!Q20","v":0}]
["Sch V(m)","Alternative Capital",null,"Aggregate Losses End Of Year - 11",{"$f":"'Schedule V(m)'!Q21","v":0}]
["Sch V(m)","Alternative Capital",null,"Aggregate Losses End Of Year - 12",{"$f":"'Schedule V(m)'!Q22","v":0}]
["Sch V(m)","Alternative Capital",null,"Aggregate Losses End Of Year - 13",{"$f":"'Schedule V(m)'!Q23","v":0}]
["Sch V(m)","Alternative Capital",null,"Aggregate Losses End Of Year - 14",{"$f":"'Schedule V(m)'!Q24","v":0}]
["Sch V(m)","Alternative Capital",null,"Aggregate Losses End Of Year - 15",{"$f":"'Schedule V(m)'!Q25","v":0}]
["Sch V(m)","Alternative Capital",null,"Aggregate Losses End Of Year - 16",{"$f":"'Schedule V(m)'!Q26","v":0}]
["Sch V(m)","Alternative Capital",null,"Aggregate Losses End Of Year - 17",{"$f":"'Schedule V(m)'!Q27","v":0}]
["Sch V(m)","Alternative Capital",null,"Aggregate Losses End Of Year - 18",{"$f":"'Schedule V(m)'!Q28","v":0}]
["Sch V(m)","Alternative Capital",null,"Aggregate Losses End Of Year - 19",{"$f":"'Schedule V(m)'!Q29","v":0}]
["Sch V(m)","Alternative Capital",null,"Aggregate Losses End Of Year - 20",{"$f":"'Schedule V(m)'!Q30","v":0}]
["Sch V(m)","Alternative Capital",null,"Aggregate Losses End Of Year - 21",{"$f":"'Schedule V(m)'!Q31","v":0}]
["Sch V(m)","Alternative Capital",null,"Aggregate Losses End Of Year - 22",{"$f":"'Schedule V(m)'!Q32","v":0}]
["Sch V(m)","Alternative Capital",null,"Aggregate Losses End Of Year - 23",{"$f":"'Schedule V(m)'!Q33","v":0}]
["Sch V(m)","Alternative Capital",null,"Aggregate Losses End Of Year - 24",{"$f":"'Schedule V(m)'!Q34","v":0}]
["Sch V(m)","Alternative Capital",null,"Aggregate Losses End Of Year - 25",{"$f":"'Schedule V(m)'!Q35","v":0}]
["Sch V(m)","Alternative Capital",null,"Aggregate Losses End Of Year - Total",{"$f":"'Schedule V(m)'!Q1512","v":0}]
["Sch V(m)","Alternative Capital",null,"Collateral Reserve Buffer - 1",{"$f":"'Schedule V(m)'!R11","v":0}]
["Sch V(m)","Alternative Capital",null,"Collateral Reserve Buffer - 2",{"$f":"'Schedule V(m)'!R12","v":0}]
["Sch V(m)","Alternative Capital",null,"Collateral Reserve Buffer - 3",{"$f":"'Schedule V(m)'!R13","v":0}]
["Sch V(m)","Alternative Capital",null,"Collateral Reserve Buffer - 4",{"$f":"'Schedule V(m)'!R14","v":0}]
["Sch V(m)","Alternative Capital",null,"Collateral Reserve Buffer - 5",{"$f":"'Schedule V(m)'!R15","v":0}]
["Sch V(m)","Alternative Capital",null,"Collateral Reserve Buffer - 6",{"$f":"'Schedule V(m)'!R16","v":0}]
["Sch V(m)","Alternative Capital",null,"Collateral Reserve Buffer - 7",{"$f":"'Schedule V(m)'!R17","v":0}]
["Sch V(m)","Alternative Capital",null,"Collateral Reserve Buffer - 8",{"$f":"'Schedule V(m)'!R18","v":0}]
["Sch V(m)","Alternative Capital",null,"Collateral Reserve Buffer - 9",{"$f":"'Schedule V(m)'!R19","v":0}]
["Sch V(m)","Alternative Capital",null,"Collateral Reserve Buffer - 10",{"$f":"'Schedule V(m)'!R20","v":0}]
["Sch V(m)","Alternative Capital",null,"Collateral Reserve Buffer - 11",{"$f":"'Schedule V(m)'!R21","v":0}]
["Sch V(m)","Alternative Capital",null,"Collateral Reserve Buffer - 12",{"$f":"'Schedule V(m)'!R22","v":0}]
["Sch V(m)","Alternative Capital",null,"Collateral Reserve Buffer - 13",{"$f":"'Schedule V(m)'!R23","v":0}]
["Sch V(m)","Alternative Capital",null,"Collateral Reserve Buffer - 14",{"$f":"'Schedule V(m)'!R24","v":0}]
["Sch V(m)","Alternative Capital",null,"Collateral Reserve Buffer - 15",{"$f":"'Schedule V(m)'!R25","v":0}]
["Sch V(m)","Alternative Capital",null,"Collateral Reserve Buffer - 16",{"$f":"'Schedule V(m)'!R26","v":0}]
["Sch V(m)","Alternative Capital",null,"Collateral Reserve Buffer - 17",{"$f":"'Schedule V(m)'!R27","v":0}]
["Sch V(m)","Alternative Capital",null,"Collateral Reserve Buffer - 18",{"$f":"'Schedule V(m)'!R28","v":0}]
["Sch V(m)","Alternative Capital",null,"Collateral Reserve Buffer - 19",{"$f":"'Schedule V(m)'!R29","v":0}]
["Sch V(m)","Alternative Capital",null,"Collateral Reserve Buffer - 20",{"$f":"'Schedule V(m)'!R30","v":0}]
["Sch V(m)","Alternative Capital",null,"Collateral Reserve Buffer - 21",{"$f":"'Schedule V(m)'!R31","v":0}]
["Sch V(m)","Alternative Capital",null,"Collateral Reserve Buffer - 22",{"$f":"'Schedule V(m)'!R32","v":0}]
["Sch V(m)","Alternative Capital",null,"Collateral Reserve Buffer - 23",{"$f":"'Schedule V(m)'!R33","v":0}]
["Sch V(m)","Alternative Capital",null,"Collateral Reserve Buffer - 24",{"$f":"'Schedule V(m)'!R34","v":0}]
["Sch V(m)","Alternative Capital",null,"Collateral Reserve Buffer - 25",{"$f":"'Schedule V(m)'!R35","v":0}]
["Sch V(m)","Alternative Capital",null,"Collateral Reserve Buffer - Total",{"$f":"'Schedule V(m)'!R1512","v":0}]
["Sch V(m)","Alternative Capital",null,"Currency of Exposure - 1",{"$f":"'Schedule V(m)'!S11","v":"Select from Drop Down"}]
["Sch V(m)","Alternative Capital",null,"Currency of Exposure - 2",{"$f":"'Schedule V(m)'!S12","v":"Select from Drop Down"}]
["Sch V(m)","Alternative Capital",null,"Currency of Exposure - 3",{"$f":"'Schedule V(m)'!S13","v":"Select from Drop Down"}]
["Sch V(m)","Alternative Capital",null,"Currency of Exposure - 4",{"$f":"'Schedule V(m)'!S14","v":"Select from Drop Down"}]
["Sch V(m)","Alternative Capital",null,"Currency of Exposure - 5",{"$f":"'Schedule V(m)'!S15","v":"Select from Drop Down"}]
["Sch V(m)","Alternative Capital",null,"Currency of Exposure - 6",{"$f":"'Schedule V(m)'!S16","v":"Select from Drop Down"}]
["Sch V(m)","Alternative Capital",null,"Currency of Exposure - 7",{"$f":"'Schedule V(m)'!S17","v":"Select from Drop Down"}]
["Sch V(m)","Alternative Capital",null,"Currency of Exposure - 8",{"$f":"'Schedule V(m)'!S18","v":"Select from Drop Down"}]
["Sch V(m)","Alternative Capital",null,"Currency of Exposure - 9",{"$f":"'Schedule V(m)'!S19","v":"Select from Drop Down"}]
["Sch V(m)","Alternative Capital",null,"Currency of Exposure - 10",{"$f":"'Schedule V(m)'!S20","v":"Select from Drop Down"}]
["Sch V(m)","Alternative Capital",null,"Currency of Exposure - 11",{"$f":"'Schedule V(m)'!S21","v":"Select from Drop Down"}]
["Sch V(m)","Alternative Capital",null,"Currency of Exposure - 12",{"$f":"'Schedule V(m)'!S22","v":"Select from Drop Down"}]
["Sch V(m)","Alternative Capital",null,"Currency of Exposure - 13",{"$f":"'Schedule V(m)'!S23","v":"Select from Drop Down"}]
["Sch V(m)","Alternative Capital",null,"Currency of Exposure - 14",{"$f":"'Schedule V(m)'!S24","v":"Select from Drop Down"}]
["Sch V(m)","Alternative Capital",null,"Currency of Exposure - 15",{"$f":"'Schedule V(m)'!S25","v":"Select from Drop Down"}]
["Sch V(m)","Alternative Capital",null,"Currency of Exposure - 16",{"$f":"'Schedule V(m)'!S26","v":"Select from Drop Down"}]
["Sch V(m)","Alternative Capital",null,"Currency of Exposure - 17",{"$f":"'Schedule V(m)'!S27","v":"Select from Drop Down"}]
["Sch V(m)","Alternative Capital",null,"Currency of Exposure - 18",{"$f":"'Schedule V(m)'!S28","v":"Select from Drop Down"}]
["Sch V(m)","Alternative Capital",null,"Currency of Exposure - 19",{"$f":"'Schedule V(m)'!S29","v":"Select from Drop Down"}]
["Sch V(m)","Alternative Capital",null,"Currency of Exposure - 20",{"$f":"'Schedule V(m)'!S30","v":"Select from Drop Down"}]
["Sch V(m)","Alternative Capital",null,"Currency of Exposure - 21",{"$f":"'Schedule V(m)'!S31","v":"Select from Drop Down"}]
["Sch V(m)","Alternative Capital",null,"Currency of Exposure - 22",{"$f":"'Schedule V(m)'!S32","v":"Select from Drop Down"}]
["Sch V(m)","Alternative Capital",null,"Currency of Exposure - 23",{"$f":"'Schedule V(m)'!S33","v":"Select from Drop Down"}]
["Sch V(m)","Alternative Capital",null,"Currency of Exposure - 24",{"$f":"'Schedule V(m)'!S34","v":"Select from Drop Down"}]
["Sch V(m)","Alternative Capital",null,"Currency of Exposure - 25",{"$f":"'Schedule V(m)'!S35","v":"Select from Drop Down"}]
["Sch V(m)","Alternative Capital",null,"Nature of Collateral - 1",{"$f":"'Schedule V(m)'!T11","v":"Select from Drop Down"}]
["Sch V(m)","Alternative Capital",null,"Nature of Collateral - 2",{"$f":"'Schedule V(m)'!T12","v":"Select from Drop Down"}]
["Sch V(m)","Alternative Capital",null,"Nature of Collateral - 3",{"$f":"'Schedule V(m)'!T13","v":"Select from Drop Down"}]
["Sch V(m)","Alternative Capital",null,"Nature of Collateral - 4",{"$f":"'Schedule V(m)'!T14","v":"Select from Drop Down"}]
["Sch V(m)","Alternative Capital",null,"Nature of Collateral - 5",{"$f":"'Schedule V(m)'!T15","v":"Select from Drop Down"}]
["Sch V(m)","Alternative Capital",null,"Nature of Collateral - 6",{"$f":"'Schedule V(m)'!T16","v":"Select from Drop Down"}]
["Sch V(m)","Alternative Capital",null,"Nature of Collateral - 7",{"$f":"'Schedule V(m)'!T17","v":"Select from Drop Down"}]
["Sch V(m)","Alternative Capital",null,"Nature of Collateral - 8",{"$f":"'Schedule V(m)'!T18","v":"Select from Drop Down"}]
["Sch V(m)","Alternative Capital",null,"Nature of Collateral - 9",{"$f":"'Schedule V(m)'!T19","v":"Select from Drop Down"}]
["Sch V(m)","Alternative Capital",null,"Nature of Collateral - 10",{"$f":"'Schedule V(m)'!T20","v":"Select from Drop Down"}]
["Sch V(m)","Alternative Capital",null,"Nature of Collateral - 11",{"$f":"'Schedule V(m)'!T21","v":"Select from Drop Down"}]
["Sch V(m)","Alternative Capital",null,"Nature of Collateral - 12",{"$f":"'Schedule V(m)'!T22","v":"Select from Drop Down"}]
["Sch V(m)","Alternative Capital",null,"Nature of Collateral - 13",{"$f":"'Schedule V(m)'!T23","v":"Select from Drop Down"}]
["Sch V(m)","Alternative Capital",null,"Nature of Collateral - 14",{"$f":"'Schedule V(m)'!T24","v":"Select from Drop Down"}]
["Sch V(m)","Alternative Capital",null,"Nature of Collateral - 15",{"$f":"'Schedule V(m)'!T25","v":"Select from Drop Down"}]
["Sch V(m)","Alternative Capital",null,"Nature of Collateral - 16",{"$f":"'Schedule V(m)'!T26","v":"Select from Drop Down"}]
["Sch V(m)","Alternative Capital",null,"Nature of Collateral - 17",{"$f":"'Schedule V(m)'!T27","v":"Select from Drop Down"}]
["Sch V(m)","Alternative Capital",null,"Nature of Collateral - 18",{"$f":"'Schedule V(m)'!T28","v":"Select from Drop Down"}]
["Sch V(m)","Alternative Capital",null,"Nature of Collateral - 19",{"$f":"'Schedule V(m)'!T29","v":"Select from Drop Down"}]
["Sch V(m)","Alternative Capital",null,"Nature of Collateral - 20",{"$f":"'Schedule V(m)'!T30","v":"Select from Drop Down"}]
["Sch V(m)","Alternative Capital",null,"Nature of Collateral - 21",{"$f":"'Schedule V(m)'!T31","v":"Select from Drop Down"}]
["Sch V(m)","Alternative Capital",null,"Nature of Collateral - 22",{"$f":"'Schedule V(m)'!T32","v":"Select from Drop Down"}]
["Sch V(m)","Alternative Capital",null,"Nature of Collateral - 23",{"$f":"'Schedule V(m)'!T33","v":"Select from Drop Down"}]
["Sch V(m)","Alternative Capital",null,"Nature of Collateral - 24",{"$f":"'Schedule V(m)'!T34","v":"Select from Drop Down"}]
["Sch V(m)","Alternative Capital",null,"Nature of Collateral - 25",{"$f":"'Schedule V(m)'!T35","v":"Select from Drop Down"}]
["Sch V(m)","Alternative Capital",null,"Collateral Rating - 1",{"$f":"'Schedule V(m)'!U11","v":"Select from Drop Down"}]
["Sch V(m)","Alternative Capital",null,"Collateral Rating - 2",{"$f":"'Schedule V(m)'!U12","v":"Select from Drop Down"}]
["Sch V(m)","Alternative Capital",null,"Collateral Rating - 3",{"$f":"'Schedule V(m)'!U13","v":"Select from Drop Down"}]
["Sch V(m)","Alternative Capital",null,"Collateral Rating - 4",{"$f":"'Schedule V(m)'!U14","v":"Select from Drop Down"}]
["Sch V(m)","Alternative Capital",null,"Collateral Rating - 5",{"$f":"'Schedule V(m)'!U15","v":"Select from Drop Down"}]
["Sch V(m)","Alternative Capital",null,"Collateral Rating - 6",{"$f":"'Schedule V(m)'!U16","v":"Select from Drop Down"}]
["Sch V(m)","Alternative Capital",null,"Collateral Rating - 7",{"$f":"'Schedule V(m)'!U17","v":"Select from Drop Down"}]
["Sch V(m)","Alternative Capital",null,"Collateral Rating - 8",{"$f":"'Schedule V(m)'!U18","v":"Select from Drop Down"}]
["Sch V(m)","Alternative Capital",null,"Collateral Rating - 9",{"$f":"'Schedule V(m)'!U19","v":"Select from Drop Down"}]
["Sch V(m)","Alternative Capital",null,"Collateral Rating - 10",{"$f":"'Schedule V(m)'!U20","v":"Select from Drop Down"}]
["Sch V(m)","Alternative Capital",null,"Collateral Rating - 11",{"$f":"'Schedule V(m)'!U21","v":"Select from Drop Down"}]
["Sch V(m)","Alternative Capital",null,"Collateral Rating - 12",{"$f":"'Schedule V(m)'!U22","v":"Select from Drop Down"}]
["Sch V(m)","Alternative Capital",null,"Collateral Rating - 13",{"$f":"'Schedule V(m)'!U23","v":"Select from Drop Down"}]
["Sch V(m)","Alternative Capital",null,"Collateral Rating - 14",{"$f":"'Schedule V(m)'!U24","v":"Select from Drop Down"}]
["Sch V(m)","Alternative Capital",null,"Collateral Rating - 15",{"$f":"'Schedule V(m)'!U25","v":"Select from Drop Down"}]
["Sch V(m)","Alternative Capital",null,"Collateral Rating - 16",{"$f":"'Schedule V(m)'!U26","v":"Select from Drop Down"}]
["Sch V(m)","Alternative Capital",null,"Collateral Rating - 17",{"$f":"'Schedule V(m)'!U27","v":"Select from Drop Down"}]
["Sch V(m)","Alternative Capital",null,"Collateral Rating - 18",{"$f":"'Schedule V(m)'!U28","v":"Select from Drop Down"}]
["Sch V(m)","Alternative Capital",null,"Collateral Rating - 19",{"$f":"'Schedule V(m)'!U29","v":"Select from Drop Down"}]
["Sch V(m)","Alternative Capital",null,"Collateral Rating - 20",{"$f":"'Schedule V(m)'!U30","v":"Select from Drop Down"}]
["Sch V(m)","Alternative Capital",null,"Collateral Rating - 21",{"$f":"'Schedule V(m)'!U31","v":"Select from Drop Down"}]
["Sch V(m)","Alternative Capital",null,"Collateral Rating - 22",{"$f":"'Schedule V(m)'!U32","v":"Select from Drop Down"}]
["Sch V(m)","Alternative Capital",null,"Collateral Rating - 23",{"$f":"'Schedule V(m)'!U33","v":"Select from Drop Down"}]
["Sch V(m)","Alternative Capital",null,"Collateral Rating - 24",{"$f":"'Schedule V(m)'!U34","v":"Select from Drop Down"}]
["Sch V(m)","Alternative Capital",null,"Collateral Rating - 25",{"$f":"'Schedule V(m)'!U35","v":"Select from Drop Down"}]
["Sch V(m)","Alternative Capital",null,"Amount of Collateral - 1",{"$f":"'Schedule V(m)'!V11","v":0}]
["Sch V(m)","Alternative Capital",null,"Amount of Collateral - 2",{"$f":"'Schedule V(m)'!V12","v":0}]
["Sch V(m)","Alternative Capital",null,"Amount of Collateral - 3",{"$f":"'Schedule V(m)'!V13","v":0}]
["Sch V(m)","Alternative Capital",null,"Amount of Collateral - 4",{"$f":"'Schedule V(m)'!V14","v":0}]
["Sch V(m)","Alternative Capital",null,"Amount of Collateral - 5",{"$f":"'Schedule V(m)'!V15","v":0}]
["Sch V(m)","Alternative Capital",null,"Amount of Collateral - 6",{"$f":"'Schedule V(m)'!V16","v":0}]
["Sch V(m)","Alternative Capital",null,"Amount of Collateral - 7",{"$f":"'Schedule V(m)'!V17","v":0}]
["Sch V(m)","Alternative Capital",null,"Amount of Collateral - 8",{"$f":"'Schedule V(m)'!V18","v":0}]
["Sch V(m)","Alternative Capital",null,"Amount of Collateral - 9",{"$f":"'Schedule V(m)'!V19","v":0}]
["Sch V(m)","Alternative Capital",null,"Amount of Collateral - 10",{"$f":"'Schedule V(m)'!V20","v":0}]
["Sch V(m)","Alternative Capital",null,"Amount of Collateral - 11",{"$f":"'Schedule V(m)'!V21","v":0}]
["Sch V(m)","Alternative Capital",null,"Amount of Collateral - 12",{"$f":"'Schedule V(m)'!V22","v":0}]
["Sch V(m)","Alternative Capital",null,"Amount of Collateral - 13",{"$f":"'Schedule V(m)'!V23","v":0}]
["Sch V(m)","Alternative Capital",null,"Amount of Collateral - 14",{"$f":"'Schedule V(m)'!V24","v":0}]
["Sch V(m)","Alternative Capital",null,"Amount of Collateral - 15",{"$f":"'Schedule V(m)'!V25","v":0}]
["Sch V(m)","Alternative Capital",null,"Amount of Collateral - 16",{"$f":"'Schedule V(m)'!V26","v":0}]
["Sch V(m)","Alternative Capital",null,"Amount of Collateral - 17",{"$f":"'Schedule V(m)'!V27","v":0}]
["Sch V(m)","Alternative Capital",null,"Amount of Collateral - 18",{"$f":"'Schedule V(m)'!V28","v":0}]
["Sch V(m)","Alternative Capital",null,"Amount of Collateral - 19",{"$f":"'Schedule V(m)'!V29","v":0}]
["Sch V(m)","Alternative Capital",null,"Amount of Collateral - 20",{"$f":"'Schedule V(m)'!V30","v":0}]
["Sch V(m)","Alternative Capital",null,"Amount of Collateral - 21",{"$f":"'Schedule V(m)'!V31","v":0}]
["Sch V(m)","Alternative Capital",null,"Amount of Collateral - 22",{"$f":"'Schedule V(m)'!V32","v":0}]
["Sch V(m)","Alternative Capital",null,"Amount of Collateral - 23",{"$f":"'Schedule V(m)'!V33","v":0}]
["Sch V(m)","Alternative Capital",null,"Amount of Collateral - 24",{"$f":"'Schedule V(m)'!V34","v":0}]
["Sch V(m)","Alternative Capital",null,"Amount of Collateral - 25",{"$f":"'Schedule V(m)'!V35","v":0}]
["Sch V(m)","Alternative Capital",null,"Amount of Collateral - Total",{"$f":"'Schedule V(m)'!V1512","v":0}]
["Sch V(m)","Alternative Capital",null,"Comments - 1",{"$f":"'Schedule V(m)'!W11","v":0}]
["Sch V(m)","Alternative Capital",null,"Comments - 2",{"$f":"'Schedule V(m)'!W12","v":0}]
["Sch V(m)","Alternative Capital",null,"Comments - 3",{"$f":"'Schedule V(m)'!W13","v":0}]
["Sch V(m)","Alternative Capital",null,"Comments - 4",{"$f":"'Schedule V(m)'!W14","v":0}]
["Sch V(m)","Alternative Capital",null,"Comments - 5",{"$f":"'Schedule V(m)'!W15","v":0}]
["Sch V(m)","Alternative Capital",null,"Comments - 6",{"$f":"'Schedule V(m)'!W16","v":0}]
["Sch V(m)","Alternative Capital",null,"Comments - 7",{"$f":"'Schedule V(m)'!W17","v":0}]
["Sch V(m)","Alternative Capital",null,"Comments - 8",{"$f":"'Schedule V(m)'!W18","v":0}]
["Sch V(m)","Alternative Capital",null,"Comments - 9",{"$f":"'Schedule V(m)'!W19","v":0}]
["Sch V(m)","Alternative Capital",null,"Comments - 10",{"$f":"'Schedule V(m)'!W20","v":0}]
["Sch V(m)","Alternative Capital",null,"Comments - 11",{"$f":"'Schedule V(m)'!W21","v":0}]
["Sch V(m)","Alternative Capital",null,"Comments - 12",{"$f":"'Schedule V(m)'!W22","v":0}]
["Sch V(m)","Alternative Capital",null,"Comments - 13",{"$f":"'Schedule V(m)'!W23","v":0}]
["Sch V(m)","Alternative Capital",null,"Comments - 14",{"$f":"'Schedule V(m)'!W24","v":0}]
["Sch V(m)","Alternative Capital",null,"Comments - 15",{"$f":"'Schedule V(m)'!W25","v":0}]
["Sch V(m)","Alternative Capital",null,"Comments - 16",{"$f":"'Schedule V(m)'!W26","v":0}]
["Sch V(m)","Alternative Capital",null,"Comments - 17",{"$f":"'Schedule V(m)'!W27","v":0}]
["Sch V(m)","Alternative Capital",null,"Comments - 18",{"$f":"'Schedule V(m)'!W28","v":0}]
["Sch V(m)","Alternative Capital",null,"Comments - 19",{"$f":"'Schedule V(m)'!W29","v":0}]
["Sch V(m)","Alternative Capital",null,"Comments - 20",{"$f":"'Schedule V(m)'!W30","v":0}]
["Sch V(m)","Alternative Capital",null,"Comments - 21",{"$f":"'Schedule V(m)'!W31","v":0}]
["Sch V(m)","Alternative Capital",null,"Comments - 22",{"$f":"'Schedule V(m)'!W32","v":0}]
["Sch V(m)","Alternative Capital",null,"Comments - 23",{"$f":"'Schedule V(m)'!W33","v":0}]
["Sch V(m)","Alternative Capital",null,"Comments - 24",{"$f":"'Schedule V(m)'!W34","v":0}]
["Sch V(m)","Alternative Capital",null,"Comments - 25",{"$f":"'Schedule V(m)'!W35","v":0}]
["Sch V(m)","Alternative Capital",null,"General Comments",{"$f":"'Schedule V(m)'!B1515","v":0}]
[]
["Sch VI","Fixed Income Sec",null,"1a US Gov. Federal",{"$f":"'Schedule VI'!E9","v":0},null,null,null,null,null,null,null,{"$f":"'Schedule VI (EBS)'!E9","v":0}]
["Sch VI","Fixed Income Sec",null,"1b US Gov. Agency - MBS",{"$f":"'Schedule VI'!E10","v":0},null,null,null,null,null,null,null,{"$f":"'Schedule VI (EBS)'!E10","v":0}]
["Sch VI","Fixed Income Sec",null,"1c US Gov. Agency - Other",{"$f":"'Schedule VI'!E11","v":0},null,null,null,null,null,null,null,{"$f":"'Schedule VI (EBS)'!E11","v":0}]
["Sch VI","Fixed Income Sec",null,"2 Non-US Government",{"$f":"'Schedule VI'!E12","v":0},null,null,null,null,null,null,null,{"$f":"'Schedule VI (EBS)'!E12","v":0}]
["Sch VI","Fixed Income Sec",null,"3 States, Municipalities",{"$f":"'Schedule VI'!E13","v":0},null,null,null,null,null,null,null,{"$f":"'Schedule VI (EBS)'!E13","v":0}]
["Sch VI","Fixed Income Sec",null,"4a Corp Sec. - US Gov. backed",{"$f":"'Schedule VI'!E15","v":0},null,null,null,null,null,null,null,{"$f":"'Schedule VI (EBS)'!E15","v":0}]
["Sch VI","Fixed Income Sec",null,"4b Corp Sec. - Non-US Gov. backed",{"$f":"'Schedule VI'!E16","v":0},null,null,null,null,null,null,null,{"$f":"'Schedule VI (EBS)'!E16","v":0}]
["Sch VI","Fixed Income Sec",null,"4c Corp Sec. - FDIC Guaranteed",{"$f":"'Schedule VI'!E17","v":0},null,null,null,null,null,null,null,{"$f":"'Schedule VI (EBS)'!E17","v":0}]
["Sch VI","Fixed Income Sec",null,"4d Corp Sec. - Other ",{"$f":"'Schedule VI'!E18","v":0},null,null,null,null,null,null,null,{"$f":"'Schedule VI (EBS)'!E18","v":0}]
["Sch VI","Fixed Income Sec",null,"5 ABS",{"$f":"'Schedule VI'!E19","v":0},null,null,null,null,null,null,null,{"$f":"'Schedule VI (EBS)'!E19","v":0}]
["Sch VI","Fixed Income Sec",null,"6a MBS - Resid. Subprime",{"$f":"'Schedule VI'!E21","v":0},null,null,null,null,null,null,null,{"$f":"'Schedule VI (EBS)'!E21","v":0}]
["Sch VI","Fixed Income Sec",null,"6b MBS - Resid. Non-subprime",{"$f":"'Schedule VI'!E22","v":0},null,null,null,null,null,null,null,{"$f":"'Schedule VI (EBS)'!E22","v":0}]
["Sch VI","Fixed Income Sec",null,"6c MBS - Commercial",{"$f":"'Schedule VI'!E23","v":0},null,null,null,null,null,null,null,{"$f":"'Schedule VI (EBS)'!E23","v":0}]
["Sch VI","Fixed Income Sec",null,"7 Mutual Funds",{"$f":"'Schedule VI'!E24","v":0},null,null,null,null,null,null,null,{"$f":"'Schedule VI (EBS)'!E24","v":0}]
["Sch VI","Fixed Income Sec",null,"8 Bank Loans",{"$f":"'Schedule VI'!E25","v":0},null,null,null,null,null,null,null,{"$f":"'Schedule VI (EBS)'!E25","v":0}]
["Sch VI","Fixed Income Sec",null,"9 Cat Bonds & ILS",{"$f":"'Schedule VI'!E26","v":0},null,null,null,null,null,null,null,{"$f":"'Schedule VI (EBS)'!E26","v":0}]
["Sch VI","Fixed Income Sec",null,"10 Others",{"$f":"'Schedule VI'!E27","v":0},null,null,null,null,null,null,null,{"$f":"'Schedule VI (EBS)'!E27","v":0}]
["Sch VI","Fixed Income Sec",null,"Total",{"$f":"'Schedule VI'!E28","v":0},null,null,null,null,null,null,null,{"$f":"'Schedule VI (EBS)'!E28","v":0}]
["Sch VI","Fixed Income Sec",null,"Face Value - 1a US Gov. Federal",{"$f":"'Schedule VI'!G9","v":0},null,null,null,null,null,null,null,{"$f":"'Schedule VI (EBS)'!G9","v":0}]
["Sch VI","Fixed Income Sec",null,"Face Value - 1b US Gov. Agency - MBS",{"$f":"'Schedule VI'!G10","v":0},null,null,null,null,null,null,null,{"$f":"'Schedule VI (EBS)'!G10","v":0}]
["Sch VI","Fixed Income Sec",null,"Face Value - 1c US Gov. Agency - Other",{"$f":"'Schedule VI'!G11","v":0},null,null,null,null,null,null,null,{"$f":"'Schedule VI (EBS)'!G11","v":0}]
["Sch VI","Fixed Income Sec",null,"Face Value - 2 Non-US Government",{"$f":"'Schedule VI'!G12","v":0},null,null,null,null,null,null,null,{"$f":"'Schedule VI (EBS)'!G12","v":0}]
["Sch VI","Fixed Income Sec",null,"Face Value - 3 States, Municipalities",{"$f":"'Schedule VI'!G13","v":0},null,null,null,null,null,null,null,{"$f":"'Schedule VI (EBS)'!G13","v":0}]
["Sch VI","Fixed Income Sec",null,"Face Value - 4a Corp Sec. - US Gov. backed",{"$f":"'Schedule VI'!G15","v":0},null,null,null,null,null,null,null,{"$f":"'Schedule VI (EBS)'!G15","v":0}]
["Sch VI","Fixed Income Sec",null,"Face Value - 4b Corp Sec. - Non-US Gov. backed",{"$f":"'Schedule VI'!G16","v":0},null,null,null,null,null,null,null,{"$f":"'Schedule VI (EBS)'!G16","v":0}]
["Sch VI","Fixed Income Sec",null,"Face Value - 4c Corp Sec. - FDIC Guaranteed",{"$f":"'Schedule VI'!G17","v":0},null,null,null,null,null,null,null,{"$f":"'Schedule VI (EBS)'!G17","v":0}]
["Sch VI","Fixed Income Sec",null,"Face Value - 4d Corp Sec. - Other ",{"$f":"'Schedule VI'!G18","v":0},null,null,null,null,null,null,null,{"$f":"'Schedule VI (EBS)'!G18","v":0}]
["Sch VI","Fixed Income Sec",null,"Face Value - 5 ABS",{"$f":"'Schedule VI'!G19","v":0},null,null,null,null,null,null,null,{"$f":"'Schedule VI (EBS)'!G19","v":0}]
["Sch VI","Fixed Income Sec",null,"Face Value - 6a MBS - Resid. Subprime",{"$f":"'Schedule VI'!G21","v":0},null,null,null,null,null,null,null,{"$f":"'Schedule VI (EBS)'!G21","v":0}]
["Sch VI","Fixed Income Sec",null,"Face Value - 6b MBS - Resid. Non-subprime",{"$f":"'Schedule VI'!G22","v":0},null,null,null,null,null,null,null,{"$f":"'Schedule VI (EBS)'!G22","v":0}]
["Sch VI","Fixed Income Sec",null,"Face Value - 6c MBS - Commercial",{"$f":"'Schedule VI'!G23","v":0},null,null,null,null,null,null,null,{"$f":"'Schedule VI (EBS)'!G23","v":0}]
["Sch VI","Fixed Income Sec",null,"Face Value - 7 Mutual Funds",{"$f":"'Schedule VI'!G24","v":0},null,null,null,null,null,null,null,{"$f":"'Schedule VI (EBS)'!G24","v":0}]
["Sch VI","Fixed Income Sec",null,"Face Value - 8 Bank Loans",{"$f":"'Schedule VI'!G25","v":0},null,null,null,null,null,null,null,{"$f":"'Schedule VI (EBS)'!G25","v":0}]
["Sch VI","Fixed Income Sec",null,"Face Value - 9 Cat Bonds & ILS",{"$f":"'Schedule VI'!G26","v":0},null,null,null,null,null,null,null,{"$f":"'Schedule VI (EBS)'!G26","v":0}]
["Sch VI","Fixed Income Sec",null,"Face Value - 10 Others",{"$f":"'Schedule VI'!G27","v":0},null,null,null,null,null,null,null,{"$f":"'Schedule VI (EBS)'!G27","v":0}]
["Sch VI","Fixed Income Sec",null,"Face Value - Total",{"$f":"'Schedule VI'!G28","v":0},null,null,null,null,null,null,null,{"$f":"'Schedule VI (EBS)'!G28","v":0}]
["Sch VI","Fixed Income Sec",null,"Fair Value - 1a US Gov. Federal",{"$f":"'Schedule VI'!I9","v":0},null,null,null,null,null,null,null,{"$f":"'Schedule VI (EBS)'!I9","v":0}]
["Sch VI","Fixed Income Sec",null,"Fair Value - 1b US Gov. Agency - MBS",{"$f":"'Schedule VI'!I10","v":0},null,null,null,null,null,null,null,{"$f":"'Schedule VI (EBS)'!I10","v":0}]
["Sch VI","Fixed Income Sec",null,"Fair Value - 1c US Gov. Agency - Other",{"$f":"'Schedule VI'!I11","v":0},null,null,null,null,null,null,null,{"$f":"'Schedule VI (EBS)'!I11","v":0}]
["Sch VI","Fixed Income Sec",null,"Fair Value - 2 Non-US Government",{"$f":"'Schedule VI'!I12","v":0},null,null,null,null,null,null,null,{"$f":"'Schedule VI (EBS)'!I12","v":0}]
["Sch VI","Fixed Income Sec",null,"Fair Value - 3 States, Municipalities",{"$f":"'Schedule VI'!I13","v":0},null,null,null,null,null,null,null,{"$f":"'Schedule VI (EBS)'!I13","v":0}]
["Sch VI","Fixed Income Sec",null,"Fair Value - 4a Corp Sec. - US Gov. backed",{"$f":"'Schedule VI'!I15","v":0},null,null,null,null,null,null,null,{"$f":"'Schedule VI (EBS)'!I15","v":0}]
["Sch VI","Fixed Income Sec",null,"Fair Value - 4b Corp Sec. - Non-US Gov. backed",{"$f":"'Schedule VI'!I16","v":0},null,null,null,null,null,null,null,{"$f":"'Schedule VI (EBS)'!I16","v":0}]
["Sch VI","Fixed Income Sec",null,"Fair Value - 4c Corp Sec. - FDIC Guaranteed",{"$f":"'Schedule VI'!I17","v":0},null,null,null,null,null,null,null,{"$f":"'Schedule VI (EBS)'!I17","v":0}]
["Sch VI","Fixed Income Sec",null,"Fair Value - 4d Corp Sec. - Other ",{"$f":"'Schedule VI'!I18","v":0},null,null,null,null,null,null,null,{"$f":"'Schedule VI (EBS)'!I18","v":0}]
["Sch VI","Fixed Income Sec",null,"Fair Value - 5 ABS",{"$f":"'Schedule VI'!I19","v":0},null,null,null,null,null,null,null,{"$f":"'Schedule VI (EBS)'!I19","v":0}]
["Sch VI","Fixed Income Sec",null,"Fair Value - 6a MBS - Resid. Subprime",{"$f":"'Schedule VI'!I21","v":0},null,null,null,null,null,null,null,{"$f":"'Schedule VI (EBS)'!I21","v":0}]
["Sch VI","Fixed Income Sec",null,"Fair Value - 6b MBS - Resid. Non-subprime",{"$f":"'Schedule VI'!I22","v":0},null,null,null,null,null,null,null,{"$f":"'Schedule VI (EBS)'!I22","v":0}]
["Sch VI","Fixed Income Sec",null,"Fair Value - 6c MBS - Commercial",{"$f":"'Schedule VI'!I23","v":0},null,null,null,null,null,null,null,{"$f":"'Schedule VI (EBS)'!I23","v":0}]
["Sch VI","Fixed Income Sec",null,"Fair Value - 7 Mutual Funds",{"$f":"'Schedule VI'!I24","v":0},null,null,null,null,null,null,null,{"$f":"'Schedule VI (EBS)'!I24","v":0}]
["Sch VI","Fixed Income Sec",null,"Fair Value - 8 Bank Loans",{"$f":"'Schedule VI'!I25","v":0},null,null,null,null,null,null,null,{"$f":"'Schedule VI (EBS)'!I25","v":0}]
["Sch VI","Fixed Income Sec",null,"Fair Value - 9 Cat Bonds & ILS",{"$f":"'Schedule VI'!I26","v":0},null,null,null,null,null,null,null,{"$f":"'Schedule VI (EBS)'!I26","v":0}]
["Sch VI","Fixed Income Sec",null,"Fair Value - 10 Others",{"$f":"'Schedule VI'!I27","v":0},null,null,null,null,null,null,null,{"$f":"'Schedule VI (EBS)'!I27","v":0}]
["Sch VI","Fixed Income Sec",null,"Fair Value - Total",{"$f":"'Schedule VI'!I28","v":0},null,null,null,null,null,null,null,{"$f":"'Schedule VI (EBS)'!I28","v":0}]
["Sch VI","Fixed Income Sec",null,"YTM - 1a US Gov. Federal",{"$f":"'Schedule VI'!K9","v":0},null,null,null,null,null,null,null,{"$f":"'Schedule VI (EBS)'!K9","v":0}]
["Sch VI","Fixed Income Sec",null,"YTM - 1b US Gov. Agency - MBS",{"$f":"'Schedule VI'!K10","v":0},null,null,null,null,null,null,null,{"$f":"'Schedule VI (EBS)'!K10","v":0}]
["Sch VI","Fixed Income Sec",null,"YTM - 1c US Gov. Agency - Other",{"$f":"'Schedule VI'!K11","v":0},null,null,null,null,null,null,null,{"$f":"'Schedule VI (EBS)'!K11","v":0}]
["Sch VI","Fixed Income Sec",null,"YTM - 2 Non-US Government",{"$f":"'Schedule VI'!K12","v":0},null,null,null,null,null,null,null,{"$f":"'Schedule VI (EBS)'!K12","v":0}]
["Sch VI","Fixed Income Sec",null,"YTM - 3 States, Municipalities",{"$f":"'Schedule VI'!K13","v":0},null,null,null,null,null,null,null,{"$f":"'Schedule VI (EBS)'!K13","v":0}]
["Sch VI","Fixed Income Sec",null,"YTM - 4a Corp Sec. - US Gov. backed",{"$f":"'Schedule VI'!K15","v":0},null,null,null,null,null,null,null,{"$f":"'Schedule VI (EBS)'!K15","v":0}]
["Sch VI","Fixed Income Sec",null,"YTM - 4b Corp Sec. - Non-US Gov. backed",{"$f":"'Schedule VI'!K16","v":0},null,null,null,null,null,null,null,{"$f":"'Schedule VI (EBS)'!K16","v":0}]
["Sch VI","Fixed Income Sec",null,"YTM - 4c Corp Sec. - FDIC Guaranteed",{"$f":"'Schedule VI'!K17","v":0},null,null,null,null,null,null,null,{"$f":"'Schedule VI (EBS)'!K17","v":0}]
["Sch VI","Fixed Income Sec",null,"YTM - 4d Corp Sec. - Other ",{"$f":"'Schedule VI'!K18","v":0},null,null,null,null,null,null,null,{"$f":"'Schedule VI (EBS)'!K18","v":0}]
["Sch VI","Fixed Income Sec",null,"YTM - 5 ABS",{"$f":"'Schedule VI'!K19","v":0},null,null,null,null,null,null,null,{"$f":"'Schedule VI (EBS)'!K19","v":0}]
["Sch VI","Fixed Income Sec",null,"YTM - 6a MBS - Resid. Subprime",{"$f":"'Schedule VI'!K21","v":0},null,null,null,null,null,null,null,{"$f":"'Schedule VI (EBS)'!K21","v":0}]
["Sch VI","Fixed Income Sec",null,"YTM - 6b MBS - Resid. Non-subprime",{"$f":"'Schedule VI'!K22","v":0},null,null,null,null,null,null,null,{"$f":"'Schedule VI (EBS)'!K22","v":0}]
["Sch VI","Fixed Income Sec",null,"YTM - 6c MBS - Commercial",{"$f":"'Schedule VI'!K23","v":0},null,null,null,null,null,null,null,{"$f":"'Schedule VI (EBS)'!K23","v":0}]
["Sch VI","Fixed Income Sec",null,"YTM - 7 Mutual Funds",{"$f":"'Schedule VI'!K24","v":0},null,null,null,null,null,null,null,{"$f":"'Schedule VI (EBS)'!K24","v":0}]
["Sch VI","Fixed Income Sec",null,"YTM - 8 Bank Loans",{"$f":"'Schedule VI'!K25","v":0},null,null,null,null,null,null,null,{"$f":"'Schedule VI (EBS)'!K25","v":0}]
["Sch VI","Fixed Income Sec",null,"YTM - 9 Cat Bonds & ILS",{"$f":"'Schedule VI'!K26","v":0},null,null,null,null,null,null,null,{"$f":"'Schedule VI (EBS)'!K26","v":0}]
["Sch VI","Fixed Income Sec",null,"YTM - 10 Others",{"$f":"'Schedule VI'!K27","v":0},null,null,null,null,null,null,null,{"$f":"'Schedule VI (EBS)'!K27","v":0}]
["Sch VI","Fixed Income Sec",null,"Rate - 1a US Gov. Federal",{"$f":"'Schedule VI'!M9","v":0},null,null,null,null,null,null,null,{"$f":"'Schedule VI (EBS)'!M9","v":0}]
["Sch VI","Fixed Income Sec",null,"Rate - 1b US Gov. Agency - MBS",{"$f":"'Schedule VI'!M10","v":0},null,null,null,null,null,null,null,{"$f":"'Schedule VI (EBS)'!M10","v":0}]
["Sch VI","Fixed Income Sec",null,"Rate - 1c US Gov. Agency - Other",{"$f":"'Schedule VI'!M11","v":0},null,null,null,null,null,null,null,{"$f":"'Schedule VI (EBS)'!M11","v":0}]
["Sch VI","Fixed Income Sec",null,"Rate - 2 Non-US Government",{"$f":"'Schedule VI'!M12","v":0},null,null,null,null,null,null,null,{"$f":"'Schedule VI (EBS)'!M12","v":0}]
["Sch VI","Fixed Income Sec",null,"Rate - 3 States, Municipalities",{"$f":"'Schedule VI'!M13","v":0},null,null,null,null,null,null,null,{"$f":"'Schedule VI (EBS)'!M13","v":0}]
["Sch VI","Fixed Income Sec",null,"Rate - 4a Corp Sec. - US Gov. backed",{"$f":"'Schedule VI'!M15","v":0},null,null,null,null,null,null,null,{"$f":"'Schedule VI (EBS)'!M15","v":0}]
["Sch VI","Fixed Income Sec",null,"Rate - 4b Corp Sec. - Non-US Gov. backed",{"$f":"'Schedule VI'!M16","v":0},null,null,null,null,null,null,null,{"$f":"'Schedule VI (EBS)'!M16","v":0}]
["Sch VI","Fixed Income Sec",null,"Rate - 4c Corp Sec. - FDIC Guaranteed",{"$f":"'Schedule VI'!M17","v":0},null,null,null,null,null,null,null,{"$f":"'Schedule VI (EBS)'!M17","v":0}]
["Sch VI","Fixed Income Sec",null,"Rate - 4d Corp Sec. - Other ",{"$f":"'Schedule VI'!M18","v":0},null,null,null,null,null,null,null,{"$f":"'Schedule VI (EBS)'!M18","v":0}]
["Sch VI","Fixed Income Sec",null,"Rate - 5 ABS",{"$f":"'Schedule VI'!M19","v":0},null,null,null,null,null,null,null,{"$f":"'Schedule VI (EBS)'!M19","v":0}]
["Sch VI","Fixed Income Sec",null,"Rate - 6a MBS - Resid. Subprime",{"$f":"'Schedule VI'!M21","v":0},null,null,null,null,null,null,null,{"$f":"'Schedule VI (EBS)'!M21","v":0}]
["Sch VI","Fixed Income Sec",null,"Rate - 6b MBS - Resid. Non-subprime",{"$f":"'Schedule VI'!M22","v":0},null,null,null,null,null,null,null,{"$f":"'Schedule VI (EBS)'!M22","v":0}]
["Sch VI","Fixed Income Sec",null,"Rate - 6c MBS - Commercial",{"$f":"'Schedule VI'!M23","v":0},null,null,null,null,null,null,null,{"$f":"'Schedule VI (EBS)'!M23","v":0}]
["Sch VI","Fixed Income Sec",null,"Rate - 7 Mutual Funds",{"$f":"'Schedule VI'!M24","v":0},null,null,null,null,null,null,null,{"$f":"'Schedule VI (EBS)'!M24","v":0}]
["Sch VI","Fixed Income Sec",null,"Rate - 8 Bank Loans",{"$f":"'Schedule VI'!M25","v":0},null,null,null,null,null,null,null,{"$f":"'Schedule VI (EBS)'!M25","v":0}]
["Sch VI","Fixed Income Sec",null,"Rate - 9 Cat Bonds & ILS",{"$f":"'Schedule VI'!M26","v":0},null,null,null,null,null,null,null,{"$f":"'Schedule VI (EBS)'!M26","v":0}]
["Sch VI","Fixed Income Sec",null,"Rate - 10 Others",{"$f":"'Schedule VI'!M27","v":0},null,null,null,null,null,null,null,{"$f":"'Schedule VI (EBS)'!M27","v":0}]
["Sch VI","Fixed Income Sec",null,"Duration - 1a US Gov. Federal",{"$f":"'Schedule VI'!O9","v":0},null,null,null,null,null,null,null,{"$f":"'Schedule VI (EBS)'!O9","v":0}]
["Sch VI","Fixed Income Sec",null,"Duration - 1b US Gov. Agency - MBS",{"$f":"'Schedule VI'!O10","v":0},null,null,null,null,null,null,null,{"$f":"'Schedule VI (EBS)'!O10","v":0}]
["Sch VI","Fixed Income Sec",null,"Duration - 1c US Gov. Agency - Other",{"$f":"'Schedule VI'!O11","v":0},null,null,null,null,null,null,null,{"$f":"'Schedule VI (EBS)'!O11","v":0}]
["Sch VI","Fixed Income Sec",null,"Duration - 2 Non-US Government",{"$f":"'Schedule VI'!O12","v":0},null,null,null,null,null,null,null,{"$f":"'Schedule VI (EBS)'!O12","v":0}]
["Sch VI","Fixed Income Sec",null,"Duration - 3 States, Municipalities",{"$f":"'Schedule VI'!O13","v":0},null,null,null,null,null,null,null,{"$f":"'Schedule VI (EBS)'!O13","v":0}]
["Sch VI","Fixed Income Sec",null,"Duration - 4a Corp Sec. - US Gov. backed",{"$f":"'Schedule VI'!O15","v":0},null,null,null,null,null,null,null,{"$f":"'Schedule VI (EBS)'!O15","v":0}]
["Sch VI","Fixed Income Sec",null,"Duration - 4b Corp Sec. - Non-US Gov. backed",{"$f":"'Schedule VI'!O16","v":0},null,null,null,null,null,null,null,{"$f":"'Schedule VI (EBS)'!O16","v":0}]
["Sch VI","Fixed Income Sec",null,"Duration - 4c Corp Sec. - FDIC Guaranteed",{"$f":"'Schedule VI'!O17","v":0},null,null,null,null,null,null,null,{"$f":"'Schedule VI (EBS)'!O17","v":0}]
["Sch VI","Fixed Income Sec",null,"Duration - 4d Corp Sec. - Other ",{"$f":"'Schedule VI'!O18","v":0},null,null,null,null,null,null,null,{"$f":"'Schedule VI (EBS)'!O18","v":0}]
["Sch VI","Fixed Income Sec",null,"Duration - 5 ABS",{"$f":"'Schedule VI'!O19","v":0},null,null,null,null,null,null,null,{"$f":"'Schedule VI (EBS)'!O19","v":0}]
["Sch VI","Fixed Income Sec",null,"Duration - 6a MBS - Resid. Subprime",{"$f":"'Schedule VI'!O21","v":0},null,null,null,null,null,null,null,{"$f":"'Schedule VI (EBS)'!O21","v":0}]
["Sch VI","Fixed Income Sec",null,"Duration - 6b MBS - Resid. Non-subprime",{"$f":"'Schedule VI'!O22","v":0},null,null,null,null,null,null,null,{"$f":"'Schedule VI (EBS)'!O22","v":0}]
["Sch VI","Fixed Income Sec",null,"Duration - 6c MBS - Commercial",{"$f":"'Schedule VI'!O23","v":0},null,null,null,null,null,null,null,{"$f":"'Schedule VI (EBS)'!O23","v":0}]
["Sch VI","Fixed Income Sec",null,"Duration - 7 Mutual Funds",{"$f":"'Schedule VI'!O24","v":0},null,null,null,null,null,null,null,{"$f":"'Schedule VI (EBS)'!O24","v":0}]
["Sch VI","Fixed Income Sec",null,"Duration - 8 Bank Loans",{"$f":"'Schedule VI'!O25","v":0},null,null,null,null,null,null,null,{"$f":"'Schedule VI (EBS)'!O25","v":0}]
["Sch VI","Fixed Income Sec",null,"Duration - 9 Cat Bonds & ILS",{"$f":"'Schedule VI'!O26","v":0},null,null,null,null,null,null,null,{"$f":"'Schedule VI (EBS)'!O26","v":0}]
["Sch VI","Fixed Income Sec",null,"Duration - 10 Others",{"$f":"'Schedule VI'!O27","v":0},null,null,null,null,null,null,null,{"$f":"'Schedule VI (EBS)'!O27","v":0}]
["Sch VI","Fixed Income Sec",null,"Convexity - 1a US Gov. Federal",{"$f":"'Schedule VI'!Q9","v":0},null,null,null,null,null,null,null,{"$f":"'Schedule VI (EBS)'!Q9","v":0}]
["Sch VI","Fixed Income Sec",null,"Convexity - 1b US Gov. Agency - MBS",{"$f":"'Schedule VI'!Q10","v":0},null,null,null,null,null,null,null,{"$f":"'Schedule VI (EBS)'!Q10","v":0}]
["Sch VI","Fixed Income Sec",null,"Convexity - 1c US Gov. Agency - Other",{"$f":"'Schedule VI'!Q11","v":0},null,null,null,null,null,null,null,{"$f":"'Schedule VI (EBS)'!Q11","v":0}]
["Sch VI","Fixed Income Sec",null,"Convexity - 2 Non-US Government",{"$f":"'Schedule VI'!Q12","v":0},null,null,null,null,null,null,null,{"$f":"'Schedule VI (EBS)'!Q12","v":0}]
["Sch VI","Fixed Income Sec",null,"Convexity - 3 States, Municipalities",{"$f":"'Schedule VI'!Q13","v":0},null,null,null,null,null,null,null,{"$f":"'Schedule VI (EBS)'!Q13","v":0}]
["Sch VI","Fixed Income Sec",null,"Convexity - 4a Corp Sec. - US Gov. backed",{"$f":"'Schedule VI'!Q15","v":0},null,null,null,null,null,null,null,{"$f":"'Schedule VI (EBS)'!Q15","v":0}]
["Sch VI","Fixed Income Sec",null,"Convexity - 4b Corp Sec. - Non-US Gov. backed",{"$f":"'Schedule VI'!Q16","v":0},null,null,null,null,null,null,null,{"$f":"'Schedule VI (EBS)'!Q16","v":0}]
["Sch VI","Fixed Income Sec",null,"Convexity - 4c Corp Sec. - FDIC Guaranteed",{"$f":"'Schedule VI'!Q17","v":0},null,null,null,null,null,null,null,{"$f":"'Schedule VI (EBS)'!Q17","v":0}]
["Sch VI","Fixed Income Sec",null,"Convexity - 4d Corp Sec. - Other ",{"$f":"'Schedule VI'!Q18","v":0},null,null,null,null,null,null,null,{"$f":"'Schedule VI (EBS)'!Q18","v":0}]
["Sch VI","Fixed Income Sec",null,"Convexity - 5 ABS",{"$f":"'Schedule VI'!Q19","v":0},null,null,null,null,null,null,null,{"$f":"'Schedule VI (EBS)'!Q19","v":0}]
["Sch VI","Fixed Income Sec",null,"Convexity - 6a MBS - Resid. Subprime",{"$f":"'Schedule VI'!Q21","v":0},null,null,null,null,null,null,null,{"$f":"'Schedule VI (EBS)'!Q21","v":0}]
["Sch VI","Fixed Income Sec",null,"Convexity - 6b MBS - Resid. Non-subprime",{"$f":"'Schedule VI'!Q22","v":0},null,null,null,null,null,null,null,{"$f":"'Schedule VI (EBS)'!Q22","v":0}]
["Sch VI","Fixed Income Sec",null,"Convexity - 6c MBS - Commercial",{"$f":"'Schedule VI'!Q23","v":0},null,null,null,null,null,null,null,{"$f":"'Schedule VI (EBS)'!Q23","v":0}]
["Sch VI","Fixed Income Sec",null,"Convexity - 7 Mutual Funds",{"$f":"'Schedule VI'!Q24","v":0},null,null,null,null,null,null,null,{"$f":"'Schedule VI (EBS)'!Q24","v":0}]
["Sch VI","Fixed Income Sec",null,"Convexity - 8 Bank Loans",{"$f":"'Schedule VI'!Q25","v":0},null,null,null,null,null,null,null,{"$f":"'Schedule VI (EBS)'!Q25","v":0}]
["Sch VI","Fixed Income Sec",null,"Convexity - 9 Cat Bonds & ILS",{"$f":"'Schedule VI'!Q26","v":0},null,null,null,null,null,null,null,{"$f":"'Schedule VI (EBS)'!Q26","v":0}]
["Sch VI","Fixed Income Sec",null,"Convexity - 10 Others",{"$f":"'Schedule VI'!Q27","v":0},null,null,null,null,null,null,null,{"$f":"'Schedule VI (EBS)'!Q27","v":0}]
["Sch VI","Fixed Income Sec",null,"Portfolio Duration",{"$f":"'Schedule VI'!E36","v":0},null,null,null,null,null,null,null,{"$f":"'Schedule VI (EBS)'!E36","v":0}]
["Sch VI","Fixed Income Sec",null,"Portfolio Convexity",{"$f":"'Schedule VI'!E38","v":0},null,null,null,null,null,null,null,{"$f":"'Schedule VI (EBS)'!E38","v":0}]
[]
["Sch VII","LT Reserves",null,"1SFS 27d - 1. Mortality",{"$f":"'Schedule VII'!D10","v":0}]
["Sch VII","LT Reserves",null,"1SFS 27d - 2. Critical Illness",{"$f":"'Schedule VII'!D11","v":0}]
["Sch VII","LT Reserves",null,"1SFS 27d - 3a. Longevity - Imm Pay 0-55",{"$f":"'Schedule VII'!D14","v":0}]
["Sch VII","LT Reserves",null,"1SFS 27d - 3b. Longevity - Imm Pay 55-65",{"$f":"'Schedule VII'!D15","v":0}]
["Sch VII","LT Reserves",null,"1SFS 27d - 3c. Longevity - Imm Pay 66-70",{"$f":"'Schedule VII'!D16","v":0}]
["Sch VII","LT Reserves",null,"1SFS 27d - 3d. Longevity - Imm Pay 71-80",{"$f":"'Schedule VII'!D17","v":0}]
["Sch VII","LT Reserves",null,"1SFS 27d - 3e. Longevity - Imm Pay 81+",{"$f":"'Schedule VII'!D18","v":0}]
["Sch VII","LT Reserves",null,"1SFS 27d - 3f. Longevity - Imm Pay Total",{"$f":"'Schedule VII'!D19","v":0}]
["Sch VII","LT Reserves",null,"1SFS 27d - 4a. Longevity - Def Pay 0-55",{"$f":"'Schedule VII'!D22","v":0}]
["Sch VII","LT Reserves",null,"1SFS 27d - 4b. Longevity - Def Pay 56-60",{"$f":"'Schedule VII'!D23","v":0}]
["Sch VII","LT Reserves",null,"1SFS 27d - 4c. Longevity - Def Pay 61-65",{"$f":"'Schedule VII'!D24","v":0}]
["Sch VII","LT Reserves",null,"1SFS 27d - 4d. Longevity - Def Pay 66-70",{"$f":"'Schedule VII'!D25","v":0}]
["Sch VII","LT Reserves",null,"1SFS 27d - 4e. Longevity - Def Pay 71-75",{"$f":"'Schedule VII'!D26","v":0}]
["Sch VII","LT Reserves",null,"1SFS 27d - 4f. Longevity - Def Pay 76+",{"$f":"'Schedule VII'!D27","v":0}]
["Sch VII","LT Reserves",null,"1SFS 27d - 4g. Longevity - Def Pay Total",{"$f":"'Schedule VII'!D28","v":0}]
["Sch VII","LT Reserves",null,"1SFS 27d - 5. Annuities Certain",{"$f":"'Schedule VII'!D29","v":0}]
["Sch VII","LT Reserves",null,"1SFS 27d - 6. Deferred Acc. Annuities",{"$f":"'Schedule VII'!D30","v":0}]
["Sch VII","LT Reserves",null,"1SFS 27d - 7d. Dis. Income: Active Lives Total",{"$f":"'Schedule VII'!D36","v":0}]
["Sch VII","LT Reserves",null,"1SFS 27d - 8. Dis. Income: Active Liv",{"$f":"'Schedule VII'!D37","v":0}]
["Sch VII","LT Reserves",null,"1SFS 27d - 9. Dis. Income: Claims in Pay",{"$f":"'Schedule VII'!D38","v":0}]
["Sch VII","LT Reserves",null,"1SFS 27d - 10. Dis. Income: Claims in Pay Other",{"$f":"'Schedule VII'!D39","v":0}]
["Sch VII","LT Reserves",null,"1SFS 27d - 11. Group Life",{"$f":"'Schedule VII'!D40","v":0}]
["Sch VII","LT Reserves",null,"1SFS 27d - 12. Group Disability",{"$f":"'Schedule VII'!D41","v":0}]
["Sch VII","LT Reserves",null,"1SFS 27d - 13. Group Health",{"$f":"'Schedule VII'!D42","v":0}]
["Sch VII","LT Reserves",null,"1SFS 27d - 14. Stop Loss",{"$f":"'Schedule VII'!D43","v":0}]
["Sch VII","LT Reserves",null,"1SFS 27d - 15. Riders",{"$f":"'Schedule VII'!D44","v":0}]
["Sch VII","LT Reserves",null,"1SFS 27d - 16. Sub Total",{"$f":"'Schedule VII'!D46","v":0}]
["Sch VII","LT Reserves",null,"1SFS 27d - 17. Variable Annuities",{"$f":"'Schedule VII'!D47","v":0}]
["Sch VII","LT Reserves",null,"1SFS 27d - 18. Total",{"$f":"'Schedule VII'!D48","v":0}]
["Sch VII","LT Reserves",null,"DAC - 1. Mortality",{"$f":"'Schedule VII'!E10","v":0}]
["Sch VII","LT Reserves",null,"DAC - 2. Critical Illness",{"$f":"'Schedule VII'!E11","v":0}]
["Sch VII","LT Reserves",null,"DAC - 3a. Longevity - Imm Pay 0-55",{"$f":"'Schedule VII'!E14","v":0}]
["Sch VII","LT Reserves",null,"DAC - 3b. Longevity - Imm Pay 55-65",{"$f":"'Schedule VII'!E15","v":0}]
["Sch VII","LT Reserves",null,"DAC - 3c. Longevity - Imm Pay 66-70",{"$f":"'Schedule VII'!E16","v":0}]
["Sch VII","LT Reserves",null,"DAC - 3d. Longevity - Imm Pay 71-80",{"$f":"'Schedule VII'!E17","v":0}]
["Sch VII","LT Reserves",null,"DAC - 3e. Longevity - Imm Pay 81+",{"$f":"'Schedule VII'!E18","v":0}]
["Sch VII","LT Reserves",null,"DAC - 3f. Longevity - Imm Pay Total",{"$f":"'Schedule VII'!E19","v":0}]
["Sch VII","LT Reserves",null,"DAC - 4a. Longevity - Def Pay 0-55",{"$f":"'Schedule VII'!E22","v":0}]
["Sch VII","LT Reserves",null,"DAC - 4b. Longevity - Def Pay 56-60",{"$f":"'Schedule VII'!E23","v":0}]
["Sch VII","LT Reserves",null,"DAC - 4c. Longevity - Def Pay 61-65",{"$f":"'Schedule VII'!E24","v":0}]
["Sch VII","LT Reserves",null,"DAC - 4d. Longevity - Def Pay 66-70",{"$f":"'Schedule VII'!E25","v":0}]
["Sch VII","LT Reserves",null,"DAC - 4e. Longevity - Def Pay 71-75",{"$f":"'Schedule VII'!E26","v":0}]
["Sch VII","LT Reserves",null,"DAC - 4f. Longevity - Def Pay 76+",{"$f":"'Schedule VII'!E27","v":0}]
["Sch VII","LT Reserves",null,"DAC - 4g. Longevity - Def Pay Total",{"$f":"'Schedule VII'!E28","v":0}]
["Sch VII","LT Reserves",null,"DAC - 5. Annuities Certain",{"$f":"'Schedule VII'!E29","v":0}]
["Sch VII","LT Reserves",null,"DAC - 6. Deferred Acc. Annuities",{"$f":"'Schedule VII'!E30","v":0}]
["Sch VII","LT Reserves",null,"DAC - 7d. Dis. Income: Active Lives Total",{"$f":"'Schedule VII'!E36","v":0}]
["Sch VII","LT Reserves",null,"DAC - 8. Dis. Income: Active Liv",{"$f":"'Schedule VII'!E37","v":0}]
["Sch VII","LT Reserves",null,"DAC - 9. Dis. Income: Claims in Pay",{"$f":"'Schedule VII'!E38","v":0}]
["Sch VII","LT Reserves",null,"DAC - 10. Dis. Income: Claims in Pay Other",{"$f":"'Schedule VII'!E39","v":0}]
["Sch VII","LT Reserves",null,"DAC - 11. Group Life",{"$f":"'Schedule VII'!E40","v":0}]
["Sch VII","LT Reserves",null,"DAC - 12. Group Disability",{"$f":"'Schedule VII'!E41","v":0}]
["Sch VII","LT Reserves",null,"DAC - 13. Group Health",{"$f":"'Schedule VII'!E42","v":0}]
["Sch VII","LT Reserves",null,"DAC - 14. Stop Loss",{"$f":"'Schedule VII'!E43","v":0}]
["Sch VII","LT Reserves",null,"DAC - 15. Riders",{"$f":"'Schedule VII'!E44","v":0}]
["Sch VII","LT Reserves",null,"DAC - 16. Sub Total",{"$f":"'Schedule VII'!E46","v":0}]
["Sch VII","LT Reserves",null,"DAC - 17. Variable Annuities",{"$f":"'Schedule VII'!E47","v":0}]
["Sch VII","LT Reserves",null,"DAC - 18. Total",{"$f":"'Schedule VII'!E48","v":0}]
["Sch VII","LT Reserves",null,"VOBA - 1. Mortality",{"$f":"'Schedule VII'!F10","v":0}]
["Sch VII","LT Reserves",null,"VOBA - 2. Critical Illness",{"$f":"'Schedule VII'!F11","v":0}]
["Sch VII","LT Reserves",null,"VOBA - 3a. Longevity - Imm Pay 0-55",{"$f":"'Schedule VII'!F14","v":0}]
["Sch VII","LT Reserves",null,"VOBA - 3b. Longevity - Imm Pay 55-65",{"$f":"'Schedule VII'!F15","v":0}]
["Sch VII","LT Reserves",null,"VOBA - 3c. Longevity - Imm Pay 66-70",{"$f":"'Schedule VII'!F16","v":0}]
["Sch VII","LT Reserves",null,"VOBA - 3d. Longevity - Imm Pay 71-80",{"$f":"'Schedule VII'!F17","v":0}]
["Sch VII","LT Reserves",null,"VOBA - 3e. Longevity - Imm Pay 81+",{"$f":"'Schedule VII'!F18","v":0}]
["Sch VII","LT Reserves",null,"VOBA - 3f. Longevity - Imm Pay Total",{"$f":"'Schedule VII'!F19","v":0}]
["Sch VII","LT Reserves",null,"VOBA - 4a. Longevity - Def Pay 0-55",{"$f":"'Schedule VII'!F22","v":0}]
["Sch VII","LT Reserves",null,"VOBA - 4b. Longevity - Def Pay 56-60",{"$f":"'Schedule VII'!F23","v":0}]
["Sch VII","LT Reserves",null,"VOBA - 4c. Longevity - Def Pay 61-65",{"$f":"'Schedule VII'!F24","v":0}]
["Sch VII","LT Reserves",null,"VOBA - 4d. Longevity - Def Pay 66-70",{"$f":"'Schedule VII'!F25","v":0}]
["Sch VII","LT Reserves",null,"VOBA - 4e. Longevity - Def Pay 71-75",{"$f":"'Schedule VII'!F26","v":0}]
["Sch VII","LT Reserves",null,"VOBA - 4f. Longevity - Def Pay 76+",{"$f":"'Schedule VII'!F27","v":0}]
["Sch VII","LT Reserves",null,"VOBA - 4g. Longevity - Def Pay Total",{"$f":"'Schedule VII'!F28","v":0}]
["Sch VII","LT Reserves",null,"VOBA - 5. Annuities Certain",{"$f":"'Schedule VII'!F29","v":0}]
["Sch VII","LT Reserves",null,"VOBA - 6. Deferred Acc. Annuities",{"$f":"'Schedule VII'!F30","v":0}]
["Sch VII","LT Reserves",null,"VOBA - 7d. Dis. Income: Active Lives Total",{"$f":"'Schedule VII'!F36","v":0}]
["Sch VII","LT Reserves",null,"VOBA - 8. Dis. Income: Active Liv",{"$f":"'Schedule VII'!F37","v":0}]
["Sch VII","LT Reserves",null,"VOBA - 9. Dis. Income: Claims in Pay",{"$f":"'Schedule VII'!F38","v":0}]
["Sch VII","LT Reserves",null,"VOBA - 10. Dis. Income: Claims in Pay Other",{"$f":"'Schedule VII'!F39","v":0}]
["Sch VII","LT Reserves",null,"VOBA - 11. Group Life",{"$f":"'Schedule VII'!F40","v":0}]
["Sch VII","LT Reserves",null,"VOBA - 12. Group Disability",{"$f":"'Schedule VII'!F41","v":0}]
["Sch VII","LT Reserves",null,"VOBA - 13. Group Health",{"$f":"'Schedule VII'!F42","v":0}]
["Sch VII","LT Reserves",null,"VOBA - 14. Stop Loss",{"$f":"'Schedule VII'!F43","v":0}]
["Sch VII","LT Reserves",null,"VOBA - 15. Riders",{"$f":"'Schedule VII'!F44","v":0}]
["Sch VII","LT Reserves",null,"VOBA - 16. Sub Total",{"$f":"'Schedule VII'!F46","v":0}]
["Sch VII","LT Reserves",null,"VOBA - 17. Variable Annuities",{"$f":"'Schedule VII'!F47","v":0}]
["Sch VII","LT Reserves",null,"VOBA - 18. Total",{"$f":"'Schedule VII'!F48","v":0}]
["Sch VII","LT Reserves",null,"PVFP - 1. Mortality",{"$f":"'Schedule VII'!G10","v":0}]
["Sch VII","LT Reserves",null,"PVFP - 2. Critical Illness",{"$f":"'Schedule VII'!G11","v":0}]
["Sch VII","LT Reserves",null,"PVFP - 3a. Longevity - Imm Pay 0-55",{"$f":"'Schedule VII'!G14","v":0}]
["Sch VII","LT Reserves",null,"PVFP - 3b. Longevity - Imm Pay 55-65",{"$f":"'Schedule VII'!G15","v":0}]
["Sch VII","LT Reserves",null,"PVFP - 3c. Longevity - Imm Pay 66-70",{"$f":"'Schedule VII'!G16","v":0}]
["Sch VII","LT Reserves",null,"PVFP - 3d. Longevity - Imm Pay 71-80",{"$f":"'Schedule VII'!G17","v":0}]
["Sch VII","LT Reserves",null,"PVFP - 3e. Longevity - Imm Pay 81+",{"$f":"'Schedule VII'!G18","v":0}]
["Sch VII","LT Reserves",null,"PVFP - 3f. Longevity - Imm Pay Total",{"$f":"'Schedule VII'!G19","v":0}]
["Sch VII","LT Reserves",null,"PVFP - 4a. Longevity - Def Pay 0-55",{"$f":"'Schedule VII'!G22","v":0}]
["Sch VII","LT Reserves",null,"PVFP - 4b. Longevity - Def Pay 56-60",{"$f":"'Schedule VII'!G23","v":0}]
["Sch VII","LT Reserves",null,"PVFP - 4c. Longevity - Def Pay 61-65",{"$f":"'Schedule VII'!G24","v":0}]
["Sch VII","LT Reserves",null,"PVFP - 4d. Longevity - Def Pay 66-70",{"$f":"'Schedule VII'!G25","v":0}]
["Sch VII","LT Reserves",null,"PVFP - 4e. Longevity - Def Pay 71-75",{"$f":"'Schedule VII'!G26","v":0}]
["Sch VII","LT Reserves",null,"PVFP - 4f. Longevity - Def Pay 76+",{"$f":"'Schedule VII'!G27","v":0}]
["Sch VII","LT Reserves",null,"PVFP - 4g. Longevity - Def Pay Total",{"$f":"'Schedule VII'!G28","v":0}]
["Sch VII","LT Reserves",null,"PVFP - 5. Annuities Certain",{"$f":"'Schedule VII'!G29","v":0}]
["Sch VII","LT Reserves",null,"PVFP - 6. Deferred Acc. Annuities",{"$f":"'Schedule VII'!G30","v":0}]
["Sch VII","LT Reserves",null,"PVFP - 7d. Dis. Income: Active Lives Total",{"$f":"'Schedule VII'!G36","v":0}]
["Sch VII","LT Reserves",null,"PVFP - 8. Dis. Income: Active Liv",{"$f":"'Schedule VII'!G37","v":0}]
["Sch VII","LT Reserves",null,"PVFP - 9. Dis. Income: Claims in Pay",{"$f":"'Schedule VII'!G38","v":0}]
["Sch VII","LT Reserves",null,"PVFP - 10. Dis. Income: Claims in Pay Other",{"$f":"'Schedule VII'!G39","v":0}]
["Sch VII","LT Reserves",null,"PVFP - 11. Group Life",{"$f":"'Schedule VII'!G40","v":0}]
["Sch VII","LT Reserves",null,"PVFP - 12. Group Disability",{"$f":"'Schedule VII'!G41","v":0}]
["Sch VII","LT Reserves",null,"PVFP - 13. Group Health",{"$f":"'Schedule VII'!G42","v":0}]
["Sch VII","LT Reserves",null,"PVFP - 14. Stop Loss",{"$f":"'Schedule VII'!G43","v":0}]
["Sch VII","LT Reserves",null,"PVFP - 15. Riders",{"$f":"'Schedule VII'!G44","v":0}]
["Sch VII","LT Reserves",null,"PVFP - 16. Sub Total",{"$f":"'Schedule VII'!G46","v":0}]
["Sch VII","LT Reserves",null,"PVFP - 17. Variable Annuities",{"$f":"'Schedule VII'!G47","v":0}]
["Sch VII","LT Reserves",null,"PVFP - 18. Total",{"$f":"'Schedule VII'!G48","v":0}]
["Sch VII","LT Reserves",null,"Best Est. - 1. Mortality",{"$f":"'Schedule VII'!H10","v":0},null,null,null,null,null,null,null,{"$f":"'Schedule VII (EBS)'!D10","v":0}]
["Sch VII","LT Reserves",null,"Best Est. - 2. Critical Illness",{"$f":"'Schedule VII'!H11","v":0},null,null,null,null,null,null,null,{"$f":"'Schedule VII (EBS)'!D11","v":0}]
["Sch VII","LT Reserves",null,"Best Est. - 3a. Longevity - Imm Pay 0-55",{"$f":"'Schedule VII'!H14","v":0},null,null,null,null,null,null,null,{"$f":"'Schedule VII (EBS)'!D14","v":0}]
["Sch VII","LT Reserves",null,"Best Est. - 3b. Longevity - Imm Pay 55-65",{"$f":"'Schedule VII'!H15","v":0},null,null,null,null,null,null,null,{"$f":"'Schedule VII (EBS)'!D15","v":0}]
["Sch VII","LT Reserves",null,"Best Est. - 3c. Longevity - Imm Pay 66-70",{"$f":"'Schedule VII'!H16","v":0},null,null,null,null,null,null,null,{"$f":"'Schedule VII (EBS)'!D16","v":0}]
["Sch VII","LT Reserves",null,"Best Est. - 3d. Longevity - Imm Pay 71-80",{"$f":"'Schedule VII'!H17","v":0},null,null,null,null,null,null,null,{"$f":"'Schedule VII (EBS)'!D17","v":0}]
["Sch VII","LT Reserves",null,"Best Est. - 3e. Longevity - Imm Pay 81+",{"$f":"'Schedule VII'!H18","v":0},null,null,null,null,null,null,null,{"$f":"'Schedule VII (EBS)'!D18","v":0}]
["Sch VII","LT Reserves",null,"Best Est. - 3f. Longevity - Imm Pay Total",{"$f":"'Schedule VII'!H19","v":0},null,null,null,null,null,null,null,{"$f":"'Schedule VII (EBS)'!D19","v":0}]
["Sch VII","LT Reserves",null,"Best Est. - 4a. Longevity - Def Pay 0-55",{"$f":"'Schedule VII'!H22","v":0},null,null,null,null,null,null,null,{"$f":"'Schedule VII (EBS)'!D22","v":0}]
["Sch VII","LT Reserves",null,"Best Est. - 4b. Longevity - Def Pay 56-60",{"$f":"'Schedule VII'!H23","v":0},null,null,null,null,null,null,null,{"$f":"'Schedule VII (EBS)'!D23","v":0}]
["Sch VII","LT Reserves",null,"Best Est. - 4c. Longevity - Def Pay 61-65",{"$f":"'Schedule VII'!H24","v":0},null,null,null,null,null,null,null,{"$f":"'Schedule VII (EBS)'!D24","v":0}]
["Sch VII","LT Reserves",null,"Best Est. - 4d. Longevity - Def Pay 66-70",{"$f":"'Schedule VII'!H25","v":0},null,null,null,null,null,null,null,{"$f":"'Schedule VII (EBS)'!D25","v":0}]
["Sch VII","LT Reserves",null,"Best Est. - 4e. Longevity - Def Pay 71-75",{"$f":"'Schedule VII'!H26","v":0},null,null,null,null,null,null,null,{"$f":"'Schedule VII (EBS)'!D26","v":0}]
["Sch VII","LT Reserves",null,"Best Est. - 4f. Longevity - Def Pay 76+",{"$f":"'Schedule VII'!H27","v":0},null,null,null,null,null,null,null,{"$f":"'Schedule VII (EBS)'!D27","v":0}]
["Sch VII","LT Reserves",null,"Best Est. - 4g. Longevity - Def Pay Total",{"$f":"'Schedule VII'!H28","v":0},null,null,null,null,null,null,null,{"$f":"'Schedule VII (EBS)'!D28","v":0}]
["Sch VII","LT Reserves",null,"Best Est. - 5. Annuities Certain",{"$f":"'Schedule VII'!H29","v":0},null,null,null,null,null,null,null,{"$f":"'Schedule VII (EBS)'!D29","v":0}]
["Sch VII","LT Reserves",null,"Best Est. - 6. Deferred Acc. Annuities",{"$f":"'Schedule VII'!H30","v":0},null,null,null,null,null,null,null,{"$f":"'Schedule VII (EBS)'!D30","v":0}]
["Sch VII","LT Reserves",null,"Best Est. - 7d. Dis. Income: Active Lives Total",{"$f":"'Schedule VII'!H36","v":0},null,null,null,null,null,null,null,{"$f":"'Schedule VII (EBS)'!D36","v":0}]
["Sch VII","LT Reserves",null,"Best Est. - 8. Dis. Income: Active Liv",{"$f":"'Schedule VII'!H37","v":0},null,null,null,null,null,null,null,{"$f":"'Schedule VII (EBS)'!D37","v":0}]
["Sch VII","LT Reserves",null,"Best Est. - 9. Dis. Income: Claims in Pay",{"$f":"'Schedule VII'!H38","v":0},null,null,null,null,null,null,null,{"$f":"'Schedule VII (EBS)'!D38","v":0}]
["Sch VII","LT Reserves",null,"Best Est. - 10. Dis. Income: Claims in Pay Other",{"$f":"'Schedule VII'!H39","v":0},null,null,null,null,null,null,null,{"$f":"'Schedule VII (EBS)'!D39","v":0}]
["Sch VII","LT Reserves",null,"Best Est. - 11. Group Life",{"$f":"'Schedule VII'!H40","v":0},null,null,null,null,null,null,null,{"$f":"'Schedule VII (EBS)'!D40","v":0}]
["Sch VII","LT Reserves",null,"Best Est. - 12. Group Disability",{"$f":"'Schedule VII'!H41","v":0},null,null,null,null,null,null,null,{"$f":"'Schedule VII (EBS)'!D41","v":0}]
["Sch VII","LT Reserves",null,"Best Est. - 13. Group Health",{"$f":"'Schedule VII'!H42","v":0},null,null,null,null,null,null,null,{"$f":"'Schedule VII (EBS)'!D42","v":0}]
["Sch VII","LT Reserves",null,"Best Est. - 14. Stop Loss",{"$f":"'Schedule VII'!H43","v":0},null,null,null,null,null,null,null,{"$f":"'Schedule VII (EBS)'!D43","v":0}]
["Sch VII","LT Reserves",null,"Best Est. - 15. Riders",{"$f":"'Schedule VII'!H44","v":0},null,null,null,null,null,null,null,{"$f":"'Schedule VII (EBS)'!D44","v":0}]
["Sch VII","LT Reserves",null,"Best Est. - 16. Sub Total",{"$f":"'Schedule VII'!H46","v":0},null,null,null,null,null,null,null,{"$f":"'Schedule VII (EBS)'!D46","v":0}]
["Sch VII","LT Reserves",null,"Best Est. - 17. Variable Annuities",{"$f":"'Schedule VII'!H47","v":0},null,null,null,null,null,null,null,{"$f":"'Schedule VII (EBS)'!D47","v":0}]
["Sch VII","LT Reserves",null,"Best Est. - 18. Total",{"$f":"'Schedule VII'!H48","v":0},null,null,null,null,null,null,null,{"$f":"'Schedule VII (EBS)'!D48","v":0}]
["Sch VII","LT Reserves",null,"Adj Prod. - 1. Mortality",{"$f":"'Schedule VII'!N10","v":0},null,null,null,null,null,null,null,{"$f":"'Schedule VII (EBS)'!H10","v":0}]
["Sch VII","LT Reserves",null,"Adj Prod. - 2. Critical Illness",{"$f":"'Schedule VII'!N11","v":0},null,null,null,null,null,null,null,{"$f":"'Schedule VII (EBS)'!H11","v":0}]
["Sch VII","LT Reserves",null,"Net Amount @ Risk - 1. Mortality",{"$f":"'Schedule VII'!O10","v":0},null,null,null,null,null,null,null,{"$f":"'Schedule VII (EBS)'!I10","v":0}]
["Sch VII","LT Reserves",null,"Net Amount @ Risk - 2. Critical Illness",{"$f":"'Schedule VII'!O11","v":0},null,null,null,null,null,null,null,{"$f":"'Schedule VII (EBS)'!I11","v":0}]
["Sch VII","LT Reserves",null,"12. BBNI Prem. - 1. Mortality",null,null,null,null,null,null,null,null,{"$f":"'Schedule VII (EBS)'!L10","v":0}]
["Sch VII","LT Reserves",null,"12. BBNI Prem. - 2. Critical Illness",null,null,null,null,null,null,null,null,{"$f":"'Schedule VII (EBS)'!L11","v":0}]
["Sch VII","LT Reserves",null,"12. BBNI Prem. - 3f. Longevity - Imm Pay",null,null,null,null,null,null,null,null,{"$f":"'Schedule VII (EBS)'!L19","v":0}]
["Sch VII","LT Reserves",null,"12. BBNI Prem. - 4g. Longevity - Def Pay",null,null,null,null,null,null,null,null,{"$f":"'Schedule VII (EBS)'!L28","v":0}]
["Sch VII","LT Reserves",null,"12. BBNI Prem. - 5. Annuities Certain",null,null,null,null,null,null,null,null,{"$f":"'Schedule VII (EBS)'!L29","v":0}]
["Sch VII","LT Reserves",null,"12. BBNI Prem. - 6. Deferred Acc. Annuities",null,null,null,null,null,null,null,null,{"$f":"'Schedule VII (EBS)'!L30","v":0}]
["Sch VII","LT Reserves",null,"12. BBNI Prem. - 7d. Dis. Income: Active Lives ",null,null,null,null,null,null,null,null,{"$f":"'Schedule VII (EBS)'!L36","v":0}]
["Sch VII","LT Reserves",null,"12. BBNI Prem. - 8. Dis. Income: Active Liv",null,null,null,null,null,null,null,null,{"$f":"'Schedule VII (EBS)'!L37","v":0}]
["Sch VII","LT Reserves",null,"12. BBNI Prem. - 9. Dis. Income: Claims in Pay",null,null,null,null,null,null,null,null,{"$f":"'Schedule VII (EBS)'!L38","v":0}]
["Sch VII","LT Reserves",null,"12. BBNI Prem. - 10. Dis. Income: Claims in Pay Other",null,null,null,null,null,null,null,null,{"$f":"'Schedule VII (EBS)'!L39","v":0}]
["Sch VII","LT Reserves",null,"12. BBNI Prem. - 11. Group Life",null,null,null,null,null,null,null,null,{"$f":"'Schedule VII (EBS)'!L40","v":0}]
["Sch VII","LT Reserves",null,"12. BBNI Prem. - 12. Group Disability",null,null,null,null,null,null,null,null,{"$f":"'Schedule VII (EBS)'!L41","v":0}]
["Sch VII","LT Reserves",null,"12. BBNI Prem. - 13. Group Health",null,null,null,null,null,null,null,null,{"$f":"'Schedule VII (EBS)'!L42","v":0}]
["Sch VII","LT Reserves",null,"12. BBNI Prem. - 14. Stop Loss",null,null,null,null,null,null,null,null,{"$f":"'Schedule VII (EBS)'!L43","v":0}]
["Sch VII","LT Reserves",null,"12. BBNI Prem. - 15. Riders",null,null,null,null,null,null,null,null,{"$f":"'Schedule VII (EBS)'!L44","v":0}]
["Sch VII","LT Reserves",null,"12. BBNI Prem. - 16. Sub Total",null,null,null,null,null,null,null,null,{"$f":"'Schedule VII (EBS)'!L46","v":0}]
["Sch VII","LT Reserves",null,"12. BBNI Prem. - 17. Variable Annuities",null,null,null,null,null,null,null,null,{"$f":"'Schedule VII (EBS)'!L47","v":0}]
["Sch VII","LT Reserves",null,"12. BBNI Prem. - 18. Total",null,null,null,null,null,null,null,null,{"$f":"'Schedule VII (EBS)'!L48","v":0}]
["Sch VII","LT Reserves",null,"13. BBNI Best Est. - 1. Mortality",null,null,null,null,null,null,null,null,{"$f":"'Schedule VII (EBS)'!M10","v":0}]
["Sch VII","LT Reserves",null,"13. BBNI Best Est. - 2. Critical Illness",null,null,null,null,null,null,null,null,{"$f":"'Schedule VII (EBS)'!M11","v":0}]
["Sch VII","LT Reserves",null,"13. BBNI Best Est. - 3f. Longevity - Imm Pay",null,null,null,null,null,null,null,null,{"$f":"'Schedule VII (EBS)'!M19","v":0}]
["Sch VII","LT Reserves",null,"13. BBNI Best Est. - 4g. Longevity - Def Pay",null,null,null,null,null,null,null,null,{"$f":"'Schedule VII (EBS)'!M28","v":0}]
["Sch VII","LT Reserves",null,"13. BBNI Best Est. - 5. Annuities Certain",null,null,null,null,null,null,null,null,{"$f":"'Schedule VII (EBS)'!M29","v":0}]
["Sch VII","LT Reserves",null,"13. BBNI Best Est. - 6. Deferred Acc. Annuities",null,null,null,null,null,null,null,null,{"$f":"'Schedule VII (EBS)'!M30","v":0}]
["Sch VII","LT Reserves",null,"13. BBNI Best Est. - 7d. Dis. Income: Active Lives ",null,null,null,null,null,null,null,null,{"$f":"'Schedule VII (EBS)'!M36","v":0}]
["Sch VII","LT Reserves",null,"13. BBNI Best Est. - 8. Dis. Income: Active Liv",null,null,null,null,null,null,null,null,{"$f":"'Schedule VII (EBS)'!M37","v":0}]
["Sch VII","LT Reserves",null,"13. BBNI Best Est. - 9. Dis. Income: Claims in Pay",null,null,null,null,null,null,null,null,{"$f":"'Schedule VII (EBS)'!M38","v":0}]
["Sch VII","LT Reserves",null,"13. BBNI Best Est. - 10. Dis. Income: Claims in Pay Other",null,null,null,null,null,null,null,null,{"$f":"'Schedule VII (EBS)'!M39","v":0}]
["Sch VII","LT Reserves",null,"13. BBNI Best Est. - 11. Group Life",null,null,null,null,null,null,null,null,{"$f":"'Schedule VII (EBS)'!M40","v":0}]
["Sch VII","LT Reserves",null,"13. BBNI Best Est. - 12. Group Disability",null,null,null,null,null,null,null,null,{"$f":"'Schedule VII (EBS)'!M41","v":0}]
["Sch VII","LT Reserves",null,"13. BBNI Best Est. - 13. Group Health",null,null,null,null,null,null,null,null,{"$f":"'Schedule VII (EBS)'!M42","v":0}]
["Sch VII","LT Reserves",null,"13. BBNI Best Est. - 14. Stop Loss",null,null,null,null,null,null,null,null,{"$f":"'Schedule VII (EBS)'!M43","v":0}]
["Sch VII","LT Reserves",null,"13. BBNI Best Est. - 15. Riders",null,null,null,null,null,null,null,null,{"$f":"'Schedule VII (EBS)'!M44","v":0}]
["Sch VII","LT Reserves",null,"13. BBNI Best Est. - 16. Sub Total",null,null,null,null,null,null,null,null,{"$f":"'Schedule VII (EBS)'!M46","v":0}]
["Sch VII","LT Reserves",null,"13. BBNI Best Est. - 17. Variable Annuities",null,null,null,null,null,null,null,null,{"$f":"'Schedule VII (EBS)'!M47","v":0}]
["Sch VII","LT Reserves",null,"13. BBNI Best Est. - 18. Total",null,null,null,null,null,null,null,null,{"$f":"'Schedule VII (EBS)'!M48","v":0}]
["Sch VII","LT Reserves",null,"14. Best Est. Trans. - 1. Mortality",null,null,null,null,null,null,null,null,{"$f":"'Schedule VII (EBS)'!N10","v":0}]
["Sch VII","LT Reserves",null,"14. Best Est. Trans. - 2. Critical Illness",null,null,null,null,null,null,null,null,{"$f":"'Schedule VII (EBS)'!N11","v":0}]
["Sch VII","LT Reserves",null,"14. Best Est. Trans. - 3f. Longevity - Imm Pay",null,null,null,null,null,null,null,null,{"$f":"'Schedule VII (EBS)'!N19","v":0}]
["Sch VII","LT Reserves",null,"14. Best Est. Trans. - 4g. Longevity - Def Pay",null,null,null,null,null,null,null,null,{"$f":"'Schedule VII (EBS)'!N28","v":0}]
["Sch VII","LT Reserves",null,"14. Best Est. Trans. - 5. Annuities Certain",null,null,null,null,null,null,null,null,{"$f":"'Schedule VII (EBS)'!N29","v":0}]
["Sch VII","LT Reserves",null,"14. Best Est. Trans. - 6. Deferred Acc. Annuities",null,null,null,null,null,null,null,null,{"$f":"'Schedule VII (EBS)'!N30","v":0}]
["Sch VII","LT Reserves",null,"14. Best Est. Trans. - 7d. Dis. Income: Active Lives ",null,null,null,null,null,null,null,null,{"$f":"'Schedule VII (EBS)'!N36","v":0}]
["Sch VII","LT Reserves",null,"14. Best Est. Trans. - 8. Dis. Income: Active Liv",null,null,null,null,null,null,null,null,{"$f":"'Schedule VII (EBS)'!N37","v":0}]
["Sch VII","LT Reserves",null,"14. Best Est. Trans. - 9. Dis. Income: Claims in Pay",null,null,null,null,null,null,null,null,{"$f":"'Schedule VII (EBS)'!N38","v":0}]
["Sch VII","LT Reserves",null,"14. Best Est. Trans. - 10. Dis. Income: Claims in Pay Other",null,null,null,null,null,null,null,null,{"$f":"'Schedule VII (EBS)'!N39","v":0}]
["Sch VII","LT Reserves",null,"14. Best Est. Trans. - 11. Group Life",null,null,null,null,null,null,null,null,{"$f":"'Schedule VII (EBS)'!N40","v":0}]
["Sch VII","LT Reserves",null,"14. Best Est. Trans. - 12. Group Disability",null,null,null,null,null,null,null,null,{"$f":"'Schedule VII (EBS)'!N41","v":0}]
["Sch VII","LT Reserves",null,"14. Best Est. Trans. - 13. Group Health",null,null,null,null,null,null,null,null,{"$f":"'Schedule VII (EBS)'!N42","v":0}]
["Sch VII","LT Reserves",null,"14. Best Est. Trans. - 14. Stop Loss",null,null,null,null,null,null,null,null,{"$f":"'Schedule VII (EBS)'!N43","v":0}]
["Sch VII","LT Reserves",null,"14. Best Est. Trans. - 15. Riders",null,null,null,null,null,null,null,null,{"$f":"'Schedule VII (EBS)'!N44","v":0}]
["Sch VII","LT Reserves",null,"14. Best Est. Trans. - 16. Sub Total",null,null,null,null,null,null,null,null,{"$f":"'Schedule VII (EBS)'!N46","v":0}]
["Sch VII","LT Reserves",null,"14. Best Est. Trans. - 17. Variable Annuities",null,null,null,null,null,null,null,null,{"$f":"'Schedule VII (EBS)'!N47","v":0}]
["Sch VII","LT Reserves",null,"14. Best Est. Trans. - 18. Total",null,null,null,null,null,null,null,null,{"$f":"'Schedule VII (EBS)'!N48","v":0}]
["Sch VII","LT Reserves",null,"15. Best Est. W/O Trans. - 1. Mortality",null,null,null,null,null,null,null,null,{"$f":"'Schedule VII (EBS)'!O10","v":0}]
["Sch VII","LT Reserves",null,"15. Best Est. W/O Trans. - 2. Critical Illness",null,null,null,null,null,null,null,null,{"$f":"'Schedule VII (EBS)'!O11","v":0}]
["Sch VII","LT Reserves",null,"15. Best Est. W/O Trans. - 3f. Longevity - Imm Pay",null,null,null,null,null,null,null,null,{"$f":"'Schedule VII (EBS)'!O19","v":0}]
["Sch VII","LT Reserves",null,"15. Best Est. W/O Trans. - 4g. Longevity - Def Pay",null,null,null,null,null,null,null,null,{"$f":"'Schedule VII (EBS)'!O28","v":0}]
["Sch VII","LT Reserves",null,"15. Best Est. W/O Trans. - 5. Annuities Certain",null,null,null,null,null,null,null,null,{"$f":"'Schedule VII (EBS)'!O29","v":0}]
["Sch VII","LT Reserves",null,"15. Best Est. W/O Trans. - 6. Deferred Acc. Annuities",null,null,null,null,null,null,null,null,{"$f":"'Schedule VII (EBS)'!O30","v":0}]
["Sch VII","LT Reserves",null,"15. Best Est. W/O Trans. - 7d. Dis. Income: Active Lives ",null,null,null,null,null,null,null,null,{"$f":"'Schedule VII (EBS)'!O36","v":0}]
["Sch VII","LT Reserves",null,"15. Best Est. W/O Trans. - 8. Dis. Income: Active Liv",null,null,null,null,null,null,null,null,{"$f":"'Schedule VII (EBS)'!O37","v":0}]
["Sch VII","LT Reserves",null,"15. Best Est. W/O Trans. - 9. Dis. Income: Claims in Pay",null,null,null,null,null,null,null,null,{"$f":"'Schedule VII (EBS)'!O38","v":0}]
["Sch VII","LT Reserves",null,"15. Best Est. W/O Trans. - 10. Dis. Income: Claims in Pay Other",null,null,null,null,null,null,null,null,{"$f":"'Schedule VII (EBS)'!O39","v":0}]
["Sch VII","LT Reserves",null,"15. Best Est. W/O Trans. - 11. Group Life",null,null,null,null,null,null,null,null,{"$f":"'Schedule VII (EBS)'!O40","v":0}]
["Sch VII","LT Reserves",null,"15. Best Est. W/O Trans. - 12. Group Disability",null,null,null,null,null,null,null,null,{"$f":"'Schedule VII (EBS)'!O41","v":0}]
["Sch VII","LT Reserves",null,"15. Best Est. W/O Trans. - 13. Group Health",null,null,null,null,null,null,null,null,{"$f":"'Schedule VII (EBS)'!O42","v":0}]
["Sch VII","LT Reserves",null,"15. Best Est. W/O Trans. - 14. Stop Loss",null,null,null,null,null,null,null,null,{"$f":"'Schedule VII (EBS)'!O43","v":0}]
["Sch VII","LT Reserves",null,"15. Best Est. W/O Trans. - 15. Riders",null,null,null,null,null,null,null,null,{"$f":"'Schedule VII (EBS)'!O44","v":0}]
["Sch VII","LT Reserves",null,"15. Best Est. W/O Trans. - 16. Sub Total",null,null,null,null,null,null,null,null,{"$f":"'Schedule VII (EBS)'!O46","v":0}]
["Sch VII","LT Reserves",null,"15. Best Est. W/O Trans. - 17. Variable Annuities",null,null,null,null,null,null,null,null,{"$f":"'Schedule VII (EBS)'!O47","v":0}]
["Sch VII","LT Reserves",null,"15. Best Est. W/O Trans. - 18. Total",null,null,null,null,null,null,null,null,{"$f":"'Schedule VII (EBS)'!O48","v":0}]
["Sch VII","LT Reserves",null,"16. Scen. - 1. Mortality",null,null,null,null,null,null,null,null,{"$f":"'Schedule VII (EBS)'!P10","v":0}]
["Sch VII","LT Reserves",null,"16. Scen. - 2. Critical Illness",null,null,null,null,null,null,null,null,{"$f":"'Schedule VII (EBS)'!P11","v":0}]
["Sch VII","LT Reserves",null,"16. Scen. - 3f. Longevity - Imm Pay",null,null,null,null,null,null,null,null,{"$f":"'Schedule VII (EBS)'!P19","v":0}]
["Sch VII","LT Reserves",null,"16. Scen. - 4g. Longevity - Def Pay",null,null,null,null,null,null,null,null,{"$f":"'Schedule VII (EBS)'!P28","v":0}]
["Sch VII","LT Reserves",null,"16. Scen. - 5. Annuities Certain",null,null,null,null,null,null,null,null,{"$f":"'Schedule VII (EBS)'!P29","v":0}]
["Sch VII","LT Reserves",null,"16. Scen. - 6. Deferred Acc. Annuities",null,null,null,null,null,null,null,null,{"$f":"'Schedule VII (EBS)'!P30","v":0}]
["Sch VII","LT Reserves",null,"16. Scen. - 7d. Dis. Income: Active Lives ",null,null,null,null,null,null,null,null,{"$f":"'Schedule VII (EBS)'!P36","v":0}]
["Sch VII","LT Reserves",null,"16. Scen. - 8. Dis. Income: Active Liv",null,null,null,null,null,null,null,null,{"$f":"'Schedule VII (EBS)'!P37","v":0}]
["Sch VII","LT Reserves",null,"16. Scen. - 9. Dis. Income: Claims in Pay",null,null,null,null,null,null,null,null,{"$f":"'Schedule VII (EBS)'!P38","v":0}]
["Sch VII","LT Reserves",null,"16. Scen. - 10. Dis. Income: Claims in Pay Other",null,null,null,null,null,null,null,null,{"$f":"'Schedule VII (EBS)'!P39","v":0}]
["Sch VII","LT Reserves",null,"16. Scen. - 11. Group Life",null,null,null,null,null,null,null,null,{"$f":"'Schedule VII (EBS)'!P40","v":0}]
["Sch VII","LT Reserves",null,"16. Scen. - 12. Group Disability",null,null,null,null,null,null,null,null,{"$f":"'Schedule VII (EBS)'!P41","v":0}]
["Sch VII","LT Reserves",null,"16. Scen. - 13. Group Health",null,null,null,null,null,null,null,null,{"$f":"'Schedule VII (EBS)'!P42","v":0}]
["Sch VII","LT Reserves",null,"16. Scen. - 14. Stop Loss",null,null,null,null,null,null,null,null,{"$f":"'Schedule VII (EBS)'!P43","v":0}]
["Sch VII","LT Reserves",null,"16. Scen. - 15. Riders",null,null,null,null,null,null,null,null,{"$f":"'Schedule VII (EBS)'!P44","v":0}]
["Sch VII","LT Reserves",null,"16. Scen. - 16. Sub Total",null,null,null,null,null,null,null,null,{"$f":"'Schedule VII (EBS)'!P46","v":0}]
["Sch VII","LT Reserves",null,"16. Scen. - 17. Variable Annuities",null,null,null,null,null,null,null,null,{"$f":"'Schedule VII (EBS)'!P47","v":0}]
["Sch VII","LT Reserves",null,"16. Scen. - 18. Total",null,null,null,null,null,null,null,null,{"$f":"'Schedule VII (EBS)'!P48","v":0}]
["Sch VII","LT Reserves",null,"17. W/O  Scen. - 1. Mortality",null,null,null,null,null,null,null,null,{"$f":"'Schedule VII (EBS)'!Q10","v":0}]
["Sch VII","LT Reserves",null,"17. W/O  Scen. - 2. Critical Illness",null,null,null,null,null,null,null,null,{"$f":"'Schedule VII (EBS)'!Q11","v":0}]
["Sch VII","LT Reserves",null,"17. W/O  Scen. - 3f. Longevity - Imm Pay",null,null,null,null,null,null,null,null,{"$f":"'Schedule VII (EBS)'!Q19","v":0}]
["Sch VII","LT Reserves",null,"17. W/O  Scen. - 4g. Longevity - Def Pay",null,null,null,null,null,null,null,null,{"$f":"'Schedule VII (EBS)'!Q28","v":0}]
["Sch VII","LT Reserves",null,"17. W/O  Scen. - 5. Annuities Certain",null,null,null,null,null,null,null,null,{"$f":"'Schedule VII (EBS)'!Q29","v":0}]
["Sch VII","LT Reserves",null,"17. W/O  Scen. - 6. Deferred Acc. Annuities",null,null,null,null,null,null,null,null,{"$f":"'Schedule VII (EBS)'!Q30","v":0}]
["Sch VII","LT Reserves",null,"17. W/O  Scen. - 7d. Dis. Income: Active Lives ",null,null,null,null,null,null,null,null,{"$f":"'Schedule VII (EBS)'!Q36","v":0}]
["Sch VII","LT Reserves",null,"17. W/O  Scen. - 8. Dis. Income: Active Liv",null,null,null,null,null,null,null,null,{"$f":"'Schedule VII (EBS)'!Q37","v":0}]
["Sch VII","LT Reserves",null,"17. W/O  Scen. - 9. Dis. Income: Claims in Pay",null,null,null,null,null,null,null,null,{"$f":"'Schedule VII (EBS)'!Q38","v":0}]
["Sch VII","LT Reserves",null,"17. W/O  Scen. - 10. Dis. Income: Claims in Pay Other",null,null,null,null,null,null,null,null,{"$f":"'Schedule VII (EBS)'!Q39","v":0}]
["Sch VII","LT Reserves",null,"17. W/O  Scen. - 11. Group Life",null,null,null,null,null,null,null,null,{"$f":"'Schedule VII (EBS)'!Q40","v":0}]
["Sch VII","LT Reserves",null,"17. W/O  Scen. - 12. Group Disability",null,null,null,null,null,null,null,null,{"$f":"'Schedule VII (EBS)'!Q41","v":0}]
["Sch VII","LT Reserves",null,"17. W/O  Scen. - 13. Group Health",null,null,null,null,null,null,null,null,{"$f":"'Schedule VII (EBS)'!Q42","v":0}]
["Sch VII","LT Reserves",null,"17. W/O  Scen. - 14. Stop Loss",null,null,null,null,null,null,null,null,{"$f":"'Schedule VII (EBS)'!Q43","v":0}]
["Sch VII","LT Reserves",null,"17. W/O  Scen. - 15. Riders",null,null,null,null,null,null,null,null,{"$f":"'Schedule VII (EBS)'!Q44","v":0}]
["Sch VII","LT Reserves",null,"17. W/O  Scen. - 16. Sub Total",null,null,null,null,null,null,null,null,{"$f":"'Schedule VII (EBS)'!Q46","v":0}]
["Sch VII","LT Reserves",null,"17. W/O  Scen. - 17. Variable Annuities",null,null,null,null,null,null,null,null,{"$f":"'Schedule VII (EBS)'!Q47","v":0}]
["Sch VII","LT Reserves",null,"17. W/O  Scen. - 18. Total",null,null,null,null,null,null,null,null,{"$f":"'Schedule VII (EBS)'!Q48","v":0}]
["Sch VII","LT Reserves",null,"18. Base Scen. - 1. Mortality",null,null,null,null,null,null,null,null,{"$f":"'Schedule VII (EBS)'!R10","v":0}]
["Sch VII","LT Reserves",null,"18. Base Scen. - 2. Critical Illness",null,null,null,null,null,null,null,null,{"$f":"'Schedule VII (EBS)'!R11","v":0}]
["Sch VII","LT Reserves",null,"18. Base Scen. - 3f. Longevity - Imm Pay",null,null,null,null,null,null,null,null,{"$f":"'Schedule VII (EBS)'!R19","v":0}]
["Sch VII","LT Reserves",null,"18. Base Scen. - 4g. Longevity - Def Pay",null,null,null,null,null,null,null,null,{"$f":"'Schedule VII (EBS)'!R28","v":0}]
["Sch VII","LT Reserves",null,"18. Base Scen. - 5. Annuities Certain",null,null,null,null,null,null,null,null,{"$f":"'Schedule VII (EBS)'!R29","v":0}]
["Sch VII","LT Reserves",null,"18. Base Scen. - 6. Deferred Acc. Annuities",null,null,null,null,null,null,null,null,{"$f":"'Schedule VII (EBS)'!R30","v":0}]
["Sch VII","LT Reserves",null,"18. Base Scen. - 7d. Dis. Income: Active Lives ",null,null,null,null,null,null,null,null,{"$f":"'Schedule VII (EBS)'!R36","v":0}]
["Sch VII","LT Reserves",null,"18. Base Scen. - 8. Dis. Income: Active Liv",null,null,null,null,null,null,null,null,{"$f":"'Schedule VII (EBS)'!R37","v":0}]
["Sch VII","LT Reserves",null,"18. Base Scen. - 9. Dis. Income: Claims in Pay",null,null,null,null,null,null,null,null,{"$f":"'Schedule VII (EBS)'!R38","v":0}]
["Sch VII","LT Reserves",null,"18. Base Scen. - 10. Dis. Income: Claims in Pay Other",null,null,null,null,null,null,null,null,{"$f":"'Schedule VII (EBS)'!R39","v":0}]
["Sch VII","LT Reserves",null,"18. Base Scen. - 11. Group Life",null,null,null,null,null,null,null,null,{"$f":"'Schedule VII (EBS)'!R40","v":0}]
["Sch VII","LT Reserves",null,"18. Base Scen. - 12. Group Disability",null,null,null,null,null,null,null,null,{"$f":"'Schedule VII (EBS)'!R41","v":0}]
["Sch VII","LT Reserves",null,"18. Base Scen. - 13. Group Health",null,null,null,null,null,null,null,null,{"$f":"'Schedule VII (EBS)'!R42","v":0}]
["Sch VII","LT Reserves",null,"18. Base Scen. - 14. Stop Loss",null,null,null,null,null,null,null,null,{"$f":"'Schedule VII (EBS)'!R43","v":0}]
["Sch VII","LT Reserves",null,"18. Base Scen. - 15. Riders",null,null,null,null,null,null,null,null,{"$f":"'Schedule VII (EBS)'!R44","v":0}]
["Sch VII","LT Reserves",null,"18. Base Scen. - 16. Sub Total",null,null,null,null,null,null,null,null,{"$f":"'Schedule VII (EBS)'!R46","v":0}]
["Sch VII","LT Reserves",null,"18. Base Scen. - 17. Variable Annuities",null,null,null,null,null,null,null,null,{"$f":"'Schedule VII (EBS)'!R47","v":0}]
["Sch VII","LT Reserves",null,"18. Base Scen. - 18. Total",null,null,null,null,null,null,null,null,{"$f":"'Schedule VII (EBS)'!R48","v":0}]
["Sch VII","LT Reserves",null,"19. BBNI Prem. - 1. Mortality",null,null,null,null,null,null,null,null,{"$f":"'Schedule VII (EBS)'!S10","v":0}]
["Sch VII","LT Reserves",null,"19. BBNI Prem. - 2. Critical Illness",null,null,null,null,null,null,null,null,{"$f":"'Schedule VII (EBS)'!S11","v":0}]
["Sch VII","LT Reserves",null,"19. BBNI Prem. - 3f. Longevity - Imm Pay",null,null,null,null,null,null,null,null,{"$f":"'Schedule VII (EBS)'!S19","v":0}]
["Sch VII","LT Reserves",null,"19. BBNI Prem. - 4g. Longevity - Def Pay",null,null,null,null,null,null,null,null,{"$f":"'Schedule VII (EBS)'!S28","v":0}]
["Sch VII","LT Reserves",null,"19. BBNI Prem. - 5. Annuities Certain",null,null,null,null,null,null,null,null,{"$f":"'Schedule VII (EBS)'!S29","v":0}]
["Sch VII","LT Reserves",null,"19. BBNI Prem. - 6. Deferred Acc. Annuities",null,null,null,null,null,null,null,null,{"$f":"'Schedule VII (EBS)'!S30","v":0}]
["Sch VII","LT Reserves",null,"19. BBNI Prem. - 7d. Dis. Income: Active Lives ",null,null,null,null,null,null,null,null,{"$f":"'Schedule VII (EBS)'!S36","v":0}]
["Sch VII","LT Reserves",null,"19. BBNI Prem. - 8. Dis. Income: Active Liv",null,null,null,null,null,null,null,null,{"$f":"'Schedule VII (EBS)'!S37","v":0}]
["Sch VII","LT Reserves",null,"19. BBNI Prem. - 9. Dis. Income: Claims in Pay",null,null,null,null,null,null,null,null,{"$f":"'Schedule VII (EBS)'!S38","v":0}]
["Sch VII","LT Reserves",null,"19. BBNI Prem. - 10. Dis. Income: Claims in Pay Other",null,null,null,null,null,null,null,null,{"$f":"'Schedule VII (EBS)'!S39","v":0}]
["Sch VII","LT Reserves",null,"19. BBNI Prem. - 11. Group Life",null,null,null,null,null,null,null,null,{"$f":"'Schedule VII (EBS)'!S40","v":0}]
["Sch VII","LT Reserves",null,"19. BBNI Prem. - 12. Group Disability",null,null,null,null,null,null,null,null,{"$f":"'Schedule VII (EBS)'!S41","v":0}]
["Sch VII","LT Reserves",null,"19. BBNI Prem. - 13. Group Health",null,null,null,null,null,null,null,null,{"$f":"'Schedule VII (EBS)'!S42","v":0}]
["Sch VII","LT Reserves",null,"19. BBNI Prem. - 14. Stop Loss",null,null,null,null,null,null,null,null,{"$f":"'Schedule VII (EBS)'!S43","v":0}]
["Sch VII","LT Reserves",null,"19. BBNI Prem. - 15. Riders",null,null,null,null,null,null,null,null,{"$f":"'Schedule VII (EBS)'!S44","v":0}]
["Sch VII","LT Reserves",null,"19. BBNI Prem. - 16. Sub Total",null,null,null,null,null,null,null,null,{"$f":"'Schedule VII (EBS)'!S46","v":0}]
["Sch VII","LT Reserves",null,"19. BBNI Prem. - 17. Variable Annuities",null,null,null,null,null,null,null,null,{"$f":"'Schedule VII (EBS)'!S47","v":0}]
["Sch VII","LT Reserves",null,"19. BBNI Prem. - 18. Total",null,null,null,null,null,null,null,null,{"$f":"'Schedule VII (EBS)'!S48","v":0}]
["Sch VII","LT Reserves",null,"20. BBNI Est . - 1. Mortality",null,null,null,null,null,null,null,null,{"$f":"'Schedule VII (EBS)'!T10","v":0}]
["Sch VII","LT Reserves",null,"20. BBNI Est . - 2. Critical Illness",null,null,null,null,null,null,null,null,{"$f":"'Schedule VII (EBS)'!T11","v":0}]
["Sch VII","LT Reserves",null,"20. BBNI Est . - 3f. Longevity - Imm Pay",null,null,null,null,null,null,null,null,{"$f":"'Schedule VII (EBS)'!T19","v":0}]
["Sch VII","LT Reserves",null,"20. BBNI Est . - 4g. Longevity - Def Pay",null,null,null,null,null,null,null,null,{"$f":"'Schedule VII (EBS)'!T28","v":0}]
["Sch VII","LT Reserves",null,"20. BBNI Est . - 5. Annuities Certain",null,null,null,null,null,null,null,null,{"$f":"'Schedule VII (EBS)'!T29","v":0}]
["Sch VII","LT Reserves",null,"20. BBNI Est . - 6. Deferred Acc. Annuities",null,null,null,null,null,null,null,null,{"$f":"'Schedule VII (EBS)'!T30","v":0}]
["Sch VII","LT Reserves",null,"20. BBNI Est . - 7d. Dis. Income: Active Lives ",null,null,null,null,null,null,null,null,{"$f":"'Schedule VII (EBS)'!T36","v":0}]
["Sch VII","LT Reserves",null,"20. BBNI Est . - 8. Dis. Income: Active Liv",null,null,null,null,null,null,null,null,{"$f":"'Schedule VII (EBS)'!T37","v":0}]
["Sch VII","LT Reserves",null,"20. BBNI Est . - 9. Dis. Income: Claims in Pay",null,null,null,null,null,null,null,null,{"$f":"'Schedule VII (EBS)'!T38","v":0}]
["Sch VII","LT Reserves",null,"20. BBNI Est . - 10. Dis. Income: Claims in Pay Other",null,null,null,null,null,null,null,null,{"$f":"'Schedule VII (EBS)'!T39","v":0}]
["Sch VII","LT Reserves",null,"20. BBNI Est . - 11. Group Life",null,null,null,null,null,null,null,null,{"$f":"'Schedule VII (EBS)'!T40","v":0}]
["Sch VII","LT Reserves",null,"20. BBNI Est . - 12. Group Disability",null,null,null,null,null,null,null,null,{"$f":"'Schedule VII (EBS)'!T41","v":0}]
["Sch VII","LT Reserves",null,"20. BBNI Est . - 13. Group Health",null,null,null,null,null,null,null,null,{"$f":"'Schedule VII (EBS)'!T42","v":0}]
["Sch VII","LT Reserves",null,"20. BBNI Est . - 14. Stop Loss",null,null,null,null,null,null,null,null,{"$f":"'Schedule VII (EBS)'!T43","v":0}]
["Sch VII","LT Reserves",null,"20. BBNI Est . - 15. Riders",null,null,null,null,null,null,null,null,{"$f":"'Schedule VII (EBS)'!T44","v":0}]
["Sch VII","LT Reserves",null,"20. BBNI Est . - 16. Sub Total",null,null,null,null,null,null,null,null,{"$f":"'Schedule VII (EBS)'!T46","v":0}]
["Sch VII","LT Reserves",null,"20. BBNI Est . - 17. Variable Annuities",null,null,null,null,null,null,null,null,{"$f":"'Schedule VII (EBS)'!T47","v":0}]
["Sch VII","LT Reserves",null,"20. BBNI Est . - 18. Total",null,null,null,null,null,null,null,null,{"$f":"'Schedule VII (EBS)'!T48","v":0}]
[]
["Sch VIII","LT Annuity",null,"1. Reserve In Money - 1. GMDB - Return of Prem.",{"$f":"'Schedule VIII'!F13","v":0},null,null,null,null,null,null,null,{"$f":"'Schedule VIII (EBS)'!F13","v":0}]
["Sch VIII","LT Annuity",null,"1. Reserve In Money - 2. GMDB - End. Benefit",{"$f":"'Schedule VIII'!F14","v":0},null,null,null,null,null,null,null,{"$f":"'Schedule VIII (EBS)'!F14","v":0}]
["Sch VIII","LT Annuity",null,"1. Reserve In Money - 3. GMIB",{"$f":"'Schedule VIII'!F15","v":0},null,null,null,null,null,null,null,{"$f":"'Schedule VIII (EBS)'!F15","v":0}]
["Sch VIII","LT Annuity",null,"1. Reserve In Money - 4. GMWB",{"$f":"'Schedule VIII'!F16","v":0},null,null,null,null,null,null,null,{"$f":"'Schedule VIII (EBS)'!F16","v":0}]
["Sch VIII","LT Annuity",null,"1. Reserve In Money - 5. GEEB",{"$f":"'Schedule VIII'!F17","v":0},null,null,null,null,null,null,null,{"$f":"'Schedule VIII (EBS)'!F17","v":0}]
["Sch VIII","LT Annuity",null,"1. Reserve In Money - 6. GMAB - Mat. 0-1 Yr",{"$f":"'Schedule VIII'!F19","v":0},null,null,null,null,null,null,null,{"$f":"'Schedule VIII (EBS)'!F19","v":0}]
["Sch VIII","LT Annuity",null,"1. Reserve In Money - 7. GMAB - Mat. 1-2 Yrs",{"$f":"'Schedule VIII'!F20","v":0},null,null,null,null,null,null,null,{"$f":"'Schedule VIII (EBS)'!F20","v":0}]
["Sch VIII","LT Annuity",null,"1. Reserve In Money - 8. GMAB - Mat. 2-3 Yrs",{"$f":"'Schedule VIII'!F21","v":0},null,null,null,null,null,null,null,{"$f":"'Schedule VIII (EBS)'!F21","v":0}]
["Sch VIII","LT Annuity",null,"1. Reserve In Money - 9. GMAB - Mat. 3-4 Yrs",{"$f":"'Schedule VIII'!F22","v":0},null,null,null,null,null,null,null,{"$f":"'Schedule VIII (EBS)'!F22","v":0}]
["Sch VIII","LT Annuity",null,"1. Reserve In Money - 10. GMAB - Mat. 4-5 Yrs",{"$f":"'Schedule VIII'!F23","v":0},null,null,null,null,null,null,null,{"$f":"'Schedule VIII (EBS)'!F23","v":0}]
["Sch VIII","LT Annuity",null,"1. Reserve In Money - 11. GMAB - Mat. 5-6 Yrs",{"$f":"'Schedule VIII'!F24","v":0},null,null,null,null,null,null,null,{"$f":"'Schedule VIII (EBS)'!F24","v":0}]
["Sch VIII","LT Annuity",null,"1. Reserve In Money - 12. GMAB - Mat. 6-7 Yrs",{"$f":"'Schedule VIII'!F25","v":0},null,null,null,null,null,null,null,{"$f":"'Schedule VIII (EBS)'!F25","v":0}]
["Sch VIII","LT Annuity",null,"1. Reserve In Money - 13. GMAB - Mat. 7-8 Yrs",{"$f":"'Schedule VIII'!F26","v":0},null,null,null,null,null,null,null,{"$f":"'Schedule VIII (EBS)'!F26","v":0}]
["Sch VIII","LT Annuity",null,"1. Reserve In Money - 14. GMAB - Mat. 8-9 Yrs",{"$f":"'Schedule VIII'!F27","v":0},null,null,null,null,null,null,null,{"$f":"'Schedule VIII (EBS)'!F27","v":0}]
["Sch VIII","LT Annuity",null,"1. Reserve In Money - 15. GMAB - Mat. 9+ Yrs",{"$f":"'Schedule VIII'!F28","v":0},null,null,null,null,null,null,null,{"$f":"'Schedule VIII (EBS)'!F28","v":0}]
["Sch VIII","LT Annuity",null,"1. Reserve Out Money - 16. GMDB - Return of Prem.",{"$f":"'Schedule VIII'!F31","v":0},null,null,null,null,null,null,null,{"$f":"'Schedule VIII (EBS)'!F31","v":0}]
["Sch VIII","LT Annuity",null,"1. Reserve Out Money - 17. GMDB - Enh. Benefit",{"$f":"'Schedule VIII'!F32","v":0},null,null,null,null,null,null,null,{"$f":"'Schedule VIII (EBS)'!F32","v":0}]
["Sch VIII","LT Annuity",null,"1. Reserve Out Money - 18. GMIB",{"$f":"'Schedule VIII'!F33","v":0},null,null,null,null,null,null,null,{"$f":"'Schedule VIII (EBS)'!F33","v":0}]
["Sch VIII","LT Annuity",null,"1. Reserve Out Money - 19. GMWB",{"$f":"'Schedule VIII'!F34","v":0},null,null,null,null,null,null,null,{"$f":"'Schedule VIII (EBS)'!F34","v":0}]
["Sch VIII","LT Annuity",null,"1. Reserve Out Money - 20. GEEB",{"$f":"'Schedule VIII'!F35","v":0},null,null,null,null,null,null,null,{"$f":"'Schedule VIII (EBS)'!F35","v":0}]
["Sch VIII","LT Annuity",null,"1. Reserve Out Money - 21. GMAB - Mat. 0-1 Yr",{"$f":"'Schedule VIII'!F37","v":0},null,null,null,null,null,null,null,{"$f":"'Schedule VIII (EBS)'!F37","v":0}]
["Sch VIII","LT Annuity",null,"1. Reserve Out Money - 22. GMAB - Mat. 1-2 Yrs",{"$f":"'Schedule VIII'!F38","v":0},null,null,null,null,null,null,null,{"$f":"'Schedule VIII (EBS)'!F38","v":0}]
["Sch VIII","LT Annuity",null,"1. Reserve Out Money - 23. GMAB - Mat. 2-3 Yrs",{"$f":"'Schedule VIII'!F39","v":0},null,null,null,null,null,null,null,{"$f":"'Schedule VIII (EBS)'!F39","v":0}]
["Sch VIII","LT Annuity",null,"1. Reserve Out Money - 24. GMAB - Mat. 3-4 Yrs",{"$f":"'Schedule VIII'!F40","v":0},null,null,null,null,null,null,null,{"$f":"'Schedule VIII (EBS)'!F40","v":0}]
["Sch VIII","LT Annuity",null,"1. Reserve Out Money - 25. GMAB - Mat. 4-5 Yrs",{"$f":"'Schedule VIII'!F41","v":0},null,null,null,null,null,null,null,{"$f":"'Schedule VIII (EBS)'!F41","v":0}]
["Sch VIII","LT Annuity",null,"1. Reserve Out Money - 26. GMAB - Mat. 5-6 Yrs",{"$f":"'Schedule VIII'!F42","v":0},null,null,null,null,null,null,null,{"$f":"'Schedule VIII (EBS)'!F42","v":0}]
["Sch VIII","LT Annuity",null,"1. Reserve Out Money - 27. GMAB - Mat. 6-7 Yrs",{"$f":"'Schedule VIII'!F43","v":0},null,null,null,null,null,null,null,{"$f":"'Schedule VIII (EBS)'!F43","v":0}]
["Sch VIII","LT Annuity",null,"1. Reserve Out Money - 28. GMAB - Mat. 7-8 Yrs",{"$f":"'Schedule VIII'!F44","v":0},null,null,null,null,null,null,null,{"$f":"'Schedule VIII (EBS)'!F44","v":0}]
["Sch VIII","LT Annuity",null,"1. Reserve Out Money - 29. GMAB - Mat. 8-9 Yrs",{"$f":"'Schedule VIII'!F45","v":0},null,null,null,null,null,null,null,{"$f":"'Schedule VIII (EBS)'!F45","v":0}]
["Sch VIII","LT Annuity",null,"1. Reserve Out Money - 30. GMAB - Mat. 9+ Yrs",{"$f":"'Schedule VIII'!F46","v":0},null,null,null,null,null,null,null,{"$f":"'Schedule VIII (EBS)'!F46","v":0}]
["Sch VIII","LT Annuity",null,"1. - Total",{"$f":"'Schedule VIII'!F48","v":0},null,null,null,null,null,null,null,{"$f":"'Schedule VIII (EBS)'!F48","v":0}]
["Sch VIII","LT Annuity",null,"2. Vol. 0-10% In Money - 1. GMDB - Return of Prem.",{"$f":"'Schedule VIII'!H13","v":0},null,null,null,null,null,null,null,{"$f":"'Schedule VIII (EBS)'!H13","v":0}]
["Sch VIII","LT Annuity",null,"2. Vol. 0-10% In Money - 2. GMDB - Enh. Benefit",{"$f":"'Schedule VIII'!H14","v":0},null,null,null,null,null,null,null,{"$f":"'Schedule VIII (EBS)'!H14","v":0}]
["Sch VIII","LT Annuity",null,"2. Vol. 0-10% In Money - 3. GMIB",{"$f":"'Schedule VIII'!H15","v":0},null,null,null,null,null,null,null,{"$f":"'Schedule VIII (EBS)'!H15","v":0}]
["Sch VIII","LT Annuity",null,"2. Vol. 0-10% In Money - 4. GMWB",{"$f":"'Schedule VIII'!H16","v":0},null,null,null,null,null,null,null,{"$f":"'Schedule VIII (EBS)'!H16","v":0}]
["Sch VIII","LT Annuity",null,"2. Vol. 0-10% In Money - 5. GEEB",{"$f":"'Schedule VIII'!H17","v":0},null,null,null,null,null,null,null,{"$f":"'Schedule VIII (EBS)'!H17","v":0}]
["Sch VIII","LT Annuity",null,"2. Vol. 0-10% In Money - 6. GMAB - Mat. 0-1 Yr",{"$f":"'Schedule VIII'!H19","v":0},null,null,null,null,null,null,null,{"$f":"'Schedule VIII (EBS)'!H19","v":0}]
["Sch VIII","LT Annuity",null,"2. Vol. 0-10% In Money - 7. GMAB - Mat. 1-2 Yrs",{"$f":"'Schedule VIII'!H20","v":0},null,null,null,null,null,null,null,{"$f":"'Schedule VIII (EBS)'!H20","v":0}]
["Sch VIII","LT Annuity",null,"2. Vol. 0-10% In Money - 8. GMAB - Mat. 2-3 Yrs",{"$f":"'Schedule VIII'!H21","v":0},null,null,null,null,null,null,null,{"$f":"'Schedule VIII (EBS)'!H21","v":0}]
["Sch VIII","LT Annuity",null,"2. Vol. 0-10% In Money - 9. GMAB - Mat. 3-4 Yrs",{"$f":"'Schedule VIII'!H22","v":0},null,null,null,null,null,null,null,{"$f":"'Schedule VIII (EBS)'!H22","v":0}]
["Sch VIII","LT Annuity",null,"2. Vol. 0-10% In Money - 10. GMAB - Mat. 4-5 Yrs",{"$f":"'Schedule VIII'!H23","v":0},null,null,null,null,null,null,null,{"$f":"'Schedule VIII (EBS)'!H23","v":0}]
["Sch VIII","LT Annuity",null,"2. Vol. 0-10% In Money - 11. GMAB - Mat. 5-6 Yrs",{"$f":"'Schedule VIII'!H24","v":0},null,null,null,null,null,null,null,{"$f":"'Schedule VIII (EBS)'!H24","v":0}]
["Sch VIII","LT Annuity",null,"2. Vol. 0-10% In Money - 12. GMAB - Mat. 6-7 Yrs",{"$f":"'Schedule VIII'!H25","v":0},null,null,null,null,null,null,null,{"$f":"'Schedule VIII (EBS)'!H25","v":0}]
["Sch VIII","LT Annuity",null,"2. Vol. 0-10% In Money - 13. GMAB - Mat. 7-8 Yrs",{"$f":"'Schedule VIII'!H26","v":0},null,null,null,null,null,null,null,{"$f":"'Schedule VIII (EBS)'!H26","v":0}]
["Sch VIII","LT Annuity",null,"2. Vol. 0-10% In Money - 14. GMAB - Mat. 8-9 Yrs",{"$f":"'Schedule VIII'!H27","v":0},null,null,null,null,null,null,null,{"$f":"'Schedule VIII (EBS)'!H27","v":0}]
["Sch VIII","LT Annuity",null,"2. Vol. 0-10% In Money - 15. GMAB - Mat. 9+ Yrs",{"$f":"'Schedule VIII'!H28","v":0},null,null,null,null,null,null,null,{"$f":"'Schedule VIII (EBS)'!H28","v":0}]
["Sch VIII","LT Annuity",null,"2. Vol. 0-10% Out Money - 16. GMDB - Return of Prem.",{"$f":"'Schedule VIII'!H31","v":0},null,null,null,null,null,null,null,{"$f":"'Schedule VIII (EBS)'!H31","v":0}]
["Sch VIII","LT Annuity",null,"2. Vol. 0-10% Out Money - 17. GMDB - Enh. Benefit",{"$f":"'Schedule VIII'!H32","v":0},null,null,null,null,null,null,null,{"$f":"'Schedule VIII (EBS)'!H32","v":0}]
["Sch VIII","LT Annuity",null,"2. Vol. 0-10% Out Money - 18. GMIB",{"$f":"'Schedule VIII'!H33","v":0},null,null,null,null,null,null,null,{"$f":"'Schedule VIII (EBS)'!H33","v":0}]
["Sch VIII","LT Annuity",null,"2. Vol. 0-10% Out Money - 19. GMWB",{"$f":"'Schedule VIII'!H34","v":0},null,null,null,null,null,null,null,{"$f":"'Schedule VIII (EBS)'!H34","v":0}]
["Sch VIII","LT Annuity",null,"2. Vol. 0-10% Out Money - 20. GEEB",{"$f":"'Schedule VIII'!H35","v":0},null,null,null,null,null,null,null,{"$f":"'Schedule VIII (EBS)'!H35","v":0}]
["Sch VIII","LT Annuity",null,"2. Vol. 0-10% Out Money - 21. GMAB - Mat. 0-1 Yr",{"$f":"'Schedule VIII'!H37","v":0},null,null,null,null,null,null,null,{"$f":"'Schedule VIII (EBS)'!H37","v":0}]
["Sch VIII","LT Annuity",null,"2. Vol. 0-10% Out Money - 22. GMAB - Mat. 1-2 Yrs",{"$f":"'Schedule VIII'!H38","v":0},null,null,null,null,null,null,null,{"$f":"'Schedule VIII (EBS)'!H38","v":0}]
["Sch VIII","LT Annuity",null,"2. Vol. 0-10% Out Money - 23. GMAB - Mat. 2-3 Yrs",{"$f":"'Schedule VIII'!H39","v":0},null,null,null,null,null,null,null,{"$f":"'Schedule VIII (EBS)'!H39","v":0}]
["Sch VIII","LT Annuity",null,"2. Vol. 0-10% Out Money - 24. GMAB - Mat. 3-4 Yrs",{"$f":"'Schedule VIII'!H40","v":0},null,null,null,null,null,null,null,{"$f":"'Schedule VIII (EBS)'!H40","v":0}]
["Sch VIII","LT Annuity",null,"2. Vol. 0-10% Out Money - 25. GMAB - Mat. 4-5 Yrs",{"$f":"'Schedule VIII'!H41","v":0},null,null,null,null,null,null,null,{"$f":"'Schedule VIII (EBS)'!H41","v":0}]
["Sch VIII","LT Annuity",null,"2. Vol. 0-10% Out Money - 26. GMAB - Mat. 5-6 Yrs",{"$f":"'Schedule VIII'!H42","v":0},null,null,null,null,null,null,null,{"$f":"'Schedule VIII (EBS)'!H42","v":0}]
["Sch VIII","LT Annuity",null,"2. Vol. 0-10% Out Money - 27. GMAB - Mat. 6-7 Yrs",{"$f":"'Schedule VIII'!H43","v":0},null,null,null,null,null,null,null,{"$f":"'Schedule VIII (EBS)'!H43","v":0}]
["Sch VIII","LT Annuity",null,"2. Vol. 0-10% Out Money - 28. GMAB - Mat. 7-8 Yrs",{"$f":"'Schedule VIII'!H44","v":0},null,null,null,null,null,null,null,{"$f":"'Schedule VIII (EBS)'!H44","v":0}]
["Sch VIII","LT Annuity",null,"2. Vol. 0-10% Out Money - 29. GMAB - Mat. 8-9 Yrs",{"$f":"'Schedule VIII'!H45","v":0},null,null,null,null,null,null,null,{"$f":"'Schedule VIII (EBS)'!H45","v":0}]
["Sch VIII","LT Annuity",null,"2. Vol. 0-10% Out Money - 30. GMAB - Mat. 9+ Yrs",{"$f":"'Schedule VIII'!H46","v":0},null,null,null,null,null,null,null,{"$f":"'Schedule VIII (EBS)'!H46","v":0}]
["Sch VIII","LT Annuity",null,"2. Vol. 0-10% - Total",{"$f":"'Schedule VIII'!H48","v":0},null,null,null,null,null,null,null,{"$f":"'Schedule VIII (EBS)'!H48","v":0}]
["Sch VIII","LT Annuity",null,"3. Vol. 10-15% In Money - 1. GMDB - Return of Prem.",{"$f":"'Schedule VIII'!J13","v":0},null,null,null,null,null,null,null,{"$f":"'Schedule VIII (EBS)'!J13","v":0}]
["Sch VIII","LT Annuity",null,"3. Vol. 10-15% In Money - 2. GMDB - Enh. Benefit",{"$f":"'Schedule VIII'!J14","v":0},null,null,null,null,null,null,null,{"$f":"'Schedule VIII (EBS)'!J14","v":0}]
["Sch VIII","LT Annuity",null,"3. Vol. 10-15% In Money - 3. GMIB",{"$f":"'Schedule VIII'!J15","v":0},null,null,null,null,null,null,null,{"$f":"'Schedule VIII (EBS)'!J15","v":0}]
["Sch VIII","LT Annuity",null,"3. Vol. 10-15% In Money - 4. GMWB",{"$f":"'Schedule VIII'!J16","v":0},null,null,null,null,null,null,null,{"$f":"'Schedule VIII (EBS)'!J16","v":0}]
["Sch VIII","LT Annuity",null,"3. Vol. 10-15% In Money - 5. GEEB",{"$f":"'Schedule VIII'!J17","v":0},null,null,null,null,null,null,null,{"$f":"'Schedule VIII (EBS)'!J17","v":0}]
["Sch VIII","LT Annuity",null,"3. Vol. 10-15% In Money - 6. GMAB - Mat. 0-1 Yr",{"$f":"'Schedule VIII'!J19","v":0},null,null,null,null,null,null,null,{"$f":"'Schedule VIII (EBS)'!J19","v":0}]
["Sch VIII","LT Annuity",null,"3. Vol. 10-15% In Money - 7. GMAB - Mat. 1-2 Yrs",{"$f":"'Schedule VIII'!J20","v":0},null,null,null,null,null,null,null,{"$f":"'Schedule VIII (EBS)'!J20","v":0}]
["Sch VIII","LT Annuity",null,"3. Vol. 10-15% In Money - 8. GMAB - Mat. 2-3 Yrs",{"$f":"'Schedule VIII'!J21","v":0},null,null,null,null,null,null,null,{"$f":"'Schedule VIII (EBS)'!J21","v":0}]
["Sch VIII","LT Annuity",null,"3. Vol. 10-15% In Money - 9. GMAB - Mat. 3-4 Yrs",{"$f":"'Schedule VIII'!J22","v":0},null,null,null,null,null,null,null,{"$f":"'Schedule VIII (EBS)'!J22","v":0}]
["Sch VIII","LT Annuity",null,"3. Vol. 10-15% In Money - 10. GMAB - Mat. 4-5 Yrs",{"$f":"'Schedule VIII'!J23","v":0},null,null,null,null,null,null,null,{"$f":"'Schedule VIII (EBS)'!J23","v":0}]
["Sch VIII","LT Annuity",null,"3. Vol. 10-15% In Money - 11. GMAB - Mat. 5-6 Yrs",{"$f":"'Schedule VIII'!J24","v":0},null,null,null,null,null,null,null,{"$f":"'Schedule VIII (EBS)'!J24","v":0}]
["Sch VIII","LT Annuity",null,"3. Vol. 10-15% In Money - 12. GMAB - Mat. 6-7 Yrs",{"$f":"'Schedule VIII'!J25","v":0},null,null,null,null,null,null,null,{"$f":"'Schedule VIII (EBS)'!J25","v":0}]
["Sch VIII","LT Annuity",null,"3. Vol. 10-15% In Money - 13. GMAB - Mat. 7-8 Yrs",{"$f":"'Schedule VIII'!J26","v":0},null,null,null,null,null,null,null,{"$f":"'Schedule VIII (EBS)'!J26","v":0}]
["Sch VIII","LT Annuity",null,"3. Vol. 10-15% In Money - 14. GMAB - Mat. 8-9 Yrs",{"$f":"'Schedule VIII'!J27","v":0},null,null,null,null,null,null,null,{"$f":"'Schedule VIII (EBS)'!J27","v":0}]
["Sch VIII","LT Annuity",null,"3. Vol. 10-15% In Money - 15. GMAB - Mat. 9+ Yrs",{"$f":"'Schedule VIII'!J28","v":0},null,null,null,null,null,null,null,{"$f":"'Schedule VIII (EBS)'!J28","v":0}]
["Sch VIII","LT Annuity",null,"3. Vol. 10-15% Out Money - 16. GMDB - Return of Prem.",{"$f":"'Schedule VIII'!J31","v":0},null,null,null,null,null,null,null,{"$f":"'Schedule VIII (EBS)'!J31","v":0}]
["Sch VIII","LT Annuity",null,"3. Vol. 10-15% Out Money - 17. GMDB - Enh. Benefit",{"$f":"'Schedule VIII'!J32","v":0},null,null,null,null,null,null,null,{"$f":"'Schedule VIII (EBS)'!J32","v":0}]
["Sch VIII","LT Annuity",null,"3. Vol. 10-15% Out Money - 18. GMIB",{"$f":"'Schedule VIII'!J33","v":0},null,null,null,null,null,null,null,{"$f":"'Schedule VIII (EBS)'!J33","v":0}]
["Sch VIII","LT Annuity",null,"3. Vol. 10-15% Out Money - 19. GMWB",{"$f":"'Schedule VIII'!J34","v":0},null,null,null,null,null,null,null,{"$f":"'Schedule VIII (EBS)'!J34","v":0}]
["Sch VIII","LT Annuity",null,"3. Vol. 10-15% Out Money - 20. GEEB",{"$f":"'Schedule VIII'!J35","v":0},null,null,null,null,null,null,null,{"$f":"'Schedule VIII (EBS)'!J35","v":0}]
["Sch VIII","LT Annuity",null,"3. Vol. 10-15% Out Money - 21. GMAB - Mat. 0-1 Yr",{"$f":"'Schedule VIII'!J37","v":0},null,null,null,null,null,null,null,{"$f":"'Schedule VIII (EBS)'!J37","v":0}]
["Sch VIII","LT Annuity",null,"3. Vol. 10-15% Out Money - 22. GMAB - Mat. 1-2 Yrs",{"$f":"'Schedule VIII'!J38","v":0},null,null,null,null,null,null,null,{"$f":"'Schedule VIII (EBS)'!J38","v":0}]
["Sch VIII","LT Annuity",null,"3. Vol. 10-15% Out Money - 23. GMAB - Mat. 2-3 Yrs",{"$f":"'Schedule VIII'!J39","v":0},null,null,null,null,null,null,null,{"$f":"'Schedule VIII (EBS)'!J39","v":0}]
["Sch VIII","LT Annuity",null,"3. Vol. 10-15% Out Money - 24. GMAB - Mat. 3-4 Yrs",{"$f":"'Schedule VIII'!J40","v":0},null,null,null,null,null,null,null,{"$f":"'Schedule VIII (EBS)'!J40","v":0}]
["Sch VIII","LT Annuity",null,"3. Vol. 10-15% Out Money - 25. GMAB - Mat. 4-5 Yrs",{"$f":"'Schedule VIII'!J41","v":0},null,null,null,null,null,null,null,{"$f":"'Schedule VIII (EBS)'!J41","v":0}]
["Sch VIII","LT Annuity",null,"3. Vol. 10-15% Out Money - 26. GMAB - Mat. 5-6 Yrs",{"$f":"'Schedule VIII'!J42","v":0},null,null,null,null,null,null,null,{"$f":"'Schedule VIII (EBS)'!J42","v":0}]
["Sch VIII","LT Annuity",null,"3. Vol. 10-15% Out Money - 27. GMAB - Mat. 6-7 Yrs",{"$f":"'Schedule VIII'!J43","v":0},null,null,null,null,null,null,null,{"$f":"'Schedule VIII (EBS)'!J43","v":0}]
["Sch VIII","LT Annuity",null,"3. Vol. 10-15% Out Money - 28. GMAB - Mat. 7-8 Yrs",{"$f":"'Schedule VIII'!J44","v":0},null,null,null,null,null,null,null,{"$f":"'Schedule VIII (EBS)'!J44","v":0}]
["Sch VIII","LT Annuity",null,"3. Vol. 10-15% Out Money - 29. GMAB - Mat. 8-9 Yrs",{"$f":"'Schedule VIII'!J45","v":0},null,null,null,null,null,null,null,{"$f":"'Schedule VIII (EBS)'!J45","v":0}]
["Sch VIII","LT Annuity",null,"3. Vol. 10-15% Out Money - 30. GMAB - Mat. 9+ Yrs",{"$f":"'Schedule VIII'!J46","v":0},null,null,null,null,null,null,null,{"$f":"'Schedule VIII (EBS)'!J46","v":0}]
["Sch VIII","LT Annuity",null,"3. Vol. 10-15% - Total",{"$f":"'Schedule VIII'!J48","v":0},null,null,null,null,null,null,null,{"$f":"'Schedule VIII (EBS)'!J48","v":0}]
["Sch VIII","LT Annuity",null,"4. Vol. +15% In Money - 1. GMDB - Return of Prem.",{"$f":"'Schedule VIII'!L13","v":0},null,null,null,null,null,null,null,{"$f":"'Schedule VIII (EBS)'!L13","v":0}]
["Sch VIII","LT Annuity",null,"4. Vol. +15% In Money - 2. GMDB - Enh. Benefit",{"$f":"'Schedule VIII'!L14","v":0},null,null,null,null,null,null,null,{"$f":"'Schedule VIII (EBS)'!L14","v":0}]
["Sch VIII","LT Annuity",null,"4. Vol. +15% In Money - 3. GMIB",{"$f":"'Schedule VIII'!L15","v":0},null,null,null,null,null,null,null,{"$f":"'Schedule VIII (EBS)'!L15","v":0}]
["Sch VIII","LT Annuity",null,"4. Vol. +15% In Money - 4. GMWB",{"$f":"'Schedule VIII'!L16","v":0},null,null,null,null,null,null,null,{"$f":"'Schedule VIII (EBS)'!L16","v":0}]
["Sch VIII","LT Annuity",null,"4. Vol. +15% In Money - 5. GEEB",{"$f":"'Schedule VIII'!L17","v":0},null,null,null,null,null,null,null,{"$f":"'Schedule VIII (EBS)'!L17","v":0}]
["Sch VIII","LT Annuity",null,"4. Vol. +15% In Money - 6. GMAB - Mat. 0-1 Yr",{"$f":"'Schedule VIII'!L19","v":0},null,null,null,null,null,null,null,{"$f":"'Schedule VIII (EBS)'!L19","v":0}]
["Sch VIII","LT Annuity",null,"4. Vol. +15% In Money - 7. GMAB - Mat. 1-2 Yrs",{"$f":"'Schedule VIII'!L20","v":0},null,null,null,null,null,null,null,{"$f":"'Schedule VIII (EBS)'!L20","v":0}]
["Sch VIII","LT Annuity",null,"4. Vol. +15% In Money - 8. GMAB - Mat. 2-3 Yrs",{"$f":"'Schedule VIII'!L21","v":0},null,null,null,null,null,null,null,{"$f":"'Schedule VIII (EBS)'!L21","v":0}]
["Sch VIII","LT Annuity",null,"4. Vol. +15% In Money - 9. GMAB - Mat. 3-4 Yrs",{"$f":"'Schedule VIII'!L22","v":0},null,null,null,null,null,null,null,{"$f":"'Schedule VIII (EBS)'!L22","v":0}]
["Sch VIII","LT Annuity",null,"4. Vol. +15% In Money - 10. GMAB - Mat. 4-5 Yrs",{"$f":"'Schedule VIII'!L23","v":0},null,null,null,null,null,null,null,{"$f":"'Schedule VIII (EBS)'!L23","v":0}]
["Sch VIII","LT Annuity",null,"4. Vol. +15% In Money - 11. GMAB - Mat. 5-6 Yrs",{"$f":"'Schedule VIII'!L24","v":0},null,null,null,null,null,null,null,{"$f":"'Schedule VIII (EBS)'!L24","v":0}]
["Sch VIII","LT Annuity",null,"4. Vol. +15% In Money - 12. GMAB - Mat. 6-7 Yrs",{"$f":"'Schedule VIII'!L25","v":0},null,null,null,null,null,null,null,{"$f":"'Schedule VIII (EBS)'!L25","v":0}]
["Sch VIII","LT Annuity",null,"4. Vol. +15% In Money - 13. GMAB - Mat. 7-8 Yrs",{"$f":"'Schedule VIII'!L26","v":0},null,null,null,null,null,null,null,{"$f":"'Schedule VIII (EBS)'!L26","v":0}]
["Sch VIII","LT Annuity",null,"4. Vol. +15% In Money - 14. GMAB - Mat. 8-9 Yrs",{"$f":"'Schedule VIII'!L27","v":0},null,null,null,null,null,null,null,{"$f":"'Schedule VIII (EBS)'!L27","v":0}]
["Sch VIII","LT Annuity",null,"4. Vol. +15% In Money - 15. GMAB - Mat. 9+ Yrs",{"$f":"'Schedule VIII'!L28","v":0},null,null,null,null,null,null,null,{"$f":"'Schedule VIII (EBS)'!L28","v":0}]
["Sch VIII","LT Annuity",null,"4. Vol. +15% Out Money - 16. GMDB - Return of Prem.",{"$f":"'Schedule VIII'!L31","v":0},null,null,null,null,null,null,null,{"$f":"'Schedule VIII (EBS)'!L31","v":0}]
["Sch VIII","LT Annuity",null,"4. Vol. +15% Out Money - 17. GMDB - Enh. Benefit",{"$f":"'Schedule VIII'!L32","v":0},null,null,null,null,null,null,null,{"$f":"'Schedule VIII (EBS)'!L32","v":0}]
["Sch VIII","LT Annuity",null,"4. Vol. +15% Out Money - 18. GMIB",{"$f":"'Schedule VIII'!L33","v":0},null,null,null,null,null,null,null,{"$f":"'Schedule VIII (EBS)'!L33","v":0}]
["Sch VIII","LT Annuity",null,"4. Vol. +15% Out Money - 19. GMWB",{"$f":"'Schedule VIII'!L34","v":0},null,null,null,null,null,null,null,{"$f":"'Schedule VIII (EBS)'!L34","v":0}]
["Sch VIII","LT Annuity",null,"4. Vol. +15% Out Money - 20. GEEB",{"$f":"'Schedule VIII'!L35","v":0},null,null,null,null,null,null,null,{"$f":"'Schedule VIII (EBS)'!L35","v":0}]
["Sch VIII","LT Annuity",null,"4. Vol. +15% Out Money - 21. GMAB - Mat. 0-1 Yr",{"$f":"'Schedule VIII'!L37","v":0},null,null,null,null,null,null,null,{"$f":"'Schedule VIII (EBS)'!L37","v":0}]
["Sch VIII","LT Annuity",null,"4. Vol. +15% Out Money - 22. GMAB - Mat. 1-2 Yrs",{"$f":"'Schedule VIII'!L38","v":0},null,null,null,null,null,null,null,{"$f":"'Schedule VIII (EBS)'!L38","v":0}]
["Sch VIII","LT Annuity",null,"4. Vol. +15% Out Money - 23. GMAB - Mat. 2-3 Yrs",{"$f":"'Schedule VIII'!L39","v":0},null,null,null,null,null,null,null,{"$f":"'Schedule VIII (EBS)'!L39","v":0}]
["Sch VIII","LT Annuity",null,"4. Vol. +15% Out Money - 24. GMAB - Mat. 3-4 Yrs",{"$f":"'Schedule VIII'!L40","v":0},null,null,null,null,null,null,null,{"$f":"'Schedule VIII (EBS)'!L40","v":0}]
["Sch VIII","LT Annuity",null,"4. Vol. +15% Out Money - 25. GMAB - Mat. 4-5 Yrs",{"$f":"'Schedule VIII'!L41","v":0},null,null,null,null,null,null,null,{"$f":"'Schedule VIII (EBS)'!L41","v":0}]
["Sch VIII","LT Annuity",null,"4. Vol. +15% Out Money - 26. GMAB - Mat. 5-6 Yrs",{"$f":"'Schedule VIII'!L42","v":0},null,null,null,null,null,null,null,{"$f":"'Schedule VIII (EBS)'!L42","v":0}]
["Sch VIII","LT Annuity",null,"4. Vol. +15% Out Money - 27. GMAB - Mat. 6-7 Yrs",{"$f":"'Schedule VIII'!L43","v":0},null,null,null,null,null,null,null,{"$f":"'Schedule VIII (EBS)'!L43","v":0}]
["Sch VIII","LT Annuity",null,"4. Vol. +15% Out Money - 28. GMAB - Mat. 7-8 Yrs",{"$f":"'Schedule VIII'!L44","v":0},null,null,null,null,null,null,null,{"$f":"'Schedule VIII (EBS)'!L44","v":0}]
["Sch VIII","LT Annuity",null,"4. Vol. +15% Out Money - 29. GMAB - Mat. 8-9 Yrs",{"$f":"'Schedule VIII'!L45","v":0},null,null,null,null,null,null,null,{"$f":"'Schedule VIII (EBS)'!L45","v":0}]
["Sch VIII","LT Annuity",null,"4. Vol. +15% Out Money - 30. GMAB - Mat. 9+ Yrs",{"$f":"'Schedule VIII'!L46","v":0},null,null,null,null,null,null,null,{"$f":"'Schedule VIII (EBS)'!L46","v":0}]
["Sch VIII","LT Annuity",null,"4. Vol. +15% - Total",{"$f":"'Schedule VIII'!L48","v":0},null,null,null,null,null,null,null,{"$f":"'Schedule VIII (EBS)'!L48","v":0}]
["Sch VIII","LT Annuity",null,"5. Vol. 0-10% In Money - 1. GMDB - Return of Prem.",{"$f":"'Schedule VIII'!N13","v":0},null,null,null,null,null,null,null,{"$f":"'Schedule VIII (EBS)'!N13","v":0}]
["Sch VIII","LT Annuity",null,"5. Vol. 0-10% In Money - 2. GMDB - Enh. Benefit",{"$f":"'Schedule VIII'!N14","v":0},null,null,null,null,null,null,null,{"$f":"'Schedule VIII (EBS)'!N14","v":0}]
["Sch VIII","LT Annuity",null,"5. Vol. 0-10% In Money - 3. GMIB",{"$f":"'Schedule VIII'!N15","v":0},null,null,null,null,null,null,null,{"$f":"'Schedule VIII (EBS)'!N15","v":0}]
["Sch VIII","LT Annuity",null,"5. Vol. 0-10% In Money - 4. GMWB",{"$f":"'Schedule VIII'!N16","v":0},null,null,null,null,null,null,null,{"$f":"'Schedule VIII (EBS)'!N16","v":0}]
["Sch VIII","LT Annuity",null,"5. Vol. 0-10% In Money - 5. GEEB",{"$f":"'Schedule VIII'!N17","v":0},null,null,null,null,null,null,null,{"$f":"'Schedule VIII (EBS)'!N17","v":0}]
["Sch VIII","LT Annuity",null,"5. Vol. 0-10% In Money - 6. GMAB - Mat. 0-1 Yr",{"$f":"'Schedule VIII'!N19","v":0},null,null,null,null,null,null,null,{"$f":"'Schedule VIII (EBS)'!N19","v":0}]
["Sch VIII","LT Annuity",null,"5. Vol. 0-10% In Money - 7. GMAB - Mat. 1-2 Yrs",{"$f":"'Schedule VIII'!N20","v":0},null,null,null,null,null,null,null,{"$f":"'Schedule VIII (EBS)'!N20","v":0}]
["Sch VIII","LT Annuity",null,"5. Vol. 0-10% In Money - 8. GMAB - Mat. 2-3 Yrs",{"$f":"'Schedule VIII'!N21","v":0},null,null,null,null,null,null,null,{"$f":"'Schedule VIII (EBS)'!N21","v":0}]
["Sch VIII","LT Annuity",null,"5. Vol. 0-10% In Money - 9. GMAB - Mat. 3-4 Yrs",{"$f":"'Schedule VIII'!N22","v":0},null,null,null,null,null,null,null,{"$f":"'Schedule VIII (EBS)'!N22","v":0}]
["Sch VIII","LT Annuity",null,"5. Vol. 0-10% In Money - 10. GMAB - Mat. 4-5 Yrs",{"$f":"'Schedule VIII'!N23","v":0},null,null,null,null,null,null,null,{"$f":"'Schedule VIII (EBS)'!N23","v":0}]
["Sch VIII","LT Annuity",null,"5. Vol. 0-10% In Money - 11. GMAB - Mat. 5-6 Yrs",{"$f":"'Schedule VIII'!N24","v":0},null,null,null,null,null,null,null,{"$f":"'Schedule VIII (EBS)'!N24","v":0}]
["Sch VIII","LT Annuity",null,"5. Vol. 0-10% In Money - 12. GMAB - Mat. 6-7 Yrs",{"$f":"'Schedule VIII'!N25","v":0},null,null,null,null,null,null,null,{"$f":"'Schedule VIII (EBS)'!N25","v":0}]
["Sch VIII","LT Annuity",null,"5. Vol. 0-10% In Money - 13. GMAB - Mat. 7-8 Yrs",{"$f":"'Schedule VIII'!N26","v":0},null,null,null,null,null,null,null,{"$f":"'Schedule VIII (EBS)'!N26","v":0}]
["Sch VIII","LT Annuity",null,"5. Vol. 0-10% In Money - 14. GMAB - Mat. 8-9 Yrs",{"$f":"'Schedule VIII'!N27","v":0},null,null,null,null,null,null,null,{"$f":"'Schedule VIII (EBS)'!N27","v":0}]
["Sch VIII","LT Annuity",null,"5. Vol. 0-10% In Money - 15. GMAB - Mat. 9+ Yrs",{"$f":"'Schedule VIII'!N28","v":0},null,null,null,null,null,null,null,{"$f":"'Schedule VIII (EBS)'!N28","v":0}]
["Sch VIII","LT Annuity",null,"5. Vol. 0-10% - Total",{"$f":"'Schedule VIII'!N48","v":0},null,null,null,null,null,null,null,{"$f":"'Schedule VIII (EBS)'!N48","v":0}]
["Sch VIII","LT Annuity",null,"6. Vol. 10-15% In Money - 1. GMDB - Return of Prem.",{"$f":"'Schedule VIII'!P13","v":0},null,null,null,null,null,null,null,{"$f":"'Schedule VIII (EBS)'!P13","v":0}]
["Sch VIII","LT Annuity",null,"6. Vol. 10-15% In Money - 2. GMDB - Enh. Benefit",{"$f":"'Schedule VIII'!P14","v":0},null,null,null,null,null,null,null,{"$f":"'Schedule VIII (EBS)'!P14","v":0}]
["Sch VIII","LT Annuity",null,"6. Vol. 10-15% In Money - 3. GMIB",{"$f":"'Schedule VIII'!P15","v":0},null,null,null,null,null,null,null,{"$f":"'Schedule VIII (EBS)'!P15","v":0}]
["Sch VIII","LT Annuity",null,"6. Vol. 10-15% In Money - 4. GMWB",{"$f":"'Schedule VIII'!P16","v":0},null,null,null,null,null,null,null,{"$f":"'Schedule VIII (EBS)'!P16","v":0}]
["Sch VIII","LT Annuity",null,"6. Vol. 10-15% In Money - 5. GEEB",{"$f":"'Schedule VIII'!P17","v":0},null,null,null,null,null,null,null,{"$f":"'Schedule VIII (EBS)'!P17","v":0}]
["Sch VIII","LT Annuity",null,"6. Vol. 10-15% In Money - 6. GMAB - Mat. 0-1 Yr",{"$f":"'Schedule VIII'!P19","v":0},null,null,null,null,null,null,null,{"$f":"'Schedule VIII (EBS)'!P19","v":0}]
["Sch VIII","LT Annuity",null,"6. Vol. 10-15% In Money - 7. GMAB - Mat. 1-2 Yrs",{"$f":"'Schedule VIII'!P20","v":0},null,null,null,null,null,null,null,{"$f":"'Schedule VIII (EBS)'!P20","v":0}]
["Sch VIII","LT Annuity",null,"6. Vol. 10-15% In Money - 8. GMAB - Mat. 2-3 Yrs",{"$f":"'Schedule VIII'!P21","v":0},null,null,null,null,null,null,null,{"$f":"'Schedule VIII (EBS)'!P21","v":0}]
["Sch VIII","LT Annuity",null,"6. Vol. 10-15% In Money - 9. GMAB - Mat. 3-4 Yrs",{"$f":"'Schedule VIII'!P22","v":0},null,null,null,null,null,null,null,{"$f":"'Schedule VIII (EBS)'!P22","v":0}]
["Sch VIII","LT Annuity",null,"6. Vol. 10-15% In Money - 10. GMAB - Mat. 4-5 Yrs",{"$f":"'Schedule VIII'!P23","v":0},null,null,null,null,null,null,null,{"$f":"'Schedule VIII (EBS)'!P23","v":0}]
["Sch VIII","LT Annuity",null,"6. Vol. 10-15% In Money - 11. GMAB - Mat. 5-6 Yrs",{"$f":"'Schedule VIII'!P24","v":0},null,null,null,null,null,null,null,{"$f":"'Schedule VIII (EBS)'!P24","v":0}]
["Sch VIII","LT Annuity",null,"6. Vol. 10-15% In Money - 12. GMAB - Mat. 6-7 Yrs",{"$f":"'Schedule VIII'!P25","v":0},null,null,null,null,null,null,null,{"$f":"'Schedule VIII (EBS)'!P25","v":0}]
["Sch VIII","LT Annuity",null,"6. Vol. 10-15% In Money - 13. GMAB - Mat. 7-8 Yrs",{"$f":"'Schedule VIII'!P26","v":0},null,null,null,null,null,null,null,{"$f":"'Schedule VIII (EBS)'!P26","v":0}]
["Sch VIII","LT Annuity",null,"6. Vol. 10-15% In Money - 14. GMAB - Mat. 8-9 Yrs",{"$f":"'Schedule VIII'!P27","v":0},null,null,null,null,null,null,null,{"$f":"'Schedule VIII (EBS)'!P27","v":0}]
["Sch VIII","LT Annuity",null,"6. Vol. 10-15% In Money - 15. GMAB - Mat. 9+ Yrs",{"$f":"'Schedule VIII'!P28","v":0},null,null,null,null,null,null,null,{"$f":"'Schedule VIII (EBS)'!P28","v":0}]
["Sch VIII","LT Annuity",null,"6. Vol. 10-15% - Total",{"$f":"'Schedule VIII'!P48","v":0},null,null,null,null,null,null,null,{"$f":"'Schedule VIII (EBS)'!P48","v":0}]
["Sch VIII","LT Annuity",null,"7. Vol. +15% In Money - 1. GMDB - Return of Prem.",{"$f":"'Schedule VIII'!R13","v":0},null,null,null,null,null,null,null,{"$f":"'Schedule VIII (EBS)'!R13","v":0}]
["Sch VIII","LT Annuity",null,"7. Vol. +15% In Money - 2. GMDB - Enh. Benefit",{"$f":"'Schedule VIII'!R14","v":0},null,null,null,null,null,null,null,{"$f":"'Schedule VIII (EBS)'!R14","v":0}]
["Sch VIII","LT Annuity",null,"7. Vol. +15% In Money - 3. GMIB",{"$f":"'Schedule VIII'!R15","v":0},null,null,null,null,null,null,null,{"$f":"'Schedule VIII (EBS)'!R15","v":0}]
["Sch VIII","LT Annuity",null,"7. Vol. +15% In Money - 4. GMWB",{"$f":"'Schedule VIII'!R16","v":0},null,null,null,null,null,null,null,{"$f":"'Schedule VIII (EBS)'!R16","v":0}]
["Sch VIII","LT Annuity",null,"7. Vol. +15% In Money - 5. GEEB",{"$f":"'Schedule VIII'!R17","v":0},null,null,null,null,null,null,null,{"$f":"'Schedule VIII (EBS)'!R17","v":0}]
["Sch VIII","LT Annuity",null,"7. Vol. +15% In Money - 6. GMAB - Mat. 0-1 Yr",{"$f":"'Schedule VIII'!R19","v":0},null,null,null,null,null,null,null,{"$f":"'Schedule VIII (EBS)'!R19","v":0}]
["Sch VIII","LT Annuity",null,"7. Vol. +15% In Money - 7. GMAB - Mat. 1-2 Yrs",{"$f":"'Schedule VIII'!R20","v":0},null,null,null,null,null,null,null,{"$f":"'Schedule VIII (EBS)'!R20","v":0}]
["Sch VIII","LT Annuity",null,"7. Vol. +15% In Money - 8. GMAB - Mat. 2-3 Yrs",{"$f":"'Schedule VIII'!R21","v":0},null,null,null,null,null,null,null,{"$f":"'Schedule VIII (EBS)'!R21","v":0}]
["Sch VIII","LT Annuity",null,"7. Vol. +15% In Money - 9. GMAB - Mat. 3-4 Yrs",{"$f":"'Schedule VIII'!R22","v":0},null,null,null,null,null,null,null,{"$f":"'Schedule VIII (EBS)'!R22","v":0}]
["Sch VIII","LT Annuity",null,"7. Vol. +15% In Money - 10. GMAB - Mat. 4-5 Yrs",{"$f":"'Schedule VIII'!R23","v":0},null,null,null,null,null,null,null,{"$f":"'Schedule VIII (EBS)'!R23","v":0}]
["Sch VIII","LT Annuity",null,"7. Vol. +15% In Money - 11. GMAB - Mat. 5-6 Yrs",{"$f":"'Schedule VIII'!R24","v":0},null,null,null,null,null,null,null,{"$f":"'Schedule VIII (EBS)'!R24","v":0}]
["Sch VIII","LT Annuity",null,"7. Vol. +15% In Money - 12. GMAB - Mat. 6-7 Yrs",{"$f":"'Schedule VIII'!R25","v":0},null,null,null,null,null,null,null,{"$f":"'Schedule VIII (EBS)'!R25","v":0}]
["Sch VIII","LT Annuity",null,"7. Vol. +15% In Money - 13. GMAB - Mat. 7-8 Yrs",{"$f":"'Schedule VIII'!R26","v":0},null,null,null,null,null,null,null,{"$f":"'Schedule VIII (EBS)'!R26","v":0}]
["Sch VIII","LT Annuity",null,"7. Vol. +15% In Money - 14. GMAB - Mat. 8-9 Yrs",{"$f":"'Schedule VIII'!R27","v":0},null,null,null,null,null,null,null,{"$f":"'Schedule VIII (EBS)'!R27","v":0}]
["Sch VIII","LT Annuity",null,"7. Vol. +15% In Money - 15. GMAB - Mat. 9+ Yrs",{"$f":"'Schedule VIII'!R28","v":0},null,null,null,null,null,null,null,{"$f":"'Schedule VIII (EBS)'!R28","v":0}]
["Sch VIII","LT Annuity",null,"7. Vol. +15% - Total",{"$f":"'Schedule VIII'!R48","v":0},null,null,null,null,null,null,null,{"$f":"'Schedule VIII (EBS)'!R48","v":0}]
["Sch VIII","LT Annuity",null,"32. % of GMDB with Multiple Guarantees",{"$f":"'Schedule VIII'!L50","v":0},null,null,null,null,null,null,null,{"$f":"'Schedule VIII (EBS)'!L50","v":0}]
[]
["Sch VIIIA","LT Internal Model",null,"6. W/O Hedge - Internal Model Capital Req.",{"$f":"'Schedule VIIIA'!Q12","v":0},null,null,null,null,null,null,null,{"$f":"'Schedule VIIIA (EBS)'!Q12","v":0}]
["Sch VIIIA","LT Internal Model",null,"6. W/O Hedge - 2a. Stress Test - 20% Shock",{"$f":"'Schedule VIIIA'!Q15","v":0},null,null,null,null,null,null,null,{"$f":"'Schedule VIIIA (EBS)'!Q15","v":0}]
["Sch VIIIA","LT Internal Model",null,"6. W/O Hedge - 2b. Stress Test - +10% Vol.",{"$f":"'Schedule VIIIA'!Q16","v":0},null,null,null,null,null,null,null,{"$f":"'Schedule VIIIA (EBS)'!Q16","v":0}]
["Sch VIIIA","LT Internal Model",null,"6. W/O Hedge - 2c. Stress Test - Int. +/-100 bps",{"$f":"'Schedule VIIIA'!Q17","v":0},null,null,null,null,null,null,null,{"$f":"'Schedule VIIIA (EBS)'!Q17","v":0}]
["Sch VIIIA","LT Internal Model",null,"6. W/O Hedge - 3a. Stress Test - 1",{"$f":"'Schedule VIIIA'!Q20","v":0},null,null,null,null,null,null,null,{"$f":"'Schedule VIIIA (EBS)'!Q20","v":0}]
["Sch VIIIA","LT Internal Model",null,"6. W/O Hedge - 3b. Stress Test - 2",{"$f":"'Schedule VIIIA'!Q21","v":0},null,null,null,null,null,null,null,{"$f":"'Schedule VIIIA (EBS)'!Q21","v":0}]
["Sch VIIIA","LT Internal Model",null,"6. W/O Hedge - 3c. Stress Test - 3",{"$f":"'Schedule VIIIA'!Q22","v":0},null,null,null,null,null,null,null,{"$f":"'Schedule VIIIA (EBS)'!Q22","v":0}]
["Sch VIIIA","LT Internal Model",null,"6. W/O Hedge - 3d. Stress Test - 4",{"$f":"'Schedule VIIIA'!Q23","v":0},null,null,null,null,null,null,null,{"$f":"'Schedule VIIIA (EBS)'!Q23","v":0}]
["Sch VIIIA","LT Internal Model",null,"7. Hedge - Internal Model Capital Req.",{"$f":"'Schedule VIIIA'!S12","v":0},null,null,null,null,null,null,null,{"$f":"'Schedule VIIIA (EBS)'!S12","v":0}]
["Sch VIIIA","LT Internal Model",null,"7. Hedge - 2a. Stress Test - 20% Shock",{"$f":"'Schedule VIIIA'!S15","v":0},null,null,null,null,null,null,null,{"$f":"'Schedule VIIIA (EBS)'!S15","v":0}]
["Sch VIIIA","LT Internal Model",null,"7. Hedge - 2b. Stress Test - +10% Vol.",{"$f":"'Schedule VIIIA'!S16","v":0},null,null,null,null,null,null,null,{"$f":"'Schedule VIIIA (EBS)'!S16","v":0}]
["Sch VIIIA","LT Internal Model",null,"7. Hedge - 2c. Stress Test - Int. +/-100 bps",{"$f":"'Schedule VIIIA'!S17","v":0},null,null,null,null,null,null,null,{"$f":"'Schedule VIIIA (EBS)'!S17","v":0}]
["Sch VIIIA","LT Internal Model",null,"7. Hedge - 3a. Stress Test - 1",{"$f":"'Schedule VIIIA'!S20","v":0},null,null,null,null,null,null,null,{"$f":"'Schedule VIIIA (EBS)'!S20","v":0}]
["Sch VIIIA","LT Internal Model",null,"7. Hedge - 3b. Stress Test - 2",{"$f":"'Schedule VIIIA'!S21","v":0},null,null,null,null,null,null,null,{"$f":"'Schedule VIIIA (EBS)'!S21","v":0}]
["Sch VIIIA","LT Internal Model",null,"7. Hedge - 3c. Stress Test - 3",{"$f":"'Schedule VIIIA'!S22","v":0},null,null,null,null,null,null,null,{"$f":"'Schedule VIIIA (EBS)'!S22","v":0}]
["Sch VIIIA","LT Internal Model",null,"7. Hedge - 3d. Stress Test - 4",{"$f":"'Schedule VIIIA'!S23","v":0},null,null,null,null,null,null,null,{"$f":"'Schedule VIIIA (EBS)'!S23","v":0}]
["Sch VIIIA","LT Internal Model",null,"6-7. 3a. Description of Test - 1",{"$f":"'Schedule VIIIA'!O20","v":0},null,null,null,null,null,null,null,{"$f":"'Schedule VIIIA (EBS)'!O20","v":0}]
["Sch VIIIA","LT Internal Model",null,"6-7. 3b. Description of Test - 2",{"$f":"'Schedule VIIIA'!O21","v":0},null,null,null,null,null,null,null,{"$f":"'Schedule VIIIA (EBS)'!O21","v":0}]
["Sch VIIIA","LT Internal Model",null,"6-7. 3c. Description of Test - 3",{"$f":"'Schedule VIIIA'!O22","v":0},null,null,null,null,null,null,null,{"$f":"'Schedule VIIIA (EBS)'!O22","v":0}]
["Sch VIIIA","LT Internal Model",null,"6-7. 3d. Description of Test - 4",{"$f":"'Schedule VIIIA'!O23","v":0},null,null,null,null,null,null,null,{"$f":"'Schedule VIIIA (EBS)'!O23","v":0}]
["Sch VIIIA","LT Internal Model",null,"Policy Type - 1. Res. - GMDB - Ret. Of Prem.",{"$f":"'Schedule VIIIA'!D12","v":0},null,null,null,null,null,null,null,{"$f":"'Schedule VIIIA (EBS)'!D12","v":0}]
["Sch VIIIA","LT Internal Model",null,"Policy Type - 1. Res. - GMDB - Ratchet",{"$f":"'Schedule VIIIA'!D13","v":0},null,null,null,null,null,null,null,{"$f":"'Schedule VIIIA (EBS)'!D13","v":0}]
["Sch VIIIA","LT Internal Model",null,"Policy Type - 1. Res. - GMDB - Roll-up",{"$f":"'Schedule VIIIA'!D14","v":0},null,null,null,null,null,null,null,{"$f":"'Schedule VIIIA (EBS)'!D14","v":0}]
["Sch VIIIA","LT Internal Model",null,"Policy Type - 1. Res. - GMDB - w Comp Guar.",{"$f":"'Schedule VIIIA'!D15","v":0},null,null,null,null,null,null,null,{"$f":"'Schedule VIIIA (EBS)'!D15","v":0}]
["Sch VIIIA","LT Internal Model",null,"Policy Type - 1. Res. - GMIB - Ret. Of Prem.",{"$f":"'Schedule VIIIA'!D16","v":0},null,null,null,null,null,null,null,{"$f":"'Schedule VIIIA (EBS)'!D16","v":0}]
["Sch VIIIA","LT Internal Model",null,"Policy Type - 1. Res. - GMIB - Ratchet",{"$f":"'Schedule VIIIA'!D17","v":0},null,null,null,null,null,null,null,{"$f":"'Schedule VIIIA (EBS)'!D17","v":0}]
["Sch VIIIA","LT Internal Model",null,"Policy Type - 1. Res. - GMIB - Roll-up",{"$f":"'Schedule VIIIA'!D18","v":0},null,null,null,null,null,null,null,{"$f":"'Schedule VIIIA (EBS)'!D18","v":0}]
["Sch VIIIA","LT Internal Model",null,"Policy Type - 1. Res. - GMIB - W/ Comp Guar.",{"$f":"'Schedule VIIIA'!D19","v":0},null,null,null,null,null,null,null,{"$f":"'Schedule VIIIA (EBS)'!D19","v":0}]
["Sch VIIIA","LT Internal Model",null,"Policy Type - 1. Res. - GEEB",{"$f":"'Schedule VIIIA'!D20","v":0},null,null,null,null,null,null,null,{"$f":"'Schedule VIIIA (EBS)'!D20","v":0}]
["Sch VIIIA","LT Internal Model",null,"Policy Type - 1. Res. - GMWB",{"$f":"'Schedule VIIIA'!D21","v":0},null,null,null,null,null,null,null,{"$f":"'Schedule VIIIA (EBS)'!D21","v":0}]
["Sch VIIIA","LT Internal Model",null,"Policy Type - 1. Res. - GMWL",{"$f":"'Schedule VIIIA'!D22","v":0},null,null,null,null,null,null,null,{"$f":"'Schedule VIIIA (EBS)'!D22","v":0}]
["Sch VIIIA","LT Internal Model",null,"Policy Type - 1. Res. - GMAB",{"$f":"'Schedule VIIIA'!D23","v":0},null,null,null,null,null,null,null,{"$f":"'Schedule VIIIA (EBS)'!D23","v":0}]
["Sch VIIIA","LT Internal Model",null,"Policy Type - 1. Res. - GMAB w Comp. Guar.",{"$f":"'Schedule VIIIA'!D24","v":0},null,null,null,null,null,null,null,{"$f":"'Schedule VIIIA (EBS)'!D24","v":0}]
["Sch VIIIA","LT Internal Model",null,"Policy Type - 1. Res. - Total",{"$f":"'Schedule VIIIA'!D25","v":0},null,null,null,null,null,null,null,{"$f":"'Schedule VIIIA (EBS)'!D25","v":0}]
["Sch VIIIA","LT Internal Model",null,"Policy Type - 2. Policy Count - GMDB - Ret. Of Prem.",{"$f":"'Schedule VIIIA'!F12","v":0},null,null,null,null,null,null,null,{"$f":"'Schedule VIIIA (EBS)'!F12","v":0}]
["Sch VIIIA","LT Internal Model",null,"Policy Type - 2. Policy Count - GMDB - Ratchet",{"$f":"'Schedule VIIIA'!F13","v":0},null,null,null,null,null,null,null,{"$f":"'Schedule VIIIA (EBS)'!F13","v":0}]
["Sch VIIIA","LT Internal Model",null,"Policy Type - 2. Policy Count - GMDB - Roll-up",{"$f":"'Schedule VIIIA'!F14","v":0},null,null,null,null,null,null,null,{"$f":"'Schedule VIIIA (EBS)'!F14","v":0}]
["Sch VIIIA","LT Internal Model",null,"Policy Type - 2. Policy Count - GMDB - w Comp Guar.",{"$f":"'Schedule VIIIA'!F15","v":0},null,null,null,null,null,null,null,{"$f":"'Schedule VIIIA (EBS)'!F15","v":0}]
["Sch VIIIA","LT Internal Model",null,"Policy Type - 2. Policy Count - GMIB - Ret. Of Prem.",{"$f":"'Schedule VIIIA'!F16","v":0},null,null,null,null,null,null,null,{"$f":"'Schedule VIIIA (EBS)'!F16","v":0}]
["Sch VIIIA","LT Internal Model",null,"Policy Type - 2. Policy Count - GMIB - Ratchet",{"$f":"'Schedule VIIIA'!F17","v":0},null,null,null,null,null,null,null,{"$f":"'Schedule VIIIA (EBS)'!F17","v":0}]
["Sch VIIIA","LT Internal Model",null,"Policy Type - 2. Policy Count - GMIB - Roll-up",{"$f":"'Schedule VIIIA'!F18","v":0},null,null,null,null,null,null,null,{"$f":"'Schedule VIIIA (EBS)'!F18","v":0}]
["Sch VIIIA","LT Internal Model",null,"Policy Type - 2. Policy Count - GMIB - W/ Comp Guar.",{"$f":"'Schedule VIIIA'!F19","v":0},null,null,null,null,null,null,null,{"$f":"'Schedule VIIIA (EBS)'!F19","v":0}]
["Sch VIIIA","LT Internal Model",null,"Policy Type - 2. Policy Count - GEEB",{"$f":"'Schedule VIIIA'!F20","v":0},null,null,null,null,null,null,null,{"$f":"'Schedule VIIIA (EBS)'!F20","v":0}]
["Sch VIIIA","LT Internal Model",null,"Policy Type - 2. Policy Count - GMWB",{"$f":"'Schedule VIIIA'!F21","v":0},null,null,null,null,null,null,null,{"$f":"'Schedule VIIIA (EBS)'!F21","v":0}]
["Sch VIIIA","LT Internal Model",null,"Policy Type - 2. Policy Count - GMWL",{"$f":"'Schedule VIIIA'!F22","v":0},null,null,null,null,null,null,null,{"$f":"'Schedule VIIIA (EBS)'!F22","v":0}]
["Sch VIIIA","LT Internal Model",null,"Policy Type - 2. Policy Count - GMAB",{"$f":"'Schedule VIIIA'!F23","v":0},null,null,null,null,null,null,null,{"$f":"'Schedule VIIIA (EBS)'!F23","v":0}]
["Sch VIIIA","LT Internal Model",null,"Policy Type - 2. Policy Count - GMAB w Comp. Guar.",{"$f":"'Schedule VIIIA'!F24","v":0},null,null,null,null,null,null,null,{"$f":"'Schedule VIIIA (EBS)'!F24","v":0}]
["Sch VIIIA","LT Internal Model",null,"Policy Type - 2. Policy Count - Total",{"$f":"'Schedule VIIIA'!F25","v":0},null,null,null,null,null,null,null,{"$f":"'Schedule VIIIA (EBS)'!F25","v":0}]
["Sch VIIIA","LT Internal Model",null,"Policy Type - 3. Acc. Val. - GMDB - Ret. Of Prem.",{"$f":"'Schedule VIIIA'!H12","v":0},null,null,null,null,null,null,null,{"$f":"'Schedule VIIIA (EBS)'!H12","v":0}]
["Sch VIIIA","LT Internal Model",null,"Policy Type - 3. Acc. Val. - GMDB - Ratchet",{"$f":"'Schedule VIIIA'!H13","v":0},null,null,null,null,null,null,null,{"$f":"'Schedule VIIIA (EBS)'!H13","v":0}]
["Sch VIIIA","LT Internal Model",null,"Policy Type - 3. Acc. Val. - GMDB - Roll-up",{"$f":"'Schedule VIIIA'!H14","v":0},null,null,null,null,null,null,null,{"$f":"'Schedule VIIIA (EBS)'!H14","v":0}]
["Sch VIIIA","LT Internal Model",null,"Policy Type - 3. Acc. Val. - GMDB - w Comp Guar.",{"$f":"'Schedule VIIIA'!H15","v":0},null,null,null,null,null,null,null,{"$f":"'Schedule VIIIA (EBS)'!H15","v":0}]
["Sch VIIIA","LT Internal Model",null,"Policy Type - 3. Acc. Val. - GMIB - Ret. Of Prem.",{"$f":"'Schedule VIIIA'!H16","v":0},null,null,null,null,null,null,null,{"$f":"'Schedule VIIIA (EBS)'!H16","v":0}]
["Sch VIIIA","LT Internal Model",null,"Policy Type - 3. Acc. Val. - GMIB - Ratchet",{"$f":"'Schedule VIIIA'!H17","v":0},null,null,null,null,null,null,null,{"$f":"'Schedule VIIIA (EBS)'!H17","v":0}]
["Sch VIIIA","LT Internal Model",null,"Policy Type - 3. Acc. Val. - GMIB - Roll-up",{"$f":"'Schedule VIIIA'!H18","v":0},null,null,null,null,null,null,null,{"$f":"'Schedule VIIIA (EBS)'!H18","v":0}]
["Sch VIIIA","LT Internal Model",null,"Policy Type - 3. Acc. Val. - GMIB - W/ Comp Guar.",{"$f":"'Schedule VIIIA'!H19","v":0},null,null,null,null,null,null,null,{"$f":"'Schedule VIIIA (EBS)'!H19","v":0}]
["Sch VIIIA","LT Internal Model",null,"Policy Type - 3. Acc. Val. - GEEB",{"$f":"'Schedule VIIIA'!H20","v":0},null,null,null,null,null,null,null,{"$f":"'Schedule VIIIA (EBS)'!H20","v":0}]
["Sch VIIIA","LT Internal Model",null,"Policy Type - 3. Acc. Val. - GMWB",{"$f":"'Schedule VIIIA'!H21","v":0},null,null,null,null,null,null,null,{"$f":"'Schedule VIIIA (EBS)'!H21","v":0}]
["Sch VIIIA","LT Internal Model",null,"Policy Type - 3. Acc. Val. - GMWL",{"$f":"'Schedule VIIIA'!H22","v":0},null,null,null,null,null,null,null,{"$f":"'Schedule VIIIA (EBS)'!H22","v":0}]
["Sch VIIIA","LT Internal Model",null,"Policy Type - 3. Acc. Val. - GMAB",{"$f":"'Schedule VIIIA'!H23","v":0},null,null,null,null,null,null,null,{"$f":"'Schedule VIIIA (EBS)'!H23","v":0}]
["Sch VIIIA","LT Internal Model",null,"Policy Type - 3. Acc. Val. - GMAB w Comp. Guar.",{"$f":"'Schedule VIIIA'!H24","v":0},null,null,null,null,null,null,null,{"$f":"'Schedule VIIIA (EBS)'!H24","v":0}]
["Sch VIIIA","LT Internal Model",null,"Policy Type - 3. Acc. Val. - Total",{"$f":"'Schedule VIIIA'!H25","v":0},null,null,null,null,null,null,null,{"$f":"'Schedule VIIIA (EBS)'!H25","v":0}]
["Sch VIIIA","LT Internal Model",null,"Policy Type - 4. Guar. Val. - GMDB - Ret. Of Prem.",{"$f":"'Schedule VIIIA'!J12","v":0},null,null,null,null,null,null,null,{"$f":"'Schedule VIIIA (EBS)'!J12","v":0}]
["Sch VIIIA","LT Internal Model",null,"Policy Type - 4. Guar. Val. - GMDB - Ratchet",{"$f":"'Schedule VIIIA'!J13","v":0},null,null,null,null,null,null,null,{"$f":"'Schedule VIIIA (EBS)'!J13","v":0}]
["Sch VIIIA","LT Internal Model",null,"Policy Type - 4. Guar. Val. - GMDB - Roll-up",{"$f":"'Schedule VIIIA'!J14","v":0},null,null,null,null,null,null,null,{"$f":"'Schedule VIIIA (EBS)'!J14","v":0}]
["Sch VIIIA","LT Internal Model",null,"Policy Type - 4. Guar. Val. - GMDB - w Comp Guar.",{"$f":"'Schedule VIIIA'!J15","v":0},null,null,null,null,null,null,null,{"$f":"'Schedule VIIIA (EBS)'!J15","v":0}]
["Sch VIIIA","LT Internal Model",null,"Policy Type - 4. Guar. Val. - GMIB - Ret. Of Prem.",{"$f":"'Schedule VIIIA'!J16","v":0},null,null,null,null,null,null,null,{"$f":"'Schedule VIIIA (EBS)'!J16","v":0}]
["Sch VIIIA","LT Internal Model",null,"Policy Type - 4. Guar. Val. - GMIB - Ratchet",{"$f":"'Schedule VIIIA'!J17","v":0},null,null,null,null,null,null,null,{"$f":"'Schedule VIIIA (EBS)'!J17","v":0}]
["Sch VIIIA","LT Internal Model",null,"Policy Type - 4. Guar. Val. - GMIB - Roll-up",{"$f":"'Schedule VIIIA'!J18","v":0},null,null,null,null,null,null,null,{"$f":"'Schedule VIIIA (EBS)'!J18","v":0}]
["Sch VIIIA","LT Internal Model",null,"Policy Type - 4. Guar. Val. - GMIB - W/ Comp Guar.",{"$f":"'Schedule VIIIA'!J19","v":0},null,null,null,null,null,null,null,{"$f":"'Schedule VIIIA (EBS)'!J19","v":0}]
["Sch VIIIA","LT Internal Model",null,"Policy Type - 4. Guar. Val. - GEEB",{"$f":"'Schedule VIIIA'!J20","v":0},null,null,null,null,null,null,null,{"$f":"'Schedule VIIIA (EBS)'!J20","v":0}]
["Sch VIIIA","LT Internal Model",null,"Policy Type - 4. Guar. Val. - GMWB",{"$f":"'Schedule VIIIA'!J21","v":0},null,null,null,null,null,null,null,{"$f":"'Schedule VIIIA (EBS)'!J21","v":0}]
["Sch VIIIA","LT Internal Model",null,"Policy Type - 4. Guar. Val. - GMWL",{"$f":"'Schedule VIIIA'!J22","v":0},null,null,null,null,null,null,null,{"$f":"'Schedule VIIIA (EBS)'!J22","v":0}]
["Sch VIIIA","LT Internal Model",null,"Policy Type - 4. Guar. Val. - GMAB",{"$f":"'Schedule VIIIA'!J23","v":0},null,null,null,null,null,null,null,{"$f":"'Schedule VIIIA (EBS)'!J23","v":0}]
["Sch VIIIA","LT Internal Model",null,"Policy Type - 4. Guar. Val. - GMAB w Comp. Guar.",{"$f":"'Schedule VIIIA'!J24","v":0},null,null,null,null,null,null,null,{"$f":"'Schedule VIIIA (EBS)'!J24","v":0}]
["Sch VIIIA","LT Internal Model",null,"Policy Type - 4. Guar. Val. - Total",{"$f":"'Schedule VIIIA'!J25","v":0},null,null,null,null,null,null,null,{"$f":"'Schedule VIIIA (EBS)'!J25","v":0}]
["Sch VIIIA","LT Internal Model",null,"Policy Type - 5. NAR - GMDB - Ret. Of Prem.",{"$f":"'Schedule VIIIA'!L12","v":0},null,null,null,null,null,null,null,{"$f":"'Schedule VIIIA (EBS)'!L12","v":0}]
["Sch VIIIA","LT Internal Model",null,"Policy Type - 5. NAR - GMDB - Ratchet",{"$f":"'Schedule VIIIA'!L13","v":0},null,null,null,null,null,null,null,{"$f":"'Schedule VIIIA (EBS)'!L13","v":0}]
["Sch VIIIA","LT Internal Model",null,"Policy Type - 5. NAR - GMDB - Roll-up",{"$f":"'Schedule VIIIA'!L14","v":0},null,null,null,null,null,null,null,{"$f":"'Schedule VIIIA (EBS)'!L14","v":0}]
["Sch VIIIA","LT Internal Model",null,"Policy Type - 5. NAR - GMDB - w Comp Guar.",{"$f":"'Schedule VIIIA'!L15","v":0},null,null,null,null,null,null,null,{"$f":"'Schedule VIIIA (EBS)'!L15","v":0}]
["Sch VIIIA","LT Internal Model",null,"Policy Type - 5. NAR - GMIB - Ret. Of Prem.",{"$f":"'Schedule VIIIA'!L16","v":0},null,null,null,null,null,null,null,{"$f":"'Schedule VIIIA (EBS)'!L16","v":0}]
["Sch VIIIA","LT Internal Model",null,"Policy Type - 5. NAR - GMIB - Ratchet",{"$f":"'Schedule VIIIA'!L17","v":0},null,null,null,null,null,null,null,{"$f":"'Schedule VIIIA (EBS)'!L17","v":0}]
["Sch VIIIA","LT Internal Model",null,"Policy Type - 5. NAR - GMIB - Roll-up",{"$f":"'Schedule VIIIA'!L18","v":0},null,null,null,null,null,null,null,{"$f":"'Schedule VIIIA (EBS)'!L18","v":0}]
["Sch VIIIA","LT Internal Model",null,"Policy Type - 5. NAR - GMIB - W/ Comp Guar.",{"$f":"'Schedule VIIIA'!L19","v":0},null,null,null,null,null,null,null,{"$f":"'Schedule VIIIA (EBS)'!L19","v":0}]
["Sch VIIIA","LT Internal Model",null,"Policy Type - 5. NAR - GEEB",{"$f":"'Schedule VIIIA'!L20","v":0},null,null,null,null,null,null,null,{"$f":"'Schedule VIIIA (EBS)'!L20","v":0}]
["Sch VIIIA","LT Internal Model",null,"Policy Type - 5. NAR - GMWB",{"$f":"'Schedule VIIIA'!L21","v":0},null,null,null,null,null,null,null,{"$f":"'Schedule VIIIA (EBS)'!L21","v":0}]
["Sch VIIIA","LT Internal Model",null,"Policy Type - 5. NAR - GMWL",{"$f":"'Schedule VIIIA'!L22","v":0},null,null,null,null,null,null,null,{"$f":"'Schedule VIIIA (EBS)'!L22","v":0}]
["Sch VIIIA","LT Internal Model",null,"Policy Type - 5. NAR - GMAB",{"$f":"'Schedule VIIIA'!L23","v":0},null,null,null,null,null,null,null,{"$f":"'Schedule VIIIA (EBS)'!L23","v":0}]
["Sch VIIIA","LT Internal Model",null,"Policy Type - 5. NAR - GMAB w Comp. Guar.",{"$f":"'Schedule VIIIA'!L24","v":0},null,null,null,null,null,null,null,{"$f":"'Schedule VIIIA (EBS)'!L24","v":0}]
["Sch VIIIA","LT Internal Model",null,"Policy Type - 5. NAR - Total",{"$f":"'Schedule VIIIA'!L25","v":0},null,null,null,null,null,null,null,{"$f":"'Schedule VIIIA (EBS)'!L25","v":0}]
["Sch VIIIA","LT Internal Model",null,"Years Since Issue - 1. Stat. Res. - 0",{"$f":"'Schedule VIIIA'!D31","v":0},null,null,null,null,null,null,null,{"$f":"'Schedule VIIIA (EBS)'!D31","v":0}]
["Sch VIIIA","LT Internal Model",null,"Years Since Issue - 1. Stat. Res. - 1",{"$f":"'Schedule VIIIA'!D32","v":0},null,null,null,null,null,null,null,{"$f":"'Schedule VIIIA (EBS)'!D32","v":0}]
["Sch VIIIA","LT Internal Model",null,"Years Since Issue - 1. Stat. Res. - 2",{"$f":"'Schedule VIIIA'!D33","v":0},null,null,null,null,null,null,null,{"$f":"'Schedule VIIIA (EBS)'!D33","v":0}]
["Sch VIIIA","LT Internal Model",null,"Years Since Issue - 1. Stat. Res. - 3",{"$f":"'Schedule VIIIA'!D34","v":0},null,null,null,null,null,null,null,{"$f":"'Schedule VIIIA (EBS)'!D34","v":0}]
["Sch VIIIA","LT Internal Model",null,"Years Since Issue - 1. Stat. Res. - 4",{"$f":"'Schedule VIIIA'!D35","v":0},null,null,null,null,null,null,null,{"$f":"'Schedule VIIIA (EBS)'!D35","v":0}]
["Sch VIIIA","LT Internal Model",null,"Years Since Issue - 1. Stat. Res. - 5",{"$f":"'Schedule VIIIA'!D36","v":0},null,null,null,null,null,null,null,{"$f":"'Schedule VIIIA (EBS)'!D36","v":0}]
["Sch VIIIA","LT Internal Model",null,"Years Since Issue - 1. Stat. Res. - 6",{"$f":"'Schedule VIIIA'!D37","v":0},null,null,null,null,null,null,null,{"$f":"'Schedule VIIIA (EBS)'!D37","v":0}]
["Sch VIIIA","LT Internal Model",null,"Years Since Issue - 1. Stat. Res. - 7",{"$f":"'Schedule VIIIA'!D38","v":0},null,null,null,null,null,null,null,{"$f":"'Schedule VIIIA (EBS)'!D38","v":0}]
["Sch VIIIA","LT Internal Model",null,"Years Since Issue - 1. Stat. Res. - 8",{"$f":"'Schedule VIIIA'!D39","v":0},null,null,null,null,null,null,null,{"$f":"'Schedule VIIIA (EBS)'!D39","v":0}]
["Sch VIIIA","LT Internal Model",null,"Years Since Issue - 1. Stat. Res. - 9",{"$f":"'Schedule VIIIA'!D40","v":0},null,null,null,null,null,null,null,{"$f":"'Schedule VIIIA (EBS)'!D40","v":0}]
["Sch VIIIA","LT Internal Model",null,"Years Since Issue - 1. Stat. Res. - 10",{"$f":"'Schedule VIIIA'!D41","v":0},null,null,null,null,null,null,null,{"$f":"'Schedule VIIIA (EBS)'!D41","v":0}]
["Sch VIIIA","LT Internal Model",null,"Years Since Issue - 1. Stat. Res. - 11",{"$f":"'Schedule VIIIA'!D42","v":0},null,null,null,null,null,null,null,{"$f":"'Schedule VIIIA (EBS)'!D42","v":0}]
["Sch VIIIA","LT Internal Model",null,"Years Since Issue - 1. Stat. Res. - 12",{"$f":"'Schedule VIIIA'!D43","v":0},null,null,null,null,null,null,null,{"$f":"'Schedule VIIIA (EBS)'!D43","v":0}]
["Sch VIIIA","LT Internal Model",null,"Years Since Issue - 1. Stat. Res. - 13",{"$f":"'Schedule VIIIA'!D44","v":0},null,null,null,null,null,null,null,{"$f":"'Schedule VIIIA (EBS)'!D44","v":0}]
["Sch VIIIA","LT Internal Model",null,"Years Since Issue - 1. Stat. Res. - 14",{"$f":"'Schedule VIIIA'!D45","v":0},null,null,null,null,null,null,null,{"$f":"'Schedule VIIIA (EBS)'!D45","v":0}]
["Sch VIIIA","LT Internal Model",null,"Years Since Issue - 1. Stat. Res. - 15",{"$f":"'Schedule VIIIA'!D46","v":0},null,null,null,null,null,null,null,{"$f":"'Schedule VIIIA (EBS)'!D46","v":0}]
["Sch VIIIA","LT Internal Model",null,"Years Since Issue - 1. Stat. Res. - 15+",{"$f":"'Schedule VIIIA'!D47","v":0},null,null,null,null,null,null,null,{"$f":"'Schedule VIIIA (EBS)'!D47","v":0}]
["Sch VIIIA","LT Internal Model",null,"Years Since Issue - 1. Stat. Res. - Total",{"$f":"'Schedule VIIIA'!D48","v":0},null,null,null,null,null,null,null,{"$f":"'Schedule VIIIA (EBS)'!D48","v":0}]
["Sch VIIIA","LT Internal Model",null,"Years Since Issue - 2. Policy Count - 0",{"$f":"'Schedule VIIIA'!F31","v":0},null,null,null,null,null,null,null,{"$f":"'Schedule VIIIA (EBS)'!F31","v":0}]
["Sch VIIIA","LT Internal Model",null,"Years Since Issue - 2. Policy Count - 1",{"$f":"'Schedule VIIIA'!F32","v":0},null,null,null,null,null,null,null,{"$f":"'Schedule VIIIA (EBS)'!F32","v":0}]
["Sch VIIIA","LT Internal Model",null,"Years Since Issue - 2. Policy Count - 2",{"$f":"'Schedule VIIIA'!F33","v":0},null,null,null,null,null,null,null,{"$f":"'Schedule VIIIA (EBS)'!F33","v":0}]
["Sch VIIIA","LT Internal Model",null,"Years Since Issue - 2. Policy Count - 3",{"$f":"'Schedule VIIIA'!F34","v":0},null,null,null,null,null,null,null,{"$f":"'Schedule VIIIA (EBS)'!F34","v":0}]
["Sch VIIIA","LT Internal Model",null,"Years Since Issue - 2. Policy Count - 4",{"$f":"'Schedule VIIIA'!F35","v":0},null,null,null,null,null,null,null,{"$f":"'Schedule VIIIA (EBS)'!F35","v":0}]
["Sch VIIIA","LT Internal Model",null,"Years Since Issue - 2. Policy Count - 5",{"$f":"'Schedule VIIIA'!F36","v":0},null,null,null,null,null,null,null,{"$f":"'Schedule VIIIA (EBS)'!F36","v":0}]
["Sch VIIIA","LT Internal Model",null,"Years Since Issue - 2. Policy Count - 6",{"$f":"'Schedule VIIIA'!F37","v":0},null,null,null,null,null,null,null,{"$f":"'Schedule VIIIA (EBS)'!F37","v":0}]
["Sch VIIIA","LT Internal Model",null,"Years Since Issue - 2. Policy Count - 7",{"$f":"'Schedule VIIIA'!F38","v":0},null,null,null,null,null,null,null,{"$f":"'Schedule VIIIA (EBS)'!F38","v":0}]
["Sch VIIIA","LT Internal Model",null,"Years Since Issue - 2. Policy Count - 8",{"$f":"'Schedule VIIIA'!F39","v":0},null,null,null,null,null,null,null,{"$f":"'Schedule VIIIA (EBS)'!F39","v":0}]
["Sch VIIIA","LT Internal Model",null,"Years Since Issue - 2. Policy Count - 9",{"$f":"'Schedule VIIIA'!F40","v":0},null,null,null,null,null,null,null,{"$f":"'Schedule VIIIA (EBS)'!F40","v":0}]
["Sch VIIIA","LT Internal Model",null,"Years Since Issue - 2. Policy Count - 10",{"$f":"'Schedule VIIIA'!F41","v":0},null,null,null,null,null,null,null,{"$f":"'Schedule VIIIA (EBS)'!F41","v":0}]
["Sch VIIIA","LT Internal Model",null,"Years Since Issue - 2. Policy Count - 11",{"$f":"'Schedule VIIIA'!F42","v":0},null,null,null,null,null,null,null,{"$f":"'Schedule VIIIA (EBS)'!F42","v":0}]
["Sch VIIIA","LT Internal Model",null,"Years Since Issue - 2. Policy Count - 12",{"$f":"'Schedule VIIIA'!F43","v":0},null,null,null,null,null,null,null,{"$f":"'Schedule VIIIA (EBS)'!F43","v":0}]
["Sch VIIIA","LT Internal Model",null,"Years Since Issue - 2. Policy Count - 13",{"$f":"'Schedule VIIIA'!F44","v":0},null,null,null,null,null,null,null,{"$f":"'Schedule VIIIA (EBS)'!F44","v":0}]
["Sch VIIIA","LT Internal Model",null,"Years Since Issue - 2. Policy Count - 14",{"$f":"'Schedule VIIIA'!F45","v":0},null,null,null,null,null,null,null,{"$f":"'Schedule VIIIA (EBS)'!F45","v":0}]
["Sch VIIIA","LT Internal Model",null,"Years Since Issue - 2. Policy Count - 15",{"$f":"'Schedule VIIIA'!F46","v":0},null,null,null,null,null,null,null,{"$f":"'Schedule VIIIA (EBS)'!F46","v":0}]
["Sch VIIIA","LT Internal Model",null,"Years Since Issue - 2. Policy Count - 15+",{"$f":"'Schedule VIIIA'!F47","v":0},null,null,null,null,null,null,null,{"$f":"'Schedule VIIIA (EBS)'!F47","v":0}]
["Sch VIIIA","LT Internal Model",null,"Years Since Issue - 2. Policy Count - Total",{"$f":"'Schedule VIIIA'!F48","v":0},null,null,null,null,null,null,null,{"$f":"'Schedule VIIIA (EBS)'!F48","v":0}]
["Sch VIIIA","LT Internal Model",null,"Years Since Issue - 3. Acc. Val. - 0",{"$f":"'Schedule VIIIA'!H31","v":0},null,null,null,null,null,null,null,{"$f":"'Schedule VIIIA (EBS)'!H31","v":0}]
["Sch VIIIA","LT Internal Model",null,"Years Since Issue - 3. Acc. Val. - 1",{"$f":"'Schedule VIIIA'!H32","v":0},null,null,null,null,null,null,null,{"$f":"'Schedule VIIIA (EBS)'!H32","v":0}]
["Sch VIIIA","LT Internal Model",null,"Years Since Issue - 3. Acc. Val. - 2",{"$f":"'Schedule VIIIA'!H33","v":0},null,null,null,null,null,null,null,{"$f":"'Schedule VIIIA (EBS)'!H33","v":0}]
["Sch VIIIA","LT Internal Model",null,"Years Since Issue - 3. Acc. Val. - 3",{"$f":"'Schedule VIIIA'!H34","v":0},null,null,null,null,null,null,null,{"$f":"'Schedule VIIIA (EBS)'!H34","v":0}]
["Sch VIIIA","LT Internal Model",null,"Years Since Issue - 3. Acc. Val. - 4",{"$f":"'Schedule VIIIA'!H35","v":0},null,null,null,null,null,null,null,{"$f":"'Schedule VIIIA (EBS)'!H35","v":0}]
["Sch VIIIA","LT Internal Model",null,"Years Since Issue - 3. Acc. Val. - 5",{"$f":"'Schedule VIIIA'!H36","v":0},null,null,null,null,null,null,null,{"$f":"'Schedule VIIIA (EBS)'!H36","v":0}]
["Sch VIIIA","LT Internal Model",null,"Years Since Issue - 3. Acc. Val. - 6",{"$f":"'Schedule VIIIA'!H37","v":0},null,null,null,null,null,null,null,{"$f":"'Schedule VIIIA (EBS)'!H37","v":0}]
["Sch VIIIA","LT Internal Model",null,"Years Since Issue - 3. Acc. Val. - 7",{"$f":"'Schedule VIIIA'!H38","v":0},null,null,null,null,null,null,null,{"$f":"'Schedule VIIIA (EBS)'!H38","v":0}]
["Sch VIIIA","LT Internal Model",null,"Years Since Issue - 3. Acc. Val. - 8",{"$f":"'Schedule VIIIA'!H39","v":0},null,null,null,null,null,null,null,{"$f":"'Schedule VIIIA (EBS)'!H39","v":0}]
["Sch VIIIA","LT Internal Model",null,"Years Since Issue - 3. Acc. Val. - 9",{"$f":"'Schedule VIIIA'!H40","v":0},null,null,null,null,null,null,null,{"$f":"'Schedule VIIIA (EBS)'!H40","v":0}]
["Sch VIIIA","LT Internal Model",null,"Years Since Issue - 3. Acc. Val. - 10",{"$f":"'Schedule VIIIA'!H41","v":0},null,null,null,null,null,null,null,{"$f":"'Schedule VIIIA (EBS)'!H41","v":0}]
["Sch VIIIA","LT Internal Model",null,"Years Since Issue - 3. Acc. Val. - 11",{"$f":"'Schedule VIIIA'!H42","v":0},null,null,null,null,null,null,null,{"$f":"'Schedule VIIIA (EBS)'!H42","v":0}]
["Sch VIIIA","LT Internal Model",null,"Years Since Issue - 3. Acc. Val. - 12",{"$f":"'Schedule VIIIA'!H43","v":0},null,null,null,null,null,null,null,{"$f":"'Schedule VIIIA (EBS)'!H43","v":0}]
["Sch VIIIA","LT Internal Model",null,"Years Since Issue - 3. Acc. Val. - 13",{"$f":"'Schedule VIIIA'!H44","v":0},null,null,null,null,null,null,null,{"$f":"'Schedule VIIIA (EBS)'!H44","v":0}]
["Sch VIIIA","LT Internal Model",null,"Years Since Issue - 3. Acc. Val. - 14",{"$f":"'Schedule VIIIA'!H45","v":0},null,null,null,null,null,null,null,{"$f":"'Schedule VIIIA (EBS)'!H45","v":0}]
["Sch VIIIA","LT Internal Model",null,"Years Since Issue - 3. Acc. Val. - 15",{"$f":"'Schedule VIIIA'!H46","v":0},null,null,null,null,null,null,null,{"$f":"'Schedule VIIIA (EBS)'!H46","v":0}]
["Sch VIIIA","LT Internal Model",null,"Years Since Issue - 3. Acc. Val. - 15+",{"$f":"'Schedule VIIIA'!H47","v":0},null,null,null,null,null,null,null,{"$f":"'Schedule VIIIA (EBS)'!H47","v":0}]
["Sch VIIIA","LT Internal Model",null,"Years Since Issue - 3. Acc. Val. - Total",{"$f":"'Schedule VIIIA'!H48","v":0},null,null,null,null,null,null,null,{"$f":"'Schedule VIIIA (EBS)'!H48","v":0}]
["Sch VIIIA","LT Internal Model",null,"Years Since Issue - 4. Guar. Val. - 0",{"$f":"'Schedule VIIIA'!J31","v":0},null,null,null,null,null,null,null,{"$f":"'Schedule VIIIA (EBS)'!J31","v":0}]
["Sch VIIIA","LT Internal Model",null,"Years Since Issue - 4. Guar. Val. - 1",{"$f":"'Schedule VIIIA'!J32","v":0},null,null,null,null,null,null,null,{"$f":"'Schedule VIIIA (EBS)'!J32","v":0}]
["Sch VIIIA","LT Internal Model",null,"Years Since Issue - 4. Guar. Val. - 2",{"$f":"'Schedule VIIIA'!J33","v":0},null,null,null,null,null,null,null,{"$f":"'Schedule VIIIA (EBS)'!J33","v":0}]
["Sch VIIIA","LT Internal Model",null,"Years Since Issue - 4. Guar. Val. - 3",{"$f":"'Schedule VIIIA'!J34","v":0},null,null,null,null,null,null,null,{"$f":"'Schedule VIIIA (EBS)'!J34","v":0}]
["Sch VIIIA","LT Internal Model",null,"Years Since Issue - 4. Guar. Val. - 4",{"$f":"'Schedule VIIIA'!J35","v":0},null,null,null,null,null,null,null,{"$f":"'Schedule VIIIA (EBS)'!J35","v":0}]
["Sch VIIIA","LT Internal Model",null,"Years Since Issue - 4. Guar. Val. - 5",{"$f":"'Schedule VIIIA'!J36","v":0},null,null,null,null,null,null,null,{"$f":"'Schedule VIIIA (EBS)'!J36","v":0}]
["Sch VIIIA","LT Internal Model",null,"Years Since Issue - 4. Guar. Val. - 6",{"$f":"'Schedule VIIIA'!J37","v":0},null,null,null,null,null,null,null,{"$f":"'Schedule VIIIA (EBS)'!J37","v":0}]
["Sch VIIIA","LT Internal Model",null,"Years Since Issue - 4. Guar. Val. - 7",{"$f":"'Schedule VIIIA'!J38","v":0},null,null,null,null,null,null,null,{"$f":"'Schedule VIIIA (EBS)'!J38","v":0}]
["Sch VIIIA","LT Internal Model",null,"Years Since Issue - 4. Guar. Val. - 8",{"$f":"'Schedule VIIIA'!J39","v":0},null,null,null,null,null,null,null,{"$f":"'Schedule VIIIA (EBS)'!J39","v":0}]
["Sch VIIIA","LT Internal Model",null,"Years Since Issue - 4. Guar. Val. - 9",{"$f":"'Schedule VIIIA'!J40","v":0},null,null,null,null,null,null,null,{"$f":"'Schedule VIIIA (EBS)'!J40","v":0}]
["Sch VIIIA","LT Internal Model",null,"Years Since Issue - 4. Guar. Val. - 10",{"$f":"'Schedule VIIIA'!J41","v":0},null,null,null,null,null,null,null,{"$f":"'Schedule VIIIA (EBS)'!J41","v":0}]
["Sch VIIIA","LT Internal Model",null,"Years Since Issue - 4. Guar. Val. - 11",{"$f":"'Schedule VIIIA'!J42","v":0},null,null,null,null,null,null,null,{"$f":"'Schedule VIIIA (EBS)'!J42","v":0}]
["Sch VIIIA","LT Internal Model",null,"Years Since Issue - 4. Guar. Val. - 12",{"$f":"'Schedule VIIIA'!J43","v":0},null,null,null,null,null,null,null,{"$f":"'Schedule VIIIA (EBS)'!J43","v":0}]
["Sch VIIIA","LT Internal Model",null,"Years Since Issue - 4. Guar. Val. - 13",{"$f":"'Schedule VIIIA'!J44","v":0},null,null,null,null,null,null,null,{"$f":"'Schedule VIIIA (EBS)'!J44","v":0}]
["Sch VIIIA","LT Internal Model",null,"Years Since Issue - 4. Guar. Val. - 14",{"$f":"'Schedule VIIIA'!J45","v":0},null,null,null,null,null,null,null,{"$f":"'Schedule VIIIA (EBS)'!J45","v":0}]
["Sch VIIIA","LT Internal Model",null,"Years Since Issue - 4. Guar. Val. - 15",{"$f":"'Schedule VIIIA'!J46","v":0},null,null,null,null,null,null,null,{"$f":"'Schedule VIIIA (EBS)'!J46","v":0}]
["Sch VIIIA","LT Internal Model",null,"Years Since Issue - 4. Guar. Val. - 15+",{"$f":"'Schedule VIIIA'!J47","v":0},null,null,null,null,null,null,null,{"$f":"'Schedule VIIIA (EBS)'!J47","v":0}]
["Sch VIIIA","LT Internal Model",null,"Years Since Issue - 4. Guar. Val. - Total",{"$f":"'Schedule VIIIA'!J48","v":0},null,null,null,null,null,null,null,{"$f":"'Schedule VIIIA (EBS)'!J48","v":0}]
["Sch VIIIA","LT Internal Model",null,"Years Since Issue - 5. NAR - 0",{"$f":"'Schedule VIIIA'!L31","v":0},null,null,null,null,null,null,null,{"$f":"'Schedule VIIIA (EBS)'!L31","v":0}]
["Sch VIIIA","LT Internal Model",null,"Years Since Issue - 5. NAR - 1",{"$f":"'Schedule VIIIA'!L32","v":0},null,null,null,null,null,null,null,{"$f":"'Schedule VIIIA (EBS)'!L32","v":0}]
["Sch VIIIA","LT Internal Model",null,"Years Since Issue - 5. NAR - 2",{"$f":"'Schedule VIIIA'!L33","v":0},null,null,null,null,null,null,null,{"$f":"'Schedule VIIIA (EBS)'!L33","v":0}]
["Sch VIIIA","LT Internal Model",null,"Years Since Issue - 5. NAR - 3",{"$f":"'Schedule VIIIA'!L34","v":0},null,null,null,null,null,null,null,{"$f":"'Schedule VIIIA (EBS)'!L34","v":0}]
["Sch VIIIA","LT Internal Model",null,"Years Since Issue - 5. NAR - 4",{"$f":"'Schedule VIIIA'!L35","v":0},null,null,null,null,null,null,null,{"$f":"'Schedule VIIIA (EBS)'!L35","v":0}]
["Sch VIIIA","LT Internal Model",null,"Years Since Issue - 5. NAR - 5",{"$f":"'Schedule VIIIA'!L36","v":0},null,null,null,null,null,null,null,{"$f":"'Schedule VIIIA (EBS)'!L36","v":0}]
["Sch VIIIA","LT Internal Model",null,"Years Since Issue - 5. NAR - 6",{"$f":"'Schedule VIIIA'!L37","v":0},null,null,null,null,null,null,null,{"$f":"'Schedule VIIIA (EBS)'!L37","v":0}]
["Sch VIIIA","LT Internal Model",null,"Years Since Issue - 5. NAR - 7",{"$f":"'Schedule VIIIA'!L38","v":0},null,null,null,null,null,null,null,{"$f":"'Schedule VIIIA (EBS)'!L38","v":0}]
["Sch VIIIA","LT Internal Model",null,"Years Since Issue - 5. NAR - 8",{"$f":"'Schedule VIIIA'!L39","v":0},null,null,null,null,null,null,null,{"$f":"'Schedule VIIIA (EBS)'!L39","v":0}]
["Sch VIIIA","LT Internal Model",null,"Years Since Issue - 5. NAR - 9",{"$f":"'Schedule VIIIA'!L40","v":0},null,null,null,null,null,null,null,{"$f":"'Schedule VIIIA (EBS)'!L40","v":0}]
["Sch VIIIA","LT Internal Model",null,"Years Since Issue - 5. NAR - 10",{"$f":"'Schedule VIIIA'!L41","v":0},null,null,null,null,null,null,null,{"$f":"'Schedule VIIIA (EBS)'!L41","v":0}]
["Sch VIIIA","LT Internal Model",null,"Years Since Issue - 5. NAR - 11",{"$f":"'Schedule VIIIA'!L42","v":0},null,null,null,null,null,null,null,{"$f":"'Schedule VIIIA (EBS)'!L42","v":0}]
["Sch VIIIA","LT Internal Model",null,"Years Since Issue - 5. NAR - 12",{"$f":"'Schedule VIIIA'!L43","v":0},null,null,null,null,null,null,null,{"$f":"'Schedule VIIIA (EBS)'!L43","v":0}]
["Sch VIIIA","LT Internal Model",null,"Years Since Issue - 5. NAR - 13",{"$f":"'Schedule VIIIA'!L44","v":0},null,null,null,null,null,null,null,{"$f":"'Schedule VIIIA (EBS)'!L44","v":0}]
["Sch VIIIA","LT Internal Model",null,"Years Since Issue - 5. NAR - 14",{"$f":"'Schedule VIIIA'!L45","v":0},null,null,null,null,null,null,null,{"$f":"'Schedule VIIIA (EBS)'!L45","v":0}]
["Sch VIIIA","LT Internal Model",null,"Years Since Issue - 5. NAR - 15",{"$f":"'Schedule VIIIA'!L46","v":0},null,null,null,null,null,null,null,{"$f":"'Schedule VIIIA (EBS)'!L46","v":0}]
["Sch VIIIA","LT Internal Model",null,"Years Since Issue - 5. NAR - 15+",{"$f":"'Schedule VIIIA'!L47","v":0},null,null,null,null,null,null,null,{"$f":"'Schedule VIIIA (EBS)'!L47","v":0}]
["Sch VIIIA","LT Internal Model",null,"Years Since Issue - 5. NAR - Total",{"$f":"'Schedule VIIIA'!L48","v":0},null,null,null,null,null,null,null,{"$f":"'Schedule VIIIA (EBS)'!L48","v":0}]
["Sch VIIIA","LT Internal Model",null,"In/Out of Money - 1. Res. - -15%",{"$f":"'Schedule VIIIA'!D54","v":0},null,null,null,null,null,null,null,{"$f":"'Schedule VIIIA (EBS)'!D54","v":0}]
["Sch VIIIA","LT Internal Model",null,"In/Out of Money - 1. Res. - -15 to -5%",{"$f":"'Schedule VIIIA'!D55","v":0},null,null,null,null,null,null,null,{"$f":"'Schedule VIIIA (EBS)'!D55","v":0}]
["Sch VIIIA","LT Internal Model",null,"In/Out of Money - 1. Res. - -5 to +5%",{"$f":"'Schedule VIIIA'!D56","v":0},null,null,null,null,null,null,null,{"$f":"'Schedule VIIIA (EBS)'!D56","v":0}]
["Sch VIIIA","LT Internal Model",null,"In/Out of Money - 1. Res. - +5 to +15%",{"$f":"'Schedule VIIIA'!D57","v":0},null,null,null,null,null,null,null,{"$f":"'Schedule VIIIA (EBS)'!D57","v":0}]
["Sch VIIIA","LT Internal Model",null,"In/Out of Money - 1. Res. - +15%",{"$f":"'Schedule VIIIA'!D58","v":0},null,null,null,null,null,null,null,{"$f":"'Schedule VIIIA (EBS)'!D58","v":0}]
["Sch VIIIA","LT Internal Model",null,"In/Out of Money - 1. Res. - Total",{"$f":"'Schedule VIIIA'!D59","v":0},null,null,null,null,null,null,null,{"$f":"'Schedule VIIIA (EBS)'!D59","v":0}]
["Sch VIIIA","LT Internal Model",null,"In/Out of Money - 2. Policy Count - -15%",{"$f":"'Schedule VIIIA'!F54","v":0},null,null,null,null,null,null,null,{"$f":"'Schedule VIIIA (EBS)'!F54","v":0}]
["Sch VIIIA","LT Internal Model",null,"In/Out of Money - 2. Policy Count - -15 to -5%",{"$f":"'Schedule VIIIA'!F55","v":0},null,null,null,null,null,null,null,{"$f":"'Schedule VIIIA (EBS)'!F55","v":0}]
["Sch VIIIA","LT Internal Model",null,"In/Out of Money - 2. Policy Count - -5 to +5%",{"$f":"'Schedule VIIIA'!F56","v":0},null,null,null,null,null,null,null,{"$f":"'Schedule VIIIA (EBS)'!F56","v":0}]
["Sch VIIIA","LT Internal Model",null,"In/Out of Money - 2. Policy Count - +5 to +15%",{"$f":"'Schedule VIIIA'!F57","v":0},null,null,null,null,null,null,null,{"$f":"'Schedule VIIIA (EBS)'!F57","v":0}]
["Sch VIIIA","LT Internal Model",null,"In/Out of Money - 2. Policy Count - +15%",{"$f":"'Schedule VIIIA'!F58","v":0},null,null,null,null,null,null,null,{"$f":"'Schedule VIIIA (EBS)'!F58","v":0}]
["Sch VIIIA","LT Internal Model",null,"In/Out of Money - 2. Policy Count - Total",{"$f":"'Schedule VIIIA'!F59","v":0},null,null,null,null,null,null,null,{"$f":"'Schedule VIIIA (EBS)'!F59","v":0}]
["Sch VIIIA","LT Internal Model",null,"In/Out of Money - 3. Acc. Val. - -15%",{"$f":"'Schedule VIIIA'!H54","v":0},null,null,null,null,null,null,null,{"$f":"'Schedule VIIIA (EBS)'!H54","v":0}]
["Sch VIIIA","LT Internal Model",null,"In/Out of Money - 3. Acc. Val. - -15 to -5%",{"$f":"'Schedule VIIIA'!H55","v":0},null,null,null,null,null,null,null,{"$f":"'Schedule VIIIA (EBS)'!H55","v":0}]
["Sch VIIIA","LT Internal Model",null,"In/Out of Money - 3. Acc. Val. - -5 to +5%",{"$f":"'Schedule VIIIA'!H56","v":0},null,null,null,null,null,null,null,{"$f":"'Schedule VIIIA (EBS)'!H56","v":0}]
["Sch VIIIA","LT Internal Model",null,"In/Out of Money - 3. Acc. Val. - +5 to +15%",{"$f":"'Schedule VIIIA'!H57","v":0},null,null,null,null,null,null,null,{"$f":"'Schedule VIIIA (EBS)'!H57","v":0}]
["Sch VIIIA","LT Internal Model",null,"In/Out of Money - 3. Acc. Val. - +15%",{"$f":"'Schedule VIIIA'!H58","v":0},null,null,null,null,null,null,null,{"$f":"'Schedule VIIIA (EBS)'!H58","v":0}]
["Sch VIIIA","LT Internal Model",null,"In/Out of Money - 3. Acc. Val. - Total",{"$f":"'Schedule VIIIA'!H59","v":0},null,null,null,null,null,null,null,{"$f":"'Schedule VIIIA (EBS)'!H59","v":0}]
["Sch VIIIA","LT Internal Model",null,"In/Out of Money - 4. Guar. Val. - -15%",{"$f":"'Schedule VIIIA'!J54","v":0},null,null,null,null,null,null,null,{"$f":"'Schedule VIIIA (EBS)'!J54","v":0}]
["Sch VIIIA","LT Internal Model",null,"In/Out of Money - 4. Guar. Val. - -15 to -5%",{"$f":"'Schedule VIIIA'!J55","v":0},null,null,null,null,null,null,null,{"$f":"'Schedule VIIIA (EBS)'!J55","v":0}]
["Sch VIIIA","LT Internal Model",null,"In/Out of Money - 4. Guar. Val. - -5 to +5%",{"$f":"'Schedule VIIIA'!J56","v":0},null,null,null,null,null,null,null,{"$f":"'Schedule VIIIA (EBS)'!J56","v":0}]
["Sch VIIIA","LT Internal Model",null,"In/Out of Money - 4. Guar. Val. - +5 to +15%",{"$f":"'Schedule VIIIA'!J57","v":0},null,null,null,null,null,null,null,{"$f":"'Schedule VIIIA (EBS)'!J57","v":0}]
["Sch VIIIA","LT Internal Model",null,"In/Out of Money - 4. Guar. Val. - +15%",{"$f":"'Schedule VIIIA'!J58","v":0},null,null,null,null,null,null,null,{"$f":"'Schedule VIIIA (EBS)'!J58","v":0}]
["Sch VIIIA","LT Internal Model",null,"In/Out of Money - 4. Guar. Val. - Total",{"$f":"'Schedule VIIIA'!J59","v":0},null,null,null,null,null,null,null,{"$f":"'Schedule VIIIA (EBS)'!J59","v":0}]
["Sch VIIIA","LT Internal Model",null,"In/Out of Money - 5. NAR - -15%",{"$f":"'Schedule VIIIA'!L54","v":0},null,null,null,null,null,null,null,{"$f":"'Schedule VIIIA (EBS)'!L54","v":0}]
["Sch VIIIA","LT Internal Model",null,"In/Out of Money - 5. NAR - -15 to -5%",{"$f":"'Schedule VIIIA'!L55","v":0},null,null,null,null,null,null,null,{"$f":"'Schedule VIIIA (EBS)'!L55","v":0}]
["Sch VIIIA","LT Internal Model",null,"In/Out of Money - 5. NAR - -5 to +5%",{"$f":"'Schedule VIIIA'!L56","v":0},null,null,null,null,null,null,null,{"$f":"'Schedule VIIIA (EBS)'!L56","v":0}]
["Sch VIIIA","LT Internal Model",null,"In/Out of Money - 5. NAR - +5 to +15%",{"$f":"'Schedule VIIIA'!L57","v":0},null,null,null,null,null,null,null,{"$f":"'Schedule VIIIA (EBS)'!L57","v":0}]
["Sch VIIIA","LT Internal Model",null,"In/Out of Money - 5. NAR - +15%",{"$f":"'Schedule VIIIA'!L58","v":0},null,null,null,null,null,null,null,{"$f":"'Schedule VIIIA (EBS)'!L58","v":0}]
["Sch VIIIA","LT Internal Model",null,"In/Out of Money - 5. NAR - Total",{"$f":"'Schedule VIIIA'!L59","v":0},null,null,null,null,null,null,null,{"$f":"'Schedule VIIIA (EBS)'!L59","v":0}]
["Sch VIIIA","LT Internal Model",null,"Fund Volatility - 1. Reserve - 0-10%",{"$f":"'Schedule VIIIA'!D65","v":0},null,null,null,null,null,null,null,{"$f":"'Schedule VIIIA (EBS)'!D65","v":0}]
["Sch VIIIA","LT Internal Model",null,"Fund Volatility - 1. Reserve - 10-20%",{"$f":"'Schedule VIIIA'!D66","v":0},null,null,null,null,null,null,null,{"$f":"'Schedule VIIIA (EBS)'!D66","v":0}]
["Sch VIIIA","LT Internal Model",null,"Fund Volatility - 1. Reserve - +20%",{"$f":"'Schedule VIIIA'!D67","v":0},null,null,null,null,null,null,null,{"$f":"'Schedule VIIIA (EBS)'!D67","v":0}]
["Sch VIIIA","LT Internal Model",null,"Fund Volatility - 1. Reserve - Total",{"$f":"'Schedule VIIIA'!D68","v":0},null,null,null,null,null,null,null,{"$f":"'Schedule VIIIA (EBS)'!D68","v":0}]
["Sch VIIIA","LT Internal Model",null,"Fund Volatility - 2. Policy Count - 0-10%",{"$f":"'Schedule VIIIA'!F65","v":0},null,null,null,null,null,null,null,{"$f":"'Schedule VIIIA (EBS)'!F65","v":0}]
["Sch VIIIA","LT Internal Model",null,"Fund Volatility - 2. Policy Count - 10-20%",{"$f":"'Schedule VIIIA'!F66","v":0},null,null,null,null,null,null,null,{"$f":"'Schedule VIIIA (EBS)'!F66","v":0}]
["Sch VIIIA","LT Internal Model",null,"Fund Volatility - 2. Policy Count - +20%",{"$f":"'Schedule VIIIA'!F67","v":0},null,null,null,null,null,null,null,{"$f":"'Schedule VIIIA (EBS)'!F67","v":0}]
["Sch VIIIA","LT Internal Model",null,"Fund Volatility - 2. Policy Count - Total",{"$f":"'Schedule VIIIA'!F68","v":0},null,null,null,null,null,null,null,{"$f":"'Schedule VIIIA (EBS)'!F68","v":0}]
["Sch VIIIA","LT Internal Model",null,"Fund Volatility - 3. Acc. Val. - 0-10%",{"$f":"'Schedule VIIIA'!H65","v":0},null,null,null,null,null,null,null,{"$f":"'Schedule VIIIA (EBS)'!H65","v":0}]
["Sch VIIIA","LT Internal Model",null,"Fund Volatility - 3. Acc. Val. - 10-20%",{"$f":"'Schedule VIIIA'!H66","v":0},null,null,null,null,null,null,null,{"$f":"'Schedule VIIIA (EBS)'!H66","v":0}]
["Sch VIIIA","LT Internal Model",null,"Fund Volatility - 3. Acc. Val. - +20%",{"$f":"'Schedule VIIIA'!H67","v":0},null,null,null,null,null,null,null,{"$f":"'Schedule VIIIA (EBS)'!H67","v":0}]
["Sch VIIIA","LT Internal Model",null,"Fund Volatility - 3. Acc. Val. - Total",{"$f":"'Schedule VIIIA'!H68","v":0},null,null,null,null,null,null,null,{"$f":"'Schedule VIIIA (EBS)'!H68","v":0}]
["Sch VIIIA","LT Internal Model",null,"Fund Volatility - 4. Guar. Val. - 0-10%",{"$f":"'Schedule VIIIA'!J65","v":0},null,null,null,null,null,null,null,{"$f":"'Schedule VIIIA (EBS)'!J65","v":0}]
["Sch VIIIA","LT Internal Model",null,"Fund Volatility - 4. Guar. Val. - 10-20%",{"$f":"'Schedule VIIIA'!J66","v":0},null,null,null,null,null,null,null,{"$f":"'Schedule VIIIA (EBS)'!J66","v":0}]
["Sch VIIIA","LT Internal Model",null,"Fund Volatility - 4. Guar. Val. - +20%",{"$f":"'Schedule VIIIA'!J67","v":0},null,null,null,null,null,null,null,{"$f":"'Schedule VIIIA (EBS)'!J67","v":0}]
["Sch VIIIA","LT Internal Model",null,"Fund Volatility - 4. Guar. Val. - Total",{"$f":"'Schedule VIIIA'!J68","v":0},null,null,null,null,null,null,null,{"$f":"'Schedule VIIIA (EBS)'!J68","v":0}]
["Sch VIIIA","LT Internal Model",null,"Fund Volatility - 5. NAR - 0-10%",{"$f":"'Schedule VIIIA'!L65","v":0},null,null,null,null,null,null,null,{"$f":"'Schedule VIIIA (EBS)'!L65","v":0}]
["Sch VIIIA","LT Internal Model",null,"Fund Volatility - 5. NAR - 10-20%",{"$f":"'Schedule VIIIA'!L66","v":0},null,null,null,null,null,null,null,{"$f":"'Schedule VIIIA (EBS)'!L66","v":0}]
["Sch VIIIA","LT Internal Model",null,"Fund Volatility - 5. NAR - +20%",{"$f":"'Schedule VIIIA'!L67","v":0},null,null,null,null,null,null,null,{"$f":"'Schedule VIIIA (EBS)'!L67","v":0}]
["Sch VIIIA","LT Internal Model",null,"Fund Volatility - 5. NAR - Total",{"$f":"'Schedule VIIIA'!L68","v":0},null,null,null,null,null,null,null,{"$f":"'Schedule VIIIA (EBS)'!L68","v":0}]
["Sch VIIIA","LT Internal Model",null,"Yr to Next Maturity - 1. Reserve - 0",{"$f":"'Schedule VIIIA'!D74","v":0},null,null,null,null,null,null,null,{"$f":"'Schedule VIIIA (EBS)'!D74","v":0}]
["Sch VIIIA","LT Internal Model",null,"Yr to Next Maturity - 1. Reserve - 1",{"$f":"'Schedule VIIIA'!D75","v":0},null,null,null,null,null,null,null,{"$f":"'Schedule VIIIA (EBS)'!D75","v":0}]
["Sch VIIIA","LT Internal Model",null,"Yr to Next Maturity - 1. Reserve - 2",{"$f":"'Schedule VIIIA'!D76","v":0},null,null,null,null,null,null,null,{"$f":"'Schedule VIIIA (EBS)'!D76","v":0}]
["Sch VIIIA","LT Internal Model",null,"Yr to Next Maturity - 1. Reserve - 3",{"$f":"'Schedule VIIIA'!D77","v":0},null,null,null,null,null,null,null,{"$f":"'Schedule VIIIA (EBS)'!D77","v":0}]
["Sch VIIIA","LT Internal Model",null,"Yr to Next Maturity - 1. Reserve - 4",{"$f":"'Schedule VIIIA'!D78","v":0},null,null,null,null,null,null,null,{"$f":"'Schedule VIIIA (EBS)'!D78","v":0}]
["Sch VIIIA","LT Internal Model",null,"Yr to Next Maturity - 1. Reserve - 5",{"$f":"'Schedule VIIIA'!D79","v":0},null,null,null,null,null,null,null,{"$f":"'Schedule VIIIA (EBS)'!D79","v":0}]
["Sch VIIIA","LT Internal Model",null,"Yr to Next Maturity - 1. Reserve - 6",{"$f":"'Schedule VIIIA'!D80","v":0},null,null,null,null,null,null,null,{"$f":"'Schedule VIIIA (EBS)'!D80","v":0}]
["Sch VIIIA","LT Internal Model",null,"Yr to Next Maturity - 1. Reserve - 7",{"$f":"'Schedule VIIIA'!D81","v":0},null,null,null,null,null,null,null,{"$f":"'Schedule VIIIA (EBS)'!D81","v":0}]
["Sch VIIIA","LT Internal Model",null,"Yr to Next Maturity - 1. Reserve - 8",{"$f":"'Schedule VIIIA'!D82","v":0},null,null,null,null,null,null,null,{"$f":"'Schedule VIIIA (EBS)'!D82","v":0}]
["Sch VIIIA","LT Internal Model",null,"Yr to Next Maturity - 1. Reserve - 9",{"$f":"'Schedule VIIIA'!D83","v":0},null,null,null,null,null,null,null,{"$f":"'Schedule VIIIA (EBS)'!D83","v":0}]
["Sch VIIIA","LT Internal Model",null,"Yr to Next Maturity - 1. Reserve - 10",{"$f":"'Schedule VIIIA'!D84","v":0},null,null,null,null,null,null,null,{"$f":"'Schedule VIIIA (EBS)'!D84","v":0}]
["Sch VIIIA","LT Internal Model",null,"Yr to Next Maturity - 1. Reserve - Total",{"$f":"'Schedule VIIIA'!D85","v":0},null,null,null,null,null,null,null,{"$f":"'Schedule VIIIA (EBS)'!D85","v":0}]
["Sch VIIIA","LT Internal Model",null,"Yr to Next Maturity - 2. Policy Count - 0",{"$f":"'Schedule VIIIA'!F74","v":0},null,null,null,null,null,null,null,{"$f":"'Schedule VIIIA (EBS)'!F74","v":0}]
["Sch VIIIA","LT Internal Model",null,"Yr to Next Maturity - 2. Policy Count - 1",{"$f":"'Schedule VIIIA'!F75","v":0},null,null,null,null,null,null,null,{"$f":"'Schedule VIIIA (EBS)'!F75","v":0}]
["Sch VIIIA","LT Internal Model",null,"Yr to Next Maturity - 2. Policy Count - 2",{"$f":"'Schedule VIIIA'!F76","v":0},null,null,null,null,null,null,null,{"$f":"'Schedule VIIIA (EBS)'!F76","v":0}]
["Sch VIIIA","LT Internal Model",null,"Yr to Next Maturity - 2. Policy Count - 3",{"$f":"'Schedule VIIIA'!F77","v":0},null,null,null,null,null,null,null,{"$f":"'Schedule VIIIA (EBS)'!F77","v":0}]
["Sch VIIIA","LT Internal Model",null,"Yr to Next Maturity - 2. Policy Count - 4",{"$f":"'Schedule VIIIA'!F78","v":0},null,null,null,null,null,null,null,{"$f":"'Schedule VIIIA (EBS)'!F78","v":0}]
["Sch VIIIA","LT Internal Model",null,"Yr to Next Maturity - 2. Policy Count - 5",{"$f":"'Schedule VIIIA'!F79","v":0},null,null,null,null,null,null,null,{"$f":"'Schedule VIIIA (EBS)'!F79","v":0}]
["Sch VIIIA","LT Internal Model",null,"Yr to Next Maturity - 2. Policy Count - 6",{"$f":"'Schedule VIIIA'!F80","v":0},null,null,null,null,null,null,null,{"$f":"'Schedule VIIIA (EBS)'!F80","v":0}]
["Sch VIIIA","LT Internal Model",null,"Yr to Next Maturity - 2. Policy Count - 7",{"$f":"'Schedule VIIIA'!F81","v":0},null,null,null,null,null,null,null,{"$f":"'Schedule VIIIA (EBS)'!F81","v":0}]
["Sch VIIIA","LT Internal Model",null,"Yr to Next Maturity - 2. Policy Count - 8",{"$f":"'Schedule VIIIA'!F82","v":0},null,null,null,null,null,null,null,{"$f":"'Schedule VIIIA (EBS)'!F82","v":0}]
["Sch VIIIA","LT Internal Model",null,"Yr to Next Maturity - 2. Policy Count - 9",{"$f":"'Schedule VIIIA'!F83","v":0},null,null,null,null,null,null,null,{"$f":"'Schedule VIIIA (EBS)'!F83","v":0}]
["Sch VIIIA","LT Internal Model",null,"Yr to Next Maturity - 2. Policy Count - 10",{"$f":"'Schedule VIIIA'!F84","v":0},null,null,null,null,null,null,null,{"$f":"'Schedule VIIIA (EBS)'!F84","v":0}]
["Sch VIIIA","LT Internal Model",null,"Yr to Next Maturity - 2. Policy Count - Total",{"$f":"'Schedule VIIIA'!F85","v":0},null,null,null,null,null,null,null,{"$f":"'Schedule VIIIA (EBS)'!F85","v":0}]
["Sch VIIIA","LT Internal Model",null,"Yr to Next Maturity - 3. Acc. Val. - 0",{"$f":"'Schedule VIIIA'!H74","v":0},null,null,null,null,null,null,null,{"$f":"'Schedule VIIIA (EBS)'!H74","v":0}]
["Sch VIIIA","LT Internal Model",null,"Yr to Next Maturity - 3. Acc. Val. - 1",{"$f":"'Schedule VIIIA'!H75","v":0},null,null,null,null,null,null,null,{"$f":"'Schedule VIIIA (EBS)'!H75","v":0}]
["Sch VIIIA","LT Internal Model",null,"Yr to Next Maturity - 3. Acc. Val. - 2",{"$f":"'Schedule VIIIA'!H76","v":0},null,null,null,null,null,null,null,{"$f":"'Schedule VIIIA (EBS)'!H76","v":0}]
["Sch VIIIA","LT Internal Model",null,"Yr to Next Maturity - 3. Acc. Val. - 3",{"$f":"'Schedule VIIIA'!H77","v":0},null,null,null,null,null,null,null,{"$f":"'Schedule VIIIA (EBS)'!H77","v":0}]
["Sch VIIIA","LT Internal Model",null,"Yr to Next Maturity - 3. Acc. Val. - 4",{"$f":"'Schedule VIIIA'!H78","v":0},null,null,null,null,null,null,null,{"$f":"'Schedule VIIIA (EBS)'!H78","v":0}]
["Sch VIIIA","LT Internal Model",null,"Yr to Next Maturity - 3. Acc. Val. - 5",{"$f":"'Schedule VIIIA'!H79","v":0},null,null,null,null,null,null,null,{"$f":"'Schedule VIIIA (EBS)'!H79","v":0}]
["Sch VIIIA","LT Internal Model",null,"Yr to Next Maturity - 3. Acc. Val. - 6",{"$f":"'Schedule VIIIA'!H80","v":0},null,null,null,null,null,null,null,{"$f":"'Schedule VIIIA (EBS)'!H80","v":0}]
["Sch VIIIA","LT Internal Model",null,"Yr to Next Maturity - 3. Acc. Val. - 7",{"$f":"'Schedule VIIIA'!H81","v":0},null,null,null,null,null,null,null,{"$f":"'Schedule VIIIA (EBS)'!H81","v":0}]
["Sch VIIIA","LT Internal Model",null,"Yr to Next Maturity - 3. Acc. Val. - 8",{"$f":"'Schedule VIIIA'!H82","v":0},null,null,null,null,null,null,null,{"$f":"'Schedule VIIIA (EBS)'!H82","v":0}]
["Sch VIIIA","LT Internal Model",null,"Yr to Next Maturity - 3. Acc. Val. - 9",{"$f":"'Schedule VIIIA'!H83","v":0},null,null,null,null,null,null,null,{"$f":"'Schedule VIIIA (EBS)'!H83","v":0}]
["Sch VIIIA","LT Internal Model",null,"Yr to Next Maturity - 3. Acc. Val. - 10",{"$f":"'Schedule VIIIA'!H84","v":0},null,null,null,null,null,null,null,{"$f":"'Schedule VIIIA (EBS)'!H84","v":0}]
["Sch VIIIA","LT Internal Model",null,"Yr to Next Maturity - 3. Acc. Val. - Total",{"$f":"'Schedule VIIIA'!H85","v":0},null,null,null,null,null,null,null,{"$f":"'Schedule VIIIA (EBS)'!H85","v":0}]
["Sch VIIIA","LT Internal Model",null,"Yr to Next Maturity - 4. Guar. Val. - 0",{"$f":"'Schedule VIIIA'!J74","v":0},null,null,null,null,null,null,null,{"$f":"'Schedule VIIIA (EBS)'!J74","v":0}]
["Sch VIIIA","LT Internal Model",null,"Yr to Next Maturity - 4. Guar. Val. - 1",{"$f":"'Schedule VIIIA'!J75","v":0},null,null,null,null,null,null,null,{"$f":"'Schedule VIIIA (EBS)'!J75","v":0}]
["Sch VIIIA","LT Internal Model",null,"Yr to Next Maturity - 4. Guar. Val. - 2",{"$f":"'Schedule VIIIA'!J76","v":0},null,null,null,null,null,null,null,{"$f":"'Schedule VIIIA (EBS)'!J76","v":0}]
["Sch VIIIA","LT Internal Model",null,"Yr to Next Maturity - 4. Guar. Val. - 3",{"$f":"'Schedule VIIIA'!J77","v":0},null,null,null,null,null,null,null,{"$f":"'Schedule VIIIA (EBS)'!J77","v":0}]
["Sch VIIIA","LT Internal Model",null,"Yr to Next Maturity - 4. Guar. Val. - 4",{"$f":"'Schedule VIIIA'!J78","v":0},null,null,null,null,null,null,null,{"$f":"'Schedule VIIIA (EBS)'!J78","v":0}]
["Sch VIIIA","LT Internal Model",null,"Yr to Next Maturity - 4. Guar. Val. - 5",{"$f":"'Schedule VIIIA'!J79","v":0},null,null,null,null,null,null,null,{"$f":"'Schedule VIIIA (EBS)'!J79","v":0}]
["Sch VIIIA","LT Internal Model",null,"Yr to Next Maturity - 4. Guar. Val. - 6",{"$f":"'Schedule VIIIA'!J80","v":0},null,null,null,null,null,null,null,{"$f":"'Schedule VIIIA (EBS)'!J80","v":0}]
["Sch VIIIA","LT Internal Model",null,"Yr to Next Maturity - 4. Guar. Val. - 7",{"$f":"'Schedule VIIIA'!J81","v":0},null,null,null,null,null,null,null,{"$f":"'Schedule VIIIA (EBS)'!J81","v":0}]
["Sch VIIIA","LT Internal Model",null,"Yr to Next Maturity - 4. Guar. Val. - 8",{"$f":"'Schedule VIIIA'!J82","v":0},null,null,null,null,null,null,null,{"$f":"'Schedule VIIIA (EBS)'!J82","v":0}]
["Sch VIIIA","LT Internal Model",null,"Yr to Next Maturity - 4. Guar. Val. - 9",{"$f":"'Schedule VIIIA'!J83","v":0},null,null,null,null,null,null,null,{"$f":"'Schedule VIIIA (EBS)'!J83","v":0}]
["Sch VIIIA","LT Internal Model",null,"Yr to Next Maturity - 4. Guar. Val. - 10",{"$f":"'Schedule VIIIA'!J84","v":0},null,null,null,null,null,null,null,{"$f":"'Schedule VIIIA (EBS)'!J84","v":0}]
["Sch VIIIA","LT Internal Model",null,"Yr to Next Maturity - 4. Guar. Val. - Total",{"$f":"'Schedule VIIIA'!J85","v":0},null,null,null,null,null,null,null,{"$f":"'Schedule VIIIA (EBS)'!J85","v":0}]
["Sch VIIIA","LT Internal Model",null,"Yr to Next Maturity - 5. NAR - 0",{"$f":"'Schedule VIIIA'!L74","v":0},null,null,null,null,null,null,null,{"$f":"'Schedule VIIIA (EBS)'!L74","v":0}]
["Sch VIIIA","LT Internal Model",null,"Yr to Next Maturity - 5. NAR - 1",{"$f":"'Schedule VIIIA'!L75","v":0},null,null,null,null,null,null,null,{"$f":"'Schedule VIIIA (EBS)'!L75","v":0}]
["Sch VIIIA","LT Internal Model",null,"Yr to Next Maturity - 5. NAR - 2",{"$f":"'Schedule VIIIA'!L76","v":0},null,null,null,null,null,null,null,{"$f":"'Schedule VIIIA (EBS)'!L76","v":0}]
["Sch VIIIA","LT Internal Model",null,"Yr to Next Maturity - 5. NAR - 3",{"$f":"'Schedule VIIIA'!L77","v":0},null,null,null,null,null,null,null,{"$f":"'Schedule VIIIA (EBS)'!L77","v":0}]
["Sch VIIIA","LT Internal Model",null,"Yr to Next Maturity - 5. NAR - 4",{"$f":"'Schedule VIIIA'!L78","v":0},null,null,null,null,null,null,null,{"$f":"'Schedule VIIIA (EBS)'!L78","v":0}]
["Sch VIIIA","LT Internal Model",null,"Yr to Next Maturity - 5. NAR - 5",{"$f":"'Schedule VIIIA'!L79","v":0},null,null,null,null,null,null,null,{"$f":"'Schedule VIIIA (EBS)'!L79","v":0}]
["Sch VIIIA","LT Internal Model",null,"Yr to Next Maturity - 5. NAR - 6",{"$f":"'Schedule VIIIA'!L80","v":0},null,null,null,null,null,null,null,{"$f":"'Schedule VIIIA (EBS)'!L80","v":0}]
["Sch VIIIA","LT Internal Model",null,"Yr to Next Maturity - 5. NAR - 7",{"$f":"'Schedule VIIIA'!L81","v":0},null,null,null,null,null,null,null,{"$f":"'Schedule VIIIA (EBS)'!L81","v":0}]
["Sch VIIIA","LT Internal Model",null,"Yr to Next Maturity - 5. NAR - 8",{"$f":"'Schedule VIIIA'!L82","v":0},null,null,null,null,null,null,null,{"$f":"'Schedule VIIIA (EBS)'!L82","v":0}]
["Sch VIIIA","LT Internal Model",null,"Yr to Next Maturity - 5. NAR - 9",{"$f":"'Schedule VIIIA'!L83","v":0},null,null,null,null,null,null,null,{"$f":"'Schedule VIIIA (EBS)'!L83","v":0}]
["Sch VIIIA","LT Internal Model",null,"Yr to Next Maturity - 5. NAR - 10",{"$f":"'Schedule VIIIA'!L84","v":0},null,null,null,null,null,null,null,{"$f":"'Schedule VIIIA (EBS)'!L84","v":0}]
["Sch VIIIA","LT Internal Model",null,"Yr to Next Maturity - 5. NAR - Total",{"$f":"'Schedule VIIIA'!L85","v":0},null,null,null,null,null,null,null,{"$f":"'Schedule VIIIA (EBS)'!L85","v":0}]
[]
["Sch IX(a)","CISSA Capital Summary",null,{"$f":"IF('Insurer Information'!$F$9=\"Class C\",\"Insurance Risk\",\"Mortality Risk\")","v":"Mortality Risk"},null,null,null,null,null,null,null,null,{"$f":"'Schedule IX(a)'!E10","v":0}]
["Sch IX(a)","CISSA Capital Summary",null,"Longevity Risk (Class D & E insurers only)",null,null,null,null,null,null,null,null,{"$f":"'Schedule IX(a)'!E11","v":0}]
["Sch IX(a)","CISSA Capital Summary",null,"Morbidity Risk (Class D & E insurers only)",null,null,null,null,null,null,null,null,{"$f":"'Schedule IX(a)'!E12","v":0}]
["Sch IX(a)","CISSA Capital Summary",null,"Variable Annuity Risk (Class D & E insurers only)",null,null,null,null,null,null,null,null,{"$f":"'Schedule IX(a)'!E13","v":0}]
["Sch IX(a)","CISSA Capital Summary",null,"Other Risk (Class D & E insurers only)",null,null,null,null,null,null,null,null,{"$f":"'Schedule IX(a)'!E14","v":0}]
["Sch IX(a)","CISSA Capital Summary",null,"Stop Loss Risk (Class D & E insurers only)",null,null,null,null,null,null,null,null,{"$f":"'Schedule IX(a)'!E15","v":0}]
["Sch IX(a)","CISSA Capital Summary",null,"Rider Risk (Class D & E insurers only)",null,null,null,null,null,null,null,null,{"$f":"'Schedule IX(a)'!E16","v":0}]
["Sch IX(a)","CISSA Capital Summary",null,"Market Risk",null,null,null,null,null,null,null,null,{"$f":"'Schedule IX(a)'!E17","v":0}]
["Sch IX(a)","CISSA Capital Summary",null,"Credit Risk",null,null,null,null,null,null,null,null,{"$f":"'Schedule IX(a)'!E18","v":0}]
["Sch IX(a)","CISSA Capital Summary",null,"Interest Rate & Liquidity Risk",null,null,null,null,null,null,null,null,{"$f":"'Schedule IX(a)'!E19","v":0}]
["Sch IX(a)","CISSA Capital Summary",null,"Group, Concentration, & Strategic Risk",null,null,null,null,null,null,null,null,{"$f":"'Schedule IX(a)'!E20","v":0}]
["Sch IX(a)","CISSA Capital Summary",null,"Other Risk",null,null,null,null,null,null,null,null,{"$f":"'Schedule IX(a)'!E21","v":0}]
["Sch IX(a)","CISSA Capital Summary",null,"Capital Pre-Diversification",null,null,null,null,null,null,null,null,{"$f":"'Schedule IX(a)'!E23","v":0}]
["Sch IX(a)","CISSA Capital Summary",null,"Diversification Credit",null,null,null,null,null,null,null,null,{"$f":"'Schedule IX(a)'!E25","v":0}]
["Sch IX(a)","CISSA Capital Summary",null,"Capital after Diversification",null,null,null,null,null,null,null,null,{"$f":"'Schedule IX(a)'!E27","v":0}]
["Sch IX(a)","CISSA Capital Summary",null,"Operational Risk",null,null,null,null,null,null,null,null,{"$f":"'Schedule IX(a)'!E29","v":0}]
["Sch IX(a)","CISSA Capital Summary",null,"Total Internal Capital Risk",null,null,null,null,null,null,null,null,{"$f":"'Schedule IX(a)'!E31","v":0}]
["Sch IX(a)","CISSA Capital Summary",null,"1. Reason for CISSA - Rating Agency",{"$f":"IF('Schedule IX(a)'!B44=0,\"No\",'Schedule IX(a)'!B44)","v":"Select Yes/No"}]
["Sch IX(a)","CISSA Capital Summary",null,"1. Reason for CISSA - Market Share",{"$f":"IF('Schedule IX(a)'!B45=0,\"No\",'Schedule IX(a)'!B45)","v":"Select Yes/No"}]
["Sch IX(a)","CISSA Capital Summary",null,"1. Reason for CISSA - Business Expansion",{"$f":"IF('Schedule IX(a)'!B46=0,\"No\",'Schedule IX(a)'!B46)","v":"Select Yes/No"}]
["Sch IX(a)","CISSA Capital Summary",null,"1. Reason for CISSA - Nature of Product",{"$f":"IF('Schedule IX(a)'!B47=0,\"No\",'Schedule IX(a)'!B47)","v":"Select Yes/No"}]
["Sch IX(a)","CISSA Capital Summary",null,"1. Reason for CISSA - Downgrade of Risk",{"$f":"IF('Schedule IX(a)'!B48=0,\"No\",'Schedule IX(a)'!B48)","v":"Select Yes/No"}]
["Sch IX(a)","CISSA Capital Summary",null,"1. Reason for CISSA - Reg. Capital Req.",{"$f":"IF('Schedule IX(a)'!B49=0,\"No\",'Schedule IX(a)'!B49)","v":"Select Yes/No"}]
["Sch IX(a)","CISSA Capital Summary",null,"1. Reason for CISSA - Others",{"$f":"IF('Schedule IX(a)'!B50=0,\"No\",'Schedule IX(a)'!B50)","v":"Select Yes/No"}]
["Sch IX(a)","CISSA Capital Summary",null,"2. Agg. Risk Categories - Correlation Matrix",{"$f":"IF('Schedule IX(a)'!B54=0,\"No\",'Schedule IX(a)'!B54)","v":"Select Yes/No"}]
["Sch IX(a)","CISSA Capital Summary",null,"2. Agg. Risk Categories - Linear Correlation",{"$f":"IF('Schedule IX(a)'!B55=0,\"No\",'Schedule IX(a)'!B55)","v":"Select Yes/No"}]
["Sch IX(a)","CISSA Capital Summary",null,"2. Agg. Risk Categories - T-Copulas",{"$f":"IF('Schedule IX(a)'!B56=0,\"No\",'Schedule IX(a)'!B56)","v":"Select Yes/No"}]
["Sch IX(a)","CISSA Capital Summary",null,"2. Agg. Risk Categories - Gumbel Copulas",{"$f":"IF('Schedule IX(a)'!B57=0,\"No\",'Schedule IX(a)'!B57)","v":"Select Yes/No"}]
["Sch IX(a)","CISSA Capital Summary",null,"2. Agg. Risk Categories - Clayton Copulas",{"$f":"IF('Schedule IX(a)'!B58=0,\"No\",'Schedule IX(a)'!B58)","v":"Select Yes/No"}]
["Sch IX(a)","CISSA Capital Summary",null,"2. Agg. Risk Categories - Causal Driver",{"$f":"IF('Schedule IX(a)'!B59=0,\"No\",'Schedule IX(a)'!B59)","v":"Select Yes/No"}]
["Sch IX(a)","CISSA Capital Summary",null,"2. Agg. Risk Categories - Other",{"$f":"IF('Schedule IX(a)'!B60=0,\"No\",'Schedule IX(a)'!B60)","v":"Select Yes/No"}]
["Sch IX(a)","CISSA Capital Summary",null,"3. Contingency Plan - Parental Guarantees",{"$f":"IF('Schedule IX(a)'!B64=0,\"No\",'Schedule IX(a)'!B64)","v":"Select Yes/No"}]
["Sch IX(a)","CISSA Capital Summary",null,"3. Contingency Plan - Letters of Credit",{"$f":"IF('Schedule IX(a)'!B65=0,\"No\",'Schedule IX(a)'!B65)","v":"Select Yes/No"}]
["Sch IX(a)","CISSA Capital Summary",null,"3. Contingency Plan - Subordinated Debt",{"$f":"IF('Schedule IX(a)'!B66=0,\"No\",'Schedule IX(a)'!B66)","v":"Select Yes/No"}]
["Sch IX(a)","CISSA Capital Summary",null,"3. Contingency Plan - Preferred Shares",{"$f":"IF('Schedule IX(a)'!B67=0,\"No\",'Schedule IX(a)'!B67)","v":"Select Yes/No"}]
["Sch IX(a)","CISSA Capital Summary",null,"3. Contingency Plan - Float Add. Shares",{"$f":"IF('Schedule IX(a)'!B68=0,\"No\",'Schedule IX(a)'!B68)","v":"Select Yes/No"}]
["Sch IX(a)","CISSA Capital Summary",null,"3. Contingency Plan - Parent Capital Injection",{"$f":"IF('Schedule IX(a)'!B69=0,\"No\",'Schedule IX(a)'!B69)","v":"Select Yes/No"}]
["Sch IX(a)","CISSA Capital Summary",null,"3. Contingency Plan - Surplus Notes",{"$f":"IF('Schedule IX(a)'!B70=0,\"No\",'Schedule IX(a)'!B70)","v":"Select Yes/No"}]
["Sch IX(a)","CISSA Capital Summary",null,"3. Contingency Plan - Cat. Derivatives",{"$f":"IF('Schedule IX(a)'!B71=0,\"No\",'Schedule IX(a)'!B71)","v":"Select Yes/No"}]
["Sch IX(a)","CISSA Capital Summary",null,"3. Contingency Plan - Other",{"$f":"IF('Schedule IX(a)'!B72=0,\"No\",'Schedule IX(a)'!B72)","v":"Select Yes/No"}]
["Sch IX(a)","CISSA Capital Summary",null,"4. Insurer supports Others in Stressed Situation",{"$f":"IF('Schedule IX(a)'!G74=0,\"No\",'Schedule IX(a)'!G74)","v":"Select Yes/No"}]
["Sch IX(a)","CISSA Capital Summary",null,"4. Insurer supports Others - Description",{"$f":"'Schedule IX(a)'!B77","v":0}]
["Sch IX(a)","CISSA Capital Summary",null,"5. Insurer Issues Downstream Debt ",{"$f":"IF('Schedule IX(a)'!G79=0,\"No\",'Schedule IX(a)'!G79)","v":"Select Yes/No"}]
["Sch IX(a)","CISSA Capital Summary",null,"5. Insurer Issues Downstream Debt - Descrip.",{"$f":"'Schedule IX(a)'!B81","v":0}]
["Sch IX(a)","CISSA Capital Summary",null,"6. Insurer Receives Downstream Debt ",{"$f":"IF('Schedule IX(a)'!G83=0,\"No\",'Schedule IX(a)'!G83)","v":"Select Yes/No"}]
["Sch IX(a)","CISSA Capital Summary",null,"6. Insurer Receives Downstream Debt - Descrip.",{"$f":"'Schedule IX(a)'!B85","v":0}]
["Sch IX(a)","CISSA Capital Summary",null,"7. Insurer has Assets Restrict. and Not Trans.",{"$f":"IF('Schedule IX(a)'!G87=0,\"No\",'Schedule IX(a)'!G87)","v":"Select Yes/No"}]
["Sch IX(a)","CISSA Capital Summary",null,"7. Restricted Assets",{"$f":"'Schedule IX(a)'!G90","v":0}]
["Sch IX(a)","CISSA Capital Summary",null,"7. Reg. Capital Req. for Assets",{"$f":"'Schedule IX(a)'!G91","v":0}]
["Sch IX(a)","CISSA Capital Summary",null,"7. Restricted Assets in Excess of Cap. Req.",{"$f":"'Schedule IX(a)'!G93","v":0}]
[]
["Sch IX(b)","CISSA General Questions",null,"1. CISSA Integrated in Risk Mgmt. Process",{"$f":"IF('Schedule IX(b)'!F7=0,\"No\",'Schedule IX(b)'!F7)","v":"Select Yes/No"}]
["Sch IX(b)","CISSA General Questions",null,"1. CISSA Used For - Strategic Planning",{"$f":"IF('Schedule IX(b)'!F11=0,\"No\",'Schedule IX(b)'!F11)","v":"Select Yes/No"}]
["Sch IX(b)","CISSA General Questions",null,"1. CISSA Used For - Annual Bus. Planning",{"$f":"IF('Schedule IX(b)'!F12=0,\"No\",'Schedule IX(b)'!F12)","v":"Select Yes/No"}]
["Sch IX(b)","CISSA General Questions",null,"1. CISSA Used For - Setting Risk Limits",{"$f":"IF('Schedule IX(b)'!F13=0,\"No\",'Schedule IX(b)'!F13)","v":"Select Yes/No"}]
["Sch IX(b)","CISSA General Questions",null,"1. CISSA Used For - Setting Risk Appetite",{"$f":"IF('Schedule IX(b)'!F14=0,\"No\",'Schedule IX(b)'!F14)","v":"Select Yes/No"}]
["Sch IX(b)","CISSA General Questions",null,"1. CISSA Used For - Capital Adequacy",{"$f":"IF('Schedule IX(b)'!F15=0,\"No\",'Schedule IX(b)'!F15)","v":"Select Yes/No"}]
["Sch IX(b)","CISSA General Questions",null,"1. CISSA Used For - Alloc. Bus. Seg. & LOB",{"$f":"IF('Schedule IX(b)'!F16=0,\"No\",'Schedule IX(b)'!F16)","v":"Select Yes/No"}]
["Sch IX(b)","CISSA General Questions",null,"1. CISSA Used For - Capital Management",{"$f":"IF('Schedule IX(b)'!F17=0,\"No\",'Schedule IX(b)'!F17)","v":"Select Yes/No"}]
["Sch IX(b)","CISSA General Questions",null,"1. CISSA Used For - Pricing & U/W Guidelines",{"$f":"IF('Schedule IX(b)'!F18=0,\"No\",'Schedule IX(b)'!F18)","v":"Select Yes/No"}]
["Sch IX(b)","CISSA General Questions",null,"1. CISSA Used For - R/I Purchase",{"$f":"IF('Schedule IX(b)'!F19=0,\"No\",'Schedule IX(b)'!F19)","v":"Select Yes/No"}]
["Sch IX(b)","CISSA General Questions",null,"1. CISSA Used For - Investment Strategies",{"$f":"IF('Schedule IX(b)'!F20=0,\"No\",'Schedule IX(b)'!F20)","v":"Select Yes/No"}]
["Sch IX(b)","CISSA General Questions",null,"1. CISSA Used For - Reg. Requirements",{"$f":"IF('Schedule IX(b)'!F21=0,\"No\",'Schedule IX(b)'!F21)","v":"Select Yes/No"}]
["Sch IX(b)","CISSA General Questions",null,"1. CISSA Used For - Credit Rating",{"$f":"IF('Schedule IX(b)'!F22=0,\"No\",'Schedule IX(b)'!F22)","v":"Select Yes/No"}]
["Sch IX(b)","CISSA General Questions",null,"1. CISSA Used For - Investor Relations",{"$f":"IF('Schedule IX(b)'!F23=0,\"No\",'Schedule IX(b)'!F23)","v":"Select Yes/No"}]
["Sch IX(b)","CISSA General Questions",null,"1. CISSA Used For - Product Profitability",{"$f":"IF('Schedule IX(b)'!F24=0,\"No\",'Schedule IX(b)'!F24)","v":"Select Yes/No"}]
["Sch IX(b)","CISSA General Questions",null,"1. CISSA Used For - Performance Assessment",{"$f":"IF('Schedule IX(b)'!F25=0,\"No\",'Schedule IX(b)'!F25)","v":"Select Yes/No"}]
["Sch IX(b)","CISSA General Questions",null,"1. CISSA Used For - Mergers & Acquisitions",{"$f":"IF('Schedule IX(b)'!F26=0,\"No\",'Schedule IX(b)'!F26)","v":"Select Yes/No"}]
["Sch IX(b)","CISSA General Questions",null,"1. CISSA Used For - Others",{"$f":"IF('Schedule IX(b)'!F27=0,\"No\",'Schedule IX(b)'!F27)","v":"Select Yes/No"}]
["Sch IX(b)","CISSA General Questions",null,"1. CISSA Used For - Others - Description",{"$f":"'Schedule IX(b)'!C27","v":0}]
["Sch IX(b)","CISSA General Questions",null,"2. Insurer has applied reserve stress testing",{"$f":"IF('Schedule IX(b)'!F29=0,\"No\",'Schedule IX(b)'!F29)","v":"Select Yes/No"}]
["Sch IX(b)","CISSA General Questions",null,"3. CISSA process clearly documented",{"$f":"IF('Schedule IX(b)'!F31=0,\"No\",'Schedule IX(b)'!F31)","v":"Select Yes/No"}]
["Sch IX(b)","CISSA General Questions",null,"4. BOD & Senior Officers Review CISSA",{"$f":"'Schedule IX(b)'!F33","v":"Select"}]
["Sch IX(b)","CISSA General Questions",null,"5. BOD & Senior Officers Review oversight",{"$f":"IF('Schedule IX(b)'!F35=0,\"No\",'Schedule IX(b)'!F35)","v":"Select Yes/No"}]
["Sch IX(b)","CISSA General Questions",null,"CISSA Comments",{"$f":"'Schedule IX(b)'!B38","v":0}]
[]
["Sch IX(c)","CISSA Assessment of Material Risks",null,"12a. Governance - BOD approval",{"$f":"IF('Schedule IX(c)'!E67=0,\"No\",'Schedule IX(c)'!E67)","v":"Select Yes/No"}]
["Sch IX(c)","CISSA Assessment of Material Risks",null,"12b. Governance - BOD review frequency",{"$f":"'Schedule IX(c)'!E68","v":"Select"}]
["Sch IX(c)","CISSA Assessment of Material Risks",null,"12c. Governance - BOD review frequency",{"$f":"IF('Schedule IX(c)'!E69=0,\"No\",'Schedule IX(c)'!E69)","v":"Select Yes/No"}]
["Sch IX(c)","CISSA Assessment of Material Risks",null,"12d. Validation - Regular Review",{"$f":"IF('Schedule IX(c)'!E71=0,\"No\",'Schedule IX(c)'!E71)","v":"Select Yes/No"}]
["Sch IX(c)","CISSA Assessment of Material Risks",null,"12e. Validation - Performed",{"$f":"'Schedule IX(c)'!E72","v":"Select"}]
["Sch IX(c)","CISSA Assessment of Material Risks",null,"12f. Validation - Check",{"$f":"IF('Schedule IX(c)'!E73=0,\"No\",'Schedule IX(c)'!E73)","v":"Select Yes/No"}]
["Sch IX(c)","CISSA Assessment of Material Risks",null,"12g. Document - Formal Structure",{"$f":"IF('Schedule IX(c)'!E75=0,\"No\",'Schedule IX(c)'!E75)","v":"Select Yes/No"}]
["Sch IX(c)","CISSA Assessment of Material Risks",null,"12h. Document - How Thorough",{"$f":"'Schedule IX(c)'!E76","v":"Select"}]
["Sch IX(c)","CISSA Assessment of Material Risks",null,"12i. Document - BOD Review Frequency",{"$f":"'Schedule IX(c)'!E77","v":"Select"}]
["Sch IX(c)","CISSA Assessment of Material Risks",null,"12j. Internal Controls - Rate of Controls",{"$f":"'Schedule IX(c)'!E79","v":"Select"}]
["Sch IX(c)","CISSA Assessment of Material Risks",null,"12j. Internal Controls - Strict Protocols",{"$f":"IF('Schedule IX(c)'!E80=0,\"No\",'Schedule IX(c)'!E80)","v":"Select Yes/No"}]
["Sch IX(c)","CISSA Assessment of Material Risks",null,"12a. Gov. Comment - BOD approval",{"$f":"'Schedule IX(c)'!F67","v":0}]
["Sch IX(c)","CISSA Assessment of Material Risks",null,"12b. Gov. Comment - BOD review frequency",{"$f":"'Schedule IX(c)'!F68","v":0}]
["Sch IX(c)","CISSA Assessment of Material Risks",null,"12c. Gov. Comment - BOD review frequency",{"$f":"'Schedule IX(c)'!F69","v":0}]
["Sch IX(c)","CISSA Assessment of Material Risks",null,"12d. Validation - Regular Review",{"$f":"'Schedule IX(c)'!F71","v":0}]
["Sch IX(c)","CISSA Assessment of Material Risks",null,"12e. Validation - Performed",{"$f":"'Schedule IX(c)'!F72","v":0}]
["Sch IX(c)","CISSA Assessment of Material Risks",null,"12f. Validation - Check",{"$f":"'Schedule IX(c)'!F73","v":0}]
["Sch IX(c)","CISSA Assessment of Material Risks",null,"12g. Doc. Comment - Formal Structure",{"$f":"'Schedule IX(c)'!F75","v":0}]
["Sch IX(c)","CISSA Assessment of Material Risks",null,"12h. Doc. Comment - How Thorough",{"$f":"'Schedule IX(c)'!F76","v":0}]
["Sch IX(c)","CISSA Assessment of Material Risks",null,"12i. Doc. Comment - BOD Review Frequency",{"$f":"'Schedule IX(c)'!F77","v":0}]
["Sch IX(c)","CISSA Assessment of Material Risks",null,"12j. Int. Cont. Comment - Rate of Controls",{"$f":"'Schedule IX(c)'!F79","v":0}]
["Sch IX(c)","CISSA Assessment of Material Risks",null,"12j. Int. Cont. Comment - Strict Protocols",{"$f":"'Schedule IX(c)'!F80","v":0}]
["Sch IX(c)","CISSA Assessment of Material Risks",null,"12l. Risk Measure - Confidence Interval",{"$f":"'Schedule IX(c)'!E82","v":0}]
[]
["Sch XII(a)","Eligible Capital",null,"Contingent Liabilities for Encumb. Assets",null,null,null,null,null,null,null,null,{"$f":"'Schedule XII(a)'!J8","v":0}]
["Sch XII(a)","Eligible Capital",null,"Tier 1 - 1c. Statutory Economic Surplus",null,null,null,null,null,null,null,null,{"$f":"'Schedule XII(a)'!J14","v":0}]
["Sch XII(a)","Eligible Capital",null,"Tier 1 - 1d. Capital Adjustments",null,null,null,null,null,null,null,null,{"$f":"'Schedule XII(a)'!J15","v":0}]
["Sch XII(a)","Eligible Capital",null,"Tier 1 - 1e. Hybrid Capital - Preferred Shares",null,null,null,null,null,null,null,null,{"$f":"'Schedule XII(a)'!J16","v":0}]
["Sch XII(a)","Eligible Capital",null,"Tier 1 - 1e. Other",null,null,null,null,null,null,null,null,{"$f":"'Schedule XII(a)'!J17","v":0}]
["Sch XII(a)","Eligible Capital",null,"Policyholder Obl. - Pledged Asset - Exceed",null,null,null,null,null,null,null,null,{"$f":"'Schedule XII(a)'!G24","v":0}]
["Sch XII(a)","Eligible Capital",null,"Policyholder Obl. - Pledged Asset - Equal",null,null,null,null,null,null,null,null,{"$f":"'Schedule XII(a)'!G25","v":0}]
["Sch XII(a)","Eligible Capital",null,"Policyholder Obl. - Pledged Asset - Less Than",null,null,null,null,null,null,null,null,{"$f":"'Schedule XII(a)'!G26","v":0}]
["Sch XII(a)","Eligible Capital",null,"Policyholder Obl. - Pledged Asset - Not Collat.",null,null,null,null,null,null,null,null,{"$f":"'Schedule XII(a)'!G27","v":0}]
["Sch XII(a)","Eligible Capital",null,"Policyholder Obl. - Pledged Asset - Total",null,null,null,null,null,null,null,null,{"$f":"'Schedule XII(a)'!G28","v":0}]
["Sch XII(a)","Eligible Capital",null,"Encumb. Assets - Pledged Asset - Exceed",null,null,null,null,null,null,null,null,{"$f":"'Schedule XII(a)'!H24","v":0}]
["Sch XII(a)","Eligible Capital",null,"Encumb. Assets - Pledged Asset - Equal",null,null,null,null,null,null,null,null,{"$f":"'Schedule XII(a)'!H25","v":0}]
["Sch XII(a)","Eligible Capital",null,"Encumb. Assets - Pledged Asset - Less Than",null,null,null,null,null,null,null,null,{"$f":"'Schedule XII(a)'!H26","v":0}]
["Sch XII(a)","Eligible Capital",null,"Encumb. Assets - Pledged Asset - Total",null,null,null,null,null,null,null,null,{"$f":"'Schedule XII(a)'!H28","v":0}]
["Sch XII(a)","Eligible Capital",null,"Capital charge - for excess of Tier 1 (h)(a)(i)",null,null,null,null,null,null,null,null,{"$f":"'Schedule XII(a)'!I39","v":0}]
["Sch XII(a)","Eligible Capital",null,"Capital charge - for excess of Tier 1 (h)(b)(i)",null,null,null,null,null,null,null,null,{"$f":"'Schedule XII(a)'!I40","v":0}]
["Sch XII(a)","Eligible Capital",null,"Tier 1 - 1j. Restricted Assets ",null,null,null,null,null,null,null,null,{"$f":"'Schedule XII(a)'!J53","v":0}]
["Sch XII(a)","Eligible Capital",null,"Tier 1 - Subordinated Debt",null,null,null,null,null,null,null,null,{"$f":"'Schedule XII(a)'!J55","v":0}]
["Sch XII(a)","Eligible Capital",null,"Tier 1 - Total Capital",null,null,null,null,null,null,null,null,{"$f":"'Schedule XII(a)'!J56","v":0}]
["Sch XII(a)","Eligible Capital",null,"Tier 2 Basic - a. Hybrid Capital Instruments",null,null,null,null,null,null,null,null,{"$f":"'Schedule XII(a)'!J59","v":0}]
["Sch XII(a)","Eligible Capital",null,"Tier 2 Basic - b. Other - Details",null,null,null,null,null,null,null,null,{"$f":"'Schedule XII(a)'!D60","v":0}]
["Sch XII(a)","Eligible Capital",null,"Tier 2 Basic - b. Other",null,null,null,null,null,null,null,null,{"$f":"'Schedule XII(a)'!J60","v":0}]
["Sch XII(a)","Eligible Capital",null,"Tier 2 Ancillary - a. Unpaid Common Shares",null,null,null,null,null,null,null,null,{"$f":"'Schedule XII(a)'!J63","v":0}]
["Sch XII(a)","Eligible Capital",null,"Tier 2 Ancillary - b. Unpaid Hybrid Capital",null,null,null,null,null,null,null,null,{"$f":"'Schedule XII(a)'!J64","v":0}]
["Sch XII(a)","Eligible Capital",null,"Tier 2 Ancillary - c. Preference Shares",null,null,null,null,null,null,null,null,{"$f":"'Schedule XII(a)'!J65","v":0}]
["Sch XII(a)","Eligible Capital",null,"Tier 2 Ancillary - d. Subordinated Debt",null,null,null,null,null,null,null,null,{"$f":"'Schedule XII(a)'!J66","v":0}]
["Sch XII(a)","Eligible Capital",null,"Tier 2 Ancillary - e. Letters of Credit",null,null,null,null,null,null,null,null,{"$f":"'Schedule XII(a)'!J67","v":0}]
["Sch XII(a)","Eligible Capital",null,"Tier 2 Ancillary - f. Guarantees",null,null,null,null,null,null,null,null,{"$f":"'Schedule XII(a)'!J68","v":0}]
["Sch XII(a)","Eligible Capital",null,"Tier 2 - Total Capital",null,null,null,null,null,null,null,null,{"$f":"'Schedule XII(a)'!J69","v":0}]
["Sch XII(a)","Eligible Capital",null,"Tier 3 Basic - a. Hybrid Capital Instruments",null,null,null,null,null,null,null,null,{"$f":"'Schedule XII(a)'!J72","v":0}]
["Sch XII(a)","Eligible Capital",null,"Tier 3 Ancillary - a. Subordinated Debt",null,null,null,null,null,null,null,null,{"$f":"'Schedule XII(a)'!J74","v":0}]
["Sch XII(a)","Eligible Capital",null,"Tier 3 Ancillary - b. Letters of Credit",null,null,null,null,null,null,null,null,{"$f":"'Schedule XII(a)'!J75","v":0}]
["Sch XII(a)","Eligible Capital",null,"Tier 3 Ancillary - c. Guarantees",null,null,null,null,null,null,null,null,{"$f":"'Schedule XII(a)'!J76","v":0}]
["Sch XII(a)","Eligible Capital",null,"Tier 3 - Total Capital",null,null,null,null,null,null,null,null,{"$f":"'Schedule XII(a)'!J77","v":0}]
["Sch XII(a)","Eligible Capital",null,"Total Eligible Capital",null,null,null,null,null,null,null,null,{"$f":"'Schedule XII(a)'!J79","v":0}]
["Sch XII(b)","Eligible Capital - Additional Details",null,"# of Form 8SFS - Other Fixed Capital Inst.",{"$f":"'Schedule XII(b)'!C7","v":0}]
["Sch XII(b)","Eligible Capital - Additional Details",null,"Description of Capital Instrument 1",{"$f":"'Schedule XII(b)'!B11","v":0}]
["Sch XII(b)","Eligible Capital - Additional Details",null,"Description of Capital Instrument 2",{"$f":"'Schedule XII(b)'!B12","v":0}]
["Sch XII(b)","Eligible Capital - Additional Details",null,"Description of Capital Instrument 3",{"$f":"'Schedule XII(b)'!B13","v":0}]
["Sch XII(b)","Eligible Capital - Additional Details",null,"Description of Capital Instrument 4",{"$f":"'Schedule XII(b)'!B14","v":0}]
["Sch XII(b)","Eligible Capital - Additional Details",null,"Description of Capital Instrument 5",{"$f":"'Schedule XII(b)'!B15","v":0}]
["Sch XII(b)","Eligible Capital - Additional Details",null,"Description of Capital Instrument 6",{"$f":"'Schedule XII(b)'!B16","v":0}]
["Sch XII(b)","Eligible Capital - Additional Details",null,"Description of Capital Instrument 7",{"$f":"'Schedule XII(b)'!B17","v":0}]
["Sch XII(b)","Eligible Capital - Additional Details",null,"Description of Capital Instrument 8",{"$f":"'Schedule XII(b)'!B18","v":0}]
["Sch XII(b)","Eligible Capital - Additional Details",null,"Description of Capital Instrument 9",{"$f":"'Schedule XII(b)'!B19","v":0}]
["Sch XII(b)","Eligible Capital - Additional Details",null,"Description of Capital Instrument 10",{"$f":"'Schedule XII(b)'!B20","v":0}]
["Sch XII(b)","Eligible Capital - Additional Details",null,"Description of Capital Instrument 11",{"$f":"'Schedule XII(b)'!B21","v":0}]
["Sch XII(b)","Eligible Capital - Additional Details",null,"Description of Capital Instrument 12",{"$f":"'Schedule XII(b)'!B22","v":0}]
["Sch XII(b)","Eligible Capital - Additional Details",null,"Description of Capital Instrument 13",{"$f":"'Schedule XII(b)'!B23","v":0}]
["Sch XII(b)","Eligible Capital - Additional Details",null,"Description of Capital Instrument 14",{"$f":"'Schedule XII(b)'!B24","v":0}]
["Sch XII(b)","Eligible Capital - Additional Details",null,"Description of Capital Instrument 15",{"$f":"'Schedule XII(b)'!B25","v":0}]
["Sch XII(b)","Eligible Capital - Additional Details",null,"Description of Capital Instrument 16",{"$f":"'Schedule XII(b)'!B26","v":0}]
["Sch XII(b)","Eligible Capital - Additional Details",null,"Description of Capital Instrument 17",{"$f":"'Schedule XII(b)'!B27","v":0}]
["Sch XII(b)","Eligible Capital - Additional Details",null,"Description of Capital Instrument 18",{"$f":"'Schedule XII(b)'!B28","v":0}]
["Sch XII(b)","Eligible Capital - Additional Details",null,"Description of Capital Instrument 19",{"$f":"'Schedule XII(b)'!B29","v":0}]
["Sch XII(b)","Eligible Capital - Additional Details",null,"Description of Capital Instrument 20",{"$f":"'Schedule XII(b)'!B30","v":0}]
["Sch XII(b)","Eligible Capital - Additional Details",null,"Date of Issue - Instrument 1",{"$f":"'Schedule XII(b)'!C11","v":"00:00:00"}]
["Sch XII(b)","Eligible Capital - Additional Details",null,"Date of Issue - Instrument 2",{"$f":"'Schedule XII(b)'!C12","v":"00:00:00"}]
["Sch XII(b)","Eligible Capital - Additional Details",null,"Date of Issue - Instrument 3",{"$f":"'Schedule XII(b)'!C13","v":"00:00:00"}]
["Sch XII(b)","Eligible Capital - Additional Details",null,"Date of Issue - Instrument 4",{"$f":"'Schedule XII(b)'!C14","v":"00:00:00"}]
["Sch XII(b)","Eligible Capital - Additional Details",null,"Date of Issue - Instrument 5",{"$f":"'Schedule XII(b)'!C15","v":"00:00:00"}]
["Sch XII(b)","Eligible Capital - Additional Details",null,"Date of Issue - Instrument 6",{"$f":"'Schedule XII(b)'!C16","v":"00:00:00"}]
["Sch XII(b)","Eligible Capital - Additional Details",null,"Date of Issue - Instrument 7",{"$f":"'Schedule XII(b)'!C17","v":"00:00:00"}]
["Sch XII(b)","Eligible Capital - Additional Details",null,"Date of Issue - Instrument 8",{"$f":"'Schedule XII(b)'!C18","v":"00:00:00"}]
["Sch XII(b)","Eligible Capital - Additional Details",null,"Date of Issue - Instrument 9",{"$f":"'Schedule XII(b)'!C19","v":"00:00:00"}]
["Sch XII(b)","Eligible Capital - Additional Details",null,"Date of Issue - Instrument 10",{"$f":"'Schedule XII(b)'!C20","v":"00:00:00"}]
["Sch XII(b)","Eligible Capital - Additional Details",null,"Date of Issue - Instrument 11",{"$f":"'Schedule XII(b)'!C21","v":"00:00:00"}]
["Sch XII(b)","Eligible Capital - Additional Details",null,"Date of Issue - Instrument 12",{"$f":"'Schedule XII(b)'!C22","v":"00:00:00"}]
["Sch XII(b)","Eligible Capital - Additional Details",null,"Date of Issue - Instrument 13",{"$f":"'Schedule XII(b)'!C23","v":"00:00:00"}]
["Sch XII(b)","Eligible Capital - Additional Details",null,"Date of Issue - Instrument 14",{"$f":"'Schedule XII(b)'!C24","v":"00:00:00"}]
["Sch XII(b)","Eligible Capital - Additional Details",null,"Date of Issue - Instrument 15",{"$f":"'Schedule XII(b)'!C25","v":"00:00:00"}]
["Sch XII(b)","Eligible Capital - Additional Details",null,"Date of Issue - Instrument 16",{"$f":"'Schedule XII(b)'!C26","v":"00:00:00"}]
["Sch XII(b)","Eligible Capital - Additional Details",null,"Date of Issue - Instrument 17",{"$f":"'Schedule XII(b)'!C27","v":"00:00:00"}]
["Sch XII(b)","Eligible Capital - Additional Details",null,"Date of Issue - Instrument 18",{"$f":"'Schedule XII(b)'!C28","v":"00:00:00"}]
["Sch XII(b)","Eligible Capital - Additional Details",null,"Date of Issue - Instrument 19",{"$f":"'Schedule XII(b)'!C29","v":"00:00:00"}]
["Sch XII(b)","Eligible Capital - Additional Details",null,"Date of Issue - Instrument 20",{"$f":"'Schedule XII(b)'!C30","v":"00:00:00"}]
["Sch XII(b)","Eligible Capital - Additional Details",null,"Maturity Date - Instrument 1",{"$f":"'Schedule XII(b)'!D11","v":"00:00:00"}]
["Sch XII(b)","Eligible Capital - Additional Details",null,"Maturity Date - Instrument 2",{"$f":"'Schedule XII(b)'!D12","v":"00:00:00"}]
["Sch XII(b)","Eligible Capital - Additional Details",null,"Maturity Date - Instrument 3",{"$f":"'Schedule XII(b)'!D13","v":"00:00:00"}]
["Sch XII(b)","Eligible Capital - Additional Details",null,"Maturity Date - Instrument 4",{"$f":"'Schedule XII(b)'!D14","v":"00:00:00"}]
["Sch XII(b)","Eligible Capital - Additional Details",null,"Maturity Date - Instrument 5",{"$f":"'Schedule XII(b)'!D15","v":"00:00:00"}]
["Sch XII(b)","Eligible Capital - Additional Details",null,"Maturity Date - Instrument 6",{"$f":"'Schedule XII(b)'!D16","v":"00:00:00"}]
["Sch XII(b)","Eligible Capital - Additional Details",null,"Maturity Date - Instrument 7",{"$f":"'Schedule XII(b)'!D17","v":"00:00:00"}]
["Sch XII(b)","Eligible Capital - Additional Details",null,"Maturity Date - Instrument 8",{"$f":"'Schedule XII(b)'!D18","v":"00:00:00"}]
["Sch XII(b)","Eligible Capital - Additional Details",null,"Maturity Date - Instrument 9",{"$f":"'Schedule XII(b)'!D19","v":"00:00:00"}]
["Sch XII(b)","Eligible Capital - Additional Details",null,"Maturity Date - Instrument 10",{"$f":"'Schedule XII(b)'!D20","v":"00:00:00"}]
["Sch XII(b)","Eligible Capital - Additional Details",null,"Maturity Date - Instrument 11",{"$f":"'Schedule XII(b)'!D21","v":"00:00:00"}]
["Sch XII(b)","Eligible Capital - Additional Details",null,"Maturity Date - Instrument 12",{"$f":"'Schedule XII(b)'!D22","v":"00:00:00"}]
["Sch XII(b)","Eligible Capital - Additional Details",null,"Maturity Date - Instrument 13",{"$f":"'Schedule XII(b)'!D23","v":"00:00:00"}]
["Sch XII(b)","Eligible Capital - Additional Details",null,"Maturity Date - Instrument 14",{"$f":"'Schedule XII(b)'!D24","v":"00:00:00"}]
["Sch XII(b)","Eligible Capital - Additional Details",null,"Maturity Date - Instrument 15",{"$f":"'Schedule XII(b)'!D25","v":"00:00:00"}]
["Sch XII(b)","Eligible Capital - Additional Details",null,"Maturity Date - Instrument 16",{"$f":"'Schedule XII(b)'!D26","v":"00:00:00"}]
["Sch XII(b)","Eligible Capital - Additional Details",null,"Maturity Date - Instrument 17",{"$f":"'Schedule XII(b)'!D27","v":"00:00:00"}]
["Sch XII(b)","Eligible Capital - Additional Details",null,"Maturity Date - Instrument 18",{"$f":"'Schedule XII(b)'!D28","v":"00:00:00"}]
["Sch XII(b)","Eligible Capital - Additional Details",null,"Maturity Date - Instrument 19",{"$f":"'Schedule XII(b)'!D29","v":"00:00:00"}]
["Sch XII(b)","Eligible Capital - Additional Details",null,"Maturity Date - Instrument 20",{"$f":"'Schedule XII(b)'!D30","v":"00:00:00"}]
["Sch XII(b)","Eligible Capital - Additional Details",null,"Authority Approval Date - Instrument 1",{"$f":"'Schedule XII(b)'!E11","v":"00:00:00"}]
["Sch XII(b)","Eligible Capital - Additional Details",null,"Authority Approval Date - Instrument 2",{"$f":"'Schedule XII(b)'!E12","v":"00:00:00"}]
["Sch XII(b)","Eligible Capital - Additional Details",null,"Authority Approval Date - Instrument 3",{"$f":"'Schedule XII(b)'!E13","v":"00:00:00"}]
["Sch XII(b)","Eligible Capital - Additional Details",null,"Authority Approval Date - Instrument 4",{"$f":"'Schedule XII(b)'!E14","v":"00:00:00"}]
["Sch XII(b)","Eligible Capital - Additional Details",null,"Authority Approval Date - Instrument 5",{"$f":"'Schedule XII(b)'!E15","v":"00:00:00"}]
["Sch XII(b)","Eligible Capital - Additional Details",null,"Authority Approval Date - Instrument 6",{"$f":"'Schedule XII(b)'!E16","v":"00:00:00"}]
["Sch XII(b)","Eligible Capital - Additional Details",null,"Authority Approval Date - Instrument 7",{"$f":"'Schedule XII(b)'!E17","v":"00:00:00"}]
["Sch XII(b)","Eligible Capital - Additional Details",null,"Authority Approval Date - Instrument 8",{"$f":"'Schedule XII(b)'!E18","v":"00:00:00"}]
["Sch XII(b)","Eligible Capital - Additional Details",null,"Authority Approval Date - Instrument 9",{"$f":"'Schedule XII(b)'!E19","v":"00:00:00"}]
["Sch XII(b)","Eligible Capital - Additional Details",null,"Authority Approval Date - Instrument 10",{"$f":"'Schedule XII(b)'!E20","v":"00:00:00"}]
["Sch XII(b)","Eligible Capital - Additional Details",null,"Authority Approval Date - Instrument 11",{"$f":"'Schedule XII(b)'!E21","v":"00:00:00"}]
["Sch XII(b)","Eligible Capital - Additional Details",null,"Authority Approval Date - Instrument 12",{"$f":"'Schedule XII(b)'!E22","v":"00:00:00"}]
["Sch XII(b)","Eligible Capital - Additional Details",null,"Authority Approval Date - Instrument 13",{"$f":"'Schedule XII(b)'!E23","v":"00:00:00"}]
["Sch XII(b)","Eligible Capital - Additional Details",null,"Authority Approval Date - Instrument 14",{"$f":"'Schedule XII(b)'!E24","v":"00:00:00"}]
["Sch XII(b)","Eligible Capital - Additional Details",null,"Authority Approval Date - Instrument 15",{"$f":"'Schedule XII(b)'!E25","v":"00:00:00"}]
["Sch XII(b)","Eligible Capital - Additional Details",null,"Authority Approval Date - Instrument 16",{"$f":"'Schedule XII(b)'!E26","v":"00:00:00"}]
["Sch XII(b)","Eligible Capital - Additional Details",null,"Authority Approval Date - Instrument 17",{"$f":"'Schedule XII(b)'!E27","v":"00:00:00"}]
["Sch XII(b)","Eligible Capital - Additional Details",null,"Authority Approval Date - Instrument 18",{"$f":"'Schedule XII(b)'!E28","v":"00:00:00"}]
["Sch XII(b)","Eligible Capital - Additional Details",null,"Authority Approval Date - Instrument 19",{"$f":"'Schedule XII(b)'!E29","v":"00:00:00"}]
["Sch XII(b)","Eligible Capital - Additional Details",null,"Authority Approval Date - Instrument 20",{"$f":"'Schedule XII(b)'!E30","v":"00:00:00"}]
["Sch XII(b)","Eligible Capital - Additional Details",null,"Valuation - Instrument 1",{"$f":"+'Schedule XII(b)'!F11","v":0}]
["Sch XII(b)","Eligible Capital - Additional Details",null,"Valuation - Instrument 2",{"$f":"+'Schedule XII(b)'!F12","v":0}]
["Sch XII(b)","Eligible Capital - Additional Details",null,"Valuation - Instrument 3",{"$f":"+'Schedule XII(b)'!F13","v":0}]
["Sch XII(b)","Eligible Capital - Additional Details",null,"Valuation - Instrument 4",{"$f":"+'Schedule XII(b)'!F14","v":0}]
["Sch XII(b)","Eligible Capital - Additional Details",null,"Valuation - Instrument 5",{"$f":"+'Schedule XII(b)'!F15","v":0}]
["Sch XII(b)","Eligible Capital - Additional Details",null,"Valuation - Instrument 6",{"$f":"+'Schedule XII(b)'!F16","v":0}]
["Sch XII(b)","Eligible Capital - Additional Details",null,"Valuation - Instrument 7",{"$f":"+'Schedule XII(b)'!F17","v":0}]
["Sch XII(b)","Eligible Capital - Additional Details",null,"Valuation - Instrument 8",{"$f":"+'Schedule XII(b)'!F18","v":0}]
["Sch XII(b)","Eligible Capital - Additional Details",null,"Valuation - Instrument 9",{"$f":"+'Schedule XII(b)'!F19","v":0}]
["Sch XII(b)","Eligible Capital - Additional Details",null,"Valuation - Instrument 10",{"$f":"+'Schedule XII(b)'!F20","v":0}]
["Sch XII(b)","Eligible Capital - Additional Details",null,"Valuation - Instrument 11",{"$f":"+'Schedule XII(b)'!F21","v":0}]
["Sch XII(b)","Eligible Capital - Additional Details",null,"Valuation - Instrument 12",{"$f":"+'Schedule XII(b)'!F22","v":0}]
["Sch XII(b)","Eligible Capital - Additional Details",null,"Valuation - Instrument 13",{"$f":"+'Schedule XII(b)'!F23","v":0}]
["Sch XII(b)","Eligible Capital - Additional Details",null,"Valuation - Instrument 14",{"$f":"+'Schedule XII(b)'!F24","v":0}]
["Sch XII(b)","Eligible Capital - Additional Details",null,"Valuation - Instrument 15",{"$f":"+'Schedule XII(b)'!F25","v":0}]
["Sch XII(b)","Eligible Capital - Additional Details",null,"Valuation - Instrument 16",{"$f":"+'Schedule XII(b)'!F26","v":0}]
["Sch XII(b)","Eligible Capital - Additional Details",null,"Valuation - Instrument 17",{"$f":"+'Schedule XII(b)'!F27","v":0}]
["Sch XII(b)","Eligible Capital - Additional Details",null,"Valuation - Instrument 18",{"$f":"+'Schedule XII(b)'!F28","v":0}]
["Sch XII(b)","Eligible Capital - Additional Details",null,"Valuation - Instrument 19",{"$f":"+'Schedule XII(b)'!F29","v":0}]
["Sch XII(b)","Eligible Capital - Additional Details",null,"Valuation - Instrument 20",{"$f":"+'Schedule XII(b)'!F30","v":0}]
["Sch XII(b)","Eligible Capital - Additional Details",null,"Tier - Instrument 1",{"$f":"'Schedule XII(b)'!G11","v":0}]
["Sch XII(b)","Eligible Capital - Additional Details",null,"Tier - Instrument 2",{"$f":"'Schedule XII(b)'!G12","v":0}]
["Sch XII(b)","Eligible Capital - Additional Details",null,"Tier - Instrument 3",{"$f":"'Schedule XII(b)'!G13","v":0}]
["Sch XII(b)","Eligible Capital - Additional Details",null,"Tier - Instrument 4",{"$f":"'Schedule XII(b)'!G14","v":0}]
["Sch XII(b)","Eligible Capital - Additional Details",null,"Tier - Instrument 5",{"$f":"'Schedule XII(b)'!G15","v":0}]
["Sch XII(b)","Eligible Capital - Additional Details",null,"Tier - Instrument 6",{"$f":"'Schedule XII(b)'!G16","v":0}]
["Sch XII(b)","Eligible Capital - Additional Details",null,"Tier - Instrument 7",{"$f":"'Schedule XII(b)'!G17","v":0}]
["Sch XII(b)","Eligible Capital - Additional Details",null,"Tier - Instrument 8",{"$f":"'Schedule XII(b)'!G18","v":0}]
["Sch XII(b)","Eligible Capital - Additional Details",null,"Tier - Instrument 9",{"$f":"'Schedule XII(b)'!G19","v":0}]
["Sch XII(b)","Eligible Capital - Additional Details",null,"Tier - Instrument 10",{"$f":"'Schedule XII(b)'!G20","v":0}]
["Sch XII(b)","Eligible Capital - Additional Details",null,"Tier - Instrument 11",{"$f":"'Schedule XII(b)'!G21","v":0}]
["Sch XII(b)","Eligible Capital - Additional Details",null,"Tier - Instrument 12",{"$f":"'Schedule XII(b)'!G22","v":0}]
["Sch XII(b)","Eligible Capital - Additional Details",null,"Tier - Instrument 13",{"$f":"'Schedule XII(b)'!G23","v":0}]
["Sch XII(b)","Eligible Capital - Additional Details",null,"Tier - Instrument 14",{"$f":"'Schedule XII(b)'!G24","v":0}]
["Sch XII(b)","Eligible Capital - Additional Details",null,"Tier - Instrument 15",{"$f":"'Schedule XII(b)'!G25","v":0}]
["Sch XII(b)","Eligible Capital - Additional Details",null,"Tier - Instrument 16",{"$f":"'Schedule XII(b)'!G26","v":0}]
["Sch XII(b)","Eligible Capital - Additional Details",null,"Tier - Instrument 17",{"$f":"'Schedule XII(b)'!G27","v":0}]
["Sch XII(b)","Eligible Capital - Additional Details",null,"Tier - Instrument 18",{"$f":"'Schedule XII(b)'!G28","v":0}]
["Sch XII(b)","Eligible Capital - Additional Details",null,"Tier - Instrument 19",{"$f":"'Schedule XII(b)'!G29","v":0}]
["Sch XII(b)","Eligible Capital - Additional Details",null,"Tier - Instrument 20",{"$f":"'Schedule XII(b)'!G30","v":0}]
[]
["Sch XVI","Non-Insurance",null,"# of Regulated Non-Insurance Entities",null,null,null,null,{"$f":"'Schedule XVI'!C7","v":0}]
["Sch XVI","Non-Insurance",null,"Entity Name - 1",null,null,null,null,{"$f":"'Schedule XVI'!B11","v":0}]
["Sch XVI","Non-Insurance",null,"Entity Name - 2",null,null,null,null,{"$f":"'Schedule XVI'!B12","v":0}]
["Sch XVI","Non-Insurance",null,"Entity Name - 3",null,null,null,null,{"$f":"'Schedule XVI'!B13","v":0}]
["Sch XVI","Non-Insurance",null,"Entity Name - 4",null,null,null,null,{"$f":"'Schedule XVI'!B14","v":0}]
["Sch XVI","Non-Insurance",null,"Entity Name - 5",null,null,null,null,{"$f":"'Schedule XVI'!B15","v":0}]
["Sch XVI","Non-Insurance",null,"Entity Name - 6",null,null,null,null,{"$f":"'Schedule XVI'!B16","v":0}]
["Sch XVI","Non-Insurance",null,"Entity Name - 7",null,null,null,null,{"$f":"'Schedule XVI'!B17","v":0}]
["Sch XVI","Non-Insurance",null,"Entity Name - 8",null,null,null,null,{"$f":"'Schedule XVI'!B18","v":0}]
["Sch XVI","Non-Insurance",null,"Entity Name - 9",null,null,null,null,{"$f":"'Schedule XVI'!B19","v":0}]
["Sch XVI","Non-Insurance",null,"Entity Name - 10",null,null,null,null,{"$f":"'Schedule XVI'!B20","v":0}]
["Sch XVI","Non-Insurance",null,"Entity Name - 11",null,null,null,null,{"$f":"'Schedule XVI'!B21","v":0}]
["Sch XVI","Non-Insurance",null,"Entity Name - 12",null,null,null,null,{"$f":"'Schedule XVI'!B22","v":0}]
["Sch XVI","Non-Insurance",null,"Entity Name - 13",null,null,null,null,{"$f":"'Schedule XVI'!B23","v":0}]
["Sch XVI","Non-Insurance",null,"Entity Name - 14",null,null,null,null,{"$f":"'Schedule XVI'!B24","v":0}]
["Sch XVI","Non-Insurance",null,"Entity Name - 15",null,null,null,null,{"$f":"'Schedule XVI'!B25","v":0}]
["Sch XVI","Non-Insurance",null,"Entity Jurisdiction - 1",null,null,null,null,{"$f":"'Schedule XVI'!C11","v":0}]
["Sch XVI","Non-Insurance",null,"Entity Jurisdiction - 2",null,null,null,null,{"$f":"'Schedule XVI'!C12","v":0}]
["Sch XVI","Non-Insurance",null,"Entity Jurisdiction - 3",null,null,null,null,{"$f":"'Schedule XVI'!C13","v":0}]
["Sch XVI","Non-Insurance",null,"Entity Jurisdiction - 4",null,null,null,null,{"$f":"'Schedule XVI'!C14","v":0}]
["Sch XVI","Non-Insurance",null,"Entity Jurisdiction - 5",null,null,null,null,{"$f":"'Schedule XVI'!C15","v":0}]
["Sch XVI","Non-Insurance",null,"Entity Jurisdiction - 6",null,null,null,null,{"$f":"'Schedule XVI'!C16","v":0}]
["Sch XVI","Non-Insurance",null,"Entity Jurisdiction - 7",null,null,null,null,{"$f":"'Schedule XVI'!C17","v":0}]
["Sch XVI","Non-Insurance",null,"Entity Jurisdiction - 8",null,null,null,null,{"$f":"'Schedule XVI'!C18","v":0}]
["Sch XVI","Non-Insurance",null,"Entity Jurisdiction - 9",null,null,null,null,{"$f":"'Schedule XVI'!C19","v":0}]
["Sch XVI","Non-Insurance",null,"Entity Jurisdiction - 10",null,null,null,null,{"$f":"'Schedule XVI'!C20","v":0}]
["Sch XVI","Non-Insurance",null,"Entity Jurisdiction - 11",null,null,null,null,{"$f":"'Schedule XVI'!C21","v":0}]
["Sch XVI","Non-Insurance",null,"Entity Jurisdiction - 12",null,null,null,null,{"$f":"'Schedule XVI'!C22","v":0}]
["Sch XVI","Non-Insurance",null,"Entity Jurisdiction - 13",null,null,null,null,{"$f":"'Schedule XVI'!C23","v":0}]
["Sch XVI","Non-Insurance",null,"Entity Jurisdiction - 14",null,null,null,null,{"$f":"'Schedule XVI'!C24","v":0}]
["Sch XVI","Non-Insurance",null,"Entity Jurisdiction - 15",null,null,null,null,{"$f":"'Schedule XVI'!C25","v":0}]
["Sch XVI","Non-Insurance",null,"Entity Sector - 1",null,null,null,null,{"$f":"'Schedule XVI'!D11","v":"Select"}]
["Sch XVI","Non-Insurance",null,"Entity Sector - 2",null,null,null,null,{"$f":"'Schedule XVI'!D12","v":"Select"}]
["Sch XVI","Non-Insurance",null,"Entity Sector - 3",null,null,null,null,{"$f":"'Schedule XVI'!D13","v":"Select"}]
["Sch XVI","Non-Insurance",null,"Entity Sector - 4",null,null,null,null,{"$f":"'Schedule XVI'!D14","v":"Select"}]
["Sch XVI","Non-Insurance",null,"Entity Sector - 5",null,null,null,null,{"$f":"'Schedule XVI'!D15","v":"Select"}]
["Sch XVI","Non-Insurance",null,"Entity Sector - 6",null,null,null,null,{"$f":"'Schedule XVI'!D16","v":"Select"}]
["Sch XVI","Non-Insurance",null,"Entity Sector - 7",null,null,null,null,{"$f":"'Schedule XVI'!D17","v":"Select"}]
["Sch XVI","Non-Insurance",null,"Entity Sector - 8",null,null,null,null,{"$f":"'Schedule XVI'!D18","v":"Select"}]
["Sch XVI","Non-Insurance",null,"Entity Sector - 9",null,null,null,null,{"$f":"'Schedule XVI'!D19","v":"Select"}]
["Sch XVI","Non-Insurance",null,"Entity Sector - 10",null,null,null,null,{"$f":"'Schedule XVI'!D20","v":"Select"}]
["Sch XVI","Non-Insurance",null,"Entity Sector - 11",null,null,null,null,{"$f":"'Schedule XVI'!D21","v":"Select"}]
["Sch XVI","Non-Insurance",null,"Entity Sector - 12",null,null,null,null,{"$f":"'Schedule XVI'!D22","v":"Select"}]
["Sch XVI","Non-Insurance",null,"Entity Sector - 13",null,null,null,null,{"$f":"'Schedule XVI'!D23","v":"Select"}]
["Sch XVI","Non-Insurance",null,"Entity Sector - 14",null,null,null,null,{"$f":"'Schedule XVI'!D24","v":"Select"}]
["Sch XVI","Non-Insurance",null,"Entity Sector - 15",null,null,null,null,{"$f":"'Schedule XVI'!D25","v":"Select"}]
["Sch XVI","Non-Insurance",null,"Entity Strategic Purpose - 1",null,null,null,null,{"$f":"'Schedule XVI'!E11","v":0}]
["Sch XVI","Non-Insurance",null,"Entity Strategic Purpose - 2",null,null,null,null,{"$f":"'Schedule XVI'!E12","v":0}]
["Sch XVI","Non-Insurance",null,"Entity Strategic Purpose - 3",null,null,null,null,{"$f":"'Schedule XVI'!E13","v":0}]
["Sch XVI","Non-Insurance",null,"Entity Strategic Purpose - 4",null,null,null,null,{"$f":"'Schedule XVI'!E14","v":0}]
["Sch XVI","Non-Insurance",null,"Entity Strategic Purpose - 5",null,null,null,null,{"$f":"'Schedule XVI'!E15","v":0}]
["Sch XVI","Non-Insurance",null,"Entity Strategic Purpose - 6",null,null,null,null,{"$f":"'Schedule XVI'!E16","v":0}]
["Sch XVI","Non-Insurance",null,"Entity Strategic Purpose - 7",null,null,null,null,{"$f":"'Schedule XVI'!E17","v":0}]
["Sch XVI","Non-Insurance",null,"Entity Strategic Purpose - 8",null,null,null,null,{"$f":"'Schedule XVI'!E18","v":0}]
["Sch XVI","Non-Insurance",null,"Entity Strategic Purpose - 9",null,null,null,null,{"$f":"'Schedule XVI'!E19","v":0}]
["Sch XVI","Non-Insurance",null,"Entity Strategic Purpose - 10",null,null,null,null,{"$f":"'Schedule XVI'!E20","v":0}]
["Sch XVI","Non-Insurance",null,"Entity Strategic Purpose - 11",null,null,null,null,{"$f":"'Schedule XVI'!E21","v":0}]
["Sch XVI","Non-Insurance",null,"Entity Strategic Purpose - 12",null,null,null,null,{"$f":"'Schedule XVI'!E22","v":0}]
["Sch XVI","Non-Insurance",null,"Entity Strategic Purpose - 13",null,null,null,null,{"$f":"'Schedule XVI'!E23","v":0}]
["Sch XVI","Non-Insurance",null,"Entity Strategic Purpose - 14",null,null,null,null,{"$f":"'Schedule XVI'!E24","v":0}]
["Sch XVI","Non-Insurance",null,"Entity Strategic Purpose - 15",null,null,null,null,{"$f":"'Schedule XVI'!E25","v":0}]
["Sch XVI","Non-Insurance",null,"Entity Type - 1",null,null,null,null,{"$f":"'Schedule XVI'!F11","v":"Select"}]
["Sch XVI","Non-Insurance",null,"Entity Type - 2",null,null,null,null,{"$f":"'Schedule XVI'!F12","v":"Select"}]
["Sch XVI","Non-Insurance",null,"Entity Type - 3",null,null,null,null,{"$f":"'Schedule XVI'!F13","v":"Select"}]
["Sch XVI","Non-Insurance",null,"Entity Type - 4",null,null,null,null,{"$f":"'Schedule XVI'!F14","v":"Select"}]
["Sch XVI","Non-Insurance",null,"Entity Type - 5",null,null,null,null,{"$f":"'Schedule XVI'!F15","v":"Select"}]
["Sch XVI","Non-Insurance",null,"Entity Type - 6",null,null,null,null,{"$f":"'Schedule XVI'!F16","v":"Select"}]
["Sch XVI","Non-Insurance",null,"Entity Type - 7",null,null,null,null,{"$f":"'Schedule XVI'!F17","v":"Select"}]
["Sch XVI","Non-Insurance",null,"Entity Type - 8",null,null,null,null,{"$f":"'Schedule XVI'!F18","v":"Select"}]
["Sch XVI","Non-Insurance",null,"Entity Type - 9",null,null,null,null,{"$f":"'Schedule XVI'!F19","v":"Select"}]
["Sch XVI","Non-Insurance",null,"Entity Type - 10",null,null,null,null,{"$f":"'Schedule XVI'!F20","v":"Select"}]
["Sch XVI","Non-Insurance",null,"Entity Type - 11",null,null,null,null,{"$f":"'Schedule XVI'!F21","v":"Select"}]
["Sch XVI","Non-Insurance",null,"Entity Type - 12",null,null,null,null,{"$f":"'Schedule XVI'!F22","v":"Select"}]
["Sch XVI","Non-Insurance",null,"Entity Type - 13",null,null,null,null,{"$f":"'Schedule XVI'!F23","v":"Select"}]
["Sch XVI","Non-Insurance",null,"Entity Type - 14",null,null,null,null,{"$f":"'Schedule XVI'!F24","v":"Select"}]
["Sch XVI","Non-Insurance",null,"Entity Type - 15",null,null,null,null,{"$f":"'Schedule XVI'!F25","v":"Select"}]
["Sch XVI","Non-Insurance",null,"Entity Product & Services - 1",null,null,null,null,{"$f":"'Schedule XVI'!G11","v":0}]
["Sch XVI","Non-Insurance",null,"Entity Product & Services - 2",null,null,null,null,{"$f":"'Schedule XVI'!G12","v":0}]
["Sch XVI","Non-Insurance",null,"Entity Product & Services - 3",null,null,null,null,{"$f":"'Schedule XVI'!G13","v":0}]
["Sch XVI","Non-Insurance",null,"Entity Product & Services - 4",null,null,null,null,{"$f":"'Schedule XVI'!G14","v":0}]
["Sch XVI","Non-Insurance",null,"Entity Product & Services - 5",null,null,null,null,{"$f":"'Schedule XVI'!G15","v":0}]
["Sch XVI","Non-Insurance",null,"Entity Product & Services - 6",null,null,null,null,{"$f":"'Schedule XVI'!G16","v":0}]
["Sch XVI","Non-Insurance",null,"Entity Product & Services - 7",null,null,null,null,{"$f":"'Schedule XVI'!G17","v":0}]
["Sch XVI","Non-Insurance",null,"Entity Product & Services - 8",null,null,null,null,{"$f":"'Schedule XVI'!G18","v":0}]
["Sch XVI","Non-Insurance",null,"Entity Product & Services - 9",null,null,null,null,{"$f":"'Schedule XVI'!G19","v":0}]
["Sch XVI","Non-Insurance",null,"Entity Product & Services - 10",null,null,null,null,{"$f":"'Schedule XVI'!G20","v":0}]
["Sch XVI","Non-Insurance",null,"Entity Product & Services - 11",null,null,null,null,{"$f":"'Schedule XVI'!G21","v":0}]
["Sch XVI","Non-Insurance",null,"Entity Product & Services - 12",null,null,null,null,{"$f":"'Schedule XVI'!G22","v":0}]
["Sch XVI","Non-Insurance",null,"Entity Product & Services - 13",null,null,null,null,{"$f":"'Schedule XVI'!G23","v":0}]
["Sch XVI","Non-Insurance",null,"Entity Product & Services - 14",null,null,null,null,{"$f":"'Schedule XVI'!G24","v":0}]
["Sch XVI","Non-Insurance",null,"Entity Product & Services - 15",null,null,null,null,{"$f":"'Schedule XVI'!G25","v":0}]
["Sch XVI","Non-Insurance",null,"Entity Participation - 1",null,null,null,null,{"$f":"'Schedule XVI'!H11","v":"Select"}]
["Sch XVI","Non-Insurance",null,"Entity Participation - 2",null,null,null,null,{"$f":"'Schedule XVI'!H12","v":"Select"}]
["Sch XVI","Non-Insurance",null,"Entity Participation - 3",null,null,null,null,{"$f":"'Schedule XVI'!H13","v":"Select"}]
["Sch XVI","Non-Insurance",null,"Entity Participation - 4",null,null,null,null,{"$f":"'Schedule XVI'!H14","v":"Select"}]
["Sch XVI","Non-Insurance",null,"Entity Participation - 5",null,null,null,null,{"$f":"'Schedule XVI'!H15","v":"Select"}]
["Sch XVI","Non-Insurance",null,"Entity Participation - 6",null,null,null,null,{"$f":"'Schedule XVI'!H16","v":"Select"}]
["Sch XVI","Non-Insurance",null,"Entity Participation - 7",null,null,null,null,{"$f":"'Schedule XVI'!H17","v":"Select"}]
["Sch XVI","Non-Insurance",null,"Entity Participation - 8",null,null,null,null,{"$f":"'Schedule XVI'!H18","v":"Select"}]
["Sch XVI","Non-Insurance",null,"Entity Participation - 9",null,null,null,null,{"$f":"'Schedule XVI'!H19","v":"Select"}]
["Sch XVI","Non-Insurance",null,"Entity Participation - 10",null,null,null,null,{"$f":"'Schedule XVI'!H20","v":"Select"}]
["Sch XVI","Non-Insurance",null,"Entity Participation - 11",null,null,null,null,{"$f":"'Schedule XVI'!H21","v":"Select"}]
["Sch XVI","Non-Insurance",null,"Entity Participation - 12",null,null,null,null,{"$f":"'Schedule XVI'!H22","v":"Select"}]
["Sch XVI","Non-Insurance",null,"Entity Participation - 13",null,null,null,null,{"$f":"'Schedule XVI'!H23","v":"Select"}]
["Sch XVI","Non-Insurance",null,"Entity Participation - 14",null,null,null,null,{"$f":"'Schedule XVI'!H24","v":"Select"}]
["Sch XVI","Non-Insurance",null,"Entity Participation - 15",null,null,null,null,{"$f":"'Schedule XVI'!H25","v":"Select"}]
["Sch XVI","Non-Insurance",null,"% Interest in Entity - 1",null,null,null,null,{"$f":"'Schedule XVI'!I11","v":0}]
["Sch XVI","Non-Insurance",null,"% Interest in Entity - 2",null,null,null,null,{"$f":"'Schedule XVI'!I12","v":0}]
["Sch XVI","Non-Insurance",null,"% Interest in Entity - 3",null,null,null,null,{"$f":"'Schedule XVI'!I13","v":0}]
["Sch XVI","Non-Insurance",null,"% Interest in Entity - 4",null,null,null,null,{"$f":"'Schedule XVI'!I14","v":0}]
["Sch XVI","Non-Insurance",null,"% Interest in Entity - 5",null,null,null,null,{"$f":"'Schedule XVI'!I15","v":0}]
["Sch XVI","Non-Insurance",null,"% Interest in Entity - 6",null,null,null,null,{"$f":"'Schedule XVI'!I16","v":0}]
["Sch XVI","Non-Insurance",null,"% Interest in Entity - 7",null,null,null,null,{"$f":"'Schedule XVI'!I17","v":0}]
["Sch XVI","Non-Insurance",null,"% Interest in Entity - 8",null,null,null,null,{"$f":"'Schedule XVI'!I18","v":0}]
["Sch XVI","Non-Insurance",null,"% Interest in Entity - 9",null,null,null,null,{"$f":"'Schedule XVI'!I19","v":0}]
["Sch XVI","Non-Insurance",null,"% Interest in Entity - 10",null,null,null,null,{"$f":"'Schedule XVI'!I20","v":0}]
["Sch XVI","Non-Insurance",null,"% Interest in Entity - 11",null,null,null,null,{"$f":"'Schedule XVI'!I21","v":0}]
["Sch XVI","Non-Insurance",null,"% Interest in Entity - 12",null,null,null,null,{"$f":"'Schedule XVI'!I22","v":0}]
["Sch XVI","Non-Insurance",null,"% Interest in Entity - 13",null,null,null,null,{"$f":"'Schedule XVI'!I23","v":0}]
["Sch XVI","Non-Insurance",null,"% Interest in Entity - 14",null,null,null,null,{"$f":"'Schedule XVI'!I24","v":0}]
["Sch XVI","Non-Insurance",null,"% Interest in Entity - 15",null,null,null,null,{"$f":"'Schedule XVI'!I25","v":0}]
["Sch XVI","Non-Insurance",null,"Total Assets in Entity - 1",null,null,null,null,{"$f":"'Schedule XVI'!J11","v":0}]
["Sch XVI","Non-Insurance",null,"Total Assets in Entity - 2",null,null,null,null,{"$f":"'Schedule XVI'!J12","v":0}]
["Sch XVI","Non-Insurance",null,"Total Assets in Entity - 3",null,null,null,null,{"$f":"'Schedule XVI'!J13","v":0}]
["Sch XVI","Non-Insurance",null,"Total Assets in Entity - 4",null,null,null,null,{"$f":"'Schedule XVI'!J14","v":0}]
["Sch XVI","Non-Insurance",null,"Total Assets in Entity - 5",null,null,null,null,{"$f":"'Schedule XVI'!J15","v":0}]
["Sch XVI","Non-Insurance",null,"Total Assets in Entity - 6",null,null,null,null,{"$f":"'Schedule XVI'!J16","v":0}]
["Sch XVI","Non-Insurance",null,"Total Assets in Entity - 7",null,null,null,null,{"$f":"'Schedule XVI'!J17","v":0}]
["Sch XVI","Non-Insurance",null,"Total Assets in Entity - 8",null,null,null,null,{"$f":"'Schedule XVI'!J18","v":0}]
["Sch XVI","Non-Insurance",null,"Total Assets in Entity - 9",null,null,null,null,{"$f":"'Schedule XVI'!J19","v":0}]
["Sch XVI","Non-Insurance",null,"Total Assets in Entity - 10",null,null,null,null,{"$f":"'Schedule XVI'!J20","v":0}]
["Sch XVI","Non-Insurance",null,"Total Assets in Entity - 11",null,null,null,null,{"$f":"'Schedule XVI'!J21","v":0}]
["Sch XVI","Non-Insurance",null,"Total Assets in Entity - 12",null,null,null,null,{"$f":"'Schedule XVI'!J22","v":0}]
["Sch XVI","Non-Insurance",null,"Total Assets in Entity - 13",null,null,null,null,{"$f":"'Schedule XVI'!J23","v":0}]
["Sch XVI","Non-Insurance",null,"Total Assets in Entity - 14",null,null,null,null,{"$f":"'Schedule XVI'!J24","v":0}]
["Sch XVI","Non-Insurance",null,"Total Assets in Entity - 15",null,null,null,null,{"$f":"'Schedule XVI'!J25","v":0}]
["Sch XVI","Non-Insurance",null,"Entity Total Assets",null,null,null,null,{"$f":"'Schedule XVI'!J211","v":0}]
["Sch XVI","Non-Insurance",null,"Investments in Entity - 1",null,null,null,null,{"$f":"'Schedule XVI'!K11","v":0}]
["Sch XVI","Non-Insurance",null,"Investments in Entity - 2",null,null,null,null,{"$f":"'Schedule XVI'!K12","v":0}]
["Sch XVI","Non-Insurance",null,"Investments in Entity - 3",null,null,null,null,{"$f":"'Schedule XVI'!K13","v":0}]
["Sch XVI","Non-Insurance",null,"Investments in Entity - 4",null,null,null,null,{"$f":"'Schedule XVI'!K14","v":0}]
["Sch XVI","Non-Insurance",null,"Investments in Entity - 5",null,null,null,null,{"$f":"'Schedule XVI'!K15","v":0}]
["Sch XVI","Non-Insurance",null,"Investments in Entity - 6",null,null,null,null,{"$f":"'Schedule XVI'!K16","v":0}]
["Sch XVI","Non-Insurance",null,"Investments in Entity - 7",null,null,null,null,{"$f":"'Schedule XVI'!K17","v":0}]
["Sch XVI","Non-Insurance",null,"Investments in Entity - 8",null,null,null,null,{"$f":"'Schedule XVI'!K18","v":0}]
["Sch XVI","Non-Insurance",null,"Investments in Entity - 9",null,null,null,null,{"$f":"'Schedule XVI'!K19","v":0}]
["Sch XVI","Non-Insurance",null,"Investments in Entity - 10",null,null,null,null,{"$f":"'Schedule XVI'!K20","v":0}]
["Sch XVI","Non-Insurance",null,"Investments in Entity - 11",null,null,null,null,{"$f":"'Schedule XVI'!K21","v":0}]
["Sch XVI","Non-Insurance",null,"Investments in Entity - 12",null,null,null,null,{"$f":"'Schedule XVI'!K22","v":0}]
["Sch XVI","Non-Insurance",null,"Investments in Entity - 13",null,null,null,null,{"$f":"'Schedule XVI'!K23","v":0}]
["Sch XVI","Non-Insurance",null,"Investments in Entity - 14",null,null,null,null,{"$f":"'Schedule XVI'!K24","v":0}]
["Sch XVI","Non-Insurance",null,"Investments in Entity - 15",null,null,null,null,{"$f":"'Schedule XVI'!K25","v":0}]
["Sch XVI","Non-Insurance",null,"Entity Total Investments",null,null,null,null,{"$f":"'Schedule XVI'!K211","v":0}]
["Sch XVI","Non-Insurance",null,"Regulatory Capital in Entity - 1",null,null,null,null,{"$f":"'Schedule XVI'!L11","v":0}]
["Sch XVI","Non-Insurance",null,"Regulatory Capital in Entity - 2",null,null,null,null,{"$f":"'Schedule XVI'!L12","v":0}]
["Sch XVI","Non-Insurance",null,"Regulatory Capital in Entity - 3",null,null,null,null,{"$f":"'Schedule XVI'!L13","v":0}]
["Sch XVI","Non-Insurance",null,"Regulatory Capital in Entity - 4",null,null,null,null,{"$f":"'Schedule XVI'!L14","v":0}]
["Sch XVI","Non-Insurance",null,"Regulatory Capital in Entity - 5",null,null,null,null,{"$f":"'Schedule XVI'!L15","v":0}]
["Sch XVI","Non-Insurance",null,"Regulatory Capital in Entity - 6",null,null,null,null,{"$f":"'Schedule XVI'!L16","v":0}]
["Sch XVI","Non-Insurance",null,"Regulatory Capital in Entity - 7",null,null,null,null,{"$f":"'Schedule XVI'!L17","v":0}]
["Sch XVI","Non-Insurance",null,"Regulatory Capital in Entity - 8",null,null,null,null,{"$f":"'Schedule XVI'!L18","v":0}]
["Sch XVI","Non-Insurance",null,"Regulatory Capital in Entity - 9",null,null,null,null,{"$f":"'Schedule XVI'!L19","v":0}]
["Sch XVI","Non-Insurance",null,"Regulatory Capital in Entity - 10",null,null,null,null,{"$f":"'Schedule XVI'!L20","v":0}]
["Sch XVI","Non-Insurance",null,"Regulatory Capital in Entity - 11",null,null,null,null,{"$f":"'Schedule XVI'!L21","v":0}]
["Sch XVI","Non-Insurance",null,"Regulatory Capital in Entity - 12",null,null,null,null,{"$f":"'Schedule XVI'!L22","v":0}]
["Sch XVI","Non-Insurance",null,"Regulatory Capital in Entity - 13",null,null,null,null,{"$f":"'Schedule XVI'!L23","v":0}]
["Sch XVI","Non-Insurance",null,"Regulatory Capital in Entity - 14",null,null,null,null,{"$f":"'Schedule XVI'!L24","v":0}]
["Sch XVI","Non-Insurance",null,"Regulatory Capital in Entity - 15",null,null,null,null,{"$f":"'Schedule XVI'!L25","v":0}]
[]
["Sch XVII","Sovency Analysis",null,"# of Entities",null,null,null,null,{"$f":"'Schedule XVII'!C7","v":0}]
["Sch XVII","Sovency Analysis",null,"Name of Entity - 1",null,null,null,null,{"$f":"'Schedule XVII'!B11","v":0}]
["Sch XVII","Sovency Analysis",null,"Name of Entity - 2",null,null,null,null,{"$f":"'Schedule XVII'!B12","v":0}]
["Sch XVII","Sovency Analysis",null,"Name of Entity - 3",null,null,null,null,{"$f":"'Schedule XVII'!B13","v":0}]
["Sch XVII","Sovency Analysis",null,"Name of Entity - 4",null,null,null,null,{"$f":"'Schedule XVII'!B14","v":0}]
["Sch XVII","Sovency Analysis",null,"Name of Entity - 5",null,null,null,null,{"$f":"'Schedule XVII'!B15","v":0}]
["Sch XVII","Sovency Analysis",null,"Name of Entity - 6",null,null,null,null,{"$f":"'Schedule XVII'!B16","v":0}]
["Sch XVII","Sovency Analysis",null,"Name of Entity - 7",null,null,null,null,{"$f":"'Schedule XVII'!B17","v":0}]
["Sch XVII","Sovency Analysis",null,"Name of Entity - 8",null,null,null,null,{"$f":"'Schedule XVII'!B18","v":0}]
["Sch XVII","Sovency Analysis",null,"Name of Entity - 9",null,null,null,null,{"$f":"'Schedule XVII'!B19","v":0}]
["Sch XVII","Sovency Analysis",null,"Name of Entity - 10",null,null,null,null,{"$f":"'Schedule XVII'!B20","v":0}]
["Sch XVII","Sovency Analysis",null,"Name of Entity - 11",null,null,null,null,{"$f":"'Schedule XVII'!B21","v":0}]
["Sch XVII","Sovency Analysis",null,"Name of Entity - 12",null,null,null,null,{"$f":"'Schedule XVII'!B22","v":0}]
["Sch XVII","Sovency Analysis",null,"Name of Entity - 13",null,null,null,null,{"$f":"'Schedule XVII'!B23","v":0}]
["Sch XVII","Sovency Analysis",null,"Name of Entity - 14",null,null,null,null,{"$f":"'Schedule XVII'!B24","v":0}]
["Sch XVII","Sovency Analysis",null,"Name of Entity - 15",null,null,null,null,{"$f":"'Schedule XVII'!B25","v":0}]
["Sch XVII","Sovency Analysis",null,"Name of Entity - 16",null,null,null,null,{"$f":"'Schedule XVII'!B26","v":0}]
["Sch XVII","Sovency Analysis",null,"Name of Entity - 17",null,null,null,null,{"$f":"'Schedule XVII'!B27","v":0}]
["Sch XVII","Sovency Analysis",null,"Name of Entity - 18",null,null,null,null,{"$f":"'Schedule XVII'!B28","v":0}]
["Sch XVII","Sovency Analysis",null,"Name of Entity - 19",null,null,null,null,{"$f":"'Schedule XVII'!B29","v":0}]
["Sch XVII","Sovency Analysis",null,"Name of Entity - 20",null,null,null,null,{"$f":"'Schedule XVII'!B30","v":0}]
["Sch XVII","Sovency Analysis",null,"Name of Entity - 21",null,null,null,null,{"$f":"'Schedule XVII'!B31","v":0}]
["Sch XVII","Sovency Analysis",null,"Name of Entity - 22",null,null,null,null,{"$f":"'Schedule XVII'!B32","v":0}]
["Sch XVII","Sovency Analysis",null,"Name of Entity - 23",null,null,null,null,{"$f":"'Schedule XVII'!B33","v":0}]
["Sch XVII","Sovency Analysis",null,"Name of Entity - 24",null,null,null,null,{"$f":"'Schedule XVII'!B34","v":0}]
["Sch XVII","Sovency Analysis",null,"Name of Entity - 25",null,null,null,null,{"$f":"'Schedule XVII'!B35","v":0}]
["Sch XVII","Sovency Analysis",null,"Name of Entity - 26",null,null,null,null,{"$f":"'Schedule XVII'!B36","v":0}]
["Sch XVII","Sovency Analysis",null,"Name of Entity - 27",null,null,null,null,{"$f":"'Schedule XVII'!B37","v":0}]
["Sch XVII","Sovency Analysis",null,"Name of Entity - 28",null,null,null,null,{"$f":"'Schedule XVII'!B38","v":0}]
["Sch XVII","Sovency Analysis",null,"Name of Entity - 29",null,null,null,null,{"$f":"'Schedule XVII'!B39","v":0}]
["Sch XVII","Sovency Analysis",null,"Name of Entity - 30",null,null,null,null,{"$f":"'Schedule XVII'!B40","v":0}]
["Sch XVII","Sovency Analysis",null,"Jurisdiction of Entity - 1",null,null,null,null,{"$f":"'Schedule XVII'!C11","v":0}]
["Sch XVII","Sovency Analysis",null,"Jurisdiction of Entity - 2",null,null,null,null,{"$f":"'Schedule XVII'!C12","v":0}]
["Sch XVII","Sovency Analysis",null,"Jurisdiction of Entity - 3",null,null,null,null,{"$f":"'Schedule XVII'!C13","v":0}]
["Sch XVII","Sovency Analysis",null,"Jurisdiction of Entity - 4",null,null,null,null,{"$f":"'Schedule XVII'!C14","v":0}]
["Sch XVII","Sovency Analysis",null,"Jurisdiction of Entity - 5",null,null,null,null,{"$f":"'Schedule XVII'!C15","v":0}]
["Sch XVII","Sovency Analysis",null,"Jurisdiction of Entity - 6",null,null,null,null,{"$f":"'Schedule XVII'!C16","v":0}]
["Sch XVII","Sovency Analysis",null,"Jurisdiction of Entity - 7",null,null,null,null,{"$f":"'Schedule XVII'!C17","v":0}]
["Sch XVII","Sovency Analysis",null,"Jurisdiction of Entity - 8",null,null,null,null,{"$f":"'Schedule XVII'!C18","v":0}]
["Sch XVII","Sovency Analysis",null,"Jurisdiction of Entity - 9",null,null,null,null,{"$f":"'Schedule XVII'!C19","v":0}]
["Sch XVII","Sovency Analysis",null,"Jurisdiction of Entity - 10",null,null,null,null,{"$f":"'Schedule XVII'!C20","v":0}]
["Sch XVII","Sovency Analysis",null,"Jurisdiction of Entity - 11",null,null,null,null,{"$f":"'Schedule XVII'!C21","v":0}]
["Sch XVII","Sovency Analysis",null,"Jurisdiction of Entity - 12",null,null,null,null,{"$f":"'Schedule XVII'!C22","v":0}]
["Sch XVII","Sovency Analysis",null,"Jurisdiction of Entity - 13",null,null,null,null,{"$f":"'Schedule XVII'!C23","v":0}]
["Sch XVII","Sovency Analysis",null,"Jurisdiction of Entity - 14",null,null,null,null,{"$f":"'Schedule XVII'!C24","v":0}]
["Sch XVII","Sovency Analysis",null,"Jurisdiction of Entity - 15",null,null,null,null,{"$f":"'Schedule XVII'!C25","v":0}]
["Sch XVII","Sovency Analysis",null,"Jurisdiction of Entity - 16",null,null,null,null,{"$f":"'Schedule XVII'!C26","v":0}]
["Sch XVII","Sovency Analysis",null,"Jurisdiction of Entity - 17",null,null,null,null,{"$f":"'Schedule XVII'!C27","v":0}]
["Sch XVII","Sovency Analysis",null,"Jurisdiction of Entity - 18",null,null,null,null,{"$f":"'Schedule XVII'!C28","v":0}]
["Sch XVII","Sovency Analysis",null,"Jurisdiction of Entity - 19",null,null,null,null,{"$f":"'Schedule XVII'!C29","v":0}]
["Sch XVII","Sovency Analysis",null,"Jurisdiction of Entity - 20",null,null,null,null,{"$f":"'Schedule XVII'!C30","v":0}]
["Sch XVII","Sovency Analysis",null,"Jurisdiction of Entity - 21",null,null,null,null,{"$f":"'Schedule XVII'!C31","v":0}]
["Sch XVII","Sovency Analysis",null,"Jurisdiction of Entity - 22",null,null,null,null,{"$f":"'Schedule XVII'!C32","v":0}]
["Sch XVII","Sovency Analysis",null,"Jurisdiction of Entity - 23",null,null,null,null,{"$f":"'Schedule XVII'!C33","v":0}]
["Sch XVII","Sovency Analysis",null,"Jurisdiction of Entity - 24",null,null,null,null,{"$f":"'Schedule XVII'!C34","v":0}]
["Sch XVII","Sovency Analysis",null,"Jurisdiction of Entity - 25",null,null,null,null,{"$f":"'Schedule XVII'!C35","v":0}]
["Sch XVII","Sovency Analysis",null,"Jurisdiction of Entity - 26",null,null,null,null,{"$f":"'Schedule XVII'!C36","v":0}]
["Sch XVII","Sovency Analysis",null,"Jurisdiction of Entity - 27",null,null,null,null,{"$f":"'Schedule XVII'!C37","v":0}]
["Sch XVII","Sovency Analysis",null,"Jurisdiction of Entity - 28",null,null,null,null,{"$f":"'Schedule XVII'!C38","v":0}]
["Sch XVII","Sovency Analysis",null,"Jurisdiction of Entity - 29",null,null,null,null,{"$f":"'Schedule XVII'!C39","v":0}]
["Sch XVII","Sovency Analysis",null,"Jurisdiction of Entity - 30",null,null,null,null,{"$f":"'Schedule XVII'!C40","v":0}]
["Sch XVII","Sovency Analysis",null,"Type of Entity - 1",null,null,null,null,{"$f":"'Schedule XVII'!D11","v":"Select"}]
["Sch XVII","Sovency Analysis",null,"Type of Entity - 2",null,null,null,null,{"$f":"'Schedule XVII'!D12","v":"Select"}]
["Sch XVII","Sovency Analysis",null,"Type of Entity - 3",null,null,null,null,{"$f":"'Schedule XVII'!D13","v":"Select"}]
["Sch XVII","Sovency Analysis",null,"Type of Entity - 4",null,null,null,null,{"$f":"'Schedule XVII'!D14","v":"Select"}]
["Sch XVII","Sovency Analysis",null,"Type of Entity - 5",null,null,null,null,{"$f":"'Schedule XVII'!D15","v":"Select"}]
["Sch XVII","Sovency Analysis",null,"Type of Entity - 6",null,null,null,null,{"$f":"'Schedule XVII'!D16","v":"Select"}]
["Sch XVII","Sovency Analysis",null,"Type of Entity - 7",null,null,null,null,{"$f":"'Schedule XVII'!D17","v":"Select"}]
["Sch XVII","Sovency Analysis",null,"Type of Entity - 8",null,null,null,null,{"$f":"'Schedule XVII'!D18","v":"Select"}]
["Sch XVII","Sovency Analysis",null,"Type of Entity - 9",null,null,null,null,{"$f":"'Schedule XVII'!D19","v":"Select"}]
["Sch XVII","Sovency Analysis",null,"Type of Entity - 10",null,null,null,null,{"$f":"'Schedule XVII'!D20","v":"Select"}]
["Sch XVII","Sovency Analysis",null,"Type of Entity - 11",null,null,null,null,{"$f":"'Schedule XVII'!D21","v":"Select"}]
["Sch XVII","Sovency Analysis",null,"Type of Entity - 12",null,null,null,null,{"$f":"'Schedule XVII'!D22","v":"Select"}]
["Sch XVII","Sovency Analysis",null,"Type of Entity - 13",null,null,null,null,{"$f":"'Schedule XVII'!D23","v":"Select"}]
["Sch XVII","Sovency Analysis",null,"Type of Entity - 14",null,null,null,null,{"$f":"'Schedule XVII'!D24","v":"Select"}]
["Sch XVII","Sovency Analysis",null,"Type of Entity - 15",null,null,null,null,{"$f":"'Schedule XVII'!D25","v":"Select"}]
["Sch XVII","Sovency Analysis",null,"Type of Entity - 16",null,null,null,null,{"$f":"'Schedule XVII'!D26","v":"Select"}]
["Sch XVII","Sovency Analysis",null,"Type of Entity - 17",null,null,null,null,{"$f":"'Schedule XVII'!D27","v":"Select"}]
["Sch XVII","Sovency Analysis",null,"Type of Entity - 18",null,null,null,null,{"$f":"'Schedule XVII'!D28","v":"Select"}]
["Sch XVII","Sovency Analysis",null,"Type of Entity - 19",null,null,null,null,{"$f":"'Schedule XVII'!D29","v":"Select"}]
["Sch XVII","Sovency Analysis",null,"Type of Entity - 20",null,null,null,null,{"$f":"'Schedule XVII'!D30","v":"Select"}]
["Sch XVII","Sovency Analysis",null,"Type of Entity - 21",null,null,null,null,{"$f":"'Schedule XVII'!D31","v":"Select"}]
["Sch XVII","Sovency Analysis",null,"Type of Entity - 22",null,null,null,null,{"$f":"'Schedule XVII'!D32","v":"Select"}]
["Sch XVII","Sovency Analysis",null,"Type of Entity - 23",null,null,null,null,{"$f":"'Schedule XVII'!D33","v":"Select"}]
["Sch XVII","Sovency Analysis",null,"Type of Entity - 24",null,null,null,null,{"$f":"'Schedule XVII'!D34","v":"Select"}]
["Sch XVII","Sovency Analysis",null,"Type of Entity - 25",null,null,null,null,{"$f":"'Schedule XVII'!D35","v":"Select"}]
["Sch XVII","Sovency Analysis",null,"Type of Entity - 26",null,null,null,null,{"$f":"'Schedule XVII'!D36","v":"Select"}]
["Sch XVII","Sovency Analysis",null,"Type of Entity - 27",null,null,null,null,{"$f":"'Schedule XVII'!D37","v":"Select"}]
["Sch XVII","Sovency Analysis",null,"Type of Entity - 28",null,null,null,null,{"$f":"'Schedule XVII'!D38","v":"Select"}]
["Sch XVII","Sovency Analysis",null,"Type of Entity - 29",null,null,null,null,{"$f":"'Schedule XVII'!D39","v":"Select"}]
["Sch XVII","Sovency Analysis",null,"Type of Entity - 30",null,null,null,null,{"$f":"'Schedule XVII'!D40","v":"Select"}]
["Sch XVII","Sovency Analysis",null,"% Ownership of Entity - 1",null,null,null,null,{"$f":"'Schedule XVII'!E11","v":0}]
["Sch XVII","Sovency Analysis",null,"% Ownership of Entity - 2",null,null,null,null,{"$f":"'Schedule XVII'!E12","v":0}]
["Sch XVII","Sovency Analysis",null,"% Ownership of Entity - 3",null,null,null,null,{"$f":"'Schedule XVII'!E13","v":0}]
["Sch XVII","Sovency Analysis",null,"% Ownership of Entity - 4",null,null,null,null,{"$f":"'Schedule XVII'!E14","v":0}]
["Sch XVII","Sovency Analysis",null,"% Ownership of Entity - 5",null,null,null,null,{"$f":"'Schedule XVII'!E15","v":0}]
["Sch XVII","Sovency Analysis",null,"% Ownership of Entity - 6",null,null,null,null,{"$f":"'Schedule XVII'!E16","v":0}]
["Sch XVII","Sovency Analysis",null,"% Ownership of Entity - 7",null,null,null,null,{"$f":"'Schedule XVII'!E17","v":0}]
["Sch XVII","Sovency Analysis",null,"% Ownership of Entity - 8",null,null,null,null,{"$f":"'Schedule XVII'!E18","v":0}]
["Sch XVII","Sovency Analysis",null,"% Ownership of Entity - 9",null,null,null,null,{"$f":"'Schedule XVII'!E19","v":0}]
["Sch XVII","Sovency Analysis",null,"% Ownership of Entity - 10",null,null,null,null,{"$f":"'Schedule XVII'!E20","v":0}]
["Sch XVII","Sovency Analysis",null,"% Ownership of Entity - 11",null,null,null,null,{"$f":"'Schedule XVII'!E21","v":0}]
["Sch XVII","Sovency Analysis",null,"% Ownership of Entity - 12",null,null,null,null,{"$f":"'Schedule XVII'!E22","v":0}]
["Sch XVII","Sovency Analysis",null,"% Ownership of Entity - 13",null,null,null,null,{"$f":"'Schedule XVII'!E23","v":0}]
["Sch XVII","Sovency Analysis",null,"% Ownership of Entity - 14",null,null,null,null,{"$f":"'Schedule XVII'!E24","v":0}]
["Sch XVII","Sovency Analysis",null,"% Ownership of Entity - 15",null,null,null,null,{"$f":"'Schedule XVII'!E25","v":0}]
["Sch XVII","Sovency Analysis",null,"% Ownership of Entity - 16",null,null,null,null,{"$f":"'Schedule XVII'!E26","v":0}]
["Sch XVII","Sovency Analysis",null,"% Ownership of Entity - 17",null,null,null,null,{"$f":"'Schedule XVII'!E27","v":0}]
["Sch XVII","Sovency Analysis",null,"% Ownership of Entity - 18",null,null,null,null,{"$f":"'Schedule XVII'!E28","v":0}]
["Sch XVII","Sovency Analysis",null,"% Ownership of Entity - 19",null,null,null,null,{"$f":"'Schedule XVII'!E29","v":0}]
["Sch XVII","Sovency Analysis",null,"% Ownership of Entity - 20",null,null,null,null,{"$f":"'Schedule XVII'!E30","v":0}]
["Sch XVII","Sovency Analysis",null,"% Ownership of Entity - 21",null,null,null,null,{"$f":"'Schedule XVII'!E31","v":0}]
["Sch XVII","Sovency Analysis",null,"% Ownership of Entity - 22",null,null,null,null,{"$f":"'Schedule XVII'!E32","v":0}]
["Sch XVII","Sovency Analysis",null,"% Ownership of Entity - 23",null,null,null,null,{"$f":"'Schedule XVII'!E33","v":0}]
["Sch XVII","Sovency Analysis",null,"% Ownership of Entity - 24",null,null,null,null,{"$f":"'Schedule XVII'!E34","v":0}]
["Sch XVII","Sovency Analysis",null,"% Ownership of Entity - 25",null,null,null,null,{"$f":"'Schedule XVII'!E35","v":0}]
["Sch XVII","Sovency Analysis",null,"% Ownership of Entity - 26",null,null,null,null,{"$f":"'Schedule XVII'!E36","v":0}]
["Sch XVII","Sovency Analysis",null,"% Ownership of Entity - 27",null,null,null,null,{"$f":"'Schedule XVII'!E37","v":0}]
["Sch XVII","Sovency Analysis",null,"% Ownership of Entity - 28",null,null,null,null,{"$f":"'Schedule XVII'!E38","v":0}]
["Sch XVII","Sovency Analysis",null,"% Ownership of Entity - 29",null,null,null,null,{"$f":"'Schedule XVII'!E39","v":0}]
["Sch XVII","Sovency Analysis",null,"% Ownership of Entity - 30",null,null,null,null,{"$f":"'Schedule XVII'!E40","v":0}]
["Sch XVII","Sovency Analysis",null,"GPW of Entity - 1",null,null,null,null,{"$f":"'Schedule XVII'!F11","v":0}]
["Sch XVII","Sovency Analysis",null,"GPW of Entity - 2",null,null,null,null,{"$f":"'Schedule XVII'!F12","v":0}]
["Sch XVII","Sovency Analysis",null,"GPW of Entity - 3",null,null,null,null,{"$f":"'Schedule XVII'!F13","v":0}]
["Sch XVII","Sovency Analysis",null,"GPW of Entity - 4",null,null,null,null,{"$f":"'Schedule XVII'!F14","v":0}]
["Sch XVII","Sovency Analysis",null,"GPW of Entity - 5",null,null,null,null,{"$f":"'Schedule XVII'!F15","v":0}]
["Sch XVII","Sovency Analysis",null,"GPW of Entity - 6",null,null,null,null,{"$f":"'Schedule XVII'!F16","v":0}]
["Sch XVII","Sovency Analysis",null,"GPW of Entity - 7",null,null,null,null,{"$f":"'Schedule XVII'!F17","v":0}]
["Sch XVII","Sovency Analysis",null,"GPW of Entity - 8",null,null,null,null,{"$f":"'Schedule XVII'!F18","v":0}]
["Sch XVII","Sovency Analysis",null,"GPW of Entity - 9",null,null,null,null,{"$f":"'Schedule XVII'!F19","v":0}]
["Sch XVII","Sovency Analysis",null,"GPW of Entity - 10",null,null,null,null,{"$f":"'Schedule XVII'!F20","v":0}]
["Sch XVII","Sovency Analysis",null,"GPW of Entity - 11",null,null,null,null,{"$f":"'Schedule XVII'!F21","v":0}]
["Sch XVII","Sovency Analysis",null,"GPW of Entity - 12",null,null,null,null,{"$f":"'Schedule XVII'!F22","v":0}]
["Sch XVII","Sovency Analysis",null,"GPW of Entity - 13",null,null,null,null,{"$f":"'Schedule XVII'!F23","v":0}]
["Sch XVII","Sovency Analysis",null,"GPW of Entity - 14",null,null,null,null,{"$f":"'Schedule XVII'!F24","v":0}]
["Sch XVII","Sovency Analysis",null,"GPW of Entity - 15",null,null,null,null,{"$f":"'Schedule XVII'!F25","v":0}]
["Sch XVII","Sovency Analysis",null,"GPW of Entity - 16",null,null,null,null,{"$f":"'Schedule XVII'!F26","v":0}]
["Sch XVII","Sovency Analysis",null,"GPW of Entity - 17",null,null,null,null,{"$f":"'Schedule XVII'!F27","v":0}]
["Sch XVII","Sovency Analysis",null,"GPW of Entity - 18",null,null,null,null,{"$f":"'Schedule XVII'!F28","v":0}]
["Sch XVII","Sovency Analysis",null,"GPW of Entity - 19",null,null,null,null,{"$f":"'Schedule XVII'!F29","v":0}]
["Sch XVII","Sovency Analysis",null,"GPW of Entity - 20",null,null,null,null,{"$f":"'Schedule XVII'!F30","v":0}]
["Sch XVII","Sovency Analysis",null,"GPW of Entity - 21",null,null,null,null,{"$f":"'Schedule XVII'!F31","v":0}]
["Sch XVII","Sovency Analysis",null,"GPW of Entity - 22",null,null,null,null,{"$f":"'Schedule XVII'!F32","v":0}]
["Sch XVII","Sovency Analysis",null,"GPW of Entity - 23",null,null,null,null,{"$f":"'Schedule XVII'!F33","v":0}]
["Sch XVII","Sovency Analysis",null,"GPW of Entity - 24",null,null,null,null,{"$f":"'Schedule XVII'!F34","v":0}]
["Sch XVII","Sovency Analysis",null,"GPW of Entity - 25",null,null,null,null,{"$f":"'Schedule XVII'!F35","v":0}]
["Sch XVII","Sovency Analysis",null,"GPW of Entity - 26",null,null,null,null,{"$f":"'Schedule XVII'!F36","v":0}]
["Sch XVII","Sovency Analysis",null,"GPW of Entity - 27",null,null,null,null,{"$f":"'Schedule XVII'!F37","v":0}]
["Sch XVII","Sovency Analysis",null,"GPW of Entity - 28",null,null,null,null,{"$f":"'Schedule XVII'!F38","v":0}]
["Sch XVII","Sovency Analysis",null,"GPW of Entity - 29",null,null,null,null,{"$f":"'Schedule XVII'!F39","v":0}]
["Sch XVII","Sovency Analysis",null,"GPW of Entity - 30",null,null,null,null,{"$f":"'Schedule XVII'!F40","v":0}]
["Sch XVII","Sovency Analysis",null,"Total GPW",null,null,null,null,{"$f":"'Schedule XVII'!F211","v":0}]
["Sch XVII","Sovency Analysis",null,"NPW of Entity - 1",null,null,null,null,{"$f":"'Schedule XVII'!G11","v":0}]
["Sch XVII","Sovency Analysis",null,"NPW of Entity - 2",null,null,null,null,{"$f":"'Schedule XVII'!G12","v":0}]
["Sch XVII","Sovency Analysis",null,"NPW of Entity - 3",null,null,null,null,{"$f":"'Schedule XVII'!G13","v":0}]
["Sch XVII","Sovency Analysis",null,"NPW of Entity - 4",null,null,null,null,{"$f":"'Schedule XVII'!G14","v":0}]
["Sch XVII","Sovency Analysis",null,"NPW of Entity - 5",null,null,null,null,{"$f":"'Schedule XVII'!G15","v":0}]
["Sch XVII","Sovency Analysis",null,"NPW of Entity - 6",null,null,null,null,{"$f":"'Schedule XVII'!G16","v":0}]
["Sch XVII","Sovency Analysis",null,"NPW of Entity - 7",null,null,null,null,{"$f":"'Schedule XVII'!G17","v":0}]
["Sch XVII","Sovency Analysis",null,"NPW of Entity - 8",null,null,null,null,{"$f":"'Schedule XVII'!G18","v":0}]
["Sch XVII","Sovency Analysis",null,"NPW of Entity - 9",null,null,null,null,{"$f":"'Schedule XVII'!G19","v":0}]
["Sch XVII","Sovency Analysis",null,"NPW of Entity - 10",null,null,null,null,{"$f":"'Schedule XVII'!G20","v":0}]
["Sch XVII","Sovency Analysis",null,"NPW of Entity - 11",null,null,null,null,{"$f":"'Schedule XVII'!G21","v":0}]
["Sch XVII","Sovency Analysis",null,"NPW of Entity - 12",null,null,null,null,{"$f":"'Schedule XVII'!G22","v":0}]
["Sch XVII","Sovency Analysis",null,"NPW of Entity - 13",null,null,null,null,{"$f":"'Schedule XVII'!G23","v":0}]
["Sch XVII","Sovency Analysis",null,"NPW of Entity - 14",null,null,null,null,{"$f":"'Schedule XVII'!G24","v":0}]
["Sch XVII","Sovency Analysis",null,"NPW of Entity - 15",null,null,null,null,{"$f":"'Schedule XVII'!G25","v":0}]
["Sch XVII","Sovency Analysis",null,"NPW of Entity - 16",null,null,null,null,{"$f":"'Schedule XVII'!G26","v":0}]
["Sch XVII","Sovency Analysis",null,"NPW of Entity - 17",null,null,null,null,{"$f":"'Schedule XVII'!G27","v":0}]
["Sch XVII","Sovency Analysis",null,"NPW of Entity - 18",null,null,null,null,{"$f":"'Schedule XVII'!G28","v":0}]
["Sch XVII","Sovency Analysis",null,"NPW of Entity - 19",null,null,null,null,{"$f":"'Schedule XVII'!G29","v":0}]
["Sch XVII","Sovency Analysis",null,"NPW of Entity - 20",null,null,null,null,{"$f":"'Schedule XVII'!G30","v":0}]
["Sch XVII","Sovency Analysis",null,"NPW of Entity - 21",null,null,null,null,{"$f":"'Schedule XVII'!G31","v":0}]
["Sch XVII","Sovency Analysis",null,"NPW of Entity - 22",null,null,null,null,{"$f":"'Schedule XVII'!G32","v":0}]
["Sch XVII","Sovency Analysis",null,"NPW of Entity - 23",null,null,null,null,{"$f":"'Schedule XVII'!G33","v":0}]
["Sch XVII","Sovency Analysis",null,"NPW of Entity - 24",null,null,null,null,{"$f":"'Schedule XVII'!G34","v":0}]
["Sch XVII","Sovency Analysis",null,"NPW of Entity - 25",null,null,null,null,{"$f":"'Schedule XVII'!G35","v":0}]
["Sch XVII","Sovency Analysis",null,"NPW of Entity - 26",null,null,null,null,{"$f":"'Schedule XVII'!G36","v":0}]
["Sch XVII","Sovency Analysis",null,"NPW of Entity - 27",null,null,null,null,{"$f":"'Schedule XVII'!G37","v":0}]
["Sch XVII","Sovency Analysis",null,"NPW of Entity - 28",null,null,null,null,{"$f":"'Schedule XVII'!G38","v":0}]
["Sch XVII","Sovency Analysis",null,"NPW of Entity - 29",null,null,null,null,{"$f":"'Schedule XVII'!G39","v":0}]
["Sch XVII","Sovency Analysis",null,"NPW of Entity - 30",null,null,null,null,{"$f":"'Schedule XVII'!G40","v":0}]
["Sch XVII","Sovency Analysis",null,"Total NPW",null,null,null,null,{"$f":"'Schedule XVII'!G211","v":0}]
["Sch XVII","Sovency Analysis",null,"Total Assets of Entity - 1",null,null,null,null,{"$f":"'Schedule XVII'!H11","v":0}]
["Sch XVII","Sovency Analysis",null,"Total Assets of Entity - 2",null,null,null,null,{"$f":"'Schedule XVII'!H12","v":0}]
["Sch XVII","Sovency Analysis",null,"Total Assets of Entity - 3",null,null,null,null,{"$f":"'Schedule XVII'!H13","v":0}]
["Sch XVII","Sovency Analysis",null,"Total Assets of Entity - 4",null,null,null,null,{"$f":"'Schedule XVII'!H14","v":0}]
["Sch XVII","Sovency Analysis",null,"Total Assets of Entity - 5",null,null,null,null,{"$f":"'Schedule XVII'!H15","v":0}]
["Sch XVII","Sovency Analysis",null,"Total Assets of Entity - 6",null,null,null,null,{"$f":"'Schedule XVII'!H16","v":0}]
["Sch XVII","Sovency Analysis",null,"Total Assets of Entity - 7",null,null,null,null,{"$f":"'Schedule XVII'!H17","v":0}]
["Sch XVII","Sovency Analysis",null,"Total Assets of Entity - 8",null,null,null,null,{"$f":"'Schedule XVII'!H18","v":0}]
["Sch XVII","Sovency Analysis",null,"Total Assets of Entity - 9",null,null,null,null,{"$f":"'Schedule XVII'!H19","v":0}]
["Sch XVII","Sovency Analysis",null,"Total Assets of Entity - 10",null,null,null,null,{"$f":"'Schedule XVII'!H20","v":0}]
["Sch XVII","Sovency Analysis",null,"Total Assets of Entity - 11",null,null,null,null,{"$f":"'Schedule XVII'!H21","v":0}]
["Sch XVII","Sovency Analysis",null,"Total Assets of Entity - 12",null,null,null,null,{"$f":"'Schedule XVII'!H22","v":0}]
["Sch XVII","Sovency Analysis",null,"Total Assets of Entity - 13",null,null,null,null,{"$f":"'Schedule XVII'!H23","v":0}]
["Sch XVII","Sovency Analysis",null,"Total Assets of Entity - 14",null,null,null,null,{"$f":"'Schedule XVII'!H24","v":0}]
["Sch XVII","Sovency Analysis",null,"Total Assets of Entity - 15",null,null,null,null,{"$f":"'Schedule XVII'!H25","v":0}]
["Sch XVII","Sovency Analysis",null,"Total Assets of Entity - 16",null,null,null,null,{"$f":"'Schedule XVII'!H26","v":0}]
["Sch XVII","Sovency Analysis",null,"Total Assets of Entity - 17",null,null,null,null,{"$f":"'Schedule XVII'!H27","v":0}]
["Sch XVII","Sovency Analysis",null,"Total Assets of Entity - 18",null,null,null,null,{"$f":"'Schedule XVII'!H28","v":0}]
["Sch XVII","Sovency Analysis",null,"Total Assets of Entity - 19",null,null,null,null,{"$f":"'Schedule XVII'!H29","v":0}]
["Sch XVII","Sovency Analysis",null,"Total Assets of Entity - 20",null,null,null,null,{"$f":"'Schedule XVII'!H30","v":0}]
["Sch XVII","Sovency Analysis",null,"Total Assets of Entity - 21",null,null,null,null,{"$f":"'Schedule XVII'!H31","v":0}]
["Sch XVII","Sovency Analysis",null,"Total Assets of Entity - 22",null,null,null,null,{"$f":"'Schedule XVII'!H32","v":0}]
["Sch XVII","Sovency Analysis",null,"Total Assets of Entity - 23",null,null,null,null,{"$f":"'Schedule XVII'!H33","v":0}]
["Sch XVII","Sovency Analysis",null,"Total Assets of Entity - 24",null,null,null,null,{"$f":"'Schedule XVII'!H34","v":0}]
["Sch XVII","Sovency Analysis",null,"Total Assets of Entity - 25",null,null,null,null,{"$f":"'Schedule XVII'!H35","v":0}]
["Sch XVII","Sovency Analysis",null,"Total Assets of Entity - 26",null,null,null,null,{"$f":"'Schedule XVII'!H36","v":0}]
["Sch XVII","Sovency Analysis",null,"Total Assets of Entity - 27",null,null,null,null,{"$f":"'Schedule XVII'!H37","v":0}]
["Sch XVII","Sovency Analysis",null,"Total Assets of Entity - 28",null,null,null,null,{"$f":"'Schedule XVII'!H38","v":0}]
["Sch XVII","Sovency Analysis",null,"Total Assets of Entity - 29",null,null,null,null,{"$f":"'Schedule XVII'!H39","v":0}]
["Sch XVII","Sovency Analysis",null,"Total Assets of Entity - 30",null,null,null,null,{"$f":"'Schedule XVII'!H40","v":0}]
["Sch XVII","Sovency Analysis",null,"Total Assets",null,null,null,null,{"$f":"'Schedule XVII'!H211","v":0}]
["Sch XVII","Sovency Analysis",null,"Net Assets of Entity - 1",null,null,null,null,{"$f":"'Schedule XVII'!I11","v":0}]
["Sch XVII","Sovency Analysis",null,"Net Assets of Entity - 2",null,null,null,null,{"$f":"'Schedule XVII'!I12","v":0}]
["Sch XVII","Sovency Analysis",null,"Net Assets of Entity - 3",null,null,null,null,{"$f":"'Schedule XVII'!I13","v":0}]
["Sch XVII","Sovency Analysis",null,"Net Assets of Entity - 4",null,null,null,null,{"$f":"'Schedule XVII'!I14","v":0}]
["Sch XVII","Sovency Analysis",null,"Net Assets of Entity - 5",null,null,null,null,{"$f":"'Schedule XVII'!I15","v":0}]
["Sch XVII","Sovency Analysis",null,"Net Assets of Entity - 6",null,null,null,null,{"$f":"'Schedule XVII'!I16","v":0}]
["Sch XVII","Sovency Analysis",null,"Net Assets of Entity - 7",null,null,null,null,{"$f":"'Schedule XVII'!I17","v":0}]
["Sch XVII","Sovency Analysis",null,"Net Assets of Entity - 8",null,null,null,null,{"$f":"'Schedule XVII'!I18","v":0}]
["Sch XVII","Sovency Analysis",null,"Net Assets of Entity - 9",null,null,null,null,{"$f":"'Schedule XVII'!I19","v":0}]
["Sch XVII","Sovency Analysis",null,"Net Assets of Entity - 10",null,null,null,null,{"$f":"'Schedule XVII'!I20","v":0}]
["Sch XVII","Sovency Analysis",null,"Net Assets of Entity - 11",null,null,null,null,{"$f":"'Schedule XVII'!I21","v":0}]
["Sch XVII","Sovency Analysis",null,"Net Assets of Entity - 12",null,null,null,null,{"$f":"'Schedule XVII'!I22","v":0}]
["Sch XVII","Sovency Analysis",null,"Net Assets of Entity - 13",null,null,null,null,{"$f":"'Schedule XVII'!I23","v":0}]
["Sch XVII","Sovency Analysis",null,"Net Assets of Entity - 14",null,null,null,null,{"$f":"'Schedule XVII'!I24","v":0}]
["Sch XVII","Sovency Analysis",null,"Net Assets of Entity - 15",null,null,null,null,{"$f":"'Schedule XVII'!I25","v":0}]
["Sch XVII","Sovency Analysis",null,"Net Assets of Entity - 16",null,null,null,null,{"$f":"'Schedule XVII'!I26","v":0}]
["Sch XVII","Sovency Analysis",null,"Net Assets of Entity - 17",null,null,null,null,{"$f":"'Schedule XVII'!I27","v":0}]
["Sch XVII","Sovency Analysis",null,"Net Assets of Entity - 18",null,null,null,null,{"$f":"'Schedule XVII'!I28","v":0}]
["Sch XVII","Sovency Analysis",null,"Net Assets of Entity - 19",null,null,null,null,{"$f":"'Schedule XVII'!I29","v":0}]
["Sch XVII","Sovency Analysis",null,"Net Assets of Entity - 20",null,null,null,null,{"$f":"'Schedule XVII'!I30","v":0}]
["Sch XVII","Sovency Analysis",null,"Net Assets of Entity - 21",null,null,null,null,{"$f":"'Schedule XVII'!I31","v":0}]
["Sch XVII","Sovency Analysis",null,"Net Assets of Entity - 22",null,null,null,null,{"$f":"'Schedule XVII'!I32","v":0}]
["Sch XVII","Sovency Analysis",null,"Net Assets of Entity - 23",null,null,null,null,{"$f":"'Schedule XVII'!I33","v":0}]
["Sch XVII","Sovency Analysis",null,"Net Assets of Entity - 24",null,null,null,null,{"$f":"'Schedule XVII'!I34","v":0}]
["Sch XVII","Sovency Analysis",null,"Net Assets of Entity - 25",null,null,null,null,{"$f":"'Schedule XVII'!I35","v":0}]
["Sch XVII","Sovency Analysis",null,"Net Assets of Entity - 26",null,null,null,null,{"$f":"'Schedule XVII'!I36","v":0}]
["Sch XVII","Sovency Analysis",null,"Net Assets of Entity - 27",null,null,null,null,{"$f":"'Schedule XVII'!I37","v":0}]
["Sch XVII","Sovency Analysis",null,"Net Assets of Entity - 28",null,null,null,null,{"$f":"'Schedule XVII'!I38","v":0}]
["Sch XVII","Sovency Analysis",null,"Net Assets of Entity - 29",null,null,null,null,{"$f":"'Schedule XVII'!I39","v":0}]
["Sch XVII","Sovency Analysis",null,"Net Assets of Entity - 30",null,null,null,null,{"$f":"'Schedule XVII'!I40","v":0}]
["Sch XVII","Sovency Analysis",null,"Net Assets Total",null,null,null,null,{"$f":"'Schedule XVII'!I211","v":0}]
["Sch XVII","Sovency Analysis",null,"Regulatory Capital of Entity - 1",null,null,null,null,{"$f":"'Schedule XVII'!J11","v":0}]
["Sch XVII","Sovency Analysis",null,"Regulatory Capital of Entity - 2",null,null,null,null,{"$f":"'Schedule XVII'!J12","v":0}]
["Sch XVII","Sovency Analysis",null,"Regulatory Capital of Entity - 3",null,null,null,null,{"$f":"'Schedule XVII'!J13","v":0}]
["Sch XVII","Sovency Analysis",null,"Regulatory Capital of Entity - 4",null,null,null,null,{"$f":"'Schedule XVII'!J14","v":0}]
["Sch XVII","Sovency Analysis",null,"Regulatory Capital of Entity - 5",null,null,null,null,{"$f":"'Schedule XVII'!J15","v":0}]
["Sch XVII","Sovency Analysis",null,"Regulatory Capital of Entity - 6",null,null,null,null,{"$f":"'Schedule XVII'!J16","v":0}]
["Sch XVII","Sovency Analysis",null,"Regulatory Capital of Entity - 7",null,null,null,null,{"$f":"'Schedule XVII'!J17","v":0}]
["Sch XVII","Sovency Analysis",null,"Regulatory Capital of Entity - 8",null,null,null,null,{"$f":"'Schedule XVII'!J18","v":0}]
["Sch XVII","Sovency Analysis",null,"Regulatory Capital of Entity - 9",null,null,null,null,{"$f":"'Schedule XVII'!J19","v":0}]
["Sch XVII","Sovency Analysis",null,"Regulatory Capital of Entity - 10",null,null,null,null,{"$f":"'Schedule XVII'!J20","v":0}]
["Sch XVII","Sovency Analysis",null,"Regulatory Capital of Entity - 11",null,null,null,null,{"$f":"'Schedule XVII'!J21","v":0}]
["Sch XVII","Sovency Analysis",null,"Regulatory Capital of Entity - 12",null,null,null,null,{"$f":"'Schedule XVII'!J22","v":0}]
["Sch XVII","Sovency Analysis",null,"Regulatory Capital of Entity - 13",null,null,null,null,{"$f":"'Schedule XVII'!J23","v":0}]
["Sch XVII","Sovency Analysis",null,"Regulatory Capital of Entity - 14",null,null,null,null,{"$f":"'Schedule XVII'!J24","v":0}]
["Sch XVII","Sovency Analysis",null,"Regulatory Capital of Entity - 15",null,null,null,null,{"$f":"'Schedule XVII'!J25","v":0}]
["Sch XVII","Sovency Analysis",null,"Regulatory Capital of Entity - 16",null,null,null,null,{"$f":"'Schedule XVII'!J26","v":0}]
["Sch XVII","Sovency Analysis",null,"Regulatory Capital of Entity - 17",null,null,null,null,{"$f":"'Schedule XVII'!J27","v":0}]
["Sch XVII","Sovency Analysis",null,"Regulatory Capital of Entity - 18",null,null,null,null,{"$f":"'Schedule XVII'!J28","v":0}]
["Sch XVII","Sovency Analysis",null,"Regulatory Capital of Entity - 19",null,null,null,null,{"$f":"'Schedule XVII'!J29","v":0}]
["Sch XVII","Sovency Analysis",null,"Regulatory Capital of Entity - 20",null,null,null,null,{"$f":"'Schedule XVII'!J30","v":0}]
["Sch XVII","Sovency Analysis",null,"Regulatory Capital of Entity - 21",null,null,null,null,{"$f":"'Schedule XVII'!J31","v":0}]
["Sch XVII","Sovency Analysis",null,"Regulatory Capital of Entity - 22",null,null,null,null,{"$f":"'Schedule XVII'!J32","v":0}]
["Sch XVII","Sovency Analysis",null,"Regulatory Capital of Entity - 23",null,null,null,null,{"$f":"'Schedule XVII'!J33","v":0}]
["Sch XVII","Sovency Analysis",null,"Regulatory Capital of Entity - 24",null,null,null,null,{"$f":"'Schedule XVII'!J34","v":0}]
["Sch XVII","Sovency Analysis",null,"Regulatory Capital of Entity - 25",null,null,null,null,{"$f":"'Schedule XVII'!J35","v":0}]
["Sch XVII","Sovency Analysis",null,"Regulatory Capital of Entity - 26",null,null,null,null,{"$f":"'Schedule XVII'!J36","v":0}]
["Sch XVII","Sovency Analysis",null,"Regulatory Capital of Entity - 27",null,null,null,null,{"$f":"'Schedule XVII'!J37","v":0}]
["Sch XVII","Sovency Analysis",null,"Regulatory Capital of Entity - 28",null,null,null,null,{"$f":"'Schedule XVII'!J38","v":0}]
["Sch XVII","Sovency Analysis",null,"Regulatory Capital of Entity - 29",null,null,null,null,{"$f":"'Schedule XVII'!J39","v":0}]
["Sch XVII","Sovency Analysis",null,"Regulatory Capital of Entity - 30",null,null,null,null,{"$f":"'Schedule XVII'!J40","v":0}]
["Sch XVII","Sovency Analysis",null,"Regulatory Capital Total",null,null,null,null,{"$f":"'Schedule XVII'!J211","v":0}]
[]
["Sch XVIII","Ceded Reins",null,"# of Reinsurers",{"$f":"'Schedule XVIII'!E10","v":0},null,null,null,null,null,null,null,{"$f":"'Schedule XVIII (EBS)'!E10","v":0}]
["Sch XVIII","Ceded Reins",null,"Reinsurer Name - 1",{"$f":"'Schedule XVIII'!C14","v":0},null,null,null,null,null,null,null,{"$f":"'Schedule XVIII (EBS)'!C14","v":0}]
["Sch XVIII","Ceded Reins",null,"Reinsurer Name - 2",{"$f":"'Schedule XVIII'!C15","v":0},null,null,null,null,null,null,null,{"$f":"'Schedule XVIII (EBS)'!C15","v":0}]
["Sch XVIII","Ceded Reins",null,"Reinsurer Name - 3",{"$f":"'Schedule XVIII'!C16","v":0},null,null,null,null,null,null,null,{"$f":"'Schedule XVIII (EBS)'!C16","v":0}]
["Sch XVIII","Ceded Reins",null,"Reinsurer Name - 4",{"$f":"'Schedule XVIII'!C17","v":0},null,null,null,null,null,null,null,{"$f":"'Schedule XVIII (EBS)'!C17","v":0}]
["Sch XVIII","Ceded Reins",null,"Reinsurer Name - 5",{"$f":"'Schedule XVIII'!C18","v":0},null,null,null,null,null,null,null,{"$f":"'Schedule XVIII (EBS)'!C18","v":0}]
["Sch XVIII","Ceded Reins",null,"Reinsurer Name - 6",{"$f":"'Schedule XVIII'!C19","v":0},null,null,null,null,null,null,null,{"$f":"'Schedule XVIII (EBS)'!C19","v":0}]
["Sch XVIII","Ceded Reins",null,"Reinsurer Name - 7",{"$f":"'Schedule XVIII'!C20","v":0},null,null,null,null,null,null,null,{"$f":"'Schedule XVIII (EBS)'!C20","v":0}]
["Sch XVIII","Ceded Reins",null,"Reinsurer Name - 8",{"$f":"'Schedule XVIII'!C21","v":0},null,null,null,null,null,null,null,{"$f":"'Schedule XVIII (EBS)'!C21","v":0}]
["Sch XVIII","Ceded Reins",null,"Reinsurer Name - 9",{"$f":"'Schedule XVIII'!C22","v":0},null,null,null,null,null,null,null,{"$f":"'Schedule XVIII (EBS)'!C22","v":0}]
["Sch XVIII","Ceded Reins",null,"Reinsurer Name - 10",{"$f":"'Schedule XVIII'!C23","v":0},null,null,null,null,null,null,null,{"$f":"'Schedule XVIII (EBS)'!C23","v":0}]
["Sch XVIII","Ceded Reins",null,"Reinsurer Name - 11",{"$f":"'Schedule XVIII'!C24","v":0},null,null,null,null,null,null,null,{"$f":"'Schedule XVIII (EBS)'!C24","v":0}]
["Sch XVIII","Ceded Reins",null,"Reinsurer Name - 12",{"$f":"'Schedule XVIII'!C25","v":0},null,null,null,null,null,null,null,{"$f":"'Schedule XVIII (EBS)'!C25","v":0}]
["Sch XVIII","Ceded Reins",null,"Reinsurer Name - 13",{"$f":"'Schedule XVIII'!C26","v":0},null,null,null,null,null,null,null,{"$f":"'Schedule XVIII (EBS)'!C26","v":0}]
["Sch XVIII","Ceded Reins",null,"Reinsurer Name - 14",{"$f":"'Schedule XVIII'!C27","v":0},null,null,null,null,null,null,null,{"$f":"'Schedule XVIII (EBS)'!C27","v":0}]
["Sch XVIII","Ceded Reins",null,"Reinsurer Name - 15",{"$f":"'Schedule XVIII'!C28","v":0},null,null,null,null,null,null,null,{"$f":"'Schedule XVIII (EBS)'!C28","v":0}]
["Sch XVIII","Ceded Reins",null,"Reinsurer Name - 16",{"$f":"'Schedule XVIII'!C29","v":0},null,null,null,null,null,null,null,{"$f":"'Schedule XVIII (EBS)'!C29","v":0}]
["Sch XVIII","Ceded Reins",null,"Reinsurer Name - 17",{"$f":"'Schedule XVIII'!C30","v":0},null,null,null,null,null,null,null,{"$f":"'Schedule XVIII (EBS)'!C30","v":0}]
["Sch XVIII","Ceded Reins",null,"Reinsurer Name - 18",{"$f":"'Schedule XVIII'!C31","v":0},null,null,null,null,null,null,null,{"$f":"'Schedule XVIII (EBS)'!C31","v":0}]
["Sch XVIII","Ceded Reins",null,"Reinsurer Name - 19",{"$f":"'Schedule XVIII'!C32","v":0},null,null,null,null,null,null,null,{"$f":"'Schedule XVIII (EBS)'!C32","v":0}]
["Sch XVIII","Ceded Reins",null,"Reinsurer Name - 20",{"$f":"'Schedule XVIII'!C33","v":0},null,null,null,null,null,null,null,{"$f":"'Schedule XVIII (EBS)'!C33","v":0}]
["Sch XVIII","Ceded Reins",null,"Reinsurer Name - 21",{"$f":"'Schedule XVIII'!C34","v":0},null,null,null,null,null,null,null,{"$f":"'Schedule XVIII (EBS)'!C34","v":0}]
["Sch XVIII","Ceded Reins",null,"Reinsurer Name - 22",{"$f":"'Schedule XVIII'!C35","v":0},null,null,null,null,null,null,null,{"$f":"'Schedule XVIII (EBS)'!C35","v":0}]
["Sch XVIII","Ceded Reins",null,"Reinsurer Name - 23",{"$f":"'Schedule XVIII'!C36","v":0},null,null,null,null,null,null,null,{"$f":"'Schedule XVIII (EBS)'!C36","v":0}]
["Sch XVIII","Ceded Reins",null,"Reinsurer Name - 24",{"$f":"'Schedule XVIII'!C37","v":0},null,null,null,null,null,null,null,{"$f":"'Schedule XVIII (EBS)'!C37","v":0}]
["Sch XVIII","Ceded Reins",null,"Reinsurer Name - 25",{"$f":"'Schedule XVIII'!C38","v":0},null,null,null,null,null,null,null,{"$f":"'Schedule XVIII (EBS)'!C38","v":0}]
["Sch XVIII","Ceded Reins",null,"Reinsurer Name - 26",{"$f":"'Schedule XVIII'!C39","v":0},null,null,null,null,null,null,null,{"$f":"'Schedule XVIII (EBS)'!C39","v":0}]
["Sch XVIII","Ceded Reins",null,"Reinsurer Name - 27",{"$f":"'Schedule XVIII'!C40","v":0},null,null,null,null,null,null,null,{"$f":"'Schedule XVIII (EBS)'!C40","v":0}]
["Sch XVIII","Ceded Reins",null,"Reinsurer Name - 28",{"$f":"'Schedule XVIII'!C41","v":0},null,null,null,null,null,null,null,{"$f":"'Schedule XVIII (EBS)'!C41","v":0}]
["Sch XVIII","Ceded Reins",null,"Reinsurer Name - 29",{"$f":"'Schedule XVIII'!C42","v":0},null,null,null,null,null,null,null,{"$f":"'Schedule XVIII (EBS)'!C42","v":0}]
["Sch XVIII","Ceded Reins",null,"Reinsurer Name - 30",{"$f":"'Schedule XVIII'!C43","v":0},null,null,null,null,null,null,null,{"$f":"'Schedule XVIII (EBS)'!C43","v":0}]
["Sch XVIII","Ceded Reins",null,"Reinsurer BSCR Rating - 1",{"$f":"'Schedule XVIII'!E14","v":"Select"},null,null,null,null,null,null,null,{"$f":"'Schedule XVIII (EBS)'!E14","v":"Select"}]
["Sch XVIII","Ceded Reins",null,"Reinsurer BSCR Rating - 2",{"$f":"'Schedule XVIII'!E15","v":"Select"},null,null,null,null,null,null,null,{"$f":"'Schedule XVIII (EBS)'!E15","v":"Select"}]
["Sch XVIII","Ceded Reins",null,"Reinsurer BSCR Rating - 3",{"$f":"'Schedule XVIII'!E16","v":"Select"},null,null,null,null,null,null,null,{"$f":"'Schedule XVIII (EBS)'!E16","v":"Select"}]
["Sch XVIII","Ceded Reins",null,"Reinsurer BSCR Rating - 4",{"$f":"'Schedule XVIII'!E17","v":"Select"},null,null,null,null,null,null,null,{"$f":"'Schedule XVIII (EBS)'!E17","v":"Select"}]
["Sch XVIII","Ceded Reins",null,"Reinsurer BSCR Rating - 5",{"$f":"'Schedule XVIII'!E18","v":"Select"},null,null,null,null,null,null,null,{"$f":"'Schedule XVIII (EBS)'!E18","v":"Select"}]
["Sch XVIII","Ceded Reins",null,"Reinsurer BSCR Rating - 6",{"$f":"'Schedule XVIII'!E19","v":"Select"},null,null,null,null,null,null,null,{"$f":"'Schedule XVIII (EBS)'!E19","v":"Select"}]
["Sch XVIII","Ceded Reins",null,"Reinsurer BSCR Rating - 7",{"$f":"'Schedule XVIII'!E20","v":"Select"},null,null,null,null,null,null,null,{"$f":"'Schedule XVIII (EBS)'!E20","v":"Select"}]
["Sch XVIII","Ceded Reins",null,"Reinsurer BSCR Rating - 8",{"$f":"'Schedule XVIII'!E21","v":"Select"},null,null,null,null,null,null,null,{"$f":"'Schedule XVIII (EBS)'!E21","v":"Select"}]
["Sch XVIII","Ceded Reins",null,"Reinsurer BSCR Rating - 9",{"$f":"'Schedule XVIII'!E22","v":"Select"},null,null,null,null,null,null,null,{"$f":"'Schedule XVIII (EBS)'!E22","v":"Select"}]
["Sch XVIII","Ceded Reins",null,"Reinsurer BSCR Rating - 10",{"$f":"'Schedule XVIII'!E23","v":"Select"},null,null,null,null,null,null,null,{"$f":"'Schedule XVIII (EBS)'!E23","v":"Select"}]
["Sch XVIII","Ceded Reins",null,"Reinsurer BSCR Rating - 11",{"$f":"'Schedule XVIII'!E24","v":"Select"},null,null,null,null,null,null,null,{"$f":"'Schedule XVIII (EBS)'!E24","v":"Select"}]
["Sch XVIII","Ceded Reins",null,"Reinsurer BSCR Rating - 12",{"$f":"'Schedule XVIII'!E25","v":"Select"},null,null,null,null,null,null,null,{"$f":"'Schedule XVIII (EBS)'!E25","v":"Select"}]
["Sch XVIII","Ceded Reins",null,"Reinsurer BSCR Rating - 13",{"$f":"'Schedule XVIII'!E26","v":"Select"},null,null,null,null,null,null,null,{"$f":"'Schedule XVIII (EBS)'!E26","v":"Select"}]
["Sch XVIII","Ceded Reins",null,"Reinsurer BSCR Rating - 14",{"$f":"'Schedule XVIII'!E27","v":"Select"},null,null,null,null,null,null,null,{"$f":"'Schedule XVIII (EBS)'!E27","v":"Select"}]
["Sch XVIII","Ceded Reins",null,"Reinsurer BSCR Rating - 15",{"$f":"'Schedule XVIII'!E28","v":"Select"},null,null,null,null,null,null,null,{"$f":"'Schedule XVIII (EBS)'!E28","v":"Select"}]
["Sch XVIII","Ceded Reins",null,"Reinsurer BSCR Rating - 16",{"$f":"'Schedule XVIII'!E29","v":"Select"},null,null,null,null,null,null,null,{"$f":"'Schedule XVIII (EBS)'!E29","v":"Select"}]
["Sch XVIII","Ceded Reins",null,"Reinsurer BSCR Rating - 17",{"$f":"'Schedule XVIII'!E30","v":"Select"},null,null,null,null,null,null,null,{"$f":"'Schedule XVIII (EBS)'!E30","v":"Select"}]
["Sch XVIII","Ceded Reins",null,"Reinsurer BSCR Rating - 18",{"$f":"'Schedule XVIII'!E31","v":"Select"},null,null,null,null,null,null,null,{"$f":"'Schedule XVIII (EBS)'!E31","v":"Select"}]
["Sch XVIII","Ceded Reins",null,"Reinsurer BSCR Rating - 19",{"$f":"'Schedule XVIII'!E32","v":"Select"},null,null,null,null,null,null,null,{"$f":"'Schedule XVIII (EBS)'!E32","v":"Select"}]
["Sch XVIII","Ceded Reins",null,"Reinsurer BSCR Rating - 20",{"$f":"'Schedule XVIII'!E33","v":"Select"},null,null,null,null,null,null,null,{"$f":"'Schedule XVIII (EBS)'!E33","v":"Select"}]
["Sch XVIII","Ceded Reins",null,"Reinsurer BSCR Rating - 21",{"$f":"'Schedule XVIII'!E34","v":"Select"},null,null,null,null,null,null,null,{"$f":"'Schedule XVIII (EBS)'!E34","v":"Select"}]
["Sch XVIII","Ceded Reins",null,"Reinsurer BSCR Rating - 22",{"$f":"'Schedule XVIII'!E35","v":"Select"},null,null,null,null,null,null,null,{"$f":"'Schedule XVIII (EBS)'!E35","v":"Select"}]
["Sch XVIII","Ceded Reins",null,"Reinsurer BSCR Rating - 23",{"$f":"'Schedule XVIII'!E36","v":"Select"},null,null,null,null,null,null,null,{"$f":"'Schedule XVIII (EBS)'!E36","v":"Select"}]
["Sch XVIII","Ceded Reins",null,"Reinsurer BSCR Rating - 24",{"$f":"'Schedule XVIII'!E37","v":"Select"},null,null,null,null,null,null,null,{"$f":"'Schedule XVIII (EBS)'!E37","v":"Select"}]
["Sch XVIII","Ceded Reins",null,"Reinsurer BSCR Rating - 25",{"$f":"'Schedule XVIII'!E38","v":"Select"},null,null,null,null,null,null,null,{"$f":"'Schedule XVIII (EBS)'!E38","v":"Select"}]
["Sch XVIII","Ceded Reins",null,"Reinsurer BSCR Rating - 26",{"$f":"'Schedule XVIII'!E39","v":"Select"},null,null,null,null,null,null,null,{"$f":"'Schedule XVIII (EBS)'!E39","v":"Select"}]
["Sch XVIII","Ceded Reins",null,"Reinsurer BSCR Rating - 27",{"$f":"'Schedule XVIII'!E40","v":"Select"},null,null,null,null,null,null,null,{"$f":"'Schedule XVIII (EBS)'!E40","v":"Select"}]
["Sch XVIII","Ceded Reins",null,"Reinsurer BSCR Rating - 28",{"$f":"'Schedule XVIII'!E41","v":"Select"},null,null,null,null,null,null,null,{"$f":"'Schedule XVIII (EBS)'!E41","v":"Select"}]
["Sch XVIII","Ceded Reins",null,"Reinsurer BSCR Rating - 29",{"$f":"'Schedule XVIII'!E42","v":"Select"},null,null,null,null,null,null,null,{"$f":"'Schedule XVIII (EBS)'!E42","v":"Select"}]
["Sch XVIII","Ceded Reins",null,"Reinsurer BSCR Rating - 30",{"$f":"'Schedule XVIII'!E43","v":"Select"},null,null,null,null,null,null,null,{"$f":"'Schedule XVIII (EBS)'!E43","v":"Select"}]
["Sch XVIII","Ceded Reins",null,"Reinsurer R/I Assets - 1",{"$f":"'Schedule XVIII'!G14","v":0},null,null,null,null,null,null,null,{"$f":"'Schedule XVIII (EBS)'!G14","v":0}]
["Sch XVIII","Ceded Reins",null,"Reinsurer R/I Assets - 2",{"$f":"'Schedule XVIII'!G15","v":0},null,null,null,null,null,null,null,{"$f":"'Schedule XVIII (EBS)'!G15","v":0}]
["Sch XVIII","Ceded Reins",null,"Reinsurer R/I Assets - 3",{"$f":"'Schedule XVIII'!G16","v":0},null,null,null,null,null,null,null,{"$f":"'Schedule XVIII (EBS)'!G16","v":0}]
["Sch XVIII","Ceded Reins",null,"Reinsurer R/I Assets - 4",{"$f":"'Schedule XVIII'!G17","v":0},null,null,null,null,null,null,null,{"$f":"'Schedule XVIII (EBS)'!G17","v":0}]
["Sch XVIII","Ceded Reins",null,"Reinsurer R/I Assets - 5",{"$f":"'Schedule XVIII'!G18","v":0},null,null,null,null,null,null,null,{"$f":"'Schedule XVIII (EBS)'!G18","v":0}]
["Sch XVIII","Ceded Reins",null,"Reinsurer R/I Assets - 6",{"$f":"'Schedule XVIII'!G19","v":0},null,null,null,null,null,null,null,{"$f":"'Schedule XVIII (EBS)'!G19","v":0}]
["Sch XVIII","Ceded Reins",null,"Reinsurer R/I Assets - 7",{"$f":"'Schedule XVIII'!G20","v":0},null,null,null,null,null,null,null,{"$f":"'Schedule XVIII (EBS)'!G20","v":0}]
["Sch XVIII","Ceded Reins",null,"Reinsurer R/I Assets - 8",{"$f":"'Schedule XVIII'!G21","v":0},null,null,null,null,null,null,null,{"$f":"'Schedule XVIII (EBS)'!G21","v":0}]
["Sch XVIII","Ceded Reins",null,"Reinsurer R/I Assets - 9",{"$f":"'Schedule XVIII'!G22","v":0},null,null,null,null,null,null,null,{"$f":"'Schedule XVIII (EBS)'!G22","v":0}]
["Sch XVIII","Ceded Reins",null,"Reinsurer R/I Assets - 10",{"$f":"'Schedule XVIII'!G23","v":0},null,null,null,null,null,null,null,{"$f":"'Schedule XVIII (EBS)'!G23","v":0}]
["Sch XVIII","Ceded Reins",null,"Reinsurer R/I Assets - 11",{"$f":"'Schedule XVIII'!G24","v":0},null,null,null,null,null,null,null,{"$f":"'Schedule XVIII (EBS)'!G24","v":0}]
["Sch XVIII","Ceded Reins",null,"Reinsurer R/I Assets - 12",{"$f":"'Schedule XVIII'!G25","v":0},null,null,null,null,null,null,null,{"$f":"'Schedule XVIII (EBS)'!G25","v":0}]
["Sch XVIII","Ceded Reins",null,"Reinsurer R/I Assets - 13",{"$f":"'Schedule XVIII'!G26","v":0},null,null,null,null,null,null,null,{"$f":"'Schedule XVIII (EBS)'!G26","v":0}]
["Sch XVIII","Ceded Reins",null,"Reinsurer R/I Assets - 14",{"$f":"'Schedule XVIII'!G27","v":0},null,null,null,null,null,null,null,{"$f":"'Schedule XVIII (EBS)'!G27","v":0}]
["Sch XVIII","Ceded Reins",null,"Reinsurer R/I Assets - 15",{"$f":"'Schedule XVIII'!G28","v":0},null,null,null,null,null,null,null,{"$f":"'Schedule XVIII (EBS)'!G28","v":0}]
["Sch XVIII","Ceded Reins",null,"Reinsurer R/I Assets - 16",{"$f":"'Schedule XVIII'!G29","v":0},null,null,null,null,null,null,null,{"$f":"'Schedule XVIII (EBS)'!G29","v":0}]
["Sch XVIII","Ceded Reins",null,"Reinsurer R/I Assets - 17",{"$f":"'Schedule XVIII'!G30","v":0},null,null,null,null,null,null,null,{"$f":"'Schedule XVIII (EBS)'!G30","v":0}]
["Sch XVIII","Ceded Reins",null,"Reinsurer R/I Assets - 18",{"$f":"'Schedule XVIII'!G31","v":0},null,null,null,null,null,null,null,{"$f":"'Schedule XVIII (EBS)'!G31","v":0}]
["Sch XVIII","Ceded Reins",null,"Reinsurer R/I Assets - 19",{"$f":"'Schedule XVIII'!G32","v":0},null,null,null,null,null,null,null,{"$f":"'Schedule XVIII (EBS)'!G32","v":0}]
["Sch XVIII","Ceded Reins",null,"Reinsurer R/I Assets - 20",{"$f":"'Schedule XVIII'!G33","v":0},null,null,null,null,null,null,null,{"$f":"'Schedule XVIII (EBS)'!G33","v":0}]
["Sch XVIII","Ceded Reins",null,"Reinsurer R/I Assets - 21",{"$f":"'Schedule XVIII'!G34","v":0},null,null,null,null,null,null,null,{"$f":"'Schedule XVIII (EBS)'!G34","v":0}]
["Sch XVIII","Ceded Reins",null,"Reinsurer R/I Assets - 22",{"$f":"'Schedule XVIII'!G35","v":0},null,null,null,null,null,null,null,{"$f":"'Schedule XVIII (EBS)'!G35","v":0}]
["Sch XVIII","Ceded Reins",null,"Reinsurer R/I Assets - 23",{"$f":"'Schedule XVIII'!G36","v":0},null,null,null,null,null,null,null,{"$f":"'Schedule XVIII (EBS)'!G36","v":0}]
["Sch XVIII","Ceded Reins",null,"Reinsurer R/I Assets - 24",{"$f":"'Schedule XVIII'!G37","v":0},null,null,null,null,null,null,null,{"$f":"'Schedule XVIII (EBS)'!G37","v":0}]
["Sch XVIII","Ceded Reins",null,"Reinsurer R/I Assets - 25",{"$f":"'Schedule XVIII'!G38","v":0},null,null,null,null,null,null,null,{"$f":"'Schedule XVIII (EBS)'!G38","v":0}]
["Sch XVIII","Ceded Reins",null,"Reinsurer R/I Assets - 26",{"$f":"'Schedule XVIII'!G39","v":0},null,null,null,null,null,null,null,{"$f":"'Schedule XVIII (EBS)'!G39","v":0}]
["Sch XVIII","Ceded Reins",null,"Reinsurer R/I Assets - 27",{"$f":"'Schedule XVIII'!G40","v":0},null,null,null,null,null,null,null,{"$f":"'Schedule XVIII (EBS)'!G40","v":0}]
["Sch XVIII","Ceded Reins",null,"Reinsurer R/I Assets - 28",{"$f":"'Schedule XVIII'!G41","v":0},null,null,null,null,null,null,null,{"$f":"'Schedule XVIII (EBS)'!G41","v":0}]
["Sch XVIII","Ceded Reins",null,"Reinsurer R/I Assets - 29",{"$f":"'Schedule XVIII'!G42","v":0},null,null,null,null,null,null,null,{"$f":"'Schedule XVIII (EBS)'!G42","v":0}]
["Sch XVIII","Ceded Reins",null,"Reinsurer R/I Assets - 30",{"$f":"'Schedule XVIII'!G43","v":0},null,null,null,null,null,null,null,{"$f":"'Schedule XVIII (EBS)'!G43","v":0}]
["Sch XVIII","Ceded Reins",null,"Reinsurer R/I Total - 30",{"$f":"'Schedule XVIII'!G54","v":0},null,null,null,null,null,null,null,{"$f":"'Schedule XVIII (EBS)'!G54","v":0}]
["Sch XVIII","Ceded Reins",null,"Reinsurer R/I Payable - 1",{"$f":"'Schedule XVIII'!I14","v":0},null,null,null,null,null,null,null,{"$f":"'Schedule XVIII (EBS)'!I14","v":0}]
["Sch XVIII","Ceded Reins",null,"Reinsurer R/I Payable - 2",{"$f":"'Schedule XVIII'!I15","v":0},null,null,null,null,null,null,null,{"$f":"'Schedule XVIII (EBS)'!I15","v":0}]
["Sch XVIII","Ceded Reins",null,"Reinsurer R/I Payable - 3",{"$f":"'Schedule XVIII'!I16","v":0},null,null,null,null,null,null,null,{"$f":"'Schedule XVIII (EBS)'!I16","v":0}]
["Sch XVIII","Ceded Reins",null,"Reinsurer R/I Payable - 4",{"$f":"'Schedule XVIII'!I17","v":0},null,null,null,null,null,null,null,{"$f":"'Schedule XVIII (EBS)'!I17","v":0}]
["Sch XVIII","Ceded Reins",null,"Reinsurer R/I Payable - 5",{"$f":"'Schedule XVIII'!I18","v":0},null,null,null,null,null,null,null,{"$f":"'Schedule XVIII (EBS)'!I18","v":0}]
["Sch XVIII","Ceded Reins",null,"Reinsurer R/I Payable - 6",{"$f":"'Schedule XVIII'!I19","v":0},null,null,null,null,null,null,null,{"$f":"'Schedule XVIII (EBS)'!I19","v":0}]
["Sch XVIII","Ceded Reins",null,"Reinsurer R/I Payable - 7",{"$f":"'Schedule XVIII'!I20","v":0},null,null,null,null,null,null,null,{"$f":"'Schedule XVIII (EBS)'!I20","v":0}]
["Sch XVIII","Ceded Reins",null,"Reinsurer R/I Payable - 8",{"$f":"'Schedule XVIII'!I21","v":0},null,null,null,null,null,null,null,{"$f":"'Schedule XVIII (EBS)'!I21","v":0}]
["Sch XVIII","Ceded Reins",null,"Reinsurer R/I Payable - 9",{"$f":"'Schedule XVIII'!I22","v":0},null,null,null,null,null,null,null,{"$f":"'Schedule XVIII (EBS)'!I22","v":0}]
["Sch XVIII","Ceded Reins",null,"Reinsurer R/I Payable - 10",{"$f":"'Schedule XVIII'!I23","v":0},null,null,null,null,null,null,null,{"$f":"'Schedule XVIII (EBS)'!I23","v":0}]
["Sch XVIII","Ceded Reins",null,"Reinsurer R/I Payable - 11",{"$f":"'Schedule XVIII'!I24","v":0},null,null,null,null,null,null,null,{"$f":"'Schedule XVIII (EBS)'!I24","v":0}]
["Sch XVIII","Ceded Reins",null,"Reinsurer R/I Payable - 12",{"$f":"'Schedule XVIII'!I25","v":0},null,null,null,null,null,null,null,{"$f":"'Schedule XVIII (EBS)'!I25","v":0}]
["Sch XVIII","Ceded Reins",null,"Reinsurer R/I Payable - 13",{"$f":"'Schedule XVIII'!I26","v":0},null,null,null,null,null,null,null,{"$f":"'Schedule XVIII (EBS)'!I26","v":0}]
["Sch XVIII","Ceded Reins",null,"Reinsurer R/I Payable - 14",{"$f":"'Schedule XVIII'!I27","v":0},null,null,null,null,null,null,null,{"$f":"'Schedule XVIII (EBS)'!I27","v":0}]
["Sch XVIII","Ceded Reins",null,"Reinsurer R/I Payable - 15",{"$f":"'Schedule XVIII'!I28","v":0},null,null,null,null,null,null,null,{"$f":"'Schedule XVIII (EBS)'!I28","v":0}]
["Sch XVIII","Ceded Reins",null,"Reinsurer R/I Payable - 16",{"$f":"'Schedule XVIII'!I29","v":0},null,null,null,null,null,null,null,{"$f":"'Schedule XVIII (EBS)'!I29","v":0}]
["Sch XVIII","Ceded Reins",null,"Reinsurer R/I Payable - 17",{"$f":"'Schedule XVIII'!I30","v":0},null,null,null,null,null,null,null,{"$f":"'Schedule XVIII (EBS)'!I30","v":0}]
["Sch XVIII","Ceded Reins",null,"Reinsurer R/I Payable - 18",{"$f":"'Schedule XVIII'!I31","v":0},null,null,null,null,null,null,null,{"$f":"'Schedule XVIII (EBS)'!I31","v":0}]
["Sch XVIII","Ceded Reins",null,"Reinsurer R/I Payable - 19",{"$f":"'Schedule XVIII'!I32","v":0},null,null,null,null,null,null,null,{"$f":"'Schedule XVIII (EBS)'!I32","v":0}]
["Sch XVIII","Ceded Reins",null,"Reinsurer R/I Payable - 20",{"$f":"'Schedule XVIII'!I33","v":0},null,null,null,null,null,null,null,{"$f":"'Schedule XVIII (EBS)'!I33","v":0}]
["Sch XVIII","Ceded Reins",null,"Reinsurer R/I Payable - 21",{"$f":"'Schedule XVIII'!I34","v":0},null,null,null,null,null,null,null,{"$f":"'Schedule XVIII (EBS)'!I34","v":0}]
["Sch XVIII","Ceded Reins",null,"Reinsurer R/I Payable - 22",{"$f":"'Schedule XVIII'!I35","v":0},null,null,null,null,null,null,null,{"$f":"'Schedule XVIII (EBS)'!I35","v":0}]
["Sch XVIII","Ceded Reins",null,"Reinsurer R/I Payable - 23",{"$f":"'Schedule XVIII'!I36","v":0},null,null,null,null,null,null,null,{"$f":"'Schedule XVIII (EBS)'!I36","v":0}]
["Sch XVIII","Ceded Reins",null,"Reinsurer R/I Payable - 24",{"$f":"'Schedule XVIII'!I37","v":0},null,null,null,null,null,null,null,{"$f":"'Schedule XVIII (EBS)'!I37","v":0}]
["Sch XVIII","Ceded Reins",null,"Reinsurer R/I Payable - 25",{"$f":"'Schedule XVIII'!I38","v":0},null,null,null,null,null,null,null,{"$f":"'Schedule XVIII (EBS)'!I38","v":0}]
["Sch XVIII","Ceded Reins",null,"Reinsurer R/I Payable - 26",{"$f":"'Schedule XVIII'!I39","v":0},null,null,null,null,null,null,null,{"$f":"'Schedule XVIII (EBS)'!I39","v":0}]
["Sch XVIII","Ceded Reins",null,"Reinsurer R/I Payable - 27",{"$f":"'Schedule XVIII'!I40","v":0},null,null,null,null,null,null,null,{"$f":"'Schedule XVIII (EBS)'!I40","v":0}]
["Sch XVIII","Ceded Reins",null,"Reinsurer R/I Payable - 28",{"$f":"'Schedule XVIII'!I41","v":0},null,null,null,null,null,null,null,{"$f":"'Schedule XVIII (EBS)'!I41","v":0}]
["Sch XVIII","Ceded Reins",null,"Reinsurer R/I Payable - 29",{"$f":"'Schedule XVIII'!I42","v":0},null,null,null,null,null,null,null,{"$f":"'Schedule XVIII (EBS)'!I42","v":0}]
["Sch XVIII","Ceded Reins",null,"Reinsurer R/I Payable - 30",{"$f":"'Schedule XVIII'!I43","v":0},null,null,null,null,null,null,null,{"$f":"'Schedule XVIII (EBS)'!I43","v":0}]
["Sch XVIII","Ceded Reins",null,"Reinsurer R/I Total - 30",{"$f":"'Schedule XVIII'!I54","v":0},null,null,null,null,null,null,null,{"$f":"'Schedule XVIII (EBS)'!I54","v":0}]
["Sch XVIII","Ceded Reins",null,"Reinsurer Collateral - 1",{"$f":"'Schedule XVIII'!K14","v":0},null,null,null,null,null,null,null,{"$f":"'Schedule XVIII (EBS)'!K14","v":0}]
["Sch XVIII","Ceded Reins",null,"Reinsurer Collateral - 2",{"$f":"'Schedule XVIII'!K15","v":0},null,null,null,null,null,null,null,{"$f":"'Schedule XVIII (EBS)'!K15","v":0}]
["Sch XVIII","Ceded Reins",null,"Reinsurer Collateral - 3",{"$f":"'Schedule XVIII'!K16","v":0},null,null,null,null,null,null,null,{"$f":"'Schedule XVIII (EBS)'!K16","v":0}]
["Sch XVIII","Ceded Reins",null,"Reinsurer Collateral - 4",{"$f":"'Schedule XVIII'!K17","v":0},null,null,null,null,null,null,null,{"$f":"'Schedule XVIII (EBS)'!K17","v":0}]
["Sch XVIII","Ceded Reins",null,"Reinsurer Collateral - 5",{"$f":"'Schedule XVIII'!K18","v":0},null,null,null,null,null,null,null,{"$f":"'Schedule XVIII (EBS)'!K18","v":0}]
["Sch XVIII","Ceded Reins",null,"Reinsurer Collateral - 6",{"$f":"'Schedule XVIII'!K19","v":0},null,null,null,null,null,null,null,{"$f":"'Schedule XVIII (EBS)'!K19","v":0}]
["Sch XVIII","Ceded Reins",null,"Reinsurer Collateral - 7",{"$f":"'Schedule XVIII'!K20","v":0},null,null,null,null,null,null,null,{"$f":"'Schedule XVIII (EBS)'!K20","v":0}]
["Sch XVIII","Ceded Reins",null,"Reinsurer Collateral - 8",{"$f":"'Schedule XVIII'!K21","v":0},null,null,null,null,null,null,null,{"$f":"'Schedule XVIII (EBS)'!K21","v":0}]
["Sch XVIII","Ceded Reins",null,"Reinsurer Collateral - 9",{"$f":"'Schedule XVIII'!K22","v":0},null,null,null,null,null,null,null,{"$f":"'Schedule XVIII (EBS)'!K22","v":0}]
["Sch XVIII","Ceded Reins",null,"Reinsurer Collateral - 10",{"$f":"'Schedule XVIII'!K23","v":0},null,null,null,null,null,null,null,{"$f":"'Schedule XVIII (EBS)'!K23","v":0}]
["Sch XVIII","Ceded Reins",null,"Reinsurer Collateral - 11",{"$f":"'Schedule XVIII'!K24","v":0},null,null,null,null,null,null,null,{"$f":"'Schedule XVIII (EBS)'!K24","v":0}]
["Sch XVIII","Ceded Reins",null,"Reinsurer Collateral - 12",{"$f":"'Schedule XVIII'!K25","v":0},null,null,null,null,null,null,null,{"$f":"'Schedule XVIII (EBS)'!K25","v":0}]
["Sch XVIII","Ceded Reins",null,"Reinsurer Collateral - 13",{"$f":"'Schedule XVIII'!K26","v":0},null,null,null,null,null,null,null,{"$f":"'Schedule XVIII (EBS)'!K26","v":0}]
["Sch XVIII","Ceded Reins",null,"Reinsurer Collateral - 14",{"$f":"'Schedule XVIII'!K27","v":0},null,null,null,null,null,null,null,{"$f":"'Schedule XVIII (EBS)'!K27","v":0}]
["Sch XVIII","Ceded Reins",null,"Reinsurer Collateral - 15",{"$f":"'Schedule XVIII'!K28","v":0},null,null,null,null,null,null,null,{"$f":"'Schedule XVIII (EBS)'!K28","v":0}]
["Sch XVIII","Ceded Reins",null,"Reinsurer Collateral - 16",{"$f":"'Schedule XVIII'!K29","v":0},null,null,null,null,null,null,null,{"$f":"'Schedule XVIII (EBS)'!K29","v":0}]
["Sch XVIII","Ceded Reins",null,"Reinsurer Collateral - 17",{"$f":"'Schedule XVIII'!K30","v":0},null,null,null,null,null,null,null,{"$f":"'Schedule XVIII (EBS)'!K30","v":0}]
["Sch XVIII","Ceded Reins",null,"Reinsurer Collateral - 18",{"$f":"'Schedule XVIII'!K31","v":0},null,null,null,null,null,null,null,{"$f":"'Schedule XVIII (EBS)'!K31","v":0}]
["Sch XVIII","Ceded Reins",null,"Reinsurer Collateral - 19",{"$f":"'Schedule XVIII'!K32","v":0},null,null,null,null,null,null,null,{"$f":"'Schedule XVIII (EBS)'!K32","v":0}]
["Sch XVIII","Ceded Reins",null,"Reinsurer Collateral - 20",{"$f":"'Schedule XVIII'!K33","v":0},null,null,null,null,null,null,null,{"$f":"'Schedule XVIII (EBS)'!K33","v":0}]
["Sch XVIII","Ceded Reins",null,"Reinsurer Collateral - 21",{"$f":"'Schedule XVIII'!K34","v":0},null,null,null,null,null,null,null,{"$f":"'Schedule XVIII (EBS)'!K34","v":0}]
["Sch XVIII","Ceded Reins",null,"Reinsurer Collateral - 22",{"$f":"'Schedule XVIII'!K35","v":0},null,null,null,null,null,null,null,{"$f":"'Schedule XVIII (EBS)'!K35","v":0}]
["Sch XVIII","Ceded Reins",null,"Reinsurer Collateral - 23",{"$f":"'Schedule XVIII'!K36","v":0},null,null,null,null,null,null,null,{"$f":"'Schedule XVIII (EBS)'!K36","v":0}]
["Sch XVIII","Ceded Reins",null,"Reinsurer Collateral - 24",{"$f":"'Schedule XVIII'!K37","v":0},null,null,null,null,null,null,null,{"$f":"'Schedule XVIII (EBS)'!K37","v":0}]
["Sch XVIII","Ceded Reins",null,"Reinsurer Collateral - 25",{"$f":"'Schedule XVIII'!K38","v":0},null,null,null,null,null,null,null,{"$f":"'Schedule XVIII (EBS)'!K38","v":0}]
["Sch XVIII","Ceded Reins",null,"Reinsurer Collateral - 26",{"$f":"'Schedule XVIII'!K39","v":0},null,null,null,null,null,null,null,{"$f":"'Schedule XVIII (EBS)'!K39","v":0}]
["Sch XVIII","Ceded Reins",null,"Reinsurer Collateral - 27",{"$f":"'Schedule XVIII'!K40","v":0},null,null,null,null,null,null,null,{"$f":"'Schedule XVIII (EBS)'!K40","v":0}]
["Sch XVIII","Ceded Reins",null,"Reinsurer Collateral - 28",{"$f":"'Schedule XVIII'!K41","v":0},null,null,null,null,null,null,null,{"$f":"'Schedule XVIII (EBS)'!K41","v":0}]
["Sch XVIII","Ceded Reins",null,"Reinsurer Collateral - 29",{"$f":"'Schedule XVIII'!K42","v":0},null,null,null,null,null,null,null,{"$f":"'Schedule XVIII (EBS)'!K42","v":0}]
["Sch XVIII","Ceded Reins",null,"Reinsurer Collateral - 30",{"$f":"'Schedule XVIII'!K43","v":0},null,null,null,null,null,null,null,{"$f":"'Schedule XVIII (EBS)'!K43","v":0}]
["Sch XVIII","Ceded Reins",null,"Reinsurer Collateral - Total",{"$f":"'Schedule XVIII'!K54","v":0},null,null,null,null,null,null,null,{"$f":"'Schedule XVIII (EBS)'!K54","v":0}]
["Sch XVIII","Ceded Reins",null,"R/I Assets - Exposure by BSCR Rate 0",{"$f":"'Schedule XVIII'!G57","v":0},null,null,null,null,null,null,null,{"$f":"'Schedule XVIII (EBS)'!G57","v":0}]
["Sch XVIII","Ceded Reins",null,"R/I Assets - Exposure by BSCR Rate 1",{"$f":"'Schedule XVIII'!G58","v":0},null,null,null,null,null,null,null,{"$f":"'Schedule XVIII (EBS)'!G58","v":0}]
["Sch XVIII","Ceded Reins",null,"R/I Assets - Exposure by BSCR Rate 2",{"$f":"'Schedule XVIII'!G59","v":0},null,null,null,null,null,null,null,{"$f":"'Schedule XVIII (EBS)'!G59","v":0}]
["Sch XVIII","Ceded Reins",null,"R/I Assets - Exposure by BSCR Rate 3",{"$f":"'Schedule XVIII'!G60","v":0},null,null,null,null,null,null,null,{"$f":"'Schedule XVIII (EBS)'!G60","v":0}]
["Sch XVIII","Ceded Reins",null,"R/I Assets - Exposure by BSCR Rate 4",{"$f":"'Schedule XVIII'!G61","v":0},null,null,null,null,null,null,null,{"$f":"'Schedule XVIII (EBS)'!G61","v":0}]
["Sch XVIII","Ceded Reins",null,"R/I Assets - Exposure by BSCR Rate 5",{"$f":"'Schedule XVIII'!G62","v":0},null,null,null,null,null,null,null,{"$f":"'Schedule XVIII (EBS)'!G62","v":0}]
["Sch XVIII","Ceded Reins",null,"R/I Assets - Exposure by BSCR Rate 6",{"$f":"'Schedule XVIII'!G63","v":0},null,null,null,null,null,null,null,{"$f":"'Schedule XVIII (EBS)'!G63","v":0}]
["Sch XVIII","Ceded Reins",null,"R/I Assets - Exposure by BSCR Rate 7",{"$f":"'Schedule XVIII'!G64","v":0},null,null,null,null,null,null,null,{"$f":"'Schedule XVIII (EBS)'!G64","v":0}]
["Sch XVIII","Ceded Reins",null,"R/I Assets - Exposure by BSCR Rate 8",{"$f":"'Schedule XVIII'!G65","v":0},null,null,null,null,null,null,null,{"$f":"'Schedule XVIII (EBS)'!G65","v":0}]
["Sch XVIII","Ceded Reins",null,"R/I Assets - Exposure Total",{"$f":"'Schedule XVIII'!G66","v":0},null,null,null,null,null,null,null,{"$f":"'Schedule XVIII (EBS)'!G66","v":0}]
["Sch XVIII","Ceded Reins",null,"R/I Assets - Single Cons. Exp.",{"$f":"'Schedule XVIII'!G68","v":0},null,null,null,null,null,null,null,{"$f":"'Schedule XVIII (EBS)'!G68","v":0}]
["Sch XVIII","Ceded Reins",null,"R/I Payable - Exposure by BSCR Rate 0",{"$f":"'Schedule XVIII'!I57","v":0},null,null,null,null,null,null,null,{"$f":"'Schedule XVIII (EBS)'!I57","v":0}]
["Sch XVIII","Ceded Reins",null,"R/I Payable - Exposure by BSCR Rate 1",{"$f":"'Schedule XVIII'!I58","v":0},null,null,null,null,null,null,null,{"$f":"'Schedule XVIII (EBS)'!I58","v":0}]
["Sch XVIII","Ceded Reins",null,"R/I Payable - Exposure by BSCR Rate 2",{"$f":"'Schedule XVIII'!I59","v":0},null,null,null,null,null,null,null,{"$f":"'Schedule XVIII (EBS)'!I59","v":0}]
["Sch XVIII","Ceded Reins",null,"R/I Payable - Exposure by BSCR Rate 3",{"$f":"'Schedule XVIII'!I60","v":0},null,null,null,null,null,null,null,{"$f":"'Schedule XVIII (EBS)'!I60","v":0}]
["Sch XVIII","Ceded Reins",null,"R/I Payable - Exposure by BSCR Rate 4",{"$f":"'Schedule XVIII'!I61","v":0},null,null,null,null,null,null,null,{"$f":"'Schedule XVIII (EBS)'!I61","v":0}]
["Sch XVIII","Ceded Reins",null,"R/I Payable - Exposure by BSCR Rate 5",{"$f":"'Schedule XVIII'!I62","v":0},null,null,null,null,null,null,null,{"$f":"'Schedule XVIII (EBS)'!I62","v":0}]
["Sch XVIII","Ceded Reins",null,"R/I Payable - Exposure by BSCR Rate 6",{"$f":"'Schedule XVIII'!I63","v":0},null,null,null,null,null,null,null,{"$f":"'Schedule XVIII (EBS)'!I63","v":0}]
["Sch XVIII","Ceded Reins",null,"R/I Payable - Exposure by BSCR Rate 7",{"$f":"'Schedule XVIII'!I64","v":0},null,null,null,null,null,null,null,{"$f":"'Schedule XVIII (EBS)'!I64","v":0}]
["Sch XVIII","Ceded Reins",null,"R/I Payable - Exposure by BSCR Rate 8",{"$f":"'Schedule XVIII'!I65","v":0},null,null,null,null,null,null,null,{"$f":"'Schedule XVIII (EBS)'!I65","v":0}]
["Sch XVIII","Ceded Reins",null,"R/I Payable - Exposure Total",{"$f":"'Schedule XVIII'!I66","v":0},null,null,null,null,null,null,null,{"$f":"'Schedule XVIII (EBS)'!I66","v":0}]
["Sch XVIII","Ceded Reins",null,"R/I Payable - Single Cons. Exp.",{"$f":"'Schedule XVIII'!I68","v":0},null,null,null,null,null,null,null,{"$f":"'Schedule XVIII (EBS)'!I68","v":0}]
["Sch XVIII","Ceded Reins",null,"Collateral - Exposure by BSCR Rate 0",{"$f":"'Schedule XVIII'!K57","v":0},null,null,null,null,null,null,null,{"$f":"'Schedule XVIII (EBS)'!K57","v":0}]
["Sch XVIII","Ceded Reins",null,"Collateral - Exposure by BSCR Rate 1",{"$f":"'Schedule XVIII'!K58","v":0},null,null,null,null,null,null,null,{"$f":"'Schedule XVIII (EBS)'!K58","v":0}]
["Sch XVIII","Ceded Reins",null,"Collateral - Exposure by BSCR Rate 2",{"$f":"'Schedule XVIII'!K59","v":0},null,null,null,null,null,null,null,{"$f":"'Schedule XVIII (EBS)'!K59","v":0}]
["Sch XVIII","Ceded Reins",null,"Collateral - Exposure by BSCR Rate 3",{"$f":"'Schedule XVIII'!K60","v":0},null,null,null,null,null,null,null,{"$f":"'Schedule XVIII (EBS)'!K60","v":0}]
["Sch XVIII","Ceded Reins",null,"Collateral - Exposure by BSCR Rate 4",{"$f":"'Schedule XVIII'!K61","v":0},null,null,null,null,null,null,null,{"$f":"'Schedule XVIII (EBS)'!K61","v":0}]
["Sch XVIII","Ceded Reins",null,"Collateral - Exposure by BSCR Rate 5",{"$f":"'Schedule XVIII'!K62","v":0},null,null,null,null,null,null,null,{"$f":"'Schedule XVIII (EBS)'!K62","v":0}]
["Sch XVIII","Ceded Reins",null,"Collateral - Exposure by BSCR Rate 6",{"$f":"'Schedule XVIII'!K63","v":0},null,null,null,null,null,null,null,{"$f":"'Schedule XVIII (EBS)'!K63","v":0}]
["Sch XVIII","Ceded Reins",null,"Collateral - Exposure by BSCR Rate 7",{"$f":"'Schedule XVIII'!K64","v":0},null,null,null,null,null,null,null,{"$f":"'Schedule XVIII (EBS)'!K64","v":0}]
["Sch XVIII","Ceded Reins",null,"Collateral - Exposure by BSCR Rate 8",{"$f":"'Schedule XVIII'!K65","v":0},null,null,null,null,null,null,null,{"$f":"'Schedule XVIII (EBS)'!K65","v":0}]
["Sch XVIII","Ceded Reins",null,"Collateral - Exposure Total",{"$f":"'Schedule XVIII'!K66","v":0},null,null,null,null,null,null,null,{"$f":"'Schedule XVIII (EBS)'!K66","v":0}]
[]
["Sch XIX","Cash Counterpart",null,"Number",{"$f":"'Schedule XIX'!D10","v":0}]
["Sch XIX","Cash Counterpart",null,"Name - Counterparty 1",{"$f":"'Schedule XIX'!C14","v":0}]
["Sch XIX","Cash Counterpart",null,"Name - Counterparty 2",{"$f":"'Schedule XIX'!C15","v":0}]
["Sch XIX","Cash Counterpart",null,"Name - Counterparty 3",{"$f":"'Schedule XIX'!C16","v":0}]
["Sch XIX","Cash Counterpart",null,"Name - Counterparty 4",{"$f":"'Schedule XIX'!C17","v":0}]
["Sch XIX","Cash Counterpart",null,"Name - Counterparty 5",{"$f":"'Schedule XIX'!C18","v":0}]
["Sch XIX","Cash Counterpart",null,"Name - Counterparty 6",{"$f":"'Schedule XIX'!C19","v":0}]
["Sch XIX","Cash Counterpart",null,"Name - Counterparty 7",{"$f":"'Schedule XIX'!C20","v":0}]
["Sch XIX","Cash Counterpart",null,"Name - Counterparty 8",{"$f":"'Schedule XIX'!C21","v":0}]
["Sch XIX","Cash Counterpart",null,"Name - Counterparty 9",{"$f":"'Schedule XIX'!C22","v":0}]
["Sch XIX","Cash Counterpart",null,"Name - Counterparty 10",{"$f":"'Schedule XIX'!C23","v":0}]
["Sch XIX","Cash Counterpart",null,"Name - Counterparty 11",{"$f":"'Schedule XIX'!C24","v":0}]
["Sch XIX","Cash Counterpart",null,"Name - Counterparty 12",{"$f":"'Schedule XIX'!C25","v":0}]
["Sch XIX","Cash Counterpart",null,"Name - Counterparty 13",{"$f":"'Schedule XIX'!C26","v":0}]
["Sch XIX","Cash Counterpart",null,"Name - Counterparty 14",{"$f":"'Schedule XIX'!C27","v":0}]
["Sch XIX","Cash Counterpart",null,"Name - Counterparty 15",{"$f":"'Schedule XIX'!C28","v":0}]
["Sch XIX","Cash Counterpart",null,"Name - Counterparty 16",{"$f":"'Schedule XIX'!C29","v":0}]
["Sch XIX","Cash Counterpart",null,"Name - Counterparty 17",{"$f":"'Schedule XIX'!C30","v":0}]
["Sch XIX","Cash Counterpart",null,"Name - Counterparty 18",{"$f":"'Schedule XIX'!C31","v":0}]
["Sch XIX","Cash Counterpart",null,"Name - Counterparty 19",{"$f":"'Schedule XIX'!C32","v":0}]
["Sch XIX","Cash Counterpart",null,"Name - Counterparty 20",{"$f":"'Schedule XIX'!C33","v":0}]
["Sch XIX","Cash Counterpart",null,"BSCR Rating - Counterparty 1",{"$f":"'Schedule XIX'!D14","v":"Select"}]
["Sch XIX","Cash Counterpart",null,"BSCR Rating - Counterparty 2",{"$f":"'Schedule XIX'!D15","v":"Select"}]
["Sch XIX","Cash Counterpart",null,"BSCR Rating - Counterparty 3",{"$f":"'Schedule XIX'!D16","v":"Select"}]
["Sch XIX","Cash Counterpart",null,"BSCR Rating - Counterparty 4",{"$f":"'Schedule XIX'!D17","v":"Select"}]
["Sch XIX","Cash Counterpart",null,"BSCR Rating - Counterparty 5",{"$f":"'Schedule XIX'!D18","v":"Select"}]
["Sch XIX","Cash Counterpart",null,"BSCR Rating - Counterparty 6",{"$f":"'Schedule XIX'!D19","v":"Select"}]
["Sch XIX","Cash Counterpart",null,"BSCR Rating - Counterparty 7",{"$f":"'Schedule XIX'!D20","v":"Select"}]
["Sch XIX","Cash Counterpart",null,"BSCR Rating - Counterparty 8",{"$f":"'Schedule XIX'!D21","v":"Select"}]
["Sch XIX","Cash Counterpart",null,"BSCR Rating - Counterparty 9",{"$f":"'Schedule XIX'!D22","v":"Select"}]
["Sch XIX","Cash Counterpart",null,"BSCR Rating - Counterparty 10",{"$f":"'Schedule XIX'!D23","v":"Select"}]
["Sch XIX","Cash Counterpart",null,"BSCR Rating - Counterparty 11",{"$f":"'Schedule XIX'!D24","v":"Select"}]
["Sch XIX","Cash Counterpart",null,"BSCR Rating - Counterparty 12",{"$f":"'Schedule XIX'!D25","v":"Select"}]
["Sch XIX","Cash Counterpart",null,"BSCR Rating - Counterparty 13",{"$f":"'Schedule XIX'!D26","v":"Select"}]
["Sch XIX","Cash Counterpart",null,"BSCR Rating - Counterparty 14",{"$f":"'Schedule XIX'!D27","v":"Select"}]
["Sch XIX","Cash Counterpart",null,"BSCR Rating - Counterparty 15",{"$f":"'Schedule XIX'!D28","v":"Select"}]
["Sch XIX","Cash Counterpart",null,"BSCR Rating - Counterparty 16",{"$f":"'Schedule XIX'!D29","v":"Select"}]
["Sch XIX","Cash Counterpart",null,"BSCR Rating - Counterparty 17",{"$f":"'Schedule XIX'!D30","v":"Select"}]
["Sch XIX","Cash Counterpart",null,"BSCR Rating - Counterparty 18",{"$f":"'Schedule XIX'!D31","v":"Select"}]
["Sch XIX","Cash Counterpart",null,"BSCR Rating - Counterparty 19",{"$f":"'Schedule XIX'!D32","v":"Select"}]
["Sch XIX","Cash Counterpart",null,"BSCR Rating - Counterparty 20",{"$f":"'Schedule XIX'!D33","v":"Select"}]
["Sch XIX","Cash Counterpart",null,"Counterparty Value 1",{"$f":"'Schedule XIX'!F14","v":0},null,null,null,null,null,null,null,{"$f":"'Schedule XIX'!H14","v":0}]
["Sch XIX","Cash Counterpart",null,"Counterparty Value 2",{"$f":"'Schedule XIX'!F15","v":0},null,null,null,null,null,null,null,{"$f":"'Schedule XIX'!H15","v":0}]
["Sch XIX","Cash Counterpart",null,"Counterparty Value 3",{"$f":"'Schedule XIX'!F16","v":0},null,null,null,null,null,null,null,{"$f":"'Schedule XIX'!H16","v":0}]
["Sch XIX","Cash Counterpart",null,"Counterparty Value 4",{"$f":"'Schedule XIX'!F17","v":0},null,null,null,null,null,null,null,{"$f":"'Schedule XIX'!H17","v":0}]
["Sch XIX","Cash Counterpart",null,"Counterparty Value 5",{"$f":"'Schedule XIX'!F18","v":0},null,null,null,null,null,null,null,{"$f":"'Schedule XIX'!H18","v":0}]
["Sch XIX","Cash Counterpart",null,"Counterparty Value 6",{"$f":"'Schedule XIX'!F19","v":0},null,null,null,null,null,null,null,{"$f":"'Schedule XIX'!H19","v":0}]
["Sch XIX","Cash Counterpart",null,"Counterparty Value 7",{"$f":"'Schedule XIX'!F20","v":0},null,null,null,null,null,null,null,{"$f":"'Schedule XIX'!H20","v":0}]
["Sch XIX","Cash Counterpart",null,"Counterparty Value 8",{"$f":"'Schedule XIX'!F21","v":0},null,null,null,null,null,null,null,{"$f":"'Schedule XIX'!H21","v":0}]
["Sch XIX","Cash Counterpart",null,"Counterparty Value 9",{"$f":"'Schedule XIX'!F22","v":0},null,null,null,null,null,null,null,{"$f":"'Schedule XIX'!H22","v":0}]
["Sch XIX","Cash Counterpart",null,"Counterparty Value 10",{"$f":"'Schedule XIX'!F23","v":0},null,null,null,null,null,null,null,{"$f":"'Schedule XIX'!H23","v":0}]
["Sch XIX","Cash Counterpart",null,"Counterparty Value 11",{"$f":"'Schedule XIX'!F24","v":0},null,null,null,null,null,null,null,{"$f":"'Schedule XIX'!H24","v":0}]
["Sch XIX","Cash Counterpart",null,"Counterparty Value 12",{"$f":"'Schedule XIX'!F25","v":0},null,null,null,null,null,null,null,{"$f":"'Schedule XIX'!H25","v":0}]
["Sch XIX","Cash Counterpart",null,"Counterparty Value 13",{"$f":"'Schedule XIX'!F26","v":0},null,null,null,null,null,null,null,{"$f":"'Schedule XIX'!H26","v":0}]
["Sch XIX","Cash Counterpart",null,"Counterparty Value 14",{"$f":"'Schedule XIX'!F27","v":0},null,null,null,null,null,null,null,{"$f":"'Schedule XIX'!H27","v":0}]
["Sch XIX","Cash Counterpart",null,"Counterparty Value 15",{"$f":"'Schedule XIX'!F28","v":0},null,null,null,null,null,null,null,{"$f":"'Schedule XIX'!H28","v":0}]
["Sch XIX","Cash Counterpart",null,"Counterparty Value 16",{"$f":"'Schedule XIX'!F29","v":0},null,null,null,null,null,null,null,{"$f":"'Schedule XIX'!H29","v":0}]
["Sch XIX","Cash Counterpart",null,"Counterparty Value 17",{"$f":"'Schedule XIX'!F30","v":0},null,null,null,null,null,null,null,{"$f":"'Schedule XIX'!H30","v":0}]
["Sch XIX","Cash Counterpart",null,"Counterparty Value 18",{"$f":"'Schedule XIX'!F31","v":0},null,null,null,null,null,null,null,{"$f":"'Schedule XIX'!H31","v":0}]
["Sch XIX","Cash Counterpart",null,"Counterparty Value 19",{"$f":"'Schedule XIX'!F32","v":0},null,null,null,null,null,null,null,{"$f":"'Schedule XIX'!H32","v":0}]
["Sch XIX","Cash Counterpart",null,"Counterparty Value 20",{"$f":"'Schedule XIX'!F33","v":0},null,null,null,null,null,null,null,{"$f":"'Schedule XIX'!H33","v":0}]
["Sch XIX","Cash Counterpart",null,"Counterparty Total",{"$f":"'Schedule XIX'!F54","v":0},null,null,null,null,null,null,null,{"$f":"'Schedule XIX'!H54","v":0}]
["Sch XIX","Cash Counterpart",null,"Exposure BSCR Rate 0",{"$f":"'Schedule XIX'!F57","v":0},null,null,null,null,null,null,null,{"$f":"'Schedule XIX'!H57","v":0}]
["Sch XIX","Cash Counterpart",null,"Exposure BSCR Rate 1",{"$f":"'Schedule XIX'!F58","v":0},null,null,null,null,null,null,null,{"$f":"'Schedule XIX'!H58","v":0}]
["Sch XIX","Cash Counterpart",null,"Exposure BSCR Rate 2",{"$f":"'Schedule XIX'!F59","v":0},null,null,null,null,null,null,null,{"$f":"'Schedule XIX'!H59","v":0}]
["Sch XIX","Cash Counterpart",null,"Exposure BSCR Rate 3",{"$f":"'Schedule XIX'!F60","v":0},null,null,null,null,null,null,null,{"$f":"'Schedule XIX'!H60","v":0}]
["Sch XIX","Cash Counterpart",null,"Exposure BSCR Rate 4",{"$f":"'Schedule XIX'!F61","v":0},null,null,null,null,null,null,null,{"$f":"'Schedule XIX'!H61","v":0}]
["Sch XIX","Cash Counterpart",null,"Exposure BSCR Rate 5",{"$f":"'Schedule XIX'!F62","v":0},null,null,null,null,null,null,null,{"$f":"'Schedule XIX'!H62","v":0}]
["Sch XIX","Cash Counterpart",null,"Exposure BSCR Rate 6",{"$f":"'Schedule XIX'!F63","v":0},null,null,null,null,null,null,null,{"$f":"'Schedule XIX'!H63","v":0}]
["Sch XIX","Cash Counterpart",null,"Exposure BSCR Rate 7",{"$f":"'Schedule XIX'!F64","v":0},null,null,null,null,null,null,null,{"$f":"'Schedule XIX'!H64","v":0}]
["Sch XIX","Cash Counterpart",null,"Exposure BSCR Rate 8",{"$f":"'Schedule XIX'!F65","v":0},null,null,null,null,null,null,null,{"$f":"'Schedule XIX'!H65","v":0}]
[]
["Sch XX","Currency Analysis",null,"Assets - USD",{"$f":"'Schedule XX'!D9","v":0},null,null,null,null,null,null,null,{"$f":"'Schedule XX'!L9","v":0}]
["Sch XX","Currency Analysis",null,"Assets - Euro",{"$f":"'Schedule XX'!D10","v":0},null,null,null,null,null,null,null,{"$f":"'Schedule XX'!L10","v":0}]
["Sch XX","Currency Analysis",null,"Assets - UK £",{"$f":"'Schedule XX'!D11","v":0},null,null,null,null,null,null,null,{"$f":"'Schedule XX'!L11","v":0}]
["Sch XX","Currency Analysis",null,"Assets - CDN",{"$f":"'Schedule XX'!D12","v":0},null,null,null,null,null,null,null,{"$f":"'Schedule XX'!L12","v":0}]
["Sch XX","Currency Analysis",null,"Assets - Japan Yen",{"$f":"'Schedule XX'!D13","v":0},null,null,null,null,null,null,null,{"$f":"'Schedule XX'!L13","v":0}]
["Sch XX","Currency Analysis",null,"Assets - Other 1",{"$f":"'Schedule XX'!D14","v":0},null,null,null,null,null,null,null,{"$f":"'Schedule XX'!L14","v":0}]
["Sch XX","Currency Analysis",null,"Assets - Other 2",{"$f":"'Schedule XX'!D15","v":0},null,null,null,null,null,null,null,{"$f":"'Schedule XX'!L15","v":0}]
["Sch XX","Currency Analysis",null,"Assets - Other 3",{"$f":"'Schedule XX'!D16","v":0},null,null,null,null,null,null,null,{"$f":"'Schedule XX'!L16","v":0}]
["Sch XX","Currency Analysis",null,"Assets - Other 4",{"$f":"'Schedule XX'!D17","v":0},null,null,null,null,null,null,null,{"$f":"'Schedule XX'!L17","v":0}]
["Sch XX","Currency Analysis",null,"Assets - Other 5",{"$f":"'Schedule XX'!D18","v":0},null,null,null,null,null,null,null,{"$f":"'Schedule XX'!L18","v":0}]
["Sch XX","Currency Analysis",null,"Assets - Other 6",{"$f":"'Schedule XX'!D19","v":0},null,null,null,null,null,null,null,{"$f":"'Schedule XX'!L19","v":0}]
["Sch XX","Currency Analysis",null,"Assets - Other 7",{"$f":"'Schedule XX'!D20","v":0},null,null,null,null,null,null,null,{"$f":"'Schedule XX'!L20","v":0}]
["Sch XX","Currency Analysis",null,"Assets - Other 8",{"$f":"'Schedule XX'!D21","v":0},null,null,null,null,null,null,null,{"$f":"'Schedule XX'!L21","v":0}]
["Sch XX","Currency Analysis",null,"Assets - Other 9",{"$f":"'Schedule XX'!D22","v":0},null,null,null,null,null,null,null,{"$f":"'Schedule XX'!L22","v":0}]
["Sch XX","Currency Analysis",null,"Assets - Other 10",{"$f":"'Schedule XX'!D23","v":0},null,null,null,null,null,null,null,{"$f":"'Schedule XX'!L23","v":0}]
["Sch XX","Currency Analysis",null,"Assets - Total",{"$f":"'Schedule XX'!D24","v":0},null,null,null,null,null,null,null,{"$f":"'Schedule XX'!L24","v":0}]
["Sch XX","Currency Analysis",null,"Hedge Assets - USD",{"$f":"'Schedule XX'!F9","v":0},null,null,null,null,null,null,null,{"$f":"'Schedule XX'!N9","v":0}]
["Sch XX","Currency Analysis",null,"Hedge Assets - Euro",{"$f":"'Schedule XX'!F10","v":0},null,null,null,null,null,null,null,{"$f":"'Schedule XX'!N10","v":0}]
["Sch XX","Currency Analysis",null,"Hedge Assets - UK £",{"$f":"'Schedule XX'!F11","v":0},null,null,null,null,null,null,null,{"$f":"'Schedule XX'!N11","v":0}]
["Sch XX","Currency Analysis",null,"Hedge Assets - CDN",{"$f":"'Schedule XX'!F12","v":0},null,null,null,null,null,null,null,{"$f":"'Schedule XX'!N12","v":0}]
["Sch XX","Currency Analysis",null,"Hedge Assets - Japan Yen",{"$f":"'Schedule XX'!F13","v":0},null,null,null,null,null,null,null,{"$f":"'Schedule XX'!N13","v":0}]
["Sch XX","Currency Analysis",null,"Hedge Assets - Other 1",{"$f":"'Schedule XX'!F14","v":0},null,null,null,null,null,null,null,{"$f":"'Schedule XX'!N14","v":0}]
["Sch XX","Currency Analysis",null,"Hedge Assets - Other 2",{"$f":"'Schedule XX'!F15","v":0},null,null,null,null,null,null,null,{"$f":"'Schedule XX'!N15","v":0}]
["Sch XX","Currency Analysis",null,"Hedge Assets - Other 3",{"$f":"'Schedule XX'!F16","v":0},null,null,null,null,null,null,null,{"$f":"'Schedule XX'!N16","v":0}]
["Sch XX","Currency Analysis",null,"Hedge Assets - Other 4",{"$f":"'Schedule XX'!F17","v":0},null,null,null,null,null,null,null,{"$f":"'Schedule XX'!N17","v":0}]
["Sch XX","Currency Analysis",null,"Hedge Assets - Other 5",{"$f":"'Schedule XX'!F18","v":0},null,null,null,null,null,null,null,{"$f":"'Schedule XX'!N18","v":0}]
["Sch XX","Currency Analysis",null,"Hedge Assets - Other 6",{"$f":"'Schedule XX'!F19","v":0},null,null,null,null,null,null,null,{"$f":"'Schedule XX'!N19","v":0}]
["Sch XX","Currency Analysis",null,"Hedge Assets - Other 7",{"$f":"'Schedule XX'!F20","v":0},null,null,null,null,null,null,null,{"$f":"'Schedule XX'!N20","v":0}]
["Sch XX","Currency Analysis",null,"Hedge Assets - Other 8",{"$f":"'Schedule XX'!F21","v":0},null,null,null,null,null,null,null,{"$f":"'Schedule XX'!N21","v":0}]
["Sch XX","Currency Analysis",null,"Hedge Assets - Other 9",{"$f":"'Schedule XX'!F22","v":0},null,null,null,null,null,null,null,{"$f":"'Schedule XX'!N22","v":0}]
["Sch XX","Currency Analysis",null,"Hedge Assets - Other 10",{"$f":"'Schedule XX'!F23","v":0},null,null,null,null,null,null,null,{"$f":"'Schedule XX'!N23","v":0}]
["Sch XX","Currency Analysis",null,"Hedge Assets - Total",{"$f":"'Schedule XX'!F24","v":0},null,null,null,null,null,null,null,{"$f":"'Schedule XX'!N24","v":0}]
["Sch XX","Currency Analysis",null,"Liab. - USD",{"$f":"'Schedule XX'!H9","v":0},null,null,null,null,null,null,null,{"$f":"'Schedule XX'!P9","v":0}]
["Sch XX","Currency Analysis",null,"Liab. - Euro",{"$f":"'Schedule XX'!H10","v":0},null,null,null,null,null,null,null,{"$f":"'Schedule XX'!P10","v":0}]
["Sch XX","Currency Analysis",null,"Liab. - UK £",{"$f":"'Schedule XX'!H11","v":0},null,null,null,null,null,null,null,{"$f":"'Schedule XX'!P11","v":0}]
["Sch XX","Currency Analysis",null,"Liab. - CDN",{"$f":"'Schedule XX'!H12","v":0},null,null,null,null,null,null,null,{"$f":"'Schedule XX'!P12","v":0}]
["Sch XX","Currency Analysis",null,"Liab. - Japan Yen",{"$f":"'Schedule XX'!H13","v":0},null,null,null,null,null,null,null,{"$f":"'Schedule XX'!P13","v":0}]
["Sch XX","Currency Analysis",null,"Liab. - Other 1",{"$f":"'Schedule XX'!H14","v":0},null,null,null,null,null,null,null,{"$f":"'Schedule XX'!P14","v":0}]
["Sch XX","Currency Analysis",null,"Liab. - Other 2",{"$f":"'Schedule XX'!H15","v":0},null,null,null,null,null,null,null,{"$f":"'Schedule XX'!P15","v":0}]
["Sch XX","Currency Analysis",null,"Liab. - Other 3",{"$f":"'Schedule XX'!H16","v":0},null,null,null,null,null,null,null,{"$f":"'Schedule XX'!P16","v":0}]
["Sch XX","Currency Analysis",null,"Liab. - Other 4",{"$f":"'Schedule XX'!H17","v":0},null,null,null,null,null,null,null,{"$f":"'Schedule XX'!P17","v":0}]
["Sch XX","Currency Analysis",null,"Liab. - Other 5",{"$f":"'Schedule XX'!H18","v":0},null,null,null,null,null,null,null,{"$f":"'Schedule XX'!P18","v":0}]
["Sch XX","Currency Analysis",null,"Liab. - Other 6",{"$f":"'Schedule XX'!H19","v":0},null,null,null,null,null,null,null,{"$f":"'Schedule XX'!P19","v":0}]
["Sch XX","Currency Analysis",null,"Liab. - Other 7",{"$f":"'Schedule XX'!H20","v":0},null,null,null,null,null,null,null,{"$f":"'Schedule XX'!P20","v":0}]
["Sch XX","Currency Analysis",null,"Liab. - Other 8",{"$f":"'Schedule XX'!H21","v":0},null,null,null,null,null,null,null,{"$f":"'Schedule XX'!P21","v":0}]
["Sch XX","Currency Analysis",null,"Liab. - Other 9",{"$f":"'Schedule XX'!H22","v":0},null,null,null,null,null,null,null,{"$f":"'Schedule XX'!P22","v":0}]
["Sch XX","Currency Analysis",null,"Liab. - Other 10",{"$f":"'Schedule XX'!H23","v":0},null,null,null,null,null,null,null,{"$f":"'Schedule XX'!P23","v":0}]
["Sch XX","Currency Analysis",null,"Liab. - Total",{"$f":"'Schedule XX'!H24","v":0},null,null,null,null,null,null,null,{"$f":"'Schedule XX'!P24","v":0}]
["Sch XX","Currency Analysis",null,"Hedge Liab. - USD",{"$f":"'Schedule XX'!J9","v":0},null,null,null,null,null,null,null,{"$f":"'Schedule XX'!R9","v":0}]
["Sch XX","Currency Analysis",null,"Hedge Liab. - Euro",{"$f":"'Schedule XX'!J10","v":0},null,null,null,null,null,null,null,{"$f":"'Schedule XX'!R10","v":0}]
["Sch XX","Currency Analysis",null,"Hedge Liab. - UK £",{"$f":"'Schedule XX'!J11","v":0},null,null,null,null,null,null,null,{"$f":"'Schedule XX'!R11","v":0}]
["Sch XX","Currency Analysis",null,"Hedge Liab. - CDN",{"$f":"'Schedule XX'!J12","v":0},null,null,null,null,null,null,null,{"$f":"'Schedule XX'!R12","v":0}]
["Sch XX","Currency Analysis",null,"Hedge Liab. - Japan Yen",{"$f":"'Schedule XX'!J13","v":0},null,null,null,null,null,null,null,{"$f":"'Schedule XX'!R13","v":0}]
["Sch XX","Currency Analysis",null,"Hedge Liab. - Other 1",{"$f":"'Schedule XX'!J14","v":0},null,null,null,null,null,null,null,{"$f":"'Schedule XX'!R14","v":0}]
["Sch XX","Currency Analysis",null,"Hedge Liab. - Other 2",{"$f":"'Schedule XX'!J15","v":0},null,null,null,null,null,null,null,{"$f":"'Schedule XX'!R15","v":0}]
["Sch XX","Currency Analysis",null,"Hedge Liab. - Other 3",{"$f":"'Schedule XX'!J16","v":0},null,null,null,null,null,null,null,{"$f":"'Schedule XX'!R16","v":0}]
["Sch XX","Currency Analysis",null,"Hedge Liab. - Other 4",{"$f":"'Schedule XX'!J17","v":0},null,null,null,null,null,null,null,{"$f":"'Schedule XX'!R17","v":0}]
["Sch XX","Currency Analysis",null,"Hedge Liab. - Other 5",{"$f":"'Schedule XX'!J18","v":0},null,null,null,null,null,null,null,{"$f":"'Schedule XX'!R18","v":0}]
["Sch XX","Currency Analysis",null,"Hedge Liab. - Other 6",{"$f":"'Schedule XX'!J19","v":0},null,null,null,null,null,null,null,{"$f":"'Schedule XX'!R19","v":0}]
["Sch XX","Currency Analysis",null,"Hedge Liab. - Other 7",{"$f":"'Schedule XX'!J20","v":0},null,null,null,null,null,null,null,{"$f":"'Schedule XX'!R20","v":0}]
["Sch XX","Currency Analysis",null,"Hedge Liab. - Other 8",{"$f":"'Schedule XX'!J21","v":0},null,null,null,null,null,null,null,{"$f":"'Schedule XX'!R21","v":0}]
["Sch XX","Currency Analysis",null,"Hedge Liab. - Other 9",{"$f":"'Schedule XX'!J22","v":0},null,null,null,null,null,null,null,{"$f":"'Schedule XX'!R22","v":0}]
["Sch XX","Currency Analysis",null,"Hedge Liab. - Other 10",{"$f":"'Schedule XX'!J23","v":0},null,null,null,null,null,null,null,{"$f":"'Schedule XX'!R23","v":0}]
["Sch XX","Currency Analysis",null,"Hedge Liab. - Total",{"$f":"'Schedule XX'!J24","v":0},null,null,null,null,null,null,null,{"$f":"'Schedule XX'!R24","v":0}]
["Sch XX","Currency Analysis",null,"Liabilities Prior Year 1",null,null,null,null,null,null,null,null,{"$f":"'Schedule XX'!L34","v":0}]
["Sch XX","Currency Analysis",null,"Liabilities Prior Year 2",null,null,null,null,null,null,null,null,{"$f":"'Schedule XX'!L35","v":0}]
["Sch XX","Currency Analysis",null,"Liabilities Prior Year 3",null,null,null,null,null,null,null,null,{"$f":"'Schedule XX'!L36","v":0}]
["Sch XX","Currency Analysis",null,"ECR Prior Year 1",null,null,null,null,null,null,null,null,{"$f":"'Schedule XX'!P34","v":0}]
["Sch XX","Currency Analysis",null,"ECR Prior Year 2",null,null,null,null,null,null,null,null,{"$f":"'Schedule XX'!P35","v":0}]
["Sch XX","Currency Analysis",null,"ECR Prior Year 3",null,null,null,null,null,null,null,null,{"$f":"'Schedule XX'!P36","v":0}]
[]
["Sch XXI","Inv Con Risk",null,"# of Exposures",{"$f":"'Schedule XXI'!J3","v":0}]
["Sch XXI","Inv Con Risk",null,"Name of Exposure - 1",{"$f":"'Schedule XXI'!C8","v":0}]
["Sch XXI","Inv Con Risk",null,"Name of Exposure - 2",{"$f":"'Schedule XXI'!C9","v":0}]
["Sch XXI","Inv Con Risk",null,"Name of Exposure - 3",{"$f":"'Schedule XXI'!C10","v":0}]
["Sch XXI","Inv Con Risk",null,"Name of Exposure - 4",{"$f":"'Schedule XXI'!C11","v":0}]
["Sch XXI","Inv Con Risk",null,"Name of Exposure - 5",{"$f":"'Schedule XXI'!C12","v":0}]
["Sch XXI","Inv Con Risk",null,"Name of Exposure - 6",{"$f":"'Schedule XXI'!C13","v":0}]
["Sch XXI","Inv Con Risk",null,"Name of Exposure - 7",{"$f":"'Schedule XXI'!C14","v":0}]
["Sch XXI","Inv Con Risk",null,"Name of Exposure - 8",{"$f":"'Schedule XXI'!C15","v":0}]
["Sch XXI","Inv Con Risk",null,"Name of Exposure - 9",{"$f":"'Schedule XXI'!C16","v":0}]
["Sch XXI","Inv Con Risk",null,"Name of Exposure - 10",{"$f":"'Schedule XXI'!C17","v":0}]
["Sch XXI","Inv Con Risk",null,"Name of Exposure - 11",{"$f":"'Schedule XXI'!C18","v":0}]
["Sch XXI","Inv Con Risk",null,"Name of Exposure - 12",{"$f":"'Schedule XXI'!C19","v":0}]
["Sch XXI","Inv Con Risk",null,"Name of Exposure - 13",{"$f":"'Schedule XXI'!C20","v":0}]
["Sch XXI","Inv Con Risk",null,"Name of Exposure - 14",{"$f":"'Schedule XXI'!C21","v":0}]
["Sch XXI","Inv Con Risk",null,"Name of Exposure - 15",{"$f":"'Schedule XXI'!C22","v":0}]
["Sch XXI","Inv Con Risk",null,"Name of Exposure - 16",{"$f":"'Schedule XXI'!C23","v":0}]
["Sch XXI","Inv Con Risk",null,"Name of Exposure - 17",{"$f":"'Schedule XXI'!C24","v":0}]
["Sch XXI","Inv Con Risk",null,"Name of Exposure - 18",{"$f":"'Schedule XXI'!C25","v":0}]
["Sch XXI","Inv Con Risk",null,"Name of Exposure - 19",{"$f":"'Schedule XXI'!C26","v":0}]
["Sch XXI","Inv Con Risk",null,"Name of Exposure - 20",{"$f":"'Schedule XXI'!C27","v":0}]
["Sch XXI","Inv Con Risk",null,"Name of Exposure - 21",{"$f":"'Schedule XXI'!C28","v":0}]
["Sch XXI","Inv Con Risk",null,"Name of Exposure - 22",{"$f":"'Schedule XXI'!C29","v":0}]
["Sch XXI","Inv Con Risk",null,"Name of Exposure - 23",{"$f":"'Schedule XXI'!C30","v":0}]
["Sch XXI","Inv Con Risk",null,"Name of Exposure - 24",{"$f":"'Schedule XXI'!C31","v":0}]
["Sch XXI","Inv Con Risk",null,"Name of Exposure - 25",{"$f":"'Schedule XXI'!C32","v":0}]
["Sch XXI","Inv Con Risk",null,"Asset Type - 1",{"$f":"'Schedule XXI'!E8","v":"Select"},null,null,null,null,null,null,null,{"$f":"'Schedule XXI'!J8","v":"Select"}]
["Sch XXI","Inv Con Risk",null,"Asset Type - 2",{"$f":"'Schedule XXI'!E9","v":"Select"},null,null,null,null,null,null,null,{"$f":"'Schedule XXI'!J9","v":"Select"}]
["Sch XXI","Inv Con Risk",null,"Asset Type - 3",{"$f":"'Schedule XXI'!E10","v":"Select"},null,null,null,null,null,null,null,{"$f":"'Schedule XXI'!J10","v":"Select"}]
["Sch XXI","Inv Con Risk",null,"Asset Type - 4",{"$f":"'Schedule XXI'!E11","v":"Select"},null,null,null,null,null,null,null,{"$f":"'Schedule XXI'!J11","v":"Select"}]
["Sch XXI","Inv Con Risk",null,"Asset Type - 5",{"$f":"'Schedule XXI'!E12","v":"Select"},null,null,null,null,null,null,null,{"$f":"'Schedule XXI'!J12","v":"Select"}]
["Sch XXI","Inv Con Risk",null,"Asset Type - 6",{"$f":"'Schedule XXI'!E13","v":"Select"},null,null,null,null,null,null,null,{"$f":"'Schedule XXI'!J13","v":"Select"}]
["Sch XXI","Inv Con Risk",null,"Asset Type - 7",{"$f":"'Schedule XXI'!E14","v":"Select"},null,null,null,null,null,null,null,{"$f":"'Schedule XXI'!J14","v":"Select"}]
["Sch XXI","Inv Con Risk",null,"Asset Type - 8",{"$f":"'Schedule XXI'!E15","v":"Select"},null,null,null,null,null,null,null,{"$f":"'Schedule XXI'!J15","v":"Select"}]
["Sch XXI","Inv Con Risk",null,"Asset Type - 9",{"$f":"'Schedule XXI'!E16","v":"Select"},null,null,null,null,null,null,null,{"$f":"'Schedule XXI'!J16","v":"Select"}]
["Sch XXI","Inv Con Risk",null,"Asset Type - 10",{"$f":"'Schedule XXI'!E17","v":"Select"},null,null,null,null,null,null,null,{"$f":"'Schedule XXI'!J17","v":"Select"}]
["Sch XXI","Inv Con Risk",null,"Asset Type - 11",{"$f":"'Schedule XXI'!E18","v":"Select"},null,null,null,null,null,null,null,{"$f":"'Schedule XXI'!J18","v":"Select"}]
["Sch XXI","Inv Con Risk",null,"Asset Type - 12",{"$f":"'Schedule XXI'!E19","v":"Select"},null,null,null,null,null,null,null,{"$f":"'Schedule XXI'!J19","v":"Select"}]
["Sch XXI","Inv Con Risk",null,"Asset Type - 13",{"$f":"'Schedule XXI'!E20","v":"Select"},null,null,null,null,null,null,null,{"$f":"'Schedule XXI'!J20","v":"Select"}]
["Sch XXI","Inv Con Risk",null,"Asset Type - 14",{"$f":"'Schedule XXI'!E21","v":"Select"},null,null,null,null,null,null,null,{"$f":"'Schedule XXI'!J21","v":"Select"}]
["Sch XXI","Inv Con Risk",null,"Asset Type - 15",{"$f":"'Schedule XXI'!E22","v":"Select"},null,null,null,null,null,null,null,{"$f":"'Schedule XXI'!J22","v":"Select"}]
["Sch XXI","Inv Con Risk",null,"Asset Type - 16",{"$f":"'Schedule XXI'!E23","v":"Select"},null,null,null,null,null,null,null,{"$f":"'Schedule XXI'!J23","v":"Select"}]
["Sch XXI","Inv Con Risk",null,"Asset Type - 17",{"$f":"'Schedule XXI'!E24","v":"Select"},null,null,null,null,null,null,null,{"$f":"'Schedule XXI'!J24","v":"Select"}]
["Sch XXI","Inv Con Risk",null,"Asset Type - 18",{"$f":"'Schedule XXI'!E25","v":"Select"},null,null,null,null,null,null,null,{"$f":"'Schedule XXI'!J25","v":"Select"}]
["Sch XXI","Inv Con Risk",null,"Asset Type - 19",{"$f":"'Schedule XXI'!E26","v":"Select"},null,null,null,null,null,null,null,{"$f":"'Schedule XXI'!J26","v":"Select"}]
["Sch XXI","Inv Con Risk",null,"Asset Type - 20",{"$f":"'Schedule XXI'!E27","v":"Select"},null,null,null,null,null,null,null,{"$f":"'Schedule XXI'!J27","v":"Select"}]
["Sch XXI","Inv Con Risk",null,"Asset Type - 21",{"$f":"'Schedule XXI'!E28","v":"Select"},null,null,null,null,null,null,null,{"$f":"'Schedule XXI'!J28","v":"Select"}]
["Sch XXI","Inv Con Risk",null,"Asset Type - 22",{"$f":"'Schedule XXI'!E29","v":"Select"},null,null,null,null,null,null,null,{"$f":"'Schedule XXI'!J29","v":"Select"}]
["Sch XXI","Inv Con Risk",null,"Asset Type - 23",{"$f":"'Schedule XXI'!E30","v":"Select"},null,null,null,null,null,null,null,{"$f":"'Schedule XXI'!J30","v":"Select"}]
["Sch XXI","Inv Con Risk",null,"Asset Type - 24",{"$f":"'Schedule XXI'!E31","v":"Select"},null,null,null,null,null,null,null,{"$f":"'Schedule XXI'!J31","v":"Select"}]
["Sch XXI","Inv Con Risk",null,"Asset Type - 25",{"$f":"'Schedule XXI'!E32","v":"Select"},null,null,null,null,null,null,null,{"$f":"'Schedule XXI'!J32","v":"Select"}]
["Sch XXI","Inv Con Risk",null,"Bond Type - 1",{"$f":"'Schedule XXI'!F8","v":"Select"},null,null,null,null,null,null,null,{"$f":"'Schedule XXI'!K8","v":"Select"}]
["Sch XXI","Inv Con Risk",null,"Bond Type - 2",{"$f":"'Schedule XXI'!F9","v":"Select"},null,null,null,null,null,null,null,{"$f":"'Schedule XXI'!K9","v":"Select"}]
["Sch XXI","Inv Con Risk",null,"Bond Type - 3",{"$f":"'Schedule XXI'!F10","v":"Select"},null,null,null,null,null,null,null,{"$f":"'Schedule XXI'!K10","v":"Select"}]
["Sch XXI","Inv Con Risk",null,"Bond Type - 4",{"$f":"'Schedule XXI'!F11","v":"Select"},null,null,null,null,null,null,null,{"$f":"'Schedule XXI'!K11","v":"Select"}]
["Sch XXI","Inv Con Risk",null,"Bond Type - 5",{"$f":"'Schedule XXI'!F12","v":"Select"},null,null,null,null,null,null,null,{"$f":"'Schedule XXI'!K12","v":"Select"}]
["Sch XXI","Inv Con Risk",null,"Bond Type - 6",{"$f":"'Schedule XXI'!F13","v":"Select"},null,null,null,null,null,null,null,{"$f":"'Schedule XXI'!K13","v":"Select"}]
["Sch XXI","Inv Con Risk",null,"Bond Type - 7",{"$f":"'Schedule XXI'!F14","v":"Select"},null,null,null,null,null,null,null,{"$f":"'Schedule XXI'!K14","v":"Select"}]
["Sch XXI","Inv Con Risk",null,"Bond Type - 8",{"$f":"'Schedule XXI'!F15","v":"Select"},null,null,null,null,null,null,null,{"$f":"'Schedule XXI'!K15","v":"Select"}]
["Sch XXI","Inv Con Risk",null,"Bond Type - 9",{"$f":"'Schedule XXI'!F16","v":"Select"},null,null,null,null,null,null,null,{"$f":"'Schedule XXI'!K16","v":"Select"}]
["Sch XXI","Inv Con Risk",null,"Bond Type - 10",{"$f":"'Schedule XXI'!F17","v":"Select"},null,null,null,null,null,null,null,{"$f":"'Schedule XXI'!K17","v":"Select"}]
["Sch XXI","Inv Con Risk",null,"Bond Type - 11",{"$f":"'Schedule XXI'!F18","v":"Select"},null,null,null,null,null,null,null,{"$f":"'Schedule XXI'!K18","v":"Select"}]
["Sch XXI","Inv Con Risk",null,"Bond Type - 12",{"$f":"'Schedule XXI'!F19","v":"Select"},null,null,null,null,null,null,null,{"$f":"'Schedule XXI'!K19","v":"Select"}]
["Sch XXI","Inv Con Risk",null,"Bond Type - 13",{"$f":"'Schedule XXI'!F20","v":"Select"},null,null,null,null,null,null,null,{"$f":"'Schedule XXI'!K20","v":"Select"}]
["Sch XXI","Inv Con Risk",null,"Bond Type - 14",{"$f":"'Schedule XXI'!F21","v":"Select"},null,null,null,null,null,null,null,{"$f":"'Schedule XXI'!K21","v":"Select"}]
["Sch XXI","Inv Con Risk",null,"Bond Type - 15",{"$f":"'Schedule XXI'!F22","v":"Select"},null,null,null,null,null,null,null,{"$f":"'Schedule XXI'!K22","v":"Select"}]
["Sch XXI","Inv Con Risk",null,"Bond Type - 16",{"$f":"'Schedule XXI'!F23","v":"Select"},null,null,null,null,null,null,null,{"$f":"'Schedule XXI'!K23","v":"Select"}]
["Sch XXI","Inv Con Risk",null,"Bond Type - 17",{"$f":"'Schedule XXI'!F24","v":"Select"},null,null,null,null,null,null,null,{"$f":"'Schedule XXI'!K24","v":"Select"}]
["Sch XXI","Inv Con Risk",null,"Bond Type - 18",{"$f":"'Schedule XXI'!F25","v":"Select"},null,null,null,null,null,null,null,{"$f":"'Schedule XXI'!K25","v":"Select"}]
["Sch XXI","Inv Con Risk",null,"Bond Type - 19",{"$f":"'Schedule XXI'!F26","v":"Select"},null,null,null,null,null,null,null,{"$f":"'Schedule XXI'!K26","v":"Select"}]
["Sch XXI","Inv Con Risk",null,"Bond Type - 20",{"$f":"'Schedule XXI'!F27","v":"Select"},null,null,null,null,null,null,null,{"$f":"'Schedule XXI'!K27","v":"Select"}]
["Sch XXI","Inv Con Risk",null,"Bond Type - 21",{"$f":"'Schedule XXI'!F28","v":"Select"},null,null,null,null,null,null,null,{"$f":"'Schedule XXI'!K28","v":"Select"}]
["Sch XXI","Inv Con Risk",null,"Bond Type - 22",{"$f":"'Schedule XXI'!F29","v":"Select"},null,null,null,null,null,null,null,{"$f":"'Schedule XXI'!K29","v":"Select"}]
["Sch XXI","Inv Con Risk",null,"Bond Type - 23",{"$f":"'Schedule XXI'!F30","v":"Select"},null,null,null,null,null,null,null,{"$f":"'Schedule XXI'!K30","v":"Select"}]
["Sch XXI","Inv Con Risk",null,"Bond Type - 24",{"$f":"'Schedule XXI'!F31","v":"Select"},null,null,null,null,null,null,null,{"$f":"'Schedule XXI'!K31","v":"Select"}]
["Sch XXI","Inv Con Risk",null,"Bond Type - 25",{"$f":"'Schedule XXI'!F32","v":"Select"},null,null,null,null,null,null,null,{"$f":"'Schedule XXI'!K32","v":"Select"}]
["Sch XXI","Inv Con Risk",null,"BSCR Rating - 1",{"$f":"'Schedule XXI'!G8","v":"Select"},null,null,null,null,null,null,null,{"$f":"'Schedule XXI'!L8","v":"Select"}]
["Sch XXI","Inv Con Risk",null,"BSCR Rating - 2",{"$f":"'Schedule XXI'!G9","v":"Select"},null,null,null,null,null,null,null,{"$f":"'Schedule XXI'!L9","v":"Select"}]
["Sch XXI","Inv Con Risk",null,"BSCR Rating - 3",{"$f":"'Schedule XXI'!G10","v":"Select"},null,null,null,null,null,null,null,{"$f":"'Schedule XXI'!L10","v":"Select"}]
["Sch XXI","Inv Con Risk",null,"BSCR Rating - 4",{"$f":"'Schedule XXI'!G11","v":"Select"},null,null,null,null,null,null,null,{"$f":"'Schedule XXI'!L11","v":"Select"}]
["Sch XXI","Inv Con Risk",null,"BSCR Rating - 5",{"$f":"'Schedule XXI'!G12","v":"Select"},null,null,null,null,null,null,null,{"$f":"'Schedule XXI'!L12","v":"Select"}]
["Sch XXI","Inv Con Risk",null,"BSCR Rating - 6",{"$f":"'Schedule XXI'!G13","v":"Select"},null,null,null,null,null,null,null,{"$f":"'Schedule XXI'!L13","v":"Select"}]
["Sch XXI","Inv Con Risk",null,"BSCR Rating - 7",{"$f":"'Schedule XXI'!G14","v":"Select"},null,null,null,null,null,null,null,{"$f":"'Schedule XXI'!L14","v":"Select"}]
["Sch XXI","Inv Con Risk",null,"BSCR Rating - 8",{"$f":"'Schedule XXI'!G15","v":"Select"},null,null,null,null,null,null,null,{"$f":"'Schedule XXI'!L15","v":"Select"}]
["Sch XXI","Inv Con Risk",null,"BSCR Rating - 9",{"$f":"'Schedule XXI'!G16","v":"Select"},null,null,null,null,null,null,null,{"$f":"'Schedule XXI'!L16","v":"Select"}]
["Sch XXI","Inv Con Risk",null,"BSCR Rating - 10",{"$f":"'Schedule XXI'!G17","v":"Select"},null,null,null,null,null,null,null,{"$f":"'Schedule XXI'!L17","v":"Select"}]
["Sch XXI","Inv Con Risk",null,"BSCR Rating - 11",{"$f":"'Schedule XXI'!G18","v":"Select"},null,null,null,null,null,null,null,{"$f":"'Schedule XXI'!L18","v":"Select"}]
["Sch XXI","Inv Con Risk",null,"BSCR Rating - 12",{"$f":"'Schedule XXI'!G19","v":"Select"},null,null,null,null,null,null,null,{"$f":"'Schedule XXI'!L19","v":"Select"}]
["Sch XXI","Inv Con Risk",null,"BSCR Rating - 13",{"$f":"'Schedule XXI'!G20","v":"Select"},null,null,null,null,null,null,null,{"$f":"'Schedule XXI'!L20","v":"Select"}]
["Sch XXI","Inv Con Risk",null,"BSCR Rating - 14",{"$f":"'Schedule XXI'!G21","v":"Select"},null,null,null,null,null,null,null,{"$f":"'Schedule XXI'!L21","v":"Select"}]
["Sch XXI","Inv Con Risk",null,"BSCR Rating - 15",{"$f":"'Schedule XXI'!G22","v":"Select"},null,null,null,null,null,null,null,{"$f":"'Schedule XXI'!L22","v":"Select"}]
["Sch XXI","Inv Con Risk",null,"BSCR Rating - 16",{"$f":"'Schedule XXI'!G23","v":"Select"},null,null,null,null,null,null,null,{"$f":"'Schedule XXI'!L23","v":"Select"}]
["Sch XXI","Inv Con Risk",null,"BSCR Rating - 17",{"$f":"'Schedule XXI'!G24","v":"Select"},null,null,null,null,null,null,null,{"$f":"'Schedule XXI'!L24","v":"Select"}]
["Sch XXI","Inv Con Risk",null,"BSCR Rating - 18",{"$f":"'Schedule XXI'!G25","v":"Select"},null,null,null,null,null,null,null,{"$f":"'Schedule XXI'!L25","v":"Select"}]
["Sch XXI","Inv Con Risk",null,"BSCR Rating - 19",{"$f":"'Schedule XXI'!G26","v":"Select"},null,null,null,null,null,null,null,{"$f":"'Schedule XXI'!L26","v":"Select"}]
["Sch XXI","Inv Con Risk",null,"BSCR Rating - 20",{"$f":"'Schedule XXI'!G27","v":"Select"},null,null,null,null,null,null,null,{"$f":"'Schedule XXI'!L27","v":"Select"}]
["Sch XXI","Inv Con Risk",null,"BSCR Rating - 21",{"$f":"'Schedule XXI'!G28","v":"Select"},null,null,null,null,null,null,null,{"$f":"'Schedule XXI'!L28","v":"Select"}]
["Sch XXI","Inv Con Risk",null,"BSCR Rating - 22",{"$f":"'Schedule XXI'!G29","v":"Select"},null,null,null,null,null,null,null,{"$f":"'Schedule XXI'!L29","v":"Select"}]
["Sch XXI","Inv Con Risk",null,"BSCR Rating - 23",{"$f":"'Schedule XXI'!G30","v":"Select"},null,null,null,null,null,null,null,{"$f":"'Schedule XXI'!L30","v":"Select"}]
["Sch XXI","Inv Con Risk",null,"BSCR Rating - 24",{"$f":"'Schedule XXI'!G31","v":"Select"},null,null,null,null,null,null,null,{"$f":"'Schedule XXI'!L31","v":"Select"}]
["Sch XXI","Inv Con Risk",null,"BSCR Rating - 25",{"$f":"'Schedule XXI'!G32","v":"Select"},null,null,null,null,null,null,null,{"$f":"'Schedule XXI'!L32","v":"Select"}]
["Sch XXI","Inv Con Risk",null,"Asset Value - 1",{"$f":"'Schedule XXI'!H8","v":0},null,null,null,null,null,null,null,{"$f":"'Schedule XXI'!M8","v":0}]
["Sch XXI","Inv Con Risk",null,"Asset Value - 2",{"$f":"'Schedule XXI'!H9","v":0},null,null,null,null,null,null,null,{"$f":"'Schedule XXI'!M9","v":0}]
["Sch XXI","Inv Con Risk",null,"Asset Value - 3",{"$f":"'Schedule XXI'!H10","v":0},null,null,null,null,null,null,null,{"$f":"'Schedule XXI'!M10","v":0}]
["Sch XXI","Inv Con Risk",null,"Asset Value - 4",{"$f":"'Schedule XXI'!H11","v":0},null,null,null,null,null,null,null,{"$f":"'Schedule XXI'!M11","v":0}]
["Sch XXI","Inv Con Risk",null,"Asset Value - 5",{"$f":"'Schedule XXI'!H12","v":0},null,null,null,null,null,null,null,{"$f":"'Schedule XXI'!M12","v":0}]
["Sch XXI","Inv Con Risk",null,"Asset Value - 6",{"$f":"'Schedule XXI'!H13","v":0},null,null,null,null,null,null,null,{"$f":"'Schedule XXI'!M13","v":0}]
["Sch XXI","Inv Con Risk",null,"Asset Value - 7",{"$f":"'Schedule XXI'!H14","v":0},null,null,null,null,null,null,null,{"$f":"'Schedule XXI'!M14","v":0}]
["Sch XXI","Inv Con Risk",null,"Asset Value - 8",{"$f":"'Schedule XXI'!H15","v":0},null,null,null,null,null,null,null,{"$f":"'Schedule XXI'!M15","v":0}]
["Sch XXI","Inv Con Risk",null,"Asset Value - 9",{"$f":"'Schedule XXI'!H16","v":0},null,null,null,null,null,null,null,{"$f":"'Schedule XXI'!M16","v":0}]
["Sch XXI","Inv Con Risk",null,"Asset Value - 10",{"$f":"'Schedule XXI'!H17","v":0},null,null,null,null,null,null,null,{"$f":"'Schedule XXI'!M17","v":0}]
["Sch XXI","Inv Con Risk",null,"Asset Value - 11",{"$f":"'Schedule XXI'!H18","v":0},null,null,null,null,null,null,null,{"$f":"'Schedule XXI'!M18","v":0}]
["Sch XXI","Inv Con Risk",null,"Asset Value - 12",{"$f":"'Schedule XXI'!H19","v":0},null,null,null,null,null,null,null,{"$f":"'Schedule XXI'!M19","v":0}]
["Sch XXI","Inv Con Risk",null,"Asset Value - 13",{"$f":"'Schedule XXI'!H20","v":0},null,null,null,null,null,null,null,{"$f":"'Schedule XXI'!M20","v":0}]
["Sch XXI","Inv Con Risk",null,"Asset Value - 14",{"$f":"'Schedule XXI'!H21","v":0},null,null,null,null,null,null,null,{"$f":"'Schedule XXI'!M21","v":0}]
["Sch XXI","Inv Con Risk",null,"Asset Value - 15",{"$f":"'Schedule XXI'!H22","v":0},null,null,null,null,null,null,null,{"$f":"'Schedule XXI'!M22","v":0}]
["Sch XXI","Inv Con Risk",null,"Asset Value - 16",{"$f":"'Schedule XXI'!H23","v":0},null,null,null,null,null,null,null,{"$f":"'Schedule XXI'!M23","v":0}]
["Sch XXI","Inv Con Risk",null,"Asset Value - 17",{"$f":"'Schedule XXI'!H24","v":0},null,null,null,null,null,null,null,{"$f":"'Schedule XXI'!M24","v":0}]
["Sch XXI","Inv Con Risk",null,"Asset Value - 18",{"$f":"'Schedule XXI'!H25","v":0},null,null,null,null,null,null,null,{"$f":"'Schedule XXI'!M25","v":0}]
["Sch XXI","Inv Con Risk",null,"Asset Value - 19",{"$f":"'Schedule XXI'!H26","v":0},null,null,null,null,null,null,null,{"$f":"'Schedule XXI'!M26","v":0}]
["Sch XXI","Inv Con Risk",null,"Asset Value - 20",{"$f":"'Schedule XXI'!H27","v":0},null,null,null,null,null,null,null,{"$f":"'Schedule XXI'!M27","v":0}]
["Sch XXI","Inv Con Risk",null,"Asset Value - 21",{"$f":"'Schedule XXI'!H28","v":0},null,null,null,null,null,null,null,{"$f":"'Schedule XXI'!M28","v":0}]
["Sch XXI","Inv Con Risk",null,"Asset Value - 22",{"$f":"'Schedule XXI'!H29","v":0},null,null,null,null,null,null,null,{"$f":"'Schedule XXI'!M29","v":0}]
["Sch XXI","Inv Con Risk",null,"Asset Value - 23",{"$f":"'Schedule XXI'!H30","v":0},null,null,null,null,null,null,null,{"$f":"'Schedule XXI'!M30","v":0}]
["Sch XXI","Inv Con Risk",null,"Asset Value - 24",{"$f":"'Schedule XXI'!H31","v":0},null,null,null,null,null,null,null,{"$f":"'Schedule XXI'!M31","v":0}]
["Sch XXI","Inv Con Risk",null,"Asset Value - 25",{"$f":"'Schedule XXI'!H32","v":0},null,null,null,null,null,null,null,{"$f":"'Schedule XXI'!M32","v":0}]
["Sch XXI","Inv Con Risk",null,"Asset Value - Total",{"$f":"'Schedule XXI'!H58","v":0},null,null,null,null,null,null,null,{"$f":"'Schedule XXI'!M58","v":0}]
[]
["Op Risk","Corp Gov",null,"Corporate Governance Q1",null,null,null,null,{"$f":"'Corp Gov'!D11","v":0}]
["Op Risk","Corp Gov",null,"Corporate Governance Q2 (Class C Only)",null,null,null,null,{"$f":"'Corp Gov'!D12","v":0}]
["Op Risk","Corp Gov",null,"Corporate Governance Q3",null,null,null,null,{"$f":"'Corp Gov'!D13","v":0}]
["Op Risk","Corp Gov",null,"Corporate Governance Q4",null,null,null,null,{"$f":"'Corp Gov'!D14","v":0}]
["Op Risk","Corp Gov",null,"Corporate Governance Q5",null,null,null,null,{"$f":"'Corp Gov'!D15","v":0}]
["Op Risk","Corp Gov",null,"Corporate Governance Q6",null,null,null,null,{"$f":"'Corp Gov'!D16","v":0}]
["Op Risk","Corp Gov",null,"Corporate Governance Q7",null,null,null,null,{"$f":"'Corp Gov'!D17","v":0}]
["Op Risk","Risk Mngt",null,"Risk Management Q1",null,null,null,null,{"$f":"'Risk Man'!D11","v":0}]
["Op Risk","Risk Mngt",null,"Risk Management Q2",null,null,null,null,{"$f":"'Risk Man'!D12","v":0}]
["Op Risk","Risk Mngt",null,"Risk Management Q3",null,null,null,null,{"$f":"'Risk Man'!D13","v":0}]
["Op Risk","Risk Mngt",null,"Risk Management Q4",null,null,null,null,{"$f":"'Risk Man'!D14","v":0}]
["Op Risk","Risk Mngt",null,"Risk Management Q5",null,null,null,null,{"$f":"'Risk Man'!D15","v":0}]
["Op Risk","Risk Mngt",null,"Risk Management Q6",null,null,null,null,{"$f":"'Risk Man'!D16","v":0}]
["Op Risk","Risk Mngt",null,"Risk Management Q7",null,null,null,null,{"$f":"'Risk Man'!D17","v":0}]
["Op Risk","Indentification",null,"Identification - Fraud (Class D/E Only)",null,null,null,null,{"$f":"Identification!E19","v":0}]
["Op Risk","Indentification",null,"Identification - HR (Class D/E Only)",null,null,null,null,{"$f":"Identification!F19","v":0}]
["Op Risk","Indentification",null,"Identification - Outsourcing (Class D/E Only)",null,null,null,null,{"$f":"Identification!G19","v":0}]
["Op Risk","Indentification",null,"Identification - Dis. Channels (Class D/E Only)",null,null,null,null,{"$f":"Identification!H19","v":0}]
["Op Risk","Indentification",null,"Identification - Bus. Processes (Class D/E Only)",null,null,null,null,{"$f":"Identification!I19","v":0}]
["Op Risk","Indentification",null,"Identification - Bus. Continuity (Class D/E Only)",null,null,null,null,{"$f":"Identification!J19","v":0}]
["Op Risk","Indentification",null,"Identification - Info. Systems (Class D/E Only)",null,null,null,null,{"$f":"Identification!K19","v":0}]
["Op Risk","Indentification",null,"Identification - Compliance (Class D/E Only)",null,null,null,null,{"$f":"Identification!L19","v":0}]
["Op Risk","Measurement",null,"Measurement - Fraud (Class D/E Only)",null,null,null,null,{"$f":"Measurement!E19","v":0}]
["Op Risk","Measurement",null,"Measurement - HR (Class D/E Only)",null,null,null,null,{"$f":"Measurement!F19","v":0}]
["Op Risk","Measurement",null,"Measurement - Outsourcing (Class D/E Only)",null,null,null,null,{"$f":"Measurement!G19","v":0}]
["Op Risk","Measurement",null,"Measurement - Dis. Channels (Class D/E Only)",null,null,null,null,{"$f":"Measurement!H19","v":0}]
["Op Risk","Measurement",null,"Measurement - Bus. Processes (Class D/E Only)",null,null,null,null,{"$f":"Measurement!I19","v":0}]
["Op Risk","Measurement",null,"Measurement - Bus. Continuity (Class D/E Only)",null,null,null,null,{"$f":"Measurement!J19","v":0}]
["Op Risk","Measurement",null,"Measurement - Info. Systems (Class D/E Only)",null,null,null,null,{"$f":"Measurement!K19","v":0}]
["Op Risk","Measurement",null,"Measurement - Compliance (Class D/E Only)",null,null,null,null,{"$f":"Measurement!L19","v":0}]
["Op Risk","Response",null,"Response - Fraud (Class D/E Only)",null,null,null,null,{"$f":"Response!E19","v":0}]
["Op Risk","Response",null,"Response - HR (Class D/E Only)",null,null,null,null,{"$f":"Response!F19","v":0}]
["Op Risk","Response",null,"Response - Outsourcing (Class D/E Only)",null,null,null,null,{"$f":"Response!G19","v":0}]
["Op Risk","Response",null,"Response - Dis. Channels (Class D/E Only)",null,null,null,null,{"$f":"Response!H19","v":0}]
["Op Risk","Response",null,"Response - Bus. Processes (Class D/E Only)",null,null,null,null,{"$f":"Response!I19","v":0}]
["Op Risk","Response",null,"Response - Bus. Continuity (Class D/E Only)",null,null,null,null,{"$f":"Response!J19","v":0}]
["Op Risk","Response",null,"Response - Info. Systems (Class D/E Only)",null,null,null,null,{"$f":"Response!K19","v":0}]
["Op Risk","Response",null,"Response - Compliance (Class D/E Only)",null,null,null,null,{"$f":"Response!L19","v":0}]
["Op Risk","Mont. & Reporting",null,"Mont. & Reporting - Fraud (Class D/E Only)",null,null,null,null,{"$f":"'Monitoring & Reporting'!E19","v":0}]
["Op Risk","Mont. & Reporting",null,"Mont. & Reporting - HR (Class D/E Only)",null,null,null,null,{"$f":"'Monitoring & Reporting'!F19","v":0}]
["Op Risk","Mont. & Reporting",null,"Mont. & Reporting - Outsourcing (Class D/E Only)",null,null,null,null,{"$f":"'Monitoring & Reporting'!G19","v":0}]
["Op Risk","Mont. & Reporting",null,"Mont. & Reporting - Dis. Channels (Class D/E Only)",null,null,null,null,{"$f":"'Monitoring & Reporting'!H19","v":0}]
["Op Risk","Mont. & Reporting",null,"Mont. & Reporting - Bus. Processes (Class D/E Only)",null,null,null,null,{"$f":"'Monitoring & Reporting'!I19","v":0}]
["Op Risk","Mont. & Reporting",null,"Mont. & Reporting - Bus. Continuity (Class D/E Only)",null,null,null,null,{"$f":"'Monitoring & Reporting'!J19","v":0}]
["Op Risk","Mont. & Reporting",null,"Mont. & Reporting - Info. Systems (Class D/E Only)",null,null,null,null,{"$f":"'Monitoring & Reporting'!K19","v":0}]
["Op Risk","Mont. & Reporting",null,"Mont. & Reporting - Compliance (Class D/E Only)",null,null,null,null,{"$f":"'Monitoring & Reporting'!L19","v":0}]
[]
["Entry Fields for 2019 Methodology"]
[]
["Summary",null,null,"Deferred Tax Asset - T",null,null,null,null,null,null,null,null,{"$f":"Summary!D143","v":0}]
["Summary",null,null,"Deferred Tax Asset - Loss Carryback Provision",null,null,null,null,null,null,null,null,{"$f":"Summary!G143","v":0}]
["Summary",null,null,"Management Action - Net Future Discretionary Benefits / Bonus Reserve",null,null,null,null,null,null,null,null,{"$f":"Summary!N132","v":0}]
[]
["Interest Rate and Liquidity Risk",null,null,"Weighted Average Duration Gap between Assets and Liabilities - Without Management Actions",null,null,null,null,null,null,null,null,{"$f":"'Interest Rate-Liquidity Risk'!E11","v":1}]
[]
["Sch IIB","Investments",null,"Corp. Bonds - BSCR Rate 0",null,null,null,null,null,null,null,null,{"$f":"'Schedule IIB (EBS)'!D13","v":0},null,{"$f":"'Schedule IIB (EBS)'!F13","v":0}]
["Sch IIB","Investments",null,"Corp. Bonds - BSCR Rate 1",null,null,null,null,null,null,null,null,{"$f":"'Schedule IIB (EBS)'!D14","v":0},null,{"$f":"'Schedule IIB (EBS)'!F14","v":0}]
["Sch IIB","Investments",null,"Corp. Bonds - BSCR Rate 2",null,null,null,null,null,null,null,null,{"$f":"'Schedule IIB (EBS)'!D15","v":0},null,{"$f":"'Schedule IIB (EBS)'!F15","v":0}]
["Sch IIB","Investments",null,"Corp. Bonds - BSCR Rate 3",null,null,null,null,null,null,null,null,{"$f":"'Schedule IIB (EBS)'!D16","v":0},null,{"$f":"'Schedule IIB (EBS)'!F16","v":0}]
["Sch IIB","Investments",null,"Corp. Bonds - BSCR Rate 4",null,null,null,null,null,null,null,null,{"$f":"'Schedule IIB (EBS)'!D17","v":0},null,{"$f":"'Schedule IIB (EBS)'!F17","v":0}]
["Sch IIB","Investments",null,"Corp. Bonds - BSCR Rate 5",null,null,null,null,null,null,null,null,{"$f":"'Schedule IIB (EBS)'!D18","v":0},null,{"$f":"'Schedule IIB (EBS)'!F18","v":0}]
["Sch IIB","Investments",null,"Corp. Bonds - BSCR Rate 6",null,null,null,null,null,null,null,null,{"$f":"'Schedule IIB (EBS)'!D19","v":0},null,{"$f":"'Schedule IIB (EBS)'!F19","v":0}]
["Sch IIB","Investments",null,"Corp. Bonds - BSCR Rate 7",null,null,null,null,null,null,null,null,{"$f":"'Schedule IIB (EBS)'!D20","v":0},null,{"$f":"'Schedule IIB (EBS)'!F20","v":0}]
["Sch IIB","Investments",null,"Corp. Bonds - BSCR Rate 8",null,null,null,null,null,null,null,null,{"$f":"'Schedule IIB (EBS)'!D21","v":0},null,{"$f":"'Schedule IIB (EBS)'!F21","v":0}]
["Sch IIB","Investments",null,"Residential MBS - BSCR Rate 1",null,null,null,null,null,null,null,null,{"$f":"'Schedule IIB (EBS)'!H14","v":0},null,{"$f":"'Schedule IIB (EBS)'!J14","v":0}]
["Sch IIB","Investments",null,"Residential MBS - BSCR Rate 2",null,null,null,null,null,null,null,null,{"$f":"'Schedule IIB (EBS)'!H15","v":0},null,{"$f":"'Schedule IIB (EBS)'!J15","v":0}]
["Sch IIB","Investments",null,"Residential MBS - BSCR Rate 3",null,null,null,null,null,null,null,null,{"$f":"'Schedule IIB (EBS)'!H16","v":0},null,{"$f":"'Schedule IIB (EBS)'!J16","v":0}]
["Sch IIB","Investments",null,"Residential MBS - BSCR Rate 4",null,null,null,null,null,null,null,null,{"$f":"'Schedule IIB (EBS)'!H17","v":0},null,{"$f":"'Schedule IIB (EBS)'!J17","v":0}]
["Sch IIB","Investments",null,"Residential MBS - BSCR Rate 5",null,null,null,null,null,null,null,null,{"$f":"'Schedule IIB (EBS)'!H18","v":0},null,{"$f":"'Schedule IIB (EBS)'!J18","v":0}]
["Sch IIB","Investments",null,"Residential MBS - BSCR Rate 6",null,null,null,null,null,null,null,null,{"$f":"'Schedule IIB (EBS)'!H19","v":0},null,{"$f":"'Schedule IIB (EBS)'!J19","v":0}]
["Sch IIB","Investments",null,"Residential MBS - BSCR Rate 7",null,null,null,null,null,null,null,null,{"$f":"'Schedule IIB (EBS)'!H20","v":0},null,{"$f":"'Schedule IIB (EBS)'!J20","v":0}]
["Sch IIB","Investments",null,"Residential MBS - BSCR Rate 8",null,null,null,null,null,null,null,null,{"$f":"'Schedule IIB (EBS)'!H21","v":0},null,{"$f":"'Schedule IIB (EBS)'!J21","v":0}]
["Sch IIB","Investments",null,"Commercial MBS - BSCR Rate 1",null,null,null,null,null,null,null,null,{"$f":"'Schedule IIB (EBS)'!L14","v":0},null,{"$f":"'Schedule IIB (EBS)'!N14","v":0}]
["Sch IIB","Investments",null,"Commercial MBS - BSCR Rate 2",null,null,null,null,null,null,null,null,{"$f":"'Schedule IIB (EBS)'!L15","v":0},null,{"$f":"'Schedule IIB (EBS)'!N15","v":0}]
["Sch IIB","Investments",null,"Commercial MBS - BSCR Rate 3",null,null,null,null,null,null,null,null,{"$f":"'Schedule IIB (EBS)'!L16","v":0},null,{"$f":"'Schedule IIB (EBS)'!N16","v":0}]
["Sch IIB","Investments",null,"Commercial MBS - BSCR Rate 4",null,null,null,null,null,null,null,null,{"$f":"'Schedule IIB (EBS)'!L17","v":0},null,{"$f":"'Schedule IIB (EBS)'!N17","v":0}]
["Sch IIB","Investments",null,"Commercial MBS - BSCR Rate 5",null,null,null,null,null,null,null,null,{"$f":"'Schedule IIB (EBS)'!L18","v":0},null,{"$f":"'Schedule IIB (EBS)'!N18","v":0}]
["Sch IIB","Investments",null,"Commercial MBS - BSCR Rate 6",null,null,null,null,null,null,null,null,{"$f":"'Schedule IIB (EBS)'!L19","v":0},null,{"$f":"'Schedule IIB (EBS)'!N19","v":0}]
["Sch IIB","Investments",null,"Commercial MBS - BSCR Rate 7",null,null,null,null,null,null,null,null,{"$f":"'Schedule IIB (EBS)'!L20","v":0},null,{"$f":"'Schedule IIB (EBS)'!N20","v":0}]
["Sch IIB","Investments",null,"Commercial MBS - BSCR Rate 8",null,null,null,null,null,null,null,null,{"$f":"'Schedule IIB (EBS)'!L21","v":0},null,{"$f":"'Schedule IIB (EBS)'!N21","v":0}]
["Sch IIB","Investments",null,"Bonds Mutual Fund - BSCR Rate 0",null,null,null,null,null,null,null,null,{"$f":"'Schedule IIB (EBS)'!P13","v":0},null,{"$f":"'Schedule IIB (EBS)'!R13","v":0}]
["Sch IIB","Investments",null,"Bonds Mutual Fund - BSCR Rate 1",null,null,null,null,null,null,null,null,{"$f":"'Schedule IIB (EBS)'!P14","v":0},null,{"$f":"'Schedule IIB (EBS)'!R14","v":0}]
["Sch IIB","Investments",null,"Bonds Mutual Fund - BSCR Rate 2",null,null,null,null,null,null,null,null,{"$f":"'Schedule IIB (EBS)'!P15","v":0},null,{"$f":"'Schedule IIB (EBS)'!R15","v":0}]
["Sch IIB","Investments",null,"Bonds Mutual Fund - BSCR Rate 3",null,null,null,null,null,null,null,null,{"$f":"'Schedule IIB (EBS)'!P16","v":0},null,{"$f":"'Schedule IIB (EBS)'!R16","v":0}]
["Sch IIB","Investments",null,"Bonds Mutual Fund - BSCR Rate 4",null,null,null,null,null,null,null,null,{"$f":"'Schedule IIB (EBS)'!P17","v":0},null,{"$f":"'Schedule IIB (EBS)'!R17","v":0}]
["Sch IIB","Investments",null,"Bonds Mutual Fund - BSCR Rate 5",null,null,null,null,null,null,null,null,{"$f":"'Schedule IIB (EBS)'!P18","v":0},null,{"$f":"'Schedule IIB (EBS)'!R18","v":0}]
["Sch IIB","Investments",null,"Bonds Mutual Fund - BSCR Rate 6",null,null,null,null,null,null,null,null,{"$f":"'Schedule IIB (EBS)'!P19","v":0},null,{"$f":"'Schedule IIB (EBS)'!R19","v":0}]
["Sch IIB","Investments",null,"Bonds Mutual Fund - BSCR Rate 7",null,null,null,null,null,null,null,null,{"$f":"'Schedule IIB (EBS)'!P20","v":0},null,{"$f":"'Schedule IIB (EBS)'!R20","v":0}]
["Sch IIB","Investments",null,"Bonds Mutual Fund - BSCR Rate 8",null,null,null,null,null,null,null,null,{"$f":"'Schedule IIB (EBS)'!P21","v":0},null,{"$f":"'Schedule IIB (EBS)'!R21","v":0}]
["Sch IIB","Investments",null,"Mortgage Loans - Insured",null,null,null,null,null,null,null,null,{"$f":"'Schedule IIB (EBS)'!T22","v":0},null,{"$f":"'Schedule IIB (EBS)'!V22","v":0}]
["Sch IIB","Investments",null,"Mortgage Loans - Other Commercial",null,null,null,null,null,null,null,null,{"$f":"'Schedule IIB (EBS)'!T23","v":0},null,{"$f":"'Schedule IIB (EBS)'!V23","v":0}]
["Sch IIB","Investments",null,"Mortgage Loans - Other Residential",null,null,null,null,null,null,null,null,{"$f":"'Schedule IIB (EBS)'!T24","v":0},null,{"$f":"'Schedule IIB (EBS)'!V24","v":0}]
["Sch IIB","Investments",null,"Mortgage Loans - Not Good Stand.",null,null,null,null,null,null,null,null,{"$f":"'Schedule IIB (EBS)'!T25","v":0},null,{"$f":"'Schedule IIB (EBS)'!V25","v":0}]
["Sch IIB","Investments",null,"Long Positions - Before - Strategic Holdings - Listed",null,null,null,null,null,null,null,null,{"$f":"'Schedule IIB (EBS)'!D39","v":0}]
["Sch IIB","Investments",null,"Long Positions - Before - Duration Based",null,null,null,null,null,null,null,null,{"$f":"'Schedule IIB (EBS)'!D40","v":0}]
["Sch IIB","Investments",null,"Long Positions - Before - Listed Equity Securities in Developed Markets",null,null,null,null,null,null,null,null,{"$f":"'Schedule IIB (EBS)'!D41","v":0}]
["Sch IIB","Investments",null,"Long Positions - Before - Preferred Stocks, BSCR Rating 1",null,null,null,null,null,null,null,null,{"$f":"'Schedule IIB (EBS)'!D42","v":0}]
["Sch IIB","Investments",null,"Long Positions - Before - Preferred Stocks, BSCR Rating 2",null,null,null,null,null,null,null,null,{"$f":"'Schedule IIB (EBS)'!D43","v":0}]
["Sch IIB","Investments",null,"Long Positions - Before - Preferred Stocks, BSCR Rating 3",null,null,null,null,null,null,null,null,{"$f":"'Schedule IIB (EBS)'!D44","v":0}]
["Sch IIB","Investments",null,"Long Positions - Before - Preferred Stocks, BSCR Rating 4",null,null,null,null,null,null,null,null,{"$f":"'Schedule IIB (EBS)'!D45","v":0}]
["Sch IIB","Investments",null,"Long Positions - Before - Preferred Stocks, BSCR Rating 5",null,null,null,null,null,null,null,null,{"$f":"'Schedule IIB (EBS)'!D46","v":0}]
["Sch IIB","Investments",null,"Long Positions - Before - Preferred Stocks, BSCR Rating 6",null,null,null,null,null,null,null,null,{"$f":"'Schedule IIB (EBS)'!D47","v":0}]
["Sch IIB","Investments",null,"Long Positions - Before - Preferred Stocks, BSCR Rating 7",null,null,null,null,null,null,null,null,{"$f":"'Schedule IIB (EBS)'!D48","v":0}]
["Sch IIB","Investments",null,"Long Positions - Before - Preferred Stocks, BSCR Rating 8",null,null,null,null,null,null,null,null,{"$f":"'Schedule IIB (EBS)'!D49","v":0}]
["Sch IIB","Investments",null,"Long Positions - Before - Equity Derivatives on Type 1 Equities",null,null,null,null,null,null,null,null,{"$f":"'Schedule IIB (EBS)'!D50","v":0}]
["Sch IIB","Investments",null,"Long Positions - Before - Strategic Holdings - Unlisted",null,null,null,null,null,null,null,null,{"$f":"'Schedule IIB (EBS)'!D51","v":0}]
["Sch IIB","Investments",null,"Long Positions - Before - Other Equities",null,null,null,null,null,null,null,null,{"$f":"'Schedule IIB (EBS)'!D52","v":0}]
["Sch IIB","Investments",null,"Long Positions - Before - Letters of Credit",null,null,null,null,null,null,null,null,{"$f":"'Schedule IIB (EBS)'!D53","v":0}]
["Sch IIB","Investments",null,"Long Positions - Before - Intangible assets",null,null,null,null,null,null,null,null,{"$f":"'Schedule IIB (EBS)'!D54","v":0}]
["Sch IIB","Investments",null,"Long Positions - Before - Pension Benefit Surplus",null,null,null,null,null,null,null,null,{"$f":"'Schedule IIB (EBS)'!D55","v":0}]
["Sch IIB","Investments",null,"Long Positions - Before - Equity Derivatives on Type 2 Equities",null,null,null,null,null,null,null,null,{"$f":"'Schedule IIB (EBS)'!D56","v":0}]
["Sch IIB","Investments",null,"Long Positions - Before - Infrastructure",null,null,null,null,null,null,null,null,{"$f":"'Schedule IIB (EBS)'!D57","v":0}]
["Sch IIB","Investments",null,"Long Positions - Before - Derivatives on Infrastructure",null,null,null,null,null,null,null,null,{"$f":"'Schedule IIB (EBS)'!D58","v":0}]
["Sch IIB","Investments",null,"Long Positions - Before - Equity Real Estate 1",null,null,null,null,null,null,null,null,{"$f":"'Schedule IIB (EBS)'!D59","v":0}]
["Sch IIB","Investments",null,"Long Positions - Before - Equity Real Estate 2",null,null,null,null,null,null,null,null,{"$f":"'Schedule IIB (EBS)'!D60","v":0}]
["Sch IIB","Investments",null,"Long Positions - After - Strategic Holdings - Listed",null,null,null,null,null,null,null,null,{"$f":"'Schedule IIB (EBS)'!F39","v":0}]
["Sch IIB","Investments",null,"Long Positions - After - Duration Based",null,null,null,null,null,null,null,null,{"$f":"'Schedule IIB (EBS)'!F40","v":0}]
["Sch IIB","Investments",null,"Long Positions - After - Listed Equity Securities in Developed Markets",null,null,null,null,null,null,null,null,{"$f":"'Schedule IIB (EBS)'!F41","v":0}]
["Sch IIB","Investments",null,"Long Positions - After - Preferred Stocks, BSCR Rating 1",null,null,null,null,null,null,null,null,{"$f":"'Schedule IIB (EBS)'!F42","v":0}]
["Sch IIB","Investments",null,"Long Positions - After - Preferred Stocks, BSCR Rating 2",null,null,null,null,null,null,null,null,{"$f":"'Schedule IIB (EBS)'!F43","v":0}]
["Sch IIB","Investments",null,"Long Positions - After - Preferred Stocks, BSCR Rating 3",null,null,null,null,null,null,null,null,{"$f":"'Schedule IIB (EBS)'!F44","v":0}]
["Sch IIB","Investments",null,"Long Positions - After - Preferred Stocks, BSCR Rating 4",null,null,null,null,null,null,null,null,{"$f":"'Schedule IIB (EBS)'!F45","v":0}]
["Sch IIB","Investments",null,"Long Positions - After - Preferred Stocks, BSCR Rating 5",null,null,null,null,null,null,null,null,{"$f":"'Schedule IIB (EBS)'!F46","v":0}]
["Sch IIB","Investments",null,"Long Positions - After - Preferred Stocks, BSCR Rating 6",null,null,null,null,null,null,null,null,{"$f":"'Schedule IIB (EBS)'!F47","v":0}]
["Sch IIB","Investments",null,"Long Positions - After - Preferred Stocks, BSCR Rating 7",null,null,null,null,null,null,null,null,{"$f":"'Schedule IIB (EBS)'!F48","v":0}]
["Sch IIB","Investments",null,"Long Positions - After - Preferred Stocks, BSCR Rating 8",null,null,null,null,null,null,null,null,{"$f":"'Schedule IIB (EBS)'!F49","v":0}]
["Sch IIB","Investments",null,"Long Positions - After - Equity Derivatives on Type 1 Equities",null,null,null,null,null,null,null,null,{"$f":"'Schedule IIB (EBS)'!F50","v":0}]
["Sch IIB","Investments",null,"Long Positions - After - Strategic Holdings - Unlisted",null,null,null,null,null,null,null,null,{"$f":"'Schedule IIB (EBS)'!F51","v":0}]
["Sch IIB","Investments",null,"Long Positions - After - Other Equities",null,null,null,null,null,null,null,null,{"$f":"'Schedule IIB (EBS)'!F52","v":0}]
["Sch IIB","Investments",null,"Long Positions - After - Letters of Credit",null,null,null,null,null,null,null,null,{"$f":"'Schedule IIB (EBS)'!F53","v":0}]
["Sch IIB","Investments",null,"Long Positions - After - Intangible assets",null,null,null,null,null,null,null,null,{"$f":"'Schedule IIB (EBS)'!F54","v":0}]
["Sch IIB","Investments",null,"Long Positions - After - Pension Benefit Surplus",null,null,null,null,null,null,null,null,{"$f":"'Schedule IIB (EBS)'!F55","v":0}]
["Sch IIB","Investments",null,"Long Positions - After - Equity Derivatives on Type 2 Equities",null,null,null,null,null,null,null,null,{"$f":"'Schedule IIB (EBS)'!F56","v":0}]
["Sch IIB","Investments",null,"Long Positions - After - Infrastructure",null,null,null,null,null,null,null,null,{"$f":"'Schedule IIB (EBS)'!F57","v":0}]
["Sch IIB","Investments",null,"Long Positions - After - Derivatives on Infrastructure",null,null,null,null,null,null,null,null,{"$f":"'Schedule IIB (EBS)'!F58","v":0}]
["Sch IIB","Investments",null,"Long Positions - After - Equity Real Estate 1",null,null,null,null,null,null,null,null,{"$f":"'Schedule IIB (EBS)'!F59","v":0}]
["Sch IIB","Investments",null,"Long Positions - After - Equity Real Estate 2",null,null,null,null,null,null,null,null,{"$f":"'Schedule IIB (EBS)'!F60","v":0}]
["Sch IIB","Investments",null,"Short - Before - Qualified Assets - Strategic Holdings - Listed",null,null,null,null,null,null,null,null,{"$f":"'Schedule IIB (EBS)'!H39","v":0}]
["Sch IIB","Investments",null,"Short - Before - Qualified Assets - Duration Based",null,null,null,null,null,null,null,null,{"$f":"'Schedule IIB (EBS)'!H40","v":0}]
["Sch IIB","Investments",null,"Short - Before - Qualified Assets - Listed Equity Securities in Developed Markets",null,null,null,null,null,null,null,null,{"$f":"'Schedule IIB (EBS)'!H41","v":0}]
["Sch IIB","Investments",null,"Short - Before - Qualified Assets - Preferred Stocks, BSCR Rating 1",null,null,null,null,null,null,null,null,{"$f":"'Schedule IIB (EBS)'!H42","v":0}]
["Sch IIB","Investments",null,"Short - Before - Qualified Assets - Preferred Stocks, BSCR Rating 2",null,null,null,null,null,null,null,null,{"$f":"'Schedule IIB (EBS)'!H43","v":0}]
["Sch IIB","Investments",null,"Short - Before - Qualified Assets - Preferred Stocks, BSCR Rating 3",null,null,null,null,null,null,null,null,{"$f":"'Schedule IIB (EBS)'!H44","v":0}]
["Sch IIB","Investments",null,"Short - Before - Qualified Assets - Preferred Stocks, BSCR Rating 4",null,null,null,null,null,null,null,null,{"$f":"'Schedule IIB (EBS)'!H45","v":0}]
["Sch IIB","Investments",null,"Short - Before - Qualified Assets - Preferred Stocks, BSCR Rating 5",null,null,null,null,null,null,null,null,{"$f":"'Schedule IIB (EBS)'!H46","v":0}]
["Sch IIB","Investments",null,"Short - Before - Qualified Assets - Preferred Stocks, BSCR Rating 6",null,null,null,null,null,null,null,null,{"$f":"'Schedule IIB (EBS)'!H47","v":0}]
["Sch IIB","Investments",null,"Short - Before - Qualified Assets - Preferred Stocks, BSCR Rating 7",null,null,null,null,null,null,null,null,{"$f":"'Schedule IIB (EBS)'!H48","v":0}]
["Sch IIB","Investments",null,"Short - Before - Qualified Assets - Preferred Stocks, BSCR Rating 8",null,null,null,null,null,null,null,null,{"$f":"'Schedule IIB (EBS)'!H49","v":0}]
["Sch IIB","Investments",null,"Short - Before - Qualified Assets - Equity Derivatives on Type 1 Equities",null,null,null,null,null,null,null,null,{"$f":"'Schedule IIB (EBS)'!H50","v":0}]
["Sch IIB","Investments",null,"Short - Before - Qualified Assets - Strategic Holdings - Unlisted",null,null,null,null,null,null,null,null,{"$f":"'Schedule IIB (EBS)'!H51","v":0}]
["Sch IIB","Investments",null,"Short - Before - Qualified Assets - Other Equities",null,null,null,null,null,null,null,null,{"$f":"'Schedule IIB (EBS)'!H52","v":0}]
["Sch IIB","Investments",null,"Short - Before - Qualified Assets - Letters of Credit",null,null,null,null,null,null,null,null,{"$f":"'Schedule IIB (EBS)'!H53","v":0}]
["Sch IIB","Investments",null,"Short - Before - Qualified Assets - Intangible assets",null,null,null,null,null,null,null,null,{"$f":"'Schedule IIB (EBS)'!H54","v":0}]
["Sch IIB","Investments",null,"Short - Before - Qualified Assets - Pension Benefit Surplus",null,null,null,null,null,null,null,null,{"$f":"'Schedule IIB (EBS)'!H55","v":0}]
["Sch IIB","Investments",null,"Short - Before - Qualified Assets - Equity Derivatives on Type 2 Equities",null,null,null,null,null,null,null,null,{"$f":"'Schedule IIB (EBS)'!H56","v":0}]
["Sch IIB","Investments",null,"Short - Before - Qualified Assets - Infrastructure",null,null,null,null,null,null,null,null,{"$f":"'Schedule IIB (EBS)'!H57","v":0}]
["Sch IIB","Investments",null,"Short - Before - Qualified Assets - Derivatives on Infrastructure",null,null,null,null,null,null,null,null,{"$f":"'Schedule IIB (EBS)'!H58","v":0}]
["Sch IIB","Investments",null,"Short - Before - Qualified Assets - Equity Real Estate 1",null,null,null,null,null,null,null,null,{"$f":"'Schedule IIB (EBS)'!H59","v":0}]
["Sch IIB","Investments",null,"Short - Before - Qualified Assets - Equity Real Estate 2",null,null,null,null,null,null,null,null,{"$f":"'Schedule IIB (EBS)'!H60","v":0}]
["Sch IIB","Investments",null,"Short - After - Qualified Assets - Strategic Holdings - Listed",null,null,null,null,null,null,null,null,{"$f":"'Schedule IIB (EBS)'!J39","v":0}]
["Sch IIB","Investments",null,"Short - After - Qualified Assets - Duration Based",null,null,null,null,null,null,null,null,{"$f":"'Schedule IIB (EBS)'!J40","v":0}]
["Sch IIB","Investments",null,"Short - After - Qualified Assets - Listed Equity Securities in Developed Markets",null,null,null,null,null,null,null,null,{"$f":"'Schedule IIB (EBS)'!J41","v":0}]
["Sch IIB","Investments",null,"Short - After - Qualified Assets - Preferred Stocks, BSCR Rating 1",null,null,null,null,null,null,null,null,{"$f":"'Schedule IIB (EBS)'!J42","v":0}]
["Sch IIB","Investments",null,"Short - After - Qualified Assets - Preferred Stocks, BSCR Rating 2",null,null,null,null,null,null,null,null,{"$f":"'Schedule IIB (EBS)'!J43","v":0}]
["Sch IIB","Investments",null,"Short - After - Qualified Assets - Preferred Stocks, BSCR Rating 3",null,null,null,null,null,null,null,null,{"$f":"'Schedule IIB (EBS)'!J44","v":0}]
["Sch IIB","Investments",null,"Short - After - Qualified Assets - Preferred Stocks, BSCR Rating 4",null,null,null,null,null,null,null,null,{"$f":"'Schedule IIB (EBS)'!J45","v":0}]
["Sch IIB","Investments",null,"Short - After - Qualified Assets - Preferred Stocks, BSCR Rating 5",null,null,null,null,null,null,null,null,{"$f":"'Schedule IIB (EBS)'!J46","v":0}]
["Sch IIB","Investments",null,"Short - After - Qualified Assets - Preferred Stocks, BSCR Rating 6",null,null,null,null,null,null,null,null,{"$f":"'Schedule IIB (EBS)'!J47","v":0}]
["Sch IIB","Investments",null,"Short - After - Qualified Assets - Preferred Stocks, BSCR Rating 7",null,null,null,null,null,null,null,null,{"$f":"'Schedule IIB (EBS)'!J48","v":0}]
["Sch IIB","Investments",null,"Short - After - Qualified Assets - Preferred Stocks, BSCR Rating 8",null,null,null,null,null,null,null,null,{"$f":"'Schedule IIB (EBS)'!J49","v":0}]
["Sch IIB","Investments",null,"Short - After - Qualified Assets - Equity Derivatives on Type 1 Equities",null,null,null,null,null,null,null,null,{"$f":"'Schedule IIB (EBS)'!J50","v":0}]
["Sch IIB","Investments",null,"Short - After - Qualified Assets - Strategic Holdings - Unlisted",null,null,null,null,null,null,null,null,{"$f":"'Schedule IIB (EBS)'!J51","v":0}]
["Sch IIB","Investments",null,"Short - After - Qualified Assets - Other Equities",null,null,null,null,null,null,null,null,{"$f":"'Schedule IIB (EBS)'!J52","v":0}]
["Sch IIB","Investments",null,"Short - After - Qualified Assets - Letters of Credit",null,null,null,null,null,null,null,null,{"$f":"'Schedule IIB (EBS)'!J53","v":0}]
["Sch IIB","Investments",null,"Short - After - Qualified Assets - Intangible assets",null,null,null,null,null,null,null,null,{"$f":"'Schedule IIB (EBS)'!J54","v":0}]
["Sch IIB","Investments",null,"Short - After - Qualified Assets - Pension Benefit Surplus",null,null,null,null,null,null,null,null,{"$f":"'Schedule IIB (EBS)'!J55","v":0}]
["Sch IIB","Investments",null,"Short - After - Qualified Assets - Equity Derivatives on Type 2 Equities",null,null,null,null,null,null,null,null,{"$f":"'Schedule IIB (EBS)'!J56","v":0}]
["Sch IIB","Investments",null,"Short - After - Qualified Assets - Infrastructure",null,null,null,null,null,null,null,null,{"$f":"'Schedule IIB (EBS)'!J57","v":0}]
["Sch IIB","Investments",null,"Short - After - Qualified Assets - Derivatives on Infrastructure",null,null,null,null,null,null,null,null,{"$f":"'Schedule IIB (EBS)'!J58","v":0}]
["Sch IIB","Investments",null,"Short - After - Qualified Assets - Equity Real Estate 1",null,null,null,null,null,null,null,null,{"$f":"'Schedule IIB (EBS)'!J59","v":0}]
["Sch IIB","Investments",null,"Short - After - Qualified Assets - Equity Real Estate 2",null,null,null,null,null,null,null,null,{"$f":"'Schedule IIB (EBS)'!J60","v":0}]
["Sch IIB","Investments",null,"Short - Before - UnQualified Assets - Strategic Holdings - Listed",null,null,null,null,null,null,null,null,{"$f":"'Schedule IIB (EBS)'!L39","v":0}]
["Sch IIB","Investments",null,"Short - Before - UnQualified Assets - Duration Based",null,null,null,null,null,null,null,null,{"$f":"'Schedule IIB (EBS)'!L40","v":0}]
["Sch IIB","Investments",null,"Short - Before - UnQualified Assets - Listed Equity Securities in Developed Markets",null,null,null,null,null,null,null,null,{"$f":"'Schedule IIB (EBS)'!L41","v":0}]
["Sch IIB","Investments",null,"Short - Before - UnQualified Assets - Preferred Stocks, BSCR Rating 1",null,null,null,null,null,null,null,null,{"$f":"'Schedule IIB (EBS)'!L42","v":0}]
["Sch IIB","Investments",null,"Short - Before - UnQualified Assets - Preferred Stocks, BSCR Rating 2",null,null,null,null,null,null,null,null,{"$f":"'Schedule IIB (EBS)'!L43","v":0}]
["Sch IIB","Investments",null,"Short - Before - UnQualified Assets - Preferred Stocks, BSCR Rating 3",null,null,null,null,null,null,null,null,{"$f":"'Schedule IIB (EBS)'!L44","v":0}]
["Sch IIB","Investments",null,"Short - Before - UnQualified Assets - Preferred Stocks, BSCR Rating 4",null,null,null,null,null,null,null,null,{"$f":"'Schedule IIB (EBS)'!L45","v":0}]
["Sch IIB","Investments",null,"Short - Before - UnQualified Assets - Preferred Stocks, BSCR Rating 5",null,null,null,null,null,null,null,null,{"$f":"'Schedule IIB (EBS)'!L46","v":0}]
["Sch IIB","Investments",null,"Short - Before - UnQualified Assets - Preferred Stocks, BSCR Rating 6",null,null,null,null,null,null,null,null,{"$f":"'Schedule IIB (EBS)'!L47","v":0}]
["Sch IIB","Investments",null,"Short - Before - UnQualified Assets - Preferred Stocks, BSCR Rating 7",null,null,null,null,null,null,null,null,{"$f":"'Schedule IIB (EBS)'!L48","v":0}]
["Sch IIB","Investments",null,"Short - Before - UnQualified Assets - Preferred Stocks, BSCR Rating 8",null,null,null,null,null,null,null,null,{"$f":"'Schedule IIB (EBS)'!L49","v":0}]
["Sch IIB","Investments",null,"Short - Before - UnQualified Assets - Equity Derivatives on Type 1 Equities",null,null,null,null,null,null,null,null,{"$f":"'Schedule IIB (EBS)'!L50","v":0}]
["Sch IIB","Investments",null,"Short - Before - UnQualified Assets - Strategic Holdings - Unlisted",null,null,null,null,null,null,null,null,{"$f":"'Schedule IIB (EBS)'!L51","v":0}]
["Sch IIB","Investments",null,"Short - Before - UnQualified Assets - Other Equities",null,null,null,null,null,null,null,null,{"$f":"'Schedule IIB (EBS)'!L52","v":0}]
["Sch IIB","Investments",null,"Short - Before - UnQualified Assets - Letters of Credit",null,null,null,null,null,null,null,null,{"$f":"'Schedule IIB (EBS)'!L53","v":0}]
["Sch IIB","Investments",null,"Short - Before - UnQualified Assets - Intangible assets",null,null,null,null,null,null,null,null,{"$f":"'Schedule IIB (EBS)'!L54","v":0}]
["Sch IIB","Investments",null,"Short - Before - UnQualified Assets - Pension Benefit Surplus",null,null,null,null,null,null,null,null,{"$f":"'Schedule IIB (EBS)'!L55","v":0}]
["Sch IIB","Investments",null,"Short - Before - UnQualified Assets - Equity Derivatives on Type 2 Equities",null,null,null,null,null,null,null,null,{"$f":"'Schedule IIB (EBS)'!L56","v":0}]
["Sch IIB","Investments",null,"Short - Before - UnQualified Assets - Infrastructure",null,null,null,null,null,null,null,null,{"$f":"'Schedule IIB (EBS)'!L57","v":0}]
["Sch IIB","Investments",null,"Short - Before - UnQualified Assets - Derivatives on Infrastructure",null,null,null,null,null,null,null,null,{"$f":"'Schedule IIB (EBS)'!L58","v":0}]
["Sch IIB","Investments",null,"Short - Before - UnQualified Assets - Equity Real Estate 1",null,null,null,null,null,null,null,null,{"$f":"'Schedule IIB (EBS)'!L59","v":0}]
["Sch IIB","Investments",null,"Short - Before - UnQualified Assets - Equity Real Estate 2",null,null,null,null,null,null,null,null,{"$f":"'Schedule IIB (EBS)'!L60","v":0}]
["Sch IIB","Investments",null,"Short - After - UnQualified Assets - Strategic Holdings - Listed",null,null,null,null,null,null,null,null,{"$f":"'Schedule IIB (EBS)'!N39","v":0}]
["Sch IIB","Investments",null,"Short - After - UnQualified Assets - Duration Based",null,null,null,null,null,null,null,null,{"$f":"'Schedule IIB (EBS)'!N40","v":0}]
["Sch IIB","Investments",null,"Short - After - UnQualified Assets - Listed Equity Securities in Developed Markets",null,null,null,null,null,null,null,null,{"$f":"'Schedule IIB (EBS)'!N41","v":0}]
["Sch IIB","Investments",null,"Short - After - UnQualified Assets - Preferred Stocks, BSCR Rating 1",null,null,null,null,null,null,null,null,{"$f":"'Schedule IIB (EBS)'!N42","v":0}]
["Sch IIB","Investments",null,"Short - After - UnQualified Assets - Preferred Stocks, BSCR Rating 2",null,null,null,null,null,null,null,null,{"$f":"'Schedule IIB (EBS)'!N43","v":0}]
["Sch IIB","Investments",null,"Short - After - UnQualified Assets - Preferred Stocks, BSCR Rating 3",null,null,null,null,null,null,null,null,{"$f":"'Schedule IIB (EBS)'!N44","v":0}]
["Sch IIB","Investments",null,"Short - After - UnQualified Assets - Preferred Stocks, BSCR Rating 4",null,null,null,null,null,null,null,null,{"$f":"'Schedule IIB (EBS)'!N45","v":0}]
["Sch IIB","Investments",null,"Short - After - UnQualified Assets - Preferred Stocks, BSCR Rating 5",null,null,null,null,null,null,null,null,{"$f":"'Schedule IIB (EBS)'!N46","v":0}]
["Sch IIB","Investments",null,"Short - After - UnQualified Assets - Preferred Stocks, BSCR Rating 6",null,null,null,null,null,null,null,null,{"$f":"'Schedule IIB (EBS)'!N47","v":0}]
["Sch IIB","Investments",null,"Short - After - UnQualified Assets - Preferred Stocks, BSCR Rating 7",null,null,null,null,null,null,null,null,{"$f":"'Schedule IIB (EBS)'!N48","v":0}]
["Sch IIB","Investments",null,"Short - After - UnQualified Assets - Preferred Stocks, BSCR Rating 8",null,null,null,null,null,null,null,null,{"$f":"'Schedule IIB (EBS)'!N49","v":0}]
["Sch IIB","Investments",null,"Short - After - UnQualified Assets - Equity Derivatives on Type 1 Equities",null,null,null,null,null,null,null,null,{"$f":"'Schedule IIB (EBS)'!N50","v":0}]
["Sch IIB","Investments",null,"Short - After - UnQualified Assets - Strategic Holdings - Unlisted",null,null,null,null,null,null,null,null,{"$f":"'Schedule IIB (EBS)'!N51","v":0}]
["Sch IIB","Investments",null,"Short - After - UnQualified Assets - Other Equities",null,null,null,null,null,null,null,null,{"$f":"'Schedule IIB (EBS)'!N52","v":0}]
["Sch IIB","Investments",null,"Short - After - UnQualified Assets - Letters of Credit",null,null,null,null,null,null,null,null,{"$f":"'Schedule IIB (EBS)'!N53","v":0}]
["Sch IIB","Investments",null,"Short - After - UnQualified Assets - Intangible assets",null,null,null,null,null,null,null,null,{"$f":"'Schedule IIB (EBS)'!N54","v":0}]
["Sch IIB","Investments",null,"Short - After - UnQualified Assets - Pension Benefit Surplus",null,null,null,null,null,null,null,null,{"$f":"'Schedule IIB (EBS)'!N55","v":0}]
["Sch IIB","Investments",null,"Short - After - UnQualified Assets - Equity Derivatives on Type 2 Equities",null,null,null,null,null,null,null,null,{"$f":"'Schedule IIB (EBS)'!N56","v":0}]
["Sch IIB","Investments",null,"Short - After - UnQualified Assets - Infrastructure",null,null,null,null,null,null,null,null,{"$f":"'Schedule IIB (EBS)'!N57","v":0}]
["Sch IIB","Investments",null,"Short - After - UnQualified Assets - Derivatives on Infrastructure",null,null,null,null,null,null,null,null,{"$f":"'Schedule IIB (EBS)'!N58","v":0}]
["Sch IIB","Investments",null,"Short - After - UnQualified Assets - Equity Real Estate 1",null,null,null,null,null,null,null,null,{"$f":"'Schedule IIB (EBS)'!N59","v":0}]
["Sch IIB","Investments",null,"Short - After - UnQualified Assets - Equity Real Estate 2",null,null,null,null,null,null,null,null,{"$f":"'Schedule IIB (EBS)'!N60","v":0}]
["Sch IIB","Investments",null,"Liabilities - Before - W/O Mgmt Actions - Strategic Holdings - Listed",null,null,null,null,null,null,null,null,{"$f":"'Schedule IIB (EBS)'!P39","v":0}]
["Sch IIB","Investments",null,"Liabilities - Before - W/O Mgmt Actions - Duration Based",null,null,null,null,null,null,null,null,{"$f":"'Schedule IIB (EBS)'!P40","v":0}]
["Sch IIB","Investments",null,"Liabilities - Before - W/O Mgmt Actions - Listed Equity Securities in Developed Markets",null,null,null,null,null,null,null,null,{"$f":"'Schedule IIB (EBS)'!P41","v":0}]
["Sch IIB","Investments",null,"Liabilities - Before - W/O Mgmt Actions - Preferred Stocks, BSCR Rating 1",null,null,null,null,null,null,null,null,{"$f":"'Schedule IIB (EBS)'!P42","v":0}]
["Sch IIB","Investments",null,"Liabilities - Before - W/O Mgmt Actions - Preferred Stocks, BSCR Rating 2",null,null,null,null,null,null,null,null,{"$f":"'Schedule IIB (EBS)'!P43","v":0}]
["Sch IIB","Investments",null,"Liabilities - Before - W/O Mgmt Actions - Preferred Stocks, BSCR Rating 3",null,null,null,null,null,null,null,null,{"$f":"'Schedule IIB (EBS)'!P44","v":0}]
["Sch IIB","Investments",null,"Liabilities - Before - W/O Mgmt Actions - Preferred Stocks, BSCR Rating 4",null,null,null,null,null,null,null,null,{"$f":"'Schedule IIB (EBS)'!P45","v":0}]
["Sch IIB","Investments",null,"Liabilities - Before - W/O Mgmt Actions - Preferred Stocks, BSCR Rating 5",null,null,null,null,null,null,null,null,{"$f":"'Schedule IIB (EBS)'!P46","v":0}]
["Sch IIB","Investments",null,"Liabilities - Before - W/O Mgmt Actions - Preferred Stocks, BSCR Rating 6",null,null,null,null,null,null,null,null,{"$f":"'Schedule IIB (EBS)'!P47","v":0}]
["Sch IIB","Investments",null,"Liabilities - Before - W/O Mgmt Actions - Preferred Stocks, BSCR Rating 7",null,null,null,null,null,null,null,null,{"$f":"'Schedule IIB (EBS)'!P48","v":0}]
["Sch IIB","Investments",null,"Liabilities - Before - W/O Mgmt Actions - Preferred Stocks, BSCR Rating 8",null,null,null,null,null,null,null,null,{"$f":"'Schedule IIB (EBS)'!P49","v":0}]
["Sch IIB","Investments",null,"Liabilities - Before - W/O Mgmt Actions - Equity Derivatives on Type 1 Equities",null,null,null,null,null,null,null,null,{"$f":"'Schedule IIB (EBS)'!P50","v":0}]
["Sch IIB","Investments",null,"Liabilities - Before - W/O Mgmt Actions - Strategic Holdings - Unlisted",null,null,null,null,null,null,null,null,{"$f":"'Schedule IIB (EBS)'!P51","v":0}]
["Sch IIB","Investments",null,"Liabilities - Before - W/O Mgmt Actions - Other Equities",null,null,null,null,null,null,null,null,{"$f":"'Schedule IIB (EBS)'!P52","v":0}]
["Sch IIB","Investments",null,"Liabilities - Before - W/O Mgmt Actions - Letters of Credit",null,null,null,null,null,null,null,null,{"$f":"'Schedule IIB (EBS)'!P53","v":0}]
["Sch IIB","Investments",null,"Liabilities - Before - W/O Mgmt Actions - Intangible assets",null,null,null,null,null,null,null,null,{"$f":"'Schedule IIB (EBS)'!P54","v":0}]
["Sch IIB","Investments",null,"Liabilities - Before - W/O Mgmt Actions - Pension Benefit Surplus",null,null,null,null,null,null,null,null,{"$f":"'Schedule IIB (EBS)'!P55","v":0}]
["Sch IIB","Investments",null,"Liabilities - Before - W/O Mgmt Actions - Equity Derivatives on Type 2 Equities",null,null,null,null,null,null,null,null,{"$f":"'Schedule IIB (EBS)'!P56","v":0}]
["Sch IIB","Investments",null,"Liabilities - Before - W/O Mgmt Actions - Infrastructure",null,null,null,null,null,null,null,null,{"$f":"'Schedule IIB (EBS)'!P57","v":0}]
["Sch IIB","Investments",null,"Liabilities - Before - W/O Mgmt Actions - Derivatives on Infrastructure",null,null,null,null,null,null,null,null,{"$f":"'Schedule IIB (EBS)'!P58","v":0}]
["Sch IIB","Investments",null,"Liabilities - Before - W/O Mgmt Actions - Equity Real Estate 1",null,null,null,null,null,null,null,null,{"$f":"'Schedule IIB (EBS)'!P59","v":0}]
["Sch IIB","Investments",null,"Liabilities - Before - W/O Mgmt Actions - Equity Real Estate 2",null,null,null,null,null,null,null,null,{"$f":"'Schedule IIB (EBS)'!P60","v":0}]
["Sch IIB","Investments",null,"Liabilities - After - W/O Mgmt Actions - Strategic Holdings - Listed",null,null,null,null,null,null,null,null,{"$f":"'Schedule IIB (EBS)'!R39","v":0}]
["Sch IIB","Investments",null,"Liabilities - After - W/O Mgmt Actions - Duration Based",null,null,null,null,null,null,null,null,{"$f":"'Schedule IIB (EBS)'!R40","v":0}]
["Sch IIB","Investments",null,"Liabilities - After - W/O Mgmt Actions - Listed Equity Securities in Developed Markets",null,null,null,null,null,null,null,null,{"$f":"'Schedule IIB (EBS)'!R41","v":0}]
["Sch IIB","Investments",null,"Liabilities - After - W/O Mgmt Actions - Preferred Stocks, BSCR Rating 1",null,null,null,null,null,null,null,null,{"$f":"'Schedule IIB (EBS)'!R42","v":0}]
["Sch IIB","Investments",null,"Liabilities - After - W/O Mgmt Actions - Preferred Stocks, BSCR Rating 2",null,null,null,null,null,null,null,null,{"$f":"'Schedule IIB (EBS)'!R43","v":0}]
["Sch IIB","Investments",null,"Liabilities - After - W/O Mgmt Actions - Preferred Stocks, BSCR Rating 3",null,null,null,null,null,null,null,null,{"$f":"'Schedule IIB (EBS)'!R44","v":0}]
["Sch IIB","Investments",null,"Liabilities - After - W/O Mgmt Actions - Preferred Stocks, BSCR Rating 4",null,null,null,null,null,null,null,null,{"$f":"'Schedule IIB (EBS)'!R45","v":0}]
["Sch IIB","Investments",null,"Liabilities - After - W/O Mgmt Actions - Preferred Stocks, BSCR Rating 5",null,null,null,null,null,null,null,null,{"$f":"'Schedule IIB (EBS)'!R46","v":0}]
["Sch IIB","Investments",null,"Liabilities - After - W/O Mgmt Actions - Preferred Stocks, BSCR Rating 6",null,null,null,null,null,null,null,null,{"$f":"'Schedule IIB (EBS)'!R47","v":0}]
["Sch IIB","Investments",null,"Liabilities - After - W/O Mgmt Actions - Preferred Stocks, BSCR Rating 7",null,null,null,null,null,null,null,null,{"$f":"'Schedule IIB (EBS)'!R48","v":0}]
["Sch IIB","Investments",null,"Liabilities - After - W/O Mgmt Actions - Preferred Stocks, BSCR Rating 8",null,null,null,null,null,null,null,null,{"$f":"'Schedule IIB (EBS)'!R49","v":0}]
["Sch IIB","Investments",null,"Liabilities - After - W/O Mgmt Actions - Equity Derivatives on Type 1 Equities",null,null,null,null,null,null,null,null,{"$f":"'Schedule IIB (EBS)'!R50","v":0}]
["Sch IIB","Investments",null,"Liabilities - After - W/O Mgmt Actions - Strategic Holdings - Unlisted",null,null,null,null,null,null,null,null,{"$f":"'Schedule IIB (EBS)'!R51","v":0}]
["Sch IIB","Investments",null,"Liabilities - After - W/O Mgmt Actions - Other Equities",null,null,null,null,null,null,null,null,{"$f":"'Schedule IIB (EBS)'!R52","v":0}]
["Sch IIB","Investments",null,"Liabilities - After - W/O Mgmt Actions - Letters of Credit",null,null,null,null,null,null,null,null,{"$f":"'Schedule IIB (EBS)'!R53","v":0}]
["Sch IIB","Investments",null,"Liabilities - After - W/O Mgmt Actions - Intangible assets",null,null,null,null,null,null,null,null,{"$f":"'Schedule IIB (EBS)'!R54","v":0}]
["Sch IIB","Investments",null,"Liabilities - After - W/O Mgmt Actions - Pension Benefit Surplus",null,null,null,null,null,null,null,null,{"$f":"'Schedule IIB (EBS)'!R55","v":0}]
["Sch IIB","Investments",null,"Liabilities - After - W/O Mgmt Actions - Equity Derivatives on Type 2 Equities",null,null,null,null,null,null,null,null,{"$f":"'Schedule IIB (EBS)'!R56","v":0}]
["Sch IIB","Investments",null,"Liabilities - After - W/O Mgmt Actions - Infrastructure",null,null,null,null,null,null,null,null,{"$f":"'Schedule IIB (EBS)'!R57","v":0}]
["Sch IIB","Investments",null,"Liabilities - After - W/O Mgmt Actions - Derivatives on Infrastructure",null,null,null,null,null,null,null,null,{"$f":"'Schedule IIB (EBS)'!R58","v":0}]
["Sch IIB","Investments",null,"Liabilities - After - W/O Mgmt Actions - Equity Real Estate 1",null,null,null,null,null,null,null,null,{"$f":"'Schedule IIB (EBS)'!R59","v":0}]
["Sch IIB","Investments",null,"Liabilities - After - W/O Mgmt Actions - Equity Real Estate 2",null,null,null,null,null,null,null,null,{"$f":"'Schedule IIB (EBS)'!R60","v":0}]
["Sch IIB","Investments",null,"Liabilities - After - With Mgmt Actions - Strategic Holdings - Listed",null,null,null,null,null,null,null,null,{"$f":"'Schedule IIB (EBS)'!T39","v":0}]
["Sch IIB","Investments",null,"Liabilities - After - With Mgmt Actions - Duration Based",null,null,null,null,null,null,null,null,{"$f":"'Schedule IIB (EBS)'!T40","v":0}]
["Sch IIB","Investments",null,"Liabilities - After - With Mgmt Actions - Listed Equity Securities in Developed Markets",null,null,null,null,null,null,null,null,{"$f":"'Schedule IIB (EBS)'!T41","v":0}]
["Sch IIB","Investments",null,"Liabilities - After - With Mgmt Actions - Preferred Stocks, BSCR Rating 1",null,null,null,null,null,null,null,null,{"$f":"'Schedule IIB (EBS)'!T42","v":0}]
["Sch IIB","Investments",null,"Liabilities - After - With Mgmt Actions - Preferred Stocks, BSCR Rating 2",null,null,null,null,null,null,null,null,{"$f":"'Schedule IIB (EBS)'!T43","v":0}]
["Sch IIB","Investments",null,"Liabilities - After - With Mgmt Actions - Preferred Stocks, BSCR Rating 3",null,null,null,null,null,null,null,null,{"$f":"'Schedule IIB (EBS)'!T44","v":0}]
["Sch IIB","Investments",null,"Liabilities - After - With Mgmt Actions - Preferred Stocks, BSCR Rating 4",null,null,null,null,null,null,null,null,{"$f":"'Schedule IIB (EBS)'!T45","v":0}]
["Sch IIB","Investments",null,"Liabilities - After - With Mgmt Actions - Preferred Stocks, BSCR Rating 5",null,null,null,null,null,null,null,null,{"$f":"'Schedule IIB (EBS)'!T46","v":0}]
["Sch IIB","Investments",null,"Liabilities - After - With Mgmt Actions - Preferred Stocks, BSCR Rating 6",null,null,null,null,null,null,null,null,{"$f":"'Schedule IIB (EBS)'!T47","v":0}]
["Sch IIB","Investments",null,"Liabilities - After - With Mgmt Actions - Preferred Stocks, BSCR Rating 7",null,null,null,null,null,null,null,null,{"$f":"'Schedule IIB (EBS)'!T48","v":0}]
["Sch IIB","Investments",null,"Liabilities - After - With Mgmt Actions - Preferred Stocks, BSCR Rating 8",null,null,null,null,null,null,null,null,{"$f":"'Schedule IIB (EBS)'!T49","v":0}]
["Sch IIB","Investments",null,"Liabilities - After - With Mgmt Actions - Equity Derivatives on Type 1 Equities",null,null,null,null,null,null,null,null,{"$f":"'Schedule IIB (EBS)'!T50","v":0}]
["Sch IIB","Investments",null,"Liabilities - After - With Mgmt Actions - Strategic Holdings - Unlisted",null,null,null,null,null,null,null,null,{"$f":"'Schedule IIB (EBS)'!T51","v":0}]
["Sch IIB","Investments",null,"Liabilities - After - With Mgmt Actions - Other Equities",null,null,null,null,null,null,null,null,{"$f":"'Schedule IIB (EBS)'!T52","v":0}]
["Sch IIB","Investments",null,"Liabilities - After - With Mgmt Actions - Letters of Credit",null,null,null,null,null,null,null,null,{"$f":"'Schedule IIB (EBS)'!T53","v":0}]
["Sch IIB","Investments",null,"Liabilities - After - With Mgmt Actions - Intangible assets",null,null,null,null,null,null,null,null,{"$f":"'Schedule IIB (EBS)'!T54","v":0}]
["Sch IIB","Investments",null,"Liabilities - After - With Mgmt Actions - Pension Benefit Surplus",null,null,null,null,null,null,null,null,{"$f":"'Schedule IIB (EBS)'!T55","v":0}]
["Sch IIB","Investments",null,"Liabilities - After - With Mgmt Actions - Equity Derivatives on Type 2 Equities",null,null,null,null,null,null,null,null,{"$f":"'Schedule IIB (EBS)'!T56","v":0}]
["Sch IIB","Investments",null,"Liabilities - After - With Mgmt Actions - Infrastructure",null,null,null,null,null,null,null,null,{"$f":"'Schedule IIB (EBS)'!T57","v":0}]
["Sch IIB","Investments",null,"Liabilities - After - With Mgmt Actions - Derivatives on Infrastructure",null,null,null,null,null,null,null,null,{"$f":"'Schedule IIB (EBS)'!T58","v":0}]
["Sch IIB","Investments",null,"Liabilities - After - With Mgmt Actions - Equity Real Estate 1",null,null,null,null,null,null,null,null,{"$f":"'Schedule IIB (EBS)'!T59","v":0}]
["Sch IIB","Investments",null,"Liabilities - After - With Mgmt Actions - Equity Real Estate 2",null,null,null,null,null,null,null,null,{"$f":"'Schedule IIB (EBS)'!T60","v":0}]
["Sch IIB","Investments",null,"Credit Derivatives - Up - Before - Long-Rating 0",null,null,null,null,null,null,null,null,{"$f":"'Schedule IIB (EBS)'!D68","v":0}]
["Sch IIB","Investments",null,"Credit Derivatives - Up - Before - Long-Rating 1",null,null,null,null,null,null,null,null,{"$f":"'Schedule IIB (EBS)'!D69","v":0}]
["Sch IIB","Investments",null,"Credit Derivatives - Up - Before - Long-Rating 2",null,null,null,null,null,null,null,null,{"$f":"'Schedule IIB (EBS)'!D70","v":0}]
["Sch IIB","Investments",null,"Credit Derivatives - Up - Before - Long-Rating 3",null,null,null,null,null,null,null,null,{"$f":"'Schedule IIB (EBS)'!D71","v":0}]
["Sch IIB","Investments",null,"Credit Derivatives - Up - Before - Long-Rating 4",null,null,null,null,null,null,null,null,{"$f":"'Schedule IIB (EBS)'!D72","v":0}]
["Sch IIB","Investments",null,"Credit Derivatives - Up - Before - Long-Rating 5",null,null,null,null,null,null,null,null,{"$f":"'Schedule IIB (EBS)'!D73","v":0}]
["Sch IIB","Investments",null,"Credit Derivatives - Up - Before - Long-Rating 6",null,null,null,null,null,null,null,null,{"$f":"'Schedule IIB (EBS)'!D74","v":0}]
["Sch IIB","Investments",null,"Credit Derivatives - Up - Before - Long-Rating 7",null,null,null,null,null,null,null,null,{"$f":"'Schedule IIB (EBS)'!D75","v":0}]
["Sch IIB","Investments",null,"Credit Derivatives - Up - Before - Long-Rating 8",null,null,null,null,null,null,null,null,{"$f":"'Schedule IIB (EBS)'!D76","v":0}]
["Sch IIB","Investments",null,"Credit Derivatives - Up - After - Long- Rating 0",null,null,null,null,null,null,null,null,{"$f":"'Schedule IIB (EBS)'!F68","v":0}]
["Sch IIB","Investments",null,"Credit Derivatives - Up - After - Long- Rating 1",null,null,null,null,null,null,null,null,{"$f":"'Schedule IIB (EBS)'!F69","v":0}]
["Sch IIB","Investments",null,"Credit Derivatives - Up - After - Long- Rating 2",null,null,null,null,null,null,null,null,{"$f":"'Schedule IIB (EBS)'!F70","v":0}]
["Sch IIB","Investments",null,"Credit Derivatives - Up - After - Long- Rating 3",null,null,null,null,null,null,null,null,{"$f":"'Schedule IIB (EBS)'!F71","v":0}]
["Sch IIB","Investments",null,"Credit Derivatives - Up - After - Long- Rating 4",null,null,null,null,null,null,null,null,{"$f":"'Schedule IIB (EBS)'!F72","v":0}]
["Sch IIB","Investments",null,"Credit Derivatives - Up - After - Long- Rating 5",null,null,null,null,null,null,null,null,{"$f":"'Schedule IIB (EBS)'!F73","v":0}]
["Sch IIB","Investments",null,"Credit Derivatives - Up - After - Long- Rating 6",null,null,null,null,null,null,null,null,{"$f":"'Schedule IIB (EBS)'!F74","v":0}]
["Sch IIB","Investments",null,"Credit Derivatives - Up - After - Long- Rating 7",null,null,null,null,null,null,null,null,{"$f":"'Schedule IIB (EBS)'!F75","v":0}]
["Sch IIB","Investments",null,"Credit Derivatives - Up - After - Long- Rating 8",null,null,null,null,null,null,null,null,{"$f":"'Schedule IIB (EBS)'!F76","v":0}]
["Sch IIB","Investments",null,"Credit Derivatives - Up - Before - Short- Rating 0",null,null,null,null,null,null,null,null,{"$f":"'Schedule IIB (EBS)'!H68","v":0}]
["Sch IIB","Investments",null,"Credit Derivatives - Up - Before - Short- Rating 1",null,null,null,null,null,null,null,null,{"$f":"'Schedule IIB (EBS)'!H69","v":0}]
["Sch IIB","Investments",null,"Credit Derivatives - Up - Before - Short- Rating 2",null,null,null,null,null,null,null,null,{"$f":"'Schedule IIB (EBS)'!H70","v":0}]
["Sch IIB","Investments",null,"Credit Derivatives - Up - Before - Short- Rating 3",null,null,null,null,null,null,null,null,{"$f":"'Schedule IIB (EBS)'!H71","v":0}]
["Sch IIB","Investments",null,"Credit Derivatives - Up - Before - Short- Rating 4",null,null,null,null,null,null,null,null,{"$f":"'Schedule IIB (EBS)'!H72","v":0}]
["Sch IIB","Investments",null,"Credit Derivatives - Up - Before - Short- Rating 5",null,null,null,null,null,null,null,null,{"$f":"'Schedule IIB (EBS)'!H73","v":0}]
["Sch IIB","Investments",null,"Credit Derivatives - Up - Before - Short- Rating 6",null,null,null,null,null,null,null,null,{"$f":"'Schedule IIB (EBS)'!H74","v":0}]
["Sch IIB","Investments",null,"Credit Derivatives - Up - Before - Short- Rating 7",null,null,null,null,null,null,null,null,{"$f":"'Schedule IIB (EBS)'!H75","v":0}]
["Sch IIB","Investments",null,"Credit Derivatives - Up - Before - Short- Rating 8",null,null,null,null,null,null,null,null,{"$f":"'Schedule IIB (EBS)'!H76","v":0}]
["Sch IIB","Investments",null,"Credit Derivatives - Up - After - Short- Rating 0",null,null,null,null,null,null,null,null,{"$f":"'Schedule IIB (EBS)'!J68","v":0}]
["Sch IIB","Investments",null,"Credit Derivatives - Up - After - Short- Rating 1",null,null,null,null,null,null,null,null,{"$f":"'Schedule IIB (EBS)'!J69","v":0}]
["Sch IIB","Investments",null,"Credit Derivatives - Up - After - Short- Rating 2",null,null,null,null,null,null,null,null,{"$f":"'Schedule IIB (EBS)'!J70","v":0}]
["Sch IIB","Investments",null,"Credit Derivatives - Up - After - Short- Rating 3",null,null,null,null,null,null,null,null,{"$f":"'Schedule IIB (EBS)'!J71","v":0}]
["Sch IIB","Investments",null,"Credit Derivatives - Up - After - Short- Rating 4",null,null,null,null,null,null,null,null,{"$f":"'Schedule IIB (EBS)'!J72","v":0}]
["Sch IIB","Investments",null,"Credit Derivatives - Up - After - Short- Rating 5",null,null,null,null,null,null,null,null,{"$f":"'Schedule IIB (EBS)'!J73","v":0}]
["Sch IIB","Investments",null,"Credit Derivatives - Up - After - Short- Rating 6",null,null,null,null,null,null,null,null,{"$f":"'Schedule IIB (EBS)'!J74","v":0}]
["Sch IIB","Investments",null,"Credit Derivatives - Up - After - Short- Rating 7",null,null,null,null,null,null,null,null,{"$f":"'Schedule IIB (EBS)'!J75","v":0}]
["Sch IIB","Investments",null,"Credit Derivatives - Up - After - Short- Rating 8",null,null,null,null,null,null,null,null,{"$f":"'Schedule IIB (EBS)'!J76","v":0}]
["Sch IIB","Investments",null,"Credit Derivatives - Down - Before - Long-Rating 0",null,null,null,null,null,null,null,null,{"$f":"'Schedule IIB (EBS)'!N68","v":0}]
["Sch IIB","Investments",null,"Credit Derivatives - Down - Before - Long-Rating 1",null,null,null,null,null,null,null,null,{"$f":"'Schedule IIB (EBS)'!N69","v":0}]
["Sch IIB","Investments",null,"Credit Derivatives - Down - Before - Long-Rating 2",null,null,null,null,null,null,null,null,{"$f":"'Schedule IIB (EBS)'!N70","v":0}]
["Sch IIB","Investments",null,"Credit Derivatives - Down - Before - Long-Rating 3",null,null,null,null,null,null,null,null,{"$f":"'Schedule IIB (EBS)'!N71","v":0}]
["Sch IIB","Investments",null,"Credit Derivatives - Down - Before - Long-Rating 4",null,null,null,null,null,null,null,null,{"$f":"'Schedule IIB (EBS)'!N72","v":0}]
["Sch IIB","Investments",null,"Credit Derivatives - Down - Before - Long-Rating 5",null,null,null,null,null,null,null,null,{"$f":"'Schedule IIB (EBS)'!N73","v":0}]
["Sch IIB","Investments",null,"Credit Derivatives - Down - Before - Long-Rating 6",null,null,null,null,null,null,null,null,{"$f":"'Schedule IIB (EBS)'!N74","v":0}]
["Sch IIB","Investments",null,"Credit Derivatives - Down - Before - Long-Rating 7",null,null,null,null,null,null,null,null,{"$f":"'Schedule IIB (EBS)'!N75","v":0}]
["Sch IIB","Investments",null,"Credit Derivatives - Down - Before - Long-Rating 8",null,null,null,null,null,null,null,null,{"$f":"'Schedule IIB (EBS)'!N76","v":0}]
["Sch IIB","Investments",null,"Credit Derivatives - Down - After - Long- Rating 0",null,null,null,null,null,null,null,null,{"$f":"'Schedule IIB (EBS)'!P68","v":0}]
["Sch IIB","Investments",null,"Credit Derivatives - Down - After - Long- Rating 1",null,null,null,null,null,null,null,null,{"$f":"'Schedule IIB (EBS)'!P69","v":0}]
["Sch IIB","Investments",null,"Credit Derivatives - Down - After - Long- Rating 2",null,null,null,null,null,null,null,null,{"$f":"'Schedule IIB (EBS)'!P70","v":0}]
["Sch IIB","Investments",null,"Credit Derivatives - Down - After - Long- Rating 3",null,null,null,null,null,null,null,null,{"$f":"'Schedule IIB (EBS)'!P71","v":0}]
["Sch IIB","Investments",null,"Credit Derivatives - Down - After - Long- Rating 4",null,null,null,null,null,null,null,null,{"$f":"'Schedule IIB (EBS)'!P72","v":0}]
["Sch IIB","Investments",null,"Credit Derivatives - Down - After - Long- Rating 5",null,null,null,null,null,null,null,null,{"$f":"'Schedule IIB (EBS)'!P73","v":0}]
["Sch IIB","Investments",null,"Credit Derivatives - Down - After - Long- Rating 6",null,null,null,null,null,null,null,null,{"$f":"'Schedule IIB (EBS)'!P74","v":0}]
["Sch IIB","Investments",null,"Credit Derivatives - Down - After - Long- Rating 7",null,null,null,null,null,null,null,null,{"$f":"'Schedule IIB (EBS)'!P75","v":0}]
["Sch IIB","Investments",null,"Credit Derivatives - Down - After - Long- Rating 8",null,null,null,null,null,null,null,null,{"$f":"'Schedule IIB (EBS)'!P76","v":0}]
["Sch IIB","Investments",null,"Credit Derivatives - Down - Before - Short- Rating 0",null,null,null,null,null,null,null,null,{"$f":"'Schedule IIB (EBS)'!R68","v":0}]
["Sch IIB","Investments",null,"Credit Derivatives - Down - Before - Short- Rating 1",null,null,null,null,null,null,null,null,{"$f":"'Schedule IIB (EBS)'!R69","v":0}]
["Sch IIB","Investments",null,"Credit Derivatives - Down - Before - Short- Rating 2",null,null,null,null,null,null,null,null,{"$f":"'Schedule IIB (EBS)'!R70","v":0}]
["Sch IIB","Investments",null,"Credit Derivatives - Down - Before - Short- Rating 3",null,null,null,null,null,null,null,null,{"$f":"'Schedule IIB (EBS)'!R71","v":0}]
["Sch IIB","Investments",null,"Credit Derivatives - Down - Before - Short- Rating 4",null,null,null,null,null,null,null,null,{"$f":"'Schedule IIB (EBS)'!R72","v":0}]
["Sch IIB","Investments",null,"Credit Derivatives - Down - Before - Short- Rating 5",null,null,null,null,null,null,null,null,{"$f":"'Schedule IIB (EBS)'!R73","v":0}]
["Sch IIB","Investments",null,"Credit Derivatives - Down - Before - Short- Rating 6",null,null,null,null,null,null,null,null,{"$f":"'Schedule IIB (EBS)'!R74","v":0}]
["Sch IIB","Investments",null,"Credit Derivatives - Down - Before - Short- Rating 7",null,null,null,null,null,null,null,null,{"$f":"'Schedule IIB (EBS)'!R75","v":0}]
["Sch IIB","Investments",null,"Credit Derivatives - Down - Before - Short- Rating 8",null,null,null,null,null,null,null,null,{"$f":"'Schedule IIB (EBS)'!R76","v":0}]
["Sch IIB","Investments",null,"Credit Derivatives - Down - After - Short- Rating 0",null,null,null,null,null,null,null,null,{"$f":"'Schedule IIB (EBS)'!T68","v":0}]
["Sch IIB","Investments",null,"Credit Derivatives - Down - After - Short- Rating 1",null,null,null,null,null,null,null,null,{"$f":"'Schedule IIB (EBS)'!T69","v":0}]
["Sch IIB","Investments",null,"Credit Derivatives - Down - After - Short- Rating 2",null,null,null,null,null,null,null,null,{"$f":"'Schedule IIB (EBS)'!T70","v":0}]
["Sch IIB","Investments",null,"Credit Derivatives - Down - After - Short- Rating 3",null,null,null,null,null,null,null,null,{"$f":"'Schedule IIB (EBS)'!T71","v":0}]
["Sch IIB","Investments",null,"Credit Derivatives - Down - After - Short- Rating 4",null,null,null,null,null,null,null,null,{"$f":"'Schedule IIB (EBS)'!T72","v":0}]
["Sch IIB","Investments",null,"Credit Derivatives - Down - After - Short- Rating 5",null,null,null,null,null,null,null,null,{"$f":"'Schedule IIB (EBS)'!T73","v":0}]
["Sch IIB","Investments",null,"Credit Derivatives - Down - After - Short- Rating 6",null,null,null,null,null,null,null,null,{"$f":"'Schedule IIB (EBS)'!T74","v":0}]
["Sch IIB","Investments",null,"Credit Derivatives - Down - After - Short- Rating 7",null,null,null,null,null,null,null,null,{"$f":"'Schedule IIB (EBS)'!T75","v":0}]
["Sch IIB","Investments",null,"Credit Derivatives - Down - After - Short- Rating 8",null,null,null,null,null,null,null,null,{"$f":"'Schedule IIB (EBS)'!T76","v":0}]
["Sch IIB","Investments",null,"Counterparty Default Risk - MV of Derivatives - MV Positive - Rating 0",null,null,null,null,null,null,null,null,{"$f":"'Schedule IIB (EBS)'!D84","v":0}]
["Sch IIB","Investments",null,"Counterparty Default Risk - MV of Derivatives - MV Positive - Rating 1",null,null,null,null,null,null,null,null,{"$f":"'Schedule IIB (EBS)'!D85","v":0}]
["Sch IIB","Investments",null,"Counterparty Default Risk - MV of Derivatives - MV Positive - Rating 2",null,null,null,null,null,null,null,null,{"$f":"'Schedule IIB (EBS)'!D86","v":0}]
["Sch IIB","Investments",null,"Counterparty Default Risk - MV of Derivatives - MV Positive - Rating 3",null,null,null,null,null,null,null,null,{"$f":"'Schedule IIB (EBS)'!D87","v":0}]
["Sch IIB","Investments",null,"Counterparty Default Risk - MV of Derivatives - MV Positive - Rating 4",null,null,null,null,null,null,null,null,{"$f":"'Schedule IIB (EBS)'!D88","v":0}]
["Sch IIB","Investments",null,"Counterparty Default Risk - MV of Derivatives - MV Positive - Rating 5",null,null,null,null,null,null,null,null,{"$f":"'Schedule IIB (EBS)'!D89","v":0}]
["Sch IIB","Investments",null,"Counterparty Default Risk - MV of Derivatives - MV Positive - Rating 6",null,null,null,null,null,null,null,null,{"$f":"'Schedule IIB (EBS)'!D90","v":0}]
["Sch IIB","Investments",null,"Counterparty Default Risk - MV of Derivatives - MV Positive - Rating 7",null,null,null,null,null,null,null,null,{"$f":"'Schedule IIB (EBS)'!D91","v":0}]
["Sch IIB","Investments",null,"Counterparty Default Risk - MV of Derivatives - MV Positive - Rating 8",null,null,null,null,null,null,null,null,{"$f":"'Schedule IIB (EBS)'!D92","v":0}]
["Sch IIB","Investments",null,"Counterparty Default Risk - MV of Derivatives - MV Negative - Rating 0",null,null,null,null,null,null,null,null,{"$f":"'Schedule IIB (EBS)'!F84","v":0}]
["Sch IIB","Investments",null,"Counterparty Default Risk - MV of Derivatives - MV Negative - Rating 1",null,null,null,null,null,null,null,null,{"$f":"'Schedule IIB (EBS)'!F85","v":0}]
["Sch IIB","Investments",null,"Counterparty Default Risk - MV of Derivatives - MV Negative - Rating 2",null,null,null,null,null,null,null,null,{"$f":"'Schedule IIB (EBS)'!F86","v":0}]
["Sch IIB","Investments",null,"Counterparty Default Risk - MV of Derivatives - MV Negative - Rating 3",null,null,null,null,null,null,null,null,{"$f":"'Schedule IIB (EBS)'!F87","v":0}]
["Sch IIB","Investments",null,"Counterparty Default Risk - MV of Derivatives - MV Negative - Rating 4",null,null,null,null,null,null,null,null,{"$f":"'Schedule IIB (EBS)'!F88","v":0}]
["Sch IIB","Investments",null,"Counterparty Default Risk - MV of Derivatives - MV Negative - Rating 5",null,null,null,null,null,null,null,null,{"$f":"'Schedule IIB (EBS)'!F89","v":0}]
["Sch IIB","Investments",null,"Counterparty Default Risk - MV of Derivatives - MV Negative - Rating 6",null,null,null,null,null,null,null,null,{"$f":"'Schedule IIB (EBS)'!F90","v":0}]
["Sch IIB","Investments",null,"Counterparty Default Risk - MV of Derivatives - MV Negative - Rating 7",null,null,null,null,null,null,null,null,{"$f":"'Schedule IIB (EBS)'!F91","v":0}]
["Sch IIB","Investments",null,"Counterparty Default Risk - MV of Derivatives - MV Negative - Rating 8",null,null,null,null,null,null,null,null,{"$f":"'Schedule IIB (EBS)'!F92","v":0}]
["Sch IIB","Investments",null,"Counterparty Default Risk - MV of Collateral - Rating 0",null,null,null,null,null,null,null,null,{"$f":"'Schedule IIB (EBS)'!H84","v":0}]
["Sch IIB","Investments",null,"Counterparty Default Risk - MV of Collateral - Rating 1",null,null,null,null,null,null,null,null,{"$f":"'Schedule IIB (EBS)'!H85","v":0}]
["Sch IIB","Investments",null,"Counterparty Default Risk - MV of Collateral - Rating 2",null,null,null,null,null,null,null,null,{"$f":"'Schedule IIB (EBS)'!H86","v":0}]
["Sch IIB","Investments",null,"Counterparty Default Risk - MV of Collateral - Rating 3",null,null,null,null,null,null,null,null,{"$f":"'Schedule IIB (EBS)'!H87","v":0}]
["Sch IIB","Investments",null,"Counterparty Default Risk - MV of Collateral - Rating 4",null,null,null,null,null,null,null,null,{"$f":"'Schedule IIB (EBS)'!H88","v":0}]
["Sch IIB","Investments",null,"Counterparty Default Risk - MV of Collateral - Rating 5",null,null,null,null,null,null,null,null,{"$f":"'Schedule IIB (EBS)'!H89","v":0}]
["Sch IIB","Investments",null,"Counterparty Default Risk - MV of Collateral - Rating 6",null,null,null,null,null,null,null,null,{"$f":"'Schedule IIB (EBS)'!H90","v":0}]
["Sch IIB","Investments",null,"Counterparty Default Risk - MV of Collateral - Rating 7",null,null,null,null,null,null,null,null,{"$f":"'Schedule IIB (EBS)'!H91","v":0}]
["Sch IIB","Investments",null,"Counterparty Default Risk - MV of Collateral - Rating 8",null,null,null,null,null,null,null,null,{"$f":"'Schedule IIB (EBS)'!H92","v":0}]
["Sch IIB","Investments",null,"Cash and Cash Equivalents",null,null,null,null,null,null,null,null,{"$f":"'Schedule IIB (EBS)'!D95","v":0}]
["Sch IIB","Investments",null,"NAIC Resid. MBS - Orig. Class 1",null,null,null,null,null,null,null,null,{"$f":"'Schedule IIB (EBS)'!N86","v":0}]
["Sch IIB","Investments",null,"NAIC Resid. MBS - Orig. Class 2",null,null,null,null,null,null,null,null,{"$f":"'Schedule IIB (EBS)'!N87","v":0}]
["Sch IIB","Investments",null,"NAIC Resid. MBS - Orig. Class 3",null,null,null,null,null,null,null,null,{"$f":"'Schedule IIB (EBS)'!N88","v":0}]
["Sch IIB","Investments",null,"NAIC Resid. MBS - Orig. Class 4",null,null,null,null,null,null,null,null,{"$f":"'Schedule IIB (EBS)'!N89","v":0}]
["Sch IIB","Investments",null,"NAIC Resid. MBS - Orig. Class 5",null,null,null,null,null,null,null,null,{"$f":"'Schedule IIB (EBS)'!N90","v":0}]
["Sch IIB","Investments",null,"NAIC Resid. MBS - Orig. Class 6",null,null,null,null,null,null,null,null,{"$f":"'Schedule IIB (EBS)'!N91","v":0}]
["Sch IIB","Investments",null,"NAIC Resid. MBS - Orig. Total",null,null,null,null,null,null,null,null,{"$f":"'Schedule IIB (EBS)'!N92","v":0}]
["Sch IIB","Investments",null,"NAIC Resid. MBS - Rev. Class 1",null,null,null,null,null,null,null,null,{"$f":"'Schedule IIB (EBS)'!P86","v":0}]
["Sch IIB","Investments",null,"NAIC Resid. MBS - Rev. Class 2",null,null,null,null,null,null,null,null,{"$f":"'Schedule IIB (EBS)'!P87","v":0}]
["Sch IIB","Investments",null,"NAIC Resid. MBS - Rev. Class 3",null,null,null,null,null,null,null,null,{"$f":"'Schedule IIB (EBS)'!P88","v":0}]
["Sch IIB","Investments",null,"NAIC Resid. MBS - Rev. Class 4",null,null,null,null,null,null,null,null,{"$f":"'Schedule IIB (EBS)'!P89","v":0}]
["Sch IIB","Investments",null,"NAIC Resid. MBS - Rev. Class 5",null,null,null,null,null,null,null,null,{"$f":"'Schedule IIB (EBS)'!P90","v":0}]
["Sch IIB","Investments",null,"NAIC Resid. MBS - Rev. Class 6",null,null,null,null,null,null,null,null,{"$f":"'Schedule IIB (EBS)'!P91","v":0}]
["Sch IIB","Investments",null,"NAIC Resid. MBS - Rev. Total",null,null,null,null,null,null,null,null,{"$f":"'Schedule IIB (EBS)'!P92","v":0}]
["Sch IIB","Investments",null,"NAIC Comm. MBS - Orig. Class 1",null,null,null,null,null,null,null,null,{"$f":"'Schedule IIB (EBS)'!R86","v":0}]
["Sch IIB","Investments",null,"NAIC Comm. MBS - Orig. Class 2",null,null,null,null,null,null,null,null,{"$f":"'Schedule IIB (EBS)'!R87","v":0}]
["Sch IIB","Investments",null,"NAIC Comm. MBS - Orig. Class 3",null,null,null,null,null,null,null,null,{"$f":"'Schedule IIB (EBS)'!R88","v":0}]
["Sch IIB","Investments",null,"NAIC Comm. MBS - Orig. Class 4",null,null,null,null,null,null,null,null,{"$f":"'Schedule IIB (EBS)'!R89","v":0}]
["Sch IIB","Investments",null,"NAIC Comm. MBS - Orig. Class 5",null,null,null,null,null,null,null,null,{"$f":"'Schedule IIB (EBS)'!R90","v":0}]
["Sch IIB","Investments",null,"NAIC Comm. MBS - Orig. Class 6",null,null,null,null,null,null,null,null,{"$f":"'Schedule IIB (EBS)'!R91","v":0}]
["Sch IIB","Investments",null,"NAIC Comm. MBS - Orig. Total",null,null,null,null,null,null,null,null,{"$f":"'Schedule IIB (EBS)'!R92","v":0}]
["Sch IIB","Investments",null,"NAIC Comm. MBS - Rev. Class 1",null,null,null,null,null,null,null,null,{"$f":"'Schedule IIB (EBS)'!T86","v":0}]
["Sch IIB","Investments",null,"NAIC Comm. MBS - Rev. Class 2",null,null,null,null,null,null,null,null,{"$f":"'Schedule IIB (EBS)'!T87","v":0}]
["Sch IIB","Investments",null,"NAIC Comm. MBS - Rev. Class 3",null,null,null,null,null,null,null,null,{"$f":"'Schedule IIB (EBS)'!T88","v":0}]
["Sch IIB","Investments",null,"NAIC Comm. MBS - Rev. Class 4",null,null,null,null,null,null,null,null,{"$f":"'Schedule IIB (EBS)'!T89","v":0}]
["Sch IIB","Investments",null,"NAIC Comm. MBS - Rev. Class 5",null,null,null,null,null,null,null,null,{"$f":"'Schedule IIB (EBS)'!T90","v":0}]
["Sch IIB","Investments",null,"NAIC Comm. MBS - Rev. Class 6",null,null,null,null,null,null,null,null,{"$f":"'Schedule IIB (EBS)'!T91","v":0}]
["Sch IIB","Investments",null,"NAIC Comm. MBS - Rev. Total",null,null,null,null,null,null,null,null,{"$f":"'Schedule IIB (EBS)'!T92","v":0}]
[]
["Sch IIC","Funds Held",null,"Corp. Bonds - BSCR Rate 0",null,null,null,null,null,null,null,null,{"$f":"'Schedule IIC (EBS)'!D13","v":0},null,{"$f":"'Schedule IIC (EBS)'!F13","v":0}]
["Sch IIC","Funds Held",null,"Corp. Bonds - BSCR Rate 1",null,null,null,null,null,null,null,null,{"$f":"'Schedule IIC (EBS)'!D14","v":0},null,{"$f":"'Schedule IIC (EBS)'!F14","v":0}]
["Sch IIC","Funds Held",null,"Corp. Bonds - BSCR Rate 2",null,null,null,null,null,null,null,null,{"$f":"'Schedule IIC (EBS)'!D15","v":0},null,{"$f":"'Schedule IIC (EBS)'!F15","v":0}]
["Sch IIC","Funds Held",null,"Corp. Bonds - BSCR Rate 3",null,null,null,null,null,null,null,null,{"$f":"'Schedule IIC (EBS)'!D16","v":0},null,{"$f":"'Schedule IIC (EBS)'!F16","v":0}]
["Sch IIC","Funds Held",null,"Corp. Bonds - BSCR Rate 4",null,null,null,null,null,null,null,null,{"$f":"'Schedule IIC (EBS)'!D17","v":0},null,{"$f":"'Schedule IIC (EBS)'!F17","v":0}]
["Sch IIC","Funds Held",null,"Corp. Bonds - BSCR Rate 5",null,null,null,null,null,null,null,null,{"$f":"'Schedule IIC (EBS)'!D18","v":0},null,{"$f":"'Schedule IIC (EBS)'!F18","v":0}]
["Sch IIC","Funds Held",null,"Corp. Bonds - BSCR Rate 6",null,null,null,null,null,null,null,null,{"$f":"'Schedule IIC (EBS)'!D19","v":0},null,{"$f":"'Schedule IIC (EBS)'!F19","v":0}]
["Sch IIC","Funds Held",null,"Corp. Bonds - BSCR Rate 7",null,null,null,null,null,null,null,null,{"$f":"'Schedule IIC (EBS)'!D20","v":0},null,{"$f":"'Schedule IIC (EBS)'!F20","v":0}]
["Sch IIC","Funds Held",null,"Corp. Bonds - BSCR Rate 8",null,null,null,null,null,null,null,null,{"$f":"'Schedule IIC (EBS)'!D21","v":0},null,{"$f":"'Schedule IIC (EBS)'!F21","v":0}]
["Sch IIC","Funds Held",null,"Residential MBS - BSCR Rate 1",null,null,null,null,null,null,null,null,{"$f":"'Schedule IIC (EBS)'!H14","v":0},null,{"$f":"'Schedule IIC (EBS)'!J14","v":0}]
["Sch IIC","Funds Held",null,"Residential MBS - BSCR Rate 2",null,null,null,null,null,null,null,null,{"$f":"'Schedule IIC (EBS)'!H15","v":0},null,{"$f":"'Schedule IIC (EBS)'!J15","v":0}]
["Sch IIC","Funds Held",null,"Residential MBS - BSCR Rate 3",null,null,null,null,null,null,null,null,{"$f":"'Schedule IIC (EBS)'!H16","v":0},null,{"$f":"'Schedule IIC (EBS)'!J16","v":0}]
["Sch IIC","Funds Held",null,"Residential MBS - BSCR Rate 4",null,null,null,null,null,null,null,null,{"$f":"'Schedule IIC (EBS)'!H17","v":0},null,{"$f":"'Schedule IIC (EBS)'!J17","v":0}]
["Sch IIC","Funds Held",null,"Residential MBS - BSCR Rate 5",null,null,null,null,null,null,null,null,{"$f":"'Schedule IIC (EBS)'!H18","v":0},null,{"$f":"'Schedule IIC (EBS)'!J18","v":0}]
["Sch IIC","Funds Held",null,"Residential MBS - BSCR Rate 6",null,null,null,null,null,null,null,null,{"$f":"'Schedule IIC (EBS)'!H19","v":0},null,{"$f":"'Schedule IIC (EBS)'!J19","v":0}]
["Sch IIC","Funds Held",null,"Residential MBS - BSCR Rate 7",null,null,null,null,null,null,null,null,{"$f":"'Schedule IIC (EBS)'!H20","v":0},null,{"$f":"'Schedule IIC (EBS)'!J20","v":0}]
["Sch IIC","Funds Held",null,"Residential MBS - BSCR Rate 8",null,null,null,null,null,null,null,null,{"$f":"'Schedule IIC (EBS)'!H21","v":0},null,{"$f":"'Schedule IIC (EBS)'!J21","v":0}]
["Sch IIC","Funds Held",null,"Commercial MBS - BSCR Rate 1",null,null,null,null,null,null,null,null,{"$f":"'Schedule IIC (EBS)'!L14","v":0},null,{"$f":"'Schedule IIC (EBS)'!N14","v":0}]
["Sch IIC","Funds Held",null,"Commercial MBS - BSCR Rate 2",null,null,null,null,null,null,null,null,{"$f":"'Schedule IIC (EBS)'!L15","v":0},null,{"$f":"'Schedule IIC (EBS)'!N15","v":0}]
["Sch IIC","Funds Held",null,"Commercial MBS - BSCR Rate 3",null,null,null,null,null,null,null,null,{"$f":"'Schedule IIC (EBS)'!L16","v":0},null,{"$f":"'Schedule IIC (EBS)'!N16","v":0}]
["Sch IIC","Funds Held",null,"Commercial MBS - BSCR Rate 4",null,null,null,null,null,null,null,null,{"$f":"'Schedule IIC (EBS)'!L17","v":0},null,{"$f":"'Schedule IIC (EBS)'!N17","v":0}]
["Sch IIC","Funds Held",null,"Commercial MBS - BSCR Rate 5",null,null,null,null,null,null,null,null,{"$f":"'Schedule IIC (EBS)'!L18","v":0},null,{"$f":"'Schedule IIC (EBS)'!N18","v":0}]
["Sch IIC","Funds Held",null,"Commercial MBS - BSCR Rate 6",null,null,null,null,null,null,null,null,{"$f":"'Schedule IIC (EBS)'!L19","v":0},null,{"$f":"'Schedule IIC (EBS)'!N19","v":0}]
["Sch IIC","Funds Held",null,"Commercial MBS - BSCR Rate 7",null,null,null,null,null,null,null,null,{"$f":"'Schedule IIC (EBS)'!L20","v":0},null,{"$f":"'Schedule IIC (EBS)'!N20","v":0}]
["Sch IIC","Funds Held",null,"Commercial MBS - BSCR Rate 8",null,null,null,null,null,null,null,null,{"$f":"'Schedule IIC (EBS)'!L21","v":0},null,{"$f":"'Schedule IIC (EBS)'!N21","v":0}]
["Sch IIC","Funds Held",null,"Bonds Mutual Fund - BSCR Rate 0",null,null,null,null,null,null,null,null,{"$f":"'Schedule IIC (EBS)'!P13","v":0},null,{"$f":"'Schedule IIC (EBS)'!R13","v":0}]
["Sch IIC","Funds Held",null,"Bonds Mutual Fund - BSCR Rate 1",null,null,null,null,null,null,null,null,{"$f":"'Schedule IIC (EBS)'!P14","v":0},null,{"$f":"'Schedule IIC (EBS)'!R14","v":0}]
["Sch IIC","Funds Held",null,"Bonds Mutual Fund - BSCR Rate 2",null,null,null,null,null,null,null,null,{"$f":"'Schedule IIC (EBS)'!P15","v":0},null,{"$f":"'Schedule IIC (EBS)'!R15","v":0}]
["Sch IIC","Funds Held",null,"Bonds Mutual Fund - BSCR Rate 3",null,null,null,null,null,null,null,null,{"$f":"'Schedule IIC (EBS)'!P16","v":0},null,{"$f":"'Schedule IIC (EBS)'!R16","v":0}]
["Sch IIC","Funds Held",null,"Bonds Mutual Fund - BSCR Rate 4",null,null,null,null,null,null,null,null,{"$f":"'Schedule IIC (EBS)'!P17","v":0},null,{"$f":"'Schedule IIC (EBS)'!R17","v":0}]
["Sch IIC","Funds Held",null,"Bonds Mutual Fund - BSCR Rate 5",null,null,null,null,null,null,null,null,{"$f":"'Schedule IIC (EBS)'!P18","v":0},null,{"$f":"'Schedule IIC (EBS)'!R18","v":0}]
["Sch IIC","Funds Held",null,"Bonds Mutual Fund - BSCR Rate 6",null,null,null,null,null,null,null,null,{"$f":"'Schedule IIC (EBS)'!P19","v":0},null,{"$f":"'Schedule IIC (EBS)'!R19","v":0}]
["Sch IIC","Funds Held",null,"Bonds Mutual Fund - BSCR Rate 7",null,null,null,null,null,null,null,null,{"$f":"'Schedule IIC (EBS)'!P20","v":0},null,{"$f":"'Schedule IIC (EBS)'!R20","v":0}]
["Sch IIC","Funds Held",null,"Bonds Mutual Fund - BSCR Rate 8",null,null,null,null,null,null,null,null,{"$f":"'Schedule IIC (EBS)'!P21","v":0},null,{"$f":"'Schedule IIC (EBS)'!R21","v":0}]
["Sch IIC","Funds Held",null,"Mortgage Loans - Insured",null,null,null,null,null,null,null,null,{"$f":"'Schedule IIC (EBS)'!T22","v":0},null,{"$f":"'Schedule IIC (EBS)'!V22","v":0}]
["Sch IIC","Funds Held",null,"Mortgage Loans - Other Commercial",null,null,null,null,null,null,null,null,{"$f":"'Schedule IIC (EBS)'!T23","v":0},null,{"$f":"'Schedule IIC (EBS)'!V23","v":0}]
["Sch IIC","Funds Held",null,"Mortgage Loans - Other Residential",null,null,null,null,null,null,null,null,{"$f":"'Schedule IIC (EBS)'!T24","v":0},null,{"$f":"'Schedule IIC (EBS)'!V24","v":0}]
["Sch IIC","Funds Held",null,"Mortgage Loans - Not Good Stand.",null,null,null,null,null,null,null,null,{"$f":"'Schedule IIC (EBS)'!T25","v":0},null,{"$f":"'Schedule IIC (EBS)'!V25","v":0}]
["Sch IIC","Funds Held",null,"Long Positions - Before - Strategic Holdings - Listed",null,null,null,null,null,null,null,null,{"$f":"'Schedule IIC (EBS)'!D39","v":0}]
["Sch IIC","Funds Held",null,"Long Positions - Before - Duration Based",null,null,null,null,null,null,null,null,{"$f":"'Schedule IIC (EBS)'!D40","v":0}]
["Sch IIC","Funds Held",null,"Long Positions - Before - Listed Equity Securities in Developed Markets",null,null,null,null,null,null,null,null,{"$f":"'Schedule IIC (EBS)'!D41","v":0}]
["Sch IIC","Funds Held",null,"Long Positions - Before - Preferred Stocks, BSCR Rating 1",null,null,null,null,null,null,null,null,{"$f":"'Schedule IIC (EBS)'!D42","v":0}]
["Sch IIC","Funds Held",null,"Long Positions - Before - Preferred Stocks, BSCR Rating 2",null,null,null,null,null,null,null,null,{"$f":"'Schedule IIC (EBS)'!D43","v":0}]
["Sch IIC","Funds Held",null,"Long Positions - Before - Preferred Stocks, BSCR Rating 3",null,null,null,null,null,null,null,null,{"$f":"'Schedule IIC (EBS)'!D44","v":0}]
["Sch IIC","Funds Held",null,"Long Positions - Before - Preferred Stocks, BSCR Rating 4",null,null,null,null,null,null,null,null,{"$f":"'Schedule IIC (EBS)'!D45","v":0}]
["Sch IIC","Funds Held",null,"Long Positions - Before - Preferred Stocks, BSCR Rating 5",null,null,null,null,null,null,null,null,{"$f":"'Schedule IIC (EBS)'!D46","v":0}]
["Sch IIC","Funds Held",null,"Long Positions - Before - Preferred Stocks, BSCR Rating 6",null,null,null,null,null,null,null,null,{"$f":"'Schedule IIC (EBS)'!D47","v":0}]
["Sch IIC","Funds Held",null,"Long Positions - Before - Preferred Stocks, BSCR Rating 7",null,null,null,null,null,null,null,null,{"$f":"'Schedule IIC (EBS)'!D48","v":0}]
["Sch IIC","Funds Held",null,"Long Positions - Before - Preferred Stocks, BSCR Rating 8",null,null,null,null,null,null,null,null,{"$f":"'Schedule IIC (EBS)'!D49","v":0}]
["Sch IIC","Funds Held",null,"Long Positions - Before - Equity Derivatives on Type 1 Equities",null,null,null,null,null,null,null,null,{"$f":"'Schedule IIC (EBS)'!D50","v":0}]
["Sch IIC","Funds Held",null,"Long Positions - Before - Strategic Holdings - Unlisted",null,null,null,null,null,null,null,null,{"$f":"'Schedule IIC (EBS)'!D51","v":0}]
["Sch IIC","Funds Held",null,"Long Positions - Before - Other Equities",null,null,null,null,null,null,null,null,{"$f":"'Schedule IIC (EBS)'!D52","v":0}]
["Sch IIC","Funds Held",null,"Long Positions - Before - Letters of Credit",null,null,null,null,null,null,null,null,{"$f":"'Schedule IIC (EBS)'!D53","v":0}]
["Sch IIC","Funds Held",null,"Long Positions - Before - Intangible assets",null,null,null,null,null,null,null,null,{"$f":"'Schedule IIC (EBS)'!D54","v":0}]
["Sch IIC","Funds Held",null,"Long Positions - Before - Pension Benefit Surplus",null,null,null,null,null,null,null,null,{"$f":"'Schedule IIC (EBS)'!D55","v":0}]
["Sch IIC","Funds Held",null,"Long Positions - Before - Equity Derivatives on Type 2 Equities",null,null,null,null,null,null,null,null,{"$f":"'Schedule IIC (EBS)'!D56","v":0}]
["Sch IIC","Funds Held",null,"Long Positions - Before - Infrastructure",null,null,null,null,null,null,null,null,{"$f":"'Schedule IIC (EBS)'!D57","v":0}]
["Sch IIC","Funds Held",null,"Long Positions - Before - Derivatives on Infrastructure",null,null,null,null,null,null,null,null,{"$f":"'Schedule IIC (EBS)'!D58","v":0}]
["Sch IIC","Funds Held",null,"Long Positions - Before - Equity Real Estate 1",null,null,null,null,null,null,null,null,{"$f":"'Schedule IIC (EBS)'!D59","v":0}]
["Sch IIC","Funds Held",null,"Long Positions - Before - Equity Real Estate 2",null,null,null,null,null,null,null,null,{"$f":"'Schedule IIC (EBS)'!D60","v":0}]
["Sch IIC","Funds Held",null,"Long Positions - After - Strategic Holdings - Listed",null,null,null,null,null,null,null,null,{"$f":"'Schedule IIC (EBS)'!F39","v":0}]
["Sch IIC","Funds Held",null,"Long Positions - After - Duration Based",null,null,null,null,null,null,null,null,{"$f":"'Schedule IIC (EBS)'!F40","v":0}]
["Sch IIC","Funds Held",null,"Long Positions - After - Listed Equity Securities in Developed Markets",null,null,null,null,null,null,null,null,{"$f":"'Schedule IIC (EBS)'!F41","v":0}]
["Sch IIC","Funds Held",null,"Long Positions - After - Preferred Stocks, BSCR Rating 1",null,null,null,null,null,null,null,null,{"$f":"'Schedule IIC (EBS)'!F42","v":0}]
["Sch IIC","Funds Held",null,"Long Positions - After - Preferred Stocks, BSCR Rating 2",null,null,null,null,null,null,null,null,{"$f":"'Schedule IIC (EBS)'!F43","v":0}]
["Sch IIC","Funds Held",null,"Long Positions - After - Preferred Stocks, BSCR Rating 3",null,null,null,null,null,null,null,null,{"$f":"'Schedule IIC (EBS)'!F44","v":0}]
["Sch IIC","Funds Held",null,"Long Positions - After - Preferred Stocks, BSCR Rating 4",null,null,null,null,null,null,null,null,{"$f":"'Schedule IIC (EBS)'!F45","v":0}]
["Sch IIC","Funds Held",null,"Long Positions - After - Preferred Stocks, BSCR Rating 5",null,null,null,null,null,null,null,null,{"$f":"'Schedule IIC (EBS)'!F46","v":0}]
["Sch IIC","Funds Held",null,"Long Positions - After - Preferred Stocks, BSCR Rating 6",null,null,null,null,null,null,null,null,{"$f":"'Schedule IIC (EBS)'!F47","v":0}]
["Sch IIC","Funds Held",null,"Long Positions - After - Preferred Stocks, BSCR Rating 7",null,null,null,null,null,null,null,null,{"$f":"'Schedule IIC (EBS)'!F48","v":0}]
["Sch IIC","Funds Held",null,"Long Positions - After - Preferred Stocks, BSCR Rating 8",null,null,null,null,null,null,null,null,{"$f":"'Schedule IIC (EBS)'!F49","v":0}]
["Sch IIC","Funds Held",null,"Long Positions - After - Equity Derivatives on Type 1 Equities",null,null,null,null,null,null,null,null,{"$f":"'Schedule IIC (EBS)'!F50","v":0}]
["Sch IIC","Funds Held",null,"Long Positions - After - Strategic Holdings - Unlisted",null,null,null,null,null,null,null,null,{"$f":"'Schedule IIC (EBS)'!F51","v":0}]
["Sch IIC","Funds Held",null,"Long Positions - After - Other Equities",null,null,null,null,null,null,null,null,{"$f":"'Schedule IIC (EBS)'!F52","v":0}]
["Sch IIC","Funds Held",null,"Long Positions - After - Letters of Credit",null,null,null,null,null,null,null,null,{"$f":"'Schedule IIC (EBS)'!F53","v":0}]
["Sch IIC","Funds Held",null,"Long Positions - After - Intangible assets",null,null,null,null,null,null,null,null,{"$f":"'Schedule IIC (EBS)'!F54","v":0}]
["Sch IIC","Funds Held",null,"Long Positions - After - Pension Benefit Surplus",null,null,null,null,null,null,null,null,{"$f":"'Schedule IIC (EBS)'!F55","v":0}]
["Sch IIC","Funds Held",null,"Long Positions - After - Equity Derivatives on Type 2 Equities",null,null,null,null,null,null,null,null,{"$f":"'Schedule IIC (EBS)'!F56","v":0}]
["Sch IIC","Funds Held",null,"Long Positions - After - Infrastructure",null,null,null,null,null,null,null,null,{"$f":"'Schedule IIC (EBS)'!F57","v":0}]
["Sch IIC","Funds Held",null,"Long Positions - After - Derivatives on Infrastructure",null,null,null,null,null,null,null,null,{"$f":"'Schedule IIC (EBS)'!F58","v":0}]
["Sch IIC","Funds Held",null,"Long Positions - After - Equity Real Estate 1",null,null,null,null,null,null,null,null,{"$f":"'Schedule IIC (EBS)'!F59","v":0}]
["Sch IIC","Funds Held",null,"Long Positions - After - Equity Real Estate 2",null,null,null,null,null,null,null,null,{"$f":"'Schedule IIC (EBS)'!F60","v":0}]
["Sch IIC","Funds Held",null,"Short - Before - Qualified Assets - Strategic Holdings - Listed",null,null,null,null,null,null,null,null,{"$f":"'Schedule IIC (EBS)'!H39","v":0}]
["Sch IIC","Funds Held",null,"Short - Before - Qualified Assets - Duration Based",null,null,null,null,null,null,null,null,{"$f":"'Schedule IIC (EBS)'!H40","v":0}]
["Sch IIC","Funds Held",null,"Short - Before - Qualified Assets - Listed Equity Securities in Developed Markets",null,null,null,null,null,null,null,null,{"$f":"'Schedule IIC (EBS)'!H41","v":0}]
["Sch IIC","Funds Held",null,"Short - Before - Qualified Assets - Preferred Stocks, BSCR Rating 1",null,null,null,null,null,null,null,null,{"$f":"'Schedule IIC (EBS)'!H42","v":0}]
["Sch IIC","Funds Held",null,"Short - Before - Qualified Assets - Preferred Stocks, BSCR Rating 2",null,null,null,null,null,null,null,null,{"$f":"'Schedule IIC (EBS)'!H43","v":0}]
["Sch IIC","Funds Held",null,"Short - Before - Qualified Assets - Preferred Stocks, BSCR Rating 3",null,null,null,null,null,null,null,null,{"$f":"'Schedule IIC (EBS)'!H44","v":0}]
["Sch IIC","Funds Held",null,"Short - Before - Qualified Assets - Preferred Stocks, BSCR Rating 4",null,null,null,null,null,null,null,null,{"$f":"'Schedule IIC (EBS)'!H45","v":0}]
["Sch IIC","Funds Held",null,"Short - Before - Qualified Assets - Preferred Stocks, BSCR Rating 5",null,null,null,null,null,null,null,null,{"$f":"'Schedule IIC (EBS)'!H46","v":0}]
["Sch IIC","Funds Held",null,"Short - Before - Qualified Assets - Preferred Stocks, BSCR Rating 6",null,null,null,null,null,null,null,null,{"$f":"'Schedule IIC (EBS)'!H47","v":0}]
["Sch IIC","Funds Held",null,"Short - Before - Qualified Assets - Preferred Stocks, BSCR Rating 7",null,null,null,null,null,null,null,null,{"$f":"'Schedule IIC (EBS)'!H48","v":0}]
["Sch IIC","Funds Held",null,"Short - Before - Qualified Assets - Preferred Stocks, BSCR Rating 8",null,null,null,null,null,null,null,null,{"$f":"'Schedule IIC (EBS)'!H49","v":0}]
["Sch IIC","Funds Held",null,"Short - Before - Qualified Assets - Equity Derivatives on Type 1 Equities",null,null,null,null,null,null,null,null,{"$f":"'Schedule IIC (EBS)'!H50","v":0}]
["Sch IIC","Funds Held",null,"Short - Before - Qualified Assets - Strategic Holdings - Unlisted",null,null,null,null,null,null,null,null,{"$f":"'Schedule IIC (EBS)'!H51","v":0}]
["Sch IIC","Funds Held",null,"Short - Before - Qualified Assets - Other Equities",null,null,null,null,null,null,null,null,{"$f":"'Schedule IIC (EBS)'!H52","v":0}]
["Sch IIC","Funds Held",null,"Short - Before - Qualified Assets - Letters of Credit",null,null,null,null,null,null,null,null,{"$f":"'Schedule IIC (EBS)'!H53","v":0}]
["Sch IIC","Funds Held",null,"Short - Before - Qualified Assets - Intangible assets",null,null,null,null,null,null,null,null,{"$f":"'Schedule IIC (EBS)'!H54","v":0}]
["Sch IIC","Funds Held",null,"Short - Before - Qualified Assets - Pension Benefit Surplus",null,null,null,null,null,null,null,null,{"$f":"'Schedule IIC (EBS)'!H55","v":0}]
["Sch IIC","Funds Held",null,"Short - Before - Qualified Assets - Equity Derivatives on Type 2 Equities",null,null,null,null,null,null,null,null,{"$f":"'Schedule IIC (EBS)'!H56","v":0}]
["Sch IIC","Funds Held",null,"Short - Before - Qualified Assets - Infrastructure",null,null,null,null,null,null,null,null,{"$f":"'Schedule IIC (EBS)'!H57","v":0}]
["Sch IIC","Funds Held",null,"Short - Before - Qualified Assets - Derivatives on Infrastructure",null,null,null,null,null,null,null,null,{"$f":"'Schedule IIC (EBS)'!H58","v":0}]
["Sch IIC","Funds Held",null,"Short - Before - Qualified Assets - Equity Real Estate 1",null,null,null,null,null,null,null,null,{"$f":"'Schedule IIC (EBS)'!H59","v":0}]
["Sch IIC","Funds Held",null,"Short - Before - Qualified Assets - Equity Real Estate 2",null,null,null,null,null,null,null,null,{"$f":"'Schedule IIC (EBS)'!H60","v":0}]
["Sch IIC","Funds Held",null,"Short - After - Qualified Assets - Strategic Holdings - Listed",null,null,null,null,null,null,null,null,{"$f":"'Schedule IIC (EBS)'!J39","v":0}]
["Sch IIC","Funds Held",null,"Short - After - Qualified Assets - Duration Based",null,null,null,null,null,null,null,null,{"$f":"'Schedule IIC (EBS)'!J40","v":0}]
["Sch IIC","Funds Held",null,"Short - After - Qualified Assets - Listed Equity Securities in Developed Markets",null,null,null,null,null,null,null,null,{"$f":"'Schedule IIC (EBS)'!J41","v":0}]
["Sch IIC","Funds Held",null,"Short - After - Qualified Assets - Preferred Stocks, BSCR Rating 1",null,null,null,null,null,null,null,null,{"$f":"'Schedule IIC (EBS)'!J42","v":0}]
["Sch IIC","Funds Held",null,"Short - After - Qualified Assets - Preferred Stocks, BSCR Rating 2",null,null,null,null,null,null,null,null,{"$f":"'Schedule IIC (EBS)'!J43","v":0}]
["Sch IIC","Funds Held",null,"Short - After - Qualified Assets - Preferred Stocks, BSCR Rating 3",null,null,null,null,null,null,null,null,{"$f":"'Schedule IIC (EBS)'!J44","v":0}]
["Sch IIC","Funds Held",null,"Short - After - Qualified Assets - Preferred Stocks, BSCR Rating 4",null,null,null,null,null,null,null,null,{"$f":"'Schedule IIC (EBS)'!J45","v":0}]
["Sch IIC","Funds Held",null,"Short - After - Qualified Assets - Preferred Stocks, BSCR Rating 5",null,null,null,null,null,null,null,null,{"$f":"'Schedule IIC (EBS)'!J46","v":0}]
["Sch IIC","Funds Held",null,"Short - After - Qualified Assets - Preferred Stocks, BSCR Rating 6",null,null,null,null,null,null,null,null,{"$f":"'Schedule IIC (EBS)'!J47","v":0}]
["Sch IIC","Funds Held",null,"Short - After - Qualified Assets - Preferred Stocks, BSCR Rating 7",null,null,null,null,null,null,null,null,{"$f":"'Schedule IIC (EBS)'!J48","v":0}]
["Sch IIC","Funds Held",null,"Short - After - Qualified Assets - Preferred Stocks, BSCR Rating 8",null,null,null,null,null,null,null,null,{"$f":"'Schedule IIC (EBS)'!J49","v":0}]
["Sch IIC","Funds Held",null,"Short - After - Qualified Assets - Equity Derivatives on Type 1 Equities",null,null,null,null,null,null,null,null,{"$f":"'Schedule IIC (EBS)'!J50","v":0}]
["Sch IIC","Funds Held",null,"Short - After - Qualified Assets - Strategic Holdings - Unlisted",null,null,null,null,null,null,null,null,{"$f":"'Schedule IIC (EBS)'!J51","v":0}]
["Sch IIC","Funds Held",null,"Short - After - Qualified Assets - Other Equities",null,null,null,null,null,null,null,null,{"$f":"'Schedule IIC (EBS)'!J52","v":0}]
["Sch IIC","Funds Held",null,"Short - After - Qualified Assets - Letters of Credit",null,null,null,null,null,null,null,null,{"$f":"'Schedule IIC (EBS)'!J53","v":0}]
["Sch IIC","Funds Held",null,"Short - After - Qualified Assets - Intangible assets",null,null,null,null,null,null,null,null,{"$f":"'Schedule IIC (EBS)'!J54","v":0}]
["Sch IIC","Funds Held",null,"Short - After - Qualified Assets - Pension Benefit Surplus",null,null,null,null,null,null,null,null,{"$f":"'Schedule IIC (EBS)'!J55","v":0}]
["Sch IIC","Funds Held",null,"Short - After - Qualified Assets - Equity Derivatives on Type 2 Equities",null,null,null,null,null,null,null,null,{"$f":"'Schedule IIC (EBS)'!J56","v":0}]
["Sch IIC","Funds Held",null,"Short - After - Qualified Assets - Infrastructure",null,null,null,null,null,null,null,null,{"$f":"'Schedule IIC (EBS)'!J57","v":0}]
["Sch IIC","Funds Held",null,"Short - After - Qualified Assets - Derivatives on Infrastructure",null,null,null,null,null,null,null,null,{"$f":"'Schedule IIC (EBS)'!J58","v":0}]
["Sch IIC","Funds Held",null,"Short - After - Qualified Assets - Equity Real Estate 1",null,null,null,null,null,null,null,null,{"$f":"'Schedule IIC (EBS)'!J59","v":0}]
["Sch IIC","Funds Held",null,"Short - After - Qualified Assets - Equity Real Estate 2",null,null,null,null,null,null,null,null,{"$f":"'Schedule IIC (EBS)'!J60","v":0}]
["Sch IIC","Funds Held",null,"Short - Before - UnQualified Assets - Strategic Holdings - Listed",null,null,null,null,null,null,null,null,{"$f":"'Schedule IIC (EBS)'!L39","v":0}]
["Sch IIC","Funds Held",null,"Short - Before - UnQualified Assets - Duration Based",null,null,null,null,null,null,null,null,{"$f":"'Schedule IIC (EBS)'!L40","v":0}]
["Sch IIC","Funds Held",null,"Short - Before - UnQualified Assets - Listed Equity Securities in Developed Markets",null,null,null,null,null,null,null,null,{"$f":"'Schedule IIC (EBS)'!L41","v":0}]
["Sch IIC","Funds Held",null,"Short - Before - UnQualified Assets - Preferred Stocks, BSCR Rating 1",null,null,null,null,null,null,null,null,{"$f":"'Schedule IIC (EBS)'!L42","v":0}]
["Sch IIC","Funds Held",null,"Short - Before - UnQualified Assets - Preferred Stocks, BSCR Rating 2",null,null,null,null,null,null,null,null,{"$f":"'Schedule IIC (EBS)'!L43","v":0}]
["Sch IIC","Funds Held",null,"Short - Before - UnQualified Assets - Preferred Stocks, BSCR Rating 3",null,null,null,null,null,null,null,null,{"$f":"'Schedule IIC (EBS)'!L44","v":0}]
["Sch IIC","Funds Held",null,"Short - Before - UnQualified Assets - Preferred Stocks, BSCR Rating 4",null,null,null,null,null,null,null,null,{"$f":"'Schedule IIC (EBS)'!L45","v":0}]
["Sch IIC","Funds Held",null,"Short - Before - UnQualified Assets - Preferred Stocks, BSCR Rating 5",null,null,null,null,null,null,null,null,{"$f":"'Schedule IIC (EBS)'!L46","v":0}]
["Sch IIC","Funds Held",null,"Short - Before - UnQualified Assets - Preferred Stocks, BSCR Rating 6",null,null,null,null,null,null,null,null,{"$f":"'Schedule IIC (EBS)'!L47","v":0}]
["Sch IIC","Funds Held",null,"Short - Before - UnQualified Assets - Preferred Stocks, BSCR Rating 7",null,null,null,null,null,null,null,null,{"$f":"'Schedule IIC (EBS)'!L48","v":0}]
["Sch IIC","Funds Held",null,"Short - Before - UnQualified Assets - Preferred Stocks, BSCR Rating 8",null,null,null,null,null,null,null,null,{"$f":"'Schedule IIC (EBS)'!L49","v":0}]
["Sch IIC","Funds Held",null,"Short - Before - UnQualified Assets - Equity Derivatives on Type 1 Equities",null,null,null,null,null,null,null,null,{"$f":"'Schedule IIC (EBS)'!L50","v":0}]
["Sch IIC","Funds Held",null,"Short - Before - UnQualified Assets - Strategic Holdings - Unlisted",null,null,null,null,null,null,null,null,{"$f":"'Schedule IIC (EBS)'!L51","v":0}]
["Sch IIC","Funds Held",null,"Short - Before - UnQualified Assets - Other Equities",null,null,null,null,null,null,null,null,{"$f":"'Schedule IIC (EBS)'!L52","v":0}]
["Sch IIC","Funds Held",null,"Short - Before - UnQualified Assets - Letters of Credit",null,null,null,null,null,null,null,null,{"$f":"'Schedule IIC (EBS)'!L53","v":0}]
["Sch IIC","Funds Held",null,"Short - Before - UnQualified Assets - Intangible assets",null,null,null,null,null,null,null,null,{"$f":"'Schedule IIC (EBS)'!L54","v":0}]
["Sch IIC","Funds Held",null,"Short - Before - UnQualified Assets - Pension Benefit Surplus",null,null,null,null,null,null,null,null,{"$f":"'Schedule IIC (EBS)'!L55","v":0}]
["Sch IIC","Funds Held",null,"Short - Before - UnQualified Assets - Equity Derivatives on Type 2 Equities",null,null,null,null,null,null,null,null,{"$f":"'Schedule IIC (EBS)'!L56","v":0}]
["Sch IIC","Funds Held",null,"Short - Before - UnQualified Assets - Infrastructure",null,null,null,null,null,null,null,null,{"$f":"'Schedule IIC (EBS)'!L57","v":0}]
["Sch IIC","Funds Held",null,"Short - Before - UnQualified Assets - Derivatives on Infrastructure",null,null,null,null,null,null,null,null,{"$f":"'Schedule IIC (EBS)'!L58","v":0}]
["Sch IIC","Funds Held",null,"Short - Before - UnQualified Assets - Equity Real Estate 1",null,null,null,null,null,null,null,null,{"$f":"'Schedule IIC (EBS)'!L59","v":0}]
["Sch IIC","Funds Held",null,"Short - Before - UnQualified Assets - Equity Real Estate 2",null,null,null,null,null,null,null,null,{"$f":"'Schedule IIC (EBS)'!L60","v":0}]
["Sch IIC","Funds Held",null,"Short - After - UnQualified Assets - Strategic Holdings - Listed",null,null,null,null,null,null,null,null,{"$f":"'Schedule IIC (EBS)'!N39","v":0}]
["Sch IIC","Funds Held",null,"Short - After - UnQualified Assets - Duration Based",null,null,null,null,null,null,null,null,{"$f":"'Schedule IIC (EBS)'!N40","v":0}]
["Sch IIC","Funds Held",null,"Short - After - UnQualified Assets - Listed Equity Securities in Developed Markets",null,null,null,null,null,null,null,null,{"$f":"'Schedule IIC (EBS)'!N41","v":0}]
["Sch IIC","Funds Held",null,"Short - After - UnQualified Assets - Preferred Stocks, BSCR Rating 1",null,null,null,null,null,null,null,null,{"$f":"'Schedule IIC (EBS)'!N42","v":0}]
["Sch IIC","Funds Held",null,"Short - After - UnQualified Assets - Preferred Stocks, BSCR Rating 2",null,null,null,null,null,null,null,null,{"$f":"'Schedule IIC (EBS)'!N43","v":0}]
["Sch IIC","Funds Held",null,"Short - After - UnQualified Assets - Preferred Stocks, BSCR Rating 3",null,null,null,null,null,null,null,null,{"$f":"'Schedule IIC (EBS)'!N44","v":0}]
["Sch IIC","Funds Held",null,"Short - After - UnQualified Assets - Preferred Stocks, BSCR Rating 4",null,null,null,null,null,null,null,null,{"$f":"'Schedule IIC (EBS)'!N45","v":0}]
["Sch IIC","Funds Held",null,"Short - After - UnQualified Assets - Preferred Stocks, BSCR Rating 5",null,null,null,null,null,null,null,null,{"$f":"'Schedule IIC (EBS)'!N46","v":0}]
["Sch IIC","Funds Held",null,"Short - After - UnQualified Assets - Preferred Stocks, BSCR Rating 6",null,null,null,null,null,null,null,null,{"$f":"'Schedule IIC (EBS)'!N47","v":0}]
["Sch IIC","Funds Held",null,"Short - After - UnQualified Assets - Preferred Stocks, BSCR Rating 7",null,null,null,null,null,null,null,null,{"$f":"'Schedule IIC (EBS)'!N48","v":0}]
["Sch IIC","Funds Held",null,"Short - After - UnQualified Assets - Preferred Stocks, BSCR Rating 8",null,null,null,null,null,null,null,null,{"$f":"'Schedule IIC (EBS)'!N49","v":0}]
["Sch IIC","Funds Held",null,"Short - After - UnQualified Assets - Equity Derivatives on Type 1 Equities",null,null,null,null,null,null,null,null,{"$f":"'Schedule IIC (EBS)'!N50","v":0}]
["Sch IIC","Funds Held",null,"Short - After - UnQualified Assets - Strategic Holdings - Unlisted",null,null,null,null,null,null,null,null,{"$f":"'Schedule IIC (EBS)'!N51","v":0}]
["Sch IIC","Funds Held",null,"Short - After - UnQualified Assets - Other Equities",null,null,null,null,null,null,null,null,{"$f":"'Schedule IIC (EBS)'!N52","v":0}]
["Sch IIC","Funds Held",null,"Short - After - UnQualified Assets - Letters of Credit",null,null,null,null,null,null,null,null,{"$f":"'Schedule IIC (EBS)'!N53","v":0}]
["Sch IIC","Funds Held",null,"Short - After - UnQualified Assets - Intangible assets",null,null,null,null,null,null,null,null,{"$f":"'Schedule IIC (EBS)'!N54","v":0}]
["Sch IIC","Funds Held",null,"Short - After - UnQualified Assets - Pension Benefit Surplus",null,null,null,null,null,null,null,null,{"$f":"'Schedule IIC (EBS)'!N55","v":0}]
["Sch IIC","Funds Held",null,"Short - After - UnQualified Assets - Equity Derivatives on Type 2 Equities",null,null,null,null,null,null,null,null,{"$f":"'Schedule IIC (EBS)'!N56","v":0}]
["Sch IIC","Funds Held",null,"Short - After - UnQualified Assets - Infrastructure",null,null,null,null,null,null,null,null,{"$f":"'Schedule IIC (EBS)'!N57","v":0}]
["Sch IIC","Funds Held",null,"Short - After - UnQualified Assets - Derivatives on Infrastructure",null,null,null,null,null,null,null,null,{"$f":"'Schedule IIC (EBS)'!N58","v":0}]
["Sch IIC","Funds Held",null,"Short - After - UnQualified Assets - Equity Real Estate 1",null,null,null,null,null,null,null,null,{"$f":"'Schedule IIC (EBS)'!N59","v":0}]
["Sch IIC","Funds Held",null,"Short - After - UnQualified Assets - Equity Real Estate 2",null,null,null,null,null,null,null,null,{"$f":"'Schedule IIC (EBS)'!N60","v":0}]
["Sch IIC","Funds Held",null,"Liabilities - Before - W/O Mgmt Actions - Strategic Holdings - Listed",null,null,null,null,null,null,null,null,{"$f":"'Schedule IIC (EBS)'!P39","v":0}]
["Sch IIC","Funds Held",null,"Liabilities - Before - W/O Mgmt Actions - Duration Based",null,null,null,null,null,null,null,null,{"$f":"'Schedule IIC (EBS)'!P40","v":0}]
["Sch IIC","Funds Held",null,"Liabilities - Before - W/O Mgmt Actions - Listed Equity Securities in Developed Markets",null,null,null,null,null,null,null,null,{"$f":"'Schedule IIC (EBS)'!P41","v":0}]
["Sch IIC","Funds Held",null,"Liabilities - Before - W/O Mgmt Actions - Preferred Stocks, BSCR Rating 1",null,null,null,null,null,null,null,null,{"$f":"'Schedule IIC (EBS)'!P42","v":0}]
["Sch IIC","Funds Held",null,"Liabilities - Before - W/O Mgmt Actions - Preferred Stocks, BSCR Rating 2",null,null,null,null,null,null,null,null,{"$f":"'Schedule IIC (EBS)'!P43","v":0}]
["Sch IIC","Funds Held",null,"Liabilities - Before - W/O Mgmt Actions - Preferred Stocks, BSCR Rating 3",null,null,null,null,null,null,null,null,{"$f":"'Schedule IIC (EBS)'!P44","v":0}]
["Sch IIC","Funds Held",null,"Liabilities - Before - W/O Mgmt Actions - Preferred Stocks, BSCR Rating 4",null,null,null,null,null,null,null,null,{"$f":"'Schedule IIC (EBS)'!P45","v":0}]
["Sch IIC","Funds Held",null,"Liabilities - Before - W/O Mgmt Actions - Preferred Stocks, BSCR Rating 5",null,null,null,null,null,null,null,null,{"$f":"'Schedule IIC (EBS)'!P46","v":0}]
["Sch IIC","Funds Held",null,"Liabilities - Before - W/O Mgmt Actions - Preferred Stocks, BSCR Rating 6",null,null,null,null,null,null,null,null,{"$f":"'Schedule IIC (EBS)'!P47","v":0}]
["Sch IIC","Funds Held",null,"Liabilities - Before - W/O Mgmt Actions - Preferred Stocks, BSCR Rating 7",null,null,null,null,null,null,null,null,{"$f":"'Schedule IIC (EBS)'!P48","v":0}]
["Sch IIC","Funds Held",null,"Liabilities - Before - W/O Mgmt Actions - Preferred Stocks, BSCR Rating 8",null,null,null,null,null,null,null,null,{"$f":"'Schedule IIC (EBS)'!P49","v":0}]
["Sch IIC","Funds Held",null,"Liabilities - Before - W/O Mgmt Actions - Equity Derivatives on Type 1 Equities",null,null,null,null,null,null,null,null,{"$f":"'Schedule IIC (EBS)'!P50","v":0}]
["Sch IIC","Funds Held",null,"Liabilities - Before - W/O Mgmt Actions - Strategic Holdings - Unlisted",null,null,null,null,null,null,null,null,{"$f":"'Schedule IIC (EBS)'!P51","v":0}]
["Sch IIC","Funds Held",null,"Liabilities - Before - W/O Mgmt Actions - Other Equities",null,null,null,null,null,null,null,null,{"$f":"'Schedule IIC (EBS)'!P52","v":0}]
["Sch IIC","Funds Held",null,"Liabilities - Before - W/O Mgmt Actions - Letters of Credit",null,null,null,null,null,null,null,null,{"$f":"'Schedule IIC (EBS)'!P53","v":0}]
["Sch IIC","Funds Held",null,"Liabilities - Before - W/O Mgmt Actions - Intangible assets",null,null,null,null,null,null,null,null,{"$f":"'Schedule IIC (EBS)'!P54","v":0}]
["Sch IIC","Funds Held",null,"Liabilities - Before - W/O Mgmt Actions - Pension Benefit Surplus",null,null,null,null,null,null,null,null,{"$f":"'Schedule IIC (EBS)'!P55","v":0}]
["Sch IIC","Funds Held",null,"Liabilities - Before - W/O Mgmt Actions - Equity Derivatives on Type 2 Equities",null,null,null,null,null,null,null,null,{"$f":"'Schedule IIC (EBS)'!P56","v":0}]
["Sch IIC","Funds Held",null,"Liabilities - Before - W/O Mgmt Actions - Infrastructure",null,null,null,null,null,null,null,null,{"$f":"'Schedule IIC (EBS)'!P57","v":0}]
["Sch IIC","Funds Held",null,"Liabilities - Before - W/O Mgmt Actions - Derivatives on Infrastructure",null,null,null,null,null,null,null,null,{"$f":"'Schedule IIC (EBS)'!P58","v":0}]
["Sch IIC","Funds Held",null,"Liabilities - Before - W/O Mgmt Actions - Equity Real Estate 1",null,null,null,null,null,null,null,null,{"$f":"'Schedule IIC (EBS)'!P59","v":0}]
["Sch IIC","Funds Held",null,"Liabilities - Before - W/O Mgmt Actions - Equity Real Estate 2",null,null,null,null,null,null,null,null,{"$f":"'Schedule IIC (EBS)'!P60","v":0}]
["Sch IIC","Funds Held",null,"Liabilities - After - W/O Mgmt Actions - Strategic Holdings - Listed",null,null,null,null,null,null,null,null,{"$f":"'Schedule IIC (EBS)'!R39","v":0}]
["Sch IIC","Funds Held",null,"Liabilities - After - W/O Mgmt Actions - Duration Based",null,null,null,null,null,null,null,null,{"$f":"'Schedule IIC (EBS)'!R40","v":0}]
["Sch IIC","Funds Held",null,"Liabilities - After - W/O Mgmt Actions - Listed Equity Securities in Developed Markets",null,null,null,null,null,null,null,null,{"$f":"'Schedule IIC (EBS)'!R41","v":0}]
["Sch IIC","Funds Held",null,"Liabilities - After - W/O Mgmt Actions - Preferred Stocks, BSCR Rating 1",null,null,null,null,null,null,null,null,{"$f":"'Schedule IIC (EBS)'!R42","v":0}]
["Sch IIC","Funds Held",null,"Liabilities - After - W/O Mgmt Actions - Preferred Stocks, BSCR Rating 2",null,null,null,null,null,null,null,null,{"$f":"'Schedule IIC (EBS)'!R43","v":0}]
["Sch IIC","Funds Held",null,"Liabilities - After - W/O Mgmt Actions - Preferred Stocks, BSCR Rating 3",null,null,null,null,null,null,null,null,{"$f":"'Schedule IIC (EBS)'!R44","v":0}]
["Sch IIC","Funds Held",null,"Liabilities - After - W/O Mgmt Actions - Preferred Stocks, BSCR Rating 4",null,null,null,null,null,null,null,null,{"$f":"'Schedule IIC (EBS)'!R45","v":0}]
["Sch IIC","Funds Held",null,"Liabilities - After - W/O Mgmt Actions - Preferred Stocks, BSCR Rating 5",null,null,null,null,null,null,null,null,{"$f":"'Schedule IIC (EBS)'!R46","v":0}]
["Sch IIC","Funds Held",null,"Liabilities - After - W/O Mgmt Actions - Preferred Stocks, BSCR Rating 6",null,null,null,null,null,null,null,null,{"$f":"'Schedule IIC (EBS)'!R47","v":0}]
["Sch IIC","Funds Held",null,"Liabilities - After - W/O Mgmt Actions - Preferred Stocks, BSCR Rating 7",null,null,null,null,null,null,null,null,{"$f":"'Schedule IIC (EBS)'!R48","v":0}]
["Sch IIC","Funds Held",null,"Liabilities - After - W/O Mgmt Actions - Preferred Stocks, BSCR Rating 8",null,null,null,null,null,null,null,null,{"$f":"'Schedule IIC (EBS)'!R49","v":0}]
["Sch IIC","Funds Held",null,"Liabilities - After - W/O Mgmt Actions - Equity Derivatives on Type 1 Equities",null,null,null,null,null,null,null,null,{"$f":"'Schedule IIC (EBS)'!R50","v":0}]
["Sch IIC","Funds Held",null,"Liabilities - After - W/O Mgmt Actions - Strategic Holdings - Unlisted",null,null,null,null,null,null,null,null,{"$f":"'Schedule IIC (EBS)'!R51","v":0}]
["Sch IIC","Funds Held",null,"Liabilities - After - W/O Mgmt Actions - Other Equities",null,null,null,null,null,null,null,null,{"$f":"'Schedule IIC (EBS)'!R52","v":0}]
["Sch IIC","Funds Held",null,"Liabilities - After - W/O Mgmt Actions - Letters of Credit",null,null,null,null,null,null,null,null,{"$f":"'Schedule IIC (EBS)'!R53","v":0}]
["Sch IIC","Funds Held",null,"Liabilities - After - W/O Mgmt Actions - Intangible assets",null,null,null,null,null,null,null,null,{"$f":"'Schedule IIC (EBS)'!R54","v":0}]
["Sch IIC","Funds Held",null,"Liabilities - After - W/O Mgmt Actions - Pension Benefit Surplus",null,null,null,null,null,null,null,null,{"$f":"'Schedule IIC (EBS)'!R55","v":0}]
["Sch IIC","Funds Held",null,"Liabilities - After - W/O Mgmt Actions - Equity Derivatives on Type 2 Equities",null,null,null,null,null,null,null,null,{"$f":"'Schedule IIC (EBS)'!R56","v":0}]
["Sch IIC","Funds Held",null,"Liabilities - After - W/O Mgmt Actions - Infrastructure",null,null,null,null,null,null,null,null,{"$f":"'Schedule IIC (EBS)'!R57","v":0}]
["Sch IIC","Funds Held",null,"Liabilities - After - W/O Mgmt Actions - Derivatives on Infrastructure",null,null,null,null,null,null,null,null,{"$f":"'Schedule IIC (EBS)'!R58","v":0}]
["Sch IIC","Funds Held",null,"Liabilities - After - W/O Mgmt Actions - Equity Real Estate 1",null,null,null,null,null,null,null,null,{"$f":"'Schedule IIC (EBS)'!R59","v":0}]
["Sch IIC","Funds Held",null,"Liabilities - After - W/O Mgmt Actions - Equity Real Estate 2",null,null,null,null,null,null,null,null,{"$f":"'Schedule IIC (EBS)'!R60","v":0}]
["Sch IIC","Funds Held",null,"Liabilities - After - With Mgmt Actions - Strategic Holdings - Listed",null,null,null,null,null,null,null,null,{"$f":"'Schedule IIC (EBS)'!T39","v":0}]
["Sch IIC","Funds Held",null,"Liabilities - After - With Mgmt Actions - Duration Based",null,null,null,null,null,null,null,null,{"$f":"'Schedule IIC (EBS)'!T40","v":0}]
["Sch IIC","Funds Held",null,"Liabilities - After - With Mgmt Actions - Listed Equity Securities in Developed Markets",null,null,null,null,null,null,null,null,{"$f":"'Schedule IIC (EBS)'!T41","v":0}]
["Sch IIC","Funds Held",null,"Liabilities - After - With Mgmt Actions - Preferred Stocks, BSCR Rating 1",null,null,null,null,null,null,null,null,{"$f":"'Schedule IIC (EBS)'!T42","v":0}]
["Sch IIC","Funds Held",null,"Liabilities - After - With Mgmt Actions - Preferred Stocks, BSCR Rating 2",null,null,null,null,null,null,null,null,{"$f":"'Schedule IIC (EBS)'!T43","v":0}]
["Sch IIC","Funds Held",null,"Liabilities - After - With Mgmt Actions - Preferred Stocks, BSCR Rating 3",null,null,null,null,null,null,null,null,{"$f":"'Schedule IIC (EBS)'!T44","v":0}]
["Sch IIC","Funds Held",null,"Liabilities - After - With Mgmt Actions - Preferred Stocks, BSCR Rating 4",null,null,null,null,null,null,null,null,{"$f":"'Schedule IIC (EBS)'!T45","v":0}]
["Sch IIC","Funds Held",null,"Liabilities - After - With Mgmt Actions - Preferred Stocks, BSCR Rating 5",null,null,null,null,null,null,null,null,{"$f":"'Schedule IIC (EBS)'!T46","v":0}]
["Sch IIC","Funds Held",null,"Liabilities - After - With Mgmt Actions - Preferred Stocks, BSCR Rating 6",null,null,null,null,null,null,null,null,{"$f":"'Schedule IIC (EBS)'!T47","v":0}]
["Sch IIC","Funds Held",null,"Liabilities - After - With Mgmt Actions - Preferred Stocks, BSCR Rating 7",null,null,null,null,null,null,null,null,{"$f":"'Schedule IIC (EBS)'!T48","v":0}]
["Sch IIC","Funds Held",null,"Liabilities - After - With Mgmt Actions - Preferred Stocks, BSCR Rating 8",null,null,null,null,null,null,null,null,{"$f":"'Schedule IIC (EBS)'!T49","v":0}]
["Sch IIC","Funds Held",null,"Liabilities - After - With Mgmt Actions - Equity Derivatives on Type 1 Equities",null,null,null,null,null,null,null,null,{"$f":"'Schedule IIC (EBS)'!T50","v":0}]
["Sch IIC","Funds Held",null,"Liabilities - After - With Mgmt Actions - Strategic Holdings - Unlisted",null,null,null,null,null,null,null,null,{"$f":"'Schedule IIC (EBS)'!T51","v":0}]
["Sch IIC","Funds Held",null,"Liabilities - After - With Mgmt Actions - Other Equities",null,null,null,null,null,null,null,null,{"$f":"'Schedule IIC (EBS)'!T52","v":0}]
["Sch IIC","Funds Held",null,"Liabilities - After - With Mgmt Actions - Letters of Credit",null,null,null,null,null,null,null,null,{"$f":"'Schedule IIC (EBS)'!T53","v":0}]
["Sch IIC","Funds Held",null,"Liabilities - After - With Mgmt Actions - Intangible assets",null,null,null,null,null,null,null,null,{"$f":"'Schedule IIC (EBS)'!T54","v":0}]
["Sch IIC","Funds Held",null,"Liabilities - After - With Mgmt Actions - Pension Benefit Surplus",null,null,null,null,null,null,null,null,{"$f":"'Schedule IIC (EBS)'!T55","v":0}]
["Sch IIC","Funds Held",null,"Liabilities - After - With Mgmt Actions - Equity Derivatives on Type 2 Equities",null,null,null,null,null,null,null,null,{"$f":"'Schedule IIC (EBS)'!T56","v":0}]
["Sch IIC","Funds Held",null,"Liabilities - After - With Mgmt Actions - Infrastructure",null,null,null,null,null,null,null,null,{"$f":"'Schedule IIC (EBS)'!T57","v":0}]
["Sch IIC","Funds Held",null,"Liabilities - After - With Mgmt Actions - Derivatives on Infrastructure",null,null,null,null,null,null,null,null,{"$f":"'Schedule IIC (EBS)'!T58","v":0}]
["Sch IIC","Funds Held",null,"Liabilities - After - With Mgmt Actions - Equity Real Estate 1",null,null,null,null,null,null,null,null,{"$f":"'Schedule IIC (EBS)'!T59","v":0}]
["Sch IIC","Funds Held",null,"Liabilities - After - With Mgmt Actions - Equity Real Estate 2",null,null,null,null,null,null,null,null,{"$f":"'Schedule IIC (EBS)'!T60","v":0}]
["Sch IIC","Funds Held",null,"Credit Derivatives - Up - Before - Long-Rating 0",null,null,null,null,null,null,null,null,{"$f":"'Schedule IIC (EBS)'!D68","v":0}]
["Sch IIC","Funds Held",null,"Credit Derivatives - Up - Before - Long-Rating 1",null,null,null,null,null,null,null,null,{"$f":"'Schedule IIC (EBS)'!D69","v":0}]
["Sch IIC","Funds Held",null,"Credit Derivatives - Up - Before - Long-Rating 2",null,null,null,null,null,null,null,null,{"$f":"'Schedule IIC (EBS)'!D70","v":0}]
["Sch IIC","Funds Held",null,"Credit Derivatives - Up - Before - Long-Rating 3",null,null,null,null,null,null,null,null,{"$f":"'Schedule IIC (EBS)'!D71","v":0}]
["Sch IIC","Funds Held",null,"Credit Derivatives - Up - Before - Long-Rating 4",null,null,null,null,null,null,null,null,{"$f":"'Schedule IIC (EBS)'!D72","v":0}]
["Sch IIC","Funds Held",null,"Credit Derivatives - Up - Before - Long-Rating 5",null,null,null,null,null,null,null,null,{"$f":"'Schedule IIC (EBS)'!D73","v":0}]
["Sch IIC","Funds Held",null,"Credit Derivatives - Up - Before - Long-Rating 6",null,null,null,null,null,null,null,null,{"$f":"'Schedule IIC (EBS)'!D74","v":0}]
["Sch IIC","Funds Held",null,"Credit Derivatives - Up - Before - Long-Rating 7",null,null,null,null,null,null,null,null,{"$f":"'Schedule IIC (EBS)'!D75","v":0}]
["Sch IIC","Funds Held",null,"Credit Derivatives - Up - Before - Long-Rating 8",null,null,null,null,null,null,null,null,{"$f":"'Schedule IIC (EBS)'!D76","v":0}]
["Sch IIC","Funds Held",null,"Credit Derivatives - Up - After - Long- Rating 0",null,null,null,null,null,null,null,null,{"$f":"'Schedule IIC (EBS)'!F68","v":0}]
["Sch IIC","Funds Held",null,"Credit Derivatives - Up - After - Long- Rating 1",null,null,null,null,null,null,null,null,{"$f":"'Schedule IIC (EBS)'!F69","v":0}]
["Sch IIC","Funds Held",null,"Credit Derivatives - Up - After - Long- Rating 2",null,null,null,null,null,null,null,null,{"$f":"'Schedule IIC (EBS)'!F70","v":0}]
["Sch IIC","Funds Held",null,"Credit Derivatives - Up - After - Long- Rating 3",null,null,null,null,null,null,null,null,{"$f":"'Schedule IIC (EBS)'!F71","v":0}]
["Sch IIC","Funds Held",null,"Credit Derivatives - Up - After - Long- Rating 4",null,null,null,null,null,null,null,null,{"$f":"'Schedule IIC (EBS)'!F72","v":0}]
["Sch IIC","Funds Held",null,"Credit Derivatives - Up - After - Long- Rating 5",null,null,null,null,null,null,null,null,{"$f":"'Schedule IIC (EBS)'!F73","v":0}]
["Sch IIC","Funds Held",null,"Credit Derivatives - Up - After - Long- Rating 6",null,null,null,null,null,null,null,null,{"$f":"'Schedule IIC (EBS)'!F74","v":0}]
["Sch IIC","Funds Held",null,"Credit Derivatives - Up - After - Long- Rating 7",null,null,null,null,null,null,null,null,{"$f":"'Schedule IIC (EBS)'!F75","v":0}]
["Sch IIC","Funds Held",null,"Credit Derivatives - Up - After - Long- Rating 8",null,null,null,null,null,null,null,null,{"$f":"'Schedule IIC (EBS)'!F76","v":0}]
["Sch IIC","Funds Held",null,"Credit Derivatives - Up - Before - Short- Rating 0",null,null,null,null,null,null,null,null,{"$f":"'Schedule IIC (EBS)'!H68","v":0}]
["Sch IIC","Funds Held",null,"Credit Derivatives - Up - Before - Short- Rating 1",null,null,null,null,null,null,null,null,{"$f":"'Schedule IIC (EBS)'!H69","v":0}]
["Sch IIC","Funds Held",null,"Credit Derivatives - Up - Before - Short- Rating 2",null,null,null,null,null,null,null,null,{"$f":"'Schedule IIC (EBS)'!H70","v":0}]
["Sch IIC","Funds Held",null,"Credit Derivatives - Up - Before - Short- Rating 3",null,null,null,null,null,null,null,null,{"$f":"'Schedule IIC (EBS)'!H71","v":0}]
["Sch IIC","Funds Held",null,"Credit Derivatives - Up - Before - Short- Rating 4",null,null,null,null,null,null,null,null,{"$f":"'Schedule IIC (EBS)'!H72","v":0}]
["Sch IIC","Funds Held",null,"Credit Derivatives - Up - Before - Short- Rating 5",null,null,null,null,null,null,null,null,{"$f":"'Schedule IIC (EBS)'!H73","v":0}]
["Sch IIC","Funds Held",null,"Credit Derivatives - Up - Before - Short- Rating 6",null,null,null,null,null,null,null,null,{"$f":"'Schedule IIC (EBS)'!H74","v":0}]
["Sch IIC","Funds Held",null,"Credit Derivatives - Up - Before - Short- Rating 7",null,null,null,null,null,null,null,null,{"$f":"'Schedule IIC (EBS)'!H75","v":0}]
["Sch IIC","Funds Held",null,"Credit Derivatives - Up - Before - Short- Rating 8",null,null,null,null,null,null,null,null,{"$f":"'Schedule IIC (EBS)'!H76","v":0}]
["Sch IIC","Funds Held",null,"Credit Derivatives - Up - After - Short- Rating 0",null,null,null,null,null,null,null,null,{"$f":"'Schedule IIC (EBS)'!J68","v":0}]
["Sch IIC","Funds Held",null,"Credit Derivatives - Up - After - Short- Rating 1",null,null,null,null,null,null,null,null,{"$f":"'Schedule IIC (EBS)'!J69","v":0}]
["Sch IIC","Funds Held",null,"Credit Derivatives - Up - After - Short- Rating 2",null,null,null,null,null,null,null,null,{"$f":"'Schedule IIC (EBS)'!J70","v":0}]
["Sch IIC","Funds Held",null,"Credit Derivatives - Up - After - Short- Rating 3",null,null,null,null,null,null,null,null,{"$f":"'Schedule IIC (EBS)'!J71","v":0}]
["Sch IIC","Funds Held",null,"Credit Derivatives - Up - After - Short- Rating 4",null,null,null,null,null,null,null,null,{"$f":"'Schedule IIC (EBS)'!J72","v":0}]
["Sch IIC","Funds Held",null,"Credit Derivatives - Up - After - Short- Rating 5",null,null,null,null,null,null,null,null,{"$f":"'Schedule IIC (EBS)'!J73","v":0}]
["Sch IIC","Funds Held",null,"Credit Derivatives - Up - After - Short- Rating 6",null,null,null,null,null,null,null,null,{"$f":"'Schedule IIC (EBS)'!J74","v":0}]
["Sch IIC","Funds Held",null,"Credit Derivatives - Up - After - Short- Rating 7",null,null,null,null,null,null,null,null,{"$f":"'Schedule IIC (EBS)'!J75","v":0}]
["Sch IIC","Funds Held",null,"Credit Derivatives - Up - After - Short- Rating 8",null,null,null,null,null,null,null,null,{"$f":"'Schedule IIC (EBS)'!J76","v":0}]
["Sch IIC","Funds Held",null,"Credit Derivatives - Down - Before - Long-Rating 0",null,null,null,null,null,null,null,null,{"$f":"'Schedule IIC (EBS)'!N68","v":0}]
["Sch IIC","Funds Held",null,"Credit Derivatives - Down - Before - Long-Rating 1",null,null,null,null,null,null,null,null,{"$f":"'Schedule IIC (EBS)'!N69","v":0}]
["Sch IIC","Funds Held",null,"Credit Derivatives - Down - Before - Long-Rating 2",null,null,null,null,null,null,null,null,{"$f":"'Schedule IIC (EBS)'!N70","v":0}]
["Sch IIC","Funds Held",null,"Credit Derivatives - Down - Before - Long-Rating 3",null,null,null,null,null,null,null,null,{"$f":"'Schedule IIC (EBS)'!N71","v":0}]
["Sch IIC","Funds Held",null,"Credit Derivatives - Down - Before - Long-Rating 4",null,null,null,null,null,null,null,null,{"$f":"'Schedule IIC (EBS)'!N72","v":0}]
["Sch IIC","Funds Held",null,"Credit Derivatives - Down - Before - Long-Rating 5",null,null,null,null,null,null,null,null,{"$f":"'Schedule IIC (EBS)'!N73","v":0}]
["Sch IIC","Funds Held",null,"Credit Derivatives - Down - Before - Long-Rating 6",null,null,null,null,null,null,null,null,{"$f":"'Schedule IIC (EBS)'!N74","v":0}]
["Sch IIC","Funds Held",null,"Credit Derivatives - Down - Before - Long-Rating 7",null,null,null,null,null,null,null,null,{"$f":"'Schedule IIC (EBS)'!N75","v":0}]
["Sch IIC","Funds Held",null,"Credit Derivatives - Down - Before - Long-Rating 8",null,null,null,null,null,null,null,null,{"$f":"'Schedule IIC (EBS)'!N76","v":0}]
["Sch IIC","Funds Held",null,"Credit Derivatives - Down - After - Long- Rating 0",null,null,null,null,null,null,null,null,{"$f":"'Schedule IIC (EBS)'!P68","v":0}]
["Sch IIC","Funds Held",null,"Credit Derivatives - Down - After - Long- Rating 1",null,null,null,null,null,null,null,null,{"$f":"'Schedule IIC (EBS)'!P69","v":0}]
["Sch IIC","Funds Held",null,"Credit Derivatives - Down - After - Long- Rating 2",null,null,null,null,null,null,null,null,{"$f":"'Schedule IIC (EBS)'!P70","v":0}]
["Sch IIC","Funds Held",null,"Credit Derivatives - Down - After - Long- Rating 3",null,null,null,null,null,null,null,null,{"$f":"'Schedule IIC (EBS)'!P71","v":0}]
["Sch IIC","Funds Held",null,"Credit Derivatives - Down - After - Long- Rating 4",null,null,null,null,null,null,null,null,{"$f":"'Schedule IIC (EBS)'!P72","v":0}]
["Sch IIC","Funds Held",null,"Credit Derivatives - Down - After - Long- Rating 5",null,null,null,null,null,null,null,null,{"$f":"'Schedule IIC (EBS)'!P73","v":0}]
["Sch IIC","Funds Held",null,"Credit Derivatives - Down - After - Long- Rating 6",null,null,null,null,null,null,null,null,{"$f":"'Schedule IIC (EBS)'!P74","v":0}]
["Sch IIC","Funds Held",null,"Credit Derivatives - Down - After - Long- Rating 7",null,null,null,null,null,null,null,null,{"$f":"'Schedule IIC (EBS)'!P75","v":0}]
["Sch IIC","Funds Held",null,"Credit Derivatives - Down - After - Long- Rating 8",null,null,null,null,null,null,null,null,{"$f":"'Schedule IIC (EBS)'!P76","v":0}]
["Sch IIC","Funds Held",null,"Credit Derivatives - Down - Before - Short- Rating 0",null,null,null,null,null,null,null,null,{"$f":"'Schedule IIC (EBS)'!R68","v":0}]
["Sch IIC","Funds Held",null,"Credit Derivatives - Down - Before - Short- Rating 1",null,null,null,null,null,null,null,null,{"$f":"'Schedule IIC (EBS)'!R69","v":0}]
["Sch IIC","Funds Held",null,"Credit Derivatives - Down - Before - Short- Rating 2",null,null,null,null,null,null,null,null,{"$f":"'Schedule IIC (EBS)'!R70","v":0}]
["Sch IIC","Funds Held",null,"Credit Derivatives - Down - Before - Short- Rating 3",null,null,null,null,null,null,null,null,{"$f":"'Schedule IIC (EBS)'!R71","v":0}]
["Sch IIC","Funds Held",null,"Credit Derivatives - Down - Before - Short- Rating 4",null,null,null,null,null,null,null,null,{"$f":"'Schedule IIC (EBS)'!R72","v":0}]
["Sch IIC","Funds Held",null,"Credit Derivatives - Down - Before - Short- Rating 5",null,null,null,null,null,null,null,null,{"$f":"'Schedule IIC (EBS)'!R73","v":0}]
["Sch IIC","Funds Held",null,"Credit Derivatives - Down - Before - Short- Rating 6",null,null,null,null,null,null,null,null,{"$f":"'Schedule IIC (EBS)'!R74","v":0}]
["Sch IIC","Funds Held",null,"Credit Derivatives - Down - Before - Short- Rating 7",null,null,null,null,null,null,null,null,{"$f":"'Schedule IIC (EBS)'!R75","v":0}]
["Sch IIC","Funds Held",null,"Credit Derivatives - Down - Before - Short- Rating 8",null,null,null,null,null,null,null,null,{"$f":"'Schedule IIC (EBS)'!R76","v":0}]
["Sch IIC","Funds Held",null,"Credit Derivatives - Down - After - Short- Rating 0",null,null,null,null,null,null,null,null,{"$f":"'Schedule IIC (EBS)'!T68","v":0}]
["Sch IIC","Funds Held",null,"Credit Derivatives - Down - After - Short- Rating 1",null,null,null,null,null,null,null,null,{"$f":"'Schedule IIC (EBS)'!T69","v":0}]
["Sch IIC","Funds Held",null,"Credit Derivatives - Down - After - Short- Rating 2",null,null,null,null,null,null,null,null,{"$f":"'Schedule IIC (EBS)'!T70","v":0}]
["Sch IIC","Funds Held",null,"Credit Derivatives - Down - After - Short- Rating 3",null,null,null,null,null,null,null,null,{"$f":"'Schedule IIC (EBS)'!T71","v":0}]
["Sch IIC","Funds Held",null,"Credit Derivatives - Down - After - Short- Rating 4",null,null,null,null,null,null,null,null,{"$f":"'Schedule IIC (EBS)'!T72","v":0}]
["Sch IIC","Funds Held",null,"Credit Derivatives - Down - After - Short- Rating 5",null,null,null,null,null,null,null,null,{"$f":"'Schedule IIC (EBS)'!T73","v":0}]
["Sch IIC","Funds Held",null,"Credit Derivatives - Down - After - Short- Rating 6",null,null,null,null,null,null,null,null,{"$f":"'Schedule IIC (EBS)'!T74","v":0}]
["Sch IIC","Funds Held",null,"Credit Derivatives - Down - After - Short- Rating 7",null,null,null,null,null,null,null,null,{"$f":"'Schedule IIC (EBS)'!T75","v":0}]
["Sch IIC","Funds Held",null,"Credit Derivatives - Down - After - Short- Rating 8",null,null,null,null,null,null,null,null,{"$f":"'Schedule IIC (EBS)'!T76","v":0}]
["Sch IIC","Funds Held",null,"Counterparty Default Risk - MV of Derivatives - MV Positive - Rating 0",null,null,null,null,null,null,null,null,{"$f":"'Schedule IIC (EBS)'!D84","v":0}]
["Sch IIC","Funds Held",null,"Counterparty Default Risk - MV of Derivatives - MV Positive - Rating 1",null,null,null,null,null,null,null,null,{"$f":"'Schedule IIC (EBS)'!D85","v":0}]
["Sch IIC","Funds Held",null,"Counterparty Default Risk - MV of Derivatives - MV Positive - Rating 2",null,null,null,null,null,null,null,null,{"$f":"'Schedule IIC (EBS)'!D86","v":0}]
["Sch IIC","Funds Held",null,"Counterparty Default Risk - MV of Derivatives - MV Positive - Rating 3",null,null,null,null,null,null,null,null,{"$f":"'Schedule IIC (EBS)'!D87","v":0}]
["Sch IIC","Funds Held",null,"Counterparty Default Risk - MV of Derivatives - MV Positive - Rating 4",null,null,null,null,null,null,null,null,{"$f":"'Schedule IIC (EBS)'!D88","v":0}]
["Sch IIC","Funds Held",null,"Counterparty Default Risk - MV of Derivatives - MV Positive - Rating 5",null,null,null,null,null,null,null,null,{"$f":"'Schedule IIC (EBS)'!D89","v":0}]
["Sch IIC","Funds Held",null,"Counterparty Default Risk - MV of Derivatives - MV Positive - Rating 6",null,null,null,null,null,null,null,null,{"$f":"'Schedule IIC (EBS)'!D90","v":0}]
["Sch IIC","Funds Held",null,"Counterparty Default Risk - MV of Derivatives - MV Positive - Rating 7",null,null,null,null,null,null,null,null,{"$f":"'Schedule IIC (EBS)'!D91","v":0}]
["Sch IIC","Funds Held",null,"Counterparty Default Risk - MV of Derivatives - MV Positive - Rating 8",null,null,null,null,null,null,null,null,{"$f":"'Schedule IIC (EBS)'!D92","v":0}]
["Sch IIC","Funds Held",null,"Counterparty Default Risk - MV of Derivatives - MV Negative - Rating 0",null,null,null,null,null,null,null,null,{"$f":"'Schedule IIC (EBS)'!F84","v":0}]
["Sch IIC","Funds Held",null,"Counterparty Default Risk - MV of Derivatives - MV Negative - Rating 1",null,null,null,null,null,null,null,null,{"$f":"'Schedule IIC (EBS)'!F85","v":0}]
["Sch IIC","Funds Held",null,"Counterparty Default Risk - MV of Derivatives - MV Negative - Rating 2",null,null,null,null,null,null,null,null,{"$f":"'Schedule IIC (EBS)'!F86","v":0}]
["Sch IIC","Funds Held",null,"Counterparty Default Risk - MV of Derivatives - MV Negative - Rating 3",null,null,null,null,null,null,null,null,{"$f":"'Schedule IIC (EBS)'!F87","v":0}]
["Sch IIC","Funds Held",null,"Counterparty Default Risk - MV of Derivatives - MV Negative - Rating 4",null,null,null,null,null,null,null,null,{"$f":"'Schedule IIC (EBS)'!F88","v":0}]
["Sch IIC","Funds Held",null,"Counterparty Default Risk - MV of Derivatives - MV Negative - Rating 5",null,null,null,null,null,null,null,null,{"$f":"'Schedule IIC (EBS)'!F89","v":0}]
["Sch IIC","Funds Held",null,"Counterparty Default Risk - MV of Derivatives - MV Negative - Rating 6",null,null,null,null,null,null,null,null,{"$f":"'Schedule IIC (EBS)'!F90","v":0}]
["Sch IIC","Funds Held",null,"Counterparty Default Risk - MV of Derivatives - MV Negative - Rating 7",null,null,null,null,null,null,null,null,{"$f":"'Schedule IIC (EBS)'!F91","v":0}]
["Sch IIC","Funds Held",null,"Counterparty Default Risk - MV of Derivatives - MV Negative - Rating 8",null,null,null,null,null,null,null,null,{"$f":"'Schedule IIC (EBS)'!F92","v":0}]
["Sch IIC","Funds Held",null,"Counterparty Default Risk - MV of Collateral - Rating 0",null,null,null,null,null,null,null,null,{"$f":"'Schedule IIC (EBS)'!H84","v":0}]
["Sch IIC","Funds Held",null,"Counterparty Default Risk - MV of Collateral - Rating 1",null,null,null,null,null,null,null,null,{"$f":"'Schedule IIC (EBS)'!H85","v":0}]
["Sch IIC","Funds Held",null,"Counterparty Default Risk - MV of Collateral - Rating 2",null,null,null,null,null,null,null,null,{"$f":"'Schedule IIC (EBS)'!H86","v":0}]
["Sch IIC","Funds Held",null,"Counterparty Default Risk - MV of Collateral - Rating 3",null,null,null,null,null,null,null,null,{"$f":"'Schedule IIC (EBS)'!H87","v":0}]
["Sch IIC","Funds Held",null,"Counterparty Default Risk - MV of Collateral - Rating 4",null,null,null,null,null,null,null,null,{"$f":"'Schedule IIC (EBS)'!H88","v":0}]
["Sch IIC","Funds Held",null,"Counterparty Default Risk - MV of Collateral - Rating 5",null,null,null,null,null,null,null,null,{"$f":"'Schedule IIC (EBS)'!H89","v":0}]
["Sch IIC","Funds Held",null,"Counterparty Default Risk - MV of Collateral - Rating 6",null,null,null,null,null,null,null,null,{"$f":"'Schedule IIC (EBS)'!H90","v":0}]
["Sch IIC","Funds Held",null,"Counterparty Default Risk - MV of Collateral - Rating 7",null,null,null,null,null,null,null,null,{"$f":"'Schedule IIC (EBS)'!H91","v":0}]
["Sch IIC","Funds Held",null,"Counterparty Default Risk - MV of Collateral - Rating 8",null,null,null,null,null,null,null,null,{"$f":"'Schedule IIC (EBS)'!H92","v":0}]
["Sch IIC","Funds Held",null,"Cash and Cash Equivalents",null,null,null,null,null,null,null,null,{"$f":"'Schedule IIC (EBS)'!D95","v":0}]
[]
["Sch IID","Segregated Acc",null,"Corp. Bonds - BSCR Rate 0",null,null,null,null,null,null,null,null,{"$f":"'Schedule IID (EBS)'!D13","v":0}]
["Sch IID","Segregated Acc",null,"Corp. Bonds - BSCR Rate 1",null,null,null,null,null,null,null,null,{"$f":"'Schedule IID (EBS)'!D14","v":0}]
["Sch IID","Segregated Acc",null,"Corp. Bonds - BSCR Rate 2",null,null,null,null,null,null,null,null,{"$f":"'Schedule IID (EBS)'!D15","v":0}]
["Sch IID","Segregated Acc",null,"Corp. Bonds - BSCR Rate 3",null,null,null,null,null,null,null,null,{"$f":"'Schedule IID (EBS)'!D16","v":0}]
["Sch IID","Segregated Acc",null,"Corp. Bonds - BSCR Rate 4",null,null,null,null,null,null,null,null,{"$f":"'Schedule IID (EBS)'!D17","v":0}]
["Sch IID","Segregated Acc",null,"Corp. Bonds - BSCR Rate 5",null,null,null,null,null,null,null,null,{"$f":"'Schedule IID (EBS)'!D18","v":0}]
["Sch IID","Segregated Acc",null,"Corp. Bonds - BSCR Rate 6",null,null,null,null,null,null,null,null,{"$f":"'Schedule IID (EBS)'!D19","v":0}]
["Sch IID","Segregated Acc",null,"Corp. Bonds - BSCR Rate 7",null,null,null,null,null,null,null,null,{"$f":"'Schedule IID (EBS)'!D20","v":0}]
["Sch IID","Segregated Acc",null,"Corp. Bonds - BSCR Rate 8",null,null,null,null,null,null,null,null,{"$f":"'Schedule IID (EBS)'!D21","v":0}]
["Sch IID","Segregated Acc",null,"Liabilities Supported by Corp. Bonds - BSCR Rate 0",null,null,null,null,null,null,null,null,{"$f":"'Schedule IID (EBS)'!F13","v":0}]
["Sch IID","Segregated Acc",null,"Liabilities Supported by Corp. Bonds - BSCR Rate 1",null,null,null,null,null,null,null,null,{"$f":"'Schedule IID (EBS)'!F14","v":0}]
["Sch IID","Segregated Acc",null,"Liabilities Supported by Corp. Bonds - BSCR Rate 2",null,null,null,null,null,null,null,null,{"$f":"'Schedule IID (EBS)'!F15","v":0}]
["Sch IID","Segregated Acc",null,"Liabilities Supported by Corp. Bonds - BSCR Rate 3",null,null,null,null,null,null,null,null,{"$f":"'Schedule IID (EBS)'!F16","v":0}]
["Sch IID","Segregated Acc",null,"Liabilities Supported by Corp. Bonds - BSCR Rate 4",null,null,null,null,null,null,null,null,{"$f":"'Schedule IID (EBS)'!F17","v":0}]
["Sch IID","Segregated Acc",null,"Liabilities Supported by Corp. Bonds - BSCR Rate 5",null,null,null,null,null,null,null,null,{"$f":"'Schedule IID (EBS)'!F18","v":0}]
["Sch IID","Segregated Acc",null,"Liabilities Supported by Corp. Bonds - BSCR Rate 6",null,null,null,null,null,null,null,null,{"$f":"'Schedule IID (EBS)'!F19","v":0}]
["Sch IID","Segregated Acc",null,"Liabilities Supported by Corp. Bonds - BSCR Rate 7",null,null,null,null,null,null,null,null,{"$f":"'Schedule IID (EBS)'!F20","v":0}]
["Sch IID","Segregated Acc",null,"Liabilities Supported by Corp. Bonds - BSCR Rate 8",null,null,null,null,null,null,null,null,{"$f":"'Schedule IID (EBS)'!F21","v":0}]
["Sch IID","Segregated Acc",null,"Residential MBS - BSCR Rate 1",null,null,null,null,null,null,null,null,{"$f":"'Schedule IID (EBS)'!H14","v":0}]
["Sch IID","Segregated Acc",null,"Residential MBS - BSCR Rate 2",null,null,null,null,null,null,null,null,{"$f":"'Schedule IID (EBS)'!H15","v":0}]
["Sch IID","Segregated Acc",null,"Residential MBS - BSCR Rate 3",null,null,null,null,null,null,null,null,{"$f":"'Schedule IID (EBS)'!H16","v":0}]
["Sch IID","Segregated Acc",null,"Residential MBS - BSCR Rate 4",null,null,null,null,null,null,null,null,{"$f":"'Schedule IID (EBS)'!H17","v":0}]
["Sch IID","Segregated Acc",null,"Residential MBS - BSCR Rate 5",null,null,null,null,null,null,null,null,{"$f":"'Schedule IID (EBS)'!H18","v":0}]
["Sch IID","Segregated Acc",null,"Residential MBS - BSCR Rate 6",null,null,null,null,null,null,null,null,{"$f":"'Schedule IID (EBS)'!H19","v":0}]
["Sch IID","Segregated Acc",null,"Residential MBS - BSCR Rate 7",null,null,null,null,null,null,null,null,{"$f":"'Schedule IID (EBS)'!H20","v":0}]
["Sch IID","Segregated Acc",null,"Residential MBS - BSCR Rate 8",null,null,null,null,null,null,null,null,{"$f":"'Schedule IID (EBS)'!H21","v":0}]
["Sch IID","Segregated Acc",null,"Liabilities Supported by Residential MBS - BSCR Rate 1",null,null,null,null,null,null,null,null,{"$f":"'Schedule IID (EBS)'!J14","v":0}]
["Sch IID","Segregated Acc",null,"Liabilities Supported by Residential MBS - BSCR Rate 2",null,null,null,null,null,null,null,null,{"$f":"'Schedule IID (EBS)'!J15","v":0}]
["Sch IID","Segregated Acc",null,"Liabilities Supported by Residential MBS - BSCR Rate 3",null,null,null,null,null,null,null,null,{"$f":"'Schedule IID (EBS)'!J16","v":0}]
["Sch IID","Segregated Acc",null,"Liabilities Supported by Residential MBS - BSCR Rate 4",null,null,null,null,null,null,null,null,{"$f":"'Schedule IID (EBS)'!J17","v":0}]
["Sch IID","Segregated Acc",null,"Liabilities Supported by Residential MBS - BSCR Rate 5",null,null,null,null,null,null,null,null,{"$f":"'Schedule IID (EBS)'!J18","v":0}]
["Sch IID","Segregated Acc",null,"Liabilities Supported by Residential MBS - BSCR Rate 6",null,null,null,null,null,null,null,null,{"$f":"'Schedule IID (EBS)'!J19","v":0}]
["Sch IID","Segregated Acc",null,"Liabilities Supported by Residential MBS - BSCR Rate 7",null,null,null,null,null,null,null,null,{"$f":"'Schedule IID (EBS)'!J20","v":0}]
["Sch IID","Segregated Acc",null,"Liabilities Supported by Residential MBS - BSCR Rate 8",null,null,null,null,null,null,null,null,{"$f":"'Schedule IID (EBS)'!J21","v":0}]
["Sch IID","Segregated Acc",null,"Commercial MBS - BSCR Rate 1",null,null,null,null,null,null,null,null,{"$f":"'Schedule IID (EBS)'!L14","v":0}]
["Sch IID","Segregated Acc",null,"Commercial MBS - BSCR Rate 2",null,null,null,null,null,null,null,null,{"$f":"'Schedule IID (EBS)'!L15","v":0}]
["Sch IID","Segregated Acc",null,"Commercial MBS - BSCR Rate 3",null,null,null,null,null,null,null,null,{"$f":"'Schedule IID (EBS)'!L16","v":0}]
["Sch IID","Segregated Acc",null,"Commercial MBS - BSCR Rate 4",null,null,null,null,null,null,null,null,{"$f":"'Schedule IID (EBS)'!L17","v":0}]
["Sch IID","Segregated Acc",null,"Commercial MBS - BSCR Rate 5",null,null,null,null,null,null,null,null,{"$f":"'Schedule IID (EBS)'!L18","v":0}]
["Sch IID","Segregated Acc",null,"Commercial MBS - BSCR Rate 6",null,null,null,null,null,null,null,null,{"$f":"'Schedule IID (EBS)'!L19","v":0}]
["Sch IID","Segregated Acc",null,"Commercial MBS - BSCR Rate 7",null,null,null,null,null,null,null,null,{"$f":"'Schedule IID (EBS)'!L20","v":0}]
["Sch IID","Segregated Acc",null,"Commercial MBS - BSCR Rate 8",null,null,null,null,null,null,null,null,{"$f":"'Schedule IID (EBS)'!L21","v":0}]
["Sch IID","Segregated Acc",null,"Liabilities Supported by Commercial MBS - BSCR Rate 1",null,null,null,null,null,null,null,null,{"$f":"'Schedule IID (EBS)'!N14","v":0}]
["Sch IID","Segregated Acc",null,"Liabilities Supported by Commercial MBS - BSCR Rate 2",null,null,null,null,null,null,null,null,{"$f":"'Schedule IID (EBS)'!N15","v":0}]
["Sch IID","Segregated Acc",null,"Liabilities Supported by Commercial MBS - BSCR Rate 3",null,null,null,null,null,null,null,null,{"$f":"'Schedule IID (EBS)'!N16","v":0}]
["Sch IID","Segregated Acc",null,"Liabilities Supported by Commercial MBS - BSCR Rate 4",null,null,null,null,null,null,null,null,{"$f":"'Schedule IID (EBS)'!N17","v":0}]
["Sch IID","Segregated Acc",null,"Liabilities Supported by Commercial MBS - BSCR Rate 5",null,null,null,null,null,null,null,null,{"$f":"'Schedule IID (EBS)'!N18","v":0}]
["Sch IID","Segregated Acc",null,"Liabilities Supported by Commercial MBS - BSCR Rate 6",null,null,null,null,null,null,null,null,{"$f":"'Schedule IID (EBS)'!N19","v":0}]
["Sch IID","Segregated Acc",null,"Liabilities Supported by Commercial MBS - BSCR Rate 7",null,null,null,null,null,null,null,null,{"$f":"'Schedule IID (EBS)'!N20","v":0}]
["Sch IID","Segregated Acc",null,"Liabilities Supported by Commercial MBS - BSCR Rate 8",null,null,null,null,null,null,null,null,{"$f":"'Schedule IID (EBS)'!N21","v":0}]
["Sch IID","Segregated Acc",null,"Bonds Mutual Fund - BSCR Rate 0",null,null,null,null,null,null,null,null,{"$f":"'Schedule IID (EBS)'!P13","v":0}]
["Sch IID","Segregated Acc",null,"Bonds Mutual Fund - BSCR Rate 1",null,null,null,null,null,null,null,null,{"$f":"'Schedule IID (EBS)'!P14","v":0}]
["Sch IID","Segregated Acc",null,"Bonds Mutual Fund - BSCR Rate 2",null,null,null,null,null,null,null,null,{"$f":"'Schedule IID (EBS)'!P15","v":0}]
["Sch IID","Segregated Acc",null,"Bonds Mutual Fund - BSCR Rate 3",null,null,null,null,null,null,null,null,{"$f":"'Schedule IID (EBS)'!P16","v":0}]
["Sch IID","Segregated Acc",null,"Bonds Mutual Fund - BSCR Rate 4",null,null,null,null,null,null,null,null,{"$f":"'Schedule IID (EBS)'!P17","v":0}]
["Sch IID","Segregated Acc",null,"Bonds Mutual Fund - BSCR Rate 5",null,null,null,null,null,null,null,null,{"$f":"'Schedule IID (EBS)'!P18","v":0}]
["Sch IID","Segregated Acc",null,"Bonds Mutual Fund - BSCR Rate 6",null,null,null,null,null,null,null,null,{"$f":"'Schedule IID (EBS)'!P19","v":0}]
["Sch IID","Segregated Acc",null,"Bonds Mutual Fund - BSCR Rate 7",null,null,null,null,null,null,null,null,{"$f":"'Schedule IID (EBS)'!P20","v":0}]
["Sch IID","Segregated Acc",null,"Bonds Mutual Fund - BSCR Rate 8",null,null,null,null,null,null,null,null,{"$f":"'Schedule IID (EBS)'!P21","v":0}]
["Sch IID","Segregated Acc",null,"Liabilities Supported by Bonds Mutual Fund - BSCR Rate 0",null,null,null,null,null,null,null,null,{"$f":"'Schedule IID (EBS)'!R13","v":0}]
["Sch IID","Segregated Acc",null,"Liabilities Supported by Bonds Mutual Fund - BSCR Rate 1",null,null,null,null,null,null,null,null,{"$f":"'Schedule IID (EBS)'!R14","v":0}]
["Sch IID","Segregated Acc",null,"Liabilities Supported by Bonds Mutual Fund - BSCR Rate 2",null,null,null,null,null,null,null,null,{"$f":"'Schedule IID (EBS)'!R15","v":0}]
["Sch IID","Segregated Acc",null,"Liabilities Supported by Bonds Mutual Fund - BSCR Rate 3",null,null,null,null,null,null,null,null,{"$f":"'Schedule IID (EBS)'!R16","v":0}]
["Sch IID","Segregated Acc",null,"Liabilities Supported by Bonds Mutual Fund - BSCR Rate 4",null,null,null,null,null,null,null,null,{"$f":"'Schedule IID (EBS)'!R17","v":0}]
["Sch IID","Segregated Acc",null,"Liabilities Supported by Bonds Mutual Fund - BSCR Rate 5",null,null,null,null,null,null,null,null,{"$f":"'Schedule IID (EBS)'!R18","v":0}]
["Sch IID","Segregated Acc",null,"Liabilities Supported by Bonds Mutual Fund - BSCR Rate 6",null,null,null,null,null,null,null,null,{"$f":"'Schedule IID (EBS)'!R19","v":0}]
["Sch IID","Segregated Acc",null,"Liabilities Supported by Bonds Mutual Fund - BSCR Rate 7",null,null,null,null,null,null,null,null,{"$f":"'Schedule IID (EBS)'!R20","v":0}]
["Sch IID","Segregated Acc",null,"Liabilities Supported by Bonds Mutual Fund - BSCR Rate 8",null,null,null,null,null,null,null,null,{"$f":"'Schedule IID (EBS)'!R21","v":0}]
["Sch IID","Segregated Acc",null,"Mortgage Loans - Insured",null,null,null,null,null,null,null,null,{"$f":"'Schedule IID (EBS)'!T22","v":0}]
["Sch IID","Segregated Acc",null,"Mortgage Loans - Other Commercial",null,null,null,null,null,null,null,null,{"$f":"'Schedule IID (EBS)'!T23","v":0}]
["Sch IID","Segregated Acc",null,"Mortgage Loans - Other Residential",null,null,null,null,null,null,null,null,{"$f":"'Schedule IID (EBS)'!T24","v":0}]
["Sch IID","Segregated Acc",null,"Mortgage Loans - Not Good Stand.",null,null,null,null,null,null,null,null,{"$f":"'Schedule IID (EBS)'!T25","v":0}]
["Sch IID","Segregated Acc",null,"Liabilities Supported by Mortgage Loans - Insured",null,null,null,null,null,null,null,null,{"$f":"'Schedule IID (EBS)'!V22","v":0}]
["Sch IID","Segregated Acc",null,"Liabilities Supported by Mortgage Loans - Other Commercial",null,null,null,null,null,null,null,null,{"$f":"'Schedule IID (EBS)'!V23","v":0}]
["Sch IID","Segregated Acc",null,"Liabilities Supported by Mortgage Loans - Other Residential",null,null,null,null,null,null,null,null,{"$f":"'Schedule IID (EBS)'!V24","v":0}]
["Sch IID","Segregated Acc",null,"Liabilities Supported by Mortgage Loans - Not Good Stand.",null,null,null,null,null,null,null,null,{"$f":"'Schedule IID (EBS)'!V25","v":0}]
["Sch IID","Segregated Acc",null,"Long Positions - Before - Strategic Holdings - Listed",null,null,null,null,null,null,null,null,{"$f":"'Schedule IID (EBS)'!D39","v":0}]
["Sch IID","Segregated Acc",null,"Long Positions - Before - Duration Based",null,null,null,null,null,null,null,null,{"$f":"'Schedule IID (EBS)'!D40","v":0}]
["Sch IID","Segregated Acc",null,"Long Positions - Before - Listed Equity Securities in Developed Markets",null,null,null,null,null,null,null,null,{"$f":"'Schedule IID (EBS)'!D41","v":0}]
["Sch IID","Segregated Acc",null,"Long Positions - Before - Preferred Stocks, BSCR Rating 1",null,null,null,null,null,null,null,null,{"$f":"'Schedule IID (EBS)'!D42","v":0}]
["Sch IID","Segregated Acc",null,"Long Positions - Before - Preferred Stocks, BSCR Rating 2",null,null,null,null,null,null,null,null,{"$f":"'Schedule IID (EBS)'!D43","v":0}]
["Sch IID","Segregated Acc",null,"Long Positions - Before - Preferred Stocks, BSCR Rating 3",null,null,null,null,null,null,null,null,{"$f":"'Schedule IID (EBS)'!D44","v":0}]
["Sch IID","Segregated Acc",null,"Long Positions - Before - Preferred Stocks, BSCR Rating 4",null,null,null,null,null,null,null,null,{"$f":"'Schedule IID (EBS)'!D45","v":0}]
["Sch IID","Segregated Acc",null,"Long Positions - Before - Preferred Stocks, BSCR Rating 5",null,null,null,null,null,null,null,null,{"$f":"'Schedule IID (EBS)'!D46","v":0}]
["Sch IID","Segregated Acc",null,"Long Positions - Before - Preferred Stocks, BSCR Rating 6",null,null,null,null,null,null,null,null,{"$f":"'Schedule IID (EBS)'!D47","v":0}]
["Sch IID","Segregated Acc",null,"Long Positions - Before - Preferred Stocks, BSCR Rating 7",null,null,null,null,null,null,null,null,{"$f":"'Schedule IID (EBS)'!D48","v":0}]
["Sch IID","Segregated Acc",null,"Long Positions - Before - Preferred Stocks, BSCR Rating 8",null,null,null,null,null,null,null,null,{"$f":"'Schedule IID (EBS)'!D49","v":0}]
["Sch IID","Segregated Acc",null,"Long Positions - Before - Equity Derivatives on Type 1 Equities",null,null,null,null,null,null,null,null,{"$f":"'Schedule IID (EBS)'!D50","v":0}]
["Sch IID","Segregated Acc",null,"Long Positions - Before - Strategic Holdings - Unlisted",null,null,null,null,null,null,null,null,{"$f":"'Schedule IID (EBS)'!D51","v":0}]
["Sch IID","Segregated Acc",null,"Long Positions - Before - Other Equities",null,null,null,null,null,null,null,null,{"$f":"'Schedule IID (EBS)'!D52","v":0}]
["Sch IID","Segregated Acc",null,"Long Positions - Before - Letters of Credit",null,null,null,null,null,null,null,null,{"$f":"'Schedule IID (EBS)'!D53","v":0}]
["Sch IID","Segregated Acc",null,"Long Positions - Before - Intangible assets",null,null,null,null,null,null,null,null,{"$f":"'Schedule IID (EBS)'!D54","v":0}]
["Sch IID","Segregated Acc",null,"Long Positions - Before - Pension Benefit Surplus",null,null,null,null,null,null,null,null,{"$f":"'Schedule IID (EBS)'!D55","v":0}]
["Sch IID","Segregated Acc",null,"Long Positions - Before - Equity Derivatives on Type 2 Equities",null,null,null,null,null,null,null,null,{"$f":"'Schedule IID (EBS)'!D56","v":0}]
["Sch IID","Segregated Acc",null,"Long Positions - Before - Infrastructure",null,null,null,null,null,null,null,null,{"$f":"'Schedule IID (EBS)'!D57","v":0}]
["Sch IID","Segregated Acc",null,"Long Positions - Before - Derivatives on Infrastructure",null,null,null,null,null,null,null,null,{"$f":"'Schedule IID (EBS)'!D58","v":0}]
["Sch IID","Segregated Acc",null,"Long Positions - Before - Equity Real Estate 1",null,null,null,null,null,null,null,null,{"$f":"'Schedule IID (EBS)'!D59","v":0}]
["Sch IID","Segregated Acc",null,"Long Positions - Before - Equity Real Estate 2",null,null,null,null,null,null,null,null,{"$f":"'Schedule IID (EBS)'!D60","v":0}]
["Sch IID","Segregated Acc",null,"Long Positions - After - Strategic Holdings - Listed",null,null,null,null,null,null,null,null,{"$f":"'Schedule IID (EBS)'!F39","v":0}]
["Sch IID","Segregated Acc",null,"Long Positions - After - Duration Based",null,null,null,null,null,null,null,null,{"$f":"'Schedule IID (EBS)'!F40","v":0}]
["Sch IID","Segregated Acc",null,"Long Positions - After - Listed Equity Securities in Developed Markets",null,null,null,null,null,null,null,null,{"$f":"'Schedule IID (EBS)'!F41","v":0}]
["Sch IID","Segregated Acc",null,"Long Positions - After - Preferred Stocks, BSCR Rating 1",null,null,null,null,null,null,null,null,{"$f":"'Schedule IID (EBS)'!F42","v":0}]
["Sch IID","Segregated Acc",null,"Long Positions - After - Preferred Stocks, BSCR Rating 2",null,null,null,null,null,null,null,null,{"$f":"'Schedule IID (EBS)'!F43","v":0}]
["Sch IID","Segregated Acc",null,"Long Positions - After - Preferred Stocks, BSCR Rating 3",null,null,null,null,null,null,null,null,{"$f":"'Schedule IID (EBS)'!F44","v":0}]
["Sch IID","Segregated Acc",null,"Long Positions - After - Preferred Stocks, BSCR Rating 4",null,null,null,null,null,null,null,null,{"$f":"'Schedule IID (EBS)'!F45","v":0}]
["Sch IID","Segregated Acc",null,"Long Positions - After - Preferred Stocks, BSCR Rating 5",null,null,null,null,null,null,null,null,{"$f":"'Schedule IID (EBS)'!F46","v":0}]
["Sch IID","Segregated Acc",null,"Long Positions - After - Preferred Stocks, BSCR Rating 6",null,null,null,null,null,null,null,null,{"$f":"'Schedule IID (EBS)'!F47","v":0}]
["Sch IID","Segregated Acc",null,"Long Positions - After - Preferred Stocks, BSCR Rating 7",null,null,null,null,null,null,null,null,{"$f":"'Schedule IID (EBS)'!F48","v":0}]
["Sch IID","Segregated Acc",null,"Long Positions - After - Preferred Stocks, BSCR Rating 8",null,null,null,null,null,null,null,null,{"$f":"'Schedule IID (EBS)'!F49","v":0}]
["Sch IID","Segregated Acc",null,"Long Positions - After - Equity Derivatives on Type 1 Equities",null,null,null,null,null,null,null,null,{"$f":"'Schedule IID (EBS)'!F50","v":0}]
["Sch IID","Segregated Acc",null,"Long Positions - After - Strategic Holdings - Unlisted",null,null,null,null,null,null,null,null,{"$f":"'Schedule IID (EBS)'!F51","v":0}]
["Sch IID","Segregated Acc",null,"Long Positions - After - Other Equities",null,null,null,null,null,null,null,null,{"$f":"'Schedule IID (EBS)'!F52","v":0}]
["Sch IID","Segregated Acc",null,"Long Positions - After - Letters of Credit",null,null,null,null,null,null,null,null,{"$f":"'Schedule IID (EBS)'!F53","v":0}]
["Sch IID","Segregated Acc",null,"Long Positions - After - Intangible assets",null,null,null,null,null,null,null,null,{"$f":"'Schedule IID (EBS)'!F54","v":0}]
["Sch IID","Segregated Acc",null,"Long Positions - After - Pension Benefit Surplus",null,null,null,null,null,null,null,null,{"$f":"'Schedule IID (EBS)'!F55","v":0}]
["Sch IID","Segregated Acc",null,"Long Positions - After - Equity Derivatives on Type 2 Equities",null,null,null,null,null,null,null,null,{"$f":"'Schedule IID (EBS)'!F56","v":0}]
["Sch IID","Segregated Acc",null,"Long Positions - After - Infrastructure",null,null,null,null,null,null,null,null,{"$f":"'Schedule IID (EBS)'!F57","v":0}]
["Sch IID","Segregated Acc",null,"Long Positions - After - Derivatives on Infrastructure",null,null,null,null,null,null,null,null,{"$f":"'Schedule IID (EBS)'!F58","v":0}]
["Sch IID","Segregated Acc",null,"Long Positions - After - Equity Real Estate 1",null,null,null,null,null,null,null,null,{"$f":"'Schedule IID (EBS)'!F59","v":0}]
["Sch IID","Segregated Acc",null,"Long Positions - After - Equity Real Estate 2",null,null,null,null,null,null,null,null,{"$f":"'Schedule IID (EBS)'!F60","v":0}]
["Sch IID","Segregated Acc",null,"Short - Before - Qualified Assets - Strategic Holdings - Listed",null,null,null,null,null,null,null,null,{"$f":"'Schedule IID (EBS)'!H39","v":0}]
["Sch IID","Segregated Acc",null,"Short - Before - Qualified Assets - Duration Based",null,null,null,null,null,null,null,null,{"$f":"'Schedule IID (EBS)'!H40","v":0}]
["Sch IID","Segregated Acc",null,"Short - Before - Qualified Assets - Listed Equity Securities in Developed Markets",null,null,null,null,null,null,null,null,{"$f":"'Schedule IID (EBS)'!H41","v":0}]
["Sch IID","Segregated Acc",null,"Short - Before - Qualified Assets - Preferred Stocks, BSCR Rating 1",null,null,null,null,null,null,null,null,{"$f":"'Schedule IID (EBS)'!H42","v":0}]
["Sch IID","Segregated Acc",null,"Short - Before - Qualified Assets - Preferred Stocks, BSCR Rating 2",null,null,null,null,null,null,null,null,{"$f":"'Schedule IID (EBS)'!H43","v":0}]
["Sch IID","Segregated Acc",null,"Short - Before - Qualified Assets - Preferred Stocks, BSCR Rating 3",null,null,null,null,null,null,null,null,{"$f":"'Schedule IID (EBS)'!H44","v":0}]
["Sch IID","Segregated Acc",null,"Short - Before - Qualified Assets - Preferred Stocks, BSCR Rating 4",null,null,null,null,null,null,null,null,{"$f":"'Schedule IID (EBS)'!H45","v":0}]
["Sch IID","Segregated Acc",null,"Short - Before - Qualified Assets - Preferred Stocks, BSCR Rating 5",null,null,null,null,null,null,null,null,{"$f":"'Schedule IID (EBS)'!H46","v":0}]
["Sch IID","Segregated Acc",null,"Short - Before - Qualified Assets - Preferred Stocks, BSCR Rating 6",null,null,null,null,null,null,null,null,{"$f":"'Schedule IID (EBS)'!H47","v":0}]
["Sch IID","Segregated Acc",null,"Short - Before - Qualified Assets - Preferred Stocks, BSCR Rating 7",null,null,null,null,null,null,null,null,{"$f":"'Schedule IID (EBS)'!H48","v":0}]
["Sch IID","Segregated Acc",null,"Short - Before - Qualified Assets - Preferred Stocks, BSCR Rating 8",null,null,null,null,null,null,null,null,{"$f":"'Schedule IID (EBS)'!H49","v":0}]
["Sch IID","Segregated Acc",null,"Short - Before - Qualified Assets - Equity Derivatives on Type 1 Equities",null,null,null,null,null,null,null,null,{"$f":"'Schedule IID (EBS)'!H50","v":0}]
["Sch IID","Segregated Acc",null,"Short - Before - Qualified Assets - Strategic Holdings - Unlisted",null,null,null,null,null,null,null,null,{"$f":"'Schedule IID (EBS)'!H51","v":0}]
["Sch IID","Segregated Acc",null,"Short - Before - Qualified Assets - Other Equities",null,null,null,null,null,null,null,null,{"$f":"'Schedule IID (EBS)'!H52","v":0}]
["Sch IID","Segregated Acc",null,"Short - Before - Qualified Assets - Letters of Credit",null,null,null,null,null,null,null,null,{"$f":"'Schedule IID (EBS)'!H53","v":0}]
["Sch IID","Segregated Acc",null,"Short - Before - Qualified Assets - Intangible assets",null,null,null,null,null,null,null,null,{"$f":"'Schedule IID (EBS)'!H54","v":0}]
["Sch IID","Segregated Acc",null,"Short - Before - Qualified Assets - Pension Benefit Surplus",null,null,null,null,null,null,null,null,{"$f":"'Schedule IID (EBS)'!H55","v":0}]
["Sch IID","Segregated Acc",null,"Short - Before - Qualified Assets - Equity Derivatives on Type 2 Equities",null,null,null,null,null,null,null,null,{"$f":"'Schedule IID (EBS)'!H56","v":0}]
["Sch IID","Segregated Acc",null,"Short - Before - Qualified Assets - Infrastructure",null,null,null,null,null,null,null,null,{"$f":"'Schedule IID (EBS)'!H57","v":0}]
["Sch IID","Segregated Acc",null,"Short - Before - Qualified Assets - Derivatives on Infrastructure",null,null,null,null,null,null,null,null,{"$f":"'Schedule IID (EBS)'!H58","v":0}]
["Sch IID","Segregated Acc",null,"Short - Before - Qualified Assets - Equity Real Estate 1",null,null,null,null,null,null,null,null,{"$f":"'Schedule IID (EBS)'!H59","v":0}]
["Sch IID","Segregated Acc",null,"Short - Before - Qualified Assets - Equity Real Estate 2",null,null,null,null,null,null,null,null,{"$f":"'Schedule IID (EBS)'!H60","v":0}]
["Sch IID","Segregated Acc",null,"Short - After - Qualified Assets - Strategic Holdings - Listed",null,null,null,null,null,null,null,null,{"$f":"'Schedule IID (EBS)'!J39","v":0}]
["Sch IID","Segregated Acc",null,"Short - After - Qualified Assets - Duration Based",null,null,null,null,null,null,null,null,{"$f":"'Schedule IID (EBS)'!J40","v":0}]
["Sch IID","Segregated Acc",null,"Short - After - Qualified Assets - Listed Equity Securities in Developed Markets",null,null,null,null,null,null,null,null,{"$f":"'Schedule IID (EBS)'!J41","v":0}]
["Sch IID","Segregated Acc",null,"Short - After - Qualified Assets - Preferred Stocks, BSCR Rating 1",null,null,null,null,null,null,null,null,{"$f":"'Schedule IID (EBS)'!J42","v":0}]
["Sch IID","Segregated Acc",null,"Short - After - Qualified Assets - Preferred Stocks, BSCR Rating 2",null,null,null,null,null,null,null,null,{"$f":"'Schedule IID (EBS)'!J43","v":0}]
["Sch IID","Segregated Acc",null,"Short - After - Qualified Assets - Preferred Stocks, BSCR Rating 3",null,null,null,null,null,null,null,null,{"$f":"'Schedule IID (EBS)'!J44","v":0}]
["Sch IID","Segregated Acc",null,"Short - After - Qualified Assets - Preferred Stocks, BSCR Rating 4",null,null,null,null,null,null,null,null,{"$f":"'Schedule IID (EBS)'!J45","v":0}]
["Sch IID","Segregated Acc",null,"Short - After - Qualified Assets - Preferred Stocks, BSCR Rating 5",null,null,null,null,null,null,null,null,{"$f":"'Schedule IID (EBS)'!J46","v":0}]
["Sch IID","Segregated Acc",null,"Short - After - Qualified Assets - Preferred Stocks, BSCR Rating 6",null,null,null,null,null,null,null,null,{"$f":"'Schedule IID (EBS)'!J47","v":0}]
["Sch IID","Segregated Acc",null,"Short - After - Qualified Assets - Preferred Stocks, BSCR Rating 7",null,null,null,null,null,null,null,null,{"$f":"'Schedule IID (EBS)'!J48","v":0}]
["Sch IID","Segregated Acc",null,"Short - After - Qualified Assets - Preferred Stocks, BSCR Rating 8",null,null,null,null,null,null,null,null,{"$f":"'Schedule IID (EBS)'!J49","v":0}]
["Sch IID","Segregated Acc",null,"Short - After - Qualified Assets - Equity Derivatives on Type 1 Equities",null,null,null,null,null,null,null,null,{"$f":"'Schedule IID (EBS)'!J50","v":0}]
["Sch IID","Segregated Acc",null,"Short - After - Qualified Assets - Strategic Holdings - Unlisted",null,null,null,null,null,null,null,null,{"$f":"'Schedule IID (EBS)'!J51","v":0}]
["Sch IID","Segregated Acc",null,"Short - After - Qualified Assets - Other Equities",null,null,null,null,null,null,null,null,{"$f":"'Schedule IID (EBS)'!J52","v":0}]
["Sch IID","Segregated Acc",null,"Short - After - Qualified Assets - Letters of Credit",null,null,null,null,null,null,null,null,{"$f":"'Schedule IID (EBS)'!J53","v":0}]
["Sch IID","Segregated Acc",null,"Short - After - Qualified Assets - Intangible assets",null,null,null,null,null,null,null,null,{"$f":"'Schedule IID (EBS)'!J54","v":0}]
["Sch IID","Segregated Acc",null,"Short - After - Qualified Assets - Pension Benefit Surplus",null,null,null,null,null,null,null,null,{"$f":"'Schedule IID (EBS)'!J55","v":0}]
["Sch IID","Segregated Acc",null,"Short - After - Qualified Assets - Equity Derivatives on Type 2 Equities",null,null,null,null,null,null,null,null,{"$f":"'Schedule IID (EBS)'!J56","v":0}]
["Sch IID","Segregated Acc",null,"Short - After - Qualified Assets - Infrastructure",null,null,null,null,null,null,null,null,{"$f":"'Schedule IID (EBS)'!J57","v":0}]
["Sch IID","Segregated Acc",null,"Short - After - Qualified Assets - Derivatives on Infrastructure",null,null,null,null,null,null,null,null,{"$f":"'Schedule IID (EBS)'!J58","v":0}]
["Sch IID","Segregated Acc",null,"Short - After - Qualified Assets - Equity Real Estate 1",null,null,null,null,null,null,null,null,{"$f":"'Schedule IID (EBS)'!J59","v":0}]
["Sch IID","Segregated Acc",null,"Short - After - Qualified Assets - Equity Real Estate 2",null,null,null,null,null,null,null,null,{"$f":"'Schedule IID (EBS)'!J60","v":0}]
["Sch IID","Segregated Acc",null,"Short - Before - UnQualified Assets - Strategic Holdings - Listed",null,null,null,null,null,null,null,null,{"$f":"'Schedule IID (EBS)'!L39","v":0}]
["Sch IID","Segregated Acc",null,"Short - Before - UnQualified Assets - Duration Based",null,null,null,null,null,null,null,null,{"$f":"'Schedule IID (EBS)'!L40","v":0}]
["Sch IID","Segregated Acc",null,"Short - Before - UnQualified Assets - Listed Equity Securities in Developed Markets",null,null,null,null,null,null,null,null,{"$f":"'Schedule IID (EBS)'!L41","v":0}]
["Sch IID","Segregated Acc",null,"Short - Before - UnQualified Assets - Preferred Stocks, BSCR Rating 1",null,null,null,null,null,null,null,null,{"$f":"'Schedule IID (EBS)'!L42","v":0}]
["Sch IID","Segregated Acc",null,"Short - Before - UnQualified Assets - Preferred Stocks, BSCR Rating 2",null,null,null,null,null,null,null,null,{"$f":"'Schedule IID (EBS)'!L43","v":0}]
["Sch IID","Segregated Acc",null,"Short - Before - UnQualified Assets - Preferred Stocks, BSCR Rating 3",null,null,null,null,null,null,null,null,{"$f":"'Schedule IID (EBS)'!L44","v":0}]
["Sch IID","Segregated Acc",null,"Short - Before - UnQualified Assets - Preferred Stocks, BSCR Rating 4",null,null,null,null,null,null,null,null,{"$f":"'Schedule IID (EBS)'!L45","v":0}]
["Sch IID","Segregated Acc",null,"Short - Before - UnQualified Assets - Preferred Stocks, BSCR Rating 5",null,null,null,null,null,null,null,null,{"$f":"'Schedule IID (EBS)'!L46","v":0}]
["Sch IID","Segregated Acc",null,"Short - Before - UnQualified Assets - Preferred Stocks, BSCR Rating 6",null,null,null,null,null,null,null,null,{"$f":"'Schedule IID (EBS)'!L47","v":0}]
["Sch IID","Segregated Acc",null,"Short - Before - UnQualified Assets - Preferred Stocks, BSCR Rating 7",null,null,null,null,null,null,null,null,{"$f":"'Schedule IID (EBS)'!L48","v":0}]
["Sch IID","Segregated Acc",null,"Short - Before - UnQualified Assets - Preferred Stocks, BSCR Rating 8",null,null,null,null,null,null,null,null,{"$f":"'Schedule IID (EBS)'!L49","v":0}]
["Sch IID","Segregated Acc",null,"Short - Before - UnQualified Assets - Equity Derivatives on Type 1 Equities",null,null,null,null,null,null,null,null,{"$f":"'Schedule IID (EBS)'!L50","v":0}]
["Sch IID","Segregated Acc",null,"Short - Before - UnQualified Assets - Strategic Holdings - Unlisted",null,null,null,null,null,null,null,null,{"$f":"'Schedule IID (EBS)'!L51","v":0}]
["Sch IID","Segregated Acc",null,"Short - Before - UnQualified Assets - Other Equities",null,null,null,null,null,null,null,null,{"$f":"'Schedule IID (EBS)'!L52","v":0}]
["Sch IID","Segregated Acc",null,"Short - Before - UnQualified Assets - Letters of Credit",null,null,null,null,null,null,null,null,{"$f":"'Schedule IID (EBS)'!L53","v":0}]
["Sch IID","Segregated Acc",null,"Short - Before - UnQualified Assets - Intangible assets",null,null,null,null,null,null,null,null,{"$f":"'Schedule IID (EBS)'!L54","v":0}]
["Sch IID","Segregated Acc",null,"Short - Before - UnQualified Assets - Pension Benefit Surplus",null,null,null,null,null,null,null,null,{"$f":"'Schedule IID (EBS)'!L55","v":0}]
["Sch IID","Segregated Acc",null,"Short - Before - UnQualified Assets - Equity Derivatives on Type 2 Equities",null,null,null,null,null,null,null,null,{"$f":"'Schedule IID (EBS)'!L56","v":0}]
["Sch IID","Segregated Acc",null,"Short - Before - UnQualified Assets - Infrastructure",null,null,null,null,null,null,null,null,{"$f":"'Schedule IID (EBS)'!L57","v":0}]
["Sch IID","Segregated Acc",null,"Short - Before - UnQualified Assets - Derivatives on Infrastructure",null,null,null,null,null,null,null,null,{"$f":"'Schedule IID (EBS)'!L58","v":0}]
["Sch IID","Segregated Acc",null,"Short - Before - UnQualified Assets - Equity Real Estate 1",null,null,null,null,null,null,null,null,{"$f":"'Schedule IID (EBS)'!L59","v":0}]
["Sch IID","Segregated Acc",null,"Short - Before - UnQualified Assets - Equity Real Estate 2",null,null,null,null,null,null,null,null,{"$f":"'Schedule IID (EBS)'!L60","v":0}]
["Sch IID","Segregated Acc",null,"Short - After - UnQualified Assets - Strategic Holdings - Listed",null,null,null,null,null,null,null,null,{"$f":"'Schedule IID (EBS)'!N39","v":0}]
["Sch IID","Segregated Acc",null,"Short - After - UnQualified Assets - Duration Based",null,null,null,null,null,null,null,null,{"$f":"'Schedule IID (EBS)'!N40","v":0}]
["Sch IID","Segregated Acc",null,"Short - After - UnQualified Assets - Listed Equity Securities in Developed Markets",null,null,null,null,null,null,null,null,{"$f":"'Schedule IID (EBS)'!N41","v":0}]
["Sch IID","Segregated Acc",null,"Short - After - UnQualified Assets - Preferred Stocks, BSCR Rating 1",null,null,null,null,null,null,null,null,{"$f":"'Schedule IID (EBS)'!N42","v":0}]
["Sch IID","Segregated Acc",null,"Short - After - UnQualified Assets - Preferred Stocks, BSCR Rating 2",null,null,null,null,null,null,null,null,{"$f":"'Schedule IID (EBS)'!N43","v":0}]
["Sch IID","Segregated Acc",null,"Short - After - UnQualified Assets - Preferred Stocks, BSCR Rating 3",null,null,null,null,null,null,null,null,{"$f":"'Schedule IID (EBS)'!N44","v":0}]
["Sch IID","Segregated Acc",null,"Short - After - UnQualified Assets - Preferred Stocks, BSCR Rating 4",null,null,null,null,null,null,null,null,{"$f":"'Schedule IID (EBS)'!N45","v":0}]
["Sch IID","Segregated Acc",null,"Short - After - UnQualified Assets - Preferred Stocks, BSCR Rating 5",null,null,null,null,null,null,null,null,{"$f":"'Schedule IID (EBS)'!N46","v":0}]
["Sch IID","Segregated Acc",null,"Short - After - UnQualified Assets - Preferred Stocks, BSCR Rating 6",null,null,null,null,null,null,null,null,{"$f":"'Schedule IID (EBS)'!N47","v":0}]
["Sch IID","Segregated Acc",null,"Short - After - UnQualified Assets - Preferred Stocks, BSCR Rating 7",null,null,null,null,null,null,null,null,{"$f":"'Schedule IID (EBS)'!N48","v":0}]
["Sch IID","Segregated Acc",null,"Short - After - UnQualified Assets - Preferred Stocks, BSCR Rating 8",null,null,null,null,null,null,null,null,{"$f":"'Schedule IID (EBS)'!N49","v":0}]
["Sch IID","Segregated Acc",null,"Short - After - UnQualified Assets - Equity Derivatives on Type 1 Equities",null,null,null,null,null,null,null,null,{"$f":"'Schedule IID (EBS)'!N50","v":0}]
["Sch IID","Segregated Acc",null,"Short - After - UnQualified Assets - Strategic Holdings - Unlisted",null,null,null,null,null,null,null,null,{"$f":"'Schedule IID (EBS)'!N51","v":0}]
["Sch IID","Segregated Acc",null,"Short - After - UnQualified Assets - Other Equities",null,null,null,null,null,null,null,null,{"$f":"'Schedule IID (EBS)'!N52","v":0}]
["Sch IID","Segregated Acc",null,"Short - After - UnQualified Assets - Letters of Credit",null,null,null,null,null,null,null,null,{"$f":"'Schedule IID (EBS)'!N53","v":0}]
["Sch IID","Segregated Acc",null,"Short - After - UnQualified Assets - Intangible assets",null,null,null,null,null,null,null,null,{"$f":"'Schedule IID (EBS)'!N54","v":0}]
["Sch IID","Segregated Acc",null,"Short - After - UnQualified Assets - Pension Benefit Surplus",null,null,null,null,null,null,null,null,{"$f":"'Schedule IID (EBS)'!N55","v":0}]
["Sch IID","Segregated Acc",null,"Short - After - UnQualified Assets - Equity Derivatives on Type 2 Equities",null,null,null,null,null,null,null,null,{"$f":"'Schedule IID (EBS)'!N56","v":0}]
["Sch IID","Segregated Acc",null,"Short - After - UnQualified Assets - Infrastructure",null,null,null,null,null,null,null,null,{"$f":"'Schedule IID (EBS)'!N57","v":0}]
["Sch IID","Segregated Acc",null,"Short - After - UnQualified Assets - Derivatives on Infrastructure",null,null,null,null,null,null,null,null,{"$f":"'Schedule IID (EBS)'!N58","v":0}]
["Sch IID","Segregated Acc",null,"Short - After - UnQualified Assets - Equity Real Estate 1",null,null,null,null,null,null,null,null,{"$f":"'Schedule IID (EBS)'!N59","v":0}]
["Sch IID","Segregated Acc",null,"Short - After - UnQualified Assets - Equity Real Estate 2",null,null,null,null,null,null,null,null,{"$f":"'Schedule IID (EBS)'!N60","v":0}]
["Sch IID","Segregated Acc",null,"Liabilities - Before - W/O Mgmt Actions - Strategic Holdings - Listed",null,null,null,null,null,null,null,null,{"$f":"'Schedule IID (EBS)'!P39","v":0}]
["Sch IID","Segregated Acc",null,"Liabilities - Before - W/O Mgmt Actions - Duration Based",null,null,null,null,null,null,null,null,{"$f":"'Schedule IID (EBS)'!P40","v":0}]
["Sch IID","Segregated Acc",null,"Liabilities - Before - W/O Mgmt Actions - Listed Equity Securities in Developed Markets",null,null,null,null,null,null,null,null,{"$f":"'Schedule IID (EBS)'!P41","v":0}]
["Sch IID","Segregated Acc",null,"Liabilities - Before - W/O Mgmt Actions - Preferred Stocks, BSCR Rating 1",null,null,null,null,null,null,null,null,{"$f":"'Schedule IID (EBS)'!P42","v":0}]
["Sch IID","Segregated Acc",null,"Liabilities - Before - W/O Mgmt Actions - Preferred Stocks, BSCR Rating 2",null,null,null,null,null,null,null,null,{"$f":"'Schedule IID (EBS)'!P43","v":0}]
["Sch IID","Segregated Acc",null,"Liabilities - Before - W/O Mgmt Actions - Preferred Stocks, BSCR Rating 3",null,null,null,null,null,null,null,null,{"$f":"'Schedule IID (EBS)'!P44","v":0}]
["Sch IID","Segregated Acc",null,"Liabilities - Before - W/O Mgmt Actions - Preferred Stocks, BSCR Rating 4",null,null,null,null,null,null,null,null,{"$f":"'Schedule IID (EBS)'!P45","v":0}]
["Sch IID","Segregated Acc",null,"Liabilities - Before - W/O Mgmt Actions - Preferred Stocks, BSCR Rating 5",null,null,null,null,null,null,null,null,{"$f":"'Schedule IID (EBS)'!P46","v":0}]
["Sch IID","Segregated Acc",null,"Liabilities - Before - W/O Mgmt Actions - Preferred Stocks, BSCR Rating 6",null,null,null,null,null,null,null,null,{"$f":"'Schedule IID (EBS)'!P47","v":0}]
["Sch IID","Segregated Acc",null,"Liabilities - Before - W/O Mgmt Actions - Preferred Stocks, BSCR Rating 7",null,null,null,null,null,null,null,null,{"$f":"'Schedule IID (EBS)'!P48","v":0}]
["Sch IID","Segregated Acc",null,"Liabilities - Before - W/O Mgmt Actions - Preferred Stocks, BSCR Rating 8",null,null,null,null,null,null,null,null,{"$f":"'Schedule IID (EBS)'!P49","v":0}]
["Sch IID","Segregated Acc",null,"Liabilities - Before - W/O Mgmt Actions - Equity Derivatives on Type 1 Equities",null,null,null,null,null,null,null,null,{"$f":"'Schedule IID (EBS)'!P50","v":0}]
["Sch IID","Segregated Acc",null,"Liabilities - Before - W/O Mgmt Actions - Strategic Holdings - Unlisted",null,null,null,null,null,null,null,null,{"$f":"'Schedule IID (EBS)'!P51","v":0}]
["Sch IID","Segregated Acc",null,"Liabilities - Before - W/O Mgmt Actions - Other Equities",null,null,null,null,null,null,null,null,{"$f":"'Schedule IID (EBS)'!P52","v":0}]
["Sch IID","Segregated Acc",null,"Liabilities - Before - W/O Mgmt Actions - Letters of Credit",null,null,null,null,null,null,null,null,{"$f":"'Schedule IID (EBS)'!P53","v":0}]
["Sch IID","Segregated Acc",null,"Liabilities - Before - W/O Mgmt Actions - Intangible assets",null,null,null,null,null,null,null,null,{"$f":"'Schedule IID (EBS)'!P54","v":0}]
["Sch IID","Segregated Acc",null,"Liabilities - Before - W/O Mgmt Actions - Pension Benefit Surplus",null,null,null,null,null,null,null,null,{"$f":"'Schedule IID (EBS)'!P55","v":0}]
["Sch IID","Segregated Acc",null,"Liabilities - Before - W/O Mgmt Actions - Equity Derivatives on Type 2 Equities",null,null,null,null,null,null,null,null,{"$f":"'Schedule IID (EBS)'!P56","v":0}]
["Sch IID","Segregated Acc",null,"Liabilities - Before - W/O Mgmt Actions - Infrastructure",null,null,null,null,null,null,null,null,{"$f":"'Schedule IID (EBS)'!P57","v":0}]
["Sch IID","Segregated Acc",null,"Liabilities - Before - W/O Mgmt Actions - Derivatives on Infrastructure",null,null,null,null,null,null,null,null,{"$f":"'Schedule IID (EBS)'!P58","v":0}]
["Sch IID","Segregated Acc",null,"Liabilities - Before - W/O Mgmt Actions - Equity Real Estate 1",null,null,null,null,null,null,null,null,{"$f":"'Schedule IID (EBS)'!P59","v":0}]
["Sch IID","Segregated Acc",null,"Liabilities - Before - W/O Mgmt Actions - Equity Real Estate 2",null,null,null,null,null,null,null,null,{"$f":"'Schedule IID (EBS)'!P60","v":0}]
["Sch IID","Segregated Acc",null,"Liabilities - After - W/O Mgmt Actions - Strategic Holdings - Listed",null,null,null,null,null,null,null,null,{"$f":"'Schedule IID (EBS)'!R39","v":0}]
["Sch IID","Segregated Acc",null,"Liabilities - After - W/O Mgmt Actions - Duration Based",null,null,null,null,null,null,null,null,{"$f":"'Schedule IID (EBS)'!R40","v":0}]
["Sch IID","Segregated Acc",null,"Liabilities - After - W/O Mgmt Actions - Listed Equity Securities in Developed Markets",null,null,null,null,null,null,null,null,{"$f":"'Schedule IID (EBS)'!R41","v":0}]
["Sch IID","Segregated Acc",null,"Liabilities - After - W/O Mgmt Actions - Preferred Stocks, BSCR Rating 1",null,null,null,null,null,null,null,null,{"$f":"'Schedule IID (EBS)'!R42","v":0}]
["Sch IID","Segregated Acc",null,"Liabilities - After - W/O Mgmt Actions - Preferred Stocks, BSCR Rating 2",null,null,null,null,null,null,null,null,{"$f":"'Schedule IID (EBS)'!R43","v":0}]
["Sch IID","Segregated Acc",null,"Liabilities - After - W/O Mgmt Actions - Preferred Stocks, BSCR Rating 3",null,null,null,null,null,null,null,null,{"$f":"'Schedule IID (EBS)'!R44","v":0}]
["Sch IID","Segregated Acc",null,"Liabilities - After - W/O Mgmt Actions - Preferred Stocks, BSCR Rating 4",null,null,null,null,null,null,null,null,{"$f":"'Schedule IID (EBS)'!R45","v":0}]
["Sch IID","Segregated Acc",null,"Liabilities - After - W/O Mgmt Actions - Preferred Stocks, BSCR Rating 5",null,null,null,null,null,null,null,null,{"$f":"'Schedule IID (EBS)'!R46","v":0}]
["Sch IID","Segregated Acc",null,"Liabilities - After - W/O Mgmt Actions - Preferred Stocks, BSCR Rating 6",null,null,null,null,null,null,null,null,{"$f":"'Schedule IID (EBS)'!R47","v":0}]
["Sch IID","Segregated Acc",null,"Liabilities - After - W/O Mgmt Actions - Preferred Stocks, BSCR Rating 7",null,null,null,null,null,null,null,null,{"$f":"'Schedule IID (EBS)'!R48","v":0}]
["Sch IID","Segregated Acc",null,"Liabilities - After - W/O Mgmt Actions - Preferred Stocks, BSCR Rating 8",null,null,null,null,null,null,null,null,{"$f":"'Schedule IID (EBS)'!R49","v":0}]
["Sch IID","Segregated Acc",null,"Liabilities - After - W/O Mgmt Actions - Equity Derivatives on Type 1 Equities",null,null,null,null,null,null,null,null,{"$f":"'Schedule IID (EBS)'!R50","v":0}]
["Sch IID","Segregated Acc",null,"Liabilities - After - W/O Mgmt Actions - Strategic Holdings - Unlisted",null,null,null,null,null,null,null,null,{"$f":"'Schedule IID (EBS)'!R51","v":0}]
["Sch IID","Segregated Acc",null,"Liabilities - After - W/O Mgmt Actions - Other Equities",null,null,null,null,null,null,null,null,{"$f":"'Schedule IID (EBS)'!R52","v":0}]
["Sch IID","Segregated Acc",null,"Liabilities - After - W/O Mgmt Actions - Letters of Credit",null,null,null,null,null,null,null,null,{"$f":"'Schedule IID (EBS)'!R53","v":0}]
["Sch IID","Segregated Acc",null,"Liabilities - After - W/O Mgmt Actions - Intangible assets",null,null,null,null,null,null,null,null,{"$f":"'Schedule IID (EBS)'!R54","v":0}]
["Sch IID","Segregated Acc",null,"Liabilities - After - W/O Mgmt Actions - Pension Benefit Surplus",null,null,null,null,null,null,null,null,{"$f":"'Schedule IID (EBS)'!R55","v":0}]
["Sch IID","Segregated Acc",null,"Liabilities - After - W/O Mgmt Actions - Equity Derivatives on Type 2 Equities",null,null,null,null,null,null,null,null,{"$f":"'Schedule IID (EBS)'!R56","v":0}]
["Sch IID","Segregated Acc",null,"Liabilities - After - W/O Mgmt Actions - Infrastructure",null,null,null,null,null,null,null,null,{"$f":"'Schedule IID (EBS)'!R57","v":0}]
["Sch IID","Segregated Acc",null,"Liabilities - After - W/O Mgmt Actions - Derivatives on Infrastructure",null,null,null,null,null,null,null,null,{"$f":"'Schedule IID (EBS)'!R58","v":0}]
["Sch IID","Segregated Acc",null,"Liabilities - After - W/O Mgmt Actions - Equity Real Estate 1",null,null,null,null,null,null,null,null,{"$f":"'Schedule IID (EBS)'!R59","v":0}]
["Sch IID","Segregated Acc",null,"Liabilities - After - W/O Mgmt Actions - Equity Real Estate 2",null,null,null,null,null,null,null,null,{"$f":"'Schedule IID (EBS)'!R60","v":0}]
["Sch IID","Segregated Acc",null,"Liabilities - After - With Mgmt Actions - Strategic Holdings - Listed",null,null,null,null,null,null,null,null,{"$f":"'Schedule IID (EBS)'!T39","v":0}]
["Sch IID","Segregated Acc",null,"Liabilities - After - With Mgmt Actions - Duration Based",null,null,null,null,null,null,null,null,{"$f":"'Schedule IID (EBS)'!T40","v":0}]
["Sch IID","Segregated Acc",null,"Liabilities - After - With Mgmt Actions - Listed Equity Securities in Developed Markets",null,null,null,null,null,null,null,null,{"$f":"'Schedule IID (EBS)'!T41","v":0}]
["Sch IID","Segregated Acc",null,"Liabilities - After - With Mgmt Actions - Preferred Stocks, BSCR Rating 1",null,null,null,null,null,null,null,null,{"$f":"'Schedule IID (EBS)'!T42","v":0}]
["Sch IID","Segregated Acc",null,"Liabilities - After - With Mgmt Actions - Preferred Stocks, BSCR Rating 2",null,null,null,null,null,null,null,null,{"$f":"'Schedule IID (EBS)'!T43","v":0}]
["Sch IID","Segregated Acc",null,"Liabilities - After - With Mgmt Actions - Preferred Stocks, BSCR Rating 3",null,null,null,null,null,null,null,null,{"$f":"'Schedule IID (EBS)'!T44","v":0}]
["Sch IID","Segregated Acc",null,"Liabilities - After - With Mgmt Actions - Preferred Stocks, BSCR Rating 4",null,null,null,null,null,null,null,null,{"$f":"'Schedule IID (EBS)'!T45","v":0}]
["Sch IID","Segregated Acc",null,"Liabilities - After - With Mgmt Actions - Preferred Stocks, BSCR Rating 5",null,null,null,null,null,null,null,null,{"$f":"'Schedule IID (EBS)'!T46","v":0}]
["Sch IID","Segregated Acc",null,"Liabilities - After - With Mgmt Actions - Preferred Stocks, BSCR Rating 6",null,null,null,null,null,null,null,null,{"$f":"'Schedule IID (EBS)'!T47","v":0}]
["Sch IID","Segregated Acc",null,"Liabilities - After - With Mgmt Actions - Preferred Stocks, BSCR Rating 7",null,null,null,null,null,null,null,null,{"$f":"'Schedule IID (EBS)'!T48","v":0}]
["Sch IID","Segregated Acc",null,"Liabilities - After - With Mgmt Actions - Preferred Stocks, BSCR Rating 8",null,null,null,null,null,null,null,null,{"$f":"'Schedule IID (EBS)'!T49","v":0}]
["Sch IID","Segregated Acc",null,"Liabilities - After - With Mgmt Actions - Equity Derivatives on Type 1 Equities",null,null,null,null,null,null,null,null,{"$f":"'Schedule IID (EBS)'!T50","v":0}]
["Sch IID","Segregated Acc",null,"Liabilities - After - With Mgmt Actions - Strategic Holdings - Unlisted",null,null,null,null,null,null,null,null,{"$f":"'Schedule IID (EBS)'!T51","v":0}]
["Sch IID","Segregated Acc",null,"Liabilities - After - With Mgmt Actions - Other Equities",null,null,null,null,null,null,null,null,{"$f":"'Schedule IID (EBS)'!T52","v":0}]
["Sch IID","Segregated Acc",null,"Liabilities - After - With Mgmt Actions - Letters of Credit",null,null,null,null,null,null,null,null,{"$f":"'Schedule IID (EBS)'!T53","v":0}]
["Sch IID","Segregated Acc",null,"Liabilities - After - With Mgmt Actions - Intangible assets",null,null,null,null,null,null,null,null,{"$f":"'Schedule IID (EBS)'!T54","v":0}]
["Sch IID","Segregated Acc",null,"Liabilities - After - With Mgmt Actions - Pension Benefit Surplus",null,null,null,null,null,null,null,null,{"$f":"'Schedule IID (EBS)'!T55","v":0}]
["Sch IID","Segregated Acc",null,"Liabilities - After - With Mgmt Actions - Equity Derivatives on Type 2 Equities",null,null,null,null,null,null,null,null,{"$f":"'Schedule IID (EBS)'!T56","v":0}]
["Sch IID","Segregated Acc",null,"Liabilities - After - With Mgmt Actions - Infrastructure",null,null,null,null,null,null,null,null,{"$f":"'Schedule IID (EBS)'!T57","v":0}]
["Sch IID","Segregated Acc",null,"Liabilities - After - With Mgmt Actions - Derivatives on Infrastructure",null,null,null,null,null,null,null,null,{"$f":"'Schedule IID (EBS)'!T58","v":0}]
["Sch IID","Segregated Acc",null,"Liabilities - After - With Mgmt Actions - Equity Real Estate 1",null,null,null,null,null,null,null,null,{"$f":"'Schedule IID (EBS)'!T59","v":0}]
["Sch IID","Segregated Acc",null,"Liabilities - After - With Mgmt Actions - Equity Real Estate 2",null,null,null,null,null,null,null,null,{"$f":"'Schedule IID (EBS)'!T60","v":0}]
["Sch IID","Segregated Acc",null,"Credit Derivatives - Up - Before - Long-Rating 0",null,null,null,null,null,null,null,null,{"$f":"'Schedule IID (EBS)'!D68","v":0}]
["Sch IID","Segregated Acc",null,"Credit Derivatives - Up - Before - Long-Rating 1",null,null,null,null,null,null,null,null,{"$f":"'Schedule IID (EBS)'!D69","v":0}]
["Sch IID","Segregated Acc",null,"Credit Derivatives - Up - Before - Long-Rating 2",null,null,null,null,null,null,null,null,{"$f":"'Schedule IID (EBS)'!D70","v":0}]
["Sch IID","Segregated Acc",null,"Credit Derivatives - Up - Before - Long-Rating 3",null,null,null,null,null,null,null,null,{"$f":"'Schedule IID (EBS)'!D71","v":0}]
["Sch IID","Segregated Acc",null,"Credit Derivatives - Up - Before - Long-Rating 4",null,null,null,null,null,null,null,null,{"$f":"'Schedule IID (EBS)'!D72","v":0}]
["Sch IID","Segregated Acc",null,"Credit Derivatives - Up - Before - Long-Rating 5",null,null,null,null,null,null,null,null,{"$f":"'Schedule IID (EBS)'!D73","v":0}]
["Sch IID","Segregated Acc",null,"Credit Derivatives - Up - Before - Long-Rating 6",null,null,null,null,null,null,null,null,{"$f":"'Schedule IID (EBS)'!D74","v":0}]
["Sch IID","Segregated Acc",null,"Credit Derivatives - Up - Before - Long-Rating 7",null,null,null,null,null,null,null,null,{"$f":"'Schedule IID (EBS)'!D75","v":0}]
["Sch IID","Segregated Acc",null,"Credit Derivatives - Up - Before - Long-Rating 8",null,null,null,null,null,null,null,null,{"$f":"'Schedule IID (EBS)'!D76","v":0}]
["Sch IID","Segregated Acc",null,"Credit Derivatives - Up - After - Long- Rating 0",null,null,null,null,null,null,null,null,{"$f":"'Schedule IID (EBS)'!F68","v":0}]
["Sch IID","Segregated Acc",null,"Credit Derivatives - Up - After - Long- Rating 1",null,null,null,null,null,null,null,null,{"$f":"'Schedule IID (EBS)'!F69","v":0}]
["Sch IID","Segregated Acc",null,"Credit Derivatives - Up - After - Long- Rating 2",null,null,null,null,null,null,null,null,{"$f":"'Schedule IID (EBS)'!F70","v":0}]
["Sch IID","Segregated Acc",null,"Credit Derivatives - Up - After - Long- Rating 3",null,null,null,null,null,null,null,null,{"$f":"'Schedule IID (EBS)'!F71","v":0}]
["Sch IID","Segregated Acc",null,"Credit Derivatives - Up - After - Long- Rating 4",null,null,null,null,null,null,null,null,{"$f":"'Schedule IID (EBS)'!F72","v":0}]
["Sch IID","Segregated Acc",null,"Credit Derivatives - Up - After - Long- Rating 5",null,null,null,null,null,null,null,null,{"$f":"'Schedule IID (EBS)'!F73","v":0}]
["Sch IID","Segregated Acc",null,"Credit Derivatives - Up - After - Long- Rating 6",null,null,null,null,null,null,null,null,{"$f":"'Schedule IID (EBS)'!F74","v":0}]
["Sch IID","Segregated Acc",null,"Credit Derivatives - Up - After - Long- Rating 7",null,null,null,null,null,null,null,null,{"$f":"'Schedule IID (EBS)'!F75","v":0}]
["Sch IID","Segregated Acc",null,"Credit Derivatives - Up - After - Long- Rating 8",null,null,null,null,null,null,null,null,{"$f":"'Schedule IID (EBS)'!F76","v":0}]
["Sch IID","Segregated Acc",null,"Credit Derivatives - Up - Before - Short- Rating 0",null,null,null,null,null,null,null,null,{"$f":"'Schedule IID (EBS)'!H68","v":0}]
["Sch IID","Segregated Acc",null,"Credit Derivatives - Up - Before - Short- Rating 1",null,null,null,null,null,null,null,null,{"$f":"'Schedule IID (EBS)'!H69","v":0}]
["Sch IID","Segregated Acc",null,"Credit Derivatives - Up - Before - Short- Rating 2",null,null,null,null,null,null,null,null,{"$f":"'Schedule IID (EBS)'!H70","v":0}]
["Sch IID","Segregated Acc",null,"Credit Derivatives - Up - Before - Short- Rating 3",null,null,null,null,null,null,null,null,{"$f":"'Schedule IID (EBS)'!H71","v":0}]
["Sch IID","Segregated Acc",null,"Credit Derivatives - Up - Before - Short- Rating 4",null,null,null,null,null,null,null,null,{"$f":"'Schedule IID (EBS)'!H72","v":0}]
["Sch IID","Segregated Acc",null,"Credit Derivatives - Up - Before - Short- Rating 5",null,null,null,null,null,null,null,null,{"$f":"'Schedule IID (EBS)'!H73","v":0}]
["Sch IID","Segregated Acc",null,"Credit Derivatives - Up - Before - Short- Rating 6",null,null,null,null,null,null,null,null,{"$f":"'Schedule IID (EBS)'!H74","v":0}]
["Sch IID","Segregated Acc",null,"Credit Derivatives - Up - Before - Short- Rating 7",null,null,null,null,null,null,null,null,{"$f":"'Schedule IID (EBS)'!H75","v":0}]
["Sch IID","Segregated Acc",null,"Credit Derivatives - Up - Before - Short- Rating 8",null,null,null,null,null,null,null,null,{"$f":"'Schedule IID (EBS)'!H76","v":0}]
["Sch IID","Segregated Acc",null,"Credit Derivatives - Up - After - Short- Rating 0",null,null,null,null,null,null,null,null,{"$f":"'Schedule IID (EBS)'!J68","v":0}]
["Sch IID","Segregated Acc",null,"Credit Derivatives - Up - After - Short- Rating 1",null,null,null,null,null,null,null,null,{"$f":"'Schedule IID (EBS)'!J69","v":0}]
["Sch IID","Segregated Acc",null,"Credit Derivatives - Up - After - Short- Rating 2",null,null,null,null,null,null,null,null,{"$f":"'Schedule IID (EBS)'!J70","v":0}]
["Sch IID","Segregated Acc",null,"Credit Derivatives - Up - After - Short- Rating 3",null,null,null,null,null,null,null,null,{"$f":"'Schedule IID (EBS)'!J71","v":0}]
["Sch IID","Segregated Acc",null,"Credit Derivatives - Up - After - Short- Rating 4",null,null,null,null,null,null,null,null,{"$f":"'Schedule IID (EBS)'!J72","v":0}]
["Sch IID","Segregated Acc",null,"Credit Derivatives - Up - After - Short- Rating 5",null,null,null,null,null,null,null,null,{"$f":"'Schedule IID (EBS)'!J73","v":0}]
["Sch IID","Segregated Acc",null,"Credit Derivatives - Up - After - Short- Rating 6",null,null,null,null,null,null,null,null,{"$f":"'Schedule IID (EBS)'!J74","v":0}]
["Sch IID","Segregated Acc",null,"Credit Derivatives - Up - After - Short- Rating 7",null,null,null,null,null,null,null,null,{"$f":"'Schedule IID (EBS)'!J75","v":0}]
["Sch IID","Segregated Acc",null,"Credit Derivatives - Up - After - Short- Rating 8",null,null,null,null,null,null,null,null,{"$f":"'Schedule IID (EBS)'!J76","v":0}]
["Sch IID","Segregated Acc",null,"Credit Derivatives - Down - Before - Long-Rating 0",null,null,null,null,null,null,null,null,{"$f":"'Schedule IID (EBS)'!N68","v":0}]
["Sch IID","Segregated Acc",null,"Credit Derivatives - Down - Before - Long-Rating 1",null,null,null,null,null,null,null,null,{"$f":"'Schedule IID (EBS)'!N69","v":0}]
["Sch IID","Segregated Acc",null,"Credit Derivatives - Down - Before - Long-Rating 2",null,null,null,null,null,null,null,null,{"$f":"'Schedule IID (EBS)'!N70","v":0}]
["Sch IID","Segregated Acc",null,"Credit Derivatives - Down - Before - Long-Rating 3",null,null,null,null,null,null,null,null,{"$f":"'Schedule IID (EBS)'!N71","v":0}]
["Sch IID","Segregated Acc",null,"Credit Derivatives - Down - Before - Long-Rating 4",null,null,null,null,null,null,null,null,{"$f":"'Schedule IID (EBS)'!N72","v":0}]
["Sch IID","Segregated Acc",null,"Credit Derivatives - Down - Before - Long-Rating 5",null,null,null,null,null,null,null,null,{"$f":"'Schedule IID (EBS)'!N73","v":0}]
["Sch IID","Segregated Acc",null,"Credit Derivatives - Down - Before - Long-Rating 6",null,null,null,null,null,null,null,null,{"$f":"'Schedule IID (EBS)'!N74","v":0}]
["Sch IID","Segregated Acc",null,"Credit Derivatives - Down - Before - Long-Rating 7",null,null,null,null,null,null,null,null,{"$f":"'Schedule IID (EBS)'!N75","v":0}]
["Sch IID","Segregated Acc",null,"Credit Derivatives - Down - Before - Long-Rating 8",null,null,null,null,null,null,null,null,{"$f":"'Schedule IID (EBS)'!N76","v":0}]
["Sch IID","Segregated Acc",null,"Credit Derivatives - Down - After - Long- Rating 0",null,null,null,null,null,null,null,null,{"$f":"'Schedule IID (EBS)'!P68","v":0}]
["Sch IID","Segregated Acc",null,"Credit Derivatives - Down - After - Long- Rating 1",null,null,null,null,null,null,null,null,{"$f":"'Schedule IID (EBS)'!P69","v":0}]
["Sch IID","Segregated Acc",null,"Credit Derivatives - Down - After - Long- Rating 2",null,null,null,null,null,null,null,null,{"$f":"'Schedule IID (EBS)'!P70","v":0}]
["Sch IID","Segregated Acc",null,"Credit Derivatives - Down - After - Long- Rating 3",null,null,null,null,null,null,null,null,{"$f":"'Schedule IID (EBS)'!P71","v":0}]
["Sch IID","Segregated Acc",null,"Credit Derivatives - Down - After - Long- Rating 4",null,null,null,null,null,null,null,null,{"$f":"'Schedule IID (EBS)'!P72","v":0}]
["Sch IID","Segregated Acc",null,"Credit Derivatives - Down - After - Long- Rating 5",null,null,null,null,null,null,null,null,{"$f":"'Schedule IID (EBS)'!P73","v":0}]
["Sch IID","Segregated Acc",null,"Credit Derivatives - Down - After - Long- Rating 6",null,null,null,null,null,null,null,null,{"$f":"'Schedule IID (EBS)'!P74","v":0}]
["Sch IID","Segregated Acc",null,"Credit Derivatives - Down - After - Long- Rating 7",null,null,null,null,null,null,null,null,{"$f":"'Schedule IID (EBS)'!P75","v":0}]
["Sch IID","Segregated Acc",null,"Credit Derivatives - Down - After - Long- Rating 8",null,null,null,null,null,null,null,null,{"$f":"'Schedule IID (EBS)'!P76","v":0}]
["Sch IID","Segregated Acc",null,"Credit Derivatives - Down - Before - Short- Rating 0",null,null,null,null,null,null,null,null,{"$f":"'Schedule IID (EBS)'!R68","v":0}]
["Sch IID","Segregated Acc",null,"Credit Derivatives - Down - Before - Short- Rating 1",null,null,null,null,null,null,null,null,{"$f":"'Schedule IID (EBS)'!R69","v":0}]
["Sch IID","Segregated Acc",null,"Credit Derivatives - Down - Before - Short- Rating 2",null,null,null,null,null,null,null,null,{"$f":"'Schedule IID (EBS)'!R70","v":0}]
["Sch IID","Segregated Acc",null,"Credit Derivatives - Down - Before - Short- Rating 3",null,null,null,null,null,null,null,null,{"$f":"'Schedule IID (EBS)'!R71","v":0}]
["Sch IID","Segregated Acc",null,"Credit Derivatives - Down - Before - Short- Rating 4",null,null,null,null,null,null,null,null,{"$f":"'Schedule IID (EBS)'!R72","v":0}]
["Sch IID","Segregated Acc",null,"Credit Derivatives - Down - Before - Short- Rating 5",null,null,null,null,null,null,null,null,{"$f":"'Schedule IID (EBS)'!R73","v":0}]
["Sch IID","Segregated Acc",null,"Credit Derivatives - Down - Before - Short- Rating 6",null,null,null,null,null,null,null,null,{"$f":"'Schedule IID (EBS)'!R74","v":0}]
["Sch IID","Segregated Acc",null,"Credit Derivatives - Down - Before - Short- Rating 7",null,null,null,null,null,null,null,null,{"$f":"'Schedule IID (EBS)'!R75","v":0}]
["Sch IID","Segregated Acc",null,"Credit Derivatives - Down - Before - Short- Rating 8",null,null,null,null,null,null,null,null,{"$f":"'Schedule IID (EBS)'!R76","v":0}]
["Sch IID","Segregated Acc",null,"Credit Derivatives - Down - After - Short- Rating 0",null,null,null,null,null,null,null,null,{"$f":"'Schedule IID (EBS)'!T68","v":0}]
["Sch IID","Segregated Acc",null,"Credit Derivatives - Down - After - Short- Rating 1",null,null,null,null,null,null,null,null,{"$f":"'Schedule IID (EBS)'!T69","v":0}]
["Sch IID","Segregated Acc",null,"Credit Derivatives - Down - After - Short- Rating 2",null,null,null,null,null,null,null,null,{"$f":"'Schedule IID (EBS)'!T70","v":0}]
["Sch IID","Segregated Acc",null,"Credit Derivatives - Down - After - Short- Rating 3",null,null,null,null,null,null,null,null,{"$f":"'Schedule IID (EBS)'!T71","v":0}]
["Sch IID","Segregated Acc",null,"Credit Derivatives - Down - After - Short- Rating 4",null,null,null,null,null,null,null,null,{"$f":"'Schedule IID (EBS)'!T72","v":0}]
["Sch IID","Segregated Acc",null,"Credit Derivatives - Down - After - Short- Rating 5",null,null,null,null,null,null,null,null,{"$f":"'Schedule IID (EBS)'!T73","v":0}]
["Sch IID","Segregated Acc",null,"Credit Derivatives - Down - After - Short- Rating 6",null,null,null,null,null,null,null,null,{"$f":"'Schedule IID (EBS)'!T74","v":0}]
["Sch IID","Segregated Acc",null,"Credit Derivatives - Down - After - Short- Rating 7",null,null,null,null,null,null,null,null,{"$f":"'Schedule IID (EBS)'!T75","v":0}]
["Sch IID","Segregated Acc",null,"Credit Derivatives - Down - After - Short- Rating 8",null,null,null,null,null,null,null,null,{"$f":"'Schedule IID (EBS)'!T76","v":0}]
["Sch IID","Segregated Acc",null,"Counterparty Default Risk - MV of Derivatives - MV Positive - Rating 0",null,null,null,null,null,null,null,null,{"$f":"'Schedule IID (EBS)'!D84","v":0}]
["Sch IID","Segregated Acc",null,"Counterparty Default Risk - MV of Derivatives - MV Positive - Rating 1",null,null,null,null,null,null,null,null,{"$f":"'Schedule IID (EBS)'!D85","v":0}]
["Sch IID","Segregated Acc",null,"Counterparty Default Risk - MV of Derivatives - MV Positive - Rating 2",null,null,null,null,null,null,null,null,{"$f":"'Schedule IID (EBS)'!D86","v":0}]
["Sch IID","Segregated Acc",null,"Counterparty Default Risk - MV of Derivatives - MV Positive - Rating 3",null,null,null,null,null,null,null,null,{"$f":"'Schedule IID (EBS)'!D87","v":0}]
["Sch IID","Segregated Acc",null,"Counterparty Default Risk - MV of Derivatives - MV Positive - Rating 4",null,null,null,null,null,null,null,null,{"$f":"'Schedule IID (EBS)'!D88","v":0}]
["Sch IID","Segregated Acc",null,"Counterparty Default Risk - MV of Derivatives - MV Positive - Rating 5",null,null,null,null,null,null,null,null,{"$f":"'Schedule IID (EBS)'!D89","v":0}]
["Sch IID","Segregated Acc",null,"Counterparty Default Risk - MV of Derivatives - MV Positive - Rating 6",null,null,null,null,null,null,null,null,{"$f":"'Schedule IID (EBS)'!D90","v":0}]
["Sch IID","Segregated Acc",null,"Counterparty Default Risk - MV of Derivatives - MV Positive - Rating 7",null,null,null,null,null,null,null,null,{"$f":"'Schedule IID (EBS)'!D91","v":0}]
["Sch IID","Segregated Acc",null,"Counterparty Default Risk - MV of Derivatives - MV Positive - Rating 8",null,null,null,null,null,null,null,null,{"$f":"'Schedule IID (EBS)'!D92","v":0}]
["Sch IID","Segregated Acc",null,"Counterparty Default Risk - MV of Derivatives - MV Negative - Rating 0",null,null,null,null,null,null,null,null,{"$f":"'Schedule IID (EBS)'!F84","v":0}]
["Sch IID","Segregated Acc",null,"Counterparty Default Risk - MV of Derivatives - MV Negative - Rating 1",null,null,null,null,null,null,null,null,{"$f":"'Schedule IID (EBS)'!F85","v":0}]
["Sch IID","Segregated Acc",null,"Counterparty Default Risk - MV of Derivatives - MV Negative - Rating 2",null,null,null,null,null,null,null,null,{"$f":"'Schedule IID (EBS)'!F86","v":0}]
["Sch IID","Segregated Acc",null,"Counterparty Default Risk - MV of Derivatives - MV Negative - Rating 3",null,null,null,null,null,null,null,null,{"$f":"'Schedule IID (EBS)'!F87","v":0}]
["Sch IID","Segregated Acc",null,"Counterparty Default Risk - MV of Derivatives - MV Negative - Rating 4",null,null,null,null,null,null,null,null,{"$f":"'Schedule IID (EBS)'!F88","v":0}]
["Sch IID","Segregated Acc",null,"Counterparty Default Risk - MV of Derivatives - MV Negative - Rating 5",null,null,null,null,null,null,null,null,{"$f":"'Schedule IID (EBS)'!F89","v":0}]
["Sch IID","Segregated Acc",null,"Counterparty Default Risk - MV of Derivatives - MV Negative - Rating 6",null,null,null,null,null,null,null,null,{"$f":"'Schedule IID (EBS)'!F90","v":0}]
["Sch IID","Segregated Acc",null,"Counterparty Default Risk - MV of Derivatives - MV Negative - Rating 7",null,null,null,null,null,null,null,null,{"$f":"'Schedule IID (EBS)'!F91","v":0}]
["Sch IID","Segregated Acc",null,"Counterparty Default Risk - MV of Derivatives - MV Negative - Rating 8",null,null,null,null,null,null,null,null,{"$f":"'Schedule IID (EBS)'!F92","v":0}]
["Sch IID","Segregated Acc",null,"Counterparty Default Risk - MV of Collateral - Rating 0",null,null,null,null,null,null,null,null,{"$f":"'Schedule IID (EBS)'!H84","v":0}]
["Sch IID","Segregated Acc",null,"Counterparty Default Risk - MV of Collateral - Rating 1",null,null,null,null,null,null,null,null,{"$f":"'Schedule IID (EBS)'!H85","v":0}]
["Sch IID","Segregated Acc",null,"Counterparty Default Risk - MV of Collateral - Rating 2",null,null,null,null,null,null,null,null,{"$f":"'Schedule IID (EBS)'!H86","v":0}]
["Sch IID","Segregated Acc",null,"Counterparty Default Risk - MV of Collateral - Rating 3",null,null,null,null,null,null,null,null,{"$f":"'Schedule IID (EBS)'!H87","v":0}]
["Sch IID","Segregated Acc",null,"Counterparty Default Risk - MV of Collateral - Rating 4",null,null,null,null,null,null,null,null,{"$f":"'Schedule IID (EBS)'!H88","v":0}]
["Sch IID","Segregated Acc",null,"Counterparty Default Risk - MV of Collateral - Rating 5",null,null,null,null,null,null,null,null,{"$f":"'Schedule IID (EBS)'!H89","v":0}]
["Sch IID","Segregated Acc",null,"Counterparty Default Risk - MV of Collateral - Rating 6",null,null,null,null,null,null,null,null,{"$f":"'Schedule IID (EBS)'!H90","v":0}]
["Sch IID","Segregated Acc",null,"Counterparty Default Risk - MV of Collateral - Rating 7",null,null,null,null,null,null,null,null,{"$f":"'Schedule IID (EBS)'!H91","v":0}]
["Sch IID","Segregated Acc",null,"Counterparty Default Risk - MV of Collateral - Rating 8",null,null,null,null,null,null,null,null,{"$f":"'Schedule IID (EBS)'!H92","v":0}]
["Sch IID","Segregated Acc",null,"Cash and Cash Equivalents",null,null,null,null,null,null,null,null,{"$f":"'Schedule IID (EBS)'!D95","v":0}]
[]
["Sch IIE","Deposits",null,"Corp. Bonds - BSCR Rate 0",null,null,null,null,null,null,null,null,{"$f":"'Schedule IIE (EBS)'!D13","v":0},null,{"$f":"'Schedule IIE (EBS)'!F13","v":0}]
["Sch IIE","Deposits",null,"Corp. Bonds - BSCR Rate 1",null,null,null,null,null,null,null,null,{"$f":"'Schedule IIE (EBS)'!D14","v":0},null,{"$f":"'Schedule IIE (EBS)'!F14","v":0}]
["Sch IIE","Deposits",null,"Corp. Bonds - BSCR Rate 2",null,null,null,null,null,null,null,null,{"$f":"'Schedule IIE (EBS)'!D15","v":0},null,{"$f":"'Schedule IIE (EBS)'!F15","v":0}]
["Sch IIE","Deposits",null,"Corp. Bonds - BSCR Rate 3",null,null,null,null,null,null,null,null,{"$f":"'Schedule IIE (EBS)'!D16","v":0},null,{"$f":"'Schedule IIE (EBS)'!F16","v":0}]
["Sch IIE","Deposits",null,"Corp. Bonds - BSCR Rate 4",null,null,null,null,null,null,null,null,{"$f":"'Schedule IIE (EBS)'!D17","v":0},null,{"$f":"'Schedule IIE (EBS)'!F17","v":0}]
["Sch IIE","Deposits",null,"Corp. Bonds - BSCR Rate 5",null,null,null,null,null,null,null,null,{"$f":"'Schedule IIE (EBS)'!D18","v":0},null,{"$f":"'Schedule IIE (EBS)'!F18","v":0}]
["Sch IIE","Deposits",null,"Corp. Bonds - BSCR Rate 6",null,null,null,null,null,null,null,null,{"$f":"'Schedule IIE (EBS)'!D19","v":0},null,{"$f":"'Schedule IIE (EBS)'!F19","v":0}]
["Sch IIE","Deposits",null,"Corp. Bonds - BSCR Rate 7",null,null,null,null,null,null,null,null,{"$f":"'Schedule IIE (EBS)'!D20","v":0},null,{"$f":"'Schedule IIE (EBS)'!F20","v":0}]
["Sch IIE","Deposits",null,"Corp. Bonds - BSCR Rate 8",null,null,null,null,null,null,null,null,{"$f":"'Schedule IIE (EBS)'!D21","v":0},null,{"$f":"'Schedule IIE (EBS)'!F21","v":0}]
["Sch IIE","Deposits",null,"Residential MBS - BSCR Rate 1",null,null,null,null,null,null,null,null,{"$f":"'Schedule IIE (EBS)'!H14","v":0},null,{"$f":"'Schedule IIE (EBS)'!J14","v":0}]
["Sch IIE","Deposits",null,"Residential MBS - BSCR Rate 2",null,null,null,null,null,null,null,null,{"$f":"'Schedule IIE (EBS)'!H15","v":0},null,{"$f":"'Schedule IIE (EBS)'!J15","v":0}]
["Sch IIE","Deposits",null,"Residential MBS - BSCR Rate 3",null,null,null,null,null,null,null,null,{"$f":"'Schedule IIE (EBS)'!H16","v":0},null,{"$f":"'Schedule IIE (EBS)'!J16","v":0}]
["Sch IIE","Deposits",null,"Residential MBS - BSCR Rate 4",null,null,null,null,null,null,null,null,{"$f":"'Schedule IIE (EBS)'!H17","v":0},null,{"$f":"'Schedule IIE (EBS)'!J17","v":0}]
["Sch IIE","Deposits",null,"Residential MBS - BSCR Rate 5",null,null,null,null,null,null,null,null,{"$f":"'Schedule IIE (EBS)'!H18","v":0},null,{"$f":"'Schedule IIE (EBS)'!J18","v":0}]
["Sch IIE","Deposits",null,"Residential MBS - BSCR Rate 6",null,null,null,null,null,null,null,null,{"$f":"'Schedule IIE (EBS)'!H19","v":0},null,{"$f":"'Schedule IIE (EBS)'!J19","v":0}]
["Sch IIE","Deposits",null,"Residential MBS - BSCR Rate 7",null,null,null,null,null,null,null,null,{"$f":"'Schedule IIE (EBS)'!H20","v":0},null,{"$f":"'Schedule IIE (EBS)'!J20","v":0}]
["Sch IIE","Deposits",null,"Residential MBS - BSCR Rate 8",null,null,null,null,null,null,null,null,{"$f":"'Schedule IIE (EBS)'!H21","v":0},null,{"$f":"'Schedule IIE (EBS)'!J21","v":0}]
["Sch IIE","Deposits",null,"Commercial MBS - BSCR Rate 1",null,null,null,null,null,null,null,null,{"$f":"'Schedule IIE (EBS)'!L14","v":0},null,{"$f":"'Schedule IIE (EBS)'!N14","v":0}]
["Sch IIE","Deposits",null,"Commercial MBS - BSCR Rate 2",null,null,null,null,null,null,null,null,{"$f":"'Schedule IIE (EBS)'!L15","v":0},null,{"$f":"'Schedule IIE (EBS)'!N15","v":0}]
["Sch IIE","Deposits",null,"Commercial MBS - BSCR Rate 3",null,null,null,null,null,null,null,null,{"$f":"'Schedule IIE (EBS)'!L16","v":0},null,{"$f":"'Schedule IIE (EBS)'!N16","v":0}]
["Sch IIE","Deposits",null,"Commercial MBS - BSCR Rate 4",null,null,null,null,null,null,null,null,{"$f":"'Schedule IIE (EBS)'!L17","v":0},null,{"$f":"'Schedule IIE (EBS)'!N17","v":0}]
["Sch IIE","Deposits",null,"Commercial MBS - BSCR Rate 5",null,null,null,null,null,null,null,null,{"$f":"'Schedule IIE (EBS)'!L18","v":0},null,{"$f":"'Schedule IIE (EBS)'!N18","v":0}]
["Sch IIE","Deposits",null,"Commercial MBS - BSCR Rate 6",null,null,null,null,null,null,null,null,{"$f":"'Schedule IIE (EBS)'!L19","v":0},null,{"$f":"'Schedule IIE (EBS)'!N19","v":0}]
["Sch IIE","Deposits",null,"Commercial MBS - BSCR Rate 7",null,null,null,null,null,null,null,null,{"$f":"'Schedule IIE (EBS)'!L20","v":0},null,{"$f":"'Schedule IIE (EBS)'!N20","v":0}]
["Sch IIE","Deposits",null,"Commercial MBS - BSCR Rate 8",null,null,null,null,null,null,null,null,{"$f":"'Schedule IIE (EBS)'!L21","v":0},null,{"$f":"'Schedule IIE (EBS)'!N21","v":0}]
["Sch IIE","Deposits",null,"Bonds Mutual Fund - BSCR Rate 0",null,null,null,null,null,null,null,null,{"$f":"'Schedule IIE (EBS)'!P13","v":0},null,{"$f":"'Schedule IIE (EBS)'!R13","v":0}]
["Sch IIE","Deposits",null,"Bonds Mutual Fund - BSCR Rate 1",null,null,null,null,null,null,null,null,{"$f":"'Schedule IIE (EBS)'!P14","v":0},null,{"$f":"'Schedule IIE (EBS)'!R14","v":0}]
["Sch IIE","Deposits",null,"Bonds Mutual Fund - BSCR Rate 2",null,null,null,null,null,null,null,null,{"$f":"'Schedule IIE (EBS)'!P15","v":0},null,{"$f":"'Schedule IIE (EBS)'!R15","v":0}]
["Sch IIE","Deposits",null,"Bonds Mutual Fund - BSCR Rate 3",null,null,null,null,null,null,null,null,{"$f":"'Schedule IIE (EBS)'!P16","v":0},null,{"$f":"'Schedule IIE (EBS)'!R16","v":0}]
["Sch IIE","Deposits",null,"Bonds Mutual Fund - BSCR Rate 4",null,null,null,null,null,null,null,null,{"$f":"'Schedule IIE (EBS)'!P17","v":0},null,{"$f":"'Schedule IIE (EBS)'!R17","v":0}]
["Sch IIE","Deposits",null,"Bonds Mutual Fund - BSCR Rate 5",null,null,null,null,null,null,null,null,{"$f":"'Schedule IIE (EBS)'!P18","v":0},null,{"$f":"'Schedule IIE (EBS)'!R18","v":0}]
["Sch IIE","Deposits",null,"Bonds Mutual Fund - BSCR Rate 6",null,null,null,null,null,null,null,null,{"$f":"'Schedule IIE (EBS)'!P19","v":0},null,{"$f":"'Schedule IIE (EBS)'!R19","v":0}]
["Sch IIE","Deposits",null,"Bonds Mutual Fund - BSCR Rate 7",null,null,null,null,null,null,null,null,{"$f":"'Schedule IIE (EBS)'!P20","v":0},null,{"$f":"'Schedule IIE (EBS)'!R20","v":0}]
["Sch IIE","Deposits",null,"Bonds Mutual Fund - BSCR Rate 8",null,null,null,null,null,null,null,null,{"$f":"'Schedule IIE (EBS)'!P21","v":0},null,{"$f":"'Schedule IIE (EBS)'!R21","v":0}]
["Sch IIE","Deposits",null,"Mortgage Loans - Insured",null,null,null,null,null,null,null,null,{"$f":"'Schedule IIE (EBS)'!T22","v":0},null,{"$f":"'Schedule IIE (EBS)'!V22","v":0}]
["Sch IIE","Deposits",null,"Mortgage Loans - Other Commercial",null,null,null,null,null,null,null,null,{"$f":"'Schedule IIE (EBS)'!T23","v":0},null,{"$f":"'Schedule IIE (EBS)'!V23","v":0}]
["Sch IIE","Deposits",null,"Mortgage Loans - Other Residential",null,null,null,null,null,null,null,null,{"$f":"'Schedule IIE (EBS)'!T24","v":0},null,{"$f":"'Schedule IIE (EBS)'!V24","v":0}]
["Sch IIE","Deposits",null,"Mortgage Loans - Not Good Stand.",null,null,null,null,null,null,null,null,{"$f":"'Schedule IIE (EBS)'!T25","v":0},null,{"$f":"'Schedule IIE (EBS)'!V25","v":0}]
["Sch IIE","Deposits",null,"Long Positions - Before - Strategic Holdings - Listed",null,null,null,null,null,null,null,null,{"$f":"'Schedule IIE (EBS)'!D39","v":0}]
["Sch IIE","Deposits",null,"Long Positions - Before - Duration Based",null,null,null,null,null,null,null,null,{"$f":"'Schedule IIE (EBS)'!D40","v":0}]
["Sch IIE","Deposits",null,"Long Positions - Before - Listed Equity Securities in Developed Markets",null,null,null,null,null,null,null,null,{"$f":"'Schedule IIE (EBS)'!D41","v":0}]
["Sch IIE","Deposits",null,"Long Positions - Before - Preferred Stocks, BSCR Rating 1",null,null,null,null,null,null,null,null,{"$f":"'Schedule IIE (EBS)'!D42","v":0}]
["Sch IIE","Deposits",null,"Long Positions - Before - Preferred Stocks, BSCR Rating 2",null,null,null,null,null,null,null,null,{"$f":"'Schedule IIE (EBS)'!D43","v":0}]
["Sch IIE","Deposits",null,"Long Positions - Before - Preferred Stocks, BSCR Rating 3",null,null,null,null,null,null,null,null,{"$f":"'Schedule IIE (EBS)'!D44","v":0}]
["Sch IIE","Deposits",null,"Long Positions - Before - Preferred Stocks, BSCR Rating 4",null,null,null,null,null,null,null,null,{"$f":"'Schedule IIE (EBS)'!D45","v":0}]
["Sch IIE","Deposits",null,"Long Positions - Before - Preferred Stocks, BSCR Rating 5",null,null,null,null,null,null,null,null,{"$f":"'Schedule IIE (EBS)'!D46","v":0}]
["Sch IIE","Deposits",null,"Long Positions - Before - Preferred Stocks, BSCR Rating 6",null,null,null,null,null,null,null,null,{"$f":"'Schedule IIE (EBS)'!D47","v":0}]
["Sch IIE","Deposits",null,"Long Positions - Before - Preferred Stocks, BSCR Rating 7",null,null,null,null,null,null,null,null,{"$f":"'Schedule IIE (EBS)'!D48","v":0}]
["Sch IIE","Deposits",null,"Long Positions - Before - Preferred Stocks, BSCR Rating 8",null,null,null,null,null,null,null,null,{"$f":"'Schedule IIE (EBS)'!D49","v":0}]
["Sch IIE","Deposits",null,"Long Positions - Before - Equity Derivatives on Type 1 Equities",null,null,null,null,null,null,null,null,{"$f":"'Schedule IIE (EBS)'!D50","v":0}]
["Sch IIE","Deposits",null,"Long Positions - Before - Strategic Holdings - Unlisted",null,null,null,null,null,null,null,null,{"$f":"'Schedule IIE (EBS)'!D51","v":0}]
["Sch IIE","Deposits",null,"Long Positions - Before - Other Equities",null,null,null,null,null,null,null,null,{"$f":"'Schedule IIE (EBS)'!D52","v":0}]
["Sch IIE","Deposits",null,"Long Positions - Before - Letters of Credit",null,null,null,null,null,null,null,null,{"$f":"'Schedule IIE (EBS)'!D53","v":0}]
["Sch IIE","Deposits",null,"Long Positions - Before - Intangible assets",null,null,null,null,null,null,null,null,{"$f":"'Schedule IIE (EBS)'!D54","v":0}]
["Sch IIE","Deposits",null,"Long Positions - Before - Pension Benefit Surplus",null,null,null,null,null,null,null,null,{"$f":"'Schedule IIE (EBS)'!D55","v":0}]
["Sch IIE","Deposits",null,"Long Positions - Before - Equity Derivatives on Type 2 Equities",null,null,null,null,null,null,null,null,{"$f":"'Schedule IIE (EBS)'!D56","v":0}]
["Sch IIE","Deposits",null,"Long Positions - Before - Infrastructure",null,null,null,null,null,null,null,null,{"$f":"'Schedule IIE (EBS)'!D57","v":0}]
["Sch IIE","Deposits",null,"Long Positions - Before - Derivatives on Infrastructure",null,null,null,null,null,null,null,null,{"$f":"'Schedule IIE (EBS)'!D58","v":0}]
["Sch IIE","Deposits",null,"Long Positions - Before - Equity Real Estate 1",null,null,null,null,null,null,null,null,{"$f":"'Schedule IIE (EBS)'!D59","v":0}]
["Sch IIE","Deposits",null,"Long Positions - Before - Equity Real Estate 2",null,null,null,null,null,null,null,null,{"$f":"'Schedule IIE (EBS)'!D60","v":0}]
["Sch IIE","Deposits",null,"Long Positions - After - Strategic Holdings - Listed",null,null,null,null,null,null,null,null,{"$f":"'Schedule IIE (EBS)'!F39","v":0}]
["Sch IIE","Deposits",null,"Long Positions - After - Duration Based",null,null,null,null,null,null,null,null,{"$f":"'Schedule IIE (EBS)'!F40","v":0}]
["Sch IIE","Deposits",null,"Long Positions - After - Listed Equity Securities in Developed Markets",null,null,null,null,null,null,null,null,{"$f":"'Schedule IIE (EBS)'!F41","v":0}]
["Sch IIE","Deposits",null,"Long Positions - After - Preferred Stocks, BSCR Rating 1",null,null,null,null,null,null,null,null,{"$f":"'Schedule IIE (EBS)'!F42","v":0}]
["Sch IIE","Deposits",null,"Long Positions - After - Preferred Stocks, BSCR Rating 2",null,null,null,null,null,null,null,null,{"$f":"'Schedule IIE (EBS)'!F43","v":0}]
["Sch IIE","Deposits",null,"Long Positions - After - Preferred Stocks, BSCR Rating 3",null,null,null,null,null,null,null,null,{"$f":"'Schedule IIE (EBS)'!F44","v":0}]
["Sch IIE","Deposits",null,"Long Positions - After - Preferred Stocks, BSCR Rating 4",null,null,null,null,null,null,null,null,{"$f":"'Schedule IIE (EBS)'!F45","v":0}]
["Sch IIE","Deposits",null,"Long Positions - After - Preferred Stocks, BSCR Rating 5",null,null,null,null,null,null,null,null,{"$f":"'Schedule IIE (EBS)'!F46","v":0}]
["Sch IIE","Deposits",null,"Long Positions - After - Preferred Stocks, BSCR Rating 6",null,null,null,null,null,null,null,null,{"$f":"'Schedule IIE (EBS)'!F47","v":0}]
["Sch IIE","Deposits",null,"Long Positions - After - Preferred Stocks, BSCR Rating 7",null,null,null,null,null,null,null,null,{"$f":"'Schedule IIE (EBS)'!F48","v":0}]
["Sch IIE","Deposits",null,"Long Positions - After - Preferred Stocks, BSCR Rating 8",null,null,null,null,null,null,null,null,{"$f":"'Schedule IIE (EBS)'!F49","v":0}]
["Sch IIE","Deposits",null,"Long Positions - After - Equity Derivatives on Type 1 Equities",null,null,null,null,null,null,null,null,{"$f":"'Schedule IIE (EBS)'!F50","v":0}]
["Sch IIE","Deposits",null,"Long Positions - After - Strategic Holdings - Unlisted",null,null,null,null,null,null,null,null,{"$f":"'Schedule IIE (EBS)'!F51","v":0}]
["Sch IIE","Deposits",null,"Long Positions - After - Other Equities",null,null,null,null,null,null,null,null,{"$f":"'Schedule IIE (EBS)'!F52","v":0}]
["Sch IIE","Deposits",null,"Long Positions - After - Letters of Credit",null,null,null,null,null,null,null,null,{"$f":"'Schedule IIE (EBS)'!F53","v":0}]
["Sch IIE","Deposits",null,"Long Positions - After - Intangible assets",null,null,null,null,null,null,null,null,{"$f":"'Schedule IIE (EBS)'!F54","v":0}]
["Sch IIE","Deposits",null,"Long Positions - After - Pension Benefit Surplus",null,null,null,null,null,null,null,null,{"$f":"'Schedule IIE (EBS)'!F55","v":0}]
["Sch IIE","Deposits",null,"Long Positions - After - Equity Derivatives on Type 2 Equities",null,null,null,null,null,null,null,null,{"$f":"'Schedule IIE (EBS)'!F56","v":0}]
["Sch IIE","Deposits",null,"Long Positions - After - Infrastructure",null,null,null,null,null,null,null,null,{"$f":"'Schedule IIE (EBS)'!F57","v":0}]
["Sch IIE","Deposits",null,"Long Positions - After - Derivatives on Infrastructure",null,null,null,null,null,null,null,null,{"$f":"'Schedule IIE (EBS)'!F58","v":0}]
["Sch IIE","Deposits",null,"Long Positions - After - Equity Real Estate 1",null,null,null,null,null,null,null,null,{"$f":"'Schedule IIE (EBS)'!F59","v":0}]
["Sch IIE","Deposits",null,"Long Positions - After - Equity Real Estate 2",null,null,null,null,null,null,null,null,{"$f":"'Schedule IIE (EBS)'!F60","v":0}]
["Sch IIE","Deposits",null,"Short - Before - Qualified Assets - Strategic Holdings - Listed",null,null,null,null,null,null,null,null,{"$f":"'Schedule IIE (EBS)'!H39","v":0}]
["Sch IIE","Deposits",null,"Short - Before - Qualified Assets - Duration Based",null,null,null,null,null,null,null,null,{"$f":"'Schedule IIE (EBS)'!H40","v":0}]
["Sch IIE","Deposits",null,"Short - Before - Qualified Assets - Listed Equity Securities in Developed Markets",null,null,null,null,null,null,null,null,{"$f":"'Schedule IIE (EBS)'!H41","v":0}]
["Sch IIE","Deposits",null,"Short - Before - Qualified Assets - Preferred Stocks, BSCR Rating 1",null,null,null,null,null,null,null,null,{"$f":"'Schedule IIE (EBS)'!H42","v":0}]
["Sch IIE","Deposits",null,"Short - Before - Qualified Assets - Preferred Stocks, BSCR Rating 2",null,null,null,null,null,null,null,null,{"$f":"'Schedule IIE (EBS)'!H43","v":0}]
["Sch IIE","Deposits",null,"Short - Before - Qualified Assets - Preferred Stocks, BSCR Rating 3",null,null,null,null,null,null,null,null,{"$f":"'Schedule IIE (EBS)'!H44","v":0}]
["Sch IIE","Deposits",null,"Short - Before - Qualified Assets - Preferred Stocks, BSCR Rating 4",null,null,null,null,null,null,null,null,{"$f":"'Schedule IIE (EBS)'!H45","v":0}]
["Sch IIE","Deposits",null,"Short - Before - Qualified Assets - Preferred Stocks, BSCR Rating 5",null,null,null,null,null,null,null,null,{"$f":"'Schedule IIE (EBS)'!H46","v":0}]
["Sch IIE","Deposits",null,"Short - Before - Qualified Assets - Preferred Stocks, BSCR Rating 6",null,null,null,null,null,null,null,null,{"$f":"'Schedule IIE (EBS)'!H47","v":0}]
["Sch IIE","Deposits",null,"Short - Before - Qualified Assets - Preferred Stocks, BSCR Rating 7",null,null,null,null,null,null,null,null,{"$f":"'Schedule IIE (EBS)'!H48","v":0}]
["Sch IIE","Deposits",null,"Short - Before - Qualified Assets - Preferred Stocks, BSCR Rating 8",null,null,null,null,null,null,null,null,{"$f":"'Schedule IIE (EBS)'!H49","v":0}]
["Sch IIE","Deposits",null,"Short - Before - Qualified Assets - Equity Derivatives on Type 1 Equities",null,null,null,null,null,null,null,null,{"$f":"'Schedule IIE (EBS)'!H50","v":0}]
["Sch IIE","Deposits",null,"Short - Before - Qualified Assets - Strategic Holdings - Unlisted",null,null,null,null,null,null,null,null,{"$f":"'Schedule IIE (EBS)'!H51","v":0}]
["Sch IIE","Deposits",null,"Short - Before - Qualified Assets - Other Equities",null,null,null,null,null,null,null,null,{"$f":"'Schedule IIE (EBS)'!H52","v":0}]
["Sch IIE","Deposits",null,"Short - Before - Qualified Assets - Letters of Credit",null,null,null,null,null,null,null,null,{"$f":"'Schedule IIE (EBS)'!H53","v":0}]
["Sch IIE","Deposits",null,"Short - Before - Qualified Assets - Intangible assets",null,null,null,null,null,null,null,null,{"$f":"'Schedule IIE (EBS)'!H54","v":0}]
["Sch IIE","Deposits",null,"Short - Before - Qualified Assets - Pension Benefit Surplus",null,null,null,null,null,null,null,null,{"$f":"'Schedule IIE (EBS)'!H55","v":0}]
["Sch IIE","Deposits",null,"Short - Before - Qualified Assets - Equity Derivatives on Type 2 Equities",null,null,null,null,null,null,null,null,{"$f":"'Schedule IIE (EBS)'!H56","v":0}]
["Sch IIE","Deposits",null,"Short - Before - Qualified Assets - Infrastructure",null,null,null,null,null,null,null,null,{"$f":"'Schedule IIE (EBS)'!H57","v":0}]
["Sch IIE","Deposits",null,"Short - Before - Qualified Assets - Derivatives on Infrastructure",null,null,null,null,null,null,null,null,{"$f":"'Schedule IIE (EBS)'!H58","v":0}]
["Sch IIE","Deposits",null,"Short - Before - Qualified Assets - Equity Real Estate 1",null,null,null,null,null,null,null,null,{"$f":"'Schedule IIE (EBS)'!H59","v":0}]
["Sch IIE","Deposits",null,"Short - Before - Qualified Assets - Equity Real Estate 2",null,null,null,null,null,null,null,null,{"$f":"'Schedule IIE (EBS)'!H60","v":0}]
["Sch IIE","Deposits",null,"Short - After - Qualified Assets - Strategic Holdings - Listed",null,null,null,null,null,null,null,null,{"$f":"'Schedule IIE (EBS)'!J39","v":0}]
["Sch IIE","Deposits",null,"Short - After - Qualified Assets - Duration Based",null,null,null,null,null,null,null,null,{"$f":"'Schedule IIE (EBS)'!J40","v":0}]
["Sch IIE","Deposits",null,"Short - After - Qualified Assets - Listed Equity Securities in Developed Markets",null,null,null,null,null,null,null,null,{"$f":"'Schedule IIE (EBS)'!J41","v":0}]
["Sch IIE","Deposits",null,"Short - After - Qualified Assets - Preferred Stocks, BSCR Rating 1",null,null,null,null,null,null,null,null,{"$f":"'Schedule IIE (EBS)'!J42","v":0}]
["Sch IIE","Deposits",null,"Short - After - Qualified Assets - Preferred Stocks, BSCR Rating 2",null,null,null,null,null,null,null,null,{"$f":"'Schedule IIE (EBS)'!J43","v":0}]
["Sch IIE","Deposits",null,"Short - After - Qualified Assets - Preferred Stocks, BSCR Rating 3",null,null,null,null,null,null,null,null,{"$f":"'Schedule IIE (EBS)'!J44","v":0}]
["Sch IIE","Deposits",null,"Short - After - Qualified Assets - Preferred Stocks, BSCR Rating 4",null,null,null,null,null,null,null,null,{"$f":"'Schedule IIE (EBS)'!J45","v":0}]
["Sch IIE","Deposits",null,"Short - After - Qualified Assets - Preferred Stocks, BSCR Rating 5",null,null,null,null,null,null,null,null,{"$f":"'Schedule IIE (EBS)'!J46","v":0}]
["Sch IIE","Deposits",null,"Short - After - Qualified Assets - Preferred Stocks, BSCR Rating 6",null,null,null,null,null,null,null,null,{"$f":"'Schedule IIE (EBS)'!J47","v":0}]
["Sch IIE","Deposits",null,"Short - After - Qualified Assets - Preferred Stocks, BSCR Rating 7",null,null,null,null,null,null,null,null,{"$f":"'Schedule IIE (EBS)'!J48","v":0}]
["Sch IIE","Deposits",null,"Short - After - Qualified Assets - Preferred Stocks, BSCR Rating 8",null,null,null,null,null,null,null,null,{"$f":"'Schedule IIE (EBS)'!J49","v":0}]
["Sch IIE","Deposits",null,"Short - After - Qualified Assets - Equity Derivatives on Type 1 Equities",null,null,null,null,null,null,null,null,{"$f":"'Schedule IIE (EBS)'!J50","v":0}]
["Sch IIE","Deposits",null,"Short - After - Qualified Assets - Strategic Holdings - Unlisted",null,null,null,null,null,null,null,null,{"$f":"'Schedule IIE (EBS)'!J51","v":0}]
["Sch IIE","Deposits",null,"Short - After - Qualified Assets - Other Equities",null,null,null,null,null,null,null,null,{"$f":"'Schedule IIE (EBS)'!J52","v":0}]
["Sch IIE","Deposits",null,"Short - After - Qualified Assets - Letters of Credit",null,null,null,null,null,null,null,null,{"$f":"'Schedule IIE (EBS)'!J53","v":0}]
["Sch IIE","Deposits",null,"Short - After - Qualified Assets - Intangible assets",null,null,null,null,null,null,null,null,{"$f":"'Schedule IIE (EBS)'!J54","v":0}]
["Sch IIE","Deposits",null,"Short - After - Qualified Assets - Pension Benefit Surplus",null,null,null,null,null,null,null,null,{"$f":"'Schedule IIE (EBS)'!J55","v":0}]
["Sch IIE","Deposits",null,"Short - After - Qualified Assets - Equity Derivatives on Type 2 Equities",null,null,null,null,null,null,null,null,{"$f":"'Schedule IIE (EBS)'!J56","v":0}]
["Sch IIE","Deposits",null,"Short - After - Qualified Assets - Infrastructure",null,null,null,null,null,null,null,null,{"$f":"'Schedule IIE (EBS)'!J57","v":0}]
["Sch IIE","Deposits",null,"Short - After - Qualified Assets - Derivatives on Infrastructure",null,null,null,null,null,null,null,null,{"$f":"'Schedule IIE (EBS)'!J58","v":0}]
["Sch IIE","Deposits",null,"Short - After - Qualified Assets - Equity Real Estate 1",null,null,null,null,null,null,null,null,{"$f":"'Schedule IIE (EBS)'!J59","v":0}]
["Sch IIE","Deposits",null,"Short - After - Qualified Assets - Equity Real Estate 2",null,null,null,null,null,null,null,null,{"$f":"'Schedule IIE (EBS)'!J60","v":0}]
["Sch IIE","Deposits",null,"Short - Before - UnQualified Assets - Strategic Holdings - Listed",null,null,null,null,null,null,null,null,{"$f":"'Schedule IIE (EBS)'!L39","v":0}]
["Sch IIE","Deposits",null,"Short - Before - UnQualified Assets - Duration Based",null,null,null,null,null,null,null,null,{"$f":"'Schedule IIE (EBS)'!L40","v":0}]
["Sch IIE","Deposits",null,"Short - Before - UnQualified Assets - Listed Equity Securities in Developed Markets",null,null,null,null,null,null,null,null,{"$f":"'Schedule IIE (EBS)'!L41","v":0}]
["Sch IIE","Deposits",null,"Short - Before - UnQualified Assets - Preferred Stocks, BSCR Rating 1",null,null,null,null,null,null,null,null,{"$f":"'Schedule IIE (EBS)'!L42","v":0}]
["Sch IIE","Deposits",null,"Short - Before - UnQualified Assets - Preferred Stocks, BSCR Rating 2",null,null,null,null,null,null,null,null,{"$f":"'Schedule IIE (EBS)'!L43","v":0}]
["Sch IIE","Deposits",null,"Short - Before - UnQualified Assets - Preferred Stocks, BSCR Rating 3",null,null,null,null,null,null,null,null,{"$f":"'Schedule IIE (EBS)'!L44","v":0}]
["Sch IIE","Deposits",null,"Short - Before - UnQualified Assets - Preferred Stocks, BSCR Rating 4",null,null,null,null,null,null,null,null,{"$f":"'Schedule IIE (EBS)'!L45","v":0}]
["Sch IIE","Deposits",null,"Short - Before - UnQualified Assets - Preferred Stocks, BSCR Rating 5",null,null,null,null,null,null,null,null,{"$f":"'Schedule IIE (EBS)'!L46","v":0}]
["Sch IIE","Deposits",null,"Short - Before - UnQualified Assets - Preferred Stocks, BSCR Rating 6",null,null,null,null,null,null,null,null,{"$f":"'Schedule IIE (EBS)'!L47","v":0}]
["Sch IIE","Deposits",null,"Short - Before - UnQualified Assets - Preferred Stocks, BSCR Rating 7",null,null,null,null,null,null,null,null,{"$f":"'Schedule IIE (EBS)'!L48","v":0}]
["Sch IIE","Deposits",null,"Short - Before - UnQualified Assets - Preferred Stocks, BSCR Rating 8",null,null,null,null,null,null,null,null,{"$f":"'Schedule IIE (EBS)'!L49","v":0}]
["Sch IIE","Deposits",null,"Short - Before - UnQualified Assets - Equity Derivatives on Type 1 Equities",null,null,null,null,null,null,null,null,{"$f":"'Schedule IIE (EBS)'!L50","v":0}]
["Sch IIE","Deposits",null,"Short - Before - UnQualified Assets - Strategic Holdings - Unlisted",null,null,null,null,null,null,null,null,{"$f":"'Schedule IIE (EBS)'!L51","v":0}]
["Sch IIE","Deposits",null,"Short - Before - UnQualified Assets - Other Equities",null,null,null,null,null,null,null,null,{"$f":"'Schedule IIE (EBS)'!L52","v":0}]
["Sch IIE","Deposits",null,"Short - Before - UnQualified Assets - Letters of Credit",null,null,null,null,null,null,null,null,{"$f":"'Schedule IIE (EBS)'!L53","v":0}]
["Sch IIE","Deposits",null,"Short - Before - UnQualified Assets - Intangible assets",null,null,null,null,null,null,null,null,{"$f":"'Schedule IIE (EBS)'!L54","v":0}]
["Sch IIE","Deposits",null,"Short - Before - UnQualified Assets - Pension Benefit Surplus",null,null,null,null,null,null,null,null,{"$f":"'Schedule IIE (EBS)'!L55","v":0}]
["Sch IIE","Deposits",null,"Short - Before - UnQualified Assets - Equity Derivatives on Type 2 Equities",null,null,null,null,null,null,null,null,{"$f":"'Schedule IIE (EBS)'!L56","v":0}]
["Sch IIE","Deposits",null,"Short - Before - UnQualified Assets - Infrastructure",null,null,null,null,null,null,null,null,{"$f":"'Schedule IIE (EBS)'!L57","v":0}]
["Sch IIE","Deposits",null,"Short - Before - UnQualified Assets - Derivatives on Infrastructure",null,null,null,null,null,null,null,null,{"$f":"'Schedule IIE (EBS)'!L58","v":0}]
["Sch IIE","Deposits",null,"Short - Before - UnQualified Assets - Equity Real Estate 1",null,null,null,null,null,null,null,null,{"$f":"'Schedule IIE (EBS)'!L59","v":0}]
["Sch IIE","Deposits",null,"Short - Before - UnQualified Assets - Equity Real Estate 2",null,null,null,null,null,null,null,null,{"$f":"'Schedule IIE (EBS)'!L60","v":0}]
["Sch IIE","Deposits",null,"Short - After - UnQualified Assets - Strategic Holdings - Listed",null,null,null,null,null,null,null,null,{"$f":"'Schedule IIE (EBS)'!N39","v":0}]
["Sch IIE","Deposits",null,"Short - After - UnQualified Assets - Duration Based",null,null,null,null,null,null,null,null,{"$f":"'Schedule IIE (EBS)'!N40","v":0}]
["Sch IIE","Deposits",null,"Short - After - UnQualified Assets - Listed Equity Securities in Developed Markets",null,null,null,null,null,null,null,null,{"$f":"'Schedule IIE (EBS)'!N41","v":0}]
["Sch IIE","Deposits",null,"Short - After - UnQualified Assets - Preferred Stocks, BSCR Rating 1",null,null,null,null,null,null,null,null,{"$f":"'Schedule IIE (EBS)'!N42","v":0}]
["Sch IIE","Deposits",null,"Short - After - UnQualified Assets - Preferred Stocks, BSCR Rating 2",null,null,null,null,null,null,null,null,{"$f":"'Schedule IIE (EBS)'!N43","v":0}]
["Sch IIE","Deposits",null,"Short - After - UnQualified Assets - Preferred Stocks, BSCR Rating 3",null,null,null,null,null,null,null,null,{"$f":"'Schedule IIE (EBS)'!N44","v":0}]
["Sch IIE","Deposits",null,"Short - After - UnQualified Assets - Preferred Stocks, BSCR Rating 4",null,null,null,null,null,null,null,null,{"$f":"'Schedule IIE (EBS)'!N45","v":0}]
["Sch IIE","Deposits",null,"Short - After - UnQualified Assets - Preferred Stocks, BSCR Rating 5",null,null,null,null,null,null,null,null,{"$f":"'Schedule IIE (EBS)'!N46","v":0}]
["Sch IIE","Deposits",null,"Short - After - UnQualified Assets - Preferred Stocks, BSCR Rating 6",null,null,null,null,null,null,null,null,{"$f":"'Schedule IIE (EBS)'!N47","v":0}]
["Sch IIE","Deposits",null,"Short - After - UnQualified Assets - Preferred Stocks, BSCR Rating 7",null,null,null,null,null,null,null,null,{"$f":"'Schedule IIE (EBS)'!N48","v":0}]
["Sch IIE","Deposits",null,"Short - After - UnQualified Assets - Preferred Stocks, BSCR Rating 8",null,null,null,null,null,null,null,null,{"$f":"'Schedule IIE (EBS)'!N49","v":0}]
["Sch IIE","Deposits",null,"Short - After - UnQualified Assets - Equity Derivatives on Type 1 Equities",null,null,null,null,null,null,null,null,{"$f":"'Schedule IIE (EBS)'!N50","v":0}]
["Sch IIE","Deposits",null,"Short - After - UnQualified Assets - Strategic Holdings - Unlisted",null,null,null,null,null,null,null,null,{"$f":"'Schedule IIE (EBS)'!N51","v":0}]
["Sch IIE","Deposits",null,"Short - After - UnQualified Assets - Other Equities",null,null,null,null,null,null,null,null,{"$f":"'Schedule IIE (EBS)'!N52","v":0}]
["Sch IIE","Deposits",null,"Short - After - UnQualified Assets - Letters of Credit",null,null,null,null,null,null,null,null,{"$f":"'Schedule IIE (EBS)'!N53","v":0}]
["Sch IIE","Deposits",null,"Short - After - UnQualified Assets - Intangible assets",null,null,null,null,null,null,null,null,{"$f":"'Schedule IIE (EBS)'!N54","v":0}]
["Sch IIE","Deposits",null,"Short - After - UnQualified Assets - Pension Benefit Surplus",null,null,null,null,null,null,null,null,{"$f":"'Schedule IIE (EBS)'!N55","v":0}]
["Sch IIE","Deposits",null,"Short - After - UnQualified Assets - Equity Derivatives on Type 2 Equities",null,null,null,null,null,null,null,null,{"$f":"'Schedule IIE (EBS)'!N56","v":0}]
["Sch IIE","Deposits",null,"Short - After - UnQualified Assets - Infrastructure",null,null,null,null,null,null,null,null,{"$f":"'Schedule IIE (EBS)'!N57","v":0}]
["Sch IIE","Deposits",null,"Short - After - UnQualified Assets - Derivatives on Infrastructure",null,null,null,null,null,null,null,null,{"$f":"'Schedule IIE (EBS)'!N58","v":0}]
["Sch IIE","Deposits",null,"Short - After - UnQualified Assets - Equity Real Estate 1",null,null,null,null,null,null,null,null,{"$f":"'Schedule IIE (EBS)'!N59","v":0}]
["Sch IIE","Deposits",null,"Short - After - UnQualified Assets - Equity Real Estate 2",null,null,null,null,null,null,null,null,{"$f":"'Schedule IIE (EBS)'!N60","v":0}]
["Sch IIE","Deposits",null,"Liabilities - Before - W/O Mgmt Actions - Strategic Holdings - Listed",null,null,null,null,null,null,null,null,{"$f":"'Schedule IIE (EBS)'!P39","v":0}]
["Sch IIE","Deposits",null,"Liabilities - Before - W/O Mgmt Actions - Duration Based",null,null,null,null,null,null,null,null,{"$f":"'Schedule IIE (EBS)'!P40","v":0}]
["Sch IIE","Deposits",null,"Liabilities - Before - W/O Mgmt Actions - Listed Equity Securities in Developed Markets",null,null,null,null,null,null,null,null,{"$f":"'Schedule IIE (EBS)'!P41","v":0}]
["Sch IIE","Deposits",null,"Liabilities - Before - W/O Mgmt Actions - Preferred Stocks, BSCR Rating 1",null,null,null,null,null,null,null,null,{"$f":"'Schedule IIE (EBS)'!P42","v":0}]
["Sch IIE","Deposits",null,"Liabilities - Before - W/O Mgmt Actions - Preferred Stocks, BSCR Rating 2",null,null,null,null,null,null,null,null,{"$f":"'Schedule IIE (EBS)'!P43","v":0}]
["Sch IIE","Deposits",null,"Liabilities - Before - W/O Mgmt Actions - Preferred Stocks, BSCR Rating 3",null,null,null,null,null,null,null,null,{"$f":"'Schedule IIE (EBS)'!P44","v":0}]
["Sch IIE","Deposits",null,"Liabilities - Before - W/O Mgmt Actions - Preferred Stocks, BSCR Rating 4",null,null,null,null,null,null,null,null,{"$f":"'Schedule IIE (EBS)'!P45","v":0}]
["Sch IIE","Deposits",null,"Liabilities - Before - W/O Mgmt Actions - Preferred Stocks, BSCR Rating 5",null,null,null,null,null,null,null,null,{"$f":"'Schedule IIE (EBS)'!P46","v":0}]
["Sch IIE","Deposits",null,"Liabilities - Before - W/O Mgmt Actions - Preferred Stocks, BSCR Rating 6",null,null,null,null,null,null,null,null,{"$f":"'Schedule IIE (EBS)'!P47","v":0}]
["Sch IIE","Deposits",null,"Liabilities - Before - W/O Mgmt Actions - Preferred Stocks, BSCR Rating 7",null,null,null,null,null,null,null,null,{"$f":"'Schedule IIE (EBS)'!P48","v":0}]
["Sch IIE","Deposits",null,"Liabilities - Before - W/O Mgmt Actions - Preferred Stocks, BSCR Rating 8",null,null,null,null,null,null,null,null,{"$f":"'Schedule IIE (EBS)'!P49","v":0}]
["Sch IIE","Deposits",null,"Liabilities - Before - W/O Mgmt Actions - Equity Derivatives on Type 1 Equities",null,null,null,null,null,null,null,null,{"$f":"'Schedule IIE (EBS)'!P50","v":0}]
["Sch IIE","Deposits",null,"Liabilities - Before - W/O Mgmt Actions - Strategic Holdings - Unlisted",null,null,null,null,null,null,null,null,{"$f":"'Schedule IIE (EBS)'!P51","v":0}]
["Sch IIE","Deposits",null,"Liabilities - Before - W/O Mgmt Actions - Other Equities",null,null,null,null,null,null,null,null,{"$f":"'Schedule IIE (EBS)'!P52","v":0}]
["Sch IIE","Deposits",null,"Liabilities - Before - W/O Mgmt Actions - Letters of Credit",null,null,null,null,null,null,null,null,{"$f":"'Schedule IIE (EBS)'!P53","v":0}]
["Sch IIE","Deposits",null,"Liabilities - Before - W/O Mgmt Actions - Intangible assets",null,null,null,null,null,null,null,null,{"$f":"'Schedule IIE (EBS)'!P54","v":0}]
["Sch IIE","Deposits",null,"Liabilities - Before - W/O Mgmt Actions - Pension Benefit Surplus",null,null,null,null,null,null,null,null,{"$f":"'Schedule IIE (EBS)'!P55","v":0}]
["Sch IIE","Deposits",null,"Liabilities - Before - W/O Mgmt Actions - Equity Derivatives on Type 2 Equities",null,null,null,null,null,null,null,null,{"$f":"'Schedule IIE (EBS)'!P56","v":0}]
["Sch IIE","Deposits",null,"Liabilities - Before - W/O Mgmt Actions - Infrastructure",null,null,null,null,null,null,null,null,{"$f":"'Schedule IIE (EBS)'!P57","v":0}]
["Sch IIE","Deposits",null,"Liabilities - Before - W/O Mgmt Actions - Derivatives on Infrastructure",null,null,null,null,null,null,null,null,{"$f":"'Schedule IIE (EBS)'!P58","v":0}]
["Sch IIE","Deposits",null,"Liabilities - Before - W/O Mgmt Actions - Equity Real Estate 1",null,null,null,null,null,null,null,null,{"$f":"'Schedule IIE (EBS)'!P59","v":0}]
["Sch IIE","Deposits",null,"Liabilities - Before - W/O Mgmt Actions - Equity Real Estate 2",null,null,null,null,null,null,null,null,{"$f":"'Schedule IIE (EBS)'!P60","v":0}]
["Sch IIE","Deposits",null,"Liabilities - After - W/O Mgmt Actions - Strategic Holdings - Listed",null,null,null,null,null,null,null,null,{"$f":"'Schedule IIE (EBS)'!R39","v":0}]
["Sch IIE","Deposits",null,"Liabilities - After - W/O Mgmt Actions - Duration Based",null,null,null,null,null,null,null,null,{"$f":"'Schedule IIE (EBS)'!R40","v":0}]
["Sch IIE","Deposits",null,"Liabilities - After - W/O Mgmt Actions - Listed Equity Securities in Developed Markets",null,null,null,null,null,null,null,null,{"$f":"'Schedule IIE (EBS)'!R41","v":0}]
["Sch IIE","Deposits",null,"Liabilities - After - W/O Mgmt Actions - Preferred Stocks, BSCR Rating 1",null,null,null,null,null,null,null,null,{"$f":"'Schedule IIE (EBS)'!R42","v":0}]
["Sch IIE","Deposits",null,"Liabilities - After - W/O Mgmt Actions - Preferred Stocks, BSCR Rating 2",null,null,null,null,null,null,null,null,{"$f":"'Schedule IIE (EBS)'!R43","v":0}]
["Sch IIE","Deposits",null,"Liabilities - After - W/O Mgmt Actions - Preferred Stocks, BSCR Rating 3",null,null,null,null,null,null,null,null,{"$f":"'Schedule IIE (EBS)'!R44","v":0}]
["Sch IIE","Deposits",null,"Liabilities - After - W/O Mgmt Actions - Preferred Stocks, BSCR Rating 4",null,null,null,null,null,null,null,null,{"$f":"'Schedule IIE (EBS)'!R45","v":0}]
["Sch IIE","Deposits",null,"Liabilities - After - W/O Mgmt Actions - Preferred Stocks, BSCR Rating 5",null,null,null,null,null,null,null,null,{"$f":"'Schedule IIE (EBS)'!R46","v":0}]
["Sch IIE","Deposits",null,"Liabilities - After - W/O Mgmt Actions - Preferred Stocks, BSCR Rating 6",null,null,null,null,null,null,null,null,{"$f":"'Schedule IIE (EBS)'!R47","v":0}]
["Sch IIE","Deposits",null,"Liabilities - After - W/O Mgmt Actions - Preferred Stocks, BSCR Rating 7",null,null,null,null,null,null,null,null,{"$f":"'Schedule IIE (EBS)'!R48","v":0}]
["Sch IIE","Deposits",null,"Liabilities - After - W/O Mgmt Actions - Preferred Stocks, BSCR Rating 8",null,null,null,null,null,null,null,null,{"$f":"'Schedule IIE (EBS)'!R49","v":0}]
["Sch IIE","Deposits",null,"Liabilities - After - W/O Mgmt Actions - Equity Derivatives on Type 1 Equities",null,null,null,null,null,null,null,null,{"$f":"'Schedule IIE (EBS)'!R50","v":0}]
["Sch IIE","Deposits",null,"Liabilities - After - W/O Mgmt Actions - Strategic Holdings - Unlisted",null,null,null,null,null,null,null,null,{"$f":"'Schedule IIE (EBS)'!R51","v":0}]
["Sch IIE","Deposits",null,"Liabilities - After - W/O Mgmt Actions - Other Equities",null,null,null,null,null,null,null,null,{"$f":"'Schedule IIE (EBS)'!R52","v":0}]
["Sch IIE","Deposits",null,"Liabilities - After - W/O Mgmt Actions - Letters of Credit",null,null,null,null,null,null,null,null,{"$f":"'Schedule IIE (EBS)'!R53","v":0}]
["Sch IIE","Deposits",null,"Liabilities - After - W/O Mgmt Actions - Intangible assets",null,null,null,null,null,null,null,null,{"$f":"'Schedule IIE (EBS)'!R54","v":0}]
["Sch IIE","Deposits",null,"Liabilities - After - W/O Mgmt Actions - Pension Benefit Surplus",null,null,null,null,null,null,null,null,{"$f":"'Schedule IIE (EBS)'!R55","v":0}]
["Sch IIE","Deposits",null,"Liabilities - After - W/O Mgmt Actions - Equity Derivatives on Type 2 Equities",null,null,null,null,null,null,null,null,{"$f":"'Schedule IIE (EBS)'!R56","v":0}]
["Sch IIE","Deposits",null,"Liabilities - After - W/O Mgmt Actions - Infrastructure",null,null,null,null,null,null,null,null,{"$f":"'Schedule IIE (EBS)'!R57","v":0}]
["Sch IIE","Deposits",null,"Liabilities - After - W/O Mgmt Actions - Derivatives on Infrastructure",null,null,null,null,null,null,null,null,{"$f":"'Schedule IIE (EBS)'!R58","v":0}]
["Sch IIE","Deposits",null,"Liabilities - After - W/O Mgmt Actions - Equity Real Estate 1",null,null,null,null,null,null,null,null,{"$f":"'Schedule IIE (EBS)'!R59","v":0}]
["Sch IIE","Deposits",null,"Liabilities - After - W/O Mgmt Actions - Equity Real Estate 2",null,null,null,null,null,null,null,null,{"$f":"'Schedule IIE (EBS)'!R60","v":0}]
["Sch IIE","Deposits",null,"Liabilities - After - With Mgmt Actions - Strategic Holdings - Listed",null,null,null,null,null,null,null,null,{"$f":"'Schedule IIE (EBS)'!T39","v":0}]
["Sch IIE","Deposits",null,"Liabilities - After - With Mgmt Actions - Duration Based",null,null,null,null,null,null,null,null,{"$f":"'Schedule IIE (EBS)'!T40","v":0}]
["Sch IIE","Deposits",null,"Liabilities - After - With Mgmt Actions - Listed Equity Securities in Developed Markets",null,null,null,null,null,null,null,null,{"$f":"'Schedule IIE (EBS)'!T41","v":0}]
["Sch IIE","Deposits",null,"Liabilities - After - With Mgmt Actions - Preferred Stocks, BSCR Rating 1",null,null,null,null,null,null,null,null,{"$f":"'Schedule IIE (EBS)'!T42","v":0}]
["Sch IIE","Deposits",null,"Liabilities - After - With Mgmt Actions - Preferred Stocks, BSCR Rating 2",null,null,null,null,null,null,null,null,{"$f":"'Schedule IIE (EBS)'!T43","v":0}]
["Sch IIE","Deposits",null,"Liabilities - After - With Mgmt Actions - Preferred Stocks, BSCR Rating 3",null,null,null,null,null,null,null,null,{"$f":"'Schedule IIE (EBS)'!T44","v":0}]
["Sch IIE","Deposits",null,"Liabilities - After - With Mgmt Actions - Preferred Stocks, BSCR Rating 4",null,null,null,null,null,null,null,null,{"$f":"'Schedule IIE (EBS)'!T45","v":0}]
["Sch IIE","Deposits",null,"Liabilities - After - With Mgmt Actions - Preferred Stocks, BSCR Rating 5",null,null,null,null,null,null,null,null,{"$f":"'Schedule IIE (EBS)'!T46","v":0}]
["Sch IIE","Deposits",null,"Liabilities - After - With Mgmt Actions - Preferred Stocks, BSCR Rating 6",null,null,null,null,null,null,null,null,{"$f":"'Schedule IIE (EBS)'!T47","v":0}]
["Sch IIE","Deposits",null,"Liabilities - After - With Mgmt Actions - Preferred Stocks, BSCR Rating 7",null,null,null,null,null,null,null,null,{"$f":"'Schedule IIE (EBS)'!T48","v":0}]
["Sch IIE","Deposits",null,"Liabilities - After - With Mgmt Actions - Preferred Stocks, BSCR Rating 8",null,null,null,null,null,null,null,null,{"$f":"'Schedule IIE (EBS)'!T49","v":0}]
["Sch IIE","Deposits",null,"Liabilities - After - With Mgmt Actions - Equity Derivatives on Type 1 Equities",null,null,null,null,null,null,null,null,{"$f":"'Schedule IIE (EBS)'!T50","v":0}]
["Sch IIE","Deposits",null,"Liabilities - After - With Mgmt Actions - Strategic Holdings - Unlisted",null,null,null,null,null,null,null,null,{"$f":"'Schedule IIE (EBS)'!T51","v":0}]
["Sch IIE","Deposits",null,"Liabilities - After - With Mgmt Actions - Other Equities",null,null,null,null,null,null,null,null,{"$f":"'Schedule IIE (EBS)'!T52","v":0}]
["Sch IIE","Deposits",null,"Liabilities - After - With Mgmt Actions - Letters of Credit",null,null,null,null,null,null,null,null,{"$f":"'Schedule IIE (EBS)'!T53","v":0}]
["Sch IIE","Deposits",null,"Liabilities - After - With Mgmt Actions - Intangible assets",null,null,null,null,null,null,null,null,{"$f":"'Schedule IIE (EBS)'!T54","v":0}]
["Sch IIE","Deposits",null,"Liabilities - After - With Mgmt Actions - Pension Benefit Surplus",null,null,null,null,null,null,null,null,{"$f":"'Schedule IIE (EBS)'!T55","v":0}]
["Sch IIE","Deposits",null,"Liabilities - After - With Mgmt Actions - Equity Derivatives on Type 2 Equities",null,null,null,null,null,null,null,null,{"$f":"'Schedule IIE (EBS)'!T56","v":0}]
["Sch IIE","Deposits",null,"Liabilities - After - With Mgmt Actions - Infrastructure",null,null,null,null,null,null,null,null,{"$f":"'Schedule IIE (EBS)'!T57","v":0}]
["Sch IIE","Deposits",null,"Liabilities - After - With Mgmt Actions - Derivatives on Infrastructure",null,null,null,null,null,null,null,null,{"$f":"'Schedule IIE (EBS)'!T58","v":0}]
["Sch IIE","Deposits",null,"Liabilities - After - With Mgmt Actions - Equity Real Estate 1",null,null,null,null,null,null,null,null,{"$f":"'Schedule IIE (EBS)'!T59","v":0}]
["Sch IIE","Deposits",null,"Liabilities - After - With Mgmt Actions - Equity Real Estate 2",null,null,null,null,null,null,null,null,{"$f":"'Schedule IIE (EBS)'!T60","v":0}]
["Sch IIE","Deposits",null,"Credit Derivatives - Up - Before - Long-Rating 0",null,null,null,null,null,null,null,null,{"$f":"'Schedule IIE (EBS)'!D68","v":0}]
["Sch IIE","Deposits",null,"Credit Derivatives - Up - Before - Long-Rating 1",null,null,null,null,null,null,null,null,{"$f":"'Schedule IIE (EBS)'!D69","v":0}]
["Sch IIE","Deposits",null,"Credit Derivatives - Up - Before - Long-Rating 2",null,null,null,null,null,null,null,null,{"$f":"'Schedule IIE (EBS)'!D70","v":0}]
["Sch IIE","Deposits",null,"Credit Derivatives - Up - Before - Long-Rating 3",null,null,null,null,null,null,null,null,{"$f":"'Schedule IIE (EBS)'!D71","v":0}]
["Sch IIE","Deposits",null,"Credit Derivatives - Up - Before - Long-Rating 4",null,null,null,null,null,null,null,null,{"$f":"'Schedule IIE (EBS)'!D72","v":0}]
["Sch IIE","Deposits",null,"Credit Derivatives - Up - Before - Long-Rating 5",null,null,null,null,null,null,null,null,{"$f":"'Schedule IIE (EBS)'!D73","v":0}]
["Sch IIE","Deposits",null,"Credit Derivatives - Up - Before - Long-Rating 6",null,null,null,null,null,null,null,null,{"$f":"'Schedule IIE (EBS)'!D74","v":0}]
["Sch IIE","Deposits",null,"Credit Derivatives - Up - Before - Long-Rating 7",null,null,null,null,null,null,null,null,{"$f":"'Schedule IIE (EBS)'!D75","v":0}]
["Sch IIE","Deposits",null,"Credit Derivatives - Up - Before - Long-Rating 8",null,null,null,null,null,null,null,null,{"$f":"'Schedule IIE (EBS)'!D76","v":0}]
["Sch IIE","Deposits",null,"Credit Derivatives - Up - After - Long- Rating 0",null,null,null,null,null,null,null,null,{"$f":"'Schedule IIE (EBS)'!F68","v":0}]
["Sch IIE","Deposits",null,"Credit Derivatives - Up - After - Long- Rating 1",null,null,null,null,null,null,null,null,{"$f":"'Schedule IIE (EBS)'!F69","v":0}]
["Sch IIE","Deposits",null,"Credit Derivatives - Up - After - Long- Rating 2",null,null,null,null,null,null,null,null,{"$f":"'Schedule IIE (EBS)'!F70","v":0}]
["Sch IIE","Deposits",null,"Credit Derivatives - Up - After - Long- Rating 3",null,null,null,null,null,null,null,null,{"$f":"'Schedule IIE (EBS)'!F71","v":0}]
["Sch IIE","Deposits",null,"Credit Derivatives - Up - After - Long- Rating 4",null,null,null,null,null,null,null,null,{"$f":"'Schedule IIE (EBS)'!F72","v":0}]
["Sch IIE","Deposits",null,"Credit Derivatives - Up - After - Long- Rating 5",null,null,null,null,null,null,null,null,{"$f":"'Schedule IIE (EBS)'!F73","v":0}]
["Sch IIE","Deposits",null,"Credit Derivatives - Up - After - Long- Rating 6",null,null,null,null,null,null,null,null,{"$f":"'Schedule IIE (EBS)'!F74","v":0}]
["Sch IIE","Deposits",null,"Credit Derivatives - Up - After - Long- Rating 7",null,null,null,null,null,null,null,null,{"$f":"'Schedule IIE (EBS)'!F75","v":0}]
["Sch IIE","Deposits",null,"Credit Derivatives - Up - After - Long- Rating 8",null,null,null,null,null,null,null,null,{"$f":"'Schedule IIE (EBS)'!F76","v":0}]
["Sch IIE","Deposits",null,"Credit Derivatives - Up - Before - Short- Rating 0",null,null,null,null,null,null,null,null,{"$f":"'Schedule IIE (EBS)'!H68","v":0}]
["Sch IIE","Deposits",null,"Credit Derivatives - Up - Before - Short- Rating 1",null,null,null,null,null,null,null,null,{"$f":"'Schedule IIE (EBS)'!H69","v":0}]
["Sch IIE","Deposits",null,"Credit Derivatives - Up - Before - Short- Rating 2",null,null,null,null,null,null,null,null,{"$f":"'Schedule IIE (EBS)'!H70","v":0}]
["Sch IIE","Deposits",null,"Credit Derivatives - Up - Before - Short- Rating 3",null,null,null,null,null,null,null,null,{"$f":"'Schedule IIE (EBS)'!H71","v":0}]
["Sch IIE","Deposits",null,"Credit Derivatives - Up - Before - Short- Rating 4",null,null,null,null,null,null,null,null,{"$f":"'Schedule IIE (EBS)'!H72","v":0}]
["Sch IIE","Deposits",null,"Credit Derivatives - Up - Before - Short- Rating 5",null,null,null,null,null,null,null,null,{"$f":"'Schedule IIE (EBS)'!H73","v":0}]
["Sch IIE","Deposits",null,"Credit Derivatives - Up - Before - Short- Rating 6",null,null,null,null,null,null,null,null,{"$f":"'Schedule IIE (EBS)'!H74","v":0}]
["Sch IIE","Deposits",null,"Credit Derivatives - Up - Before - Short- Rating 7",null,null,null,null,null,null,null,null,{"$f":"'Schedule IIE (EBS)'!H75","v":0}]
["Sch IIE","Deposits",null,"Credit Derivatives - Up - Before - Short- Rating 8",null,null,null,null,null,null,null,null,{"$f":"'Schedule IIE (EBS)'!H76","v":0}]
["Sch IIE","Deposits",null,"Credit Derivatives - Up - After - Short- Rating 0",null,null,null,null,null,null,null,null,{"$f":"'Schedule IIE (EBS)'!J68","v":0}]
["Sch IIE","Deposits",null,"Credit Derivatives - Up - After - Short- Rating 1",null,null,null,null,null,null,null,null,{"$f":"'Schedule IIE (EBS)'!J69","v":0}]
["Sch IIE","Deposits",null,"Credit Derivatives - Up - After - Short- Rating 2",null,null,null,null,null,null,null,null,{"$f":"'Schedule IIE (EBS)'!J70","v":0}]
["Sch IIE","Deposits",null,"Credit Derivatives - Up - After - Short- Rating 3",null,null,null,null,null,null,null,null,{"$f":"'Schedule IIE (EBS)'!J71","v":0}]
["Sch IIE","Deposits",null,"Credit Derivatives - Up - After - Short- Rating 4",null,null,null,null,null,null,null,null,{"$f":"'Schedule IIE (EBS)'!J72","v":0}]
["Sch IIE","Deposits",null,"Credit Derivatives - Up - After - Short- Rating 5",null,null,null,null,null,null,null,null,{"$f":"'Schedule IIE (EBS)'!J73","v":0}]
["Sch IIE","Deposits",null,"Credit Derivatives - Up - After - Short- Rating 6",null,null,null,null,null,null,null,null,{"$f":"'Schedule IIE (EBS)'!J74","v":0}]
["Sch IIE","Deposits",null,"Credit Derivatives - Up - After - Short- Rating 7",null,null,null,null,null,null,null,null,{"$f":"'Schedule IIE (EBS)'!J75","v":0}]
["Sch IIE","Deposits",null,"Credit Derivatives - Up - After - Short- Rating 8",null,null,null,null,null,null,null,null,{"$f":"'Schedule IIE (EBS)'!J76","v":0}]
["Sch IIE","Deposits",null,"Credit Derivatives - Down - Before - Long-Rating 0",null,null,null,null,null,null,null,null,{"$f":"'Schedule IIE (EBS)'!N68","v":0}]
["Sch IIE","Deposits",null,"Credit Derivatives - Down - Before - Long-Rating 1",null,null,null,null,null,null,null,null,{"$f":"'Schedule IIE (EBS)'!N69","v":0}]
["Sch IIE","Deposits",null,"Credit Derivatives - Down - Before - Long-Rating 2",null,null,null,null,null,null,null,null,{"$f":"'Schedule IIE (EBS)'!N70","v":0}]
["Sch IIE","Deposits",null,"Credit Derivatives - Down - Before - Long-Rating 3",null,null,null,null,null,null,null,null,{"$f":"'Schedule IIE (EBS)'!N71","v":0}]
["Sch IIE","Deposits",null,"Credit Derivatives - Down - Before - Long-Rating 4",null,null,null,null,null,null,null,null,{"$f":"'Schedule IIE (EBS)'!N72","v":0}]
["Sch IIE","Deposits",null,"Credit Derivatives - Down - Before - Long-Rating 5",null,null,null,null,null,null,null,null,{"$f":"'Schedule IIE (EBS)'!N73","v":0}]
["Sch IIE","Deposits",null,"Credit Derivatives - Down - Before - Long-Rating 6",null,null,null,null,null,null,null,null,{"$f":"'Schedule IIE (EBS)'!N74","v":0}]
["Sch IIE","Deposits",null,"Credit Derivatives - Down - Before - Long-Rating 7",null,null,null,null,null,null,null,null,{"$f":"'Schedule IIE (EBS)'!N75","v":0}]
["Sch IIE","Deposits",null,"Credit Derivatives - Down - Before - Long-Rating 8",null,null,null,null,null,null,null,null,{"$f":"'Schedule IIE (EBS)'!N76","v":0}]
["Sch IIE","Deposits",null,"Credit Derivatives - Down - After - Long- Rating 0",null,null,null,null,null,null,null,null,{"$f":"'Schedule IIE (EBS)'!P68","v":0}]
["Sch IIE","Deposits",null,"Credit Derivatives - Down - After - Long- Rating 1",null,null,null,null,null,null,null,null,{"$f":"'Schedule IIE (EBS)'!P69","v":0}]
["Sch IIE","Deposits",null,"Credit Derivatives - Down - After - Long- Rating 2",null,null,null,null,null,null,null,null,{"$f":"'Schedule IIE (EBS)'!P70","v":0}]
["Sch IIE","Deposits",null,"Credit Derivatives - Down - After - Long- Rating 3",null,null,null,null,null,null,null,null,{"$f":"'Schedule IIE (EBS)'!P71","v":0}]
["Sch IIE","Deposits",null,"Credit Derivatives - Down - After - Long- Rating 4",null,null,null,null,null,null,null,null,{"$f":"'Schedule IIE (EBS)'!P72","v":0}]
["Sch IIE","Deposits",null,"Credit Derivatives - Down - After - Long- Rating 5",null,null,null,null,null,null,null,null,{"$f":"'Schedule IIE (EBS)'!P73","v":0}]
["Sch IIE","Deposits",null,"Credit Derivatives - Down - After - Long- Rating 6",null,null,null,null,null,null,null,null,{"$f":"'Schedule IIE (EBS)'!P74","v":0}]
["Sch IIE","Deposits",null,"Credit Derivatives - Down - After - Long- Rating 7",null,null,null,null,null,null,null,null,{"$f":"'Schedule IIE (EBS)'!P75","v":0}]
["Sch IIE","Deposits",null,"Credit Derivatives - Down - After - Long- Rating 8",null,null,null,null,null,null,null,null,{"$f":"'Schedule IIE (EBS)'!P76","v":0}]
["Sch IIE","Deposits",null,"Credit Derivatives - Down - Before - Short- Rating 0",null,null,null,null,null,null,null,null,{"$f":"'Schedule IIE (EBS)'!R68","v":0}]
["Sch IIE","Deposits",null,"Credit Derivatives - Down - Before - Short- Rating 1",null,null,null,null,null,null,null,null,{"$f":"'Schedule IIE (EBS)'!R69","v":0}]
["Sch IIE","Deposits",null,"Credit Derivatives - Down - Before - Short- Rating 2",null,null,null,null,null,null,null,null,{"$f":"'Schedule IIE (EBS)'!R70","v":0}]
["Sch IIE","Deposits",null,"Credit Derivatives - Down - Before - Short- Rating 3",null,null,null,null,null,null,null,null,{"$f":"'Schedule IIE (EBS)'!R71","v":0}]
["Sch IIE","Deposits",null,"Credit Derivatives - Down - Before - Short- Rating 4",null,null,null,null,null,null,null,null,{"$f":"'Schedule IIE (EBS)'!R72","v":0}]
["Sch IIE","Deposits",null,"Credit Derivatives - Down - Before - Short- Rating 5",null,null,null,null,null,null,null,null,{"$f":"'Schedule IIE (EBS)'!R73","v":0}]
["Sch IIE","Deposits",null,"Credit Derivatives - Down - Before - Short- Rating 6",null,null,null,null,null,null,null,null,{"$f":"'Schedule IIE (EBS)'!R74","v":0}]
["Sch IIE","Deposits",null,"Credit Derivatives - Down - Before - Short- Rating 7",null,null,null,null,null,null,null,null,{"$f":"'Schedule IIE (EBS)'!R75","v":0}]
["Sch IIE","Deposits",null,"Credit Derivatives - Down - Before - Short- Rating 8",null,null,null,null,null,null,null,null,{"$f":"'Schedule IIE (EBS)'!R76","v":0}]
["Sch IIE","Deposits",null,"Credit Derivatives - Down - After - Short- Rating 0",null,null,null,null,null,null,null,null,{"$f":"'Schedule IIE (EBS)'!T68","v":0}]
["Sch IIE","Deposits",null,"Credit Derivatives - Down - After - Short- Rating 1",null,null,null,null,null,null,null,null,{"$f":"'Schedule IIE (EBS)'!T69","v":0}]
["Sch IIE","Deposits",null,"Credit Derivatives - Down - After - Short- Rating 2",null,null,null,null,null,null,null,null,{"$f":"'Schedule IIE (EBS)'!T70","v":0}]
["Sch IIE","Deposits",null,"Credit Derivatives - Down - After - Short- Rating 3",null,null,null,null,null,null,null,null,{"$f":"'Schedule IIE (EBS)'!T71","v":0}]
["Sch IIE","Deposits",null,"Credit Derivatives - Down - After - Short- Rating 4",null,null,null,null,null,null,null,null,{"$f":"'Schedule IIE (EBS)'!T72","v":0}]
["Sch IIE","Deposits",null,"Credit Derivatives - Down - After - Short- Rating 5",null,null,null,null,null,null,null,null,{"$f":"'Schedule IIE (EBS)'!T73","v":0}]
["Sch IIE","Deposits",null,"Credit Derivatives - Down - After - Short- Rating 6",null,null,null,null,null,null,null,null,{"$f":"'Schedule IIE (EBS)'!T74","v":0}]
["Sch IIE","Deposits",null,"Credit Derivatives - Down - After - Short- Rating 7",null,null,null,null,null,null,null,null,{"$f":"'Schedule IIE (EBS)'!T75","v":0}]
["Sch IIE","Deposits",null,"Credit Derivatives - Down - After - Short- Rating 8",null,null,null,null,null,null,null,null,{"$f":"'Schedule IIE (EBS)'!T76","v":0}]
["Sch IIE","Deposits",null,"Counterparty Default Risk - MV of Derivatives - MV Positive - Rating 0",null,null,null,null,null,null,null,null,{"$f":"'Schedule IIE (EBS)'!D84","v":0}]
["Sch IIE","Deposits",null,"Counterparty Default Risk - MV of Derivatives - MV Positive - Rating 1",null,null,null,null,null,null,null,null,{"$f":"'Schedule IIE (EBS)'!D85","v":0}]
["Sch IIE","Deposits",null,"Counterparty Default Risk - MV of Derivatives - MV Positive - Rating 2",null,null,null,null,null,null,null,null,{"$f":"'Schedule IIE (EBS)'!D86","v":0}]
["Sch IIE","Deposits",null,"Counterparty Default Risk - MV of Derivatives - MV Positive - Rating 3",null,null,null,null,null,null,null,null,{"$f":"'Schedule IIE (EBS)'!D87","v":0}]
["Sch IIE","Deposits",null,"Counterparty Default Risk - MV of Derivatives - MV Positive - Rating 4",null,null,null,null,null,null,null,null,{"$f":"'Schedule IIE (EBS)'!D88","v":0}]
["Sch IIE","Deposits",null,"Counterparty Default Risk - MV of Derivatives - MV Positive - Rating 5",null,null,null,null,null,null,null,null,{"$f":"'Schedule IIE (EBS)'!D89","v":0}]
["Sch IIE","Deposits",null,"Counterparty Default Risk - MV of Derivatives - MV Positive - Rating 6",null,null,null,null,null,null,null,null,{"$f":"'Schedule IIE (EBS)'!D90","v":0}]
["Sch IIE","Deposits",null,"Counterparty Default Risk - MV of Derivatives - MV Positive - Rating 7",null,null,null,null,null,null,null,null,{"$f":"'Schedule IIE (EBS)'!D91","v":0}]
["Sch IIE","Deposits",null,"Counterparty Default Risk - MV of Derivatives - MV Positive - Rating 8",null,null,null,null,null,null,null,null,{"$f":"'Schedule IIE (EBS)'!D92","v":0}]
["Sch IIE","Deposits",null,"Counterparty Default Risk - MV of Derivatives - MV Negative - Rating 0",null,null,null,null,null,null,null,null,{"$f":"'Schedule IIE (EBS)'!F84","v":0}]
["Sch IIE","Deposits",null,"Counterparty Default Risk - MV of Derivatives - MV Negative - Rating 1",null,null,null,null,null,null,null,null,{"$f":"'Schedule IIE (EBS)'!F85","v":0}]
["Sch IIE","Deposits",null,"Counterparty Default Risk - MV of Derivatives - MV Negative - Rating 2",null,null,null,null,null,null,null,null,{"$f":"'Schedule IIE (EBS)'!F86","v":0}]
["Sch IIE","Deposits",null,"Counterparty Default Risk - MV of Derivatives - MV Negative - Rating 3",null,null,null,null,null,null,null,null,{"$f":"'Schedule IIE (EBS)'!F87","v":0}]
["Sch IIE","Deposits",null,"Counterparty Default Risk - MV of Derivatives - MV Negative - Rating 4",null,null,null,null,null,null,null,null,{"$f":"'Schedule IIE (EBS)'!F88","v":0}]
["Sch IIE","Deposits",null,"Counterparty Default Risk - MV of Derivatives - MV Negative - Rating 5",null,null,null,null,null,null,null,null,{"$f":"'Schedule IIE (EBS)'!F89","v":0}]
["Sch IIE","Deposits",null,"Counterparty Default Risk - MV of Derivatives - MV Negative - Rating 6",null,null,null,null,null,null,null,null,{"$f":"'Schedule IIE (EBS)'!F90","v":0}]
["Sch IIE","Deposits",null,"Counterparty Default Risk - MV of Derivatives - MV Negative - Rating 7",null,null,null,null,null,null,null,null,{"$f":"'Schedule IIE (EBS)'!F91","v":0}]
["Sch IIE","Deposits",null,"Counterparty Default Risk - MV of Derivatives - MV Negative - Rating 8",null,null,null,null,null,null,null,null,{"$f":"'Schedule IIE (EBS)'!F92","v":0}]
["Sch IIE","Deposits",null,"Counterparty Default Risk - MV of Collateral - Rating 0",null,null,null,null,null,null,null,null,{"$f":"'Schedule IIE (EBS)'!H84","v":0}]
["Sch IIE","Deposits",null,"Counterparty Default Risk - MV of Collateral - Rating 1",null,null,null,null,null,null,null,null,{"$f":"'Schedule IIE (EBS)'!H85","v":0}]
["Sch IIE","Deposits",null,"Counterparty Default Risk - MV of Collateral - Rating 2",null,null,null,null,null,null,null,null,{"$f":"'Schedule IIE (EBS)'!H86","v":0}]
["Sch IIE","Deposits",null,"Counterparty Default Risk - MV of Collateral - Rating 3",null,null,null,null,null,null,null,null,{"$f":"'Schedule IIE (EBS)'!H87","v":0}]
["Sch IIE","Deposits",null,"Counterparty Default Risk - MV of Collateral - Rating 4",null,null,null,null,null,null,null,null,{"$f":"'Schedule IIE (EBS)'!H88","v":0}]
["Sch IIE","Deposits",null,"Counterparty Default Risk - MV of Collateral - Rating 5",null,null,null,null,null,null,null,null,{"$f":"'Schedule IIE (EBS)'!H89","v":0}]
["Sch IIE","Deposits",null,"Counterparty Default Risk - MV of Collateral - Rating 6",null,null,null,null,null,null,null,null,{"$f":"'Schedule IIE (EBS)'!H90","v":0}]
["Sch IIE","Deposits",null,"Counterparty Default Risk - MV of Collateral - Rating 7",null,null,null,null,null,null,null,null,{"$f":"'Schedule IIE (EBS)'!H91","v":0}]
["Sch IIE","Deposits",null,"Counterparty Default Risk - MV of Collateral - Rating 8",null,null,null,null,null,null,null,null,{"$f":"'Schedule IIE (EBS)'!H92","v":0}]
["Sch IIE","Deposits",null,"Cash and Cash Equivalents",null,null,null,null,null,null,null,null,{"$f":"'Schedule IIE (EBS)'!D95","v":0}]
[]
["Sch IIF","Other Sundry",null,"Corp. Bonds - BSCR Rate 0",null,null,null,null,null,null,null,null,{"$f":"'Schedule IIF (EBS)'!D13","v":0},null,{"$f":"'Schedule IIF (EBS)'!F13","v":0}]
["Sch IIF","Other Sundry",null,"Corp. Bonds - BSCR Rate 1",null,null,null,null,null,null,null,null,{"$f":"'Schedule IIF (EBS)'!D14","v":0},null,{"$f":"'Schedule IIF (EBS)'!F14","v":0}]
["Sch IIF","Other Sundry",null,"Corp. Bonds - BSCR Rate 2",null,null,null,null,null,null,null,null,{"$f":"'Schedule IIF (EBS)'!D15","v":0},null,{"$f":"'Schedule IIF (EBS)'!F15","v":0}]
["Sch IIF","Other Sundry",null,"Corp. Bonds - BSCR Rate 3",null,null,null,null,null,null,null,null,{"$f":"'Schedule IIF (EBS)'!D16","v":0},null,{"$f":"'Schedule IIF (EBS)'!F16","v":0}]
["Sch IIF","Other Sundry",null,"Corp. Bonds - BSCR Rate 4",null,null,null,null,null,null,null,null,{"$f":"'Schedule IIF (EBS)'!D17","v":0},null,{"$f":"'Schedule IIF (EBS)'!F17","v":0}]
["Sch IIF","Other Sundry",null,"Corp. Bonds - BSCR Rate 5",null,null,null,null,null,null,null,null,{"$f":"'Schedule IIF (EBS)'!D18","v":0},null,{"$f":"'Schedule IIF (EBS)'!F18","v":0}]
["Sch IIF","Other Sundry",null,"Corp. Bonds - BSCR Rate 6",null,null,null,null,null,null,null,null,{"$f":"'Schedule IIF (EBS)'!D19","v":0},null,{"$f":"'Schedule IIF (EBS)'!F19","v":0}]
["Sch IIF","Other Sundry",null,"Corp. Bonds - BSCR Rate 7",null,null,null,null,null,null,null,null,{"$f":"'Schedule IIF (EBS)'!D20","v":0},null,{"$f":"'Schedule IIF (EBS)'!F20","v":0}]
["Sch IIF","Other Sundry",null,"Corp. Bonds - BSCR Rate 8",null,null,null,null,null,null,null,null,{"$f":"'Schedule IIF (EBS)'!D21","v":0},null,{"$f":"'Schedule IIF (EBS)'!F21","v":0}]
["Sch IIF","Other Sundry",null,"Residential MBS - BSCR Rate 1",null,null,null,null,null,null,null,null,{"$f":"'Schedule IIF (EBS)'!H14","v":0},null,{"$f":"'Schedule IIF (EBS)'!J14","v":0}]
["Sch IIF","Other Sundry",null,"Residential MBS - BSCR Rate 2",null,null,null,null,null,null,null,null,{"$f":"'Schedule IIF (EBS)'!H15","v":0},null,{"$f":"'Schedule IIF (EBS)'!J15","v":0}]
["Sch IIF","Other Sundry",null,"Residential MBS - BSCR Rate 3",null,null,null,null,null,null,null,null,{"$f":"'Schedule IIF (EBS)'!H16","v":0},null,{"$f":"'Schedule IIF (EBS)'!J16","v":0}]
["Sch IIF","Other Sundry",null,"Residential MBS - BSCR Rate 4",null,null,null,null,null,null,null,null,{"$f":"'Schedule IIF (EBS)'!H17","v":0},null,{"$f":"'Schedule IIF (EBS)'!J17","v":0}]
["Sch IIF","Other Sundry",null,"Residential MBS - BSCR Rate 5",null,null,null,null,null,null,null,null,{"$f":"'Schedule IIF (EBS)'!H18","v":0},null,{"$f":"'Schedule IIF (EBS)'!J18","v":0}]
["Sch IIF","Other Sundry",null,"Residential MBS - BSCR Rate 6",null,null,null,null,null,null,null,null,{"$f":"'Schedule IIF (EBS)'!H19","v":0},null,{"$f":"'Schedule IIF (EBS)'!J19","v":0}]
["Sch IIF","Other Sundry",null,"Residential MBS - BSCR Rate 7",null,null,null,null,null,null,null,null,{"$f":"'Schedule IIF (EBS)'!H20","v":0},null,{"$f":"'Schedule IIF (EBS)'!J20","v":0}]
["Sch IIF","Other Sundry",null,"Residential MBS - BSCR Rate 8",null,null,null,null,null,null,null,null,{"$f":"'Schedule IIF (EBS)'!H21","v":0},null,{"$f":"'Schedule IIF (EBS)'!J21","v":0}]
["Sch IIF","Other Sundry",null,"Commercial MBS - BSCR Rate 1",null,null,null,null,null,null,null,null,{"$f":"'Schedule IIF (EBS)'!L14","v":0},null,{"$f":"'Schedule IIF (EBS)'!N14","v":0}]
["Sch IIF","Other Sundry",null,"Commercial MBS - BSCR Rate 2",null,null,null,null,null,null,null,null,{"$f":"'Schedule IIF (EBS)'!L15","v":0},null,{"$f":"'Schedule IIF (EBS)'!N15","v":0}]
["Sch IIF","Other Sundry",null,"Commercial MBS - BSCR Rate 3",null,null,null,null,null,null,null,null,{"$f":"'Schedule IIF (EBS)'!L16","v":0},null,{"$f":"'Schedule IIF (EBS)'!N16","v":0}]
["Sch IIF","Other Sundry",null,"Commercial MBS - BSCR Rate 4",null,null,null,null,null,null,null,null,{"$f":"'Schedule IIF (EBS)'!L17","v":0},null,{"$f":"'Schedule IIF (EBS)'!N17","v":0}]
["Sch IIF","Other Sundry",null,"Commercial MBS - BSCR Rate 5",null,null,null,null,null,null,null,null,{"$f":"'Schedule IIF (EBS)'!L18","v":0},null,{"$f":"'Schedule IIF (EBS)'!N18","v":0}]
["Sch IIF","Other Sundry",null,"Commercial MBS - BSCR Rate 6",null,null,null,null,null,null,null,null,{"$f":"'Schedule IIF (EBS)'!L19","v":0},null,{"$f":"'Schedule IIF (EBS)'!N19","v":0}]
["Sch IIF","Other Sundry",null,"Commercial MBS - BSCR Rate 7",null,null,null,null,null,null,null,null,{"$f":"'Schedule IIF (EBS)'!L20","v":0},null,{"$f":"'Schedule IIF (EBS)'!N20","v":0}]
["Sch IIF","Other Sundry",null,"Commercial MBS - BSCR Rate 8",null,null,null,null,null,null,null,null,{"$f":"'Schedule IIF (EBS)'!L21","v":0},null,{"$f":"'Schedule IIF (EBS)'!N21","v":0}]
["Sch IIF","Other Sundry",null,"Bonds Mutual Fund - BSCR Rate 0",null,null,null,null,null,null,null,null,{"$f":"'Schedule IIF (EBS)'!P13","v":0},null,{"$f":"'Schedule IIF (EBS)'!R13","v":0}]
["Sch IIF","Other Sundry",null,"Bonds Mutual Fund - BSCR Rate 1",null,null,null,null,null,null,null,null,{"$f":"'Schedule IIF (EBS)'!P14","v":0},null,{"$f":"'Schedule IIF (EBS)'!R14","v":0}]
["Sch IIF","Other Sundry",null,"Bonds Mutual Fund - BSCR Rate 2",null,null,null,null,null,null,null,null,{"$f":"'Schedule IIF (EBS)'!P15","v":0},null,{"$f":"'Schedule IIF (EBS)'!R15","v":0}]
["Sch IIF","Other Sundry",null,"Bonds Mutual Fund - BSCR Rate 3",null,null,null,null,null,null,null,null,{"$f":"'Schedule IIF (EBS)'!P16","v":0},null,{"$f":"'Schedule IIF (EBS)'!R16","v":0}]
["Sch IIF","Other Sundry",null,"Bonds Mutual Fund - BSCR Rate 4",null,null,null,null,null,null,null,null,{"$f":"'Schedule IIF (EBS)'!P17","v":0},null,{"$f":"'Schedule IIF (EBS)'!R17","v":0}]
["Sch IIF","Other Sundry",null,"Bonds Mutual Fund - BSCR Rate 5",null,null,null,null,null,null,null,null,{"$f":"'Schedule IIF (EBS)'!P18","v":0},null,{"$f":"'Schedule IIF (EBS)'!R18","v":0}]
["Sch IIF","Other Sundry",null,"Bonds Mutual Fund - BSCR Rate 6",null,null,null,null,null,null,null,null,{"$f":"'Schedule IIF (EBS)'!P19","v":0},null,{"$f":"'Schedule IIF (EBS)'!R19","v":0}]
["Sch IIF","Other Sundry",null,"Bonds Mutual Fund - BSCR Rate 7",null,null,null,null,null,null,null,null,{"$f":"'Schedule IIF (EBS)'!P20","v":0},null,{"$f":"'Schedule IIF (EBS)'!R20","v":0}]
["Sch IIF","Other Sundry",null,"Bonds Mutual Fund - BSCR Rate 8",null,null,null,null,null,null,null,null,{"$f":"'Schedule IIF (EBS)'!P21","v":0},null,{"$f":"'Schedule IIF (EBS)'!R21","v":0}]
["Sch IIF","Other Sundry",null,"Mortgage Loans - Insured",null,null,null,null,null,null,null,null,{"$f":"'Schedule IIF (EBS)'!T22","v":0},null,{"$f":"'Schedule IIF (EBS)'!V22","v":0}]
["Sch IIF","Other Sundry",null,"Mortgage Loans - Other Commercial",null,null,null,null,null,null,null,null,{"$f":"'Schedule IIF (EBS)'!T23","v":0},null,{"$f":"'Schedule IIF (EBS)'!V23","v":0}]
["Sch IIF","Other Sundry",null,"Mortgage Loans - Other Residential",null,null,null,null,null,null,null,null,{"$f":"'Schedule IIF (EBS)'!T24","v":0},null,{"$f":"'Schedule IIF (EBS)'!V24","v":0}]
["Sch IIF","Other Sundry",null,"Mortgage Loans - Not Good Stand.",null,null,null,null,null,null,null,null,{"$f":"'Schedule IIF (EBS)'!T25","v":0},null,{"$f":"'Schedule IIF (EBS)'!V25","v":0}]
["Sch IIF","Other Sundry",null,"Long Positions - Before - Strategic Holdings - Listed",null,null,null,null,null,null,null,null,{"$f":"'Schedule IIF (EBS)'!D39","v":0}]
["Sch IIF","Other Sundry",null,"Long Positions - Before - Duration Based",null,null,null,null,null,null,null,null,{"$f":"'Schedule IIF (EBS)'!D40","v":0}]
["Sch IIF","Other Sundry",null,"Long Positions - Before - Listed Equity Securities in Developed Markets",null,null,null,null,null,null,null,null,{"$f":"'Schedule IIF (EBS)'!D41","v":0}]
["Sch IIF","Other Sundry",null,"Long Positions - Before - Preferred Stocks, BSCR Rating 1",null,null,null,null,null,null,null,null,{"$f":"'Schedule IIF (EBS)'!D42","v":0}]
["Sch IIF","Other Sundry",null,"Long Positions - Before - Preferred Stocks, BSCR Rating 2",null,null,null,null,null,null,null,null,{"$f":"'Schedule IIF (EBS)'!D43","v":0}]
["Sch IIF","Other Sundry",null,"Long Positions - Before - Preferred Stocks, BSCR Rating 3",null,null,null,null,null,null,null,null,{"$f":"'Schedule IIF (EBS)'!D44","v":0}]
["Sch IIF","Other Sundry",null,"Long Positions - Before - Preferred Stocks, BSCR Rating 4",null,null,null,null,null,null,null,null,{"$f":"'Schedule IIF (EBS)'!D45","v":0}]
["Sch IIF","Other Sundry",null,"Long Positions - Before - Preferred Stocks, BSCR Rating 5",null,null,null,null,null,null,null,null,{"$f":"'Schedule IIF (EBS)'!D46","v":0}]
["Sch IIF","Other Sundry",null,"Long Positions - Before - Preferred Stocks, BSCR Rating 6",null,null,null,null,null,null,null,null,{"$f":"'Schedule IIF (EBS)'!D47","v":0}]
["Sch IIF","Other Sundry",null,"Long Positions - Before - Preferred Stocks, BSCR Rating 7",null,null,null,null,null,null,null,null,{"$f":"'Schedule IIF (EBS)'!D48","v":0}]
["Sch IIF","Other Sundry",null,"Long Positions - Before - Preferred Stocks, BSCR Rating 8",null,null,null,null,null,null,null,null,{"$f":"'Schedule IIF (EBS)'!D49","v":0}]
["Sch IIF","Other Sundry",null,"Long Positions - Before - Equity Derivatives on Type 1 Equities",null,null,null,null,null,null,null,null,{"$f":"'Schedule IIF (EBS)'!D50","v":0}]
["Sch IIF","Other Sundry",null,"Long Positions - Before - Strategic Holdings - Unlisted",null,null,null,null,null,null,null,null,{"$f":"'Schedule IIF (EBS)'!D51","v":0}]
["Sch IIF","Other Sundry",null,"Long Positions - Before - Other Equities",null,null,null,null,null,null,null,null,{"$f":"'Schedule IIF (EBS)'!D52","v":0}]
["Sch IIF","Other Sundry",null,"Long Positions - Before - Letters of Credit",null,null,null,null,null,null,null,null,{"$f":"'Schedule IIF (EBS)'!D53","v":0}]
["Sch IIF","Other Sundry",null,"Long Positions - Before - Intangible assets",null,null,null,null,null,null,null,null,{"$f":"'Schedule IIF (EBS)'!D54","v":0}]
["Sch IIF","Other Sundry",null,"Long Positions - Before - Pension Benefit Surplus",null,null,null,null,null,null,null,null,{"$f":"'Schedule IIF (EBS)'!D55","v":0}]
["Sch IIF","Other Sundry",null,"Long Positions - Before - Equity Derivatives on Type 2 Equities",null,null,null,null,null,null,null,null,{"$f":"'Schedule IIF (EBS)'!D56","v":0}]
["Sch IIF","Other Sundry",null,"Long Positions - Before - Infrastructure",null,null,null,null,null,null,null,null,{"$f":"'Schedule IIF (EBS)'!D57","v":0}]
["Sch IIF","Other Sundry",null,"Long Positions - Before - Derivatives on Infrastructure",null,null,null,null,null,null,null,null,{"$f":"'Schedule IIF (EBS)'!D58","v":0}]
["Sch IIF","Other Sundry",null,"Long Positions - Before - Equity Real Estate 1",null,null,null,null,null,null,null,null,{"$f":"'Schedule IIF (EBS)'!D59","v":0}]
["Sch IIF","Other Sundry",null,"Long Positions - Before - Equity Real Estate 2",null,null,null,null,null,null,null,null,{"$f":"'Schedule IIF (EBS)'!D60","v":0}]
["Sch IIF","Other Sundry",null,"Long Positions - After - Strategic Holdings - Listed",null,null,null,null,null,null,null,null,{"$f":"'Schedule IIF (EBS)'!F39","v":0}]
["Sch IIF","Other Sundry",null,"Long Positions - After - Duration Based",null,null,null,null,null,null,null,null,{"$f":"'Schedule IIF (EBS)'!F40","v":0}]
["Sch IIF","Other Sundry",null,"Long Positions - After - Listed Equity Securities in Developed Markets",null,null,null,null,null,null,null,null,{"$f":"'Schedule IIF (EBS)'!F41","v":0}]
["Sch IIF","Other Sundry",null,"Long Positions - After - Preferred Stocks, BSCR Rating 1",null,null,null,null,null,null,null,null,{"$f":"'Schedule IIF (EBS)'!F42","v":0}]
["Sch IIF","Other Sundry",null,"Long Positions - After - Preferred Stocks, BSCR Rating 2",null,null,null,null,null,null,null,null,{"$f":"'Schedule IIF (EBS)'!F43","v":0}]
["Sch IIF","Other Sundry",null,"Long Positions - After - Preferred Stocks, BSCR Rating 3",null,null,null,null,null,null,null,null,{"$f":"'Schedule IIF (EBS)'!F44","v":0}]
["Sch IIF","Other Sundry",null,"Long Positions - After - Preferred Stocks, BSCR Rating 4",null,null,null,null,null,null,null,null,{"$f":"'Schedule IIF (EBS)'!F45","v":0}]
["Sch IIF","Other Sundry",null,"Long Positions - After - Preferred Stocks, BSCR Rating 5",null,null,null,null,null,null,null,null,{"$f":"'Schedule IIF (EBS)'!F46","v":0}]
["Sch IIF","Other Sundry",null,"Long Positions - After - Preferred Stocks, BSCR Rating 6",null,null,null,null,null,null,null,null,{"$f":"'Schedule IIF (EBS)'!F47","v":0}]
["Sch IIF","Other Sundry",null,"Long Positions - After - Preferred Stocks, BSCR Rating 7",null,null,null,null,null,null,null,null,{"$f":"'Schedule IIF (EBS)'!F48","v":0}]
["Sch IIF","Other Sundry",null,"Long Positions - After - Preferred Stocks, BSCR Rating 8",null,null,null,null,null,null,null,null,{"$f":"'Schedule IIF (EBS)'!F49","v":0}]
["Sch IIF","Other Sundry",null,"Long Positions - After - Equity Derivatives on Type 1 Equities",null,null,null,null,null,null,null,null,{"$f":"'Schedule IIF (EBS)'!F50","v":0}]
["Sch IIF","Other Sundry",null,"Long Positions - After - Strategic Holdings - Unlisted",null,null,null,null,null,null,null,null,{"$f":"'Schedule IIF (EBS)'!F51","v":0}]
["Sch IIF","Other Sundry",null,"Long Positions - After - Other Equities",null,null,null,null,null,null,null,null,{"$f":"'Schedule IIF (EBS)'!F52","v":0}]
["Sch IIF","Other Sundry",null,"Long Positions - After - Letters of Credit",null,null,null,null,null,null,null,null,{"$f":"'Schedule IIF (EBS)'!F53","v":0}]
["Sch IIF","Other Sundry",null,"Long Positions - After - Intangible assets",null,null,null,null,null,null,null,null,{"$f":"'Schedule IIF (EBS)'!F54","v":0}]
["Sch IIF","Other Sundry",null,"Long Positions - After - Pension Benefit Surplus",null,null,null,null,null,null,null,null,{"$f":"'Schedule IIF (EBS)'!F55","v":0}]
["Sch IIF","Other Sundry",null,"Long Positions - After - Equity Derivatives on Type 2 Equities",null,null,null,null,null,null,null,null,{"$f":"'Schedule IIF (EBS)'!F56","v":0}]
["Sch IIF","Other Sundry",null,"Long Positions - After - Infrastructure",null,null,null,null,null,null,null,null,{"$f":"'Schedule IIF (EBS)'!F57","v":0}]
["Sch IIF","Other Sundry",null,"Long Positions - After - Derivatives on Infrastructure",null,null,null,null,null,null,null,null,{"$f":"'Schedule IIF (EBS)'!F58","v":0}]
["Sch IIF","Other Sundry",null,"Long Positions - After - Equity Real Estate 1",null,null,null,null,null,null,null,null,{"$f":"'Schedule IIF (EBS)'!F59","v":0}]
["Sch IIF","Other Sundry",null,"Long Positions - After - Equity Real Estate 2",null,null,null,null,null,null,null,null,{"$f":"'Schedule IIF (EBS)'!F60","v":0}]
["Sch IIF","Other Sundry",null,"Short - Before - Qualified Assets - Strategic Holdings - Listed",null,null,null,null,null,null,null,null,{"$f":"'Schedule IIF (EBS)'!H39","v":0}]
["Sch IIF","Other Sundry",null,"Short - Before - Qualified Assets - Duration Based",null,null,null,null,null,null,null,null,{"$f":"'Schedule IIF (EBS)'!H40","v":0}]
["Sch IIF","Other Sundry",null,"Short - Before - Qualified Assets - Listed Equity Securities in Developed Markets",null,null,null,null,null,null,null,null,{"$f":"'Schedule IIF (EBS)'!H41","v":0}]
["Sch IIF","Other Sundry",null,"Short - Before - Qualified Assets - Preferred Stocks, BSCR Rating 1",null,null,null,null,null,null,null,null,{"$f":"'Schedule IIF (EBS)'!H42","v":0}]
["Sch IIF","Other Sundry",null,"Short - Before - Qualified Assets - Preferred Stocks, BSCR Rating 2",null,null,null,null,null,null,null,null,{"$f":"'Schedule IIF (EBS)'!H43","v":0}]
["Sch IIF","Other Sundry",null,"Short - Before - Qualified Assets - Preferred Stocks, BSCR Rating 3",null,null,null,null,null,null,null,null,{"$f":"'Schedule IIF (EBS)'!H44","v":0}]
["Sch IIF","Other Sundry",null,"Short - Before - Qualified Assets - Preferred Stocks, BSCR Rating 4",null,null,null,null,null,null,null,null,{"$f":"'Schedule IIF (EBS)'!H45","v":0}]
["Sch IIF","Other Sundry",null,"Short - Before - Qualified Assets - Preferred Stocks, BSCR Rating 5",null,null,null,null,null,null,null,null,{"$f":"'Schedule IIF (EBS)'!H46","v":0}]
["Sch IIF","Other Sundry",null,"Short - Before - Qualified Assets - Preferred Stocks, BSCR Rating 6",null,null,null,null,null,null,null,null,{"$f":"'Schedule IIF (EBS)'!H47","v":0}]
["Sch IIF","Other Sundry",null,"Short - Before - Qualified Assets - Preferred Stocks, BSCR Rating 7",null,null,null,null,null,null,null,null,{"$f":"'Schedule IIF (EBS)'!H48","v":0}]
["Sch IIF","Other Sundry",null,"Short - Before - Qualified Assets - Preferred Stocks, BSCR Rating 8",null,null,null,null,null,null,null,null,{"$f":"'Schedule IIF (EBS)'!H49","v":0}]
["Sch IIF","Other Sundry",null,"Short - Before - Qualified Assets - Equity Derivatives on Type 1 Equities",null,null,null,null,null,null,null,null,{"$f":"'Schedule IIF (EBS)'!H50","v":0}]
["Sch IIF","Other Sundry",null,"Short - Before - Qualified Assets - Strategic Holdings - Unlisted",null,null,null,null,null,null,null,null,{"$f":"'Schedule IIF (EBS)'!H51","v":0}]
["Sch IIF","Other Sundry",null,"Short - Before - Qualified Assets - Other Equities",null,null,null,null,null,null,null,null,{"$f":"'Schedule IIF (EBS)'!H52","v":0}]
["Sch IIF","Other Sundry",null,"Short - Before - Qualified Assets - Letters of Credit",null,null,null,null,null,null,null,null,{"$f":"'Schedule IIF (EBS)'!H53","v":0}]
["Sch IIF","Other Sundry",null,"Short - Before - Qualified Assets - Intangible assets",null,null,null,null,null,null,null,null,{"$f":"'Schedule IIF (EBS)'!H54","v":0}]
["Sch IIF","Other Sundry",null,"Short - Before - Qualified Assets - Pension Benefit Surplus",null,null,null,null,null,null,null,null,{"$f":"'Schedule IIF (EBS)'!H55","v":0}]
["Sch IIF","Other Sundry",null,"Short - Before - Qualified Assets - Equity Derivatives on Type 2 Equities",null,null,null,null,null,null,null,null,{"$f":"'Schedule IIF (EBS)'!H56","v":0}]
["Sch IIF","Other Sundry",null,"Short - Before - Qualified Assets - Infrastructure",null,null,null,null,null,null,null,null,{"$f":"'Schedule IIF (EBS)'!H57","v":0}]
["Sch IIF","Other Sundry",null,"Short - Before - Qualified Assets - Derivatives on Infrastructure",null,null,null,null,null,null,null,null,{"$f":"'Schedule IIF (EBS)'!H58","v":0}]
["Sch IIF","Other Sundry",null,"Short - Before - Qualified Assets - Equity Real Estate 1",null,null,null,null,null,null,null,null,{"$f":"'Schedule IIF (EBS)'!H59","v":0}]
["Sch IIF","Other Sundry",null,"Short - Before - Qualified Assets - Equity Real Estate 2",null,null,null,null,null,null,null,null,{"$f":"'Schedule IIF (EBS)'!H60","v":0}]
["Sch IIF","Other Sundry",null,"Short - After - Qualified Assets - Strategic Holdings - Listed",null,null,null,null,null,null,null,null,{"$f":"'Schedule IIF (EBS)'!J39","v":0}]
["Sch IIF","Other Sundry",null,"Short - After - Qualified Assets - Duration Based",null,null,null,null,null,null,null,null,{"$f":"'Schedule IIF (EBS)'!J40","v":0}]
["Sch IIF","Other Sundry",null,"Short - After - Qualified Assets - Listed Equity Securities in Developed Markets",null,null,null,null,null,null,null,null,{"$f":"'Schedule IIF (EBS)'!J41","v":0}]
["Sch IIF","Other Sundry",null,"Short - After - Qualified Assets - Preferred Stocks, BSCR Rating 1",null,null,null,null,null,null,null,null,{"$f":"'Schedule IIF (EBS)'!J42","v":0}]
["Sch IIF","Other Sundry",null,"Short - After - Qualified Assets - Preferred Stocks, BSCR Rating 2",null,null,null,null,null,null,null,null,{"$f":"'Schedule IIF (EBS)'!J43","v":0}]
["Sch IIF","Other Sundry",null,"Short - After - Qualified Assets - Preferred Stocks, BSCR Rating 3",null,null,null,null,null,null,null,null,{"$f":"'Schedule IIF (EBS)'!J44","v":0}]
["Sch IIF","Other Sundry",null,"Short - After - Qualified Assets - Preferred Stocks, BSCR Rating 4",null,null,null,null,null,null,null,null,{"$f":"'Schedule IIF (EBS)'!J45","v":0}]
["Sch IIF","Other Sundry",null,"Short - After - Qualified Assets - Preferred Stocks, BSCR Rating 5",null,null,null,null,null,null,null,null,{"$f":"'Schedule IIF (EBS)'!J46","v":0}]
["Sch IIF","Other Sundry",null,"Short - After - Qualified Assets - Preferred Stocks, BSCR Rating 6",null,null,null,null,null,null,null,null,{"$f":"'Schedule IIF (EBS)'!J47","v":0}]
["Sch IIF","Other Sundry",null,"Short - After - Qualified Assets - Preferred Stocks, BSCR Rating 7",null,null,null,null,null,null,null,null,{"$f":"'Schedule IIF (EBS)'!J48","v":0}]
["Sch IIF","Other Sundry",null,"Short - After - Qualified Assets - Preferred Stocks, BSCR Rating 8",null,null,null,null,null,null,null,null,{"$f":"'Schedule IIF (EBS)'!J49","v":0}]
["Sch IIF","Other Sundry",null,"Short - After - Qualified Assets - Equity Derivatives on Type 1 Equities",null,null,null,null,null,null,null,null,{"$f":"'Schedule IIF (EBS)'!J50","v":0}]
["Sch IIF","Other Sundry",null,"Short - After - Qualified Assets - Strategic Holdings - Unlisted",null,null,null,null,null,null,null,null,{"$f":"'Schedule IIF (EBS)'!J51","v":0}]
["Sch IIF","Other Sundry",null,"Short - After - Qualified Assets - Other Equities",null,null,null,null,null,null,null,null,{"$f":"'Schedule IIF (EBS)'!J52","v":0}]
["Sch IIF","Other Sundry",null,"Short - After - Qualified Assets - Letters of Credit",null,null,null,null,null,null,null,null,{"$f":"'Schedule IIF (EBS)'!J53","v":0}]
["Sch IIF","Other Sundry",null,"Short - After - Qualified Assets - Intangible assets",null,null,null,null,null,null,null,null,{"$f":"'Schedule IIF (EBS)'!J54","v":0}]
["Sch IIF","Other Sundry",null,"Short - After - Qualified Assets - Pension Benefit Surplus",null,null,null,null,null,null,null,null,{"$f":"'Schedule IIF (EBS)'!J55","v":0}]
["Sch IIF","Other Sundry",null,"Short - After - Qualified Assets - Equity Derivatives on Type 2 Equities",null,null,null,null,null,null,null,null,{"$f":"'Schedule IIF (EBS)'!J56","v":0}]
["Sch IIF","Other Sundry",null,"Short - After - Qualified Assets - Infrastructure",null,null,null,null,null,null,null,null,{"$f":"'Schedule IIF (EBS)'!J57","v":0}]
["Sch IIF","Other Sundry",null,"Short - After - Qualified Assets - Derivatives on Infrastructure",null,null,null,null,null,null,null,null,{"$f":"'Schedule IIF (EBS)'!J58","v":0}]
["Sch IIF","Other Sundry",null,"Short - After - Qualified Assets - Equity Real Estate 1",null,null,null,null,null,null,null,null,{"$f":"'Schedule IIF (EBS)'!J59","v":0}]
["Sch IIF","Other Sundry",null,"Short - After - Qualified Assets - Equity Real Estate 2",null,null,null,null,null,null,null,null,{"$f":"'Schedule IIF (EBS)'!J60","v":0}]
["Sch IIF","Other Sundry",null,"Short - Before - UnQualified Assets - Strategic Holdings - Listed",null,null,null,null,null,null,null,null,{"$f":"'Schedule IIF (EBS)'!L39","v":0}]
["Sch IIF","Other Sundry",null,"Short - Before - UnQualified Assets - Duration Based",null,null,null,null,null,null,null,null,{"$f":"'Schedule IIF (EBS)'!L40","v":0}]
["Sch IIF","Other Sundry",null,"Short - Before - UnQualified Assets - Listed Equity Securities in Developed Markets",null,null,null,null,null,null,null,null,{"$f":"'Schedule IIF (EBS)'!L41","v":0}]
["Sch IIF","Other Sundry",null,"Short - Before - UnQualified Assets - Preferred Stocks, BSCR Rating 1",null,null,null,null,null,null,null,null,{"$f":"'Schedule IIF (EBS)'!L42","v":0}]
["Sch IIF","Other Sundry",null,"Short - Before - UnQualified Assets - Preferred Stocks, BSCR Rating 2",null,null,null,null,null,null,null,null,{"$f":"'Schedule IIF (EBS)'!L43","v":0}]
["Sch IIF","Other Sundry",null,"Short - Before - UnQualified Assets - Preferred Stocks, BSCR Rating 3",null,null,null,null,null,null,null,null,{"$f":"'Schedule IIF (EBS)'!L44","v":0}]
["Sch IIF","Other Sundry",null,"Short - Before - UnQualified Assets - Preferred Stocks, BSCR Rating 4",null,null,null,null,null,null,null,null,{"$f":"'Schedule IIF (EBS)'!L45","v":0}]
["Sch IIF","Other Sundry",null,"Short - Before - UnQualified Assets - Preferred Stocks, BSCR Rating 5",null,null,null,null,null,null,null,null,{"$f":"'Schedule IIF (EBS)'!L46","v":0}]
["Sch IIF","Other Sundry",null,"Short - Before - UnQualified Assets - Preferred Stocks, BSCR Rating 6",null,null,null,null,null,null,null,null,{"$f":"'Schedule IIF (EBS)'!L47","v":0}]
["Sch IIF","Other Sundry",null,"Short - Before - UnQualified Assets - Preferred Stocks, BSCR Rating 7",null,null,null,null,null,null,null,null,{"$f":"'Schedule IIF (EBS)'!L48","v":0}]
["Sch IIF","Other Sundry",null,"Short - Before - UnQualified Assets - Preferred Stocks, BSCR Rating 8",null,null,null,null,null,null,null,null,{"$f":"'Schedule IIF (EBS)'!L49","v":0}]
["Sch IIF","Other Sundry",null,"Short - Before - UnQualified Assets - Equity Derivatives on Type 1 Equities",null,null,null,null,null,null,null,null,{"$f":"'Schedule IIF (EBS)'!L50","v":0}]
["Sch IIF","Other Sundry",null,"Short - Before - UnQualified Assets - Strategic Holdings - Unlisted",null,null,null,null,null,null,null,null,{"$f":"'Schedule IIF (EBS)'!L51","v":0}]
["Sch IIF","Other Sundry",null,"Short - Before - UnQualified Assets - Other Equities",null,null,null,null,null,null,null,null,{"$f":"'Schedule IIF (EBS)'!L52","v":0}]
["Sch IIF","Other Sundry",null,"Short - Before - UnQualified Assets - Letters of Credit",null,null,null,null,null,null,null,null,{"$f":"'Schedule IIF (EBS)'!L53","v":0}]
["Sch IIF","Other Sundry",null,"Short - Before - UnQualified Assets - Intangible assets",null,null,null,null,null,null,null,null,{"$f":"'Schedule IIF (EBS)'!L54","v":0}]
["Sch IIF","Other Sundry",null,"Short - Before - UnQualified Assets - Pension Benefit Surplus",null,null,null,null,null,null,null,null,{"$f":"'Schedule IIF (EBS)'!L55","v":0}]
["Sch IIF","Other Sundry",null,"Short - Before - UnQualified Assets - Equity Derivatives on Type 2 Equities",null,null,null,null,null,null,null,null,{"$f":"'Schedule IIF (EBS)'!L56","v":0}]
["Sch IIF","Other Sundry",null,"Short - Before - UnQualified Assets - Infrastructure",null,null,null,null,null,null,null,null,{"$f":"'Schedule IIF (EBS)'!L57","v":0}]
["Sch IIF","Other Sundry",null,"Short - Before - UnQualified Assets - Derivatives on Infrastructure",null,null,null,null,null,null,null,null,{"$f":"'Schedule IIF (EBS)'!L58","v":0}]
["Sch IIF","Other Sundry",null,"Short - Before - UnQualified Assets - Equity Real Estate 1",null,null,null,null,null,null,null,null,{"$f":"'Schedule IIF (EBS)'!L59","v":0}]
["Sch IIF","Other Sundry",null,"Short - Before - UnQualified Assets - Equity Real Estate 2",null,null,null,null,null,null,null,null,{"$f":"'Schedule IIF (EBS)'!L60","v":0}]
["Sch IIF","Other Sundry",null,"Short - After - UnQualified Assets - Strategic Holdings - Listed",null,null,null,null,null,null,null,null,{"$f":"'Schedule IIF (EBS)'!N39","v":0}]
["Sch IIF","Other Sundry",null,"Short - After - UnQualified Assets - Duration Based",null,null,null,null,null,null,null,null,{"$f":"'Schedule IIF (EBS)'!N40","v":0}]
["Sch IIF","Other Sundry",null,"Short - After - UnQualified Assets - Listed Equity Securities in Developed Markets",null,null,null,null,null,null,null,null,{"$f":"'Schedule IIF (EBS)'!N41","v":0}]
["Sch IIF","Other Sundry",null,"Short - After - UnQualified Assets - Preferred Stocks, BSCR Rating 1",null,null,null,null,null,null,null,null,{"$f":"'Schedule IIF (EBS)'!N42","v":0}]
["Sch IIF","Other Sundry",null,"Short - After - UnQualified Assets - Preferred Stocks, BSCR Rating 2",null,null,null,null,null,null,null,null,{"$f":"'Schedule IIF (EBS)'!N43","v":0}]
["Sch IIF","Other Sundry",null,"Short - After - UnQualified Assets - Preferred Stocks, BSCR Rating 3",null,null,null,null,null,null,null,null,{"$f":"'Schedule IIF (EBS)'!N44","v":0}]
["Sch IIF","Other Sundry",null,"Short - After - UnQualified Assets - Preferred Stocks, BSCR Rating 4",null,null,null,null,null,null,null,null,{"$f":"'Schedule IIF (EBS)'!N45","v":0}]
["Sch IIF","Other Sundry",null,"Short - After - UnQualified Assets - Preferred Stocks, BSCR Rating 5",null,null,null,null,null,null,null,null,{"$f":"'Schedule IIF (EBS)'!N46","v":0}]
["Sch IIF","Other Sundry",null,"Short - After - UnQualified Assets - Preferred Stocks, BSCR Rating 6",null,null,null,null,null,null,null,null,{"$f":"'Schedule IIF (EBS)'!N47","v":0}]
["Sch IIF","Other Sundry",null,"Short - After - UnQualified Assets - Preferred Stocks, BSCR Rating 7",null,null,null,null,null,null,null,null,{"$f":"'Schedule IIF (EBS)'!N48","v":0}]
["Sch IIF","Other Sundry",null,"Short - After - UnQualified Assets - Preferred Stocks, BSCR Rating 8",null,null,null,null,null,null,null,null,{"$f":"'Schedule IIF (EBS)'!N49","v":0}]
["Sch IIF","Other Sundry",null,"Short - After - UnQualified Assets - Equity Derivatives on Type 1 Equities",null,null,null,null,null,null,null,null,{"$f":"'Schedule IIF (EBS)'!N50","v":0}]
["Sch IIF","Other Sundry",null,"Short - After - UnQualified Assets - Strategic Holdings - Unlisted",null,null,null,null,null,null,null,null,{"$f":"'Schedule IIF (EBS)'!N51","v":0}]
["Sch IIF","Other Sundry",null,"Short - After - UnQualified Assets - Other Equities",null,null,null,null,null,null,null,null,{"$f":"'Schedule IIF (EBS)'!N52","v":0}]
["Sch IIF","Other Sundry",null,"Short - After - UnQualified Assets - Letters of Credit",null,null,null,null,null,null,null,null,{"$f":"'Schedule IIF (EBS)'!N53","v":0}]
["Sch IIF","Other Sundry",null,"Short - After - UnQualified Assets - Intangible assets",null,null,null,null,null,null,null,null,{"$f":"'Schedule IIF (EBS)'!N54","v":0}]
["Sch IIF","Other Sundry",null,"Short - After - UnQualified Assets - Pension Benefit Surplus",null,null,null,null,null,null,null,null,{"$f":"'Schedule IIF (EBS)'!N55","v":0}]
["Sch IIF","Other Sundry",null,"Short - After - UnQualified Assets - Equity Derivatives on Type 2 Equities",null,null,null,null,null,null,null,null,{"$f":"'Schedule IIF (EBS)'!N56","v":0}]
["Sch IIF","Other Sundry",null,"Short - After - UnQualified Assets - Infrastructure",null,null,null,null,null,null,null,null,{"$f":"'Schedule IIF (EBS)'!N57","v":0}]
["Sch IIF","Other Sundry",null,"Short - After - UnQualified Assets - Derivatives on Infrastructure",null,null,null,null,null,null,null,null,{"$f":"'Schedule IIF (EBS)'!N58","v":0}]
["Sch IIF","Other Sundry",null,"Short - After - UnQualified Assets - Equity Real Estate 1",null,null,null,null,null,null,null,null,{"$f":"'Schedule IIF (EBS)'!N59","v":0}]
["Sch IIF","Other Sundry",null,"Short - After - UnQualified Assets - Equity Real Estate 2",null,null,null,null,null,null,null,null,{"$f":"'Schedule IIF (EBS)'!N60","v":0}]
["Sch IIF","Other Sundry",null,"Liabilities - Before - W/O Mgmt Actions - Strategic Holdings - Listed",null,null,null,null,null,null,null,null,{"$f":"'Schedule IIF (EBS)'!P39","v":0}]
["Sch IIF","Other Sundry",null,"Liabilities - Before - W/O Mgmt Actions - Duration Based",null,null,null,null,null,null,null,null,{"$f":"'Schedule IIF (EBS)'!P40","v":0}]
["Sch IIF","Other Sundry",null,"Liabilities - Before - W/O Mgmt Actions - Listed Equity Securities in Developed Markets",null,null,null,null,null,null,null,null,{"$f":"'Schedule IIF (EBS)'!P41","v":0}]
["Sch IIF","Other Sundry",null,"Liabilities - Before - W/O Mgmt Actions - Preferred Stocks, BSCR Rating 1",null,null,null,null,null,null,null,null,{"$f":"'Schedule IIF (EBS)'!P42","v":0}]
["Sch IIF","Other Sundry",null,"Liabilities - Before - W/O Mgmt Actions - Preferred Stocks, BSCR Rating 2",null,null,null,null,null,null,null,null,{"$f":"'Schedule IIF (EBS)'!P43","v":0}]
["Sch IIF","Other Sundry",null,"Liabilities - Before - W/O Mgmt Actions - Preferred Stocks, BSCR Rating 3",null,null,null,null,null,null,null,null,{"$f":"'Schedule IIF (EBS)'!P44","v":0}]
["Sch IIF","Other Sundry",null,"Liabilities - Before - W/O Mgmt Actions - Preferred Stocks, BSCR Rating 4",null,null,null,null,null,null,null,null,{"$f":"'Schedule IIF (EBS)'!P45","v":0}]
["Sch IIF","Other Sundry",null,"Liabilities - Before - W/O Mgmt Actions - Preferred Stocks, BSCR Rating 5",null,null,null,null,null,null,null,null,{"$f":"'Schedule IIF (EBS)'!P46","v":0}]
["Sch IIF","Other Sundry",null,"Liabilities - Before - W/O Mgmt Actions - Preferred Stocks, BSCR Rating 6",null,null,null,null,null,null,null,null,{"$f":"'Schedule IIF (EBS)'!P47","v":0}]
["Sch IIF","Other Sundry",null,"Liabilities - Before - W/O Mgmt Actions - Preferred Stocks, BSCR Rating 7",null,null,null,null,null,null,null,null,{"$f":"'Schedule IIF (EBS)'!P48","v":0}]
["Sch IIF","Other Sundry",null,"Liabilities - Before - W/O Mgmt Actions - Preferred Stocks, BSCR Rating 8",null,null,null,null,null,null,null,null,{"$f":"'Schedule IIF (EBS)'!P49","v":0}]
["Sch IIF","Other Sundry",null,"Liabilities - Before - W/O Mgmt Actions - Equity Derivatives on Type 1 Equities",null,null,null,null,null,null,null,null,{"$f":"'Schedule IIF (EBS)'!P50","v":0}]
["Sch IIF","Other Sundry",null,"Liabilities - Before - W/O Mgmt Actions - Strategic Holdings - Unlisted",null,null,null,null,null,null,null,null,{"$f":"'Schedule IIF (EBS)'!P51","v":0}]
["Sch IIF","Other Sundry",null,"Liabilities - Before - W/O Mgmt Actions - Other Equities",null,null,null,null,null,null,null,null,{"$f":"'Schedule IIF (EBS)'!P52","v":0}]
["Sch IIF","Other Sundry",null,"Liabilities - Before - W/O Mgmt Actions - Letters of Credit",null,null,null,null,null,null,null,null,{"$f":"'Schedule IIF (EBS)'!P53","v":0}]
["Sch IIF","Other Sundry",null,"Liabilities - Before - W/O Mgmt Actions - Intangible assets",null,null,null,null,null,null,null,null,{"$f":"'Schedule IIF (EBS)'!P54","v":0}]
["Sch IIF","Other Sundry",null,"Liabilities - Before - W/O Mgmt Actions - Pension Benefit Surplus",null,null,null,null,null,null,null,null,{"$f":"'Schedule IIF (EBS)'!P55","v":0}]
["Sch IIF","Other Sundry",null,"Liabilities - Before - W/O Mgmt Actions - Equity Derivatives on Type 2 Equities",null,null,null,null,null,null,null,null,{"$f":"'Schedule IIF (EBS)'!P56","v":0}]
["Sch IIF","Other Sundry",null,"Liabilities - Before - W/O Mgmt Actions - Infrastructure",null,null,null,null,null,null,null,null,{"$f":"'Schedule IIF (EBS)'!P57","v":0}]
["Sch IIF","Other Sundry",null,"Liabilities - Before - W/O Mgmt Actions - Derivatives on Infrastructure",null,null,null,null,null,null,null,null,{"$f":"'Schedule IIF (EBS)'!P58","v":0}]
["Sch IIF","Other Sundry",null,"Liabilities - Before - W/O Mgmt Actions - Equity Real Estate 1",null,null,null,null,null,null,null,null,{"$f":"'Schedule IIF (EBS)'!P59","v":0}]
["Sch IIF","Other Sundry",null,"Liabilities - Before - W/O Mgmt Actions - Equity Real Estate 2",null,null,null,null,null,null,null,null,{"$f":"'Schedule IIF (EBS)'!P60","v":0}]
["Sch IIF","Other Sundry",null,"Liabilities - After - W/O Mgmt Actions - Strategic Holdings - Listed",null,null,null,null,null,null,null,null,{"$f":"'Schedule IIF (EBS)'!R39","v":0}]
["Sch IIF","Other Sundry",null,"Liabilities - After - W/O Mgmt Actions - Duration Based",null,null,null,null,null,null,null,null,{"$f":"'Schedule IIF (EBS)'!R40","v":0}]
["Sch IIF","Other Sundry",null,"Liabilities - After - W/O Mgmt Actions - Listed Equity Securities in Developed Markets",null,null,null,null,null,null,null,null,{"$f":"'Schedule IIF (EBS)'!R41","v":0}]
["Sch IIF","Other Sundry",null,"Liabilities - After - W/O Mgmt Actions - Preferred Stocks, BSCR Rating 1",null,null,null,null,null,null,null,null,{"$f":"'Schedule IIF (EBS)'!R42","v":0}]
["Sch IIF","Other Sundry",null,"Liabilities - After - W/O Mgmt Actions - Preferred Stocks, BSCR Rating 2",null,null,null,null,null,null,null,null,{"$f":"'Schedule IIF (EBS)'!R43","v":0}]
["Sch IIF","Other Sundry",null,"Liabilities - After - W/O Mgmt Actions - Preferred Stocks, BSCR Rating 3",null,null,null,null,null,null,null,null,{"$f":"'Schedule IIF (EBS)'!R44","v":0}]
["Sch IIF","Other Sundry",null,"Liabilities - After - W/O Mgmt Actions - Preferred Stocks, BSCR Rating 4",null,null,null,null,null,null,null,null,{"$f":"'Schedule IIF (EBS)'!R45","v":0}]
["Sch IIF","Other Sundry",null,"Liabilities - After - W/O Mgmt Actions - Preferred Stocks, BSCR Rating 5",null,null,null,null,null,null,null,null,{"$f":"'Schedule IIF (EBS)'!R46","v":0}]
["Sch IIF","Other Sundry",null,"Liabilities - After - W/O Mgmt Actions - Preferred Stocks, BSCR Rating 6",null,null,null,null,null,null,null,null,{"$f":"'Schedule IIF (EBS)'!R47","v":0}]
["Sch IIF","Other Sundry",null,"Liabilities - After - W/O Mgmt Actions - Preferred Stocks, BSCR Rating 7",null,null,null,null,null,null,null,null,{"$f":"'Schedule IIF (EBS)'!R48","v":0}]
["Sch IIF","Other Sundry",null,"Liabilities - After - W/O Mgmt Actions - Preferred Stocks, BSCR Rating 8",null,null,null,null,null,null,null,null,{"$f":"'Schedule IIF (EBS)'!R49","v":0}]
["Sch IIF","Other Sundry",null,"Liabilities - After - W/O Mgmt Actions - Equity Derivatives on Type 1 Equities",null,null,null,null,null,null,null,null,{"$f":"'Schedule IIF (EBS)'!R50","v":0}]
["Sch IIF","Other Sundry",null,"Liabilities - After - W/O Mgmt Actions - Strategic Holdings - Unlisted",null,null,null,null,null,null,null,null,{"$f":"'Schedule IIF (EBS)'!R51","v":0}]
["Sch IIF","Other Sundry",null,"Liabilities - After - W/O Mgmt Actions - Other Equities",null,null,null,null,null,null,null,null,{"$f":"'Schedule IIF (EBS)'!R52","v":0}]
["Sch IIF","Other Sundry",null,"Liabilities - After - W/O Mgmt Actions - Letters of Credit",null,null,null,null,null,null,null,null,{"$f":"'Schedule IIF (EBS)'!R53","v":0}]
["Sch IIF","Other Sundry",null,"Liabilities - After - W/O Mgmt Actions - Intangible assets",null,null,null,null,null,null,null,null,{"$f":"'Schedule IIF (EBS)'!R54","v":0}]
["Sch IIF","Other Sundry",null,"Liabilities - After - W/O Mgmt Actions - Pension Benefit Surplus",null,null,null,null,null,null,null,null,{"$f":"'Schedule IIF (EBS)'!R55","v":0}]
["Sch IIF","Other Sundry",null,"Liabilities - After - W/O Mgmt Actions - Equity Derivatives on Type 2 Equities",null,null,null,null,null,null,null,null,{"$f":"'Schedule IIF (EBS)'!R56","v":0}]
["Sch IIF","Other Sundry",null,"Liabilities - After - W/O Mgmt Actions - Infrastructure",null,null,null,null,null,null,null,null,{"$f":"'Schedule IIF (EBS)'!R57","v":0}]
["Sch IIF","Other Sundry",null,"Liabilities - After - W/O Mgmt Actions - Derivatives on Infrastructure",null,null,null,null,null,null,null,null,{"$f":"'Schedule IIF (EBS)'!R58","v":0}]
["Sch IIF","Other Sundry",null,"Liabilities - After - W/O Mgmt Actions - Equity Real Estate 1",null,null,null,null,null,null,null,null,{"$f":"'Schedule IIF (EBS)'!R59","v":0}]
["Sch IIF","Other Sundry",null,"Liabilities - After - W/O Mgmt Actions - Equity Real Estate 2",null,null,null,null,null,null,null,null,{"$f":"'Schedule IIF (EBS)'!R60","v":0}]
["Sch IIF","Other Sundry",null,"Liabilities - After - With Mgmt Actions - Strategic Holdings - Listed",null,null,null,null,null,null,null,null,{"$f":"'Schedule IIF (EBS)'!T39","v":0}]
["Sch IIF","Other Sundry",null,"Liabilities - After - With Mgmt Actions - Duration Based",null,null,null,null,null,null,null,null,{"$f":"'Schedule IIF (EBS)'!T40","v":0}]
["Sch IIF","Other Sundry",null,"Liabilities - After - With Mgmt Actions - Listed Equity Securities in Developed Markets",null,null,null,null,null,null,null,null,{"$f":"'Schedule IIF (EBS)'!T41","v":0}]
["Sch IIF","Other Sundry",null,"Liabilities - After - With Mgmt Actions - Preferred Stocks, BSCR Rating 1",null,null,null,null,null,null,null,null,{"$f":"'Schedule IIF (EBS)'!T42","v":0}]
["Sch IIF","Other Sundry",null,"Liabilities - After - With Mgmt Actions - Preferred Stocks, BSCR Rating 2",null,null,null,null,null,null,null,null,{"$f":"'Schedule IIF (EBS)'!T43","v":0}]
["Sch IIF","Other Sundry",null,"Liabilities - After - With Mgmt Actions - Preferred Stocks, BSCR Rating 3",null,null,null,null,null,null,null,null,{"$f":"'Schedule IIF (EBS)'!T44","v":0}]
["Sch IIF","Other Sundry",null,"Liabilities - After - With Mgmt Actions - Preferred Stocks, BSCR Rating 4",null,null,null,null,null,null,null,null,{"$f":"'Schedule IIF (EBS)'!T45","v":0}]
["Sch IIF","Other Sundry",null,"Liabilities - After - With Mgmt Actions - Preferred Stocks, BSCR Rating 5",null,null,null,null,null,null,null,null,{"$f":"'Schedule IIF (EBS)'!T46","v":0}]
["Sch IIF","Other Sundry",null,"Liabilities - After - With Mgmt Actions - Preferred Stocks, BSCR Rating 6",null,null,null,null,null,null,null,null,{"$f":"'Schedule IIF (EBS)'!T47","v":0}]
["Sch IIF","Other Sundry",null,"Liabilities - After - With Mgmt Actions - Preferred Stocks, BSCR Rating 7",null,null,null,null,null,null,null,null,{"$f":"'Schedule IIF (EBS)'!T48","v":0}]
["Sch IIF","Other Sundry",null,"Liabilities - After - With Mgmt Actions - Preferred Stocks, BSCR Rating 8",null,null,null,null,null,null,null,null,{"$f":"'Schedule IIF (EBS)'!T49","v":0}]
["Sch IIF","Other Sundry",null,"Liabilities - After - With Mgmt Actions - Equity Derivatives on Type 1 Equities",null,null,null,null,null,null,null,null,{"$f":"'Schedule IIF (EBS)'!T50","v":0}]
["Sch IIF","Other Sundry",null,"Liabilities - After - With Mgmt Actions - Strategic Holdings - Unlisted",null,null,null,null,null,null,null,null,{"$f":"'Schedule IIF (EBS)'!T51","v":0}]
["Sch IIF","Other Sundry",null,"Liabilities - After - With Mgmt Actions - Other Equities",null,null,null,null,null,null,null,null,{"$f":"'Schedule IIF (EBS)'!T52","v":0}]
["Sch IIF","Other Sundry",null,"Liabilities - After - With Mgmt Actions - Letters of Credit",null,null,null,null,null,null,null,null,{"$f":"'Schedule IIF (EBS)'!T53","v":0}]
["Sch IIF","Other Sundry",null,"Liabilities - After - With Mgmt Actions - Intangible assets",null,null,null,null,null,null,null,null,{"$f":"'Schedule IIF (EBS)'!T54","v":0}]
["Sch IIF","Other Sundry",null,"Liabilities - After - With Mgmt Actions - Pension Benefit Surplus",null,null,null,null,null,null,null,null,{"$f":"'Schedule IIF (EBS)'!T55","v":0}]
["Sch IIF","Other Sundry",null,"Liabilities - After - With Mgmt Actions - Equity Derivatives on Type 2 Equities",null,null,null,null,null,null,null,null,{"$f":"'Schedule IIF (EBS)'!T56","v":0}]
["Sch IIF","Other Sundry",null,"Liabilities - After - With Mgmt Actions - Infrastructure",null,null,null,null,null,null,null,null,{"$f":"'Schedule IIF (EBS)'!T57","v":0}]
["Sch IIF","Other Sundry",null,"Liabilities - After - With Mgmt Actions - Derivatives on Infrastructure",null,null,null,null,null,null,null,null,{"$f":"'Schedule IIF (EBS)'!T58","v":0}]
["Sch IIF","Other Sundry",null,"Liabilities - After - With Mgmt Actions - Equity Real Estate 1",null,null,null,null,null,null,null,null,{"$f":"'Schedule IIF (EBS)'!T59","v":0}]
["Sch IIF","Other Sundry",null,"Liabilities - After - With Mgmt Actions - Equity Real Estate 2",null,null,null,null,null,null,null,null,{"$f":"'Schedule IIF (EBS)'!T60","v":0}]
["Sch IIF","Other Sundry",null,"Credit Derivatives - Up - Before - Long-Rating 0",null,null,null,null,null,null,null,null,{"$f":"'Schedule IIF (EBS)'!D68","v":0}]
["Sch IIF","Other Sundry",null,"Credit Derivatives - Up - Before - Long-Rating 1",null,null,null,null,null,null,null,null,{"$f":"'Schedule IIF (EBS)'!D69","v":0}]
["Sch IIF","Other Sundry",null,"Credit Derivatives - Up - Before - Long-Rating 2",null,null,null,null,null,null,null,null,{"$f":"'Schedule IIF (EBS)'!D70","v":0}]
["Sch IIF","Other Sundry",null,"Credit Derivatives - Up - Before - Long-Rating 3",null,null,null,null,null,null,null,null,{"$f":"'Schedule IIF (EBS)'!D71","v":0}]
["Sch IIF","Other Sundry",null,"Credit Derivatives - Up - Before - Long-Rating 4",null,null,null,null,null,null,null,null,{"$f":"'Schedule IIF (EBS)'!D72","v":0}]
["Sch IIF","Other Sundry",null,"Credit Derivatives - Up - Before - Long-Rating 5",null,null,null,null,null,null,null,null,{"$f":"'Schedule IIF (EBS)'!D73","v":0}]
["Sch IIF","Other Sundry",null,"Credit Derivatives - Up - Before - Long-Rating 6",null,null,null,null,null,null,null,null,{"$f":"'Schedule IIF (EBS)'!D74","v":0}]
["Sch IIF","Other Sundry",null,"Credit Derivatives - Up - Before - Long-Rating 7",null,null,null,null,null,null,null,null,{"$f":"'Schedule IIF (EBS)'!D75","v":0}]
["Sch IIF","Other Sundry",null,"Credit Derivatives - Up - Before - Long-Rating 8",null,null,null,null,null,null,null,null,{"$f":"'Schedule IIF (EBS)'!D76","v":0}]
["Sch IIF","Other Sundry",null,"Credit Derivatives - Up - After - Long- Rating 0",null,null,null,null,null,null,null,null,{"$f":"'Schedule IIF (EBS)'!F68","v":0}]
["Sch IIF","Other Sundry",null,"Credit Derivatives - Up - After - Long- Rating 1",null,null,null,null,null,null,null,null,{"$f":"'Schedule IIF (EBS)'!F69","v":0}]
["Sch IIF","Other Sundry",null,"Credit Derivatives - Up - After - Long- Rating 2",null,null,null,null,null,null,null,null,{"$f":"'Schedule IIF (EBS)'!F70","v":0}]
["Sch IIF","Other Sundry",null,"Credit Derivatives - Up - After - Long- Rating 3",null,null,null,null,null,null,null,null,{"$f":"'Schedule IIF (EBS)'!F71","v":0}]
["Sch IIF","Other Sundry",null,"Credit Derivatives - Up - After - Long- Rating 4",null,null,null,null,null,null,null,null,{"$f":"'Schedule IIF (EBS)'!F72","v":0}]
["Sch IIF","Other Sundry",null,"Credit Derivatives - Up - After - Long- Rating 5",null,null,null,null,null,null,null,null,{"$f":"'Schedule IIF (EBS)'!F73","v":0}]
["Sch IIF","Other Sundry",null,"Credit Derivatives - Up - After - Long- Rating 6",null,null,null,null,null,null,null,null,{"$f":"'Schedule IIF (EBS)'!F74","v":0}]
["Sch IIF","Other Sundry",null,"Credit Derivatives - Up - After - Long- Rating 7",null,null,null,null,null,null,null,null,{"$f":"'Schedule IIF (EBS)'!F75","v":0}]
["Sch IIF","Other Sundry",null,"Credit Derivatives - Up - After - Long- Rating 8",null,null,null,null,null,null,null,null,{"$f":"'Schedule IIF (EBS)'!F76","v":0}]
["Sch IIF","Other Sundry",null,"Credit Derivatives - Up - Before - Short- Rating 0",null,null,null,null,null,null,null,null,{"$f":"'Schedule IIF (EBS)'!H68","v":0}]
["Sch IIF","Other Sundry",null,"Credit Derivatives - Up - Before - Short- Rating 1",null,null,null,null,null,null,null,null,{"$f":"'Schedule IIF (EBS)'!H69","v":0}]
["Sch IIF","Other Sundry",null,"Credit Derivatives - Up - Before - Short- Rating 2",null,null,null,null,null,null,null,null,{"$f":"'Schedule IIF (EBS)'!H70","v":0}]
["Sch IIF","Other Sundry",null,"Credit Derivatives - Up - Before - Short- Rating 3",null,null,null,null,null,null,null,null,{"$f":"'Schedule IIF (EBS)'!H71","v":0}]
["Sch IIF","Other Sundry",null,"Credit Derivatives - Up - Before - Short- Rating 4",null,null,null,null,null,null,null,null,{"$f":"'Schedule IIF (EBS)'!H72","v":0}]
["Sch IIF","Other Sundry",null,"Credit Derivatives - Up - Before - Short- Rating 5",null,null,null,null,null,null,null,null,{"$f":"'Schedule IIF (EBS)'!H73","v":0}]
["Sch IIF","Other Sundry",null,"Credit Derivatives - Up - Before - Short- Rating 6",null,null,null,null,null,null,null,null,{"$f":"'Schedule IIF (EBS)'!H74","v":0}]
["Sch IIF","Other Sundry",null,"Credit Derivatives - Up - Before - Short- Rating 7",null,null,null,null,null,null,null,null,{"$f":"'Schedule IIF (EBS)'!H75","v":0}]
["Sch IIF","Other Sundry",null,"Credit Derivatives - Up - Before - Short- Rating 8",null,null,null,null,null,null,null,null,{"$f":"'Schedule IIF (EBS)'!H76","v":0}]
["Sch IIF","Other Sundry",null,"Credit Derivatives - Up - After - Short- Rating 0",null,null,null,null,null,null,null,null,{"$f":"'Schedule IIF (EBS)'!J68","v":0}]
["Sch IIF","Other Sundry",null,"Credit Derivatives - Up - After - Short- Rating 1",null,null,null,null,null,null,null,null,{"$f":"'Schedule IIF (EBS)'!J69","v":0}]
["Sch IIF","Other Sundry",null,"Credit Derivatives - Up - After - Short- Rating 2",null,null,null,null,null,null,null,null,{"$f":"'Schedule IIF (EBS)'!J70","v":0}]
["Sch IIF","Other Sundry",null,"Credit Derivatives - Up - After - Short- Rating 3",null,null,null,null,null,null,null,null,{"$f":"'Schedule IIF (EBS)'!J71","v":0}]
["Sch IIF","Other Sundry",null,"Credit Derivatives - Up - After - Short- Rating 4",null,null,null,null,null,null,null,null,{"$f":"'Schedule IIF (EBS)'!J72","v":0}]
["Sch IIF","Other Sundry",null,"Credit Derivatives - Up - After - Short- Rating 5",null,null,null,null,null,null,null,null,{"$f":"'Schedule IIF (EBS)'!J73","v":0}]
["Sch IIF","Other Sundry",null,"Credit Derivatives - Up - After - Short- Rating 6",null,null,null,null,null,null,null,null,{"$f":"'Schedule IIF (EBS)'!J74","v":0}]
["Sch IIF","Other Sundry",null,"Credit Derivatives - Up - After - Short- Rating 7",null,null,null,null,null,null,null,null,{"$f":"'Schedule IIF (EBS)'!J75","v":0}]
["Sch IIF","Other Sundry",null,"Credit Derivatives - Up - After - Short- Rating 8",null,null,null,null,null,null,null,null,{"$f":"'Schedule IIF (EBS)'!J76","v":0}]
["Sch IIF","Other Sundry",null,"Credit Derivatives - Down - Before - Long-Rating 0",null,null,null,null,null,null,null,null,{"$f":"'Schedule IIF (EBS)'!N68","v":0}]
["Sch IIF","Other Sundry",null,"Credit Derivatives - Down - Before - Long-Rating 1",null,null,null,null,null,null,null,null,{"$f":"'Schedule IIF (EBS)'!N69","v":0}]
["Sch IIF","Other Sundry",null,"Credit Derivatives - Down - Before - Long-Rating 2",null,null,null,null,null,null,null,null,{"$f":"'Schedule IIF (EBS)'!N70","v":0}]
["Sch IIF","Other Sundry",null,"Credit Derivatives - Down - Before - Long-Rating 3",null,null,null,null,null,null,null,null,{"$f":"'Schedule IIF (EBS)'!N71","v":0}]
["Sch IIF","Other Sundry",null,"Credit Derivatives - Down - Before - Long-Rating 4",null,null,null,null,null,null,null,null,{"$f":"'Schedule IIF (EBS)'!N72","v":0}]
["Sch IIF","Other Sundry",null,"Credit Derivatives - Down - Before - Long-Rating 5",null,null,null,null,null,null,null,null,{"$f":"'Schedule IIF (EBS)'!N73","v":0}]
["Sch IIF","Other Sundry",null,"Credit Derivatives - Down - Before - Long-Rating 6",null,null,null,null,null,null,null,null,{"$f":"'Schedule IIF (EBS)'!N74","v":0}]
["Sch IIF","Other Sundry",null,"Credit Derivatives - Down - Before - Long-Rating 7",null,null,null,null,null,null,null,null,{"$f":"'Schedule IIF (EBS)'!N75","v":0}]
["Sch IIF","Other Sundry",null,"Credit Derivatives - Down - Before - Long-Rating 8",null,null,null,null,null,null,null,null,{"$f":"'Schedule IIF (EBS)'!N76","v":0}]
["Sch IIF","Other Sundry",null,"Credit Derivatives - Down - After - Long- Rating 0",null,null,null,null,null,null,null,null,{"$f":"'Schedule IIF (EBS)'!P68","v":0}]
["Sch IIF","Other Sundry",null,"Credit Derivatives - Down - After - Long- Rating 1",null,null,null,null,null,null,null,null,{"$f":"'Schedule IIF (EBS)'!P69","v":0}]
["Sch IIF","Other Sundry",null,"Credit Derivatives - Down - After - Long- Rating 2",null,null,null,null,null,null,null,null,{"$f":"'Schedule IIF (EBS)'!P70","v":0}]
["Sch IIF","Other Sundry",null,"Credit Derivatives - Down - After - Long- Rating 3",null,null,null,null,null,null,null,null,{"$f":"'Schedule IIF (EBS)'!P71","v":0}]
["Sch IIF","Other Sundry",null,"Credit Derivatives - Down - After - Long- Rating 4",null,null,null,null,null,null,null,null,{"$f":"'Schedule IIF (EBS)'!P72","v":0}]
["Sch IIF","Other Sundry",null,"Credit Derivatives - Down - After - Long- Rating 5",null,null,null,null,null,null,null,null,{"$f":"'Schedule IIF (EBS)'!P73","v":0}]
["Sch IIF","Other Sundry",null,"Credit Derivatives - Down - After - Long- Rating 6",null,null,null,null,null,null,null,null,{"$f":"'Schedule IIF (EBS)'!P74","v":0}]
["Sch IIF","Other Sundry",null,"Credit Derivatives - Down - After - Long- Rating 7",null,null,null,null,null,null,null,null,{"$f":"'Schedule IIF (EBS)'!P75","v":0}]
["Sch IIF","Other Sundry",null,"Credit Derivatives - Down - After - Long- Rating 8",null,null,null,null,null,null,null,null,{"$f":"'Schedule IIF (EBS)'!P76","v":0}]
["Sch IIF","Other Sundry",null,"Credit Derivatives - Down - Before - Short- Rating 0",null,null,null,null,null,null,null,null,{"$f":"'Schedule IIF (EBS)'!R68","v":0}]
["Sch IIF","Other Sundry",null,"Credit Derivatives - Down - Before - Short- Rating 1",null,null,null,null,null,null,null,null,{"$f":"'Schedule IIF (EBS)'!R69","v":0}]
["Sch IIF","Other Sundry",null,"Credit Derivatives - Down - Before - Short- Rating 2",null,null,null,null,null,null,null,null,{"$f":"'Schedule IIF (EBS)'!R70","v":0}]
["Sch IIF","Other Sundry",null,"Credit Derivatives - Down - Before - Short- Rating 3",null,null,null,null,null,null,null,null,{"$f":"'Schedule IIF (EBS)'!R71","v":0}]
["Sch IIF","Other Sundry",null,"Credit Derivatives - Down - Before - Short- Rating 4",null,null,null,null,null,null,null,null,{"$f":"'Schedule IIF (EBS)'!R72","v":0}]
["Sch IIF","Other Sundry",null,"Credit Derivatives - Down - Before - Short- Rating 5",null,null,null,null,null,null,null,null,{"$f":"'Schedule IIF (EBS)'!R73","v":0}]
["Sch IIF","Other Sundry",null,"Credit Derivatives - Down - Before - Short- Rating 6",null,null,null,null,null,null,null,null,{"$f":"'Schedule IIF (EBS)'!R74","v":0}]
["Sch IIF","Other Sundry",null,"Credit Derivatives - Down - Before - Short- Rating 7",null,null,null,null,null,null,null,null,{"$f":"'Schedule IIF (EBS)'!R75","v":0}]
["Sch IIF","Other Sundry",null,"Credit Derivatives - Down - Before - Short- Rating 8",null,null,null,null,null,null,null,null,{"$f":"'Schedule IIF (EBS)'!R76","v":0}]
["Sch IIF","Other Sundry",null,"Credit Derivatives - Down - After - Short- Rating 0",null,null,null,null,null,null,null,null,{"$f":"'Schedule IIF (EBS)'!T68","v":0}]
["Sch IIF","Other Sundry",null,"Credit Derivatives - Down - After - Short- Rating 1",null,null,null,null,null,null,null,null,{"$f":"'Schedule IIF (EBS)'!T69","v":0}]
["Sch IIF","Other Sundry",null,"Credit Derivatives - Down - After - Short- Rating 2",null,null,null,null,null,null,null,null,{"$f":"'Schedule IIF (EBS)'!T70","v":0}]
["Sch IIF","Other Sundry",null,"Credit Derivatives - Down - After - Short- Rating 3",null,null,null,null,null,null,null,null,{"$f":"'Schedule IIF (EBS)'!T71","v":0}]
["Sch IIF","Other Sundry",null,"Credit Derivatives - Down - After - Short- Rating 4",null,null,null,null,null,null,null,null,{"$f":"'Schedule IIF (EBS)'!T72","v":0}]
["Sch IIF","Other Sundry",null,"Credit Derivatives - Down - After - Short- Rating 5",null,null,null,null,null,null,null,null,{"$f":"'Schedule IIF (EBS)'!T73","v":0}]
["Sch IIF","Other Sundry",null,"Credit Derivatives - Down - After - Short- Rating 6",null,null,null,null,null,null,null,null,{"$f":"'Schedule IIF (EBS)'!T74","v":0}]
["Sch IIF","Other Sundry",null,"Credit Derivatives - Down - After - Short- Rating 7",null,null,null,null,null,null,null,null,{"$f":"'Schedule IIF (EBS)'!T75","v":0}]
["Sch IIF","Other Sundry",null,"Credit Derivatives - Down - After - Short- Rating 8",null,null,null,null,null,null,null,null,{"$f":"'Schedule IIF (EBS)'!T76","v":0}]
["Sch IIF","Other Sundry",null,"Counterparty Default Risk - MV of Derivatives - MV Positive - Rating 0",null,null,null,null,null,null,null,null,{"$f":"'Schedule IIF (EBS)'!D84","v":0}]
["Sch IIF","Other Sundry",null,"Counterparty Default Risk - MV of Derivatives - MV Positive - Rating 1",null,null,null,null,null,null,null,null,{"$f":"'Schedule IIF (EBS)'!D85","v":0}]
["Sch IIF","Other Sundry",null,"Counterparty Default Risk - MV of Derivatives - MV Positive - Rating 2",null,null,null,null,null,null,null,null,{"$f":"'Schedule IIF (EBS)'!D86","v":0}]
["Sch IIF","Other Sundry",null,"Counterparty Default Risk - MV of Derivatives - MV Positive - Rating 3",null,null,null,null,null,null,null,null,{"$f":"'Schedule IIF (EBS)'!D87","v":0}]
["Sch IIF","Other Sundry",null,"Counterparty Default Risk - MV of Derivatives - MV Positive - Rating 4",null,null,null,null,null,null,null,null,{"$f":"'Schedule IIF (EBS)'!D88","v":0}]
["Sch IIF","Other Sundry",null,"Counterparty Default Risk - MV of Derivatives - MV Positive - Rating 5",null,null,null,null,null,null,null,null,{"$f":"'Schedule IIF (EBS)'!D89","v":0}]
["Sch IIF","Other Sundry",null,"Counterparty Default Risk - MV of Derivatives - MV Positive - Rating 6",null,null,null,null,null,null,null,null,{"$f":"'Schedule IIF (EBS)'!D90","v":0}]
["Sch IIF","Other Sundry",null,"Counterparty Default Risk - MV of Derivatives - MV Positive - Rating 7",null,null,null,null,null,null,null,null,{"$f":"'Schedule IIF (EBS)'!D91","v":0}]
["Sch IIF","Other Sundry",null,"Counterparty Default Risk - MV of Derivatives - MV Positive - Rating 8",null,null,null,null,null,null,null,null,{"$f":"'Schedule IIF (EBS)'!D92","v":0}]
["Sch IIF","Other Sundry",null,"Counterparty Default Risk - MV of Derivatives - MV Negative - Rating 0",null,null,null,null,null,null,null,null,{"$f":"'Schedule IIF (EBS)'!F84","v":0}]
["Sch IIF","Other Sundry",null,"Counterparty Default Risk - MV of Derivatives - MV Negative - Rating 1",null,null,null,null,null,null,null,null,{"$f":"'Schedule IIF (EBS)'!F85","v":0}]
["Sch IIF","Other Sundry",null,"Counterparty Default Risk - MV of Derivatives - MV Negative - Rating 2",null,null,null,null,null,null,null,null,{"$f":"'Schedule IIF (EBS)'!F86","v":0}]
["Sch IIF","Other Sundry",null,"Counterparty Default Risk - MV of Derivatives - MV Negative - Rating 3",null,null,null,null,null,null,null,null,{"$f":"'Schedule IIF (EBS)'!F87","v":0}]
["Sch IIF","Other Sundry",null,"Counterparty Default Risk - MV of Derivatives - MV Negative - Rating 4",null,null,null,null,null,null,null,null,{"$f":"'Schedule IIF (EBS)'!F88","v":0}]
["Sch IIF","Other Sundry",null,"Counterparty Default Risk - MV of Derivatives - MV Negative - Rating 5",null,null,null,null,null,null,null,null,{"$f":"'Schedule IIF (EBS)'!F89","v":0}]
["Sch IIF","Other Sundry",null,"Counterparty Default Risk - MV of Derivatives - MV Negative - Rating 6",null,null,null,null,null,null,null,null,{"$f":"'Schedule IIF (EBS)'!F90","v":0}]
["Sch IIF","Other Sundry",null,"Counterparty Default Risk - MV of Derivatives - MV Negative - Rating 7",null,null,null,null,null,null,null,null,{"$f":"'Schedule IIF (EBS)'!F91","v":0}]
["Sch IIF","Other Sundry",null,"Counterparty Default Risk - MV of Derivatives - MV Negative - Rating 8",null,null,null,null,null,null,null,null,{"$f":"'Schedule IIF (EBS)'!F92","v":0}]
["Sch IIF","Other Sundry",null,"Counterparty Default Risk - MV of Collateral - Rating 0",null,null,null,null,null,null,null,null,{"$f":"'Schedule IIF (EBS)'!H84","v":0}]
["Sch IIF","Other Sundry",null,"Counterparty Default Risk - MV of Collateral - Rating 1",null,null,null,null,null,null,null,null,{"$f":"'Schedule IIF (EBS)'!H85","v":0}]
["Sch IIF","Other Sundry",null,"Counterparty Default Risk - MV of Collateral - Rating 2",null,null,null,null,null,null,null,null,{"$f":"'Schedule IIF (EBS)'!H86","v":0}]
["Sch IIF","Other Sundry",null,"Counterparty Default Risk - MV of Collateral - Rating 3",null,null,null,null,null,null,null,null,{"$f":"'Schedule IIF (EBS)'!H87","v":0}]
["Sch IIF","Other Sundry",null,"Counterparty Default Risk - MV of Collateral - Rating 4",null,null,null,null,null,null,null,null,{"$f":"'Schedule IIF (EBS)'!H88","v":0}]
["Sch IIF","Other Sundry",null,"Counterparty Default Risk - MV of Collateral - Rating 5",null,null,null,null,null,null,null,null,{"$f":"'Schedule IIF (EBS)'!H89","v":0}]
["Sch IIF","Other Sundry",null,"Counterparty Default Risk - MV of Collateral - Rating 6",null,null,null,null,null,null,null,null,{"$f":"'Schedule IIF (EBS)'!H90","v":0}]
["Sch IIF","Other Sundry",null,"Counterparty Default Risk - MV of Collateral - Rating 7",null,null,null,null,null,null,null,null,{"$f":"'Schedule IIF (EBS)'!H91","v":0}]
["Sch IIF","Other Sundry",null,"Counterparty Default Risk - MV of Collateral - Rating 8",null,null,null,null,null,null,null,null,{"$f":"'Schedule IIF (EBS)'!H92","v":0}]
["Sch IIF","Other Sundry",null,"Cash and Cash Equivalents",null,null,null,null,null,null,null,null,{"$f":"'Schedule IIF (EBS)'!D95","v":0}]
[]
["Sch XIXA","Cash Counterpart",null,"Number",null,null,null,null,null,null,null,null,{"$f":"'Schedule XIXA'!$D$10","v":0}]
["Sch XIXA","Cash Counterpart",null,"Name - Counterparty 1",null,null,null,null,null,null,null,null,{"$f":"'Schedule XIXA'!C14","v":0}]
["Sch XIXA","Cash Counterpart",null,"Name - Counterparty 2",null,null,null,null,null,null,null,null,{"$f":"'Schedule XIXA'!C15","v":0}]
["Sch XIXA","Cash Counterpart",null,"Name - Counterparty 3",null,null,null,null,null,null,null,null,{"$f":"'Schedule XIXA'!C16","v":0}]
["Sch XIXA","Cash Counterpart",null,"Name - Counterparty 4",null,null,null,null,null,null,null,null,{"$f":"'Schedule XIXA'!C17","v":0}]
["Sch XIXA","Cash Counterpart",null,"Name - Counterparty 5",null,null,null,null,null,null,null,null,{"$f":"'Schedule XIXA'!C18","v":0}]
["Sch XIXA","Cash Counterpart",null,"Name - Counterparty 6",null,null,null,null,null,null,null,null,{"$f":"'Schedule XIXA'!C19","v":0}]
["Sch XIXA","Cash Counterpart",null,"Name - Counterparty 7",null,null,null,null,null,null,null,null,{"$f":"'Schedule XIXA'!C20","v":0}]
["Sch XIXA","Cash Counterpart",null,"Name - Counterparty 8",null,null,null,null,null,null,null,null,{"$f":"'Schedule XIXA'!C21","v":0}]
["Sch XIXA","Cash Counterpart",null,"Name - Counterparty 9",null,null,null,null,null,null,null,null,{"$f":"'Schedule XIXA'!C22","v":0}]
["Sch XIXA","Cash Counterpart",null,"Name - Counterparty 10",null,null,null,null,null,null,null,null,{"$f":"'Schedule XIXA'!C23","v":0}]
["Sch XIXA","Cash Counterpart",null,"Name - Counterparty 11",null,null,null,null,null,null,null,null,{"$f":"'Schedule XIXA'!C24","v":0}]
["Sch XIXA","Cash Counterpart",null,"Name - Counterparty 12",null,null,null,null,null,null,null,null,{"$f":"'Schedule XIXA'!C25","v":0}]
["Sch XIXA","Cash Counterpart",null,"Name - Counterparty 13",null,null,null,null,null,null,null,null,{"$f":"'Schedule XIXA'!C26","v":0}]
["Sch XIXA","Cash Counterpart",null,"Name - Counterparty 14",null,null,null,null,null,null,null,null,{"$f":"'Schedule XIXA'!C27","v":0}]
["Sch XIXA","Cash Counterpart",null,"Name - Counterparty 15",null,null,null,null,null,null,null,null,{"$f":"'Schedule XIXA'!C28","v":0}]
["Sch XIXA","Cash Counterpart",null,"Name - Counterparty 16",null,null,null,null,null,null,null,null,{"$f":"'Schedule XIXA'!C29","v":0}]
["Sch XIXA","Cash Counterpart",null,"Name - Counterparty 17",null,null,null,null,null,null,null,null,{"$f":"'Schedule XIXA'!C30","v":0}]
["Sch XIXA","Cash Counterpart",null,"Name - Counterparty 18",null,null,null,null,null,null,null,null,{"$f":"'Schedule XIXA'!C31","v":0}]
["Sch XIXA","Cash Counterpart",null,"Name - Counterparty 19",null,null,null,null,null,null,null,null,{"$f":"'Schedule XIXA'!C32","v":0}]
["Sch XIXA","Cash Counterpart",null,"Name - Counterparty 20",null,null,null,null,null,null,null,null,{"$f":"'Schedule XIXA'!C33","v":0}]
["Sch XIXA","Cash Counterpart",null,"BSCR Rating - Counterparty 1",null,null,null,null,null,null,null,null,{"$f":"'Schedule XIXA'!D14","v":"Select"}]
["Sch XIXA","Cash Counterpart",null,"BSCR Rating - Counterparty 2",null,null,null,null,null,null,null,null,{"$f":"'Schedule XIXA'!D15","v":"Select"}]
["Sch XIXA","Cash Counterpart",null,"BSCR Rating - Counterparty 3",null,null,null,null,null,null,null,null,{"$f":"'Schedule XIXA'!D16","v":"Select"}]
["Sch XIXA","Cash Counterpart",null,"BSCR Rating - Counterparty 4",null,null,null,null,null,null,null,null,{"$f":"'Schedule XIXA'!D17","v":"Select"}]
["Sch XIXA","Cash Counterpart",null,"BSCR Rating - Counterparty 5",null,null,null,null,null,null,null,null,{"$f":"'Schedule XIXA'!D18","v":"Select"}]
["Sch XIXA","Cash Counterpart",null,"BSCR Rating - Counterparty 6",null,null,null,null,null,null,null,null,{"$f":"'Schedule XIXA'!D19","v":"Select"}]
["Sch XIXA","Cash Counterpart",null,"BSCR Rating - Counterparty 7",null,null,null,null,null,null,null,null,{"$f":"'Schedule XIXA'!D20","v":"Select"}]
["Sch XIXA","Cash Counterpart",null,"BSCR Rating - Counterparty 8",null,null,null,null,null,null,null,null,{"$f":"'Schedule XIXA'!D21","v":"Select"}]
["Sch XIXA","Cash Counterpart",null,"BSCR Rating - Counterparty 9",null,null,null,null,null,null,null,null,{"$f":"'Schedule XIXA'!D22","v":"Select"}]
["Sch XIXA","Cash Counterpart",null,"BSCR Rating - Counterparty 10",null,null,null,null,null,null,null,null,{"$f":"'Schedule XIXA'!D23","v":"Select"}]
["Sch XIXA","Cash Counterpart",null,"BSCR Rating - Counterparty 11",null,null,null,null,null,null,null,null,{"$f":"'Schedule XIXA'!D24","v":"Select"}]
["Sch XIXA","Cash Counterpart",null,"BSCR Rating - Counterparty 12",null,null,null,null,null,null,null,null,{"$f":"'Schedule XIXA'!D25","v":"Select"}]
["Sch XIXA","Cash Counterpart",null,"BSCR Rating - Counterparty 13",null,null,null,null,null,null,null,null,{"$f":"'Schedule XIXA'!D26","v":"Select"}]
["Sch XIXA","Cash Counterpart",null,"BSCR Rating - Counterparty 14",null,null,null,null,null,null,null,null,{"$f":"'Schedule XIXA'!D27","v":"Select"}]
["Sch XIXA","Cash Counterpart",null,"BSCR Rating - Counterparty 15",null,null,null,null,null,null,null,null,{"$f":"'Schedule XIXA'!D28","v":"Select"}]
["Sch XIXA","Cash Counterpart",null,"BSCR Rating - Counterparty 16",null,null,null,null,null,null,null,null,{"$f":"'Schedule XIXA'!D29","v":"Select"}]
["Sch XIXA","Cash Counterpart",null,"BSCR Rating - Counterparty 17",null,null,null,null,null,null,null,null,{"$f":"'Schedule XIXA'!D30","v":"Select"}]
["Sch XIXA","Cash Counterpart",null,"BSCR Rating - Counterparty 18",null,null,null,null,null,null,null,null,{"$f":"'Schedule XIXA'!D31","v":"Select"}]
["Sch XIXA","Cash Counterpart",null,"BSCR Rating - Counterparty 19",null,null,null,null,null,null,null,null,{"$f":"'Schedule XIXA'!D32","v":"Select"}]
["Sch XIXA","Cash Counterpart",null,"BSCR Rating - Counterparty 20",null,null,null,null,null,null,null,null,{"$f":"'Schedule XIXA'!D33","v":"Select"}]
["Sch XIXA","Cash Counterpart",null,"Counterparty Value 1",null,null,null,null,null,null,null,null,{"$f":"'Schedule XIXA'!F14","v":0}]
["Sch XIXA","Cash Counterpart",null,"Counterparty Value 2",null,null,null,null,null,null,null,null,{"$f":"'Schedule XIXA'!F15","v":0}]
["Sch XIXA","Cash Counterpart",null,"Counterparty Value 3",null,null,null,null,null,null,null,null,{"$f":"'Schedule XIXA'!F16","v":0}]
["Sch XIXA","Cash Counterpart",null,"Counterparty Value 4",null,null,null,null,null,null,null,null,{"$f":"'Schedule XIXA'!F17","v":0}]
["Sch XIXA","Cash Counterpart",null,"Counterparty Value 5",null,null,null,null,null,null,null,null,{"$f":"'Schedule XIXA'!F18","v":0}]
["Sch XIXA","Cash Counterpart",null,"Counterparty Value 6",null,null,null,null,null,null,null,null,{"$f":"'Schedule XIXA'!F19","v":0}]
["Sch XIXA","Cash Counterpart",null,"Counterparty Value 7",null,null,null,null,null,null,null,null,{"$f":"'Schedule XIXA'!F20","v":0}]
["Sch XIXA","Cash Counterpart",null,"Counterparty Value 8",null,null,null,null,null,null,null,null,{"$f":"'Schedule XIXA'!F21","v":0}]
["Sch XIXA","Cash Counterpart",null,"Counterparty Value 9",null,null,null,null,null,null,null,null,{"$f":"'Schedule XIXA'!F22","v":0}]
["Sch XIXA","Cash Counterpart",null,"Counterparty Value 10",null,null,null,null,null,null,null,null,{"$f":"'Schedule XIXA'!F23","v":0}]
["Sch XIXA","Cash Counterpart",null,"Counterparty Value 11",null,null,null,null,null,null,null,null,{"$f":"'Schedule XIXA'!F24","v":0}]
["Sch XIXA","Cash Counterpart",null,"Counterparty Value 12",null,null,null,null,null,null,null,null,{"$f":"'Schedule XIXA'!F25","v":0}]
["Sch XIXA","Cash Counterpart",null,"Counterparty Value 13",null,null,null,null,null,null,null,null,{"$f":"'Schedule XIXA'!F26","v":0}]
["Sch XIXA","Cash Counterpart",null,"Counterparty Value 14",null,null,null,null,null,null,null,null,{"$f":"'Schedule XIXA'!F27","v":0}]
["Sch XIXA","Cash Counterpart",null,"Counterparty Value 15",null,null,null,null,null,null,null,null,{"$f":"'Schedule XIXA'!F28","v":0}]
["Sch XIXA","Cash Counterpart",null,"Counterparty Value 16",null,null,null,null,null,null,null,null,{"$f":"'Schedule XIXA'!F29","v":0}]
["Sch XIXA","Cash Counterpart",null,"Counterparty Value 17",null,null,null,null,null,null,null,null,{"$f":"'Schedule XIXA'!F30","v":0}]
["Sch XIXA","Cash Counterpart",null,"Counterparty Value 18",null,null,null,null,null,null,null,null,{"$f":"'Schedule XIXA'!F31","v":0}]
["Sch XIXA","Cash Counterpart",null,"Counterparty Value 19",null,null,null,null,null,null,null,null,{"$f":"'Schedule XIXA'!F32","v":0}]
["Sch XIXA","Cash Counterpart",null,"Counterparty Value 20",null,null,null,null,null,null,null,null,{"$f":"'Schedule XIXA'!F33","v":0}]
["Sch XIXA","Cash Counterpart",null,"Counterparty Total",null,null,null,null,null,null,null,null,{"$f":"'Schedule XIXA'!F54","v":0}]
["Sch XIXA","Cash Counterpart",null,"Exposure BSCR Rate 0",null,null,null,null,null,null,null,null,{"$f":"'Schedule XIXA'!F57","v":0}]
["Sch XIXA","Cash Counterpart",null,"Exposure BSCR Rate 1",null,null,null,null,null,null,null,null,{"$f":"'Schedule XIXA'!F58","v":0}]
["Sch XIXA","Cash Counterpart",null,"Exposure BSCR Rate 2",null,null,null,null,null,null,null,null,{"$f":"'Schedule XIXA'!F59","v":0}]
["Sch XIXA","Cash Counterpart",null,"Exposure BSCR Rate 3",null,null,null,null,null,null,null,null,{"$f":"'Schedule XIXA'!F60","v":0}]
["Sch XIXA","Cash Counterpart",null,"Exposure BSCR Rate 4",null,null,null,null,null,null,null,null,{"$f":"'Schedule XIXA'!F61","v":0}]
["Sch XIXA","Cash Counterpart",null,"Exposure BSCR Rate 5",null,null,null,null,null,null,null,null,{"$f":"'Schedule XIXA'!F62","v":0}]
["Sch XIXA","Cash Counterpart",null,"Exposure BSCR Rate 6",null,null,null,null,null,null,null,null,{"$f":"'Schedule XIXA'!F63","v":0}]
["Sch XIXA","Cash Counterpart",null,"Exposure BSCR Rate 7",null,null,null,null,null,null,null,null,{"$f":"'Schedule XIXA'!F64","v":0}]
["Sch XIXA","Cash Counterpart",null,"Exposure BSCR Rate 8",null,null,null,null,null,null,null,null,{"$f":"'Schedule XIXA'!F65","v":0}]
[]
["Sch XXA","Currency Shock",null,"Other Currency 1",null,null,null,null,null,null,null,null,{"$f":"'Schedule XXA'!B23","v":"Other currency 1"}]
["Sch XXA","Currency Shock",null,"Other Currency 2",null,null,null,null,null,null,null,null,{"$f":"'Schedule XXA'!B24","v":"Other currency 2"}]
["Sch XXA","Currency Shock",null,"Other Currency 3",null,null,null,null,null,null,null,null,{"$f":"'Schedule XXA'!B25","v":"Other currency 3"}]
["Sch XXA","Currency Shock",null,"Other Currency 4",null,null,null,null,null,null,null,null,{"$f":"'Schedule XXA'!B26","v":"Other currency 4"}]
["Sch XXA","Currency Shock",null,"Other Currency 5",null,null,null,null,null,null,null,null,{"$f":"'Schedule XXA'!B27","v":"Other currency 5"}]
["Sch XXA","Currency Shock",null,"Other Currency 6",null,null,null,null,null,null,null,null,{"$f":"'Schedule XXA'!B28","v":"Other currency 6"}]
["Sch XXA","Currency Shock",null,"Other Currency 7",null,null,null,null,null,null,null,null,{"$f":"'Schedule XXA'!B29","v":"Other currency 7"}]
["Sch XXA","Currency Shock",null,"Other Currency 8",null,null,null,null,null,null,null,null,{"$f":"'Schedule XXA'!B30","v":"Other currency 8"}]
["Sch XXA","Currency Shock",null,"Other Currency 9",null,null,null,null,null,null,null,null,{"$f":"'Schedule XXA'!B31","v":"Other currency 9"}]
["Sch XXA","Currency Shock",null,"Other Currency 10",null,null,null,null,null,null,null,null,{"$f":"'Schedule XXA'!B32","v":"Other currency 10"}]
["Sch XXA","Currency Shock",null,{"$f":"\"Before Shock - Assets - Excluding Currency - Sensitive Derivatives \"&'Schedule XXA'!$B$10","v":"Before Shock - Assets - Excluding Currency - Sensitive Derivatives United States Dollars"},null,null,null,null,null,null,null,null,{"$f":"'Schedule XXA'!D10","v":0}]
["Sch XXA","Currency Shock",null,{"$f":"\"Before Shock - Assets - Excluding Currency - Sensitive Derivatives \"&'Schedule XXA'!$B$11","v":"Before Shock - Assets - Excluding Currency - Sensitive Derivatives Bermuda Dollars"},null,null,null,null,null,null,null,null,{"$f":"'Schedule XXA'!D11","v":0}]
["Sch XXA","Currency Shock",null,{"$f":"\"Before Shock - Assets - Excluding Currency - Sensitive Derivatives \"&'Schedule XXA'!$B$12","v":"Before Shock - Assets - Excluding Currency - Sensitive Derivatives Qatar Riyals"},null,null,null,null,null,null,null,null,{"$f":"'Schedule XXA'!D12","v":0}]
["Sch XXA","Currency Shock",null,{"$f":"\"Before Shock - Assets - Excluding Currency - Sensitive Derivatives \"&'Schedule XXA'!$B$13","v":"Before Shock - Assets - Excluding Currency - Sensitive Derivatives Hong Kong Dollars"},null,null,null,null,null,null,null,null,{"$f":"'Schedule XXA'!D13","v":0}]
["Sch XXA","Currency Shock",null,{"$f":"\"Before Shock - Assets - Excluding Currency - Sensitive Derivatives \"&'Schedule XXA'!$B$14","v":"Before Shock - Assets - Excluding Currency - Sensitive Derivatives Euro"},null,null,null,null,null,null,null,null,{"$f":"'Schedule XXA'!D14","v":0}]
["Sch XXA","Currency Shock",null,{"$f":"\"Before Shock - Assets - Excluding Currency - Sensitive Derivatives \"&'Schedule XXA'!$B$15","v":"Before Shock - Assets - Excluding Currency - Sensitive Derivatives Denmark Kroner"},null,null,null,null,null,null,null,null,{"$f":"'Schedule XXA'!D15","v":0}]
["Sch XXA","Currency Shock",null,{"$f":"\"Before Shock - Assets - Excluding Currency - Sensitive Derivatives \"&'Schedule XXA'!$B$16","v":"Before Shock - Assets - Excluding Currency - Sensitive Derivatives Bulgaria Leva"},null,null,null,null,null,null,null,null,{"$f":"'Schedule XXA'!D16","v":0}]
["Sch XXA","Currency Shock",null,{"$f":"\"Before Shock - Assets - Excluding Currency - Sensitive Derivatives \"&'Schedule XXA'!$B$17","v":"Before Shock - Assets - Excluding Currency - Sensitive Derivatives West African CFA Francs"},null,null,null,null,null,null,null,null,{"$f":"'Schedule XXA'!D17","v":0}]
["Sch XXA","Currency Shock",null,{"$f":"\"Before Shock - Assets - Excluding Currency - Sensitive Derivatives \"&'Schedule XXA'!$B$18","v":"Before Shock - Assets - Excluding Currency - Sensitive Derivatives Central African CFA Francs"},null,null,null,null,null,null,null,null,{"$f":"'Schedule XXA'!D18","v":0}]
["Sch XXA","Currency Shock",null,{"$f":"\"Before Shock - Assets - Excluding Currency - Sensitive Derivatives \"&'Schedule XXA'!$B$19","v":"Before Shock - Assets - Excluding Currency - Sensitive Derivatives Comorian Francs"},null,null,null,null,null,null,null,null,{"$f":"'Schedule XXA'!D19","v":0}]
["Sch XXA","Currency Shock",null,{"$f":"\"Before Shock - Assets - Excluding Currency - Sensitive Derivatives \"&'Schedule XXA'!$B$20","v":"Before Shock - Assets - Excluding Currency - Sensitive Derivatives United Kingdom Pounds"},null,null,null,null,null,null,null,null,{"$f":"'Schedule XXA'!D20","v":0}]
["Sch XXA","Currency Shock",null,{"$f":"\"Before Shock - Assets - Excluding Currency - Sensitive Derivatives \"&'Schedule XXA'!$B$21","v":"Before Shock - Assets - Excluding Currency - Sensitive Derivatives Canada Dollars"},null,null,null,null,null,null,null,null,{"$f":"'Schedule XXA'!D21","v":0}]
["Sch XXA","Currency Shock",null,{"$f":"\"Before Shock - Assets - Excluding Currency - Sensitive Derivatives \"&'Schedule XXA'!$B$22","v":"Before Shock - Assets - Excluding Currency - Sensitive Derivatives Japan Yen"},null,null,null,null,null,null,null,null,{"$f":"'Schedule XXA'!D22","v":0}]
["Sch XXA","Currency Shock",null,{"$f":"\"Before Shock - Assets - Excluding Currency - Sensitive Derivatives \"&'Schedule XXA'!$B$23","v":"Before Shock - Assets - Excluding Currency - Sensitive Derivatives Other currency 1"},null,null,null,null,null,null,null,null,{"$f":"'Schedule XXA'!D23","v":0}]
["Sch XXA","Currency Shock",null,{"$f":"\"Before Shock - Assets - Excluding Currency - Sensitive Derivatives \"&'Schedule XXA'!$B$24","v":"Before Shock - Assets - Excluding Currency - Sensitive Derivatives Other currency 2"},null,null,null,null,null,null,null,null,{"$f":"'Schedule XXA'!D24","v":0}]
["Sch XXA","Currency Shock",null,{"$f":"\"Before Shock - Assets - Excluding Currency - Sensitive Derivatives \"&'Schedule XXA'!$B$25","v":"Before Shock - Assets - Excluding Currency - Sensitive Derivatives Other currency 3"},null,null,null,null,null,null,null,null,{"$f":"'Schedule XXA'!D25","v":0}]
["Sch XXA","Currency Shock",null,{"$f":"\"Before Shock - Assets - Excluding Currency - Sensitive Derivatives \"&'Schedule XXA'!$B$26","v":"Before Shock - Assets - Excluding Currency - Sensitive Derivatives Other currency 4"},null,null,null,null,null,null,null,null,{"$f":"'Schedule XXA'!D26","v":0}]
["Sch XXA","Currency Shock",null,{"$f":"\"Before Shock - Assets - Excluding Currency - Sensitive Derivatives \"&'Schedule XXA'!$B$27","v":"Before Shock - Assets - Excluding Currency - Sensitive Derivatives Other currency 5"},null,null,null,null,null,null,null,null,{"$f":"'Schedule XXA'!D27","v":0}]
["Sch XXA","Currency Shock",null,{"$f":"\"Before Shock - Assets - Excluding Currency - Sensitive Derivatives \"&'Schedule XXA'!$B$28","v":"Before Shock - Assets - Excluding Currency - Sensitive Derivatives Other currency 6"},null,null,null,null,null,null,null,null,{"$f":"'Schedule XXA'!D28","v":0}]
["Sch XXA","Currency Shock",null,{"$f":"\"Before Shock - Assets - Excluding Currency - Sensitive Derivatives \"&'Schedule XXA'!$B$29","v":"Before Shock - Assets - Excluding Currency - Sensitive Derivatives Other currency 7"},null,null,null,null,null,null,null,null,{"$f":"'Schedule XXA'!D29","v":0}]
["Sch XXA","Currency Shock",null,{"$f":"\"Before Shock - Assets - Excluding Currency - Sensitive Derivatives \"&'Schedule XXA'!$B$30","v":"Before Shock - Assets - Excluding Currency - Sensitive Derivatives Other currency 8"},null,null,null,null,null,null,null,null,{"$f":"'Schedule XXA'!D30","v":0}]
["Sch XXA","Currency Shock",null,{"$f":"\"Before Shock - Assets - Excluding Currency - Sensitive Derivatives \"&'Schedule XXA'!$B$31","v":"Before Shock - Assets - Excluding Currency - Sensitive Derivatives Other currency 9"},null,null,null,null,null,null,null,null,{"$f":"'Schedule XXA'!D31","v":0}]
["Sch XXA","Currency Shock",null,{"$f":"\"Before Shock - Assets - Excluding Currency - Sensitive Derivatives \"&'Schedule XXA'!$B$32","v":"Before Shock - Assets - Excluding Currency - Sensitive Derivatives Other currency 10"},null,null,null,null,null,null,null,null,{"$f":"'Schedule XXA'!D32","v":0}]
["Sch XXA","Currency Shock",null,{"$f":"\"Before Shock - Long Exposures - Currency Derivatives Qualifying as held for risk-mitigation purposes \"&'Schedule XXA'!$B$10","v":"Before Shock - Long Exposures - Currency Derivatives Qualifying as held for risk-mitigation purposes United States Dollars"},null,null,null,null,null,null,null,null,{"$f":"'Schedule XXA'!F10","v":0}]
["Sch XXA","Currency Shock",null,{"$f":"\"Before Shock - Long Exposures - Currency Derivatives Qualifying as held for risk-mitigation purposes \"&'Schedule XXA'!$B$11","v":"Before Shock - Long Exposures - Currency Derivatives Qualifying as held for risk-mitigation purposes Bermuda Dollars"},null,null,null,null,null,null,null,null,{"$f":"'Schedule XXA'!F11","v":0}]
["Sch XXA","Currency Shock",null,{"$f":"\"Before Shock - Long Exposures - Currency Derivatives Qualifying as held for risk-mitigation purposes \"&'Schedule XXA'!$B$12","v":"Before Shock - Long Exposures - Currency Derivatives Qualifying as held for risk-mitigation purposes Qatar Riyals"},null,null,null,null,null,null,null,null,{"$f":"'Schedule XXA'!F12","v":0}]
["Sch XXA","Currency Shock",null,{"$f":"\"Before Shock - Long Exposures - Currency Derivatives Qualifying as held for risk-mitigation purposes \"&'Schedule XXA'!$B$13","v":"Before Shock - Long Exposures - Currency Derivatives Qualifying as held for risk-mitigation purposes Hong Kong Dollars"},null,null,null,null,null,null,null,null,{"$f":"'Schedule XXA'!F13","v":0}]
["Sch XXA","Currency Shock",null,{"$f":"\"Before Shock - Long Exposures - Currency Derivatives Qualifying as held for risk-mitigation purposes \"&'Schedule XXA'!$B$14","v":"Before Shock - Long Exposures - Currency Derivatives Qualifying as held for risk-mitigation purposes Euro"},null,null,null,null,null,null,null,null,{"$f":"'Schedule XXA'!F14","v":0}]
["Sch XXA","Currency Shock",null,{"$f":"\"Before Shock - Long Exposures - Currency Derivatives Qualifying as held for risk-mitigation purposes \"&'Schedule XXA'!$B$15","v":"Before Shock - Long Exposures - Currency Derivatives Qualifying as held for risk-mitigation purposes Denmark Kroner"},null,null,null,null,null,null,null,null,{"$f":"'Schedule XXA'!F15","v":0}]
["Sch XXA","Currency Shock",null,{"$f":"\"Before Shock - Long Exposures - Currency Derivatives Qualifying as held for risk-mitigation purposes \"&'Schedule XXA'!$B$16","v":"Before Shock - Long Exposures - Currency Derivatives Qualifying as held for risk-mitigation purposes Bulgaria Leva"},null,null,null,null,null,null,null,null,{"$f":"'Schedule XXA'!F16","v":0}]
["Sch XXA","Currency Shock",null,{"$f":"\"Before Shock - Long Exposures - Currency Derivatives Qualifying as held for risk-mitigation purposes \"&'Schedule XXA'!$B$17","v":"Before Shock - Long Exposures - Currency Derivatives Qualifying as held for risk-mitigation purposes West African CFA Francs"},null,null,null,null,null,null,null,null,{"$f":"'Schedule XXA'!F17","v":0}]
["Sch XXA","Currency Shock",null,{"$f":"\"Before Shock - Long Exposures - Currency Derivatives Qualifying as held for risk-mitigation purposes \"&'Schedule XXA'!$B$18","v":"Before Shock - Long Exposures - Currency Derivatives Qualifying as held for risk-mitigation purposes Central African CFA Francs"},null,null,null,null,null,null,null,null,{"$f":"'Schedule XXA'!F18","v":0}]
["Sch XXA","Currency Shock",null,{"$f":"\"Before Shock - Long Exposures - Currency Derivatives Qualifying as held for risk-mitigation purposes \"&'Schedule XXA'!$B$19","v":"Before Shock - Long Exposures - Currency Derivatives Qualifying as held for risk-mitigation purposes Comorian Francs"},null,null,null,null,null,null,null,null,{"$f":"'Schedule XXA'!F19","v":0}]
["Sch XXA","Currency Shock",null,{"$f":"\"Before Shock - Long Exposures - Currency Derivatives Qualifying as held for risk-mitigation purposes \"&'Schedule XXA'!$B$20","v":"Before Shock - Long Exposures - Currency Derivatives Qualifying as held for risk-mitigation purposes United Kingdom Pounds"},null,null,null,null,null,null,null,null,{"$f":"'Schedule XXA'!F20","v":0}]
["Sch XXA","Currency Shock",null,{"$f":"\"Before Shock - Long Exposures - Currency Derivatives Qualifying as held for risk-mitigation purposes \"&'Schedule XXA'!$B$21","v":"Before Shock - Long Exposures - Currency Derivatives Qualifying as held for risk-mitigation purposes Canada Dollars"},null,null,null,null,null,null,null,null,{"$f":"'Schedule XXA'!F21","v":0}]
["Sch XXA","Currency Shock",null,{"$f":"\"Before Shock - Long Exposures - Currency Derivatives Qualifying as held for risk-mitigation purposes \"&'Schedule XXA'!$B$22","v":"Before Shock - Long Exposures - Currency Derivatives Qualifying as held for risk-mitigation purposes Japan Yen"},null,null,null,null,null,null,null,null,{"$f":"'Schedule XXA'!F22","v":0}]
["Sch XXA","Currency Shock",null,{"$f":"\"Before Shock - Long Exposures - Currency Derivatives Qualifying as held for risk-mitigation purposes \"&'Schedule XXA'!$B$23","v":"Before Shock - Long Exposures - Currency Derivatives Qualifying as held for risk-mitigation purposes Other currency 1"},null,null,null,null,null,null,null,null,{"$f":"'Schedule XXA'!F23","v":0}]
["Sch XXA","Currency Shock",null,{"$f":"\"Before Shock - Long Exposures - Currency Derivatives Qualifying as held for risk-mitigation purposes \"&'Schedule XXA'!$B$24","v":"Before Shock - Long Exposures - Currency Derivatives Qualifying as held for risk-mitigation purposes Other currency 2"},null,null,null,null,null,null,null,null,{"$f":"'Schedule XXA'!F24","v":0}]
["Sch XXA","Currency Shock",null,{"$f":"\"Before Shock - Long Exposures - Currency Derivatives Qualifying as held for risk-mitigation purposes \"&'Schedule XXA'!$B$25","v":"Before Shock - Long Exposures - Currency Derivatives Qualifying as held for risk-mitigation purposes Other currency 3"},null,null,null,null,null,null,null,null,{"$f":"'Schedule XXA'!F25","v":0}]
["Sch XXA","Currency Shock",null,{"$f":"\"Before Shock - Long Exposures - Currency Derivatives Qualifying as held for risk-mitigation purposes \"&'Schedule XXA'!$B$26","v":"Before Shock - Long Exposures - Currency Derivatives Qualifying as held for risk-mitigation purposes Other currency 4"},null,null,null,null,null,null,null,null,{"$f":"'Schedule XXA'!F26","v":0}]
["Sch XXA","Currency Shock",null,{"$f":"\"Before Shock - Long Exposures - Currency Derivatives Qualifying as held for risk-mitigation purposes \"&'Schedule XXA'!$B$27","v":"Before Shock - Long Exposures - Currency Derivatives Qualifying as held for risk-mitigation purposes Other currency 5"},null,null,null,null,null,null,null,null,{"$f":"'Schedule XXA'!F27","v":0}]
["Sch XXA","Currency Shock",null,{"$f":"\"Before Shock - Long Exposures - Currency Derivatives Qualifying as held for risk-mitigation purposes \"&'Schedule XXA'!$B$28","v":"Before Shock - Long Exposures - Currency Derivatives Qualifying as held for risk-mitigation purposes Other currency 6"},null,null,null,null,null,null,null,null,{"$f":"'Schedule XXA'!F28","v":0}]
["Sch XXA","Currency Shock",null,{"$f":"\"Before Shock - Long Exposures - Currency Derivatives Qualifying as held for risk-mitigation purposes \"&'Schedule XXA'!$B$29","v":"Before Shock - Long Exposures - Currency Derivatives Qualifying as held for risk-mitigation purposes Other currency 7"},null,null,null,null,null,null,null,null,{"$f":"'Schedule XXA'!F29","v":0}]
["Sch XXA","Currency Shock",null,{"$f":"\"Before Shock - Long Exposures - Currency Derivatives Qualifying as held for risk-mitigation purposes \"&'Schedule XXA'!$B$30","v":"Before Shock - Long Exposures - Currency Derivatives Qualifying as held for risk-mitigation purposes Other currency 8"},null,null,null,null,null,null,null,null,{"$f":"'Schedule XXA'!F30","v":0}]
["Sch XXA","Currency Shock",null,{"$f":"\"Before Shock - Long Exposures - Currency Derivatives Qualifying as held for risk-mitigation purposes \"&'Schedule XXA'!$B$31","v":"Before Shock - Long Exposures - Currency Derivatives Qualifying as held for risk-mitigation purposes Other currency 9"},null,null,null,null,null,null,null,null,{"$f":"'Schedule XXA'!F31","v":0}]
["Sch XXA","Currency Shock",null,{"$f":"\"Before Shock - Long Exposures - Currency Derivatives Qualifying as held for risk-mitigation purposes \"&'Schedule XXA'!$B$32","v":"Before Shock - Long Exposures - Currency Derivatives Qualifying as held for risk-mitigation purposes Other currency 10"},null,null,null,null,null,null,null,null,{"$f":"'Schedule XXA'!F32","v":0}]
["Sch XXA","Currency Shock",null,{"$f":"\"Before Shock - Long Exposures - Currency Derivatives Not Qualifying as held for risk-mitigation purposes \"&'Schedule XXA'!$B$10","v":"Before Shock - Long Exposures - Currency Derivatives Not Qualifying as held for risk-mitigation purposes United States Dollars"},null,null,null,null,null,null,null,null,{"$f":"'Schedule XXA'!H10","v":0}]
["Sch XXA","Currency Shock",null,{"$f":"\"Before Shock - Long Exposures - Currency Derivatives Not Qualifying as held for risk-mitigation purposes \"&'Schedule XXA'!$B$11","v":"Before Shock - Long Exposures - Currency Derivatives Not Qualifying as held for risk-mitigation purposes Bermuda Dollars"},null,null,null,null,null,null,null,null,{"$f":"'Schedule XXA'!H11","v":0}]
["Sch XXA","Currency Shock",null,{"$f":"\"Before Shock - Long Exposures - Currency Derivatives Not Qualifying as held for risk-mitigation purposes \"&'Schedule XXA'!$B$12","v":"Before Shock - Long Exposures - Currency Derivatives Not Qualifying as held for risk-mitigation purposes Qatar Riyals"},null,null,null,null,null,null,null,null,{"$f":"'Schedule XXA'!H12","v":0}]
["Sch XXA","Currency Shock",null,{"$f":"\"Before Shock - Long Exposures - Currency Derivatives Not Qualifying as held for risk-mitigation purposes \"&'Schedule XXA'!$B$13","v":"Before Shock - Long Exposures - Currency Derivatives Not Qualifying as held for risk-mitigation purposes Hong Kong Dollars"},null,null,null,null,null,null,null,null,{"$f":"'Schedule XXA'!H13","v":0}]
["Sch XXA","Currency Shock",null,{"$f":"\"Before Shock - Long Exposures - Currency Derivatives Not Qualifying as held for risk-mitigation purposes \"&'Schedule XXA'!$B$14","v":"Before Shock - Long Exposures - Currency Derivatives Not Qualifying as held for risk-mitigation purposes Euro"},null,null,null,null,null,null,null,null,{"$f":"'Schedule XXA'!H14","v":0}]
["Sch XXA","Currency Shock",null,{"$f":"\"Before Shock - Long Exposures - Currency Derivatives Not Qualifying as held for risk-mitigation purposes \"&'Schedule XXA'!$B$15","v":"Before Shock - Long Exposures - Currency Derivatives Not Qualifying as held for risk-mitigation purposes Denmark Kroner"},null,null,null,null,null,null,null,null,{"$f":"'Schedule XXA'!H15","v":0}]
["Sch XXA","Currency Shock",null,{"$f":"\"Before Shock - Long Exposures - Currency Derivatives Not Qualifying as held for risk-mitigation purposes \"&'Schedule XXA'!$B$16","v":"Before Shock - Long Exposures - Currency Derivatives Not Qualifying as held for risk-mitigation purposes Bulgaria Leva"},null,null,null,null,null,null,null,null,{"$f":"'Schedule XXA'!H16","v":0}]
["Sch XXA","Currency Shock",null,{"$f":"\"Before Shock - Long Exposures - Currency Derivatives Not Qualifying as held for risk-mitigation purposes \"&'Schedule XXA'!$B$17","v":"Before Shock - Long Exposures - Currency Derivatives Not Qualifying as held for risk-mitigation purposes West African CFA Francs"},null,null,null,null,null,null,null,null,{"$f":"'Schedule XXA'!H17","v":0}]
["Sch XXA","Currency Shock",null,{"$f":"\"Before Shock - Long Exposures - Currency Derivatives Not Qualifying as held for risk-mitigation purposes \"&'Schedule XXA'!$B$18","v":"Before Shock - Long Exposures - Currency Derivatives Not Qualifying as held for risk-mitigation purposes Central African CFA Francs"},null,null,null,null,null,null,null,null,{"$f":"'Schedule XXA'!H18","v":0}]
["Sch XXA","Currency Shock",null,{"$f":"\"Before Shock - Long Exposures - Currency Derivatives Not Qualifying as held for risk-mitigation purposes \"&'Schedule XXA'!$B$19","v":"Before Shock - Long Exposures - Currency Derivatives Not Qualifying as held for risk-mitigation purposes Comorian Francs"},null,null,null,null,null,null,null,null,{"$f":"'Schedule XXA'!H19","v":0}]
["Sch XXA","Currency Shock",null,{"$f":"\"Before Shock - Long Exposures - Currency Derivatives Not Qualifying as held for risk-mitigation purposes \"&'Schedule XXA'!$B$20","v":"Before Shock - Long Exposures - Currency Derivatives Not Qualifying as held for risk-mitigation purposes United Kingdom Pounds"},null,null,null,null,null,null,null,null,{"$f":"'Schedule XXA'!H20","v":0}]
["Sch XXA","Currency Shock",null,{"$f":"\"Before Shock - Long Exposures - Currency Derivatives Not Qualifying as held for risk-mitigation purposes \"&'Schedule XXA'!$B$21","v":"Before Shock - Long Exposures - Currency Derivatives Not Qualifying as held for risk-mitigation purposes Canada Dollars"},null,null,null,null,null,null,null,null,{"$f":"'Schedule XXA'!H21","v":0}]
["Sch XXA","Currency Shock",null,{"$f":"\"Before Shock - Long Exposures - Currency Derivatives Not Qualifying as held for risk-mitigation purposes \"&'Schedule XXA'!$B$22","v":"Before Shock - Long Exposures - Currency Derivatives Not Qualifying as held for risk-mitigation purposes Japan Yen"},null,null,null,null,null,null,null,null,{"$f":"'Schedule XXA'!H22","v":0}]
["Sch XXA","Currency Shock",null,{"$f":"\"Before Shock - Long Exposures - Currency Derivatives Not Qualifying as held for risk-mitigation purposes \"&'Schedule XXA'!$B$23","v":"Before Shock - Long Exposures - Currency Derivatives Not Qualifying as held for risk-mitigation purposes Other currency 1"},null,null,null,null,null,null,null,null,{"$f":"'Schedule XXA'!H23","v":0}]
["Sch XXA","Currency Shock",null,{"$f":"\"Before Shock - Long Exposures - Currency Derivatives Not Qualifying as held for risk-mitigation purposes \"&'Schedule XXA'!$B$24","v":"Before Shock - Long Exposures - Currency Derivatives Not Qualifying as held for risk-mitigation purposes Other currency 2"},null,null,null,null,null,null,null,null,{"$f":"'Schedule XXA'!H24","v":0}]
["Sch XXA","Currency Shock",null,{"$f":"\"Before Shock - Long Exposures - Currency Derivatives Not Qualifying as held for risk-mitigation purposes \"&'Schedule XXA'!$B$25","v":"Before Shock - Long Exposures - Currency Derivatives Not Qualifying as held for risk-mitigation purposes Other currency 3"},null,null,null,null,null,null,null,null,{"$f":"'Schedule XXA'!H25","v":0}]
["Sch XXA","Currency Shock",null,{"$f":"\"Before Shock - Long Exposures - Currency Derivatives Not Qualifying as held for risk-mitigation purposes \"&'Schedule XXA'!$B$26","v":"Before Shock - Long Exposures - Currency Derivatives Not Qualifying as held for risk-mitigation purposes Other currency 4"},null,null,null,null,null,null,null,null,{"$f":"'Schedule XXA'!H26","v":0}]
["Sch XXA","Currency Shock",null,{"$f":"\"Before Shock - Long Exposures - Currency Derivatives Not Qualifying as held for risk-mitigation purposes \"&'Schedule XXA'!$B$27","v":"Before Shock - Long Exposures - Currency Derivatives Not Qualifying as held for risk-mitigation purposes Other currency 5"},null,null,null,null,null,null,null,null,{"$f":"'Schedule XXA'!H27","v":0}]
["Sch XXA","Currency Shock",null,{"$f":"\"Before Shock - Long Exposures - Currency Derivatives Not Qualifying as held for risk-mitigation purposes \"&'Schedule XXA'!$B$28","v":"Before Shock - Long Exposures - Currency Derivatives Not Qualifying as held for risk-mitigation purposes Other currency 6"},null,null,null,null,null,null,null,null,{"$f":"'Schedule XXA'!H28","v":0}]
["Sch XXA","Currency Shock",null,{"$f":"\"Before Shock - Long Exposures - Currency Derivatives Not Qualifying as held for risk-mitigation purposes \"&'Schedule XXA'!$B$29","v":"Before Shock - Long Exposures - Currency Derivatives Not Qualifying as held for risk-mitigation purposes Other currency 7"},null,null,null,null,null,null,null,null,{"$f":"'Schedule XXA'!H29","v":0}]
["Sch XXA","Currency Shock",null,{"$f":"\"Before Shock - Long Exposures - Currency Derivatives Not Qualifying as held for risk-mitigation purposes \"&'Schedule XXA'!$B$30","v":"Before Shock - Long Exposures - Currency Derivatives Not Qualifying as held for risk-mitigation purposes Other currency 8"},null,null,null,null,null,null,null,null,{"$f":"'Schedule XXA'!H30","v":0}]
["Sch XXA","Currency Shock",null,{"$f":"\"Before Shock - Long Exposures - Currency Derivatives Not Qualifying as held for risk-mitigation purposes \"&'Schedule XXA'!$B$31","v":"Before Shock - Long Exposures - Currency Derivatives Not Qualifying as held for risk-mitigation purposes Other currency 9"},null,null,null,null,null,null,null,null,{"$f":"'Schedule XXA'!H31","v":0}]
["Sch XXA","Currency Shock",null,{"$f":"\"Before Shock - Long Exposures - Currency Derivatives Not Qualifying as held for risk-mitigation purposes \"&'Schedule XXA'!$B$32","v":"Before Shock - Long Exposures - Currency Derivatives Not Qualifying as held for risk-mitigation purposes Other currency 10"},null,null,null,null,null,null,null,null,{"$f":"'Schedule XXA'!H32","v":0}]
["Sch XXA","Currency Shock",null,{"$f":"\"Before Shock - Short Exposures - Currency Derivatives Qualifying as held for risk-mitigation purposes \"&'Schedule XXA'!$B$10","v":"Before Shock - Short Exposures - Currency Derivatives Qualifying as held for risk-mitigation purposes United States Dollars"},null,null,null,null,null,null,null,null,{"$f":"'Schedule XXA'!J10","v":0}]
["Sch XXA","Currency Shock",null,{"$f":"\"Before Shock - Short Exposures - Currency Derivatives Qualifying as held for risk-mitigation purposes \"&'Schedule XXA'!$B$11","v":"Before Shock - Short Exposures - Currency Derivatives Qualifying as held for risk-mitigation purposes Bermuda Dollars"},null,null,null,null,null,null,null,null,{"$f":"'Schedule XXA'!J11","v":0}]
["Sch XXA","Currency Shock",null,{"$f":"\"Before Shock - Short Exposures - Currency Derivatives Qualifying as held for risk-mitigation purposes \"&'Schedule XXA'!$B$12","v":"Before Shock - Short Exposures - Currency Derivatives Qualifying as held for risk-mitigation purposes Qatar Riyals"},null,null,null,null,null,null,null,null,{"$f":"'Schedule XXA'!J12","v":0}]
["Sch XXA","Currency Shock",null,{"$f":"\"Before Shock - Short Exposures - Currency Derivatives Qualifying as held for risk-mitigation purposes \"&'Schedule XXA'!$B$13","v":"Before Shock - Short Exposures - Currency Derivatives Qualifying as held for risk-mitigation purposes Hong Kong Dollars"},null,null,null,null,null,null,null,null,{"$f":"'Schedule XXA'!J13","v":0}]
["Sch XXA","Currency Shock",null,{"$f":"\"Before Shock - Short Exposures - Currency Derivatives Qualifying as held for risk-mitigation purposes \"&'Schedule XXA'!$B$14","v":"Before Shock - Short Exposures - Currency Derivatives Qualifying as held for risk-mitigation purposes Euro"},null,null,null,null,null,null,null,null,{"$f":"'Schedule XXA'!J14","v":0}]
["Sch XXA","Currency Shock",null,{"$f":"\"Before Shock - Short Exposures - Currency Derivatives Qualifying as held for risk-mitigation purposes \"&'Schedule XXA'!$B$15","v":"Before Shock - Short Exposures - Currency Derivatives Qualifying as held for risk-mitigation purposes Denmark Kroner"},null,null,null,null,null,null,null,null,{"$f":"'Schedule XXA'!J15","v":0}]
["Sch XXA","Currency Shock",null,{"$f":"\"Before Shock - Short Exposures - Currency Derivatives Qualifying as held for risk-mitigation purposes \"&'Schedule XXA'!$B$16","v":"Before Shock - Short Exposures - Currency Derivatives Qualifying as held for risk-mitigation purposes Bulgaria Leva"},null,null,null,null,null,null,null,null,{"$f":"'Schedule XXA'!J16","v":0}]
["Sch XXA","Currency Shock",null,{"$f":"\"Before Shock - Short Exposures - Currency Derivatives Qualifying as held for risk-mitigation purposes \"&'Schedule XXA'!$B$17","v":"Before Shock - Short Exposures - Currency Derivatives Qualifying as held for risk-mitigation purposes West African CFA Francs"},null,null,null,null,null,null,null,null,{"$f":"'Schedule XXA'!J17","v":0}]
["Sch XXA","Currency Shock",null,{"$f":"\"Before Shock - Short Exposures - Currency Derivatives Qualifying as held for risk-mitigation purposes \"&'Schedule XXA'!$B$18","v":"Before Shock - Short Exposures - Currency Derivatives Qualifying as held for risk-mitigation purposes Central African CFA Francs"},null,null,null,null,null,null,null,null,{"$f":"'Schedule XXA'!J18","v":0}]
["Sch XXA","Currency Shock",null,{"$f":"\"Before Shock - Short Exposures - Currency Derivatives Qualifying as held for risk-mitigation purposes \"&'Schedule XXA'!$B$19","v":"Before Shock - Short Exposures - Currency Derivatives Qualifying as held for risk-mitigation purposes Comorian Francs"},null,null,null,null,null,null,null,null,{"$f":"'Schedule XXA'!J19","v":0}]
["Sch XXA","Currency Shock",null,{"$f":"\"Before Shock - Short Exposures - Currency Derivatives Qualifying as held for risk-mitigation purposes \"&'Schedule XXA'!$B$20","v":"Before Shock - Short Exposures - Currency Derivatives Qualifying as held for risk-mitigation purposes United Kingdom Pounds"},null,null,null,null,null,null,null,null,{"$f":"'Schedule XXA'!J20","v":0}]
["Sch XXA","Currency Shock",null,{"$f":"\"Before Shock - Short Exposures - Currency Derivatives Qualifying as held for risk-mitigation purposes \"&'Schedule XXA'!$B$21","v":"Before Shock - Short Exposures - Currency Derivatives Qualifying as held for risk-mitigation purposes Canada Dollars"},null,null,null,null,null,null,null,null,{"$f":"'Schedule XXA'!J21","v":0}]
["Sch XXA","Currency Shock",null,{"$f":"\"Before Shock - Short Exposures - Currency Derivatives Qualifying as held for risk-mitigation purposes \"&'Schedule XXA'!$B$22","v":"Before Shock - Short Exposures - Currency Derivatives Qualifying as held for risk-mitigation purposes Japan Yen"},null,null,null,null,null,null,null,null,{"$f":"'Schedule XXA'!J22","v":0}]
["Sch XXA","Currency Shock",null,{"$f":"\"Before Shock - Short Exposures - Currency Derivatives Qualifying as held for risk-mitigation purposes \"&'Schedule XXA'!$B$23","v":"Before Shock - Short Exposures - Currency Derivatives Qualifying as held for risk-mitigation purposes Other currency 1"},null,null,null,null,null,null,null,null,{"$f":"'Schedule XXA'!J23","v":0}]
["Sch XXA","Currency Shock",null,{"$f":"\"Before Shock - Short Exposures - Currency Derivatives Qualifying as held for risk-mitigation purposes \"&'Schedule XXA'!$B$24","v":"Before Shock - Short Exposures - Currency Derivatives Qualifying as held for risk-mitigation purposes Other currency 2"},null,null,null,null,null,null,null,null,{"$f":"'Schedule XXA'!J24","v":0}]
["Sch XXA","Currency Shock",null,{"$f":"\"Before Shock - Short Exposures - Currency Derivatives Qualifying as held for risk-mitigation purposes \"&'Schedule XXA'!$B$25","v":"Before Shock - Short Exposures - Currency Derivatives Qualifying as held for risk-mitigation purposes Other currency 3"},null,null,null,null,null,null,null,null,{"$f":"'Schedule XXA'!J25","v":0}]
["Sch XXA","Currency Shock",null,{"$f":"\"Before Shock - Short Exposures - Currency Derivatives Qualifying as held for risk-mitigation purposes \"&'Schedule XXA'!$B$26","v":"Before Shock - Short Exposures - Currency Derivatives Qualifying as held for risk-mitigation purposes Other currency 4"},null,null,null,null,null,null,null,null,{"$f":"'Schedule XXA'!J26","v":0}]
["Sch XXA","Currency Shock",null,{"$f":"\"Before Shock - Short Exposures - Currency Derivatives Qualifying as held for risk-mitigation purposes \"&'Schedule XXA'!$B$27","v":"Before Shock - Short Exposures - Currency Derivatives Qualifying as held for risk-mitigation purposes Other currency 5"},null,null,null,null,null,null,null,null,{"$f":"'Schedule XXA'!J27","v":0}]
["Sch XXA","Currency Shock",null,{"$f":"\"Before Shock - Short Exposures - Currency Derivatives Qualifying as held for risk-mitigation purposes \"&'Schedule XXA'!$B$28","v":"Before Shock - Short Exposures - Currency Derivatives Qualifying as held for risk-mitigation purposes Other currency 6"},null,null,null,null,null,null,null,null,{"$f":"'Schedule XXA'!J28","v":0}]
["Sch XXA","Currency Shock",null,{"$f":"\"Before Shock - Short Exposures - Currency Derivatives Qualifying as held for risk-mitigation purposes \"&'Schedule XXA'!$B$29","v":"Before Shock - Short Exposures - Currency Derivatives Qualifying as held for risk-mitigation purposes Other currency 7"},null,null,null,null,null,null,null,null,{"$f":"'Schedule XXA'!J29","v":0}]
["Sch XXA","Currency Shock",null,{"$f":"\"Before Shock - Short Exposures - Currency Derivatives Qualifying as held for risk-mitigation purposes \"&'Schedule XXA'!$B$30","v":"Before Shock - Short Exposures - Currency Derivatives Qualifying as held for risk-mitigation purposes Other currency 8"},null,null,null,null,null,null,null,null,{"$f":"'Schedule XXA'!J30","v":0}]
["Sch XXA","Currency Shock",null,{"$f":"\"Before Shock - Short Exposures - Currency Derivatives Qualifying as held for risk-mitigation purposes \"&'Schedule XXA'!$B$31","v":"Before Shock - Short Exposures - Currency Derivatives Qualifying as held for risk-mitigation purposes Other currency 9"},null,null,null,null,null,null,null,null,{"$f":"'Schedule XXA'!J31","v":0}]
["Sch XXA","Currency Shock",null,{"$f":"\"Before Shock - Short Exposures - Currency Derivatives Qualifying as held for risk-mitigation purposes \"&'Schedule XXA'!$B$32","v":"Before Shock - Short Exposures - Currency Derivatives Qualifying as held for risk-mitigation purposes Other currency 10"},null,null,null,null,null,null,null,null,{"$f":"'Schedule XXA'!J32","v":0}]
["Sch XXA","Currency Shock",null,{"$f":"\"Before Shock - Short Exposures - Currency Derivatives Not Qualifying as held for risk-mitigation purposes \"&'Schedule XXA'!$B$10","v":"Before Shock - Short Exposures - Currency Derivatives Not Qualifying as held for risk-mitigation purposes United States Dollars"},null,null,null,null,null,null,null,null,{"$f":"'Schedule XXA'!L10","v":0}]
["Sch XXA","Currency Shock",null,{"$f":"\"Before Shock - Short Exposures - Currency Derivatives Not Qualifying as held for risk-mitigation purposes \"&'Schedule XXA'!$B$11","v":"Before Shock - Short Exposures - Currency Derivatives Not Qualifying as held for risk-mitigation purposes Bermuda Dollars"},null,null,null,null,null,null,null,null,{"$f":"'Schedule XXA'!L11","v":0}]
["Sch XXA","Currency Shock",null,{"$f":"\"Before Shock - Short Exposures - Currency Derivatives Not Qualifying as held for risk-mitigation purposes \"&'Schedule XXA'!$B$12","v":"Before Shock - Short Exposures - Currency Derivatives Not Qualifying as held for risk-mitigation purposes Qatar Riyals"},null,null,null,null,null,null,null,null,{"$f":"'Schedule XXA'!L12","v":0}]
["Sch XXA","Currency Shock",null,{"$f":"\"Before Shock - Short Exposures - Currency Derivatives Not Qualifying as held for risk-mitigation purposes \"&'Schedule XXA'!$B$13","v":"Before Shock - Short Exposures - Currency Derivatives Not Qualifying as held for risk-mitigation purposes Hong Kong Dollars"},null,null,null,null,null,null,null,null,{"$f":"'Schedule XXA'!L13","v":0}]
["Sch XXA","Currency Shock",null,{"$f":"\"Before Shock - Short Exposures - Currency Derivatives Not Qualifying as held for risk-mitigation purposes \"&'Schedule XXA'!$B$14","v":"Before Shock - Short Exposures - Currency Derivatives Not Qualifying as held for risk-mitigation purposes Euro"},null,null,null,null,null,null,null,null,{"$f":"'Schedule XXA'!L14","v":0}]
["Sch XXA","Currency Shock",null,{"$f":"\"Before Shock - Short Exposures - Currency Derivatives Not Qualifying as held for risk-mitigation purposes \"&'Schedule XXA'!$B$15","v":"Before Shock - Short Exposures - Currency Derivatives Not Qualifying as held for risk-mitigation purposes Denmark Kroner"},null,null,null,null,null,null,null,null,{"$f":"'Schedule XXA'!L15","v":0}]
["Sch XXA","Currency Shock",null,{"$f":"\"Before Shock - Short Exposures - Currency Derivatives Not Qualifying as held for risk-mitigation purposes \"&'Schedule XXA'!$B$16","v":"Before Shock - Short Exposures - Currency Derivatives Not Qualifying as held for risk-mitigation purposes Bulgaria Leva"},null,null,null,null,null,null,null,null,{"$f":"'Schedule XXA'!L16","v":0}]
["Sch XXA","Currency Shock",null,{"$f":"\"Before Shock - Short Exposures - Currency Derivatives Not Qualifying as held for risk-mitigation purposes \"&'Schedule XXA'!$B$17","v":"Before Shock - Short Exposures - Currency Derivatives Not Qualifying as held for risk-mitigation purposes West African CFA Francs"},null,null,null,null,null,null,null,null,{"$f":"'Schedule XXA'!L17","v":0}]
["Sch XXA","Currency Shock",null,{"$f":"\"Before Shock - Short Exposures - Currency Derivatives Not Qualifying as held for risk-mitigation purposes \"&'Schedule XXA'!$B$18","v":"Before Shock - Short Exposures - Currency Derivatives Not Qualifying as held for risk-mitigation purposes Central African CFA Francs"},null,null,null,null,null,null,null,null,{"$f":"'Schedule XXA'!L18","v":0}]
["Sch XXA","Currency Shock",null,{"$f":"\"Before Shock - Short Exposures - Currency Derivatives Not Qualifying as held for risk-mitigation purposes \"&'Schedule XXA'!$B$19","v":"Before Shock - Short Exposures - Currency Derivatives Not Qualifying as held for risk-mitigation purposes Comorian Francs"},null,null,null,null,null,null,null,null,{"$f":"'Schedule XXA'!L19","v":0}]
["Sch XXA","Currency Shock",null,{"$f":"\"Before Shock - Short Exposures - Currency Derivatives Not Qualifying as held for risk-mitigation purposes \"&'Schedule XXA'!$B$20","v":"Before Shock - Short Exposures - Currency Derivatives Not Qualifying as held for risk-mitigation purposes United Kingdom Pounds"},null,null,null,null,null,null,null,null,{"$f":"'Schedule XXA'!L20","v":0}]
["Sch XXA","Currency Shock",null,{"$f":"\"Before Shock - Short Exposures - Currency Derivatives Not Qualifying as held for risk-mitigation purposes \"&'Schedule XXA'!$B$21","v":"Before Shock - Short Exposures - Currency Derivatives Not Qualifying as held for risk-mitigation purposes Canada Dollars"},null,null,null,null,null,null,null,null,{"$f":"'Schedule XXA'!L21","v":0}]
["Sch XXA","Currency Shock",null,{"$f":"\"Before Shock - Short Exposures - Currency Derivatives Not Qualifying as held for risk-mitigation purposes \"&'Schedule XXA'!$B$22","v":"Before Shock - Short Exposures - Currency Derivatives Not Qualifying as held for risk-mitigation purposes Japan Yen"},null,null,null,null,null,null,null,null,{"$f":"'Schedule XXA'!L22","v":0}]
["Sch XXA","Currency Shock",null,{"$f":"\"Before Shock - Short Exposures - Currency Derivatives Not Qualifying as held for risk-mitigation purposes \"&'Schedule XXA'!$B$23","v":"Before Shock - Short Exposures - Currency Derivatives Not Qualifying as held for risk-mitigation purposes Other currency 1"},null,null,null,null,null,null,null,null,{"$f":"'Schedule XXA'!L23","v":0}]
["Sch XXA","Currency Shock",null,{"$f":"\"Before Shock - Short Exposures - Currency Derivatives Not Qualifying as held for risk-mitigation purposes \"&'Schedule XXA'!$B$24","v":"Before Shock - Short Exposures - Currency Derivatives Not Qualifying as held for risk-mitigation purposes Other currency 2"},null,null,null,null,null,null,null,null,{"$f":"'Schedule XXA'!L24","v":0}]
["Sch XXA","Currency Shock",null,{"$f":"\"Before Shock - Short Exposures - Currency Derivatives Not Qualifying as held for risk-mitigation purposes \"&'Schedule XXA'!$B$25","v":"Before Shock - Short Exposures - Currency Derivatives Not Qualifying as held for risk-mitigation purposes Other currency 3"},null,null,null,null,null,null,null,null,{"$f":"'Schedule XXA'!L25","v":0}]
["Sch XXA","Currency Shock",null,{"$f":"\"Before Shock - Short Exposures - Currency Derivatives Not Qualifying as held for risk-mitigation purposes \"&'Schedule XXA'!$B$26","v":"Before Shock - Short Exposures - Currency Derivatives Not Qualifying as held for risk-mitigation purposes Other currency 4"},null,null,null,null,null,null,null,null,{"$f":"'Schedule XXA'!L26","v":0}]
["Sch XXA","Currency Shock",null,{"$f":"\"Before Shock - Short Exposures - Currency Derivatives Not Qualifying as held for risk-mitigation purposes \"&'Schedule XXA'!$B$27","v":"Before Shock - Short Exposures - Currency Derivatives Not Qualifying as held for risk-mitigation purposes Other currency 5"},null,null,null,null,null,null,null,null,{"$f":"'Schedule XXA'!L27","v":0}]
["Sch XXA","Currency Shock",null,{"$f":"\"Before Shock - Short Exposures - Currency Derivatives Not Qualifying as held for risk-mitigation purposes \"&'Schedule XXA'!$B$28","v":"Before Shock - Short Exposures - Currency Derivatives Not Qualifying as held for risk-mitigation purposes Other currency 6"},null,null,null,null,null,null,null,null,{"$f":"'Schedule XXA'!L28","v":0}]
["Sch XXA","Currency Shock",null,{"$f":"\"Before Shock - Short Exposures - Currency Derivatives Not Qualifying as held for risk-mitigation purposes \"&'Schedule XXA'!$B$29","v":"Before Shock - Short Exposures - Currency Derivatives Not Qualifying as held for risk-mitigation purposes Other currency 7"},null,null,null,null,null,null,null,null,{"$f":"'Schedule XXA'!L29","v":0}]
["Sch XXA","Currency Shock",null,{"$f":"\"Before Shock - Short Exposures - Currency Derivatives Not Qualifying as held for risk-mitigation purposes \"&'Schedule XXA'!$B$30","v":"Before Shock - Short Exposures - Currency Derivatives Not Qualifying as held for risk-mitigation purposes Other currency 8"},null,null,null,null,null,null,null,null,{"$f":"'Schedule XXA'!L30","v":0}]
["Sch XXA","Currency Shock",null,{"$f":"\"Before Shock - Short Exposures - Currency Derivatives Not Qualifying as held for risk-mitigation purposes \"&'Schedule XXA'!$B$31","v":"Before Shock - Short Exposures - Currency Derivatives Not Qualifying as held for risk-mitigation purposes Other currency 9"},null,null,null,null,null,null,null,null,{"$f":"'Schedule XXA'!L31","v":0}]
["Sch XXA","Currency Shock",null,{"$f":"\"Before Shock - Short Exposures - Currency Derivatives Not Qualifying as held for risk-mitigation purposes \"&'Schedule XXA'!$B$32","v":"Before Shock - Short Exposures - Currency Derivatives Not Qualifying as held for risk-mitigation purposes Other currency 10"},null,null,null,null,null,null,null,null,{"$f":"'Schedule XXA'!L32","v":0}]
["Sch XXA","Currency Shock",null,{"$f":"\"Before Shock - B.E. Liabilities \"&'Schedule XXA'!$B$10","v":"Before Shock - B.E. Liabilities United States Dollars"},null,null,null,null,null,null,null,null,{"$f":"'Schedule XXA'!N10","v":0}]
["Sch XXA","Currency Shock",null,{"$f":"\"Before Shock - B.E. Liabilities \"&'Schedule XXA'!$B$11","v":"Before Shock - B.E. Liabilities Bermuda Dollars"},null,null,null,null,null,null,null,null,{"$f":"'Schedule XXA'!N11","v":0}]
["Sch XXA","Currency Shock",null,{"$f":"\"Before Shock - B.E. Liabilities \"&'Schedule XXA'!$B$12","v":"Before Shock - B.E. Liabilities Qatar Riyals"},null,null,null,null,null,null,null,null,{"$f":"'Schedule XXA'!N12","v":0}]
["Sch XXA","Currency Shock",null,{"$f":"\"Before Shock - B.E. Liabilities \"&'Schedule XXA'!$B$13","v":"Before Shock - B.E. Liabilities Hong Kong Dollars"},null,null,null,null,null,null,null,null,{"$f":"'Schedule XXA'!N13","v":0}]
["Sch XXA","Currency Shock",null,{"$f":"\"Before Shock - B.E. Liabilities \"&'Schedule XXA'!$B$14","v":"Before Shock - B.E. Liabilities Euro"},null,null,null,null,null,null,null,null,{"$f":"'Schedule XXA'!N14","v":0}]
["Sch XXA","Currency Shock",null,{"$f":"\"Before Shock - B.E. Liabilities \"&'Schedule XXA'!$B$15","v":"Before Shock - B.E. Liabilities Denmark Kroner"},null,null,null,null,null,null,null,null,{"$f":"'Schedule XXA'!N15","v":0}]
["Sch XXA","Currency Shock",null,{"$f":"\"Before Shock - B.E. Liabilities \"&'Schedule XXA'!$B$16","v":"Before Shock - B.E. Liabilities Bulgaria Leva"},null,null,null,null,null,null,null,null,{"$f":"'Schedule XXA'!N16","v":0}]
["Sch XXA","Currency Shock",null,{"$f":"\"Before Shock - B.E. Liabilities \"&'Schedule XXA'!$B$17","v":"Before Shock - B.E. Liabilities West African CFA Francs"},null,null,null,null,null,null,null,null,{"$f":"'Schedule XXA'!N17","v":0}]
["Sch XXA","Currency Shock",null,{"$f":"\"Before Shock - B.E. Liabilities \"&'Schedule XXA'!$B$18","v":"Before Shock - B.E. Liabilities Central African CFA Francs"},null,null,null,null,null,null,null,null,{"$f":"'Schedule XXA'!N18","v":0}]
["Sch XXA","Currency Shock",null,{"$f":"\"Before Shock - B.E. Liabilities \"&'Schedule XXA'!$B$19","v":"Before Shock - B.E. Liabilities Comorian Francs"},null,null,null,null,null,null,null,null,{"$f":"'Schedule XXA'!N19","v":0}]
["Sch XXA","Currency Shock",null,{"$f":"\"Before Shock - B.E. Liabilities \"&'Schedule XXA'!$B$20","v":"Before Shock - B.E. Liabilities United Kingdom Pounds"},null,null,null,null,null,null,null,null,{"$f":"'Schedule XXA'!N20","v":0}]
["Sch XXA","Currency Shock",null,{"$f":"\"Before Shock - B.E. Liabilities \"&'Schedule XXA'!$B$21","v":"Before Shock - B.E. Liabilities Canada Dollars"},null,null,null,null,null,null,null,null,{"$f":"'Schedule XXA'!N21","v":0}]
["Sch XXA","Currency Shock",null,{"$f":"\"Before Shock - B.E. Liabilities \"&'Schedule XXA'!$B$22","v":"Before Shock - B.E. Liabilities Japan Yen"},null,null,null,null,null,null,null,null,{"$f":"'Schedule XXA'!N22","v":0}]
["Sch XXA","Currency Shock",null,{"$f":"\"Before Shock - B.E. Liabilities \"&'Schedule XXA'!$B$23","v":"Before Shock - B.E. Liabilities Other currency 1"},null,null,null,null,null,null,null,null,{"$f":"'Schedule XXA'!N23","v":0}]
["Sch XXA","Currency Shock",null,{"$f":"\"Before Shock - B.E. Liabilities \"&'Schedule XXA'!$B$24","v":"Before Shock - B.E. Liabilities Other currency 2"},null,null,null,null,null,null,null,null,{"$f":"'Schedule XXA'!N24","v":0}]
["Sch XXA","Currency Shock",null,{"$f":"\"Before Shock - B.E. Liabilities \"&'Schedule XXA'!$B$25","v":"Before Shock - B.E. Liabilities Other currency 3"},null,null,null,null,null,null,null,null,{"$f":"'Schedule XXA'!N25","v":0}]
["Sch XXA","Currency Shock",null,{"$f":"\"Before Shock - B.E. Liabilities \"&'Schedule XXA'!$B$26","v":"Before Shock - B.E. Liabilities Other currency 4"},null,null,null,null,null,null,null,null,{"$f":"'Schedule XXA'!N26","v":0}]
["Sch XXA","Currency Shock",null,{"$f":"\"Before Shock - B.E. Liabilities \"&'Schedule XXA'!$B$27","v":"Before Shock - B.E. Liabilities Other currency 5"},null,null,null,null,null,null,null,null,{"$f":"'Schedule XXA'!N27","v":0}]
["Sch XXA","Currency Shock",null,{"$f":"\"Before Shock - B.E. Liabilities \"&'Schedule XXA'!$B$28","v":"Before Shock - B.E. Liabilities Other currency 6"},null,null,null,null,null,null,null,null,{"$f":"'Schedule XXA'!N28","v":0}]
["Sch XXA","Currency Shock",null,{"$f":"\"Before Shock - B.E. Liabilities \"&'Schedule XXA'!$B$29","v":"Before Shock - B.E. Liabilities Other currency 7"},null,null,null,null,null,null,null,null,{"$f":"'Schedule XXA'!N29","v":0}]
["Sch XXA","Currency Shock",null,{"$f":"\"Before Shock - B.E. Liabilities \"&'Schedule XXA'!$B$30","v":"Before Shock - B.E. Liabilities Other currency 8"},null,null,null,null,null,null,null,null,{"$f":"'Schedule XXA'!N30","v":0}]
["Sch XXA","Currency Shock",null,{"$f":"\"Before Shock - B.E. Liabilities \"&'Schedule XXA'!$B$31","v":"Before Shock - B.E. Liabilities Other currency 9"},null,null,null,null,null,null,null,null,{"$f":"'Schedule XXA'!N31","v":0}]
["Sch XXA","Currency Shock",null,{"$f":"\"Before Shock - B.E. Liabilities \"&'Schedule XXA'!$B$32","v":"Before Shock - B.E. Liabilities Other currency 10"},null,null,null,null,null,null,null,null,{"$f":"'Schedule XXA'!N32","v":0}]
["Sch XXA","Currency Shock",null,{"$f":"\"After Shock - Assets - Excluding Currency - Sensitive Derivatives \"&'Schedule XXA'!$B$10","v":"After Shock - Assets - Excluding Currency - Sensitive Derivatives United States Dollars"},null,null,null,null,null,null,null,null,{"$f":"'Schedule XXA'!V10","v":0}]
["Sch XXA","Currency Shock",null,{"$f":"\"After Shock - Assets - Excluding Currency - Sensitive Derivatives \"&'Schedule XXA'!$B$11","v":"After Shock - Assets - Excluding Currency - Sensitive Derivatives Bermuda Dollars"},null,null,null,null,null,null,null,null,{"$f":"'Schedule XXA'!V11","v":0}]
["Sch XXA","Currency Shock",null,{"$f":"\"After Shock - Assets - Excluding Currency - Sensitive Derivatives \"&'Schedule XXA'!$B$12","v":"After Shock - Assets - Excluding Currency - Sensitive Derivatives Qatar Riyals"},null,null,null,null,null,null,null,null,{"$f":"'Schedule XXA'!V12","v":0}]
["Sch XXA","Currency Shock",null,{"$f":"\"After Shock - Assets - Excluding Currency - Sensitive Derivatives \"&'Schedule XXA'!$B$13","v":"After Shock - Assets - Excluding Currency - Sensitive Derivatives Hong Kong Dollars"},null,null,null,null,null,null,null,null,{"$f":"'Schedule XXA'!V13","v":0}]
["Sch XXA","Currency Shock",null,{"$f":"\"After Shock - Assets - Excluding Currency - Sensitive Derivatives \"&'Schedule XXA'!$B$14","v":"After Shock - Assets - Excluding Currency - Sensitive Derivatives Euro"},null,null,null,null,null,null,null,null,{"$f":"'Schedule XXA'!V14","v":0}]
["Sch XXA","Currency Shock",null,{"$f":"\"After Shock - Assets - Excluding Currency - Sensitive Derivatives \"&'Schedule XXA'!$B$15","v":"After Shock - Assets - Excluding Currency - Sensitive Derivatives Denmark Kroner"},null,null,null,null,null,null,null,null,{"$f":"'Schedule XXA'!V15","v":0}]
["Sch XXA","Currency Shock",null,{"$f":"\"After Shock - Assets - Excluding Currency - Sensitive Derivatives \"&'Schedule XXA'!$B$16","v":"After Shock - Assets - Excluding Currency - Sensitive Derivatives Bulgaria Leva"},null,null,null,null,null,null,null,null,{"$f":"'Schedule XXA'!V16","v":0}]
["Sch XXA","Currency Shock",null,{"$f":"\"After Shock - Assets - Excluding Currency - Sensitive Derivatives \"&'Schedule XXA'!$B$17","v":"After Shock - Assets - Excluding Currency - Sensitive Derivatives West African CFA Francs"},null,null,null,null,null,null,null,null,{"$f":"'Schedule XXA'!V17","v":0}]
["Sch XXA","Currency Shock",null,{"$f":"\"After Shock - Assets - Excluding Currency - Sensitive Derivatives \"&'Schedule XXA'!$B$18","v":"After Shock - Assets - Excluding Currency - Sensitive Derivatives Central African CFA Francs"},null,null,null,null,null,null,null,null,{"$f":"'Schedule XXA'!V18","v":0}]
["Sch XXA","Currency Shock",null,{"$f":"\"After Shock - Assets - Excluding Currency - Sensitive Derivatives \"&'Schedule XXA'!$B$19","v":"After Shock - Assets - Excluding Currency - Sensitive Derivatives Comorian Francs"},null,null,null,null,null,null,null,null,{"$f":"'Schedule XXA'!V19","v":0}]
["Sch XXA","Currency Shock",null,{"$f":"\"After Shock - Assets - Excluding Currency - Sensitive Derivatives \"&'Schedule XXA'!$B$20","v":"After Shock - Assets - Excluding Currency - Sensitive Derivatives United Kingdom Pounds"},null,null,null,null,null,null,null,null,{"$f":"'Schedule XXA'!V20","v":0}]
["Sch XXA","Currency Shock",null,{"$f":"\"After Shock - Assets - Excluding Currency - Sensitive Derivatives \"&'Schedule XXA'!$B$21","v":"After Shock - Assets - Excluding Currency - Sensitive Derivatives Canada Dollars"},null,null,null,null,null,null,null,null,{"$f":"'Schedule XXA'!V21","v":0}]
["Sch XXA","Currency Shock",null,{"$f":"\"After Shock - Assets - Excluding Currency - Sensitive Derivatives \"&'Schedule XXA'!$B$22","v":"After Shock - Assets - Excluding Currency - Sensitive Derivatives Japan Yen"},null,null,null,null,null,null,null,null,{"$f":"'Schedule XXA'!V22","v":0}]
["Sch XXA","Currency Shock",null,{"$f":"\"After Shock - Assets - Excluding Currency - Sensitive Derivatives \"&'Schedule XXA'!$B$23","v":"After Shock - Assets - Excluding Currency - Sensitive Derivatives Other currency 1"},null,null,null,null,null,null,null,null,{"$f":"'Schedule XXA'!V23","v":0}]
["Sch XXA","Currency Shock",null,{"$f":"\"After Shock - Assets - Excluding Currency - Sensitive Derivatives \"&'Schedule XXA'!$B$24","v":"After Shock - Assets - Excluding Currency - Sensitive Derivatives Other currency 2"},null,null,null,null,null,null,null,null,{"$f":"'Schedule XXA'!V24","v":0}]
["Sch XXA","Currency Shock",null,{"$f":"\"After Shock - Assets - Excluding Currency - Sensitive Derivatives \"&'Schedule XXA'!$B$25","v":"After Shock - Assets - Excluding Currency - Sensitive Derivatives Other currency 3"},null,null,null,null,null,null,null,null,{"$f":"'Schedule XXA'!V25","v":0}]
["Sch XXA","Currency Shock",null,{"$f":"\"After Shock - Assets - Excluding Currency - Sensitive Derivatives \"&'Schedule XXA'!$B$26","v":"After Shock - Assets - Excluding Currency - Sensitive Derivatives Other currency 4"},null,null,null,null,null,null,null,null,{"$f":"'Schedule XXA'!V26","v":0}]
["Sch XXA","Currency Shock",null,{"$f":"\"After Shock - Assets - Excluding Currency - Sensitive Derivatives \"&'Schedule XXA'!$B$27","v":"After Shock - Assets - Excluding Currency - Sensitive Derivatives Other currency 5"},null,null,null,null,null,null,null,null,{"$f":"'Schedule XXA'!V27","v":0}]
["Sch XXA","Currency Shock",null,{"$f":"\"After Shock - Assets - Excluding Currency - Sensitive Derivatives \"&'Schedule XXA'!$B$28","v":"After Shock - Assets - Excluding Currency - Sensitive Derivatives Other currency 6"},null,null,null,null,null,null,null,null,{"$f":"'Schedule XXA'!V28","v":0}]
["Sch XXA","Currency Shock",null,{"$f":"\"After Shock - Assets - Excluding Currency - Sensitive Derivatives \"&'Schedule XXA'!$B$29","v":"After Shock - Assets - Excluding Currency - Sensitive Derivatives Other currency 7"},null,null,null,null,null,null,null,null,{"$f":"'Schedule XXA'!V29","v":0}]
["Sch XXA","Currency Shock",null,{"$f":"\"After Shock - Assets - Excluding Currency - Sensitive Derivatives \"&'Schedule XXA'!$B$30","v":"After Shock - Assets - Excluding Currency - Sensitive Derivatives Other currency 8"},null,null,null,null,null,null,null,null,{"$f":"'Schedule XXA'!V30","v":0}]
["Sch XXA","Currency Shock",null,{"$f":"\"After Shock - Assets - Excluding Currency - Sensitive Derivatives \"&'Schedule XXA'!$B$31","v":"After Shock - Assets - Excluding Currency - Sensitive Derivatives Other currency 9"},null,null,null,null,null,null,null,null,{"$f":"'Schedule XXA'!V31","v":0}]
["Sch XXA","Currency Shock",null,{"$f":"\"After Shock - Assets - Excluding Currency - Sensitive Derivatives \"&'Schedule XXA'!$B$32","v":"After Shock - Assets - Excluding Currency - Sensitive Derivatives Other currency 10"},null,null,null,null,null,null,null,null,{"$f":"'Schedule XXA'!V32","v":0}]
["Sch XXA","Currency Shock",null,{"$f":"\"After Shock - Long Exposures - Currency Derivatives Qualifying as held for risk-mitigation purposes \"&'Schedule XXA'!$B$10","v":"After Shock - Long Exposures - Currency Derivatives Qualifying as held for risk-mitigation purposes United States Dollars"},null,null,null,null,null,null,null,null,{"$f":"'Schedule XXA'!X10","v":0}]
["Sch XXA","Currency Shock",null,{"$f":"\"After Shock - Long Exposures - Currency Derivatives Qualifying as held for risk-mitigation purposes \"&'Schedule XXA'!$B$11","v":"After Shock - Long Exposures - Currency Derivatives Qualifying as held for risk-mitigation purposes Bermuda Dollars"},null,null,null,null,null,null,null,null,{"$f":"'Schedule XXA'!X11","v":0}]
["Sch XXA","Currency Shock",null,{"$f":"\"After Shock - Long Exposures - Currency Derivatives Qualifying as held for risk-mitigation purposes \"&'Schedule XXA'!$B$12","v":"After Shock - Long Exposures - Currency Derivatives Qualifying as held for risk-mitigation purposes Qatar Riyals"},null,null,null,null,null,null,null,null,{"$f":"'Schedule XXA'!X12","v":0}]
["Sch XXA","Currency Shock",null,{"$f":"\"After Shock - Long Exposures - Currency Derivatives Qualifying as held for risk-mitigation purposes \"&'Schedule XXA'!$B$13","v":"After Shock - Long Exposures - Currency Derivatives Qualifying as held for risk-mitigation purposes Hong Kong Dollars"},null,null,null,null,null,null,null,null,{"$f":"'Schedule XXA'!X13","v":0}]
["Sch XXA","Currency Shock",null,{"$f":"\"After Shock - Long Exposures - Currency Derivatives Qualifying as held for risk-mitigation purposes \"&'Schedule XXA'!$B$14","v":"After Shock - Long Exposures - Currency Derivatives Qualifying as held for risk-mitigation purposes Euro"},null,null,null,null,null,null,null,null,{"$f":"'Schedule XXA'!X14","v":0}]
["Sch XXA","Currency Shock",null,{"$f":"\"After Shock - Long Exposures - Currency Derivatives Qualifying as held for risk-mitigation purposes \"&'Schedule XXA'!$B$15","v":"After Shock - Long Exposures - Currency Derivatives Qualifying as held for risk-mitigation purposes Denmark Kroner"},null,null,null,null,null,null,null,null,{"$f":"'Schedule XXA'!X15","v":0}]
["Sch XXA","Currency Shock",null,{"$f":"\"After Shock - Long Exposures - Currency Derivatives Qualifying as held for risk-mitigation purposes \"&'Schedule XXA'!$B$16","v":"After Shock - Long Exposures - Currency Derivatives Qualifying as held for risk-mitigation purposes Bulgaria Leva"},null,null,null,null,null,null,null,null,{"$f":"'Schedule XXA'!X16","v":0}]
["Sch XXA","Currency Shock",null,{"$f":"\"After Shock - Long Exposures - Currency Derivatives Qualifying as held for risk-mitigation purposes \"&'Schedule XXA'!$B$17","v":"After Shock - Long Exposures - Currency Derivatives Qualifying as held for risk-mitigation purposes West African CFA Francs"},null,null,null,null,null,null,null,null,{"$f":"'Schedule XXA'!X17","v":0}]
["Sch XXA","Currency Shock",null,{"$f":"\"After Shock - Long Exposures - Currency Derivatives Qualifying as held for risk-mitigation purposes \"&'Schedule XXA'!$B$18","v":"After Shock - Long Exposures - Currency Derivatives Qualifying as held for risk-mitigation purposes Central African CFA Francs"},null,null,null,null,null,null,null,null,{"$f":"'Schedule XXA'!X18","v":0}]
["Sch XXA","Currency Shock",null,{"$f":"\"After Shock - Long Exposures - Currency Derivatives Qualifying as held for risk-mitigation purposes \"&'Schedule XXA'!$B$19","v":"After Shock - Long Exposures - Currency Derivatives Qualifying as held for risk-mitigation purposes Comorian Francs"},null,null,null,null,null,null,null,null,{"$f":"'Schedule XXA'!X19","v":0}]
["Sch XXA","Currency Shock",null,{"$f":"\"After Shock - Long Exposures - Currency Derivatives Qualifying as held for risk-mitigation purposes \"&'Schedule XXA'!$B$20","v":"After Shock - Long Exposures - Currency Derivatives Qualifying as held for risk-mitigation purposes United Kingdom Pounds"},null,null,null,null,null,null,null,null,{"$f":"'Schedule XXA'!X20","v":0}]
["Sch XXA","Currency Shock",null,{"$f":"\"After Shock - Long Exposures - Currency Derivatives Qualifying as held for risk-mitigation purposes \"&'Schedule XXA'!$B$21","v":"After Shock - Long Exposures - Currency Derivatives Qualifying as held for risk-mitigation purposes Canada Dollars"},null,null,null,null,null,null,null,null,{"$f":"'Schedule XXA'!X21","v":0}]
["Sch XXA","Currency Shock",null,{"$f":"\"After Shock - Long Exposures - Currency Derivatives Qualifying as held for risk-mitigation purposes \"&'Schedule XXA'!$B$22","v":"After Shock - Long Exposures - Currency Derivatives Qualifying as held for risk-mitigation purposes Japan Yen"},null,null,null,null,null,null,null,null,{"$f":"'Schedule XXA'!X22","v":0}]
["Sch XXA","Currency Shock",null,{"$f":"\"After Shock - Long Exposures - Currency Derivatives Qualifying as held for risk-mitigation purposes \"&'Schedule XXA'!$B$23","v":"After Shock - Long Exposures - Currency Derivatives Qualifying as held for risk-mitigation purposes Other currency 1"},null,null,null,null,null,null,null,null,{"$f":"'Schedule XXA'!X23","v":0}]
["Sch XXA","Currency Shock",null,{"$f":"\"After Shock - Long Exposures - Currency Derivatives Qualifying as held for risk-mitigation purposes \"&'Schedule XXA'!$B$24","v":"After Shock - Long Exposures - Currency Derivatives Qualifying as held for risk-mitigation purposes Other currency 2"},null,null,null,null,null,null,null,null,{"$f":"'Schedule XXA'!X24","v":0}]
["Sch XXA","Currency Shock",null,{"$f":"\"After Shock - Long Exposures - Currency Derivatives Qualifying as held for risk-mitigation purposes \"&'Schedule XXA'!$B$25","v":"After Shock - Long Exposures - Currency Derivatives Qualifying as held for risk-mitigation purposes Other currency 3"},null,null,null,null,null,null,null,null,{"$f":"'Schedule XXA'!X25","v":0}]
["Sch XXA","Currency Shock",null,{"$f":"\"After Shock - Long Exposures - Currency Derivatives Qualifying as held for risk-mitigation purposes \"&'Schedule XXA'!$B$26","v":"After Shock - Long Exposures - Currency Derivatives Qualifying as held for risk-mitigation purposes Other currency 4"},null,null,null,null,null,null,null,null,{"$f":"'Schedule XXA'!X26","v":0}]
["Sch XXA","Currency Shock",null,{"$f":"\"After Shock - Long Exposures - Currency Derivatives Qualifying as held for risk-mitigation purposes \"&'Schedule XXA'!$B$27","v":"After Shock - Long Exposures - Currency Derivatives Qualifying as held for risk-mitigation purposes Other currency 5"},null,null,null,null,null,null,null,null,{"$f":"'Schedule XXA'!X27","v":0}]
["Sch XXA","Currency Shock",null,{"$f":"\"After Shock - Long Exposures - Currency Derivatives Qualifying as held for risk-mitigation purposes \"&'Schedule XXA'!$B$28","v":"After Shock - Long Exposures - Currency Derivatives Qualifying as held for risk-mitigation purposes Other currency 6"},null,null,null,null,null,null,null,null,{"$f":"'Schedule XXA'!X28","v":0}]
["Sch XXA","Currency Shock",null,{"$f":"\"After Shock - Long Exposures - Currency Derivatives Qualifying as held for risk-mitigation purposes \"&'Schedule XXA'!$B$29","v":"After Shock - Long Exposures - Currency Derivatives Qualifying as held for risk-mitigation purposes Other currency 7"},null,null,null,null,null,null,null,null,{"$f":"'Schedule XXA'!X29","v":0}]
["Sch XXA","Currency Shock",null,{"$f":"\"After Shock - Long Exposures - Currency Derivatives Qualifying as held for risk-mitigation purposes \"&'Schedule XXA'!$B$30","v":"After Shock - Long Exposures - Currency Derivatives Qualifying as held for risk-mitigation purposes Other currency 8"},null,null,null,null,null,null,null,null,{"$f":"'Schedule XXA'!X30","v":0}]
["Sch XXA","Currency Shock",null,{"$f":"\"After Shock - Long Exposures - Currency Derivatives Qualifying as held for risk-mitigation purposes \"&'Schedule XXA'!$B$31","v":"After Shock - Long Exposures - Currency Derivatives Qualifying as held for risk-mitigation purposes Other currency 9"},null,null,null,null,null,null,null,null,{"$f":"'Schedule XXA'!X31","v":0}]
["Sch XXA","Currency Shock",null,{"$f":"\"After Shock - Long Exposures - Currency Derivatives Qualifying as held for risk-mitigation purposes \"&'Schedule XXA'!$B$32","v":"After Shock - Long Exposures - Currency Derivatives Qualifying as held for risk-mitigation purposes Other currency 10"},null,null,null,null,null,null,null,null,{"$f":"'Schedule XXA'!X32","v":0}]
["Sch XXA","Currency Shock",null,{"$f":"\"After Shock - Long Exposures - Currency Derivatives Not Qualifying as held for risk-mitigation purposes \"&'Schedule XXA'!$B$10","v":"After Shock - Long Exposures - Currency Derivatives Not Qualifying as held for risk-mitigation purposes United States Dollars"},null,null,null,null,null,null,null,null,{"$f":"'Schedule XXA'!Z10","v":0}]
["Sch XXA","Currency Shock",null,{"$f":"\"After Shock - Long Exposures - Currency Derivatives Not Qualifying as held for risk-mitigation purposes \"&'Schedule XXA'!$B$11","v":"After Shock - Long Exposures - Currency Derivatives Not Qualifying as held for risk-mitigation purposes Bermuda Dollars"},null,null,null,null,null,null,null,null,{"$f":"'Schedule XXA'!Z11","v":0}]
["Sch XXA","Currency Shock",null,{"$f":"\"After Shock - Long Exposures - Currency Derivatives Not Qualifying as held for risk-mitigation purposes \"&'Schedule XXA'!$B$12","v":"After Shock - Long Exposures - Currency Derivatives Not Qualifying as held for risk-mitigation purposes Qatar Riyals"},null,null,null,null,null,null,null,null,{"$f":"'Schedule XXA'!Z12","v":0}]
["Sch XXA","Currency Shock",null,{"$f":"\"After Shock - Long Exposures - Currency Derivatives Not Qualifying as held for risk-mitigation purposes \"&'Schedule XXA'!$B$13","v":"After Shock - Long Exposures - Currency Derivatives Not Qualifying as held for risk-mitigation purposes Hong Kong Dollars"},null,null,null,null,null,null,null,null,{"$f":"'Schedule XXA'!Z13","v":0}]
["Sch XXA","Currency Shock",null,{"$f":"\"After Shock - Long Exposures - Currency Derivatives Not Qualifying as held for risk-mitigation purposes \"&'Schedule XXA'!$B$14","v":"After Shock - Long Exposures - Currency Derivatives Not Qualifying as held for risk-mitigation purposes Euro"},null,null,null,null,null,null,null,null,{"$f":"'Schedule XXA'!Z14","v":0}]
["Sch XXA","Currency Shock",null,{"$f":"\"After Shock - Long Exposures - Currency Derivatives Not Qualifying as held for risk-mitigation purposes \"&'Schedule XXA'!$B$15","v":"After Shock - Long Exposures - Currency Derivatives Not Qualifying as held for risk-mitigation purposes Denmark Kroner"},null,null,null,null,null,null,null,null,{"$f":"'Schedule XXA'!Z15","v":0}]
["Sch XXA","Currency Shock",null,{"$f":"\"After Shock - Long Exposures - Currency Derivatives Not Qualifying as held for risk-mitigation purposes \"&'Schedule XXA'!$B$16","v":"After Shock - Long Exposures - Currency Derivatives Not Qualifying as held for risk-mitigation purposes Bulgaria Leva"},null,null,null,null,null,null,null,null,{"$f":"'Schedule XXA'!Z16","v":0}]
["Sch XXA","Currency Shock",null,{"$f":"\"After Shock - Long Exposures - Currency Derivatives Not Qualifying as held for risk-mitigation purposes \"&'Schedule XXA'!$B$17","v":"After Shock - Long Exposures - Currency Derivatives Not Qualifying as held for risk-mitigation purposes West African CFA Francs"},null,null,null,null,null,null,null,null,{"$f":"'Schedule XXA'!Z17","v":0}]
["Sch XXA","Currency Shock",null,{"$f":"\"After Shock - Long Exposures - Currency Derivatives Not Qualifying as held for risk-mitigation purposes \"&'Schedule XXA'!$B$18","v":"After Shock - Long Exposures - Currency Derivatives Not Qualifying as held for risk-mitigation purposes Central African CFA Francs"},null,null,null,null,null,null,null,null,{"$f":"'Schedule XXA'!Z18","v":0}]
["Sch XXA","Currency Shock",null,{"$f":"\"After Shock - Long Exposures - Currency Derivatives Not Qualifying as held for risk-mitigation purposes \"&'Schedule XXA'!$B$19","v":"After Shock - Long Exposures - Currency Derivatives Not Qualifying as held for risk-mitigation purposes Comorian Francs"},null,null,null,null,null,null,null,null,{"$f":"'Schedule XXA'!Z19","v":0}]
["Sch XXA","Currency Shock",null,{"$f":"\"After Shock - Long Exposures - Currency Derivatives Not Qualifying as held for risk-mitigation purposes \"&'Schedule XXA'!$B$20","v":"After Shock - Long Exposures - Currency Derivatives Not Qualifying as held for risk-mitigation purposes United Kingdom Pounds"},null,null,null,null,null,null,null,null,{"$f":"'Schedule XXA'!Z20","v":0}]
["Sch XXA","Currency Shock",null,{"$f":"\"After Shock - Long Exposures - Currency Derivatives Not Qualifying as held for risk-mitigation purposes \"&'Schedule XXA'!$B$21","v":"After Shock - Long Exposures - Currency Derivatives Not Qualifying as held for risk-mitigation purposes Canada Dollars"},null,null,null,null,null,null,null,null,{"$f":"'Schedule XXA'!Z21","v":0}]
["Sch XXA","Currency Shock",null,{"$f":"\"After Shock - Long Exposures - Currency Derivatives Not Qualifying as held for risk-mitigation purposes \"&'Schedule XXA'!$B$22","v":"After Shock - Long Exposures - Currency Derivatives Not Qualifying as held for risk-mitigation purposes Japan Yen"},null,null,null,null,null,null,null,null,{"$f":"'Schedule XXA'!Z22","v":0}]
["Sch XXA","Currency Shock",null,{"$f":"\"After Shock - Long Exposures - Currency Derivatives Not Qualifying as held for risk-mitigation purposes \"&'Schedule XXA'!$B$23","v":"After Shock - Long Exposures - Currency Derivatives Not Qualifying as held for risk-mitigation purposes Other currency 1"},null,null,null,null,null,null,null,null,{"$f":"'Schedule XXA'!Z23","v":0}]
["Sch XXA","Currency Shock",null,{"$f":"\"After Shock - Long Exposures - Currency Derivatives Not Qualifying as held for risk-mitigation purposes \"&'Schedule XXA'!$B$24","v":"After Shock - Long Exposures - Currency Derivatives Not Qualifying as held for risk-mitigation purposes Other currency 2"},null,null,null,null,null,null,null,null,{"$f":"'Schedule XXA'!Z24","v":0}]
["Sch XXA","Currency Shock",null,{"$f":"\"After Shock - Long Exposures - Currency Derivatives Not Qualifying as held for risk-mitigation purposes \"&'Schedule XXA'!$B$25","v":"After Shock - Long Exposures - Currency Derivatives Not Qualifying as held for risk-mitigation purposes Other currency 3"},null,null,null,null,null,null,null,null,{"$f":"'Schedule XXA'!Z25","v":0}]
["Sch XXA","Currency Shock",null,{"$f":"\"After Shock - Long Exposures - Currency Derivatives Not Qualifying as held for risk-mitigation purposes \"&'Schedule XXA'!$B$26","v":"After Shock - Long Exposures - Currency Derivatives Not Qualifying as held for risk-mitigation purposes Other currency 4"},null,null,null,null,null,null,null,null,{"$f":"'Schedule XXA'!Z26","v":0}]
["Sch XXA","Currency Shock",null,{"$f":"\"After Shock - Long Exposures - Currency Derivatives Not Qualifying as held for risk-mitigation purposes \"&'Schedule XXA'!$B$27","v":"After Shock - Long Exposures - Currency Derivatives Not Qualifying as held for risk-mitigation purposes Other currency 5"},null,null,null,null,null,null,null,null,{"$f":"'Schedule XXA'!Z27","v":0}]
["Sch XXA","Currency Shock",null,{"$f":"\"After Shock - Long Exposures - Currency Derivatives Not Qualifying as held for risk-mitigation purposes \"&'Schedule XXA'!$B$28","v":"After Shock - Long Exposures - Currency Derivatives Not Qualifying as held for risk-mitigation purposes Other currency 6"},null,null,null,null,null,null,null,null,{"$f":"'Schedule XXA'!Z28","v":0}]
["Sch XXA","Currency Shock",null,{"$f":"\"After Shock - Long Exposures - Currency Derivatives Not Qualifying as held for risk-mitigation purposes \"&'Schedule XXA'!$B$29","v":"After Shock - Long Exposures - Currency Derivatives Not Qualifying as held for risk-mitigation purposes Other currency 7"},null,null,null,null,null,null,null,null,{"$f":"'Schedule XXA'!Z29","v":0}]
["Sch XXA","Currency Shock",null,{"$f":"\"After Shock - Long Exposures - Currency Derivatives Not Qualifying as held for risk-mitigation purposes \"&'Schedule XXA'!$B$30","v":"After Shock - Long Exposures - Currency Derivatives Not Qualifying as held for risk-mitigation purposes Other currency 8"},null,null,null,null,null,null,null,null,{"$f":"'Schedule XXA'!Z30","v":0}]
["Sch XXA","Currency Shock",null,{"$f":"\"After Shock - Long Exposures - Currency Derivatives Not Qualifying as held for risk-mitigation purposes \"&'Schedule XXA'!$B$31","v":"After Shock - Long Exposures - Currency Derivatives Not Qualifying as held for risk-mitigation purposes Other currency 9"},null,null,null,null,null,null,null,null,{"$f":"'Schedule XXA'!Z31","v":0}]
["Sch XXA","Currency Shock",null,{"$f":"\"After Shock - Long Exposures - Currency Derivatives Not Qualifying as held for risk-mitigation purposes \"&'Schedule XXA'!$B$32","v":"After Shock - Long Exposures - Currency Derivatives Not Qualifying as held for risk-mitigation purposes Other currency 10"},null,null,null,null,null,null,null,null,{"$f":"'Schedule XXA'!Z32","v":0}]
["Sch XXA","Currency Shock",null,{"$f":"\"After Shock - Short Exposures - Currency Derivatives Qualifying as held for risk-mitigation purposes \"&'Schedule XXA'!$B$10","v":"After Shock - Short Exposures - Currency Derivatives Qualifying as held for risk-mitigation purposes United States Dollars"},null,null,null,null,null,null,null,null,{"$f":"'Schedule XXA'!AB10","v":0}]
["Sch XXA","Currency Shock",null,{"$f":"\"After Shock - Short Exposures - Currency Derivatives Qualifying as held for risk-mitigation purposes \"&'Schedule XXA'!$B$11","v":"After Shock - Short Exposures - Currency Derivatives Qualifying as held for risk-mitigation purposes Bermuda Dollars"},null,null,null,null,null,null,null,null,{"$f":"'Schedule XXA'!AB11","v":0}]
["Sch XXA","Currency Shock",null,{"$f":"\"After Shock - Short Exposures - Currency Derivatives Qualifying as held for risk-mitigation purposes \"&'Schedule XXA'!$B$12","v":"After Shock - Short Exposures - Currency Derivatives Qualifying as held for risk-mitigation purposes Qatar Riyals"},null,null,null,null,null,null,null,null,{"$f":"'Schedule XXA'!AB12","v":0}]
["Sch XXA","Currency Shock",null,{"$f":"\"After Shock - Short Exposures - Currency Derivatives Qualifying as held for risk-mitigation purposes \"&'Schedule XXA'!$B$13","v":"After Shock - Short Exposures - Currency Derivatives Qualifying as held for risk-mitigation purposes Hong Kong Dollars"},null,null,null,null,null,null,null,null,{"$f":"'Schedule XXA'!AB13","v":0}]
["Sch XXA","Currency Shock",null,{"$f":"\"After Shock - Short Exposures - Currency Derivatives Qualifying as held for risk-mitigation purposes \"&'Schedule XXA'!$B$14","v":"After Shock - Short Exposures - Currency Derivatives Qualifying as held for risk-mitigation purposes Euro"},null,null,null,null,null,null,null,null,{"$f":"'Schedule XXA'!AB14","v":0}]
["Sch XXA","Currency Shock",null,{"$f":"\"After Shock - Short Exposures - Currency Derivatives Qualifying as held for risk-mitigation purposes \"&'Schedule XXA'!$B$15","v":"After Shock - Short Exposures - Currency Derivatives Qualifying as held for risk-mitigation purposes Denmark Kroner"},null,null,null,null,null,null,null,null,{"$f":"'Schedule XXA'!AB15","v":0}]
["Sch XXA","Currency Shock",null,{"$f":"\"After Shock - Short Exposures - Currency Derivatives Qualifying as held for risk-mitigation purposes \"&'Schedule XXA'!$B$16","v":"After Shock - Short Exposures - Currency Derivatives Qualifying as held for risk-mitigation purposes Bulgaria Leva"},null,null,null,null,null,null,null,null,{"$f":"'Schedule XXA'!AB16","v":0}]
["Sch XXA","Currency Shock",null,{"$f":"\"After Shock - Short Exposures - Currency Derivatives Qualifying as held for risk-mitigation purposes \"&'Schedule XXA'!$B$17","v":"After Shock - Short Exposures - Currency Derivatives Qualifying as held for risk-mitigation purposes West African CFA Francs"},null,null,null,null,null,null,null,null,{"$f":"'Schedule XXA'!AB17","v":0}]
["Sch XXA","Currency Shock",null,{"$f":"\"After Shock - Short Exposures - Currency Derivatives Qualifying as held for risk-mitigation purposes \"&'Schedule XXA'!$B$18","v":"After Shock - Short Exposures - Currency Derivatives Qualifying as held for risk-mitigation purposes Central African CFA Francs"},null,null,null,null,null,null,null,null,{"$f":"'Schedule XXA'!AB18","v":0}]
["Sch XXA","Currency Shock",null,{"$f":"\"After Shock - Short Exposures - Currency Derivatives Qualifying as held for risk-mitigation purposes \"&'Schedule XXA'!$B$19","v":"After Shock - Short Exposures - Currency Derivatives Qualifying as held for risk-mitigation purposes Comorian Francs"},null,null,null,null,null,null,null,null,{"$f":"'Schedule XXA'!AB19","v":0}]
["Sch XXA","Currency Shock",null,{"$f":"\"After Shock - Short Exposures - Currency Derivatives Qualifying as held for risk-mitigation purposes \"&'Schedule XXA'!$B$20","v":"After Shock - Short Exposures - Currency Derivatives Qualifying as held for risk-mitigation purposes United Kingdom Pounds"},null,null,null,null,null,null,null,null,{"$f":"'Schedule XXA'!AB20","v":0}]
["Sch XXA","Currency Shock",null,{"$f":"\"After Shock - Short Exposures - Currency Derivatives Qualifying as held for risk-mitigation purposes \"&'Schedule XXA'!$B$21","v":"After Shock - Short Exposures - Currency Derivatives Qualifying as held for risk-mitigation purposes Canada Dollars"},null,null,null,null,null,null,null,null,{"$f":"'Schedule XXA'!AB21","v":0}]
["Sch XXA","Currency Shock",null,{"$f":"\"After Shock - Short Exposures - Currency Derivatives Qualifying as held for risk-mitigation purposes \"&'Schedule XXA'!$B$22","v":"After Shock - Short Exposures - Currency Derivatives Qualifying as held for risk-mitigation purposes Japan Yen"},null,null,null,null,null,null,null,null,{"$f":"'Schedule XXA'!AB22","v":0}]
["Sch XXA","Currency Shock",null,{"$f":"\"After Shock - Short Exposures - Currency Derivatives Qualifying as held for risk-mitigation purposes \"&'Schedule XXA'!$B$23","v":"After Shock - Short Exposures - Currency Derivatives Qualifying as held for risk-mitigation purposes Other currency 1"},null,null,null,null,null,null,null,null,{"$f":"'Schedule XXA'!AB23","v":0}]
["Sch XXA","Currency Shock",null,{"$f":"\"After Shock - Short Exposures - Currency Derivatives Qualifying as held for risk-mitigation purposes \"&'Schedule XXA'!$B$24","v":"After Shock - Short Exposures - Currency Derivatives Qualifying as held for risk-mitigation purposes Other currency 2"},null,null,null,null,null,null,null,null,{"$f":"'Schedule XXA'!AB24","v":0}]
["Sch XXA","Currency Shock",null,{"$f":"\"After Shock - Short Exposures - Currency Derivatives Qualifying as held for risk-mitigation purposes \"&'Schedule XXA'!$B$25","v":"After Shock - Short Exposures - Currency Derivatives Qualifying as held for risk-mitigation purposes Other currency 3"},null,null,null,null,null,null,null,null,{"$f":"'Schedule XXA'!AB25","v":0}]
["Sch XXA","Currency Shock",null,{"$f":"\"After Shock - Short Exposures - Currency Derivatives Qualifying as held for risk-mitigation purposes \"&'Schedule XXA'!$B$26","v":"After Shock - Short Exposures - Currency Derivatives Qualifying as held for risk-mitigation purposes Other currency 4"},null,null,null,null,null,null,null,null,{"$f":"'Schedule XXA'!AB26","v":0}]
["Sch XXA","Currency Shock",null,{"$f":"\"After Shock - Short Exposures - Currency Derivatives Qualifying as held for risk-mitigation purposes \"&'Schedule XXA'!$B$27","v":"After Shock - Short Exposures - Currency Derivatives Qualifying as held for risk-mitigation purposes Other currency 5"},null,null,null,null,null,null,null,null,{"$f":"'Schedule XXA'!AB27","v":0}]
["Sch XXA","Currency Shock",null,{"$f":"\"After Shock - Short Exposures - Currency Derivatives Qualifying as held for risk-mitigation purposes \"&'Schedule XXA'!$B$28","v":"After Shock - Short Exposures - Currency Derivatives Qualifying as held for risk-mitigation purposes Other currency 6"},null,null,null,null,null,null,null,null,{"$f":"'Schedule XXA'!AB28","v":0}]
["Sch XXA","Currency Shock",null,{"$f":"\"After Shock - Short Exposures - Currency Derivatives Qualifying as held for risk-mitigation purposes \"&'Schedule XXA'!$B$29","v":"After Shock - Short Exposures - Currency Derivatives Qualifying as held for risk-mitigation purposes Other currency 7"},null,null,null,null,null,null,null,null,{"$f":"'Schedule XXA'!AB29","v":0}]
["Sch XXA","Currency Shock",null,{"$f":"\"After Shock - Short Exposures - Currency Derivatives Qualifying as held for risk-mitigation purposes \"&'Schedule XXA'!$B$30","v":"After Shock - Short Exposures - Currency Derivatives Qualifying as held for risk-mitigation purposes Other currency 8"},null,null,null,null,null,null,null,null,{"$f":"'Schedule XXA'!AB30","v":0}]
["Sch XXA","Currency Shock",null,{"$f":"\"After Shock - Short Exposures - Currency Derivatives Qualifying as held for risk-mitigation purposes \"&'Schedule XXA'!$B$31","v":"After Shock - Short Exposures - Currency Derivatives Qualifying as held for risk-mitigation purposes Other currency 9"},null,null,null,null,null,null,null,null,{"$f":"'Schedule XXA'!AB31","v":0}]
["Sch XXA","Currency Shock",null,{"$f":"\"After Shock - Short Exposures - Currency Derivatives Qualifying as held for risk-mitigation purposes \"&'Schedule XXA'!$B$32","v":"After Shock - Short Exposures - Currency Derivatives Qualifying as held for risk-mitigation purposes Other currency 10"},null,null,null,null,null,null,null,null,{"$f":"'Schedule XXA'!AB32","v":0}]
["Sch XXA","Currency Shock",null,{"$f":"\"After Shock - Short Exposures - Currency Derivatives Not Qualifying as held for risk-mitigation purposes \"&'Schedule XXA'!$B$10","v":"After Shock - Short Exposures - Currency Derivatives Not Qualifying as held for risk-mitigation purposes United States Dollars"},null,null,null,null,null,null,null,null,{"$f":"'Schedule XXA'!AD10","v":0}]
["Sch XXA","Currency Shock",null,{"$f":"\"After Shock - Short Exposures - Currency Derivatives Not Qualifying as held for risk-mitigation purposes \"&'Schedule XXA'!$B$11","v":"After Shock - Short Exposures - Currency Derivatives Not Qualifying as held for risk-mitigation purposes Bermuda Dollars"},null,null,null,null,null,null,null,null,{"$f":"'Schedule XXA'!AD11","v":0}]
["Sch XXA","Currency Shock",null,{"$f":"\"After Shock - Short Exposures - Currency Derivatives Not Qualifying as held for risk-mitigation purposes \"&'Schedule XXA'!$B$12","v":"After Shock - Short Exposures - Currency Derivatives Not Qualifying as held for risk-mitigation purposes Qatar Riyals"},null,null,null,null,null,null,null,null,{"$f":"'Schedule XXA'!AD12","v":0}]
["Sch XXA","Currency Shock",null,{"$f":"\"After Shock - Short Exposures - Currency Derivatives Not Qualifying as held for risk-mitigation purposes \"&'Schedule XXA'!$B$13","v":"After Shock - Short Exposures - Currency Derivatives Not Qualifying as held for risk-mitigation purposes Hong Kong Dollars"},null,null,null,null,null,null,null,null,{"$f":"'Schedule XXA'!AD13","v":0}]
["Sch XXA","Currency Shock",null,{"$f":"\"After Shock - Short Exposures - Currency Derivatives Not Qualifying as held for risk-mitigation purposes \"&'Schedule XXA'!$B$14","v":"After Shock - Short Exposures - Currency Derivatives Not Qualifying as held for risk-mitigation purposes Euro"},null,null,null,null,null,null,null,null,{"$f":"'Schedule XXA'!AD14","v":0}]
["Sch XXA","Currency Shock",null,{"$f":"\"After Shock - Short Exposures - Currency Derivatives Not Qualifying as held for risk-mitigation purposes \"&'Schedule XXA'!$B$15","v":"After Shock - Short Exposures - Currency Derivatives Not Qualifying as held for risk-mitigation purposes Denmark Kroner"},null,null,null,null,null,null,null,null,{"$f":"'Schedule XXA'!AD15","v":0}]
["Sch XXA","Currency Shock",null,{"$f":"\"After Shock - Short Exposures - Currency Derivatives Not Qualifying as held for risk-mitigation purposes \"&'Schedule XXA'!$B$16","v":"After Shock - Short Exposures - Currency Derivatives Not Qualifying as held for risk-mitigation purposes Bulgaria Leva"},null,null,null,null,null,null,null,null,{"$f":"'Schedule XXA'!AD16","v":0}]
["Sch XXA","Currency Shock",null,{"$f":"\"After Shock - Short Exposures - Currency Derivatives Not Qualifying as held for risk-mitigation purposes \"&'Schedule XXA'!$B$17","v":"After Shock - Short Exposures - Currency Derivatives Not Qualifying as held for risk-mitigation purposes West African CFA Francs"},null,null,null,null,null,null,null,null,{"$f":"'Schedule XXA'!AD17","v":0}]
["Sch XXA","Currency Shock",null,{"$f":"\"After Shock - Short Exposures - Currency Derivatives Not Qualifying as held for risk-mitigation purposes \"&'Schedule XXA'!$B$18","v":"After Shock - Short Exposures - Currency Derivatives Not Qualifying as held for risk-mitigation purposes Central African CFA Francs"},null,null,null,null,null,null,null,null,{"$f":"'Schedule XXA'!AD18","v":0}]
["Sch XXA","Currency Shock",null,{"$f":"\"After Shock - Short Exposures - Currency Derivatives Not Qualifying as held for risk-mitigation purposes \"&'Schedule XXA'!$B$19","v":"After Shock - Short Exposures - Currency Derivatives Not Qualifying as held for risk-mitigation purposes Comorian Francs"},null,null,null,null,null,null,null,null,{"$f":"'Schedule XXA'!AD19","v":0}]
["Sch XXA","Currency Shock",null,{"$f":"\"After Shock - Short Exposures - Currency Derivatives Not Qualifying as held for risk-mitigation purposes \"&'Schedule XXA'!$B$20","v":"After Shock - Short Exposures - Currency Derivatives Not Qualifying as held for risk-mitigation purposes United Kingdom Pounds"},null,null,null,null,null,null,null,null,{"$f":"'Schedule XXA'!AD20","v":0}]
["Sch XXA","Currency Shock",null,{"$f":"\"After Shock - Short Exposures - Currency Derivatives Not Qualifying as held for risk-mitigation purposes \"&'Schedule XXA'!$B$21","v":"After Shock - Short Exposures - Currency Derivatives Not Qualifying as held for risk-mitigation purposes Canada Dollars"},null,null,null,null,null,null,null,null,{"$f":"'Schedule XXA'!AD21","v":0}]
["Sch XXA","Currency Shock",null,{"$f":"\"After Shock - Short Exposures - Currency Derivatives Not Qualifying as held for risk-mitigation purposes \"&'Schedule XXA'!$B$22","v":"After Shock - Short Exposures - Currency Derivatives Not Qualifying as held for risk-mitigation purposes Japan Yen"},null,null,null,null,null,null,null,null,{"$f":"'Schedule XXA'!AD22","v":0}]
["Sch XXA","Currency Shock",null,{"$f":"\"After Shock - Short Exposures - Currency Derivatives Not Qualifying as held for risk-mitigation purposes \"&'Schedule XXA'!$B$23","v":"After Shock - Short Exposures - Currency Derivatives Not Qualifying as held for risk-mitigation purposes Other currency 1"},null,null,null,null,null,null,null,null,{"$f":"'Schedule XXA'!AD23","v":0}]
["Sch XXA","Currency Shock",null,{"$f":"\"After Shock - Short Exposures - Currency Derivatives Not Qualifying as held for risk-mitigation purposes \"&'Schedule XXA'!$B$24","v":"After Shock - Short Exposures - Currency Derivatives Not Qualifying as held for risk-mitigation purposes Other currency 2"},null,null,null,null,null,null,null,null,{"$f":"'Schedule XXA'!AD24","v":0}]
["Sch XXA","Currency Shock",null,{"$f":"\"After Shock - Short Exposures - Currency Derivatives Not Qualifying as held for risk-mitigation purposes \"&'Schedule XXA'!$B$25","v":"After Shock - Short Exposures - Currency Derivatives Not Qualifying as held for risk-mitigation purposes Other currency 3"},null,null,null,null,null,null,null,null,{"$f":"'Schedule XXA'!AD25","v":0}]
["Sch XXA","Currency Shock",null,{"$f":"\"After Shock - Short Exposures - Currency Derivatives Not Qualifying as held for risk-mitigation purposes \"&'Schedule XXA'!$B$26","v":"After Shock - Short Exposures - Currency Derivatives Not Qualifying as held for risk-mitigation purposes Other currency 4"},null,null,null,null,null,null,null,null,{"$f":"'Schedule XXA'!AD26","v":0}]
["Sch XXA","Currency Shock",null,{"$f":"\"After Shock - Short Exposures - Currency Derivatives Not Qualifying as held for risk-mitigation purposes \"&'Schedule XXA'!$B$27","v":"After Shock - Short Exposures - Currency Derivatives Not Qualifying as held for risk-mitigation purposes Other currency 5"},null,null,null,null,null,null,null,null,{"$f":"'Schedule XXA'!AD27","v":0}]
["Sch XXA","Currency Shock",null,{"$f":"\"After Shock - Short Exposures - Currency Derivatives Not Qualifying as held for risk-mitigation purposes \"&'Schedule XXA'!$B$28","v":"After Shock - Short Exposures - Currency Derivatives Not Qualifying as held for risk-mitigation purposes Other currency 6"},null,null,null,null,null,null,null,null,{"$f":"'Schedule XXA'!AD28","v":0}]
["Sch XXA","Currency Shock",null,{"$f":"\"After Shock - Short Exposures - Currency Derivatives Not Qualifying as held for risk-mitigation purposes \"&'Schedule XXA'!$B$29","v":"After Shock - Short Exposures - Currency Derivatives Not Qualifying as held for risk-mitigation purposes Other currency 7"},null,null,null,null,null,null,null,null,{"$f":"'Schedule XXA'!AD29","v":0}]
["Sch XXA","Currency Shock",null,{"$f":"\"After Shock - Short Exposures - Currency Derivatives Not Qualifying as held for risk-mitigation purposes \"&'Schedule XXA'!$B$30","v":"After Shock - Short Exposures - Currency Derivatives Not Qualifying as held for risk-mitigation purposes Other currency 8"},null,null,null,null,null,null,null,null,{"$f":"'Schedule XXA'!AD30","v":0}]
["Sch XXA","Currency Shock",null,{"$f":"\"After Shock - Short Exposures - Currency Derivatives Not Qualifying as held for risk-mitigation purposes \"&'Schedule XXA'!$B$31","v":"After Shock - Short Exposures - Currency Derivatives Not Qualifying as held for risk-mitigation purposes Other currency 9"},null,null,null,null,null,null,null,null,{"$f":"'Schedule XXA'!AD31","v":0}]
["Sch XXA","Currency Shock",null,{"$f":"\"After Shock - Short Exposures - Currency Derivatives Not Qualifying as held for risk-mitigation purposes \"&'Schedule XXA'!$B$32","v":"After Shock - Short Exposures - Currency Derivatives Not Qualifying as held for risk-mitigation purposes Other currency 10"},null,null,null,null,null,null,null,null,{"$f":"'Schedule XXA'!AD32","v":0}]
["Sch XXA","Currency Shock",null,{"$f":"\"After Shock - B.E. Liabilities \"&'Schedule XXA'!$B$10","v":"After Shock - B.E. Liabilities United States Dollars"},null,null,null,null,null,null,null,null,{"$f":"'Schedule XXA'!AF10","v":0}]
["Sch XXA","Currency Shock",null,{"$f":"\"After Shock - B.E. Liabilities \"&'Schedule XXA'!$B$11","v":"After Shock - B.E. Liabilities Bermuda Dollars"},null,null,null,null,null,null,null,null,{"$f":"'Schedule XXA'!AF11","v":0}]
["Sch XXA","Currency Shock",null,{"$f":"\"After Shock - B.E. Liabilities \"&'Schedule XXA'!$B$12","v":"After Shock - B.E. Liabilities Qatar Riyals"},null,null,null,null,null,null,null,null,{"$f":"'Schedule XXA'!AF12","v":0}]
["Sch XXA","Currency Shock",null,{"$f":"\"After Shock - B.E. Liabilities \"&'Schedule XXA'!$B$13","v":"After Shock - B.E. Liabilities Hong Kong Dollars"},null,null,null,null,null,null,null,null,{"$f":"'Schedule XXA'!AF13","v":0}]
["Sch XXA","Currency Shock",null,{"$f":"\"After Shock - B.E. Liabilities \"&'Schedule XXA'!$B$14","v":"After Shock - B.E. Liabilities Euro"},null,null,null,null,null,null,null,null,{"$f":"'Schedule XXA'!AF14","v":0}]
["Sch XXA","Currency Shock",null,{"$f":"\"After Shock - B.E. Liabilities \"&'Schedule XXA'!$B$15","v":"After Shock - B.E. Liabilities Denmark Kroner"},null,null,null,null,null,null,null,null,{"$f":"'Schedule XXA'!AF15","v":0}]
["Sch XXA","Currency Shock",null,{"$f":"\"After Shock - B.E. Liabilities \"&'Schedule XXA'!$B$16","v":"After Shock - B.E. Liabilities Bulgaria Leva"},null,null,null,null,null,null,null,null,{"$f":"'Schedule XXA'!AF16","v":0}]
["Sch XXA","Currency Shock",null,{"$f":"\"After Shock - B.E. Liabilities \"&'Schedule XXA'!$B$17","v":"After Shock - B.E. Liabilities West African CFA Francs"},null,null,null,null,null,null,null,null,{"$f":"'Schedule XXA'!AF17","v":0}]
["Sch XXA","Currency Shock",null,{"$f":"\"After Shock - B.E. Liabilities \"&'Schedule XXA'!$B$18","v":"After Shock - B.E. Liabilities Central African CFA Francs"},null,null,null,null,null,null,null,null,{"$f":"'Schedule XXA'!AF18","v":0}]
["Sch XXA","Currency Shock",null,{"$f":"\"After Shock - B.E. Liabilities \"&'Schedule XXA'!$B$19","v":"After Shock - B.E. Liabilities Comorian Francs"},null,null,null,null,null,null,null,null,{"$f":"'Schedule XXA'!AF19","v":0}]
["Sch XXA","Currency Shock",null,{"$f":"\"After Shock - B.E. Liabilities \"&'Schedule XXA'!$B$20","v":"After Shock - B.E. Liabilities United Kingdom Pounds"},null,null,null,null,null,null,null,null,{"$f":"'Schedule XXA'!AF20","v":0}]
["Sch XXA","Currency Shock",null,{"$f":"\"After Shock - B.E. Liabilities \"&'Schedule XXA'!$B$21","v":"After Shock - B.E. Liabilities Canada Dollars"},null,null,null,null,null,null,null,null,{"$f":"'Schedule XXA'!AF21","v":0}]
["Sch XXA","Currency Shock",null,{"$f":"\"After Shock - B.E. Liabilities \"&'Schedule XXA'!$B$22","v":"After Shock - B.E. Liabilities Japan Yen"},null,null,null,null,null,null,null,null,{"$f":"'Schedule XXA'!AF22","v":0}]
["Sch XXA","Currency Shock",null,{"$f":"\"After Shock - B.E. Liabilities \"&'Schedule XXA'!$B$23","v":"After Shock - B.E. Liabilities Other currency 1"},null,null,null,null,null,null,null,null,{"$f":"'Schedule XXA'!AF23","v":0}]
["Sch XXA","Currency Shock",null,{"$f":"\"After Shock - B.E. Liabilities \"&'Schedule XXA'!$B$24","v":"After Shock - B.E. Liabilities Other currency 2"},null,null,null,null,null,null,null,null,{"$f":"'Schedule XXA'!AF24","v":0}]
["Sch XXA","Currency Shock",null,{"$f":"\"After Shock - B.E. Liabilities \"&'Schedule XXA'!$B$25","v":"After Shock - B.E. Liabilities Other currency 3"},null,null,null,null,null,null,null,null,{"$f":"'Schedule XXA'!AF25","v":0}]
["Sch XXA","Currency Shock",null,{"$f":"\"After Shock - B.E. Liabilities \"&'Schedule XXA'!$B$26","v":"After Shock - B.E. Liabilities Other currency 4"},null,null,null,null,null,null,null,null,{"$f":"'Schedule XXA'!AF26","v":0}]
["Sch XXA","Currency Shock",null,{"$f":"\"After Shock - B.E. Liabilities \"&'Schedule XXA'!$B$27","v":"After Shock - B.E. Liabilities Other currency 5"},null,null,null,null,null,null,null,null,{"$f":"'Schedule XXA'!AF27","v":0}]
["Sch XXA","Currency Shock",null,{"$f":"\"After Shock - B.E. Liabilities \"&'Schedule XXA'!$B$28","v":"After Shock - B.E. Liabilities Other currency 6"},null,null,null,null,null,null,null,null,{"$f":"'Schedule XXA'!AF28","v":0}]
["Sch XXA","Currency Shock",null,{"$f":"\"After Shock - B.E. Liabilities \"&'Schedule XXA'!$B$29","v":"After Shock - B.E. Liabilities Other currency 7"},null,null,null,null,null,null,null,null,{"$f":"'Schedule XXA'!AF29","v":0}]
["Sch XXA","Currency Shock",null,{"$f":"\"After Shock - B.E. Liabilities \"&'Schedule XXA'!$B$30","v":"After Shock - B.E. Liabilities Other currency 8"},null,null,null,null,null,null,null,null,{"$f":"'Schedule XXA'!AF30","v":0}]
["Sch XXA","Currency Shock",null,{"$f":"\"After Shock - B.E. Liabilities \"&'Schedule XXA'!$B$31","v":"After Shock - B.E. Liabilities Other currency 9"},null,null,null,null,null,null,null,null,{"$f":"'Schedule XXA'!AF31","v":0}]
["Sch XXA","Currency Shock",null,{"$f":"\"After Shock - B.E. Liabilities \"&'Schedule XXA'!$B$32","v":"After Shock - B.E. Liabilities Other currency 10"},null,null,null,null,null,null,null,null,{"$f":"'Schedule XXA'!AF32","v":0}]
["Sch XXA","Currency Shock",null,{"$f":"\"After Shock - Liabilities w Mgmt. Actions \"&'Schedule XXA'!$B$10","v":"After Shock - Liabilities w Mgmt. Actions United States Dollars"},null,null,null,null,null,null,null,null,{"$f":"'Schedule XXA'!AH10","v":0}]
["Sch XXA","Currency Shock",null,{"$f":"\"After Shock - Liabilities w Mgmt. Actions \"&'Schedule XXA'!$B$11","v":"After Shock - Liabilities w Mgmt. Actions Bermuda Dollars"},null,null,null,null,null,null,null,null,{"$f":"'Schedule XXA'!AH11","v":0}]
["Sch XXA","Currency Shock",null,{"$f":"\"After Shock - Liabilities w Mgmt. Actions \"&'Schedule XXA'!$B$12","v":"After Shock - Liabilities w Mgmt. Actions Qatar Riyals"},null,null,null,null,null,null,null,null,{"$f":"'Schedule XXA'!AH12","v":0}]
["Sch XXA","Currency Shock",null,{"$f":"\"After Shock - Liabilities w Mgmt. Actions \"&'Schedule XXA'!$B$13","v":"After Shock - Liabilities w Mgmt. Actions Hong Kong Dollars"},null,null,null,null,null,null,null,null,{"$f":"'Schedule XXA'!AH13","v":0}]
["Sch XXA","Currency Shock",null,{"$f":"\"After Shock - Liabilities w Mgmt. Actions \"&'Schedule XXA'!$B$14","v":"After Shock - Liabilities w Mgmt. Actions Euro"},null,null,null,null,null,null,null,null,{"$f":"'Schedule XXA'!AH14","v":0}]
["Sch XXA","Currency Shock",null,{"$f":"\"After Shock - Liabilities w Mgmt. Actions \"&'Schedule XXA'!$B$15","v":"After Shock - Liabilities w Mgmt. Actions Denmark Kroner"},null,null,null,null,null,null,null,null,{"$f":"'Schedule XXA'!AH15","v":0}]
["Sch XXA","Currency Shock",null,{"$f":"\"After Shock - Liabilities w Mgmt. Actions \"&'Schedule XXA'!$B$16","v":"After Shock - Liabilities w Mgmt. Actions Bulgaria Leva"},null,null,null,null,null,null,null,null,{"$f":"'Schedule XXA'!AH16","v":0}]
["Sch XXA","Currency Shock",null,{"$f":"\"After Shock - Liabilities w Mgmt. Actions \"&'Schedule XXA'!$B$17","v":"After Shock - Liabilities w Mgmt. Actions West African CFA Francs"},null,null,null,null,null,null,null,null,{"$f":"'Schedule XXA'!AH17","v":0}]
["Sch XXA","Currency Shock",null,{"$f":"\"After Shock - Liabilities w Mgmt. Actions \"&'Schedule XXA'!$B$18","v":"After Shock - Liabilities w Mgmt. Actions Central African CFA Francs"},null,null,null,null,null,null,null,null,{"$f":"'Schedule XXA'!AH18","v":0}]
["Sch XXA","Currency Shock",null,{"$f":"\"After Shock - Liabilities w Mgmt. Actions \"&'Schedule XXA'!$B$19","v":"After Shock - Liabilities w Mgmt. Actions Comorian Francs"},null,null,null,null,null,null,null,null,{"$f":"'Schedule XXA'!AH19","v":0}]
["Sch XXA","Currency Shock",null,{"$f":"\"After Shock - Liabilities w Mgmt. Actions \"&'Schedule XXA'!$B$20","v":"After Shock - Liabilities w Mgmt. Actions United Kingdom Pounds"},null,null,null,null,null,null,null,null,{"$f":"'Schedule XXA'!AH20","v":0}]
["Sch XXA","Currency Shock",null,{"$f":"\"After Shock - Liabilities w Mgmt. Actions \"&'Schedule XXA'!$B$21","v":"After Shock - Liabilities w Mgmt. Actions Canada Dollars"},null,null,null,null,null,null,null,null,{"$f":"'Schedule XXA'!AH21","v":0}]
["Sch XXA","Currency Shock",null,{"$f":"\"After Shock - Liabilities w Mgmt. Actions \"&'Schedule XXA'!$B$22","v":"After Shock - Liabilities w Mgmt. Actions Japan Yen"},null,null,null,null,null,null,null,null,{"$f":"'Schedule XXA'!AH22","v":0}]
["Sch XXA","Currency Shock",null,{"$f":"\"After Shock - Liabilities w Mgmt. Actions \"&'Schedule XXA'!$B$23","v":"After Shock - Liabilities w Mgmt. Actions Other currency 1"},null,null,null,null,null,null,null,null,{"$f":"'Schedule XXA'!AH23","v":0}]
["Sch XXA","Currency Shock",null,{"$f":"\"After Shock - Liabilities w Mgmt. Actions \"&'Schedule XXA'!$B$24","v":"After Shock - Liabilities w Mgmt. Actions Other currency 2"},null,null,null,null,null,null,null,null,{"$f":"'Schedule XXA'!AH24","v":0}]
["Sch XXA","Currency Shock",null,{"$f":"\"After Shock - Liabilities w Mgmt. Actions \"&'Schedule XXA'!$B$25","v":"After Shock - Liabilities w Mgmt. Actions Other currency 3"},null,null,null,null,null,null,null,null,{"$f":"'Schedule XXA'!AH25","v":0}]
["Sch XXA","Currency Shock",null,{"$f":"\"After Shock - Liabilities w Mgmt. Actions \"&'Schedule XXA'!$B$26","v":"After Shock - Liabilities w Mgmt. Actions Other currency 4"},null,null,null,null,null,null,null,null,{"$f":"'Schedule XXA'!AH26","v":0}]
["Sch XXA","Currency Shock",null,{"$f":"\"After Shock - Liabilities w Mgmt. Actions \"&'Schedule XXA'!$B$27","v":"After Shock - Liabilities w Mgmt. Actions Other currency 5"},null,null,null,null,null,null,null,null,{"$f":"'Schedule XXA'!AH27","v":0}]
["Sch XXA","Currency Shock",null,{"$f":"\"After Shock - Liabilities w Mgmt. Actions \"&'Schedule XXA'!$B$28","v":"After Shock - Liabilities w Mgmt. Actions Other currency 6"},null,null,null,null,null,null,null,null,{"$f":"'Schedule XXA'!AH28","v":0}]
["Sch XXA","Currency Shock",null,{"$f":"\"After Shock - Liabilities w Mgmt. Actions \"&'Schedule XXA'!$B$29","v":"After Shock - Liabilities w Mgmt. Actions Other currency 7"},null,null,null,null,null,null,null,null,{"$f":"'Schedule XXA'!AH29","v":0}]
["Sch XXA","Currency Shock",null,{"$f":"\"After Shock - Liabilities w Mgmt. Actions \"&'Schedule XXA'!$B$30","v":"After Shock - Liabilities w Mgmt. Actions Other currency 8"},null,null,null,null,null,null,null,null,{"$f":"'Schedule XXA'!AH30","v":0}]
["Sch XXA","Currency Shock",null,{"$f":"\"After Shock - Liabilities w Mgmt. Actions \"&'Schedule XXA'!$B$31","v":"After Shock - Liabilities w Mgmt. Actions Other currency 9"},null,null,null,null,null,null,null,null,{"$f":"'Schedule XXA'!AH31","v":0}]
["Sch XXA","Currency Shock",null,{"$f":"\"After Shock - Liabilities w Mgmt. Actions \"&'Schedule XXA'!$B$32","v":"After Shock - Liabilities w Mgmt. Actions Other currency 10"},null,null,null,null,null,null,null,null,{"$f":"'Schedule XXA'!AH32","v":0}]
["Sch XXA","Currency Shock",null,"Liabilities Prior Year 1",null,null,null,null,null,null,null,null,{"$f":"'Schedule XXA'!D43","v":0}]
["Sch XXA","Currency Shock",null,"Liabilities Prior Year 2",null,null,null,null,null,null,null,null,{"$f":"'Schedule XXA'!D44","v":0}]
["Sch XXA","Currency Shock",null,"Liabilities Prior Year 3",null,null,null,null,null,null,null,null,{"$f":"'Schedule XXA'!D45","v":0}]
["Sch XXA","Currency Shock",null,"ECR Prior Year 1",null,null,null,null,null,null,null,null,{"$f":"'Schedule XXA'!H43","v":0}]
["Sch XXA","Currency Shock",null,"ECR Prior Year 2",null,null,null,null,null,null,null,null,{"$f":"'Schedule XXA'!H44","v":0}]
["Sch XXA","Currency Shock",null,"ECR Prior Year 3",null,null,null,null,null,null,null,null,{"$f":"'Schedule XXA'!H45","v":0}]
[]
["Sch XXIA","Inv Con Risk",null,"# of Exposures",{"$f":"'Schedule XXIA'!E3","v":0}]
["Sch XXIA","Inv Con Risk",null,"Name of Exposure - 1",{"$f":"'Schedule XXIA'!C8","v":0}]
["Sch XXIA","Inv Con Risk",null,"Name of Exposure - 2",{"$f":"'Schedule XXIA'!C9","v":0}]
["Sch XXIA","Inv Con Risk",null,"Name of Exposure - 3",{"$f":"'Schedule XXIA'!C10","v":0}]
["Sch XXIA","Inv Con Risk",null,"Name of Exposure - 4",{"$f":"'Schedule XXIA'!C11","v":0}]
["Sch XXIA","Inv Con Risk",null,"Name of Exposure - 5",{"$f":"'Schedule XXIA'!C12","v":0}]
["Sch XXIA","Inv Con Risk",null,"Name of Exposure - 6",{"$f":"'Schedule XXIA'!C13","v":0}]
["Sch XXIA","Inv Con Risk",null,"Name of Exposure - 7",{"$f":"'Schedule XXIA'!C14","v":0}]
["Sch XXIA","Inv Con Risk",null,"Name of Exposure - 8",{"$f":"'Schedule XXIA'!C15","v":0}]
["Sch XXIA","Inv Con Risk",null,"Name of Exposure - 9",{"$f":"'Schedule XXIA'!C16","v":0}]
["Sch XXIA","Inv Con Risk",null,"Name of Exposure - 10",{"$f":"'Schedule XXIA'!C17","v":0}]
["Sch XXIA","Inv Con Risk",null,"Name of Exposure - 11",{"$f":"'Schedule XXIA'!C18","v":0}]
["Sch XXIA","Inv Con Risk",null,"Name of Exposure - 12",{"$f":"'Schedule XXIA'!C19","v":0}]
["Sch XXIA","Inv Con Risk",null,"Name of Exposure - 13",{"$f":"'Schedule XXIA'!C20","v":0}]
["Sch XXIA","Inv Con Risk",null,"Name of Exposure - 14",{"$f":"'Schedule XXIA'!C21","v":0}]
["Sch XXIA","Inv Con Risk",null,"Name of Exposure - 15",{"$f":"'Schedule XXIA'!C22","v":0}]
["Sch XXIA","Inv Con Risk",null,"Name of Exposure - 16",{"$f":"'Schedule XXIA'!C23","v":0}]
["Sch XXIA","Inv Con Risk",null,"Name of Exposure - 17",{"$f":"'Schedule XXIA'!C24","v":0}]
["Sch XXIA","Inv Con Risk",null,"Name of Exposure - 18",{"$f":"'Schedule XXIA'!C25","v":0}]
["Sch XXIA","Inv Con Risk",null,"Name of Exposure - 19",{"$f":"'Schedule XXIA'!C26","v":0}]
["Sch XXIA","Inv Con Risk",null,"Name of Exposure - 20",{"$f":"'Schedule XXIA'!C27","v":0}]
["Sch XXIA","Inv Con Risk",null,"Name of Exposure - 21",{"$f":"'Schedule XXIA'!C28","v":0}]
["Sch XXIA","Inv Con Risk",null,"Name of Exposure - 22",{"$f":"'Schedule XXIA'!C29","v":0}]
["Sch XXIA","Inv Con Risk",null,"Name of Exposure - 23",{"$f":"'Schedule XXIA'!C30","v":0}]
["Sch XXIA","Inv Con Risk",null,"Name of Exposure - 24",{"$f":"'Schedule XXIA'!C31","v":0}]
["Sch XXIA","Inv Con Risk",null,"Name of Exposure - 25",{"$f":"'Schedule XXIA'!C32","v":0}]
["Sch XXIA","Inv Con Risk",null,"Name of Exposure - 26",{"$f":"'Schedule XXIA'!C33","v":0}]
["Sch XXIA","Inv Con Risk",null,"Name of Exposure - 27",{"$f":"'Schedule XXIA'!C34","v":0}]
["Sch XXIA","Inv Con Risk",null,"Name of Exposure - 28",{"$f":"'Schedule XXIA'!C35","v":0}]
["Sch XXIA","Inv Con Risk",null,"Name of Exposure - 29",{"$f":"'Schedule XXIA'!C36","v":0}]
["Sch XXIA","Inv Con Risk",null,"Name of Exposure - 30",{"$f":"'Schedule XXIA'!C37","v":0}]
["Sch XXIA","Inv Con Risk",null,"Name of Exposure - 31",{"$f":"'Schedule XXIA'!C38","v":0}]
["Sch XXIA","Inv Con Risk",null,"Name of Exposure - 32",{"$f":"'Schedule XXIA'!C39","v":0}]
["Sch XXIA","Inv Con Risk",null,"Name of Exposure - 33",{"$f":"'Schedule XXIA'!C40","v":0}]
["Sch XXIA","Inv Con Risk",null,"Name of Exposure - 34",{"$f":"'Schedule XXIA'!C41","v":0}]
["Sch XXIA","Inv Con Risk",null,"Name of Exposure - 35",{"$f":"'Schedule XXIA'!C42","v":0}]
["Sch XXIA","Inv Con Risk",null,"Name of Exposure - 36",{"$f":"'Schedule XXIA'!C43","v":0}]
["Sch XXIA","Inv Con Risk",null,"Name of Exposure - 37",{"$f":"'Schedule XXIA'!C44","v":0}]
["Sch XXIA","Inv Con Risk",null,"Name of Exposure - 38",{"$f":"'Schedule XXIA'!C45","v":0}]
["Sch XXIA","Inv Con Risk",null,"Name of Exposure - 39",{"$f":"'Schedule XXIA'!C46","v":0}]
["Sch XXIA","Inv Con Risk",null,"Name of Exposure - 40",{"$f":"'Schedule XXIA'!C47","v":0}]
["Sch XXIA","Inv Con Risk",null,"Name of Exposure - 41",{"$f":"'Schedule XXIA'!C48","v":0}]
["Sch XXIA","Inv Con Risk",null,"Name of Exposure - 42",{"$f":"'Schedule XXIA'!C49","v":0}]
["Sch XXIA","Inv Con Risk",null,"Name of Exposure - 43",{"$f":"'Schedule XXIA'!C50","v":0}]
["Sch XXIA","Inv Con Risk",null,"Name of Exposure - 44",{"$f":"'Schedule XXIA'!C51","v":0}]
["Sch XXIA","Inv Con Risk",null,"Name of Exposure - 45",{"$f":"'Schedule XXIA'!C52","v":0}]
["Sch XXIA","Inv Con Risk",null,"Name of Exposure - 46",{"$f":"'Schedule XXIA'!C53","v":0}]
["Sch XXIA","Inv Con Risk",null,"Name of Exposure - 47",{"$f":"'Schedule XXIA'!C54","v":0}]
["Sch XXIA","Inv Con Risk",null,"Name of Exposure - 48",{"$f":"'Schedule XXIA'!C55","v":0}]
["Sch XXIA","Inv Con Risk",null,"Name of Exposure - 49",{"$f":"'Schedule XXIA'!C56","v":0}]
["Sch XXIA","Inv Con Risk",null,"Name of Exposure - 50",{"$f":"'Schedule XXIA'!C57","v":0}]
["Sch XXIA","Inv Con Risk",null,"Asset Type - 1",{"$f":"'Schedule XXIA'!E8","v":"Select"},null,null,null,null,null,null,null,{"$f":"'Schedule XXIA'!J8","v":"Select"}]
["Sch XXIA","Inv Con Risk",null,"Asset Type - 2",{"$f":"'Schedule XXIA'!E9","v":"Select"},null,null,null,null,null,null,null,{"$f":"'Schedule XXIA'!J9","v":"Select"}]
["Sch XXIA","Inv Con Risk",null,"Asset Type - 3",{"$f":"'Schedule XXIA'!E10","v":"Select"},null,null,null,null,null,null,null,{"$f":"'Schedule XXIA'!J10","v":"Select"}]
["Sch XXIA","Inv Con Risk",null,"Asset Type - 4",{"$f":"'Schedule XXIA'!E11","v":"Select"},null,null,null,null,null,null,null,{"$f":"'Schedule XXIA'!J11","v":"Select"}]
["Sch XXIA","Inv Con Risk",null,"Asset Type - 5",{"$f":"'Schedule XXIA'!E12","v":"Select"},null,null,null,null,null,null,null,{"$f":"'Schedule XXIA'!J12","v":"Select"}]
["Sch XXIA","Inv Con Risk",null,"Asset Type - 6",{"$f":"'Schedule XXIA'!E13","v":"Select"},null,null,null,null,null,null,null,{"$f":"'Schedule XXIA'!J13","v":"Select"}]
["Sch XXIA","Inv Con Risk",null,"Asset Type - 7",{"$f":"'Schedule XXIA'!E14","v":"Select"},null,null,null,null,null,null,null,{"$f":"'Schedule XXIA'!J14","v":"Select"}]
["Sch XXIA","Inv Con Risk",null,"Asset Type - 8",{"$f":"'Schedule XXIA'!E15","v":"Select"},null,null,null,null,null,null,null,{"$f":"'Schedule XXIA'!J15","v":"Select"}]
["Sch XXIA","Inv Con Risk",null,"Asset Type - 9",{"$f":"'Schedule XXIA'!E16","v":"Select"},null,null,null,null,null,null,null,{"$f":"'Schedule XXIA'!J16","v":"Select"}]
["Sch XXIA","Inv Con Risk",null,"Asset Type - 10",{"$f":"'Schedule XXIA'!E17","v":"Select"},null,null,null,null,null,null,null,{"$f":"'Schedule XXIA'!J17","v":"Select"}]
["Sch XXIA","Inv Con Risk",null,"Asset Type - 11",{"$f":"'Schedule XXIA'!E18","v":"Select"},null,null,null,null,null,null,null,{"$f":"'Schedule XXIA'!J18","v":"Select"}]
["Sch XXIA","Inv Con Risk",null,"Asset Type - 12",{"$f":"'Schedule XXIA'!E19","v":"Select"},null,null,null,null,null,null,null,{"$f":"'Schedule XXIA'!J19","v":"Select"}]
["Sch XXIA","Inv Con Risk",null,"Asset Type - 13",{"$f":"'Schedule XXIA'!E20","v":"Select"},null,null,null,null,null,null,null,{"$f":"'Schedule XXIA'!J20","v":"Select"}]
["Sch XXIA","Inv Con Risk",null,"Asset Type - 14",{"$f":"'Schedule XXIA'!E21","v":"Select"},null,null,null,null,null,null,null,{"$f":"'Schedule XXIA'!J21","v":"Select"}]
["Sch XXIA","Inv Con Risk",null,"Asset Type - 15",{"$f":"'Schedule XXIA'!E22","v":"Select"},null,null,null,null,null,null,null,{"$f":"'Schedule XXIA'!J22","v":"Select"}]
["Sch XXIA","Inv Con Risk",null,"Asset Type - 16",{"$f":"'Schedule XXIA'!E23","v":"Select"},null,null,null,null,null,null,null,{"$f":"'Schedule XXIA'!J23","v":"Select"}]
["Sch XXIA","Inv Con Risk",null,"Asset Type - 17",{"$f":"'Schedule XXIA'!E24","v":"Select"},null,null,null,null,null,null,null,{"$f":"'Schedule XXIA'!J24","v":"Select"}]
["Sch XXIA","Inv Con Risk",null,"Asset Type - 18",{"$f":"'Schedule XXIA'!E25","v":"Select"},null,null,null,null,null,null,null,{"$f":"'Schedule XXIA'!J25","v":"Select"}]
["Sch XXIA","Inv Con Risk",null,"Asset Type - 19",{"$f":"'Schedule XXIA'!E26","v":"Select"},null,null,null,null,null,null,null,{"$f":"'Schedule XXIA'!J26","v":"Select"}]
["Sch XXIA","Inv Con Risk",null,"Asset Type - 20",{"$f":"'Schedule XXIA'!E27","v":"Select"},null,null,null,null,null,null,null,{"$f":"'Schedule XXIA'!J27","v":"Select"}]
["Sch XXIA","Inv Con Risk",null,"Asset Type - 21",{"$f":"'Schedule XXIA'!E28","v":"Select"},null,null,null,null,null,null,null,{"$f":"'Schedule XXIA'!J28","v":"Select"}]
["Sch XXIA","Inv Con Risk",null,"Asset Type - 22",{"$f":"'Schedule XXIA'!E29","v":"Select"},null,null,null,null,null,null,null,{"$f":"'Schedule XXIA'!J29","v":"Select"}]
["Sch XXIA","Inv Con Risk",null,"Asset Type - 23",{"$f":"'Schedule XXIA'!E30","v":"Select"},null,null,null,null,null,null,null,{"$f":"'Schedule XXIA'!J30","v":"Select"}]
["Sch XXIA","Inv Con Risk",null,"Asset Type - 24",{"$f":"'Schedule XXIA'!E31","v":"Select"},null,null,null,null,null,null,null,{"$f":"'Schedule XXIA'!J31","v":"Select"}]
["Sch XXIA","Inv Con Risk",null,"Asset Type - 25",{"$f":"'Schedule XXIA'!E32","v":"Select"},null,null,null,null,null,null,null,{"$f":"'Schedule XXIA'!J32","v":"Select"}]
["Sch XXIA","Inv Con Risk",null,"Asset Type - 26",{"$f":"'Schedule XXIA'!E33","v":"Select"},null,null,null,null,null,null,null,{"$f":"'Schedule XXIA'!J33","v":"Select"}]
["Sch XXIA","Inv Con Risk",null,"Asset Type - 27",{"$f":"'Schedule XXIA'!E34","v":"Select"},null,null,null,null,null,null,null,{"$f":"'Schedule XXIA'!J34","v":"Select"}]
["Sch XXIA","Inv Con Risk",null,"Asset Type - 28",{"$f":"'Schedule XXIA'!E35","v":"Select"},null,null,null,null,null,null,null,{"$f":"'Schedule XXIA'!J35","v":"Select"}]
["Sch XXIA","Inv Con Risk",null,"Asset Type - 29",{"$f":"'Schedule XXIA'!E36","v":"Select"},null,null,null,null,null,null,null,{"$f":"'Schedule XXIA'!J36","v":"Select"}]
["Sch XXIA","Inv Con Risk",null,"Asset Type - 30",{"$f":"'Schedule XXIA'!E37","v":"Select"},null,null,null,null,null,null,null,{"$f":"'Schedule XXIA'!J37","v":"Select"}]
["Sch XXIA","Inv Con Risk",null,"Asset Type - 31",{"$f":"'Schedule XXIA'!E38","v":"Select"},null,null,null,null,null,null,null,{"$f":"'Schedule XXIA'!J38","v":"Select"}]
["Sch XXIA","Inv Con Risk",null,"Asset Type - 32",{"$f":"'Schedule XXIA'!E39","v":"Select"},null,null,null,null,null,null,null,{"$f":"'Schedule XXIA'!J39","v":"Select"}]
["Sch XXIA","Inv Con Risk",null,"Asset Type - 33",{"$f":"'Schedule XXIA'!E40","v":"Select"},null,null,null,null,null,null,null,{"$f":"'Schedule XXIA'!J40","v":"Select"}]
["Sch XXIA","Inv Con Risk",null,"Asset Type - 34",{"$f":"'Schedule XXIA'!E41","v":"Select"},null,null,null,null,null,null,null,{"$f":"'Schedule XXIA'!J41","v":"Select"}]
["Sch XXIA","Inv Con Risk",null,"Asset Type - 35",{"$f":"'Schedule XXIA'!E42","v":"Select"},null,null,null,null,null,null,null,{"$f":"'Schedule XXIA'!J42","v":"Select"}]
["Sch XXIA","Inv Con Risk",null,"Asset Type - 36",{"$f":"'Schedule XXIA'!E43","v":"Select"},null,null,null,null,null,null,null,{"$f":"'Schedule XXIA'!J43","v":"Select"}]
["Sch XXIA","Inv Con Risk",null,"Asset Type - 37",{"$f":"'Schedule XXIA'!E44","v":"Select"},null,null,null,null,null,null,null,{"$f":"'Schedule XXIA'!J44","v":"Select"}]
["Sch XXIA","Inv Con Risk",null,"Asset Type - 38",{"$f":"'Schedule XXIA'!E45","v":"Select"},null,null,null,null,null,null,null,{"$f":"'Schedule XXIA'!J45","v":"Select"}]
["Sch XXIA","Inv Con Risk",null,"Asset Type - 39",{"$f":"'Schedule XXIA'!E46","v":"Select"},null,null,null,null,null,null,null,{"$f":"'Schedule XXIA'!J46","v":"Select"}]
["Sch XXIA","Inv Con Risk",null,"Asset Type - 40",{"$f":"'Schedule XXIA'!E47","v":"Select"},null,null,null,null,null,null,null,{"$f":"'Schedule XXIA'!J47","v":"Select"}]
["Sch XXIA","Inv Con Risk",null,"Asset Type - 41",{"$f":"'Schedule XXIA'!E48","v":"Select"},null,null,null,null,null,null,null,{"$f":"'Schedule XXIA'!J48","v":"Select"}]
["Sch XXIA","Inv Con Risk",null,"Asset Type - 42",{"$f":"'Schedule XXIA'!E49","v":"Select"},null,null,null,null,null,null,null,{"$f":"'Schedule XXIA'!J49","v":"Select"}]
["Sch XXIA","Inv Con Risk",null,"Asset Type - 43",{"$f":"'Schedule XXIA'!E50","v":"Select"},null,null,null,null,null,null,null,{"$f":"'Schedule XXIA'!J50","v":"Select"}]
["Sch XXIA","Inv Con Risk",null,"Asset Type - 44",{"$f":"'Schedule XXIA'!E51","v":"Select"},null,null,null,null,null,null,null,{"$f":"'Schedule XXIA'!J51","v":"Select"}]
["Sch XXIA","Inv Con Risk",null,"Asset Type - 45",{"$f":"'Schedule XXIA'!E52","v":"Select"},null,null,null,null,null,null,null,{"$f":"'Schedule XXIA'!J52","v":"Select"}]
["Sch XXIA","Inv Con Risk",null,"Asset Type - 46",{"$f":"'Schedule XXIA'!E53","v":"Select"},null,null,null,null,null,null,null,{"$f":"'Schedule XXIA'!J53","v":"Select"}]
["Sch XXIA","Inv Con Risk",null,"Asset Type - 47",{"$f":"'Schedule XXIA'!E54","v":"Select"},null,null,null,null,null,null,null,{"$f":"'Schedule XXIA'!J54","v":"Select"}]
["Sch XXIA","Inv Con Risk",null,"Asset Type - 48",{"$f":"'Schedule XXIA'!E55","v":"Select"},null,null,null,null,null,null,null,{"$f":"'Schedule XXIA'!J55","v":"Select"}]
["Sch XXIA","Inv Con Risk",null,"Asset Type - 49",{"$f":"'Schedule XXIA'!E56","v":"Select"},null,null,null,null,null,null,null,{"$f":"'Schedule XXIA'!J56","v":"Select"}]
["Sch XXIA","Inv Con Risk",null,"Asset Type - 50",{"$f":"'Schedule XXIA'!E57","v":"Select"},null,null,null,null,null,null,null,{"$f":"'Schedule XXIA'!J57","v":"Select"}]
["Sch XXIA","Inv Con Risk",null,"Bond Type - 1",{"$f":"'Schedule XXIA'!F8","v":"Select"},null,null,null,null,null,null,null,{"$f":"'Schedule XXIA'!K8","v":"Select"}]
["Sch XXIA","Inv Con Risk",null,"Bond Type - 2",{"$f":"'Schedule XXIA'!F9","v":"Select"},null,null,null,null,null,null,null,{"$f":"'Schedule XXIA'!K9","v":"Select"}]
["Sch XXIA","Inv Con Risk",null,"Bond Type - 3",{"$f":"'Schedule XXIA'!F10","v":"Select"},null,null,null,null,null,null,null,{"$f":"'Schedule XXIA'!K10","v":"Select"}]
["Sch XXIA","Inv Con Risk",null,"Bond Type - 4",{"$f":"'Schedule XXIA'!F11","v":"Select"},null,null,null,null,null,null,null,{"$f":"'Schedule XXIA'!K11","v":"Select"}]
["Sch XXIA","Inv Con Risk",null,"Bond Type - 5",{"$f":"'Schedule XXIA'!F12","v":"Select"},null,null,null,null,null,null,null,{"$f":"'Schedule XXIA'!K12","v":"Select"}]
["Sch XXIA","Inv Con Risk",null,"Bond Type - 6",{"$f":"'Schedule XXIA'!F13","v":"Select"},null,null,null,null,null,null,null,{"$f":"'Schedule XXIA'!K13","v":"Select"}]
["Sch XXIA","Inv Con Risk",null,"Bond Type - 7",{"$f":"'Schedule XXIA'!F14","v":"Select"},null,null,null,null,null,null,null,{"$f":"'Schedule XXIA'!K14","v":"Select"}]
["Sch XXIA","Inv Con Risk",null,"Bond Type - 8",{"$f":"'Schedule XXIA'!F15","v":"Select"},null,null,null,null,null,null,null,{"$f":"'Schedule XXIA'!K15","v":"Select"}]
["Sch XXIA","Inv Con Risk",null,"Bond Type - 9",{"$f":"'Schedule XXIA'!F16","v":"Select"},null,null,null,null,null,null,null,{"$f":"'Schedule XXIA'!K16","v":"Select"}]
["Sch XXIA","Inv Con Risk",null,"Bond Type - 10",{"$f":"'Schedule XXIA'!F17","v":"Select"},null,null,null,null,null,null,null,{"$f":"'Schedule XXIA'!K17","v":"Select"}]
["Sch XXIA","Inv Con Risk",null,"Bond Type - 11",{"$f":"'Schedule XXIA'!F18","v":"Select"},null,null,null,null,null,null,null,{"$f":"'Schedule XXIA'!K18","v":"Select"}]
["Sch XXIA","Inv Con Risk",null,"Bond Type - 12",{"$f":"'Schedule XXIA'!F19","v":"Select"},null,null,null,null,null,null,null,{"$f":"'Schedule XXIA'!K19","v":"Select"}]
["Sch XXIA","Inv Con Risk",null,"Bond Type - 13",{"$f":"'Schedule XXIA'!F20","v":"Select"},null,null,null,null,null,null,null,{"$f":"'Schedule XXIA'!K20","v":"Select"}]
["Sch XXIA","Inv Con Risk",null,"Bond Type - 14",{"$f":"'Schedule XXIA'!F21","v":"Select"},null,null,null,null,null,null,null,{"$f":"'Schedule XXIA'!K21","v":"Select"}]
["Sch XXIA","Inv Con Risk",null,"Bond Type - 15",{"$f":"'Schedule XXIA'!F22","v":"Select"},null,null,null,null,null,null,null,{"$f":"'Schedule XXIA'!K22","v":"Select"}]
["Sch XXIA","Inv Con Risk",null,"Bond Type - 16",{"$f":"'Schedule XXIA'!F23","v":"Select"},null,null,null,null,null,null,null,{"$f":"'Schedule XXIA'!K23","v":"Select"}]
["Sch XXIA","Inv Con Risk",null,"Bond Type - 17",{"$f":"'Schedule XXIA'!F24","v":"Select"},null,null,null,null,null,null,null,{"$f":"'Schedule XXIA'!K24","v":"Select"}]
["Sch XXIA","Inv Con Risk",null,"Bond Type - 18",{"$f":"'Schedule XXIA'!F25","v":"Select"},null,null,null,null,null,null,null,{"$f":"'Schedule XXIA'!K25","v":"Select"}]
["Sch XXIA","Inv Con Risk",null,"Bond Type - 19",{"$f":"'Schedule XXIA'!F26","v":"Select"},null,null,null,null,null,null,null,{"$f":"'Schedule XXIA'!K26","v":"Select"}]
["Sch XXIA","Inv Con Risk",null,"Bond Type - 20",{"$f":"'Schedule XXIA'!F27","v":"Select"},null,null,null,null,null,null,null,{"$f":"'Schedule XXIA'!K27","v":"Select"}]
["Sch XXIA","Inv Con Risk",null,"Bond Type - 21",{"$f":"'Schedule XXIA'!F28","v":"Select"},null,null,null,null,null,null,null,{"$f":"'Schedule XXIA'!K28","v":"Select"}]
["Sch XXIA","Inv Con Risk",null,"Bond Type - 22",{"$f":"'Schedule XXIA'!F29","v":"Select"},null,null,null,null,null,null,null,{"$f":"'Schedule XXIA'!K29","v":"Select"}]
["Sch XXIA","Inv Con Risk",null,"Bond Type - 23",{"$f":"'Schedule XXIA'!F30","v":"Select"},null,null,null,null,null,null,null,{"$f":"'Schedule XXIA'!K30","v":"Select"}]
["Sch XXIA","Inv Con Risk",null,"Bond Type - 24",{"$f":"'Schedule XXIA'!F31","v":"Select"},null,null,null,null,null,null,null,{"$f":"'Schedule XXIA'!K31","v":"Select"}]
["Sch XXIA","Inv Con Risk",null,"Bond Type - 25",{"$f":"'Schedule XXIA'!F32","v":"Select"},null,null,null,null,null,null,null,{"$f":"'Schedule XXIA'!K32","v":"Select"}]
["Sch XXIA","Inv Con Risk",null,"Bond Type - 26",{"$f":"'Schedule XXIA'!F33","v":"Select"},null,null,null,null,null,null,null,{"$f":"'Schedule XXIA'!K33","v":"Select"}]
["Sch XXIA","Inv Con Risk",null,"Bond Type - 27",{"$f":"'Schedule XXIA'!F34","v":"Select"},null,null,null,null,null,null,null,{"$f":"'Schedule XXIA'!K34","v":"Select"}]
["Sch XXIA","Inv Con Risk",null,"Bond Type - 28",{"$f":"'Schedule XXIA'!F35","v":"Select"},null,null,null,null,null,null,null,{"$f":"'Schedule XXIA'!K35","v":"Select"}]
["Sch XXIA","Inv Con Risk",null,"Bond Type - 29",{"$f":"'Schedule XXIA'!F36","v":"Select"},null,null,null,null,null,null,null,{"$f":"'Schedule XXIA'!K36","v":"Select"}]
["Sch XXIA","Inv Con Risk",null,"Bond Type - 30",{"$f":"'Schedule XXIA'!F37","v":"Select"},null,null,null,null,null,null,null,{"$f":"'Schedule XXIA'!K37","v":"Select"}]
["Sch XXIA","Inv Con Risk",null,"Bond Type - 31",{"$f":"'Schedule XXIA'!F38","v":"Select"},null,null,null,null,null,null,null,{"$f":"'Schedule XXIA'!K38","v":"Select"}]
["Sch XXIA","Inv Con Risk",null,"Bond Type - 32",{"$f":"'Schedule XXIA'!F39","v":"Select"},null,null,null,null,null,null,null,{"$f":"'Schedule XXIA'!K39","v":"Select"}]
["Sch XXIA","Inv Con Risk",null,"Bond Type - 33",{"$f":"'Schedule XXIA'!F40","v":"Select"},null,null,null,null,null,null,null,{"$f":"'Schedule XXIA'!K40","v":"Select"}]
["Sch XXIA","Inv Con Risk",null,"Bond Type - 34",{"$f":"'Schedule XXIA'!F41","v":"Select"},null,null,null,null,null,null,null,{"$f":"'Schedule XXIA'!K41","v":"Select"}]
["Sch XXIA","Inv Con Risk",null,"Bond Type - 35",{"$f":"'Schedule XXIA'!F42","v":"Select"},null,null,null,null,null,null,null,{"$f":"'Schedule XXIA'!K42","v":"Select"}]
["Sch XXIA","Inv Con Risk",null,"Bond Type - 36",{"$f":"'Schedule XXIA'!F43","v":"Select"},null,null,null,null,null,null,null,{"$f":"'Schedule XXIA'!K43","v":"Select"}]
["Sch XXIA","Inv Con Risk",null,"Bond Type - 37",{"$f":"'Schedule XXIA'!F44","v":"Select"},null,null,null,null,null,null,null,{"$f":"'Schedule XXIA'!K44","v":"Select"}]
["Sch XXIA","Inv Con Risk",null,"Bond Type - 38",{"$f":"'Schedule XXIA'!F45","v":"Select"},null,null,null,null,null,null,null,{"$f":"'Schedule XXIA'!K45","v":"Select"}]
["Sch XXIA","Inv Con Risk",null,"Bond Type - 39",{"$f":"'Schedule XXIA'!F46","v":"Select"},null,null,null,null,null,null,null,{"$f":"'Schedule XXIA'!K46","v":"Select"}]
["Sch XXIA","Inv Con Risk",null,"Bond Type - 40",{"$f":"'Schedule XXIA'!F47","v":"Select"},null,null,null,null,null,null,null,{"$f":"'Schedule XXIA'!K47","v":"Select"}]
["Sch XXIA","Inv Con Risk",null,"Bond Type - 41",{"$f":"'Schedule XXIA'!F48","v":"Select"},null,null,null,null,null,null,null,{"$f":"'Schedule XXIA'!K48","v":"Select"}]
["Sch XXIA","Inv Con Risk",null,"Bond Type - 42",{"$f":"'Schedule XXIA'!F49","v":"Select"},null,null,null,null,null,null,null,{"$f":"'Schedule XXIA'!K49","v":"Select"}]
["Sch XXIA","Inv Con Risk",null,"Bond Type - 43",{"$f":"'Schedule XXIA'!F50","v":"Select"},null,null,null,null,null,null,null,{"$f":"'Schedule XXIA'!K50","v":"Select"}]
["Sch XXIA","Inv Con Risk",null,"Bond Type - 44",{"$f":"'Schedule XXIA'!F51","v":"Select"},null,null,null,null,null,null,null,{"$f":"'Schedule XXIA'!K51","v":"Select"}]
["Sch XXIA","Inv Con Risk",null,"Bond Type - 45",{"$f":"'Schedule XXIA'!F52","v":"Select"},null,null,null,null,null,null,null,{"$f":"'Schedule XXIA'!K52","v":"Select"}]
["Sch XXIA","Inv Con Risk",null,"Bond Type - 46",{"$f":"'Schedule XXIA'!F53","v":"Select"},null,null,null,null,null,null,null,{"$f":"'Schedule XXIA'!K53","v":"Select"}]
["Sch XXIA","Inv Con Risk",null,"Bond Type - 47",{"$f":"'Schedule XXIA'!F54","v":"Select"},null,null,null,null,null,null,null,{"$f":"'Schedule XXIA'!K54","v":"Select"}]
["Sch XXIA","Inv Con Risk",null,"Bond Type - 48",{"$f":"'Schedule XXIA'!F55","v":"Select"},null,null,null,null,null,null,null,{"$f":"'Schedule XXIA'!K55","v":"Select"}]
["Sch XXIA","Inv Con Risk",null,"Bond Type - 49",{"$f":"'Schedule XXIA'!F56","v":"Select"},null,null,null,null,null,null,null,{"$f":"'Schedule XXIA'!K56","v":"Select"}]
["Sch XXIA","Inv Con Risk",null,"Bond Type - 50",{"$f":"'Schedule XXIA'!F57","v":"Select"},null,null,null,null,null,null,null,{"$f":"'Schedule XXIA'!K57","v":"Select"}]
["Sch XXIA","Inv Con Risk",null,"BSCR Rating - 1",{"$f":"'Schedule XXIA'!G8","v":"Select"},null,null,null,null,null,null,null,{"$f":"'Schedule XXIA'!L8","v":"Select"}]
["Sch XXIA","Inv Con Risk",null,"BSCR Rating - 2",{"$f":"'Schedule XXIA'!G9","v":"Select"},null,null,null,null,null,null,null,{"$f":"'Schedule XXIA'!L9","v":"Select"}]
["Sch XXIA","Inv Con Risk",null,"BSCR Rating - 3",{"$f":"'Schedule XXIA'!G10","v":"Select"},null,null,null,null,null,null,null,{"$f":"'Schedule XXIA'!L10","v":"Select"}]
["Sch XXIA","Inv Con Risk",null,"BSCR Rating - 4",{"$f":"'Schedule XXIA'!G11","v":"Select"},null,null,null,null,null,null,null,{"$f":"'Schedule XXIA'!L11","v":"Select"}]
["Sch XXIA","Inv Con Risk",null,"BSCR Rating - 5",{"$f":"'Schedule XXIA'!G12","v":"Select"},null,null,null,null,null,null,null,{"$f":"'Schedule XXIA'!L12","v":"Select"}]
["Sch XXIA","Inv Con Risk",null,"BSCR Rating - 6",{"$f":"'Schedule XXIA'!G13","v":"Select"},null,null,null,null,null,null,null,{"$f":"'Schedule XXIA'!L13","v":"Select"}]
["Sch XXIA","Inv Con Risk",null,"BSCR Rating - 7",{"$f":"'Schedule XXIA'!G14","v":"Select"},null,null,null,null,null,null,null,{"$f":"'Schedule XXIA'!L14","v":"Select"}]
["Sch XXIA","Inv Con Risk",null,"BSCR Rating - 8",{"$f":"'Schedule XXIA'!G15","v":"Select"},null,null,null,null,null,null,null,{"$f":"'Schedule XXIA'!L15","v":"Select"}]
["Sch XXIA","Inv Con Risk",null,"BSCR Rating - 9",{"$f":"'Schedule XXIA'!G16","v":"Select"},null,null,null,null,null,null,null,{"$f":"'Schedule XXIA'!L16","v":"Select"}]
["Sch XXIA","Inv Con Risk",null,"BSCR Rating - 10",{"$f":"'Schedule XXIA'!G17","v":"Select"},null,null,null,null,null,null,null,{"$f":"'Schedule XXIA'!L17","v":"Select"}]
["Sch XXIA","Inv Con Risk",null,"BSCR Rating - 11",{"$f":"'Schedule XXIA'!G18","v":"Select"},null,null,null,null,null,null,null,{"$f":"'Schedule XXIA'!L18","v":"Select"}]
["Sch XXIA","Inv Con Risk",null,"BSCR Rating - 12",{"$f":"'Schedule XXIA'!G19","v":"Select"},null,null,null,null,null,null,null,{"$f":"'Schedule XXIA'!L19","v":"Select"}]
["Sch XXIA","Inv Con Risk",null,"BSCR Rating - 13",{"$f":"'Schedule XXIA'!G20","v":"Select"},null,null,null,null,null,null,null,{"$f":"'Schedule XXIA'!L20","v":"Select"}]
["Sch XXIA","Inv Con Risk",null,"BSCR Rating - 14",{"$f":"'Schedule XXIA'!G21","v":"Select"},null,null,null,null,null,null,null,{"$f":"'Schedule XXIA'!L21","v":"Select"}]
["Sch XXIA","Inv Con Risk",null,"BSCR Rating - 15",{"$f":"'Schedule XXIA'!G22","v":"Select"},null,null,null,null,null,null,null,{"$f":"'Schedule XXIA'!L22","v":"Select"}]
["Sch XXIA","Inv Con Risk",null,"BSCR Rating - 16",{"$f":"'Schedule XXIA'!G23","v":"Select"},null,null,null,null,null,null,null,{"$f":"'Schedule XXIA'!L23","v":"Select"}]
["Sch XXIA","Inv Con Risk",null,"BSCR Rating - 17",{"$f":"'Schedule XXIA'!G24","v":"Select"},null,null,null,null,null,null,null,{"$f":"'Schedule XXIA'!L24","v":"Select"}]
["Sch XXIA","Inv Con Risk",null,"BSCR Rating - 18",{"$f":"'Schedule XXIA'!G25","v":"Select"},null,null,null,null,null,null,null,{"$f":"'Schedule XXIA'!L25","v":"Select"}]
["Sch XXIA","Inv Con Risk",null,"BSCR Rating - 19",{"$f":"'Schedule XXIA'!G26","v":"Select"},null,null,null,null,null,null,null,{"$f":"'Schedule XXIA'!L26","v":"Select"}]
["Sch XXIA","Inv Con Risk",null,"BSCR Rating - 20",{"$f":"'Schedule XXIA'!G27","v":"Select"},null,null,null,null,null,null,null,{"$f":"'Schedule XXIA'!L27","v":"Select"}]
["Sch XXIA","Inv Con Risk",null,"BSCR Rating - 21",{"$f":"'Schedule XXIA'!G28","v":"Select"},null,null,null,null,null,null,null,{"$f":"'Schedule XXIA'!L28","v":"Select"}]
["Sch XXIA","Inv Con Risk",null,"BSCR Rating - 22",{"$f":"'Schedule XXIA'!G29","v":"Select"},null,null,null,null,null,null,null,{"$f":"'Schedule XXIA'!L29","v":"Select"}]
["Sch XXIA","Inv Con Risk",null,"BSCR Rating - 23",{"$f":"'Schedule XXIA'!G30","v":"Select"},null,null,null,null,null,null,null,{"$f":"'Schedule XXIA'!L30","v":"Select"}]
["Sch XXIA","Inv Con Risk",null,"BSCR Rating - 24",{"$f":"'Schedule XXIA'!G31","v":"Select"},null,null,null,null,null,null,null,{"$f":"'Schedule XXIA'!L31","v":"Select"}]
["Sch XXIA","Inv Con Risk",null,"BSCR Rating - 25",{"$f":"'Schedule XXIA'!G32","v":"Select"},null,null,null,null,null,null,null,{"$f":"'Schedule XXIA'!L32","v":"Select"}]
["Sch XXIA","Inv Con Risk",null,"BSCR Rating - 26",{"$f":"'Schedule XXIA'!G33","v":"Select"},null,null,null,null,null,null,null,{"$f":"'Schedule XXIA'!L33","v":"Select"}]
["Sch XXIA","Inv Con Risk",null,"BSCR Rating - 27",{"$f":"'Schedule XXIA'!G34","v":"Select"},null,null,null,null,null,null,null,{"$f":"'Schedule XXIA'!L34","v":"Select"}]
["Sch XXIA","Inv Con Risk",null,"BSCR Rating - 28",{"$f":"'Schedule XXIA'!G35","v":"Select"},null,null,null,null,null,null,null,{"$f":"'Schedule XXIA'!L35","v":"Select"}]
["Sch XXIA","Inv Con Risk",null,"BSCR Rating - 29",{"$f":"'Schedule XXIA'!G36","v":"Select"},null,null,null,null,null,null,null,{"$f":"'Schedule XXIA'!L36","v":"Select"}]
["Sch XXIA","Inv Con Risk",null,"BSCR Rating - 30",{"$f":"'Schedule XXIA'!G37","v":"Select"},null,null,null,null,null,null,null,{"$f":"'Schedule XXIA'!L37","v":"Select"}]
["Sch XXIA","Inv Con Risk",null,"BSCR Rating - 31",{"$f":"'Schedule XXIA'!G38","v":"Select"},null,null,null,null,null,null,null,{"$f":"'Schedule XXIA'!L38","v":"Select"}]
["Sch XXIA","Inv Con Risk",null,"BSCR Rating - 32",{"$f":"'Schedule XXIA'!G39","v":"Select"},null,null,null,null,null,null,null,{"$f":"'Schedule XXIA'!L39","v":"Select"}]
["Sch XXIA","Inv Con Risk",null,"BSCR Rating - 33",{"$f":"'Schedule XXIA'!G40","v":"Select"},null,null,null,null,null,null,null,{"$f":"'Schedule XXIA'!L40","v":"Select"}]
["Sch XXIA","Inv Con Risk",null,"BSCR Rating - 34",{"$f":"'Schedule XXIA'!G41","v":"Select"},null,null,null,null,null,null,null,{"$f":"'Schedule XXIA'!L41","v":"Select"}]
["Sch XXIA","Inv Con Risk",null,"BSCR Rating - 35",{"$f":"'Schedule XXIA'!G42","v":"Select"},null,null,null,null,null,null,null,{"$f":"'Schedule XXIA'!L42","v":"Select"}]
["Sch XXIA","Inv Con Risk",null,"BSCR Rating - 36",{"$f":"'Schedule XXIA'!G43","v":"Select"},null,null,null,null,null,null,null,{"$f":"'Schedule XXIA'!L43","v":"Select"}]
["Sch XXIA","Inv Con Risk",null,"BSCR Rating - 37",{"$f":"'Schedule XXIA'!G44","v":"Select"},null,null,null,null,null,null,null,{"$f":"'Schedule XXIA'!L44","v":"Select"}]
["Sch XXIA","Inv Con Risk",null,"BSCR Rating - 38",{"$f":"'Schedule XXIA'!G45","v":"Select"},null,null,null,null,null,null,null,{"$f":"'Schedule XXIA'!L45","v":"Select"}]
["Sch XXIA","Inv Con Risk",null,"BSCR Rating - 39",{"$f":"'Schedule XXIA'!G46","v":"Select"},null,null,null,null,null,null,null,{"$f":"'Schedule XXIA'!L46","v":"Select"}]
["Sch XXIA","Inv Con Risk",null,"BSCR Rating - 40",{"$f":"'Schedule XXIA'!G47","v":"Select"},null,null,null,null,null,null,null,{"$f":"'Schedule XXIA'!L47","v":"Select"}]
["Sch XXIA","Inv Con Risk",null,"BSCR Rating - 41",{"$f":"'Schedule XXIA'!G48","v":"Select"},null,null,null,null,null,null,null,{"$f":"'Schedule XXIA'!L48","v":"Select"}]
["Sch XXIA","Inv Con Risk",null,"BSCR Rating - 42",{"$f":"'Schedule XXIA'!G49","v":"Select"},null,null,null,null,null,null,null,{"$f":"'Schedule XXIA'!L49","v":"Select"}]
["Sch XXIA","Inv Con Risk",null,"BSCR Rating - 43",{"$f":"'Schedule XXIA'!G50","v":"Select"},null,null,null,null,null,null,null,{"$f":"'Schedule XXIA'!L50","v":"Select"}]
["Sch XXIA","Inv Con Risk",null,"BSCR Rating - 44",{"$f":"'Schedule XXIA'!G51","v":"Select"},null,null,null,null,null,null,null,{"$f":"'Schedule XXIA'!L51","v":"Select"}]
["Sch XXIA","Inv Con Risk",null,"BSCR Rating - 45",{"$f":"'Schedule XXIA'!G52","v":"Select"},null,null,null,null,null,null,null,{"$f":"'Schedule XXIA'!L52","v":"Select"}]
["Sch XXIA","Inv Con Risk",null,"BSCR Rating - 46",{"$f":"'Schedule XXIA'!G53","v":"Select"},null,null,null,null,null,null,null,{"$f":"'Schedule XXIA'!L53","v":"Select"}]
["Sch XXIA","Inv Con Risk",null,"BSCR Rating - 47",{"$f":"'Schedule XXIA'!G54","v":"Select"},null,null,null,null,null,null,null,{"$f":"'Schedule XXIA'!L54","v":"Select"}]
["Sch XXIA","Inv Con Risk",null,"BSCR Rating - 48",{"$f":"'Schedule XXIA'!G55","v":"Select"},null,null,null,null,null,null,null,{"$f":"'Schedule XXIA'!L55","v":"Select"}]
["Sch XXIA","Inv Con Risk",null,"BSCR Rating - 49",{"$f":"'Schedule XXIA'!G56","v":"Select"},null,null,null,null,null,null,null,{"$f":"'Schedule XXIA'!L56","v":"Select"}]
["Sch XXIA","Inv Con Risk",null,"BSCR Rating - 50",{"$f":"'Schedule XXIA'!G57","v":"Select"},null,null,null,null,null,null,null,{"$f":"'Schedule XXIA'!L57","v":"Select"}]
["Sch XXIA","Inv Con Risk",null,"Asset Value - 1",{"$f":"'Schedule XXIA'!H8","v":0},null,null,null,null,null,null,null,{"$f":"'Schedule XXIA'!M8","v":0}]
["Sch XXIA","Inv Con Risk",null,"Asset Value - 2",{"$f":"'Schedule XXIA'!H9","v":0},null,null,null,null,null,null,null,{"$f":"'Schedule XXIA'!M9","v":0}]
["Sch XXIA","Inv Con Risk",null,"Asset Value - 3",{"$f":"'Schedule XXIA'!H10","v":0},null,null,null,null,null,null,null,{"$f":"'Schedule XXIA'!M10","v":0}]
["Sch XXIA","Inv Con Risk",null,"Asset Value - 4",{"$f":"'Schedule XXIA'!H11","v":0},null,null,null,null,null,null,null,{"$f":"'Schedule XXIA'!M11","v":0}]
["Sch XXIA","Inv Con Risk",null,"Asset Value - 5",{"$f":"'Schedule XXIA'!H12","v":0},null,null,null,null,null,null,null,{"$f":"'Schedule XXIA'!M12","v":0}]
["Sch XXIA","Inv Con Risk",null,"Asset Value - 6",{"$f":"'Schedule XXIA'!H13","v":0},null,null,null,null,null,null,null,{"$f":"'Schedule XXIA'!M13","v":0}]
["Sch XXIA","Inv Con Risk",null,"Asset Value - 7",{"$f":"'Schedule XXIA'!H14","v":0},null,null,null,null,null,null,null,{"$f":"'Schedule XXIA'!M14","v":0}]
["Sch XXIA","Inv Con Risk",null,"Asset Value - 8",{"$f":"'Schedule XXIA'!H15","v":0},null,null,null,null,null,null,null,{"$f":"'Schedule XXIA'!M15","v":0}]
["Sch XXIA","Inv Con Risk",null,"Asset Value - 9",{"$f":"'Schedule XXIA'!H16","v":0},null,null,null,null,null,null,null,{"$f":"'Schedule XXIA'!M16","v":0}]
["Sch XXIA","Inv Con Risk",null,"Asset Value - 10",{"$f":"'Schedule XXIA'!H17","v":0},null,null,null,null,null,null,null,{"$f":"'Schedule XXIA'!M17","v":0}]
["Sch XXIA","Inv Con Risk",null,"Asset Value - 11",{"$f":"'Schedule XXIA'!H18","v":0},null,null,null,null,null,null,null,{"$f":"'Schedule XXIA'!M18","v":0}]
["Sch XXIA","Inv Con Risk",null,"Asset Value - 12",{"$f":"'Schedule XXIA'!H19","v":0},null,null,null,null,null,null,null,{"$f":"'Schedule XXIA'!M19","v":0}]
["Sch XXIA","Inv Con Risk",null,"Asset Value - 13",{"$f":"'Schedule XXIA'!H20","v":0},null,null,null,null,null,null,null,{"$f":"'Schedule XXIA'!M20","v":0}]
["Sch XXIA","Inv Con Risk",null,"Asset Value - 14",{"$f":"'Schedule XXIA'!H21","v":0},null,null,null,null,null,null,null,{"$f":"'Schedule XXIA'!M21","v":0}]
["Sch XXIA","Inv Con Risk",null,"Asset Value - 15",{"$f":"'Schedule XXIA'!H22","v":0},null,null,null,null,null,null,null,{"$f":"'Schedule XXIA'!M22","v":0}]
["Sch XXIA","Inv Con Risk",null,"Asset Value - 16",{"$f":"'Schedule XXIA'!H23","v":0},null,null,null,null,null,null,null,{"$f":"'Schedule XXIA'!M23","v":0}]
["Sch XXIA","Inv Con Risk",null,"Asset Value - 17",{"$f":"'Schedule XXIA'!H24","v":0},null,null,null,null,null,null,null,{"$f":"'Schedule XXIA'!M24","v":0}]
["Sch XXIA","Inv Con Risk",null,"Asset Value - 18",{"$f":"'Schedule XXIA'!H25","v":0},null,null,null,null,null,null,null,{"$f":"'Schedule XXIA'!M25","v":0}]
["Sch XXIA","Inv Con Risk",null,"Asset Value - 19",{"$f":"'Schedule XXIA'!H26","v":0},null,null,null,null,null,null,null,{"$f":"'Schedule XXIA'!M26","v":0}]
["Sch XXIA","Inv Con Risk",null,"Asset Value - 20",{"$f":"'Schedule XXIA'!H27","v":0},null,null,null,null,null,null,null,{"$f":"'Schedule XXIA'!M27","v":0}]
["Sch XXIA","Inv Con Risk",null,"Asset Value - 21",{"$f":"'Schedule XXIA'!H28","v":0},null,null,null,null,null,null,null,{"$f":"'Schedule XXIA'!M28","v":0}]
["Sch XXIA","Inv Con Risk",null,"Asset Value - 22",{"$f":"'Schedule XXIA'!H29","v":0},null,null,null,null,null,null,null,{"$f":"'Schedule XXIA'!M29","v":0}]
["Sch XXIA","Inv Con Risk",null,"Asset Value - 23",{"$f":"'Schedule XXIA'!H30","v":0},null,null,null,null,null,null,null,{"$f":"'Schedule XXIA'!M30","v":0}]
["Sch XXIA","Inv Con Risk",null,"Asset Value - 24",{"$f":"'Schedule XXIA'!H31","v":0},null,null,null,null,null,null,null,{"$f":"'Schedule XXIA'!M31","v":0}]
["Sch XXIA","Inv Con Risk",null,"Asset Value - 25",{"$f":"'Schedule XXIA'!H32","v":0},null,null,null,null,null,null,null,{"$f":"'Schedule XXIA'!M32","v":0}]
["Sch XXIA","Inv Con Risk",null,"Asset Value - 26",{"$f":"'Schedule XXIA'!H33","v":0},null,null,null,null,null,null,null,{"$f":"'Schedule XXIA'!M33","v":0}]
["Sch XXIA","Inv Con Risk",null,"Asset Value - 27",{"$f":"'Schedule XXIA'!H34","v":0},null,null,null,null,null,null,null,{"$f":"'Schedule XXIA'!M34","v":0}]
["Sch XXIA","Inv Con Risk",null,"Asset Value - 28",{"$f":"'Schedule XXIA'!H35","v":0},null,null,null,null,null,null,null,{"$f":"'Schedule XXIA'!M35","v":0}]
["Sch XXIA","Inv Con Risk",null,"Asset Value - 29",{"$f":"'Schedule XXIA'!H36","v":0},null,null,null,null,null,null,null,{"$f":"'Schedule XXIA'!M36","v":0}]
["Sch XXIA","Inv Con Risk",null,"Asset Value - 30",{"$f":"'Schedule XXIA'!H37","v":0},null,null,null,null,null,null,null,{"$f":"'Schedule XXIA'!M37","v":0}]
["Sch XXIA","Inv Con Risk",null,"Asset Value - 31",{"$f":"'Schedule XXIA'!H38","v":0},null,null,null,null,null,null,null,{"$f":"'Schedule XXIA'!M38","v":0}]
["Sch XXIA","Inv Con Risk",null,"Asset Value - 32",{"$f":"'Schedule XXIA'!H39","v":0},null,null,null,null,null,null,null,{"$f":"'Schedule XXIA'!M39","v":0}]
["Sch XXIA","Inv Con Risk",null,"Asset Value - 33",{"$f":"'Schedule XXIA'!H40","v":0},null,null,null,null,null,null,null,{"$f":"'Schedule XXIA'!M40","v":0}]
["Sch XXIA","Inv Con Risk",null,"Asset Value - 34",{"$f":"'Schedule XXIA'!H41","v":0},null,null,null,null,null,null,null,{"$f":"'Schedule XXIA'!M41","v":0}]
["Sch XXIA","Inv Con Risk",null,"Asset Value - 35",{"$f":"'Schedule XXIA'!H42","v":0},null,null,null,null,null,null,null,{"$f":"'Schedule XXIA'!M42","v":0}]
["Sch XXIA","Inv Con Risk",null,"Asset Value - 36",{"$f":"'Schedule XXIA'!H43","v":0},null,null,null,null,null,null,null,{"$f":"'Schedule XXIA'!M43","v":0}]
["Sch XXIA","Inv Con Risk",null,"Asset Value - 37",{"$f":"'Schedule XXIA'!H44","v":0},null,null,null,null,null,null,null,{"$f":"'Schedule XXIA'!M44","v":0}]
["Sch XXIA","Inv Con Risk",null,"Asset Value - 38",{"$f":"'Schedule XXIA'!H45","v":0},null,null,null,null,null,null,null,{"$f":"'Schedule XXIA'!M45","v":0}]
["Sch XXIA","Inv Con Risk",null,"Asset Value - 39",{"$f":"'Schedule XXIA'!H46","v":0},null,null,null,null,null,null,null,{"$f":"'Schedule XXIA'!M46","v":0}]
["Sch XXIA","Inv Con Risk",null,"Asset Value - 40",{"$f":"'Schedule XXIA'!H47","v":0},null,null,null,null,null,null,null,{"$f":"'Schedule XXIA'!M47","v":0}]
["Sch XXIA","Inv Con Risk",null,"Asset Value - 41",{"$f":"'Schedule XXIA'!H48","v":0},null,null,null,null,null,null,null,{"$f":"'Schedule XXIA'!M48","v":0}]
["Sch XXIA","Inv Con Risk",null,"Asset Value - 42",{"$f":"'Schedule XXIA'!H49","v":0},null,null,null,null,null,null,null,{"$f":"'Schedule XXIA'!M49","v":0}]
["Sch XXIA","Inv Con Risk",null,"Asset Value - 43",{"$f":"'Schedule XXIA'!H50","v":0},null,null,null,null,null,null,null,{"$f":"'Schedule XXIA'!M50","v":0}]
["Sch XXIA","Inv Con Risk",null,"Asset Value - 44",{"$f":"'Schedule XXIA'!H51","v":0},null,null,null,null,null,null,null,{"$f":"'Schedule XXIA'!M51","v":0}]
["Sch XXIA","Inv Con Risk",null,"Asset Value - 45",{"$f":"'Schedule XXIA'!H52","v":0},null,null,null,null,null,null,null,{"$f":"'Schedule XXIA'!M52","v":0}]
["Sch XXIA","Inv Con Risk",null,"Asset Value - 46",{"$f":"'Schedule XXIA'!H53","v":0},null,null,null,null,null,null,null,{"$f":"'Schedule XXIA'!M53","v":0}]
["Sch XXIA","Inv Con Risk",null,"Asset Value - 47",{"$f":"'Schedule XXIA'!H54","v":0},null,null,null,null,null,null,null,{"$f":"'Schedule XXIA'!M54","v":0}]
["Sch XXIA","Inv Con Risk",null,"Asset Value - 48",{"$f":"'Schedule XXIA'!H55","v":0},null,null,null,null,null,null,null,{"$f":"'Schedule XXIA'!M55","v":0}]
["Sch XXIA","Inv Con Risk",null,"Asset Value - 49",{"$f":"'Schedule XXIA'!H56","v":0},null,null,null,null,null,null,null,{"$f":"'Schedule XXIA'!M56","v":0}]
["Sch XXIA","Inv Con Risk",null,"Asset Value - 50",{"$f":"'Schedule XXIA'!H57","v":0},null,null,null,null,null,null,null,{"$f":"'Schedule XXIA'!M57","v":0}]
["Sch XXIA","Inv Con Risk",null,"Asset Value - Total",{"$f":"'Schedule XXIA'!H58","v":0},null,null,null,null,null,null,null,{"$f":"'Schedule XXIA'!M58","v":0}]
[]
["Sch XXIII","Interest Rates",null,"Other currency 1",null,null,null,null,null,null,null,null,{"$f":"'Schedule XXIII'!C18","v":"Other currency 1"}]
["Sch XXIII","Interest Rates",null,"Other currency 2",null,null,null,null,null,null,null,null,{"$f":"'Schedule XXIII'!C19","v":"Other currency 2"}]
["Sch XXIII","Interest Rates",null,"Other currency 3",null,null,null,null,null,null,null,null,{"$f":"'Schedule XXIII'!C20","v":"Other currency 3"}]
["Sch XXIII","Interest Rates",null,"Other currency 4",null,null,null,null,null,null,null,null,{"$f":"'Schedule XXIII'!C21","v":"Other currency 4"}]
["Sch XXIII","Interest Rates",null,"Other currency 5",null,null,null,null,null,null,null,null,{"$f":"'Schedule XXIII'!C22","v":"Other currency 5"}]
["Sch XXIII","Interest Rates",null,"Other currency 6",null,null,null,null,null,null,null,null,{"$f":"'Schedule XXIII'!C23","v":"Other currency 6"}]
["Sch XXIII","Interest Rates",null,"Other currency 7",null,null,null,null,null,null,null,null,{"$f":"'Schedule XXIII'!C24","v":"Other currency 7"}]
["Sch XXIII","Interest Rates",null,"Other currency 8",null,null,null,null,null,null,null,null,{"$f":"'Schedule XXIII'!C25","v":"Other currency 8"}]
["Sch XXIII","Interest Rates",null,"Other currency 9",null,null,null,null,null,null,null,null,{"$f":"'Schedule XXIII'!C26","v":"Other currency 9"}]
["Sch XXIII","Interest Rates",null,"Other currency 10",null,null,null,null,null,null,null,null,{"$f":"'Schedule XXIII'!C27","v":"Other currency 10"}]
["Sch XXIII","Interest Rates",null,"Int. Down - Before Shock - Other - Qualifying Assets - United States Dollars",null,null,null,null,null,null,null,null,{"$f":"'Schedule XXIII'!E10","v":0}]
["Sch XXIII","Interest Rates",null,"Int. Down - Before Shock - Other - Qualifying Assets - Euro",null,null,null,null,null,null,null,null,{"$f":"'Schedule XXIII'!E11","v":0}]
["Sch XXIII","Interest Rates",null,"Int. Down - Before Shock - Other - Qualifying Assets - United Kingdom Pounds",null,null,null,null,null,null,null,null,{"$f":"'Schedule XXIII'!E12","v":0}]
["Sch XXIII","Interest Rates",null,"Int. Down - Before Shock - Other - Qualifying Assets - Japan Yen",null,null,null,null,null,null,null,null,{"$f":"'Schedule XXIII'!E13","v":0}]
["Sch XXIII","Interest Rates",null,"Int. Down - Before Shock - Other - Qualifying Assets - Canada Dollars",null,null,null,null,null,null,null,null,{"$f":"'Schedule XXIII'!E14","v":0}]
["Sch XXIII","Interest Rates",null,"Int. Down - Before Shock - Other - Qualifying Assets - Swiss Francs",null,null,null,null,null,null,null,null,{"$f":"'Schedule XXIII'!E15","v":0}]
["Sch XXIII","Interest Rates",null,"Int. Down - Before Shock - Other - Qualifying Assets - Australia Dollar",null,null,null,null,null,null,null,null,{"$f":"'Schedule XXIII'!E16","v":0}]
["Sch XXIII","Interest Rates",null,"Int. Down - Before Shock - Other - Qualifying Assets - New Zealand Dollar",null,null,null,null,null,null,null,null,{"$f":"'Schedule XXIII'!E17","v":0}]
["Sch XXIII","Interest Rates",null,{"$f":"\"Int. Down - Before Shock - Other - Qualifying Assets - \"&'Schedule XXIII'!$C$18","v":"Int. Down - Before Shock - Other - Qualifying Assets - Other currency 1"},null,null,null,null,null,null,null,null,{"$f":"'Schedule XXIII'!E18","v":0}]
["Sch XXIII","Interest Rates",null,{"$f":"\"Int. Down - Before Shock - Other - Qualifying Assets - \"&'Schedule XXIII'!$C$19","v":"Int. Down - Before Shock - Other - Qualifying Assets - Other currency 2"},null,null,null,null,null,null,null,null,{"$f":"'Schedule XXIII'!E19","v":0}]
["Sch XXIII","Interest Rates",null,{"$f":"\"Int. Down - Before Shock - Other - Qualifying Assets - \"&'Schedule XXIII'!$C$20","v":"Int. Down - Before Shock - Other - Qualifying Assets - Other currency 3"},null,null,null,null,null,null,null,null,{"$f":"'Schedule XXIII'!E20","v":0}]
["Sch XXIII","Interest Rates",null,{"$f":"\"Int. Down - Before Shock - Other - Qualifying Assets - \"&'Schedule XXIII'!$C$21","v":"Int. Down - Before Shock - Other - Qualifying Assets - Other currency 4"},null,null,null,null,null,null,null,null,{"$f":"'Schedule XXIII'!E21","v":0}]
["Sch XXIII","Interest Rates",null,{"$f":"\"Int. Down - Before Shock - Other - Qualifying Assets - \"&'Schedule XXIII'!$C$22","v":"Int. Down - Before Shock - Other - Qualifying Assets - Other currency 5"},null,null,null,null,null,null,null,null,{"$f":"'Schedule XXIII'!E22","v":0}]
["Sch XXIII","Interest Rates",null,{"$f":"\"Int. Down - Before Shock - Other - Qualifying Assets - \"&'Schedule XXIII'!$C$23","v":"Int. Down - Before Shock - Other - Qualifying Assets - Other currency 6"},null,null,null,null,null,null,null,null,{"$f":"'Schedule XXIII'!E23","v":0}]
["Sch XXIII","Interest Rates",null,{"$f":"\"Int. Down - Before Shock - Other - Qualifying Assets - \"&'Schedule XXIII'!$C$24","v":"Int. Down - Before Shock - Other - Qualifying Assets - Other currency 7"},null,null,null,null,null,null,null,null,{"$f":"'Schedule XXIII'!E24","v":0}]
["Sch XXIII","Interest Rates",null,{"$f":"\"Int. Down - Before Shock - Other - Qualifying Assets - \"&'Schedule XXIII'!$C$25","v":"Int. Down - Before Shock - Other - Qualifying Assets - Other currency 8"},null,null,null,null,null,null,null,null,{"$f":"'Schedule XXIII'!E25","v":0}]
["Sch XXIII","Interest Rates",null,{"$f":"\"Int. Down - Before Shock - Other - Qualifying Assets - \"&'Schedule XXIII'!$C$26","v":"Int. Down - Before Shock - Other - Qualifying Assets - Other currency 9"},null,null,null,null,null,null,null,null,{"$f":"'Schedule XXIII'!E26","v":0}]
["Sch XXIII","Interest Rates",null,{"$f":"\"Int. Down - Before Shock - Other - Qualifying Assets - \"&'Schedule XXIII'!$C$27","v":"Int. Down - Before Shock - Other - Qualifying Assets - Other currency 10"},null,null,null,null,null,null,null,null,{"$f":"'Schedule XXIII'!E27","v":0}]
["Sch XXIII","Interest Rates",null,"Int. Down - Before Shock - Other - Qualifying Assets - Total",null,null,null,null,null,null,null,null,{"$f":"'Schedule XXIII'!E28","v":0}]
["Sch XXIII","Interest Rates",null,"Int. Down - After Shock - Other - Qualifying Assets - United States Dollars",null,null,null,null,null,null,null,null,{"$f":"'Schedule XXIII'!F10","v":0}]
["Sch XXIII","Interest Rates",null,"Int. Down - After Shock - Other - Qualifying Assets - Euro",null,null,null,null,null,null,null,null,{"$f":"'Schedule XXIII'!F11","v":0}]
["Sch XXIII","Interest Rates",null,"Int. Down - After Shock - Other - Qualifying Assets - United Kingdom Pounds",null,null,null,null,null,null,null,null,{"$f":"'Schedule XXIII'!F12","v":0}]
["Sch XXIII","Interest Rates",null,"Int. Down - After Shock - Other - Qualifying Assets - Japan Yen",null,null,null,null,null,null,null,null,{"$f":"'Schedule XXIII'!F13","v":0}]
["Sch XXIII","Interest Rates",null,"Int. Down - After Shock - Other - Qualifying Assets - Canada Dollars",null,null,null,null,null,null,null,null,{"$f":"'Schedule XXIII'!F14","v":0}]
["Sch XXIII","Interest Rates",null,"Int. Down - After Shock - Other - Qualifying Assets - Swiss Francs",null,null,null,null,null,null,null,null,{"$f":"'Schedule XXIII'!F15","v":0}]
["Sch XXIII","Interest Rates",null,"Int. Down - After Shock - Other - Qualifying Assets - Australia Dollar",null,null,null,null,null,null,null,null,{"$f":"'Schedule XXIII'!F16","v":0}]
["Sch XXIII","Interest Rates",null,"Int. Down - After Shock - Other - Qualifying Assets - New Zealand Dollar",null,null,null,null,null,null,null,null,{"$f":"'Schedule XXIII'!F17","v":0}]
["Sch XXIII","Interest Rates",null,{"$f":"\"Int. Down - After Shock - Other - Qualifying Assets - \"&'Schedule XXIII'!$C$18","v":"Int. Down - After Shock - Other - Qualifying Assets - Other currency 1"},null,null,null,null,null,null,null,null,{"$f":"'Schedule XXIII'!F18","v":0}]
["Sch XXIII","Interest Rates",null,{"$f":"\"Int. Down - After Shock - Other - Qualifying Assets - \"&'Schedule XXIII'!$C$19","v":"Int. Down - After Shock - Other - Qualifying Assets - Other currency 2"},null,null,null,null,null,null,null,null,{"$f":"'Schedule XXIII'!F19","v":0}]
["Sch XXIII","Interest Rates",null,{"$f":"\"Int. Down - After Shock - Other - Qualifying Assets - \"&'Schedule XXIII'!$C$20","v":"Int. Down - After Shock - Other - Qualifying Assets - Other currency 3"},null,null,null,null,null,null,null,null,{"$f":"'Schedule XXIII'!F20","v":0}]
["Sch XXIII","Interest Rates",null,{"$f":"\"Int. Down - After Shock - Other - Qualifying Assets - \"&'Schedule XXIII'!$C$21","v":"Int. Down - After Shock - Other - Qualifying Assets - Other currency 4"},null,null,null,null,null,null,null,null,{"$f":"'Schedule XXIII'!F21","v":0}]
["Sch XXIII","Interest Rates",null,{"$f":"\"Int. Down - After Shock - Other - Qualifying Assets - \"&'Schedule XXIII'!$C$22","v":"Int. Down - After Shock - Other - Qualifying Assets - Other currency 5"},null,null,null,null,null,null,null,null,{"$f":"'Schedule XXIII'!F22","v":0}]
["Sch XXIII","Interest Rates",null,{"$f":"\"Int. Down - After Shock - Other - Qualifying Assets - \"&'Schedule XXIII'!$C$23","v":"Int. Down - After Shock - Other - Qualifying Assets - Other currency 6"},null,null,null,null,null,null,null,null,{"$f":"'Schedule XXIII'!F23","v":0}]
["Sch XXIII","Interest Rates",null,{"$f":"\"Int. Down - After Shock - Other - Qualifying Assets - \"&'Schedule XXIII'!$C$24","v":"Int. Down - After Shock - Other - Qualifying Assets - Other currency 7"},null,null,null,null,null,null,null,null,{"$f":"'Schedule XXIII'!F24","v":0}]
["Sch XXIII","Interest Rates",null,{"$f":"\"Int. Down - After Shock - Other - Qualifying Assets - \"&'Schedule XXIII'!$C$25","v":"Int. Down - After Shock - Other - Qualifying Assets - Other currency 8"},null,null,null,null,null,null,null,null,{"$f":"'Schedule XXIII'!F25","v":0}]
["Sch XXIII","Interest Rates",null,{"$f":"\"Int. Down - After Shock - Other - Qualifying Assets - \"&'Schedule XXIII'!$C$26","v":"Int. Down - After Shock - Other - Qualifying Assets - Other currency 9"},null,null,null,null,null,null,null,null,{"$f":"'Schedule XXIII'!F26","v":0}]
["Sch XXIII","Interest Rates",null,{"$f":"\"Int. Down - After Shock - Other - Qualifying Assets - \"&'Schedule XXIII'!$C$27","v":"Int. Down - After Shock - Other - Qualifying Assets - Other currency 10"},null,null,null,null,null,null,null,null,{"$f":"'Schedule XXIII'!F27","v":0}]
["Sch XXIII","Interest Rates",null,"Int. Down - After Shock - Other - Qualifying Assets - Total",null,null,null,null,null,null,null,null,{"$f":"'Schedule XXIII'!F28","v":0}]
["Sch XXIII","Interest Rates",null,"Int. Down - Before Shock - Other - Liab. w/o Mgmt Action - United States Dollars",null,null,null,null,null,null,null,null,{"$f":"'Schedule XXIII'!H10","v":0}]
["Sch XXIII","Interest Rates",null,"Int. Down - Before Shock - Other - Liab. w/o Mgmt Action - Euro",null,null,null,null,null,null,null,null,{"$f":"'Schedule XXIII'!H11","v":0}]
["Sch XXIII","Interest Rates",null,"Int. Down - Before Shock - Other - Liab. w/o Mgmt Action - United Kingdom Pounds",null,null,null,null,null,null,null,null,{"$f":"'Schedule XXIII'!H12","v":0}]
["Sch XXIII","Interest Rates",null,"Int. Down - Before Shock - Other - Liab. w/o Mgmt Action - Japan Yen",null,null,null,null,null,null,null,null,{"$f":"'Schedule XXIII'!H13","v":0}]
["Sch XXIII","Interest Rates",null,"Int. Down - Before Shock - Other - Liab. w/o Mgmt Action - Canada Dollars",null,null,null,null,null,null,null,null,{"$f":"'Schedule XXIII'!H14","v":0}]
["Sch XXIII","Interest Rates",null,"Int. Down - Before Shock - Other - Liab. w/o Mgmt Action - Swiss Francs",null,null,null,null,null,null,null,null,{"$f":"'Schedule XXIII'!H15","v":0}]
["Sch XXIII","Interest Rates",null,"Int. Down - Before Shock - Other - Liab. w/o Mgmt Action - Australia Dollar",null,null,null,null,null,null,null,null,{"$f":"'Schedule XXIII'!H16","v":0}]
["Sch XXIII","Interest Rates",null,"Int. Down - Before Shock - Other - Liab. w/o Mgmt Action - New Zealand Dollar",null,null,null,null,null,null,null,null,{"$f":"'Schedule XXIII'!H17","v":0}]
["Sch XXIII","Interest Rates",null,{"$f":"\"Int. Down - Before Shock - Other - Liab. w/o Mgmt Action - \"&'Schedule XXIII'!$C$18","v":"Int. Down - Before Shock - Other - Liab. w/o Mgmt Action - Other currency 1"},null,null,null,null,null,null,null,null,{"$f":"'Schedule XXIII'!H18","v":0}]
["Sch XXIII","Interest Rates",null,{"$f":"\"Int. Down - Before Shock - Other - Liab. w/o Mgmt Action - \"&'Schedule XXIII'!$C$19","v":"Int. Down - Before Shock - Other - Liab. w/o Mgmt Action - Other currency 2"},null,null,null,null,null,null,null,null,{"$f":"'Schedule XXIII'!H19","v":0}]
["Sch XXIII","Interest Rates",null,{"$f":"\"Int. Down - Before Shock - Other - Liab. w/o Mgmt Action - \"&'Schedule XXIII'!$C$20","v":"Int. Down - Before Shock - Other - Liab. w/o Mgmt Action - Other currency 3"},null,null,null,null,null,null,null,null,{"$f":"'Schedule XXIII'!H20","v":0}]
["Sch XXIII","Interest Rates",null,{"$f":"\"Int. Down - Before Shock - Other - Liab. w/o Mgmt Action - \"&'Schedule XXIII'!$C$21","v":"Int. Down - Before Shock - Other - Liab. w/o Mgmt Action - Other currency 4"},null,null,null,null,null,null,null,null,{"$f":"'Schedule XXIII'!H21","v":0}]
["Sch XXIII","Interest Rates",null,{"$f":"\"Int. Down - Before Shock - Other - Liab. w/o Mgmt Action - \"&'Schedule XXIII'!$C$22","v":"Int. Down - Before Shock - Other - Liab. w/o Mgmt Action - Other currency 5"},null,null,null,null,null,null,null,null,{"$f":"'Schedule XXIII'!H22","v":0}]
["Sch XXIII","Interest Rates",null,{"$f":"\"Int. Down - Before Shock - Other - Liab. w/o Mgmt Action - \"&'Schedule XXIII'!$C$23","v":"Int. Down - Before Shock - Other - Liab. w/o Mgmt Action - Other currency 6"},null,null,null,null,null,null,null,null,{"$f":"'Schedule XXIII'!H23","v":0}]
["Sch XXIII","Interest Rates",null,{"$f":"\"Int. Down - Before Shock - Other - Liab. w/o Mgmt Action - \"&'Schedule XXIII'!$C$24","v":"Int. Down - Before Shock - Other - Liab. w/o Mgmt Action - Other currency 7"},null,null,null,null,null,null,null,null,{"$f":"'Schedule XXIII'!H24","v":0}]
["Sch XXIII","Interest Rates",null,{"$f":"\"Int. Down - Before Shock - Other - Liab. w/o Mgmt Action - \"&'Schedule XXIII'!$C$25","v":"Int. Down - Before Shock - Other - Liab. w/o Mgmt Action - Other currency 8"},null,null,null,null,null,null,null,null,{"$f":"'Schedule XXIII'!H25","v":0}]
["Sch XXIII","Interest Rates",null,{"$f":"\"Int. Down - Before Shock - Other - Liab. w/o Mgmt Action - \"&'Schedule XXIII'!$C$26","v":"Int. Down - Before Shock - Other - Liab. w/o Mgmt Action - Other currency 9"},null,null,null,null,null,null,null,null,{"$f":"'Schedule XXIII'!H26","v":0}]
["Sch XXIII","Interest Rates",null,{"$f":"\"Int. Down - Before Shock - Other - Liab. w/o Mgmt Action - \"&'Schedule XXIII'!$C$27","v":"Int. Down - Before Shock - Other - Liab. w/o Mgmt Action - Other currency 10"},null,null,null,null,null,null,null,null,{"$f":"'Schedule XXIII'!H27","v":0}]
["Sch XXIII","Interest Rates",null,"Int. Down - Before Shock - Other - Liab. w/o Mgmt Action - Total",null,null,null,null,null,null,null,null,{"$f":"'Schedule XXIII'!H28","v":0}]
["Sch XXIII","Interest Rates",null,"Int. Down - After Shock - Other - Liab. w/o Mgmt Action - United States Dollars",null,null,null,null,null,null,null,null,{"$f":"'Schedule XXIII'!I10","v":0}]
["Sch XXIII","Interest Rates",null,"Int. Down - After Shock - Other - Liab. w/o Mgmt Action - Euro",null,null,null,null,null,null,null,null,{"$f":"'Schedule XXIII'!I11","v":0}]
["Sch XXIII","Interest Rates",null,"Int. Down - After Shock - Other - Liab. w/o Mgmt Action - United Kingdom Pounds",null,null,null,null,null,null,null,null,{"$f":"'Schedule XXIII'!I12","v":0}]
["Sch XXIII","Interest Rates",null,"Int. Down - After Shock - Other - Liab. w/o Mgmt Action - Japan Yen",null,null,null,null,null,null,null,null,{"$f":"'Schedule XXIII'!I13","v":0}]
["Sch XXIII","Interest Rates",null,"Int. Down - After Shock - Other - Liab. w/o Mgmt Action - Canada Dollars",null,null,null,null,null,null,null,null,{"$f":"'Schedule XXIII'!I14","v":0}]
["Sch XXIII","Interest Rates",null,"Int. Down - After Shock - Other - Liab. w/o Mgmt Action - Swiss Francs",null,null,null,null,null,null,null,null,{"$f":"'Schedule XXIII'!I15","v":0}]
["Sch XXIII","Interest Rates",null,"Int. Down - After Shock - Other - Liab. w/o Mgmt Action - Australia Dollar",null,null,null,null,null,null,null,null,{"$f":"'Schedule XXIII'!I16","v":0}]
["Sch XXIII","Interest Rates",null,"Int. Down - After Shock - Other - Liab. w/o Mgmt Action - New Zealand Dollar",null,null,null,null,null,null,null,null,{"$f":"'Schedule XXIII'!I17","v":0}]
["Sch XXIII","Interest Rates",null,{"$f":"\"Int. Down - After Shock - Other - Liab. w/o Mgmt Action - \"&'Schedule XXIII'!$C$18","v":"Int. Down - After Shock - Other - Liab. w/o Mgmt Action - Other currency 1"},null,null,null,null,null,null,null,null,{"$f":"'Schedule XXIII'!I18","v":0}]
["Sch XXIII","Interest Rates",null,{"$f":"\"Int. Down - After Shock - Other - Liab. w/o Mgmt Action - \"&'Schedule XXIII'!$C$19","v":"Int. Down - After Shock - Other - Liab. w/o Mgmt Action - Other currency 2"},null,null,null,null,null,null,null,null,{"$f":"'Schedule XXIII'!I19","v":0}]
["Sch XXIII","Interest Rates",null,{"$f":"\"Int. Down - After Shock - Other - Liab. w/o Mgmt Action - \"&'Schedule XXIII'!$C$20","v":"Int. Down - After Shock - Other - Liab. w/o Mgmt Action - Other currency 3"},null,null,null,null,null,null,null,null,{"$f":"'Schedule XXIII'!I20","v":0}]
["Sch XXIII","Interest Rates",null,{"$f":"\"Int. Down - After Shock - Other - Liab. w/o Mgmt Action - \"&'Schedule XXIII'!$C$21","v":"Int. Down - After Shock - Other - Liab. w/o Mgmt Action - Other currency 4"},null,null,null,null,null,null,null,null,{"$f":"'Schedule XXIII'!I21","v":0}]
["Sch XXIII","Interest Rates",null,{"$f":"\"Int. Down - After Shock - Other - Liab. w/o Mgmt Action - \"&'Schedule XXIII'!$C$22","v":"Int. Down - After Shock - Other - Liab. w/o Mgmt Action - Other currency 5"},null,null,null,null,null,null,null,null,{"$f":"'Schedule XXIII'!I22","v":0}]
["Sch XXIII","Interest Rates",null,{"$f":"\"Int. Down - After Shock - Other - Liab. w/o Mgmt Action - \"&'Schedule XXIII'!$C$23","v":"Int. Down - After Shock - Other - Liab. w/o Mgmt Action - Other currency 6"},null,null,null,null,null,null,null,null,{"$f":"'Schedule XXIII'!I23","v":0}]
["Sch XXIII","Interest Rates",null,{"$f":"\"Int. Down - After Shock - Other - Liab. w/o Mgmt Action - \"&'Schedule XXIII'!$C$24","v":"Int. Down - After Shock - Other - Liab. w/o Mgmt Action - Other currency 7"},null,null,null,null,null,null,null,null,{"$f":"'Schedule XXIII'!I24","v":0}]
["Sch XXIII","Interest Rates",null,{"$f":"\"Int. Down - After Shock - Other - Liab. w/o Mgmt Action - \"&'Schedule XXIII'!$C$25","v":"Int. Down - After Shock - Other - Liab. w/o Mgmt Action - Other currency 8"},null,null,null,null,null,null,null,null,{"$f":"'Schedule XXIII'!I25","v":0}]
["Sch XXIII","Interest Rates",null,{"$f":"\"Int. Down - After Shock - Other - Liab. w/o Mgmt Action - \"&'Schedule XXIII'!$C$26","v":"Int. Down - After Shock - Other - Liab. w/o Mgmt Action - Other currency 9"},null,null,null,null,null,null,null,null,{"$f":"'Schedule XXIII'!I26","v":0}]
["Sch XXIII","Interest Rates",null,{"$f":"\"Int. Down - After Shock - Other - Liab. w/o Mgmt Action - \"&'Schedule XXIII'!$C$27","v":"Int. Down - After Shock - Other - Liab. w/o Mgmt Action - Other currency 10"},null,null,null,null,null,null,null,null,{"$f":"'Schedule XXIII'!I27","v":0}]
["Sch XXIII","Interest Rates",null,"Int. Down - After Shock - Other - Liab. w/o Mgmt Action - Total",null,null,null,null,null,null,null,null,{"$f":"'Schedule XXIII'!I28","v":0}]
["Sch XXIII","Interest Rates",null,"Int. Down - After Shock - Other - Liab. with Mgmt Action - United States Dollars",null,null,null,null,null,null,null,null,{"$f":"'Schedule XXIII'!K10","v":0}]
["Sch XXIII","Interest Rates",null,"Int. Down - After Shock - Other - Liab. with Mgmt Action - Euro",null,null,null,null,null,null,null,null,{"$f":"'Schedule XXIII'!K11","v":0}]
["Sch XXIII","Interest Rates",null,"Int. Down - After Shock - Other - Liab. with Mgmt Action - United Kingdom Pounds",null,null,null,null,null,null,null,null,{"$f":"'Schedule XXIII'!K12","v":0}]
["Sch XXIII","Interest Rates",null,"Int. Down - After Shock - Other - Liab. with Mgmt Action - Japan Yen",null,null,null,null,null,null,null,null,{"$f":"'Schedule XXIII'!K13","v":0}]
["Sch XXIII","Interest Rates",null,"Int. Down - After Shock - Other - Liab. with Mgmt Action - Canada Dollars",null,null,null,null,null,null,null,null,{"$f":"'Schedule XXIII'!K14","v":0}]
["Sch XXIII","Interest Rates",null,"Int. Down - After Shock - Other - Liab. with Mgmt Action - Swiss Francs",null,null,null,null,null,null,null,null,{"$f":"'Schedule XXIII'!K15","v":0}]
["Sch XXIII","Interest Rates",null,"Int. Down - After Shock - Other - Liab. with Mgmt Action - Australia Dollar",null,null,null,null,null,null,null,null,{"$f":"'Schedule XXIII'!K16","v":0}]
["Sch XXIII","Interest Rates",null,"Int. Down - After Shock - Other - Liab. with Mgmt Action - New Zealand Dollar",null,null,null,null,null,null,null,null,{"$f":"'Schedule XXIII'!K17","v":0}]
["Sch XXIII","Interest Rates",null,{"$f":"\"Int. Down - After Shock - Other - Liab. with Mgmt Action - \"&'Schedule XXIII'!$C$18","v":"Int. Down - After Shock - Other - Liab. with Mgmt Action - Other currency 1"},null,null,null,null,null,null,null,null,{"$f":"'Schedule XXIII'!K18","v":0}]
["Sch XXIII","Interest Rates",null,{"$f":"\"Int. Down - After Shock - Other - Liab. with Mgmt Action - \"&'Schedule XXIII'!$C$19","v":"Int. Down - After Shock - Other - Liab. with Mgmt Action - Other currency 2"},null,null,null,null,null,null,null,null,{"$f":"'Schedule XXIII'!K19","v":0}]
["Sch XXIII","Interest Rates",null,{"$f":"\"Int. Down - After Shock - Other - Liab. with Mgmt Action - \"&'Schedule XXIII'!$C$20","v":"Int. Down - After Shock - Other - Liab. with Mgmt Action - Other currency 3"},null,null,null,null,null,null,null,null,{"$f":"'Schedule XXIII'!K20","v":0}]
["Sch XXIII","Interest Rates",null,{"$f":"\"Int. Down - After Shock - Other - Liab. with Mgmt Action - \"&'Schedule XXIII'!$C$21","v":"Int. Down - After Shock - Other - Liab. with Mgmt Action - Other currency 4"},null,null,null,null,null,null,null,null,{"$f":"'Schedule XXIII'!K21","v":0}]
["Sch XXIII","Interest Rates",null,{"$f":"\"Int. Down - After Shock - Other - Liab. with Mgmt Action - \"&'Schedule XXIII'!$C$22","v":"Int. Down - After Shock - Other - Liab. with Mgmt Action - Other currency 5"},null,null,null,null,null,null,null,null,{"$f":"'Schedule XXIII'!K22","v":0}]
["Sch XXIII","Interest Rates",null,{"$f":"\"Int. Down - After Shock - Other - Liab. with Mgmt Action - \"&'Schedule XXIII'!$C$23","v":"Int. Down - After Shock - Other - Liab. with Mgmt Action - Other currency 6"},null,null,null,null,null,null,null,null,{"$f":"'Schedule XXIII'!K23","v":0}]
["Sch XXIII","Interest Rates",null,{"$f":"\"Int. Down - After Shock - Other - Liab. with Mgmt Action - \"&'Schedule XXIII'!$C$24","v":"Int. Down - After Shock - Other - Liab. with Mgmt Action - Other currency 7"},null,null,null,null,null,null,null,null,{"$f":"'Schedule XXIII'!K24","v":0}]
["Sch XXIII","Interest Rates",null,{"$f":"\"Int. Down - After Shock - Other - Liab. with Mgmt Action - \"&'Schedule XXIII'!$C$25","v":"Int. Down - After Shock - Other - Liab. with Mgmt Action - Other currency 8"},null,null,null,null,null,null,null,null,{"$f":"'Schedule XXIII'!K25","v":0}]
["Sch XXIII","Interest Rates",null,{"$f":"\"Int. Down - After Shock - Other - Liab. with Mgmt Action - \"&'Schedule XXIII'!$C$26","v":"Int. Down - After Shock - Other - Liab. with Mgmt Action - Other currency 9"},null,null,null,null,null,null,null,null,{"$f":"'Schedule XXIII'!K26","v":0}]
["Sch XXIII","Interest Rates",null,{"$f":"\"Int. Down - After Shock - Other - Liab. with Mgmt Action - \"&'Schedule XXIII'!$C$27","v":"Int. Down - After Shock - Other - Liab. with Mgmt Action - Other currency 10"},null,null,null,null,null,null,null,null,{"$f":"'Schedule XXIII'!K27","v":0}]
["Sch XXIII","Interest Rates",null,"Int. Down - After Shock - Other - Liab. with Mgmt Action - Total",null,null,null,null,null,null,null,null,{"$f":"'Schedule XXIII'!K28","v":0}]
["Sch XXIII","Interest Rates",null,"Int. Down - Before Shock - Derivatives - Qualifying Assets - United States Dollars",null,null,null,null,null,null,null,null,{"$f":"'Schedule XXIII'!M10","v":0}]
["Sch XXIII","Interest Rates",null,"Int. Down - Before Shock - Derivatives - Qualifying Assets - Euro",null,null,null,null,null,null,null,null,{"$f":"'Schedule XXIII'!M11","v":0}]
["Sch XXIII","Interest Rates",null,"Int. Down - Before Shock - Derivatives - Qualifying Assets - United Kingdom Pounds",null,null,null,null,null,null,null,null,{"$f":"'Schedule XXIII'!M12","v":0}]
["Sch XXIII","Interest Rates",null,"Int. Down - Before Shock - Derivatives - Qualifying Assets - Japan Yen",null,null,null,null,null,null,null,null,{"$f":"'Schedule XXIII'!M13","v":0}]
["Sch XXIII","Interest Rates",null,"Int. Down - Before Shock - Derivatives - Qualifying Assets - Canada Dollars",null,null,null,null,null,null,null,null,{"$f":"'Schedule XXIII'!M14","v":0}]
["Sch XXIII","Interest Rates",null,"Int. Down - Before Shock - Derivatives - Qualifying Assets - Swiss Francs",null,null,null,null,null,null,null,null,{"$f":"'Schedule XXIII'!M15","v":0}]
["Sch XXIII","Interest Rates",null,"Int. Down - Before Shock - Derivatives - Qualifying Assets - Australia Dollar",null,null,null,null,null,null,null,null,{"$f":"'Schedule XXIII'!M16","v":0}]
["Sch XXIII","Interest Rates",null,"Int. Down - Before Shock - Derivatives - Qualifying Assets - New Zealand Dollar",null,null,null,null,null,null,null,null,{"$f":"'Schedule XXIII'!M17","v":0}]
["Sch XXIII","Interest Rates",null,{"$f":"\"Int. Down - Before Shock - Derivatives - Qualifying Assets - \"&'Schedule XXIII'!$C$18","v":"Int. Down - Before Shock - Derivatives - Qualifying Assets - Other currency 1"},null,null,null,null,null,null,null,null,{"$f":"'Schedule XXIII'!M18","v":0}]
["Sch XXIII","Interest Rates",null,{"$f":"\"Int. Down - Before Shock - Derivatives - Qualifying Assets - \"&'Schedule XXIII'!$C$19","v":"Int. Down - Before Shock - Derivatives - Qualifying Assets - Other currency 2"},null,null,null,null,null,null,null,null,{"$f":"'Schedule XXIII'!M19","v":0}]
["Sch XXIII","Interest Rates",null,{"$f":"\"Int. Down - Before Shock - Derivatives - Qualifying Assets - \"&'Schedule XXIII'!$C$20","v":"Int. Down - Before Shock - Derivatives - Qualifying Assets - Other currency 3"},null,null,null,null,null,null,null,null,{"$f":"'Schedule XXIII'!M20","v":0}]
["Sch XXIII","Interest Rates",null,{"$f":"\"Int. Down - Before Shock - Derivatives - Qualifying Assets - \"&'Schedule XXIII'!$C$21","v":"Int. Down - Before Shock - Derivatives - Qualifying Assets - Other currency 4"},null,null,null,null,null,null,null,null,{"$f":"'Schedule XXIII'!M21","v":0}]
["Sch XXIII","Interest Rates",null,{"$f":"\"Int. Down - Before Shock - Derivatives - Qualifying Assets - \"&'Schedule XXIII'!$C$22","v":"Int. Down - Before Shock - Derivatives - Qualifying Assets - Other currency 5"},null,null,null,null,null,null,null,null,{"$f":"'Schedule XXIII'!M22","v":0}]
["Sch XXIII","Interest Rates",null,{"$f":"\"Int. Down - Before Shock - Derivatives - Qualifying Assets - \"&'Schedule XXIII'!$C$23","v":"Int. Down - Before Shock - Derivatives - Qualifying Assets - Other currency 6"},null,null,null,null,null,null,null,null,{"$f":"'Schedule XXIII'!M23","v":0}]
["Sch XXIII","Interest Rates",null,{"$f":"\"Int. Down - Before Shock - Derivatives - Qualifying Assets - \"&'Schedule XXIII'!$C$24","v":"Int. Down - Before Shock - Derivatives - Qualifying Assets - Other currency 7"},null,null,null,null,null,null,null,null,{"$f":"'Schedule XXIII'!M24","v":0}]
["Sch XXIII","Interest Rates",null,{"$f":"\"Int. Down - Before Shock - Derivatives - Qualifying Assets - \"&'Schedule XXIII'!$C$25","v":"Int. Down - Before Shock - Derivatives - Qualifying Assets - Other currency 8"},null,null,null,null,null,null,null,null,{"$f":"'Schedule XXIII'!M25","v":0}]
["Sch XXIII","Interest Rates",null,{"$f":"\"Int. Down - Before Shock - Derivatives - Qualifying Assets - \"&'Schedule XXIII'!$C$26","v":"Int. Down - Before Shock - Derivatives - Qualifying Assets - Other currency 9"},null,null,null,null,null,null,null,null,{"$f":"'Schedule XXIII'!M26","v":0}]
["Sch XXIII","Interest Rates",null,{"$f":"\"Int. Down - Before Shock - Derivatives - Qualifying Assets - \"&'Schedule XXIII'!$C$27","v":"Int. Down - Before Shock - Derivatives - Qualifying Assets - Other currency 10"},null,null,null,null,null,null,null,null,{"$f":"'Schedule XXIII'!M27","v":0}]
["Sch XXIII","Interest Rates",null,"Int. Down - Before Shock - Derivatives - Qualifying Assets - Total",null,null,null,null,null,null,null,null,{"$f":"'Schedule XXIII'!M28","v":0}]
["Sch XXIII","Interest Rates",null,"Int. Down - After Shock - Derivatives - Qualifying Assets - United States Dollars",null,null,null,null,null,null,null,null,{"$f":"'Schedule XXIII'!N10","v":0}]
["Sch XXIII","Interest Rates",null,"Int. Down - After Shock - Derivatives - Qualifying Assets - Euro",null,null,null,null,null,null,null,null,{"$f":"'Schedule XXIII'!N11","v":0}]
["Sch XXIII","Interest Rates",null,"Int. Down - After Shock - Derivatives - Qualifying Assets - United Kingdom Pounds",null,null,null,null,null,null,null,null,{"$f":"'Schedule XXIII'!N12","v":0}]
["Sch XXIII","Interest Rates",null,"Int. Down - After Shock - Derivatives - Qualifying Assets - Japan Yen",null,null,null,null,null,null,null,null,{"$f":"'Schedule XXIII'!N13","v":0}]
["Sch XXIII","Interest Rates",null,"Int. Down - After Shock - Derivatives - Qualifying Assets - Canada Dollars",null,null,null,null,null,null,null,null,{"$f":"'Schedule XXIII'!N14","v":0}]
["Sch XXIII","Interest Rates",null,"Int. Down - After Shock - Derivatives - Qualifying Assets - Swiss Francs",null,null,null,null,null,null,null,null,{"$f":"'Schedule XXIII'!N15","v":0}]
["Sch XXIII","Interest Rates",null,"Int. Down - After Shock - Derivatives - Qualifying Assets - Australia Dollar",null,null,null,null,null,null,null,null,{"$f":"'Schedule XXIII'!N16","v":0}]
["Sch XXIII","Interest Rates",null,"Int. Down - After Shock - Derivatives - Qualifying Assets - New Zealand Dollar",null,null,null,null,null,null,null,null,{"$f":"'Schedule XXIII'!N17","v":0}]
["Sch XXIII","Interest Rates",null,{"$f":"\"Int. Down - After Shock - Derivatives - Qualifying Assets - \"&'Schedule XXIII'!$C$18","v":"Int. Down - After Shock - Derivatives - Qualifying Assets - Other currency 1"},null,null,null,null,null,null,null,null,{"$f":"'Schedule XXIII'!N18","v":0}]
["Sch XXIII","Interest Rates",null,{"$f":"\"Int. Down - After Shock - Derivatives - Qualifying Assets - \"&'Schedule XXIII'!$C$19","v":"Int. Down - After Shock - Derivatives - Qualifying Assets - Other currency 2"},null,null,null,null,null,null,null,null,{"$f":"'Schedule XXIII'!N19","v":0}]
["Sch XXIII","Interest Rates",null,{"$f":"\"Int. Down - After Shock - Derivatives - Qualifying Assets - \"&'Schedule XXIII'!$C$20","v":"Int. Down - After Shock - Derivatives - Qualifying Assets - Other currency 3"},null,null,null,null,null,null,null,null,{"$f":"'Schedule XXIII'!N20","v":0}]
["Sch XXIII","Interest Rates",null,{"$f":"\"Int. Down - After Shock - Derivatives - Qualifying Assets - \"&'Schedule XXIII'!$C$21","v":"Int. Down - After Shock - Derivatives - Qualifying Assets - Other currency 4"},null,null,null,null,null,null,null,null,{"$f":"'Schedule XXIII'!N21","v":0}]
["Sch XXIII","Interest Rates",null,{"$f":"\"Int. Down - After Shock - Derivatives - Qualifying Assets - \"&'Schedule XXIII'!$C$22","v":"Int. Down - After Shock - Derivatives - Qualifying Assets - Other currency 5"},null,null,null,null,null,null,null,null,{"$f":"'Schedule XXIII'!N22","v":0}]
["Sch XXIII","Interest Rates",null,{"$f":"\"Int. Down - After Shock - Derivatives - Qualifying Assets - \"&'Schedule XXIII'!$C$23","v":"Int. Down - After Shock - Derivatives - Qualifying Assets - Other currency 6"},null,null,null,null,null,null,null,null,{"$f":"'Schedule XXIII'!N23","v":0}]
["Sch XXIII","Interest Rates",null,{"$f":"\"Int. Down - After Shock - Derivatives - Qualifying Assets - \"&'Schedule XXIII'!$C$24","v":"Int. Down - After Shock - Derivatives - Qualifying Assets - Other currency 7"},null,null,null,null,null,null,null,null,{"$f":"'Schedule XXIII'!N24","v":0}]
["Sch XXIII","Interest Rates",null,{"$f":"\"Int. Down - After Shock - Derivatives - Qualifying Assets - \"&'Schedule XXIII'!$C$25","v":"Int. Down - After Shock - Derivatives - Qualifying Assets - Other currency 8"},null,null,null,null,null,null,null,null,{"$f":"'Schedule XXIII'!N25","v":0}]
["Sch XXIII","Interest Rates",null,{"$f":"\"Int. Down - After Shock - Derivatives - Qualifying Assets - \"&'Schedule XXIII'!$C$26","v":"Int. Down - After Shock - Derivatives - Qualifying Assets - Other currency 9"},null,null,null,null,null,null,null,null,{"$f":"'Schedule XXIII'!N26","v":0}]
["Sch XXIII","Interest Rates",null,{"$f":"\"Int. Down - After Shock - Derivatives - Qualifying Assets - \"&'Schedule XXIII'!$C$27","v":"Int. Down - After Shock - Derivatives - Qualifying Assets - Other currency 10"},null,null,null,null,null,null,null,null,{"$f":"'Schedule XXIII'!N27","v":0}]
["Sch XXIII","Interest Rates",null,"Int. Down - After Shock - Derivatives - Qualifying Assets - Total",null,null,null,null,null,null,null,null,{"$f":"'Schedule XXIII'!N28","v":0}]
["Sch XXIII","Interest Rates",null,"Int. Down - Before Shock - Derivatives - Not Qualifying Assets - United States Dollars",null,null,null,null,null,null,null,null,{"$f":"'Schedule XXIII'!P10","v":0}]
["Sch XXIII","Interest Rates",null,"Int. Down - Before Shock - Derivatives - Not Qualifying Assets - Euro",null,null,null,null,null,null,null,null,{"$f":"'Schedule XXIII'!P11","v":0}]
["Sch XXIII","Interest Rates",null,"Int. Down - Before Shock - Derivatives - Not Qualifying Assets - United Kingdom Pounds",null,null,null,null,null,null,null,null,{"$f":"'Schedule XXIII'!P12","v":0}]
["Sch XXIII","Interest Rates",null,"Int. Down - Before Shock - Derivatives - Not Qualifying Assets - Japan Yen",null,null,null,null,null,null,null,null,{"$f":"'Schedule XXIII'!P13","v":0}]
["Sch XXIII","Interest Rates",null,"Int. Down - Before Shock - Derivatives - Not Qualifying Assets - Canada Dollars",null,null,null,null,null,null,null,null,{"$f":"'Schedule XXIII'!P14","v":0}]
["Sch XXIII","Interest Rates",null,"Int. Down - Before Shock - Derivatives - Not Qualifying Assets - Swiss Francs",null,null,null,null,null,null,null,null,{"$f":"'Schedule XXIII'!P15","v":0}]
["Sch XXIII","Interest Rates",null,"Int. Down - Before Shock - Derivatives - Not Qualifying Assets - Australia Dollar",null,null,null,null,null,null,null,null,{"$f":"'Schedule XXIII'!P16","v":0}]
["Sch XXIII","Interest Rates",null,"Int. Down - Before Shock - Derivatives - Not Qualifying Assets - New Zealand Dollar",null,null,null,null,null,null,null,null,{"$f":"'Schedule XXIII'!P17","v":0}]
["Sch XXIII","Interest Rates",null,{"$f":"\"Int. Down - Before Shock - Derivatives - Not Qualifying Assets - \"&'Schedule XXIII'!$C$18","v":"Int. Down - Before Shock - Derivatives - Not Qualifying Assets - Other currency 1"},null,null,null,null,null,null,null,null,{"$f":"'Schedule XXIII'!P18","v":0}]
["Sch XXIII","Interest Rates",null,{"$f":"\"Int. Down - Before Shock - Derivatives - Not Qualifying Assets - \"&'Schedule XXIII'!$C$19","v":"Int. Down - Before Shock - Derivatives - Not Qualifying Assets - Other currency 2"},null,null,null,null,null,null,null,null,{"$f":"'Schedule XXIII'!P19","v":0}]
["Sch XXIII","Interest Rates",null,{"$f":"\"Int. Down - Before Shock - Derivatives - Not Qualifying Assets - \"&'Schedule XXIII'!$C$20","v":"Int. Down - Before Shock - Derivatives - Not Qualifying Assets - Other currency 3"},null,null,null,null,null,null,null,null,{"$f":"'Schedule XXIII'!P20","v":0}]
["Sch XXIII","Interest Rates",null,{"$f":"\"Int. Down - Before Shock - Derivatives - Not Qualifying Assets - \"&'Schedule XXIII'!$C$21","v":"Int. Down - Before Shock - Derivatives - Not Qualifying Assets - Other currency 4"},null,null,null,null,null,null,null,null,{"$f":"'Schedule XXIII'!P21","v":0}]
["Sch XXIII","Interest Rates",null,{"$f":"\"Int. Down - Before Shock - Derivatives - Not Qualifying Assets - \"&'Schedule XXIII'!$C$22","v":"Int. Down - Before Shock - Derivatives - Not Qualifying Assets - Other currency 5"},null,null,null,null,null,null,null,null,{"$f":"'Schedule XXIII'!P22","v":0}]
["Sch XXIII","Interest Rates",null,{"$f":"\"Int. Down - Before Shock - Derivatives - Not Qualifying Assets - \"&'Schedule XXIII'!$C$23","v":"Int. Down - Before Shock - Derivatives - Not Qualifying Assets - Other currency 6"},null,null,null,null,null,null,null,null,{"$f":"'Schedule XXIII'!P23","v":0}]
["Sch XXIII","Interest Rates",null,{"$f":"\"Int. Down - Before Shock - Derivatives - Not Qualifying Assets - \"&'Schedule XXIII'!$C$24","v":"Int. Down - Before Shock - Derivatives - Not Qualifying Assets - Other currency 7"},null,null,null,null,null,null,null,null,{"$f":"'Schedule XXIII'!P24","v":0}]
["Sch XXIII","Interest Rates",null,{"$f":"\"Int. Down - Before Shock - Derivatives - Not Qualifying Assets - \"&'Schedule XXIII'!$C$25","v":"Int. Down - Before Shock - Derivatives - Not Qualifying Assets - Other currency 8"},null,null,null,null,null,null,null,null,{"$f":"'Schedule XXIII'!P25","v":0}]
["Sch XXIII","Interest Rates",null,{"$f":"\"Int. Down - Before Shock - Derivatives - Not Qualifying Assets - \"&'Schedule XXIII'!$C$26","v":"Int. Down - Before Shock - Derivatives - Not Qualifying Assets - Other currency 9"},null,null,null,null,null,null,null,null,{"$f":"'Schedule XXIII'!P26","v":0}]
["Sch XXIII","Interest Rates",null,{"$f":"\"Int. Down - Before Shock - Derivatives - Not Qualifying Assets - \"&'Schedule XXIII'!$C$27","v":"Int. Down - Before Shock - Derivatives - Not Qualifying Assets - Other currency 10"},null,null,null,null,null,null,null,null,{"$f":"'Schedule XXIII'!P27","v":0}]
["Sch XXIII","Interest Rates",null,"Int. Down - Before Shock - Derivatives - Not Qualifying Assets - Total",null,null,null,null,null,null,null,null,{"$f":"'Schedule XXIII'!P28","v":0}]
["Sch XXIII","Interest Rates",null,"Int. Down - After Shock - Derivatives - Not Qualifying Assets - United States Dollars",null,null,null,null,null,null,null,null,{"$f":"'Schedule XXIII'!Q10","v":0}]
["Sch XXIII","Interest Rates",null,"Int. Down - After Shock - Derivatives - Not Qualifying Assets - Euro",null,null,null,null,null,null,null,null,{"$f":"'Schedule XXIII'!Q11","v":0}]
["Sch XXIII","Interest Rates",null,"Int. Down - After Shock - Derivatives - Not Qualifying Assets - United Kingdom Pounds",null,null,null,null,null,null,null,null,{"$f":"'Schedule XXIII'!Q12","v":0}]
["Sch XXIII","Interest Rates",null,"Int. Down - After Shock - Derivatives - Not Qualifying Assets - Japan Yen",null,null,null,null,null,null,null,null,{"$f":"'Schedule XXIII'!Q13","v":0}]
["Sch XXIII","Interest Rates",null,"Int. Down - After Shock - Derivatives - Not Qualifying Assets - Canada Dollars",null,null,null,null,null,null,null,null,{"$f":"'Schedule XXIII'!Q14","v":0}]
["Sch XXIII","Interest Rates",null,"Int. Down - After Shock - Derivatives - Not Qualifying Assets - Swiss Francs",null,null,null,null,null,null,null,null,{"$f":"'Schedule XXIII'!Q15","v":0}]
["Sch XXIII","Interest Rates",null,"Int. Down - After Shock - Derivatives - Not Qualifying Assets - Australia Dollar",null,null,null,null,null,null,null,null,{"$f":"'Schedule XXIII'!Q16","v":0}]
["Sch XXIII","Interest Rates",null,"Int. Down - After Shock - Derivatives - Not Qualifying Assets - New Zealand Dollar",null,null,null,null,null,null,null,null,{"$f":"'Schedule XXIII'!Q17","v":0}]
["Sch XXIII","Interest Rates",null,{"$f":"\"Int. Down - After Shock - Derivatives - Not Qualifying Assets - \"&'Schedule XXIII'!$C$18","v":"Int. Down - After Shock - Derivatives - Not Qualifying Assets - Other currency 1"},null,null,null,null,null,null,null,null,{"$f":"'Schedule XXIII'!Q18","v":0}]
["Sch XXIII","Interest Rates",null,{"$f":"\"Int. Down - After Shock - Derivatives - Not Qualifying Assets - \"&'Schedule XXIII'!$C$19","v":"Int. Down - After Shock - Derivatives - Not Qualifying Assets - Other currency 2"},null,null,null,null,null,null,null,null,{"$f":"'Schedule XXIII'!Q19","v":0}]
["Sch XXIII","Interest Rates",null,{"$f":"\"Int. Down - After Shock - Derivatives - Not Qualifying Assets - \"&'Schedule XXIII'!$C$20","v":"Int. Down - After Shock - Derivatives - Not Qualifying Assets - Other currency 3"},null,null,null,null,null,null,null,null,{"$f":"'Schedule XXIII'!Q20","v":0}]
["Sch XXIII","Interest Rates",null,{"$f":"\"Int. Down - After Shock - Derivatives - Not Qualifying Assets - \"&'Schedule XXIII'!$C$21","v":"Int. Down - After Shock - Derivatives - Not Qualifying Assets - Other currency 4"},null,null,null,null,null,null,null,null,{"$f":"'Schedule XXIII'!Q21","v":0}]
["Sch XXIII","Interest Rates",null,{"$f":"\"Int. Down - After Shock - Derivatives - Not Qualifying Assets - \"&'Schedule XXIII'!$C$22","v":"Int. Down - After Shock - Derivatives - Not Qualifying Assets - Other currency 5"},null,null,null,null,null,null,null,null,{"$f":"'Schedule XXIII'!Q22","v":0}]
["Sch XXIII","Interest Rates",null,{"$f":"\"Int. Down - After Shock - Derivatives - Not Qualifying Assets - \"&'Schedule XXIII'!$C$23","v":"Int. Down - After Shock - Derivatives - Not Qualifying Assets - Other currency 6"},null,null,null,null,null,null,null,null,{"$f":"'Schedule XXIII'!Q23","v":0}]
["Sch XXIII","Interest Rates",null,{"$f":"\"Int. Down - After Shock - Derivatives - Not Qualifying Assets - \"&'Schedule XXIII'!$C$24","v":"Int. Down - After Shock - Derivatives - Not Qualifying Assets - Other currency 7"},null,null,null,null,null,null,null,null,{"$f":"'Schedule XXIII'!Q24","v":0}]
["Sch XXIII","Interest Rates",null,{"$f":"\"Int. Down - After Shock - Derivatives - Not Qualifying Assets - \"&'Schedule XXIII'!$C$25","v":"Int. Down - After Shock - Derivatives - Not Qualifying Assets - Other currency 8"},null,null,null,null,null,null,null,null,{"$f":"'Schedule XXIII'!Q25","v":0}]
["Sch XXIII","Interest Rates",null,{"$f":"\"Int. Down - After Shock - Derivatives - Not Qualifying Assets - \"&'Schedule XXIII'!$C$26","v":"Int. Down - After Shock - Derivatives - Not Qualifying Assets - Other currency 9"},null,null,null,null,null,null,null,null,{"$f":"'Schedule XXIII'!Q26","v":0}]
["Sch XXIII","Interest Rates",null,{"$f":"\"Int. Down - After Shock - Derivatives - Not Qualifying Assets - \"&'Schedule XXIII'!$C$27","v":"Int. Down - After Shock - Derivatives - Not Qualifying Assets - Other currency 10"},null,null,null,null,null,null,null,null,{"$f":"'Schedule XXIII'!Q27","v":0}]
["Sch XXIII","Interest Rates",null,"Int. Down - After Shock - Derivatives - Not Qualifying Assets - Total",null,null,null,null,null,null,null,null,{"$f":"'Schedule XXIII'!Q28","v":0}]
["Sch XXIII","Interest Rates",null,"Int. Down - Before Shock - Derivatives - Liab. w/o Mgmt Action - United States Dollars",null,null,null,null,null,null,null,null,{"$f":"'Schedule XXIII'!S10","v":0}]
["Sch XXIII","Interest Rates",null,"Int. Down - Before Shock - Derivatives - Liab. w/o Mgmt Action - Euro",null,null,null,null,null,null,null,null,{"$f":"'Schedule XXIII'!S11","v":0}]
["Sch XXIII","Interest Rates",null,"Int. Down - Before Shock - Derivatives - Liab. w/o Mgmt Action - United Kingdom Pounds",null,null,null,null,null,null,null,null,{"$f":"'Schedule XXIII'!S12","v":0}]
["Sch XXIII","Interest Rates",null,"Int. Down - Before Shock - Derivatives - Liab. w/o Mgmt Action - Japan Yen",null,null,null,null,null,null,null,null,{"$f":"'Schedule XXIII'!S13","v":0}]
["Sch XXIII","Interest Rates",null,"Int. Down - Before Shock - Derivatives - Liab. w/o Mgmt Action - Canada Dollars",null,null,null,null,null,null,null,null,{"$f":"'Schedule XXIII'!S14","v":0}]
["Sch XXIII","Interest Rates",null,"Int. Down - Before Shock - Derivatives - Liab. w/o Mgmt Action - Swiss Francs",null,null,null,null,null,null,null,null,{"$f":"'Schedule XXIII'!S15","v":0}]
["Sch XXIII","Interest Rates",null,"Int. Down - Before Shock - Derivatives - Liab. w/o Mgmt Action - Australia Dollar",null,null,null,null,null,null,null,null,{"$f":"'Schedule XXIII'!S16","v":0}]
["Sch XXIII","Interest Rates",null,"Int. Down - Before Shock - Derivatives - Liab. w/o Mgmt Action - New Zealand Dollar",null,null,null,null,null,null,null,null,{"$f":"'Schedule XXIII'!S17","v":0}]
["Sch XXIII","Interest Rates",null,{"$f":"\"Int. Down - Before Shock - Derivatives - Liab. w/o Mgmt Action - \"&'Schedule XXIII'!$C$18","v":"Int. Down - Before Shock - Derivatives - Liab. w/o Mgmt Action - Other currency 1"},null,null,null,null,null,null,null,null,{"$f":"'Schedule XXIII'!S18","v":0}]
["Sch XXIII","Interest Rates",null,{"$f":"\"Int. Down - Before Shock - Derivatives - Liab. w/o Mgmt Action - \"&'Schedule XXIII'!$C$19","v":"Int. Down - Before Shock - Derivatives - Liab. w/o Mgmt Action - Other currency 2"},null,null,null,null,null,null,null,null,{"$f":"'Schedule XXIII'!S19","v":0}]
["Sch XXIII","Interest Rates",null,{"$f":"\"Int. Down - Before Shock - Derivatives - Liab. w/o Mgmt Action - \"&'Schedule XXIII'!$C$20","v":"Int. Down - Before Shock - Derivatives - Liab. w/o Mgmt Action - Other currency 3"},null,null,null,null,null,null,null,null,{"$f":"'Schedule XXIII'!S20","v":0}]
["Sch XXIII","Interest Rates",null,{"$f":"\"Int. Down - Before Shock - Derivatives - Liab. w/o Mgmt Action - \"&'Schedule XXIII'!$C$21","v":"Int. Down - Before Shock - Derivatives - Liab. w/o Mgmt Action - Other currency 4"},null,null,null,null,null,null,null,null,{"$f":"'Schedule XXIII'!S21","v":0}]
["Sch XXIII","Interest Rates",null,{"$f":"\"Int. Down - Before Shock - Derivatives - Liab. w/o Mgmt Action - \"&'Schedule XXIII'!$C$22","v":"Int. Down - Before Shock - Derivatives - Liab. w/o Mgmt Action - Other currency 5"},null,null,null,null,null,null,null,null,{"$f":"'Schedule XXIII'!S22","v":0}]
["Sch XXIII","Interest Rates",null,{"$f":"\"Int. Down - Before Shock - Derivatives - Liab. w/o Mgmt Action - \"&'Schedule XXIII'!$C$23","v":"Int. Down - Before Shock - Derivatives - Liab. w/o Mgmt Action - Other currency 6"},null,null,null,null,null,null,null,null,{"$f":"'Schedule XXIII'!S23","v":0}]
["Sch XXIII","Interest Rates",null,{"$f":"\"Int. Down - Before Shock - Derivatives - Liab. w/o Mgmt Action - \"&'Schedule XXIII'!$C$24","v":"Int. Down - Before Shock - Derivatives - Liab. w/o Mgmt Action - Other currency 7"},null,null,null,null,null,null,null,null,{"$f":"'Schedule XXIII'!S24","v":0}]
["Sch XXIII","Interest Rates",null,{"$f":"\"Int. Down - Before Shock - Derivatives - Liab. w/o Mgmt Action - \"&'Schedule XXIII'!$C$25","v":"Int. Down - Before Shock - Derivatives - Liab. w/o Mgmt Action - Other currency 8"},null,null,null,null,null,null,null,null,{"$f":"'Schedule XXIII'!S25","v":0}]
["Sch XXIII","Interest Rates",null,{"$f":"\"Int. Down - Before Shock - Derivatives - Liab. w/o Mgmt Action - \"&'Schedule XXIII'!$C$26","v":"Int. Down - Before Shock - Derivatives - Liab. w/o Mgmt Action - Other currency 9"},null,null,null,null,null,null,null,null,{"$f":"'Schedule XXIII'!S26","v":0}]
["Sch XXIII","Interest Rates",null,{"$f":"\"Int. Down - Before Shock - Derivatives - Liab. w/o Mgmt Action - \"&'Schedule XXIII'!$C$27","v":"Int. Down - Before Shock - Derivatives - Liab. w/o Mgmt Action - Other currency 10"},null,null,null,null,null,null,null,null,{"$f":"'Schedule XXIII'!S27","v":0}]
["Sch XXIII","Interest Rates",null,"Int. Down - Before Shock - Derivatives - Liab. w/o Mgmt Action - Total",null,null,null,null,null,null,null,null,{"$f":"'Schedule XXIII'!S28","v":0}]
["Sch XXIII","Interest Rates",null,"Int. Down - After Shock - Derivatives - Liab. w/o Mgmt Action - United States Dollars",null,null,null,null,null,null,null,null,{"$f":"'Schedule XXIII'!T10","v":0}]
["Sch XXIII","Interest Rates",null,"Int. Down - After Shock - Derivatives - Liab. w/o Mgmt Action - Euro",null,null,null,null,null,null,null,null,{"$f":"'Schedule XXIII'!T11","v":0}]
["Sch XXIII","Interest Rates",null,"Int. Down - After Shock - Derivatives - Liab. w/o Mgmt Action - United Kingdom Pounds",null,null,null,null,null,null,null,null,{"$f":"'Schedule XXIII'!T12","v":0}]
["Sch XXIII","Interest Rates",null,"Int. Down - After Shock - Derivatives - Liab. w/o Mgmt Action - Japan Yen",null,null,null,null,null,null,null,null,{"$f":"'Schedule XXIII'!T13","v":0}]
["Sch XXIII","Interest Rates",null,"Int. Down - After Shock - Derivatives - Liab. w/o Mgmt Action - Canada Dollars",null,null,null,null,null,null,null,null,{"$f":"'Schedule XXIII'!T14","v":0}]
["Sch XXIII","Interest Rates",null,"Int. Down - After Shock - Derivatives - Liab. w/o Mgmt Action - Swiss Francs",null,null,null,null,null,null,null,null,{"$f":"'Schedule XXIII'!T15","v":0}]
["Sch XXIII","Interest Rates",null,"Int. Down - After Shock - Derivatives - Liab. w/o Mgmt Action - Australia Dollar",null,null,null,null,null,null,null,null,{"$f":"'Schedule XXIII'!T16","v":0}]
["Sch XXIII","Interest Rates",null,"Int. Down - After Shock - Derivatives - Liab. w/o Mgmt Action - New Zealand Dollar",null,null,null,null,null,null,null,null,{"$f":"'Schedule XXIII'!T17","v":0}]
["Sch XXIII","Interest Rates",null,{"$f":"\"Int. Down - After Shock - Derivatives - Liab. w/o Mgmt Action - \"&'Schedule XXIII'!$C$18","v":"Int. Down - After Shock - Derivatives - Liab. w/o Mgmt Action - Other currency 1"},null,null,null,null,null,null,null,null,{"$f":"'Schedule XXIII'!T18","v":0}]
["Sch XXIII","Interest Rates",null,{"$f":"\"Int. Down - After Shock - Derivatives - Liab. w/o Mgmt Action - \"&'Schedule XXIII'!$C$19","v":"Int. Down - After Shock - Derivatives - Liab. w/o Mgmt Action - Other currency 2"},null,null,null,null,null,null,null,null,{"$f":"'Schedule XXIII'!T19","v":0}]
["Sch XXIII","Interest Rates",null,{"$f":"\"Int. Down - After Shock - Derivatives - Liab. w/o Mgmt Action - \"&'Schedule XXIII'!$C$20","v":"Int. Down - After Shock - Derivatives - Liab. w/o Mgmt Action - Other currency 3"},null,null,null,null,null,null,null,null,{"$f":"'Schedule XXIII'!T20","v":0}]
["Sch XXIII","Interest Rates",null,{"$f":"\"Int. Down - After Shock - Derivatives - Liab. w/o Mgmt Action - \"&'Schedule XXIII'!$C$21","v":"Int. Down - After Shock - Derivatives - Liab. w/o Mgmt Action - Other currency 4"},null,null,null,null,null,null,null,null,{"$f":"'Schedule XXIII'!T21","v":0}]
["Sch XXIII","Interest Rates",null,{"$f":"\"Int. Down - After Shock - Derivatives - Liab. w/o Mgmt Action - \"&'Schedule XXIII'!$C$22","v":"Int. Down - After Shock - Derivatives - Liab. w/o Mgmt Action - Other currency 5"},null,null,null,null,null,null,null,null,{"$f":"'Schedule XXIII'!T22","v":0}]
["Sch XXIII","Interest Rates",null,{"$f":"\"Int. Down - After Shock - Derivatives - Liab. w/o Mgmt Action - \"&'Schedule XXIII'!$C$23","v":"Int. Down - After Shock - Derivatives - Liab. w/o Mgmt Action - Other currency 6"},null,null,null,null,null,null,null,null,{"$f":"'Schedule XXIII'!T23","v":0}]
["Sch XXIII","Interest Rates",null,{"$f":"\"Int. Down - After Shock - Derivatives - Liab. w/o Mgmt Action - \"&'Schedule XXIII'!$C$24","v":"Int. Down - After Shock - Derivatives - Liab. w/o Mgmt Action - Other currency 7"},null,null,null,null,null,null,null,null,{"$f":"'Schedule XXIII'!T24","v":0}]
["Sch XXIII","Interest Rates",null,{"$f":"\"Int. Down - After Shock - Derivatives - Liab. w/o Mgmt Action - \"&'Schedule XXIII'!$C$25","v":"Int. Down - After Shock - Derivatives - Liab. w/o Mgmt Action - Other currency 8"},null,null,null,null,null,null,null,null,{"$f":"'Schedule XXIII'!T25","v":0}]
["Sch XXIII","Interest Rates",null,{"$f":"\"Int. Down - After Shock - Derivatives - Liab. w/o Mgmt Action - \"&'Schedule XXIII'!$C$26","v":"Int. Down - After Shock - Derivatives - Liab. w/o Mgmt Action - Other currency 9"},null,null,null,null,null,null,null,null,{"$f":"'Schedule XXIII'!T26","v":0}]
["Sch XXIII","Interest Rates",null,{"$f":"\"Int. Down - After Shock - Derivatives - Liab. w/o Mgmt Action - \"&'Schedule XXIII'!$C$27","v":"Int. Down - After Shock - Derivatives - Liab. w/o Mgmt Action - Other currency 10"},null,null,null,null,null,null,null,null,{"$f":"'Schedule XXIII'!T27","v":0}]
["Sch XXIII","Interest Rates",null,"Int. Down - After Shock - Derivatives - Liab. w/o Mgmt Action - Total",null,null,null,null,null,null,null,null,{"$f":"'Schedule XXIII'!T28","v":0}]
["Sch XXIII","Interest Rates",null,"Int. Down - After Shock - Derivatives - Liab. with Mgmt Action - United States Dollars",null,null,null,null,null,null,null,null,{"$f":"'Schedule XXIII'!V10","v":0}]
["Sch XXIII","Interest Rates",null,"Int. Down - After Shock - Derivatives - Liab. with Mgmt Action - Euro",null,null,null,null,null,null,null,null,{"$f":"'Schedule XXIII'!V11","v":0}]
["Sch XXIII","Interest Rates",null,"Int. Down - After Shock - Derivatives - Liab. with Mgmt Action - United Kingdom Pounds",null,null,null,null,null,null,null,null,{"$f":"'Schedule XXIII'!V12","v":0}]
["Sch XXIII","Interest Rates",null,"Int. Down - After Shock - Derivatives - Liab. with Mgmt Action - Japan Yen",null,null,null,null,null,null,null,null,{"$f":"'Schedule XXIII'!V13","v":0}]
["Sch XXIII","Interest Rates",null,"Int. Down - After Shock - Derivatives - Liab. with Mgmt Action - Canada Dollars",null,null,null,null,null,null,null,null,{"$f":"'Schedule XXIII'!V14","v":0}]
["Sch XXIII","Interest Rates",null,"Int. Down - After Shock - Derivatives - Liab. with Mgmt Action - Swiss Francs",null,null,null,null,null,null,null,null,{"$f":"'Schedule XXIII'!V15","v":0}]
["Sch XXIII","Interest Rates",null,"Int. Down - After Shock - Derivatives - Liab. with Mgmt Action - Australia Dollar",null,null,null,null,null,null,null,null,{"$f":"'Schedule XXIII'!V16","v":0}]
["Sch XXIII","Interest Rates",null,"Int. Down - After Shock - Derivatives - Liab. with Mgmt Action - New Zealand Dollar",null,null,null,null,null,null,null,null,{"$f":"'Schedule XXIII'!V17","v":0}]
["Sch XXIII","Interest Rates",null,{"$f":"\"Int. Down - After Shock - Derivatives - Liab. with Mgmt Action - \"&'Schedule XXIII'!$C$18","v":"Int. Down - After Shock - Derivatives - Liab. with Mgmt Action - Other currency 1"},null,null,null,null,null,null,null,null,{"$f":"'Schedule XXIII'!V18","v":0}]
["Sch XXIII","Interest Rates",null,{"$f":"\"Int. Down - After Shock - Derivatives - Liab. with Mgmt Action - \"&'Schedule XXIII'!$C$19","v":"Int. Down - After Shock - Derivatives - Liab. with Mgmt Action - Other currency 2"},null,null,null,null,null,null,null,null,{"$f":"'Schedule XXIII'!V19","v":0}]
["Sch XXIII","Interest Rates",null,{"$f":"\"Int. Down - After Shock - Derivatives - Liab. with Mgmt Action - \"&'Schedule XXIII'!$C$20","v":"Int. Down - After Shock - Derivatives - Liab. with Mgmt Action - Other currency 3"},null,null,null,null,null,null,null,null,{"$f":"'Schedule XXIII'!V20","v":0}]
["Sch XXIII","Interest Rates",null,{"$f":"\"Int. Down - After Shock - Derivatives - Liab. with Mgmt Action - \"&'Schedule XXIII'!$C$21","v":"Int. Down - After Shock - Derivatives - Liab. with Mgmt Action - Other currency 4"},null,null,null,null,null,null,null,null,{"$f":"'Schedule XXIII'!V21","v":0}]
["Sch XXIII","Interest Rates",null,{"$f":"\"Int. Down - After Shock - Derivatives - Liab. with Mgmt Action - \"&'Schedule XXIII'!$C$22","v":"Int. Down - After Shock - Derivatives - Liab. with Mgmt Action - Other currency 5"},null,null,null,null,null,null,null,null,{"$f":"'Schedule XXIII'!V22","v":0}]
["Sch XXIII","Interest Rates",null,{"$f":"\"Int. Down - After Shock - Derivatives - Liab. with Mgmt Action - \"&'Schedule XXIII'!$C$23","v":"Int. Down - After Shock - Derivatives - Liab. with Mgmt Action - Other currency 6"},null,null,null,null,null,null,null,null,{"$f":"'Schedule XXIII'!V23","v":0}]
["Sch XXIII","Interest Rates",null,{"$f":"\"Int. Down - After Shock - Derivatives - Liab. with Mgmt Action - \"&'Schedule XXIII'!$C$24","v":"Int. Down - After Shock - Derivatives - Liab. with Mgmt Action - Other currency 7"},null,null,null,null,null,null,null,null,{"$f":"'Schedule XXIII'!V24","v":0}]
["Sch XXIII","Interest Rates",null,{"$f":"\"Int. Down - After Shock - Derivatives - Liab. with Mgmt Action - \"&'Schedule XXIII'!$C$25","v":"Int. Down - After Shock - Derivatives - Liab. with Mgmt Action - Other currency 8"},null,null,null,null,null,null,null,null,{"$f":"'Schedule XXIII'!V25","v":0}]
["Sch XXIII","Interest Rates",null,{"$f":"\"Int. Down - After Shock - Derivatives - Liab. with Mgmt Action - \"&'Schedule XXIII'!$C$26","v":"Int. Down - After Shock - Derivatives - Liab. with Mgmt Action - Other currency 9"},null,null,null,null,null,null,null,null,{"$f":"'Schedule XXIII'!V26","v":0}]
["Sch XXIII","Interest Rates",null,{"$f":"\"Int. Down - After Shock - Derivatives - Liab. with Mgmt Action - \"&'Schedule XXIII'!$C$27","v":"Int. Down - After Shock - Derivatives - Liab. with Mgmt Action - Other currency 10"},null,null,null,null,null,null,null,null,{"$f":"'Schedule XXIII'!V27","v":0}]
["Sch XXIII","Interest Rates",null,"Int. Down - After Shock - Derivatives - Liab. with Mgmt Action - Total",null,null,null,null,null,null,null,null,{"$f":"'Schedule XXIII'!V28","v":0}]
["Sch XXIII","Interest Rates",null,"Other currency 1",null,null,null,null,null,null,null,null,{"$f":"'Schedule XXIII'!C43","v":"Other currency 1"}]
["Sch XXIII","Interest Rates",null,"Other currency 2",null,null,null,null,null,null,null,null,{"$f":"'Schedule XXIII'!C44","v":"Other currency 2"}]
["Sch XXIII","Interest Rates",null,"Other currency 3",null,null,null,null,null,null,null,null,{"$f":"'Schedule XXIII'!C45","v":"Other currency 3"}]
["Sch XXIII","Interest Rates",null,"Other currency 4",null,null,null,null,null,null,null,null,{"$f":"'Schedule XXIII'!C46","v":"Other currency 4"}]
["Sch XXIII","Interest Rates",null,"Other currency 5",null,null,null,null,null,null,null,null,{"$f":"'Schedule XXIII'!C47","v":"Other currency 5"}]
["Sch XXIII","Interest Rates",null,"Other currency 6",null,null,null,null,null,null,null,null,{"$f":"'Schedule XXIII'!C48","v":"Other currency 6"}]
["Sch XXIII","Interest Rates",null,"Other currency 7",null,null,null,null,null,null,null,null,{"$f":"'Schedule XXIII'!C49","v":"Other currency 7"}]
["Sch XXIII","Interest Rates",null,"Other currency 8",null,null,null,null,null,null,null,null,{"$f":"'Schedule XXIII'!C50","v":"Other currency 8"}]
["Sch XXIII","Interest Rates",null,"Other currency 9",null,null,null,null,null,null,null,null,{"$f":"'Schedule XXIII'!C51","v":"Other currency 9"}]
["Sch XXIII","Interest Rates",null,"Other currency 10",null,null,null,null,null,null,null,null,{"$f":"'Schedule XXIII'!C52","v":"Other currency 10"}]
["Sch XXIII","Interest Rates",null,"Int. Up - Before Shock - Other - Qualifying Assets - United States Dollars",null,null,null,null,null,null,null,null,{"$f":"'Schedule XXIII'!E35","v":0}]
["Sch XXIII","Interest Rates",null,"Int. Up - Before Shock - Other - Qualifying Assets - Euro",null,null,null,null,null,null,null,null,{"$f":"'Schedule XXIII'!E36","v":0}]
["Sch XXIII","Interest Rates",null,"Int. Up - Before Shock - Other - Qualifying Assets - United Kingdom Pounds",null,null,null,null,null,null,null,null,{"$f":"'Schedule XXIII'!E37","v":0}]
["Sch XXIII","Interest Rates",null,"Int. Up - Before Shock - Other - Qualifying Assets - Japan Yen",null,null,null,null,null,null,null,null,{"$f":"'Schedule XXIII'!E38","v":0}]
["Sch XXIII","Interest Rates",null,"Int. Up - Before Shock - Other - Qualifying Assets - Canada Dollars",null,null,null,null,null,null,null,null,{"$f":"'Schedule XXIII'!E39","v":0}]
["Sch XXIII","Interest Rates",null,"Int. Up - Before Shock - Other - Qualifying Assets - Swiss Francs",null,null,null,null,null,null,null,null,{"$f":"'Schedule XXIII'!E40","v":0}]
["Sch XXIII","Interest Rates",null,"Int. Up - Before Shock - Other - Qualifying Assets - Australia Dollar",null,null,null,null,null,null,null,null,{"$f":"'Schedule XXIII'!E41","v":0}]
["Sch XXIII","Interest Rates",null,"Int. Up - Before Shock - Other - Qualifying Assets - New Zealand Dollar",null,null,null,null,null,null,null,null,{"$f":"'Schedule XXIII'!E42","v":0}]
["Sch XXIII","Interest Rates",null,{"$f":"\"Int. Up - Before Shock - Other - Qualifying Assets - \"&'Schedule XXIII'!$C$18","v":"Int. Up - Before Shock - Other - Qualifying Assets - Other currency 1"},null,null,null,null,null,null,null,null,{"$f":"'Schedule XXIII'!E43","v":0}]
["Sch XXIII","Interest Rates",null,{"$f":"\"Int. Up - Before Shock - Other - Qualifying Assets - \"&'Schedule XXIII'!$C$19","v":"Int. Up - Before Shock - Other - Qualifying Assets - Other currency 2"},null,null,null,null,null,null,null,null,{"$f":"'Schedule XXIII'!E44","v":0}]
["Sch XXIII","Interest Rates",null,{"$f":"\"Int. Up - Before Shock - Other - Qualifying Assets - \"&'Schedule XXIII'!$C$20","v":"Int. Up - Before Shock - Other - Qualifying Assets - Other currency 3"},null,null,null,null,null,null,null,null,{"$f":"'Schedule XXIII'!E45","v":0}]
["Sch XXIII","Interest Rates",null,{"$f":"\"Int. Up - Before Shock - Other - Qualifying Assets - \"&'Schedule XXIII'!$C$21","v":"Int. Up - Before Shock - Other - Qualifying Assets - Other currency 4"},null,null,null,null,null,null,null,null,{"$f":"'Schedule XXIII'!E46","v":0}]
["Sch XXIII","Interest Rates",null,{"$f":"\"Int. Up - Before Shock - Other - Qualifying Assets - \"&'Schedule XXIII'!$C$22","v":"Int. Up - Before Shock - Other - Qualifying Assets - Other currency 5"},null,null,null,null,null,null,null,null,{"$f":"'Schedule XXIII'!E47","v":0}]
["Sch XXIII","Interest Rates",null,{"$f":"\"Int. Up - Before Shock - Other - Qualifying Assets - \"&'Schedule XXIII'!$C$23","v":"Int. Up - Before Shock - Other - Qualifying Assets - Other currency 6"},null,null,null,null,null,null,null,null,{"$f":"'Schedule XXIII'!E48","v":0}]
["Sch XXIII","Interest Rates",null,{"$f":"\"Int. Up - Before Shock - Other - Qualifying Assets - \"&'Schedule XXIII'!$C$24","v":"Int. Up - Before Shock - Other - Qualifying Assets - Other currency 7"},null,null,null,null,null,null,null,null,{"$f":"'Schedule XXIII'!E49","v":0}]
["Sch XXIII","Interest Rates",null,{"$f":"\"Int. Up - Before Shock - Other - Qualifying Assets - \"&'Schedule XXIII'!$C$25","v":"Int. Up - Before Shock - Other - Qualifying Assets - Other currency 8"},null,null,null,null,null,null,null,null,{"$f":"'Schedule XXIII'!E50","v":0}]
["Sch XXIII","Interest Rates",null,{"$f":"\"Int. Up - Before Shock - Other - Qualifying Assets - \"&'Schedule XXIII'!$C$26","v":"Int. Up - Before Shock - Other - Qualifying Assets - Other currency 9"},null,null,null,null,null,null,null,null,{"$f":"'Schedule XXIII'!E51","v":0}]
["Sch XXIII","Interest Rates",null,{"$f":"\"Int. Up - Before Shock - Other - Qualifying Assets - \"&'Schedule XXIII'!$C$27","v":"Int. Up - Before Shock - Other - Qualifying Assets - Other currency 10"},null,null,null,null,null,null,null,null,{"$f":"'Schedule XXIII'!E52","v":0}]
["Sch XXIII","Interest Rates",null,"Int. Up - Before Shock - Other - Qualifying Assets - Total",null,null,null,null,null,null,null,null,{"$f":"'Schedule XXIII'!E53","v":0}]
["Sch XXIII","Interest Rates",null,"Int. Up - After Shock - Other - Qualifying Assets - United States Dollars",null,null,null,null,null,null,null,null,{"$f":"'Schedule XXIII'!F35","v":0}]
["Sch XXIII","Interest Rates",null,"Int. Up - After Shock - Other - Qualifying Assets - Euro",null,null,null,null,null,null,null,null,{"$f":"'Schedule XXIII'!F36","v":0}]
["Sch XXIII","Interest Rates",null,"Int. Up - After Shock - Other - Qualifying Assets - United Kingdom Pounds",null,null,null,null,null,null,null,null,{"$f":"'Schedule XXIII'!F37","v":0}]
["Sch XXIII","Interest Rates",null,"Int. Up - After Shock - Other - Qualifying Assets - Japan Yen",null,null,null,null,null,null,null,null,{"$f":"'Schedule XXIII'!F38","v":0}]
["Sch XXIII","Interest Rates",null,"Int. Up - After Shock - Other - Qualifying Assets - Canada Dollars",null,null,null,null,null,null,null,null,{"$f":"'Schedule XXIII'!F39","v":0}]
["Sch XXIII","Interest Rates",null,"Int. Up - After Shock - Other - Qualifying Assets - Swiss Francs",null,null,null,null,null,null,null,null,{"$f":"'Schedule XXIII'!F40","v":0}]
["Sch XXIII","Interest Rates",null,"Int. Up - After Shock - Other - Qualifying Assets - Australia Dollar",null,null,null,null,null,null,null,null,{"$f":"'Schedule XXIII'!F41","v":0}]
["Sch XXIII","Interest Rates",null,"Int. Up - After Shock - Other - Qualifying Assets - New Zealand Dollar",null,null,null,null,null,null,null,null,{"$f":"'Schedule XXIII'!F42","v":0}]
["Sch XXIII","Interest Rates",null,{"$f":"\"Int. Up - After Shock - Other - Qualifying Assets - \"&'Schedule XXIII'!$C$18","v":"Int. Up - After Shock - Other - Qualifying Assets - Other currency 1"},null,null,null,null,null,null,null,null,{"$f":"'Schedule XXIII'!F43","v":0}]
["Sch XXIII","Interest Rates",null,{"$f":"\"Int. Up - After Shock - Other - Qualifying Assets - \"&'Schedule XXIII'!$C$19","v":"Int. Up - After Shock - Other - Qualifying Assets - Other currency 2"},null,null,null,null,null,null,null,null,{"$f":"'Schedule XXIII'!F44","v":0}]
["Sch XXIII","Interest Rates",null,{"$f":"\"Int. Up - After Shock - Other - Qualifying Assets - \"&'Schedule XXIII'!$C$20","v":"Int. Up - After Shock - Other - Qualifying Assets - Other currency 3"},null,null,null,null,null,null,null,null,{"$f":"'Schedule XXIII'!F45","v":0}]
["Sch XXIII","Interest Rates",null,{"$f":"\"Int. Up - After Shock - Other - Qualifying Assets - \"&'Schedule XXIII'!$C$21","v":"Int. Up - After Shock - Other - Qualifying Assets - Other currency 4"},null,null,null,null,null,null,null,null,{"$f":"'Schedule XXIII'!F46","v":0}]
["Sch XXIII","Interest Rates",null,{"$f":"\"Int. Up - After Shock - Other - Qualifying Assets - \"&'Schedule XXIII'!$C$22","v":"Int. Up - After Shock - Other - Qualifying Assets - Other currency 5"},null,null,null,null,null,null,null,null,{"$f":"'Schedule XXIII'!F47","v":0}]
["Sch XXIII","Interest Rates",null,{"$f":"\"Int. Up - After Shock - Other - Qualifying Assets - \"&'Schedule XXIII'!$C$23","v":"Int. Up - After Shock - Other - Qualifying Assets - Other currency 6"},null,null,null,null,null,null,null,null,{"$f":"'Schedule XXIII'!F48","v":0}]
["Sch XXIII","Interest Rates",null,{"$f":"\"Int. Up - After Shock - Other - Qualifying Assets - \"&'Schedule XXIII'!$C$24","v":"Int. Up - After Shock - Other - Qualifying Assets - Other currency 7"},null,null,null,null,null,null,null,null,{"$f":"'Schedule XXIII'!F49","v":0}]
["Sch XXIII","Interest Rates",null,{"$f":"\"Int. Up - After Shock - Other - Qualifying Assets - \"&'Schedule XXIII'!$C$25","v":"Int. Up - After Shock - Other - Qualifying Assets - Other currency 8"},null,null,null,null,null,null,null,null,{"$f":"'Schedule XXIII'!F50","v":0}]
["Sch XXIII","Interest Rates",null,{"$f":"\"Int. Up - After Shock - Other - Qualifying Assets - \"&'Schedule XXIII'!$C$26","v":"Int. Up - After Shock - Other - Qualifying Assets - Other currency 9"},null,null,null,null,null,null,null,null,{"$f":"'Schedule XXIII'!F51","v":0}]
["Sch XXIII","Interest Rates",null,{"$f":"\"Int. Up - After Shock - Other - Qualifying Assets - \"&'Schedule XXIII'!$C$27","v":"Int. Up - After Shock - Other - Qualifying Assets - Other currency 10"},null,null,null,null,null,null,null,null,{"$f":"'Schedule XXIII'!F52","v":0}]
["Sch XXIII","Interest Rates",null,"Int. Up - After Shock - Other - Qualifying Assets - Total",null,null,null,null,null,null,null,null,{"$f":"'Schedule XXIII'!F53","v":0}]
["Sch XXIII","Interest Rates",null,"Int. Up - Before Shock - Other - Liab. w/o Mgmt Action - United States Dollars",null,null,null,null,null,null,null,null,{"$f":"'Schedule XXIII'!H35","v":0}]
["Sch XXIII","Interest Rates",null,"Int. Up - Before Shock - Other - Liab. w/o Mgmt Action - Euro",null,null,null,null,null,null,null,null,{"$f":"'Schedule XXIII'!H36","v":0}]
["Sch XXIII","Interest Rates",null,"Int. Up - Before Shock - Other - Liab. w/o Mgmt Action - United Kingdom Pounds",null,null,null,null,null,null,null,null,{"$f":"'Schedule XXIII'!H37","v":0}]
["Sch XXIII","Interest Rates",null,"Int. Up - Before Shock - Other - Liab. w/o Mgmt Action - Japan Yen",null,null,null,null,null,null,null,null,{"$f":"'Schedule XXIII'!H38","v":0}]
["Sch XXIII","Interest Rates",null,"Int. Up - Before Shock - Other - Liab. w/o Mgmt Action - Canada Dollars",null,null,null,null,null,null,null,null,{"$f":"'Schedule XXIII'!H39","v":0}]
["Sch XXIII","Interest Rates",null,"Int. Up - Before Shock - Other - Liab. w/o Mgmt Action - Swiss Francs",null,null,null,null,null,null,null,null,{"$f":"'Schedule XXIII'!H40","v":0}]
["Sch XXIII","Interest Rates",null,"Int. Up - Before Shock - Other - Liab. w/o Mgmt Action - Australia Dollar",null,null,null,null,null,null,null,null,{"$f":"'Schedule XXIII'!H41","v":0}]
["Sch XXIII","Interest Rates",null,"Int. Up - Before Shock - Other - Liab. w/o Mgmt Action - New Zealand Dollar",null,null,null,null,null,null,null,null,{"$f":"'Schedule XXIII'!H42","v":0}]
["Sch XXIII","Interest Rates",null,{"$f":"\"Int. Up - Before Shock - Other - Liab. w/o Mgmt Action - \"&'Schedule XXIII'!$C$18","v":"Int. Up - Before Shock - Other - Liab. w/o Mgmt Action - Other currency 1"},null,null,null,null,null,null,null,null,{"$f":"'Schedule XXIII'!H43","v":0}]
["Sch XXIII","Interest Rates",null,{"$f":"\"Int. Up - Before Shock - Other - Liab. w/o Mgmt Action - \"&'Schedule XXIII'!$C$19","v":"Int. Up - Before Shock - Other - Liab. w/o Mgmt Action - Other currency 2"},null,null,null,null,null,null,null,null,{"$f":"'Schedule XXIII'!H44","v":0}]
["Sch XXIII","Interest Rates",null,{"$f":"\"Int. Up - Before Shock - Other - Liab. w/o Mgmt Action - \"&'Schedule XXIII'!$C$20","v":"Int. Up - Before Shock - Other - Liab. w/o Mgmt Action - Other currency 3"},null,null,null,null,null,null,null,null,{"$f":"'Schedule XXIII'!H45","v":0}]
["Sch XXIII","Interest Rates",null,{"$f":"\"Int. Up - Before Shock - Other - Liab. w/o Mgmt Action - \"&'Schedule XXIII'!$C$21","v":"Int. Up - Before Shock - Other - Liab. w/o Mgmt Action - Other currency 4"},null,null,null,null,null,null,null,null,{"$f":"'Schedule XXIII'!H46","v":0}]
["Sch XXIII","Interest Rates",null,{"$f":"\"Int. Up - Before Shock - Other - Liab. w/o Mgmt Action - \"&'Schedule XXIII'!$C$22","v":"Int. Up - Before Shock - Other - Liab. w/o Mgmt Action - Other currency 5"},null,null,null,null,null,null,null,null,{"$f":"'Schedule XXIII'!H47","v":0}]
["Sch XXIII","Interest Rates",null,{"$f":"\"Int. Up - Before Shock - Other - Liab. w/o Mgmt Action - \"&'Schedule XXIII'!$C$23","v":"Int. Up - Before Shock - Other - Liab. w/o Mgmt Action - Other currency 6"},null,null,null,null,null,null,null,null,{"$f":"'Schedule XXIII'!H48","v":0}]
["Sch XXIII","Interest Rates",null,{"$f":"\"Int. Up - Before Shock - Other - Liab. w/o Mgmt Action - \"&'Schedule XXIII'!$C$24","v":"Int. Up - Before Shock - Other - Liab. w/o Mgmt Action - Other currency 7"},null,null,null,null,null,null,null,null,{"$f":"'Schedule XXIII'!H49","v":0}]
["Sch XXIII","Interest Rates",null,{"$f":"\"Int. Up - Before Shock - Other - Liab. w/o Mgmt Action - \"&'Schedule XXIII'!$C$25","v":"Int. Up - Before Shock - Other - Liab. w/o Mgmt Action - Other currency 8"},null,null,null,null,null,null,null,null,{"$f":"'Schedule XXIII'!H50","v":0}]
["Sch XXIII","Interest Rates",null,{"$f":"\"Int. Up - Before Shock - Other - Liab. w/o Mgmt Action - \"&'Schedule XXIII'!$C$26","v":"Int. Up - Before Shock - Other - Liab. w/o Mgmt Action - Other currency 9"},null,null,null,null,null,null,null,null,{"$f":"'Schedule XXIII'!H51","v":0}]
["Sch XXIII","Interest Rates",null,{"$f":"\"Int. Up - Before Shock - Other - Liab. w/o Mgmt Action - \"&'Schedule XXIII'!$C$27","v":"Int. Up - Before Shock - Other - Liab. w/o Mgmt Action - Other currency 10"},null,null,null,null,null,null,null,null,{"$f":"'Schedule XXIII'!H52","v":0}]
["Sch XXIII","Interest Rates",null,"Int. Up - Before Shock - Other - Liab. w/o Mgmt Action - Total",null,null,null,null,null,null,null,null,{"$f":"'Schedule XXIII'!H53","v":0}]
["Sch XXIII","Interest Rates",null,"Int. Up - After Shock - Other - Liab. w/o Mgmt Action - United States Dollars",null,null,null,null,null,null,null,null,{"$f":"'Schedule XXIII'!I35","v":0}]
["Sch XXIII","Interest Rates",null,"Int. Up - After Shock - Other - Liab. w/o Mgmt Action - Euro",null,null,null,null,null,null,null,null,{"$f":"'Schedule XXIII'!I36","v":0}]
["Sch XXIII","Interest Rates",null,"Int. Up - After Shock - Other - Liab. w/o Mgmt Action - United Kingdom Pounds",null,null,null,null,null,null,null,null,{"$f":"'Schedule XXIII'!I37","v":0}]
["Sch XXIII","Interest Rates",null,"Int. Up - After Shock - Other - Liab. w/o Mgmt Action - Japan Yen",null,null,null,null,null,null,null,null,{"$f":"'Schedule XXIII'!I38","v":0}]
["Sch XXIII","Interest Rates",null,"Int. Up - After Shock - Other - Liab. w/o Mgmt Action - Canada Dollars",null,null,null,null,null,null,null,null,{"$f":"'Schedule XXIII'!I39","v":0}]
["Sch XXIII","Interest Rates",null,"Int. Up - After Shock - Other - Liab. w/o Mgmt Action - Swiss Francs",null,null,null,null,null,null,null,null,{"$f":"'Schedule XXIII'!I40","v":0}]
["Sch XXIII","Interest Rates",null,"Int. Up - After Shock - Other - Liab. w/o Mgmt Action - Australia Dollar",null,null,null,null,null,null,null,null,{"$f":"'Schedule XXIII'!I41","v":0}]
["Sch XXIII","Interest Rates",null,"Int. Up - After Shock - Other - Liab. w/o Mgmt Action - New Zealand Dollar",null,null,null,null,null,null,null,null,{"$f":"'Schedule XXIII'!I42","v":0}]
["Sch XXIII","Interest Rates",null,{"$f":"\"Int. Up - After Shock - Other - Liab. w/o Mgmt Action - \"&'Schedule XXIII'!$C$18","v":"Int. Up - After Shock - Other - Liab. w/o Mgmt Action - Other currency 1"},null,null,null,null,null,null,null,null,{"$f":"'Schedule XXIII'!I43","v":0}]
["Sch XXIII","Interest Rates",null,{"$f":"\"Int. Up - After Shock - Other - Liab. w/o Mgmt Action - \"&'Schedule XXIII'!$C$19","v":"Int. Up - After Shock - Other - Liab. w/o Mgmt Action - Other currency 2"},null,null,null,null,null,null,null,null,{"$f":"'Schedule XXIII'!I44","v":0}]
["Sch XXIII","Interest Rates",null,{"$f":"\"Int. Up - After Shock - Other - Liab. w/o Mgmt Action - \"&'Schedule XXIII'!$C$20","v":"Int. Up - After Shock - Other - Liab. w/o Mgmt Action - Other currency 3"},null,null,null,null,null,null,null,null,{"$f":"'Schedule XXIII'!I45","v":0}]
["Sch XXIII","Interest Rates",null,{"$f":"\"Int. Up - After Shock - Other - Liab. w/o Mgmt Action - \"&'Schedule XXIII'!$C$21","v":"Int. Up - After Shock - Other - Liab. w/o Mgmt Action - Other currency 4"},null,null,null,null,null,null,null,null,{"$f":"'Schedule XXIII'!I46","v":0}]
["Sch XXIII","Interest Rates",null,{"$f":"\"Int. Up - After Shock - Other - Liab. w/o Mgmt Action - \"&'Schedule XXIII'!$C$22","v":"Int. Up - After Shock - Other - Liab. w/o Mgmt Action - Other currency 5"},null,null,null,null,null,null,null,null,{"$f":"'Schedule XXIII'!I47","v":0}]
["Sch XXIII","Interest Rates",null,{"$f":"\"Int. Up - After Shock - Other - Liab. w/o Mgmt Action - \"&'Schedule XXIII'!$C$23","v":"Int. Up - After Shock - Other - Liab. w/o Mgmt Action - Other currency 6"},null,null,null,null,null,null,null,null,{"$f":"'Schedule XXIII'!I48","v":0}]
["Sch XXIII","Interest Rates",null,{"$f":"\"Int. Up - After Shock - Other - Liab. w/o Mgmt Action - \"&'Schedule XXIII'!$C$24","v":"Int. Up - After Shock - Other - Liab. w/o Mgmt Action - Other currency 7"},null,null,null,null,null,null,null,null,{"$f":"'Schedule XXIII'!I49","v":0}]
["Sch XXIII","Interest Rates",null,{"$f":"\"Int. Up - After Shock - Other - Liab. w/o Mgmt Action - \"&'Schedule XXIII'!$C$25","v":"Int. Up - After Shock - Other - Liab. w/o Mgmt Action - Other currency 8"},null,null,null,null,null,null,null,null,{"$f":"'Schedule XXIII'!I50","v":0}]
["Sch XXIII","Interest Rates",null,{"$f":"\"Int. Up - After Shock - Other - Liab. w/o Mgmt Action - \"&'Schedule XXIII'!$C$26","v":"Int. Up - After Shock - Other - Liab. w/o Mgmt Action - Other currency 9"},null,null,null,null,null,null,null,null,{"$f":"'Schedule XXIII'!I51","v":0}]
["Sch XXIII","Interest Rates",null,{"$f":"\"Int. Up - After Shock - Other - Liab. w/o Mgmt Action - \"&'Schedule XXIII'!$C$27","v":"Int. Up - After Shock - Other - Liab. w/o Mgmt Action - Other currency 10"},null,null,null,null,null,null,null,null,{"$f":"'Schedule XXIII'!I52","v":0}]
["Sch XXIII","Interest Rates",null,"Int. Up - After Shock - Other - Liab. w/o Mgmt Action - Total",null,null,null,null,null,null,null,null,{"$f":"'Schedule XXIII'!I53","v":0}]
["Sch XXIII","Interest Rates",null,"Int. Up - After Shock - Other - Liab. with Mgmt Action - United States Dollars",null,null,null,null,null,null,null,null,{"$f":"'Schedule XXIII'!K35","v":0}]
["Sch XXIII","Interest Rates",null,"Int. Up - After Shock - Other - Liab. with Mgmt Action - Euro",null,null,null,null,null,null,null,null,{"$f":"'Schedule XXIII'!K36","v":0}]
["Sch XXIII","Interest Rates",null,"Int. Up - After Shock - Other - Liab. with Mgmt Action - United Kingdom Pounds",null,null,null,null,null,null,null,null,{"$f":"'Schedule XXIII'!K37","v":0}]
["Sch XXIII","Interest Rates",null,"Int. Up - After Shock - Other - Liab. with Mgmt Action - Japan Yen",null,null,null,null,null,null,null,null,{"$f":"'Schedule XXIII'!K38","v":0}]
["Sch XXIII","Interest Rates",null,"Int. Up - After Shock - Other - Liab. with Mgmt Action - Canada Dollars",null,null,null,null,null,null,null,null,{"$f":"'Schedule XXIII'!K39","v":0}]
["Sch XXIII","Interest Rates",null,"Int. Up - After Shock - Other - Liab. with Mgmt Action - Swiss Francs",null,null,null,null,null,null,null,null,{"$f":"'Schedule XXIII'!K40","v":0}]
["Sch XXIII","Interest Rates",null,"Int. Up - After Shock - Other - Liab. with Mgmt Action - Australia Dollar",null,null,null,null,null,null,null,null,{"$f":"'Schedule XXIII'!K41","v":0}]
["Sch XXIII","Interest Rates",null,"Int. Up - After Shock - Other - Liab. with Mgmt Action - New Zealand Dollar",null,null,null,null,null,null,null,null,{"$f":"'Schedule XXIII'!K42","v":0}]
["Sch XXIII","Interest Rates",null,{"$f":"\"Int. Up - After Shock - Other - Liab. with Mgmt Action - \"&'Schedule XXIII'!$C$18","v":"Int. Up - After Shock - Other - Liab. with Mgmt Action - Other currency 1"},null,null,null,null,null,null,null,null,{"$f":"'Schedule XXIII'!K43","v":0}]
["Sch XXIII","Interest Rates",null,{"$f":"\"Int. Up - After Shock - Other - Liab. with Mgmt Action - \"&'Schedule XXIII'!$C$19","v":"Int. Up - After Shock - Other - Liab. with Mgmt Action - Other currency 2"},null,null,null,null,null,null,null,null,{"$f":"'Schedule XXIII'!K44","v":0}]
["Sch XXIII","Interest Rates",null,{"$f":"\"Int. Up - After Shock - Other - Liab. with Mgmt Action - \"&'Schedule XXIII'!$C$20","v":"Int. Up - After Shock - Other - Liab. with Mgmt Action - Other currency 3"},null,null,null,null,null,null,null,null,{"$f":"'Schedule XXIII'!K45","v":0}]
["Sch XXIII","Interest Rates",null,{"$f":"\"Int. Up - After Shock - Other - Liab. with Mgmt Action - \"&'Schedule XXIII'!$C$21","v":"Int. Up - After Shock - Other - Liab. with Mgmt Action - Other currency 4"},null,null,null,null,null,null,null,null,{"$f":"'Schedule XXIII'!K46","v":0}]
["Sch XXIII","Interest Rates",null,{"$f":"\"Int. Up - After Shock - Other - Liab. with Mgmt Action - \"&'Schedule XXIII'!$C$22","v":"Int. Up - After Shock - Other - Liab. with Mgmt Action - Other currency 5"},null,null,null,null,null,null,null,null,{"$f":"'Schedule XXIII'!K47","v":0}]
["Sch XXIII","Interest Rates",null,{"$f":"\"Int. Up - After Shock - Other - Liab. with Mgmt Action - \"&'Schedule XXIII'!$C$23","v":"Int. Up - After Shock - Other - Liab. with Mgmt Action - Other currency 6"},null,null,null,null,null,null,null,null,{"$f":"'Schedule XXIII'!K48","v":0}]
["Sch XXIII","Interest Rates",null,{"$f":"\"Int. Up - After Shock - Other - Liab. with Mgmt Action - \"&'Schedule XXIII'!$C$24","v":"Int. Up - After Shock - Other - Liab. with Mgmt Action - Other currency 7"},null,null,null,null,null,null,null,null,{"$f":"'Schedule XXIII'!K49","v":0}]
["Sch XXIII","Interest Rates",null,{"$f":"\"Int. Up - After Shock - Other - Liab. with Mgmt Action - \"&'Schedule XXIII'!$C$25","v":"Int. Up - After Shock - Other - Liab. with Mgmt Action - Other currency 8"},null,null,null,null,null,null,null,null,{"$f":"'Schedule XXIII'!K50","v":0}]
["Sch XXIII","Interest Rates",null,{"$f":"\"Int. Up - After Shock - Other - Liab. with Mgmt Action - \"&'Schedule XXIII'!$C$26","v":"Int. Up - After Shock - Other - Liab. with Mgmt Action - Other currency 9"},null,null,null,null,null,null,null,null,{"$f":"'Schedule XXIII'!K51","v":0}]
["Sch XXIII","Interest Rates",null,{"$f":"\"Int. Up - After Shock - Other - Liab. with Mgmt Action - \"&'Schedule XXIII'!$C$27","v":"Int. Up - After Shock - Other - Liab. with Mgmt Action - Other currency 10"},null,null,null,null,null,null,null,null,{"$f":"'Schedule XXIII'!K52","v":0}]
["Sch XXIII","Interest Rates",null,"Int. Up - After Shock - Other - Liab. with Mgmt Action - Total",null,null,null,null,null,null,null,null,{"$f":"'Schedule XXIII'!K53","v":0}]
["Sch XXIII","Interest Rates",null,"Int. Up - Before Shock - Derivatives - Qualifying Assets - United States Dollars",null,null,null,null,null,null,null,null,{"$f":"'Schedule XXIII'!M35","v":0}]
["Sch XXIII","Interest Rates",null,"Int. Up - Before Shock - Derivatives - Qualifying Assets - Euro",null,null,null,null,null,null,null,null,{"$f":"'Schedule XXIII'!M36","v":0}]
["Sch XXIII","Interest Rates",null,"Int. Up - Before Shock - Derivatives - Qualifying Assets - United Kingdom Pounds",null,null,null,null,null,null,null,null,{"$f":"'Schedule XXIII'!M37","v":0}]
["Sch XXIII","Interest Rates",null,"Int. Up - Before Shock - Derivatives - Qualifying Assets - Japan Yen",null,null,null,null,null,null,null,null,{"$f":"'Schedule XXIII'!M38","v":0}]
["Sch XXIII","Interest Rates",null,"Int. Up - Before Shock - Derivatives - Qualifying Assets - Canada Dollars",null,null,null,null,null,null,null,null,{"$f":"'Schedule XXIII'!M39","v":0}]
["Sch XXIII","Interest Rates",null,"Int. Up - Before Shock - Derivatives - Qualifying Assets - Swiss Francs",null,null,null,null,null,null,null,null,{"$f":"'Schedule XXIII'!M40","v":0}]
["Sch XXIII","Interest Rates",null,"Int. Up - Before Shock - Derivatives - Qualifying Assets - Australia Dollar",null,null,null,null,null,null,null,null,{"$f":"'Schedule XXIII'!M41","v":0}]
["Sch XXIII","Interest Rates",null,"Int. Up - Before Shock - Derivatives - Qualifying Assets - New Zealand Dollar",null,null,null,null,null,null,null,null,{"$f":"'Schedule XXIII'!M42","v":0}]
["Sch XXIII","Interest Rates",null,{"$f":"\"Int. Up - Before Shock - Derivatives - Qualifying Assets - \"&'Schedule XXIII'!$C$18","v":"Int. Up - Before Shock - Derivatives - Qualifying Assets - Other currency 1"},null,null,null,null,null,null,null,null,{"$f":"'Schedule XXIII'!M43","v":0}]
["Sch XXIII","Interest Rates",null,{"$f":"\"Int. Up - Before Shock - Derivatives - Qualifying Assets - \"&'Schedule XXIII'!$C$19","v":"Int. Up - Before Shock - Derivatives - Qualifying Assets - Other currency 2"},null,null,null,null,null,null,null,null,{"$f":"'Schedule XXIII'!M44","v":0}]
["Sch XXIII","Interest Rates",null,{"$f":"\"Int. Up - Before Shock - Derivatives - Qualifying Assets - \"&'Schedule XXIII'!$C$20","v":"Int. Up - Before Shock - Derivatives - Qualifying Assets - Other currency 3"},null,null,null,null,null,null,null,null,{"$f":"'Schedule XXIII'!M45","v":0}]
["Sch XXIII","Interest Rates",null,{"$f":"\"Int. Up - Before Shock - Derivatives - Qualifying Assets - \"&'Schedule XXIII'!$C$21","v":"Int. Up - Before Shock - Derivatives - Qualifying Assets - Other currency 4"},null,null,null,null,null,null,null,null,{"$f":"'Schedule XXIII'!M46","v":0}]
["Sch XXIII","Interest Rates",null,{"$f":"\"Int. Up - Before Shock - Derivatives - Qualifying Assets - \"&'Schedule XXIII'!$C$22","v":"Int. Up - Before Shock - Derivatives - Qualifying Assets - Other currency 5"},null,null,null,null,null,null,null,null,{"$f":"'Schedule XXIII'!M47","v":0}]
["Sch XXIII","Interest Rates",null,{"$f":"\"Int. Up - Before Shock - Derivatives - Qualifying Assets - \"&'Schedule XXIII'!$C$23","v":"Int. Up - Before Shock - Derivatives - Qualifying Assets - Other currency 6"},null,null,null,null,null,null,null,null,{"$f":"'Schedule XXIII'!M48","v":0}]
["Sch XXIII","Interest Rates",null,{"$f":"\"Int. Up - Before Shock - Derivatives - Qualifying Assets - \"&'Schedule XXIII'!$C$24","v":"Int. Up - Before Shock - Derivatives - Qualifying Assets - Other currency 7"},null,null,null,null,null,null,null,null,{"$f":"'Schedule XXIII'!M49","v":0}]
["Sch XXIII","Interest Rates",null,{"$f":"\"Int. Up - Before Shock - Derivatives - Qualifying Assets - \"&'Schedule XXIII'!$C$25","v":"Int. Up - Before Shock - Derivatives - Qualifying Assets - Other currency 8"},null,null,null,null,null,null,null,null,{"$f":"'Schedule XXIII'!M50","v":0}]
["Sch XXIII","Interest Rates",null,{"$f":"\"Int. Up - Before Shock - Derivatives - Qualifying Assets - \"&'Schedule XXIII'!$C$26","v":"Int. Up - Before Shock - Derivatives - Qualifying Assets - Other currency 9"},null,null,null,null,null,null,null,null,{"$f":"'Schedule XXIII'!M51","v":0}]
["Sch XXIII","Interest Rates",null,{"$f":"\"Int. Up - Before Shock - Derivatives - Qualifying Assets - \"&'Schedule XXIII'!$C$27","v":"Int. Up - Before Shock - Derivatives - Qualifying Assets - Other currency 10"},null,null,null,null,null,null,null,null,{"$f":"'Schedule XXIII'!M52","v":0}]
["Sch XXIII","Interest Rates",null,"Int. Up - Before Shock - Derivatives - Qualifying Assets - Total",null,null,null,null,null,null,null,null,{"$f":"'Schedule XXIII'!M53","v":0}]
["Sch XXIII","Interest Rates",null,"Int. Up - After Shock - Derivatives - Qualifying Assets - United States Dollars",null,null,null,null,null,null,null,null,{"$f":"'Schedule XXIII'!N35","v":0}]
["Sch XXIII","Interest Rates",null,"Int. Up - After Shock - Derivatives - Qualifying Assets - Euro",null,null,null,null,null,null,null,null,{"$f":"'Schedule XXIII'!N36","v":0}]
["Sch XXIII","Interest Rates",null,"Int. Up - After Shock - Derivatives - Qualifying Assets - United Kingdom Pounds",null,null,null,null,null,null,null,null,{"$f":"'Schedule XXIII'!N37","v":0}]
["Sch XXIII","Interest Rates",null,"Int. Up - After Shock - Derivatives - Qualifying Assets - Japan Yen",null,null,null,null,null,null,null,null,{"$f":"'Schedule XXIII'!N38","v":0}]
["Sch XXIII","Interest Rates",null,"Int. Up - After Shock - Derivatives - Qualifying Assets - Canada Dollars",null,null,null,null,null,null,null,null,{"$f":"'Schedule XXIII'!N39","v":0}]
["Sch XXIII","Interest Rates",null,"Int. Up - After Shock - Derivatives - Qualifying Assets - Swiss Francs",null,null,null,null,null,null,null,null,{"$f":"'Schedule XXIII'!N40","v":0}]
["Sch XXIII","Interest Rates",null,"Int. Up - After Shock - Derivatives - Qualifying Assets - Australia Dollar",null,null,null,null,null,null,null,null,{"$f":"'Schedule XXIII'!N41","v":0}]
["Sch XXIII","Interest Rates",null,"Int. Up - After Shock - Derivatives - Qualifying Assets - New Zealand Dollar",null,null,null,null,null,null,null,null,{"$f":"'Schedule XXIII'!N42","v":0}]
["Sch XXIII","Interest Rates",null,{"$f":"\"Int. Up - After Shock - Derivatives - Qualifying Assets - \"&'Schedule XXIII'!$C$18","v":"Int. Up - After Shock - Derivatives - Qualifying Assets - Other currency 1"},null,null,null,null,null,null,null,null,{"$f":"'Schedule XXIII'!N43","v":0}]
["Sch XXIII","Interest Rates",null,{"$f":"\"Int. Up - After Shock - Derivatives - Qualifying Assets - \"&'Schedule XXIII'!$C$19","v":"Int. Up - After Shock - Derivatives - Qualifying Assets - Other currency 2"},null,null,null,null,null,null,null,null,{"$f":"'Schedule XXIII'!N44","v":0}]
["Sch XXIII","Interest Rates",null,{"$f":"\"Int. Up - After Shock - Derivatives - Qualifying Assets - \"&'Schedule XXIII'!$C$20","v":"Int. Up - After Shock - Derivatives - Qualifying Assets - Other currency 3"},null,null,null,null,null,null,null,null,{"$f":"'Schedule XXIII'!N45","v":0}]
["Sch XXIII","Interest Rates",null,{"$f":"\"Int. Up - After Shock - Derivatives - Qualifying Assets - \"&'Schedule XXIII'!$C$21","v":"Int. Up - After Shock - Derivatives - Qualifying Assets - Other currency 4"},null,null,null,null,null,null,null,null,{"$f":"'Schedule XXIII'!N46","v":0}]
["Sch XXIII","Interest Rates",null,{"$f":"\"Int. Up - After Shock - Derivatives - Qualifying Assets - \"&'Schedule XXIII'!$C$22","v":"Int. Up - After Shock - Derivatives - Qualifying Assets - Other currency 5"},null,null,null,null,null,null,null,null,{"$f":"'Schedule XXIII'!N47","v":0}]
["Sch XXIII","Interest Rates",null,{"$f":"\"Int. Up - After Shock - Derivatives - Qualifying Assets - \"&'Schedule XXIII'!$C$23","v":"Int. Up - After Shock - Derivatives - Qualifying Assets - Other currency 6"},null,null,null,null,null,null,null,null,{"$f":"'Schedule XXIII'!N48","v":0}]
["Sch XXIII","Interest Rates",null,{"$f":"\"Int. Up - After Shock - Derivatives - Qualifying Assets - \"&'Schedule XXIII'!$C$24","v":"Int. Up - After Shock - Derivatives - Qualifying Assets - Other currency 7"},null,null,null,null,null,null,null,null,{"$f":"'Schedule XXIII'!N49","v":0}]
["Sch XXIII","Interest Rates",null,{"$f":"\"Int. Up - After Shock - Derivatives - Qualifying Assets - \"&'Schedule XXIII'!$C$25","v":"Int. Up - After Shock - Derivatives - Qualifying Assets - Other currency 8"},null,null,null,null,null,null,null,null,{"$f":"'Schedule XXIII'!N50","v":0}]
["Sch XXIII","Interest Rates",null,{"$f":"\"Int. Up - After Shock - Derivatives - Qualifying Assets - \"&'Schedule XXIII'!$C$26","v":"Int. Up - After Shock - Derivatives - Qualifying Assets - Other currency 9"},null,null,null,null,null,null,null,null,{"$f":"'Schedule XXIII'!N51","v":0}]
["Sch XXIII","Interest Rates",null,{"$f":"\"Int. Up - After Shock - Derivatives - Qualifying Assets - \"&'Schedule XXIII'!$C$27","v":"Int. Up - After Shock - Derivatives - Qualifying Assets - Other currency 10"},null,null,null,null,null,null,null,null,{"$f":"'Schedule XXIII'!N52","v":0}]
["Sch XXIII","Interest Rates",null,"Int. Up - After Shock - Derivatives - Qualifying Assets - Total",null,null,null,null,null,null,null,null,{"$f":"'Schedule XXIII'!N53","v":0}]
["Sch XXIII","Interest Rates",null,"Int. Up - Before Shock - Derivatives - Not Qualifying Assets - United States Dollars",null,null,null,null,null,null,null,null,{"$f":"'Schedule XXIII'!P35","v":0}]
["Sch XXIII","Interest Rates",null,"Int. Up - Before Shock - Derivatives - Not Qualifying Assets - Euro",null,null,null,null,null,null,null,null,{"$f":"'Schedule XXIII'!P36","v":0}]
["Sch XXIII","Interest Rates",null,"Int. Up - Before Shock - Derivatives - Not Qualifying Assets - United Kingdom Pounds",null,null,null,null,null,null,null,null,{"$f":"'Schedule XXIII'!P37","v":0}]
["Sch XXIII","Interest Rates",null,"Int. Up - Before Shock - Derivatives - Not Qualifying Assets - Japan Yen",null,null,null,null,null,null,null,null,{"$f":"'Schedule XXIII'!P38","v":0}]
["Sch XXIII","Interest Rates",null,"Int. Up - Before Shock - Derivatives - Not Qualifying Assets - Canada Dollars",null,null,null,null,null,null,null,null,{"$f":"'Schedule XXIII'!P39","v":0}]
["Sch XXIII","Interest Rates",null,"Int. Up - Before Shock - Derivatives - Not Qualifying Assets - Swiss Francs",null,null,null,null,null,null,null,null,{"$f":"'Schedule XXIII'!P40","v":0}]
["Sch XXIII","Interest Rates",null,"Int. Up - Before Shock - Derivatives - Not Qualifying Assets - Australia Dollar",null,null,null,null,null,null,null,null,{"$f":"'Schedule XXIII'!P41","v":0}]
["Sch XXIII","Interest Rates",null,"Int. Up - Before Shock - Derivatives - Not Qualifying Assets - New Zealand Dollar",null,null,null,null,null,null,null,null,{"$f":"'Schedule XXIII'!P42","v":0}]
["Sch XXIII","Interest Rates",null,{"$f":"\"Int. Up - Before Shock - Derivatives - Not Qualifying Assets - \"&'Schedule XXIII'!$C$18","v":"Int. Up - Before Shock - Derivatives - Not Qualifying Assets - Other currency 1"},null,null,null,null,null,null,null,null,{"$f":"'Schedule XXIII'!P43","v":0}]
["Sch XXIII","Interest Rates",null,{"$f":"\"Int. Up - Before Shock - Derivatives - Not Qualifying Assets - \"&'Schedule XXIII'!$C$19","v":"Int. Up - Before Shock - Derivatives - Not Qualifying Assets - Other currency 2"},null,null,null,null,null,null,null,null,{"$f":"'Schedule XXIII'!P44","v":0}]
["Sch XXIII","Interest Rates",null,{"$f":"\"Int. Up - Before Shock - Derivatives - Not Qualifying Assets - \"&'Schedule XXIII'!$C$20","v":"Int. Up - Before Shock - Derivatives - Not Qualifying Assets - Other currency 3"},null,null,null,null,null,null,null,null,{"$f":"'Schedule XXIII'!P45","v":0}]
["Sch XXIII","Interest Rates",null,{"$f":"\"Int. Up - Before Shock - Derivatives - Not Qualifying Assets - \"&'Schedule XXIII'!$C$21","v":"Int. Up - Before Shock - Derivatives - Not Qualifying Assets - Other currency 4"},null,null,null,null,null,null,null,null,{"$f":"'Schedule XXIII'!P46","v":0}]
["Sch XXIII","Interest Rates",null,{"$f":"\"Int. Up - Before Shock - Derivatives - Not Qualifying Assets - \"&'Schedule XXIII'!$C$22","v":"Int. Up - Before Shock - Derivatives - Not Qualifying Assets - Other currency 5"},null,null,null,null,null,null,null,null,{"$f":"'Schedule XXIII'!P47","v":0}]
["Sch XXIII","Interest Rates",null,{"$f":"\"Int. Up - Before Shock - Derivatives - Not Qualifying Assets - \"&'Schedule XXIII'!$C$23","v":"Int. Up - Before Shock - Derivatives - Not Qualifying Assets - Other currency 6"},null,null,null,null,null,null,null,null,{"$f":"'Schedule XXIII'!P48","v":0}]
["Sch XXIII","Interest Rates",null,{"$f":"\"Int. Up - Before Shock - Derivatives - Not Qualifying Assets - \"&'Schedule XXIII'!$C$24","v":"Int. Up - Before Shock - Derivatives - Not Qualifying Assets - Other currency 7"},null,null,null,null,null,null,null,null,{"$f":"'Schedule XXIII'!P49","v":0}]
["Sch XXIII","Interest Rates",null,{"$f":"\"Int. Up - Before Shock - Derivatives - Not Qualifying Assets - \"&'Schedule XXIII'!$C$25","v":"Int. Up - Before Shock - Derivatives - Not Qualifying Assets - Other currency 8"},null,null,null,null,null,null,null,null,{"$f":"'Schedule XXIII'!P50","v":0}]
["Sch XXIII","Interest Rates",null,{"$f":"\"Int. Up - Before Shock - Derivatives - Not Qualifying Assets - \"&'Schedule XXIII'!$C$26","v":"Int. Up - Before Shock - Derivatives - Not Qualifying Assets - Other currency 9"},null,null,null,null,null,null,null,null,{"$f":"'Schedule XXIII'!P51","v":0}]
["Sch XXIII","Interest Rates",null,{"$f":"\"Int. Up - Before Shock - Derivatives - Not Qualifying Assets - \"&'Schedule XXIII'!$C$27","v":"Int. Up - Before Shock - Derivatives - Not Qualifying Assets - Other currency 10"},null,null,null,null,null,null,null,null,{"$f":"'Schedule XXIII'!P52","v":0}]
["Sch XXIII","Interest Rates",null,"Int. Up - Before Shock - Derivatives - Not Qualifying Assets - Total",null,null,null,null,null,null,null,null,{"$f":"'Schedule XXIII'!P53","v":0}]
["Sch XXIII","Interest Rates",null,"Int. Up - After Shock - Derivatives - Not Qualifying Assets - United States Dollars",null,null,null,null,null,null,null,null,{"$f":"'Schedule XXIII'!Q35","v":0}]
["Sch XXIII","Interest Rates",null,"Int. Up - After Shock - Derivatives - Not Qualifying Assets - Euro",null,null,null,null,null,null,null,null,{"$f":"'Schedule XXIII'!Q36","v":0}]
["Sch XXIII","Interest Rates",null,"Int. Up - After Shock - Derivatives - Not Qualifying Assets - United Kingdom Pounds",null,null,null,null,null,null,null,null,{"$f":"'Schedule XXIII'!Q37","v":0}]
["Sch XXIII","Interest Rates",null,"Int. Up - After Shock - Derivatives - Not Qualifying Assets - Japan Yen",null,null,null,null,null,null,null,null,{"$f":"'Schedule XXIII'!Q38","v":0}]
["Sch XXIII","Interest Rates",null,"Int. Up - After Shock - Derivatives - Not Qualifying Assets - Canada Dollars",null,null,null,null,null,null,null,null,{"$f":"'Schedule XXIII'!Q39","v":0}]
["Sch XXIII","Interest Rates",null,"Int. Up - After Shock - Derivatives - Not Qualifying Assets - Swiss Francs",null,null,null,null,null,null,null,null,{"$f":"'Schedule XXIII'!Q40","v":0}]
["Sch XXIII","Interest Rates",null,"Int. Up - After Shock - Derivatives - Not Qualifying Assets - Australia Dollar",null,null,null,null,null,null,null,null,{"$f":"'Schedule XXIII'!Q41","v":0}]
["Sch XXIII","Interest Rates",null,"Int. Up - After Shock - Derivatives - Not Qualifying Assets - New Zealand Dollar",null,null,null,null,null,null,null,null,{"$f":"'Schedule XXIII'!Q42","v":0}]
["Sch XXIII","Interest Rates",null,{"$f":"\"Int. Up - After Shock - Derivatives - Not Qualifying Assets - \"&'Schedule XXIII'!$C$18","v":"Int. Up - After Shock - Derivatives - Not Qualifying Assets - Other currency 1"},null,null,null,null,null,null,null,null,{"$f":"'Schedule XXIII'!Q43","v":0}]
["Sch XXIII","Interest Rates",null,{"$f":"\"Int. Up - After Shock - Derivatives - Not Qualifying Assets - \"&'Schedule XXIII'!$C$19","v":"Int. Up - After Shock - Derivatives - Not Qualifying Assets - Other currency 2"},null,null,null,null,null,null,null,null,{"$f":"'Schedule XXIII'!Q44","v":0}]
["Sch XXIII","Interest Rates",null,{"$f":"\"Int. Up - After Shock - Derivatives - Not Qualifying Assets - \"&'Schedule XXIII'!$C$20","v":"Int. Up - After Shock - Derivatives - Not Qualifying Assets - Other currency 3"},null,null,null,null,null,null,null,null,{"$f":"'Schedule XXIII'!Q45","v":0}]
["Sch XXIII","Interest Rates",null,{"$f":"\"Int. Up - After Shock - Derivatives - Not Qualifying Assets - \"&'Schedule XXIII'!$C$21","v":"Int. Up - After Shock - Derivatives - Not Qualifying Assets - Other currency 4"},null,null,null,null,null,null,null,null,{"$f":"'Schedule XXIII'!Q46","v":0}]
["Sch XXIII","Interest Rates",null,{"$f":"\"Int. Up - After Shock - Derivatives - Not Qualifying Assets - \"&'Schedule XXIII'!$C$22","v":"Int. Up - After Shock - Derivatives - Not Qualifying Assets - Other currency 5"},null,null,null,null,null,null,null,null,{"$f":"'Schedule XXIII'!Q47","v":0}]
["Sch XXIII","Interest Rates",null,{"$f":"\"Int. Up - After Shock - Derivatives - Not Qualifying Assets - \"&'Schedule XXIII'!$C$23","v":"Int. Up - After Shock - Derivatives - Not Qualifying Assets - Other currency 6"},null,null,null,null,null,null,null,null,{"$f":"'Schedule XXIII'!Q48","v":0}]
["Sch XXIII","Interest Rates",null,{"$f":"\"Int. Up - After Shock - Derivatives - Not Qualifying Assets - \"&'Schedule XXIII'!$C$24","v":"Int. Up - After Shock - Derivatives - Not Qualifying Assets - Other currency 7"},null,null,null,null,null,null,null,null,{"$f":"'Schedule XXIII'!Q49","v":0}]
["Sch XXIII","Interest Rates",null,{"$f":"\"Int. Up - After Shock - Derivatives - Not Qualifying Assets - \"&'Schedule XXIII'!$C$25","v":"Int. Up - After Shock - Derivatives - Not Qualifying Assets - Other currency 8"},null,null,null,null,null,null,null,null,{"$f":"'Schedule XXIII'!Q50","v":0}]
["Sch XXIII","Interest Rates",null,{"$f":"\"Int. Up - After Shock - Derivatives - Not Qualifying Assets - \"&'Schedule XXIII'!$C$26","v":"Int. Up - After Shock - Derivatives - Not Qualifying Assets - Other currency 9"},null,null,null,null,null,null,null,null,{"$f":"'Schedule XXIII'!Q51","v":0}]
["Sch XXIII","Interest Rates",null,{"$f":"\"Int. Up - After Shock - Derivatives - Not Qualifying Assets - \"&'Schedule XXIII'!$C$27","v":"Int. Up - After Shock - Derivatives - Not Qualifying Assets - Other currency 10"},null,null,null,null,null,null,null,null,{"$f":"'Schedule XXIII'!Q52","v":0}]
["Sch XXIII","Interest Rates",null,"Int. Up - After Shock - Derivatives - Not Qualifying Assets - Total",null,null,null,null,null,null,null,null,{"$f":"'Schedule XXIII'!Q53","v":0}]
["Sch XXIII","Interest Rates",null,"Int. Up - Before Shock - Derivatives - Liab. w/o Mgmt Action - United States Dollars",null,null,null,null,null,null,null,null,{"$f":"'Schedule XXIII'!S35","v":0}]
["Sch XXIII","Interest Rates",null,"Int. Up - Before Shock - Derivatives - Liab. w/o Mgmt Action - Euro",null,null,null,null,null,null,null,null,{"$f":"'Schedule XXIII'!S36","v":0}]
["Sch XXIII","Interest Rates",null,"Int. Up - Before Shock - Derivatives - Liab. w/o Mgmt Action - United Kingdom Pounds",null,null,null,null,null,null,null,null,{"$f":"'Schedule XXIII'!S37","v":0}]
["Sch XXIII","Interest Rates",null,"Int. Up - Before Shock - Derivatives - Liab. w/o Mgmt Action - Japan Yen",null,null,null,null,null,null,null,null,{"$f":"'Schedule XXIII'!S38","v":0}]
["Sch XXIII","Interest Rates",null,"Int. Up - Before Shock - Derivatives - Liab. w/o Mgmt Action - Canada Dollars",null,null,null,null,null,null,null,null,{"$f":"'Schedule XXIII'!S39","v":0}]
["Sch XXIII","Interest Rates",null,"Int. Up - Before Shock - Derivatives - Liab. w/o Mgmt Action - Swiss Francs",null,null,null,null,null,null,null,null,{"$f":"'Schedule XXIII'!S40","v":0}]
["Sch XXIII","Interest Rates",null,"Int. Up - Before Shock - Derivatives - Liab. w/o Mgmt Action - Australia Dollar",null,null,null,null,null,null,null,null,{"$f":"'Schedule XXIII'!S41","v":0}]
["Sch XXIII","Interest Rates",null,"Int. Up - Before Shock - Derivatives - Liab. w/o Mgmt Action - New Zealand Dollar",null,null,null,null,null,null,null,null,{"$f":"'Schedule XXIII'!S42","v":0}]
["Sch XXIII","Interest Rates",null,{"$f":"\"Int. Up - Before Shock - Derivatives - Liab. w/o Mgmt Action - \"&'Schedule XXIII'!$C$18","v":"Int. Up - Before Shock - Derivatives - Liab. w/o Mgmt Action - Other currency 1"},null,null,null,null,null,null,null,null,{"$f":"'Schedule XXIII'!S43","v":0}]
["Sch XXIII","Interest Rates",null,{"$f":"\"Int. Up - Before Shock - Derivatives - Liab. w/o Mgmt Action - \"&'Schedule XXIII'!$C$19","v":"Int. Up - Before Shock - Derivatives - Liab. w/o Mgmt Action - Other currency 2"},null,null,null,null,null,null,null,null,{"$f":"'Schedule XXIII'!S44","v":0}]
["Sch XXIII","Interest Rates",null,{"$f":"\"Int. Up - Before Shock - Derivatives - Liab. w/o Mgmt Action - \"&'Schedule XXIII'!$C$20","v":"Int. Up - Before Shock - Derivatives - Liab. w/o Mgmt Action - Other currency 3"},null,null,null,null,null,null,null,null,{"$f":"'Schedule XXIII'!S45","v":0}]
["Sch XXIII","Interest Rates",null,{"$f":"\"Int. Up - Before Shock - Derivatives - Liab. w/o Mgmt Action - \"&'Schedule XXIII'!$C$21","v":"Int. Up - Before Shock - Derivatives - Liab. w/o Mgmt Action - Other currency 4"},null,null,null,null,null,null,null,null,{"$f":"'Schedule XXIII'!S46","v":0}]
["Sch XXIII","Interest Rates",null,{"$f":"\"Int. Up - Before Shock - Derivatives - Liab. w/o Mgmt Action - \"&'Schedule XXIII'!$C$22","v":"Int. Up - Before Shock - Derivatives - Liab. w/o Mgmt Action - Other currency 5"},null,null,null,null,null,null,null,null,{"$f":"'Schedule XXIII'!S47","v":0}]
["Sch XXIII","Interest Rates",null,{"$f":"\"Int. Up - Before Shock - Derivatives - Liab. w/o Mgmt Action - \"&'Schedule XXIII'!$C$23","v":"Int. Up - Before Shock - Derivatives - Liab. w/o Mgmt Action - Other currency 6"},null,null,null,null,null,null,null,null,{"$f":"'Schedule XXIII'!S48","v":0}]
["Sch XXIII","Interest Rates",null,{"$f":"\"Int. Up - Before Shock - Derivatives - Liab. w/o Mgmt Action - \"&'Schedule XXIII'!$C$24","v":"Int. Up - Before Shock - Derivatives - Liab. w/o Mgmt Action - Other currency 7"},null,null,null,null,null,null,null,null,{"$f":"'Schedule XXIII'!S49","v":0}]
["Sch XXIII","Interest Rates",null,{"$f":"\"Int. Up - Before Shock - Derivatives - Liab. w/o Mgmt Action - \"&'Schedule XXIII'!$C$25","v":"Int. Up - Before Shock - Derivatives - Liab. w/o Mgmt Action - Other currency 8"},null,null,null,null,null,null,null,null,{"$f":"'Schedule XXIII'!S50","v":0}]
["Sch XXIII","Interest Rates",null,{"$f":"\"Int. Up - Before Shock - Derivatives - Liab. w/o Mgmt Action - \"&'Schedule XXIII'!$C$26","v":"Int. Up - Before Shock - Derivatives - Liab. w/o Mgmt Action - Other currency 9"},null,null,null,null,null,null,null,null,{"$f":"'Schedule XXIII'!S51","v":0}]
["Sch XXIII","Interest Rates",null,{"$f":"\"Int. Up - Before Shock - Derivatives - Liab. w/o Mgmt Action - \"&'Schedule XXIII'!$C$27","v":"Int. Up - Before Shock - Derivatives - Liab. w/o Mgmt Action - Other currency 10"},null,null,null,null,null,null,null,null,{"$f":"'Schedule XXIII'!S52","v":0}]
["Sch XXIII","Interest Rates",null,"Int. Up - Before Shock - Derivatives - Liab. w/o Mgmt Action - Total",null,null,null,null,null,null,null,null,{"$f":"'Schedule XXIII'!S53","v":0}]
["Sch XXIII","Interest Rates",null,"Int. Up - After Shock - Derivatives - Liab. w/o Mgmt Action - United States Dollars",null,null,null,null,null,null,null,null,{"$f":"'Schedule XXIII'!T35","v":0}]
["Sch XXIII","Interest Rates",null,"Int. Up - After Shock - Derivatives - Liab. w/o Mgmt Action - Euro",null,null,null,null,null,null,null,null,{"$f":"'Schedule XXIII'!T36","v":0}]
["Sch XXIII","Interest Rates",null,"Int. Up - After Shock - Derivatives - Liab. w/o Mgmt Action - United Kingdom Pounds",null,null,null,null,null,null,null,null,{"$f":"'Schedule XXIII'!T37","v":0}]
["Sch XXIII","Interest Rates",null,"Int. Up - After Shock - Derivatives - Liab. w/o Mgmt Action - Japan Yen",null,null,null,null,null,null,null,null,{"$f":"'Schedule XXIII'!T38","v":0}]
["Sch XXIII","Interest Rates",null,"Int. Up - After Shock - Derivatives - Liab. w/o Mgmt Action - Canada Dollars",null,null,null,null,null,null,null,null,{"$f":"'Schedule XXIII'!T39","v":0}]
["Sch XXIII","Interest Rates",null,"Int. Up - After Shock - Derivatives - Liab. w/o Mgmt Action - Swiss Francs",null,null,null,null,null,null,null,null,{"$f":"'Schedule XXIII'!T40","v":0}]
["Sch XXIII","Interest Rates",null,"Int. Up - After Shock - Derivatives - Liab. w/o Mgmt Action - Australia Dollar",null,null,null,null,null,null,null,null,{"$f":"'Schedule XXIII'!T41","v":0}]
["Sch XXIII","Interest Rates",null,"Int. Up - After Shock - Derivatives - Liab. w/o Mgmt Action - New Zealand Dollar",null,null,null,null,null,null,null,null,{"$f":"'Schedule XXIII'!T42","v":0}]
["Sch XXIII","Interest Rates",null,{"$f":"\"Int. Up - After Shock - Derivatives - Liab. w/o Mgmt Action - \"&'Schedule XXIII'!$C$18","v":"Int. Up - After Shock - Derivatives - Liab. w/o Mgmt Action - Other currency 1"},null,null,null,null,null,null,null,null,{"$f":"'Schedule XXIII'!T43","v":0}]
["Sch XXIII","Interest Rates",null,{"$f":"\"Int. Up - After Shock - Derivatives - Liab. w/o Mgmt Action - \"&'Schedule XXIII'!$C$19","v":"Int. Up - After Shock - Derivatives - Liab. w/o Mgmt Action - Other currency 2"},null,null,null,null,null,null,null,null,{"$f":"'Schedule XXIII'!T44","v":0}]
["Sch XXIII","Interest Rates",null,{"$f":"\"Int. Up - After Shock - Derivatives - Liab. w/o Mgmt Action - \"&'Schedule XXIII'!$C$20","v":"Int. Up - After Shock - Derivatives - Liab. w/o Mgmt Action - Other currency 3"},null,null,null,null,null,null,null,null,{"$f":"'Schedule XXIII'!T45","v":0}]
["Sch XXIII","Interest Rates",null,{"$f":"\"Int. Up - After Shock - Derivatives - Liab. w/o Mgmt Action - \"&'Schedule XXIII'!$C$21","v":"Int. Up - After Shock - Derivatives - Liab. w/o Mgmt Action - Other currency 4"},null,null,null,null,null,null,null,null,{"$f":"'Schedule XXIII'!T46","v":0}]
["Sch XXIII","Interest Rates",null,{"$f":"\"Int. Up - After Shock - Derivatives - Liab. w/o Mgmt Action - \"&'Schedule XXIII'!$C$22","v":"Int. Up - After Shock - Derivatives - Liab. w/o Mgmt Action - Other currency 5"},null,null,null,null,null,null,null,null,{"$f":"'Schedule XXIII'!T47","v":0}]
["Sch XXIII","Interest Rates",null,{"$f":"\"Int. Up - After Shock - Derivatives - Liab. w/o Mgmt Action - \"&'Schedule XXIII'!$C$23","v":"Int. Up - After Shock - Derivatives - Liab. w/o Mgmt Action - Other currency 6"},null,null,null,null,null,null,null,null,{"$f":"'Schedule XXIII'!T48","v":0}]
["Sch XXIII","Interest Rates",null,{"$f":"\"Int. Up - After Shock - Derivatives - Liab. w/o Mgmt Action - \"&'Schedule XXIII'!$C$24","v":"Int. Up - After Shock - Derivatives - Liab. w/o Mgmt Action - Other currency 7"},null,null,null,null,null,null,null,null,{"$f":"'Schedule XXIII'!T49","v":0}]
["Sch XXIII","Interest Rates",null,{"$f":"\"Int. Up - After Shock - Derivatives - Liab. w/o Mgmt Action - \"&'Schedule XXIII'!$C$25","v":"Int. Up - After Shock - Derivatives - Liab. w/o Mgmt Action - Other currency 8"},null,null,null,null,null,null,null,null,{"$f":"'Schedule XXIII'!T50","v":0}]
["Sch XXIII","Interest Rates",null,{"$f":"\"Int. Up - After Shock - Derivatives - Liab. w/o Mgmt Action - \"&'Schedule XXIII'!$C$26","v":"Int. Up - After Shock - Derivatives - Liab. w/o Mgmt Action - Other currency 9"},null,null,null,null,null,null,null,null,{"$f":"'Schedule XXIII'!T51","v":0}]
["Sch XXIII","Interest Rates",null,{"$f":"\"Int. Up - After Shock - Derivatives - Liab. w/o Mgmt Action - \"&'Schedule XXIII'!$C$27","v":"Int. Up - After Shock - Derivatives - Liab. w/o Mgmt Action - Other currency 10"},null,null,null,null,null,null,null,null,{"$f":"'Schedule XXIII'!T52","v":0}]
["Sch XXIII","Interest Rates",null,"Int. Up - After Shock - Derivatives - Liab. w/o Mgmt Action - Total",null,null,null,null,null,null,null,null,{"$f":"'Schedule XXIII'!T53","v":0}]
["Sch XXIII","Interest Rates",null,"Int. Up - After Shock - Derivatives - Liab. with Mgmt Action - United States Dollars",null,null,null,null,null,null,null,null,{"$f":"'Schedule XXIII'!V35","v":0}]
["Sch XXIII","Interest Rates",null,"Int. Up - After Shock - Derivatives - Liab. with Mgmt Action - Euro",null,null,null,null,null,null,null,null,{"$f":"'Schedule XXIII'!V36","v":0}]
["Sch XXIII","Interest Rates",null,"Int. Up - After Shock - Derivatives - Liab. with Mgmt Action - United Kingdom Pounds",null,null,null,null,null,null,null,null,{"$f":"'Schedule XXIII'!V37","v":0}]
["Sch XXIII","Interest Rates",null,"Int. Up - After Shock - Derivatives - Liab. with Mgmt Action - Japan Yen",null,null,null,null,null,null,null,null,{"$f":"'Schedule XXIII'!V38","v":0}]
["Sch XXIII","Interest Rates",null,"Int. Up - After Shock - Derivatives - Liab. with Mgmt Action - Canada Dollars",null,null,null,null,null,null,null,null,{"$f":"'Schedule XXIII'!V39","v":0}]
["Sch XXIII","Interest Rates",null,"Int. Up - After Shock - Derivatives - Liab. with Mgmt Action - Swiss Francs",null,null,null,null,null,null,null,null,{"$f":"'Schedule XXIII'!V40","v":0}]
["Sch XXIII","Interest Rates",null,"Int. Up - After Shock - Derivatives - Liab. with Mgmt Action - Australia Dollar",null,null,null,null,null,null,null,null,{"$f":"'Schedule XXIII'!V41","v":0}]
["Sch XXIII","Interest Rates",null,"Int. Up - After Shock - Derivatives - Liab. with Mgmt Action - New Zealand Dollar",null,null,null,null,null,null,null,null,{"$f":"'Schedule XXIII'!V42","v":0}]
["Sch XXIII","Interest Rates",null,{"$f":"\"Int. Up - After Shock - Derivatives - Liab. with Mgmt Action - \"&'Schedule XXIII'!$C$18","v":"Int. Up - After Shock - Derivatives - Liab. with Mgmt Action - Other currency 1"},null,null,null,null,null,null,null,null,{"$f":"'Schedule XXIII'!V43","v":0}]
["Sch XXIII","Interest Rates",null,{"$f":"\"Int. Up - After Shock - Derivatives - Liab. with Mgmt Action - \"&'Schedule XXIII'!$C$19","v":"Int. Up - After Shock - Derivatives - Liab. with Mgmt Action - Other currency 2"},null,null,null,null,null,null,null,null,{"$f":"'Schedule XXIII'!V44","v":0}]
["Sch XXIII","Interest Rates",null,{"$f":"\"Int. Up - After Shock - Derivatives - Liab. with Mgmt Action - \"&'Schedule XXIII'!$C$20","v":"Int. Up - After Shock - Derivatives - Liab. with Mgmt Action - Other currency 3"},null,null,null,null,null,null,null,null,{"$f":"'Schedule XXIII'!V45","v":0}]
["Sch XXIII","Interest Rates",null,{"$f":"\"Int. Up - After Shock - Derivatives - Liab. with Mgmt Action - \"&'Schedule XXIII'!$C$21","v":"Int. Up - After Shock - Derivatives - Liab. with Mgmt Action - Other currency 4"},null,null,null,null,null,null,null,null,{"$f":"'Schedule XXIII'!V46","v":0}]
["Sch XXIII","Interest Rates",null,{"$f":"\"Int. Up - After Shock - Derivatives - Liab. with Mgmt Action - \"&'Schedule XXIII'!$C$22","v":"Int. Up - After Shock - Derivatives - Liab. with Mgmt Action - Other currency 5"},null,null,null,null,null,null,null,null,{"$f":"'Schedule XXIII'!V47","v":0}]
["Sch XXIII","Interest Rates",null,{"$f":"\"Int. Up - After Shock - Derivatives - Liab. with Mgmt Action - \"&'Schedule XXIII'!$C$23","v":"Int. Up - After Shock - Derivatives - Liab. with Mgmt Action - Other currency 6"},null,null,null,null,null,null,null,null,{"$f":"'Schedule XXIII'!V48","v":0}]
["Sch XXIII","Interest Rates",null,{"$f":"\"Int. Up - After Shock - Derivatives - Liab. with Mgmt Action - \"&'Schedule XXIII'!$C$24","v":"Int. Up - After Shock - Derivatives - Liab. with Mgmt Action - Other currency 7"},null,null,null,null,null,null,null,null,{"$f":"'Schedule XXIII'!V49","v":0}]
["Sch XXIII","Interest Rates",null,{"$f":"\"Int. Up - After Shock - Derivatives - Liab. with Mgmt Action - \"&'Schedule XXIII'!$C$25","v":"Int. Up - After Shock - Derivatives - Liab. with Mgmt Action - Other currency 8"},null,null,null,null,null,null,null,null,{"$f":"'Schedule XXIII'!V50","v":0}]
["Sch XXIII","Interest Rates",null,{"$f":"\"Int. Up - After Shock - Derivatives - Liab. with Mgmt Action - \"&'Schedule XXIII'!$C$26","v":"Int. Up - After Shock - Derivatives - Liab. with Mgmt Action - Other currency 9"},null,null,null,null,null,null,null,null,{"$f":"'Schedule XXIII'!V51","v":0}]
["Sch XXIII","Interest Rates",null,{"$f":"\"Int. Up - After Shock - Derivatives - Liab. with Mgmt Action - \"&'Schedule XXIII'!$C$27","v":"Int. Up - After Shock - Derivatives - Liab. with Mgmt Action - Other currency 10"},null,null,null,null,null,null,null,null,{"$f":"'Schedule XXIII'!V52","v":0}]
["Sch XXIII","Interest Rates",null,"Int. Up - After Shock - Derivatives - Liab. with Mgmt Action - Total",null,null,null,null,null,null,null,null,{"$f":"'Schedule XXIII'!V53","v":0}]
[]
["Equity Grandfather","Equity Grandfather",null,"Long Positions - Before - Strategic Holdings - Listed",null,null,null,null,null,null,null,null,{"$f":"'Non-Grandfathered Equity Part'!D15","v":0}]
["Equity Grandfather","Equity Grandfather",null,"Long Positions - Before - Duration Based",null,null,null,null,null,null,null,null,{"$f":"'Non-Grandfathered Equity Part'!D16","v":0}]
["Equity Grandfather","Equity Grandfather",null,"Long Positions - Before - Listed Equity Securities in Developed Markets",null,null,null,null,null,null,null,null,{"$f":"'Non-Grandfathered Equity Part'!D17","v":0}]
["Equity Grandfather","Equity Grandfather",null,"Long Positions - Before - Preferred Stocks, BSCR Rating 1",null,null,null,null,null,null,null,null,{"$f":"'Non-Grandfathered Equity Part'!D18","v":0}]
["Equity Grandfather","Equity Grandfather",null,"Long Positions - Before - Preferred Stocks, BSCR Rating 2",null,null,null,null,null,null,null,null,{"$f":"'Non-Grandfathered Equity Part'!D19","v":0}]
["Equity Grandfather","Equity Grandfather",null,"Long Positions - Before - Preferred Stocks, BSCR Rating 3",null,null,null,null,null,null,null,null,{"$f":"'Non-Grandfathered Equity Part'!D20","v":0}]
["Equity Grandfather","Equity Grandfather",null,"Long Positions - Before - Preferred Stocks, BSCR Rating 4",null,null,null,null,null,null,null,null,{"$f":"'Non-Grandfathered Equity Part'!D21","v":0}]
["Equity Grandfather","Equity Grandfather",null,"Long Positions - Before - Preferred Stocks, BSCR Rating 5",null,null,null,null,null,null,null,null,{"$f":"'Non-Grandfathered Equity Part'!D22","v":0}]
["Equity Grandfather","Equity Grandfather",null,"Long Positions - Before - Preferred Stocks, BSCR Rating 6",null,null,null,null,null,null,null,null,{"$f":"'Non-Grandfathered Equity Part'!D23","v":0}]
["Equity Grandfather","Equity Grandfather",null,"Long Positions - Before - Preferred Stocks, BSCR Rating 7",null,null,null,null,null,null,null,null,{"$f":"'Non-Grandfathered Equity Part'!D24","v":0}]
["Equity Grandfather","Equity Grandfather",null,"Long Positions - Before - Preferred Stocks, BSCR Rating 8",null,null,null,null,null,null,null,null,{"$f":"'Non-Grandfathered Equity Part'!D25","v":0}]
["Equity Grandfather","Equity Grandfather",null,"Long Positions - Before - Equity Derivatives on Type 1 Equities",null,null,null,null,null,null,null,null,{"$f":"'Non-Grandfathered Equity Part'!D26","v":0}]
["Equity Grandfather","Equity Grandfather",null,"Long Positions - Before - Strategic Holdings - Unlisted",null,null,null,null,null,null,null,null,{"$f":"'Non-Grandfathered Equity Part'!D27","v":0}]
["Equity Grandfather","Equity Grandfather",null,"Long Positions - Before - Other Equities",null,null,null,null,null,null,null,null,{"$f":"'Non-Grandfathered Equity Part'!D28","v":0}]
["Equity Grandfather","Equity Grandfather",null,"Long Positions - Before - Letters of Credit",null,null,null,null,null,null,null,null,{"$f":"'Non-Grandfathered Equity Part'!D29","v":0}]
["Equity Grandfather","Equity Grandfather",null,"Long Positions - Before - Intangible assets",null,null,null,null,null,null,null,null,{"$f":"'Non-Grandfathered Equity Part'!D30","v":0}]
["Equity Grandfather","Equity Grandfather",null,"Long Positions - Before - Pension Benefit Surplus",null,null,null,null,null,null,null,null,{"$f":"'Non-Grandfathered Equity Part'!D31","v":0}]
["Equity Grandfather","Equity Grandfather",null,"Long Positions - Before - Equity Derivatives on Type 2 Equities",null,null,null,null,null,null,null,null,{"$f":"'Non-Grandfathered Equity Part'!D32","v":0}]
["Equity Grandfather","Equity Grandfather",null,"Long Positions - Before - Infrastructure",null,null,null,null,null,null,null,null,{"$f":"'Non-Grandfathered Equity Part'!D33","v":0}]
["Equity Grandfather","Equity Grandfather",null,"Long Positions - Before - Derivatives on Infrastructure",null,null,null,null,null,null,null,null,{"$f":"'Non-Grandfathered Equity Part'!D34","v":0}]
["Equity Grandfather","Equity Grandfather",null,"Long Positions - Before - Equity Real Estate 1",null,null,null,null,null,null,null,null,{"$f":"'Non-Grandfathered Equity Part'!D35","v":0}]
["Equity Grandfather","Equity Grandfather",null,"Long Positions - Before - Equity Real Estate 2",null,null,null,null,null,null,null,null,{"$f":"'Non-Grandfathered Equity Part'!D36","v":0}]
["Equity Grandfather","Equity Grandfather",null,"Long Positions - After - Strategic Holdings - Listed",null,null,null,null,null,null,null,null,{"$f":"'Non-Grandfathered Equity Part'!F15","v":0}]
["Equity Grandfather","Equity Grandfather",null,"Long Positions - After - Duration Based",null,null,null,null,null,null,null,null,{"$f":"'Non-Grandfathered Equity Part'!F16","v":0}]
["Equity Grandfather","Equity Grandfather",null,"Long Positions - After - Listed Equity Securities in Developed Markets",null,null,null,null,null,null,null,null,{"$f":"'Non-Grandfathered Equity Part'!F17","v":0}]
["Equity Grandfather","Equity Grandfather",null,"Long Positions - After - Preferred Stocks, BSCR Rating 1",null,null,null,null,null,null,null,null,{"$f":"'Non-Grandfathered Equity Part'!F18","v":0}]
["Equity Grandfather","Equity Grandfather",null,"Long Positions - After - Preferred Stocks, BSCR Rating 2",null,null,null,null,null,null,null,null,{"$f":"'Non-Grandfathered Equity Part'!F19","v":0}]
["Equity Grandfather","Equity Grandfather",null,"Long Positions - After - Preferred Stocks, BSCR Rating 3",null,null,null,null,null,null,null,null,{"$f":"'Non-Grandfathered Equity Part'!F20","v":0}]
["Equity Grandfather","Equity Grandfather",null,"Long Positions - After - Preferred Stocks, BSCR Rating 4",null,null,null,null,null,null,null,null,{"$f":"'Non-Grandfathered Equity Part'!F21","v":0}]
["Equity Grandfather","Equity Grandfather",null,"Long Positions - After - Preferred Stocks, BSCR Rating 5",null,null,null,null,null,null,null,null,{"$f":"'Non-Grandfathered Equity Part'!F22","v":0}]
["Equity Grandfather","Equity Grandfather",null,"Long Positions - After - Preferred Stocks, BSCR Rating 6",null,null,null,null,null,null,null,null,{"$f":"'Non-Grandfathered Equity Part'!F23","v":0}]
["Equity Grandfather","Equity Grandfather",null,"Long Positions - After - Preferred Stocks, BSCR Rating 7",null,null,null,null,null,null,null,null,{"$f":"'Non-Grandfathered Equity Part'!F24","v":0}]
["Equity Grandfather","Equity Grandfather",null,"Long Positions - After - Preferred Stocks, BSCR Rating 8",null,null,null,null,null,null,null,null,{"$f":"'Non-Grandfathered Equity Part'!F25","v":0}]
["Equity Grandfather","Equity Grandfather",null,"Long Positions - After - Equity Derivatives on Type 1 Equities",null,null,null,null,null,null,null,null,{"$f":"'Non-Grandfathered Equity Part'!F26","v":0}]
["Equity Grandfather","Equity Grandfather",null,"Long Positions - After - Strategic Holdings - Unlisted",null,null,null,null,null,null,null,null,{"$f":"'Non-Grandfathered Equity Part'!F27","v":0}]
["Equity Grandfather","Equity Grandfather",null,"Long Positions - After - Other Equities",null,null,null,null,null,null,null,null,{"$f":"'Non-Grandfathered Equity Part'!F28","v":0}]
["Equity Grandfather","Equity Grandfather",null,"Long Positions - After - Letters of Credit",null,null,null,null,null,null,null,null,{"$f":"'Non-Grandfathered Equity Part'!F29","v":0}]
["Equity Grandfather","Equity Grandfather",null,"Long Positions - After - Intangible assets",null,null,null,null,null,null,null,null,{"$f":"'Non-Grandfathered Equity Part'!F30","v":0}]
["Equity Grandfather","Equity Grandfather",null,"Long Positions - After - Pension Benefit Surplus",null,null,null,null,null,null,null,null,{"$f":"'Non-Grandfathered Equity Part'!F31","v":0}]
["Equity Grandfather","Equity Grandfather",null,"Long Positions - After - Equity Derivatives on Type 2 Equities",null,null,null,null,null,null,null,null,{"$f":"'Non-Grandfathered Equity Part'!F32","v":0}]
["Equity Grandfather","Equity Grandfather",null,"Long Positions - After - Infrastructure",null,null,null,null,null,null,null,null,{"$f":"'Non-Grandfathered Equity Part'!F33","v":0}]
["Equity Grandfather","Equity Grandfather",null,"Long Positions - After - Derivatives on Infrastructure",null,null,null,null,null,null,null,null,{"$f":"'Non-Grandfathered Equity Part'!F34","v":0}]
["Equity Grandfather","Equity Grandfather",null,"Long Positions - After - Equity Real Estate 1",null,null,null,null,null,null,null,null,{"$f":"'Non-Grandfathered Equity Part'!F35","v":0}]
["Equity Grandfather","Equity Grandfather",null,"Long Positions - After - Equity Real Estate 2",null,null,null,null,null,null,null,null,{"$f":"'Non-Grandfathered Equity Part'!F36","v":0}]
["Equity Grandfather","Equity Grandfather",null,"Short - Before - Qualified Assets - Strategic Holdings - Listed",null,null,null,null,null,null,null,null,{"$f":"'Non-Grandfathered Equity Part'!H15","v":0}]
["Equity Grandfather","Equity Grandfather",null,"Short - Before - Qualified Assets - Duration Based",null,null,null,null,null,null,null,null,{"$f":"'Non-Grandfathered Equity Part'!H16","v":0}]
["Equity Grandfather","Equity Grandfather",null,"Short - Before - Qualified Assets - Listed Equity Securities in Developed Markets",null,null,null,null,null,null,null,null,{"$f":"'Non-Grandfathered Equity Part'!H17","v":0}]
["Equity Grandfather","Equity Grandfather",null,"Short - Before - Qualified Assets - Preferred Stocks, BSCR Rating 1",null,null,null,null,null,null,null,null,{"$f":"'Non-Grandfathered Equity Part'!H18","v":0}]
["Equity Grandfather","Equity Grandfather",null,"Short - Before - Qualified Assets - Preferred Stocks, BSCR Rating 2",null,null,null,null,null,null,null,null,{"$f":"'Non-Grandfathered Equity Part'!H19","v":0}]
["Equity Grandfather","Equity Grandfather",null,"Short - Before - Qualified Assets - Preferred Stocks, BSCR Rating 3",null,null,null,null,null,null,null,null,{"$f":"'Non-Grandfathered Equity Part'!H20","v":0}]
["Equity Grandfather","Equity Grandfather",null,"Short - Before - Qualified Assets - Preferred Stocks, BSCR Rating 4",null,null,null,null,null,null,null,null,{"$f":"'Non-Grandfathered Equity Part'!H21","v":0}]
["Equity Grandfather","Equity Grandfather",null,"Short - Before - Qualified Assets - Preferred Stocks, BSCR Rating 5",null,null,null,null,null,null,null,null,{"$f":"'Non-Grandfathered Equity Part'!H22","v":0}]
["Equity Grandfather","Equity Grandfather",null,"Short - Before - Qualified Assets - Preferred Stocks, BSCR Rating 6",null,null,null,null,null,null,null,null,{"$f":"'Non-Grandfathered Equity Part'!H23","v":0}]
["Equity Grandfather","Equity Grandfather",null,"Short - Before - Qualified Assets - Preferred Stocks, BSCR Rating 7",null,null,null,null,null,null,null,null,{"$f":"'Non-Grandfathered Equity Part'!H24","v":0}]
["Equity Grandfather","Equity Grandfather",null,"Short - Before - Qualified Assets - Preferred Stocks, BSCR Rating 8",null,null,null,null,null,null,null,null,{"$f":"'Non-Grandfathered Equity Part'!H25","v":0}]
["Equity Grandfather","Equity Grandfather",null,"Short - Before - Qualified Assets - Equity Derivatives on Type 1 Equities",null,null,null,null,null,null,null,null,{"$f":"'Non-Grandfathered Equity Part'!H26","v":0}]
["Equity Grandfather","Equity Grandfather",null,"Short - Before - Qualified Assets - Strategic Holdings - Unlisted",null,null,null,null,null,null,null,null,{"$f":"'Non-Grandfathered Equity Part'!H27","v":0}]
["Equity Grandfather","Equity Grandfather",null,"Short - Before - Qualified Assets - Other Equities",null,null,null,null,null,null,null,null,{"$f":"'Non-Grandfathered Equity Part'!H28","v":0}]
["Equity Grandfather","Equity Grandfather",null,"Short - Before - Qualified Assets - Letters of Credit",null,null,null,null,null,null,null,null,{"$f":"'Non-Grandfathered Equity Part'!H29","v":0}]
["Equity Grandfather","Equity Grandfather",null,"Short - Before - Qualified Assets - Intangible assets",null,null,null,null,null,null,null,null,{"$f":"'Non-Grandfathered Equity Part'!H30","v":0}]
["Equity Grandfather","Equity Grandfather",null,"Short - Before - Qualified Assets - Pension Benefit Surplus",null,null,null,null,null,null,null,null,{"$f":"'Non-Grandfathered Equity Part'!H31","v":0}]
["Equity Grandfather","Equity Grandfather",null,"Short - Before - Qualified Assets - Equity Derivatives on Type 2 Equities",null,null,null,null,null,null,null,null,{"$f":"'Non-Grandfathered Equity Part'!H32","v":0}]
["Equity Grandfather","Equity Grandfather",null,"Short - Before - Qualified Assets - Infrastructure",null,null,null,null,null,null,null,null,{"$f":"'Non-Grandfathered Equity Part'!H33","v":0}]
["Equity Grandfather","Equity Grandfather",null,"Short - Before - Qualified Assets - Derivatives on Infrastructure",null,null,null,null,null,null,null,null,{"$f":"'Non-Grandfathered Equity Part'!H34","v":0}]
["Equity Grandfather","Equity Grandfather",null,"Short - Before - Qualified Assets - Equity Real Estate 1",null,null,null,null,null,null,null,null,{"$f":"'Non-Grandfathered Equity Part'!H35","v":0}]
["Equity Grandfather","Equity Grandfather",null,"Short - Before - Qualified Assets - Equity Real Estate 2",null,null,null,null,null,null,null,null,{"$f":"'Non-Grandfathered Equity Part'!H36","v":0}]
["Equity Grandfather","Equity Grandfather",null,"Short - After - Qualified Assets - Strategic Holdings - Listed",null,null,null,null,null,null,null,null,{"$f":"'Non-Grandfathered Equity Part'!J15","v":0}]
["Equity Grandfather","Equity Grandfather",null,"Short - After - Qualified Assets - Duration Based",null,null,null,null,null,null,null,null,{"$f":"'Non-Grandfathered Equity Part'!J16","v":0}]
["Equity Grandfather","Equity Grandfather",null,"Short - After - Qualified Assets - Listed Equity Securities in Developed Markets",null,null,null,null,null,null,null,null,{"$f":"'Non-Grandfathered Equity Part'!J17","v":0}]
["Equity Grandfather","Equity Grandfather",null,"Short - After - Qualified Assets - Preferred Stocks, BSCR Rating 1",null,null,null,null,null,null,null,null,{"$f":"'Non-Grandfathered Equity Part'!J18","v":0}]
["Equity Grandfather","Equity Grandfather",null,"Short - After - Qualified Assets - Preferred Stocks, BSCR Rating 2",null,null,null,null,null,null,null,null,{"$f":"'Non-Grandfathered Equity Part'!J19","v":0}]
["Equity Grandfather","Equity Grandfather",null,"Short - After - Qualified Assets - Preferred Stocks, BSCR Rating 3",null,null,null,null,null,null,null,null,{"$f":"'Non-Grandfathered Equity Part'!J20","v":0}]
["Equity Grandfather","Equity Grandfather",null,"Short - After - Qualified Assets - Preferred Stocks, BSCR Rating 4",null,null,null,null,null,null,null,null,{"$f":"'Non-Grandfathered Equity Part'!J21","v":0}]
["Equity Grandfather","Equity Grandfather",null,"Short - After - Qualified Assets - Preferred Stocks, BSCR Rating 5",null,null,null,null,null,null,null,null,{"$f":"'Non-Grandfathered Equity Part'!J22","v":0}]
["Equity Grandfather","Equity Grandfather",null,"Short - After - Qualified Assets - Preferred Stocks, BSCR Rating 6",null,null,null,null,null,null,null,null,{"$f":"'Non-Grandfathered Equity Part'!J23","v":0}]
["Equity Grandfather","Equity Grandfather",null,"Short - After - Qualified Assets - Preferred Stocks, BSCR Rating 7",null,null,null,null,null,null,null,null,{"$f":"'Non-Grandfathered Equity Part'!J24","v":0}]
["Equity Grandfather","Equity Grandfather",null,"Short - After - Qualified Assets - Preferred Stocks, BSCR Rating 8",null,null,null,null,null,null,null,null,{"$f":"'Non-Grandfathered Equity Part'!J25","v":0}]
["Equity Grandfather","Equity Grandfather",null,"Short - After - Qualified Assets - Equity Derivatives on Type 1 Equities",null,null,null,null,null,null,null,null,{"$f":"'Non-Grandfathered Equity Part'!J26","v":0}]
["Equity Grandfather","Equity Grandfather",null,"Short - After - Qualified Assets - Strategic Holdings - Unlisted",null,null,null,null,null,null,null,null,{"$f":"'Non-Grandfathered Equity Part'!J27","v":0}]
["Equity Grandfather","Equity Grandfather",null,"Short - After - Qualified Assets - Other Equities",null,null,null,null,null,null,null,null,{"$f":"'Non-Grandfathered Equity Part'!J28","v":0}]
["Equity Grandfather","Equity Grandfather",null,"Short - After - Qualified Assets - Letters of Credit",null,null,null,null,null,null,null,null,{"$f":"'Non-Grandfathered Equity Part'!J29","v":0}]
["Equity Grandfather","Equity Grandfather",null,"Short - After - Qualified Assets - Intangible assets",null,null,null,null,null,null,null,null,{"$f":"'Non-Grandfathered Equity Part'!J30","v":0}]
["Equity Grandfather","Equity Grandfather",null,"Short - After - Qualified Assets - Pension Benefit Surplus",null,null,null,null,null,null,null,null,{"$f":"'Non-Grandfathered Equity Part'!J31","v":0}]
["Equity Grandfather","Equity Grandfather",null,"Short - After - Qualified Assets - Equity Derivatives on Type 2 Equities",null,null,null,null,null,null,null,null,{"$f":"'Non-Grandfathered Equity Part'!J32","v":0}]
["Equity Grandfather","Equity Grandfather",null,"Short - After - Qualified Assets - Infrastructure",null,null,null,null,null,null,null,null,{"$f":"'Non-Grandfathered Equity Part'!J33","v":0}]
["Equity Grandfather","Equity Grandfather",null,"Short - After - Qualified Assets - Derivatives on Infrastructure",null,null,null,null,null,null,null,null,{"$f":"'Non-Grandfathered Equity Part'!J34","v":0}]
["Equity Grandfather","Equity Grandfather",null,"Short - After - Qualified Assets - Equity Real Estate 1",null,null,null,null,null,null,null,null,{"$f":"'Non-Grandfathered Equity Part'!J35","v":0}]
["Equity Grandfather","Equity Grandfather",null,"Short - After - Qualified Assets - Equity Real Estate 2",null,null,null,null,null,null,null,null,{"$f":"'Non-Grandfathered Equity Part'!J36","v":0}]
["Equity Grandfather","Equity Grandfather",null,"Short - Before - UnQualified Assets - Strategic Holdings - Listed",null,null,null,null,null,null,null,null,{"$f":"'Non-Grandfathered Equity Part'!L15","v":0}]
["Equity Grandfather","Equity Grandfather",null,"Short - Before - UnQualified Assets - Duration Based",null,null,null,null,null,null,null,null,{"$f":"'Non-Grandfathered Equity Part'!L16","v":0}]
["Equity Grandfather","Equity Grandfather",null,"Short - Before - UnQualified Assets - Listed Equity Securities in Developed Markets",null,null,null,null,null,null,null,null,{"$f":"'Non-Grandfathered Equity Part'!L17","v":0}]
["Equity Grandfather","Equity Grandfather",null,"Short - Before - UnQualified Assets - Preferred Stocks, BSCR Rating 1",null,null,null,null,null,null,null,null,{"$f":"'Non-Grandfathered Equity Part'!L18","v":0}]
["Equity Grandfather","Equity Grandfather",null,"Short - Before - UnQualified Assets - Preferred Stocks, BSCR Rating 2",null,null,null,null,null,null,null,null,{"$f":"'Non-Grandfathered Equity Part'!L19","v":0}]
["Equity Grandfather","Equity Grandfather",null,"Short - Before - UnQualified Assets - Preferred Stocks, BSCR Rating 3",null,null,null,null,null,null,null,null,{"$f":"'Non-Grandfathered Equity Part'!L20","v":0}]
["Equity Grandfather","Equity Grandfather",null,"Short - Before - UnQualified Assets - Preferred Stocks, BSCR Rating 4",null,null,null,null,null,null,null,null,{"$f":"'Non-Grandfathered Equity Part'!L21","v":0}]
["Equity Grandfather","Equity Grandfather",null,"Short - Before - UnQualified Assets - Preferred Stocks, BSCR Rating 5",null,null,null,null,null,null,null,null,{"$f":"'Non-Grandfathered Equity Part'!L22","v":0}]
["Equity Grandfather","Equity Grandfather",null,"Short - Before - UnQualified Assets - Preferred Stocks, BSCR Rating 6",null,null,null,null,null,null,null,null,{"$f":"'Non-Grandfathered Equity Part'!L23","v":0}]
["Equity Grandfather","Equity Grandfather",null,"Short - Before - UnQualified Assets - Preferred Stocks, BSCR Rating 7",null,null,null,null,null,null,null,null,{"$f":"'Non-Grandfathered Equity Part'!L24","v":0}]
["Equity Grandfather","Equity Grandfather",null,"Short - Before - UnQualified Assets - Preferred Stocks, BSCR Rating 8",null,null,null,null,null,null,null,null,{"$f":"'Non-Grandfathered Equity Part'!L25","v":0}]
["Equity Grandfather","Equity Grandfather",null,"Short - Before - UnQualified Assets - Equity Derivatives on Type 1 Equities",null,null,null,null,null,null,null,null,{"$f":"'Non-Grandfathered Equity Part'!L26","v":0}]
["Equity Grandfather","Equity Grandfather",null,"Short - Before - UnQualified Assets - Strategic Holdings - Unlisted",null,null,null,null,null,null,null,null,{"$f":"'Non-Grandfathered Equity Part'!L27","v":0}]
["Equity Grandfather","Equity Grandfather",null,"Short - Before - UnQualified Assets - Other Equities",null,null,null,null,null,null,null,null,{"$f":"'Non-Grandfathered Equity Part'!L28","v":0}]
["Equity Grandfather","Equity Grandfather",null,"Short - Before - UnQualified Assets - Letters of Credit",null,null,null,null,null,null,null,null,{"$f":"'Non-Grandfathered Equity Part'!L29","v":0}]
["Equity Grandfather","Equity Grandfather",null,"Short - Before - UnQualified Assets - Intangible assets",null,null,null,null,null,null,null,null,{"$f":"'Non-Grandfathered Equity Part'!L30","v":0}]
["Equity Grandfather","Equity Grandfather",null,"Short - Before - UnQualified Assets - Pension Benefit Surplus",null,null,null,null,null,null,null,null,{"$f":"'Non-Grandfathered Equity Part'!L31","v":0}]
["Equity Grandfather","Equity Grandfather",null,"Short - Before - UnQualified Assets - Equity Derivatives on Type 2 Equities",null,null,null,null,null,null,null,null,{"$f":"'Non-Grandfathered Equity Part'!L32","v":0}]
["Equity Grandfather","Equity Grandfather",null,"Short - Before - UnQualified Assets - Infrastructure",null,null,null,null,null,null,null,null,{"$f":"'Non-Grandfathered Equity Part'!L33","v":0}]
["Equity Grandfather","Equity Grandfather",null,"Short - Before - UnQualified Assets - Derivatives on Infrastructure",null,null,null,null,null,null,null,null,{"$f":"'Non-Grandfathered Equity Part'!L34","v":0}]
["Equity Grandfather","Equity Grandfather",null,"Short - Before - UnQualified Assets - Equity Real Estate 1",null,null,null,null,null,null,null,null,{"$f":"'Non-Grandfathered Equity Part'!L35","v":0}]
["Equity Grandfather","Equity Grandfather",null,"Short - Before - UnQualified Assets - Equity Real Estate 2",null,null,null,null,null,null,null,null,{"$f":"'Non-Grandfathered Equity Part'!L36","v":0}]
["Equity Grandfather","Equity Grandfather",null,"Short - After - UnQualified Assets - Strategic Holdings - Listed",null,null,null,null,null,null,null,null,{"$f":"'Non-Grandfathered Equity Part'!N15","v":0}]
["Equity Grandfather","Equity Grandfather",null,"Short - After - UnQualified Assets - Duration Based",null,null,null,null,null,null,null,null,{"$f":"'Non-Grandfathered Equity Part'!N16","v":0}]
["Equity Grandfather","Equity Grandfather",null,"Short - After - UnQualified Assets - Listed Equity Securities in Developed Markets",null,null,null,null,null,null,null,null,{"$f":"'Non-Grandfathered Equity Part'!N17","v":0}]
["Equity Grandfather","Equity Grandfather",null,"Short - After - UnQualified Assets - Preferred Stocks, BSCR Rating 1",null,null,null,null,null,null,null,null,{"$f":"'Non-Grandfathered Equity Part'!N18","v":0}]
["Equity Grandfather","Equity Grandfather",null,"Short - After - UnQualified Assets - Preferred Stocks, BSCR Rating 2",null,null,null,null,null,null,null,null,{"$f":"'Non-Grandfathered Equity Part'!N19","v":0}]
["Equity Grandfather","Equity Grandfather",null,"Short - After - UnQualified Assets - Preferred Stocks, BSCR Rating 3",null,null,null,null,null,null,null,null,{"$f":"'Non-Grandfathered Equity Part'!N20","v":0}]
["Equity Grandfather","Equity Grandfather",null,"Short - After - UnQualified Assets - Preferred Stocks, BSCR Rating 4",null,null,null,null,null,null,null,null,{"$f":"'Non-Grandfathered Equity Part'!N21","v":0}]
["Equity Grandfather","Equity Grandfather",null,"Short - After - UnQualified Assets - Preferred Stocks, BSCR Rating 5",null,null,null,null,null,null,null,null,{"$f":"'Non-Grandfathered Equity Part'!N22","v":0}]
["Equity Grandfather","Equity Grandfather",null,"Short - After - UnQualified Assets - Preferred Stocks, BSCR Rating 6",null,null,null,null,null,null,null,null,{"$f":"'Non-Grandfathered Equity Part'!N23","v":0}]
["Equity Grandfather","Equity Grandfather",null,"Short - After - UnQualified Assets - Preferred Stocks, BSCR Rating 7",null,null,null,null,null,null,null,null,{"$f":"'Non-Grandfathered Equity Part'!N24","v":0}]
["Equity Grandfather","Equity Grandfather",null,"Short - After - UnQualified Assets - Preferred Stocks, BSCR Rating 8",null,null,null,null,null,null,null,null,{"$f":"'Non-Grandfathered Equity Part'!N25","v":0}]
["Equity Grandfather","Equity Grandfather",null,"Short - After - UnQualified Assets - Equity Derivatives on Type 1 Equities",null,null,null,null,null,null,null,null,{"$f":"'Non-Grandfathered Equity Part'!N26","v":0}]
["Equity Grandfather","Equity Grandfather",null,"Short - After - UnQualified Assets - Strategic Holdings - Unlisted",null,null,null,null,null,null,null,null,{"$f":"'Non-Grandfathered Equity Part'!N27","v":0}]
["Equity Grandfather","Equity Grandfather",null,"Short - After - UnQualified Assets - Other Equities",null,null,null,null,null,null,null,null,{"$f":"'Non-Grandfathered Equity Part'!N28","v":0}]
["Equity Grandfather","Equity Grandfather",null,"Short - After - UnQualified Assets - Letters of Credit",null,null,null,null,null,null,null,null,{"$f":"'Non-Grandfathered Equity Part'!N29","v":0}]
["Equity Grandfather","Equity Grandfather",null,"Short - After - UnQualified Assets - Intangible assets",null,null,null,null,null,null,null,null,{"$f":"'Non-Grandfathered Equity Part'!N30","v":0}]
["Equity Grandfather","Equity Grandfather",null,"Short - After - UnQualified Assets - Pension Benefit Surplus",null,null,null,null,null,null,null,null,{"$f":"'Non-Grandfathered Equity Part'!N31","v":0}]
["Equity Grandfather","Equity Grandfather",null,"Short - After - UnQualified Assets - Equity Derivatives on Type 2 Equities",null,null,null,null,null,null,null,null,{"$f":"'Non-Grandfathered Equity Part'!N32","v":0}]
["Equity Grandfather","Equity Grandfather",null,"Short - After - UnQualified Assets - Infrastructure",null,null,null,null,null,null,null,null,{"$f":"'Non-Grandfathered Equity Part'!N33","v":0}]
["Equity Grandfather","Equity Grandfather",null,"Short - After - UnQualified Assets - Derivatives on Infrastructure",null,null,null,null,null,null,null,null,{"$f":"'Non-Grandfathered Equity Part'!N34","v":0}]
["Equity Grandfather","Equity Grandfather",null,"Short - After - UnQualified Assets - Equity Real Estate 1",null,null,null,null,null,null,null,null,{"$f":"'Non-Grandfathered Equity Part'!N35","v":0}]
["Equity Grandfather","Equity Grandfather",null,"Short - After - UnQualified Assets - Equity Real Estate 2",null,null,null,null,null,null,null,null,{"$f":"'Non-Grandfathered Equity Part'!N36","v":0}]
["Equity Grandfather","Equity Grandfather",null,"Liabilities - Before - W/O Mgmt Actions - Strategic Holdings - Listed",null,null,null,null,null,null,null,null,{"$f":"'Non-Grandfathered Equity Part'!P15","v":0}]
["Equity Grandfather","Equity Grandfather",null,"Liabilities - Before - W/O Mgmt Actions - Duration Based",null,null,null,null,null,null,null,null,{"$f":"'Non-Grandfathered Equity Part'!P16","v":0}]
["Equity Grandfather","Equity Grandfather",null,"Liabilities - Before - W/O Mgmt Actions - Listed Equity Securities in Developed Markets",null,null,null,null,null,null,null,null,{"$f":"'Non-Grandfathered Equity Part'!P17","v":0}]
["Equity Grandfather","Equity Grandfather",null,"Liabilities - Before - W/O Mgmt Actions - Preferred Stocks, BSCR Rating 1",null,null,null,null,null,null,null,null,{"$f":"'Non-Grandfathered Equity Part'!P18","v":0}]
["Equity Grandfather","Equity Grandfather",null,"Liabilities - Before - W/O Mgmt Actions - Preferred Stocks, BSCR Rating 2",null,null,null,null,null,null,null,null,{"$f":"'Non-Grandfathered Equity Part'!P19","v":0}]
["Equity Grandfather","Equity Grandfather",null,"Liabilities - Before - W/O Mgmt Actions - Preferred Stocks, BSCR Rating 3",null,null,null,null,null,null,null,null,{"$f":"'Non-Grandfathered Equity Part'!P20","v":0}]
["Equity Grandfather","Equity Grandfather",null,"Liabilities - Before - W/O Mgmt Actions - Preferred Stocks, BSCR Rating 4",null,null,null,null,null,null,null,null,{"$f":"'Non-Grandfathered Equity Part'!P21","v":0}]
["Equity Grandfather","Equity Grandfather",null,"Liabilities - Before - W/O Mgmt Actions - Preferred Stocks, BSCR Rating 5",null,null,null,null,null,null,null,null,{"$f":"'Non-Grandfathered Equity Part'!P22","v":0}]
["Equity Grandfather","Equity Grandfather",null,"Liabilities - Before - W/O Mgmt Actions - Preferred Stocks, BSCR Rating 6",null,null,null,null,null,null,null,null,{"$f":"'Non-Grandfathered Equity Part'!P23","v":0}]
["Equity Grandfather","Equity Grandfather",null,"Liabilities - Before - W/O Mgmt Actions - Preferred Stocks, BSCR Rating 7",null,null,null,null,null,null,null,null,{"$f":"'Non-Grandfathered Equity Part'!P24","v":0}]
["Equity Grandfather","Equity Grandfather",null,"Liabilities - Before - W/O Mgmt Actions - Preferred Stocks, BSCR Rating 8",null,null,null,null,null,null,null,null,{"$f":"'Non-Grandfathered Equity Part'!P25","v":0}]
["Equity Grandfather","Equity Grandfather",null,"Liabilities - Before - W/O Mgmt Actions - Equity Derivatives on Type 1 Equities",null,null,null,null,null,null,null,null,{"$f":"'Non-Grandfathered Equity Part'!P26","v":0}]
["Equity Grandfather","Equity Grandfather",null,"Liabilities - Before - W/O Mgmt Actions - Strategic Holdings - Unlisted",null,null,null,null,null,null,null,null,{"$f":"'Non-Grandfathered Equity Part'!P27","v":0}]
["Equity Grandfather","Equity Grandfather",null,"Liabilities - Before - W/O Mgmt Actions - Other Equities",null,null,null,null,null,null,null,null,{"$f":"'Non-Grandfathered Equity Part'!P28","v":0}]
["Equity Grandfather","Equity Grandfather",null,"Liabilities - Before - W/O Mgmt Actions - Letters of Credit",null,null,null,null,null,null,null,null,{"$f":"'Non-Grandfathered Equity Part'!P29","v":0}]
["Equity Grandfather","Equity Grandfather",null,"Liabilities - Before - W/O Mgmt Actions - Intangible assets",null,null,null,null,null,null,null,null,{"$f":"'Non-Grandfathered Equity Part'!P30","v":0}]
["Equity Grandfather","Equity Grandfather",null,"Liabilities - Before - W/O Mgmt Actions - Pension Benefit Surplus",null,null,null,null,null,null,null,null,{"$f":"'Non-Grandfathered Equity Part'!P31","v":0}]
["Equity Grandfather","Equity Grandfather",null,"Liabilities - Before - W/O Mgmt Actions - Equity Derivatives on Type 2 Equities",null,null,null,null,null,null,null,null,{"$f":"'Non-Grandfathered Equity Part'!P32","v":0}]
["Equity Grandfather","Equity Grandfather",null,"Liabilities - Before - W/O Mgmt Actions - Infrastructure",null,null,null,null,null,null,null,null,{"$f":"'Non-Grandfathered Equity Part'!P33","v":0}]
["Equity Grandfather","Equity Grandfather",null,"Liabilities - Before - W/O Mgmt Actions - Derivatives on Infrastructure",null,null,null,null,null,null,null,null,{"$f":"'Non-Grandfathered Equity Part'!P34","v":0}]
["Equity Grandfather","Equity Grandfather",null,"Liabilities - Before - W/O Mgmt Actions - Equity Real Estate 1",null,null,null,null,null,null,null,null,{"$f":"'Non-Grandfathered Equity Part'!P35","v":0}]
["Equity Grandfather","Equity Grandfather",null,"Liabilities - Before - W/O Mgmt Actions - Equity Real Estate 2",null,null,null,null,null,null,null,null,{"$f":"'Non-Grandfathered Equity Part'!P36","v":0}]
["Equity Grandfather","Equity Grandfather",null,"Liabilities - After - W/O Mgmt Actions - Strategic Holdings - Listed",null,null,null,null,null,null,null,null,{"$f":"'Non-Grandfathered Equity Part'!R15","v":0}]
["Equity Grandfather","Equity Grandfather",null,"Liabilities - After - W/O Mgmt Actions - Duration Based",null,null,null,null,null,null,null,null,{"$f":"'Non-Grandfathered Equity Part'!R16","v":0}]
["Equity Grandfather","Equity Grandfather",null,"Liabilities - After - W/O Mgmt Actions - Listed Equity Securities in Developed Markets",null,null,null,null,null,null,null,null,{"$f":"'Non-Grandfathered Equity Part'!R17","v":0}]
["Equity Grandfather","Equity Grandfather",null,"Liabilities - After - W/O Mgmt Actions - Preferred Stocks, BSCR Rating 1",null,null,null,null,null,null,null,null,{"$f":"'Non-Grandfathered Equity Part'!R18","v":0}]
["Equity Grandfather","Equity Grandfather",null,"Liabilities - After - W/O Mgmt Actions - Preferred Stocks, BSCR Rating 2",null,null,null,null,null,null,null,null,{"$f":"'Non-Grandfathered Equity Part'!R19","v":0}]
["Equity Grandfather","Equity Grandfather",null,"Liabilities - After - W/O Mgmt Actions - Preferred Stocks, BSCR Rating 3",null,null,null,null,null,null,null,null,{"$f":"'Non-Grandfathered Equity Part'!R20","v":0}]
["Equity Grandfather","Equity Grandfather",null,"Liabilities - After - W/O Mgmt Actions - Preferred Stocks, BSCR Rating 4",null,null,null,null,null,null,null,null,{"$f":"'Non-Grandfathered Equity Part'!R21","v":0}]
["Equity Grandfather","Equity Grandfather",null,"Liabilities - After - W/O Mgmt Actions - Preferred Stocks, BSCR Rating 5",null,null,null,null,null,null,null,null,{"$f":"'Non-Grandfathered Equity Part'!R22","v":0}]
["Equity Grandfather","Equity Grandfather",null,"Liabilities - After - W/O Mgmt Actions - Preferred Stocks, BSCR Rating 6",null,null,null,null,null,null,null,null,{"$f":"'Non-Grandfathered Equity Part'!R23","v":0}]
["Equity Grandfather","Equity Grandfather",null,"Liabilities - After - W/O Mgmt Actions - Preferred Stocks, BSCR Rating 7",null,null,null,null,null,null,null,null,{"$f":"'Non-Grandfathered Equity Part'!R24","v":0}]
["Equity Grandfather","Equity Grandfather",null,"Liabilities - After - W/O Mgmt Actions - Preferred Stocks, BSCR Rating 8",null,null,null,null,null,null,null,null,{"$f":"'Non-Grandfathered Equity Part'!R25","v":0}]
["Equity Grandfather","Equity Grandfather",null,"Liabilities - After - W/O Mgmt Actions - Equity Derivatives on Type 1 Equities",null,null,null,null,null,null,null,null,{"$f":"'Non-Grandfathered Equity Part'!R26","v":0}]
["Equity Grandfather","Equity Grandfather",null,"Liabilities - After - W/O Mgmt Actions - Strategic Holdings - Unlisted",null,null,null,null,null,null,null,null,{"$f":"'Non-Grandfathered Equity Part'!R27","v":0}]
["Equity Grandfather","Equity Grandfather",null,"Liabilities - After - W/O Mgmt Actions - Other Equities",null,null,null,null,null,null,null,null,{"$f":"'Non-Grandfathered Equity Part'!R28","v":0}]
["Equity Grandfather","Equity Grandfather",null,"Liabilities - After - W/O Mgmt Actions - Letters of Credit",null,null,null,null,null,null,null,null,{"$f":"'Non-Grandfathered Equity Part'!R29","v":0}]
["Equity Grandfather","Equity Grandfather",null,"Liabilities - After - W/O Mgmt Actions - Intangible assets",null,null,null,null,null,null,null,null,{"$f":"'Non-Grandfathered Equity Part'!R30","v":0}]
["Equity Grandfather","Equity Grandfather",null,"Liabilities - After - W/O Mgmt Actions - Pension Benefit Surplus",null,null,null,null,null,null,null,null,{"$f":"'Non-Grandfathered Equity Part'!R31","v":0}]
["Equity Grandfather","Equity Grandfather",null,"Liabilities - After - W/O Mgmt Actions - Equity Derivatives on Type 2 Equities",null,null,null,null,null,null,null,null,{"$f":"'Non-Grandfathered Equity Part'!R32","v":0}]
["Equity Grandfather","Equity Grandfather",null,"Liabilities - After - W/O Mgmt Actions - Infrastructure",null,null,null,null,null,null,null,null,{"$f":"'Non-Grandfathered Equity Part'!R33","v":0}]
["Equity Grandfather","Equity Grandfather",null,"Liabilities - After - W/O Mgmt Actions - Derivatives on Infrastructure",null,null,null,null,null,null,null,null,{"$f":"'Non-Grandfathered Equity Part'!R34","v":0}]
["Equity Grandfather","Equity Grandfather",null,"Liabilities - After - W/O Mgmt Actions - Equity Real Estate 1",null,null,null,null,null,null,null,null,{"$f":"'Non-Grandfathered Equity Part'!R35","v":0}]
["Equity Grandfather","Equity Grandfather",null,"Liabilities - After - W/O Mgmt Actions - Equity Real Estate 2",null,null,null,null,null,null,null,null,{"$f":"'Non-Grandfathered Equity Part'!R36","v":0}]
["Equity Grandfather","Equity Grandfather",null,"Liabilities - After - With Mgmt Actions - Strategic Holdings - Listed",null,null,null,null,null,null,null,null,{"$f":"'Non-Grandfathered Equity Part'!T15","v":0}]
["Equity Grandfather","Equity Grandfather",null,"Liabilities - After - With Mgmt Actions - Duration Based",null,null,null,null,null,null,null,null,{"$f":"'Non-Grandfathered Equity Part'!T16","v":0}]
["Equity Grandfather","Equity Grandfather",null,"Liabilities - After - With Mgmt Actions - Listed Equity Securities in Developed Markets",null,null,null,null,null,null,null,null,{"$f":"'Non-Grandfathered Equity Part'!T17","v":0}]
["Equity Grandfather","Equity Grandfather",null,"Liabilities - After - With Mgmt Actions - Preferred Stocks, BSCR Rating 1",null,null,null,null,null,null,null,null,{"$f":"'Non-Grandfathered Equity Part'!T18","v":0}]
["Equity Grandfather","Equity Grandfather",null,"Liabilities - After - With Mgmt Actions - Preferred Stocks, BSCR Rating 2",null,null,null,null,null,null,null,null,{"$f":"'Non-Grandfathered Equity Part'!T19","v":0}]
["Equity Grandfather","Equity Grandfather",null,"Liabilities - After - With Mgmt Actions - Preferred Stocks, BSCR Rating 3",null,null,null,null,null,null,null,null,{"$f":"'Non-Grandfathered Equity Part'!T20","v":0}]
["Equity Grandfather","Equity Grandfather",null,"Liabilities - After - With Mgmt Actions - Preferred Stocks, BSCR Rating 4",null,null,null,null,null,null,null,null,{"$f":"'Non-Grandfathered Equity Part'!T21","v":0}]
["Equity Grandfather","Equity Grandfather",null,"Liabilities - After - With Mgmt Actions - Preferred Stocks, BSCR Rating 5",null,null,null,null,null,null,null,null,{"$f":"'Non-Grandfathered Equity Part'!T22","v":0}]
["Equity Grandfather","Equity Grandfather",null,"Liabilities - After - With Mgmt Actions - Preferred Stocks, BSCR Rating 6",null,null,null,null,null,null,null,null,{"$f":"'Non-Grandfathered Equity Part'!T23","v":0}]
["Equity Grandfather","Equity Grandfather",null,"Liabilities - After - With Mgmt Actions - Preferred Stocks, BSCR Rating 7",null,null,null,null,null,null,null,null,{"$f":"'Non-Grandfathered Equity Part'!T24","v":0}]
["Equity Grandfather","Equity Grandfather",null,"Liabilities - After - With Mgmt Actions - Preferred Stocks, BSCR Rating 8",null,null,null,null,null,null,null,null,{"$f":"'Non-Grandfathered Equity Part'!T25","v":0}]
["Equity Grandfather","Equity Grandfather",null,"Liabilities - After - With Mgmt Actions - Equity Derivatives on Type 1 Equities",null,null,null,null,null,null,null,null,{"$f":"'Non-Grandfathered Equity Part'!T26","v":0}]
["Equity Grandfather","Equity Grandfather",null,"Liabilities - After - With Mgmt Actions - Strategic Holdings - Unlisted",null,null,null,null,null,null,null,null,{"$f":"'Non-Grandfathered Equity Part'!T27","v":0}]
["Equity Grandfather","Equity Grandfather",null,"Liabilities - After - With Mgmt Actions - Other Equities",null,null,null,null,null,null,null,null,{"$f":"'Non-Grandfathered Equity Part'!T28","v":0}]
["Equity Grandfather","Equity Grandfather",null,"Liabilities - After - With Mgmt Actions - Letters of Credit",null,null,null,null,null,null,null,null,{"$f":"'Non-Grandfathered Equity Part'!T29","v":0}]
["Equity Grandfather","Equity Grandfather",null,"Liabilities - After - With Mgmt Actions - Intangible assets",null,null,null,null,null,null,null,null,{"$f":"'Non-Grandfathered Equity Part'!T30","v":0}]
["Equity Grandfather","Equity Grandfather",null,"Liabilities - After - With Mgmt Actions - Pension Benefit Surplus",null,null,null,null,null,null,null,null,{"$f":"'Non-Grandfathered Equity Part'!T31","v":0}]
["Equity Grandfather","Equity Grandfather",null,"Liabilities - After - With Mgmt Actions - Equity Derivatives on Type 2 Equities",null,null,null,null,null,null,null,null,{"$f":"'Non-Grandfathered Equity Part'!T32","v":0}]
["Equity Grandfather","Equity Grandfather",null,"Liabilities - After - With Mgmt Actions - Infrastructure",null,null,null,null,null,null,null,null,{"$f":"'Non-Grandfathered Equity Part'!T33","v":0}]
["Equity Grandfather","Equity Grandfather",null,"Liabilities - After - With Mgmt Actions - Derivatives on Infrastructure",null,null,null,null,null,null,null,null,{"$f":"'Non-Grandfathered Equity Part'!T34","v":0}]
["Equity Grandfather","Equity Grandfather",null,"Liabilities - After - With Mgmt Actions - Equity Real Estate 1",null,null,null,null,null,null,null,null,{"$f":"'Non-Grandfathered Equity Part'!T35","v":0}]
["Equity Grandfather","Equity Grandfather",null,"Liabilities - After - With Mgmt Actions - Equity Real Estate 2",null,null,null,null,null,null,null,null,{"$f":"'Non-Grandfathered Equity Part'!T36","v":0}]
[]
["Equity Grandfather","Equity Grandfather",null,"Common Shares - Quoted",null,null,null,null,null,null,null,null,{"$f":"'Grandfathered Equity Part'!D11","v":0}]
["Equity Grandfather","Equity Grandfather",null,"Common Shares - Unquoted",null,null,null,null,null,null,null,null,{"$f":"'Grandfathered Equity Part'!D12","v":0}]
["Equity Grandfather","Equity Grandfather",null,"Equity Mutual Funds",null,null,null,null,null,null,null,null,{"$f":"'Grandfathered Equity Part'!D13","v":0}]
["Equity Grandfather","Equity Grandfather",null,"Preferred Shares - BSCR Rate 1",null,null,null,null,null,null,null,null,{"$f":"'Grandfathered Equity Part'!D20","v":0}]
["Equity Grandfather","Equity Grandfather",null,"Preferred Shares - BSCR Rate 2",null,null,null,null,null,null,null,null,{"$f":"'Grandfathered Equity Part'!D21","v":0}]
["Equity Grandfather","Equity Grandfather",null,"Preferred Shares - BSCR Rate 3",null,null,null,null,null,null,null,null,{"$f":"'Grandfathered Equity Part'!D22","v":0}]
["Equity Grandfather","Equity Grandfather",null,"Preferred Shares - BSCR Rate 4",null,null,null,null,null,null,null,null,{"$f":"'Grandfathered Equity Part'!D23","v":0}]
["Equity Grandfather","Equity Grandfather",null,"Preferred Shares - BSCR Rate 5",null,null,null,null,null,null,null,null,{"$f":"'Grandfathered Equity Part'!D24","v":0}]
["Equity Grandfather","Equity Grandfather",null,"Preferred Shares - BSCR Rate 6",null,null,null,null,null,null,null,null,{"$f":"'Grandfathered Equity Part'!D25","v":0}]
["Equity Grandfather","Equity Grandfather",null,"Preferred Shares - BSCR Rate 7",null,null,null,null,null,null,null,null,{"$f":"'Grandfathered Equity Part'!D26","v":0}]
["Equity Grandfather","Equity Grandfather",null,"Preferred Shares - BSCR Rate 8",null,null,null,null,null,null,null,null,{"$f":"'Grandfathered Equity Part'!D27","v":0}]
["Equity Grandfather","Equity Grandfather",null,"Real Estate - Occupied by Company",null,null,null,null,null,null,null,null,{"$f":"'Grandfathered Equity Part'!D34","v":0}]
["Equity Grandfather","Equity Grandfather",null,"Real Estate - Other",null,null,null,null,null,null,null,null,{"$f":"'Grandfathered Equity Part'!D35","v":0}]
["Equity Grandfather","Equity Grandfather",null,"Other Investments",null,null,null,null,null,null,null,null,{"$f":"'Grandfathered Equity Part'!D37","v":0}]
["Equity Grandfather","Equity Grandfather",null,"Sundry Assets",null,null,null,null,null,null,null,null,{"$f":"'Grandfathered Equity Part'!D38","v":0}]
["Equity Grandfather","Equity Grandfather",null,"Inv. In Affiliates - Unregulated Ancillary",null,null,null,null,null,null,null,null,{"$f":"'Grandfathered Equity Part'!D44","v":0}]
["Equity Grandfather","Equity Grandfather",null,"Inv. In Affiliates - Unregulated Non-Fin. Oper.",null,null,null,null,null,null,null,null,{"$f":"'Grandfathered Equity Part'!D45","v":0}]
["Equity Grandfather","Equity Grandfather",null,"Inv. In Affiliates - Unregulated Fin. Operating",null,null,null,null,null,null,null,null,{"$f":"'Grandfathered Equity Part'!D46","v":0}]
["Equity Grandfather","Equity Grandfather",null,"Inv. In Affiliates - Regulated Insurance",null,null,null,null,null,null,null,null,{"$f":"'Grandfathered Equity Part'!D47","v":0}]
[]
["AML","AML Questionnaire",null,"A.1 # of Policies",{"$f":"'AML (LT Direct Only)'!I10","v":0}]
["AML","AML Questionnaire",null,"A.2 Risk Rate Policies",{"$f":"'AML (LT Direct Only)'!I12","v":"Select Yes/No"}]
["AML","AML Questionnaire",null,"A.3 # Policies - Low Risk",{"$f":"'AML (LT Direct Only)'!I16","v":0}]
["AML","AML Questionnaire",null,"A.3 # Policies - Medium Risk",{"$f":"'AML (LT Direct Only)'!I17","v":0}]
["AML","AML Questionnaire",null,"A.3 # Policies - High Risk",{"$f":"'AML (LT Direct Only)'!I18","v":0}]
["AML","AML Questionnaire",null,"A.3 # Policies - Unknown Risk",{"$f":"'AML (LT Direct Only)'!I19","v":0}]
["AML","AML Questionnaire",null,"A.3 # Policies - Total Risk",{"$f":"'AML (LT Direct Only)'!I20","v":0}]
["AML","AML Questionnaire",null,"B.1 GPW",{"$f":"'AML (LT Direct Only)'!I22","v":0}]
["AML","AML Questionnaire",null,"B.1(a) % Unrelated",{"$f":"'AML (LT Direct Only)'!I23","v":0}]
["AML","AML Questionnaire",null,"B.1(b) % incidental",{"$f":"'AML (LT Direct Only)'!I24","v":0}]
["AML","AML Questionnaire",null,"B.1 GPW - (i) Mortality - Term Assurance",{"$f":"'AML (LT Direct Only)'!G29","v":0}]
["AML","AML Questionnaire",null,"B.1 GPW - (ii) Mortality - Whole Life",{"$f":"'AML (LT Direct Only)'!G30","v":0}]
["AML","AML Questionnaire",null,"B.1 GPW - (iii) Mortality - Universal Life",{"$f":"'AML (LT Direct Only)'!G31","v":0}]
["AML","AML Questionnaire",null,"B.1 GPW - (b) Critical Illness ",{"$f":"'AML (LT Direct Only)'!G32","v":0}]
["AML","AML Questionnaire",null,"B.1 GPW - (c) Longevity (immediate pay-out annuities)",{"$f":"'AML (LT Direct Only)'!G33","v":0}]
["AML","AML Questionnaire",null,"B.1 GPW - (d) Longevity (deferred pay-out annuities)",{"$f":"'AML (LT Direct Only)'!G34","v":0}]
["AML","AML Questionnaire",null,"B.1 GPW - (e) Annuities certain only",{"$f":"'AML (LT Direct Only)'!G35","v":0}]
["AML","AML Questionnaire",null,"B.1 GPW - (f) Deferred accumulation annuities",{"$f":"'AML (LT Direct Only)'!G36","v":0}]
["AML","AML Questionnaire",null,"B.1 GPW - (g) Disability Income: active lives - including waiver of premium and long-term care",{"$f":"'AML (LT Direct Only)'!G37","v":0}]
["AML","AML Questionnaire",null,"B.1 GPW - (h) Disability income: active lives - other accident and sickness",{"$f":"'AML (LT Direct Only)'!G38","v":0}]
["AML","AML Questionnaire",null,"B.1 GPW - (i) Disability income: claims in payment - including waiver of premium and long-term care",{"$f":"'AML (LT Direct Only)'!G39","v":0}]
["AML","AML Questionnaire",null,"B.1 GPW - (j) Disability income: claims in payment - other accident and sickness",{"$f":"'AML (LT Direct Only)'!G40","v":0}]
["AML","AML Questionnaire",null,"B.1 GPW - (k) Group Life",{"$f":"'AML (LT Direct Only)'!G41","v":0}]
["AML","AML Questionnaire",null,"B.1 GPW - (l) Group Disability",{"$f":"'AML (LT Direct Only)'!G42","v":0}]
["AML","AML Questionnaire",null,"B.1 GPW - (m) Group Health",{"$f":"'AML (LT Direct Only)'!G43","v":0}]
["AML","AML Questionnaire",null,"B.1 GPW - (n) Stop Loss",{"$f":"'AML (LT Direct Only)'!G44","v":0}]
["AML","AML Questionnaire",null,"B.1 GPW - (o) Rider ",{"$f":"'AML (LT Direct Only)'!G45","v":0}]
["AML","AML Questionnaire",null,"B.1 GPW - (p) Variable Annuities",{"$f":"'AML (LT Direct Only)'!G46","v":0}]
["AML","AML Questionnaire",null,"B.1 GPW - (q) Other Lines of Business",{"$f":"'AML (LT Direct Only)'!G47","v":0}]
["AML","AML Questionnaire",null,"B.1 GPW - General Business",{"$f":"'AML (LT Direct Only)'!G49","v":0}]
["AML","AML Questionnaire",null,"B.1 GPW - Other LOB",{"$f":"'AML (LT Direct Only)'!G50","v":0}]
["AML","AML Questionnaire",null,"B.1 GPW - Total GPW",{"$f":"'AML (LT Direct Only)'!G52","v":0}]
["AML","AML Questionnaire",null,"B.1 # Policies - (i) Mortality - Term Assurance",{"$f":"'AML (LT Direct Only)'!I29","v":0}]
["AML","AML Questionnaire",null,"B.1 # Policies - (ii) Mortality - Whole Life",{"$f":"'AML (LT Direct Only)'!I30","v":0}]
["AML","AML Questionnaire",null,"B.1 # Policies - (iii) Mortality - Universal Life",{"$f":"'AML (LT Direct Only)'!I31","v":0}]
["AML","AML Questionnaire",null,"B.1 # Policies - (b) Critical Illness ",{"$f":"'AML (LT Direct Only)'!I32","v":0}]
["AML","AML Questionnaire",null,"B.1 # Policies - (c) Longevity (immediate pay-out annuities)",{"$f":"'AML (LT Direct Only)'!I33","v":0}]
["AML","AML Questionnaire",null,"B.1 # Policies - (d) Longevity (deferred pay-out annuities)",{"$f":"'AML (LT Direct Only)'!I34","v":0}]
["AML","AML Questionnaire",null,"B.1 # Policies - (e) Annuities certain only",{"$f":"'AML (LT Direct Only)'!I35","v":0}]
["AML","AML Questionnaire",null,"B.1 # Policies - (f) Deferred accumulation annuities",{"$f":"'AML (LT Direct Only)'!I36","v":0}]
["AML","AML Questionnaire",null,"B.1 # Policies - (g) Disability Income: active lives - including waiver of premium and long-term care",{"$f":"'AML (LT Direct Only)'!I37","v":0}]
["AML","AML Questionnaire",null,"B.1 # Policies - (h) Disability income: active lives - other accident and sickness",{"$f":"'AML (LT Direct Only)'!I38","v":0}]
["AML","AML Questionnaire",null,"B.1 # Policies - (i) Disability income: claims in payment - including waiver of premium and long-term care",{"$f":"'AML (LT Direct Only)'!I39","v":0}]
["AML","AML Questionnaire",null,"B.1 # Policies - (j) Disability income: claims in payment - other accident and sickness",{"$f":"'AML (LT Direct Only)'!I40","v":0}]
["AML","AML Questionnaire",null,"B.1 # Policies - (k) Group Life",{"$f":"'AML (LT Direct Only)'!I41","v":0}]
["AML","AML Questionnaire",null,"B.1 # Policies - (l) Group Disability",{"$f":"'AML (LT Direct Only)'!I42","v":0}]
["AML","AML Questionnaire",null,"B.1 # Policies - (m) Group Health",{"$f":"'AML (LT Direct Only)'!I43","v":0}]
["AML","AML Questionnaire",null,"B.1 # Policies - (n) Stop Loss",{"$f":"'AML (LT Direct Only)'!I44","v":0}]
["AML","AML Questionnaire",null,"B.1 # Policies - (o) Rider",{"$f":"'AML (LT Direct Only)'!I45","v":0}]
["AML","AML Questionnaire",null,"B.1 # Policies - (p) Variable Annuities",{"$f":"'AML (LT Direct Only)'!I46","v":0}]
["AML","AML Questionnaire",null,"B.1 # Policies - (q) Other Lines of Business",{"$f":"'AML (LT Direct Only)'!I47","v":0}]
["AML","AML Questionnaire",null,"B.1 # Policies - General Business",{"$f":"'AML (LT Direct Only)'!I49","v":0}]
["AML","AML Questionnaire",null,"B.1 # Policies - Other LOB",{"$f":"'AML (LT Direct Only)'!I50","v":0}]
["AML","AML Questionnaire",null,"B.1 # Policies - Total # Policies",{"$f":"'AML (LT Direct Only)'!I52","v":0}]
["AML","AML Questionnaire",null,"B.2 Paid - (i) Mortality - Term Assurance",{"$f":"'AML (LT Direct Only)'!G58","v":0}]
["AML","AML Questionnaire",null,"B.2 Paid - (ii) Mortality - Whole Life",{"$f":"'AML (LT Direct Only)'!G59","v":0}]
["AML","AML Questionnaire",null,"B.2 Paid - (iii) Mortality - Universal Life",{"$f":"'AML (LT Direct Only)'!G60","v":0}]
["AML","AML Questionnaire",null,"B.2 Paid - (b) Critical Illness ",{"$f":"'AML (LT Direct Only)'!G61","v":0}]
["AML","AML Questionnaire",null,"B.2 Paid - (c) Longevity (immediate pay-out annuities)",{"$f":"'AML (LT Direct Only)'!G62","v":0}]
["AML","AML Questionnaire",null,"B.2 Paid - (d) Longevity (deferred pay-out annuities)",{"$f":"'AML (LT Direct Only)'!G63","v":0}]
["AML","AML Questionnaire",null,"B.2 Paid - (e) Annuities certain only",{"$f":"'AML (LT Direct Only)'!G64","v":0}]
["AML","AML Questionnaire",null,"B.2 Paid - (f) Deferred accumulation annuities",{"$f":"'AML (LT Direct Only)'!G65","v":0}]
["AML","AML Questionnaire",null,"B.2 Paid - (g) Disability Income: active lives - including waiver of premium and long-term care",{"$f":"'AML (LT Direct Only)'!G66","v":0}]
["AML","AML Questionnaire",null,"B.2 Paid - (h) Disability income: active lives - other accident and sickness",{"$f":"'AML (LT Direct Only)'!G67","v":0}]
["AML","AML Questionnaire",null,"B.2 Paid - (i) Disability income: claims in payment - including waiver of premium and long-term care",{"$f":"'AML (LT Direct Only)'!G68","v":0}]
["AML","AML Questionnaire",null,"B.2 Paid - (j) Disability income: claims in payment - other accident and sickness",{"$f":"'AML (LT Direct Only)'!G69","v":0}]
["AML","AML Questionnaire",null,"B.2 Paid - (k) Group Life",{"$f":"'AML (LT Direct Only)'!G70","v":0}]
["AML","AML Questionnaire",null,"B.2 Paid - (l) Group Disability",{"$f":"'AML (LT Direct Only)'!G71","v":0}]
["AML","AML Questionnaire",null,"B.2 Paid - (m) Group Health",{"$f":"'AML (LT Direct Only)'!G72","v":0}]
["AML","AML Questionnaire",null,"B.2 Paid - (n) Stop Loss",{"$f":"'AML (LT Direct Only)'!G73","v":0}]
["AML","AML Questionnaire",null,"B.2 Paid - (o) Rider ",{"$f":"'AML (LT Direct Only)'!G74","v":0}]
["AML","AML Questionnaire",null,"B.2 Paid - (p) Variable Annuities",{"$f":"'AML (LT Direct Only)'!G75","v":0}]
["AML","AML Questionnaire",null,"B.2 Paid - (q) Other Lines of Business",{"$f":"'AML (LT Direct Only)'!G76","v":0}]
["AML","AML Questionnaire",null,"B.2 Paid - General Business",{"$f":"'AML (LT Direct Only)'!G78","v":0}]
["AML","AML Questionnaire",null,"B.2 Paid - Other LOB",{"$f":"'AML (LT Direct Only)'!G79","v":0}]
["AML","AML Questionnaire",null,"B.2 Paid - Total Paid",{"$f":"'AML (LT Direct Only)'!G81","v":0}]
["AML","AML Questionnaire",null,"B.2 # Policies - (i) Mortality - Term Assurance",{"$f":"'AML (LT Direct Only)'!I58","v":0}]
["AML","AML Questionnaire",null,"B.2 # Policies - (ii) Mortality - Whole Life",{"$f":"'AML (LT Direct Only)'!I59","v":0}]
["AML","AML Questionnaire",null,"B.2 # Policies - (iii) Mortality - Universal Life",{"$f":"'AML (LT Direct Only)'!I60","v":0}]
["AML","AML Questionnaire",null,"B.2 # Policies - (b) Critical Illness ",{"$f":"'AML (LT Direct Only)'!I61","v":0}]
["AML","AML Questionnaire",null,"B.2 # Policies - (c) Longevity (immediate pay-out annuities)",{"$f":"'AML (LT Direct Only)'!I62","v":0}]
["AML","AML Questionnaire",null,"B.2 # Policies - (d) Longevity (deferred pay-out annuities)",{"$f":"'AML (LT Direct Only)'!I63","v":0}]
["AML","AML Questionnaire",null,"B.2 # Policies - (e) Annuities certain only",{"$f":"'AML (LT Direct Only)'!I64","v":0}]
["AML","AML Questionnaire",null,"B.2 # Policies - (f) Deferred accumulation annuities",{"$f":"'AML (LT Direct Only)'!I65","v":0}]
["AML","AML Questionnaire",null,"B.2 # Policies - (g) Disability Income: active lives - including waiver of premium and long-term care",{"$f":"'AML (LT Direct Only)'!I66","v":0}]
["AML","AML Questionnaire",null,"B.2 # Policies - (h) Disability income: active lives - other accident and sickness",{"$f":"'AML (LT Direct Only)'!I67","v":0}]
["AML","AML Questionnaire",null,"B.2 # Policies - (i) Disability income: claims in payment - including waiver of premium and long-term care",{"$f":"'AML (LT Direct Only)'!I68","v":0}]
["AML","AML Questionnaire",null,"B.2 # Policies - (j) Disability income: claims in payment - other accident and sickness",{"$f":"'AML (LT Direct Only)'!I69","v":0}]
["AML","AML Questionnaire",null,"B.2 # Policies - (k) Group Life",{"$f":"'AML (LT Direct Only)'!I70","v":0}]
["AML","AML Questionnaire",null,"B.2 # Policies - (l) Group Disability",{"$f":"'AML (LT Direct Only)'!I71","v":0}]
["AML","AML Questionnaire",null,"B.2 # Policies - (m) Group Health",{"$f":"'AML (LT Direct Only)'!I72","v":0}]
["AML","AML Questionnaire",null,"B.2 # Policies - (n) Stop Loss",{"$f":"'AML (LT Direct Only)'!I73","v":0}]
["AML","AML Questionnaire",null,"B.2 # Policies - (o) Rider",{"$f":"'AML (LT Direct Only)'!I74","v":0}]
["AML","AML Questionnaire",null,"B.2 # Policies - (p) Variable Annuities",{"$f":"'AML (LT Direct Only)'!I75","v":0}]
["AML","AML Questionnaire",null,"B.2 # Policies - (q) Other Lines of Business",{"$f":"'AML (LT Direct Only)'!I76","v":0}]
["AML","AML Questionnaire",null,"B.2 # Policies - General Business",{"$f":"'AML (LT Direct Only)'!I78","v":0}]
["AML","AML Questionnaire",null,"B.2 # Policies - Other LOB",{"$f":"'AML (LT Direct Only)'!I79","v":0}]
["AML","AML Questionnaire",null,"B.2 # Policies - Total # Policies",{"$f":"'AML (LT Direct Only)'!I81","v":0}]
["AML","AML Questionnaire",null,"B.3 Premium - Bank Transfer",{"$f":"'AML (LT Direct Only)'!G85","v":0}]
["AML","AML Questionnaire",null,"B.3 Premium - Cash",{"$f":"'AML (LT Direct Only)'!G86","v":0}]
["AML","AML Questionnaire",null,"B.3 Premium - Cheque",{"$f":"'AML (LT Direct Only)'!G87","v":0}]
["AML","AML Questionnaire",null,"B.3 Premium - Credit Card",{"$f":"'AML (LT Direct Only)'!G88","v":0}]
["AML","AML Questionnaire",null,"B.3 Premium - Virtual Currencies",{"$f":"'AML (LT Direct Only)'!G89","v":0}]
["AML","AML Questionnaire",null,"B.3 Premium - Other",{"$f":"'AML (LT Direct Only)'!G90","v":0}]
["AML","AML Questionnaire",null,"B.3 Premium - Total",{"$f":"SUM(E9589:E9594)","v":0}]
["AML","AML Questionnaire",null,"B.3 Claims - Bank Transfer",{"$f":"'AML (LT Direct Only)'!I85","v":0}]
["AML","AML Questionnaire",null,"B.3 Claims - Cash",{"$f":"'AML (LT Direct Only)'!I86","v":0}]
["AML","AML Questionnaire",null,"B.3 Claims - Cheque",{"$f":"'AML (LT Direct Only)'!I87","v":0}]
["AML","AML Questionnaire",null,"B.3 Claims - Credit Card",{"$f":"'AML (LT Direct Only)'!I88","v":0}]
["AML","AML Questionnaire",null,"B.3 Claims - Virtual Currencies",{"$f":"'AML (LT Direct Only)'!I89","v":0}]
["AML","AML Questionnaire",null,"B.3 Claims - Other",{"$f":"'AML (LT Direct Only)'!I90","v":0}]
["AML","AML Questionnaire",null,"B.3 Claims - Total",{"$f":"SUM(E9596:E9601)","v":0}]
["AML","AML Questionnaire",null,"B.3 Other Details",{"$f":"'AML (LT Direct Only)'!C92","v":0}]
["AML","AML Questionnaire",null,"B.4 Accept 3rd Party Payments",{"$f":"'AML (LT Direct Only)'!I98","v":"Select Yes/No"}]
["AML","AML Questionnaire",null,"B.4 If yes, Details",{"$f":"'AML (LT Direct Only)'!C100","v":0}]
["AML","AML Questionnaire",null,"C.1 Business Relationships - Face to Face",{"$f":"'AML (LT Direct Only)'!G109","v":0}]
["AML","AML Questionnaire",null,"C.1 Business Relationships - Intermediary",{"$f":"'AML (LT Direct Only)'!G110","v":0}]
["AML","AML Questionnaire",null,"C.1 Business Relationships - Phone, Email",{"$f":"'AML (LT Direct Only)'!G111","v":0}]
["AML","AML Questionnaire",null,"C.1 Business Relationships - Other",{"$f":"'AML (LT Direct Only)'!G112","v":0}]
["AML","AML Questionnaire",null,"C.1 Business Relationships - Total",{"$f":"'AML (LT Direct Only)'!G113","v":0}]
["AML","AML Questionnaire",null,"D.1 PEP's Identified",{"$f":"'AML (LT Direct Only)'!I116","v":"Select Yes/No"}]
["AML","AML Questionnaire",null,"D.2 GPW - Zone 1 - Central & Western Asia",{"$f":"'AML (LT Direct Only)'!E123","v":0}]
["AML","AML Questionnaire",null,"D.2 GPW - Zone 2 - Eastern Asia",{"$f":"'AML (LT Direct Only)'!E124","v":0}]
["AML","AML Questionnaire",null,"D.2 GPW - Zone 3 - South & South Eastern Asia",{"$f":"'AML (LT Direct Only)'!E125","v":0}]
["AML","AML Questionnaire",null,"D.2 GPW - Zone 4 - Oceania",{"$f":"'AML (LT Direct Only)'!E126","v":0}]
["AML","AML Questionnaire",null,"D.2 GPW - Zone 5 - Northern Africa",{"$f":"'AML (LT Direct Only)'!E127","v":0}]
["AML","AML Questionnaire",null,"D.2 GPW - Zone 6 - Southern Africa",{"$f":"'AML (LT Direct Only)'!E128","v":0}]
["AML","AML Questionnaire",null,"D.2 GPW - Zone 7 - Eastern Europe",{"$f":"'AML (LT Direct Only)'!E129","v":0}]
["AML","AML Questionnaire",null,"D.2 GPW - Zone 8 - Northern Europe",{"$f":"'AML (LT Direct Only)'!E130","v":0}]
["AML","AML Questionnaire",null,"D.2 GPW - Zone 9 - Southern Europe",{"$f":"'AML (LT Direct Only)'!E131","v":0}]
["AML","AML Questionnaire",null,"D.2 GPW - Zone 10 - Western Europe",{"$f":"'AML (LT Direct Only)'!E132","v":0}]
["AML","AML Questionnaire",null,"D.2 GPW - Zone 11 -  North America ",{"$f":"'AML (LT Direct Only)'!E133","v":0}]
["AML","AML Questionnaire",null,"D.2 GPW - Zone 12 - Caribbean",{"$f":"'AML (LT Direct Only)'!E134","v":0}]
["AML","AML Questionnaire",null,"D.2 GPW - Zone 13 - Eastern South America",{"$f":"'AML (LT Direct Only)'!E135","v":0}]
["AML","AML Questionnaire",null,"D.2 GPW - Zone 14 - N, S & W South America",{"$f":"'AML (LT Direct Only)'!E136","v":0}]
["AML","AML Questionnaire",null,"D.2 GPW - Zone 15 - North East United States",{"$f":"'AML (LT Direct Only)'!E137","v":0}]
["AML","AML Questionnaire",null,"D.2 GPW - Zone 16 - South-East United States",{"$f":"'AML (LT Direct Only)'!E138","v":0}]
["AML","AML Questionnaire",null,"D.2 GPW - Zone 17 - Mid-West United States",{"$f":"'AML (LT Direct Only)'!E139","v":0}]
["AML","AML Questionnaire",null,"D.2 GPW - Zone 18 - Western United States",{"$f":"'AML (LT Direct Only)'!E140","v":0}]
["AML","AML Questionnaire",null,"D.2 GPW - Zone 19 - Central America",{"$f":"'AML (LT Direct Only)'!E141","v":0}]
["AML","AML Questionnaire",null,"D.2 GPW - Zone 20 - Bermuda",{"$f":"'AML (LT Direct Only)'!E142","v":0}]
["AML","AML Questionnaire",null,"D.2 GPW - Zone 20 - Total",{"$f":"'AML (LT Direct Only)'!E143","v":0}]
["AML","AML Questionnaire",null,"D.2 # of Policies - Zone 1 - Central & Western Asia",{"$f":"'AML (LT Direct Only)'!G123","v":0}]
["AML","AML Questionnaire",null,"D.2 # of Policies - Zone 2 - Eastern Asia",{"$f":"'AML (LT Direct Only)'!G124","v":0}]
["AML","AML Questionnaire",null,"D.2 # of Policies - Zone 3 - South & South Eastern Asia",{"$f":"'AML (LT Direct Only)'!G125","v":0}]
["AML","AML Questionnaire",null,"D.2 # of Policies - Zone 4 - Oceania",{"$f":"'AML (LT Direct Only)'!G126","v":0}]
["AML","AML Questionnaire",null,"D.2 # of Policies - Zone 5 - Northern Africa",{"$f":"'AML (LT Direct Only)'!G127","v":0}]
["AML","AML Questionnaire",null,"D.2 # of Policies - Zone 6 - Southern Africa",{"$f":"'AML (LT Direct Only)'!G128","v":0}]
["AML","AML Questionnaire",null,"D.2 # of Policies - Zone 7 - Eastern Europe",{"$f":"'AML (LT Direct Only)'!G129","v":0}]
["AML","AML Questionnaire",null,"D.2 # of Policies - Zone 8 - Northern Europe",{"$f":"'AML (LT Direct Only)'!G130","v":0}]
["AML","AML Questionnaire",null,"D.2 # of Policies - Zone 9 - Southern Europe",{"$f":"'AML (LT Direct Only)'!G131","v":0}]
["AML","AML Questionnaire",null,"D.2 # of Policies - Zone 10 - Western Europe",{"$f":"'AML (LT Direct Only)'!G132","v":0}]
["AML","AML Questionnaire",null,"D.2 # of Policies - Zone 11 -  North America ",{"$f":"'AML (LT Direct Only)'!G133","v":0}]
["AML","AML Questionnaire",null,"D.2 # of Policies - Zone 12 - Caribbean",{"$f":"'AML (LT Direct Only)'!G134","v":0}]
["AML","AML Questionnaire",null,"D.2 # of Policies - Zone 13 - Eastern South America",{"$f":"'AML (LT Direct Only)'!G135","v":0}]
["AML","AML Questionnaire",null,"D.2 # of Policies - Zone 14 - N, S & W South America",{"$f":"'AML (LT Direct Only)'!G136","v":0}]
["AML","AML Questionnaire",null,"D.2 # of Policies - Zone 15 - North East United States",{"$f":"'AML (LT Direct Only)'!G137","v":0}]
["AML","AML Questionnaire",null,"D.2 # of Policies - Zone 16 - South-East United States",{"$f":"'AML (LT Direct Only)'!G138","v":0}]
["AML","AML Questionnaire",null,"D.2 # of Policies - Zone 17 - Mid-West United States",{"$f":"'AML (LT Direct Only)'!G139","v":0}]
["AML","AML Questionnaire",null,"D.2 # of Policies - Zone 18 - Western United States",{"$f":"'AML (LT Direct Only)'!G140","v":0}]
["AML","AML Questionnaire",null,"D.2 # of Policies - Zone 19 - Central America",{"$f":"'AML (LT Direct Only)'!G141","v":0}]
["AML","AML Questionnaire",null,"D.2 # of Policies - Zone 20 - Bermuda",{"$f":"'AML (LT Direct Only)'!G142","v":0}]
["AML","AML Questionnaire",null,"D.2 # of Policies - Zone 20 - Total",{"$f":"'AML (LT Direct Only)'!G143","v":0}]
["AML","AML Questionnaire",null,"D.2 # of PEP - Zone 1 - Central & Western Asia",{"$f":"'AML (LT Direct Only)'!I123","v":0}]
["AML","AML Questionnaire",null,"D.2 # of PEP - Zone 2 - Eastern Asia",{"$f":"'AML (LT Direct Only)'!I124","v":0}]
["AML","AML Questionnaire",null,"D.2 # of PEP - Zone 3 - South & South Eastern Asia",{"$f":"'AML (LT Direct Only)'!I125","v":0}]
["AML","AML Questionnaire",null,"D.2 # of PEP - Zone 4 - Oceania",{"$f":"'AML (LT Direct Only)'!I126","v":0}]
["AML","AML Questionnaire",null,"D.2 # of PEP - Zone 5 - Northern Africa",{"$f":"'AML (LT Direct Only)'!I127","v":0}]
["AML","AML Questionnaire",null,"D.2 # of PEP - Zone 6 - Southern Africa",{"$f":"'AML (LT Direct Only)'!I128","v":0}]
["AML","AML Questionnaire",null,"D.2 # of PEP - Zone 7 - Eastern Europe",{"$f":"'AML (LT Direct Only)'!I129","v":0}]
["AML","AML Questionnaire",null,"D.2 # of PEP - Zone 8 - Northern Europe",{"$f":"'AML (LT Direct Only)'!I130","v":0}]
["AML","AML Questionnaire",null,"D.2 # of PEP - Zone 9 - Southern Europe",{"$f":"'AML (LT Direct Only)'!I131","v":0}]
["AML","AML Questionnaire",null,"D.2 # of PEP - Zone 10 - Western Europe",{"$f":"'AML (LT Direct Only)'!I132","v":0}]
["AML","AML Questionnaire",null,"D.2 # of PEP - Zone 11 -  North America ",{"$f":"'AML (LT Direct Only)'!I133","v":0}]
["AML","AML Questionnaire",null,"D.2 # of PEP - Zone 12 - Caribbean",{"$f":"'AML (LT Direct Only)'!I134","v":0}]
["AML","AML Questionnaire",null,"D.2 # of PEP - Zone 13 - Eastern South America",{"$f":"'AML (LT Direct Only)'!I135","v":0}]
["AML","AML Questionnaire",null,"D.2 # of PEP - Zone 14 - N, S & W South America",{"$f":"'AML (LT Direct Only)'!I136","v":0}]
["AML","AML Questionnaire",null,"D.2 # of PEP - Zone 15 - North East United States",{"$f":"'AML (LT Direct Only)'!I137","v":0}]
["AML","AML Questionnaire",null,"D.2 # of PEP - Zone 16 - South-East United States",{"$f":"'AML (LT Direct Only)'!I138","v":0}]
["AML","AML Questionnaire",null,"D.2 # of PEP - Zone 17 - Mid-West United States",{"$f":"'AML (LT Direct Only)'!I139","v":0}]
["AML","AML Questionnaire",null,"D.2 # of PEP - Zone 18 - Western United States",{"$f":"'AML (LT Direct Only)'!I140","v":0}]
["AML","AML Questionnaire",null,"D.2 # of PEP - Zone 19 - Central America",{"$f":"'AML (LT Direct Only)'!I141","v":0}]
["AML","AML Questionnaire",null,"D.2 # of PEP - Zone 20 - Bermuda",{"$f":"'AML (LT Direct Only)'!I142","v":0}]
["AML","AML Questionnaire",null,"D.2 # of PEP - Zone 20 - Total",{"$f":"'AML (LT Direct Only)'!I143","v":0}]
["AML","AML Questionnaire",null,"D.3 Transaction Monitoring",{"$f":"'AML (LT Direct Only)'!I145","v":"Select Yes/No"}]
["AML","AML Questionnaire",null,"D.4 # Beneficiaries - Zone 1 - Central & Western Asia",{"$f":"'AML (LT Direct Only)'!E150","v":0}]
["AML","AML Questionnaire",null,"D.4 # Beneficiaries - Zone 2 - Eastern Asia",{"$f":"'AML (LT Direct Only)'!E151","v":0}]
["AML","AML Questionnaire",null,"D.4 # Beneficiaries - Zone 3 - South & South Eastern Asia",{"$f":"'AML (LT Direct Only)'!E152","v":0}]
["AML","AML Questionnaire",null,"D.4 # Beneficiaries - Zone 4 - Oceania",{"$f":"'AML (LT Direct Only)'!E153","v":0}]
["AML","AML Questionnaire",null,"D.4 # Beneficiaries - Zone 5 - Northern Africa",{"$f":"'AML (LT Direct Only)'!E154","v":0}]
["AML","AML Questionnaire",null,"D.4 # Beneficiaries - Zone 6 - Southern Africa",{"$f":"'AML (LT Direct Only)'!E155","v":0}]
["AML","AML Questionnaire",null,"D.4 # Beneficiaries - Zone 7 - Eastern Europe",{"$f":"'AML (LT Direct Only)'!E156","v":0}]
["AML","AML Questionnaire",null,"D.4 # Beneficiaries - Zone 8 - Northern Europe",{"$f":"'AML (LT Direct Only)'!E157","v":0}]
["AML","AML Questionnaire",null,"D.4 # Beneficiaries - Zone 9 - Southern Europe",{"$f":"'AML (LT Direct Only)'!E158","v":0}]
["AML","AML Questionnaire",null,"D.4 # Beneficiaries - Zone 10 - Western Europe",{"$f":"'AML (LT Direct Only)'!E159","v":0}]
["AML","AML Questionnaire",null,"D.4 # Beneficiaries - Zone 11 -  North America ",{"$f":"'AML (LT Direct Only)'!E160","v":0}]
["AML","AML Questionnaire",null,"D.4 # Beneficiaries - Zone 12 - Caribbean",{"$f":"'AML (LT Direct Only)'!E161","v":0}]
["AML","AML Questionnaire",null,"D.4 # Beneficiaries - Zone 13 - Eastern South America",{"$f":"'AML (LT Direct Only)'!E162","v":0}]
["AML","AML Questionnaire",null,"D.4 # Beneficiaries - Zone 14 - N, S & W South America",{"$f":"'AML (LT Direct Only)'!E163","v":0}]
["AML","AML Questionnaire",null,"D.4 # Beneficiaries - Zone 15 - North East United States",{"$f":"'AML (LT Direct Only)'!E164","v":0}]
["AML","AML Questionnaire",null,"D.4 # Beneficiaries - Zone 16 - South-East United States",{"$f":"'AML (LT Direct Only)'!E165","v":0}]
["AML","AML Questionnaire",null,"D.4 # Beneficiaries - Zone 17 - Mid-West United States",{"$f":"'AML (LT Direct Only)'!E166","v":0}]
["AML","AML Questionnaire",null,"D.4 # Beneficiaries - Zone 18 - Western United States",{"$f":"'AML (LT Direct Only)'!E167","v":0}]
["AML","AML Questionnaire",null,"D.4 # Beneficiaries - Zone 19 - Central America",{"$f":"'AML (LT Direct Only)'!E168","v":0}]
["AML","AML Questionnaire",null,"D.4 # Beneficiaries - Zone 20 - Bermuda",{"$f":"'AML (LT Direct Only)'!E169","v":0}]
["AML","AML Questionnaire",null,"D.4 # Beneficiaries - Zone 20 - Total",{"$f":"'AML (LT Direct Only)'!E170","v":0}]
["AML","AML Questionnaire",null,"D.4 # Policies - Zone 1 - Central & Western Asia",{"$f":"'AML (LT Direct Only)'!G150","v":0}]
["AML","AML Questionnaire",null,"D.4 # Policies - Zone 2 - Eastern Asia",{"$f":"'AML (LT Direct Only)'!G151","v":0}]
["AML","AML Questionnaire",null,"D.4 # Policies - Zone 3 - South & South Eastern Asia",{"$f":"'AML (LT Direct Only)'!G152","v":0}]
["AML","AML Questionnaire",null,"D.4 # Policies - Zone 4 - Oceania",{"$f":"'AML (LT Direct Only)'!G153","v":0}]
["AML","AML Questionnaire",null,"D.4 # Policies - Zone 5 - Northern Africa",{"$f":"'AML (LT Direct Only)'!G154","v":0}]
["AML","AML Questionnaire",null,"D.4 # Policies - Zone 6 - Southern Africa",{"$f":"'AML (LT Direct Only)'!G155","v":0}]
["AML","AML Questionnaire",null,"D.4 # Policies - Zone 7 - Eastern Europe",{"$f":"'AML (LT Direct Only)'!G156","v":0}]
["AML","AML Questionnaire",null,"D.4 # Policies - Zone 8 - Northern Europe",{"$f":"'AML (LT Direct Only)'!G157","v":0}]
["AML","AML Questionnaire",null,"D.4 # Policies - Zone 9 - Southern Europe",{"$f":"'AML (LT Direct Only)'!G158","v":0}]
["AML","AML Questionnaire",null,"D.4 # Policies - Zone 10 - Western Europe",{"$f":"'AML (LT Direct Only)'!G159","v":0}]
["AML","AML Questionnaire",null,"D.4 # Policies - Zone 11 -  North America ",{"$f":"'AML (LT Direct Only)'!G160","v":0}]
["AML","AML Questionnaire",null,"D.4 # Policies - Zone 12 - Caribbean",{"$f":"'AML (LT Direct Only)'!G161","v":0}]
["AML","AML Questionnaire",null,"D.4 # Policies - Zone 13 - Eastern South America",{"$f":"'AML (LT Direct Only)'!G162","v":0}]
["AML","AML Questionnaire",null,"D.4 # Policies - Zone 14 - N, S & W South America",{"$f":"'AML (LT Direct Only)'!G163","v":0}]
["AML","AML Questionnaire",null,"D.4 # Policies - Zone 15 - North East United States",{"$f":"'AML (LT Direct Only)'!G164","v":0}]
["AML","AML Questionnaire",null,"D.4 # Policies - Zone 16 - South-East United States",{"$f":"'AML (LT Direct Only)'!G165","v":0}]
["AML","AML Questionnaire",null,"D.4 # Policies - Zone 17 - Mid-West United States",{"$f":"'AML (LT Direct Only)'!G166","v":0}]
["AML","AML Questionnaire",null,"D.4 # Policies - Zone 18 - Western United States",{"$f":"'AML (LT Direct Only)'!G167","v":0}]
["AML","AML Questionnaire",null,"D.4 # Policies - Zone 19 - Central America",{"$f":"'AML (LT Direct Only)'!G168","v":0}]
["AML","AML Questionnaire",null,"D.4 # Policies - Zone 20 - Bermuda",{"$f":"'AML (LT Direct Only)'!G169","v":0}]
["AML","AML Questionnaire",null,"D.4 # Policies - Zone 20 - Total",{"$f":"'AML (LT Direct Only)'!G170","v":0}]
["AML","AML Questionnaire",null,"D.4 Claims Paid - Zone 1 - Central & Western Asia",{"$f":"'AML (LT Direct Only)'!I150","v":0}]
["AML","AML Questionnaire",null,"D.4 Claims Paid - Zone 2 - Eastern Asia",{"$f":"'AML (LT Direct Only)'!I151","v":0}]
["AML","AML Questionnaire",null,"D.4 Claims Paid - Zone 3 - South & South Eastern Asia",{"$f":"'AML (LT Direct Only)'!I152","v":0}]
["AML","AML Questionnaire",null,"D.4 Claims Paid - Zone 4 - Oceania",{"$f":"'AML (LT Direct Only)'!I153","v":0}]
["AML","AML Questionnaire",null,"D.4 Claims Paid - Zone 5 - Northern Africa",{"$f":"'AML (LT Direct Only)'!I154","v":0}]
["AML","AML Questionnaire",null,"D.4 Claims Paid - Zone 6 - Southern Africa",{"$f":"'AML (LT Direct Only)'!I155","v":0}]
["AML","AML Questionnaire",null,"D.4 Claims Paid - Zone 7 - Eastern Europe",{"$f":"'AML (LT Direct Only)'!I156","v":0}]
["AML","AML Questionnaire",null,"D.4 Claims Paid - Zone 8 - Northern Europe",{"$f":"'AML (LT Direct Only)'!I157","v":0}]
["AML","AML Questionnaire",null,"D.4 Claims Paid - Zone 9 - Southern Europe",{"$f":"'AML (LT Direct Only)'!I158","v":0}]
["AML","AML Questionnaire",null,"D.4 Claims Paid - Zone 10 - Western Europe",{"$f":"'AML (LT Direct Only)'!I159","v":0}]
["AML","AML Questionnaire",null,"D.4 Claims Paid - Zone 11 -  North America ",{"$f":"'AML (LT Direct Only)'!I160","v":0}]
["AML","AML Questionnaire",null,"D.4 Claims Paid - Zone 12 - Caribbean",{"$f":"'AML (LT Direct Only)'!I161","v":0}]
["AML","AML Questionnaire",null,"D.4 Claims Paid - Zone 13 - Eastern South America",{"$f":"'AML (LT Direct Only)'!I162","v":0}]
["AML","AML Questionnaire",null,"D.4 Claims Paid - Zone 14 - N, S & W South America",{"$f":"'AML (LT Direct Only)'!I163","v":0}]
["AML","AML Questionnaire",null,"D.4 Claims Paid - Zone 15 - North East United States",{"$f":"'AML (LT Direct Only)'!I164","v":0}]
["AML","AML Questionnaire",null,"D.4 Claims Paid - Zone 16 - South-East United States",{"$f":"'AML (LT Direct Only)'!I165","v":0}]
["AML","AML Questionnaire",null,"D.4 Claims Paid - Zone 17 - Mid-West United States",{"$f":"'AML (LT Direct Only)'!I166","v":0}]
["AML","AML Questionnaire",null,"D.4 Claims Paid - Zone 18 - Western United States",{"$f":"'AML (LT Direct Only)'!I167","v":0}]
["AML","AML Questionnaire",null,"D.4 Claims Paid - Zone 19 - Central America",{"$f":"'AML (LT Direct Only)'!I168","v":0}]
["AML","AML Questionnaire",null,"D.4 Claims Paid - Zone 20 - Bermuda",{"$f":"'AML (LT Direct Only)'!I169","v":0}]
["AML","AML Questionnaire",null,"D.4 Claims Paid - Zone 20 - Total",{"$f":"'AML (LT Direct Only)'!I170","v":0}]
["AML","AML Questionnaire",null,"D.4 # PEPs - Zone 1 - Central & Western Asia",{"$f":"'AML (LT Direct Only)'!J150","v":0}]
["AML","AML Questionnaire",null,"D.4 # PEPs - Zone 2 - Eastern Asia",{"$f":"'AML (LT Direct Only)'!J151","v":0}]
["AML","AML Questionnaire",null,"D.4 # PEPs - Zone 3 - South & South Eastern Asia",{"$f":"'AML (LT Direct Only)'!J152","v":0}]
["AML","AML Questionnaire",null,"D.4 # PEPs - Zone 4 - Oceania",{"$f":"'AML (LT Direct Only)'!J153","v":0}]
["AML","AML Questionnaire",null,"D.4 # PEPs - Zone 5 - Northern Africa",{"$f":"'AML (LT Direct Only)'!J154","v":0}]
["AML","AML Questionnaire",null,"D.4 # PEPs - Zone 6 - Southern Africa",{"$f":"'AML (LT Direct Only)'!J155","v":0}]
["AML","AML Questionnaire",null,"D.4 # PEPs - Zone 7 - Eastern Europe",{"$f":"'AML (LT Direct Only)'!J156","v":0}]
["AML","AML Questionnaire",null,"D.4 # PEPs - Zone 8 - Northern Europe",{"$f":"'AML (LT Direct Only)'!J157","v":0}]
["AML","AML Questionnaire",null,"D.4 # PEPs - Zone 9 - Southern Europe",{"$f":"'AML (LT Direct Only)'!J158","v":0}]
["AML","AML Questionnaire",null,"D.4 # PEPs - Zone 10 - Western Europe",{"$f":"'AML (LT Direct Only)'!J159","v":0}]
["AML","AML Questionnaire",null,"D.4 # PEPs - Zone 11 -  North America ",{"$f":"'AML (LT Direct Only)'!J160","v":0}]
["AML","AML Questionnaire",null,"D.4 # PEPs - Zone 12 - Caribbean",{"$f":"'AML (LT Direct Only)'!J161","v":0}]
["AML","AML Questionnaire",null,"D.4 # PEPs - Zone 13 - Eastern South America",{"$f":"'AML (LT Direct Only)'!J162","v":0}]
["AML","AML Questionnaire",null,"D.4 # PEPs - Zone 14 - N, S & W South America",{"$f":"'AML (LT Direct Only)'!J163","v":0}]
["AML","AML Questionnaire",null,"D.4 # PEPs - Zone 15 - North East United States",{"$f":"'AML (LT Direct Only)'!J164","v":0}]
["AML","AML Questionnaire",null,"D.4 # PEPs - Zone 16 - South-East United States",{"$f":"'AML (LT Direct Only)'!J165","v":0}]
["AML","AML Questionnaire",null,"D.4 # PEPs - Zone 17 - Mid-West United States",{"$f":"'AML (LT Direct Only)'!J166","v":0}]
["AML","AML Questionnaire",null,"D.4 # PEPs - Zone 18 - Western United States",{"$f":"'AML (LT Direct Only)'!J167","v":0}]
["AML","AML Questionnaire",null,"D.4 # PEPs - Zone 19 - Central America",{"$f":"'AML (LT Direct Only)'!J168","v":0}]
["AML","AML Questionnaire",null,"D.4 # PEPs - Zone 20 - Bermuda",{"$f":"'AML (LT Direct Only)'!J169","v":0}]
["AML","AML Questionnaire",null,"D.4 # PEPs - Zone 20 - Total",{"$f":"'AML (LT Direct Only)'!J170","v":0}]
["AML","AML Questionnaire",null,"F.1 ML & TF Employee Training",{"$f":"'AML (LT Direct Only)'!I173","v":"Select Yes/No"}]
["AML","AML Questionnaire",null,"F.1(a) New Employees",{"$f":"'AML (LT Direct Only)'!I175","v":"Select Yes/No"}]
["AML","AML Questionnaire",null,"F.1(b) Program Specific or Generic",{"$f":"'AML (LT Direct Only)'!I176","v":"Select Yes/No"}]
["AML","AML Questionnaire",null,"F.1(c) Training Frequency",{"$f":"'AML (LT Direct Only)'!I177","v":"Select Years"}]
["AML","AML Questionnaire",null,"F.2 # of Employees - Full Time",{"$f":"'AML (LT Direct Only)'!I179","v":0}]
["AML","AML Questionnaire",null,"F.2 # of Employees - Part Time",{"$f":"'AML (LT Direct Only)'!I180","v":0}]
["AML","AML Questionnaire",null,"F.2.1 Compliance Officer Work Terms",{"$f":"'AML (LT Direct Only)'!I182","v":"(Select Terms)"}]
["AML","AML Questionnaire",null,"F.2.2 Reporting Officer Work Terms",{"$f":"'AML (LT Direct Only)'!I184","v":"(Select Terms)"}]
["AML","AML Questionnaire",null,"F.3 Recruit Staff - Verify Name",{"$f":"'AML (LT Direct Only)'!I187","v":"Select Yes/No"}]
["AML","AML Questionnaire",null,"F.3 Recruit Staff - Verify Address",{"$f":"'AML (LT Direct Only)'!I188","v":"Select Yes/No"}]
["AML","AML Questionnaire",null,"F.3 Recruit Staff - Verify Staff PEP",{"$f":"'AML (LT Direct Only)'!I189","v":"Select Yes/No"}]
["AML","AML Questionnaire",null,"F.3 Recruit Staff - Verify Sanction List",{"$f":"'AML (LT Direct Only)'!I190","v":"Select Yes/No"}]
["AML","AML Questionnaire",null,"F.3 Recruit Staff - Verify Negative Press",{"$f":"'AML (LT Direct Only)'!I191","v":"Select Yes/No"}]
["AML","AML Questionnaire",null,"F.3 Recruit Staff - Verify Employee History",{"$f":"'AML (LT Direct Only)'!I192","v":"Select Yes/No"}]
["AML","AML Questionnaire",null,"F.3 Recruit Staff - Verify References",{"$f":"'AML (LT Direct Only)'!I193","v":"Select Yes/No"}]
["AML","AML Questionnaire",null,"F.3 Recruit Staff - Verify Reg Action",{"$f":"'AML (LT Direct Only)'!I194","v":"Select Yes/No"}]
["AML","AML Questionnaire",null,"F.3 Recruit Staff - Verify Criminal Convictions",{"$f":"'AML (LT Direct Only)'!I195","v":"Select Yes/No"}]
["AML","AML Questionnaire",null,"F.4 Compliance Officer Senior Mgmnt",{"$f":"'AML (LT Direct Only)'!I197","v":"Select Yes/No"}]
["AML","AML Questionnaire",null,"G.1 AML/ATF Specific LT Insurance",{"$f":"'AML (LT Direct Only)'!I200","v":"Select Yes/No"}]
["AML","AML Questionnaire",null,"G.2 AML/ATF GB or Reinsurance",{"$f":"'AML (LT Direct Only)'!I201","v":"Select Yes/No"}]
["AML","AML Questionnaire",null,"G.3 AML/ATF Other Controls",{"$f":"'AML (LT Direct Only)'!I202","v":"Select Yes/No"}]
["AML","AML Questionnaire",null,"G.3 AML/ATF Other Controls - Details",{"$f":"'AML (LT Direct Only)'!C205","v":0}]
["AML","AML Questionnaire",null,"G.4 AML/ATF Rating Frequency",{"$f":"'AML (LT Direct Only)'!I211","v":"Select Years"}]
["AML","AML Questionnaire",null,"G.5 Approval of New Business - Low Risk",{"$f":"'AML (LT Direct Only)'!E215","v":"Select Yes/No"}]
["AML","AML Questionnaire",null,"G.5 Approval of New Business - Medium Risk",{"$f":"'AML (LT Direct Only)'!G215","v":"Select Yes/No"}]
["AML","AML Questionnaire",null,"G.5 Approval of New Business - High Risk",{"$f":"'AML (LT Direct Only)'!I215","v":"Select Yes/No"}]
["AML","AML Questionnaire",null,"G.6 Approval of Existing Business - Low Risk",{"$f":"'AML (LT Direct Only)'!E219","v":"Select Yes/No"}]
["AML","AML Questionnaire",null,"G.6 Approval of Existing Business - Medium Risk",{"$f":"'AML (LT Direct Only)'!G219","v":"Select Yes/No"}]
["AML","AML Questionnaire",null,"G.6 Approval of Existing Business - High Risk",{"$f":"'AML (LT Direct Only)'!I219","v":"Select Yes/No"}]
["AML","AML Questionnaire",null,"G.7 AML/ATF Manuals with BDA Laws",{"$f":"'AML (LT Direct Only)'!I221","v":"Select Yes/No"}]
["AML","AML Questionnaire",null,"G.7.1 AML/ATF Manuals Reviewed",{"$f":"'AML (LT Direct Only)'!I222","v":"Select Years"}]
["AML","AML Questionnaire",null,"G.8 Last AML/ATF Risk Assessment",{"$f":"'AML (LT Direct Only)'!I225","v":"(Select)"}]
["AML","AML Questionnaire",null,"G.9 AML/ATF Independent Audit ",{"$f":"'AML (LT Direct Only)'!I227","v":"(Select)"}]
["AML","AML Questionnaire",null,"G.10 Last Compliance Report",{"$f":"'AML (LT Direct Only)'!I230","v":"(Select)"}]
["AML","AML Questionnaire",null,"G.11 Document ML/TF Prior to Launch",{"$f":"'AML (LT Direct Only)'!I232","v":"Select Yes/No"}]
["AML","AML Questionnaire",null,"H.1.1 Insurer Part of Group",{"$f":"'AML (LT Direct Only)'!I236","v":"Select Yes/No"}]
["AML","AML Questionnaire",null,"H.1.1.1 Group Name",{"$f":"'AML (LT Direct Only)'!F238","v":0}]
["AML","AML Questionnaire",null,"H.1.1.1 Group ROC #",{"$f":"'AML (LT Direct Only)'!I238","v":0}]
["AML","AML Questionnaire",null,"H.1.1.2 Listed on Exchange",{"$f":"'AML (LT Direct Only)'!I240","v":"Select Yes/No"}]
["AML","AML Questionnaire",null,"H.1.1.2 Exchange 1",{"$f":"'AML (LT Direct Only)'!C243","v":0}]
["AML","AML Questionnaire",null,"H.1.1.2 Exchange 2",{"$f":"'AML (LT Direct Only)'!C244","v":0}]
["AML","AML Questionnaire",null,"H.1.1.2 Exchange 3",{"$f":"'AML (LT Direct Only)'!C245","v":0}]
["AML","AML Questionnaire",null,"H.2(a) # of SAC Registered accounts",{"$f":"'AML (LT Direct Only)'!I248","v":0}]
["AML","AML Questionnaire",null,"H.2(i) # of Active SAC",{"$f":"'AML (LT Direct Only)'!I249","v":0}]
["AML","AML Questionnaire",null,"H.2(ii) # of Non-Active SAC",{"$f":"'AML (LT Direct Only)'!I250","v":0}]
["AML","AML Questionnaire",null,"H.3 Private Act Confirmation",{"$f":"'AML (LT Direct Only)'!I253","v":"Select Yes/No"}]
["AML","AML Questionnaire",null,"H.3(a) # of Designated Inv. Contracts",{"$f":"'AML (LT Direct Only)'!I254","v":0}]
["AML","AML Questionnaire",null,"H.3(b) Net Account Value of Designated Inv. Contracts",{"$f":"'AML (LT Direct Only)'!I255","v":0}]
["AML","AML Questionnaire",null,"H.3 Other Comments",{"$f":"'AML (LT Direct Only)'!C258","v":0}]
["AML","AML Questionnaire",null,"I. Corporate Governance Q1",{"$f":"'AML (LT Direct Only)'!I267","v":"Select Yes/No"}]
["AML","AML Questionnaire",null,"I. Corporate Governance Q2",{"$f":"'AML (LT Direct Only)'!I268","v":"Select Yes/No"}]
["AML","AML Questionnaire",null,"I. Corporate Governance Q3",{"$f":"'AML (LT Direct Only)'!I269","v":"Select Yes/No"}]
["AML","AML Questionnaire",null,"I. Corporate Governance Q4",{"$f":"'AML (LT Direct Only)'!I270","v":"Select Yes/No"}]
["AML","AML Questionnaire",null,"I. Corporate Governance Q5",{"$f":"'AML (LT Direct Only)'!I271","v":"Select Yes/No"}]
["AML","AML Questionnaire",null,"I. Corporate Governance Q6",{"$f":"'AML (LT Direct Only)'!I272","v":"Select Yes/No"}]
["AML","AML Questionnaire",null,"I. Corporate Governance Q7",{"$f":"'AML (LT Direct Only)'!I273","v":"Select Yes/No"}]
["AML","AML Questionnaire",null,"I. Corporate Governance Q8",{"$f":"'AML (LT Direct Only)'!I274","v":"Select Yes/No"}]
["AML","AML Questionnaire",null,"I. Corporate Governance Q9",{"$f":"'AML (LT Direct Only)'!I275","v":"Select Yes/No"}]
["AML","AML Questionnaire",null,"I. Corporate Governance Q10",{"$f":"'AML (LT Direct Only)'!I276","v":"Select Yes/No"}]
["AML","AML Questionnaire",null,"I. Corporate Governance Q11",{"$f":"'AML (LT Direct Only)'!I277","v":"Select Yes/No"}]
["AML","AML Questionnaire",null,"I. Corporate Governance Q12",{"$f":"'AML (LT Direct Only)'!I278","v":"Select Yes/No"}]
["AML","AML Questionnaire",null,"I. Corporate Governance Q13",{"$f":"'AML (LT Direct Only)'!I279","v":"Select Yes/No"}]
["AML","AML Questionnaire",null,"I. Employee Integrity Q14",{"$f":"'AML (LT Direct Only)'!I283","v":"Select Yes/No"}]
["AML","AML Questionnaire",null,"I. Employee Integrity Q15",{"$f":"'AML (LT Direct Only)'!I284","v":"Select Yes/No"}]
["AML","AML Questionnaire",null,"I. Employee Integrity Q16",{"$f":"'AML (LT Direct Only)'!I285","v":"Select Yes/No"}]
["AML","AML Questionnaire",null,"I. Employee Integrity Q17",{"$f":"'AML (LT Direct Only)'!I286","v":"Select Yes/No"}]
["AML","AML Questionnaire",null,"I. Employee Integrity Q18",{"$f":"'AML (LT Direct Only)'!I287","v":"Select Yes/No"}]
["AML","AML Questionnaire",null,"I. Employee Knowledge Q19",{"$f":"'AML (LT Direct Only)'!I291","v":"Select Yes/No"}]
["AML","AML Questionnaire",null,"I. Employee Knowledge Q20",{"$f":"'AML (LT Direct Only)'!I292","v":"Select Yes/No"}]
["AML","AML Questionnaire",null,"I. Employee Knowledge Q21",{"$f":"'AML (LT Direct Only)'!I293","v":"Select Yes/No"}]
["AML","AML Questionnaire",null,"I. Employee Knowledge Q22",{"$f":"'AML (LT Direct Only)'!I294","v":"Select Yes/No"}]
["AML","AML Questionnaire",null,"I. Employee Knowledge Q23",{"$f":"'AML (LT Direct Only)'!I295","v":"Select Yes/No"}]
["AML","AML Questionnaire",null,"I. Employee Knowledge Q24",{"$f":"'AML (LT Direct Only)'!I296","v":"Select Yes/No"}]
["AML","AML Questionnaire",null,"I. Employee Knowledge Q25",{"$f":"'AML (LT Direct Only)'!I297","v":"Select Yes/No"}]
["AML","AML Questionnaire",null,"I. Employee Knowledge Q26",{"$f":"'AML (LT Direct Only)'!I298","v":"Select Yes/No"}]
["AML","AML Questionnaire",null,"I. Employee Knowledge Q27",{"$f":"'AML (LT Direct Only)'!I299","v":"Select Yes/No"}]
["AML","AML Questionnaire",null,"I. Employee Compliance Q28",{"$f":"'AML (LT Direct Only)'!I303","v":"Select Yes/No"}]
["AML","AML Questionnaire",null,"I. Employee Compliance Q29",{"$f":"'AML (LT Direct Only)'!I304","v":"Select Yes/No"}]
["AML","AML Questionnaire",null,"I. Employee Compliance Q30",{"$f":"'AML (LT Direct Only)'!I305","v":"Select Yes/No"}]
["AML","AML Questionnaire",null,"I. Employee Compliance Q31",{"$f":"'AML (LT Direct Only)'!I306","v":"Select Yes/No"}]
[]
["Sar & Sanc.","SAR & Santions",null,"E.1 Registered GoAML",{"$f":"'SAR & Sanc. (All)'!I8","v":"Select Yes/No"}]
["Sar & Sanc.","SAR & Santions",null,"E.1.1 When",{"$f":"'SAR & Sanc. (All)'!I10","v":"(Select)"}]
["Sar & Sanc.","SAR & Santions",null,"E.1.1 Name",{"$f":"'SAR & Sanc. (All)'!C10","v":0}]
["Sar & Sanc.","SAR & Santions",null,"E.1.2 Another Registered",{"$f":"'SAR & Sanc. (All)'!I12","v":"Select Yes/No"}]
["Sar & Sanc.","SAR & Santions",null,"E.1.3 Name",{"$f":"'SAR & Sanc. (All)'!C14","v":0}]
["Sar & Sanc.","SAR & Santions",null,"E.1.4 Filed SAR",{"$f":"'SAR & Sanc. (All)'!C17","v":0}]
["Sar & Sanc.","SAR & Santions",null,"E.2 SAR Filed - Internal - Current Year",{"$f":"'SAR & Sanc. (All)'!G21","v":0}]
["Sar & Sanc.","SAR & Santions",null,"E.2 SAR Filed - Internal - Prior Year",{"$f":"'SAR & Sanc. (All)'!G22","v":0}]
["Sar & Sanc.","SAR & Santions",null,"E.2 SAR Filed - Internal - 2 Years Prior",{"$f":"'SAR & Sanc. (All)'!G23","v":0}]
["Sar & Sanc.","SAR & Santions",null,"E.2 SAR Filed - Internal - 3 Years Prior",{"$f":"'SAR & Sanc. (All)'!G24","v":0}]
["Sar & Sanc.","SAR & Santions",null,"E.2 SAR Filed - Internal - Total",{"$f":"'SAR & Sanc. (All)'!G25","v":0}]
["Sar & Sanc.","SAR & Santions",null,"E.2 SAR Filed - w FIA - Current Year",{"$f":"'SAR & Sanc. (All)'!I21","v":0}]
["Sar & Sanc.","SAR & Santions",null,"E.2 SAR Filed - w FIA - Prior Year",{"$f":"'SAR & Sanc. (All)'!I22","v":0}]
["Sar & Sanc.","SAR & Santions",null,"E.2 SAR Filed - w FIA - 2 Years Prior",{"$f":"'SAR & Sanc. (All)'!I23","v":0}]
["Sar & Sanc.","SAR & Santions",null,"E.2 SAR Filed - w FIA - 3 Years Prior",{"$f":"'SAR & Sanc. (All)'!I24","v":0}]
["Sar & Sanc.","SAR & Santions",null,"E.2 SAR Filed - w FIA - Total",{"$f":"'SAR & Sanc. (All)'!I25","v":0}]
["Sar & Sanc.","SAR & Santions",null,"E.2 Additional Comments",{"$f":"'SAR & Sanc. (All)'!C28","v":0}]
["Sar & Sanc.","SAR & Santions",null,"E. Sanction - 1. Screen insurers",{"$f":"'SAR & Sanc. (All)'!I35","v":"Select Yes/No"}]
["Sar & Sanc.","SAR & Santions",null,"E. Sanction - 2. Screen employees",{"$f":"'SAR & Sanc. (All)'!I37","v":"Select Yes/No"}]
["Sar & Sanc.","SAR & Santions",null,"E. Sanction - 3. Freeze Assets",{"$f":"'SAR & Sanc. (All)'!I39","v":"Select Yes/No"}]
["Sar & Sanc.","SAR & Santions",null,"E. Sanction - 3.1 # of Assets Frozen",{"$f":"'SAR & Sanc. (All)'!I41","v":0}]
["Sar & Sanc.","SAR & Santions",null,"E. Sanction - 3.2 Group ID 1",{"$f":"'SAR & Sanc. (All)'!E45","v":0}]
["Sar & Sanc.","SAR & Santions",null,"E. Sanction - 3.2 Group ID 2",{"$f":"'SAR & Sanc. (All)'!E46","v":0}]
["Sar & Sanc.","SAR & Santions",null,"E. Sanction - 3.2 Group ID 3",{"$f":"'SAR & Sanc. (All)'!E47","v":0}]
["Sar & Sanc.","SAR & Santions",null,"E. Sanction - 3.2 Group ID 4",{"$f":"'SAR & Sanc. (All)'!E48","v":0}]
["Sar & Sanc.","SAR & Santions",null,"E. Sanction - 3.2 Name Given 1",{"$f":"'SAR & Sanc. (All)'!F45","v":0}]
["Sar & Sanc.","SAR & Santions",null,"E. Sanction - 3.2 Name Given 2",{"$f":"'SAR & Sanc. (All)'!F46","v":0}]
["Sar & Sanc.","SAR & Santions",null,"E. Sanction - 3.2 Name Given 3",{"$f":"'SAR & Sanc. (All)'!F47","v":0}]
["Sar & Sanc.","SAR & Santions",null,"E. Sanction - 3.2 Name Given 4",{"$f":"'SAR & Sanc. (All)'!F48","v":0}]
["Sar & Sanc.","SAR & Santions",null,"E. Sanction - 3.2 Owned 1",{"$f":"'SAR & Sanc. (All)'!I45","v":0}]
["Sar & Sanc.","SAR & Santions",null,"E. Sanction - 3.2 Owned 2",{"$f":"'SAR & Sanc. (All)'!I46","v":0}]
["Sar & Sanc.","SAR & Santions",null,"E. Sanction - 3.2 Owned 3",{"$f":"'SAR & Sanc. (All)'!I47","v":0}]
["Sar & Sanc.","SAR & Santions",null,"E. Sanction - 3.2 Owned 4",{"$f":"'SAR & Sanc. (All)'!I48","v":0}]
["Sar & Sanc.","SAR & Santions",null,"E. Sanction - 3.2 Value of Assets 1",{"$f":"'SAR & Sanc. (All)'!J45","v":0}]
["Sar & Sanc.","SAR & Santions",null,"E. Sanction - 3.2 Value of Assets 2",{"$f":"'SAR & Sanc. (All)'!J46","v":0}]
["Sar & Sanc.","SAR & Santions",null,"E. Sanction - 3.2 Value of Assets 3",{"$f":"'SAR & Sanc. (All)'!J47","v":0}]
["Sar & Sanc.","SAR & Santions",null,"E. Sanction - 3.2 Value of Assets 4",{"$f":"'SAR & Sanc. (All)'!J48","v":0}]
["Sar & Sanc.","SAR & Santions",null,"E. Sanction - 3.2 Value of Total",{"$f":"SUM(E9874:E9877)","v":0}]
["Sar & Sanc.","SAR & Santions",null,"E. Sanction - 4 Frequency of Screen for Sanctions",{"$f":"'SAR & Sanc. (All)'!I50","v":"Select"}]
["Sar & Sanc.","SAR & Santions",null,"E. Sanction - Additional Comments ",{"$f":"'SAR & Sanc. (All)'!C53","v":0}]

{"sheet":"Import Differences","index":9,"n_rows":11,"n_cols":14,"rows_kept":11,"cut":false,"hidden":true,"merged":[]}
["Long-Term BSCR Model"]
["Import/Export Row Changes"]
["From the 2017 year-end model to 2018 year-end Model"]
[]
[null,"Section","Line","Row"]
[1,"Information Sheet","AML Questions","Rows 18:24",null,null,null,null,null,null,null,null,null,{"$f":"YEAR('Insurer Information'!C3)","v":2019}]
[{"$f":"A6+1","v":2},"Form 1SFS","Removed Total Restricted Assets and Unsecured Policyholder Obligations","Formerly rows 301:302"]
[{"$f":"A7+1","v":3},"Sch V(e) ","Financial Market Scenario ","Rows 1498:1519"]
[4,"Sch V(e) ","Underwriting Stress Scenarios","Rows 1577:1582"]
[5,"Sch V(e) ","Technology Risk Stress Scenario","Rows 1590:1672"]
[6,"Sch V(L)","Segregated Account Reporting","Rows 2124:3708"]

{"sheet":"Attachments","index":10,"n_rows":194,"n_cols":14,"rows_kept":194,"cut":false,"hidden":false,"merged":[[193,2,193,4],[184,2,184,4],[185,2,185,4],[186,2,186,4],[187,2,187,4],[188,2,188,4],[189,2,189,4],[190,2,190,4],[191,2,191,4],[192,2,192,4],[147,2,147,4],[148,2,148,4],[149,2,149,4],[150,2,150,4],[168,2,168,4],[123,2,123,4],[124,2,124,4],[125,2,125,4],[126,2,126,4],[164,2,164,4],[166,2,166,4],[167,2,167,4],[122,2,122,4],[104,2,104,4],[140,2,140,4],[105,2,105,4],[112,2,112,4],[113,2,113,4],[109,2,109,4],[106,2,106,4],[107,2,107,4],[108,2,108,4],[138,2,138,4],[121,2,121,4],[110,2,110,4],[111,2,111,4],[114,2,114,4],[115,2,115,4],[116,2,116,4],[117,2,117,4],[119,2,119,4],[120,2,120,4],[118,2,118,4],[102,2,102,4],[103,2,103,4],[99,2,99,4],[100,2,100,4],[44,2,44,4],[45,2,45,4],[82,2,82,4],[76,2,76,4],[77,2,77,4],[78,2,78,4],[80,2,80,4],[84,2,84,4],[83,2,83,4],[46,2,46,4],[47,2,47,4],[48,2,48,4],[49,2,49,4],[50,2,50,4],[51,2,51,4],[56,2,56,4],[57,2,57,4],[58,2,58,4],[52,2,52,4],[53,2,53,4],[4,2,4,4],[20,2,20,4],[35,2,35,4],[18,2,18,4],[8,2,8,4],[11,2,11,4],[12,2,12,4],[13,2,13,4],[27,2,27,4],[17,2,17,4],[33,2,33,4],[24,2,24,4],[15,2,15,4],[31,2,31,4],[32,2,32,4],[25,2,25,4],[9,2,9,4],[10,2,10,4],[5,2,5,4],[6,2,6,4],[7,2,7,4],[28,2,28,4],[29,2,29,4],[30,2,30,4],[40,2,40,4],[34,2,34,4],[36,2,36,4],[39,2,39,4],[37,2,37,4],[182,2,182,4],[183,2,183,4],[66,2,66,4],[67,2,67,4],[159,2,159,4],[160,2,160,4],[161,2,161,4],[162,2,162,4],[163,2,163,4],[154,2,154,4],[130,2,130,4],[137,2,137,4],[139,2,139,4],[135,2,135,4],[136,2,136,4],[134,2,134,4],[131,2,131,4],[132,2,132,4],[133,2,133,4],[177,2,177,4],[178,2,178,4],[179,2,179,4],[180,2,180,4],[157,2,157,4],[158,2,158,4],[127,2,127,4],[128,2,128,4],[129,2,129,4],[145,2,145,4],[141,2,141,4],[142,2,142,4],[143,2,143,4],[151,2,151,4],[152,2,152,4],[153,2,153,4],[144,2,144,4],[165,2,165,4],[146,2,146,4],[173,2,173,4],[169,2,169,4],[170,2,170,4],[171,2,171,4],[172,2,172,4],[181,2,181,4],[14,2,14,4],[16,2,16,4],[19,2,19,4],[21,2,21,4],[155,2,155,4],[22,2,22,4],[23,2,23,4],[41,2,41,4],[26,2,26,4],[38,2,38,4],[70,2,70,4],[73,2,73,4],[81,2,81,4],[74,2,74,4],[79,2,79,4],[42,2,42,4],[43,2,43,4],[75,2,75,4],[64,2,64,4],[174,2,174,4],[175,2,175,4],[176,2,176,4],[156,2,156,4],[54,2,54,4],[55,2,55,4],[59,2,59,4],[60,2,60,4],[61,2,61,4],[63,2,63,4],[65,2,65,4],[68,2,68,4],[69,2,69,4],[86,2,86,4],[87,2,87,4],[88,2,88,4],[90,2,90,4],[91,2,91,4],[101,2,101,4],[62,2,62,4],[72,2,72,4],[94,2,94,4],[95,2,95,4],[96,2,96,4],[97,2,97,4],[98,2,98,4],[92,2,92,4],[93,2,93,4],[89,2,89,4],[71,2,71,4],[85,2,85,4]]}
[null,"File Attachments",null,null,null,null,null,null,null,{"$f":"HYPERLINK(\"#'Index'!A1\",\"Return to Index\")","v":"Return to Index"}]
[]
[]
[null,null,null,null,null,null,null,null,null,"Input comment for each attached file here."]
[null,"1.","General purpose financial statement attachments",null,null,"<Attach file>","Attach","View","Remove",null,"Governance structure"]
[null,null,null,null,null,"<Attach file>","Attach","View","Remove",null,"Governance structure",null,null,"=YEAR('Insurer Information'!R[-3]C[-11])"]
[null,null,null,null,null,"<Attach file>","Attach","View","Remove",null,"Governance structure"]
[null,null,null,null,null,"<Attach file>","Attach","View","Remove",null,"Governance structure"]
[null,null,null,null,null,"<Attach file>","Attach","View","Remove",null,"Governance structure"]
[null,null,null,null,null,"<Attach file>","Attach","View","Remove",null,"Governance structure"]
[null,null,null,null,null,"<Attach file>","Attach","View","Remove",null,"Governance structure"]
[null,null,null,null,null,"<Attach file>","Attach","View","Remove",null,"Governance structure"]
[null,null,null,null,null,"<Attach file>","Attach","View","Remove",null,"Governance structure"]
[null,null,null,null,null,"<Attach file>","Attach","View","Remove",null,"Governance structure"]
[null,"2.","Declaration of Compliance",null,null,"<Attach file>","Attach","View","Remove",null,"Other Attachments"]
[null,null,null,null,null,"<Attach file>","Attach","View","Remove",null,"Other Attachments"]
[null,null,null,null,null,"<Attach file>","Attach","View","Remove",null,"Other Attachments"]
[null,null,null,null,null,"<Attach file>","Attach","View","Remove",null,"Other Attachments"]
[null,null,null,null,null,"<Attach file>","Attach","View","Remove",null,"Other Attachments"]
[null,null,null,null,null,"<Attach file>","Attach","View","Remove",null,"Other Attachments"]
[null,null,null,null,null,"<Attach file>","Attach","View","Remove",null,"Other Attachments"]
[null,null,null,null,null,"<Attach file>","Attach","View","Remove",null,"Other Attachments"]
[null,null,null,null,null,"<Attach file>","Attach","View","Remove",null,"Other Attachments"]
[null,null,null,null,null,"<Attach file>","Attach","View","Remove",null,"Other Attachments"]
[null,"3.","Financial Condition Report",null,null,"<Attach file>","Attach","View","Remove",null,"Group structure"]
[null,null,null,null,null,"<Attach file>","Attach","View","Remove",null,"Group structure"]
[null,null,null,null,null,"<Attach file>","Attach","View","Remove",null,"Group structure"]
[null,null,null,null,null,"<Attach file>","Attach","View","Remove",null,"Group structure"]
[null,null,null,null,null,"<Attach file>","Attach","View","Remove",null,"Group structure"]
[null,null,null,null,null,"<Attach file>","Attach","View","Remove",null,"Group structure"]
[null,null,null,null,null,"<Attach file>","Attach","View","Remove",null,"Group structure"]
[null,null,null,null,null,"<Attach file>","Attach","View","Remove",null,"Group structure"]
[null,null,null,null,null,"<Attach file>","Attach","View","Remove",null,"Group structure"]
[null,null,null,null,null,"<Attach file>","Attach","View","Remove",null,"Group structure"]
[null,"4.","CISSA attachments",null,null,"<Attach file>","Attach","View","Remove",null,"Intra-group exposures"]
[null,null,null,null,null,"<Attach file>","Attach","View","Remove",null,"Intra-group exposures"]
[null,null,null,null,null,"<Attach file>","Attach","View","Remove",null,"Intra-group exposures"]
[null,null,null,null,null,"<Attach file>","Attach","View","Remove",null,"Intra-group exposures"]
[null,null,null,null,null,"<Attach file>","Attach","View","Remove",null,"Intra-group exposures"]
[null,null,null,null,null,"<Attach file>","Attach","View","Remove",null,"Intra-group exposures"]
[null,null,null,null,null,"<Attach file>","Attach","View","Remove",null,"Intra-group exposures"]
[null,null,null,null,null,"<Attach file>","Attach","View","Remove",null,"Intra-group exposures"]
[null,null,null,null,null,"<Attach file>","Attach","View","Remove",null,"Intra-group exposures"]
[null,null,null,null,null,"<Attach file>","Attach","View","Remove",null,"Intra-group exposures"]
[null,"5.","Form 4EBS Attachments - Collateral Balances and Sundry Assets/Liabilities",null,null,"<Attach file>","Attach","View","Remove",null,"Risk register"]
[null,null,null,null,null,"<Attach file>","Attach","View","Remove",null,"Risk register"]
[null,null,null,null,null,"<Attach file>","Attach","View","Remove",null,"Risk register"]
[null,null,null,null,null,"<Attach file>","Attach","View","Remove",null,"Risk register"]
[null,null,null,null,null,"<Attach file>","Attach","View","Remove",null,"Risk register"]
[null,null,null,null,null,"<Attach file>","Attach","View","Remove",null,"Risk register"]
[null,null,null,null,null,"<Attach file>","Attach","View","Remove",null,"Risk register"]
[null,null,null,null,null,"<Attach file>","Attach","View","Remove",null,"Risk register"]
[null,null,null,null,null,"<Attach file>","Attach","View","Remove",null,"Risk register"]
[null,null,null,null,null,"<Attach file>","Attach","View","Remove",null,"Risk register"]
[null,"6.","Form 4EBS Attachments - Long-Term Business Reserves & Actuarial Memorandum",null,null,"<Attach file>","Attach","View","Remove",null,"Risk register"]
[null,null,null,null,null,"<Attach file>","Attach","View","Remove",null,"Risk register"]
[null,null,null,null,null,"<Attach file>","Attach","View","Remove",null,"Risk register"]
[null,null,null,null,null,"<Attach file>","Attach","View","Remove",null,"Risk register"]
[null,null,null,null,null,"<Attach file>","Attach","View","Remove",null,"Risk register"]
[null,null,null,null,null,"<Attach file>","Attach","View","Remove",null,"Risk register"]
[null,null,null,null,null,"<Attach file>","Attach","View","Remove",null,"Risk register"]
[null,null,null,null,null,"<Attach file>","Attach","View","Remove",null,"Risk register"]
[null,null,null,null,null,"<Attach file>","Attach","View","Remove",null,"Risk register"]
[null,null,null,null,null,"<Attach file>","Attach","View","Remove",null,"Risk register"]
[null,"7.","Governance and group structure",null,null,"<Attach file>","Attach","View","Remove",null,"Risk register"]
[null,null,null,null,null,"<Attach file>","Attach","View","Remove",null,"Risk register"]
[null,null,null,null,null,"<Attach file>","Attach","View","Remove",null,"Risk register"]
[null,null,null,null,null,"<Attach file>","Attach","View","Remove",null,"Risk register"]
[null,null,null,null,null,"<Attach file>","Attach","View","Remove",null,"Risk register"]
[null,null,null,null,null,"<Attach file>","Attach","View","Remove",null,"Risk register"]
[null,null,null,null,null,"<Attach file>","Attach","View","Remove",null,"Risk register"]
[null,null,null,null,null,"<Attach file>","Attach","View","Remove",null,"Risk register"]
[null,null,null,null,null,"<Attach file>","Attach","View","Remove",null,"Risk register"]
[null,null,null,null,null,"<Attach file>","Attach","View","Remove",null,"Risk register"]
[null,"8.","Organisational Chart",null,null,"<Attach file>","Attach","View","Remove",null,"Description of the effective duration of assets and liabilities calculations and key assumptions"]
[null,null,null,null,null,"<Attach file>","Attach","View","Remove",null,"Description of the effective duration of assets and liabilities calculations and key assumptions"]
[null,null,null,null,null,"<Attach file>","Attach","View","Remove",null,"Description of the effective duration of assets and liabilities calculations and key assumptions"]
[null,null,null,null,null,"<Attach file>","Attach","View","Remove",null,"Description of the effective duration of assets and liabilities calculations and key assumptions"]
[null,null,null,null,null,"<Attach file>","Attach","View","Remove",null,"Description of the effective duration of assets and liabilities calculations and key assumptions"]
[null,null,null,null,null,"<Attach file>","Attach","View","Remove",null,"Description of the effective duration of assets and liabilities calculations and key assumptions"]
[null,null,null,null,null,"<Attach file>","Attach","View","Remove",null,"Description of the effective duration of assets and liabilities calculations and key assumptions"]
[null,null,null,null,null,"<Attach file>","Attach","View","Remove",null,"Description of the effective duration of assets and liabilities calculations and key assumptions"]
[null,null,null,null,null,"<Attach file>","Attach","View","Remove",null,"Description of the effective duration of assets and liabilities calculations and key assumptions"]
[null,null,null,null,null,"<Attach file>","Attach","View","Remove",null,"Description of the effective duration of assets and liabilities calculations and key assumptions"]
[null,"9.","Intra-group transactions and risk concentrations",null,null,"<Attach file>","Attach","View","Remove",null,"Description of underwriting strategy"]
[null,null,null,null,null,"<Attach file>","Attach","View","Remove",null,"Description of underwriting strategy"]
[null,null,null,null,null,"<Attach file>","Attach","View","Remove",null,"Description of underwriting strategy"]
[null,null,null,null,null,"<Attach file>","Attach","View","Remove",null,"Description of underwriting strategy"]
[null,null,null,null,null,"<Attach file>","Attach","View","Remove",null,"Description of underwriting strategy"]
[null,null,null,null,null,"<Attach file>","Attach","View","Remove",null,"Description of underwriting strategy"]
[null,null,null,null,null,"<Attach file>","Attach","View","Remove",null,"Description of underwriting strategy"]
[null,null,null,null,null,"<Attach file>","Attach","View","Remove",null,"Description of underwriting strategy"]
[null,null,null,null,null,"<Attach file>","Attach","View","Remove",null,"Description of underwriting strategy"]
[null,null,null,null,null,"<Attach file>","Attach","View","Remove",null,"Description of underwriting strategy"]
[null,"10.","Description of the effective duration of assets and liabilities calculations and key assumptions",null,null,"<Attach file>","Attach","View","Remove",null,"Financial impact and description of stress & scenarios"]
[null,null,null,null,null,"<Attach file>","Attach","View","Remove",null,"Financial impact and description of stress & scenarios"]
[null,null,null,null,null,"<Attach file>","Attach","View","Remove",null,"Financial impact and description of stress & scenarios"]
[null,null,null,null,null,"<Attach file>","Attach","View","Remove",null,"Financial impact and description of stress & scenarios"]
[null,null,null,null,null,"<Attach file>","Attach","View","Remove",null,"Financial impact and description of stress & scenarios"]
[null,null,null,null,null,"<Attach file>","Attach","View","Remove",null,"Financial impact and description of stress & scenarios"]
[null,null,null,null,null,"<Attach file>","Attach","View","Remove",null,"Financial impact and description of stress & scenarios"]
[null,null,null,null,null,"<Attach file>","Attach","View","Remove",null,"Financial impact and description of stress & scenarios"]
[null,null,null,null,null,"<Attach file>","Attach","View","Remove",null,"Financial impact and description of stress & scenarios"]
[null,null,null,null,null,"<Attach file>","Attach","View","Remove",null,"Financial impact and description of stress & scenarios"]
[null,"11.","Description of the investments, derivatives strategies & policies",null,null,"<Attach file>","Attach","View","Remove",null,"Description of the insurer's risk management program"]
[null,null,null,null,null,"<Attach file>","Attach","View","Remove",null,"Description of the insurer's risk management program"]
[null,null,null,null,null,"<Attach file>","Attach","View","Remove",null,"Description of the insurer's risk management program"]
[null,null,null,null,null,"<Attach file>","Attach","View","Remove",null,"Description of the insurer's risk management program"]
[null,null,null,null,null,"<Attach file>","Attach","View","Remove",null,"Description of the insurer's risk management program"]
[null,null,null,null,null,"<Attach file>","Attach","View","Remove",null,"Description of the insurer's risk management program"]
[null,null,null,null,null,"<Attach file>","Attach","View","Remove",null,"Description of the insurer's risk management program"]
[null,null,null,null,null,"<Attach file>","Attach","View","Remove",null,"Description of the insurer's risk management program"]
[null,null,null,null,null,"<Attach file>","Attach","View","Remove",null,"Description of the insurer's risk management program"]
[null,null,null,null,null,"<Attach file>","Attach","View","Remove",null,"Description of the insurer's risk management program"]
[null,"12.","Bonds and debentures that have been reclassed in accordance with the NAIC",null,null,"<Attach file>","Attach","View","Remove",null,"Other Attachments"]
[null,null,null,null,null,"<Attach file>","Attach","View","Remove",null,"Other Attachments"]
[null,null,null,null,null,"<Attach file>","Attach","View","Remove",null,"Other Attachments"]
[null,null,null,null,null,"<Attach file>","Attach","View","Remove",null,"Other Attachments"]
[null,null,null,null,null,"<Attach file>","Attach","View","Remove",null,"Other Attachments"]
[null,null,null,null,null,"<Attach file>","Attach","View","Remove",null,"Other Attachments"]
[null,null,null,null,null,"<Attach file>","Attach","View","Remove",null,"Other Attachments"]
[null,null,null,null,null,"<Attach file>","Attach","View","Remove",null,"Other Attachments"]
[null,null,null,null,null,"<Attach file>","Attach","View","Remove",null,"Other Attachments"]
[null,null,null,null,null,"<Attach file>","Attach","View","Remove",null,"Other Attachments"]
[null,"13.","Mutual fund disclosures",null,null,"<Attach file>","Attach","View","Remove",null,"Other Attachments"]
[null,null,null,null,null,"<Attach file>","Attach","View","Remove",null,"Other Attachments"]
[null,null,null,null,null,"<Attach file>","Attach","View","Remove",null,"Other Attachments"]
[null,null,null,null,null,"<Attach file>","Attach","View","Remove",null,"Other Attachments"]
[null,null,null,null,null,"<Attach file>","Attach","View","Remove",null,"Other Attachments"]
[null,null,null,null,null,"<Attach file>","Attach","View","Remove",null,"Other Attachments"]
[null,null,null,null,null,"<Attach file>","Attach","View","Remove",null,"Other Attachments"]
[null,null,null,null,null,"<Attach file>","Attach","View","Remove",null,"Other Attachments"]
[null,null,null,null,null,"<Attach file>","Attach","View","Remove",null,"Other Attachments"]
[null,null,null,null,null,"<Attach file>","Attach","View","Remove",null,"Other Attachments"]
[null,"14.","Description of business and underwriting strategy",null,null,"<Attach file>","Attach","View","Remove",null,"Risk register"]
[null,null,null,null,null,"<Attach file>","Attach","View","Remove",null,"Risk register"]
[null,null,null,null,null,"<Attach file>","Attach","View","Remove",null,"Risk register"]
[null,null,null,null,null,"<Attach file>","Attach","View","Remove",null,"Risk register"]
[null,null,null,null,null,"<Attach file>","Attach","View","Remove",null,"Risk register"]
[null,null,null,null,null,"<Attach file>","Attach","View","Remove",null,"Risk register"]
[null,null,null,null,null,"<Attach file>","Attach","View","Remove",null,"Risk register"]
[null,null,null,null,null,"<Attach file>","Attach","View","Remove",null,"Risk register"]
[null,null,null,null,null,"<Attach file>","Attach","View","Remove",null,"Risk register"]
[null,null,null,null,null,"<Attach file>","Attach","View","Remove",null,"Risk register"]
[null,"15.","Summary of product features and risks",null,null,"<Attach file>","Attach","View","Remove",null,"CISSA Attachments"]
[null,null,null,null,null,"<Attach file>","Attach","View","Remove",null,"CISSA Attachments"]
[null,null,null,null,null,"<Attach file>","Attach","View","Remove",null,"CISSA Attachments"]
[null,null,null,null,null,"<Attach file>","Attach","View","Remove",null,"CISSA Attachments"]
[null,null,null,null,null,"<Attach file>","Attach","View","Remove",null,"CISSA Attachments"]
[null,null,null,null,null,"<Attach file>","Attach","View","Remove",null,"CISSA Attachments"]
[null,null,null,null,null,"<Attach file>","Attach","View","Remove",null,"CISSA Attachments"]
[null,null,null,null,null,"<Attach file>","Attach","View","Remove",null,"CISSA Attachments"]
[null,null,null,null,null,"<Attach file>","Attach","View","Remove",null,"CISSA Attachments"]
[null,null,null,null,null,"<Attach file>","Attach","View","Remove",null,"CISSA Attachments"]
[null,"16.","Financial impact and description of stress & scenarios",null,null,"<Attach file>","Attach","View","Remove",null,"CISSA Attachments"]
[null,null,null,null,null,"<Attach file>","Attach","View","Remove",null,"CISSA Attachments"]
[null,null,null,null,null,"<Attach file>","Attach","View","Remove",null,"CISSA Attachments"]
[null,null,null,null,null,"<Attach file>","Attach","View","Remove",null,"CISSA Attachments"]
[null,null,null,null,null,"<Attach file>","Attach","View","Remove",null,"CISSA Attachments"]
[null,null,null,null,null,"<Attach file>","Attach","View","Remove",null,"CISSA Attachments"]
[null,null,null,null,null,"<Attach file>","Attach","View","Remove",null,"CISSA Attachments"]
[null,null,null,null,null,"<Attach file>","Attach","View","Remove",null,"CISSA Attachments"]
[null,null,null,null,null,"<Attach file>","Attach","View","Remove",null,"CISSA Attachments"]
[null,null,null,null,null,"<Attach file>","Attach","View","Remove",null,"CISSA Attachments"]
[null,"17.","Reconciliation to Company Specific Parameters",null,null,"<Attach file>","Attach","View","Remove",null,"Other Attachments"]
[null,null,null,null,null,"<Attach file>","Attach","View","Remove",null,"Other Attachments"]
[null,null,null,null,null,"<Attach file>","Attach","View","Remove",null,"Other Attachments"]
[null,null,null,null,null,"<Attach file>","Attach","View","Remove",null,"Other Attachments"]
[null,null,null,null,null,"<Attach file>","Attach","View","Remove",null,"Other Attachments"]
[null,null,null,null,null,"<Attach file>","Attach","View","Remove",null,"Other Attachments"]
[null,null,null,null,null,"<Attach file>","Attach","View","Remove",null,"Other Attachments"]
[null,null,null,null,null,"<Attach file>","Attach","View","Remove",null,"Other Attachments"]
[null,null,null,null,null,"<Attach file>","Attach","View","Remove",null,"Other Attachments"]
[null,null,null,null,null,"<Attach file>","Attach","View","Remove",null,"Other Attachments"]
[null,"18.","Other Attachments",null,null,"<Attach file>","Attach","View","Remove",null,"Other Attachments"]
[null,null,null,null,null,"<Attach file>","Attach","View","Remove",null,"Other Attachments"]
[null,null,null,null,null,"<Attach file>","Attach","View","Remove",null,"Other Attachments"]
[null,null,null,null,null,"<Attach file>","Attach","View","Remove",null,"Other Attachments"]
[null,null,null,null,null,"<Attach file>","Attach","View","Remove",null,"Other Attachments"]
[null,null,null,null,null,"<Attach file>","Attach","View","Remove",null,"Other Attachments"]
[null,null,null,null,null,"<Attach file>","Attach","View","Remove",null,"Other Attachments"]
[null,null,null,null,null,"<Attach file>","Attach","View","Remove","","Other Attachments"]
[null,null,null,null,null,"<Attach file>","Attach","View","Remove","","Other Attachments"]
[null,null,null,null,null,"<Attach file>","Attach","View","Remove","","Other Attachments"]
[null,"19.","Other Attachments",null,null,"<Attach file>","Attach","View","Remove",null,"Other Attachments"]
[null,null,null,null,null,"<Attach file>","Attach","View","Remove",null,"Other Attachments"]
[null,null,null,null,null,"<Attach file>","Attach","View","Remove",null,"Other Attachments"]
[null,null,null,null,null,"<Attach file>","Attach","View","Remove",null,"Other Attachments"]
[null,null,null,null,null,"<Attach file>","Attach","View","Remove",null,"Other Attachments"]
[null,null,null,null,null,"<Attach file>","Attach","View","Remove",null,"Other Attachments"]
[null,null,null,null,null,"<Attach file>","Attach","View","Remove",null,"Other Attachments"]
[null,null,null,null,null,"<Attach file>","Attach","View","Remove",null,"Other Attachments"]
[null,null,null,null,null,"<Attach file>","Attach","View","Remove","","Other Attachments"]
[null,null,null,null,null,"<Attach file>","Attach","View","Remove","","Other Attachments"]

{"sheet":"Declaration","index":11,"n_rows":42,"n_cols":19,"rows_kept":42,"cut":false,"hidden":false,"merged":[[14,1,14,6],[17,2,17,6],[19,2,19,6],[25,2,25,6],[37,2,37,6],[27,2,27,6],[22,2,22,6],[30,2,30,6],[32,2,32,6],[34,2,34,6]]}
[null,"CAPITAL AND SOLVENCY RETURN DECLARATION",null,null,null,null,{"$f":"HYPERLINK(\"#'Index'!A1\",\"Return to Index\")","v":"Return to Index"},null,null,"bma_CapitalAndSolvencyReturnDeclarationAbstract",null,null,null,null,null,null,null,null,{"$f":"IF(B5=\"\",\"\",TEXT(DATE(YEAR(B5+1)-1,MONTH(B5+1),DAY(B5+1)),\"mm/dd/yyyy\"))","v":"01/01/2019"}]
[null,null,null,null,null,null,null,null,null,null,"",null,null,null,null,null,null,null,{"$f":"IF(B5=\"\",\"\",TEXT(B5,\"mm/dd/yyyy\"))","v":"12/31/2019"}]
[]
[null,{"$f":"'Insurer Information'!C7","v":"Enter Company Name"}]
[null,{"$f":"'Insurer Information'!C3","v":"2019-12-31"},null,null,null,null,null,null,null,null,""]
[null,null,null,null,null,null,null,null,null,null,null,null,null,{"$f":"YEAR('Insurer Information'!C3)","v":2019}]
[]
[]
[]
[]
[]
[]
[]
[]
[null,"We declare that to the best of our knowledge and belief, the information in this Capital and Solvency Return fairly represents the financial condition of the Company in all material respects."]
[]
[]
[null,"Signatory:",null,null,null,null,null,null,null,"brrt_DeclarationSIgnatory"]
[]
[null,"Print Name:",{"$f":"Import!E3","v":0},null,null,null,null,null,null,"brrt_DeclarationPrintName"]
[null,null,"Director",null,null,null,null,null,null,"brrt_DeclarationTitle"]
[null,null,null,null,null,null,null,null,null,""]
[null,"Date:",{"$f":"Import!E4","v":"00:00:00"},null,null,null,null,null,null,"brrt_DeclarationDate"]
[null,null,null,null,null,null,null,null,null,"brrt_Declaration",{"$f":"XBRLMapTuple(J24,$S$1,$S$2,\"BMA\",CONFIGURATION!$B$1,\"bscr\",\"\",CONFIGURATION!$B$12,J21,C21,J18,C18,J20,C20,J23,C23)","v":"Mapped"}]
[]
[null,"Signatory:",null,null,null,null,null,null,null,"brrt_DeclarationSIgnatory"]
[]
[null,"Print Name:",{"$f":"Import!E5","v":0},null,null,null,null,null,null,"brrt_DeclarationPrintName"]
[null,null,"Director",null,null,null,null,null,null,"brrt_DeclarationTitle"]
[null,null,null,null,null,null,null,null,null,""]
[null,"Date:",{"$f":"Import!E6","v":"00:00:00"},null,null,null,null,null,null,"brrt_DeclarationDate"]
[null,null,null,null,null,null,null,null,null,"brrt_Declaration",{"$f":"XBRLMapTuple(J32,$S$1,$S$2,\"BMA\",CONFIGURATION!$B$1,\"bscr\",\"\",CONFIGURATION!$B$12,J29,C29,J26,C26,J28,C28,J31,C31)","v":"Mapped"}]
[null,"Signatory:",null,null,null,null,null,null,null,"brrt_DeclarationSIgnatory"]
[]
[null,"Print Name:",{"$f":"Import!E7","v":0},null,null,null,null,null,null,"brrt_DeclarationPrintName"]
[null,null,"Principal Representative ",null,null,null,null,null,null,"brrt_DeclarationTitle"]
[null,null,null,null,null,null,null,null,null,""]
[null,"Date:",{"$f":"Import!E8","v":"00:00:00"},null,null,null,null,null,null,"brrt_DeclarationDate"]
[null,null,null,null,null,null,null,null,null,"brrt_Declaration",{"$f":"XBRLMapTuple(J39,$S$1,$S$2,\"BMA\",CONFIGURATION!$B$1,\"bscr\",\"\",CONFIGURATION!$B$12,J36,C36,J33,C33,J35,C35,J38,C38)","v":"Mapped"}]
[null,"Insurer Name:",{"$f":"'Insurer Information'!C7","v":"Enter Company Name"}]
[]
[null,"Year-end:",{"$f":"'Insurer Information'!C3","v":"2019-12-31"}]

{"sheet":"BSCR Rating","index":12,"n_rows":17,"n_cols":18,"rows_kept":17,"cut":false,"hidden":false,"merged":[[8,2,8,5]]}
[null,"BSCR RATING SCHEDULE",null,null,null,{"$f":"HYPERLINK(\"#'Index'!A1\",\"Return to Index\")","v":"Return to Index"},null,null,"bma_CapitalAndSolvencyReturnDeclarationAbstract",null,null,null,null,null,null,null,null,{"$f":"IF(B5=\"\",\"\",TEXT(DATE(YEAR(B5+1)-1,MONTH(B5+1),DAY(B5+1)),\"mm/dd/yyyy\"))","v":"01/01/2019"}]
[null,null,null,null,null,null,null,null,null,"",null,null,null,null,null,null,null,{"$f":"IF(B5=\"\",\"\",TEXT(B5,\"mm/dd/yyyy\"))","v":"12/31/2019"}]
[]
[null,{"$f":"'Insurer Information'!C7","v":"Enter Company Name"}]
[null,{"$f":"'Insurer Information'!C3","v":"2019-12-31"},null,null,null,null,null,null,null,""]
[null,null,null,null,null,null,null,null,null,null,null,null,null,{"$f":"YEAR('Insurer Information'!C3)","v":2019}]
[null,"BSCR RATING SCHEDULE"]
[null,"BSCR Rating","Standard & Poor’s","Moody’s","AM Best","Fitch"]
[null,0,"Sovereign debt issued by a country in its own currency that is rated AA- or better"]
[null,1,"AAA","Aaa","A++","AAA"]
[null,2,"AA+ to AA-","Aa1 to Aa3","A+","AA+ to AA-"]
[null,3,"A+ to A-","A1 to A3","A","A+ to A-"]
[null,4,"BBB+ to BBB-","Baa1 to Baa3","A-","BBB+ to BBB-"]
[null,5,"BB+ to BB-","Ba1 to Ba3","B++ to B","BB+ to BB-"]
[null,6,"B+ to B-","B1 to B3","B- to C+","B+ to B-"]
[null,7,"CCC+ to CCC-","Caa1 to Caa3","C, C-","CCC+ to CCC-"]
[null,8,"Below CCC-","Below Caa3","Below C-","Below CCC-"]

{"sheet":"AML (LT Direct Only)","index":13,"n_rows":315,"n_cols":19,"rows_kept":315,"cut":false,"hidden":false,"merged":[[0,1,0,4],[4,1,6,9],[25,6,25,8],[54,6,54,8],[91,2,95,9],[99,2,103,9],[111,4,111,5],[204,2,208,9],[229,2,229,7],[237,5,237,6],[242,2,242,5],[243,2,243,5],[244,2,244,5],[257,2,261,9],[264,1,264,8],[265,1,265,7],[266,2,266,7],[267,2,267,7],[268,2,268,7],[269,2,269,7],[270,2,270,7],[271,2,271,7],[272,2,272,7],[273,2,273,7],[274,2,274,7],[275,2,275,7],[276,2,276,7],[277,2,277,7],[278,2,278,7],[280,1,280,8],[282,2,282,7],[283,2,283,7],[284,2,284,7],[285,2,285,7],[286,2,286,7],[288,1,288,8],[290,2,290,7],[291,2,291,7],[292,2,292,7],[293,2,293,7],[294,2,294,7],[295,2,295,7],[296,2,296,7],[297,2,297,7],[298,2,298,7],[300,1,300,8],[302,2,302,7],[303,2,303,7],[304,2,304,7],[305,2,305,7]]}
[null,"SCHEDULE OF ANTI-MONEY LAUNDERING AND ANTI-TERRORIST FINANCING ",null,null,null,null,null,null,null,{"$f":"HYPERLINK(\"#'Index'!A1\",\"Return to Index\")","v":"Return to Index"},null,null,null,null,null,{"$f":"HYPERLINK(\"#'Index'!A1\",\"Return to Index\")","v":"Return to Index"},{"$f":"IF($B$3=\"\",\"\",TEXT(DATE(YEAR($B$3+1)-1,MONTH($B$3+1),DAY($B$3+1)),\"mm/dd/yyyy\"))","v":"01/01/2019"}]
[null,{"$f":"'Insurer Information'!C7","v":"Enter Company Name"},null,null,null,null,null,null,null,null,null,null,null,null,null,null,{"$f":"IF($B$3=\"\",\"\",TEXT($B$3,\"mm/dd/yyyy\"))","v":"12/31/2019"}]
[null,{"$f":" TEXT('Insurer Information'!C3,\"mmmm dd, yyyy\")","v":"December 31, 2019"},null,null,null,null,null,null,null,"SCHEDULE XXII"]
[]
[null,"Every insurer (on a unconsolidated basis) that writes or has in force long-term business shall be required to complete the questions set out in the Schedule of Anti-Money Laundering/Anti-Terrorist Financing (“Schedule”) in relation to its long term business but excluding any reinsurance business and provide particulars of its gross written premiums for the relevant year. "]
[null,null,null,null,null,null,null,null,null,null,null,null,null,{"$f":"YEAR('Insurer Information'!C3)","v":2019}]
[]
[]
["Section A - Client/Customer Numbers"]
[null,1,"Total Number of policies (regulated for AML/ATF purposes)",null,null,null,null,null,{"$f":"Import!E9491","v":0}]
[]
[null,{"$f":"B10+1","v":2},"Does the company risk rate policies for ML/TF risk?",null,null,null,null,null,{"$f":"Import!E9492","v":"Select Yes/No"}]
[]
[null,{"$f":"B12+1","v":3},"State the number of policies in the following risk assessment category—"]
[null,null,null,null,null,null,null,null,"Number of Policies"]
[null,null,null,null,null,null,null,"Low Risk",{"$f":"Import!E9493","v":0}]
[null,null,null,null,null,null,null,"Medium Risk",{"$f":"Import!E9494","v":0}]
[null,null,null,null,null,null,null,"High Risk",{"$f":"Import!E9495","v":0}]
[null,null,null,null,null,null,null,"Unknown",{"$f":"Import!E9496","v":0}]
[null,null,null,null,null,null,null,"Total",{"$f":"SUM(I16:I19)","v":0}]
["Section B - Products/Services"]
[null,1,"Provide the Gross Premium Written (GPW) for the relevant year. In addition:",null,null,null,null,null,{"$f":"Import!E9498","v":0}]
[null,null,"(a) Provide the percentage of GPW corresponding to any unrelated business written by the insurer.",null,null,null,null,null,{"$f":"Import!E9499","v":0}]
[null,null,"(b) If applicable, confirm the percentage of insurance incidental general business written by the insurer to the total insurance gross premium written.",null,null,null,null,null,{"$f":"Import!E9500","v":0}]
[null,null,"(c) Provide GPW by line of business:"]
[null,null,null,null,null,null,"Insurance"]
[null,null,"Lines of Business",null,null,null,"GPW US$",null,"Number of Policies"]
[null,null,"(a) Mortality "]
[null,null,null,"(i) Term Assurance",null,null,{"$f":"Import!E9501","v":0},null,{"$f":"Import!E9523","v":0}]
[null,null,null,"(ii) Whole Life",null,null,{"$f":"Import!E9502","v":0},null,{"$f":"Import!E9524","v":0}]
[null,null,null,"(iii) Universal Life",null,null,{"$f":"Import!E9503","v":0},null,{"$f":"Import!E9525","v":0}]
[null,null,"(b) Critical Illness (including accelerated critical illness products)",null,null,null,{"$f":"Import!E9504","v":0},null,{"$f":"Import!E9526","v":0}]
[null,null,"(c) Longevity (immediate pay-out annuities, contingent annuities, pension pay-outs)",null,null,null,{"$f":"Import!E9505","v":0},null,{"$f":"Import!E9527","v":0}]
[null,null,"(d) Longevity (deferred pay-out annuities, future contingent annuities, future pension pay-outs)",null,null,null,{"$f":"Import!E9506","v":0},null,{"$f":"Import!E9528","v":0}]
[null,null,"(e) Annuities certain only",null,null,null,{"$f":"Import!E9507","v":0},null,{"$f":"Import!E9529","v":0}]
[null,null,"(f) Deferred accumulation annuities",null,null,null,{"$f":"Import!E9508","v":0},null,{"$f":"Import!E9530","v":0}]
[null,null,"(g) Disability Income: active lives - including waiver of premium and long-term care",null,null,null,{"$f":"Import!E9509","v":0},null,{"$f":"Import!E9531","v":0}]
[null,null,"(h) Disability income: active lives - other accident and sickness",null,null,null,{"$f":"Import!E9510","v":0},null,{"$f":"Import!E9532","v":0}]
[null,null,"(i) Disability income: claims in payment - including waiver of premium and long-term care",null,null,null,{"$f":"Import!E9511","v":0},null,{"$f":"Import!E9533","v":0}]
[null,null,"(j) Disability income: claims in payment - other accident and sickness",null,null,null,{"$f":"Import!E9512","v":0},null,{"$f":"Import!E9534","v":0}]
[null,null,"(k) Group Life",null,null,null,{"$f":"Import!E9513","v":0},null,{"$f":"Import!E9535","v":0}]
[null,null,"(l) Group Disability",null,null,null,{"$f":"Import!E9514","v":0},null,{"$f":"Import!E9536","v":0}]
[null,null,"(m) Group Health",null,null,null,{"$f":"Import!E9515","v":0},null,{"$f":"Import!E9537","v":0}]
[null,null,"(n) Stop Loss",null,null,null,{"$f":"Import!E9516","v":0},null,{"$f":"Import!E9538","v":0}]
[null,null,"(o) Rider (other product riders not included above)",null,null,null,{"$f":"Import!E9517","v":0},null,{"$f":"Import!E9539","v":0}]
[null,null,"(p) Variable Annuities",null,null,null,{"$f":"Import!E9518","v":0},null,{"$f":"Import!E9540","v":0}]
[null,null,"(q) Other Lines of Business",null,null,null,{"$f":"Import!E9519","v":0},null,{"$f":"Import!E9541","v":0}]
[]
[null,null,null,"(i) General Business",null,null,{"$f":"Import!E9520","v":0},null,{"$f":"Import!E9542","v":0}]
[null,null,null,"(ii) Any other lines of Business",null,null,{"$f":"Import!E9521","v":0},null,{"$f":"Import!E9543","v":0}]
[]
[null,null,"Total Gross Premium Written ",null,null,null,{"$f":"SUM(G29:G50)","v":0},null,{"$f":"SUM(I29:I50)","v":0}]
[]
[null,2,"Provide claims paid (gross) for the reporting period. Additionally, provide claims paid by line of business:"]
[null,null,null,null,null,null,"Insurance"]
[null,null,"Lines of Business",null,null,null,"Paid US$",null,"Number of Policies"]
[null,null,"(a) Mortality "]
[null,null,null,"(i) Term Assurance",null,null,{"$f":"Import!E9545","v":0},null,{"$f":"Import!E9567","v":0}]
[null,null,null,"(ii) Whole Life",null,null,{"$f":"Import!E9546","v":0},null,{"$f":"Import!E9568","v":0}]
[null,null,null,"(iii) Universal Life",null,null,{"$f":"Import!E9547","v":0},null,{"$f":"Import!E9569","v":0}]
[null,null,"(b) Critical Illness (including accelerated critical illness products)",null,null,null,{"$f":"Import!E9548","v":0},null,{"$f":"Import!E9570","v":0}]
[null,null,"(c) Longevity (immediate pay-out annuities, contingent annuities, pension pay-outs)",null,null,null,{"$f":"Import!E9549","v":0},null,{"$f":"Import!E9571","v":0}]
[null,null,"(d) Longevity (deferred pay-out annuities, future contingent annuities, future pension pay-outs)",null,null,null,{"$f":"Import!E9550","v":0},null,{"$f":"Import!E9572","v":0}]
[null,null,"(e) Annuities certain only",null,null,null,{"$f":"Import!E9551","v":0},null,{"$f":"Import!E9573","v":0}]
[null,null,"(f) Deferred accumulation annuities",null,null,null,{"$f":"Import!E9552","v":0},null,{"$f":"Import!E9574","v":0}]
[null,null,"(g) Disability Income: active lives - including waiver of premium and long-term care",null,null,null,{"$f":"Import!E9553","v":0},null,{"$f":"Import!E9575","v":0}]
[null,null,"(h) Disability income: active lives - other accident and sickness",null,null,null,{"$f":"Import!E9554","v":0},null,{"$f":"Import!E9576","v":0}]
[null,null,"(i) Disability income: claims in payment - including waiver of premium and long-term care",null,null,null,{"$f":"Import!E9555","v":0},null,{"$f":"Import!E9577","v":0}]
[null,null,"(j) Disability income: claims in payment - other accident and sickness",null,null,null,{"$f":"Import!E9556","v":0},null,{"$f":"Import!E9578","v":0}]
[null,null,"(k) Group Life",null,null,null,{"$f":"Import!E9557","v":0},null,{"$f":"Import!E9579","v":0}]
[null,null,"(l) Group Disability",null,null,null,{"$f":"Import!E9558","v":0},null,{"$f":"Import!E9580","v":0}]
[null,null,"(m) Group Health",null,null,null,{"$f":"Import!E9559","v":0},null,{"$f":"Import!E9581","v":0}]
[null,null,"(n) Stop Loss",null,null,null,{"$f":"Import!E9560","v":0},null,{"$f":"Import!E9582","v":0}]
[null,null,"(o) Rider (other product riders not included above)",null,null,null,{"$f":"Import!E9561","v":0},null,{"$f":"Import!E9583","v":0}]
[null,null,"(p) Variable Annuities",null,null,null,{"$f":"Import!E9562","v":0},null,{"$f":"Import!E9584","v":0}]
[null,null,"(q) Other Lines of Business",null,null,null,{"$f":"Import!E9563","v":0},null,{"$f":"Import!E9585","v":0}]
[]
[null,null,null,"(i) General Business",null,null,{"$f":"Import!E9564","v":0},null,{"$f":"Import!E9586","v":0}]
[null,null,null,"(ii) Any other lines of Business",null,null,{"$f":"Import!E9565","v":0},null,{"$f":"Import!E9587","v":0}]
[]
[null,null,"Total Claims Paid",null,null,null,{"$f":"SUM(G58:G79)","v":0},null,{"$f":"SUM(I58:I79)","v":0}]
[]
[null,3,"Confirm the mechanism(s) used by the company to receive premium and pay claims:"]
[null,null,null,null,null,null,"Premium ",null,"Claims"]
[null,null,null,null,null,"Bank transfer",{"$f":"Import!E9589","v":0},null,{"$f":"Import!E9596","v":0}]
[null,null,null,null,null,"Cash",{"$f":"Import!E9590","v":0},null,{"$f":"Import!E9597","v":0}]
[null,null,null,null,null,"Cheque",{"$f":"Import!E9591","v":0},null,{"$f":"Import!E9598","v":0}]
[null,null,null,null,null,"Credit/debit card",{"$f":"Import!E9592","v":0},null,{"$f":"Import!E9599","v":0}]
[null,null,null,null,null,"Virtual currencies",{"$f":"Import!E9593","v":0},null,{"$f":"Import!E9600","v":0}]
[null,null,null,null,null,"Other (provide examples)",{"$f":"Import!E9594","v":0},null,{"$f":"Import!E9601","v":0}]
[null,null,"If you use Other provide details:"]
[null,null,{"$f":"Import!E9603","v":0}]
[]
[]
[]
[]
[]
[null,4,"Does your Company accept third party payments?",null,null,null,null,null,{"$f":"Import!E9604","v":"Select Yes/No"}]
[null,null,"If you have answered 'Yes' to 4. describe briefly the AML/ATF controls you have in place to mitigate this risk"]
[null,null,{"$f":"Import!E9605","v":0}]
[]
[]
[]
[]
[]
["Section C - Delivery Channel"]
[null,1,"The number of business relationships onboarded for the last 12 months by each of the following methods—"]
[null,null,null,null,null,null,"Number of Business Relationships"]
[null,null,null,null,null,"Face to face with clients",{"$f":"Import!E9606","v":0}]
[null,null,null,null,null,"Via intermediary",{"$f":"Import!E9607","v":0}]
[null,null,null,null,null,"By phone, email, fax, or post",{"$f":"Import!E9608","v":0}]
[null,null,null,null,"Other (provide examples)",null,{"$f":"Import!E9609","v":0}]
[null,null,null,null,null,"Total",{"$f":"SUM(G109:G112)","v":0}]
[]
["Section D - Geography (including sub-sections for Customer, Transactions and PEPs)"]
[null,1,"Do you identify Politically Exposed Persons (PEPs)",null,null,null,null,null,{"$f":"Import!E9611","v":"Select Yes/No"}]
[]
[null,2,"Country of residence based on the policyholder's residence"]
[null,null,"Zones listed below are in accordance with the BSCR under the Zone Categorisation and BSCR Rating Schedule"]
[]
[null,"Country of Residence",null,null,"GPW US$",null,"Number of",null,"Number of"]
[null,null,null,null,null,null,"Policies",null,"PEPs"]
[null,"Zone 1 - Central & Western Asia",null,null,{"$f":"Import!E9612","v":0},null,{"$f":"Import!E9633","v":0},null,{"$f":"Import!E9654","v":0}]
[null,"Zone 2 - Eastern Asia",null,null,{"$f":"Import!E9613","v":0},null,{"$f":"Import!E9634","v":0},null,{"$f":"Import!E9655","v":0}]
[null,"Zone 3 - South & South Eastern Asia",null,null,{"$f":"Import!E9614","v":0},null,{"$f":"Import!E9635","v":0},null,{"$f":"Import!E9656","v":0}]
[null,"Zone 4 - Oceania",null,null,{"$f":"Import!E9615","v":0},null,{"$f":"Import!E9636","v":0},null,{"$f":"Import!E9657","v":0}]
[null,"Zone 5 - Northern Africa",null,null,{"$f":"Import!E9616","v":0},null,{"$f":"Import!E9637","v":0},null,{"$f":"Import!E9658","v":0}]
[null,"Zone 6 - Southern Africa",null,null,{"$f":"Import!E9617","v":0},null,{"$f":"Import!E9638","v":0},null,{"$f":"Import!E9659","v":0}]
[null,"Zone 7 - Eastern Europe",null,null,{"$f":"Import!E9618","v":0},null,{"$f":"Import!E9639","v":0},null,{"$f":"Import!E9660","v":0}]
[null,"Zone 8 - Northern Europe",null,null,{"$f":"Import!E9619","v":0},null,{"$f":"Import!E9640","v":0},null,{"$f":"Import!E9661","v":0}]
[null,"Zone 9 - Southern Europe",null,null,{"$f":"Import!E9620","v":0},null,{"$f":"Import!E9641","v":0},null,{"$f":"Import!E9662","v":0}]
[null,"Zone 10 - Western Europe",null,null,{"$f":"Import!E9621","v":0},null,{"$f":"Import!E9642","v":0},null,{"$f":"Import!E9663","v":0}]
[null,"Zone 11 -  North America (excluding USA)",null,null,{"$f":"Import!E9622","v":0},null,{"$f":"Import!E9643","v":0},null,{"$f":"Import!E9664","v":0}]
[null,"Zone 12 - Caribbean",null,null,{"$f":"Import!E9623","v":0},null,{"$f":"Import!E9644","v":0},null,{"$f":"Import!E9665","v":0}]
[null,"Zone 13 - Eastern South America",null,null,{"$f":"Import!E9624","v":0},null,{"$f":"Import!E9645","v":0},null,{"$f":"Import!E9666","v":0}]
[null,"Zone 14 - Northern, Southern & Western South America",null,null,{"$f":"Import!E9625","v":0},null,{"$f":"Import!E9646","v":0},null,{"$f":"Import!E9667","v":0}]
[null,"Zone 15 - North East United States",null,null,{"$f":"Import!E9626","v":0},null,{"$f":"Import!E9647","v":0},null,{"$f":"Import!E9668","v":0}]
[null,"Zone 16 - South-East United States",null,null,{"$f":"Import!E9627","v":0},null,{"$f":"Import!E9648","v":0},null,{"$f":"Import!E9669","v":0}]
[null,"Zone 17 - Mid-West United States",null,null,{"$f":"Import!E9628","v":0},null,{"$f":"Import!E9649","v":0},null,{"$f":"Import!E9670","v":0}]
[null,"Zone 18 - Western United States",null,null,{"$f":"Import!E9629","v":0},null,{"$f":"Import!E9650","v":0},null,{"$f":"Import!E9671","v":0}]
[null,"Zone 19 - Central America",null,null,{"$f":"Import!E9630","v":0},null,{"$f":"Import!E9651","v":0},null,{"$f":"Import!E9672","v":0}]
[null,"Zone 20 - Bermuda",null,null,{"$f":"Import!E9631","v":0},null,{"$f":"Import!E9652","v":0},null,{"$f":"Import!E9673","v":0}]
[null,"Total",null,null,{"$f":"SUM(E123:E142)","v":0},null,{"$f":"SUM(G123:G142)","v":0},null,{"$f":"SUM(I123:I142)","v":0}]
[]
[null,3,"Confirm if the company performs transaction monitoring ",null,null,null,null,null,{"$f":"Import!E9675","v":"Select Yes/No"}]
[]
[null,4,"Provide the following information, regarding claims handling:"]
[null,"Country of Residence",null,null,"Number of",null,"Number of",null,"Value of","Number of"]
[null,"of beneficiaries",null,null,"beneficiaries",null,"Policies",null,"Claims Paid in USD","PEPs"]
[null,"Zone 1 - Central & Western Asia",null,null,{"$f":"Import!E9676","v":0},null,{"$f":"Import!E9697","v":0},null,{"$f":"Import!E9718","v":0},{"$f":"Import!E9739","v":0}]
[null,"Zone 2 - Eastern Asia",null,null,{"$f":"Import!E9677","v":0},null,{"$f":"Import!E9698","v":0},null,{"$f":"Import!E9719","v":0},{"$f":"Import!E9740","v":0}]
[null,"Zone 3 - South & South Eastern Asia",null,null,{"$f":"Import!E9678","v":0},null,{"$f":"Import!E9699","v":0},null,{"$f":"Import!E9720","v":0},{"$f":"Import!E9741","v":0}]
[null,"Zone 4 - Oceania",null,null,{"$f":"Import!E9679","v":0},null,{"$f":"Import!E9700","v":0},null,{"$f":"Import!E9721","v":0},{"$f":"Import!E9742","v":0}]
[null,"Zone 5 - Northern Africa",null,null,{"$f":"Import!E9680","v":0},null,{"$f":"Import!E9701","v":0},null,{"$f":"Import!E9722","v":0},{"$f":"Import!E9743","v":0}]
[null,"Zone 6 - Southern Africa",null,null,{"$f":"Import!E9681","v":0},null,{"$f":"Import!E9702","v":0},null,{"$f":"Import!E9723","v":0},{"$f":"Import!E9744","v":0}]
[null,"Zone 7 - Eastern Europe",null,null,{"$f":"Import!E9682","v":0},null,{"$f":"Import!E9703","v":0},null,{"$f":"Import!E9724","v":0},{"$f":"Import!E9745","v":0}]
[null,"Zone 8 - Northern Europe",null,null,{"$f":"Import!E9683","v":0},null,{"$f":"Import!E9704","v":0},null,{"$f":"Import!E9725","v":0},{"$f":"Import!E9746","v":0}]
[null,"Zone 9 - Southern Europe",null,null,{"$f":"Import!E9684","v":0},null,{"$f":"Import!E9705","v":0},null,{"$f":"Import!E9726","v":0},{"$f":"Import!E9747","v":0}]
[null,"Zone 10 - Western Europe",null,null,{"$f":"Import!E9685","v":0},null,{"$f":"Import!E9706","v":0},null,{"$f":"Import!E9727","v":0},{"$f":"Import!E9748","v":0}]
[null,"Zone 11 -  North America (excluding USA)",null,null,{"$f":"Import!E9686","v":0},null,{"$f":"Import!E9707","v":0},null,{"$f":"Import!E9728","v":0},{"$f":"Import!E9749","v":0}]
[null,"Zone 12 - Caribbean",null,null,{"$f":"Import!E9687","v":0},null,{"$f":"Import!E9708","v":0},null,{"$f":"Import!E9729","v":0},{"$f":"Import!E9750","v":0}]
[null,"Zone 13 - Eastern South America",null,null,{"$f":"Import!E9688","v":0},null,{"$f":"Import!E9709","v":0},null,{"$f":"Import!E9730","v":0},{"$f":"Import!E9751","v":0}]
[null,"Zone 14 - Northern, Southern & Western South America",null,null,{"$f":"Import!E9689","v":0},null,{"$f":"Import!E9710","v":0},null,{"$f":"Import!E9731","v":0},{"$f":"Import!E9752","v":0}]
[null,"Zone 15 - North East United States",null,null,{"$f":"Import!E9690","v":0},null,{"$f":"Import!E9711","v":0},null,{"$f":"Import!E9732","v":0},{"$f":"Import!E9753","v":0}]
[null,"Zone 16 - South-East United States",null,null,{"$f":"Import!E9691","v":0},null,{"$f":"Import!E9712","v":0},null,{"$f":"Import!E9733","v":0},{"$f":"Import!E9754","v":0}]
[null,"Zone 17 - Mid-West United States",null,null,{"$f":"Import!E9692","v":0},null,{"$f":"Import!E9713","v":0},null,{"$f":"Import!E9734","v":0},{"$f":"Import!E9755","v":0}]
[null,"Zone 18 - Western United States",null,null,{"$f":"Import!E9693","v":0},null,{"$f":"Import!E9714","v":0},null,{"$f":"Import!E9735","v":0},{"$f":"Import!E9756","v":0}]
[null,"Zone 19 - Central America",null,null,{"$f":"Import!E9694","v":0},null,{"$f":"Import!E9715","v":0},null,{"$f":"Import!E9736","v":0},{"$f":"Import!E9757","v":0}]
[null,"Zone 20 - Bermuda",null,null,{"$f":"Import!E9695","v":0},null,{"$f":"Import!E9716","v":0},null,{"$f":"Import!E9737","v":0},{"$f":"Import!E9758","v":0}]
[null,"Total",null,null,{"$f":"SUM(E150:E169)","v":0},null,{"$f":"SUM(G150:G169)","v":0},null,{"$f":"SUM(I150:I169)","v":0},{"$f":"SUM(J150:J169)","v":0}]
[]
["Section F - Training/Personel"]
[null,1,"Confirm if your company provides employees with training in relating to money laundering (“ML”) and terrorism financing (“TF”). ",null,null,null,null,null,{"$f":"Import!E9760","v":"Select Yes/No"}]
[null,null,"If yes, confirm:"]
[null,null,"(a) if ML/TF training is included in the induction program of new employees.",null,null,null,null,null,{"$f":"Import!E9761","v":"Select Yes/No"}]
[null,null,"(b) if the ML/TF training provided is specific to the business of insurance conducted by the insurer or is of general application.",null,null,null,null,null,{"$f":"Import!E9762","v":"Select Yes/No"}]
[null,null,"(c) the frequency that employees must undertake ML/TF training",null,null,null,null,null,{"$f":"Import!E9763","v":"Select Years"}]
[]
[null,2,"How many persons are employed by the Company?",null,null,null,null,"Full Time",{"$f":"Import!E9764","v":0}]
[null,null,null,null,null,null,null,"Part time (including temporary/contract)",{"$f":"Import!E9765","v":0}]
[]
[null,null,"2.1. Confirm the work arrangement of your Compliance Officer ",null,null,null,null,null,{"$f":"Import!E9766","v":"(Select Terms)"}]
[]
[null,null,"2.2. Confirm the work arrangement of your Reporting Officer",null,null,null,null,null,{"$f":"Import!E9767","v":"(Select Terms)"}]
[]
[null,3,"Indicate what actions are undertaken when recruiting staff"]
[null,null,"Verify name",null,null,null,null,null,{"$f":"Import!E9768","v":"Select Yes/No"}]
[null,null,"Verify residential address",null,null,null,null,null,{"$f":"Import!E9769","v":"Select Yes/No"}]
[null,null,"Check if the individual should be considered as PEP",null,null,null,null,null,{"$f":"Import!E9770","v":"Select Yes/No"}]
[null,null,"Check individual against sanctions lists",null,null,null,null,null,{"$f":"Import!E9771","v":"Select Yes/No"}]
[null,null,"Check for any negative press against the individual",null,null,null,null,null,{"$f":"Import!E9772","v":"Select Yes/No"}]
[null,null,"Confirm employment history",null,null,null,null,null,{"$f":"Import!E9773","v":"Select Yes/No"}]
[null,null,"Confirm references",null,null,null,null,null,{"$f":"Import!E9774","v":"Select Yes/No"}]
[null,null,"Request details on any regulatory action taken against the individual",null,null,null,null,null,{"$f":"Import!E9775","v":"Select Yes/No"}]
[null,null,"Request details of any criminal convictions",null,null,null,null,null,{"$f":"Import!E9776","v":"Select Yes/No"}]
[]
[null,4,"Confirm if the Company’s Compliance Officer is a member of the senior management of the Company",null,null,null,null,null,{"$f":"Import!E9777","v":"Select Yes/No"}]
[]
["Section G - AML/ATF Controls"]
[null,1,"Does the Company has AML/ATF controls that are specific long term insurance (not reinsurance)",null,null,null,null,null,{"$f":"Import!E9778","v":"Select Yes/No"}]
[null,2,"Does the Company has AML/ATF controls that are specific for all other genral business or reinsurance",null,null,null,null,null,{"$f":"Import!E9779","v":"Select Yes/No"}]
[null,3,"Does the Company have other specific AML/ATF controls ",null,null,null,null,null,{"$f":"Import!E9780","v":"Select Yes/No"}]
[]
[null,null,"If you have answered 'Yes' to 3. describe briefly these AML/ATF controls"]
[null,null,{"$f":"Import!E9781","v":0}]
[]
[]
[]
[]
[]
[null,4,"Confirm the frequency with which it rates the AML/ATF risks.",null,null,null,null,null,{"$f":"Import!E9782","v":"Select Years"}]
[]
[null,5,"Whether senior management approval is required to approve new business, if the client has been risk rated as— "]
[null,null,null,null,"Low",null,"Medium",null,"High"]
[null,null,null,null,{"$f":"Import!E9783","v":"Select Yes/No"},null,{"$f":"Import!E9784","v":"Select Yes/No"},null,{"$f":"Import!E9785","v":"Select Yes/No"}]
[]
[null,6,"If senior management approval is required to retain an existing client, if the client’s risk rating has changed to—"]
[null,null,null,null,"Low",null,"Medium",null,"High"]
[null,null,null,null,{"$f":"Import!E9786","v":"Select Yes/No"},null,{"$f":"Import!E9787","v":"Select Yes/No"},null,{"$f":"Import!E9788","v":"Select Yes/No"}]
[]
[null,7,"Confirm if the policies & procedure manuals of the company relating to AML/ATF are in line with all applicable Bermuda laws & regulations",null,null,null,null,null,{"$f":"Import!E9789","v":"Select Yes/No"}]
[null,null,"7.1 Confirm the frequency for which the Company's  AML/ATF policies and procedures are reviewed",null,null,null,null,null,{"$f":"Import!E9790","v":"Select Years"}]
[null,"(attach a copy of the AML/ATF policies and procedure if they have been updated in the last 12months to the Attachments tab)"]
[]
[null,8,"The date the Company last performed an entity-wide AML/ATF risk assessment.",null,null,null,null,null,{"$f":"Import!E9791","v":"(Select)"}]
[]
[null,9,"The date the Company last conducted an independent audit of its AML/ATF program. ",null,null,null,null,null,{"$f":"Import!E9792","v":"(Select)"}]
[null,null,"    (attach a copy of the latest independent audit to the Attachments tab)"]
[]
[null,10,"The date of the last Compliance/ Reporting Officer report on the operation and effectiveness of the Company AML/ATF policies, procedures and controls.",null,null,null,null,null,{"$f":"Import!E9793","v":"(Select)"}]
[null,null," "]
[null,11,"Does the Company document the ML/TF risks associated with a product/service prior to launch?",null,null,null,null,null,{"$f":"Import!E9794","v":"Select Yes/No"}]
[]
["Section H - Company Data"]
[null,1,"Company Data",null,null,"Entity Name"]
[null,null,"1.1. Is the Company a Part of Group?",null,null,null,null,null,{"$f":"Import!E9795","v":"Select Yes/No"}]
[null,null,null,null,null,"Entity Name",null,null,"RoC #"]
[null,null,"1.1.1. If yes, provide name of the Group and RoC number (where relevant).",null,null,{"$f":"Import!E9796","v":0},{"$f":"Import!F9796","v":0},null,{"$f":"Import!E9797","v":0}]
[]
[null,null,"1.1.2 Is the company listed on a stock exchange?",null,null,null,null,null,{"$f":"Import!E9798","v":"Select Yes/No"}]
[]
[null,null,"If yes, list the name of the exchange:"]
[null,null,{"$f":"Import!E9799","v":0}]
[null,null,{"$f":"Import!E9800","v":0}]
[null,null,{"$f":"Import!E9801","v":0}]
[]
[null,2," Confirm if the insurer is registered as a segregated accounts company (\"SAC\") in accordance with the requirements of the Segregated Accounts Act 2000 or of the Private Acts. "]
[null,null,"(a) If the insurer is a SAC, provide the number of: ",null,null,null,null,null,{"$f":"Import!E9802","v":0}]
[null,null,null,"(i) Active SAC’s ",null,null,null,null,{"$f":"Import!E9803","v":0}]
[null,null,null,"(ii) Non-Active SAC’s ",null,null,null,null,{"$f":"Import!E9804","v":0}]
[]
[null,3,"Confirm if the Insurer has designated investment contracts in accordance with the provisions of section 57A of the Insurance Act or of the Private Act. "]
[null,null,"If yes, provide the: ",null,null,null,null,null,{"$f":"Import!E9805","v":"Select Yes/No"}]
[null,null,"(a) Number of designated investment contracts approved; ",null,null,null,null,null,{"$f":"Import!E9806","v":0}]
[null,null,"(b) Net account value of the designated investments contracts at year-end.",null,null,null,null,null,{"$f":"Import!E9807","v":0}]
[]
[null,null,"Include any additional information/comments which you think might be relevant to this exercise?"]
[null,null,{"$f":"Import!E9808","v":0}]
[]
[]
[]
[]
[]
["Section I - Corporate Governance"]
[null,"Corporate Governance"]
[null,"The Company shall confirm the following information (to the best of its knowledge and belief) as at the reporting period:",null,null,null,null,null,null,"Select from the dropdown menu:"]
[null,1,"The powers, roles, responsibilities and accountabilities between the Board and management are clearly defined, segregated and understood.",null,null,null,null,null,{"$f":"Import!E9809","v":"Select Yes/No"}]
[null,2,"The Company reviews and monitors the structure, size and composition of the Board and recommends improvements to ensure its compliance to the applicable laws, regulations, listing rules and Company policies. ",null,null,null,null,null,{"$f":"Import!E9810","v":"Select Yes/No"}]
[null,3,"The Audit and Risk Management Committee and/or any related committee, assists the Board in fulfilling its oversight function through the review and evaluation of the financial reporting process and adequacy and effectiveness of the system of internal controls, including financial reporting control and information technology security. ","The Audit and Risk Management Committee and/or any related committee, assists the Board in fulfilling its oversight function through the review and evaluation of the financial reporting process and adequacy and effectiveness of the system of internal controls, including financial reporting control and information technology security. ","The Audit and Risk Management Committee and/or any related committee, assists the Board in fulfilling its oversight function through the review and evaluation of the financial reporting process and adequacy and effectiveness of the system of internal controls, including financial reporting control and information technology security. ","The Audit and Risk Management Committee and/or any related committee, assists the Board in fulfilling its oversight function through the review and evaluation of the financial reporting process and adequacy and effectiveness of the system of internal controls, including financial reporting control and information technology security. ","The Audit and Risk Management Committee and/or any related committee, assists the Board in fulfilling its oversight function through the review and evaluation of the financial reporting process and adequacy and effectiveness of the system of internal controls, including financial reporting control and information technology security. ","The Audit and Risk Management Committee and/or any related committee, assists the Board in fulfilling its oversight function through the review and evaluation of the financial reporting process and adequacy and effectiveness of the system of internal controls, including financial reporting control and information technology security. ",{"$f":"Import!E9811","v":"Select Yes/No"}]
[null,4,"The AML/ATF Audit Committee and/or any related committee, assists the Board in fulfilling its oversight function and receives sufficient information to assess and understand management’s process for evaluating the organization’s system of internal controls","The AML/ATF Audit Committee and/or any related committee, assists the Board in fulfilling its oversight function and receives sufficient information to assess and understand management’s process for evaluating the organization’s system of internal controls","The AML/ATF Audit Committee and/or any related committee, assists the Board in fulfilling its oversight function and receives sufficient information to assess and understand management’s process for evaluating the organization’s system of internal controls","The AML/ATF Audit Committee and/or any related committee, assists the Board in fulfilling its oversight function and receives sufficient information to assess and understand management’s process for evaluating the organization’s system of internal controls","The AML/ATF Audit Committee and/or any related committee, assists the Board in fulfilling its oversight function and receives sufficient information to assess and understand management’s process for evaluating the organization’s system of internal controls","The AML/ATF Audit Committee and/or any related committee, assists the Board in fulfilling its oversight function and receives sufficient information to assess and understand management’s process for evaluating the organization’s system of internal controls",{"$f":"Import!E9812","v":"Select Yes/No"}]
[null,5,"The Board ensures that the Company complies with all relevant laws and regulations and endeavours to adopt accepted best business practices.","The Board ensures that the Company complies with all relevant laws and regulations and endeavours to adopt accepted best business practices.","The Board ensures that the Company complies with all relevant laws and regulations and endeavours to adopt accepted best business practices.","The Board ensures that the Company complies with all relevant laws and regulations and endeavours to adopt accepted best business practices.","The Board ensures that the Company complies with all relevant laws and regulations and endeavours to adopt accepted best business practices.","The Board ensures that the Company complies with all relevant laws and regulations and endeavours to adopt accepted best business practices.",{"$f":"Import!E9813","v":"Select Yes/No"}]
[null,6,"The Board and senior management declare their personal dealings to HR and the Compliance department.","The Board and senior management declare their personal dealings to HR and the Compliance department.","The Board and senior management declare their personal dealings to HR and the Compliance department.","The Board and senior management declare their personal dealings to HR and the Compliance department.","The Board and senior management declare their personal dealings to HR and the Compliance department.","The Board and senior management declare their personal dealings to HR and the Compliance department.",{"$f":"Import!E9814","v":"Select Yes/No"}]
[null,7,"The Board provides oversight with regard to enterprise risk management and identifies key risk areas and key performance indicators and monitor these factors with due diligence.","The Board provides oversight with regard to enterprise risk management and identifies key risk areas and key performance indicators and monitor these factors with due diligence.","The Board provides oversight with regard to enterprise risk management and identifies key risk areas and key performance indicators and monitor these factors with due diligence.","The Board provides oversight with regard to enterprise risk management and identifies key risk areas and key performance indicators and monitor these factors with due diligence.","The Board provides oversight with regard to enterprise risk management and identifies key risk areas and key performance indicators and monitor these factors with due diligence.","The Board provides oversight with regard to enterprise risk management and identifies key risk areas and key performance indicators and monitor these factors with due diligence.",{"$f":"Import!E9815","v":"Select Yes/No"}]
[null,8,"Board members ensure there is appropriate oversight by senior management consistent with board policy.","Board members ensure there is appropriate oversight by senior management consistent with board policy.","Board members ensure there is appropriate oversight by senior management consistent with board policy.","Board members ensure there is appropriate oversight by senior management consistent with board policy.","Board members ensure there is appropriate oversight by senior management consistent with board policy.","Board members ensure there is appropriate oversight by senior management consistent with board policy.",{"$f":"Import!E9816","v":"Select Yes/No"}]
[null,9,"Board members set and enforce clear lines of responsibility and accountability throughout the organisation.","Board members set and enforce clear lines of responsibility and accountability throughout the organisation.","Board members set and enforce clear lines of responsibility and accountability throughout the organisation.","Board members set and enforce clear lines of responsibility and accountability throughout the organisation.","Board members set and enforce clear lines of responsibility and accountability throughout the organisation.","Board members set and enforce clear lines of responsibility and accountability throughout the organisation.",{"$f":"Import!E9817","v":"Select Yes/No"}]
[null,10,"The Board regularly and periodically (at least annually) monitors the management’s compliance with policies set by the Board and its performance based on approved targets and objectives.","The Board regularly and periodically (at least annually) monitors the management’s compliance with policies set by the Board and its performance based on approved targets and objectives.","The Board regularly and periodically (at least annually) monitors the management’s compliance with policies set by the Board and its performance based on approved targets and objectives.","The Board regularly and periodically (at least annually) monitors the management’s compliance with policies set by the Board and its performance based on approved targets and objectives.","The Board regularly and periodically (at least annually) monitors the management’s compliance with policies set by the Board and its performance based on approved targets and objectives.","The Board regularly and periodically (at least annually) monitors the management’s compliance with policies set by the Board and its performance based on approved targets and objectives.",{"$f":"Import!E9818","v":"Select Yes/No"}]
[null,11,"The Board receives advice on all major financing transactions, principal agreements and capitalisation requiring Board approval and makes appropriate recommendations for their consideration.","The Board receives advice on all major financing transactions, principal agreements and capitalisation requiring Board approval and makes appropriate recommendations for their consideration.","The Board receives advice on all major financing transactions, principal agreements and capitalisation requiring Board approval and makes appropriate recommendations for their consideration.","The Board receives advice on all major financing transactions, principal agreements and capitalisation requiring Board approval and makes appropriate recommendations for their consideration.","The Board receives advice on all major financing transactions, principal agreements and capitalisation requiring Board approval and makes appropriate recommendations for their consideration.","The Board receives advice on all major financing transactions, principal agreements and capitalisation requiring Board approval and makes appropriate recommendations for their consideration.",{"$f":"Import!E9819","v":"Select Yes/No"}]
[null,12,"The compliance and audit function are independent of all operational and business functions as far as practicable and has a direct line of communication to senior management.","The compliance and audit function are independent of all operational and business functions as far as practicable and has a direct line of communication to senior management.","The compliance and audit function are independent of all operational and business functions as far as practicable and has a direct line of communication to senior management.","The compliance and audit function are independent of all operational and business functions as far as practicable and has a direct line of communication to senior management.","The compliance and audit function are independent of all operational and business functions as far as practicable and has a direct line of communication to senior management.","The compliance and audit function are independent of all operational and business functions as far as practicable and has a direct line of communication to senior management.",{"$f":"Import!E9820","v":"Select Yes/No"}]
[null,13," The Compliance Officer has direct access to senior management"," The Compliance Officer has direct access to senior management"," The Compliance Officer has direct access to senior management"," The Compliance Officer has direct access to senior management"," The Compliance Officer has direct access to senior management"," The Compliance Officer has direct access to senior management",{"$f":"Import!E9821","v":"Select Yes/No"}]
[]
[null,"Employee  Integrity"]
[]
[null,14,"The Company establishes, maintains and operates appropriate procedures in order to be satisfied of the integrity of any new employees?","The Company establishes, maintains and operates appropriate procedures in order to be satisfied of the integrity of any new employees?","The Company establishes, maintains and operates appropriate procedures in order to be satisfied of the integrity of any new employees?","The Company establishes, maintains and operates appropriate procedures in order to be satisfied of the integrity of any new employees?","The Company establishes, maintains and operates appropriate procedures in order to be satisfied of the integrity of any new employees?","The Company establishes, maintains and operates appropriate procedures in order to be satisfied of the integrity of any new employees?",{"$f":"Import!E9822","v":"Select Yes/No"}]
[null,15,"There are appropriate mechanisms that ensure the protection of the Company’s staff for reporting suspicious transactions and their other actions to comply with AML/ATF obligations.","There are appropriate mechanisms that ensure the protection of the Company’s staff for reporting suspicious transactions and their other actions to comply with AML/ATF obligations.","There are appropriate mechanisms that ensure the protection of the Company’s staff for reporting suspicious transactions and their other actions to comply with AML/ATF obligations.","There are appropriate mechanisms that ensure the protection of the Company’s staff for reporting suspicious transactions and their other actions to comply with AML/ATF obligations.","There are appropriate mechanisms that ensure the protection of the Company’s staff for reporting suspicious transactions and their other actions to comply with AML/ATF obligations.","There are appropriate mechanisms that ensure the protection of the Company’s staff for reporting suspicious transactions and their other actions to comply with AML/ATF obligations.",{"$f":"Import!E9823","v":"Select Yes/No"}]
[null,16,"There are adequate procedures or management information systems in place to provide relevant staff with timely information that might include any information on any connected accounts or relationships.","There are adequate procedures or management information systems in place to provide relevant staff with timely information that might include any information on any connected accounts or relationships.","There are adequate procedures or management information systems in place to provide relevant staff with timely information that might include any information on any connected accounts or relationships.","There are adequate procedures or management information systems in place to provide relevant staff with timely information that might include any information on any connected accounts or relationships.","There are adequate procedures or management information systems in place to provide relevant staff with timely information that might include any information on any connected accounts or relationships.","There are adequate procedures or management information systems in place to provide relevant staff with timely information that might include any information on any connected accounts or relationships.",{"$f":"Import!E9824","v":"Select Yes/No"}]
[null,17,"There are adequate procedures or management information systems in place to ensure relevant legal obligations are well understood by staff and adequate guidance and training is provided.","There are adequate procedures or management information systems in place to ensure relevant legal obligations are well understood by staff and adequate guidance and training is provided.","There are adequate procedures or management information systems in place to ensure relevant legal obligations are well understood by staff and adequate guidance and training is provided.","There are adequate procedures or management information systems in place to ensure relevant legal obligations are well understood by staff and adequate guidance and training is provided.","There are adequate procedures or management information systems in place to ensure relevant legal obligations are well understood by staff and adequate guidance and training is provided.","There are adequate procedures or management information systems in place to ensure relevant legal obligations are well understood by staff and adequate guidance and training is provided.",{"$f":"Import!E9825","v":"Select Yes/No"}]
[null,18,"The incidence of integrity failure (e.g. theft, fraud) involving the Company’s staff is low","The incidence of integrity failure (e.g. theft, fraud) involving the Company’s staff is low","The incidence of integrity failure (e.g. theft, fraud) involving the Company’s staff is low","The incidence of integrity failure (e.g. theft, fraud) involving the Company’s staff is low","The incidence of integrity failure (e.g. theft, fraud) involving the Company’s staff is low","The incidence of integrity failure (e.g. theft, fraud) involving the Company’s staff is low",{"$f":"Import!E9826","v":"Select Yes/No"}]
[]
[null,"Employee  Knowledge"]
[]
[null,19,"All staff know who the AML/ATF Compliance Officer is and report all suspicious activities.","All staff know who the AML/ATF Compliance Officer is and report all suspicious activities.","All staff know who the AML/ATF Compliance Officer is and report all suspicious activities.","All staff know who the AML/ATF Compliance Officer is and report all suspicious activities.","All staff know who the AML/ATF Compliance Officer is and report all suspicious activities.","All staff know who the AML/ATF Compliance Officer is and report all suspicious activities.",{"$f":"Import!E9827","v":"Select Yes/No"}]
[null,20,"Training programmes are designed to cover the AML/ATF risks of the Company in order to ensure that all appropriate staff members are trained.","Training programmes are designed to cover the AML/ATF risks of the Company in order to ensure that all appropriate staff members are trained.","Training programmes are designed to cover the AML/ATF risks of the Company in order to ensure that all appropriate staff members are trained.","Training programmes are designed to cover the AML/ATF risks of the Company in order to ensure that all appropriate staff members are trained.","Training programmes are designed to cover the AML/ATF risks of the Company in order to ensure that all appropriate staff members are trained.","Training programmes are designed to cover the AML/ATF risks of the Company in order to ensure that all appropriate staff members are trained.",{"$f":"Import!E9828","v":"Select Yes/No"}]
[null,21,"The Company has an appropriate number of suitably trained staff and other resources necessary to implement and operate its AML/ATF program.","The Company has an appropriate number of suitably trained staff and other resources necessary to implement and operate its AML/ATF program.","The Company has an appropriate number of suitably trained staff and other resources necessary to implement and operate its AML/ATF program.","The Company has an appropriate number of suitably trained staff and other resources necessary to implement and operate its AML/ATF program.","The Company has an appropriate number of suitably trained staff and other resources necessary to implement and operate its AML/ATF program.","The Company has an appropriate number of suitably trained staff and other resources necessary to implement and operate its AML/ATF program.",{"$f":"Import!E9829","v":"Select Yes/No"}]
[null,22,"Staff comply fully with all Anti Money Laundering procedures in respect of customer identification, account monitoring, record keeping and reporting.","Staff comply fully with all Anti Money Laundering procedures in respect of customer identification, account monitoring, record keeping and reporting.","Staff comply fully with all Anti Money Laundering procedures in respect of customer identification, account monitoring, record keeping and reporting.","Staff comply fully with all Anti Money Laundering procedures in respect of customer identification, account monitoring, record keeping and reporting.","Staff comply fully with all Anti Money Laundering procedures in respect of customer identification, account monitoring, record keeping and reporting.","Staff comply fully with all Anti Money Laundering procedures in respect of customer identification, account monitoring, record keeping and reporting.",{"$f":"Import!E9830","v":"Select Yes/No"}]
[null,23,"Staff remain vigilant to the possibility of ML/TF.","Staff remain vigilant to the possibility of ML/TF.","Staff remain vigilant to the possibility of ML/TF.","Staff remain vigilant to the possibility of ML/TF.","Staff remain vigilant to the possibility of ML/TF.","Staff remain vigilant to the possibility of ML/TF.",{"$f":"Import!E9831","v":"Select Yes/No"}]
[null,24,"Staff who violate any of the AML/ATF regulations or the policies and procedures outlined in the handbook will be subject to disciplinary action.","Staff who violate any of the AML/ATF regulations or the policies and procedures outlined in the handbook will be subject to disciplinary action.","Staff who violate any of the AML/ATF regulations or the policies and procedures outlined in the handbook will be subject to disciplinary action.","Staff who violate any of the AML/ATF regulations or the policies and procedures outlined in the handbook will be subject to disciplinary action.","Staff who violate any of the AML/ATF regulations or the policies and procedures outlined in the handbook will be subject to disciplinary action.","Staff who violate any of the AML/ATF regulations or the policies and procedures outlined in the handbook will be subject to disciplinary action.",{"$f":"Import!E9832","v":"Select Yes/No"}]
[null,25,"All staff members are required to undergo refresher training to ensure that their knowledge of AML/ATF laws, policies and procedure is current (at least annually).","All staff members are required to undergo refresher training to ensure that their knowledge of AML/ATF laws, policies and procedure is current (at least annually).","All staff members are required to undergo refresher training to ensure that their knowledge of AML/ATF laws, policies and procedure is current (at least annually).","All staff members are required to undergo refresher training to ensure that their knowledge of AML/ATF laws, policies and procedure is current (at least annually).","All staff members are required to undergo refresher training to ensure that their knowledge of AML/ATF laws, policies and procedure is current (at least annually).","All staff members are required to undergo refresher training to ensure that their knowledge of AML/ATF laws, policies and procedure is current (at least annually).",{"$f":"Import!E9833","v":"Select Yes/No"}]
[null,26,"Company staff are updated on ML/TF schemes and typologies on a regular basis.","Company staff are updated on ML/TF schemes and typologies on a regular basis.","Company staff are updated on ML/TF schemes and typologies on a regular basis.","Company staff are updated on ML/TF schemes and typologies on a regular basis.","Company staff are updated on ML/TF schemes and typologies on a regular basis.","Company staff are updated on ML/TF schemes and typologies on a regular basis.",{"$f":"Import!E9834","v":"Select Yes/No"}]
[null,27,"Staff are required to declare their personal dealings relevant in the jurisdictions that the Company operates on  a regular basis (at least annually)","Staff are required to declare their personal dealings relevant in the jurisdictions that the Company operates on  a regular basis (at least annually)","Staff are required to declare their personal dealings relevant in the jurisdictions that the Company operates on  a regular basis (at least annually)","Staff are required to declare their personal dealings relevant in the jurisdictions that the Company operates on  a regular basis (at least annually)","Staff are required to declare their personal dealings relevant in the jurisdictions that the Company operates on  a regular basis (at least annually)","Staff are required to declare their personal dealings relevant in the jurisdictions that the Company operates on  a regular basis (at least annually)",{"$f":"Import!E9835","v":"Select Yes/No"}]
[]
[null,"Employee  Compliance"]
[]
[null,28,"The Company ensures that the Compliance Officer is the focal point for the oversight of all activities relating to the prevention and detection of ML/TF.","The Company ensures that the Compliance Officer is the focal point for the oversight of all activities relating to the prevention and detection of ML/TF.","The Company ensures that the Compliance Officer is the focal point for the oversight of all activities relating to the prevention and detection of ML/TF.","The Company ensures that the Compliance Officer is the focal point for the oversight of all activities relating to the prevention and detection of ML/TF.","The Company ensures that the Compliance Officer is the focal point for the oversight of all activities relating to the prevention and detection of ML/TF.","The Company ensures that the Compliance Officer is the focal point for the oversight of all activities relating to the prevention and detection of ML/TF.",{"$f":"Import!E9836","v":"Select Yes/No"}]
[null,29,"The Compliance Office is fully conversant in regulatory requirements and AML/ATF risks arising from your business.","The Compliance Office is fully conversant in regulatory requirements and AML/ATF risks arising from your business.","The Compliance Office is fully conversant in regulatory requirements and AML/ATF risks arising from your business.","The Compliance Office is fully conversant in regulatory requirements and AML/ATF risks arising from your business.","The Compliance Office is fully conversant in regulatory requirements and AML/ATF risks arising from your business.","The Compliance Office is fully conversant in regulatory requirements and AML/ATF risks arising from your business.",{"$f":"Import!E9837","v":"Select Yes/No"}]
[null,30,"The AML/ATF Audit Committee monitors compliance with corporate governance regulations and guidelines.","The AML/ATF Audit Committee monitors compliance with corporate governance regulations and guidelines.","The AML/ATF Audit Committee monitors compliance with corporate governance regulations and guidelines.","The AML/ATF Audit Committee monitors compliance with corporate governance regulations and guidelines.","The AML/ATF Audit Committee monitors compliance with corporate governance regulations and guidelines.","The AML/ATF Audit Committee monitors compliance with corporate governance regulations and guidelines.",{"$f":"Import!E9838","v":"Select Yes/No"}]
[null,31,"The AML/ATF Audit Committee believes that management’s scope of internal control testing adequately supports its internal control assessment and receives regular reports (at least annually) from the senior management.","The AML/ATF Audit Committee believes that management’s scope of internal control testing adequately supports its internal control assessment and receives regular reports (at least annually) from the senior management.","The AML/ATF Audit Committee believes that management’s scope of internal control testing adequately supports its internal control assessment and receives regular reports (at least annually) from the senior management.","The AML/ATF Audit Committee believes that management’s scope of internal control testing adequately supports its internal control assessment and receives regular reports (at least annually) from the senior management.","The AML/ATF Audit Committee believes that management’s scope of internal control testing adequately supports its internal control assessment and receives regular reports (at least annually) from the senior management.","The AML/ATF Audit Committee believes that management’s scope of internal control testing adequately supports its internal control assessment and receives regular reports (at least annually) from the senior management.",{"$f":"Import!E9839","v":"Select Yes/No"}]
[null,null,null,null,null,null,null,null,null,null,null,null,null,null,null,null,null,null,""]
[]
[]
[null,null,null,null,null,null,null,2016,"Every year","Yes"]
[null,null,null,null,null,null,null,2015,"1 to 2 years","No"]
[null,null,null,null,null,null,null,2014,"2 to 5 years"]
[null,null,null,null,null,null,null,2013,"+5 years"]
[null,null,null,null,null,null,null,2012]
[null,null,null,null,null,null,null,"Prior 2012"]

{"sheet":"SAR & Sanc. (All)","index":14,"n_rows":66,"n_cols":19,"rows_kept":66,"cut":false,"hidden":false,"merged":[[0,1,0,4],[52,2,56,9],[9,2,9,4],[13,2,13,4],[16,2,16,4],[27,2,31,9],[43,5,43,7],[44,5,44,7],[45,5,45,7],[46,5,46,7],[47,5,47,7],[4,1,4,9]]}
[null,"SCHEDULE OF SUSPICIOUS ACTIVITY REPORTING AND SANCTIONS",null,null,null,null,null,null,null,{"$f":"HYPERLINK(\"#'Index'!A1\",\"Return to Index\")","v":"Return to Index"},null,null,null,null,null,{"$f":"HYPERLINK(\"#'Index'!A1\",\"Return to Index\")","v":"Return to Index"},{"$f":"IF($B$3=\"\",\"\",TEXT(DATE(YEAR($B$3+1)-1,MONTH($B$3+1),DAY($B$3+1)),\"mm/dd/yyyy\"))","v":"01/01/2019"}]
[null,{"$f":"'Insurer Information'!C7","v":"Enter Company Name"},null,null,null,null,null,null,null,null,null,null,null,null,null,null,{"$f":"IF($B$3=\"\",\"\",TEXT($B$3,\"mm/dd/yyyy\"))","v":"12/31/2019"}]
[null,{"$f":" TEXT('Insurer Information'!C3,\"mmmm dd, yyyy\")","v":"December 31, 2019"},null,null,null,null,null,null,null,"SAR & Sanctions"]
[]
[null,"All insurers shall be required to complete the questions set out in the Suspicious Activity Reporting and Sanctions Schedule (on a unconsolidated basis). "]
[]
["Section E - Reporting"]
[null,1,"Is your company registered with GoAML at www.fia.bm",null,null,null,null,null,{"$f":"Import!E9841","v":"Select Yes/No"}]
[null,null,"1.1 If yes, under what name and when?"]
[null,null,{"$f":"Import!E9843","v":0},null,null,null,null,null,{"$f":"Import!E9842","v":"(Select)"}]
[]
[null,null,"1.2 If you answered no to 1., do you have access to GoAML through another registration?",null,null,null,null,null,{"$f":"Import!E9844","v":"Select Yes/No"}]
[null,null,"1.3 Under what name and how are you connected?"]
[null,null,{"$f":"Import!E9845","v":0}]
[]
[null,null,"1.4 if you answered no to 1. and 1.2 who would file a SAR on your behalf?"]
[null,null,{"$f":"Import!E9846","v":0}]
[]
[null,2,"How many Suspicious Activity Reports (SAR) have been filed?"]
[null,null,null,null,null,null,"Internal",null,"With FIA"]
[null,null,null,null,null,2020,{"$f":"Import!E9847","v":0},2020,{"$f":"Import!E9852","v":0}]
[null,null,null,null,null,{"$f":"F21-1","v":2019},{"$f":"Import!E9848","v":0},{"$f":"H21-1","v":2019},{"$f":"Import!E9853","v":0}]
[null,null,null,null,null,{"$f":"F22-1","v":2018},{"$f":"Import!E9849","v":0},{"$f":"H22-1","v":2018},{"$f":"Import!E9854","v":0}]
[null,null,null,null,null,2017,{"$f":"Import!E9850","v":0},2017,{"$f":"Import!E9855","v":0}]
[null,null,null,null,null,"Total",{"$f":"SUM(G21:G24)","v":0},"Total",{"$f":"SUM(I21:I24)","v":0}]
[]
[null,null,"Include any additional information/comments which you think might be relevant to this exercise?"]
[null,null,{"$f":"Import!E9857","v":0}]
[]
[]
[]
[]
[]
["SANCTIONS QUESTIONNAIRE"]
[null,1,"Does the company screen insurers and beneficiaries (where relevant) to determine if they are subject to measures imposed under Bermuda sanctions regime?",null,null,null,null,null,{"$f":"Import!E9858","v":"Select Yes/No"}]
[]
[null,2,"Does the company screen employees to determine if they are subject to measures imposed under Bermuda sanctions regime?",null,null,null,null,null,{"$f":"Import!E9859","v":"Select Yes/No"}]
[]
[null,3,"Has the Company frozen any customer assets in the last 12 months under the Bermuda sanctions regime?",null,null,null,null,null,{"$f":"Import!E9860","v":"Select Yes/No"}]
[]
[null,null,"3.1 If yes, how many asset freezes have there been?",null,null,null,null,null,{"$f":"Import!E9861","v":0}]
[]
[null,null,"3.2 Provide the following details for those assets freezes from the consolidated list:"]
[null,null,null,null,"Group ID","Name of the designated person as given on the consolidated list",null,null,"Name of the person/entity if owned/controlled by a designated person.","Value of Assets"]
[null,null,null,1,{"$f":"Import!E9862","v":0},{"$f":"Import!E9866","v":0},null,null,{"$f":"Import!E9870","v":0},{"$f":"Import!E9874","v":0}]
[null,null,null,2,{"$f":"Import!E9863","v":0},{"$f":"Import!E9867","v":0},null,null,{"$f":"Import!E9871","v":0},{"$f":"Import!E9875","v":0}]
[null,null,null,3,{"$f":"Import!E9864","v":0},{"$f":"Import!E9868","v":0},null,null,{"$f":"Import!E9872","v":0},{"$f":"Import!E9876","v":0}]
[null,null,null,4,{"$f":"Import!E9865","v":0},{"$f":"Import!E9869","v":0},null,null,{"$f":"Import!E9873","v":0},{"$f":"Import!E9877","v":0}]
[]
[null,4,"How often does the licensee screen for sanctions?",null,null,null,null,null,{"$f":"Import!E9879","v":"Select"}]
[]
[null,null,"Include any additional information/comments which you think might be relevant to this exercise?"]
[null,null,{"$f":"Import!E9880","v":0}]
[]
[]
[]
[]
[null,null,null,null,null,null,null,null,null,null,null,null,null,null,null,null,null,null,""]
[]
[]
[null,null,null,null,null,null,null,2016,"Every year","Yes"]
[null,null,null,null,null,null,null,2015,"1 to 2 years","No"]
[null,null,null,null,null,null,null,2014,"2 to 5 years"]
[null,null,null,null,null,null,null,2013,"+5 years"]
[null,null,null,null,null,null,null,2012]
[null,null,null,null,null,null,null,"Prior 2012"]

{"sheet":"AML Reference","index":15,"n_rows":126,"n_cols":19,"rows_kept":126,"cut":false,"hidden":false,"merged":[[0,1,0,7]]}
[null,"SCHEDULE OF ANTI-MONEY LAUNDERING AND ANTI-TERRORIST FINANCING ",null,null,null,null,null,null,null,{"$f":"HYPERLINK(\"#'Index'!A1\",\"Return to Index\")","v":"Return to Index"},null,null,null,null,null,{"$f":"HYPERLINK(\"#'Index'!A1\",\"Return to Index\")","v":"Return to Index"},{"$f":"IF($B$3=\"\",\"\",TEXT(DATE(YEAR($B$3+1)-1,MONTH($B$3+1),DAY($B$3+1)),\"mm/dd/yyyy\"))","v":"01/01/2019"}]
[null,{"$f":"'Insurer Information'!C7","v":"Enter Company Name"},null,null,null,null,null,null,null,null,null,null,null,null,null,null,{"$f":"IF($B$3=\"\",\"\",TEXT($B$3,\"mm/dd/yyyy\"))","v":"12/31/2019"}]
[null,{"$f":" TEXT('Insurer Information'!C3,\"mmmm dd, yyyy\")","v":"December 31, 2019"},null,null,null,null,null,null,null,"AML Reference"]
[]
["Table A – Underwriting Geographical Zones"]
[null,null,null,null,null,null,null,null,null,null,null,null,null,{"$f":"YEAR('Insurer Information'!C3)","v":2019}]
[null,null,"Zone 1 - Central & Western Asia"]
[null,null,null,"Armenia",null,"Azerbaijan",null,"Bahrain",null,"Georgia"]
[null,null,null,"Iraq",null,"Israel",null,"Jordan",null,"Kazakhstan"]
[null,null,null,"Kuwait",null,"Kyrgyzstan",null,"Lebanon",null,"Oman"]
[null,null,null,"Palestinian",null,"Qatar",null,"Saudi Arabia",null,"Syria"]
[null,null,null,"Tajikistan",null,"Turkey",null,"Turkmenistan",null,"United Arab Emirates"]
[null,null,null,"Uzbekistan",null,"Yemen"]
[]
[null,null,"Zone 2 - Eastern Asia"]
[null,null,null,"China",null,"Hong Kong",null,"Japan",null,"Macao"]
[null,null,null,"Mongolia",null,"North Korea",null,"South Korea",null,"Taiwan"]
[]
[null,null,"Zone 3 - South and South-Eastern Asia"]
[null,null,null,"Afghanistan",null,"Bangladesh",null,"Bhutan",null,"Brunei Darussalam"]
[null,null,null,"Cambodia",null,"India",null,"Indonesia",null,"Iran"]
[null,null,null,"Lao PDR",null,"Malaysia",null,"Maldives",null,"Myanmar"]
[null,null,null,"Nepal",null,"Pakistan",null,"Philippines",null,"Singapore"]
[null,null,null,"Sri Lanka",null,"Thailand",null,"Timor-Leste",null,"Vietnam"]
[]
[null,null,"Zone 4 - Oceania"]
[null,null,null,"American Samoa",null,"Australia",null,"Cook Islands",null,"Fiji"]
[null,null,null,"French Polynesia",null,"Guam",null,"Kiribati",null,"Marshall Islands"]
[null,null,null,"Micronesia",null,"Nauru",null,"New Caledonia",null,"New Zealand"]
[null,null,null,"Niue",null,"Norfolk Island",null,"N. Mariana Islands",null,"Palau"]
[null,null,null,"Papua New Guinea",null,"Pitcairn",null,"Samoa",null,"Solomon Islands"]
[null,null,null,"Tokelau",null,"Tonga",null,"Tuvalu",null,"Vanuatu"]
[null,null,null,"Wallis & Futuna Islands"]
[]
[null,null,"Zone 5 - Northern Africa"]
[null,null,null,"Algeria",null,"Benin",null,"Burkina Faso",null,"Cameroon"]
[null,null,null,"Cape Verde",null,"Central African Republic",null,"Chad",null,"Cote d' Ivoire"]
[null,null,null,"Egypt",null,"Gambia",null,"Ghana",null,"Guinea"]
[null,null,null,"Guinea-Bissau",null,"Liberia",null,"Libya",null,"Mali"]
[null,null,null,"Mauritania",null,"Morocco",null,"Niger",null,"Nigeria"]
[null,null,null,"Saint Helena",null,"Senegal",null,"Sierra Leone",null,"Sudan"]
[null,null,null,"Togo",null,"Tunisia",null,"Western Sahara"]
[]
[null,null,"Zone 6 - Southern Africa"]
[null,null,null,"Angola",null,"Botswana",null,"Burundi",null,"Democratic Republic of Congo"]
[null,null,null,"Comoros",null,"Djibouti",null,"Equatorial Guinea",null,"Eritrea"]
[null,null,null,"Ethiopia",null,"Gabon",null,"Kenya",null,"Lesotho"]
[null,null,null,"Madagascar",null,"Malawi",null,"Mauritius",null,"Mayotte"]
[null,null,null,"Mozambique",null,"Namibia",null,"Republic of Congo",null,"Reunion"]
[null,null,null,"Rwanda",null,"Sao Tome & Principe",null,"Seychelles",null,"Somalia"]
[null,null,null,"South Africa",null,"Swaziland",null,"Uganda",null,"United Republic of Tanzania"]
[null,null,null,"Zambia",null,"Zimbabwe"]
[]
[null,null,"Zone 7 - Eastern Europe"]
[null,null,null,"Belarus",null,"Bulgaria",null,"Czech Republic",null,"Hungary"]
[null,null,null,"Moldova",null,"Poland",null,"Romania",null,"Russian Federation"]
[null,null,null,"Slovakia",null,"Ukraine"]
[]
[null,null,"Zone 8 - Northern Europe"]
[null,null,null,"Aland Islands",null,"Denmark",null,"Estonia",null,"Faeroe Islands"]
[null,null,null,"Finland",null,"Guernsey",null,"Iceland",null,"Republic of Ireland"]
[null,null,null,"Isle of Man",null,"Jersey",null,"Latvia",null,"Lithuania"]
[null,null,null,"Norway",null,"Svalbard, Jan Mayen",null,"Sweden",null,"United Kingdom"]
[]
[null,null,"Zone 9 - Southern Europe"]
[null,null,null,"Albania",null,"Andorra",null,"Bosnia and Herzegovina",null,"Croatia"]
[null,null,null,"Cyprus",null,"Gibraltar",null,"Greece",null,"Italy"]
[null,null,null,"fYR of Macedonia",null,"Malta",null,"Montenegro",null,"Portugal"]
[null,null,null,"San Marino",null,"Serbia",null,"Slovenia",null,"Spain"]
[null,null,null,"Vatican City"]
[]
[null,null,"Zone 10 - Western Europe"]
[null,null,null,"Austria",null,"Belgium",null,"France",null,"Germany"]
[null,null,null,"Liechtenstein",null,"Luxembourg",null,"Monaco",null,"Netherlands"]
[null,null,null,"Switzerland"]
[]
[null,null,"Zone 11 - Northern America (Excluding USA)"]
[null,null,null,"Canada",null,"Greenland",null,"St Pierre & Miquelon"]
[]
[null,null,"Zone 12 - Caribbean"]
[null,null,null,"Anguilla",null,"Antigua & Barbuda",null,"Aruba",null,"Bahamas"]
[null,null,null,"Barbados",null,"British Virgin Islands",null,"Cayman Islands",null,"Cuba"]
[null,null,null,"Dominica",null,"Dominican Republic",null,"El Salvador",null,"Grenada"]
[null,null,null,"Guadeloupe",null,"Haiti",null,"Montserrat",null,"Netherlands Antilles (Curacao and Bonaire)"]
[null,null,null,"Puerto Rico",null,"St-Barthelemy",null,"St Kitts & Nevis",null,"St Lucia"]
[null,null,null,"St. Maarten",null,"St. Vincent & the Grenadines",null,"Trinidad & Tobago",null,"Turks & Caicos Islands"]
[null,null,null,"US Virgin Islands",null,"Jamica"]
[]
[null,null,"Zone 13 - Eastern South America"]
[null,null,null,"Brazil",null,"Falkland Islands",null,"French Guiana",null,"Guyana"]
[null,null,null,"Paraguay",null,"Suriname",null,"Uruguay"]
[]
[null,null,"Zone 14 - Northern, Southern and Western South America"]
[null,null,null,"Argentina",null,"Bolivia",null,"Chile",null,"Colombia"]
[null,null,null,"Ecuador",null,"Peru",null,"Venezuela"]
[]
[null,null,"Zone 15 - North-East United States"]
[null,null,null,"Connecticut",null,"Delaware",null,"District of Columbia",null,"Maine"]
[null,null,null,"Maryland",null,"Massachusetts",null,"New Hampshire",null,"New Jersey"]
[null,null,null,"New York",null,"Pennsylvania",null,"Rhode Island",null,"Vermont"]
[]
[null,null,"Zone 16 - South-East United States"]
[null,null,null,"Alabama",null,"Arkansas",null,"Florida",null,"Georgia"]
[null,null,null,"Kentucky",null,"Louisiana",null,"Mississippi",null,"North Carolina"]
[null,null,null,"Puerto Rico",null,"South Carolina",null,"Tennessee",null,"Virginia"]
[null,null,null,"West Virigina"]
[]
[null,null,"Zone 17 - Mid-West United States"]
[null,null,null,"Illinois",null,"Indiana",null,"Iowa",null,"Kansas"]
[null,null,null,"Michigan",null,"Minnesota",null,"Missouri",null,"Nebraska"]
[null,null,null,"North Dakota",null,"Ohio",null,"Oklahoma",null,"South Dakota"]
[null,null,null,"Wisconsin"]
[]
[null,null,"Zone 18 - Western United States"]
[null,null,null,"Alaska",null,"Arizona",null,"California",null,"Colorado"]
[null,null,null,"Hawaii",null,"Idaho",null,"Montana",null,"Nevada"]
[null,null,null,"New Mexico",null,"Oregon",null,"Texas",null,"Utah"]
[null,null,null,"Washington",null,"Wyoming"]
[]
[null,null,"Zone 19 - Central America"]
[null,null,null,"Belize",null,"Costa Rica",null,"Guatemala",null,"Honduras"]
[null,null,null,"Mexico",null,"Nicaragua",null,"Panama"]
[]
[null,null,"Zone 20 - Bermuda"]
[null,null,null,"Bermuda"]
[null,null,null,null,null,null,null,null,null,null,null,null,null,null,null,null,null,null,""]

{"sheet":"Information Sheet","index":16,"n_rows":132,"n_cols":14,"rows_kept":132,"cut":false,"hidden":false,"merged":[[8,2,9,6],[42,2,44,6],[86,2,87,6],[88,2,89,6],[28,2,28,6],[31,2,31,6]]}
[null,"Insurer Information Sheet",null,null,null,null,null,{"$f":"HYPERLINK(\"#'Index'!A1\",\"Return to Index\")","v":"Return to Index"},null,null,"bma_CapitalAndSolvencyReturnDeclarationAbstract"]
[]
[null,"(a)","Name of Insurer:",null,null,null,null,{"$f":"+'Insurer Information'!C7","v":"Enter Company Name"}]
[]
[null,"(b)","Certificate of Registration Number",null,null,null,null,{"$f":"+'Insurer Information'!F11","v":0}]
[null,null,null,null,null,null,null,null,null,null,null,null,null,{"$f":"YEAR('Insurer Information'!C3)","v":2019}]
[null,"(c)","Class of Registration:",null,null,null,null,{"$f":"+'Insurer Information'!F9","v":"Class D"}]
[]
[null,"(d)","Statements are available at the insurer's registered office in Bermuda pursuant to section 17(1) or, as the case may be, have been filed pursuant to section 17(3) of the Act",null,null,null,null,{"$f":"Import!E10","v":"Select Yes/No"}]
[]
[]
[null,"(e)","Filing Period:"]
[null,null,"Period Start Date:",null,null,null,null,{"$f":"Import!E11","v":"00:00:00"}]
[null,null,"Period End Date:",null,null,null,null,{"$f":"+'Insurer Information'!C3","v":"2019-12-31"}]
[]
[null,"(f)","Currency used in the statutory financial statements:",null,null,null,null,{"$f":"'Form 1SFS'!C5","v":"United States Dollars"}]
[]
[null,"(g)","To prepare this return, the figures extracted were translated into Bermuda Dollars at",null,null,null,null,{"$f":"Import!E12","v":0}]
[]
[null,"(h)","Ultimate Parent",null,null,null,null,{"$f":"Import!E13","v":0}]
[]
[null,"(i)","Insurer's Parent Company",null,null,null,null,{"$f":"Import!E14","v":0}]
[]
[null,"(j)","Industry Sector of the Insurer's Parent",null,null,null,null,{"$f":"Import!E15","v":"Select from Drop-Down"}]
[]
[null,"(k)","Insurer's Ownership Structure",null,null,null,null,{"$f":"Import!E16","v":"Select from Drop-Down"}]
[]
[null,"(l)","Insurer's Company Structure",null,null,null,null,{"$f":"Import!E17","v":"Select from Drop-Down"}]
[null,"(l).1","Confirm if the Company has written or currently writes Long-Term insurance",null,null,null,null,{"$f":"Import!E18","v":"Select Yes/No"}]
[null,"(l).2","Did the Company actively write Long-Term insurance business during the financial period",null,null,null,null,{"$f":"Import!E19","v":"Select Yes/No"}]
[null,"(l).3","If the Company has subsidiaries, confirm if the subsidiaries wrote Long-Term insurane business durign the financial period",null,null,null,null,{"$f":"Import!E20","v":"Select Yes/No"}]
[null,"(l).4","If the subsidiaries wrote Long-Term insurance business during the financial period, confirm if the subsidiaries are in another jurisdication outside of Bermuda",null,null,null,null,{"$f":"Import!E21","v":"Select Yes/No"}]
[null,"(l).5","If other jurisdictions outside of Bermuda, list the jurisdictions",null,null,null,null,{"$f":"Import!E22","v":0}]
[null,null,null,null,null,null,null,{"$f":"Import!E23","v":0}]
[null,null,null,null,null,null,null,{"$f":"Import!E24","v":0}]
[]
[null,"(m)","General Questions"]
[null,null,"(i) Is the Insurer a member of a group of companies?",null,null,null,null,{"$f":"Import!E25","v":"Select Yes/No"}]
[null,null,"(ii) Does the Insurer have segregated accounts?",null,null,null,null,{"$f":"Import!E26","v":"Select Yes/No"}]
[null,null,"(iii) Is the insurer in run-off?",null,null,null,null,{"$f":"Import!E27","v":"Select Yes/No"}]
[null,null,"(iv) Whether the general purpose financial statements of the insurer for the relevant year have been audited and/or an unqualified opinion issued;",null,null,null,null,{"$f":"Import!E28","v":"Select Yes/No"}]
[null,null,"If a qualified opinion was issued, indicate the qualification:"]
[null,null,{"$f":"Import!E29","v":0}]
[]
[]
[null,null,"(v) The minimum solvency margin was met:",null,null,null,null,{"$f":"Import!E30","v":"Select Yes/No"}]
[]
[]
[null,"(n)","Certificate of Registration Conditions"]
[]
[null,1,"Certificate of Registration for Long-Term Business - Effective Date",null,null,null,null,{"$f":"IF(+'Insurer Information'!C11=0,\"\",+'Insurer Information'!C11)","v":""}]
[]
[null,2,"Certificate of Registration for Long-Term Business - General Conditions (Enter Number of Conditions)",null,null,null,null,{"$f":"Import!E32","v":0}]
[]
[null,null,null,null,"Effective Start Date","Effective End Date","Condition Description"]
[null,null,null,1,{"$f":"Import!E33","v":"00:00:00"},{"$f":"Import!E43","v":"00:00:00"},{"$f":"Import!E53","v":0}]
[null,null,null,2,{"$f":"Import!E34","v":"00:00:00"},{"$f":"Import!E44","v":"00:00:00"},{"$f":"Import!E54","v":0}]
[null,null,null,3,{"$f":"Import!E35","v":"00:00:00"},{"$f":"Import!E45","v":"00:00:00"},{"$f":"Import!E55","v":0}]
[null,null,null,4,{"$f":"Import!E36","v":"00:00:00"},{"$f":"Import!E46","v":"00:00:00"},{"$f":"Import!E56","v":0}]
[null,null,null,5,{"$f":"Import!E37","v":"00:00:00"},{"$f":"Import!E47","v":"00:00:00"},{"$f":"Import!E57","v":0}]
[null,null,null,6,{"$f":"Import!E38","v":"00:00:00"},{"$f":"Import!E48","v":"00:00:00"},{"$f":"Import!E58","v":0}]
[null,null,null,7,{"$f":"Import!E39","v":"00:00:00"},{"$f":"Import!E49","v":"00:00:00"},{"$f":"Import!E59","v":0}]
[null,null,null,8,{"$f":"Import!E40","v":"00:00:00"},{"$f":"Import!E50","v":"00:00:00"},{"$f":"Import!E60","v":0}]
[null,null,null,9,{"$f":"Import!E41","v":"00:00:00"},{"$f":"Import!E51","v":"00:00:00"},{"$f":"Import!E61","v":0}]
[null,null,null,10,{"$f":"Import!E42","v":"00:00:00"},{"$f":"Import!E52","v":"00:00:00"},{"$f":"Import!E62","v":0}]
[]
[null,"(o)","The insurer has complied with conditions on Certificate of Registration",null,null,null,null,{"$f":"Import!E63","v":"Select Yes/No"}]
[]
[null,"(p)","Regulatory Approvals"]
[]
[null,1,"Regulatory - Approved Direction (Enter Number of Directions)",null,null,null,null,{"$f":"Import!E64","v":0}]
[]
[null,null,null,null,"Effective Start Date","Effective End Date","Direction Description"]
[null,null,null,1,{"$f":"Import!E65","v":"00:00:00"},{"$f":"Import!E75","v":"00:00:00"},{"$f":"Import!E85","v":0}]
[null,null,null,2,{"$f":"Import!E66","v":"00:00:00"},{"$f":"Import!E76","v":"00:00:00"},{"$f":"Import!E86","v":0}]
[null,null,null,3,{"$f":"Import!E67","v":"00:00:00"},{"$f":"Import!E77","v":"00:00:00"},{"$f":"Import!E87","v":0}]
[null,null,null,4,{"$f":"Import!E68","v":"00:00:00"},{"$f":"Import!E78","v":"00:00:00"},{"$f":"Import!E88","v":0}]
[null,null,null,5,{"$f":"Import!E69","v":"00:00:00"},{"$f":"Import!E79","v":"00:00:00"},{"$f":"Import!E89","v":0}]
[null,null,null,6,{"$f":"Import!E70","v":"00:00:00"},{"$f":"Import!E80","v":"00:00:00"},{"$f":"Import!E90","v":0}]
[null,null,null,7,{"$f":"Import!E71","v":"00:00:00"},{"$f":"Import!E81","v":"00:00:00"},{"$f":"Import!E91","v":0}]
[null,null,null,8,{"$f":"Import!E72","v":"00:00:00"},{"$f":"Import!E82","v":"00:00:00"},{"$f":"Import!E92","v":0}]
[null,null,null,9,{"$f":"Import!E73","v":"00:00:00"},{"$f":"Import!E83","v":"00:00:00"},{"$f":"Import!E93","v":0}]
[null,null,null,10,{"$f":"Import!E74","v":"00:00:00"},{"$f":"Import!E84","v":"00:00:00"},{"$f":"Import!E94","v":0}]
[]
[]
[]
[null,"(q)","If any question in points (m)(v) and (o) has been answered in the negative, state the reason for negative answer and describe whether or not the insurer has taken corrective action in any case and, where the insurer has taken such action, describe the action in a statement attached ",null,null,null,null,{"$f":"Import!E95","v":"Select Yes/No"}]
[]
[null,null,{"$f":"Import!E96","v":0}]
[]
[]
[]
[]
[]
[]
[null,null,"Industry Sector","Type of Company"]
[null,null,"Select from Drop-Down","Select from Drop-Down"]
[null,null,"Administrative and Support Services","Pure Captive"]
[null,null,"Agriculture, Mining, Forestry and Fishing","Rent-a-Captive"]
[null,null,"Automotive, Manufacturing and Retail","Agency Captive"]
[null,null,"Charities & Non-profit Organisations","Group Captive"]
[null,null,"Chemical and Pharmaceutical","Association Captive"]
[null,null,"Construction","Risk Retention Group"]
[null,null,"Education","Insurer/Reinsurer"]
[null,null,"Energy, Power and Utilities"]
[null,null,"Financial Institution"]
[null,null,"Government or Public Sector"]
[null,null,"Healthcare"]
[null,null,"Hospitality"]
[null,null,"Leisure"]
[null,null,"Media and Gaming"]
[null,null,"Professional Services"]
[null,null,"Science and Research"]
[null,null,"Shipping, Transport & Storage"]
[null,null,"Technology and Telecoms"]
[null,null,"Wholesale and Retail"]
[]
[null,null,"Ownership"]
[null,null,"Select from Drop-Down"]
[null,null,"Mutual"]
[null,null,"Shares"]
[null,null,"Partnership"]
[null,null,"Government or Government Agency"]
[null,null,"Limited Partnership"]
[null,null,"Permit/Branch"]
[null,null,"Trust"]
[]
[null,null,"General Questions"]
[null,null,"Select from Drop-Down"]
[null,null,"Yes"]
[null,null,"No"]
[null,null,"N/A"]

{"sheet":"Financial Condition","index":17,"n_rows":470,"n_cols":6,"rows_kept":470,"cut":false,"hidden":true,"merged":[[176,1,178,5],[154,1,156,5],[111,1,113,5],[117,1,119,5],[159,1,161,5],[164,1,166,5],[169,1,171,5],[242,1,244,5],[181,1,183,5],[188,1,190,5],[192,1,193,5],[194,1,196,5],[199,1,201,5],[204,1,206,5],[211,1,213,5],[216,1,218,5],[223,1,225,5],[230,1,232,5],[237,1,239,5],[294,1,296,5],[248,1,250,5],[252,1,253,5],[256,1,258,5],[261,1,263,5],[266,1,268,5],[271,1,273,5],[276,1,278,5],[281,1,283,5],[285,1,285,5],[288,1,290,5],[292,1,293,5],[358,1,360,5],[341,1,342,5],[299,1,301,5],[304,1,306,5],[309,1,311,5],[313,1,313,5],[317,1,318,5],[319,1,321,5],[328,1,329,5],[330,1,332,5],[343,1,345,5],[348,1,350,5],[353,1,355,5],[423,1,424,5],[363,1,365,5],[367,1,367,5],[376,1,378,5],[381,1,383,5],[386,1,388,5],[393,1,395,5],[398,1,400,5],[403,1,405,5],[408,1,410,5],[413,1,415,5],[418,1,420,5],[445,1,447,5],[427,1,427,5],[430,1,432,5],[434,1,434,5],[435,1,437,5],[439,1,439,5],[440,1,442,5]]}
[null,"SCHEDULE OF FINANCIAL CONDITION REPORT"]
["i)","Business and Performance - particulars regarding the organisational structure, insurance business activities and financial performance "]
[]
["(a)","Name of the insurer:"]
[null,null,null,null,null,{"$f":"+'Insurer Information'!C7","v":"Enter Company Name"}]
["(b)","Name and contact details of the insurance supervisor and group supervisor"]
[null,null,null,"Insurance Supervisor",null,"Group Supervisor"]
[null,"Name:"]
[null,"Jurisdiction:"]
[null,"Email Address:"]
[null,"Phone Number:"]
[]
["(c)","Name and contact details of the Approved Auditor"]
[]
[null,"Organisation:"]
[null,"Name:"]
[null,"Jurisdiction:"]
[null,"Email Address:"]
[null,"Phone Number:"]
[]
["(d)","Ownership details: ",null,null,null,"Enter Number of Owners"]
[]
[null,null,null,"Owner Name",null,"Ownership Percentage"]
[null,null,1]
[null,null,2]
[null,null,3]
[null,null,4]
[null,null,5]
[null,null,6]
[null,null,7]
[null,null,8]
[null,null,9]
[null,null,10]
[null,null,11]
[null,null,12]
[null,null,13]
[null,null,14]
[null,null,15]
[]
["(e)","Where the insurer is part of a group, a group structure chart showing where the insurer fits within the group structure"]
[]
["(f)","Insurance business written by business segment and by geographical region during the reporting period:"]
[null,"Line of Business",null,"Gross Premium Written",null,"Net Premium Written"]
[1,"Mortality ",null,{"$f":"+'Schedule IVB (EBS)'!M12","v":0},null,{"$f":"'Schedule IVB (EBS)'!Y12","v":0}]
[2,"Critical Illness",null,{"$f":"+'Schedule IVB (EBS)'!M13","v":0},null,{"$f":"'Schedule IVB (EBS)'!Y13","v":0}]
[3,"Longevity",null,{"$f":"+'Schedule IVB (EBS)'!M14","v":0},null,{"$f":"'Schedule IVB (EBS)'!Y14","v":0}]
[4,"Deferred Annuities",null,{"$f":"+'Schedule IVB (EBS)'!M15","v":0},null,{"$f":"'Schedule IVB (EBS)'!Y15","v":0}]
[5,"Disability Income: Active lives with "]
[null,"premium guarantee of —"]
[null,"(i) Less than or equal to 1 year",null,{"$f":"+'Schedule IVB (EBS)'!M17","v":0},null,{"$f":"'Schedule IVB (EBS)'!Q17+'Schedule IVB (EBS)'!U17","v":0}]
[null,"(ii) More than 1 year but less than 5 years",null,{"$f":"+'Schedule IVB (EBS)'!M18","v":0},null,{"$f":"'Schedule IVB (EBS)'!Q18+'Schedule IVB (EBS)'!U18","v":0}]
[null,"(iii) Greater than 5 years",null,{"$f":"+'Schedule IVB (EBS)'!M19","v":0},null,{"$f":"'Schedule IVB (EBS)'!Q19+'Schedule IVB (EBS)'!U19","v":0}]
[6,"Disability Income: Actives lives for other "]
[null,"accident and sickness",null,{"$f":"+'Schedule IVB (EBS)'!M20","v":0},null,{"$f":"'Schedule IVB (EBS)'!Y20","v":0}]
[7,"Disability Income: Claims in payment ",null,{"$f":"+'Schedule IVB (EBS)'!M22","v":0},null,{"$f":"'Schedule IVB (EBS)'!Y22","v":0}]
[8,"Disability Income: Claims in payment for other",null,{"$f":"+'Schedule IVB (EBS)'!M23","v":0},null,{"$f":"'Schedule IVB (EBS)'!Y23","v":0}]
[null,"accident and sickness"]
[9,"Group Life",null,{"$f":"+'Schedule IVB (EBS)'!M25","v":0},null,{"$f":"'Schedule IVB (EBS)'!Y25","v":0}]
[10,"Group Disability",null,{"$f":"+'Schedule IVB (EBS)'!M26","v":0},null,{"$f":"'Schedule IVB (EBS)'!Y26","v":0}]
[11,"Group Health",null,{"$f":"+'Schedule IVB (EBS)'!M27","v":0},null,{"$f":"'Schedule IVB (EBS)'!Y27","v":0}]
[12,"Stop Loss",null,{"$f":"+'Schedule IVB (EBS)'!M28","v":0},null,{"$f":"'Schedule IVB (EBS)'!Y28","v":0}]
[13,"Rider",null,{"$f":"+'Schedule IVB (EBS)'!M29","v":0},null,{"$f":"'Schedule IVB (EBS)'!Y29","v":0}]
[14,"Variable Annuities",null,{"$f":"+'Schedule IVB (EBS)'!M30","v":0},null,{"$f":"'Schedule IVB (EBS)'!Y30","v":0}]
[15,"Total ",null,{"$f":"SUM(D44:D63)","v":0},null,{"$f":"SUM(F44:F63)","v":0}]
[]
[null,"Geographical Location",null,"Gross Premium Written"]
[1,"Central & Western Asia"]
[2,"Eastern Asia"]
[3,"South and South-Eastern Asia"]
[4,"Oceania"]
[5,"Nothern Africa"]
[6,"Southern Africa"]
[7,"Eastern Europe"]
[8,"Nothern Europe"]
[9,"Southern Europe"]
[10,"Western Europe"]
[11,"Nothern America (Excluding USA)"]
[12,"Caribean & Centeral America"]
[13,"Eastern South America"]
[14,"Nothern, Southern, and Western South America"]
[15,"North-East United States"]
[16,"South-East United States"]
[17,"Mid-West United States"]
[18,"Western United States"]
[null,"TOTAL",null,{"$f":"SUM(D67:D84)","v":0}]
[]
["(g)","Performance  of  investments during the reporting period:"]
[null,null,null,"Market Value",null,"Performance"]
[1,{"$f":"+'Schedule VI'!C8","v":"U.S. Government "}]
[null,{"$f":"+'Schedule VI'!C9","v":"(a) U.S. Government Federal"},null,{"$f":"'Schedule VI (EBS)'!E9","v":0}]
[null,{"$f":"+'Schedule VI'!C10","v":"(b) U.S. Government Agency - mortgage-backed securities"},null,{"$f":"'Schedule VI (EBS)'!E10","v":0}]
[null,{"$f":"+'Schedule VI'!C11","v":"(c) U.S. Government Agency - other"},null,{"$f":"'Schedule VI (EBS)'!E11","v":0}]
[2,{"$f":"+'Schedule VI'!C12","v":"Non-U.S. Government"},null,{"$f":"'Schedule VI (EBS)'!E12","v":0}]
[3,{"$f":"+'Schedule VI'!C13","v":"States, Municipalities, and Political Subdivision"},null,{"$f":"'Schedule VI (EBS)'!E13","v":0}]
[4,{"$f":"+'Schedule VI'!C14","v":"Corporate Securities"}]
[null,{"$f":"+'Schedule VI'!C15","v":"(a) U.S. Government-backed Corporate"},null,{"$f":"'Schedule VI (EBS)'!E15","v":0}]
[null,{"$f":"+'Schedule VI'!C16","v":"(b) Non-U.S. Government-backed Corporate"},null,{"$f":"'Schedule VI (EBS)'!E16","v":0}]
[null,{"$f":"+'Schedule VI'!C17","v":"(c) FDIC Guaranteed Corporate"},null,{"$f":"'Schedule VI (EBS)'!E17","v":0}]
[null,{"$f":"+'Schedule VI'!C18","v":"(d) Other Corporate"},null,{"$f":"'Schedule VI (EBS)'!E18","v":0}]
[5,{"$f":"+'Schedule VI'!C19","v":"Asset-backed Securities"},null,{"$f":"'Schedule VI (EBS)'!E19","v":0}]
[6,{"$f":"+'Schedule VI'!C20","v":"Mortgage-backed Securities"}]
[null,{"$f":"+'Schedule VI'!C21","v":"(a) Residential Subprime"},null,{"$f":"'Schedule VI (EBS)'!E21","v":0}]
[null,{"$f":"+'Schedule VI'!C22","v":"(b) Residential Non-subprime"},null,{"$f":"'Schedule VI (EBS)'!E22","v":0}]
[null,{"$f":"+'Schedule VI'!C23","v":"(c) Commercial"},null,{"$f":"'Schedule VI (EBS)'!E23","v":0}]
[7,{"$f":"+'Schedule VI'!C24","v":"Mutual Funds"},null,{"$f":"'Schedule VI (EBS)'!E24","v":0}]
[8,{"$f":"+'Schedule VI'!C25","v":"Bank Loans"},null,{"$f":"'Schedule VI (EBS)'!E25","v":0}]
[9,{"$f":"+'Schedule VI'!C26","v":"Catastrophe Bonds and Insurance-Linked Securities"},null,{"$f":"'Schedule VI (EBS)'!E26","v":0}]
[10,{"$f":"+'Schedule VI'!C27","v":"Others (Briefly describe)"},null,{"$f":"'Schedule VI (EBS)'!E27","v":0}]
[null,{"$f":"+'Schedule VI'!C28","v":"TOTAL PORTFOLIO"},null,{"$f":"SUM(D89:D107)","v":0}]
[]
[null,"Details  on  material income and expenses incurred"]
[]
[]
[]
[]
["(h)","Any other material information:"]
[]
[]
[]
[]
[]
["ii)","Governance Structure - particulars of corporate governance, risk management and solvency self-assessment frameworks"]
[]
["(a)","Board and Senior Executive:"]
[]
["i.","Directors",null,null,null,{"$f":"'Schedule V(a)'!D8","v":0}]
[]
[null,"Name","Board Position"]
[1,{"$f":"'Schedule V(a)'!C12","v":0},{"$f":"'Schedule V(a)'!D12","v":0}]
[2,{"$f":"'Schedule V(a)'!C13","v":0},{"$f":"'Schedule V(a)'!D13","v":0}]
[3,{"$f":"'Schedule V(a)'!C14","v":0},{"$f":"'Schedule V(a)'!D14","v":0}]
[4,{"$f":"'Schedule V(a)'!C15","v":0},{"$f":"'Schedule V(a)'!D15","v":0}]
[5,{"$f":"'Schedule V(a)'!C16","v":0},{"$f":"'Schedule V(a)'!D16","v":0}]
[6,{"$f":"'Schedule V(a)'!C17","v":0},{"$f":"'Schedule V(a)'!D17","v":0}]
[7,{"$f":"'Schedule V(a)'!C18","v":0},{"$f":"'Schedule V(a)'!D18","v":0}]
[8,{"$f":"'Schedule V(a)'!C19","v":0},{"$f":"'Schedule V(a)'!D19","v":0}]
[9,{"$f":"'Schedule V(a)'!C20","v":0},{"$f":"'Schedule V(a)'!D20","v":0}]
[10,{"$f":"'Schedule V(a)'!C21","v":0},{"$f":"'Schedule V(a)'!D21","v":0}]
[]
[null,"Officers",null,null,null,{"$f":"'Schedule V(a)'!D33","v":0}]
[]
[null,"Name","Board Position","Responsibilities"]
[1,{"$f":"'Schedule V(a)'!C37","v":0},{"$f":"'Schedule V(a)'!D37","v":0}]
[2,{"$f":"'Schedule V(a)'!C38","v":0},{"$f":"'Schedule V(a)'!D38","v":0}]
[3,{"$f":"'Schedule V(a)'!C39","v":0},{"$f":"'Schedule V(a)'!D39","v":0}]
[4,{"$f":"'Schedule V(a)'!C40","v":0},{"$f":"'Schedule V(a)'!D40","v":0}]
[5,{"$f":"'Schedule V(a)'!C41","v":0},{"$f":"'Schedule V(a)'!D41","v":0}]
[6,{"$f":"'Schedule V(a)'!C42","v":0},{"$f":"'Schedule V(a)'!D42","v":0}]
[7,{"$f":"'Schedule V(a)'!C43","v":0},{"$f":"'Schedule V(a)'!D43","v":0}]
[8,{"$f":"'Schedule V(a)'!C44","v":0},{"$f":"'Schedule V(a)'!D44","v":0}]
[9,{"$f":"'Schedule V(a)'!C45","v":0},{"$f":"'Schedule V(a)'!D45","v":0}]
[10,{"$f":"'Schedule V(a)'!C46","v":0},{"$f":"'Schedule V(a)'!D46","v":0}]
[]
[null,"Description of segregation of these responsibilities"]
[]
[]
[]
[]
["ii.","Description of remuneration policy and practices and performance- based criteria governing the board, senior executive and employees"]
[]
[]
[]
[]
["iii.","Description of the supplementary pension or early retirement schemes for members, the board and senior executive"]
[]
[]
[]
[]
["iv.","Any material transactions with shareholder controllers, persons who exercise significant influence, the board or senior executive"]
[]
[]
[]
[]
["(b)","Fitness and Propriety Requirements"]
[]
["i.","Description of the fit and proper process in assessing the board and senior executive"]
[]
[]
[]
[]
["ii.","Description of the professional qualifications, skills, and expertise of the board and senior executives to carry out their functions"]
[]
[]
[]
[]
["(c)","Risk Management and Solvency Self-Assessment"]
[]
["i.","Description of  the risk management process and procedures to effectively identify, measure, manage and report on risk exposures"]
[]
[]
[]
[]
["ii.","Description of how the risk management and solvency self- assessment systems are implemented and integrated into the insurer’s operations; including strategic planning and organisational and decision making process"]
[]
[]
[]
[]
[]
["iii.","Description of the relationship between the solvency self- assessment, solvency needs, and capital and risk management systems"]
[]
[]
[]
[]
["iv.","Description of the solvency self-assessment approval process including the level of oversight and independent verification by the board and senior executives"]
[]
[]
[]
[]
["(d)","Internal Controls"]
[]
["i.","Description of the internal control system"]
[]
[]
[]
[]
["ii.","Description of how the compliance function is executed"]
[]
[]
[]
[]
["(e)","Internal Audit"]
[]
[null,"Description of how the internal audit function is implemented and how it maintains its independence and objectivity when conducting its functions"]
[]
[]
[]
[]
["(f)","Actuarial Function"]
[]
[null,"Description of how the actuarial function is implemented"]
[]
[]
[]
[]
["(g)","Outsourcing"]
[]
["i.","Description of the outsourcing policy and information on any key or important functions that have been outsourced"]
[]
[]
[]
[]
["ii.","Description of material intra-group outsourcing"]
[]
[]
[]
[]
["(h)","Any other material information:"]
[]
[]
[]
[]
[]
["iii)","Risk Profile - particulars on exposures on underwriting risk, market risk including off balance sheet exposures, credit risk, liquidity risk, operational risk and other material risks"]
[]
[]
["(a)","Material risks that the insurer is exposed to, including how these risks are measured and any material changes that have occurred during the reporting period:"]
[]
[]
[]
[]
["(b)","How risks are mitigated including the methods used and the process to monitor the effectiveness of these methods"]
[]
[]
[]
[]
["(c)","Material risk concentrations"]
[]
[]
[]
[]
["(d)","How assets are invested in accordance with the prudent person principle as stated in Paragraph 5.1.2 of the Code"]
[]
[]
[]
[]
["(e)","The stress testing and sensitivity analysis to assess material risks, including the methods and assumptions used, and the outcomes"]
[]
[]
[]
[]
["(f)","Any other material information:"]
[]
[]
[]
[]
["iv)","Solvency Valuation - particulars of the valuation bases, methods and assumptions on the inputs used to determine solvency"]
[]
["(a)","The valuation bases, assumptions and methods used to derive the value of each asset class"]
[]
[]
[]
[]
["(b)","The valuation bases, assumptions and methods used to derive the value of technical provisions and the amount of the best estimate. The amount of the risk margin as well as the level of uncertainty to determine the value of the technical provisions should be included"]
[]
[]
[]
[]
[]
["(c)","Description of recoverables from reinsurance contracts, including special purpose insurers and other risk transfer mechanisms"]
[]
[]
[]
[]
["(d)","The valuation bases, assumptions and methods used to derive the value of other liabilities"]
[]
[]
[]
[]
["(e)","Any other material information:"]
[]
[]
[]
[]
["v)","Capital Management - particulars regarding an assessment of capital needs and regulatory capital requirements"]
[]
["(a)","Eligible Capital"]
[]
["i.","Description of the capital management policy and process to determine capital needs for business planning, how capital is managed and any material changes during the reporting period"]
[]
[]
[]
[]
[]
["ii.","Eligible Capital"]
[null,"Tier 1",null,null,null,{"$f":"+'Schedule XII(a)'!J56","v":0}]
[null,"Tier 2",null,null,null,{"$f":"+'Schedule XII(a)'!J69","v":0}]
[null,"Tier 3",null,null,null,{"$f":"+'Schedule XII(a)'!J77","v":0}]
[null,"Total",null,null,null,{"$f":"SUM(F325:F327)","v":0}]
[null,"Description of the eligible capital categorised by tiers in accordance with the Eligible Capital Rules"]
[]
[]
[]
[]
[]
["iii.","Eligible Capital by Regulatory Limitations"]
[null,null,"Limits:                 MSM                    ECR","Minimum Margin of Solvency",null,"Enhanced Capital Requirement"]
[null,"Tier 1","min                             80%                          50%",{"$f":"+'Schedule XII(a)'!G93","v":0},null,{"$f":"+'Schedule XII(a)'!I93","v":0}]
[null,"Tier 2","max                            25%                          50%",{"$f":"+'Schedule XII(a)'!G94","v":0},null,{"$f":"+'Schedule XII(a)'!I94","v":0}]
[null,"Tier 3","max                                                              15%",null,null,{"$f":"+'Schedule XII(a)'!I95","v":0}]
[null,"Total",null,{"$f":"SUM(D337:D339)","v":0},null,{"$f":"SUM(F337:F339)","v":0}]
[]
[null,"Description of the  eligible capital categorised by tiers, in accordance with the Eligible Capital Rules used to meet the Enhanced Capital Requirement (“ECR”) and the Minimum Margin of Solvency (“MSM”) defined in accordance with section (1) (1) of the Act"]
[]
[]
[]
[]
[]
["iv.","Confirmation that eligible capital is subject to transitional arrangements as required under the Eligible Capital Rules",null,null,null,"Select from Drop-Down"]
[]
[]
[]
[]
["v.","Identification of any factors affecting encumbrances affecting the availability and transferability of capital to meet the ECR"]
[]
[]
[]
[]
["vi."," Identification of ancillary capital instruments that have been approved by the Authority"]
[]
[]
[]
[]
["vii.","Identification of differences in shareholder’s equity as stated in the financial statements versus available statutory capital and surplus"]
[]
[]
[]
[]
["(b)","Regulatory Capital Requirements"]
[]
["i.","Amount of the ECR and MSM at the end of the reporting period:"]
[]
[null,null,null,null,null,"Amount"]
[null,"Minimum Margin of Solvency",null,null,null,{"$f":"Summary!N92","v":4000}]
[null,"Enhanced Capital Requirement",null,null,null,{"$f":"Summary!N98","v":4000}]
[]
["ii.","Identification of any non-compliance with the MSM and the ECR"]
[]
[]
[]
[]
["iii.","Description of the amount and circumstances surrounding the non-compliance, the remedial measures taken and their effectiveness"]
[]
[]
[]
[]
["iv.","Where the non-compliance has not been resolved, description of the amount of the non-compliance at the end of the reporting period"]
[]
[]
[]
[]
["(c)","Approved Internal Capital Model used to derive the ECR"]
[]
["i.","Description of the purpose and scope of the business and risk areas where the internal model is used"]
[]
[]
[]
[]
["ii.","where a partial internal model is used, description of how it is integrated with the BSCR Model"]
[]
[]
[]
[]
["iii.","Description of methods used in the internal model to calculate the ECR"]
[]
[]
[]
[]
["iv.","Description of aggregation methodologies and diversification effects"]
[]
[]
[]
[]
["v.","description of the main differences in the methods and assumptions used for the risk areas in the internal model versus the BSCR Model"]
[]
[]
[]
[]
["vi.","Description of the nature and suitability of the data used in the internal model"]
[]
[]
[]
[]
["vii.","Any other material information:"]
[]
[]
[]
[]
["vi)","Significant Event - particulars and explanations of a significant event including, but not limited to the following"]
[]
["(a)","Description of the significant event"]
[]
[]
[]
[]
["(b)","Approximate date(s) or proposed timing of the significant event"]
[]
[]
[]
[]
["(c)","Confirmation of how the significant event has impacted or will impact, any information provided in the most recent financial condition report filed with the Authority"]
[]
[]
[]
[]
["(d)","Any other material information:"]
[]
[]
[]
[]
[]
[]
[null,"General Questions"]
[null,"Select from Drop-Down"]
[null,"Yes"]
[null,"No"]
[null,"Rating Agency"]
[null,"Select Rating Agency"]
[null,"Standard & Poor"]
[null,"Moody's"]
[null,"AM Best"]
[null,"Fitch"]
[null,"Standard & Poor","Moody's","AM Best","Fitch"]
[null,"AAA","Aaa","A++","AAA"]
[null,"AA+ to AA-","Aa1 to Aa3","A+","AA+ to AA-"]
[null,"A+ to A-","A1 to A3","A","A+ to A-"]
[null,"BBB+ to BBB-","Baa1 to Baa3","A-","BBB+ to BBB-"]
[null,"BB+ to BB-","Ba1 to Ba3","B++ to B","BB+ to BB-"]
[null,"B+ to B-","B1 to B3","B- to C+","B+ to B-"]
[null,"CCC+ to CCC-","Caa1 to Caa3","C, C-","CCC+ to CCC-"]
[null,"Below CCC-","Below Caa3","Below C-","Below CCC-"]

{"sheet":"Form 1SFS","index":18,"n_rows":336,"n_cols":25,"rows_kept":336,"cut":false,"hidden":false,"merged":[[333,1,333,2],[318,10,318,12],[318,3,318,4],[3,5,5,8],[220,7,220,8],[221,7,221,8],[222,7,222,8],[223,7,223,8],[224,7,224,8],[230,7,230,8],[231,7,231,8],[232,7,232,8],[233,7,233,8],[234,7,234,8],[241,2,242,7],[241,8,242,12],[244,2,245,7],[247,2,248,7],[6,10,6,12],[7,10,7,12],[7,7,7,8],[7,5,7,6],[6,5,6,6],[6,7,6,8]]}
[null,"STATUTORY BALANCE SHEET",null,null,null,null,null,null,null,null,null,null,{"$f":"HYPERLINK(\"#'Index'!A1\",\"Return to Index\")","v":"Return to Index"}]
[]
[null,{"$f":"'Insurer Information'!C7","v":"Enter Company Name"},null,null,null,null,null,null,null,null,null,null,null,null,null,null,null,null,null,null,null,null,null,null,"bma_BusinessTypeAxis"]
[null,"As at",{"$f":"'Insurer Information'!C3","v":"2019-12-31"},null,null,"Note if an insurer does not have any entities to consolidate, select \"No Subsidiaries\" on the Insurer Information tab (This cell is editable for deletion)",null,null,null,null,null,null,"FORM 1SFS",null,null,null,null,null,null,null,null,null,null,null,"bma_LongTermBusinessMember"]
[null,{"$f":"\"Expressed in \" & IF(CONFIGURATION!$B$12>1,\" ['\"&MID(CONFIGURATION!$B$12,2,LEN(CONFIGURATION!$B$12))&\"s]\",\"\")","v":"Expressed in  ['000s]"},"United States Dollars"]
[null,null,null,null,null,null,null,null,null,null,null,null,null,{"$f":"YEAR('Insurer Information'!C3)","v":2019}]
[null,null,null,null,null,"General Business",null,"Long-Term Business",null,null,"General & Long-Term Business",null,null,null,null,null,{"$f":"IF(K9=\"\",\"\",TEXT(DATE(YEAR(K9+1)-1,MONTH(K9+1),DAY(K9+1)),\"mm/dd/yyyy\"))","v":"01/01/2019"},{"$f":"IF(M9=\"\",\"\",TEXT(DATE(YEAR(M9+1)-1,MONTH(M9+1),DAY(M9+1)),\"mm/dd/yyyy\"))","v":"01/01/2018"}]
[null,"STMT.",null,null,null,"Unconsolidated",null,"Unconsolidated",null,null,"Consolidated",null,null,null,null,null,{"$f":"IF(K9=\"\",\"\",TEXT(K9,\"mm/dd/yyyy\"))","v":"12/31/2019"},{"$f":"IF(M9=\"\",\"\",TEXT(M9,\"mm/dd/yyyy\"))","v":"12/31/2018"}]
[null,"LINE No.",null,null,null,{"$f":"C4","v":"2019-12-31"},{"$f":"DATE(YEAR(C4) -1, MONTH(C4), DAY(C4))","v":"2018-12-31"},{"$f":"C4","v":"2019-12-31"},{"$f":"DATE(YEAR(C4) -1, MONTH(C4), DAY(C4))","v":"2018-12-31"},null,{"$f":"C4","v":"2019-12-31"},null,{"$f":"DATE(YEAR(C4) -1, MONTH(C4), DAY(C4))","v":"2018-12-31"},null,null,null,null,null,null,null,null,null,null,null,"bma_ReportForTheYearEnding"]
[null,null,null,null,null,{"$f":"CONFIGURATION!$D$12","v":" ('000s)"},{"$f":"CONFIGURATION!$D$12","v":" ('000s)"},{"$f":"CONFIGURATION!$D$12","v":" ('000s)"},{"$f":"CONFIGURATION!$D$12","v":" ('000s)"},null,{"$f":"CONFIGURATION!$D$12","v":" ('000s)"},null,{"$f":"CONFIGURATION!$D$12","v":" ('000s)"}]
[null,null,null,null,null,null,null,null,null,null,null,null,null,null,null,"",null,null,null,null,null,null,null,null,""]
[null,"1.","CASH AND CASH EQUIVALENTS",null,null,{"$f":"Import!E208","v":0},{"$f":"Import!G208","v":0},{"$f":"Import!E99","v":0},{"$f":"Import!G99","v":0},null,{"$f":"Import!I99","v":0},null,{"$f":"Import!K99","v":0},null,null,"brrt_CashAndTimeDeposits",{"$f":"XBRLMap(K12,$P12,$Q$7,$Q$8,CONFIGURATION!$B$10,\"BMA\",CONFIGURATION!$B$1,\"bscr\",CONFIGURATION!$B$12)","v":"Mapped"},{"$f":"XBRLMap(M12,$P12,$R$7,$R$8,CONFIGURATION!$B$10,\"BMA\",CONFIGURATION!$B$1,\"bscr\",CONFIGURATION!$B$12)","v":"Mapped"},null,null,null,null,null,null,"bma_CashAndTimeDeposits"]
[null,null,null,null,null,null,null,null,null,null,null,null,null,null,null,"",null,null,null,null,null,null,null,null,""]
[null,"2.","QUOTED INVESTMENTS:",null,null,null,null,null,null,null,null,null,null,null,null,""]
[null,"(a)","Bonds and debentures"]
[null,null,"  i.   Held to maturity",null,null,{"$f":"Import!E209","v":0},{"$f":"Import!G209","v":0},{"$f":"Import!E100","v":0},{"$f":"Import!G100","v":0},null,{"$f":"Import!I100","v":0},null,{"$f":"Import!K100","v":0}]
[null,null,"  ii.  Other",null,null,{"$f":"Import!E210","v":0},{"$f":"Import!G210","v":0},{"$f":"Import!E101","v":0},{"$f":"Import!G101","v":0},null,{"$f":"Import!I101","v":0},null,{"$f":"Import!K101","v":0}]
[null,"(b) ","Total Bonds and Debentures",null,null,{"$f":"SUM(F16:F17)","v":0},{"$f":"SUM(G16:G17)","v":0},{"$f":"SUM(H16:H17)","v":0},{"$f":"SUM(I16:I17)","v":0},null,{"$f":"SUM(K16:K17)","v":0},null,{"$f":"SUM(M16:M17)","v":0},null,null,"brrt_QuotedInvestmentsBondsAndDebentures",{"$f":"XBRLMap(K18,$P18,$Q$7,$Q$8,CONFIGURATION!$B$10,\"BMA\",CONFIGURATION!$B$1,\"bscr\",CONFIGURATION!$B$12)","v":"Mapped"},{"$f":"XBRLMap(M18,$P18,$R$7,$R$8,CONFIGURATION!$B$10,\"BMA\",CONFIGURATION!$B$1,\"bscr\",CONFIGURATION!$B$12)","v":"Mapped"},null,null,null,null,null,null,"bma_QuotedInvestmentsTotalBondsAndDebentures"]
[null,"(c) ","Equities ",null,null,null,null,null,null,null,null,null,null,null,null,null,{"$f":"XBRLMap(K19,$P19,$Q$7,$Q$8,CONFIGURATION!$B$10,\"BMA\",CONFIGURATION!$B$1,\"bscr\",CONFIGURATION!$B$12)","v":"-"},{"$f":"XBRLMap(M19,$P19,$R$7,$R$8,CONFIGURATION!$B$10,\"BMA\",CONFIGURATION!$B$1,\"bscr\",CONFIGURATION!$B$12)","v":"-"}]
[null,null,"  i.  Common Stocks",null,null,{"$f":"Import!E211","v":0},{"$f":"Import!G211","v":0},{"$f":"Import!E103","v":0},{"$f":"Import!G103","v":0},null,{"$f":"Import!I103","v":0},null,{"$f":"Import!K103","v":0},null,null,"brrt_QuotedInvestmentsEquitiesCommonStocks",{"$f":"XBRLMap(K20,$P20,$Q$7,$Q$8,CONFIGURATION!$B$10,\"BMA\",CONFIGURATION!$B$1,\"bscr\",CONFIGURATION!$B$12)","v":"Mapped"},{"$f":"XBRLMap(M20,$P20,$R$7,$R$8,CONFIGURATION!$B$10,\"BMA\",CONFIGURATION!$B$1,\"bscr\",CONFIGURATION!$B$12)","v":"Mapped"},null,null,null,null,null,null,"bma_QuotedInvestmentsEquitiesCommonStocks"]
[null,null,"  ii. Preferred Stocks",null,null,{"$f":"Import!E212","v":0},{"$f":"Import!G212","v":0},{"$f":"Import!E104","v":0},{"$f":"Import!G104","v":0},null,{"$f":"Import!I104","v":0},null,{"$f":"Import!K104","v":0},null,null,"brrt_QuotedInvestmentsEquitiesPreferredStocks",{"$f":"XBRLMap(K21,$P21,$Q$7,$Q$8,CONFIGURATION!$B$10,\"BMA\",CONFIGURATION!$B$1,\"bscr\",CONFIGURATION!$B$12)","v":"Mapped"},{"$f":"XBRLMap(M21,$P21,$R$7,$R$8,CONFIGURATION!$B$10,\"BMA\",CONFIGURATION!$B$1,\"bscr\",CONFIGURATION!$B$12)","v":"Mapped"},null,null,null,null,null,null,"bma_QuotedInvestmentsEquitiesPreferredStocks"]
[null,null,"  iii. Mutual Funds",null,null,{"$f":"Import!E213","v":0},{"$f":"Import!G213","v":0},{"$f":"Import!E105","v":0},{"$f":"Import!G105","v":0},null,{"$f":"Import!I105","v":0},null,{"$f":"Import!K105","v":0},null,null,"brrt_QuotedInvestmentsEquitiesMutualFunds",{"$f":"XBRLMap(K22,$P22,$Q$7,$Q$8,CONFIGURATION!$B$10,\"BMA\",CONFIGURATION!$B$1,\"bscr\",CONFIGURATION!$B$12)","v":"Mapped"},{"$f":"XBRLMap(M22,$P22,$R$7,$R$8,CONFIGURATION!$B$10,\"BMA\",CONFIGURATION!$B$1,\"bscr\",CONFIGURATION!$B$12)","v":"Mapped"},null,null,null,null,null,null,"bma_QuotedInvestmentsEquitiesMutualFunds"]
[null,"(d) ","Total Equity Investments",null,null,{"$f":"SUM(F20:F22)","v":0},{"$f":"SUM(G20:G22)","v":0},{"$f":"SUM(H20:H22)","v":0},{"$f":"SUM(I20:I22)","v":0},null,{"$f":"SUM(K20:K22)","v":0},null,{"$f":"SUM(M20:M22)","v":0},null,null,"brrt_QuotedInvestmentsEquities",{"$f":"XBRLMap(K23,$P23,$Q$7,$Q$8,CONFIGURATION!$B$10,\"BMA\",CONFIGURATION!$B$1,\"bscr\",CONFIGURATION!$B$12)","v":"Mapped"},{"$f":"XBRLMap(M23,$P23,$R$7,$R$8,CONFIGURATION!$B$10,\"BMA\",CONFIGURATION!$B$1,\"bscr\",CONFIGURATION!$B$12)","v":"Mapped"},null,null,null,null,null,null,"bma_QuotedInvestmentsTotalEquityInvestments"]
[null,"(e)","Other Quoted Investments",null,null,{"$f":"Import!E214","v":0},{"$f":"Import!G214","v":0},{"$f":"Import!E106","v":0},{"$f":"Import!G106","v":0},null,{"$f":"Import!I106","v":0},null,{"$f":"Import!K106","v":0},null,null,"brrt_QuotedInvestmentsOther",{"$f":"XBRLMap(K24,$P24,$Q$7,$Q$8,CONFIGURATION!$B$10,\"BMA\",CONFIGURATION!$B$1,\"bscr\",CONFIGURATION!$B$12)","v":"Mapped"},{"$f":"XBRLMap(M24,$P24,$R$7,$R$8,CONFIGURATION!$B$10,\"BMA\",CONFIGURATION!$B$1,\"bscr\",CONFIGURATION!$B$12)","v":"Mapped"},null,null,null,null,null,null,"bma_QuotedInvestmentsOtherInvestments"]
[null,"(f)","Total Quoted Investments",null,null,{"$f":"F18+F23+F24","v":0},{"$f":"G18+G23+G24","v":0},{"$f":"H18+H23+H24","v":0},{"$f":"I18+I23+I24","v":0},null,{"$f":"K18+K23+K24","v":0},null,{"$f":"M18+M23+M24","v":0},null,null,"brrt_QuotedInvestments",{"$f":"XBRLMap(K25,$P25,$Q$7,$Q$8,CONFIGURATION!$B$10,\"BMA\",CONFIGURATION!$B$1,\"bscr\",CONFIGURATION!$B$12)","v":"Mapped"},{"$f":"XBRLMap(M25,$P25,$R$7,$R$8,CONFIGURATION!$B$10,\"BMA\",CONFIGURATION!$B$1,\"bscr\",CONFIGURATION!$B$12)","v":"Mapped"},null,null,null,null,null,null,"bma_QuotedInvestmentsTotalInvestments"]
[null,null,null,null,null,null,null,null,null,null,null,null,null,null,null,"",null,null,null,null,null,null,null,null,""]
[null,"3.","UNQUOTED INVESTMENTS:",null,null,null,null,null,null,null,null,null,null,null,null,""]
[null,"(a)","Bonds and debentures"]
[null,null,"  i.   Held to maturity",null,null,{"$f":"Import!E215","v":0},{"$f":"Import!G215","v":0},{"$f":"Import!E107","v":0},{"$f":"Import!G107","v":0},null,{"$f":"Import!I107","v":0},null,{"$f":"Import!K107","v":0}]
[null,null,"  ii.  Other",null,null,{"$f":"Import!E216","v":0},{"$f":"Import!G216","v":0},{"$f":"Import!E108","v":0},{"$f":"Import!G108","v":0},null,{"$f":"Import!I108","v":0},null,{"$f":"Import!K108","v":0}]
[null,"(b) ","Bonds and Debentures",null,null,{"$f":"SUM(F29:F30)","v":0},{"$f":"SUM(G29:G30)","v":0},{"$f":"SUM(H29:H30)","v":0},{"$f":"SUM(I29:I30)","v":0},null,{"$f":"SUM(K29:K30)","v":0},null,{"$f":"SUM(M29:M30)","v":0},null,null,"brrt_UnquotedInvestmentsBondsAndDebentures",{"$f":"XBRLMap(K31,$P31,$Q$7,$Q$8,CONFIGURATION!$B$10,\"BMA\",CONFIGURATION!$B$1,\"bscr\",CONFIGURATION!$B$12)","v":"Mapped"},{"$f":"XBRLMap(M31,$P31,$R$7,$R$8,CONFIGURATION!$B$10,\"BMA\",CONFIGURATION!$B$1,\"bscr\",CONFIGURATION!$B$12)","v":"Mapped"},null,null,null,null,null,null,"bma_UnquotedInvestmentsTotalBondsAndDebentures"]
[null,"(c) ","Equities ",null,null,null,null,null,null,null,null,null,null,null,null,"",{"$f":"XBRLMap(K32,$P32,$Q$7,$Q$8,CONFIGURATION!$B$10,\"BMA\",CONFIGURATION!$B$1,\"bscr\",CONFIGURATION!$B$12)","v":"-"},{"$f":"XBRLMap(M32,$P32,$R$7,$R$8,CONFIGURATION!$B$10,\"BMA\",CONFIGURATION!$B$1,\"bscr\",CONFIGURATION!$B$12)","v":"-"}]
[null,null,"  i.  Common Stocks",null,null,{"$f":"Import!E217","v":0},{"$f":"Import!G217","v":0},{"$f":"Import!E110","v":0},{"$f":"Import!G110","v":0},null,{"$f":"Import!I110","v":0},null,{"$f":"Import!K110","v":0},null,null,"brrt_UnquotedInvestmentsEquitiesCommonStocks",{"$f":"XBRLMap(K33,$P33,$Q$7,$Q$8,CONFIGURATION!$B$10,\"BMA\",CONFIGURATION!$B$1,\"bscr\",CONFIGURATION!$B$12)","v":"Mapped"},{"$f":"XBRLMap(M33,$P33,$R$7,$R$8,CONFIGURATION!$B$10,\"BMA\",CONFIGURATION!$B$1,\"bscr\",CONFIGURATION!$B$12)","v":"Mapped"},null,null,null,null,null,null,"bma_UnquotedInvestmentsEquitiesCommonStocks"]
[null,null,"  ii. Preferred Stocks",null,null,{"$f":"Import!E218","v":0},{"$f":"Import!G218","v":0},{"$f":"Import!E111","v":0},{"$f":"Import!G111","v":0},null,{"$f":"Import!I111","v":0},null,{"$f":"Import!K111","v":0},null,null,"brrt_UnquotedInvestmentsEquitiesPreferredStocks",{"$f":"XBRLMap(K34,$P34,$Q$7,$Q$8,CONFIGURATION!$B$10,\"BMA\",CONFIGURATION!$B$1,\"bscr\",CONFIGURATION!$B$12)","v":"Mapped"},{"$f":"XBRLMap(M34,$P34,$R$7,$R$8,CONFIGURATION!$B$10,\"BMA\",CONFIGURATION!$B$1,\"bscr\",CONFIGURATION!$B$12)","v":"Mapped"},null,null,null,null,null,null,"bma_UnquotedInvestmentsEquitiesPreferredStocks"]
[null,null,"  iii. Mutual Funds",null,null,{"$f":"Import!E219","v":0},{"$f":"Import!G219","v":0},{"$f":"Import!E112","v":0},{"$f":"Import!G112","v":0},null,{"$f":"Import!I112","v":0},null,{"$f":"Import!K112","v":0},null,null,"brrt_UnquotedInvestmentsEquitiesMutualFunds",{"$f":"XBRLMap(K35,$P35,$Q$7,$Q$8,CONFIGURATION!$B$10,\"BMA\",CONFIGURATION!$B$1,\"bscr\",CONFIGURATION!$B$12)","v":"Mapped"},{"$f":"XBRLMap(M35,$P35,$R$7,$R$8,CONFIGURATION!$B$10,\"BMA\",CONFIGURATION!$B$1,\"bscr\",CONFIGURATION!$B$12)","v":"Mapped"},null,null,null,null,null,null,"bma_UnquotedInvestmentsEquitiesMutualFunds"]
[null,"(d) ","Total Equity Investments",null,null,{"$f":"SUM(F33:F35)","v":0},{"$f":"SUM(G33:G35)","v":0},{"$f":"SUM(H33:H35)","v":0},{"$f":"SUM(I33:I35)","v":0},null,{"$f":"SUM(K33:K35)","v":0},null,{"$f":"SUM(M33:M35)","v":0},null,null,"brrt_UnquotedInvestmentsEquities",{"$f":"XBRLMap(K36,$P36,$Q$7,$Q$8,CONFIGURATION!$B$10,\"BMA\",CONFIGURATION!$B$1,\"bscr\",CONFIGURATION!$B$12)","v":"Mapped"},{"$f":"XBRLMap(M36,$P36,$R$7,$R$8,CONFIGURATION!$B$10,\"BMA\",CONFIGURATION!$B$1,\"bscr\",CONFIGURATION!$B$12)","v":"Mapped"},null,null,null,null,null,null,"bma_UnquotedInvestmentsTotalEquityInvestments"]
[null,"(e)","Other Unquoted Investments",null,null,{"$f":"Import!E220","v":0},{"$f":"Import!G220","v":0},{"$f":"Import!E113","v":0},{"$f":"Import!G113","v":0},null,{"$f":"Import!I113","v":0},null,{"$f":"Import!K113","v":0},null,null,"brrt_UnquotedInvestmentsOther",{"$f":"XBRLMap(K37,$P37,$Q$7,$Q$8,CONFIGURATION!$B$10,\"BMA\",CONFIGURATION!$B$1,\"bscr\",CONFIGURATION!$B$12)","v":"Mapped"},{"$f":"XBRLMap(M37,$P37,$R$7,$R$8,CONFIGURATION!$B$10,\"BMA\",CONFIGURATION!$B$1,\"bscr\",CONFIGURATION!$B$12)","v":"Mapped"},null,null,null,null,null,null,"bma_UnquotedInvestmentsOtherInvestments"]
[null,"(f)","Total Unquoted Investments",null,null,{"$f":"F31+F36+F37","v":0},{"$f":"G31+G36+G37","v":0},{"$f":"H31+H36+H37","v":0},{"$f":"I31+I36+I37","v":0},null,{"$f":"K31+K36+K37","v":0},null,{"$f":"M31+M36+M37","v":0},null,null,"brrt_UnquotedInvestments",{"$f":"XBRLMap(K38,$P38,$Q$7,$Q$8,CONFIGURATION!$B$10,\"BMA\",CONFIGURATION!$B$1,\"bscr\",CONFIGURATION!$B$12)","v":"Mapped"},{"$f":"XBRLMap(M38,$P38,$R$7,$R$8,CONFIGURATION!$B$10,\"BMA\",CONFIGURATION!$B$1,\"bscr\",CONFIGURATION!$B$12)","v":"Mapped"},null,null,null,null,null,null,"bma_UnquotedInvestmentsTotalInvestments"]
[null,null,null,null,null,null,null,null,null,null,null,null,null,null,null,"",{"$f":"XBRLMap(K39,$P39,$Q$7,$Q$8,CONFIGURATION!$B$10,\"BMA\",CONFIGURATION!$B$1,\"bscr\",CONFIGURATION!$B$12)","v":"-"},{"$f":"XBRLMap(M39,$P39,$R$7,$R$8,CONFIGURATION!$B$10,\"BMA\",CONFIGURATION!$B$1,\"bscr\",CONFIGURATION!$B$12)","v":"-"},null,null,null,null,null,null,""]
[null,"4.","INVESTMENTS IN AND ADVANCES TO AFFILIATES (EQUITY METHOD):",null,null,null,null,null,null,null,null,null,null,null,null,null,{"$f":"XBRLMap(K40,$P40,$Q$7,$Q$8,CONFIGURATION!$B$10,\"BMA\",CONFIGURATION!$B$1,\"bscr\",CONFIGURATION!$B$12)","v":"-"},{"$f":"XBRLMap(M40,$P40,$R$7,$R$8,CONFIGURATION!$B$10,\"BMA\",CONFIGURATION!$B$1,\"bscr\",CONFIGURATION!$B$12)","v":"-"},null,null,null,null,null,null,"bma_InvestmentsInAndAdvancesToAffiliatesTotalInvestmentsInAndAdvancesToAffiliates"]
[null,"(a)","Unregulated entities that conduct ancillary services",null,null,{"$f":"Import!E221","v":0},{"$f":"Import!G221","v":0},{"$f":"Import!E114","v":0},{"$f":"Import!G114","v":0},null,{"$f":"Import!I114","v":0},null,{"$f":"Import!K114","v":0},null,null,"brrt_UnregulatedEntitiesThatConductAncillaryServices",{"$f":"XBRLMap(K41,$P41,$Q$7,$Q$8,CONFIGURATION!$B$10,\"BMA\",CONFIGURATION!$B$1,\"bscr\",CONFIGURATION!$B$12)","v":"Mapped"},{"$f":"XBRLMap(M41,$P41,$R$7,$R$8,CONFIGURATION!$B$10,\"BMA\",CONFIGURATION!$B$1,\"bscr\",CONFIGURATION!$B$12)","v":"Mapped"}]
[null,"(b)","Unregulated non-financial operating entities",null,null,{"$f":"Import!E222","v":0},{"$f":"Import!G222","v":0},{"$f":"Import!E115","v":0},{"$f":"Import!G115","v":0},null,{"$f":"Import!I115","v":0},null,{"$f":"Import!K115","v":0},null,null,"brrt_UnregulatedNonFinancialOperatingEntities",{"$f":"XBRLMap(K42,$P42,$Q$7,$Q$8,CONFIGURATION!$B$10,\"BMA\",CONFIGURATION!$B$1,\"bscr\",CONFIGURATION!$B$12)","v":"Mapped"},{"$f":"XBRLMap(M42,$P42,$R$7,$R$8,CONFIGURATION!$B$10,\"BMA\",CONFIGURATION!$B$1,\"bscr\",CONFIGURATION!$B$12)","v":"Mapped"}]
[null,"(c)","Unregulated financial operating entities",null,null,{"$f":"Import!E223","v":0},{"$f":"Import!G223","v":0},{"$f":"Import!E116","v":0},{"$f":"Import!G116","v":0},null,{"$f":"Import!I116","v":0},null,{"$f":"Import!K116","v":0},null,null,"brrt_UnregulatedFinancialOperatingEntities",{"$f":"XBRLMap(K43,$P43,$Q$7,$Q$8,CONFIGURATION!$B$10,\"BMA\",CONFIGURATION!$B$1,\"bscr\",CONFIGURATION!$B$12)","v":"Mapped"},{"$f":"XBRLMap(M43,$P43,$R$7,$R$8,CONFIGURATION!$B$10,\"BMA\",CONFIGURATION!$B$1,\"bscr\",CONFIGURATION!$B$12)","v":"Mapped"}]
[null,"(d)","Regulated non-insurance financial operating entities",null,null,{"$f":"Import!E224","v":0},{"$f":"Import!G224","v":0},{"$f":"Import!E117","v":0},{"$f":"Import!G117","v":0},null,{"$f":"Import!I117","v":0},null,{"$f":"Import!K117","v":0},null,null,"brrt_RegulatedNonInsuranceFinancialOperatingEntities",{"$f":"XBRLMap(K44,$P44,$Q$7,$Q$8,CONFIGURATION!$B$10,\"BMA\",CONFIGURATION!$B$1,\"bscr\",CONFIGURATION!$B$12)","v":"Mapped"},{"$f":"XBRLMap(M44,$P44,$R$7,$R$8,CONFIGURATION!$B$10,\"BMA\",CONFIGURATION!$B$1,\"bscr\",CONFIGURATION!$B$12)","v":"Mapped"}]
[null,"(e)","Regulated insurance financial operating entities",null,null,{"$f":"Import!E225","v":0},{"$f":"Import!G225","v":0},{"$f":"Import!E118","v":0},{"$f":"Import!G118","v":0},null,{"$f":"Import!I118","v":0},null,{"$f":"Import!K118","v":0},null,null,"brrt_RegulatedInsuranceFinancialOperatingEntities",{"$f":"XBRLMap(K45,$P45,$Q$7,$Q$8,CONFIGURATION!$B$10,\"BMA\",CONFIGURATION!$B$1,\"bscr\",CONFIGURATION!$B$12)","v":"Mapped"},{"$f":"XBRLMap(M45,$P45,$R$7,$R$8,CONFIGURATION!$B$10,\"BMA\",CONFIGURATION!$B$1,\"bscr\",CONFIGURATION!$B$12)","v":"Mapped"}]
[null,"(f)","Total investments in affiliates (equity method)",null,null,{"$f":"SUM(F41:F45)","v":0},{"$f":"SUM(G41:G45)","v":0},{"$f":"SUM(H41:H45)","v":0},{"$f":"SUM(I41:I45)","v":0},null,{"$f":"SUM(K41:K45)","v":0},null,{"$f":"SUM(M41:M45)","v":0},null,null,"brrt_InvestmentInAffiliates",{"$f":"XBRLMap(K46,$P46,$Q$7,$Q$8,CONFIGURATION!$B$10,\"BMA\",CONFIGURATION!$B$1,\"bscr\",CONFIGURATION!$B$12)","v":"Mapped"},{"$f":"XBRLMap(M46,$P46,$R$7,$R$8,CONFIGURATION!$B$10,\"BMA\",CONFIGURATION!$B$1,\"bscr\",CONFIGURATION!$B$12)","v":"Mapped"}]
[null,"(g)","Advances to affiliates",null,null,{"$f":"Import!E226","v":0},{"$f":"Import!G226","v":0},{"$f":"Import!E119","v":0},{"$f":"Import!G119","v":0},null,{"$f":"Import!I119","v":0},null,{"$f":"Import!K119","v":0},null,null,"brrt_AdvancesToAffiliates",{"$f":"XBRLMap(K47,$P47,$Q$7,$Q$8,CONFIGURATION!$B$10,\"BMA\",CONFIGURATION!$B$1,\"bscr\",CONFIGURATION!$B$12)","v":"Mapped"},{"$f":"XBRLMap(M47,$P47,$R$7,$R$8,CONFIGURATION!$B$10,\"BMA\",CONFIGURATION!$B$1,\"bscr\",CONFIGURATION!$B$12)","v":"Mapped"}]
[null,"(h)","Total investments in and advances to affiliates (equity method)",null,null,{"$f":"F46+F47","v":0},{"$f":"G46+G47","v":0},{"$f":"H46+H47","v":0},{"$f":"I46+I47","v":0},null,{"$f":"K46+K47","v":0},null,{"$f":"M46+M47","v":0},null,null,"brrt_InvestmentInAndAdvancesToAffiliates",{"$f":"XBRLMap(K48,$P48,$Q$7,$Q$8,CONFIGURATION!$B$10,\"BMA\",CONFIGURATION!$B$1,\"bscr\",CONFIGURATION!$B$12)","v":"Mapped"},{"$f":"XBRLMap(M48,$P48,$R$7,$R$8,CONFIGURATION!$B$10,\"BMA\",CONFIGURATION!$B$1,\"bscr\",CONFIGURATION!$B$12)","v":"Mapped"}]
[null,null,null,null,null,null,null,null,null,null,null,null,null,null,null,"",{"$f":"XBRLMap(K49,$P49,$Q$7,$Q$8,CONFIGURATION!$B$10,\"BMA\",CONFIGURATION!$B$1,\"bscr\",CONFIGURATION!$B$12)","v":"-"},{"$f":"XBRLMap(M49,$P49,$R$7,$R$8,CONFIGURATION!$B$10,\"BMA\",CONFIGURATION!$B$1,\"bscr\",CONFIGURATION!$B$12)","v":"-"},null,null,null,null,null,null,""]
[null,"5.","INVESTMENTS IN MORTGAGE LOANS ON REAL ESTATE:",null,null,null,null,null,null,null,null,null,null,null,null,null,{"$f":"XBRLMap(K50,$P50,$Q$7,$Q$8,CONFIGURATION!$B$10,\"BMA\",CONFIGURATION!$B$1,\"bscr\",CONFIGURATION!$B$12)","v":"-"},null,null,null,null,null,null,null,"bma_InvestmentsInMortgageLoansOnRealEstateTotalInvestmentsInMortgageLoansOnRealEstate"]
[null,"(a)","First Liens",null,null,{"$f":"Import!E227","v":0},{"$f":"Import!G227","v":0},{"$f":"Import!E120","v":0},{"$f":"Import!G120","v":0},null,{"$f":"Import!I120","v":0},null,{"$f":"Import!K120","v":0},null,null,"brrt_InvestmentsInMortgageLoansOnRealEstateFirstLiens",{"$f":"XBRLMap(K51,$P51,$Q$7,$Q$8,CONFIGURATION!$B$10,\"BMA\",CONFIGURATION!$B$1,\"bscr\",CONFIGURATION!$B$12)","v":"Mapped"},{"$f":"XBRLMap(M51,$P51,$R$7,$R$8,CONFIGURATION!$B$10,\"BMA\",CONFIGURATION!$B$1,\"bscr\",CONFIGURATION!$B$12)","v":"Mapped"}]
[null,"(b) ","Other than First Liens",null,null,{"$f":"Import!E228","v":0},{"$f":"Import!G228","v":0},{"$f":"Import!E121","v":0},{"$f":"Import!G121","v":0},null,{"$f":"Import!I121","v":0},null,{"$f":"Import!K121","v":0},null,null,"brrt_InvestmentsInMortgageLoansOnRealEstateOtherThanFirstLiens",{"$f":"XBRLMap(K52,$P52,$Q$7,$Q$8,CONFIGURATION!$B$10,\"BMA\",CONFIGURATION!$B$1,\"bscr\",CONFIGURATION!$B$12)","v":"Mapped"},{"$f":"XBRLMap(M52,$P52,$R$7,$R$8,CONFIGURATION!$B$10,\"BMA\",CONFIGURATION!$B$1,\"bscr\",CONFIGURATION!$B$12)","v":"Mapped"}]
[null,"(c) ","Total Investments in Mortgage Loans on Real Estate",null,null,{"$f":"F51+F52","v":0},{"$f":"G51+G52","v":0},{"$f":"H51+H52","v":0},{"$f":"I51+I52","v":0},null,{"$f":"K51+K52","v":0},null,{"$f":"M51+M52","v":0},null,null,"brrt_InvestmentsInMortgageLoansOnRealEstate",{"$f":"XBRLMap(K53,$P53,$Q$7,$Q$8,CONFIGURATION!$B$10,\"BMA\",CONFIGURATION!$B$1,\"bscr\",CONFIGURATION!$B$12)","v":"Mapped"},{"$f":"XBRLMap(M53,$P53,$R$7,$R$8,CONFIGURATION!$B$10,\"BMA\",CONFIGURATION!$B$1,\"bscr\",CONFIGURATION!$B$12)","v":"Mapped"}]
[null,null,null,null,null,null,null,null,null,null,null,null,null,null,null,"",{"$f":"XBRLMap(K54,$P54,$Q$7,$Q$8,CONFIGURATION!$B$10,\"BMA\",CONFIGURATION!$B$1,\"bscr\",CONFIGURATION!$B$12)","v":"-"},{"$f":"XBRLMap(M54,$P54,$R$7,$R$8,CONFIGURATION!$B$10,\"BMA\",CONFIGURATION!$B$1,\"bscr\",CONFIGURATION!$B$12)","v":"-"},null,null,null,null,null,null,""]
[null,"6.","POLICY LOANS",null,null,null,null,{"$f":"Import!E122","v":0},{"$f":"Import!G122","v":0},null,{"$f":"Import!I122","v":0},null,{"$f":"Import!K122","v":0},null,null,"brrt_PolicyLoans",{"$f":"XBRLMap(K55,$P55,$Q$7,$Q$8,CONFIGURATION!$B$10,\"BMA\",CONFIGURATION!$B$1,\"bscr\",CONFIGURATION!$B$12)","v":"Mapped"},{"$f":"XBRLMap(M55,$P55,$R$7,$R$8,CONFIGURATION!$B$10,\"BMA\",CONFIGURATION!$B$1,\"bscr\",CONFIGURATION!$B$12)","v":"Mapped"},null,null,null,null,null,null,"bma_PolicyLoans"]
[null,null,null,null,null,null,null,null,null,null,null,null,null,null,null,null,{"$f":"XBRLMap(K56,$P56,$Q$7,$Q$8,CONFIGURATION!$B$10,\"BMA\",CONFIGURATION!$B$1,\"bscr\",CONFIGURATION!$B$12)","v":"-"},{"$f":"XBRLMap(M56,$P56,$R$7,$R$8,CONFIGURATION!$B$10,\"BMA\",CONFIGURATION!$B$1,\"bscr\",CONFIGURATION!$B$12)","v":"-"}]
[null,"7.","REAL ESTATE:",null,null,null,null,null,null,null,null,null,null,null,null,null,{"$f":"XBRLMap(K57,$P57,$Q$7,$Q$8,CONFIGURATION!$B$10,\"BMA\",CONFIGURATION!$B$1,\"bscr\",CONFIGURATION!$B$12)","v":"-"},{"$f":"XBRLMap(M57,$P57,$R$7,$R$8,CONFIGURATION!$B$10,\"BMA\",CONFIGURATION!$B$1,\"bscr\",CONFIGURATION!$B$12)","v":"-"}]
[null,"(a)","Occupied by the company (less encumbrances)",null,null,{"$f":"Import!E229","v":0},{"$f":"Import!G229","v":0},{"$f":"Import!E123","v":0},{"$f":"Import!G123","v":0},null,{"$f":"Import!I123","v":0},null,{"$f":"Import!K123","v":0},null,null,"brrt_RealEstateOccupiedByTheCompanyLessEncumbrances",{"$f":"XBRLMap(K58,$P58,$Q$7,$Q$8,CONFIGURATION!$B$10,\"BMA\",CONFIGURATION!$B$1,\"bscr\",CONFIGURATION!$B$12)","v":"Mapped"},{"$f":"XBRLMap(M58,$P58,$R$7,$R$8,CONFIGURATION!$B$10,\"BMA\",CONFIGURATION!$B$1,\"bscr\",CONFIGURATION!$B$12)","v":"Mapped"},null,null,null,null,null,null,"bma_RealEstateOccupiedByTheCompanyLessEncumbrances"]
[null,"(b)","Other properties (less encumbrances)",null,null,{"$f":"Import!E230","v":0},{"$f":"Import!G230","v":0},{"$f":"Import!E124","v":0},{"$f":"Import!G124","v":0},null,{"$f":"Import!I124","v":0},null,{"$f":"Import!K124","v":0},null,null,"brrt_OtherRealEstatePropertiesLessEncumbrances",{"$f":"XBRLMap(K59,$P59,$Q$7,$Q$8,CONFIGURATION!$B$10,\"BMA\",CONFIGURATION!$B$1,\"bscr\",CONFIGURATION!$B$12)","v":"Mapped"},{"$f":"XBRLMap(M59,$P59,$R$7,$R$8,CONFIGURATION!$B$10,\"BMA\",CONFIGURATION!$B$1,\"bscr\",CONFIGURATION!$B$12)","v":"Mapped"},null,null,null,null,null,null,"bma_RealEstateOtherPropertiesLessEncumbrances"]
[null,"(c) ","Total real estate",null,null,{"$f":"SUM(F58:F59)","v":0},{"$f":"SUM(G58:G59)","v":0},{"$f":"SUM(H58:H59)","v":0},{"$f":"SUM(I58:I59)","v":0},null,{"$f":"SUM(K58:K59)","v":0},null,{"$f":"SUM(M58:M59)","v":0},null,null,"brrt_RealEstate",{"$f":"XBRLMap(K60,$P60,$Q$7,$Q$8,CONFIGURATION!$B$10,\"BMA\",CONFIGURATION!$B$1,\"bscr\",CONFIGURATION!$B$12)","v":"Mapped"},{"$f":"XBRLMap(M60,$P60,$R$7,$R$8,CONFIGURATION!$B$10,\"BMA\",CONFIGURATION!$B$1,\"bscr\",CONFIGURATION!$B$12)","v":"Mapped"},null,null,null,null,null,null,"bma_TotalRealEstate"]
[null,null,null,null,null,null,null,null,null,null,null,null,null,null,null,"",{"$f":"XBRLMap(K61,$P61,$Q$7,$Q$8,CONFIGURATION!$B$10,\"BMA\",CONFIGURATION!$B$1,\"bscr\",CONFIGURATION!$B$12)","v":"-"},{"$f":"XBRLMap(M61,$P61,$R$7,$R$8,CONFIGURATION!$B$10,\"BMA\",CONFIGURATION!$B$1,\"bscr\",CONFIGURATION!$B$12)","v":"-"},null,null,null,null,null,null,""]
[null,"8.","COLLATERAL LOANS",null,null,{"$f":"Import!E231","v":0},{"$f":"Import!G231","v":0},{"$f":"Import!E125","v":0},{"$f":"Import!G125","v":0},null,{"$f":"Import!I125","v":0},null,{"$f":"Import!K125","v":0},null,null,"brrt_CollateralLoans",{"$f":"XBRLMap(K62,$P62,$Q$7,$Q$8,CONFIGURATION!$B$10,\"BMA\",CONFIGURATION!$B$1,\"bscr\",CONFIGURATION!$B$12)","v":"Mapped"},{"$f":"XBRLMap(M62,$P62,$R$7,$R$8,CONFIGURATION!$B$10,\"BMA\",CONFIGURATION!$B$1,\"bscr\",CONFIGURATION!$B$12)","v":"Mapped"},null,null,null,null,null,null,"bma_CollateralLoans"]
[null,null,null,null,null,null,null,null,null,null,null,null,null,null,null,"",{"$f":"XBRLMap(K63,$P63,$Q$7,$Q$8,CONFIGURATION!$B$10,\"BMA\",CONFIGURATION!$B$1,\"bscr\",CONFIGURATION!$B$12)","v":"-"},{"$f":"XBRLMap(M63,$P63,$R$7,$R$8,CONFIGURATION!$B$10,\"BMA\",CONFIGURATION!$B$1,\"bscr\",CONFIGURATION!$B$12)","v":"-"},null,null,null,null,null,null,""]
[null,"9.","INVESTMENT INCOME DUE AND ACCRUED",null,null,{"$f":"Import!E232","v":0},{"$f":"Import!G232","v":0},{"$f":"Import!E126","v":0},{"$f":"Import!G126","v":0},null,{"$f":"Import!I126","v":0},null,{"$f":"Import!K126","v":0},null,null,"brrt_InvestmentIncomeDueAndAccrued",{"$f":"XBRLMap(K64,$P64,$Q$7,$Q$8,CONFIGURATION!$B$10,\"BMA\",CONFIGURATION!$B$1,\"bscr\",CONFIGURATION!$B$12)","v":"Mapped"},{"$f":"XBRLMap(M64,$P64,$R$7,$R$8,CONFIGURATION!$B$10,\"BMA\",CONFIGURATION!$B$1,\"bscr\",CONFIGURATION!$B$12)","v":"Mapped"},null,null,null,null,null,null,"bma_InvestmentIncomeDueAndAccrued"]
[null,null,null,null,null,null,null,null,null,null,null,null,null,null,null,"",{"$f":"XBRLMap(K65,$P65,$Q$7,$Q$8,CONFIGURATION!$B$10,\"BMA\",CONFIGURATION!$B$1,\"bscr\",CONFIGURATION!$B$12)","v":"-"},{"$f":"XBRLMap(M65,$P65,$R$7,$R$8,CONFIGURATION!$B$10,\"BMA\",CONFIGURATION!$B$1,\"bscr\",CONFIGURATION!$B$12)","v":"-"},null,null,null,null,null,null,""]
[null,"10.","ACCOUNTS AND PREMIUMS RECEIVABLE",null,null,null,null,null,null,null,null,null,null,null,null,"",{"$f":"XBRLMap(K66,$P66,$Q$7,$Q$8,CONFIGURATION!$B$10,\"BMA\",CONFIGURATION!$B$1,\"bscr\",CONFIGURATION!$B$12)","v":"-"},{"$f":"XBRLMap(M66,$P66,$R$7,$R$8,CONFIGURATION!$B$10,\"BMA\",CONFIGURATION!$B$1,\"bscr\",CONFIGURATION!$B$12)","v":"-"}]
[null,"(a)","In course of collection",null,null,{"$f":"Import!E233","v":0},{"$f":"Import!G233","v":0},{"$f":"Import!E127","v":0},{"$f":"Import!G127","v":0},null,{"$f":"Import!I127","v":0},null,{"$f":"Import!K127","v":0},null,null,"brrt_AccountsAndPremiumsReceivableInCourseOfCollection",{"$f":"XBRLMap(K67,$P67,$Q$7,$Q$8,CONFIGURATION!$B$10,\"BMA\",CONFIGURATION!$B$1,\"bscr\",CONFIGURATION!$B$12)","v":"Mapped"},{"$f":"XBRLMap(M67,$P67,$R$7,$R$8,CONFIGURATION!$B$10,\"BMA\",CONFIGURATION!$B$1,\"bscr\",CONFIGURATION!$B$12)","v":"Mapped"},null,null,null,null,null,null,"bma_AccountsAndPremiumsReceivableInCourseOfCollection"]
[null,"(b)","Deferred - not yet due",null,null,{"$f":"Import!E234","v":0},{"$f":"Import!G234","v":0},{"$f":"Import!E128","v":0},{"$f":"Import!G128","v":0},null,{"$f":"Import!I128","v":0},null,{"$f":"Import!K128","v":0}]
[null,"(c) ","Receivables from retrocessional contracts",null,null,{"$f":"Import!E235","v":0},{"$f":"Import!G235","v":0},{"$f":"Import!E129","v":0},{"$f":"Import!G129","v":0},null,{"$f":"Import!I129","v":0},null,{"$f":"Import!K129","v":0},null,null,"brrt_AccountsAndPremiumsReceivableReceivablesFromRetrocessionalContracts",{"$f":"XBRLMap(K69,$P69,$Q$7,$Q$8,CONFIGURATION!$B$10,\"BMA\",CONFIGURATION!$B$1,\"bscr\",CONFIGURATION!$B$12)","v":"Mapped"},{"$f":"XBRLMap(M69,$P69,$R$7,$R$8,CONFIGURATION!$B$10,\"BMA\",CONFIGURATION!$B$1,\"bscr\",CONFIGURATION!$B$12)","v":"Mapped"},null,null,null,null,null,null,"bma_AccountsAndPremiumsReceivableReceivablesFromRetrocessionalContracts"]
[null,"(d) ","Total accounts and premiums receivable",null,null,{"$f":"SUM(F67:F69)","v":0},{"$f":"SUM(G67:G69)","v":0},{"$f":"SUM(H67:H69)","v":0},{"$f":"SUM(I67:I69)","v":0},null,{"$f":"SUM(K67:K69)","v":0},null,{"$f":"SUM(M67:M69)","v":0},null,null,"brrt_AccountsAndPremiumsReceivable",{"$f":"XBRLMap(K70,$P70,$Q$7,$Q$8,CONFIGURATION!$B$10,\"BMA\",CONFIGURATION!$B$1,\"bscr\",CONFIGURATION!$B$12)","v":"Mapped"},{"$f":"XBRLMap(M70,$P70,$R$7,$R$8,CONFIGURATION!$B$10,\"BMA\",CONFIGURATION!$B$1,\"bscr\",CONFIGURATION!$B$12)","v":"Mapped"},null,null,null,null,null,null,"bma_TotalAccountsAndPremiumsReceivable"]
[null,null,null,null,null,null,null,null,null,null,null,null,null,null,null,"",{"$f":"XBRLMap(K71,$P71,$Q$7,$Q$8,CONFIGURATION!$B$10,\"BMA\",CONFIGURATION!$B$1,\"bscr\",CONFIGURATION!$B$12)","v":"-"},{"$f":"XBRLMap(M71,$P71,$R$7,$R$8,CONFIGURATION!$B$10,\"BMA\",CONFIGURATION!$B$1,\"bscr\",CONFIGURATION!$B$12)","v":"-"},null,null,null,null,null,null,""]
[null,"11.","REINSURANCE BALANCES RECEIVABLE",null,null,null,null,null,null,null,null,null,null,null,null,"",{"$f":"XBRLMap(K72,$P72,$Q$7,$Q$8,CONFIGURATION!$B$10,\"BMA\",CONFIGURATION!$B$1,\"bscr\",CONFIGURATION!$B$12)","v":"-"},{"$f":"XBRLMap(M72,$P72,$R$7,$R$8,CONFIGURATION!$B$10,\"BMA\",CONFIGURATION!$B$1,\"bscr\",CONFIGURATION!$B$12)","v":"-"}]
[null,"(a)","Foreign affiliates",null,null,{"$f":"Import!E236","v":0},{"$f":"Import!G236","v":0},{"$f":"Import!E130","v":0},{"$f":"Import!G130","v":0},null,{"$f":"Import!I130","v":0},null,{"$f":"Import!K130","v":0},null,null,"brrt_ReinsuranceBalancesReceivableForeignAffiliates",{"$f":"XBRLMap(K73,$P73,$Q$7,$Q$8,CONFIGURATION!$B$10,\"BMA\",CONFIGURATION!$B$1,\"bscr\",CONFIGURATION!$B$12)","v":"Mapped"},{"$f":"XBRLMap(M73,$P73,$R$7,$R$8,CONFIGURATION!$B$10,\"BMA\",CONFIGURATION!$B$1,\"bscr\",CONFIGURATION!$B$12)","v":"Mapped"},null,null,null,null,null,null,"bma_ReinsuranceBalancesReceivableForeignAffiliates"]
[null,"(b)","Domestic affiliates",null,null,{"$f":"Import!E237","v":0},{"$f":"Import!G237","v":0},{"$f":"Import!E131","v":0},{"$f":"Import!G131","v":0},null,{"$f":"Import!I131","v":0},null,{"$f":"Import!K131","v":0},null,null,"brrt_ReinsuranceBalancesReceivableDomesticAffiliates",{"$f":"XBRLMap(K74,$P74,$Q$7,$Q$8,CONFIGURATION!$B$10,\"BMA\",CONFIGURATION!$B$1,\"bscr\",CONFIGURATION!$B$12)","v":"Mapped"},{"$f":"XBRLMap(M74,$P74,$R$7,$R$8,CONFIGURATION!$B$10,\"BMA\",CONFIGURATION!$B$1,\"bscr\",CONFIGURATION!$B$12)","v":"Mapped"},null,null,null,null,null,null,"bma_ReinsuranceBalancesReceivableDomesticAffiliates"]
[null,"(c) ","Pools & associations",null,null,{"$f":"Import!E238","v":0},{"$f":"Import!G238","v":0},{"$f":"Import!E132","v":0},{"$f":"Import!G132","v":0},null,{"$f":"Import!I132","v":0},null,{"$f":"Import!K132","v":0},null,null,"brrt_ReinsuranceBalancesReceivablePoolsAndAssociations",{"$f":"XBRLMap(K75,$P75,$Q$7,$Q$8,CONFIGURATION!$B$10,\"BMA\",CONFIGURATION!$B$1,\"bscr\",CONFIGURATION!$B$12)","v":"Mapped"},{"$f":"XBRLMap(M75,$P75,$R$7,$R$8,CONFIGURATION!$B$10,\"BMA\",CONFIGURATION!$B$1,\"bscr\",CONFIGURATION!$B$12)","v":"Mapped"},null,null,null,null,null,null,"bma_ReinsuranceBalancesReceivablePoolsAndAssociations"]
[null,"(d) ","All other insurers",null,null,{"$f":"Import!E239","v":0},{"$f":"Import!G239","v":0},{"$f":"Import!E133","v":0},{"$f":"Import!G133","v":0},null,{"$f":"Import!I133","v":0},null,{"$f":"Import!K133","v":0},null,null,"brrt_ReinsuranceBalancesReceivableAllOtherInsurers",{"$f":"XBRLMap(K76,$P76,$Q$7,$Q$8,CONFIGURATION!$B$10,\"BMA\",CONFIGURATION!$B$1,\"bscr\",CONFIGURATION!$B$12)","v":"Mapped"},{"$f":"XBRLMap(M76,$P76,$R$7,$R$8,CONFIGURATION!$B$10,\"BMA\",CONFIGURATION!$B$1,\"bscr\",CONFIGURATION!$B$12)","v":"Mapped"},null,null,null,null,null,null,"bma_ReinsuranceBalancesReceivableAllOtherInsurers"]
[null,"(e)","Total reinsurance balances receivable",null,null,{"$f":"SUM(F73:F76)","v":0},{"$f":"SUM(G73:G76)","v":0},{"$f":"SUM(H73:H76)","v":0},{"$f":"SUM(I73:I76)","v":0},null,{"$f":"SUM(K73:K76)","v":0},null,{"$f":"SUM(M73:M76)","v":0},null,null,"brrt_ReinsuranceBalancesReceivable",{"$f":"XBRLMap(K77,$P77,$Q$7,$Q$8,CONFIGURATION!$B$10,\"BMA\",CONFIGURATION!$B$1,\"bscr\",CONFIGURATION!$B$12)","v":"Mapped"},{"$f":"XBRLMap(M77,$P77,$R$7,$R$8,CONFIGURATION!$B$10,\"BMA\",CONFIGURATION!$B$1,\"bscr\",CONFIGURATION!$B$12)","v":"Mapped"},null,null,null,null,null,null,"bma_TotalReinsuranceBalancesReceivable"]
[null,null,null,null,null,null,null,null,null,null,null,null,null,null,null,"",{"$f":"XBRLMap(K78,$P78,$Q$7,$Q$8,CONFIGURATION!$B$10,\"BMA\",CONFIGURATION!$B$1,\"bscr\",CONFIGURATION!$B$12)","v":"-"},{"$f":"XBRLMap(M78,$P78,$R$7,$R$8,CONFIGURATION!$B$10,\"BMA\",CONFIGURATION!$B$1,\"bscr\",CONFIGURATION!$B$12)","v":"-"},null,null,null,null,null,null,""]
[null,"12.","FUNDS HELD BY CEDING REINSURERS",null,null,{"$f":"Import!E240","v":0},{"$f":"Import!G240","v":0},{"$f":"Import!E136","v":0},{"$f":"Import!G136","v":0},null,{"$f":"Import!I136","v":0},null,{"$f":"Import!K136","v":0},null,null,"brrt_FundsHeldByCedingReinsurers",{"$f":"XBRLMap(K79,$P79,$Q$7,$Q$8,CONFIGURATION!$B$10,\"BMA\",CONFIGURATION!$B$1,\"bscr\",CONFIGURATION!$B$12)","v":"Mapped"},{"$f":"XBRLMap(M79,$P79,$R$7,$R$8,CONFIGURATION!$B$10,\"BMA\",CONFIGURATION!$B$1,\"bscr\",CONFIGURATION!$B$12)","v":"Mapped"}]
[null,null,null,null,null,null,null,null,null,null,null,null,null,null,null,"",{"$f":"XBRLMap(K80,$P80,$Q$7,$Q$8,CONFIGURATION!$B$10,\"BMA\",CONFIGURATION!$B$1,\"bscr\",CONFIGURATION!$B$12)","v":"-"},{"$f":"XBRLMap(M80,$P80,$R$7,$R$8,CONFIGURATION!$B$10,\"BMA\",CONFIGURATION!$B$1,\"bscr\",CONFIGURATION!$B$12)","v":"-"},null,null,null,null,null,null,""]
[null,"13.","SUNDRY ASSETS:",null,null,null,null,null,null,null,null,null,null,null,null,"",{"$f":"XBRLMap(K81,$P81,$Q$7,$Q$8,CONFIGURATION!$B$10,\"BMA\",CONFIGURATION!$B$1,\"bscr\",CONFIGURATION!$B$12)","v":"-"},{"$f":"XBRLMap(M81,$P81,$R$7,$R$8,CONFIGURATION!$B$10,\"BMA\",CONFIGURATION!$B$1,\"bscr\",CONFIGURATION!$B$12)","v":"-"}]
[null,"(a)","Derivative instruments",null,null,{"$f":"Import!E241","v":0},{"$f":"Import!G241","v":0},{"$f":"Import!E137","v":0},{"$f":"Import!G137","v":0},null,{"$f":"Import!I137","v":0},null,{"$f":"Import!K137","v":0},null,null,"brrt_SundryAssetsDerivativeInstruments",{"$f":"XBRLMap(K82,$P82,$Q$7,$Q$8,CONFIGURATION!$B$10,\"BMA\",CONFIGURATION!$B$1,\"bscr\",CONFIGURATION!$B$12)","v":"Mapped"},{"$f":"XBRLMap(M82,$P82,$R$7,$R$8,CONFIGURATION!$B$10,\"BMA\",CONFIGURATION!$B$1,\"bscr\",CONFIGURATION!$B$12)","v":"Mapped"},null,null,null,null,null,null,"bma_SundryAssetsDerivativeInstruments"]
[null,"(b)","Segregated accounts companies - long-term business - variable annuities",null,null,null,null,{"$f":"Import!E138","v":0},{"$f":"Import!G138","v":0},null,{"$f":"Import!I138","v":0},null,{"$f":"Import!K138","v":0},null,null,"brrt_SundryAssetsSegregatedAccountsCompaniesVariableAnnuities",{"$f":"XBRLMap(K83,$P83,$Q$7,$Q$8,CONFIGURATION!$B$10,\"BMA\",CONFIGURATION!$B$1,\"bscr\",CONFIGURATION!$B$12)","v":"Mapped"},{"$f":"XBRLMap(M83,$P83,$R$7,$R$8,CONFIGURATION!$B$10,\"BMA\",CONFIGURATION!$B$1,\"bscr\",CONFIGURATION!$B$12)","v":"Mapped"},null,null,null,null,null,null,"bma_SundryAssetsSegregatedAccountsCompanies"]
[null,"(c) ","Segregated accounts companies - long-term business - others",null,null,null,null,{"$f":"Import!E139","v":0},{"$f":"Import!G139","v":0},null,{"$f":"Import!I139","v":0},null,{"$f":"Import!K139","v":0},null,null,"brrt_SundryAssetsSegregatedAccountsCompaniesOthers",{"$f":"XBRLMap(K84,$P84,$Q$7,$Q$8,CONFIGURATION!$B$10,\"BMA\",CONFIGURATION!$B$1,\"bscr\",CONFIGURATION!$B$12)","v":"Mapped"},{"$f":"XBRLMap(M84,$P84,$R$7,$R$8,CONFIGURATION!$B$10,\"BMA\",CONFIGURATION!$B$1,\"bscr\",CONFIGURATION!$B$12)","v":"Mapped"}]
[null,"(d)","Segregated accounts companies - general business",null,null,{"$f":"Import!E242","v":0},{"$f":"Import!G242","v":0},null,null,null,{"$f":"Import!I140","v":0},null,{"$f":"Import!K140","v":0}]
[null,"(e) ","Deposit assets",null,null,{"$f":"Import!E243","v":0},{"$f":"Import!G243","v":0},{"$f":"Import!E141","v":0},{"$f":"Import!G141","v":0},null,{"$f":"Import!I141","v":0},null,{"$f":"Import!K141","v":0},null,null,"brrt_SundryAssetsDepositAssets",{"$f":"XBRLMap(K86,$P86,$Q$7,$Q$8,CONFIGURATION!$B$10,\"BMA\",CONFIGURATION!$B$1,\"bscr\",CONFIGURATION!$B$12)","v":"Mapped"},{"$f":"XBRLMap(M86,$P86,$R$7,$R$8,CONFIGURATION!$B$10,\"BMA\",CONFIGURATION!$B$1,\"bscr\",CONFIGURATION!$B$12)","v":"Mapped"},null,null,null,null,null,null,"bma_SundryAssetsDepositAssets"]
[null,"(f) ","Deferred acquisition costs",null,null,{"$f":"Import!E244","v":0},{"$f":"Import!G244","v":0},{"$f":"Import!E142","v":0},{"$f":"Import!G142","v":0},null,{"$f":"Import!I142","v":0},null,{"$f":"Import!K142","v":0},null,null,"brrt_SundryAssetsOther",{"$f":"XBRLMap(K87,$P87,$Q$7,$Q$8,CONFIGURATION!$B$10,\"BMA\",CONFIGURATION!$B$1,\"bscr\",CONFIGURATION!$B$12)","v":"Mapped"},{"$f":"XBRLMap(M87,$P87,$R$7,$R$8,CONFIGURATION!$B$10,\"BMA\",CONFIGURATION!$B$1,\"bscr\",CONFIGURATION!$B$12)","v":"Mapped"},null,null,null,null,null,null,"bma_SundryAssetsOther"]
[null,"(g) ","Net receivables for investments sold",null,null,{"$f":"Import!E245","v":0},{"$f":"Import!G245","v":0},{"$f":"Import!E143","v":0},{"$f":"Import!G143","v":0},null,{"$f":"Import!I143","v":0},null,{"$f":"Import!K143","v":0}]
[null,"(h) ","Other Sundry Assets (Specify)",null,null,{"$f":"Import!E246","v":0},{"$f":"Import!G246","v":0},{"$f":"Import!E147","v":0},{"$f":"Import!G147","v":0},null,{"$f":"Import!I147","v":0},null,{"$f":"Import!K147","v":0}]
[null,"(i) ","Other Sundry Assets (Specify)",null,null,{"$f":"Import!E247","v":0},{"$f":"Import!G247","v":0},{"$f":"Import!E148","v":0},{"$f":"Import!G148","v":0},null,{"$f":"Import!I148","v":0},null,{"$f":"Import!K148","v":0}]
[null,"(j)","Other Sundry Assets (Specify)",null,null,{"$f":"Import!E248","v":0},{"$f":"Import!G248","v":0},{"$f":"Import!E149","v":0},{"$f":"Import!G149","v":0},null,{"$f":"Import!I149","v":0},null,{"$f":"Import!K149","v":0}]
[null,"(k)","Total sundry assets",null,null,{"$f":"SUM(F82:F91)","v":0},{"$f":"SUM(G82:G91)","v":0},{"$f":"SUM(H82:H91)","v":0},{"$f":"SUM(I82:I91)","v":0},null,{"$f":"SUM(K82:K91)","v":0},null,{"$f":"SUM(M82:M91)","v":0},null,null,"brrt_SundryAssets",{"$f":"XBRLMap(K92,$P92,$Q$7,$Q$8,CONFIGURATION!$B$10,\"BMA\",CONFIGURATION!$B$1,\"bscr\",CONFIGURATION!$B$12)","v":"Mapped"},{"$f":"XBRLMap(M92,$P92,$R$7,$R$8,CONFIGURATION!$B$10,\"BMA\",CONFIGURATION!$B$1,\"bscr\",CONFIGURATION!$B$12)","v":"Mapped"},null,null,null,null,null,null,"bma_TotalSundryAssets"]
[null,null,null,null,null,null,null,null,null,null,null,null,null,null,null,"brrt_SundryAssetsOtherDescription",{"$f":"XBRLMap(C87,$P93,$Q$7,$Q$8,CONFIGURATION!$B$10,\"BMA\",CONFIGURATION!$B$1,\"bscr\")","v":"Mapped"},null,null,null,null,null,null,null,"bma_SundryAssetsOtherType"]
[null,"14.","LETTERS OF CREDIT, GUARANTEES AND OTHER INSTRUMENTS",null,null,null,null,null,null,null,null,null,null,null,null,"",{"$f":"XBRLMap(K94,$P94,$Q$7,$Q$8,CONFIGURATION!$B$10,\"BMA\",CONFIGURATION!$B$1,\"bscr\",CONFIGURATION!$B$12)","v":"-"},{"$f":"XBRLMap(M94,$P94,$R$7,$R$8,CONFIGURATION!$B$10,\"BMA\",CONFIGURATION!$B$1,\"bscr\",CONFIGURATION!$B$12)","v":"-"}]
[null,"(a)","Letters of credit ",null,null,{"$f":"Import!E249","v":0},{"$f":"Import!G249","v":0},{"$f":"Import!E150","v":0},{"$f":"Import!G150","v":0},null,{"$f":"Import!I150","v":0},null,{"$f":"Import!K150","v":0},null,null,"brrt_AssetsLettersOfCredit",{"$f":"XBRLMap(K95,$P95,$Q$7,$Q$8,CONFIGURATION!$B$10,\"BMA\",CONFIGURATION!$B$1,\"bscr\",CONFIGURATION!$B$12)","v":"Mapped"},{"$f":"XBRLMap(M95,$P95,$R$7,$R$8,CONFIGURATION!$B$10,\"BMA\",CONFIGURATION!$B$1,\"bscr\",CONFIGURATION!$B$12)","v":"Mapped"},null,null,null,null,null,null,"bma_AssetsLettersOfCredit"]
[null,"(b)","Guarantees",null,null,{"$f":"Import!E250","v":0},{"$f":"Import!G250","v":0},{"$f":"Import!E151","v":0},{"$f":"Import!G151","v":0},null,{"$f":"Import!I151","v":0},null,{"$f":"Import!K151","v":0},null,null,"brrt_AssetsGuarantees",{"$f":"XBRLMap(K96,$P96,$Q$7,$Q$8,CONFIGURATION!$B$10,\"BMA\",CONFIGURATION!$B$1,\"bscr\",CONFIGURATION!$B$12)","v":"Mapped"},{"$f":"XBRLMap(M96,$P96,$R$7,$R$8,CONFIGURATION!$B$10,\"BMA\",CONFIGURATION!$B$1,\"bscr\",CONFIGURATION!$B$12)","v":"Mapped"},null,null,null,null,null,null,"bma_AssetsGuarantees"]
[null,"(c) ","Other instruments",null,null,{"$f":"Import!E251","v":0},{"$f":"Import!G251","v":0},{"$f":"Import!E152","v":0},{"$f":"Import!G152","v":0},null,{"$f":"Import!I152","v":0},null,{"$f":"Import!K152","v":0}]
[null,"(d) ","Total letters of credit, guarantees and other instruments",null,null,{"$f":"SUM(F95:F97)","v":0},{"$f":"SUM(G95:G97)","v":0},{"$f":"SUM(H95:H97)","v":0},{"$f":"SUM(I95:I97)","v":0},null,{"$f":"SUM(K95:K97)","v":0},null,{"$f":"SUM(M95:M97)","v":0},null,null,"brrt_AssetsLettersOfCreditGuaranteesOtherInstruments",{"$f":"XBRLMap(K98,$P98,$Q$7,$Q$8,CONFIGURATION!$B$10,\"BMA\",CONFIGURATION!$B$1,\"bscr\",CONFIGURATION!$B$12)","v":"Mapped"},{"$f":"XBRLMap(M98,$P98,$R$7,$R$8,CONFIGURATION!$B$10,\"BMA\",CONFIGURATION!$B$1,\"bscr\",CONFIGURATION!$B$12)","v":"Mapped"},null,null,null,null,null,null,"bma_AssetsTotalLettersOfCreditGuaranteesAndOtherInstruments"]
[null,null,null,null,null,null,null,null,null,null,null,null,null,null,null,"",{"$f":"XBRLMap(K99,$P99,$Q$7,$Q$8,CONFIGURATION!$B$10,\"BMA\",CONFIGURATION!$B$1,\"bscr\",CONFIGURATION!$B$12)","v":"-"},{"$f":"XBRLMap(M99,$P99,$R$7,$R$8,CONFIGURATION!$B$10,\"BMA\",CONFIGURATION!$B$1,\"bscr\",CONFIGURATION!$B$12)","v":"-"},null,null,null,null,null,null,""]
[null,"15.","TOTAL",null,null,{"$f":"F12+F25+F38+F48+F53+F55+F60+F62+F64+F70+F77+F79+F92+F98","v":0},{"$f":"G12+G25+G38+G48+G53+G55+G60+G62+G64+G70+G77+G79+G92+G98","v":0},{"$f":"H12+H25+H38+H48+H53+H55+H60+H62+H64+H70+H77+H79+H92+H98","v":0},{"$f":"I12+I25+I38+I48+I53+I55+I60+I62+I64+I70+I77+I79+I92+I98","v":0},null,{"$f":"K12+K25+K38+K48+K53+K55+K60+K62+K64+K70+K77+K79+K92+K98","v":0},null,{"$f":"M12+M25+M38+M48+M53+M55+M60+M62+M64+M70+M77+M79+M92+M98","v":0},null,null,"brrt_Assets",{"$f":"XBRLMap(K100,$P100,$Q$7,$Q$8,CONFIGURATION!$B$10,\"BMA\",CONFIGURATION!$B$1,\"bscr\",CONFIGURATION!$B$12)","v":"Mapped"},{"$f":"XBRLMap(M100,$P100,$R$7,$R$8,CONFIGURATION!$B$10,\"BMA\",CONFIGURATION!$B$1,\"bscr\",CONFIGURATION!$B$12)","v":"Mapped"},null,null,null,null,null,null,"bma_TotalAssets"]
[null,null,null,null,null,null,null,null,null,null,null,null,null,null,null,"",null,null,null,null,null,null,null,null,""]
[null,null,"INSURANCE RESERVES, OTHER LIABILITIES AND STATUTORY CAPITAL AND SURPLUS",null,null,null,null,null,null,null,null,null,null,null,null,"",null,null,null,null,null,null,null,null,""]
[null,null,null,null,null,null,null,null,null,null,null,null,null,null,null,"",null,null,null,null,null,null,null,null,""]
[null,null,"INSURANCE RESERVES",null,null,null,null,null,null,null,null,null,null,null,null,""]
[null,null,null,null,null,null,null,null,null,null,null,null,null,null,null,"",null,null,null,null,null,null,null,null,""]
[null,"16.","UNEARNED PREMIUM RESERVE"]
[null,"(a)","Gross unearned premium reserves",null,null,{"$f":"Import!E253","v":0},{"$f":"Import!G253","v":0},null,null,null,{"$f":"Import!I154","v":0},null,{"$f":"Import!K154","v":0}]
[null,"(b)","Less: Ceded unearned premium reserve"]
[null,null,"  i.   Foreign affiliates",null,null,{"$f":"Import!E254","v":0},{"$f":"Import!G254","v":0},null,null,null,{"$f":"Import!I155","v":0},null,{"$f":"Import!K155","v":0}]
[null,null,"  ii.  Domestic affiliates",null,null,{"$f":"Import!E255","v":0},{"$f":"Import!G255","v":0},null,null,null,{"$f":"Import!I156","v":0},null,{"$f":"Import!K156","v":0}]
[null,null,"  iii. Pools & associations",null,null,{"$f":"Import!E256","v":0},{"$f":"Import!G256","v":0},null,null,null,{"$f":"Import!I157","v":0},null,{"$f":"Import!K157","v":0}]
[null,null,"  iv.  All other insurers",null,null,{"$f":"Import!E257","v":0},{"$f":"Import!G257","v":0},null,null,null,{"$f":"Import!I158","v":0},null,{"$f":"Import!K158","v":0}]
[null,"(c) ","Total ceded unearned premium reserve",null,null,{"$f":"SUM(F109:F112)","v":0},{"$f":"SUM(G109:G112)","v":0},null,null,null,{"$f":"SUM(K109:K112)","v":0},null,{"$f":"SUM(M109:M112)","v":0}]
[null,"(d) ","Net unearned premium reserves",null,null,{"$f":"F107-F113","v":0},{"$f":"G107-G113","v":0},null,null,null,{"$f":"K107-K113","v":0},null,{"$f":"M107-M113","v":0}]
[]
[null,"17.","LOSS AND LOSS EXPENSE PROVISIONS:"]
[null,"(a)","Gross loss and loss expense provisions",null,null,{"$f":"Import!E258","v":0},{"$f":"Import!G258","v":0},null,null,null,{"$f":"Import!I159","v":0},null,{"$f":"Import!K159","v":0}]
[null,"(b)","Less : Reinsurance recoverable balance"]
[null,null,"  i.   Foreign affiliates",null,null,{"$f":"Import!E259","v":0},{"$f":"Import!G259","v":0},null,null,null,{"$f":"Import!I160","v":0},null,{"$f":"Import!K160","v":0}]
[null,null,"  ii.  Domestic affiliates",null,null,{"$f":"Import!E260","v":0},{"$f":"Import!G260","v":0},null,null,null,{"$f":"Import!I161","v":0},null,{"$f":"Import!K161","v":0}]
[null,null,"  iii. Pools & associations",null,null,{"$f":"Import!E261","v":0},{"$f":"Import!G261","v":0},null,null,null,{"$f":"Import!I162","v":0},null,{"$f":"Import!K162","v":0}]
[null,null,"  iv.  All other insurers",null,null,{"$f":"Import!E262","v":0},{"$f":"Import!G262","v":0},null,null,null,{"$f":"Import!I163","v":0},null,{"$f":"Import!K163","v":0}]
[null,"(c) ","Total reinsurance recoverable balance",null,null,{"$f":"SUM(F119:F122)","v":0},{"$f":"SUM(G119:G122)","v":0},null,null,null,{"$f":"SUM(K119:K122)","v":0},null,{"$f":"SUM(M119:M122)","v":0}]
[null,"(d) ","Net loss and loss expense provisions",null,null,{"$f":"F117-F123","v":0},{"$f":"G117-G123","v":0},null,null,null,{"$f":"K117-K123","v":0},null,{"$f":"M117-M123","v":0}]
[]
[null,"18.","OTHER INSURANCE RESERVES",null,null,{"$f":"Import!E263","v":0},{"$f":"Import!G263","v":0},null,null,null,{"$f":"Import!I164","v":0},null,{"$f":"Import!K164","v":0}]
[]
[null,"19.","TOTAL GENERAL BUSINESS - INSURANCE RESERVES",null,null,{"$f":"F114+F124+F126","v":0},{"$f":"G114+G124+G126","v":0},null,null,null,{"$f":"K114+K124+K126","v":0},null,{"$f":"M114+M124+M126","v":0}]
[]
[null,null,"LONG-TERM BUSINESS INSURANCE RESERVES"]
[]
[null,"20. ","RESERVES FOR REPORTED CLAIMS",null,null,null,null,{"$f":"Import!E165","v":0},{"$f":"Import!G165","v":0},null,{"$f":"Import!I165","v":0},null,{"$f":"Import!K165","v":0},null,null,"brrt_ReservesForReportedClaimsGross",{"$f":"XBRLMap(K132,$P132&\".\"&$V132,$Q$7,$Q$8,CONFIGURATION!$B$10,\"BMA\",CONFIGURATION!$B$1,\"bscr\",CONFIGURATION!$B$12)","v":"Mapped"},{"$f":"XBRLMap(M132,$P132&\".\"&$V132,$R$7,$R$8,CONFIGURATION!$B$10,\"BMA\",CONFIGURATION!$B$1,\"bscr\",CONFIGURATION!$B$12)","v":"Mapped"},null,"brrt_ReservesForReportedClaimsGross",null,"brrt_BusinessClassAxis_brrt_LongTermMember",null,null,"bma_ReservesForReportedClaims"]
[null,null,null,null,null,null,null,null,null,null,null,null,null,null,null,null,null,null,null,null,null,null,null,null,""]
[null,"21.","RESERVES FOR UNREPORTED CLAIMS",null,null,null,null,{"$f":"Import!E166","v":0},{"$f":"Import!G166","v":0},null,{"$f":"Import!I166","v":0},null,{"$f":"Import!K166","v":0},null,null,"brrt_ReservesForUnreportedClaimsGross",{"$f":"XBRLMap(K134,$P134&\".\"&$V134,$Q$7,$Q$8,CONFIGURATION!$B$10,\"BMA\",CONFIGURATION!$B$1,\"bscr\",CONFIGURATION!$B$12)","v":"Mapped"},{"$f":"XBRLMap(M134,$P134&\".\"&$V134,$R$7,$R$8,CONFIGURATION!$B$10,\"BMA\",CONFIGURATION!$B$1,\"bscr\",CONFIGURATION!$B$12)","v":"Mapped"},null,"brrt_ReservesForUnreportedClaimsGross",null,"brrt_BusinessClassAxis_brrt_LongTermMember",null,null,"bma_ReservesForUnreportedClaims"]
[null,null,null,null,null,null,null,null,null,null,null,null,null,null,null,null,null,null,null,null,null,null,null,null,""]
[null,"22.","POLICY RESERVES - LIFE",null,null,null,null,{"$f":"Import!E167","v":0},{"$f":"Import!G167","v":0},null,{"$f":"Import!I167","v":0},null,{"$f":"Import!K167","v":0},null,null,"brrt_PolicyReservesLifeGross",{"$f":"XBRLMap(K136,$P136&\".\"&$V136,$Q$7,$Q$8,CONFIGURATION!$B$10,\"BMA\",CONFIGURATION!$B$1,\"bscr\",CONFIGURATION!$B$12)","v":"Mapped"},{"$f":"XBRLMap(M136,$P136&\".\"&$V136,$R$7,$R$8,CONFIGURATION!$B$10,\"BMA\",CONFIGURATION!$B$1,\"bscr\",CONFIGURATION!$B$12)","v":"Mapped"},null,"brrt_PolicyReservesLifeGross",null,"brrt_BusinessClassAxis_brrt_LongTermMember",null,null,"bma_PolicyReservesLife"]
[null,null,null,null,null,null,null,null,null,null,null,null,null,null,null,null,null,null,null,null,null,null,null,null,""]
[null,"23.","POLICY RESERVES - ACCIDENT AND HEALTH",null,null,null,null,{"$f":"Import!E168","v":0},{"$f":"Import!G168","v":0},null,{"$f":"Import!I168","v":0},null,{"$f":"Import!K168","v":0},null,null,"brrt_PolicyReservesAccidentAndHealthGross",{"$f":"XBRLMap(K138,$P138&\".\"&$V138,$Q$7,$Q$8,CONFIGURATION!$B$10,\"BMA\",CONFIGURATION!$B$1,\"bscr\",CONFIGURATION!$B$12)","v":"Mapped"},{"$f":"XBRLMap(M138,$P138&\".\"&$V138,$R$7,$R$8,CONFIGURATION!$B$10,\"BMA\",CONFIGURATION!$B$1,\"bscr\",CONFIGURATION!$B$12)","v":"Mapped"},null,"brrt_PolicyReservesAccidentAndHealthGross",null,"brrt_BusinessClassAxis_brrt_LongTermMember",null,null,"bma_PolicyReservesAccidentAndHealth"]
[null,null,null,null,null,null,null,null,null,null,null,null,null,null,null,null,null,null,null,null,null,null,null,null,""]
[null,"24.","POLICYHOLDER'S FUNDS ON DEPOSIT",null,null,null,null,{"$f":"Import!E169","v":0},{"$f":"Import!G169","v":0},null,{"$f":"Import!I169","v":0},null,{"$f":"Import!K169","v":0},null,null,"brrt_PolicyholdersFundsOnDepositGross",{"$f":"XBRLMap(K140,$P140&\".\"&$V140,$Q$7,$Q$8,CONFIGURATION!$B$10,\"BMA\",CONFIGURATION!$B$1,\"bscr\",CONFIGURATION!$B$12)","v":"Mapped"},{"$f":"XBRLMap(M140,$P140&\".\"&$V140,$R$7,$R$8,CONFIGURATION!$B$10,\"BMA\",CONFIGURATION!$B$1,\"bscr\",CONFIGURATION!$B$12)","v":"Mapped"},null,"brrt_PolicyholdersFundsOnDepositGross",null,"brrt_BusinessClassAxis_brrt_LongTermMember",null,null,"bma_PolicyholderFundsOnDeposit"]
[null,null,null,null,null,null,null,null,null,null,null,null,null,null,null,null,null,null,null,null,null,null,null,null,""]
[null,"25.","LIABILITY FOR FUTURE POLICYHOLDER DIVIDENDS",null,null,null,null,{"$f":"Import!E170","v":0},{"$f":"Import!G170","v":0},null,{"$f":"Import!I170","v":0},null,{"$f":"Import!K170","v":0},null,null,"brrt_LiabilityForFuturePolicyholderDividendsGross",{"$f":"XBRLMap(K142,$P142&\".\"&$V142,$Q$7,$Q$8,CONFIGURATION!$B$10,\"BMA\",CONFIGURATION!$B$1,\"bscr\",CONFIGURATION!$B$12)","v":"Mapped"},{"$f":"XBRLMap(M142,$P142&\".\"&$V142,$R$7,$R$8,CONFIGURATION!$B$10,\"BMA\",CONFIGURATION!$B$1,\"bscr\",CONFIGURATION!$B$12)","v":"Mapped"},null,"brrt_LiabilityForFuturePolicyholderDividendsGross",null,"brrt_BusinessClassAxis_brrt_LongTermMember",null,null,"bma_LiabilityForFuturePolicyholderDividends"]
[null,null,null,null,null,null,null,null,null,null,null,null,null,null,null,null,null,null,null,null,null,null,null,null,""]
[null,"26.","OTHER LONG-TERM BUSINESS INSURANCE RESERVES",null,null,null,null,{"$f":"Import!E171","v":0},{"$f":"Import!G171","v":0},null,{"$f":"Import!I171","v":0},null,{"$f":"Import!K171","v":0},null,null,"brrt_OtherInsuranceReservesGross",{"$f":"XBRLMap(K144,$P144&\".\"&$V144,$Q$7,$Q$8,CONFIGURATION!$B$10,\"BMA\",CONFIGURATION!$B$1,\"bscr\",CONFIGURATION!$B$12)","v":"Mapped"},{"$f":"XBRLMap(M144,$P144&\".\"&$V144,$R$7,$R$8,CONFIGURATION!$B$10,\"BMA\",CONFIGURATION!$B$1,\"bscr\",CONFIGURATION!$B$12)","v":"Mapped"},null,"brrt_OtherInsuranceReservesGross",null,"brrt_BusinessClassAxis_brrt_LongTermMember",null,null,"bma_OtherInsuranceReservesLongterm"]
[null,null,null,null,null,null,null,null,null,null,null,null,null,null,null,null,null,null,null,null,null,null,null,null,""]
[null,"27.","TOTAL LONG-TERM BUSINESS - INSURANCE RESERVES"]
[null,"(a)","Total Gross Long-Term Business Insurance Reserves",null,null,null,null,{"$f":"H153+H154","v":0},{"$f":"I153+I154","v":0},null,{"$f":"K153+K154","v":0},null,{"$f":"M153+M154","v":0},null,null,"brrt_InsuranceReservesGross",{"$f":"XBRLMap(K147,$P147&\".\"&$V147,$Q$7,$Q$8,CONFIGURATION!$B$10,\"BMA\",CONFIGURATION!$B$1,\"bscr\",CONFIGURATION!$B$12)","v":"Mapped"},{"$f":"XBRLMap(M147,$P147&\".\"&$V147,$R$7,$R$8,CONFIGURATION!$B$10,\"BMA\",CONFIGURATION!$B$1,\"bscr\",CONFIGURATION!$B$12)","v":"Mapped"},null,null,null,"brrt_BusinessClassAxis_brrt_LongTermMember"]
[null,"(b)","Less: Reinsurance Recoverable Balance:"]
[null,null,"(i) Foreign Affiliates",null,null,null,null,{"$f":"Import!E172","v":0},{"$f":"Import!G172","v":0},null,{"$f":"Import!I172","v":0},null,{"$f":"Import!K172","v":0},null,null,"brrt_ReinsuranceRecoverableBalanceForeignAffiliates",{"$f":"XBRLMap(K149,$P149&\".\"&$V149,$Q$7,$Q$8,CONFIGURATION!$B$10,\"BMA\",CONFIGURATION!$B$1,\"bscr\",CONFIGURATION!$B$12)","v":"Mapped"},{"$f":"XBRLMap(M149,$P149&\".\"&$V149,$R$7,$R$8,CONFIGURATION!$B$10,\"BMA\",CONFIGURATION!$B$1,\"bscr\",CONFIGURATION!$B$12)","v":"Mapped"},null,null,null,"brrt_BusinessClassAxis_brrt_LongTermMember"]
[null,null,"(ii) Domestic Affiliaties",null,null,null,null,{"$f":"Import!E173","v":0},{"$f":"Import!G173","v":0},null,{"$f":"Import!I173","v":0},null,{"$f":"Import!K173","v":0},null,null,"brrt_ReinsuranceRecoverableBalanceDomesticAffiliates",{"$f":"XBRLMap(K150,$P150&\".\"&$V150,$Q$7,$Q$8,CONFIGURATION!$B$10,\"BMA\",CONFIGURATION!$B$1,\"bscr\",CONFIGURATION!$B$12)","v":"Mapped"},{"$f":"XBRLMap(M150,$P150&\".\"&$V150,$R$7,$R$8,CONFIGURATION!$B$10,\"BMA\",CONFIGURATION!$B$1,\"bscr\",CONFIGURATION!$B$12)","v":"Mapped"},null,null,null,"brrt_BusinessClassAxis_brrt_LongTermMember"]
[null,null,"(iii) Pools and Associations",null,null,null,null,{"$f":"Import!E174","v":0},{"$f":"Import!G174","v":0},null,{"$f":"Import!I174","v":0},null,{"$f":"Import!K174","v":0},null,null,"brrt_ReinsuranceRecoverableBalancePoolsAndAssociations",{"$f":"XBRLMap(K151,$P151&\".\"&$V151,$Q$7,$Q$8,CONFIGURATION!$B$10,\"BMA\",CONFIGURATION!$B$1,\"bscr\",CONFIGURATION!$B$12)","v":"Mapped"},{"$f":"XBRLMap(M151,$P151&\".\"&$V151,$R$7,$R$8,CONFIGURATION!$B$10,\"BMA\",CONFIGURATION!$B$1,\"bscr\",CONFIGURATION!$B$12)","v":"Mapped"},null,null,null,"brrt_BusinessClassAxis_brrt_LongTermMember"]
[null,null,"(iv) All Other Insurers",null,null,null,null,{"$f":"Import!E175","v":0},{"$f":"Import!G175","v":0},null,{"$f":"Import!I175","v":0},null,{"$f":"Import!K175","v":0},null,null,"brrt_OtherInsurersReinsuranceRecoverableBalance",{"$f":"XBRLMap(K152,$P152&\".\"&$V152,$Q$7,$Q$8,CONFIGURATION!$B$10,\"BMA\",CONFIGURATION!$B$1,\"bscr\",CONFIGURATION!$B$12)","v":"Mapped"},{"$f":"XBRLMap(M152,$P152&\".\"&$V152,$R$7,$R$8,CONFIGURATION!$B$10,\"BMA\",CONFIGURATION!$B$1,\"bscr\",CONFIGURATION!$B$12)","v":"Mapped"},null,null,null,"brrt_BusinessClassAxis_brrt_LongTermMember"]
[null,"(c)","Total Reinsurance Recoverable Balance",null,null,null,null,{"$f":"SUM(H149:H152)","v":0},{"$f":"SUM(I149:I152)","v":0},null,{"$f":"SUM(K149:K152)","v":0},null,{"$f":"SUM(M149:M152)","v":0},null,null,"brrt_ReinsuranceRecoverableBalance",{"$f":"XBRLMap(K153,$P153&\".\"&$V153,$Q$7,$Q$8,CONFIGURATION!$B$10,\"BMA\",CONFIGURATION!$B$1,\"bscr\",CONFIGURATION!$B$12)","v":"Mapped"},{"$f":"XBRLMap(M153,$P153&\".\"&$V153,$R$7,$R$8,CONFIGURATION!$B$10,\"BMA\",CONFIGURATION!$B$1,\"bscr\",CONFIGURATION!$B$12)","v":"Mapped"},null,null,null,"brrt_BusinessClassAxis_brrt_LongTermMember"]
[null,"(d)","Net Long-Term Business Insurance Reserves",null,null,null,null,{"$f":"H132+H134+H136+H138+H140+H142+H144","v":0},{"$f":"I132+I134+I136+I138+I140+I142+I144","v":0},null,{"$f":"K132+K134+K136+K138+K140+K142+K144","v":0},null,{"$f":"M132+M134+M136+M138+M140+M142+M144","v":0},null,null,"brrt_InsuranceReservesNet",{"$f":"XBRLMap(K154,$P154&\".\"&$V154,$Q$7,$Q$8,CONFIGURATION!$B$10,\"BMA\",CONFIGURATION!$B$1,\"bscr\",CONFIGURATION!$B$12)","v":"Mapped"},{"$f":"XBRLMap(M154,$P154&\".\"&$V154,$R$7,$R$8,CONFIGURATION!$B$10,\"BMA\",CONFIGURATION!$B$1,\"bscr\",CONFIGURATION!$B$12)","v":"Mapped"},null,null,null,"brrt_BusinessClassAxis_brrt_LongTermMember",null,null,"bma_TotalLongtermBusinessInsuranceReserves"]
[]
[null,null,"OTHER LIABILITIES",null,null,null,null,null,null,null,null,null,null,null,null,"brrt_InsuranceAndReinsuranceBalancesPayable",{"$f":"XBRLMap(K156,$P156,$Q$7,$Q$8,CONFIGURATION!$B$10,\"BMA\",CONFIGURATION!$B$1,\"bscr\",CONFIGURATION!$B$12)","v":"Mapped"},{"$f":"XBRLMap(M156,$P156,$R$7,$R$8,CONFIGURATION!$B$10,\"BMA\",CONFIGURATION!$B$1,\"bscr\",CONFIGURATION!$B$12)","v":"Mapped"},null,null,null,null,null,null,"bma_InsuranceAndReinsuranceBalancesPayable"]
[]
[null,"28."," INSURANCE AND REINSURANCE BALANCES PAYABLE",null,null,{"$f":"Import!E264","v":0},{"$f":"Import!G264","v":0},{"$f":"Import!E182","v":0},{"$f":"Import!G182","v":0},null,{"$f":"Import!I182","v":0},null,{"$f":"Import!K182","v":0},null,null,"brrt_InsuranceAndReinsuranceBalancesPayable",{"$f":"XBRLMap(K158,$P158,$Q$7,$Q$8,CONFIGURATION!$B$10,\"BMA\",CONFIGURATION!$B$1,\"bscr\",CONFIGURATION!$B$12)","v":"Mapped"},{"$f":"XBRLMap(M158,$P158,$R$7,$R$8,CONFIGURATION!$B$10,\"BMA\",CONFIGURATION!$B$1,\"bscr\",CONFIGURATION!$B$12)","v":"Mapped"},null,null,null,null,null,null,"bma_InsuranceAndReinsuranceBalancesPayable"]
[null,null,null,null,null,null,null,null,null,null,null,null,null,null,null,null,{"$f":"XBRLMap(K159,$P159,$Q$7,$Q$8,CONFIGURATION!$B$10,\"BMA\",CONFIGURATION!$B$1,\"bscr\",CONFIGURATION!$B$12)","v":"-"},{"$f":"XBRLMap(M159,$P159,$R$7,$R$8,CONFIGURATION!$B$10,\"BMA\",CONFIGURATION!$B$1,\"bscr\",CONFIGURATION!$B$12)","v":"-"},null,null,null,null,null,null,""]
[null,"29.","COMMISSIONS, EXPENSES, FEES AND TAXES PAYABLE",null,null,{"$f":"Import!E265","v":0},{"$f":"Import!G265","v":0},{"$f":"Import!E183","v":0},{"$f":"Import!G183","v":0},null,{"$f":"Import!I183","v":0},null,{"$f":"Import!K183","v":0},null,null,"brrt_CommissionsExpensesFeesAndTaxesPayable",{"$f":"XBRLMap(K160,$P160,$Q$7,$Q$8,CONFIGURATION!$B$10,\"BMA\",CONFIGURATION!$B$1,\"bscr\",CONFIGURATION!$B$12)","v":"Mapped"},{"$f":"XBRLMap(M160,$P160,$R$7,$R$8,CONFIGURATION!$B$10,\"BMA\",CONFIGURATION!$B$1,\"bscr\",CONFIGURATION!$B$12)","v":"Mapped"},null,null,null,null,null,null,"bma_CommissionsExpensesFeesAndTaxesPayable"]
[null,null,null,null,null,null,null,null,null,null,null,null,null,null,null,null,{"$f":"XBRLMap(K161,$P161,$Q$7,$Q$8,CONFIGURATION!$B$10,\"BMA\",CONFIGURATION!$B$1,\"bscr\",CONFIGURATION!$B$12)","v":"-"},{"$f":"XBRLMap(M161,$P161,$R$7,$R$8,CONFIGURATION!$B$10,\"BMA\",CONFIGURATION!$B$1,\"bscr\",CONFIGURATION!$B$12)","v":"-"},null,null,null,null,null,null,""]
[null,"30.","LOANS AND NOTES PAYABLE",null,null,{"$f":"Import!E266","v":0},{"$f":"Import!G266","v":0},{"$f":"Import!E184","v":0},{"$f":"Import!G184","v":0},null,{"$f":"Import!I184","v":0},null,{"$f":"Import!K184","v":0},null,null,"brrt_LoansAndNotesPayable",{"$f":"XBRLMap(K162,$P162,$Q$7,$Q$8,CONFIGURATION!$B$10,\"BMA\",CONFIGURATION!$B$1,\"bscr\",CONFIGURATION!$B$12)","v":"Mapped"},{"$f":"XBRLMap(M162,$P162,$R$7,$R$8,CONFIGURATION!$B$10,\"BMA\",CONFIGURATION!$B$1,\"bscr\",CONFIGURATION!$B$12)","v":"Mapped"},null,null,null,null,null,null,"bma_LoansAndNotesPayable"]
[null,null,null,null,null,null,null,null,null,null,null,null,null,null,null,null,{"$f":"XBRLMap(K163,$P163,$Q$7,$Q$8,CONFIGURATION!$B$10,\"BMA\",CONFIGURATION!$B$1,\"bscr\",CONFIGURATION!$B$12)","v":"-"},{"$f":"XBRLMap(M163,$P163,$R$7,$R$8,CONFIGURATION!$B$10,\"BMA\",CONFIGURATION!$B$1,\"bscr\",CONFIGURATION!$B$12)","v":"-"},null,null,null,null,null,null,""]
[null,"31.","(a) INCOME TAXES PAYABLE",null,null,{"$f":"Import!E267","v":0},{"$f":"Import!G267","v":0},{"$f":"Import!E185","v":0},{"$f":"Import!G185","v":0},null,{"$f":"Import!I185","v":0},null,{"$f":"Import!K185","v":0},null,null,"brrt_IncomeTaxesPayable",{"$f":"XBRLMap(K164,$P164,$Q$7,$Q$8,CONFIGURATION!$B$10,\"BMA\",CONFIGURATION!$B$1,\"bscr\",CONFIGURATION!$B$12)","v":"Mapped"},{"$f":"XBRLMap(M164,$P164,$R$7,$R$8,CONFIGURATION!$B$10,\"BMA\",CONFIGURATION!$B$1,\"bscr\",CONFIGURATION!$B$12)","v":"Mapped"},null,null,null,null,null,null,"bma_IncomeTaxesPayable"]
[]
[null,null,"(b) DEFERRED INCOME TAXES",null,null,{"$f":"Import!E268","v":0},{"$f":"Import!G268","v":0},{"$f":"Import!E186","v":0},{"$f":"Import!G186","v":0},null,{"$f":"Import!I186","v":0},null,{"$f":"Import!K186","v":0},null,null,"brrt_DeferredIncomeTaxes",{"$f":"XBRLMap(K166,$P166,$Q$7,$Q$8,CONFIGURATION!$B$10,\"BMA\",CONFIGURATION!$B$1,\"bscr\",CONFIGURATION!$B$12)","v":"Mapped"},{"$f":"XBRLMap(M166,$P166,$R$7,$R$8,CONFIGURATION!$B$10,\"BMA\",CONFIGURATION!$B$1,\"bscr\",CONFIGURATION!$B$12)","v":"Mapped"},null,null,null,null,null,null,"bma_DeferredIncomeTaxes"]
[null,null,null,null,null,null,null,null,null,null,null,null,null,null,null,null,{"$f":"XBRLMap(K167,$P167,$Q$7,$Q$8,CONFIGURATION!$B$10,\"BMA\",CONFIGURATION!$B$1,\"bscr\",CONFIGURATION!$B$12)","v":"-"},{"$f":"XBRLMap(M167,$P167,$R$7,$R$8,CONFIGURATION!$B$10,\"BMA\",CONFIGURATION!$B$1,\"bscr\",CONFIGURATION!$B$12)","v":"-"},null,null,null,null,null,null,""]
[null,"32.","AMOUNTS DUE TO AFFILIATES",null,null,{"$f":"Import!E269","v":0},{"$f":"Import!G269","v":0},{"$f":"Import!E187","v":0},{"$f":"Import!G187","v":0},null,{"$f":"Import!I187","v":0},null,{"$f":"Import!K187","v":0},null,null,"brrt_AmountsDueToAffiliates",{"$f":"XBRLMap(K168,$P168,$Q$7,$Q$8,CONFIGURATION!$B$10,\"BMA\",CONFIGURATION!$B$1,\"bscr\",CONFIGURATION!$B$12)","v":"Mapped"},{"$f":"XBRLMap(M168,$P168,$R$7,$R$8,CONFIGURATION!$B$10,\"BMA\",CONFIGURATION!$B$1,\"bscr\",CONFIGURATION!$B$12)","v":"Mapped"},null,null,null,null,null,null,"bma_AmountsDueToAffiliates"]
[null,null,null,null,null,null,null,null,null,null,null,null,null,null,null,null,{"$f":"XBRLMap(K169,$P169,$Q$7,$Q$8,CONFIGURATION!$B$10,\"BMA\",CONFIGURATION!$B$1,\"bscr\",CONFIGURATION!$B$12)","v":"-"},{"$f":"XBRLMap(M169,$P169,$R$7,$R$8,CONFIGURATION!$B$10,\"BMA\",CONFIGURATION!$B$1,\"bscr\",CONFIGURATION!$B$12)","v":"-"},null,null,null,null,null,null,""]
[null,"33.","ACCOUNTS PAYABLE AND ACCRUED LIABILITIES",null,null,{"$f":"Import!E270","v":0},{"$f":"Import!G270","v":0},{"$f":"Import!E188","v":0},{"$f":"Import!G188","v":0},null,{"$f":"Import!I188","v":0},null,{"$f":"Import!K188","v":0},null,null,"brrt_AccountsPayableAndAccruedLiabilities",{"$f":"XBRLMap(K170,$P170,$Q$7,$Q$8,CONFIGURATION!$B$10,\"BMA\",CONFIGURATION!$B$1,\"bscr\",CONFIGURATION!$B$12)","v":"Mapped"},{"$f":"XBRLMap(M170,$P170,$R$7,$R$8,CONFIGURATION!$B$10,\"BMA\",CONFIGURATION!$B$1,\"bscr\",CONFIGURATION!$B$12)","v":"Mapped"},null,null,null,null,null,null,"bma_AccountsPayableAndAccruedLiabilities"]
[null,null,null,null,null,null,null,null,null,null,null,null,null,null,null,null,{"$f":"XBRLMap(K171,$P171,$Q$7,$Q$8,CONFIGURATION!$B$10,\"BMA\",CONFIGURATION!$B$1,\"bscr\",CONFIGURATION!$B$12)","v":"-"},{"$f":"XBRLMap(M171,$P171,$R$7,$R$8,CONFIGURATION!$B$10,\"BMA\",CONFIGURATION!$B$1,\"bscr\",CONFIGURATION!$B$12)","v":"-"},null,null,null,null,null,null,""]
[null,"34.","FUNDS HELD UNDER REINSURANCE CONTRACTS",null,null,{"$f":"Import!E271","v":0},{"$f":"Import!G271","v":0},{"$f":"Import!E191","v":0},{"$f":"Import!G191","v":0},null,{"$f":"Import!I191","v":0},null,{"$f":"Import!K191","v":0},null,null,null,{"$f":"XBRLMap(#REF!,$P172,$Q$7,$Q$8,CONFIGURATION!$B$10,\"BMA\",CONFIGURATION!$B$1,\"bscr\",CONFIGURATION!$B$12)","v":{"$error":"#VALUE!"}},{"$f":"XBRLMap(#REF!,$P172,$R$7,$R$8,CONFIGURATION!$B$10,\"BMA\",CONFIGURATION!$B$1,\"bscr\",CONFIGURATION!$B$12)","v":{"$error":"#VALUE!"}}]
[null,null,null,null,null,null,null,null,null,null,null,null,null,null,null,null,{"$f":"XBRLMap(K173,$P173,$Q$7,$Q$8,CONFIGURATION!$B$10,\"BMA\",CONFIGURATION!$B$1,\"bscr\",CONFIGURATION!$B$12)","v":"-"},{"$f":"XBRLMap(M173,$P173,$R$7,$R$8,CONFIGURATION!$B$10,\"BMA\",CONFIGURATION!$B$1,\"bscr\",CONFIGURATION!$B$12)","v":"-"},null,null,null,null,null,null,""]
[null,"35.","DIVIDENDS PAYABLE",null,null,{"$f":"Import!E272","v":0},{"$f":"Import!G272","v":0},{"$f":"Import!E192","v":0},{"$f":"Import!G192","v":0},null,{"$f":"Import!I192","v":0},null,{"$f":"Import!K192","v":0},null,null,"brrt_DividendsPayable",{"$f":"XBRLMap(K174,$P174,$Q$7,$Q$8,CONFIGURATION!$B$10,\"BMA\",CONFIGURATION!$B$1,\"bscr\",CONFIGURATION!$B$12)","v":"Mapped"},{"$f":"XBRLMap(M174,$P174,$R$7,$R$8,CONFIGURATION!$B$10,\"BMA\",CONFIGURATION!$B$1,\"bscr\",CONFIGURATION!$B$12)","v":"Mapped"},null,null,null,null,null,null,"bma_DividendsPayable"]
[null,null,null,null,null,null,null,null,null,null,null,null,null,null,null,null,{"$f":"XBRLMap(K175,$P175,$Q$7,$Q$8,CONFIGURATION!$B$10,\"BMA\",CONFIGURATION!$B$1,\"bscr\",CONFIGURATION!$B$12)","v":"-"},{"$f":"XBRLMap(M175,$P175,$R$7,$R$8,CONFIGURATION!$B$10,\"BMA\",CONFIGURATION!$B$1,\"bscr\",CONFIGURATION!$B$12)","v":"-"},null,null,null,null,null,null,""]
[null,"36.","SUNDRY LIABILITIES:",null,null,null,null,null,null,null,null,null,null,null,null,null,{"$f":"XBRLMap(K176,$P176,$Q$7,$Q$8,CONFIGURATION!$B$10,\"BMA\",CONFIGURATION!$B$1,\"bscr\",CONFIGURATION!$B$12)","v":"-"},{"$f":"XBRLMap(M176,$P176,$R$7,$R$8,CONFIGURATION!$B$10,\"BMA\",CONFIGURATION!$B$1,\"bscr\",CONFIGURATION!$B$12)","v":"-"}]
[null,"(a)","Derivative instruments",null,null,{"$f":"Import!E273","v":0},{"$f":"Import!G273","v":0},{"$f":"Import!E193","v":0},{"$f":"Import!G193","v":0},null,{"$f":"Import!I193","v":0},null,{"$f":"Import!K193","v":0},null,null,"brrt_SundryLiabilitiesDerivativeInstruments",{"$f":"XBRLMap(K177,$P177,$Q$7,$Q$8,CONFIGURATION!$B$10,\"BMA\",CONFIGURATION!$B$1,\"bscr\",CONFIGURATION!$B$12)","v":"Mapped"},{"$f":"XBRLMap(M177,$P177,$R$7,$R$8,CONFIGURATION!$B$10,\"BMA\",CONFIGURATION!$B$1,\"bscr\",CONFIGURATION!$B$12)","v":"Mapped"},null,null,null,null,null,null,"bma_SundryLiabilitiesDerivativeInstruments"]
[null,"(b)","Segregated accounts",null,null,{"$f":"Import!E274","v":0},{"$f":"Import!G274","v":0},{"$f":"Import!E195","v":0},{"$f":"Import!G195","v":0},null,{"$f":"Import!I195","v":0},null,{"$f":"Import!K195","v":0},null,null,"brrt_SundryLiabilitiesSegregatedAccountsCompanies",{"$f":"XBRLMap(K178,$P178,$Q$7,$Q$8,CONFIGURATION!$B$10,\"BMA\",CONFIGURATION!$B$1,\"bscr\",CONFIGURATION!$B$12)","v":"Mapped"},{"$f":"XBRLMap(M178,$P178,$R$7,$R$8,CONFIGURATION!$B$10,\"BMA\",CONFIGURATION!$B$1,\"bscr\",CONFIGURATION!$B$12)","v":"Mapped"},null,null,null,null,null,null,"bma_SundryLiabilitiesSegregatedAccountsCompanies"]
[null,"(c)","Deposit liabilities",null,null,{"$f":"Import!E275","v":0},{"$f":"Import!G275","v":0},{"$f":"Import!E197","v":0},{"$f":"Import!G197","v":0},null,{"$f":"Import!I197","v":0},null,{"$f":"Import!K197","v":0},null,null,"brrt_SundryLiabilitiesDepositLiabilities",{"$f":"XBRLMap(K179,$P179,$Q$7,$Q$8,CONFIGURATION!$B$10,\"BMA\",CONFIGURATION!$B$1,\"bscr\",CONFIGURATION!$B$12)","v":"Mapped"},{"$f":"XBRLMap(M179,$P179,$R$7,$R$8,CONFIGURATION!$B$10,\"BMA\",CONFIGURATION!$B$1,\"bscr\",CONFIGURATION!$B$12)","v":"Mapped"},null,null,null,null,null,null,"bma_SundryLiabilitiesDepositLiabilities"]
[null,"(d)","Net payable for investments purchased",null,null,{"$f":"Import!E276","v":0},{"$f":"Import!G276","v":0},{"$f":"Import!E199","v":0},{"$f":"Import!G199","v":0},null,{"$f":"Import!I199","v":0},null,{"$f":"Import!K199","v":0}]
[null,"(e)","Other sundry liabilities (specify)",null,null,{"$f":"Import!E277","v":0},{"$f":"Import!G277","v":0},{"$f":"Import!E200","v":0},{"$f":"Import!G200","v":0},null,{"$f":"Import!I200","v":0},null,{"$f":"Import!K200","v":0}]
[null,"(f)","Other sundry liabilities (specify)",null,null,{"$f":"Import!E278","v":0},{"$f":"Import!G278","v":0},{"$f":"Import!E201","v":0},{"$f":"Import!G201","v":0},null,{"$f":"Import!I201","v":0},null,{"$f":"Import!K201","v":0},null,null,"brrt_SundryLiabilitiesDepositLiabilities",{"$f":"XBRLMap(K182,$P182,$Q$7,$Q$8,CONFIGURATION!$B$10,\"BMA\",CONFIGURATION!$B$1,\"bscr\",CONFIGURATION!$B$12)","v":"Mapped"},{"$f":"XBRLMap(M182,$P182,$R$7,$R$8,CONFIGURATION!$B$10,\"BMA\",CONFIGURATION!$B$1,\"bscr\",CONFIGURATION!$B$12)","v":"Mapped"},null,null,null,null,null,null,"bma_SundryLiabilitiesDepositLiabilities"]
[null,"(g)","Other sundry liabilities (specify)",null,null,{"$f":"Import!E279","v":0},{"$f":"Import!G279","v":0},{"$f":"Import!E202","v":0},{"$f":"Import!G202","v":0},null,{"$f":"Import!I202","v":0},null,{"$f":"Import!K202","v":0},null,null,"brrt_SundryLiabilitiesOther",{"$f":"XBRLMap(K183,$P183,$Q$7,$Q$8,CONFIGURATION!$B$10,\"BMA\",CONFIGURATION!$B$1,\"bscr\",CONFIGURATION!$B$12)","v":"Mapped"},{"$f":"XBRLMap(M183,$P183,$R$7,$R$8,CONFIGURATION!$B$10,\"BMA\",CONFIGURATION!$B$1,\"bscr\",CONFIGURATION!$B$12)","v":"Mapped"},null,null,null,null,null,null,"bma_SundryLiabilitiesOther"]
[null,"(h)","Total sundry liabilities",null,null,{"$f":"SUM(F177:F183)","v":0},{"$f":"SUM(G177:G183)","v":0},{"$f":"SUM(H177:H183)","v":0},{"$f":"SUM(I177:I183)","v":0},null,{"$f":"SUM(K177:K183)","v":0},null,{"$f":"SUM(M177:M183)","v":0},null,null,"brrt_SundryLiabilities",{"$f":"XBRLMap(K184,$P184,$Q$7,$Q$8,CONFIGURATION!$B$10,\"BMA\",CONFIGURATION!$B$1,\"bscr\",CONFIGURATION!$B$12)","v":"Mapped"},{"$f":"XBRLMap(M184,$P184,$R$7,$R$8,CONFIGURATION!$B$10,\"BMA\",CONFIGURATION!$B$1,\"bscr\",CONFIGURATION!$B$12)","v":"Mapped"},null,null,null,null,null,null,"bma_TotalSundryLiabilities"]
[null,null,null,null,null,null,null,null,null,null,null,null,null,null,null,"brrt_SundryLiabilitiesOtherDescription",{"$f":"XBRLMap(C183,$P185,$Q$7,$Q$8,CONFIGURATION!$B$10,\"BMA\",CONFIGURATION!$B$1,\"bscr\")","v":"Mapped"},null,null,null,null,null,null,null,"bma_SundryLiabilitiesOtherType"]
[null,"37.","LETTERS OF CREDIT, GUARANTEES AND OTHER INSTRUMENTS",null,null,null,null,null,null,null,null,null,null,null,null,null,{"$f":"XBRLMap(K186,$P186,$Q$7,$Q$8,CONFIGURATION!$B$10,\"BMA\",CONFIGURATION!$B$1,\"bscr\",CONFIGURATION!$B$12)","v":"-"},{"$f":"XBRLMap(M186,$P186,$R$7,$R$8,CONFIGURATION!$B$10,\"BMA\",CONFIGURATION!$B$1,\"bscr\",CONFIGURATION!$B$12)","v":"-"}]
[null,"(a)","Letters of credit ",null,null,{"$f":"Import!E280","v":0},{"$f":"Import!G280","v":0},{"$f":"Import!E203","v":0},{"$f":"Import!G203","v":0},null,{"$f":"Import!I203","v":0},null,{"$f":"Import!K203","v":0},null,null,"brrt_LiabilitiesLettersOfCredit",{"$f":"XBRLMap(K187,$P187,$Q$7,$Q$8,CONFIGURATION!$B$10,\"BMA\",CONFIGURATION!$B$1,\"bscr\",CONFIGURATION!$B$12)","v":"Mapped"},{"$f":"XBRLMap(M187,$P187,$R$7,$R$8,CONFIGURATION!$B$10,\"BMA\",CONFIGURATION!$B$1,\"bscr\",CONFIGURATION!$B$12)","v":"Mapped"},null,null,null,null,null,null,"bma_LiabilitiesLettersOfCredit"]
[null,"(b)","Guarantees",null,null,{"$f":"Import!E281","v":0},{"$f":"Import!G281","v":0},{"$f":"Import!E204","v":0},{"$f":"Import!G204","v":0},null,{"$f":"Import!I204","v":0},null,{"$f":"Import!K204","v":0},null,null,"brrt_LiabilitiesGuarantees",{"$f":"XBRLMap(K188,$P188,$Q$7,$Q$8,CONFIGURATION!$B$10,\"BMA\",CONFIGURATION!$B$1,\"bscr\",CONFIGURATION!$B$12)","v":"Mapped"},{"$f":"XBRLMap(M188,$P188,$R$7,$R$8,CONFIGURATION!$B$10,\"BMA\",CONFIGURATION!$B$1,\"bscr\",CONFIGURATION!$B$12)","v":"Mapped"},null,null,null,null,null,null,"bma_LiabilitiesGuarantees"]
[null,"(c) ","Other instruments",null,null,{"$f":"Import!E282","v":0},{"$f":"Import!G282","v":0},{"$f":"Import!E205","v":0},{"$f":"Import!G205","v":0},null,{"$f":"Import!I205","v":0},null,{"$f":"Import!K205","v":0},null,null,"brrt_LiabilitiesOtherInstruments",{"$f":"XBRLMap(K189,$P189,$Q$7,$Q$8,CONFIGURATION!$B$10,\"BMA\",CONFIGURATION!$B$1,\"bscr\",CONFIGURATION!$B$12)","v":"Mapped"},{"$f":"XBRLMap(M189,$P189,$R$7,$R$8,CONFIGURATION!$B$10,\"BMA\",CONFIGURATION!$B$1,\"bscr\",CONFIGURATION!$B$12)","v":"Mapped"},null,null,null,null,null,null,"bma_LiabilitiesOtherInstruments"]
[null,"(d)","Total letters of credit, guarantees and other instruments",null,null,{"$f":"SUM(F187:F189)","v":0},{"$f":"SUM(G187:G189)","v":0},{"$f":"SUM(H187:H189)","v":0},{"$f":"SUM(I187:I189)","v":0},null,{"$f":"SUM(K187:K189)","v":0},null,{"$f":"SUM(M187:M189)","v":0},null,null,"brrt_LiabilitiesLettersOfCreditGuaranteesAndOtherInstruments",{"$f":"XBRLMap(K190,$P190,$Q$7,$Q$8,CONFIGURATION!$B$10,\"BMA\",CONFIGURATION!$B$1,\"bscr\",CONFIGURATION!$B$12)","v":"Mapped"},{"$f":"XBRLMap(M190,$P190,$R$7,$R$8,CONFIGURATION!$B$10,\"BMA\",CONFIGURATION!$B$1,\"bscr\",CONFIGURATION!$B$12)","v":"Mapped"},null,null,null,null,null,null,"bma_LiabilitiesTotalLettersOfCreditGuaranteesAndOtherInstruments"]
[null,null,null,null,null,null,null,null,null,null,null,null,null,null,null,null,{"$f":"XBRLMap(K191,$P191,$Q$7,$Q$8,CONFIGURATION!$B$10,\"BMA\",CONFIGURATION!$B$1,\"bscr\",CONFIGURATION!$B$12)","v":"-"},{"$f":"XBRLMap(M191,$P191,$R$7,$R$8,CONFIGURATION!$B$10,\"BMA\",CONFIGURATION!$B$1,\"bscr\",CONFIGURATION!$B$12)","v":"-"},null,null,null,null,null,null,""]
[null,"38.","TOTAL OTHER LIABILITIES",null,null,{"$f":"F158+F160+F162+F164+F166+F168+F170+F172+F174+F184+F190","v":0},{"$f":"G158+G160+G162+G164+G166+G168+G170+G172+G174+G184+G190","v":0},{"$f":"H158+H160+H162+H164+H166+H168+H170+H172+H174+H184+H190","v":0},{"$f":"I158+I160+I162+I164+I166+I168+I170+I172+I174+I184+I190","v":0},null,{"$f":"K158+K160+K162+K164+K166+K168+K170+K172+K174+K184+K190","v":0},null,{"$f":"M158+M160+M162+M164+M166+M168+M170+M172+M174+M184+M190","v":0},null,null,"brrt_OtherLiabilities",{"$f":"XBRLMap(K192,$P192,$Q$7,$Q$8,CONFIGURATION!$B$10,\"BMA\",CONFIGURATION!$B$1,\"bscr\",CONFIGURATION!$B$12)","v":"Mapped"},{"$f":"XBRLMap(M192,$P192,$R$7,$R$8,CONFIGURATION!$B$10,\"BMA\",CONFIGURATION!$B$1,\"bscr\",CONFIGURATION!$B$12)","v":"Mapped"},null,null,null,null,null,null,"bma_TotalOtherLiabilities"]
[null,null,null,null,null,null,null,null,null,null,null,null,null,null,null,null,{"$f":"XBRLMap(K193,$P193,$Q$7,$Q$8,CONFIGURATION!$B$10,\"BMA\",CONFIGURATION!$B$1,\"bscr\",CONFIGURATION!$B$12)","v":"-"},{"$f":"XBRLMap(M193,$P193,$R$7,$R$8,CONFIGURATION!$B$10,\"BMA\",CONFIGURATION!$B$1,\"bscr\",CONFIGURATION!$B$12)","v":"-"},null,null,null,null,null,null,""]
[null,"39.","TOTAL INSURANCE PROVISIONS AND OTHER LIABILITIES",null,null,{"$f":"F128+F154+F192","v":0},{"$f":"G128+G154+G192","v":0},{"$f":"H128+H154+H192","v":0},{"$f":"I128+I154+I192","v":0},null,{"$f":"K128+K154+K192","v":0},null,{"$f":"M128+M154+M192","v":0},null,null,"brrt_InsuranceReservesAndOtherLiabilities",{"$f":"XBRLMap(K194,$P194,$Q$7,$Q$8,CONFIGURATION!$B$10,\"BMA\",CONFIGURATION!$B$1,\"bscr\",CONFIGURATION!$B$12)","v":"Mapped"},{"$f":"XBRLMap(M194,$P194,$R$7,$R$8,CONFIGURATION!$B$10,\"BMA\",CONFIGURATION!$B$1,\"bscr\",CONFIGURATION!$B$12)","v":"Mapped"},null,null,null,null,null,null,"bma_TotalGeneralBusinessInsuranceReservesAndOtherLiabilities"]
[null,null,null,null,null,null,null,null,null,null,null,null,null,null,null,null,{"$f":"XBRLMap(K195,$P195,$Q$7,$Q$8,CONFIGURATION!$B$10,\"BMA\",CONFIGURATION!$B$1,\"bscr\",CONFIGURATION!$B$12)","v":"-"},{"$f":"XBRLMap(M195,$P195,$R$7,$R$8,CONFIGURATION!$B$10,\"BMA\",CONFIGURATION!$B$1,\"bscr\",CONFIGURATION!$B$12)","v":"-"},null,null,null,null,null,null,""]
[null,null,"STATUTORY CAPITAL AND SURPLUS",null,null,null,null,null,null,null,null,null,null,null,null,null,{"$f":"XBRLMap(K196,$P196,$Q$7,$Q$8,CONFIGURATION!$B$10,\"BMA\",CONFIGURATION!$B$1,\"bscr\",CONFIGURATION!$B$12)","v":"-"},{"$f":"XBRLMap(M196,$P196,$R$7,$R$8,CONFIGURATION!$B$10,\"BMA\",CONFIGURATION!$B$1,\"bscr\",CONFIGURATION!$B$12)","v":"-"}]
[null,null,null,null,null,null,null,null,null,null,null,null,null,null,null,null,{"$f":"XBRLMap(K197,$P197,$Q$7,$Q$8,CONFIGURATION!$B$10,\"BMA\",CONFIGURATION!$B$1,\"bscr\",CONFIGURATION!$B$12)","v":"-"},{"$f":"XBRLMap(M197,$P197,$R$7,$R$8,CONFIGURATION!$B$10,\"BMA\",CONFIGURATION!$B$1,\"bscr\",CONFIGURATION!$B$12)","v":"-"},null,null,null,null,null,null,""]
[null,"40.","TOTAL STATUTORY CAPITAL AND SURPLUS ",null,null,{"$f":"+'Form 8SFS'!G58","v":0},{"$f":"+'Form 8SFS'!I58","v":0},{"$f":"+'Form 8SFS'!K58","v":0},{"$f":"+'Form 8SFS'!M58","v":0},null,{"$f":"+'Form 8SFS'!O58","v":0},null,{"$f":"+'Form 8SFS'!Q58","v":0},null,null,null,null,null,null,null,null,null,null,null,"bma_TotalStatutoryCapitalAndSurplus"]
[null,null,null,null,null,null,null,null,null,null,null,null,null,null,null,null,{"$f":"XBRLMap(K199,$P199,$Q$7,$Q$8,CONFIGURATION!$B$10,\"BMA\",CONFIGURATION!$B$1,\"bscr\",CONFIGURATION!$B$12)","v":"-"},{"$f":"XBRLMap(M199,$P199,$R$7,$R$8,CONFIGURATION!$B$10,\"BMA\",CONFIGURATION!$B$1,\"bscr\",CONFIGURATION!$B$12)","v":"-"},null,null,null,null,null,null,""]
[null,"41.","TOTAL",null,null,{"$f":"F194+F198","v":0},{"$f":"G194+G198","v":0},{"$f":"H194+H198","v":0},{"$f":"I194+I198","v":0},null,{"$f":"K194+K198","v":0},null,{"$f":"M194+M198","v":0},null,null,"brrt_Liabilities",{"$f":"XBRLMap(K200,$P200,$Q$7,$Q$8,CONFIGURATION!$B$10,\"BMA\",CONFIGURATION!$B$1,\"bscr\",CONFIGURATION!$B$12)","v":"Mapped"},{"$f":"XBRLMap(M200,$P200,$R$7,$R$8,CONFIGURATION!$B$10,\"BMA\",CONFIGURATION!$B$1,\"bscr\",CONFIGURATION!$B$12)","v":"Mapped"},null,null,null,null,null,null,"bma_TotalLiabilities"]
[null,null,null,null,null,null,null,null,null,null,null,null,null,null,null,null,{"$f":"XBRLMap(K201,$P201,$Q$7,$Q$8,CONFIGURATION!$B$10,\"BMA\",CONFIGURATION!$B$1,\"bscr\",CONFIGURATION!$B$12)","v":"-"},{"$f":"XBRLMap(M201,$P201,$R$7,$R$8,CONFIGURATION!$B$10,\"BMA\",CONFIGURATION!$B$1,\"bscr\",CONFIGURATION!$B$12)","v":"-"},null,null,null,null,null,null,""]
[null,null,null,null,null,{"$f":"IF(F203=\"TRUE\",HYPERLINK(\"#'Form 1SFS'!F100\",\"TRUE\"),HYPERLINK(\"#'Form 1SFS'!F100\",\"FALSE\"))","v":"TRUE"},{"$f":"IF(G203=\"TRUE\",HYPERLINK(\"#'Form 1SFS'!G100\",\"TRUE\"),HYPERLINK(\"#'Form 1SFS'!G100\",\"FALSE\"))","v":"TRUE"},{"$f":"IF(H203=\"TRUE\",HYPERLINK(\"#'Form 1SFS'!H100\",\"TRUE\"),HYPERLINK(\"#'Form 1SFS'!H100\",\"FALSE\"))","v":"TRUE"},{"$f":"IF(I203=\"TRUE\",HYPERLINK(\"#'Form 1SFS'!I100\",\"TRUE\"),HYPERLINK(\"#'Form 1SFS'!I100\",\"FALSE\"))","v":"TRUE"},null,{"$f":"IF(K203=\"TRUE\",HYPERLINK(\"#'Form 1SFS'!K100\",\"TRUE\"),HYPERLINK(\"#'Form 1SFS'!K100\",\"FALSE\"))","v":"TRUE"},null,{"$f":"IF(M203=\"TRUE\",HYPERLINK(\"#'Form 1SFS'!M100\",\"TRUE\"),HYPERLINK(\"#'Form 1SFS'!M100\",\"FALSE\"))","v":"TRUE"},null,null,null,{"$f":"XBRLMap(K202,$P202,$Q$7,$Q$8,CONFIGURATION!$B$10,\"BMA\",CONFIGURATION!$B$1,\"bscr\",CONFIGURATION!$B$12)","v":"-"},{"$f":"XBRLMap(M202,$P202,$R$7,$R$8,CONFIGURATION!$B$10,\"BMA\",CONFIGURATION!$B$1,\"bscr\",CONFIGURATION!$B$12)","v":"-"},null,null,null,null,null,null,""]
[null,null,null,null,null,{"$f":"IF(ROUND((F100-F200),0)=0,\"TRUE\",\"FALSE\")","v":"TRUE"},{"$f":"IF(ROUND((G100-G200),0)=0,\"TRUE\",\"FALSE\")","v":"TRUE"},{"$f":"IF(ROUND((H100-H200),0)=0,\"TRUE\",\"FALSE\")","v":"TRUE"},{"$f":"IF(ROUND((I100-I200),0)=0,\"TRUE\",\"FALSE\")","v":"TRUE"},null,{"$f":"IF(ROUND((K100-K200),0)=0,\"TRUE\",\"FALSE\")","v":"TRUE"},null,{"$f":"IF(ROUND((M100-M200),0)=0,\"TRUE\",\"FALSE\")","v":"TRUE"}]
[null,null,"Difference",null,null,{"$f":"ROUND((F100-F200),0)","v":0},{"$f":"ROUND((G100-G200),0)","v":0},{"$f":"ROUND((H100-H200),0)","v":0},{"$f":"ROUND((I100-I200),0)","v":0},null,{"$f":"ROUND((K100-K200),0)","v":0},null,{"$f":"ROUND((M100-M200),0)","v":0}]
[]
[null,null,null,null,null,{"$f":"IF(F202=\"False\",\"Line 15 does not equal Line 41\",\"\")","v":""},{"$f":"IF(G202=\"False\",\"Line 15 does not equal Line 41\",\"\")","v":""},{"$f":"IF(H202=\"False\",\"Line 15 does not equal Line 41\",\"\")","v":""},{"$f":"IF(I202=\"False\",\"Line 15 does not equal Line 41\",\"\")","v":""},null,{"$f":"IF(K202=\"False\",\"Line 15 does not equal Line 41\",\"\")","v":""},null,{"$f":"IF(M202=\"False\",\"Line 15 does not equal Line 41\",\"\")","v":""}]
[]
[null,"Notes to Form 1SFS",null,null,null,null,null,null,null,null,null,null,null,null,null,null,{"$f":"XBRLMap(K208,$P208,$Q$7,$Q$8,CONFIGURATION!$B$10,\"BMA\",CONFIGURATION!$B$1,\"bscr\",CONFIGURATION!$B$12)","v":"-"},{"$f":"XBRLMap(M208,$P208,$R$7,$R$8,CONFIGURATION!$B$10,\"BMA\",CONFIGURATION!$B$1,\"bscr\",CONFIGURATION!$B$12)","v":"-"},null,null,null,null,null,null,""]
[null,null,null,null,null,null,null,null,null,null,null,null,null,null,null,null,{"$f":"XBRLMap(K209,$P209,$Q$7,$Q$8,CONFIGURATION!$B$10,\"BMA\",CONFIGURATION!$B$1,\"bscr\",CONFIGURATION!$B$12)","v":"-"},{"$f":"XBRLMap(M209,$P209,$R$7,$R$8,CONFIGURATION!$B$10,\"BMA\",CONFIGURATION!$B$1,\"bscr\",CONFIGURATION!$B$12)","v":"-"}]
[null,"Line 10 ","Collateralized balances",null,null,null,null,null,null,null,{"$f":"Import!E284","v":0},null,{"$f":"Import!G284","v":0},null,null,"brrt_CollateralizedBalances",{"$f":"XBRLMap(K210,$P210,$Q$7,$Q$8,CONFIGURATION!$B$10,\"BMA\",CONFIGURATION!$B$1,\"bscr\",CONFIGURATION!$B$12)","v":"Mapped"},{"$f":"XBRLMap(M210,$P210,$R$7,$R$8,CONFIGURATION!$B$10,\"BMA\",CONFIGURATION!$B$1,\"bscr\",CONFIGURATION!$B$12)","v":"Mapped"},null,null,null,null,null,null,"bma_CollateralizedBalances"]
[]
[null,"Line 11(e) ","Collateralized balances",null,null,null,null,null,null,null,{"$f":"Import!E285","v":0}]
[]
[null,"Line 27(c) ","Collateral placed in favor of the insurer ",null,null,null,null,null,null,null,{"$f":"Import!E286","v":0}]
[]
[null,"Line 13 ","Sundry assets",null,null,null,null,null,null,null,{"$f":"Import!E287","v":0},null,{"$f":"Import!G287","v":0},null,null,"brrt_CollateralizedBalances",{"$f":"XBRLMap(K216,$P216,$Q$7,$Q$8,CONFIGURATION!$B$10,\"BMA\",CONFIGURATION!$B$1,\"bscr\",CONFIGURATION!$B$12)","v":"Mapped"},{"$f":"XBRLMap(M216,$P216,$R$7,$R$8,CONFIGURATION!$B$10,\"BMA\",CONFIGURATION!$B$1,\"bscr\",CONFIGURATION!$B$12)","v":"Mapped"},null,null,null,null,null,null,"bma_CollateralizedBalances"]
[]
[null,"Line 15","Encumbered assets for policyholder obligations"]
[null,null,null,null,null,null,null,null,null,null,null,null,null,null,null,"brrt_EncumberedAssetsAxis_brrt_EncumberedAssetsForPolicyholderObligationsMember"]
[null,null,"Asset",null,null,null,null,"Purpose of Encumbrance"]
[null,null,"             Cash",null,null,null,null,null,null,null,{"$f":"Import!E288","v":0},null,{"$f":"Import!G288","v":0},null,null,"brrt_CashAmountOfEncumbrance",{"$f":"XBRLMap(K221,$P221&\".\"&$P$219,$Q$7,$Q$8,CONFIGURATION!$B$10,\"BMA\",CONFIGURATION!$B$1,\"bscr\",CONFIGURATION!$B$12)","v":"Mapped"},{"$f":"XBRLMap(M221,$P221&\".\"&$P$219,$R$7,$R$8,CONFIGURATION!$B$10,\"BMA\",CONFIGURATION!$B$1,\"bscr\",CONFIGURATION!$B$12)","v":"Mapped"}]
[null,null,"             Total quoted investments",null,null,null,null,null,null,null,{"$f":"Import!E289","v":0},null,{"$f":"Import!G289","v":0},null,null,"brrt_QuotedInvestmentsAmountOfEncumbrance",{"$f":"XBRLMap(K222,$P222&\".\"&$P$219,$Q$7,$Q$8,CONFIGURATION!$B$10,\"BMA\",CONFIGURATION!$B$1,\"bscr\",CONFIGURATION!$B$12)","v":"Mapped"},{"$f":"XBRLMap(M222,$P222&\".\"&$P$219,$R$7,$R$8,CONFIGURATION!$B$10,\"BMA\",CONFIGURATION!$B$1,\"bscr\",CONFIGURATION!$B$12)","v":"Mapped"}]
[null,null,"             Total unquoted investments",null,null,null,null,null,null,null,{"$f":"Import!E290","v":0},null,{"$f":"Import!G290","v":0},null,null,"brrt_UnquotedInvestmentsAmountOfEncumbrance",{"$f":"XBRLMap(K223,$P223&\".\"&$P$219,$Q$7,$Q$8,CONFIGURATION!$B$10,\"BMA\",CONFIGURATION!$B$1,\"bscr\",CONFIGURATION!$B$12)","v":"Mapped"},{"$f":"XBRLMap(M223,$P223&\".\"&$P$219,$R$7,$R$8,CONFIGURATION!$B$10,\"BMA\",CONFIGURATION!$B$1,\"bscr\",CONFIGURATION!$B$12)","v":"Mapped"}]
[null,null,"             Funds held by ceding reinsurers",null,null,null,null,null,null,null,{"$f":"IF(SUM(F100,H100)=0,K79,F79+H79)","v":0},null,{"$f":"IF(SUM(G100,I100)=0,M79,G79+I79)","v":0},null,null,"brrt_FundsHeldByCedingReinsurersAmountOfEncumbrance",{"$f":"XBRLMap(K224,$P224&\".\"&$P$219,$Q$7,$Q$8,CONFIGURATION!$B$10,\"BMA\",CONFIGURATION!$B$1,\"bscr\",CONFIGURATION!$B$12)","v":"Mapped"},{"$f":"XBRLMap(M224,$P224&\".\"&$P$219,$R$7,$R$8,CONFIGURATION!$B$10,\"BMA\",CONFIGURATION!$B$1,\"bscr\",CONFIGURATION!$B$12)","v":"Mapped"}]
[null,null,"             Other asset types",null,null,null,null,null,null,null,{"$f":"Import!E292","v":0},null,{"$f":"Import!G292","v":0},null,null,"brrt_OtherAssetsTypesAmountOfEncumbrance",{"$f":"XBRLMap(K225,$P225&\".\"&$P$219,$Q$7,$Q$8,CONFIGURATION!$B$10,\"BMA\",CONFIGURATION!$B$1,\"bscr\",CONFIGURATION!$B$12)","v":"Mapped"},{"$f":"XBRLMap(M225,$P225&\".\"&$P$219,$R$7,$R$8,CONFIGURATION!$B$10,\"BMA\",CONFIGURATION!$B$1,\"bscr\",CONFIGURATION!$B$12)","v":"Mapped"}]
[null,null,"                      Total assets encumbered",null,null,null,null,null,null,null,{"$f":"SUM(K221:K225)","v":0},null,{"$f":"SUM(M221:M225)","v":0},null,null,"brrt_AssetsEncumberedAmountOfEncumbrance",{"$f":"XBRLMap(K226,$P226&\".\"&$P$219,$Q$7,$Q$8,CONFIGURATION!$B$10,\"BMA\",CONFIGURATION!$B$1,\"bscr\",CONFIGURATION!$B$12)","v":"Mapped"},{"$f":"XBRLMap(M226,$P226&\".\"&$P$219,$R$7,$R$8,CONFIGURATION!$B$10,\"BMA\",CONFIGURATION!$B$1,\"bscr\",CONFIGURATION!$B$12)","v":"Mapped"}]
[]
[null,"Line 15","Encumbered assets not securing policyholder obligations"]
[null,null,null,null,null,null,null,null,null,null,null,null,null,null,null,"brrt_EncumberedAssetsAxis_brrt_EncumberedAssetsNotSecuringPolicyholderObligationsMember"]
[null,null,"Asset",null,null,null,null,"Purpose of Encumbrance"]
[null,null,"             Cash",null,null,null,null,null,null,null,{"$f":"Import!E294","v":0},null,{"$f":"Import!G294","v":0},null,null,"brrt_CashAmountOfEncumbrance",{"$f":"XBRLMap(K231,$P231&\".\"&$P$229,$Q$7,$Q$8,CONFIGURATION!$B$10,\"BMA\",CONFIGURATION!$B$1,\"bscr\",CONFIGURATION!$B$12)","v":"Mapped"},{"$f":"XBRLMap(M231,$P231&\".\"&$P$229,$R$7,$R$8,CONFIGURATION!$B$10,\"BMA\",CONFIGURATION!$B$1,\"bscr\",CONFIGURATION!$B$12)","v":"Mapped"},null,"brrt_CashPurposeOfEncumbrance",null,null,{"$f":"XBRLMap(I231,$T231&\".\"&$P$229,$Q$7,$Q$8,CONFIGURATION!$B$10,\"BMA\",CONFIGURATION!$B$1,\"bscr\")","v":"Mapped"}]
[null,null,"             Total quoted investments",null,null,null,null,null,null,null,{"$f":"Import!E295","v":0},null,{"$f":"Import!G295","v":0},null,null,"brrt_QuotedInvestmentsAmountOfEncumbrance",{"$f":"XBRLMap(K232,$P232&\".\"&$P$229,$Q$7,$Q$8,CONFIGURATION!$B$10,\"BMA\",CONFIGURATION!$B$1,\"bscr\",CONFIGURATION!$B$12)","v":"Mapped"},{"$f":"XBRLMap(M232,$P232&\".\"&$P$229,$R$7,$R$8,CONFIGURATION!$B$10,\"BMA\",CONFIGURATION!$B$1,\"bscr\",CONFIGURATION!$B$12)","v":"Mapped"},null,"brrt_QuotedInvestmentsPurposeOfEncumbrance",null,null,{"$f":"XBRLMap(I232,$T232&\".\"&$P$229,$Q$7,$Q$8,CONFIGURATION!$B$10,\"BMA\",CONFIGURATION!$B$1,\"bscr\")","v":"Mapped"}]
[null,null,"             Total unquoted investments",null,null,null,null,null,null,null,{"$f":"Import!E296","v":0},null,{"$f":"Import!G296","v":0},null,null,"brrt_UnquotedInvestmentsAmountOfEncumbrance",{"$f":"XBRLMap(K233,$P233&\".\"&$P$229,$Q$7,$Q$8,CONFIGURATION!$B$10,\"BMA\",CONFIGURATION!$B$1,\"bscr\",CONFIGURATION!$B$12)","v":"Mapped"},{"$f":"XBRLMap(M233,$P233&\".\"&$P$229,$R$7,$R$8,CONFIGURATION!$B$10,\"BMA\",CONFIGURATION!$B$1,\"bscr\",CONFIGURATION!$B$12)","v":"Mapped"},null,"brrt_UnquotedInvestmentsPurposeOfEncumbrance",null,null,{"$f":"XBRLMap(I233,$T233&\".\"&$P$229,$Q$7,$Q$8,CONFIGURATION!$B$10,\"BMA\",CONFIGURATION!$B$1,\"bscr\")","v":"Mapped"}]
[null,null,"             Other asset types",null,null,null,null,null,null,null,{"$f":"Import!E297","v":0},null,{"$f":"Import!G297","v":0},null,null,"brrt_OtherAssetsTypesAmountOfEncumbrance",{"$f":"XBRLMap(K234,$P234&\".\"&$P$229,$Q$7,$Q$8,CONFIGURATION!$B$10,\"BMA\",CONFIGURATION!$B$1,\"bscr\",CONFIGURATION!$B$12)","v":"Mapped"},{"$f":"XBRLMap(M234,$P234&\".\"&$P$229,$R$7,$R$8,CONFIGURATION!$B$10,\"BMA\",CONFIGURATION!$B$1,\"bscr\",CONFIGURATION!$B$12)","v":"Mapped"},null,"brrt_OtherAssetsTypesPurposeOfEncumbrance",null,null,{"$f":"XBRLMap(I234,$T234&\".\"&$P$229,$Q$7,$Q$8,CONFIGURATION!$B$10,\"BMA\",CONFIGURATION!$B$1,\"bscr\")","v":"Mapped"}]
[null,null,"                      Total assets encumbered",null,null,null,null,null,null,null,{"$f":"SUM(K231:K234)","v":0},null,{"$f":"SUM(M231:M234)","v":0},null,null,"brrt_AssetsEncumberedAmountOfEncumbrance",{"$f":"XBRLMap(K235,$P235&\".\"&$P$229,$Q$7,$Q$8,CONFIGURATION!$B$10,\"BMA\",CONFIGURATION!$B$1,\"bscr\",CONFIGURATION!$B$12)","v":"Mapped"},{"$f":"XBRLMap(M235,$P235&\".\"&$P$229,$R$7,$R$8,CONFIGURATION!$B$10,\"BMA\",CONFIGURATION!$B$1,\"bscr\",CONFIGURATION!$B$12)","v":"Mapped"}]
[]
[null,"Line 36 ","Sundry liabilities",null,null,null,null,null,null,null,{"$f":"Import!E299","v":0},null,{"$f":"Import!G299","v":0},null,null,"brrt_CollateralizedBalances",{"$f":"XBRLMap(K237,$P237,$Q$7,$Q$8,CONFIGURATION!$B$10,\"BMA\",CONFIGURATION!$B$1,\"bscr\",CONFIGURATION!$B$12)","v":"Mapped"},{"$f":"XBRLMap(M237,$P237,$R$7,$R$8,CONFIGURATION!$B$10,\"BMA\",CONFIGURATION!$B$1,\"bscr\",CONFIGURATION!$B$12)","v":"Mapped"},null,null,null,null,null,null,"bma_CollateralizedBalances"]
[]
[null,"Line 37 ","Letters of Credit, Guarantees and other Instruments",null,null,null,null,null,null,null,{"$f":"Import!E300","v":0},null,{"$f":"Import!G300","v":0},null,null,"brrt_CollateralizedBalances",{"$f":"XBRLMap(K239,$P239,$Q$7,$Q$8,CONFIGURATION!$B$10,\"BMA\",CONFIGURATION!$B$1,\"bscr\",CONFIGURATION!$B$12)","v":"Mapped"},{"$f":"XBRLMap(M239,$P239,$R$7,$R$8,CONFIGURATION!$B$10,\"BMA\",CONFIGURATION!$B$1,\"bscr\",CONFIGURATION!$B$12)","v":"Mapped"},null,null,null,null,null,null,"bma_CollateralizedBalances"]
[]
[null,null,"General Business"]
[null,"Line 17","Reasons for the change in the net losses incurred and net loss expenses incurred related to prior years and indicate whether additional premiums or return premiums have been accrued as a result of the prior year effects. ",null,null,null,null,null,{"$f":"Import!E301","v":0}]
[]
[]
[null,"Line 17","Loss and loss expense provisions total restricted assets - an amount equal to the value of all that are held for security or collateral against a liability or contingent liabilit"]
[]
[]
[null,"Line 17","Loss and loss expense provision unsecured policyholder obligations - an amount equal to all policyholder obligations that are not secured by assets or collateral"]
[]
[]
[null,"Line 17","Gross loss and loss expense provisions at beginning of year",null,null,null,null,null,null,null,{"$f":"Import!E302","v":0},null,{"$f":"Import!G302","v":0}]
[]
[null,null,"Less: Reinsurance recoverable at beginning of year",null,null,null,null,null,null,null,{"$f":"Import!E303","v":0},null,{"$f":"Import!G303","v":0}]
[]
[null,null,"Net loss and loss expense provisions at beginning of year",null,null,null,null,null,null,null,{"$f":"K251-K253","v":0},null,{"$f":"M251-M253","v":0}]
[]
[null,null,"Acquisition / Sale of loss reserves (net):",null,null,null,null,null,null,null,{"$f":"Import!E305","v":0},null,{"$f":"Import!G305","v":0}]
[]
[null,null,"Net losses incurred and net loss expenses incurred related to:"]
[]
[null,null,"               Current year",null,null,null,null,null,null,null,{"$f":"Import!E306","v":0},null,{"$f":"Import!G306","v":0}]
[null,null,"               Prior years",null,null,null,null,null,null,null,{"$f":"Import!E307","v":0},null,{"$f":"Import!G307","v":0}]
[]
[null,null,"Total net incurred losses & loss expenses",null,null,null,null,null,null,null,{"$f":"SUM(K261:K262)","v":0},null,{"$f":"SUM(M261:M262)","v":0}]
[]
[null,null,"Net losses and loss expenses paid or payable related to:"]
[]
[null,null,"               Current year",null,null,null,null,null,null,null,{"$f":"Import!E309","v":0},null,{"$f":"Import!G309","v":0}]
[null,null,"               Prior years",null,null,null,null,null,null,null,{"$f":"Import!E310","v":0},null,{"$f":"Import!G310","v":0}]
[]
[null,null,"Total losses and loss expenses paid or payable",null,null,null,null,null,null,null,{"$f":"SUM(K268:K269)","v":0},null,{"$f":"SUM(M268:M269)","v":0}]
[]
[null,null,"Foreign exchange and other",null,null,null,null,null,null,null,{"$f":"Import!E312","v":0},null,{"$f":"Import!G312","v":0}]
[]
[null,null,"Net loss and loss expense provisions at end of year",null,null,null,null,null,null,null,{"$f":"K255+K257+K264+K271+K273","v":0},null,{"$f":"M255+M257+M264+M271+M273","v":0}]
[]
[null,null,"Add: Reinsurance recoverable at end of year",null,null,null,null,null,null,null,{"$f":"Import!E314","v":0},null,{"$f":"Import!G314","v":0}]
[]
[null,null,"Gross loss and loss expense provisions at end of year",null,null,null,null,null,null,null,{"$f":"K275+K277","v":0},null,{"$f":"M275+M277","v":0}]
[]
[null,null,null,null,null,null,null,null,null,null,{"$f":"IF(K282=\"TRUE\",HYPERLINK(\"#'Form 1SFS'!F117\",\"TRUE\"),HYPERLINK(\"#'Form 1SFS'!F117\",\"FALSE\"))","v":"TRUE"},null,{"$f":"IF(M282=\"TRUE\",HYPERLINK(\"#'Form 1SFS'!G117\",\"TRUE\"),HYPERLINK(\"#'Form 1SFS'!G117\",\"FALSE\"))","v":"TRUE"}]
[null,null,null,null,null,null,null,null,null,null,{"$f":"IF(ROUND((K279-F117),0)=0,\"TRUE\",\"FALSE\")","v":"TRUE"},null,{"$f":"IF(ROUND((M279-G117),0)=0,\"TRUE\",\"FALSE\")","v":"TRUE"}]
[null,null,"Difference",null,null,null,null,null,null,null,{"$f":"ROUND(F117-K279,0)","v":0},null,{"$f":"ROUND(G117-M279,0)","v":0}]
[]
[null,null,null,null,null,null,null,null,null,null,{"$f":"IF(K281=\"False\",\"Does not equal Line 17(a)\",\"\")","v":""},null,{"$f":"IF(M281=\"False\",\"Does not equal Line 17(a)\",\"\")","v":""}]
[]
[null,null,"Long-Term Business"]
[]
[null,"Line 27","Total gross long-term business insurance reserves at beginning of year",null,null,null,null,null,null,null,null,null,null,null,null,"brrt_InsuranceReservesGross",{"$f":"XBRLMap(K289,$P289,$Q$7,$Q$7,CONFIGURATION!$B$10,\"BMA\",CONFIGURATION!$B$1,\"bscr\",CONFIGURATION!$B$12)","v":"Mapped"},{"$f":"XBRLMap(M289,$P289,$R$7,$R$7,CONFIGURATION!$B$10,\"BMA\",CONFIGURATION!$B$1,\"bscr\",CONFIGURATION!$B$12)","v":"Mapped"}]
[null,null,null,null,null,null,null,null,null,null,null,null,null,null,null,null,{"$f":"XBRLMap(K290,$P290,$Q$7,$Q$7,CONFIGURATION!$B$10,\"BMA\",CONFIGURATION!$B$1,\"bscr\",CONFIGURATION!$B$12)","v":"-"},{"$f":"XBRLMap(M290,$P290,$R$7,$R$7,CONFIGURATION!$B$10,\"BMA\",CONFIGURATION!$B$1,\"bscr\",CONFIGURATION!$B$12)","v":"-"}]
[null,null,"Less: Reinsurance recoverable on long-term business at beginning of year",null,null,null,null,null,null,null,null,null,null,null,null,"brrt_ReinsuranceRecoverable",{"$f":"XBRLMap(K291,$P291,$Q$7,$Q$7,CONFIGURATION!$B$10,\"BMA\",CONFIGURATION!$B$1,\"bscr\",CONFIGURATION!$B$12)","v":"Mapped"},{"$f":"XBRLMap(M291,$P291,$R$7,$R$7,CONFIGURATION!$B$10,\"BMA\",CONFIGURATION!$B$1,\"bscr\",CONFIGURATION!$B$12)","v":"Mapped"}]
[null,null,null,null,null,null,null,null,null,null,null,null,null,null,null,null,{"$f":"XBRLMap(K292,$P292,$Q$7,$Q$7,CONFIGURATION!$B$10,\"BMA\",CONFIGURATION!$B$1,\"bscr\",CONFIGURATION!$B$12)","v":"-"},{"$f":"XBRLMap(M292,$P292,$R$7,$R$7,CONFIGURATION!$B$10,\"BMA\",CONFIGURATION!$B$1,\"bscr\",CONFIGURATION!$B$12)","v":"-"}]
[null,null,"Total net long-term business insurance reserves at beginning of year",null,null,null,null,null,null,null,{"$f":"K289-K291","v":0},null,{"$f":"M289-M291","v":0},null,null,"brrt_InsuranceReservesNet",{"$f":"XBRLMap(K293,$P293,$Q$7,$Q$7,CONFIGURATION!$B$10,\"BMA\",CONFIGURATION!$B$1,\"bscr\",CONFIGURATION!$B$12)","v":"Mapped"},{"$f":"XBRLMap(M293,$P293,$R$7,$R$7,CONFIGURATION!$B$10,\"BMA\",CONFIGURATION!$B$1,\"bscr\",CONFIGURATION!$B$12)","v":"Mapped"}]
[]
[null,null,"Long-term business deductions related to:"]
[]
[null,null,"               Current year"]
[null,null,"               Prior years"]
[]
[null,null,"Total long-term business deductions",null,null,null,null,null,null,null,{"$f":"SUM(K297:K298)","v":0},null,{"$f":"SUM(M297:M298)","v":0}]
[]
[null,null,"Less: Long-term business deductions paid or payable related to:"]
[]
[null,null,"               Current year"]
[null,null,"               Prior years"]
[]
[null,null,"Total long-term business deductions paid or payable",null,null,null,null,null,null,null,{"$f":"SUM(K304:K305)","v":0},null,{"$f":"SUM(M304:M305)","v":0}]
[]
[null,null,"Total net long-term business insurance reserves at end of year",null,null,null,null,null,null,null,{"$f":"K293+K300+K307","v":0},null,{"$f":"M293+M300+M307","v":0}]
[]
[null,null,"Add: Reinsurance recoverable on long-term business at end of year"]
[null,null,null,null,null,null,null,null,null,null,null,null,null,null,null,null,{"$f":"XBRLMap(K312,$P312,$Q$8,$Q$8,CONFIGURATION!$B$10,\"BMA\",CONFIGURATION!$B$1,\"bscr\",CONFIGURATION!$B$12)","v":"-"},{"$f":"XBRLMap(M312,$P312,$R$8,$R$8,CONFIGURATION!$B$10,\"BMA\",CONFIGURATION!$B$1,\"bscr\",CONFIGURATION!$B$12)","v":"-"}]
[null,null,"Total gross long-term business insurance reserves at end of year",null,null,null,null,null,null,null,{"$f":"K309+K311","v":0},null,{"$f":"M309+M311","v":0},null,null,"brrt_InsuranceReservesNet",{"$f":"XBRLMap(K313,$P313,$Q$8,$Q$8,CONFIGURATION!$B$10,\"BMA\",CONFIGURATION!$B$1,\"bscr\",CONFIGURATION!$B$12)","v":"Mapped"},{"$f":"XBRLMap(M313,$P313,$R$8,$R$8,CONFIGURATION!$B$10,\"BMA\",CONFIGURATION!$B$1,\"bscr\",CONFIGURATION!$B$12)","v":"Mapped"}]
[]
[null,null,null,null,null,null,null,null,null,null,{"$f":"IF((K313-K147)=0,TRUE,FALSE)","v":true},null,{"$f":"IF((M313-M147)=0,TRUE,FALSE)","v":true}]
[]
[null,null,"Difference",null,null,null,null,null,null,null,{"$f":"K147-K313","v":0},null,{"$f":"M147-M313","v":0}]
[]
[null,"Line 27",null,"Insurance Contracts",null,null,null,null,null,null," Investment Contracts "]
[null,"CURRENT YEAR",null,"Gross","Reinsurance",null,null,null,null,null,"Gross",null,"Reinsurance"]
[null,"Balance - Beginning of Year",null,{"$f":"Import!E316","v":0},{"$f":"Import!E323","v":0},null,null,null,null,null,{"$f":"Import!E330","v":0},null,{"$f":"Import!E337","v":0}]
[null,"Impact of Terminations",null,{"$f":"Import!E317","v":0},{"$f":"Import!E324","v":0},null,null,null,null,null,{"$f":"Import!E331","v":0},null,{"$f":"Import!E338","v":0}]
[null,"Impact of New Business",null,{"$f":"Import!E318","v":0},{"$f":"Import!E325","v":0},null,null,null,null,null,{"$f":"Import!E332","v":0},null,{"$f":"Import!E339","v":0}]
[null,"Normal Change in force",null,{"$f":"Import!E319","v":0},{"$f":"Import!E326","v":0},null,null,null,null,null,{"$f":"Import!E333","v":0},null,{"$f":"Import!E340","v":0}]
[null,"Management Actions and Changes in Assumptions",null,{"$f":"Import!E320","v":0},{"$f":"Import!E327","v":0},null,null,null,null,null,{"$f":"Import!E334","v":0},null,{"$f":"Import!E341","v":0}]
[null,"Impact of Foreign Exchange rate changes",null,{"$f":"Import!E321","v":0},{"$f":"Import!E328","v":0},null,null,null,null,null,{"$f":"Import!E335","v":0},null,{"$f":"Import!E342","v":0}]
[null,"Balance - End of Year",null,{"$f":"SUM(D321:D326)","v":0},{"$f":"SUM(E321:E326)","v":0},null,null,null,null,null,{"$f":"SUM(K321:K326)","v":0},null,{"$f":"SUM(M321:M326)","v":0}]
[]
[null,"PRIOR YEAR"]
[null,"Balance - Beginning of Year",null,{"$f":"Import!G316","v":0},{"$f":"Import!G323","v":0},null,null,null,null,null,{"$f":"Import!G330","v":0},null,{"$f":"Import!G337","v":0}]
[null,"Impact of Terminations",null,{"$f":"Import!G317","v":0},{"$f":"Import!G324","v":0},null,null,null,null,null,{"$f":"Import!G331","v":0},null,{"$f":"Import!G338","v":0}]
[null,"Impact of New Business",null,{"$f":"Import!G318","v":0},{"$f":"Import!G325","v":0},null,null,null,null,null,{"$f":"Import!G332","v":0},null,{"$f":"Import!G339","v":0}]
[null,"Normal Change in force",null,{"$f":"Import!G319","v":0},{"$f":"Import!G326","v":0},null,null,null,null,null,{"$f":"Import!G333","v":0},null,{"$f":"Import!G340","v":0}]
[null,"Management Actions and Changes in Assumptions",null,{"$f":"Import!G320","v":0},{"$f":"Import!G327","v":0},null,null,null,null,null,{"$f":"Import!G334","v":0},null,{"$f":"Import!G341","v":0}]
[null,"Impact of Foreign Exchange rate changes",null,{"$f":"Import!G321","v":0},{"$f":"Import!G328","v":0},null,null,null,null,null,{"$f":"Import!G335","v":0},null,{"$f":"Import!G342","v":0}]
[null,"Balance - End of Year",null,{"$f":"SUM(D330:D335)","v":0},{"$f":"SUM(E330:E335)","v":0},null,null,null,null,null,{"$f":"SUM(K330:K335)","v":0},null,{"$f":"SUM(M330:M335)","v":0}]

{"sheet":"Form 2SFS","index":19,"n_rows":133,"n_cols":26,"rows_kept":133,"cut":false,"hidden":false,"merged":[[1,4,3,10],[5,8,5,10],[5,12,5,14],[5,4,5,6],[4,4,4,6],[4,8,4,10],[4,12,4,14]]}
[null,"STATUTORY STATEMENT OF INCOME ",null,null,null,null,null,null,null,null,null,null,null,null,{"$f":"HYPERLINK(\"#'Index'!A1\",\"Return to Index\")","v":"Return to Index"}]
[null,{"$f":"'Form 4EBS'!B2","v":"Enter Company Name"},null,null,"Note if an insurer does not have any entities to consolidate, select \"No Subsidiaries\" on the Insurer Information tab (This cell is editable for deletion)",null,null,null,null,null,null,null,null,null,null,null,null,null,null,null,null,null,null,null,null,"bma_BusinessTypeAxis"]
[null,"For the year ending",{"$f":"'Form 4EBS'!C3","v":"2019-12-31"},null,null,null,null,null,null,null,null,null,null,null,"FORM 2SFS",null,null,null,null,null,null,null,null,null,null,"bma_LongTermBusinessMember"]
[null,{"$f":"\"Expressed in \" & IF(CONFIGURATION!$B$12>1,\" ['\"&MID(CONFIGURATION!$B$12,2,LEN(CONFIGURATION!$B$12))&\"s]\",\"\")","v":"Expressed in  ['000s]"},{"$f":"'Form 4EBS'!C4","v":"United States Dollars"}]
[null,null,null,null,"General Business",null,null,null,"Long-Term Business",null,null,null,"General and Long-Term Business",null,null,null,null,null,{"$f":"IF(M7=\"\",\"\",TEXT(DATE(YEAR(M7+1)-1,MONTH(M7+1),DAY(M7+1)),\"mm/dd/yyyy\"))","v":"01/01/2019"},{"$f":"IF(O7=\"\",\"\",TEXT(DATE(YEAR(O7+1)-1,MONTH(O7+1),DAY(O7+1)),\"mm/dd/yyyy\"))","v":"01/01/2018"}]
[null,"STMT.",null,null,"Unconsolidated",null,null,null,"Unconsolidated",null,null,null,"Consolidated",null,null,null,null,null,{"$f":"IF(M7=\"\",\"\",TEXT(M7,\"mm/dd/yyyy\"))","v":"12/31/2019"},{"$f":"IF(O7=\"\",\"\",TEXT(O7,\"mm/dd/yyyy\"))","v":"12/31/2018"}]
[null,"LINE No.",null,null,{"$f":"'Form 4EBS'!F6","v":"2019-12-31"},null,{"$f":"'Form 4EBS'!H6","v":"2018-12-31"},null,{"$f":"'Form 4EBS'!F6","v":"2019-12-31"},null,{"$f":"'Form 4EBS'!H6","v":"2018-12-31"},null,{"$f":"'Form 4EBS'!F6","v":"2019-12-31"},null,{"$f":"'Form 4EBS'!H6","v":"2018-12-31"},null,null,"",null,null,null,null,null,null,null,""]
[null,null,null,null,"('000)",null,"('000)",null,"('000)",null,"('000)",null,"('000)",null,"('000)",null,null,"",null,null,null,null,null,null,null,""]
[null,null,"GENERAL BUSINESS UNDERWRITING INCOME"]
[null,null,null,null,null,null,null,null,null,null,null,null,null,null,null,null,null,"",null,null,null,null,null,null,null,""]
[null,"1.","GROSS PREMIUMS WRITTEN:"]
[null,null,"(a) Direct gross premiums written",null,{"$f":"Import!E397","v":0},null,{"$f":"Import!G397","v":0},null,null,null,null,null,{"$f":"Import!I362","v":0},null,{"$f":"Import!K362","v":0}]
[null,null,"(b) Assumed gross premiums written",null,{"$f":"Import!E398","v":0},null,{"$f":"Import!G398","v":0},null,null,null,null,null,{"$f":"Import!I363","v":0},null,{"$f":"Import!K363","v":0}]
[null,null,"(c) Total gross premiums written",null,{"$f":"SUM(E12:E13)","v":0},null,{"$f":"SUM(G12:G13)","v":0},null,null,null,null,null,{"$f":"SUM(M12:M13)","v":0},null,{"$f":"SUM(O12:O13)","v":0}]
[]
[null,"2.","REINSURANCE PREMIUMS CEDED",null,{"$f":"Import!E399","v":0},null,{"$f":"Import!G399","v":0},null,null,null,null,null,{"$f":"Import!I364","v":0},null,{"$f":"Import!K364","v":0}]
[]
[null,"3.","NET PREMIUMS WRITTEN",null,{"$f":"E14-E16","v":0},null,{"$f":"G14-G16","v":0},null,null,null,null,null,{"$f":"M14-M16","v":0},null,{"$f":"O14-O16","v":0}]
[]
[null,"4.","INCREASE (DECREASE) IN UNEARNED PREMIUMS",null,{"$f":"Import!E400","v":0},null,{"$f":"Import!G400","v":0},null,null,null,null,null,{"$f":"Import!I365","v":0},null,{"$f":"Import!K365","v":0}]
[]
[null,"5.","NET PREMIUMS EARNED",null,{"$f":"E18+E20","v":0},null,{"$f":"G18+G20","v":0},null,null,null,null,null,{"$f":"M18+M20","v":0},null,{"$f":"O18+O20","v":0}]
[]
[null,"6.","OTHER INSURANCE INCOME",null,{"$f":"Import!E401","v":0},null,{"$f":"Import!G401","v":0},null,null,null,null,null,{"$f":"Import!I366","v":0},null,{"$f":"Import!K366","v":0}]
[]
[null,"7.",null,null,{"$f":"E22+E24","v":0},null,{"$f":"G22+G24","v":0},null,null,null,null,null,{"$f":"M22+M24","v":0},null,{"$f":"O22+O24","v":0}]
[]
[null,null,"GENERAL BUSINESS UNDERWRITING EXPENSES"]
[]
[null,"8.","NET LOSSES INCURRED AND NET LOSS EXPENSES INCURRED",null,{"$f":"Import!E402","v":0},null,{"$f":"Import!G402","v":0},null,null,null,null,null,{"$f":"Import!I367","v":0},null,{"$f":"Import!K367","v":0}]
[]
[null,"9.","COMMISSIONS AND BROKERAGE",null,{"$f":"Import!E403","v":0},null,{"$f":"Import!G403","v":0},null,null,null,null,null,{"$f":"Import!I368","v":0},null,{"$f":"Import!K368","v":0}]
[]
[null,"10.",null,null,{"$f":"E30+E32","v":0},null,{"$f":"G30+G32","v":0},null,null,null,null,null,{"$f":"M30+M32","v":0},null,{"$f":"O30+O32","v":0}]
[]
[null,"11.","NET UNDERWRITING PROFIT (LOSS) - GENERAL BUSINESS",null,{"$f":"E26-E34","v":0},null,{"$f":"G26-G34","v":0},null,null,null,null,null,{"$f":"M26-M34","v":0},null,{"$f":"O26-O34","v":0}]
[]
[null,null,"LONG-TERM BUSINESS UNDERWRITING INCOME"]
[]
[null,"12.","GROSS PREMIUMS AND OTHER CONSIDERATIONS:"]
[null,null,"(a) Direct gross premiums and other considerations",null,null,null,null,null,{"$f":"Import!E369","v":0},null,{"$f":"Import!G369","v":0},null,{"$f":"Import!I369","v":0},null,{"$f":"Import!K369","v":0},null,null,"brrt_GrossPremiumsWrittenAndOtherConsiderationsDirect",{"$f":"XBRLMap(M41,$R41,$S$5,$S$6,CONFIGURATION!$B$10,\"BMA\",CONFIGURATION!$B$1,\"bscr\",CONFIGURATION!$B$12)","v":"Mapped"},{"$f":"XBRLMap(O41,$R41,$T$5,$T$6,CONFIGURATION!$B$10,\"BMA\",CONFIGURATION!$B$1,\"bscr\",CONFIGURATION!$B$12)","v":"Mapped"},null,null,null,null,null,"bma_DirectGrossPremiumsWritten"]
[null,null,"(b) Assumed gross premiums and other considerations",null,null,null,null,null,{"$f":"Import!E370","v":0},null,{"$f":"Import!G370","v":0},null,{"$f":"Import!I370","v":0},null,{"$f":"Import!K370","v":0},null,null,"brrt_GrossPremiumsWrittenAndOtherConsiderationsAssumed",{"$f":"XBRLMap(M42,$R42,$S$5,$S$6,CONFIGURATION!$B$10,\"BMA\",CONFIGURATION!$B$1,\"bscr\",CONFIGURATION!$B$12)","v":"Mapped"},{"$f":"XBRLMap(O42,$R42,$T$5,$T$6,CONFIGURATION!$B$10,\"BMA\",CONFIGURATION!$B$1,\"bscr\",CONFIGURATION!$B$12)","v":"Mapped"},null,null,null,null,null,"bma_AssumedGrossPremiumsWritten"]
[null,null,"(c) Total gross premiums and other considerations",null,null,null,null,null,{"$f":"SUM(I41:I42)","v":0},null,{"$f":"SUM(K41:K42)","v":0},null,{"$f":"SUM(M41:M42)","v":0},null,{"$f":"SUM(O41:O42)","v":0},null,null,"brrt_GrossPremiumsWrittenAndOtherConsiderations",{"$f":"XBRLMap(M43,$R43,$S$5,$S$6,CONFIGURATION!$B$10,\"BMA\",CONFIGURATION!$B$1,\"bscr\",CONFIGURATION!$B$12)","v":"Mapped"},{"$f":"XBRLMap(O43,$R43,$T$5,$T$6,CONFIGURATION!$B$10,\"BMA\",CONFIGURATION!$B$1,\"bscr\",CONFIGURATION!$B$12)","v":"Mapped"},null,null,null,null,null,"bma_TotalGrossPremiumsWritten"]
[null,null,null,null,null,null,null,null,null,null,null,null,null,null,null,null,null,"",{"$f":"XBRLMap(M44,IF($R44=\"\",\"\",$R44),$S$5,$S$6,CONFIGURATION!$B$10,\"BMA\",CONFIGURATION!$B$1,\"bscr\",CONFIGURATION!$B$12)","v":"-"},{"$f":"XBRLMap(O44,IF($R44=\"\",\"\",$R44),$T$5,$T$6,CONFIGURATION!$B$10,\"BMA\",CONFIGURATION!$B$1,\"bscr\",CONFIGURATION!$B$12)","v":"-"},null,null,null,null,null,""]
[null,"13.","PREMIUMS CEDED",null,null,null,null,null,{"$f":"Import!E371","v":0},null,{"$f":"Import!G371","v":0},null,{"$f":"Import!I371","v":0},null,{"$f":"Import!K371","v":0},null,null,"brrt_ReinsurancePremiumsCeded",{"$f":"XBRLMap(M45,IF($R45=\"\",\"\",$R45),$S$5,$S$6,CONFIGURATION!$B$10,\"BMA\",CONFIGURATION!$B$1,\"bscr\",CONFIGURATION!$B$12)","v":"Mapped"},{"$f":"XBRLMap(O45,IF($R45=\"\",\"\",$R45),$T$5,$T$6,CONFIGURATION!$B$10,\"BMA\",CONFIGURATION!$B$1,\"bscr\",CONFIGURATION!$B$12)","v":"Mapped"},null,null,null,null,null,"bma_ReinsurancePremiumsCeded"]
[null,null,null,null,null,null,null,null,null,null,null,null,null,null,null,null,null,"",{"$f":"XBRLMap(M46,IF($R46=\"\",\"\",$R46),$S$5,$S$6,CONFIGURATION!$B$10,\"BMA\",CONFIGURATION!$B$1,\"bscr\",CONFIGURATION!$B$12)","v":"-"},{"$f":"XBRLMap(O46,IF($R46=\"\",\"\",$R46),$T$5,$T$6,CONFIGURATION!$B$10,\"BMA\",CONFIGURATION!$B$1,\"bscr\",CONFIGURATION!$B$12)","v":"-"},null,null,null,null,null,""]
[null,"14.","NET PREMIUMS AND OTHER CONSIDERATIONS:",null,null,null,null,null,null,null,null,null,null,null,null,null,null,null,{"$f":"XBRLMap(M47,IF($R47=\"\",\"\",$R47),$S$5,$S$6,CONFIGURATION!$B$10,\"BMA\",CONFIGURATION!$B$1,\"bscr\",CONFIGURATION!$B$12)","v":"-"},{"$f":"XBRLMap(O47,IF($R47=\"\",\"\",$R47),$T$5,$T$6,CONFIGURATION!$B$10,\"BMA\",CONFIGURATION!$B$1,\"bscr\",CONFIGURATION!$B$12)","v":"-"}]
[null,null,"(a) Life",null,null,null,null,null,{"$f":"Import!E372","v":0},null,{"$f":"Import!G372","v":0},null,{"$f":"Import!I372","v":0},null,{"$f":"Import!K372","v":0},null,null,"brrt_NetPremiumsWrittenAndOtherConsiderationsLife",{"$f":"XBRLMap(M48,IF($R48=\"\",\"\",$R48),$S$5,$S$6,CONFIGURATION!$B$10,\"BMA\",CONFIGURATION!$B$1,\"bscr\",CONFIGURATION!$B$12)","v":"Mapped"},{"$f":"XBRLMap(O48,IF($R48=\"\",\"\",$R48),$T$5,$T$6,CONFIGURATION!$B$10,\"BMA\",CONFIGURATION!$B$1,\"bscr\",CONFIGURATION!$B$12)","v":"Mapped"},null,null,null,null,null,"bma_NetPremiumsAndOtherConsiderationsaLife"]
[null,null,"(b) Annuities",null,null,null,null,null,{"$f":"Import!E373","v":0},null,{"$f":"Import!G373","v":0},null,{"$f":"Import!I373","v":0},null,{"$f":"Import!K373","v":0},null,null,"brrt_NetPremiumsWrittenAndOtherConsiderationsAnnuities",{"$f":"XBRLMap(M49,IF($R49=\"\",\"\",$R49),$S$5,$S$6,CONFIGURATION!$B$10,\"BMA\",CONFIGURATION!$B$1,\"bscr\",CONFIGURATION!$B$12)","v":"Mapped"},{"$f":"XBRLMap(O49,IF($R49=\"\",\"\",$R49),$T$5,$T$6,CONFIGURATION!$B$10,\"BMA\",CONFIGURATION!$B$1,\"bscr\",CONFIGURATION!$B$12)","v":"Mapped"},null,null,null,null,null,"bma_NetPremiumsAndOtherConsiderationsbAnnuities"]
[null,null,"(c) Accident and health",null,null,null,null,null,{"$f":"Import!E374","v":0},null,{"$f":"Import!G374","v":0},null,{"$f":"Import!I374","v":0},null,{"$f":"Import!K374","v":0},null,null,"brrt_NetPremiumsWrittenAndOtherConsiderationsAccidentAndHealth",{"$f":"XBRLMap(M50,IF($R50=\"\",\"\",$R50),$S$5,$S$6,CONFIGURATION!$B$10,\"BMA\",CONFIGURATION!$B$1,\"bscr\",CONFIGURATION!$B$12)","v":"Mapped"},{"$f":"XBRLMap(O50,IF($R50=\"\",\"\",$R50),$T$5,$T$6,CONFIGURATION!$B$10,\"BMA\",CONFIGURATION!$B$1,\"bscr\",CONFIGURATION!$B$12)","v":"Mapped"},null,null,null,null,null,"bma_NetPremiumsAndOtherConsiderationscAccidentAndHealth"]
[null,null,"(d) Total net premiums and other considerations",null,null,null,null,null,{"$f":"SUM(I48:I50)","v":0},null,{"$f":"SUM(K48:K50)","v":0},null,{"$f":"SUM(M48:M50)","v":0},null,{"$f":"SUM(O48:O50)","v":0},null,null,"brrt_NetPremiumsWrittenAndOtherConsiderations",{"$f":"XBRLMap(M51,IF($R51=\"\",\"\",$R51),$S$5,$S$6,CONFIGURATION!$B$10,\"BMA\",CONFIGURATION!$B$1,\"bscr\",CONFIGURATION!$B$12)","v":"Mapped"},{"$f":"XBRLMap(O51,IF($R51=\"\",\"\",$R51),$T$5,$T$6,CONFIGURATION!$B$10,\"BMA\",CONFIGURATION!$B$1,\"bscr\",CONFIGURATION!$B$12)","v":"Mapped"},null,null,null,null,null,"bma_NetPremiumsAndOtherConsiderationsdTotalNetPremiumsAndOtherConsiderations"]
[null,null,null,null,null,null,null,null,null,null,null,null,null,null,null,null,null,"",{"$f":"XBRLMap(M52,IF($R52=\"\",\"\",$R52),$S$5,$S$6,CONFIGURATION!$B$10,\"BMA\",CONFIGURATION!$B$1,\"bscr\",CONFIGURATION!$B$12)","v":"-"},{"$f":"XBRLMap(O52,IF($R52=\"\",\"\",$R52),$T$5,$T$6,CONFIGURATION!$B$10,\"BMA\",CONFIGURATION!$B$1,\"bscr\",CONFIGURATION!$B$12)","v":"-"}]
[null,"15.","OTHER INSURANCE INCOME",null,null,null,null,null,{"$f":"Import!E375","v":0},null,{"$f":"Import!G375","v":0},null,{"$f":"Import!I375","v":0},null,{"$f":"Import!K375","v":0},null,null,"brrt_OtherInsuranceIncome",{"$f":"XBRLMap(M53,IF($R53=\"\",\"\",$R53),$S$5,$S$6,CONFIGURATION!$B$10,\"BMA\",CONFIGURATION!$B$1,\"bscr\",CONFIGURATION!$B$12)","v":"Mapped"},{"$f":"XBRLMap(O53,IF($R53=\"\",\"\",$R53),$T$5,$T$6,CONFIGURATION!$B$10,\"BMA\",CONFIGURATION!$B$1,\"bscr\",CONFIGURATION!$B$12)","v":"Mapped"},null,null,null,null,null,"bma_OtherInsuranceIncome"]
[null,null,null,null,null,null,null,null,null,null,null,null,null,null,null,null,null,null,{"$f":"XBRLMap(M54,IF($R54=\"\",\"\",$R54),$S$5,$S$6,CONFIGURATION!$B$10,\"BMA\",CONFIGURATION!$B$1,\"bscr\",CONFIGURATION!$B$12)","v":"-"},{"$f":"XBRLMap(O54,IF($R54=\"\",\"\",$R54),$T$5,$T$6,CONFIGURATION!$B$10,\"BMA\",CONFIGURATION!$B$1,\"bscr\",CONFIGURATION!$B$12)","v":"-"},null,null,null,null,null,""]
[null,"16.",null,null,null,null,null,null,{"$f":"I51+I53","v":0},null,{"$f":"K51+K53","v":0},null,{"$f":"M51+M53","v":0},null,{"$f":"O51+O53","v":0},null,null,"brrt_UnderwritingIncome",{"$f":"XBRLMap(M55,IF($R55=\"\",\"\",$R55),$S$5,$S$6,CONFIGURATION!$B$10,\"BMA\",CONFIGURATION!$B$1,\"bscr\",CONFIGURATION!$B$12)","v":"Mapped"},{"$f":"XBRLMap(O55,IF($R55=\"\",\"\",$R55),$T$5,$T$6,CONFIGURATION!$B$10,\"BMA\",CONFIGURATION!$B$1,\"bscr\",CONFIGURATION!$B$12)","v":"Mapped"},null,null,null,null,null,"bma_UnderwritingIncomeTotal"]
[null,null,null,null,null,null,null,null,null,null,null,null,null,null,null,null,null,"",{"$f":"XBRLMap(M56,IF($R56=\"\",\"\",$R56),$S$5,$S$6,CONFIGURATION!$B$10,\"BMA\",CONFIGURATION!$B$1,\"bscr\",CONFIGURATION!$B$12)","v":"-"},{"$f":"XBRLMap(O56,IF($R56=\"\",\"\",$R56),$T$5,$T$6,CONFIGURATION!$B$10,\"BMA\",CONFIGURATION!$B$1,\"bscr\",CONFIGURATION!$B$12)","v":"-"},null,null,null,null,null,""]
[null,null,"DEDUCTIONS",null,null,null,null,null,null,null,null,null,null,null,null,null,null,"",{"$f":"XBRLMap(M57,IF($R57=\"\",\"\",$R57),$S$5,$S$6,CONFIGURATION!$B$10,\"BMA\",CONFIGURATION!$B$1,\"bscr\",CONFIGURATION!$B$12)","v":"-"},{"$f":"XBRLMap(O57,IF($R57=\"\",\"\",$R57),$T$5,$T$6,CONFIGURATION!$B$10,\"BMA\",CONFIGURATION!$B$1,\"bscr\",CONFIGURATION!$B$12)","v":"-"}]
[null,null,null,null,null,null,null,null,null,null,null,null,null,null,null,null,null,"",{"$f":"XBRLMap(M58,IF($R58=\"\",\"\",$R58),$S$5,$S$6,CONFIGURATION!$B$10,\"BMA\",CONFIGURATION!$B$1,\"bscr\",CONFIGURATION!$B$12)","v":"-"},{"$f":"XBRLMap(O58,IF($R58=\"\",\"\",$R58),$T$5,$T$6,CONFIGURATION!$B$10,\"BMA\",CONFIGURATION!$B$1,\"bscr\",CONFIGURATION!$B$12)","v":"-"}]
[null,"17.","CLAIMS - LIFE",null,null,null,null,null,{"$f":"Import!E376","v":0},null,{"$f":"Import!G376","v":0},null,{"$f":"Import!I376","v":0},null,{"$f":"Import!K376","v":0},null,null,"brrt_DeductionsClaimsLife",{"$f":"XBRLMap(M59,IF($R59=\"\",\"\",$R59),$S$5,$S$6,CONFIGURATION!$B$10,\"BMA\",CONFIGURATION!$B$1,\"bscr\",CONFIGURATION!$B$12)","v":"Mapped"},{"$f":"XBRLMap(O59,IF($R59=\"\",\"\",$R59),$T$5,$T$6,CONFIGURATION!$B$10,\"BMA\",CONFIGURATION!$B$1,\"bscr\",CONFIGURATION!$B$12)","v":"Mapped"},null,null,null,null,null,"bma_DeductionsClaimsLife"]
[null,null,null,null,null,null,null,null,null,null,null,null,null,null,null,null,null,"",{"$f":"XBRLMap(M60,IF($R60=\"\",\"\",$R60),$S$5,$S$6,CONFIGURATION!$B$10,\"BMA\",CONFIGURATION!$B$1,\"bscr\",CONFIGURATION!$B$12)","v":"-"},{"$f":"XBRLMap(O60,IF($R60=\"\",\"\",$R60),$T$5,$T$6,CONFIGURATION!$B$10,\"BMA\",CONFIGURATION!$B$1,\"bscr\",CONFIGURATION!$B$12)","v":"-"},null,null,null,null,null,""]
[null,"18.","POLICYHOLDERS' DIVIDENDS",null,null,null,null,null,{"$f":"Import!E377","v":0},null,{"$f":"Import!G377","v":0},null,{"$f":"Import!I377","v":0},null,{"$f":"Import!K377","v":0},null,null,"brrt_DeductionsPolicyholdersDividends",{"$f":"XBRLMap(M61,IF($R61=\"\",\"\",$R61),$S$5,$S$6,CONFIGURATION!$B$10,\"BMA\",CONFIGURATION!$B$1,\"bscr\",CONFIGURATION!$B$12)","v":"Mapped"},{"$f":"XBRLMap(O61,IF($R61=\"\",\"\",$R61),$T$5,$T$6,CONFIGURATION!$B$10,\"BMA\",CONFIGURATION!$B$1,\"bscr\",CONFIGURATION!$B$12)","v":"Mapped"},null,null,null,null,null,"bma_DeductionsPolicyholdersDividends"]
[null,null,null,null,null,null,null,null,null,null,null,null,null,null,null,null,null,"",{"$f":"XBRLMap(M62,IF($R62=\"\",\"\",$R62),$S$5,$S$6,CONFIGURATION!$B$10,\"BMA\",CONFIGURATION!$B$1,\"bscr\",CONFIGURATION!$B$12)","v":"-"},{"$f":"XBRLMap(O62,IF($R62=\"\",\"\",$R62),$T$5,$T$6,CONFIGURATION!$B$10,\"BMA\",CONFIGURATION!$B$1,\"bscr\",CONFIGURATION!$B$12)","v":"-"},null,null,null,null,null,""]
[null,"19.","SURRENDERS",null,null,null,null,null,{"$f":"Import!E378","v":0},null,{"$f":"Import!G378","v":0},null,{"$f":"Import!I378","v":0},null,{"$f":"Import!K378","v":0},null,null,"brrt_DeductionsSurrenders",{"$f":"XBRLMap(M63,IF($R63=\"\",\"\",$R63),$S$5,$S$6,CONFIGURATION!$B$10,\"BMA\",CONFIGURATION!$B$1,\"bscr\",CONFIGURATION!$B$12)","v":"Mapped"},{"$f":"XBRLMap(O63,IF($R63=\"\",\"\",$R63),$T$5,$T$6,CONFIGURATION!$B$10,\"BMA\",CONFIGURATION!$B$1,\"bscr\",CONFIGURATION!$B$12)","v":"Mapped"},null,null,null,null,null,"bma_DeductionsSurrenders"]
[null,null,null,null,null,null,null,null,null,null,null,null,null,null,null,null,null,"",{"$f":"XBRLMap(M64,IF($R64=\"\",\"\",$R64),$S$5,$S$6,CONFIGURATION!$B$10,\"BMA\",CONFIGURATION!$B$1,\"bscr\",CONFIGURATION!$B$12)","v":"-"},{"$f":"XBRLMap(O64,IF($R64=\"\",\"\",$R64),$T$5,$T$6,CONFIGURATION!$B$10,\"BMA\",CONFIGURATION!$B$1,\"bscr\",CONFIGURATION!$B$12)","v":"-"},null,null,null,null,null,""]
[null,"20.","MATURITIES",null,null,null,null,null,{"$f":"Import!E379","v":0},null,{"$f":"Import!G379","v":0},null,{"$f":"Import!I379","v":0},null,{"$f":"Import!K379","v":0},null,null,"brrt_DeductionsMaturities",{"$f":"XBRLMap(M65,IF($R65=\"\",\"\",$R65),$S$5,$S$6,CONFIGURATION!$B$10,\"BMA\",CONFIGURATION!$B$1,\"bscr\",CONFIGURATION!$B$12)","v":"Mapped"},{"$f":"XBRLMap(O65,IF($R65=\"\",\"\",$R65),$T$5,$T$6,CONFIGURATION!$B$10,\"BMA\",CONFIGURATION!$B$1,\"bscr\",CONFIGURATION!$B$12)","v":"Mapped"},null,null,null,null,null,"bma_DeductionsMaturities"]
[null,null,null,null,null,null,null,null,null,null,null,null,null,null,null,null,null,"",{"$f":"XBRLMap(M66,IF($R66=\"\",\"\",$R66),$S$5,$S$6,CONFIGURATION!$B$10,\"BMA\",CONFIGURATION!$B$1,\"bscr\",CONFIGURATION!$B$12)","v":"-"},{"$f":"XBRLMap(O66,IF($R66=\"\",\"\",$R66),$T$5,$T$6,CONFIGURATION!$B$10,\"BMA\",CONFIGURATION!$B$1,\"bscr\",CONFIGURATION!$B$12)","v":"-"},null,null,null,null,null,""]
[null,"21.","ANNUITIES",null,null,null,null,null,{"$f":"Import!E380","v":0},null,{"$f":"Import!G380","v":0},null,{"$f":"Import!I380","v":0},null,{"$f":"Import!K380","v":0},null,null,"brrt_DeductionsAnnuities",{"$f":"XBRLMap(M67,IF($R67=\"\",\"\",$R67),$S$5,$S$6,CONFIGURATION!$B$10,\"BMA\",CONFIGURATION!$B$1,\"bscr\",CONFIGURATION!$B$12)","v":"Mapped"},{"$f":"XBRLMap(O67,IF($R67=\"\",\"\",$R67),$T$5,$T$6,CONFIGURATION!$B$10,\"BMA\",CONFIGURATION!$B$1,\"bscr\",CONFIGURATION!$B$12)","v":"Mapped"},null,null,null,null,null,"bma_DeductionsAnnuities"]
[null,null,null,null,null,null,null,null,null,null,null,null,null,null,null,null,null,"",{"$f":"XBRLMap(M68,IF($R68=\"\",\"\",$R68),$S$5,$S$6,CONFIGURATION!$B$10,\"BMA\",CONFIGURATION!$B$1,\"bscr\",CONFIGURATION!$B$12)","v":"-"},{"$f":"XBRLMap(O68,IF($R68=\"\",\"\",$R68),$T$5,$T$6,CONFIGURATION!$B$10,\"BMA\",CONFIGURATION!$B$1,\"bscr\",CONFIGURATION!$B$12)","v":"-"},null,null,null,null,null,""]
[null,"22.","ACCIDENT AND HEALTH BENEFITS",null,null,null,null,null,{"$f":"Import!E381","v":0},null,{"$f":"Import!G381","v":0},null,{"$f":"Import!I381","v":0},null,{"$f":"Import!K381","v":0},null,null,"brrt_DeductionsAccidentAndHealthBenefits",{"$f":"XBRLMap(M69,IF($R69=\"\",\"\",$R69),$S$5,$S$6,CONFIGURATION!$B$10,\"BMA\",CONFIGURATION!$B$1,\"bscr\",CONFIGURATION!$B$12)","v":"Mapped"},{"$f":"XBRLMap(O69,IF($R69=\"\",\"\",$R69),$T$5,$T$6,CONFIGURATION!$B$10,\"BMA\",CONFIGURATION!$B$1,\"bscr\",CONFIGURATION!$B$12)","v":"Mapped"},null,null,null,null,null,"bma_DeductionsAccidentAndHealthBenefits"]
[null,null,null,null,null,null,null,null,null,null,null,null,null,null,null,null,null,"",{"$f":"XBRLMap(M70,IF($R70=\"\",\"\",$R70),$S$5,$S$6,CONFIGURATION!$B$10,\"BMA\",CONFIGURATION!$B$1,\"bscr\",CONFIGURATION!$B$12)","v":"-"},{"$f":"XBRLMap(O70,IF($R70=\"\",\"\",$R70),$T$5,$T$6,CONFIGURATION!$B$10,\"BMA\",CONFIGURATION!$B$1,\"bscr\",CONFIGURATION!$B$12)","v":"-"},null,null,null,null,null,""]
[null,"23.","COMMISSIONS",null,null,null,null,null,{"$f":"Import!E382","v":0},null,{"$f":"Import!G382","v":0},null,{"$f":"Import!I382","v":0},null,{"$f":"Import!K382","v":0},null,null,"brrt_DeductionsCommissions",{"$f":"XBRLMap(M71,IF($R71=\"\",\"\",$R71),$S$5,$S$6,CONFIGURATION!$B$10,\"BMA\",CONFIGURATION!$B$1,\"bscr\",CONFIGURATION!$B$12)","v":"Mapped"},{"$f":"XBRLMap(O71,IF($R71=\"\",\"\",$R71),$T$5,$T$6,CONFIGURATION!$B$10,\"BMA\",CONFIGURATION!$B$1,\"bscr\",CONFIGURATION!$B$12)","v":"Mapped"},null,null,null,null,null,"bma_DeductionsCommissions"]
[null,null,null,null,null,null,null,null,null,null,null,null,null,null,null,null,null,"",{"$f":"XBRLMap(M72,IF($R72=\"\",\"\",$R72),$S$5,$S$6,CONFIGURATION!$B$10,\"BMA\",CONFIGURATION!$B$1,\"bscr\",CONFIGURATION!$B$12)","v":"-"},{"$f":"XBRLMap(O72,IF($R72=\"\",\"\",$R72),$T$5,$T$6,CONFIGURATION!$B$10,\"BMA\",CONFIGURATION!$B$1,\"bscr\",CONFIGURATION!$B$12)","v":"-"},null,null,null,null,null,""]
[null,"24.","OTHER",null,null,null,null,null,{"$f":"Import!E383","v":0},null,{"$f":"Import!G383","v":0},null,{"$f":"Import!I383","v":0},null,{"$f":"Import!K383","v":0},null,null,"brrt_DeductionsOther",{"$f":"XBRLMap(M73,IF($R73=\"\",\"\",$R73),$S$5,$S$6,CONFIGURATION!$B$10,\"BMA\",CONFIGURATION!$B$1,\"bscr\",CONFIGURATION!$B$12)","v":"Mapped"},{"$f":"XBRLMap(O73,IF($R73=\"\",\"\",$R73),$T$5,$T$6,CONFIGURATION!$B$10,\"BMA\",CONFIGURATION!$B$1,\"bscr\",CONFIGURATION!$B$12)","v":"Mapped"},null,null,null,null,null,"bma_DeductionsOther"]
[null,null,null,null,null,null,null,null,null,null,null,null,null,null,null,null,null,"",{"$f":"XBRLMap(M74,IF($R74=\"\",\"\",$R74),$S$5,$S$6,CONFIGURATION!$B$10,\"BMA\",CONFIGURATION!$B$1,\"bscr\",CONFIGURATION!$B$12)","v":"-"},{"$f":"XBRLMap(O74,IF($R74=\"\",\"\",$R74),$T$5,$T$6,CONFIGURATION!$B$10,\"BMA\",CONFIGURATION!$B$1,\"bscr\",CONFIGURATION!$B$12)","v":"-"},null,null,null,null,null,""]
[null,"25.",null,null,null,null,null,null,{"$f":"I59+I61+I63+I65+I67+I69+I71+I73","v":0},null,{"$f":"K59+K61+K63+K65+K67+K69+K71+K73","v":0},null,{"$f":"M59+M61+M63+M65+M67+M69+M71+M73","v":0},null,{"$f":"O59+O61+O63+O65+O67+O69+O71+O73","v":0},null,null,"brrt_Deductions",{"$f":"XBRLMap(M75,IF($R75=\"\",\"\",$R75),$S$5,$S$6,CONFIGURATION!$B$10,\"BMA\",CONFIGURATION!$B$1,\"bscr\",CONFIGURATION!$B$12)","v":"Mapped"},{"$f":"XBRLMap(O75,IF($R75=\"\",\"\",$R75),$T$5,$T$6,CONFIGURATION!$B$10,\"BMA\",CONFIGURATION!$B$1,\"bscr\",CONFIGURATION!$B$12)","v":"Mapped"},null,null,null,null,null,"bma_DeductionsOther1"]
[null,null,null,null,null,null,null,null,null,null,null,null,null,null,null,null,null,"",{"$f":"XBRLMap(M76,IF($R76=\"\",\"\",$R76),$S$5,$S$6,CONFIGURATION!$B$10,\"BMA\",CONFIGURATION!$B$1,\"bscr\",CONFIGURATION!$B$12)","v":"-"},{"$f":"XBRLMap(O76,IF($R76=\"\",\"\",$R76),$T$5,$T$6,CONFIGURATION!$B$10,\"BMA\",CONFIGURATION!$B$1,\"bscr\",CONFIGURATION!$B$12)","v":"-"},null,null,null,null,null,""]
[null,"26.","INCREASE (DECREASE) IN POLICY RESERVES:",null,null,null,null,null,null,null,null,null,null,null,null,null,null,null,{"$f":"XBRLMap(M77,IF($R77=\"\",\"\",$R77),$S$5,$S$6,CONFIGURATION!$B$10,\"BMA\",CONFIGURATION!$B$1,\"bscr\",CONFIGURATION!$B$12)","v":"-"},{"$f":"XBRLMap(O77,IF($R77=\"\",\"\",$R77),$T$5,$T$6,CONFIGURATION!$B$10,\"BMA\",CONFIGURATION!$B$1,\"bscr\",CONFIGURATION!$B$12)","v":"-"}]
[null,null,"(a) Life",null,null,null,null,null,{"$f":"Import!E384","v":0},null,{"$f":"Import!G384","v":0},null,{"$f":"Import!I384","v":0},null,{"$f":"Import!K384","v":0},null,null,"brrt_IncreaseOrDecreaseInPolicyReservesLife",{"$f":"XBRLMap(M78,IF($R78=\"\",\"\",$R78),$S$5,$S$6,CONFIGURATION!$B$10,\"BMA\",CONFIGURATION!$B$1,\"bscr\",CONFIGURATION!$B$12)","v":"Mapped"},{"$f":"XBRLMap(O78,IF($R78=\"\",\"\",$R78),$T$5,$T$6,CONFIGURATION!$B$10,\"BMA\",CONFIGURATION!$B$1,\"bscr\",CONFIGURATION!$B$12)","v":"Mapped"},null,null,null,null,null,"bma_IncreasedecreaseInPolicyReservesaLife"]
[null,null,"(b) Annuities",null,null,null,null,null,{"$f":"Import!E385","v":0},null,{"$f":"Import!G385","v":0},null,{"$f":"Import!I385","v":0},null,{"$f":"Import!K385","v":0},null,null,"brrt_IncreaseOrDecreaseInPolicyReservesAnnuities",{"$f":"XBRLMap(M79,IF($R79=\"\",\"\",$R79),$S$5,$S$6,CONFIGURATION!$B$10,\"BMA\",CONFIGURATION!$B$1,\"bscr\",CONFIGURATION!$B$12)","v":"Mapped"},{"$f":"XBRLMap(O79,IF($R79=\"\",\"\",$R79),$T$5,$T$6,CONFIGURATION!$B$10,\"BMA\",CONFIGURATION!$B$1,\"bscr\",CONFIGURATION!$B$12)","v":"Mapped"},null,null,null,null,null,"bma_IncreasedecreaseInPolicyReservesbAnnuities"]
[null,null,"(c) Accident and health",null,null,null,null,null,{"$f":"Import!E386","v":0},null,{"$f":"Import!G386","v":0},null,{"$f":"Import!I386","v":0},null,{"$f":"Import!K386","v":0},null,null,"brrt_IncreaseOrDecreaseInPolicyReservesAccidentAndHealth",{"$f":"XBRLMap(M80,IF($R80=\"\",\"\",$R80),$S$5,$S$6,CONFIGURATION!$B$10,\"BMA\",CONFIGURATION!$B$1,\"bscr\",CONFIGURATION!$B$12)","v":"Mapped"},{"$f":"XBRLMap(O80,IF($R80=\"\",\"\",$R80),$T$5,$T$6,CONFIGURATION!$B$10,\"BMA\",CONFIGURATION!$B$1,\"bscr\",CONFIGURATION!$B$12)","v":"Mapped"},null,null,null,null,null,"bma_IncreasedecreaseInPolicyReservescAccidentAndHealth"]
[null,null,"(d) Total increase (decrease) in policy reserves",null,null,null,null,null,{"$f":"SUM(I78:I80)","v":0},null,{"$f":"SUM(K78:K80)","v":0},null,{"$f":"SUM(M78:M80)","v":0},null,{"$f":"SUM(O78:O80)","v":0},null,null,"brrt_IncreaseOrDecreaseInPolicyReserves",{"$f":"XBRLMap(M81,IF($R81=\"\",\"\",$R81),$S$5,$S$6,CONFIGURATION!$B$10,\"BMA\",CONFIGURATION!$B$1,\"bscr\",CONFIGURATION!$B$12)","v":"Mapped"},{"$f":"XBRLMap(O81,IF($R81=\"\",\"\",$R81),$T$5,$T$6,CONFIGURATION!$B$10,\"BMA\",CONFIGURATION!$B$1,\"bscr\",CONFIGURATION!$B$12)","v":"Mapped"},null,null,null,null,null,"bma_IncreasedecreaseInPolicyReservesdTotalIncreasedecreaseInPolicyReserves"]
[null,null,null,null,null,null,null,null,null,null,null,null,null,null,null,null,null,"",{"$f":"XBRLMap(M82,IF($R82=\"\",\"\",$R82),$S$5,$S$6,CONFIGURATION!$B$10,\"BMA\",CONFIGURATION!$B$1,\"bscr\",CONFIGURATION!$B$12)","v":"-"},{"$f":"XBRLMap(O82,IF($R82=\"\",\"\",$R82),$T$5,$T$6,CONFIGURATION!$B$10,\"BMA\",CONFIGURATION!$B$1,\"bscr\",CONFIGURATION!$B$12)","v":"-"},null,null,null,null,null,""]
[null,"27.",null,null,null,null,null,null,{"$f":"I75+I81","v":0},null,{"$f":"K75+K81","v":0},null,{"$f":"M75+M81","v":0},null,{"$f":"O75+O81","v":0}]
[]
[null,"28.","NET UNDERWRITING PROFIT (LOSS) - LONG-TERM BUSINESS",null,null,null,null,null,{"$f":"I55-I83","v":0},null,{"$f":"K55-K83","v":0},null,{"$f":"M55-M83","v":0},null,{"$f":"O55-O83","v":0}]
[]
[null,"29.","COMBINED NET UNDERWRITING PROFIT (LOSS) BEFORE "]
[null,null,"THE UNDERNOTED ITEMS",null,{"$f":"E36+E85","v":0},null,{"$f":"G36+G85","v":0},null,{"$f":"I36+I85","v":0},null,{"$f":"K36+K85","v":0},null,{"$f":"M36+M85","v":0},null,{"$f":"O36+O85","v":0}]
[]
[null,null,"UNDERNOTED ITEMS"]
[]
[null,"30.","COMBINED OPERATING EXPENSES:"]
[null,null,"(a) General and administrative ",null,{"$f":"Import!E404","v":0},null,{"$f":"Import!G404","v":0},null,{"$f":"Import!E387","v":0},null,{"$f":"Import!G387","v":0},null,{"$f":"Import!I387","v":0},null,{"$f":"Import!K387","v":0},null,null,"brrt_OperatingExpenses",{"$f":"XBRLMap(M93,IF($R93=\"\",\"\",$R93),$S$5,$S$6,CONFIGURATION!$B$10,\"BMA\",CONFIGURATION!$B$1,\"bscr\",CONFIGURATION!$B$12)","v":"Mapped"},{"$f":"XBRLMap(O93,IF($R93=\"\",\"\",$R93),$T$5,$T$6,CONFIGURATION!$B$10,\"BMA\",CONFIGURATION!$B$1,\"bscr\",CONFIGURATION!$B$12)","v":"Mapped"},null,null,null,null,null,"bma_DeductionsOperatingExpenses"]
[null,null,"(b) Personnel Costs  ",null,{"$f":"Import!E405","v":0},null,{"$f":"Import!G405","v":0},null,{"$f":"Import!E388","v":0},null,{"$f":"Import!G388","v":0},null,{"$f":"Import!I388","v":0},null,{"$f":"Import!K388","v":0},null,null,null,{"$f":"XBRLMap(M94,IF($R94=\"\",\"\",$R94),$S$5,$S$6,CONFIGURATION!$B$10,\"BMA\",CONFIGURATION!$B$1,\"bscr\",CONFIGURATION!$B$12)","v":"-"},{"$f":"XBRLMap(O94,IF($R94=\"\",\"\",$R94),$T$5,$T$6,CONFIGURATION!$B$10,\"BMA\",CONFIGURATION!$B$1,\"bscr\",CONFIGURATION!$B$12)","v":"-"},null,null,null,null,null,""]
[null,null,"(c) Other  ",null,{"$f":"Import!E406","v":0},null,{"$f":"Import!G406","v":0},null,{"$f":"Import!E389","v":0},null,{"$f":"Import!G389","v":0},null,{"$f":"Import!I389","v":0},null,{"$f":"Import!K389","v":0}]
[null,null,"(d) Total combined operating expenses  ",null,{"$f":"SUM(E93:E95)","v":0},null,{"$f":"SUM(G93:G95)","v":0},null,{"$f":"SUM(I93:I95)","v":0},null,{"$f":"SUM(K93:K95)","v":0},null,{"$f":"SUM(M93:M95)","v":0},null,{"$f":"SUM(O93:O95)","v":0}]
[]
[null,"31.","COMBINED INVESTMENT INCOME - NET",null,{"$f":"Import!E407","v":0},null,{"$f":"Import!G407","v":0},null,{"$f":"Import!E390","v":0},null,{"$f":"Import!G390","v":0},null,{"$f":"Import!I390","v":0},null,{"$f":"Import!K390","v":0},null,null,"brrt_InvestmentIncomeNet",{"$f":"XBRLMap(M98,IF($R98=\"\",\"\",$R98&\".\"&V98),$S$5,$S$6,CONFIGURATION!$B$10,\"BMA\",CONFIGURATION!$B$1,\"bscr\",CONFIGURATION!$B$12)","v":"Mapped"},{"$f":"XBRLMap(O98,IF($R98=\"\",\"\",$R98&\".\"&V98),$T$5,$T$6,CONFIGURATION!$B$10,\"BMA\",CONFIGURATION!$B$1,\"bscr\",CONFIGURATION!$B$12)","v":"Mapped"},null,"brrt_BusinessClassAxis_brrt_LongTermMember",null,null,null,"bma_LongtermBusinessInvestmentIncomeNet"]
[null,null,null,null,null,null,null,null,null,null,null,null,null,null,null,null,null,"",{"$f":"XBRLMap(M99,IF($R99=\"\",\"\",$R99),$S$5,$S$6,CONFIGURATION!$B$10,\"BMA\",CONFIGURATION!$B$1,\"bscr\",CONFIGURATION!$B$12)","v":"-"},{"$f":"XBRLMap(O99,IF($R99=\"\",\"\",$R99),$T$5,$T$6,CONFIGURATION!$B$10,\"BMA\",CONFIGURATION!$B$1,\"bscr\",CONFIGURATION!$B$12)","v":"-"},null,null,null,null,null,""]
[null,"32.","COMBINED OTHER INCOME (DEDUCTIONS)",null,{"$f":"Import!E408","v":0},null,{"$f":"Import!G408","v":0},null,{"$f":"Import!E391","v":0},null,{"$f":"Import!G391","v":0},null,{"$f":"Import!I391","v":0},null,{"$f":"Import!K391","v":0},null,null,"brrt_OtherIncomeDeductions",{"$f":"XBRLMap(M100,IF($R100=\"\",\"\",$R100),$S$5,$S$6,CONFIGURATION!$B$10,\"BMA\",CONFIGURATION!$B$1,\"bscr\",CONFIGURATION!$B$12)","v":"Mapped"},{"$f":"XBRLMap(O100,IF($R100=\"\",\"\",$R100),$T$5,$T$6,CONFIGURATION!$B$10,\"BMA\",CONFIGURATION!$B$1,\"bscr\",CONFIGURATION!$B$12)","v":"Mapped"},null,null,null,null,null,"bma_OtherIncomeDeductions"]
[null,null,null,null,null,null,null,null,null,null,null,null,null,null,null,null,null,"",{"$f":"XBRLMap(M101,IF($R101=\"\",\"\",$R101),$S$5,$S$6,CONFIGURATION!$B$10,\"BMA\",CONFIGURATION!$B$1,\"bscr\",CONFIGURATION!$B$12)","v":"-"},{"$f":"XBRLMap(O101,IF($R101=\"\",\"\",$R101),$T$5,$T$6,CONFIGURATION!$B$10,\"BMA\",CONFIGURATION!$B$1,\"bscr\",CONFIGURATION!$B$12)","v":"-"},null,null,null,null,null,""]
[null,"33.","COMBINED INCOME BEFORE TAXES",null,{"$f":"E88-E96+E98+E100","v":0},null,{"$f":"G88-G96+G98+G100","v":0},null,{"$f":"I88-I96+I98+I100","v":0},null,{"$f":"K88-K96+K98+K100","v":0},null,{"$f":"M88-M96+M98+M100","v":0},null,{"$f":"O88-O96+O98+O100","v":0},null,null,"brrt_IncomeBeforeTaxes",{"$f":"XBRLMap(M102,IF($R102=\"\",\"\",$R102),$S$5,$S$6,CONFIGURATION!$B$10,\"BMA\",CONFIGURATION!$B$1,\"bscr\",CONFIGURATION!$B$12)","v":"Mapped"},{"$f":"XBRLMap(O102,IF($R102=\"\",\"\",$R102),$T$5,$T$6,CONFIGURATION!$B$10,\"BMA\",CONFIGURATION!$B$1,\"bscr\",CONFIGURATION!$B$12)","v":"Mapped"},null,null,null,null,null,"bma_IncomeBeforeTaxes"]
[null,null,null,null,null,null,null,null,null,null,null,null,null,null,null,null,null,"",{"$f":"XBRLMap(M103,IF($R103=\"\",\"\",$R103),$S$5,$S$6,CONFIGURATION!$B$10,\"BMA\",CONFIGURATION!$B$1,\"bscr\",CONFIGURATION!$B$12)","v":"-"},{"$f":"XBRLMap(O103,IF($R103=\"\",\"\",$R103),$T$5,$T$6,CONFIGURATION!$B$10,\"BMA\",CONFIGURATION!$B$1,\"bscr\",CONFIGURATION!$B$12)","v":"-"},null,null,null,null,null,""]
[null,"34.","COMBINED INCOME TAXES (IF APPLICABLE):",null,null,null,null,null,null,null,null,null,null,null,null,null,null,"",{"$f":"XBRLMap(M104,IF($R104=\"\",\"\",$R104),$S$5,$S$6,CONFIGURATION!$B$10,\"BMA\",CONFIGURATION!$B$1,\"bscr\",CONFIGURATION!$B$12)","v":"-"},{"$f":"XBRLMap(O104,IF($R104=\"\",\"\",$R104),$T$5,$T$6,CONFIGURATION!$B$10,\"BMA\",CONFIGURATION!$B$1,\"bscr\",CONFIGURATION!$B$12)","v":"-"}]
[null,null,"(a) Current",null,{"$f":"Import!E409","v":0},null,{"$f":"Import!G409","v":0},null,{"$f":"Import!E392","v":0},null,{"$f":"Import!G392","v":0},null,{"$f":"Import!I392","v":0},null,{"$f":"Import!K392","v":0},null,null,"brrt_IncomeTaxesCurrent",{"$f":"XBRLMap(M105,IF($R105=\"\",\"\",$R105),$S$5,$S$6,CONFIGURATION!$B$10,\"BMA\",CONFIGURATION!$B$1,\"bscr\",CONFIGURATION!$B$12)","v":"Mapped"},{"$f":"XBRLMap(O105,IF($R105=\"\",\"\",$R105),$T$5,$T$6,CONFIGURATION!$B$10,\"BMA\",CONFIGURATION!$B$1,\"bscr\",CONFIGURATION!$B$12)","v":"Mapped"},null,null,null,null,null,"bma_IncomeTaxesCurrent"]
[null,null,"(b) Deferred",null,{"$f":"Import!E410","v":0},null,{"$f":"Import!G410","v":0},null,{"$f":"Import!E393","v":0},null,{"$f":"Import!G393","v":0},null,{"$f":"Import!I393","v":0},null,{"$f":"Import!K393","v":0},null,null,"brrt_IncomeTaxesDeferred",{"$f":"XBRLMap(M106,IF($R106=\"\",\"\",$R106),$S$5,$S$6,CONFIGURATION!$B$10,\"BMA\",CONFIGURATION!$B$1,\"bscr\",CONFIGURATION!$B$12)","v":"Mapped"},{"$f":"XBRLMap(O106,IF($R106=\"\",\"\",$R106),$T$5,$T$6,CONFIGURATION!$B$10,\"BMA\",CONFIGURATION!$B$1,\"bscr\",CONFIGURATION!$B$12)","v":"Mapped"},null,null,null,null,null,"bma_IncomeTaxesDeferred"]
[null,null,"(c) Total ",null,{"$f":"E105+E106","v":0},null,{"$f":"G105+G106","v":0},null,{"$f":"I105+I106","v":0},null,{"$f":"K105+K106","v":0},null,{"$f":"M105+M106","v":0},null,{"$f":"O105+O106","v":0},null,null,"brrt_IncomeTaxes",{"$f":"XBRLMap(M107,IF($R107=\"\",\"\",$R107),$S$5,$S$6,CONFIGURATION!$B$10,\"BMA\",CONFIGURATION!$B$1,\"bscr\",CONFIGURATION!$B$12)","v":"Mapped"},{"$f":"XBRLMap(O107,IF($R107=\"\",\"\",$R107),$T$5,$T$6,CONFIGURATION!$B$10,\"BMA\",CONFIGURATION!$B$1,\"bscr\",CONFIGURATION!$B$12)","v":"Mapped"},null,null,null,null,null,"bma_IncomeTaxesTotal"]
[null,null,null,null,null,null,null,null,null,null,null,null,null,null,null,null,null,"",{"$f":"XBRLMap(M108,IF($R108=\"\",\"\",$R108),$S$5,$S$6,CONFIGURATION!$B$10,\"BMA\",CONFIGURATION!$B$1,\"bscr\",CONFIGURATION!$B$12)","v":"-"},{"$f":"XBRLMap(O108,IF($R108=\"\",\"\",$R108),$T$5,$T$6,CONFIGURATION!$B$10,\"BMA\",CONFIGURATION!$B$1,\"bscr\",CONFIGURATION!$B$12)","v":"-"},null,null,null,null,null,""]
[null,"35.","COMBINED INCOME BEFORE REALIZED GAINS (LOSSES)",null,{"$f":"E102-E107","v":0},null,{"$f":"G102-G107","v":0},null,{"$f":"I102-I107","v":0},null,{"$f":"K102-K107","v":0},null,{"$f":"M102-M107","v":0},null,{"$f":"O102-O107","v":0},null,null,"brrt_IncomeBeforeRealizedGainsLosses",{"$f":"XBRLMap(M109,IF($R109=\"\",\"\",$R109),$S$5,$S$6,CONFIGURATION!$B$10,\"BMA\",CONFIGURATION!$B$1,\"bscr\",CONFIGURATION!$B$12)","v":"Mapped"},{"$f":"XBRLMap(O109,IF($R109=\"\",\"\",$R109),$T$5,$T$6,CONFIGURATION!$B$10,\"BMA\",CONFIGURATION!$B$1,\"bscr\",CONFIGURATION!$B$12)","v":"Mapped"},null,null,null,null,null,"bma_IncomeBeforeRealizedGainsLosses"]
[null,null,null,null,null,null,null,null,null,null,null,null,null,null,null,null,null,"",{"$f":"XBRLMap(M110,IF($R110=\"\",\"\",$R110),$S$5,$S$6,CONFIGURATION!$B$10,\"BMA\",CONFIGURATION!$B$1,\"bscr\",CONFIGURATION!$B$12)","v":"-"},{"$f":"XBRLMap(O110,IF($R110=\"\",\"\",$R110),$T$5,$T$6,CONFIGURATION!$B$10,\"BMA\",CONFIGURATION!$B$1,\"bscr\",CONFIGURATION!$B$12)","v":"-"},null,null,null,null,null,""]
[null,"36.","COMBINED REALIZED GAINS (LOSSES)",null,{"$f":"Import!E411","v":0},null,{"$f":"Import!G411","v":0},null,{"$f":"Import!E394","v":0},null,{"$f":"Import!G394","v":0},null,{"$f":"Import!I394","v":0},null,{"$f":"Import!K394","v":0},null,null,"brrt_RealizedGainsLosses",{"$f":"XBRLMap(M111,IF($R111=\"\",\"\",$R111),$S$5,$S$6,CONFIGURATION!$B$10,\"BMA\",CONFIGURATION!$B$1,\"bscr\",CONFIGURATION!$B$12)","v":"Mapped"},{"$f":"XBRLMap(O111,IF($R111=\"\",\"\",$R111),$T$5,$T$6,CONFIGURATION!$B$10,\"BMA\",CONFIGURATION!$B$1,\"bscr\",CONFIGURATION!$B$12)","v":"Mapped"},null,null,null,null,null,"bma_RealizedGainsLosses"]
[null,null,null,null,null,null,null,null,null,null,null,null,null,null,null,null,null,"",{"$f":"XBRLMap(M112,IF($R112=\"\",\"\",$R112),$S$5,$S$6,CONFIGURATION!$B$10,\"BMA\",CONFIGURATION!$B$1,\"bscr\",CONFIGURATION!$B$12)","v":"-"},{"$f":"XBRLMap(O112,IF($R112=\"\",\"\",$R112),$T$5,$T$6,CONFIGURATION!$B$10,\"BMA\",CONFIGURATION!$B$1,\"bscr\",CONFIGURATION!$B$12)","v":"-"},null,null,null,null,null,""]
[null,"37.","COMBINED INTEREST CHARGES",null,{"$f":"Import!E412","v":0},null,{"$f":"Import!G412","v":0},null,{"$f":"Import!E395","v":0},null,{"$f":"Import!G395","v":0},null,{"$f":"Import!I395","v":0},null,{"$f":"Import!K395","v":0}]
[]
[null,"38.","NET INCOME",null,{"$f":"E109+E111-E113","v":0},null,{"$f":"G109+G111-G113","v":0},null,{"$f":"I109+I111-I113","v":0},null,{"$f":"K109+K111-K113","v":0},null,{"$f":"M109+M111-M113","v":0},null,{"$f":"O109+O111-O113","v":0},null,null,"brrt_NetIncome",{"$f":"XBRLMap(M115,IF($R115=\"\",\"\",$R115),$S$5,$S$6,CONFIGURATION!$B$10,\"BMA\",CONFIGURATION!$B$1,\"bscr\",CONFIGURATION!$B$12)","v":"Mapped"},{"$f":"XBRLMap(O115,IF($R115=\"\",\"\",$R115),$T$5,$T$6,CONFIGURATION!$B$10,\"BMA\",CONFIGURATION!$B$1,\"bscr\",CONFIGURATION!$B$12)","v":"Mapped"},null,null,null,null,null,"bma_NetIncome"]
[]
[]
[]
[]
[]
[]
[]
[]
[]
[]
[]
[]
[]
[]
[]
[]
[]
[null,null,null,null,null,null,null,null,null,null,null,null,{"$f":"IF(((M43-M45)-M51)=0,\"TRUE\",\"FALSE\")","v":"TRUE"},null,{"$f":"IF(((O43-O45)-O51)=0,\"TRUE\",\"FALSE\")","v":"TRUE"},"CHECK"]

{"sheet":"Form 8SFS","index":20,"n_rows":63,"n_cols":28,"rows_kept":63,"cut":false,"hidden":false,"merged":[[60,2,60,4],[62,2,62,4],[60,10,60,12],[4,6,4,8],[4,10,4,12],[5,6,5,8],[5,10,5,12],[62,10,62,12],[2,2,2,3],[3,2,3,3],[45,2,45,4],[5,14,5,16],[4,14,4,16],[1,6,3,12]]}
[null,"STATUTORY STATEMENT OF CAPITAL AND SURPLUS",null,null,null,null,null,null,null,null,null,null,null,null,null,null,{"$f":"HYPERLINK(\"#'Index'!A1\",\"Return to Index\")","v":"Return to Index"}]
[null,{"$f":"'Insurer Information'!C7","v":"Enter Company Name"},null,null,null,null,"Note if an insurer does not have any entities to consolidate, select \"No Subsidiaries\" on the Insurer Information tab (This cell is editable for deletion)"]
[null,"For the year ending",{"$f":"'Form 4EBS'!C3","v":"2019-12-31"},null,null,null,null,null,null,null,null,null,null,null,null,null,"FORM 8SFS"]
[null,{"$f":"\"Expressed in  \"& IF(CONFIGURATION!$B$12>1,\" ['\"&MID(CONFIGURATION!$B$12,2,LEN(CONFIGURATION!$B$12))&\"s]\",\"\")","v":"Expressed in   ['000s]"},{"$f":"'Form 4EBS'!C4","v":"United States Dollars"}]
[null,null,null,null,null,null,"General Business",null,null,null,"Long-Term Business",null,null,null,"General and Long-Term Business"]
[null,"STMT.",null,null,null,null,"Unconsolidated",null,null,null,"Unconsolidated",null,null,{"$f":"YEAR('Insurer Information'!C3)","v":2019},"Consolidated"]
[null,"LINE No.",null,null,null,null,{"$f":"+'Form 2SFS'!E7","v":"2019-12-31"},null,{"$f":"+'Form 2SFS'!G7","v":"2018-12-31"},null,{"$f":"+'Form 2SFS'!I7","v":"2019-12-31"},null,{"$f":"+'Form 2SFS'!K7","v":"2018-12-31"},null,{"$f":"+'Form 2SFS'!M7","v":"2019-12-31"},null,{"$f":"+'Form 2SFS'!O7","v":"2018-12-31"},null,null,null,null,null,null,null,{"$f":"IF(O7=\"\",\"\",TEXT(DATE(YEAR(O7+1)-1,MONTH(O7+1),DAY(O7+1)),\"mm/dd/yyyy\"))","v":"01/01/2019"},{"$f":"IF(Q7=\"\",\"\",TEXT(DATE(YEAR(Q7+1)-1,MONTH(Q7+1),DAY(Q7+1)),\"mm/dd/yyyy\"))","v":"01/01/2018"}]
[null,null,null,null,null,null,{"$f":"CONFIGURATION!$D$12","v":" ('000s)"},null,{"$f":"CONFIGURATION!$D$12","v":" ('000s)"},null,{"$f":"CONFIGURATION!$D$12","v":" ('000s)"},null,{"$f":"CONFIGURATION!$D$12","v":" ('000s)"},null,{"$f":"CONFIGURATION!$D$12","v":" ('000s)"},null,{"$f":"CONFIGURATION!$D$12","v":" ('000s)"},null,null,null,null,null,null,null,{"$f":"IF(O7=\"\",\"\",TEXT(O7,\"mm/dd/yyyy\"))","v":"12/31/2019"},{"$f":"IF(Q7=\"\",\"\",TEXT(Q7,\"mm/dd/yyyy\"))","v":"12/31/2018"}]
[null,"1.","STATUTORY CAPITAL"]
[]
[null,"(a) ","Capital stock",null,null,null,{"$f":"Import!E430","v":0},null,{"$f":"Import!G430","v":0},null,{"$f":"Import!E415","v":0},null,{"$f":"Import!G415","v":0}]
[null,null,"(i) Common shares",null,null,null,null,null,null,null,null,null,null,null,{"$f":"Import!I416","v":0},null,{"$f":"Import!K416","v":0},null,null,null,null,"brrt_CommonShares",null,null,{"$f":"XBRLMap(O12,$V12,$Y$7,$Y$8,CONFIGURATION!$B$10,\"BMA\",CONFIGURATION!$B$1,\"bscr\",CONFIGURATION!$B$12)","v":"Mapped"},{"$f":"XBRLMap(Q12,$V12,$Z$7,$Z$8,CONFIGURATION!$B$10,\"BMA\",CONFIGURATION!$B$1,\"bscr\",CONFIGURATION!$B$12)","v":"Mapped"},null,"bma_CapitalStock"]
[null,null,"authorized",null,"shares of par",null,null,null,null,null,null,null,null,null,null,null,null,null,null,null,null,"brrt_CommonSharesAuthorized",null,null,{"$f":"XBRLMap(D13,$V13,$Y$7,$Y$8,CONFIGURATION!$B$10,\"BMA\",CONFIGURATION!$B$1,\"bscr\")","v":"Mapped"},null,null,"bma_CapitalStockAuthorized"]
[null,null,"value",null,"each issued and",null,null,null,null,null,null,null,null,null,null,null,null,null,null,null,null,"brrt_CommonSharesValue",null,null,{"$f":"XBRLMap(D14,$V14,$Y$7,$Y$8,CONFIGURATION!$B$10,\"BMA\",CONFIGURATION!$B$1,\"bscr\")","v":"Mapped"},null,null,"bma_CapitalStockValue"]
[null,null,"fully paid",null,"shares",null,null,null,null,null,null,null,null,null,null,null,null,null,null,null,null,"brrt_CommonSharesFullyPaid",null,null,{"$f":"XBRLMap(D15,$V15,$Y$7,$Y$8,CONFIGURATION!$B$10,\"BMA\",CONFIGURATION!$B$1,\"bscr\")","v":"Mapped"},null,null,"bma_CapitalStockFullyPaid"]
[null,null,null,null,null,null,null,null,null,null,null,null,null,null,null,null,null,null,null,null,null,null,null,null,null,null,null,""]
[null,null,"(ii) Preferred shares",null,null,null,null,null,null,null,null,null,null,null,{"$f":"Import!I417","v":0},null,{"$f":"Import!K417","v":0},null,null,null,null,"brrt_PreferredShares",null,null,{"$f":"XBRLMap(O17,$V17,$Y$7,$Y$8,CONFIGURATION!$B$10,\"BMA\",CONFIGURATION!$B$1,\"bscr\",CONFIGURATION!$B$12)","v":"Mapped"},{"$f":"XBRLMap(Q17,$V17,$Z$7,$Z$8,CONFIGURATION!$B$10,\"BMA\",CONFIGURATION!$B$1,\"bscr\",CONFIGURATION!$B$12)","v":"Mapped"}]
[null,null,"authorized",null,"shares of par",null,null,null,null,null,null,null,null,null,null,null,null,null,null,null,null,"brrt_PreferredSharesAuthorized",null,null,{"$f":"XBRLMap(D18,$V18,$Y$7,$Y$8,CONFIGURATION!$B$10,\"BMA\",CONFIGURATION!$B$1,\"bscr\")","v":"Mapped"}]
[null,null,"value",null,"each issued and",null,null,null,null,null,null,null,null,null,null,null,null,null,null,null,null,"brrt_PreferredSharesValue",null,null,{"$f":"XBRLMap(D19,$V19,$Y$7,$Y$8,CONFIGURATION!$B$10,\"BMA\",CONFIGURATION!$B$1,\"bscr\")","v":"Mapped"}]
[null,null,"fully paid",null,"shares",null,null,null,null,null,null,null,null,null,null,null,null,null,null,null,null,"brrt_PreferredSharesFullyPaid",null,null,{"$f":"XBRLMap(D20,$V20,$Y$7,$Y$8,CONFIGURATION!$B$10,\"BMA\",CONFIGURATION!$B$1,\"bscr\")","v":"Mapped"}]
[null,null,"aggregate liquidation value for —"]
[null,null,{"$f":"G7","v":"2019-12-31"},null,null,null,null,null,null,null,null,null,null,null,null,null,null,null,null,null,null,"brrt_PreferredSharesAggregateLiquidationValue",null,null,{"$f":"XBRLMap(D22,$V22,$Y$7,$Y$8,CONFIGURATION!$B$10,\"BMA\",CONFIGURATION!$B$1,\"bscr\",CONFIGURATION!$B$12)","v":"Mapped"},{"$f":"XBRLMap(D23,$V22,$Z$7,$Z$8,CONFIGURATION!$B$10,\"BMA\",CONFIGURATION!$B$1,\"bscr\",CONFIGURATION!$B$12)","v":"Mapped"}]
[null,null,{"$f":"I7","v":"2018-12-31"}]
[]
[null,null,"(iii) Treasury shares",null,null,null,null,null,null,null,null,null,null,null,{"$f":"Import!I418","v":0},null,{"$f":"Import!K418","v":0},null,null,null,null,"brrt_TreasuryShares",null,null,{"$f":"XBRLMap(O25,$V25,$Y$7,$Y$8,CONFIGURATION!$B$10,\"BMA\",CONFIGURATION!$B$1,\"bscr\",CONFIGURATION!$B$12)","v":"Mapped"},{"$f":"XBRLMap(Q25,$V25,$Z$7,$Z$8,CONFIGURATION!$B$10,\"BMA\",CONFIGURATION!$B$1,\"bscr\",CONFIGURATION!$B$12)","v":"Mapped"}]
[null,null,"repurchased",null,"shares of par",null,null,null,null,null,null,null,null,null,null,null,null,null,null,null,null,"brrt_TreasurySharesRepurchased",null,null,{"$f":"XBRLMap(D26,$V26,$Y$7,$Y$8,CONFIGURATION!$B$10,\"BMA\",CONFIGURATION!$B$1,\"bscr\")","v":"Mapped"}]
[null,null,"value",null,"each issued",null,null,null,null,null,null,null,null,null,null,null,null,null,null,null,null,"brrt_TreasurySharesValue",null,null,{"$f":"XBRLMap(D27,$V27,$Y$7,$Y$8,CONFIGURATION!$B$10,\"BMA\",CONFIGURATION!$B$1,\"bscr\")","v":"Mapped"}]
[]
[null,"(b)","Contributed surplus",null,null,null,{"$f":"Import!E431","v":0},null,{"$f":"Import!G431","v":0},null,{"$f":"Import!E419","v":0},null,{"$f":"Import!G419","v":0},null,{"$f":"Import!I419","v":0},null,{"$f":"Import!K419","v":0},null,null,null,null,"brrt_ContributedSurplus",null,null,{"$f":"XBRLMap(O29,V29,$Y$7,$Y$8,CONFIGURATION!$B$10,\"BMA\",CONFIGURATION!$B$1,\"bscr\",CONFIGURATION!$B$12)","v":"Mapped"},{"$f":"XBRLMap(Q29,V29,$Z$7,$Z$8,CONFIGURATION!$B$10,\"BMA\",CONFIGURATION!$B$1,\"bscr\",CONFIGURATION!$B$12)","v":"Mapped"},null,"bma_ContributedSurplus"]
[null,null,null,null,null,null,null,null,null,null,null,null,null,null,null,null,null,null,null,null,null,"",null,null,{"$f":"XBRLMap(O30,V30,$Y$7,$Y$8,CONFIGURATION!$B$10,\"BMA\",CONFIGURATION!$B$1,\"bscr\",CONFIGURATION!$B$12)","v":"-"},{"$f":"XBRLMap(Q30,V30,$Z$7,$Z$8,CONFIGURATION!$B$10,\"BMA\",CONFIGURATION!$B$1,\"bscr\",CONFIGURATION!$B$12)","v":"-"},null,""]
[null,"(c) ","Any other fixed capital",null,null,null,null,null,null,null,null,null,null,null,null,null,null,null,null,null,null,"",null,null,{"$f":"XBRLMap(O31,V31,$Y$7,$Y$8,CONFIGURATION!$B$10,\"BMA\",CONFIGURATION!$B$1,\"bscr\",CONFIGURATION!$B$12)","v":"-"},{"$f":"XBRLMap(Q31,V31,$Z$7,$Z$8,CONFIGURATION!$B$10,\"BMA\",CONFIGURATION!$B$1,\"bscr\",CONFIGURATION!$B$12)","v":"-"},null,""]
[null,null,"(i) Hybrid capital instruments",null,null,null,{"$f":"Import!E432","v":0},null,{"$f":"Import!G432","v":0},null,{"$f":"Import!E420","v":0},null,{"$f":"Import!G420","v":0},null,{"$f":"Import!I420","v":0},null,{"$f":"Import!K420","v":0},null,null,null,null,"brrt_AnyOtherFixedCapitalHybridCapitalInstruments",null,null,{"$f":"XBRLMap(O32,V32,$Y$7,$Y$8,CONFIGURATION!$B$10,\"BMA\",CONFIGURATION!$B$1,\"bscr\",CONFIGURATION!$B$12)","v":"Mapped"},{"$f":"XBRLMap(Q32,V32,$Z$7,$Z$8,CONFIGURATION!$B$10,\"BMA\",CONFIGURATION!$B$1,\"bscr\",CONFIGURATION!$B$12)","v":"Mapped"}]
[null,null,"(ii) Guarantees and others",null,null,null,{"$f":"Import!E433","v":0},null,{"$f":"Import!G433","v":0},null,{"$f":"Import!E421","v":0},null,{"$f":"Import!G421","v":0},null,{"$f":"Import!I421","v":0},null,{"$f":"Import!K421","v":0},null,null,null,null,"brrt_AnyOtherFixedCapitalGuaranteesAndOthers",null,null,{"$f":"XBRLMap(O33,V33,$Y$7,$Y$8,CONFIGURATION!$B$10,\"BMA\",CONFIGURATION!$B$1,\"bscr\",CONFIGURATION!$B$12)","v":"Mapped"},{"$f":"XBRLMap(Q33,V33,$Z$7,$Z$8,CONFIGURATION!$B$10,\"BMA\",CONFIGURATION!$B$1,\"bscr\",CONFIGURATION!$B$12)","v":"Mapped"}]
[null,null,"(iii) Total any other fixed capital",null,null,null,{"$f":"SUM(G32:G33)","v":0},null,{"$f":"SUM(I32:I33)","v":0},null,{"$f":"SUM(K32:K33)","v":0},null,{"$f":"SUM(M32:M33)","v":0},null,{"$f":"SUM(O32:O33)","v":0},null,{"$f":"SUM(Q32:Q33)","v":0},null,null,null,null,"brrt_AnyOtherFixedCapital",null,null,{"$f":"XBRLMap(O34,V34,$Y$7,$Y$8,CONFIGURATION!$B$10,\"BMA\",CONFIGURATION!$B$1,\"bscr\",CONFIGURATION!$B$12)","v":"Mapped"},{"$f":"XBRLMap(Q34,V34,$Z$7,$Z$8,CONFIGURATION!$B$10,\"BMA\",CONFIGURATION!$B$1,\"bscr\",CONFIGURATION!$B$12)","v":"Mapped"},null,"bma_AnyOtherFixedCapital"]
[null,null,null,null,null,null,null,null,null,null,null,null,null,null,null,null,null,null,null,null,null,"",null,null,{"$f":"XBRLMap(O35,V35,$Y$7,$Y$8,CONFIGURATION!$B$10,\"BMA\",CONFIGURATION!$B$1,\"bscr\",CONFIGURATION!$B$12)","v":"-"},{"$f":"XBRLMap(Q35,V35,$Z$7,$Z$8,CONFIGURATION!$B$10,\"BMA\",CONFIGURATION!$B$1,\"bscr\",CONFIGURATION!$B$12)","v":"-"},null,"bma_AnyOtherFixedCapitalType"]
[null,"(d)","Total Statutory Capital",null,null,null,{"$f":"G11+G29+G34","v":0},null,{"$f":"I11+I29+I34","v":0},null,{"$f":"K11+K29+K34","v":0},null,{"$f":"M11+M29+M34","v":0},null,{"$f":"O12+O17-O25+O29+O34","v":0},null,{"$f":"Q12+Q17-Q25+Q29+Q34","v":0},null,null,null,null,"brrt_StatutoryCapital",null,null,{"$f":"XBRLMap(O36,V36,$Y$7,$Y$8,CONFIGURATION!$B$10,\"BMA\",CONFIGURATION!$B$1,\"bscr\",CONFIGURATION!$B$12)","v":"Mapped"},{"$f":"XBRLMap(Q36,V36,$Z$7,$Z$8,CONFIGURATION!$B$10,\"BMA\",CONFIGURATION!$B$1,\"bscr\",CONFIGURATION!$B$12)","v":"Mapped"},null,"bma_TotalStatutoryCapital"]
[null,null,null,null,null,null,null,null,null,null,null,null,null,null,null,null,null,null,null,null,null,"",null,null,{"$f":"XBRLMap(O37,V37,$Y$7,$Y$8,CONFIGURATION!$B$10,\"BMA\",CONFIGURATION!$B$1,\"bscr\",CONFIGURATION!$B$12)","v":"-"},{"$f":"XBRLMap(Q37,V37,$Z$7,$Z$8,CONFIGURATION!$B$10,\"BMA\",CONFIGURATION!$B$1,\"bscr\",CONFIGURATION!$B$12)","v":"-"},null,""]
[null,"2.","STATUTORY SURPLUS:",null,null,null,null,null,null,null,null,null,null,null,null,null,null,null,null,null,null,"",null,null,{"$f":"XBRLMap(O38,V38,$Y$7,$Y$8,CONFIGURATION!$B$10,\"BMA\",CONFIGURATION!$B$1,\"bscr\",CONFIGURATION!$B$12)","v":"-"},{"$f":"XBRLMap(Q38,V38,$Z$7,$Z$8,CONFIGURATION!$B$10,\"BMA\",CONFIGURATION!$B$1,\"bscr\",CONFIGURATION!$B$12)","v":"-"}]
[null,null,null,null,null,null,null,null,null,null,null,null,null,null,null,null,null,null,null,null,null,"",null,null,{"$f":"XBRLMap(O39,V39,$Y$7,$Y$8,CONFIGURATION!$B$10,\"BMA\",CONFIGURATION!$B$1,\"bscr\",CONFIGURATION!$B$12)","v":"-"},{"$f":"XBRLMap(Q39,V39,$Z$7,$Z$8,CONFIGURATION!$B$10,\"BMA\",CONFIGURATION!$B$1,\"bscr\",CONFIGURATION!$B$12)","v":"-"},null,""]
[null,"(a) ","Statutory Surplus - Beginning of Year",null,null,null,{"$f":"Import!E434","v":0},null,{"$f":"Import!G434","v":0},null,{"$f":"Import!E422","v":0},null,{"$f":"Import!G422","v":0},null,{"$f":"Import!I422","v":0},null,{"$f":"Import!K422","v":0},null,null,null,null,"brrt_StatutorySurplus",null,null,{"$f":"XBRLMap(O40,V40,$Y$7,$Y$7,CONFIGURATION!$B$10,\"BMA\",CONFIGURATION!$B$1,\"bscr\",CONFIGURATION!$B$12)","v":"Mapped"},{"$f":"XBRLMap(Q40,V40,$Z$7,$Z$7,CONFIGURATION!$B$10,\"BMA\",CONFIGURATION!$B$1,\"bscr\",CONFIGURATION!$B$12)","v":"Mapped"},null,"bma_StatutorySurplusBeginningOfYear"]
[null,null,null,null,null,null,null,null,null,null,null,null,null,null,null,null,null,null,null,null,null,"",null,null,null,null,null,""]
[null,"(b)","Add: Income for Year",null,null,null,{"$f":"'Form 2SFS'!E115","v":0},null,{"$f":"'Form 2SFS'!G115","v":0},null,{"$f":"'Form 2SFS'!I115","v":0},null,{"$f":"'Form 2SFS'!K115","v":0},null,{"$f":"'Form 2SFS'!M115","v":0},null,{"$f":"'Form 2SFS'!O115","v":0},null,null,null,null,null,null,null,null,null,null,"bma_AddIncomeForYear"]
[null,null,null,null,null,null,null,null,null,null,null,null,null,null,null,null,null,null,null,0,null,"",null,null,{"$f":"XBRLMap(O43,V43,$Y$7,$Y$8,CONFIGURATION!$B$10,\"BMA\",CONFIGURATION!$B$1,\"bscr\",CONFIGURATION!$B$12)","v":"-"},{"$f":"XBRLMap(Q43,V43,$Z$7,$Z$8,CONFIGURATION!$B$10,\"BMA\",CONFIGURATION!$B$1,\"bscr\",CONFIGURATION!$B$12)","v":"-"},null,""]
[null,"(c) ","Less: Dividends paid and payable",null,null,null,{"$f":"Import!E435","v":0},null,{"$f":"Import!G435","v":0},null,{"$f":"Import!E423","v":0},null,{"$f":"Import!G423","v":0},null,{"$f":"Import!I423","v":0},null,{"$f":"Import!K423","v":0},null,null,null,null,"brrt_DividendsPaidAndPayable",null,null,{"$f":"XBRLMap(O44,V44,$Y$7,$Y$8,CONFIGURATION!$B$10,\"BMA\",CONFIGURATION!$B$1,\"bscr\",CONFIGURATION!$B$12)","v":"Mapped"},{"$f":"XBRLMap(Q44,V44,$Z$7,$Z$8,CONFIGURATION!$B$10,\"BMA\",CONFIGURATION!$B$1,\"bscr\",CONFIGURATION!$B$12)","v":"Mapped"},null,"bma_LessDividendsPaidAndPayable"]
[null,null,null,null,null,null,null,null,null,null,null,null,null,null,null,null,null,null,null,null,null,"",null,null,{"$f":"XBRLMap(O45,V45,$Y$7,$Y$8,CONFIGURATION!$B$10,\"BMA\",CONFIGURATION!$B$1,\"bscr\",CONFIGURATION!$B$12)","v":"-"},{"$f":"XBRLMap(Q45,V45,$Z$7,$Z$8,CONFIGURATION!$B$10,\"BMA\",CONFIGURATION!$B$1,\"bscr\",CONFIGURATION!$B$12)","v":"-"},null,""]
[null,"(d)","Add (Deduct) change in unrealized appreciation (depreciation) of investments",null,null,null,{"$f":"Import!E436","v":0},null,{"$f":"Import!G436","v":0},null,{"$f":"Import!E424","v":0},null,{"$f":"Import!G424","v":0},null,{"$f":"Import!I424","v":0},null,{"$f":"Import!K424","v":0},null,null,null,null,"brrt_ChangeInUnrealizedAppreciationDepreciationOfInvestments",null,null,{"$f":"XBRLMap(O46,V46,$Y$7,$Y$8,CONFIGURATION!$B$10,\"BMA\",CONFIGURATION!$B$1,\"bscr\",CONFIGURATION!$B$12)","v":"Mapped"},{"$f":"XBRLMap(Q46,V46,$Z$7,$Z$8,CONFIGURATION!$B$10,\"BMA\",CONFIGURATION!$B$1,\"bscr\",CONFIGURATION!$B$12)","v":"Mapped"},null,"bma_AddDeductChangeInUnrealizedAppreciationDepreciationOfInvestments"]
[null,null,null,null,null,null,null,null,null,null,null,null,null,null,null,null,null,null,null,null,null,"",null,null,{"$f":"XBRLMap(O47,V47,$Y$7,$Y$8,CONFIGURATION!$B$10,\"BMA\",CONFIGURATION!$B$1,\"bscr\",CONFIGURATION!$B$12)","v":"-"},{"$f":"XBRLMap(Q47,V47,$Z$7,$Z$8,CONFIGURATION!$B$10,\"BMA\",CONFIGURATION!$B$1,\"bscr\",CONFIGURATION!$B$12)","v":"-"},null,""]
[null,"(e)","Add (Deduct) change in non-admitted assets",null,null,null,{"$f":"Import!E437","v":0},null,{"$f":"Import!G437","v":0},null,{"$f":"Import!E425","v":0},null,{"$f":"Import!G425","v":0},null,{"$f":"Import!I425","v":0},null,{"$f":"Import!K425","v":0},null,null,null,null,"brrt_ChangeInNonAdmittedAssets",null,null,{"$f":"XBRLMap(O48,V48,$Y$7,$Y$8,CONFIGURATION!$B$10,\"BMA\",CONFIGURATION!$B$1,\"bscr\",CONFIGURATION!$B$12)","v":"Mapped"},{"$f":"XBRLMap(Q48,V48,$Z$7,$Z$8,CONFIGURATION!$B$10,\"BMA\",CONFIGURATION!$B$1,\"bscr\",CONFIGURATION!$B$12)","v":"Mapped"},null,"bma_AddDeductChangeInNonAdmittedAssets"]
[null,null,null,null,null,null,null,null,null,null,null,null,null,null,null,null,null,null,null,null,null,"",null,null,{"$f":"XBRLMap(O49,V49,$Y$7,$Y$8,CONFIGURATION!$B$10,\"BMA\",CONFIGURATION!$B$1,\"bscr\",CONFIGURATION!$B$12)","v":"-"},{"$f":"XBRLMap(Q49,V49,$Z$7,$Z$8,CONFIGURATION!$B$10,\"BMA\",CONFIGURATION!$B$1,\"bscr\",CONFIGURATION!$B$12)","v":"-"},null,""]
[null,"(f)","Add (Deduct) change in appraisal of real estate",null,null,null,{"$f":"Import!E438","v":0},null,{"$f":"Import!G438","v":0},null,{"$f":"Import!E426","v":0},null,{"$f":"Import!G426","v":0},null,{"$f":"Import!I426","v":0},null,{"$f":"Import!K426","v":0},null,null,null,null,"brrt_ChangeInAppraisalOfRealEstate",null,null,{"$f":"XBRLMap(O50,V50,$Y$7,$Y$8,CONFIGURATION!$B$10,\"BMA\",CONFIGURATION!$B$1,\"bscr\",CONFIGURATION!$B$12)","v":"Mapped"},{"$f":"XBRLMap(Q50,V50,$Z$7,$Z$8,CONFIGURATION!$B$10,\"BMA\",CONFIGURATION!$B$1,\"bscr\",CONFIGURATION!$B$12)","v":"Mapped"},null,"bma_AddDeductChangeInAppraisalOfRealEstate"]
[null,null,null,null,null,null,null,null,null,null,null,null,null,null,null,null,null,null,null,null,null,"",null,null,{"$f":"XBRLMap(O51,V51,$Y$7,$Y$8,CONFIGURATION!$B$10,\"BMA\",CONFIGURATION!$B$1,\"bscr\",CONFIGURATION!$B$12)","v":"-"},{"$f":"XBRLMap(Q51,V51,$Z$7,$Z$8,CONFIGURATION!$B$10,\"BMA\",CONFIGURATION!$B$1,\"bscr\",CONFIGURATION!$B$12)","v":"-"},null,""]
[null,"(g)","Add (Deduct) change in any other statutory capital",null,null,null,{"$f":"Import!E439","v":0},null,{"$f":"Import!G439","v":0},null,{"$f":"Import!E427","v":0},null,{"$f":"Import!G427","v":0},null,{"$f":"Import!I427","v":0},null,{"$f":"Import!K427","v":0},null,null,null,null,"brrt_ChangeInAnyOtherStatutoryCapital",null,null,{"$f":"XBRLMap(O52,V52,$Y$7,$Y$8,CONFIGURATION!$B$10,\"BMA\",CONFIGURATION!$B$1,\"bscr\",CONFIGURATION!$B$12)","v":"Mapped"},{"$f":"XBRLMap(Q52,V52,$Z$7,$Z$8,CONFIGURATION!$B$10,\"BMA\",CONFIGURATION!$B$1,\"bscr\",CONFIGURATION!$B$12)","v":"Mapped"},null,"bma_AddDeductChangeInAnyOtherStatutoryCapital"]
[null,null,null,null,null,null,null,null,null,null,null,null,null,null,null,null,null,null,null,null,null,"",null,null,{"$f":"XBRLMap(O53,V53,$Y$7,$Y$8,CONFIGURATION!$B$10,\"BMA\",CONFIGURATION!$B$1,\"bscr\",CONFIGURATION!$B$12)","v":"-"},{"$f":"XBRLMap(Q53,V53,$Z$7,$Z$8,CONFIGURATION!$B$10,\"BMA\",CONFIGURATION!$B$1,\"bscr\",CONFIGURATION!$B$12)","v":"-"},null,""]
[null,"(h)","Statutory Surplus - End of Year",null,null,null,{"$f":"G40+G42+G44+G46+G48+G50+G52","v":0},null,{"$f":"I40+I42+I44+I46+I48+I50+I52","v":0},null,{"$f":"K40+K42+K44+K46+K48+K50+K52","v":0},null,{"$f":"M40+M42+M44+M46+M48+M50+M52","v":0},null,{"$f":"O40+O42+O44+O46+O48+O50+O52","v":0},null,{"$f":"Q40+Q42+Q44+Q46+Q48+Q50+Q52","v":0},null,null,null,null,"brrt_StatutorySurplus",null,null,{"$f":"XBRLMap(O54,V54,$Y$8,$Y$8,CONFIGURATION!$B$10,\"BMA\",CONFIGURATION!$B$1,\"bscr\",CONFIGURATION!$B$12)","v":"Mapped"},{"$f":"XBRLMap(Q54,V54,$Z$8,$Z$8,CONFIGURATION!$B$10,\"BMA\",CONFIGURATION!$B$1,\"bscr\",CONFIGURATION!$B$12)","v":"Mapped"},null,"bma_StatutorySurplusEndOfYear"]
[]
[null,"3.","MINORITY INTEREST",null,null,null,{"$f":"Import!E440","v":0},null,{"$f":"Import!G440","v":0},null,{"$f":"Import!E428","v":0},null,{"$f":"Import!G428","v":0},null,{"$f":"Import!I428","v":0},null,{"$f":"Import!K428","v":0},null,null,null,null,"brrt_ChangeInAnyOtherStatutoryCapital",null,null,{"$f":"XBRLMap(O56,V56,$Y$7,$Y$8,CONFIGURATION!$B$10,\"BMA\",CONFIGURATION!$B$1,\"bscr\",CONFIGURATION!$B$12)","v":"Mapped"},{"$f":"XBRLMap(Q56,V56,$Z$7,$Z$8,CONFIGURATION!$B$10,\"BMA\",CONFIGURATION!$B$1,\"bscr\",CONFIGURATION!$B$12)","v":"Mapped"},null,"bma_AddDeductChangeInAnyOtherStatutoryCapital"]
[null,null,null,null,null,null,null,null,null,null,null,null,null,null,null,null,null,null,null,null,null,"",null,null,{"$f":"XBRLMap(O57,V57,$Y$7,$Y$8,CONFIGURATION!$B$10,\"BMA\",CONFIGURATION!$B$1,\"bscr\",CONFIGURATION!$B$12)","v":"-"},{"$f":"XBRLMap(Q57,V57,$Z$7,$Z$8,CONFIGURATION!$B$10,\"BMA\",CONFIGURATION!$B$1,\"bscr\",CONFIGURATION!$B$12)","v":"-"},null,""]
[null,"4.","TOTAL STATUTORY CAPITAL AND SURPLUS",null,null,null,{"$f":"G36+G54+G56","v":0},null,{"$f":"I36+I54+I56","v":0},null,{"$f":"K36+K54+K56","v":0},null,{"$f":"M36+M54+M56","v":0},null,{"$f":"O36+O54+O56","v":0},null,{"$f":"Q36+Q54+Q56","v":0},null,null,null,null,"brrt_StatutoryCapitalAndSurplus",null,null,{"$f":"XBRLMap(O58,V58,$Y$7,$Y$8,CONFIGURATION!$B$10,\"BMA\",CONFIGURATION!$B$1,\"bscr\",CONFIGURATION!$B$12)","v":"Mapped"},{"$f":"XBRLMap(Q58,V58,$Z$7,$Z$8,CONFIGURATION!$B$10,\"BMA\",CONFIGURATION!$B$1,\"bscr\",CONFIGURATION!$B$12)","v":"Mapped"},null,"bma_StatutoryStatementTotalStatutoryCapitalAndSurplus"]
[]
[null,null,null,null,null,null,null,null,null,null,"Change in other statutory capital and surplus"]
[null,"Line 2g","Change in any other statutory capital"]
[]
[null,"Line 4","Total Statutory Capital & Surplus",null,null,null,null,null,null,null,{"$f":"HYPERLINK(\"#'Schedule V(g)'!A1\",\"Refer to Schedule V(g)\")","v":"Refer to Schedule V(g)"}]

{"sheet":"Form 4EBS","index":21,"n_rows":238,"n_cols":20,"rows_kept":238,"cut":false,"hidden":false,"merged":[]}
[null,"ECONOMIC BALANCE SHEET",null,null,null,null,null,{"$f":"HYPERLINK(\"#'Index'!A1\",\"Return to Index\")","v":"Return to Index"}]
[null,{"$f":"'Insurer Information'!C7","v":"Enter Company Name"},null,null,null,null,null,null,null,null,null,null,null,null,null,null,null,null,null,"bma_BusinessTypeAxis"]
[null,"As at",{"$f":"'Insurer Information'!C3","v":"2019-12-31"},null,null,null,null,"FORM 4EBS",null,null,null,null,null,null,null,null,null,null,null,"bma_LongTermBusinessMember"]
[null,{"$f":"\"Expressed in \" & IF(CONFIGURATION!$B$12>1,\" ['\"&MID(CONFIGURATION!$B$12,2,LEN(CONFIGURATION!$B$12))&\"s]\",\"\")","v":"Expressed in  ['000s]"},"United States Dollars"]
[null,null,null,null,null,null,null,null,null,null,null,{"$f":"IF(F6=\"\",\"\",TEXT(DATE(YEAR(F6+1)-1,MONTH(F6+1),DAY(F6+1)),\"mm/dd/yyyy\"))","v":"01/01/2019"},{"$f":"IF(H6=\"\",\"\",TEXT(DATE(YEAR(H6+1)-1,MONTH(H6+1),DAY(H6+1)),\"mm/dd/yyyy\"))","v":"01/01/2018"}]
[null,"STMT.",null,null,null,{"$f":"C3","v":"2019-12-31"},null,{"$f":"DATE(YEAR(C3) -1, MONTH(C3), DAY(C3))","v":"2018-12-31"},null,null,null,{"$f":"IF(F6=\"\",\"\",TEXT(F6,\"mm/dd/yyyy\"))","v":"12/31/2019"},{"$f":"IF(H6=\"\",\"\",TEXT(H6,\"mm/dd/yyyy\"))","v":"12/31/2018"},{"$f":"YEAR('Insurer Information'!C3)","v":2019}]
[null,"LINE No.",null,null,null,{"$f":"CONFIGURATION!$D$12","v":" ('000s)"},null,{"$f":"CONFIGURATION!$D$12","v":" ('000s)"},null,null,null,null,null,null,null,null,null,null,null,"bma_ReportForTheYearEnding"]
[null,null,null,null,null,null,null,null,null,null,"",null,null,null,null,null,null,null,null,""]
[]
[null,"1.","CASH AND CASH EQUIVALENTS",null,null,{"$f":"Import!M99","v":0},null,{"$f":"Import!O99","v":0},null,null,"brrt_CashAndTimeDeposits",{"$f":"XBRLMap(F10,$K10,$L$5,$L$6,CONFIGURATION!$B$10,\"BMA\",CONFIGURATION!$B$1,\"bscr\",CONFIGURATION!$B$12)","v":"Mapped"},{"$f":"XBRLMap(H10,$K10,$M$5,$M$6,CONFIGURATION!$B$10,\"BMA\",CONFIGURATION!$B$1,\"bscr\",CONFIGURATION!$B$12)","v":"Mapped"},null,null,null,null,null,null,"bma_CashAndTimeDeposits"]
[null,null,null,null,null,null,null,null,null,null,"",null,null,null,null,null,null,null,null,""]
[null,"2.","QUOTED INVESTMENTS:",null,null,null,null,null,null,null,""]
[null,"(b) ","Total Bonds and Debentures",null,null,{"$f":"Import!M102","v":0},null,{"$f":"Import!O102","v":0},null,null,"brrt_QuotedInvestmentsBondsAndDebentures",{"$f":"XBRLMap(F13,$K13,$L$5,$L$6,CONFIGURATION!$B$10,\"BMA\",CONFIGURATION!$B$1,\"bscr\",CONFIGURATION!$B$12)","v":"Mapped"},{"$f":"XBRLMap(H13,$K13,$M$5,$M$6,CONFIGURATION!$B$10,\"BMA\",CONFIGURATION!$B$1,\"bscr\",CONFIGURATION!$B$12)","v":"Mapped"},null,null,null,null,null,null,"bma_QuotedInvestmentsTotalBondsAndDebentures"]
[null,"(c) ","Equities ",null,null,null,null,null,null,null,null,{"$f":"XBRLMap(F14,$K14,$L$5,$L$6,CONFIGURATION!$B$10,\"BMA\",CONFIGURATION!$B$1,\"bscr\",CONFIGURATION!$B$12)","v":"-"},{"$f":"XBRLMap(H14,$K14,$M$5,$M$6,CONFIGURATION!$B$10,\"BMA\",CONFIGURATION!$B$1,\"bscr\",CONFIGURATION!$B$12)","v":"-"}]
[null,null,"  i.  Common Stocks",null,null,{"$f":"Import!M103","v":0},null,{"$f":"Import!O103","v":0},null,null,"brrt_QuotedInvestmentsEquitiesCommonStocks",{"$f":"XBRLMap(F15,$K15,$L$5,$L$6,CONFIGURATION!$B$10,\"BMA\",CONFIGURATION!$B$1,\"bscr\",CONFIGURATION!$B$12)","v":"Mapped"},{"$f":"XBRLMap(H15,$K15,$M$5,$M$6,CONFIGURATION!$B$10,\"BMA\",CONFIGURATION!$B$1,\"bscr\",CONFIGURATION!$B$12)","v":"Mapped"},null,null,null,null,null,null,"bma_QuotedInvestmentsEquitiesCommonStocks"]
[null,null,"  ii. Preferred Stocks",null,null,{"$f":"Import!M104","v":0},null,{"$f":"Import!O104","v":0},null,null,"brrt_QuotedInvestmentsEquitiesPreferredStocks",{"$f":"XBRLMap(F16,$K16,$L$5,$L$6,CONFIGURATION!$B$10,\"BMA\",CONFIGURATION!$B$1,\"bscr\",CONFIGURATION!$B$12)","v":"Mapped"},{"$f":"XBRLMap(H16,$K16,$M$5,$M$6,CONFIGURATION!$B$10,\"BMA\",CONFIGURATION!$B$1,\"bscr\",CONFIGURATION!$B$12)","v":"Mapped"},null,null,null,null,null,null,"bma_QuotedInvestmentsEquitiesPreferredStocks"]
[null,null,"  iii. Mutual Funds",null,null,{"$f":"Import!M105","v":0},null,{"$f":"Import!O105","v":0},null,null,"brrt_QuotedInvestmentsEquitiesMutualFunds",{"$f":"XBRLMap(F17,$K17,$L$5,$L$6,CONFIGURATION!$B$10,\"BMA\",CONFIGURATION!$B$1,\"bscr\",CONFIGURATION!$B$12)","v":"Mapped"},{"$f":"XBRLMap(H17,$K17,$M$5,$M$6,CONFIGURATION!$B$10,\"BMA\",CONFIGURATION!$B$1,\"bscr\",CONFIGURATION!$B$12)","v":"Mapped"},null,null,null,null,null,null,"bma_QuotedInvestmentsEquitiesMutualFunds"]
[null,"(d) ","Total Equity Investments",null,null,{"$f":"SUM(F15:F17)","v":0},null,{"$f":"SUM(H15:H17)","v":0},null,null,"brrt_QuotedInvestmentsEquities",{"$f":"XBRLMap(F18,$K18,$L$5,$L$6,CONFIGURATION!$B$10,\"BMA\",CONFIGURATION!$B$1,\"bscr\",CONFIGURATION!$B$12)","v":"Mapped"},{"$f":"XBRLMap(H18,$K18,$M$5,$M$6,CONFIGURATION!$B$10,\"BMA\",CONFIGURATION!$B$1,\"bscr\",CONFIGURATION!$B$12)","v":"Mapped"},null,null,null,null,null,null,"bma_QuotedInvestmentsTotalEquityInvestments"]
[null,"(e)","Other Quoted Investments",null,null,{"$f":"Import!M106","v":0},null,{"$f":"Import!O106","v":0},null,null,"brrt_QuotedInvestmentsOther",{"$f":"XBRLMap(F19,$K19,$L$5,$L$6,CONFIGURATION!$B$10,\"BMA\",CONFIGURATION!$B$1,\"bscr\",CONFIGURATION!$B$12)","v":"Mapped"},{"$f":"XBRLMap(H19,$K19,$M$5,$M$6,CONFIGURATION!$B$10,\"BMA\",CONFIGURATION!$B$1,\"bscr\",CONFIGURATION!$B$12)","v":"Mapped"},null,null,null,null,null,null,"bma_QuotedInvestmentsOtherInvestments"]
[null,"(f)","Total Quoted Investments",null,null,{"$f":"F13+F18+F19","v":0},null,{"$f":"H13+H18+H19","v":0},null,null,"brrt_QuotedInvestments",{"$f":"XBRLMap(F20,$K20,$L$5,$L$6,CONFIGURATION!$B$10,\"BMA\",CONFIGURATION!$B$1,\"bscr\",CONFIGURATION!$B$12)","v":"Mapped"},{"$f":"XBRLMap(H20,$K20,$M$5,$M$6,CONFIGURATION!$B$10,\"BMA\",CONFIGURATION!$B$1,\"bscr\",CONFIGURATION!$B$12)","v":"Mapped"},null,null,null,null,null,null,"bma_QuotedInvestmentsTotalInvestments"]
[null,null,null,null,null,null,null,null,null,null,"",null,null,null,null,null,null,null,null,""]
[null,"3.","UNQUOTED INVESTMENTS:",null,null,null,null,null,null,null,""]
[null,"(b) ","Bonds and Debentures",null,null,{"$f":"Import!M109","v":0},null,{"$f":"Import!O109","v":0},null,null,"brrt_UnquotedInvestmentsBondsAndDebentures",{"$f":"XBRLMap(F23,$K23,$L$5,$L$6,CONFIGURATION!$B$10,\"BMA\",CONFIGURATION!$B$1,\"bscr\",CONFIGURATION!$B$12)","v":"Mapped"},{"$f":"XBRLMap(H23,$K23,$M$5,$M$6,CONFIGURATION!$B$10,\"BMA\",CONFIGURATION!$B$1,\"bscr\",CONFIGURATION!$B$12)","v":"Mapped"},null,null,null,null,null,null,"bma_UnquotedInvestmentsTotalBondsAndDebentures"]
[null,"(c) ","Equities ",null,null,null,null,null,null,null,"",{"$f":"XBRLMap(F24,$K24,$L$5,$L$6,CONFIGURATION!$B$10,\"BMA\",CONFIGURATION!$B$1,\"bscr\",CONFIGURATION!$B$12)","v":"-"},{"$f":"XBRLMap(H24,$K24,$M$5,$M$6,CONFIGURATION!$B$10,\"BMA\",CONFIGURATION!$B$1,\"bscr\",CONFIGURATION!$B$12)","v":"-"}]
[null,null,"  i.  Common Stocks",null,null,{"$f":"Import!M110","v":0},null,{"$f":"Import!O110","v":0},null,null,"brrt_UnquotedInvestmentsEquitiesCommonStocks",{"$f":"XBRLMap(F25,$K25,$L$5,$L$6,CONFIGURATION!$B$10,\"BMA\",CONFIGURATION!$B$1,\"bscr\",CONFIGURATION!$B$12)","v":"Mapped"},{"$f":"XBRLMap(H25,$K25,$M$5,$M$6,CONFIGURATION!$B$10,\"BMA\",CONFIGURATION!$B$1,\"bscr\",CONFIGURATION!$B$12)","v":"Mapped"},null,null,null,null,null,null,"bma_UnquotedInvestmentsEquitiesCommonStocks"]
[null,null,"  ii. Preferred Stocks",null,null,{"$f":"Import!M111","v":0},null,{"$f":"Import!O111","v":0},null,null,"brrt_UnquotedInvestmentsEquitiesPreferredStocks",{"$f":"XBRLMap(F26,$K26,$L$5,$L$6,CONFIGURATION!$B$10,\"BMA\",CONFIGURATION!$B$1,\"bscr\",CONFIGURATION!$B$12)","v":"Mapped"},{"$f":"XBRLMap(H26,$K26,$M$5,$M$6,CONFIGURATION!$B$10,\"BMA\",CONFIGURATION!$B$1,\"bscr\",CONFIGURATION!$B$12)","v":"Mapped"},null,null,null,null,null,null,"bma_UnquotedInvestmentsEquitiesPreferredStocks"]
[null,null,"  iii. Mutual Funds",null,null,{"$f":"Import!M112","v":0},null,{"$f":"Import!O112","v":0},null,null,"brrt_UnquotedInvestmentsEquitiesMutualFunds",{"$f":"XBRLMap(F27,$K27,$L$5,$L$6,CONFIGURATION!$B$10,\"BMA\",CONFIGURATION!$B$1,\"bscr\",CONFIGURATION!$B$12)","v":"Mapped"},{"$f":"XBRLMap(H27,$K27,$M$5,$M$6,CONFIGURATION!$B$10,\"BMA\",CONFIGURATION!$B$1,\"bscr\",CONFIGURATION!$B$12)","v":"Mapped"},null,null,null,null,null,null,"bma_UnquotedInvestmentsEquitiesMutualFunds"]
[null,"(d) ","Total Equity Investments",null,null,{"$f":"SUM(F25:F27)","v":0},null,{"$f":"SUM(H25:H27)","v":0},null,null,"brrt_UnquotedInvestmentsEquities",{"$f":"XBRLMap(F28,$K28,$L$5,$L$6,CONFIGURATION!$B$10,\"BMA\",CONFIGURATION!$B$1,\"bscr\",CONFIGURATION!$B$12)","v":"Mapped"},{"$f":"XBRLMap(H28,$K28,$M$5,$M$6,CONFIGURATION!$B$10,\"BMA\",CONFIGURATION!$B$1,\"bscr\",CONFIGURATION!$B$12)","v":"Mapped"},null,null,null,null,null,null,"bma_UnquotedInvestmentsTotalEquityInvestments"]
[null,"(e)","Other Unquoted Investments",null,null,{"$f":"Import!M113","v":0},null,{"$f":"Import!O113","v":0},null,null,"brrt_UnquotedInvestmentsOther",{"$f":"XBRLMap(F29,$K29,$L$5,$L$6,CONFIGURATION!$B$10,\"BMA\",CONFIGURATION!$B$1,\"bscr\",CONFIGURATION!$B$12)","v":"Mapped"},{"$f":"XBRLMap(H29,$K29,$M$5,$M$6,CONFIGURATION!$B$10,\"BMA\",CONFIGURATION!$B$1,\"bscr\",CONFIGURATION!$B$12)","v":"Mapped"},null,null,null,null,null,null,"bma_UnquotedInvestmentsOtherInvestments"]
[null,"(f)","Total Unquoted Investments",null,null,{"$f":"F23+F28+F29","v":0},null,{"$f":"H23+H28+H29","v":0},null,null,"brrt_UnquotedInvestments",{"$f":"XBRLMap(F30,$K30,$L$5,$L$6,CONFIGURATION!$B$10,\"BMA\",CONFIGURATION!$B$1,\"bscr\",CONFIGURATION!$B$12)","v":"Mapped"},{"$f":"XBRLMap(H30,$K30,$M$5,$M$6,CONFIGURATION!$B$10,\"BMA\",CONFIGURATION!$B$1,\"bscr\",CONFIGURATION!$B$12)","v":"Mapped"},null,null,null,null,null,null,"bma_UnquotedInvestmentsTotalInvestments"]
[null,null,null,null,null,null,null,null,null,null,"",{"$f":"XBRLMap(F31,$K31,$L$5,$L$6,CONFIGURATION!$B$10,\"BMA\",CONFIGURATION!$B$1,\"bscr\",CONFIGURATION!$B$12)","v":"-"},{"$f":"XBRLMap(H31,$K31,$M$5,$M$6,CONFIGURATION!$B$10,\"BMA\",CONFIGURATION!$B$1,\"bscr\",CONFIGURATION!$B$12)","v":"-"},null,null,null,null,null,null,""]
[null,"4.","INVESTMENTS IN AND ADVANCES TO AFFILIATES (EQUITY METHOD):",null,null,null,null,null,null,null,null,{"$f":"XBRLMap(F32,$K32,$L$5,$L$6,CONFIGURATION!$B$10,\"BMA\",CONFIGURATION!$B$1,\"bscr\",CONFIGURATION!$B$12)","v":"-"},{"$f":"XBRLMap(H32,$K32,$M$5,$M$6,CONFIGURATION!$B$10,\"BMA\",CONFIGURATION!$B$1,\"bscr\",CONFIGURATION!$B$12)","v":"-"},null,null,null,null,null,null,"bma_InvestmentsInAndAdvancesToAffiliatesTotalInvestmentsInAndAdvancesToAffiliates"]
[null,"(a)","Unregulated entities that conduct ancillary services",null,null,{"$f":"Import!M114","v":0},null,{"$f":"Import!O114","v":0},null,null,"brrt_UnregulatedEntitiesThatConductAncillaryServices",{"$f":"XBRLMap(F33,$K33,$L$5,$L$6,CONFIGURATION!$B$10,\"BMA\",CONFIGURATION!$B$1,\"bscr\",CONFIGURATION!$B$12)","v":"Mapped"},{"$f":"XBRLMap(H33,$K33,$M$5,$M$6,CONFIGURATION!$B$10,\"BMA\",CONFIGURATION!$B$1,\"bscr\",CONFIGURATION!$B$12)","v":"Mapped"}]
[null,"(b)","Unregulated non-financial operating entities",null,null,{"$f":"Import!M115","v":0},null,{"$f":"Import!O115","v":0},null,null,"brrt_UnregulatedNonFinancialOperatingEntities",{"$f":"XBRLMap(F34,$K34,$L$5,$L$6,CONFIGURATION!$B$10,\"BMA\",CONFIGURATION!$B$1,\"bscr\",CONFIGURATION!$B$12)","v":"Mapped"},{"$f":"XBRLMap(H34,$K34,$M$5,$M$6,CONFIGURATION!$B$10,\"BMA\",CONFIGURATION!$B$1,\"bscr\",CONFIGURATION!$B$12)","v":"Mapped"}]
[null,"(c)","Unregulated financial operating entities",null,null,{"$f":"Import!M116","v":0},null,{"$f":"Import!O116","v":0},null,null,"brrt_UnregulatedFinancialOperatingEntities",{"$f":"XBRLMap(F35,$K35,$L$5,$L$6,CONFIGURATION!$B$10,\"BMA\",CONFIGURATION!$B$1,\"bscr\",CONFIGURATION!$B$12)","v":"Mapped"},{"$f":"XBRLMap(H35,$K35,$M$5,$M$6,CONFIGURATION!$B$10,\"BMA\",CONFIGURATION!$B$1,\"bscr\",CONFIGURATION!$B$12)","v":"Mapped"}]
[null,"(d)","Regulated non-insurance financial operating entities",null,null,{"$f":"Import!M117","v":0},null,{"$f":"Import!O117","v":0},null,null,"brrt_RegulatedNonInsuranceFinancialOperatingEntities",{"$f":"XBRLMap(F36,$K36,$L$5,$L$6,CONFIGURATION!$B$10,\"BMA\",CONFIGURATION!$B$1,\"bscr\",CONFIGURATION!$B$12)","v":"Mapped"},{"$f":"XBRLMap(H36,$K36,$M$5,$M$6,CONFIGURATION!$B$10,\"BMA\",CONFIGURATION!$B$1,\"bscr\",CONFIGURATION!$B$12)","v":"Mapped"}]
[null,"(e)","Regulated insurance financial operating entities",null,null,{"$f":"Import!M118","v":0},null,{"$f":"Import!O118","v":0},null,null,"brrt_RegulatedInsuranceFinancialOperatingEntities",{"$f":"XBRLMap(F37,$K37,$L$5,$L$6,CONFIGURATION!$B$10,\"BMA\",CONFIGURATION!$B$1,\"bscr\",CONFIGURATION!$B$12)","v":"Mapped"},{"$f":"XBRLMap(H37,$K37,$M$5,$M$6,CONFIGURATION!$B$10,\"BMA\",CONFIGURATION!$B$1,\"bscr\",CONFIGURATION!$B$12)","v":"Mapped"}]
[null,"(f)","Total investments in affiliates (equity method)",null,null,{"$f":"SUM(F33:F37)","v":0},null,{"$f":"SUM(H33:H37)","v":0},null,null,"brrt_InvestmentInAffiliates",{"$f":"XBRLMap(F38,$K38,$L$5,$L$6,CONFIGURATION!$B$10,\"BMA\",CONFIGURATION!$B$1,\"bscr\",CONFIGURATION!$B$12)","v":"Mapped"},{"$f":"XBRLMap(H38,$K38,$M$5,$M$6,CONFIGURATION!$B$10,\"BMA\",CONFIGURATION!$B$1,\"bscr\",CONFIGURATION!$B$12)","v":"Mapped"}]
[null,"(g)","Advances to affiliates",null,null,{"$f":"Import!M119","v":0},null,{"$f":"Import!O119","v":0},null,null,"brrt_AdvancesToAffiliates",{"$f":"XBRLMap(F39,$K39,$L$5,$L$6,CONFIGURATION!$B$10,\"BMA\",CONFIGURATION!$B$1,\"bscr\",CONFIGURATION!$B$12)","v":"Mapped"},{"$f":"XBRLMap(H39,$K39,$M$5,$M$6,CONFIGURATION!$B$10,\"BMA\",CONFIGURATION!$B$1,\"bscr\",CONFIGURATION!$B$12)","v":"Mapped"}]
[null,"(h)","Total investments in and advances to affiliates (equity method)",null,null,{"$f":"F38+F39","v":0},null,{"$f":"H38+H39","v":0},null,null,"brrt_InvestmentInAndAdvancesToAffiliates",{"$f":"XBRLMap(F40,$K40,$L$5,$L$6,CONFIGURATION!$B$10,\"BMA\",CONFIGURATION!$B$1,\"bscr\",CONFIGURATION!$B$12)","v":"Mapped"},{"$f":"XBRLMap(H40,$K40,$M$5,$M$6,CONFIGURATION!$B$10,\"BMA\",CONFIGURATION!$B$1,\"bscr\",CONFIGURATION!$B$12)","v":"Mapped"}]
[null,null,null,null,null,null,null,null,null,null,"",{"$f":"XBRLMap(F41,$K41,$L$5,$L$6,CONFIGURATION!$B$10,\"BMA\",CONFIGURATION!$B$1,\"bscr\",CONFIGURATION!$B$12)","v":"-"},{"$f":"XBRLMap(H41,$K41,$M$5,$M$6,CONFIGURATION!$B$10,\"BMA\",CONFIGURATION!$B$1,\"bscr\",CONFIGURATION!$B$12)","v":"-"},null,null,null,null,null,null,""]
[null,"5.","INVESTMENTS IN MORTGAGE LOANS ON REAL ESTATE:",null,null,null,null,null,null,null,null,{"$f":"XBRLMap(F42,$K42,$L$5,$L$6,CONFIGURATION!$B$10,\"BMA\",CONFIGURATION!$B$1,\"bscr\",CONFIGURATION!$B$12)","v":"-"},null,null,null,null,null,null,null,"bma_InvestmentsInMortgageLoansOnRealEstateTotalInvestmentsInMortgageLoansOnRealEstate"]
[null,"(a)","First Liens",null,null,{"$f":"Import!M120","v":0},null,{"$f":"Import!O120","v":0},null,null,"brrt_InvestmentsInMortgageLoansOnRealEstateFirstLiens",{"$f":"XBRLMap(F43,$K43,$L$5,$L$6,CONFIGURATION!$B$10,\"BMA\",CONFIGURATION!$B$1,\"bscr\",CONFIGURATION!$B$12)","v":"Mapped"},{"$f":"XBRLMap(H43,$K43,$M$5,$M$6,CONFIGURATION!$B$10,\"BMA\",CONFIGURATION!$B$1,\"bscr\",CONFIGURATION!$B$12)","v":"Mapped"}]
[null,"(b) ","Other than First Liens",null,null,{"$f":"Import!M121","v":0},null,{"$f":"Import!O121","v":0},null,null,"brrt_InvestmentsInMortgageLoansOnRealEstateOtherThanFirstLiens",{"$f":"XBRLMap(F44,$K44,$L$5,$L$6,CONFIGURATION!$B$10,\"BMA\",CONFIGURATION!$B$1,\"bscr\",CONFIGURATION!$B$12)","v":"Mapped"},{"$f":"XBRLMap(H44,$K44,$M$5,$M$6,CONFIGURATION!$B$10,\"BMA\",CONFIGURATION!$B$1,\"bscr\",CONFIGURATION!$B$12)","v":"Mapped"}]
[null,"(c) ","Total Investments in Mortgage Loans on Real Estate",null,null,{"$f":"F43+F44","v":0},null,{"$f":"H43+H44","v":0},null,null,"brrt_InvestmentsInMortgageLoansOnRealEstate",{"$f":"XBRLMap(F45,$K45,$L$5,$L$6,CONFIGURATION!$B$10,\"BMA\",CONFIGURATION!$B$1,\"bscr\",CONFIGURATION!$B$12)","v":"Mapped"},{"$f":"XBRLMap(H45,$K45,$M$5,$M$6,CONFIGURATION!$B$10,\"BMA\",CONFIGURATION!$B$1,\"bscr\",CONFIGURATION!$B$12)","v":"Mapped"}]
[null,null,null,null,null,null,null,null,null,null,"",{"$f":"XBRLMap(F46,$K46,$L$5,$L$6,CONFIGURATION!$B$10,\"BMA\",CONFIGURATION!$B$1,\"bscr\",CONFIGURATION!$B$12)","v":"-"},{"$f":"XBRLMap(H46,$K46,$M$5,$M$6,CONFIGURATION!$B$10,\"BMA\",CONFIGURATION!$B$1,\"bscr\",CONFIGURATION!$B$12)","v":"-"},null,null,null,null,null,null,""]
[null,"6.","POLICY LOANS",null,null,{"$f":"Import!M122","v":0},null,{"$f":"Import!O122","v":0},null,null,"brrt_PolicyLoans",{"$f":"XBRLMap(F47,$K47,$L$5,$L$6,CONFIGURATION!$B$10,\"BMA\",CONFIGURATION!$B$1,\"bscr\",CONFIGURATION!$B$12)","v":"Mapped"},{"$f":"XBRLMap(H47,$K47,$M$5,$M$6,CONFIGURATION!$B$10,\"BMA\",CONFIGURATION!$B$1,\"bscr\",CONFIGURATION!$B$12)","v":"Mapped"},null,null,null,null,null,null,"bma_PolicyLoans"]
[null,null,null,null,null,null,null,null,null,null,null,{"$f":"XBRLMap(F48,$K48,$L$5,$L$6,CONFIGURATION!$B$10,\"BMA\",CONFIGURATION!$B$1,\"bscr\",CONFIGURATION!$B$12)","v":"-"},{"$f":"XBRLMap(H48,$K48,$M$5,$M$6,CONFIGURATION!$B$10,\"BMA\",CONFIGURATION!$B$1,\"bscr\",CONFIGURATION!$B$12)","v":"-"}]
[null,"7.","REAL ESTATE:",null,null,null,null,null,null,null,null,{"$f":"XBRLMap(F49,$K49,$L$5,$L$6,CONFIGURATION!$B$10,\"BMA\",CONFIGURATION!$B$1,\"bscr\",CONFIGURATION!$B$12)","v":"-"},{"$f":"XBRLMap(H49,$K49,$M$5,$M$6,CONFIGURATION!$B$10,\"BMA\",CONFIGURATION!$B$1,\"bscr\",CONFIGURATION!$B$12)","v":"-"}]
[null,"(a)","Occupied by the company (less encumbrances)",null,null,{"$f":"Import!M123","v":0},null,{"$f":"Import!O123","v":0},null,null,"brrt_RealEstateOccupiedByTheCompanyLessEncumbrances",{"$f":"XBRLMap(F50,$K50,$L$5,$L$6,CONFIGURATION!$B$10,\"BMA\",CONFIGURATION!$B$1,\"bscr\",CONFIGURATION!$B$12)","v":"Mapped"},{"$f":"XBRLMap(H50,$K50,$M$5,$M$6,CONFIGURATION!$B$10,\"BMA\",CONFIGURATION!$B$1,\"bscr\",CONFIGURATION!$B$12)","v":"Mapped"},null,null,null,null,null,null,"bma_RealEstateOccupiedByTheCompanyLessEncumbrances"]
[null,"(b)","Other properties (less encumbrances)",null,null,{"$f":"Import!M124","v":0},null,{"$f":"Import!O124","v":0},null,null,"brrt_OtherRealEstatePropertiesLessEncumbrances",{"$f":"XBRLMap(F51,$K51,$L$5,$L$6,CONFIGURATION!$B$10,\"BMA\",CONFIGURATION!$B$1,\"bscr\",CONFIGURATION!$B$12)","v":"Mapped"},{"$f":"XBRLMap(H51,$K51,$M$5,$M$6,CONFIGURATION!$B$10,\"BMA\",CONFIGURATION!$B$1,\"bscr\",CONFIGURATION!$B$12)","v":"Mapped"},null,null,null,null,null,null,"bma_RealEstateOtherPropertiesLessEncumbrances"]
[null,"(c) ","Total real estate",null,null,{"$f":"SUM(F50:F51)","v":0},null,{"$f":"SUM(H50:H51)","v":0},null,null,"brrt_RealEstate",{"$f":"XBRLMap(F52,$K52,$L$5,$L$6,CONFIGURATION!$B$10,\"BMA\",CONFIGURATION!$B$1,\"bscr\",CONFIGURATION!$B$12)","v":"Mapped"},{"$f":"XBRLMap(H52,$K52,$M$5,$M$6,CONFIGURATION!$B$10,\"BMA\",CONFIGURATION!$B$1,\"bscr\",CONFIGURATION!$B$12)","v":"Mapped"},null,null,null,null,null,null,"bma_TotalRealEstate"]
[null,null,null,null,null,null,null,null,null,null,"",{"$f":"XBRLMap(F53,$K53,$L$5,$L$6,CONFIGURATION!$B$10,\"BMA\",CONFIGURATION!$B$1,\"bscr\",CONFIGURATION!$B$12)","v":"-"},{"$f":"XBRLMap(H53,$K53,$M$5,$M$6,CONFIGURATION!$B$10,\"BMA\",CONFIGURATION!$B$1,\"bscr\",CONFIGURATION!$B$12)","v":"-"},null,null,null,null,null,null,""]
[null,"8.","COLLATERAL LOANS",null,null,{"$f":"Import!M125","v":0},null,{"$f":"Import!O125","v":0},null,null,"brrt_CollateralLoans",{"$f":"XBRLMap(F54,$K54,$L$5,$L$6,CONFIGURATION!$B$10,\"BMA\",CONFIGURATION!$B$1,\"bscr\",CONFIGURATION!$B$12)","v":"Mapped"},{"$f":"XBRLMap(H54,$K54,$M$5,$M$6,CONFIGURATION!$B$10,\"BMA\",CONFIGURATION!$B$1,\"bscr\",CONFIGURATION!$B$12)","v":"Mapped"},null,null,null,null,null,null,"bma_CollateralLoans"]
[null,null,null,null,null,null,null,null,null,null,"",{"$f":"XBRLMap(F55,$K55,$L$5,$L$6,CONFIGURATION!$B$10,\"BMA\",CONFIGURATION!$B$1,\"bscr\",CONFIGURATION!$B$12)","v":"-"},{"$f":"XBRLMap(H55,$K55,$M$5,$M$6,CONFIGURATION!$B$10,\"BMA\",CONFIGURATION!$B$1,\"bscr\",CONFIGURATION!$B$12)","v":"-"},null,null,null,null,null,null,""]
[null,"9.","INVESTMENT INCOME DUE AND ACCRUED",null,null,{"$f":"Import!M126","v":0},null,{"$f":"Import!O126","v":0},null,null,"brrt_InvestmentIncomeDueAndAccrued",{"$f":"XBRLMap(F56,$K56,$L$5,$L$6,CONFIGURATION!$B$10,\"BMA\",CONFIGURATION!$B$1,\"bscr\",CONFIGURATION!$B$12)","v":"Mapped"},{"$f":"XBRLMap(H56,$K56,$M$5,$M$6,CONFIGURATION!$B$10,\"BMA\",CONFIGURATION!$B$1,\"bscr\",CONFIGURATION!$B$12)","v":"Mapped"},null,null,null,null,null,null,"bma_InvestmentIncomeDueAndAccrued"]
[null,null,null,null,null,null,null,null,null,null,"",{"$f":"XBRLMap(F57,$K57,$L$5,$L$6,CONFIGURATION!$B$10,\"BMA\",CONFIGURATION!$B$1,\"bscr\",CONFIGURATION!$B$12)","v":"-"},{"$f":"XBRLMap(H57,$K57,$M$5,$M$6,CONFIGURATION!$B$10,\"BMA\",CONFIGURATION!$B$1,\"bscr\",CONFIGURATION!$B$12)","v":"-"},null,null,null,null,null,null,""]
[null,"10.","ACCOUNTS AND PREMIUMS RECEIVABLE",null,null,null,null,null,null,null,"",{"$f":"XBRLMap(F58,$K58,$L$5,$L$6,CONFIGURATION!$B$10,\"BMA\",CONFIGURATION!$B$1,\"bscr\",CONFIGURATION!$B$12)","v":"-"},{"$f":"XBRLMap(H58,$K58,$M$5,$M$6,CONFIGURATION!$B$10,\"BMA\",CONFIGURATION!$B$1,\"bscr\",CONFIGURATION!$B$12)","v":"-"}]
[null,"(a)","In course of collection",null,null,{"$f":"Import!M127","v":0},null,{"$f":"Import!O127","v":0},null,null,"brrt_AccountsAndPremiumsReceivableInCourseOfCollection",{"$f":"XBRLMap(F59,$K59,$L$5,$L$6,CONFIGURATION!$B$10,\"BMA\",CONFIGURATION!$B$1,\"bscr\",CONFIGURATION!$B$12)","v":"Mapped"},{"$f":"XBRLMap(H59,$K59,$M$5,$M$6,CONFIGURATION!$B$10,\"BMA\",CONFIGURATION!$B$1,\"bscr\",CONFIGURATION!$B$12)","v":"Mapped"},null,null,null,null,null,null,"bma_AccountsAndPremiumsReceivableInCourseOfCollection"]
[null,"(c) ","Receivables from retrocessional contracts",null,null,{"$f":"Import!M129","v":0},null,{"$f":"Import!O129","v":0},null,null,"brrt_AccountsAndPremiumsReceivableReceivablesFromRetrocessionalContracts",{"$f":"XBRLMap(F60,$K60,$L$5,$L$6,CONFIGURATION!$B$10,\"BMA\",CONFIGURATION!$B$1,\"bscr\",CONFIGURATION!$B$12)","v":"Mapped"},{"$f":"XBRLMap(H60,$K60,$M$5,$M$6,CONFIGURATION!$B$10,\"BMA\",CONFIGURATION!$B$1,\"bscr\",CONFIGURATION!$B$12)","v":"Mapped"},null,null,null,null,null,null,"bma_AccountsAndPremiumsReceivableReceivablesFromRetrocessionalContracts"]
[null,"(d) ","Total accounts and premiums receivable",null,null,{"$f":"SUM(F59:F60)","v":0},null,{"$f":"SUM(H59:H60)","v":0},null,null,"brrt_AccountsAndPremiumsReceivable",{"$f":"XBRLMap(F61,$K61,$L$5,$L$6,CONFIGURATION!$B$10,\"BMA\",CONFIGURATION!$B$1,\"bscr\",CONFIGURATION!$B$12)","v":"Mapped"},{"$f":"XBRLMap(H61,$K61,$M$5,$M$6,CONFIGURATION!$B$10,\"BMA\",CONFIGURATION!$B$1,\"bscr\",CONFIGURATION!$B$12)","v":"Mapped"},null,null,null,null,null,null,"bma_TotalAccountsAndPremiumsReceivable"]
[null,null,null,null,null,null,null,null,null,null,"",{"$f":"XBRLMap(F62,$K62,$L$5,$L$6,CONFIGURATION!$B$10,\"BMA\",CONFIGURATION!$B$1,\"bscr\",CONFIGURATION!$B$12)","v":"-"},{"$f":"XBRLMap(H62,$K62,$M$5,$M$6,CONFIGURATION!$B$10,\"BMA\",CONFIGURATION!$B$1,\"bscr\",CONFIGURATION!$B$12)","v":"-"},null,null,null,null,null,null,""]
[null,"11.","REINSURANCE BALANCES RECEIVABLE",null,null,null,null,null,null,null,"",{"$f":"XBRLMap(F63,$K63,$L$5,$L$6,CONFIGURATION!$B$10,\"BMA\",CONFIGURATION!$B$1,\"bscr\",CONFIGURATION!$B$12)","v":"-"},{"$f":"XBRLMap(H63,$K63,$M$5,$M$6,CONFIGURATION!$B$10,\"BMA\",CONFIGURATION!$B$1,\"bscr\",CONFIGURATION!$B$12)","v":"-"}]
[null,"(a)","Foreign affiliates",null,null,{"$f":"Import!M130","v":0},null,{"$f":"Import!O130","v":0},null,null,"brrt_ReinsuranceBalancesReceivableForeignAffiliates",{"$f":"XBRLMap(F64,$K64,$L$5,$L$6,CONFIGURATION!$B$10,\"BMA\",CONFIGURATION!$B$1,\"bscr\",CONFIGURATION!$B$12)","v":"Mapped"},{"$f":"XBRLMap(H64,$K64,$M$5,$M$6,CONFIGURATION!$B$10,\"BMA\",CONFIGURATION!$B$1,\"bscr\",CONFIGURATION!$B$12)","v":"Mapped"},null,null,null,null,null,null,"bma_ReinsuranceBalancesReceivableForeignAffiliates"]
[null,"(b)","Domestic affiliates",null,null,{"$f":"Import!M131","v":0},null,{"$f":"Import!O131","v":0},null,null,"brrt_ReinsuranceBalancesReceivableDomesticAffiliates",{"$f":"XBRLMap(F65,$K65,$L$5,$L$6,CONFIGURATION!$B$10,\"BMA\",CONFIGURATION!$B$1,\"bscr\",CONFIGURATION!$B$12)","v":"Mapped"},{"$f":"XBRLMap(H65,$K65,$M$5,$M$6,CONFIGURATION!$B$10,\"BMA\",CONFIGURATION!$B$1,\"bscr\",CONFIGURATION!$B$12)","v":"Mapped"},null,null,null,null,null,null,"bma_ReinsuranceBalancesReceivableDomesticAffiliates"]
[null,"(c) ","Pools & associations",null,null,{"$f":"Import!M132","v":0},null,{"$f":"Import!O132","v":0},null,null,"brrt_ReinsuranceBalancesReceivablePoolsAndAssociations",{"$f":"XBRLMap(F66,$K66,$L$5,$L$6,CONFIGURATION!$B$10,\"BMA\",CONFIGURATION!$B$1,\"bscr\",CONFIGURATION!$B$12)","v":"Mapped"},{"$f":"XBRLMap(H66,$K66,$M$5,$M$6,CONFIGURATION!$B$10,\"BMA\",CONFIGURATION!$B$1,\"bscr\",CONFIGURATION!$B$12)","v":"Mapped"},null,null,null,null,null,null,"bma_ReinsuranceBalancesReceivablePoolsAndAssociations"]
[null,"(d) ","All other insurers",null,null,{"$f":"Import!M133","v":0},null,{"$f":"Import!O133","v":0},null,null,"brrt_ReinsuranceBalancesReceivableAllOtherInsurers",{"$f":"XBRLMap(F67,$K67,$L$5,$L$6,CONFIGURATION!$B$10,\"BMA\",CONFIGURATION!$B$1,\"bscr\",CONFIGURATION!$B$12)","v":"Mapped"},{"$f":"XBRLMap(H67,$K67,$M$5,$M$6,CONFIGURATION!$B$10,\"BMA\",CONFIGURATION!$B$1,\"bscr\",CONFIGURATION!$B$12)","v":"Mapped"},null,null,null,null,null,null,"bma_ReinsuranceBalancesReceivableAllOtherInsurers"]
[null,"(e)","Total reinsurance balances receivable",null,null,{"$f":"SUM(F64:F67)","v":0},null,{"$f":"SUM(H64:H67)","v":0},null,null,"brrt_ReinsuranceBalancesReceivable",{"$f":"XBRLMap(F68,$K68,$L$5,$L$6,CONFIGURATION!$B$10,\"BMA\",CONFIGURATION!$B$1,\"bscr\",CONFIGURATION!$B$12)","v":"Mapped"},{"$f":"XBRLMap(H68,$K68,$M$5,$M$6,CONFIGURATION!$B$10,\"BMA\",CONFIGURATION!$B$1,\"bscr\",CONFIGURATION!$B$12)","v":"Mapped"},null,null,null,null,null,null,"bma_TotalReinsuranceBalancesReceivable"]
[null,null,null,null,null,null,null,null,null,null,"",{"$f":"XBRLMap(F69,$K69,$L$5,$L$6,CONFIGURATION!$B$10,\"BMA\",CONFIGURATION!$B$1,\"bscr\",CONFIGURATION!$B$12)","v":"-"},{"$f":"XBRLMap(H69,$K69,$M$5,$M$6,CONFIGURATION!$B$10,\"BMA\",CONFIGURATION!$B$1,\"bscr\",CONFIGURATION!$B$12)","v":"-"},null,null,null,null,null,null,""]
[null,"12.","FUNDS HELD BY CEDING REINSURERS",null,null,null,null,null,null,null,null,{"$f":"XBRLMap(F70,$K70,$L$5,$L$6,CONFIGURATION!$B$10,\"BMA\",CONFIGURATION!$B$1,\"bscr\",CONFIGURATION!$B$12)","v":"-"},{"$f":"XBRLMap(H70,$K70,$M$5,$M$6,CONFIGURATION!$B$10,\"BMA\",CONFIGURATION!$B$1,\"bscr\",CONFIGURATION!$B$12)","v":"-"},null,null,null,null,null,null,"bma_TotalFundsHeldByCedingReinsurers"]
[null,"(a)","Affiliates",null,null,{"$f":"Import!M134","v":0},null,{"$f":"Import!O134","v":0},null,null,"brrt_FundsHeldByCedingInsurersAffiliated",{"$f":"XBRLMap(F71,$K71,$L$5,$L$6,CONFIGURATION!$B$10,\"BMA\",CONFIGURATION!$B$1,\"bscr\",CONFIGURATION!$B$12)","v":"Mapped"},{"$f":"XBRLMap(H71,$K71,$M$5,$M$6,CONFIGURATION!$B$10,\"BMA\",CONFIGURATION!$B$1,\"bscr\",CONFIGURATION!$B$12)","v":"Mapped"}]
[null,"(b)","Non-Affiliates",null,null,{"$f":"Import!M135","v":0},null,{"$f":"Import!O135","v":0},null,null,"brrt_FundsHeldByCedingInsurersNonAffiliated",{"$f":"XBRLMap(F72,$K72,$L$5,$L$6,CONFIGURATION!$B$10,\"BMA\",CONFIGURATION!$B$1,\"bscr\",CONFIGURATION!$B$12)","v":"Mapped"},{"$f":"XBRLMap(H72,$K72,$M$5,$M$6,CONFIGURATION!$B$10,\"BMA\",CONFIGURATION!$B$1,\"bscr\",CONFIGURATION!$B$12)","v":"Mapped"}]
[null,"(c) ","Total Funds Held by Ceding Reinsurers",null,null,{"$f":"SUM(F71:F72)","v":0},null,{"$f":"SUM(H71:H72)","v":0},null,null,"brrt_FundsHeldByCedingReinsurers",{"$f":"XBRLMap(F73,$K73,$L$5,$L$6,CONFIGURATION!$B$10,\"BMA\",CONFIGURATION!$B$1,\"bscr\",CONFIGURATION!$B$12)","v":"Mapped"},{"$f":"XBRLMap(H73,$K73,$M$5,$M$6,CONFIGURATION!$B$10,\"BMA\",CONFIGURATION!$B$1,\"bscr\",CONFIGURATION!$B$12)","v":"Mapped"}]
[null,null,null,null,null,null,null,null,null,null,"",{"$f":"XBRLMap(F74,$K74,$L$5,$L$6,CONFIGURATION!$B$10,\"BMA\",CONFIGURATION!$B$1,\"bscr\",CONFIGURATION!$B$12)","v":"-"},{"$f":"XBRLMap(H74,$K74,$M$5,$M$6,CONFIGURATION!$B$10,\"BMA\",CONFIGURATION!$B$1,\"bscr\",CONFIGURATION!$B$12)","v":"-"},null,null,null,null,null,null,""]
[null,"13.","SUNDRY ASSETS:",null,null,null,null,null,null,null,"",{"$f":"XBRLMap(F75,$K75,$L$5,$L$6,CONFIGURATION!$B$10,\"BMA\",CONFIGURATION!$B$1,\"bscr\",CONFIGURATION!$B$12)","v":"-"},{"$f":"XBRLMap(H75,$K75,$M$5,$M$6,CONFIGURATION!$B$10,\"BMA\",CONFIGURATION!$B$1,\"bscr\",CONFIGURATION!$B$12)","v":"-"}]
[null,"(a)","Derivative instruments",null,null,{"$f":"Import!M137","v":0},null,{"$f":"Import!O137","v":0},null,null,"brrt_SundryAssetsDerivativeInstruments",{"$f":"XBRLMap(F76,$K76,$L$5,$L$6,CONFIGURATION!$B$10,\"BMA\",CONFIGURATION!$B$1,\"bscr\",CONFIGURATION!$B$12)","v":"Mapped"},{"$f":"XBRLMap(H76,$K76,$M$5,$M$6,CONFIGURATION!$B$10,\"BMA\",CONFIGURATION!$B$1,\"bscr\",CONFIGURATION!$B$12)","v":"Mapped"},null,null,null,null,null,null,"bma_SundryAssetsDerivativeInstruments"]
[null,"(b)","Segregated Accounts Companies - Variable Annuities",null,null,{"$f":"Import!M138","v":0},null,{"$f":"Import!O138","v":0},null,null,"brrt_SundryAssetsSegregatedAccountsCompaniesVariableAnnuities",{"$f":"XBRLMap(F77,$K77,$L$5,$L$6,CONFIGURATION!$B$10,\"BMA\",CONFIGURATION!$B$1,\"bscr\",CONFIGURATION!$B$12)","v":"Mapped"},{"$f":"XBRLMap(H77,$K77,$M$5,$M$6,CONFIGURATION!$B$10,\"BMA\",CONFIGURATION!$B$1,\"bscr\",CONFIGURATION!$B$12)","v":"Mapped"},null,null,null,null,null,null,"bma_SundryAssetsSegregatedAccountsCompanies"]
[null,"(c)","Segregated Accounts Companies - Others",null,null,{"$f":"Import!M139","v":0},null,{"$f":"Import!O139","v":0},null,null,"brrt_SundryAssetsSegregatedAccountsCompaniesOthers",{"$f":"XBRLMap(F78,$K78,$L$5,$L$6,CONFIGURATION!$B$10,\"BMA\",CONFIGURATION!$B$1,\"bscr\",CONFIGURATION!$B$12)","v":"Mapped"},{"$f":"XBRLMap(H78,$K78,$M$5,$M$6,CONFIGURATION!$B$10,\"BMA\",CONFIGURATION!$B$1,\"bscr\",CONFIGURATION!$B$12)","v":"Mapped"}]
[null,"(e)","Deposit assets",null,null,{"$f":"Import!M141","v":0},null,{"$f":"Import!O141","v":0},null,null,"brrt_SundryAssetsDepositAssets",{"$f":"XBRLMap(F79,$K79,$L$5,$L$6,CONFIGURATION!$B$10,\"BMA\",CONFIGURATION!$B$1,\"bscr\",CONFIGURATION!$B$12)","v":"Mapped"},{"$f":"XBRLMap(H79,$K79,$M$5,$M$6,CONFIGURATION!$B$10,\"BMA\",CONFIGURATION!$B$1,\"bscr\",CONFIGURATION!$B$12)","v":"Mapped"},null,null,null,null,null,null,"bma_SundryAssetsDepositAssets"]
[null,"(f)","Balances receivable on the sale of investments",null,null,{"$f":"Import!M143","v":0},null,{"$f":"Import!O143","v":0}]
[null,"(g)","Intangible assets",null,null,{"$f":"Import!M144","v":0},null,{"$f":"Import!O144","v":0}]
[null,"(h)","Deferred tax Assets",null,null,{"$f":"Import!M145","v":0},null,{"$f":"Import!O145","v":0}]
[null,"(i)","Pension Benefit Surplus",null,null,{"$f":"Import!M146","v":0},null,{"$f":"Import!O146","v":0}]
[null,"(j)",null,null,null,{"$f":"Import!M147","v":0},null,{"$f":"Import!O147","v":0},null,null,"brrt_SundryAssetsOther",{"$f":"XBRLMap(F84,$K84,$L$5,$L$6,CONFIGURATION!$B$10,\"BMA\",CONFIGURATION!$B$1,\"bscr\",CONFIGURATION!$B$12)","v":"Mapped"},{"$f":"XBRLMap(H84,$K84,$M$5,$M$6,CONFIGURATION!$B$10,\"BMA\",CONFIGURATION!$B$1,\"bscr\",CONFIGURATION!$B$12)","v":"Mapped"},null,null,null,null,null,null,"bma_SundryAssetsOther"]
[null,"(k)","Total sundry assets",null,null,{"$f":"SUM(F76:F84)","v":0},null,{"$f":"SUM(H76:H84)","v":0},null,null,"brrt_SundryAssets",{"$f":"XBRLMap(F85,$K85,$L$5,$L$6,CONFIGURATION!$B$10,\"BMA\",CONFIGURATION!$B$1,\"bscr\",CONFIGURATION!$B$12)","v":"Mapped"},{"$f":"XBRLMap(H85,$K85,$M$5,$M$6,CONFIGURATION!$B$10,\"BMA\",CONFIGURATION!$B$1,\"bscr\",CONFIGURATION!$B$12)","v":"Mapped"},null,null,null,null,null,null,"bma_TotalSundryAssets"]
[null,null,null,null,null,null,null,null,null,null,"brrt_SundryAssetsOtherDescription",{"$f":"XBRLMap(C84,$K86,$L$5,$L$6,CONFIGURATION!$B$10,\"BMA\",CONFIGURATION!$B$1,\"bscr\")","v":"Mapped"},null,null,null,null,null,null,null,"bma_SundryAssetsOtherType"]
[null,"14.","LETTERS OF CREDIT, GUARANTEES AND OTHER INSTRUMENTS",null,null,null,null,null,null,null,"",{"$f":"XBRLMap(F87,$K87,$L$5,$L$6,CONFIGURATION!$B$10,\"BMA\",CONFIGURATION!$B$1,\"bscr\",CONFIGURATION!$B$12)","v":"-"},{"$f":"XBRLMap(H87,$K87,$M$5,$M$6,CONFIGURATION!$B$10,\"BMA\",CONFIGURATION!$B$1,\"bscr\",CONFIGURATION!$B$12)","v":"-"}]
[null,"(a)","Letters of credit ",null,null,{"$f":"Import!M150","v":0},null,{"$f":"Import!O150","v":0},null,null,"brrt_AssetsLettersOfCredit",{"$f":"XBRLMap(F88,$K88,$L$5,$L$6,CONFIGURATION!$B$10,\"BMA\",CONFIGURATION!$B$1,\"bscr\",CONFIGURATION!$B$12)","v":"Mapped"},{"$f":"XBRLMap(H88,$K88,$M$5,$M$6,CONFIGURATION!$B$10,\"BMA\",CONFIGURATION!$B$1,\"bscr\",CONFIGURATION!$B$12)","v":"Mapped"},null,null,null,null,null,null,"bma_AssetsLettersOfCredit"]
[null,"(b)","Guarantees",null,null,{"$f":"Import!M151","v":0},null,{"$f":"Import!O151","v":0},null,null,"brrt_AssetsGuarantees",{"$f":"XBRLMap(F89,$K89,$L$5,$L$6,CONFIGURATION!$B$10,\"BMA\",CONFIGURATION!$B$1,\"bscr\",CONFIGURATION!$B$12)","v":"Mapped"},{"$f":"XBRLMap(H89,$K89,$M$5,$M$6,CONFIGURATION!$B$10,\"BMA\",CONFIGURATION!$B$1,\"bscr\",CONFIGURATION!$B$12)","v":"Mapped"},null,null,null,null,null,null,"bma_AssetsGuarantees"]
[null,"(c) ","Other instruments",null,null,{"$f":"Import!M152","v":0},null,{"$f":"Import!O152","v":0},null,null,"brrt_AssetsOtherInstruments",{"$f":"XBRLMap(F90,$K90,$L$5,$L$6,CONFIGURATION!$B$10,\"BMA\",CONFIGURATION!$B$1,\"bscr\",CONFIGURATION!$B$12)","v":"Mapped"},{"$f":"XBRLMap(H90,$K90,$M$5,$M$6,CONFIGURATION!$B$10,\"BMA\",CONFIGURATION!$B$1,\"bscr\",CONFIGURATION!$B$12)","v":"Mapped"},null,null,null,null,null,null,"bma_AssetsOtherInstruments"]
[null,"(d)","Total letters of credit, guarantees and other instruments",null,null,{"$f":"SUM(F88:F90)","v":0},null,{"$f":"SUM(H88:H90)","v":0},null,null,"brrt_AssetsLettersOfCreditGuaranteesOtherInstruments",{"$f":"XBRLMap(F91,$K91,$L$5,$L$6,CONFIGURATION!$B$10,\"BMA\",CONFIGURATION!$B$1,\"bscr\",CONFIGURATION!$B$12)","v":"Mapped"},{"$f":"XBRLMap(H91,$K91,$M$5,$M$6,CONFIGURATION!$B$10,\"BMA\",CONFIGURATION!$B$1,\"bscr\",CONFIGURATION!$B$12)","v":"Mapped"},null,null,null,null,null,null,"bma_AssetsTotalLettersOfCreditGuaranteesAndOtherInstruments"]
[null,null,null,null,null,null,null,null,null,null,"",{"$f":"XBRLMap(F92,$K92,$L$5,$L$6,CONFIGURATION!$B$10,\"BMA\",CONFIGURATION!$B$1,\"bscr\",CONFIGURATION!$B$12)","v":"-"},{"$f":"XBRLMap(H92,$K92,$M$5,$M$6,CONFIGURATION!$B$10,\"BMA\",CONFIGURATION!$B$1,\"bscr\",CONFIGURATION!$B$12)","v":"-"},null,null,null,null,null,null,""]
[null,"15.","TOTAL",null,null,{"$f":"F10+F20+F30+F40+F45+F47+F52+F54+F56+F61+F68+F73+F85+F91","v":0},null,{"$f":"H10+H20+H30+H40+H45+H47+H52+H54+H56+H61+H68+H73+H85+H91","v":0},null,null,"brrt_Assets",{"$f":"XBRLMap(F93,$K93,$L$5,$L$6,CONFIGURATION!$B$10,\"BMA\",CONFIGURATION!$B$1,\"bscr\",CONFIGURATION!$B$12)","v":"Mapped"},{"$f":"XBRLMap(H93,$K93,$M$5,$M$6,CONFIGURATION!$B$10,\"BMA\",CONFIGURATION!$B$1,\"bscr\",CONFIGURATION!$B$12)","v":"Mapped"},null,null,null,null,null,null,"bma_TotalAssets"]
[null,null,null,null,null,null,null,null,null,null,"",null,null,null,null,null,null,null,null,""]
[null,null,"LONG-TERM BUSINESS INSURANCE TECHNICAL PROVISIONS, OTHER LIABILITIES ",null,null,null,null,null,null,null,"",null,null,null,null,null,null,null,null,""]
[null,null,"AND STATUTORY CAPITAL AND SURPLUS",null,null,null,null,null,null,null,""]
[null,null,null,null,null,null,null,null,null,null,"",null,null,null,null,null,null,null,null,""]
[null,null,"LONG-TERM BUSINESS INSURANCE TECHNICAL PROVISIONS",null,null,null,null,null,null,null,""]
[null,null,null,null,null,null,null,null,null,null,"",null,null,null,null,null,null,null,null,""]
[null,"20. ","BEST ESTIMATE RESERVES FOR REPORTED CLAIMS",null,null,{"$f":"Import!M165","v":0},null,{"$f":"Import!O165","v":0},null,null,"brrt_ReservesForReportedClaimsGross",{"$f":"XBRLMap(F100,$K100&\".\"&$Q100,$L$5,$L$6,CONFIGURATION!$B$10,\"BMA\",CONFIGURATION!$B$1,\"bscr\",CONFIGURATION!$B$12)","v":"Mapped"},{"$f":"XBRLMap(H100,$K100&\".\"&$Q100,$M$5,$M$6,CONFIGURATION!$B$10,\"BMA\",CONFIGURATION!$B$1,\"bscr\",CONFIGURATION!$B$12)","v":"Mapped"},null,"brrt_ReservesForReportedClaimsGross",null,"brrt_BusinessClassAxis_brrt_LongTermMember",null,null,"bma_ReservesForReportedClaims"]
[null,null,null,null,null,null,null,null,null,null,null,null,null,null,null,null,null,null,null,""]
[null,"21.","BEST ESTIMATE RESERVES FOR UNREPORTED CLAIMS",null,null,{"$f":"Import!M166","v":0},null,{"$f":"Import!O166","v":0},null,null,"brrt_ReservesForUnreportedClaimsGross",{"$f":"XBRLMap(F102,$K102&\".\"&$Q102,$L$5,$L$6,CONFIGURATION!$B$10,\"BMA\",CONFIGURATION!$B$1,\"bscr\",CONFIGURATION!$B$12)","v":"Mapped"},{"$f":"XBRLMap(H102,$K102&\".\"&$Q102,$M$5,$M$6,CONFIGURATION!$B$10,\"BMA\",CONFIGURATION!$B$1,\"bscr\",CONFIGURATION!$B$12)","v":"Mapped"},null,"brrt_ReservesForUnreportedClaimsGross",null,"brrt_BusinessClassAxis_brrt_LongTermMember",null,null,"bma_ReservesForUnreportedClaims"]
[null,null,null,null,null,null,null,null,null,null,null,null,null,null,null,null,null,null,null,""]
[null,"22.","BEST ESTIMATE POLICY RESERVES - LIFE",null,null,{"$f":"Import!M167","v":0},null,{"$f":"Import!O167","v":0},null,null,"brrt_PolicyReservesLifeGross",{"$f":"XBRLMap(F104,$K104&\".\"&$Q104,$L$5,$L$6,CONFIGURATION!$B$10,\"BMA\",CONFIGURATION!$B$1,\"bscr\",CONFIGURATION!$B$12)","v":"Mapped"},{"$f":"XBRLMap(H104,$K104&\".\"&$Q104,$M$5,$M$6,CONFIGURATION!$B$10,\"BMA\",CONFIGURATION!$B$1,\"bscr\",CONFIGURATION!$B$12)","v":"Mapped"},null,"brrt_PolicyReservesLifeGross",null,"brrt_BusinessClassAxis_brrt_LongTermMember",null,null,"bma_PolicyReservesLife"]
[null,null,null,null,null,null,null,null,null,null,null,null,null,null,null,null,null,null,null,""]
[null,"23.","BEST ESTIMATE POLICY RESERVES - ACCIDENT AND HEALTH",null,null,{"$f":"Import!M168","v":0},null,{"$f":"Import!O168","v":0},null,null,"brrt_PolicyReservesAccidentAndHealthGross",{"$f":"XBRLMap(F106,$K106&\".\"&$Q106,$L$5,$L$6,CONFIGURATION!$B$10,\"BMA\",CONFIGURATION!$B$1,\"bscr\",CONFIGURATION!$B$12)","v":"Mapped"},{"$f":"XBRLMap(H106,$K106&\".\"&$Q106,$M$5,$M$6,CONFIGURATION!$B$10,\"BMA\",CONFIGURATION!$B$1,\"bscr\",CONFIGURATION!$B$12)","v":"Mapped"},null,"brrt_PolicyReservesAccidentAndHealthGross",null,"brrt_BusinessClassAxis_brrt_LongTermMember",null,null,"bma_PolicyReservesAccidentAndHealth"]
[null,null,null,null,null,null,null,null,null,null,null,null,null,null,null,null,null,null,null,""]
[null,"24.","BEST ESTIMATE POLICYHOLDER'S FUNDS ON DEPOSIT",null,null,{"$f":"Import!M169","v":0},null,{"$f":"Import!O169","v":0},null,null,"brrt_PolicyholdersFundsOnDepositGross",{"$f":"XBRLMap(F108,$K108&\".\"&$Q108,$L$5,$L$6,CONFIGURATION!$B$10,\"BMA\",CONFIGURATION!$B$1,\"bscr\",CONFIGURATION!$B$12)","v":"Mapped"},{"$f":"XBRLMap(H108,$K108&\".\"&$Q108,$M$5,$M$6,CONFIGURATION!$B$10,\"BMA\",CONFIGURATION!$B$1,\"bscr\",CONFIGURATION!$B$12)","v":"Mapped"},null,"brrt_PolicyholdersFundsOnDepositGross",null,"brrt_BusinessClassAxis_brrt_LongTermMember",null,null,"bma_PolicyholderFundsOnDeposit"]
[null,null,null,null,null,null,null,null,null,null,null,null,null,null,null,null,null,null,null,""]
[null,"25.","BEST ESTIMATE LIABILITY FOR FUTURE POLICYHOLDER DIVIDENDS",null,null,{"$f":"Import!M170","v":0},null,{"$f":"Import!O170","v":0},null,null,"brrt_LiabilityForFuturePolicyholderDividendsGross",{"$f":"XBRLMap(F110,$K110&\".\"&$Q110,$L$5,$L$6,CONFIGURATION!$B$10,\"BMA\",CONFIGURATION!$B$1,\"bscr\",CONFIGURATION!$B$12)","v":"Mapped"},{"$f":"XBRLMap(H110,$K110&\".\"&$Q110,$M$5,$M$6,CONFIGURATION!$B$10,\"BMA\",CONFIGURATION!$B$1,\"bscr\",CONFIGURATION!$B$12)","v":"Mapped"},null,"brrt_LiabilityForFuturePolicyholderDividendsGross",null,"brrt_BusinessClassAxis_brrt_LongTermMember",null,null,"bma_LiabilityForFuturePolicyholderDividends"]
[null,null,null,null,null,null,null,null,null,null,null,null,null,null,null,null,null,null,null,""]
[null,"26.","BEST ESTIMATE OTHER LONG-TERM BUSINESS INSURANCE RESERVES",null,null,{"$f":"Import!M171","v":0},null,{"$f":"Import!O171","v":0},null,null,"brrt_OtherInsuranceReservesGross",{"$f":"XBRLMap(F112,$K112&\".\"&$Q112,$L$5,$L$6,CONFIGURATION!$B$10,\"BMA\",CONFIGURATION!$B$1,\"bscr\",CONFIGURATION!$B$12)","v":"Mapped"},{"$f":"XBRLMap(H112,$K112&\".\"&$Q112,$M$5,$M$6,CONFIGURATION!$B$10,\"BMA\",CONFIGURATION!$B$1,\"bscr\",CONFIGURATION!$B$12)","v":"Mapped"},null,"brrt_OtherInsuranceReservesGross",null,"brrt_BusinessClassAxis_brrt_LongTermMember",null,null,"bma_OtherInsuranceReservesLongterm"]
[null,null,null,null,null,null,null,null,null,null,null,null,null,null,null,null,null,null,null,""]
[null,"27.","TOTAL BEST ESTIMATE LONG-TERM BUSINESS INSURANCE PROVISIONS"]
[null,"(a)","Total Gross Long-Term Business Insurance Provisions",null,null,{"$f":"F121+F122","v":0},null,{"$f":"H121+H122","v":0},null,null,"brrt_InsuranceReservesGross",{"$f":"XBRLMap(F115,$K115&\".\"&$Q115,$L$5,$L$6,CONFIGURATION!$B$10,\"BMA\",CONFIGURATION!$B$1,\"bscr\",CONFIGURATION!$B$12)","v":"Mapped"},{"$f":"XBRLMap(H115,$K115&\".\"&$Q115,$M$5,$M$6,CONFIGURATION!$B$10,\"BMA\",CONFIGURATION!$B$1,\"bscr\",CONFIGURATION!$B$12)","v":"Mapped"},null,null,null,"brrt_BusinessClassAxis_brrt_LongTermMember"]
[null,"(b)","Less: Reinsurance Recoverable Balance:"]
[null,null,"(i) Foreign Affiliates",null,null,{"$f":"Import!M172","v":0},null,{"$f":"Import!O172","v":0},null,null,"brrt_ReinsuranceRecoverableBalanceForeignAffiliates",{"$f":"XBRLMap(F117,$K117&\".\"&$Q117,$L$5,$L$6,CONFIGURATION!$B$10,\"BMA\",CONFIGURATION!$B$1,\"bscr\",CONFIGURATION!$B$12)","v":"Mapped"},{"$f":"XBRLMap(H117,$K117&\".\"&$Q117,$M$5,$M$6,CONFIGURATION!$B$10,\"BMA\",CONFIGURATION!$B$1,\"bscr\",CONFIGURATION!$B$12)","v":"Mapped"},null,null,null,"brrt_BusinessClassAxis_brrt_LongTermMember"]
[null,null,"(ii) Domestic Affiliaties",null,null,{"$f":"Import!M173","v":0},null,{"$f":"Import!O173","v":0},null,null,"brrt_ReinsuranceRecoverableBalanceDomesticAffiliates",{"$f":"XBRLMap(F118,$K118&\".\"&$Q118,$L$5,$L$6,CONFIGURATION!$B$10,\"BMA\",CONFIGURATION!$B$1,\"bscr\",CONFIGURATION!$B$12)","v":"Mapped"},{"$f":"XBRLMap(H118,$K118&\".\"&$Q118,$M$5,$M$6,CONFIGURATION!$B$10,\"BMA\",CONFIGURATION!$B$1,\"bscr\",CONFIGURATION!$B$12)","v":"Mapped"},null,null,null,"brrt_BusinessClassAxis_brrt_LongTermMember"]
[null,null,"(iii) Pools and Associations",null,null,{"$f":"Import!M174","v":0},null,{"$f":"Import!O174","v":0},null,null,"brrt_ReinsuranceRecoverableBalancePoolsAndAssociations",{"$f":"XBRLMap(F119,$K119&\".\"&$Q119,$L$5,$L$6,CONFIGURATION!$B$10,\"BMA\",CONFIGURATION!$B$1,\"bscr\",CONFIGURATION!$B$12)","v":"Mapped"},{"$f":"XBRLMap(H119,$K119&\".\"&$Q119,$M$5,$M$6,CONFIGURATION!$B$10,\"BMA\",CONFIGURATION!$B$1,\"bscr\",CONFIGURATION!$B$12)","v":"Mapped"},null,null,null,"brrt_BusinessClassAxis_brrt_LongTermMember"]
[null,null,"(iv) All Other Insurers",null,null,{"$f":"Import!M175","v":0},null,{"$f":"Import!O175","v":0},null,null,"brrt_OtherInsurersReinsuranceRecoverableBalance",{"$f":"XBRLMap(F120,$K120&\".\"&$Q120,$L$5,$L$6,CONFIGURATION!$B$10,\"BMA\",CONFIGURATION!$B$1,\"bscr\",CONFIGURATION!$B$12)","v":"Mapped"},{"$f":"XBRLMap(H120,$K120&\".\"&$Q120,$M$5,$M$6,CONFIGURATION!$B$10,\"BMA\",CONFIGURATION!$B$1,\"bscr\",CONFIGURATION!$B$12)","v":"Mapped"},null,null,null,"brrt_BusinessClassAxis_brrt_LongTermMember"]
[null,"(c)","Total Reinsurance Recoverable Balance",null,null,{"$f":"SUM(F117:F120)","v":0},null,{"$f":"SUM(H117:H120)","v":0},null,null,"brrt_ReinsuranceRecoverableBalance",{"$f":"XBRLMap(F121,$K121&\".\"&$Q121,$L$5,$L$6,CONFIGURATION!$B$10,\"BMA\",CONFIGURATION!$B$1,\"bscr\",CONFIGURATION!$B$12)","v":"Mapped"},{"$f":"XBRLMap(H121,$K121&\".\"&$Q121,$M$5,$M$6,CONFIGURATION!$B$10,\"BMA\",CONFIGURATION!$B$1,\"bscr\",CONFIGURATION!$B$12)","v":"Mapped"},null,null,null,"brrt_BusinessClassAxis_brrt_LongTermMember"]
[null,"(d)","Net Long-Term Business Insurance Provisions",null,null,{"$f":"F100+F102+F104+F106+F108+F110+F112","v":0},null,{"$f":"H100+H102+H104+H106+H108+H110+H112","v":0},null,null,"brrt_InsuranceReservesNet",{"$f":"XBRLMap(F122,$K122&\".\"&$Q122,$L$5,$L$6,CONFIGURATION!$B$10,\"BMA\",CONFIGURATION!$B$1,\"bscr\",CONFIGURATION!$B$12)","v":"Mapped"},{"$f":"XBRLMap(H122,$K122&\".\"&$Q122,$M$5,$M$6,CONFIGURATION!$B$10,\"BMA\",CONFIGURATION!$B$1,\"bscr\",CONFIGURATION!$B$12)","v":"Mapped"},null,null,null,"brrt_BusinessClassAxis_brrt_LongTermMember",null,null,"bma_TotalLongtermBusinessInsuranceReserves"]
[]
[null,"27A.","Risk Margin – Long-term insurance business",null,null,{"$f":"Import!M176","v":0},null,{"$f":"Import!O176","v":0},null,null,null,null,null,null,null,null,null,null,null,""]
[]
[null,"27B.","LONG-TERM TECHNICAL PROVISIONS CALCULATED AS A WHOLE",null,null,null,null,null,null,null,null,null,null,null,null,null,null,null,null,""]
[null,"(a)","Total Gross Long-Term Business Insurance Provisions",null,null,{"$f":"Import!M177","v":0},null,{"$f":"Import!O177","v":0}]
[null,"(b)","Less: Reinsurance Recoverable Balance:"]
[null,null,"(i) Foreign Affiliates",null,null,{"$f":"Import!M178","v":0},null,{"$f":"Import!O178","v":0}]
[null,null,"(ii) Domestic Affiliaties",null,null,{"$f":"Import!M179","v":0},null,{"$f":"Import!O179","v":0}]
[null,null,"(iii) Pools and Associations",null,null,{"$f":"Import!M180","v":0},null,{"$f":"Import!O180","v":0}]
[null,null,"(iv) All Other Insurers",null,null,{"$f":"Import!M181","v":0},null,{"$f":"Import!O181","v":0}]
[null,"(c)","Total Reinsurance Recoverable Balance",null,null,{"$f":"SUM(F129:F132)","v":0},null,{"$f":"SUM(H129:H132)","v":0}]
[null,"(d)","Net Long-Term Business Insurance Provisions",null,null,{"$f":"F127-F133","v":0},null,{"$f":"H127-H133","v":0}]
[]
[null,"27C.","TOTAL LONG-TERM INSURANCE BUSINESS TECHNICAL PROVISIONS",null,null,{"$f":"F122+F124+F134","v":0},null,{"$f":"H122+H124+H134","v":0},null,null,"brrt_InsuranceAndReinsuranceBalancesPayable",{"$f":"XBRLMap(F136,$K136,$L$5,$L$6,CONFIGURATION!$B$10,\"BMA\",CONFIGURATION!$B$1,\"bscr\",CONFIGURATION!$B$12)","v":"Mapped"},{"$f":"XBRLMap(H136,$K136,$M$5,$M$6,CONFIGURATION!$B$10,\"BMA\",CONFIGURATION!$B$1,\"bscr\",CONFIGURATION!$B$12)","v":"Mapped"},null,null,null,null,null,null,"bma_InsuranceAndReinsuranceBalancesPayable"]
[]
[null,null,"OTHER LIABILITIES",null,null,null,null,null,null,null,"brrt_InsuranceAndReinsuranceBalancesPayable",{"$f":"XBRLMap(F138,$K138,$L$5,$L$6,CONFIGURATION!$B$10,\"BMA\",CONFIGURATION!$B$1,\"bscr\",CONFIGURATION!$B$12)","v":"Mapped"},{"$f":"XBRLMap(H138,$K138,$M$5,$M$6,CONFIGURATION!$B$10,\"BMA\",CONFIGURATION!$B$1,\"bscr\",CONFIGURATION!$B$12)","v":"Mapped"},null,null,null,null,null,null,"bma_InsuranceAndReinsuranceBalancesPayable"]
[]
[null,"28."," INSURANCE AND REINSURANCE BALANCES PAYABLE",null,null,{"$f":"Import!M182","v":0},null,{"$f":"Import!O182","v":0},null,null,"brrt_InsuranceAndReinsuranceBalancesPayable",{"$f":"XBRLMap(F140,$K140,$L$5,$L$6,CONFIGURATION!$B$10,\"BMA\",CONFIGURATION!$B$1,\"bscr\",CONFIGURATION!$B$12)","v":"Mapped"},{"$f":"XBRLMap(H140,$K140,$M$5,$M$6,CONFIGURATION!$B$10,\"BMA\",CONFIGURATION!$B$1,\"bscr\",CONFIGURATION!$B$12)","v":"Mapped"},null,null,null,null,null,null,"bma_InsuranceAndReinsuranceBalancesPayable"]
[null,null,null,null,null,null,null,null,null,null,null,{"$f":"XBRLMap(F141,$K141,$L$5,$L$6,CONFIGURATION!$B$10,\"BMA\",CONFIGURATION!$B$1,\"bscr\",CONFIGURATION!$B$12)","v":"-"},{"$f":"XBRLMap(H141,$K141,$M$5,$M$6,CONFIGURATION!$B$10,\"BMA\",CONFIGURATION!$B$1,\"bscr\",CONFIGURATION!$B$12)","v":"-"},null,null,null,null,null,null,""]
[null,"29.","COMMISSIONS, EXPENSES, FEES AND TAXES PAYABLE",null,null,{"$f":"Import!M183","v":0},null,{"$f":"Import!O183","v":0},null,null,"brrt_CommissionsExpensesFeesAndTaxesPayable",{"$f":"XBRLMap(F142,$K142,$L$5,$L$6,CONFIGURATION!$B$10,\"BMA\",CONFIGURATION!$B$1,\"bscr\",CONFIGURATION!$B$12)","v":"Mapped"},{"$f":"XBRLMap(H142,$K142,$M$5,$M$6,CONFIGURATION!$B$10,\"BMA\",CONFIGURATION!$B$1,\"bscr\",CONFIGURATION!$B$12)","v":"Mapped"},null,null,null,null,null,null,"bma_CommissionsExpensesFeesAndTaxesPayable"]
[null,null,null,null,null,null,null,null,null,null,null,{"$f":"XBRLMap(F143,$K143,$L$5,$L$6,CONFIGURATION!$B$10,\"BMA\",CONFIGURATION!$B$1,\"bscr\",CONFIGURATION!$B$12)","v":"-"},{"$f":"XBRLMap(H143,$K143,$M$5,$M$6,CONFIGURATION!$B$10,\"BMA\",CONFIGURATION!$B$1,\"bscr\",CONFIGURATION!$B$12)","v":"-"},null,null,null,null,null,null,""]
[null,"30.","LOANS AND NOTES PAYABLE",null,null,{"$f":"Import!M184","v":0},null,{"$f":"Import!O184","v":0},null,null,"brrt_LoansAndNotesPayable",{"$f":"XBRLMap(F144,$K144,$L$5,$L$6,CONFIGURATION!$B$10,\"BMA\",CONFIGURATION!$B$1,\"bscr\",CONFIGURATION!$B$12)","v":"Mapped"},{"$f":"XBRLMap(H144,$K144,$M$5,$M$6,CONFIGURATION!$B$10,\"BMA\",CONFIGURATION!$B$1,\"bscr\",CONFIGURATION!$B$12)","v":"Mapped"},null,null,null,null,null,null,"bma_LoansAndNotesPayable"]
[null,null,null,null,null,null,null,null,null,null,null,{"$f":"XBRLMap(F145,$K145,$L$5,$L$6,CONFIGURATION!$B$10,\"BMA\",CONFIGURATION!$B$1,\"bscr\",CONFIGURATION!$B$12)","v":"-"},{"$f":"XBRLMap(H145,$K145,$M$5,$M$6,CONFIGURATION!$B$10,\"BMA\",CONFIGURATION!$B$1,\"bscr\",CONFIGURATION!$B$12)","v":"-"},null,null,null,null,null,null,""]
[null,"31.","TAX LIABILITIES"]
[null,"(a)","Income taxes payable",null,null,{"$f":"Import!M185","v":0},null,{"$f":"Import!O185","v":0},null,null,"brrt_IncomeTaxesPayable",{"$f":"XBRLMap(F147,$K147,$L$5,$L$6,CONFIGURATION!$B$10,\"BMA\",CONFIGURATION!$B$1,\"bscr\",CONFIGURATION!$B$12)","v":"Mapped"},{"$f":"XBRLMap(H147,$K147,$M$5,$M$6,CONFIGURATION!$B$10,\"BMA\",CONFIGURATION!$B$1,\"bscr\",CONFIGURATION!$B$12)","v":"Mapped"},null,null,null,null,null,null,"bma_IncomeTaxesPayable"]
[null,"(b)","Deferred income taxes",null,null,{"$f":"Import!M186","v":0},null,{"$f":"Import!O186","v":0},null,null,"brrt_DeferredIncomeTaxes",{"$f":"XBRLMap(F148,$K148,$L$5,$L$6,CONFIGURATION!$B$10,\"BMA\",CONFIGURATION!$B$1,\"bscr\",CONFIGURATION!$B$12)","v":"Mapped"},{"$f":"XBRLMap(H148,$K148,$M$5,$M$6,CONFIGURATION!$B$10,\"BMA\",CONFIGURATION!$B$1,\"bscr\",CONFIGURATION!$B$12)","v":"Mapped"},null,null,null,null,null,null,"bma_DeferredIncomeTaxes"]
[null,null,null,null,null,null,null,null,null,null,null,{"$f":"XBRLMap(F149,$K149,$L$5,$L$6,CONFIGURATION!$B$10,\"BMA\",CONFIGURATION!$B$1,\"bscr\",CONFIGURATION!$B$12)","v":"-"},{"$f":"XBRLMap(H149,$K149,$M$5,$M$6,CONFIGURATION!$B$10,\"BMA\",CONFIGURATION!$B$1,\"bscr\",CONFIGURATION!$B$12)","v":"-"},null,null,null,null,null,null,""]
[null,"32.","AMOUNTS DUE TO AFFILIATES",null,null,{"$f":"Import!M187","v":0},null,{"$f":"Import!O187","v":0},null,null,"brrt_AmountsDueToAffiliates",{"$f":"XBRLMap(F150,$K150,$L$5,$L$6,CONFIGURATION!$B$10,\"BMA\",CONFIGURATION!$B$1,\"bscr\",CONFIGURATION!$B$12)","v":"Mapped"},{"$f":"XBRLMap(H150,$K150,$M$5,$M$6,CONFIGURATION!$B$10,\"BMA\",CONFIGURATION!$B$1,\"bscr\",CONFIGURATION!$B$12)","v":"Mapped"},null,null,null,null,null,null,"bma_AmountsDueToAffiliates"]
[null,null,null,null,null,null,null,null,null,null,null,{"$f":"XBRLMap(F151,$K151,$L$5,$L$6,CONFIGURATION!$B$10,\"BMA\",CONFIGURATION!$B$1,\"bscr\",CONFIGURATION!$B$12)","v":"-"},{"$f":"XBRLMap(H151,$K151,$M$5,$M$6,CONFIGURATION!$B$10,\"BMA\",CONFIGURATION!$B$1,\"bscr\",CONFIGURATION!$B$12)","v":"-"},null,null,null,null,null,null,""]
[null,"33.","ACCOUNTS PAYABLE AND ACCRUED LIABILITIES",null,null,{"$f":"Import!M188","v":0},null,{"$f":"Import!O188","v":0},null,null,"brrt_AccountsPayableAndAccruedLiabilities",{"$f":"XBRLMap(F152,$K152,$L$5,$L$6,CONFIGURATION!$B$10,\"BMA\",CONFIGURATION!$B$1,\"bscr\",CONFIGURATION!$B$12)","v":"Mapped"},{"$f":"XBRLMap(H152,$K152,$M$5,$M$6,CONFIGURATION!$B$10,\"BMA\",CONFIGURATION!$B$1,\"bscr\",CONFIGURATION!$B$12)","v":"Mapped"},null,null,null,null,null,null,"bma_AccountsPayableAndAccruedLiabilities"]
[null,null,null,null,null,null,null,null,null,null,null,{"$f":"XBRLMap(F153,$K153,$L$5,$L$6,CONFIGURATION!$B$10,\"BMA\",CONFIGURATION!$B$1,\"bscr\",CONFIGURATION!$B$12)","v":"-"},{"$f":"XBRLMap(H153,$K153,$M$5,$M$6,CONFIGURATION!$B$10,\"BMA\",CONFIGURATION!$B$1,\"bscr\",CONFIGURATION!$B$12)","v":"-"},null,null,null,null,null,null,""]
[null,"34.","FUNDS HELD UNDER REINSURANCE CONTRACTS",null,null,null,null,null,null,null,null,{"$f":"XBRLMap(F154,$K154,$L$5,$L$6,CONFIGURATION!$B$10,\"BMA\",CONFIGURATION!$B$1,\"bscr\",CONFIGURATION!$B$12)","v":"-"},{"$f":"XBRLMap(H154,$K154,$M$5,$M$6,CONFIGURATION!$B$10,\"BMA\",CONFIGURATION!$B$1,\"bscr\",CONFIGURATION!$B$12)","v":"-"}]
[null,"(a)","Affiliates",null,null,{"$f":"Import!M189","v":0},null,{"$f":"Import!O189","v":0},null,null,"brrt_FundsHeldUnderReinsuranceContractsAffiliated",{"$f":"XBRLMap(F155,$K155,$L$5,$L$6,CONFIGURATION!$B$10,\"BMA\",CONFIGURATION!$B$1,\"bscr\",CONFIGURATION!$B$12)","v":"Mapped"},{"$f":"XBRLMap(H155,$K155,$M$5,$M$6,CONFIGURATION!$B$10,\"BMA\",CONFIGURATION!$B$1,\"bscr\",CONFIGURATION!$B$12)","v":"Mapped"}]
[null,"(b)","Non-Affiliates",null,null,{"$f":"Import!M190","v":0},null,{"$f":"Import!O190","v":0},null,null,"brrt_FundsHeldUnderReinsuranceContractsNonAffiliated",{"$f":"XBRLMap(F156,$K156,$L$5,$L$6,CONFIGURATION!$B$10,\"BMA\",CONFIGURATION!$B$1,\"bscr\",CONFIGURATION!$B$12)","v":"Mapped"},{"$f":"XBRLMap(H156,$K156,$M$5,$M$6,CONFIGURATION!$B$10,\"BMA\",CONFIGURATION!$B$1,\"bscr\",CONFIGURATION!$B$12)","v":"Mapped"}]
[null,"(c) ","Total Funds Held Under Reinsurance Contracts",null,null,{"$f":"F155+F156","v":0},null,{"$f":"H155+H156","v":0},null,null,"brrt_FundsHeldUnderReinsuranceContracts",{"$f":"XBRLMap(F157,$K157,$L$5,$L$6,CONFIGURATION!$B$10,\"BMA\",CONFIGURATION!$B$1,\"bscr\",CONFIGURATION!$B$12)","v":"Mapped"},{"$f":"XBRLMap(H157,$K157,$M$5,$M$6,CONFIGURATION!$B$10,\"BMA\",CONFIGURATION!$B$1,\"bscr\",CONFIGURATION!$B$12)","v":"Mapped"},null,null,null,null,null,null,"bma_TotalFundsHeldUnderReinsuranceContracts"]
[null,null,null,null,null,null,null,null,null,null,null,{"$f":"XBRLMap(F158,$K158,$L$5,$L$6,CONFIGURATION!$B$10,\"BMA\",CONFIGURATION!$B$1,\"bscr\",CONFIGURATION!$B$12)","v":"-"},{"$f":"XBRLMap(H158,$K158,$M$5,$M$6,CONFIGURATION!$B$10,\"BMA\",CONFIGURATION!$B$1,\"bscr\",CONFIGURATION!$B$12)","v":"-"},null,null,null,null,null,null,""]
[null,"35.","DIVIDENDS PAYABLE",null,null,{"$f":"Import!M192","v":0},null,{"$f":"Import!O192","v":0},null,null,"brrt_DividendsPayable",{"$f":"XBRLMap(F159,$K159,$L$5,$L$6,CONFIGURATION!$B$10,\"BMA\",CONFIGURATION!$B$1,\"bscr\",CONFIGURATION!$B$12)","v":"Mapped"},{"$f":"XBRLMap(H159,$K159,$M$5,$M$6,CONFIGURATION!$B$10,\"BMA\",CONFIGURATION!$B$1,\"bscr\",CONFIGURATION!$B$12)","v":"Mapped"},null,null,null,null,null,null,"bma_DividendsPayable"]
[null,null,null,null,null,null,null,null,null,null,null,{"$f":"XBRLMap(F160,$K160,$L$5,$L$6,CONFIGURATION!$B$10,\"BMA\",CONFIGURATION!$B$1,\"bscr\",CONFIGURATION!$B$12)","v":"-"},{"$f":"XBRLMap(H160,$K160,$M$5,$M$6,CONFIGURATION!$B$10,\"BMA\",CONFIGURATION!$B$1,\"bscr\",CONFIGURATION!$B$12)","v":"-"},null,null,null,null,null,null,""]
[null,"36.","SUNDRY LIABILITIES:",null,null,null,null,null,null,null,null,{"$f":"XBRLMap(F161,$K161,$L$5,$L$6,CONFIGURATION!$B$10,\"BMA\",CONFIGURATION!$B$1,\"bscr\",CONFIGURATION!$B$12)","v":"-"},{"$f":"XBRLMap(H161,$K161,$M$5,$M$6,CONFIGURATION!$B$10,\"BMA\",CONFIGURATION!$B$1,\"bscr\",CONFIGURATION!$B$12)","v":"-"}]
[null,"(a)","Derivative instruments – held for hedging purposes",null,null,{"$f":"Import!M193","v":0},null,{"$f":"Import!O193","v":0},null,null,"brrt_SundryLiabilitiesDerivativeInstruments",{"$f":"XBRLMap(F162,$K162,$L$5,$L$6,CONFIGURATION!$B$10,\"BMA\",CONFIGURATION!$B$1,\"bscr\",CONFIGURATION!$B$12)","v":"Mapped"},{"$f":"XBRLMap(H162,$K162,$M$5,$M$6,CONFIGURATION!$B$10,\"BMA\",CONFIGURATION!$B$1,\"bscr\",CONFIGURATION!$B$12)","v":"Mapped"},null,null,null,null,null,null,"bma_SundryLiabilitiesDerivativeInstruments"]
[null,"(b)","Derivative instruments – not held for hedging purposes",null,null,{"$f":"Import!M194","v":0},null,{"$f":"Import!O194","v":0}]
[null,"(c)","Segregated accounts - LT business – variable annuities",null,null,{"$f":"Import!M195","v":0},null,{"$f":"Import!O195","v":0},null,null,"brrt_SundryLiabilitiesSegregatedAccountsCompanies",{"$f":"XBRLMap(F164,$K164,$L$5,$L$6,CONFIGURATION!$B$10,\"BMA\",CONFIGURATION!$B$1,\"bscr\",CONFIGURATION!$B$12)","v":"Mapped"},{"$f":"XBRLMap(H164,$K164,$M$5,$M$6,CONFIGURATION!$B$10,\"BMA\",CONFIGURATION!$B$1,\"bscr\",CONFIGURATION!$B$12)","v":"Mapped"},null,null,null,null,null,null,"bma_SundryLiabilitiesSegregatedAccountsCompanies"]
[null,"(d)","Segregated accounts - LT business - other",null,null,{"$f":"Import!M196","v":0},null,{"$f":"Import!O196","v":0}]
[null,"(f)","Deposit liabilities",null,null,{"$f":"Import!M197","v":0},null,{"$f":"Import!O197","v":0},null,null,"brrt_SundryLiabilitiesDepositLiabilities",{"$f":"XBRLMap(F166,$K166,$L$5,$L$6,CONFIGURATION!$B$10,\"BMA\",CONFIGURATION!$B$1,\"bscr\",CONFIGURATION!$B$12)","v":"Mapped"},{"$f":"XBRLMap(H166,$K166,$M$5,$M$6,CONFIGURATION!$B$10,\"BMA\",CONFIGURATION!$B$1,\"bscr\",CONFIGURATION!$B$12)","v":"Mapped"},null,null,null,null,null,null,"bma_SundryLiabilitiesDepositLiabilities"]
[null,"(g)","Pension benefit obligations",null,null,{"$f":"Import!M198","v":0},null,{"$f":"Import!O198","v":0}]
[null,"(h)","Balances payable for purchase of investments",null,null,{"$f":"Import!M199","v":0},null,{"$f":"Import!O199","v":0}]
[null,"(i)",null,null,null,{"$f":"Import!M200","v":0},null,{"$f":"Import!O200","v":0},null,null,"brrt_SundryLiabilitiesOther",{"$f":"XBRLMap(F169,$K169,$L$5,$L$6,CONFIGURATION!$B$10,\"BMA\",CONFIGURATION!$B$1,\"bscr\",CONFIGURATION!$B$12)","v":"Mapped"},{"$f":"XBRLMap(H169,$K169,$M$5,$M$6,CONFIGURATION!$B$10,\"BMA\",CONFIGURATION!$B$1,\"bscr\",CONFIGURATION!$B$12)","v":"Mapped"},null,null,null,null,null,null,"bma_SundryLiabilitiesOther"]
[null,"(j)","Total sundry liabilities",null,null,{"$f":"SUM(F162:F169)","v":0},null,{"$f":"SUM(H162:H169)","v":0},null,null,"brrt_SundryLiabilities",{"$f":"XBRLMap(F170,$K170,$L$5,$L$6,CONFIGURATION!$B$10,\"BMA\",CONFIGURATION!$B$1,\"bscr\",CONFIGURATION!$B$12)","v":"Mapped"},{"$f":"XBRLMap(H170,$K170,$M$5,$M$6,CONFIGURATION!$B$10,\"BMA\",CONFIGURATION!$B$1,\"bscr\",CONFIGURATION!$B$12)","v":"Mapped"},null,null,null,null,null,null,"bma_TotalSundryLiabilities"]
[null,null,null,null,null,null,null,null,null,null,"brrt_SundryLiabilitiesOtherDescription",{"$f":"XBRLMap(C169,$K171,$L$5,$L$6,CONFIGURATION!$B$10,\"BMA\",CONFIGURATION!$B$1,\"bscr\")","v":"Mapped"},null,null,null,null,null,null,null,"bma_SundryLiabilitiesOtherType"]
[null,"37.","LETTERS OF CREDIT, GUARANTEES AND OTHER INSTRUMENTS",null,null,null,null,null,null,null,null,{"$f":"XBRLMap(F172,$K172,$L$5,$L$6,CONFIGURATION!$B$10,\"BMA\",CONFIGURATION!$B$1,\"bscr\",CONFIGURATION!$B$12)","v":"-"},{"$f":"XBRLMap(H172,$K172,$M$5,$M$6,CONFIGURATION!$B$10,\"BMA\",CONFIGURATION!$B$1,\"bscr\",CONFIGURATION!$B$12)","v":"-"}]
[null,"(a)","Letters of credit ",null,null,{"$f":"Import!M203","v":0},null,{"$f":"Import!O203","v":0},null,null,"brrt_LiabilitiesLettersOfCredit",{"$f":"XBRLMap(F173,$K173,$L$5,$L$6,CONFIGURATION!$B$10,\"BMA\",CONFIGURATION!$B$1,\"bscr\",CONFIGURATION!$B$12)","v":"Mapped"},{"$f":"XBRLMap(H173,$K173,$M$5,$M$6,CONFIGURATION!$B$10,\"BMA\",CONFIGURATION!$B$1,\"bscr\",CONFIGURATION!$B$12)","v":"Mapped"},null,null,null,null,null,null,"bma_LiabilitiesLettersOfCredit"]
[null,"(b)","Guarantees",null,null,{"$f":"Import!M204","v":0},null,{"$f":"Import!O204","v":0},null,null,"brrt_LiabilitiesGuarantees",{"$f":"XBRLMap(F174,$K174,$L$5,$L$6,CONFIGURATION!$B$10,\"BMA\",CONFIGURATION!$B$1,\"bscr\",CONFIGURATION!$B$12)","v":"Mapped"},{"$f":"XBRLMap(H174,$K174,$M$5,$M$6,CONFIGURATION!$B$10,\"BMA\",CONFIGURATION!$B$1,\"bscr\",CONFIGURATION!$B$12)","v":"Mapped"},null,null,null,null,null,null,"bma_LiabilitiesGuarantees"]
[null,"(c) ","Other instruments",null,null,{"$f":"Import!M205","v":0},null,{"$f":"Import!O205","v":0},null,null,"brrt_LiabilitiesOtherInstruments",{"$f":"XBRLMap(F175,$K175,$L$5,$L$6,CONFIGURATION!$B$10,\"BMA\",CONFIGURATION!$B$1,\"bscr\",CONFIGURATION!$B$12)","v":"Mapped"},{"$f":"XBRLMap(H175,$K175,$M$5,$M$6,CONFIGURATION!$B$10,\"BMA\",CONFIGURATION!$B$1,\"bscr\",CONFIGURATION!$B$12)","v":"Mapped"},null,null,null,null,null,null,"bma_LiabilitiesOtherInstruments"]
[null,"(d)","Total letters of credit, guarantees and other instruments",null,null,{"$f":"SUM(F173:F175)","v":0},null,{"$f":"SUM(H173:H175)","v":0},null,null,"brrt_LiabilitiesLettersOfCreditGuaranteesAndOtherInstruments",{"$f":"XBRLMap(F176,$K176,$L$5,$L$6,CONFIGURATION!$B$10,\"BMA\",CONFIGURATION!$B$1,\"bscr\",CONFIGURATION!$B$12)","v":"Mapped"},{"$f":"XBRLMap(H176,$K176,$M$5,$M$6,CONFIGURATION!$B$10,\"BMA\",CONFIGURATION!$B$1,\"bscr\",CONFIGURATION!$B$12)","v":"Mapped"},null,null,null,null,null,null,"bma_LiabilitiesTotalLettersOfCreditGuaranteesAndOtherInstruments"]
[null,null,null,null,null,null,null,null,null,null,null,{"$f":"XBRLMap(F177,$K177,$L$5,$L$6,CONFIGURATION!$B$10,\"BMA\",CONFIGURATION!$B$1,\"bscr\",CONFIGURATION!$B$12)","v":"-"},{"$f":"XBRLMap(H177,$K177,$M$5,$M$6,CONFIGURATION!$B$10,\"BMA\",CONFIGURATION!$B$1,\"bscr\",CONFIGURATION!$B$12)","v":"-"},null,null,null,null,null,null,""]
[null,"38.","TOTAL OTHER LIABILITIES",null,null,{"$f":"F140+F142+F144+F147+F148+F150+F152+F157+F159+F170+F176","v":0},null,{"$f":"H140+H142+H144+H147+H148+H150+H152+H157+H159+H170+H176","v":0},null,null,"brrt_OtherLiabilities",{"$f":"XBRLMap(F178,$K178,$L$5,$L$6,CONFIGURATION!$B$10,\"BMA\",CONFIGURATION!$B$1,\"bscr\",CONFIGURATION!$B$12)","v":"Mapped"},{"$f":"XBRLMap(H178,$K178,$M$5,$M$6,CONFIGURATION!$B$10,\"BMA\",CONFIGURATION!$B$1,\"bscr\",CONFIGURATION!$B$12)","v":"Mapped"},null,null,null,null,null,null,"bma_TotalOtherLiabilities"]
[null,null,null,null,null,null,null,null,null,null,null,{"$f":"XBRLMap(F179,$K179,$L$5,$L$6,CONFIGURATION!$B$10,\"BMA\",CONFIGURATION!$B$1,\"bscr\",CONFIGURATION!$B$12)","v":"-"},{"$f":"XBRLMap(H179,$K179,$M$5,$M$6,CONFIGURATION!$B$10,\"BMA\",CONFIGURATION!$B$1,\"bscr\",CONFIGURATION!$B$12)","v":"-"},null,null,null,null,null,null,""]
[null,"39.","TOTAL INSURANCE TECHNICAL PROVISIONS AND OTHER LIABILITIES",null,null,{"$f":"F136+F178","v":0},null,{"$f":"H136+H178","v":0},null,null,"brrt_InsuranceReservesAndOtherLiabilities",{"$f":"XBRLMap(F180,$K180,$L$5,$L$6,CONFIGURATION!$B$10,\"BMA\",CONFIGURATION!$B$1,\"bscr\",CONFIGURATION!$B$12)","v":"Mapped"},{"$f":"XBRLMap(H180,$K180,$M$5,$M$6,CONFIGURATION!$B$10,\"BMA\",CONFIGURATION!$B$1,\"bscr\",CONFIGURATION!$B$12)","v":"Mapped"},null,null,null,null,null,null,"bma_TotalGeneralBusinessInsuranceReservesAndOtherLiabilities"]
[null,null,null,null,null,null,null,null,null,null,null,{"$f":"XBRLMap(F181,$K181,$L$5,$L$6,CONFIGURATION!$B$10,\"BMA\",CONFIGURATION!$B$1,\"bscr\",CONFIGURATION!$B$12)","v":"-"},{"$f":"XBRLMap(H181,$K181,$M$5,$M$6,CONFIGURATION!$B$10,\"BMA\",CONFIGURATION!$B$1,\"bscr\",CONFIGURATION!$B$12)","v":"-"},null,null,null,null,null,null,""]
[null,null,"STATUTORY ECONOMIC CAPITAL AND SURPLUS",null,null,null,null,null,null,null,null,{"$f":"XBRLMap(F182,$K182,$L$5,$L$6,CONFIGURATION!$B$10,\"BMA\",CONFIGURATION!$B$1,\"bscr\",CONFIGURATION!$B$12)","v":"-"},{"$f":"XBRLMap(H182,$K182,$M$5,$M$6,CONFIGURATION!$B$10,\"BMA\",CONFIGURATION!$B$1,\"bscr\",CONFIGURATION!$B$12)","v":"-"}]
[null,null,null,null,null,null,null,null,null,null,null,{"$f":"XBRLMap(F183,$K183,$L$5,$L$6,CONFIGURATION!$B$10,\"BMA\",CONFIGURATION!$B$1,\"bscr\",CONFIGURATION!$B$12)","v":"-"},{"$f":"XBRLMap(H183,$K183,$M$5,$M$6,CONFIGURATION!$B$10,\"BMA\",CONFIGURATION!$B$1,\"bscr\",CONFIGURATION!$B$12)","v":"-"},null,null,null,null,null,null,""]
[null,"40.","TOTAL STATUTORY ECONOMIC CAPITAL AND SURPLUS ",null,null,{"$f":"Import!M206","v":0},null,{"$f":"Import!O206","v":0},null,null,null,null,null,null,null,null,null,null,null,"bma_TotalStatutoryCapitalAndSurplus"]
[null,null,null,null,null,null,null,null,null,null,null,{"$f":"XBRLMap(F185,$K185,$L$5,$L$6,CONFIGURATION!$B$10,\"BMA\",CONFIGURATION!$B$1,\"bscr\",CONFIGURATION!$B$12)","v":"-"},{"$f":"XBRLMap(H185,$K185,$M$5,$M$6,CONFIGURATION!$B$10,\"BMA\",CONFIGURATION!$B$1,\"bscr\",CONFIGURATION!$B$12)","v":"-"},null,null,null,null,null,null,""]
[null,"41.","TOTAL",null,null,{"$f":"F180+F184","v":0},null,{"$f":"H180+H184","v":0},null,null,"brrt_Liabilities",{"$f":"XBRLMap(F186,$K186,$L$5,$L$6,CONFIGURATION!$B$10,\"BMA\",CONFIGURATION!$B$1,\"bscr\",CONFIGURATION!$B$12)","v":"Mapped"},{"$f":"XBRLMap(H186,$K186,$M$5,$M$6,CONFIGURATION!$B$10,\"BMA\",CONFIGURATION!$B$1,\"bscr\",CONFIGURATION!$B$12)","v":"Mapped"},null,null,null,null,null,null,"bma_TotalLiabilities"]
[null,null,null,null,null,null,null,null,null,null,null,{"$f":"XBRLMap(F187,$K187,$L$5,$L$6,CONFIGURATION!$B$10,\"BMA\",CONFIGURATION!$B$1,\"bscr\",CONFIGURATION!$B$12)","v":"-"},{"$f":"XBRLMap(H187,$K187,$M$5,$M$6,CONFIGURATION!$B$10,\"BMA\",CONFIGURATION!$B$1,\"bscr\",CONFIGURATION!$B$12)","v":"-"},null,null,null,null,null,null,""]
[null,null,null,null,null,{"$f":"IF(F189=\"TRUE\",HYPERLINK(\"#'Form 4EBS'!F93\",\"TRUE\"),HYPERLINK(\"#'Form 4EBS'!F93\",\"FALSE\"))","v":"TRUE"},null,{"$f":"IF(H189=\"TRUE\",HYPERLINK(\"#'Form 4EBS'!H93\",\"TRUE\"),HYPERLINK(\"#'Form 4EBS'!H93\",\"FALSE\"))","v":"TRUE"},null,null,null,{"$f":"XBRLMap(F188,$K188,$L$5,$L$6,CONFIGURATION!$B$10,\"BMA\",CONFIGURATION!$B$1,\"bscr\",CONFIGURATION!$B$12)","v":"-"},{"$f":"XBRLMap(H188,$K188,$M$5,$M$6,CONFIGURATION!$B$10,\"BMA\",CONFIGURATION!$B$1,\"bscr\",CONFIGURATION!$B$12)","v":"-"},null,null,null,null,null,null,""]
[null,null,null,null,null,{"$f":"IF(ROUND((F93-F186),0)=0,\"TRUE\",\"FALSE\")","v":"TRUE"},null,{"$f":"IF(ROUND((H93-H186),0)=0,\"TRUE\",\"FALSE\")","v":"TRUE"}]
[null,null,"Difference",null,null,{"$f":"ROUND((F93-F186),0)","v":0},null,{"$f":"ROUND((H93-H186),0)","v":0}]
[]
[null,null,null,null,null,{"$f":"IF(F188=\"False\",\"Line 15 does not equal Line 41\",\"\")","v":""},null,{"$f":"IF(H188=\"False\",\"Line 15 does not equal Line 41\",\"\")","v":""}]
[]
[null,"Notes to Form 4EBS",null,null,null,null,null,null,null,null,null,{"$f":"XBRLMap(F194,$K194,$L$5,$L$6,CONFIGURATION!$B$10,\"BMA\",CONFIGURATION!$B$1,\"bscr\",CONFIGURATION!$B$12)","v":"-"},{"$f":"XBRLMap(H194,$K194,$M$5,$M$6,CONFIGURATION!$B$10,\"BMA\",CONFIGURATION!$B$1,\"bscr\",CONFIGURATION!$B$12)","v":"-"},null,null,null,null,null,null,""]
[null,null,null,"Additional Details",null,null,null,null,null,null,null,{"$f":"XBRLMap(F195,$K195,$L$5,$L$6,CONFIGURATION!$B$10,\"BMA\",CONFIGURATION!$B$1,\"bscr\",CONFIGURATION!$B$12)","v":"-"},{"$f":"XBRLMap(H195,$K195,$M$5,$M$6,CONFIGURATION!$B$10,\"BMA\",CONFIGURATION!$B$1,\"bscr\",CONFIGURATION!$B$12)","v":"-"}]
[null,"Line 10 ","Collateralized balances",null,null,{"$f":"Import!M284","v":0},null,null,null,null,"brrt_CollateralizedBalances",{"$f":"XBRLMap(F196,$K196,$L$5,$L$6,CONFIGURATION!$B$10,\"BMA\",CONFIGURATION!$B$1,\"bscr\",CONFIGURATION!$B$12)","v":"Mapped"},{"$f":"XBRLMap(H196,$K196,$M$5,$M$6,CONFIGURATION!$B$10,\"BMA\",CONFIGURATION!$B$1,\"bscr\",CONFIGURATION!$B$12)","v":"Mapped"},null,null,null,null,null,null,"bma_CollateralizedBalances"]
[null,"Line 11(e)","Collateralized balances",null,null,{"$f":"Import!M285","v":0}]
[null,"Line 27(c)-(ii)","Collateral placed in favor of the insurer ",{"$f":"IF('Insurer Information'!$F$9=\"Class C\",HYPERLINK(\"#'Attachments'!G115\",\"Attach file\"),HYPERLINK(\"#'Attachments'!G155\",\"Attach file\"))","v":"Attach file"},null,{"$f":"Import!M286","v":0}]
[null,"Line 27B(c)-(ii)","Collateral placed in favor of the insurer ",{"$f":"IF('Insurer Information'!$F$9=\"Class C\",HYPERLINK(\"#'Attachments'!G115\",\"Attach file\"),HYPERLINK(\"#'Attachments'!G155\",\"Attach file\"))","v":"Attach file"},null,{"$f":"Import!M345","v":0}]
[null,"Line 13(j)","Any other assets",{"$f":"IF('Insurer Information'!$F$9=\"Class C\",HYPERLINK(\"#'Attachments'!G115\",\"Attach file\"),HYPERLINK(\"#'Attachments'!G155\",\"Attach file\"))","v":"Attach file"},null,{"$f":"Import!M287","v":0}]
[null,"Line 36(i)","Any other liabilities",{"$f":"IF('Insurer Information'!$F$9=\"Class C\",HYPERLINK(\"#'Attachments'!G115\",\"Attach file\"),HYPERLINK(\"#'Attachments'!G155\",\"Attach file\"))","v":"Attach file"},null,{"$f":"Import!M299","v":0}]
[null,null,null,null,null,null,null,null,null,null,null,{"$f":"XBRLMap(F202,$K202,$L$5,$L$6,CONFIGURATION!$B$10,\"BMA\",CONFIGURATION!$B$1,\"bscr\",CONFIGURATION!$B$12)","v":"-"},{"$f":"XBRLMap(H202,$K202,$M$5,$M$6,CONFIGURATION!$B$10,\"BMA\",CONFIGURATION!$B$1,\"bscr\",CONFIGURATION!$B$12)","v":"-"}]
[null,"Line 15","Encumbered assets for policyholder obligations"]
[null,null,null,null,null,null,null,null,null,null,"brrt_EncumberedAssetsAxis_brrt_EncumberedAssetsForPolicyholderObligationsMember"]
[null,null,"Asset"]
[null,null,"             Cash",null,null,{"$f":"Import!M288","v":0},null,{"$f":"Import!O288","v":0},null,null,"brrt_CashAmountOfEncumbrance",{"$f":"XBRLMap(F206,$K206&\".\"&$K$204,$L$5,$L$6,CONFIGURATION!$B$10,\"BMA\",CONFIGURATION!$B$1,\"bscr\",CONFIGURATION!$B$12)","v":"Mapped"},{"$f":"XBRLMap(H206,$K206&\".\"&$K$204,$M$5,$M$6,CONFIGURATION!$B$10,\"BMA\",CONFIGURATION!$B$1,\"bscr\",CONFIGURATION!$B$12)","v":"Mapped"}]
[null,null,"             Total quoted investments",null,null,{"$f":"Import!M289","v":0},null,{"$f":"Import!O289","v":0},null,null,"brrt_QuotedInvestmentsAmountOfEncumbrance",{"$f":"XBRLMap(F207,$K207&\".\"&$K$204,$L$5,$L$6,CONFIGURATION!$B$10,\"BMA\",CONFIGURATION!$B$1,\"bscr\",CONFIGURATION!$B$12)","v":"Mapped"},{"$f":"XBRLMap(H207,$K207&\".\"&$K$204,$M$5,$M$6,CONFIGURATION!$B$10,\"BMA\",CONFIGURATION!$B$1,\"bscr\",CONFIGURATION!$B$12)","v":"Mapped"}]
[null,null,"             Total unquoted investments",null,null,{"$f":"Import!M290","v":0},null,{"$f":"Import!O290","v":0},null,null,"brrt_UnquotedInvestmentsAmountOfEncumbrance",{"$f":"XBRLMap(F208,$K208&\".\"&$K$204,$L$5,$L$6,CONFIGURATION!$B$10,\"BMA\",CONFIGURATION!$B$1,\"bscr\",CONFIGURATION!$B$12)","v":"Mapped"},{"$f":"XBRLMap(H208,$K208&\".\"&$K$204,$M$5,$M$6,CONFIGURATION!$B$10,\"BMA\",CONFIGURATION!$B$1,\"bscr\",CONFIGURATION!$B$12)","v":"Mapped"}]
[null,null,"             Funds held by ceding reinsurers",null,null,{"$f":"F73","v":0},null,{"$f":"H73","v":0},null,null,"brrt_FundsHeldByCedingReinsurersAmountOfEncumbrance",{"$f":"XBRLMap(F209,$K209&\".\"&$K$204,$L$5,$L$6,CONFIGURATION!$B$10,\"BMA\",CONFIGURATION!$B$1,\"bscr\",CONFIGURATION!$B$12)","v":"Mapped"},{"$f":"XBRLMap(H209,$K209&\".\"&$K$204,$M$5,$M$6,CONFIGURATION!$B$10,\"BMA\",CONFIGURATION!$B$1,\"bscr\",CONFIGURATION!$B$12)","v":"Mapped"}]
[null,null,"             Other asset types",null,null,{"$f":"Import!M292","v":0},null,{"$f":"Import!O292","v":0},null,null,"brrt_OtherAssetsTypesAmountOfEncumbrance",{"$f":"XBRLMap(F210,$K210&\".\"&$K$204,$L$5,$L$6,CONFIGURATION!$B$10,\"BMA\",CONFIGURATION!$B$1,\"bscr\",CONFIGURATION!$B$12)","v":"Mapped"},{"$f":"XBRLMap(H210,$K210&\".\"&$K$204,$M$5,$M$6,CONFIGURATION!$B$10,\"BMA\",CONFIGURATION!$B$1,\"bscr\",CONFIGURATION!$B$12)","v":"Mapped"}]
[null,null,"                      Total assets encumbered",null,null,{"$f":"SUM(F206:F210)","v":0},null,{"$f":"SUM(H206:H210)","v":0},null,null,"brrt_AssetsEncumberedAmountOfEncumbrance",{"$f":"XBRLMap(F211,$K211&\".\"&$K$204,$L$5,$L$6,CONFIGURATION!$B$10,\"BMA\",CONFIGURATION!$B$1,\"bscr\",CONFIGURATION!$B$12)","v":"Mapped"},{"$f":"XBRLMap(H211,$K211&\".\"&$K$204,$M$5,$M$6,CONFIGURATION!$B$10,\"BMA\",CONFIGURATION!$B$1,\"bscr\",CONFIGURATION!$B$12)","v":"Mapped"}]
[]
[null,"Line 15","Encumbered assets not securing policyholder obligations"]
[null,null,null,null,null,null,null,null,null,null,"brrt_EncumberedAssetsAxis_brrt_EncumberedAssetsNotSecuringPolicyholderObligationsMember"]
[null,null,"Asset","Purpose of Encumbrance"]
[null,null,"             Cash",null,null,{"$f":"Import!M294","v":0},null,{"$f":"Import!O294","v":0},null,null,"brrt_CashAmountOfEncumbrance",{"$f":"XBRLMap(F216,$K216&\".\"&$K$214,$L$5,$L$6,CONFIGURATION!$B$10,\"BMA\",CONFIGURATION!$B$1,\"bscr\",CONFIGURATION!$B$12)","v":"Mapped"},{"$f":"XBRLMap(H216,$K216&\".\"&$K$214,$M$5,$M$6,CONFIGURATION!$B$10,\"BMA\",CONFIGURATION!$B$1,\"bscr\",CONFIGURATION!$B$12)","v":"Mapped"},null,"brrt_CashPurposeOfEncumbrance",null,null,{"$f":"XBRLMap(D216,$O216&\".\"&$K$214,$L$5,$L$6,CONFIGURATION!$B$10,\"BMA\",CONFIGURATION!$B$1,\"bscr\")","v":"Mapped"}]
[null,null,"             Total quoted investments",null,null,{"$f":"Import!M295","v":0},null,{"$f":"Import!O295","v":0},null,null,"brrt_QuotedInvestmentsAmountOfEncumbrance",{"$f":"XBRLMap(F217,$K217&\".\"&$K$214,$L$5,$L$6,CONFIGURATION!$B$10,\"BMA\",CONFIGURATION!$B$1,\"bscr\",CONFIGURATION!$B$12)","v":"Mapped"},{"$f":"XBRLMap(H217,$K217&\".\"&$K$214,$M$5,$M$6,CONFIGURATION!$B$10,\"BMA\",CONFIGURATION!$B$1,\"bscr\",CONFIGURATION!$B$12)","v":"Mapped"},null,"brrt_QuotedInvestmentsPurposeOfEncumbrance",null,null,{"$f":"XBRLMap(D217,$O217&\".\"&$K$214,$L$5,$L$6,CONFIGURATION!$B$10,\"BMA\",CONFIGURATION!$B$1,\"bscr\")","v":"Mapped"}]
[null,null,"             Total unquoted investments",null,null,{"$f":"Import!M296","v":0},null,{"$f":"Import!O296","v":0},null,null,"brrt_UnquotedInvestmentsAmountOfEncumbrance",{"$f":"XBRLMap(F218,$K218&\".\"&$K$214,$L$5,$L$6,CONFIGURATION!$B$10,\"BMA\",CONFIGURATION!$B$1,\"bscr\",CONFIGURATION!$B$12)","v":"Mapped"},{"$f":"XBRLMap(H218,$K218&\".\"&$K$214,$M$5,$M$6,CONFIGURATION!$B$10,\"BMA\",CONFIGURATION!$B$1,\"bscr\",CONFIGURATION!$B$12)","v":"Mapped"},null,"brrt_UnquotedInvestmentsPurposeOfEncumbrance",null,null,{"$f":"XBRLMap(D218,$O218&\".\"&$K$214,$L$5,$L$6,CONFIGURATION!$B$10,\"BMA\",CONFIGURATION!$B$1,\"bscr\")","v":"Mapped"}]
[null,null,"             Other asset types",null,null,{"$f":"Import!M297","v":0},null,{"$f":"Import!O297","v":0},null,null,"brrt_OtherAssetsTypesAmountOfEncumbrance",{"$f":"XBRLMap(F219,$K219&\".\"&$K$214,$L$5,$L$6,CONFIGURATION!$B$10,\"BMA\",CONFIGURATION!$B$1,\"bscr\",CONFIGURATION!$B$12)","v":"Mapped"},{"$f":"XBRLMap(H219,$K219&\".\"&$K$214,$M$5,$M$6,CONFIGURATION!$B$10,\"BMA\",CONFIGURATION!$B$1,\"bscr\",CONFIGURATION!$B$12)","v":"Mapped"},null,"brrt_OtherAssetsTypesPurposeOfEncumbrance",null,null,{"$f":"XBRLMap(D219,$O219&\".\"&$K$214,$L$5,$L$6,CONFIGURATION!$B$10,\"BMA\",CONFIGURATION!$B$1,\"bscr\")","v":"Mapped"}]
[null,null,"                      Total assets encumbered",null,null,{"$f":"SUM(F216:F219)","v":0},null,{"$f":"SUM(H216:H219)","v":0},null,null,"brrt_AssetsEncumberedAmountOfEncumbrance",{"$f":"XBRLMap(F220,$K220&\".\"&$K$214,$L$5,$L$6,CONFIGURATION!$B$10,\"BMA\",CONFIGURATION!$B$1,\"bscr\",CONFIGURATION!$B$12)","v":"Mapped"},{"$f":"XBRLMap(H220,$K220&\".\"&$K$214,$M$5,$M$6,CONFIGURATION!$B$10,\"BMA\",CONFIGURATION!$B$1,\"bscr\",CONFIGURATION!$B$12)","v":"Mapped"}]
[null,null,null,"Additional Details"]
[null,"Line 13(e) ","Details of business treated under deposit accounting techniques as a asset",{"$f":"IF('Insurer Information'!$F$9=\"Class C\",HYPERLINK(\"#'Attachments'!G115\",\"Attach file\"),HYPERLINK(\"#'Attachments'!G155\",\"Attach file\"))","v":"Attach file"},null,{"$f":"Import!M346","v":0}]
[null,"Line 36(f)","Details of business treated under deposit accounting techniques as a liability",{"$f":"IF('Insurer Information'!$F$9=\"Class C\",HYPERLINK(\"#'Attachments'!G115\",\"Attach file\"),HYPERLINK(\"#'Attachments'!G155\",\"Attach file\"))","v":"Attach file"},null,{"$f":"Import!M347","v":0}]
[null,"Line 37","Details of the basis used to derive the amounts disclosed",{"$f":"IF('Insurer Information'!$F$9=\"Class C\",HYPERLINK(\"#'Attachments'!G115\",\"Attach file\"),HYPERLINK(\"#'Attachments'!G155\",\"Attach file\"))","v":"Attach file"},null,{"$f":"Import!M300","v":0}]
[null,"Line 40","Reconciliation between Line 40 of 4EBS and Line 40 of Form 4",{"$f":"HYPERLINK(\"#'Schedule V(g)'!A1\",\"Refer to Schedule V(g)\")","v":"Refer to Schedule V(g)"},null,{"$f":"Import!M348","v":0}]
[]
[null,null,"Long-Term Business Provisions Additional Disclosures"]
[null,"Line 27(c)-(i)","Adjustment for counterparty default ",{"$f":"IF('Insurer Information'!$F$9=\"Class C\",HYPERLINK(\"#'Attachments'!G125\",\"Attach file with Details of Line of Business\"),HYPERLINK(\"#'Attachments'!G165\",\"Attach file with Details of Line of Business\"))","v":"Attach file with Details of Line of Business"},null,{"$f":"Import!M349","v":0}]
[null,"Line 27(d)-(i)","Premium included as Bound But Not Incepted ","See and complete Sch VII",null,{"$f":"Import!M350","v":0},null,{"$f":"+'Schedule VII (EBS)'!L48","v":0}]
[null,"Line 27(d)-(ii)","Best Estimate Technical Provisions in respect of BBNI Business","See and complete Sch VII",null,{"$f":"Import!M351","v":0},null,{"$f":"+'Schedule VII (EBS)'!M48","v":0}]
[null,"Line 27(d)-(iii)","Best estimate provisions that used trans. Arrangements","See and complete Sch VII",null,{"$f":"Import!M352","v":0},null,{"$f":"+'Schedule VII (EBS)'!N48","v":0}]
[null,"Line 27(d)-(iv)","Best estimate provisions if transitional arrangements were not applied","See and complete Sch VII",null,{"$f":"Import!M353","v":0},null,{"$f":"+'Schedule VII (EBS)'!O48","v":0}]
[null,"Line 27(d)-(v)","Scenario based best estimate provisions that were used","See and complete Sch VII",null,{"$f":"Import!M354","v":0},null,{"$f":"+'Schedule VII (EBS)'!P48","v":0}]
[null,"Line 27(d)-(vi)","Scenario based approach that used standard approach","See and complete Sch VII",null,{"$f":"Import!M355","v":0},null,{"$f":"+'Schedule VII (EBS)'!Q48","v":0}]
[null,"Line 27(d)-(vii)","Scenario based approach that used base approach","See and complete Sch VII",null,{"$f":"Import!M356","v":0},null,{"$f":"+'Schedule VII (EBS)'!R48","v":0}]
[null,"Line 27B(c)-(i)","Adjustment for counterparty default ","See and complete Sch VII",null,{"$f":"Import!M357","v":0}]
[null,"Line 27B(d)-(i)","Premium included as Bound But Not Incepted ","See and complete Sch VII",null,{"$f":"Import!M358","v":0},null,{"$f":"+'Schedule VII (EBS)'!S48","v":0}]
[null,"Line 27B(d)-(ii)","Best Estimate Technical Provisions in respect of BBNI Business","See and complete Sch VII",null,{"$f":"Import!M359","v":0},null,{"$f":"+'Schedule VII (EBS)'!T48","v":0}]

{"sheet":"Schedule II","index":22,"n_rows":117,"n_cols":28,"rows_kept":117,"cut":false,"hidden":false,"merged":[[6,19,6,21],[28,3,28,5],[28,7,28,9],[28,11,28,13],[28,19,28,21],[6,11,6,13],[51,3,51,5],[51,8,51,18],[52,11,52,13],[52,15,52,17],[6,15,6,17],[1,2,1,4],[2,3,2,5],[3,3,3,5],[6,3,6,5],[6,7,6,9]]}
[null,"SCHEDULE OF FIXED INCOME & EQUITY INVESTMENTS BY BSCR RATING",null,null,null,null,null,null,null,null,null,null,null,null,null,null,null,null,null,null,null,{"$f":"HYPERLINK(\"#'Index'!A1\",\"Return to Index\")","v":"Return to Index"}]
[null,null,{"$f":"'Insurer Information'!C7","v":"Enter Company Name"}]
[null,null,"As at",{"$f":"'Form 4EBS'!C3","v":"2019-12-31"},null,null,null,null,null,null,null,null,null,null,null,null,null,null,null,null,null,"SCHEDULE II"]
[null,null,{"$f":"\"Expressed in \" & IF(CONFIGURATION!$B$12>1,\" ['\"&MID(CONFIGURATION!$B$12,2,LEN(CONFIGURATION!$B$12))&\"s]\",\"\")","v":"Expressed in  ['000s]"},{"$f":"'Form 4EBS'!C4","v":"United States Dollars"}]
[]
[null,null,null,"(1)",null,"(2)",null,"(3)",null,"(4)",null,"(5)",null,{"$f":"YEAR('Insurer Information'!C3)","v":2019},null,"(7)",null,"(8)",null,"(9)",null,"(10)"]
[null,null,null,"CORPORATE & SOVEREIGN BONDS",null,null,null,"RESIDENTIAL MORTGAGE-BACKED SECURITIES",null,null,null,"COMMERCIAL MORTGAGE-BACKED SECURITIES / ASSET-BACKED SECURITIES",null,null,null,"BOND MUTUAL FUNDS",null,null,null,"TOTAL\n[ Form 1SFS Lines 2(b) & 3(b)]"]
[null,null,null,{"$f":"'Form 4EBS'!F6","v":"2019-12-31"},null,{"$f":"'Form 4EBS'!H6","v":"2018-12-31"},null,{"$f":"'Form 4EBS'!F6","v":"2019-12-31"},null,{"$f":"'Form 4EBS'!H6","v":"2018-12-31"},null,{"$f":"'Form 4EBS'!F6","v":"2019-12-31"},null,{"$f":"'Form 4EBS'!H6","v":"2018-12-31"},null,{"$f":"'Form 4EBS'!F6","v":"2019-12-31"},null,{"$f":"'Form 4EBS'!H6","v":"2018-12-31"},null,{"$f":"D8","v":"2019-12-31"},null,{"$f":"F8","v":"2018-12-31"}]
[null,null,null,{"$f":"CONFIGURATION!$D$12","v":" ('000s)"},null,{"$f":"CONFIGURATION!$D$12","v":" ('000s)"},null,{"$f":"CONFIGURATION!$D$12","v":" ('000s)"},null,{"$f":"CONFIGURATION!$D$12","v":" ('000s)"},null,{"$f":"CONFIGURATION!$D$12","v":" ('000s)"},null,{"$f":"CONFIGURATION!$D$12","v":" ('000s)"},null,{"$f":"CONFIGURATION!$D$12","v":" ('000s)"},null,{"$f":"CONFIGURATION!$D$12","v":" ('000s)"},null,{"$f":"CONFIGURATION!$D$12","v":" ('000s)"},null,{"$f":"CONFIGURATION!$D$12","v":" ('000s)"}]
[null,"Line no. "]
[null,"Quoted and Unquoted Bonds and Debentures"]
[null,1,"BSCR Rating 0",{"$f":"Import!E443","v":0},null,{"$f":"Import!G443","v":0},null,null,null,null,null,null,null,null,null,{"$f":"Import!E468","v":0},null,{"$f":"Import!G468","v":0},null,{"$f":"D12+H12+L12+P12","v":0},null,{"$f":"F12+J12+N12+R12","v":0},null,null,"brrt_RiskGradeAxis_brrt_BSCRRating0Member"]
[null,2,"BSCR Rating 1",{"$f":"Import!E444","v":0},null,{"$f":"Import!G444","v":0},null,{"$f":"Import!E452","v":0},null,{"$f":"Import!G452","v":0},null,{"$f":"Import!E460","v":0},null,{"$f":"Import!G460","v":0},null,{"$f":"Import!E469","v":0},null,{"$f":"Import!G469","v":0},null,0,null,0,null,null,"brrt_RiskGradeAxis_brrt_BSCRRating1Member"]
[null,3,"BSCR Rating 2",{"$f":"Import!E445","v":0},null,{"$f":"Import!G445","v":0},null,{"$f":"Import!E453","v":0},null,{"$f":"Import!G453","v":0},null,{"$f":"Import!E461","v":0},null,{"$f":"Import!G461","v":0},null,{"$f":"Import!E470","v":0},null,{"$f":"Import!G470","v":0},null,0,null,0,null,null,"brrt_RiskGradeAxis_brrt_BSCRRating2Member"]
[null,4,"BSCR Rating 3",{"$f":"Import!E446","v":0},null,{"$f":"Import!G446","v":0},null,{"$f":"Import!E454","v":0},null,{"$f":"Import!G454","v":0},null,{"$f":"Import!E462","v":0},null,{"$f":"Import!G462","v":0},null,{"$f":"Import!E471","v":0},null,{"$f":"Import!G471","v":0},null,0,null,0,null,null,"brrt_RiskGradeAxis_brrt_BSCRRating3Member"]
[null,5,"BSCR Rating 4",{"$f":"Import!E447","v":0},null,{"$f":"Import!G447","v":0},null,{"$f":"Import!E455","v":0},null,{"$f":"Import!G455","v":0},null,{"$f":"Import!E463","v":0},null,{"$f":"Import!G463","v":0},null,{"$f":"Import!E472","v":0},null,{"$f":"Import!G472","v":0},null,0,null,0,null,null,"brrt_RiskGradeAxis_brrt_BSCRRating4Member"]
[null,6,"BSCR Rating 5",{"$f":"Import!E448","v":0},null,{"$f":"Import!G448","v":0},null,{"$f":"Import!E456","v":0},null,{"$f":"Import!G456","v":0},null,{"$f":"Import!E464","v":0},null,{"$f":"Import!G464","v":0},null,{"$f":"Import!E473","v":0},null,{"$f":"Import!G473","v":0},null,0,null,0,null,null,"brrt_RiskGradeAxis_brrt_BSCRRating5Member"]
[null,7,"BSCR Rating 6",{"$f":"Import!E449","v":0},null,{"$f":"Import!G449","v":0},null,{"$f":"Import!E457","v":0},null,{"$f":"Import!G457","v":0},null,{"$f":"Import!E465","v":0},null,{"$f":"Import!G465","v":0},null,{"$f":"Import!E474","v":0},null,{"$f":"Import!G474","v":0},null,0,null,0,null,null,"brrt_RiskGradeAxis_brrt_BSCRRating6Member"]
[null,8,"BSCR Rating 7",{"$f":"Import!E450","v":0},null,{"$f":"Import!G450","v":0},null,{"$f":"Import!E458","v":0},null,{"$f":"Import!G458","v":0},null,{"$f":"Import!E466","v":0},null,{"$f":"Import!G466","v":0},null,{"$f":"Import!E475","v":0},null,{"$f":"Import!G475","v":0},null,0,null,0,null,null,"brrt_RiskGradeAxis_brrt_BSCRRating7Member"]
[null,9,"BSCR Rating 8",{"$f":"Import!E451","v":0},null,{"$f":"Import!G451","v":0},null,{"$f":"Import!E459","v":0},null,{"$f":"Import!G459","v":0},null,{"$f":"Import!E467","v":0},null,{"$f":"Import!G467","v":0},null,{"$f":"Import!E476","v":0},null,{"$f":"Import!G476","v":0},null,0,null,0,null,null,"brrt_RiskGradeAxis_brrt_BSCRRating8Member"]
[]
[null,10,"Total",{"$f":"SUM(D12:D20)","v":0},null,{"$f":"SUM(F12:F20)","v":0},null,{"$f":"SUM(H12:H20)","v":0},null,{"$f":"SUM(J12:J20)","v":0},null,{"$f":"SUM(L12:L20)","v":0},null,{"$f":"SUM(N12:N20)","v":0},null,{"$f":"SUM(P11:P20)","v":0},null,{"$f":"SUM(R11:R20)","v":0},null,{"$f":"SUM(T12:T20)","v":0},null,{"$f":"SUM(V12:V20)","v":0},null,null,"brrt_RiskGradeAxis_brrt_TotalMember"]
[]
[null,null,null,null,null,null,null,null,null,null,null,null,null,null,null,null,null,null,null,{"$f":"IF(T25=\"TRUE\",HYPERLINK(\"#'Form 1SFS'!F16:K31\",\"TRUE\"),HYPERLINK(\"#'Form 1SFS'!F16:K31\",\"FALSE\"))","v":"TRUE"},null,{"$f":"IF(V25=\"TRUE\",HYPERLINK(\"#'Form 1SFS'!G16:M31\",\"TRUE\"),HYPERLINK(\"#'Form 1SFS'!G16:M31\",\"FALSE\"))","v":"TRUE"}]
[null,null,null,null,null,null,null,null,null,null,null,null,null,null,null,null,null,null,null,{"$f":"IF(ROUND((T22-('Form 1SFS'!F18+'Form 1SFS'!H18+'Form 1SFS'!F31+'Form 1SFS'!H31)),0)=0,\"TRUE\",\"FALSE\")","v":"TRUE"},null,{"$f":"IF(ROUND((V22-('Form 1SFS'!G18+'Form 1SFS'!I18+'Form 1SFS'!G31+'Form 1SFS'!I31)),0)=0,\"TRUE\",\"FALSE\")","v":"TRUE"}]
[null,null,"Difference",null,null,null,null,null,null,null,null,null,null,null,null,null,null,null,null,{"$f":"ROUND(('Form 1SFS'!F18+'Form 1SFS'!H18+'Form 1SFS'!F31+'Form 1SFS'!H31)-T22,0)","v":0},null,{"$f":"ROUND(('Form 1SFS'!G18+'Form 1SFS'!I18+'Form 1SFS'!G31+'Form 1SFS'!I31)-V22,0)","v":0}]
[]
[null,null,null,null,null,null,null,null,null,null,null,null,null,null,null,null,null,null,null,{"$f":"IF(T24=\"False\",\"Does not equal Form 1SFS Lines 2(b) & 3(b)\",\"\")","v":""},null,{"$f":"IF(V24=\"False\",\"Does not equal Form 1SFS Lines 2(b) & 3(b)\",\"\")","v":""}]
[null,null,null,"COMMON STOCK\n[ Form 1SFS Lines 2(c)(i) & 3(c)(i) ]",null,null,null,"PREFERRED STOCK\n[ Form 1SFS Lines 2(c)(ii) & 3(c)(ii) ]",null,null,null,"EQUITY MUTUAL FUNDS\n[ Form 1SFS Lines 2(c)(iii) & 3(c)(iii) ]",null,null,null,null,null,null,null,"TOTAL\n[ Form 1SFS Lines 2(d) & 3(d)]"]
[null,null,null,{"$f":"'Form 4EBS'!F6","v":"2019-12-31"},null,{"$f":"'Form 4EBS'!H6","v":"2018-12-31"},null,{"$f":"'Form 4EBS'!F6","v":"2019-12-31"},null,{"$f":"'Form 4EBS'!H6","v":"2018-12-31"},null,{"$f":"'Form 4EBS'!F6","v":"2019-12-31"},null,{"$f":"'Form 4EBS'!H6","v":"2018-12-31"},null,null,null,null,null,{"$f":"'Form 4EBS'!F6","v":"2019-12-31"},null,{"$f":"'Form 4EBS'!F6","v":"2019-12-31"}]
[null,null,null,{"$f":"CONFIGURATION!$D$12","v":" ('000s)"},null,{"$f":"CONFIGURATION!$D$12","v":" ('000s)"},null,{"$f":"CONFIGURATION!$D$12","v":" ('000s)"},null,{"$f":"CONFIGURATION!$D$12","v":" ('000s)"},null,{"$f":"CONFIGURATION!$D$12","v":" ('000s)"},null,{"$f":"CONFIGURATION!$D$12","v":" ('000s)"},null,null,null,null,null,{"$f":"CONFIGURATION!$D$12","v":" ('000s)"},null,{"$f":"CONFIGURATION!$D$12","v":" ('000s)"}]
[null,"Quoted and Unquoted Equities"]
[null,11,"BSCR Rating 1",null,null,null,null,{"$f":"Import!E479","v":0},null,{"$f":"Import!G479","v":0},null,null,null,null,null,null,null,null,null,{"$f":"D33+H33+L33","v":0},null,{"$f":"F33+J33+N33","v":0},null,null,"brrt_RiskGradeAxis_brrt_BSCRRating1Member"]
[null,12,"BSCR Rating 2",null,null,null,null,{"$f":"Import!E480","v":0},null,{"$f":"Import!G480","v":0},null,null,null,null,null,null,null,null,null,0,null,0,null,null,"brrt_RiskGradeAxis_brrt_BSCRRating2Member"]
[null,13,"BSCR Rating 3",null,null,null,null,{"$f":"Import!E481","v":0},null,{"$f":"Import!G481","v":0},null,null,null,null,null,null,null,null,null,0,null,0,null,null,"brrt_RiskGradeAxis_brrt_BSCRRating3Member"]
[null,14,"BSCR Rating 4",null,null,null,null,{"$f":"Import!E482","v":0},null,{"$f":"Import!G482","v":0},null,null,null,null,null,null,null,null,null,0,null,0,null,null,"brrt_RiskGradeAxis_brrt_BSCRRating4Member"]
[null,15,"BSCR Rating 5",null,null,null,null,{"$f":"Import!E483","v":0},null,{"$f":"Import!G483","v":0},null,null,null,null,null,null,null,null,null,0,null,0,null,null,"brrt_RiskGradeAxis_brrt_BSCRRating5Member"]
[null,16,"BSCR Rating 6",null,null,null,null,{"$f":"Import!E484","v":0},null,{"$f":"Import!G484","v":0},null,null,null,null,null,null,null,null,null,0,null,0,null,null,"brrt_RiskGradeAxis_brrt_BSCRRating6Member"]
[null,17,"BSCR Rating 7",null,null,null,null,{"$f":"Import!E485","v":0},null,{"$f":"Import!G485","v":0},null,null,null,null,null,null,null,null,null,0,null,0,null,null,"brrt_RiskGradeAxis_brrt_BSCRRating7Member"]
[null,18,"BSCR Rating 8",null,null,null,null,{"$f":"Import!E486","v":0},null,{"$f":"Import!G486","v":0},null,null,null,null,null,null,null,null,null,0,null,0,null,null,"brrt_RiskGradeAxis_brrt_BSCRRating8Member"]
[null,19,"Quoted Equity Funds",{"$f":"Import!E477","v":0},null,{"$f":"Import!G477","v":0},null,null,null,null,null,{"$f":"Import!E487","v":0},null,{"$f":"Import!G487","v":0},null,null,null,null,null,0,null,0]
[null,20,"Unquoted Equity Funds",{"$f":"Import!E478","v":0},null,{"$f":"Import!G478","v":0},null,null,null,null,null,{"$f":"Import!E488","v":0},null,{"$f":"Import!G488","v":0},null,null,null,null,null,0,null,0]
[]
[null,21,"Total",{"$f":"SUM(D33:D42)","v":0},null,{"$f":"SUM(F33:F42)","v":0},null,{"$f":"SUM(H33:H42)","v":0},null,{"$f":"SUM(J33:J42)","v":0},null,{"$f":"SUM(L32:L42)","v":0},null,{"$f":"SUM(N32:N42)","v":0},null,null,null,null,null,{"$f":"SUM(T33:T42)","v":0},null,{"$f":"SUM(V33:V42)","v":0},null,null,"brrt_RiskGradeAxis_brrt_TotalMember"]
[]
[null,null,null,{"$f":"IF(D47=\"TRUE\",HYPERLINK(\"#'Form 1SFS'!F20:K33\",\"TRUE\"),HYPERLINK(\"#'Form 1SFS'!F20:K33\",\"FALSE\"))","v":"TRUE"},null,{"$f":"IF(F47=\"TRUE\",HYPERLINK(\"#'Form 1SFS'!G20:M33\",\"TRUE\"),HYPERLINK(\"#'Form 1SFS'!G20:M33\",\"FALSE\"))","v":"TRUE"},null,{"$f":"IF(H47=\"TRUE\",HYPERLINK(\"#'Form 1SFS'!F21:K34\",\"TRUE\"),HYPERLINK(\"#'Form 1SFS'!F21:K34\",\"FALSE\"))","v":"TRUE"},null,{"$f":"IF(J47=\"TRUE\",HYPERLINK(\"#'Form 1SFS'!G21:M34\",\"TRUE\"),HYPERLINK(\"#'Form 1SFS'!G21:M34\",\"FALSE\"))","v":"TRUE"},null,{"$f":"IF(L47=\"TRUE\",HYPERLINK(\"#'Form 1SFS'!F22:K35\",\"TRUE\"),HYPERLINK(\"#'Form 1SFS'!F22:K35\",\"FALSE\"))","v":"TRUE"},null,{"$f":"IF(N47=\"TRUE\",HYPERLINK(\"#'Form 1SFS'!G22:M35\",\"TRUE\"),HYPERLINK(\"#'Form 1SFS'!G22:M35\",\"FALSE\"))","v":"TRUE"},null,null,null,null,null,{"$f":"IF(T47=\"TRUE\",HYPERLINK(\"#'Form 1SFS'!F20:K36\",\"TRUE\"),HYPERLINK(\"#'Form 1SFS'!F20:K36\",\"FALSE\"))","v":"TRUE"},null,{"$f":"IF(V47=\"TRUE\",HYPERLINK(\"#'Form 1SFS'!G20:M36\",\"TRUE\"),HYPERLINK(\"#'Form 1SFS'!G20:M36\",\"FALSE\"))","v":"TRUE"}]
[null,null,null,{"$f":"IF(ROUND((D44-('Form 1SFS'!F20+'Form 1SFS'!H20+'Form 1SFS'!F33+'Form 1SFS'!H33)),0)=0,\"TRUE\",\"FALSE\")","v":"TRUE"},null,{"$f":"IF(ROUND((F44-('Form 1SFS'!G20+'Form 1SFS'!I20+'Form 1SFS'!G33+'Form 1SFS'!I33)),0)=0,\"TRUE\",\"FALSE\")","v":"TRUE"},null,{"$f":"IF(ROUND((H44-('Form 1SFS'!F21+'Form 1SFS'!H21+'Form 1SFS'!F34+'Form 1SFS'!H34)),0)=0,\"TRUE\",\"FALSE\")","v":"TRUE"},null,{"$f":"IF(ROUND((J44-('Form 1SFS'!G21+'Form 1SFS'!I21+'Form 1SFS'!G34+'Form 1SFS'!I34)),0)=0,\"TRUE\",\"FALSE\")","v":"TRUE"},null,{"$f":"IF(ROUND((L44-('Form 1SFS'!F22+'Form 1SFS'!H22+'Form 1SFS'!F35+'Form 1SFS'!H35)),0)=0,\"TRUE\",\"FALSE\")","v":"TRUE"},null,{"$f":"IF(ROUND((N44-('Form 1SFS'!G22+'Form 1SFS'!I22+'Form 1SFS'!G35+'Form 1SFS'!I35)),0)=0,\"TRUE\",\"FALSE\")","v":"TRUE"},null,null,null,null,null,{"$f":"IF(ROUND((T44-('Form 1SFS'!F23+'Form 1SFS'!H23+'Form 1SFS'!F36+'Form 1SFS'!H36)),0)=0,\"TRUE\",\"FALSE\")","v":"TRUE"},null,{"$f":"IF(ROUND((V44-('Form 1SFS'!G23+'Form 1SFS'!I23+'Form 1SFS'!G36+'Form 1SFS'!I36)),0)=0,\"TRUE\",\"FALSE\")","v":"TRUE"}]
[null,null,"Difference",{"$f":"ROUND(('Form 1SFS'!F20+'Form 1SFS'!H20+'Form 1SFS'!F33+'Form 1SFS'!H33)-D44,0)","v":0},null,{"$f":"ROUND(('Form 1SFS'!G20+'Form 1SFS'!I20+'Form 1SFS'!G33+'Form 1SFS'!I33)-F44,0)","v":0},null,{"$f":"ROUND(('Form 1SFS'!F21+'Form 1SFS'!H21+'Form 1SFS'!F34+'Form 1SFS'!H34)-H44,0)","v":0},null,{"$f":"ROUND(('Form 1SFS'!G21+'Form 1SFS'!I21+'Form 1SFS'!G34+'Form 1SFS'!I34)-J44,0)","v":0},null,{"$f":"ROUND(('Form 1SFS'!F22+'Form 1SFS'!H22+'Form 1SFS'!F35+'Form 1SFS'!H35)-L44,0)","v":0},null,{"$f":"ROUND(('Form 1SFS'!G22+'Form 1SFS'!I22+'Form 1SFS'!G35+'Form 1SFS'!I35)-N44,0)","v":0},null,null,null,null,null,{"$f":"ROUND(('Form 1SFS'!F23+'Form 1SFS'!H23+'Form 1SFS'!F36+'Form 1SFS'!H36)-T44,0)","v":0},null,{"$f":"ROUND(('Form 1SFS'!G23+'Form 1SFS'!I23+'Form 1SFS'!G36+'Form 1SFS'!I36)-V44,0)","v":0}]
[]
[null,null,null,{"$f":"IF(D46=\"False\",\"Does not equal Form 1SFS Lines 2(c)(i) & 3(c)(i)\",\"\")","v":""},null,{"$f":"IF(F46=\"False\",\"Does not equal Form 1SFS Lines 2(c)(i) & 3(c)(i)\",\"\")","v":""},null,{"$f":"IF(H46=\"False\",\"Does not equal Form 1SFS Lines 2(c)(ii) & 3(c)(ii)\",\"\")","v":""},null,{"$f":"IF(J46=\"False\",\"Does not equal Form 1SFS Lines 2(c)(ii) & 3(c)(ii)\",\"\")","v":""},null,{"$f":"IF(L46=\"False\",\"Does not equal Form 1SFS Lines 2(c)(iii) & 3(c)(iii)\",\"\")","v":""},null,{"$f":"IF(N46=\"False\",\"Does not equal Form 1SFS Lines 2(c)(iii) & 3(c)(iii)\",\"\")","v":""},null,null,null,null,null,{"$f":"IF(T46=\"False\",\"Does not equal Form 1SFS Lines 2(d) & 3(d)\",\"\")","v":""},null,{"$f":"IF(V46=\"False\",\"Does not equal Form 1SFS Lines 2(d) & 3(d)\",\"\")","v":""}]
[]
[null,null,null,"MORTGAGE LOANS\n[ Form 1SFS Lines 5(c) ]",null,null,null,null,"This Section is Only Applicable to Companies that have Mortgage Backed Securities that have been Reclassified in Accordance with the NAIC and that elect to use NAIC reclassifications to map to the BSCR classes"]
[null,null,null,{"$f":"'Form 4EBS'!F6","v":"2019-12-31"},null,{"$f":"'Form 4EBS'!H6","v":"2018-12-31"},null,null,null,null,null,"VALUES OF RESIDENTIAL MORTGAGE BACKED SECURITIES",null,null,null,"VALUES OF COMMERCIAL MORTGAGE BACKED SECURITIES / ASSET BACKED SECURITIES"]
[null,null,null,{"$f":"CONFIGURATION!$D$12","v":" ('000s)"},null,{"$f":"CONFIGURATION!$D$12","v":" ('000s)"},null,null,null,null,null,"Original Classification",null,"Revised Classification",null,"Original Classification",null,"Revised Classification"]
[]
[null,"Mortgage Loans",null,null,null,null,null,null,null,"NAIC Class 1",null,{"$f":"Import!E493","v":0},null,{"$f":"Import!E500","v":0},null,{"$f":"Import!E507","v":0},null,{"$f":"Import!E514","v":0},null,null,null,null,null,null,null,null,null,"brrt_RiskGradeAxis_brrt_NAICClass1Member"]
[null,22,"Insured/Guaranteed Mortgages",{"$f":"Import!E489","v":0},null,{"$f":"Import!G489","v":0},null,null,null,"NAIC Class 2",null,{"$f":"Import!E494","v":0},null,{"$f":"Import!E501","v":0},null,{"$f":"Import!E508","v":0},null,{"$f":"Import!E515","v":0},null,null,null,null,null,"brrt_InvestmentsInMortgageLoansOnRealEstateInsuredGuaranteedMortgages",{"$f":"XBRLMap(D57,$X57,$D$75,$D$76,CONFIGURATION!$B$10,\"BMA\",CONFIGURATION!$B$1,\"bscr\",CONFIGURATION!$B$12)","v":"Mapped"},{"$f":"XBRLMap(F57,$X57,$F$75,$F$76,CONFIGURATION!$B$10,\"BMA\",CONFIGURATION!$B$1,\"bscr\",CONFIGURATION!$B$12)","v":"Mapped"},null,"brrt_RiskGradeAxis_brrt_NAICClass2Member"]
[null,23,"Other Commercial and Farm Mortgages",{"$f":"Import!E490","v":0},null,{"$f":"Import!G490","v":0},null,null,null,"NAIC Class 3",null,{"$f":"Import!E495","v":0},null,{"$f":"Import!E502","v":0},null,{"$f":"Import!E509","v":0},null,{"$f":"Import!E516","v":0},null,null,null,null,null,"brrt_InvestmentsInMortgageLoansOnRealEstateOtherCommercialFarmMortgages",{"$f":"XBRLMap(D58,$X58,$D$75,$D$76,CONFIGURATION!$B$10,\"BMA\",CONFIGURATION!$B$1,\"bscr\",CONFIGURATION!$B$12)","v":"Mapped"},{"$f":"XBRLMap(F58,$X58,$F$75,$F$76,CONFIGURATION!$B$10,\"BMA\",CONFIGURATION!$B$1,\"bscr\",CONFIGURATION!$B$12)","v":"Mapped"},null,"brrt_RiskGradeAxis_brrt_NAICClass3Member"]
[null,24,"Other Residential Mortgages",{"$f":"Import!E491","v":0},null,{"$f":"Import!G491","v":0},null,null,null,"NAIC Class 4",null,{"$f":"Import!E496","v":0},null,{"$f":"Import!E503","v":0},null,{"$f":"Import!E510","v":0},null,{"$f":"Import!E517","v":0},null,null,null,null,null,"brrt_InvestmentsInMortgageLoansOnRealEstateOtherResidentialMortgages",{"$f":"XBRLMap(D59,$X59,$D$75,$D$76,CONFIGURATION!$B$10,\"BMA\",CONFIGURATION!$B$1,\"bscr\",CONFIGURATION!$B$12)","v":"Mapped"},{"$f":"XBRLMap(F59,$X59,$F$75,$F$76,CONFIGURATION!$B$10,\"BMA\",CONFIGURATION!$B$1,\"bscr\",CONFIGURATION!$B$12)","v":"Mapped"},null,"brrt_RiskGradeAxis_brrt_NAICClass4Member"]
[null,25,"Mortgages Not In Good Standing",{"$f":"Import!E492","v":0},null,{"$f":"Import!G492","v":0},null,null,null,"NAIC Class 5",null,{"$f":"Import!E497","v":0},null,{"$f":"Import!E504","v":0},null,{"$f":"Import!E511","v":0},null,{"$f":"Import!E518","v":0},null,null,null,null,null,"brrt_InvestmentsInMortgageLoansOnRealEstateMortgagesNotInGoodStanding",{"$f":"XBRLMap(D60,$X60,$D$75,$D$76,CONFIGURATION!$B$10,\"BMA\",CONFIGURATION!$B$1,\"bscr\",CONFIGURATION!$B$12)","v":"Mapped"},{"$f":"XBRLMap(F60,$X60,$F$75,$F$76,CONFIGURATION!$B$10,\"BMA\",CONFIGURATION!$B$1,\"bscr\",CONFIGURATION!$B$12)","v":"Mapped"},null,"brrt_RiskGradeAxis_brrt_NAICClass5Member"]
[null,null,null,null,null,null,null,null,null,"NAIC Class 6",null,{"$f":"Import!E498","v":0},null,{"$f":"Import!E505","v":0},null,{"$f":"Import!E512","v":0},null,{"$f":"Import!E519","v":0},null,null,null,null,null,null,null,null,null,"brrt_RiskGradeAxis_brrt_NAICClass6Member"]
[null,26,"Total",{"$f":"SUM(D57:D60)","v":0},null,{"$f":"SUM(F57:F60)","v":0},null,null,null,null,null,null,null,null,null,null,null,null,null,null,null,null,null,"Already mapped in Form 4"]
[null,null,null,null,null,null,null,null,null,null,null,{"$f":"SUM(L56:L61)","v":0},null,{"$f":"SUM(N56:N61)","v":0},null,{"$f":"SUM(P56:P61)","v":0},null,{"$f":"SUM(R56:R61)","v":0},null,null,null,null,null,null,null,null,null,"brrt_RiskGradeAxis_brrt_TotalMember"]
[null,null,null,{"$f":"IF(D65=\"TRUE\",HYPERLINK(\"#'Form 1SFS'!F53:K53\",\"TRUE\"),HYPERLINK(\"#'Form 1SFS'!F53:K53\",\"FALSE\"))","v":"TRUE"},null,{"$f":"IF(F65=\"TRUE\",HYPERLINK(\"#'Form 1SFS'!G53:M53\",\"TRUE\"),HYPERLINK(\"#'Form 1SFS'!G53:M53\",\"FALSE\"))","v":"TRUE"}]
[null,null,null,{"$f":"IF(ROUND((D62-'Form 1SFS'!F53-'Form 1SFS'!H53),0)=0,\"TRUE\",\"FALSE\")","v":"TRUE"},null,{"$f":"IF(ROUND((D62-'Form 1SFS'!F53-'Form 1SFS'!H53),0)=0,\"TRUE\",\"FALSE\")","v":"TRUE"}]
[null,null,"Difference",{"$f":"ROUND('Form 1SFS'!F53+'Form 1SFS'!H53-D62,0)","v":0},null,{"$f":"ROUND('Form 1SFS'!G53+'Form 1SFS'!I53-F62,0)","v":0},null,null,null,{"$f":"IF('Insurer Information'!F9=\"Class C\",HYPERLINK(\"#'Attachments'!G45\",\"Attach file\"),HYPERLINK(\"#'Attachments'!G65\",\"Attach file\"))","v":"Attach file"}]
[]
[null,null,null,{"$f":"IF(D64=\"False\",\"Does not equal Form 1SFS Line 5(c)\",\"\")","v":""},null,{"$f":"IF(F64=\"False\",\"Does not equal Form 1SFS Line 5(c)\",\"\")","v":""}]
[]
[]
[]
[]
[]
[]
[null,null,null,{"$f":"IF(D8=\"\",\"\",TEXT(DATE(YEAR(D8+1)-1,MONTH(D8+1),DAY(D8+1)),\"mm/dd/yyyy\"))","v":"01/01/2019"},null,{"$f":"IF(F8=\"\",\"\",TEXT(DATE(YEAR(F8+1)-1,MONTH(F8+1),DAY(F8+1)),\"mm/dd/yyyy\"))","v":"01/01/2018"}]
[null,null,null,{"$f":"IF(D8=\"\",\"\",TEXT(D8,\"mm/dd/yyyy\"))","v":"12/31/2019"},null,{"$f":"IF(F8=\"\",\"\",TEXT(F8,\"mm/dd/yyyy\"))","v":"12/31/2018"}]
[null,null,null,"brrt_BondsAndDebentures",null,"brrt_BondsAndDebentures",null,"brrt_BondsAndDebentures",null,"brrt_BondsAndDebentures",null,"brrt_BondsAndDebentures",null,"brrt_BondsAndDebentures",null,"brrt_BondsAndDebentures",null,"brrt_BondsAndDebentures",null,"brrt_BondsAndDebentures",null,"brrt_BondsAndDebentures"]
[null,null,null,"brrt_SecurityTypeAxis_brrt_CorporateSovereignBondsMember",null,"brrt_SecurityTypeAxis_brrt_CorporateSovereignBondsMember",null,"brrt_SecurityTypeAxis_brrt_ResidentialMortgageBackedSecuritiesMember",null,"brrt_SecurityTypeAxis_brrt_ResidentialMortgageBackedSecuritiesMember",null,"brrt_SecurityTypeAxis_brrt_CommercialMortgageBackedSecuritiesAssetBackedSecuritiesMember",null,"brrt_SecurityTypeAxis_brrt_CommercialMortgageBackedSecuritiesAssetBackedSecuritiesMember",null,"brrt_SecurityTypeAxis_brrt_MutualFundsMember",null,"brrt_SecurityTypeAxis_brrt_MutualFundsMember",null,"brrt_SecurityTypeAxis_brrt_TotalMember",null,"brrt_SecurityTypeAxis_brrt_TotalMember"]
[null,null,null,{"$f":"XBRLMap(D12,D$77&\".\"&$Y12&\".\"&$D$78,$D$75,$D$76,CONFIGURATION!$B$10,\"BMA\",CONFIGURATION!$B$1,\"bscr\",CONFIGURATION!$B$12)","v":"Mapped"},null,{"$f":"XBRLMap(F12,F$77&\".\"&$Y12&\".\"&$F$78,$F$75,$F$76,CONFIGURATION!$B$10,\"BMA\",CONFIGURATION!$B$1,\"bscr\",CONFIGURATION!$B$12)","v":"Mapped"},null,null,null,null,null,null,null,null,null,{"$f":"XBRLMap(P12,P$77&\".\"&$Y12&\".\"&$P$78,$D$75,$D$76,CONFIGURATION!$B$10,\"BMA\",CONFIGURATION!$B$1,\"bscr\",CONFIGURATION!$B$12)","v":"Mapped"},null,{"$f":"XBRLMap(R12,R$77&\".\"&$Y12&\".\"&$R$78,$F$75,$F$76,CONFIGURATION!$B$10,\"BMA\",CONFIGURATION!$B$1,\"bscr\",CONFIGURATION!$B$12)","v":"Mapped"},null,{"$f":"XBRLMap(T12,T$77&\".\"&$Y12&\".\"&$T$78,$D$75,$D$76,CONFIGURATION!$B$10,\"BMA\",CONFIGURATION!$B$1,\"bscr\",CONFIGURATION!$B$12)","v":"Mapped"},null,{"$f":"XBRLMap(V12,V$77&\".\"&$Y12&\".\"&$V$78,$F$75,$F$76,CONFIGURATION!$B$10,\"BMA\",CONFIGURATION!$B$1,\"bscr\",CONFIGURATION!$B$12)","v":"Mapped"}]
[null,null,null,{"$f":"XBRLMap(D13,D$77&\".\"&$Y13&\".\"&$D$78,$D$75,$D$76,CONFIGURATION!$B$10,\"BMA\",CONFIGURATION!$B$1,\"bscr\",CONFIGURATION!$B$12)","v":"Mapped"},null,{"$f":"XBRLMap(F13,F$77&\".\"&$Y13&\".\"&$F$78,$F$75,$F$76,CONFIGURATION!$B$10,\"BMA\",CONFIGURATION!$B$1,\"bscr\",CONFIGURATION!$B$12)","v":"Mapped"},null,{"$f":"XBRLMap(H13,H$77&\".\"&$Y13&\".\"&$H$78,$D$75,$D$76,CONFIGURATION!$B$10,\"BMA\",CONFIGURATION!$B$1,\"bscr\",CONFIGURATION!$B$12)","v":"Mapped"},null,{"$f":"XBRLMap(J13,J$77&\".\"&$Y13&\".\"&$J$78,$F$75,$F$76,CONFIGURATION!$B$10,\"BMA\",CONFIGURATION!$B$1,\"bscr\",CONFIGURATION!$B$12)","v":"Mapped"},null,{"$f":"XBRLMap(L13,L$77&\".\"&$Y13&\".\"&$L$78,$D$75,$D$76,CONFIGURATION!$B$10,\"BMA\",CONFIGURATION!$B$1,\"bscr\",CONFIGURATION!$B$12)","v":"Mapped"},null,{"$f":"XBRLMap(N13,N$77&\".\"&$Y13&\".\"&$N$78,$F$75,$F$76,CONFIGURATION!$B$10,\"BMA\",CONFIGURATION!$B$1,\"bscr\",CONFIGURATION!$B$12)","v":"Mapped"},null,{"$f":"XBRLMap(P13,P$77&\".\"&$Y13&\".\"&$P$78,$D$75,$D$76,CONFIGURATION!$B$10,\"BMA\",CONFIGURATION!$B$1,\"bscr\",CONFIGURATION!$B$12)","v":"Mapped"},null,{"$f":"XBRLMap(R13,R$77&\".\"&$Y13&\".\"&$R$78,$F$75,$F$76,CONFIGURATION!$B$10,\"BMA\",CONFIGURATION!$B$1,\"bscr\",CONFIGURATION!$B$12)","v":"Mapped"},null,{"$f":"XBRLMap(T13,T$77&\".\"&$Y13&\".\"&$T$78,$D$75,$D$76,CONFIGURATION!$B$10,\"BMA\",CONFIGURATION!$B$1,\"bscr\",CONFIGURATION!$B$12)","v":"Mapped"},null,{"$f":"XBRLMap(V13,V$77&\".\"&$Y13&\".\"&$V$78,$F$75,$F$76,CONFIGURATION!$B$10,\"BMA\",CONFIGURATION!$B$1,\"bscr\",CONFIGURATION!$B$12)","v":"Mapped"}]
[null,null,null,{"$f":"XBRLMap(D14,D$77&\".\"&$Y14&\".\"&$D$78,$D$75,$D$76,CONFIGURATION!$B$10,\"BMA\",CONFIGURATION!$B$1,\"bscr\",CONFIGURATION!$B$12)","v":"Mapped"},null,{"$f":"XBRLMap(F14,F$77&\".\"&$Y14&\".\"&$F$78,$F$75,$F$76,CONFIGURATION!$B$10,\"BMA\",CONFIGURATION!$B$1,\"bscr\",CONFIGURATION!$B$12)","v":"Mapped"},null,{"$f":"XBRLMap(H14,H$77&\".\"&$Y14&\".\"&$H$78,$D$75,$D$76,CONFIGURATION!$B$10,\"BMA\",CONFIGURATION!$B$1,\"bscr\",CONFIGURATION!$B$12)","v":"Mapped"},null,{"$f":"XBRLMap(J14,J$77&\".\"&$Y14&\".\"&$J$78,$F$75,$F$76,CONFIGURATION!$B$10,\"BMA\",CONFIGURATION!$B$1,\"bscr\",CONFIGURATION!$B$12)","v":"Mapped"},null,{"$f":"XBRLMap(L14,L$77&\".\"&$Y14&\".\"&$L$78,$D$75,$D$76,CONFIGURATION!$B$10,\"BMA\",CONFIGURATION!$B$1,\"bscr\",CONFIGURATION!$B$12)","v":"Mapped"},null,{"$f":"XBRLMap(N14,N$77&\".\"&$Y14&\".\"&$N$78,$F$75,$F$76,CONFIGURATION!$B$10,\"BMA\",CONFIGURATION!$B$1,\"bscr\",CONFIGURATION!$B$12)","v":"Mapped"},null,{"$f":"XBRLMap(P14,P$77&\".\"&$Y14&\".\"&$P$78,$D$75,$D$76,CONFIGURATION!$B$10,\"BMA\",CONFIGURATION!$B$1,\"bscr\",CONFIGURATION!$B$12)","v":"Mapped"},null,{"$f":"XBRLMap(R14,R$77&\".\"&$Y14&\".\"&$R$78,$F$75,$F$76,CONFIGURATION!$B$10,\"BMA\",CONFIGURATION!$B$1,\"bscr\",CONFIGURATION!$B$12)","v":"Mapped"},null,{"$f":"XBRLMap(T14,T$77&\".\"&$Y14&\".\"&$T$78,$D$75,$D$76,CONFIGURATION!$B$10,\"BMA\",CONFIGURATION!$B$1,\"bscr\",CONFIGURATION!$B$12)","v":"Mapped"},null,{"$f":"XBRLMap(V14,V$77&\".\"&$Y14&\".\"&$V$78,$F$75,$F$76,CONFIGURATION!$B$10,\"BMA\",CONFIGURATION!$B$1,\"bscr\",CONFIGURATION!$B$12)","v":"Mapped"}]
[null,null,null,{"$f":"XBRLMap(D15,D$77&\".\"&$Y15&\".\"&$D$78,$D$75,$D$76,CONFIGURATION!$B$10,\"BMA\",CONFIGURATION!$B$1,\"bscr\",CONFIGURATION!$B$12)","v":"Mapped"},null,{"$f":"XBRLMap(F15,F$77&\".\"&$Y15&\".\"&$F$78,$F$75,$F$76,CONFIGURATION!$B$10,\"BMA\",CONFIGURATION!$B$1,\"bscr\",CONFIGURATION!$B$12)","v":"Mapped"},null,{"$f":"XBRLMap(H15,H$77&\".\"&$Y15&\".\"&$H$78,$D$75,$D$76,CONFIGURATION!$B$10,\"BMA\",CONFIGURATION!$B$1,\"bscr\",CONFIGURATION!$B$12)","v":"Mapped"},null,{"$f":"XBRLMap(J15,J$77&\".\"&$Y15&\".\"&$J$78,$F$75,$F$76,CONFIGURATION!$B$10,\"BMA\",CONFIGURATION!$B$1,\"bscr\",CONFIGURATION!$B$12)","v":"Mapped"},null,{"$f":"XBRLMap(L15,L$77&\".\"&$Y15&\".\"&$L$78,$D$75,$D$76,CONFIGURATION!$B$10,\"BMA\",CONFIGURATION!$B$1,\"bscr\",CONFIGURATION!$B$12)","v":"Mapped"},null,{"$f":"XBRLMap(N15,N$77&\".\"&$Y15&\".\"&$N$78,$F$75,$F$76,CONFIGURATION!$B$10,\"BMA\",CONFIGURATION!$B$1,\"bscr\",CONFIGURATION!$B$12)","v":"Mapped"},null,{"$f":"XBRLMap(P15,P$77&\".\"&$Y15&\".\"&$P$78,$D$75,$D$76,CONFIGURATION!$B$10,\"BMA\",CONFIGURATION!$B$1,\"bscr\",CONFIGURATION!$B$12)","v":"Mapped"},null,{"$f":"XBRLMap(R15,R$77&\".\"&$Y15&\".\"&$R$78,$F$75,$F$76,CONFIGURATION!$B$10,\"BMA\",CONFIGURATION!$B$1,\"bscr\",CONFIGURATION!$B$12)","v":"Mapped"},null,{"$f":"XBRLMap(T15,T$77&\".\"&$Y15&\".\"&$T$78,$D$75,$D$76,CONFIGURATION!$B$10,\"BMA\",CONFIGURATION!$B$1,\"bscr\",CONFIGURATION!$B$12)","v":"Mapped"},null,{"$f":"XBRLMap(V15,V$77&\".\"&$Y15&\".\"&$V$78,$F$75,$F$76,CONFIGURATION!$B$10,\"BMA\",CONFIGURATION!$B$1,\"bscr\",CONFIGURATION!$B$12)","v":"Mapped"}]
[null,null,null,{"$f":"XBRLMap(D16,D$77&\".\"&$Y16&\".\"&$D$78,$D$75,$D$76,CONFIGURATION!$B$10,\"BMA\",CONFIGURATION!$B$1,\"bscr\",CONFIGURATION!$B$12)","v":"Mapped"},null,{"$f":"XBRLMap(F16,F$77&\".\"&$Y16&\".\"&$F$78,$F$75,$F$76,CONFIGURATION!$B$10,\"BMA\",CONFIGURATION!$B$1,\"bscr\",CONFIGURATION!$B$12)","v":"Mapped"},null,{"$f":"XBRLMap(H16,H$77&\".\"&$Y16&\".\"&$H$78,$D$75,$D$76,CONFIGURATION!$B$10,\"BMA\",CONFIGURATION!$B$1,\"bscr\",CONFIGURATION!$B$12)","v":"Mapped"},null,{"$f":"XBRLMap(J16,J$77&\".\"&$Y16&\".\"&$J$78,$F$75,$F$76,CONFIGURATION!$B$10,\"BMA\",CONFIGURATION!$B$1,\"bscr\",CONFIGURATION!$B$12)","v":"Mapped"},null,{"$f":"XBRLMap(L16,L$77&\".\"&$Y16&\".\"&$L$78,$D$75,$D$76,CONFIGURATION!$B$10,\"BMA\",CONFIGURATION!$B$1,\"bscr\",CONFIGURATION!$B$12)","v":"Mapped"},null,{"$f":"XBRLMap(N16,N$77&\".\"&$Y16&\".\"&$N$78,$F$75,$F$76,CONFIGURATION!$B$10,\"BMA\",CONFIGURATION!$B$1,\"bscr\",CONFIGURATION!$B$12)","v":"Mapped"},null,{"$f":"XBRLMap(P16,P$77&\".\"&$Y16&\".\"&$P$78,$D$75,$D$76,CONFIGURATION!$B$10,\"BMA\",CONFIGURATION!$B$1,\"bscr\",CONFIGURATION!$B$12)","v":"Mapped"},null,{"$f":"XBRLMap(R16,R$77&\".\"&$Y16&\".\"&$R$78,$F$75,$F$76,CONFIGURATION!$B$10,\"BMA\",CONFIGURATION!$B$1,\"bscr\",CONFIGURATION!$B$12)","v":"Mapped"},null,{"$f":"XBRLMap(T16,T$77&\".\"&$Y16&\".\"&$T$78,$D$75,$D$76,CONFIGURATION!$B$10,\"BMA\",CONFIGURATION!$B$1,\"bscr\",CONFIGURATION!$B$12)","v":"Mapped"},null,{"$f":"XBRLMap(V16,V$77&\".\"&$Y16&\".\"&$V$78,$F$75,$F$76,CONFIGURATION!$B$10,\"BMA\",CONFIGURATION!$B$1,\"bscr\",CONFIGURATION!$B$12)","v":"Mapped"}]
[null,null,null,{"$f":"XBRLMap(D17,D$77&\".\"&$Y17&\".\"&$D$78,$D$75,$D$76,CONFIGURATION!$B$10,\"BMA\",CONFIGURATION!$B$1,\"bscr\",CONFIGURATION!$B$12)","v":"Mapped"},null,{"$f":"XBRLMap(F17,F$77&\".\"&$Y17&\".\"&$F$78,$F$75,$F$76,CONFIGURATION!$B$10,\"BMA\",CONFIGURATION!$B$1,\"bscr\",CONFIGURATION!$B$12)","v":"Mapped"},null,{"$f":"XBRLMap(H17,H$77&\".\"&$Y17&\".\"&$H$78,$D$75,$D$76,CONFIGURATION!$B$10,\"BMA\",CONFIGURATION!$B$1,\"bscr\",CONFIGURATION!$B$12)","v":"Mapped"},null,{"$f":"XBRLMap(J17,J$77&\".\"&$Y17&\".\"&$J$78,$F$75,$F$76,CONFIGURATION!$B$10,\"BMA\",CONFIGURATION!$B$1,\"bscr\",CONFIGURATION!$B$12)","v":"Mapped"},null,{"$f":"XBRLMap(L17,L$77&\".\"&$Y17&\".\"&$L$78,$D$75,$D$76,CONFIGURATION!$B$10,\"BMA\",CONFIGURATION!$B$1,\"bscr\",CONFIGURATION!$B$12)","v":"Mapped"},null,{"$f":"XBRLMap(N17,N$77&\".\"&$Y17&\".\"&$N$78,$F$75,$F$76,CONFIGURATION!$B$10,\"BMA\",CONFIGURATION!$B$1,\"bscr\",CONFIGURATION!$B$12)","v":"Mapped"},null,{"$f":"XBRLMap(P17,P$77&\".\"&$Y17&\".\"&$P$78,$D$75,$D$76,CONFIGURATION!$B$10,\"BMA\",CONFIGURATION!$B$1,\"bscr\",CONFIGURATION!$B$12)","v":"Mapped"},null,{"$f":"XBRLMap(R17,R$77&\".\"&$Y17&\".\"&$R$78,$F$75,$F$76,CONFIGURATION!$B$10,\"BMA\",CONFIGURATION!$B$1,\"bscr\",CONFIGURATION!$B$12)","v":"Mapped"},null,{"$f":"XBRLMap(T17,T$77&\".\"&$Y17&\".\"&$T$78,$D$75,$D$76,CONFIGURATION!$B$10,\"BMA\",CONFIGURATION!$B$1,\"bscr\",CONFIGURATION!$B$12)","v":"Mapped"},null,{"$f":"XBRLMap(V17,V$77&\".\"&$Y17&\".\"&$V$78,$F$75,$F$76,CONFIGURATION!$B$10,\"BMA\",CONFIGURATION!$B$1,\"bscr\",CONFIGURATION!$B$12)","v":"Mapped"}]
[null,null,null,{"$f":"XBRLMap(D18,D$77&\".\"&$Y18&\".\"&$D$78,$D$75,$D$76,CONFIGURATION!$B$10,\"BMA\",CONFIGURATION!$B$1,\"bscr\",CONFIGURATION!$B$12)","v":"Mapped"},null,{"$f":"XBRLMap(F18,F$77&\".\"&$Y18&\".\"&$F$78,$F$75,$F$76,CONFIGURATION!$B$10,\"BMA\",CONFIGURATION!$B$1,\"bscr\",CONFIGURATION!$B$12)","v":"Mapped"},null,{"$f":"XBRLMap(H18,H$77&\".\"&$Y18&\".\"&$H$78,$D$75,$D$76,CONFIGURATION!$B$10,\"BMA\",CONFIGURATION!$B$1,\"bscr\",CONFIGURATION!$B$12)","v":"Mapped"},null,{"$f":"XBRLMap(J18,J$77&\".\"&$Y18&\".\"&$J$78,$F$75,$F$76,CONFIGURATION!$B$10,\"BMA\",CONFIGURATION!$B$1,\"bscr\",CONFIGURATION!$B$12)","v":"Mapped"},null,{"$f":"XBRLMap(L18,L$77&\".\"&$Y18&\".\"&$L$78,$D$75,$D$76,CONFIGURATION!$B$10,\"BMA\",CONFIGURATION!$B$1,\"bscr\",CONFIGURATION!$B$12)","v":"Mapped"},null,{"$f":"XBRLMap(N18,N$77&\".\"&$Y18&\".\"&$N$78,$F$75,$F$76,CONFIGURATION!$B$10,\"BMA\",CONFIGURATION!$B$1,\"bscr\",CONFIGURATION!$B$12)","v":"Mapped"},null,{"$f":"XBRLMap(P18,P$77&\".\"&$Y18&\".\"&$P$78,$D$75,$D$76,CONFIGURATION!$B$10,\"BMA\",CONFIGURATION!$B$1,\"bscr\",CONFIGURATION!$B$12)","v":"Mapped"},null,{"$f":"XBRLMap(R18,R$77&\".\"&$Y18&\".\"&$R$78,$F$75,$F$76,CONFIGURATION!$B$10,\"BMA\",CONFIGURATION!$B$1,\"bscr\",CONFIGURATION!$B$12)","v":"Mapped"},null,{"$f":"XBRLMap(T18,T$77&\".\"&$Y18&\".\"&$T$78,$D$75,$D$76,CONFIGURATION!$B$10,\"BMA\",CONFIGURATION!$B$1,\"bscr\",CONFIGURATION!$B$12)","v":"Mapped"},null,{"$f":"XBRLMap(V18,V$77&\".\"&$Y18&\".\"&$V$78,$F$75,$F$76,CONFIGURATION!$B$10,\"BMA\",CONFIGURATION!$B$1,\"bscr\",CONFIGURATION!$B$12)","v":"Mapped"}]
[null,null,null,{"$f":"XBRLMap(D19,D$77&\".\"&$Y19&\".\"&$D$78,$D$75,$D$76,CONFIGURATION!$B$10,\"BMA\",CONFIGURATION!$B$1,\"bscr\",CONFIGURATION!$B$12)","v":"Mapped"},null,{"$f":"XBRLMap(F19,F$77&\".\"&$Y19&\".\"&$F$78,$F$75,$F$76,CONFIGURATION!$B$10,\"BMA\",CONFIGURATION!$B$1,\"bscr\",CONFIGURATION!$B$12)","v":"Mapped"},null,{"$f":"XBRLMap(H19,H$77&\".\"&$Y19&\".\"&$H$78,$D$75,$D$76,CONFIGURATION!$B$10,\"BMA\",CONFIGURATION!$B$1,\"bscr\",CONFIGURATION!$B$12)","v":"Mapped"},null,{"$f":"XBRLMap(J19,J$77&\".\"&$Y19&\".\"&$J$78,$F$75,$F$76,CONFIGURATION!$B$10,\"BMA\",CONFIGURATION!$B$1,\"bscr\",CONFIGURATION!$B$12)","v":"Mapped"},null,{"$f":"XBRLMap(L19,L$77&\".\"&$Y19&\".\"&$L$78,$D$75,$D$76,CONFIGURATION!$B$10,\"BMA\",CONFIGURATION!$B$1,\"bscr\",CONFIGURATION!$B$12)","v":"Mapped"},null,{"$f":"XBRLMap(N19,N$77&\".\"&$Y19&\".\"&$N$78,$F$75,$F$76,CONFIGURATION!$B$10,\"BMA\",CONFIGURATION!$B$1,\"bscr\",CONFIGURATION!$B$12)","v":"Mapped"},null,{"$f":"XBRLMap(P19,P$77&\".\"&$Y19&\".\"&$P$78,$D$75,$D$76,CONFIGURATION!$B$10,\"BMA\",CONFIGURATION!$B$1,\"bscr\",CONFIGURATION!$B$12)","v":"Mapped"},null,{"$f":"XBRLMap(R19,R$77&\".\"&$Y19&\".\"&$R$78,$F$75,$F$76,CONFIGURATION!$B$10,\"BMA\",CONFIGURATION!$B$1,\"bscr\",CONFIGURATION!$B$12)","v":"Mapped"},null,{"$f":"XBRLMap(T19,T$77&\".\"&$Y19&\".\"&$T$78,$D$75,$D$76,CONFIGURATION!$B$10,\"BMA\",CONFIGURATION!$B$1,\"bscr\",CONFIGURATION!$B$12)","v":"Mapped"},null,{"$f":"XBRLMap(V19,V$77&\".\"&$Y19&\".\"&$V$78,$F$75,$F$76,CONFIGURATION!$B$10,\"BMA\",CONFIGURATION!$B$1,\"bscr\",CONFIGURATION!$B$12)","v":"Mapped"}]
[null,null,null,{"$f":"XBRLMap(D20,D$77&\".\"&$Y20&\".\"&$D$78,$D$75,$D$76,CONFIGURATION!$B$10,\"BMA\",CONFIGURATION!$B$1,\"bscr\",CONFIGURATION!$B$12)","v":"Mapped"},null,{"$f":"XBRLMap(F20,F$77&\".\"&$Y20&\".\"&$F$78,$F$75,$F$76,CONFIGURATION!$B$10,\"BMA\",CONFIGURATION!$B$1,\"bscr\",CONFIGURATION!$B$12)","v":"Mapped"},null,{"$f":"XBRLMap(H20,H$77&\".\"&$Y20&\".\"&$H$78,$D$75,$D$76,CONFIGURATION!$B$10,\"BMA\",CONFIGURATION!$B$1,\"bscr\",CONFIGURATION!$B$12)","v":"Mapped"},null,{"$f":"XBRLMap(J20,J$77&\".\"&$Y20&\".\"&$J$78,$F$75,$F$76,CONFIGURATION!$B$10,\"BMA\",CONFIGURATION!$B$1,\"bscr\",CONFIGURATION!$B$12)","v":"Mapped"},null,{"$f":"XBRLMap(L20,L$77&\".\"&$Y20&\".\"&$L$78,$D$75,$D$76,CONFIGURATION!$B$10,\"BMA\",CONFIGURATION!$B$1,\"bscr\",CONFIGURATION!$B$12)","v":"Mapped"},null,{"$f":"XBRLMap(N20,N$77&\".\"&$Y20&\".\"&$N$78,$F$75,$F$76,CONFIGURATION!$B$10,\"BMA\",CONFIGURATION!$B$1,\"bscr\",CONFIGURATION!$B$12)","v":"Mapped"},null,{"$f":"XBRLMap(P20,P$77&\".\"&$Y20&\".\"&$P$78,$D$75,$D$76,CONFIGURATION!$B$10,\"BMA\",CONFIGURATION!$B$1,\"bscr\",CONFIGURATION!$B$12)","v":"Mapped"},null,{"$f":"XBRLMap(R20,R$77&\".\"&$Y20&\".\"&$R$78,$F$75,$F$76,CONFIGURATION!$B$10,\"BMA\",CONFIGURATION!$B$1,\"bscr\",CONFIGURATION!$B$12)","v":"Mapped"},null,{"$f":"XBRLMap(T20,T$77&\".\"&$Y20&\".\"&$T$78,$D$75,$D$76,CONFIGURATION!$B$10,\"BMA\",CONFIGURATION!$B$1,\"bscr\",CONFIGURATION!$B$12)","v":"Mapped"},null,{"$f":"XBRLMap(V20,V$77&\".\"&$Y20&\".\"&$V$78,$F$75,$F$76,CONFIGURATION!$B$10,\"BMA\",CONFIGURATION!$B$1,\"bscr\",CONFIGURATION!$B$12)","v":"Mapped"}]
[]
[null,null,null,{"$f":"XBRLMap(D22,D$77&\".\"&$Y22&\".\"&$D$78,$D$75,$D$76,CONFIGURATION!$B$10,\"BMA\",CONFIGURATION!$B$1,\"bscr\",CONFIGURATION!$B$12)","v":"Mapped"},null,{"$f":"XBRLMap(F22,F$77&\".\"&$Y22&\".\"&$F$78,$F$75,$F$76,CONFIGURATION!$B$10,\"BMA\",CONFIGURATION!$B$1,\"bscr\",CONFIGURATION!$B$12)","v":"Mapped"},null,{"$f":"XBRLMap(H22,H$77&\".\"&$Y22&\".\"&$H$78,$D$75,$D$76,CONFIGURATION!$B$10,\"BMA\",CONFIGURATION!$B$1,\"bscr\",CONFIGURATION!$B$12)","v":"Mapped"},null,{"$f":"XBRLMap(J22,J$77&\".\"&$Y22&\".\"&$J$78,$F$75,$F$76,CONFIGURATION!$B$10,\"BMA\",CONFIGURATION!$B$1,\"bscr\",CONFIGURATION!$B$12)","v":"Mapped"},null,{"$f":"XBRLMap(L22,L$77&\".\"&$Y22&\".\"&$L$78,$D$75,$D$76,CONFIGURATION!$B$10,\"BMA\",CONFIGURATION!$B$1,\"bscr\",CONFIGURATION!$B$12)","v":"Mapped"},null,{"$f":"XBRLMap(N22,N$77&\".\"&$Y22&\".\"&$N$78,$F$75,$F$76,CONFIGURATION!$B$10,\"BMA\",CONFIGURATION!$B$1,\"bscr\",CONFIGURATION!$B$12)","v":"Mapped"},null,{"$f":"XBRLMap(P22,P$77&\".\"&$Y22&\".\"&$P$78,$D$75,$D$76,CONFIGURATION!$B$10,\"BMA\",CONFIGURATION!$B$1,\"bscr\",CONFIGURATION!$B$12)","v":"Mapped"},null,{"$f":"XBRLMap(R22,R$77&\".\"&$Y22&\".\"&$R$78,$F$75,$F$76,CONFIGURATION!$B$10,\"BMA\",CONFIGURATION!$B$1,\"bscr\",CONFIGURATION!$B$12)","v":"Mapped"},null,{"$f":"XBRLMap(T22,T$77&\".\"&$Y22&\".\"&$T$78,$D$75,$D$76,CONFIGURATION!$B$10,\"BMA\",CONFIGURATION!$B$1,\"bscr\",CONFIGURATION!$B$12)","v":"Mapped"},null,{"$f":"XBRLMap(V22,V$77&\".\"&$Y22&\".\"&$V$78,$F$75,$F$76,CONFIGURATION!$B$10,\"BMA\",CONFIGURATION!$B$1,\"bscr\",CONFIGURATION!$B$12)","v":"Mapped"}]
[null,null,null,null,null,null,null,null,null,null,null,null,null,null,null,null,null,null,null,"brrt_QuotedInvestmentsEquitiesCommonStocksMutualFunds",null,"brrt_QuotedInvestmentsEquitiesCommonStocksMutualFunds"]
[null,null,null,null,null,null,null,null,null,null,null,null,null,null,null,null,null,null,null,"brrt_UnquotedInvestmentsEquitiesCommonStocksMutualFunds",null,"brrt_UnquotedInvestmentsEquitiesCommonStocksMutualFunds"]
[null,null,null,"brrt_EquitiesCommonStocks",null,"brrt_EquitiesCommonStocks",null,"brrt_EquitiesPreferredStocks",null,"brrt_EquitiesPreferredStocks",null,"brrt_EquitiesMutualFunds",null,"brrt_EquitiesMutualFunds",null,null,null,null,null,"brrt_Equities",null,"brrt_Equities"]
[null,null,null,null,null,null,null,{"$f":"XBRLMap(H33,H$92&\".\"&$Y33,$D$75,$D$76,CONFIGURATION!$B$10,\"BMA\",CONFIGURATION!$B$1,\"bscr\",CONFIGURATION!$B$12)","v":"Mapped"},null,{"$f":"XBRLMap(J33,J$92&\".\"&$Y33,$F$75,$F$76,CONFIGURATION!$B$10,\"BMA\",CONFIGURATION!$B$1,\"bscr\",CONFIGURATION!$B$12)","v":"Mapped"},null,null,null,null,null,null,null,null,null,"The same data point as in column H",null,"The same data point as in column J"]
[null,null,null,null,null,null,null,{"$f":"XBRLMap(H34,H$92&\".\"&$Y34,$D$75,$D$76,CONFIGURATION!$B$10,\"BMA\",CONFIGURATION!$B$1,\"bscr\",CONFIGURATION!$B$12)","v":"Mapped"},null,{"$f":"XBRLMap(J34,J$92&\".\"&$Y34,$F$75,$F$76,CONFIGURATION!$B$10,\"BMA\",CONFIGURATION!$B$1,\"bscr\",CONFIGURATION!$B$12)","v":"Mapped"},null,null,null,null,null,null,null,null,null,"The same data point as in column H",null,"The same data point as in column J"]
[null,null,null,null,null,null,null,{"$f":"XBRLMap(H35,H$92&\".\"&$Y35,$D$75,$D$76,CONFIGURATION!$B$10,\"BMA\",CONFIGURATION!$B$1,\"bscr\",CONFIGURATION!$B$12)","v":"Mapped"},null,{"$f":"XBRLMap(J35,J$92&\".\"&$Y35,$F$75,$F$76,CONFIGURATION!$B$10,\"BMA\",CONFIGURATION!$B$1,\"bscr\",CONFIGURATION!$B$12)","v":"Mapped"},null,null,null,null,null,null,null,null,null,"The same data point as in column H",null,"The same data point as in column J"]
[null,null,null,null,null,null,null,{"$f":"XBRLMap(H36,H$92&\".\"&$Y36,$D$75,$D$76,CONFIGURATION!$B$10,\"BMA\",CONFIGURATION!$B$1,\"bscr\",CONFIGURATION!$B$12)","v":"Mapped"},null,{"$f":"XBRLMap(J36,J$92&\".\"&$Y36,$F$75,$F$76,CONFIGURATION!$B$10,\"BMA\",CONFIGURATION!$B$1,\"bscr\",CONFIGURATION!$B$12)","v":"Mapped"},null,null,null,null,null,null,null,null,null,"The same data point as in column H",null,"The same data point as in column J"]
[null,null,null,null,null,null,null,{"$f":"XBRLMap(H37,H$92&\".\"&$Y37,$D$75,$D$76,CONFIGURATION!$B$10,\"BMA\",CONFIGURATION!$B$1,\"bscr\",CONFIGURATION!$B$12)","v":"Mapped"},null,{"$f":"XBRLMap(J37,J$92&\".\"&$Y37,$F$75,$F$76,CONFIGURATION!$B$10,\"BMA\",CONFIGURATION!$B$1,\"bscr\",CONFIGURATION!$B$12)","v":"Mapped"},null,null,null,null,null,null,null,null,null,"The same data point as in column H",null,"The same data point as in column J"]
[null,null,null,null,null,null,null,{"$f":"XBRLMap(H38,H$92&\".\"&$Y38,$D$75,$D$76,CONFIGURATION!$B$10,\"BMA\",CONFIGURATION!$B$1,\"bscr\",CONFIGURATION!$B$12)","v":"Mapped"},null,{"$f":"XBRLMap(J38,J$92&\".\"&$Y38,$F$75,$F$76,CONFIGURATION!$B$10,\"BMA\",CONFIGURATION!$B$1,\"bscr\",CONFIGURATION!$B$12)","v":"Mapped"},null,null,null,null,null,null,null,null,null,"The same data point as in column H",null,"The same data point as in column J"]
[null,null,null,null,null,null,null,{"$f":"XBRLMap(H39,H$92&\".\"&$Y39,$D$75,$D$76,CONFIGURATION!$B$10,\"BMA\",CONFIGURATION!$B$1,\"bscr\",CONFIGURATION!$B$12)","v":"Mapped"},null,{"$f":"XBRLMap(J39,J$92&\".\"&$Y39,$F$75,$F$76,CONFIGURATION!$B$10,\"BMA\",CONFIGURATION!$B$1,\"bscr\",CONFIGURATION!$B$12)","v":"Mapped"},null,null,null,null,null,null,null,null,null,"The same data point as in column H",null,"The same data point as in column J"]
[null,null,null,null,null,null,null,{"$f":"XBRLMap(H40,H$92&\".\"&$Y40,$D$75,$D$76,CONFIGURATION!$B$10,\"BMA\",CONFIGURATION!$B$1,\"bscr\",CONFIGURATION!$B$12)","v":"Mapped"},null,{"$f":"XBRLMap(J40,J$92&\".\"&$Y40,$F$75,$F$76,CONFIGURATION!$B$10,\"BMA\",CONFIGURATION!$B$1,\"bscr\",CONFIGURATION!$B$12)","v":"Mapped"},null,null,null,null,null,null,null,null,null,"The same data point as in column H",null,"The same data point as in column J"]
[null,null,null,"Already mapped in Form 4",null,"Already mapped in Form 4",null,null,null,null,null,"Already mapped in Form 4",null,"Already mapped in Form 4",null,null,null,null,null,{"$f":"XBRLMap(T41,T$90,$D$75,$D$76,CONFIGURATION!$B$10,\"BMA\",CONFIGURATION!$B$1,\"bscr\",CONFIGURATION!$B$12)","v":"Mapped"},null,{"$f":"XBRLMap(V41,V$90,$F$75,$F$76,CONFIGURATION!$B$10,\"BMA\",CONFIGURATION!$B$1,\"bscr\",CONFIGURATION!$B$12)","v":"Mapped"}]
[null,null,null,"Already mapped in Form 4",null,"Already mapped in Form 4",null,null,null,null,null,"Already mapped in Form 4",null,"Already mapped in Form 4",null,null,null,null,null,{"$f":"XBRLMap(T42,T$91,$D$75,$D$76,CONFIGURATION!$B$10,\"BMA\",CONFIGURATION!$B$1,\"bscr\",CONFIGURATION!$B$12)","v":"Mapped"},null,{"$f":"XBRLMap(V42,V$91,$F$75,$F$76,CONFIGURATION!$B$10,\"BMA\",CONFIGURATION!$B$1,\"bscr\",CONFIGURATION!$B$12)","v":"Mapped"}]
[null,null,null,{"$f":"XBRLMap(D44,D$92,$D$75,$D$76,CONFIGURATION!$B$10,\"BMA\",CONFIGURATION!$B$1,\"bscr\",CONFIGURATION!$B$12)","v":"Mapped"},null,{"$f":"XBRLMap(F44,F$92,$F$75,$F$76,CONFIGURATION!$B$10,\"BMA\",CONFIGURATION!$B$1,\"bscr\",CONFIGURATION!$B$12)","v":"Mapped"},null,{"$f":"XBRLMap(H44,H$92&\".\"&$Y44,$D$75,$D$76,CONFIGURATION!$B$10,\"BMA\",CONFIGURATION!$B$1,\"bscr\",CONFIGURATION!$B$12)","v":"Mapped"},null,{"$f":"XBRLMap(J44,J$92&\".\"&$Y44,$F$75,$F$76,CONFIGURATION!$B$10,\"BMA\",CONFIGURATION!$B$1,\"bscr\",CONFIGURATION!$B$12)","v":"Mapped"},null,{"$f":"XBRLMap(L44,L$92,$D$75,$D$76,CONFIGURATION!$B$10,\"BMA\",CONFIGURATION!$B$1,\"bscr\",CONFIGURATION!$B$12)","v":"Mapped"},null,{"$f":"XBRLMap(N44,N$92,$F$75,$F$76,CONFIGURATION!$B$10,\"BMA\",CONFIGURATION!$B$1,\"bscr\",CONFIGURATION!$B$12)","v":"Mapped"},null,null,null,null,null,{"$f":"XBRLMap(T44,T$92,$D$75,$D$76,CONFIGURATION!$B$10,\"BMA\",CONFIGURATION!$B$1,\"bscr\",CONFIGURATION!$B$12)","v":"Mapped"},null,{"$f":"XBRLMap(V44,V$92,$F$75,$F$76,CONFIGURATION!$B$10,\"BMA\",CONFIGURATION!$B$1,\"bscr\",CONFIGURATION!$B$12)","v":"Mapped"}]
[]
[]
[]
[null,null,null,null,null,null,null,null,null,null,null,"brrt_BondsAndDebentures",null,"brrt_BondsAndDebentures",null,"brrt_BondsAndDebentures",null,"brrt_BondsAndDebentures"]
[null,null,null,null,null,null,null,null,null,null,null,"brrt_SecurityTypeAxis_brrt_ResidentialMortgageBackedSecuritiesMember",null,"brrt_SecurityTypeAxis_brrt_ResidentialMortgageBackedSecuritiesMember",null,"brrt_SecurityTypeAxis_brrt_CommercialMortgageBackedSecuritiesAssetBackedSecuritiesMember",null,"brrt_SecurityTypeAxis_brrt_CommercialMortgageBackedSecuritiesAssetBackedSecuritiesMember"]
[null,null,null,null,null,null,null,null,null,null,null,"brrt_ClassificationAxis_brrt_OriginalClassificationMember",null,"brrt_ClassificationAxis_brrt_RevisedClassificationMember",null,"brrt_ClassificationAxis_brrt_OriginalClassificationMember",null,"brrt_ClassificationAxis_brrt_RevisedClassificationMember"]
[null,null,null,null,null,null,null,null,null,null,null,{"$f":"XBRLMap(L56,L$107&\".\"&$AB56&\".\"&$L$108&\".\"&$L$109,$D$75,$D$76,CONFIGURATION!$B$10,\"BMA\",CONFIGURATION!$B$1,\"bscr\",CONFIGURATION!$B$12)","v":"Mapped"},null,{"$f":"XBRLMap(N56,N$107&\".\"&$AB56&\".\"&$N$108&\".\"&$N$109,$D$75,$D$76,CONFIGURATION!$B$10,\"BMA\",CONFIGURATION!$B$1,\"bscr\",CONFIGURATION!$B$12)","v":"Mapped"},null,{"$f":"XBRLMap(P56,P$107&\".\"&$AB56&\".\"&$P$108&\".\"&$P$109,$D$75,$D$76,CONFIGURATION!$B$10,\"BMA\",CONFIGURATION!$B$1,\"bscr\",CONFIGURATION!$B$12)","v":"Mapped"},null,{"$f":"XBRLMap(R56,R$107&\".\"&$AB56&\".\"&$R$108&\".\"&$R$109,$D$75,$D$76,CONFIGURATION!$B$10,\"BMA\",CONFIGURATION!$B$1,\"bscr\",CONFIGURATION!$B$12)","v":"Mapped"}]
[null,null,null,null,null,null,null,null,null,null,null,{"$f":"XBRLMap(L45,L$107&\".\"&$AB57&\".\"&$L$108&\".\"&$L$109,$D$75,$D$76,CONFIGURATION!$B$10,\"BMA\",CONFIGURATION!$B$1,\"bscr\",CONFIGURATION!$B$12)","v":"Mapped"},null,{"$f":"XBRLMap(N57,N$107&\".\"&$AB57&\".\"&$N$108&\".\"&$N$109,$D$75,$D$76,CONFIGURATION!$B$10,\"BMA\",CONFIGURATION!$B$1,\"bscr\",CONFIGURATION!$B$12)","v":"Mapped"},null,{"$f":"XBRLMap(P57,P$107&\".\"&$AB57&\".\"&$P$108&\".\"&$P$109,$D$75,$D$76,CONFIGURATION!$B$10,\"BMA\",CONFIGURATION!$B$1,\"bscr\",CONFIGURATION!$B$12)","v":"Mapped"},null,{"$f":"XBRLMap(R57,R$107&\".\"&$AB57&\".\"&$R$108&\".\"&$R$109,$D$75,$D$76,CONFIGURATION!$B$10,\"BMA\",CONFIGURATION!$B$1,\"bscr\",CONFIGURATION!$B$12)","v":"Mapped"}]
[null,null,null,null,null,null,null,null,null,null,null,{"$f":"XBRLMap(L46,L$107&\".\"&$AB58&\".\"&$L$108&\".\"&$L$109,$D$75,$D$76,CONFIGURATION!$B$10,\"BMA\",CONFIGURATION!$B$1,\"bscr\",CONFIGURATION!$B$12)","v":"Mapped"},null,{"$f":"XBRLMap(N58,N$107&\".\"&$AB58&\".\"&$N$108&\".\"&$N$109,$D$75,$D$76,CONFIGURATION!$B$10,\"BMA\",CONFIGURATION!$B$1,\"bscr\",CONFIGURATION!$B$12)","v":"Mapped"},null,{"$f":"XBRLMap(P58,P$107&\".\"&$AB58&\".\"&$P$108&\".\"&$P$109,$D$75,$D$76,CONFIGURATION!$B$10,\"BMA\",CONFIGURATION!$B$1,\"bscr\",CONFIGURATION!$B$12)","v":"Mapped"},null,{"$f":"XBRLMap(R58,R$107&\".\"&$AB58&\".\"&$R$108&\".\"&$R$109,$D$75,$D$76,CONFIGURATION!$B$10,\"BMA\",CONFIGURATION!$B$1,\"bscr\",CONFIGURATION!$B$12)","v":"Mapped"}]
[null,null,null,null,null,null,null,null,null,null,null,{"$f":"XBRLMap(L47,L$107&\".\"&$AB59&\".\"&$L$108&\".\"&$L$109,$D$75,$D$76,CONFIGURATION!$B$10,\"BMA\",CONFIGURATION!$B$1,\"bscr\",CONFIGURATION!$B$12)","v":"Mapped"},null,{"$f":"XBRLMap(N59,N$107&\".\"&$AB59&\".\"&$N$108&\".\"&$N$109,$D$75,$D$76,CONFIGURATION!$B$10,\"BMA\",CONFIGURATION!$B$1,\"bscr\",CONFIGURATION!$B$12)","v":"Mapped"},null,{"$f":"XBRLMap(P59,P$107&\".\"&$AB59&\".\"&$P$108&\".\"&$P$109,$D$75,$D$76,CONFIGURATION!$B$10,\"BMA\",CONFIGURATION!$B$1,\"bscr\",CONFIGURATION!$B$12)","v":"Mapped"},null,{"$f":"XBRLMap(R59,R$107&\".\"&$AB59&\".\"&$R$108&\".\"&$R$109,$D$75,$D$76,CONFIGURATION!$B$10,\"BMA\",CONFIGURATION!$B$1,\"bscr\",CONFIGURATION!$B$12)","v":"Mapped"}]
[null,null,null,null,null,null,null,null,null,null,null,{"$f":"XBRLMap(L48,L$107&\".\"&$AB60&\".\"&$L$108&\".\"&$L$109,$D$75,$D$76,CONFIGURATION!$B$10,\"BMA\",CONFIGURATION!$B$1,\"bscr\",CONFIGURATION!$B$12)","v":"Mapped"},null,{"$f":"XBRLMap(N60,N$107&\".\"&$AB60&\".\"&$N$108&\".\"&$N$109,$D$75,$D$76,CONFIGURATION!$B$10,\"BMA\",CONFIGURATION!$B$1,\"bscr\",CONFIGURATION!$B$12)","v":"Mapped"},null,{"$f":"XBRLMap(P60,P$107&\".\"&$AB60&\".\"&$P$108&\".\"&$P$109,$D$75,$D$76,CONFIGURATION!$B$10,\"BMA\",CONFIGURATION!$B$1,\"bscr\",CONFIGURATION!$B$12)","v":"Mapped"},null,{"$f":"XBRLMap(R60,R$107&\".\"&$AB60&\".\"&$R$108&\".\"&$R$109,$D$75,$D$76,CONFIGURATION!$B$10,\"BMA\",CONFIGURATION!$B$1,\"bscr\",CONFIGURATION!$B$12)","v":"Mapped"}]
[null,null,null,null,null,null,null,null,null,null,null,{"$f":"XBRLMap(L51,L$107&\".\"&$AB61&\".\"&$L$108&\".\"&$L$109,$D$75,$D$76,CONFIGURATION!$B$10,\"BMA\",CONFIGURATION!$B$1,\"bscr\",CONFIGURATION!$B$12)","v":"Mapped"},null,{"$f":"XBRLMap(N61,N$107&\".\"&$AB61&\".\"&$N$108&\".\"&$N$109,$D$75,$D$76,CONFIGURATION!$B$10,\"BMA\",CONFIGURATION!$B$1,\"bscr\",CONFIGURATION!$B$12)","v":"Mapped"},null,{"$f":"XBRLMap(P61,P$107&\".\"&$AB61&\".\"&$P$108&\".\"&$P$109,$D$75,$D$76,CONFIGURATION!$B$10,\"BMA\",CONFIGURATION!$B$1,\"bscr\",CONFIGURATION!$B$12)","v":"Mapped"},null,{"$f":"XBRLMap(R61,R$107&\".\"&$AB61&\".\"&$R$108&\".\"&$R$109,$D$75,$D$76,CONFIGURATION!$B$10,\"BMA\",CONFIGURATION!$B$1,\"bscr\",CONFIGURATION!$B$12)","v":"Mapped"}]
[]
[null,null,null,null,null,null,null,null,null,null,null,{"$f":"XBRLMap(L52,L$107&\".\"&$AB63&\".\"&$L$108&\".\"&$L$109,$D$75,$D$76,CONFIGURATION!$B$10,\"BMA\",CONFIGURATION!$B$1,\"bscr\",CONFIGURATION!$B$12)","v":"Mapped"},null,{"$f":"XBRLMap(N63,N$107&\".\"&$AB63&\".\"&$N$108&\".\"&$N$109,$D$75,$D$76,CONFIGURATION!$B$10,\"BMA\",CONFIGURATION!$B$1,\"bscr\",CONFIGURATION!$B$12)","v":"Mapped"},null,{"$f":"XBRLMap(P63,P$107&\".\"&$AB63&\".\"&$P$108&\".\"&$P$109,$D$75,$D$76,CONFIGURATION!$B$10,\"BMA\",CONFIGURATION!$B$1,\"bscr\",CONFIGURATION!$B$12)","v":"Mapped"},null,{"$f":"XBRLMap(R63,R$107&\".\"&$AB63&\".\"&$R$108&\".\"&$R$109,$D$75,$D$76,CONFIGURATION!$B$10,\"BMA\",CONFIGURATION!$B$1,\"bscr\",CONFIGURATION!$B$12)","v":"Mapped"}]

{"sheet":"Schedule II (EBS)","index":23,"n_rows":117,"n_cols":28,"rows_kept":117,"cut":false,"hidden":false,"merged":[[28,19,28,21],[51,3,51,5],[28,11,28,13],[51,8,51,18],[6,19,6,21],[6,3,6,5],[6,7,6,9],[6,11,6,13],[28,7,28,9],[52,11,52,13],[52,15,52,17],[28,3,28,5],[6,15,6,17],[1,2,1,4],[2,3,2,5],[3,3,3,5]]}
[null,"SCHEDULE OF FIXED INCOME & EQUITY INVESTMENTS BY BSCR RATING",null,null,null,null,null,null,null,null,null,null,null,null,null,null,null,null,null,null,null,{"$f":"HYPERLINK(\"#'Index'!A1\",\"Return to Index\")","v":"Return to Index"}]
[null,null,{"$f":"'Insurer Information'!C7","v":"Enter Company Name"}]
[null,null,"As at",{"$f":"'Form 4EBS'!C3","v":"2019-12-31"},null,null,null,null,null,null,null,null,null,null,null,null,null,null,null,null,null,"SCHEDULE II (EBS)"]
[null,null,{"$f":"\"Expressed in \" & IF(CONFIGURATION!$B$12>1,\" ['\"&MID(CONFIGURATION!$B$12,2,LEN(CONFIGURATION!$B$12))&\"s]\",\"\")","v":"Expressed in  ['000s]"},{"$f":"'Form 4EBS'!C4","v":"United States Dollars"}]
[]
[null,null,null,"(1)",null,"(2)",null,"(3)",null,"(4)",null,"(5)",null,{"$f":"YEAR('Insurer Information'!C3)","v":2019},null,"(7)",null,"(8)",null,"(9)",null,"(10)"]
[null,null,null,"CORPORATE & SOVEREIGN BONDS",null,null,null,"RESIDENTIAL MORTGAGE-BACKED SECURITIES",null,null,null,"COMMERCIAL MORTGAGE-BACKED SECURITIES / ASSET-BACKED SECURITIES",null,null,null,"BOND MUTUAL FUNDS",null,null,null,"TOTAL\n[ Form 4EBS Lines 2(b) & 3(b)]"]
[null,null,null,{"$f":"'Form 4EBS'!F6","v":"2019-12-31"},null,{"$f":"'Form 4EBS'!H6","v":"2018-12-31"},null,{"$f":"'Form 4EBS'!F6","v":"2019-12-31"},null,{"$f":"'Form 4EBS'!H6","v":"2018-12-31"},null,{"$f":"'Form 4EBS'!F6","v":"2019-12-31"},null,{"$f":"'Form 4EBS'!H6","v":"2018-12-31"},null,{"$f":"'Form 4EBS'!F6","v":"2019-12-31"},null,{"$f":"'Form 4EBS'!H6","v":"2018-12-31"},null,{"$f":"D8","v":"2019-12-31"},null,{"$f":"F8","v":"2018-12-31"}]
[null,null,null,{"$f":"CONFIGURATION!$D$12","v":" ('000s)"},null,{"$f":"CONFIGURATION!$D$12","v":" ('000s)"},null,{"$f":"CONFIGURATION!$D$12","v":" ('000s)"},null,{"$f":"CONFIGURATION!$D$12","v":" ('000s)"},null,{"$f":"CONFIGURATION!$D$12","v":" ('000s)"},null,{"$f":"CONFIGURATION!$D$12","v":" ('000s)"},null,{"$f":"CONFIGURATION!$D$12","v":" ('000s)"},null,{"$f":"CONFIGURATION!$D$12","v":" ('000s)"},null,{"$f":"CONFIGURATION!$D$12","v":" ('000s)"},null,{"$f":"CONFIGURATION!$D$12","v":" ('000s)"}]
[null,"Line no. "]
[null,"Quoted and Unquoted Bonds and Debentures"]
[null,1,"BSCR Rating 0",{"$f":"Import!M443","v":0},null,{"$f":"Import!O443","v":0},null,null,null,null,null,null,null,null,null,{"$f":"Import!M468","v":0},null,{"$f":"Import!O468","v":0},null,{"$f":"D12+H12+L12+P12","v":0},null,{"$f":"F12+J12+N12+R12","v":0},null,null,"brrt_RiskGradeAxis_brrt_BSCRRating0Member"]
[null,2,"BSCR Rating 1",{"$f":"Import!M444","v":0},null,{"$f":"Import!O444","v":0},null,{"$f":"Import!M452","v":0},null,{"$f":"Import!O452","v":0},null,{"$f":"Import!M460","v":0},null,{"$f":"Import!O460","v":0},null,{"$f":"Import!M469","v":0},null,{"$f":"Import!O469","v":0},null,0,null,0,null,null,"brrt_RiskGradeAxis_brrt_BSCRRating1Member"]
[null,3,"BSCR Rating 2",{"$f":"Import!M445","v":0},null,{"$f":"Import!O445","v":0},null,{"$f":"Import!M453","v":0},null,{"$f":"Import!O453","v":0},null,{"$f":"Import!M461","v":0},null,{"$f":"Import!O461","v":0},null,{"$f":"Import!M470","v":0},null,{"$f":"Import!O470","v":0},null,0,null,0,null,null,"brrt_RiskGradeAxis_brrt_BSCRRating2Member"]
[null,4,"BSCR Rating 3",{"$f":"Import!M446","v":0},null,{"$f":"Import!O446","v":0},null,{"$f":"Import!M454","v":0},null,{"$f":"Import!O454","v":0},null,{"$f":"Import!M462","v":0},null,{"$f":"Import!O462","v":0},null,{"$f":"Import!M471","v":0},null,{"$f":"Import!O471","v":0},null,0,null,0,null,null,"brrt_RiskGradeAxis_brrt_BSCRRating3Member"]
[null,5,"BSCR Rating 4",{"$f":"Import!M447","v":0},null,{"$f":"Import!O447","v":0},null,{"$f":"Import!M455","v":0},null,{"$f":"Import!O455","v":0},null,{"$f":"Import!M463","v":0},null,{"$f":"Import!O463","v":0},null,{"$f":"Import!M472","v":0},null,{"$f":"Import!O472","v":0},null,0,null,0,null,null,"brrt_RiskGradeAxis_brrt_BSCRRating4Member"]
[null,6,"BSCR Rating 5",{"$f":"Import!M448","v":0},null,{"$f":"Import!O448","v":0},null,{"$f":"Import!M456","v":0},null,{"$f":"Import!O456","v":0},null,{"$f":"Import!M464","v":0},null,{"$f":"Import!O464","v":0},null,{"$f":"Import!M473","v":0},null,{"$f":"Import!O473","v":0},null,0,null,0,null,null,"brrt_RiskGradeAxis_brrt_BSCRRating5Member"]
[null,7,"BSCR Rating 6",{"$f":"Import!M449","v":0},null,{"$f":"Import!O449","v":0},null,{"$f":"Import!M457","v":0},null,{"$f":"Import!O457","v":0},null,{"$f":"Import!M465","v":0},null,{"$f":"Import!O465","v":0},null,{"$f":"Import!M474","v":0},null,{"$f":"Import!O474","v":0},null,0,null,0,null,null,"brrt_RiskGradeAxis_brrt_BSCRRating6Member"]
[null,8,"BSCR Rating 7",{"$f":"Import!M450","v":0},null,{"$f":"Import!O450","v":0},null,{"$f":"Import!M458","v":0},null,{"$f":"Import!O458","v":0},null,{"$f":"Import!M466","v":0},null,{"$f":"Import!O466","v":0},null,{"$f":"Import!M475","v":0},null,{"$f":"Import!O475","v":0},null,0,null,0,null,null,"brrt_RiskGradeAxis_brrt_BSCRRating7Member"]
[null,9,"BSCR Rating 8",{"$f":"Import!M451","v":0},null,{"$f":"Import!O451","v":0},null,{"$f":"Import!M459","v":0},null,{"$f":"Import!O459","v":0},null,{"$f":"Import!M467","v":0},null,{"$f":"Import!O467","v":0},null,{"$f":"Import!M476","v":0},null,{"$f":"Import!O476","v":0},null,0,null,0,null,null,"brrt_RiskGradeAxis_brrt_BSCRRating8Member"]
[]
[null,10,"Total",{"$f":"SUM(D12:D20)","v":0},null,{"$f":"SUM(F12:F20)","v":0},null,{"$f":"SUM(H12:H20)","v":0},null,{"$f":"SUM(J12:J20)","v":0},null,{"$f":"SUM(L12:L20)","v":0},null,{"$f":"SUM(N12:N20)","v":0},null,{"$f":"SUM(P11:P20)","v":0},null,{"$f":"SUM(R11:R20)","v":0},null,{"$f":"SUM(T12:T20)","v":0},null,{"$f":"SUM(V12:V20)","v":0},null,null,"brrt_RiskGradeAxis_brrt_TotalMember"]
[]
[null,null,null,null,null,null,null,null,null,null,null,null,null,null,null,null,null,null,null,{"$f":"IF(T25=\"TRUE\",HYPERLINK(\"#'Form 4EBS'!F13:F23\",\"TRUE\"),HYPERLINK(\"#'Form 4EBS'!F13:F23\",\"FALSE\"))","v":"TRUE"},null,{"$f":"IF(V25=\"TRUE\",HYPERLINK(\"#'Form 4EBS'!H13:H23\",\"TRUE\"),HYPERLINK(\"#'Form 4EBS'!H13:H23\",\"FALSE\"))","v":"TRUE"}]
[null,null,null,null,null,null,null,null,null,null,null,null,null,null,null,null,null,null,null,{"$f":"IF(ROUND((T22-('Form 4EBS'!F13+'Form 4EBS'!F23)),0)=0,\"TRUE\",\"FALSE\")","v":"TRUE"},null,{"$f":"IF(ROUND((V22-('Form 4EBS'!H13+'Form 4EBS'!H23)),0)=0,\"TRUE\",\"FALSE\")","v":"TRUE"}]
[null,null,"Difference",null,null,null,null,null,null,null,null,null,null,null,null,null,null,null,null,{"$f":"ROUND(('Form 4EBS'!F13+'Form 4EBS'!F23)-T22,0)","v":0},null,{"$f":"ROUND(('Form 4EBS'!H13+'Form 4EBS'!H23)-V22,0)","v":0}]
[]
[null,null,null,null,null,null,null,null,null,null,null,null,null,null,null,null,null,null,null,{"$f":"IF(T24=\"False\",\"Does not equal Form 4EBS Lines 2(b) & 3(b)\",\"\")","v":""},null,{"$f":"IF(V24=\"False\",\"Does not equal Form 4EBS Lines 2(b) & 3(b)\",\"\")","v":""}]
[null,null,null,"COMMON STOCK\n[ Form 4EBS Lines 2(c)(i) & 3(c)(i) ]",null,null,null,"PREFERRED STOCK\n[ Form 4EBS Lines 2(c)(ii) & 3(c)(ii) ]",null,null,null,"EQUITY MUTUAL FUNDS\n[ Form 4EBS Lines 2(c)(iii) & 3(c)(iii) ]",null,null,null,null,null,null,null,"TOTAL\n[ Form 4EBS Lines 2(d) & 3(d)]"]
[null,null,null,{"$f":"'Form 4EBS'!F6","v":"2019-12-31"},null,{"$f":"'Form 4EBS'!H6","v":"2018-12-31"},null,{"$f":"'Form 4EBS'!F6","v":"2019-12-31"},null,{"$f":"'Form 4EBS'!H6","v":"2018-12-31"},null,{"$f":"'Form 4EBS'!F6","v":"2019-12-31"},null,{"$f":"'Form 4EBS'!H6","v":"2018-12-31"},null,null,null,null,null,{"$f":"'Form 4EBS'!F6","v":"2019-12-31"},null,{"$f":"'Form 4EBS'!F6","v":"2019-12-31"}]
[null,null,null,{"$f":"CONFIGURATION!$D$12","v":" ('000s)"},null,{"$f":"CONFIGURATION!$D$12","v":" ('000s)"},null,{"$f":"CONFIGURATION!$D$12","v":" ('000s)"},null,{"$f":"CONFIGURATION!$D$12","v":" ('000s)"},null,{"$f":"CONFIGURATION!$D$12","v":" ('000s)"},null,{"$f":"CONFIGURATION!$D$12","v":" ('000s)"},null,null,null,null,null,{"$f":"CONFIGURATION!$D$12","v":" ('000s)"},null,{"$f":"CONFIGURATION!$D$12","v":" ('000s)"}]
[null,"Quoted and Unquoted Equities"]
[null,11,"BSCR Rating 1",null,null,null,null,{"$f":"Import!M479","v":0},null,{"$f":"Import!O479","v":0},null,null,null,null,null,null,null,null,null,{"$f":"D33+H33+L33","v":0},null,{"$f":"F33+J33+N33","v":0},null,null,"brrt_RiskGradeAxis_brrt_BSCRRating1Member"]
[null,12,"BSCR Rating 2",null,null,null,null,{"$f":"Import!M480","v":0},null,{"$f":"Import!O480","v":0},null,null,null,null,null,null,null,null,null,0,null,0,null,null,"brrt_RiskGradeAxis_brrt_BSCRRating2Member"]
[null,13,"BSCR Rating 3",null,null,null,null,{"$f":"Import!M481","v":0},null,{"$f":"Import!O481","v":0},null,null,null,null,null,null,null,null,null,0,null,0,null,null,"brrt_RiskGradeAxis_brrt_BSCRRating3Member"]
[null,14,"BSCR Rating 4",null,null,null,null,{"$f":"Import!M482","v":0},null,{"$f":"Import!O482","v":0},null,null,null,null,null,null,null,null,null,0,null,0,null,null,"brrt_RiskGradeAxis_brrt_BSCRRating4Member"]
[null,15,"BSCR Rating 5",null,null,null,null,{"$f":"Import!M483","v":0},null,{"$f":"Import!O483","v":0},null,null,null,null,null,null,null,null,null,0,null,0,null,null,"brrt_RiskGradeAxis_brrt_BSCRRating5Member"]
[null,16,"BSCR Rating 6",null,null,null,null,{"$f":"Import!M484","v":0},null,{"$f":"Import!O484","v":0},null,null,null,null,null,null,null,null,null,0,null,0,null,null,"brrt_RiskGradeAxis_brrt_BSCRRating6Member"]
[null,17,"BSCR Rating 7",null,null,null,null,{"$f":"Import!M485","v":0},null,{"$f":"Import!O485","v":0},null,null,null,null,null,null,null,null,null,0,null,0,null,null,"brrt_RiskGradeAxis_brrt_BSCRRating7Member"]
[null,18,"BSCR Rating 8",null,null,null,null,{"$f":"Import!M486","v":0},null,{"$f":"Import!O486","v":0},null,null,null,null,null,null,null,null,null,0,null,0,null,null,"brrt_RiskGradeAxis_brrt_BSCRRating8Member"]
[null,19,"Quoted Equity Funds",{"$f":"'Form 4EBS'!F15","v":0},null,{"$f":"'Form 4EBS'!H15","v":0},null,null,null,null,null,{"$f":"+'Form 4EBS'!F17","v":0},null,{"$f":"+'Form 4EBS'!H17","v":0},null,null,null,null,null,0,null,0]
[null,20,"Unquoted Equity Funds",{"$f":"'Form 4EBS'!F25","v":0},null,{"$f":"'Form 4EBS'!H25","v":0},null,null,null,null,null,{"$f":"+'Form 4EBS'!F27","v":0},null,{"$f":"+'Form 4EBS'!H27","v":0},null,null,null,null,null,0,null,0]
[]
[null,21,"Total",{"$f":"SUM(D33:D42)","v":0},null,{"$f":"SUM(F33:F42)","v":0},null,{"$f":"SUM(H33:H42)","v":0},null,{"$f":"SUM(J33:J42)","v":0},null,{"$f":"SUM(L32:L42)","v":0},null,{"$f":"SUM(N32:N42)","v":0},null,null,null,null,null,{"$f":"SUM(T33:T42)","v":0},null,{"$f":"SUM(V33:V42)","v":0},null,null,"brrt_RiskGradeAxis_brrt_TotalMember"]
[]
[null,null,null,{"$f":"IF(D47=\"TRUE\",HYPERLINK(\"#'Form 4EBS'!F15:F25\",\"TRUE\"),HYPERLINK(\"#'Form 4EBS'!F15:F25\",\"FALSE\"))","v":"TRUE"},null,{"$f":"IF(F47=\"TRUE\",HYPERLINK(\"#'Form 4EBS'!H15:H25\",\"TRUE\"),HYPERLINK(\"#'Form 4EBS'!H15:H25\",\"FALSE\"))","v":"TRUE"},null,{"$f":"IF(H47=\"TRUE\",HYPERLINK(\"#'Form 4EBS'!F16:F26\",\"TRUE\"),HYPERLINK(\"#'Form 4EBS'!F16:F26\",\"FALSE\"))","v":"TRUE"},null,{"$f":"IF(J47=\"TRUE\",HYPERLINK(\"#'Form 4EBS'!H16:H26\",\"TRUE\"),HYPERLINK(\"#'Form 4EBS'!H16:H26\",\"FALSE\"))","v":"TRUE"},null,{"$f":"IF(L47=\"TRUE\",HYPERLINK(\"#'Form 4EBS'!F17:F27\",\"TRUE\"),HYPERLINK(\"#'Form 4EBS'!F17:F27\",\"FALSE\"))","v":"TRUE"},null,{"$f":"IF(N47=\"TRUE\",HYPERLINK(\"#'Form 4EBS'!H17:H27\",\"TRUE\"),HYPERLINK(\"#'Form 4EBS'!H17:H27\",\"FALSE\"))","v":"TRUE"},null,null,null,null,null,{"$f":"IF(T47=\"TRUE\",HYPERLINK(\"#'Form 4EBS'!F15:F29\",\"TRUE\"),HYPERLINK(\"#'Form 4EBS'!F15:F29\",\"FALSE\"))","v":"TRUE"},null,{"$f":"IF(V47=\"TRUE\",HYPERLINK(\"#'Form 4EBS'!H15:H29\",\"TRUE\"),HYPERLINK(\"#'Form 4EBS'!H15:H29\",\"FALSE\"))","v":"TRUE"}]
[null,null,null,{"$f":"IF(ROUND((D44-('Form 4EBS'!F15+'Form 4EBS'!F25)),0)=0,\"TRUE\",\"FALSE\")","v":"TRUE"},null,{"$f":"IF(ROUND((F44-('Form 4EBS'!H15+'Form 4EBS'!H25)),0)=0,\"TRUE\",\"FALSE\")","v":"TRUE"},null,{"$f":"IF(ROUND((H44-('Form 4EBS'!F16+'Form 4EBS'!F26)),0)=0,\"TRUE\",\"FALSE\")","v":"TRUE"},null,{"$f":"IF(ROUND((J44-('Form 4EBS'!H16+'Form 4EBS'!H26)),0)=0,\"TRUE\",\"FALSE\")","v":"TRUE"},null,{"$f":"IF(ROUND((L44-('Form 4EBS'!F17+'Form 4EBS'!F27)),0)=0,\"TRUE\",\"FALSE\")","v":"TRUE"},null,{"$f":"IF(ROUND((N44-('Form 4EBS'!H17+'Form 4EBS'!H27)),0)=0,\"TRUE\",\"FALSE\")","v":"TRUE"},null,null,null,null,null,{"$f":"IF(ROUND((T44-('Form 4EBS'!F18+'Form 4EBS'!F28)),0)=0,\"TRUE\",\"FALSE\")","v":"TRUE"},null,{"$f":"IF(ROUND((V44-('Form 4EBS'!H18+'Form 4EBS'!H28)),0)=0,\"TRUE\",\"FALSE\")","v":"TRUE"}]
[null,null,"Difference",{"$f":"ROUND(('Form 4EBS'!F15+'Form 4EBS'!F25)-D44,0)","v":0},null,{"$f":"ROUND(('Form 4EBS'!H15+'Form 4EBS'!H25)-F44,0)","v":0},null,{"$f":"ROUND(('Form 4EBS'!F16+'Form 4EBS'!F26)-H44,0)","v":0},null,{"$f":"ROUND(('Form 4EBS'!H16+'Form 4EBS'!H26)-J44,0)","v":0},null,{"$f":"ROUND(('Form 4EBS'!F17+'Form 4EBS'!F27)-L44,0)","v":0},null,{"$f":"ROUND(('Form 4EBS'!H17+'Form 4EBS'!H27)-N44,0)","v":0},null,null,null,null,null,{"$f":"ROUND(('Form 4EBS'!F18+'Form 4EBS'!F28)-T44,0)","v":0},null,{"$f":"ROUND(('Form 4EBS'!H18+'Form 4EBS'!H28)-V44,0)","v":0}]
[]
[null,null,null,{"$f":"IF(D46=\"False\",\"Does not equal Form 4EBS Lines 2(c)(i) & 3(c)(i)\",\"\")","v":""},null,{"$f":"IF(F46=\"False\",\"Does not equal Form 4EBS Lines 2(c)(i) & 3(c)(i)\",\"\")","v":""},null,{"$f":"IF(H46=\"False\",\"Does not equal Form 4EBS Lines 2(c)(ii) & 3(c)(ii)\",\"\")","v":""},null,{"$f":"IF(J46=\"False\",\"Does not equal Form 4EBS Lines 2(c)(ii) & 3(c)(ii)\",\"\")","v":""},null,{"$f":"IF(L46=\"False\",\"Does not equal Form 4EBS Lines 2(c)(iii) & 3(c)(iii)\",\"\")","v":""},null,{"$f":"IF(N46=\"False\",\"Does not equal Form 4EBS Lines 2(c)(iii) & 3(c)(iii)\",\"\")","v":""},null,null,null,null,null,{"$f":"IF(T46=\"False\",\"Does not equal Form 4EBS Lines 2(d) & 3(d)\",\"\")","v":""},null,{"$f":"IF(V46=\"False\",\"Does not equal Form 4EBS Lines 2(d) & 3(d)\",\"\")","v":""}]
[]
[null,null,null,"MORTGAGE LOANS\n[ Form 4EBS Lines 5(c) ]",null,null,null,null,"This Section is Only Applicable to Companies that have Mortgage Backed Securities that have been Reclassified in Accordance with the NAIC and that elect to use NAIC reclassifications to map to the BSCR classes"]
[null,null,null,{"$f":"'Form 4EBS'!F6","v":"2019-12-31"},null,{"$f":"'Form 4EBS'!H6","v":"2018-12-31"},null,null,null,null,null,"VALUES OF RESIDENTIAL MORTGAGE BACKED SECURITIES",null,null,null,"VALUES OF COMMERCIAL MORTGAGE BACKED SECURITIES / ASSET BACKED SECURITIES"]
[null,null,null,{"$f":"CONFIGURATION!$D$12","v":" ('000s)"},null,{"$f":"CONFIGURATION!$D$12","v":" ('000s)"},null,null,null,null,null,"Original Classification",null,"Revised Classification",null,"Original Classification",null,"Revised Classification"]
[null,null,null,null,null,null,null,null,null,"NAIC Class 1",null,{"$f":"Import!M493","v":0},null,{"$f":"Import!M500","v":0},null,{"$f":"Import!M507","v":0},null,{"$f":"Import!M514","v":0},null,null,null,null,null,null,null,null,null,"brrt_RiskGradeAxis_brrt_NAICClass1Member"]
[null,"Mortgage Loans",null,null,null,null,null,null,null,"NAIC Class 2",null,{"$f":"Import!M494","v":0},null,{"$f":"Import!M501","v":0},null,{"$f":"Import!M508","v":0},null,{"$f":"Import!M515","v":0},null,null,null,null,null,"brrt_InvestmentsInMortgageLoansOnRealEstateInsuredGuaranteedMortgages",{"$f":"XBRLMap(D57,$X56,$D$75,$D$76,CONFIGURATION!$B$10,\"BMA\",CONFIGURATION!$B$1,\"bscr\",CONFIGURATION!$B$12)","v":"Mapped"},{"$f":"XBRLMap(F57,$X56,$F$75,$F$76,CONFIGURATION!$B$10,\"BMA\",CONFIGURATION!$B$1,\"bscr\",CONFIGURATION!$B$12)","v":"Mapped"},null,"brrt_RiskGradeAxis_brrt_NAICClass2Member"]
[null,22,"Insured/Guaranteed Mortgages",{"$f":"Import!M489","v":0},null,{"$f":"Import!O489","v":0},null,null,null,"NAIC Class 3",null,{"$f":"Import!M495","v":0},null,{"$f":"Import!M502","v":0},null,{"$f":"Import!M509","v":0},null,{"$f":"Import!M516","v":0},null,null,null,null,null,"brrt_InvestmentsInMortgageLoansOnRealEstateOtherCommercialFarmMortgages",{"$f":"XBRLMap(D58,$X57,$D$75,$D$76,CONFIGURATION!$B$10,\"BMA\",CONFIGURATION!$B$1,\"bscr\",CONFIGURATION!$B$12)","v":"Mapped"},{"$f":"XBRLMap(F58,$X57,$F$75,$F$76,CONFIGURATION!$B$10,\"BMA\",CONFIGURATION!$B$1,\"bscr\",CONFIGURATION!$B$12)","v":"Mapped"},null,"brrt_RiskGradeAxis_brrt_NAICClass3Member"]
[null,23,"Other Commercial and Farm Mortgages",{"$f":"Import!M490","v":0},null,{"$f":"Import!O490","v":0},null,null,null,"NAIC Class 4",null,{"$f":"Import!M496","v":0},null,{"$f":"Import!M503","v":0},null,{"$f":"Import!M510","v":0},null,{"$f":"Import!M517","v":0},null,null,null,null,null,"brrt_InvestmentsInMortgageLoansOnRealEstateOtherResidentialMortgages",{"$f":"XBRLMap(D59,$X58,$D$75,$D$76,CONFIGURATION!$B$10,\"BMA\",CONFIGURATION!$B$1,\"bscr\",CONFIGURATION!$B$12)","v":"Mapped"},{"$f":"XBRLMap(F59,$X58,$F$75,$F$76,CONFIGURATION!$B$10,\"BMA\",CONFIGURATION!$B$1,\"bscr\",CONFIGURATION!$B$12)","v":"Mapped"},null,"brrt_RiskGradeAxis_brrt_NAICClass4Member"]
[null,24,"Other Residential Mortgages",{"$f":"Import!M491","v":0},null,{"$f":"Import!O491","v":0},null,null,null,"NAIC Class 5",null,{"$f":"Import!M497","v":0},null,{"$f":"Import!M504","v":0},null,{"$f":"Import!M511","v":0},null,{"$f":"Import!M518","v":0},null,null,null,null,null,"brrt_InvestmentsInMortgageLoansOnRealEstateMortgagesNotInGoodStanding",{"$f":"XBRLMap(D60,$X59,$D$75,$D$76,CONFIGURATION!$B$10,\"BMA\",CONFIGURATION!$B$1,\"bscr\",CONFIGURATION!$B$12)","v":"Mapped"},{"$f":"XBRLMap(F60,$X59,$F$75,$F$76,CONFIGURATION!$B$10,\"BMA\",CONFIGURATION!$B$1,\"bscr\",CONFIGURATION!$B$12)","v":"Mapped"},null,"brrt_RiskGradeAxis_brrt_NAICClass5Member"]
[null,25,"Mortgages Not In Good Standing",{"$f":"Import!M492","v":0},null,{"$f":"Import!O492","v":0},null,null,null,"NAIC Class 6",null,{"$f":"Import!M498","v":0},null,{"$f":"Import!M505","v":0},null,{"$f":"Import!M512","v":0},null,{"$f":"Import!M519","v":0},null,null,null,null,null,null,null,null,null,"brrt_RiskGradeAxis_brrt_NAICClass6Member"]
[null,null,null,null,null,null,null,null,null,null,null,null,null,null,null,null,null,null,null,null,null,null,null,"Already mapped in Form 4"]
[null,26,"Total",{"$f":"SUM(D57:D60)","v":0},null,{"$f":"SUM(F57:F60)","v":0},null,null,null,null,null,{"$f":"SUM(L55:L60)","v":0},null,{"$f":"SUM(N55:N60)","v":0},null,{"$f":"SUM(P55:P60)","v":0},null,{"$f":"SUM(R55:R60)","v":0},null,null,null,null,null,null,null,null,null,"brrt_RiskGradeAxis_brrt_TotalMember"]
[]
[null,null,null,{"$f":"IF(D65=\"TRUE\",HYPERLINK(\"#'Form 4EBS'!F45\",\"TRUE\"),HYPERLINK(\"#'Form 4EBS'!F45\",\"FALSE\"))","v":"TRUE"},null,{"$f":"IF(F65=\"TRUE\",HYPERLINK(\"#'Form 4EBS'!H45\",\"TRUE\"),HYPERLINK(\"#'Form 4EBS'!H45\",\"FALSE\"))","v":"TRUE"}]
[null,null,null,{"$f":"IF(ROUND((D62-'Form 4EBS'!F45),0)=0,\"TRUE\",\"FALSE\")","v":"TRUE"},null,{"$f":"IF(ROUND((F62-'Form 4EBS'!H45),0)=0,\"TRUE\",\"FALSE\")","v":"TRUE"}]
[null,null,"Difference",{"$f":"ROUND('Form 4EBS'!F45-D62,0)","v":0},null,{"$f":"ROUND('Form 4EBS'!H45-F62,0)","v":0},null,null,null,{"$f":"IF('Insurer Information'!F9=\"Class C\",HYPERLINK(\"#'Attachments'!G45\",\"Attach file\"),HYPERLINK(\"#'Attachments'!G65\",\"Attach file\"))","v":"Attach file"}]
[]
[null,null,null,{"$f":"IF(D64=\"False\",\"Does not equal Form 1EBS Line 5(c)\",\"\")","v":""},null,{"$f":"IF(F64=\"False\",\"Does not equal Form 1EBS Line 5(c)\",\"\")","v":""}]
[]
[]
[]
[]
[]
[]
[null,null,null,{"$f":"IF(D8=\"\",\"\",TEXT(DATE(YEAR(D8+1)-1,MONTH(D8+1),DAY(D8+1)),\"mm/dd/yyyy\"))","v":"01/01/2019"},null,{"$f":"IF(F8=\"\",\"\",TEXT(DATE(YEAR(F8+1)-1,MONTH(F8+1),DAY(F8+1)),\"mm/dd/yyyy\"))","v":"01/01/2018"}]
[null,null,null,{"$f":"IF(D8=\"\",\"\",TEXT(D8,\"mm/dd/yyyy\"))","v":"12/31/2019"},null,{"$f":"IF(F8=\"\",\"\",TEXT(F8,\"mm/dd/yyyy\"))","v":"12/31/2018"}]
[null,null,null,"brrt_BondsAndDebentures",null,"brrt_BondsAndDebentures",null,"brrt_BondsAndDebentures",null,"brrt_BondsAndDebentures",null,"brrt_BondsAndDebentures",null,"brrt_BondsAndDebentures",null,"brrt_BondsAndDebentures",null,"brrt_BondsAndDebentures",null,"brrt_BondsAndDebentures",null,"brrt_BondsAndDebentures"]
[null,null,null,"brrt_SecurityTypeAxis_brrt_CorporateSovereignBondsMember",null,"brrt_SecurityTypeAxis_brrt_CorporateSovereignBondsMember",null,"brrt_SecurityTypeAxis_brrt_ResidentialMortgageBackedSecuritiesMember",null,"brrt_SecurityTypeAxis_brrt_ResidentialMortgageBackedSecuritiesMember",null,"brrt_SecurityTypeAxis_brrt_CommercialMortgageBackedSecuritiesAssetBackedSecuritiesMember",null,"brrt_SecurityTypeAxis_brrt_CommercialMortgageBackedSecuritiesAssetBackedSecuritiesMember",null,"brrt_SecurityTypeAxis_brrt_MutualFundsMember",null,"brrt_SecurityTypeAxis_brrt_MutualFundsMember",null,"brrt_SecurityTypeAxis_brrt_TotalMember",null,"brrt_SecurityTypeAxis_brrt_TotalMember"]
[null,null,null,{"$f":"XBRLMap(D12,D$77&\".\"&$Y12&\".\"&$D$78,$D$75,$D$76,CONFIGURATION!$B$10,\"BMA\",CONFIGURATION!$B$1,\"bscr\",CONFIGURATION!$B$12)","v":"Mapped"},null,{"$f":"XBRLMap(F12,F$77&\".\"&$Y12&\".\"&$F$78,$F$75,$F$76,CONFIGURATION!$B$10,\"BMA\",CONFIGURATION!$B$1,\"bscr\",CONFIGURATION!$B$12)","v":"Mapped"},null,null,null,null,null,null,null,null,null,{"$f":"XBRLMap(P12,P$77&\".\"&$Y12&\".\"&$P$78,$D$75,$D$76,CONFIGURATION!$B$10,\"BMA\",CONFIGURATION!$B$1,\"bscr\",CONFIGURATION!$B$12)","v":"Mapped"},null,{"$f":"XBRLMap(R12,R$77&\".\"&$Y12&\".\"&$R$78,$F$75,$F$76,CONFIGURATION!$B$10,\"BMA\",CONFIGURATION!$B$1,\"bscr\",CONFIGURATION!$B$12)","v":"Mapped"},null,{"$f":"XBRLMap(T12,T$77&\".\"&$Y12&\".\"&$T$78,$D$75,$D$76,CONFIGURATION!$B$10,\"BMA\",CONFIGURATION!$B$1,\"bscr\",CONFIGURATION!$B$12)","v":"Mapped"},null,{"$f":"XBRLMap(V12,V$77&\".\"&$Y12&\".\"&$V$78,$F$75,$F$76,CONFIGURATION!$B$10,\"BMA\",CONFIGURATION!$B$1,\"bscr\",CONFIGURATION!$B$12)","v":"Mapped"}]
[null,null,null,{"$f":"XBRLMap(D13,D$77&\".\"&$Y13&\".\"&$D$78,$D$75,$D$76,CONFIGURATION!$B$10,\"BMA\",CONFIGURATION!$B$1,\"bscr\",CONFIGURATION!$B$12)","v":"Mapped"},null,{"$f":"XBRLMap(F13,F$77&\".\"&$Y13&\".\"&$F$78,$F$75,$F$76,CONFIGURATION!$B$10,\"BMA\",CONFIGURATION!$B$1,\"bscr\",CONFIGURATION!$B$12)","v":"Mapped"},null,{"$f":"XBRLMap(H13,H$77&\".\"&$Y13&\".\"&$H$78,$D$75,$D$76,CONFIGURATION!$B$10,\"BMA\",CONFIGURATION!$B$1,\"bscr\",CONFIGURATION!$B$12)","v":"Mapped"},null,{"$f":"XBRLMap(J13,J$77&\".\"&$Y13&\".\"&$J$78,$F$75,$F$76,CONFIGURATION!$B$10,\"BMA\",CONFIGURATION!$B$1,\"bscr\",CONFIGURATION!$B$12)","v":"Mapped"},null,{"$f":"XBRLMap(L13,L$77&\".\"&$Y13&\".\"&$L$78,$D$75,$D$76,CONFIGURATION!$B$10,\"BMA\",CONFIGURATION!$B$1,\"bscr\",CONFIGURATION!$B$12)","v":"Mapped"},null,{"$f":"XBRLMap(N13,N$77&\".\"&$Y13&\".\"&$N$78,$F$75,$F$76,CONFIGURATION!$B$10,\"BMA\",CONFIGURATION!$B$1,\"bscr\",CONFIGURATION!$B$12)","v":"Mapped"},null,{"$f":"XBRLMap(P13,P$77&\".\"&$Y13&\".\"&$P$78,$D$75,$D$76,CONFIGURATION!$B$10,\"BMA\",CONFIGURATION!$B$1,\"bscr\",CONFIGURATION!$B$12)","v":"Mapped"},null,{"$f":"XBRLMap(R13,R$77&\".\"&$Y13&\".\"&$R$78,$F$75,$F$76,CONFIGURATION!$B$10,\"BMA\",CONFIGURATION!$B$1,\"bscr\",CONFIGURATION!$B$12)","v":"Mapped"},null,{"$f":"XBRLMap(T13,T$77&\".\"&$Y13&\".\"&$T$78,$D$75,$D$76,CONFIGURATION!$B$10,\"BMA\",CONFIGURATION!$B$1,\"bscr\",CONFIGURATION!$B$12)","v":"Mapped"},null,{"$f":"XBRLMap(V13,V$77&\".\"&$Y13&\".\"&$V$78,$F$75,$F$76,CONFIGURATION!$B$10,\"BMA\",CONFIGURATION!$B$1,\"bscr\",CONFIGURATION!$B$12)","v":"Mapped"}]
[null,null,null,{"$f":"XBRLMap(D14,D$77&\".\"&$Y14&\".\"&$D$78,$D$75,$D$76,CONFIGURATION!$B$10,\"BMA\",CONFIGURATION!$B$1,\"bscr\",CONFIGURATION!$B$12)","v":"Mapped"},null,{"$f":"XBRLMap(F14,F$77&\".\"&$Y14&\".\"&$F$78,$F$75,$F$76,CONFIGURATION!$B$10,\"BMA\",CONFIGURATION!$B$1,\"bscr\",CONFIGURATION!$B$12)","v":"Mapped"},null,{"$f":"XBRLMap(H14,H$77&\".\"&$Y14&\".\"&$H$78,$D$75,$D$76,CONFIGURATION!$B$10,\"BMA\",CONFIGURATION!$B$1,\"bscr\",CONFIGURATION!$B$12)","v":"Mapped"},null,{"$f":"XBRLMap(J14,J$77&\".\"&$Y14&\".\"&$J$78,$F$75,$F$76,CONFIGURATION!$B$10,\"BMA\",CONFIGURATION!$B$1,\"bscr\",CONFIGURATION!$B$12)","v":"Mapped"},null,{"$f":"XBRLMap(L14,L$77&\".\"&$Y14&\".\"&$L$78,$D$75,$D$76,CONFIGURATION!$B$10,\"BMA\",CONFIGURATION!$B$1,\"bscr\",CONFIGURATION!$B$12)","v":"Mapped"},null,{"$f":"XBRLMap(N14,N$77&\".\"&$Y14&\".\"&$N$78,$F$75,$F$76,CONFIGURATION!$B$10,\"BMA\",CONFIGURATION!$B$1,\"bscr\",CONFIGURATION!$B$12)","v":"Mapped"},null,{"$f":"XBRLMap(P14,P$77&\".\"&$Y14&\".\"&$P$78,$D$75,$D$76,CONFIGURATION!$B$10,\"BMA\",CONFIGURATION!$B$1,\"bscr\",CONFIGURATION!$B$12)","v":"Mapped"},null,{"$f":"XBRLMap(R14,R$77&\".\"&$Y14&\".\"&$R$78,$F$75,$F$76,CONFIGURATION!$B$10,\"BMA\",CONFIGURATION!$B$1,\"bscr\",CONFIGURATION!$B$12)","v":"Mapped"},null,{"$f":"XBRLMap(T14,T$77&\".\"&$Y14&\".\"&$T$78,$D$75,$D$76,CONFIGURATION!$B$10,\"BMA\",CONFIGURATION!$B$1,\"bscr\",CONFIGURATION!$B$12)","v":"Mapped"},null,{"$f":"XBRLMap(V14,V$77&\".\"&$Y14&\".\"&$V$78,$F$75,$F$76,CONFIGURATION!$B$10,\"BMA\",CONFIGURATION!$B$1,\"bscr\",CONFIGURATION!$B$12)","v":"Mapped"}]
[null,null,null,{"$f":"XBRLMap(D15,D$77&\".\"&$Y15&\".\"&$D$78,$D$75,$D$76,CONFIGURATION!$B$10,\"BMA\",CONFIGURATION!$B$1,\"bscr\",CONFIGURATION!$B$12)","v":"Mapped"},null,{"$f":"XBRLMap(F15,F$77&\".\"&$Y15&\".\"&$F$78,$F$75,$F$76,CONFIGURATION!$B$10,\"BMA\",CONFIGURATION!$B$1,\"bscr\",CONFIGURATION!$B$12)","v":"Mapped"},null,{"$f":"XBRLMap(H15,H$77&\".\"&$Y15&\".\"&$H$78,$D$75,$D$76,CONFIGURATION!$B$10,\"BMA\",CONFIGURATION!$B$1,\"bscr\",CONFIGURATION!$B$12)","v":"Mapped"},null,{"$f":"XBRLMap(J15,J$77&\".\"&$Y15&\".\"&$J$78,$F$75,$F$76,CONFIGURATION!$B$10,\"BMA\",CONFIGURATION!$B$1,\"bscr\",CONFIGURATION!$B$12)","v":"Mapped"},null,{"$f":"XBRLMap(L15,L$77&\".\"&$Y15&\".\"&$L$78,$D$75,$D$76,CONFIGURATION!$B$10,\"BMA\",CONFIGURATION!$B$1,\"bscr\",CONFIGURATION!$B$12)","v":"Mapped"},null,{"$f":"XBRLMap(N15,N$77&\".\"&$Y15&\".\"&$N$78,$F$75,$F$76,CONFIGURATION!$B$10,\"BMA\",CONFIGURATION!$B$1,\"bscr\",CONFIGURATION!$B$12)","v":"Mapped"},null,{"$f":"XBRLMap(P15,P$77&\".\"&$Y15&\".\"&$P$78,$D$75,$D$76,CONFIGURATION!$B$10,\"BMA\",CONFIGURATION!$B$1,\"bscr\",CONFIGURATION!$B$12)","v":"Mapped"},null,{"$f":"XBRLMap(R15,R$77&\".\"&$Y15&\".\"&$R$78,$F$75,$F$76,CONFIGURATION!$B$10,\"BMA\",CONFIGURATION!$B$1,\"bscr\",CONFIGURATION!$B$12)","v":"Mapped"},null,{"$f":"XBRLMap(T15,T$77&\".\"&$Y15&\".\"&$T$78,$D$75,$D$76,CONFIGURATION!$B$10,\"BMA\",CONFIGURATION!$B$1,\"bscr\",CONFIGURATION!$B$12)","v":"Mapped"},null,{"$f":"XBRLMap(V15,V$77&\".\"&$Y15&\".\"&$V$78,$F$75,$F$76,CONFIGURATION!$B$10,\"BMA\",CONFIGURATION!$B$1,\"bscr\",CONFIGURATION!$B$12)","v":"Mapped"}]
[null,null,null,{"$f":"XBRLMap(D16,D$77&\".\"&$Y16&\".\"&$D$78,$D$75,$D$76,CONFIGURATION!$B$10,\"BMA\",CONFIGURATION!$B$1,\"bscr\",CONFIGURATION!$B$12)","v":"Mapped"},null,{"$f":"XBRLMap(F16,F$77&\".\"&$Y16&\".\"&$F$78,$F$75,$F$76,CONFIGURATION!$B$10,\"BMA\",CONFIGURATION!$B$1,\"bscr\",CONFIGURATION!$B$12)","v":"Mapped"},null,{"$f":"XBRLMap(H16,H$77&\".\"&$Y16&\".\"&$H$78,$D$75,$D$76,CONFIGURATION!$B$10,\"BMA\",CONFIGURATION!$B$1,\"bscr\",CONFIGURATION!$B$12)","v":"Mapped"},null,{"$f":"XBRLMap(J16,J$77&\".\"&$Y16&\".\"&$J$78,$F$75,$F$76,CONFIGURATION!$B$10,\"BMA\",CONFIGURATION!$B$1,\"bscr\",CONFIGURATION!$B$12)","v":"Mapped"},null,{"$f":"XBRLMap(L16,L$77&\".\"&$Y16&\".\"&$L$78,$D$75,$D$76,CONFIGURATION!$B$10,\"BMA\",CONFIGURATION!$B$1,\"bscr\",CONFIGURATION!$B$12)","v":"Mapped"},null,{"$f":"XBRLMap(N16,N$77&\".\"&$Y16&\".\"&$N$78,$F$75,$F$76,CONFIGURATION!$B$10,\"BMA\",CONFIGURATION!$B$1,\"bscr\",CONFIGURATION!$B$12)","v":"Mapped"},null,{"$f":"XBRLMap(P16,P$77&\".\"&$Y16&\".\"&$P$78,$D$75,$D$76,CONFIGURATION!$B$10,\"BMA\",CONFIGURATION!$B$1,\"bscr\",CONFIGURATION!$B$12)","v":"Mapped"},null,{"$f":"XBRLMap(R16,R$77&\".\"&$Y16&\".\"&$R$78,$F$75,$F$76,CONFIGURATION!$B$10,\"BMA\",CONFIGURATION!$B$1,\"bscr\",CONFIGURATION!$B$12)","v":"Mapped"},null,{"$f":"XBRLMap(T16,T$77&\".\"&$Y16&\".\"&$T$78,$D$75,$D$76,CONFIGURATION!$B$10,\"BMA\",CONFIGURATION!$B$1,\"bscr\",CONFIGURATION!$B$12)","v":"Mapped"},null,{"$f":"XBRLMap(V16,V$77&\".\"&$Y16&\".\"&$V$78,$F$75,$F$76,CONFIGURATION!$B$10,\"BMA\",CONFIGURATION!$B$1,\"bscr\",CONFIGURATION!$B$12)","v":"Mapped"}]
[null,null,null,{"$f":"XBRLMap(D17,D$77&\".\"&$Y17&\".\"&$D$78,$D$75,$D$76,CONFIGURATION!$B$10,\"BMA\",CONFIGURATION!$B$1,\"bscr\",CONFIGURATION!$B$12)","v":"Mapped"},null,{"$f":"XBRLMap(F17,F$77&\".\"&$Y17&\".\"&$F$78,$F$75,$F$76,CONFIGURATION!$B$10,\"BMA\",CONFIGURATION!$B$1,\"bscr\",CONFIGURATION!$B$12)","v":"Mapped"},null,{"$f":"XBRLMap(H17,H$77&\".\"&$Y17&\".\"&$H$78,$D$75,$D$76,CONFIGURATION!$B$10,\"BMA\",CONFIGURATION!$B$1,\"bscr\",CONFIGURATION!$B$12)","v":"Mapped"},null,{"$f":"XBRLMap(J17,J$77&\".\"&$Y17&\".\"&$J$78,$F$75,$F$76,CONFIGURATION!$B$10,\"BMA\",CONFIGURATION!$B$1,\"bscr\",CONFIGURATION!$B$12)","v":"Mapped"},null,{"$f":"XBRLMap(L17,L$77&\".\"&$Y17&\".\"&$L$78,$D$75,$D$76,CONFIGURATION!$B$10,\"BMA\",CONFIGURATION!$B$1,\"bscr\",CONFIGURATION!$B$12)","v":"Mapped"},null,{"$f":"XBRLMap(N17,N$77&\".\"&$Y17&\".\"&$N$78,$F$75,$F$76,CONFIGURATION!$B$10,\"BMA\",CONFIGURATION!$B$1,\"bscr\",CONFIGURATION!$B$12)","v":"Mapped"},null,{"$f":"XBRLMap(P17,P$77&\".\"&$Y17&\".\"&$P$78,$D$75,$D$76,CONFIGURATION!$B$10,\"BMA\",CONFIGURATION!$B$1,\"bscr\",CONFIGURATION!$B$12)","v":"Mapped"},null,{"$f":"XBRLMap(R17,R$77&\".\"&$Y17&\".\"&$R$78,$F$75,$F$76,CONFIGURATION!$B$10,\"BMA\",CONFIGURATION!$B$1,\"bscr\",CONFIGURATION!$B$12)","v":"Mapped"},null,{"$f":"XBRLMap(T17,T$77&\".\"&$Y17&\".\"&$T$78,$D$75,$D$76,CONFIGURATION!$B$10,\"BMA\",CONFIGURATION!$B$1,\"bscr\",CONFIGURATION!$B$12)","v":"Mapped"},null,{"$f":"XBRLMap(V17,V$77&\".\"&$Y17&\".\"&$V$78,$F$75,$F$76,CONFIGURATION!$B$10,\"BMA\",CONFIGURATION!$B$1,\"bscr\",CONFIGURATION!$B$12)","v":"Mapped"}]
[null,null,null,{"$f":"XBRLMap(D18,D$77&\".\"&$Y18&\".\"&$D$78,$D$75,$D$76,CONFIGURATION!$B$10,\"BMA\",CONFIGURATION!$B$1,\"bscr\",CONFIGURATION!$B$12)","v":"Mapped"},null,{"$f":"XBRLMap(F18,F$77&\".\"&$Y18&\".\"&$F$78,$F$75,$F$76,CONFIGURATION!$B$10,\"BMA\",CONFIGURATION!$B$1,\"bscr\",CONFIGURATION!$B$12)","v":"Mapped"},null,{"$f":"XBRLMap(H18,H$77&\".\"&$Y18&\".\"&$H$78,$D$75,$D$76,CONFIGURATION!$B$10,\"BMA\",CONFIGURATION!$B$1,\"bscr\",CONFIGURATION!$B$12)","v":"Mapped"},null,{"$f":"XBRLMap(J18,J$77&\".\"&$Y18&\".\"&$J$78,$F$75,$F$76,CONFIGURATION!$B$10,\"BMA\",CONFIGURATION!$B$1,\"bscr\",CONFIGURATION!$B$12)","v":"Mapped"},null,{"$f":"XBRLMap(L18,L$77&\".\"&$Y18&\".\"&$L$78,$D$75,$D$76,CONFIGURATION!$B$10,\"BMA\",CONFIGURATION!$B$1,\"bscr\",CONFIGURATION!$B$12)","v":"Mapped"},null,{"$f":"XBRLMap(N18,N$77&\".\"&$Y18&\".\"&$N$78,$F$75,$F$76,CONFIGURATION!$B$10,\"BMA\",CONFIGURATION!$B$1,\"bscr\",CONFIGURATION!$B$12)","v":"Mapped"},null,{"$f":"XBRLMap(P18,P$77&\".\"&$Y18&\".\"&$P$78,$D$75,$D$76,CONFIGURATION!$B$10,\"BMA\",CONFIGURATION!$B$1,\"bscr\",CONFIGURATION!$B$12)","v":"Mapped"},null,{"$f":"XBRLMap(R18,R$77&\".\"&$Y18&\".\"&$R$78,$F$75,$F$76,CONFIGURATION!$B$10,\"BMA\",CONFIGURATION!$B$1,\"bscr\",CONFIGURATION!$B$12)","v":"Mapped"},null,{"$f":"XBRLMap(T18,T$77&\".\"&$Y18&\".\"&$T$78,$D$75,$D$76,CONFIGURATION!$B$10,\"BMA\",CONFIGURATION!$B$1,\"bscr\",CONFIGURATION!$B$12)","v":"Mapped"},null,{"$f":"XBRLMap(V18,V$77&\".\"&$Y18&\".\"&$V$78,$F$75,$F$76,CONFIGURATION!$B$10,\"BMA\",CONFIGURATION!$B$1,\"bscr\",CONFIGURATION!$B$12)","v":"Mapped"}]
[null,null,null,{"$f":"XBRLMap(D19,D$77&\".\"&$Y19&\".\"&$D$78,$D$75,$D$76,CONFIGURATION!$B$10,\"BMA\",CONFIGURATION!$B$1,\"bscr\",CONFIGURATION!$B$12)","v":"Mapped"},null,{"$f":"XBRLMap(F19,F$77&\".\"&$Y19&\".\"&$F$78,$F$75,$F$76,CONFIGURATION!$B$10,\"BMA\",CONFIGURATION!$B$1,\"bscr\",CONFIGURATION!$B$12)","v":"Mapped"},null,{"$f":"XBRLMap(H19,H$77&\".\"&$Y19&\".\"&$H$78,$D$75,$D$76,CONFIGURATION!$B$10,\"BMA\",CONFIGURATION!$B$1,\"bscr\",CONFIGURATION!$B$12)","v":"Mapped"},null,{"$f":"XBRLMap(J19,J$77&\".\"&$Y19&\".\"&$J$78,$F$75,$F$76,CONFIGURATION!$B$10,\"BMA\",CONFIGURATION!$B$1,\"bscr\",CONFIGURATION!$B$12)","v":"Mapped"},null,{"$f":"XBRLMap(L19,L$77&\".\"&$Y19&\".\"&$L$78,$D$75,$D$76,CONFIGURATION!$B$10,\"BMA\",CONFIGURATION!$B$1,\"bscr\",CONFIGURATION!$B$12)","v":"Mapped"},null,{"$f":"XBRLMap(N19,N$77&\".\"&$Y19&\".\"&$N$78,$F$75,$F$76,CONFIGURATION!$B$10,\"BMA\",CONFIGURATION!$B$1,\"bscr\",CONFIGURATION!$B$12)","v":"Mapped"},null,{"$f":"XBRLMap(P19,P$77&\".\"&$Y19&\".\"&$P$78,$D$75,$D$76,CONFIGURATION!$B$10,\"BMA\",CONFIGURATION!$B$1,\"bscr\",CONFIGURATION!$B$12)","v":"Mapped"},null,{"$f":"XBRLMap(R19,R$77&\".\"&$Y19&\".\"&$R$78,$F$75,$F$76,CONFIGURATION!$B$10,\"BMA\",CONFIGURATION!$B$1,\"bscr\",CONFIGURATION!$B$12)","v":"Mapped"},null,{"$f":"XBRLMap(T19,T$77&\".\"&$Y19&\".\"&$T$78,$D$75,$D$76,CONFIGURATION!$B$10,\"BMA\",CONFIGURATION!$B$1,\"bscr\",CONFIGURATION!$B$12)","v":"Mapped"},null,{"$f":"XBRLMap(V19,V$77&\".\"&$Y19&\".\"&$V$78,$F$75,$F$76,CONFIGURATION!$B$10,\"BMA\",CONFIGURATION!$B$1,\"bscr\",CONFIGURATION!$B$12)","v":"Mapped"}]
[null,null,null,{"$f":"XBRLMap(D20,D$77&\".\"&$Y20&\".\"&$D$78,$D$75,$D$76,CONFIGURATION!$B$10,\"BMA\",CONFIGURATION!$B$1,\"bscr\",CONFIGURATION!$B$12)","v":"Mapped"},null,{"$f":"XBRLMap(F20,F$77&\".\"&$Y20&\".\"&$F$78,$F$75,$F$76,CONFIGURATION!$B$10,\"BMA\",CONFIGURATION!$B$1,\"bscr\",CONFIGURATION!$B$12)","v":"Mapped"},null,{"$f":"XBRLMap(H20,H$77&\".\"&$Y20&\".\"&$H$78,$D$75,$D$76,CONFIGURATION!$B$10,\"BMA\",CONFIGURATION!$B$1,\"bscr\",CONFIGURATION!$B$12)","v":"Mapped"},null,{"$f":"XBRLMap(J20,J$77&\".\"&$Y20&\".\"&$J$78,$F$75,$F$76,CONFIGURATION!$B$10,\"BMA\",CONFIGURATION!$B$1,\"bscr\",CONFIGURATION!$B$12)","v":"Mapped"},null,{"$f":"XBRLMap(L20,L$77&\".\"&$Y20&\".\"&$L$78,$D$75,$D$76,CONFIGURATION!$B$10,\"BMA\",CONFIGURATION!$B$1,\"bscr\",CONFIGURATION!$B$12)","v":"Mapped"},null,{"$f":"XBRLMap(N20,N$77&\".\"&$Y20&\".\"&$N$78,$F$75,$F$76,CONFIGURATION!$B$10,\"BMA\",CONFIGURATION!$B$1,\"bscr\",CONFIGURATION!$B$12)","v":"Mapped"},null,{"$f":"XBRLMap(P20,P$77&\".\"&$Y20&\".\"&$P$78,$D$75,$D$76,CONFIGURATION!$B$10,\"BMA\",CONFIGURATION!$B$1,\"bscr\",CONFIGURATION!$B$12)","v":"Mapped"},null,{"$f":"XBRLMap(R20,R$77&\".\"&$Y20&\".\"&$R$78,$F$75,$F$76,CONFIGURATION!$B$10,\"BMA\",CONFIGURATION!$B$1,\"bscr\",CONFIGURATION!$B$12)","v":"Mapped"},null,{"$f":"XBRLMap(T20,T$77&\".\"&$Y20&\".\"&$T$78,$D$75,$D$76,CONFIGURATION!$B$10,\"BMA\",CONFIGURATION!$B$1,\"bscr\",CONFIGURATION!$B$12)","v":"Mapped"},null,{"$f":"XBRLMap(V20,V$77&\".\"&$Y20&\".\"&$V$78,$F$75,$F$76,CONFIGURATION!$B$10,\"BMA\",CONFIGURATION!$B$1,\"bscr\",CONFIGURATION!$B$12)","v":"Mapped"}]
[]
[null,null,null,{"$f":"XBRLMap(D22,D$77&\".\"&$Y22&\".\"&$D$78,$D$75,$D$76,CONFIGURATION!$B$10,\"BMA\",CONFIGURATION!$B$1,\"bscr\",CONFIGURATION!$B$12)","v":"Mapped"},null,{"$f":"XBRLMap(F22,F$77&\".\"&$Y22&\".\"&$F$78,$F$75,$F$76,CONFIGURATION!$B$10,\"BMA\",CONFIGURATION!$B$1,\"bscr\",CONFIGURATION!$B$12)","v":"Mapped"},null,{"$f":"XBRLMap(H22,H$77&\".\"&$Y22&\".\"&$H$78,$D$75,$D$76,CONFIGURATION!$B$10,\"BMA\",CONFIGURATION!$B$1,\"bscr\",CONFIGURATION!$B$12)","v":"Mapped"},null,{"$f":"XBRLMap(J22,J$77&\".\"&$Y22&\".\"&$J$78,$F$75,$F$76,CONFIGURATION!$B$10,\"BMA\",CONFIGURATION!$B$1,\"bscr\",CONFIGURATION!$B$12)","v":"Mapped"},null,{"$f":"XBRLMap(L22,L$77&\".\"&$Y22&\".\"&$L$78,$D$75,$D$76,CONFIGURATION!$B$10,\"BMA\",CONFIGURATION!$B$1,\"bscr\",CONFIGURATION!$B$12)","v":"Mapped"},null,{"$f":"XBRLMap(N22,N$77&\".\"&$Y22&\".\"&$N$78,$F$75,$F$76,CONFIGURATION!$B$10,\"BMA\",CONFIGURATION!$B$1,\"bscr\",CONFIGURATION!$B$12)","v":"Mapped"},null,{"$f":"XBRLMap(P22,P$77&\".\"&$Y22&\".\"&$P$78,$D$75,$D$76,CONFIGURATION!$B$10,\"BMA\",CONFIGURATION!$B$1,\"bscr\",CONFIGURATION!$B$12)","v":"Mapped"},null,{"$f":"XBRLMap(R22,R$77&\".\"&$Y22&\".\"&$R$78,$F$75,$F$76,CONFIGURATION!$B$10,\"BMA\",CONFIGURATION!$B$1,\"bscr\",CONFIGURATION!$B$12)","v":"Mapped"},null,{"$f":"XBRLMap(T22,T$77&\".\"&$Y22&\".\"&$T$78,$D$75,$D$76,CONFIGURATION!$B$10,\"BMA\",CONFIGURATION!$B$1,\"bscr\",CONFIGURATION!$B$12)","v":"Mapped"},null,{"$f":"XBRLMap(V22,V$77&\".\"&$Y22&\".\"&$V$78,$F$75,$F$76,CONFIGURATION!$B$10,\"BMA\",CONFIGURATION!$B$1,\"bscr\",CONFIGURATION!$B$12)","v":"Mapped"}]
[null,null,null,null,null,null,null,null,null,null,null,null,null,null,null,null,null,null,null,"brrt_QuotedInvestmentsEquitiesCommonStocksMutualFunds",null,"brrt_QuotedInvestmentsEquitiesCommonStocksMutualFunds"]
[null,null,null,null,null,null,null,null,null,null,null,null,null,null,null,null,null,null,null,"brrt_UnquotedInvestmentsEquitiesCommonStocksMutualFunds",null,"brrt_UnquotedInvestmentsEquitiesCommonStocksMutualFunds"]
[null,null,null,"brrt_EquitiesCommonStocks",null,"brrt_EquitiesCommonStocks",null,"brrt_EquitiesPreferredStocks",null,"brrt_EquitiesPreferredStocks",null,"brrt_EquitiesMutualFunds",null,"brrt_EquitiesMutualFunds",null,null,null,null,null,"brrt_Equities",null,"brrt_Equities"]
[null,null,null,null,null,null,null,{"$f":"XBRLMap(H33,H$92&\".\"&$Y33,$D$75,$D$76,CONFIGURATION!$B$10,\"BMA\",CONFIGURATION!$B$1,\"bscr\",CONFIGURATION!$B$12)","v":"Mapped"},null,{"$f":"XBRLMap(J33,J$92&\".\"&$Y33,$F$75,$F$76,CONFIGURATION!$B$10,\"BMA\",CONFIGURATION!$B$1,\"bscr\",CONFIGURATION!$B$12)","v":"Mapped"},null,null,null,null,null,null,null,null,null,"The same data point as in column H",null,"The same data point as in column J"]
[null,null,null,null,null,null,null,{"$f":"XBRLMap(H34,H$92&\".\"&$Y34,$D$75,$D$76,CONFIGURATION!$B$10,\"BMA\",CONFIGURATION!$B$1,\"bscr\",CONFIGURATION!$B$12)","v":"Mapped"},null,{"$f":"XBRLMap(J34,J$92&\".\"&$Y34,$F$75,$F$76,CONFIGURATION!$B$10,\"BMA\",CONFIGURATION!$B$1,\"bscr\",CONFIGURATION!$B$12)","v":"Mapped"},null,null,null,null,null,null,null,null,null,"The same data point as in column H",null,"The same data point as in column J"]
[null,null,null,null,null,null,null,{"$f":"XBRLMap(H35,H$92&\".\"&$Y35,$D$75,$D$76,CONFIGURATION!$B$10,\"BMA\",CONFIGURATION!$B$1,\"bscr\",CONFIGURATION!$B$12)","v":"Mapped"},null,{"$f":"XBRLMap(J35,J$92&\".\"&$Y35,$F$75,$F$76,CONFIGURATION!$B$10,\"BMA\",CONFIGURATION!$B$1,\"bscr\",CONFIGURATION!$B$12)","v":"Mapped"},null,null,null,null,null,null,null,null,null,"The same data point as in column H",null,"The same data point as in column J"]
[null,null,null,null,null,null,null,{"$f":"XBRLMap(H36,H$92&\".\"&$Y36,$D$75,$D$76,CONFIGURATION!$B$10,\"BMA\",CONFIGURATION!$B$1,\"bscr\",CONFIGURATION!$B$12)","v":"Mapped"},null,{"$f":"XBRLMap(J36,J$92&\".\"&$Y36,$F$75,$F$76,CONFIGURATION!$B$10,\"BMA\",CONFIGURATION!$B$1,\"bscr\",CONFIGURATION!$B$12)","v":"Mapped"},null,null,null,null,null,null,null,null,null,"The same data point as in column H",null,"The same data point as in column J"]
[null,null,null,null,null,null,null,{"$f":"XBRLMap(H37,H$92&\".\"&$Y37,$D$75,$D$76,CONFIGURATION!$B$10,\"BMA\",CONFIGURATION!$B$1,\"bscr\",CONFIGURATION!$B$12)","v":"Mapped"},null,{"$f":"XBRLMap(J37,J$92&\".\"&$Y37,$F$75,$F$76,CONFIGURATION!$B$10,\"BMA\",CONFIGURATION!$B$1,\"bscr\",CONFIGURATION!$B$12)","v":"Mapped"},null,null,null,null,null,null,null,null,null,"The same data point as in column H",null,"The same data point as in column J"]
[null,null,null,null,null,null,null,{"$f":"XBRLMap(H38,H$92&\".\"&$Y38,$D$75,$D$76,CONFIGURATION!$B$10,\"BMA\",CONFIGURATION!$B$1,\"bscr\",CONFIGURATION!$B$12)","v":"Mapped"},null,{"$f":"XBRLMap(J38,J$92&\".\"&$Y38,$F$75,$F$76,CONFIGURATION!$B$10,\"BMA\",CONFIGURATION!$B$1,\"bscr\",CONFIGURATION!$B$12)","v":"Mapped"},null,null,null,null,null,null,null,null,null,"The same data point as in column H",null,"The same data point as in column J"]
[null,null,null,null,null,null,null,{"$f":"XBRLMap(H39,H$92&\".\"&$Y39,$D$75,$D$76,CONFIGURATION!$B$10,\"BMA\",CONFIGURATION!$B$1,\"bscr\",CONFIGURATION!$B$12)","v":"Mapped"},null,{"$f":"XBRLMap(J39,J$92&\".\"&$Y39,$F$75,$F$76,CONFIGURATION!$B$10,\"BMA\",CONFIGURATION!$B$1,\"bscr\",CONFIGURATION!$B$12)","v":"Mapped"},null,null,null,null,null,null,null,null,null,"The same data point as in column H",null,"The same data point as in column J"]
[null,null,null,null,null,null,null,{"$f":"XBRLMap(H40,H$92&\".\"&$Y40,$D$75,$D$76,CONFIGURATION!$B$10,\"BMA\",CONFIGURATION!$B$1,\"bscr\",CONFIGURATION!$B$12)","v":"Mapped"},null,{"$f":"XBRLMap(J40,J$92&\".\"&$Y40,$F$75,$F$76,CONFIGURATION!$B$10,\"BMA\",CONFIGURATION!$B$1,\"bscr\",CONFIGURATION!$B$12)","v":"Mapped"},null,null,null,null,null,null,null,null,null,"The same data point as in column H",null,"The same data point as in column J"]
[null,null,null,"Already mapped in Form 4",null,"Already mapped in Form 4",null,null,null,null,null,"Already mapped in Form 4",null,"Already mapped in Form 4",null,null,null,null,null,{"$f":"XBRLMap(T41,T$90,$D$75,$D$76,CONFIGURATION!$B$10,\"BMA\",CONFIGURATION!$B$1,\"bscr\",CONFIGURATION!$B$12)","v":"Mapped"},null,{"$f":"XBRLMap(V41,V$90,$F$75,$F$76,CONFIGURATION!$B$10,\"BMA\",CONFIGURATION!$B$1,\"bscr\",CONFIGURATION!$B$12)","v":"Mapped"}]
[null,null,null,"Already mapped in Form 4",null,"Already mapped in Form 4",null,null,null,null,null,"Already mapped in Form 4",null,"Already mapped in Form 4",null,null,null,null,null,{"$f":"XBRLMap(T42,T$91,$D$75,$D$76,CONFIGURATION!$B$10,\"BMA\",CONFIGURATION!$B$1,\"bscr\",CONFIGURATION!$B$12)","v":"Mapped"},null,{"$f":"XBRLMap(V42,V$91,$F$75,$F$76,CONFIGURATION!$B$10,\"BMA\",CONFIGURATION!$B$1,\"bscr\",CONFIGURATION!$B$12)","v":"Mapped"}]
[null,null,null,{"$f":"XBRLMap(D44,D$92,$D$75,$D$76,CONFIGURATION!$B$10,\"BMA\",CONFIGURATION!$B$1,\"bscr\",CONFIGURATION!$B$12)","v":"Mapped"},null,{"$f":"XBRLMap(F44,F$92,$F$75,$F$76,CONFIGURATION!$B$10,\"BMA\",CONFIGURATION!$B$1,\"bscr\",CONFIGURATION!$B$12)","v":"Mapped"},null,{"$f":"XBRLMap(H44,H$92&\".\"&$Y44,$D$75,$D$76,CONFIGURATION!$B$10,\"BMA\",CONFIGURATION!$B$1,\"bscr\",CONFIGURATION!$B$12)","v":"Mapped"},null,{"$f":"XBRLMap(J44,J$92&\".\"&$Y44,$F$75,$F$76,CONFIGURATION!$B$10,\"BMA\",CONFIGURATION!$B$1,\"bscr\",CONFIGURATION!$B$12)","v":"Mapped"},null,{"$f":"XBRLMap(L44,L$92,$D$75,$D$76,CONFIGURATION!$B$10,\"BMA\",CONFIGURATION!$B$1,\"bscr\",CONFIGURATION!$B$12)","v":"Mapped"},null,{"$f":"XBRLMap(N44,N$92,$F$75,$F$76,CONFIGURATION!$B$10,\"BMA\",CONFIGURATION!$B$1,\"bscr\",CONFIGURATION!$B$12)","v":"Mapped"},null,null,null,null,null,{"$f":"XBRLMap(T44,T$92,$D$75,$D$76,CONFIGURATION!$B$10,\"BMA\",CONFIGURATION!$B$1,\"bscr\",CONFIGURATION!$B$12)","v":"Mapped"},null,{"$f":"XBRLMap(V44,V$92,$F$75,$F$76,CONFIGURATION!$B$10,\"BMA\",CONFIGURATION!$B$1,\"bscr\",CONFIGURATION!$B$12)","v":"Mapped"}]
[]
[]
[]
[null,null,null,null,null,null,null,null,null,null,null,"brrt_BondsAndDebentures",null,"brrt_BondsAndDebentures",null,"brrt_BondsAndDebentures",null,"brrt_BondsAndDebentures"]
[null,null,null,null,null,null,null,null,null,null,null,"brrt_SecurityTypeAxis_brrt_ResidentialMortgageBackedSecuritiesMember",null,"brrt_SecurityTypeAxis_brrt_ResidentialMortgageBackedSecuritiesMember",null,"brrt_SecurityTypeAxis_brrt_CommercialMortgageBackedSecuritiesAssetBackedSecuritiesMember",null,"brrt_SecurityTypeAxis_brrt_CommercialMortgageBackedSecuritiesAssetBackedSecuritiesMember"]
[null,null,null,null,null,null,null,null,null,null,null,"brrt_ClassificationAxis_brrt_OriginalClassificationMember",null,"brrt_ClassificationAxis_brrt_RevisedClassificationMember",null,"brrt_ClassificationAxis_brrt_OriginalClassificationMember",null,"brrt_ClassificationAxis_brrt_RevisedClassificationMember"]
[null,null,null,null,null,null,null,null,null,null,null,{"$f":"XBRLMap(L55,L$107&\".\"&$AB55&\".\"&$L$108&\".\"&$L$109,$D$75,$D$76,CONFIGURATION!$B$10,\"BMA\",CONFIGURATION!$B$1,\"bscr\",CONFIGURATION!$B$12)","v":"Mapped"},null,{"$f":"XBRLMap(N55,N$107&\".\"&$AB55&\".\"&$N$108&\".\"&$N$109,$D$75,$D$76,CONFIGURATION!$B$10,\"BMA\",CONFIGURATION!$B$1,\"bscr\",CONFIGURATION!$B$12)","v":"Mapped"},null,{"$f":"XBRLMap(P55,P$107&\".\"&$AB55&\".\"&$P$108&\".\"&$P$109,$D$75,$D$76,CONFIGURATION!$B$10,\"BMA\",CONFIGURATION!$B$1,\"bscr\",CONFIGURATION!$B$12)","v":"Mapped"},null,{"$f":"XBRLMap(R55,R$107&\".\"&$AB55&\".\"&$R$108&\".\"&$R$109,$D$75,$D$76,CONFIGURATION!$B$10,\"BMA\",CONFIGURATION!$B$1,\"bscr\",CONFIGURATION!$B$12)","v":"Mapped"}]
[null,null,null,null,null,null,null,null,null,null,null,{"$f":"XBRLMap(L45,L$107&\".\"&$AB56&\".\"&$L$108&\".\"&$L$109,$D$75,$D$76,CONFIGURATION!$B$10,\"BMA\",CONFIGURATION!$B$1,\"bscr\",CONFIGURATION!$B$12)","v":"Mapped"},null,{"$f":"XBRLMap(N56,N$107&\".\"&$AB56&\".\"&$N$108&\".\"&$N$109,$D$75,$D$76,CONFIGURATION!$B$10,\"BMA\",CONFIGURATION!$B$1,\"bscr\",CONFIGURATION!$B$12)","v":"Mapped"},null,{"$f":"XBRLMap(P56,P$107&\".\"&$AB56&\".\"&$P$108&\".\"&$P$109,$D$75,$D$76,CONFIGURATION!$B$10,\"BMA\",CONFIGURATION!$B$1,\"bscr\",CONFIGURATION!$B$12)","v":"Mapped"},null,{"$f":"XBRLMap(R56,R$107&\".\"&$AB56&\".\"&$R$108&\".\"&$R$109,$D$75,$D$76,CONFIGURATION!$B$10,\"BMA\",CONFIGURATION!$B$1,\"bscr\",CONFIGURATION!$B$12)","v":"Mapped"}]
[null,null,null,null,null,null,null,null,null,null,null,{"$f":"XBRLMap(L46,L$107&\".\"&$AB57&\".\"&$L$108&\".\"&$L$109,$D$75,$D$76,CONFIGURATION!$B$10,\"BMA\",CONFIGURATION!$B$1,\"bscr\",CONFIGURATION!$B$12)","v":"Mapped"},null,{"$f":"XBRLMap(N57,N$107&\".\"&$AB57&\".\"&$N$108&\".\"&$N$109,$D$75,$D$76,CONFIGURATION!$B$10,\"BMA\",CONFIGURATION!$B$1,\"bscr\",CONFIGURATION!$B$12)","v":"Mapped"},null,{"$f":"XBRLMap(P57,P$107&\".\"&$AB57&\".\"&$P$108&\".\"&$P$109,$D$75,$D$76,CONFIGURATION!$B$10,\"BMA\",CONFIGURATION!$B$1,\"bscr\",CONFIGURATION!$B$12)","v":"Mapped"},null,{"$f":"XBRLMap(R57,R$107&\".\"&$AB57&\".\"&$R$108&\".\"&$R$109,$D$75,$D$76,CONFIGURATION!$B$10,\"BMA\",CONFIGURATION!$B$1,\"bscr\",CONFIGURATION!$B$12)","v":"Mapped"}]
[null,null,null,null,null,null,null,null,null,null,null,{"$f":"XBRLMap(L47,L$107&\".\"&$AB58&\".\"&$L$108&\".\"&$L$109,$D$75,$D$76,CONFIGURATION!$B$10,\"BMA\",CONFIGURATION!$B$1,\"bscr\",CONFIGURATION!$B$12)","v":"Mapped"},null,{"$f":"XBRLMap(N58,N$107&\".\"&$AB58&\".\"&$N$108&\".\"&$N$109,$D$75,$D$76,CONFIGURATION!$B$10,\"BMA\",CONFIGURATION!$B$1,\"bscr\",CONFIGURATION!$B$12)","v":"Mapped"},null,{"$f":"XBRLMap(P58,P$107&\".\"&$AB58&\".\"&$P$108&\".\"&$P$109,$D$75,$D$76,CONFIGURATION!$B$10,\"BMA\",CONFIGURATION!$B$1,\"bscr\",CONFIGURATION!$B$12)","v":"Mapped"},null,{"$f":"XBRLMap(R58,R$107&\".\"&$AB58&\".\"&$R$108&\".\"&$R$109,$D$75,$D$76,CONFIGURATION!$B$10,\"BMA\",CONFIGURATION!$B$1,\"bscr\",CONFIGURATION!$B$12)","v":"Mapped"}]
[null,null,null,null,null,null,null,null,null,null,null,{"$f":"XBRLMap(L48,L$107&\".\"&$AB59&\".\"&$L$108&\".\"&$L$109,$D$75,$D$76,CONFIGURATION!$B$10,\"BMA\",CONFIGURATION!$B$1,\"bscr\",CONFIGURATION!$B$12)","v":"Mapped"},null,{"$f":"XBRLMap(N59,N$107&\".\"&$AB59&\".\"&$N$108&\".\"&$N$109,$D$75,$D$76,CONFIGURATION!$B$10,\"BMA\",CONFIGURATION!$B$1,\"bscr\",CONFIGURATION!$B$12)","v":"Mapped"},null,{"$f":"XBRLMap(P59,P$107&\".\"&$AB59&\".\"&$P$108&\".\"&$P$109,$D$75,$D$76,CONFIGURATION!$B$10,\"BMA\",CONFIGURATION!$B$1,\"bscr\",CONFIGURATION!$B$12)","v":"Mapped"},null,{"$f":"XBRLMap(R59,R$107&\".\"&$AB59&\".\"&$R$108&\".\"&$R$109,$D$75,$D$76,CONFIGURATION!$B$10,\"BMA\",CONFIGURATION!$B$1,\"bscr\",CONFIGURATION!$B$12)","v":"Mapped"}]
[null,null,null,null,null,null,null,null,null,null,null,{"$f":"XBRLMap(L49,L$107&\".\"&$AB60&\".\"&$L$108&\".\"&$L$109,$D$75,$D$76,CONFIGURATION!$B$10,\"BMA\",CONFIGURATION!$B$1,\"bscr\",CONFIGURATION!$B$12)","v":"Mapped"},null,{"$f":"XBRLMap(N60,N$107&\".\"&$AB60&\".\"&$N$108&\".\"&$N$109,$D$75,$D$76,CONFIGURATION!$B$10,\"BMA\",CONFIGURATION!$B$1,\"bscr\",CONFIGURATION!$B$12)","v":"Mapped"},null,{"$f":"XBRLMap(P60,P$107&\".\"&$AB60&\".\"&$P$108&\".\"&$P$109,$D$75,$D$76,CONFIGURATION!$B$10,\"BMA\",CONFIGURATION!$B$1,\"bscr\",CONFIGURATION!$B$12)","v":"Mapped"},null,{"$f":"XBRLMap(R60,R$107&\".\"&$AB60&\".\"&$R$108&\".\"&$R$109,$D$75,$D$76,CONFIGURATION!$B$10,\"BMA\",CONFIGURATION!$B$1,\"bscr\",CONFIGURATION!$B$12)","v":"Mapped"}]
[]
[null,null,null,null,null,null,null,null,null,null,null,{"$f":"XBRLMap(L52,L$107&\".\"&$AB62&\".\"&$L$108&\".\"&$L$109,$D$75,$D$76,CONFIGURATION!$B$10,\"BMA\",CONFIGURATION!$B$1,\"bscr\",CONFIGURATION!$B$12)","v":"Mapped"},null,{"$f":"XBRLMap(N62,N$107&\".\"&$AB62&\".\"&$N$108&\".\"&$N$109,$D$75,$D$76,CONFIGURATION!$B$10,\"BMA\",CONFIGURATION!$B$1,\"bscr\",CONFIGURATION!$B$12)","v":"Mapped"},null,{"$f":"XBRLMap(P62,P$107&\".\"&$AB62&\".\"&$P$108&\".\"&$P$109,$D$75,$D$76,CONFIGURATION!$B$10,\"BMA\",CONFIGURATION!$B$1,\"bscr\",CONFIGURATION!$B$12)","v":"Mapped"},null,{"$f":"XBRLMap(R62,R$107&\".\"&$AB62&\".\"&$R$108&\".\"&$R$109,$D$75,$D$76,CONFIGURATION!$B$10,\"BMA\",CONFIGURATION!$B$1,\"bscr\",CONFIGURATION!$B$12)","v":"Mapped"}]

{"sheet":"Schedule IIA","index":24,"n_rows":125,"n_cols":28,"rows_kept":125,"cut":false,"hidden":false,"merged":[[71,2,73,2],[51,3,51,5],[50,8,51,20],[52,11,52,13],[52,15,52,17],[63,3,63,5],[6,11,6,13],[6,15,6,17],[6,19,6,21],[28,3,28,5],[28,7,28,9],[28,11,28,13],[28,19,28,21],[28,15,28,17],[1,2,1,6],[2,3,2,5],[3,3,3,5],[6,3,6,5],[6,7,6,9]]}
[null,"SCHEDULE OF FUNDS HELD BY CEDING REINSURERS IN SEGREGATED ACCOUNTS / TRUSTS BY BSCR RATING",null,null,null,null,null,null,null,null,null,null,null,null,null,null,null,null,null,null,null,{"$f":"HYPERLINK(\"#'Index'!A1\",\"Return to Index\")","v":"Return to Index"}]
[null,null,{"$f":"'Insurer Information'!C7","v":"Enter Company Name"}]
[null,null,"As at",{"$f":"'Form 4EBS'!C3","v":"2019-12-31"},null,null,null,null,null,null,null,null,null,null,null,null,null,null,null,null,null,"SCHEDULE IIA"]
[null,null,{"$f":"\"Expressed in \" & IF(CONFIGURATION!$B$12>1,\" ['\"&MID(CONFIGURATION!$B$12,2,LEN(CONFIGURATION!$B$12))&\"s]\",\"\")","v":"Expressed in  ['000s]"},{"$f":"'Form 4EBS'!C4","v":"United States Dollars"}]
[]
[null,null,null,"(1)",null,"(2)",null,"(3)",null,"(4)",null,"(5)",null,{"$f":"YEAR('Insurer Information'!C3)","v":2019},null,"(7)",null,"(8)",null,"(9)",null,"(10)"]
[null,null,null,"CORPORATE & SOVEREIGN BONDS",null,null,null,"RESIDENTIAL MORTGAGE-BACKED SECURITIES",null,null,null,"COMMERCIAL MORTGAGE-BACKED SECURITIES / ASSET-BACKED SECURITIES",null,null,null,"BOND MUTUAL FUNDS",null,null,null,"TOTAL",null,null,null,null,"brrt_RiskTransferAxis_brrt_FundsHeldByCedingReinsurersInSegregatedAccountsTrustsMember"]
[null,null,null,{"$f":"'Form 4EBS'!F6","v":"2019-12-31"},null,{"$f":"'Form 4EBS'!H6","v":"2018-12-31"},null,{"$f":"'Form 4EBS'!F6","v":"2019-12-31"},null,{"$f":"'Form 4EBS'!H6","v":"2018-12-31"},null,{"$f":"'Form 4EBS'!F6","v":"2019-12-31"},null,{"$f":"'Form 4EBS'!H6","v":"2018-12-31"},null,{"$f":"'Form 4EBS'!F6","v":"2019-12-31"},null,{"$f":"'Form 4EBS'!H6","v":"2018-12-31"},null,{"$f":"D8","v":"2019-12-31"},null,{"$f":"F8","v":"2018-12-31"}]
[null,null,null,{"$f":"CONFIGURATION!$D$12","v":" ('000s)"},null,{"$f":"CONFIGURATION!$D$12","v":" ('000s)"},null,{"$f":"CONFIGURATION!$D$12","v":" ('000s)"},null,{"$f":"CONFIGURATION!$D$12","v":" ('000s)"},null,{"$f":"CONFIGURATION!$D$12","v":" ('000s)"},null,{"$f":"CONFIGURATION!$D$12","v":" ('000s)"},null,{"$f":"CONFIGURATION!$D$12","v":" ('000s)"},null,{"$f":"CONFIGURATION!$D$12","v":" ('000s)"},null,{"$f":"CONFIGURATION!$D$12","v":" ('000s)"},null,{"$f":"CONFIGURATION!$D$12","v":" ('000s)"}]
[null,"Line no. "]
[null,"Quoted and Unquoted Bonds and Debentures"]
[null,1,"BSCR Rating 0",{"$f":"Import!E522","v":0},null,{"$f":"Import!G522","v":0},null,null,null,null,null,null,null,null,null,{"$f":"Import!E547","v":0},null,{"$f":"Import!G547","v":0},null,{"$f":"D12+H12+L12+P12","v":0},null,{"$f":"F12+J12+N12+R12","v":0},null,null,"brrt_RiskGradeAxis_brrt_BSCRRating0Member"]
[null,2,"BSCR Rating 1",{"$f":"Import!E523","v":0},null,{"$f":"Import!G523","v":0},null,{"$f":"Import!E531","v":0},null,{"$f":"Import!G531","v":0},null,{"$f":"Import!E539","v":0},null,{"$f":"Import!G539","v":0},null,{"$f":"Import!E548","v":0},null,{"$f":"Import!G548","v":0},null,{"$f":"D13+H13+L13+P13","v":0},null,0,null,null,"brrt_RiskGradeAxis_brrt_BSCRRating1Member"]
[null,3,"BSCR Rating 2",{"$f":"Import!E524","v":0},null,{"$f":"Import!G524","v":0},null,{"$f":"Import!E532","v":0},null,{"$f":"Import!G532","v":0},null,{"$f":"Import!E540","v":0},null,{"$f":"Import!G540","v":0},null,{"$f":"Import!E549","v":0},null,{"$f":"Import!G549","v":0},null,0,null,0,null,null,"brrt_RiskGradeAxis_brrt_BSCRRating2Member"]
[null,4,"BSCR Rating 3",{"$f":"Import!E525","v":0},null,{"$f":"Import!G525","v":0},null,{"$f":"Import!E533","v":0},null,{"$f":"Import!G533","v":0},null,{"$f":"Import!E541","v":0},null,{"$f":"Import!G541","v":0},null,{"$f":"Import!E550","v":0},null,{"$f":"Import!G550","v":0},null,0,null,0,null,null,"brrt_RiskGradeAxis_brrt_BSCRRating3Member"]
[null,5,"BSCR Rating 4",{"$f":"Import!E526","v":0},null,{"$f":"Import!G526","v":0},null,{"$f":"Import!E534","v":0},null,{"$f":"Import!G534","v":0},null,{"$f":"Import!E542","v":0},null,{"$f":"Import!G542","v":0},null,{"$f":"Import!E551","v":0},null,{"$f":"Import!G551","v":0},null,0,null,0,null,null,"brrt_RiskGradeAxis_brrt_BSCRRating4Member"]
[null,6,"BSCR Rating 5",{"$f":"Import!E527","v":0},null,{"$f":"Import!G527","v":0},null,{"$f":"Import!E535","v":0},null,{"$f":"Import!G535","v":0},null,{"$f":"Import!E543","v":0},null,{"$f":"Import!G543","v":0},null,{"$f":"Import!E552","v":0},null,{"$f":"Import!G552","v":0},null,0,null,0,null,null,"brrt_RiskGradeAxis_brrt_BSCRRating5Member"]
[null,7,"BSCR Rating 6",{"$f":"Import!E528","v":0},null,{"$f":"Import!G528","v":0},null,{"$f":"Import!E536","v":0},null,{"$f":"Import!G536","v":0},null,{"$f":"Import!E544","v":0},null,{"$f":"Import!G544","v":0},null,{"$f":"Import!E553","v":0},null,{"$f":"Import!G553","v":0},null,0,null,0,null,null,"brrt_RiskGradeAxis_brrt_BSCRRating6Member"]
[null,8,"BSCR Rating 7",{"$f":"Import!E529","v":0},null,{"$f":"Import!G529","v":0},null,{"$f":"Import!E537","v":0},null,{"$f":"Import!G537","v":0},null,{"$f":"Import!E545","v":0},null,{"$f":"Import!G545","v":0},null,{"$f":"Import!E554","v":0},null,{"$f":"Import!G554","v":0},null,0,null,0,null,null,"brrt_RiskGradeAxis_brrt_BSCRRating7Member"]
[null,9,"BSCR Rating 8",{"$f":"Import!E530","v":0},null,{"$f":"Import!G530","v":0},null,{"$f":"Import!E538","v":0},null,{"$f":"Import!G538","v":0},null,{"$f":"Import!E546","v":0},null,{"$f":"Import!G546","v":0},null,{"$f":"Import!E555","v":0},null,{"$f":"Import!G555","v":0},null,0,null,0,null,null,"brrt_RiskGradeAxis_brrt_BSCRRating8Member"]
[]
[null,10,"Total",{"$f":"SUM(D12:D20)","v":0},null,{"$f":"SUM(F12:F20)","v":0},null,{"$f":"SUM(H12:H20)","v":0},null,{"$f":"SUM(J12:J20)","v":0},null,{"$f":"SUM(L12:L20)","v":0},null,{"$f":"SUM(N12:N20)","v":0},null,{"$f":"SUM(P12:P20)","v":0},null,{"$f":"SUM(R12:R20)","v":0},null,{"$f":"SUM(T12:T20)","v":0},null,{"$f":"SUM(V12:V20)","v":0},null,null,"brrt_RiskGradeAxis_brrt_TotalMember"]
[]
[]
[]
[]
[]
[]
[null,null,null,"COMMON STOCK",null,null,null,"PREFERRED STOCK",null,null,null,"EQUITY MUTUAL FUNDS",null,null,null,"OTHER INVESTMENTS",null,null,null,"TOTAL\n"]
[null,null,null,{"$f":"'Form 4EBS'!F6","v":"2019-12-31"},null,{"$f":"'Form 4EBS'!H6","v":"2018-12-31"},null,{"$f":"'Form 4EBS'!F6","v":"2019-12-31"},null,{"$f":"'Form 4EBS'!H6","v":"2018-12-31"},null,{"$f":"'Form 4EBS'!F6","v":"2019-12-31"},null,{"$f":"'Form 4EBS'!H6","v":"2018-12-31"},null,{"$f":"'Form 4EBS'!F6","v":"2019-12-31"},null,{"$f":"'Form 4EBS'!L6","v":"12/31/2019"},null,{"$f":"'Form 4EBS'!F6","v":"2019-12-31"},null,{"$f":"'Form 4EBS'!F6","v":"2019-12-31"}]
[null,null,null,{"$f":"CONFIGURATION!$D$12","v":" ('000s)"},null,{"$f":"CONFIGURATION!$D$12","v":" ('000s)"},null,{"$f":"CONFIGURATION!$D$12","v":" ('000s)"},null,{"$f":"CONFIGURATION!$D$12","v":" ('000s)"},null,{"$f":"CONFIGURATION!$D$12","v":" ('000s)"},null,{"$f":"CONFIGURATION!$D$12","v":" ('000s)"},null,{"$f":"CONFIGURATION!$D$12","v":" ('000s)"},null,{"$f":"CONFIGURATION!$D$12","v":" ('000s)"},null,{"$f":"CONFIGURATION!$D$12","v":" ('000s)"},null,{"$f":"CONFIGURATION!$D$12","v":" ('000s)"}]
[null,"Quoted and Unquoted Equities"]
[null,11,"BSCR Rating 1",null,null,null,null,{"$f":"Import!E558","v":0},null,{"$f":"Import!G558","v":0},null,null,null,null,null,null,null,null,null,{"$f":"D33+H33+L33","v":0},null,{"$f":"F33+J33+N33","v":0},null,null,"brrt_RiskGradeAxis_brrt_BSCRRating1Member"]
[null,12,"BSCR Rating 2",null,null,null,null,{"$f":"Import!E559","v":0},null,{"$f":"Import!G559","v":0},null,null,null,null,null,null,null,null,null,0,null,0,null,null,"brrt_RiskGradeAxis_brrt_BSCRRating2Member"]
[null,13,"BSCR Rating 3",null,null,null,null,{"$f":"Import!E560","v":0},null,{"$f":"Import!G560","v":0},null,null,null,null,null,null,null,null,null,0,null,0,null,null,"brrt_RiskGradeAxis_brrt_BSCRRating3Member"]
[null,14,"BSCR Rating 4",null,null,null,null,{"$f":"Import!E561","v":0},null,{"$f":"Import!G561","v":0},null,null,null,null,null,null,null,null,null,0,null,0,null,null,"brrt_RiskGradeAxis_brrt_BSCRRating4Member"]
[null,15,"BSCR Rating 5",null,null,null,null,{"$f":"Import!E562","v":0},null,{"$f":"Import!G562","v":0},null,null,null,null,null,null,null,null,null,0,null,0,null,null,"brrt_RiskGradeAxis_brrt_BSCRRating5Member"]
[null,16,"BSCR Rating 6",null,null,null,null,{"$f":"Import!E563","v":0},null,{"$f":"Import!G563","v":0},null,null,null,null,null,null,null,null,null,0,null,0,null,null,"brrt_RiskGradeAxis_brrt_BSCRRating6Member"]
[null,17,"BSCR Rating 7",null,null,null,null,{"$f":"Import!E564","v":0},null,{"$f":"Import!G564","v":0},null,null,null,null,null,null,null,null,null,0,null,0,null,null,"brrt_RiskGradeAxis_brrt_BSCRRating7Member"]
[null,18,"BSCR Rating 8",null,null,null,null,{"$f":"Import!E565","v":0},null,{"$f":"Import!G565","v":0},null,null,null,null,null,null,null,null,null,0,null,0,null,null,"brrt_RiskGradeAxis_brrt_BSCRRating8Member"]
[null,19,"Quoted Equity Funds",{"$f":"Import!E556","v":0},null,{"$f":"Import!G556","v":0},null,null,null,null,null,{"$f":"Import!E566","v":0},null,{"$f":"Import!G566","v":0},null,{"$f":"Import!E568","v":0},null,{"$f":"Import!G568","v":0},null,{"$f":"D41+H41+L41+P41","v":0},null,{"$f":"F41+J41+N41+R41","v":0}]
[null,20,"Unquoted Equity Funds",{"$f":"Import!E557","v":0},null,{"$f":"Import!G557","v":0},null,null,null,null,null,{"$f":"Import!E567","v":0},null,{"$f":"Import!G567","v":0},null,{"$f":"Import!E569","v":0},null,{"$f":"Import!G569","v":0},null,{"$f":"D42+H42+L42+P42","v":0},null,{"$f":"F42+J42+N42+R42","v":0}]
[]
[null,21,"Total",{"$f":"SUM(D33:D42)","v":0},null,{"$f":"SUM(F33:F42)","v":0},null,{"$f":"SUM(H33:H42)","v":0},null,{"$f":"SUM(J33:J42)","v":0},null,{"$f":"SUM(L33:L42)","v":0},null,{"$f":"SUM(N33:N42)","v":0},null,{"$f":"SUM(P33:P42)","v":0},null,{"$f":"SUM(R33:R42)","v":0},null,{"$f":"SUM(T33:T42)","v":0},null,{"$f":"SUM(V33:V42)","v":0},null,null,"brrt_RiskGradeAxis_brrt_TotalMember"]
[]
[]
[]
[]
[]
[]
[null,null,null,null,null,null,null,null,"This Section is Only Applicable to Companies that have Mortgage Backed Securities that have been Reclassified in Accordance with the NAIC and that elect to use NAIC reclassifications to map to the BSCR classes"]
[null,null,null,"MORTGAGE LOANS"]
[null,null,null,{"$f":"'Form 4EBS'!F6","v":"2019-12-31"},null,{"$f":"'Form 4EBS'!H6","v":"2018-12-31"},null,null,null,null,null,"VALUES OF RESIDENTIAL MORTGAGE BACKED SECURITIES",null,null,null,"VALUES OF COMMERCIAL MORTGAGE BACKED SECURITIES / ASSET BACKED SECURITIES"]
[null,null,null,{"$f":"CONFIGURATION!$D$12","v":" ('000s)"},null,{"$f":"CONFIGURATION!$D$12","v":" ('000s)"},null,null,null,null,null,"Original Classification",null,"Revised Classification",null,"Original Classification",null,"Revised Classification",null,null,null,null,null,"brrt_InvestmentsInMortgageLoansOnRealEstateInsuredGuaranteedMortgages",{"$f":"XBRLMap(D57,$X54&\".\"&$Y$7,$D$81,$D$82,CONFIGURATION!$B$10,\"BMA\",CONFIGURATION!$B$1,\"bscr\",CONFIGURATION!$B$12)","v":"Mapped"},{"$f":"XBRLMap(F57,$X54&\".\"&$Y$7,$F$81,$F$82,CONFIGURATION!$B$10,\"BMA\",CONFIGURATION!$B$1,\"bscr\",CONFIGURATION!$B$12)","v":"Mapped"}]
[null,null,null,null,null,null,null,null,null,"NAIC Class 1",null,{"$f":"Import!E575","v":0},null,{"$f":"Import!E582","v":0},null,{"$f":"Import!E589","v":0},null,{"$f":"Import!E596","v":0},null,null,null,null,null,"brrt_InvestmentsInMortgageLoansOnRealEstateOtherResidentialMortgages",{"$f":"XBRLMap(D59,$X55&\".\"&$Y$7,$D$81,$D$82,CONFIGURATION!$B$10,\"BMA\",CONFIGURATION!$B$1,\"bscr\",CONFIGURATION!$B$12)","v":"Mapped"},{"$f":"XBRLMap(F59,$X55&\".\"&$Y$7,$F$81,$F$82,CONFIGURATION!$B$10,\"BMA\",CONFIGURATION!$B$1,\"bscr\",CONFIGURATION!$B$12)","v":"Mapped"},null,"brrt_RiskGradeAxis_brrt_NAICClass1Member"]
[null,"Mortgage Loans",null,null,null,null,null,null,null,"NAIC Class 2",null,{"$f":"Import!E576","v":0},null,{"$f":"Import!E583","v":0},null,{"$f":"Import!E590","v":0},null,{"$f":"Import!E597","v":0},null,null,null,null,null,"brrt_InvestmentsInMortgageLoansOnRealEstateMortgagesNotInGoodStanding",{"$f":"XBRLMap(D60,$X56&\".\"&$Y$7,$D$81,$D$82,CONFIGURATION!$B$10,\"BMA\",CONFIGURATION!$B$1,\"bscr\",CONFIGURATION!$B$12)","v":"Mapped"},{"$f":"XBRLMap(F60,$X56&\".\"&$Y$7,$F$81,$F$82,CONFIGURATION!$B$10,\"BMA\",CONFIGURATION!$B$1,\"bscr\",CONFIGURATION!$B$12)","v":"Mapped"},null,"brrt_RiskGradeAxis_brrt_NAICClass2Member"]
[null,22,"Insured/Guaranteed Mortgages",{"$f":"Import!E570","v":0},null,{"$f":"Import!G570","v":0},null,null,null,"NAIC Class 3",null,{"$f":"Import!E577","v":0},null,{"$f":"Import!E584","v":0},null,{"$f":"Import!E591","v":0},null,{"$f":"Import!E598","v":0},null,null,null,null,null,null,null,null,null,"brrt_RiskGradeAxis_brrt_NAICClass3Member"]
[null,23,"Other Commercial and Farm Mortgages",{"$f":"Import!E571","v":0},null,{"$f":"Import!G571","v":0},null,null,null,"NAIC Class 4",null,{"$f":"Import!E578","v":0},null,{"$f":"Import!E585","v":0},null,{"$f":"Import!E592","v":0},null,{"$f":"Import!E599","v":0},null,null,null,null,null,"brrt_InvestmentsInMortgageLoansOnRealEstate",{"$f":"XBRLMap(D62,$X58&\".\"&$Y$7,$D$81,$D$82,CONFIGURATION!$B$10,\"BMA\",CONFIGURATION!$B$1,\"bscr\",CONFIGURATION!$B$12)","v":"Mapped"},{"$f":"XBRLMap(F62,$X58&\".\"&$Y$7,$F$81,$F$82,CONFIGURATION!$B$10,\"BMA\",CONFIGURATION!$B$1,\"bscr\",CONFIGURATION!$B$12)","v":"Mapped"},null,"brrt_RiskGradeAxis_brrt_NAICClass4Member"]
[null,24,"Other Residential Mortgages",{"$f":"Import!E572","v":0},null,{"$f":"Import!G572","v":0},null,null,null,"NAIC Class 5",null,{"$f":"Import!E579","v":0},null,{"$f":"Import!E586","v":0},null,{"$f":"Import!E593","v":0},null,{"$f":"Import!E600","v":0},null,null,null,null,null,null,null,null,null,"brrt_RiskGradeAxis_brrt_NAICClass5Member"]
[null,25,"Mortgages Not In Good Standing",{"$f":"Import!E573","v":0},null,{"$f":"Import!G573","v":0},null,null,null,"NAIC Class 6",null,{"$f":"Import!E580","v":0},null,{"$f":"Import!E587","v":0},null,{"$f":"Import!E594","v":0},null,{"$f":"Import!E601","v":0},null,null,null,null,null,null,null,null,null,"brrt_RiskGradeAxis_brrt_NAICClass6Member"]
[]
[null,26,"Total",{"$f":"SUM(D57:D60)","v":0},null,{"$f":"SUM(F57:F60)","v":0},null,null,null,null,null,{"$f":"SUM(L55:L60)","v":0},null,{"$f":"SUM(N55:N60)","v":0},null,{"$f":"SUM(P55:P60)","v":0},null,{"$f":"SUM(R55:R60)","v":0},null,null,null,null,null,null,null,null,null,"brrt_RiskGradeAxis_brrt_TotalMember"]
[null,null,null,null,null,null,null,null,null,null,null,null,null,null,null,null,null,null,null,null,null,null,null,"brrt_CashAndTimeDeposits",{"$f":"XBRLMap(D68,$X63&\".\"&$Y$7,$D$81,$D$82,CONFIGURATION!$B$10,\"BMA\",CONFIGURATION!$B$1,\"bscr\",CONFIGURATION!$B$12)","v":"Mapped"},{"$f":"XBRLMap(F68,$X63&\".\"&$Y$7,$F$81,$F$82,CONFIGURATION!$B$10,\"BMA\",CONFIGURATION!$B$1,\"bscr\",CONFIGURATION!$B$12)","v":"Mapped"}]
[null,null,null,"CASH AND CASH EQUIVALENTS"]
[null,null,null,{"$f":"'Form 4EBS'!F6","v":"2019-12-31"},null,{"$f":"'Form 4EBS'!H6","v":"2018-12-31"},null,null,null,{"$f":"IF('Insurer Information'!F9=\"Class C\",HYPERLINK(\"#'Attachments'!G45\",\"Attach file\"),HYPERLINK(\"#'Attachments'!G65\",\"Attach file\"))","v":"Attach file"}]
[null,null,null,{"$f":"CONFIGURATION!$D$12","v":" ('000s)"},null,{"$f":"CONFIGURATION!$D$12","v":" ('000s)"}]
[]
[null,27,"Cash and Cash Equivalents",{"$f":"Import!E574","v":0},null,{"$f":"Import!G574","v":0}]
[]
[null,null,null,{"$f":"'Form 4EBS'!F6","v":"2019-12-31"},null,{"$f":"'Form 4EBS'!H6","v":"2018-12-31"}]
[null,null,null,{"$f":"CONFIGURATION!$D$12","v":" ('000s)"},null,{"$f":"CONFIGURATION!$D$12","v":" ('000s)"}]
[null,null,"Total Funds Held by Ceding Reinsurers in Segregated Accounts / Trusts (Lines 10, 21, 26 and 27)"]
[]
[null,{"$f":"B68+1","v":28},null,{"$f":"T22+T44+D62+D68","v":0},null,{"$f":"V22+V44+F62+F68","v":0}]
[]
[]
[]
[]
[]
[]
[null,null,null,{"$f":"IF(D8=\"\",\"\",TEXT(DATE(YEAR(D8+1)-1,MONTH(D8+1),DAY(D8+1)),\"mm/dd/yyyy\"))","v":"01/01/2019"},null,{"$f":"IF(F8=\"\",\"\",TEXT(DATE(YEAR(F8+1)-1,MONTH(F8+1),DAY(F8+1)),\"mm/dd/yyyy\"))","v":"01/01/2018"}]
[null,null,null,{"$f":"IF(D8=\"\",\"\",TEXT(D8,\"mm/dd/yyyy\"))","v":"12/31/2019"},null,{"$f":"IF(F8=\"\",\"\",TEXT(F8,\"mm/dd/yyyy\"))","v":"12/31/2018"}]
[null,null,null,"brrt_BondsAndDebentures",null,"brrt_BondsAndDebentures",null,"brrt_BondsAndDebentures",null,"brrt_BondsAndDebentures",null,"brrt_BondsAndDebentures",null,"brrt_BondsAndDebentures",null,"brrt_BondsAndDebentures",null,"brrt_BondsAndDebentures",null,"brrt_BondsAndDebentures",null,"brrt_BondsAndDebentures"]
[null,null,null,"brrt_SecurityTypeAxis_brrt_CorporateSovereignBondsMember",null,"brrt_SecurityTypeAxis_brrt_CorporateSovereignBondsMember",null,"brrt_SecurityTypeAxis_brrt_ResidentialMortgageBackedSecuritiesMember",null,"brrt_SecurityTypeAxis_brrt_ResidentialMortgageBackedSecuritiesMember",null,"brrt_SecurityTypeAxis_brrt_CommercialMortgageBackedSecuritiesAssetBackedSecuritiesMember",null,"brrt_SecurityTypeAxis_brrt_CommercialMortgageBackedSecuritiesAssetBackedSecuritiesMember",null,"brrt_SecurityTypeAxis_brrt_MutualFundsMember",null,"brrt_SecurityTypeAxis_brrt_MutualFundsMember",null,"brrt_SecurityTypeAxis_brrt_TotalMember",null,"brrt_SecurityTypeAxis_brrt_TotalMember"]
[null,null,null,{"$f":"XBRLMap(D12,D$83&\".\"&$Y12&\".\"&$D$84&\".\"&$Y$7,$D$81,$D$82,CONFIGURATION!$B$10,\"BMA\",CONFIGURATION!$B$1,\"bscr\",CONFIGURATION!$B$12)","v":"Mapped"},null,{"$f":"XBRLMap(F12,F$83&\".\"&$Y12&\".\"&$F$84&\".\"&$Y$7,$F$81,$F$82,CONFIGURATION!$B$10,\"BMA\",CONFIGURATION!$B$1,\"bscr\",CONFIGURATION!$B$12)","v":"Mapped"},null,null,null,null,null,null,null,null,null,{"$f":"XBRLMap(P12,P$83&\".\"&$Y12&\".\"&$P$84&\".\"&$Y$7,$D$81,$D$82,CONFIGURATION!$B$10,\"BMA\",CONFIGURATION!$B$1,\"bscr\",CONFIGURATION!$B$12)","v":"Mapped"},null,{"$f":"XBRLMap(R12,R$83&\".\"&$Y12&\".\"&$R$84&\".\"&$Y$7,$F$81,$F$82,CONFIGURATION!$B$10,\"BMA\",CONFIGURATION!$B$1,\"bscr\",CONFIGURATION!$B$12)","v":"Mapped"},null,{"$f":"XBRLMap(T12,T$83&\".\"&$Y12&\".\"&$T$84&\".\"&$Y$7,$D$81,$D$82,CONFIGURATION!$B$10,\"BMA\",CONFIGURATION!$B$1,\"bscr\",CONFIGURATION!$B$12)","v":"Mapped"},null,{"$f":"XBRLMap(V12,V$83&\".\"&$Y12&\".\"&$V$84&\".\"&$Y$7,$F$81,$F$82,CONFIGURATION!$B$10,\"BMA\",CONFIGURATION!$B$1,\"bscr\",CONFIGURATION!$B$12)","v":"Mapped"}]
[null,null,null,{"$f":"XBRLMap(D13,D$83&\".\"&$Y13&\".\"&$D$84&\".\"&$Y$7,$D$81,$D$82,CONFIGURATION!$B$10,\"BMA\",CONFIGURATION!$B$1,\"bscr\",CONFIGURATION!$B$12)","v":"Mapped"},null,{"$f":"XBRLMap(F13,F$83&\".\"&$Y13&\".\"&$F$84&\".\"&$Y$7,$F$81,$F$82,CONFIGURATION!$B$10,\"BMA\",CONFIGURATION!$B$1,\"bscr\",CONFIGURATION!$B$12)","v":"Mapped"},null,{"$f":"XBRLMap(H13,H$83&\".\"&$Y13&\".\"&$H$84&\".\"&$Y$7,$D$81,$D$82,CONFIGURATION!$B$10,\"BMA\",CONFIGURATION!$B$1,\"bscr\",CONFIGURATION!$B$12)","v":"Mapped"},null,{"$f":"XBRLMap(J13,J$83&\".\"&$Y13&\".\"&$J$84&\".\"&$Y$7,$F$81,$F$82,CONFIGURATION!$B$10,\"BMA\",CONFIGURATION!$B$1,\"bscr\",CONFIGURATION!$B$12)","v":"Mapped"},null,{"$f":"XBRLMap(L13,L$83&\".\"&$Y13&\".\"&$L$84&\".\"&$Y$7,$D$81,$D$82,CONFIGURATION!$B$10,\"BMA\",CONFIGURATION!$B$1,\"bscr\",CONFIGURATION!$B$12)","v":"Mapped"},null,{"$f":"XBRLMap(N13,N$83&\".\"&$Y13&\".\"&$N$84&\".\"&$Y$7,$F$81,$F$82,CONFIGURATION!$B$10,\"BMA\",CONFIGURATION!$B$1,\"bscr\",CONFIGURATION!$B$12)","v":"Mapped"},null,{"$f":"XBRLMap(P13,P$83&\".\"&$Y13&\".\"&$P$84&\".\"&$Y$7,$D$81,$D$82,CONFIGURATION!$B$10,\"BMA\",CONFIGURATION!$B$1,\"bscr\",CONFIGURATION!$B$12)","v":"Mapped"},null,{"$f":"XBRLMap(R13,R$83&\".\"&$Y13&\".\"&$R$84&\".\"&$Y$7,$F$81,$F$82,CONFIGURATION!$B$10,\"BMA\",CONFIGURATION!$B$1,\"bscr\",CONFIGURATION!$B$12)","v":"Mapped"},null,{"$f":"XBRLMap(T13,T$83&\".\"&$Y13&\".\"&$T$84&\".\"&$Y$7,$D$81,$D$82,CONFIGURATION!$B$10,\"BMA\",CONFIGURATION!$B$1,\"bscr\",CONFIGURATION!$B$12)","v":"Mapped"},null,{"$f":"XBRLMap(V13,V$83&\".\"&$Y13&\".\"&$V$84&\".\"&$Y$7,$F$81,$F$82,CONFIGURATION!$B$10,\"BMA\",CONFIGURATION!$B$1,\"bscr\",CONFIGURATION!$B$12)","v":"Mapped"}]
[null,null,null,{"$f":"XBRLMap(D14,D$83&\".\"&$Y14&\".\"&$D$84&\".\"&$Y$7,$D$81,$D$82,CONFIGURATION!$B$10,\"BMA\",CONFIGURATION!$B$1,\"bscr\",CONFIGURATION!$B$12)","v":"Mapped"},null,{"$f":"XBRLMap(F14,F$83&\".\"&$Y14&\".\"&$F$84&\".\"&$Y$7,$F$81,$F$82,CONFIGURATION!$B$10,\"BMA\",CONFIGURATION!$B$1,\"bscr\",CONFIGURATION!$B$12)","v":"Mapped"},null,{"$f":"XBRLMap(H14,H$83&\".\"&$Y14&\".\"&$H$84&\".\"&$Y$7,$D$81,$D$82,CONFIGURATION!$B$10,\"BMA\",CONFIGURATION!$B$1,\"bscr\",CONFIGURATION!$B$12)","v":"Mapped"},null,{"$f":"XBRLMap(J14,J$83&\".\"&$Y14&\".\"&$J$84&\".\"&$Y$7,$F$81,$F$82,CONFIGURATION!$B$10,\"BMA\",CONFIGURATION!$B$1,\"bscr\",CONFIGURATION!$B$12)","v":"Mapped"},null,{"$f":"XBRLMap(L14,L$83&\".\"&$Y14&\".\"&$L$84&\".\"&$Y$7,$D$81,$D$82,CONFIGURATION!$B$10,\"BMA\",CONFIGURATION!$B$1,\"bscr\",CONFIGURATION!$B$12)","v":"Mapped"},null,{"$f":"XBRLMap(N14,N$83&\".\"&$Y14&\".\"&$N$84&\".\"&$Y$7,$F$81,$F$82,CONFIGURATION!$B$10,\"BMA\",CONFIGURATION!$B$1,\"bscr\",CONFIGURATION!$B$12)","v":"Mapped"},null,{"$f":"XBRLMap(P14,P$83&\".\"&$Y14&\".\"&$P$84&\".\"&$Y$7,$D$81,$D$82,CONFIGURATION!$B$10,\"BMA\",CONFIGURATION!$B$1,\"bscr\",CONFIGURATION!$B$12)","v":"Mapped"},null,{"$f":"XBRLMap(R14,R$83&\".\"&$Y14&\".\"&$R$84&\".\"&$Y$7,$F$81,$F$82,CONFIGURATION!$B$10,\"BMA\",CONFIGURATION!$B$1,\"bscr\",CONFIGURATION!$B$12)","v":"Mapped"},null,{"$f":"XBRLMap(T14,T$83&\".\"&$Y14&\".\"&$T$84&\".\"&$Y$7,$D$81,$D$82,CONFIGURATION!$B$10,\"BMA\",CONFIGURATION!$B$1,\"bscr\",CONFIGURATION!$B$12)","v":"Mapped"},null,{"$f":"XBRLMap(V14,V$83&\".\"&$Y14&\".\"&$V$84&\".\"&$Y$7,$F$81,$F$82,CONFIGURATION!$B$10,\"BMA\",CONFIGURATION!$B$1,\"bscr\",CONFIGURATION!$B$12)","v":"Mapped"}]
[null,null,null,{"$f":"XBRLMap(D15,D$83&\".\"&$Y15&\".\"&$D$84&\".\"&$Y$7,$D$81,$D$82,CONFIGURATION!$B$10,\"BMA\",CONFIGURATION!$B$1,\"bscr\",CONFIGURATION!$B$12)","v":"Mapped"},null,{"$f":"XBRLMap(F15,F$83&\".\"&$Y15&\".\"&$F$84&\".\"&$Y$7,$F$81,$F$82,CONFIGURATION!$B$10,\"BMA\",CONFIGURATION!$B$1,\"bscr\",CONFIGURATION!$B$12)","v":"Mapped"},null,{"$f":"XBRLMap(H15,H$83&\".\"&$Y15&\".\"&$H$84&\".\"&$Y$7,$D$81,$D$82,CONFIGURATION!$B$10,\"BMA\",CONFIGURATION!$B$1,\"bscr\",CONFIGURATION!$B$12)","v":"Mapped"},null,{"$f":"XBRLMap(J15,J$83&\".\"&$Y15&\".\"&$J$84&\".\"&$Y$7,$F$81,$F$82,CONFIGURATION!$B$10,\"BMA\",CONFIGURATION!$B$1,\"bscr\",CONFIGURATION!$B$12)","v":"Mapped"},null,{"$f":"XBRLMap(L15,L$83&\".\"&$Y15&\".\"&$L$84&\".\"&$Y$7,$D$81,$D$82,CONFIGURATION!$B$10,\"BMA\",CONFIGURATION!$B$1,\"bscr\",CONFIGURATION!$B$12)","v":"Mapped"},null,{"$f":"XBRLMap(N15,N$83&\".\"&$Y15&\".\"&$N$84&\".\"&$Y$7,$F$81,$F$82,CONFIGURATION!$B$10,\"BMA\",CONFIGURATION!$B$1,\"bscr\",CONFIGURATION!$B$12)","v":"Mapped"},null,{"$f":"XBRLMap(P15,P$83&\".\"&$Y15&\".\"&$P$84&\".\"&$Y$7,$D$81,$D$82,CONFIGURATION!$B$10,\"BMA\",CONFIGURATION!$B$1,\"bscr\",CONFIGURATION!$B$12)","v":"Mapped"},null,{"$f":"XBRLMap(R15,R$83&\".\"&$Y15&\".\"&$R$84&\".\"&$Y$7,$F$81,$F$82,CONFIGURATION!$B$10,\"BMA\",CONFIGURATION!$B$1,\"bscr\",CONFIGURATION!$B$12)","v":"Mapped"},null,{"$f":"XBRLMap(T15,T$83&\".\"&$Y15&\".\"&$T$84&\".\"&$Y$7,$D$81,$D$82,CONFIGURATION!$B$10,\"BMA\",CONFIGURATION!$B$1,\"bscr\",CONFIGURATION!$B$12)","v":"Mapped"},null,{"$f":"XBRLMap(V15,V$83&\".\"&$Y15&\".\"&$V$84&\".\"&$Y$7,$F$81,$F$82,CONFIGURATION!$B$10,\"BMA\",CONFIGURATION!$B$1,\"bscr\",CONFIGURATION!$B$12)","v":"Mapped"}]
[null,null,null,{"$f":"XBRLMap(D16,D$83&\".\"&$Y16&\".\"&$D$84&\".\"&$Y$7,$D$81,$D$82,CONFIGURATION!$B$10,\"BMA\",CONFIGURATION!$B$1,\"bscr\",CONFIGURATION!$B$12)","v":"Mapped"},null,{"$f":"XBRLMap(F16,F$83&\".\"&$Y16&\".\"&$F$84&\".\"&$Y$7,$F$81,$F$82,CONFIGURATION!$B$10,\"BMA\",CONFIGURATION!$B$1,\"bscr\",CONFIGURATION!$B$12)","v":"Mapped"},null,{"$f":"XBRLMap(H16,H$83&\".\"&$Y16&\".\"&$H$84&\".\"&$Y$7,$D$81,$D$82,CONFIGURATION!$B$10,\"BMA\",CONFIGURATION!$B$1,\"bscr\",CONFIGURATION!$B$12)","v":"Mapped"},null,{"$f":"XBRLMap(J16,J$83&\".\"&$Y16&\".\"&$J$84&\".\"&$Y$7,$F$81,$F$82,CONFIGURATION!$B$10,\"BMA\",CONFIGURATION!$B$1,\"bscr\",CONFIGURATION!$B$12)","v":"Mapped"},null,{"$f":"XBRLMap(L16,L$83&\".\"&$Y16&\".\"&$L$84&\".\"&$Y$7,$D$81,$D$82,CONFIGURATION!$B$10,\"BMA\",CONFIGURATION!$B$1,\"bscr\",CONFIGURATION!$B$12)","v":"Mapped"},null,{"$f":"XBRLMap(N16,N$83&\".\"&$Y16&\".\"&$N$84&\".\"&$Y$7,$F$81,$F$82,CONFIGURATION!$B$10,\"BMA\",CONFIGURATION!$B$1,\"bscr\",CONFIGURATION!$B$12)","v":"Mapped"},null,{"$f":"XBRLMap(P16,P$83&\".\"&$Y16&\".\"&$P$84&\".\"&$Y$7,$D$81,$D$82,CONFIGURATION!$B$10,\"BMA\",CONFIGURATION!$B$1,\"bscr\",CONFIGURATION!$B$12)","v":"Mapped"},null,{"$f":"XBRLMap(R16,R$83&\".\"&$Y16&\".\"&$R$84&\".\"&$Y$7,$F$81,$F$82,CONFIGURATION!$B$10,\"BMA\",CONFIGURATION!$B$1,\"bscr\",CONFIGURATION!$B$12)","v":"Mapped"},null,{"$f":"XBRLMap(T16,T$83&\".\"&$Y16&\".\"&$T$84&\".\"&$Y$7,$D$81,$D$82,CONFIGURATION!$B$10,\"BMA\",CONFIGURATION!$B$1,\"bscr\",CONFIGURATION!$B$12)","v":"Mapped"},null,{"$f":"XBRLMap(V16,V$83&\".\"&$Y16&\".\"&$V$84&\".\"&$Y$7,$F$81,$F$82,CONFIGURATION!$B$10,\"BMA\",CONFIGURATION!$B$1,\"bscr\",CONFIGURATION!$B$12)","v":"Mapped"}]
[null,null,null,{"$f":"XBRLMap(D17,D$83&\".\"&$Y17&\".\"&$D$84&\".\"&$Y$7,$D$81,$D$82,CONFIGURATION!$B$10,\"BMA\",CONFIGURATION!$B$1,\"bscr\",CONFIGURATION!$B$12)","v":"Mapped"},null,{"$f":"XBRLMap(F17,F$83&\".\"&$Y17&\".\"&$F$84&\".\"&$Y$7,$F$81,$F$82,CONFIGURATION!$B$10,\"BMA\",CONFIGURATION!$B$1,\"bscr\",CONFIGURATION!$B$12)","v":"Mapped"},null,{"$f":"XBRLMap(H17,H$83&\".\"&$Y17&\".\"&$H$84&\".\"&$Y$7,$D$81,$D$82,CONFIGURATION!$B$10,\"BMA\",CONFIGURATION!$B$1,\"bscr\",CONFIGURATION!$B$12)","v":"Mapped"},null,{"$f":"XBRLMap(J17,J$83&\".\"&$Y17&\".\"&$J$84&\".\"&$Y$7,$F$81,$F$82,CONFIGURATION!$B$10,\"BMA\",CONFIGURATION!$B$1,\"bscr\",CONFIGURATION!$B$12)","v":"Mapped"},null,{"$f":"XBRLMap(L17,L$83&\".\"&$Y17&\".\"&$L$84&\".\"&$Y$7,$D$81,$D$82,CONFIGURATION!$B$10,\"BMA\",CONFIGURATION!$B$1,\"bscr\",CONFIGURATION!$B$12)","v":"Mapped"},null,{"$f":"XBRLMap(N17,N$83&\".\"&$Y17&\".\"&$N$84&\".\"&$Y$7,$F$81,$F$82,CONFIGURATION!$B$10,\"BMA\",CONFIGURATION!$B$1,\"bscr\",CONFIGURATION!$B$12)","v":"Mapped"},null,{"$f":"XBRLMap(P17,P$83&\".\"&$Y17&\".\"&$P$84&\".\"&$Y$7,$D$81,$D$82,CONFIGURATION!$B$10,\"BMA\",CONFIGURATION!$B$1,\"bscr\",CONFIGURATION!$B$12)","v":"Mapped"},null,{"$f":"XBRLMap(R17,R$83&\".\"&$Y17&\".\"&$R$84&\".\"&$Y$7,$F$81,$F$82,CONFIGURATION!$B$10,\"BMA\",CONFIGURATION!$B$1,\"bscr\",CONFIGURATION!$B$12)","v":"Mapped"},null,{"$f":"XBRLMap(T17,T$83&\".\"&$Y17&\".\"&$T$84&\".\"&$Y$7,$D$81,$D$82,CONFIGURATION!$B$10,\"BMA\",CONFIGURATION!$B$1,\"bscr\",CONFIGURATION!$B$12)","v":"Mapped"},null,{"$f":"XBRLMap(V17,V$83&\".\"&$Y17&\".\"&$V$84&\".\"&$Y$7,$F$81,$F$82,CONFIGURATION!$B$10,\"BMA\",CONFIGURATION!$B$1,\"bscr\",CONFIGURATION!$B$12)","v":"Mapped"}]
[null,null,null,{"$f":"XBRLMap(D18,D$83&\".\"&$Y18&\".\"&$D$84&\".\"&$Y$7,$D$81,$D$82,CONFIGURATION!$B$10,\"BMA\",CONFIGURATION!$B$1,\"bscr\",CONFIGURATION!$B$12)","v":"Mapped"},null,{"$f":"XBRLMap(F18,F$83&\".\"&$Y18&\".\"&$F$84&\".\"&$Y$7,$F$81,$F$82,CONFIGURATION!$B$10,\"BMA\",CONFIGURATION!$B$1,\"bscr\",CONFIGURATION!$B$12)","v":"Mapped"},null,{"$f":"XBRLMap(H18,H$83&\".\"&$Y18&\".\"&$H$84&\".\"&$Y$7,$D$81,$D$82,CONFIGURATION!$B$10,\"BMA\",CONFIGURATION!$B$1,\"bscr\",CONFIGURATION!$B$12)","v":"Mapped"},null,{"$f":"XBRLMap(J18,J$83&\".\"&$Y18&\".\"&$J$84&\".\"&$Y$7,$F$81,$F$82,CONFIGURATION!$B$10,\"BMA\",CONFIGURATION!$B$1,\"bscr\",CONFIGURATION!$B$12)","v":"Mapped"},null,{"$f":"XBRLMap(L18,L$83&\".\"&$Y18&\".\"&$L$84&\".\"&$Y$7,$D$81,$D$82,CONFIGURATION!$B$10,\"BMA\",CONFIGURATION!$B$1,\"bscr\",CONFIGURATION!$B$12)","v":"Mapped"},null,{"$f":"XBRLMap(N18,N$83&\".\"&$Y18&\".\"&$N$84&\".\"&$Y$7,$F$81,$F$82,CONFIGURATION!$B$10,\"BMA\",CONFIGURATION!$B$1,\"bscr\",CONFIGURATION!$B$12)","v":"Mapped"},null,{"$f":"XBRLMap(P18,P$83&\".\"&$Y18&\".\"&$P$84&\".\"&$Y$7,$D$81,$D$82,CONFIGURATION!$B$10,\"BMA\",CONFIGURATION!$B$1,\"bscr\",CONFIGURATION!$B$12)","v":"Mapped"},null,{"$f":"XBRLMap(R18,R$83&\".\"&$Y18&\".\"&$R$84&\".\"&$Y$7,$F$81,$F$82,CONFIGURATION!$B$10,\"BMA\",CONFIGURATION!$B$1,\"bscr\",CONFIGURATION!$B$12)","v":"Mapped"},null,{"$f":"XBRLMap(T18,T$83&\".\"&$Y18&\".\"&$T$84&\".\"&$Y$7,$D$81,$D$82,CONFIGURATION!$B$10,\"BMA\",CONFIGURATION!$B$1,\"bscr\",CONFIGURATION!$B$12)","v":"Mapped"},null,{"$f":"XBRLMap(V18,V$83&\".\"&$Y18&\".\"&$V$84&\".\"&$Y$7,$F$81,$F$82,CONFIGURATION!$B$10,\"BMA\",CONFIGURATION!$B$1,\"bscr\",CONFIGURATION!$B$12)","v":"Mapped"}]
[null,null,null,{"$f":"XBRLMap(D19,D$83&\".\"&$Y19&\".\"&$D$84&\".\"&$Y$7,$D$81,$D$82,CONFIGURATION!$B$10,\"BMA\",CONFIGURATION!$B$1,\"bscr\",CONFIGURATION!$B$12)","v":"Mapped"},null,{"$f":"XBRLMap(F19,F$83&\".\"&$Y19&\".\"&$F$84&\".\"&$Y$7,$F$81,$F$82,CONFIGURATION!$B$10,\"BMA\",CONFIGURATION!$B$1,\"bscr\",CONFIGURATION!$B$12)","v":"Mapped"},null,{"$f":"XBRLMap(H19,H$83&\".\"&$Y19&\".\"&$H$84&\".\"&$Y$7,$D$81,$D$82,CONFIGURATION!$B$10,\"BMA\",CONFIGURATION!$B$1,\"bscr\",CONFIGURATION!$B$12)","v":"Mapped"},null,{"$f":"XBRLMap(J19,J$83&\".\"&$Y19&\".\"&$J$84&\".\"&$Y$7,$F$81,$F$82,CONFIGURATION!$B$10,\"BMA\",CONFIGURATION!$B$1,\"bscr\",CONFIGURATION!$B$12)","v":"Mapped"},null,{"$f":"XBRLMap(L19,L$83&\".\"&$Y19&\".\"&$L$84&\".\"&$Y$7,$D$81,$D$82,CONFIGURATION!$B$10,\"BMA\",CONFIGURATION!$B$1,\"bscr\",CONFIGURATION!$B$12)","v":"Mapped"},null,{"$f":"XBRLMap(N19,N$83&\".\"&$Y19&\".\"&$N$84&\".\"&$Y$7,$F$81,$F$82,CONFIGURATION!$B$10,\"BMA\",CONFIGURATION!$B$1,\"bscr\",CONFIGURATION!$B$12)","v":"Mapped"},null,{"$f":"XBRLMap(P19,P$83&\".\"&$Y19&\".\"&$P$84&\".\"&$Y$7,$D$81,$D$82,CONFIGURATION!$B$10,\"BMA\",CONFIGURATION!$B$1,\"bscr\",CONFIGURATION!$B$12)","v":"Mapped"},null,{"$f":"XBRLMap(R19,R$83&\".\"&$Y19&\".\"&$R$84&\".\"&$Y$7,$F$81,$F$82,CONFIGURATION!$B$10,\"BMA\",CONFIGURATION!$B$1,\"bscr\",CONFIGURATION!$B$12)","v":"Mapped"},null,{"$f":"XBRLMap(T19,T$83&\".\"&$Y19&\".\"&$T$84&\".\"&$Y$7,$D$81,$D$82,CONFIGURATION!$B$10,\"BMA\",CONFIGURATION!$B$1,\"bscr\",CONFIGURATION!$B$12)","v":"Mapped"},null,{"$f":"XBRLMap(V19,V$83&\".\"&$Y19&\".\"&$V$84&\".\"&$Y$7,$F$81,$F$82,CONFIGURATION!$B$10,\"BMA\",CONFIGURATION!$B$1,\"bscr\",CONFIGURATION!$B$12)","v":"Mapped"}]
[null,null,null,{"$f":"XBRLMap(D20,D$83&\".\"&$Y20&\".\"&$D$84&\".\"&$Y$7,$D$81,$D$82,CONFIGURATION!$B$10,\"BMA\",CONFIGURATION!$B$1,\"bscr\",CONFIGURATION!$B$12)","v":"Mapped"},null,{"$f":"XBRLMap(F20,F$83&\".\"&$Y20&\".\"&$F$84&\".\"&$Y$7,$F$81,$F$82,CONFIGURATION!$B$10,\"BMA\",CONFIGURATION!$B$1,\"bscr\",CONFIGURATION!$B$12)","v":"Mapped"},null,{"$f":"XBRLMap(H20,H$83&\".\"&$Y20&\".\"&$H$84&\".\"&$Y$7,$D$81,$D$82,CONFIGURATION!$B$10,\"BMA\",CONFIGURATION!$B$1,\"bscr\",CONFIGURATION!$B$12)","v":"Mapped"},null,{"$f":"XBRLMap(J20,J$83&\".\"&$Y20&\".\"&$J$84&\".\"&$Y$7,$F$81,$F$82,CONFIGURATION!$B$10,\"BMA\",CONFIGURATION!$B$1,\"bscr\",CONFIGURATION!$B$12)","v":"Mapped"},null,{"$f":"XBRLMap(L20,L$83&\".\"&$Y20&\".\"&$L$84&\".\"&$Y$7,$D$81,$D$82,CONFIGURATION!$B$10,\"BMA\",CONFIGURATION!$B$1,\"bscr\",CONFIGURATION!$B$12)","v":"Mapped"},null,{"$f":"XBRLMap(N20,N$83&\".\"&$Y20&\".\"&$N$84&\".\"&$Y$7,$F$81,$F$82,CONFIGURATION!$B$10,\"BMA\",CONFIGURATION!$B$1,\"bscr\",CONFIGURATION!$B$12)","v":"Mapped"},null,{"$f":"XBRLMap(P20,P$83&\".\"&$Y20&\".\"&$P$84&\".\"&$Y$7,$D$81,$D$82,CONFIGURATION!$B$10,\"BMA\",CONFIGURATION!$B$1,\"bscr\",CONFIGURATION!$B$12)","v":"Mapped"},null,{"$f":"XBRLMap(R20,R$83&\".\"&$Y20&\".\"&$R$84&\".\"&$Y$7,$F$81,$F$82,CONFIGURATION!$B$10,\"BMA\",CONFIGURATION!$B$1,\"bscr\",CONFIGURATION!$B$12)","v":"Mapped"},null,{"$f":"XBRLMap(T20,T$83&\".\"&$Y20&\".\"&$T$84&\".\"&$Y$7,$D$81,$D$82,CONFIGURATION!$B$10,\"BMA\",CONFIGURATION!$B$1,\"bscr\",CONFIGURATION!$B$12)","v":"Mapped"},null,{"$f":"XBRLMap(V20,V$83&\".\"&$Y20&\".\"&$V$84&\".\"&$Y$7,$F$81,$F$82,CONFIGURATION!$B$10,\"BMA\",CONFIGURATION!$B$1,\"bscr\",CONFIGURATION!$B$12)","v":"Mapped"}]
[]
[null,null,null,{"$f":"XBRLMap(D22,D$83&\".\"&$Y22&\".\"&$D$84&\".\"&$Y$7,$D$81,$D$82,CONFIGURATION!$B$10,\"BMA\",CONFIGURATION!$B$1,\"bscr\",CONFIGURATION!$B$12)","v":"Mapped"},null,{"$f":"XBRLMap(F22,F$83&\".\"&$Y22&\".\"&$F$84&\".\"&$Y$7,$F$81,$F$82,CONFIGURATION!$B$10,\"BMA\",CONFIGURATION!$B$1,\"bscr\",CONFIGURATION!$B$12)","v":"Mapped"},null,{"$f":"XBRLMap(H22,H$83&\".\"&$Y22&\".\"&$H$84&\".\"&$Y$7,$D$81,$D$82,CONFIGURATION!$B$10,\"BMA\",CONFIGURATION!$B$1,\"bscr\",CONFIGURATION!$B$12)","v":"Mapped"},null,{"$f":"XBRLMap(J22,J$83&\".\"&$Y22&\".\"&$J$84&\".\"&$Y$7,$F$81,$F$82,CONFIGURATION!$B$10,\"BMA\",CONFIGURATION!$B$1,\"bscr\",CONFIGURATION!$B$12)","v":"Mapped"},null,{"$f":"XBRLMap(L22,L$83&\".\"&$Y22&\".\"&$L$84&\".\"&$Y$7,$D$81,$D$82,CONFIGURATION!$B$10,\"BMA\",CONFIGURATION!$B$1,\"bscr\",CONFIGURATION!$B$12)","v":"Mapped"},null,{"$f":"XBRLMap(N22,N$83&\".\"&$Y22&\".\"&$N$84&\".\"&$Y$7,$F$81,$F$82,CONFIGURATION!$B$10,\"BMA\",CONFIGURATION!$B$1,\"bscr\",CONFIGURATION!$B$12)","v":"Mapped"},null,{"$f":"XBRLMap(P22,P$83&\".\"&$Y22&\".\"&$P$84&\".\"&$Y$7,$D$81,$D$82,CONFIGURATION!$B$10,\"BMA\",CONFIGURATION!$B$1,\"bscr\",CONFIGURATION!$B$12)","v":"Mapped"},null,{"$f":"XBRLMap(R22,R$83&\".\"&$Y22&\".\"&$R$84&\".\"&$Y$7,$F$81,$F$82,CONFIGURATION!$B$10,\"BMA\",CONFIGURATION!$B$1,\"bscr\",CONFIGURATION!$B$12)","v":"Mapped"},null,{"$f":"XBRLMap(T22,T$83&\".\"&$Y22&\".\"&$T$84&\".\"&$Y$7,$D$81,$D$82,CONFIGURATION!$B$10,\"BMA\",CONFIGURATION!$B$1,\"bscr\",CONFIGURATION!$B$12)","v":"Mapped"},null,{"$f":"XBRLMap(V22,V$83&\".\"&$Y22&\".\"&$V$84&\".\"&$Y$7,$F$81,$F$82,CONFIGURATION!$B$10,\"BMA\",CONFIGURATION!$B$1,\"bscr\",CONFIGURATION!$B$12)","v":"Mapped"}]
[]
[null,null,null,"brrt_QuotedInvestmentsEquitiesCommonStocks",null,"brrt_QuotedInvestmentsEquitiesCommonStocks",null,null,null,null,null,"brrt_QuotedInvestmentsEquitiesMutualFunds",null,"brrt_QuotedInvestmentsEquitiesMutualFunds",null,null,null,null,null,"brrt_QuotedInvestmentsEquitiesCommonStocksMutualFunds",null,"brrt_QuotedInvestmentsEquitiesCommonStocksMutualFunds"]
[null,null,null,"brrt_UnquotedInvestmentsEquitiesCommonStocks",null,"brrt_UnquotedInvestmentsEquitiesCommonStocks",null,null,null,null,null,"brrt_UnquotedInvestmentsEquitiesMutualFunds",null,"brrt_UnquotedInvestmentsEquitiesMutualFunds",null,null,null,null,null,"brrt_UnquotedInvestmentsEquitiesCommonStocksMutualFunds",null,"brrt_UnquotedInvestmentsEquitiesCommonStocksMutualFunds"]
[null,null,null,"brrt_EquitiesCommonStocks",null,"brrt_EquitiesCommonStocks",null,"brrt_EquitiesPreferredStocks",null,"brrt_EquitiesPreferredStocks",null,"brrt_EquitiesMutualFunds",null,"brrt_EquitiesMutualFunds",null,null,null,null,null,"brrt_Equities",null,"brrt_Equities"]
[null,null,null,null,null,null,null,{"$f":"XBRLMap(H33,H$99&\".\"&$Y33&\".\"&$Y$7,$D$81,$D$82,CONFIGURATION!$B$10,\"BMA\",CONFIGURATION!$B$1,\"bscr\",CONFIGURATION!$B$12)","v":"Mapped"},null,{"$f":"XBRLMap(J33,J$99&\".\"&$Y33&\".\"&$Y$7,$F$81,$F$82,CONFIGURATION!$B$10,\"BMA\",CONFIGURATION!$B$1,\"bscr\",CONFIGURATION!$B$12)","v":"Mapped"},null,null,null,null,null,null,null,null,null,"The same data point as in column H",null,"The same data point as in column J"]
[null,null,null,null,null,null,null,{"$f":"XBRLMap(H34,H$99&\".\"&$Y34&\".\"&$Y$7,$D$81,$D$82,CONFIGURATION!$B$10,\"BMA\",CONFIGURATION!$B$1,\"bscr\",CONFIGURATION!$B$12)","v":"Mapped"},null,{"$f":"XBRLMap(J34,J$99&\".\"&$Y34&\".\"&$Y$7,$F$81,$F$82,CONFIGURATION!$B$10,\"BMA\",CONFIGURATION!$B$1,\"bscr\",CONFIGURATION!$B$12)","v":"Mapped"},null,null,null,null,null,null,null,null,null,"The same data point as in column H",null,"The same data point as in column J"]
[null,null,null,null,null,null,null,{"$f":"XBRLMap(H35,H$99&\".\"&$Y35&\".\"&$Y$7,$D$81,$D$82,CONFIGURATION!$B$10,\"BMA\",CONFIGURATION!$B$1,\"bscr\",CONFIGURATION!$B$12)","v":"Mapped"},null,{"$f":"XBRLMap(J35,J$99&\".\"&$Y35&\".\"&$Y$7,$F$81,$F$82,CONFIGURATION!$B$10,\"BMA\",CONFIGURATION!$B$1,\"bscr\",CONFIGURATION!$B$12)","v":"Mapped"},null,null,null,null,null,null,null,null,null,"The same data point as in column H",null,"The same data point as in column J"]
[null,null,null,null,null,null,null,{"$f":"XBRLMap(H36,H$99&\".\"&$Y36&\".\"&$Y$7,$D$81,$D$82,CONFIGURATION!$B$10,\"BMA\",CONFIGURATION!$B$1,\"bscr\",CONFIGURATION!$B$12)","v":"Mapped"},null,{"$f":"XBRLMap(J36,J$99&\".\"&$Y36&\".\"&$Y$7,$F$81,$F$82,CONFIGURATION!$B$10,\"BMA\",CONFIGURATION!$B$1,\"bscr\",CONFIGURATION!$B$12)","v":"Mapped"},null,null,null,null,null,null,null,null,null,"The same data point as in column H",null,"The same data point as in column J"]
[null,null,null,null,null,null,null,{"$f":"XBRLMap(H37,H$99&\".\"&$Y37&\".\"&$Y$7,$D$81,$D$82,CONFIGURATION!$B$10,\"BMA\",CONFIGURATION!$B$1,\"bscr\",CONFIGURATION!$B$12)","v":"Mapped"},null,{"$f":"XBRLMap(J37,J$99&\".\"&$Y37&\".\"&$Y$7,$F$81,$F$82,CONFIGURATION!$B$10,\"BMA\",CONFIGURATION!$B$1,\"bscr\",CONFIGURATION!$B$12)","v":"Mapped"},null,null,null,null,null,null,null,null,null,"The same data point as in column H",null,"The same data point as in column J"]
[null,null,null,null,null,null,null,{"$f":"XBRLMap(H38,H$99&\".\"&$Y38&\".\"&$Y$7,$D$81,$D$82,CONFIGURATION!$B$10,\"BMA\",CONFIGURATION!$B$1,\"bscr\",CONFIGURATION!$B$12)","v":"Mapped"},null,{"$f":"XBRLMap(J38,J$99&\".\"&$Y38&\".\"&$Y$7,$F$81,$F$82,CONFIGURATION!$B$10,\"BMA\",CONFIGURATION!$B$1,\"bscr\",CONFIGURATION!$B$12)","v":"Mapped"},null,null,null,null,null,null,null,null,null,"The same data point as in column H",null,"The same data point as in column J"]
[null,null,null,null,null,null,null,{"$f":"XBRLMap(H39,H$99&\".\"&$Y39&\".\"&$Y$7,$D$81,$D$82,CONFIGURATION!$B$10,\"BMA\",CONFIGURATION!$B$1,\"bscr\",CONFIGURATION!$B$12)","v":"Mapped"},null,{"$f":"XBRLMap(J39,J$99&\".\"&$Y39&\".\"&$Y$7,$F$81,$F$82,CONFIGURATION!$B$10,\"BMA\",CONFIGURATION!$B$1,\"bscr\",CONFIGURATION!$B$12)","v":"Mapped"},null,null,null,null,null,null,null,null,null,"The same data point as in column H",null,"The same data point as in column J"]
[null,null,null,null,null,null,null,{"$f":"XBRLMap(H40,H$99&\".\"&$Y40&\".\"&$Y$7,$D$81,$D$82,CONFIGURATION!$B$10,\"BMA\",CONFIGURATION!$B$1,\"bscr\",CONFIGURATION!$B$12)","v":"Mapped"},null,{"$f":"XBRLMap(J40,J$99&\".\"&$Y40&\".\"&$Y$7,$F$81,$F$82,CONFIGURATION!$B$10,\"BMA\",CONFIGURATION!$B$1,\"bscr\",CONFIGURATION!$B$12)","v":"Mapped"},null,null,null,null,null,null,null,null,null,"The same data point as in column H",null,"The same data point as in column J"]
[null,null,null,{"$f":"XBRLMap(D41,D$97&\".\"&$Y$7,$D$81,$D$82,CONFIGURATION!$B$10,\"BMA\",CONFIGURATION!$B$1,\"bscr\",CONFIGURATION!$B$12)","v":"Mapped"},null,{"$f":"XBRLMap(F41,F$97&\".\"&$Y$7,$F$81,$F$82,CONFIGURATION!$B$10,\"BMA\",CONFIGURATION!$B$1,\"bscr\",CONFIGURATION!$B$12)","v":"Mapped"},null,null,null,null,null,{"$f":"XBRLMap(L41,L$97&\".\"&$Y$7,$D$81,$D$82,CONFIGURATION!$B$10,\"BMA\",CONFIGURATION!$B$1,\"bscr\",CONFIGURATION!$B$12)","v":"Mapped"},null,{"$f":"XBRLMap(N41,N$97&\".\"&$Y$7,$F$81,$F$82,CONFIGURATION!$B$10,\"BMA\",CONFIGURATION!$B$1,\"bscr\",CONFIGURATION!$B$12)","v":"Mapped"},null,null,null,null,null,{"$f":"XBRLMap(T41,T$97&\".\"&$Y$7,$D$81,$D$82,CONFIGURATION!$B$10,\"BMA\",CONFIGURATION!$B$1,\"bscr\",CONFIGURATION!$B$12)","v":"Mapped"},null,{"$f":"XBRLMap(V41,V$97&\".\"&$Y$7,$F$81,$F$82,CONFIGURATION!$B$10,\"BMA\",CONFIGURATION!$B$1,\"bscr\",CONFIGURATION!$B$12)","v":"Mapped"}]
[null,null,null,{"$f":"XBRLMap(D42,D$98&\".\"&$Y$7,$D$81,$D$82,CONFIGURATION!$B$10,\"BMA\",CONFIGURATION!$B$1,\"bscr\",CONFIGURATION!$B$12)","v":"Mapped"},null,{"$f":"XBRLMap(F42,F$98&\".\"&$Y$7,$F$81,$F$82,CONFIGURATION!$B$10,\"BMA\",CONFIGURATION!$B$1,\"bscr\",CONFIGURATION!$B$12)","v":"Mapped"},null,null,null,null,null,{"$f":"XBRLMap(L42,L$98&\".\"&$Y$7,$D$81,$D$82,CONFIGURATION!$B$10,\"BMA\",CONFIGURATION!$B$1,\"bscr\",CONFIGURATION!$B$12)","v":"Mapped"},null,{"$f":"XBRLMap(N42,N$98&\".\"&$Y$7,$F$81,$F$82,CONFIGURATION!$B$10,\"BMA\",CONFIGURATION!$B$1,\"bscr\",CONFIGURATION!$B$12)","v":"Mapped"},null,null,null,null,null,{"$f":"XBRLMap(T42,T$98&\".\"&$Y$7,$D$81,$D$82,CONFIGURATION!$B$10,\"BMA\",CONFIGURATION!$B$1,\"bscr\",CONFIGURATION!$B$12)","v":"Mapped"},null,{"$f":"XBRLMap(V42,V$98&\".\"&$Y$7,$F$81,$F$82,CONFIGURATION!$B$10,\"BMA\",CONFIGURATION!$B$1,\"bscr\",CONFIGURATION!$B$12)","v":"Mapped"}]
[]
[null,null,null,{"$f":"XBRLMap(D44,D$99&\".\"&$Y$7,$D$81,$D$82,CONFIGURATION!$B$10,\"BMA\",CONFIGURATION!$B$1,\"bscr\",CONFIGURATION!$B$12)","v":"Mapped"},null,{"$f":"XBRLMap(F44,F$99&\".\"&$Y$7,$F$81,$F$82,CONFIGURATION!$B$10,\"BMA\",CONFIGURATION!$B$1,\"bscr\",CONFIGURATION!$B$12)","v":"Mapped"},null,{"$f":"XBRLMap(H44,H$99&\".\"&$Y44&\".\"&$Y$7,$D$81,$D$82,CONFIGURATION!$B$10,\"BMA\",CONFIGURATION!$B$1,\"bscr\",CONFIGURATION!$B$12)","v":"Mapped"},null,{"$f":"XBRLMap(J44,J$99&\".\"&$Y44&\".\"&$Y$7,$F$81,$F$82,CONFIGURATION!$B$10,\"BMA\",CONFIGURATION!$B$1,\"bscr\",CONFIGURATION!$B$12)","v":"Mapped"},null,{"$f":"XBRLMap(L44,L$99&\".\"&$Y$7,$D$81,$D$82,CONFIGURATION!$B$10,\"BMA\",CONFIGURATION!$B$1,\"bscr\",CONFIGURATION!$B$12)","v":"Mapped"},null,{"$f":"XBRLMap(N44,N$99&\".\"&$Y$7,$F$81,$F$82,CONFIGURATION!$B$10,\"BMA\",CONFIGURATION!$B$1,\"bscr\",CONFIGURATION!$B$12)","v":"Mapped"},null,null,null,null,null,{"$f":"XBRLMap(T44,T$99&\".\"&$Y$7,$D$81,$D$82,CONFIGURATION!$B$10,\"BMA\",CONFIGURATION!$B$1,\"bscr\",CONFIGURATION!$B$12)","v":"Mapped"},null,{"$f":"XBRLMap(V44,V$99&\".\"&$Y$7,$F$81,$F$82,CONFIGURATION!$B$10,\"BMA\",CONFIGURATION!$B$1,\"bscr\",CONFIGURATION!$B$12)","v":"Mapped"}]
[]
[]
[]
[null,null,null,null,null,null,null,null,null,null,null,"brrt_BondsAndDebentures",null,"brrt_BondsAndDebentures",null,"brrt_BondsAndDebentures",null,"brrt_BondsAndDebentures"]
[null,null,null,null,null,null,null,null,null,null,null,"brrt_SecurityTypeAxis_brrt_ResidentialMortgageBackedSecuritiesMember",null,"brrt_SecurityTypeAxis_brrt_ResidentialMortgageBackedSecuritiesMember",null,"brrt_SecurityTypeAxis_brrt_CommercialMortgageBackedSecuritiesAssetBackedSecuritiesMember",null,"brrt_SecurityTypeAxis_brrt_CommercialMortgageBackedSecuritiesAssetBackedSecuritiesMember"]
[null,null,null,null,null,null,null,null,null,null,null,"brrt_ClassificationAxis_brrt_OriginalClassificationMember",null,"brrt_ClassificationAxis_brrt_RevisedClassificationMember",null,"brrt_ClassificationAxis_brrt_OriginalClassificationMember",null,"brrt_ClassificationAxis_brrt_RevisedClassificationMember"]
[null,null,null,null,null,null,null,null,null,null,null,{"$f":"XBRLMap(L55,L$115&\".\"&$AB55&\".\"&$L$116&\".\"&$L$117&\".\"&$Y$7,$D$81,$D$82,CONFIGURATION!$B$10,\"BMA\",CONFIGURATION!$B$1,\"bscr\",CONFIGURATION!$B$12)","v":"Mapped"},null,{"$f":"XBRLMap(N55,N$115&\".\"&$AB55&\".\"&$N$116&\".\"&$N$117&\".\"&$Y$7,$D$81,$D$82,CONFIGURATION!$B$10,\"BMA\",CONFIGURATION!$B$1,\"bscr\",CONFIGURATION!$B$12)","v":"Mapped"},null,{"$f":"XBRLMap(P55,P$115&\".\"&$AB55&\".\"&$P$116&\".\"&$P$117&\".\"&$Y$7,$D$81,$D$82,CONFIGURATION!$B$10,\"BMA\",CONFIGURATION!$B$1,\"bscr\",CONFIGURATION!$B$12)","v":"Mapped"},null,{"$f":"XBRLMap(R55,R$115&\".\"&$AB55&\".\"&$R$116&\".\"&$R$117&\".\"&$Y$7,$D$81,$D$82,CONFIGURATION!$B$10,\"BMA\",CONFIGURATION!$B$1,\"bscr\",CONFIGURATION!$B$12)","v":"Mapped"}]
[null,null,null,null,null,null,null,null,null,null,null,{"$f":"XBRLMap(L56,L$115&\".\"&$AB56&\".\"&$L$116&\".\"&$L$117&\".\"&$Y$7,$D$81,$D$82,CONFIGURATION!$B$10,\"BMA\",CONFIGURATION!$B$1,\"bscr\",CONFIGURATION!$B$12)","v":"Mapped"},null,{"$f":"XBRLMap(N56,N$115&\".\"&$AB56&\".\"&$N$116&\".\"&$N$117&\".\"&$Y$7,$D$81,$D$82,CONFIGURATION!$B$10,\"BMA\",CONFIGURATION!$B$1,\"bscr\",CONFIGURATION!$B$12)","v":"Mapped"},null,{"$f":"XBRLMap(P56,P$115&\".\"&$AB56&\".\"&$P$116&\".\"&$P$117&\".\"&$Y$7,$D$81,$D$82,CONFIGURATION!$B$10,\"BMA\",CONFIGURATION!$B$1,\"bscr\",CONFIGURATION!$B$12)","v":"Mapped"},null,{"$f":"XBRLMap(R56,R$115&\".\"&$AB56&\".\"&$R$116&\".\"&$R$117&\".\"&$Y$7,$D$81,$D$82,CONFIGURATION!$B$10,\"BMA\",CONFIGURATION!$B$1,\"bscr\",CONFIGURATION!$B$12)","v":"Mapped"}]
[null,null,null,null,null,null,null,null,null,null,null,{"$f":"XBRLMap(L57,L$115&\".\"&$AB57&\".\"&$L$116&\".\"&$L$117&\".\"&$Y$7,$D$81,$D$82,CONFIGURATION!$B$10,\"BMA\",CONFIGURATION!$B$1,\"bscr\",CONFIGURATION!$B$12)","v":"Mapped"},null,{"$f":"XBRLMap(N57,N$115&\".\"&$AB57&\".\"&$N$116&\".\"&$N$117&\".\"&$Y$7,$D$81,$D$82,CONFIGURATION!$B$10,\"BMA\",CONFIGURATION!$B$1,\"bscr\",CONFIGURATION!$B$12)","v":"Mapped"},null,{"$f":"XBRLMap(P57,P$115&\".\"&$AB57&\".\"&$P$116&\".\"&$P$117&\".\"&$Y$7,$D$81,$D$82,CONFIGURATION!$B$10,\"BMA\",CONFIGURATION!$B$1,\"bscr\",CONFIGURATION!$B$12)","v":"Mapped"},null,{"$f":"XBRLMap(R57,R$115&\".\"&$AB57&\".\"&$R$116&\".\"&$R$117&\".\"&$Y$7,$D$81,$D$82,CONFIGURATION!$B$10,\"BMA\",CONFIGURATION!$B$1,\"bscr\",CONFIGURATION!$B$12)","v":"Mapped"}]
[null,null,null,null,null,null,null,null,null,null,null,{"$f":"XBRLMap(L58,L$115&\".\"&$AB58&\".\"&$L$116&\".\"&$L$117&\".\"&$Y$7,$D$81,$D$82,CONFIGURATION!$B$10,\"BMA\",CONFIGURATION!$B$1,\"bscr\",CONFIGURATION!$B$12)","v":"Mapped"},null,{"$f":"XBRLMap(N58,N$115&\".\"&$AB58&\".\"&$N$116&\".\"&$N$117&\".\"&$Y$7,$D$81,$D$82,CONFIGURATION!$B$10,\"BMA\",CONFIGURATION!$B$1,\"bscr\",CONFIGURATION!$B$12)","v":"Mapped"},null,{"$f":"XBRLMap(P58,P$115&\".\"&$AB58&\".\"&$P$116&\".\"&$P$117&\".\"&$Y$7,$D$81,$D$82,CONFIGURATION!$B$10,\"BMA\",CONFIGURATION!$B$1,\"bscr\",CONFIGURATION!$B$12)","v":"Mapped"},null,{"$f":"XBRLMap(R58,R$115&\".\"&$AB58&\".\"&$R$116&\".\"&$R$117&\".\"&$Y$7,$D$81,$D$82,CONFIGURATION!$B$10,\"BMA\",CONFIGURATION!$B$1,\"bscr\",CONFIGURATION!$B$12)","v":"Mapped"}]
[null,null,null,null,null,null,null,null,null,null,null,{"$f":"XBRLMap(L59,L$115&\".\"&$AB59&\".\"&$L$116&\".\"&$L$117&\".\"&$Y$7,$D$81,$D$82,CONFIGURATION!$B$10,\"BMA\",CONFIGURATION!$B$1,\"bscr\",CONFIGURATION!$B$12)","v":"Mapped"},null,{"$f":"XBRLMap(N59,N$115&\".\"&$AB59&\".\"&$N$116&\".\"&$N$117&\".\"&$Y$7,$D$81,$D$82,CONFIGURATION!$B$10,\"BMA\",CONFIGURATION!$B$1,\"bscr\",CONFIGURATION!$B$12)","v":"Mapped"},null,{"$f":"XBRLMap(P59,P$115&\".\"&$AB59&\".\"&$P$116&\".\"&$P$117&\".\"&$Y$7,$D$81,$D$82,CONFIGURATION!$B$10,\"BMA\",CONFIGURATION!$B$1,\"bscr\",CONFIGURATION!$B$12)","v":"Mapped"},null,{"$f":"XBRLMap(R59,R$115&\".\"&$AB59&\".\"&$R$116&\".\"&$R$117&\".\"&$Y$7,$D$81,$D$82,CONFIGURATION!$B$10,\"BMA\",CONFIGURATION!$B$1,\"bscr\",CONFIGURATION!$B$12)","v":"Mapped"}]
[null,null,null,null,null,null,null,null,null,null,null,{"$f":"XBRLMap(L60,L$115&\".\"&$AB60&\".\"&$L$116&\".\"&$L$117&\".\"&$Y$7,$D$81,$D$82,CONFIGURATION!$B$10,\"BMA\",CONFIGURATION!$B$1,\"bscr\",CONFIGURATION!$B$12)","v":"Mapped"},null,{"$f":"XBRLMap(N60,N$115&\".\"&$AB60&\".\"&$N$116&\".\"&$N$117&\".\"&$Y$7,$D$81,$D$82,CONFIGURATION!$B$10,\"BMA\",CONFIGURATION!$B$1,\"bscr\",CONFIGURATION!$B$12)","v":"Mapped"},null,{"$f":"XBRLMap(P60,P$115&\".\"&$AB60&\".\"&$P$116&\".\"&$P$117&\".\"&$Y$7,$D$81,$D$82,CONFIGURATION!$B$10,\"BMA\",CONFIGURATION!$B$1,\"bscr\",CONFIGURATION!$B$12)","v":"Mapped"},null,{"$f":"XBRLMap(R60,R$115&\".\"&$AB60&\".\"&$R$116&\".\"&$R$117&\".\"&$Y$7,$D$81,$D$82,CONFIGURATION!$B$10,\"BMA\",CONFIGURATION!$B$1,\"bscr\",CONFIGURATION!$B$12)","v":"Mapped"}]
[]
[null,null,null,null,null,null,null,null,null,null,null,{"$f":"XBRLMap(L62,L$115&\".\"&$AB62&\".\"&$L$116&\".\"&$L$117&\".\"&$Y$7,$D$81,$D$82,CONFIGURATION!$B$10,\"BMA\",CONFIGURATION!$B$1,\"bscr\",CONFIGURATION!$B$12)","v":"Mapped"},null,{"$f":"XBRLMap(N62,N$115&\".\"&$AB62&\".\"&$N$116&\".\"&$N$117&\".\"&$Y$7,$D$81,$D$82,CONFIGURATION!$B$10,\"BMA\",CONFIGURATION!$B$1,\"bscr\",CONFIGURATION!$B$12)","v":"Mapped"},null,{"$f":"XBRLMap(P62,P$115&\".\"&$AB62&\".\"&$P$116&\".\"&$P$117&\".\"&$Y$7,$D$81,$D$82,CONFIGURATION!$B$10,\"BMA\",CONFIGURATION!$B$1,\"bscr\",CONFIGURATION!$B$12)","v":"Mapped"},null,{"$f":"XBRLMap(R62,R$115&\".\"&$AB62&\".\"&$R$116&\".\"&$R$117&\".\"&$Y$7,$D$81,$D$82,CONFIGURATION!$B$10,\"BMA\",CONFIGURATION!$B$1,\"bscr\",CONFIGURATION!$B$12)","v":"Mapped"}]

{"sheet":"Schedule IIA (EBS)","index":25,"n_rows":125,"n_cols":28,"rows_kept":125,"cut":false,"hidden":false,"merged":[[71,2,73,2],[63,3,63,5],[6,19,6,21],[28,3,28,5],[28,7,28,9],[28,11,28,13],[28,19,28,21],[6,15,6,17],[6,3,6,5],[6,7,6,9],[1,2,1,6],[2,3,2,5],[3,3,3,5],[50,8,51,20],[52,11,52,13],[52,15,52,17],[51,3,51,5],[6,11,6,13],[28,15,28,17]]}
[null,"SCHEDULE OF FUNDS HELD BY CEDING REINSURERS IN SEGREGATED ACCOUNTS / TRUSTS BY BSCR RATING",null,null,null,null,null,null,null,null,null,null,null,null,null,null,null,null,null,null,null,{"$f":"HYPERLINK(\"#'Index'!A1\",\"Return to Index\")","v":"Return to Index"}]
[null,null,{"$f":"'Insurer Information'!C7","v":"Enter Company Name"}]
[null,null,"As at",{"$f":"'Form 4EBS'!C3","v":"2019-12-31"},null,null,null,null,null,null,null,null,null,null,null,null,null,null,null,null,null,"SCHEDULE IIA (EBS)"]
[null,null,{"$f":"\"Expressed in \" & IF(CONFIGURATION!$B$12>1,\" ['\"&MID(CONFIGURATION!$B$12,2,LEN(CONFIGURATION!$B$12))&\"s]\",\"\")","v":"Expressed in  ['000s]"},{"$f":"'Form 4EBS'!C4","v":"United States Dollars"}]
[]
[null,null,null,"(1)",null,"(2)",null,"(3)",null,"(4)",null,"(5)",null,{"$f":"YEAR('Insurer Information'!C3)","v":2019},null,"(7)",null,"(8)",null,"(9)",null,"(10)"]
[null,null,null,"CORPORATE & SOVEREIGN BONDS",null,null,null,"RESIDENTIAL MORTGAGE-BACKED SECURITIES",null,null,null,"COMMERCIAL MORTGAGE-BACKED SECURITIES / ASSET-BACKED SECURITIES",null,null,null,"BOND MUTUAL FUNDS",null,null,null,"TOTAL",null,null,null,null,"brrt_RiskTransferAxis_brrt_FundsHeldByCedingReinsurersInSegregatedAccountsTrustsMember"]
[null,null,null,{"$f":"'Form 4EBS'!F6","v":"2019-12-31"},null,{"$f":"'Form 4EBS'!H6","v":"2018-12-31"},null,{"$f":"'Form 4EBS'!F6","v":"2019-12-31"},null,{"$f":"'Form 4EBS'!H6","v":"2018-12-31"},null,{"$f":"'Form 4EBS'!F6","v":"2019-12-31"},null,{"$f":"'Form 4EBS'!H6","v":"2018-12-31"},null,{"$f":"'Form 4EBS'!F6","v":"2019-12-31"},null,{"$f":"'Form 4EBS'!H6","v":"2018-12-31"},null,{"$f":"D8","v":"2019-12-31"},null,{"$f":"F8","v":"2018-12-31"}]
[null,null,null,{"$f":"CONFIGURATION!$D$12","v":" ('000s)"},null,{"$f":"CONFIGURATION!$D$12","v":" ('000s)"},null,{"$f":"CONFIGURATION!$D$12","v":" ('000s)"},null,{"$f":"CONFIGURATION!$D$12","v":" ('000s)"},null,{"$f":"CONFIGURATION!$D$12","v":" ('000s)"},null,{"$f":"CONFIGURATION!$D$12","v":" ('000s)"},null,{"$f":"CONFIGURATION!$D$12","v":" ('000s)"},null,{"$f":"CONFIGURATION!$D$12","v":" ('000s)"},null,{"$f":"CONFIGURATION!$D$12","v":" ('000s)"},null,{"$f":"CONFIGURATION!$D$12","v":" ('000s)"}]
[null,"Line no. "]
[null,"Quoted and Unquoted Bonds and Debentures"]
[null,1,"BSCR Rating 0",{"$f":"Import!M522","v":0},null,{"$f":"Import!O522","v":0},null,null,null,null,null,null,null,null,null,{"$f":"Import!M547","v":0},null,{"$f":"Import!O547","v":0},null,{"$f":"D12+H12+L12+P12","v":0},null,{"$f":"F12+J12+N12+R12","v":0},null,null,"brrt_RiskGradeAxis_brrt_BSCRRating0Member"]
[null,2,"BSCR Rating 1",{"$f":"Import!M523","v":0},null,{"$f":"Import!O523","v":0},null,{"$f":"Import!M531","v":0},null,{"$f":"Import!O531","v":0},null,{"$f":"Import!M539","v":0},null,{"$f":"Import!O539","v":0},null,{"$f":"Import!M548","v":0},null,{"$f":"Import!O548","v":0},null,{"$f":"D13+H13+L13+P13","v":0},null,0,null,null,"brrt_RiskGradeAxis_brrt_BSCRRating1Member"]
[null,3,"BSCR Rating 2",{"$f":"Import!M524","v":0},null,{"$f":"Import!O524","v":0},null,{"$f":"Import!M532","v":0},null,{"$f":"Import!O532","v":0},null,{"$f":"Import!M540","v":0},null,{"$f":"Import!O540","v":0},null,{"$f":"Import!M549","v":0},null,{"$f":"Import!O549","v":0},null,0,null,0,null,null,"brrt_RiskGradeAxis_brrt_BSCRRating2Member"]
[null,4,"BSCR Rating 3",{"$f":"Import!M525","v":0},null,{"$f":"Import!O525","v":0},null,{"$f":"Import!M533","v":0},null,{"$f":"Import!O533","v":0},null,{"$f":"Import!M541","v":0},null,{"$f":"Import!O541","v":0},null,{"$f":"Import!M550","v":0},null,{"$f":"Import!O550","v":0},null,0,null,0,null,null,"brrt_RiskGradeAxis_brrt_BSCRRating3Member"]
[null,5,"BSCR Rating 4",{"$f":"Import!M526","v":0},null,{"$f":"Import!O526","v":0},null,{"$f":"Import!M534","v":0},null,{"$f":"Import!O534","v":0},null,{"$f":"Import!M542","v":0},null,{"$f":"Import!O542","v":0},null,{"$f":"Import!M551","v":0},null,{"$f":"Import!O551","v":0},null,0,null,0,null,null,"brrt_RiskGradeAxis_brrt_BSCRRating4Member"]
[null,6,"BSCR Rating 5",{"$f":"Import!M527","v":0},null,{"$f":"Import!O527","v":0},null,{"$f":"Import!M535","v":0},null,{"$f":"Import!O535","v":0},null,{"$f":"Import!M543","v":0},null,{"$f":"Import!O543","v":0},null,{"$f":"Import!M552","v":0},null,{"$f":"Import!O552","v":0},null,0,null,0,null,null,"brrt_RiskGradeAxis_brrt_BSCRRating5Member"]
[null,7,"BSCR Rating 6",{"$f":"Import!M528","v":0},null,{"$f":"Import!O528","v":0},null,{"$f":"Import!M536","v":0},null,{"$f":"Import!O536","v":0},null,{"$f":"Import!M544","v":0},null,{"$f":"Import!O544","v":0},null,{"$f":"Import!M553","v":0},null,{"$f":"Import!O553","v":0},null,0,null,0,null,null,"brrt_RiskGradeAxis_brrt_BSCRRating6Member"]
[null,8,"BSCR Rating 7",{"$f":"Import!M529","v":0},null,{"$f":"Import!O529","v":0},null,{"$f":"Import!M537","v":0},null,{"$f":"Import!O537","v":0},null,{"$f":"Import!M545","v":0},null,{"$f":"Import!O545","v":0},null,{"$f":"Import!M554","v":0},null,{"$f":"Import!O554","v":0},null,0,null,0,null,null,"brrt_RiskGradeAxis_brrt_BSCRRating7Member"]
[null,9,"BSCR Rating 8",{"$f":"Import!M530","v":0},null,{"$f":"Import!O530","v":0},null,{"$f":"Import!M538","v":0},null,{"$f":"Import!O538","v":0},null,{"$f":"Import!M546","v":0},null,{"$f":"Import!O546","v":0},null,{"$f":"Import!M555","v":0},null,{"$f":"Import!O555","v":0},null,0,null,0,null,null,"brrt_RiskGradeAxis_brrt_BSCRRating8Member"]
[]
[null,10,"Total",{"$f":"SUM(D12:D20)","v":0},null,{"$f":"SUM(F12:F20)","v":0},null,{"$f":"SUM(H12:H20)","v":0},null,{"$f":"SUM(J12:J20)","v":0},null,{"$f":"SUM(L12:L20)","v":0},null,{"$f":"SUM(N12:N20)","v":0},null,{"$f":"SUM(P12:P20)","v":0},null,{"$f":"SUM(R12:R20)","v":0},null,{"$f":"SUM(T12:T20)","v":0},null,{"$f":"SUM(V12:V20)","v":0},null,null,"brrt_RiskGradeAxis_brrt_TotalMember"]
[]
[]
[]
[]
[]
[]
[null,null,null,"COMMON STOCK",null,null,null,"PREFERRED STOCK",null,null,null,"EQUITY MUTUAL FUNDS",null,null,null,"OTHER INVESTMENTS",null,null,null,"TOTAL\n"]
[null,null,null,{"$f":"'Form 4EBS'!F6","v":"2019-12-31"},null,{"$f":"'Form 4EBS'!H6","v":"2018-12-31"},null,{"$f":"'Form 4EBS'!F6","v":"2019-12-31"},null,{"$f":"'Form 4EBS'!H6","v":"2018-12-31"},null,{"$f":"'Form 4EBS'!$F$6","v":"2019-12-31"},null,{"$f":"'Form 4EBS'!H6","v":"2018-12-31"},null,{"$f":"'Form 4EBS'!$F$6","v":"2019-12-31"},null,{"$f":"'Form 4EBS'!L6","v":"12/31/2019"},null,{"$f":"'Form 4EBS'!F6","v":"2019-12-31"},null,{"$f":"'Form 4EBS'!F6","v":"2019-12-31"}]
[null,null,null,{"$f":"CONFIGURATION!$D$12","v":" ('000s)"},null,{"$f":"CONFIGURATION!$D$12","v":" ('000s)"},null,{"$f":"CONFIGURATION!$D$12","v":" ('000s)"},null,{"$f":"CONFIGURATION!$D$12","v":" ('000s)"},null,{"$f":"CONFIGURATION!$D$12","v":" ('000s)"},null,{"$f":"CONFIGURATION!$D$12","v":" ('000s)"},null,{"$f":"CONFIGURATION!$D$12","v":" ('000s)"},null,{"$f":"CONFIGURATION!$D$12","v":" ('000s)"},null,{"$f":"CONFIGURATION!$D$12","v":" ('000s)"},null,{"$f":"CONFIGURATION!$D$12","v":" ('000s)"}]
[null,"Quoted and Unquoted Equities"]
[null,11,"BSCR Rating 1",null,null,null,null,{"$f":"Import!M558","v":0},null,{"$f":"Import!O558","v":0},null,null,null,null,null,null,null,null,null,{"$f":"D33+H33+L33","v":0},null,{"$f":"F33+J33+N33","v":0},null,null,"brrt_RiskGradeAxis_brrt_BSCRRating1Member"]
[null,12,"BSCR Rating 2",null,null,null,null,{"$f":"Import!M559","v":0},null,{"$f":"Import!O559","v":0},null,null,null,null,null,null,null,null,null,0,null,0,null,null,"brrt_RiskGradeAxis_brrt_BSCRRating2Member"]
[null,13,"BSCR Rating 3",null,null,null,null,{"$f":"Import!M560","v":0},null,{"$f":"Import!O560","v":0},null,null,null,null,null,null,null,null,null,0,null,0,null,null,"brrt_RiskGradeAxis_brrt_BSCRRating3Member"]
[null,14,"BSCR Rating 4",null,null,null,null,{"$f":"Import!M561","v":0},null,{"$f":"Import!O561","v":0},null,null,null,null,null,null,null,null,null,0,null,0,null,null,"brrt_RiskGradeAxis_brrt_BSCRRating4Member"]
[null,15,"BSCR Rating 5",null,null,null,null,{"$f":"Import!M562","v":0},null,{"$f":"Import!O562","v":0},null,null,null,null,null,null,null,null,null,0,null,0,null,null,"brrt_RiskGradeAxis_brrt_BSCRRating5Member"]
[null,16,"BSCR Rating 6",null,null,null,null,{"$f":"Import!M563","v":0},null,{"$f":"Import!O563","v":0},null,null,null,null,null,null,null,null,null,0,null,0,null,null,"brrt_RiskGradeAxis_brrt_BSCRRating6Member"]
[null,17,"BSCR Rating 7",null,null,null,null,{"$f":"Import!M564","v":0},null,{"$f":"Import!O564","v":0},null,null,null,null,null,null,null,null,null,0,null,0,null,null,"brrt_RiskGradeAxis_brrt_BSCRRating7Member"]
[null,18,"BSCR Rating 8",null,null,null,null,{"$f":"Import!M565","v":0},null,{"$f":"Import!O565","v":0},null,null,null,null,null,null,null,null,null,0,null,0,null,null,"brrt_RiskGradeAxis_brrt_BSCRRating8Member"]
[null,19,"Quoted Equity Funds",{"$f":"Import!M556","v":0},null,{"$f":"Import!O556","v":0},null,null,null,null,null,{"$f":"Import!M566","v":0},null,{"$f":"Import!O566","v":0},null,{"$f":"+Import!M568","v":0},null,{"$f":"+Import!O568","v":0},null,{"$f":"D41+H41+L41+P41","v":0},null,{"$f":"F41+J41+N41+R41","v":0}]
[null,20,"Unquoted Equity Funds",{"$f":"Import!M557","v":0},null,{"$f":"Import!O557","v":0},null,null,null,null,null,{"$f":"Import!M567","v":0},null,{"$f":"Import!O567","v":0},null,{"$f":"+Import!M569","v":0},null,{"$f":"+Import!O569","v":0},null,{"$f":"D42+H42+L42+P42","v":0},null,0]
[]
[null,21,"Total",{"$f":"SUM(D33:D42)","v":0},null,{"$f":"SUM(F33:F42)","v":0},null,{"$f":"SUM(H33:H42)","v":0},null,{"$f":"SUM(J33:J42)","v":0},null,{"$f":"SUM(L33:L42)","v":0},null,{"$f":"SUM(N33:N42)","v":0},null,{"$f":"SUM(P33:P42)","v":0},null,{"$f":"SUM(R33:R42)","v":0},null,{"$f":"SUM(T33:T42)","v":0},null,{"$f":"SUM(V33:V42)","v":0},null,null,"brrt_RiskGradeAxis_brrt_TotalMember"]
[]
[]
[]
[]
[]
[]
[null,null,null,null,null,null,null,null,"This Section is Only Applicable to Companies that have Mortgage Backed Securities that have been Reclassified in Accordance with the NAIC and that elect to use NAIC reclassifications to map to the BSCR classes"]
[null,null,null,"MORTGAGE LOANS"]
[null,null,null,{"$f":"'Form 4EBS'!F6","v":"2019-12-31"},null,{"$f":"'Form 4EBS'!H6","v":"2018-12-31"},null,null,null,null,null,"VALUES OF RESIDENTIAL MORTGAGE BACKED SECURITIES",null,null,null,"VALUES OF COMMERCIAL MORTGAGE BACKED SECURITIES / ASSET BACKED SECURITIES"]
[null,null,null,{"$f":"CONFIGURATION!$D$12","v":" ('000s)"},null,{"$f":"CONFIGURATION!$D$12","v":" ('000s)"},null,null,null,null,null,"Original Classification",null,"Revised Classification",null,"Original Classification",null,"Revised Classification",null,null,null,null,null,"brrt_InvestmentsInMortgageLoansOnRealEstateInsuredGuaranteedMortgages",{"$f":"XBRLMap(D57,$X54&\".\"&$Y$7,$D$81,$D$82,CONFIGURATION!$B$10,\"BMA\",CONFIGURATION!$B$1,\"bscr\",CONFIGURATION!$B$12)","v":"Mapped"},{"$f":"XBRLMap(F57,$X54&\".\"&$Y$7,$F$81,$F$82,CONFIGURATION!$B$10,\"BMA\",CONFIGURATION!$B$1,\"bscr\",CONFIGURATION!$B$12)","v":"Mapped"}]
[null,null,null,null,null,null,null,null,null,"NAIC Class 1",null,{"$f":"Import!M575","v":0},null,{"$f":"Import!M582","v":0},null,{"$f":"Import!M589","v":0},null,{"$f":"Import!M596","v":0},null,null,null,null,null,"brrt_InvestmentsInMortgageLoansOnRealEstateOtherResidentialMortgages",{"$f":"XBRLMap(D59,$X55&\".\"&$Y$7,$D$81,$D$82,CONFIGURATION!$B$10,\"BMA\",CONFIGURATION!$B$1,\"bscr\",CONFIGURATION!$B$12)","v":"Mapped"},{"$f":"XBRLMap(F59,$X55&\".\"&$Y$7,$F$81,$F$82,CONFIGURATION!$B$10,\"BMA\",CONFIGURATION!$B$1,\"bscr\",CONFIGURATION!$B$12)","v":"Mapped"},null,"brrt_RiskGradeAxis_brrt_NAICClass1Member"]
[null,"Mortgage Loans",null,null,null,null,null,null,null,"NAIC Class 2",null,{"$f":"Import!M576","v":0},null,{"$f":"Import!M583","v":0},null,{"$f":"Import!M590","v":0},null,{"$f":"Import!M597","v":0},null,null,null,null,null,"brrt_InvestmentsInMortgageLoansOnRealEstateMortgagesNotInGoodStanding",{"$f":"XBRLMap(D60,$X56&\".\"&$Y$7,$D$81,$D$82,CONFIGURATION!$B$10,\"BMA\",CONFIGURATION!$B$1,\"bscr\",CONFIGURATION!$B$12)","v":"Mapped"},{"$f":"XBRLMap(F60,$X56&\".\"&$Y$7,$F$81,$F$82,CONFIGURATION!$B$10,\"BMA\",CONFIGURATION!$B$1,\"bscr\",CONFIGURATION!$B$12)","v":"Mapped"},null,"brrt_RiskGradeAxis_brrt_NAICClass2Member"]
[null,22,"Insured/Guaranteed Mortgages",{"$f":"Import!M570","v":0},null,{"$f":"Import!O570","v":0},null,null,null,"NAIC Class 3",null,{"$f":"Import!M577","v":0},null,{"$f":"Import!M584","v":0},null,{"$f":"Import!M591","v":0},null,{"$f":"Import!M598","v":0},null,null,null,null,null,null,null,null,null,"brrt_RiskGradeAxis_brrt_NAICClass3Member"]
[null,23,"Other Commercial and Farm Mortgages",{"$f":"Import!M571","v":0},null,{"$f":"Import!O571","v":0},null,null,null,"NAIC Class 4",null,{"$f":"Import!M578","v":0},null,{"$f":"Import!M585","v":0},null,{"$f":"Import!M592","v":0},null,{"$f":"Import!M599","v":0},null,null,null,null,null,"brrt_InvestmentsInMortgageLoansOnRealEstate",{"$f":"XBRLMap(D62,$X58&\".\"&$Y$7,$D$81,$D$82,CONFIGURATION!$B$10,\"BMA\",CONFIGURATION!$B$1,\"bscr\",CONFIGURATION!$B$12)","v":"Mapped"},{"$f":"XBRLMap(F62,$X58&\".\"&$Y$7,$F$81,$F$82,CONFIGURATION!$B$10,\"BMA\",CONFIGURATION!$B$1,\"bscr\",CONFIGURATION!$B$12)","v":"Mapped"},null,"brrt_RiskGradeAxis_brrt_NAICClass4Member"]
[null,24,"Other Residential Mortgages",{"$f":"Import!M572","v":0},null,{"$f":"Import!O572","v":0},null,null,null,"NAIC Class 5",null,{"$f":"Import!M579","v":0},null,{"$f":"Import!M586","v":0},null,{"$f":"Import!M593","v":0},null,{"$f":"Import!M600","v":0},null,null,null,null,null,null,null,null,null,"brrt_RiskGradeAxis_brrt_NAICClass5Member"]
[null,25,"Mortgages Not In Good Standing",{"$f":"Import!M573","v":0},null,{"$f":"Import!O573","v":0},null,null,null,"NAIC Class 6",null,{"$f":"Import!M580","v":0},null,{"$f":"Import!M587","v":0},null,{"$f":"Import!M594","v":0},null,{"$f":"Import!M601","v":0},null,null,null,null,null,null,null,null,null,"brrt_RiskGradeAxis_brrt_NAICClass6Member"]
[]
[null,26,"Total",{"$f":"SUM(D57:D60)","v":0},null,{"$f":"SUM(F57:F60)","v":0},null,null,null,null,null,{"$f":"SUM(L55:L60)","v":0},null,{"$f":"SUM(N55:N60)","v":0},null,{"$f":"SUM(P55:P60)","v":0},null,{"$f":"SUM(R55:R60)","v":0},null,null,null,null,null,null,null,null,null,"brrt_RiskGradeAxis_brrt_TotalMember"]
[null,null,null,null,null,null,null,null,null,null,null,null,null,null,null,null,null,null,null,null,null,null,null,"brrt_CashAndTimeDeposits",{"$f":"XBRLMap(D68,$X63&\".\"&$Y$7,$D$81,$D$82,CONFIGURATION!$B$10,\"BMA\",CONFIGURATION!$B$1,\"bscr\",CONFIGURATION!$B$12)","v":"Mapped"},{"$f":"XBRLMap(F68,$X63&\".\"&$Y$7,$F$81,$F$82,CONFIGURATION!$B$10,\"BMA\",CONFIGURATION!$B$1,\"bscr\",CONFIGURATION!$B$12)","v":"Mapped"}]
[null,null,null,"CASH AND CASH EQUIVALENTS"]
[null,null,null,{"$f":"'Form 4EBS'!F6","v":"2019-12-31"},null,{"$f":"'Form 4EBS'!H6","v":"2018-12-31"},null,null,null,{"$f":"IF('Insurer Information'!F9=\"Class C\",HYPERLINK(\"#'Attachments'!G45\",\"Attach file\"),HYPERLINK(\"#'Attachments'!G65\",\"Attach file\"))","v":"Attach file"}]
[null,null,null,{"$f":"CONFIGURATION!$D$12","v":" ('000s)"},null,{"$f":"CONFIGURATION!$D$12","v":" ('000s)"}]
[]
[null,27,"Cash and Cash Equivalents",{"$f":"Import!M574","v":0},null,{"$f":"Import!O574","v":0}]
[]
[null,null,null,{"$f":"'Form 4EBS'!F6","v":"2019-12-31"},null,{"$f":"'Form 4EBS'!H6","v":"2018-12-31"}]
[null,null,null,{"$f":"CONFIGURATION!$D$12","v":" ('000s)"},null,{"$f":"CONFIGURATION!$D$12","v":" ('000s)"},null,null,null,null,null,null,null,null,null,null,null,null,null,null,null,null,null,"brrt_FundsHeldByCedingReinsurers",{"$f":"XBRLMap(D74,$X71&\".\"&$Y$7,$D$81,$D$82,CONFIGURATION!$B$10,\"BMA\",CONFIGURATION!$B$1,\"bscr\",CONFIGURATION!$B$12)","v":"Mapped"},{"$f":"XBRLMap(F74,$X71&\".\"&$Y$7,$F$81,$F$82,CONFIGURATION!$B$10,\"BMA\",CONFIGURATION!$B$1,\"bscr\",CONFIGURATION!$B$12)","v":"Mapped"}]
[null,null,"Total Funds Held by Ceding Reinsurers in Segregated Accounts / Trusts (Lines 10, 21, 26 and 27)"]
[]
[null,{"$f":"B68+1","v":28},null,{"$f":"T22+T44+D62+D68","v":0},null,{"$f":"V22+V44+F62+F68","v":0}]
[]
[]
[]
[]
[]
[]
[null,null,null,{"$f":"IF(D8=\"\",\"\",TEXT(DATE(YEAR(D8+1)-1,MONTH(D8+1),DAY(D8+1)),\"mm/dd/yyyy\"))","v":"01/01/2019"},null,{"$f":"IF(F8=\"\",\"\",TEXT(DATE(YEAR(F8+1)-1,MONTH(F8+1),DAY(F8+1)),\"mm/dd/yyyy\"))","v":"01/01/2018"}]
[null,null,null,{"$f":"IF(D8=\"\",\"\",TEXT(D8,\"mm/dd/yyyy\"))","v":"12/31/2019"},null,{"$f":"IF(F8=\"\",\"\",TEXT(F8,\"mm/dd/yyyy\"))","v":"12/31/2018"}]
[null,null,null,"brrt_BondsAndDebentures",null,"brrt_BondsAndDebentures",null,"brrt_BondsAndDebentures",null,"brrt_BondsAndDebentures",null,"brrt_BondsAndDebentures",null,"brrt_BondsAndDebentures",null,"brrt_BondsAndDebentures",null,"brrt_BondsAndDebentures",null,"brrt_BondsAndDebentures",null,"brrt_BondsAndDebentures"]
[null,null,null,"brrt_SecurityTypeAxis_brrt_CorporateSovereignBondsMember",null,"brrt_SecurityTypeAxis_brrt_CorporateSovereignBondsMember",null,"brrt_SecurityTypeAxis_brrt_ResidentialMortgageBackedSecuritiesMember",null,"brrt_SecurityTypeAxis_brrt_ResidentialMortgageBackedSecuritiesMember",null,"brrt_SecurityTypeAxis_brrt_CommercialMortgageBackedSecuritiesAssetBackedSecuritiesMember",null,"brrt_SecurityTypeAxis_brrt_CommercialMortgageBackedSecuritiesAssetBackedSecuritiesMember",null,"brrt_SecurityTypeAxis_brrt_MutualFundsMember",null,"brrt_SecurityTypeAxis_brrt_MutualFundsMember",null,"brrt_SecurityTypeAxis_brrt_TotalMember",null,"brrt_SecurityTypeAxis_brrt_TotalMember"]
[null,null,null,{"$f":"XBRLMap(D12,D$83&\".\"&$Y12&\".\"&$D$84&\".\"&$Y$7,$D$81,$D$82,CONFIGURATION!$B$10,\"BMA\",CONFIGURATION!$B$1,\"bscr\",CONFIGURATION!$B$12)","v":"Mapped"},null,{"$f":"XBRLMap(F12,F$83&\".\"&$Y12&\".\"&$F$84&\".\"&$Y$7,$F$81,$F$82,CONFIGURATION!$B$10,\"BMA\",CONFIGURATION!$B$1,\"bscr\",CONFIGURATION!$B$12)","v":"Mapped"},null,null,null,null,null,null,null,null,null,{"$f":"XBRLMap(P12,P$83&\".\"&$Y12&\".\"&$P$84&\".\"&$Y$7,$D$81,$D$82,CONFIGURATION!$B$10,\"BMA\",CONFIGURATION!$B$1,\"bscr\",CONFIGURATION!$B$12)","v":"Mapped"},null,{"$f":"XBRLMap(R12,R$83&\".\"&$Y12&\".\"&$R$84&\".\"&$Y$7,$F$81,$F$82,CONFIGURATION!$B$10,\"BMA\",CONFIGURATION!$B$1,\"bscr\",CONFIGURATION!$B$12)","v":"Mapped"},null,{"$f":"XBRLMap(T12,T$83&\".\"&$Y12&\".\"&$T$84&\".\"&$Y$7,$D$81,$D$82,CONFIGURATION!$B$10,\"BMA\",CONFIGURATION!$B$1,\"bscr\",CONFIGURATION!$B$12)","v":"Mapped"},null,{"$f":"XBRLMap(V12,V$83&\".\"&$Y12&\".\"&$V$84&\".\"&$Y$7,$F$81,$F$82,CONFIGURATION!$B$10,\"BMA\",CONFIGURATION!$B$1,\"bscr\",CONFIGURATION!$B$12)","v":"Mapped"}]
[null,null,null,{"$f":"XBRLMap(D13,D$83&\".\"&$Y13&\".\"&$D$84&\".\"&$Y$7,$D$81,$D$82,CONFIGURATION!$B$10,\"BMA\",CONFIGURATION!$B$1,\"bscr\",CONFIGURATION!$B$12)","v":"Mapped"},null,{"$f":"XBRLMap(F13,F$83&\".\"&$Y13&\".\"&$F$84&\".\"&$Y$7,$F$81,$F$82,CONFIGURATION!$B$10,\"BMA\",CONFIGURATION!$B$1,\"bscr\",CONFIGURATION!$B$12)","v":"Mapped"},null,{"$f":"XBRLMap(H13,H$83&\".\"&$Y13&\".\"&$H$84&\".\"&$Y$7,$D$81,$D$82,CONFIGURATION!$B$10,\"BMA\",CONFIGURATION!$B$1,\"bscr\",CONFIGURATION!$B$12)","v":"Mapped"},null,{"$f":"XBRLMap(J13,J$83&\".\"&$Y13&\".\"&$J$84&\".\"&$Y$7,$F$81,$F$82,CONFIGURATION!$B$10,\"BMA\",CONFIGURATION!$B$1,\"bscr\",CONFIGURATION!$B$12)","v":"Mapped"},null,{"$f":"XBRLMap(L13,L$83&\".\"&$Y13&\".\"&$L$84&\".\"&$Y$7,$D$81,$D$82,CONFIGURATION!$B$10,\"BMA\",CONFIGURATION!$B$1,\"bscr\",CONFIGURATION!$B$12)","v":"Mapped"},null,{"$f":"XBRLMap(N13,N$83&\".\"&$Y13&\".\"&$N$84&\".\"&$Y$7,$F$81,$F$82,CONFIGURATION!$B$10,\"BMA\",CONFIGURATION!$B$1,\"bscr\",CONFIGURATION!$B$12)","v":"Mapped"},null,{"$f":"XBRLMap(P13,P$83&\".\"&$Y13&\".\"&$P$84&\".\"&$Y$7,$D$81,$D$82,CONFIGURATION!$B$10,\"BMA\",CONFIGURATION!$B$1,\"bscr\",CONFIGURATION!$B$12)","v":"Mapped"},null,{"$f":"XBRLMap(R13,R$83&\".\"&$Y13&\".\"&$R$84&\".\"&$Y$7,$F$81,$F$82,CONFIGURATION!$B$10,\"BMA\",CONFIGURATION!$B$1,\"bscr\",CONFIGURATION!$B$12)","v":"Mapped"},null,{"$f":"XBRLMap(T13,T$83&\".\"&$Y13&\".\"&$T$84&\".\"&$Y$7,$D$81,$D$82,CONFIGURATION!$B$10,\"BMA\",CONFIGURATION!$B$1,\"bscr\",CONFIGURATION!$B$12)","v":"Mapped"},null,{"$f":"XBRLMap(V13,V$83&\".\"&$Y13&\".\"&$V$84&\".\"&$Y$7,$F$81,$F$82,CONFIGURATION!$B$10,\"BMA\",CONFIGURATION!$B$1,\"bscr\",CONFIGURATION!$B$12)","v":"Mapped"}]
[null,null,null,{"$f":"XBRLMap(D14,D$83&\".\"&$Y14&\".\"&$D$84&\".\"&$Y$7,$D$81,$D$82,CONFIGURATION!$B$10,\"BMA\",CONFIGURATION!$B$1,\"bscr\",CONFIGURATION!$B$12)","v":"Mapped"},null,{"$f":"XBRLMap(F14,F$83&\".\"&$Y14&\".\"&$F$84&\".\"&$Y$7,$F$81,$F$82,CONFIGURATION!$B$10,\"BMA\",CONFIGURATION!$B$1,\"bscr\",CONFIGURATION!$B$12)","v":"Mapped"},null,{"$f":"XBRLMap(H14,H$83&\".\"&$Y14&\".\"&$H$84&\".\"&$Y$7,$D$81,$D$82,CONFIGURATION!$B$10,\"BMA\",CONFIGURATION!$B$1,\"bscr\",CONFIGURATION!$B$12)","v":"Mapped"},null,{"$f":"XBRLMap(J14,J$83&\".\"&$Y14&\".\"&$J$84&\".\"&$Y$7,$F$81,$F$82,CONFIGURATION!$B$10,\"BMA\",CONFIGURATION!$B$1,\"bscr\",CONFIGURATION!$B$12)","v":"Mapped"},null,{"$f":"XBRLMap(L14,L$83&\".\"&$Y14&\".\"&$L$84&\".\"&$Y$7,$D$81,$D$82,CONFIGURATION!$B$10,\"BMA\",CONFIGURATION!$B$1,\"bscr\",CONFIGURATION!$B$12)","v":"Mapped"},null,{"$f":"XBRLMap(N14,N$83&\".\"&$Y14&\".\"&$N$84&\".\"&$Y$7,$F$81,$F$82,CONFIGURATION!$B$10,\"BMA\",CONFIGURATION!$B$1,\"bscr\",CONFIGURATION!$B$12)","v":"Mapped"},null,{"$f":"XBRLMap(P14,P$83&\".\"&$Y14&\".\"&$P$84&\".\"&$Y$7,$D$81,$D$82,CONFIGURATION!$B$10,\"BMA\",CONFIGURATION!$B$1,\"bscr\",CONFIGURATION!$B$12)","v":"Mapped"},null,{"$f":"XBRLMap(R14,R$83&\".\"&$Y14&\".\"&$R$84&\".\"&$Y$7,$F$81,$F$82,CONFIGURATION!$B$10,\"BMA\",CONFIGURATION!$B$1,\"bscr\",CONFIGURATION!$B$12)","v":"Mapped"},null,{"$f":"XBRLMap(T14,T$83&\".\"&$Y14&\".\"&$T$84&\".\"&$Y$7,$D$81,$D$82,CONFIGURATION!$B$10,\"BMA\",CONFIGURATION!$B$1,\"bscr\",CONFIGURATION!$B$12)","v":"Mapped"},null,{"$f":"XBRLMap(V14,V$83&\".\"&$Y14&\".\"&$V$84&\".\"&$Y$7,$F$81,$F$82,CONFIGURATION!$B$10,\"BMA\",CONFIGURATION!$B$1,\"bscr\",CONFIGURATION!$B$12)","v":"Mapped"}]
[null,null,null,{"$f":"XBRLMap(D15,D$83&\".\"&$Y15&\".\"&$D$84&\".\"&$Y$7,$D$81,$D$82,CONFIGURATION!$B$10,\"BMA\",CONFIGURATION!$B$1,\"bscr\",CONFIGURATION!$B$12)","v":"Mapped"},null,{"$f":"XBRLMap(F15,F$83&\".\"&$Y15&\".\"&$F$84&\".\"&$Y$7,$F$81,$F$82,CONFIGURATION!$B$10,\"BMA\",CONFIGURATION!$B$1,\"bscr\",CONFIGURATION!$B$12)","v":"Mapped"},null,{"$f":"XBRLMap(H15,H$83&\".\"&$Y15&\".\"&$H$84&\".\"&$Y$7,$D$81,$D$82,CONFIGURATION!$B$10,\"BMA\",CONFIGURATION!$B$1,\"bscr\",CONFIGURATION!$B$12)","v":"Mapped"},null,{"$f":"XBRLMap(J15,J$83&\".\"&$Y15&\".\"&$J$84&\".\"&$Y$7,$F$81,$F$82,CONFIGURATION!$B$10,\"BMA\",CONFIGURATION!$B$1,\"bscr\",CONFIGURATION!$B$12)","v":"Mapped"},null,{"$f":"XBRLMap(L15,L$83&\".\"&$Y15&\".\"&$L$84&\".\"&$Y$7,$D$81,$D$82,CONFIGURATION!$B$10,\"BMA\",CONFIGURATION!$B$1,\"bscr\",CONFIGURATION!$B$12)","v":"Mapped"},null,{"$f":"XBRLMap(N15,N$83&\".\"&$Y15&\".\"&$N$84&\".\"&$Y$7,$F$81,$F$82,CONFIGURATION!$B$10,\"BMA\",CONFIGURATION!$B$1,\"bscr\",CONFIGURATION!$B$12)","v":"Mapped"},null,{"$f":"XBRLMap(P15,P$83&\".\"&$Y15&\".\"&$P$84&\".\"&$Y$7,$D$81,$D$82,CONFIGURATION!$B$10,\"BMA\",CONFIGURATION!$B$1,\"bscr\",CONFIGURATION!$B$12)","v":"Mapped"},null,{"$f":"XBRLMap(R15,R$83&\".\"&$Y15&\".\"&$R$84&\".\"&$Y$7,$F$81,$F$82,CONFIGURATION!$B$10,\"BMA\",CONFIGURATION!$B$1,\"bscr\",CONFIGURATION!$B$12)","v":"Mapped"},null,{"$f":"XBRLMap(T15,T$83&\".\"&$Y15&\".\"&$T$84&\".\"&$Y$7,$D$81,$D$82,CONFIGURATION!$B$10,\"BMA\",CONFIGURATION!$B$1,\"bscr\",CONFIGURATION!$B$12)","v":"Mapped"},null,{"$f":"XBRLMap(V15,V$83&\".\"&$Y15&\".\"&$V$84&\".\"&$Y$7,$F$81,$F$82,CONFIGURATION!$B$10,\"BMA\",CONFIGURATION!$B$1,\"bscr\",CONFIGURATION!$B$12)","v":"Mapped"}]
[null,null,null,{"$f":"XBRLMap(D16,D$83&\".\"&$Y16&\".\"&$D$84&\".\"&$Y$7,$D$81,$D$82,CONFIGURATION!$B$10,\"BMA\",CONFIGURATION!$B$1,\"bscr\",CONFIGURATION!$B$12)","v":"Mapped"},null,{"$f":"XBRLMap(F16,F$83&\".\"&$Y16&\".\"&$F$84&\".\"&$Y$7,$F$81,$F$82,CONFIGURATION!$B$10,\"BMA\",CONFIGURATION!$B$1,\"bscr\",CONFIGURATION!$B$12)","v":"Mapped"},null,{"$f":"XBRLMap(H16,H$83&\".\"&$Y16&\".\"&$H$84&\".\"&$Y$7,$D$81,$D$82,CONFIGURATION!$B$10,\"BMA\",CONFIGURATION!$B$1,\"bscr\",CONFIGURATION!$B$12)","v":"Mapped"},null,{"$f":"XBRLMap(J16,J$83&\".\"&$Y16&\".\"&$J$84&\".\"&$Y$7,$F$81,$F$82,CONFIGURATION!$B$10,\"BMA\",CONFIGURATION!$B$1,\"bscr\",CONFIGURATION!$B$12)","v":"Mapped"},null,{"$f":"XBRLMap(L16,L$83&\".\"&$Y16&\".\"&$L$84&\".\"&$Y$7,$D$81,$D$82,CONFIGURATION!$B$10,\"BMA\",CONFIGURATION!$B$1,\"bscr\",CONFIGURATION!$B$12)","v":"Mapped"},null,{"$f":"XBRLMap(N16,N$83&\".\"&$Y16&\".\"&$N$84&\".\"&$Y$7,$F$81,$F$82,CONFIGURATION!$B$10,\"BMA\",CONFIGURATION!$B$1,\"bscr\",CONFIGURATION!$B$12)","v":"Mapped"},null,{"$f":"XBRLMap(P16,P$83&\".\"&$Y16&\".\"&$P$84&\".\"&$Y$7,$D$81,$D$82,CONFIGURATION!$B$10,\"BMA\",CONFIGURATION!$B$1,\"bscr\",CONFIGURATION!$B$12)","v":"Mapped"},null,{"$f":"XBRLMap(R16,R$83&\".\"&$Y16&\".\"&$R$84&\".\"&$Y$7,$F$81,$F$82,CONFIGURATION!$B$10,\"BMA\",CONFIGURATION!$B$1,\"bscr\",CONFIGURATION!$B$12)","v":"Mapped"},null,{"$f":"XBRLMap(T16,T$83&\".\"&$Y16&\".\"&$T$84&\".\"&$Y$7,$D$81,$D$82,CONFIGURATION!$B$10,\"BMA\",CONFIGURATION!$B$1,\"bscr\",CONFIGURATION!$B$12)","v":"Mapped"},null,{"$f":"XBRLMap(V16,V$83&\".\"&$Y16&\".\"&$V$84&\".\"&$Y$7,$F$81,$F$82,CONFIGURATION!$B$10,\"BMA\",CONFIGURATION!$B$1,\"bscr\",CONFIGURATION!$B$12)","v":"Mapped"}]
[null,null,null,{"$f":"XBRLMap(D17,D$83&\".\"&$Y17&\".\"&$D$84&\".\"&$Y$7,$D$81,$D$82,CONFIGURATION!$B$10,\"BMA\",CONFIGURATION!$B$1,\"bscr\",CONFIGURATION!$B$12)","v":"Mapped"},null,{"$f":"XBRLMap(F17,F$83&\".\"&$Y17&\".\"&$F$84&\".\"&$Y$7,$F$81,$F$82,CONFIGURATION!$B$10,\"BMA\",CONFIGURATION!$B$1,\"bscr\",CONFIGURATION!$B$12)","v":"Mapped"},null,{"$f":"XBRLMap(H17,H$83&\".\"&$Y17&\".\"&$H$84&\".\"&$Y$7,$D$81,$D$82,CONFIGURATION!$B$10,\"BMA\",CONFIGURATION!$B$1,\"bscr\",CONFIGURATION!$B$12)","v":"Mapped"},null,{"$f":"XBRLMap(J17,J$83&\".\"&$Y17&\".\"&$J$84&\".\"&$Y$7,$F$81,$F$82,CONFIGURATION!$B$10,\"BMA\",CONFIGURATION!$B$1,\"bscr\",CONFIGURATION!$B$12)","v":"Mapped"},null,{"$f":"XBRLMap(L17,L$83&\".\"&$Y17&\".\"&$L$84&\".\"&$Y$7,$D$81,$D$82,CONFIGURATION!$B$10,\"BMA\",CONFIGURATION!$B$1,\"bscr\",CONFIGURATION!$B$12)","v":"Mapped"},null,{"$f":"XBRLMap(N17,N$83&\".\"&$Y17&\".\"&$N$84&\".\"&$Y$7,$F$81,$F$82,CONFIGURATION!$B$10,\"BMA\",CONFIGURATION!$B$1,\"bscr\",CONFIGURATION!$B$12)","v":"Mapped"},null,{"$f":"XBRLMap(P17,P$83&\".\"&$Y17&\".\"&$P$84&\".\"&$Y$7,$D$81,$D$82,CONFIGURATION!$B$10,\"BMA\",CONFIGURATION!$B$1,\"bscr\",CONFIGURATION!$B$12)","v":"Mapped"},null,{"$f":"XBRLMap(R17,R$83&\".\"&$Y17&\".\"&$R$84&\".\"&$Y$7,$F$81,$F$82,CONFIGURATION!$B$10,\"BMA\",CONFIGURATION!$B$1,\"bscr\",CONFIGURATION!$B$12)","v":"Mapped"},null,{"$f":"XBRLMap(T17,T$83&\".\"&$Y17&\".\"&$T$84&\".\"&$Y$7,$D$81,$D$82,CONFIGURATION!$B$10,\"BMA\",CONFIGURATION!$B$1,\"bscr\",CONFIGURATION!$B$12)","v":"Mapped"},null,{"$f":"XBRLMap(V17,V$83&\".\"&$Y17&\".\"&$V$84&\".\"&$Y$7,$F$81,$F$82,CONFIGURATION!$B$10,\"BMA\",CONFIGURATION!$B$1,\"bscr\",CONFIGURATION!$B$12)","v":"Mapped"}]
[null,null,null,{"$f":"XBRLMap(D18,D$83&\".\"&$Y18&\".\"&$D$84&\".\"&$Y$7,$D$81,$D$82,CONFIGURATION!$B$10,\"BMA\",CONFIGURATION!$B$1,\"bscr\",CONFIGURATION!$B$12)","v":"Mapped"},null,{"$f":"XBRLMap(F18,F$83&\".\"&$Y18&\".\"&$F$84&\".\"&$Y$7,$F$81,$F$82,CONFIGURATION!$B$10,\"BMA\",CONFIGURATION!$B$1,\"bscr\",CONFIGURATION!$B$12)","v":"Mapped"},null,{"$f":"XBRLMap(H18,H$83&\".\"&$Y18&\".\"&$H$84&\".\"&$Y$7,$D$81,$D$82,CONFIGURATION!$B$10,\"BMA\",CONFIGURATION!$B$1,\"bscr\",CONFIGURATION!$B$12)","v":"Mapped"},null,{"$f":"XBRLMap(J18,J$83&\".\"&$Y18&\".\"&$J$84&\".\"&$Y$7,$F$81,$F$82,CONFIGURATION!$B$10,\"BMA\",CONFIGURATION!$B$1,\"bscr\",CONFIGURATION!$B$12)","v":"Mapped"},null,{"$f":"XBRLMap(L18,L$83&\".\"&$Y18&\".\"&$L$84&\".\"&$Y$7,$D$81,$D$82,CONFIGURATION!$B$10,\"BMA\",CONFIGURATION!$B$1,\"bscr\",CONFIGURATION!$B$12)","v":"Mapped"},null,{"$f":"XBRLMap(N18,N$83&\".\"&$Y18&\".\"&$N$84&\".\"&$Y$7,$F$81,$F$82,CONFIGURATION!$B$10,\"BMA\",CONFIGURATION!$B$1,\"bscr\",CONFIGURATION!$B$12)","v":"Mapped"},null,{"$f":"XBRLMap(P18,P$83&\".\"&$Y18&\".\"&$P$84&\".\"&$Y$7,$D$81,$D$82,CONFIGURATION!$B$10,\"BMA\",CONFIGURATION!$B$1,\"bscr\",CONFIGURATION!$B$12)","v":"Mapped"},null,{"$f":"XBRLMap(R18,R$83&\".\"&$Y18&\".\"&$R$84&\".\"&$Y$7,$F$81,$F$82,CONFIGURATION!$B$10,\"BMA\",CONFIGURATION!$B$1,\"bscr\",CONFIGURATION!$B$12)","v":"Mapped"},null,{"$f":"XBRLMap(T18,T$83&\".\"&$Y18&\".\"&$T$84&\".\"&$Y$7,$D$81,$D$82,CONFIGURATION!$B$10,\"BMA\",CONFIGURATION!$B$1,\"bscr\",CONFIGURATION!$B$12)","v":"Mapped"},null,{"$f":"XBRLMap(V18,V$83&\".\"&$Y18&\".\"&$V$84&\".\"&$Y$7,$F$81,$F$82,CONFIGURATION!$B$10,\"BMA\",CONFIGURATION!$B$1,\"bscr\",CONFIGURATION!$B$12)","v":"Mapped"}]
[null,null,null,{"$f":"XBRLMap(D19,D$83&\".\"&$Y19&\".\"&$D$84&\".\"&$Y$7,$D$81,$D$82,CONFIGURATION!$B$10,\"BMA\",CONFIGURATION!$B$1,\"bscr\",CONFIGURATION!$B$12)","v":"Mapped"},null,{"$f":"XBRLMap(F19,F$83&\".\"&$Y19&\".\"&$F$84&\".\"&$Y$7,$F$81,$F$82,CONFIGURATION!$B$10,\"BMA\",CONFIGURATION!$B$1,\"bscr\",CONFIGURATION!$B$12)","v":"Mapped"},null,{"$f":"XBRLMap(H19,H$83&\".\"&$Y19&\".\"&$H$84&\".\"&$Y$7,$D$81,$D$82,CONFIGURATION!$B$10,\"BMA\",CONFIGURATION!$B$1,\"bscr\",CONFIGURATION!$B$12)","v":"Mapped"},null,{"$f":"XBRLMap(J19,J$83&\".\"&$Y19&\".\"&$J$84&\".\"&$Y$7,$F$81,$F$82,CONFIGURATION!$B$10,\"BMA\",CONFIGURATION!$B$1,\"bscr\",CONFIGURATION!$B$12)","v":"Mapped"},null,{"$f":"XBRLMap(L19,L$83&\".\"&$Y19&\".\"&$L$84&\".\"&$Y$7,$D$81,$D$82,CONFIGURATION!$B$10,\"BMA\",CONFIGURATION!$B$1,\"bscr\",CONFIGURATION!$B$12)","v":"Mapped"},null,{"$f":"XBRLMap(N19,N$83&\".\"&$Y19&\".\"&$N$84&\".\"&$Y$7,$F$81,$F$82,CONFIGURATION!$B$10,\"BMA\",CONFIGURATION!$B$1,\"bscr\",CONFIGURATION!$B$12)","v":"Mapped"},null,{"$f":"XBRLMap(P19,P$83&\".\"&$Y19&\".\"&$P$84&\".\"&$Y$7,$D$81,$D$82,CONFIGURATION!$B$10,\"BMA\",CONFIGURATION!$B$1,\"bscr\",CONFIGURATION!$B$12)","v":"Mapped"},null,{"$f":"XBRLMap(R19,R$83&\".\"&$Y19&\".\"&$R$84&\".\"&$Y$7,$F$81,$F$82,CONFIGURATION!$B$10,\"BMA\",CONFIGURATION!$B$1,\"bscr\",CONFIGURATION!$B$12)","v":"Mapped"},null,{"$f":"XBRLMap(T19,T$83&\".\"&$Y19&\".\"&$T$84&\".\"&$Y$7,$D$81,$D$82,CONFIGURATION!$B$10,\"BMA\",CONFIGURATION!$B$1,\"bscr\",CONFIGURATION!$B$12)","v":"Mapped"},null,{"$f":"XBRLMap(V19,V$83&\".\"&$Y19&\".\"&$V$84&\".\"&$Y$7,$F$81,$F$82,CONFIGURATION!$B$10,\"BMA\",CONFIGURATION!$B$1,\"bscr\",CONFIGURATION!$B$12)","v":"Mapped"}]
[null,null,null,{"$f":"XBRLMap(D20,D$83&\".\"&$Y20&\".\"&$D$84&\".\"&$Y$7,$D$81,$D$82,CONFIGURATION!$B$10,\"BMA\",CONFIGURATION!$B$1,\"bscr\",CONFIGURATION!$B$12)","v":"Mapped"},null,{"$f":"XBRLMap(F20,F$83&\".\"&$Y20&\".\"&$F$84&\".\"&$Y$7,$F$81,$F$82,CONFIGURATION!$B$10,\"BMA\",CONFIGURATION!$B$1,\"bscr\",CONFIGURATION!$B$12)","v":"Mapped"},null,{"$f":"XBRLMap(H20,H$83&\".\"&$Y20&\".\"&$H$84&\".\"&$Y$7,$D$81,$D$82,CONFIGURATION!$B$10,\"BMA\",CONFIGURATION!$B$1,\"bscr\",CONFIGURATION!$B$12)","v":"Mapped"},null,{"$f":"XBRLMap(J20,J$83&\".\"&$Y20&\".\"&$J$84&\".\"&$Y$7,$F$81,$F$82,CONFIGURATION!$B$10,\"BMA\",CONFIGURATION!$B$1,\"bscr\",CONFIGURATION!$B$12)","v":"Mapped"},null,{"$f":"XBRLMap(L20,L$83&\".\"&$Y20&\".\"&$L$84&\".\"&$Y$7,$D$81,$D$82,CONFIGURATION!$B$10,\"BMA\",CONFIGURATION!$B$1,\"bscr\",CONFIGURATION!$B$12)","v":"Mapped"},null,{"$f":"XBRLMap(N20,N$83&\".\"&$Y20&\".\"&$N$84&\".\"&$Y$7,$F$81,$F$82,CONFIGURATION!$B$10,\"BMA\",CONFIGURATION!$B$1,\"bscr\",CONFIGURATION!$B$12)","v":"Mapped"},null,{"$f":"XBRLMap(P20,P$83&\".\"&$Y20&\".\"&$P$84&\".\"&$Y$7,$D$81,$D$82,CONFIGURATION!$B$10,\"BMA\",CONFIGURATION!$B$1,\"bscr\",CONFIGURATION!$B$12)","v":"Mapped"},null,{"$f":"XBRLMap(R20,R$83&\".\"&$Y20&\".\"&$R$84&\".\"&$Y$7,$F$81,$F$82,CONFIGURATION!$B$10,\"BMA\",CONFIGURATION!$B$1,\"bscr\",CONFIGURATION!$B$12)","v":"Mapped"},null,{"$f":"XBRLMap(T20,T$83&\".\"&$Y20&\".\"&$T$84&\".\"&$Y$7,$D$81,$D$82,CONFIGURATION!$B$10,\"BMA\",CONFIGURATION!$B$1,\"bscr\",CONFIGURATION!$B$12)","v":"Mapped"},null,{"$f":"XBRLMap(V20,V$83&\".\"&$Y20&\".\"&$V$84&\".\"&$Y$7,$F$81,$F$82,CONFIGURATION!$B$10,\"BMA\",CONFIGURATION!$B$1,\"bscr\",CONFIGURATION!$B$12)","v":"Mapped"}]
[]
[null,null,null,{"$f":"XBRLMap(D22,D$83&\".\"&$Y22&\".\"&$D$84&\".\"&$Y$7,$D$81,$D$82,CONFIGURATION!$B$10,\"BMA\",CONFIGURATION!$B$1,\"bscr\",CONFIGURATION!$B$12)","v":"Mapped"},null,{"$f":"XBRLMap(F22,F$83&\".\"&$Y22&\".\"&$F$84&\".\"&$Y$7,$F$81,$F$82,CONFIGURATION!$B$10,\"BMA\",CONFIGURATION!$B$1,\"bscr\",CONFIGURATION!$B$12)","v":"Mapped"},null,{"$f":"XBRLMap(H22,H$83&\".\"&$Y22&\".\"&$H$84&\".\"&$Y$7,$D$81,$D$82,CONFIGURATION!$B$10,\"BMA\",CONFIGURATION!$B$1,\"bscr\",CONFIGURATION!$B$12)","v":"Mapped"},null,{"$f":"XBRLMap(J22,J$83&\".\"&$Y22&\".\"&$J$84&\".\"&$Y$7,$F$81,$F$82,CONFIGURATION!$B$10,\"BMA\",CONFIGURATION!$B$1,\"bscr\",CONFIGURATION!$B$12)","v":"Mapped"},null,{"$f":"XBRLMap(L22,L$83&\".\"&$Y22&\".\"&$L$84&\".\"&$Y$7,$D$81,$D$82,CONFIGURATION!$B$10,\"BMA\",CONFIGURATION!$B$1,\"bscr\",CONFIGURATION!$B$12)","v":"Mapped"},null,{"$f":"XBRLMap(N22,N$83&\".\"&$Y22&\".\"&$N$84&\".\"&$Y$7,$F$81,$F$82,CONFIGURATION!$B$10,\"BMA\",CONFIGURATION!$B$1,\"bscr\",CONFIGURATION!$B$12)","v":"Mapped"},null,{"$f":"XBRLMap(P22,P$83&\".\"&$Y22&\".\"&$P$84&\".\"&$Y$7,$D$81,$D$82,CONFIGURATION!$B$10,\"BMA\",CONFIGURATION!$B$1,\"bscr\",CONFIGURATION!$B$12)","v":"Mapped"},null,{"$f":"XBRLMap(R22,R$83&\".\"&$Y22&\".\"&$R$84&\".\"&$Y$7,$F$81,$F$82,CONFIGURATION!$B$10,\"BMA\",CONFIGURATION!$B$1,\"bscr\",CONFIGURATION!$B$12)","v":"Mapped"},null,{"$f":"XBRLMap(T22,T$83&\".\"&$Y22&\".\"&$T$84&\".\"&$Y$7,$D$81,$D$82,CONFIGURATION!$B$10,\"BMA\",CONFIGURATION!$B$1,\"bscr\",CONFIGURATION!$B$12)","v":"Mapped"},null,{"$f":"XBRLMap(V22,V$83&\".\"&$Y22&\".\"&$V$84&\".\"&$Y$7,$F$81,$F$82,CONFIGURATION!$B$10,\"BMA\",CONFIGURATION!$B$1,\"bscr\",CONFIGURATION!$B$12)","v":"Mapped"}]
[]
[null,null,null,"brrt_QuotedInvestmentsEquitiesCommonStocks",null,"brrt_QuotedInvestmentsEquitiesCommonStocks",null,null,null,null,null,"brrt_QuotedInvestmentsEquitiesMutualFunds",null,"brrt_QuotedInvestmentsEquitiesMutualFunds",null,null,null,null,null,"brrt_QuotedInvestmentsEquitiesCommonStocksMutualFunds",null,"brrt_QuotedInvestmentsEquitiesCommonStocksMutualFunds"]
[null,null,null,"brrt_UnquotedInvestmentsEquitiesCommonStocks",null,"brrt_UnquotedInvestmentsEquitiesCommonStocks",null,null,null,null,null,"brrt_UnquotedInvestmentsEquitiesMutualFunds",null,"brrt_UnquotedInvestmentsEquitiesMutualFunds",null,null,null,null,null,"brrt_UnquotedInvestmentsEquitiesCommonStocksMutualFunds",null,"brrt_UnquotedInvestmentsEquitiesCommonStocksMutualFunds"]
[null,null,null,"brrt_EquitiesCommonStocks",null,"brrt_EquitiesCommonStocks",null,"brrt_EquitiesPreferredStocks",null,"brrt_EquitiesPreferredStocks",null,"brrt_EquitiesMutualFunds",null,"brrt_EquitiesMutualFunds",null,null,null,null,null,"brrt_Equities",null,"brrt_Equities"]
[null,null,null,null,null,null,null,{"$f":"XBRLMap(H33,H$99&\".\"&$Y33&\".\"&$Y$7,$D$81,$D$82,CONFIGURATION!$B$10,\"BMA\",CONFIGURATION!$B$1,\"bscr\",CONFIGURATION!$B$12)","v":"Mapped"},null,{"$f":"XBRLMap(J33,J$99&\".\"&$Y33&\".\"&$Y$7,$F$81,$F$82,CONFIGURATION!$B$10,\"BMA\",CONFIGURATION!$B$1,\"bscr\",CONFIGURATION!$B$12)","v":"Mapped"},null,null,null,null,null,null,null,null,null,"The same data point as in column H",null,"The same data point as in column J"]
[null,null,null,null,null,null,null,{"$f":"XBRLMap(H34,H$99&\".\"&$Y34&\".\"&$Y$7,$D$81,$D$82,CONFIGURATION!$B$10,\"BMA\",CONFIGURATION!$B$1,\"bscr\",CONFIGURATION!$B$12)","v":"Mapped"},null,{"$f":"XBRLMap(J34,J$99&\".\"&$Y34&\".\"&$Y$7,$F$81,$F$82,CONFIGURATION!$B$10,\"BMA\",CONFIGURATION!$B$1,\"bscr\",CONFIGURATION!$B$12)","v":"Mapped"},null,null,null,null,null,null,null,null,null,"The same data point as in column H",null,"The same data point as in column J"]
[null,null,null,null,null,null,null,{"$f":"XBRLMap(H35,H$99&\".\"&$Y35&\".\"&$Y$7,$D$81,$D$82,CONFIGURATION!$B$10,\"BMA\",CONFIGURATION!$B$1,\"bscr\",CONFIGURATION!$B$12)","v":"Mapped"},null,{"$f":"XBRLMap(J35,J$99&\".\"&$Y35&\".\"&$Y$7,$F$81,$F$82,CONFIGURATION!$B$10,\"BMA\",CONFIGURATION!$B$1,\"bscr\",CONFIGURATION!$B$12)","v":"Mapped"},null,null,null,null,null,null,null,null,null,"The same data point as in column H",null,"The same data point as in column J"]
[null,null,null,null,null,null,null,{"$f":"XBRLMap(H36,H$99&\".\"&$Y36&\".\"&$Y$7,$D$81,$D$82,CONFIGURATION!$B$10,\"BMA\",CONFIGURATION!$B$1,\"bscr\",CONFIGURATION!$B$12)","v":"Mapped"},null,{"$f":"XBRLMap(J36,J$99&\".\"&$Y36&\".\"&$Y$7,$F$81,$F$82,CONFIGURATION!$B$10,\"BMA\",CONFIGURATION!$B$1,\"bscr\",CONFIGURATION!$B$12)","v":"Mapped"},null,null,null,null,null,null,null,null,null,"The same data point as in column H",null,"The same data point as in column J"]
[null,null,null,null,null,null,null,{"$f":"XBRLMap(H37,H$99&\".\"&$Y37&\".\"&$Y$7,$D$81,$D$82,CONFIGURATION!$B$10,\"BMA\",CONFIGURATION!$B$1,\"bscr\",CONFIGURATION!$B$12)","v":"Mapped"},null,{"$f":"XBRLMap(J37,J$99&\".\"&$Y37&\".\"&$Y$7,$F$81,$F$82,CONFIGURATION!$B$10,\"BMA\",CONFIGURATION!$B$1,\"bscr\",CONFIGURATION!$B$12)","v":"Mapped"},null,null,null,null,null,null,null,null,null,"The same data point as in column H",null,"The same data point as in column J"]
[null,null,null,null,null,null,null,{"$f":"XBRLMap(H38,H$99&\".\"&$Y38&\".\"&$Y$7,$D$81,$D$82,CONFIGURATION!$B$10,\"BMA\",CONFIGURATION!$B$1,\"bscr\",CONFIGURATION!$B$12)","v":"Mapped"},null,{"$f":"XBRLMap(J38,J$99&\".\"&$Y38&\".\"&$Y$7,$F$81,$F$82,CONFIGURATION!$B$10,\"BMA\",CONFIGURATION!$B$1,\"bscr\",CONFIGURATION!$B$12)","v":"Mapped"},null,null,null,null,null,null,null,null,null,"The same data point as in column H",null,"The same data point as in column J"]
[null,null,null,null,null,null,null,{"$f":"XBRLMap(H39,H$99&\".\"&$Y39&\".\"&$Y$7,$D$81,$D$82,CONFIGURATION!$B$10,\"BMA\",CONFIGURATION!$B$1,\"bscr\",CONFIGURATION!$B$12)","v":"Mapped"},null,{"$f":"XBRLMap(J39,J$99&\".\"&$Y39&\".\"&$Y$7,$F$81,$F$82,CONFIGURATION!$B$10,\"BMA\",CONFIGURATION!$B$1,\"bscr\",CONFIGURATION!$B$12)","v":"Mapped"},null,null,null,null,null,null,null,null,null,"The same data point as in column H",null,"The same data point as in column J"]
[null,null,null,null,null,null,null,{"$f":"XBRLMap(H40,H$99&\".\"&$Y40&\".\"&$Y$7,$D$81,$D$82,CONFIGURATION!$B$10,\"BMA\",CONFIGURATION!$B$1,\"bscr\",CONFIGURATION!$B$12)","v":"Mapped"},null,{"$f":"XBRLMap(J40,J$99&\".\"&$Y40&\".\"&$Y$7,$F$81,$F$82,CONFIGURATION!$B$10,\"BMA\",CONFIGURATION!$B$1,\"bscr\",CONFIGURATION!$B$12)","v":"Mapped"},null,null,null,null,null,null,null,null,null,"The same data point as in column H",null,"The same data point as in column J"]
[null,null,null,{"$f":"XBRLMap(D41,D$97&\".\"&$Y$7,$D$81,$D$82,CONFIGURATION!$B$10,\"BMA\",CONFIGURATION!$B$1,\"bscr\",CONFIGURATION!$B$12)","v":"Mapped"},null,{"$f":"XBRLMap(F41,F$97&\".\"&$Y$7,$F$81,$F$82,CONFIGURATION!$B$10,\"BMA\",CONFIGURATION!$B$1,\"bscr\",CONFIGURATION!$B$12)","v":"Mapped"},null,null,null,null,null,{"$f":"XBRLMap(L41,L$97&\".\"&$Y$7,$D$81,$D$82,CONFIGURATION!$B$10,\"BMA\",CONFIGURATION!$B$1,\"bscr\",CONFIGURATION!$B$12)","v":"Mapped"},null,{"$f":"XBRLMap(N41,N$97&\".\"&$Y$7,$F$81,$F$82,CONFIGURATION!$B$10,\"BMA\",CONFIGURATION!$B$1,\"bscr\",CONFIGURATION!$B$12)","v":"Mapped"},null,null,null,null,null,{"$f":"XBRLMap(T41,T$97&\".\"&$Y$7,$D$81,$D$82,CONFIGURATION!$B$10,\"BMA\",CONFIGURATION!$B$1,\"bscr\",CONFIGURATION!$B$12)","v":"Mapped"},null,{"$f":"XBRLMap(V41,V$97&\".\"&$Y$7,$F$81,$F$82,CONFIGURATION!$B$10,\"BMA\",CONFIGURATION!$B$1,\"bscr\",CONFIGURATION!$B$12)","v":"Mapped"}]
[null,null,null,{"$f":"XBRLMap(D42,D$98&\".\"&$Y$7,$D$81,$D$82,CONFIGURATION!$B$10,\"BMA\",CONFIGURATION!$B$1,\"bscr\",CONFIGURATION!$B$12)","v":"Mapped"},null,{"$f":"XBRLMap(F42,F$98&\".\"&$Y$7,$F$81,$F$82,CONFIGURATION!$B$10,\"BMA\",CONFIGURATION!$B$1,\"bscr\",CONFIGURATION!$B$12)","v":"Mapped"},null,null,null,null,null,{"$f":"XBRLMap(L42,L$98&\".\"&$Y$7,$D$81,$D$82,CONFIGURATION!$B$10,\"BMA\",CONFIGURATION!$B$1,\"bscr\",CONFIGURATION!$B$12)","v":"Mapped"},null,{"$f":"XBRLMap(N42,N$98&\".\"&$Y$7,$F$81,$F$82,CONFIGURATION!$B$10,\"BMA\",CONFIGURATION!$B$1,\"bscr\",CONFIGURATION!$B$12)","v":"Mapped"},null,null,null,null,null,{"$f":"XBRLMap(T42,T$98&\".\"&$Y$7,$D$81,$D$82,CONFIGURATION!$B$10,\"BMA\",CONFIGURATION!$B$1,\"bscr\",CONFIGURATION!$B$12)","v":"Mapped"},null,{"$f":"XBRLMap(V42,V$98&\".\"&$Y$7,$F$81,$F$82,CONFIGURATION!$B$10,\"BMA\",CONFIGURATION!$B$1,\"bscr\",CONFIGURATION!$B$12)","v":"Mapped"}]
[]
[null,null,null,{"$f":"XBRLMap(D44,D$99&\".\"&$Y$7,$D$81,$D$82,CONFIGURATION!$B$10,\"BMA\",CONFIGURATION!$B$1,\"bscr\",CONFIGURATION!$B$12)","v":"Mapped"},null,{"$f":"XBRLMap(F44,F$99&\".\"&$Y$7,$F$81,$F$82,CONFIGURATION!$B$10,\"BMA\",CONFIGURATION!$B$1,\"bscr\",CONFIGURATION!$B$12)","v":"Mapped"},null,{"$f":"XBRLMap(H44,H$99&\".\"&$Y44&\".\"&$Y$7,$D$81,$D$82,CONFIGURATION!$B$10,\"BMA\",CONFIGURATION!$B$1,\"bscr\",CONFIGURATION!$B$12)","v":"Mapped"},null,{"$f":"XBRLMap(J44,J$99&\".\"&$Y44&\".\"&$Y$7,$F$81,$F$82,CONFIGURATION!$B$10,\"BMA\",CONFIGURATION!$B$1,\"bscr\",CONFIGURATION!$B$12)","v":"Mapped"},null,{"$f":"XBRLMap(L44,L$99&\".\"&$Y$7,$D$81,$D$82,CONFIGURATION!$B$10,\"BMA\",CONFIGURATION!$B$1,\"bscr\",CONFIGURATION!$B$12)","v":"Mapped"},null,{"$f":"XBRLMap(N44,N$99&\".\"&$Y$7,$F$81,$F$82,CONFIGURATION!$B$10,\"BMA\",CONFIGURATION!$B$1,\"bscr\",CONFIGURATION!$B$12)","v":"Mapped"},null,null,null,null,null,{"$f":"XBRLMap(T44,T$99&\".\"&$Y$7,$D$81,$D$82,CONFIGURATION!$B$10,\"BMA\",CONFIGURATION!$B$1,\"bscr\",CONFIGURATION!$B$12)","v":"Mapped"},null,{"$f":"XBRLMap(V44,V$99&\".\"&$Y$7,$F$81,$F$82,CONFIGURATION!$B$10,\"BMA\",CONFIGURATION!$B$1,\"bscr\",CONFIGURATION!$B$12)","v":"Mapped"}]
[]
[]
[]
[null,null,null,null,null,null,null,null,null,null,null,"brrt_BondsAndDebentures",null,"brrt_BondsAndDebentures",null,"brrt_BondsAndDebentures",null,"brrt_BondsAndDebentures"]
[null,null,null,null,null,null,null,null,null,null,null,"brrt_SecurityTypeAxis_brrt_ResidentialMortgageBackedSecuritiesMember",null,"brrt_SecurityTypeAxis_brrt_ResidentialMortgageBackedSecuritiesMember",null,"brrt_SecurityTypeAxis_brrt_CommercialMortgageBackedSecuritiesAssetBackedSecuritiesMember",null,"brrt_SecurityTypeAxis_brrt_CommercialMortgageBackedSecuritiesAssetBackedSecuritiesMember"]
[null,null,null,null,null,null,null,null,null,null,null,"brrt_ClassificationAxis_brrt_OriginalClassificationMember",null,"brrt_ClassificationAxis_brrt_RevisedClassificationMember",null,"brrt_ClassificationAxis_brrt_OriginalClassificationMember",null,"brrt_ClassificationAxis_brrt_RevisedClassificationMember"]
[null,null,null,null,null,null,null,null,null,null,null,{"$f":"XBRLMap(L55,L$115&\".\"&$AB55&\".\"&$L$116&\".\"&$L$117&\".\"&$Y$7,$D$81,$D$82,CONFIGURATION!$B$10,\"BMA\",CONFIGURATION!$B$1,\"bscr\",CONFIGURATION!$B$12)","v":"Mapped"},null,{"$f":"XBRLMap(N55,N$115&\".\"&$AB55&\".\"&$N$116&\".\"&$N$117&\".\"&$Y$7,$D$81,$D$82,CONFIGURATION!$B$10,\"BMA\",CONFIGURATION!$B$1,\"bscr\",CONFIGURATION!$B$12)","v":"Mapped"},null,{"$f":"XBRLMap(P55,P$115&\".\"&$AB55&\".\"&$P$116&\".\"&$P$117&\".\"&$Y$7,$D$81,$D$82,CONFIGURATION!$B$10,\"BMA\",CONFIGURATION!$B$1,\"bscr\",CONFIGURATION!$B$12)","v":"Mapped"},null,{"$f":"XBRLMap(R55,R$115&\".\"&$AB55&\".\"&$R$116&\".\"&$R$117&\".\"&$Y$7,$D$81,$D$82,CONFIGURATION!$B$10,\"BMA\",CONFIGURATION!$B$1,\"bscr\",CONFIGURATION!$B$12)","v":"Mapped"}]
[null,null,null,null,null,null,null,null,null,null,null,{"$f":"XBRLMap(L56,L$115&\".\"&$AB56&\".\"&$L$116&\".\"&$L$117&\".\"&$Y$7,$D$81,$D$82,CONFIGURATION!$B$10,\"BMA\",CONFIGURATION!$B$1,\"bscr\",CONFIGURATION!$B$12)","v":"Mapped"},null,{"$f":"XBRLMap(N56,N$115&\".\"&$AB56&\".\"&$N$116&\".\"&$N$117&\".\"&$Y$7,$D$81,$D$82,CONFIGURATION!$B$10,\"BMA\",CONFIGURATION!$B$1,\"bscr\",CONFIGURATION!$B$12)","v":"Mapped"},null,{"$f":"XBRLMap(P56,P$115&\".\"&$AB56&\".\"&$P$116&\".\"&$P$117&\".\"&$Y$7,$D$81,$D$82,CONFIGURATION!$B$10,\"BMA\",CONFIGURATION!$B$1,\"bscr\",CONFIGURATION!$B$12)","v":"Mapped"},null,{"$f":"XBRLMap(R56,R$115&\".\"&$AB56&\".\"&$R$116&\".\"&$R$117&\".\"&$Y$7,$D$81,$D$82,CONFIGURATION!$B$10,\"BMA\",CONFIGURATION!$B$1,\"bscr\",CONFIGURATION!$B$12)","v":"Mapped"}]
[null,null,null,null,null,null,null,null,null,null,null,{"$f":"XBRLMap(L57,L$115&\".\"&$AB57&\".\"&$L$116&\".\"&$L$117&\".\"&$Y$7,$D$81,$D$82,CONFIGURATION!$B$10,\"BMA\",CONFIGURATION!$B$1,\"bscr\",CONFIGURATION!$B$12)","v":"Mapped"},null,{"$f":"XBRLMap(N57,N$115&\".\"&$AB57&\".\"&$N$116&\".\"&$N$117&\".\"&$Y$7,$D$81,$D$82,CONFIGURATION!$B$10,\"BMA\",CONFIGURATION!$B$1,\"bscr\",CONFIGURATION!$B$12)","v":"Mapped"},null,{"$f":"XBRLMap(P57,P$115&\".\"&$AB57&\".\"&$P$116&\".\"&$P$117&\".\"&$Y$7,$D$81,$D$82,CONFIGURATION!$B$10,\"BMA\",CONFIGURATION!$B$1,\"bscr\",CONFIGURATION!$B$12)","v":"Mapped"},null,{"$f":"XBRLMap(R57,R$115&\".\"&$AB57&\".\"&$R$116&\".\"&$R$117&\".\"&$Y$7,$D$81,$D$82,CONFIGURATION!$B$10,\"BMA\",CONFIGURATION!$B$1,\"bscr\",CONFIGURATION!$B$12)","v":"Mapped"}]
[null,null,null,null,null,null,null,null,null,null,null,{"$f":"XBRLMap(L58,L$115&\".\"&$AB58&\".\"&$L$116&\".\"&$L$117&\".\"&$Y$7,$D$81,$D$82,CONFIGURATION!$B$10,\"BMA\",CONFIGURATION!$B$1,\"bscr\",CONFIGURATION!$B$12)","v":"Mapped"},null,{"$f":"XBRLMap(N58,N$115&\".\"&$AB58&\".\"&$N$116&\".\"&$N$117&\".\"&$Y$7,$D$81,$D$82,CONFIGURATION!$B$10,\"BMA\",CONFIGURATION!$B$1,\"bscr\",CONFIGURATION!$B$12)","v":"Mapped"},null,{"$f":"XBRLMap(P58,P$115&\".\"&$AB58&\".\"&$P$116&\".\"&$P$117&\".\"&$Y$7,$D$81,$D$82,CONFIGURATION!$B$10,\"BMA\",CONFIGURATION!$B$1,\"bscr\",CONFIGURATION!$B$12)","v":"Mapped"},null,{"$f":"XBRLMap(R58,R$115&\".\"&$AB58&\".\"&$R$116&\".\"&$R$117&\".\"&$Y$7,$D$81,$D$82,CONFIGURATION!$B$10,\"BMA\",CONFIGURATION!$B$1,\"bscr\",CONFIGURATION!$B$12)","v":"Mapped"}]
[null,null,null,null,null,null,null,null,null,null,null,{"$f":"XBRLMap(L59,L$115&\".\"&$AB59&\".\"&$L$116&\".\"&$L$117&\".\"&$Y$7,$D$81,$D$82,CONFIGURATION!$B$10,\"BMA\",CONFIGURATION!$B$1,\"bscr\",CONFIGURATION!$B$12)","v":"Mapped"},null,{"$f":"XBRLMap(N59,N$115&\".\"&$AB59&\".\"&$N$116&\".\"&$N$117&\".\"&$Y$7,$D$81,$D$82,CONFIGURATION!$B$10,\"BMA\",CONFIGURATION!$B$1,\"bscr\",CONFIGURATION!$B$12)","v":"Mapped"},null,{"$f":"XBRLMap(P59,P$115&\".\"&$AB59&\".\"&$P$116&\".\"&$P$117&\".\"&$Y$7,$D$81,$D$82,CONFIGURATION!$B$10,\"BMA\",CONFIGURATION!$B$1,\"bscr\",CONFIGURATION!$B$12)","v":"Mapped"},null,{"$f":"XBRLMap(R59,R$115&\".\"&$AB59&\".\"&$R$116&\".\"&$R$117&\".\"&$Y$7,$D$81,$D$82,CONFIGURATION!$B$10,\"BMA\",CONFIGURATION!$B$1,\"bscr\",CONFIGURATION!$B$12)","v":"Mapped"}]
[null,null,null,null,null,null,null,null,null,null,null,{"$f":"XBRLMap(L60,L$115&\".\"&$AB60&\".\"&$L$116&\".\"&$L$117&\".\"&$Y$7,$D$81,$D$82,CONFIGURATION!$B$10,\"BMA\",CONFIGURATION!$B$1,\"bscr\",CONFIGURATION!$B$12)","v":"Mapped"},null,{"$f":"XBRLMap(N60,N$115&\".\"&$AB60&\".\"&$N$116&\".\"&$N$117&\".\"&$Y$7,$D$81,$D$82,CONFIGURATION!$B$10,\"BMA\",CONFIGURATION!$B$1,\"bscr\",CONFIGURATION!$B$12)","v":"Mapped"},null,{"$f":"XBRLMap(P60,P$115&\".\"&$AB60&\".\"&$P$116&\".\"&$P$117&\".\"&$Y$7,$D$81,$D$82,CONFIGURATION!$B$10,\"BMA\",CONFIGURATION!$B$1,\"bscr\",CONFIGURATION!$B$12)","v":"Mapped"},null,{"$f":"XBRLMap(R60,R$115&\".\"&$AB60&\".\"&$R$116&\".\"&$R$117&\".\"&$Y$7,$D$81,$D$82,CONFIGURATION!$B$10,\"BMA\",CONFIGURATION!$B$1,\"bscr\",CONFIGURATION!$B$12)","v":"Mapped"}]
[]
[null,null,null,null,null,null,null,null,null,null,null,{"$f":"XBRLMap(L62,L$115&\".\"&$AB62&\".\"&$L$116&\".\"&$L$117&\".\"&$Y$7,$D$81,$D$82,CONFIGURATION!$B$10,\"BMA\",CONFIGURATION!$B$1,\"bscr\",CONFIGURATION!$B$12)","v":"Mapped"},null,{"$f":"XBRLMap(N62,N$115&\".\"&$AB62&\".\"&$N$116&\".\"&$N$117&\".\"&$Y$7,$D$81,$D$82,CONFIGURATION!$B$10,\"BMA\",CONFIGURATION!$B$1,\"bscr\",CONFIGURATION!$B$12)","v":"Mapped"},null,{"$f":"XBRLMap(P62,P$115&\".\"&$AB62&\".\"&$P$116&\".\"&$P$117&\".\"&$Y$7,$D$81,$D$82,CONFIGURATION!$B$10,\"BMA\",CONFIGURATION!$B$1,\"bscr\",CONFIGURATION!$B$12)","v":"Mapped"},null,{"$f":"XBRLMap(R62,R$115&\".\"&$AB62&\".\"&$R$116&\".\"&$R$117&\".\"&$Y$7,$D$81,$D$82,CONFIGURATION!$B$10,\"BMA\",CONFIGURATION!$B$1,\"bscr\",CONFIGURATION!$B$12)","v":"Mapped"}]

{"sheet":"Inv Recon (Original)","index":26,"n_rows":39,"n_cols":18,"rows_kept":39,"cut":false,"hidden":true,"merged":[[0,2,0,8],[1,2,1,7],[2,2,2,8],[5,2,5,9],[7,3,7,5],[7,6,7,17]]}
[null,null,"INVESTMENT RECONCILIATION ",null,null,null,null,null,null,null,null,null,null,null,null,null,null,{"$f":"HYPERLINK(\"#'Index'!A1\",\"Return to Index\")","v":"Return to Index"}]
[null,null,{"$f":"'Insurer Information'!C7","v":"Enter Company Name"}]
[null,null,{"$f":"\"For the year ending \"&TEXT('Insurer Information'!C3,\"MMMM DD, YYYY\")","v":"For the year ending December 31, 2019"}]
[null,null,{"$f":"\"expressed in\"& IF(CONFIGURATION!$B$12>1,\" ['\"&MID(CONFIGURATION!$B$12,2,LEN(CONFIGURATION!$B$12))&\"s]\",\"\")&\" \"&'Form 4EBS'!C4","v":"expressed in ['000s] United States Dollars"}]
[]
[null,null,"A reconciliation of investments reported on Form 4EBS to Schedules IIB, IIC, IID, IIE and IIF"]
[]
[null,null,null,"Amounts as Reported in Balance Sheet",null,null,"Amounts results from Look-Through"]
[null,null,"Adjustment Description","Form 4EBS Balance","Form 4EBS Balance - Amounts Reported under Bonds and Debentures","Form 4EBS Balance - Amounts reported under Equities","Schedule IIB - Interest rate-sensitive investments","Schedule IIB - Investments sensitive to equity prices","Schedule IIC - Interest rate-sensitive investments","Schedule IIC - Investments sensitive to equity prices","Schedule IID - Interest rate-sensitive investments","Schedule IID - Investments sensitive to equity prices","Schedule IIE - Interest rate-sensitive investments","Schedule IIE - Investments sensitive to equity prices","Schedule IIF - Interest rate-sensitive investments","Schedule IIF - Investments sensitive to equity prices","Total - Interest rate-sensitive investments","Total - Investments sensitive to equity prices"]
[null,null,"Form 4EBS Open Balance",null,null,null,{"$f":"'Form 4EBS'!F10+'Form 4EBS'!F13+'Form 4EBS'!F23+'Form 4EBS'!F45","v":0},{"$f":"'Form 4EBS'!F18+'Form 4EBS'!F19+'Form 4EBS'!F28+'Form 4EBS'!F29+'Form 4EBS'!F38","v":0},{"$f":"'Schedule IIA (EBS)'!T22","v":0},{"$f":"'Schedule IIA (EBS)'!T44","v":0},null,null,null,null,null,null,{"$f":"G10+I10+K10+M10+O10","v":0},{"$f":"H10+J10+L10+N10+P10","v":0}]
[null,1,"Cash and Cash Equivalents",null,null,null,null,null,null,null,null,null,null,null,null,null,{"$f":"G11+I11+K11+M11+O11-E11","v":0},{"$f":"H11+J11+L11+N11+P11-F11","v":0}]
[null,{"$f":"B11+1","v":2},"Bonds and Debentures",null,null,null,null,null,null,null,null,null,null,null,null,null,{"$f":"G12+I12+K12+M12+O12-E12","v":0},0]
[null,3,"Equities ",null,null,null,null,null,null,null,null,null,null,null,null,null,0,0]
[null,4,"Real Estate",null,null,null,null,null,null,null,null,null,null,null,null,null,0,0]
[null,5,"Collective Investment Vehicles",null,null,null,null,null,null,null,null,null,null,null,null,null,0,0]
[null,6,"Derivatives",null,null,null,null,null,null,null,null,null,null,null,null,null,0,0]
[null,7,"Funds withheld",null,null,null,null,null,null,null,null,null,null,null,null,null,0,0]
[null,8,"Segregated Accounts Assets",null,null,null,null,null,null,null,null,null,null,null,null,null,0,0]
[null,9,"Deposit Assets",null,null,null,null,null,null,null,null,null,null,null,null,null,0,0]
[null,10,"Other Sundry Assets",null,null,null,null,null,null,null,null,null,null,null,null,null,0,0]
[null,11,"Other Adjustment ",null,null,null,null,null,null,null,null,null,null,null,null,null,0,0]
[null,12,"Other Adjustment ",null,null,null,null,null,null,null,null,null,null,null,null,null,0,0]
[null,13,"Other Adjustment ",null,null,null,null,null,null,null,null,null,null,null,null,null,0,0]
[null,14,"Other Adjustment ",null,null,null,null,null,null,null,null,null,null,null,null,null,0,0]
[null,15,"Other Adjustment ",null,null,null,null,null,null,null,null,null,null,null,null,null,0,0]
[null,null,"Schedule IIB, IIC, IID, IIE & IIF Balances",null,null,null,{"$f":"G10+SUM(G11:G25)-SUM(E11:E25)","v":0},{"$f":"H10+SUM(H11:H25)-SUM(F11:F25)","v":0},{"$f":"SUM(I10:I25)","v":0},0,0,0,0,0,0,0,0,0]
[]
[null,null,null,null,null,null,null,{"$f":"IF(ROUND(('Schedule IIB (EBS)'!X62-H26),0)=0,\"TRUE\",\"FALSE\")","v":"TRUE"},null,{"$f":"IF(ROUND(('Schedule IIC (EBS)'!X62-J26),0)=0,\"TRUE\",\"FALSE\")","v":"TRUE"}]
[]
[null,null,null,null,null,null,null,{"$f":"'Schedule IIB (EBS)'!X62-H26","v":0},null,{"$f":"'Schedule IIC (EBS)'!X62-J26","v":0}]
[]
[null,null,"Interest rate-sensitive investments",null,"Total","Difference"]
[null,null,"Amount after Look-through",null,{"$f":"Q26","v":0}]
[null,null,"Amount in Interest Rate & Liquidity Risk calculation",null,{"$f":"'Interest Rate-Liquidity (Rev.)'!C51","v":0},{"$f":"E34-E33","v":0}]
[]
[]
[null,null,"Investments sensitive to equity prices",null,"Total","Difference"]
[null,null,"Amount after Look-through",null,{"$f":"R26","v":0}]
[null,null,"Amount in Equity Risk calculations",null,{"$f":"'Equity Investments (Revised)'!D48+'Equity Investments (Revised)'!F48+'Equity Investments (Revised)'!H48","v":0},{"$f":"E39-E38","v":0}]

{"sheet":"Investment Reconciliation","index":27,"n_rows":61,"n_cols":18,"rows_kept":61,"cut":false,"hidden":false,"merged":[[33,2,33,11],[0,2,0,8],[1,2,1,7],[2,2,2,8],[5,2,5,9],[7,3,7,5],[7,6,7,17]]}
[null,null,"INVESTMENT RECONCILIATION ",null,null,null,null,null,null,null,null,null,null,null,null,null,null,{"$f":"HYPERLINK(\"#'Index'!A1\",\"Return to Index\")","v":"Return to Index"}]
[null,null,{"$f":"'Insurer Information'!C7","v":"Enter Company Name"}]
[null,null,{"$f":"\"For the year ending \"&TEXT('Insurer Information'!C3,\"MMMM DD, YYYY\")","v":"For the year ending December 31, 2019"}]
[null,null,{"$f":"\"expressed in\"& IF(CONFIGURATION!$B$12>1,\" ['\"&MID(CONFIGURATION!$B$12,2,LEN(CONFIGURATION!$B$12))&\"s]\",\"\")&\" \"&'Form 4EBS'!C4","v":"expressed in ['000s] United States Dollars"}]
[]
[null,null,"A reconciliation of investments reported on Form 4EBS to Schedules IIB, IIC, IID, IIE and IIF",null,null,null,null,null,null,null,null,null,null,{"$f":"YEAR('Insurer Information'!C3)","v":2019}]
[]
[null,null,null,"Amounts as Reported in Balance Sheet",null,null,"Amounts results from Look-Through"]
[null,null,"Adjustment Description","Form 4EBS Balance","Form 4EBS Balance - Amounts Reported under Bonds and Debentures","Form 4EBS Balance - Amounts reported under Equities","Schedule IIB - Interest rate-sensitive investments","Schedule IIB - Investments sensitive to equity prices","Schedule IIC - Interest rate-sensitive investments","Schedule IIC - Investments sensitive to equity prices","Schedule IID - Interest rate-sensitive investments","Schedule IID - Investments sensitive to equity prices","Schedule IIE - Interest rate-sensitive investments","Schedule IIE - Investments sensitive to equity prices","Schedule IIF - Interest rate-sensitive investments","Schedule IIF - Investments sensitive to equity prices","Total - Interest rate-sensitive investments","Total - Investments sensitive to equity prices"]
[null,1,"Form 4EBS Open Balance",null,null,null,{"$f":"'Form 4EBS'!F13+'Form 4EBS'!F23+'Form 4EBS'!F45","v":0},{"$f":"'Form 4EBS'!F18+'Form 4EBS'!F28+'Form 4EBS'!F19+'Form 4EBS'!F29+'Form 4EBS'!F38","v":0},{"$f":"'Schedule IIA (EBS)'!T22+'Schedule IIA (EBS)'!D62","v":0},{"$f":"'Schedule IIA (EBS)'!T44","v":0},null,null,null,null,null,null,{"$f":"G10+I10+K10+M10+O10","v":0},{"$f":"H10+J10+L10+N10+P10","v":0}]
[null,{"$f":"B10+1","v":2},"Cash and Cash Equivalents",null,null,null,null,null,null,null,null,null,null,null,null,null,{"$f":"G11+I11+K11+M11+O11-E11","v":0},{"$f":"H11+J11+L11+N11+P11-F11","v":0}]
[null,{"$f":"B11+1","v":3},"Bonds and Debentures",null,null,null,null,null,null,null,null,null,null,null,null,null,{"$f":"G12+I12+K12+M12+O12-E12","v":0},0]
[null,4,"Equities ",null,null,null,null,null,null,null,null,null,null,null,null,null,0,0]
[null,5,"Real Estate",null,null,null,null,null,null,null,null,null,null,null,null,null,0,0]
[null,6,"Collective Investment Vehicles",null,null,null,null,null,null,null,null,null,null,null,null,null,0,0]
[null,7,"Derivatives",null,null,null,null,null,null,null,null,null,null,null,null,null,0,0]
[null,8,"Funds withheld",null,null,null,null,null,null,null,null,null,null,null,null,null,0,0]
[null,9,"Segregated Accounts Assets",null,null,null,null,null,null,null,null,null,null,null,null,null,0,0]
[null,10,"Deposit Assets",null,null,null,null,null,null,null,null,null,null,null,null,null,0,0]
[null,11,"Other Sundry Assets",null,null,null,null,null,null,null,null,null,null,null,null,null,0,0]
[null,12,"Other Adjustment ",null,null,null,null,null,null,null,null,null,null,null,null,null,0,0]
[null,13,"Other Adjustment ",null,null,null,null,null,null,null,null,null,null,null,null,null,0,0]
[null,14,"Other Adjustment ",null,null,null,null,null,null,null,null,null,null,null,null,null,0,0]
[null,15,"Other Adjustment ",null,null,null,null,null,null,null,null,null,null,null,null,null,{"$f":"G24+I24+K24+M24+O24-E24","v":0},{"$f":"H24+J24+L24+N24+P24-F24","v":0}]
[null,16,"Other Adjustment ",null,null,null,null,null,null,null,null,null,null,null,null,null,0,0]
[null,17,"Other Adjustment ",null,null,null,null,null,null,null,null,null,null,null,null,null,0,0]
[null,18,"Calculated Balances",null,null,null,{"$f":"G10+SUM(G11:G26)-SUM(E11:E26)","v":0},{"$f":"H10+SUM(H11:H26)-SUM(F11:F26)","v":0},{"$f":"SUM(I10:I26)","v":0},0,0,0,0,0,0,0,0,0]
[null,null,"Balance after Look-Through adjustments",null,null,null,{"$f":"'Schedule IIB (EBS)'!X27","v":0},{"$f":"'Schedule IIB (EBS)'!X62","v":0},{"$f":"'Schedule IIC (EBS)'!X27","v":0},{"$f":"'Schedule IIC (EBS)'!X62","v":0},{"$f":"'Schedule IID (EBS)'!X27","v":0},{"$f":"'Schedule IID (EBS)'!X62","v":0},{"$f":"'Schedule IIE (EBS)'!X27","v":0},{"$f":"'Schedule IIE (EBS)'!X62","v":0},{"$f":"'Schedule IIF (EBS)'!X27","v":0},{"$f":"'Schedule IIF (EBS)'!X62","v":0},{"$f":"G28+I28+K28+M28+O28-E28","v":0},{"$f":"H28+J28+L28+N28+P28-F28","v":0}]
[]
[null,null,null,null,null,null,{"$f":"IF(ROUND((G28-G27),0)=0,\"TRUE\",\"FALSE\")","v":"TRUE"},{"$f":"IF(ROUND((H28-H27),0)=0,\"TRUE\",\"FALSE\")","v":"TRUE"},"TRUE","TRUE","TRUE","TRUE","TRUE","TRUE","TRUE","TRUE","TRUE","TRUE"]
[]
[null,null,null,null,null,null,{"$f":"G27-G28","v":0},{"$f":"H27-H28","v":0},0,0,0,0,0,0,0,0,0,0]
[]
[null,null,"A reconciliation of investments reported on Schedules IIB, IIC, IID, IIE and IIF to exposures in Equity Risk and Interest Rate Risk calculations taking into account look-through"]
[]
[null,null,"Adjustment Description",null,null,null,"Interest rate-sensitive investments","Investments sensitive to equity prices","Interest rate-sensitive investments","Investments sensitive to equity prices","Interest rate-sensitive investments","Investments sensitive to equity prices","Interest rate-sensitive investments","Investments sensitive to equity prices","Interest rate-sensitive investments","Investments sensitive to equity prices","Total - Interest rate-sensitive investments","Total - Investments sensitive to equity prices"]
[null,null,"Schedule IIB, IIC, IID, IIE & IIF Balances",null,null,null,{"$f":"'Schedule IIB (EBS)'!X27","v":0},{"$f":"'Schedule IIB (EBS)'!X62","v":0},{"$f":"'Schedule IIC (EBS)'!X27","v":0},{"$f":"'Schedule IIC (EBS)'!X62","v":0},{"$f":"'Schedule IID (EBS)'!X27","v":0},{"$f":"'Schedule IID (EBS)'!X62","v":0},{"$f":"'Schedule IIE (EBS)'!X27","v":0},{"$f":"'Schedule IIE (EBS)'!X62","v":0},{"$f":"'Schedule IIF (EBS)'!X27","v":0},{"$f":"'Schedule IIF (EBS)'!X62","v":0},{"$f":"G37+I37+K37+M37+O37","v":0},{"$f":"H37+J37+L37+N37+P37","v":0}]
[null,{"$f":"B27+1","v":19},"Cash and Cash Equivalents",null,null,null,null,null,null,null,null,null,null,null,null,null,{"$f":"G38+I38+K38+M38+O38","v":0},0]
[null,{"$f":"B38+1","v":20},"Derivatives not included in Schedules IIB-IIF",null,null,null,null,null,null,null,null,null,null,null,null,null,0,0]
[null,{"$f":"B39+1","v":21},"Other Interest/Equity sensitive items not included in Schedules IIB-IIF",null,null,null,null,null,null,null,null,null,null,null,null,null,0,0]
[null,22,"Other Interest/Equity sensitive items not included in Schedules IIB-IIF",null,null,null,null,null,null,null,null,null,null,null,null,null,0,0]
[null,23,"Other Interest/Equity sensitive items not included in Schedules IIB-IIF",null,null,null,null,null,null,null,null,null,null,null,null,null,0,0]
[null,24,"Other Interest/Equity sensitive items not included in Schedules IIB-IIF",null,null,null,null,null,null,null,null,null,null,null,null,null,0,0]
[null,25,"Other Interest/Equity sensitive items not included in Schedules IIB-IIF",null,null,null,null,null,null,null,null,null,null,null,null,null,0,0]
[null,26,"Other Interest/Equity sensitive items not included in Schedules IIB-IIF",null,null,null,null,null,null,null,null,null,null,null,null,null,0,0]
[null,27,"Other Interest/Equity sensitive items not included in Schedules IIB-IIF",null,null,null,null,null,null,null,null,null,null,null,null,null,0,0]
[null,28,"Other Interest/Equity sensitive items not included in Schedules IIB-IIF",null,null,null,null,null,null,null,null,null,null,null,null,null,0,0]
[null,29,"Other Interest/Equity sensitive items not included in Schedules IIB-IIF",null,null,null,null,null,null,null,null,null,null,null,null,null,0,0]
[null,30,"Other Interest/Equity sensitive items not included in Schedules IIB-IIF",null,null,null,null,null,null,null,null,null,null,null,null,null,0,0]
[null,31,"Exposures after adjustments",null,null,null,{"$f":"SUM(G37:G49)","v":0},{"$f":"SUM(H37:H49)","v":0},0,0,0,0,0,0,0,0,{"$f":"SUM(Q37:Q49)","v":0},{"$f":"SUM(R37:R49)","v":0}]
[null,null,"Total Exposure in Risk calculations",null,null,null,null,null,null,null,null,null,null,null,null,null,{"$f":"'Interest Rate-Liquidity (Rev.)'!C51","v":0},{"$f":"'Equity Investments (Revised)'!D48+'Equity Investments (Revised)'!F48+'Equity Investments (Revised)'!H48","v":0}]
[]
[null,null,null,null,null,null,null,null,null,null,null,null,null,null,null,null,{"$f":"IF(ROUND((Q51-Q50),0)=0,\"TRUE\",\"FALSE\")","v":"TRUE"},{"$f":"IF(ROUND((R51-R50),0)=0,\"TRUE\",\"FALSE\")","v":"TRUE"}]
[null,null,"Interest rate-sensitive investments",null,"Total","Difference"]
[null,null,"Amount after Look-through",null,{"$f":"Q50","v":0},null,null,null,null,null,null,null,null,null,null,null,{"$f":"Q50-Q51","v":0},0]
[null,null,"Amount in Interest Rate & Liquidity Risk calculation",null,{"$f":"'Interest Rate-Liquidity (Rev.)'!C51","v":0},{"$f":"E56-E55","v":0},{"$f":"IF(ROUND(F56,0)=0,\"TRUE\",\"FALSE\")","v":"TRUE"}]
[]
[]
[null,null,"Investments sensitive to equity prices",null,"Total","Difference"]
[null,null,"Amount after Look-through",null,{"$f":"R50","v":0}]
[null,null,"Amount in Equity Risk calculations",null,{"$f":"'Equity Investments (Revised)'!D48+'Equity Investments (Revised)'!F48+'Equity Investments (Revised)'!H48","v":0},{"$f":"E61-E60","v":0},{"$f":"IF(ROUND(F61,0)=0,\"TRUE\",\"FALSE\")","v":"TRUE"}]

{"sheet":"Schedule IIB (EBS)","index":28,"n_rows":147,"n_cols":31,"rows_kept":147,"cut":false,"hidden":false,"merged":[[33,27,34,27],[7,23,7,25],[7,11,7,13],[33,23,34,23],[2,3,2,5],[3,5,3,7],[4,5,4,7],[7,3,7,5],[7,7,7,9],[7,19,7,21],[32,3,32,13],[34,7,34,9],[34,11,34,13],[32,15,32,19],[7,15,7,17],[33,19,34,19],[33,3,34,5],[33,7,33,13],[33,15,34,15],[33,17,34,17],[63,13,63,21],[83,17,84,17],[83,19,84,19],[64,13,64,15],[82,16,82,19],[81,11,81,20],[82,12,82,15],[64,17,64,19],[64,3,64,5],[64,7,64,9],[63,3,63,11],[83,13,84,13],[83,15,84,15]]}
[null,"SCHEDULE OF FIXED INCOME & EQUITY INVESTMENTS BY BSCR RATING",null,null,null,null,null,null,null,null,null,null,null,null,null,null,null,null,null,null,null,null,null,null,null,null,null,{"$f":"HYPERLINK(\"#'Index'!A1\",\"Return to Index\")","v":"Return to Index"}]
[]
[null,null,null,{"$f":"'Insurer Information'!C7","v":"Enter Company Name"}]
[null,null,null,"As at",null,{"$f":"'Form 4EBS'!C3","v":"2019-12-31"},null,null,null,null,null,null,null,null,null,null,null,null,null,null,null,null,null,null,null,"SCHEDULE IIB (EBS)"]
[null,null,null,{"$f":"\"Expressed in \" & IF(CONFIGURATION!$B$12>1,\" ['\"&MID(CONFIGURATION!$B$12,2,LEN(CONFIGURATION!$B$12))&\"s]\",\"\")","v":"Expressed in  ['000s]"},null,{"$f":"'Form 4EBS'!C4","v":"United States Dollars"}]
[null,null,null,null,null,null,null,null,null,null,null,null,null,{"$f":"YEAR('Insurer Information'!C3)","v":2019}]
[null,null,null,"(1)",null,"(2)",null,"(3)",null,"(4)",null,"(5)",null,"(6)",null,"(7)",null,"(8)",null,"(9)",null,"(10)",null,"(11)",null,"(12)"]
[null,null,null,"CORPORATE & SOVEREIGN BONDS",null,null,null,"RESIDENTIAL MORTGAGE-BACKED SECURITIES",null,null,null,"COMMERCIAL MORTGAGE-BACKED SECURITIES / ASSET-BACKED SECURITIES",null,null,null,"BOND MUTUAL FUNDS",null,null,null,"MORTGAGE LOANS",null,null,null,"TOTAL\n[ Form 4EBS Lines 2(b) & 3(b)]"]
[null,null,null,{"$f":"'Form 4EBS'!F6","v":"2019-12-31"},null,{"$f":"'Form 4EBS'!H6","v":"2018-12-31"},null,{"$f":"'Form 4EBS'!F6","v":"2019-12-31"},null,{"$f":"'Form 4EBS'!H6","v":"2018-12-31"},null,{"$f":"'Form 4EBS'!F6","v":"2019-12-31"},null,{"$f":"'Form 4EBS'!H6","v":"2018-12-31"},null,{"$f":"'Form 4EBS'!F6","v":"2019-12-31"},null,{"$f":"'Form 4EBS'!H6","v":"2018-12-31"},null,{"$f":"'Form 4EBS'!F6","v":"2019-12-31"},null,{"$f":"'Form 4EBS'!H6","v":"2018-12-31"},null,{"$f":"D9","v":"2019-12-31"},null,{"$f":"F9","v":"2018-12-31"}]
[null,null,null,{"$f":"CONFIGURATION!$D$12","v":" ('000s)"},null,{"$f":"CONFIGURATION!$D$12","v":" ('000s)"},null,{"$f":"CONFIGURATION!$D$12","v":" ('000s)"},null,{"$f":"CONFIGURATION!$D$12","v":" ('000s)"},null,{"$f":"CONFIGURATION!$D$12","v":" ('000s)"},null,{"$f":"CONFIGURATION!$D$12","v":" ('000s)"},null,{"$f":"CONFIGURATION!$D$12","v":" ('000s)"},null,{"$f":"CONFIGURATION!$D$12","v":" ('000s)"},null,{"$f":"CONFIGURATION!$D$12","v":" ('000s)"},null,{"$f":"CONFIGURATION!$D$12","v":" ('000s)"},null,{"$f":"CONFIGURATION!$D$12","v":" ('000s)"},null,{"$f":"CONFIGURATION!$D$12","v":" ('000s)"}]
[null,"Line no. "]
[null,"Quoted and Unquoted Bonds and Debentures"]
[null,1,"BSCR Rating 0",{"$f":"Import!M6403","v":0},null,{"$f":"Import!O6403","v":0},null,null,null,null,null,null,null,null,null,{"$f":"Import!M6428","v":0},null,{"$f":"Import!O6428","v":0},null,null,null,null,null,{"$f":"D13+H13+L13+P13","v":0},null,{"$f":"F13+J13+N13+R13","v":0},null,null,null,null,"brrt_RiskGradeAxis_brrt_BSCRRating0Member"]
[null,{"$f":"B13+1","v":2},"BSCR Rating 1",{"$f":"Import!M6404","v":0},null,{"$f":"Import!O6404","v":0},null,{"$f":"Import!M6412","v":0},null,{"$f":"Import!O6412","v":0},null,{"$f":"Import!M6420","v":0},null,{"$f":"Import!O6420","v":0},null,{"$f":"Import!M6429","v":0},null,{"$f":"Import!O6429","v":0},null,null,null,null,null,0,null,0,null,null,null,null,"brrt_RiskGradeAxis_brrt_BSCRRating1Member"]
[null,{"$f":"B14+1","v":3},"BSCR Rating 2",{"$f":"Import!M6405","v":0},null,{"$f":"Import!O6405","v":0},null,{"$f":"Import!M6413","v":0},null,{"$f":"Import!O6413","v":0},null,{"$f":"Import!M6421","v":0},null,{"$f":"Import!O6421","v":0},null,{"$f":"Import!M6430","v":0},null,{"$f":"Import!O6430","v":0},null,null,null,null,null,0,null,0,null,null,null,null,"brrt_RiskGradeAxis_brrt_BSCRRating2Member"]
[null,4,"BSCR Rating 3",{"$f":"Import!M6406","v":0},null,{"$f":"Import!O6406","v":0},null,{"$f":"Import!M6414","v":0},null,{"$f":"Import!O6414","v":0},null,{"$f":"Import!M6422","v":0},null,{"$f":"Import!O6422","v":0},null,{"$f":"Import!M6431","v":0},null,{"$f":"Import!O6431","v":0},null,null,null,null,null,0,null,0,null,null,null,null,"brrt_RiskGradeAxis_brrt_BSCRRating3Member"]
[null,5,"BSCR Rating 4",{"$f":"Import!M6407","v":0},null,{"$f":"Import!O6407","v":0},null,{"$f":"Import!M6415","v":0},null,{"$f":"Import!O6415","v":0},null,{"$f":"Import!M6423","v":0},null,{"$f":"Import!O6423","v":0},null,{"$f":"Import!M6432","v":0},null,{"$f":"Import!O6432","v":0},null,null,null,null,null,0,null,0,null,null,null,null,"brrt_RiskGradeAxis_brrt_BSCRRating4Member"]
[null,6,"BSCR Rating 5",{"$f":"Import!M6408","v":0},null,{"$f":"Import!O6408","v":0},null,{"$f":"Import!M6416","v":0},null,{"$f":"Import!O6416","v":0},null,{"$f":"Import!M6424","v":0},null,{"$f":"Import!O6424","v":0},null,{"$f":"Import!M6433","v":0},null,{"$f":"Import!O6433","v":0},null,null,null,null,null,0,null,0,null,null,null,null,"brrt_RiskGradeAxis_brrt_BSCRRating5Member"]
[null,7,"BSCR Rating 6",{"$f":"Import!M6409","v":0},null,{"$f":"Import!O6409","v":0},null,{"$f":"Import!M6417","v":0},null,{"$f":"Import!O6417","v":0},null,{"$f":"Import!M6425","v":0},null,{"$f":"Import!O6425","v":0},null,{"$f":"Import!M6434","v":0},null,{"$f":"Import!O6434","v":0},null,null,null,null,null,0,null,0,null,null,null,null,"brrt_RiskGradeAxis_brrt_BSCRRating6Member"]
[null,8,"BSCR Rating 7",{"$f":"Import!M6410","v":0},null,{"$f":"Import!O6410","v":0},null,{"$f":"Import!M6418","v":0},null,{"$f":"Import!O6418","v":0},null,{"$f":"Import!M6426","v":0},null,{"$f":"Import!O6426","v":0},null,{"$f":"Import!M6435","v":0},null,{"$f":"Import!O6435","v":0},null,null,null,null,null,0,null,0,null,null,null,null,"brrt_RiskGradeAxis_brrt_BSCRRating7Member"]
[null,9,"BSCR Rating 8",{"$f":"Import!M6411","v":0},null,{"$f":"Import!O6411","v":0},null,{"$f":"Import!M6419","v":0},null,{"$f":"Import!O6419","v":0},null,{"$f":"Import!M6427","v":0},null,{"$f":"Import!O6427","v":0},null,{"$f":"Import!M6436","v":0},null,{"$f":"Import!O6436","v":0},null,null,null,null,null,{"$f":"D21+H21+L21+P21","v":0},null,{"$f":"F21+J21+N21+R21","v":0},null,null,null,null,"brrt_RiskGradeAxis_brrt_BSCRRating8Member"]
[null,10,"Insured/Guaranteed Mortgages",null,null,null,null,null,null,null,null,null,null,null,null,null,null,null,null,{"$f":"Import!M6437","v":0},null,{"$f":"Import!O6437","v":0},null,{"$f":"D22+H22+L22+P22+T22","v":0},null,{"$f":"F22+J22+N22+R22+V22","v":0}]
[null,11,"Other Commercial and Farm Mortgages",null,null,null,null,null,null,null,null,null,null,null,null,null,null,null,null,{"$f":"Import!M6438","v":0},null,{"$f":"Import!O6438","v":0},null,{"$f":"D23+H23+L23+P23+T23","v":0},null,0]
[null,12,"Other Residential Mortgages",null,null,null,null,null,null,null,null,null,null,null,null,null,null,null,null,{"$f":"Import!M6439","v":0},null,{"$f":"Import!O6439","v":0},null,0,null,0]
[null,13,"Mortgages Not In Good Standing",null,null,null,null,null,null,null,null,null,null,null,null,null,null,null,null,{"$f":"Import!M6440","v":0},null,{"$f":"Import!O6440","v":0},null,0,null,0]
[]
[null,{"$f":"B25+1","v":14},"Total",{"$f":"SUM(D13:D21)","v":0},null,{"$f":"SUM(F13:F21)","v":0},null,{"$f":"SUM(H13:H21)","v":0},null,{"$f":"SUM(J13:J21)","v":0},null,{"$f":"SUM(L13:L21)","v":0},null,{"$f":"SUM(N13:N21)","v":0},null,{"$f":"SUM(P12:P21)","v":0},null,{"$f":"SUM(R12:R21)","v":0},null,{"$f":"SUM(T12:T26)","v":0},null,{"$f":"SUM(V12:V26)","v":0},null,{"$f":"SUM(X12:X26)","v":0},null,{"$f":"SUM(Z12:Z26)","v":0},null,null,null,null,"brrt_RiskGradeAxis_brrt_TotalMember"]
[]
[null,null,null,null,null,null,null,null,null,null,null,null,null,null,null,null,null,null,null,null,null,null,null,{"$f":"IF(ROUND((X27-('Form 4EBS'!F13+'Form 4EBS'!F23)),0)=0,TRUE,FALSE)","v":true},null,{"$f":"IF(ROUND((Z27-('Form 4EBS'!H13+'Form 4EBS'!H23)),0)=0,TRUE,FALSE)","v":true}]
[]
[null,null,"Difference",null,null,null,null,null,null,null,null,null,null,null,null,null,null,null,null,null,null,null,null,{"$f":"('Form 4EBS'!F13+'Form 4EBS'!F23)-X27","v":0},null,{"$f":"('Form 4EBS'!H13+'Form 4EBS'!H23)-Z27","v":0}]
[]
[null,null,null,"ASSETS",null,null,null,null,null,null,null,null,null,null,null,"Liabilities"]
[null,null,null,"Long Exposures",null,null,null,"Short Exposures",null,null,null,null,null,null,null,null,null,"Without Management Actions",null,"With Management Actions",null,null,null,"Total Assets Before Shock",null,null,null,"Shocks"]
[null,null,null,null,null,null,null,"Qualifying as Assets held for risk-mitigation purposes",null,null,null,"Not Qualifying as Assets held for risk-mitigation purposes",null,null,null,null,null,null,null,null,null,null,null,null,null,null,null,"Shocks"]
[null,null,null,"Before Shock",null,"After Shock",null,"Before Shock",null,"After Shock",null,"Before Shock",null,"After Shock",null,"Before Shock",null,"After Shock",null,"After Shock"]
[null,null,null,{"$f":"CONFIGURATION!$D$12","v":" ('000s)"},null,{"$f":"CONFIGURATION!$D$12","v":" ('000s)"},null,{"$f":"CONFIGURATION!$D$12","v":" ('000s)"},null,{"$f":"CONFIGURATION!$D$12","v":" ('000s)"},null,{"$f":"CONFIGURATION!$D$12","v":" ('000s)"},null,{"$f":"CONFIGURATION!$D$12","v":" ('000s)"},null,{"$f":"CONFIGURATION!$D$12","v":" ('000s)"},null,{"$f":"CONFIGURATION!$D$12","v":" ('000s)"},null,{"$f":"CONFIGURATION!$D$12","v":" ('000s)"},null,null,null,{"$f":"CONFIGURATION!$D$12","v":" ('000s)"}]
[null,"Equity Holdings "]
[null,{"$f":"B27+1","v":15},"Strategic Holdings - Listed",{"$f":"Import!M6441","v":0},null,{"$f":"IF(OR(Import!M6463=0,Import!M6463=\"\"),(1-$AB39)*D39,Import!M6463)","v":0},null,{"$f":"Import!M6485","v":0},null,{"$f":"IF(OR(Import!M6507=0,Import!M6507=\"\"),(1-$AB39)*H39,Import!M6507)","v":0},null,{"$f":"Import!M6529","v":0},null,{"$f":"IF(OR(Import!M6551=0,Import!M6551=\"\"),(1-$AB39)*L39,Import!M6551)","v":0},null,{"$f":"Import!M6573","v":0},null,{"$f":"IF(OR(Import!M6595=0,Import!M6595=\"\"),P39,Import!M6595)","v":0},null,{"$f":"IF(OR(Import!M6617=0,Import!M6617=\"\"),R39,Import!M6617)","v":0},null,null,null,{"$f":"D39+H39+L39","v":0},null,null,null,0.2]
[null,{"$f":"B39+1","v":16},"Duration Based",{"$f":"Import!M6442","v":0},null,{"$f":"IF(OR(Import!M6464=0,Import!M6464=\"\"),(1-$AB40)*D40,Import!M6464)","v":0},null,{"$f":"Import!M6486","v":0},null,{"$f":"IF(OR(Import!M6508=0,Import!M6508=\"\"),(1-$AB40)*H40,Import!M6508)","v":0},null,{"$f":"Import!M6530","v":0},null,{"$f":"IF(OR(Import!M6552=0,Import!M6552=\"\"),(1-$AB40)*L40,Import!M6552)","v":0},null,{"$f":"Import!M6574","v":0},null,{"$f":"IF(OR(Import!M6596=0,Import!M6596=\"\"),P40,Import!M6596)","v":0},null,{"$f":"IF(OR(Import!M6618=0,Import!M6618=\"\"),R40,Import!M6618)","v":0},null,null,null,{"$f":"D40+H40+L40","v":0},null,null,null,0.2]
[null,17,"Listed Equity Securities in Developed Markets",{"$f":"Import!M6443","v":0},null,{"$f":"IF(OR(Import!M6465=0,Import!M6465=\"\"),(1-$AB41)*D41,Import!M6465)","v":0},null,{"$f":"Import!M6487","v":0},null,{"$f":"IF(OR(Import!M6509=0,Import!M6509=\"\"),(1-$AB41)*H41,Import!M6509)","v":0},null,{"$f":"Import!M6531","v":0},null,{"$f":"IF(OR(Import!M6553=0,Import!M6553=\"\"),(1-$AB41)*L41,Import!M6553)","v":0},null,{"$f":"Import!M6575","v":0},null,{"$f":"IF(OR(Import!M6597=0,Import!M6597=\"\"),P41,Import!M6597)","v":0},null,{"$f":"IF(OR(Import!M6619=0,Import!M6619=\"\"),R41,Import!M6619)","v":0},null,null,null,{"$f":"D41+H41+L41","v":0},null,null,null,0.35]
[null,18,"Preferred Stocks, BSCR Rating 1",{"$f":"Import!M6444","v":0},null,{"$f":"IF(OR(Import!M6466=0,Import!M6466=\"\"),(1-$AB42)*D42,Import!M6466)","v":0},null,{"$f":"Import!M6488","v":0},null,{"$f":"IF(OR(Import!M6510=0,Import!M6510=\"\"),(1-$AB42)*H42,Import!M6510)","v":0},null,{"$f":"Import!M6532","v":0},null,{"$f":"IF(OR(Import!M6554=0,Import!M6554=\"\"),(1-$AB42)*L42,Import!M6554)","v":0},null,{"$f":"Import!M6576","v":0},null,{"$f":"IF(OR(Import!M6598=0,Import!M6598=\"\"),P42,Import!M6598)","v":0},null,{"$f":"IF(OR(Import!M6620=0,Import!M6620=\"\"),R42,Import!M6620)","v":0},null,null,null,0,null,null,null,6.0000000000000001E-3]
[null,19,"Preferred Stocks, BSCR Rating 2",{"$f":"Import!M6445","v":0},null,{"$f":"IF(OR(Import!M6467=0,Import!M6467=\"\"),(1-$AB43)*D43,Import!M6467)","v":0},null,{"$f":"Import!M6489","v":0},null,{"$f":"IF(OR(Import!M6511=0,Import!M6511=\"\"),(1-$AB43)*H43,Import!M6511)","v":0},null,{"$f":"Import!M6533","v":0},null,{"$f":"IF(OR(Import!M6555=0,Import!M6555=\"\"),(1-$AB43)*L43,Import!M6555)","v":0},null,{"$f":"Import!M6577","v":0},null,{"$f":"IF(OR(Import!M6599=0,Import!M6599=\"\"),P43,Import!M6599)","v":0},null,{"$f":"IF(OR(Import!M6621=0,Import!M6621=\"\"),R43,Import!M6621)","v":0},null,null,null,0,null,null,null,1.2E-2]
[null,20,"Preferred Stocks, BSCR Rating 3",{"$f":"Import!M6446","v":0},null,{"$f":"IF(OR(Import!M6468=0,Import!M6468=\"\"),(1-$AB44)*D44,Import!M6468)","v":0},null,{"$f":"Import!M6490","v":0},null,{"$f":"IF(OR(Import!M6512=0,Import!M6512=\"\"),(1-$AB44)*H44,Import!M6512)","v":0},null,{"$f":"Import!M6534","v":0},null,{"$f":"IF(OR(Import!M6556=0,Import!M6556=\"\"),(1-$AB44)*L44,Import!M6556)","v":0},null,{"$f":"Import!M6578","v":0},null,{"$f":"IF(OR(Import!M6600=0,Import!M6600=\"\"),P44,Import!M6600)","v":0},null,{"$f":"IF(OR(Import!M6622=0,Import!M6622=\"\"),R44,Import!M6622)","v":0},null,null,null,0,null,null,null,0.02]
[null,21,"Preferred Stocks, BSCR Rating 4",{"$f":"Import!M6447","v":0},null,{"$f":"IF(OR(Import!M6469=0,Import!M6469=\"\"),(1-$AB45)*D45,Import!M6469)","v":0},null,{"$f":"Import!M6491","v":0},null,{"$f":"IF(OR(Import!M6513=0,Import!M6513=\"\"),(1-$AB45)*H45,Import!M6513)","v":0},null,{"$f":"Import!M6535","v":0},null,{"$f":"IF(OR(Import!M6557=0,Import!M6557=\"\"),(1-$AB45)*L45,Import!M6557)","v":0},null,{"$f":"Import!M6579","v":0},null,{"$f":"IF(OR(Import!M6601=0,Import!M6601=\"\"),P45,Import!M6601)","v":0},null,{"$f":"IF(OR(Import!M6623=0,Import!M6623=\"\"),R45,Import!M6623)","v":0},null,null,null,0,null,null,null,0.04]
[null,22,"Preferred Stocks, BSCR Rating 5",{"$f":"Import!M6448","v":0},null,{"$f":"IF(OR(Import!M6470=0,Import!M6470=\"\"),(1-$AB46)*D46,Import!M6470)","v":0},null,{"$f":"Import!M6492","v":0},null,{"$f":"IF(OR(Import!M6514=0,Import!M6514=\"\"),(1-$AB46)*H46,Import!M6514)","v":0},null,{"$f":"Import!M6536","v":0},null,{"$f":"IF(OR(Import!M6558=0,Import!M6558=\"\"),(1-$AB46)*L46,Import!M6558)","v":0},null,{"$f":"Import!M6580","v":0},null,{"$f":"IF(OR(Import!M6602=0,Import!M6602=\"\"),P46,Import!M6602)","v":0},null,{"$f":"IF(OR(Import!M6624=0,Import!M6624=\"\"),R46,Import!M6624)","v":0},null,null,null,0,null,null,null,0.11]
[null,23,"Preferred Stocks, BSCR Rating 6",{"$f":"Import!M6449","v":0},null,{"$f":"IF(OR(Import!M6471=0,Import!M6471=\"\"),(1-$AB47)*D47,Import!M6471)","v":0},null,{"$f":"Import!M6493","v":0},null,{"$f":"IF(OR(Import!M6515=0,Import!M6515=\"\"),(1-$AB47)*H47,Import!M6515)","v":0},null,{"$f":"Import!M6537","v":0},null,{"$f":"IF(OR(Import!M6559=0,Import!M6559=\"\"),(1-$AB47)*L47,Import!M6559)","v":0},null,{"$f":"Import!M6581","v":0},null,{"$f":"IF(OR(Import!M6603=0,Import!M6603=\"\"),P47,Import!M6603)","v":0},null,{"$f":"IF(OR(Import!M6625=0,Import!M6625=\"\"),R47,Import!M6625)","v":0},null,null,null,0,null,null,null,0.25]
[null,24,"Preferred Stocks, BSCR Rating 7",{"$f":"Import!M6450","v":0},null,{"$f":"IF(OR(Import!M6472=0,Import!M6472=\"\"),(1-$AB48)*D48,Import!M6472)","v":0},null,{"$f":"Import!M6494","v":0},null,{"$f":"IF(OR(Import!M6516=0,Import!M6516=\"\"),(1-$AB48)*H48,Import!M6516)","v":0},null,{"$f":"Import!M6538","v":0},null,{"$f":"IF(OR(Import!M6560=0,Import!M6560=\"\"),(1-$AB48)*L48,Import!M6560)","v":0},null,{"$f":"Import!M6582","v":0},null,{"$f":"IF(OR(Import!M6604=0,Import!M6604=\"\"),P48,Import!M6604)","v":0},null,{"$f":"IF(OR(Import!M6626=0,Import!M6626=\"\"),R48,Import!M6626)","v":0},null,null,null,0,null,null,null,0.35]
[null,25,"Preferred Stocks, BSCR Rating 8",{"$f":"Import!M6451","v":0},null,{"$f":"IF(OR(Import!M6473=0,Import!M6473=\"\"),(1-$AB49)*D49,Import!M6473)","v":0},null,{"$f":"Import!M6495","v":0},null,{"$f":"IF(OR(Import!M6517=0,Import!M6517=\"\"),(1-$AB49)*H49,Import!M6517)","v":0},null,{"$f":"Import!M6539","v":0},null,{"$f":"IF(OR(Import!M6561=0,Import!M6561=\"\"),(1-$AB49)*L49,Import!M6561)","v":0},null,{"$f":"Import!M6583","v":0},null,{"$f":"IF(OR(Import!M6605=0,Import!M6605=\"\"),P49,Import!M6605)","v":0},null,{"$f":"IF(OR(Import!M6627=0,Import!M6627=\"\"),R49,Import!M6627)","v":0},null,null,null,0,null,null,null,0.35]
[null,26,"Equity Derivatives on Type 1 Equities",{"$f":"Import!M6452","v":0},null,{"$f":"Import!M6474","v":0},null,{"$f":"Import!M6496","v":0},null,{"$f":"Import!M6518","v":0},null,{"$f":"Import!M6540","v":0},null,{"$f":"Import!M6562","v":0},null,{"$f":"Import!M6584","v":0},null,{"$f":"IF(OR(Import!M6606=0,Import!M6606=\"\"),P50,Import!M6606)","v":0},null,{"$f":"IF(OR(Import!M6628=0,Import!M6628=\"\"),R50,Import!M6628)","v":0},null,null,null,0,null,null,null,0.35]
[null,27,"Strategic Holdings - Unlisted",{"$f":"Import!M6453","v":0},null,{"$f":"IF(OR(Import!M6475=0,Import!M6475=\"\"),(1-$AB51)*D51,Import!M6475)","v":0},null,{"$f":"Import!M6497","v":0},null,{"$f":"IF(OR(Import!M6519=0,Import!M6519=\"\"),(1-$AB51)*H51,Import!M6519)","v":0},null,{"$f":"Import!M6541","v":0},null,{"$f":"IF(OR(Import!M6563=0,Import!M6563=\"\"),(1-$AB51)*L51,Import!M6563)","v":0},null,{"$f":"Import!M6585","v":0},null,{"$f":"IF(OR(Import!M6607=0,Import!M6607=\"\"),P51,Import!M6607)","v":0},null,{"$f":"IF(OR(Import!M6629=0,Import!M6629=\"\"),R51,Import!M6629)","v":0},null,null,null,0,null,null,null,0.2]
[null,28,"Other Equities / Other Assets",{"$f":"Import!M6454","v":0},null,{"$f":"IF(OR(Import!M6476=0,Import!M6476=\"\"),(1-$AB52)*D52,Import!M6476)","v":0},null,{"$f":"Import!M6498","v":0},null,{"$f":"IF(OR(Import!M6520=0,Import!M6520=\"\"),(1-$AB52)*H52,Import!M6520)","v":0},null,{"$f":"Import!M6542","v":0},null,{"$f":"IF(OR(Import!M6564=0,Import!M6564=\"\"),(1-$AB52)*L52,Import!M6564)","v":0},null,{"$f":"Import!M6586","v":0},null,{"$f":"IF(OR(Import!M6608=0,Import!M6608=\"\"),P52,Import!M6608)","v":0},null,{"$f":"IF(OR(Import!M6630=0,Import!M6630=\"\"),R52,Import!M6630)","v":0},null,null,null,0,null,null,null,0.45]
[null,29,"Letters of Credit",{"$f":"Import!M6455","v":0},null,{"$f":"IF(OR(Import!M6477=0,Import!M6477=\"\"),(1-$AB53)*D53,Import!M6477)","v":0},null,{"$f":"Import!M6499","v":0},null,{"$f":"IF(OR(Import!M6521=0,Import!M6521=\"\"),(1-$AB53)*H53,Import!M6521)","v":0},null,{"$f":"Import!M6543","v":0},null,{"$f":"IF(OR(Import!M6565=0,Import!M6565=\"\"),(1-$AB53)*L53,Import!M6565)","v":0},null,{"$f":"Import!M6587","v":0},null,{"$f":"IF(OR(Import!M6609=0,Import!M6609=\"\"),P53,Import!M6609)","v":0},null,{"$f":"IF(OR(Import!M6631=0,Import!M6631=\"\"),R53,Import!M6631)","v":0},null,null,null,0,null,null,null,0.2]
[null,30,"Intangible assets",{"$f":"Import!M6456","v":0},null,{"$f":"IF(OR(Import!M6478=0,Import!M6478=\"\"),(1-$AB54)*D54,Import!M6478)","v":0},null,{"$f":"Import!M6500","v":0},null,{"$f":"IF(OR(Import!M6522=0,Import!M6522=\"\"),(1-$AB54)*H54,Import!M6522)","v":0},null,{"$f":"Import!M6544","v":0},null,{"$f":"IF(OR(Import!M6566=0,Import!M6566=\"\"),(1-$AB54)*L54,Import!M6566)","v":0},null,{"$f":"Import!M6588","v":0},null,{"$f":"IF(OR(Import!M6610=0,Import!M6610=\"\"),P54,Import!M6610)","v":0},null,{"$f":"IF(OR(Import!M6632=0,Import!M6632=\"\"),R54,Import!M6632)","v":0},null,null,null,0,null,null,null,0.2]
[null,31,"Pension Benefit Surplus",{"$f":"Import!M6457","v":0},null,{"$f":"IF(OR(Import!M6479=0,Import!M6479=\"\"),(1-$AB55)*D55,Import!M6479)","v":0},null,{"$f":"Import!M6501","v":0},null,{"$f":"IF(OR(Import!M6523=0,Import!M6523=\"\"),(1-$AB55)*H55,Import!M6523)","v":0},null,{"$f":"Import!M6545","v":0},null,{"$f":"IF(OR(Import!M6567=0,Import!M6567=\"\"),(1-$AB55)*L55,Import!M6567)","v":0},null,{"$f":"Import!M6589","v":0},null,{"$f":"IF(OR(Import!M6611=0,Import!M6611=\"\"),P55,Import!M6611)","v":0},null,{"$f":"IF(OR(Import!M6633=0,Import!M6633=\"\"),R55,Import!M6633)","v":0},null,null,null,0,null,null,null,0.2]
[null,32,"Equity Derivatives on Type 2 Equities",{"$f":"Import!M6458","v":0},null,{"$f":"Import!M6480","v":0},null,{"$f":"Import!M6502","v":0},null,{"$f":"Import!M6524","v":0},null,{"$f":"Import!M6546","v":0},null,{"$f":"Import!M6568","v":0},null,{"$f":"Import!M6590","v":0},null,{"$f":"IF(OR(Import!M6612=0,Import!M6612=\"\"),P56,Import!M6612)","v":0},null,{"$f":"IF(OR(Import!M6634=0,Import!M6634=\"\"),R56,Import!M6634)","v":0},null,null,null,0,null,null,null,0.45]
[null,33,"Infrastructure",{"$f":"Import!M6459","v":0},null,{"$f":"IF(OR(Import!M6481=0,Import!M6481=\"\"),(1-$AB57)*D57,Import!M6481)","v":0},null,{"$f":"Import!M6503","v":0},null,{"$f":"IF(OR(Import!M6525=0,Import!M6525=\"\"),(1-$AB57)*H57,Import!M6525)","v":0},null,{"$f":"Import!M6547","v":0},null,{"$f":"IF(OR(Import!M6569=0,Import!M6569=\"\"),(1-$AB57)*L57,Import!M6569)","v":0},null,{"$f":"Import!M6591","v":0},null,{"$f":"IF(OR(Import!M6613=0,Import!M6613=\"\"),P57,Import!M6613)","v":0},null,{"$f":"IF(OR(Import!M6635=0,Import!M6635=\"\"),R57,Import!M6635)","v":0},null,null,null,0,null,null,null,0.25]
[null,34,"Derivatives on Infrastructure",{"$f":"Import!M6460","v":0},null,{"$f":"Import!M6482","v":0},null,{"$f":"Import!M6504","v":0},null,{"$f":"Import!M6526","v":0},null,{"$f":"Import!M6548","v":0},null,{"$f":"Import!M6570","v":0},null,{"$f":"Import!M6592","v":0},null,{"$f":"IF(OR(Import!M6614=0,Import!M6614=\"\"),P58,Import!M6614)","v":0},null,{"$f":"IF(OR(Import!M6636=0,Import!M6636=\"\"),R58,Import!M6636)","v":0},null,null,null,0,null,null,null,0.25]
[null,35,"Equity Real Estate 1",{"$f":"Import!M6461","v":0},null,{"$f":"IF(OR(Import!M6483=0,Import!M6483=\"\"),(1-$AB59)*D59,Import!M6483)","v":0},null,{"$f":"Import!M6505","v":0},null,{"$f":"IF(OR(Import!M6527=0,Import!M6527=\"\"),(1-$AB59)*H59,Import!M6527)","v":0},null,{"$f":"Import!M6549","v":0},null,{"$f":"IF(OR(Import!M6571=0,Import!M6571=\"\"),(1-$AB59)*L59,Import!M6571)","v":0},null,{"$f":"Import!M6593","v":0},null,{"$f":"IF(OR(Import!M6615=0,Import!M6615=\"\"),P59,Import!M6615)","v":0},null,{"$f":"IF(OR(Import!M6637=0,Import!M6637=\"\"),R59,Import!M6637)","v":0},null,null,null,0,null,null,null,0.1]
[null,36,"Equity Real Estate 2",{"$f":"Import!M6462","v":0},null,{"$f":"IF(OR(Import!M6484=0,Import!M6484=\"\"),(1-$AB60)*D60,Import!M6484)","v":0},null,{"$f":"Import!M6506","v":0},null,{"$f":"IF(OR(Import!M6528=0,Import!M6528=\"\"),(1-$AB60)*H60,Import!M6528)","v":0},null,{"$f":"Import!M6550","v":0},null,{"$f":"IF(OR(Import!M6572=0,Import!M6572=\"\"),(1-$AB60)*L60,Import!M6572)","v":0},null,{"$f":"Import!M6594","v":0},null,{"$f":"IF(OR(Import!M6616=0,Import!M6616=\"\"),P60,Import!M6616)","v":0},null,{"$f":"IF(OR(Import!M6638=0,Import!M6638=\"\"),R60,Import!M6638)","v":0},null,null,null,0,null,null,null,0.2]
[]
[null,{"$f":"B60+1","v":37},"Total Equity Holdings",{"$f":"SUM(D38:D61)","v":0},null,{"$f":"SUM(F38:F61)","v":0},null,{"$f":"SUM(H38:H61)","v":0},null,{"$f":"SUM(J38:J61)","v":0},null,{"$f":"SUM(L38:L61)","v":0},null,{"$f":"SUM(N38:N61)","v":0},null,{"$f":"SUM(P38:P61)","v":0},null,{"$f":"SUM(R38:R61)","v":0},null,{"$f":"SUM(T38:T61)","v":0},null,null,null,{"$f":"SUM(X38:X61)","v":0}]
[]
[null,null,null,"Spread Up",null,null,null,null,null,null,null,null,null,"Spread Down"]
[null,null,null,"Long Exposures",null,null,null,"Short Exposures",null,null,null,"Shock (bps)",null,"Long Exposures",null,null,null,"Short Exposures",null,null,null,"Shock Rates"]
[null,null,null,"Before Shock",null,"After Shock",null,"Before Shock",null,"After Shock",null,null,null,"Before Shock",null,"Before Shock",null,"After Shock",null,"After Shock"]
[null,null,"Spread Risk for Credit Derivatives"]
[null,{"$f":"B62+1","v":38},"BSCR Rating 0",{"$f":"Import!M6639","v":0},null,{"$f":"Import!M6648","v":0},null,{"$f":"Import!M6657","v":0},null,{"$f":"Import!M6666","v":0},null,0,null,{"$f":"Import!M6675","v":0},null,{"$f":"Import!M6684","v":0},null,{"$f":"Import!M6693","v":0},null,{"$f":"Import!M6702","v":0},null,0]
[null,{"$f":"B68+1","v":39},"BSCR Rating 1",{"$f":"Import!M6640","v":0},null,{"$f":"Import!M6649","v":0},null,{"$f":"Import!M6658","v":0},null,{"$f":"Import!M6667","v":0},null,130,null,{"$f":"Import!M6676","v":0},null,{"$f":"Import!M6685","v":0},null,{"$f":"Import!M6694","v":0},null,{"$f":"Import!M6703","v":0},null,-0.75]
[null,{"$f":"B69+1","v":40},"BSCR Rating 2",{"$f":"Import!M6641","v":0},null,{"$f":"Import!M6650","v":0},null,{"$f":"Import!M6659","v":0},null,{"$f":"Import!M6668","v":0},null,150,null,{"$f":"Import!M6677","v":0},null,{"$f":"Import!M6686","v":0},null,{"$f":"Import!M6695","v":0},null,{"$f":"Import!M6704","v":0},null,-0.75]
[null,41,"BSCR Rating 3",{"$f":"Import!M6642","v":0},null,{"$f":"Import!M6651","v":0},null,{"$f":"Import!M6660","v":0},null,{"$f":"Import!M6669","v":0},null,260,null,{"$f":"Import!M6678","v":0},null,{"$f":"Import!M6687","v":0},null,{"$f":"Import!M6696","v":0},null,{"$f":"Import!M6705","v":0},null,-0.75]
[null,42,"BSCR Rating 4",{"$f":"Import!M6643","v":0},null,{"$f":"Import!M6652","v":0},null,{"$f":"Import!M6661","v":0},null,{"$f":"Import!M6670","v":0},null,450,null,{"$f":"Import!M6679","v":0},null,{"$f":"Import!M6688","v":0},null,{"$f":"Import!M6697","v":0},null,{"$f":"Import!M6706","v":0},null,-0.75]
[null,43,"BSCR Rating 5",{"$f":"Import!M6644","v":0},null,{"$f":"Import!M6653","v":0},null,{"$f":"Import!M6662","v":0},null,{"$f":"Import!M6671","v":0},null,840,null,{"$f":"Import!M6680","v":0},null,{"$f":"Import!M6689","v":0},null,{"$f":"Import!M6698","v":0},null,{"$f":"Import!M6707","v":0},null,-0.75]
[null,44,"BSCR Rating 6",{"$f":"Import!M6645","v":0},null,{"$f":"Import!M6654","v":0},null,{"$f":"Import!M6663","v":0},null,{"$f":"Import!M6672","v":0},null,1620,null,{"$f":"Import!M6681","v":0},null,{"$f":"Import!M6690","v":0},null,{"$f":"Import!M6699","v":0},null,{"$f":"Import!M6708","v":0},null,-0.75]
[null,45,"BSCR Rating 7",{"$f":"Import!M6646","v":0},null,{"$f":"Import!M6655","v":0},null,{"$f":"Import!M6664","v":0},null,{"$f":"Import!M6673","v":0},null,1620,null,{"$f":"Import!M6682","v":0},null,{"$f":"Import!M6691","v":0},null,{"$f":"Import!M6700","v":0},null,{"$f":"Import!M6709","v":0},null,-0.75]
[null,46,"BSCR Rating 8",{"$f":"Import!M6647","v":0},null,{"$f":"Import!M6656","v":0},null,{"$f":"Import!M6665","v":0},null,{"$f":"Import!M6674","v":0},null,1620,null,{"$f":"Import!M6683","v":0},null,{"$f":"Import!M6692","v":0},null,{"$f":"Import!M6701","v":0},null,{"$f":"Import!M6710","v":0},null,-0.75]
[null,47,"Total Spread ",{"$f":"SUM(D67:D76)","v":0},null,{"$f":"SUM(F67:F76)","v":0},null,{"$f":"SUM(H67:H76)","v":0},null,{"$f":"SUM(J67:J76)","v":0},null,null,null,{"$f":"SUM(N67:N76)","v":0},null,{"$f":"SUM(P67:P76)","v":0},null,{"$f":"SUM(R67:R76)","v":0},null,{"$f":"SUM(T67:T76)","v":0}]
[]
[null,null,"Spread Risk Check",null,null,null,null,null,null,null,null,null,null,{"$f":"IF(ROUND(D77-N77,0)=0,\"Yes\",\"No\")","v":"Yes"},null,null,null,{"$f":"IF(ROUND(H77-R77,0)=0,\"Yes\",\"No\")","v":"Yes"}]
[null,null,"Difference",null,null,null,null,null,null,null,null,null,null,{"$f":"ROUND(D77-N77,0)","v":0},null,null,null,{"$f":"ROUND(H77-R77,0)","v":0}]
[]
[null,null,null,"Market Value of Derivatives with Positive Market Value",null,"Market Value of Derivatives with Negative Market Value",null,"Market Value of Collateral, Excluding any over-collateralization",null,null,null,"This Section is Only Applicable to Companies that have Mortgage Backed Securities that have been Reclassified in Accordance with the NAIC and that elect to use NAIC reclassifications to map to the BSCR classes"]
[null,null,"Counterparty Default Risk for OTC Derivatives",null,null,null,null,null,null,null,null,null,"VALUES OF RESIDENTIAL MORTGAGE BACKED SECURITIES",null,null,null,"VALUES OF COMMERCIAL MORTGAGE BACKED SECURITIES / ASSET BACKED SECURITIES"]
[null,{"$f":"B77+1","v":48},"BSCR Rating 0",{"$f":"Import!M6711","v":0},null,{"$f":"Import!M6720","v":0},null,{"$f":"Import!M6729","v":0},null,null,null,null,null,"Original Classification",null,"Revised Classification",null,"Original Classification",null,"Revised Classification"]
[null,{"$f":"B84+1","v":49},"BSCR Rating 1",{"$f":"Import!M6712","v":0},null,{"$f":"Import!M6721","v":0},null,{"$f":"Import!M6730","v":0}]
[null,{"$f":"B85+1","v":50},"BSCR Rating 2",{"$f":"Import!M6713","v":0},null,{"$f":"Import!M6722","v":0},null,{"$f":"Import!M6731","v":0},null,null,null,"NAIC Class 1",null,{"$f":"Import!M6739","v":0},null,{"$f":"Import!M6746","v":0},null,{"$f":"Import!M6753","v":0},null,{"$f":"Import!M6760","v":0}]
[null,51,"BSCR Rating 3",{"$f":"Import!M6714","v":0},null,{"$f":"Import!M6723","v":0},null,{"$f":"Import!M6732","v":0},null,null,null,"NAIC Class 2",null,{"$f":"Import!M6740","v":0},null,{"$f":"Import!M6747","v":0},null,{"$f":"Import!M6754","v":0},null,{"$f":"Import!M6761","v":0}]
[null,52,"BSCR Rating 4",{"$f":"Import!M6715","v":0},null,{"$f":"Import!M6724","v":0},null,{"$f":"Import!M6733","v":0},null,null,null,"NAIC Class 3",null,{"$f":"Import!M6741","v":0},null,{"$f":"Import!M6748","v":0},null,{"$f":"Import!M6755","v":0},null,{"$f":"Import!M6762","v":0}]
[null,53,"BSCR Rating 5",{"$f":"Import!M6716","v":0},null,{"$f":"Import!M6725","v":0},null,{"$f":"Import!M6734","v":0},null,null,null,"NAIC Class 4",null,{"$f":"Import!M6742","v":0},null,{"$f":"Import!M6749","v":0},null,{"$f":"Import!M6756","v":0},null,{"$f":"Import!M6763","v":0}]
[null,54,"BSCR Rating 6",{"$f":"Import!M6717","v":0},null,{"$f":"Import!M6726","v":0},null,{"$f":"Import!M6735","v":0},null,null,null,"NAIC Class 5",null,{"$f":"Import!M6743","v":0},null,{"$f":"Import!M6750","v":0},null,{"$f":"Import!M6757","v":0},null,{"$f":"Import!M6764","v":0}]
[null,55,"BSCR Rating 7",{"$f":"Import!M6718","v":0},null,{"$f":"Import!M6727","v":0},null,{"$f":"Import!M6736","v":0},null,null,null,"NAIC Class 6",null,{"$f":"Import!M6744","v":0},null,{"$f":"Import!M6751","v":0},null,{"$f":"Import!M6758","v":0},null,{"$f":"Import!M6765","v":0}]
[null,56,"BSCR Rating 8",{"$f":"Import!M6719","v":0},null,{"$f":"Import!M6728","v":0},null,{"$f":"Import!M6737","v":0},null,null,null,{"$f":"IF('Insurer Information'!E32=\"Class C\",HYPERLINK(\"#'Attachments'!G45\",\"Attach file\"),HYPERLINK(\"#'Attachments'!G65\",\"Attach file\"))","v":"Attach file"},null,{"$f":"SUM(N86:N91)","v":0},null,{"$f":"SUM(P86:P91)","v":0},null,{"$f":"SUM(R86:R91)","v":0},null,{"$f":"SUM(T86:T91)","v":0}]
[null,57,"Total Default Risk for OTC Derivatives ",{"$f":"SUM(D83:D92)","v":0},null,{"$f":"SUM(F83:F92)","v":0},null,{"$f":"SUM(H83:H92)","v":0},null,null,null,null,null,null,{"$f":"SUM(N86:N91)","v":0},null,{"$f":"SUM(P86:P91)","v":0},null,{"$f":"SUM(R86:R91)","v":0}]
[]
[null,{"$f":"B93+1","v":58},"Cash and Cash Equivalents",{"$f":"Import!M6738","v":0}]
[]
[null,{"$f":"B95+1","v":59},"Total Fixed Income & Equity Investments",{"$f":"X27+X62+D77+H77+D93+F93+H93+D95","v":0}]
[]
[]
[]
[]
[]
[]
[]
[null,null,null,{"$f":"IF(D9=\"\",\"\",TEXT(DATE(YEAR(D9+1)-1,MONTH(D9+1),DAY(D9+1)),\"mm/dd/yyyy\"))","v":"01/01/2019"},null,{"$f":"IF(F9=\"\",\"\",TEXT(DATE(YEAR(F9+1)-1,MONTH(F9+1),DAY(F9+1)),\"mm/dd/yyyy\"))","v":"01/01/2018"}]
[null,null,null,{"$f":"IF(D9=\"\",\"\",TEXT(D9,\"mm/dd/yyyy\"))","v":"12/31/2019"},null,{"$f":"IF(F9=\"\",\"\",TEXT(F9,\"mm/dd/yyyy\"))","v":"12/31/2018"}]
[null,null,null,"brrt_BondsAndDebentures",null,"brrt_BondsAndDebentures",null,"brrt_BondsAndDebentures",null,"brrt_BondsAndDebentures",null,"brrt_BondsAndDebentures",null,"brrt_BondsAndDebentures",null,"brrt_BondsAndDebentures",null,"brrt_BondsAndDebentures",null,null,null,null,null,"brrt_BondsAndDebentures",null,"brrt_BondsAndDebentures"]
[null,null,null,"brrt_SecurityTypeAxis_brrt_CorporateSovereignBondsMember",null,"brrt_SecurityTypeAxis_brrt_CorporateSovereignBondsMember",null,"brrt_SecurityTypeAxis_brrt_ResidentialMortgageBackedSecuritiesMember",null,"brrt_SecurityTypeAxis_brrt_ResidentialMortgageBackedSecuritiesMember",null,"brrt_SecurityTypeAxis_brrt_CommercialMortgageBackedSecuritiesAssetBackedSecuritiesMember",null,"brrt_SecurityTypeAxis_brrt_CommercialMortgageBackedSecuritiesAssetBackedSecuritiesMember",null,"brrt_SecurityTypeAxis_brrt_MutualFundsMember",null,"brrt_SecurityTypeAxis_brrt_MutualFundsMember",null,null,null,null,null,"brrt_SecurityTypeAxis_brrt_TotalMember",null,"brrt_SecurityTypeAxis_brrt_TotalMember"]
[null,null,null,{"$f":"XBRLMap(D13,D$107&\".\"&$AE13&\".\"&$D$108,$D$105,$D$106,CONFIGURATION!$B$10,\"BMA\",CONFIGURATION!$B$1,\"bscr\",CONFIGURATION!$B$12)","v":"Mapped"},null,{"$f":"XBRLMap(F13,F$107&\".\"&$AE13&\".\"&$F$108,$F$105,$F$106,CONFIGURATION!$B$10,\"BMA\",CONFIGURATION!$B$1,\"bscr\",CONFIGURATION!$B$12)","v":"Mapped"},null,null,null,null,null,null,null,null,null,{"$f":"XBRLMap(P13,P$107&\".\"&$AE13&\".\"&$P$108,$D$105,$D$106,CONFIGURATION!$B$10,\"BMA\",CONFIGURATION!$B$1,\"bscr\",CONFIGURATION!$B$12)","v":"Mapped"},null,{"$f":"XBRLMap(R13,R$107&\".\"&$AE13&\".\"&$R$108,$F$105,$F$106,CONFIGURATION!$B$10,\"BMA\",CONFIGURATION!$B$1,\"bscr\",CONFIGURATION!$B$12)","v":"Mapped"},null,null,null,null,null,{"$f":"XBRLMap(X13,X$107&\".\"&$AE13&\".\"&$X$108,$D$105,$D$106,CONFIGURATION!$B$10,\"BMA\",CONFIGURATION!$B$1,\"bscr\",CONFIGURATION!$B$12)","v":"Mapped"},null,{"$f":"XBRLMap(Z13,Z$107&\".\"&$AE13&\".\"&$Z$108,$F$105,$F$106,CONFIGURATION!$B$10,\"BMA\",CONFIGURATION!$B$1,\"bscr\",CONFIGURATION!$B$12)","v":"Mapped"}]
[null,null,null,{"$f":"XBRLMap(D14,D$107&\".\"&$AE14&\".\"&$D$108,$D$105,$D$106,CONFIGURATION!$B$10,\"BMA\",CONFIGURATION!$B$1,\"bscr\",CONFIGURATION!$B$12)","v":"Mapped"},null,{"$f":"XBRLMap(F14,F$107&\".\"&$AE14&\".\"&$F$108,$F$105,$F$106,CONFIGURATION!$B$10,\"BMA\",CONFIGURATION!$B$1,\"bscr\",CONFIGURATION!$B$12)","v":"Mapped"},null,{"$f":"XBRLMap(H14,H$107&\".\"&$AE14&\".\"&$H$108,$D$105,$D$106,CONFIGURATION!$B$10,\"BMA\",CONFIGURATION!$B$1,\"bscr\",CONFIGURATION!$B$12)","v":"Mapped"},null,{"$f":"XBRLMap(J14,J$107&\".\"&$AE14&\".\"&$J$108,$F$105,$F$106,CONFIGURATION!$B$10,\"BMA\",CONFIGURATION!$B$1,\"bscr\",CONFIGURATION!$B$12)","v":"Mapped"},null,{"$f":"XBRLMap(L14,L$107&\".\"&$AE14&\".\"&$L$108,$D$105,$D$106,CONFIGURATION!$B$10,\"BMA\",CONFIGURATION!$B$1,\"bscr\",CONFIGURATION!$B$12)","v":"Mapped"},null,{"$f":"XBRLMap(N14,N$107&\".\"&$AE14&\".\"&$N$108,$F$105,$F$106,CONFIGURATION!$B$10,\"BMA\",CONFIGURATION!$B$1,\"bscr\",CONFIGURATION!$B$12)","v":"Mapped"},null,{"$f":"XBRLMap(P14,P$107&\".\"&$AE14&\".\"&$P$108,$D$105,$D$106,CONFIGURATION!$B$10,\"BMA\",CONFIGURATION!$B$1,\"bscr\",CONFIGURATION!$B$12)","v":"Mapped"},null,{"$f":"XBRLMap(R14,R$107&\".\"&$AE14&\".\"&$R$108,$F$105,$F$106,CONFIGURATION!$B$10,\"BMA\",CONFIGURATION!$B$1,\"bscr\",CONFIGURATION!$B$12)","v":"Mapped"},null,null,null,null,null,{"$f":"XBRLMap(X14,X$107&\".\"&$AE14&\".\"&$X$108,$D$105,$D$106,CONFIGURATION!$B$10,\"BMA\",CONFIGURATION!$B$1,\"bscr\",CONFIGURATION!$B$12)","v":"Mapped"},null,{"$f":"XBRLMap(Z14,Z$107&\".\"&$AE14&\".\"&$Z$108,$F$105,$F$106,CONFIGURATION!$B$10,\"BMA\",CONFIGURATION!$B$1,\"bscr\",CONFIGURATION!$B$12)","v":"Mapped"}]
[null,null,null,{"$f":"XBRLMap(D15,D$107&\".\"&$AE15&\".\"&$D$108,$D$105,$D$106,CONFIGURATION!$B$10,\"BMA\",CONFIGURATION!$B$1,\"bscr\",CONFIGURATION!$B$12)","v":"Mapped"},null,{"$f":"XBRLMap(F15,F$107&\".\"&$AE15&\".\"&$F$108,$F$105,$F$106,CONFIGURATION!$B$10,\"BMA\",CONFIGURATION!$B$1,\"bscr\",CONFIGURATION!$B$12)","v":"Mapped"},null,{"$f":"XBRLMap(H15,H$107&\".\"&$AE15&\".\"&$H$108,$D$105,$D$106,CONFIGURATION!$B$10,\"BMA\",CONFIGURATION!$B$1,\"bscr\",CONFIGURATION!$B$12)","v":"Mapped"},null,{"$f":"XBRLMap(J15,J$107&\".\"&$AE15&\".\"&$J$108,$F$105,$F$106,CONFIGURATION!$B$10,\"BMA\",CONFIGURATION!$B$1,\"bscr\",CONFIGURATION!$B$12)","v":"Mapped"},null,{"$f":"XBRLMap(L15,L$107&\".\"&$AE15&\".\"&$L$108,$D$105,$D$106,CONFIGURATION!$B$10,\"BMA\",CONFIGURATION!$B$1,\"bscr\",CONFIGURATION!$B$12)","v":"Mapped"},null,{"$f":"XBRLMap(N15,N$107&\".\"&$AE15&\".\"&$N$108,$F$105,$F$106,CONFIGURATION!$B$10,\"BMA\",CONFIGURATION!$B$1,\"bscr\",CONFIGURATION!$B$12)","v":"Mapped"},null,{"$f":"XBRLMap(P15,P$107&\".\"&$AE15&\".\"&$P$108,$D$105,$D$106,CONFIGURATION!$B$10,\"BMA\",CONFIGURATION!$B$1,\"bscr\",CONFIGURATION!$B$12)","v":"Mapped"},null,{"$f":"XBRLMap(R15,R$107&\".\"&$AE15&\".\"&$R$108,$F$105,$F$106,CONFIGURATION!$B$10,\"BMA\",CONFIGURATION!$B$1,\"bscr\",CONFIGURATION!$B$12)","v":"Mapped"},null,null,null,null,null,{"$f":"XBRLMap(X15,X$107&\".\"&$AE15&\".\"&$X$108,$D$105,$D$106,CONFIGURATION!$B$10,\"BMA\",CONFIGURATION!$B$1,\"bscr\",CONFIGURATION!$B$12)","v":"Mapped"},null,{"$f":"XBRLMap(Z15,Z$107&\".\"&$AE15&\".\"&$Z$108,$F$105,$F$106,CONFIGURATION!$B$10,\"BMA\",CONFIGURATION!$B$1,\"bscr\",CONFIGURATION!$B$12)","v":"Mapped"}]
[null,null,null,{"$f":"XBRLMap(D16,D$107&\".\"&$AE16&\".\"&$D$108,$D$105,$D$106,CONFIGURATION!$B$10,\"BMA\",CONFIGURATION!$B$1,\"bscr\",CONFIGURATION!$B$12)","v":"Mapped"},null,{"$f":"XBRLMap(F16,F$107&\".\"&$AE16&\".\"&$F$108,$F$105,$F$106,CONFIGURATION!$B$10,\"BMA\",CONFIGURATION!$B$1,\"bscr\",CONFIGURATION!$B$12)","v":"Mapped"},null,{"$f":"XBRLMap(H16,H$107&\".\"&$AE16&\".\"&$H$108,$D$105,$D$106,CONFIGURATION!$B$10,\"BMA\",CONFIGURATION!$B$1,\"bscr\",CONFIGURATION!$B$12)","v":"Mapped"},null,{"$f":"XBRLMap(J16,J$107&\".\"&$AE16&\".\"&$J$108,$F$105,$F$106,CONFIGURATION!$B$10,\"BMA\",CONFIGURATION!$B$1,\"bscr\",CONFIGURATION!$B$12)","v":"Mapped"},null,{"$f":"XBRLMap(L16,L$107&\".\"&$AE16&\".\"&$L$108,$D$105,$D$106,CONFIGURATION!$B$10,\"BMA\",CONFIGURATION!$B$1,\"bscr\",CONFIGURATION!$B$12)","v":"Mapped"},null,{"$f":"XBRLMap(N16,N$107&\".\"&$AE16&\".\"&$N$108,$F$105,$F$106,CONFIGURATION!$B$10,\"BMA\",CONFIGURATION!$B$1,\"bscr\",CONFIGURATION!$B$12)","v":"Mapped"},null,{"$f":"XBRLMap(P16,P$107&\".\"&$AE16&\".\"&$P$108,$D$105,$D$106,CONFIGURATION!$B$10,\"BMA\",CONFIGURATION!$B$1,\"bscr\",CONFIGURATION!$B$12)","v":"Mapped"},null,{"$f":"XBRLMap(R16,R$107&\".\"&$AE16&\".\"&$R$108,$F$105,$F$106,CONFIGURATION!$B$10,\"BMA\",CONFIGURATION!$B$1,\"bscr\",CONFIGURATION!$B$12)","v":"Mapped"},null,null,null,null,null,{"$f":"XBRLMap(X16,X$107&\".\"&$AE16&\".\"&$X$108,$D$105,$D$106,CONFIGURATION!$B$10,\"BMA\",CONFIGURATION!$B$1,\"bscr\",CONFIGURATION!$B$12)","v":"Mapped"},null,{"$f":"XBRLMap(Z16,Z$107&\".\"&$AE16&\".\"&$Z$108,$F$105,$F$106,CONFIGURATION!$B$10,\"BMA\",CONFIGURATION!$B$1,\"bscr\",CONFIGURATION!$B$12)","v":"Mapped"}]
[null,null,null,{"$f":"XBRLMap(D17,D$107&\".\"&$AE17&\".\"&$D$108,$D$105,$D$106,CONFIGURATION!$B$10,\"BMA\",CONFIGURATION!$B$1,\"bscr\",CONFIGURATION!$B$12)","v":"Mapped"},null,{"$f":"XBRLMap(F17,F$107&\".\"&$AE17&\".\"&$F$108,$F$105,$F$106,CONFIGURATION!$B$10,\"BMA\",CONFIGURATION!$B$1,\"bscr\",CONFIGURATION!$B$12)","v":"Mapped"},null,{"$f":"XBRLMap(H17,H$107&\".\"&$AE17&\".\"&$H$108,$D$105,$D$106,CONFIGURATION!$B$10,\"BMA\",CONFIGURATION!$B$1,\"bscr\",CONFIGURATION!$B$12)","v":"Mapped"},null,{"$f":"XBRLMap(J17,J$107&\".\"&$AE17&\".\"&$J$108,$F$105,$F$106,CONFIGURATION!$B$10,\"BMA\",CONFIGURATION!$B$1,\"bscr\",CONFIGURATION!$B$12)","v":"Mapped"},null,{"$f":"XBRLMap(L17,L$107&\".\"&$AE17&\".\"&$L$108,$D$105,$D$106,CONFIGURATION!$B$10,\"BMA\",CONFIGURATION!$B$1,\"bscr\",CONFIGURATION!$B$12)","v":"Mapped"},null,{"$f":"XBRLMap(N17,N$107&\".\"&$AE17&\".\"&$N$108,$F$105,$F$106,CONFIGURATION!$B$10,\"BMA\",CONFIGURATION!$B$1,\"bscr\",CONFIGURATION!$B$12)","v":"Mapped"},null,{"$f":"XBRLMap(P17,P$107&\".\"&$AE17&\".\"&$P$108,$D$105,$D$106,CONFIGURATION!$B$10,\"BMA\",CONFIGURATION!$B$1,\"bscr\",CONFIGURATION!$B$12)","v":"Mapped"},null,{"$f":"XBRLMap(R17,R$107&\".\"&$AE17&\".\"&$R$108,$F$105,$F$106,CONFIGURATION!$B$10,\"BMA\",CONFIGURATION!$B$1,\"bscr\",CONFIGURATION!$B$12)","v":"Mapped"},null,null,null,null,null,{"$f":"XBRLMap(X17,X$107&\".\"&$AE17&\".\"&$X$108,$D$105,$D$106,CONFIGURATION!$B$10,\"BMA\",CONFIGURATION!$B$1,\"bscr\",CONFIGURATION!$B$12)","v":"Mapped"},null,{"$f":"XBRLMap(Z17,Z$107&\".\"&$AE17&\".\"&$Z$108,$F$105,$F$106,CONFIGURATION!$B$10,\"BMA\",CONFIGURATION!$B$1,\"bscr\",CONFIGURATION!$B$12)","v":"Mapped"}]
[null,null,null,{"$f":"XBRLMap(D18,D$107&\".\"&$AE18&\".\"&$D$108,$D$105,$D$106,CONFIGURATION!$B$10,\"BMA\",CONFIGURATION!$B$1,\"bscr\",CONFIGURATION!$B$12)","v":"Mapped"},null,{"$f":"XBRLMap(F18,F$107&\".\"&$AE18&\".\"&$F$108,$F$105,$F$106,CONFIGURATION!$B$10,\"BMA\",CONFIGURATION!$B$1,\"bscr\",CONFIGURATION!$B$12)","v":"Mapped"},null,{"$f":"XBRLMap(H18,H$107&\".\"&$AE18&\".\"&$H$108,$D$105,$D$106,CONFIGURATION!$B$10,\"BMA\",CONFIGURATION!$B$1,\"bscr\",CONFIGURATION!$B$12)","v":"Mapped"},null,{"$f":"XBRLMap(J18,J$107&\".\"&$AE18&\".\"&$J$108,$F$105,$F$106,CONFIGURATION!$B$10,\"BMA\",CONFIGURATION!$B$1,\"bscr\",CONFIGURATION!$B$12)","v":"Mapped"},null,{"$f":"XBRLMap(L18,L$107&\".\"&$AE18&\".\"&$L$108,$D$105,$D$106,CONFIGURATION!$B$10,\"BMA\",CONFIGURATION!$B$1,\"bscr\",CONFIGURATION!$B$12)","v":"Mapped"},null,{"$f":"XBRLMap(N18,N$107&\".\"&$AE18&\".\"&$N$108,$F$105,$F$106,CONFIGURATION!$B$10,\"BMA\",CONFIGURATION!$B$1,\"bscr\",CONFIGURATION!$B$12)","v":"Mapped"},null,{"$f":"XBRLMap(P18,P$107&\".\"&$AE18&\".\"&$P$108,$D$105,$D$106,CONFIGURATION!$B$10,\"BMA\",CONFIGURATION!$B$1,\"bscr\",CONFIGURATION!$B$12)","v":"Mapped"},null,{"$f":"XBRLMap(R18,R$107&\".\"&$AE18&\".\"&$R$108,$F$105,$F$106,CONFIGURATION!$B$10,\"BMA\",CONFIGURATION!$B$1,\"bscr\",CONFIGURATION!$B$12)","v":"Mapped"},null,null,null,null,null,{"$f":"XBRLMap(X18,X$107&\".\"&$AE18&\".\"&$X$108,$D$105,$D$106,CONFIGURATION!$B$10,\"BMA\",CONFIGURATION!$B$1,\"bscr\",CONFIGURATION!$B$12)","v":"Mapped"},null,{"$f":"XBRLMap(Z18,Z$107&\".\"&$AE18&\".\"&$Z$108,$F$105,$F$106,CONFIGURATION!$B$10,\"BMA\",CONFIGURATION!$B$1,\"bscr\",CONFIGURATION!$B$12)","v":"Mapped"}]
[null,null,null,{"$f":"XBRLMap(D19,D$107&\".\"&$AE19&\".\"&$D$108,$D$105,$D$106,CONFIGURATION!$B$10,\"BMA\",CONFIGURATION!$B$1,\"bscr\",CONFIGURATION!$B$12)","v":"Mapped"},null,{"$f":"XBRLMap(F19,F$107&\".\"&$AE19&\".\"&$F$108,$F$105,$F$106,CONFIGURATION!$B$10,\"BMA\",CONFIGURATION!$B$1,\"bscr\",CONFIGURATION!$B$12)","v":"Mapped"},null,{"$f":"XBRLMap(H19,H$107&\".\"&$AE19&\".\"&$H$108,$D$105,$D$106,CONFIGURATION!$B$10,\"BMA\",CONFIGURATION!$B$1,\"bscr\",CONFIGURATION!$B$12)","v":"Mapped"},null,{"$f":"XBRLMap(J19,J$107&\".\"&$AE19&\".\"&$J$108,$F$105,$F$106,CONFIGURATION!$B$10,\"BMA\",CONFIGURATION!$B$1,\"bscr\",CONFIGURATION!$B$12)","v":"Mapped"},null,{"$f":"XBRLMap(L19,L$107&\".\"&$AE19&\".\"&$L$108,$D$105,$D$106,CONFIGURATION!$B$10,\"BMA\",CONFIGURATION!$B$1,\"bscr\",CONFIGURATION!$B$12)","v":"Mapped"},null,{"$f":"XBRLMap(N19,N$107&\".\"&$AE19&\".\"&$N$108,$F$105,$F$106,CONFIGURATION!$B$10,\"BMA\",CONFIGURATION!$B$1,\"bscr\",CONFIGURATION!$B$12)","v":"Mapped"},null,{"$f":"XBRLMap(P19,P$107&\".\"&$AE19&\".\"&$P$108,$D$105,$D$106,CONFIGURATION!$B$10,\"BMA\",CONFIGURATION!$B$1,\"bscr\",CONFIGURATION!$B$12)","v":"Mapped"},null,{"$f":"XBRLMap(R19,R$107&\".\"&$AE19&\".\"&$R$108,$F$105,$F$106,CONFIGURATION!$B$10,\"BMA\",CONFIGURATION!$B$1,\"bscr\",CONFIGURATION!$B$12)","v":"Mapped"},null,null,null,null,null,{"$f":"XBRLMap(X19,X$107&\".\"&$AE19&\".\"&$X$108,$D$105,$D$106,CONFIGURATION!$B$10,\"BMA\",CONFIGURATION!$B$1,\"bscr\",CONFIGURATION!$B$12)","v":"Mapped"},null,{"$f":"XBRLMap(Z19,Z$107&\".\"&$AE19&\".\"&$Z$108,$F$105,$F$106,CONFIGURATION!$B$10,\"BMA\",CONFIGURATION!$B$1,\"bscr\",CONFIGURATION!$B$12)","v":"Mapped"}]
[null,null,null,{"$f":"XBRLMap(D20,D$107&\".\"&$AE20&\".\"&$D$108,$D$105,$D$106,CONFIGURATION!$B$10,\"BMA\",CONFIGURATION!$B$1,\"bscr\",CONFIGURATION!$B$12)","v":"Mapped"},null,{"$f":"XBRLMap(F20,F$107&\".\"&$AE20&\".\"&$F$108,$F$105,$F$106,CONFIGURATION!$B$10,\"BMA\",CONFIGURATION!$B$1,\"bscr\",CONFIGURATION!$B$12)","v":"Mapped"},null,{"$f":"XBRLMap(H20,H$107&\".\"&$AE20&\".\"&$H$108,$D$105,$D$106,CONFIGURATION!$B$10,\"BMA\",CONFIGURATION!$B$1,\"bscr\",CONFIGURATION!$B$12)","v":"Mapped"},null,{"$f":"XBRLMap(J20,J$107&\".\"&$AE20&\".\"&$J$108,$F$105,$F$106,CONFIGURATION!$B$10,\"BMA\",CONFIGURATION!$B$1,\"bscr\",CONFIGURATION!$B$12)","v":"Mapped"},null,{"$f":"XBRLMap(L20,L$107&\".\"&$AE20&\".\"&$L$108,$D$105,$D$106,CONFIGURATION!$B$10,\"BMA\",CONFIGURATION!$B$1,\"bscr\",CONFIGURATION!$B$12)","v":"Mapped"},null,{"$f":"XBRLMap(N20,N$107&\".\"&$AE20&\".\"&$N$108,$F$105,$F$106,CONFIGURATION!$B$10,\"BMA\",CONFIGURATION!$B$1,\"bscr\",CONFIGURATION!$B$12)","v":"Mapped"},null,{"$f":"XBRLMap(P20,P$107&\".\"&$AE20&\".\"&$P$108,$D$105,$D$106,CONFIGURATION!$B$10,\"BMA\",CONFIGURATION!$B$1,\"bscr\",CONFIGURATION!$B$12)","v":"Mapped"},null,{"$f":"XBRLMap(R20,R$107&\".\"&$AE20&\".\"&$R$108,$F$105,$F$106,CONFIGURATION!$B$10,\"BMA\",CONFIGURATION!$B$1,\"bscr\",CONFIGURATION!$B$12)","v":"Mapped"},null,null,null,null,null,{"$f":"XBRLMap(X20,X$107&\".\"&$AE20&\".\"&$X$108,$D$105,$D$106,CONFIGURATION!$B$10,\"BMA\",CONFIGURATION!$B$1,\"bscr\",CONFIGURATION!$B$12)","v":"Mapped"},null,{"$f":"XBRLMap(Z20,Z$107&\".\"&$AE20&\".\"&$Z$108,$F$105,$F$106,CONFIGURATION!$B$10,\"BMA\",CONFIGURATION!$B$1,\"bscr\",CONFIGURATION!$B$12)","v":"Mapped"}]
[null,null,null,{"$f":"XBRLMap(D21,D$107&\".\"&$AE21&\".\"&$D$108,$D$105,$D$106,CONFIGURATION!$B$10,\"BMA\",CONFIGURATION!$B$1,\"bscr\",CONFIGURATION!$B$12)","v":"Mapped"},null,{"$f":"XBRLMap(F21,F$107&\".\"&$AE21&\".\"&$F$108,$F$105,$F$106,CONFIGURATION!$B$10,\"BMA\",CONFIGURATION!$B$1,\"bscr\",CONFIGURATION!$B$12)","v":"Mapped"},null,{"$f":"XBRLMap(H21,H$107&\".\"&$AE21&\".\"&$H$108,$D$105,$D$106,CONFIGURATION!$B$10,\"BMA\",CONFIGURATION!$B$1,\"bscr\",CONFIGURATION!$B$12)","v":"Mapped"},null,{"$f":"XBRLMap(J21,J$107&\".\"&$AE21&\".\"&$J$108,$F$105,$F$106,CONFIGURATION!$B$10,\"BMA\",CONFIGURATION!$B$1,\"bscr\",CONFIGURATION!$B$12)","v":"Mapped"},null,{"$f":"XBRLMap(L21,L$107&\".\"&$AE21&\".\"&$L$108,$D$105,$D$106,CONFIGURATION!$B$10,\"BMA\",CONFIGURATION!$B$1,\"bscr\",CONFIGURATION!$B$12)","v":"Mapped"},null,{"$f":"XBRLMap(N21,N$107&\".\"&$AE21&\".\"&$N$108,$F$105,$F$106,CONFIGURATION!$B$10,\"BMA\",CONFIGURATION!$B$1,\"bscr\",CONFIGURATION!$B$12)","v":"Mapped"},null,{"$f":"XBRLMap(P21,P$107&\".\"&$AE21&\".\"&$P$108,$D$105,$D$106,CONFIGURATION!$B$10,\"BMA\",CONFIGURATION!$B$1,\"bscr\",CONFIGURATION!$B$12)","v":"Mapped"},null,{"$f":"XBRLMap(R21,R$107&\".\"&$AE21&\".\"&$R$108,$F$105,$F$106,CONFIGURATION!$B$10,\"BMA\",CONFIGURATION!$B$1,\"bscr\",CONFIGURATION!$B$12)","v":"Mapped"},null,null,null,null,null,{"$f":"XBRLMap(X21,X$107&\".\"&$AE21&\".\"&$X$108,$D$105,$D$106,CONFIGURATION!$B$10,\"BMA\",CONFIGURATION!$B$1,\"bscr\",CONFIGURATION!$B$12)","v":"Mapped"},null,{"$f":"XBRLMap(Z21,Z$107&\".\"&$AE21&\".\"&$Z$108,$F$105,$F$106,CONFIGURATION!$B$10,\"BMA\",CONFIGURATION!$B$1,\"bscr\",CONFIGURATION!$B$12)","v":"Mapped"}]
[]
[null,null,null,{"$f":"XBRLMap(D27,D$107&\".\"&$AE27&\".\"&$D$108,$D$105,$D$106,CONFIGURATION!$B$10,\"BMA\",CONFIGURATION!$B$1,\"bscr\",CONFIGURATION!$B$12)","v":"Mapped"},null,{"$f":"XBRLMap(F27,F$107&\".\"&$AE27&\".\"&$F$108,$F$105,$F$106,CONFIGURATION!$B$10,\"BMA\",CONFIGURATION!$B$1,\"bscr\",CONFIGURATION!$B$12)","v":"Mapped"},null,{"$f":"XBRLMap(H27,H$107&\".\"&$AE27&\".\"&$H$108,$D$105,$D$106,CONFIGURATION!$B$10,\"BMA\",CONFIGURATION!$B$1,\"bscr\",CONFIGURATION!$B$12)","v":"Mapped"},null,{"$f":"XBRLMap(J27,J$107&\".\"&$AE27&\".\"&$J$108,$F$105,$F$106,CONFIGURATION!$B$10,\"BMA\",CONFIGURATION!$B$1,\"bscr\",CONFIGURATION!$B$12)","v":"Mapped"},null,{"$f":"XBRLMap(L27,L$107&\".\"&$AE27&\".\"&$L$108,$D$105,$D$106,CONFIGURATION!$B$10,\"BMA\",CONFIGURATION!$B$1,\"bscr\",CONFIGURATION!$B$12)","v":"Mapped"},null,{"$f":"XBRLMap(N27,N$107&\".\"&$AE27&\".\"&$N$108,$F$105,$F$106,CONFIGURATION!$B$10,\"BMA\",CONFIGURATION!$B$1,\"bscr\",CONFIGURATION!$B$12)","v":"Mapped"},null,{"$f":"XBRLMap(P27,P$107&\".\"&$AE27&\".\"&$P$108,$D$105,$D$106,CONFIGURATION!$B$10,\"BMA\",CONFIGURATION!$B$1,\"bscr\",CONFIGURATION!$B$12)","v":"Mapped"},null,{"$f":"XBRLMap(R27,R$107&\".\"&$AE27&\".\"&$R$108,$F$105,$F$106,CONFIGURATION!$B$10,\"BMA\",CONFIGURATION!$B$1,\"bscr\",CONFIGURATION!$B$12)","v":"Mapped"},null,null,null,null,null,{"$f":"XBRLMap(X27,X$107&\".\"&$AE27&\".\"&$X$108,$D$105,$D$106,CONFIGURATION!$B$10,\"BMA\",CONFIGURATION!$B$1,\"bscr\",CONFIGURATION!$B$12)","v":"Mapped"},null,{"$f":"XBRLMap(Z27,Z$107&\".\"&$AE27&\".\"&$Z$108,$F$105,$F$106,CONFIGURATION!$B$10,\"BMA\",CONFIGURATION!$B$1,\"bscr\",CONFIGURATION!$B$12)","v":"Mapped"}]
[null,null,null,null,null,null,null,null,null,null,null,null,null,null,null,null,null,null,null,null,null,null,null,"brrt_QuotedInvestmentsEquitiesCommonStocksMutualFunds",null,"brrt_QuotedInvestmentsEquitiesCommonStocksMutualFunds"]
[null,null,null,null,null,null,null,null,null,null,null,null,null,null,null,null,null,null,null,null,null,null,null,"brrt_UnquotedInvestmentsEquitiesCommonStocksMutualFunds",null,"brrt_UnquotedInvestmentsEquitiesCommonStocksMutualFunds"]
[null,null,null,"brrt_EquitiesCommonStocks",null,"brrt_EquitiesCommonStocks",null,"brrt_EquitiesPreferredStocks",null,"brrt_EquitiesPreferredStocks",null,"brrt_EquitiesMutualFunds",null,"brrt_EquitiesMutualFunds",null,null,null,null,null,null,null,null,null,"brrt_Equities",null,"brrt_Equities"]
[null,null,null,null,null,null,null,{"$f":"XBRLMap(#REF!,H$122&\".\"&#REF!,$D$105,$D$106,CONFIGURATION!$B$10,\"BMA\",CONFIGURATION!$B$1,\"bscr\",CONFIGURATION!$B$12)","v":{"$error":"#VALUE!"}},null,{"$f":"XBRLMap(#REF!,J$122&\".\"&#REF!,$F$105,$F$106,CONFIGURATION!$B$10,\"BMA\",CONFIGURATION!$B$1,\"bscr\",CONFIGURATION!$B$12)","v":{"$error":"#VALUE!"}},null,null,null,null,null,null,null,null,null,null,null,null,null,"The same data point as in column H",null,"The same data point as in column J"]
[null,null,null,null,null,null,null,{"$f":"XBRLMap(#REF!,H$122&\".\"&#REF!,$D$105,$D$106,CONFIGURATION!$B$10,\"BMA\",CONFIGURATION!$B$1,\"bscr\",CONFIGURATION!$B$12)","v":{"$error":"#VALUE!"}},null,{"$f":"XBRLMap(#REF!,J$122&\".\"&#REF!,$F$105,$F$106,CONFIGURATION!$B$10,\"BMA\",CONFIGURATION!$B$1,\"bscr\",CONFIGURATION!$B$12)","v":{"$error":"#VALUE!"}},null,null,null,null,null,null,null,null,null,null,null,null,null,"The same data point as in column H",null,"The same data point as in column J"]
[null,null,null,null,null,null,null,{"$f":"XBRLMap(#REF!,H$122&\".\"&#REF!,$D$105,$D$106,CONFIGURATION!$B$10,\"BMA\",CONFIGURATION!$B$1,\"bscr\",CONFIGURATION!$B$12)","v":{"$error":"#VALUE!"}},null,{"$f":"XBRLMap(#REF!,J$122&\".\"&#REF!,$F$105,$F$106,CONFIGURATION!$B$10,\"BMA\",CONFIGURATION!$B$1,\"bscr\",CONFIGURATION!$B$12)","v":{"$error":"#VALUE!"}},null,null,null,null,null,null,null,null,null,null,null,null,null,"The same data point as in column H",null,"The same data point as in column J"]
[null,null,null,null,null,null,null,{"$f":"XBRLMap(#REF!,H$122&\".\"&#REF!,$D$105,$D$106,CONFIGURATION!$B$10,\"BMA\",CONFIGURATION!$B$1,\"bscr\",CONFIGURATION!$B$12)","v":{"$error":"#VALUE!"}},null,{"$f":"XBRLMap(#REF!,J$122&\".\"&#REF!,$F$105,$F$106,CONFIGURATION!$B$10,\"BMA\",CONFIGURATION!$B$1,\"bscr\",CONFIGURATION!$B$12)","v":{"$error":"#VALUE!"}},null,null,null,null,null,null,null,null,null,null,null,null,null,"The same data point as in column H",null,"The same data point as in column J"]
[null,null,null,null,null,null,null,{"$f":"XBRLMap(#REF!,H$122&\".\"&#REF!,$D$105,$D$106,CONFIGURATION!$B$10,\"BMA\",CONFIGURATION!$B$1,\"bscr\",CONFIGURATION!$B$12)","v":{"$error":"#VALUE!"}},null,{"$f":"XBRLMap(#REF!,J$122&\".\"&#REF!,$F$105,$F$106,CONFIGURATION!$B$10,\"BMA\",CONFIGURATION!$B$1,\"bscr\",CONFIGURATION!$B$12)","v":{"$error":"#VALUE!"}},null,null,null,null,null,null,null,null,null,null,null,null,null,"The same data point as in column H",null,"The same data point as in column J"]
[null,null,null,null,null,null,null,{"$f":"XBRLMap(#REF!,H$122&\".\"&#REF!,$D$105,$D$106,CONFIGURATION!$B$10,\"BMA\",CONFIGURATION!$B$1,\"bscr\",CONFIGURATION!$B$12)","v":{"$error":"#VALUE!"}},null,{"$f":"XBRLMap(#REF!,J$122&\".\"&#REF!,$F$105,$F$106,CONFIGURATION!$B$10,\"BMA\",CONFIGURATION!$B$1,\"bscr\",CONFIGURATION!$B$12)","v":{"$error":"#VALUE!"}},null,null,null,null,null,null,null,null,null,null,null,null,null,"The same data point as in column H",null,"The same data point as in column J"]
[null,null,null,null,null,null,null,{"$f":"XBRLMap(#REF!,H$122&\".\"&#REF!,$D$105,$D$106,CONFIGURATION!$B$10,\"BMA\",CONFIGURATION!$B$1,\"bscr\",CONFIGURATION!$B$12)","v":{"$error":"#VALUE!"}},null,{"$f":"XBRLMap(#REF!,J$122&\".\"&#REF!,$F$105,$F$106,CONFIGURATION!$B$10,\"BMA\",CONFIGURATION!$B$1,\"bscr\",CONFIGURATION!$B$12)","v":{"$error":"#VALUE!"}},null,null,null,null,null,null,null,null,null,null,null,null,null,"The same data point as in column H",null,"The same data point as in column J"]
[null,null,null,null,null,null,null,{"$f":"XBRLMap(#REF!,H$122&\".\"&#REF!,$D$105,$D$106,CONFIGURATION!$B$10,\"BMA\",CONFIGURATION!$B$1,\"bscr\",CONFIGURATION!$B$12)","v":{"$error":"#VALUE!"}},null,{"$f":"XBRLMap(#REF!,J$122&\".\"&#REF!,$F$105,$F$106,CONFIGURATION!$B$10,\"BMA\",CONFIGURATION!$B$1,\"bscr\",CONFIGURATION!$B$12)","v":{"$error":"#VALUE!"}},null,null,null,null,null,null,null,null,null,null,null,null,null,"The same data point as in column H",null,"The same data point as in column J"]
[null,null,null,"Already mapped in Form 4",null,"Already mapped in Form 4",null,null,null,null,null,"Already mapped in Form 4",null,"Already mapped in Form 4",null,null,null,null,null,null,null,null,null,{"$f":"XBRLMap(#REF!,X$120,$D$105,$D$106,CONFIGURATION!$B$10,\"BMA\",CONFIGURATION!$B$1,\"bscr\",CONFIGURATION!$B$12)","v":{"$error":"#VALUE!"}},null,{"$f":"XBRLMap(#REF!,Z$120,$F$105,$F$106,CONFIGURATION!$B$10,\"BMA\",CONFIGURATION!$B$1,\"bscr\",CONFIGURATION!$B$12)","v":{"$error":"#VALUE!"}}]
[null,null,null,"Already mapped in Form 4",null,"Already mapped in Form 4",null,null,null,null,null,"Already mapped in Form 4",null,"Already mapped in Form 4",null,null,null,null,null,null,null,null,null,{"$f":"XBRLMap(#REF!,X$121,$D$105,$D$106,CONFIGURATION!$B$10,\"BMA\",CONFIGURATION!$B$1,\"bscr\",CONFIGURATION!$B$12)","v":{"$error":"#VALUE!"}},null,{"$f":"XBRLMap(#REF!,Z$121,$F$105,$F$106,CONFIGURATION!$B$10,\"BMA\",CONFIGURATION!$B$1,\"bscr\",CONFIGURATION!$B$12)","v":{"$error":"#VALUE!"}}]
[null,null,null,{"$f":"XBRLMap(#REF!,D$122,$D$105,$D$106,CONFIGURATION!$B$10,\"BMA\",CONFIGURATION!$B$1,\"bscr\",CONFIGURATION!$B$12)","v":{"$error":"#VALUE!"}},null,{"$f":"XBRLMap(#REF!,F$122,$F$105,$F$106,CONFIGURATION!$B$10,\"BMA\",CONFIGURATION!$B$1,\"bscr\",CONFIGURATION!$B$12)","v":{"$error":"#VALUE!"}},null,{"$f":"XBRLMap(#REF!,H$122&\".\"&#REF!,$D$105,$D$106,CONFIGURATION!$B$10,\"BMA\",CONFIGURATION!$B$1,\"bscr\",CONFIGURATION!$B$12)","v":{"$error":"#VALUE!"}},null,{"$f":"XBRLMap(#REF!,J$122&\".\"&#REF!,$F$105,$F$106,CONFIGURATION!$B$10,\"BMA\",CONFIGURATION!$B$1,\"bscr\",CONFIGURATION!$B$12)","v":{"$error":"#VALUE!"}},null,{"$f":"XBRLMap(#REF!,L$122,$D$105,$D$106,CONFIGURATION!$B$10,\"BMA\",CONFIGURATION!$B$1,\"bscr\",CONFIGURATION!$B$12)","v":{"$error":"#VALUE!"}},null,{"$f":"XBRLMap(#REF!,N$122,$F$105,$F$106,CONFIGURATION!$B$10,\"BMA\",CONFIGURATION!$B$1,\"bscr\",CONFIGURATION!$B$12)","v":{"$error":"#VALUE!"}},null,null,null,null,null,null,null,null,null,{"$f":"XBRLMap(#REF!,X$122,$D$105,$D$106,CONFIGURATION!$B$10,\"BMA\",CONFIGURATION!$B$1,\"bscr\",CONFIGURATION!$B$12)","v":{"$error":"#VALUE!"}},null,{"$f":"XBRLMap(#REF!,Z$122,$F$105,$F$106,CONFIGURATION!$B$10,\"BMA\",CONFIGURATION!$B$1,\"bscr\",CONFIGURATION!$B$12)","v":{"$error":"#VALUE!"}}]
[]
[]
[]
[null,null,null,null,null,null,null,null,null,null,null,"brrt_BondsAndDebentures",null,"brrt_BondsAndDebentures",null,"brrt_BondsAndDebentures",null,"brrt_BondsAndDebentures"]
[null,null,null,null,null,null,null,null,null,null,null,"brrt_SecurityTypeAxis_brrt_ResidentialMortgageBackedSecuritiesMember",null,"brrt_SecurityTypeAxis_brrt_ResidentialMortgageBackedSecuritiesMember",null,"brrt_SecurityTypeAxis_brrt_CommercialMortgageBackedSecuritiesAssetBackedSecuritiesMember",null,"brrt_SecurityTypeAxis_brrt_CommercialMortgageBackedSecuritiesAssetBackedSecuritiesMember"]
[null,null,null,null,null,null,null,null,null,null,null,"brrt_ClassificationAxis_brrt_OriginalClassificationMember",null,"brrt_ClassificationAxis_brrt_RevisedClassificationMember",null,"brrt_ClassificationAxis_brrt_OriginalClassificationMember",null,"brrt_ClassificationAxis_brrt_RevisedClassificationMember"]
[null,null,null,null,null,null,null,null,null,null,null,{"$f":"XBRLMap(#REF!,L$137&\".\"&#REF!&\".\"&$L$138&\".\"&$L$139,$D$105,$D$106,CONFIGURATION!$B$10,\"BMA\",CONFIGURATION!$B$1,\"bscr\",CONFIGURATION!$B$12)","v":{"$error":"#VALUE!"}},null,{"$f":"XBRLMap(#REF!,N$137&\".\"&#REF!&\".\"&$N$138&\".\"&$N$139,$D$105,$D$106,CONFIGURATION!$B$10,\"BMA\",CONFIGURATION!$B$1,\"bscr\",CONFIGURATION!$B$12)","v":{"$error":"#VALUE!"}},null,{"$f":"XBRLMap(#REF!,P$137&\".\"&#REF!&\".\"&$P$138&\".\"&$P$139,$D$105,$D$106,CONFIGURATION!$B$10,\"BMA\",CONFIGURATION!$B$1,\"bscr\",CONFIGURATION!$B$12)","v":{"$error":"#VALUE!"}},null,{"$f":"XBRLMap(#REF!,R$137&\".\"&#REF!&\".\"&$R$138&\".\"&$R$139,$D$105,$D$106,CONFIGURATION!$B$10,\"BMA\",CONFIGURATION!$B$1,\"bscr\",CONFIGURATION!$B$12)","v":{"$error":"#VALUE!"}}]
[null,null,null,null,null,null,null,null,null,null,null,{"$f":"XBRLMap(#REF!,L$137&\".\"&#REF!&\".\"&$L$138&\".\"&$L$139,$D$105,$D$106,CONFIGURATION!$B$10,\"BMA\",CONFIGURATION!$B$1,\"bscr\",CONFIGURATION!$B$12)","v":{"$error":"#VALUE!"}},null,{"$f":"XBRLMap(#REF!,N$137&\".\"&#REF!&\".\"&$N$138&\".\"&$N$139,$D$105,$D$106,CONFIGURATION!$B$10,\"BMA\",CONFIGURATION!$B$1,\"bscr\",CONFIGURATION!$B$12)","v":{"$error":"#VALUE!"}},null,{"$f":"XBRLMap(#REF!,P$137&\".\"&#REF!&\".\"&$P$138&\".\"&$P$139,$D$105,$D$106,CONFIGURATION!$B$10,\"BMA\",CONFIGURATION!$B$1,\"bscr\",CONFIGURATION!$B$12)","v":{"$error":"#VALUE!"}},null,{"$f":"XBRLMap(#REF!,R$137&\".\"&#REF!&\".\"&$R$138&\".\"&$R$139,$D$105,$D$106,CONFIGURATION!$B$10,\"BMA\",CONFIGURATION!$B$1,\"bscr\",CONFIGURATION!$B$12)","v":{"$error":"#VALUE!"}}]
[null,null,null,null,null,null,null,null,null,null,null,{"$f":"XBRLMap(#REF!,L$137&\".\"&#REF!&\".\"&$L$138&\".\"&$L$139,$D$105,$D$106,CONFIGURATION!$B$10,\"BMA\",CONFIGURATION!$B$1,\"bscr\",CONFIGURATION!$B$12)","v":{"$error":"#VALUE!"}},null,{"$f":"XBRLMap(#REF!,N$137&\".\"&#REF!&\".\"&$N$138&\".\"&$N$139,$D$105,$D$106,CONFIGURATION!$B$10,\"BMA\",CONFIGURATION!$B$1,\"bscr\",CONFIGURATION!$B$12)","v":{"$error":"#VALUE!"}},null,{"$f":"XBRLMap(#REF!,P$137&\".\"&#REF!&\".\"&$P$138&\".\"&$P$139,$D$105,$D$106,CONFIGURATION!$B$10,\"BMA\",CONFIGURATION!$B$1,\"bscr\",CONFIGURATION!$B$12)","v":{"$error":"#VALUE!"}},null,{"$f":"XBRLMap(#REF!,R$137&\".\"&#REF!&\".\"&$R$138&\".\"&$R$139,$D$105,$D$106,CONFIGURATION!$B$10,\"BMA\",CONFIGURATION!$B$1,\"bscr\",CONFIGURATION!$B$12)","v":{"$error":"#VALUE!"}}]
[null,null,null,null,null,null,null,null,null,null,null,{"$f":"XBRLMap(#REF!,L$137&\".\"&#REF!&\".\"&$L$138&\".\"&$L$139,$D$105,$D$106,CONFIGURATION!$B$10,\"BMA\",CONFIGURATION!$B$1,\"bscr\",CONFIGURATION!$B$12)","v":{"$error":"#VALUE!"}},null,{"$f":"XBRLMap(#REF!,N$137&\".\"&#REF!&\".\"&$N$138&\".\"&$N$139,$D$105,$D$106,CONFIGURATION!$B$10,\"BMA\",CONFIGURATION!$B$1,\"bscr\",CONFIGURATION!$B$12)","v":{"$error":"#VALUE!"}},null,{"$f":"XBRLMap(#REF!,P$137&\".\"&#REF!&\".\"&$P$138&\".\"&$P$139,$D$105,$D$106,CONFIGURATION!$B$10,\"BMA\",CONFIGURATION!$B$1,\"bscr\",CONFIGURATION!$B$12)","v":{"$error":"#VALUE!"}},null,{"$f":"XBRLMap(#REF!,R$137&\".\"&#REF!&\".\"&$R$138&\".\"&$R$139,$D$105,$D$106,CONFIGURATION!$B$10,\"BMA\",CONFIGURATION!$B$1,\"bscr\",CONFIGURATION!$B$12)","v":{"$error":"#VALUE!"}}]
[null,null,null,null,null,null,null,null,null,null,null,{"$f":"XBRLMap(#REF!,L$137&\".\"&#REF!&\".\"&$L$138&\".\"&$L$139,$D$105,$D$106,CONFIGURATION!$B$10,\"BMA\",CONFIGURATION!$B$1,\"bscr\",CONFIGURATION!$B$12)","v":{"$error":"#VALUE!"}},null,{"$f":"XBRLMap(#REF!,N$137&\".\"&#REF!&\".\"&$N$138&\".\"&$N$139,$D$105,$D$106,CONFIGURATION!$B$10,\"BMA\",CONFIGURATION!$B$1,\"bscr\",CONFIGURATION!$B$12)","v":{"$error":"#VALUE!"}},null,{"$f":"XBRLMap(#REF!,P$137&\".\"&#REF!&\".\"&$P$138&\".\"&$P$139,$D$105,$D$106,CONFIGURATION!$B$10,\"BMA\",CONFIGURATION!$B$1,\"bscr\",CONFIGURATION!$B$12)","v":{"$error":"#VALUE!"}},null,{"$f":"XBRLMap(#REF!,R$137&\".\"&#REF!&\".\"&$R$138&\".\"&$R$139,$D$105,$D$106,CONFIGURATION!$B$10,\"BMA\",CONFIGURATION!$B$1,\"bscr\",CONFIGURATION!$B$12)","v":{"$error":"#VALUE!"}}]
[null,null,null,null,null,null,null,null,null,null,null,{"$f":"XBRLMap(#REF!,L$137&\".\"&#REF!&\".\"&$L$138&\".\"&$L$139,$D$105,$D$106,CONFIGURATION!$B$10,\"BMA\",CONFIGURATION!$B$1,\"bscr\",CONFIGURATION!$B$12)","v":{"$error":"#VALUE!"}},null,{"$f":"XBRLMap(#REF!,N$137&\".\"&#REF!&\".\"&$N$138&\".\"&$N$139,$D$105,$D$106,CONFIGURATION!$B$10,\"BMA\",CONFIGURATION!$B$1,\"bscr\",CONFIGURATION!$B$12)","v":{"$error":"#VALUE!"}},null,{"$f":"XBRLMap(#REF!,P$137&\".\"&#REF!&\".\"&$P$138&\".\"&$P$139,$D$105,$D$106,CONFIGURATION!$B$10,\"BMA\",CONFIGURATION!$B$1,\"bscr\",CONFIGURATION!$B$12)","v":{"$error":"#VALUE!"}},null,{"$f":"XBRLMap(#REF!,R$137&\".\"&#REF!&\".\"&$R$138&\".\"&$R$139,$D$105,$D$106,CONFIGURATION!$B$10,\"BMA\",CONFIGURATION!$B$1,\"bscr\",CONFIGURATION!$B$12)","v":{"$error":"#VALUE!"}}]
[]
[null,null,null,null,null,null,null,null,null,null,null,{"$f":"XBRLMap(#REF!,L$137&\".\"&#REF!&\".\"&$L$138&\".\"&$L$139,$D$105,$D$106,CONFIGURATION!$B$10,\"BMA\",CONFIGURATION!$B$1,\"bscr\",CONFIGURATION!$B$12)","v":{"$error":"#VALUE!"}},null,{"$f":"XBRLMap(#REF!,N$137&\".\"&#REF!&\".\"&$N$138&\".\"&$N$139,$D$105,$D$106,CONFIGURATION!$B$10,\"BMA\",CONFIGURATION!$B$1,\"bscr\",CONFIGURATION!$B$12)","v":{"$error":"#VALUE!"}},null,{"$f":"XBRLMap(#REF!,P$137&\".\"&#REF!&\".\"&$P$138&\".\"&$P$139,$D$105,$D$106,CONFIGURATION!$B$10,\"BMA\",CONFIGURATION!$B$1,\"bscr\",CONFIGURATION!$B$12)","v":{"$error":"#VALUE!"}},null,{"$f":"XBRLMap(#REF!,R$137&\".\"&#REF!&\".\"&$R$138&\".\"&$R$139,$D$105,$D$106,CONFIGURATION!$B$10,\"BMA\",CONFIGURATION!$B$1,\"bscr\",CONFIGURATION!$B$12)","v":{"$error":"#VALUE!"}}]

{"sheet":"Schedule IIC (EBS)","index":29,"n_rows":148,"n_cols":31,"rows_kept":148,"cut":false,"hidden":false,"merged":[[33,27,34,27],[7,23,7,25],[7,11,7,13],[7,19,7,21],[32,3,32,13],[33,17,34,17],[33,19,34,19],[32,15,32,19],[33,15,34,15],[7,15,7,17],[33,3,34,5],[33,7,33,13],[33,23,34,23],[34,7,34,9],[34,11,34,13],[2,3,2,7],[3,5,3,7],[4,5,4,7],[7,3,7,5],[7,7,7,9],[64,3,64,5],[64,7,64,9],[63,3,63,11],[63,13,63,21],[64,13,64,15],[64,17,64,19]]}
[null,"SCHEDULE OF FUNDS HELD",null,null,null,null,null,null,null,null,null,null,null,null,null,null,null,null,null,null,null,null,null,null,null,null,null,{"$f":"HYPERLINK(\"#'Index'!A1\",\"Return to Index\")","v":"Return to Index"}]
[]
[null,null,null,{"$f":"'Insurer Information'!C7","v":"Enter Company Name"}]
[null,null,null,"As at",null,{"$f":"'Form 4EBS'!C3","v":"2019-12-31"},null,null,null,null,null,null,null,null,null,null,null,null,null,null,null,null,null,null,null,"SCHEDULE IIC (EBS)"]
[null,null,null,{"$f":"\"Expressed in \" & IF(CONFIGURATION!$B$12>1,\" ['\"&MID(CONFIGURATION!$B$12,2,LEN(CONFIGURATION!$B$12))&\"s]\",\"\")","v":"Expressed in  ['000s]"},null,{"$f":"'Form 4EBS'!C4","v":"United States Dollars"}]
[null,null,null,null,null,null,null,null,null,null,null,null,null,{"$f":"YEAR('Insurer Information'!C3)","v":2019}]
[null,null,null,"(1)",null,"(2)",null,"(3)",null,"(4)",null,"(5)",null,"(6)",null,"(7)",null,"(8)",null,"(9)",null,"(10)",null,"(11)",null,"(12)"]
[null,null,null,"Corporate & Sovereign Bonds",null,null,null,"Residential Mortgage Backed Securities",null,null,null,"Commercial Mortgage Backed Securities / Asset- Backed Securities",null,null,null,"Bond Mutual Funds",null,null,null,"Mortgage Loans",null,null,null,"TOTAL",null,null,null,null,null,null,"brrt_RiskTransferAxis_brrt_FundsHeldByCedingReinsurersInSegregatedAccountsTrustsMember"]
[null,null,null,{"$f":"'Form 4EBS'!F6","v":"2019-12-31"},null,{"$f":"'Form 4EBS'!H6","v":"2018-12-31"},null,{"$f":"'Form 4EBS'!F6","v":"2019-12-31"},null,{"$f":"'Form 4EBS'!H6","v":"2018-12-31"},null,{"$f":"'Form 4EBS'!F6","v":"2019-12-31"},null,{"$f":"'Form 4EBS'!H6","v":"2018-12-31"},null,{"$f":"'Form 4EBS'!F6","v":"2019-12-31"},null,{"$f":"'Form 4EBS'!H6","v":"2018-12-31"},null,{"$f":"'Form 4EBS'!F6","v":"2019-12-31"},null,{"$f":"'Form 4EBS'!H6","v":"2018-12-31"},null,{"$f":"D9","v":"2019-12-31"},null,{"$f":"F9","v":"2018-12-31"}]
[null,null,null,{"$f":"CONFIGURATION!$D$12","v":" ('000s)"},null,{"$f":"CONFIGURATION!$D$12","v":" ('000s)"},null,{"$f":"CONFIGURATION!$D$12","v":" ('000s)"},null,{"$f":"CONFIGURATION!$D$12","v":" ('000s)"},null,{"$f":"CONFIGURATION!$D$12","v":" ('000s)"},null,{"$f":"CONFIGURATION!$D$12","v":" ('000s)"},null,{"$f":"CONFIGURATION!$D$12","v":" ('000s)"},null,{"$f":"CONFIGURATION!$D$12","v":" ('000s)"},null,{"$f":"CONFIGURATION!$D$12","v":" ('000s)"},null,{"$f":"CONFIGURATION!$D$12","v":" ('000s)"},null,{"$f":"CONFIGURATION!$D$12","v":" ('000s)"},null,{"$f":"CONFIGURATION!$D$12","v":" ('000s)"}]
[null,"Line no. "]
[null,"Quoted and Unquoted Bonds and Debentures"]
[null,1,"BSCR Rating 0",{"$f":"Import!M6768","v":0},null,{"$f":"Import!O6768","v":0},null,null,null,null,null,null,null,null,null,{"$f":"Import!M6793","v":0},null,{"$f":"Import!O6793","v":0},null,null,null,null,null,{"$f":"D13+H13+L13+P13","v":0},null,{"$f":"F13+J13+N13+R13","v":0},null,null,null,null,"brrt_RiskGradeAxis_brrt_BSCRRating0Member"]
[null,{"$f":"B13+1","v":2},"BSCR Rating 1",{"$f":"Import!M6769","v":0},null,{"$f":"Import!O6769","v":0},null,{"$f":"Import!M6777","v":0},null,{"$f":"Import!O6777","v":0},null,{"$f":"Import!M6785","v":0},null,{"$f":"Import!O6785","v":0},null,{"$f":"Import!M6794","v":0},null,{"$f":"Import!O6794","v":0},null,null,null,null,null,{"$f":"D14+H14+L14+P14","v":0},null,0,null,null,null,null,"brrt_RiskGradeAxis_brrt_BSCRRating1Member"]
[null,{"$f":"B14+1","v":3},"BSCR Rating 2",{"$f":"Import!M6770","v":0},null,{"$f":"Import!O6770","v":0},null,{"$f":"Import!M6778","v":0},null,{"$f":"Import!O6778","v":0},null,{"$f":"Import!M6786","v":0},null,{"$f":"Import!O6786","v":0},null,{"$f":"Import!M6795","v":0},null,{"$f":"Import!O6795","v":0},null,null,null,null,null,0,null,0,null,null,null,null,"brrt_RiskGradeAxis_brrt_BSCRRating2Member"]
[null,4,"BSCR Rating 3",{"$f":"Import!M6771","v":0},null,{"$f":"Import!O6771","v":0},null,{"$f":"Import!M6779","v":0},null,{"$f":"Import!O6779","v":0},null,{"$f":"Import!M6787","v":0},null,{"$f":"Import!O6787","v":0},null,{"$f":"Import!M6796","v":0},null,{"$f":"Import!O6796","v":0},null,null,null,null,null,0,null,0,null,null,null,null,"brrt_RiskGradeAxis_brrt_BSCRRating3Member"]
[null,5,"BSCR Rating 4",{"$f":"Import!M6772","v":0},null,{"$f":"Import!O6772","v":0},null,{"$f":"Import!M6780","v":0},null,{"$f":"Import!O6780","v":0},null,{"$f":"Import!M6788","v":0},null,{"$f":"Import!O6788","v":0},null,{"$f":"Import!M6797","v":0},null,{"$f":"Import!O6797","v":0},null,null,null,null,null,0,null,0,null,null,null,null,"brrt_RiskGradeAxis_brrt_BSCRRating4Member"]
[null,6,"BSCR Rating 5",{"$f":"Import!M6773","v":0},null,{"$f":"Import!O6773","v":0},null,{"$f":"Import!M6781","v":0},null,{"$f":"Import!O6781","v":0},null,{"$f":"Import!M6789","v":0},null,{"$f":"Import!O6789","v":0},null,{"$f":"Import!M6798","v":0},null,{"$f":"Import!O6798","v":0},null,null,null,null,null,0,null,0,null,null,null,null,"brrt_RiskGradeAxis_brrt_BSCRRating5Member"]
[null,7,"BSCR Rating 6",{"$f":"Import!M6774","v":0},null,{"$f":"Import!O6774","v":0},null,{"$f":"Import!M6782","v":0},null,{"$f":"Import!O6782","v":0},null,{"$f":"Import!M6790","v":0},null,{"$f":"Import!O6790","v":0},null,{"$f":"Import!M6799","v":0},null,{"$f":"Import!O6799","v":0},null,null,null,null,null,0,null,0,null,null,null,null,"brrt_RiskGradeAxis_brrt_BSCRRating6Member"]
[null,8,"BSCR Rating 7",{"$f":"Import!M6775","v":0},null,{"$f":"Import!O6775","v":0},null,{"$f":"Import!M6783","v":0},null,{"$f":"Import!O6783","v":0},null,{"$f":"Import!M6791","v":0},null,{"$f":"Import!O6791","v":0},null,{"$f":"Import!M6800","v":0},null,{"$f":"Import!O6800","v":0},null,null,null,null,null,0,null,0,null,null,null,null,"brrt_RiskGradeAxis_brrt_BSCRRating7Member"]
[null,9,"BSCR Rating 8",{"$f":"Import!M6776","v":0},null,{"$f":"Import!O6776","v":0},null,{"$f":"Import!M6784","v":0},null,{"$f":"Import!O6784","v":0},null,{"$f":"Import!M6792","v":0},null,{"$f":"Import!O6792","v":0},null,{"$f":"Import!M6801","v":0},null,{"$f":"Import!O6801","v":0},null,null,null,null,null,{"$f":"D21+H21+L21+P21","v":0},null,{"$f":"F21+J21+N21+R21","v":0},null,null,null,null,"brrt_RiskGradeAxis_brrt_BSCRRating8Member"]
[null,10,"Insured/Guaranteed Mortgages",null,null,null,null,null,null,null,null,null,null,null,null,null,null,null,null,{"$f":"Import!M6802","v":0},null,{"$f":"Import!O6802","v":0},null,{"$f":"D22+H22+L22+P22+T22","v":0},null,{"$f":"F22+J22+N22+R22+V22","v":0}]
[null,11,"Other Commercial and Farm Mortgages",null,null,null,null,null,null,null,null,null,null,null,null,null,null,null,null,{"$f":"Import!M6803","v":0},null,{"$f":"Import!O6803","v":0},null,{"$f":"D23+H23+L23+P23+T23","v":0},null,0]
[null,12,"Other Residential Mortgages",null,null,null,null,null,null,null,null,null,null,null,null,null,null,null,null,{"$f":"Import!M6804","v":0},null,{"$f":"Import!O6804","v":0},null,0,null,0]
[null,13,"Mortgages Not In Good Standing",null,null,null,null,null,null,null,null,null,null,null,null,null,null,null,null,{"$f":"Import!M6805","v":0},null,{"$f":"Import!O6805","v":0},null,0,null,0]
[]
[null,{"$f":"B25+1","v":14},"Total",{"$f":"SUM(D13:D21)","v":0},null,{"$f":"SUM(F13:F21)","v":0},null,{"$f":"SUM(H13:H21)","v":0},null,{"$f":"SUM(J13:J21)","v":0},null,{"$f":"SUM(L13:L21)","v":0},null,{"$f":"SUM(N13:N21)","v":0},null,{"$f":"SUM(P13:P21)","v":0},null,{"$f":"SUM(R13:R21)","v":0},null,{"$f":"SUM(T13:T25)","v":0},null,{"$f":"SUM(V13:V25)","v":0},null,{"$f":"SUM(X13:X25)","v":0},null,{"$f":"SUM(Z13:Z25)","v":0},null,null,null,null,"brrt_RiskGradeAxis_brrt_TotalMember"]
[]
[]
[]
[]
[]
[null,null,null,"ASSETS",null,null,null,null,null,null,null,null,null,null,null,"Liabilities"]
[null,null,null,"Long Exposures",null,null,null,"Short Exposures",null,null,null,null,null,null,null,null,null,"Without Management Actions",null,"With Management Actions",null,null,null,"Total Assets Before Shock",null,null,null,"Shocks"]
[null,null,null,null,null,null,null,"Qualifying as Assets held for risk-mitigation purposes",null,null,null,"Not Qualifying as Assets held for risk-mitigation purposes",null,null,null,null,null,null,null,null,null,null,null,null,null,null,null,"Shocks"]
[null,null,null,"Before Shock",null,"After Shock",null,"Before Shock",null,"After Shock",null,"Before Shock",null,"After Shock",null,"Before Shock",null,"After Shock",null,"After Shock"]
[null,null,null,{"$f":"CONFIGURATION!$D$12","v":" ('000s)"},null,{"$f":"CONFIGURATION!$D$12","v":" ('000s)"},null,{"$f":"CONFIGURATION!$D$12","v":" ('000s)"},null,{"$f":"CONFIGURATION!$D$12","v":" ('000s)"},null,{"$f":"CONFIGURATION!$D$12","v":" ('000s)"},null,{"$f":"CONFIGURATION!$D$12","v":" ('000s)"},null,{"$f":"CONFIGURATION!$D$12","v":" ('000s)"},null,{"$f":"CONFIGURATION!$D$12","v":" ('000s)"},null,{"$f":"CONFIGURATION!$D$12","v":" ('000s)"},null,null,null,{"$f":"CONFIGURATION!$D$12","v":" ('000s)"}]
[null,"Equity Holdings "]
[null,{"$f":"B27+1","v":15},"Strategic Holdings - Listed",{"$f":"Import!M6806","v":0},null,{"$f":"IF(OR(Import!M6828=0,Import!M6828=\"\"),(1-$AB39)*D39,Import!M6828)","v":0},null,{"$f":"Import!M6850","v":0},null,{"$f":"IF(OR(Import!M6872=0,Import!M6872=\"\"),(1-$AB39)*H39,Import!M6872)","v":0},null,{"$f":"Import!M6894","v":0},null,{"$f":"IF(OR(Import!M6916=0,Import!M6916=\"\"),(1-$AB39)*L39,Import!M6916)","v":0},null,{"$f":"Import!M6938","v":0},null,{"$f":"IF(OR(Import!M6960=0,Import!M6960=\"\"),P39,Import!M6960)","v":0},null,{"$f":"IF(OR(Import!M6982=0,Import!M6982=\"\"),R39,Import!M6982)","v":0},null,null,null,{"$f":"D39+H39+L39","v":0},null,null,null,0.2]
[null,{"$f":"B39+1","v":16},"Duration Based",{"$f":"Import!M6807","v":0},null,{"$f":"IF(OR(Import!M6829=0,Import!M6829=\"\"),(1-$AB40)*D40,Import!M6829)","v":0},null,{"$f":"Import!M6851","v":0},null,{"$f":"IF(OR(Import!M6873=0,Import!M6873=\"\"),(1-$AB40)*H40,Import!M6873)","v":0},null,{"$f":"Import!M6895","v":0},null,{"$f":"IF(OR(Import!M6917=0,Import!M6917=\"\"),(1-$AB40)*L40,Import!M6917)","v":0},null,{"$f":"Import!M6939","v":0},null,{"$f":"IF(OR(Import!M6961=0,Import!M6961=\"\"),P40,Import!M6961)","v":0},null,{"$f":"IF(OR(Import!M6983=0,Import!M6983=\"\"),R40,Import!M6983)","v":0},null,null,null,{"$f":"D40+H40+L40","v":0},null,null,null,0.2]
[null,17,"Listed Equity Securities in Developed Markets",{"$f":"Import!M6808","v":0},null,{"$f":"IF(OR(Import!M6830=0,Import!M6830=\"\"),(1-$AB41)*D41,Import!M6830)","v":0},null,{"$f":"Import!M6852","v":0},null,{"$f":"IF(OR(Import!M6874=0,Import!M6874=\"\"),(1-$AB41)*H41,Import!M6874)","v":0},null,{"$f":"Import!M6896","v":0},null,{"$f":"IF(OR(Import!M6918=0,Import!M6918=\"\"),(1-$AB41)*L41,Import!M6918)","v":0},null,{"$f":"Import!M6940","v":0},null,{"$f":"IF(OR(Import!M6962=0,Import!M6962=\"\"),P41,Import!M6962)","v":0},null,{"$f":"IF(OR(Import!M6984=0,Import!M6984=\"\"),R41,Import!M6984)","v":0},null,null,null,0,null,null,null,0.35]
[null,18,"Preferred Stocks, BSCR Rating 1",{"$f":"Import!M6809","v":0},null,{"$f":"IF(OR(Import!M6831=0,Import!M6831=\"\"),(1-$AB42)*D42,Import!M6831)","v":0},null,{"$f":"Import!M6853","v":0},null,{"$f":"IF(OR(Import!M6875=0,Import!M6875=\"\"),(1-$AB42)*H42,Import!M6875)","v":0},null,{"$f":"Import!M6897","v":0},null,{"$f":"IF(OR(Import!M6919=0,Import!M6919=\"\"),(1-$AB42)*L42,Import!M6919)","v":0},null,{"$f":"Import!M6941","v":0},null,{"$f":"IF(OR(Import!M6963=0,Import!M6963=\"\"),P42,Import!M6963)","v":0},null,{"$f":"IF(OR(Import!M6985=0,Import!M6985=\"\"),R42,Import!M6985)","v":0},null,null,null,0,null,null,null,6.0000000000000001E-3]
[null,19,"Preferred Stocks, BSCR Rating 2",{"$f":"Import!M6810","v":0},null,{"$f":"IF(OR(Import!M6832=0,Import!M6832=\"\"),(1-$AB43)*D43,Import!M6832)","v":0},null,{"$f":"Import!M6854","v":0},null,{"$f":"IF(OR(Import!M6876=0,Import!M6876=\"\"),(1-$AB43)*H43,Import!M6876)","v":0},null,{"$f":"Import!M6898","v":0},null,{"$f":"IF(OR(Import!M6920=0,Import!M6920=\"\"),(1-$AB43)*L43,Import!M6920)","v":0},null,{"$f":"Import!M6942","v":0},null,{"$f":"IF(OR(Import!M6964=0,Import!M6964=\"\"),P43,Import!M6964)","v":0},null,{"$f":"IF(OR(Import!M6986=0,Import!M6986=\"\"),R43,Import!M6986)","v":0},null,null,null,0,null,null,null,1.2E-2]
[null,20,"Preferred Stocks, BSCR Rating 3",{"$f":"Import!M6811","v":0},null,{"$f":"IF(OR(Import!M6833=0,Import!M6833=\"\"),(1-$AB44)*D44,Import!M6833)","v":0},null,{"$f":"Import!M6855","v":0},null,{"$f":"IF(OR(Import!M6877=0,Import!M6877=\"\"),(1-$AB44)*H44,Import!M6877)","v":0},null,{"$f":"Import!M6899","v":0},null,{"$f":"IF(OR(Import!M6921=0,Import!M6921=\"\"),(1-$AB44)*L44,Import!M6921)","v":0},null,{"$f":"Import!M6943","v":0},null,{"$f":"IF(OR(Import!M6965=0,Import!M6965=\"\"),P44,Import!M6965)","v":0},null,{"$f":"IF(OR(Import!M6987=0,Import!M6987=\"\"),R44,Import!M6987)","v":0},null,null,null,0,null,null,null,0.02]
[null,21,"Preferred Stocks, BSCR Rating 4",{"$f":"Import!M6812","v":0},null,{"$f":"IF(OR(Import!M6834=0,Import!M6834=\"\"),(1-$AB45)*D45,Import!M6834)","v":0},null,{"$f":"Import!M6856","v":0},null,{"$f":"IF(OR(Import!M6878=0,Import!M6878=\"\"),(1-$AB45)*H45,Import!M6878)","v":0},null,{"$f":"Import!M6900","v":0},null,{"$f":"IF(OR(Import!M6922=0,Import!M6922=\"\"),(1-$AB45)*L45,Import!M6922)","v":0},null,{"$f":"Import!M6944","v":0},null,{"$f":"IF(OR(Import!M6966=0,Import!M6966=\"\"),P45,Import!M6966)","v":0},null,{"$f":"IF(OR(Import!M6988=0,Import!M6988=\"\"),R45,Import!M6988)","v":0},null,null,null,0,null,null,null,0.04]
[null,22,"Preferred Stocks, BSCR Rating 5",{"$f":"Import!M6813","v":0},null,{"$f":"IF(OR(Import!M6835=0,Import!M6835=\"\"),(1-$AB46)*D46,Import!M6835)","v":0},null,{"$f":"Import!M6857","v":0},null,{"$f":"IF(OR(Import!M6879=0,Import!M6879=\"\"),(1-$AB46)*H46,Import!M6879)","v":0},null,{"$f":"Import!M6901","v":0},null,{"$f":"IF(OR(Import!M6923=0,Import!M6923=\"\"),(1-$AB46)*L46,Import!M6923)","v":0},null,{"$f":"Import!M6945","v":0},null,{"$f":"IF(OR(Import!M6967=0,Import!M6967=\"\"),P46,Import!M6967)","v":0},null,{"$f":"IF(OR(Import!M6989=0,Import!M6989=\"\"),R46,Import!M6989)","v":0},null,null,null,0,null,null,null,0.11]
[null,23,"Preferred Stocks, BSCR Rating 6",{"$f":"Import!M6814","v":0},null,{"$f":"IF(OR(Import!M6836=0,Import!M6836=\"\"),(1-$AB47)*D47,Import!M6836)","v":0},null,{"$f":"Import!M6858","v":0},null,{"$f":"IF(OR(Import!M6880=0,Import!M6880=\"\"),(1-$AB47)*H47,Import!M6880)","v":0},null,{"$f":"Import!M6902","v":0},null,{"$f":"IF(OR(Import!M6924=0,Import!M6924=\"\"),(1-$AB47)*L47,Import!M6924)","v":0},null,{"$f":"Import!M6946","v":0},null,{"$f":"IF(OR(Import!M6968=0,Import!M6968=\"\"),P47,Import!M6968)","v":0},null,{"$f":"IF(OR(Import!M6990=0,Import!M6990=\"\"),R47,Import!M6990)","v":0},null,null,null,0,null,null,null,0.25]
[null,24,"Preferred Stocks, BSCR Rating 7",{"$f":"Import!M6815","v":0},null,{"$f":"IF(OR(Import!M6837=0,Import!M6837=\"\"),(1-$AB48)*D48,Import!M6837)","v":0},null,{"$f":"Import!M6859","v":0},null,{"$f":"IF(OR(Import!M6881=0,Import!M6881=\"\"),(1-$AB48)*H48,Import!M6881)","v":0},null,{"$f":"Import!M6903","v":0},null,{"$f":"IF(OR(Import!M6925=0,Import!M6925=\"\"),(1-$AB48)*L48,Import!M6925)","v":0},null,{"$f":"Import!M6947","v":0},null,{"$f":"IF(OR(Import!M6969=0,Import!M6969=\"\"),P48,Import!M6969)","v":0},null,{"$f":"IF(OR(Import!M6991=0,Import!M6991=\"\"),R48,Import!M6991)","v":0},null,null,null,0,null,null,null,0.35]
[null,25,"Preferred Stocks, BSCR Rating 8",{"$f":"Import!M6816","v":0},null,{"$f":"IF(OR(Import!M6838=0,Import!M6838=\"\"),(1-$AB49)*D49,Import!M6838)","v":0},null,{"$f":"Import!M6860","v":0},null,{"$f":"IF(OR(Import!M6882=0,Import!M6882=\"\"),(1-$AB49)*H49,Import!M6882)","v":0},null,{"$f":"Import!M6904","v":0},null,{"$f":"IF(OR(Import!M6926=0,Import!M6926=\"\"),(1-$AB49)*L49,Import!M6926)","v":0},null,{"$f":"Import!M6948","v":0},null,{"$f":"IF(OR(Import!M6970=0,Import!M6970=\"\"),P49,Import!M6970)","v":0},null,{"$f":"IF(OR(Import!M6992=0,Import!M6992=\"\"),R49,Import!M6992)","v":0},null,null,null,0,null,null,null,0.35]
[null,26,"Equity Derivatives on Type 1 Equities",{"$f":"Import!M6817","v":0},null,{"$f":"Import!M6839","v":0},null,{"$f":"Import!M6861","v":0},null,{"$f":"Import!M6883","v":0},null,{"$f":"Import!M6905","v":0},null,{"$f":"Import!M6927","v":0},null,{"$f":"Import!M6949","v":0},null,{"$f":"IF(OR(Import!M6971=0,Import!M6971=\"\"),P50,Import!M6971)","v":0},null,{"$f":"IF(OR(Import!M6993=0,Import!M6993=\"\"),R50,Import!M6993)","v":0},null,null,null,0,null,null,null,0.35]
[null,27,"Strategic Holdings - Unlisted",{"$f":"Import!M6818","v":0},null,{"$f":"IF(OR(Import!M6840=0,Import!M6840=\"\"),(1-$AB51)*D51,Import!M6840)","v":0},null,{"$f":"Import!M6862","v":0},null,{"$f":"IF(OR(Import!M6884=0,Import!M6884=\"\"),(1-$AB51)*H51,Import!M6884)","v":0},null,{"$f":"Import!M6906","v":0},null,{"$f":"IF(OR(Import!M6928=0,Import!M6928=\"\"),(1-$AB51)*L51,Import!M6928)","v":0},null,{"$f":"Import!M6950","v":0},null,{"$f":"IF(OR(Import!M6972=0,Import!M6972=\"\"),P51,Import!M6972)","v":0},null,{"$f":"IF(OR(Import!M6994=0,Import!M6994=\"\"),R51,Import!M6994)","v":0},null,null,null,0,null,null,null,0.2]
[null,28,"Other Equities / Other Assets",{"$f":"Import!M6819","v":0},null,{"$f":"IF(OR(Import!M6841=0,Import!M6841=\"\"),(1-$AB52)*D52,Import!M6841)","v":0},null,{"$f":"Import!M6863","v":0},null,{"$f":"IF(OR(Import!M6885=0,Import!M6885=\"\"),(1-$AB52)*H52,Import!M6885)","v":0},null,{"$f":"Import!M6907","v":0},null,{"$f":"IF(OR(Import!M6929=0,Import!M6929=\"\"),(1-$AB52)*L52,Import!M6929)","v":0},null,{"$f":"Import!M6951","v":0},null,{"$f":"IF(OR(Import!M6973=0,Import!M6973=\"\"),P52,Import!M6973)","v":0},null,{"$f":"IF(OR(Import!M6995=0,Import!M6995=\"\"),R52,Import!M6995)","v":0},null,null,null,0,null,null,null,0.45]
[null,29,"Letters of Credit",{"$f":"Import!M6820","v":0},null,{"$f":"IF(OR(Import!M6842=0,Import!M6842=\"\"),(1-$AB53)*D53,Import!M6842)","v":0},null,{"$f":"Import!M6864","v":0},null,{"$f":"IF(OR(Import!M6886=0,Import!M6886=\"\"),(1-$AB53)*H53,Import!M6886)","v":0},null,{"$f":"Import!M6908","v":0},null,{"$f":"IF(OR(Import!M6930=0,Import!M6930=\"\"),(1-$AB53)*L53,Import!M6930)","v":0},null,{"$f":"Import!M6952","v":0},null,{"$f":"IF(OR(Import!M6974=0,Import!M6974=\"\"),P53,Import!M6974)","v":0},null,{"$f":"IF(OR(Import!M6996=0,Import!M6996=\"\"),R53,Import!M6996)","v":0},null,null,null,0,null,null,null,0.2]
[null,30,"Intangible assets",{"$f":"Import!M6821","v":0},null,{"$f":"IF(OR(Import!M6843=0,Import!M6843=\"\"),(1-$AB54)*D54,Import!M6843)","v":0},null,{"$f":"Import!M6865","v":0},null,{"$f":"IF(OR(Import!M6887=0,Import!M6887=\"\"),(1-$AB54)*H54,Import!M6887)","v":0},null,{"$f":"Import!M6909","v":0},null,{"$f":"IF(OR(Import!M6931=0,Import!M6931=\"\"),(1-$AB54)*L54,Import!M6931)","v":0},null,{"$f":"Import!M6953","v":0},null,{"$f":"IF(OR(Import!M6975=0,Import!M6975=\"\"),P54,Import!M6975)","v":0},null,{"$f":"IF(OR(Import!M6997=0,Import!M6997=\"\"),R54,Import!M6997)","v":0},null,null,null,0,null,null,null,0.2]
[null,31,"Pension Benefit Surplus",{"$f":"Import!M6822","v":0},null,{"$f":"IF(OR(Import!M6844=0,Import!M6844=\"\"),(1-$AB55)*D55,Import!M6844)","v":0},null,{"$f":"Import!M6866","v":0},null,{"$f":"IF(OR(Import!M6888=0,Import!M6888=\"\"),(1-$AB55)*H55,Import!M6888)","v":0},null,{"$f":"Import!M6910","v":0},null,{"$f":"IF(OR(Import!M6932=0,Import!M6932=\"\"),(1-$AB55)*L55,Import!M6932)","v":0},null,{"$f":"Import!M6954","v":0},null,{"$f":"IF(OR(Import!M6976=0,Import!M6976=\"\"),P55,Import!M6976)","v":0},null,{"$f":"IF(OR(Import!M6998=0,Import!M6998=\"\"),R55,Import!M6998)","v":0},null,null,null,0,null,null,null,0.2]
[null,32,"Equity Derivatives on Type 2 Equities",{"$f":"Import!M6823","v":0},null,{"$f":"Import!M6845","v":0},null,{"$f":"Import!M6867","v":0},null,{"$f":"Import!M6889","v":0},null,{"$f":"Import!M6911","v":0},null,{"$f":"Import!M6933","v":0},null,{"$f":"Import!M6955","v":0},null,{"$f":"IF(OR(Import!M6977=0,Import!M6977=\"\"),P56,Import!M6977)","v":0},null,{"$f":"IF(OR(Import!M6999=0,Import!M6999=\"\"),R56,Import!M6999)","v":0},null,null,null,0,null,null,null,0.45]
[null,33,"Infrastructure",{"$f":"Import!M6824","v":0},null,{"$f":"IF(OR(Import!M6846=0,Import!M6846=\"\"),(1-$AB57)*D57,Import!M6846)","v":0},null,{"$f":"Import!M6868","v":0},null,{"$f":"IF(OR(Import!M6890=0,Import!M6890=\"\"),(1-$AB57)*H57,Import!M6890)","v":0},null,{"$f":"Import!M6912","v":0},null,{"$f":"IF(OR(Import!M6934=0,Import!M6934=\"\"),(1-$AB57)*L57,Import!M6934)","v":0},null,{"$f":"Import!M6956","v":0},null,{"$f":"IF(OR(Import!M6978=0,Import!M6978=\"\"),P57,Import!M6978)","v":0},null,{"$f":"IF(OR(Import!M7000=0,Import!M7000=\"\"),R57,Import!M7000)","v":0},null,null,null,0,null,null,null,0.25]
[null,34,"Derivatives on Infrastructure",{"$f":"Import!M6825","v":0},null,{"$f":"Import!M6847","v":0},null,{"$f":"Import!M6869","v":0},null,{"$f":"Import!M6891","v":0},null,{"$f":"Import!M6913","v":0},null,{"$f":"Import!M6935","v":0},null,{"$f":"Import!M6957","v":0},null,{"$f":"IF(OR(Import!M6979=0,Import!M6979=\"\"),P58,Import!M6979)","v":0},null,{"$f":"IF(OR(Import!M7001=0,Import!M7001=\"\"),R58,Import!M7001)","v":0},null,null,null,0,null,null,null,0.25]
[null,35,"Equity Real Estate 1",{"$f":"Import!M6826","v":0},null,{"$f":"IF(OR(Import!M6848=0,Import!M6848=\"\"),(1-$AB59)*D59,Import!M6848)","v":0},null,{"$f":"Import!M6870","v":0},null,{"$f":"IF(OR(Import!M6892=0,Import!M6892=\"\"),(1-$AB59)*H59,Import!M6892)","v":0},null,{"$f":"Import!M6914","v":0},null,{"$f":"IF(OR(Import!M6936=0,Import!M6936=\"\"),(1-$AB59)*L59,Import!M6936)","v":0},null,{"$f":"Import!M6958","v":0},null,{"$f":"IF(OR(Import!M6980=0,Import!M6980=\"\"),P59,Import!M6980)","v":0},null,{"$f":"IF(OR(Import!M7002=0,Import!M7002=\"\"),R59,Import!M7002)","v":0},null,null,null,0,null,null,null,0.1]
[null,36,"Equity Real Estate 2",{"$f":"Import!M6827","v":0},null,{"$f":"IF(OR(Import!M6849=0,Import!M6849=\"\"),(1-$AB60)*D60,Import!M6849)","v":0},null,{"$f":"Import!M6871","v":0},null,{"$f":"IF(OR(Import!M6893=0,Import!M6893=\"\"),(1-$AB60)*H60,Import!M6893)","v":0},null,{"$f":"Import!M6915","v":0},null,{"$f":"IF(OR(Import!M6937=0,Import!M6937=\"\"),(1-$AB60)*L60,Import!M6937)","v":0},null,{"$f":"Import!M6959","v":0},null,{"$f":"IF(OR(Import!M6981=0,Import!M6981=\"\"),P60,Import!M6981)","v":0},null,{"$f":"IF(OR(Import!M7003=0,Import!M7003=\"\"),R60,Import!M7003)","v":0},null,null,null,0,null,null,null,0.2]
[]
[null,{"$f":"B60+1","v":37},"Total Equity Holdings",{"$f":"SUM(D38:D61)","v":0},null,{"$f":"SUM(F38:F61)","v":0},null,{"$f":"SUM(H38:H61)","v":0},null,{"$f":"SUM(J38:J61)","v":0},null,{"$f":"SUM(L38:L61)","v":0},null,{"$f":"SUM(N38:N61)","v":0},null,{"$f":"SUM(P38:P61)","v":0},null,{"$f":"SUM(R38:R61)","v":0},null,{"$f":"SUM(T38:T61)","v":0},null,null,null,{"$f":"SUM(X38:X61)","v":0}]
[]
[null,null,null,"Spread Up",null,null,null,null,null,null,null,null,null,"Spread Down"]
[null,null,null,"Long Exposures",null,null,null,"Short Exposures",null,null,null,"Shock (bps)",null,"Long Exposures",null,null,null,"Short Exposures",null,null,null,"Shock Rates"]
[null,null,null,"Before Shock",null,"After Shock",null,"Before Shock",null,"After Shock",null,null,null,"Before Shock",null,"Before Shock",null,"After Shock",null,"After Shock"]
[null,null,"Spread Risk for Credit Derivatives"]
[null,{"$f":"B62+1","v":38},"BSCR Rating 0",{"$f":"Import!M7004","v":0},null,{"$f":"Import!M7013","v":0},null,{"$f":"Import!M7022","v":0},null,{"$f":"Import!M7031","v":0},null,0,null,{"$f":"Import!M7040","v":0},null,{"$f":"Import!M7049","v":0},null,{"$f":"Import!M7058","v":0},null,{"$f":"Import!M7067","v":0},null,0]
[null,{"$f":"B68+1","v":39},"BSCR Rating 1",{"$f":"Import!M7005","v":0},null,{"$f":"Import!M7014","v":0},null,{"$f":"Import!M7023","v":0},null,{"$f":"Import!M7032","v":0},null,130,null,{"$f":"Import!M7041","v":0},null,{"$f":"Import!M7050","v":0},null,{"$f":"Import!M7059","v":0},null,{"$f":"Import!M7068","v":0},null,-0.75]
[null,{"$f":"B69+1","v":40},"BSCR Rating 2",{"$f":"Import!M7006","v":0},null,{"$f":"Import!M7015","v":0},null,{"$f":"Import!M7024","v":0},null,{"$f":"Import!M7033","v":0},null,150,null,{"$f":"Import!M7042","v":0},null,{"$f":"Import!M7051","v":0},null,{"$f":"Import!M7060","v":0},null,{"$f":"Import!M7069","v":0},null,-0.75]
[null,41,"BSCR Rating 3",{"$f":"Import!M7007","v":0},null,{"$f":"Import!M7016","v":0},null,{"$f":"Import!M7025","v":0},null,{"$f":"Import!M7034","v":0},null,260,null,{"$f":"Import!M7043","v":0},null,{"$f":"Import!M7052","v":0},null,{"$f":"Import!M7061","v":0},null,{"$f":"Import!M7070","v":0},null,-0.75]
[null,42,"BSCR Rating 4",{"$f":"Import!M7008","v":0},null,{"$f":"Import!M7017","v":0},null,{"$f":"Import!M7026","v":0},null,{"$f":"Import!M7035","v":0},null,450,null,{"$f":"Import!M7044","v":0},null,{"$f":"Import!M7053","v":0},null,{"$f":"Import!M7062","v":0},null,{"$f":"Import!M7071","v":0},null,-0.75]
[null,43,"BSCR Rating 5",{"$f":"Import!M7009","v":0},null,{"$f":"Import!M7018","v":0},null,{"$f":"Import!M7027","v":0},null,{"$f":"Import!M7036","v":0},null,840,null,{"$f":"Import!M7045","v":0},null,{"$f":"Import!M7054","v":0},null,{"$f":"Import!M7063","v":0},null,{"$f":"Import!M7072","v":0},null,-0.75]
[null,44,"BSCR Rating 6",{"$f":"Import!M7010","v":0},null,{"$f":"Import!M7019","v":0},null,{"$f":"Import!M7028","v":0},null,{"$f":"Import!M7037","v":0},null,1620,null,{"$f":"Import!M7046","v":0},null,{"$f":"Import!M7055","v":0},null,{"$f":"Import!M7064","v":0},null,{"$f":"Import!M7073","v":0},null,-0.75]
[null,45,"BSCR Rating 7",{"$f":"Import!M7011","v":0},null,{"$f":"Import!M7020","v":0},null,{"$f":"Import!M7029","v":0},null,{"$f":"Import!M7038","v":0},null,1620,null,{"$f":"Import!M7047","v":0},null,{"$f":"Import!M7056","v":0},null,{"$f":"Import!M7065","v":0},null,{"$f":"Import!M7074","v":0},null,-0.75]
[null,46,"BSCR Rating 8",{"$f":"Import!M7012","v":0},null,{"$f":"Import!M7021","v":0},null,{"$f":"Import!M7030","v":0},null,{"$f":"Import!M7039","v":0},null,1620,null,{"$f":"Import!M7048","v":0},null,{"$f":"Import!M7057","v":0},null,{"$f":"Import!M7066","v":0},null,{"$f":"Import!M7075","v":0},null,-0.75]
[null,47,"Total Spread ",{"$f":"SUM(D67:D76)","v":0},null,{"$f":"SUM(F67:F76)","v":0},null,{"$f":"SUM(H67:H76)","v":0},null,{"$f":"SUM(J67:J76)","v":0},null,null,null,{"$f":"SUM(N67:N76)","v":0},null,{"$f":"SUM(P67:P76)","v":0},null,{"$f":"SUM(R67:R76)","v":0},null,{"$f":"SUM(T67:T76)","v":0}]
[]
[null,null,"Spread Risk Check",null,null,null,null,null,null,null,null,null,null,{"$f":"IF(ROUND(D77-N77,0)=0,\"Yes\",\"No\")","v":"Yes"},null,null,null,{"$f":"IF(ROUND(H77-R77,0)=0,\"Yes\",\"No\")","v":"Yes"}]
[null,null,"Difference",null,null,null,null,null,null,null,null,null,null,{"$f":"ROUND(D77-N77,0)","v":0},null,null,null,{"$f":"ROUND(H77-R77,0)","v":0}]
[]
[null,null,null,"Market Value of Derivatives with Positive Market Value",null,"Market Value of Derivatives with Negative Market Value",null,"Market Value of Collateral, Excluding any over-collateralization"]
[null,null,"Counterparty Default Risk for OTC Derivatives"]
[null,{"$f":"B77+1","v":48},"BSCR Rating 0",{"$f":"Import!M7076","v":0},null,{"$f":"Import!M7085","v":0},null,{"$f":"Import!M7094","v":0}]
[null,{"$f":"B84+1","v":49},"BSCR Rating 1",{"$f":"Import!M7077","v":0},null,{"$f":"Import!M7086","v":0},null,{"$f":"Import!M7095","v":0}]
[null,{"$f":"B85+1","v":50},"BSCR Rating 2",{"$f":"Import!M7078","v":0},null,{"$f":"Import!M7087","v":0},null,{"$f":"Import!M7096","v":0}]
[null,51,"BSCR Rating 3",{"$f":"Import!M7079","v":0},null,{"$f":"Import!M7088","v":0},null,{"$f":"Import!M7097","v":0}]
[null,52,"BSCR Rating 4",{"$f":"Import!M7080","v":0},null,{"$f":"Import!M7089","v":0},null,{"$f":"Import!M7098","v":0}]
[null,53,"BSCR Rating 5",{"$f":"Import!M7081","v":0},null,{"$f":"Import!M7090","v":0},null,{"$f":"Import!M7099","v":0}]
[null,54,"BSCR Rating 6",{"$f":"Import!M7082","v":0},null,{"$f":"Import!M7091","v":0},null,{"$f":"Import!M7100","v":0}]
[null,55,"BSCR Rating 7",{"$f":"Import!M7083","v":0},null,{"$f":"Import!M7092","v":0},null,{"$f":"Import!M7101","v":0}]
[null,56,"BSCR Rating 8",{"$f":"Import!M7084","v":0},null,{"$f":"Import!M7093","v":0},null,{"$f":"Import!M7102","v":0}]
[null,57,"Total Default Risk for OTC Derivatives ",{"$f":"SUM(D83:D92)","v":0},null,{"$f":"SUM(F83:F92)","v":0},null,{"$f":"SUM(H83:H92)","v":0}]
[]
[null,{"$f":"B93+1","v":58},"Cash and Cash Equivalents",{"$f":"Import!M7103","v":0}]
[]
[null,{"$f":"B95+1","v":59},"Total Funds Held",{"$f":"X27+X62+D77+H77+D93+F93+H93+D95","v":0}]
[]
[]
[]
[]
[]
[]
[null,null,null,{"$f":"IF(D9=\"\",\"\",TEXT(DATE(YEAR(D9+1)-1,MONTH(D9+1),DAY(D9+1)),\"mm/dd/yyyy\"))","v":"01/01/2019"},null,{"$f":"IF(F9=\"\",\"\",TEXT(DATE(YEAR(F9+1)-1,MONTH(F9+1),DAY(F9+1)),\"mm/dd/yyyy\"))","v":"01/01/2018"}]
[null,null,null,{"$f":"IF(D9=\"\",\"\",TEXT(D9,\"mm/dd/yyyy\"))","v":"12/31/2019"},null,{"$f":"IF(F9=\"\",\"\",TEXT(F9,\"mm/dd/yyyy\"))","v":"12/31/2018"}]
[null,null,null,"brrt_BondsAndDebentures",null,"brrt_BondsAndDebentures",null,"brrt_BondsAndDebentures",null,"brrt_BondsAndDebentures",null,"brrt_BondsAndDebentures",null,"brrt_BondsAndDebentures",null,"brrt_BondsAndDebentures",null,"brrt_BondsAndDebentures",null,null,null,null,null,"brrt_BondsAndDebentures",null,"brrt_BondsAndDebentures"]
[null,null,null,"brrt_SecurityTypeAxis_brrt_CorporateSovereignBondsMember",null,"brrt_SecurityTypeAxis_brrt_CorporateSovereignBondsMember",null,"brrt_SecurityTypeAxis_brrt_ResidentialMortgageBackedSecuritiesMember",null,"brrt_SecurityTypeAxis_brrt_ResidentialMortgageBackedSecuritiesMember",null,"brrt_SecurityTypeAxis_brrt_CommercialMortgageBackedSecuritiesAssetBackedSecuritiesMember",null,"brrt_SecurityTypeAxis_brrt_CommercialMortgageBackedSecuritiesAssetBackedSecuritiesMember",null,"brrt_SecurityTypeAxis_brrt_MutualFundsMember",null,"brrt_SecurityTypeAxis_brrt_MutualFundsMember",null,null,null,null,null,"brrt_SecurityTypeAxis_brrt_TotalMember",null,"brrt_SecurityTypeAxis_brrt_TotalMember"]
[null,null,null,{"$f":"XBRLMap(D13,D$106&\".\"&$AE13&\".\"&$D$107&\".\"&$AE$8,$D$104,$D$105,CONFIGURATION!$B$10,\"BMA\",CONFIGURATION!$B$1,\"bscr\",CONFIGURATION!$B$12)","v":"Mapped"},null,{"$f":"XBRLMap(F13,F$106&\".\"&$AE13&\".\"&$F$107&\".\"&$AE$8,$F$104,$F$105,CONFIGURATION!$B$10,\"BMA\",CONFIGURATION!$B$1,\"bscr\",CONFIGURATION!$B$12)","v":"Mapped"},null,null,null,null,null,null,null,null,null,{"$f":"XBRLMap(P13,P$106&\".\"&$AE13&\".\"&$P$107&\".\"&$AE$8,$D$104,$D$105,CONFIGURATION!$B$10,\"BMA\",CONFIGURATION!$B$1,\"bscr\",CONFIGURATION!$B$12)","v":"Mapped"},null,{"$f":"XBRLMap(R13,R$106&\".\"&$AE13&\".\"&$R$107&\".\"&$AE$8,$F$104,$F$105,CONFIGURATION!$B$10,\"BMA\",CONFIGURATION!$B$1,\"bscr\",CONFIGURATION!$B$12)","v":"Mapped"},null,null,null,null,null,{"$f":"XBRLMap(X13,X$106&\".\"&$AE13&\".\"&$X$107&\".\"&$AE$8,$D$104,$D$105,CONFIGURATION!$B$10,\"BMA\",CONFIGURATION!$B$1,\"bscr\",CONFIGURATION!$B$12)","v":"Mapped"},null,{"$f":"XBRLMap(Z13,Z$106&\".\"&$AE13&\".\"&$Z$107&\".\"&$AE$8,$F$104,$F$105,CONFIGURATION!$B$10,\"BMA\",CONFIGURATION!$B$1,\"bscr\",CONFIGURATION!$B$12)","v":"Mapped"}]
[null,null,null,{"$f":"XBRLMap(D14,D$106&\".\"&$AE14&\".\"&$D$107&\".\"&$AE$8,$D$104,$D$105,CONFIGURATION!$B$10,\"BMA\",CONFIGURATION!$B$1,\"bscr\",CONFIGURATION!$B$12)","v":"Mapped"},null,{"$f":"XBRLMap(F14,F$106&\".\"&$AE14&\".\"&$F$107&\".\"&$AE$8,$F$104,$F$105,CONFIGURATION!$B$10,\"BMA\",CONFIGURATION!$B$1,\"bscr\",CONFIGURATION!$B$12)","v":"Mapped"},null,{"$f":"XBRLMap(H14,H$106&\".\"&$AE14&\".\"&$H$107&\".\"&$AE$8,$D$104,$D$105,CONFIGURATION!$B$10,\"BMA\",CONFIGURATION!$B$1,\"bscr\",CONFIGURATION!$B$12)","v":"Mapped"},null,{"$f":"XBRLMap(J14,J$106&\".\"&$AE14&\".\"&$J$107&\".\"&$AE$8,$F$104,$F$105,CONFIGURATION!$B$10,\"BMA\",CONFIGURATION!$B$1,\"bscr\",CONFIGURATION!$B$12)","v":"Mapped"},null,{"$f":"XBRLMap(L14,L$106&\".\"&$AE14&\".\"&$L$107&\".\"&$AE$8,$D$104,$D$105,CONFIGURATION!$B$10,\"BMA\",CONFIGURATION!$B$1,\"bscr\",CONFIGURATION!$B$12)","v":"Mapped"},null,{"$f":"XBRLMap(N14,N$106&\".\"&$AE14&\".\"&$N$107&\".\"&$AE$8,$F$104,$F$105,CONFIGURATION!$B$10,\"BMA\",CONFIGURATION!$B$1,\"bscr\",CONFIGURATION!$B$12)","v":"Mapped"},null,{"$f":"XBRLMap(P14,P$106&\".\"&$AE14&\".\"&$P$107&\".\"&$AE$8,$D$104,$D$105,CONFIGURATION!$B$10,\"BMA\",CONFIGURATION!$B$1,\"bscr\",CONFIGURATION!$B$12)","v":"Mapped"},null,{"$f":"XBRLMap(R14,R$106&\".\"&$AE14&\".\"&$R$107&\".\"&$AE$8,$F$104,$F$105,CONFIGURATION!$B$10,\"BMA\",CONFIGURATION!$B$1,\"bscr\",CONFIGURATION!$B$12)","v":"Mapped"},null,null,null,null,null,{"$f":"XBRLMap(X14,X$106&\".\"&$AE14&\".\"&$X$107&\".\"&$AE$8,$D$104,$D$105,CONFIGURATION!$B$10,\"BMA\",CONFIGURATION!$B$1,\"bscr\",CONFIGURATION!$B$12)","v":"Mapped"},null,{"$f":"XBRLMap(Z14,Z$106&\".\"&$AE14&\".\"&$Z$107&\".\"&$AE$8,$F$104,$F$105,CONFIGURATION!$B$10,\"BMA\",CONFIGURATION!$B$1,\"bscr\",CONFIGURATION!$B$12)","v":"Mapped"}]
[null,null,null,{"$f":"XBRLMap(D15,D$106&\".\"&$AE15&\".\"&$D$107&\".\"&$AE$8,$D$104,$D$105,CONFIGURATION!$B$10,\"BMA\",CONFIGURATION!$B$1,\"bscr\",CONFIGURATION!$B$12)","v":"Mapped"},null,{"$f":"XBRLMap(F15,F$106&\".\"&$AE15&\".\"&$F$107&\".\"&$AE$8,$F$104,$F$105,CONFIGURATION!$B$10,\"BMA\",CONFIGURATION!$B$1,\"bscr\",CONFIGURATION!$B$12)","v":"Mapped"},null,{"$f":"XBRLMap(H15,H$106&\".\"&$AE15&\".\"&$H$107&\".\"&$AE$8,$D$104,$D$105,CONFIGURATION!$B$10,\"BMA\",CONFIGURATION!$B$1,\"bscr\",CONFIGURATION!$B$12)","v":"Mapped"},null,{"$f":"XBRLMap(J15,J$106&\".\"&$AE15&\".\"&$J$107&\".\"&$AE$8,$F$104,$F$105,CONFIGURATION!$B$10,\"BMA\",CONFIGURATION!$B$1,\"bscr\",CONFIGURATION!$B$12)","v":"Mapped"},null,{"$f":"XBRLMap(L15,L$106&\".\"&$AE15&\".\"&$L$107&\".\"&$AE$8,$D$104,$D$105,CONFIGURATION!$B$10,\"BMA\",CONFIGURATION!$B$1,\"bscr\",CONFIGURATION!$B$12)","v":"Mapped"},null,{"$f":"XBRLMap(N15,N$106&\".\"&$AE15&\".\"&$N$107&\".\"&$AE$8,$F$104,$F$105,CONFIGURATION!$B$10,\"BMA\",CONFIGURATION!$B$1,\"bscr\",CONFIGURATION!$B$12)","v":"Mapped"},null,{"$f":"XBRLMap(P15,P$106&\".\"&$AE15&\".\"&$P$107&\".\"&$AE$8,$D$104,$D$105,CONFIGURATION!$B$10,\"BMA\",CONFIGURATION!$B$1,\"bscr\",CONFIGURATION!$B$12)","v":"Mapped"},null,{"$f":"XBRLMap(R15,R$106&\".\"&$AE15&\".\"&$R$107&\".\"&$AE$8,$F$104,$F$105,CONFIGURATION!$B$10,\"BMA\",CONFIGURATION!$B$1,\"bscr\",CONFIGURATION!$B$12)","v":"Mapped"},null,null,null,null,null,{"$f":"XBRLMap(X15,X$106&\".\"&$AE15&\".\"&$X$107&\".\"&$AE$8,$D$104,$D$105,CONFIGURATION!$B$10,\"BMA\",CONFIGURATION!$B$1,\"bscr\",CONFIGURATION!$B$12)","v":"Mapped"},null,{"$f":"XBRLMap(Z15,Z$106&\".\"&$AE15&\".\"&$Z$107&\".\"&$AE$8,$F$104,$F$105,CONFIGURATION!$B$10,\"BMA\",CONFIGURATION!$B$1,\"bscr\",CONFIGURATION!$B$12)","v":"Mapped"}]
[null,null,null,{"$f":"XBRLMap(D16,D$106&\".\"&$AE16&\".\"&$D$107&\".\"&$AE$8,$D$104,$D$105,CONFIGURATION!$B$10,\"BMA\",CONFIGURATION!$B$1,\"bscr\",CONFIGURATION!$B$12)","v":"Mapped"},null,{"$f":"XBRLMap(F16,F$106&\".\"&$AE16&\".\"&$F$107&\".\"&$AE$8,$F$104,$F$105,CONFIGURATION!$B$10,\"BMA\",CONFIGURATION!$B$1,\"bscr\",CONFIGURATION!$B$12)","v":"Mapped"},null,{"$f":"XBRLMap(H16,H$106&\".\"&$AE16&\".\"&$H$107&\".\"&$AE$8,$D$104,$D$105,CONFIGURATION!$B$10,\"BMA\",CONFIGURATION!$B$1,\"bscr\",CONFIGURATION!$B$12)","v":"Mapped"},null,{"$f":"XBRLMap(J16,J$106&\".\"&$AE16&\".\"&$J$107&\".\"&$AE$8,$F$104,$F$105,CONFIGURATION!$B$10,\"BMA\",CONFIGURATION!$B$1,\"bscr\",CONFIGURATION!$B$12)","v":"Mapped"},null,{"$f":"XBRLMap(L16,L$106&\".\"&$AE16&\".\"&$L$107&\".\"&$AE$8,$D$104,$D$105,CONFIGURATION!$B$10,\"BMA\",CONFIGURATION!$B$1,\"bscr\",CONFIGURATION!$B$12)","v":"Mapped"},null,{"$f":"XBRLMap(N16,N$106&\".\"&$AE16&\".\"&$N$107&\".\"&$AE$8,$F$104,$F$105,CONFIGURATION!$B$10,\"BMA\",CONFIGURATION!$B$1,\"bscr\",CONFIGURATION!$B$12)","v":"Mapped"},null,{"$f":"XBRLMap(P16,P$106&\".\"&$AE16&\".\"&$P$107&\".\"&$AE$8,$D$104,$D$105,CONFIGURATION!$B$10,\"BMA\",CONFIGURATION!$B$1,\"bscr\",CONFIGURATION!$B$12)","v":"Mapped"},null,{"$f":"XBRLMap(R16,R$106&\".\"&$AE16&\".\"&$R$107&\".\"&$AE$8,$F$104,$F$105,CONFIGURATION!$B$10,\"BMA\",CONFIGURATION!$B$1,\"bscr\",CONFIGURATION!$B$12)","v":"Mapped"},null,null,null,null,null,{"$f":"XBRLMap(X16,X$106&\".\"&$AE16&\".\"&$X$107&\".\"&$AE$8,$D$104,$D$105,CONFIGURATION!$B$10,\"BMA\",CONFIGURATION!$B$1,\"bscr\",CONFIGURATION!$B$12)","v":"Mapped"},null,{"$f":"XBRLMap(Z16,Z$106&\".\"&$AE16&\".\"&$Z$107&\".\"&$AE$8,$F$104,$F$105,CONFIGURATION!$B$10,\"BMA\",CONFIGURATION!$B$1,\"bscr\",CONFIGURATION!$B$12)","v":"Mapped"}]
[null,null,null,{"$f":"XBRLMap(D17,D$106&\".\"&$AE17&\".\"&$D$107&\".\"&$AE$8,$D$104,$D$105,CONFIGURATION!$B$10,\"BMA\",CONFIGURATION!$B$1,\"bscr\",CONFIGURATION!$B$12)","v":"Mapped"},null,{"$f":"XBRLMap(F17,F$106&\".\"&$AE17&\".\"&$F$107&\".\"&$AE$8,$F$104,$F$105,CONFIGURATION!$B$10,\"BMA\",CONFIGURATION!$B$1,\"bscr\",CONFIGURATION!$B$12)","v":"Mapped"},null,{"$f":"XBRLMap(H17,H$106&\".\"&$AE17&\".\"&$H$107&\".\"&$AE$8,$D$104,$D$105,CONFIGURATION!$B$10,\"BMA\",CONFIGURATION!$B$1,\"bscr\",CONFIGURATION!$B$12)","v":"Mapped"},null,{"$f":"XBRLMap(J17,J$106&\".\"&$AE17&\".\"&$J$107&\".\"&$AE$8,$F$104,$F$105,CONFIGURATION!$B$10,\"BMA\",CONFIGURATION!$B$1,\"bscr\",CONFIGURATION!$B$12)","v":"Mapped"},null,{"$f":"XBRLMap(L17,L$106&\".\"&$AE17&\".\"&$L$107&\".\"&$AE$8,$D$104,$D$105,CONFIGURATION!$B$10,\"BMA\",CONFIGURATION!$B$1,\"bscr\",CONFIGURATION!$B$12)","v":"Mapped"},null,{"$f":"XBRLMap(N17,N$106&\".\"&$AE17&\".\"&$N$107&\".\"&$AE$8,$F$104,$F$105,CONFIGURATION!$B$10,\"BMA\",CONFIGURATION!$B$1,\"bscr\",CONFIGURATION!$B$12)","v":"Mapped"},null,{"$f":"XBRLMap(P17,P$106&\".\"&$AE17&\".\"&$P$107&\".\"&$AE$8,$D$104,$D$105,CONFIGURATION!$B$10,\"BMA\",CONFIGURATION!$B$1,\"bscr\",CONFIGURATION!$B$12)","v":"Mapped"},null,{"$f":"XBRLMap(R17,R$106&\".\"&$AE17&\".\"&$R$107&\".\"&$AE$8,$F$104,$F$105,CONFIGURATION!$B$10,\"BMA\",CONFIGURATION!$B$1,\"bscr\",CONFIGURATION!$B$12)","v":"Mapped"},null,null,null,null,null,{"$f":"XBRLMap(X17,X$106&\".\"&$AE17&\".\"&$X$107&\".\"&$AE$8,$D$104,$D$105,CONFIGURATION!$B$10,\"BMA\",CONFIGURATION!$B$1,\"bscr\",CONFIGURATION!$B$12)","v":"Mapped"},null,{"$f":"XBRLMap(Z17,Z$106&\".\"&$AE17&\".\"&$Z$107&\".\"&$AE$8,$F$104,$F$105,CONFIGURATION!$B$10,\"BMA\",CONFIGURATION!$B$1,\"bscr\",CONFIGURATION!$B$12)","v":"Mapped"}]
[null,null,null,{"$f":"XBRLMap(D18,D$106&\".\"&$AE18&\".\"&$D$107&\".\"&$AE$8,$D$104,$D$105,CONFIGURATION!$B$10,\"BMA\",CONFIGURATION!$B$1,\"bscr\",CONFIGURATION!$B$12)","v":"Mapped"},null,{"$f":"XBRLMap(F18,F$106&\".\"&$AE18&\".\"&$F$107&\".\"&$AE$8,$F$104,$F$105,CONFIGURATION!$B$10,\"BMA\",CONFIGURATION!$B$1,\"bscr\",CONFIGURATION!$B$12)","v":"Mapped"},null,{"$f":"XBRLMap(H18,H$106&\".\"&$AE18&\".\"&$H$107&\".\"&$AE$8,$D$104,$D$105,CONFIGURATION!$B$10,\"BMA\",CONFIGURATION!$B$1,\"bscr\",CONFIGURATION!$B$12)","v":"Mapped"},null,{"$f":"XBRLMap(J18,J$106&\".\"&$AE18&\".\"&$J$107&\".\"&$AE$8,$F$104,$F$105,CONFIGURATION!$B$10,\"BMA\",CONFIGURATION!$B$1,\"bscr\",CONFIGURATION!$B$12)","v":"Mapped"},null,{"$f":"XBRLMap(L18,L$106&\".\"&$AE18&\".\"&$L$107&\".\"&$AE$8,$D$104,$D$105,CONFIGURATION!$B$10,\"BMA\",CONFIGURATION!$B$1,\"bscr\",CONFIGURATION!$B$12)","v":"Mapped"},null,{"$f":"XBRLMap(N18,N$106&\".\"&$AE18&\".\"&$N$107&\".\"&$AE$8,$F$104,$F$105,CONFIGURATION!$B$10,\"BMA\",CONFIGURATION!$B$1,\"bscr\",CONFIGURATION!$B$12)","v":"Mapped"},null,{"$f":"XBRLMap(P18,P$106&\".\"&$AE18&\".\"&$P$107&\".\"&$AE$8,$D$104,$D$105,CONFIGURATION!$B$10,\"BMA\",CONFIGURATION!$B$1,\"bscr\",CONFIGURATION!$B$12)","v":"Mapped"},null,{"$f":"XBRLMap(R18,R$106&\".\"&$AE18&\".\"&$R$107&\".\"&$AE$8,$F$104,$F$105,CONFIGURATION!$B$10,\"BMA\",CONFIGURATION!$B$1,\"bscr\",CONFIGURATION!$B$12)","v":"Mapped"},null,null,null,null,null,{"$f":"XBRLMap(X18,X$106&\".\"&$AE18&\".\"&$X$107&\".\"&$AE$8,$D$104,$D$105,CONFIGURATION!$B$10,\"BMA\",CONFIGURATION!$B$1,\"bscr\",CONFIGURATION!$B$12)","v":"Mapped"},null,{"$f":"XBRLMap(Z18,Z$106&\".\"&$AE18&\".\"&$Z$107&\".\"&$AE$8,$F$104,$F$105,CONFIGURATION!$B$10,\"BMA\",CONFIGURATION!$B$1,\"bscr\",CONFIGURATION!$B$12)","v":"Mapped"}]
[null,null,null,{"$f":"XBRLMap(D19,D$106&\".\"&$AE19&\".\"&$D$107&\".\"&$AE$8,$D$104,$D$105,CONFIGURATION!$B$10,\"BMA\",CONFIGURATION!$B$1,\"bscr\",CONFIGURATION!$B$12)","v":"Mapped"},null,{"$f":"XBRLMap(F19,F$106&\".\"&$AE19&\".\"&$F$107&\".\"&$AE$8,$F$104,$F$105,CONFIGURATION!$B$10,\"BMA\",CONFIGURATION!$B$1,\"bscr\",CONFIGURATION!$B$12)","v":"Mapped"},null,{"$f":"XBRLMap(H19,H$106&\".\"&$AE19&\".\"&$H$107&\".\"&$AE$8,$D$104,$D$105,CONFIGURATION!$B$10,\"BMA\",CONFIGURATION!$B$1,\"bscr\",CONFIGURATION!$B$12)","v":"Mapped"},null,{"$f":"XBRLMap(J19,J$106&\".\"&$AE19&\".\"&$J$107&\".\"&$AE$8,$F$104,$F$105,CONFIGURATION!$B$10,\"BMA\",CONFIGURATION!$B$1,\"bscr\",CONFIGURATION!$B$12)","v":"Mapped"},null,{"$f":"XBRLMap(L19,L$106&\".\"&$AE19&\".\"&$L$107&\".\"&$AE$8,$D$104,$D$105,CONFIGURATION!$B$10,\"BMA\",CONFIGURATION!$B$1,\"bscr\",CONFIGURATION!$B$12)","v":"Mapped"},null,{"$f":"XBRLMap(N19,N$106&\".\"&$AE19&\".\"&$N$107&\".\"&$AE$8,$F$104,$F$105,CONFIGURATION!$B$10,\"BMA\",CONFIGURATION!$B$1,\"bscr\",CONFIGURATION!$B$12)","v":"Mapped"},null,{"$f":"XBRLMap(P19,P$106&\".\"&$AE19&\".\"&$P$107&\".\"&$AE$8,$D$104,$D$105,CONFIGURATION!$B$10,\"BMA\",CONFIGURATION!$B$1,\"bscr\",CONFIGURATION!$B$12)","v":"Mapped"},null,{"$f":"XBRLMap(R19,R$106&\".\"&$AE19&\".\"&$R$107&\".\"&$AE$8,$F$104,$F$105,CONFIGURATION!$B$10,\"BMA\",CONFIGURATION!$B$1,\"bscr\",CONFIGURATION!$B$12)","v":"Mapped"},null,null,null,null,null,{"$f":"XBRLMap(X19,X$106&\".\"&$AE19&\".\"&$X$107&\".\"&$AE$8,$D$104,$D$105,CONFIGURATION!$B$10,\"BMA\",CONFIGURATION!$B$1,\"bscr\",CONFIGURATION!$B$12)","v":"Mapped"},null,{"$f":"XBRLMap(Z19,Z$106&\".\"&$AE19&\".\"&$Z$107&\".\"&$AE$8,$F$104,$F$105,CONFIGURATION!$B$10,\"BMA\",CONFIGURATION!$B$1,\"bscr\",CONFIGURATION!$B$12)","v":"Mapped"}]
[null,null,null,{"$f":"XBRLMap(D20,D$106&\".\"&$AE20&\".\"&$D$107&\".\"&$AE$8,$D$104,$D$105,CONFIGURATION!$B$10,\"BMA\",CONFIGURATION!$B$1,\"bscr\",CONFIGURATION!$B$12)","v":"Mapped"},null,{"$f":"XBRLMap(F20,F$106&\".\"&$AE20&\".\"&$F$107&\".\"&$AE$8,$F$104,$F$105,CONFIGURATION!$B$10,\"BMA\",CONFIGURATION!$B$1,\"bscr\",CONFIGURATION!$B$12)","v":"Mapped"},null,{"$f":"XBRLMap(H20,H$106&\".\"&$AE20&\".\"&$H$107&\".\"&$AE$8,$D$104,$D$105,CONFIGURATION!$B$10,\"BMA\",CONFIGURATION!$B$1,\"bscr\",CONFIGURATION!$B$12)","v":"Mapped"},null,{"$f":"XBRLMap(J20,J$106&\".\"&$AE20&\".\"&$J$107&\".\"&$AE$8,$F$104,$F$105,CONFIGURATION!$B$10,\"BMA\",CONFIGURATION!$B$1,\"bscr\",CONFIGURATION!$B$12)","v":"Mapped"},null,{"$f":"XBRLMap(L20,L$106&\".\"&$AE20&\".\"&$L$107&\".\"&$AE$8,$D$104,$D$105,CONFIGURATION!$B$10,\"BMA\",CONFIGURATION!$B$1,\"bscr\",CONFIGURATION!$B$12)","v":"Mapped"},null,{"$f":"XBRLMap(N20,N$106&\".\"&$AE20&\".\"&$N$107&\".\"&$AE$8,$F$104,$F$105,CONFIGURATION!$B$10,\"BMA\",CONFIGURATION!$B$1,\"bscr\",CONFIGURATION!$B$12)","v":"Mapped"},null,{"$f":"XBRLMap(P20,P$106&\".\"&$AE20&\".\"&$P$107&\".\"&$AE$8,$D$104,$D$105,CONFIGURATION!$B$10,\"BMA\",CONFIGURATION!$B$1,\"bscr\",CONFIGURATION!$B$12)","v":"Mapped"},null,{"$f":"XBRLMap(R20,R$106&\".\"&$AE20&\".\"&$R$107&\".\"&$AE$8,$F$104,$F$105,CONFIGURATION!$B$10,\"BMA\",CONFIGURATION!$B$1,\"bscr\",CONFIGURATION!$B$12)","v":"Mapped"},null,null,null,null,null,{"$f":"XBRLMap(X20,X$106&\".\"&$AE20&\".\"&$X$107&\".\"&$AE$8,$D$104,$D$105,CONFIGURATION!$B$10,\"BMA\",CONFIGURATION!$B$1,\"bscr\",CONFIGURATION!$B$12)","v":"Mapped"},null,{"$f":"XBRLMap(Z20,Z$106&\".\"&$AE20&\".\"&$Z$107&\".\"&$AE$8,$F$104,$F$105,CONFIGURATION!$B$10,\"BMA\",CONFIGURATION!$B$1,\"bscr\",CONFIGURATION!$B$12)","v":"Mapped"}]
[null,null,null,{"$f":"XBRLMap(D21,D$106&\".\"&$AE21&\".\"&$D$107&\".\"&$AE$8,$D$104,$D$105,CONFIGURATION!$B$10,\"BMA\",CONFIGURATION!$B$1,\"bscr\",CONFIGURATION!$B$12)","v":"Mapped"},null,{"$f":"XBRLMap(F21,F$106&\".\"&$AE21&\".\"&$F$107&\".\"&$AE$8,$F$104,$F$105,CONFIGURATION!$B$10,\"BMA\",CONFIGURATION!$B$1,\"bscr\",CONFIGURATION!$B$12)","v":"Mapped"},null,{"$f":"XBRLMap(H21,H$106&\".\"&$AE21&\".\"&$H$107&\".\"&$AE$8,$D$104,$D$105,CONFIGURATION!$B$10,\"BMA\",CONFIGURATION!$B$1,\"bscr\",CONFIGURATION!$B$12)","v":"Mapped"},null,{"$f":"XBRLMap(J21,J$106&\".\"&$AE21&\".\"&$J$107&\".\"&$AE$8,$F$104,$F$105,CONFIGURATION!$B$10,\"BMA\",CONFIGURATION!$B$1,\"bscr\",CONFIGURATION!$B$12)","v":"Mapped"},null,{"$f":"XBRLMap(L21,L$106&\".\"&$AE21&\".\"&$L$107&\".\"&$AE$8,$D$104,$D$105,CONFIGURATION!$B$10,\"BMA\",CONFIGURATION!$B$1,\"bscr\",CONFIGURATION!$B$12)","v":"Mapped"},null,{"$f":"XBRLMap(N21,N$106&\".\"&$AE21&\".\"&$N$107&\".\"&$AE$8,$F$104,$F$105,CONFIGURATION!$B$10,\"BMA\",CONFIGURATION!$B$1,\"bscr\",CONFIGURATION!$B$12)","v":"Mapped"},null,{"$f":"XBRLMap(P21,P$106&\".\"&$AE21&\".\"&$P$107&\".\"&$AE$8,$D$104,$D$105,CONFIGURATION!$B$10,\"BMA\",CONFIGURATION!$B$1,\"bscr\",CONFIGURATION!$B$12)","v":"Mapped"},null,{"$f":"XBRLMap(R21,R$106&\".\"&$AE21&\".\"&$R$107&\".\"&$AE$8,$F$104,$F$105,CONFIGURATION!$B$10,\"BMA\",CONFIGURATION!$B$1,\"bscr\",CONFIGURATION!$B$12)","v":"Mapped"},null,null,null,null,null,{"$f":"XBRLMap(X21,X$106&\".\"&$AE21&\".\"&$X$107&\".\"&$AE$8,$D$104,$D$105,CONFIGURATION!$B$10,\"BMA\",CONFIGURATION!$B$1,\"bscr\",CONFIGURATION!$B$12)","v":"Mapped"},null,{"$f":"XBRLMap(Z21,Z$106&\".\"&$AE21&\".\"&$Z$107&\".\"&$AE$8,$F$104,$F$105,CONFIGURATION!$B$10,\"BMA\",CONFIGURATION!$B$1,\"bscr\",CONFIGURATION!$B$12)","v":"Mapped"}]
[]
[null,null,null,{"$f":"XBRLMap(D27,D$106&\".\"&$AE27&\".\"&$D$107&\".\"&$AE$8,$D$104,$D$105,CONFIGURATION!$B$10,\"BMA\",CONFIGURATION!$B$1,\"bscr\",CONFIGURATION!$B$12)","v":"Mapped"},null,{"$f":"XBRLMap(F27,F$106&\".\"&$AE27&\".\"&$F$107&\".\"&$AE$8,$F$104,$F$105,CONFIGURATION!$B$10,\"BMA\",CONFIGURATION!$B$1,\"bscr\",CONFIGURATION!$B$12)","v":"Mapped"},null,{"$f":"XBRLMap(H27,H$106&\".\"&$AE27&\".\"&$H$107&\".\"&$AE$8,$D$104,$D$105,CONFIGURATION!$B$10,\"BMA\",CONFIGURATION!$B$1,\"bscr\",CONFIGURATION!$B$12)","v":"Mapped"},null,{"$f":"XBRLMap(J27,J$106&\".\"&$AE27&\".\"&$J$107&\".\"&$AE$8,$F$104,$F$105,CONFIGURATION!$B$10,\"BMA\",CONFIGURATION!$B$1,\"bscr\",CONFIGURATION!$B$12)","v":"Mapped"},null,{"$f":"XBRLMap(L27,L$106&\".\"&$AE27&\".\"&$L$107&\".\"&$AE$8,$D$104,$D$105,CONFIGURATION!$B$10,\"BMA\",CONFIGURATION!$B$1,\"bscr\",CONFIGURATION!$B$12)","v":"Mapped"},null,{"$f":"XBRLMap(N27,N$106&\".\"&$AE27&\".\"&$N$107&\".\"&$AE$8,$F$104,$F$105,CONFIGURATION!$B$10,\"BMA\",CONFIGURATION!$B$1,\"bscr\",CONFIGURATION!$B$12)","v":"Mapped"},null,{"$f":"XBRLMap(P27,P$106&\".\"&$AE27&\".\"&$P$107&\".\"&$AE$8,$D$104,$D$105,CONFIGURATION!$B$10,\"BMA\",CONFIGURATION!$B$1,\"bscr\",CONFIGURATION!$B$12)","v":"Mapped"},null,{"$f":"XBRLMap(R27,R$106&\".\"&$AE27&\".\"&$R$107&\".\"&$AE$8,$F$104,$F$105,CONFIGURATION!$B$10,\"BMA\",CONFIGURATION!$B$1,\"bscr\",CONFIGURATION!$B$12)","v":"Mapped"},null,null,null,null,null,{"$f":"XBRLMap(X27,X$106&\".\"&$AE27&\".\"&$X$107&\".\"&$AE$8,$D$104,$D$105,CONFIGURATION!$B$10,\"BMA\",CONFIGURATION!$B$1,\"bscr\",CONFIGURATION!$B$12)","v":"Mapped"},null,{"$f":"XBRLMap(Z27,Z$106&\".\"&$AE27&\".\"&$Z$107&\".\"&$AE$8,$F$104,$F$105,CONFIGURATION!$B$10,\"BMA\",CONFIGURATION!$B$1,\"bscr\",CONFIGURATION!$B$12)","v":"Mapped"}]
[]
[null,null,null,"brrt_QuotedInvestmentsEquitiesCommonStocks",null,"brrt_QuotedInvestmentsEquitiesCommonStocks",null,null,null,null,null,"brrt_QuotedInvestmentsEquitiesMutualFunds",null,"brrt_QuotedInvestmentsEquitiesMutualFunds",null,null,null,null,null,null,null,null,null,"brrt_QuotedInvestmentsEquitiesCommonStocksMutualFunds",null,"brrt_QuotedInvestmentsEquitiesCommonStocksMutualFunds"]
[null,null,null,"brrt_UnquotedInvestmentsEquitiesCommonStocks",null,"brrt_UnquotedInvestmentsEquitiesCommonStocks",null,null,null,null,null,"brrt_UnquotedInvestmentsEquitiesMutualFunds",null,"brrt_UnquotedInvestmentsEquitiesMutualFunds",null,null,null,null,null,null,null,null,null,"brrt_UnquotedInvestmentsEquitiesCommonStocksMutualFunds",null,"brrt_UnquotedInvestmentsEquitiesCommonStocksMutualFunds"]
[null,null,null,"brrt_EquitiesCommonStocks",null,"brrt_EquitiesCommonStocks",null,"brrt_EquitiesPreferredStocks",null,"brrt_EquitiesPreferredStocks",null,"brrt_EquitiesMutualFunds",null,"brrt_EquitiesMutualFunds",null,null,null,null,null,null,null,null,null,"brrt_Equities",null,"brrt_Equities"]
[null,null,null,null,null,null,null,{"$f":"XBRLMap(#REF!,H$122&\".\"&#REF!&\".\"&$AE$8,$D$104,$D$105,CONFIGURATION!$B$10,\"BMA\",CONFIGURATION!$B$1,\"bscr\",CONFIGURATION!$B$12)","v":{"$error":"#VALUE!"}},null,{"$f":"XBRLMap(#REF!,J$122&\".\"&#REF!&\".\"&$AE$8,$F$104,$F$105,CONFIGURATION!$B$10,\"BMA\",CONFIGURATION!$B$1,\"bscr\",CONFIGURATION!$B$12)","v":{"$error":"#VALUE!"}},null,null,null,null,null,null,null,null,null,null,null,null,null,"The same data point as in column H",null,"The same data point as in column J"]
[null,null,null,null,null,null,null,{"$f":"XBRLMap(#REF!,H$122&\".\"&#REF!&\".\"&$AE$8,$D$104,$D$105,CONFIGURATION!$B$10,\"BMA\",CONFIGURATION!$B$1,\"bscr\",CONFIGURATION!$B$12)","v":{"$error":"#VALUE!"}},null,{"$f":"XBRLMap(#REF!,J$122&\".\"&#REF!&\".\"&$AE$8,$F$104,$F$105,CONFIGURATION!$B$10,\"BMA\",CONFIGURATION!$B$1,\"bscr\",CONFIGURATION!$B$12)","v":{"$error":"#VALUE!"}},null,null,null,null,null,null,null,null,null,null,null,null,null,"The same data point as in column H",null,"The same data point as in column J"]
[null,null,null,null,null,null,null,{"$f":"XBRLMap(#REF!,H$122&\".\"&#REF!&\".\"&$AE$8,$D$104,$D$105,CONFIGURATION!$B$10,\"BMA\",CONFIGURATION!$B$1,\"bscr\",CONFIGURATION!$B$12)","v":{"$error":"#VALUE!"}},null,{"$f":"XBRLMap(#REF!,J$122&\".\"&#REF!&\".\"&$AE$8,$F$104,$F$105,CONFIGURATION!$B$10,\"BMA\",CONFIGURATION!$B$1,\"bscr\",CONFIGURATION!$B$12)","v":{"$error":"#VALUE!"}},null,null,null,null,null,null,null,null,null,null,null,null,null,"The same data point as in column H",null,"The same data point as in column J"]
[null,null,null,null,null,null,null,{"$f":"XBRLMap(#REF!,H$122&\".\"&#REF!&\".\"&$AE$8,$D$104,$D$105,CONFIGURATION!$B$10,\"BMA\",CONFIGURATION!$B$1,\"bscr\",CONFIGURATION!$B$12)","v":{"$error":"#VALUE!"}},null,{"$f":"XBRLMap(#REF!,J$122&\".\"&#REF!&\".\"&$AE$8,$F$104,$F$105,CONFIGURATION!$B$10,\"BMA\",CONFIGURATION!$B$1,\"bscr\",CONFIGURATION!$B$12)","v":{"$error":"#VALUE!"}},null,null,null,null,null,null,null,null,null,null,null,null,null,"The same data point as in column H",null,"The same data point as in column J"]
[null,null,null,null,null,null,null,{"$f":"XBRLMap(#REF!,H$122&\".\"&#REF!&\".\"&$AE$8,$D$104,$D$105,CONFIGURATION!$B$10,\"BMA\",CONFIGURATION!$B$1,\"bscr\",CONFIGURATION!$B$12)","v":{"$error":"#VALUE!"}},null,{"$f":"XBRLMap(#REF!,J$122&\".\"&#REF!&\".\"&$AE$8,$F$104,$F$105,CONFIGURATION!$B$10,\"BMA\",CONFIGURATION!$B$1,\"bscr\",CONFIGURATION!$B$12)","v":{"$error":"#VALUE!"}},null,null,null,null,null,null,null,null,null,null,null,null,null,"The same data point as in column H",null,"The same data point as in column J"]
[null,null,null,null,null,null,null,{"$f":"XBRLMap(#REF!,H$122&\".\"&#REF!&\".\"&$AE$8,$D$104,$D$105,CONFIGURATION!$B$10,\"BMA\",CONFIGURATION!$B$1,\"bscr\",CONFIGURATION!$B$12)","v":{"$error":"#VALUE!"}},null,{"$f":"XBRLMap(#REF!,J$122&\".\"&#REF!&\".\"&$AE$8,$F$104,$F$105,CONFIGURATION!$B$10,\"BMA\",CONFIGURATION!$B$1,\"bscr\",CONFIGURATION!$B$12)","v":{"$error":"#VALUE!"}},null,null,null,null,null,null,null,null,null,null,null,null,null,"The same data point as in column H",null,"The same data point as in column J"]
[null,null,null,null,null,null,null,{"$f":"XBRLMap(#REF!,H$122&\".\"&#REF!&\".\"&$AE$8,$D$104,$D$105,CONFIGURATION!$B$10,\"BMA\",CONFIGURATION!$B$1,\"bscr\",CONFIGURATION!$B$12)","v":{"$error":"#VALUE!"}},null,{"$f":"XBRLMap(#REF!,J$122&\".\"&#REF!&\".\"&$AE$8,$F$104,$F$105,CONFIGURATION!$B$10,\"BMA\",CONFIGURATION!$B$1,\"bscr\",CONFIGURATION!$B$12)","v":{"$error":"#VALUE!"}},null,null,null,null,null,null,null,null,null,null,null,null,null,"The same data point as in column H",null,"The same data point as in column J"]
[null,null,null,null,null,null,null,{"$f":"XBRLMap(#REF!,H$122&\".\"&#REF!&\".\"&$AE$8,$D$104,$D$105,CONFIGURATION!$B$10,\"BMA\",CONFIGURATION!$B$1,\"bscr\",CONFIGURATION!$B$12)","v":{"$error":"#VALUE!"}},null,{"$f":"XBRLMap(#REF!,J$122&\".\"&#REF!&\".\"&$AE$8,$F$104,$F$105,CONFIGURATION!$B$10,\"BMA\",CONFIGURATION!$B$1,\"bscr\",CONFIGURATION!$B$12)","v":{"$error":"#VALUE!"}},null,null,null,null,null,null,null,null,null,null,null,null,null,"The same data point as in column H",null,"The same data point as in column J"]
[null,null,null,{"$f":"XBRLMap(#REF!,D$120&\".\"&$AE$8,$D$104,$D$105,CONFIGURATION!$B$10,\"BMA\",CONFIGURATION!$B$1,\"bscr\",CONFIGURATION!$B$12)","v":{"$error":"#VALUE!"}},null,{"$f":"XBRLMap(#REF!,F$120&\".\"&$AE$8,$F$104,$F$105,CONFIGURATION!$B$10,\"BMA\",CONFIGURATION!$B$1,\"bscr\",CONFIGURATION!$B$12)","v":{"$error":"#VALUE!"}},null,null,null,null,null,{"$f":"XBRLMap(#REF!,L$120&\".\"&$AE$8,$D$104,$D$105,CONFIGURATION!$B$10,\"BMA\",CONFIGURATION!$B$1,\"bscr\",CONFIGURATION!$B$12)","v":{"$error":"#VALUE!"}},null,{"$f":"XBRLMap(#REF!,N$120&\".\"&$AE$8,$F$104,$F$105,CONFIGURATION!$B$10,\"BMA\",CONFIGURATION!$B$1,\"bscr\",CONFIGURATION!$B$12)","v":{"$error":"#VALUE!"}},null,null,null,null,null,null,null,null,null,{"$f":"XBRLMap(#REF!,X$120&\".\"&$AE$8,$D$104,$D$105,CONFIGURATION!$B$10,\"BMA\",CONFIGURATION!$B$1,\"bscr\",CONFIGURATION!$B$12)","v":{"$error":"#VALUE!"}},null,{"$f":"XBRLMap(#REF!,Z$120&\".\"&$AE$8,$F$104,$F$105,CONFIGURATION!$B$10,\"BMA\",CONFIGURATION!$B$1,\"bscr\",CONFIGURATION!$B$12)","v":{"$error":"#VALUE!"}}]
[null,null,null,{"$f":"XBRLMap(#REF!,D$121&\".\"&$AE$8,$D$104,$D$105,CONFIGURATION!$B$10,\"BMA\",CONFIGURATION!$B$1,\"bscr\",CONFIGURATION!$B$12)","v":{"$error":"#VALUE!"}},null,{"$f":"XBRLMap(#REF!,F$121&\".\"&$AE$8,$F$104,$F$105,CONFIGURATION!$B$10,\"BMA\",CONFIGURATION!$B$1,\"bscr\",CONFIGURATION!$B$12)","v":{"$error":"#VALUE!"}},null,null,null,null,null,{"$f":"XBRLMap(#REF!,L$121&\".\"&$AE$8,$D$104,$D$105,CONFIGURATION!$B$10,\"BMA\",CONFIGURATION!$B$1,\"bscr\",CONFIGURATION!$B$12)","v":{"$error":"#VALUE!"}},null,{"$f":"XBRLMap(#REF!,N$121&\".\"&$AE$8,$F$104,$F$105,CONFIGURATION!$B$10,\"BMA\",CONFIGURATION!$B$1,\"bscr\",CONFIGURATION!$B$12)","v":{"$error":"#VALUE!"}},null,null,null,null,null,null,null,null,null,{"$f":"XBRLMap(#REF!,X$121&\".\"&$AE$8,$D$104,$D$105,CONFIGURATION!$B$10,\"BMA\",CONFIGURATION!$B$1,\"bscr\",CONFIGURATION!$B$12)","v":{"$error":"#VALUE!"}},null,{"$f":"XBRLMap(#REF!,Z$121&\".\"&$AE$8,$F$104,$F$105,CONFIGURATION!$B$10,\"BMA\",CONFIGURATION!$B$1,\"bscr\",CONFIGURATION!$B$12)","v":{"$error":"#VALUE!"}}]
[]
[null,null,null,{"$f":"XBRLMap(#REF!,D$122&\".\"&$AE$8,$D$104,$D$105,CONFIGURATION!$B$10,\"BMA\",CONFIGURATION!$B$1,\"bscr\",CONFIGURATION!$B$12)","v":{"$error":"#VALUE!"}},null,{"$f":"XBRLMap(#REF!,F$122&\".\"&$AE$8,$F$104,$F$105,CONFIGURATION!$B$10,\"BMA\",CONFIGURATION!$B$1,\"bscr\",CONFIGURATION!$B$12)","v":{"$error":"#VALUE!"}},null,{"$f":"XBRLMap(#REF!,H$122&\".\"&#REF!&\".\"&$AE$8,$D$104,$D$105,CONFIGURATION!$B$10,\"BMA\",CONFIGURATION!$B$1,\"bscr\",CONFIGURATION!$B$12)","v":{"$error":"#VALUE!"}},null,{"$f":"XBRLMap(#REF!,J$122&\".\"&#REF!&\".\"&$AE$8,$F$104,$F$105,CONFIGURATION!$B$10,\"BMA\",CONFIGURATION!$B$1,\"bscr\",CONFIGURATION!$B$12)","v":{"$error":"#VALUE!"}},null,{"$f":"XBRLMap(#REF!,L$122&\".\"&$AE$8,$D$104,$D$105,CONFIGURATION!$B$10,\"BMA\",CONFIGURATION!$B$1,\"bscr\",CONFIGURATION!$B$12)","v":{"$error":"#VALUE!"}},null,{"$f":"XBRLMap(#REF!,N$122&\".\"&$AE$8,$F$104,$F$105,CONFIGURATION!$B$10,\"BMA\",CONFIGURATION!$B$1,\"bscr\",CONFIGURATION!$B$12)","v":{"$error":"#VALUE!"}},null,null,null,null,null,null,null,null,null,{"$f":"XBRLMap(#REF!,X$122&\".\"&$AE$8,$D$104,$D$105,CONFIGURATION!$B$10,\"BMA\",CONFIGURATION!$B$1,\"bscr\",CONFIGURATION!$B$12)","v":{"$error":"#VALUE!"}},null,{"$f":"XBRLMap(#REF!,Z$122&\".\"&$AE$8,$F$104,$F$105,CONFIGURATION!$B$10,\"BMA\",CONFIGURATION!$B$1,\"bscr\",CONFIGURATION!$B$12)","v":{"$error":"#VALUE!"}}]
[]
[]
[]
[null,null,null,null,null,null,null,null,null,null,null,"brrt_BondsAndDebentures",null,"brrt_BondsAndDebentures",null,"brrt_BondsAndDebentures",null,"brrt_BondsAndDebentures"]
[null,null,null,null,null,null,null,null,null,null,null,"brrt_SecurityTypeAxis_brrt_ResidentialMortgageBackedSecuritiesMember",null,"brrt_SecurityTypeAxis_brrt_ResidentialMortgageBackedSecuritiesMember",null,"brrt_SecurityTypeAxis_brrt_CommercialMortgageBackedSecuritiesAssetBackedSecuritiesMember",null,"brrt_SecurityTypeAxis_brrt_CommercialMortgageBackedSecuritiesAssetBackedSecuritiesMember"]
[null,null,null,null,null,null,null,null,null,null,null,"brrt_ClassificationAxis_brrt_OriginalClassificationMember",null,"brrt_ClassificationAxis_brrt_RevisedClassificationMember",null,"brrt_ClassificationAxis_brrt_OriginalClassificationMember",null,"brrt_ClassificationAxis_brrt_RevisedClassificationMember"]
[null,null,null,null,null,null,null,null,null,null,null,{"$f":"XBRLMap(#REF!,L$138&\".\"&#REF!&\".\"&$L$139&\".\"&$L$140&\".\"&$AE$8,$D$104,$D$105,CONFIGURATION!$B$10,\"BMA\",CONFIGURATION!$B$1,\"bscr\",CONFIGURATION!$B$12)","v":{"$error":"#VALUE!"}},null,{"$f":"XBRLMap(#REF!,N$138&\".\"&#REF!&\".\"&$N$139&\".\"&$N$140&\".\"&$AE$8,$D$104,$D$105,CONFIGURATION!$B$10,\"BMA\",CONFIGURATION!$B$1,\"bscr\",CONFIGURATION!$B$12)","v":{"$error":"#VALUE!"}},null,{"$f":"XBRLMap(#REF!,P$138&\".\"&#REF!&\".\"&$P$139&\".\"&$P$140&\".\"&$AE$8,$D$104,$D$105,CONFIGURATION!$B$10,\"BMA\",CONFIGURATION!$B$1,\"bscr\",CONFIGURATION!$B$12)","v":{"$error":"#VALUE!"}},null,{"$f":"XBRLMap(#REF!,R$138&\".\"&#REF!&\".\"&$R$139&\".\"&$R$140&\".\"&$AE$8,$D$104,$D$105,CONFIGURATION!$B$10,\"BMA\",CONFIGURATION!$B$1,\"bscr\",CONFIGURATION!$B$12)","v":{"$error":"#VALUE!"}}]
[null,null,null,null,null,null,null,null,null,null,null,{"$f":"XBRLMap(#REF!,L$138&\".\"&#REF!&\".\"&$L$139&\".\"&$L$140&\".\"&$AE$8,$D$104,$D$105,CONFIGURATION!$B$10,\"BMA\",CONFIGURATION!$B$1,\"bscr\",CONFIGURATION!$B$12)","v":{"$error":"#VALUE!"}},null,{"$f":"XBRLMap(#REF!,N$138&\".\"&#REF!&\".\"&$N$139&\".\"&$N$140&\".\"&$AE$8,$D$104,$D$105,CONFIGURATION!$B$10,\"BMA\",CONFIGURATION!$B$1,\"bscr\",CONFIGURATION!$B$12)","v":{"$error":"#VALUE!"}},null,{"$f":"XBRLMap(#REF!,P$138&\".\"&#REF!&\".\"&$P$139&\".\"&$P$140&\".\"&$AE$8,$D$104,$D$105,CONFIGURATION!$B$10,\"BMA\",CONFIGURATION!$B$1,\"bscr\",CONFIGURATION!$B$12)","v":{"$error":"#VALUE!"}},null,{"$f":"XBRLMap(#REF!,R$138&\".\"&#REF!&\".\"&$R$139&\".\"&$R$140&\".\"&$AE$8,$D$104,$D$105,CONFIGURATION!$B$10,\"BMA\",CONFIGURATION!$B$1,\"bscr\",CONFIGURATION!$B$12)","v":{"$error":"#VALUE!"}}]
[null,null,null,null,null,null,null,null,null,null,null,{"$f":"XBRLMap(#REF!,L$138&\".\"&#REF!&\".\"&$L$139&\".\"&$L$140&\".\"&$AE$8,$D$104,$D$105,CONFIGURATION!$B$10,\"BMA\",CONFIGURATION!$B$1,\"bscr\",CONFIGURATION!$B$12)","v":{"$error":"#VALUE!"}},null,{"$f":"XBRLMap(#REF!,N$138&\".\"&#REF!&\".\"&$N$139&\".\"&$N$140&\".\"&$AE$8,$D$104,$D$105,CONFIGURATION!$B$10,\"BMA\",CONFIGURATION!$B$1,\"bscr\",CONFIGURATION!$B$12)","v":{"$error":"#VALUE!"}},null,{"$f":"XBRLMap(#REF!,P$138&\".\"&#REF!&\".\"&$P$139&\".\"&$P$140&\".\"&$AE$8,$D$104,$D$105,CONFIGURATION!$B$10,\"BMA\",CONFIGURATION!$B$1,\"bscr\",CONFIGURATION!$B$12)","v":{"$error":"#VALUE!"}},null,{"$f":"XBRLMap(#REF!,R$138&\".\"&#REF!&\".\"&$R$139&\".\"&$R$140&\".\"&$AE$8,$D$104,$D$105,CONFIGURATION!$B$10,\"BMA\",CONFIGURATION!$B$1,\"bscr\",CONFIGURATION!$B$12)","v":{"$error":"#VALUE!"}}]
[null,null,null,null,null,null,null,null,null,null,null,{"$f":"XBRLMap(#REF!,L$138&\".\"&#REF!&\".\"&$L$139&\".\"&$L$140&\".\"&$AE$8,$D$104,$D$105,CONFIGURATION!$B$10,\"BMA\",CONFIGURATION!$B$1,\"bscr\",CONFIGURATION!$B$12)","v":{"$error":"#VALUE!"}},null,{"$f":"XBRLMap(#REF!,N$138&\".\"&#REF!&\".\"&$N$139&\".\"&$N$140&\".\"&$AE$8,$D$104,$D$105,CONFIGURATION!$B$10,\"BMA\",CONFIGURATION!$B$1,\"bscr\",CONFIGURATION!$B$12)","v":{"$error":"#VALUE!"}},null,{"$f":"XBRLMap(#REF!,P$138&\".\"&#REF!&\".\"&$P$139&\".\"&$P$140&\".\"&$AE$8,$D$104,$D$105,CONFIGURATION!$B$10,\"BMA\",CONFIGURATION!$B$1,\"bscr\",CONFIGURATION!$B$12)","v":{"$error":"#VALUE!"}},null,{"$f":"XBRLMap(#REF!,R$138&\".\"&#REF!&\".\"&$R$139&\".\"&$R$140&\".\"&$AE$8,$D$104,$D$105,CONFIGURATION!$B$10,\"BMA\",CONFIGURATION!$B$1,\"bscr\",CONFIGURATION!$B$12)","v":{"$error":"#VALUE!"}}]
[null,null,null,null,null,null,null,null,null,null,null,{"$f":"XBRLMap(#REF!,L$138&\".\"&#REF!&\".\"&$L$139&\".\"&$L$140&\".\"&$AE$8,$D$104,$D$105,CONFIGURATION!$B$10,\"BMA\",CONFIGURATION!$B$1,\"bscr\",CONFIGURATION!$B$12)","v":{"$error":"#VALUE!"}},null,{"$f":"XBRLMap(#REF!,N$138&\".\"&#REF!&\".\"&$N$139&\".\"&$N$140&\".\"&$AE$8,$D$104,$D$105,CONFIGURATION!$B$10,\"BMA\",CONFIGURATION!$B$1,\"bscr\",CONFIGURATION!$B$12)","v":{"$error":"#VALUE!"}},null,{"$f":"XBRLMap(#REF!,P$138&\".\"&#REF!&\".\"&$P$139&\".\"&$P$140&\".\"&$AE$8,$D$104,$D$105,CONFIGURATION!$B$10,\"BMA\",CONFIGURATION!$B$1,\"bscr\",CONFIGURATION!$B$12)","v":{"$error":"#VALUE!"}},null,{"$f":"XBRLMap(#REF!,R$138&\".\"&#REF!&\".\"&$R$139&\".\"&$R$140&\".\"&$AE$8,$D$104,$D$105,CONFIGURATION!$B$10,\"BMA\",CONFIGURATION!$B$1,\"bscr\",CONFIGURATION!$B$12)","v":{"$error":"#VALUE!"}}]
[null,null,null,null,null,null,null,null,null,null,null,{"$f":"XBRLMap(#REF!,L$138&\".\"&#REF!&\".\"&$L$139&\".\"&$L$140&\".\"&$AE$8,$D$104,$D$105,CONFIGURATION!$B$10,\"BMA\",CONFIGURATION!$B$1,\"bscr\",CONFIGURATION!$B$12)","v":{"$error":"#VALUE!"}},null,{"$f":"XBRLMap(#REF!,N$138&\".\"&#REF!&\".\"&$N$139&\".\"&$N$140&\".\"&$AE$8,$D$104,$D$105,CONFIGURATION!$B$10,\"BMA\",CONFIGURATION!$B$1,\"bscr\",CONFIGURATION!$B$12)","v":{"$error":"#VALUE!"}},null,{"$f":"XBRLMap(#REF!,P$138&\".\"&#REF!&\".\"&$P$139&\".\"&$P$140&\".\"&$AE$8,$D$104,$D$105,CONFIGURATION!$B$10,\"BMA\",CONFIGURATION!$B$1,\"bscr\",CONFIGURATION!$B$12)","v":{"$error":"#VALUE!"}},null,{"$f":"XBRLMap(#REF!,R$138&\".\"&#REF!&\".\"&$R$139&\".\"&$R$140&\".\"&$AE$8,$D$104,$D$105,CONFIGURATION!$B$10,\"BMA\",CONFIGURATION!$B$1,\"bscr\",CONFIGURATION!$B$12)","v":{"$error":"#VALUE!"}}]
[]
[null,null,null,null,null,null,null,null,null,null,null,{"$f":"XBRLMap(#REF!,L$138&\".\"&#REF!&\".\"&$L$139&\".\"&$L$140&\".\"&$AE$8,$D$104,$D$105,CONFIGURATION!$B$10,\"BMA\",CONFIGURATION!$B$1,\"bscr\",CONFIGURATION!$B$12)","v":{"$error":"#VALUE!"}},null,{"$f":"XBRLMap(#REF!,N$138&\".\"&#REF!&\".\"&$N$139&\".\"&$N$140&\".\"&$AE$8,$D$104,$D$105,CONFIGURATION!$B$10,\"BMA\",CONFIGURATION!$B$1,\"bscr\",CONFIGURATION!$B$12)","v":{"$error":"#VALUE!"}},null,{"$f":"XBRLMap(#REF!,P$138&\".\"&#REF!&\".\"&$P$139&\".\"&$P$140&\".\"&$AE$8,$D$104,$D$105,CONFIGURATION!$B$10,\"BMA\",CONFIGURATION!$B$1,\"bscr\",CONFIGURATION!$B$12)","v":{"$error":"#VALUE!"}},null,{"$f":"XBRLMap(#REF!,R$138&\".\"&#REF!&\".\"&$R$139&\".\"&$R$140&\".\"&$AE$8,$D$104,$D$105,CONFIGURATION!$B$10,\"BMA\",CONFIGURATION!$B$1,\"bscr\",CONFIGURATION!$B$12)","v":{"$error":"#VALUE!"}}]

{"sheet":"Schedule IID (EBS)","index":30,"n_rows":148,"n_cols":31,"rows_kept":148,"cut":false,"hidden":false,"merged":[[33,27,34,27],[64,3,64,5],[64,7,64,9],[63,3,63,11],[63,13,63,21],[64,13,64,15],[64,17,64,19],[7,15,7,17],[34,7,34,9],[34,11,34,13],[7,19,7,21],[7,23,7,25],[32,3,32,13],[33,3,34,5],[33,7,33,13],[33,23,34,23],[7,11,7,13],[33,15,34,15],[33,17,34,17],[33,19,34,19],[32,15,32,19],[2,3,2,7],[3,5,3,7],[4,5,4,7],[7,3,7,5],[7,7,7,9]]}
[null,"SEGREGATED ACCOUNTS\n",null,null,null,null,null,null,null,null,null,null,null,null,null,null,null,null,null,null,null,null,null,null,null,null,null,{"$f":"HYPERLINK(\"#'Index'!A1\",\"Return to Index\")","v":"Return to Index"}]
[]
[null,null,null,{"$f":"'Insurer Information'!C7","v":"Enter Company Name"}]
[null,null,null,"As at",null,{"$f":"'Form 4EBS'!C3","v":"2019-12-31"},null,null,null,null,null,null,null,null,null,null,null,null,null,null,null,null,null,null,null,"SCHEDULE IIC (EBS)"]
[null,null,null,{"$f":"\"Expressed in \" & IF(CONFIGURATION!$B$12>1,\" ['\"&MID(CONFIGURATION!$B$12,2,LEN(CONFIGURATION!$B$12))&\"s]\",\"\")","v":"Expressed in  ['000s]"},null,{"$f":"'Form 4EBS'!C4","v":"United States Dollars"}]
[null,null,null,null,null,null,null,null,null,null,null,null,null,{"$f":"YEAR('Insurer Information'!C3)","v":2019}]
[null,null,null,"(1)",null,"(2)",null,"(3)",null,"(4)",null,"(5)",null,"(6)",null,"(7)",null,"(8)",null,"(9)",null,"(10)",null,"(11)",null,"(12)"]
[null,null,null,"Corporate & Sovereign Bonds",null,null,null,"Residential Mortgage Backed Securities",null,null,null,"Commercial Mortgage Backed Securities / Asset- Backed Securities",null,null,null,"Bond Mutual Funds",null,null,null,"Mortgage Loans",null,null,null,"TOTAL",null,null,null,null,null,null,"brrt_RiskTransferAxis_brrt_FundsHeldByCedingReinsurersInSegregatedAccountsTrustsMember"]
[null,null,null,"Assets",null,"Liabilities",null,"Assets",null,"Liabilities",null,"Assets",null,"Liabilities",null,"Assets",null,"Liabilities",null,"Assets",null,"Liabilities",null,{"$f":"D9","v":"Assets"},null,{"$f":"F9","v":"Liabilities"}]
[null,null,null,{"$f":"CONFIGURATION!$D$12","v":" ('000s)"},null,{"$f":"CONFIGURATION!$D$12","v":" ('000s)"},null,{"$f":"CONFIGURATION!$D$12","v":" ('000s)"},null,{"$f":"CONFIGURATION!$D$12","v":" ('000s)"},null,{"$f":"CONFIGURATION!$D$12","v":" ('000s)"},null,{"$f":"CONFIGURATION!$D$12","v":" ('000s)"},null,{"$f":"CONFIGURATION!$D$12","v":" ('000s)"},null,{"$f":"CONFIGURATION!$D$12","v":" ('000s)"},null,{"$f":"CONFIGURATION!$D$12","v":" ('000s)"},null,{"$f":"CONFIGURATION!$D$12","v":" ('000s)"},null,{"$f":"CONFIGURATION!$D$12","v":" ('000s)"},null,{"$f":"CONFIGURATION!$D$12","v":" ('000s)"}]
[null,"Line no. "]
[null,"Quoted and Unquoted Bonds and Debentures"]
[null,1,"BSCR Rating 0",{"$f":"Import!M7105","v":0},null,{"$f":"Import!M7114","v":0},null,null,null,null,null,null,null,null,null,{"$f":"Import!M7155","v":0},null,{"$f":"Import!M7164","v":0},null,null,null,null,null,{"$f":"D13+H13+L13+P13","v":0},null,{"$f":"F13+J13+N13+R13","v":0},null,null,null,null,"brrt_RiskGradeAxis_brrt_BSCRRating0Member"]
[null,{"$f":"B13+1","v":2},"BSCR Rating 1",{"$f":"Import!M7106","v":0},null,{"$f":"Import!M7115","v":0},null,{"$f":"Import!M7123","v":0},null,{"$f":"Import!M7131","v":0},null,{"$f":"Import!M7139","v":0},null,{"$f":"Import!M7147","v":0},null,{"$f":"Import!M7156","v":0},null,{"$f":"Import!M7165","v":0},null,null,null,null,null,{"$f":"D14+H14+L14+P14","v":0},null,0,null,null,null,null,"brrt_RiskGradeAxis_brrt_BSCRRating1Member"]
[null,{"$f":"B14+1","v":3},"BSCR Rating 2",{"$f":"Import!M7107","v":0},null,{"$f":"Import!M7116","v":0},null,{"$f":"Import!M7124","v":0},null,{"$f":"Import!M7132","v":0},null,{"$f":"Import!M7140","v":0},null,{"$f":"Import!M7148","v":0},null,{"$f":"Import!M7157","v":0},null,{"$f":"Import!M7166","v":0},null,null,null,null,null,0,null,0,null,null,null,null,"brrt_RiskGradeAxis_brrt_BSCRRating2Member"]
[null,4,"BSCR Rating 3",{"$f":"Import!M7108","v":0},null,{"$f":"Import!M7117","v":0},null,{"$f":"Import!M7125","v":0},null,{"$f":"Import!M7133","v":0},null,{"$f":"Import!M7141","v":0},null,{"$f":"Import!M7149","v":0},null,{"$f":"Import!M7158","v":0},null,{"$f":"Import!M7167","v":0},null,null,null,null,null,0,null,0,null,null,null,null,"brrt_RiskGradeAxis_brrt_BSCRRating3Member"]
[null,5,"BSCR Rating 4",{"$f":"Import!M7109","v":0},null,{"$f":"Import!M7118","v":0},null,{"$f":"Import!M7126","v":0},null,{"$f":"Import!M7134","v":0},null,{"$f":"Import!M7142","v":0},null,{"$f":"Import!M7150","v":0},null,{"$f":"Import!M7159","v":0},null,{"$f":"Import!M7168","v":0},null,null,null,null,null,0,null,0,null,null,null,null,"brrt_RiskGradeAxis_brrt_BSCRRating4Member"]
[null,6,"BSCR Rating 5",{"$f":"Import!M7110","v":0},null,{"$f":"Import!M7119","v":0},null,{"$f":"Import!M7127","v":0},null,{"$f":"Import!M7135","v":0},null,{"$f":"Import!M7143","v":0},null,{"$f":"Import!M7151","v":0},null,{"$f":"Import!M7160","v":0},null,{"$f":"Import!M7169","v":0},null,null,null,null,null,0,null,0,null,null,null,null,"brrt_RiskGradeAxis_brrt_BSCRRating5Member"]
[null,7,"BSCR Rating 6",{"$f":"Import!M7111","v":0},null,{"$f":"Import!M7120","v":0},null,{"$f":"Import!M7128","v":0},null,{"$f":"Import!M7136","v":0},null,{"$f":"Import!M7144","v":0},null,{"$f":"Import!M7152","v":0},null,{"$f":"Import!M7161","v":0},null,{"$f":"Import!M7170","v":0},null,null,null,null,null,0,null,0,null,null,null,null,"brrt_RiskGradeAxis_brrt_BSCRRating6Member"]
[null,8,"BSCR Rating 7",{"$f":"Import!M7112","v":0},null,{"$f":"Import!M7121","v":0},null,{"$f":"Import!M7129","v":0},null,{"$f":"Import!M7137","v":0},null,{"$f":"Import!M7145","v":0},null,{"$f":"Import!M7153","v":0},null,{"$f":"Import!M7162","v":0},null,{"$f":"Import!M7171","v":0},null,null,null,null,null,0,null,0,null,null,null,null,"brrt_RiskGradeAxis_brrt_BSCRRating7Member"]
[null,9,"BSCR Rating 8",{"$f":"Import!M7113","v":0},null,{"$f":"Import!M7122","v":0},null,{"$f":"Import!M7130","v":0},null,{"$f":"Import!M7138","v":0},null,{"$f":"Import!M7146","v":0},null,{"$f":"Import!M7154","v":0},null,{"$f":"Import!M7163","v":0},null,{"$f":"Import!M7172","v":0},null,null,null,null,null,0,null,0,null,null,null,null,"brrt_RiskGradeAxis_brrt_BSCRRating8Member"]
[null,10,"Insured/Guaranteed Mortgages",null,null,null,null,null,null,null,null,null,null,null,null,null,null,null,null,{"$f":"Import!M7173","v":0},null,{"$f":"Import!M7177","v":0},null,{"$f":"D22+H22+L22+P22+T22","v":0},null,{"$f":"F22+J22+N22+R22+V22","v":0}]
[null,11,"Other Commercial and Farm Mortgages",null,null,null,null,null,null,null,null,null,null,null,null,null,null,null,null,{"$f":"Import!M7174","v":0},null,{"$f":"Import!M7178","v":0},null,{"$f":"D23+H23+L23+P23+T23","v":0},null,0]
[null,12,"Other Residential Mortgages",null,null,null,null,null,null,null,null,null,null,null,null,null,null,null,null,{"$f":"Import!M7175","v":0},null,{"$f":"Import!M7179","v":0},null,0,null,0]
[null,13,"Mortgages Not In Good Standing",null,null,null,null,null,null,null,null,null,null,null,null,null,null,null,null,{"$f":"Import!M7176","v":0},null,{"$f":"Import!M7180","v":0},null,0,null,0]
[]
[null,{"$f":"B25+1","v":14},"Total",{"$f":"SUM(D13:D21)","v":0},null,{"$f":"SUM(F13:F21)","v":0},null,{"$f":"SUM(H13:H21)","v":0},null,{"$f":"SUM(J13:J21)","v":0},null,{"$f":"SUM(L13:L21)","v":0},null,{"$f":"SUM(N13:N21)","v":0},null,{"$f":"SUM(P13:P21)","v":0},null,{"$f":"SUM(R13:R21)","v":0},null,{"$f":"SUM(T13:T25)","v":0},null,{"$f":"SUM(V13:V25)","v":0},null,{"$f":"SUM(X13:X25)","v":0},null,{"$f":"SUM(Z13:Z25)","v":0},null,null,null,null,"brrt_RiskGradeAxis_brrt_TotalMember"]
[]
[]
[]
[]
[]
[null,null,null,"ASSETS",null,null,null,null,null,null,null,null,null,null,null,"Liabilities"]
[null,null,null,"Long Exposures",null,null,null,"Short Exposures",null,null,null,null,null,null,null,null,null,"Without Management Actions",null,"With Management Actions",null,null,null,"Total Assets Before Shock",null,null,null,"Shocks"]
[null,null,null,null,null,null,null,"Qualifying as Assets held for risk-mitigation purposes",null,null,null,"Not Qualifying as Assets held for risk-mitigation purposes",null,null,null,null,null,null,null,null,null,null,null,null,null,null,null,"Shocks"]
[null,null,null,"Before Shock",null,"After Shock",null,"Before Shock",null,"After Shock",null,"Before Shock",null,"After Shock",null,"Before Shock",null,"After Shock",null,"After Shock"]
[null,null,null,{"$f":"CONFIGURATION!$D$12","v":" ('000s)"},null,{"$f":"CONFIGURATION!$D$12","v":" ('000s)"},null,{"$f":"CONFIGURATION!$D$12","v":" ('000s)"},null,{"$f":"CONFIGURATION!$D$12","v":" ('000s)"},null,{"$f":"CONFIGURATION!$D$12","v":" ('000s)"},null,{"$f":"CONFIGURATION!$D$12","v":" ('000s)"},null,{"$f":"CONFIGURATION!$D$12","v":" ('000s)"},null,{"$f":"CONFIGURATION!$D$12","v":" ('000s)"},null,{"$f":"CONFIGURATION!$D$12","v":" ('000s)"},null,null,null,{"$f":"CONFIGURATION!$D$12","v":" ('000s)"}]
[null,"Equity Holdings "]
[null,{"$f":"B27+1","v":15},"Strategic Holdings - Listed",{"$f":"Import!M7181","v":0},null,{"$f":"IF(OR(Import!M7203=0,Import!M7203=\"\"),(1-$AB39)*D39,Import!M7203)","v":0},null,{"$f":"Import!M7225","v":0},null,{"$f":"IF(OR(Import!M7247=0,Import!M7247=\"\"),(1-$AB39)*H39,Import!M7247)","v":0},null,{"$f":"Import!M7269","v":0},null,{"$f":"IF(OR(Import!M7291=0,Import!M7291=\"\"),(1-$AB39)*L39,Import!M7291)","v":0},null,{"$f":"Import!M7313","v":0},null,{"$f":"IF(OR(Import!M7335=0,Import!M7335=\"\"),P39,Import!M7335)","v":0},null,{"$f":"IF(OR(Import!M7357=0,Import!M7357=\"\"),R39,Import!M7357)","v":0},null,null,null,{"$f":"D39+H39+L39","v":0},null,null,null,0.2]
[null,{"$f":"B39+1","v":16},"Duration Based",{"$f":"Import!M7182","v":0},null,{"$f":"IF(OR(Import!M7204=0,Import!M7204=\"\"),(1-$AB40)*D40,Import!M7204)","v":0},null,{"$f":"Import!M7226","v":0},null,{"$f":"IF(OR(Import!M7248=0,Import!M7248=\"\"),(1-$AB40)*H40,Import!M7248)","v":0},null,{"$f":"Import!M7270","v":0},null,{"$f":"IF(OR(Import!M7292=0,Import!M7292=\"\"),(1-$AB40)*L40,Import!M7292)","v":0},null,{"$f":"Import!M7314","v":0},null,{"$f":"IF(OR(Import!M7336=0,Import!M7336=\"\"),P40,Import!M7336)","v":0},null,{"$f":"IF(OR(Import!M7358=0,Import!M7358=\"\"),R40,Import!M7358)","v":0},null,null,null,{"$f":"D40+H40+L40","v":0},null,null,null,0.2]
[null,17,"Listed Equity Securities in Developed Markets",{"$f":"Import!M7183","v":0},null,{"$f":"IF(OR(Import!M7205=0,Import!M7205=\"\"),(1-$AB41)*D41,Import!M7205)","v":0},null,{"$f":"Import!M7227","v":0},null,{"$f":"IF(OR(Import!M7249=0,Import!M7249=\"\"),(1-$AB41)*H41,Import!M7249)","v":0},null,{"$f":"Import!M7271","v":0},null,{"$f":"IF(OR(Import!M7293=0,Import!M7293=\"\"),(1-$AB41)*L41,Import!M7293)","v":0},null,{"$f":"Import!M7315","v":0},null,{"$f":"IF(OR(Import!M7337=0,Import!M7337=\"\"),P41,Import!M7337)","v":0},null,{"$f":"IF(OR(Import!M7359=0,Import!M7359=\"\"),R41,Import!M7359)","v":0},null,null,null,0,null,null,null,0.35]
[null,18,"Preferred Stocks, BSCR Rating 1",{"$f":"Import!M7184","v":0},null,{"$f":"IF(OR(Import!M7206=0,Import!M7206=\"\"),(1-$AB42)*D42,Import!M7206)","v":0},null,{"$f":"Import!M7228","v":0},null,{"$f":"IF(OR(Import!M7250=0,Import!M7250=\"\"),(1-$AB42)*H42,Import!M7250)","v":0},null,{"$f":"Import!M7272","v":0},null,{"$f":"IF(OR(Import!M7294=0,Import!M7294=\"\"),(1-$AB42)*L42,Import!M7294)","v":0},null,{"$f":"Import!M7316","v":0},null,{"$f":"IF(OR(Import!M7338=0,Import!M7338=\"\"),P42,Import!M7338)","v":0},null,{"$f":"IF(OR(Import!M7360=0,Import!M7360=\"\"),R42,Import!M7360)","v":0},null,null,null,0,null,null,null,6.0000000000000001E-3]
[null,19,"Preferred Stocks, BSCR Rating 2",{"$f":"Import!M7185","v":0},null,{"$f":"IF(OR(Import!M7207=0,Import!M7207=\"\"),(1-$AB43)*D43,Import!M7207)","v":0},null,{"$f":"Import!M7229","v":0},null,{"$f":"IF(OR(Import!M7251=0,Import!M7251=\"\"),(1-$AB43)*H43,Import!M7251)","v":0},null,{"$f":"Import!M7273","v":0},null,{"$f":"IF(OR(Import!M7295=0,Import!M7295=\"\"),(1-$AB43)*L43,Import!M7295)","v":0},null,{"$f":"Import!M7317","v":0},null,{"$f":"IF(OR(Import!M7339=0,Import!M7339=\"\"),P43,Import!M7339)","v":0},null,{"$f":"IF(OR(Import!M7361=0,Import!M7361=\"\"),R43,Import!M7361)","v":0},null,null,null,0,null,null,null,1.2E-2]
[null,20,"Preferred Stocks, BSCR Rating 3",{"$f":"Import!M7186","v":0},null,{"$f":"IF(OR(Import!M7208=0,Import!M7208=\"\"),(1-$AB44)*D44,Import!M7208)","v":0},null,{"$f":"Import!M7230","v":0},null,{"$f":"IF(OR(Import!M7252=0,Import!M7252=\"\"),(1-$AB44)*H44,Import!M7252)","v":0},null,{"$f":"Import!M7274","v":0},null,{"$f":"IF(OR(Import!M7296=0,Import!M7296=\"\"),(1-$AB44)*L44,Import!M7296)","v":0},null,{"$f":"Import!M7318","v":0},null,{"$f":"IF(OR(Import!M7340=0,Import!M7340=\"\"),P44,Import!M7340)","v":0},null,{"$f":"IF(OR(Import!M7362=0,Import!M7362=\"\"),R44,Import!M7362)","v":0},null,null,null,0,null,null,null,0.02]
[null,21,"Preferred Stocks, BSCR Rating 4",{"$f":"Import!M7187","v":0},null,{"$f":"IF(OR(Import!M7209=0,Import!M7209=\"\"),(1-$AB45)*D45,Import!M7209)","v":0},null,{"$f":"Import!M7231","v":0},null,{"$f":"IF(OR(Import!M7253=0,Import!M7253=\"\"),(1-$AB45)*H45,Import!M7253)","v":0},null,{"$f":"Import!M7275","v":0},null,{"$f":"IF(OR(Import!M7297=0,Import!M7297=\"\"),(1-$AB45)*L45,Import!M7297)","v":0},null,{"$f":"Import!M7319","v":0},null,{"$f":"IF(OR(Import!M7341=0,Import!M7341=\"\"),P45,Import!M7341)","v":0},null,{"$f":"IF(OR(Import!M7363=0,Import!M7363=\"\"),R45,Import!M7363)","v":0},null,null,null,0,null,null,null,0.04]
[null,22,"Preferred Stocks, BSCR Rating 5",{"$f":"Import!M7188","v":0},null,{"$f":"IF(OR(Import!M7210=0,Import!M7210=\"\"),(1-$AB46)*D46,Import!M7210)","v":0},null,{"$f":"Import!M7232","v":0},null,{"$f":"IF(OR(Import!M7254=0,Import!M7254=\"\"),(1-$AB46)*H46,Import!M7254)","v":0},null,{"$f":"Import!M7276","v":0},null,{"$f":"IF(OR(Import!M7298=0,Import!M7298=\"\"),(1-$AB46)*L46,Import!M7298)","v":0},null,{"$f":"Import!M7320","v":0},null,{"$f":"IF(OR(Import!M7342=0,Import!M7342=\"\"),P46,Import!M7342)","v":0},null,{"$f":"IF(OR(Import!M7364=0,Import!M7364=\"\"),R46,Import!M7364)","v":0},null,null,null,0,null,null,null,0.11]
[null,23,"Preferred Stocks, BSCR Rating 6",{"$f":"Import!M7189","v":0},null,{"$f":"IF(OR(Import!M7211=0,Import!M7211=\"\"),(1-$AB47)*D47,Import!M7211)","v":0},null,{"$f":"Import!M7233","v":0},null,{"$f":"IF(OR(Import!M7255=0,Import!M7255=\"\"),(1-$AB47)*H47,Import!M7255)","v":0},null,{"$f":"Import!M7277","v":0},null,{"$f":"IF(OR(Import!M7299=0,Import!M7299=\"\"),(1-$AB47)*L47,Import!M7299)","v":0},null,{"$f":"Import!M7321","v":0},null,{"$f":"IF(OR(Import!M7343=0,Import!M7343=\"\"),P47,Import!M7343)","v":0},null,{"$f":"IF(OR(Import!M7365=0,Import!M7365=\"\"),R47,Import!M7365)","v":0},null,null,null,0,null,null,null,0.25]
[null,24,"Preferred Stocks, BSCR Rating 7",{"$f":"Import!M7190","v":0},null,{"$f":"IF(OR(Import!M7212=0,Import!M7212=\"\"),(1-$AB48)*D48,Import!M7212)","v":0},null,{"$f":"Import!M7234","v":0},null,{"$f":"IF(OR(Import!M7256=0,Import!M7256=\"\"),(1-$AB48)*H48,Import!M7256)","v":0},null,{"$f":"Import!M7278","v":0},null,{"$f":"IF(OR(Import!M7300=0,Import!M7300=\"\"),(1-$AB48)*L48,Import!M7300)","v":0},null,{"$f":"Import!M7322","v":0},null,{"$f":"IF(OR(Import!M7344=0,Import!M7344=\"\"),P48,Import!M7344)","v":0},null,{"$f":"IF(OR(Import!M7366=0,Import!M7366=\"\"),R48,Import!M7366)","v":0},null,null,null,0,null,null,null,0.35]
[null,25,"Preferred Stocks, BSCR Rating 8",{"$f":"Import!M7191","v":0},null,{"$f":"IF(OR(Import!M7213=0,Import!M7213=\"\"),(1-$AB49)*D49,Import!M7213)","v":0},null,{"$f":"Import!M7235","v":0},null,{"$f":"IF(OR(Import!M7257=0,Import!M7257=\"\"),(1-$AB49)*H49,Import!M7257)","v":0},null,{"$f":"Import!M7279","v":0},null,{"$f":"IF(OR(Import!M7301=0,Import!M7301=\"\"),(1-$AB49)*L49,Import!M7301)","v":0},null,{"$f":"Import!M7323","v":0},null,{"$f":"IF(OR(Import!M7345=0,Import!M7345=\"\"),P49,Import!M7345)","v":0},null,{"$f":"IF(OR(Import!M7367=0,Import!M7367=\"\"),R49,Import!M7367)","v":0},null,null,null,0,null,null,null,0.35]
[null,26,"Equity Derivatives on Type 1 Equities",{"$f":"Import!M7192","v":0},null,{"$f":"Import!M7214","v":0},null,{"$f":"Import!M7236","v":0},null,{"$f":"Import!M7258","v":0},null,{"$f":"Import!M7280","v":0},null,{"$f":"Import!M7302","v":0},null,{"$f":"Import!M7324","v":0},null,{"$f":"IF(OR(Import!M7346=0,Import!M7346=\"\"),P50,Import!M7346)","v":0},null,{"$f":"IF(OR(Import!M7368=0,Import!M7368=\"\"),R50,Import!M7368)","v":0},null,null,null,0,null,null,null,0.35]
[null,27,"Strategic Holdings - Unlisted",{"$f":"Import!M7193","v":0},null,{"$f":"IF(OR(Import!M7215=0,Import!M7215=\"\"),(1-$AB51)*D51,Import!M7215)","v":0},null,{"$f":"Import!M7237","v":0},null,{"$f":"IF(OR(Import!M7259=0,Import!M7259=\"\"),(1-$AB51)*H51,Import!M7259)","v":0},null,{"$f":"Import!M7281","v":0},null,{"$f":"IF(OR(Import!M7303=0,Import!M7303=\"\"),(1-$AB51)*L51,Import!M7303)","v":0},null,{"$f":"Import!M7325","v":0},null,{"$f":"IF(OR(Import!M7347=0,Import!M7347=\"\"),P51,Import!M7347)","v":0},null,{"$f":"IF(OR(Import!M7369=0,Import!M7369=\"\"),R51,Import!M7369)","v":0},null,null,null,0,null,null,null,0.2]
[null,28,"Other Equities / Other Assets",{"$f":"Import!M7194","v":0},null,{"$f":"IF(OR(Import!M7216=0,Import!M7216=\"\"),(1-$AB52)*D52,Import!M7216)","v":0},null,{"$f":"Import!M7238","v":0},null,{"$f":"IF(OR(Import!M7260=0,Import!M7260=\"\"),(1-$AB52)*H52,Import!M7260)","v":0},null,{"$f":"Import!M7282","v":0},null,{"$f":"IF(OR(Import!M7304=0,Import!M7304=\"\"),(1-$AB52)*L52,Import!M7304)","v":0},null,{"$f":"Import!M7326","v":0},null,{"$f":"IF(OR(Import!M7348=0,Import!M7348=\"\"),P52,Import!M7348)","v":0},null,{"$f":"IF(OR(Import!M7370=0,Import!M7370=\"\"),R52,Import!M7370)","v":0},null,null,null,0,null,null,null,0.45]
[null,29,"Letters of Credit",{"$f":"Import!M7195","v":0},null,{"$f":"IF(OR(Import!M7217=0,Import!M7217=\"\"),(1-$AB53)*D53,Import!M7217)","v":0},null,{"$f":"Import!M7239","v":0},null,{"$f":"IF(OR(Import!M7261=0,Import!M7261=\"\"),(1-$AB53)*H53,Import!M7261)","v":0},null,{"$f":"Import!M7283","v":0},null,{"$f":"IF(OR(Import!M7305=0,Import!M7305=\"\"),(1-$AB53)*L53,Import!M7305)","v":0},null,{"$f":"Import!M7327","v":0},null,{"$f":"IF(OR(Import!M7349=0,Import!M7349=\"\"),P53,Import!M7349)","v":0},null,{"$f":"IF(OR(Import!M7371=0,Import!M7371=\"\"),R53,Import!M7371)","v":0},null,null,null,0,null,null,null,0.2]
[null,30,"Intangible assets",{"$f":"Import!M7196","v":0},null,{"$f":"IF(OR(Import!M7218=0,Import!M7218=\"\"),(1-$AB54)*D54,Import!M7218)","v":0},null,{"$f":"Import!M7240","v":0},null,{"$f":"IF(OR(Import!M7262=0,Import!M7262=\"\"),(1-$AB54)*H54,Import!M7262)","v":0},null,{"$f":"Import!M7284","v":0},null,{"$f":"IF(OR(Import!M7306=0,Import!M7306=\"\"),(1-$AB54)*L54,Import!M7306)","v":0},null,{"$f":"Import!M7328","v":0},null,{"$f":"IF(OR(Import!M7350=0,Import!M7350=\"\"),P54,Import!M7350)","v":0},null,{"$f":"IF(OR(Import!M7372=0,Import!M7372=\"\"),R54,Import!M7372)","v":0},null,null,null,0,null,null,null,0.2]
[null,31,"Pension Benefit Surplus",{"$f":"Import!M7197","v":0},null,{"$f":"IF(OR(Import!M7219=0,Import!M7219=\"\"),(1-$AB55)*D55,Import!M7219)","v":0},null,{"$f":"Import!M7241","v":0},null,{"$f":"IF(OR(Import!M7263=0,Import!M7263=\"\"),(1-$AB55)*H55,Import!M7263)","v":0},null,{"$f":"Import!M7285","v":0},null,{"$f":"IF(OR(Import!M7307=0,Import!M7307=\"\"),(1-$AB55)*L55,Import!M7307)","v":0},null,{"$f":"Import!M7329","v":0},null,{"$f":"IF(OR(Import!M7351=0,Import!M7351=\"\"),P55,Import!M7351)","v":0},null,{"$f":"IF(OR(Import!M7373=0,Import!M7373=\"\"),R55,Import!M7373)","v":0},null,null,null,0,null,null,null,0.2]
[null,32,"Equity Derivatives on Type 2 Equities",{"$f":"Import!M7198","v":0},null,{"$f":"Import!M7220","v":0},null,{"$f":"Import!M7242","v":0},null,{"$f":"Import!M7264","v":0},null,{"$f":"Import!M7286","v":0},null,{"$f":"Import!M7308","v":0},null,{"$f":"Import!M7330","v":0},null,{"$f":"IF(OR(Import!M7352=0,Import!M7352=\"\"),P56,Import!M7352)","v":0},null,{"$f":"IF(OR(Import!M7374=0,Import!M7374=\"\"),R56,Import!M7374)","v":0},null,null,null,0,null,null,null,0.45]
[null,33,"Infrastructure",{"$f":"Import!M7199","v":0},null,{"$f":"IF(OR(Import!M7221=0,Import!M7221=\"\"),(1-$AB57)*D57,Import!M7221)","v":0},null,{"$f":"Import!M7243","v":0},null,{"$f":"IF(OR(Import!M7265=0,Import!M7265=\"\"),(1-$AB57)*H57,Import!M7265)","v":0},null,{"$f":"Import!M7287","v":0},null,{"$f":"IF(OR(Import!M7309=0,Import!M7309=\"\"),(1-$AB57)*L57,Import!M7309)","v":0},null,{"$f":"Import!M7331","v":0},null,{"$f":"IF(OR(Import!M7353=0,Import!M7353=\"\"),P57,Import!M7353)","v":0},null,{"$f":"IF(OR(Import!M7375=0,Import!M7375=\"\"),R57,Import!M7375)","v":0},null,null,null,0,null,null,null,0.25]
[null,34,"Derivatives on Infrastructure",{"$f":"Import!M7200","v":0},null,{"$f":"Import!M7222","v":0},null,{"$f":"Import!M7244","v":0},null,{"$f":"Import!M7266","v":0},null,{"$f":"Import!M7288","v":0},null,{"$f":"Import!M7310","v":0},null,{"$f":"Import!M7332","v":0},null,{"$f":"IF(OR(Import!M7354=0,Import!M7354=\"\"),P58,Import!M7354)","v":0},null,{"$f":"IF(OR(Import!M7376=0,Import!M7376=\"\"),R58,Import!M7376)","v":0},null,null,null,0,null,null,null,0.25]
[null,35,"Equity Real Estate 1",{"$f":"Import!M7201","v":0},null,{"$f":"IF(OR(Import!M7223=0,Import!M7223=\"\"),(1-$AB59)*D59,Import!M7223)","v":0},null,{"$f":"Import!M7245","v":0},null,{"$f":"IF(OR(Import!M7267=0,Import!M7267=\"\"),(1-$AB59)*H59,Import!M7267)","v":0},null,{"$f":"Import!M7289","v":0},null,{"$f":"IF(OR(Import!M7311=0,Import!M7311=\"\"),(1-$AB59)*L59,Import!M7311)","v":0},null,{"$f":"Import!M7333","v":0},null,{"$f":"IF(OR(Import!M7355=0,Import!M7355=\"\"),P59,Import!M7355)","v":0},null,{"$f":"IF(OR(Import!M7377=0,Import!M7377=\"\"),R59,Import!M7377)","v":0},null,null,null,0,null,null,null,0.1]
[null,36,"Equity Real Estate 2",{"$f":"Import!M7202","v":0},null,{"$f":"IF(OR(Import!M7224=0,Import!M7224=\"\"),(1-$AB60)*D60,Import!M7224)","v":0},null,{"$f":"Import!M7246","v":0},null,{"$f":"IF(OR(Import!M7268=0,Import!M7268=\"\"),(1-$AB60)*H60,Import!M7268)","v":0},null,{"$f":"Import!M7290","v":0},null,{"$f":"IF(OR(Import!M7312=0,Import!M7312=\"\"),(1-$AB60)*L60,Import!M7312)","v":0},null,{"$f":"Import!M7334","v":0},null,{"$f":"IF(OR(Import!M7356=0,Import!M7356=\"\"),P60,Import!M7356)","v":0},null,{"$f":"IF(OR(Import!M7378=0,Import!M7378=\"\"),R60,Import!M7378)","v":0},null,null,null,0,null,null,null,0.2]
[]
[null,{"$f":"B60+1","v":37},"Total Equity Holdings",{"$f":"SUM(D38:D61)","v":0},null,{"$f":"SUM(F38:F61)","v":0},null,{"$f":"SUM(H38:H61)","v":0},null,{"$f":"SUM(J38:J61)","v":0},null,{"$f":"SUM(L38:L61)","v":0},null,{"$f":"SUM(N38:N61)","v":0},null,{"$f":"SUM(P38:P61)","v":0},null,{"$f":"SUM(R38:R61)","v":0},null,{"$f":"SUM(T38:T61)","v":0},null,null,null,{"$f":"SUM(X38:X61)","v":0}]
[]
[null,null,null,"Spread Up",null,null,null,null,null,null,null,null,null,"Spread Down"]
[null,null,null,"Long Exposures",null,null,null,"Short Exposures",null,null,null,"Shock (bps)",null,"Long Exposures",null,null,null,"Short Exposures",null,null,null,"Shock Rates"]
[null,null,null,"Before Shock",null,"After Shock",null,"Before Shock",null,"After Shock",null,null,null,"Before Shock",null,"Before Shock",null,"After Shock",null,"After Shock"]
[null,null,"Spread Risk for Credit Derivatives"]
[null,{"$f":"B62+1","v":38},"BSCR Rating 0",{"$f":"Import!M7379","v":0},null,{"$f":"Import!M7388","v":0},null,{"$f":"Import!M7397","v":0},null,{"$f":"Import!M7406","v":0},null,0,null,{"$f":"Import!M7415","v":0},null,{"$f":"Import!M7424","v":0},null,{"$f":"Import!M7433","v":0},null,{"$f":"Import!M7442","v":0},null,0]
[null,{"$f":"B68+1","v":39},"BSCR Rating 1",{"$f":"Import!M7380","v":0},null,{"$f":"Import!M7389","v":0},null,{"$f":"Import!M7398","v":0},null,{"$f":"Import!M7407","v":0},null,130,null,{"$f":"Import!M7416","v":0},null,{"$f":"Import!M7425","v":0},null,{"$f":"Import!M7434","v":0},null,{"$f":"Import!M7443","v":0},null,-0.75]
[null,{"$f":"B69+1","v":40},"BSCR Rating 2",{"$f":"Import!M7381","v":0},null,{"$f":"Import!M7390","v":0},null,{"$f":"Import!M7399","v":0},null,{"$f":"Import!M7408","v":0},null,150,null,{"$f":"Import!M7417","v":0},null,{"$f":"Import!M7426","v":0},null,{"$f":"Import!M7435","v":0},null,{"$f":"Import!M7444","v":0},null,-0.75]
[null,41,"BSCR Rating 3",{"$f":"Import!M7382","v":0},null,{"$f":"Import!M7391","v":0},null,{"$f":"Import!M7400","v":0},null,{"$f":"Import!M7409","v":0},null,260,null,{"$f":"Import!M7418","v":0},null,{"$f":"Import!M7427","v":0},null,{"$f":"Import!M7436","v":0},null,{"$f":"Import!M7445","v":0},null,-0.75]
[null,42,"BSCR Rating 4",{"$f":"Import!M7383","v":0},null,{"$f":"Import!M7392","v":0},null,{"$f":"Import!M7401","v":0},null,{"$f":"Import!M7410","v":0},null,450,null,{"$f":"Import!M7419","v":0},null,{"$f":"Import!M7428","v":0},null,{"$f":"Import!M7437","v":0},null,{"$f":"Import!M7446","v":0},null,-0.75]
[null,43,"BSCR Rating 5",{"$f":"Import!M7384","v":0},null,{"$f":"Import!M7393","v":0},null,{"$f":"Import!M7402","v":0},null,{"$f":"Import!M7411","v":0},null,840,null,{"$f":"Import!M7420","v":0},null,{"$f":"Import!M7429","v":0},null,{"$f":"Import!M7438","v":0},null,{"$f":"Import!M7447","v":0},null,-0.75]
[null,44,"BSCR Rating 6",{"$f":"Import!M7385","v":0},null,{"$f":"Import!M7394","v":0},null,{"$f":"Import!M7403","v":0},null,{"$f":"Import!M7412","v":0},null,1620,null,{"$f":"Import!M7421","v":0},null,{"$f":"Import!M7430","v":0},null,{"$f":"Import!M7439","v":0},null,{"$f":"Import!M7448","v":0},null,-0.75]
[null,45,"BSCR Rating 7",{"$f":"Import!M7386","v":0},null,{"$f":"Import!M7395","v":0},null,{"$f":"Import!M7404","v":0},null,{"$f":"Import!M7413","v":0},null,1620,null,{"$f":"Import!M7422","v":0},null,{"$f":"Import!M7431","v":0},null,{"$f":"Import!M7440","v":0},null,{"$f":"Import!M7449","v":0},null,-0.75]
[null,46,"BSCR Rating 8",{"$f":"Import!M7387","v":0},null,{"$f":"Import!M7396","v":0},null,{"$f":"Import!M7405","v":0},null,{"$f":"Import!M7414","v":0},null,1620,null,{"$f":"Import!M7423","v":0},null,{"$f":"Import!M7432","v":0},null,{"$f":"Import!M7441","v":0},null,{"$f":"Import!M7450","v":0},null,-0.75]
[null,47,"Total Spread",{"$f":"SUM(D67:D76)","v":0},null,{"$f":"SUM(F67:F76)","v":0},null,{"$f":"SUM(H67:H76)","v":0},null,{"$f":"SUM(J67:J76)","v":0},null,null,null,{"$f":"SUM(N67:N76)","v":0},null,{"$f":"SUM(P67:P76)","v":0},null,{"$f":"SUM(R67:R76)","v":0},null,{"$f":"SUM(T67:T76)","v":0}]
[]
[null,null,"Spread Risk Check",null,null,null,null,null,null,null,null,null,null,{"$f":"IF(ROUND(D77-N77,0)=0,\"Yes\",\"No\")","v":"Yes"},null,null,null,{"$f":"IF(ROUND(H77-R77,0)=0,\"Yes\",\"No\")","v":"Yes"}]
[null,null,"Difference",null,null,null,null,null,null,null,null,null,null,{"$f":"ROUND(D77-N77,0)","v":0},null,null,null,{"$f":"ROUND(H77-R77,0)","v":0}]
[]
[null,null,null,"Market Value of Derivatives with Positive Market Value",null,"Market Value of Derivatives with Negative Market Value",null,"Market Value of Collateral, Excluding any over-collateralization"]
[null,null,"Counterparty Default Risk for OTC Derivatives"]
[null,{"$f":"B77+1","v":48},"BSCR Rating 0",{"$f":"Import!M7451","v":0},null,{"$f":"Import!M7460","v":0},null,{"$f":"Import!M7469","v":0}]
[null,{"$f":"B84+1","v":49},"BSCR Rating 1",{"$f":"Import!M7452","v":0},null,{"$f":"Import!M7461","v":0},null,{"$f":"Import!M7470","v":0}]
[null,{"$f":"B85+1","v":50},"BSCR Rating 2",{"$f":"Import!M7453","v":0},null,{"$f":"Import!M7462","v":0},null,{"$f":"Import!M7471","v":0}]
[null,51,"BSCR Rating 3",{"$f":"Import!M7454","v":0},null,{"$f":"Import!M7463","v":0},null,{"$f":"Import!M7472","v":0}]
[null,52,"BSCR Rating 4",{"$f":"Import!M7455","v":0},null,{"$f":"Import!M7464","v":0},null,{"$f":"Import!M7473","v":0}]
[null,53,"BSCR Rating 5",{"$f":"Import!M7456","v":0},null,{"$f":"Import!M7465","v":0},null,{"$f":"Import!M7474","v":0}]
[null,54,"BSCR Rating 6",{"$f":"Import!M7457","v":0},null,{"$f":"Import!M7466","v":0},null,{"$f":"Import!M7475","v":0}]
[null,55,"BSCR Rating 7",{"$f":"Import!M7458","v":0},null,{"$f":"Import!M7467","v":0},null,{"$f":"Import!M7476","v":0}]
[null,56,"BSCR Rating 8",{"$f":"Import!M7459","v":0},null,{"$f":"Import!M7468","v":0},null,{"$f":"Import!M7477","v":0}]
[null,57,"Total Default Risk for OTC Derivatives ",{"$f":"SUM(D83:D92)","v":0},null,{"$f":"SUM(F83:F92)","v":0},null,{"$f":"SUM(H83:H92)","v":0}]
[]
[null,{"$f":"B93+1","v":58},"Cash and Cash Equivalents",{"$f":"Import!M7478","v":0}]
[]
[null,{"$f":"B95+1","v":59},"Total Segregated Account Assets",{"$f":"X27+X62+D77+H77+D93+F93+H93+D95","v":0}]
[]
[]
[]
[]
[]
[]
[null,null,null,{"$f":"IF(D9=\"\",\"\",TEXT(DATE(YEAR(D9+1)-1,MONTH(D9+1),DAY(D9+1)),\"mm/dd/yyyy\"))","v":{"$error":"#VALUE!"}},null,{"$f":"IF(F9=\"\",\"\",TEXT(DATE(YEAR(F9+1)-1,MONTH(F9+1),DAY(F9+1)),\"mm/dd/yyyy\"))","v":{"$error":"#VALUE!"}}]
[null,null,null,{"$f":"IF(D9=\"\",\"\",TEXT(D9,\"mm/dd/yyyy\"))","v":"Assets"},null,{"$f":"IF(F9=\"\",\"\",TEXT(F9,\"mm/dd/yyyy\"))","v":"Liabilities"}]
[null,null,null,"brrt_BondsAndDebentures",null,"brrt_BondsAndDebentures",null,"brrt_BondsAndDebentures",null,"brrt_BondsAndDebentures",null,"brrt_BondsAndDebentures",null,"brrt_BondsAndDebentures",null,"brrt_BondsAndDebentures",null,"brrt_BondsAndDebentures",null,null,null,null,null,"brrt_BondsAndDebentures",null,"brrt_BondsAndDebentures"]
[null,null,null,"brrt_SecurityTypeAxis_brrt_CorporateSovereignBondsMember",null,"brrt_SecurityTypeAxis_brrt_CorporateSovereignBondsMember",null,"brrt_SecurityTypeAxis_brrt_ResidentialMortgageBackedSecuritiesMember",null,"brrt_SecurityTypeAxis_brrt_ResidentialMortgageBackedSecuritiesMember",null,"brrt_SecurityTypeAxis_brrt_CommercialMortgageBackedSecuritiesAssetBackedSecuritiesMember",null,"brrt_SecurityTypeAxis_brrt_CommercialMortgageBackedSecuritiesAssetBackedSecuritiesMember",null,"brrt_SecurityTypeAxis_brrt_MutualFundsMember",null,"brrt_SecurityTypeAxis_brrt_MutualFundsMember",null,null,null,null,null,"brrt_SecurityTypeAxis_brrt_TotalMember",null,"brrt_SecurityTypeAxis_brrt_TotalMember"]
[null,null,null,{"$f":"XBRLMap(D13,D$106&\".\"&$AE13&\".\"&$D$107&\".\"&$AE$8,$D$104,$D$105,CONFIGURATION!$B$10,\"BMA\",CONFIGURATION!$B$1,\"bscr\",CONFIGURATION!$B$12)","v":{"$error":"#VALUE!"}},null,{"$f":"XBRLMap(F13,F$106&\".\"&$AE13&\".\"&$F$107&\".\"&$AE$8,$F$104,$F$105,CONFIGURATION!$B$10,\"BMA\",CONFIGURATION!$B$1,\"bscr\",CONFIGURATION!$B$12)","v":{"$error":"#VALUE!"}},null,null,null,null,null,null,null,null,null,{"$f":"XBRLMap(P13,P$106&\".\"&$AE13&\".\"&$P$107&\".\"&$AE$8,$D$104,$D$105,CONFIGURATION!$B$10,\"BMA\",CONFIGURATION!$B$1,\"bscr\",CONFIGURATION!$B$12)","v":{"$error":"#VALUE!"}},null,{"$f":"XBRLMap(R13,R$106&\".\"&$AE13&\".\"&$R$107&\".\"&$AE$8,$F$104,$F$105,CONFIGURATION!$B$10,\"BMA\",CONFIGURATION!$B$1,\"bscr\",CONFIGURATION!$B$12)","v":{"$error":"#VALUE!"}},null,null,null,null,null,{"$f":"XBRLMap(X13,X$106&\".\"&$AE13&\".\"&$X$107&\".\"&$AE$8,$D$104,$D$105,CONFIGURATION!$B$10,\"BMA\",CONFIGURATION!$B$1,\"bscr\",CONFIGURATION!$B$12)","v":{"$error":"#VALUE!"}},null,{"$f":"XBRLMap(Z13,Z$106&\".\"&$AE13&\".\"&$Z$107&\".\"&$AE$8,$F$104,$F$105,CONFIGURATION!$B$10,\"BMA\",CONFIGURATION!$B$1,\"bscr\",CONFIGURATION!$B$12)","v":{"$error":"#VALUE!"}}]
[null,null,null,{"$f":"XBRLMap(D14,D$106&\".\"&$AE14&\".\"&$D$107&\".\"&$AE$8,$D$104,$D$105,CONFIGURATION!$B$10,\"BMA\",CONFIGURATION!$B$1,\"bscr\",CONFIGURATION!$B$12)","v":{"$error":"#VALUE!"}},null,{"$f":"XBRLMap(F14,F$106&\".\"&$AE14&\".\"&$F$107&\".\"&$AE$8,$F$104,$F$105,CONFIGURATION!$B$10,\"BMA\",CONFIGURATION!$B$1,\"bscr\",CONFIGURATION!$B$12)","v":{"$error":"#VALUE!"}},null,{"$f":"XBRLMap(H14,H$106&\".\"&$AE14&\".\"&$H$107&\".\"&$AE$8,$D$104,$D$105,CONFIGURATION!$B$10,\"BMA\",CONFIGURATION!$B$1,\"bscr\",CONFIGURATION!$B$12)","v":{"$error":"#VALUE!"}},null,{"$f":"XBRLMap(J14,J$106&\".\"&$AE14&\".\"&$J$107&\".\"&$AE$8,$F$104,$F$105,CONFIGURATION!$B$10,\"BMA\",CONFIGURATION!$B$1,\"bscr\",CONFIGURATION!$B$12)","v":{"$error":"#VALUE!"}},null,{"$f":"XBRLMap(L14,L$106&\".\"&$AE14&\".\"&$L$107&\".\"&$AE$8,$D$104,$D$105,CONFIGURATION!$B$10,\"BMA\",CONFIGURATION!$B$1,\"bscr\",CONFIGURATION!$B$12)","v":{"$error":"#VALUE!"}},null,{"$f":"XBRLMap(N14,N$106&\".\"&$AE14&\".\"&$N$107&\".\"&$AE$8,$F$104,$F$105,CONFIGURATION!$B$10,\"BMA\",CONFIGURATION!$B$1,\"bscr\",CONFIGURATION!$B$12)","v":{"$error":"#VALUE!"}},null,{"$f":"XBRLMap(P14,P$106&\".\"&$AE14&\".\"&$P$107&\".\"&$AE$8,$D$104,$D$105,CONFIGURATION!$B$10,\"BMA\",CONFIGURATION!$B$1,\"bscr\",CONFIGURATION!$B$12)","v":{"$error":"#VALUE!"}},null,{"$f":"XBRLMap(R14,R$106&\".\"&$AE14&\".\"&$R$107&\".\"&$AE$8,$F$104,$F$105,CONFIGURATION!$B$10,\"BMA\",CONFIGURATION!$B$1,\"bscr\",CONFIGURATION!$B$12)","v":{"$error":"#VALUE!"}},null,null,null,null,null,{"$f":"XBRLMap(X14,X$106&\".\"&$AE14&\".\"&$X$107&\".\"&$AE$8,$D$104,$D$105,CONFIGURATION!$B$10,\"BMA\",CONFIGURATION!$B$1,\"bscr\",CONFIGURATION!$B$12)","v":{"$error":"#VALUE!"}},null,{"$f":"XBRLMap(Z14,Z$106&\".\"&$AE14&\".\"&$Z$107&\".\"&$AE$8,$F$104,$F$105,CONFIGURATION!$B$10,\"BMA\",CONFIGURATION!$B$1,\"bscr\",CONFIGURATION!$B$12)","v":{"$error":"#VALUE!"}}]
[null,null,null,{"$f":"XBRLMap(D15,D$106&\".\"&$AE15&\".\"&$D$107&\".\"&$AE$8,$D$104,$D$105,CONFIGURATION!$B$10,\"BMA\",CONFIGURATION!$B$1,\"bscr\",CONFIGURATION!$B$12)","v":{"$error":"#VALUE!"}},null,{"$f":"XBRLMap(F15,F$106&\".\"&$AE15&\".\"&$F$107&\".\"&$AE$8,$F$104,$F$105,CONFIGURATION!$B$10,\"BMA\",CONFIGURATION!$B$1,\"bscr\",CONFIGURATION!$B$12)","v":{"$error":"#VALUE!"}},null,{"$f":"XBRLMap(H15,H$106&\".\"&$AE15&\".\"&$H$107&\".\"&$AE$8,$D$104,$D$105,CONFIGURATION!$B$10,\"BMA\",CONFIGURATION!$B$1,\"bscr\",CONFIGURATION!$B$12)","v":{"$error":"#VALUE!"}},null,{"$f":"XBRLMap(J15,J$106&\".\"&$AE15&\".\"&$J$107&\".\"&$AE$8,$F$104,$F$105,CONFIGURATION!$B$10,\"BMA\",CONFIGURATION!$B$1,\"bscr\",CONFIGURATION!$B$12)","v":{"$error":"#VALUE!"}},null,{"$f":"XBRLMap(L15,L$106&\".\"&$AE15&\".\"&$L$107&\".\"&$AE$8,$D$104,$D$105,CONFIGURATION!$B$10,\"BMA\",CONFIGURATION!$B$1,\"bscr\",CONFIGURATION!$B$12)","v":{"$error":"#VALUE!"}},null,{"$f":"XBRLMap(N15,N$106&\".\"&$AE15&\".\"&$N$107&\".\"&$AE$8,$F$104,$F$105,CONFIGURATION!$B$10,\"BMA\",CONFIGURATION!$B$1,\"bscr\",CONFIGURATION!$B$12)","v":{"$error":"#VALUE!"}},null,{"$f":"XBRLMap(P15,P$106&\".\"&$AE15&\".\"&$P$107&\".\"&$AE$8,$D$104,$D$105,CONFIGURATION!$B$10,\"BMA\",CONFIGURATION!$B$1,\"bscr\",CONFIGURATION!$B$12)","v":{"$error":"#VALUE!"}},null,{"$f":"XBRLMap(R15,R$106&\".\"&$AE15&\".\"&$R$107&\".\"&$AE$8,$F$104,$F$105,CONFIGURATION!$B$10,\"BMA\",CONFIGURATION!$B$1,\"bscr\",CONFIGURATION!$B$12)","v":{"$error":"#VALUE!"}},null,null,null,null,null,{"$f":"XBRLMap(X15,X$106&\".\"&$AE15&\".\"&$X$107&\".\"&$AE$8,$D$104,$D$105,CONFIGURATION!$B$10,\"BMA\",CONFIGURATION!$B$1,\"bscr\",CONFIGURATION!$B$12)","v":{"$error":"#VALUE!"}},null,{"$f":"XBRLMap(Z15,Z$106&\".\"&$AE15&\".\"&$Z$107&\".\"&$AE$8,$F$104,$F$105,CONFIGURATION!$B$10,\"BMA\",CONFIGURATION!$B$1,\"bscr\",CONFIGURATION!$B$12)","v":{"$error":"#VALUE!"}}]
[null,null,null,{"$f":"XBRLMap(D16,D$106&\".\"&$AE16&\".\"&$D$107&\".\"&$AE$8,$D$104,$D$105,CONFIGURATION!$B$10,\"BMA\",CONFIGURATION!$B$1,\"bscr\",CONFIGURATION!$B$12)","v":{"$error":"#VALUE!"}},null,{"$f":"XBRLMap(F16,F$106&\".\"&$AE16&\".\"&$F$107&\".\"&$AE$8,$F$104,$F$105,CONFIGURATION!$B$10,\"BMA\",CONFIGURATION!$B$1,\"bscr\",CONFIGURATION!$B$12)","v":{"$error":"#VALUE!"}},null,{"$f":"XBRLMap(H16,H$106&\".\"&$AE16&\".\"&$H$107&\".\"&$AE$8,$D$104,$D$105,CONFIGURATION!$B$10,\"BMA\",CONFIGURATION!$B$1,\"bscr\",CONFIGURATION!$B$12)","v":{"$error":"#VALUE!"}},null,{"$f":"XBRLMap(J16,J$106&\".\"&$AE16&\".\"&$J$107&\".\"&$AE$8,$F$104,$F$105,CONFIGURATION!$B$10,\"BMA\",CONFIGURATION!$B$1,\"bscr\",CONFIGURATION!$B$12)","v":{"$error":"#VALUE!"}},null,{"$f":"XBRLMap(L16,L$106&\".\"&$AE16&\".\"&$L$107&\".\"&$AE$8,$D$104,$D$105,CONFIGURATION!$B$10,\"BMA\",CONFIGURATION!$B$1,\"bscr\",CONFIGURATION!$B$12)","v":{"$error":"#VALUE!"}},null,{"$f":"XBRLMap(N16,N$106&\".\"&$AE16&\".\"&$N$107&\".\"&$AE$8,$F$104,$F$105,CONFIGURATION!$B$10,\"BMA\",CONFIGURATION!$B$1,\"bscr\",CONFIGURATION!$B$12)","v":{"$error":"#VALUE!"}},null,{"$f":"XBRLMap(P16,P$106&\".\"&$AE16&\".\"&$P$107&\".\"&$AE$8,$D$104,$D$105,CONFIGURATION!$B$10,\"BMA\",CONFIGURATION!$B$1,\"bscr\",CONFIGURATION!$B$12)","v":{"$error":"#VALUE!"}},null,{"$f":"XBRLMap(R16,R$106&\".\"&$AE16&\".\"&$R$107&\".\"&$AE$8,$F$104,$F$105,CONFIGURATION!$B$10,\"BMA\",CONFIGURATION!$B$1,\"bscr\",CONFIGURATION!$B$12)","v":{"$error":"#VALUE!"}},null,null,null,null,null,{"$f":"XBRLMap(X16,X$106&\".\"&$AE16&\".\"&$X$107&\".\"&$AE$8,$D$104,$D$105,CONFIGURATION!$B$10,\"BMA\",CONFIGURATION!$B$1,\"bscr\",CONFIGURATION!$B$12)","v":{"$error":"#VALUE!"}},null,{"$f":"XBRLMap(Z16,Z$106&\".\"&$AE16&\".\"&$Z$107&\".\"&$AE$8,$F$104,$F$105,CONFIGURATION!$B$10,\"BMA\",CONFIGURATION!$B$1,\"bscr\",CONFIGURATION!$B$12)","v":{"$error":"#VALUE!"}}]
[null,null,null,{"$f":"XBRLMap(D17,D$106&\".\"&$AE17&\".\"&$D$107&\".\"&$AE$8,$D$104,$D$105,CONFIGURATION!$B$10,\"BMA\",CONFIGURATION!$B$1,\"bscr\",CONFIGURATION!$B$12)","v":{"$error":"#VALUE!"}},null,{"$f":"XBRLMap(F17,F$106&\".\"&$AE17&\".\"&$F$107&\".\"&$AE$8,$F$104,$F$105,CONFIGURATION!$B$10,\"BMA\",CONFIGURATION!$B$1,\"bscr\",CONFIGURATION!$B$12)","v":{"$error":"#VALUE!"}},null,{"$f":"XBRLMap(H17,H$106&\".\"&$AE17&\".\"&$H$107&\".\"&$AE$8,$D$104,$D$105,CONFIGURATION!$B$10,\"BMA\",CONFIGURATION!$B$1,\"bscr\",CONFIGURATION!$B$12)","v":{"$error":"#VALUE!"}},null,{"$f":"XBRLMap(J17,J$106&\".\"&$AE17&\".\"&$J$107&\".\"&$AE$8,$F$104,$F$105,CONFIGURATION!$B$10,\"BMA\",CONFIGURATION!$B$1,\"bscr\",CONFIGURATION!$B$12)","v":{"$error":"#VALUE!"}},null,{"$f":"XBRLMap(L17,L$106&\".\"&$AE17&\".\"&$L$107&\".\"&$AE$8,$D$104,$D$105,CONFIGURATION!$B$10,\"BMA\",CONFIGURATION!$B$1,\"bscr\",CONFIGURATION!$B$12)","v":{"$error":"#VALUE!"}},null,{"$f":"XBRLMap(N17,N$106&\".\"&$AE17&\".\"&$N$107&\".\"&$AE$8,$F$104,$F$105,CONFIGURATION!$B$10,\"BMA\",CONFIGURATION!$B$1,\"bscr\",CONFIGURATION!$B$12)","v":{"$error":"#VALUE!"}},null,{"$f":"XBRLMap(P17,P$106&\".\"&$AE17&\".\"&$P$107&\".\"&$AE$8,$D$104,$D$105,CONFIGURATION!$B$10,\"BMA\",CONFIGURATION!$B$1,\"bscr\",CONFIGURATION!$B$12)","v":{"$error":"#VALUE!"}},null,{"$f":"XBRLMap(R17,R$106&\".\"&$AE17&\".\"&$R$107&\".\"&$AE$8,$F$104,$F$105,CONFIGURATION!$B$10,\"BMA\",CONFIGURATION!$B$1,\"bscr\",CONFIGURATION!$B$12)","v":{"$error":"#VALUE!"}},null,null,null,null,null,{"$f":"XBRLMap(X17,X$106&\".\"&$AE17&\".\"&$X$107&\".\"&$AE$8,$D$104,$D$105,CONFIGURATION!$B$10,\"BMA\",CONFIGURATION!$B$1,\"bscr\",CONFIGURATION!$B$12)","v":{"$error":"#VALUE!"}},null,{"$f":"XBRLMap(Z17,Z$106&\".\"&$AE17&\".\"&$Z$107&\".\"&$AE$8,$F$104,$F$105,CONFIGURATION!$B$10,\"BMA\",CONFIGURATION!$B$1,\"bscr\",CONFIGURATION!$B$12)","v":{"$error":"#VALUE!"}}]
[null,null,null,{"$f":"XBRLMap(D18,D$106&\".\"&$AE18&\".\"&$D$107&\".\"&$AE$8,$D$104,$D$105,CONFIGURATION!$B$10,\"BMA\",CONFIGURATION!$B$1,\"bscr\",CONFIGURATION!$B$12)","v":{"$error":"#VALUE!"}},null,{"$f":"XBRLMap(F18,F$106&\".\"&$AE18&\".\"&$F$107&\".\"&$AE$8,$F$104,$F$105,CONFIGURATION!$B$10,\"BMA\",CONFIGURATION!$B$1,\"bscr\",CONFIGURATION!$B$12)","v":{"$error":"#VALUE!"}},null,{"$f":"XBRLMap(H18,H$106&\".\"&$AE18&\".\"&$H$107&\".\"&$AE$8,$D$104,$D$105,CONFIGURATION!$B$10,\"BMA\",CONFIGURATION!$B$1,\"bscr\",CONFIGURATION!$B$12)","v":{"$error":"#VALUE!"}},null,{"$f":"XBRLMap(J18,J$106&\".\"&$AE18&\".\"&$J$107&\".\"&$AE$8,$F$104,$F$105,CONFIGURATION!$B$10,\"BMA\",CONFIGURATION!$B$1,\"bscr\",CONFIGURATION!$B$12)","v":{"$error":"#VALUE!"}},null,{"$f":"XBRLMap(L18,L$106&\".\"&$AE18&\".\"&$L$107&\".\"&$AE$8,$D$104,$D$105,CONFIGURATION!$B$10,\"BMA\",CONFIGURATION!$B$1,\"bscr\",CONFIGURATION!$B$12)","v":{"$error":"#VALUE!"}},null,{"$f":"XBRLMap(N18,N$106&\".\"&$AE18&\".\"&$N$107&\".\"&$AE$8,$F$104,$F$105,CONFIGURATION!$B$10,\"BMA\",CONFIGURATION!$B$1,\"bscr\",CONFIGURATION!$B$12)","v":{"$error":"#VALUE!"}},null,{"$f":"XBRLMap(P18,P$106&\".\"&$AE18&\".\"&$P$107&\".\"&$AE$8,$D$104,$D$105,CONFIGURATION!$B$10,\"BMA\",CONFIGURATION!$B$1,\"bscr\",CONFIGURATION!$B$12)","v":{"$error":"#VALUE!"}},null,{"$f":"XBRLMap(R18,R$106&\".\"&$AE18&\".\"&$R$107&\".\"&$AE$8,$F$104,$F$105,CONFIGURATION!$B$10,\"BMA\",CONFIGURATION!$B$1,\"bscr\",CONFIGURATION!$B$12)","v":{"$error":"#VALUE!"}},null,null,null,null,null,{"$f":"XBRLMap(X18,X$106&\".\"&$AE18&\".\"&$X$107&\".\"&$AE$8,$D$104,$D$105,CONFIGURATION!$B$10,\"BMA\",CONFIGURATION!$B$1,\"bscr\",CONFIGURATION!$B$12)","v":{"$error":"#VALUE!"}},null,{"$f":"XBRLMap(Z18,Z$106&\".\"&$AE18&\".\"&$Z$107&\".\"&$AE$8,$F$104,$F$105,CONFIGURATION!$B$10,\"BMA\",CONFIGURATION!$B$1,\"bscr\",CONFIGURATION!$B$12)","v":{"$error":"#VALUE!"}}]
[null,null,null,{"$f":"XBRLMap(D19,D$106&\".\"&$AE19&\".\"&$D$107&\".\"&$AE$8,$D$104,$D$105,CONFIGURATION!$B$10,\"BMA\",CONFIGURATION!$B$1,\"bscr\",CONFIGURATION!$B$12)","v":{"$error":"#VALUE!"}},null,{"$f":"XBRLMap(F19,F$106&\".\"&$AE19&\".\"&$F$107&\".\"&$AE$8,$F$104,$F$105,CONFIGURATION!$B$10,\"BMA\",CONFIGURATION!$B$1,\"bscr\",CONFIGURATION!$B$12)","v":{"$error":"#VALUE!"}},null,{"$f":"XBRLMap(H19,H$106&\".\"&$AE19&\".\"&$H$107&\".\"&$AE$8,$D$104,$D$105,CONFIGURATION!$B$10,\"BMA\",CONFIGURATION!$B$1,\"bscr\",CONFIGURATION!$B$12)","v":{"$error":"#VALUE!"}},null,{"$f":"XBRLMap(J19,J$106&\".\"&$AE19&\".\"&$J$107&\".\"&$AE$8,$F$104,$F$105,CONFIGURATION!$B$10,\"BMA\",CONFIGURATION!$B$1,\"bscr\",CONFIGURATION!$B$12)","v":{"$error":"#VALUE!"}},null,{"$f":"XBRLMap(L19,L$106&\".\"&$AE19&\".\"&$L$107&\".\"&$AE$8,$D$104,$D$105,CONFIGURATION!$B$10,\"BMA\",CONFIGURATION!$B$1,\"bscr\",CONFIGURATION!$B$12)","v":{"$error":"#VALUE!"}},null,{"$f":"XBRLMap(N19,N$106&\".\"&$AE19&\".\"&$N$107&\".\"&$AE$8,$F$104,$F$105,CONFIGURATION!$B$10,\"BMA\",CONFIGURATION!$B$1,\"bscr\",CONFIGURATION!$B$12)","v":{"$error":"#VALUE!"}},null,{"$f":"XBRLMap(P19,P$106&\".\"&$AE19&\".\"&$P$107&\".\"&$AE$8,$D$104,$D$105,CONFIGURATION!$B$10,\"BMA\",CONFIGURATION!$B$1,\"bscr\",CONFIGURATION!$B$12)","v":{"$error":"#VALUE!"}},null,{"$f":"XBRLMap(R19,R$106&\".\"&$AE19&\".\"&$R$107&\".\"&$AE$8,$F$104,$F$105,CONFIGURATION!$B$10,\"BMA\",CONFIGURATION!$B$1,\"bscr\",CONFIGURATION!$B$12)","v":{"$error":"#VALUE!"}},null,null,null,null,null,{"$f":"XBRLMap(X19,X$106&\".\"&$AE19&\".\"&$X$107&\".\"&$AE$8,$D$104,$D$105,CONFIGURATION!$B$10,\"BMA\",CONFIGURATION!$B$1,\"bscr\",CONFIGURATION!$B$12)","v":{"$error":"#VALUE!"}},null,{"$f":"XBRLMap(Z19,Z$106&\".\"&$AE19&\".\"&$Z$107&\".\"&$AE$8,$F$104,$F$105,CONFIGURATION!$B$10,\"BMA\",CONFIGURATION!$B$1,\"bscr\",CONFIGURATION!$B$12)","v":{"$error":"#VALUE!"}}]
[null,null,null,{"$f":"XBRLMap(D20,D$106&\".\"&$AE20&\".\"&$D$107&\".\"&$AE$8,$D$104,$D$105,CONFIGURATION!$B$10,\"BMA\",CONFIGURATION!$B$1,\"bscr\",CONFIGURATION!$B$12)","v":{"$error":"#VALUE!"}},null,{"$f":"XBRLMap(F20,F$106&\".\"&$AE20&\".\"&$F$107&\".\"&$AE$8,$F$104,$F$105,CONFIGURATION!$B$10,\"BMA\",CONFIGURATION!$B$1,\"bscr\",CONFIGURATION!$B$12)","v":{"$error":"#VALUE!"}},null,{"$f":"XBRLMap(H20,H$106&\".\"&$AE20&\".\"&$H$107&\".\"&$AE$8,$D$104,$D$105,CONFIGURATION!$B$10,\"BMA\",CONFIGURATION!$B$1,\"bscr\",CONFIGURATION!$B$12)","v":{"$error":"#VALUE!"}},null,{"$f":"XBRLMap(J20,J$106&\".\"&$AE20&\".\"&$J$107&\".\"&$AE$8,$F$104,$F$105,CONFIGURATION!$B$10,\"BMA\",CONFIGURATION!$B$1,\"bscr\",CONFIGURATION!$B$12)","v":{"$error":"#VALUE!"}},null,{"$f":"XBRLMap(L20,L$106&\".\"&$AE20&\".\"&$L$107&\".\"&$AE$8,$D$104,$D$105,CONFIGURATION!$B$10,\"BMA\",CONFIGURATION!$B$1,\"bscr\",CONFIGURATION!$B$12)","v":{"$error":"#VALUE!"}},null,{"$f":"XBRLMap(N20,N$106&\".\"&$AE20&\".\"&$N$107&\".\"&$AE$8,$F$104,$F$105,CONFIGURATION!$B$10,\"BMA\",CONFIGURATION!$B$1,\"bscr\",CONFIGURATION!$B$12)","v":{"$error":"#VALUE!"}},null,{"$f":"XBRLMap(P20,P$106&\".\"&$AE20&\".\"&$P$107&\".\"&$AE$8,$D$104,$D$105,CONFIGURATION!$B$10,\"BMA\",CONFIGURATION!$B$1,\"bscr\",CONFIGURATION!$B$12)","v":{"$error":"#VALUE!"}},null,{"$f":"XBRLMap(R20,R$106&\".\"&$AE20&\".\"&$R$107&\".\"&$AE$8,$F$104,$F$105,CONFIGURATION!$B$10,\"BMA\",CONFIGURATION!$B$1,\"bscr\",CONFIGURATION!$B$12)","v":{"$error":"#VALUE!"}},null,null,null,null,null,{"$f":"XBRLMap(X20,X$106&\".\"&$AE20&\".\"&$X$107&\".\"&$AE$8,$D$104,$D$105,CONFIGURATION!$B$10,\"BMA\",CONFIGURATION!$B$1,\"bscr\",CONFIGURATION!$B$12)","v":{"$error":"#VALUE!"}},null,{"$f":"XBRLMap(Z20,Z$106&\".\"&$AE20&\".\"&$Z$107&\".\"&$AE$8,$F$104,$F$105,CONFIGURATION!$B$10,\"BMA\",CONFIGURATION!$B$1,\"bscr\",CONFIGURATION!$B$12)","v":{"$error":"#VALUE!"}}]
[null,null,null,{"$f":"XBRLMap(D21,D$106&\".\"&$AE21&\".\"&$D$107&\".\"&$AE$8,$D$104,$D$105,CONFIGURATION!$B$10,\"BMA\",CONFIGURATION!$B$1,\"bscr\",CONFIGURATION!$B$12)","v":{"$error":"#VALUE!"}},null,{"$f":"XBRLMap(F21,F$106&\".\"&$AE21&\".\"&$F$107&\".\"&$AE$8,$F$104,$F$105,CONFIGURATION!$B$10,\"BMA\",CONFIGURATION!$B$1,\"bscr\",CONFIGURATION!$B$12)","v":{"$error":"#VALUE!"}},null,{"$f":"XBRLMap(H21,H$106&\".\"&$AE21&\".\"&$H$107&\".\"&$AE$8,$D$104,$D$105,CONFIGURATION!$B$10,\"BMA\",CONFIGURATION!$B$1,\"bscr\",CONFIGURATION!$B$12)","v":{"$error":"#VALUE!"}},null,{"$f":"XBRLMap(J21,J$106&\".\"&$AE21&\".\"&$J$107&\".\"&$AE$8,$F$104,$F$105,CONFIGURATION!$B$10,\"BMA\",CONFIGURATION!$B$1,\"bscr\",CONFIGURATION!$B$12)","v":{"$error":"#VALUE!"}},null,{"$f":"XBRLMap(L21,L$106&\".\"&$AE21&\".\"&$L$107&\".\"&$AE$8,$D$104,$D$105,CONFIGURATION!$B$10,\"BMA\",CONFIGURATION!$B$1,\"bscr\",CONFIGURATION!$B$12)","v":{"$error":"#VALUE!"}},null,{"$f":"XBRLMap(N21,N$106&\".\"&$AE21&\".\"&$N$107&\".\"&$AE$8,$F$104,$F$105,CONFIGURATION!$B$10,\"BMA\",CONFIGURATION!$B$1,\"bscr\",CONFIGURATION!$B$12)","v":{"$error":"#VALUE!"}},null,{"$f":"XBRLMap(P21,P$106&\".\"&$AE21&\".\"&$P$107&\".\"&$AE$8,$D$104,$D$105,CONFIGURATION!$B$10,\"BMA\",CONFIGURATION!$B$1,\"bscr\",CONFIGURATION!$B$12)","v":{"$error":"#VALUE!"}},null,{"$f":"XBRLMap(R21,R$106&\".\"&$AE21&\".\"&$R$107&\".\"&$AE$8,$F$104,$F$105,CONFIGURATION!$B$10,\"BMA\",CONFIGURATION!$B$1,\"bscr\",CONFIGURATION!$B$12)","v":{"$error":"#VALUE!"}},null,null,null,null,null,{"$f":"XBRLMap(X21,X$106&\".\"&$AE21&\".\"&$X$107&\".\"&$AE$8,$D$104,$D$105,CONFIGURATION!$B$10,\"BMA\",CONFIGURATION!$B$1,\"bscr\",CONFIGURATION!$B$12)","v":{"$error":"#VALUE!"}},null,{"$f":"XBRLMap(Z21,Z$106&\".\"&$AE21&\".\"&$Z$107&\".\"&$AE$8,$F$104,$F$105,CONFIGURATION!$B$10,\"BMA\",CONFIGURATION!$B$1,\"bscr\",CONFIGURATION!$B$12)","v":{"$error":"#VALUE!"}}]
[]
[null,null,null,{"$f":"XBRLMap(D27,D$106&\".\"&$AE27&\".\"&$D$107&\".\"&$AE$8,$D$104,$D$105,CONFIGURATION!$B$10,\"BMA\",CONFIGURATION!$B$1,\"bscr\",CONFIGURATION!$B$12)","v":{"$error":"#VALUE!"}},null,{"$f":"XBRLMap(F27,F$106&\".\"&$AE27&\".\"&$F$107&\".\"&$AE$8,$F$104,$F$105,CONFIGURATION!$B$10,\"BMA\",CONFIGURATION!$B$1,\"bscr\",CONFIGURATION!$B$12)","v":{"$error":"#VALUE!"}},null,{"$f":"XBRLMap(H27,H$106&\".\"&$AE27&\".\"&$H$107&\".\"&$AE$8,$D$104,$D$105,CONFIGURATION!$B$10,\"BMA\",CONFIGURATION!$B$1,\"bscr\",CONFIGURATION!$B$12)","v":{"$error":"#VALUE!"}},null,{"$f":"XBRLMap(J27,J$106&\".\"&$AE27&\".\"&$J$107&\".\"&$AE$8,$F$104,$F$105,CONFIGURATION!$B$10,\"BMA\",CONFIGURATION!$B$1,\"bscr\",CONFIGURATION!$B$12)","v":{"$error":"#VALUE!"}},null,{"$f":"XBRLMap(L27,L$106&\".\"&$AE27&\".\"&$L$107&\".\"&$AE$8,$D$104,$D$105,CONFIGURATION!$B$10,\"BMA\",CONFIGURATION!$B$1,\"bscr\",CONFIGURATION!$B$12)","v":{"$error":"#VALUE!"}},null,{"$f":"XBRLMap(N27,N$106&\".\"&$AE27&\".\"&$N$107&\".\"&$AE$8,$F$104,$F$105,CONFIGURATION!$B$10,\"BMA\",CONFIGURATION!$B$1,\"bscr\",CONFIGURATION!$B$12)","v":{"$error":"#VALUE!"}},null,{"$f":"XBRLMap(P27,P$106&\".\"&$AE27&\".\"&$P$107&\".\"&$AE$8,$D$104,$D$105,CONFIGURATION!$B$10,\"BMA\",CONFIGURATION!$B$1,\"bscr\",CONFIGURATION!$B$12)","v":{"$error":"#VALUE!"}},null,{"$f":"XBRLMap(R27,R$106&\".\"&$AE27&\".\"&$R$107&\".\"&$AE$8,$F$104,$F$105,CONFIGURATION!$B$10,\"BMA\",CONFIGURATION!$B$1,\"bscr\",CONFIGURATION!$B$12)","v":{"$error":"#VALUE!"}},null,null,null,null,null,{"$f":"XBRLMap(X27,X$106&\".\"&$AE27&\".\"&$X$107&\".\"&$AE$8,$D$104,$D$105,CONFIGURATION!$B$10,\"BMA\",CONFIGURATION!$B$1,\"bscr\",CONFIGURATION!$B$12)","v":{"$error":"#VALUE!"}},null,{"$f":"XBRLMap(Z27,Z$106&\".\"&$AE27&\".\"&$Z$107&\".\"&$AE$8,$F$104,$F$105,CONFIGURATION!$B$10,\"BMA\",CONFIGURATION!$B$1,\"bscr\",CONFIGURATION!$B$12)","v":{"$error":"#VALUE!"}}]
[]
[null,null,null,"brrt_QuotedInvestmentsEquitiesCommonStocks",null,"brrt_QuotedInvestmentsEquitiesCommonStocks",null,null,null,null,null,"brrt_QuotedInvestmentsEquitiesMutualFunds",null,"brrt_QuotedInvestmentsEquitiesMutualFunds",null,null,null,null,null,null,null,null,null,"brrt_QuotedInvestmentsEquitiesCommonStocksMutualFunds",null,"brrt_QuotedInvestmentsEquitiesCommonStocksMutualFunds"]
[null,null,null,"brrt_UnquotedInvestmentsEquitiesCommonStocks",null,"brrt_UnquotedInvestmentsEquitiesCommonStocks",null,null,null,null,null,"brrt_UnquotedInvestmentsEquitiesMutualFunds",null,"brrt_UnquotedInvestmentsEquitiesMutualFunds",null,null,null,null,null,null,null,null,null,"brrt_UnquotedInvestmentsEquitiesCommonStocksMutualFunds",null,"brrt_UnquotedInvestmentsEquitiesCommonStocksMutualFunds"]
[null,null,null,"brrt_EquitiesCommonStocks",null,"brrt_EquitiesCommonStocks",null,"brrt_EquitiesPreferredStocks",null,"brrt_EquitiesPreferredStocks",null,"brrt_EquitiesMutualFunds",null,"brrt_EquitiesMutualFunds",null,null,null,null,null,null,null,null,null,"brrt_Equities",null,"brrt_Equities"]
[null,null,null,null,null,null,null,{"$f":"XBRLMap(#REF!,H$122&\".\"&#REF!&\".\"&$AE$8,$D$104,$D$105,CONFIGURATION!$B$10,\"BMA\",CONFIGURATION!$B$1,\"bscr\",CONFIGURATION!$B$12)","v":{"$error":"#VALUE!"}},null,{"$f":"XBRLMap(#REF!,J$122&\".\"&#REF!&\".\"&$AE$8,$F$104,$F$105,CONFIGURATION!$B$10,\"BMA\",CONFIGURATION!$B$1,\"bscr\",CONFIGURATION!$B$12)","v":{"$error":"#VALUE!"}},null,null,null,null,null,null,null,null,null,null,null,null,null,"The same data point as in column H",null,"The same data point as in column J"]
[null,null,null,null,null,null,null,{"$f":"XBRLMap(#REF!,H$122&\".\"&#REF!&\".\"&$AE$8,$D$104,$D$105,CONFIGURATION!$B$10,\"BMA\",CONFIGURATION!$B$1,\"bscr\",CONFIGURATION!$B$12)","v":{"$error":"#VALUE!"}},null,{"$f":"XBRLMap(#REF!,J$122&\".\"&#REF!&\".\"&$AE$8,$F$104,$F$105,CONFIGURATION!$B$10,\"BMA\",CONFIGURATION!$B$1,\"bscr\",CONFIGURATION!$B$12)","v":{"$error":"#VALUE!"}},null,null,null,null,null,null,null,null,null,null,null,null,null,"The same data point as in column H",null,"The same data point as in column J"]
[null,null,null,null,null,null,null,{"$f":"XBRLMap(#REF!,H$122&\".\"&#REF!&\".\"&$AE$8,$D$104,$D$105,CONFIGURATION!$B$10,\"BMA\",CONFIGURATION!$B$1,\"bscr\",CONFIGURATION!$B$12)","v":{"$error":"#VALUE!"}},null,{"$f":"XBRLMap(#REF!,J$122&\".\"&#REF!&\".\"&$AE$8,$F$104,$F$105,CONFIGURATION!$B$10,\"BMA\",CONFIGURATION!$B$1,\"bscr\",CONFIGURATION!$B$12)","v":{"$error":"#VALUE!"}},null,null,null,null,null,null,null,null,null,null,null,null,null,"The same data point as in column H",null,"The same data point as in column J"]
[null,null,null,null,null,null,null,{"$f":"XBRLMap(#REF!,H$122&\".\"&#REF!&\".\"&$AE$8,$D$104,$D$105,CONFIGURATION!$B$10,\"BMA\",CONFIGURATION!$B$1,\"bscr\",CONFIGURATION!$B$12)","v":{"$error":"#VALUE!"}},null,{"$f":"XBRLMap(#REF!,J$122&\".\"&#REF!&\".\"&$AE$8,$F$104,$F$105,CONFIGURATION!$B$10,\"BMA\",CONFIGURATION!$B$1,\"bscr\",CONFIGURATION!$B$12)","v":{"$error":"#VALUE!"}},null,null,null,null,null,null,null,null,null,null,null,null,null,"The same data point as in column H",null,"The same data point as in column J"]
[null,null,null,null,null,null,null,{"$f":"XBRLMap(#REF!,H$122&\".\"&#REF!&\".\"&$AE$8,$D$104,$D$105,CONFIGURATION!$B$10,\"BMA\",CONFIGURATION!$B$1,\"bscr\",CONFIGURATION!$B$12)","v":{"$error":"#VALUE!"}},null,{"$f":"XBRLMap(#REF!,J$122&\".\"&#REF!&\".\"&$AE$8,$F$104,$F$105,CONFIGURATION!$B$10,\"BMA\",CONFIGURATION!$B$1,\"bscr\",CONFIGURATION!$B$12)","v":{"$error":"#VALUE!"}},null,null,null,null,null,null,null,null,null,null,null,null,null,"The same data point as in column H",null,"The same data point as in column J"]
[null,null,null,null,null,null,null,{"$f":"XBRLMap(#REF!,H$122&\".\"&#REF!&\".\"&$AE$8,$D$104,$D$105,CONFIGURATION!$B$10,\"BMA\",CONFIGURATION!$B$1,\"bscr\",CONFIGURATION!$B$12)","v":{"$error":"#VALUE!"}},null,{"$f":"XBRLMap(#REF!,J$122&\".\"&#REF!&\".\"&$AE$8,$F$104,$F$105,CONFIGURATION!$B$10,\"BMA\",CONFIGURATION!$B$1,\"bscr\",CONFIGURATION!$B$12)","v":{"$error":"#VALUE!"}},null,null,null,null,null,null,null,null,null,null,null,null,null,"The same data point as in column H",null,"The same data point as in column J"]
[null,null,null,null,null,null,null,{"$f":"XBRLMap(#REF!,H$122&\".\"&#REF!&\".\"&$AE$8,$D$104,$D$105,CONFIGURATION!$B$10,\"BMA\",CONFIGURATION!$B$1,\"bscr\",CONFIGURATION!$B$12)","v":{"$error":"#VALUE!"}},null,{"$f":"XBRLMap(#REF!,J$122&\".\"&#REF!&\".\"&$AE$8,$F$104,$F$105,CONFIGURATION!$B$10,\"BMA\",CONFIGURATION!$B$1,\"bscr\",CONFIGURATION!$B$12)","v":{"$error":"#VALUE!"}},null,null,null,null,null,null,null,null,null,null,null,null,null,"The same data point as in column H",null,"The same data point as in column J"]
[null,null,null,null,null,null,null,{"$f":"XBRLMap(#REF!,H$122&\".\"&#REF!&\".\"&$AE$8,$D$104,$D$105,CONFIGURATION!$B$10,\"BMA\",CONFIGURATION!$B$1,\"bscr\",CONFIGURATION!$B$12)","v":{"$error":"#VALUE!"}},null,{"$f":"XBRLMap(#REF!,J$122&\".\"&#REF!&\".\"&$AE$8,$F$104,$F$105,CONFIGURATION!$B$10,\"BMA\",CONFIGURATION!$B$1,\"bscr\",CONFIGURATION!$B$12)","v":{"$error":"#VALUE!"}},null,null,null,null,null,null,null,null,null,null,null,null,null,"The same data point as in column H",null,"The same data point as in column J"]
[null,null,null,{"$f":"XBRLMap(#REF!,D$120&\".\"&$AE$8,$D$104,$D$105,CONFIGURATION!$B$10,\"BMA\",CONFIGURATION!$B$1,\"bscr\",CONFIGURATION!$B$12)","v":{"$error":"#VALUE!"}},null,{"$f":"XBRLMap(#REF!,F$120&\".\"&$AE$8,$F$104,$F$105,CONFIGURATION!$B$10,\"BMA\",CONFIGURATION!$B$1,\"bscr\",CONFIGURATION!$B$12)","v":{"$error":"#VALUE!"}},null,null,null,null,null,{"$f":"XBRLMap(#REF!,L$120&\".\"&$AE$8,$D$104,$D$105,CONFIGURATION!$B$10,\"BMA\",CONFIGURATION!$B$1,\"bscr\",CONFIGURATION!$B$12)","v":{"$error":"#VALUE!"}},null,{"$f":"XBRLMap(#REF!,N$120&\".\"&$AE$8,$F$104,$F$105,CONFIGURATION!$B$10,\"BMA\",CONFIGURATION!$B$1,\"bscr\",CONFIGURATION!$B$12)","v":{"$error":"#VALUE!"}},null,null,null,null,null,null,null,null,null,{"$f":"XBRLMap(#REF!,X$120&\".\"&$AE$8,$D$104,$D$105,CONFIGURATION!$B$10,\"BMA\",CONFIGURATION!$B$1,\"bscr\",CONFIGURATION!$B$12)","v":{"$error":"#VALUE!"}},null,{"$f":"XBRLMap(#REF!,Z$120&\".\"&$AE$8,$F$104,$F$105,CONFIGURATION!$B$10,\"BMA\",CONFIGURATION!$B$1,\"bscr\",CONFIGURATION!$B$12)","v":{"$error":"#VALUE!"}}]
[null,null,null,{"$f":"XBRLMap(#REF!,D$121&\".\"&$AE$8,$D$104,$D$105,CONFIGURATION!$B$10,\"BMA\",CONFIGURATION!$B$1,\"bscr\",CONFIGURATION!$B$12)","v":{"$error":"#VALUE!"}},null,{"$f":"XBRLMap(#REF!,F$121&\".\"&$AE$8,$F$104,$F$105,CONFIGURATION!$B$10,\"BMA\",CONFIGURATION!$B$1,\"bscr\",CONFIGURATION!$B$12)","v":{"$error":"#VALUE!"}},null,null,null,null,null,{"$f":"XBRLMap(#REF!,L$121&\".\"&$AE$8,$D$104,$D$105,CONFIGURATION!$B$10,\"BMA\",CONFIGURATION!$B$1,\"bscr\",CONFIGURATION!$B$12)","v":{"$error":"#VALUE!"}},null,{"$f":"XBRLMap(#REF!,N$121&\".\"&$AE$8,$F$104,$F$105,CONFIGURATION!$B$10,\"BMA\",CONFIGURATION!$B$1,\"bscr\",CONFIGURATION!$B$12)","v":{"$error":"#VALUE!"}},null,null,null,null,null,null,null,null,null,{"$f":"XBRLMap(#REF!,X$121&\".\"&$AE$8,$D$104,$D$105,CONFIGURATION!$B$10,\"BMA\",CONFIGURATION!$B$1,\"bscr\",CONFIGURATION!$B$12)","v":{"$error":"#VALUE!"}},null,{"$f":"XBRLMap(#REF!,Z$121&\".\"&$AE$8,$F$104,$F$105,CONFIGURATION!$B$10,\"BMA\",CONFIGURATION!$B$1,\"bscr\",CONFIGURATION!$B$12)","v":{"$error":"#VALUE!"}}]
[]
[null,null,null,{"$f":"XBRLMap(#REF!,D$122&\".\"&$AE$8,$D$104,$D$105,CONFIGURATION!$B$10,\"BMA\",CONFIGURATION!$B$1,\"bscr\",CONFIGURATION!$B$12)","v":{"$error":"#VALUE!"}},null,{"$f":"XBRLMap(#REF!,F$122&\".\"&$AE$8,$F$104,$F$105,CONFIGURATION!$B$10,\"BMA\",CONFIGURATION!$B$1,\"bscr\",CONFIGURATION!$B$12)","v":{"$error":"#VALUE!"}},null,{"$f":"XBRLMap(#REF!,H$122&\".\"&#REF!&\".\"&$AE$8,$D$104,$D$105,CONFIGURATION!$B$10,\"BMA\",CONFIGURATION!$B$1,\"bscr\",CONFIGURATION!$B$12)","v":{"$error":"#VALUE!"}},null,{"$f":"XBRLMap(#REF!,J$122&\".\"&#REF!&\".\"&$AE$8,$F$104,$F$105,CONFIGURATION!$B$10,\"BMA\",CONFIGURATION!$B$1,\"bscr\",CONFIGURATION!$B$12)","v":{"$error":"#VALUE!"}},null,{"$f":"XBRLMap(#REF!,L$122&\".\"&$AE$8,$D$104,$D$105,CONFIGURATION!$B$10,\"BMA\",CONFIGURATION!$B$1,\"bscr\",CONFIGURATION!$B$12)","v":{"$error":"#VALUE!"}},null,{"$f":"XBRLMap(#REF!,N$122&\".\"&$AE$8,$F$104,$F$105,CONFIGURATION!$B$10,\"BMA\",CONFIGURATION!$B$1,\"bscr\",CONFIGURATION!$B$12)","v":{"$error":"#VALUE!"}},null,null,null,null,null,null,null,null,null,{"$f":"XBRLMap(#REF!,X$122&\".\"&$AE$8,$D$104,$D$105,CONFIGURATION!$B$10,\"BMA\",CONFIGURATION!$B$1,\"bscr\",CONFIGURATION!$B$12)","v":{"$error":"#VALUE!"}},null,{"$f":"XBRLMap(#REF!,Z$122&\".\"&$AE$8,$F$104,$F$105,CONFIGURATION!$B$10,\"BMA\",CONFIGURATION!$B$1,\"bscr\",CONFIGURATION!$B$12)","v":{"$error":"#VALUE!"}}]
[]
[]
[]
[null,null,null,null,null,null,null,null,null,null,null,"brrt_BondsAndDebentures",null,"brrt_BondsAndDebentures",null,"brrt_BondsAndDebentures",null,"brrt_BondsAndDebentures"]
[null,null,null,null,null,null,null,null,null,null,null,"brrt_SecurityTypeAxis_brrt_ResidentialMortgageBackedSecuritiesMember",null,"brrt_SecurityTypeAxis_brrt_ResidentialMortgageBackedSecuritiesMember",null,"brrt_SecurityTypeAxis_brrt_CommercialMortgageBackedSecuritiesAssetBackedSecuritiesMember",null,"brrt_SecurityTypeAxis_brrt_CommercialMortgageBackedSecuritiesAssetBackedSecuritiesMember"]
[null,null,null,null,null,null,null,null,null,null,null,"brrt_ClassificationAxis_brrt_OriginalClassificationMember",null,"brrt_ClassificationAxis_brrt_RevisedClassificationMember",null,"brrt_ClassificationAxis_brrt_OriginalClassificationMember",null,"brrt_ClassificationAxis_brrt_RevisedClassificationMember"]
[null,null,null,null,null,null,null,null,null,null,null,{"$f":"XBRLMap(#REF!,L$138&\".\"&#REF!&\".\"&$L$139&\".\"&$L$140&\".\"&$AE$8,$D$104,$D$105,CONFIGURATION!$B$10,\"BMA\",CONFIGURATION!$B$1,\"bscr\",CONFIGURATION!$B$12)","v":{"$error":"#VALUE!"}},null,{"$f":"XBRLMap(#REF!,N$138&\".\"&#REF!&\".\"&$N$139&\".\"&$N$140&\".\"&$AE$8,$D$104,$D$105,CONFIGURATION!$B$10,\"BMA\",CONFIGURATION!$B$1,\"bscr\",CONFIGURATION!$B$12)","v":{"$error":"#VALUE!"}},null,{"$f":"XBRLMap(#REF!,P$138&\".\"&#REF!&\".\"&$P$139&\".\"&$P$140&\".\"&$AE$8,$D$104,$D$105,CONFIGURATION!$B$10,\"BMA\",CONFIGURATION!$B$1,\"bscr\",CONFIGURATION!$B$12)","v":{"$error":"#VALUE!"}},null,{"$f":"XBRLMap(#REF!,R$138&\".\"&#REF!&\".\"&$R$139&\".\"&$R$140&\".\"&$AE$8,$D$104,$D$105,CONFIGURATION!$B$10,\"BMA\",CONFIGURATION!$B$1,\"bscr\",CONFIGURATION!$B$12)","v":{"$error":"#VALUE!"}}]
[null,null,null,null,null,null,null,null,null,null,null,{"$f":"XBRLMap(#REF!,L$138&\".\"&#REF!&\".\"&$L$139&\".\"&$L$140&\".\"&$AE$8,$D$104,$D$105,CONFIGURATION!$B$10,\"BMA\",CONFIGURATION!$B$1,\"bscr\",CONFIGURATION!$B$12)","v":{"$error":"#VALUE!"}},null,{"$f":"XBRLMap(#REF!,N$138&\".\"&#REF!&\".\"&$N$139&\".\"&$N$140&\".\"&$AE$8,$D$104,$D$105,CONFIGURATION!$B$10,\"BMA\",CONFIGURATION!$B$1,\"bscr\",CONFIGURATION!$B$12)","v":{"$error":"#VALUE!"}},null,{"$f":"XBRLMap(#REF!,P$138&\".\"&#REF!&\".\"&$P$139&\".\"&$P$140&\".\"&$AE$8,$D$104,$D$105,CONFIGURATION!$B$10,\"BMA\",CONFIGURATION!$B$1,\"bscr\",CONFIGURATION!$B$12)","v":{"$error":"#VALUE!"}},null,{"$f":"XBRLMap(#REF!,R$138&\".\"&#REF!&\".\"&$R$139&\".\"&$R$140&\".\"&$AE$8,$D$104,$D$105,CONFIGURATION!$B$10,\"BMA\",CONFIGURATION!$B$1,\"bscr\",CONFIGURATION!$B$12)","v":{"$error":"#VALUE!"}}]
[null,null,null,null,null,null,null,null,null,null,null,{"$f":"XBRLMap(#REF!,L$138&\".\"&#REF!&\".\"&$L$139&\".\"&$L$140&\".\"&$AE$8,$D$104,$D$105,CONFIGURATION!$B$10,\"BMA\",CONFIGURATION!$B$1,\"bscr\",CONFIGURATION!$B$12)","v":{"$error":"#VALUE!"}},null,{"$f":"XBRLMap(#REF!,N$138&\".\"&#REF!&\".\"&$N$139&\".\"&$N$140&\".\"&$AE$8,$D$104,$D$105,CONFIGURATION!$B$10,\"BMA\",CONFIGURATION!$B$1,\"bscr\",CONFIGURATION!$B$12)","v":{"$error":"#VALUE!"}},null,{"$f":"XBRLMap(#REF!,P$138&\".\"&#REF!&\".\"&$P$139&\".\"&$P$140&\".\"&$AE$8,$D$104,$D$105,CONFIGURATION!$B$10,\"BMA\",CONFIGURATION!$B$1,\"bscr\",CONFIGURATION!$B$12)","v":{"$error":"#VALUE!"}},null,{"$f":"XBRLMap(#REF!,R$138&\".\"&#REF!&\".\"&$R$139&\".\"&$R$140&\".\"&$AE$8,$D$104,$D$105,CONFIGURATION!$B$10,\"BMA\",CONFIGURATION!$B$1,\"bscr\",CONFIGURATION!$B$12)","v":{"$error":"#VALUE!"}}]
[null,null,null,null,null,null,null,null,null,null,null,{"$f":"XBRLMap(#REF!,L$138&\".\"&#REF!&\".\"&$L$139&\".\"&$L$140&\".\"&$AE$8,$D$104,$D$105,CONFIGURATION!$B$10,\"BMA\",CONFIGURATION!$B$1,\"bscr\",CONFIGURATION!$B$12)","v":{"$error":"#VALUE!"}},null,{"$f":"XBRLMap(#REF!,N$138&\".\"&#REF!&\".\"&$N$139&\".\"&$N$140&\".\"&$AE$8,$D$104,$D$105,CONFIGURATION!$B$10,\"BMA\",CONFIGURATION!$B$1,\"bscr\",CONFIGURATION!$B$12)","v":{"$error":"#VALUE!"}},null,{"$f":"XBRLMap(#REF!,P$138&\".\"&#REF!&\".\"&$P$139&\".\"&$P$140&\".\"&$AE$8,$D$104,$D$105,CONFIGURATION!$B$10,\"BMA\",CONFIGURATION!$B$1,\"bscr\",CONFIGURATION!$B$12)","v":{"$error":"#VALUE!"}},null,{"$f":"XBRLMap(#REF!,R$138&\".\"&#REF!&\".\"&$R$139&\".\"&$R$140&\".\"&$AE$8,$D$104,$D$105,CONFIGURATION!$B$10,\"BMA\",CONFIGURATION!$B$1,\"bscr\",CONFIGURATION!$B$12)","v":{"$error":"#VALUE!"}}]
[null,null,null,null,null,null,null,null,null,null,null,{"$f":"XBRLMap(#REF!,L$138&\".\"&#REF!&\".\"&$L$139&\".\"&$L$140&\".\"&$AE$8,$D$104,$D$105,CONFIGURATION!$B$10,\"BMA\",CONFIGURATION!$B$1,\"bscr\",CONFIGURATION!$B$12)","v":{"$error":"#VALUE!"}},null,{"$f":"XBRLMap(#REF!,N$138&\".\"&#REF!&\".\"&$N$139&\".\"&$N$140&\".\"&$AE$8,$D$104,$D$105,CONFIGURATION!$B$10,\"BMA\",CONFIGURATION!$B$1,\"bscr\",CONFIGURATION!$B$12)","v":{"$error":"#VALUE!"}},null,{"$f":"XBRLMap(#REF!,P$138&\".\"&#REF!&\".\"&$P$139&\".\"&$P$140&\".\"&$AE$8,$D$104,$D$105,CONFIGURATION!$B$10,\"BMA\",CONFIGURATION!$B$1,\"bscr\",CONFIGURATION!$B$12)","v":{"$error":"#VALUE!"}},null,{"$f":"XBRLMap(#REF!,R$138&\".\"&#REF!&\".\"&$R$139&\".\"&$R$140&\".\"&$AE$8,$D$104,$D$105,CONFIGURATION!$B$10,\"BMA\",CONFIGURATION!$B$1,\"bscr\",CONFIGURATION!$B$12)","v":{"$error":"#VALUE!"}}]
[null,null,null,null,null,null,null,null,null,null,null,{"$f":"XBRLMap(#REF!,L$138&\".\"&#REF!&\".\"&$L$139&\".\"&$L$140&\".\"&$AE$8,$D$104,$D$105,CONFIGURATION!$B$10,\"BMA\",CONFIGURATION!$B$1,\"bscr\",CONFIGURATION!$B$12)","v":{"$error":"#VALUE!"}},null,{"$f":"XBRLMap(#REF!,N$138&\".\"&#REF!&\".\"&$N$139&\".\"&$N$140&\".\"&$AE$8,$D$104,$D$105,CONFIGURATION!$B$10,\"BMA\",CONFIGURATION!$B$1,\"bscr\",CONFIGURATION!$B$12)","v":{"$error":"#VALUE!"}},null,{"$f":"XBRLMap(#REF!,P$138&\".\"&#REF!&\".\"&$P$139&\".\"&$P$140&\".\"&$AE$8,$D$104,$D$105,CONFIGURATION!$B$10,\"BMA\",CONFIGURATION!$B$1,\"bscr\",CONFIGURATION!$B$12)","v":{"$error":"#VALUE!"}},null,{"$f":"XBRLMap(#REF!,R$138&\".\"&#REF!&\".\"&$R$139&\".\"&$R$140&\".\"&$AE$8,$D$104,$D$105,CONFIGURATION!$B$10,\"BMA\",CONFIGURATION!$B$1,\"bscr\",CONFIGURATION!$B$12)","v":{"$error":"#VALUE!"}}]
[]
[null,null,null,null,null,null,null,null,null,null,null,{"$f":"XBRLMap(#REF!,L$138&\".\"&#REF!&\".\"&$L$139&\".\"&$L$140&\".\"&$AE$8,$D$104,$D$105,CONFIGURATION!$B$10,\"BMA\",CONFIGURATION!$B$1,\"bscr\",CONFIGURATION!$B$12)","v":{"$error":"#VALUE!"}},null,{"$f":"XBRLMap(#REF!,N$138&\".\"&#REF!&\".\"&$N$139&\".\"&$N$140&\".\"&$AE$8,$D$104,$D$105,CONFIGURATION!$B$10,\"BMA\",CONFIGURATION!$B$1,\"bscr\",CONFIGURATION!$B$12)","v":{"$error":"#VALUE!"}},null,{"$f":"XBRLMap(#REF!,P$138&\".\"&#REF!&\".\"&$P$139&\".\"&$P$140&\".\"&$AE$8,$D$104,$D$105,CONFIGURATION!$B$10,\"BMA\",CONFIGURATION!$B$1,\"bscr\",CONFIGURATION!$B$12)","v":{"$error":"#VALUE!"}},null,{"$f":"XBRLMap(#REF!,R$138&\".\"&#REF!&\".\"&$R$139&\".\"&$R$140&\".\"&$AE$8,$D$104,$D$105,CONFIGURATION!$B$10,\"BMA\",CONFIGURATION!$B$1,\"bscr\",CONFIGURATION!$B$12)","v":{"$error":"#VALUE!"}}]

{"sheet":"Schedule IIE (EBS)","index":31,"n_rows":148,"n_cols":31,"rows_kept":148,"cut":false,"hidden":false,"merged":[[33,27,34,27],[64,3,64,5],[64,7,64,9],[63,3,63,11],[63,13,63,21],[64,13,64,15],[64,17,64,19],[7,15,7,17],[34,7,34,9],[34,11,34,13],[7,19,7,21],[7,23,7,25],[32,3,32,13],[33,3,34,5],[33,7,33,13],[33,23,34,23],[7,11,7,13],[32,15,32,19],[33,15,34,15],[33,17,34,17],[33,19,34,19],[2,3,2,7],[3,5,3,7],[4,5,4,7],[7,3,7,5],[7,7,7,9]]}
[null,"DEPOSIT ASSETS AND LIABILITIES",null,null,null,null,null,null,null,null,null,null,null,null,null,null,null,null,null,null,null,null,null,null,null,null,null,{"$f":"HYPERLINK(\"#'Index'!A1\",\"Return to Index\")","v":"Return to Index"}]
[]
[null,null,null,{"$f":"'Insurer Information'!C7","v":"Enter Company Name"}]
[null,null,null,"As at",null,{"$f":"'Form 4EBS'!C3","v":"2019-12-31"},null,null,null,null,null,null,null,null,null,null,null,null,null,null,null,null,null,null,null,"SCHEDULE IIE (EBS)"]
[null,null,null,{"$f":"\"Expressed in \" & IF(CONFIGURATION!$B$12>1,\" ['\"&MID(CONFIGURATION!$B$12,2,LEN(CONFIGURATION!$B$12))&\"s]\",\"\")","v":"Expressed in  ['000s]"},null,{"$f":"'Form 4EBS'!C4","v":"United States Dollars"}]
[null,null,null,null,null,null,null,null,null,null,null,null,null,{"$f":"YEAR('Insurer Information'!C3)","v":2019}]
[null,null,null,"(1)",null,"(2)",null,"(3)",null,"(4)",null,"(5)",null,"(6)",null,"(7)",null,"(8)",null,"(9)",null,"(10)",null,"(11)",null,"(12)"]
[null,null,null,"Corporate & Sovereign Bonds",null,null,null,"Residential Mortgage Backed Securities",null,null,null,"Commercial Mortgage Backed Securities / Asset- Backed Securities",null,null,null,"Bond Mutual Funds",null,null,null,"Mortgage Loans",null,null,null,"TOTAL",null,null,null,null,null,null,"brrt_RiskTransferAxis_brrt_FundsHeldByCedingReinsurersInSegregatedAccountsTrustsMember"]
[null,null,null,{"$f":"'Form 4EBS'!F6","v":"2019-12-31"},null,{"$f":"'Form 4EBS'!H6","v":"2018-12-31"},null,{"$f":"'Form 4EBS'!F6","v":"2019-12-31"},null,{"$f":"'Form 4EBS'!H6","v":"2018-12-31"},null,{"$f":"'Form 4EBS'!F6","v":"2019-12-31"},null,{"$f":"'Form 4EBS'!H6","v":"2018-12-31"},null,{"$f":"'Form 4EBS'!F6","v":"2019-12-31"},null,{"$f":"'Form 4EBS'!H6","v":"2018-12-31"},null,{"$f":"'Form 4EBS'!F6","v":"2019-12-31"},null,{"$f":"'Form 4EBS'!H6","v":"2018-12-31"},null,{"$f":"D9","v":"2019-12-31"},null,{"$f":"F9","v":"2018-12-31"}]
[null,null,null,{"$f":"CONFIGURATION!$D$12","v":" ('000s)"},null,{"$f":"CONFIGURATION!$D$12","v":" ('000s)"},null,{"$f":"CONFIGURATION!$D$12","v":" ('000s)"},null,{"$f":"CONFIGURATION!$D$12","v":" ('000s)"},null,{"$f":"CONFIGURATION!$D$12","v":" ('000s)"},null,{"$f":"CONFIGURATION!$D$12","v":" ('000s)"},null,{"$f":"CONFIGURATION!$D$12","v":" ('000s)"},null,{"$f":"CONFIGURATION!$D$12","v":" ('000s)"},null,{"$f":"CONFIGURATION!$D$12","v":" ('000s)"},null,{"$f":"CONFIGURATION!$D$12","v":" ('000s)"},null,{"$f":"CONFIGURATION!$D$12","v":" ('000s)"},null,{"$f":"CONFIGURATION!$D$12","v":" ('000s)"}]
[null,"Line no. "]
[null,"Quoted and Unquoted Bonds and Debentures"]
[null,1,"BSCR Rating 0",{"$f":"Import!M7480","v":0},null,{"$f":"Import!O7480","v":0},null,null,null,null,null,null,null,null,null,{"$f":"Import!M7505","v":0},null,{"$f":"Import!O7505","v":0},null,null,null,null,null,{"$f":"D13+H13+L13+P13","v":0},null,{"$f":"F13+J13+N13+R13","v":0},null,null,null,null,"brrt_RiskGradeAxis_brrt_BSCRRating0Member"]
[null,{"$f":"B13+1","v":2},"BSCR Rating 1",{"$f":"Import!M7481","v":0},null,{"$f":"Import!O7481","v":0},null,{"$f":"Import!M7489","v":0},null,{"$f":"Import!O7489","v":0},null,{"$f":"Import!M7497","v":0},null,{"$f":"Import!O7497","v":0},null,{"$f":"Import!M7506","v":0},null,{"$f":"Import!O7506","v":0},null,null,null,null,null,{"$f":"D14+H14+L14+P14","v":0},null,0,null,null,null,null,"brrt_RiskGradeAxis_brrt_BSCRRating1Member"]
[null,{"$f":"B14+1","v":3},"BSCR Rating 2",{"$f":"Import!M7482","v":0},null,{"$f":"Import!O7482","v":0},null,{"$f":"Import!M7490","v":0},null,{"$f":"Import!O7490","v":0},null,{"$f":"Import!M7498","v":0},null,{"$f":"Import!O7498","v":0},null,{"$f":"Import!M7507","v":0},null,{"$f":"Import!O7507","v":0},null,null,null,null,null,0,null,0,null,null,null,null,"brrt_RiskGradeAxis_brrt_BSCRRating2Member"]
[null,4,"BSCR Rating 3",{"$f":"Import!M7483","v":0},null,{"$f":"Import!O7483","v":0},null,{"$f":"Import!M7491","v":0},null,{"$f":"Import!O7491","v":0},null,{"$f":"Import!M7499","v":0},null,{"$f":"Import!O7499","v":0},null,{"$f":"Import!M7508","v":0},null,{"$f":"Import!O7508","v":0},null,null,null,null,null,0,null,0,null,null,null,null,"brrt_RiskGradeAxis_brrt_BSCRRating3Member"]
[null,5,"BSCR Rating 4",{"$f":"Import!M7484","v":0},null,{"$f":"Import!O7484","v":0},null,{"$f":"Import!M7492","v":0},null,{"$f":"Import!O7492","v":0},null,{"$f":"Import!M7500","v":0},null,{"$f":"Import!O7500","v":0},null,{"$f":"Import!M7509","v":0},null,{"$f":"Import!O7509","v":0},null,null,null,null,null,0,null,0,null,null,null,null,"brrt_RiskGradeAxis_brrt_BSCRRating4Member"]
[null,6,"BSCR Rating 5",{"$f":"Import!M7485","v":0},null,{"$f":"Import!O7485","v":0},null,{"$f":"Import!M7493","v":0},null,{"$f":"Import!O7493","v":0},null,{"$f":"Import!M7501","v":0},null,{"$f":"Import!O7501","v":0},null,{"$f":"Import!M7510","v":0},null,{"$f":"Import!O7510","v":0},null,null,null,null,null,0,null,0,null,null,null,null,"brrt_RiskGradeAxis_brrt_BSCRRating5Member"]
[null,7,"BSCR Rating 6",{"$f":"Import!M7486","v":0},null,{"$f":"Import!O7486","v":0},null,{"$f":"Import!M7494","v":0},null,{"$f":"Import!O7494","v":0},null,{"$f":"Import!M7502","v":0},null,{"$f":"Import!O7502","v":0},null,{"$f":"Import!M7511","v":0},null,{"$f":"Import!O7511","v":0},null,null,null,null,null,0,null,0,null,null,null,null,"brrt_RiskGradeAxis_brrt_BSCRRating6Member"]
[null,8,"BSCR Rating 7",{"$f":"Import!M7487","v":0},null,{"$f":"Import!O7487","v":0},null,{"$f":"Import!M7495","v":0},null,{"$f":"Import!O7495","v":0},null,{"$f":"Import!M7503","v":0},null,{"$f":"Import!O7503","v":0},null,{"$f":"Import!M7512","v":0},null,{"$f":"Import!O7512","v":0},null,null,null,null,null,0,null,0,null,null,null,null,"brrt_RiskGradeAxis_brrt_BSCRRating7Member"]
[null,9,"BSCR Rating 8",{"$f":"Import!M7488","v":0},null,{"$f":"Import!O7488","v":0},null,{"$f":"Import!M7496","v":0},null,{"$f":"Import!O7496","v":0},null,{"$f":"Import!M7504","v":0},null,{"$f":"Import!O7504","v":0},null,{"$f":"Import!M7513","v":0},null,{"$f":"Import!O7513","v":0},null,null,null,null,null,0,null,0,null,null,null,null,"brrt_RiskGradeAxis_brrt_BSCRRating8Member"]
[null,10,"Insured/Guaranteed Mortgages",null,null,null,null,null,null,null,null,null,null,null,null,null,null,null,null,{"$f":"Import!M7514","v":0},null,{"$f":"Import!O7514","v":0},null,{"$f":"D22+H22+L22+P22+T22","v":0},null,{"$f":"F22+J22+N22+R22+V22","v":0}]
[null,11,"Other Commercial and Farm Mortgages",null,null,null,null,null,null,null,null,null,null,null,null,null,null,null,null,{"$f":"Import!M7515","v":0},null,{"$f":"Import!O7515","v":0},null,{"$f":"D23+H23+L23+P23+T23","v":0},null,0]
[null,12,"Other Residential Mortgages",null,null,null,null,null,null,null,null,null,null,null,null,null,null,null,null,{"$f":"Import!M7516","v":0},null,{"$f":"Import!O7516","v":0},null,0,null,0]
[null,13,"Mortgages Not In Good Standing",null,null,null,null,null,null,null,null,null,null,null,null,null,null,null,null,{"$f":"Import!M7517","v":0},null,{"$f":"Import!O7517","v":0},null,0,null,0]
[]
[null,{"$f":"B25+1","v":14},"Total",{"$f":"SUM(D13:D21)","v":0},null,{"$f":"SUM(F13:F21)","v":0},null,{"$f":"SUM(H13:H21)","v":0},null,{"$f":"SUM(J13:J21)","v":0},null,{"$f":"SUM(L13:L21)","v":0},null,{"$f":"SUM(N13:N21)","v":0},null,{"$f":"SUM(P13:P21)","v":0},null,{"$f":"SUM(R13:R21)","v":0},null,{"$f":"SUM(T13:T25)","v":0},null,{"$f":"SUM(V13:V25)","v":0},null,{"$f":"SUM(X13:X25)","v":0},null,{"$f":"SUM(Z13:Z25)","v":0},null,null,null,null,"brrt_RiskGradeAxis_brrt_TotalMember"]
[]
[]
[]
[]
[]
[null,null,null,"ASSETS",null,null,null,null,null,null,null,null,null,null,null,"Liabilities"]
[null,null,null,"Long Exposures",null,null,null,"Short Exposures",null,null,null,null,null,null,null,null,null,"Without Management Actions",null,"With Management Actions",null,null,null,"Total Assets Before Shock",null,null,null,"Shocks"]
[null,null,null,null,null,null,null,"Qualifying as Assets held for risk-mitigation purposes",null,null,null,"Not Qualifying as Assets held for risk-mitigation purposes",null,null,null,null,null,null,null,null,null,null,null,null,null,null,null,"Shocks"]
[null,null,null,"Before Shock",null,"After Shock",null,"Before Shock",null,"After Shock",null,"Before Shock",null,"After Shock",null,"Before Shock",null,"After Shock",null,"After Shock"]
[null,null,null,{"$f":"CONFIGURATION!$D$12","v":" ('000s)"},null,{"$f":"CONFIGURATION!$D$12","v":" ('000s)"},null,{"$f":"CONFIGURATION!$D$12","v":" ('000s)"},null,{"$f":"CONFIGURATION!$D$12","v":" ('000s)"},null,{"$f":"CONFIGURATION!$D$12","v":" ('000s)"},null,{"$f":"CONFIGURATION!$D$12","v":" ('000s)"},null,{"$f":"CONFIGURATION!$D$12","v":" ('000s)"},null,{"$f":"CONFIGURATION!$D$12","v":" ('000s)"},null,{"$f":"CONFIGURATION!$D$12","v":" ('000s)"},null,null,null,{"$f":"CONFIGURATION!$D$12","v":" ('000s)"}]
[null,"Equity Holdings "]
[null,{"$f":"B27+1","v":15},"Strategic Holdings - Listed",{"$f":"Import!M7518","v":0},null,{"$f":"IF(OR(Import!M7540=0,Import!M7540=\"\"),(1-$AB39)*D39,Import!M7540)","v":0},null,{"$f":"Import!M7562","v":0},null,{"$f":"IF(OR(Import!M7584=0,Import!M7584=\"\"),(1-$AB39)*H39,Import!M7584)","v":0},null,{"$f":"Import!M7606","v":0},null,{"$f":"IF(OR(Import!M7628=0,Import!M7628=\"\"),(1-$AB39)*L39,Import!M7628)","v":0},null,{"$f":"Import!M7650","v":0},null,{"$f":"IF(OR(Import!M7672=0,Import!M7672=\"\"),P39,Import!M7672)","v":0},null,{"$f":"IF(OR(Import!M7694=0,Import!M7694=\"\"),R39,Import!M7694)","v":0},null,null,null,{"$f":"D39+H39+L39","v":0},null,null,null,0.2]
[null,{"$f":"B39+1","v":16},"Duration Based",{"$f":"Import!M7519","v":0},null,{"$f":"IF(OR(Import!M7541=0,Import!M7541=\"\"),(1-$AB40)*D40,Import!M7541)","v":0},null,{"$f":"Import!M7563","v":0},null,{"$f":"IF(OR(Import!M7585=0,Import!M7585=\"\"),(1-$AB40)*H40,Import!M7585)","v":0},null,{"$f":"Import!M7607","v":0},null,{"$f":"IF(OR(Import!M7629=0,Import!M7629=\"\"),(1-$AB40)*L40,Import!M7629)","v":0},null,{"$f":"Import!M7651","v":0},null,{"$f":"IF(OR(Import!M7673=0,Import!M7673=\"\"),P40,Import!M7673)","v":0},null,{"$f":"IF(OR(Import!M7695=0,Import!M7695=\"\"),R40,Import!M7695)","v":0},null,null,null,{"$f":"D40+H40+L40","v":0},null,null,null,0.2]
[null,17,"Listed Equity Securities in Developed Markets",{"$f":"Import!M7520","v":0},null,{"$f":"IF(OR(Import!M7542=0,Import!M7542=\"\"),(1-$AB41)*D41,Import!M7542)","v":0},null,{"$f":"Import!M7564","v":0},null,{"$f":"IF(OR(Import!M7586=0,Import!M7586=\"\"),(1-$AB41)*H41,Import!M7586)","v":0},null,{"$f":"Import!M7608","v":0},null,{"$f":"IF(OR(Import!M7630=0,Import!M7630=\"\"),(1-$AB41)*L41,Import!M7630)","v":0},null,{"$f":"Import!M7652","v":0},null,{"$f":"IF(OR(Import!M7674=0,Import!M7674=\"\"),P41,Import!M7674)","v":0},null,{"$f":"IF(OR(Import!M7696=0,Import!M7696=\"\"),R41,Import!M7696)","v":0},null,null,null,0,null,null,null,0.35]
[null,18,"Preferred Stocks, BSCR Rating 1",{"$f":"Import!M7521","v":0},null,{"$f":"IF(OR(Import!M7543=0,Import!M7543=\"\"),(1-$AB42)*D42,Import!M7543)","v":0},null,{"$f":"Import!M7565","v":0},null,{"$f":"IF(OR(Import!M7587=0,Import!M7587=\"\"),(1-$AB42)*H42,Import!M7587)","v":0},null,{"$f":"Import!M7609","v":0},null,{"$f":"IF(OR(Import!M7631=0,Import!M7631=\"\"),(1-$AB42)*L42,Import!M7631)","v":0},null,{"$f":"Import!M7653","v":0},null,{"$f":"IF(OR(Import!M7675=0,Import!M7675=\"\"),P42,Import!M7675)","v":0},null,{"$f":"IF(OR(Import!M7697=0,Import!M7697=\"\"),R42,Import!M7697)","v":0},null,null,null,0,null,null,null,6.0000000000000001E-3]
[null,19,"Preferred Stocks, BSCR Rating 2",{"$f":"Import!M7522","v":0},null,{"$f":"IF(OR(Import!M7544=0,Import!M7544=\"\"),(1-$AB43)*D43,Import!M7544)","v":0},null,{"$f":"Import!M7566","v":0},null,{"$f":"IF(OR(Import!M7588=0,Import!M7588=\"\"),(1-$AB43)*H43,Import!M7588)","v":0},null,{"$f":"Import!M7610","v":0},null,{"$f":"IF(OR(Import!M7632=0,Import!M7632=\"\"),(1-$AB43)*L43,Import!M7632)","v":0},null,{"$f":"Import!M7654","v":0},null,{"$f":"IF(OR(Import!M7676=0,Import!M7676=\"\"),P43,Import!M7676)","v":0},null,{"$f":"IF(OR(Import!M7698=0,Import!M7698=\"\"),R43,Import!M7698)","v":0},null,null,null,0,null,null,null,1.2E-2]
[null,20,"Preferred Stocks, BSCR Rating 3",{"$f":"Import!M7523","v":0},null,{"$f":"IF(OR(Import!M7545=0,Import!M7545=\"\"),(1-$AB44)*D44,Import!M7545)","v":0},null,{"$f":"Import!M7567","v":0},null,{"$f":"IF(OR(Import!M7589=0,Import!M7589=\"\"),(1-$AB44)*H44,Import!M7589)","v":0},null,{"$f":"Import!M7611","v":0},null,{"$f":"IF(OR(Import!M7633=0,Import!M7633=\"\"),(1-$AB44)*L44,Import!M7633)","v":0},null,{"$f":"Import!M7655","v":0},null,{"$f":"IF(OR(Import!M7677=0,Import!M7677=\"\"),P44,Import!M7677)","v":0},null,{"$f":"IF(OR(Import!M7699=0,Import!M7699=\"\"),R44,Import!M7699)","v":0},null,null,null,0,null,null,null,0.02]
[null,21,"Preferred Stocks, BSCR Rating 4",{"$f":"Import!M7524","v":0},null,{"$f":"IF(OR(Import!M7546=0,Import!M7546=\"\"),(1-$AB45)*D45,Import!M7546)","v":0},null,{"$f":"Import!M7568","v":0},null,{"$f":"IF(OR(Import!M7590=0,Import!M7590=\"\"),(1-$AB45)*H45,Import!M7590)","v":0},null,{"$f":"Import!M7612","v":0},null,{"$f":"IF(OR(Import!M7634=0,Import!M7634=\"\"),(1-$AB45)*L45,Import!M7634)","v":0},null,{"$f":"Import!M7656","v":0},null,{"$f":"IF(OR(Import!M7678=0,Import!M7678=\"\"),P45,Import!M7678)","v":0},null,{"$f":"IF(OR(Import!M7700=0,Import!M7700=\"\"),R45,Import!M7700)","v":0},null,null,null,0,null,null,null,0.04]
[null,22,"Preferred Stocks, BSCR Rating 5",{"$f":"Import!M7525","v":0},null,{"$f":"IF(OR(Import!M7547=0,Import!M7547=\"\"),(1-$AB46)*D46,Import!M7547)","v":0},null,{"$f":"Import!M7569","v":0},null,{"$f":"IF(OR(Import!M7591=0,Import!M7591=\"\"),(1-$AB46)*H46,Import!M7591)","v":0},null,{"$f":"Import!M7613","v":0},null,{"$f":"IF(OR(Import!M7635=0,Import!M7635=\"\"),(1-$AB46)*L46,Import!M7635)","v":0},null,{"$f":"Import!M7657","v":0},null,{"$f":"IF(OR(Import!M7679=0,Import!M7679=\"\"),P46,Import!M7679)","v":0},null,{"$f":"IF(OR(Import!M7701=0,Import!M7701=\"\"),R46,Import!M7701)","v":0},null,null,null,0,null,null,null,0.11]
[null,23,"Preferred Stocks, BSCR Rating 6",{"$f":"Import!M7526","v":0},null,{"$f":"IF(OR(Import!M7548=0,Import!M7548=\"\"),(1-$AB47)*D47,Import!M7548)","v":0},null,{"$f":"Import!M7570","v":0},null,{"$f":"IF(OR(Import!M7592=0,Import!M7592=\"\"),(1-$AB47)*H47,Import!M7592)","v":0},null,{"$f":"Import!M7614","v":0},null,{"$f":"IF(OR(Import!M7636=0,Import!M7636=\"\"),(1-$AB47)*L47,Import!M7636)","v":0},null,{"$f":"Import!M7658","v":0},null,{"$f":"IF(OR(Import!M7680=0,Import!M7680=\"\"),P47,Import!M7680)","v":0},null,{"$f":"IF(OR(Import!M7702=0,Import!M7702=\"\"),R47,Import!M7702)","v":0},null,null,null,0,null,null,null,0.25]
[null,24,"Preferred Stocks, BSCR Rating 7",{"$f":"Import!M7527","v":0},null,{"$f":"IF(OR(Import!M7549=0,Import!M7549=\"\"),(1-$AB48)*D48,Import!M7549)","v":0},null,{"$f":"Import!M7571","v":0},null,{"$f":"IF(OR(Import!M7593=0,Import!M7593=\"\"),(1-$AB48)*H48,Import!M7593)","v":0},null,{"$f":"Import!M7615","v":0},null,{"$f":"IF(OR(Import!M7637=0,Import!M7637=\"\"),(1-$AB48)*L48,Import!M7637)","v":0},null,{"$f":"Import!M7659","v":0},null,{"$f":"IF(OR(Import!M7681=0,Import!M7681=\"\"),P48,Import!M7681)","v":0},null,{"$f":"IF(OR(Import!M7703=0,Import!M7703=\"\"),R48,Import!M7703)","v":0},null,null,null,0,null,null,null,0.35]
[null,25,"Preferred Stocks, BSCR Rating 8",{"$f":"Import!M7528","v":0},null,{"$f":"IF(OR(Import!M7550=0,Import!M7550=\"\"),(1-$AB49)*D49,Import!M7550)","v":0},null,{"$f":"Import!M7572","v":0},null,{"$f":"IF(OR(Import!M7594=0,Import!M7594=\"\"),(1-$AB49)*H49,Import!M7594)","v":0},null,{"$f":"Import!M7616","v":0},null,{"$f":"IF(OR(Import!M7638=0,Import!M7638=\"\"),(1-$AB49)*L49,Import!M7638)","v":0},null,{"$f":"Import!M7660","v":0},null,{"$f":"IF(OR(Import!M7682=0,Import!M7682=\"\"),P49,Import!M7682)","v":0},null,{"$f":"IF(OR(Import!M7704=0,Import!M7704=\"\"),R49,Import!M7704)","v":0},null,null,null,0,null,null,null,0.35]
[null,26,"Equity Derivatives on Type 1 Equities",{"$f":"Import!M7529","v":0},null,{"$f":"Import!M7551","v":0},null,{"$f":"Import!M7573","v":0},null,{"$f":"Import!M7595","v":0},null,{"$f":"Import!M7617","v":0},null,{"$f":"Import!M7639","v":0},null,{"$f":"Import!M7661","v":0},null,{"$f":"IF(OR(Import!M7683=0,Import!M7683=\"\"),P50,Import!M7683)","v":0},null,{"$f":"IF(OR(Import!M7705=0,Import!M7705=\"\"),R50,Import!M7705)","v":0},null,null,null,0,null,null,null,0.35]
[null,27,"Strategic Holdings - Unlisted",{"$f":"Import!M7530","v":0},null,{"$f":"IF(OR(Import!M7552=0,Import!M7552=\"\"),(1-$AB51)*D51,Import!M7552)","v":0},null,{"$f":"Import!M7574","v":0},null,{"$f":"IF(OR(Import!M7596=0,Import!M7596=\"\"),(1-$AB51)*H51,Import!M7596)","v":0},null,{"$f":"Import!M7618","v":0},null,{"$f":"IF(OR(Import!M7640=0,Import!M7640=\"\"),(1-$AB51)*L51,Import!M7640)","v":0},null,{"$f":"Import!M7662","v":0},null,{"$f":"IF(OR(Import!M7684=0,Import!M7684=\"\"),P51,Import!M7684)","v":0},null,{"$f":"IF(OR(Import!M7706=0,Import!M7706=\"\"),R51,Import!M7706)","v":0},null,null,null,0,null,null,null,0.2]
[null,28,"Other Equities / Other Assets",{"$f":"Import!M7531","v":0},null,{"$f":"IF(OR(Import!M7553=0,Import!M7553=\"\"),(1-$AB52)*D52,Import!M7553)","v":0},null,{"$f":"Import!M7575","v":0},null,{"$f":"IF(OR(Import!M7597=0,Import!M7597=\"\"),(1-$AB52)*H52,Import!M7597)","v":0},null,{"$f":"Import!M7619","v":0},null,{"$f":"IF(OR(Import!M7641=0,Import!M7641=\"\"),(1-$AB52)*L52,Import!M7641)","v":0},null,{"$f":"Import!M7663","v":0},null,{"$f":"IF(OR(Import!M7685=0,Import!M7685=\"\"),P52,Import!M7685)","v":0},null,{"$f":"IF(OR(Import!M7707=0,Import!M7707=\"\"),R52,Import!M7707)","v":0},null,null,null,0,null,null,null,0.45]
[null,29,"Letters of Credit",{"$f":"Import!M7532","v":0},null,{"$f":"IF(OR(Import!M7554=0,Import!M7554=\"\"),(1-$AB53)*D53,Import!M7554)","v":0},null,{"$f":"Import!M7576","v":0},null,{"$f":"IF(OR(Import!M7598=0,Import!M7598=\"\"),(1-$AB53)*H53,Import!M7598)","v":0},null,{"$f":"Import!M7620","v":0},null,{"$f":"IF(OR(Import!M7642=0,Import!M7642=\"\"),(1-$AB53)*L53,Import!M7642)","v":0},null,{"$f":"Import!M7664","v":0},null,{"$f":"IF(OR(Import!M7686=0,Import!M7686=\"\"),P53,Import!M7686)","v":0},null,{"$f":"IF(OR(Import!M7708=0,Import!M7708=\"\"),R53,Import!M7708)","v":0},null,null,null,0,null,null,null,0.2]
[null,30,"Intangible assets",{"$f":"Import!M7533","v":0},null,{"$f":"IF(OR(Import!M7555=0,Import!M7555=\"\"),(1-$AB54)*D54,Import!M7555)","v":0},null,{"$f":"Import!M7577","v":0},null,{"$f":"IF(OR(Import!M7599=0,Import!M7599=\"\"),(1-$AB54)*H54,Import!M7599)","v":0},null,{"$f":"Import!M7621","v":0},null,{"$f":"IF(OR(Import!M7643=0,Import!M7643=\"\"),(1-$AB54)*L54,Import!M7643)","v":0},null,{"$f":"Import!M7665","v":0},null,{"$f":"IF(OR(Import!M7687=0,Import!M7687=\"\"),P54,Import!M7687)","v":0},null,{"$f":"IF(OR(Import!M7709=0,Import!M7709=\"\"),R54,Import!M7709)","v":0},null,null,null,0,null,null,null,0.2]
[null,31,"Pension Benefit Surplus",{"$f":"Import!M7534","v":0},null,{"$f":"IF(OR(Import!M7556=0,Import!M7556=\"\"),(1-$AB55)*D55,Import!M7556)","v":0},null,{"$f":"Import!M7578","v":0},null,{"$f":"IF(OR(Import!M7600=0,Import!M7600=\"\"),(1-$AB55)*H55,Import!M7600)","v":0},null,{"$f":"Import!M7622","v":0},null,{"$f":"IF(OR(Import!M7644=0,Import!M7644=\"\"),(1-$AB55)*L55,Import!M7644)","v":0},null,{"$f":"Import!M7666","v":0},null,{"$f":"IF(OR(Import!M7688=0,Import!M7688=\"\"),P55,Import!M7688)","v":0},null,{"$f":"IF(OR(Import!M7710=0,Import!M7710=\"\"),R55,Import!M7710)","v":0},null,null,null,0,null,null,null,0.2]
[null,32,"Equity Derivatives on Type 2 Equities",{"$f":"Import!M7535","v":0},null,{"$f":"Import!M7557","v":0},null,{"$f":"Import!M7579","v":0},null,{"$f":"Import!M7601","v":0},null,{"$f":"Import!M7623","v":0},null,{"$f":"Import!M7645","v":0},null,{"$f":"Import!M7667","v":0},null,{"$f":"IF(OR(Import!M7689=0,Import!M7689=\"\"),P56,Import!M7689)","v":0},null,{"$f":"IF(OR(Import!M7711=0,Import!M7711=\"\"),R56,Import!M7711)","v":0},null,null,null,0,null,null,null,0.45]
[null,33,"Infrastructure",{"$f":"Import!M7536","v":0},null,{"$f":"IF(OR(Import!M7558=0,Import!M7558=\"\"),(1-$AB57)*D57,Import!M7558)","v":0},null,{"$f":"Import!M7580","v":0},null,{"$f":"IF(OR(Import!M7602=0,Import!M7602=\"\"),(1-$AB57)*H57,Import!M7602)","v":0},null,{"$f":"Import!M7624","v":0},null,{"$f":"IF(OR(Import!M7646=0,Import!M7646=\"\"),(1-$AB57)*L57,Import!M7646)","v":0},null,{"$f":"Import!M7668","v":0},null,{"$f":"IF(OR(Import!M7690=0,Import!M7690=\"\"),P57,Import!M7690)","v":0},null,{"$f":"IF(OR(Import!M7712=0,Import!M7712=\"\"),R57,Import!M7712)","v":0},null,null,null,0,null,null,null,0.25]
[null,34,"Derivatives on Infrastructure",{"$f":"Import!M7537","v":0},null,{"$f":"Import!M7559","v":0},null,{"$f":"Import!M7581","v":0},null,{"$f":"Import!M7603","v":0},null,{"$f":"Import!M7625","v":0},null,{"$f":"Import!M7647","v":0},null,{"$f":"Import!M7669","v":0},null,{"$f":"IF(OR(Import!M7691=0,Import!M7691=\"\"),P58,Import!M7691)","v":0},null,{"$f":"IF(OR(Import!M7713=0,Import!M7713=\"\"),R58,Import!M7713)","v":0},null,null,null,0,null,null,null,0.25]
[null,35,"Equity Real Estate 1",{"$f":"Import!M7538","v":0},null,{"$f":"IF(OR(Import!M7560=0,Import!M7560=\"\"),(1-$AB59)*D59,Import!M7560)","v":0},null,{"$f":"Import!M7582","v":0},null,{"$f":"IF(OR(Import!M7604=0,Import!M7604=\"\"),(1-$AB59)*H59,Import!M7604)","v":0},null,{"$f":"Import!M7626","v":0},null,{"$f":"IF(OR(Import!M7648=0,Import!M7648=\"\"),(1-$AB59)*L59,Import!M7648)","v":0},null,{"$f":"Import!M7670","v":0},null,{"$f":"IF(OR(Import!M7692=0,Import!M7692=\"\"),P59,Import!M7692)","v":0},null,{"$f":"IF(OR(Import!M7714=0,Import!M7714=\"\"),R59,Import!M7714)","v":0},null,null,null,0,null,null,null,0.1]
[null,36,"Equity Real Estate 2",{"$f":"Import!M7539","v":0},null,{"$f":"IF(OR(Import!M7561=0,Import!M7561=\"\"),(1-$AB60)*D60,Import!M7561)","v":0},null,{"$f":"Import!M7583","v":0},null,{"$f":"IF(OR(Import!M7605=0,Import!M7605=\"\"),(1-$AB60)*H60,Import!M7605)","v":0},null,{"$f":"Import!M7627","v":0},null,{"$f":"IF(OR(Import!M7649=0,Import!M7649=\"\"),(1-$AB60)*L60,Import!M7649)","v":0},null,{"$f":"Import!M7671","v":0},null,{"$f":"IF(OR(Import!M7693=0,Import!M7693=\"\"),P60,Import!M7693)","v":0},null,{"$f":"IF(OR(Import!M7715=0,Import!M7715=\"\"),R60,Import!M7715)","v":0},null,null,null,0,null,null,null,0.2]
[]
[null,{"$f":"B60+1","v":37},"Total Equity Holdings",{"$f":"SUM(D38:D61)","v":0},null,{"$f":"SUM(F38:F61)","v":0},null,{"$f":"SUM(H38:H61)","v":0},null,{"$f":"SUM(J38:J61)","v":0},null,{"$f":"SUM(L38:L61)","v":0},null,{"$f":"SUM(N38:N61)","v":0},null,{"$f":"SUM(P38:P61)","v":0},null,{"$f":"SUM(R38:R61)","v":0},null,{"$f":"SUM(T38:T61)","v":0},null,null,null,{"$f":"SUM(X38:X61)","v":0}]
[]
[null,null,null,"Spread Up",null,null,null,null,null,null,null,null,null,"Spread Down"]
[null,null,null,"Long Exposures",null,null,null,"Short Exposures",null,null,null,"Shock (bps)",null,"Long Exposures",null,null,null,"Short Exposures",null,null,null,"Shock Rates"]
[null,null,null,"Before Shock",null,"After Shock",null,"Before Shock",null,"After Shock",null,null,null,"Before Shock",null,"Before Shock",null,"After Shock",null,"After Shock"]
[null,null,"Spread Risk for Credit Derivatives"]
[null,{"$f":"B62+1","v":38},"BSCR Rating 0",{"$f":"Import!M7716","v":0},null,{"$f":"Import!M7725","v":0},null,{"$f":"Import!M7734","v":0},null,{"$f":"Import!M7743","v":0},null,0,null,{"$f":"Import!M7752","v":0},null,{"$f":"Import!M7761","v":0},null,{"$f":"Import!M7770","v":0},null,{"$f":"Import!M7779","v":0},null,0]
[null,{"$f":"B68+1","v":39},"BSCR Rating 1",{"$f":"Import!M7717","v":0},null,{"$f":"Import!M7726","v":0},null,{"$f":"Import!M7735","v":0},null,{"$f":"Import!M7744","v":0},null,130,null,{"$f":"Import!M7753","v":0},null,{"$f":"Import!M7762","v":0},null,{"$f":"Import!M7771","v":0},null,{"$f":"Import!M7780","v":0},null,-0.75]
[null,{"$f":"B69+1","v":40},"BSCR Rating 2",{"$f":"Import!M7718","v":0},null,{"$f":"Import!M7727","v":0},null,{"$f":"Import!M7736","v":0},null,{"$f":"Import!M7745","v":0},null,150,null,{"$f":"Import!M7754","v":0},null,{"$f":"Import!M7763","v":0},null,{"$f":"Import!M7772","v":0},null,{"$f":"Import!M7781","v":0},null,-0.75]
[null,41,"BSCR Rating 3",{"$f":"Import!M7719","v":0},null,{"$f":"Import!M7728","v":0},null,{"$f":"Import!M7737","v":0},null,{"$f":"Import!M7746","v":0},null,260,null,{"$f":"Import!M7755","v":0},null,{"$f":"Import!M7764","v":0},null,{"$f":"Import!M7773","v":0},null,{"$f":"Import!M7782","v":0},null,-0.75]
[null,42,"BSCR Rating 4",{"$f":"Import!M7720","v":0},null,{"$f":"Import!M7729","v":0},null,{"$f":"Import!M7738","v":0},null,{"$f":"Import!M7747","v":0},null,450,null,{"$f":"Import!M7756","v":0},null,{"$f":"Import!M7765","v":0},null,{"$f":"Import!M7774","v":0},null,{"$f":"Import!M7783","v":0},null,-0.75]
[null,43,"BSCR Rating 5",{"$f":"Import!M7721","v":0},null,{"$f":"Import!M7730","v":0},null,{"$f":"Import!M7739","v":0},null,{"$f":"Import!M7748","v":0},null,840,null,{"$f":"Import!M7757","v":0},null,{"$f":"Import!M7766","v":0},null,{"$f":"Import!M7775","v":0},null,{"$f":"Import!M7784","v":0},null,-0.75]
[null,44,"BSCR Rating 6",{"$f":"Import!M7722","v":0},null,{"$f":"Import!M7731","v":0},null,{"$f":"Import!M7740","v":0},null,{"$f":"Import!M7749","v":0},null,1620,null,{"$f":"Import!M7758","v":0},null,{"$f":"Import!M7767","v":0},null,{"$f":"Import!M7776","v":0},null,{"$f":"Import!M7785","v":0},null,-0.75]
[null,45,"BSCR Rating 7",{"$f":"Import!M7723","v":0},null,{"$f":"Import!M7732","v":0},null,{"$f":"Import!M7741","v":0},null,{"$f":"Import!M7750","v":0},null,1620,null,{"$f":"Import!M7759","v":0},null,{"$f":"Import!M7768","v":0},null,{"$f":"Import!M7777","v":0},null,{"$f":"Import!M7786","v":0},null,-0.75]
[null,46,"BSCR Rating 8",{"$f":"Import!M7724","v":0},null,{"$f":"Import!M7733","v":0},null,{"$f":"Import!M7742","v":0},null,{"$f":"Import!M7751","v":0},null,1620,null,{"$f":"Import!M7760","v":0},null,{"$f":"Import!M7769","v":0},null,{"$f":"Import!M7778","v":0},null,{"$f":"Import!M7787","v":0},null,-0.75]
[null,47,"Total Spread",{"$f":"SUM(D67:D76)","v":0},null,{"$f":"SUM(F67:F76)","v":0},null,{"$f":"SUM(H67:H76)","v":0},null,{"$f":"SUM(J67:J76)","v":0},null,null,null,{"$f":"SUM(N67:N76)","v":0},null,{"$f":"SUM(P67:P76)","v":0},null,{"$f":"SUM(R67:R76)","v":0},null,{"$f":"SUM(T67:T76)","v":0}]
[]
[null,null,"Spread Risk Check",null,null,null,null,null,null,null,null,null,null,{"$f":"IF(ROUND(D77-N77,0)=0,\"Yes\",\"No\")","v":"Yes"},null,null,null,{"$f":"IF(ROUND(H77-R77,0)=0,\"Yes\",\"No\")","v":"Yes"}]
[null,null,"Difference",null,null,null,null,null,null,null,null,null,null,{"$f":"ROUND(D77-N77,0)","v":0},null,null,null,{"$f":"ROUND(H77-R77,0)","v":0}]
[]
[null,null,null,"Market Value of Derivatives with Positive Market Value",null,"Market Value of Derivatives with Negative Market Value",null,"Market Value of Collateral, Excluding any over-collateralization"]
[null,null,"Counterparty Default Risk for OTC Derivatives"]
[null,{"$f":"B77+1","v":48},"BSCR Rating 0",{"$f":"Import!M7788","v":0},null,{"$f":"Import!M7797","v":0},null,{"$f":"Import!M7806","v":0}]
[null,{"$f":"B84+1","v":49},"BSCR Rating 1",{"$f":"Import!M7789","v":0},null,{"$f":"Import!M7798","v":0},null,{"$f":"Import!M7807","v":0}]
[null,{"$f":"B85+1","v":50},"BSCR Rating 2",{"$f":"Import!M7790","v":0},null,{"$f":"Import!M7799","v":0},null,{"$f":"Import!M7808","v":0}]
[null,51,"BSCR Rating 3",{"$f":"Import!M7791","v":0},null,{"$f":"Import!M7800","v":0},null,{"$f":"Import!M7809","v":0}]
[null,52,"BSCR Rating 4",{"$f":"Import!M7792","v":0},null,{"$f":"Import!M7801","v":0},null,{"$f":"Import!M7810","v":0}]
[null,53,"BSCR Rating 5",{"$f":"Import!M7793","v":0},null,{"$f":"Import!M7802","v":0},null,{"$f":"Import!M7811","v":0}]
[null,54,"BSCR Rating 6",{"$f":"Import!M7794","v":0},null,{"$f":"Import!M7803","v":0},null,{"$f":"Import!M7812","v":0}]
[null,55,"BSCR Rating 7",{"$f":"Import!M7795","v":0},null,{"$f":"Import!M7804","v":0},null,{"$f":"Import!M7813","v":0}]
[null,56,"BSCR Rating 8",{"$f":"Import!M7796","v":0},null,{"$f":"Import!M7805","v":0},null,{"$f":"Import!M7814","v":0}]
[null,57,"Total Default Risk for OTC Derivatives ",{"$f":"SUM(D83:D92)","v":0},null,{"$f":"SUM(F83:F92)","v":0},null,{"$f":"SUM(H83:H92)","v":0}]
[]
[null,{"$f":"B93+1","v":58},"Cash and Cash Equivalents",{"$f":"Import!M7815","v":0}]
[]
[null,{"$f":"B95+1","v":59},"Total Deposit Assets",{"$f":"X27+X62+D77+H77+D93+F93+H93+D95","v":0}]
[]
[]
[]
[]
[]
[]
[null,null,null,{"$f":"IF(D9=\"\",\"\",TEXT(DATE(YEAR(D9+1)-1,MONTH(D9+1),DAY(D9+1)),\"mm/dd/yyyy\"))","v":"01/01/2019"},null,{"$f":"IF(F9=\"\",\"\",TEXT(DATE(YEAR(F9+1)-1,MONTH(F9+1),DAY(F9+1)),\"mm/dd/yyyy\"))","v":"01/01/2018"}]
[null,null,null,{"$f":"IF(D9=\"\",\"\",TEXT(D9,\"mm/dd/yyyy\"))","v":"12/31/2019"},null,{"$f":"IF(F9=\"\",\"\",TEXT(F9,\"mm/dd/yyyy\"))","v":"12/31/2018"}]
[null,null,null,"brrt_BondsAndDebentures",null,"brrt_BondsAndDebentures",null,"brrt_BondsAndDebentures",null,"brrt_BondsAndDebentures",null,"brrt_BondsAndDebentures",null,"brrt_BondsAndDebentures",null,"brrt_BondsAndDebentures",null,"brrt_BondsAndDebentures",null,null,null,null,null,"brrt_BondsAndDebentures",null,"brrt_BondsAndDebentures"]
[null,null,null,"brrt_SecurityTypeAxis_brrt_CorporateSovereignBondsMember",null,"brrt_SecurityTypeAxis_brrt_CorporateSovereignBondsMember",null,"brrt_SecurityTypeAxis_brrt_ResidentialMortgageBackedSecuritiesMember",null,"brrt_SecurityTypeAxis_brrt_ResidentialMortgageBackedSecuritiesMember",null,"brrt_SecurityTypeAxis_brrt_CommercialMortgageBackedSecuritiesAssetBackedSecuritiesMember",null,"brrt_SecurityTypeAxis_brrt_CommercialMortgageBackedSecuritiesAssetBackedSecuritiesMember",null,"brrt_SecurityTypeAxis_brrt_MutualFundsMember",null,"brrt_SecurityTypeAxis_brrt_MutualFundsMember",null,null,null,null,null,"brrt_SecurityTypeAxis_brrt_TotalMember",null,"brrt_SecurityTypeAxis_brrt_TotalMember"]
[null,null,null,{"$f":"XBRLMap(D13,D$106&\".\"&$AE13&\".\"&$D$107&\".\"&$AE$8,$D$104,$D$105,CONFIGURATION!$B$10,\"BMA\",CONFIGURATION!$B$1,\"bscr\",CONFIGURATION!$B$12)","v":"Mapped"},null,{"$f":"XBRLMap(F13,F$106&\".\"&$AE13&\".\"&$F$107&\".\"&$AE$8,$F$104,$F$105,CONFIGURATION!$B$10,\"BMA\",CONFIGURATION!$B$1,\"bscr\",CONFIGURATION!$B$12)","v":"Mapped"},null,null,null,null,null,null,null,null,null,{"$f":"XBRLMap(P13,P$106&\".\"&$AE13&\".\"&$P$107&\".\"&$AE$8,$D$104,$D$105,CONFIGURATION!$B$10,\"BMA\",CONFIGURATION!$B$1,\"bscr\",CONFIGURATION!$B$12)","v":"Mapped"},null,{"$f":"XBRLMap(R13,R$106&\".\"&$AE13&\".\"&$R$107&\".\"&$AE$8,$F$104,$F$105,CONFIGURATION!$B$10,\"BMA\",CONFIGURATION!$B$1,\"bscr\",CONFIGURATION!$B$12)","v":"Mapped"},null,null,null,null,null,{"$f":"XBRLMap(X13,X$106&\".\"&$AE13&\".\"&$X$107&\".\"&$AE$8,$D$104,$D$105,CONFIGURATION!$B$10,\"BMA\",CONFIGURATION!$B$1,\"bscr\",CONFIGURATION!$B$12)","v":"Mapped"},null,{"$f":"XBRLMap(Z13,Z$106&\".\"&$AE13&\".\"&$Z$107&\".\"&$AE$8,$F$104,$F$105,CONFIGURATION!$B$10,\"BMA\",CONFIGURATION!$B$1,\"bscr\",CONFIGURATION!$B$12)","v":"Mapped"}]
[null,null,null,{"$f":"XBRLMap(D14,D$106&\".\"&$AE14&\".\"&$D$107&\".\"&$AE$8,$D$104,$D$105,CONFIGURATION!$B$10,\"BMA\",CONFIGURATION!$B$1,\"bscr\",CONFIGURATION!$B$12)","v":"Mapped"},null,{"$f":"XBRLMap(F14,F$106&\".\"&$AE14&\".\"&$F$107&\".\"&$AE$8,$F$104,$F$105,CONFIGURATION!$B$10,\"BMA\",CONFIGURATION!$B$1,\"bscr\",CONFIGURATION!$B$12)","v":"Mapped"},null,{"$f":"XBRLMap(H14,H$106&\".\"&$AE14&\".\"&$H$107&\".\"&$AE$8,$D$104,$D$105,CONFIGURATION!$B$10,\"BMA\",CONFIGURATION!$B$1,\"bscr\",CONFIGURATION!$B$12)","v":"Mapped"},null,{"$f":"XBRLMap(J14,J$106&\".\"&$AE14&\".\"&$J$107&\".\"&$AE$8,$F$104,$F$105,CONFIGURATION!$B$10,\"BMA\",CONFIGURATION!$B$1,\"bscr\",CONFIGURATION!$B$12)","v":"Mapped"},null,{"$f":"XBRLMap(L14,L$106&\".\"&$AE14&\".\"&$L$107&\".\"&$AE$8,$D$104,$D$105,CONFIGURATION!$B$10,\"BMA\",CONFIGURATION!$B$1,\"bscr\",CONFIGURATION!$B$12)","v":"Mapped"},null,{"$f":"XBRLMap(N14,N$106&\".\"&$AE14&\".\"&$N$107&\".\"&$AE$8,$F$104,$F$105,CONFIGURATION!$B$10,\"BMA\",CONFIGURATION!$B$1,\"bscr\",CONFIGURATION!$B$12)","v":"Mapped"},null,{"$f":"XBRLMap(P14,P$106&\".\"&$AE14&\".\"&$P$107&\".\"&$AE$8,$D$104,$D$105,CONFIGURATION!$B$10,\"BMA\",CONFIGURATION!$B$1,\"bscr\",CONFIGURATION!$B$12)","v":"Mapped"},null,{"$f":"XBRLMap(R14,R$106&\".\"&$AE14&\".\"&$R$107&\".\"&$AE$8,$F$104,$F$105,CONFIGURATION!$B$10,\"BMA\",CONFIGURATION!$B$1,\"bscr\",CONFIGURATION!$B$12)","v":"Mapped"},null,null,null,null,null,{"$f":"XBRLMap(X14,X$106&\".\"&$AE14&\".\"&$X$107&\".\"&$AE$8,$D$104,$D$105,CONFIGURATION!$B$10,\"BMA\",CONFIGURATION!$B$1,\"bscr\",CONFIGURATION!$B$12)","v":"Mapped"},null,{"$f":"XBRLMap(Z14,Z$106&\".\"&$AE14&\".\"&$Z$107&\".\"&$AE$8,$F$104,$F$105,CONFIGURATION!$B$10,\"BMA\",CONFIGURATION!$B$1,\"bscr\",CONFIGURATION!$B$12)","v":"Mapped"}]
[null,null,null,{"$f":"XBRLMap(D15,D$106&\".\"&$AE15&\".\"&$D$107&\".\"&$AE$8,$D$104,$D$105,CONFIGURATION!$B$10,\"BMA\",CONFIGURATION!$B$1,\"bscr\",CONFIGURATION!$B$12)","v":"Mapped"},null,{"$f":"XBRLMap(F15,F$106&\".\"&$AE15&\".\"&$F$107&\".\"&$AE$8,$F$104,$F$105,CONFIGURATION!$B$10,\"BMA\",CONFIGURATION!$B$1,\"bscr\",CONFIGURATION!$B$12)","v":"Mapped"},null,{"$f":"XBRLMap(H15,H$106&\".\"&$AE15&\".\"&$H$107&\".\"&$AE$8,$D$104,$D$105,CONFIGURATION!$B$10,\"BMA\",CONFIGURATION!$B$1,\"bscr\",CONFIGURATION!$B$12)","v":"Mapped"},null,{"$f":"XBRLMap(J15,J$106&\".\"&$AE15&\".\"&$J$107&\".\"&$AE$8,$F$104,$F$105,CONFIGURATION!$B$10,\"BMA\",CONFIGURATION!$B$1,\"bscr\",CONFIGURATION!$B$12)","v":"Mapped"},null,{"$f":"XBRLMap(L15,L$106&\".\"&$AE15&\".\"&$L$107&\".\"&$AE$8,$D$104,$D$105,CONFIGURATION!$B$10,\"BMA\",CONFIGURATION!$B$1,\"bscr\",CONFIGURATION!$B$12)","v":"Mapped"},null,{"$f":"XBRLMap(N15,N$106&\".\"&$AE15&\".\"&$N$107&\".\"&$AE$8,$F$104,$F$105,CONFIGURATION!$B$10,\"BMA\",CONFIGURATION!$B$1,\"bscr\",CONFIGURATION!$B$12)","v":"Mapped"},null,{"$f":"XBRLMap(P15,P$106&\".\"&$AE15&\".\"&$P$107&\".\"&$AE$8,$D$104,$D$105,CONFIGURATION!$B$10,\"BMA\",CONFIGURATION!$B$1,\"bscr\",CONFIGURATION!$B$12)","v":"Mapped"},null,{"$f":"XBRLMap(R15,R$106&\".\"&$AE15&\".\"&$R$107&\".\"&$AE$8,$F$104,$F$105,CONFIGURATION!$B$10,\"BMA\",CONFIGURATION!$B$1,\"bscr\",CONFIGURATION!$B$12)","v":"Mapped"},null,null,null,null,null,{"$f":"XBRLMap(X15,X$106&\".\"&$AE15&\".\"&$X$107&\".\"&$AE$8,$D$104,$D$105,CONFIGURATION!$B$10,\"BMA\",CONFIGURATION!$B$1,\"bscr\",CONFIGURATION!$B$12)","v":"Mapped"},null,{"$f":"XBRLMap(Z15,Z$106&\".\"&$AE15&\".\"&$Z$107&\".\"&$AE$8,$F$104,$F$105,CONFIGURATION!$B$10,\"BMA\",CONFIGURATION!$B$1,\"bscr\",CONFIGURATION!$B$12)","v":"Mapped"}]
[null,null,null,{"$f":"XBRLMap(D16,D$106&\".\"&$AE16&\".\"&$D$107&\".\"&$AE$8,$D$104,$D$105,CONFIGURATION!$B$10,\"BMA\",CONFIGURATION!$B$1,\"bscr\",CONFIGURATION!$B$12)","v":"Mapped"},null,{"$f":"XBRLMap(F16,F$106&\".\"&$AE16&\".\"&$F$107&\".\"&$AE$8,$F$104,$F$105,CONFIGURATION!$B$10,\"BMA\",CONFIGURATION!$B$1,\"bscr\",CONFIGURATION!$B$12)","v":"Mapped"},null,{"$f":"XBRLMap(H16,H$106&\".\"&$AE16&\".\"&$H$107&\".\"&$AE$8,$D$104,$D$105,CONFIGURATION!$B$10,\"BMA\",CONFIGURATION!$B$1,\"bscr\",CONFIGURATION!$B$12)","v":"Mapped"},null,{"$f":"XBRLMap(J16,J$106&\".\"&$AE16&\".\"&$J$107&\".\"&$AE$8,$F$104,$F$105,CONFIGURATION!$B$10,\"BMA\",CONFIGURATION!$B$1,\"bscr\",CONFIGURATION!$B$12)","v":"Mapped"},null,{"$f":"XBRLMap(L16,L$106&\".\"&$AE16&\".\"&$L$107&\".\"&$AE$8,$D$104,$D$105,CONFIGURATION!$B$10,\"BMA\",CONFIGURATION!$B$1,\"bscr\",CONFIGURATION!$B$12)","v":"Mapped"},null,{"$f":"XBRLMap(N16,N$106&\".\"&$AE16&\".\"&$N$107&\".\"&$AE$8,$F$104,$F$105,CONFIGURATION!$B$10,\"BMA\",CONFIGURATION!$B$1,\"bscr\",CONFIGURATION!$B$12)","v":"Mapped"},null,{"$f":"XBRLMap(P16,P$106&\".\"&$AE16&\".\"&$P$107&\".\"&$AE$8,$D$104,$D$105,CONFIGURATION!$B$10,\"BMA\",CONFIGURATION!$B$1,\"bscr\",CONFIGURATION!$B$12)","v":"Mapped"},null,{"$f":"XBRLMap(R16,R$106&\".\"&$AE16&\".\"&$R$107&\".\"&$AE$8,$F$104,$F$105,CONFIGURATION!$B$10,\"BMA\",CONFIGURATION!$B$1,\"bscr\",CONFIGURATION!$B$12)","v":"Mapped"},null,null,null,null,null,{"$f":"XBRLMap(X16,X$106&\".\"&$AE16&\".\"&$X$107&\".\"&$AE$8,$D$104,$D$105,CONFIGURATION!$B$10,\"BMA\",CONFIGURATION!$B$1,\"bscr\",CONFIGURATION!$B$12)","v":"Mapped"},null,{"$f":"XBRLMap(Z16,Z$106&\".\"&$AE16&\".\"&$Z$107&\".\"&$AE$8,$F$104,$F$105,CONFIGURATION!$B$10,\"BMA\",CONFIGURATION!$B$1,\"bscr\",CONFIGURATION!$B$12)","v":"Mapped"}]
[null,null,null,{"$f":"XBRLMap(D17,D$106&\".\"&$AE17&\".\"&$D$107&\".\"&$AE$8,$D$104,$D$105,CONFIGURATION!$B$10,\"BMA\",CONFIGURATION!$B$1,\"bscr\",CONFIGURATION!$B$12)","v":"Mapped"},null,{"$f":"XBRLMap(F17,F$106&\".\"&$AE17&\".\"&$F$107&\".\"&$AE$8,$F$104,$F$105,CONFIGURATION!$B$10,\"BMA\",CONFIGURATION!$B$1,\"bscr\",CONFIGURATION!$B$12)","v":"Mapped"},null,{"$f":"XBRLMap(H17,H$106&\".\"&$AE17&\".\"&$H$107&\".\"&$AE$8,$D$104,$D$105,CONFIGURATION!$B$10,\"BMA\",CONFIGURATION!$B$1,\"bscr\",CONFIGURATION!$B$12)","v":"Mapped"},null,{"$f":"XBRLMap(J17,J$106&\".\"&$AE17&\".\"&$J$107&\".\"&$AE$8,$F$104,$F$105,CONFIGURATION!$B$10,\"BMA\",CONFIGURATION!$B$1,\"bscr\",CONFIGURATION!$B$12)","v":"Mapped"},null,{"$f":"XBRLMap(L17,L$106&\".\"&$AE17&\".\"&$L$107&\".\"&$AE$8,$D$104,$D$105,CONFIGURATION!$B$10,\"BMA\",CONFIGURATION!$B$1,\"bscr\",CONFIGURATION!$B$12)","v":"Mapped"},null,{"$f":"XBRLMap(N17,N$106&\".\"&$AE17&\".\"&$N$107&\".\"&$AE$8,$F$104,$F$105,CONFIGURATION!$B$10,\"BMA\",CONFIGURATION!$B$1,\"bscr\",CONFIGURATION!$B$12)","v":"Mapped"},null,{"$f":"XBRLMap(P17,P$106&\".\"&$AE17&\".\"&$P$107&\".\"&$AE$8,$D$104,$D$105,CONFIGURATION!$B$10,\"BMA\",CONFIGURATION!$B$1,\"bscr\",CONFIGURATION!$B$12)","v":"Mapped"},null,{"$f":"XBRLMap(R17,R$106&\".\"&$AE17&\".\"&$R$107&\".\"&$AE$8,$F$104,$F$105,CONFIGURATION!$B$10,\"BMA\",CONFIGURATION!$B$1,\"bscr\",CONFIGURATION!$B$12)","v":"Mapped"},null,null,null,null,null,{"$f":"XBRLMap(X17,X$106&\".\"&$AE17&\".\"&$X$107&\".\"&$AE$8,$D$104,$D$105,CONFIGURATION!$B$10,\"BMA\",CONFIGURATION!$B$1,\"bscr\",CONFIGURATION!$B$12)","v":"Mapped"},null,{"$f":"XBRLMap(Z17,Z$106&\".\"&$AE17&\".\"&$Z$107&\".\"&$AE$8,$F$104,$F$105,CONFIGURATION!$B$10,\"BMA\",CONFIGURATION!$B$1,\"bscr\",CONFIGURATION!$B$12)","v":"Mapped"}]
[null,null,null,{"$f":"XBRLMap(D18,D$106&\".\"&$AE18&\".\"&$D$107&\".\"&$AE$8,$D$104,$D$105,CONFIGURATION!$B$10,\"BMA\",CONFIGURATION!$B$1,\"bscr\",CONFIGURATION!$B$12)","v":"Mapped"},null,{"$f":"XBRLMap(F18,F$106&\".\"&$AE18&\".\"&$F$107&\".\"&$AE$8,$F$104,$F$105,CONFIGURATION!$B$10,\"BMA\",CONFIGURATION!$B$1,\"bscr\",CONFIGURATION!$B$12)","v":"Mapped"},null,{"$f":"XBRLMap(H18,H$106&\".\"&$AE18&\".\"&$H$107&\".\"&$AE$8,$D$104,$D$105,CONFIGURATION!$B$10,\"BMA\",CONFIGURATION!$B$1,\"bscr\",CONFIGURATION!$B$12)","v":"Mapped"},null,{"$f":"XBRLMap(J18,J$106&\".\"&$AE18&\".\"&$J$107&\".\"&$AE$8,$F$104,$F$105,CONFIGURATION!$B$10,\"BMA\",CONFIGURATION!$B$1,\"bscr\",CONFIGURATION!$B$12)","v":"Mapped"},null,{"$f":"XBRLMap(L18,L$106&\".\"&$AE18&\".\"&$L$107&\".\"&$AE$8,$D$104,$D$105,CONFIGURATION!$B$10,\"BMA\",CONFIGURATION!$B$1,\"bscr\",CONFIGURATION!$B$12)","v":"Mapped"},null,{"$f":"XBRLMap(N18,N$106&\".\"&$AE18&\".\"&$N$107&\".\"&$AE$8,$F$104,$F$105,CONFIGURATION!$B$10,\"BMA\",CONFIGURATION!$B$1,\"bscr\",CONFIGURATION!$B$12)","v":"Mapped"},null,{"$f":"XBRLMap(P18,P$106&\".\"&$AE18&\".\"&$P$107&\".\"&$AE$8,$D$104,$D$105,CONFIGURATION!$B$10,\"BMA\",CONFIGURATION!$B$1,\"bscr\",CONFIGURATION!$B$12)","v":"Mapped"},null,{"$f":"XBRLMap(R18,R$106&\".\"&$AE18&\".\"&$R$107&\".\"&$AE$8,$F$104,$F$105,CONFIGURATION!$B$10,\"BMA\",CONFIGURATION!$B$1,\"bscr\",CONFIGURATION!$B$12)","v":"Mapped"},null,null,null,null,null,{"$f":"XBRLMap(X18,X$106&\".\"&$AE18&\".\"&$X$107&\".\"&$AE$8,$D$104,$D$105,CONFIGURATION!$B$10,\"BMA\",CONFIGURATION!$B$1,\"bscr\",CONFIGURATION!$B$12)","v":"Mapped"},null,{"$f":"XBRLMap(Z18,Z$106&\".\"&$AE18&\".\"&$Z$107&\".\"&$AE$8,$F$104,$F$105,CONFIGURATION!$B$10,\"BMA\",CONFIGURATION!$B$1,\"bscr\",CONFIGURATION!$B$12)","v":"Mapped"}]
[null,null,null,{"$f":"XBRLMap(D19,D$106&\".\"&$AE19&\".\"&$D$107&\".\"&$AE$8,$D$104,$D$105,CONFIGURATION!$B$10,\"BMA\",CONFIGURATION!$B$1,\"bscr\",CONFIGURATION!$B$12)","v":"Mapped"},null,{"$f":"XBRLMap(F19,F$106&\".\"&$AE19&\".\"&$F$107&\".\"&$AE$8,$F$104,$F$105,CONFIGURATION!$B$10,\"BMA\",CONFIGURATION!$B$1,\"bscr\",CONFIGURATION!$B$12)","v":"Mapped"},null,{"$f":"XBRLMap(H19,H$106&\".\"&$AE19&\".\"&$H$107&\".\"&$AE$8,$D$104,$D$105,CONFIGURATION!$B$10,\"BMA\",CONFIGURATION!$B$1,\"bscr\",CONFIGURATION!$B$12)","v":"Mapped"},null,{"$f":"XBRLMap(J19,J$106&\".\"&$AE19&\".\"&$J$107&\".\"&$AE$8,$F$104,$F$105,CONFIGURATION!$B$10,\"BMA\",CONFIGURATION!$B$1,\"bscr\",CONFIGURATION!$B$12)","v":"Mapped"},null,{"$f":"XBRLMap(L19,L$106&\".\"&$AE19&\".\"&$L$107&\".\"&$AE$8,$D$104,$D$105,CONFIGURATION!$B$10,\"BMA\",CONFIGURATION!$B$1,\"bscr\",CONFIGURATION!$B$12)","v":"Mapped"},null,{"$f":"XBRLMap(N19,N$106&\".\"&$AE19&\".\"&$N$107&\".\"&$AE$8,$F$104,$F$105,CONFIGURATION!$B$10,\"BMA\",CONFIGURATION!$B$1,\"bscr\",CONFIGURATION!$B$12)","v":"Mapped"},null,{"$f":"XBRLMap(P19,P$106&\".\"&$AE19&\".\"&$P$107&\".\"&$AE$8,$D$104,$D$105,CONFIGURATION!$B$10,\"BMA\",CONFIGURATION!$B$1,\"bscr\",CONFIGURATION!$B$12)","v":"Mapped"},null,{"$f":"XBRLMap(R19,R$106&\".\"&$AE19&\".\"&$R$107&\".\"&$AE$8,$F$104,$F$105,CONFIGURATION!$B$10,\"BMA\",CONFIGURATION!$B$1,\"bscr\",CONFIGURATION!$B$12)","v":"Mapped"},null,null,null,null,null,{"$f":"XBRLMap(X19,X$106&\".\"&$AE19&\".\"&$X$107&\".\"&$AE$8,$D$104,$D$105,CONFIGURATION!$B$10,\"BMA\",CONFIGURATION!$B$1,\"bscr\",CONFIGURATION!$B$12)","v":"Mapped"},null,{"$f":"XBRLMap(Z19,Z$106&\".\"&$AE19&\".\"&$Z$107&\".\"&$AE$8,$F$104,$F$105,CONFIGURATION!$B$10,\"BMA\",CONFIGURATION!$B$1,\"bscr\",CONFIGURATION!$B$12)","v":"Mapped"}]
[null,null,null,{"$f":"XBRLMap(D20,D$106&\".\"&$AE20&\".\"&$D$107&\".\"&$AE$8,$D$104,$D$105,CONFIGURATION!$B$10,\"BMA\",CONFIGURATION!$B$1,\"bscr\",CONFIGURATION!$B$12)","v":"Mapped"},null,{"$f":"XBRLMap(F20,F$106&\".\"&$AE20&\".\"&$F$107&\".\"&$AE$8,$F$104,$F$105,CONFIGURATION!$B$10,\"BMA\",CONFIGURATION!$B$1,\"bscr\",CONFIGURATION!$B$12)","v":"Mapped"},null,{"$f":"XBRLMap(H20,H$106&\".\"&$AE20&\".\"&$H$107&\".\"&$AE$8,$D$104,$D$105,CONFIGURATION!$B$10,\"BMA\",CONFIGURATION!$B$1,\"bscr\",CONFIGURATION!$B$12)","v":"Mapped"},null,{"$f":"XBRLMap(J20,J$106&\".\"&$AE20&\".\"&$J$107&\".\"&$AE$8,$F$104,$F$105,CONFIGURATION!$B$10,\"BMA\",CONFIGURATION!$B$1,\"bscr\",CONFIGURATION!$B$12)","v":"Mapped"},null,{"$f":"XBRLMap(L20,L$106&\".\"&$AE20&\".\"&$L$107&\".\"&$AE$8,$D$104,$D$105,CONFIGURATION!$B$10,\"BMA\",CONFIGURATION!$B$1,\"bscr\",CONFIGURATION!$B$12)","v":"Mapped"},null,{"$f":"XBRLMap(N20,N$106&\".\"&$AE20&\".\"&$N$107&\".\"&$AE$8,$F$104,$F$105,CONFIGURATION!$B$10,\"BMA\",CONFIGURATION!$B$1,\"bscr\",CONFIGURATION!$B$12)","v":"Mapped"},null,{"$f":"XBRLMap(P20,P$106&\".\"&$AE20&\".\"&$P$107&\".\"&$AE$8,$D$104,$D$105,CONFIGURATION!$B$10,\"BMA\",CONFIGURATION!$B$1,\"bscr\",CONFIGURATION!$B$12)","v":"Mapped"},null,{"$f":"XBRLMap(R20,R$106&\".\"&$AE20&\".\"&$R$107&\".\"&$AE$8,$F$104,$F$105,CONFIGURATION!$B$10,\"BMA\",CONFIGURATION!$B$1,\"bscr\",CONFIGURATION!$B$12)","v":"Mapped"},null,null,null,null,null,{"$f":"XBRLMap(X20,X$106&\".\"&$AE20&\".\"&$X$107&\".\"&$AE$8,$D$104,$D$105,CONFIGURATION!$B$10,\"BMA\",CONFIGURATION!$B$1,\"bscr\",CONFIGURATION!$B$12)","v":"Mapped"},null,{"$f":"XBRLMap(Z20,Z$106&\".\"&$AE20&\".\"&$Z$107&\".\"&$AE$8,$F$104,$F$105,CONFIGURATION!$B$10,\"BMA\",CONFIGURATION!$B$1,\"bscr\",CONFIGURATION!$B$12)","v":"Mapped"}]
[null,null,null,{"$f":"XBRLMap(D21,D$106&\".\"&$AE21&\".\"&$D$107&\".\"&$AE$8,$D$104,$D$105,CONFIGURATION!$B$10,\"BMA\",CONFIGURATION!$B$1,\"bscr\",CONFIGURATION!$B$12)","v":"Mapped"},null,{"$f":"XBRLMap(F21,F$106&\".\"&$AE21&\".\"&$F$107&\".\"&$AE$8,$F$104,$F$105,CONFIGURATION!$B$10,\"BMA\",CONFIGURATION!$B$1,\"bscr\",CONFIGURATION!$B$12)","v":"Mapped"},null,{"$f":"XBRLMap(H21,H$106&\".\"&$AE21&\".\"&$H$107&\".\"&$AE$8,$D$104,$D$105,CONFIGURATION!$B$10,\"BMA\",CONFIGURATION!$B$1,\"bscr\",CONFIGURATION!$B$12)","v":"Mapped"},null,{"$f":"XBRLMap(J21,J$106&\".\"&$AE21&\".\"&$J$107&\".\"&$AE$8,$F$104,$F$105,CONFIGURATION!$B$10,\"BMA\",CONFIGURATION!$B$1,\"bscr\",CONFIGURATION!$B$12)","v":"Mapped"},null,{"$f":"XBRLMap(L21,L$106&\".\"&$AE21&\".\"&$L$107&\".\"&$AE$8,$D$104,$D$105,CONFIGURATION!$B$10,\"BMA\",CONFIGURATION!$B$1,\"bscr\",CONFIGURATION!$B$12)","v":"Mapped"},null,{"$f":"XBRLMap(N21,N$106&\".\"&$AE21&\".\"&$N$107&\".\"&$AE$8,$F$104,$F$105,CONFIGURATION!$B$10,\"BMA\",CONFIGURATION!$B$1,\"bscr\",CONFIGURATION!$B$12)","v":"Mapped"},null,{"$f":"XBRLMap(P21,P$106&\".\"&$AE21&\".\"&$P$107&\".\"&$AE$8,$D$104,$D$105,CONFIGURATION!$B$10,\"BMA\",CONFIGURATION!$B$1,\"bscr\",CONFIGURATION!$B$12)","v":"Mapped"},null,{"$f":"XBRLMap(R21,R$106&\".\"&$AE21&\".\"&$R$107&\".\"&$AE$8,$F$104,$F$105,CONFIGURATION!$B$10,\"BMA\",CONFIGURATION!$B$1,\"bscr\",CONFIGURATION!$B$12)","v":"Mapped"},null,null,null,null,null,{"$f":"XBRLMap(X21,X$106&\".\"&$AE21&\".\"&$X$107&\".\"&$AE$8,$D$104,$D$105,CONFIGURATION!$B$10,\"BMA\",CONFIGURATION!$B$1,\"bscr\",CONFIGURATION!$B$12)","v":"Mapped"},null,{"$f":"XBRLMap(Z21,Z$106&\".\"&$AE21&\".\"&$Z$107&\".\"&$AE$8,$F$104,$F$105,CONFIGURATION!$B$10,\"BMA\",CONFIGURATION!$B$1,\"bscr\",CONFIGURATION!$B$12)","v":"Mapped"}]
[]
[null,null,null,{"$f":"XBRLMap(D27,D$106&\".\"&$AE27&\".\"&$D$107&\".\"&$AE$8,$D$104,$D$105,CONFIGURATION!$B$10,\"BMA\",CONFIGURATION!$B$1,\"bscr\",CONFIGURATION!$B$12)","v":"Mapped"},null,{"$f":"XBRLMap(F27,F$106&\".\"&$AE27&\".\"&$F$107&\".\"&$AE$8,$F$104,$F$105,CONFIGURATION!$B$10,\"BMA\",CONFIGURATION!$B$1,\"bscr\",CONFIGURATION!$B$12)","v":"Mapped"},null,{"$f":"XBRLMap(H27,H$106&\".\"&$AE27&\".\"&$H$107&\".\"&$AE$8,$D$104,$D$105,CONFIGURATION!$B$10,\"BMA\",CONFIGURATION!$B$1,\"bscr\",CONFIGURATION!$B$12)","v":"Mapped"},null,{"$f":"XBRLMap(J27,J$106&\".\"&$AE27&\".\"&$J$107&\".\"&$AE$8,$F$104,$F$105,CONFIGURATION!$B$10,\"BMA\",CONFIGURATION!$B$1,\"bscr\",CONFIGURATION!$B$12)","v":"Mapped"},null,{"$f":"XBRLMap(L27,L$106&\".\"&$AE27&\".\"&$L$107&\".\"&$AE$8,$D$104,$D$105,CONFIGURATION!$B$10,\"BMA\",CONFIGURATION!$B$1,\"bscr\",CONFIGURATION!$B$12)","v":"Mapped"},null,{"$f":"XBRLMap(N27,N$106&\".\"&$AE27&\".\"&$N$107&\".\"&$AE$8,$F$104,$F$105,CONFIGURATION!$B$10,\"BMA\",CONFIGURATION!$B$1,\"bscr\",CONFIGURATION!$B$12)","v":"Mapped"},null,{"$f":"XBRLMap(P27,P$106&\".\"&$AE27&\".\"&$P$107&\".\"&$AE$8,$D$104,$D$105,CONFIGURATION!$B$10,\"BMA\",CONFIGURATION!$B$1,\"bscr\",CONFIGURATION!$B$12)","v":"Mapped"},null,{"$f":"XBRLMap(R27,R$106&\".\"&$AE27&\".\"&$R$107&\".\"&$AE$8,$F$104,$F$105,CONFIGURATION!$B$10,\"BMA\",CONFIGURATION!$B$1,\"bscr\",CONFIGURATION!$B$12)","v":"Mapped"},null,null,null,null,null,{"$f":"XBRLMap(X27,X$106&\".\"&$AE27&\".\"&$X$107&\".\"&$AE$8,$D$104,$D$105,CONFIGURATION!$B$10,\"BMA\",CONFIGURATION!$B$1,\"bscr\",CONFIGURATION!$B$12)","v":"Mapped"},null,{"$f":"XBRLMap(Z27,Z$106&\".\"&$AE27&\".\"&$Z$107&\".\"&$AE$8,$F$104,$F$105,CONFIGURATION!$B$10,\"BMA\",CONFIGURATION!$B$1,\"bscr\",CONFIGURATION!$B$12)","v":"Mapped"}]
[]
[null,null,null,"brrt_QuotedInvestmentsEquitiesCommonStocks",null,"brrt_QuotedInvestmentsEquitiesCommonStocks",null,null,null,null,null,"brrt_QuotedInvestmentsEquitiesMutualFunds",null,"brrt_QuotedInvestmentsEquitiesMutualFunds",null,null,null,null,null,null,null,null,null,"brrt_QuotedInvestmentsEquitiesCommonStocksMutualFunds",null,"brrt_QuotedInvestmentsEquitiesCommonStocksMutualFunds"]
[null,null,null,"brrt_UnquotedInvestmentsEquitiesCommonStocks",null,"brrt_UnquotedInvestmentsEquitiesCommonStocks",null,null,null,null,null,"brrt_UnquotedInvestmentsEquitiesMutualFunds",null,"brrt_UnquotedInvestmentsEquitiesMutualFunds",null,null,null,null,null,null,null,null,null,"brrt_UnquotedInvestmentsEquitiesCommonStocksMutualFunds",null,"brrt_UnquotedInvestmentsEquitiesCommonStocksMutualFunds"]
[null,null,null,"brrt_EquitiesCommonStocks",null,"brrt_EquitiesCommonStocks",null,"brrt_EquitiesPreferredStocks",null,"brrt_EquitiesPreferredStocks",null,"brrt_EquitiesMutualFunds",null,"brrt_EquitiesMutualFunds",null,null,null,null,null,null,null,null,null,"brrt_Equities",null,"brrt_Equities"]
[null,null,null,null,null,null,null,{"$f":"XBRLMap(#REF!,H$122&\".\"&#REF!&\".\"&$AE$8,$D$104,$D$105,CONFIGURATION!$B$10,\"BMA\",CONFIGURATION!$B$1,\"bscr\",CONFIGURATION!$B$12)","v":{"$error":"#VALUE!"}},null,{"$f":"XBRLMap(#REF!,J$122&\".\"&#REF!&\".\"&$AE$8,$F$104,$F$105,CONFIGURATION!$B$10,\"BMA\",CONFIGURATION!$B$1,\"bscr\",CONFIGURATION!$B$12)","v":{"$error":"#VALUE!"}},null,null,null,null,null,null,null,null,null,null,null,null,null,"The same data point as in column H",null,"The same data point as in column J"]
[null,null,null,null,null,null,null,{"$f":"XBRLMap(#REF!,H$122&\".\"&#REF!&\".\"&$AE$8,$D$104,$D$105,CONFIGURATION!$B$10,\"BMA\",CONFIGURATION!$B$1,\"bscr\",CONFIGURATION!$B$12)","v":{"$error":"#VALUE!"}},null,{"$f":"XBRLMap(#REF!,J$122&\".\"&#REF!&\".\"&$AE$8,$F$104,$F$105,CONFIGURATION!$B$10,\"BMA\",CONFIGURATION!$B$1,\"bscr\",CONFIGURATION!$B$12)","v":{"$error":"#VALUE!"}},null,null,null,null,null,null,null,null,null,null,null,null,null,"The same data point as in column H",null,"The same data point as in column J"]
[null,null,null,null,null,null,null,{"$f":"XBRLMap(#REF!,H$122&\".\"&#REF!&\".\"&$AE$8,$D$104,$D$105,CONFIGURATION!$B$10,\"BMA\",CONFIGURATION!$B$1,\"bscr\",CONFIGURATION!$B$12)","v":{"$error":"#VALUE!"}},null,{"$f":"XBRLMap(#REF!,J$122&\".\"&#REF!&\".\"&$AE$8,$F$104,$F$105,CONFIGURATION!$B$10,\"BMA\",CONFIGURATION!$B$1,\"bscr\",CONFIGURATION!$B$12)","v":{"$error":"#VALUE!"}},null,null,null,null,null,null,null,null,null,null,null,null,null,"The same data point as in column H",null,"The same data point as in column J"]
[null,null,null,null,null,null,null,{"$f":"XBRLMap(#REF!,H$122&\".\"&#REF!&\".\"&$AE$8,$D$104,$D$105,CONFIGURATION!$B$10,\"BMA\",CONFIGURATION!$B$1,\"bscr\",CONFIGURATION!$B$12)","v":{"$error":"#VALUE!"}},null,{"$f":"XBRLMap(#REF!,J$122&\".\"&#REF!&\".\"&$AE$8,$F$104,$F$105,CONFIGURATION!$B$10,\"BMA\",CONFIGURATION!$B$1,\"bscr\",CONFIGURATION!$B$12)","v":{"$error":"#VALUE!"}},null,null,null,null,null,null,null,null,null,null,null,null,null,"The same data point as in column H",null,"The same data point as in column J"]
[null,null,null,null,null,null,null,{"$f":"XBRLMap(#REF!,H$122&\".\"&#REF!&\".\"&$AE$8,$D$104,$D$105,CONFIGURATION!$B$10,\"BMA\",CONFIGURATION!$B$1,\"bscr\",CONFIGURATION!$B$12)","v":{"$error":"#VALUE!"}},null,{"$f":"XBRLMap(#REF!,J$122&\".\"&#REF!&\".\"&$AE$8,$F$104,$F$105,CONFIGURATION!$B$10,\"BMA\",CONFIGURATION!$B$1,\"bscr\",CONFIGURATION!$B$12)","v":{"$error":"#VALUE!"}},null,null,null,null,null,null,null,null,null,null,null,null,null,"The same data point as in column H",null,"The same data point as in column J"]
[null,null,null,null,null,null,null,{"$f":"XBRLMap(#REF!,H$122&\".\"&#REF!&\".\"&$AE$8,$D$104,$D$105,CONFIGURATION!$B$10,\"BMA\",CONFIGURATION!$B$1,\"bscr\",CONFIGURATION!$B$12)","v":{"$error":"#VALUE!"}},null,{"$f":"XBRLMap(#REF!,J$122&\".\"&#REF!&\".\"&$AE$8,$F$104,$F$105,CONFIGURATION!$B$10,\"BMA\",CONFIGURATION!$B$1,\"bscr\",CONFIGURATION!$B$12)","v":{"$error":"#VALUE!"}},null,null,null,null,null,null,null,null,null,null,null,null,null,"The same data point as in column H",null,"The same data point as in column J"]
[null,null,null,null,null,null,null,{"$f":"XBRLMap(#REF!,H$122&\".\"&#REF!&\".\"&$AE$8,$D$104,$D$105,CONFIGURATION!$B$10,\"BMA\",CONFIGURATION!$B$1,\"bscr\",CONFIGURATION!$B$12)","v":{"$error":"#VALUE!"}},null,{"$f":"XBRLMap(#REF!,J$122&\".\"&#REF!&\".\"&$AE$8,$F$104,$F$105,CONFIGURATION!$B$10,\"BMA\",CONFIGURATION!$B$1,\"bscr\",CONFIGURATION!$B$12)","v":{"$error":"#VALUE!"}},null,null,null,null,null,null,null,null,null,null,null,null,null,"The same data point as in column H",null,"The same data point as in column J"]
[null,null,null,null,null,null,null,{"$f":"XBRLMap(#REF!,H$122&\".\"&#REF!&\".\"&$AE$8,$D$104,$D$105,CONFIGURATION!$B$10,\"BMA\",CONFIGURATION!$B$1,\"bscr\",CONFIGURATION!$B$12)","v":{"$error":"#VALUE!"}},null,{"$f":"XBRLMap(#REF!,J$122&\".\"&#REF!&\".\"&$AE$8,$F$104,$F$105,CONFIGURATION!$B$10,\"BMA\",CONFIGURATION!$B$1,\"bscr\",CONFIGURATION!$B$12)","v":{"$error":"#VALUE!"}},null,null,null,null,null,null,null,null,null,null,null,null,null,"The same data point as in column H",null,"The same data point as in column J"]
[null,null,null,{"$f":"XBRLMap(#REF!,D$120&\".\"&$AE$8,$D$104,$D$105,CONFIGURATION!$B$10,\"BMA\",CONFIGURATION!$B$1,\"bscr\",CONFIGURATION!$B$12)","v":{"$error":"#VALUE!"}},null,{"$f":"XBRLMap(#REF!,F$120&\".\"&$AE$8,$F$104,$F$105,CONFIGURATION!$B$10,\"BMA\",CONFIGURATION!$B$1,\"bscr\",CONFIGURATION!$B$12)","v":{"$error":"#VALUE!"}},null,null,null,null,null,{"$f":"XBRLMap(#REF!,L$120&\".\"&$AE$8,$D$104,$D$105,CONFIGURATION!$B$10,\"BMA\",CONFIGURATION!$B$1,\"bscr\",CONFIGURATION!$B$12)","v":{"$error":"#VALUE!"}},null,{"$f":"XBRLMap(#REF!,N$120&\".\"&$AE$8,$F$104,$F$105,CONFIGURATION!$B$10,\"BMA\",CONFIGURATION!$B$1,\"bscr\",CONFIGURATION!$B$12)","v":{"$error":"#VALUE!"}},null,null,null,null,null,null,null,null,null,{"$f":"XBRLMap(#REF!,X$120&\".\"&$AE$8,$D$104,$D$105,CONFIGURATION!$B$10,\"BMA\",CONFIGURATION!$B$1,\"bscr\",CONFIGURATION!$B$12)","v":{"$error":"#VALUE!"}},null,{"$f":"XBRLMap(#REF!,Z$120&\".\"&$AE$8,$F$104,$F$105,CONFIGURATION!$B$10,\"BMA\",CONFIGURATION!$B$1,\"bscr\",CONFIGURATION!$B$12)","v":{"$error":"#VALUE!"}}]
[null,null,null,{"$f":"XBRLMap(#REF!,D$121&\".\"&$AE$8,$D$104,$D$105,CONFIGURATION!$B$10,\"BMA\",CONFIGURATION!$B$1,\"bscr\",CONFIGURATION!$B$12)","v":{"$error":"#VALUE!"}},null,{"$f":"XBRLMap(#REF!,F$121&\".\"&$AE$8,$F$104,$F$105,CONFIGURATION!$B$10,\"BMA\",CONFIGURATION!$B$1,\"bscr\",CONFIGURATION!$B$12)","v":{"$error":"#VALUE!"}},null,null,null,null,null,{"$f":"XBRLMap(#REF!,L$121&\".\"&$AE$8,$D$104,$D$105,CONFIGURATION!$B$10,\"BMA\",CONFIGURATION!$B$1,\"bscr\",CONFIGURATION!$B$12)","v":{"$error":"#VALUE!"}},null,{"$f":"XBRLMap(#REF!,N$121&\".\"&$AE$8,$F$104,$F$105,CONFIGURATION!$B$10,\"BMA\",CONFIGURATION!$B$1,\"bscr\",CONFIGURATION!$B$12)","v":{"$error":"#VALUE!"}},null,null,null,null,null,null,null,null,null,{"$f":"XBRLMap(#REF!,X$121&\".\"&$AE$8,$D$104,$D$105,CONFIGURATION!$B$10,\"BMA\",CONFIGURATION!$B$1,\"bscr\",CONFIGURATION!$B$12)","v":{"$error":"#VALUE!"}},null,{"$f":"XBRLMap(#REF!,Z$121&\".\"&$AE$8,$F$104,$F$105,CONFIGURATION!$B$10,\"BMA\",CONFIGURATION!$B$1,\"bscr\",CONFIGURATION!$B$12)","v":{"$error":"#VALUE!"}}]
[]
[null,null,null,{"$f":"XBRLMap(#REF!,D$122&\".\"&$AE$8,$D$104,$D$105,CONFIGURATION!$B$10,\"BMA\",CONFIGURATION!$B$1,\"bscr\",CONFIGURATION!$B$12)","v":{"$error":"#VALUE!"}},null,{"$f":"XBRLMap(#REF!,F$122&\".\"&$AE$8,$F$104,$F$105,CONFIGURATION!$B$10,\"BMA\",CONFIGURATION!$B$1,\"bscr\",CONFIGURATION!$B$12)","v":{"$error":"#VALUE!"}},null,{"$f":"XBRLMap(#REF!,H$122&\".\"&#REF!&\".\"&$AE$8,$D$104,$D$105,CONFIGURATION!$B$10,\"BMA\",CONFIGURATION!$B$1,\"bscr\",CONFIGURATION!$B$12)","v":{"$error":"#VALUE!"}},null,{"$f":"XBRLMap(#REF!,J$122&\".\"&#REF!&\".\"&$AE$8,$F$104,$F$105,CONFIGURATION!$B$10,\"BMA\",CONFIGURATION!$B$1,\"bscr\",CONFIGURATION!$B$12)","v":{"$error":"#VALUE!"}},null,{"$f":"XBRLMap(#REF!,L$122&\".\"&$AE$8,$D$104,$D$105,CONFIGURATION!$B$10,\"BMA\",CONFIGURATION!$B$1,\"bscr\",CONFIGURATION!$B$12)","v":{"$error":"#VALUE!"}},null,{"$f":"XBRLMap(#REF!,N$122&\".\"&$AE$8,$F$104,$F$105,CONFIGURATION!$B$10,\"BMA\",CONFIGURATION!$B$1,\"bscr\",CONFIGURATION!$B$12)","v":{"$error":"#VALUE!"}},null,null,null,null,null,null,null,null,null,{"$f":"XBRLMap(#REF!,X$122&\".\"&$AE$8,$D$104,$D$105,CONFIGURATION!$B$10,\"BMA\",CONFIGURATION!$B$1,\"bscr\",CONFIGURATION!$B$12)","v":{"$error":"#VALUE!"}},null,{"$f":"XBRLMap(#REF!,Z$122&\".\"&$AE$8,$F$104,$F$105,CONFIGURATION!$B$10,\"BMA\",CONFIGURATION!$B$1,\"bscr\",CONFIGURATION!$B$12)","v":{"$error":"#VALUE!"}}]
[]
[]
[]
[null,null,null,null,null,null,null,null,null,null,null,"brrt_BondsAndDebentures",null,"brrt_BondsAndDebentures",null,"brrt_BondsAndDebentures",null,"brrt_BondsAndDebentures"]
[null,null,null,null,null,null,null,null,null,null,null,"brrt_SecurityTypeAxis_brrt_ResidentialMortgageBackedSecuritiesMember",null,"brrt_SecurityTypeAxis_brrt_ResidentialMortgageBackedSecuritiesMember",null,"brrt_SecurityTypeAxis_brrt_CommercialMortgageBackedSecuritiesAssetBackedSecuritiesMember",null,"brrt_SecurityTypeAxis_brrt_CommercialMortgageBackedSecuritiesAssetBackedSecuritiesMember"]
[null,null,null,null,null,null,null,null,null,null,null,"brrt_ClassificationAxis_brrt_OriginalClassificationMember",null,"brrt_ClassificationAxis_brrt_RevisedClassificationMember",null,"brrt_ClassificationAxis_brrt_OriginalClassificationMember",null,"brrt_ClassificationAxis_brrt_RevisedClassificationMember"]
[null,null,null,null,null,null,null,null,null,null,null,{"$f":"XBRLMap(#REF!,L$138&\".\"&#REF!&\".\"&$L$139&\".\"&$L$140&\".\"&$AE$8,$D$104,$D$105,CONFIGURATION!$B$10,\"BMA\",CONFIGURATION!$B$1,\"bscr\",CONFIGURATION!$B$12)","v":{"$error":"#VALUE!"}},null,{"$f":"XBRLMap(#REF!,N$138&\".\"&#REF!&\".\"&$N$139&\".\"&$N$140&\".\"&$AE$8,$D$104,$D$105,CONFIGURATION!$B$10,\"BMA\",CONFIGURATION!$B$1,\"bscr\",CONFIGURATION!$B$12)","v":{"$error":"#VALUE!"}},null,{"$f":"XBRLMap(#REF!,P$138&\".\"&#REF!&\".\"&$P$139&\".\"&$P$140&\".\"&$AE$8,$D$104,$D$105,CONFIGURATION!$B$10,\"BMA\",CONFIGURATION!$B$1,\"bscr\",CONFIGURATION!$B$12)","v":{"$error":"#VALUE!"}},null,{"$f":"XBRLMap(#REF!,R$138&\".\"&#REF!&\".\"&$R$139&\".\"&$R$140&\".\"&$AE$8,$D$104,$D$105,CONFIGURATION!$B$10,\"BMA\",CONFIGURATION!$B$1,\"bscr\",CONFIGURATION!$B$12)","v":{"$error":"#VALUE!"}}]
[null,null,null,null,null,null,null,null,null,null,null,{"$f":"XBRLMap(#REF!,L$138&\".\"&#REF!&\".\"&$L$139&\".\"&$L$140&\".\"&$AE$8,$D$104,$D$105,CONFIGURATION!$B$10,\"BMA\",CONFIGURATION!$B$1,\"bscr\",CONFIGURATION!$B$12)","v":{"$error":"#VALUE!"}},null,{"$f":"XBRLMap(#REF!,N$138&\".\"&#REF!&\".\"&$N$139&\".\"&$N$140&\".\"&$AE$8,$D$104,$D$105,CONFIGURATION!$B$10,\"BMA\",CONFIGURATION!$B$1,\"bscr\",CONFIGURATION!$B$12)","v":{"$error":"#VALUE!"}},null,{"$f":"XBRLMap(#REF!,P$138&\".\"&#REF!&\".\"&$P$139&\".\"&$P$140&\".\"&$AE$8,$D$104,$D$105,CONFIGURATION!$B$10,\"BMA\",CONFIGURATION!$B$1,\"bscr\",CONFIGURATION!$B$12)","v":{"$error":"#VALUE!"}},null,{"$f":"XBRLMap(#REF!,R$138&\".\"&#REF!&\".\"&$R$139&\".\"&$R$140&\".\"&$AE$8,$D$104,$D$105,CONFIGURATION!$B$10,\"BMA\",CONFIGURATION!$B$1,\"bscr\",CONFIGURATION!$B$12)","v":{"$error":"#VALUE!"}}]
[null,null,null,null,null,null,null,null,null,null,null,{"$f":"XBRLMap(#REF!,L$138&\".\"&#REF!&\".\"&$L$139&\".\"&$L$140&\".\"&$AE$8,$D$104,$D$105,CONFIGURATION!$B$10,\"BMA\",CONFIGURATION!$B$1,\"bscr\",CONFIGURATION!$B$12)","v":{"$error":"#VALUE!"}},null,{"$f":"XBRLMap(#REF!,N$138&\".\"&#REF!&\".\"&$N$139&\".\"&$N$140&\".\"&$AE$8,$D$104,$D$105,CONFIGURATION!$B$10,\"BMA\",CONFIGURATION!$B$1,\"bscr\",CONFIGURATION!$B$12)","v":{"$error":"#VALUE!"}},null,{"$f":"XBRLMap(#REF!,P$138&\".\"&#REF!&\".\"&$P$139&\".\"&$P$140&\".\"&$AE$8,$D$104,$D$105,CONFIGURATION!$B$10,\"BMA\",CONFIGURATION!$B$1,\"bscr\",CONFIGURATION!$B$12)","v":{"$error":"#VALUE!"}},null,{"$f":"XBRLMap(#REF!,R$138&\".\"&#REF!&\".\"&$R$139&\".\"&$R$140&\".\"&$AE$8,$D$104,$D$105,CONFIGURATION!$B$10,\"BMA\",CONFIGURATION!$B$1,\"bscr\",CONFIGURATION!$B$12)","v":{"$error":"#VALUE!"}}]
[null,null,null,null,null,null,null,null,null,null,null,{"$f":"XBRLMap(#REF!,L$138&\".\"&#REF!&\".\"&$L$139&\".\"&$L$140&\".\"&$AE$8,$D$104,$D$105,CONFIGURATION!$B$10,\"BMA\",CONFIGURATION!$B$1,\"bscr\",CONFIGURATION!$B$12)","v":{"$error":"#VALUE!"}},null,{"$f":"XBRLMap(#REF!,N$138&\".\"&#REF!&\".\"&$N$139&\".\"&$N$140&\".\"&$AE$8,$D$104,$D$105,CONFIGURATION!$B$10,\"BMA\",CONFIGURATION!$B$1,\"bscr\",CONFIGURATION!$B$12)","v":{"$error":"#VALUE!"}},null,{"$f":"XBRLMap(#REF!,P$138&\".\"&#REF!&\".\"&$P$139&\".\"&$P$140&\".\"&$AE$8,$D$104,$D$105,CONFIGURATION!$B$10,\"BMA\",CONFIGURATION!$B$1,\"bscr\",CONFIGURATION!$B$12)","v":{"$error":"#VALUE!"}},null,{"$f":"XBRLMap(#REF!,R$138&\".\"&#REF!&\".\"&$R$139&\".\"&$R$140&\".\"&$AE$8,$D$104,$D$105,CONFIGURATION!$B$10,\"BMA\",CONFIGURATION!$B$1,\"bscr\",CONFIGURATION!$B$12)","v":{"$error":"#VALUE!"}}]
[null,null,null,null,null,null,null,null,null,null,null,{"$f":"XBRLMap(#REF!,L$138&\".\"&#REF!&\".\"&$L$139&\".\"&$L$140&\".\"&$AE$8,$D$104,$D$105,CONFIGURATION!$B$10,\"BMA\",CONFIGURATION!$B$1,\"bscr\",CONFIGURATION!$B$12)","v":{"$error":"#VALUE!"}},null,{"$f":"XBRLMap(#REF!,N$138&\".\"&#REF!&\".\"&$N$139&\".\"&$N$140&\".\"&$AE$8,$D$104,$D$105,CONFIGURATION!$B$10,\"BMA\",CONFIGURATION!$B$1,\"bscr\",CONFIGURATION!$B$12)","v":{"$error":"#VALUE!"}},null,{"$f":"XBRLMap(#REF!,P$138&\".\"&#REF!&\".\"&$P$139&\".\"&$P$140&\".\"&$AE$8,$D$104,$D$105,CONFIGURATION!$B$10,\"BMA\",CONFIGURATION!$B$1,\"bscr\",CONFIGURATION!$B$12)","v":{"$error":"#VALUE!"}},null,{"$f":"XBRLMap(#REF!,R$138&\".\"&#REF!&\".\"&$R$139&\".\"&$R$140&\".\"&$AE$8,$D$104,$D$105,CONFIGURATION!$B$10,\"BMA\",CONFIGURATION!$B$1,\"bscr\",CONFIGURATION!$B$12)","v":{"$error":"#VALUE!"}}]
[null,null,null,null,null,null,null,null,null,null,null,{"$f":"XBRLMap(#REF!,L$138&\".\"&#REF!&\".\"&$L$139&\".\"&$L$140&\".\"&$AE$8,$D$104,$D$105,CONFIGURATION!$B$10,\"BMA\",CONFIGURATION!$B$1,\"bscr\",CONFIGURATION!$B$12)","v":{"$error":"#VALUE!"}},null,{"$f":"XBRLMap(#REF!,N$138&\".\"&#REF!&\".\"&$N$139&\".\"&$N$140&\".\"&$AE$8,$D$104,$D$105,CONFIGURATION!$B$10,\"BMA\",CONFIGURATION!$B$1,\"bscr\",CONFIGURATION!$B$12)","v":{"$error":"#VALUE!"}},null,{"$f":"XBRLMap(#REF!,P$138&\".\"&#REF!&\".\"&$P$139&\".\"&$P$140&\".\"&$AE$8,$D$104,$D$105,CONFIGURATION!$B$10,\"BMA\",CONFIGURATION!$B$1,\"bscr\",CONFIGURATION!$B$12)","v":{"$error":"#VALUE!"}},null,{"$f":"XBRLMap(#REF!,R$138&\".\"&#REF!&\".\"&$R$139&\".\"&$R$140&\".\"&$AE$8,$D$104,$D$105,CONFIGURATION!$B$10,\"BMA\",CONFIGURATION!$B$1,\"bscr\",CONFIGURATION!$B$12)","v":{"$error":"#VALUE!"}}]
[]
[null,null,null,null,null,null,null,null,null,null,null,{"$f":"XBRLMap(#REF!,L$138&\".\"&#REF!&\".\"&$L$139&\".\"&$L$140&\".\"&$AE$8,$D$104,$D$105,CONFIGURATION!$B$10,\"BMA\",CONFIGURATION!$B$1,\"bscr\",CONFIGURATION!$B$12)","v":{"$error":"#VALUE!"}},null,{"$f":"XBRLMap(#REF!,N$138&\".\"&#REF!&\".\"&$N$139&\".\"&$N$140&\".\"&$AE$8,$D$104,$D$105,CONFIGURATION!$B$10,\"BMA\",CONFIGURATION!$B$1,\"bscr\",CONFIGURATION!$B$12)","v":{"$error":"#VALUE!"}},null,{"$f":"XBRLMap(#REF!,P$138&\".\"&#REF!&\".\"&$P$139&\".\"&$P$140&\".\"&$AE$8,$D$104,$D$105,CONFIGURATION!$B$10,\"BMA\",CONFIGURATION!$B$1,\"bscr\",CONFIGURATION!$B$12)","v":{"$error":"#VALUE!"}},null,{"$f":"XBRLMap(#REF!,R$138&\".\"&#REF!&\".\"&$R$139&\".\"&$R$140&\".\"&$AE$8,$D$104,$D$105,CONFIGURATION!$B$10,\"BMA\",CONFIGURATION!$B$1,\"bscr\",CONFIGURATION!$B$12)","v":{"$error":"#VALUE!"}}]

{"sheet":"Schedule IIF (EBS)","index":32,"n_rows":148,"n_cols":31,"rows_kept":148,"cut":false,"hidden":false,"merged":[[33,27,34,27],[64,3,64,5],[64,7,64,9],[63,3,63,11],[63,13,63,21],[64,13,64,15],[64,17,64,19],[7,15,7,17],[34,7,34,9],[34,11,34,13],[7,19,7,21],[7,23,7,25],[32,3,32,13],[33,3,34,5],[33,7,33,13],[33,23,34,23],[7,11,7,13],[32,15,32,19],[33,15,34,15],[33,17,34,17],[33,19,34,19],[2,3,2,7],[3,5,3,7],[4,5,4,7],[7,3,7,5],[7,7,7,9]]}
[null,"OTHER SUNDRY ASSETS AND LIABILITIES",null,null,null,null,null,null,null,null,null,null,null,null,null,null,null,null,null,null,null,null,null,null,null,null,null,{"$f":"HYPERLINK(\"#'Index'!A1\",\"Return to Index\")","v":"Return to Index"}]
[]
[null,null,null,{"$f":"'Insurer Information'!C7","v":"Enter Company Name"}]
[null,null,null,"As at",null,{"$f":"'Form 4EBS'!C3","v":"2019-12-31"},null,null,null,null,null,null,null,null,null,null,null,null,null,null,null,null,null,null,null,"SCHEDULE IIF (EBS)"]
[null,null,null,{"$f":"\"Expressed in \" & IF(CONFIGURATION!$B$12>1,\" ['\"&MID(CONFIGURATION!$B$12,2,LEN(CONFIGURATION!$B$12))&\"s]\",\"\")","v":"Expressed in  ['000s]"},null,{"$f":"'Form 4EBS'!C4","v":"United States Dollars"}]
[null,null,null,null,null,null,null,null,null,null,null,null,null,{"$f":"YEAR('Insurer Information'!C3)","v":2019}]
[null,null,null,"(1)",null,"(2)",null,"(3)",null,"(4)",null,"(5)",null,"(6)",null,"(7)",null,"(8)",null,"(9)",null,"(10)",null,"(11)",null,"(12)"]
[null,null,null,"Corporate & Sovereign Bonds",null,null,null,"Residential Mortgage Backed Securities",null,null,null,"Commercial Mortgage Backed Securities / Asset- Backed Securities",null,null,null,"Bond Mutual Funds",null,null,null,"Mortgage Loans",null,null,null,"TOTAL",null,null,null,null,null,null,"brrt_RiskTransferAxis_brrt_FundsHeldByCedingReinsurersInSegregatedAccountsTrustsMember"]
[null,null,null,{"$f":"'Form 4EBS'!F6","v":"2019-12-31"},null,{"$f":"'Form 4EBS'!H6","v":"2018-12-31"},null,{"$f":"'Form 4EBS'!F6","v":"2019-12-31"},null,{"$f":"'Form 4EBS'!H6","v":"2018-12-31"},null,{"$f":"'Form 4EBS'!F6","v":"2019-12-31"},null,{"$f":"'Form 4EBS'!H6","v":"2018-12-31"},null,{"$f":"'Form 4EBS'!F6","v":"2019-12-31"},null,{"$f":"'Form 4EBS'!H6","v":"2018-12-31"},null,{"$f":"'Form 4EBS'!F6","v":"2019-12-31"},null,{"$f":"'Form 4EBS'!H6","v":"2018-12-31"},null,{"$f":"D9","v":"2019-12-31"},null,{"$f":"F9","v":"2018-12-31"}]
[null,null,null,{"$f":"CONFIGURATION!$D$12","v":" ('000s)"},null,{"$f":"CONFIGURATION!$D$12","v":" ('000s)"},null,{"$f":"CONFIGURATION!$D$12","v":" ('000s)"},null,{"$f":"CONFIGURATION!$D$12","v":" ('000s)"},null,{"$f":"CONFIGURATION!$D$12","v":" ('000s)"},null,{"$f":"CONFIGURATION!$D$12","v":" ('000s)"},null,{"$f":"CONFIGURATION!$D$12","v":" ('000s)"},null,{"$f":"CONFIGURATION!$D$12","v":" ('000s)"},null,{"$f":"CONFIGURATION!$D$12","v":" ('000s)"},null,{"$f":"CONFIGURATION!$D$12","v":" ('000s)"},null,{"$f":"CONFIGURATION!$D$12","v":" ('000s)"},null,{"$f":"CONFIGURATION!$D$12","v":" ('000s)"}]
[null,"Line no. "]
[null,"Quoted and Unquoted Bonds and Debentures"]
[null,1,"BSCR Rating 0",{"$f":"Import!M7817","v":0},null,{"$f":"Import!O7817","v":0},null,null,null,null,null,null,null,null,null,{"$f":"Import!M7842","v":0},null,{"$f":"Import!O7842","v":0},null,null,null,null,null,{"$f":"D13+H13+L13+P13","v":0},null,{"$f":"F13+J13+N13+R13","v":0},null,null,null,null,"brrt_RiskGradeAxis_brrt_BSCRRating0Member"]
[null,{"$f":"B13+1","v":2},"BSCR Rating 1",{"$f":"Import!M7818","v":0},null,{"$f":"Import!O7818","v":0},null,{"$f":"Import!M7826","v":0},null,{"$f":"Import!O7826","v":0},null,{"$f":"Import!M7834","v":0},null,{"$f":"Import!O7834","v":0},null,{"$f":"Import!M7843","v":0},null,{"$f":"Import!O7843","v":0},null,null,null,null,null,{"$f":"D14+H14+L14+P14","v":0},null,0,null,null,null,null,"brrt_RiskGradeAxis_brrt_BSCRRating1Member"]
[null,{"$f":"B14+1","v":3},"BSCR Rating 2",{"$f":"Import!M7819","v":0},null,{"$f":"Import!O7819","v":0},null,{"$f":"Import!M7827","v":0},null,{"$f":"Import!O7827","v":0},null,{"$f":"Import!M7835","v":0},null,{"$f":"Import!O7835","v":0},null,{"$f":"Import!M7844","v":0},null,{"$f":"Import!O7844","v":0},null,null,null,null,null,0,null,0,null,null,null,null,"brrt_RiskGradeAxis_brrt_BSCRRating2Member"]
[null,4,"BSCR Rating 3",{"$f":"Import!M7820","v":0},null,{"$f":"Import!O7820","v":0},null,{"$f":"Import!M7828","v":0},null,{"$f":"Import!O7828","v":0},null,{"$f":"Import!M7836","v":0},null,{"$f":"Import!O7836","v":0},null,{"$f":"Import!M7845","v":0},null,{"$f":"Import!O7845","v":0},null,null,null,null,null,0,null,0,null,null,null,null,"brrt_RiskGradeAxis_brrt_BSCRRating3Member"]
[null,5,"BSCR Rating 4",{"$f":"Import!M7821","v":0},null,{"$f":"Import!O7821","v":0},null,{"$f":"Import!M7829","v":0},null,{"$f":"Import!O7829","v":0},null,{"$f":"Import!M7837","v":0},null,{"$f":"Import!O7837","v":0},null,{"$f":"Import!M7846","v":0},null,{"$f":"Import!O7846","v":0},null,null,null,null,null,0,null,0,null,null,null,null,"brrt_RiskGradeAxis_brrt_BSCRRating4Member"]
[null,6,"BSCR Rating 5",{"$f":"Import!M7822","v":0},null,{"$f":"Import!O7822","v":0},null,{"$f":"Import!M7830","v":0},null,{"$f":"Import!O7830","v":0},null,{"$f":"Import!M7838","v":0},null,{"$f":"Import!O7838","v":0},null,{"$f":"Import!M7847","v":0},null,{"$f":"Import!O7847","v":0},null,null,null,null,null,0,null,0,null,null,null,null,"brrt_RiskGradeAxis_brrt_BSCRRating5Member"]
[null,7,"BSCR Rating 6",{"$f":"Import!M7823","v":0},null,{"$f":"Import!O7823","v":0},null,{"$f":"Import!M7831","v":0},null,{"$f":"Import!O7831","v":0},null,{"$f":"Import!M7839","v":0},null,{"$f":"Import!O7839","v":0},null,{"$f":"Import!M7848","v":0},null,{"$f":"Import!O7848","v":0},null,null,null,null,null,0,null,0,null,null,null,null,"brrt_RiskGradeAxis_brrt_BSCRRating6Member"]
[null,8,"BSCR Rating 7",{"$f":"Import!M7824","v":0},null,{"$f":"Import!O7824","v":0},null,{"$f":"Import!M7832","v":0},null,{"$f":"Import!O7832","v":0},null,{"$f":"Import!M7840","v":0},null,{"$f":"Import!O7840","v":0},null,{"$f":"Import!M7849","v":0},null,{"$f":"Import!O7849","v":0},null,null,null,null,null,0,null,0,null,null,null,null,"brrt_RiskGradeAxis_brrt_BSCRRating7Member"]
[null,9,"BSCR Rating 8",{"$f":"Import!M7825","v":0},null,{"$f":"Import!O7825","v":0},null,{"$f":"Import!M7833","v":0},null,{"$f":"Import!O7833","v":0},null,{"$f":"Import!M7841","v":0},null,{"$f":"Import!O7841","v":0},null,{"$f":"Import!M7850","v":0},null,{"$f":"Import!O7850","v":0},null,null,null,null,null,0,null,0,null,null,null,null,"brrt_RiskGradeAxis_brrt_BSCRRating8Member"]
[null,10,"Insured/Guaranteed Mortgages",null,null,null,null,null,null,null,null,null,null,null,null,null,null,null,null,{"$f":"Import!M7851","v":0},null,{"$f":"Import!O7851","v":0},null,{"$f":"D22+H22+L22+P22+T22","v":0},null,{"$f":"F22+J22+N22+R22+V22","v":0}]
[null,11,"Other Commercial and Farm Mortgages",null,null,null,null,null,null,null,null,null,null,null,null,null,null,null,null,{"$f":"Import!M7852","v":0},null,{"$f":"Import!O7852","v":0},null,{"$f":"D23+H23+L23+P23+T23","v":0},null,0]
[null,12,"Other Residential Mortgages",null,null,null,null,null,null,null,null,null,null,null,null,null,null,null,null,{"$f":"Import!M7853","v":0},null,{"$f":"Import!O7853","v":0},null,0,null,0]
[null,13,"Mortgages Not In Good Standing",null,null,null,null,null,null,null,null,null,null,null,null,null,null,null,null,{"$f":"Import!M7854","v":0},null,{"$f":"Import!O7854","v":0},null,0,null,0]
[]
[null,{"$f":"B25+1","v":14},"Total",{"$f":"SUM(D13:D21)","v":0},null,{"$f":"SUM(F13:F21)","v":0},null,{"$f":"SUM(H13:H21)","v":0},null,{"$f":"SUM(J13:J21)","v":0},null,{"$f":"SUM(L13:L21)","v":0},null,{"$f":"SUM(N13:N21)","v":0},null,{"$f":"SUM(P13:P21)","v":0},null,{"$f":"SUM(R13:R21)","v":0},null,{"$f":"SUM(T13:T25)","v":0},null,{"$f":"SUM(V13:V25)","v":0},null,{"$f":"SUM(X13:X25)","v":0},null,{"$f":"SUM(Z13:Z25)","v":0},null,null,null,null,"brrt_RiskGradeAxis_brrt_TotalMember"]
[]
[]
[]
[]
[]
[null,null,null,"ASSETS",null,null,null,null,null,null,null,null,null,null,null,"Liabilities"]
[null,null,null,"Long Exposures",null,null,null,"Short Exposures",null,null,null,null,null,null,null,null,null,"Without Management Actions",null,"With Management Actions",null,null,null,"Total Assets Before Shock",null,null,null,"Shocks"]
[null,null,null,null,null,null,null,"Qualifying as Assets held for risk-mitigation purposes",null,null,null,"Not Qualifying as Assets held for risk-mitigation purposes",null,null,null,null,null,null,null,null,null,null,null,null,null,null,null,"Shocks"]
[null,null,null,"Before Shock",null,"After Shock",null,"Before Shock",null,"After Shock",null,"Before Shock",null,"After Shock",null,"Before Shock",null,"After Shock",null,"After Shock"]
[null,null,null,{"$f":"CONFIGURATION!$D$12","v":" ('000s)"},null,{"$f":"CONFIGURATION!$D$12","v":" ('000s)"},null,{"$f":"CONFIGURATION!$D$12","v":" ('000s)"},null,{"$f":"CONFIGURATION!$D$12","v":" ('000s)"},null,{"$f":"CONFIGURATION!$D$12","v":" ('000s)"},null,{"$f":"CONFIGURATION!$D$12","v":" ('000s)"},null,{"$f":"CONFIGURATION!$D$12","v":" ('000s)"},null,{"$f":"CONFIGURATION!$D$12","v":" ('000s)"},null,{"$f":"CONFIGURATION!$D$12","v":" ('000s)"},null,null,null,{"$f":"CONFIGURATION!$D$12","v":" ('000s)"}]
[null,"Equity Holdings "]
[null,{"$f":"B27+1","v":15},"Strategic Holdings - Listed",{"$f":"Import!M7855","v":0},null,{"$f":"IF(OR(Import!M7877=0,Import!M7877=\"\"),(1-$AB39)*D39,Import!M7877)","v":0},null,{"$f":"Import!M7899","v":0},null,{"$f":"IF(OR(Import!M7921=0,Import!M7921=\"\"),(1-$AB39)*H39,Import!M7921)","v":0},null,{"$f":"Import!M7943","v":0},null,{"$f":"IF(OR(Import!M7965=0,Import!M7965=\"\"),(1-$AB39)*L39,Import!M7965)","v":0},null,{"$f":"Import!M7987","v":0},null,{"$f":"IF(OR(Import!M8009=0,Import!M8009=\"\"),P39,Import!M8009)","v":0},null,{"$f":"IF(OR(Import!M8031=0,Import!M8031=\"\"),R39,Import!M8031)","v":0},null,null,null,{"$f":"D39+H39+L39","v":0},null,null,null,0.2]
[null,{"$f":"B39+1","v":16},"Duration Based",{"$f":"Import!M7856","v":0},null,{"$f":"IF(OR(Import!M7878=0,Import!M7878=\"\"),(1-$AB40)*D40,Import!M7878)","v":0},null,{"$f":"Import!M7900","v":0},null,{"$f":"IF(OR(Import!M7922=0,Import!M7922=\"\"),(1-$AB40)*H40,Import!M7922)","v":0},null,{"$f":"Import!M7944","v":0},null,{"$f":"IF(OR(Import!M7966=0,Import!M7966=\"\"),(1-$AB40)*L40,Import!M7966)","v":0},null,{"$f":"Import!M7988","v":0},null,{"$f":"IF(OR(Import!M8010=0,Import!M8010=\"\"),P40,Import!M8010)","v":0},null,{"$f":"IF(OR(Import!M8032=0,Import!M8032=\"\"),R40,Import!M8032)","v":0},null,null,null,{"$f":"D40+H40+L40","v":0},null,null,null,0.2]
[null,17,"Listed Equity Securities in Developed Markets",{"$f":"Import!M7857","v":0},null,{"$f":"IF(OR(Import!M7879=0,Import!M7879=\"\"),(1-$AB41)*D41,Import!M7879)","v":0},null,{"$f":"Import!M7901","v":0},null,{"$f":"IF(OR(Import!M7923=0,Import!M7923=\"\"),(1-$AB41)*H41,Import!M7923)","v":0},null,{"$f":"Import!M7945","v":0},null,{"$f":"IF(OR(Import!M7967=0,Import!M7967=\"\"),(1-$AB41)*L41,Import!M7967)","v":0},null,{"$f":"Import!M7989","v":0},null,{"$f":"IF(OR(Import!M8011=0,Import!M8011=\"\"),P41,Import!M8011)","v":0},null,{"$f":"IF(OR(Import!M8033=0,Import!M8033=\"\"),R41,Import!M8033)","v":0},null,null,null,0,null,null,null,0.35]
[null,18,"Preferred Stocks, BSCR Rating 1",{"$f":"Import!M7858","v":0},null,{"$f":"IF(OR(Import!M7880=0,Import!M7880=\"\"),(1-$AB42)*D42,Import!M7880)","v":0},null,{"$f":"Import!M7902","v":0},null,{"$f":"IF(OR(Import!M7924=0,Import!M7924=\"\"),(1-$AB42)*H42,Import!M7924)","v":0},null,{"$f":"Import!M7946","v":0},null,{"$f":"IF(OR(Import!M7968=0,Import!M7968=\"\"),(1-$AB42)*L42,Import!M7968)","v":0},null,{"$f":"Import!M7990","v":0},null,{"$f":"IF(OR(Import!M8012=0,Import!M8012=\"\"),P42,Import!M8012)","v":0},null,{"$f":"IF(OR(Import!M8034=0,Import!M8034=\"\"),R42,Import!M8034)","v":0},null,null,null,0,null,null,null,6.0000000000000001E-3]
[null,19,"Preferred Stocks, BSCR Rating 2",{"$f":"Import!M7859","v":0},null,{"$f":"IF(OR(Import!M7881=0,Import!M7881=\"\"),(1-$AB43)*D43,Import!M7881)","v":0},null,{"$f":"Import!M7903","v":0},null,{"$f":"IF(OR(Import!M7925=0,Import!M7925=\"\"),(1-$AB43)*H43,Import!M7925)","v":0},null,{"$f":"Import!M7947","v":0},null,{"$f":"IF(OR(Import!M7969=0,Import!M7969=\"\"),(1-$AB43)*L43,Import!M7969)","v":0},null,{"$f":"Import!M7991","v":0},null,{"$f":"IF(OR(Import!M8013=0,Import!M8013=\"\"),P43,Import!M8013)","v":0},null,{"$f":"IF(OR(Import!M8035=0,Import!M8035=\"\"),R43,Import!M8035)","v":0},null,null,null,0,null,null,null,1.2E-2]
[null,20,"Preferred Stocks, BSCR Rating 3",{"$f":"Import!M7860","v":0},null,{"$f":"IF(OR(Import!M7882=0,Import!M7882=\"\"),(1-$AB44)*D44,Import!M7882)","v":0},null,{"$f":"Import!M7904","v":0},null,{"$f":"IF(OR(Import!M7926=0,Import!M7926=\"\"),(1-$AB44)*H44,Import!M7926)","v":0},null,{"$f":"Import!M7948","v":0},null,{"$f":"IF(OR(Import!M7970=0,Import!M7970=\"\"),(1-$AB44)*L44,Import!M7970)","v":0},null,{"$f":"Import!M7992","v":0},null,{"$f":"IF(OR(Import!M8014=0,Import!M8014=\"\"),P44,Import!M8014)","v":0},null,{"$f":"IF(OR(Import!M8036=0,Import!M8036=\"\"),R44,Import!M8036)","v":0},null,null,null,0,null,null,null,0.02]
[null,21,"Preferred Stocks, BSCR Rating 4",{"$f":"Import!M7861","v":0},null,{"$f":"IF(OR(Import!M7883=0,Import!M7883=\"\"),(1-$AB45)*D45,Import!M7883)","v":0},null,{"$f":"Import!M7905","v":0},null,{"$f":"IF(OR(Import!M7927=0,Import!M7927=\"\"),(1-$AB45)*H45,Import!M7927)","v":0},null,{"$f":"Import!M7949","v":0},null,{"$f":"IF(OR(Import!M7971=0,Import!M7971=\"\"),(1-$AB45)*L45,Import!M7971)","v":0},null,{"$f":"Import!M7993","v":0},null,{"$f":"IF(OR(Import!M8015=0,Import!M8015=\"\"),P45,Import!M8015)","v":0},null,{"$f":"IF(OR(Import!M8037=0,Import!M8037=\"\"),R45,Import!M8037)","v":0},null,null,null,0,null,null,null,0.04]
[null,22,"Preferred Stocks, BSCR Rating 5",{"$f":"Import!M7862","v":0},null,{"$f":"IF(OR(Import!M7884=0,Import!M7884=\"\"),(1-$AB46)*D46,Import!M7884)","v":0},null,{"$f":"Import!M7906","v":0},null,{"$f":"IF(OR(Import!M7928=0,Import!M7928=\"\"),(1-$AB46)*H46,Import!M7928)","v":0},null,{"$f":"Import!M7950","v":0},null,{"$f":"IF(OR(Import!M7972=0,Import!M7972=\"\"),(1-$AB46)*L46,Import!M7972)","v":0},null,{"$f":"Import!M7994","v":0},null,{"$f":"IF(OR(Import!M8016=0,Import!M8016=\"\"),P46,Import!M8016)","v":0},null,{"$f":"IF(OR(Import!M8038=0,Import!M8038=\"\"),R46,Import!M8038)","v":0},null,null,null,0,null,null,null,0.11]
[null,23,"Preferred Stocks, BSCR Rating 6",{"$f":"Import!M7863","v":0},null,{"$f":"IF(OR(Import!M7885=0,Import!M7885=\"\"),(1-$AB47)*D47,Import!M7885)","v":0},null,{"$f":"Import!M7907","v":0},null,{"$f":"IF(OR(Import!M7929=0,Import!M7929=\"\"),(1-$AB47)*H47,Import!M7929)","v":0},null,{"$f":"Import!M7951","v":0},null,{"$f":"IF(OR(Import!M7973=0,Import!M7973=\"\"),(1-$AB47)*L47,Import!M7973)","v":0},null,{"$f":"Import!M7995","v":0},null,{"$f":"IF(OR(Import!M8017=0,Import!M8017=\"\"),P47,Import!M8017)","v":0},null,{"$f":"IF(OR(Import!M8039=0,Import!M8039=\"\"),R47,Import!M8039)","v":0},null,null,null,0,null,null,null,0.25]
[null,24,"Preferred Stocks, BSCR Rating 7",{"$f":"Import!M7864","v":0},null,{"$f":"IF(OR(Import!M7886=0,Import!M7886=\"\"),(1-$AB48)*D48,Import!M7886)","v":0},null,{"$f":"Import!M7908","v":0},null,{"$f":"IF(OR(Import!M7930=0,Import!M7930=\"\"),(1-$AB48)*H48,Import!M7930)","v":0},null,{"$f":"Import!M7952","v":0},null,{"$f":"IF(OR(Import!M7974=0,Import!M7974=\"\"),(1-$AB48)*L48,Import!M7974)","v":0},null,{"$f":"Import!M7996","v":0},null,{"$f":"IF(OR(Import!M8018=0,Import!M8018=\"\"),P48,Import!M8018)","v":0},null,{"$f":"IF(OR(Import!M8040=0,Import!M8040=\"\"),R48,Import!M8040)","v":0},null,null,null,0,null,null,null,0.35]
[null,25,"Preferred Stocks, BSCR Rating 8",{"$f":"Import!M7865","v":0},null,{"$f":"IF(OR(Import!M7887=0,Import!M7887=\"\"),(1-$AB49)*D49,Import!M7887)","v":0},null,{"$f":"Import!M7909","v":0},null,{"$f":"IF(OR(Import!M7931=0,Import!M7931=\"\"),(1-$AB49)*H49,Import!M7931)","v":0},null,{"$f":"Import!M7953","v":0},null,{"$f":"IF(OR(Import!M7975=0,Import!M7975=\"\"),(1-$AB49)*L49,Import!M7975)","v":0},null,{"$f":"Import!M7997","v":0},null,{"$f":"IF(OR(Import!M8019=0,Import!M8019=\"\"),P49,Import!M8019)","v":0},null,{"$f":"IF(OR(Import!M8041=0,Import!M8041=\"\"),R49,Import!M8041)","v":0},null,null,null,0,null,null,null,0.35]
[null,26,"Equity Derivatives on Type 1 Equities",{"$f":"Import!M7866","v":0},null,{"$f":"Import!M7888","v":0},null,{"$f":"Import!M7910","v":0},null,{"$f":"Import!M7932","v":0},null,{"$f":"Import!M7954","v":0},null,{"$f":"Import!M7976","v":0},null,{"$f":"Import!M7998","v":0},null,{"$f":"IF(OR(Import!M8020=0,Import!M8020=\"\"),P50,Import!M8020)","v":0},null,{"$f":"IF(OR(Import!M8042=0,Import!M8042=\"\"),R50,Import!M8042)","v":0},null,null,null,0,null,null,null,0.35]
[null,27,"Strategic Holdings - Unlisted",{"$f":"Import!M7867","v":0},null,{"$f":"IF(OR(Import!M7889=0,Import!M7889=\"\"),(1-$AB51)*D51,Import!M7889)","v":0},null,{"$f":"Import!M7911","v":0},null,{"$f":"IF(OR(Import!M7933=0,Import!M7933=\"\"),(1-$AB51)*H51,Import!M7933)","v":0},null,{"$f":"Import!M7955","v":0},null,{"$f":"IF(OR(Import!M7977=0,Import!M7977=\"\"),(1-$AB51)*L51,Import!M7977)","v":0},null,{"$f":"Import!M7999","v":0},null,{"$f":"IF(OR(Import!M8021=0,Import!M8021=\"\"),P51,Import!M8021)","v":0},null,{"$f":"IF(OR(Import!M8043=0,Import!M8043=\"\"),R51,Import!M8043)","v":0},null,null,null,0,null,null,null,0.2]
[null,28,"Other Equities / Other Assets",{"$f":"Import!M7868","v":0},null,{"$f":"IF(OR(Import!M7890=0,Import!M7890=\"\"),(1-$AB52)*D52,Import!M7890)","v":0},null,{"$f":"Import!M7912","v":0},null,{"$f":"IF(OR(Import!M7934=0,Import!M7934=\"\"),(1-$AB52)*H52,Import!M7934)","v":0},null,{"$f":"Import!M7956","v":0},null,{"$f":"IF(OR(Import!M7978=0,Import!M7978=\"\"),(1-$AB52)*L52,Import!M7978)","v":0},null,{"$f":"Import!M8000","v":0},null,{"$f":"IF(OR(Import!M8022=0,Import!M8022=\"\"),P52,Import!M8022)","v":0},null,{"$f":"IF(OR(Import!M8044=0,Import!M8044=\"\"),R52,Import!M8044)","v":0},null,null,null,0,null,null,null,0.45]
[null,29,"Letters of Credit",{"$f":"Import!M7869","v":0},null,{"$f":"IF(OR(Import!M7891=0,Import!M7891=\"\"),(1-$AB53)*D53,Import!M7891)","v":0},null,{"$f":"Import!M7913","v":0},null,{"$f":"IF(OR(Import!M7935=0,Import!M7935=\"\"),(1-$AB53)*H53,Import!M7935)","v":0},null,{"$f":"Import!M7957","v":0},null,{"$f":"IF(OR(Import!M7979=0,Import!M7979=\"\"),(1-$AB53)*L53,Import!M7979)","v":0},null,{"$f":"Import!M8001","v":0},null,{"$f":"IF(OR(Import!M8023=0,Import!M8023=\"\"),P53,Import!M8023)","v":0},null,{"$f":"IF(OR(Import!M8045=0,Import!M8045=\"\"),R53,Import!M8045)","v":0},null,null,null,0,null,null,null,0.2]
[null,30,"Intangible assets",{"$f":"Import!M7870","v":0},null,{"$f":"IF(OR(Import!M7892=0,Import!M7892=\"\"),(1-$AB54)*D54,Import!M7892)","v":0},null,{"$f":"Import!M7914","v":0},null,{"$f":"IF(OR(Import!M7936=0,Import!M7936=\"\"),(1-$AB54)*H54,Import!M7936)","v":0},null,{"$f":"Import!M7958","v":0},null,{"$f":"IF(OR(Import!M7980=0,Import!M7980=\"\"),(1-$AB54)*L54,Import!M7980)","v":0},null,{"$f":"Import!M8002","v":0},null,{"$f":"IF(OR(Import!M8024=0,Import!M8024=\"\"),P54,Import!M8024)","v":0},null,{"$f":"IF(OR(Import!M8046=0,Import!M8046=\"\"),R54,Import!M8046)","v":0},null,null,null,0,null,null,null,0.2]
[null,31,"Pension Benefit Surplus",{"$f":"Import!M7871","v":0},null,{"$f":"IF(OR(Import!M7893=0,Import!M7893=\"\"),(1-$AB55)*D55,Import!M7893)","v":0},null,{"$f":"Import!M7915","v":0},null,{"$f":"IF(OR(Import!M7937=0,Import!M7937=\"\"),(1-$AB55)*H55,Import!M7937)","v":0},null,{"$f":"Import!M7959","v":0},null,{"$f":"IF(OR(Import!M7981=0,Import!M7981=\"\"),(1-$AB55)*L55,Import!M7981)","v":0},null,{"$f":"Import!M8003","v":0},null,{"$f":"IF(OR(Import!M8025=0,Import!M8025=\"\"),P55,Import!M8025)","v":0},null,{"$f":"IF(OR(Import!M8047=0,Import!M8047=\"\"),R55,Import!M8047)","v":0},null,null,null,0,null,null,null,0.2]
[null,32,"Equity Derivatives on Type 2 Equities",{"$f":"Import!M7872","v":0},null,{"$f":"Import!M7894","v":0},null,{"$f":"Import!M7916","v":0},null,{"$f":"Import!M7938","v":0},null,{"$f":"Import!M7960","v":0},null,{"$f":"Import!M7982","v":0},null,{"$f":"Import!M8004","v":0},null,{"$f":"IF(OR(Import!M8026=0,Import!M8026=\"\"),P56,Import!M8026)","v":0},null,{"$f":"IF(OR(Import!M8048=0,Import!M8048=\"\"),R56,Import!M8048)","v":0},null,null,null,0,null,null,null,0.45]
[null,33,"Infrastructure",{"$f":"Import!M7873","v":0},null,{"$f":"IF(OR(Import!M7895=0,Import!M7895=\"\"),(1-$AB57)*D57,Import!M7895)","v":0},null,{"$f":"Import!M7917","v":0},null,{"$f":"IF(OR(Import!M7939=0,Import!M7939=\"\"),(1-$AB57)*H57,Import!M7939)","v":0},null,{"$f":"Import!M7961","v":0},null,{"$f":"IF(OR(Import!M7983=0,Import!M7983=\"\"),(1-$AB57)*L57,Import!M7983)","v":0},null,{"$f":"Import!M8005","v":0},null,{"$f":"IF(OR(Import!M8027=0,Import!M8027=\"\"),P57,Import!M8027)","v":0},null,{"$f":"IF(OR(Import!M8049=0,Import!M8049=\"\"),R57,Import!M8049)","v":0},null,null,null,0,null,null,null,0.25]
[null,34,"Derivatives on Infrastructure",{"$f":"Import!M7874","v":0},null,{"$f":"Import!M7896","v":0},null,{"$f":"Import!M7918","v":0},null,{"$f":"Import!M7940","v":0},null,{"$f":"Import!M7962","v":0},null,{"$f":"Import!M7984","v":0},null,{"$f":"Import!M8006","v":0},null,{"$f":"IF(OR(Import!M8028=0,Import!M8028=\"\"),P58,Import!M8028)","v":0},null,{"$f":"IF(OR(Import!M8050=0,Import!M8050=\"\"),R58,Import!M8050)","v":0},null,null,null,0,null,null,null,0.25]
[null,35,"Equity Real Estate 1",{"$f":"Import!M7875","v":0},null,{"$f":"IF(OR(Import!M7897=0,Import!M7897=\"\"),(1-$AB59)*D59,Import!M7897)","v":0},null,{"$f":"Import!M7919","v":0},null,{"$f":"IF(OR(Import!M7941=0,Import!M7941=\"\"),(1-$AB59)*H59,Import!M7941)","v":0},null,{"$f":"Import!M7963","v":0},null,{"$f":"IF(OR(Import!M7985=0,Import!M7985=\"\"),(1-$AB59)*L59,Import!M7985)","v":0},null,{"$f":"Import!M8007","v":0},null,{"$f":"IF(OR(Import!M8029=0,Import!M8029=\"\"),P59,Import!M8029)","v":0},null,{"$f":"IF(OR(Import!M8051=0,Import!M8051=\"\"),R59,Import!M8051)","v":0},null,null,null,0,null,null,null,0.1]
[null,36,"Equity Real Estate 2",{"$f":"Import!M7876","v":0},null,{"$f":"IF(OR(Import!M7898=0,Import!M7898=\"\"),(1-$AB60)*D60,Import!M7898)","v":0},null,{"$f":"Import!M7920","v":0},null,{"$f":"IF(OR(Import!M7942=0,Import!M7942=\"\"),(1-$AB60)*H60,Import!M7942)","v":0},null,{"$f":"Import!M7964","v":0},null,{"$f":"IF(OR(Import!M7986=0,Import!M7986=\"\"),(1-$AB60)*L60,Import!M7986)","v":0},null,{"$f":"Import!M8008","v":0},null,{"$f":"IF(OR(Import!M8030=0,Import!M8030=\"\"),P60,Import!M8030)","v":0},null,{"$f":"IF(OR(Import!M8052=0,Import!M8052=\"\"),R60,Import!M8052)","v":0},null,null,null,0,null,null,null,0.2]
[]
[null,{"$f":"B60+1","v":37},"Total Equity Holdings",{"$f":"SUM(D38:D61)","v":0},null,{"$f":"SUM(F38:F61)","v":0},null,{"$f":"SUM(H38:H61)","v":0},null,{"$f":"SUM(J38:J61)","v":0},null,{"$f":"SUM(L38:L61)","v":0},null,{"$f":"SUM(N38:N61)","v":0},null,{"$f":"SUM(P38:P61)","v":0},null,{"$f":"SUM(R38:R61)","v":0},null,{"$f":"SUM(T38:T61)","v":0},null,null,null,{"$f":"SUM(X38:X61)","v":0}]
[]
[null,null,null,"Spread Up",null,null,null,null,null,null,null,null,null,"Spread Down"]
[null,null,null,"Long Exposures",null,null,null,"Short Exposures",null,null,null,"Shock (bps)",null,"Long Exposures",null,null,null,"Short Exposures",null,null,null,"Shock Rates"]
[null,null,null,"Before Shock",null,"After Shock",null,"Before Shock",null,"After Shock",null,null,null,"Before Shock",null,"Before Shock",null,"After Shock",null,"After Shock"]
[null,null,"Spread Risk for Credit Derivatives"]
[null,{"$f":"B62+1","v":38},"BSCR Rating 0",{"$f":"Import!M8053","v":0},null,{"$f":"Import!M8062","v":0},null,{"$f":"Import!M8071","v":0},null,{"$f":"Import!M8080","v":0},null,0,null,{"$f":"Import!M8089","v":0},null,{"$f":"Import!M8098","v":0},null,{"$f":"Import!M8107","v":0},null,{"$f":"Import!M8116","v":0},null,0]
[null,{"$f":"B68+1","v":39},"BSCR Rating 1",{"$f":"Import!M8054","v":0},null,{"$f":"Import!M8063","v":0},null,{"$f":"Import!M8072","v":0},null,{"$f":"Import!M8081","v":0},null,130,null,{"$f":"Import!M8090","v":0},null,{"$f":"Import!M8099","v":0},null,{"$f":"Import!M8108","v":0},null,{"$f":"Import!M8117","v":0},null,-0.75]
[null,{"$f":"B69+1","v":40},"BSCR Rating 2",{"$f":"Import!M8055","v":0},null,{"$f":"Import!M8064","v":0},null,{"$f":"Import!M8073","v":0},null,{"$f":"Import!M8082","v":0},null,150,null,{"$f":"Import!M8091","v":0},null,{"$f":"Import!M8100","v":0},null,{"$f":"Import!M8109","v":0},null,{"$f":"Import!M8118","v":0},null,-0.75]
[null,41,"BSCR Rating 3",{"$f":"Import!M8056","v":0},null,{"$f":"Import!M8065","v":0},null,{"$f":"Import!M8074","v":0},null,{"$f":"Import!M8083","v":0},null,260,null,{"$f":"Import!M8092","v":0},null,{"$f":"Import!M8101","v":0},null,{"$f":"Import!M8110","v":0},null,{"$f":"Import!M8119","v":0},null,-0.75]
[null,42,"BSCR Rating 4",{"$f":"Import!M8057","v":0},null,{"$f":"Import!M8066","v":0},null,{"$f":"Import!M8075","v":0},null,{"$f":"Import!M8084","v":0},null,450,null,{"$f":"Import!M8093","v":0},null,{"$f":"Import!M8102","v":0},null,{"$f":"Import!M8111","v":0},null,{"$f":"Import!M8120","v":0},null,-0.75]
[null,43,"BSCR Rating 5",{"$f":"Import!M8058","v":0},null,{"$f":"Import!M8067","v":0},null,{"$f":"Import!M8076","v":0},null,{"$f":"Import!M8085","v":0},null,840,null,{"$f":"Import!M8094","v":0},null,{"$f":"Import!M8103","v":0},null,{"$f":"Import!M8112","v":0},null,{"$f":"Import!M8121","v":0},null,-0.75]
[null,44,"BSCR Rating 6",{"$f":"Import!M8059","v":0},null,{"$f":"Import!M8068","v":0},null,{"$f":"Import!M8077","v":0},null,{"$f":"Import!M8086","v":0},null,1620,null,{"$f":"Import!M8095","v":0},null,{"$f":"Import!M8104","v":0},null,{"$f":"Import!M8113","v":0},null,{"$f":"Import!M8122","v":0},null,-0.75]
[null,45,"BSCR Rating 7",{"$f":"Import!M8060","v":0},null,{"$f":"Import!M8069","v":0},null,{"$f":"Import!M8078","v":0},null,{"$f":"Import!M8087","v":0},null,1620,null,{"$f":"Import!M8096","v":0},null,{"$f":"Import!M8105","v":0},null,{"$f":"Import!M8114","v":0},null,{"$f":"Import!M8123","v":0},null,-0.75]
[null,46,"BSCR Rating 8",{"$f":"Import!M8061","v":0},null,{"$f":"Import!M8070","v":0},null,{"$f":"Import!M8079","v":0},null,{"$f":"Import!M8088","v":0},null,1620,null,{"$f":"Import!M8097","v":0},null,{"$f":"Import!M8106","v":0},null,{"$f":"Import!M8115","v":0},null,{"$f":"Import!M8124","v":0},null,-0.75]
[null,47,"Total Spread",{"$f":"SUM(D67:D76)","v":0},null,{"$f":"SUM(F67:F76)","v":0},null,{"$f":"SUM(H67:H76)","v":0},null,{"$f":"SUM(J67:J76)","v":0},null,null,null,{"$f":"SUM(N67:N76)","v":0},null,{"$f":"SUM(P67:P76)","v":0},null,{"$f":"SUM(R67:R76)","v":0},null,{"$f":"SUM(T67:T76)","v":0}]
[]
[null,null,"Spread Risk Check",null,null,null,null,null,null,null,null,null,null,{"$f":"IF(ROUND(D77-N77,0)=0,\"Yes\",\"No\")","v":"Yes"},null,null,null,{"$f":"IF(ROUND(H77-R77,0)=0,\"Yes\",\"No\")","v":"Yes"}]
[null,null,"Difference",null,null,null,null,null,null,null,null,null,null,{"$f":"ROUND(D77-N77,0)","v":0},null,null,null,{"$f":"ROUND(H77-R77,0)","v":0}]
[]
[null,null,null,"Market Value of Derivatives with Positive Market Value",null,"Market Value of Derivatives with Negative Market Value",null,"Market Value of Collateral, Excluding any over-collateralization"]
[null,null,"Counterparty Default Risk for OTC Derivatives"]
[null,{"$f":"B77+1","v":48},"BSCR Rating 0",{"$f":"Import!M8125","v":0},null,{"$f":"Import!M8134","v":0},null,{"$f":"Import!M8143","v":0}]
[null,{"$f":"B84+1","v":49},"BSCR Rating 1",{"$f":"Import!M8126","v":0},null,{"$f":"Import!M8135","v":0},null,{"$f":"Import!M8144","v":0}]
[null,{"$f":"B85+1","v":50},"BSCR Rating 2",{"$f":"Import!M8127","v":0},null,{"$f":"Import!M8136","v":0},null,{"$f":"Import!M8145","v":0}]
[null,51,"BSCR Rating 3",{"$f":"Import!M8128","v":0},null,{"$f":"Import!M8137","v":0},null,{"$f":"Import!M8146","v":0}]
[null,52,"BSCR Rating 4",{"$f":"Import!M8129","v":0},null,{"$f":"Import!M8138","v":0},null,{"$f":"Import!M8147","v":0}]
[null,53,"BSCR Rating 5",{"$f":"Import!M8130","v":0},null,{"$f":"Import!M8139","v":0},null,{"$f":"Import!M8148","v":0}]
[null,54,"BSCR Rating 6",{"$f":"Import!M8131","v":0},null,{"$f":"Import!M8140","v":0},null,{"$f":"Import!M8149","v":0}]
[null,55,"BSCR Rating 7",{"$f":"Import!M8132","v":0},null,{"$f":"Import!M8141","v":0},null,{"$f":"Import!M8150","v":0}]
[null,56,"BSCR Rating 8",{"$f":"Import!M8133","v":0},null,{"$f":"Import!M8142","v":0},null,{"$f":"Import!M8151","v":0}]
[null,57,"Total Default Risk for OTC Derivatives ",{"$f":"SUM(D83:D92)","v":0},null,{"$f":"SUM(F83:F92)","v":0},null,{"$f":"SUM(H83:H92)","v":0}]
[]
[null,{"$f":"B93+1","v":58},"Cash and Cash Equivalents",{"$f":"Import!M8152","v":0}]
[]
[null,{"$f":"B95+1","v":59},"Total Other Sundry Assets",{"$f":"X27+X62+D77+H77+D93+F93+H93+D95","v":0}]
[]
[]
[]
[]
[]
[]
[null,null,null,{"$f":"IF(D9=\"\",\"\",TEXT(DATE(YEAR(D9+1)-1,MONTH(D9+1),DAY(D9+1)),\"mm/dd/yyyy\"))","v":"01/01/2019"},null,{"$f":"IF(F9=\"\",\"\",TEXT(DATE(YEAR(F9+1)-1,MONTH(F9+1),DAY(F9+1)),\"mm/dd/yyyy\"))","v":"01/01/2018"}]
[null,null,null,{"$f":"IF(D9=\"\",\"\",TEXT(D9,\"mm/dd/yyyy\"))","v":"12/31/2019"},null,{"$f":"IF(F9=\"\",\"\",TEXT(F9,\"mm/dd/yyyy\"))","v":"12/31/2018"}]
[null,null,null,"brrt_BondsAndDebentures",null,"brrt_BondsAndDebentures",null,"brrt_BondsAndDebentures",null,"brrt_BondsAndDebentures",null,"brrt_BondsAndDebentures",null,"brrt_BondsAndDebentures",null,"brrt_BondsAndDebentures",null,"brrt_BondsAndDebentures",null,null,null,null,null,"brrt_BondsAndDebentures",null,"brrt_BondsAndDebentures"]
[null,null,null,"brrt_SecurityTypeAxis_brrt_CorporateSovereignBondsMember",null,"brrt_SecurityTypeAxis_brrt_CorporateSovereignBondsMember",null,"brrt_SecurityTypeAxis_brrt_ResidentialMortgageBackedSecuritiesMember",null,"brrt_SecurityTypeAxis_brrt_ResidentialMortgageBackedSecuritiesMember",null,"brrt_SecurityTypeAxis_brrt_CommercialMortgageBackedSecuritiesAssetBackedSecuritiesMember",null,"brrt_SecurityTypeAxis_brrt_CommercialMortgageBackedSecuritiesAssetBackedSecuritiesMember",null,"brrt_SecurityTypeAxis_brrt_MutualFundsMember",null,"brrt_SecurityTypeAxis_brrt_MutualFundsMember",null,null,null,null,null,"brrt_SecurityTypeAxis_brrt_TotalMember",null,"brrt_SecurityTypeAxis_brrt_TotalMember"]
[null,null,null,{"$f":"XBRLMap(D13,D$106&\".\"&$AE13&\".\"&$D$107&\".\"&$AE$8,$D$104,$D$105,CONFIGURATION!$B$10,\"BMA\",CONFIGURATION!$B$1,\"bscr\",CONFIGURATION!$B$12)","v":"Mapped"},null,{"$f":"XBRLMap(F13,F$106&\".\"&$AE13&\".\"&$F$107&\".\"&$AE$8,$F$104,$F$105,CONFIGURATION!$B$10,\"BMA\",CONFIGURATION!$B$1,\"bscr\",CONFIGURATION!$B$12)","v":"Mapped"},null,null,null,null,null,null,null,null,null,{"$f":"XBRLMap(P13,P$106&\".\"&$AE13&\".\"&$P$107&\".\"&$AE$8,$D$104,$D$105,CONFIGURATION!$B$10,\"BMA\",CONFIGURATION!$B$1,\"bscr\",CONFIGURATION!$B$12)","v":"Mapped"},null,{"$f":"XBRLMap(R13,R$106&\".\"&$AE13&\".\"&$R$107&\".\"&$AE$8,$F$104,$F$105,CONFIGURATION!$B$10,\"BMA\",CONFIGURATION!$B$1,\"bscr\",CONFIGURATION!$B$12)","v":"Mapped"},null,null,null,null,null,{"$f":"XBRLMap(X13,X$106&\".\"&$AE13&\".\"&$X$107&\".\"&$AE$8,$D$104,$D$105,CONFIGURATION!$B$10,\"BMA\",CONFIGURATION!$B$1,\"bscr\",CONFIGURATION!$B$12)","v":"Mapped"},null,{"$f":"XBRLMap(Z13,Z$106&\".\"&$AE13&\".\"&$Z$107&\".\"&$AE$8,$F$104,$F$105,CONFIGURATION!$B$10,\"BMA\",CONFIGURATION!$B$1,\"bscr\",CONFIGURATION!$B$12)","v":"Mapped"}]
[null,null,null,{"$f":"XBRLMap(D14,D$106&\".\"&$AE14&\".\"&$D$107&\".\"&$AE$8,$D$104,$D$105,CONFIGURATION!$B$10,\"BMA\",CONFIGURATION!$B$1,\"bscr\",CONFIGURATION!$B$12)","v":"Mapped"},null,{"$f":"XBRLMap(F14,F$106&\".\"&$AE14&\".\"&$F$107&\".\"&$AE$8,$F$104,$F$105,CONFIGURATION!$B$10,\"BMA\",CONFIGURATION!$B$1,\"bscr\",CONFIGURATION!$B$12)","v":"Mapped"},null,{"$f":"XBRLMap(H14,H$106&\".\"&$AE14&\".\"&$H$107&\".\"&$AE$8,$D$104,$D$105,CONFIGURATION!$B$10,\"BMA\",CONFIGURATION!$B$1,\"bscr\",CONFIGURATION!$B$12)","v":"Mapped"},null,{"$f":"XBRLMap(J14,J$106&\".\"&$AE14&\".\"&$J$107&\".\"&$AE$8,$F$104,$F$105,CONFIGURATION!$B$10,\"BMA\",CONFIGURATION!$B$1,\"bscr\",CONFIGURATION!$B$12)","v":"Mapped"},null,{"$f":"XBRLMap(L14,L$106&\".\"&$AE14&\".\"&$L$107&\".\"&$AE$8,$D$104,$D$105,CONFIGURATION!$B$10,\"BMA\",CONFIGURATION!$B$1,\"bscr\",CONFIGURATION!$B$12)","v":"Mapped"},null,{"$f":"XBRLMap(N14,N$106&\".\"&$AE14&\".\"&$N$107&\".\"&$AE$8,$F$104,$F$105,CONFIGURATION!$B$10,\"BMA\",CONFIGURATION!$B$1,\"bscr\",CONFIGURATION!$B$12)","v":"Mapped"},null,{"$f":"XBRLMap(P14,P$106&\".\"&$AE14&\".\"&$P$107&\".\"&$AE$8,$D$104,$D$105,CONFIGURATION!$B$10,\"BMA\",CONFIGURATION!$B$1,\"bscr\",CONFIGURATION!$B$12)","v":"Mapped"},null,{"$f":"XBRLMap(R14,R$106&\".\"&$AE14&\".\"&$R$107&\".\"&$AE$8,$F$104,$F$105,CONFIGURATION!$B$10,\"BMA\",CONFIGURATION!$B$1,\"bscr\",CONFIGURATION!$B$12)","v":"Mapped"},null,null,null,null,null,{"$f":"XBRLMap(X14,X$106&\".\"&$AE14&\".\"&$X$107&\".\"&$AE$8,$D$104,$D$105,CONFIGURATION!$B$10,\"BMA\",CONFIGURATION!$B$1,\"bscr\",CONFIGURATION!$B$12)","v":"Mapped"},null,{"$f":"XBRLMap(Z14,Z$106&\".\"&$AE14&\".\"&$Z$107&\".\"&$AE$8,$F$104,$F$105,CONFIGURATION!$B$10,\"BMA\",CONFIGURATION!$B$1,\"bscr\",CONFIGURATION!$B$12)","v":"Mapped"}]
[null,null,null,{"$f":"XBRLMap(D15,D$106&\".\"&$AE15&\".\"&$D$107&\".\"&$AE$8,$D$104,$D$105,CONFIGURATION!$B$10,\"BMA\",CONFIGURATION!$B$1,\"bscr\",CONFIGURATION!$B$12)","v":"Mapped"},null,{"$f":"XBRLMap(F15,F$106&\".\"&$AE15&\".\"&$F$107&\".\"&$AE$8,$F$104,$F$105,CONFIGURATION!$B$10,\"BMA\",CONFIGURATION!$B$1,\"bscr\",CONFIGURATION!$B$12)","v":"Mapped"},null,{"$f":"XBRLMap(H15,H$106&\".\"&$AE15&\".\"&$H$107&\".\"&$AE$8,$D$104,$D$105,CONFIGURATION!$B$10,\"BMA\",CONFIGURATION!$B$1,\"bscr\",CONFIGURATION!$B$12)","v":"Mapped"},null,{"$f":"XBRLMap(J15,J$106&\".\"&$AE15&\".\"&$J$107&\".\"&$AE$8,$F$104,$F$105,CONFIGURATION!$B$10,\"BMA\",CONFIGURATION!$B$1,\"bscr\",CONFIGURATION!$B$12)","v":"Mapped"},null,{"$f":"XBRLMap(L15,L$106&\".\"&$AE15&\".\"&$L$107&\".\"&$AE$8,$D$104,$D$105,CONFIGURATION!$B$10,\"BMA\",CONFIGURATION!$B$1,\"bscr\",CONFIGURATION!$B$12)","v":"Mapped"},null,{"$f":"XBRLMap(N15,N$106&\".\"&$AE15&\".\"&$N$107&\".\"&$AE$8,$F$104,$F$105,CONFIGURATION!$B$10,\"BMA\",CONFIGURATION!$B$1,\"bscr\",CONFIGURATION!$B$12)","v":"Mapped"},null,{"$f":"XBRLMap(P15,P$106&\".\"&$AE15&\".\"&$P$107&\".\"&$AE$8,$D$104,$D$105,CONFIGURATION!$B$10,\"BMA\",CONFIGURATION!$B$1,\"bscr\",CONFIGURATION!$B$12)","v":"Mapped"},null,{"$f":"XBRLMap(R15,R$106&\".\"&$AE15&\".\"&$R$107&\".\"&$AE$8,$F$104,$F$105,CONFIGURATION!$B$10,\"BMA\",CONFIGURATION!$B$1,\"bscr\",CONFIGURATION!$B$12)","v":"Mapped"},null,null,null,null,null,{"$f":"XBRLMap(X15,X$106&\".\"&$AE15&\".\"&$X$107&\".\"&$AE$8,$D$104,$D$105,CONFIGURATION!$B$10,\"BMA\",CONFIGURATION!$B$1,\"bscr\",CONFIGURATION!$B$12)","v":"Mapped"},null,{"$f":"XBRLMap(Z15,Z$106&\".\"&$AE15&\".\"&$Z$107&\".\"&$AE$8,$F$104,$F$105,CONFIGURATION!$B$10,\"BMA\",CONFIGURATION!$B$1,\"bscr\",CONFIGURATION!$B$12)","v":"Mapped"}]
[null,null,null,{"$f":"XBRLMap(D16,D$106&\".\"&$AE16&\".\"&$D$107&\".\"&$AE$8,$D$104,$D$105,CONFIGURATION!$B$10,\"BMA\",CONFIGURATION!$B$1,\"bscr\",CONFIGURATION!$B$12)","v":"Mapped"},null,{"$f":"XBRLMap(F16,F$106&\".\"&$AE16&\".\"&$F$107&\".\"&$AE$8,$F$104,$F$105,CONFIGURATION!$B$10,\"BMA\",CONFIGURATION!$B$1,\"bscr\",CONFIGURATION!$B$12)","v":"Mapped"},null,{"$f":"XBRLMap(H16,H$106&\".\"&$AE16&\".\"&$H$107&\".\"&$AE$8,$D$104,$D$105,CONFIGURATION!$B$10,\"BMA\",CONFIGURATION!$B$1,\"bscr\",CONFIGURATION!$B$12)","v":"Mapped"},null,{"$f":"XBRLMap(J16,J$106&\".\"&$AE16&\".\"&$J$107&\".\"&$AE$8,$F$104,$F$105,CONFIGURATION!$B$10,\"BMA\",CONFIGURATION!$B$1,\"bscr\",CONFIGURATION!$B$12)","v":"Mapped"},null,{"$f":"XBRLMap(L16,L$106&\".\"&$AE16&\".\"&$L$107&\".\"&$AE$8,$D$104,$D$105,CONFIGURATION!$B$10,\"BMA\",CONFIGURATION!$B$1,\"bscr\",CONFIGURATION!$B$12)","v":"Mapped"},null,{"$f":"XBRLMap(N16,N$106&\".\"&$AE16&\".\"&$N$107&\".\"&$AE$8,$F$104,$F$105,CONFIGURATION!$B$10,\"BMA\",CONFIGURATION!$B$1,\"bscr\",CONFIGURATION!$B$12)","v":"Mapped"},null,{"$f":"XBRLMap(P16,P$106&\".\"&$AE16&\".\"&$P$107&\".\"&$AE$8,$D$104,$D$105,CONFIGURATION!$B$10,\"BMA\",CONFIGURATION!$B$1,\"bscr\",CONFIGURATION!$B$12)","v":"Mapped"},null,{"$f":"XBRLMap(R16,R$106&\".\"&$AE16&\".\"&$R$107&\".\"&$AE$8,$F$104,$F$105,CONFIGURATION!$B$10,\"BMA\",CONFIGURATION!$B$1,\"bscr\",CONFIGURATION!$B$12)","v":"Mapped"},null,null,null,null,null,{"$f":"XBRLMap(X16,X$106&\".\"&$AE16&\".\"&$X$107&\".\"&$AE$8,$D$104,$D$105,CONFIGURATION!$B$10,\"BMA\",CONFIGURATION!$B$1,\"bscr\",CONFIGURATION!$B$12)","v":"Mapped"},null,{"$f":"XBRLMap(Z16,Z$106&\".\"&$AE16&\".\"&$Z$107&\".\"&$AE$8,$F$104,$F$105,CONFIGURATION!$B$10,\"BMA\",CONFIGURATION!$B$1,\"bscr\",CONFIGURATION!$B$12)","v":"Mapped"}]
[null,null,null,{"$f":"XBRLMap(D17,D$106&\".\"&$AE17&\".\"&$D$107&\".\"&$AE$8,$D$104,$D$105,CONFIGURATION!$B$10,\"BMA\",CONFIGURATION!$B$1,\"bscr\",CONFIGURATION!$B$12)","v":"Mapped"},null,{"$f":"XBRLMap(F17,F$106&\".\"&$AE17&\".\"&$F$107&\".\"&$AE$8,$F$104,$F$105,CONFIGURATION!$B$10,\"BMA\",CONFIGURATION!$B$1,\"bscr\",CONFIGURATION!$B$12)","v":"Mapped"},null,{"$f":"XBRLMap(H17,H$106&\".\"&$AE17&\".\"&$H$107&\".\"&$AE$8,$D$104,$D$105,CONFIGURATION!$B$10,\"BMA\",CONFIGURATION!$B$1,\"bscr\",CONFIGURATION!$B$12)","v":"Mapped"},null,{"$f":"XBRLMap(J17,J$106&\".\"&$AE17&\".\"&$J$107&\".\"&$AE$8,$F$104,$F$105,CONFIGURATION!$B$10,\"BMA\",CONFIGURATION!$B$1,\"bscr\",CONFIGURATION!$B$12)","v":"Mapped"},null,{"$f":"XBRLMap(L17,L$106&\".\"&$AE17&\".\"&$L$107&\".\"&$AE$8,$D$104,$D$105,CONFIGURATION!$B$10,\"BMA\",CONFIGURATION!$B$1,\"bscr\",CONFIGURATION!$B$12)","v":"Mapped"},null,{"$f":"XBRLMap(N17,N$106&\".\"&$AE17&\".\"&$N$107&\".\"&$AE$8,$F$104,$F$105,CONFIGURATION!$B$10,\"BMA\",CONFIGURATION!$B$1,\"bscr\",CONFIGURATION!$B$12)","v":"Mapped"},null,{"$f":"XBRLMap(P17,P$106&\".\"&$AE17&\".\"&$P$107&\".\"&$AE$8,$D$104,$D$105,CONFIGURATION!$B$10,\"BMA\",CONFIGURATION!$B$1,\"bscr\",CONFIGURATION!$B$12)","v":"Mapped"},null,{"$f":"XBRLMap(R17,R$106&\".\"&$AE17&\".\"&$R$107&\".\"&$AE$8,$F$104,$F$105,CONFIGURATION!$B$10,\"BMA\",CONFIGURATION!$B$1,\"bscr\",CONFIGURATION!$B$12)","v":"Mapped"},null,null,null,null,null,{"$f":"XBRLMap(X17,X$106&\".\"&$AE17&\".\"&$X$107&\".\"&$AE$8,$D$104,$D$105,CONFIGURATION!$B$10,\"BMA\",CONFIGURATION!$B$1,\"bscr\",CONFIGURATION!$B$12)","v":"Mapped"},null,{"$f":"XBRLMap(Z17,Z$106&\".\"&$AE17&\".\"&$Z$107&\".\"&$AE$8,$F$104,$F$105,CONFIGURATION!$B$10,\"BMA\",CONFIGURATION!$B$1,\"bscr\",CONFIGURATION!$B$12)","v":"Mapped"}]
[null,null,null,{"$f":"XBRLMap(D18,D$106&\".\"&$AE18&\".\"&$D$107&\".\"&$AE$8,$D$104,$D$105,CONFIGURATION!$B$10,\"BMA\",CONFIGURATION!$B$1,\"bscr\",CONFIGURATION!$B$12)","v":"Mapped"},null,{"$f":"XBRLMap(F18,F$106&\".\"&$AE18&\".\"&$F$107&\".\"&$AE$8,$F$104,$F$105,CONFIGURATION!$B$10,\"BMA\",CONFIGURATION!$B$1,\"bscr\",CONFIGURATION!$B$12)","v":"Mapped"},null,{"$f":"XBRLMap(H18,H$106&\".\"&$AE18&\".\"&$H$107&\".\"&$AE$8,$D$104,$D$105,CONFIGURATION!$B$10,\"BMA\",CONFIGURATION!$B$1,\"bscr\",CONFIGURATION!$B$12)","v":"Mapped"},null,{"$f":"XBRLMap(J18,J$106&\".\"&$AE18&\".\"&$J$107&\".\"&$AE$8,$F$104,$F$105,CONFIGURATION!$B$10,\"BMA\",CONFIGURATION!$B$1,\"bscr\",CONFIGURATION!$B$12)","v":"Mapped"},null,{"$f":"XBRLMap(L18,L$106&\".\"&$AE18&\".\"&$L$107&\".\"&$AE$8,$D$104,$D$105,CONFIGURATION!$B$10,\"BMA\",CONFIGURATION!$B$1,\"bscr\",CONFIGURATION!$B$12)","v":"Mapped"},null,{"$f":"XBRLMap(N18,N$106&\".\"&$AE18&\".\"&$N$107&\".\"&$AE$8,$F$104,$F$105,CONFIGURATION!$B$10,\"BMA\",CONFIGURATION!$B$1,\"bscr\",CONFIGURATION!$B$12)","v":"Mapped"},null,{"$f":"XBRLMap(P18,P$106&\".\"&$AE18&\".\"&$P$107&\".\"&$AE$8,$D$104,$D$105,CONFIGURATION!$B$10,\"BMA\",CONFIGURATION!$B$1,\"bscr\",CONFIGURATION!$B$12)","v":"Mapped"},null,{"$f":"XBRLMap(R18,R$106&\".\"&$AE18&\".\"&$R$107&\".\"&$AE$8,$F$104,$F$105,CONFIGURATION!$B$10,\"BMA\",CONFIGURATION!$B$1,\"bscr\",CONFIGURATION!$B$12)","v":"Mapped"},null,null,null,null,null,{"$f":"XBRLMap(X18,X$106&\".\"&$AE18&\".\"&$X$107&\".\"&$AE$8,$D$104,$D$105,CONFIGURATION!$B$10,\"BMA\",CONFIGURATION!$B$1,\"bscr\",CONFIGURATION!$B$12)","v":"Mapped"},null,{"$f":"XBRLMap(Z18,Z$106&\".\"&$AE18&\".\"&$Z$107&\".\"&$AE$8,$F$104,$F$105,CONFIGURATION!$B$10,\"BMA\",CONFIGURATION!$B$1,\"bscr\",CONFIGURATION!$B$12)","v":"Mapped"}]
[null,null,null,{"$f":"XBRLMap(D19,D$106&\".\"&$AE19&\".\"&$D$107&\".\"&$AE$8,$D$104,$D$105,CONFIGURATION!$B$10,\"BMA\",CONFIGURATION!$B$1,\"bscr\",CONFIGURATION!$B$12)","v":"Mapped"},null,{"$f":"XBRLMap(F19,F$106&\".\"&$AE19&\".\"&$F$107&\".\"&$AE$8,$F$104,$F$105,CONFIGURATION!$B$10,\"BMA\",CONFIGURATION!$B$1,\"bscr\",CONFIGURATION!$B$12)","v":"Mapped"},null,{"$f":"XBRLMap(H19,H$106&\".\"&$AE19&\".\"&$H$107&\".\"&$AE$8,$D$104,$D$105,CONFIGURATION!$B$10,\"BMA\",CONFIGURATION!$B$1,\"bscr\",CONFIGURATION!$B$12)","v":"Mapped"},null,{"$f":"XBRLMap(J19,J$106&\".\"&$AE19&\".\"&$J$107&\".\"&$AE$8,$F$104,$F$105,CONFIGURATION!$B$10,\"BMA\",CONFIGURATION!$B$1,\"bscr\",CONFIGURATION!$B$12)","v":"Mapped"},null,{"$f":"XBRLMap(L19,L$106&\".\"&$AE19&\".\"&$L$107&\".\"&$AE$8,$D$104,$D$105,CONFIGURATION!$B$10,\"BMA\",CONFIGURATION!$B$1,\"bscr\",CONFIGURATION!$B$12)","v":"Mapped"},null,{"$f":"XBRLMap(N19,N$106&\".\"&$AE19&\".\"&$N$107&\".\"&$AE$8,$F$104,$F$105,CONFIGURATION!$B$10,\"BMA\",CONFIGURATION!$B$1,\"bscr\",CONFIGURATION!$B$12)","v":"Mapped"},null,{"$f":"XBRLMap(P19,P$106&\".\"&$AE19&\".\"&$P$107&\".\"&$AE$8,$D$104,$D$105,CONFIGURATION!$B$10,\"BMA\",CONFIGURATION!$B$1,\"bscr\",CONFIGURATION!$B$12)","v":"Mapped"},null,{"$f":"XBRLMap(R19,R$106&\".\"&$AE19&\".\"&$R$107&\".\"&$AE$8,$F$104,$F$105,CONFIGURATION!$B$10,\"BMA\",CONFIGURATION!$B$1,\"bscr\",CONFIGURATION!$B$12)","v":"Mapped"},null,null,null,null,null,{"$f":"XBRLMap(X19,X$106&\".\"&$AE19&\".\"&$X$107&\".\"&$AE$8,$D$104,$D$105,CONFIGURATION!$B$10,\"BMA\",CONFIGURATION!$B$1,\"bscr\",CONFIGURATION!$B$12)","v":"Mapped"},null,{"$f":"XBRLMap(Z19,Z$106&\".\"&$AE19&\".\"&$Z$107&\".\"&$AE$8,$F$104,$F$105,CONFIGURATION!$B$10,\"BMA\",CONFIGURATION!$B$1,\"bscr\",CONFIGURATION!$B$12)","v":"Mapped"}]
[null,null,null,{"$f":"XBRLMap(D20,D$106&\".\"&$AE20&\".\"&$D$107&\".\"&$AE$8,$D$104,$D$105,CONFIGURATION!$B$10,\"BMA\",CONFIGURATION!$B$1,\"bscr\",CONFIGURATION!$B$12)","v":"Mapped"},null,{"$f":"XBRLMap(F20,F$106&\".\"&$AE20&\".\"&$F$107&\".\"&$AE$8,$F$104,$F$105,CONFIGURATION!$B$10,\"BMA\",CONFIGURATION!$B$1,\"bscr\",CONFIGURATION!$B$12)","v":"Mapped"},null,{"$f":"XBRLMap(H20,H$106&\".\"&$AE20&\".\"&$H$107&\".\"&$AE$8,$D$104,$D$105,CONFIGURATION!$B$10,\"BMA\",CONFIGURATION!$B$1,\"bscr\",CONFIGURATION!$B$12)","v":"Mapped"},null,{"$f":"XBRLMap(J20,J$106&\".\"&$AE20&\".\"&$J$107&\".\"&$AE$8,$F$104,$F$105,CONFIGURATION!$B$10,\"BMA\",CONFIGURATION!$B$1,\"bscr\",CONFIGURATION!$B$12)","v":"Mapped"},null,{"$f":"XBRLMap(L20,L$106&\".\"&$AE20&\".\"&$L$107&\".\"&$AE$8,$D$104,$D$105,CONFIGURATION!$B$10,\"BMA\",CONFIGURATION!$B$1,\"bscr\",CONFIGURATION!$B$12)","v":"Mapped"},null,{"$f":"XBRLMap(N20,N$106&\".\"&$AE20&\".\"&$N$107&\".\"&$AE$8,$F$104,$F$105,CONFIGURATION!$B$10,\"BMA\",CONFIGURATION!$B$1,\"bscr\",CONFIGURATION!$B$12)","v":"Mapped"},null,{"$f":"XBRLMap(P20,P$106&\".\"&$AE20&\".\"&$P$107&\".\"&$AE$8,$D$104,$D$105,CONFIGURATION!$B$10,\"BMA\",CONFIGURATION!$B$1,\"bscr\",CONFIGURATION!$B$12)","v":"Mapped"},null,{"$f":"XBRLMap(R20,R$106&\".\"&$AE20&\".\"&$R$107&\".\"&$AE$8,$F$104,$F$105,CONFIGURATION!$B$10,\"BMA\",CONFIGURATION!$B$1,\"bscr\",CONFIGURATION!$B$12)","v":"Mapped"},null,null,null,null,null,{"$f":"XBRLMap(X20,X$106&\".\"&$AE20&\".\"&$X$107&\".\"&$AE$8,$D$104,$D$105,CONFIGURATION!$B$10,\"BMA\",CONFIGURATION!$B$1,\"bscr\",CONFIGURATION!$B$12)","v":"Mapped"},null,{"$f":"XBRLMap(Z20,Z$106&\".\"&$AE20&\".\"&$Z$107&\".\"&$AE$8,$F$104,$F$105,CONFIGURATION!$B$10,\"BMA\",CONFIGURATION!$B$1,\"bscr\",CONFIGURATION!$B$12)","v":"Mapped"}]
[null,null,null,{"$f":"XBRLMap(D21,D$106&\".\"&$AE21&\".\"&$D$107&\".\"&$AE$8,$D$104,$D$105,CONFIGURATION!$B$10,\"BMA\",CONFIGURATION!$B$1,\"bscr\",CONFIGURATION!$B$12)","v":"Mapped"},null,{"$f":"XBRLMap(F21,F$106&\".\"&$AE21&\".\"&$F$107&\".\"&$AE$8,$F$104,$F$105,CONFIGURATION!$B$10,\"BMA\",CONFIGURATION!$B$1,\"bscr\",CONFIGURATION!$B$12)","v":"Mapped"},null,{"$f":"XBRLMap(H21,H$106&\".\"&$AE21&\".\"&$H$107&\".\"&$AE$8,$D$104,$D$105,CONFIGURATION!$B$10,\"BMA\",CONFIGURATION!$B$1,\"bscr\",CONFIGURATION!$B$12)","v":"Mapped"},null,{"$f":"XBRLMap(J21,J$106&\".\"&$AE21&\".\"&$J$107&\".\"&$AE$8,$F$104,$F$105,CONFIGURATION!$B$10,\"BMA\",CONFIGURATION!$B$1,\"bscr\",CONFIGURATION!$B$12)","v":"Mapped"},null,{"$f":"XBRLMap(L21,L$106&\".\"&$AE21&\".\"&$L$107&\".\"&$AE$8,$D$104,$D$105,CONFIGURATION!$B$10,\"BMA\",CONFIGURATION!$B$1,\"bscr\",CONFIGURATION!$B$12)","v":"Mapped"},null,{"$f":"XBRLMap(N21,N$106&\".\"&$AE21&\".\"&$N$107&\".\"&$AE$8,$F$104,$F$105,CONFIGURATION!$B$10,\"BMA\",CONFIGURATION!$B$1,\"bscr\",CONFIGURATION!$B$12)","v":"Mapped"},null,{"$f":"XBRLMap(P21,P$106&\".\"&$AE21&\".\"&$P$107&\".\"&$AE$8,$D$104,$D$105,CONFIGURATION!$B$10,\"BMA\",CONFIGURATION!$B$1,\"bscr\",CONFIGURATION!$B$12)","v":"Mapped"},null,{"$f":"XBRLMap(R21,R$106&\".\"&$AE21&\".\"&$R$107&\".\"&$AE$8,$F$104,$F$105,CONFIGURATION!$B$10,\"BMA\",CONFIGURATION!$B$1,\"bscr\",CONFIGURATION!$B$12)","v":"Mapped"},null,null,null,null,null,{"$f":"XBRLMap(X21,X$106&\".\"&$AE21&\".\"&$X$107&\".\"&$AE$8,$D$104,$D$105,CONFIGURATION!$B$10,\"BMA\",CONFIGURATION!$B$1,\"bscr\",CONFIGURATION!$B$12)","v":"Mapped"},null,{"$f":"XBRLMap(Z21,Z$106&\".\"&$AE21&\".\"&$Z$107&\".\"&$AE$8,$F$104,$F$105,CONFIGURATION!$B$10,\"BMA\",CONFIGURATION!$B$1,\"bscr\",CONFIGURATION!$B$12)","v":"Mapped"}]
[]
[null,null,null,{"$f":"XBRLMap(D27,D$106&\".\"&$AE27&\".\"&$D$107&\".\"&$AE$8,$D$104,$D$105,CONFIGURATION!$B$10,\"BMA\",CONFIGURATION!$B$1,\"bscr\",CONFIGURATION!$B$12)","v":"Mapped"},null,{"$f":"XBRLMap(F27,F$106&\".\"&$AE27&\".\"&$F$107&\".\"&$AE$8,$F$104,$F$105,CONFIGURATION!$B$10,\"BMA\",CONFIGURATION!$B$1,\"bscr\",CONFIGURATION!$B$12)","v":"Mapped"},null,{"$f":"XBRLMap(H27,H$106&\".\"&$AE27&\".\"&$H$107&\".\"&$AE$8,$D$104,$D$105,CONFIGURATION!$B$10,\"BMA\",CONFIGURATION!$B$1,\"bscr\",CONFIGURATION!$B$12)","v":"Mapped"},null,{"$f":"XBRLMap(J27,J$106&\".\"&$AE27&\".\"&$J$107&\".\"&$AE$8,$F$104,$F$105,CONFIGURATION!$B$10,\"BMA\",CONFIGURATION!$B$1,\"bscr\",CONFIGURATION!$B$12)","v":"Mapped"},null,{"$f":"XBRLMap(L27,L$106&\".\"&$AE27&\".\"&$L$107&\".\"&$AE$8,$D$104,$D$105,CONFIGURATION!$B$10,\"BMA\",CONFIGURATION!$B$1,\"bscr\",CONFIGURATION!$B$12)","v":"Mapped"},null,{"$f":"XBRLMap(N27,N$106&\".\"&$AE27&\".\"&$N$107&\".\"&$AE$8,$F$104,$F$105,CONFIGURATION!$B$10,\"BMA\",CONFIGURATION!$B$1,\"bscr\",CONFIGURATION!$B$12)","v":"Mapped"},null,{"$f":"XBRLMap(P27,P$106&\".\"&$AE27&\".\"&$P$107&\".\"&$AE$8,$D$104,$D$105,CONFIGURATION!$B$10,\"BMA\",CONFIGURATION!$B$1,\"bscr\",CONFIGURATION!$B$12)","v":"Mapped"},null,{"$f":"XBRLMap(R27,R$106&\".\"&$AE27&\".\"&$R$107&\".\"&$AE$8,$F$104,$F$105,CONFIGURATION!$B$10,\"BMA\",CONFIGURATION!$B$1,\"bscr\",CONFIGURATION!$B$12)","v":"Mapped"},null,null,null,null,null,{"$f":"XBRLMap(X27,X$106&\".\"&$AE27&\".\"&$X$107&\".\"&$AE$8,$D$104,$D$105,CONFIGURATION!$B$10,\"BMA\",CONFIGURATION!$B$1,\"bscr\",CONFIGURATION!$B$12)","v":"Mapped"},null,{"$f":"XBRLMap(Z27,Z$106&\".\"&$AE27&\".\"&$Z$107&\".\"&$AE$8,$F$104,$F$105,CONFIGURATION!$B$10,\"BMA\",CONFIGURATION!$B$1,\"bscr\",CONFIGURATION!$B$12)","v":"Mapped"}]
[]
[null,null,null,"brrt_QuotedInvestmentsEquitiesCommonStocks",null,"brrt_QuotedInvestmentsEquitiesCommonStocks",null,null,null,null,null,"brrt_QuotedInvestmentsEquitiesMutualFunds",null,"brrt_QuotedInvestmentsEquitiesMutualFunds",null,null,null,null,null,null,null,null,null,"brrt_QuotedInvestmentsEquitiesCommonStocksMutualFunds",null,"brrt_QuotedInvestmentsEquitiesCommonStocksMutualFunds"]
[null,null,null,"brrt_UnquotedInvestmentsEquitiesCommonStocks",null,"brrt_UnquotedInvestmentsEquitiesCommonStocks",null,null,null,null,null,"brrt_UnquotedInvestmentsEquitiesMutualFunds",null,"brrt_UnquotedInvestmentsEquitiesMutualFunds",null,null,null,null,null,null,null,null,null,"brrt_UnquotedInvestmentsEquitiesCommonStocksMutualFunds",null,"brrt_UnquotedInvestmentsEquitiesCommonStocksMutualFunds"]
[null,null,null,"brrt_EquitiesCommonStocks",null,"brrt_EquitiesCommonStocks",null,"brrt_EquitiesPreferredStocks",null,"brrt_EquitiesPreferredStocks",null,"brrt_EquitiesMutualFunds",null,"brrt_EquitiesMutualFunds",null,null,null,null,null,null,null,null,null,"brrt_Equities",null,"brrt_Equities"]
[null,null,null,null,null,null,null,{"$f":"XBRLMap(#REF!,H$122&\".\"&#REF!&\".\"&$AE$8,$D$104,$D$105,CONFIGURATION!$B$10,\"BMA\",CONFIGURATION!$B$1,\"bscr\",CONFIGURATION!$B$12)","v":{"$error":"#VALUE!"}},null,{"$f":"XBRLMap(#REF!,J$122&\".\"&#REF!&\".\"&$AE$8,$F$104,$F$105,CONFIGURATION!$B$10,\"BMA\",CONFIGURATION!$B$1,\"bscr\",CONFIGURATION!$B$12)","v":{"$error":"#VALUE!"}},null,null,null,null,null,null,null,null,null,null,null,null,null,"The same data point as in column H",null,"The same data point as in column J"]
[null,null,null,null,null,null,null,{"$f":"XBRLMap(#REF!,H$122&\".\"&#REF!&\".\"&$AE$8,$D$104,$D$105,CONFIGURATION!$B$10,\"BMA\",CONFIGURATION!$B$1,\"bscr\",CONFIGURATION!$B$12)","v":{"$error":"#VALUE!"}},null,{"$f":"XBRLMap(#REF!,J$122&\".\"&#REF!&\".\"&$AE$8,$F$104,$F$105,CONFIGURATION!$B$10,\"BMA\",CONFIGURATION!$B$1,\"bscr\",CONFIGURATION!$B$12)","v":{"$error":"#VALUE!"}},null,null,null,null,null,null,null,null,null,null,null,null,null,"The same data point as in column H",null,"The same data point as in column J"]
[null,null,null,null,null,null,null,{"$f":"XBRLMap(#REF!,H$122&\".\"&#REF!&\".\"&$AE$8,$D$104,$D$105,CONFIGURATION!$B$10,\"BMA\",CONFIGURATION!$B$1,\"bscr\",CONFIGURATION!$B$12)","v":{"$error":"#VALUE!"}},null,{"$f":"XBRLMap(#REF!,J$122&\".\"&#REF!&\".\"&$AE$8,$F$104,$F$105,CONFIGURATION!$B$10,\"BMA\",CONFIGURATION!$B$1,\"bscr\",CONFIGURATION!$B$12)","v":{"$error":"#VALUE!"}},null,null,null,null,null,null,null,null,null,null,null,null,null,"The same data point as in column H",null,"The same data point as in column J"]
[null,null,null,null,null,null,null,{"$f":"XBRLMap(#REF!,H$122&\".\"&#REF!&\".\"&$AE$8,$D$104,$D$105,CONFIGURATION!$B$10,\"BMA\",CONFIGURATION!$B$1,\"bscr\",CONFIGURATION!$B$12)","v":{"$error":"#VALUE!"}},null,{"$f":"XBRLMap(#REF!,J$122&\".\"&#REF!&\".\"&$AE$8,$F$104,$F$105,CONFIGURATION!$B$10,\"BMA\",CONFIGURATION!$B$1,\"bscr\",CONFIGURATION!$B$12)","v":{"$error":"#VALUE!"}},null,null,null,null,null,null,null,null,null,null,null,null,null,"The same data point as in column H",null,"The same data point as in column J"]
[null,null,null,null,null,null,null,{"$f":"XBRLMap(#REF!,H$122&\".\"&#REF!&\".\"&$AE$8,$D$104,$D$105,CONFIGURATION!$B$10,\"BMA\",CONFIGURATION!$B$1,\"bscr\",CONFIGURATION!$B$12)","v":{"$error":"#VALUE!"}},null,{"$f":"XBRLMap(#REF!,J$122&\".\"&#REF!&\".\"&$AE$8,$F$104,$F$105,CONFIGURATION!$B$10,\"BMA\",CONFIGURATION!$B$1,\"bscr\",CONFIGURATION!$B$12)","v":{"$error":"#VALUE!"}},null,null,null,null,null,null,null,null,null,null,null,null,null,"The same data point as in column H",null,"The same data point as in column J"]
[null,null,null,null,null,null,null,{"$f":"XBRLMap(#REF!,H$122&\".\"&#REF!&\".\"&$AE$8,$D$104,$D$105,CONFIGURATION!$B$10,\"BMA\",CONFIGURATION!$B$1,\"bscr\",CONFIGURATION!$B$12)","v":{"$error":"#VALUE!"}},null,{"$f":"XBRLMap(#REF!,J$122&\".\"&#REF!&\".\"&$AE$8,$F$104,$F$105,CONFIGURATION!$B$10,\"BMA\",CONFIGURATION!$B$1,\"bscr\",CONFIGURATION!$B$12)","v":{"$error":"#VALUE!"}},null,null,null,null,null,null,null,null,null,null,null,null,null,"The same data point as in column H",null,"The same data point as in column J"]
[null,null,null,null,null,null,null,{"$f":"XBRLMap(#REF!,H$122&\".\"&#REF!&\".\"&$AE$8,$D$104,$D$105,CONFIGURATION!$B$10,\"BMA\",CONFIGURATION!$B$1,\"bscr\",CONFIGURATION!$B$12)","v":{"$error":"#VALUE!"}},null,{"$f":"XBRLMap(#REF!,J$122&\".\"&#REF!&\".\"&$AE$8,$F$104,$F$105,CONFIGURATION!$B$10,\"BMA\",CONFIGURATION!$B$1,\"bscr\",CONFIGURATION!$B$12)","v":{"$error":"#VALUE!"}},null,null,null,null,null,null,null,null,null,null,null,null,null,"The same data point as in column H",null,"The same data point as in column J"]
[null,null,null,null,null,null,null,{"$f":"XBRLMap(#REF!,H$122&\".\"&#REF!&\".\"&$AE$8,$D$104,$D$105,CONFIGURATION!$B$10,\"BMA\",CONFIGURATION!$B$1,\"bscr\",CONFIGURATION!$B$12)","v":{"$error":"#VALUE!"}},null,{"$f":"XBRLMap(#REF!,J$122&\".\"&#REF!&\".\"&$AE$8,$F$104,$F$105,CONFIGURATION!$B$10,\"BMA\",CONFIGURATION!$B$1,\"bscr\",CONFIGURATION!$B$12)","v":{"$error":"#VALUE!"}},null,null,null,null,null,null,null,null,null,null,null,null,null,"The same data point as in column H",null,"The same data point as in column J"]
[null,null,null,{"$f":"XBRLMap(#REF!,D$120&\".\"&$AE$8,$D$104,$D$105,CONFIGURATION!$B$10,\"BMA\",CONFIGURATION!$B$1,\"bscr\",CONFIGURATION!$B$12)","v":{"$error":"#VALUE!"}},null,{"$f":"XBRLMap(#REF!,F$120&\".\"&$AE$8,$F$104,$F$105,CONFIGURATION!$B$10,\"BMA\",CONFIGURATION!$B$1,\"bscr\",CONFIGURATION!$B$12)","v":{"$error":"#VALUE!"}},null,null,null,null,null,{"$f":"XBRLMap(#REF!,L$120&\".\"&$AE$8,$D$104,$D$105,CONFIGURATION!$B$10,\"BMA\",CONFIGURATION!$B$1,\"bscr\",CONFIGURATION!$B$12)","v":{"$error":"#VALUE!"}},null,{"$f":"XBRLMap(#REF!,N$120&\".\"&$AE$8,$F$104,$F$105,CONFIGURATION!$B$10,\"BMA\",CONFIGURATION!$B$1,\"bscr\",CONFIGURATION!$B$12)","v":{"$error":"#VALUE!"}},null,null,null,null,null,null,null,null,null,{"$f":"XBRLMap(#REF!,X$120&\".\"&$AE$8,$D$104,$D$105,CONFIGURATION!$B$10,\"BMA\",CONFIGURATION!$B$1,\"bscr\",CONFIGURATION!$B$12)","v":{"$error":"#VALUE!"}},null,{"$f":"XBRLMap(#REF!,Z$120&\".\"&$AE$8,$F$104,$F$105,CONFIGURATION!$B$10,\"BMA\",CONFIGURATION!$B$1,\"bscr\",CONFIGURATION!$B$12)","v":{"$error":"#VALUE!"}}]
[null,null,null,{"$f":"XBRLMap(#REF!,D$121&\".\"&$AE$8,$D$104,$D$105,CONFIGURATION!$B$10,\"BMA\",CONFIGURATION!$B$1,\"bscr\",CONFIGURATION!$B$12)","v":{"$error":"#VALUE!"}},null,{"$f":"XBRLMap(#REF!,F$121&\".\"&$AE$8,$F$104,$F$105,CONFIGURATION!$B$10,\"BMA\",CONFIGURATION!$B$1,\"bscr\",CONFIGURATION!$B$12)","v":{"$error":"#VALUE!"}},null,null,null,null,null,{"$f":"XBRLMap(#REF!,L$121&\".\"&$AE$8,$D$104,$D$105,CONFIGURATION!$B$10,\"BMA\",CONFIGURATION!$B$1,\"bscr\",CONFIGURATION!$B$12)","v":{"$error":"#VALUE!"}},null,{"$f":"XBRLMap(#REF!,N$121&\".\"&$AE$8,$F$104,$F$105,CONFIGURATION!$B$10,\"BMA\",CONFIGURATION!$B$1,\"bscr\",CONFIGURATION!$B$12)","v":{"$error":"#VALUE!"}},null,null,null,null,null,null,null,null,null,{"$f":"XBRLMap(#REF!,X$121&\".\"&$AE$8,$D$104,$D$105,CONFIGURATION!$B$10,\"BMA\",CONFIGURATION!$B$1,\"bscr\",CONFIGURATION!$B$12)","v":{"$error":"#VALUE!"}},null,{"$f":"XBRLMap(#REF!,Z$121&\".\"&$AE$8,$F$104,$F$105,CONFIGURATION!$B$10,\"BMA\",CONFIGURATION!$B$1,\"bscr\",CONFIGURATION!$B$12)","v":{"$error":"#VALUE!"}}]
[]
[null,null,null,{"$f":"XBRLMap(#REF!,D$122&\".\"&$AE$8,$D$104,$D$105,CONFIGURATION!$B$10,\"BMA\",CONFIGURATION!$B$1,\"bscr\",CONFIGURATION!$B$12)","v":{"$error":"#VALUE!"}},null,{"$f":"XBRLMap(#REF!,F$122&\".\"&$AE$8,$F$104,$F$105,CONFIGURATION!$B$10,\"BMA\",CONFIGURATION!$B$1,\"bscr\",CONFIGURATION!$B$12)","v":{"$error":"#VALUE!"}},null,{"$f":"XBRLMap(#REF!,H$122&\".\"&#REF!&\".\"&$AE$8,$D$104,$D$105,CONFIGURATION!$B$10,\"BMA\",CONFIGURATION!$B$1,\"bscr\",CONFIGURATION!$B$12)","v":{"$error":"#VALUE!"}},null,{"$f":"XBRLMap(#REF!,J$122&\".\"&#REF!&\".\"&$AE$8,$F$104,$F$105,CONFIGURATION!$B$10,\"BMA\",CONFIGURATION!$B$1,\"bscr\",CONFIGURATION!$B$12)","v":{"$error":"#VALUE!"}},null,{"$f":"XBRLMap(#REF!,L$122&\".\"&$AE$8,$D$104,$D$105,CONFIGURATION!$B$10,\"BMA\",CONFIGURATION!$B$1,\"bscr\",CONFIGURATION!$B$12)","v":{"$error":"#VALUE!"}},null,{"$f":"XBRLMap(#REF!,N$122&\".\"&$AE$8,$F$104,$F$105,CONFIGURATION!$B$10,\"BMA\",CONFIGURATION!$B$1,\"bscr\",CONFIGURATION!$B$12)","v":{"$error":"#VALUE!"}},null,null,null,null,null,null,null,null,null,{"$f":"XBRLMap(#REF!,X$122&\".\"&$AE$8,$D$104,$D$105,CONFIGURATION!$B$10,\"BMA\",CONFIGURATION!$B$1,\"bscr\",CONFIGURATION!$B$12)","v":{"$error":"#VALUE!"}},null,{"$f":"XBRLMap(#REF!,Z$122&\".\"&$AE$8,$F$104,$F$105,CONFIGURATION!$B$10,\"BMA\",CONFIGURATION!$B$1,\"bscr\",CONFIGURATION!$B$12)","v":{"$error":"#VALUE!"}}]
[]
[]
[]
[null,null,null,null,null,null,null,null,null,null,null,"brrt_BondsAndDebentures",null,"brrt_BondsAndDebentures",null,"brrt_BondsAndDebentures",null,"brrt_BondsAndDebentures"]
[null,null,null,null,null,null,null,null,null,null,null,"brrt_SecurityTypeAxis_brrt_ResidentialMortgageBackedSecuritiesMember",null,"brrt_SecurityTypeAxis_brrt_ResidentialMortgageBackedSecuritiesMember",null,"brrt_SecurityTypeAxis_brrt_CommercialMortgageBackedSecuritiesAssetBackedSecuritiesMember",null,"brrt_SecurityTypeAxis_brrt_CommercialMortgageBackedSecuritiesAssetBackedSecuritiesMember"]
[null,null,null,null,null,null,null,null,null,null,null,"brrt_ClassificationAxis_brrt_OriginalClassificationMember",null,"brrt_ClassificationAxis_brrt_RevisedClassificationMember",null,"brrt_ClassificationAxis_brrt_OriginalClassificationMember",null,"brrt_ClassificationAxis_brrt_RevisedClassificationMember"]
[null,null,null,null,null,null,null,null,null,null,null,{"$f":"XBRLMap(#REF!,L$138&\".\"&#REF!&\".\"&$L$139&\".\"&$L$140&\".\"&$AE$8,$D$104,$D$105,CONFIGURATION!$B$10,\"BMA\",CONFIGURATION!$B$1,\"bscr\",CONFIGURATION!$B$12)","v":{"$error":"#VALUE!"}},null,{"$f":"XBRLMap(#REF!,N$138&\".\"&#REF!&\".\"&$N$139&\".\"&$N$140&\".\"&$AE$8,$D$104,$D$105,CONFIGURATION!$B$10,\"BMA\",CONFIGURATION!$B$1,\"bscr\",CONFIGURATION!$B$12)","v":{"$error":"#VALUE!"}},null,{"$f":"XBRLMap(#REF!,P$138&\".\"&#REF!&\".\"&$P$139&\".\"&$P$140&\".\"&$AE$8,$D$104,$D$105,CONFIGURATION!$B$10,\"BMA\",CONFIGURATION!$B$1,\"bscr\",CONFIGURATION!$B$12)","v":{"$error":"#VALUE!"}},null,{"$f":"XBRLMap(#REF!,R$138&\".\"&#REF!&\".\"&$R$139&\".\"&$R$140&\".\"&$AE$8,$D$104,$D$105,CONFIGURATION!$B$10,\"BMA\",CONFIGURATION!$B$1,\"bscr\",CONFIGURATION!$B$12)","v":{"$error":"#VALUE!"}}]
[null,null,null,null,null,null,null,null,null,null,null,{"$f":"XBRLMap(#REF!,L$138&\".\"&#REF!&\".\"&$L$139&\".\"&$L$140&\".\"&$AE$8,$D$104,$D$105,CONFIGURATION!$B$10,\"BMA\",CONFIGURATION!$B$1,\"bscr\",CONFIGURATION!$B$12)","v":{"$error":"#VALUE!"}},null,{"$f":"XBRLMap(#REF!,N$138&\".\"&#REF!&\".\"&$N$139&\".\"&$N$140&\".\"&$AE$8,$D$104,$D$105,CONFIGURATION!$B$10,\"BMA\",CONFIGURATION!$B$1,\"bscr\",CONFIGURATION!$B$12)","v":{"$error":"#VALUE!"}},null,{"$f":"XBRLMap(#REF!,P$138&\".\"&#REF!&\".\"&$P$139&\".\"&$P$140&\".\"&$AE$8,$D$104,$D$105,CONFIGURATION!$B$10,\"BMA\",CONFIGURATION!$B$1,\"bscr\",CONFIGURATION!$B$12)","v":{"$error":"#VALUE!"}},null,{"$f":"XBRLMap(#REF!,R$138&\".\"&#REF!&\".\"&$R$139&\".\"&$R$140&\".\"&$AE$8,$D$104,$D$105,CONFIGURATION!$B$10,\"BMA\",CONFIGURATION!$B$1,\"bscr\",CONFIGURATION!$B$12)","v":{"$error":"#VALUE!"}}]
[null,null,null,null,null,null,null,null,null,null,null,{"$f":"XBRLMap(#REF!,L$138&\".\"&#REF!&\".\"&$L$139&\".\"&$L$140&\".\"&$AE$8,$D$104,$D$105,CONFIGURATION!$B$10,\"BMA\",CONFIGURATION!$B$1,\"bscr\",CONFIGURATION!$B$12)","v":{"$error":"#VALUE!"}},null,{"$f":"XBRLMap(#REF!,N$138&\".\"&#REF!&\".\"&$N$139&\".\"&$N$140&\".\"&$AE$8,$D$104,$D$105,CONFIGURATION!$B$10,\"BMA\",CONFIGURATION!$B$1,\"bscr\",CONFIGURATION!$B$12)","v":{"$error":"#VALUE!"}},null,{"$f":"XBRLMap(#REF!,P$138&\".\"&#REF!&\".\"&$P$139&\".\"&$P$140&\".\"&$AE$8,$D$104,$D$105,CONFIGURATION!$B$10,\"BMA\",CONFIGURATION!$B$1,\"bscr\",CONFIGURATION!$B$12)","v":{"$error":"#VALUE!"}},null,{"$f":"XBRLMap(#REF!,R$138&\".\"&#REF!&\".\"&$R$139&\".\"&$R$140&\".\"&$AE$8,$D$104,$D$105,CONFIGURATION!$B$10,\"BMA\",CONFIGURATION!$B$1,\"bscr\",CONFIGURATION!$B$12)","v":{"$error":"#VALUE!"}}]
[null,null,null,null,null,null,null,null,null,null,null,{"$f":"XBRLMap(#REF!,L$138&\".\"&#REF!&\".\"&$L$139&\".\"&$L$140&\".\"&$AE$8,$D$104,$D$105,CONFIGURATION!$B$10,\"BMA\",CONFIGURATION!$B$1,\"bscr\",CONFIGURATION!$B$12)","v":{"$error":"#VALUE!"}},null,{"$f":"XBRLMap(#REF!,N$138&\".\"&#REF!&\".\"&$N$139&\".\"&$N$140&\".\"&$AE$8,$D$104,$D$105,CONFIGURATION!$B$10,\"BMA\",CONFIGURATION!$B$1,\"bscr\",CONFIGURATION!$B$12)","v":{"$error":"#VALUE!"}},null,{"$f":"XBRLMap(#REF!,P$138&\".\"&#REF!&\".\"&$P$139&\".\"&$P$140&\".\"&$AE$8,$D$104,$D$105,CONFIGURATION!$B$10,\"BMA\",CONFIGURATION!$B$1,\"bscr\",CONFIGURATION!$B$12)","v":{"$error":"#VALUE!"}},null,{"$f":"XBRLMap(#REF!,R$138&\".\"&#REF!&\".\"&$R$139&\".\"&$R$140&\".\"&$AE$8,$D$104,$D$105,CONFIGURATION!$B$10,\"BMA\",CONFIGURATION!$B$1,\"bscr\",CONFIGURATION!$B$12)","v":{"$error":"#VALUE!"}}]
[null,null,null,null,null,null,null,null,null,null,null,{"$f":"XBRLMap(#REF!,L$138&\".\"&#REF!&\".\"&$L$139&\".\"&$L$140&\".\"&$AE$8,$D$104,$D$105,CONFIGURATION!$B$10,\"BMA\",CONFIGURATION!$B$1,\"bscr\",CONFIGURATION!$B$12)","v":{"$error":"#VALUE!"}},null,{"$f":"XBRLMap(#REF!,N$138&\".\"&#REF!&\".\"&$N$139&\".\"&$N$140&\".\"&$AE$8,$D$104,$D$105,CONFIGURATION!$B$10,\"BMA\",CONFIGURATION!$B$1,\"bscr\",CONFIGURATION!$B$12)","v":{"$error":"#VALUE!"}},null,{"$f":"XBRLMap(#REF!,P$138&\".\"&#REF!&\".\"&$P$139&\".\"&$P$140&\".\"&$AE$8,$D$104,$D$105,CONFIGURATION!$B$10,\"BMA\",CONFIGURATION!$B$1,\"bscr\",CONFIGURATION!$B$12)","v":{"$error":"#VALUE!"}},null,{"$f":"XBRLMap(#REF!,R$138&\".\"&#REF!&\".\"&$R$139&\".\"&$R$140&\".\"&$AE$8,$D$104,$D$105,CONFIGURATION!$B$10,\"BMA\",CONFIGURATION!$B$1,\"bscr\",CONFIGURATION!$B$12)","v":{"$error":"#VALUE!"}}]
[null,null,null,null,null,null,null,null,null,null,null,{"$f":"XBRLMap(#REF!,L$138&\".\"&#REF!&\".\"&$L$139&\".\"&$L$140&\".\"&$AE$8,$D$104,$D$105,CONFIGURATION!$B$10,\"BMA\",CONFIGURATION!$B$1,\"bscr\",CONFIGURATION!$B$12)","v":{"$error":"#VALUE!"}},null,{"$f":"XBRLMap(#REF!,N$138&\".\"&#REF!&\".\"&$N$139&\".\"&$N$140&\".\"&$AE$8,$D$104,$D$105,CONFIGURATION!$B$10,\"BMA\",CONFIGURATION!$B$1,\"bscr\",CONFIGURATION!$B$12)","v":{"$error":"#VALUE!"}},null,{"$f":"XBRLMap(#REF!,P$138&\".\"&#REF!&\".\"&$P$139&\".\"&$P$140&\".\"&$AE$8,$D$104,$D$105,CONFIGURATION!$B$10,\"BMA\",CONFIGURATION!$B$1,\"bscr\",CONFIGURATION!$B$12)","v":{"$error":"#VALUE!"}},null,{"$f":"XBRLMap(#REF!,R$138&\".\"&#REF!&\".\"&$R$139&\".\"&$R$140&\".\"&$AE$8,$D$104,$D$105,CONFIGURATION!$B$10,\"BMA\",CONFIGURATION!$B$1,\"bscr\",CONFIGURATION!$B$12)","v":{"$error":"#VALUE!"}}]
[]
[null,null,null,null,null,null,null,null,null,null,null,{"$f":"XBRLMap(#REF!,L$138&\".\"&#REF!&\".\"&$L$139&\".\"&$L$140&\".\"&$AE$8,$D$104,$D$105,CONFIGURATION!$B$10,\"BMA\",CONFIGURATION!$B$1,\"bscr\",CONFIGURATION!$B$12)","v":{"$error":"#VALUE!"}},null,{"$f":"XBRLMap(#REF!,N$138&\".\"&#REF!&\".\"&$N$139&\".\"&$N$140&\".\"&$AE$8,$D$104,$D$105,CONFIGURATION!$B$10,\"BMA\",CONFIGURATION!$B$1,\"bscr\",CONFIGURATION!$B$12)","v":{"$error":"#VALUE!"}},null,{"$f":"XBRLMap(#REF!,P$138&\".\"&#REF!&\".\"&$P$139&\".\"&$P$140&\".\"&$AE$8,$D$104,$D$105,CONFIGURATION!$B$10,\"BMA\",CONFIGURATION!$B$1,\"bscr\",CONFIGURATION!$B$12)","v":{"$error":"#VALUE!"}},null,{"$f":"XBRLMap(#REF!,R$138&\".\"&#REF!&\".\"&$R$139&\".\"&$R$140&\".\"&$AE$8,$D$104,$D$105,CONFIGURATION!$B$10,\"BMA\",CONFIGURATION!$B$1,\"bscr\",CONFIGURATION!$B$12)","v":{"$error":"#VALUE!"}}]

{"sheet":"Grandfathered Equity Part","index":33,"n_rows":51,"n_cols":14,"rows_kept":51,"cut":false,"hidden":false,"merged":[[0,3,0,4],[52,0,52,1]]}
["GRANDFATHERED PORTION OF EQUITY INVESTMENTS",null,null,{"$f":"HYPERLINK(\"#'Index'!A1\",\"Return to Index\")","v":"Return to Index"}]
[{"$f":"'Insurer Information'!C7","v":"Enter Company Name"}]
[{"$f":"\"Grandfathered Equity Investments\"& \" ($\" & IF(CONFIGURATION!$B$12>1,\"'\"&MID(CONFIGURATION!$B$12,2,LEN(CONFIGURATION!$B$12)),\"\") & \")\"","v":"Grandfathered Equity Investments ($'000)"},null,{"$f":" TEXT('Insurer Information'!C3,\"mmmm dd, yyyy\")","v":"December 31, 2019"},"(1)","(2)"]
[]
[]
[null,"TYPE OF ",null,"ASSET","CAPITAL",null,null,null,null,null,null,null,null,{"$f":"YEAR('Insurer Information'!C3)","v":2019}]
[null,"EQUITY INVESTMENTS",null,"VALUE","FACTOR"]
[]
[null,"(a)  Common Stocks"]
[]
[null,"Non-Affiliated (Quoted)",null,{"$f":"Import!M9471","v":0},0.14399999999999999]
[null,"Non-Affiliated (Unquoted)",null,{"$f":"Import!M9472","v":0},0.14399999999999999]
[null,"Equity mutual funds",null,{"$f":"Import!M9473","v":0},0.14399999999999999]
[]
[null,"(a)  SUBTOTAL - COMMON STOCKS",null,{"$f":"SUM(D11:D13)","v":0}]
[]
[null,"(b)  Preferred Stocks"]
[]
[null,"BSCR Rating"]
[null,1,null,{"$f":"Import!M9474","v":0},6.0000000000000001E-3]
[null,2,null,{"$f":"Import!M9475","v":0},1.2E-2]
[null,3,null,{"$f":"Import!M9476","v":0},0.02]
[null,4,null,{"$f":"Import!M9477","v":0},0.04]
[null,5,null,{"$f":"Import!M9478","v":0},0.11]
[null,6,null,{"$f":"Import!M9479","v":0},0.25]
[null,7,null,{"$f":"Import!M9480","v":0},0.35]
[null,8,null,{"$f":"Import!M9481","v":0},0.35]
[]
[null,"(b)  SUBTOTAL - PREFERRED STOCKS",null,{"$f":"SUM(D19:D27)","v":0}]
[]
[null,"(c)  Other Equity Investments"]
[]
[null,"Real Estate"]
[null,"Company-Occupied Less Encumbrances",null,{"$f":"Import!M9482","v":0},0.1]
[null,"Investments Less Encumbrances",null,{"$f":"Import!M9483","v":0},0.2]
[]
[null,"Other Equity Investments",null,{"$f":"Import!M9484","v":0},0.2]
[null,"Other Tangible Assets (Net of Segregated Accounts Companies)",null,{"$f":"Import!M9485","v":0},0.2]
[]
[null,"(c)  SUBTOTAL - OTHER EQUITY INVESTMENTS",null,{"$f":"SUM(D34:D35,D37:D38)","v":0}]
[]
[null,"(d)  Investments in Affiliates"]
[]
[null,"Unregulated Entities That Conduct Ancillary Services",null,{"$f":"Import!M9486","v":0},0.05]
[null,"Unregulated Non-Financial Operating Entities",null,{"$f":"Import!M9487","v":0},0.2]
[null,"Unregulated Financial Operating Entities",null,{"$f":"Import!M9488","v":0},0.55000000000000004]
[null,"Regulated Insurance Financial Operating Entities",null,{"$f":"Import!M9489","v":0},0.2]
[]
[null,"(d)  SUBTOTAL - INVESTMENTS IN AFFILIATES",null,{"$f":"SUM(D44:D47)","v":0}]
[]
[null,"(e)  TOTAL EQUITY INVESTMENTS [ (a) + (b) + (c) + (d) ]",null,{"$f":"D15+D29+D40+D49","v":0}]

{"sheet":"Non-Grandfathered Equity Part","index":34,"n_rows":38,"n_cols":28,"rows_kept":38,"cut":false,"hidden":false,"merged":[[9,23,10,23],[9,27,10,27],[10,7,10,9],[10,11,10,13],[2,3,2,5],[3,5,3,7],[4,5,4,7],[8,3,8,13],[8,15,8,19],[9,3,10,5],[9,7,9,13],[9,15,10,15],[9,17,10,17],[9,19,10,19]]}
[null,"NON-GRANDFATHERED PORTION OF EQUITY INVESTMENTS (TOTAL EQUITIES - GRANDFATHERED EQUITIES)",null,null,null,null,null,null,null,null,null,null,null,null,null,null,null,null,null,null,null,null,null,null,null,null,null,{"$f":"HYPERLINK(\"#'Index'!A1\",\"Return to Index\")","v":"Return to Index"}]
[]
[null,null,null,{"$f":"'Insurer Information'!C7","v":"Enter Company Name"}]
[null,null,null,"As at",null,{"$f":"'Form 4EBS'!C3","v":"2019-12-31"}]
[null,null,null,{"$f":"\"Expressed in \" & IF(CONFIGURATION!$B$12>1,\" ['\"&MID(CONFIGURATION!$B$12,2,LEN(CONFIGURATION!$B$12))&\"s]\",\"\")","v":"Expressed in  ['000s]"},null,{"$f":"'Form 4EBS'!C4","v":"United States Dollars"}]
[]
[null,null,null,"(1)",null,"(2)",null,"(3)",null,"(4)",null,"(5)",null,"(6)",null,"(7)",null,"(8)",null,"(9)",null,"(10)",null,"(11)",null,"(12)"]
[]
[null,null,null,"ASSETS",null,null,null,null,null,null,null,null,null,null,null,"Liabilities"]
[null,null,null,"Long Exposures",null,null,null,"Short Exposures",null,null,null,null,null,null,null,null,null,"Without Management Actions",null,"With Management Actions",null,null,null,"Total Assets Before Shock",null,null,null,"Shocks"]
[null,null,null,null,null,null,null,"Qualifying as Assets held for risk-mitigation purposes",null,null,null,"Not Qualifying as Assets held for risk-mitigation purposes",null,null,null,null,null,null,null,null,null,null,null,null,null,null,null,"Shocks"]
[null,null,null,"Before Shock",null,"After Shock",null,"Before Shock",null,"After Shock",null,"Before Shock",null,"After Shock",null,"Before Shock",null,"After Shock",null,"After Shock"]
[null,null,null,{"$f":"CONFIGURATION!$D$12","v":" ('000s)"},null,{"$f":"CONFIGURATION!$D$12","v":" ('000s)"},null,{"$f":"CONFIGURATION!$D$12","v":" ('000s)"},null,{"$f":"CONFIGURATION!$D$12","v":" ('000s)"},null,{"$f":"CONFIGURATION!$D$12","v":" ('000s)"},null,{"$f":"CONFIGURATION!$D$12","v":" ('000s)"},null,{"$f":"CONFIGURATION!$D$12","v":" ('000s)"},null,{"$f":"CONFIGURATION!$D$12","v":" ('000s)"},null,{"$f":"CONFIGURATION!$D$12","v":" ('000s)"},null,null,null,{"$f":"CONFIGURATION!$D$12","v":" ('000s)"}]
[null,"Equity Holdings "]
[null,1,"Strategic Holdings - Listed",{"$f":"Import!M9272","v":0},null,{"$f":"IF(OR(Import!M9294=0,Import!M9294=\"\"),(1-$AB15)*D15,Import!M9294)","v":0},null,{"$f":"Import!M9316","v":0},null,{"$f":"IF(OR(Import!M9338=0,Import!M9338=\"\"),(1-$AB15)*H15,Import!M9338)","v":0},null,{"$f":"Import!M9360","v":0},null,{"$f":"IF(OR(Import!M9382=0,Import!M9382=\"\"),(1-$AB15)*L15,Import!M9382)","v":0},null,{"$f":"Import!M9404","v":0},null,{"$f":"IF(OR(Import!M9426=0,Import!M9426=\"\"),P15,Import!M9426)","v":0},null,{"$f":"IF(OR(Import!M9448=0,Import!M9448=\"\"),R15,Import!M9448)","v":0},null,null,null,{"$f":"D15+H15+L15","v":0},null,null,null,0.2]
[null,{"$f":"B15+1","v":2},"Duration Based",{"$f":"Import!M9273","v":0},null,{"$f":"IF(OR(Import!M9295=0,Import!M9295=\"\"),(1-$AB16)*D16,Import!M9295)","v":0},null,{"$f":"Import!M9317","v":0},null,{"$f":"IF(OR(Import!M9339=0,Import!M9339=\"\"),(1-$AB16)*H16,Import!M9339)","v":0},null,{"$f":"Import!M9361","v":0},null,{"$f":"IF(OR(Import!M9383=0,Import!M9383=\"\"),(1-$AB16)*L16,Import!M9383)","v":0},null,{"$f":"Import!M9405","v":0},null,{"$f":"IF(OR(Import!M9427=0,Import!M9427=\"\"),P16,Import!M9427)","v":0},null,{"$f":"IF(OR(Import!M9449=0,Import!M9449=\"\"),R16,Import!M9449)","v":0},null,null,null,{"$f":"D16+H16+L16","v":0},null,null,null,0.2]
[null,3,"Listed Equity Securities in Developed Markets",{"$f":"Import!M9274","v":0},null,{"$f":"IF(OR(Import!M9296=0,Import!M9296=\"\"),(1-$AB17)*D17,Import!M9296)","v":0},null,{"$f":"Import!M9318","v":0},null,{"$f":"IF(OR(Import!M9340=0,Import!M9340=\"\"),(1-$AB17)*H17,Import!M9340)","v":0},null,{"$f":"Import!M9362","v":0},null,{"$f":"IF(OR(Import!M9384=0,Import!M9384=\"\"),(1-$AB17)*L17,Import!M9384)","v":0},null,{"$f":"Import!M9406","v":0},null,{"$f":"IF(OR(Import!M9428=0,Import!M9428=\"\"),P17,Import!M9428)","v":0},null,{"$f":"IF(OR(Import!M9450=0,Import!M9450=\"\"),R17,Import!M9450)","v":0},null,null,null,{"$f":"D17+H17+L17","v":0},null,null,null,0.35]
[null,4,"Preferred Stocks, BSCR Rating 1",{"$f":"Import!M9275","v":0},null,{"$f":"IF(OR(Import!M9297=0,Import!M9297=\"\"),(1-$AB18)*D18,Import!M9297)","v":0},null,{"$f":"Import!M9319","v":0},null,{"$f":"IF(OR(Import!M9341=0,Import!M9341=\"\"),(1-$AB18)*H18,Import!M9341)","v":0},null,{"$f":"Import!M9363","v":0},null,{"$f":"IF(OR(Import!M9385=0,Import!M9385=\"\"),(1-$AB18)*L18,Import!M9385)","v":0},null,{"$f":"Import!M9407","v":0},null,{"$f":"IF(OR(Import!M9429=0,Import!M9429=\"\"),P18,Import!M9429)","v":0},null,{"$f":"IF(OR(Import!M9451=0,Import!M9451=\"\"),R18,Import!M9451)","v":0},null,null,null,0,null,null,null,6.0000000000000001E-3]
[null,5,"Preferred Stocks, BSCR Rating 2",{"$f":"Import!M9276","v":0},null,{"$f":"IF(OR(Import!M9298=0,Import!M9298=\"\"),(1-$AB19)*D19,Import!M9298)","v":0},null,{"$f":"Import!M9320","v":0},null,{"$f":"IF(OR(Import!M9342=0,Import!M9342=\"\"),(1-$AB19)*H19,Import!M9342)","v":0},null,{"$f":"Import!M9364","v":0},null,{"$f":"IF(OR(Import!M9386=0,Import!M9386=\"\"),(1-$AB19)*L19,Import!M9386)","v":0},null,{"$f":"Import!M9408","v":0},null,{"$f":"IF(OR(Import!M9430=0,Import!M9430=\"\"),P19,Import!M9430)","v":0},null,{"$f":"IF(OR(Import!M9452=0,Import!M9452=\"\"),R19,Import!M9452)","v":0},null,null,null,0,null,null,null,1.2E-2]
[null,6,"Preferred Stocks, BSCR Rating 3",{"$f":"Import!M9277","v":0},null,{"$f":"IF(OR(Import!M9299=0,Import!M9299=\"\"),(1-$AB20)*D20,Import!M9299)","v":0},null,{"$f":"Import!M9321","v":0},null,{"$f":"IF(OR(Import!M9343=0,Import!M9343=\"\"),(1-$AB20)*H20,Import!M9343)","v":0},null,{"$f":"Import!M9365","v":0},null,{"$f":"IF(OR(Import!M9387=0,Import!M9387=\"\"),(1-$AB20)*L20,Import!M9387)","v":0},null,{"$f":"Import!M9409","v":0},null,{"$f":"IF(OR(Import!M9431=0,Import!M9431=\"\"),P20,Import!M9431)","v":0},null,{"$f":"IF(OR(Import!M9453=0,Import!M9453=\"\"),R20,Import!M9453)","v":0},null,null,null,0,null,null,null,0.02]
[null,7,"Preferred Stocks, BSCR Rating 4",{"$f":"Import!M9278","v":0},null,{"$f":"IF(OR(Import!M9300=0,Import!M9300=\"\"),(1-$AB21)*D21,Import!M9300)","v":0},null,{"$f":"Import!M9322","v":0},null,{"$f":"IF(OR(Import!M9344=0,Import!M9344=\"\"),(1-$AB21)*H21,Import!M9344)","v":0},null,{"$f":"Import!M9366","v":0},null,{"$f":"IF(OR(Import!M9388=0,Import!M9388=\"\"),(1-$AB21)*L21,Import!M9388)","v":0},null,{"$f":"Import!M9410","v":0},null,{"$f":"IF(OR(Import!M9432=0,Import!M9432=\"\"),P21,Import!M9432)","v":0},null,{"$f":"IF(OR(Import!M9454=0,Import!M9454=\"\"),R21,Import!M9454)","v":0},null,null,null,0,null,null,null,0.04]
[null,8,"Preferred Stocks, BSCR Rating 5",{"$f":"Import!M9279","v":0},null,{"$f":"IF(OR(Import!M9301=0,Import!M9301=\"\"),(1-$AB22)*D22,Import!M9301)","v":0},null,{"$f":"Import!M9323","v":0},null,{"$f":"IF(OR(Import!M9345=0,Import!M9345=\"\"),(1-$AB22)*H22,Import!M9345)","v":0},null,{"$f":"Import!M9367","v":0},null,{"$f":"IF(OR(Import!M9389=0,Import!M9389=\"\"),(1-$AB22)*L22,Import!M9389)","v":0},null,{"$f":"Import!M9411","v":0},null,{"$f":"IF(OR(Import!M9433=0,Import!M9433=\"\"),P22,Import!M9433)","v":0},null,{"$f":"IF(OR(Import!M9455=0,Import!M9455=\"\"),R22,Import!M9455)","v":0},null,null,null,0,null,null,null,0.11]
[null,9,"Preferred Stocks, BSCR Rating 6",{"$f":"Import!M9280","v":0},null,{"$f":"IF(OR(Import!M9302=0,Import!M9302=\"\"),(1-$AB23)*D23,Import!M9302)","v":0},null,{"$f":"Import!M9324","v":0},null,{"$f":"IF(OR(Import!M9346=0,Import!M9346=\"\"),(1-$AB23)*H23,Import!M9346)","v":0},null,{"$f":"Import!M9368","v":0},null,{"$f":"IF(OR(Import!M9390=0,Import!M9390=\"\"),(1-$AB23)*L23,Import!M9390)","v":0},null,{"$f":"Import!M9412","v":0},null,{"$f":"IF(OR(Import!M9434=0,Import!M9434=\"\"),P23,Import!M9434)","v":0},null,{"$f":"IF(OR(Import!M9456=0,Import!M9456=\"\"),R23,Import!M9456)","v":0},null,null,null,0,null,null,null,0.25]
[null,10,"Preferred Stocks, BSCR Rating 7",{"$f":"Import!M9281","v":0},null,{"$f":"IF(OR(Import!M9303=0,Import!M9303=\"\"),(1-$AB24)*D24,Import!M9303)","v":0},null,{"$f":"Import!M9325","v":0},null,{"$f":"IF(OR(Import!M9347=0,Import!M9347=\"\"),(1-$AB24)*H24,Import!M9347)","v":0},null,{"$f":"Import!M9369","v":0},null,{"$f":"IF(OR(Import!M9391=0,Import!M9391=\"\"),(1-$AB24)*L24,Import!M9391)","v":0},null,{"$f":"Import!M9413","v":0},null,{"$f":"IF(OR(Import!M9435=0,Import!M9435=\"\"),P24,Import!M9435)","v":0},null,{"$f":"IF(OR(Import!M9457=0,Import!M9457=\"\"),R24,Import!M9457)","v":0},null,null,null,0,null,null,null,0.35]
[null,11,"Preferred Stocks, BSCR Rating 8",{"$f":"Import!M9282","v":0},null,{"$f":"IF(OR(Import!M9304=0,Import!M9304=\"\"),(1-$AB25)*D25,Import!M9304)","v":0},null,{"$f":"Import!M9326","v":0},null,{"$f":"IF(OR(Import!M9348=0,Import!M9348=\"\"),(1-$AB25)*H25,Import!M9348)","v":0},null,{"$f":"Import!M9370","v":0},null,{"$f":"IF(OR(Import!M9392=0,Import!M9392=\"\"),(1-$AB25)*L25,Import!M9392)","v":0},null,{"$f":"Import!M9414","v":0},null,{"$f":"IF(OR(Import!M9436=0,Import!M9436=\"\"),P25,Import!M9436)","v":0},null,{"$f":"IF(OR(Import!M9458=0,Import!M9458=\"\"),R25,Import!M9458)","v":0},null,null,null,0,null,null,null,0.35]
[null,12,"Equity Derivatives on Type 1 Equities",{"$f":"Import!M9283","v":0},null,{"$f":"Import!M9305","v":0},null,{"$f":"Import!M9327","v":0},null,{"$f":"Import!M9349","v":0},null,{"$f":"Import!M9371","v":0},null,{"$f":"Import!M9393","v":0},null,{"$f":"Import!M9415","v":0},null,{"$f":"IF(OR(Import!M9437=0,Import!M9437=\"\"),P26,Import!M9437)","v":0},null,{"$f":"IF(OR(Import!M9459=0,Import!M9459=\"\"),R26,Import!M9459)","v":0},null,null,null,0,null,null,null,0.35]
[null,13,"Strategic Holdings - Unlisted",{"$f":"Import!M9284","v":0},null,{"$f":"IF(OR(Import!M9306=0,Import!M9306=\"\"),(1-$AB27)*D27,Import!M9306)","v":0},null,{"$f":"Import!M9328","v":0},null,{"$f":"IF(OR(Import!M9350=0,Import!M9350=\"\"),(1-$AB27)*H27,Import!M9350)","v":0},null,{"$f":"Import!M9372","v":0},null,{"$f":"IF(OR(Import!M9394=0,Import!M9394=\"\"),(1-$AB27)*L27,Import!M9394)","v":0},null,{"$f":"Import!M9416","v":0},null,{"$f":"IF(OR(Import!M9438=0,Import!M9438=\"\"),P27,Import!M9438)","v":0},null,{"$f":"IF(OR(Import!M9460=0,Import!M9460=\"\"),R27,Import!M9460)","v":0},null,null,null,0,null,null,null,0.2]
[null,14,"Other Equities / Other Assets",{"$f":"Import!M9285","v":0},null,{"$f":"IF(OR(Import!M9307=0,Import!M9307=\"\"),(1-$AB28)*D28,Import!M9307)","v":0},null,{"$f":"Import!M9329","v":0},null,{"$f":"IF(OR(Import!M9351=0,Import!M9351=\"\"),(1-$AB28)*H28,Import!M9351)","v":0},null,{"$f":"Import!M9373","v":0},null,{"$f":"IF(OR(Import!M9395=0,Import!M9395=\"\"),(1-$AB28)*L28,Import!M9395)","v":0},null,{"$f":"Import!M9417","v":0},null,{"$f":"IF(OR(Import!M9439=0,Import!M9439=\"\"),P28,Import!M9439)","v":0},null,{"$f":"IF(OR(Import!M9461=0,Import!M9461=\"\"),R28,Import!M9461)","v":0},null,null,null,0,null,null,null,0.45]
[null,15,"Letters of Credit",{"$f":"Import!M9286","v":0},null,{"$f":"IF(OR(Import!M9308=0,Import!M9308=\"\"),(1-$AB29)*D29,Import!M9308)","v":0},null,{"$f":"Import!M9330","v":0},null,{"$f":"IF(OR(Import!M9352=0,Import!M9352=\"\"),(1-$AB29)*H29,Import!M9352)","v":0},null,{"$f":"Import!M9374","v":0},null,{"$f":"IF(OR(Import!M9396=0,Import!M9396=\"\"),(1-$AB29)*L29,Import!M9396)","v":0},null,{"$f":"Import!M9418","v":0},null,{"$f":"IF(OR(Import!M9440=0,Import!M9440=\"\"),P29,Import!M9440)","v":0},null,{"$f":"IF(OR(Import!M9462=0,Import!M9462=\"\"),R29,Import!M9462)","v":0},null,null,null,0,null,null,null,0.2]
[null,16,"Intangible assets",{"$f":"Import!M9287","v":0},null,{"$f":"IF(OR(Import!M9309=0,Import!M9309=\"\"),(1-$AB30)*D30,Import!M9309)","v":0},null,{"$f":"Import!M9331","v":0},null,{"$f":"IF(OR(Import!M9353=0,Import!M9353=\"\"),(1-$AB30)*H30,Import!M9353)","v":0},null,{"$f":"Import!M9375","v":0},null,{"$f":"IF(OR(Import!M9397=0,Import!M9397=\"\"),(1-$AB30)*L30,Import!M9397)","v":0},null,{"$f":"Import!M9419","v":0},null,{"$f":"IF(OR(Import!M9441=0,Import!M9441=\"\"),P30,Import!M9441)","v":0},null,{"$f":"IF(OR(Import!M9463=0,Import!M9463=\"\"),R30,Import!M9463)","v":0},null,null,null,0,null,null,null,0.2]
[null,17,"Pension Benefit Surplus",{"$f":"Import!M9288","v":0},null,{"$f":"IF(OR(Import!M9310=0,Import!M9310=\"\"),(1-$AB31)*D31,Import!M9310)","v":0},null,{"$f":"Import!M9332","v":0},null,{"$f":"IF(OR(Import!M9354=0,Import!M9354=\"\"),(1-$AB31)*H31,Import!M9354)","v":0},null,{"$f":"Import!M9376","v":0},null,{"$f":"IF(OR(Import!M9398=0,Import!M9398=\"\"),(1-$AB31)*L31,Import!M9398)","v":0},null,{"$f":"Import!M9420","v":0},null,{"$f":"IF(OR(Import!M9442=0,Import!M9442=\"\"),P31,Import!M9442)","v":0},null,{"$f":"IF(OR(Import!M9464=0,Import!M9464=\"\"),R31,Import!M9464)","v":0},null,null,null,0,null,null,null,0.2]
[null,18,"Equity Derivatives on Type 2 Equities",{"$f":"Import!M9289","v":0},null,{"$f":"Import!M9311","v":0},null,{"$f":"Import!M9333","v":0},null,{"$f":"Import!M9355","v":0},null,{"$f":"Import!M9377","v":0},null,{"$f":"Import!M9399","v":0},null,{"$f":"Import!M9421","v":0},null,{"$f":"IF(OR(Import!M9443=0,Import!M9443=\"\"),P32,Import!M9443)","v":0},null,{"$f":"IF(OR(Import!M9465=0,Import!M9465=\"\"),R32,Import!M9465)","v":0},null,null,null,0,null,null,null,0.45]
[null,19,"Infrastructure",{"$f":"Import!M9290","v":0},null,{"$f":"IF(OR(Import!M9312=0,Import!M9312=\"\"),(1-$AB33)*D33,Import!M9312)","v":0},null,{"$f":"Import!M9334","v":0},null,{"$f":"IF(OR(Import!M9356=0,Import!M9356=\"\"),(1-$AB33)*H33,Import!M9356)","v":0},null,{"$f":"Import!M9378","v":0},null,{"$f":"IF(OR(Import!M9400=0,Import!M9400=\"\"),(1-$AB33)*L33,Import!M9400)","v":0},null,{"$f":"Import!M9422","v":0},null,{"$f":"IF(OR(Import!M9444=0,Import!M9444=\"\"),P33,Import!M9444)","v":0},null,{"$f":"IF(OR(Import!M9466=0,Import!M9466=\"\"),R33,Import!M9466)","v":0},null,null,null,0,null,null,null,0.25]
[null,20,"Derivatives on Infrastructure",{"$f":"Import!M9291","v":0},null,{"$f":"Import!M9313","v":0},null,{"$f":"Import!M9335","v":0},null,{"$f":"Import!M9357","v":0},null,{"$f":"Import!M9379","v":0},null,{"$f":"Import!M9401","v":0},null,{"$f":"Import!M9423","v":0},null,{"$f":"IF(OR(Import!M9445=0,Import!M9445=\"\"),P34,Import!M9445)","v":0},null,{"$f":"IF(OR(Import!M9467=0,Import!M9467=\"\"),R34,Import!M9467)","v":0},null,null,null,0,null,null,null,0.25]
[null,21,"Equity Real Estate 1",{"$f":"Import!M9292","v":0},null,{"$f":"IF(OR(Import!M9314=0,Import!M9314=\"\"),(1-$AB35)*D35,Import!M9314)","v":0},null,{"$f":"Import!M9336","v":0},null,{"$f":"IF(OR(Import!M9358=0,Import!M9358=\"\"),(1-$AB35)*H35,Import!M9358)","v":0},null,{"$f":"Import!M9380","v":0},null,{"$f":"IF(OR(Import!M9402=0,Import!M9402=\"\"),(1-$AB35)*L35,Import!M9402)","v":0},null,{"$f":"Import!M9424","v":0},null,{"$f":"IF(OR(Import!M9446=0,Import!M9446=\"\"),P35,Import!M9446)","v":0},null,{"$f":"IF(OR(Import!M9468=0,Import!M9468=\"\"),R35,Import!M9468)","v":0},null,null,null,0,null,null,null,0.1]
[null,22,"Equity Real Estate 2",{"$f":"Import!M9293","v":0},null,{"$f":"IF(OR(Import!M9315=0,Import!M9315=\"\"),(1-$AB36)*D36,Import!M9315)","v":0},null,{"$f":"Import!M9337","v":0},null,{"$f":"IF(OR(Import!M9359=0,Import!M9359=\"\"),(1-$AB36)*H36,Import!M9359)","v":0},null,{"$f":"Import!M9381","v":0},null,{"$f":"IF(OR(Import!M9403=0,Import!M9403=\"\"),(1-$AB36)*L36,Import!M9403)","v":0},null,{"$f":"Import!M9425","v":0},null,{"$f":"IF(OR(Import!M9447=0,Import!M9447=\"\"),P36,Import!M9447)","v":0},null,{"$f":"IF(OR(Import!M9469=0,Import!M9469=\"\"),R36,Import!M9469)","v":0},null,null,null,0,null,null,null,0.2]
[]
[null,{"$f":"B36+1","v":23},"Total Equity Holdings",{"$f":"SUM(D14:D37)","v":0},null,{"$f":"SUM(F14:F37)","v":0},null,{"$f":"SUM(H14:H37)","v":0},null,{"$f":"SUM(J14:J37)","v":0},null,{"$f":"SUM(L14:L37)","v":0},null,{"$f":"SUM(N14:N37)","v":0},null,{"$f":"SUM(P14:P37)","v":0},null,{"$f":"SUM(R14:R37)","v":0},null,{"$f":"SUM(T14:T37)","v":0},null,null,null,{"$f":"SUM(X14:X37)","v":0}]

{"sheet":"Schedule IVB","index":35,"n_rows":64,"n_cols":33,"rows_kept":64,"cut":false,"hidden":false,"merged":[[6,24,7,26],[6,4,7,6],[6,8,7,10],[6,12,7,14],[6,16,7,18],[6,20,7,22],[1,1,1,2],[4,4,4,14],[4,16,4,26],[5,12,5,14],[5,24,5,26]]}
[null,"SCHEDULE OF LONG-TERM BUSINESS PREMIUMS",null,null,null,null,null,null,null,null,null,null,null,null,null,null,null,null,null,null,null,null,null,null,null,null,{"$f":"HYPERLINK(\"#'Index'!A1\",\"Return to Index\")","v":"Return to Index"},null,"bma","ScheduleOfPremiumsWrittenByLineOfBusinessAbstract"]
[null,{"$f":"'Schedule II'!C2","v":"Enter Company Name"}]
[null,"For the year ending",{"$f":"'Schedule II'!D3","v":"2019-12-31"},null,null,null,null,null,null,null,null,null,null,null,null,null,null,null,null,null,null,null,null,null,null,null,"SCHEDULE IV(A)"]
[null,{"$f":"\"Expressed in \" & IF(CONFIGURATION!$B$12>1,\" ['\"&MID(CONFIGURATION!$B$12,2,LEN(CONFIGURATION!$B$12))&\"s]\",\"\")","v":"Expressed in  ['000s]"},{"$f":"'Schedule II'!D4","v":"United States Dollars"},null,null,null,null,null,null,null,null,null,null,null,null,null,null,null,null,null,null,null,null,null,null,null,null,null,"bma","GrossWrittenMember",null,null,"bma_GrossWrittenMember"]
[null,null,null,null,"GROSS PREMIUMS AND OTHER CONSIDERATIONS",null,null,null,null,null,null,null,null,null,null,null,"NET PREMIUMS AND OTHER CONSIDERATIONS",null,null,null,null,null,null,null,null,null,null,null,"bma","RelatedWrittenMember",null,null,"bma_RelatedWrittenMember"]
[null,null,null,null,null,null,null,null,null,null,null,null,"Form 2SFS, Line 12(c) ",null,null,null,null,null,null,null,null,null,null,null,"Form 2SFS, Line 14(d)"]
[null,null,null,null,"Unrelated",null,null,null,"Related",null,null,null,"Total",null,null,null,"Adjustable / Benefit Period \n<= 2 Years",null,null,null,"Non-Adjustable / Benefit Period \n> 2 Years",null,null,null,"Total ",null,null,null,"bma","TotalWrittenMember",null,null,"bma_TotalWrittenMember"]
[null,"Schedule "]
[null,"Line no. ",null,null,{"$f":"'Form 4EBS'!F6","v":"2019-12-31"},null,{"$f":"'Form 4EBS'!H6","v":"2018-12-31"},null,{"$f":"'Form 4EBS'!F6","v":"2019-12-31"},null,{"$f":"'Form 4EBS'!H6","v":"2018-12-31"},null,{"$f":"'Form 4EBS'!F6","v":"2019-12-31"},null,{"$f":"'Form 4EBS'!H6","v":"2018-12-31"},null,{"$f":"M9","v":"2019-12-31"},null,{"$f":"O9","v":"2018-12-31"},null,{"$f":"Q9","v":"2019-12-31"},null,{"$f":"S9","v":"2018-12-31"},null,{"$f":"'Form 4EBS'!F6","v":"2019-12-31"},null,{"$f":"'Form 4EBS'!H6","v":"2018-12-31"},null,"bma","NetWrittenMember",null,null,"bma_NetWrittenMember"]
[null,null,null,null,"('000)",null,"('000)",null,"('000)",null,"('000)",null,"('000)",null,"('000)",null,"('000)",null,"('000)",null,"('000)",null,"('000)",null,"('000)",null,"('000)"]
[]
[null,1,"Mortality ",null,{"$f":"Import!E604","v":0},null,{"$f":"Import!G604","v":0},null,{"$f":"Import!E620","v":0},null,{"$f":"Import!G620","v":0},null,{"$f":"E12+I12","v":0},null,{"$f":"G12+K12","v":0},null,null,null,null,null,null,null,null,null,{"$f":"Import!E642","v":0},null,{"$f":"Import!G642","v":0},null,"brrt_LongTermProductRidersAxis_brrt_MortalityMember"]
[null,2,"Critical Illness",null,{"$f":"Import!E605","v":0},null,{"$f":"Import!G605","v":0},null,{"$f":"Import!E621","v":0},null,{"$f":"Import!G621","v":0},null,{"$f":"E13+I13","v":0},null,{"$f":"G13+K13","v":0},null,null,null,null,null,null,null,null,null,{"$f":"Import!E643","v":0},null,{"$f":"Import!G643","v":0},null,"brrt_LongTermProductRidersAxis_brrt_CriticalIllnessMember"]
[null,3,"Longevity",null,{"$f":"Import!E606","v":0},null,{"$f":"Import!G606","v":0},null,{"$f":"Import!E622","v":0},null,{"$f":"Import!G622","v":0},null,{"$f":"E14+I14","v":0},null,{"$f":"G14+K14","v":0},null,null,null,null,null,null,null,null,null,{"$f":"Import!E644","v":0},null,{"$f":"Import!G644","v":0},null,"brrt_LongTermProductRidersAxis_brrt_LongevityMember"]
[null,4,"Deferred Annuities",null,{"$f":"Import!E607","v":0},null,{"$f":"Import!G607","v":0},null,{"$f":"Import!E623","v":0},null,{"$f":"Import!G623","v":0},null,{"$f":"E15+I15","v":0},null,{"$f":"G15+K15","v":0},null,null,null,null,null,null,null,null,null,{"$f":"Import!E645","v":0},null,{"$f":"Import!G645","v":0},null,"brrt_LongTermProductRidersAxis_brrt_DeferredAnnuitiesMember"]
[null,5,"Disability Income: Active lives with premium guarantee of —"]
[null,null,"(i) Less than or equal to 1 year",null,{"$f":"Import!E608","v":0},null,{"$f":"Import!G608","v":0},null,{"$f":"Import!E624","v":0},null,{"$f":"Import!G624","v":0},null,{"$f":"E17+I17","v":0},null,{"$f":"G17+K17","v":0},null,{"$f":"Import!E636","v":0},null,{"$f":"Import!G636","v":0},null,{"$f":"Import!E639","v":0},null,{"$f":"Import!G639","v":0},null,null,null,null,null,"brrt_LongTermProductRidersAxis_brrt_DisabilityIncomeActiveLivesWaiverOfPremiumAndLTCLessThanOneYearMember"]
[null,null,"(ii) More than 1 year but less than 5 years",null,{"$f":"Import!E609","v":0},null,{"$f":"Import!G609","v":0},null,{"$f":"Import!E625","v":0},null,{"$f":"Import!G625","v":0},null,{"$f":"E18+I18","v":0},null,0,null,{"$f":"Import!E637","v":0},null,{"$f":"Import!G637","v":0},null,{"$f":"Import!E640","v":0},null,{"$f":"Import!G640","v":0},null,null,null,null,null,"brrt_LongTermProductRidersAxis_brrt_DisabilityIncomeActiveLivesWaiverOfPremiumAndLTCBetween1AndFiveYearsMember"]
[null,null,"(iii) Greater than 5 years",null,{"$f":"Import!E610","v":0},null,{"$f":"Import!G610","v":0},null,{"$f":"Import!E626","v":0},null,{"$f":"Import!G626","v":0},null,{"$f":"E19+I19","v":0},null,0,null,{"$f":"Import!E638","v":0},null,{"$f":"Import!G638","v":0},null,{"$f":"Import!E641","v":0},null,{"$f":"Import!G641","v":0},null,null,null,null,null,"brrt_LongTermProductRidersAxis_brrt_DisabilityIncomeActiveLivesWaiverOfPremiumAndLTCMoreThanFiveYearsMember"]
[null,6,"Disability Income: Actives lives for other ",null,{"$f":"Import!E611","v":0},null,{"$f":"Import!G611","v":0},null,{"$f":"Import!E627","v":0},null,{"$f":"Import!G627","v":0},null,{"$f":"E20+I20","v":0},null,0,null,null,null,null,null,null,null,null,null,{"$f":"Import!E646","v":0},null,{"$f":"Import!G646","v":0},null,"brrt_LongTermProductRidersAxis_brrt_DisabilityIncomeActiveLivesOtherAccidentAndSicknessMember"]
[null,null,"accident and sickness"]
[null,7,"Disability Income: Claims in payment ",null,{"$f":"Import!E612","v":0},null,{"$f":"Import!G612","v":0},null,{"$f":"Import!E628","v":0},null,{"$f":"Import!G628","v":0},null,{"$f":"E22+I22","v":0},null,0,null,null,null,null,null,null,null,null,null,{"$f":"Import!E647","v":0},null,{"$f":"Import!G647","v":0},null,"brrt_LongTermProductRidersAxis_brrt_DisabilityIncomeClaimsInPaymentWaiverOfPremiumAndLTCMember"]
[null,8,"Disability Income: Claims in payment for other",null,{"$f":"Import!E613","v":0},null,{"$f":"Import!G613","v":0},null,{"$f":"Import!E629","v":0},null,{"$f":"Import!G629","v":0},null,{"$f":"E23+I23","v":0},null,0,null,null,null,null,null,null,null,null,null,{"$f":"Import!E648","v":0},null,{"$f":"Import!G648","v":0},null,"brrt_LongTermProductRidersAxis_brrt_DisabilityIncomeClaimsInPaymentOtherAccidentAndSicknessMember"]
[null,null,"accident and sickness"]
[null,9,"Group Life",null,{"$f":"Import!E614","v":0},null,{"$f":"Import!G614","v":0},null,{"$f":"Import!E630","v":0},null,{"$f":"Import!G630","v":0},null,{"$f":"E25+I25","v":0},null,0,null,null,null,null,null,null,null,null,null,{"$f":"Import!E649","v":0},null,{"$f":"Import!G649","v":0},null,"brrt_LongTermProductRidersAxis_brrt_GroupLifeMember"]
[null,10,"Group Disability",null,{"$f":"Import!E615","v":0},null,{"$f":"Import!G615","v":0},null,{"$f":"Import!E631","v":0},null,{"$f":"Import!G631","v":0},null,0,null,0,null,null,null,null,null,null,null,null,null,{"$f":"Import!E650","v":0},null,{"$f":"Import!G650","v":0},null,"brrt_LongTermProductRidersAxis_brrt_GroupDisabilityMember"]
[null,11,"Group Health",null,{"$f":"Import!E616","v":0},null,{"$f":"Import!G616","v":0},null,{"$f":"Import!E632","v":0},null,{"$f":"Import!G632","v":0},null,0,null,0,null,null,null,null,null,null,null,null,null,{"$f":"Import!E651","v":0},null,{"$f":"Import!G651","v":0},null,"brrt_LongTermProductRidersAxis_brrt_GroupHealthMember"]
[null,12,"Stop Loss",null,{"$f":"Import!E617","v":0},null,{"$f":"Import!G617","v":0},null,{"$f":"Import!E633","v":0},null,{"$f":"Import!G633","v":0},null,0,null,0,null,null,null,null,null,null,null,null,null,{"$f":"Import!E652","v":0},null,{"$f":"Import!G652","v":0},null,"brrt_LongTermProductRidersAxis_brrt_StopLossMember"]
[null,13,"Rider",null,{"$f":"Import!E618","v":0},null,{"$f":"Import!G618","v":0},null,{"$f":"Import!E634","v":0},null,{"$f":"Import!G634","v":0},null,0,null,0,null,null,null,null,null,null,null,null,null,{"$f":"Import!E653","v":0},null,{"$f":"Import!G653","v":0},null,"brrt_LongTermProductRidersAxis_brrt_OtherProductRidersMember"]
[null,14,"Variable Annuities",null,{"$f":"Import!E619","v":0},null,{"$f":"Import!G619","v":0},null,{"$f":"Import!E635","v":0},null,{"$f":"Import!G635","v":0},null,0,null,0,null,null,null,null,null,null,null,null,null,{"$f":"Import!E654","v":0},null,{"$f":"Import!G654","v":0},null,"brrt_LongTermProductRidersAxis_brrt_VariableAnnuitiesMember"]
[null,15,"Total ",null,{"$f":"SUM(E12:E30)","v":0},null,{"$f":"SUM(G12:G30)","v":0},null,{"$f":"SUM(I12:I30)","v":0},null,{"$f":"SUM(K12:K30)","v":0},null,{"$f":"SUM(M12:M30)","v":0},null,{"$f":"SUM(O12:O30)","v":0},null,{"$f":"SUM(Q12:Q30)","v":0},null,{"$f":"SUM(S12:S30)","v":0},null,{"$f":"SUM(U12:U30)","v":0},null,{"$f":"SUM(W12:W30)","v":0},null,{"$f":"SUM(Y12:Y30)","v":0},null,{"$f":"SUM(AA12:AA30)","v":0},null,"brrt_LongTermProductRidersAxis_brrt_TotalMember"]
[]
[null,null,null,null,null,null,null,null,null,null,null,null,{"$f":"IF(M34=\"TRUE\",HYPERLINK(\"#'Form 2SFS'!I43\",\"TRUE\"),HYPERLINK(\"#'Form 2SFS'!I43\",\"FALSE\"))","v":"TRUE"},null,{"$f":"IF(O34=\"TRUE\",HYPERLINK(\"#'Form 2SFS'!K43\",\"TRUE\"),HYPERLINK(\"#'Form 2SFS'!K43\",\"FALSE\"))","v":"TRUE"},null,null,null,null,null,null,null,null,null,{"$f":"IF(Y34=\"TRUE\",HYPERLINK(\"#'Form 2SFS'!I51\",\"TRUE\"),HYPERLINK(\"#'Form 2SFS'!I51\",\"FALSE\"))","v":"TRUE"},null,{"$f":"IF(AA34=\"TRUE\",HYPERLINK(\"#'Form 2SFS'!K51\",\"TRUE\"),HYPERLINK(\"#'Form 2SFS'!K51\",\"FALSE\"))","v":"TRUE"}]
[null,null,null,null,null,null,null,null,null,null,null,null,{"$f":"IF(ROUND((M31-'Form 2SFS'!I43),0)=0,\"TRUE\",\"FALSE\")","v":"TRUE"},null,{"$f":"IF(ROUND((O31-'Form 2SFS'!K43),0)=0,\"TRUE\",\"FALSE\")","v":"TRUE"},null,null,null,null,null,null,null,null,null,{"$f":"IF(ROUND(((Y31+Q31+U31)-'Form 2SFS'!I51),0)=0,\"TRUE\",\"FALSE\")","v":"TRUE"},null,{"$f":"IF(ROUND(((AA31+S31+W31)-'Form 2SFS'!K51),0)=0,\"TRUE\",\"FALSE\")","v":"TRUE"}]
[null,null,"Difference",null,null,null,null,null,null,null,null,null,{"$f":"ROUND('Form 2SFS'!I43-M31,0)","v":0},null,{"$f":"ROUND('Form 2SFS'!K43-O31,0)","v":0},null,null,null,null,null,null,null,null,null,{"$f":"ROUND('Form 2SFS'!I51-(Y31+Q31+U31),0)","v":0},null,{"$f":"ROUND('Form 2SFS'!K51-(AA31+S31+W31),0)","v":0}]
[]
[null,null,null,null,null,null,null,null,null,null,null,null,{"$f":"IF(M33=\"False\",\"Does not equal Form 2SFS Line 12(c)\",\"\")","v":""},null,{"$f":"IF(O33=\"False\",\"Does not equal Form 2SFS Line 12(c)\",\"\")","v":""},null,null,null,null,null,null,null,null,null,{"$f":"IF(Y33=\"False\",\"Does not equal Form 2SFS Line 14(d)\",\"\")","v":""},null,{"$f":"IF(AA33=\"False\",\"Does not equal Form 2SFS Line 14(d)\",\"\")","v":""}]
[]
[]
[null,null,null,null,{"$f":"IF(E9=\"\",\"\",TEXT(DATE(YEAR(E9+1)-1,MONTH(E9+1),DAY(E9+1)),\"mm/dd/yyyy\"))","v":"01/01/2019"},null,{"$f":"IF(G9=\"\",\"\",TEXT(DATE(YEAR(G9+1)-1,MONTH(G9+1),DAY(G9+1)),\"mm/dd/yyyy\"))","v":"01/01/2018"},null,{"$f":"IF(I9=\"\",\"\",TEXT(DATE(YEAR(I9+1)-1,MONTH(I9+1),DAY(I9+1)),\"mm/dd/yyyy\"))","v":"01/01/2019"},null,{"$f":"IF(K9=\"\",\"\",TEXT(DATE(YEAR(K9+1)-1,MONTH(K9+1),DAY(K9+1)),\"mm/dd/yyyy\"))","v":"01/01/2018"},null,{"$f":"IF(M9=\"\",\"\",TEXT(DATE(YEAR(M9+1)-1,MONTH(M9+1),DAY(M9+1)),\"mm/dd/yyyy\"))","v":"01/01/2019"},null,{"$f":"IF(O9=\"\",\"\",TEXT(DATE(YEAR(O9+1)-1,MONTH(O9+1),DAY(O9+1)),\"mm/dd/yyyy\"))","v":"01/01/2018"},null,{"$f":"IF(Q9=\"\",\"\",TEXT(DATE(YEAR(Q9+1)-1,MONTH(Q9+1),DAY(Q9+1)),\"mm/dd/yyyy\"))","v":"01/01/2019"},null,{"$f":"IF(S9=\"\",\"\",TEXT(DATE(YEAR(S9+1)-1,MONTH(S9+1),DAY(S9+1)),\"mm/dd/yyyy\"))","v":"01/01/2018"},null,{"$f":"IF(U9=\"\",\"\",TEXT(DATE(YEAR(U9+1)-1,MONTH(U9+1),DAY(U9+1)),\"mm/dd/yyyy\"))","v":"01/01/2019"},null,{"$f":"IF(W9=\"\",\"\",TEXT(DATE(YEAR(W9+1)-1,MONTH(W9+1),DAY(W9+1)),\"mm/dd/yyyy\"))","v":"01/01/2018"},null,{"$f":"IF(Y9=\"\",\"\",TEXT(DATE(YEAR(Y9+1)-1,MONTH(Y9+1),DAY(Y9+1)),\"mm/dd/yyyy\"))","v":"01/01/2019"},null,{"$f":"IF(AA9=\"\",\"\",TEXT(DATE(YEAR(AA9+1)-1,MONTH(AA9+1),DAY(AA9+1)),\"mm/dd/yyyy\"))","v":"01/01/2018"}]
[null,null,null,null,{"$f":"IF(E9=\"\",\"\",TEXT(E9,\"mm/dd/yyyy\"))","v":"12/31/2019"},null,{"$f":"IF(G9=\"\",\"\",TEXT(G9,\"mm/dd/yyyy\"))","v":"12/31/2018"},null,{"$f":"IF(I9=\"\",\"\",TEXT(I9,\"mm/dd/yyyy\"))","v":"12/31/2019"},null,{"$f":"IF(K9=\"\",\"\",TEXT(K9,\"mm/dd/yyyy\"))","v":"12/31/2018"},null,{"$f":"IF(M9=\"\",\"\",TEXT(M9,\"mm/dd/yyyy\"))","v":"12/31/2019"},null,{"$f":"IF(O9=\"\",\"\",TEXT(O9,\"mm/dd/yyyy\"))","v":"12/31/2018"},null,{"$f":"IF(Q9=\"\",\"\",TEXT(Q9,\"mm/dd/yyyy\"))","v":"12/31/2019"},null,{"$f":"IF(S9=\"\",\"\",TEXT(S9,\"mm/dd/yyyy\"))","v":"12/31/2018"},null,{"$f":"IF(U9=\"\",\"\",TEXT(U9,\"mm/dd/yyyy\"))","v":"12/31/2019"},null,{"$f":"IF(W9=\"\",\"\",TEXT(W9,\"mm/dd/yyyy\"))","v":"12/31/2018"},null,{"$f":"IF(Y9=\"\",\"\",TEXT(Y9,\"mm/dd/yyyy\"))","v":"12/31/2019"},null,{"$f":"IF(AA9=\"\",\"\",TEXT(AA9,\"mm/dd/yyyy\"))","v":"12/31/2018"}]
[null,null,null,null,"brrt_GrossPremiumsAndOtherConsiderations",null,"brrt_GrossPremiumsAndOtherConsiderations",null,"brrt_GrossPremiumsAndOtherConsiderations",null,"brrt_GrossPremiumsAndOtherConsiderations",null,"brrt_GrossPremiumsAndOtherConsiderations",null,"brrt_GrossPremiumsAndOtherConsiderations",null,"brrt_NetPremiumsAndOtherConsiderationsBenefitPeriodLessThanTwoYears",null,"brrt_NetPremiumsAndOtherConsiderationsBenefitPeriodLessThanTwoYears",null,"brrt_NetPremiumsAndOtherConsiderationsBenefitPeriodGreaterThanTwoYears",null,"brrt_NetPremiumsAndOtherConsiderationsBenefitPeriodGreaterThanTwoYears",null,"brrt_NetPremiumsAndOtherConsiderations",null,"brrt_NetPremiumsAndOtherConsiderations"]
[null,null,null,null,"brrt_TypeOfBusinessAxis_brrt_UnrelatedMember",null,"brrt_TypeOfBusinessAxis_brrt_UnrelatedMember",null,"brrt_TypeOfBusinessAxis_brrt_RelatedMember",null,"brrt_TypeOfBusinessAxis_brrt_RelatedMember",null,"brrt_TypeOfBusinessAxis_brrt_TotalMember",null,"brrt_TypeOfBusinessAxis_brrt_TotalMember"]
[null,null,null,null,{"$f":"XBRLMap(E12,E$42&\".\"&E$43&\".\"&$AC12,E$40,E$41,CONFIGURATION!$B$10,\"BMA\",CONFIGURATION!$B$1,\"bscr\",CONFIGURATION!$B$12)","v":"Mapped"},null,{"$f":"XBRLMap(G12,G$42&\".\"&G$43&\".\"&$AC12,G$40,G$41,CONFIGURATION!$B$10,\"BMA\",CONFIGURATION!$B$1,\"bscr\",CONFIGURATION!$B$12)","v":"Mapped"},null,{"$f":"XBRLMap(I12,I$42&\".\"&I$43&\".\"&$AC12,I$40,I$41,CONFIGURATION!$B$10,\"BMA\",CONFIGURATION!$B$1,\"bscr\",CONFIGURATION!$B$12)","v":"Mapped"},null,{"$f":"XBRLMap(K12,K$42&\".\"&K$43&\".\"&$AC12,K$40,K$41,CONFIGURATION!$B$10,\"BMA\",CONFIGURATION!$B$1,\"bscr\",CONFIGURATION!$B$12)","v":"Mapped"},null,{"$f":"XBRLMap(M12,M$42&\".\"&M$43&\".\"&$AC12,M$40,M$41,CONFIGURATION!$B$10,\"BMA\",CONFIGURATION!$B$1,\"bscr\",CONFIGURATION!$B$12)","v":"Mapped"},null,{"$f":"XBRLMap(O12,O$42&\".\"&O$43&\".\"&$AC12,O$40,O$41,CONFIGURATION!$B$10,\"BMA\",CONFIGURATION!$B$1,\"bscr\",CONFIGURATION!$B$12)","v":"Mapped"},null,null,null,null,null,null,null,null,null,{"$f":"XBRLMap(Y12,Y$42&\".\"&$AC12,Y$40,Y$41,CONFIGURATION!$B$10,\"BMA\",CONFIGURATION!$B$1,\"bscr\",CONFIGURATION!$B$12)","v":"Mapped"},null,{"$f":"XBRLMap(AA12,AA$42&\".\"&$AC12,AA$40,AA$41,CONFIGURATION!$B$10,\"BMA\",CONFIGURATION!$B$1,\"bscr\",CONFIGURATION!$B$12)","v":"Mapped"}]
[null,null,null,null,{"$f":"XBRLMap(E13,E$42&\".\"&E$43&\".\"&$AC13,E$40,E$41,CONFIGURATION!$B$10,\"BMA\",CONFIGURATION!$B$1,\"bscr\",CONFIGURATION!$B$12)","v":"Mapped"},null,{"$f":"XBRLMap(G13,G$42&\".\"&G$43&\".\"&$AC13,G$40,G$41,CONFIGURATION!$B$10,\"BMA\",CONFIGURATION!$B$1,\"bscr\",CONFIGURATION!$B$12)","v":"Mapped"},null,{"$f":"XBRLMap(I13,I$42&\".\"&I$43&\".\"&$AC13,I$40,I$41,CONFIGURATION!$B$10,\"BMA\",CONFIGURATION!$B$1,\"bscr\",CONFIGURATION!$B$12)","v":"Mapped"},null,{"$f":"XBRLMap(K13,K$42&\".\"&K$43&\".\"&$AC13,K$40,K$41,CONFIGURATION!$B$10,\"BMA\",CONFIGURATION!$B$1,\"bscr\",CONFIGURATION!$B$12)","v":"Mapped"},null,{"$f":"XBRLMap(M13,M$42&\".\"&M$43&\".\"&$AC13,M$40,M$41,CONFIGURATION!$B$10,\"BMA\",CONFIGURATION!$B$1,\"bscr\",CONFIGURATION!$B$12)","v":"Mapped"},null,{"$f":"XBRLMap(O13,O$42&\".\"&O$43&\".\"&$AC13,O$40,O$41,CONFIGURATION!$B$10,\"BMA\",CONFIGURATION!$B$1,\"bscr\",CONFIGURATION!$B$12)","v":"Mapped"},null,null,null,null,null,null,null,null,null,{"$f":"XBRLMap(Y13,Y$42&\".\"&$AC13,Y$40,Y$41,CONFIGURATION!$B$10,\"BMA\",CONFIGURATION!$B$1,\"bscr\",CONFIGURATION!$B$12)","v":"Mapped"},null,{"$f":"XBRLMap(AA13,AA$42&\".\"&$AC13,AA$40,AA$41,CONFIGURATION!$B$10,\"BMA\",CONFIGURATION!$B$1,\"bscr\",CONFIGURATION!$B$12)","v":"Mapped"}]
[null,null,null,null,{"$f":"XBRLMap(E14,E$42&\".\"&E$43&\".\"&$AC14,E$40,E$41,CONFIGURATION!$B$10,\"BMA\",CONFIGURATION!$B$1,\"bscr\",CONFIGURATION!$B$12)","v":"Mapped"},null,{"$f":"XBRLMap(G14,G$42&\".\"&G$43&\".\"&$AC14,G$40,G$41,CONFIGURATION!$B$10,\"BMA\",CONFIGURATION!$B$1,\"bscr\",CONFIGURATION!$B$12)","v":"Mapped"},null,{"$f":"XBRLMap(I14,I$42&\".\"&I$43&\".\"&$AC14,I$40,I$41,CONFIGURATION!$B$10,\"BMA\",CONFIGURATION!$B$1,\"bscr\",CONFIGURATION!$B$12)","v":"Mapped"},null,{"$f":"XBRLMap(K14,K$42&\".\"&K$43&\".\"&$AC14,K$40,K$41,CONFIGURATION!$B$10,\"BMA\",CONFIGURATION!$B$1,\"bscr\",CONFIGURATION!$B$12)","v":"Mapped"},null,{"$f":"XBRLMap(M14,M$42&\".\"&M$43&\".\"&$AC14,M$40,M$41,CONFIGURATION!$B$10,\"BMA\",CONFIGURATION!$B$1,\"bscr\",CONFIGURATION!$B$12)","v":"Mapped"},null,{"$f":"XBRLMap(O14,O$42&\".\"&O$43&\".\"&$AC14,O$40,O$41,CONFIGURATION!$B$10,\"BMA\",CONFIGURATION!$B$1,\"bscr\",CONFIGURATION!$B$12)","v":"Mapped"},null,null,null,null,null,null,null,null,null,{"$f":"XBRLMap(Y14,Y$42&\".\"&$AC14,Y$40,Y$41,CONFIGURATION!$B$10,\"BMA\",CONFIGURATION!$B$1,\"bscr\",CONFIGURATION!$B$12)","v":"Mapped"},null,{"$f":"XBRLMap(AA14,AA$42&\".\"&$AC14,AA$40,AA$41,CONFIGURATION!$B$10,\"BMA\",CONFIGURATION!$B$1,\"bscr\",CONFIGURATION!$B$12)","v":"Mapped"}]
[null,null,null,null,{"$f":"XBRLMap(E15,E$42&\".\"&E$43&\".\"&$AC15,E$40,E$41,CONFIGURATION!$B$10,\"BMA\",CONFIGURATION!$B$1,\"bscr\",CONFIGURATION!$B$12)","v":"Mapped"},null,{"$f":"XBRLMap(G15,G$42&\".\"&G$43&\".\"&$AC15,G$40,G$41,CONFIGURATION!$B$10,\"BMA\",CONFIGURATION!$B$1,\"bscr\",CONFIGURATION!$B$12)","v":"Mapped"},null,{"$f":"XBRLMap(I15,I$42&\".\"&I$43&\".\"&$AC15,I$40,I$41,CONFIGURATION!$B$10,\"BMA\",CONFIGURATION!$B$1,\"bscr\",CONFIGURATION!$B$12)","v":"Mapped"},null,{"$f":"XBRLMap(K15,K$42&\".\"&K$43&\".\"&$AC15,K$40,K$41,CONFIGURATION!$B$10,\"BMA\",CONFIGURATION!$B$1,\"bscr\",CONFIGURATION!$B$12)","v":"Mapped"},null,{"$f":"XBRLMap(M15,M$42&\".\"&M$43&\".\"&$AC15,M$40,M$41,CONFIGURATION!$B$10,\"BMA\",CONFIGURATION!$B$1,\"bscr\",CONFIGURATION!$B$12)","v":"Mapped"},null,{"$f":"XBRLMap(O15,O$42&\".\"&O$43&\".\"&$AC15,O$40,O$41,CONFIGURATION!$B$10,\"BMA\",CONFIGURATION!$B$1,\"bscr\",CONFIGURATION!$B$12)","v":"Mapped"},null,null,null,null,null,null,null,null,null,{"$f":"XBRLMap(Y15,Y$42&\".\"&$AC15,Y$40,Y$41,CONFIGURATION!$B$10,\"BMA\",CONFIGURATION!$B$1,\"bscr\",CONFIGURATION!$B$12)","v":"Mapped"},null,{"$f":"XBRLMap(AA15,AA$42&\".\"&$AC15,AA$40,AA$41,CONFIGURATION!$B$10,\"BMA\",CONFIGURATION!$B$1,\"bscr\",CONFIGURATION!$B$12)","v":"Mapped"}]
[]
[]
[null,null,null,null,{"$f":"XBRLMap(E17,E$42&\".\"&E$43&\".\"&$AC17,E$40,E$41,CONFIGURATION!$B$10,\"BMA\",CONFIGURATION!$B$1,\"bscr\",CONFIGURATION!$B$12)","v":"Mapped"},null,{"$f":"XBRLMap(G17,G$42&\".\"&G$43&\".\"&$AC17,G$40,G$41,CONFIGURATION!$B$10,\"BMA\",CONFIGURATION!$B$1,\"bscr\",CONFIGURATION!$B$12)","v":"Mapped"},null,{"$f":"XBRLMap(I17,I$42&\".\"&I$43&\".\"&$AC17,I$40,I$41,CONFIGURATION!$B$10,\"BMA\",CONFIGURATION!$B$1,\"bscr\",CONFIGURATION!$B$12)","v":"Mapped"},null,{"$f":"XBRLMap(K17,K$42&\".\"&K$43&\".\"&$AC17,K$40,K$41,CONFIGURATION!$B$10,\"BMA\",CONFIGURATION!$B$1,\"bscr\",CONFIGURATION!$B$12)","v":"Mapped"},null,{"$f":"XBRLMap(M17,M$42&\".\"&M$43&\".\"&$AC17,M$40,M$41,CONFIGURATION!$B$10,\"BMA\",CONFIGURATION!$B$1,\"bscr\",CONFIGURATION!$B$12)","v":"Mapped"},null,{"$f":"XBRLMap(O17,O$42&\".\"&O$43&\".\"&$AC17,O$40,O$41,CONFIGURATION!$B$10,\"BMA\",CONFIGURATION!$B$1,\"bscr\",CONFIGURATION!$B$12)","v":"Mapped"},null,{"$f":"XBRLMap(Q17,Q$42&\".\"&$AC17,Q$40,Q$41,CONFIGURATION!$B$10,\"BMA\",CONFIGURATION!$B$1,\"bscr\",CONFIGURATION!$B$12)","v":"Mapped"},null,{"$f":"XBRLMap(S17,S$42&\".\"&$AC17,S$40,S$41,CONFIGURATION!$B$10,\"BMA\",CONFIGURATION!$B$1,\"bscr\",CONFIGURATION!$B$12)","v":"Mapped"},null,{"$f":"XBRLMap(U17,U$42&\".\"&$AC17,U$40,U$41,CONFIGURATION!$B$10,\"BMA\",CONFIGURATION!$B$1,\"bscr\",CONFIGURATION!$B$12)","v":"Mapped"},null,{"$f":"XBRLMap(W17,W$42&\".\"&$AC17,W$40,W$41,CONFIGURATION!$B$10,\"BMA\",CONFIGURATION!$B$1,\"bscr\",CONFIGURATION!$B$12)","v":"Mapped"}]
[null,null,null,null,{"$f":"XBRLMap(E18,E$42&\".\"&E$43&\".\"&$AC18,E$40,E$41,CONFIGURATION!$B$10,\"BMA\",CONFIGURATION!$B$1,\"bscr\",CONFIGURATION!$B$12)","v":"Mapped"},null,{"$f":"XBRLMap(G18,G$42&\".\"&G$43&\".\"&$AC18,G$40,G$41,CONFIGURATION!$B$10,\"BMA\",CONFIGURATION!$B$1,\"bscr\",CONFIGURATION!$B$12)","v":"Mapped"},null,{"$f":"XBRLMap(I18,I$42&\".\"&I$43&\".\"&$AC18,I$40,I$41,CONFIGURATION!$B$10,\"BMA\",CONFIGURATION!$B$1,\"bscr\",CONFIGURATION!$B$12)","v":"Mapped"},null,{"$f":"XBRLMap(K18,K$42&\".\"&K$43&\".\"&$AC18,K$40,K$41,CONFIGURATION!$B$10,\"BMA\",CONFIGURATION!$B$1,\"bscr\",CONFIGURATION!$B$12)","v":"Mapped"},null,{"$f":"XBRLMap(M18,M$42&\".\"&M$43&\".\"&$AC18,M$40,M$41,CONFIGURATION!$B$10,\"BMA\",CONFIGURATION!$B$1,\"bscr\",CONFIGURATION!$B$12)","v":"Mapped"},null,{"$f":"XBRLMap(O18,O$42&\".\"&O$43&\".\"&$AC18,O$40,O$41,CONFIGURATION!$B$10,\"BMA\",CONFIGURATION!$B$1,\"bscr\",CONFIGURATION!$B$12)","v":"Mapped"},null,{"$f":"XBRLMap(Q18,Q$42&\".\"&$AC18,Q$40,Q$41,CONFIGURATION!$B$10,\"BMA\",CONFIGURATION!$B$1,\"bscr\",CONFIGURATION!$B$12)","v":"Mapped"},null,{"$f":"XBRLMap(S18,S$42&\".\"&$AC18,S$40,S$41,CONFIGURATION!$B$10,\"BMA\",CONFIGURATION!$B$1,\"bscr\",CONFIGURATION!$B$12)","v":"Mapped"},null,{"$f":"XBRLMap(U18,U$42&\".\"&$AC18,U$40,U$41,CONFIGURATION!$B$10,\"BMA\",CONFIGURATION!$B$1,\"bscr\",CONFIGURATION!$B$12)","v":"Mapped"},null,{"$f":"XBRLMap(W18,W$42&\".\"&$AC18,W$40,W$41,CONFIGURATION!$B$10,\"BMA\",CONFIGURATION!$B$1,\"bscr\",CONFIGURATION!$B$12)","v":"Mapped"}]
[null,null,null,null,{"$f":"XBRLMap(E19,E$42&\".\"&E$43&\".\"&$AC19,E$40,E$41,CONFIGURATION!$B$10,\"BMA\",CONFIGURATION!$B$1,\"bscr\",CONFIGURATION!$B$12)","v":"Mapped"},null,{"$f":"XBRLMap(G19,G$42&\".\"&G$43&\".\"&$AC19,G$40,G$41,CONFIGURATION!$B$10,\"BMA\",CONFIGURATION!$B$1,\"bscr\",CONFIGURATION!$B$12)","v":"Mapped"},null,{"$f":"XBRLMap(I19,I$42&\".\"&I$43&\".\"&$AC19,I$40,I$41,CONFIGURATION!$B$10,\"BMA\",CONFIGURATION!$B$1,\"bscr\",CONFIGURATION!$B$12)","v":"Mapped"},null,{"$f":"XBRLMap(K19,K$42&\".\"&K$43&\".\"&$AC19,K$40,K$41,CONFIGURATION!$B$10,\"BMA\",CONFIGURATION!$B$1,\"bscr\",CONFIGURATION!$B$12)","v":"Mapped"},null,{"$f":"XBRLMap(M19,M$42&\".\"&M$43&\".\"&$AC19,M$40,M$41,CONFIGURATION!$B$10,\"BMA\",CONFIGURATION!$B$1,\"bscr\",CONFIGURATION!$B$12)","v":"Mapped"},null,{"$f":"XBRLMap(O19,O$42&\".\"&O$43&\".\"&$AC19,O$40,O$41,CONFIGURATION!$B$10,\"BMA\",CONFIGURATION!$B$1,\"bscr\",CONFIGURATION!$B$12)","v":"Mapped"},null,{"$f":"XBRLMap(Q19,Q$42&\".\"&$AC19,Q$40,Q$41,CONFIGURATION!$B$10,\"BMA\",CONFIGURATION!$B$1,\"bscr\",CONFIGURATION!$B$12)","v":"Mapped"},null,{"$f":"XBRLMap(S19,S$42&\".\"&$AC19,S$40,S$41,CONFIGURATION!$B$10,\"BMA\",CONFIGURATION!$B$1,\"bscr\",CONFIGURATION!$B$12)","v":"Mapped"},null,{"$f":"XBRLMap(U19,U$42&\".\"&$AC19,U$40,U$41,CONFIGURATION!$B$10,\"BMA\",CONFIGURATION!$B$1,\"bscr\",CONFIGURATION!$B$12)","v":"Mapped"},null,{"$f":"XBRLMap(W19,W$42&\".\"&$AC19,W$40,W$41,CONFIGURATION!$B$10,\"BMA\",CONFIGURATION!$B$1,\"bscr\",CONFIGURATION!$B$12)","v":"Mapped"}]
[null,null,null,null,{"$f":"XBRLMap(E20,E$42&\".\"&E$43&\".\"&$AC20,E$40,E$41,CONFIGURATION!$B$10,\"BMA\",CONFIGURATION!$B$1,\"bscr\",CONFIGURATION!$B$12)","v":"Mapped"},null,{"$f":"XBRLMap(G20,G$42&\".\"&G$43&\".\"&$AC20,G$40,G$41,CONFIGURATION!$B$10,\"BMA\",CONFIGURATION!$B$1,\"bscr\",CONFIGURATION!$B$12)","v":"Mapped"},null,{"$f":"XBRLMap(I20,I$42&\".\"&I$43&\".\"&$AC20,I$40,I$41,CONFIGURATION!$B$10,\"BMA\",CONFIGURATION!$B$1,\"bscr\",CONFIGURATION!$B$12)","v":"Mapped"},null,{"$f":"XBRLMap(K20,K$42&\".\"&K$43&\".\"&$AC20,K$40,K$41,CONFIGURATION!$B$10,\"BMA\",CONFIGURATION!$B$1,\"bscr\",CONFIGURATION!$B$12)","v":"Mapped"},null,{"$f":"XBRLMap(M20,M$42&\".\"&M$43&\".\"&$AC20,M$40,M$41,CONFIGURATION!$B$10,\"BMA\",CONFIGURATION!$B$1,\"bscr\",CONFIGURATION!$B$12)","v":"Mapped"},null,{"$f":"XBRLMap(O20,O$42&\".\"&O$43&\".\"&$AC20,O$40,O$41,CONFIGURATION!$B$10,\"BMA\",CONFIGURATION!$B$1,\"bscr\",CONFIGURATION!$B$12)","v":"Mapped"},null,null,null,null,null,null,null,null,null,{"$f":"XBRLMap(Y20,Y$42&\".\"&$AC20,Y$40,Y$41,CONFIGURATION!$B$10,\"BMA\",CONFIGURATION!$B$1,\"bscr\",CONFIGURATION!$B$12)","v":"Mapped"},null,{"$f":"XBRLMap(AA20,AA$42&\".\"&$AC20,AA$40,AA$41,CONFIGURATION!$B$10,\"BMA\",CONFIGURATION!$B$1,\"bscr\",CONFIGURATION!$B$12)","v":"Mapped"}]
[]
[null,null,null,null,{"$f":"XBRLMap(E22,E$42&\".\"&E$43&\".\"&$AC22,E$40,E$41,CONFIGURATION!$B$10,\"BMA\",CONFIGURATION!$B$1,\"bscr\",CONFIGURATION!$B$12)","v":"Mapped"},null,{"$f":"XBRLMap(G22,G$42&\".\"&G$43&\".\"&$AC22,G$40,G$41,CONFIGURATION!$B$10,\"BMA\",CONFIGURATION!$B$1,\"bscr\",CONFIGURATION!$B$12)","v":"Mapped"},null,{"$f":"XBRLMap(I22,I$42&\".\"&I$43&\".\"&$AC22,I$40,I$41,CONFIGURATION!$B$10,\"BMA\",CONFIGURATION!$B$1,\"bscr\",CONFIGURATION!$B$12)","v":"Mapped"},null,{"$f":"XBRLMap(K22,K$42&\".\"&K$43&\".\"&$AC22,K$40,K$41,CONFIGURATION!$B$10,\"BMA\",CONFIGURATION!$B$1,\"bscr\",CONFIGURATION!$B$12)","v":"Mapped"},null,{"$f":"XBRLMap(M22,M$42&\".\"&M$43&\".\"&$AC22,M$40,M$41,CONFIGURATION!$B$10,\"BMA\",CONFIGURATION!$B$1,\"bscr\",CONFIGURATION!$B$12)","v":"Mapped"},null,{"$f":"XBRLMap(O22,O$42&\".\"&O$43&\".\"&$AC22,O$40,O$41,CONFIGURATION!$B$10,\"BMA\",CONFIGURATION!$B$1,\"bscr\",CONFIGURATION!$B$12)","v":"Mapped"},null,null,null,null,null,null,null,null,null,{"$f":"XBRLMap(Y22,Y$42&\".\"&$AC22,Y$40,Y$41,CONFIGURATION!$B$10,\"BMA\",CONFIGURATION!$B$1,\"bscr\",CONFIGURATION!$B$12)","v":"Mapped"},null,{"$f":"XBRLMap(AA22,AA$42&\".\"&$AC22,AA$40,AA$41,CONFIGURATION!$B$10,\"BMA\",CONFIGURATION!$B$1,\"bscr\",CONFIGURATION!$B$12)","v":"Mapped"}]
[null,null,null,null,{"$f":"XBRLMap(E23,E$42&\".\"&E$43&\".\"&$AC23,E$40,E$41,CONFIGURATION!$B$10,\"BMA\",CONFIGURATION!$B$1,\"bscr\",CONFIGURATION!$B$12)","v":"Mapped"},null,{"$f":"XBRLMap(G23,G$42&\".\"&G$43&\".\"&$AC23,G$40,G$41,CONFIGURATION!$B$10,\"BMA\",CONFIGURATION!$B$1,\"bscr\",CONFIGURATION!$B$12)","v":"Mapped"},null,{"$f":"XBRLMap(I23,I$42&\".\"&I$43&\".\"&$AC23,I$40,I$41,CONFIGURATION!$B$10,\"BMA\",CONFIGURATION!$B$1,\"bscr\",CONFIGURATION!$B$12)","v":"Mapped"},null,{"$f":"XBRLMap(K23,K$42&\".\"&K$43&\".\"&$AC23,K$40,K$41,CONFIGURATION!$B$10,\"BMA\",CONFIGURATION!$B$1,\"bscr\",CONFIGURATION!$B$12)","v":"Mapped"},null,{"$f":"XBRLMap(M23,M$42&\".\"&M$43&\".\"&$AC23,M$40,M$41,CONFIGURATION!$B$10,\"BMA\",CONFIGURATION!$B$1,\"bscr\",CONFIGURATION!$B$12)","v":"Mapped"},null,{"$f":"XBRLMap(O23,O$42&\".\"&O$43&\".\"&$AC23,O$40,O$41,CONFIGURATION!$B$10,\"BMA\",CONFIGURATION!$B$1,\"bscr\",CONFIGURATION!$B$12)","v":"Mapped"},null,null,null,null,null,null,null,null,null,{"$f":"XBRLMap(Y23,Y$42&\".\"&$AC23,Y$40,Y$41,CONFIGURATION!$B$10,\"BMA\",CONFIGURATION!$B$1,\"bscr\",CONFIGURATION!$B$12)","v":"Mapped"},null,{"$f":"XBRLMap(AA23,AA$42&\".\"&$AC23,AA$40,AA$41,CONFIGURATION!$B$10,\"BMA\",CONFIGURATION!$B$1,\"bscr\",CONFIGURATION!$B$12)","v":"Mapped"}]
[]
[null,null,null,null,{"$f":"XBRLMap(E25,E$42&\".\"&E$43&\".\"&$AC25,E$40,E$41,CONFIGURATION!$B$10,\"BMA\",CONFIGURATION!$B$1,\"bscr\",CONFIGURATION!$B$12)","v":"Mapped"},null,{"$f":"XBRLMap(G25,G$42&\".\"&G$43&\".\"&$AC25,G$40,G$41,CONFIGURATION!$B$10,\"BMA\",CONFIGURATION!$B$1,\"bscr\",CONFIGURATION!$B$12)","v":"Mapped"},null,{"$f":"XBRLMap(I25,I$42&\".\"&I$43&\".\"&$AC25,I$40,I$41,CONFIGURATION!$B$10,\"BMA\",CONFIGURATION!$B$1,\"bscr\",CONFIGURATION!$B$12)","v":"Mapped"},null,{"$f":"XBRLMap(K25,K$42&\".\"&K$43&\".\"&$AC25,K$40,K$41,CONFIGURATION!$B$10,\"BMA\",CONFIGURATION!$B$1,\"bscr\",CONFIGURATION!$B$12)","v":"Mapped"},null,{"$f":"XBRLMap(M25,M$42&\".\"&M$43&\".\"&$AC25,M$40,M$41,CONFIGURATION!$B$10,\"BMA\",CONFIGURATION!$B$1,\"bscr\",CONFIGURATION!$B$12)","v":"Mapped"},null,{"$f":"XBRLMap(O25,O$42&\".\"&O$43&\".\"&$AC25,O$40,O$41,CONFIGURATION!$B$10,\"BMA\",CONFIGURATION!$B$1,\"bscr\",CONFIGURATION!$B$12)","v":"Mapped"},null,null,null,null,null,null,null,null,null,{"$f":"XBRLMap(Y25,Y$42&\".\"&$AC25,Y$40,Y$41,CONFIGURATION!$B$10,\"BMA\",CONFIGURATION!$B$1,\"bscr\",CONFIGURATION!$B$12)","v":"Mapped"},null,{"$f":"XBRLMap(AA25,AA$42&\".\"&$AC25,AA$40,AA$41,CONFIGURATION!$B$10,\"BMA\",CONFIGURATION!$B$1,\"bscr\",CONFIGURATION!$B$12)","v":"Mapped"}]
[null,null,null,null,{"$f":"XBRLMap(E26,E$42&\".\"&E$43&\".\"&$AC26,E$40,E$41,CONFIGURATION!$B$10,\"BMA\",CONFIGURATION!$B$1,\"bscr\",CONFIGURATION!$B$12)","v":"Mapped"},null,{"$f":"XBRLMap(G26,G$42&\".\"&G$43&\".\"&$AC26,G$40,G$41,CONFIGURATION!$B$10,\"BMA\",CONFIGURATION!$B$1,\"bscr\",CONFIGURATION!$B$12)","v":"Mapped"},null,{"$f":"XBRLMap(I26,I$42&\".\"&I$43&\".\"&$AC26,I$40,I$41,CONFIGURATION!$B$10,\"BMA\",CONFIGURATION!$B$1,\"bscr\",CONFIGURATION!$B$12)","v":"Mapped"},null,{"$f":"XBRLMap(K26,K$42&\".\"&K$43&\".\"&$AC26,K$40,K$41,CONFIGURATION!$B$10,\"BMA\",CONFIGURATION!$B$1,\"bscr\",CONFIGURATION!$B$12)","v":"Mapped"},null,{"$f":"XBRLMap(M26,M$42&\".\"&M$43&\".\"&$AC26,M$40,M$41,CONFIGURATION!$B$10,\"BMA\",CONFIGURATION!$B$1,\"bscr\",CONFIGURATION!$B$12)","v":"Mapped"},null,{"$f":"XBRLMap(O26,O$42&\".\"&O$43&\".\"&$AC26,O$40,O$41,CONFIGURATION!$B$10,\"BMA\",CONFIGURATION!$B$1,\"bscr\",CONFIGURATION!$B$12)","v":"Mapped"},null,null,null,null,null,null,null,null,null,{"$f":"XBRLMap(Y26,Y$42&\".\"&$AC26,Y$40,Y$41,CONFIGURATION!$B$10,\"BMA\",CONFIGURATION!$B$1,\"bscr\",CONFIGURATION!$B$12)","v":"Mapped"},null,{"$f":"XBRLMap(AA26,AA$42&\".\"&$AC26,AA$40,AA$41,CONFIGURATION!$B$10,\"BMA\",CONFIGURATION!$B$1,\"bscr\",CONFIGURATION!$B$12)","v":"Mapped"}]
[null,null,null,null,{"$f":"XBRLMap(E27,E$42&\".\"&E$43&\".\"&$AC27,E$40,E$41,CONFIGURATION!$B$10,\"BMA\",CONFIGURATION!$B$1,\"bscr\",CONFIGURATION!$B$12)","v":"Mapped"},null,{"$f":"XBRLMap(G27,G$42&\".\"&G$43&\".\"&$AC27,G$40,G$41,CONFIGURATION!$B$10,\"BMA\",CONFIGURATION!$B$1,\"bscr\",CONFIGURATION!$B$12)","v":"Mapped"},null,{"$f":"XBRLMap(I27,I$42&\".\"&I$43&\".\"&$AC27,I$40,I$41,CONFIGURATION!$B$10,\"BMA\",CONFIGURATION!$B$1,\"bscr\",CONFIGURATION!$B$12)","v":"Mapped"},null,{"$f":"XBRLMap(K27,K$42&\".\"&K$43&\".\"&$AC27,K$40,K$41,CONFIGURATION!$B$10,\"BMA\",CONFIGURATION!$B$1,\"bscr\",CONFIGURATION!$B$12)","v":"Mapped"},null,{"$f":"XBRLMap(M27,M$42&\".\"&M$43&\".\"&$AC27,M$40,M$41,CONFIGURATION!$B$10,\"BMA\",CONFIGURATION!$B$1,\"bscr\",CONFIGURATION!$B$12)","v":"Mapped"},null,{"$f":"XBRLMap(O27,O$42&\".\"&O$43&\".\"&$AC27,O$40,O$41,CONFIGURATION!$B$10,\"BMA\",CONFIGURATION!$B$1,\"bscr\",CONFIGURATION!$B$12)","v":"Mapped"},null,null,null,null,null,null,null,null,null,{"$f":"XBRLMap(Y27,Y$42&\".\"&$AC27,Y$40,Y$41,CONFIGURATION!$B$10,\"BMA\",CONFIGURATION!$B$1,\"bscr\",CONFIGURATION!$B$12)","v":"Mapped"},null,{"$f":"XBRLMap(AA27,AA$42&\".\"&$AC27,AA$40,AA$41,CONFIGURATION!$B$10,\"BMA\",CONFIGURATION!$B$1,\"bscr\",CONFIGURATION!$B$12)","v":"Mapped"}]
[null,null,null,null,{"$f":"XBRLMap(E28,E$42&\".\"&E$43&\".\"&$AC28,E$40,E$41,CONFIGURATION!$B$10,\"BMA\",CONFIGURATION!$B$1,\"bscr\",CONFIGURATION!$B$12)","v":"Mapped"},null,{"$f":"XBRLMap(G28,G$42&\".\"&G$43&\".\"&$AC28,G$40,G$41,CONFIGURATION!$B$10,\"BMA\",CONFIGURATION!$B$1,\"bscr\",CONFIGURATION!$B$12)","v":"Mapped"},null,{"$f":"XBRLMap(I28,I$42&\".\"&I$43&\".\"&$AC28,I$40,I$41,CONFIGURATION!$B$10,\"BMA\",CONFIGURATION!$B$1,\"bscr\",CONFIGURATION!$B$12)","v":"Mapped"},null,{"$f":"XBRLMap(K28,K$42&\".\"&K$43&\".\"&$AC28,K$40,K$41,CONFIGURATION!$B$10,\"BMA\",CONFIGURATION!$B$1,\"bscr\",CONFIGURATION!$B$12)","v":"Mapped"},null,{"$f":"XBRLMap(M28,M$42&\".\"&M$43&\".\"&$AC28,M$40,M$41,CONFIGURATION!$B$10,\"BMA\",CONFIGURATION!$B$1,\"bscr\",CONFIGURATION!$B$12)","v":"Mapped"},null,{"$f":"XBRLMap(O28,O$42&\".\"&O$43&\".\"&$AC28,O$40,O$41,CONFIGURATION!$B$10,\"BMA\",CONFIGURATION!$B$1,\"bscr\",CONFIGURATION!$B$12)","v":"Mapped"},null,null,null,null,null,null,null,null,null,{"$f":"XBRLMap(Y28,Y$42&\".\"&$AC28,Y$40,Y$41,CONFIGURATION!$B$10,\"BMA\",CONFIGURATION!$B$1,\"bscr\",CONFIGURATION!$B$12)","v":"Mapped"},null,{"$f":"XBRLMap(AA28,AA$42&\".\"&$AC28,AA$40,AA$41,CONFIGURATION!$B$10,\"BMA\",CONFIGURATION!$B$1,\"bscr\",CONFIGURATION!$B$12)","v":"Mapped"}]
[null,null,null,null,{"$f":"XBRLMap(E29,E$42&\".\"&E$43&\".\"&$AC29,E$40,E$41,CONFIGURATION!$B$10,\"BMA\",CONFIGURATION!$B$1,\"bscr\",CONFIGURATION!$B$12)","v":"Mapped"},null,{"$f":"XBRLMap(G29,G$42&\".\"&G$43&\".\"&$AC29,G$40,G$41,CONFIGURATION!$B$10,\"BMA\",CONFIGURATION!$B$1,\"bscr\",CONFIGURATION!$B$12)","v":"Mapped"},null,{"$f":"XBRLMap(I29,I$42&\".\"&I$43&\".\"&$AC29,I$40,I$41,CONFIGURATION!$B$10,\"BMA\",CONFIGURATION!$B$1,\"bscr\",CONFIGURATION!$B$12)","v":"Mapped"},null,{"$f":"XBRLMap(K29,K$42&\".\"&K$43&\".\"&$AC29,K$40,K$41,CONFIGURATION!$B$10,\"BMA\",CONFIGURATION!$B$1,\"bscr\",CONFIGURATION!$B$12)","v":"Mapped"},null,{"$f":"XBRLMap(M29,M$42&\".\"&M$43&\".\"&$AC29,M$40,M$41,CONFIGURATION!$B$10,\"BMA\",CONFIGURATION!$B$1,\"bscr\",CONFIGURATION!$B$12)","v":"Mapped"},null,{"$f":"XBRLMap(O29,O$42&\".\"&O$43&\".\"&$AC29,O$40,O$41,CONFIGURATION!$B$10,\"BMA\",CONFIGURATION!$B$1,\"bscr\",CONFIGURATION!$B$12)","v":"Mapped"},null,null,null,null,null,null,null,null,null,{"$f":"XBRLMap(Y29,Y$42&\".\"&$AC29,Y$40,Y$41,CONFIGURATION!$B$10,\"BMA\",CONFIGURATION!$B$1,\"bscr\",CONFIGURATION!$B$12)","v":"Mapped"},null,{"$f":"XBRLMap(AA29,AA$42&\".\"&$AC29,AA$40,AA$41,CONFIGURATION!$B$10,\"BMA\",CONFIGURATION!$B$1,\"bscr\",CONFIGURATION!$B$12)","v":"Mapped"}]
[null,null,null,null,{"$f":"XBRLMap(E30,E$42&\".\"&E$43&\".\"&$AC30,E$40,E$41,CONFIGURATION!$B$10,\"BMA\",CONFIGURATION!$B$1,\"bscr\",CONFIGURATION!$B$12)","v":"Mapped"},null,{"$f":"XBRLMap(G30,G$42&\".\"&G$43&\".\"&$AC30,G$40,G$41,CONFIGURATION!$B$10,\"BMA\",CONFIGURATION!$B$1,\"bscr\",CONFIGURATION!$B$12)","v":"Mapped"},null,{"$f":"XBRLMap(I30,I$42&\".\"&I$43&\".\"&$AC30,I$40,I$41,CONFIGURATION!$B$10,\"BMA\",CONFIGURATION!$B$1,\"bscr\",CONFIGURATION!$B$12)","v":"Mapped"},null,{"$f":"XBRLMap(K30,K$42&\".\"&K$43&\".\"&$AC30,K$40,K$41,CONFIGURATION!$B$10,\"BMA\",CONFIGURATION!$B$1,\"bscr\",CONFIGURATION!$B$12)","v":"Mapped"},null,{"$f":"XBRLMap(M30,M$42&\".\"&M$43&\".\"&$AC30,M$40,M$41,CONFIGURATION!$B$10,\"BMA\",CONFIGURATION!$B$1,\"bscr\",CONFIGURATION!$B$12)","v":"Mapped"},null,{"$f":"XBRLMap(O30,O$42&\".\"&O$43&\".\"&$AC30,O$40,O$41,CONFIGURATION!$B$10,\"BMA\",CONFIGURATION!$B$1,\"bscr\",CONFIGURATION!$B$12)","v":"Mapped"},null,null,null,null,null,null,null,null,null,{"$f":"XBRLMap(Y30,Y$42&\".\"&$AC30,Y$40,Y$41,CONFIGURATION!$B$10,\"BMA\",CONFIGURATION!$B$1,\"bscr\",CONFIGURATION!$B$12)","v":"Mapped"},null,{"$f":"XBRLMap(AA30,AA$42&\".\"&$AC30,AA$40,AA$41,CONFIGURATION!$B$10,\"BMA\",CONFIGURATION!$B$1,\"bscr\",CONFIGURATION!$B$12)","v":"Mapped"}]
[null,null,null,null,{"$f":"XBRLMap(E31,E$42&\".\"&E$43&\".\"&$AC31,E$40,E$41,CONFIGURATION!$B$10,\"BMA\",CONFIGURATION!$B$1,\"bscr\",CONFIGURATION!$B$12)","v":"Mapped"},null,{"$f":"XBRLMap(G31,G$42&\".\"&G$43&\".\"&$AC31,G$40,G$41,CONFIGURATION!$B$10,\"BMA\",CONFIGURATION!$B$1,\"bscr\",CONFIGURATION!$B$12)","v":"Mapped"},null,{"$f":"XBRLMap(I31,I$42&\".\"&I$43&\".\"&$AC31,I$40,I$41,CONFIGURATION!$B$10,\"BMA\",CONFIGURATION!$B$1,\"bscr\",CONFIGURATION!$B$12)","v":"Mapped"},null,{"$f":"XBRLMap(K31,K$42&\".\"&K$43&\".\"&$AC31,K$40,K$41,CONFIGURATION!$B$10,\"BMA\",CONFIGURATION!$B$1,\"bscr\",CONFIGURATION!$B$12)","v":"Mapped"},null,{"$f":"XBRLMap(M31,M$42&\".\"&M$43&\".\"&$AC31,M$40,M$41,CONFIGURATION!$B$10,\"BMA\",CONFIGURATION!$B$1,\"bscr\",CONFIGURATION!$B$12)","v":"Mapped"},null,{"$f":"XBRLMap(O31,O$42&\".\"&O$43&\".\"&$AC31,O$40,O$41,CONFIGURATION!$B$10,\"BMA\",CONFIGURATION!$B$1,\"bscr\",CONFIGURATION!$B$12)","v":"Mapped"},null,{"$f":"XBRLMap(Q31,Q$42&\".\"&$AC31,Q$40,Q$41,CONFIGURATION!$B$10,\"BMA\",CONFIGURATION!$B$1,\"bscr\",CONFIGURATION!$B$12)","v":"Mapped"},null,{"$f":"XBRLMap(S31,S$42&\".\"&$AC31,S$40,S$41,CONFIGURATION!$B$10,\"BMA\",CONFIGURATION!$B$1,\"bscr\",CONFIGURATION!$B$12)","v":"Mapped"},null,{"$f":"XBRLMap(U31,U$42&\".\"&$AC31,U$40,U$41,CONFIGURATION!$B$10,\"BMA\",CONFIGURATION!$B$1,\"bscr\",CONFIGURATION!$B$12)","v":"Mapped"},null,{"$f":"XBRLMap(W31,W$42&\".\"&$AC31,W$40,W$41,CONFIGURATION!$B$10,\"BMA\",CONFIGURATION!$B$1,\"bscr\",CONFIGURATION!$B$12)","v":"Mapped"},null,{"$f":"XBRLMap(Y31,Y$42&\".\"&$AC31,Y$40,Y$41,CONFIGURATION!$B$10,\"BMA\",CONFIGURATION!$B$1,\"bscr\",CONFIGURATION!$B$12)","v":"Mapped"},null,{"$f":"XBRLMap(AA31,AA$42&\".\"&$AC31,AA$40,AA$41,CONFIGURATION!$B$10,\"BMA\",CONFIGURATION!$B$1,\"bscr\",CONFIGURATION!$B$12)","v":"Mapped"}]

{"sheet":"Schedule IVB (EBS)","index":36,"n_rows":64,"n_cols":33,"rows_kept":64,"cut":false,"hidden":false,"merged":[[1,1,1,2],[5,24,5,26],[4,4,4,14],[4,16,4,26],[6,4,7,6],[6,8,7,10],[6,12,7,14],[6,16,7,18],[6,20,7,22],[6,24,7,26],[5,12,5,14]]}
[null,"SCHEDULE OF LONG-TERM BUSINESS PREMIUMS",null,null,null,null,null,null,null,null,null,null,null,null,null,null,null,null,null,null,null,null,null,null,null,null,{"$f":"HYPERLINK(\"#'Index'!A1\",\"Return to Index\")","v":"Return to Index"},null,"bma","ScheduleOfPremiumsWrittenByLineOfBusinessAbstract"]
[null,{"$f":"'Schedule II (EBS)'!C2","v":"Enter Company Name"}]
[null,"For the year ending",{"$f":"'Schedule II (EBS)'!D3","v":"2019-12-31"},null,null,null,null,null,null,null,null,null,null,null,null,null,null,null,null,null,null,null,null,null,null,null,"SCHEDULE IV(B) (EBS)"]
[null,{"$f":"\"Expressed in \" & IF(CONFIGURATION!$B$12>1,\" ['\"&MID(CONFIGURATION!$B$12,2,LEN(CONFIGURATION!$B$12))&\"s]\",\"\")","v":"Expressed in  ['000s]"},{"$f":"'Schedule II (EBS)'!D4","v":"United States Dollars"},null,null,null,null,null,null,null,null,null,null,null,null,null,null,null,null,null,null,null,null,null,null,null,null,null,"bma","GrossWrittenMember",null,null,"bma_GrossWrittenMember"]
[null,null,null,null,"GROSS PREMIUMS AND OTHER CONSIDERATIONS",null,null,null,null,null,null,null,null,null,null,null,"NET PREMIUMS AND OTHER CONSIDERATIONS",null,null,null,null,null,null,null,null,null,null,null,"bma","RelatedWrittenMember",null,null,"bma_RelatedWrittenMember"]
[null,null,null,null,null,null,null,null,null,null,null,null,"Form 2SFS, Line 12(c)",null,null,null,null,null,null,null,null,null,null,null,"Form 2SFS, Line 14(d)"]
[null,null,null,null,"Unrelated",null,null,null,"Related",null,null,null,"Total",null,null,null,"Adjustable / Benefit Period \n<= 2 Years",null,null,null,"Non-Adjustable / Benefit Period \n> 2 Years",null,null,null,"Total ",null,null,null,"bma","TotalWrittenMember",null,null,"bma_TotalWrittenMember"]
[null,"Schedule "]
[null,"Line no. ",null,null,{"$f":"'Form 4EBS'!F6","v":"2019-12-31"},null,{"$f":"'Form 4EBS'!H6","v":"2018-12-31"},null,{"$f":"'Form 4EBS'!F6","v":"2019-12-31"},null,{"$f":"'Form 4EBS'!H6","v":"2018-12-31"},null,{"$f":"'Form 4EBS'!F6","v":"2019-12-31"},null,{"$f":"'Form 4EBS'!H6","v":"2018-12-31"},null,{"$f":"M9","v":"2019-12-31"},null,{"$f":"O9","v":"2018-12-31"},null,{"$f":"Q9","v":"2019-12-31"},null,{"$f":"S9","v":"2018-12-31"},null,{"$f":"'Form 4EBS'!F6","v":"2019-12-31"},null,{"$f":"'Form 4EBS'!H6","v":"2018-12-31"},null,"bma","NetWrittenMember",null,null,"bma_NetWrittenMember"]
[null,null,null,null,"('000)",null,"('000)",null,"('000)",null,"('000)",null,"('000)",null,"('000)",null,"('000)",null,"('000)",null,"('000)",null,"('000)",null,"('000)",null,"('000)"]
[]
[null,1,"Mortality ",null,{"$f":"Import!I604","v":0},null,{"$f":"Import!K604","v":0},null,{"$f":"Import!I620","v":0},null,{"$f":"Import!K620","v":0},null,{"$f":"E12+I12","v":0},null,{"$f":"G12+K12","v":0},null,null,null,null,null,null,null,null,null,{"$f":"Import!I642","v":0},null,{"$f":"Import!K642","v":0},null,"brrt_LongTermProductRidersAxis_brrt_MortalityMember"]
[null,2,"Critical Illness",null,{"$f":"Import!I605","v":0},null,{"$f":"Import!K605","v":0},null,{"$f":"Import!I621","v":0},null,{"$f":"Import!K621","v":0},null,{"$f":"E13+I13","v":0},null,{"$f":"G13+K13","v":0},null,null,null,null,null,null,null,null,null,{"$f":"Import!I643","v":0},null,{"$f":"Import!K643","v":0},null,"brrt_LongTermProductRidersAxis_brrt_CriticalIllnessMember"]
[null,3,"Longevity",null,{"$f":"Import!I606","v":0},null,{"$f":"Import!K606","v":0},null,{"$f":"Import!I622","v":0},null,{"$f":"Import!K622","v":0},null,{"$f":"E14+I14","v":0},null,{"$f":"G14+K14","v":0},null,null,null,null,null,null,null,null,null,{"$f":"Import!I644","v":0},null,{"$f":"Import!K644","v":0},null,"brrt_LongTermProductRidersAxis_brrt_LongevityMember"]
[null,4,"Deferred Annuities",null,{"$f":"Import!I607","v":0},null,{"$f":"Import!K607","v":0},null,{"$f":"Import!I623","v":0},null,{"$f":"Import!K623","v":0},null,{"$f":"E15+I15","v":0},null,{"$f":"G15+K15","v":0},null,null,null,null,null,null,null,null,null,{"$f":"Import!I645","v":0},null,{"$f":"Import!K645","v":0},null,"brrt_LongTermProductRidersAxis_brrt_DeferredAnnuitiesMember"]
[null,5,"Disability Income: Active lives with premium guarantee of —"]
[null,null,"(i) Less than or equal to 1 year",null,{"$f":"Import!I608","v":0},null,{"$f":"Import!K608","v":0},null,{"$f":"Import!I624","v":0},null,{"$f":"Import!K624","v":0},null,{"$f":"E17+I17","v":0},null,{"$f":"G17+K17","v":0},null,{"$f":"Import!I636","v":0},null,{"$f":"Import!K636","v":0},null,{"$f":"Import!I639","v":0},null,{"$f":"Import!K639","v":0},null,null,null,null,null,"brrt_LongTermProductRidersAxis_brrt_DisabilityIncomeActiveLivesWaiverOfPremiumAndLTCLessThanOneYearMember"]
[null,null,"(ii) More than 1 year but less than 5 years",null,{"$f":"Import!I609","v":0},null,{"$f":"Import!K609","v":0},null,{"$f":"Import!I625","v":0},null,{"$f":"Import!K625","v":0},null,{"$f":"E18+I18","v":0},null,0,null,{"$f":"Import!I637","v":0},null,{"$f":"Import!K637","v":0},null,{"$f":"Import!I640","v":0},null,{"$f":"Import!K640","v":0},null,null,null,null,null,"brrt_LongTermProductRidersAxis_brrt_DisabilityIncomeActiveLivesWaiverOfPremiumAndLTCBetween1AndFiveYearsMember"]
[null,null,"(iii) Greater than 5 years",null,{"$f":"Import!I610","v":0},null,{"$f":"Import!K610","v":0},null,{"$f":"Import!I626","v":0},null,{"$f":"Import!K626","v":0},null,{"$f":"E19+I19","v":0},null,0,null,{"$f":"Import!I638","v":0},null,{"$f":"Import!K638","v":0},null,{"$f":"Import!I641","v":0},null,{"$f":"Import!K641","v":0},null,null,null,null,null,"brrt_LongTermProductRidersAxis_brrt_DisabilityIncomeActiveLivesWaiverOfPremiumAndLTCMoreThanFiveYearsMember"]
[null,6,"Disability Income: Actives lives for other ",null,{"$f":"Import!I611","v":0},null,{"$f":"Import!K611","v":0},null,{"$f":"Import!I627","v":0},null,{"$f":"Import!K627","v":0},null,{"$f":"E20+I20","v":0},null,0,null,null,null,null,null,null,null,null,null,{"$f":"Import!I646","v":0},null,{"$f":"Import!K646","v":0},null,"brrt_LongTermProductRidersAxis_brrt_DisabilityIncomeActiveLivesOtherAccidentAndSicknessMember"]
[null,null,"accident and sickness"]
[null,7,"Disability Income: Claims in payment ",null,{"$f":"Import!I612","v":0},null,{"$f":"Import!K612","v":0},null,{"$f":"Import!I628","v":0},null,{"$f":"Import!K628","v":0},null,{"$f":"E22+I22","v":0},null,0,null,null,null,null,null,null,null,null,null,{"$f":"Import!I647","v":0},null,{"$f":"Import!K647","v":0},null,"brrt_LongTermProductRidersAxis_brrt_DisabilityIncomeClaimsInPaymentWaiverOfPremiumAndLTCMember"]
[null,8,"Disability Income: Claims in payment for other",null,{"$f":"Import!I613","v":0},null,{"$f":"Import!K613","v":0},null,{"$f":"Import!I629","v":0},null,{"$f":"Import!K629","v":0},null,{"$f":"E23+I23","v":0},null,0,null,null,null,null,null,null,null,null,null,{"$f":"Import!I648","v":0},null,{"$f":"Import!K648","v":0},null,"brrt_LongTermProductRidersAxis_brrt_DisabilityIncomeClaimsInPaymentOtherAccidentAndSicknessMember"]
[null,null,"accident and sickness"]
[null,9,"Group Life",null,{"$f":"Import!I614","v":0},null,{"$f":"Import!K614","v":0},null,{"$f":"Import!I630","v":0},null,{"$f":"Import!K630","v":0},null,{"$f":"E25+I25","v":0},null,0,null,null,null,null,null,null,null,null,null,{"$f":"Import!I649","v":0},null,{"$f":"Import!K649","v":0},null,"brrt_LongTermProductRidersAxis_brrt_GroupLifeMember"]
[null,10,"Group Disability",null,{"$f":"Import!I615","v":0},null,{"$f":"Import!K615","v":0},null,{"$f":"Import!I631","v":0},null,{"$f":"Import!K631","v":0},null,0,null,0,null,null,null,null,null,null,null,null,null,{"$f":"Import!I650","v":0},null,{"$f":"Import!K650","v":0},null,"brrt_LongTermProductRidersAxis_brrt_GroupDisabilityMember"]
[null,11,"Group Health",null,{"$f":"Import!I616","v":0},null,{"$f":"Import!K616","v":0},null,{"$f":"Import!I632","v":0},null,{"$f":"Import!K632","v":0},null,0,null,0,null,null,null,null,null,null,null,null,null,{"$f":"Import!I651","v":0},null,{"$f":"Import!K651","v":0},null,"brrt_LongTermProductRidersAxis_brrt_GroupHealthMember"]
[null,12,"Stop Loss",null,{"$f":"Import!I617","v":0},null,{"$f":"Import!K617","v":0},null,{"$f":"Import!I633","v":0},null,{"$f":"Import!K633","v":0},null,0,null,0,null,null,null,null,null,null,null,null,null,{"$f":"Import!I652","v":0},null,{"$f":"Import!K652","v":0},null,"brrt_LongTermProductRidersAxis_brrt_StopLossMember"]
[null,13,"Rider",null,{"$f":"Import!I618","v":0},null,{"$f":"Import!K618","v":0},null,{"$f":"Import!I634","v":0},null,{"$f":"Import!K634","v":0},null,0,null,0,null,null,null,null,null,null,null,null,null,{"$f":"Import!I653","v":0},null,{"$f":"Import!K653","v":0},null,"brrt_LongTermProductRidersAxis_brrt_OtherProductRidersMember"]
[null,14,"Variable Annuities",null,{"$f":"Import!I619","v":0},null,{"$f":"Import!K619","v":0},null,{"$f":"Import!I635","v":0},null,{"$f":"Import!K635","v":0},null,0,null,0,null,null,null,null,null,null,null,null,null,{"$f":"Import!I654","v":0},null,{"$f":"Import!K654","v":0},null,"brrt_LongTermProductRidersAxis_brrt_VariableAnnuitiesMember"]
[null,15,"Total ",null,{"$f":"SUM(E12:E30)","v":0},null,{"$f":"SUM(G12:G30)","v":0},null,{"$f":"SUM(I12:I30)","v":0},null,{"$f":"SUM(K12:K30)","v":0},null,{"$f":"SUM(M12:M30)","v":0},null,{"$f":"SUM(O12:O30)","v":0},null,{"$f":"SUM(Q12:Q30)","v":0},null,{"$f":"SUM(S12:S30)","v":0},null,{"$f":"SUM(U12:U30)","v":0},null,{"$f":"SUM(W12:W30)","v":0},null,{"$f":"SUM(Y12:Y30)","v":0},null,{"$f":"SUM(AA12:AA30)","v":0},null,"brrt_LongTermProductRidersAxis_brrt_TotalMember"]
[]
[null,null,null,null,null,null,null,null,null,null,null,null,{"$f":"IF(M34=\"TRUE\",HYPERLINK(\"#'Form 2SFS'!M43\",\"TRUE\"),HYPERLINK(\"#'Form 2SFS'!M43\",\"FALSE\"))","v":"TRUE"},null,{"$f":"IF(O34=\"TRUE\",HYPERLINK(\"#'Form 2SFS'!O43\",\"TRUE\"),HYPERLINK(\"#'Form 2SFS'!O43\",\"FALSE\"))","v":"TRUE"},null,null,null,null,null,null,null,null,null,{"$f":"IF(Y34=\"TRUE\",HYPERLINK(\"#'Form 2SFS'!M51\",\"TRUE\"),HYPERLINK(\"#'Form 2SFS'!M51\",\"FALSE\"))","v":"TRUE"},null,{"$f":"IF(AA34=\"TRUE\",HYPERLINK(\"#'Form 2SFS'!O51\",\"TRUE\"),HYPERLINK(\"#'Form 2SFS'!O51\",\"FALSE\"))","v":"TRUE"}]
[null,null,null,null,null,null,null,null,null,null,null,null,{"$f":"IF(SUM('Form 1SFS'!$F$100,'Form 1SFS'!$H$100)=0,IF(ROUND((M31-'Form 2SFS'!M43),0)=0,\"TRUE\",\"FALSE\"),IF('Form 2SFS'!M43=0,IF(ROUND((M31-'Form 2SFS'!I43),0)=0,\"TRUE\",\"FALSE\"),IF(ROUND((M31-'Form 2SFS'!M43),0)=0,\"TRUE\",\"FALSE\")))","v":"TRUE"},null,{"$f":"IF(SUM('Form 1SFS'!$F$100,'Form 1SFS'!$H$100)=0,IF(ROUND((O31-'Form 2SFS'!O43),0)=0,\"TRUE\",\"FALSE\"),IF('Form 2SFS'!O43=0,IF(ROUND((O31-'Form 2SFS'!K43),0)=0,\"TRUE\",\"FALSE\"),IF(ROUND((O31-'Form 2SFS'!O43),0)=0,\"TRUE\",\"FALSE\")))","v":"TRUE"},null,null,null,null,null,null,null,null,null,{"$f":"IF(SUM('Form 1SFS'!$F$100,'Form 1SFS'!$H$100)=0,IF(ROUND(((Y31+Q31+U31)-'Form 2SFS'!M51),0)=0,\"TRUE\",\"FALSE\"),IF('Form 2SFS'!M51=0,IF(ROUND(((Y31+Q31+U31)-'Form 2SFS'!I51),0)=0,\"TRUE\",\"FALSE\"),IF(ROUND(((Y31+Q31+U31)-'Form 2SFS'!M51),0)=0,\"TRUE\",\"FALSE\")))","v":"TRUE"},null,{"$f":"IF(SUM('Form 1SFS'!$F$100,'Form 1SFS'!$H$100)=0,IF(ROUND(((AA31+S31+W31)-'Form 2SFS'!O51),0)=0,\"TRUE\",\"FALSE\"),IF('Form 2SFS'!O51=0,IF(ROUND(((AA31+S31+W31)-'Form 2SFS'!K51),0)=0,\"TRUE\",\"FALSE\"),IF(ROUND(((AA31+S31+W31)-'Form 2SFS'!O51),0)=0,\"TRUE\",\"FALSE\")))","v":"TRUE"}]
[null,null,"Difference",null,null,null,null,null,null,null,null,null,{"$f":"IF(SUM('Form 1SFS'!$F$100,'Form 1SFS'!$H$100)=0,ROUND(('Form 2SFS'!M43-M31),0),IF('Form 2SFS'!M43=0,ROUND('Form 2SFS'!I43-M31,0),ROUND('Form 2SFS'!M43-M31,0)))","v":0},null,{"$f":"IF(SUM('Form 1SFS'!$F$100,'Form 1SFS'!$H$100)=0,ROUND(('Form 2SFS'!O43-O31),0),IF('Form 2SFS'!O43=0,ROUND('Form 2SFS'!K43-O31,0),ROUND('Form 2SFS'!O43-O31,0)))","v":0},null,null,null,null,null,null,null,null,null,{"$f":"IF(SUM('Form 1SFS'!$F$100,'Form 1SFS'!$H$100)=0,ROUND(('Form 2SFS'!M51-Y31-Q31-U31),0),IF('Form 2SFS'!M51=0,ROUND('Form 2SFS'!I51-Y31-Q31-U31,0),ROUND('Form 2SFS'!M51-Y31-Q31-U31,0)))","v":0},null,{"$f":"IF(SUM('Form 1SFS'!$F$100,'Form 1SFS'!$H$100)=0,ROUND(('Form 2SFS'!O51-AA31-S31-W31),0),IF('Form 2SFS'!O51=0,ROUND('Form 2SFS'!K51-AA31-S31-W31,0),ROUND('Form 2SFS'!O51-AA31-S31-W31,0)))","v":0}]
[]
[null,null,null,null,null,null,null,null,null,null,null,null,{"$f":"IF(M33=\"False\",\"Does not equal Form 2SFS Line 12(c)\",\"\")","v":""},null,{"$f":"IF(O33=\"False\",\"Does not equal Form 2SFS Line 12(c)\",\"\")","v":""},null,null,null,null,null,null,null,null,null,{"$f":"IF(Y33=\"False\",\"Does not equal Form 2SFS Line 14(d)\",\"\")","v":""},null,{"$f":"IF(AA33=\"False\",\"Does not equal Form 2SFS Line 14(d)\",\"\")","v":""}]
[]
[]
[null,null,null,null,{"$f":"IF(E9=\"\",\"\",TEXT(DATE(YEAR(E9+1)-1,MONTH(E9+1),DAY(E9+1)),\"mm/dd/yyyy\"))","v":"01/01/2019"},null,{"$f":"IF(G9=\"\",\"\",TEXT(DATE(YEAR(G9+1)-1,MONTH(G9+1),DAY(G9+1)),\"mm/dd/yyyy\"))","v":"01/01/2018"},null,{"$f":"IF(I9=\"\",\"\",TEXT(DATE(YEAR(I9+1)-1,MONTH(I9+1),DAY(I9+1)),\"mm/dd/yyyy\"))","v":"01/01/2019"},null,{"$f":"IF(K9=\"\",\"\",TEXT(DATE(YEAR(K9+1)-1,MONTH(K9+1),DAY(K9+1)),\"mm/dd/yyyy\"))","v":"01/01/2018"},null,{"$f":"IF(M9=\"\",\"\",TEXT(DATE(YEAR(M9+1)-1,MONTH(M9+1),DAY(M9+1)),\"mm/dd/yyyy\"))","v":"01/01/2019"},null,{"$f":"IF(O9=\"\",\"\",TEXT(DATE(YEAR(O9+1)-1,MONTH(O9+1),DAY(O9+1)),\"mm/dd/yyyy\"))","v":"01/01/2018"},null,{"$f":"IF(Q9=\"\",\"\",TEXT(DATE(YEAR(Q9+1)-1,MONTH(Q9+1),DAY(Q9+1)),\"mm/dd/yyyy\"))","v":"01/01/2019"},null,{"$f":"IF(S9=\"\",\"\",TEXT(DATE(YEAR(S9+1)-1,MONTH(S9+1),DAY(S9+1)),\"mm/dd/yyyy\"))","v":"01/01/2018"},null,{"$f":"IF(U9=\"\",\"\",TEXT(DATE(YEAR(U9+1)-1,MONTH(U9+1),DAY(U9+1)),\"mm/dd/yyyy\"))","v":"01/01/2019"},null,{"$f":"IF(W9=\"\",\"\",TEXT(DATE(YEAR(W9+1)-1,MONTH(W9+1),DAY(W9+1)),\"mm/dd/yyyy\"))","v":"01/01/2018"},null,{"$f":"IF(Y9=\"\",\"\",TEXT(DATE(YEAR(Y9+1)-1,MONTH(Y9+1),DAY(Y9+1)),\"mm/dd/yyyy\"))","v":"01/01/2019"},null,{"$f":"IF(AA9=\"\",\"\",TEXT(DATE(YEAR(AA9+1)-1,MONTH(AA9+1),DAY(AA9+1)),\"mm/dd/yyyy\"))","v":"01/01/2018"}]
[null,null,null,null,{"$f":"IF(E9=\"\",\"\",TEXT(E9,\"mm/dd/yyyy\"))","v":"12/31/2019"},null,{"$f":"IF(G9=\"\",\"\",TEXT(G9,\"mm/dd/yyyy\"))","v":"12/31/2018"},null,{"$f":"IF(I9=\"\",\"\",TEXT(I9,\"mm/dd/yyyy\"))","v":"12/31/2019"},null,{"$f":"IF(K9=\"\",\"\",TEXT(K9,\"mm/dd/yyyy\"))","v":"12/31/2018"},null,{"$f":"IF(M9=\"\",\"\",TEXT(M9,\"mm/dd/yyyy\"))","v":"12/31/2019"},null,{"$f":"IF(O9=\"\",\"\",TEXT(O9,\"mm/dd/yyyy\"))","v":"12/31/2018"},null,{"$f":"IF(Q9=\"\",\"\",TEXT(Q9,\"mm/dd/yyyy\"))","v":"12/31/2019"},null,{"$f":"IF(S9=\"\",\"\",TEXT(S9,\"mm/dd/yyyy\"))","v":"12/31/2018"},null,{"$f":"IF(U9=\"\",\"\",TEXT(U9,\"mm/dd/yyyy\"))","v":"12/31/2019"},null,{"$f":"IF(W9=\"\",\"\",TEXT(W9,\"mm/dd/yyyy\"))","v":"12/31/2018"},null,{"$f":"IF(Y9=\"\",\"\",TEXT(Y9,\"mm/dd/yyyy\"))","v":"12/31/2019"},null,{"$f":"IF(AA9=\"\",\"\",TEXT(AA9,\"mm/dd/yyyy\"))","v":"12/31/2018"}]
[null,null,null,null,"brrt_GrossPremiumsAndOtherConsiderations",null,"brrt_GrossPremiumsAndOtherConsiderations",null,"brrt_GrossPremiumsAndOtherConsiderations",null,"brrt_GrossPremiumsAndOtherConsiderations",null,"brrt_GrossPremiumsAndOtherConsiderations",null,"brrt_GrossPremiumsAndOtherConsiderations",null,"brrt_NetPremiumsAndOtherConsiderationsBenefitPeriodLessThanTwoYears",null,"brrt_NetPremiumsAndOtherConsiderationsBenefitPeriodLessThanTwoYears",null,"brrt_NetPremiumsAndOtherConsiderationsBenefitPeriodGreaterThanTwoYears",null,"brrt_NetPremiumsAndOtherConsiderationsBenefitPeriodGreaterThanTwoYears",null,"brrt_NetPremiumsAndOtherConsiderations",null,"brrt_NetPremiumsAndOtherConsiderations"]
[null,null,null,null,"brrt_TypeOfBusinessAxis_brrt_UnrelatedMember",null,"brrt_TypeOfBusinessAxis_brrt_UnrelatedMember",null,"brrt_TypeOfBusinessAxis_brrt_RelatedMember",null,"brrt_TypeOfBusinessAxis_brrt_RelatedMember",null,"brrt_TypeOfBusinessAxis_brrt_TotalMember",null,"brrt_TypeOfBusinessAxis_brrt_TotalMember"]
[null,null,null,null,{"$f":"XBRLMap(E12,E$42&\".\"&E$43&\".\"&$AC12,E$40,E$41,CONFIGURATION!$B$10,\"BMA\",CONFIGURATION!$B$1,\"bscr\",CONFIGURATION!$B$12)","v":"Mapped"},null,{"$f":"XBRLMap(G12,G$42&\".\"&G$43&\".\"&$AC12,G$40,G$41,CONFIGURATION!$B$10,\"BMA\",CONFIGURATION!$B$1,\"bscr\",CONFIGURATION!$B$12)","v":"Mapped"},null,{"$f":"XBRLMap(I12,I$42&\".\"&I$43&\".\"&$AC12,I$40,I$41,CONFIGURATION!$B$10,\"BMA\",CONFIGURATION!$B$1,\"bscr\",CONFIGURATION!$B$12)","v":"Mapped"},null,{"$f":"XBRLMap(K12,K$42&\".\"&K$43&\".\"&$AC12,K$40,K$41,CONFIGURATION!$B$10,\"BMA\",CONFIGURATION!$B$1,\"bscr\",CONFIGURATION!$B$12)","v":"Mapped"},null,{"$f":"XBRLMap(M12,M$42&\".\"&M$43&\".\"&$AC12,M$40,M$41,CONFIGURATION!$B$10,\"BMA\",CONFIGURATION!$B$1,\"bscr\",CONFIGURATION!$B$12)","v":"Mapped"},null,{"$f":"XBRLMap(O12,O$42&\".\"&O$43&\".\"&$AC12,O$40,O$41,CONFIGURATION!$B$10,\"BMA\",CONFIGURATION!$B$1,\"bscr\",CONFIGURATION!$B$12)","v":"Mapped"},null,null,null,null,null,null,null,null,null,{"$f":"XBRLMap(Y12,Y$42&\".\"&$AC12,Y$40,Y$41,CONFIGURATION!$B$10,\"BMA\",CONFIGURATION!$B$1,\"bscr\",CONFIGURATION!$B$12)","v":"Mapped"},null,{"$f":"XBRLMap(AA12,AA$42&\".\"&$AC12,AA$40,AA$41,CONFIGURATION!$B$10,\"BMA\",CONFIGURATION!$B$1,\"bscr\",CONFIGURATION!$B$12)","v":"Mapped"}]
[null,null,null,null,{"$f":"XBRLMap(E13,E$42&\".\"&E$43&\".\"&$AC13,E$40,E$41,CONFIGURATION!$B$10,\"BMA\",CONFIGURATION!$B$1,\"bscr\",CONFIGURATION!$B$12)","v":"Mapped"},null,{"$f":"XBRLMap(G13,G$42&\".\"&G$43&\".\"&$AC13,G$40,G$41,CONFIGURATION!$B$10,\"BMA\",CONFIGURATION!$B$1,\"bscr\",CONFIGURATION!$B$12)","v":"Mapped"},null,{"$f":"XBRLMap(I13,I$42&\".\"&I$43&\".\"&$AC13,I$40,I$41,CONFIGURATION!$B$10,\"BMA\",CONFIGURATION!$B$1,\"bscr\",CONFIGURATION!$B$12)","v":"Mapped"},null,{"$f":"XBRLMap(K13,K$42&\".\"&K$43&\".\"&$AC13,K$40,K$41,CONFIGURATION!$B$10,\"BMA\",CONFIGURATION!$B$1,\"bscr\",CONFIGURATION!$B$12)","v":"Mapped"},null,{"$f":"XBRLMap(M13,M$42&\".\"&M$43&\".\"&$AC13,M$40,M$41,CONFIGURATION!$B$10,\"BMA\",CONFIGURATION!$B$1,\"bscr\",CONFIGURATION!$B$12)","v":"Mapped"},null,{"$f":"XBRLMap(O13,O$42&\".\"&O$43&\".\"&$AC13,O$40,O$41,CONFIGURATION!$B$10,\"BMA\",CONFIGURATION!$B$1,\"bscr\",CONFIGURATION!$B$12)","v":"Mapped"},null,null,null,null,null,null,null,null,null,{"$f":"XBRLMap(Y13,Y$42&\".\"&$AC13,Y$40,Y$41,CONFIGURATION!$B$10,\"BMA\",CONFIGURATION!$B$1,\"bscr\",CONFIGURATION!$B$12)","v":"Mapped"},null,{"$f":"XBRLMap(AA13,AA$42&\".\"&$AC13,AA$40,AA$41,CONFIGURATION!$B$10,\"BMA\",CONFIGURATION!$B$1,\"bscr\",CONFIGURATION!$B$12)","v":"Mapped"}]
[null,null,null,null,{"$f":"XBRLMap(E14,E$42&\".\"&E$43&\".\"&$AC14,E$40,E$41,CONFIGURATION!$B$10,\"BMA\",CONFIGURATION!$B$1,\"bscr\",CONFIGURATION!$B$12)","v":"Mapped"},null,{"$f":"XBRLMap(G14,G$42&\".\"&G$43&\".\"&$AC14,G$40,G$41,CONFIGURATION!$B$10,\"BMA\",CONFIGURATION!$B$1,\"bscr\",CONFIGURATION!$B$12)","v":"Mapped"},null,{"$f":"XBRLMap(I14,I$42&\".\"&I$43&\".\"&$AC14,I$40,I$41,CONFIGURATION!$B$10,\"BMA\",CONFIGURATION!$B$1,\"bscr\",CONFIGURATION!$B$12)","v":"Mapped"},null,{"$f":"XBRLMap(K14,K$42&\".\"&K$43&\".\"&$AC14,K$40,K$41,CONFIGURATION!$B$10,\"BMA\",CONFIGURATION!$B$1,\"bscr\",CONFIGURATION!$B$12)","v":"Mapped"},null,{"$f":"XBRLMap(M14,M$42&\".\"&M$43&\".\"&$AC14,M$40,M$41,CONFIGURATION!$B$10,\"BMA\",CONFIGURATION!$B$1,\"bscr\",CONFIGURATION!$B$12)","v":"Mapped"},null,{"$f":"XBRLMap(O14,O$42&\".\"&O$43&\".\"&$AC14,O$40,O$41,CONFIGURATION!$B$10,\"BMA\",CONFIGURATION!$B$1,\"bscr\",CONFIGURATION!$B$12)","v":"Mapped"},null,null,null,null,null,null,null,null,null,{"$f":"XBRLMap(Y14,Y$42&\".\"&$AC14,Y$40,Y$41,CONFIGURATION!$B$10,\"BMA\",CONFIGURATION!$B$1,\"bscr\",CONFIGURATION!$B$12)","v":"Mapped"},null,{"$f":"XBRLMap(AA14,AA$42&\".\"&$AC14,AA$40,AA$41,CONFIGURATION!$B$10,\"BMA\",CONFIGURATION!$B$1,\"bscr\",CONFIGURATION!$B$12)","v":"Mapped"}]
[null,null,null,null,{"$f":"XBRLMap(E15,E$42&\".\"&E$43&\".\"&$AC15,E$40,E$41,CONFIGURATION!$B$10,\"BMA\",CONFIGURATION!$B$1,\"bscr\",CONFIGURATION!$B$12)","v":"Mapped"},null,{"$f":"XBRLMap(G15,G$42&\".\"&G$43&\".\"&$AC15,G$40,G$41,CONFIGURATION!$B$10,\"BMA\",CONFIGURATION!$B$1,\"bscr\",CONFIGURATION!$B$12)","v":"Mapped"},null,{"$f":"XBRLMap(I15,I$42&\".\"&I$43&\".\"&$AC15,I$40,I$41,CONFIGURATION!$B$10,\"BMA\",CONFIGURATION!$B$1,\"bscr\",CONFIGURATION!$B$12)","v":"Mapped"},null,{"$f":"XBRLMap(K15,K$42&\".\"&K$43&\".\"&$AC15,K$40,K$41,CONFIGURATION!$B$10,\"BMA\",CONFIGURATION!$B$1,\"bscr\",CONFIGURATION!$B$12)","v":"Mapped"},null,{"$f":"XBRLMap(M15,M$42&\".\"&M$43&\".\"&$AC15,M$40,M$41,CONFIGURATION!$B$10,\"BMA\",CONFIGURATION!$B$1,\"bscr\",CONFIGURATION!$B$12)","v":"Mapped"},null,{"$f":"XBRLMap(O15,O$42&\".\"&O$43&\".\"&$AC15,O$40,O$41,CONFIGURATION!$B$10,\"BMA\",CONFIGURATION!$B$1,\"bscr\",CONFIGURATION!$B$12)","v":"Mapped"},null,null,null,null,null,null,null,null,null,{"$f":"XBRLMap(Y15,Y$42&\".\"&$AC15,Y$40,Y$41,CONFIGURATION!$B$10,\"BMA\",CONFIGURATION!$B$1,\"bscr\",CONFIGURATION!$B$12)","v":"Mapped"},null,{"$f":"XBRLMap(AA15,AA$42&\".\"&$AC15,AA$40,AA$41,CONFIGURATION!$B$10,\"BMA\",CONFIGURATION!$B$1,\"bscr\",CONFIGURATION!$B$12)","v":"Mapped"}]
[]
[]
[null,null,null,null,{"$f":"XBRLMap(E17,E$42&\".\"&E$43&\".\"&$AC17,E$40,E$41,CONFIGURATION!$B$10,\"BMA\",CONFIGURATION!$B$1,\"bscr\",CONFIGURATION!$B$12)","v":"Mapped"},null,{"$f":"XBRLMap(G17,G$42&\".\"&G$43&\".\"&$AC17,G$40,G$41,CONFIGURATION!$B$10,\"BMA\",CONFIGURATION!$B$1,\"bscr\",CONFIGURATION!$B$12)","v":"Mapped"},null,{"$f":"XBRLMap(I17,I$42&\".\"&I$43&\".\"&$AC17,I$40,I$41,CONFIGURATION!$B$10,\"BMA\",CONFIGURATION!$B$1,\"bscr\",CONFIGURATION!$B$12)","v":"Mapped"},null,{"$f":"XBRLMap(K17,K$42&\".\"&K$43&\".\"&$AC17,K$40,K$41,CONFIGURATION!$B$10,\"BMA\",CONFIGURATION!$B$1,\"bscr\",CONFIGURATION!$B$12)","v":"Mapped"},null,{"$f":"XBRLMap(M17,M$42&\".\"&M$43&\".\"&$AC17,M$40,M$41,CONFIGURATION!$B$10,\"BMA\",CONFIGURATION!$B$1,\"bscr\",CONFIGURATION!$B$12)","v":"Mapped"},null,{"$f":"XBRLMap(O17,O$42&\".\"&O$43&\".\"&$AC17,O$40,O$41,CONFIGURATION!$B$10,\"BMA\",CONFIGURATION!$B$1,\"bscr\",CONFIGURATION!$B$12)","v":"Mapped"},null,{"$f":"XBRLMap(Q17,Q$42&\".\"&$AC17,Q$40,Q$41,CONFIGURATION!$B$10,\"BMA\",CONFIGURATION!$B$1,\"bscr\",CONFIGURATION!$B$12)","v":"Mapped"},null,{"$f":"XBRLMap(S17,S$42&\".\"&$AC17,S$40,S$41,CONFIGURATION!$B$10,\"BMA\",CONFIGURATION!$B$1,\"bscr\",CONFIGURATION!$B$12)","v":"Mapped"},null,{"$f":"XBRLMap(U17,U$42&\".\"&$AC17,U$40,U$41,CONFIGURATION!$B$10,\"BMA\",CONFIGURATION!$B$1,\"bscr\",CONFIGURATION!$B$12)","v":"Mapped"},null,{"$f":"XBRLMap(W17,W$42&\".\"&$AC17,W$40,W$41,CONFIGURATION!$B$10,\"BMA\",CONFIGURATION!$B$1,\"bscr\",CONFIGURATION!$B$12)","v":"Mapped"}]
[null,null,null,null,{"$f":"XBRLMap(E18,E$42&\".\"&E$43&\".\"&$AC18,E$40,E$41,CONFIGURATION!$B$10,\"BMA\",CONFIGURATION!$B$1,\"bscr\",CONFIGURATION!$B$12)","v":"Mapped"},null,{"$f":"XBRLMap(G18,G$42&\".\"&G$43&\".\"&$AC18,G$40,G$41,CONFIGURATION!$B$10,\"BMA\",CONFIGURATION!$B$1,\"bscr\",CONFIGURATION!$B$12)","v":"Mapped"},null,{"$f":"XBRLMap(I18,I$42&\".\"&I$43&\".\"&$AC18,I$40,I$41,CONFIGURATION!$B$10,\"BMA\",CONFIGURATION!$B$1,\"bscr\",CONFIGURATION!$B$12)","v":"Mapped"},null,{"$f":"XBRLMap(K18,K$42&\".\"&K$43&\".\"&$AC18,K$40,K$41,CONFIGURATION!$B$10,\"BMA\",CONFIGURATION!$B$1,\"bscr\",CONFIGURATION!$B$12)","v":"Mapped"},null,{"$f":"XBRLMap(M18,M$42&\".\"&M$43&\".\"&$AC18,M$40,M$41,CONFIGURATION!$B$10,\"BMA\",CONFIGURATION!$B$1,\"bscr\",CONFIGURATION!$B$12)","v":"Mapped"},null,{"$f":"XBRLMap(O18,O$42&\".\"&O$43&\".\"&$AC18,O$40,O$41,CONFIGURATION!$B$10,\"BMA\",CONFIGURATION!$B$1,\"bscr\",CONFIGURATION!$B$12)","v":"Mapped"},null,{"$f":"XBRLMap(Q18,Q$42&\".\"&$AC18,Q$40,Q$41,CONFIGURATION!$B$10,\"BMA\",CONFIGURATION!$B$1,\"bscr\",CONFIGURATION!$B$12)","v":"Mapped"},null,{"$f":"XBRLMap(S18,S$42&\".\"&$AC18,S$40,S$41,CONFIGURATION!$B$10,\"BMA\",CONFIGURATION!$B$1,\"bscr\",CONFIGURATION!$B$12)","v":"Mapped"},null,{"$f":"XBRLMap(U18,U$42&\".\"&$AC18,U$40,U$41,CONFIGURATION!$B$10,\"BMA\",CONFIGURATION!$B$1,\"bscr\",CONFIGURATION!$B$12)","v":"Mapped"},null,{"$f":"XBRLMap(W18,W$42&\".\"&$AC18,W$40,W$41,CONFIGURATION!$B$10,\"BMA\",CONFIGURATION!$B$1,\"bscr\",CONFIGURATION!$B$12)","v":"Mapped"}]
[null,null,null,null,{"$f":"XBRLMap(E19,E$42&\".\"&E$43&\".\"&$AC19,E$40,E$41,CONFIGURATION!$B$10,\"BMA\",CONFIGURATION!$B$1,\"bscr\",CONFIGURATION!$B$12)","v":"Mapped"},null,{"$f":"XBRLMap(G19,G$42&\".\"&G$43&\".\"&$AC19,G$40,G$41,CONFIGURATION!$B$10,\"BMA\",CONFIGURATION!$B$1,\"bscr\",CONFIGURATION!$B$12)","v":"Mapped"},null,{"$f":"XBRLMap(I19,I$42&\".\"&I$43&\".\"&$AC19,I$40,I$41,CONFIGURATION!$B$10,\"BMA\",CONFIGURATION!$B$1,\"bscr\",CONFIGURATION!$B$12)","v":"Mapped"},null,{"$f":"XBRLMap(K19,K$42&\".\"&K$43&\".\"&$AC19,K$40,K$41,CONFIGURATION!$B$10,\"BMA\",CONFIGURATION!$B$1,\"bscr\",CONFIGURATION!$B$12)","v":"Mapped"},null,{"$f":"XBRLMap(M19,M$42&\".\"&M$43&\".\"&$AC19,M$40,M$41,CONFIGURATION!$B$10,\"BMA\",CONFIGURATION!$B$1,\"bscr\",CONFIGURATION!$B$12)","v":"Mapped"},null,{"$f":"XBRLMap(O19,O$42&\".\"&O$43&\".\"&$AC19,O$40,O$41,CONFIGURATION!$B$10,\"BMA\",CONFIGURATION!$B$1,\"bscr\",CONFIGURATION!$B$12)","v":"Mapped"},null,{"$f":"XBRLMap(Q19,Q$42&\".\"&$AC19,Q$40,Q$41,CONFIGURATION!$B$10,\"BMA\",CONFIGURATION!$B$1,\"bscr\",CONFIGURATION!$B$12)","v":"Mapped"},null,{"$f":"XBRLMap(S19,S$42&\".\"&$AC19,S$40,S$41,CONFIGURATION!$B$10,\"BMA\",CONFIGURATION!$B$1,\"bscr\",CONFIGURATION!$B$12)","v":"Mapped"},null,{"$f":"XBRLMap(U19,U$42&\".\"&$AC19,U$40,U$41,CONFIGURATION!$B$10,\"BMA\",CONFIGURATION!$B$1,\"bscr\",CONFIGURATION!$B$12)","v":"Mapped"},null,{"$f":"XBRLMap(W19,W$42&\".\"&$AC19,W$40,W$41,CONFIGURATION!$B$10,\"BMA\",CONFIGURATION!$B$1,\"bscr\",CONFIGURATION!$B$12)","v":"Mapped"}]
[null,null,null,null,{"$f":"XBRLMap(E20,E$42&\".\"&E$43&\".\"&$AC20,E$40,E$41,CONFIGURATION!$B$10,\"BMA\",CONFIGURATION!$B$1,\"bscr\",CONFIGURATION!$B$12)","v":"Mapped"},null,{"$f":"XBRLMap(G20,G$42&\".\"&G$43&\".\"&$AC20,G$40,G$41,CONFIGURATION!$B$10,\"BMA\",CONFIGURATION!$B$1,\"bscr\",CONFIGURATION!$B$12)","v":"Mapped"},null,{"$f":"XBRLMap(I20,I$42&\".\"&I$43&\".\"&$AC20,I$40,I$41,CONFIGURATION!$B$10,\"BMA\",CONFIGURATION!$B$1,\"bscr\",CONFIGURATION!$B$12)","v":"Mapped"},null,{"$f":"XBRLMap(K20,K$42&\".\"&K$43&\".\"&$AC20,K$40,K$41,CONFIGURATION!$B$10,\"BMA\",CONFIGURATION!$B$1,\"bscr\",CONFIGURATION!$B$12)","v":"Mapped"},null,{"$f":"XBRLMap(M20,M$42&\".\"&M$43&\".\"&$AC20,M$40,M$41,CONFIGURATION!$B$10,\"BMA\",CONFIGURATION!$B$1,\"bscr\",CONFIGURATION!$B$12)","v":"Mapped"},null,{"$f":"XBRLMap(O20,O$42&\".\"&O$43&\".\"&$AC20,O$40,O$41,CONFIGURATION!$B$10,\"BMA\",CONFIGURATION!$B$1,\"bscr\",CONFIGURATION!$B$12)","v":"Mapped"},null,null,null,null,null,null,null,null,null,{"$f":"XBRLMap(Y20,Y$42&\".\"&$AC20,Y$40,Y$41,CONFIGURATION!$B$10,\"BMA\",CONFIGURATION!$B$1,\"bscr\",CONFIGURATION!$B$12)","v":"Mapped"},null,{"$f":"XBRLMap(AA20,AA$42&\".\"&$AC20,AA$40,AA$41,CONFIGURATION!$B$10,\"BMA\",CONFIGURATION!$B$1,\"bscr\",CONFIGURATION!$B$12)","v":"Mapped"}]
[]
[null,null,null,null,{"$f":"XBRLMap(E22,E$42&\".\"&E$43&\".\"&$AC22,E$40,E$41,CONFIGURATION!$B$10,\"BMA\",CONFIGURATION!$B$1,\"bscr\",CONFIGURATION!$B$12)","v":"Mapped"},null,{"$f":"XBRLMap(G22,G$42&\".\"&G$43&\".\"&$AC22,G$40,G$41,CONFIGURATION!$B$10,\"BMA\",CONFIGURATION!$B$1,\"bscr\",CONFIGURATION!$B$12)","v":"Mapped"},null,{"$f":"XBRLMap(I22,I$42&\".\"&I$43&\".\"&$AC22,I$40,I$41,CONFIGURATION!$B$10,\"BMA\",CONFIGURATION!$B$1,\"bscr\",CONFIGURATION!$B$12)","v":"Mapped"},null,{"$f":"XBRLMap(K22,K$42&\".\"&K$43&\".\"&$AC22,K$40,K$41,CONFIGURATION!$B$10,\"BMA\",CONFIGURATION!$B$1,\"bscr\",CONFIGURATION!$B$12)","v":"Mapped"},null,{"$f":"XBRLMap(M22,M$42&\".\"&M$43&\".\"&$AC22,M$40,M$41,CONFIGURATION!$B$10,\"BMA\",CONFIGURATION!$B$1,\"bscr\",CONFIGURATION!$B$12)","v":"Mapped"},null,{"$f":"XBRLMap(O22,O$42&\".\"&O$43&\".\"&$AC22,O$40,O$41,CONFIGURATION!$B$10,\"BMA\",CONFIGURATION!$B$1,\"bscr\",CONFIGURATION!$B$12)","v":"Mapped"},null,null,null,null,null,null,null,null,null,{"$f":"XBRLMap(Y22,Y$42&\".\"&$AC22,Y$40,Y$41,CONFIGURATION!$B$10,\"BMA\",CONFIGURATION!$B$1,\"bscr\",CONFIGURATION!$B$12)","v":"Mapped"},null,{"$f":"XBRLMap(AA22,AA$42&\".\"&$AC22,AA$40,AA$41,CONFIGURATION!$B$10,\"BMA\",CONFIGURATION!$B$1,\"bscr\",CONFIGURATION!$B$12)","v":"Mapped"}]
[null,null,null,null,{"$f":"XBRLMap(E23,E$42&\".\"&E$43&\".\"&$AC23,E$40,E$41,CONFIGURATION!$B$10,\"BMA\",CONFIGURATION!$B$1,\"bscr\",CONFIGURATION!$B$12)","v":"Mapped"},null,{"$f":"XBRLMap(G23,G$42&\".\"&G$43&\".\"&$AC23,G$40,G$41,CONFIGURATION!$B$10,\"BMA\",CONFIGURATION!$B$1,\"bscr\",CONFIGURATION!$B$12)","v":"Mapped"},null,{"$f":"XBRLMap(I23,I$42&\".\"&I$43&\".\"&$AC23,I$40,I$41,CONFIGURATION!$B$10,\"BMA\",CONFIGURATION!$B$1,\"bscr\",CONFIGURATION!$B$12)","v":"Mapped"},null,{"$f":"XBRLMap(K23,K$42&\".\"&K$43&\".\"&$AC23,K$40,K$41,CONFIGURATION!$B$10,\"BMA\",CONFIGURATION!$B$1,\"bscr\",CONFIGURATION!$B$12)","v":"Mapped"},null,{"$f":"XBRLMap(M23,M$42&\".\"&M$43&\".\"&$AC23,M$40,M$41,CONFIGURATION!$B$10,\"BMA\",CONFIGURATION!$B$1,\"bscr\",CONFIGURATION!$B$12)","v":"Mapped"},null,{"$f":"XBRLMap(O23,O$42&\".\"&O$43&\".\"&$AC23,O$40,O$41,CONFIGURATION!$B$10,\"BMA\",CONFIGURATION!$B$1,\"bscr\",CONFIGURATION!$B$12)","v":"Mapped"},null,null,null,null,null,null,null,null,null,{"$f":"XBRLMap(Y23,Y$42&\".\"&$AC23,Y$40,Y$41,CONFIGURATION!$B$10,\"BMA\",CONFIGURATION!$B$1,\"bscr\",CONFIGURATION!$B$12)","v":"Mapped"},null,{"$f":"XBRLMap(AA23,AA$42&\".\"&$AC23,AA$40,AA$41,CONFIGURATION!$B$10,\"BMA\",CONFIGURATION!$B$1,\"bscr\",CONFIGURATION!$B$12)","v":"Mapped"}]
[]
[null,null,null,null,{"$f":"XBRLMap(E25,E$42&\".\"&E$43&\".\"&$AC25,E$40,E$41,CONFIGURATION!$B$10,\"BMA\",CONFIGURATION!$B$1,\"bscr\",CONFIGURATION!$B$12)","v":"Mapped"},null,{"$f":"XBRLMap(G25,G$42&\".\"&G$43&\".\"&$AC25,G$40,G$41,CONFIGURATION!$B$10,\"BMA\",CONFIGURATION!$B$1,\"bscr\",CONFIGURATION!$B$12)","v":"Mapped"},null,{"$f":"XBRLMap(I25,I$42&\".\"&I$43&\".\"&$AC25,I$40,I$41,CONFIGURATION!$B$10,\"BMA\",CONFIGURATION!$B$1,\"bscr\",CONFIGURATION!$B$12)","v":"Mapped"},null,{"$f":"XBRLMap(K25,K$42&\".\"&K$43&\".\"&$AC25,K$40,K$41,CONFIGURATION!$B$10,\"BMA\",CONFIGURATION!$B$1,\"bscr\",CONFIGURATION!$B$12)","v":"Mapped"},null,{"$f":"XBRLMap(M25,M$42&\".\"&M$43&\".\"&$AC25,M$40,M$41,CONFIGURATION!$B$10,\"BMA\",CONFIGURATION!$B$1,\"bscr\",CONFIGURATION!$B$12)","v":"Mapped"},null,{"$f":"XBRLMap(O25,O$42&\".\"&O$43&\".\"&$AC25,O$40,O$41,CONFIGURATION!$B$10,\"BMA\",CONFIGURATION!$B$1,\"bscr\",CONFIGURATION!$B$12)","v":"Mapped"},null,null,null,null,null,null,null,null,null,{"$f":"XBRLMap(Y25,Y$42&\".\"&$AC25,Y$40,Y$41,CONFIGURATION!$B$10,\"BMA\",CONFIGURATION!$B$1,\"bscr\",CONFIGURATION!$B$12)","v":"Mapped"},null,{"$f":"XBRLMap(AA25,AA$42&\".\"&$AC25,AA$40,AA$41,CONFIGURATION!$B$10,\"BMA\",CONFIGURATION!$B$1,\"bscr\",CONFIGURATION!$B$12)","v":"Mapped"}]
[null,null,null,null,{"$f":"XBRLMap(E26,E$42&\".\"&E$43&\".\"&$AC26,E$40,E$41,CONFIGURATION!$B$10,\"BMA\",CONFIGURATION!$B$1,\"bscr\",CONFIGURATION!$B$12)","v":"Mapped"},null,{"$f":"XBRLMap(G26,G$42&\".\"&G$43&\".\"&$AC26,G$40,G$41,CONFIGURATION!$B$10,\"BMA\",CONFIGURATION!$B$1,\"bscr\",CONFIGURATION!$B$12)","v":"Mapped"},null,{"$f":"XBRLMap(I26,I$42&\".\"&I$43&\".\"&$AC26,I$40,I$41,CONFIGURATION!$B$10,\"BMA\",CONFIGURATION!$B$1,\"bscr\",CONFIGURATION!$B$12)","v":"Mapped"},null,{"$f":"XBRLMap(K26,K$42&\".\"&K$43&\".\"&$AC26,K$40,K$41,CONFIGURATION!$B$10,\"BMA\",CONFIGURATION!$B$1,\"bscr\",CONFIGURATION!$B$12)","v":"Mapped"},null,{"$f":"XBRLMap(M26,M$42&\".\"&M$43&\".\"&$AC26,M$40,M$41,CONFIGURATION!$B$10,\"BMA\",CONFIGURATION!$B$1,\"bscr\",CONFIGURATION!$B$12)","v":"Mapped"},null,{"$f":"XBRLMap(O26,O$42&\".\"&O$43&\".\"&$AC26,O$40,O$41,CONFIGURATION!$B$10,\"BMA\",CONFIGURATION!$B$1,\"bscr\",CONFIGURATION!$B$12)","v":"Mapped"},null,null,null,null,null,null,null,null,null,{"$f":"XBRLMap(Y26,Y$42&\".\"&$AC26,Y$40,Y$41,CONFIGURATION!$B$10,\"BMA\",CONFIGURATION!$B$1,\"bscr\",CONFIGURATION!$B$12)","v":"Mapped"},null,{"$f":"XBRLMap(AA26,AA$42&\".\"&$AC26,AA$40,AA$41,CONFIGURATION!$B$10,\"BMA\",CONFIGURATION!$B$1,\"bscr\",CONFIGURATION!$B$12)","v":"Mapped"}]
[null,null,null,null,{"$f":"XBRLMap(E27,E$42&\".\"&E$43&\".\"&$AC27,E$40,E$41,CONFIGURATION!$B$10,\"BMA\",CONFIGURATION!$B$1,\"bscr\",CONFIGURATION!$B$12)","v":"Mapped"},null,{"$f":"XBRLMap(G27,G$42&\".\"&G$43&\".\"&$AC27,G$40,G$41,CONFIGURATION!$B$10,\"BMA\",CONFIGURATION!$B$1,\"bscr\",CONFIGURATION!$B$12)","v":"Mapped"},null,{"$f":"XBRLMap(I27,I$42&\".\"&I$43&\".\"&$AC27,I$40,I$41,CONFIGURATION!$B$10,\"BMA\",CONFIGURATION!$B$1,\"bscr\",CONFIGURATION!$B$12)","v":"Mapped"},null,{"$f":"XBRLMap(K27,K$42&\".\"&K$43&\".\"&$AC27,K$40,K$41,CONFIGURATION!$B$10,\"BMA\",CONFIGURATION!$B$1,\"bscr\",CONFIGURATION!$B$12)","v":"Mapped"},null,{"$f":"XBRLMap(M27,M$42&\".\"&M$43&\".\"&$AC27,M$40,M$41,CONFIGURATION!$B$10,\"BMA\",CONFIGURATION!$B$1,\"bscr\",CONFIGURATION!$B$12)","v":"Mapped"},null,{"$f":"XBRLMap(O27,O$42&\".\"&O$43&\".\"&$AC27,O$40,O$41,CONFIGURATION!$B$10,\"BMA\",CONFIGURATION!$B$1,\"bscr\",CONFIGURATION!$B$12)","v":"Mapped"},null,null,null,null,null,null,null,null,null,{"$f":"XBRLMap(Y27,Y$42&\".\"&$AC27,Y$40,Y$41,CONFIGURATION!$B$10,\"BMA\",CONFIGURATION!$B$1,\"bscr\",CONFIGURATION!$B$12)","v":"Mapped"},null,{"$f":"XBRLMap(AA27,AA$42&\".\"&$AC27,AA$40,AA$41,CONFIGURATION!$B$10,\"BMA\",CONFIGURATION!$B$1,\"bscr\",CONFIGURATION!$B$12)","v":"Mapped"}]
[null,null,null,null,{"$f":"XBRLMap(E28,E$42&\".\"&E$43&\".\"&$AC28,E$40,E$41,CONFIGURATION!$B$10,\"BMA\",CONFIGURATION!$B$1,\"bscr\",CONFIGURATION!$B$12)","v":"Mapped"},null,{"$f":"XBRLMap(G28,G$42&\".\"&G$43&\".\"&$AC28,G$40,G$41,CONFIGURATION!$B$10,\"BMA\",CONFIGURATION!$B$1,\"bscr\",CONFIGURATION!$B$12)","v":"Mapped"},null,{"$f":"XBRLMap(I28,I$42&\".\"&I$43&\".\"&$AC28,I$40,I$41,CONFIGURATION!$B$10,\"BMA\",CONFIGURATION!$B$1,\"bscr\",CONFIGURATION!$B$12)","v":"Mapped"},null,{"$f":"XBRLMap(K28,K$42&\".\"&K$43&\".\"&$AC28,K$40,K$41,CONFIGURATION!$B$10,\"BMA\",CONFIGURATION!$B$1,\"bscr\",CONFIGURATION!$B$12)","v":"Mapped"},null,{"$f":"XBRLMap(M28,M$42&\".\"&M$43&\".\"&$AC28,M$40,M$41,CONFIGURATION!$B$10,\"BMA\",CONFIGURATION!$B$1,\"bscr\",CONFIGURATION!$B$12)","v":"Mapped"},null,{"$f":"XBRLMap(O28,O$42&\".\"&O$43&\".\"&$AC28,O$40,O$41,CONFIGURATION!$B$10,\"BMA\",CONFIGURATION!$B$1,\"bscr\",CONFIGURATION!$B$12)","v":"Mapped"},null,null,null,null,null,null,null,null,null,{"$f":"XBRLMap(Y28,Y$42&\".\"&$AC28,Y$40,Y$41,CONFIGURATION!$B$10,\"BMA\",CONFIGURATION!$B$1,\"bscr\",CONFIGURATION!$B$12)","v":"Mapped"},null,{"$f":"XBRLMap(AA28,AA$42&\".\"&$AC28,AA$40,AA$41,CONFIGURATION!$B$10,\"BMA\",CONFIGURATION!$B$1,\"bscr\",CONFIGURATION!$B$12)","v":"Mapped"}]
[null,null,null,null,{"$f":"XBRLMap(E29,E$42&\".\"&E$43&\".\"&$AC29,E$40,E$41,CONFIGURATION!$B$10,\"BMA\",CONFIGURATION!$B$1,\"bscr\",CONFIGURATION!$B$12)","v":"Mapped"},null,{"$f":"XBRLMap(G29,G$42&\".\"&G$43&\".\"&$AC29,G$40,G$41,CONFIGURATION!$B$10,\"BMA\",CONFIGURATION!$B$1,\"bscr\",CONFIGURATION!$B$12)","v":"Mapped"},null,{"$f":"XBRLMap(I29,I$42&\".\"&I$43&\".\"&$AC29,I$40,I$41,CONFIGURATION!$B$10,\"BMA\",CONFIGURATION!$B$1,\"bscr\",CONFIGURATION!$B$12)","v":"Mapped"},null,{"$f":"XBRLMap(K29,K$42&\".\"&K$43&\".\"&$AC29,K$40,K$41,CONFIGURATION!$B$10,\"BMA\",CONFIGURATION!$B$1,\"bscr\",CONFIGURATION!$B$12)","v":"Mapped"},null,{"$f":"XBRLMap(M29,M$42&\".\"&M$43&\".\"&$AC29,M$40,M$41,CONFIGURATION!$B$10,\"BMA\",CONFIGURATION!$B$1,\"bscr\",CONFIGURATION!$B$12)","v":"Mapped"},null,{"$f":"XBRLMap(O29,O$42&\".\"&O$43&\".\"&$AC29,O$40,O$41,CONFIGURATION!$B$10,\"BMA\",CONFIGURATION!$B$1,\"bscr\",CONFIGURATION!$B$12)","v":"Mapped"},null,null,null,null,null,null,null,null,null,{"$f":"XBRLMap(Y29,Y$42&\".\"&$AC29,Y$40,Y$41,CONFIGURATION!$B$10,\"BMA\",CONFIGURATION!$B$1,\"bscr\",CONFIGURATION!$B$12)","v":"Mapped"},null,{"$f":"XBRLMap(AA29,AA$42&\".\"&$AC29,AA$40,AA$41,CONFIGURATION!$B$10,\"BMA\",CONFIGURATION!$B$1,\"bscr\",CONFIGURATION!$B$12)","v":"Mapped"}]
[null,null,null,null,{"$f":"XBRLMap(E30,E$42&\".\"&E$43&\".\"&$AC30,E$40,E$41,CONFIGURATION!$B$10,\"BMA\",CONFIGURATION!$B$1,\"bscr\",CONFIGURATION!$B$12)","v":"Mapped"},null,{"$f":"XBRLMap(G30,G$42&\".\"&G$43&\".\"&$AC30,G$40,G$41,CONFIGURATION!$B$10,\"BMA\",CONFIGURATION!$B$1,\"bscr\",CONFIGURATION!$B$12)","v":"Mapped"},null,{"$f":"XBRLMap(I30,I$42&\".\"&I$43&\".\"&$AC30,I$40,I$41,CONFIGURATION!$B$10,\"BMA\",CONFIGURATION!$B$1,\"bscr\",CONFIGURATION!$B$12)","v":"Mapped"},null,{"$f":"XBRLMap(K30,K$42&\".\"&K$43&\".\"&$AC30,K$40,K$41,CONFIGURATION!$B$10,\"BMA\",CONFIGURATION!$B$1,\"bscr\",CONFIGURATION!$B$12)","v":"Mapped"},null,{"$f":"XBRLMap(M30,M$42&\".\"&M$43&\".\"&$AC30,M$40,M$41,CONFIGURATION!$B$10,\"BMA\",CONFIGURATION!$B$1,\"bscr\",CONFIGURATION!$B$12)","v":"Mapped"},null,{"$f":"XBRLMap(O30,O$42&\".\"&O$43&\".\"&$AC30,O$40,O$41,CONFIGURATION!$B$10,\"BMA\",CONFIGURATION!$B$1,\"bscr\",CONFIGURATION!$B$12)","v":"Mapped"},null,null,null,null,null,null,null,null,null,{"$f":"XBRLMap(Y30,Y$42&\".\"&$AC30,Y$40,Y$41,CONFIGURATION!$B$10,\"BMA\",CONFIGURATION!$B$1,\"bscr\",CONFIGURATION!$B$12)","v":"Mapped"},null,{"$f":"XBRLMap(AA30,AA$42&\".\"&$AC30,AA$40,AA$41,CONFIGURATION!$B$10,\"BMA\",CONFIGURATION!$B$1,\"bscr\",CONFIGURATION!$B$12)","v":"Mapped"}]
[null,null,null,null,{"$f":"XBRLMap(E31,E$42&\".\"&E$43&\".\"&$AC31,E$40,E$41,CONFIGURATION!$B$10,\"BMA\",CONFIGURATION!$B$1,\"bscr\",CONFIGURATION!$B$12)","v":"Mapped"},null,{"$f":"XBRLMap(G31,G$42&\".\"&G$43&\".\"&$AC31,G$40,G$41,CONFIGURATION!$B$10,\"BMA\",CONFIGURATION!$B$1,\"bscr\",CONFIGURATION!$B$12)","v":"Mapped"},null,{"$f":"XBRLMap(I31,I$42&\".\"&I$43&\".\"&$AC31,I$40,I$41,CONFIGURATION!$B$10,\"BMA\",CONFIGURATION!$B$1,\"bscr\",CONFIGURATION!$B$12)","v":"Mapped"},null,{"$f":"XBRLMap(K31,K$42&\".\"&K$43&\".\"&$AC31,K$40,K$41,CONFIGURATION!$B$10,\"BMA\",CONFIGURATION!$B$1,\"bscr\",CONFIGURATION!$B$12)","v":"Mapped"},null,{"$f":"XBRLMap(M31,M$42&\".\"&M$43&\".\"&$AC31,M$40,M$41,CONFIGURATION!$B$10,\"BMA\",CONFIGURATION!$B$1,\"bscr\",CONFIGURATION!$B$12)","v":"Mapped"},null,{"$f":"XBRLMap(O31,O$42&\".\"&O$43&\".\"&$AC31,O$40,O$41,CONFIGURATION!$B$10,\"BMA\",CONFIGURATION!$B$1,\"bscr\",CONFIGURATION!$B$12)","v":"Mapped"},null,{"$f":"XBRLMap(Q31,Q$42&\".\"&$AC31,Q$40,Q$41,CONFIGURATION!$B$10,\"BMA\",CONFIGURATION!$B$1,\"bscr\",CONFIGURATION!$B$12)","v":"Mapped"},null,{"$f":"XBRLMap(S31,S$42&\".\"&$AC31,S$40,S$41,CONFIGURATION!$B$10,\"BMA\",CONFIGURATION!$B$1,\"bscr\",CONFIGURATION!$B$12)","v":"Mapped"},null,{"$f":"XBRLMap(U31,U$42&\".\"&$AC31,U$40,U$41,CONFIGURATION!$B$10,\"BMA\",CONFIGURATION!$B$1,\"bscr\",CONFIGURATION!$B$12)","v":"Mapped"},null,{"$f":"XBRLMap(W31,W$42&\".\"&$AC31,W$40,W$41,CONFIGURATION!$B$10,\"BMA\",CONFIGURATION!$B$1,\"bscr\",CONFIGURATION!$B$12)","v":"Mapped"},null,{"$f":"XBRLMap(Y31,Y$42&\".\"&$AC31,Y$40,Y$41,CONFIGURATION!$B$10,\"BMA\",CONFIGURATION!$B$1,\"bscr\",CONFIGURATION!$B$12)","v":"Mapped"},null,{"$f":"XBRLMap(AA31,AA$42&\".\"&$AC31,AA$40,AA$41,CONFIGURATION!$B$10,\"BMA\",CONFIGURATION!$B$1,\"bscr\",CONFIGURATION!$B$12)","v":"Mapped"}]

{"sheet":"Schedule V","index":37,"n_rows":47,"n_cols":19,"rows_kept":47,"cut":false,"hidden":false,"merged":[[4,7,4,8],[18,7,18,8],[28,5,28,6],[32,5,32,6],[27,5,27,6],[20,5,20,6],[6,7,6,8],[8,7,8,8],[10,7,10,8],[12,7,12,8],[14,7,14,8],[46,7,46,8],[30,7,30,8],[34,7,34,8],[42,7,42,8],[37,7,37,8],[38,7,38,8],[39,7,39,8],[40,7,40,8],[44,7,44,8],[44,2,44,4],[46,2,46,4],[2,3,3,5],[38,2,38,4],[37,2,37,4],[36,2,36,4],[39,2,39,4],[40,2,40,4],[10,2,10,4],[12,2,12,4],[14,2,14,4],[32,2,32,4],[28,2,28,4],[42,2,42,4],[24,2,25,5],[26,5,26,6]]}
[null,"SCHEDULE OF RISK MANAGEMENT",null,null,null,null,null,null,{"$f":"HYPERLINK(\"#'Index'!A1\",\"Return to Index\")","v":"Return to Index"}]
[null,{"$f":"'Insurer Information'!C7","v":"Enter Company Name"}]
[null,"For the year ending",{"$f":"'Insurer Information'!C3","v":"2019-12-31"},"Note if an insurer does not have any entities to consolidate, enter EBS Valuation information only \n(This cell is editable for deletion)",null,null,null,null,"SCHEDULE V"]
[null,{"$f":"\"expressed in\"& IF(CONFIGURATION!$B$12>1,\" ['\"&MID(CONFIGURATION!$B$12,2,LEN(CONFIGURATION!$B$12))&\"s]\",\"\")","v":"expressed in ['000s]"},{"$f":"'Form 4EBS'!C4","v":"United States Dollars"}]
[null,null,null,null,null,null,null,"EBS Valuation",null,null,null,{"$f":"IF(C3=\"\",\"\",TEXT(DATE(YEAR(C3+1)-1,MONTH(C3+1),DAY(C3+1)),\"mm/dd/yyyy\"))","v":"01/01/2019"}]
[null,null,null,null,null,null,null,null,null,null,null,{"$f":"IF(C3=\"\",\"\",TEXT(C3,\"mm/dd/yyyy\"))","v":"12/31/2019"},null,{"$f":"YEAR('Insurer Information'!C3)","v":2019}]
[null,"(a)","Governance and group structure",null,null,null,null,{"$f":"HYPERLINK(\"#'Schedule V(a)'!b1\",\"Refer to Schedule V(a)\")","v":"Refer to Schedule V(a)"},null,null,null,null,null,null,null,null,null,null,"bma_GovernanceStructure"]
[null,null,null,null,null,null,null,null,null,null,""]
[null,"(b)","Intra-group transactions that the insurer is a party to and the insurer's risk concentrations",null,null,null,null,{"$f":"HYPERLINK(\"#'Schedule V(c)'!b1\",\"Refer to Schedule V(c)\")","v":"Refer to Schedule V(c)"}]
[]
[null,"(d)","Effective duration of assets",null,null,null,null,{"$f":"Import!M656","v":0},null,null,"brrt_EffectiveDurationOfAssets",{"$f":"XBRLMap(H11,K11,$L$5,$L$6,CONFIGURATION!$B$10,\"BMA\",CONFIGURATION!$B$1,\"bscr\",CONFIGURATION!$B$12)","v":"Mapped"}]
[]
[null,"(e)","Effective duration of liabilities",null,null,null,null,{"$f":"Import!M657","v":0},null,null,"brrt_EffectiveDurationOfLiabilities",{"$f":"XBRLMap(H13,K13,$L$5,$L$6,CONFIGURATION!$B$10,\"BMA\",CONFIGURATION!$B$1,\"bscr\",CONFIGURATION!$B$12)","v":"Mapped"}]
[]
[null,"(f)","Weighted average of the difference in the asset duration and liability duration",null,null,null,null,{"$f":"Import!I658","v":0},null,null,"brrt_WeightedAverageOfTheDifferenceBetweenAssetsDurationAndLiabilitiesDurationWeightedByReportedReserves",{"$f":"XBRLMap(H15,K15,$L$5,$L$6,CONFIGURATION!$B$10,\"BMA\",CONFIGURATION!$B$1,\"bscr\",CONFIGURATION!$B$12)","v":"Mapped"}]
[null,null,null,null,null,null,null,"Doc Name","Page Number"]
[null,"(g)","Description of the effective duration of assets and liabilities calculations and key assumptions",null,null,{"$f":"HYPERLINK(\"#'Attachments'!G95\",\"Attach file\")","v":"Attach file"}]
[]
[null,{"$f":"IF('Insurer Information'!$F$9=\"Class C\",\"(g)\",\"(h)\")","v":"(h)"},"Reserves with known duration as a percentage of total reserves",null,null,null,null,{"$f":"Import!I659","v":0},null,null,"brrt_ReservesWithKnownDifferenceInDurationOrTotalReserves",{"$f":"XBRLMap(H19,K19,$L$5,$L$6,CONFIGURATION!$B$10,\"BMA\",CONFIGURATION!$B$1,\"bscr\",CONFIGURATION!$B$12)","v":"Mapped"}]
[null,null,null,null,null,null,null,"Doc Name","Page Number"]
[null,{"$f":"IF('Insurer Information'!$F$9=\"Class C\",\"(h)\",\"(i)\")","v":"(i)"},"Mutual fund disclosures",null,null,{"$f":"HYPERLINK(\"#'Attachments'!G125\",\"Attach file\")","v":"Attach file"}]
[]
[null,{"$f":"IF('Insurer Information'!$F$9=\"Class C\",\"(i)\",\"(j)\")","v":"(j)"},"Summary of projected performance —",null,null,null,null,"Insurer","Group",null,"",null,null,null,null,null,null,null,"bma_InvestmentPolicy"]
[null,null,"(i) the insurer’s latest estimate of new business premiums written",null,null,null,null,{"$f":"Import!I660","v":0},null,null,"brrt_EstimatedNewBusinessPremiumsWritten",{"$f":"XBRLMap(H24,K24,$L$5,$L$6,CONFIGURATION!$B$10,\"BMA\",CONFIGURATION!$B$1,\"bscr\",CONFIGURATION!$B$12)","v":"Mapped"}]
[null,null,"(ii) The estimated net income or loss for the insurer or on a group basis \nIf Group basis is provided, disclose the estimated percentage of the insurer’s contribution relative to the group;",null,null,null,null,{"$f":"Import!I662","v":0},{"$f":"Import!M661","v":0},null,"brrt_ProjectedNetIncomeOrLoss",{"$f":"XBRLMap(H25,K25,$L$5,$L$6,CONFIGURATION!$B$10,\"BMA\",CONFIGURATION!$B$1,\"bscr\",CONFIGURATION!$B$12)","v":"Mapped"}]
[null,null,null,null,null,null,null,null,{"$f":"Import!I661","v":0},null,"brrt_EstimatedPercentageOfContributionByInsurerRelativeToTheGroup",{"$f":"XBRLMap(H26,K26,$L$5,$L$6,CONFIGURATION!$B$10,\"BMA\",CONFIGURATION!$B$1,\"bscr\",CONFIGURATION!$B$12)","v":"Mapped"}]
[null,null,"(iii) A qualitative description of the insurer's business and underwriting strategy ",null,null,null,null,"Doc Name","Page Number"]
[null,null,null,null,null,{"$f":"HYPERLINK(\"#'Attachments'!G135\",\"Attach file\")","v":"Attach file"}]
[null,"(k)","Summary of product features and risks",null,null,{"$f":"HYPERLINK(\"#'Attachments'!G145\",\"Attach file\")","v":"Attach file"}]
[]
[null,{"$f":"IF('Insurer Information'!$F$9=\"Class C\",\"(j)\",\"(l)\")","v":"(l)"},"Financial impact and description of stress and scenario tests",null,null,null,null,{"$f":"HYPERLINK(\"#'Schedule V(e)'!b1\",\"Refer to Schedule V(e)\")","v":"Refer to Schedule V(e)"}]
[null,null,null,null,null,null,null,"Doc Name","Page Number"]
[null,"(m)","Investments and derivatives strategies and policy",null,null,{"$f":"HYPERLINK(\"#'Attachments'!G105\",\"Attach file\")","v":"Attach file"}]
[]
[null,{"$f":"IF('Insurer Information'!$F$9=\"Class C\",\"(k)\",\"(n)\")","v":"(n)"},"Modified co-insurance arrangements",null,null,null,null,{"$f":"HYPERLINK(\"#'Schedule V(f)'!b1\",\"Refer to Schedule V(f)\")","v":"Refer to Schedule V(f)"}]
[]
[null,{"$f":"IF('Insurer Information'!$F$9=\"Class C\",\"(l)\",\"(o)\")","v":"(o)"},"Deferred accumulation annuities disclosure"]
[null,null,"(a) Total reserves for deferred accumulation annuities",null,null,null,null,{"$f":"Import!I663","v":0},null,null,"brrt_ReservesForDeferredAccumulationAnnuities",{"$f":"XBRLMap(H38,K38,$L$5,$L$6,CONFIGURATION!$B$10,\"BMA\",CONFIGURATION!$B$1,\"bscr\",CONFIGURATION!$B$12)","v":"Mapped"}]
[null,null,"(b) Total reserves for deferred accumulation annuities with contractual guaranteed annuitisation rates",null,null,null,null,{"$f":"Import!I664","v":0},null,null,"brrt_ReservesForDeferredAccumulationAnnuitiesWithContractualGuaranteedAnnuitisationRates",{"$f":"XBRLMap(H39,K39,$L$5,$L$6,CONFIGURATION!$B$10,\"BMA\",CONFIGURATION!$B$1,\"bscr\",CONFIGURATION!$B$12)","v":"Mapped"}]
[null,null,"(c) Total reserves for deferred accumulation annuities annuitised in the past year at contractual guaranteed rates (prior to annuitisation)",null,null,null,null,{"$f":"Import!I665","v":0},null,null,"brrt_ReservesForDeferredAccumulationAnnuitiesAnnuitisedInThePastYearAtContractualGuaranteedRatesPriorToAnnuitisation",{"$f":"XBRLMap(H40,K40,$L$5,$L$6,CONFIGURATION!$B$10,\"BMA\",CONFIGURATION!$B$1,\"bscr\",CONFIGURATION!$B$12)","v":"Mapped"}]
[null,null,"(d) Total reserves for deferred accumulation annuities annuitised in the past year at contractual guaranteed rates (post to annuitisation)",null,null,null,null,{"$f":"Import!I666","v":0},null,null,"brrt_ReservesForDeferredAccumulationAnnuitiesAnnuitisedInThePastYearAtContractualGuaranteedRatesPostToAnnuitisation",{"$f":"XBRLMap(H41,K41,$L$5,$L$6,CONFIGURATION!$B$10,\"BMA\",CONFIGURATION!$B$1,\"bscr\",CONFIGURATION!$B$12)","v":"Mapped"}]
[]
[null,{"$f":"IF('Insurer Information'!$F$9=\"Class C\",\"(m)\",\"(p)\")","v":"(p)"},"Reconciliation from Form 1SFS to Form 4EBS",null,null,null,null,{"$f":"HYPERLINK(\"#'Schedule V(g)'!b1\",\"Refer to Schedule V(g)\")","v":"Refer to Schedule V(g)"}]
[]
[null,{"$f":"IF('Insurer Information'!$F$9=\"Class C\",\"(q)\",\"(t)\")","v":"(t)"},"Details of deposit assets and liabilities",null,null,null,null,{"$f":"HYPERLINK(\"#'Schedule V(k)'!b1\",\"Refer to Schedule V(k)\")","v":"Refer to Schedule V(k)"}]
[]
[null,{"$f":"IF('Insurer Information'!$F$9=\"Class C\",\"(r)\",\"(u)\")","v":"(u)"},"Details of segregated accounts",null,null,null,null,{"$f":"HYPERLINK(\"#'Schedule V(l)'!b1\",\"Refer to Schedule V(l)\")","v":"Refer to Schedule V(l)"}]

{"sheet":"Schedule V(a)","index":38,"n_rows":386,"n_cols":22,"rows_kept":386,"cut":false,"hidden":false,"merged":[[34,8,34,9],[61,5,61,6],[68,5,68,6],[76,5,76,6],[71,5,71,6],[72,5,72,6],[73,5,73,6],[74,5,74,6],[75,5,75,6],[65,5,65,6],[66,5,66,6],[67,5,67,6],[50,8,50,9],[51,8,51,9],[52,8,52,9],[53,8,53,9],[54,8,54,9],[51,5,51,6],[52,5,52,6],[53,5,53,6],[54,5,54,6],[69,2,70,3],[69,4,69,6],[70,5,70,6],[55,8,55,9],[62,2,63,3],[62,4,62,6],[63,5,63,6],[64,5,64,6],[55,5,55,6],[35,8,35,9],[36,8,36,9],[37,8,37,9],[38,8,38,9],[39,8,39,9],[40,8,40,9],[41,8,41,9],[42,8,42,9],[43,8,43,9],[44,8,44,9],[45,8,45,9],[46,8,46,9],[47,8,47,9],[48,8,48,9],[50,5,50,6],[45,5,45,6],[46,5,46,6],[47,5,47,6],[48,5,48,6],[49,5,49,6],[49,8,49,9],[40,5,40,6],[41,5,41,6],[42,5,42,6],[43,5,43,6],[44,5,44,6],[35,5,35,6],[36,5,36,6],[37,5,37,6],[38,5,38,6],[39,5,39,6],[26,5,26,6],[27,5,27,6],[28,5,28,6],[29,5,29,6],[30,5,30,6],[21,5,21,6],[22,5,22,6],[23,5,23,6],[24,5,24,6],[25,5,25,6],[16,5,16,6],[17,5,17,6],[18,5,18,6],[19,5,19,6],[20,5,20,6],[11,5,11,6],[12,5,12,6],[13,5,13,6],[14,5,14,6],[15,5,15,6],[95,3,95,7],[0,1,0,4],[2,1,2,2],[3,1,3,2],[141,2,142,9],[69,7,69,9],[112,2,112,5],[113,2,113,5],[66,2,66,3],[122,2,122,5],[123,2,123,5],[124,2,124,5],[109,2,109,5],[110,2,110,5],[111,2,111,5],[10,5,10,6]]}
[null,"SCHEDULE OF RISK MANAGEMENT - GOVERNANCE AND GROUP STRUCTURE",null,null,null,null,null,null,null,{"$f":"HYPERLINK(\"#'Index'!A1\",\"Return to Index\")","v":"Return to Index"}]
[]
[null,{"$f":"'Schedule V'!B2","v":"Enter Company Name"}]
[null,{"$f":"'Schedule V'!C3","v":"2019-12-31"},null,null,null,null,null,null,null,"SCHEDULE V(a)"]
[]
[null,null,null,null,null,null,null,null,null,null,null,null,null,{"$f":"YEAR('Insurer Information'!C3)","v":"1905-07-11"}]
[null,1,"Structure of the board of directors, including names, role, country of residence and work experience - ",null,null,null,null,null,null,null,null,null,null,{"$f":"IF(B4=\"\",\"\",TEXT(B4,\"mm/dd/yyyy\"))","v":"12/31/2019"}]
[null,null," Enter number of Directors",{"$f":"Import!E668","v":0}]
[]
[null,null,null,null,null,null,null,null,null,null,null,null,null,null,null,null,"brrt_OfficersDetails",null,"Director","Chief And Senior Executive"]
[null,null,"Name","Board Position","Country of Residence","Work Experience",null,"Status\n(Select from Drop Down)",null,null,null,null,null,null,null,null,"brrt_OfficerName","brrt_OfficerLevel","brrt_OfficerPosition","brrt_OfficerWorkExperience"]
[null,1,{"$f":"Import!E669","v":0},{"$f":"Import!E689","v":0},{"$f":"Import!E709","v":0},{"$f":"Import!E729","v":0},null,{"$f":"Import!E749","v":"Select"},null,null,null,null,null,null,null,null,null,null,null,null,null,{"$f":"IF(OR(C12<>\"\",D12<>\"\",F12<>\"\"),XBRLMapTuple($Q$10,N$6,N$7,\"BMA\",CONFIGURATION!$B$1,\"bscr\",\"\",CONFIGURATION!$B$12,$Q$11,C12,$R$11,$S$10,$S$11,D12,$T$11,F12),\"emptyTuple\")","v":"Mapped"}]
[null,2,{"$f":"Import!E670","v":0},{"$f":"Import!E690","v":0},{"$f":"Import!E710","v":0},{"$f":"Import!E730","v":0},null,{"$f":"Import!E750","v":"Select"},null,null,null,null,null,null,null,null,null,null,null,null,null,{"$f":"IF(OR(C13<>\"\",D13<>\"\",F13<>\"\"),XBRLMapTuple($Q$10,N$6,N$7,\"BMA\",CONFIGURATION!$B$1,\"bscr\",\"\",CONFIGURATION!$B$12,$Q$11,C13,$R$11,$S$10,$S$11,D13,$T$11,F13),\"emptyTuple\")","v":"Mapped"}]
[null,3,{"$f":"Import!E671","v":0},{"$f":"Import!E691","v":0},{"$f":"Import!E711","v":0},{"$f":"Import!E731","v":0},null,{"$f":"Import!E751","v":"Select"},null,null,null,null,null,null,null,null,null,null,null,null,null,{"$f":"IF(OR(C14<>\"\",D14<>\"\",F14<>\"\"),XBRLMapTuple($Q$10,N$6,N$7,\"BMA\",CONFIGURATION!$B$1,\"bscr\",\"\",CONFIGURATION!$B$12,$Q$11,C14,$R$11,$S$10,$S$11,D14,$T$11,F14),\"emptyTuple\")","v":"Mapped"}]
[null,4,{"$f":"Import!E672","v":0},{"$f":"Import!E692","v":0},{"$f":"Import!E712","v":0},{"$f":"Import!E732","v":0},null,{"$f":"Import!E752","v":"Select"},null,null,null,null,null,null,null,null,null,null,null,null,null,{"$f":"IF(OR(C15<>\"\",D15<>\"\",F15<>\"\"),XBRLMapTuple($Q$10,N$6,N$7,\"BMA\",CONFIGURATION!$B$1,\"bscr\",\"\",CONFIGURATION!$B$12,$Q$11,C15,$R$11,$S$10,$S$11,D15,$T$11,F15),\"emptyTuple\")","v":"Mapped"}]
[null,5,{"$f":"Import!E673","v":0},{"$f":"Import!E693","v":0},{"$f":"Import!E713","v":0},{"$f":"Import!E733","v":0},null,{"$f":"Import!E753","v":"Select"},null,null,null,null,null,null,null,null,null,null,null,null,null,{"$f":"IF(OR(C16<>\"\",D16<>\"\",F16<>\"\"),XBRLMapTuple($Q$10,N$6,N$7,\"BMA\",CONFIGURATION!$B$1,\"bscr\",\"\",CONFIGURATION!$B$12,$Q$11,C16,$R$11,$S$10,$S$11,D16,$T$11,F16),\"emptyTuple\")","v":"Mapped"}]
[null,6,{"$f":"Import!E674","v":0},{"$f":"Import!E694","v":0},{"$f":"Import!E714","v":0},{"$f":"Import!E734","v":0},null,{"$f":"Import!E754","v":"Select"},null,null,null,null,null,null,null,null,null,null,null,null,null,{"$f":"IF(OR(C17<>\"\",D17<>\"\",F17<>\"\"),XBRLMapTuple($Q$10,N$6,N$7,\"BMA\",CONFIGURATION!$B$1,\"bscr\",\"\",CONFIGURATION!$B$12,$Q$11,C17,$R$11,$S$10,$S$11,D17,$T$11,F17),\"emptyTuple\")","v":"Mapped"}]
[null,7,{"$f":"Import!E675","v":0},{"$f":"Import!E695","v":0},{"$f":"Import!E715","v":0},{"$f":"Import!E735","v":0},null,{"$f":"Import!E755","v":"Select"},null,null,null,null,null,null,null,null,null,null,null,null,null,{"$f":"IF(OR(C18<>\"\",D18<>\"\",F18<>\"\"),XBRLMapTuple($Q$10,N$6,N$7,\"BMA\",CONFIGURATION!$B$1,\"bscr\",\"\",CONFIGURATION!$B$12,$Q$11,C18,$R$11,$S$10,$S$11,D18,$T$11,F18),\"emptyTuple\")","v":"Mapped"}]
[null,8,{"$f":"Import!E676","v":0},{"$f":"Import!E696","v":0},{"$f":"Import!E716","v":0},{"$f":"Import!E736","v":0},null,{"$f":"Import!E756","v":"Select"},null,null,null,null,null,null,null,null,null,null,null,null,null,{"$f":"IF(OR(C19<>\"\",D19<>\"\",F19<>\"\"),XBRLMapTuple($Q$10,N$6,N$7,\"BMA\",CONFIGURATION!$B$1,\"bscr\",\"\",CONFIGURATION!$B$12,$Q$11,C19,$R$11,$S$10,$S$11,D19,$T$11,F19),\"emptyTuple\")","v":"Mapped"}]
[null,9,{"$f":"Import!E677","v":0},{"$f":"Import!E697","v":0},{"$f":"Import!E717","v":0},{"$f":"Import!E737","v":0},null,{"$f":"Import!E757","v":"Select"},null,null,null,null,null,null,null,null,null,null,null,null,null,{"$f":"IF(OR(C20<>\"\",D20<>\"\",F20<>\"\"),XBRLMapTuple($Q$10,N$6,N$7,\"BMA\",CONFIGURATION!$B$1,\"bscr\",\"\",CONFIGURATION!$B$12,$Q$11,C20,$R$11,$S$10,$S$11,D20,$T$11,F20),\"emptyTuple\")","v":"Mapped"}]
[null,10,{"$f":"Import!E678","v":0},{"$f":"Import!E698","v":0},{"$f":"Import!E718","v":0},{"$f":"Import!E738","v":0},null,{"$f":"Import!E758","v":"Select"},null,null,null,null,null,null,null,null,null,null,null,null,null,{"$f":"IF(OR(C21<>\"\",D21<>\"\",F21<>\"\"),XBRLMapTuple($Q$10,N$6,N$7,\"BMA\",CONFIGURATION!$B$1,\"bscr\",\"\",CONFIGURATION!$B$12,$Q$11,C21,$R$11,$S$10,$S$11,D21,$T$11,F21),\"emptyTuple\")","v":"Mapped"}]
[null,11,{"$f":"Import!E679","v":0},{"$f":"Import!E699","v":0},{"$f":"Import!E719","v":0},{"$f":"Import!E739","v":0},null,{"$f":"Import!E759","v":"Select"},null,null,null,null,null,null,null,null,null,null,null,null,null,{"$f":"IF(OR(C22<>\"\",D22<>\"\",F22<>\"\"),XBRLMapTuple($Q$10,N$6,N$7,\"BMA\",CONFIGURATION!$B$1,\"bscr\",\"\",CONFIGURATION!$B$12,$Q$11,C22,$R$11,$S$10,$S$11,D22,$T$11,F22),\"emptyTuple\")","v":"Mapped"}]
[null,12,{"$f":"Import!E680","v":0},{"$f":"Import!E700","v":0},{"$f":"Import!E720","v":0},{"$f":"Import!E740","v":0},null,{"$f":"Import!E760","v":"Select"},null,null,null,null,null,null,null,null,null,null,null,null,null,{"$f":"IF(OR(C23<>\"\",D23<>\"\",F23<>\"\"),XBRLMapTuple($Q$10,N$6,N$7,\"BMA\",CONFIGURATION!$B$1,\"bscr\",\"\",CONFIGURATION!$B$12,$Q$11,C23,$R$11,$S$10,$S$11,D23,$T$11,F23),\"emptyTuple\")","v":"Mapped"}]
[null,13,{"$f":"Import!E681","v":0},{"$f":"Import!E701","v":0},{"$f":"Import!E721","v":0},{"$f":"Import!E741","v":0},null,{"$f":"Import!E761","v":"Select"},null,null,null,null,null,null,null,null,null,null,null,null,null,{"$f":"IF(OR(C24<>\"\",D24<>\"\",F24<>\"\"),XBRLMapTuple($Q$10,N$6,N$7,\"BMA\",CONFIGURATION!$B$1,\"bscr\",\"\",CONFIGURATION!$B$12,$Q$11,C24,$R$11,$S$10,$S$11,D24,$T$11,F24),\"emptyTuple\")","v":"Mapped"}]
[null,14,{"$f":"Import!E682","v":0},{"$f":"Import!E702","v":0},{"$f":"Import!E722","v":0},{"$f":"Import!E742","v":0},null,{"$f":"Import!E762","v":"Select"},null,null,null,null,null,null,null,null,null,null,null,null,null,{"$f":"IF(OR(C25<>\"\",D25<>\"\",F25<>\"\"),XBRLMapTuple($Q$10,N$6,N$7,\"BMA\",CONFIGURATION!$B$1,\"bscr\",\"\",CONFIGURATION!$B$12,$Q$11,C25,$R$11,$S$10,$S$11,D25,$T$11,F25),\"emptyTuple\")","v":"Mapped"}]
[null,15,{"$f":"Import!E683","v":0},{"$f":"Import!E703","v":0},{"$f":"Import!E723","v":0},{"$f":"Import!E743","v":0},null,{"$f":"Import!E763","v":"Select"},null,null,null,null,null,null,null,null,null,null,null,null,null,{"$f":"IF(OR(C26<>\"\",D26<>\"\",F26<>\"\"),XBRLMapTuple($Q$10,N$6,N$7,\"BMA\",CONFIGURATION!$B$1,\"bscr\",\"\",CONFIGURATION!$B$12,$Q$11,C26,$R$11,$S$10,$S$11,D26,$T$11,F26),\"emptyTuple\")","v":"Mapped"}]
[null,16,{"$f":"Import!E684","v":0},{"$f":"Import!E704","v":0},{"$f":"Import!E724","v":0},{"$f":"Import!E744","v":0},null,{"$f":"Import!E764","v":"Select"},null,null,null,null,null,null,null,null,null,null,null,null,null,{"$f":"IF(OR(C27<>\"\",D27<>\"\",F27<>\"\"),XBRLMapTuple($Q$10,N$6,N$7,\"BMA\",CONFIGURATION!$B$1,\"bscr\",\"\",CONFIGURATION!$B$12,$Q$11,C27,$R$11,$S$10,$S$11,D27,$T$11,F27),\"emptyTuple\")","v":"Mapped"}]
[null,17,{"$f":"Import!E685","v":0},{"$f":"Import!E705","v":0},{"$f":"Import!E725","v":0},{"$f":"Import!E745","v":0},null,{"$f":"Import!E765","v":"Select"},null,null,null,null,null,null,null,null,null,null,null,null,null,{"$f":"IF(OR(C28<>\"\",D28<>\"\",F28<>\"\"),XBRLMapTuple($Q$10,N$6,N$7,\"BMA\",CONFIGURATION!$B$1,\"bscr\",\"\",CONFIGURATION!$B$12,$Q$11,C28,$R$11,$S$10,$S$11,D28,$T$11,F28),\"emptyTuple\")","v":"Mapped"}]
[null,18,{"$f":"Import!E686","v":0},{"$f":"Import!E706","v":0},{"$f":"Import!E726","v":0},{"$f":"Import!E746","v":0},null,{"$f":"Import!E766","v":"Select"},null,null,null,null,null,null,null,null,null,null,null,null,null,{"$f":"IF(OR(C29<>\"\",D29<>\"\",F29<>\"\"),XBRLMapTuple($Q$10,N$6,N$7,\"BMA\",CONFIGURATION!$B$1,\"bscr\",\"\",CONFIGURATION!$B$12,$Q$11,C29,$R$11,$S$10,$S$11,D29,$T$11,F29),\"emptyTuple\")","v":"Mapped"}]
[null,19,{"$f":"Import!E687","v":0},{"$f":"Import!E707","v":0},{"$f":"Import!E727","v":0},{"$f":"Import!E747","v":0},null,{"$f":"Import!E767","v":"Select"},null,null,null,null,null,null,null,null,null,null,null,null,null,{"$f":"IF(OR(C30<>\"\",D30<>\"\",F30<>\"\"),XBRLMapTuple($Q$10,N$6,N$7,\"BMA\",CONFIGURATION!$B$1,\"bscr\",\"\",CONFIGURATION!$B$12,$Q$11,C30,$R$11,$S$10,$S$11,D30,$T$11,F30),\"emptyTuple\")","v":"Mapped"}]
[null,20,{"$f":"Import!E688","v":0},{"$f":"Import!E708","v":0},{"$f":"Import!E728","v":0},{"$f":"Import!E748","v":0},null,{"$f":"Import!E768","v":"Select"},null,null,null,null,null,null,null,null,null,null,null,null,null,{"$f":"IF(OR(C31<>\"\",D31<>\"\",F31<>\"\"),XBRLMapTuple($Q$10,N$6,N$7,\"BMA\",CONFIGURATION!$B$1,\"bscr\",\"\",CONFIGURATION!$B$12,$Q$11,C31,$R$11,$S$10,$S$11,D31,$T$11,F31),\"emptyTuple\")","v":"Mapped"}]
[]
[null,2,"Enter number of Officers",{"$f":"Import!E769","v":0}]
[null,null,"Structure of the chief and senior executive management, including names, roles, country of residence, work experience, employee arrangement and description of responsibilities"]
[null,null,null,null,null,null,null,null,null,null,null,null,null,null,null,null,"brrt_OfficersDetails"]
[null,null,"Name","Chief and Senior Executive Position","Country of Residence","Work Experience",null,"Employee Arrangement (Select from Drop Down)","Description of Responsibilities\n(Select from Drop Down)",null,null,null,null,null,null,null,"brrt_OfficerName","brrt_OfficerLevel","brrt_OfficerPosition","brrt_OfficerWorkExperience"]
[null,1,{"$f":"Import!E770","v":0},{"$f":"Import!E790","v":0},{"$f":"Import!E810","v":0},{"$f":"Import!E830","v":0},null,{"$f":"Import!E850","v":"Select"},{"$f":"Import!E870","v":"Select"},null,null,null,null,null,null,null,null,null,null,null,null,{"$f":"IF(OR(C37<>\"\",D37<>\"\",F37<>\"\"),XBRLMapTuple($Q$35,N$6,N$7,\"BMA\",CONFIGURATION!$B$1,\"bscr\",\"\",CONFIGURATION!$B$12,$Q$36,C37,$R$36,$T$10,$S$36,D37,$T$36,F37),\"emptyTuple\")","v":"Mapped"}]
[null,2,{"$f":"Import!E771","v":0},{"$f":"Import!E791","v":0},{"$f":"Import!E811","v":0},{"$f":"Import!E831","v":0},null,{"$f":"Import!E851","v":"Select"},{"$f":"Import!E871","v":"Select"},null,null,null,null,null,null,null,null,null,null,null,null,{"$f":"IF(OR(C38<>\"\",D38<>\"\",F38<>\"\"),XBRLMapTuple($Q$35,N$6,N$7,\"BMA\",CONFIGURATION!$B$1,\"bscr\",\"\",CONFIGURATION!$B$12,$Q$36,C38,$R$36,$T$10,$S$36,D38,$T$36,F38),\"emptyTuple\")","v":"Mapped"}]
[null,3,{"$f":"Import!E772","v":0},{"$f":"Import!E792","v":0},{"$f":"Import!E812","v":0},{"$f":"Import!E832","v":0},null,{"$f":"Import!E852","v":"Select"},{"$f":"Import!E872","v":"Select"},null,null,null,null,null,null,null,null,null,null,null,null,{"$f":"IF(OR(C39<>\"\",D39<>\"\",F39<>\"\"),XBRLMapTuple($Q$35,N$6,N$7,\"BMA\",CONFIGURATION!$B$1,\"bscr\",\"\",CONFIGURATION!$B$12,$Q$36,C39,$R$36,$T$10,$S$36,D39,$T$36,F39),\"emptyTuple\")","v":"Mapped"}]
[null,4,{"$f":"Import!E773","v":0},{"$f":"Import!E793","v":0},{"$f":"Import!E813","v":0},{"$f":"Import!E833","v":0},null,{"$f":"Import!E853","v":"Select"},{"$f":"Import!E873","v":"Select"},null,null,null,null,null,null,null,null,null,null,null,null,{"$f":"IF(OR(C40<>\"\",D40<>\"\",F40<>\"\"),XBRLMapTuple($Q$35,N$6,N$7,\"BMA\",CONFIGURATION!$B$1,\"bscr\",\"\",CONFIGURATION!$B$12,$Q$36,C40,$R$36,$T$10,$S$36,D40,$T$36,F40),\"emptyTuple\")","v":"Mapped"}]
[null,5,{"$f":"Import!E774","v":0},{"$f":"Import!E794","v":0},{"$f":"Import!E814","v":0},{"$f":"Import!E834","v":0},null,{"$f":"Import!E854","v":"Select"},{"$f":"Import!E874","v":"Select"},null,null,null,null,null,null,null,null,null,null,null,null,{"$f":"IF(OR(C41<>\"\",D41<>\"\",F41<>\"\"),XBRLMapTuple($Q$35,N$6,N$7,\"BMA\",CONFIGURATION!$B$1,\"bscr\",\"\",CONFIGURATION!$B$12,$Q$36,C41,$R$36,$T$10,$S$36,D41,$T$36,F41),\"emptyTuple\")","v":"Mapped"}]
[null,6,{"$f":"Import!E775","v":0},{"$f":"Import!E795","v":0},{"$f":"Import!E815","v":0},{"$f":"Import!E835","v":0},null,{"$f":"Import!E855","v":"Select"},{"$f":"Import!E875","v":"Select"},null,null,null,null,null,null,null,null,null,null,null,null,{"$f":"IF(OR(C42<>\"\",D42<>\"\",F42<>\"\"),XBRLMapTuple($Q$35,N$6,N$7,\"BMA\",CONFIGURATION!$B$1,\"bscr\",\"\",CONFIGURATION!$B$12,$Q$36,C42,$R$36,$T$10,$S$36,D42,$T$36,F42),\"emptyTuple\")","v":"Mapped"}]
[null,7,{"$f":"Import!E776","v":0},{"$f":"Import!E796","v":0},{"$f":"Import!E816","v":0},{"$f":"Import!E836","v":0},null,{"$f":"Import!E856","v":"Select"},{"$f":"Import!E876","v":"Select"},null,null,null,null,null,null,null,null,null,null,null,null,{"$f":"IF(OR(C43<>\"\",D43<>\"\",F43<>\"\"),XBRLMapTuple($Q$35,N$6,N$7,\"BMA\",CONFIGURATION!$B$1,\"bscr\",\"\",CONFIGURATION!$B$12,$Q$36,C43,$R$36,$T$10,$S$36,D43,$T$36,F43),\"emptyTuple\")","v":"Mapped"}]
[null,8,{"$f":"Import!E777","v":0},{"$f":"Import!E797","v":0},{"$f":"Import!E817","v":0},{"$f":"Import!E837","v":0},null,{"$f":"Import!E857","v":"Select"},{"$f":"Import!E877","v":"Select"},null,null,null,null,null,null,null,null,null,null,null,null,{"$f":"IF(OR(C44<>\"\",D44<>\"\",F44<>\"\"),XBRLMapTuple($Q$35,N$6,N$7,\"BMA\",CONFIGURATION!$B$1,\"bscr\",\"\",CONFIGURATION!$B$12,$Q$36,C44,$R$36,$T$10,$S$36,D44,$T$36,F44),\"emptyTuple\")","v":"Mapped"}]
[null,9,{"$f":"Import!E778","v":0},{"$f":"Import!E798","v":0},{"$f":"Import!E818","v":0},{"$f":"Import!E838","v":0},null,{"$f":"Import!E858","v":"Select"},{"$f":"Import!E878","v":"Select"},null,null,null,null,null,null,null,null,null,null,null,null,{"$f":"IF(OR(C45<>\"\",D45<>\"\",F45<>\"\"),XBRLMapTuple($Q$35,N$6,N$7,\"BMA\",CONFIGURATION!$B$1,\"bscr\",\"\",CONFIGURATION!$B$12,$Q$36,C45,$R$36,$T$10,$S$36,D45,$T$36,F45),\"emptyTuple\")","v":"Mapped"}]
[null,10,{"$f":"Import!E779","v":0},{"$f":"Import!E799","v":0},{"$f":"Import!E819","v":0},{"$f":"Import!E839","v":0},null,{"$f":"Import!E859","v":"Select"},{"$f":"Import!E879","v":"Select"},null,null,null,null,null,null,null,null,null,null,null,null,{"$f":"IF(OR(C46<>\"\",D46<>\"\",F46<>\"\"),XBRLMapTuple($Q$35,N$6,N$7,\"BMA\",CONFIGURATION!$B$1,\"bscr\",\"\",CONFIGURATION!$B$12,$Q$36,C46,$R$36,$T$10,$S$36,D46,$T$36,F46),\"emptyTuple\")","v":"Mapped"}]
[null,11,{"$f":"Import!E780","v":0},{"$f":"Import!E800","v":0},{"$f":"Import!E820","v":0},{"$f":"Import!E840","v":0},null,{"$f":"Import!E860","v":"Select"},{"$f":"Import!E880","v":"Select"},null,null,null,null,null,null,null,null,null,null,null,null,{"$f":"IF(OR(C47<>\"\",D47<>\"\",F47<>\"\"),XBRLMapTuple($Q$35,N$6,N$7,\"BMA\",CONFIGURATION!$B$1,\"bscr\",\"\",CONFIGURATION!$B$12,$Q$36,C47,$R$36,$T$10,$S$36,D47,$T$36,F47),\"emptyTuple\")","v":"Mapped"}]
[null,12,{"$f":"Import!E781","v":0},{"$f":"Import!E801","v":0},{"$f":"Import!E821","v":0},{"$f":"Import!E841","v":0},null,{"$f":"Import!E861","v":"Select"},{"$f":"Import!E881","v":"Select"},null,null,null,null,null,null,null,null,null,null,null,null,{"$f":"IF(OR(C48<>\"\",D48<>\"\",F48<>\"\"),XBRLMapTuple($Q$35,N$6,N$7,\"BMA\",CONFIGURATION!$B$1,\"bscr\",\"\",CONFIGURATION!$B$12,$Q$36,C48,$R$36,$T$10,$S$36,D48,$T$36,F48),\"emptyTuple\")","v":"Mapped"}]
[null,13,{"$f":"Import!E782","v":0},{"$f":"Import!E802","v":0},{"$f":"Import!E822","v":0},{"$f":"Import!E842","v":0},null,{"$f":"Import!E862","v":"Select"},{"$f":"Import!E882","v":"Select"},null,null,null,null,null,null,null,null,null,null,null,null,{"$f":"IF(OR(C49<>\"\",D49<>\"\",F49<>\"\"),XBRLMapTuple($Q$35,N$6,N$7,\"BMA\",CONFIGURATION!$B$1,\"bscr\",\"\",CONFIGURATION!$B$12,$Q$36,C49,$R$36,$T$10,$S$36,D49,$T$36,F49),\"emptyTuple\")","v":"Mapped"}]
[null,14,{"$f":"Import!E783","v":0},{"$f":"Import!E803","v":0},{"$f":"Import!E823","v":0},{"$f":"Import!E843","v":0},null,{"$f":"Import!E863","v":"Select"},{"$f":"Import!E883","v":"Select"},null,null,null,null,null,null,null,null,null,null,null,null,{"$f":"IF(OR(C50<>\"\",D50<>\"\",F50<>\"\"),XBRLMapTuple($Q$35,N$6,N$7,\"BMA\",CONFIGURATION!$B$1,\"bscr\",\"\",CONFIGURATION!$B$12,$Q$36,C50,$R$36,$T$10,$S$36,D50,$T$36,F50),\"emptyTuple\")","v":"Mapped"}]
[null,15,{"$f":"Import!E784","v":0},{"$f":"Import!E804","v":0},{"$f":"Import!E824","v":0},{"$f":"Import!E844","v":0},null,{"$f":"Import!E864","v":"Select"},{"$f":"Import!E884","v":"Select"},null,null,null,null,null,null,null,null,null,null,null,null,{"$f":"IF(OR(C51<>\"\",D51<>\"\",F51<>\"\"),XBRLMapTuple($Q$35,N$6,N$7,\"BMA\",CONFIGURATION!$B$1,\"bscr\",\"\",CONFIGURATION!$B$12,$Q$36,C51,$R$36,$T$10,$S$36,D51,$T$36,F51),\"emptyTuple\")","v":"Mapped"}]
[null,16,{"$f":"Import!E785","v":0},{"$f":"Import!E805","v":0},{"$f":"Import!E825","v":0},{"$f":"Import!E845","v":0},null,{"$f":"Import!E865","v":"Select"},{"$f":"Import!E885","v":"Select"},null,null,null,null,null,null,null,null,null,null,null,null,{"$f":"IF(OR(C52<>\"\",D52<>\"\",F52<>\"\"),XBRLMapTuple($Q$35,N$6,N$7,\"BMA\",CONFIGURATION!$B$1,\"bscr\",\"\",CONFIGURATION!$B$12,$Q$36,C52,$R$36,$T$10,$S$36,D52,$T$36,F52),\"emptyTuple\")","v":"Mapped"}]
[null,17,{"$f":"Import!E786","v":0},{"$f":"Import!E806","v":0},{"$f":"Import!E826","v":0},{"$f":"Import!E846","v":0},null,{"$f":"Import!E866","v":"Select"},{"$f":"Import!E886","v":"Select"},null,null,null,null,null,null,null,null,null,null,null,null,{"$f":"IF(OR(C53<>\"\",D53<>\"\",F53<>\"\"),XBRLMapTuple($Q$35,N$6,N$7,\"BMA\",CONFIGURATION!$B$1,\"bscr\",\"\",CONFIGURATION!$B$12,$Q$36,C53,$R$36,$T$10,$S$36,D53,$T$36,F53),\"emptyTuple\")","v":"Mapped"}]
[null,18,{"$f":"Import!E787","v":0},{"$f":"Import!E807","v":0},{"$f":"Import!E827","v":0},{"$f":"Import!E847","v":0},null,{"$f":"Import!E867","v":"Select"},{"$f":"Import!E887","v":"Select"},null,null,null,null,null,null,null,null,null,null,null,null,{"$f":"IF(OR(C54<>\"\",D54<>\"\",F54<>\"\"),XBRLMapTuple($Q$35,N$6,N$7,\"BMA\",CONFIGURATION!$B$1,\"bscr\",\"\",CONFIGURATION!$B$12,$Q$36,C54,$R$36,$T$10,$S$36,D54,$T$36,F54),\"emptyTuple\")","v":"Mapped"}]
[null,19,{"$f":"Import!E788","v":0},{"$f":"Import!E808","v":0},{"$f":"Import!E828","v":0},{"$f":"Import!E848","v":0},null,{"$f":"Import!E868","v":"Select"},{"$f":"Import!E888","v":"Select"},null,null,null,null,null,null,null,null,null,null,null,null,{"$f":"IF(OR(C55<>\"\",D55<>\"\",F55<>\"\"),XBRLMapTuple($Q$35,N$6,N$7,\"BMA\",CONFIGURATION!$B$1,\"bscr\",\"\",CONFIGURATION!$B$12,$Q$36,C55,$R$36,$T$10,$S$36,D55,$T$36,F55),\"emptyTuple\")","v":"Mapped"}]
[null,20,{"$f":"Import!E789","v":0},{"$f":"Import!E809","v":0},{"$f":"Import!E829","v":0},{"$f":"Import!E849","v":0},null,{"$f":"Import!E869","v":"Select"},{"$f":"Import!E889","v":"Select"},null,null,null,null,null,null,null,null,null,null,null,null,{"$f":"IF(OR(C56<>\"\",D56<>\"\",F56<>\"\"),XBRLMapTuple($Q$35,N$6,N$7,\"BMA\",CONFIGURATION!$B$1,\"bscr\",\"\",CONFIGURATION!$B$12,$Q$36,C56,$R$36,$T$10,$S$36,D56,$T$36,F56),\"emptyTuple\")","v":"Mapped"}]
[null,null,null,null,null,null,null,"Doc Name","Page Number"]
[null,3,"Terms of reference of the board of directors and its sub-committees —",null,null,{"$f":"HYPERLINK(\"#'Attachments'!G65\",\"Attach file\")","v":"Attach file"}]
[]
[null,null,null,null,null,null,null,"Confirmation","Country of Tax Residency"]
[null,"3a","Does your company have tax residency outside of Bermuda, e.g. has made a 953d election",null,null,null,null,{"$f":"Import!E890","v":"Select Yes/No"},{"$f":"Import!E891","v":"Select"}]
[]
[null,4,"Jurisdiction(s) where the board of directors of the insurer meet on activities ",null,"Activities Performed in Bermuda?"]
[null,null,null,null,"Yes/No","If no, provide the name of the jurisdiction"]
[null,null,"(a) Setting strategic direction",null,{"$f":"Import!E892","v":"Select Yes/No"},{"$f":"Import!E896","v":0}]
[null,null,"(b) Determining the (re)insurers risk appetite",null,{"$f":"Import!E893","v":"Select Yes/No"},{"$f":"Import!E897","v":0}]
[null,null,"(c) Makes strategic decisions about new and/or changes to products, lines of business or markets",null,{"$f":"Import!E894","v":"Select Yes/No"},{"$f":"Import!E898","v":0}]
[null,null,"(d)  Assess or manage solvency requirements",null,{"$f":"Import!E895","v":"Select Yes/No"},{"$f":"Import!E899","v":0}]
[]
[null,5,"Details of an insurer's operations that include the jurisdiction(s), service type and name ",null,"Operations Performed in Bermuda?",null,null,"Are Services Outsourced?"]
[null,null,null,null,"Yes/No","If no, provide the name of the jurisdiction",null,"Yes/No","Type of Provider","Name of Provider"]
[null,null,"(a) Underwriting (re)insurance policies",null,{"$f":"Import!E900","v":"Select Yes/No"},{"$f":"Import!E906","v":0},null,{"$f":"Import!E912","v":"Select Yes/No"},{"$f":"Import!E918","v":"Select"},{"$f":"Import!E924","v":0}]
[null,null,"(b) Risk management decisions/activities",null,{"$f":"Import!E901","v":"Select Yes/No"},{"$f":"Import!E907","v":0},null,{"$f":"Import!E913","v":"Select Yes/No"},{"$f":"Import!E919","v":"Select"},{"$f":"Import!E925","v":0}]
[null,null,"(c) Investment strategy",null,{"$f":"Import!E902","v":"Select Yes/No"},{"$f":"Import!E908","v":0},null,{"$f":"Import!E914","v":"Select Yes/No"},{"$f":"Import!E920","v":"Select"},{"$f":"Import!E926","v":0}]
[null,null,"(d) Actuarial ",null,{"$f":"Import!E903","v":"Select Yes/No"},{"$f":"Import!E909","v":0},null,{"$f":"Import!E915","v":"Select Yes/No"},{"$f":"Import!E921","v":"Select"},{"$f":"Import!E927","v":0}]
[null,null,"(e) Compliance ",null,{"$f":"Import!E904","v":"Select Yes/No"},{"$f":"Import!E910","v":0},null,{"$f":"Import!E916","v":"Select Yes/No"},{"$f":"Import!E922","v":"Select"},{"$f":"Import!E928","v":0}]
[null,null,"(f) Internal Audit",null,{"$f":"Import!E905","v":"Select Yes/No"},{"$f":"Import!E911","v":0},null,{"$f":"Import!E917","v":"Select Yes/No"},{"$f":"Import!E923","v":"Select"},{"$f":"Import!E929","v":0}]
[]
[null,"5a","Details of the services outsourced and if yes, if the services performed in Bermua (confirm with the yes/no drop-down box)"]
[null,null,null,null,null,"Services Outsourced","Outsourced Services Performed in Bermuda"]
[null,"(i)","\tPrincipal Representative\r\n",null,null,{"$f":"Import!E930","v":"Select Yes/No"},{"$f":"Import!E946","v":"Select Yes/No"}]
[null,"(ii)","Directorships/Board Member",null,null,{"$f":"Import!E931","v":"Select Yes/No"},{"$f":"Import!E947","v":"Select Yes/No"}]
[null,"(iii)","Senior Officer",null,null,{"$f":"Import!E932","v":"Select Yes/No"},{"$f":"Import!E948","v":"Select Yes/No"}]
[null,"(iv)","Accounting",null,null,{"$f":"Import!E933","v":"Select Yes/No"},{"$f":"Import!E949","v":"Select Yes/No"}]
[null,"(vi)","Preparation of Prudential / Statutory Financial Return",null,null,{"$f":"Import!E934","v":"Select Yes/No"},{"$f":"Import!E950","v":"Select Yes/No"}]
[null,"(vii)","Underwriting",null,null,{"$f":"Import!E935","v":"Select Yes/No"},{"$f":"Import!E951","v":"Select Yes/No"}]
[null,"(viii)","\tClaims Handling\r\n",null,null,{"$f":"Import!E936","v":"Select Yes/No"},{"$f":"Import!E952","v":"Select Yes/No"}]
[null,"(ix)","Risk Management",null,null,{"$f":"Import!E937","v":"Select Yes/No"},{"$f":"Import!E953","v":"Select Yes/No"}]
[null,"(x)","Investment",null,null,{"$f":"Import!E938","v":"Select Yes/No"},{"$f":"Import!E954","v":"Select Yes/No"}]
[null,"(xi)","Treasury",null,null,{"$f":"Import!E939","v":"Select Yes/No"},{"$f":"Import!E955","v":"Select Yes/No"}]
[null,"(xii)","Actuarial functions",null,null,{"$f":"Import!E940","v":"Select Yes/No"},{"$f":"Import!E956","v":"Select Yes/No"}]
[null,"(xiii)","Internal Audit",null,null,{"$f":"Import!E941","v":"Select Yes/No"},{"$f":"Import!E957","v":"Select Yes/No"}]
[null,"(xiv)","\tCompliance\r\n",null,null,{"$f":"Import!E942","v":"Select Yes/No"},{"$f":"Import!E958","v":"Select Yes/No"}]
[null,"(xv)","AML/AFT/Sanctions Compliance",null,null,{"$f":"Import!E943","v":"Select Yes/No"},{"$f":"Import!E959","v":"Select Yes/No"}]
[null,"(xvi)","Money Laundering Reporting Officer",null,null,{"$f":"Import!E944","v":"Select Yes/No"},{"$f":"Import!E960","v":"Select Yes/No"}]
[null,"(xvii)","Other (if other, disclose)",{"$f":"Import!E945","v":0}]
[]
[null,6,"Number of the employees resident in Bermuda (non-outsourced positions)",null,null,null,{"$f":"Import!E961","v":0}]
[]
[null,"6a","Number of employees in Bermuda working as:"]
[null,"(i)","Senior Executive",null,null,null,{"$f":"Import!E962","v":0}]
[null,"(ii)","Senior Manager",null,null,null,{"$f":"Import!E963","v":0}]
[null,"(iii)","Technical Officer",null,null,null,{"$f":"Import!E964","v":0}]
[null,"(iv)","Administrative",null,null,null,{"$f":"Import!E965","v":0}]
[null,null,"Total",null,null,null,{"$f":"SUM(G101:G104)","v":0}]
[]
[null,null,"Check",null,null,null,{"$f":"IF(G98=G105,\"True\",\"False\")","v":"True"}]
[]
[null,7,"Name of the jurisdiction(s) where the group's board of directors primarily deliberates on the following matters —"]
[null,null,"(a) Setting strategic decision",null,null,null,{"$f":"Import!I966","v":0},null,null,null,null,null,null,null,null,null,"brrt_SettingStrategicDecision",null,null,null,null,{"$f":"XBRLMap(G110,$Q110,$N$6,$N$7,CONFIGURATION!$B$10,\"BMA\",CONFIGURATION!$B$1,\"bscr\")","v":"Mapped"}]
[null,null,"(b) Determining the group's risk appetite",null,null,null,{"$f":"Import!I967","v":0},null,null,null,null,null,null,null,null,null,"brrt_DeterminingreinsurerRiskAppetite",null,null,null,null,{"$f":"XBRLMap(G111,$Q111,$N$6,$N$7,CONFIGURATION!$B$10,\"BMA\",CONFIGURATION!$B$1,\"bscr\")","v":"Mapped"}]
[null,null,"(c) Choosing corporate structure, including amalgamations, acquisitions and strategic alliances",null,null,null,{"$f":"Import!I968","v":0},null,null,null,null,null,null,null,null,null,"brrt_ChoiceOfCorporateStructure",null,null,null,null,{"$f":"XBRLMap(G112,$Q112,$N$6,$N$7,CONFIGURATION!$B$10,\"BMA\",CONFIGURATION!$B$1,\"bscr\")","v":"Mapped"}]
[null,null,"(d) Choosing new lines of business, new products, and marketplace positioning ",null,null,null,{"$f":"Import!I969","v":0},null,null,null,null,null,null,null,null,null,"brrt_ChoiceOfNewLinesOfBusinessNewProductsEtc",null,null,null,null,{"$f":"XBRLMap(G113,$Q113,$N$6,$N$7,CONFIGURATION!$B$10,\"BMA\",CONFIGURATION!$B$1,\"bscr\")","v":"Mapped"}]
[null,null,"(e) Assessing solvency needs",null,null,null,{"$f":"Import!I970","v":0},null,null,null,null,null,null,null,null,null,"brrt_AssessingSolvencyNeeds",null,null,null,null,{"$f":"XBRLMap(G114,$Q114,$N$6,$N$7,CONFIGURATION!$B$10,\"BMA\",CONFIGURATION!$B$1,\"bscr\")","v":"Mapped"}]
[]
[null,8,"Name of the jurisdiction(s) where the group's board of directors and chief and"]
[null,null,"senior executives primarily reside —",null,null,null,{"$f":"Import!I971","v":0},null,null,null,null,null,null,null,null,null,"brrt_NameOfJurisdictionsWhereGroupBoardOfDirectorsAndChiefAndSeniorExecutivesPrimarilyReside",null,null,null,null,{"$f":"XBRLMap(G117,$Q117,$N$6,$N$7,CONFIGURATION!$B$10,\"BMA\",CONFIGURATION!$B$1,\"bscr\")","v":"Mapped"}]
[]
[null,9,"Name of the jurisdiction(s) where the group's central control functions reside "]
[null,null,"(i.e. group finance, actuarial, and risk management) —",null,null,null,{"$f":"Import!I972","v":0},null,null,null,null,null,null,null,null,null,"brrt_NameOfJurisdictionsWhereGroupCentralControlFunctionsResideieGroupFinanceActuarialAndRiskManagement",null,null,null,null,{"$f":"XBRLMap(G120,$Q120,$N$6,$N$7,CONFIGURATION!$B$10,\"BMA\",CONFIGURATION!$B$1,\"bscr\")","v":"Mapped"}]
[]
[null,10,"The group's financial position based on its most recent audited general purpose financial statements —"]
[null,null,"(a) Total assets",null,null,null,{"$f":"Import!I973","v":0},null,null,null,null,null,null,null,null,null,"brrt_GroupFinancialPositionBasedOnItsMostRecentAuditedGeneralPurposeFinancialStatementsTotalAssets",null,null,null,null,{"$f":"XBRLMap(G123,$Q123,$N$6,$N$7,CONFIGURATION!$B$10,\"BMA\",CONFIGURATION!$B$1,\"bscr\",CONFIGURATION!$B$12)","v":"Mapped"}]
[null,null,"(b) Total reserves",null,null,null,{"$f":"Import!I974","v":0},null,null,null,null,null,null,null,null,null,"brrt_GroupFinancialPositionBasedOnItsMostRecentAuditedGeneralPurposeFinancialStatementsTotalReserves",null,null,null,null,{"$f":"XBRLMap(G124,$Q124,$N$6,$N$7,CONFIGURATION!$B$10,\"BMA\",CONFIGURATION!$B$1,\"bscr\",CONFIGURATION!$B$12)","v":"Mapped"}]
[null,null,"(c) Capital and surplus",null,null,null,{"$f":"Import!I975","v":0},null,null,null,null,null,null,null,null,null,"brrt_GroupFinancialPositionBasedOnItsMostRecentAuditedGeneralPurposeFinancialStatementsCapitalAndSurplus",null,null,null,null,{"$f":"XBRLMap(G125,$Q125,$N$6,$N$7,CONFIGURATION!$B$10,\"BMA\",CONFIGURATION!$B$1,\"bscr\",CONFIGURATION!$B$12)","v":"Mapped"}]
[]
[null,11,"Name of insurers within the group that have the three highest: (i) total asset value, (ii) total insurance reserve value, and (iii) capital and surplus, based on the group's"]
[null,null,"most recent audited general purpose financial statements; and provide the total values for items (a), (b) and (c); and confirm the jurisdiction of incorporation of each insurer; ",null,null,null,null,null,null,null,null,null,null,null,null,null,"brrt_NameOfInsurersWithinGroupThatHaveThreeHighestValuesBasedOnMostRecentAuditedGeneralPurposeFinancialStatements"]
[null,null,"Name of insurer","Jurisdiction","Asset Value","Insurance Reserve Value","Capital and Surplus",null,null,null,null,null,null,null,null,null,"brrt_NameOfInsurer","brrt_JurisdictionOfInsurer","brrt_AssetValueOfInsurer","brrt_InsuranceReserveValueOfInsurer","brrt_CapitalAndSurplusOfInsurer"]
[null,1,{"$f":"Import!I976","v":0},{"$f":"Import!I985","v":0},{"$f":"Import!I994","v":0},{"$f":"Import!I1003","v":0},{"$f":"Import!I1012","v":0},null,null,null,null,null,null,null,null,null,null,null,null,null,null,{"$f":"XBRLMapTuple($Q$128,N$6,N$7,\"BMA\",CONFIGURATION!$B$1,\"bscr\",\"\",CONFIGURATION!$B$12,$Q$129,C130,$R$129,D130,$S$129,E130,$T$129,F130,$U$129,G130)","v":"Mapped"}]
[null,2,{"$f":"Import!I977","v":0},{"$f":"Import!I986","v":0},{"$f":"Import!I995","v":0},{"$f":"Import!I1004","v":0},{"$f":"Import!I1013","v":0},null,null,null,null,null,null,null,null,null,null,null,null,null,null,{"$f":"XBRLMapTuple($Q$128,N$6,N$7,\"BMA\",CONFIGURATION!$B$1,\"bscr\",\"\",CONFIGURATION!$B$12,$Q$129,C131,$R$129,D131,$S$129,E131,$T$129,F131,$U$129,G131)","v":"Mapped"}]
[null,3,{"$f":"Import!I978","v":0},{"$f":"Import!I987","v":0},{"$f":"Import!I996","v":0},{"$f":"Import!I1005","v":0},{"$f":"Import!I1014","v":0},null,null,null,null,null,null,null,null,null,null,null,null,null,null,{"$f":"XBRLMapTuple($Q$128,N$6,N$7,\"BMA\",CONFIGURATION!$B$1,\"bscr\",\"\",CONFIGURATION!$B$12,$Q$129,C132,$R$129,D132,$S$129,E132,$T$129,F132,$U$129,G132)","v":"Mapped"}]
[null,4,{"$f":"Import!I979","v":0},{"$f":"Import!I988","v":0},{"$f":"Import!I997","v":0},{"$f":"Import!I1006","v":0},{"$f":"Import!I1015","v":0},null,null,null,null,null,null,null,null,null,null,null,null,null,null,{"$f":"XBRLMapTuple($Q$128,N$6,N$7,\"BMA\",CONFIGURATION!$B$1,\"bscr\",\"\",CONFIGURATION!$B$12,$Q$129,C133,$R$129,D133,$S$129,E133,$T$129,F133,$U$129,G133)","v":"Mapped"}]
[null,5,{"$f":"Import!I980","v":0},{"$f":"Import!I989","v":0},{"$f":"Import!I998","v":0},{"$f":"Import!I1007","v":0},{"$f":"Import!I1016","v":0},null,null,null,null,null,null,null,null,null,null,null,null,null,null,{"$f":"XBRLMapTuple($Q$128,N$6,N$7,\"BMA\",CONFIGURATION!$B$1,\"bscr\",\"\",CONFIGURATION!$B$12,$Q$129,C134,$R$129,D134,$S$129,E134,$T$129,F134,$U$129,G134)","v":"Mapped"}]
[null,6,{"$f":"Import!I981","v":0},{"$f":"Import!I990","v":0},{"$f":"Import!I999","v":0},{"$f":"Import!I1008","v":0},{"$f":"Import!I1017","v":0},null,null,null,null,null,null,null,null,null,null,null,null,null,null,{"$f":"XBRLMapTuple($Q$128,N$6,N$7,\"BMA\",CONFIGURATION!$B$1,\"bscr\",\"\",CONFIGURATION!$B$12,$Q$129,C135,$R$129,D135,$S$129,E135,$T$129,F135,$U$129,G135)","v":"Mapped"}]
[null,7,{"$f":"Import!I982","v":0},{"$f":"Import!I991","v":0},{"$f":"Import!I1000","v":0},{"$f":"Import!I1009","v":0},{"$f":"Import!I1018","v":0},null,null,null,null,null,null,null,null,null,null,null,null,null,null,{"$f":"XBRLMapTuple($Q$128,N$6,N$7,\"BMA\",CONFIGURATION!$B$1,\"bscr\",\"\",CONFIGURATION!$B$12,$Q$129,C136,$R$129,D136,$S$129,E136,$T$129,F136,$U$129,G136)","v":"Mapped"}]
[null,8,{"$f":"Import!I983","v":0},{"$f":"Import!I992","v":0},{"$f":"Import!I1001","v":0},{"$f":"Import!I1010","v":0},{"$f":"Import!I1019","v":0},null,null,null,null,null,null,null,null,null,null,null,null,null,null,{"$f":"XBRLMapTuple($Q$128,N$6,N$7,\"BMA\",CONFIGURATION!$B$1,\"bscr\",\"\",CONFIGURATION!$B$12,$Q$129,C137,$R$129,D137,$S$129,E137,$T$129,F137,$U$129,G137)","v":"Mapped"}]
[null,9,{"$f":"Import!I984","v":0},{"$f":"Import!I993","v":0},{"$f":"Import!I1002","v":0},{"$f":"Import!I1011","v":0},{"$f":"Import!I1020","v":0},null,null,null,null,null,null,null,null,null,null,null,null,null,null,{"$f":"XBRLMapTuple($Q$128,N$6,N$7,\"BMA\",CONFIGURATION!$B$1,\"bscr\",\"\",CONFIGURATION!$B$12,$Q$129,C138,$R$129,D138,$S$129,E138,$T$129,F138,$U$129,G138)","v":"Mapped"}]
[]
[null,12,"Explanation of any events which have occurred or decisions made subsequent to the relevant year-end that would, or have, materially changed "]
[null,null,"the information above (e.g. amalgamation, acquisition, or restructuring, etc.) —"]
[null,null,{"$f":"Import!E1021","v":0},null,null,null,null,null,null,null,null,null,null,null,null,null,"brrt_DescribeAnySubsequentEventsOrDecisionsForAmalgamationAcquisitionOrRestructuringEtc",null,null,null,null,{"$f":"XBRLMap(C142,$Q142,$N$6,$N$7,CONFIGURATION!$B$10,\"BMA\",CONFIGURATION!$B$1,\"bscr\")","v":"Mapped"}]
[]
[null,null,null,null,null,"Doc Name","Page Number"]
[null,13,"A copy of the latest group organizational chart —",null,{"$f":"HYPERLINK(\"#'Attachments'!G75\",\"Attach file\")","v":"Attach file"}]
[]
[]
[null,null,"Select"]
[null,null,"N/A",null,"Select","Select",null,"Select Yes/No",null,"Select"]
[null,null,"United Kingdom",null,"Insurance Manager","Insurer",null,"Yes",null,"Non-executive (Independent)"]
[null,null,"United States of America",null,"Other Third Party","Affiliate",null,"No",null,"Non-executive (Affiliate)"]
[null,null,"Canada",null,"Affiliate","External service provider ",null,null,null,"Non-executive (Service Provider)"]
[null,null,null,null,null,null,null,null,null,"Non-executive (Other)"]
[null,null,"Afghanistan",null,null,null,null,null,null,"Executive"]
[null,null,"Aland Islands",null,null,null,null,null,null,"Select"]
[null,null,"Albania",null,null,null,null,null,null,"A - Has authority to make key strategic, underwriting or investment decisions, etc."]
[null,null,"Algeria",null,null,null,null,null,null,"B - Has authority to make key strategic, underwriting or investments decision, etc., within the risk appetite explicitly set by the Board of Directors."]
[null,null,"American Samoa",null,null,null,null,null,null,"C - Must get key strategic, underwriting, or investment decisions signed-off by Board of Directors before executing."]
[null,null,"Andorra"]
[null,null,"Angola"]
[null,null,"Anguilla"]
[null,null,"Antigua & Barbuda"]
[null,null,"Argentina"]
[null,null,"Armenia"]
[null,null,"Aruba"]
[null,null,"Australia"]
[null,null,"Austria"]
[null,null,"Azerbaijan"]
[null,null,"Bahamas"]
[null,null,"Bahrain"]
[null,null,"Bangladesh"]
[null,null,"Barbados"]
[null,null,"Belarus"]
[null,null,"Belgium"]
[null,null,"Belize"]
[null,null,"Benin"]
[null,null,"Bhutan"]
[null,null,"Bolivia"]
[null,null,"Bosnia and Herzegovina"]
[null,null,"Botswana"]
[null,null,"Brazil"]
[null,null,"British Virgin Islands"]
[null,null,"Brunei Darussalam"]
[null,null,"Bulgaria"]
[null,null,"Burkina Faso"]
[null,null,"Burundi"]
[null,null,"Cambodia"]
[null,null,"Cameroon"]
[null,null,"Cape Verde"]
[null,null,"Cayman Islands"]
[null,null,"Central African Republic"]
[null,null,"Chad"]
[null,null,"Chile"]
[null,null,"China"]
[null,null,"Colombia"]
[null,null,"Comoros"]
[null,null,"Cook Islands"]
[null,null,"Costa Rica"]
[null,null,"Cote d' Ivoire"]
[null,null,"Croatia"]
[null,null,"Cuba"]
[null,null,"Cyprus"]
[null,null,"Czech Republic"]
[null,null,"Democratic Republic of Congo"]
[null,null,"Denmark"]
[null,null,"Djibouti"]
[null,null,"Dominica"]
[null,null,"Dominican Republic"]
[null,null,"Ecuador"]
[null,null,"Egypt"]
[null,null,"El Salvador"]
[null,null,"Equatorial Guinea"]
[null,null,"Eritrea"]
[null,null,"Estonia"]
[null,null,"Ethiopia"]
[null,null,"Faeroe Islands"]
[null,null,"Falkland Islands"]
[null,null,"Fiji"]
[null,null,"Finland"]
[null,null,"France"]
[null,null,"French Guiana"]
[null,null,"French Polynesia"]
[null,null,"fYR of Macedonia"]
[null,null,"Gabon"]
[null,null,"Gambia"]
[null,null,"Georgia"]
[null,null,"Germany"]
[null,null,"Ghana"]
[null,null,"Gibraltar"]
[null,null,"Greece"]
[null,null,"Greenland"]
[null,null,"Grenada"]
[null,null,"Guadeloupe"]
[null,null,"Guam"]
[null,null,"Guatemala"]
[null,null,"Guernsey"]
[null,null,"Guinea"]
[null,null,"Guinea-Bissau"]
[null,null,"Guyana"]
[null,null,"Haiti"]
[null,null,"Honduras"]
[null,null,"Hong Kong"]
[null,null,"Hungary"]
[null,null,"Iceland"]
[null,null,"India"]
[null,null,"Indonesia"]
[null,null,"Iran"]
[null,null,"Iraq"]
[null,null,"Isle of Man"]
[null,null,"Israel"]
[null,null,"Italy"]
[null,null,"Jamica"]
[null,null,"Japan"]
[null,null,"Jersey"]
[null,null,"Jordan"]
[null,null,"Kazakhstan"]
[null,null,"Kenya"]
[null,null,"Kiribati"]
[null,null,"Kuwait"]
[null,null,"Kyrgyzstan"]
[null,null,"Lao PDR"]
[null,null,"Latvia"]
[null,null,"Lebanon"]
[null,null,"Lesotho"]
[null,null,"Liberia"]
[null,null,"Libya"]
[null,null,"Liechtenstein"]
[null,null,"Lithuania"]
[null,null,"Luxembourg"]
[null,null,"Macao"]
[null,null,"Madagascar"]
[null,null,"Malawi"]
[null,null,"Malaysia"]
[null,null,"Maldives"]
[null,null,"Mali"]
[null,null,"Malta"]
[null,null,"Marshall Islands"]
[null,null,"Mauritania"]
[null,null,"Mauritius"]
[null,null,"Mayotte"]
[null,null,"Mexico"]
[null,null,"Micronesia"]
[null,null,"Moldova"]
[null,null,"Monaco"]
[null,null,"Mongolia"]
[null,null,"Montenegro"]
[null,null,"Montserrat"]
[null,null,"Morocco"]
[null,null,"Mozambique"]
[null,null,"Myanmar"]
[null,null,"N. Mariana Islands"]
[null,null,"Namibia"]
[null,null,"Nauru"]
[null,null,"Nepal"]
[null,null,"Netherlands"]
[null,null,"Netherlands Antilles (Curacao and Bonaire)"]
[null,null,"New Caledonia"]
[null,null,"New Zealand"]
[null,null,"Nicaragua"]
[null,null,"Niger"]
[null,null,"Nigeria"]
[null,null,"Niue"]
[null,null,"Norfolk Island"]
[null,null,"North Korea"]
[null,null,"Northern Africa"]
[null,null,"Norway"]
[null,null,"Oman"]
[null,null,"Pakistan"]
[null,null,"Palau"]
[null,null,"Palestinian"]
[null,null,"Panama"]
[null,null,"Papua New Guinea"]
[null,null,"Paraguay"]
[null,null,"Peru"]
[null,null,"Philippines"]
[null,null,"Pitcairn"]
[null,null,"Poland"]
[null,null,"Portugal"]
[null,null,"Puerto Rico"]
[null,null,"Qatar"]
[null,null,"Republic of Congo"]
[null,null,"Republic of Ireland"]
[null,null,"Reunion"]
[null,null,"Romania"]
[null,null,"Russian Federation"]
[null,null,"Rwanda"]
[null,null,"Saint Helena"]
[null,null,"Samoa"]
[null,null,"San Marino"]
[null,null,"Sao Tome & Principe"]
[null,null,"Saudi Arabia"]
[null,null,"Senegal"]
[null,null,"Serbia"]
[null,null,"Seychelles"]
[null,null,"Sierra Leone"]
[null,null,"Singapore"]
[null,null,"Slovakia"]
[null,null,"Slovenia"]
[null,null,"Solomon Islands"]
[null,null,"Somalia"]
[null,null,"South Africa"]
[null,null,"South Korea"]
[null,null,"Spain"]
[null,null,"Sri Lanka"]
[null,null,"St Kitts & Nevis"]
[null,null,"St Lucia"]
[null,null,"St Pierre & Miquelon"]
[null,null,"St. Maarten"]
[null,null,"St. Vincent & the Grenadines"]
[null,null,"St-Barthelemy"]
[null,null,"Sudan"]
[null,null,"Suriname"]
[null,null,"Svalbard, Jan Mayen"]
[null,null,"Swaziland"]
[null,null,"Sweden"]
[null,null,"Switzerland"]
[null,null,"Syria"]
[null,null,"Taiwan"]
[null,null,"Tajikistan"]
[null,null,"Thailand"]
[null,null,"Timor-Leste"]
[null,null,"Togo"]
[null,null,"Tokelau"]
[null,null,"Tonga"]
[null,null,"Trinidad & Tobago"]
[null,null,"Tunisia"]
[null,null,"Turkey"]
[null,null,"Turkmenistan"]
[null,null,"Turks & Caicos Islands"]
[null,null,"Tuvalu"]
[null,null,"Uganda"]
[null,null,"Ukraine"]
[null,null,"United Arab Emirates"]
[null,null,"United Republic of Tanzania"]
[null,null,"Uruguay"]
[null,null,"US Virgin Islands"]
[null,null,"Uzbekistan"]
[null,null,"Vanuatu"]
[null,null,"Vatican City"]
[null,null,"Venezuela"]
[null,null,"Vietnam"]
[null,null,"Wallis & Futuna Islands"]
[null,null,"Western Sahara"]
[null,null,"Yemen"]
[null,null,"Zambia"]
[null,null,"Zimbabwe"]

{"sheet":"Schedule V(c)","index":39,"n_rows":118,"n_cols":25,"rows_kept":118,"cut":false,"hidden":false,"merged":[[87,2,88,7],[46,9,46,10],[47,9,47,10],[48,9,48,10],[49,9,49,10],[50,9,50,10],[41,9,41,10],[42,9,42,10],[43,9,43,10],[44,9,44,10],[45,9,45,10],[74,6,74,8],[75,6,75,8],[76,6,76,8],[77,6,77,8],[78,6,78,8],[43,2,43,5],[44,2,44,5],[45,2,45,5],[84,6,85,11],[36,9,36,10],[37,9,37,10],[38,9,38,10],[39,9,39,10],[40,9,40,10],[31,9,31,10],[32,9,32,10],[33,9,33,10],[34,9,34,10],[35,9,35,10],[26,9,26,10],[27,9,27,10],[28,9,28,10],[29,9,29,10],[30,9,30,10],[21,9,21,10],[22,9,22,10],[23,9,23,10],[24,9,24,10],[25,9,25,10],[16,9,16,10],[17,9,17,10],[18,9,18,10],[19,9,19,10],[20,9,20,10],[10,9,11,10],[12,9,12,10],[13,9,13,10],[14,9,14,10],[15,9,15,10],[116,2,116,10],[2,1,2,2],[3,1,3,2],[68,6,68,8],[59,6,59,8],[60,6,60,8],[38,2,38,5],[56,6,57,8],[58,6,58,8],[40,2,40,5],[41,2,41,5],[30,2,30,5],[10,6,11,6],[47,2,47,5],[48,2,48,5],[46,2,46,5],[18,2,18,5],[23,2,23,5],[24,2,24,5],[25,2,25,5],[26,2,26,5],[19,2,19,5],[81,6,81,8],[73,6,73,8],[0,1,0,10],[10,7,10,8],[11,7,11,8],[87,10,88,11],[17,2,17,5],[87,8,88,9],[65,6,65,8],[66,6,66,8],[67,6,67,8],[56,9,57,9],[63,6,63,8],[64,6,64,8],[61,6,61,8],[62,6,62,8],[1,1,1,5],[49,2,49,5],[50,2,50,5],[16,2,16,5],[79,6,79,8],[80,6,80,8],[69,6,69,8],[70,6,70,8],[71,6,71,8],[72,6,72,8],[10,2,11,5],[12,2,12,5],[13,2,13,5],[14,2,14,5],[15,2,15,5],[20,2,20,5],[21,2,21,5],[22,2,22,5],[42,2,42,5],[27,2,27,5],[28,2,28,5],[34,2,34,5],[35,2,35,5],[36,2,36,5],[37,2,37,5],[33,2,33,5],[29,2,29,5],[31,2,31,5],[32,2,32,5],[39,2,39,5]]}
[null,"SCHEDULE OF RISK MANAGEMENT - INTRA-GROUP TRANSACTIONS THAT THE INSURER IS A PARTY TO AND THE INSURER'S RISK CONCENTRATIONS ",null,null,null,null,null,null,null,null,null,{"$f":"HYPERLINK(\"#'Index'!A1\",\"Return to Index\")","v":"Return to Index"}]
[null,{"$f":"+'Insurer Information'!C7","v":"Enter Company Name"}]
[null,{"$f":"'Schedule V'!C3","v":"2019-12-31"},null,null,null,null,null,null,null,null,null,"SCHEDULE V(c)"]
[null,{"$f":"'Schedule V'!C4","v":"United States Dollars"}]
[null,null,null,null,null,null,null,null,null,null,null,null,null,null,null,{"$f":"IF(B3=\"\",\"\",TEXT(DATE(YEAR(B3+1)-1,MONTH(B3+1),DAY(B3+1)),\"mm/dd/yyyy\"))","v":"01/01/2019"}]
[null,1,"Ten largest exposures to unaffiliated counterparties and any other unaffiliated counterparty exposures or series of linked unaffiliated counterparty exposures ",null,null,null,null,null,null,null,null,null,null,{"$f":"YEAR('Insurer Information'!C3)","v":2019},null,{"$f":"IF(B3=\"\",\"\",TEXT(B3,\"mm/dd/yyyy\"))","v":"12/31/2019"}]
[null,null,"exceeding 10% of the insurer’s statutory capital and surplus, including—"]
[null,null,"Enter Number of Material Counterparty Exposures"]
[null,null,"Enter information for each exposure",null,{"$f":"Import!E1023","v":0}]
[]
[null,null,"Name of Unaffiliated Counterparty",null,null,null,"Jurisdiction","Exposure Values ",null,"Transaction Type",null,null,null,null,null,null,"brrt_DetailsOfMaterialCounterpartyExposures"]
[null,null,null,null,null,null,null,"(Face Value or Market Value)",null,null,null,null,null,null,null,null,"brrt_NameOfCounterparty","brrt_JurisdictionOfCounterparty","brrt_ExposureValuesFaceValue","brrt_ExposureValuesMarketValue","brrt_TransactionType"]
[null,1,{"$f":"Import!E1024","v":0},null,null,null,{"$f":"Import!E1049","v":0},{"$f":"Import!E1074","v":0},{"$f":"Import!E1099","v":0},{"$f":"Import!E1124","v":0},null,null,null,null,null,null,null,null,null,null,null,null,{"$f":"IF(OR(C13<>\"\",G13<>\"\",H13<>\"\",I13<>\"\",J13<>\"\"),XBRLMapTuple($Q$11,P$5,P$6,\"BMA\",CONFIGURATION!$B$1,\"bscr\",\"\",CONFIGURATION!$B$12,$Q$12,C13,$R$12,G13,$S$12,H13,$T$12,I13,$U$12,J13),\"emptyTuple\")","v":"Mapped"}]
[null,2,{"$f":"Import!E1025","v":0},null,null,null,{"$f":"Import!E1050","v":0},{"$f":"Import!E1075","v":0},{"$f":"Import!E1100","v":0},{"$f":"Import!E1125","v":0},null,null,null,null,null,null,null,null,null,null,null,null,{"$f":"IF(OR(C14<>\"\",G14<>\"\",H14<>\"\",I14<>\"\",J14<>\"\"),XBRLMapTuple($Q$11,P$5,P$6,\"BMA\",CONFIGURATION!$B$1,\"bscr\",\"\",CONFIGURATION!$B$12,$Q$12,C14,$R$12,G14,$S$12,H14,$T$12,I14,$U$12,J14),\"emptyTuple\")","v":"Mapped"}]
[null,3,{"$f":"Import!E1026","v":0},null,null,null,{"$f":"Import!E1051","v":0},{"$f":"Import!E1076","v":0},{"$f":"Import!E1101","v":0},{"$f":"Import!E1126","v":0},null,null,null,null,null,null,null,null,null,null,null,null,{"$f":"IF(OR(C15<>\"\",G15<>\"\",H15<>\"\",I15<>\"\",J15<>\"\"),XBRLMapTuple($Q$11,P$5,P$6,\"BMA\",CONFIGURATION!$B$1,\"bscr\",\"\",CONFIGURATION!$B$12,$Q$12,C15,$R$12,G15,$S$12,H15,$T$12,I15,$U$12,J15),\"emptyTuple\")","v":"Mapped"}]
[null,4,{"$f":"Import!E1027","v":0},null,null,null,{"$f":"Import!E1052","v":0},{"$f":"Import!E1077","v":0},{"$f":"Import!E1102","v":0},{"$f":"Import!E1127","v":0},null,null,null,null,null,null,null,null,null,null,null,null,{"$f":"IF(OR(C16<>\"\",G16<>\"\",H16<>\"\",I16<>\"\",J16<>\"\"),XBRLMapTuple($Q$11,P$5,P$6,\"BMA\",CONFIGURATION!$B$1,\"bscr\",\"\",CONFIGURATION!$B$12,$Q$12,C16,$R$12,G16,$S$12,H16,$T$12,I16,$U$12,J16),\"emptyTuple\")","v":"Mapped"}]
[null,5,{"$f":"Import!E1028","v":0},null,null,null,{"$f":"Import!E1053","v":0},{"$f":"Import!E1078","v":0},{"$f":"Import!E1103","v":0},{"$f":"Import!E1128","v":0},null,null,null,null,null,null,null,null,null,null,null,null,{"$f":"IF(OR(C17<>\"\",G17<>\"\",H17<>\"\",I17<>\"\",J17<>\"\"),XBRLMapTuple($Q$11,P$5,P$6,\"BMA\",CONFIGURATION!$B$1,\"bscr\",\"\",CONFIGURATION!$B$12,$Q$12,C17,$R$12,G17,$S$12,H17,$T$12,I17,$U$12,J17),\"emptyTuple\")","v":"Mapped"}]
[null,6,{"$f":"Import!E1029","v":0},null,null,null,{"$f":"Import!E1054","v":0},{"$f":"Import!E1079","v":0},{"$f":"Import!E1104","v":0},{"$f":"Import!E1129","v":0},null,null,null,null,null,null,null,null,null,null,null,null,{"$f":"IF(OR(C18<>\"\",G18<>\"\",H18<>\"\",I18<>\"\",J18<>\"\"),XBRLMapTuple($Q$11,P$5,P$6,\"BMA\",CONFIGURATION!$B$1,\"bscr\",\"\",CONFIGURATION!$B$12,$Q$12,C18,$R$12,G18,$S$12,H18,$T$12,I18,$U$12,J18),\"emptyTuple\")","v":"Mapped"}]
[null,7,{"$f":"Import!E1030","v":0},null,null,null,{"$f":"Import!E1055","v":0},{"$f":"Import!E1080","v":0},{"$f":"Import!E1105","v":0},{"$f":"Import!E1130","v":0},null,null,null,null,null,null,null,null,null,null,null,null,{"$f":"IF(OR(C19<>\"\",G19<>\"\",H19<>\"\",I19<>\"\",J19<>\"\"),XBRLMapTuple($Q$11,P$5,P$6,\"BMA\",CONFIGURATION!$B$1,\"bscr\",\"\",CONFIGURATION!$B$12,$Q$12,C19,$R$12,G19,$S$12,H19,$T$12,I19,$U$12,J19),\"emptyTuple\")","v":"Mapped"}]
[null,8,{"$f":"Import!E1031","v":0},null,null,null,{"$f":"Import!E1056","v":0},{"$f":"Import!E1081","v":0},{"$f":"Import!E1106","v":0},{"$f":"Import!E1131","v":0},null,null,null,null,null,null,null,null,null,null,null,null,{"$f":"IF(OR(C20<>\"\",G20<>\"\",H20<>\"\",I20<>\"\",J20<>\"\"),XBRLMapTuple($Q$11,P$5,P$6,\"BMA\",CONFIGURATION!$B$1,\"bscr\",\"\",CONFIGURATION!$B$12,$Q$12,C20,$R$12,G20,$S$12,H20,$T$12,I20,$U$12,J20),\"emptyTuple\")","v":"Mapped"}]
[null,9,{"$f":"Import!E1032","v":0},null,null,null,{"$f":"Import!E1057","v":0},{"$f":"Import!E1082","v":0},{"$f":"Import!E1107","v":0},{"$f":"Import!E1132","v":0},null,null,null,null,null,null,null,null,null,null,null,null,{"$f":"IF(OR(C21<>\"\",G21<>\"\",H21<>\"\",I21<>\"\",J21<>\"\"),XBRLMapTuple($Q$11,P$5,P$6,\"BMA\",CONFIGURATION!$B$1,\"bscr\",\"\",CONFIGURATION!$B$12,$Q$12,C21,$R$12,G21,$S$12,H21,$T$12,I21,$U$12,J21),\"emptyTuple\")","v":"Mapped"}]
[null,10,{"$f":"Import!E1033","v":0},null,null,null,{"$f":"Import!E1058","v":0},{"$f":"Import!E1083","v":0},{"$f":"Import!E1108","v":0},{"$f":"Import!E1133","v":0},null,null,null,null,null,null,null,null,null,null,null,null,{"$f":"IF(OR(C22<>\"\",G22<>\"\",H22<>\"\",I22<>\"\",J22<>\"\"),XBRLMapTuple($Q$11,P$5,P$6,\"BMA\",CONFIGURATION!$B$1,\"bscr\",\"\",CONFIGURATION!$B$12,$Q$12,C22,$R$12,G22,$S$12,H22,$T$12,I22,$U$12,J22),\"emptyTuple\")","v":"Mapped"}]
[null,11,{"$f":"Import!E1034","v":0},null,null,null,{"$f":"Import!E1059","v":0},{"$f":"Import!E1084","v":0},{"$f":"Import!E1109","v":0},{"$f":"Import!E1134","v":0},null,null,null,null,null,null,null,null,null,null,null,null,{"$f":"IF(OR(C23<>\"\",G23<>\"\",H23<>\"\",I23<>\"\",J23<>\"\"),XBRLMapTuple($Q$11,P$5,P$6,\"BMA\",CONFIGURATION!$B$1,\"bscr\",\"\",CONFIGURATION!$B$12,$Q$12,C23,$R$12,G23,$S$12,H23,$T$12,I23,$U$12,J23),\"emptyTuple\")","v":"Mapped"}]
[null,12,{"$f":"Import!E1035","v":0},null,null,null,{"$f":"Import!E1060","v":0},{"$f":"Import!E1085","v":0},{"$f":"Import!E1110","v":0},{"$f":"Import!E1135","v":0},null,null,null,null,null,null,null,null,null,null,null,null,{"$f":"IF(OR(C24<>\"\",G24<>\"\",H24<>\"\",I24<>\"\",J24<>\"\"),XBRLMapTuple($Q$11,P$5,P$6,\"BMA\",CONFIGURATION!$B$1,\"bscr\",\"\",CONFIGURATION!$B$12,$Q$12,C24,$R$12,G24,$S$12,H24,$T$12,I24,$U$12,J24),\"emptyTuple\")","v":"Mapped"}]
[null,13,{"$f":"Import!E1036","v":0},null,null,null,{"$f":"Import!E1061","v":0},{"$f":"Import!E1086","v":0},{"$f":"Import!E1111","v":0},{"$f":"Import!E1136","v":0},null,null,null,null,null,null,null,null,null,null,null,null,{"$f":"IF(OR(C25<>\"\",G25<>\"\",H25<>\"\",I25<>\"\",J25<>\"\"),XBRLMapTuple($Q$11,P$5,P$6,\"BMA\",CONFIGURATION!$B$1,\"bscr\",\"\",CONFIGURATION!$B$12,$Q$12,C25,$R$12,G25,$S$12,H25,$T$12,I25,$U$12,J25),\"emptyTuple\")","v":"Mapped"}]
[null,14,{"$f":"Import!E1037","v":0},null,null,null,{"$f":"Import!E1062","v":0},{"$f":"Import!E1087","v":0},{"$f":"Import!E1112","v":0},{"$f":"Import!E1137","v":0},null,null,null,null,null,null,null,null,null,null,null,null,{"$f":"IF(OR(C26<>\"\",G26<>\"\",H26<>\"\",I26<>\"\",J26<>\"\"),XBRLMapTuple($Q$11,P$5,P$6,\"BMA\",CONFIGURATION!$B$1,\"bscr\",\"\",CONFIGURATION!$B$12,$Q$12,C26,$R$12,G26,$S$12,H26,$T$12,I26,$U$12,J26),\"emptyTuple\")","v":"Mapped"}]
[null,15,{"$f":"Import!E1038","v":0},null,null,null,{"$f":"Import!E1063","v":0},{"$f":"Import!E1088","v":0},{"$f":"Import!E1113","v":0},{"$f":"Import!E1138","v":0},null,null,null,null,null,null,null,null,null,null,null,null,{"$f":"IF(OR(C27<>\"\",G27<>\"\",H27<>\"\",I27<>\"\",J27<>\"\"),XBRLMapTuple($Q$11,P$5,P$6,\"BMA\",CONFIGURATION!$B$1,\"bscr\",\"\",CONFIGURATION!$B$12,$Q$12,C27,$R$12,G27,$S$12,H27,$T$12,I27,$U$12,J27),\"emptyTuple\")","v":"Mapped"}]
[null,16,{"$f":"Import!E1039","v":0},null,null,null,{"$f":"Import!E1064","v":0},{"$f":"Import!E1089","v":0},{"$f":"Import!E1114","v":0},{"$f":"Import!E1139","v":0},null,null,null,null,null,null,null,null,null,null,null,null,{"$f":"IF(OR(C28<>\"\",G28<>\"\",H28<>\"\",I28<>\"\",J28<>\"\"),XBRLMapTuple($Q$11,P$5,P$6,\"BMA\",CONFIGURATION!$B$1,\"bscr\",\"\",CONFIGURATION!$B$12,$Q$12,C28,$R$12,G28,$S$12,H28,$T$12,I28,$U$12,J28),\"emptyTuple\")","v":"Mapped"}]
[null,17,{"$f":"Import!E1040","v":0},null,null,null,{"$f":"Import!E1065","v":0},{"$f":"Import!E1090","v":0},{"$f":"Import!E1115","v":0},{"$f":"Import!E1140","v":0},null,null,null,null,null,null,null,null,null,null,null,null,{"$f":"IF(OR(C29<>\"\",G29<>\"\",H29<>\"\",I29<>\"\",J29<>\"\"),XBRLMapTuple($Q$11,P$5,P$6,\"BMA\",CONFIGURATION!$B$1,\"bscr\",\"\",CONFIGURATION!$B$12,$Q$12,C29,$R$12,G29,$S$12,H29,$T$12,I29,$U$12,J29),\"emptyTuple\")","v":"Mapped"}]
[null,18,{"$f":"Import!E1041","v":0},null,null,null,{"$f":"Import!E1066","v":0},{"$f":"Import!E1091","v":0},{"$f":"Import!E1116","v":0},{"$f":"Import!E1141","v":0},null,null,null,null,null,null,null,null,null,null,null,null,{"$f":"IF(OR(C30<>\"\",G30<>\"\",H30<>\"\",I30<>\"\",J30<>\"\"),XBRLMapTuple($Q$11,P$5,P$6,\"BMA\",CONFIGURATION!$B$1,\"bscr\",\"\",CONFIGURATION!$B$12,$Q$12,C30,$R$12,G30,$S$12,H30,$T$12,I30,$U$12,J30),\"emptyTuple\")","v":"Mapped"}]
[null,19,{"$f":"Import!E1042","v":0},null,null,null,{"$f":"Import!E1067","v":0},{"$f":"Import!E1092","v":0},{"$f":"Import!E1117","v":0},{"$f":"Import!E1142","v":0},null,null,null,null,null,null,null,null,null,null,null,null,{"$f":"IF(OR(C31<>\"\",G31<>\"\",H31<>\"\",I31<>\"\",J31<>\"\"),XBRLMapTuple($Q$11,P$5,P$6,\"BMA\",CONFIGURATION!$B$1,\"bscr\",\"\",CONFIGURATION!$B$12,$Q$12,C31,$R$12,G31,$S$12,H31,$T$12,I31,$U$12,J31),\"emptyTuple\")","v":"Mapped"}]
[null,20,{"$f":"Import!E1043","v":0},null,null,null,{"$f":"Import!E1068","v":0},{"$f":"Import!E1093","v":0},{"$f":"Import!E1118","v":0},{"$f":"Import!E1143","v":0},null,null,null,null,null,null,null,null,null,null,null,null,{"$f":"IF(OR(C32<>\"\",G32<>\"\",H32<>\"\",I32<>\"\",J32<>\"\"),XBRLMapTuple($Q$11,P$5,P$6,\"BMA\",CONFIGURATION!$B$1,\"bscr\",\"\",CONFIGURATION!$B$12,$Q$12,C32,$R$12,G32,$S$12,H32,$T$12,I32,$U$12,J32),\"emptyTuple\")","v":"Mapped"}]
[null,21,{"$f":"Import!E1044","v":0},null,null,null,{"$f":"Import!E1069","v":0},{"$f":"Import!E1094","v":0},{"$f":"Import!E1119","v":0},{"$f":"Import!E1144","v":0},null,null,null,null,null,null,null,null,null,null,null,null,{"$f":"IF(OR(C33<>\"\",G33<>\"\",H33<>\"\",I33<>\"\",J33<>\"\"),XBRLMapTuple($Q$11,P$5,P$6,\"BMA\",CONFIGURATION!$B$1,\"bscr\",\"\",CONFIGURATION!$B$12,$Q$12,C33,$R$12,G33,$S$12,H33,$T$12,I33,$U$12,J33),\"emptyTuple\")","v":"Mapped"}]
[null,22,{"$f":"Import!E1045","v":0},null,null,null,{"$f":"Import!E1070","v":0},{"$f":"Import!E1095","v":0},{"$f":"Import!E1120","v":0},{"$f":"Import!E1145","v":0},null,null,null,null,null,null,null,null,null,null,null,null,{"$f":"IF(OR(C34<>\"\",G34<>\"\",H34<>\"\",I34<>\"\",J34<>\"\"),XBRLMapTuple($Q$11,P$5,P$6,\"BMA\",CONFIGURATION!$B$1,\"bscr\",\"\",CONFIGURATION!$B$12,$Q$12,C34,$R$12,G34,$S$12,H34,$T$12,I34,$U$12,J34),\"emptyTuple\")","v":"Mapped"}]
[null,23,{"$f":"Import!E1046","v":0},null,null,null,{"$f":"Import!E1071","v":0},{"$f":"Import!E1096","v":0},{"$f":"Import!E1121","v":0},{"$f":"Import!E1146","v":0},null,null,null,null,null,null,null,null,null,null,null,null,{"$f":"IF(OR(C35<>\"\",G35<>\"\",H35<>\"\",I35<>\"\",J35<>\"\"),XBRLMapTuple($Q$11,P$5,P$6,\"BMA\",CONFIGURATION!$B$1,\"bscr\",\"\",CONFIGURATION!$B$12,$Q$12,C35,$R$12,G35,$S$12,H35,$T$12,I35,$U$12,J35),\"emptyTuple\")","v":"Mapped"}]
[null,24,{"$f":"Import!E1047","v":0},null,null,null,{"$f":"Import!E1072","v":0},{"$f":"Import!E1097","v":0},{"$f":"Import!E1122","v":0},{"$f":"Import!E1147","v":0},null,null,null,null,null,null,null,null,null,null,null,null,{"$f":"IF(OR(C36<>\"\",G36<>\"\",H36<>\"\",I36<>\"\",J36<>\"\"),XBRLMapTuple($Q$11,P$5,P$6,\"BMA\",CONFIGURATION!$B$1,\"bscr\",\"\",CONFIGURATION!$B$12,$Q$12,C36,$R$12,G36,$S$12,H36,$T$12,I36,$U$12,J36),\"emptyTuple\")","v":"Mapped"}]
[null,25,{"$f":"Import!E1048","v":0},null,null,null,{"$f":"Import!E1073","v":0},{"$f":"Import!E1098","v":0},{"$f":"Import!E1123","v":0},{"$f":"Import!E1148","v":0},null,null,null,null,null,null,null,null,null,null,null,null,{"$f":"IF(OR(C37<>\"\",G37<>\"\",H37<>\"\",I37<>\"\",J37<>\"\"),XBRLMapTuple($Q$11,P$5,P$6,\"BMA\",CONFIGURATION!$B$1,\"bscr\",\"\",CONFIGURATION!$B$12,$Q$12,C37,$R$12,G37,$S$12,H37,$T$12,I37,$U$12,J37),\"emptyTuple\")","v":"Mapped"}]
[null,26,null,null,null,null,null,null,null,null,null,null,null,null,null,null,null,null,null,null,null,null,{"$f":"IF(OR(C38<>\"\",G38<>\"\",H38<>\"\",I38<>\"\",J38<>\"\"),XBRLMapTuple($Q$11,P$5,P$6,\"BMA\",CONFIGURATION!$B$1,\"bscr\",\"\",CONFIGURATION!$B$12,$Q$12,C38,$R$12,G38,$S$12,H38,$T$12,I38,$U$12,J38),\"emptyTuple\")","v":"emptyTuple"}]
[null,27,null,null,null,null,null,null,null,null,null,null,null,null,null,null,null,null,null,null,null,null,{"$f":"IF(OR(C39<>\"\",G39<>\"\",H39<>\"\",I39<>\"\",J39<>\"\"),XBRLMapTuple($Q$11,P$5,P$6,\"BMA\",CONFIGURATION!$B$1,\"bscr\",\"\",CONFIGURATION!$B$12,$Q$12,C39,$R$12,G39,$S$12,H39,$T$12,I39,$U$12,J39),\"emptyTuple\")","v":"emptyTuple"}]
[null,28,null,null,null,null,null,null,null,null,null,null,null,null,null,null,null,null,null,null,null,null,{"$f":"IF(OR(C40<>\"\",G40<>\"\",H40<>\"\",I40<>\"\",J40<>\"\"),XBRLMapTuple($Q$11,P$5,P$6,\"BMA\",CONFIGURATION!$B$1,\"bscr\",\"\",CONFIGURATION!$B$12,$Q$12,C40,$R$12,G40,$S$12,H40,$T$12,I40,$U$12,J40),\"emptyTuple\")","v":"emptyTuple"}]
[null,29,null,null,null,null,null,null,null,null,null,null,null,null,null,null,null,null,null,null,null,null,{"$f":"IF(OR(C41<>\"\",G41<>\"\",H41<>\"\",I41<>\"\",J41<>\"\"),XBRLMapTuple($Q$11,P$5,P$6,\"BMA\",CONFIGURATION!$B$1,\"bscr\",\"\",CONFIGURATION!$B$12,$Q$12,C41,$R$12,G41,$S$12,H41,$T$12,I41,$U$12,J41),\"emptyTuple\")","v":"emptyTuple"}]
[null,30,null,null,null,null,null,null,null,null,null,null,null,null,null,null,null,null,null,null,null,null,{"$f":"IF(OR(C42<>\"\",G42<>\"\",H42<>\"\",I42<>\"\",J42<>\"\"),XBRLMapTuple($Q$11,P$5,P$6,\"BMA\",CONFIGURATION!$B$1,\"bscr\",\"\",CONFIGURATION!$B$12,$Q$12,C42,$R$12,G42,$S$12,H42,$T$12,I42,$U$12,J42),\"emptyTuple\")","v":"emptyTuple"}]
[null,31,null,null,null,null,null,null,null,null,null,null,null,null,null,null,null,null,null,null,null,null,{"$f":"IF(OR(C43<>\"\",G43<>\"\",H43<>\"\",I43<>\"\",J43<>\"\"),XBRLMapTuple($Q$11,P$5,P$6,\"BMA\",CONFIGURATION!$B$1,\"bscr\",\"\",CONFIGURATION!$B$12,$Q$12,C43,$R$12,G43,$S$12,H43,$T$12,I43,$U$12,J43),\"emptyTuple\")","v":"emptyTuple"}]
[null,32,null,null,null,null,null,null,null,null,null,null,null,null,null,null,null,null,null,null,null,null,{"$f":"IF(OR(C44<>\"\",G44<>\"\",H44<>\"\",I44<>\"\",J44<>\"\"),XBRLMapTuple($Q$11,P$5,P$6,\"BMA\",CONFIGURATION!$B$1,\"bscr\",\"\",CONFIGURATION!$B$12,$Q$12,C44,$R$12,G44,$S$12,H44,$T$12,I44,$U$12,J44),\"emptyTuple\")","v":"emptyTuple"}]
[null,33,null,null,null,null,null,null,null,null,null,null,null,null,null,null,null,null,null,null,null,null,{"$f":"IF(OR(C45<>\"\",G45<>\"\",H45<>\"\",I45<>\"\",J45<>\"\"),XBRLMapTuple($Q$11,P$5,P$6,\"BMA\",CONFIGURATION!$B$1,\"bscr\",\"\",CONFIGURATION!$B$12,$Q$12,C45,$R$12,G45,$S$12,H45,$T$12,I45,$U$12,J45),\"emptyTuple\")","v":"emptyTuple"}]
[null,34,null,null,null,null,null,null,null,null,null,null,null,null,null,null,null,null,null,null,null,null,{"$f":"IF(OR(C46<>\"\",G46<>\"\",H46<>\"\",I46<>\"\",J46<>\"\"),XBRLMapTuple($Q$11,P$5,P$6,\"BMA\",CONFIGURATION!$B$1,\"bscr\",\"\",CONFIGURATION!$B$12,$Q$12,C46,$R$12,G46,$S$12,H46,$T$12,I46,$U$12,J46),\"emptyTuple\")","v":"emptyTuple"}]
[null,35,null,null,null,null,null,null,null,null,null,null,null,null,null,null,null,null,null,null,null,null,{"$f":"IF(OR(C47<>\"\",G47<>\"\",H47<>\"\",I47<>\"\",J47<>\"\"),XBRLMapTuple($Q$11,P$5,P$6,\"BMA\",CONFIGURATION!$B$1,\"bscr\",\"\",CONFIGURATION!$B$12,$Q$12,C47,$R$12,G47,$S$12,H47,$T$12,I47,$U$12,J47),\"emptyTuple\")","v":"emptyTuple"}]
[null,36,null,null,null,null,null,null,null,null,null,null,null,null,null,null,null,null,null,null,null,null,{"$f":"IF(OR(C48<>\"\",G48<>\"\",H48<>\"\",I48<>\"\",J48<>\"\"),XBRLMapTuple($Q$11,P$5,P$6,\"BMA\",CONFIGURATION!$B$1,\"bscr\",\"\",CONFIGURATION!$B$12,$Q$12,C48,$R$12,G48,$S$12,H48,$T$12,I48,$U$12,J48),\"emptyTuple\")","v":"emptyTuple"}]
[null,37,null,null,null,null,null,null,null,null,null,null,null,null,null,null,null,null,null,null,null,null,{"$f":"IF(OR(C49<>\"\",G49<>\"\",H49<>\"\",I49<>\"\",J49<>\"\"),XBRLMapTuple($Q$11,P$5,P$6,\"BMA\",CONFIGURATION!$B$1,\"bscr\",\"\",CONFIGURATION!$B$12,$Q$12,C49,$R$12,G49,$S$12,H49,$T$12,I49,$U$12,J49),\"emptyTuple\")","v":"emptyTuple"}]
[null,38,null,null,null,null,null,null,null,null,null,null,null,null,null,null,null,null,null,null,null,null,{"$f":"IF(OR(C50<>\"\",G50<>\"\",H50<>\"\",I50<>\"\",J50<>\"\"),XBRLMapTuple($Q$11,P$5,P$6,\"BMA\",CONFIGURATION!$B$1,\"bscr\",\"\",CONFIGURATION!$B$12,$Q$12,C50,$R$12,G50,$S$12,H50,$T$12,I50,$U$12,J50),\"emptyTuple\")","v":"emptyTuple"}]
[null,39,null,null,null,null,null,null,null,null,null,null,null,null,null,null,null,null,null,null,null,null,{"$f":"IF(OR(C51<>\"\",G51<>\"\",H51<>\"\",I51<>\"\",J51<>\"\"),XBRLMapTuple($Q$11,P$5,P$6,\"BMA\",CONFIGURATION!$B$1,\"bscr\",\"\",CONFIGURATION!$B$12,$Q$12,C51,$R$12,G51,$S$12,H51,$T$12,I51,$U$12,J51),\"emptyTuple\")","v":"emptyTuple"}]
[]
[null,2,"Details of material intra-group transactions —"]
[null,null,"Enter Number of Material Intra-Group Transactions"]
[null,null,"Enter information for each transaction",null,{"$f":"Import!E1149","v":0}]
[]
[null,null,"Counterparties Involved",null,null,null,"Transaction Details \n(Purpose, terms, transaction cost, duration and performance trigger)",null,null,"Exposure Value \n(face value or market value)",null,null,null,null,null,"brrt_DetailsOfMaterialIntragroupTransactions"]
[null,null,"Issuer/Borrower/Debtor","Jurisdiction","Investor/Lender/Creditor","Jurisdiction",null,null,null,null,null,null,null,null,null,"brrt_CounterpartiesInvolvedIssuerBorrowerDebtorName","brrt_CounterpartiesInvolvedIssuerBorrowerDebtorJurisdiction","brrt_CounterpartiesInvolvedInvestorLenderCreditorName","brrt_CounterpartiesInvolvedInvestorLenderCreditorJurisdiction","brrt_TransactionDetailsPurposeTermsTransactionCostDurationAndPerformanceTrigger","brrt_ExposureValueFaceValueOrMarketValue"]
[null,1,{"$f":"Import!E1150","v":0},{"$f":"Import!E1175","v":0},{"$f":"Import!E1200","v":0},{"$f":"Import!E1225","v":0},{"$f":"Import!E1250","v":0},null,null,{"$f":"Import!E1275","v":0},null,null,null,null,null,null,null,null,null,null,null,{"$f":"IF(OR(C59<>\"\",D59<>\"\",E59<>\"\",F59<>\"\",G59<>\"\",J59<>\"\"),XBRLMapTuple($P$57,P$5,P$6,\"BMA\",CONFIGURATION!$B$1,\"bscr\",\"\",CONFIGURATION!$B$12,$P$58,C59,$Q$58,D59,$R$58,E59,$S$58,F59,$T$58,G59,$U$58,J59),\"emptyTuple\")","v":"Mapped"}]
[null,2,{"$f":"Import!E1151","v":0},{"$f":"Import!E1176","v":0},{"$f":"Import!E1201","v":0},{"$f":"Import!E1226","v":0},{"$f":"Import!E1251","v":0},null,null,{"$f":"Import!E1276","v":0},null,null,null,null,null,null,null,null,null,null,null,{"$f":"IF(OR(C60<>\"\",D60<>\"\",E60<>\"\",F60<>\"\",G60<>\"\",J60<>\"\"),XBRLMapTuple($P$57,P$5,P$6,\"BMA\",CONFIGURATION!$B$1,\"bscr\",\"\",CONFIGURATION!$B$12,$P$58,C60,$Q$58,D60,$R$58,E60,$S$58,F60,$T$58,G60,$U$58,J60),\"emptyTuple\")","v":"Mapped"}]
[null,3,{"$f":"Import!E1152","v":0},{"$f":"Import!E1177","v":0},{"$f":"Import!E1202","v":0},{"$f":"Import!E1227","v":0},{"$f":"Import!E1252","v":0},null,null,{"$f":"Import!E1277","v":0},null,null,null,null,null,null,null,null,null,null,null,{"$f":"IF(OR(C61<>\"\",D61<>\"\",E61<>\"\",F61<>\"\",G61<>\"\",J61<>\"\"),XBRLMapTuple($P$57,P$5,P$6,\"BMA\",CONFIGURATION!$B$1,\"bscr\",\"\",CONFIGURATION!$B$12,$P$58,C61,$Q$58,D61,$R$58,E61,$S$58,F61,$T$58,G61,$U$58,J61),\"emptyTuple\")","v":"Mapped"}]
[null,4,{"$f":"Import!E1153","v":0},{"$f":"Import!E1178","v":0},{"$f":"Import!E1203","v":0},{"$f":"Import!E1228","v":0},{"$f":"Import!E1253","v":0},null,null,{"$f":"Import!E1278","v":0},null,null,null,null,null,null,null,null,null,null,null,{"$f":"IF(OR(C62<>\"\",D62<>\"\",E62<>\"\",F62<>\"\",G62<>\"\",J62<>\"\"),XBRLMapTuple($P$57,P$5,P$6,\"BMA\",CONFIGURATION!$B$1,\"bscr\",\"\",CONFIGURATION!$B$12,$P$58,C62,$Q$58,D62,$R$58,E62,$S$58,F62,$T$58,G62,$U$58,J62),\"emptyTuple\")","v":"Mapped"}]
[null,5,{"$f":"Import!E1154","v":0},{"$f":"Import!E1179","v":0},{"$f":"Import!E1204","v":0},{"$f":"Import!E1229","v":0},{"$f":"Import!E1254","v":0},null,null,{"$f":"Import!E1279","v":0},null,null,null,null,null,null,null,null,null,null,null,{"$f":"IF(OR(C63<>\"\",D63<>\"\",E63<>\"\",F63<>\"\",G63<>\"\",J63<>\"\"),XBRLMapTuple($P$57,P$5,P$6,\"BMA\",CONFIGURATION!$B$1,\"bscr\",\"\",CONFIGURATION!$B$12,$P$58,C63,$Q$58,D63,$R$58,E63,$S$58,F63,$T$58,G63,$U$58,J63),\"emptyTuple\")","v":"Mapped"}]
[null,6,{"$f":"Import!E1155","v":0},{"$f":"Import!E1180","v":0},{"$f":"Import!E1205","v":0},{"$f":"Import!E1230","v":0},{"$f":"Import!E1255","v":0},null,null,{"$f":"Import!E1280","v":0},null,null,null,null,null,null,null,null,null,null,null,{"$f":"IF(OR(C64<>\"\",D64<>\"\",E64<>\"\",F64<>\"\",G64<>\"\",J64<>\"\"),XBRLMapTuple($P$57,P$5,P$6,\"BMA\",CONFIGURATION!$B$1,\"bscr\",\"\",CONFIGURATION!$B$12,$P$58,C64,$Q$58,D64,$R$58,E64,$S$58,F64,$T$58,G64,$U$58,J64),\"emptyTuple\")","v":"Mapped"}]
[null,7,{"$f":"Import!E1156","v":0},{"$f":"Import!E1181","v":0},{"$f":"Import!E1206","v":0},{"$f":"Import!E1231","v":0},{"$f":"Import!E1256","v":0},null,null,{"$f":"Import!E1281","v":0},null,null,null,null,null,null,null,null,null,null,null,{"$f":"IF(OR(C65<>\"\",D65<>\"\",E65<>\"\",F65<>\"\",G65<>\"\",J65<>\"\"),XBRLMapTuple($P$57,P$5,P$6,\"BMA\",CONFIGURATION!$B$1,\"bscr\",\"\",CONFIGURATION!$B$12,$P$58,C65,$Q$58,D65,$R$58,E65,$S$58,F65,$T$58,G65,$U$58,J65),\"emptyTuple\")","v":"Mapped"}]
[null,8,{"$f":"Import!E1157","v":0},{"$f":"Import!E1182","v":0},{"$f":"Import!E1207","v":0},{"$f":"Import!E1232","v":0},{"$f":"Import!E1257","v":0},null,null,{"$f":"Import!E1282","v":0},null,null,null,null,null,null,null,null,null,null,null,{"$f":"IF(OR(C66<>\"\",D66<>\"\",E66<>\"\",F66<>\"\",G66<>\"\",J66<>\"\"),XBRLMapTuple($P$57,P$5,P$6,\"BMA\",CONFIGURATION!$B$1,\"bscr\",\"\",CONFIGURATION!$B$12,$P$58,C66,$Q$58,D66,$R$58,E66,$S$58,F66,$T$58,G66,$U$58,J66),\"emptyTuple\")","v":"Mapped"}]
[null,9,{"$f":"Import!E1158","v":0},{"$f":"Import!E1183","v":0},{"$f":"Import!E1208","v":0},{"$f":"Import!E1233","v":0},{"$f":"Import!E1258","v":0},null,null,{"$f":"Import!E1283","v":0},null,null,null,null,null,null,null,null,null,null,null,{"$f":"IF(OR(C67<>\"\",D67<>\"\",E67<>\"\",F67<>\"\",G67<>\"\",J67<>\"\"),XBRLMapTuple($P$57,P$5,P$6,\"BMA\",CONFIGURATION!$B$1,\"bscr\",\"\",CONFIGURATION!$B$12,$P$58,C67,$Q$58,D67,$R$58,E67,$S$58,F67,$T$58,G67,$U$58,J67),\"emptyTuple\")","v":"Mapped"}]
[null,10,{"$f":"Import!E1159","v":0},{"$f":"Import!E1184","v":0},{"$f":"Import!E1209","v":0},{"$f":"Import!E1234","v":0},{"$f":"Import!E1259","v":0},null,null,{"$f":"Import!E1284","v":0},null,null,null,null,null,null,null,null,null,null,null,{"$f":"IF(OR(C68<>\"\",D68<>\"\",E68<>\"\",F68<>\"\",G68<>\"\",J68<>\"\"),XBRLMapTuple($P$57,P$5,P$6,\"BMA\",CONFIGURATION!$B$1,\"bscr\",\"\",CONFIGURATION!$B$12,$P$58,C68,$Q$58,D68,$R$58,E68,$S$58,F68,$T$58,G68,$U$58,J68),\"emptyTuple\")","v":"Mapped"}]
[null,11,{"$f":"Import!E1160","v":0},{"$f":"Import!E1185","v":0},{"$f":"Import!E1210","v":0},{"$f":"Import!E1235","v":0},{"$f":"Import!E1260","v":0},null,null,{"$f":"Import!E1285","v":0},null,null,null,null,null,null,null,null,null,null,null,{"$f":"IF(OR(C69<>\"\",D69<>\"\",E69<>\"\",F69<>\"\",G69<>\"\",J69<>\"\"),XBRLMapTuple($P$57,P$5,P$6,\"BMA\",CONFIGURATION!$B$1,\"bscr\",\"\",CONFIGURATION!$B$12,$P$58,C69,$Q$58,D69,$R$58,E69,$S$58,F69,$T$58,G69,$U$58,J69),\"emptyTuple\")","v":"Mapped"}]
[null,12,{"$f":"Import!E1161","v":0},{"$f":"Import!E1186","v":0},{"$f":"Import!E1211","v":0},{"$f":"Import!E1236","v":0},{"$f":"Import!E1261","v":0},null,null,{"$f":"Import!E1286","v":0},null,null,null,null,null,null,null,null,null,null,null,{"$f":"IF(OR(C70<>\"\",D70<>\"\",E70<>\"\",F70<>\"\",G70<>\"\",J70<>\"\"),XBRLMapTuple($P$57,P$5,P$6,\"BMA\",CONFIGURATION!$B$1,\"bscr\",\"\",CONFIGURATION!$B$12,$P$58,C70,$Q$58,D70,$R$58,E70,$S$58,F70,$T$58,G70,$U$58,J70),\"emptyTuple\")","v":"Mapped"}]
[null,13,{"$f":"Import!E1162","v":0},{"$f":"Import!E1187","v":0},{"$f":"Import!E1212","v":0},{"$f":"Import!E1237","v":0},{"$f":"Import!E1262","v":0},null,null,{"$f":"Import!E1287","v":0},null,null,null,null,null,null,null,null,null,null,null,{"$f":"IF(OR(C71<>\"\",D71<>\"\",E71<>\"\",F71<>\"\",G71<>\"\",J71<>\"\"),XBRLMapTuple($P$57,P$5,P$6,\"BMA\",CONFIGURATION!$B$1,\"bscr\",\"\",CONFIGURATION!$B$12,$P$58,C71,$Q$58,D71,$R$58,E71,$S$58,F71,$T$58,G71,$U$58,J71),\"emptyTuple\")","v":"Mapped"}]
[null,14,{"$f":"Import!E1163","v":0},{"$f":"Import!E1188","v":0},{"$f":"Import!E1213","v":0},{"$f":"Import!E1238","v":0},{"$f":"Import!E1263","v":0},null,null,{"$f":"Import!E1288","v":0},null,null,null,null,null,null,null,null,null,null,null,{"$f":"IF(OR(C72<>\"\",D72<>\"\",E72<>\"\",F72<>\"\",G72<>\"\",J72<>\"\"),XBRLMapTuple($P$57,P$5,P$6,\"BMA\",CONFIGURATION!$B$1,\"bscr\",\"\",CONFIGURATION!$B$12,$P$58,C72,$Q$58,D72,$R$58,E72,$S$58,F72,$T$58,G72,$U$58,J72),\"emptyTuple\")","v":"Mapped"}]
[null,15,{"$f":"Import!E1164","v":0},{"$f":"Import!E1189","v":0},{"$f":"Import!E1214","v":0},{"$f":"Import!E1239","v":0},{"$f":"Import!E1264","v":0},null,null,{"$f":"Import!E1289","v":0},null,null,null,null,null,null,null,null,null,null,null,{"$f":"IF(OR(C73<>\"\",D73<>\"\",E73<>\"\",F73<>\"\",G73<>\"\",J73<>\"\"),XBRLMapTuple($P$57,P$5,P$6,\"BMA\",CONFIGURATION!$B$1,\"bscr\",\"\",CONFIGURATION!$B$12,$P$58,C73,$Q$58,D73,$R$58,E73,$S$58,F73,$T$58,G73,$U$58,J73),\"emptyTuple\")","v":"Mapped"}]
[null,16,{"$f":"Import!E1165","v":0},{"$f":"Import!E1190","v":0},{"$f":"Import!E1215","v":0},{"$f":"Import!E1240","v":0},{"$f":"Import!E1265","v":0},null,null,{"$f":"Import!E1290","v":0},null,null,null,null,null,null,null,null,null,null,null,{"$f":"IF(OR(C74<>\"\",D74<>\"\",E74<>\"\",F74<>\"\",G74<>\"\",J74<>\"\"),XBRLMapTuple($P$57,P$5,P$6,\"BMA\",CONFIGURATION!$B$1,\"bscr\",\"\",CONFIGURATION!$B$12,$P$58,C74,$Q$58,D74,$R$58,E74,$S$58,F74,$T$58,G74,$U$58,J74),\"emptyTuple\")","v":"Mapped"}]
[null,17,{"$f":"Import!E1166","v":0},{"$f":"Import!E1191","v":0},{"$f":"Import!E1216","v":0},{"$f":"Import!E1241","v":0},{"$f":"Import!E1266","v":0},null,null,{"$f":"Import!E1291","v":0},null,null,null,null,null,null,null,null,null,null,null,{"$f":"IF(OR(C75<>\"\",D75<>\"\",E75<>\"\",F75<>\"\",G75<>\"\",J75<>\"\"),XBRLMapTuple($P$57,P$5,P$6,\"BMA\",CONFIGURATION!$B$1,\"bscr\",\"\",CONFIGURATION!$B$12,$P$58,C75,$Q$58,D75,$R$58,E75,$S$58,F75,$T$58,G75,$U$58,J75),\"emptyTuple\")","v":"Mapped"}]
[null,18,{"$f":"Import!E1167","v":0},{"$f":"Import!E1192","v":0},{"$f":"Import!E1217","v":0},{"$f":"Import!E1242","v":0},{"$f":"Import!E1267","v":0},null,null,{"$f":"Import!E1292","v":0},null,null,null,null,null,null,null,null,null,null,null,{"$f":"IF(OR(C76<>\"\",D76<>\"\",E76<>\"\",F76<>\"\",G76<>\"\",J76<>\"\"),XBRLMapTuple($P$57,P$5,P$6,\"BMA\",CONFIGURATION!$B$1,\"bscr\",\"\",CONFIGURATION!$B$12,$P$58,C76,$Q$58,D76,$R$58,E76,$S$58,F76,$T$58,G76,$U$58,J76),\"emptyTuple\")","v":"Mapped"}]
[null,19,{"$f":"Import!E1168","v":0},{"$f":"Import!E1193","v":0},{"$f":"Import!E1218","v":0},{"$f":"Import!E1243","v":0},{"$f":"Import!E1268","v":0},null,null,{"$f":"Import!E1293","v":0},null,null,null,null,null,null,null,null,null,null,null,{"$f":"IF(OR(C77<>\"\",D77<>\"\",E77<>\"\",F77<>\"\",G77<>\"\",J77<>\"\"),XBRLMapTuple($P$57,P$5,P$6,\"BMA\",CONFIGURATION!$B$1,\"bscr\",\"\",CONFIGURATION!$B$12,$P$58,C77,$Q$58,D77,$R$58,E77,$S$58,F77,$T$58,G77,$U$58,J77),\"emptyTuple\")","v":"Mapped"}]
[null,20,{"$f":"Import!E1169","v":0},{"$f":"Import!E1194","v":0},{"$f":"Import!E1219","v":0},{"$f":"Import!E1244","v":0},{"$f":"Import!E1269","v":0},null,null,{"$f":"Import!E1294","v":0},null,null,null,null,null,null,null,null,null,null,null,{"$f":"IF(OR(C78<>\"\",D78<>\"\",E78<>\"\",F78<>\"\",G78<>\"\",J78<>\"\"),XBRLMapTuple($P$57,P$5,P$6,\"BMA\",CONFIGURATION!$B$1,\"bscr\",\"\",CONFIGURATION!$B$12,$P$58,C78,$Q$58,D78,$R$58,E78,$S$58,F78,$T$58,G78,$U$58,J78),\"emptyTuple\")","v":"Mapped"}]
[null,21,{"$f":"Import!E1170","v":0},{"$f":"Import!E1195","v":0},{"$f":"Import!E1220","v":0},{"$f":"Import!E1245","v":0},{"$f":"Import!E1270","v":0},null,null,{"$f":"Import!E1295","v":0},null,null,null,null,null,null,null,null,null,null,null,{"$f":"IF(OR(C79<>\"\",D79<>\"\",E79<>\"\",F79<>\"\",G79<>\"\",J79<>\"\"),XBRLMapTuple($P$57,P$5,P$6,\"BMA\",CONFIGURATION!$B$1,\"bscr\",\"\",CONFIGURATION!$B$12,$P$58,C79,$Q$58,D79,$R$58,E79,$S$58,F79,$T$58,G79,$U$58,J79),\"emptyTuple\")","v":"Mapped"}]
[null,22,{"$f":"Import!E1171","v":0},{"$f":"Import!E1196","v":0},{"$f":"Import!E1221","v":0},{"$f":"Import!E1246","v":0},{"$f":"Import!E1271","v":0},null,null,{"$f":"Import!E1296","v":0},null,null,null,null,null,null,null,null,null,null,null,{"$f":"IF(OR(C80<>\"\",D80<>\"\",E80<>\"\",F80<>\"\",G80<>\"\",J80<>\"\"),XBRLMapTuple($P$57,P$5,P$6,\"BMA\",CONFIGURATION!$B$1,\"bscr\",\"\",CONFIGURATION!$B$12,$P$58,C80,$Q$58,D80,$R$58,E80,$S$58,F80,$T$58,G80,$U$58,J80),\"emptyTuple\")","v":"Mapped"}]
[null,23,{"$f":"Import!E1172","v":0},{"$f":"Import!E1197","v":0},{"$f":"Import!E1222","v":0},{"$f":"Import!E1247","v":0},{"$f":"Import!E1272","v":0},null,null,{"$f":"Import!E1297","v":0},null,null,null,null,null,null,null,null,null,null,null,{"$f":"IF(OR(C81<>\"\",D81<>\"\",E81<>\"\",F81<>\"\",G81<>\"\",J81<>\"\"),XBRLMapTuple($P$57,P$5,P$6,\"BMA\",CONFIGURATION!$B$1,\"bscr\",\"\",CONFIGURATION!$B$12,$P$58,C81,$Q$58,D81,$R$58,E81,$S$58,F81,$T$58,G81,$U$58,J81),\"emptyTuple\")","v":"Mapped"}]
[null,24,{"$f":"Import!E1173","v":0},{"$f":"Import!E1198","v":0},{"$f":"Import!E1223","v":0},{"$f":"Import!E1248","v":0},{"$f":"Import!E1273","v":0},null,null,{"$f":"Import!E1298","v":0},null,null,null,null,null,null,null,null,null,null,null,{"$f":"IF(OR(C82<>\"\",D82<>\"\",E82<>\"\",F82<>\"\",G82<>\"\",J82<>\"\"),XBRLMapTuple($P$57,P$5,P$6,\"BMA\",CONFIGURATION!$B$1,\"bscr\",\"\",CONFIGURATION!$B$12,$P$58,C82,$Q$58,D82,$R$58,E82,$S$58,F82,$T$58,G82,$U$58,J82),\"emptyTuple\")","v":"Mapped"}]
[]
[null,3,"Details of all intra-group reinsurance and retrocession arrangements —"]
[null,null,"Enter Number of Intra-Group (Re)insurance Arrangements",null,null,null,{"$f":"IF(E86>25,\"Please group arrangements with the same cedent and assuming parties together. Only 25 arrangements can be populated below. Additional arrangements must be provided as an attachment.\",\"\")","v":""}]
[null,null,"Enter information for each arrangement",null,10]
[]
[null,null,"Counterparties Involved",null,null,null,null,null,"Aggregated values of the exposure limits",null,"Aggregated premium flows",null,null,null,null,null,null,"brrt_DetailsOfAllIntragroupReinsuranceAndRetrocessionArrangements"]
[null,null,null,null,null,null,null,null,null,null,null,null,null,null,null,null,null,"brrt_CounterpartiesInvolvedAssumingPartyName","brrt_CounterpartiesInvolvedAssumingPartyJurisdiction","brrt_CounterpartiesInvolvedCedingPartyName","brrt_CounterpartiesInvolvedCedingPartyJurisdiction","brrt_AggregatedGrossValuesOfExposureLimits","brrt_AggregatedNetValuesOfExposureLimits","brrt_AggregatedGrossPremiumFlows","brrt_AggregatedNetPremiumFlows"]
[null,null,"Assuming party","Jurisdiction","Rating","Ceding party","Jurisdiction","Rating","Gross","Net","Gross","Net"]
[null,1,{"$f":"Import!E1301","v":0},{"$f":"Import!E1324","v":0},{"$f":"Import!E1347","v":0},{"$f":"Import!E1370","v":0},{"$f":"Import!E1393","v":0},{"$f":"Import!E1416","v":0},{"$f":"Import!E1439","v":0},{"$f":"Import!E1462","v":0},{"$f":"Import!E1485","v":0},{"$f":"Import!E1508","v":0},null,null,null,null,null,null,null,null,null,null,null,{"$f":"IF(OR(C91<>\"\",E91<>\"\",F91<>\"\",H91<>\"\",I91<>\"\",J91<>\"\",K91<>\"\",L91<>\"\"),XBRLMapTuple($R$88,P$5,P$6,\"BMA\",CONFIGURATION!$B$1,\"bscr\",\"\",CONFIGURATION!$B$12,$R$89,C91,$S$89,E91,$T$89,F91,$U$89,H91,$V$89,I91,$W$89,J91,$X$89,K91,$Y$89,L91),\"emptyTuple\")","v":"Mapped"}]
[null,2,{"$f":"Import!E1302","v":0},{"$f":"Import!E1325","v":0},{"$f":"Import!E1348","v":0},{"$f":"Import!E1371","v":0},{"$f":"Import!E1394","v":0},{"$f":"Import!E1417","v":0},{"$f":"Import!E1440","v":0},{"$f":"Import!E1463","v":0},{"$f":"Import!E1486","v":0},{"$f":"Import!E1509","v":0},null,null,null,null,null,null,null,null,null,null,null,{"$f":"IF(OR(C92<>\"\",E92<>\"\",F92<>\"\",H92<>\"\",I92<>\"\",J92<>\"\",K92<>\"\",L92<>\"\"),XBRLMapTuple($R$88,P$5,P$6,\"BMA\",CONFIGURATION!$B$1,\"bscr\",\"\",CONFIGURATION!$B$12,$R$89,C92,$S$89,E92,$T$89,F92,$U$89,H92,$V$89,I92,$W$89,J92,$X$89,K92,$Y$89,L92),\"emptyTuple\")","v":"Mapped"}]
[null,3,{"$f":"Import!E1303","v":0},{"$f":"Import!E1326","v":0},{"$f":"Import!E1349","v":0},{"$f":"Import!E1372","v":0},{"$f":"Import!E1395","v":0},{"$f":"Import!E1418","v":0},{"$f":"Import!E1441","v":0},{"$f":"Import!E1464","v":0},{"$f":"Import!E1487","v":0},{"$f":"Import!E1510","v":0},null,null,null,null,null,null,null,null,null,null,null,{"$f":"IF(OR(C93<>\"\",E93<>\"\",F93<>\"\",H93<>\"\",I93<>\"\",J93<>\"\",K93<>\"\",L93<>\"\"),XBRLMapTuple($R$88,P$5,P$6,\"BMA\",CONFIGURATION!$B$1,\"bscr\",\"\",CONFIGURATION!$B$12,$R$89,C93,$S$89,E93,$T$89,F93,$U$89,H93,$V$89,I93,$W$89,J93,$X$89,K93,$Y$89,L93),\"emptyTuple\")","v":"Mapped"}]
[null,4,{"$f":"Import!E1304","v":0},{"$f":"Import!E1327","v":0},{"$f":"Import!E1350","v":0},{"$f":"Import!E1373","v":0},{"$f":"Import!E1396","v":0},{"$f":"Import!E1419","v":0},{"$f":"Import!E1442","v":0},{"$f":"Import!E1465","v":0},{"$f":"Import!E1488","v":0},{"$f":"Import!E1511","v":0},null,null,null,null,null,null,null,null,null,null,null,{"$f":"IF(OR(C94<>\"\",E94<>\"\",F94<>\"\",H94<>\"\",I94<>\"\",J94<>\"\",K94<>\"\",L94<>\"\"),XBRLMapTuple($R$88,P$5,P$6,\"BMA\",CONFIGURATION!$B$1,\"bscr\",\"\",CONFIGURATION!$B$12,$R$89,C94,$S$89,E94,$T$89,F94,$U$89,H94,$V$89,I94,$W$89,J94,$X$89,K94,$Y$89,L94),\"emptyTuple\")","v":"Mapped"}]
[null,5,{"$f":"Import!E1305","v":0},{"$f":"Import!E1328","v":0},{"$f":"Import!E1351","v":0},{"$f":"Import!E1374","v":0},{"$f":"Import!E1397","v":0},{"$f":"Import!E1420","v":0},{"$f":"Import!E1443","v":0},{"$f":"Import!E1466","v":0},{"$f":"Import!E1489","v":0},{"$f":"Import!E1512","v":0},null,null,null,null,null,null,null,null,null,null,null,{"$f":"IF(OR(C95<>\"\",E95<>\"\",F95<>\"\",H95<>\"\",I95<>\"\",J95<>\"\",K95<>\"\",L95<>\"\"),XBRLMapTuple($R$88,P$5,P$6,\"BMA\",CONFIGURATION!$B$1,\"bscr\",\"\",CONFIGURATION!$B$12,$R$89,C95,$S$89,E95,$T$89,F95,$U$89,H95,$V$89,I95,$W$89,J95,$X$89,K95,$Y$89,L95),\"emptyTuple\")","v":"Mapped"}]
[null,6,{"$f":"Import!E1306","v":0},{"$f":"Import!E1329","v":0},{"$f":"Import!E1352","v":0},{"$f":"Import!E1375","v":0},{"$f":"Import!E1398","v":0},{"$f":"Import!E1421","v":0},{"$f":"Import!E1444","v":0},{"$f":"Import!E1467","v":0},{"$f":"Import!E1490","v":0},{"$f":"Import!E1513","v":0},null,null,null,null,null,null,null,null,null,null,null,{"$f":"IF(OR(C96<>\"\",E96<>\"\",F96<>\"\",H96<>\"\",I96<>\"\",J96<>\"\",K96<>\"\",L96<>\"\"),XBRLMapTuple($R$88,P$5,P$6,\"BMA\",CONFIGURATION!$B$1,\"bscr\",\"\",CONFIGURATION!$B$12,$R$89,C96,$S$89,E96,$T$89,F96,$U$89,H96,$V$89,I96,$W$89,J96,$X$89,K96,$Y$89,L96),\"emptyTuple\")","v":"Mapped"}]
[null,7,{"$f":"Import!E1307","v":0},{"$f":"Import!E1330","v":0},{"$f":"Import!E1353","v":0},{"$f":"Import!E1376","v":0},{"$f":"Import!E1399","v":0},{"$f":"Import!E1422","v":0},{"$f":"Import!E1445","v":0},{"$f":"Import!E1468","v":0},{"$f":"Import!E1491","v":0},{"$f":"Import!E1514","v":0},null,null,null,null,null,null,null,null,null,null,null,{"$f":"IF(OR(C97<>\"\",E97<>\"\",F97<>\"\",H97<>\"\",I97<>\"\",J97<>\"\",K97<>\"\",L97<>\"\"),XBRLMapTuple($R$88,P$5,P$6,\"BMA\",CONFIGURATION!$B$1,\"bscr\",\"\",CONFIGURATION!$B$12,$R$89,C97,$S$89,E97,$T$89,F97,$U$89,H97,$V$89,I97,$W$89,J97,$X$89,K97,$Y$89,L97),\"emptyTuple\")","v":"Mapped"}]
[null,8,{"$f":"Import!E1308","v":0},{"$f":"Import!E1331","v":0},{"$f":"Import!E1354","v":0},{"$f":"Import!E1377","v":0},{"$f":"Import!E1400","v":0},{"$f":"Import!E1423","v":0},{"$f":"Import!E1446","v":0},{"$f":"Import!E1469","v":0},{"$f":"Import!E1492","v":0},{"$f":"Import!E1515","v":0},null,null,null,null,null,null,null,null,null,null,null,{"$f":"IF(OR(C98<>\"\",E98<>\"\",F98<>\"\",H98<>\"\",I98<>\"\",J98<>\"\",K98<>\"\",L98<>\"\"),XBRLMapTuple($R$88,P$5,P$6,\"BMA\",CONFIGURATION!$B$1,\"bscr\",\"\",CONFIGURATION!$B$12,$R$89,C98,$S$89,E98,$T$89,F98,$U$89,H98,$V$89,I98,$W$89,J98,$X$89,K98,$Y$89,L98),\"emptyTuple\")","v":"Mapped"}]
[null,9,{"$f":"Import!E1309","v":0},{"$f":"Import!E1332","v":0},{"$f":"Import!E1355","v":0},{"$f":"Import!E1378","v":0},{"$f":"Import!E1401","v":0},{"$f":"Import!E1424","v":0},{"$f":"Import!E1447","v":0},{"$f":"Import!E1470","v":0},{"$f":"Import!E1493","v":0},{"$f":"Import!E1516","v":0},null,null,null,null,null,null,null,null,null,null,null,{"$f":"IF(OR(C99<>\"\",E99<>\"\",F99<>\"\",H99<>\"\",I99<>\"\",J99<>\"\",K99<>\"\",L99<>\"\"),XBRLMapTuple($R$88,P$5,P$6,\"BMA\",CONFIGURATION!$B$1,\"bscr\",\"\",CONFIGURATION!$B$12,$R$89,C99,$S$89,E99,$T$89,F99,$U$89,H99,$V$89,I99,$W$89,J99,$X$89,K99,$Y$89,L99),\"emptyTuple\")","v":"Mapped"}]
[null,10,{"$f":"Import!E1310","v":0},{"$f":"Import!E1333","v":0},{"$f":"Import!E1356","v":0},{"$f":"Import!E1379","v":0},{"$f":"Import!E1402","v":0},{"$f":"Import!E1425","v":0},{"$f":"Import!E1448","v":0},{"$f":"Import!E1471","v":0},{"$f":"Import!E1494","v":0},{"$f":"Import!E1517","v":0},null,null,null,null,null,null,null,null,null,null,null,{"$f":"IF(OR(C100<>\"\",E100<>\"\",F100<>\"\",H100<>\"\",I100<>\"\",J100<>\"\",K100<>\"\",L100<>\"\"),XBRLMapTuple($R$88,P$5,P$6,\"BMA\",CONFIGURATION!$B$1,\"bscr\",\"\",CONFIGURATION!$B$12,$R$89,C100,$S$89,E100,$T$89,F100,$U$89,H100,$V$89,I100,$W$89,J100,$X$89,K100,$Y$89,L100),\"emptyTuple\")","v":"Mapped"}]
[null,11,{"$f":"Import!E1311","v":0},{"$f":"Import!E1334","v":0},{"$f":"Import!E1357","v":0},{"$f":"Import!E1380","v":0},{"$f":"Import!E1403","v":0},{"$f":"Import!E1426","v":0},{"$f":"Import!E1449","v":0},{"$f":"Import!E1472","v":0},{"$f":"Import!E1495","v":0},{"$f":"Import!E1518","v":0},null,null,null,null,null,null,null,null,null,null,null,{"$f":"IF(OR(C101<>\"\",E101<>\"\",F101<>\"\",H101<>\"\",I101<>\"\",J101<>\"\",K101<>\"\",L101<>\"\"),XBRLMapTuple($R$88,P$5,P$6,\"BMA\",CONFIGURATION!$B$1,\"bscr\",\"\",CONFIGURATION!$B$12,$R$89,C101,$S$89,E101,$T$89,F101,$U$89,H101,$V$89,I101,$W$89,J101,$X$89,K101,$Y$89,L101),\"emptyTuple\")","v":"Mapped"}]
[null,12,{"$f":"Import!E1312","v":0},{"$f":"Import!E1335","v":0},{"$f":"Import!E1358","v":0},{"$f":"Import!E1381","v":0},{"$f":"Import!E1404","v":0},{"$f":"Import!E1427","v":0},{"$f":"Import!E1450","v":0},{"$f":"Import!E1473","v":0},{"$f":"Import!E1496","v":0},{"$f":"Import!E1519","v":0},null,null,null,null,null,null,null,null,null,null,null,{"$f":"IF(OR(C102<>\"\",E102<>\"\",F102<>\"\",H102<>\"\",I102<>\"\",J102<>\"\",K102<>\"\",L102<>\"\"),XBRLMapTuple($R$88,P$5,P$6,\"BMA\",CONFIGURATION!$B$1,\"bscr\",\"\",CONFIGURATION!$B$12,$R$89,C102,$S$89,E102,$T$89,F102,$U$89,H102,$V$89,I102,$W$89,J102,$X$89,K102,$Y$89,L102),\"emptyTuple\")","v":"Mapped"}]
[null,13,{"$f":"Import!E1313","v":0},{"$f":"Import!E1336","v":0},{"$f":"Import!E1359","v":0},{"$f":"Import!E1382","v":0},{"$f":"Import!E1405","v":0},{"$f":"Import!E1428","v":0},{"$f":"Import!E1451","v":0},{"$f":"Import!E1474","v":0},{"$f":"Import!E1497","v":0},{"$f":"Import!E1520","v":0},null,null,null,null,null,null,null,null,null,null,null,{"$f":"IF(OR(C103<>\"\",E103<>\"\",F103<>\"\",H103<>\"\",I103<>\"\",J103<>\"\",K103<>\"\",L103<>\"\"),XBRLMapTuple($R$88,P$5,P$6,\"BMA\",CONFIGURATION!$B$1,\"bscr\",\"\",CONFIGURATION!$B$12,$R$89,C103,$S$89,E103,$T$89,F103,$U$89,H103,$V$89,I103,$W$89,J103,$X$89,K103,$Y$89,L103),\"emptyTuple\")","v":"Mapped"}]
[null,14,{"$f":"Import!E1314","v":0},{"$f":"Import!E1337","v":0},{"$f":"Import!E1360","v":0},{"$f":"Import!E1383","v":0},{"$f":"Import!E1406","v":0},{"$f":"Import!E1429","v":0},{"$f":"Import!E1452","v":0},{"$f":"Import!E1475","v":0},{"$f":"Import!E1498","v":0},{"$f":"Import!E1521","v":0},null,null,null,null,null,null,null,null,null,null,null,{"$f":"IF(OR(C104<>\"\",E104<>\"\",F104<>\"\",H104<>\"\",I104<>\"\",J104<>\"\",K104<>\"\",L104<>\"\"),XBRLMapTuple($R$88,P$5,P$6,\"BMA\",CONFIGURATION!$B$1,\"bscr\",\"\",CONFIGURATION!$B$12,$R$89,C104,$S$89,E104,$T$89,F104,$U$89,H104,$V$89,I104,$W$89,J104,$X$89,K104,$Y$89,L104),\"emptyTuple\")","v":"Mapped"}]
[null,15,{"$f":"Import!E1315","v":0},{"$f":"Import!E1338","v":0},{"$f":"Import!E1361","v":0},{"$f":"Import!E1384","v":0},{"$f":"Import!E1407","v":0},{"$f":"Import!E1430","v":0},{"$f":"Import!E1453","v":0},{"$f":"Import!E1476","v":0},{"$f":"Import!E1499","v":0},{"$f":"Import!E1522","v":0},null,null,null,null,null,null,null,null,null,null,null,{"$f":"IF(OR(C105<>\"\",E105<>\"\",F105<>\"\",H105<>\"\",I105<>\"\",J105<>\"\",K105<>\"\",L105<>\"\"),XBRLMapTuple($R$88,P$5,P$6,\"BMA\",CONFIGURATION!$B$1,\"bscr\",\"\",CONFIGURATION!$B$12,$R$89,C105,$S$89,E105,$T$89,F105,$U$89,H105,$V$89,I105,$W$89,J105,$X$89,K105,$Y$89,L105),\"emptyTuple\")","v":"Mapped"}]
[null,16,{"$f":"Import!E1316","v":0},{"$f":"Import!E1339","v":0},{"$f":"Import!E1362","v":0},{"$f":"Import!E1385","v":0},{"$f":"Import!E1408","v":0},{"$f":"Import!E1431","v":0},{"$f":"Import!E1454","v":0},{"$f":"Import!E1477","v":0},{"$f":"Import!E1500","v":0},{"$f":"Import!E1523","v":0},null,null,null,null,null,null,null,null,null,null,null,{"$f":"IF(OR(C106<>\"\",E106<>\"\",F106<>\"\",H106<>\"\",I106<>\"\",J106<>\"\",K106<>\"\",L106<>\"\"),XBRLMapTuple($R$88,P$5,P$6,\"BMA\",CONFIGURATION!$B$1,\"bscr\",\"\",CONFIGURATION!$B$12,$R$89,C106,$S$89,E106,$T$89,F106,$U$89,H106,$V$89,I106,$W$89,J106,$X$89,K106,$Y$89,L106),\"emptyTuple\")","v":"Mapped"}]
[null,17,{"$f":"Import!E1317","v":0},{"$f":"Import!E1340","v":0},{"$f":"Import!E1363","v":0},{"$f":"Import!E1386","v":0},{"$f":"Import!E1409","v":0},{"$f":"Import!E1432","v":0},{"$f":"Import!E1455","v":0},{"$f":"Import!E1478","v":0},{"$f":"Import!E1501","v":0},{"$f":"Import!E1524","v":0},null,null,null,null,null,null,null,null,null,null,null,{"$f":"IF(OR(C107<>\"\",E107<>\"\",F107<>\"\",H107<>\"\",I107<>\"\",J107<>\"\",K107<>\"\",L107<>\"\"),XBRLMapTuple($R$88,P$5,P$6,\"BMA\",CONFIGURATION!$B$1,\"bscr\",\"\",CONFIGURATION!$B$12,$R$89,C107,$S$89,E107,$T$89,F107,$U$89,H107,$V$89,I107,$W$89,J107,$X$89,K107,$Y$89,L107),\"emptyTuple\")","v":"Mapped"}]
[null,18,{"$f":"Import!E1318","v":0},{"$f":"Import!E1341","v":0},{"$f":"Import!E1364","v":0},{"$f":"Import!E1387","v":0},{"$f":"Import!E1410","v":0},{"$f":"Import!E1433","v":0},{"$f":"Import!E1456","v":0},{"$f":"Import!E1479","v":0},{"$f":"Import!E1502","v":0},{"$f":"Import!E1525","v":0},null,null,null,null,null,null,null,null,null,null,null,{"$f":"IF(OR(C108<>\"\",E108<>\"\",F108<>\"\",H108<>\"\",I108<>\"\",J108<>\"\",K108<>\"\",L108<>\"\"),XBRLMapTuple($R$88,P$5,P$6,\"BMA\",CONFIGURATION!$B$1,\"bscr\",\"\",CONFIGURATION!$B$12,$R$89,C108,$S$89,E108,$T$89,F108,$U$89,H108,$V$89,I108,$W$89,J108,$X$89,K108,$Y$89,L108),\"emptyTuple\")","v":"Mapped"}]
[null,19,{"$f":"Import!E1319","v":0},{"$f":"Import!E1342","v":0},{"$f":"Import!E1365","v":0},{"$f":"Import!E1388","v":0},{"$f":"Import!E1411","v":0},{"$f":"Import!E1434","v":0},{"$f":"Import!E1457","v":0},{"$f":"Import!E1480","v":0},{"$f":"Import!E1503","v":0},{"$f":"Import!E1526","v":0},null,null,null,null,null,null,null,null,null,null,null,{"$f":"IF(OR(C109<>\"\",E109<>\"\",F109<>\"\",H109<>\"\",I109<>\"\",J109<>\"\",K109<>\"\",L109<>\"\"),XBRLMapTuple($R$88,P$5,P$6,\"BMA\",CONFIGURATION!$B$1,\"bscr\",\"\",CONFIGURATION!$B$12,$R$89,C109,$S$89,E109,$T$89,F109,$U$89,H109,$V$89,I109,$W$89,J109,$X$89,K109,$Y$89,L109),\"emptyTuple\")","v":"Mapped"}]
[null,20,{"$f":"Import!E1320","v":0},{"$f":"Import!E1343","v":0},{"$f":"Import!E1366","v":0},{"$f":"Import!E1389","v":0},{"$f":"Import!E1412","v":0},{"$f":"Import!E1435","v":0},{"$f":"Import!E1458","v":0},{"$f":"Import!E1481","v":0},{"$f":"Import!E1504","v":0},{"$f":"Import!E1527","v":0},null,null,null,null,null,null,null,null,null,null,null,{"$f":"IF(OR(C110<>\"\",E110<>\"\",F110<>\"\",H110<>\"\",I110<>\"\",J110<>\"\",K110<>\"\",L110<>\"\"),XBRLMapTuple($R$88,P$5,P$6,\"BMA\",CONFIGURATION!$B$1,\"bscr\",\"\",CONFIGURATION!$B$12,$R$89,C110,$S$89,E110,$T$89,F110,$U$89,H110,$V$89,I110,$W$89,J110,$X$89,K110,$Y$89,L110),\"emptyTuple\")","v":"Mapped"}]
[null,21,{"$f":"Import!E1321","v":0},{"$f":"Import!E1344","v":0},{"$f":"Import!E1367","v":0},{"$f":"Import!E1390","v":0},{"$f":"Import!E1413","v":0},{"$f":"Import!E1436","v":0},{"$f":"Import!E1459","v":0},{"$f":"Import!E1482","v":0},{"$f":"Import!E1505","v":0},{"$f":"Import!E1528","v":0},null,null,null,null,null,null,null,null,null,null,null,{"$f":"IF(OR(C111<>\"\",E111<>\"\",F111<>\"\",H111<>\"\",I111<>\"\",J111<>\"\",K111<>\"\",L111<>\"\"),XBRLMapTuple($R$88,P$5,P$6,\"BMA\",CONFIGURATION!$B$1,\"bscr\",\"\",CONFIGURATION!$B$12,$R$89,C111,$S$89,E111,$T$89,F111,$U$89,H111,$V$89,I111,$W$89,J111,$X$89,K111,$Y$89,L111),\"emptyTuple\")","v":"Mapped"}]
[null,22,{"$f":"Import!E1322","v":0},{"$f":"Import!E1345","v":0},{"$f":"Import!E1368","v":0},{"$f":"Import!E1391","v":0},{"$f":"Import!E1414","v":0},{"$f":"Import!E1437","v":0},{"$f":"Import!E1460","v":0},{"$f":"Import!E1483","v":0},{"$f":"Import!E1506","v":0},{"$f":"Import!E1529","v":0},null,null,null,null,null,null,null,null,null,null,null,{"$f":"IF(OR(C112<>\"\",E112<>\"\",F112<>\"\",H112<>\"\",I112<>\"\",J112<>\"\",K112<>\"\",L112<>\"\"),XBRLMapTuple($R$88,P$5,P$6,\"BMA\",CONFIGURATION!$B$1,\"bscr\",\"\",CONFIGURATION!$B$12,$R$89,C112,$S$89,E112,$T$89,F112,$U$89,H112,$V$89,I112,$W$89,J112,$X$89,K112,$Y$89,L112),\"emptyTuple\")","v":"Mapped"}]
[null,23,{"$f":"Import!E1323","v":0},{"$f":"Import!E1346","v":0},{"$f":"Import!E1369","v":0},{"$f":"Import!E1392","v":0},{"$f":"Import!E1415","v":0},{"$f":"Import!E1438","v":0},{"$f":"Import!E1461","v":0},{"$f":"Import!E1484","v":0},{"$f":"Import!E1507","v":0},{"$f":"Import!E1530","v":0},null,null,null,null,null,null,null,null,null,null,null,{"$f":"IF(OR(C113<>\"\",E113<>\"\",F113<>\"\",H113<>\"\",I113<>\"\",J113<>\"\",K113<>\"\",L113<>\"\"),XBRLMapTuple($R$88,P$5,P$6,\"BMA\",CONFIGURATION!$B$1,\"bscr\",\"\",CONFIGURATION!$B$12,$R$89,C113,$S$89,E113,$T$89,F113,$U$89,H113,$V$89,I113,$W$89,J113,$X$89,K113,$Y$89,L113),\"emptyTuple\")","v":"Mapped"}]
[null,24]
[null,25]
[]
[null,4,"The proportion of the insurer's insurance business covered by internal reinsurance, retrocession and other risk transfer arrangements -\n(in percentage)",null,null,null,null,null,null,null,null,{"$f":"Import!E1531","v":0}]
[null,null,null,null,null,null,null,null,null,null,null,null,null,null,null,null,null,"brrt_ProportionOfInsurerInsuranceBusinessCoveredByInternalReinsuranceRetrocessionAndOtherRiskTransferArrangementsInPercentage",null,null,null,null,null,{"$f":"XBRLMap(L117,$R118,$P$5,$P$6,CONFIGURATION!$B$10,\"BMA\",CONFIGURATION!$B$1,\"bscr\")","v":"Mapped"}]

{"sheet":"Schedule V(e)","index":40,"n_rows":190,"n_cols":25,"rows_kept":190,"cut":false,"hidden":false,"merged":[[111,1,111,7],[0,10,0,11],[2,10,2,11],[56,1,60,11],[66,1,66,2],[4,5,5,5],[4,6,5,6],[13,2,13,3],[4,7,5,7],[18,2,18,3],[12,2,12,3],[26,1,26,2],[27,1,27,2],[14,2,14,3],[1,1,1,2],[2,1,2,2],[3,11,3,12],[97,1,98,11],[37,11,38,11],[34,1,34,2],[35,1,35,2],[92,1,95,11],[96,1,96,11],[75,1,75,2],[73,3,74,11],[43,1,43,7],[44,1,44,7],[43,8,43,9],[44,8,44,9],[16,2,16,3],[17,2,17,3],[15,2,15,3],[21,2,22,3],[29,5,29,6],[29,7,29,8],[3,2,3,3],[41,8,41,9],[37,8,38,8],[42,8,42,9],[41,1,41,7],[42,1,42,7],[19,2,19,3],[29,9,29,10],[31,1,31,2],[32,1,32,2],[29,3,29,4],[33,1,33,2],[37,10,38,10],[37,9,38,9],[37,6,38,6],[37,7,38,7],[37,2,38,2],[37,3,38,3],[37,4,37,5],[69,1,69,2],[76,1,76,2],[62,1,62,4],[65,3,65,4],[54,1,54,2],[67,1,67,2],[67,3,67,4],[71,1,71,4],[69,3,69,4],[68,1,68,2],[66,3,66,4],[73,1,74,2],[119,9,119,11],[120,9,120,11],[121,9,121,11],[49,1,49,2],[50,1,50,2],[51,1,51,2],[52,1,52,2],[68,3,68,4],[87,1,87,4],[77,1,77,2],[77,3,77,4],[81,1,82,2],[81,3,82,11],[83,1,83,2],[83,3,83,4],[79,1,79,4],[84,1,84,2],[84,3,84,4],[85,1,85,2],[85,3,85,4],[75,3,75,4],[76,3,76,4],[122,9,122,11],[123,9,123,11],[124,9,124,11],[130,9,130,11],[162,9,162,11],[150,9,150,11],[142,9,142,11],[161,9,161,11]]}
[null,"SCHEDULE OF RISK MANAGEMENT - STRESS/SCENARIO TESTS",null,null,null,null,null,null,null,null,{"$f":"HYPERLINK(\"#'Index'!A1\",\"Return to Index\")","v":"Return to Index"}]
[null,{"$f":"+'Insurer Information'!C7","v":"Enter Company Name"}]
[null,{"$f":"'Schedule V'!C3","v":"2019-12-31"},null,null,null,null,null,null,null,null,"SCHEDULE V(e)"]
[null,{"$f":"\"expressed in\"& IF(CONFIGURATION!$B$12>1,\" ['\"&MID(CONFIGURATION!$B$12,2,LEN(CONFIGURATION!$B$12))&\"s]\",\"\")","v":"expressed in ['000s]"},{"$f":"'Form 4EBS'!C4","v":"United States Dollars"}]
[null,null,null,null,null,"Statutory Assets","Statutory Liabilities","Statutory Capital & Surplus"]
[null,null,null,null,null,null,null,null,null,null,null,null,null,{"$f":"YEAR('Insurer Information'!C3)","v":2019}]
[null,null,null,null,"Pre-stress/scenario position",{"$f":"IF('Form 1SFS'!K100=0,('Form 1SFS'!F100+'Form 1SFS'!H100),'Form 1SFS'!K100)","v":0},{"$f":"IF('Form 1SFS'!K194=0,('Form 1SFS'!F194+'Form 1SFS'!H194),'Form 1SFS'!K194)","v":0},{"$f":"IF('Form 1SFS'!K198=0,('Form 1SFS'!F198+'Form 1SFS'!H198),'Form 1SFS'!K198)","v":0}]
[]
[null,"Insurer Confirms that Loss Scenarios left blank/omitted, result in no loss exposure"]
[null,null,null,null,null,null,null,"Confirm with \"X\""]
[null,"A. FINANCIAL MARKET SCENARIOS"]
[null,null,null,null,"Loss","Statutory Assets","Statutory Liabilities","Statutory Capital & Surplus"]
[null,"R1.","40% decline in equity prices",null,{"$f":"IF(SUM(F13:G13)=0,0,($F$7-F13)+(G13-$G$7))","v":0},{"$f":"Import!I1533","v":0},{"$f":"Import!I1541","v":0},{"$f":"$H$7-E13","v":0},null,null,null,null,null,null,null,null,"brrt_StressScenarioTestsEconomicAxis_brrt_R1Member"]
[null,"R2.","Alternative Investments and Real Estate",null,0,{"$f":"Import!I1534","v":0},{"$f":"Import!I1542","v":0},0,null,null,null,null,null,null,null,null,"brrt_StressScenarioTestsEconomicAxis_brrt_R1Member"]
[null,"R3.","Extreme US Yield Curve Widening",null,0,{"$f":"Import!I1535","v":0},{"$f":"Import!I1543","v":0},0,null,null,null,null,null,null,null,null,"brrt_StressScenarioTestsEconomicAxis_brrt_R2P99Member"]
[null,"R4.","Widening of credit spreads ",null,0,{"$f":"Import!I1536","v":0},{"$f":"Import!I1544","v":0},0]
[null,"R5.","Combined R1, R2, R3 and R4.",null,0,{"$f":"Import!I1537","v":0},{"$f":"Import!I1545","v":0},0,null,null,null,null,null,null,null,null,"brrt_StressScenarioTestsEconomicAxis_brrt_CombinedP99Member"]
[null,"R6.","Foreign currency shocks",null,0,{"$f":"Import!I1538","v":0},{"$f":"Import!I1546","v":0},0,null,null,null,null,null,null,null,null,"brrt_StressScenarioTestsEconomicAxis_brrt_ForeignCurrencyShocksMember"]
[null,"R7.","Escalation of sovereign risk ",null,0,{"$f":"Import!I1539","v":0},{"$f":"Import!I1547","v":0},0,null,null,null,null,null,null,null,null,"brrt_StressScenarioTestsEconomicAxis_brrt_EscalationOfEuropeanSovereignRiskMember"]
[null,"R8.","Inflation and Monetary Policy risk",null,{"$f":"IF(SUM(F20:G20)=0,0,($F$7-F20)+(G20-$G$7))","v":0},{"$f":"Import!I1540","v":0},{"$f":"Import!I1548","v":0},{"$f":"$H$7-E20","v":0}]
[]
[null,null,"Valuation losses on debt securities and loans issued by creditors in each European state —",null,"Greece","Italy","Portugal","Ukraine","Argentina","Turkey",null,null,null,null,null,null,"brrt_ValuationLossesOnDebtSecuritiesAndLoansIssuedByDebtorsInEachEuropeanState"]
[null,null,null,null,{"$f":"Import!I1549","v":0},{"$f":"Import!I1550","v":0},{"$f":"Import!I1551","v":0},{"$f":"Import!I1552","v":0},{"$f":"Import!I1553","v":0},{"$f":"Import!I1554","v":0},null,null,null,null,null,null,"brrt_ValuationLossesOnDebtSecuritiesAndLoansIssuedByDebtorsInEachEuropeanStateBelgium","brrt_ValuationLossesOnDebtSecuritiesAndLoansIssuedByDebtorsInEachEuropeanStateFrance","brrt_ValuationLossesOnDebtSecuritiesAndLoansIssuedByDebtorsInEachEuropeanStateGreece","brrt_ValuationLossesOnDebtSecuritiesAndLoansIssuedByDebtorsInEachEuropeanStateIreland","brrt_ValuationLossesOnDebtSecuritiesAndLoansIssuedByDebtorsInEachEuropeanStateItaly","brrt_ValuationLossesOnDebtSecuritiesAndLoansIssuedByDebtorsInEachEuropeanStatePortugal","brrt_ValuationLossesOnDebtSecuritiesAndLoansIssuedByDebtorsInEachEuropeanStateSpain",{"$f":"XBRLMapTuple($Q$22,E$172,E$173,\"BMA\",CONFIGURATION!$B$1,\"bscr\",\"\",CONFIGURATION!$B$12,$Q$23,#REF!,$R$23,#REF!,$S$23,E23,$T$23,F23,$U$23,G23,$V$23,H23,$W$23,I23)","v":{"$error":"#VALUE!"}}]
[]
[null,"B. MORTGAGE INSURANCE"]
[]
[null,"Mortgage Loan Shock 1",null,{"$f":"Import!I1555","v":"Select"},{"$f":"IF(SUM(F27:G27)=0,0,($F$7-F27)+(G27-$G$7))","v":0},{"$f":"Import!I1557","v":0},{"$f":"Import!I1559","v":0},{"$f":"$H$7-E27","v":0}]
[null,"Mortgage Loan Shock 2",null,{"$f":"Import!I1556","v":"Select"},{"$f":"IF(SUM(F28:G28)=0,0,($F$7-F28)+(G28-$G$7))","v":0},{"$f":"Import!I1558","v":0},{"$f":"Import!I1560","v":0},{"$f":"$H$7-E28","v":0}]
[]
[null,null,null,"Gross Premium",null,"Net Premium",null,"Claims Paid",null,"Loss Reserves"]
[null,null,null,"Related","Unrelated","Related","Unrelated","Related","Unrelated","Gross ","Net "]
[null,"Mortgage Insurance - US",null,{"$f":"Import!I1561","v":0},{"$f":"Import!I1566","v":0},{"$f":"Import!I1571","v":0},{"$f":"Import!I1576","v":0},{"$f":"Import!I1581","v":0},{"$f":"Import!I1586","v":0},{"$f":"Import!I1591","v":0},{"$f":"Import!I1596","v":0}]
[null,"Mortgage Reinsurance - US",null,{"$f":"Import!I1562","v":0},{"$f":"Import!I1567","v":0},{"$f":"Import!I1572","v":0},{"$f":"Import!I1577","v":0},{"$f":"Import!I1582","v":0},{"$f":"Import!I1587","v":0},{"$f":"Import!I1592","v":0},{"$f":"Import!I1597","v":0}]
[null,"Mortgage Insurance - Non-US",null,{"$f":"Import!I1563","v":0},{"$f":"Import!I1568","v":0},{"$f":"Import!I1573","v":0},{"$f":"Import!I1578","v":0},{"$f":"Import!I1583","v":0},{"$f":"Import!I1588","v":0},{"$f":"Import!I1593","v":0},{"$f":"Import!I1598","v":0}]
[null,"Mortgage Reinsurance - Non-US",null,{"$f":"Import!I1564","v":0},{"$f":"Import!I1569","v":0},{"$f":"Import!I1574","v":0},{"$f":"Import!I1579","v":0},{"$f":"Import!I1584","v":0},{"$f":"Import!I1589","v":0},{"$f":"Import!I1594","v":0},{"$f":"Import!I1599","v":0}]
[null,"Total",null,{"$f":"SUM(D32:D35)","v":0},{"$f":"SUM(E32:E35)","v":0},0,0,0,0,0,0]
[]
[null,null,"Insurance in Force (IIF)","Risk in Force (RIF)","Capital Held",null,"Collateral Posted","# of Policies in Force","Loss Ratio (UW)","Combined Ratio (UW)","Weighted Ave. LTV","Weighted Ave. FICO Score"]
[null,null,null,null,"Internal ","Regulatory "]
[null,"Supplemental Disclosures",{"$f":"Import!I1601","v":0},{"$f":"Import!I1602","v":0},{"$f":"Import!I1603","v":0},{"$f":"((F36+G36)*0.454)+(K36*0.435)","v":0},{"$f":"Import!I1605","v":0},{"$f":"Import!I1606","v":0},{"$f":"Import!I1607","v":0},{"$f":"Import!I1608","v":0},{"$f":"Import!I1609","v":0},{"$f":"Import!I1610","v":0}]
[]
[null,"1. How do you define your risk appetite for this type of business, in terms metrics, tolerance levels and limits?",null,null,null,null,null,null,{"$f":"HYPERLINK(\"#'Attachments'!G155\",\"Attach file\")","v":"Attach file"}]
[null,"2. What key drivers do your monitor in the risk management and business performance assessment of this LoB?",null,null,null,null,null,null,{"$f":"HYPERLINK(\"#'Attachments'!G155\",\"Attach file\")","v":"Attach file"}]
[null,"3. How do you allocate capital to this LoB in terms of methodology and metrics used?",null,null,null,null,null,null,{"$f":"HYPERLINK(\"#'Attachments'!G155\",\"Attach file\")","v":"Attach file"}]
[null,"4. How do you calculate the CISSA standalone capital requirement, what methodology and risk factors do you model?",null,null,null,null,null,null,{"$f":"HYPERLINK(\"#'Attachments'!G155\",\"Attach file\")","v":"Attach file"}]
[]
[null,"C. UNDERWRITING SCENARIOS"]
[null,"The (re)insurer is to submit the description of three of its own underwriting scenarios and related key assumptions with the impact on the statutory balance sheet"]
[null,null,null,null,null,null,null,null,null,null,null,null,null,null,null,null,"brrt_UnderwritingLossScenariosNotApplicableOrPartiallyApplyDescriptionOfThreeOfInsurerUnderwritingScenariosAndRelatedKeyAssumptions"]
[null,"Description",null,"Assumptions","Doc Name","Page Number","Gross Loss Impact","Statutory Capital & Surplus","Net Loss Impact","Statutory Capital & Surplus",null,null,null,null,null,null,"brrt_UnderwritingLossScenariosNotApplicableOrPartiallyApplyDescriptionOfThreeOfInsurerUnderwritingScenariosAndRelatedKeyAssumptionsDescription","brrt_UnderwritingLossScenariosNotApplicableOrPartiallyApplyDescriptionOfThreeOfInsurerUnderwritingScenariosAndRelatedKeyAssumptionsGrossLossImpactPostStressScenarioGrossLoss","brrt_UnderwritingLossScenariosNotApplicableOrPartiallyApplyDescriptionOfThreeOfInsurerUnderwritingScenariosAndRelatedKeyAssumptionsAggregateStatutoryAdmittedAssetsPostStressScenarioGrossLoss","brrt_UnderwritingLossScenariosNotApplicableOrPartiallyApplyDescriptionOfThreeOfInsurerUnderwritingScenariosAndRelatedKeyAssumptionsAdmittedLiabilitiesPostStressScenarioGrossLoss","brrt_UnderwritingLossScenariosNotApplicableOrPartiallyApplyDescriptionOfThreeOfInsurerUnderwritingScenariosAndRelatedKeyAssumptionsStatutoryCapitalAndSurplusPostStressScenarioGrossLoss","brrt_UnderwritingLossScenariosNotApplicableOrPartiallyApplyDescriptionOfThreeOfInsurerUnderwritingScenariosAndRelatedKeyAssumptionsNetLossImpactPostStressScenarioNetLoss","brrt_UnderwritingLossScenariosNotApplicableOrPartiallyApplyDescriptionOfThreeOfInsurerUnderwritingScenariosAndRelatedKeyAssumptionsAggregateStatutoryAdmittedAssetsPostStressScenarioNetLoss","brrt_UnderwritingLossScenariosNotApplicableOrPartiallyApplyDescriptionOfThreeOfInsurerUnderwritingScenariosAndRelatedKeyAssumptionsAdmittedLiabilitiesPostStressScenarioNetLoss","brrt_UnderwritingLossScenariosNotApplicableOrPartiallyApplyDescriptionOfThreeOfInsurerUnderwritingScenariosAndRelatedKeyAssumptionsStatutoryCapitalAndSurplusPostStressScenarioNetLoss"]
[null,{"$f":"Import!I1611","v":0},null,{"$f":"HYPERLINK(\"#'Attachments'!G155\",\"Attach file\")","v":"Attach file"},null,null,{"$f":"Import!I1614","v":0},{"$f":"$H$7-G51","v":0},{"$f":"Import!I1617","v":0},{"$f":"$H$7-I51","v":0},null,null,null,null,null,null,null,{"$f":"XBRLMapTuple($Q$49,$E$172,$E$173,\"BMA\",CONFIGURATION!$B$1,\"bscr\",\"\",CONFIGURATION!$B$12,$Q$50,B51,$R$50,G51,$S$50,F51,$T$50,#REF!,$U$50,H51,$V$50,I51,$W$50,#REF!,$X$50,K51,$Y$50,J51)","v":{"$error":"#VALUE!"}}]
[null,{"$f":"Import!I1612","v":0},null,{"$f":"HYPERLINK(\"#'Attachments'!G155\",\"Attach file\")","v":"Attach file"},null,null,{"$f":"Import!I1615","v":0},{"$f":"$H$7-G52","v":0},{"$f":"Import!I1618","v":0},{"$f":"$H$7-I52","v":0},null,null,null,null,null,null,null,{"$f":"XBRLMapTuple($Q$49,$E$172,$E$173,\"BMA\",CONFIGURATION!$B$1,\"bscr\",\"\",CONFIGURATION!$B$12,$Q$50,B52,$R$50,G52,$S$50,F52,$T$50,#REF!,$U$50,H52,$V$50,I52,$W$50,#REF!,$X$50,K52,$Y$50,J52)","v":{"$error":"#VALUE!"}}]
[null,{"$f":"Import!I1613","v":0},null,{"$f":"HYPERLINK(\"#'Attachments'!G155\",\"Attach file\")","v":"Attach file"},null,null,{"$f":"Import!I1616","v":0},{"$f":"$H$7-G53","v":0},{"$f":"Import!I1619","v":0},{"$f":"$H$7-I53","v":0},null,null,null,null,null,null,null,{"$f":"XBRLMapTuple($Q$49,$E$172,$E$173,\"BMA\",CONFIGURATION!$B$1,\"bscr\",\"\",CONFIGURATION!$B$12,$Q$50,B53,$R$50,G53,$S$50,F53,$T$50,#REF!,$U$50,H53,$V$50,I53,$W$50,#REF!,$X$50,K53,$Y$50,J53)","v":{"$error":"#VALUE!"}}]
[]
[null,"D. RATING DOWNGRADE"]
[null,"The (re)insurer is to submit a detailed disclosure on the impact of a ratings downgrade of its Bermuda legal entity or group by TWO NOTCHES OR BELOW A-, WHICHEVER IS LOWER."]
[null,{"$f":"Import!I1620","v":0},null,null,null,null,null,null,null,null,null,null,null,null,null,null,"brrt_ReinsurerSpecificPostStressScenario",{"$f":"XBRLMap(B57,Q57,E$172,E$173,CONFIGURATION!$B$10,\"BMA\",CONFIGURATION!$B$1,\"bscr\")","v":"Mapped"}]
[]
[]
[]
[]
[]
[null,"E. WORST-CASE ANNUAL AGGREGATE LOSS SCENARIO"]
[null,"The (re)insurer is to submit the following: (1) and (2)"]
[null,"(1) R4 above and the three other scenarios "]
[null,null,null,"Worst-case "]
[null,"R5",null,{"$f":"E17","v":0},null,null,null,null,null,null,null,null,null,null,null,null,"brrt_WorstCasePostStressScenarioR3",{"$f":"XBRLMap(D67,Q67,E$172,E$173,CONFIGURATION!$B$10,\"BMA\",CONFIGURATION!$B$1,\"bscr\",CONFIGURATION!$B$12)","v":"Mapped"}]
[null,"Aggregate of 3 underwriting scenarios",null,{"$f":"SUM(I51:I53)","v":0},null,null,null,null,null,null,null,null,null,null,null,null,"brrt_WorstCasePostStressScenarioAggregateOfThreeOtherScenarioLosses",{"$f":"XBRLMap(D68,Q68,E$172,E$173,CONFIGURATION!$B$10,\"BMA\",CONFIGURATION!$B$1,\"bscr\",CONFIGURATION!$B$12)","v":"Mapped"}]
[null,"Total loss",null,{"$f":"SUM(D67:E68)","v":0},null,"Doc Name","Page Number",null,null,null,null,null,null,null,null,null,"brrt_WorstCasePostStressScenarioTotalLoss",{"$f":"XBRLMap(D69,Q69,E$172,E$173,CONFIGURATION!$B$10,\"BMA\",CONFIGURATION!$B$1,\"bscr\",CONFIGURATION!$B$12)","v":"Mapped"}]
[null,"Assumptions ",null,{"$f":"HYPERLINK(\"#'Attachments'!G155\",\"Attach file\")","v":"Attach file"}]
[]
[null,"(2) (Re)insurer specific worst-case scenario"]
[null,"The (re)insurer is to submit a description of its own worst-case annual aggregate loss scenario and the underlying assumptions. "]
[null,"Worst-case annual aggregate loss \nscenario description",null,{"$f":"Import!I1621","v":0},null,null,null,null,null,null,null,null,null,null,null,null,"brrt_ReinsurerSpecificWorstcaseScenarioWorstcaseAnnualAggregateLossScenarioDescription",{"$f":"XBRLMap(D74,Q74,E$172,E$173,CONFIGURATION!$B$10,\"BMA\",CONFIGURATION!$B$1,\"bscr\")","v":"Mapped"}]
[null,null,null,null,null,null,null,null,null,null,null,null,null,null,null,null,null,{"$f":"XBRLMap(D75,Q75,#REF!,#REF!,CONFIGURATION!$B$10,\"BMA\",CONFIGURATION!$B$1,\"bscr\",CONFIGURATION!$B$12)","v":{"$error":"#VALUE!"}}]
[null,"Gross loss",null,{"$f":"Import!I1622","v":0},null,null,null,null,null,null,null,null,null,null,null,null,"brrt_ReinsurerSpecificWorstcaseScenarioGrossLoss",{"$f":"XBRLMap(D76,Q76,E$172,E$173,CONFIGURATION!$B$10,\"BMA\",CONFIGURATION!$B$1,\"bscr\",CONFIGURATION!$B$12)","v":"Mapped"}]
[null,"Net loss",null,{"$f":"Import!I1623","v":0},null,"Doc Name","Page Number",null,null,null,null,null,null,null,null,null,"brrt_ReinsurerSpecificWorstcaseScenarioNetLoss",{"$f":"XBRLMap(D77,Q77,E$172,E$173,CONFIGURATION!$B$10,\"BMA\",CONFIGURATION!$B$1,\"bscr\",CONFIGURATION!$B$12)","v":"Mapped"}]
[null,"Underlying assumptions",null,{"$f":"HYPERLINK(\"#'Attachments'!G155\",\"Attach file\")","v":"Attach file"}]
[]
[null,"F. REVERSE STRESS TEST SCENARIO"]
[null,"The (re)insurer is to submit key assumptions and scenarios that would cause business failure as determined by a reverse stress test scenario."]
[null,"Reverse stress test scenario description",null,{"$f":"Import!I1624","v":0},null,null,null,null,null,null,null,null,null,null,null,null,"brrt_ReinsurerSpecificWorstcaseScenarioWorstcaseAnnualAggregateLossScenarioDescription",{"$f":"XBRLMap(D82,Q82,E$172,E$173,CONFIGURATION!$B$10,\"BMA\",CONFIGURATION!$B$1,\"bscr\")","v":"Mapped"}]
[null,null,null,null,null,null,null,null,null,null,null,null,null,null,null,null,null,{"$f":"XBRLMap(D83,Q83,#REF!,#REF!,CONFIGURATION!$B$10,\"BMA\",CONFIGURATION!$B$1,\"bscr\",CONFIGURATION!$B$12)","v":{"$error":"#VALUE!"}}]
[null,"Gross loss",null,{"$f":"Import!I1625","v":0},null,null,null,null,null,null,null,null,null,null,null,null,"brrt_ReinsurerSpecificWorstcaseScenarioGrossLoss",{"$f":"XBRLMap(D84,Q84,E$172,E$173,CONFIGURATION!$B$10,\"BMA\",CONFIGURATION!$B$1,\"bscr\",CONFIGURATION!$B$12)","v":"Mapped"}]
[null,"Net loss",null,{"$f":"Import!I1626","v":0},null,"Doc Name","Page Number",null,null,null,null,null,null,null,null,null,"brrt_ReinsurerSpecificWorstcaseScenarioNetLoss",{"$f":"XBRLMap(D85,Q85,E$172,E$173,CONFIGURATION!$B$10,\"BMA\",CONFIGURATION!$B$1,\"bscr\",CONFIGURATION!$B$12)","v":"Mapped"}]
[null,"Underlying assumptions",null,{"$f":"HYPERLINK(\"#'Attachments'!G155\",\"Attach file\")","v":"Attach file"}]
[]
[null,"G. TECHNOLOGY RISK"]
[]
[null,"b) TECHNOLOGY RISK - (RE)INSURER OWN CYBERSECURITY AND RESILIENCE CAPABILITIES  "]
[null,"Technology Risk Guidance"]
[]
[null,"Technology Risk is a key enterprise risk that entities in the financial sectors regulated by the Authority must manage. The questionnaire below is designed to assess Technology Risk, including Information Security, Data Protection and IT or Cyber Security. The Authority expects that the board of directors of all licensed entities will have evaluated the aforementioned risks. These risks should be managed as part of an overall Enterprise Risk Management Process. This assessment is designed to assess Technology Risk controls. The IT or Cyber Security controls are grounded in the \"National Institute of Standards and Technology Cybersecurity Framework\" (NIST). The assessment focuses on several areas, to include: governance, policies and procedures, ongoing training, critical/sensitive asset identification, protective measures, detection of anomalous activity, documented incident response plans, and effective business recovery processes. "]
[]
[]
[]
[]
[null,"The Authority recognizes that there is no “one size fits all” approach to addressing these risks, as specific business circumstances may vary greatly from entity to entity. Each entity must assess their risks, create prudent policies and procedures to mitigate known risks, and ensure that the organization is properly trained and equipped.\n"]
[]
[]
[null,"Select one response from the drop-down list. Where required/applicable, attach the relevant document indicating the document name and identifying the applicable page numbers"]
[]
[null,"SECTION A - BUSINESS SUMMARY QUESTIONS"]
[null,"Geographical details",null,null,null,null,null,null,"Responses","Complete where prompted"]
[1,"Is the company headquartered in Bermuda",null,null,null,null,null,null,{"$f":"Import!E1627","v":"Select Yes/No"}]
[{"$f":"A105+1","v":2},"Number of users located in Bermuda",null,null,null,null,null,null,{"$f":"Import!E1628","v":"Select Amount"}]
[{"$f":"A106+1","v":3},"Number of users Globally ",null,null,null,null,null,null,{"$f":"Import!E1629","v":"Select Amount"}]
[4,"Do you have a data centre in Bermuda to host your servers",null,null,null,null,null,null,{"$f":"Import!E1630","v":"Select Yes/No"}]
[5,"Do you utilize a cloud hosting company to host your servers",null,null,null,null,null,null,{"$f":"Import!E1631","v":"Select Yes/No"}]
[6,"Does the organization have cybersecurity insurance coverage (i.e. to cover internal risk from security incidents)",null,null,null,null,null,null,{"$f":"Import!E1632","v":"Select Yes/No"}]
[null,"Is the following data type stored/processed"]
[{"$f":"A110+1","v":7},"Do you collect/store/process personally identifiable information (PII) of your customers? examples include but are not limited to: customer name, email address, social security number",null,null,null,null,null,null,{"$f":"Import!E1633","v":"Select Yes/No"}]
[{"$f":"A112+1","v":8},"Payment card data (i.e. credit/debit card)",null,null,null,null,null,null,{"$f":"Import!E1634","v":"Select Yes/No"}]
[{"$f":"A113+1","v":9},"Is customer PII collected/stored/processed by this entity on behalf of other entities ",null,null,null,null,null,null,{"$f":"Import!E1635","v":"Select Yes/No"}]
[null,"Are the following internet facing services in place "]
[{"$f":"A114+1","v":10},"Brochureware (static content only)",null,null,null,null,null,null,{"$f":"Import!E1636","v":"Select Yes/No"}]
[{"$f":"A116+1","v":11},"Web applications",null,null,null,null,null,null,{"$f":"Import!E1637","v":"Select Yes/No"}]
[12,"Web applications that process (query, reference, capture, store, transmit) personal data or payment card data ",null,null,null,null,null,null,{"$f":"Import!E1638","v":"Select Yes/No"}]
[null,"Roles & Responsibilities"]
[{"$f":"A118+1","v":13},"Is there a dedicated IT Risk Manager, if not which job title holds this responsibility",null,null,null,null,null,null,{"$f":"Import!E1639","v":"Select Yes/No"},{"$f":"Import!E1640","v":"Confirm role holder's name"}]
[{"$f":"A120+1","v":14},"Is there a dedicated IT Security Manager, if not which job title holds this responsibility",null,null,null,null,null,null,{"$f":"Import!E1641","v":"Select Yes/No"},{"$f":"Import!E1642","v":"Confirm role holder's name"}]
[{"$f":"A121+1","v":15},"Is there a dedicated IT Disaster Recovery Manager, if not which job title holds this responsibility",null,null,null,null,null,null,{"$f":"Import!E1643","v":"Select Yes/No"},{"$f":"Import!E1644","v":"Confirm role holder's name"}]
[{"$f":"A122+1","v":16},"Is there a dedicated Business Continuity Manager (BCP) in place, if not which job title holds this responsibility",null,null,null,null,null,null,{"$f":"Import!E1645","v":"Select Yes/No"},{"$f":"Import!E1646","v":"Confirm role holder's name"}]
[{"$f":"A123+1","v":17},"Does the organization have a designated Data Privacy Officer",null,null,null,null,null,null,{"$f":"Import!E1647","v":"Select Yes/No"},{"$f":"Import!E1648","v":"Confirm role holder's name"}]
[{"$f":"A124+1","v":18},"Is there an annual IT audit plan in place i.e. detailing any IT audit activity for the year ",null,null,null,null,null,null,{"$f":"Import!E1649","v":"Select Yes/No"},{"$f":"Import!E1650","v":"Date of last internal/external IT audit"}]
[]
[null,"SECTION B - NIST CONTROL SUMMARY - Answer YES/NO"]
[null,"Identify",null,null,null,null,null,null,"Responses"]
[1,"Is there a Cyber Risk Management Programme in place (i.e. assessing all IT risk to include IT Security Risk)",null,null,null,null,null,null,{"$f":"Import!E1651","v":"Select Yes/No"}]
[{"$f":"A129+1","v":2},"Is the status of the Cyber Risk Management Programme communicated to the Senior Mgt. team & the Board of Directors on a regular basis",null,null,null,null,null,null,{"$f":"Import!E1652","v":"Select Yes/No"}]
[3,"Has a Cyber Risk Policy (or Cyber Security Policy) been approved by the Board and is annually updated",null,null,null,null,null,null,{"$f":"Import!E1653","v":"Select Yes/No"},"Specify name of relevant document"]
[4,"Are the roles and responsibilities of each of the three lines of defence clearly defined",null,null,null,null,null,null,{"$f":"Import!E1654","v":"Select Yes/No"}]
[5,"Has the organization performed an assessment of compliance against Data Protection regulatory requirements ",null,null,null,null,null,null,{"$f":"Import!E1655","v":"Select Yes/No"}]
[6,"Asset Management - are physical devices, information systems, and data within the organization inventoried",null,null,null,null,null,null,{"$f":"Import!E1656","v":"Select Yes/No"}]
[7,"Has the organization classified all data ",null,null,null,null,null,null,{"$f":"Import!E1657","v":"Select Yes/No"}]
[8,"Has a third party security risk assessment been completed during the past year? i.e. to assess IT risks arising from third parties",null,null,null,null,null,null,{"$f":"Import!E1658","v":"Select Yes/No"}]
[null,"Protect"]
[9,"Is data that is classified as critical, encrypted in transit and at rest  ",null,null,null,null,null,null,{"$f":"Import!E1659","v":"Select Yes/No"}]
[{"$f":"A138+1","v":10},"Is there a formal process to ensure maintenance of software and hardware i.e. patching & managing end of life technologies ",null,null,null,null,null,null,{"$f":"Import!E1660","v":"Select Yes/No"},"Specify name of relevant document"]
[11,"Is there a Logical Access Management Standard defining how systems access is verified, managed, revoked, and audited ",null,null,null,null,null,null,{"$f":"Import!E1661","v":"Select Yes/No"},"Specify name of relevant document"]
[12,"Do all staff complete cybersecurity training annually",null,null,null,null,null,null,{"$f":"Import!E1662","v":"Select Yes/No"}]
[13,"Has a penetration test been completed in the last year",null,null,null,null,null,null,{"$f":"Import!E1663","v":"Select Yes/No"}]
[14,"Has the company segregated the enterprise network into multiple, separate trust zones",null,null,null,null,null,null,{"$f":"Import!E1664","v":"Select Yes/No"},"Specify name of relevant document"]
[15,"Is there a process detailing IT service management controls i.e. change, release & configuration management",null,null,null,null,null,null,{"$f":"Import!E1665","v":"Select Yes/No"}]
[16,"Does the company document and enforce security configuration standards of all network devices",null,null,null,null,null,null,{"$f":"Import!E1666","v":"Select Yes/No"}]
[null,"Detect"]
[{"$f":"A145+1","v":17},"Is there a process enabling the review of threat intelligence & vulnerability alerting data",null,null,null,null,null,null,{"$f":"Import!E1667","v":"Select Yes/No"}]
[{"$f":"A147+1","v":18},"Is there a process in place to monitor information systems and assets to identify cybersecurity events ",null,null,null,null,null,null,{"$f":"Import!E1668","v":"Select Yes/No"}]
[19,"The company centrally stores & archives security event logs",null,null,null,null,null,null,{"$f":"Import!E1669","v":"Select Yes/No"}]
[null,"Respond"]
[{"$f":"A149+1","v":20},"Is there a documented security incident response plan in place, including internal & external communications & crisis management ",null,null,null,null,null,null,{"$f":"Import!E1670","v":"Select Yes/No"},"Specify name of relevant document"]
[{"$f":"A151+1","v":21},"In the event of a major incident, is the company contracted to a \"4th line\" IT security expert service (for example a Managed Security Services Provider - MSSP)  ",null,null,null,null,null,null,{"$f":"Import!E1671","v":"Select Yes/No"}]
[null,"Recover"]
[{"$f":"A152+1","v":22},"Has a test of the Business Continuity and IT Disaster Recovery plans been performed during the past 12 months ",null,null,null,null,null,null,{"$f":"Import!E1672","v":"Select Yes/No"}]
[{"$f":"A154+1","v":23},"Has the organization been subject to a significant cyber incident during the past 12 months",null,null,null,null,null,null,{"$f":"Import!E1673","v":"Select Yes/No"}]
[]
[null,"SECTION C - Technical Security Controls - Answer YES/NO"]
[null,"Technical controls summary"]
[1,"Antivirus software is installed on all Microsoft Operating System endpoints",null,null,null,null,null,null,{"$f":"Import!E1674","v":"Select Yes/No"}]
[{"$f":"A159+1","v":2},"Is there an endpoint Advanced Persistent Threat (APT) control in place ",null,null,null,null,null,null,{"$f":"Import!E1675","v":"Select Yes/No"}]
[3,"Are Data Loss Prevention (DLP) controls in place i.e.: to prevent unauthorized data leaving the enterprise\n\n",null,null,null,null,null,null,{"$f":"Import!E1676","v":"Select Yes/No"}]
[4,"Is INTERNAL vulnerability scanning conducted (& what is the frequency)",null,null,null,null,null,null,{"$f":"Import!E1677","v":"Select Yes/No"},{"$f":"Import!E1678","v":"Select Frequency"}]
[{"$f":"A162+1","v":5},"Is EXTERNAL vulnerability scanning conducted (& what is the frequency)",null,null,null,null,null,null,{"$f":"Import!E1679","v":"Select Yes/No"},{"$f":"Import!E1680","v":"Select Frequency"}]
[{"$f":"A163+1","v":6},"Are there regular (6 monthly minimum) firewall ruleset reviews",null,null,null,null,null,null,{"$f":"Import!E1681","v":"Select Yes/No"}]
[7,"Is there a network perimeter Intrusion Detection or Prevention (IDS/IPS) control",null,null,null,null,null,null,{"$f":"Import!E1682","v":"Select Yes/No"}]
[8,"Is there DDOS defence in place for internet gateways",null,null,null,null,null,null,{"$f":"Import!E1683","v":"Select Yes/No"}]
[]
[]
[null,null,null,null,null,null,null,null,null,null,null,"Select all from drop down list"]
[null,null,null,null,null,null,null,null,null,null,null,"PCI - payment Card Industry Standard"]
[null,null,null,null,null,null,null,null,null,null,null,"GDPR - General Data Protection Regulation "]
[null,null,null,null,{"$f":"IF($B$3=\"\",\"\",TEXT(DATE(YEAR($B$3+1)-1,MONTH($B$3+1),DAY($B$3+1)),\"mm/dd/yyyy\"))","v":"01/01/2019"},{"$f":"IF($B$3=\"\",\"\",TEXT(DATE(YEAR($B$3+1)-1,MONTH($B$3+1),DAY($B$3+1)),\"mm/dd/yyyy\"))","v":"01/01/2019"},{"$f":"IF($B$3=\"\",\"\",TEXT(DATE(YEAR($B$3+1)-1,MONTH($B$3+1),DAY($B$3+1)),\"mm/dd/yyyy\"))","v":"01/01/2019"},{"$f":"IF($B$3=\"\",\"\",TEXT(DATE(YEAR($B$3+1)-1,MONTH($B$3+1),DAY($B$3+1)),\"mm/dd/yyyy\"))","v":"01/01/2019"},null,null,null,"EU U.S. - Privacy Shield Framework "]
[null,null,null,null,{"$f":"IF($B$3=\"\",\"\",TEXT($B$3,\"mm/dd/yyyy\"))","v":"12/31/2019"},{"$f":"IF($B$3=\"\",\"\",TEXT($B$3,\"mm/dd/yyyy\"))","v":"12/31/2019"},{"$f":"IF($B$3=\"\",\"\",TEXT($B$3,\"mm/dd/yyyy\"))","v":"12/31/2019"},{"$f":"IF($B$3=\"\",\"\",TEXT($B$3,\"mm/dd/yyyy\"))","v":"12/31/2019"},null,null,null,"PIPA - Personal Information Privacy Act"]
[null,null,null,null,"brrt_GrossLossImpactPostStressScenarioGrossLoss","brrt_AggregateStatutoryAdmittedAssetsPostStressScenarioGrossLoss","brrt_AdmittedLiabilitiesPostStressScenarioGrossLoss","brrt_StatutoryCapitalAndSurplusPostStressScenarioGrossLoss",null,null,null,"HIPAA - Health Insurance Portability and Accountability Act"]
[null,null,null,null,{"$f":"XBRLMap(E13,E$174&\".\"&$Q13,E$172,E$173,CONFIGURATION!$B$10,\"BMA\",CONFIGURATION!$B$1,\"bscr\",CONFIGURATION!$B$12)","v":"Mapped"},{"$f":"XBRLMap(F13,F$174&\".\"&$Q13,F$172,F$173,CONFIGURATION!$B$10,\"BMA\",CONFIGURATION!$B$1,\"bscr\",CONFIGURATION!$B$12)","v":"Mapped"},{"$f":"XBRLMap(G13,G$174&\".\"&$Q13,G$172,G$173,CONFIGURATION!$B$10,\"BMA\",CONFIGURATION!$B$1,\"bscr\",CONFIGURATION!$B$12)","v":"Mapped"},{"$f":"XBRLMap(H13,H$174&\".\"&$Q13,H$172,H$173,CONFIGURATION!$B$10,\"BMA\",CONFIGURATION!$B$1,\"bscr\",CONFIGURATION!$B$12)","v":"Mapped"},null,null,null,"PIPEDA - Federal Personal Information Protection and Electronic Documents Act"]
[null,null,null,null,{"$f":"XBRLMap(#REF!,E$174&\".\"&#REF!,E$172,E$173,CONFIGURATION!$B$10,\"BMA\",CONFIGURATION!$B$1,\"bscr\",CONFIGURATION!$B$12)","v":{"$error":"#VALUE!"}},{"$f":"XBRLMap(#REF!,F$174&\".\"&#REF!,F$172,F$173,CONFIGURATION!$B$10,\"BMA\",CONFIGURATION!$B$1,\"bscr\",CONFIGURATION!$B$12)","v":{"$error":"#VALUE!"}},{"$f":"XBRLMap(#REF!,G$174&\".\"&#REF!,G$172,G$173,CONFIGURATION!$B$10,\"BMA\",CONFIGURATION!$B$1,\"bscr\",CONFIGURATION!$B$12)","v":{"$error":"#VALUE!"}},{"$f":"XBRLMap(#REF!,H$174&\".\"&#REF!,H$172,H$173,CONFIGURATION!$B$10,\"BMA\",CONFIGURATION!$B$1,\"bscr\",CONFIGURATION!$B$12)","v":{"$error":"#VALUE!"}},null,null,null,"SOLVENCY II"]
[null,null,null,null,{"$f":"XBRLMap(E15,E$174&\".\"&$Q15,E$172,E$173,CONFIGURATION!$B$10,\"BMA\",CONFIGURATION!$B$1,\"bscr\",CONFIGURATION!$B$12)","v":"Mapped"},{"$f":"XBRLMap(F15,F$174&\".\"&$Q15,F$172,F$173,CONFIGURATION!$B$10,\"BMA\",CONFIGURATION!$B$1,\"bscr\",CONFIGURATION!$B$12)","v":"Mapped"},{"$f":"XBRLMap(G15,G$174&\".\"&$Q15,G$172,G$173,CONFIGURATION!$B$10,\"BMA\",CONFIGURATION!$B$1,\"bscr\",CONFIGURATION!$B$12)","v":"Mapped"},{"$f":"XBRLMap(H15,H$174&\".\"&$Q15,H$172,H$173,CONFIGURATION!$B$10,\"BMA\",CONFIGURATION!$B$1,\"bscr\",CONFIGURATION!$B$12)","v":"Mapped"},null,null,null,"SEC - U.S. Securities and Exchange Commission"]
[null,null,null,null,{"$f":"XBRLMap(#REF!,E$174&\".\"&#REF!,E$172,E$173,CONFIGURATION!$B$10,\"BMA\",CONFIGURATION!$B$1,\"bscr\",CONFIGURATION!$B$12)","v":{"$error":"#VALUE!"}},{"$f":"XBRLMap(#REF!,F$174&\".\"&#REF!,F$172,F$173,CONFIGURATION!$B$10,\"BMA\",CONFIGURATION!$B$1,\"bscr\",CONFIGURATION!$B$12)","v":{"$error":"#VALUE!"}},{"$f":"XBRLMap(#REF!,G$174&\".\"&#REF!,G$172,G$173,CONFIGURATION!$B$10,\"BMA\",CONFIGURATION!$B$1,\"bscr\",CONFIGURATION!$B$12)","v":{"$error":"#VALUE!"}},{"$f":"XBRLMap(#REF!,H$174&\".\"&#REF!,H$172,H$173,CONFIGURATION!$B$10,\"BMA\",CONFIGURATION!$B$1,\"bscr\",CONFIGURATION!$B$12)","v":{"$error":"#VALUE!"}},null,null,null,"SOX - Sarbanes Oxley Act"]
[null,null,null,null,{"$f":"XBRLMap(E17,E$174&\".\"&$Q17,E$172,E$173,CONFIGURATION!$B$10,\"BMA\",CONFIGURATION!$B$1,\"bscr\",CONFIGURATION!$B$12)","v":"Mapped"},{"$f":"XBRLMap(F17,F$174&\".\"&$Q17,F$172,F$173,CONFIGURATION!$B$10,\"BMA\",CONFIGURATION!$B$1,\"bscr\",CONFIGURATION!$B$12)","v":"Mapped"},{"$f":"XBRLMap(G17,G$174&\".\"&$Q17,G$172,G$173,CONFIGURATION!$B$10,\"BMA\",CONFIGURATION!$B$1,\"bscr\",CONFIGURATION!$B$12)","v":"Mapped"},{"$f":"XBRLMap(H17,H$174&\".\"&$Q17,H$172,H$173,CONFIGURATION!$B$10,\"BMA\",CONFIGURATION!$B$1,\"bscr\",CONFIGURATION!$B$12)","v":"Mapped"},null,null,null,"(FISMA) Federal Information Security Management Act of 2002 "]
[null,null,null,null,{"$f":"XBRLMap(E18,E$174&\".\"&$Q18,E$172,E$173,CONFIGURATION!$B$10,\"BMA\",CONFIGURATION!$B$1,\"bscr\",CONFIGURATION!$B$12)","v":"Mapped"},{"$f":"XBRLMap(F18,F$174&\".\"&$Q18,F$172,F$173,CONFIGURATION!$B$10,\"BMA\",CONFIGURATION!$B$1,\"bscr\",CONFIGURATION!$B$12)","v":"Mapped"},{"$f":"XBRLMap(G18,G$174&\".\"&$Q18,G$172,G$173,CONFIGURATION!$B$10,\"BMA\",CONFIGURATION!$B$1,\"bscr\",CONFIGURATION!$B$12)","v":"Mapped"},{"$f":"XBRLMap(H18,H$174&\".\"&$Q18,H$172,H$173,CONFIGURATION!$B$10,\"BMA\",CONFIGURATION!$B$1,\"bscr\",CONFIGURATION!$B$12)","v":"Mapped"},null,null,null,"(GLBA) Gramm Leach Bliley Act"]
[null,null,null,null,{"$f":"XBRLMap(E19,E$174&\".\"&$Q19,E$172,E$173,CONFIGURATION!$B$10,\"BMA\",CONFIGURATION!$B$1,\"bscr\",CONFIGURATION!$B$12)","v":"Mapped"},{"$f":"XBRLMap(F19,F$174&\".\"&$Q19,F$172,F$173,CONFIGURATION!$B$10,\"BMA\",CONFIGURATION!$B$1,\"bscr\",CONFIGURATION!$B$12)","v":"Mapped"},{"$f":"XBRLMap(G19,G$174&\".\"&$Q19,G$172,G$173,CONFIGURATION!$B$10,\"BMA\",CONFIGURATION!$B$1,\"bscr\",CONFIGURATION!$B$12)","v":"Mapped"},{"$f":"XBRLMap(H19,H$174&\".\"&$Q19,H$172,H$173,CONFIGURATION!$B$10,\"BMA\",CONFIGURATION!$B$1,\"bscr\",CONFIGURATION!$B$12)","v":"Mapped"},null,null,null,"other"]
[]
[null,null,null,null,null,null,null,null,null,null,null,"Select all from drop down list"]
[null,null,null,null,null,null,null,null,null,null,null,"COBIT - Control Objectives for Information and Related Technologies"]
[null,null,null,null,null,null,null,null,null,null,null,"NIST - National Institute of Standards and Technology"]
[null,null,null,null,null,null,null,null,null,null,null,"ISO27001 - Information Security Management System "]
[null,null,null,null,null,null,null,null,null,null,null,"ISO27002 - Information Security Standard  "]
[null,null,null,null,null,null,null,null,null,null,null,"ITIL - Information Technology Infrastructure Library"]
[]
[null,null,null,"3rd Largest Loss"]

{"sheet":"Schedule V(f)","index":41,"n_rows":72,"n_cols":18,"rows_kept":72,"cut":false,"hidden":false,"merged":[[0,2,0,8],[1,2,1,9],[8,2,8,9],[35,2,35,9],[11,2,11,3],[12,2,12,3],[13,2,13,3],[14,2,14,3],[15,2,15,3],[16,2,16,3],[28,2,28,3],[17,2,17,3],[18,2,18,3],[19,2,19,3],[20,2,20,3],[21,2,21,3],[29,2,29,3],[30,2,30,3],[9,2,9,3],[9,5,9,7],[10,5,10,7],[11,5,11,7],[12,5,12,7],[13,5,13,7],[14,5,14,7],[15,5,15,7],[23,2,23,3],[24,2,24,3],[25,2,25,3],[26,2,26,3],[27,2,27,3],[16,5,16,7],[17,5,17,7],[18,5,18,7],[19,5,19,7],[20,5,20,7],[22,2,22,3],[21,5,21,7],[28,5,28,7],[29,5,29,7],[30,5,30,7],[22,5,22,7],[23,5,23,7],[24,5,24,7],[25,5,25,7],[26,5,26,7],[27,5,27,7]]}
[null,null,"SCHEDULE OF LONG TERM INSURANCE - MODIFIED COINSURANCE ARRANGEMENTS",null,null,null,null,null,null,{"$f":"HYPERLINK(\"#'Index'!A1\",\"Return to Index\")","v":"Return to Index"}]
[null,null,"FOR DISCLOSURE PURPOSES ONLY"]
[null,null,null,null,null,null,null,null,null,null,null,null,null,{"$f":"IF(C5=\"\",\"\",TEXT(DATE(YEAR(C5+1)-1,MONTH(C5+1),DAY(C5+1)),\"mm/dd/yyyy\"))","v":"01/01/2019"}]
[null,null,{"$f":"+'Insurer Information'!C7","v":"Enter Company Name"}]
[null,null,{"$f":"+'Insurer Information'!C3","v":"2019-12-31"},null,null,null,null,null,null,"SCHEDULE V(f)",null,null,null,{"$f":"IF(C5=\"\",\"\",TEXT(C5,\"mm/dd/yyyy\"))","v":"12/31/2019"}]
[null,null,{"$f":"+'Form 4EBS'!B4","v":"Expressed in  ['000s]"},null,null,null,null,null,null,null,null,null,null,{"$f":"YEAR('Insurer Information'!C3)","v":2019}]
[]
[null,null,null,null,null,null,null,null,null,null,null,null,null,"brrt_DetailsOfModifiedCoinsuranceArrangements"]
[null,null,"Details of Modified Coinsurance Arrangements ",null,null,null,null,null,null,null,null,null,null,"brrt_ReinsurerName","brrt_CoinsuranceCoverageType","brrt_CoinsuranceReserveAmount"]
[null,null,"Name of Ceding Insurer",null,null,"Coverage Type",null,null,null,"Reserve Amount"]
[null,null,null,null,null,"Pick from Drop Down"]
[null,1,{"$f":"Import!E1685","v":0},null,null,{"$f":"Import!E1700","v":"Select from Drop-Down"},null,null,null,{"$f":"Import!E1715","v":0},null,null,null,null,null,null,{"$f":"IF(OR(C12<>\"\",F12<>\"\",J12<>\"\"),XBRLMapTuple($N$8,N$3,N$5,\"BMA\",CONFIGURATION!$B$1,\"bscr\",\"\",CONFIGURATION!$B$12,$N$9,C12,$O$9,F12,$P$9,J12),\"emptyTuple\")","v":"Mapped"}]
[null,2,{"$f":"Import!E1686","v":0},null,null,{"$f":"Import!E1701","v":"Select from Drop-Down"},null,null,null,{"$f":"Import!E1716","v":0},null,null,null,null,null,null,{"$f":"IF(OR(C13<>\"\",F13<>\"\",J13<>\"\"),XBRLMapTuple($N$8,N$3,N$5,\"BMA\",CONFIGURATION!$B$1,\"bscr\",\"\",CONFIGURATION!$B$12,$N$9,C13,$O$9,F13,$P$9,J13),\"emptyTuple\")","v":"Mapped"}]
[null,3,{"$f":"Import!E1687","v":0},null,null,{"$f":"Import!E1702","v":"Select from Drop-Down"},null,null,null,{"$f":"Import!E1717","v":0},null,null,null,null,null,null,{"$f":"IF(OR(C14<>\"\",F14<>\"\",J14<>\"\"),XBRLMapTuple($N$8,N$3,N$5,\"BMA\",CONFIGURATION!$B$1,\"bscr\",\"\",CONFIGURATION!$B$12,$N$9,C14,$O$9,F14,$P$9,J14),\"emptyTuple\")","v":"Mapped"}]
[null,4,{"$f":"Import!E1688","v":0},null,null,{"$f":"Import!E1703","v":"Select from Drop-Down"},null,null,null,{"$f":"Import!E1718","v":0},null,null,null,null,null,null,{"$f":"IF(OR(C15<>\"\",F15<>\"\",J15<>\"\"),XBRLMapTuple($N$8,N$3,N$5,\"BMA\",CONFIGURATION!$B$1,\"bscr\",\"\",CONFIGURATION!$B$12,$N$9,C15,$O$9,F15,$P$9,J15),\"emptyTuple\")","v":"Mapped"}]
[null,5,{"$f":"Import!E1689","v":0},null,null,{"$f":"Import!E1704","v":"Select from Drop-Down"},null,null,null,{"$f":"Import!E1719","v":0},null,null,null,null,null,null,{"$f":"IF(OR(C16<>\"\",F16<>\"\",J16<>\"\"),XBRLMapTuple($N$8,N$3,N$5,\"BMA\",CONFIGURATION!$B$1,\"bscr\",\"\",CONFIGURATION!$B$12,$N$9,C16,$O$9,F16,$P$9,J16),\"emptyTuple\")","v":"Mapped"}]
[null,6,{"$f":"Import!E1690","v":0},null,null,{"$f":"Import!E1705","v":"Select from Drop-Down"},null,null,null,{"$f":"Import!E1720","v":0},null,null,null,null,null,null,{"$f":"IF(OR(C17<>\"\",F17<>\"\",J17<>\"\"),XBRLMapTuple($N$8,N$3,N$5,\"BMA\",CONFIGURATION!$B$1,\"bscr\",\"\",CONFIGURATION!$B$12,$N$9,C17,$O$9,F17,$P$9,J17),\"emptyTuple\")","v":"Mapped"}]
[null,7,{"$f":"Import!E1691","v":0},null,null,{"$f":"Import!E1706","v":"Select from Drop-Down"},null,null,null,{"$f":"Import!E1721","v":0},null,null,null,null,null,null,{"$f":"IF(OR(C18<>\"\",F18<>\"\",J18<>\"\"),XBRLMapTuple($N$8,N$3,N$5,\"BMA\",CONFIGURATION!$B$1,\"bscr\",\"\",CONFIGURATION!$B$12,$N$9,C18,$O$9,F18,$P$9,J18),\"emptyTuple\")","v":"Mapped"}]
[null,8,{"$f":"Import!E1692","v":0},null,null,{"$f":"Import!E1707","v":"Select from Drop-Down"},null,null,null,{"$f":"Import!E1722","v":0},null,null,null,null,null,null,{"$f":"IF(OR(C19<>\"\",F19<>\"\",J19<>\"\"),XBRLMapTuple($N$8,N$3,N$5,\"BMA\",CONFIGURATION!$B$1,\"bscr\",\"\",CONFIGURATION!$B$12,$N$9,C19,$O$9,F19,$P$9,J19),\"emptyTuple\")","v":"Mapped"}]
[null,9,{"$f":"Import!E1693","v":0},null,null,{"$f":"Import!E1708","v":"Select from Drop-Down"},null,null,null,{"$f":"Import!E1723","v":0},null,null,null,null,null,null,{"$f":"IF(OR(C20<>\"\",F20<>\"\",J20<>\"\"),XBRLMapTuple($N$8,N$3,N$5,\"BMA\",CONFIGURATION!$B$1,\"bscr\",\"\",CONFIGURATION!$B$12,$N$9,C20,$O$9,F20,$P$9,J20),\"emptyTuple\")","v":"Mapped"}]
[null,10,{"$f":"Import!E1694","v":0},null,null,{"$f":"Import!E1709","v":"Select from Drop-Down"},null,null,null,{"$f":"Import!E1724","v":0},null,null,null,null,null,null,{"$f":"IF(OR(C21<>\"\",F21<>\"\",J21<>\"\"),XBRLMapTuple($N$8,N$3,N$5,\"BMA\",CONFIGURATION!$B$1,\"bscr\",\"\",CONFIGURATION!$B$12,$N$9,C21,$O$9,F21,$P$9,J21),\"emptyTuple\")","v":"Mapped"}]
[null,11,{"$f":"Import!E1695","v":0},null,null,{"$f":"Import!E1710","v":"Select from Drop-Down"},null,null,null,{"$f":"Import!E1725","v":0},null,null,null,null,null,null,{"$f":"IF(OR(C22<>\"\",F22<>\"\",J22<>\"\"),XBRLMapTuple($N$8,N$3,N$5,\"BMA\",CONFIGURATION!$B$1,\"bscr\",\"\",CONFIGURATION!$B$12,$N$9,C22,$O$9,F22,$P$9,J22),\"emptyTuple\")","v":"Mapped"}]
[null,12,{"$f":"Import!E1696","v":0},null,null,{"$f":"Import!E1711","v":"Select from Drop-Down"},null,null,null,{"$f":"Import!E1726","v":0},null,null,null,null,null,null,{"$f":"IF(OR(C23<>\"\",F23<>\"\",J23<>\"\"),XBRLMapTuple($N$8,N$3,N$5,\"BMA\",CONFIGURATION!$B$1,\"bscr\",\"\",CONFIGURATION!$B$12,$N$9,C23,$O$9,F23,$P$9,J23),\"emptyTuple\")","v":"Mapped"}]
[null,13,{"$f":"Import!E1697","v":0},null,null,{"$f":"Import!E1712","v":"Select from Drop-Down"},null,null,null,{"$f":"Import!E1727","v":0},null,null,null,null,null,null,{"$f":"IF(OR(C24<>\"\",F24<>\"\",J24<>\"\"),XBRLMapTuple($N$8,N$3,N$5,\"BMA\",CONFIGURATION!$B$1,\"bscr\",\"\",CONFIGURATION!$B$12,$N$9,C24,$O$9,F24,$P$9,J24),\"emptyTuple\")","v":"Mapped"}]
[null,14,{"$f":"Import!E1698","v":0},null,null,{"$f":"Import!E1713","v":"Select from Drop-Down"},null,null,null,{"$f":"Import!E1728","v":0},null,null,null,null,null,null,{"$f":"IF(OR(C25<>\"\",F25<>\"\",J25<>\"\"),XBRLMapTuple($N$8,N$3,N$5,\"BMA\",CONFIGURATION!$B$1,\"bscr\",\"\",CONFIGURATION!$B$12,$N$9,C25,$O$9,F25,$P$9,J25),\"emptyTuple\")","v":"Mapped"}]
[null,15,{"$f":"Import!E1699","v":0},null,null,{"$f":"Import!E1714","v":"Select from Drop-Down"},null,null,null,{"$f":"Import!E1729","v":0},null,null,null,null,null,null,{"$f":"IF(OR(C26<>\"\",F26<>\"\",J26<>\"\"),XBRLMapTuple($N$8,N$3,N$5,\"BMA\",CONFIGURATION!$B$1,\"bscr\",\"\",CONFIGURATION!$B$12,$N$9,C26,$O$9,F26,$P$9,J26),\"emptyTuple\")","v":"Mapped"}]
[null,16,null,null,null,null,null,null,null,null,null,null,null,null,null,null,{"$f":"IF(OR(C27<>\"\",F27<>\"\",J27<>\"\"),XBRLMapTuple($N$8,N$3,N$5,\"BMA\",CONFIGURATION!$B$1,\"bscr\",\"\",CONFIGURATION!$B$12,$N$9,C27,$O$9,F27,$P$9,J27),\"emptyTuple\")","v":"emptyTuple"}]
[null,17,null,null,null,null,null,null,null,null,null,null,null,null,null,null,{"$f":"IF(OR(C28<>\"\",F28<>\"\",J28<>\"\"),XBRLMapTuple($N$8,N$3,N$5,\"BMA\",CONFIGURATION!$B$1,\"bscr\",\"\",CONFIGURATION!$B$12,$N$9,C28,$O$9,F28,$P$9,J28),\"emptyTuple\")","v":"emptyTuple"}]
[null,18,null,null,null,null,null,null,null,null,null,null,null,null,null,null,{"$f":"IF(OR(C29<>\"\",F29<>\"\",J29<>\"\"),XBRLMapTuple($N$8,N$3,N$5,\"BMA\",CONFIGURATION!$B$1,\"bscr\",\"\",CONFIGURATION!$B$12,$N$9,C29,$O$9,F29,$P$9,J29),\"emptyTuple\")","v":"emptyTuple"}]
[null,19,null,null,null,null,null,null,null,null,null,null,null,null,null,null,{"$f":"IF(OR(C30<>\"\",F30<>\"\",J30<>\"\"),XBRLMapTuple($N$8,N$3,N$5,\"BMA\",CONFIGURATION!$B$1,\"bscr\",\"\",CONFIGURATION!$B$12,$N$9,C30,$O$9,F30,$P$9,J30),\"emptyTuple\")","v":"emptyTuple"}]
[null,20,null,null,null,null,null,null,null,null,null,null,null,null,null,null,{"$f":"IF(OR(C31<>\"\",F31<>\"\",J31<>\"\"),XBRLMapTuple($N$8,N$3,N$5,\"BMA\",CONFIGURATION!$B$1,\"bscr\",\"\",CONFIGURATION!$B$12,$N$9,C31,$O$9,F31,$P$9,J31),\"emptyTuple\")","v":"emptyTuple"}]
[null,null,null,null,null,null,null,null,null,{"$f":"SUM(J12:J31)","v":0},null,null,null,null,null,null,{"$f":"XBRLMap(J32,P9,$N$3,$N$5,CONFIGURATION!$B$10,\"BMA\",CONFIGURATION!$B$1,\"bscr\",CONFIGURATION!$B$12)","v":"Mapped"}]
[]
[]
[]
[null,null,"Aggregate Asset Allocation (Book Value)"]
[null,null,null,"Investment Type",null,"Affiliated Cedant",null,"Non-affiliate Cedant",null,null,null,null,null,"brrt_AggregateAssetAllocation"]
[null,null,null,null,null,null,null,null,null,null,null,null,null,"brrt_InvestmentTypeDescription","brrt_AffiliatedCedantBookValue","brrt_NonAffiliateCedantBookValue"]
[null,null,1,"Cash",null,{"$f":"Import!E1731","v":0},null,{"$f":"Import!E1745","v":0},null,null,null,null,null,null,null,null,{"$f":"IF(OR(D39<>\"\",F39<>\"\",H39<>\"\"),XBRLMapTuple($N$37,N$3,N$5,\"BMA\",CONFIGURATION!$B$1,\"bscr\",\"\",CONFIGURATION!$B$12,$N$38,D39,$O$38,F39,$P$38,H39),\"emptyTuple\")","v":"Mapped"}]
[null,null,2,"Corporate bonds",null,{"$f":"Import!E1732","v":0},null,{"$f":"Import!E1746","v":0},null,null,null,null,null,null,null,null,{"$f":"IF(OR(D40<>\"\",F40<>\"\",H40<>\"\"),XBRLMapTuple($N$37,N$3,N$5,\"BMA\",CONFIGURATION!$B$1,\"bscr\",\"\",CONFIGURATION!$B$12,$N$38,D40,$O$38,F40,$P$38,H40),\"emptyTuple\")","v":"Mapped"}]
[null,null,3,"Sovereign bonds",null,{"$f":"Import!E1733","v":0},null,{"$f":"Import!E1747","v":0},null,null,null,null,null,null,null,null,{"$f":"IF(OR(D41<>\"\",F41<>\"\",H41<>\"\"),XBRLMapTuple($N$37,N$3,N$5,\"BMA\",CONFIGURATION!$B$1,\"bscr\",\"\",CONFIGURATION!$B$12,$N$38,D41,$O$38,F41,$P$38,H41),\"emptyTuple\")","v":"Mapped"}]
[null,null,4,"Mortgage backed securities",null,{"$f":"Import!E1734","v":0},null,{"$f":"Import!E1748","v":0},null,null,null,null,null,null,null,null,{"$f":"IF(OR(D42<>\"\",F42<>\"\",H42<>\"\"),XBRLMapTuple($N$37,N$3,N$5,\"BMA\",CONFIGURATION!$B$1,\"bscr\",\"\",CONFIGURATION!$B$12,$N$38,D42,$O$38,F42,$P$38,H42),\"emptyTuple\")","v":"Mapped"}]
[null,null,5,"Mortgage loans",null,{"$f":"Import!E1735","v":0},null,{"$f":"Import!E1749","v":0},null,null,null,null,null,null,null,null,{"$f":"IF(OR(D43<>\"\",F43<>\"\",H43<>\"\"),XBRLMapTuple($N$37,N$3,N$5,\"BMA\",CONFIGURATION!$B$1,\"bscr\",\"\",CONFIGURATION!$B$12,$N$38,D43,$O$38,F43,$P$38,H43),\"emptyTuple\")","v":"Mapped"}]
[null,null,6,"Equities",null,{"$f":"Import!E1736","v":0},null,{"$f":"Import!E1750","v":0},null,null,null,null,null,null,null,null,{"$f":"IF(OR(D44<>\"\",F44<>\"\",H44<>\"\"),XBRLMapTuple($N$37,N$3,N$5,\"BMA\",CONFIGURATION!$B$1,\"bscr\",\"\",CONFIGURATION!$B$12,$N$38,D44,$O$38,F44,$P$38,H44),\"emptyTuple\")","v":"Mapped"}]
[null,null,7,"Other (provide description)",null,{"$f":"Import!E1737","v":0},null,{"$f":"Import!E1751","v":0},null,null,null,null,null,null,null,null,{"$f":"IF(OR(D45<>\"\",F45<>\"\",H45<>\"\"),XBRLMapTuple($N$37,N$3,N$5,\"BMA\",CONFIGURATION!$B$1,\"bscr\",\"\",CONFIGURATION!$B$12,$N$38,D45,$O$38,F45,$P$38,H45),\"emptyTuple\")","v":"Mapped"}]
[null,null,8,"Other (provide description)",null,{"$f":"Import!E1738","v":0},null,{"$f":"Import!E1752","v":0},null,null,null,null,null,null,null,null,{"$f":"IF(OR(D46<>\"\",F46<>\"\",H46<>\"\"),XBRLMapTuple($N$37,N$3,N$5,\"BMA\",CONFIGURATION!$B$1,\"bscr\",\"\",CONFIGURATION!$B$12,$N$38,D46,$O$38,F46,$P$38,H46),\"emptyTuple\")","v":"Mapped"}]
[null,null,9,"Other (provide description)",null,{"$f":"Import!E1739","v":0},null,{"$f":"Import!E1753","v":0},null,null,null,null,null,null,null,null,{"$f":"IF(OR(D47<>\"\",F47<>\"\",H47<>\"\"),XBRLMapTuple($N$37,N$3,N$5,\"BMA\",CONFIGURATION!$B$1,\"bscr\",\"\",CONFIGURATION!$B$12,$N$38,D47,$O$38,F47,$P$38,H47),\"emptyTuple\")","v":"Mapped"}]
[null,null,10,"Other (provide description)",null,{"$f":"Import!E1740","v":0},null,{"$f":"Import!E1754","v":0},null,null,null,null,null,null,null,null,{"$f":"IF(OR(D48<>\"\",F48<>\"\",H48<>\"\"),XBRLMapTuple($N$37,N$3,N$5,\"BMA\",CONFIGURATION!$B$1,\"bscr\",\"\",CONFIGURATION!$B$12,$N$38,D48,$O$38,F48,$P$38,H48),\"emptyTuple\")","v":"Mapped"}]
[null,null,11,"Other (provide description)",null,{"$f":"Import!E1741","v":0},null,{"$f":"Import!E1755","v":0},null,null,null,null,null,null,null,null,{"$f":"IF(OR(D49<>\"\",F49<>\"\",H49<>\"\"),XBRLMapTuple($N$37,N$3,N$5,\"BMA\",CONFIGURATION!$B$1,\"bscr\",\"\",CONFIGURATION!$B$12,$N$38,D49,$O$38,F49,$P$38,H49),\"emptyTuple\")","v":"Mapped"}]
[null,null,12,"Other (provide description)",null,{"$f":"Import!E1742","v":0},null,{"$f":"Import!E1756","v":0},null,null,null,null,null,null,null,null,{"$f":"IF(OR(D50<>\"\",F50<>\"\",H50<>\"\"),XBRLMapTuple($N$37,N$3,N$5,\"BMA\",CONFIGURATION!$B$1,\"bscr\",\"\",CONFIGURATION!$B$12,$N$38,D50,$O$38,F50,$P$38,H50),\"emptyTuple\")","v":"Mapped"}]
[null,null,13,"Other (provide description)",null,{"$f":"Import!E1743","v":0},null,{"$f":"Import!E1757","v":0},null,null,null,null,null,null,null,null,{"$f":"IF(OR(D51<>\"\",F51<>\"\",H51<>\"\"),XBRLMapTuple($N$37,N$3,N$5,\"BMA\",CONFIGURATION!$B$1,\"bscr\",\"\",CONFIGURATION!$B$12,$N$38,D51,$O$38,F51,$P$38,H51),\"emptyTuple\")","v":"Mapped"}]
[null,null,14,"Total",null,{"$f":"SUM(F39:F51)","v":0},null,{"$f":"SUM(H39:H51)","v":0},null,null,null,null,null,null,null,null,{"$f":"XBRLMap(F52,O38,$N$3,$N$5,CONFIGURATION!$B$10,\"BMA\",CONFIGURATION!$B$1,\"bscr\",CONFIGURATION!$B$12)","v":"Mapped"},{"$f":"XBRLMap(H52,P38,$N$3,$N$5,CONFIGURATION!$B$10,\"BMA\",CONFIGURATION!$B$1,\"bscr\",CONFIGURATION!$B$12)","v":"Mapped"}]
[]
[]
[]
[null,null,null,null,null,"Select from Drop-Down"]
[null,null,null,null,null,"Mortality "]
[null,null,null,null,null,"Critical Illness"]
[null,null,null,null,null,"Longevity (Immediate pay-out annutities)"]
[null,null,null,null,null,"Longevity (Deferred pay-out annutities)"]
[null,null,null,null,null,"Annuities certain only"]
[null,null,null,null,null,"Deferred accumulation annuities"]
[null,null,null,null,null,"Disability Income: Active lives with premium guarantee"]
[null,null,null,null,null,"Disability Income: Actives lives for other accident and sickness"]
[null,null,null,null,null,"Disability Income: Claims in payment "]
[null,null,null,null,null,"Disability Income: Claims in payment for other accident and sickness"]
[null,null,null,null,null,"Group Life"]
[null,null,null,null,null,"Group Disability"]
[null,null,null,null,null,"Group Health"]
[null,null,null,null,null,"Stop Loss"]
[null,null,null,null,null,"Rider"]
[null,null,null,null,null,"Variable Annuities"]

{"sheet":"Schedule V(g)","index":42,"n_rows":57,"n_cols":14,"rows_kept":57,"cut":false,"hidden":false,"merged":[[0,2,0,5],[1,2,1,4],[2,2,2,5],[5,2,6,6]]}
[null,null,"SCHEDULE OF RISK MANAGEMENT - FINANCIAL STATEMENT RECONCILIATION",null,null,null,{"$f":"HYPERLINK(\"#'Index'!A1\",\"Return to Index\")","v":"Return to Index"}]
[null,null,{"$f":"'Insurer Information'!C7","v":"Enter Company Name"}]
[null,null,{"$f":"\"For the year ending \"&TEXT('Insurer Information'!C3,\"MMMM DD, YYYY\")","v":"For the year ending December 31, 2019"}]
[null,null,{"$f":"\"expressed in\"& IF(CONFIGURATION!$B$12>1,\" ['\"&MID(CONFIGURATION!$B$12,2,LEN(CONFIGURATION!$B$12))&\"s]\",\"\")&\" \"&'Form 4EBS'!C4","v":"expressed in ['000s] United States Dollars"},null,null,null,"SCHEDULE V(g)"]
[]
[null,null,"A reconciliation of amounts reported in total assets, total liabilities, net income, and capital and surplus comprising of any adjustments applied to the General Accepted Accounting Principles/International Financial Reporting Standards to Form 1SFS and from Form 1SFS to Form 4EBS",null,null,null,null,null,null,null,null,null,null,{"$f":"YEAR('Insurer Information'!C3)","v":2019}]
[]
[]
[null,null,"Adjustment Description","Assets","Liabilities","Net Income","Capital and Surplus"]
[null,null,"GAAP/IFRS Financial Statements ",{"$f":"Import!E1760","v":0},{"$f":"Import!E1771","v":0},{"$f":"Import!E1782","v":0},{"$f":"Import!E1793","v":0}]
[null,1,"Prepaid Expenses",{"$f":"Import!E1761","v":0},{"$f":"Import!E1772","v":0},{"$f":"Import!E1783","v":0},{"$f":"D11-E11","v":0}]
[null,{"$f":"B11+1","v":2},"Goodwill",{"$f":"Import!E1762","v":0},{"$f":"Import!E1773","v":0},{"$f":"Import!E1784","v":0},0]
[null,3,"Intangible Assets",{"$f":"Import!E1763","v":0},{"$f":"Import!E1774","v":0},{"$f":"Import!E1785","v":0},0]
[null,4,"(Enter other adjustments from Financials Statements to Form 1SFS)",{"$f":"Import!E1764","v":0},{"$f":"Import!E1775","v":0},{"$f":"Import!E1786","v":0},0]
[null,5,"(Enter other adjustments from Financials Statements to Form 1SFS)",{"$f":"Import!E1765","v":0},{"$f":"Import!E1776","v":0},{"$f":"Import!E1787","v":0},0]
[null,6,"(Enter other adjustments from Financials Statements to Form 1SFS)",{"$f":"Import!E1766","v":0},{"$f":"Import!E1777","v":0},{"$f":"Import!E1788","v":0},0]
[null,7,"(Enter other adjustments from Financials Statements to Form 1SFS)",{"$f":"Import!E1767","v":0},{"$f":"Import!E1778","v":0},{"$f":"Import!E1789","v":0},0]
[null,8,"(Enter other adjustments from Financials Statements to Form 1SFS)",{"$f":"Import!E1768","v":0},{"$f":"Import!E1779","v":0},{"$f":"Import!E1790","v":0},0]
[null,9,"(Enter other adjustments from Financials Statements to Form 1SFS)",{"$f":"Import!E1769","v":0},{"$f":"Import!E1780","v":0},{"$f":"Import!E1791","v":0},0]
[null,10,"(Enter other adjustments from Financials Statements to Form 1SFS)",{"$f":"Import!E1770","v":0},{"$f":"Import!E1781","v":0},{"$f":"Import!E1792","v":0},0]
[null,null,"Form 1SFS",{"$f":"SUM(D10:D20)","v":0},{"$f":"SUM(E10:E20)","v":0},{"$f":"SUM(F10:F20)","v":0},{"$f":"SUM(G10:G20)","v":0}]
[]
[null,null,null,{"$f":"IF(D24=\"TRUE\",HYPERLINK(\"#'Form 1SFS'!M100\",\"TRUE\"),HYPERLINK(\"#'Form 1SFS'!M100\",\"FALSE\"))","v":"TRUE"},{"$f":"IF(E24=\"TRUE\",HYPERLINK(\"#'Form 1SFS'!M194\",\"TRUE\"),HYPERLINK(\"#'Form 1SFS'!M194\",\"FALSE\"))","v":"TRUE"},null,{"$f":"IF(G24=\"TRUE\",HYPERLINK(\"#'Form 1SFS'!M198\",\"TRUE\"),HYPERLINK(\"#'Form 1SFS'!M198\",\"FALSE\"))","v":"TRUE"}]
[null,null,null,{"$f":"IF(ROUND((D21-IF('Form 1SFS'!K100=0,('Form 1SFS'!F100+'Form 1SFS'!H100),'Form 1SFS'!K100)),0)=0,\"TRUE\",\"FALSE\")","v":"TRUE"},{"$f":"IF(ROUND((E21-IF('Form 1SFS'!K194=0,('Form 1SFS'!F194+'Form 1SFS'!H194),'Form 1SFS'!K194)),0)=0,\"TRUE\",\"FALSE\")","v":"TRUE"},null,{"$f":"IF(ROUND((G21-IF('Form 1SFS'!K198=0,('Form 1SFS'!F198+'Form 1SFS'!H198),'Form 1SFS'!K198)),0)=0,\"TRUE\",\"FALSE\")","v":"TRUE"}]
[null,null,null,{"$f":"ROUND(D21-IF('Form 1SFS'!K100=0,('Form 1SFS'!F100+'Form 1SFS'!H100),'Form 1SFS'!K100),0)","v":0},{"$f":"ROUND(E21-IF('Form 1SFS'!K194=0,('Form 1SFS'!F194+'Form 1SFS'!H194),'Form 1SFS'!K194),0)","v":0},null,{"$f":"ROUND(G21-IF('Form 1SFS'!K198=0,('Form 1SFS'!F198+'Form 1SFS'!H198),'Form 1SFS'!K198),0)","v":0}]
[]
[null,null,null,{"$f":"IF(D23=\"False\",\"Does not equal Form 1SFS Line 15\",\"\")","v":""},{"$f":"IF(E23=\"False\",\"Does not equal Form 1SFS Line 39\",\"\")","v":""},null,{"$f":"IF(G23=\"False\",\"Does not equal Form 1SFS Line 40\",\"\")","v":""}]
[]
[null,null,"Adjustment Description","Assets","Liabilities","Net Income","Capital and Surplus"]
[null,null,"Form 1SFS",{"$f":"IF('Form 1SFS'!K100=0,('Form 1SFS'!F100+'Form 1SFS'!H100),'Form 1SFS'!K100)","v":0},{"$f":"IF('Form 1SFS'!K194=0,('Form 1SFS'!F194+'Form 1SFS'!H194),'Form 1SFS'!K194)","v":0},{"$f":"IF('Form 2SFS'!M115=0,('Form 2SFS'!E115+'Form 2SFS'!I115),'Form 2SFS'!M115)","v":0},{"$f":"IF('Form 1SFS'!K198=0,('Form 1SFS'!F198+'Form 1SFS'!H198),'Form 1SFS'!K198)","v":0}]
[null,1,"Gross Loss and Loss Expense Provision",{"$f":"Import!E1795","v":0},{"$f":"Import!E1814","v":0},{"$f":"Import!E1833","v":0},{"$f":"D31-E31","v":0}]
[null,{"$f":"B31+1","v":2},"Gross Premium Provisions",{"$f":"Import!E1796","v":0},{"$f":"Import!E1815","v":0},{"$f":"Import!E1834","v":0},0]
[null,{"$f":"B32+1","v":3},"Reinsurance Recoverables",{"$f":"Import!E1797","v":0},{"$f":"Import!E1816","v":0},{"$f":"Import!E1835","v":0},0]
[null,4,"Risk Margin",{"$f":"Import!E1798","v":0},{"$f":"Import!E1817","v":0},{"$f":"Import!E1836","v":0},0]
[null,5,"Contingent Liabilities",{"$f":"Import!E1799","v":0},{"$f":"Import!E1818","v":0},{"$f":"Import!E1837","v":0},0]
[null,6,"Goodwill",{"$f":"Import!E1800","v":0},{"$f":"Import!E1819","v":0},{"$f":"Import!E1838","v":0},0]
[null,7,"Deferred Taxes Valuation",{"$f":"Import!E1801","v":0},{"$f":"Import!E1820","v":0},{"$f":"Import!E1839","v":0},0]
[null,8,"Quoted Investments",{"$f":"Import!E1802","v":0},{"$f":"Import!E1821","v":0},{"$f":"Import!E1840","v":0},0]
[null,9,"Unquoted Investments",{"$f":"Import!E1803","v":0},{"$f":"Import!E1822","v":0},{"$f":"Import!E1841","v":0},0]
[null,10,"Investments in affiliates",{"$f":"Import!E1804","v":0},{"$f":"Import!E1823","v":0},{"$f":"Import!E1842","v":0},0]
[null,11,"Real Estate ",{"$f":"Import!E1805","v":0},{"$f":"Import!E1824","v":0},{"$f":"Import!E1843","v":0},0]
[null,12,"Off Balance Sheet Instruments approved as statutory capital",{"$f":"Import!E1806","v":0},{"$f":"Import!E1825","v":0},{"$f":"Import!E1844","v":0},0]
[null,13,"Debt Instruments approved as statutory Capital ",{"$f":"Import!E1807","v":0},{"$f":"Import!E1826","v":0},{"$f":"Import!E1845","v":0},0]
[null,14,"Other Intangible Assets (Specify)",{"$f":"Import!E1808","v":0},{"$f":"Import!E1827","v":0},{"$f":"Import!E1846","v":0},0]
[null,15,"(Enter other adjustments from 1SFS to Form 4EBS)",{"$f":"Import!E1809","v":0},{"$f":"Import!E1828","v":0},{"$f":"Import!E1847","v":0},0]
[null,16,"(Enter other adjustments from 1SFS to Form 4EBS)",{"$f":"Import!E1810","v":0},{"$f":"Import!E1829","v":0},{"$f":"Import!E1848","v":0},0]
[null,17,"(Enter other adjustments from 1SFS to Form 4EBS)",{"$f":"Import!E1811","v":0},{"$f":"Import!E1830","v":0},{"$f":"Import!E1849","v":0},0]
[null,18,"(Enter other adjustments from 1SFS to Form 4EBS)",null,null,null,0]
[null,19,"(Enter other adjustments from 1SFS to Form 4EBS)",null,null,null,0]
[null,20,"(Enter other adjustments from 1SFS to Form 4EBS)",null,null,null,0]
[null,null,"Form 4 EBS",{"$f":"SUM(D30:D50)","v":0},{"$f":"SUM(E30:E50)","v":0},{"$f":"SUM(F30:F50)","v":0},{"$f":"SUM(G30:G50)","v":0}]
[]
[null,null,null,{"$f":"IF(D54=\"TRUE\",HYPERLINK(\"#'Form 4EBS'!F93\",\"TRUE\"),HYPERLINK(\"#'Form 4EBS'!F93\",\"FALSE\"))","v":"TRUE"},{"$f":"IF(E54=\"TRUE\",HYPERLINK(\"#'Form 4EBS'!F180\",\"TRUE\"),HYPERLINK(\"#'Form 4EBS'!F180\",\"FALSE\"))","v":"TRUE"},null,{"$f":"IF(G54=\"TRUE\",HYPERLINK(\"#'Form 4EBS'!F184\",\"TRUE\"),HYPERLINK(\"#'Form 4EBS'!F184\",\"FALSE\"))","v":"TRUE"}]
[null,null,null,{"$f":"IF(ROUND((D51-'Form 4EBS'!F93),0)=0,\"TRUE\",\"FALSE\")","v":"TRUE"},{"$f":"IF(ROUND((E51-'Form 4EBS'!F180),0)=0,\"TRUE\",\"FALSE\")","v":"TRUE"},null,{"$f":"IF(ROUND((G51-'Form 4EBS'!F184),0)=0,\"TRUE\",\"FALSE\")","v":"TRUE"}]
[null,null,null,{"$f":"ROUND(D51-'Form 4EBS'!F93,0)","v":0},{"$f":"ROUND(E51-'Form 4EBS'!F180,0)","v":0},null,{"$f":"ROUND(G51-'Form 4EBS'!F184,0)","v":0}]
[]
[null,null,null,{"$f":"IF(D53=\"False\",\"Does not equal Form 4EBS Line 15\",\"\")","v":""},{"$f":"IF(E53=\"False\",\"Does not equal Form 4EBS Line 39\",\"\")","v":""},null,{"$f":"IF(G53=\"False\",\"Does not equal Form 4EBS Line 40\",\"\")","v":""}]

{"sheet":"Schedule V(k)","index":43,"n_rows":89,"n_cols":44,"rows_kept":89,"cut":false,"hidden":false,"merged":[[2,1,2,2]]}
[null,null,"Details of Deposit Asset and Liabilities",null,null,null,null,null,null,null,null,{"$f":"HYPERLINK(\"#'Index'!A1\",\"Return to Index\")","v":"Return to Index"}]
[null,{"$f":"+'Insurer Information'!C7","v":"Enter Company Name"}]
[null,{"$f":"+'Insurer Information'!C3","v":"2019-12-31"},null,null,{"$f":"Import!E1871","v":0},null,"Enter Number of Rows Required",null,null,null,null,"SCHEDULE V(k)"]
[null,{"$f":"+'Form 4EBS'!B4","v":"Expressed in  ['000s]"}]
[null,null,null,null,"(A)","(B)","(C)","(D)","(E)","(F)","(G)","(H)"]
[null,null,"Name of Exposure",null,"Lines of Business Written","Assets in Trust","Other Collaterial","GPW for the Period","NPW for the Period","Limits/Maximum Exposure","Limits at \n99.0 TvaR","Unlimited Exposure Details",null,{"$f":"YEAR('Insurer Information'!C3)","v":2019}]
[]
[null,1,{"$f":"Import!E1872","v":0},null,{"$f":"Import!E1897","v":0},{"$f":"Import!E1922","v":0},{"$f":"Import!E1948","v":0},{"$f":"Import!E1974","v":0},{"$f":"Import!E2000","v":0},{"$f":"Import!E2026","v":0},{"$f":"Import!E2052","v":0},{"$f":"Import!E2078","v":0},null,null,null,null,null,null,null,null,null,null,null,null,null,null,null,null,null,"",null,"bma_SecurityUSGovernmentAmountPerForm1ALines2bAnd3b",null,"bma_SecurityUSGovernmentFaceValue",null,"bma_SecurityUSGovernmentFairValue",null,"bma_SecurityUSGovernmentAverageYTM",null,"bma_SecurityUSGovernmentAverageRating",null,"bma_SecurityUSGovernmentEffectiveDuration",null,"bma_SecurityUSGovernmentEffectiveConvexity"]
[null,{"$f":"B8+1","v":2},{"$f":"Import!E1873","v":0},null,{"$f":"Import!E1898","v":0},{"$f":"Import!E1923","v":0},{"$f":"Import!E1949","v":0},{"$f":"Import!E1975","v":0},{"$f":"Import!E2001","v":0},{"$f":"Import!E2027","v":0},{"$f":"Import!E2053","v":0},{"$f":"Import!E2079","v":0},null,null,null,null,null,null,null,null,null,null,null,null,null,null,null,null,null,"",null,"bma_SecurityNonUSGovernmentAmountPerForm1ALines2bAnd3b",null,"bma_SecurityNonUSGovernmentFaceValue",null,"bma_SecurityNonUSGovernmentFairValue",null,"bma_SecurityNonUSGovernmentAverageYTM",null,"bma_SecurityNonUSGovernmentAverageRating",null,"bma_SecurityNonUSGovernmentEffectiveDuration",null,"bma_SecurityNonUSGovernmentEffectiveConvexity"]
[null,{"$f":"B9+1","v":3},{"$f":"Import!E1874","v":0},null,{"$f":"Import!E1899","v":0},{"$f":"Import!E1924","v":0},{"$f":"Import!E1950","v":0},{"$f":"Import!E1976","v":0},{"$f":"Import!E2002","v":0},{"$f":"Import!E2028","v":0},{"$f":"Import!E2054","v":0},{"$f":"Import!E2080","v":0},null,null,null,null,null,null,null,null,null,null,null,null,null,null,null,null,null,"",null,"bma_SecurityUSGovernmentAgencyMortgageBackedSecuritiesAmountPerForm1ALines2bAnd3b",null,"bma_SecurityUSGovernmentAgencyMortgageBackedSecuritiesFaceValue",null,"bma_SecurityUSGovernmentAgencyMortgageBackedSecuritiesFairValue",null,"bma_SecurityUSGovernmentAgencyMortgageBackedSecuritiesAverageYTM",null,"bma_SecurityUSGovernmentAgencyMortgageBackedSecuritiesAverageRating",null,"bma_SecurityUSGovernmentAgencyMortgageBackedSecuritiesEffectiveDuration",null,"bma_SecurityUSGovernmentAgencyMortgageBackedSecuritiesEffectiveConvexity"]
[null,4,{"$f":"Import!E1875","v":0},null,{"$f":"Import!E1900","v":0},{"$f":"Import!E1925","v":0},{"$f":"Import!E1951","v":0},{"$f":"Import!E1977","v":0},{"$f":"Import!E2003","v":0},{"$f":"Import!E2029","v":0},{"$f":"Import!E2055","v":0},{"$f":"Import!E2081","v":0},null,null,null,null,null,null,null,null,null,null,null,null,null,null,null,null,null,"",null,"bma_SecurityUSGovernmentAgencyOtherAmountPerForm1ALines2bAnd3b",null,"bma_SecurityUSGovernmentAgencyOtherFaceValue",null,"bma_SecurityUSGovernmentAgencyOtherFairValue",null,"bma_SecurityUSGovernmentAgencyOtherAverageYTM",null,"bma_SecurityUSGovernmentAgencyOtherAverageRating",null,"bma_SecurityUSGovernmentAgencyOtherEffectiveDuration",null,"bma_SecurityUSGovernmentAgencyOtherEffectiveConvexity"]
[null,5,{"$f":"Import!E1876","v":0},null,{"$f":"Import!E1901","v":0},{"$f":"Import!E1926","v":0},{"$f":"Import!E1952","v":0},{"$f":"Import!E1978","v":0},{"$f":"Import!E2004","v":0},{"$f":"Import!E2030","v":0},{"$f":"Import!E2056","v":0},{"$f":"Import!E2082","v":0},null,null,null,null,null,null,null,null,null,null,null,null,null,null,null,null,null,"",null,"bma_SecurityCorporateSecuritiesAmountPerForm1ALines2bAnd3b",null,"bma_SecurityCorporateSecuritiesFaceValue",null,"bma_SecurityCorporateSecuritiesFairValue",null,"bma_SecurityCorporateSecuritiesAverageYTM",null,"bma_SecurityCorporateSecuritiesAverageRating",null,"bma_SecurityCorporateSecuritiesEffectiveDuration",null,"bma_SecurityCorporateSecuritiesEffectiveConvexity"]
[null,6,{"$f":"Import!E1877","v":0},null,{"$f":"Import!E1902","v":0},{"$f":"Import!E1927","v":0},{"$f":"Import!E1953","v":0},{"$f":"Import!E1979","v":0},{"$f":"Import!E2005","v":0},{"$f":"Import!E2031","v":0},{"$f":"Import!E2057","v":0},{"$f":"Import!E2083","v":0},null,null,null,null,null,null,null,null,null,null,null,null,null,null,null,null,null,"",null,"bma_SecurityAssetBackedSecuritiesAmountPerForm1ALines2bAnd3b",null,"bma_SecurityAssetBackedSecuritiesFaceValue",null,"bma_SecurityAssetBackedSecuritiesFairValue",null,"bma_SecurityAssetBackedSecuritiesAverageYTM",null,"bma_SecurityAssetBackedSecuritiesAverageRating",null,"bma_SecurityAssetBackedSecuritiesEffectiveDuration",null,"bma_SecurityAssetBackedSecuritiesEffectiveConvexity"]
[null,7,{"$f":"Import!E1878","v":0},null,{"$f":"Import!E1903","v":0},{"$f":"Import!E1928","v":0},{"$f":"Import!E1954","v":0},{"$f":"Import!E1980","v":0},{"$f":"Import!E2006","v":0},{"$f":"Import!E2032","v":0},{"$f":"Import!E2058","v":0},{"$f":"Import!E2084","v":0},null,null,null,null,null,null,null,null,null,null,null,null,null,null,null,null,null,"",null,"bma_SecurityMortgageBackedSecuritiesAmountPerForm1ALines2bAnd3b",null,"bma_SecurityMortgageBackedSecuritiesFaceValue",null,"bma_SecurityMortgageBackedSecuritiesFairValue",null,"bma_SecurityMortgageBackedSecuritiesAverageYTM",null,"bma_SecurityMortgageBackedSecuritiesAverageRating",null,"bma_SecurityMortgageBackedSecuritiesEffectiveDuration",null,"bma_SecurityMortgageBackedSecuritiesEffectiveConvexity"]
[null,8,{"$f":"Import!E1879","v":0},null,{"$f":"Import!E1904","v":0},{"$f":"Import!E1929","v":0},{"$f":"Import!E1955","v":0},{"$f":"Import!E1981","v":0},{"$f":"Import!E2007","v":0},{"$f":"Import!E2033","v":0},{"$f":"Import!E2059","v":0},{"$f":"Import!E2085","v":0},null,null,null,null,null,null,null,null,null,null,null,null,null,null,null,null,null,"",null,"bma_SecurityMutualFundsAmountPerForm1ALines2bAnd3b",null,"bma_SecurityMutualFundsFaceValue",null,"bma_SecurityMutualFundsFairValue",null,"bma_SecurityMutualFundsAverageYTM",null,"bma_SecurityMutualFundsAverageRating",null,"bma_SecurityMutualFundsEffectiveDuration",null,"bma_SecurityMutualFundsEffectiveConvexity"]
[null,9,{"$f":"Import!E1880","v":0},null,{"$f":"Import!E1905","v":0},{"$f":"Import!E1930","v":0},{"$f":"Import!E1956","v":0},{"$f":"Import!E1982","v":0},{"$f":"Import!E2008","v":0},{"$f":"Import!E2034","v":0},{"$f":"Import!E2060","v":0},{"$f":"Import!E2086","v":0},null,null,null,null,null,null,null,null,null,null,null,null,null,null,null,null,null,"bma_SecurityOther1Type",null,"bma_SecurityOther1AmountPerForm1ALines2bAnd3b",null,"bma_SecurityOther1FaceValue",null,"bma_SecurityOther1FairValue",null,"bma_SecurityOther1AverageYTM",null,"bma_SecurityOther1AverageRating",null,"bma_SecurityOther1EffectiveDuration",null,"bma_SecurityOther1EffectiveConvexity"]
[null,10,{"$f":"Import!E1881","v":0},null,{"$f":"Import!E1906","v":0},{"$f":"Import!E1931","v":0},{"$f":"Import!E1957","v":0},{"$f":"Import!E1983","v":0},{"$f":"Import!E2009","v":0},{"$f":"Import!E2035","v":0},{"$f":"Import!E2061","v":0},{"$f":"Import!E2087","v":0}]
[null,11,{"$f":"Import!E1882","v":0},null,{"$f":"Import!E1907","v":0},{"$f":"Import!E1932","v":0},{"$f":"Import!E1958","v":0},{"$f":"Import!E1984","v":0},{"$f":"Import!E2010","v":0},{"$f":"Import!E2036","v":0},{"$f":"Import!E2062","v":0},{"$f":"Import!E2088","v":0}]
[null,12,{"$f":"Import!E1883","v":0},null,{"$f":"Import!E1908","v":0},{"$f":"Import!E1933","v":0},{"$f":"Import!E1959","v":0},{"$f":"Import!E1985","v":0},{"$f":"Import!E2011","v":0},{"$f":"Import!E2037","v":0},{"$f":"Import!E2063","v":0},{"$f":"Import!E2089","v":0}]
[null,13,{"$f":"Import!E1884","v":0},null,{"$f":"Import!E1909","v":0},{"$f":"Import!E1934","v":0},{"$f":"Import!E1960","v":0},{"$f":"Import!E1986","v":0},{"$f":"Import!E2012","v":0},{"$f":"Import!E2038","v":0},{"$f":"Import!E2064","v":0},{"$f":"Import!E2090","v":0}]
[null,14,{"$f":"Import!E1885","v":0},null,{"$f":"Import!E1910","v":0},{"$f":"Import!E1935","v":0},{"$f":"Import!E1961","v":0},{"$f":"Import!E1987","v":0},{"$f":"Import!E2013","v":0},{"$f":"Import!E2039","v":0},{"$f":"Import!E2065","v":0},{"$f":"Import!E2091","v":0}]
[null,15,{"$f":"Import!E1886","v":0},null,{"$f":"Import!E1911","v":0},{"$f":"Import!E1936","v":0},{"$f":"Import!E1962","v":0},{"$f":"Import!E1988","v":0},{"$f":"Import!E2014","v":0},{"$f":"Import!E2040","v":0},{"$f":"Import!E2066","v":0},{"$f":"Import!E2092","v":0}]
[null,16,{"$f":"Import!E1887","v":0},null,{"$f":"Import!E1912","v":0},{"$f":"Import!E1937","v":0},{"$f":"Import!E1963","v":0},{"$f":"Import!E1989","v":0},{"$f":"Import!E2015","v":0},{"$f":"Import!E2041","v":0},{"$f":"Import!E2067","v":0},{"$f":"Import!E2093","v":0}]
[null,17,{"$f":"Import!E1888","v":0},null,{"$f":"Import!E1913","v":0},{"$f":"Import!E1938","v":0},{"$f":"Import!E1964","v":0},{"$f":"Import!E1990","v":0},{"$f":"Import!E2016","v":0},{"$f":"Import!E2042","v":0},{"$f":"Import!E2068","v":0},{"$f":"Import!E2094","v":0}]
[null,18,{"$f":"Import!E1889","v":0},null,{"$f":"Import!E1914","v":0},{"$f":"Import!E1939","v":0},{"$f":"Import!E1965","v":0},{"$f":"Import!E1991","v":0},{"$f":"Import!E2017","v":0},{"$f":"Import!E2043","v":0},{"$f":"Import!E2069","v":0},{"$f":"Import!E2095","v":0}]
[null,19,{"$f":"Import!E1890","v":0},null,{"$f":"Import!E1915","v":0},{"$f":"Import!E1940","v":0},{"$f":"Import!E1966","v":0},{"$f":"Import!E1992","v":0},{"$f":"Import!E2018","v":0},{"$f":"Import!E2044","v":0},{"$f":"Import!E2070","v":0},{"$f":"Import!E2096","v":0}]
[null,20,{"$f":"Import!E1891","v":0},null,{"$f":"Import!E1916","v":0},{"$f":"Import!E1941","v":0},{"$f":"Import!E1967","v":0},{"$f":"Import!E1993","v":0},{"$f":"Import!E2019","v":0},{"$f":"Import!E2045","v":0},{"$f":"Import!E2071","v":0},{"$f":"Import!E2097","v":0}]
[null,21,{"$f":"Import!E1892","v":0},null,{"$f":"Import!E1917","v":0},{"$f":"Import!E1942","v":0},{"$f":"Import!E1968","v":0},{"$f":"Import!E1994","v":0},{"$f":"Import!E2020","v":0},{"$f":"Import!E2046","v":0},{"$f":"Import!E2072","v":0},{"$f":"Import!E2098","v":0}]
[null,22,{"$f":"Import!E1893","v":0},null,{"$f":"Import!E1918","v":0},{"$f":"Import!E1943","v":0},{"$f":"Import!E1969","v":0},{"$f":"Import!E1995","v":0},{"$f":"Import!E2021","v":0},{"$f":"Import!E2047","v":0},{"$f":"Import!E2073","v":0},{"$f":"Import!E2099","v":0}]
[null,23,{"$f":"Import!E1894","v":0},null,{"$f":"Import!E1919","v":0},{"$f":"Import!E1944","v":0},{"$f":"Import!E1970","v":0},{"$f":"Import!E1996","v":0},{"$f":"Import!E2022","v":0},{"$f":"Import!E2048","v":0},{"$f":"Import!E2074","v":0},{"$f":"Import!E2100","v":0}]
[null,24,{"$f":"Import!E1895","v":0},null,{"$f":"Import!E1920","v":0},{"$f":"Import!E1945","v":0},{"$f":"Import!E1971","v":0},{"$f":"Import!E1997","v":0},{"$f":"Import!E2023","v":0},{"$f":"Import!E2049","v":0},{"$f":"Import!E2075","v":0},{"$f":"Import!E2101","v":0}]
[null,25,{"$f":"Import!E1896","v":0},null,{"$f":"Import!E1921","v":0},{"$f":"Import!E1946","v":0},{"$f":"Import!E1972","v":0},{"$f":"Import!E1998","v":0},{"$f":"Import!E2024","v":0},{"$f":"Import!E2050","v":0},{"$f":"Import!E2076","v":0},{"$f":"Import!E2102","v":0}]
[null,26]
[null,27]
[null,28]
[null,29]
[null,30]
[null,31]
[null,32]
[null,33]
[null,34]
[null,35]
[null,36]
[null,37]
[null,38]
[null,39]
[null,40]
[null,41]
[null,42]
[null,43]
[null,44]
[null,45]
[null,46]
[null,47]
[null,48]
[null,49]
[null,50,null,null,null,null,null,null,null,null,null,null,null,null,null,null,null,null,null,null,null,null,null,null,null,null,null,null,null,"bma_SecurityOther2Type",null,"bma_SecurityOther2AmountPerForm1ALines2bAnd3b",null,"bma_SecurityOther2FaceValue",null,"bma_SecurityOther2FairValue",null,"bma_SecurityOther2AverageYTM",null,"bma_SecurityOther2AverageRating",null,"bma_SecurityOther2EffectiveDuration",null,"bma_SecurityOther2EffectiveConvexity"]
[null,null,"TOTAL ",null,null,{"$f":"SUM(F8:F57)","v":0},{"$f":"SUM(G8:G57)","v":0},{"$f":"SUM(H8:H57)","v":0},null,{"$f":"SUM(J8:J57)","v":0},{"$f":"SUM(K8:K57)","v":0},null,null,null,null,null,null,null,null,null,null,null,null,null,null,null,null,null,null,"",null,"bma_SecurityTotalPortfolioAmountPerForm1ALines2bAnd3b",null,"bma_SecurityTotalPortfolioFaceValue",null,"bma_SecurityTotalPortfolioFairValue",null,"",null,"",null,"",null,""]
[null,null,null,null,null,null,null,null,null,null,null,null,null,null,null,null,null,null,null,null,null,null,null,"",null,"",null,"",null,"",null,"",null,"",null,"",null,"",null,"",null,"",null,""]
[]
[]
[]
[]
[]
[]
[]
[]
[]
[]
[]
[]
[]
[]
[]
[]
[]
[]
[]
[]
[]
[]
[]
[]
[]
[]
[null,null,null,null,null,null,"A or better",null,null,null,"A or better"]
[null,null,null,null,null,null,"BBB or equivalent",null,null,null,"BBB or equivalent"]
[null,null,null,null,null,null,"B or better",null,null,null,"B or better"]
[null,null,null,null,null,null,"unrated/other",null,null,null,"unrated/other"]

{"sheet":"Schedule V(l)","index":44,"n_rows":217,"n_cols":65,"rows_kept":217,"cut":false,"hidden":false,"merged":[[2,58,5,58],[1,3,1,56]]}
[null,null,"SCHEDULE OF SEGREGATED ACCOUNTS - CELL BY CELL DISCLOSURE (UNCONSOLIDATED BASIS)",null,null,null,null,null,null,null,null,null,null,null,null,null,null,null,null,null,null,null,null,null,null,null,null,null,null,null,null,null,null,null,null,null,null,null,null,null,null,null,null,null,null,null,null,null,null,null,null,null,null,null,null,null,null,null,null,null,null,null,null,null,{"$f":"HYPERLINK(\"#'Index'!A1\",\"Return to Index\")","v":"Return to Index"}]
[null,null,{"$f":"'Insurer Information'!C7","v":"Enter Company Name"},"Ensure that all figures are included  on a statutory basis.  Items that require a balance sheet check should be consistent with the respective Line on Form 1SFS.  Input the value from the financial statements and where  a discrepancy is noted, include a comment explaining the difference.",null,null,null,null,null,null,null,null,null,null,null,null,null,null,null,null,null,null,null,null,null,null,null,null,null,null,null,null,null,null,null,null,null,null,null,null,null,null,null,null,null,null,null,null,null,null,null,null,null,null,null,null,null,null,"SCHEDULE V(l) "]
[null,null,{"$f":"'Insurer Information'!C3","v":"2019-12-31"},null,{"$f":"Import!E2104","v":0},null,"Enter Number of Columns Required (Note only a maximum of 50 cells)",null,null,null,null,null,null,null,null,null,null,null,null,null,null,null,null,null,null,null,null,null,null,null,null,null,null,null,null,null,null,null,null,null,null,null,null,null,null,null,null,null,null,null,null,null,null,null,null,null,null,null,"Grand Total General Account and Total Cells"]
[null,null,{"$f":"'Form 4EBS'!B4","v":"Expressed in  ['000s]"},null,null,null,null,null,null,null,null,null,null,null,null,null,null,null,null,null,null,null,null,null,null,null,null,null,null,null,null,null,null,null,null,null,null,null,null,null,null,null,null,null,null,null,null,null,null,null,null,null,null,null,null,null,"General",null,null,null,"Balance Sheet"]
[null,null,null,"Cell 1","Cell 2","Cell 3","Cell 4","Cell 5","Cell 6","Cell 7","Cell 8","Cell 9","Cell 10","Cell 11","Cell 12","Cell 13","Cell 14","Cell 15","Cell 16","Cell 17","Cell 18","Cell 19","Cell 20","Cell 21","Cell 22","Cell 23","Cell 24","Cell 25","Cell 26","Cell 27","Cell 28","Cell 29","Cell 30","Cell 31","Cell 32","Cell 33","Cell 34","Cell 35","Cell 36","Cell 37","Cell 38","Cell 39","Cell 40","Cell 41","Cell 42","Cell 43","Cell 44","Cell 45","Cell 46","Cell 47","Cell 48","Cell 49","Cell 50",null,"Total of Cells",null,"Account",null,null,null,"Check",null,"Difference",null,"Comment for Discrepancies Noted"]
[null,"(A)","Cell reference number",{"$f":"Import!E2105","v":0},{"$f":"Import!E2168","v":0},{"$f":"Import!E2231","v":0},{"$f":"Import!E2294","v":0},{"$f":"Import!E2357","v":0},{"$f":"Import!E2420","v":0},{"$f":"Import!E2483","v":0},{"$f":"Import!E2546","v":0},{"$f":"Import!E2609","v":0},{"$f":"Import!E2672","v":0},{"$f":"YEAR('Insurer Information'!C3)","v":2019},{"$f":"Import!E2798","v":0},{"$f":"Import!E2861","v":0},{"$f":"Import!E2924","v":0},{"$f":"Import!E2987","v":0},{"$f":"Import!E3050","v":0},{"$f":"Import!E3113","v":0},{"$f":"Import!E3176","v":0},{"$f":"Import!E3239","v":0},{"$f":"Import!E3302","v":0},{"$f":"Import!E3365","v":0},{"$f":"Import!E3428","v":0},{"$f":"Import!E3491","v":0},{"$f":"Import!E3554","v":0},{"$f":"Import!E3617","v":0}]
[null,"(B)","Cell name",{"$f":"Import!E2106","v":0},{"$f":"Import!E2169","v":0},{"$f":"Import!E2232","v":0},{"$f":"Import!E2295","v":0},{"$f":"Import!E2358","v":0},{"$f":"Import!E2421","v":0},{"$f":"Import!E2484","v":0},{"$f":"Import!E2547","v":0},{"$f":"Import!E2610","v":0},{"$f":"Import!E2673","v":0},{"$f":"Import!E2736","v":0},{"$f":"Import!E2799","v":0},{"$f":"Import!E2862","v":0},{"$f":"Import!E2925","v":0},{"$f":"Import!E2988","v":0},{"$f":"Import!E3051","v":0},{"$f":"Import!E3114","v":0},{"$f":"Import!E3177","v":0},{"$f":"Import!E3240","v":0},{"$f":"Import!E3303","v":0},{"$f":"Import!E3366","v":0},{"$f":"Import!E3429","v":0},{"$f":"Import!E3492","v":0},{"$f":"Import!E3555","v":0},{"$f":"Import!E3618","v":0}]
[null,"(C)","Direct Insurer, Reinsurer or Both",{"$f":"Import!E2107","v":"Select Premiums Written"},{"$f":"Import!E2170","v":"Select Premiums Written"},{"$f":"Import!E2233","v":"Select Premiums Written"},{"$f":"Import!E2296","v":"Select Premiums Written"},{"$f":"Import!E2359","v":"Select Premiums Written"},{"$f":"Import!E2422","v":"Select Premiums Written"},{"$f":"Import!E2485","v":"Select Premiums Written"},{"$f":"Import!E2548","v":"Select Premiums Written"},{"$f":"Import!E2611","v":"Select Premiums Written"},{"$f":"Import!E2674","v":"Select Premiums Written"},{"$f":"Import!E2737","v":"Select Premiums Written"},{"$f":"Import!E2800","v":"Select Premiums Written"},{"$f":"Import!E2863","v":"Select Premiums Written"},{"$f":"Import!E2926","v":"Select Premiums Written"},{"$f":"Import!E2989","v":"Select Premiums Written"},{"$f":"Import!E3052","v":"Select Premiums Written"},{"$f":"Import!E3115","v":"Select Premiums Written"},{"$f":"Import!E3178","v":"Select Premiums Written"},{"$f":"Import!E3241","v":"Select Premiums Written"},{"$f":"Import!E3304","v":"Select Premiums Written"},{"$f":"Import!E3367","v":"Select Premiums Written"},{"$f":"Import!E3430","v":"Select Premiums Written"},{"$f":"Import!E3493","v":"Select Premiums Written"},{"$f":"Import!E3556","v":"Select Premiums Written"},{"$f":"Import!E3619","v":"Select Premiums Written"},"Select Premiums Written","Select Premiums Written","Select Premiums Written","Select Premiums Written","Select Premiums Written","Select Premiums Written","Select Premiums Written","Select Premiums Written","Select Premiums Written","Select Premiums Written","Select Premiums Written","Select Premiums Written","Select Premiums Written","Select Premiums Written","Select Premiums Written","Select Premiums Written","Select Premiums Written","Select Premiums Written","Select Premiums Written","Select Premiums Written","Select Premiums Written","Select Premiums Written","Select Premiums Written","Select Premiums Written","Select Premiums Written"]
[null,"(D)","Total Statutory Assets",{"$f":"Import!E2108","v":0},{"$f":"Import!E2171","v":0},{"$f":"Import!E2234","v":0},{"$f":"Import!E2297","v":0},{"$f":"Import!E2360","v":0},{"$f":"Import!E2423","v":0},{"$f":"Import!E2486","v":0},{"$f":"Import!E2549","v":0},{"$f":"Import!E2612","v":0},{"$f":"Import!E2675","v":0},{"$f":"Import!E2738","v":0},{"$f":"Import!E2801","v":0},{"$f":"Import!E2864","v":0},{"$f":"Import!E2927","v":0},{"$f":"Import!E2990","v":0},{"$f":"Import!E3053","v":0},{"$f":"Import!E3116","v":0},{"$f":"Import!E3179","v":0},{"$f":"Import!E3242","v":0},{"$f":"Import!E3305","v":0},{"$f":"Import!E3368","v":0},{"$f":"Import!E3431","v":0},{"$f":"Import!E3494","v":0},{"$f":"Import!E3557","v":0},{"$f":"Import!E3620","v":0},null,null,null,null,null,null,null,null,null,null,null,null,null,null,null,null,null,null,null,null,null,null,null,null,null,null,{"$f":"SUM(D9:BA9)","v":0},null,{"$f":"Import!E3680","v":0},null,{"$f":"BC9+BE9","v":0},null,{"$f":"IF(('Form 1SFS'!F100+'Form 1SFS'!H100)=0,'Form 1SFS'!K100,'Form 1SFS'!F100+'Form 1SFS'!H100)","v":0},null,{"$f":"ROUND(BG9-BI9,0)","v":0},null,{"$f":"Import!E3717","v":0}]
[null,"(E)","Total Statutory Liabilities",{"$f":"Import!E2109","v":0},{"$f":"Import!E2172","v":0},{"$f":"Import!E2235","v":0},{"$f":"Import!E2298","v":0},{"$f":"Import!E2361","v":0},{"$f":"Import!E2424","v":0},{"$f":"Import!E2487","v":0},{"$f":"Import!E2550","v":0},{"$f":"Import!E2613","v":0},{"$f":"Import!E2676","v":0},{"$f":"Import!E2739","v":0},{"$f":"Import!E2802","v":0},{"$f":"Import!E2865","v":0},{"$f":"Import!E2928","v":0},{"$f":"Import!E2991","v":0},{"$f":"Import!E3054","v":0},{"$f":"Import!E3117","v":0},{"$f":"Import!E3180","v":0},{"$f":"Import!E3243","v":0},{"$f":"Import!E3306","v":0},{"$f":"Import!E3369","v":0},{"$f":"Import!E3432","v":0},{"$f":"Import!E3495","v":0},{"$f":"Import!E3558","v":0},{"$f":"Import!E3621","v":0},null,null,null,null,null,null,null,null,null,null,null,null,null,null,null,null,null,null,null,null,null,null,null,null,null,null,{"$f":"SUM(D10:BA10)","v":0},null,{"$f":"Import!E3681","v":0},null,{"$f":"BC10+BE10","v":0},null,{"$f":"IF(('Form 1SFS'!F194+'Form 1SFS'!H194)=0,'Form 1SFS'!K194,'Form 1SFS'!F194+'Form 1SFS'!H194)","v":0},null,{"$f":"ROUND(BG10-BI10,0)","v":0},null,{"$f":"Import!E3718","v":0}]
[null,"(F)","Statutory Surplus",{"$f":"Import!E2110","v":0},{"$f":"Import!E2173","v":0},{"$f":"Import!E2236","v":0},{"$f":"Import!E2299","v":0},{"$f":"Import!E2362","v":0},{"$f":"Import!E2425","v":0},{"$f":"Import!E2488","v":0},{"$f":"Import!E2551","v":0},{"$f":"Import!E2614","v":0},{"$f":"Import!E2677","v":0},{"$f":"Import!E2740","v":0},{"$f":"Import!E2803","v":0},{"$f":"Import!E2866","v":0},{"$f":"Import!E2929","v":0},{"$f":"Import!E2992","v":0},{"$f":"Import!E3055","v":0},{"$f":"Import!E3118","v":0},{"$f":"Import!E3181","v":0},{"$f":"Import!E3244","v":0},{"$f":"Import!E3307","v":0},{"$f":"Import!E3370","v":0},{"$f":"Import!E3433","v":0},{"$f":"Import!E3496","v":0},{"$f":"Import!E3559","v":0},{"$f":"Import!E3622","v":0},null,null,null,null,null,null,null,null,null,null,null,null,null,null,null,null,null,null,null,null,null,null,null,null,null,null,0,null,{"$f":"Import!E3682","v":0},null,0]
[null,"(G)","Statutory Capital",{"$f":"Import!E2111","v":0},{"$f":"Import!E2174","v":0},{"$f":"Import!E2237","v":0},{"$f":"Import!E2300","v":0},{"$f":"Import!E2363","v":0},{"$f":"Import!E2426","v":0},{"$f":"Import!E2489","v":0},{"$f":"Import!E2552","v":0},{"$f":"Import!E2615","v":0},{"$f":"Import!E2678","v":0},{"$f":"Import!E2741","v":0},{"$f":"Import!E2804","v":0},{"$f":"Import!E2867","v":0},{"$f":"Import!E2930","v":0},{"$f":"Import!E2993","v":0},{"$f":"Import!E3056","v":0},{"$f":"Import!E3119","v":0},{"$f":"Import!E3182","v":0},{"$f":"Import!E3245","v":0},{"$f":"Import!E3308","v":0},{"$f":"Import!E3371","v":0},{"$f":"Import!E3434","v":0},{"$f":"Import!E3497","v":0},{"$f":"Import!E3560","v":0},{"$f":"Import!E3623","v":0},null,null,null,null,null,null,null,null,null,null,null,null,null,null,null,null,null,null,null,null,null,null,null,null,null,null,0,null,{"$f":"Import!E3683","v":0},null,0]
[null,null,"Total Statutory Capital and Surplus",{"$f":"D11+D12","v":0},0,0,0,0,0,0,0,0,0,0,0,0,0,0,0,0,0,0,0,0,0,0,0,0,0,0,0,0,0,0,0,0,0,0,0,0,0,0,0,0,0,0,0,0,0,0,0,0,0,null,{"$f":"SUM(D13:BA13)","v":0},null,{"$f":"BE11+BE12","v":0},null,{"$f":"SUM(H13:BE13)","v":0},null,{"$f":"IF(('Form 1SFS'!F198+'Form 1SFS'!H198)=0,'Form 1SFS'!K198,'Form 1SFS'!F198+'Form 1SFS'!H198)","v":0},null,{"$f":"ROUND(BG13-BI13,0)","v":0},null,{"$f":"Import!E3719","v":0}]
[null,"(H)","Net Income",{"$f":"Import!E2112","v":0},{"$f":"Import!E2175","v":0},{"$f":"Import!E2238","v":0},{"$f":"Import!E2301","v":0},{"$f":"Import!E2364","v":0},{"$f":"Import!E2427","v":0},{"$f":"Import!E2490","v":0},{"$f":"Import!E2553","v":0},{"$f":"Import!E2616","v":0},{"$f":"Import!E2679","v":0},{"$f":"Import!E2742","v":0},{"$f":"Import!E2805","v":0},{"$f":"Import!E2868","v":0},{"$f":"Import!E2931","v":0},{"$f":"Import!E2994","v":0},{"$f":"Import!E3057","v":0},{"$f":"Import!E3120","v":0},{"$f":"Import!E3183","v":0},{"$f":"Import!E3246","v":0},{"$f":"Import!E3309","v":0},{"$f":"Import!E3372","v":0},{"$f":"Import!E3435","v":0},{"$f":"Import!E3498","v":0},{"$f":"Import!E3561","v":0},{"$f":"Import!E3624","v":0},null,null,null,null,null,null,null,null,null,null,null,null,null,null,null,null,null,null,null,null,null,null,null,null,null,null,0,null,{"$f":"Import!E3684","v":0},null,0]
[null,"(I)","Cash ",{"$f":"Import!E2113","v":0},{"$f":"Import!E2176","v":0},{"$f":"Import!E2239","v":0},{"$f":"Import!E2302","v":0},{"$f":"Import!E2365","v":0},{"$f":"Import!E2428","v":0},{"$f":"Import!E2491","v":0},{"$f":"Import!E2554","v":0},{"$f":"Import!E2617","v":0},{"$f":"Import!E2680","v":0},{"$f":"Import!E2743","v":0},{"$f":"Import!E2806","v":0},{"$f":"Import!E2869","v":0},{"$f":"Import!E2932","v":0},{"$f":"Import!E2995","v":0},{"$f":"Import!E3058","v":0},{"$f":"Import!E3121","v":0},{"$f":"Import!E3184","v":0},{"$f":"Import!E3247","v":0},{"$f":"Import!E3310","v":0},{"$f":"Import!E3373","v":0},{"$f":"Import!E3436","v":0},{"$f":"Import!E3499","v":0},{"$f":"Import!E3562","v":0},{"$f":"Import!E3625","v":0},null,null,null,null,null,null,null,null,null,null,null,null,null,null,null,null,null,null,null,null,null,null,null,null,null,null,0,null,{"$f":"Import!E3685","v":0},null,0]
[null,"(J)","Quoted: Bonds and Debentures",{"$f":"Import!E2114","v":0},{"$f":"Import!E2177","v":0},{"$f":"Import!E2240","v":0},{"$f":"Import!E2303","v":0},{"$f":"Import!E2366","v":0},{"$f":"Import!E2429","v":0},{"$f":"Import!E2492","v":0},{"$f":"Import!E2555","v":0},{"$f":"Import!E2618","v":0},{"$f":"Import!E2681","v":0},{"$f":"Import!E2744","v":0},{"$f":"Import!E2807","v":0},{"$f":"Import!E2870","v":0},{"$f":"Import!E2933","v":0},{"$f":"Import!E2996","v":0},{"$f":"Import!E3059","v":0},{"$f":"Import!E3122","v":0},{"$f":"Import!E3185","v":0},{"$f":"Import!E3248","v":0},{"$f":"Import!E3311","v":0},{"$f":"Import!E3374","v":0},{"$f":"Import!E3437","v":0},{"$f":"Import!E3500","v":0},{"$f":"Import!E3563","v":0},{"$f":"Import!E3626","v":0},null,null,null,null,null,null,null,null,null,null,null,null,null,null,null,null,null,null,null,null,null,null,null,null,null,null,0,null,{"$f":"Import!E3686","v":0},null,0]
[null,"(K)","Quoted: Equites",{"$f":"Import!E2115","v":0},{"$f":"Import!E2178","v":0},{"$f":"Import!E2241","v":0},{"$f":"Import!E2304","v":0},{"$f":"Import!E2367","v":0},{"$f":"Import!E2430","v":0},{"$f":"Import!E2493","v":0},{"$f":"Import!E2556","v":0},{"$f":"Import!E2619","v":0},{"$f":"Import!E2682","v":0},{"$f":"Import!E2745","v":0},{"$f":"Import!E2808","v":0},{"$f":"Import!E2871","v":0},{"$f":"Import!E2934","v":0},{"$f":"Import!E2997","v":0},{"$f":"Import!E3060","v":0},{"$f":"Import!E3123","v":0},{"$f":"Import!E3186","v":0},{"$f":"Import!E3249","v":0},{"$f":"Import!E3312","v":0},{"$f":"Import!E3375","v":0},{"$f":"Import!E3438","v":0},{"$f":"Import!E3501","v":0},{"$f":"Import!E3564","v":0},{"$f":"Import!E3627","v":0},null,null,null,null,null,null,null,null,null,null,null,null,null,null,null,null,null,null,null,null,null,null,null,null,null,null,0,null,{"$f":"Import!E3687","v":0},null,0]
[null,"(L)","Quoted: Other ",{"$f":"Import!E2116","v":0},{"$f":"Import!E2179","v":0},{"$f":"Import!E2242","v":0},{"$f":"Import!E2305","v":0},{"$f":"Import!E2368","v":0},{"$f":"Import!E2431","v":0},{"$f":"Import!E2494","v":0},{"$f":"Import!E2557","v":0},{"$f":"Import!E2620","v":0},{"$f":"Import!E2683","v":0},{"$f":"Import!E2746","v":0},{"$f":"Import!E2809","v":0},{"$f":"Import!E2872","v":0},{"$f":"Import!E2935","v":0},{"$f":"Import!E2998","v":0},{"$f":"Import!E3061","v":0},{"$f":"Import!E3124","v":0},{"$f":"Import!E3187","v":0},{"$f":"Import!E3250","v":0},{"$f":"Import!E3313","v":0},{"$f":"Import!E3376","v":0},{"$f":"Import!E3439","v":0},{"$f":"Import!E3502","v":0},{"$f":"Import!E3565","v":0},{"$f":"Import!E3628","v":0},null,null,null,null,null,null,null,null,null,null,null,null,null,null,null,null,null,null,null,null,null,null,null,null,null,null,0,null,{"$f":"Import!E3688","v":0},null,0]
[null,"(M)","Unquoted: Bonds and Debentures",{"$f":"Import!E2117","v":0},{"$f":"Import!E2180","v":0},{"$f":"Import!E2243","v":0},{"$f":"Import!E2306","v":0},{"$f":"Import!E2369","v":0},{"$f":"Import!E2432","v":0},{"$f":"Import!E2495","v":0},{"$f":"Import!E2558","v":0},{"$f":"Import!E2621","v":0},{"$f":"Import!E2684","v":0},{"$f":"Import!E2747","v":0},{"$f":"Import!E2810","v":0},{"$f":"Import!E2873","v":0},{"$f":"Import!E2936","v":0},{"$f":"Import!E2999","v":0},{"$f":"Import!E3062","v":0},{"$f":"Import!E3125","v":0},{"$f":"Import!E3188","v":0},{"$f":"Import!E3251","v":0},{"$f":"Import!E3314","v":0},{"$f":"Import!E3377","v":0},{"$f":"Import!E3440","v":0},{"$f":"Import!E3503","v":0},{"$f":"Import!E3566","v":0},{"$f":"Import!E3629","v":0},null,null,null,null,null,null,null,null,null,null,null,null,null,null,null,null,null,null,null,null,null,null,null,null,null,null,0,null,{"$f":"Import!E3689","v":0},null,0]
[null,"(N)","Unquoted: Equities",{"$f":"Import!E2118","v":0},{"$f":"Import!E2181","v":0},{"$f":"Import!E2244","v":0},{"$f":"Import!E2307","v":0},{"$f":"Import!E2370","v":0},{"$f":"Import!E2433","v":0},{"$f":"Import!E2496","v":0},{"$f":"Import!E2559","v":0},{"$f":"Import!E2622","v":0},{"$f":"Import!E2685","v":0},{"$f":"Import!E2748","v":0},{"$f":"Import!E2811","v":0},{"$f":"Import!E2874","v":0},{"$f":"Import!E2937","v":0},{"$f":"Import!E3000","v":0},{"$f":"Import!E3063","v":0},{"$f":"Import!E3126","v":0},{"$f":"Import!E3189","v":0},{"$f":"Import!E3252","v":0},{"$f":"Import!E3315","v":0},{"$f":"Import!E3378","v":0},{"$f":"Import!E3441","v":0},{"$f":"Import!E3504","v":0},{"$f":"Import!E3567","v":0},{"$f":"Import!E3630","v":0},null,null,null,null,null,null,null,null,null,null,null,null,null,null,null,null,null,null,null,null,null,null,null,null,null,null,0,null,{"$f":"Import!E3690","v":0},null,0]
[null,"(O)","Unquoted: Other",{"$f":"Import!E2119","v":0},{"$f":"Import!E2182","v":0},{"$f":"Import!E2245","v":0},{"$f":"Import!E2308","v":0},{"$f":"Import!E2371","v":0},{"$f":"Import!E2434","v":0},{"$f":"Import!E2497","v":0},{"$f":"Import!E2560","v":0},{"$f":"Import!E2623","v":0},{"$f":"Import!E2686","v":0},{"$f":"Import!E2749","v":0},{"$f":"Import!E2812","v":0},{"$f":"Import!E2875","v":0},{"$f":"Import!E2938","v":0},{"$f":"Import!E3001","v":0},{"$f":"Import!E3064","v":0},{"$f":"Import!E3127","v":0},{"$f":"Import!E3190","v":0},{"$f":"Import!E3253","v":0},{"$f":"Import!E3316","v":0},{"$f":"Import!E3379","v":0},{"$f":"Import!E3442","v":0},{"$f":"Import!E3505","v":0},{"$f":"Import!E3568","v":0},{"$f":"Import!E3631","v":0},null,null,null,null,null,null,null,null,null,null,null,null,null,null,null,null,null,null,null,null,null,null,null,null,null,null,0,null,{"$f":"Import!E3691","v":0},null,0]
[null,"(P)","Due from Affiliates",{"$f":"Import!E2120","v":0},{"$f":"Import!E2183","v":0},{"$f":"Import!E2246","v":0},{"$f":"Import!E2309","v":0},{"$f":"Import!E2372","v":0},{"$f":"Import!E2435","v":0},{"$f":"Import!E2498","v":0},{"$f":"Import!E2561","v":0},{"$f":"Import!E2624","v":0},{"$f":"Import!E2687","v":0},{"$f":"Import!E2750","v":0},{"$f":"Import!E2813","v":0},{"$f":"Import!E2876","v":0},{"$f":"Import!E2939","v":0},{"$f":"Import!E3002","v":0},{"$f":"Import!E3065","v":0},{"$f":"Import!E3128","v":0},{"$f":"Import!E3191","v":0},{"$f":"Import!E3254","v":0},{"$f":"Import!E3317","v":0},{"$f":"Import!E3380","v":0},{"$f":"Import!E3443","v":0},{"$f":"Import!E3506","v":0},{"$f":"Import!E3569","v":0},{"$f":"Import!E3632","v":0},null,null,null,null,null,null,null,null,null,null,null,null,null,null,null,null,null,null,null,null,null,null,null,null,null,null,0,null,{"$f":"Import!E3692","v":0},null,0]
[null,"(Q)","Due to Affiliates",{"$f":"Import!E2121","v":0},{"$f":"Import!E2184","v":0},{"$f":"Import!E2247","v":0},{"$f":"Import!E2310","v":0},{"$f":"Import!E2373","v":0},{"$f":"Import!E2436","v":0},{"$f":"Import!E2499","v":0},{"$f":"Import!E2562","v":0},{"$f":"Import!E2625","v":0},{"$f":"Import!E2688","v":0},{"$f":"Import!E2751","v":0},{"$f":"Import!E2814","v":0},{"$f":"Import!E2877","v":0},{"$f":"Import!E2940","v":0},{"$f":"Import!E3003","v":0},{"$f":"Import!E3066","v":0},{"$f":"Import!E3129","v":0},{"$f":"Import!E3192","v":0},{"$f":"Import!E3255","v":0},{"$f":"Import!E3318","v":0},{"$f":"Import!E3381","v":0},{"$f":"Import!E3444","v":0},{"$f":"Import!E3507","v":0},{"$f":"Import!E3570","v":0},{"$f":"Import!E3633","v":0},null,null,null,null,null,null,null,null,null,null,null,null,null,null,null,null,null,null,null,null,null,null,null,null,null,null,0,null,{"$f":"Import!E3693","v":0},null,0]
[null,"(R) ","Net Loss & Loss Expense Provisions",{"$f":"Import!E2122","v":0},{"$f":"Import!E2185","v":0},{"$f":"Import!E2248","v":0},{"$f":"Import!E2311","v":0},{"$f":"Import!E2374","v":0},{"$f":"Import!E2437","v":0},{"$f":"Import!E2500","v":0},{"$f":"Import!E2563","v":0},{"$f":"Import!E2626","v":0},{"$f":"Import!E2689","v":0},{"$f":"Import!E2752","v":0},{"$f":"Import!E2815","v":0},{"$f":"Import!E2878","v":0},{"$f":"Import!E2941","v":0},{"$f":"Import!E3004","v":0},{"$f":"Import!E3067","v":0},{"$f":"Import!E3130","v":0},{"$f":"Import!E3193","v":0},{"$f":"Import!E3256","v":0},{"$f":"Import!E3319","v":0},{"$f":"Import!E3382","v":0},{"$f":"Import!E3445","v":0},{"$f":"Import!E3508","v":0},{"$f":"Import!E3571","v":0},{"$f":"Import!E3634","v":0},null,null,null,null,null,null,null,null,null,null,null,null,null,null,null,null,null,null,null,null,null,null,null,null,null,null,0,null,{"$f":"Import!E3694","v":0},null,0]
[null,"(S) ","Prior Year loss reserve development",{"$f":"Import!E2123","v":0},{"$f":"Import!E2186","v":0},{"$f":"Import!E2249","v":0},{"$f":"Import!E2312","v":0},{"$f":"Import!E2375","v":0},{"$f":"Import!E2438","v":0},{"$f":"Import!E2501","v":0},{"$f":"Import!E2564","v":0},{"$f":"Import!E2627","v":0},{"$f":"Import!E2690","v":0},{"$f":"Import!E2753","v":0},{"$f":"Import!E2816","v":0},{"$f":"Import!E2879","v":0},{"$f":"Import!E2942","v":0},{"$f":"Import!E3005","v":0},{"$f":"Import!E3068","v":0},{"$f":"Import!E3131","v":0},{"$f":"Import!E3194","v":0},{"$f":"Import!E3257","v":0},{"$f":"Import!E3320","v":0},{"$f":"Import!E3383","v":0},{"$f":"Import!E3446","v":0},{"$f":"Import!E3509","v":0},{"$f":"Import!E3572","v":0},{"$f":"Import!E3635","v":0},null,null,null,null,null,null,null,null,null,null,null,null,null,null,null,null,null,null,null,null,null,null,null,null,null,null,0,null,{"$f":"Import!E3695","v":0},null,0]
[null,"(T) ","Reinsurance Recoverable Balance",{"$f":"Import!E2124","v":0},{"$f":"Import!E2187","v":0},{"$f":"Import!E2250","v":0},{"$f":"Import!E2313","v":0},{"$f":"Import!E2376","v":0},{"$f":"Import!E2439","v":0},{"$f":"Import!E2502","v":0},{"$f":"Import!E2565","v":0},{"$f":"Import!E2628","v":0},{"$f":"Import!E2691","v":0},{"$f":"Import!E2754","v":0},{"$f":"Import!E2817","v":0},{"$f":"Import!E2880","v":0},{"$f":"Import!E2943","v":0},{"$f":"Import!E3006","v":0},{"$f":"Import!E3069","v":0},{"$f":"Import!E3132","v":0},{"$f":"Import!E3195","v":0},{"$f":"Import!E3258","v":0},{"$f":"Import!E3321","v":0},{"$f":"Import!E3384","v":0},{"$f":"Import!E3447","v":0},{"$f":"Import!E3510","v":0},{"$f":"Import!E3573","v":0},{"$f":"Import!E3636","v":0},null,null,null,null,null,null,null,null,null,null,null,null,null,null,null,null,null,null,null,null,null,null,null,null,null,null,0,null,{"$f":"Import!E3696","v":0},null,0]
[null,"(U) ","Cell is in Run-Off",{"$f":"Import!E2125","v":"Select Yes/No"},{"$f":"Import!E2188","v":"Select Yes/No"},{"$f":"Import!E2251","v":"Select Yes/No"},{"$f":"Import!E2314","v":"Select Yes/No"},{"$f":"Import!E2377","v":"Select Yes/No"},{"$f":"Import!E2440","v":"Select Yes/No"},{"$f":"Import!E2503","v":"Select Yes/No"},{"$f":"Import!E2566","v":"Select Yes/No"},{"$f":"Import!E2629","v":"Select Yes/No"},{"$f":"Import!E2692","v":"Select Yes/No"},{"$f":"Import!E2755","v":"Select Yes/No"},{"$f":"Import!E2818","v":"Select Yes/No"},{"$f":"Import!E2881","v":"Select Yes/No"},{"$f":"Import!E2944","v":"Select Yes/No"},{"$f":"Import!E3007","v":"Select Yes/No"},{"$f":"Import!E3070","v":"Select Yes/No"},{"$f":"Import!E3133","v":"Select Yes/No"},{"$f":"Import!E3196","v":"Select Yes/No"},{"$f":"Import!E3259","v":"Select Yes/No"},{"$f":"Import!E3322","v":"Select Yes/No"},{"$f":"Import!E3385","v":"Select Yes/No"},{"$f":"Import!E3448","v":"Select Yes/No"},{"$f":"Import!E3511","v":"Select Yes/No"},{"$f":"Import!E3574","v":"Select Yes/No"},{"$f":"Import!E3637","v":"Select Yes/No"},"Select Yes/No","Select Yes/No","Select Yes/No","Select Yes/No","Select Yes/No","Select Yes/No","Select Yes/No","Select Yes/No","Select Yes/No","Select Yes/No","Select Yes/No","Select Yes/No","Select Yes/No","Select Yes/No","Select Yes/No","Select Yes/No","Select Yes/No","Select Yes/No","Select Yes/No","Select Yes/No","Select Yes/No","Select Yes/No","Select Yes/No","Select Yes/No","Select Yes/No"]
[null,"(V) ","Currency Used",{"$f":"Import!E2126","v":"Select Currency"},{"$f":"Import!E2189","v":"Select Currency"},{"$f":"Import!E2252","v":"Select Currency"},{"$f":"Import!E2315","v":"Select Currency"},{"$f":"Import!E2378","v":"Select Currency"},{"$f":"Import!E2441","v":"Select Currency"},{"$f":"Import!E2504","v":"Select Currency"},{"$f":"Import!E2567","v":"Select Currency"},{"$f":"Import!E2630","v":"Select Currency"},{"$f":"Import!E2693","v":"Select Currency"},{"$f":"Import!E2756","v":"Select Currency"},{"$f":"Import!E2819","v":"Select Currency"},{"$f":"Import!E2882","v":"Select Currency"},{"$f":"Import!E2945","v":"Select Currency"},{"$f":"Import!E3008","v":"Select Currency"},{"$f":"Import!E3071","v":"Select Currency"},{"$f":"Import!E3134","v":"Select Currency"},{"$f":"Import!E3197","v":"Select Currency"},{"$f":"Import!E3260","v":"Select Currency"},{"$f":"Import!E3323","v":"Select Currency"},{"$f":"Import!E3386","v":"Select Currency"},{"$f":"Import!E3449","v":"Select Currency"},{"$f":"Import!E3512","v":"Select Currency"},{"$f":"Import!E3575","v":"Select Currency"},{"$f":"Import!E3638","v":"Select Currency"},"Select Currency","Select Currency","Select Currency","Select Currency","Select Currency","Select Currency","Select Currency","Select Currency","Select Currency","Select Currency","Select Currency","Select Currency","Select Currency","Select Currency","Select Currency","Select Currency","Select Currency","Select Currency","Select Currency","Select Currency","Select Currency","Select Currency","Select Currency","Select Currency","Select Currency"]
[null,"(W) ","Cell to Cell Activity ",{"$f":"Import!E2127","v":"Confirm Activity"},{"$f":"Import!E2190","v":"Confirm Activity"},{"$f":"Import!E2253","v":"Confirm Activity"},{"$f":"Import!E2316","v":"Confirm Activity"},{"$f":"Import!E2379","v":"Confirm Activity"},{"$f":"Import!E2442","v":"Confirm Activity"},{"$f":"Import!E2505","v":"Confirm Activity"},{"$f":"Import!E2568","v":"Confirm Activity"},{"$f":"Import!E2631","v":"Confirm Activity"},{"$f":"Import!E2694","v":"Confirm Activity"},{"$f":"Import!E2757","v":"Confirm Activity"},{"$f":"Import!E2820","v":"Confirm Activity"},{"$f":"Import!E2883","v":"Confirm Activity"},{"$f":"Import!E2946","v":"Confirm Activity"},{"$f":"Import!E3009","v":"Confirm Activity"},{"$f":"Import!E3072","v":"Confirm Activity"},{"$f":"Import!E3135","v":"Confirm Activity"},{"$f":"Import!E3198","v":"Confirm Activity"},{"$f":"Import!E3261","v":"Confirm Activity"},{"$f":"Import!E3324","v":"Confirm Activity"},{"$f":"Import!E3387","v":"Confirm Activity"},{"$f":"Import!E3450","v":"Confirm Activity"},{"$f":"Import!E3513","v":"Confirm Activity"},{"$f":"Import!E3576","v":"Confirm Activity"},{"$f":"Import!E3639","v":"Confirm Activity"},"Confirm Activity","Confirm Activity","Confirm Activity","Confirm Activity","Confirm Activity","Confirm Activity","Confirm Activity","Confirm Activity","Confirm Activity","Confirm Activity","Confirm Activity","Confirm Activity","Confirm Activity","Confirm Activity","Confirm Activity","Confirm Activity","Confirm Activity","Confirm Activity","Confirm Activity","Confirm Activity","Confirm Activity","Confirm Activity","Confirm Activity","Confirm Activity","Confirm Activity"]
[null,"(W.1) ","Cell to Cell Activity Details",{"$f":"Import!E2128","v":0},{"$f":"Import!E2191","v":0},{"$f":"Import!E2254","v":0},{"$f":"Import!E2317","v":0},{"$f":"Import!E2380","v":0},{"$f":"Import!E2443","v":0},{"$f":"Import!E2506","v":0},{"$f":"Import!E2569","v":0},{"$f":"Import!E2632","v":0},{"$f":"Import!E2695","v":0},{"$f":"Import!E2758","v":0},{"$f":"Import!E2821","v":0},{"$f":"Import!E2884","v":0},{"$f":"Import!E2947","v":0},{"$f":"Import!E3010","v":0},{"$f":"Import!E3073","v":0},{"$f":"Import!E3136","v":0},{"$f":"Import!E3199","v":0},{"$f":"Import!E3262","v":0},{"$f":"Import!E3325","v":0},{"$f":"Import!E3388","v":0},{"$f":"Import!E3451","v":0},{"$f":"Import!E3514","v":0},{"$f":"Import!E3577","v":0},{"$f":"Import!E3640","v":0}]
[null,"(X) ","General Cell to Cell Activity",{"$f":"Import!E2129","v":"Confirm Activity"},{"$f":"Import!E2192","v":"Confirm Activity"},{"$f":"Import!E2255","v":"Confirm Activity"},{"$f":"Import!E2318","v":"Confirm Activity"},{"$f":"Import!E2381","v":"Confirm Activity"},{"$f":"Import!E2444","v":"Confirm Activity"},{"$f":"Import!E2507","v":"Confirm Activity"},{"$f":"Import!E2570","v":"Confirm Activity"},{"$f":"Import!E2633","v":"Confirm Activity"},{"$f":"Import!E2696","v":"Confirm Activity"},{"$f":"Import!E2759","v":"Confirm Activity"},{"$f":"Import!E2822","v":"Confirm Activity"},{"$f":"Import!E2885","v":"Confirm Activity"},{"$f":"Import!E2948","v":"Confirm Activity"},{"$f":"Import!E3011","v":"Confirm Activity"},{"$f":"Import!E3074","v":"Confirm Activity"},{"$f":"Import!E3137","v":"Confirm Activity"},{"$f":"Import!E3200","v":"Confirm Activity"},{"$f":"Import!E3263","v":"Confirm Activity"},{"$f":"Import!E3326","v":"Confirm Activity"},{"$f":"Import!E3389","v":"Confirm Activity"},{"$f":"Import!E3452","v":"Confirm Activity"},{"$f":"Import!E3515","v":"Confirm Activity"},{"$f":"Import!E3578","v":"Confirm Activity"},{"$f":"Import!E3641","v":"Confirm Activity"},"Confirm Activity","Confirm Activity","Confirm Activity","Confirm Activity","Confirm Activity","Confirm Activity","Confirm Activity","Confirm Activity","Confirm Activity","Confirm Activity","Confirm Activity","Confirm Activity","Confirm Activity","Confirm Activity","Confirm Activity","Confirm Activity","Confirm Activity","Confirm Activity","Confirm Activity","Confirm Activity","Confirm Activity","Confirm Activity","Confirm Activity","Confirm Activity","Confirm Activity"]
[null,"(X.1) ","General Cell to Cell Activity Details",{"$f":"Import!E2130","v":0},{"$f":"Import!E2193","v":0},{"$f":"Import!E2256","v":0},{"$f":"Import!E2319","v":0},{"$f":"Import!E2382","v":0},{"$f":"Import!E2445","v":0},{"$f":"Import!E2508","v":0},{"$f":"Import!E2571","v":0},{"$f":"Import!E2634","v":0},{"$f":"Import!E2697","v":0},{"$f":"Import!E2760","v":0},{"$f":"Import!E2823","v":0},{"$f":"Import!E2886","v":0},{"$f":"Import!E2949","v":0},{"$f":"Import!E3012","v":0},{"$f":"Import!E3075","v":0},{"$f":"Import!E3138","v":0},{"$f":"Import!E3201","v":0},{"$f":"Import!E3264","v":0},{"$f":"Import!E3327","v":0},{"$f":"Import!E3390","v":0},{"$f":"Import!E3453","v":0},{"$f":"Import!E3516","v":0},{"$f":"Import!E3579","v":0},{"$f":"Import!E3642","v":0}]
[null,"(Y) ","Where a cell is in deficit, insolvent or subject to litigation, provide or attach details of remediation actions or update on proceedings",{"$f":"Import!E2131","v":0},{"$f":"Import!E2194","v":0},{"$f":"Import!E2257","v":0},{"$f":"Import!E2320","v":0},{"$f":"Import!E2383","v":0},{"$f":"Import!E2446","v":0},{"$f":"Import!E2509","v":0},{"$f":"Import!E2572","v":0},{"$f":"Import!E2635","v":0},{"$f":"Import!E2698","v":0},{"$f":"Import!E2761","v":0},{"$f":"Import!E2824","v":0},{"$f":"Import!E2887","v":0},{"$f":"Import!E2950","v":0},{"$f":"Import!E3013","v":0},{"$f":"Import!E3076","v":0},{"$f":"Import!E3139","v":0},{"$f":"Import!E3202","v":0},{"$f":"Import!E3265","v":0},{"$f":"Import!E3328","v":0},{"$f":"Import!E3391","v":0},{"$f":"Import!E3454","v":0},{"$f":"Import!E3517","v":0},{"$f":"Import!E3580","v":0},{"$f":"Import!E3643","v":0}]
[null,"(Z) ","Additional Capital Support",{"$f":"Import!E2132","v":"Confirm"},{"$f":"Import!E2195","v":"Confirm"},{"$f":"Import!E2258","v":"Confirm"},{"$f":"Import!E2321","v":"Confirm"},{"$f":"Import!E2384","v":"Confirm"},{"$f":"Import!E2447","v":"Confirm"},{"$f":"Import!E2510","v":"Confirm"},{"$f":"Import!E2573","v":"Confirm"},{"$f":"Import!E2636","v":"Confirm"},{"$f":"Import!E2699","v":"Confirm"},{"$f":"Import!E2762","v":"Confirm"},{"$f":"Import!E2825","v":"Confirm"},{"$f":"Import!E2888","v":"Confirm"},{"$f":"Import!E2951","v":"Confirm"},{"$f":"Import!E3014","v":"Confirm"},{"$f":"Import!E3077","v":"Confirm"},{"$f":"Import!E3140","v":"Confirm"},{"$f":"Import!E3203","v":"Confirm"},{"$f":"Import!E3266","v":"Confirm"},{"$f":"Import!E3329","v":"Confirm"},{"$f":"Import!E3392","v":"Confirm"},{"$f":"Import!E3455","v":"Confirm"},{"$f":"Import!E3518","v":"Confirm"},{"$f":"Import!E3581","v":"Confirm"},{"$f":"Import!E3644","v":"Confirm"},"Confirm","Confirm","Confirm","Confirm","Confirm","Confirm","Confirm","Confirm","Confirm","Confirm","Confirm","Confirm","Confirm","Confirm","Confirm","Confirm","Confirm","Confirm","Confirm","Confirm","Confirm","Confirm","Confirm","Confirm","Confirm"]
[null,"(Z.1) ","Additional Capital Support Details",{"$f":"Import!E2133","v":0},{"$f":"Import!E2196","v":0},{"$f":"Import!E2259","v":0},{"$f":"Import!E2322","v":0},{"$f":"Import!E2385","v":0},{"$f":"Import!E2448","v":0},{"$f":"Import!E2511","v":0},{"$f":"Import!E2574","v":0},{"$f":"Import!E2637","v":0},{"$f":"Import!E2700","v":0},{"$f":"Import!E2763","v":0},{"$f":"Import!E2826","v":0},{"$f":"Import!E2889","v":0},{"$f":"Import!E2952","v":0},{"$f":"Import!E3015","v":0},{"$f":"Import!E3078","v":0},{"$f":"Import!E3141","v":0},{"$f":"Import!E3204","v":0},{"$f":"Import!E3267","v":0},{"$f":"Import!E3330","v":0},{"$f":"Import!E3393","v":0},{"$f":"Import!E3456","v":0},{"$f":"Import!E3519","v":0},{"$f":"Import!E3582","v":0},{"$f":"Import!E3645","v":0}]
[null,"(AA) ","Details of Beneficial Owners and their relationship to the underlying risk",{"$f":"Import!E2134","v":"Confirm"},{"$f":"Import!E2197","v":"Confirm"},{"$f":"Import!E2260","v":"Confirm"},{"$f":"Import!E2323","v":"Confirm"},{"$f":"Import!E2386","v":"Confirm"},{"$f":"Import!E2449","v":"Confirm"},{"$f":"Import!E2512","v":"Confirm"},{"$f":"Import!E2575","v":"Confirm"},{"$f":"Import!E2638","v":"Confirm"},{"$f":"Import!E2701","v":"Confirm"},{"$f":"Import!E2764","v":"Confirm"},{"$f":"Import!E2827","v":"Confirm"},{"$f":"Import!E2890","v":"Confirm"},{"$f":"Import!E2953","v":"Confirm"},{"$f":"Import!E3016","v":"Confirm"},{"$f":"Import!E3079","v":"Confirm"},{"$f":"Import!E3142","v":"Confirm"},{"$f":"Import!E3205","v":"Confirm"},{"$f":"Import!E3268","v":"Confirm"},{"$f":"Import!E3331","v":"Confirm"},{"$f":"Import!E3394","v":"Confirm"},{"$f":"Import!E3457","v":"Confirm"},{"$f":"Import!E3520","v":"Confirm"},{"$f":"Import!E3583","v":"Confirm"},{"$f":"Import!E3646","v":"Confirm"},"Confirm","Confirm","Confirm","Confirm","Confirm","Confirm","Confirm","Confirm","Confirm","Confirm","Confirm","Confirm","Confirm","Confirm","Confirm","Confirm","Confirm","Confirm","Confirm","Confirm","Confirm","Confirm","Confirm","Confirm","Confirm"]
[null,"(AB) ","Beneficial Owner(s) Relationship to the Segregated Account Company Ownership",{"$f":"Import!E2135","v":"Confirm"},{"$f":"Import!E2198","v":"Confirm"},{"$f":"Import!E2261","v":"Confirm"},{"$f":"Import!E2324","v":"Confirm"},{"$f":"Import!E2387","v":"Confirm"},{"$f":"Import!E2450","v":"Confirm"},{"$f":"Import!E2513","v":"Confirm"},{"$f":"Import!E2576","v":"Confirm"},{"$f":"Import!E2639","v":"Confirm"},{"$f":"Import!E2702","v":"Confirm"},{"$f":"Import!E2765","v":"Confirm"},{"$f":"Import!E2828","v":"Confirm"},{"$f":"Import!E2891","v":"Confirm"},{"$f":"Import!E2954","v":"Confirm"},{"$f":"Import!E3017","v":"Confirm"},{"$f":"Import!E3080","v":"Confirm"},{"$f":"Import!E3143","v":"Confirm"},{"$f":"Import!E3206","v":"Confirm"},{"$f":"Import!E3269","v":"Confirm"},{"$f":"Import!E3332","v":"Confirm"},{"$f":"Import!E3395","v":"Confirm"},{"$f":"Import!E3458","v":"Confirm"},{"$f":"Import!E3521","v":"Confirm"},{"$f":"Import!E3584","v":"Confirm"},{"$f":"Import!E3647","v":"Confirm"},"Confirm","Confirm","Confirm","Confirm","Confirm","Confirm","Confirm","Confirm","Confirm","Confirm","Confirm","Confirm","Confirm","Confirm","Confirm","Confirm","Confirm","Confirm","Confirm","Confirm","Confirm","Confirm","Confirm","Confirm","Confirm"]
[null,"(AC) ","Beneficial Owner(s)",{"$f":"Import!E2136","v":"Confirm"},{"$f":"Import!E2199","v":"Confirm"},{"$f":"Import!E2262","v":"Confirm"},{"$f":"Import!E2325","v":"Confirm"},{"$f":"Import!E2388","v":"Confirm"},{"$f":"Import!E2451","v":"Confirm"},{"$f":"Import!E2514","v":"Confirm"},{"$f":"Import!E2577","v":"Confirm"},{"$f":"Import!E2640","v":"Confirm"},{"$f":"Import!E2703","v":"Confirm"},{"$f":"Import!E2766","v":"Confirm"},{"$f":"Import!E2829","v":"Confirm"},{"$f":"Import!E2892","v":"Confirm"},{"$f":"Import!E2955","v":"Confirm"},{"$f":"Import!E3018","v":"Confirm"},{"$f":"Import!E3081","v":"Confirm"},{"$f":"Import!E3144","v":"Confirm"},{"$f":"Import!E3207","v":"Confirm"},{"$f":"Import!E3270","v":"Confirm"},{"$f":"Import!E3333","v":"Confirm"},{"$f":"Import!E3396","v":"Confirm"},{"$f":"Import!E3459","v":"Confirm"},{"$f":"Import!E3522","v":"Confirm"},{"$f":"Import!E3585","v":"Confirm"},{"$f":"Import!E3648","v":"Confirm"},"Confirm Beneficial Owner","Confirm Beneficial Owner","Confirm Beneficial Owner","Confirm Beneficial Owner","Confirm Beneficial Owner","Confirm Beneficial Owner","Confirm Beneficial Owner","Confirm Beneficial Owner","Confirm Beneficial Owner","Confirm Beneficial Owner","Confirm Beneficial Owner","Confirm Beneficial Owner","Confirm Beneficial Owner","Confirm Beneficial Owner","Confirm Beneficial Owner","Confirm Beneficial Owner","Confirm Beneficial Owner","Confirm Beneficial Owner","Confirm Beneficial Owner","Confirm Beneficial Owner","Confirm Beneficial Owner","Confirm Beneficial Owner","Confirm Beneficial Owner","Confirm Beneficial Owner","Confirm Beneficial Owner"]
[null,"(AD) ","Beneficial Ownership",{"$f":"Import!E2137","v":"Confirm Ownership"},{"$f":"Import!E2200","v":"Confirm Ownership"},{"$f":"Import!E2263","v":"Confirm Ownership"},{"$f":"Import!E2326","v":"Confirm Ownership"},{"$f":"Import!E2389","v":"Confirm Ownership"},{"$f":"Import!E2452","v":"Confirm Ownership"},{"$f":"Import!E2515","v":"Confirm Ownership"},{"$f":"Import!E2578","v":"Confirm Ownership"},{"$f":"Import!E2641","v":"Confirm Ownership"},{"$f":"Import!E2704","v":"Confirm Ownership"},{"$f":"Import!E2767","v":"Confirm Ownership"},{"$f":"Import!E2830","v":"Confirm Ownership"},{"$f":"Import!E2893","v":"Confirm Ownership"},{"$f":"Import!E2956","v":"Confirm Ownership"},{"$f":"Import!E3019","v":"Confirm Ownership"},{"$f":"Import!E3082","v":"Confirm Ownership"},{"$f":"Import!E3145","v":"Confirm Ownership"},{"$f":"Import!E3208","v":"Confirm Ownership"},{"$f":"Import!E3271","v":"Confirm Ownership"},{"$f":"Import!E3334","v":"Confirm Ownership"},{"$f":"Import!E3397","v":"Confirm Ownership"},{"$f":"Import!E3460","v":"Confirm Ownership"},{"$f":"Import!E3523","v":"Confirm Ownership"},{"$f":"Import!E3586","v":"Confirm Ownership"},{"$f":"Import!E3649","v":"Confirm Ownership"},"Confirm Ownership","Confirm Ownership","Confirm Ownership","Confirm Ownership","Confirm Ownership","Confirm Ownership","Confirm Ownership","Confirm Ownership","Confirm Ownership","Confirm Ownership","Confirm Ownership","Confirm Ownership","Confirm Ownership","Confirm Ownership","Confirm Ownership","Confirm Ownership","Confirm Ownership","Confirm Ownership","Confirm Ownership","Confirm Ownership","Confirm Ownership","Confirm Ownership","Confirm Ownership","Confirm Ownership","Confirm Ownership"]
[null,"(AD.1) ","Beneficial Ownership Details (if other is chosen)",{"$f":"Import!E2138","v":0},{"$f":"Import!E2201","v":0},{"$f":"Import!E2264","v":0},{"$f":"Import!E2327","v":0},{"$f":"Import!E2390","v":0},{"$f":"Import!E2453","v":0},{"$f":"Import!E2516","v":0},{"$f":"Import!E2579","v":0},{"$f":"Import!E2642","v":0},{"$f":"Import!E2705","v":0},{"$f":"Import!E2768","v":0},{"$f":"Import!E2831","v":0},{"$f":"Import!E2894","v":0},{"$f":"Import!E2957","v":0},{"$f":"Import!E3020","v":0},{"$f":"Import!E3083","v":0},{"$f":"Import!E3146","v":0},{"$f":"Import!E3209","v":0},{"$f":"Import!E3272","v":0},{"$f":"Import!E3335","v":0},{"$f":"Import!E3398","v":0},{"$f":"Import!E3461","v":0},{"$f":"Import!E3524","v":0},{"$f":"Import!E3587","v":0},{"$f":"Import!E3650","v":0}]
[null,"(AE) ","Details of the principal jurisdiction of the underlying risk",{"$f":"Import!E2139","v":"Confirm Jurisdiction"},{"$f":"Import!E2202","v":"Confirm Jurisdiction"},{"$f":"Import!E2265","v":"Confirm Jurisdiction"},{"$f":"Import!E2328","v":"Confirm Jurisdiction"},{"$f":"Import!E2391","v":"Confirm Jurisdiction"},{"$f":"Import!E2454","v":"Confirm Jurisdiction"},{"$f":"Import!E2517","v":"Confirm Jurisdiction"},{"$f":"Import!E2580","v":"Confirm Jurisdiction"},{"$f":"Import!E2643","v":"Confirm Jurisdiction"},{"$f":"Import!E2706","v":"Confirm Jurisdiction"},{"$f":"Import!E2769","v":"Confirm Jurisdiction"},{"$f":"Import!E2832","v":"Confirm Jurisdiction"},{"$f":"Import!E2895","v":"Confirm Jurisdiction"},{"$f":"Import!E2958","v":"Confirm Jurisdiction"},{"$f":"Import!E3021","v":"Confirm Jurisdiction"},{"$f":"Import!E3084","v":"Confirm Jurisdiction"},{"$f":"Import!E3147","v":"Confirm Jurisdiction"},{"$f":"Import!E3210","v":"Confirm Jurisdiction"},{"$f":"Import!E3273","v":"Confirm Jurisdiction"},{"$f":"Import!E3336","v":"Confirm Jurisdiction"},{"$f":"Import!E3399","v":"Confirm Jurisdiction"},{"$f":"Import!E3462","v":"Confirm Jurisdiction"},{"$f":"Import!E3525","v":"Confirm Jurisdiction"},{"$f":"Import!E3588","v":"Confirm Jurisdiction"},{"$f":"Import!E3651","v":"Confirm Jurisdiction"},"Confirm Jurisdiction","Confirm Jurisdiction","Confirm Jurisdiction","Confirm Jurisdiction","Confirm Jurisdiction","Confirm Jurisdiction","Confirm Jurisdiction","Confirm Jurisdiction","Confirm Jurisdiction","Confirm Jurisdiction","Confirm Jurisdiction","Confirm Jurisdiction","Confirm Jurisdiction","Confirm Jurisdiction","Confirm Jurisdiction","Confirm Jurisdiction","Confirm Jurisdiction","Confirm Jurisdiction","Confirm Jurisdiction","Confirm Jurisdiction","Confirm Jurisdiction","Confirm Jurisdiction","Confirm Jurisdiction","Confirm Jurisdiction","Confirm Jurisdiction"]
[null,"(AF) ","Beneficial Owner Governing Instrument",{"$f":"Import!E2140","v":"Confirm Instrument"},{"$f":"Import!E2203","v":"Confirm Instrument"},{"$f":"Import!E2266","v":"Confirm Instrument"},{"$f":"Import!E2329","v":"Confirm Instrument"},{"$f":"Import!E2392","v":"Confirm Instrument"},{"$f":"Import!E2455","v":"Confirm Instrument"},{"$f":"Import!E2518","v":"Confirm Instrument"},{"$f":"Import!E2581","v":"Confirm Instrument"},{"$f":"Import!E2644","v":"Confirm Instrument"},{"$f":"Import!E2707","v":"Confirm Instrument"},{"$f":"Import!E2770","v":"Confirm Instrument"},{"$f":"Import!E2833","v":"Confirm Instrument"},{"$f":"Import!E2896","v":"Confirm Instrument"},{"$f":"Import!E2959","v":"Confirm Instrument"},{"$f":"Import!E3022","v":"Confirm Instrument"},{"$f":"Import!E3085","v":"Confirm Instrument"},{"$f":"Import!E3148","v":"Confirm Instrument"},{"$f":"Import!E3211","v":"Confirm Instrument"},{"$f":"Import!E3274","v":"Confirm Instrument"},{"$f":"Import!E3337","v":"Confirm Instrument"},{"$f":"Import!E3400","v":"Confirm Instrument"},{"$f":"Import!E3463","v":"Confirm Instrument"},{"$f":"Import!E3526","v":"Confirm Instrument"},{"$f":"Import!E3589","v":"Confirm Instrument"},{"$f":"Import!E3652","v":"Confirm Instrument"},"Confirm Instrument","Confirm Instrument","Confirm Instrument","Confirm Instrument","Confirm Instrument","Confirm Instrument","Confirm Instrument","Confirm Instrument","Confirm Instrument","Confirm Instrument","Confirm Instrument","Confirm Instrument","Confirm Instrument","Confirm Instrument","Confirm Instrument","Confirm Instrument","Confirm Instrument","Confirm Instrument","Confirm Instrument","Confirm Instrument","Confirm Instrument","Confirm Instrument","Confirm Instrument","Confirm Instrument","Confirm Instrument"]
[null,"(AF.1) ","Beneficial Owner Governing Instrument (if other is chosen)",{"$f":"Import!E2141","v":0},{"$f":"Import!E2204","v":0},{"$f":"Import!E2267","v":0},{"$f":"Import!E2330","v":0},{"$f":"Import!E2393","v":0},{"$f":"Import!E2456","v":0},{"$f":"Import!E2519","v":0},{"$f":"Import!E2582","v":0},{"$f":"Import!E2645","v":0},{"$f":"Import!E2708","v":0},{"$f":"Import!E2771","v":0},{"$f":"Import!E2834","v":0},{"$f":"Import!E2897","v":0},{"$f":"Import!E2960","v":0},{"$f":"Import!E3023","v":0},{"$f":"Import!E3086","v":0},{"$f":"Import!E3149","v":0},{"$f":"Import!E3212","v":0},{"$f":"Import!E3275","v":0},{"$f":"Import!E3338","v":0},{"$f":"Import!E3401","v":0},{"$f":"Import!E3464","v":0},{"$f":"Import!E3527","v":0},{"$f":"Import!E3590","v":0},{"$f":"Import!E3653","v":0}]
[null,"(AG) ","Does Beneficial Owner Governing Instrument Contain Indemnity Provisions",{"$f":"Import!E2142","v":"Select Yes/No"},{"$f":"Import!E2205","v":"Select Yes/No"},{"$f":"Import!E2268","v":"Select Yes/No"},{"$f":"Import!E2331","v":"Select Yes/No"},{"$f":"Import!E2394","v":"Select Yes/No"},{"$f":"Import!E2457","v":"Select Yes/No"},{"$f":"Import!E2520","v":"Select Yes/No"},{"$f":"Import!E2583","v":"Select Yes/No"},{"$f":"Import!E2646","v":"Select Yes/No"},{"$f":"Import!E2709","v":"Select Yes/No"},{"$f":"Import!E2772","v":"Select Yes/No"},{"$f":"Import!E2835","v":"Select Yes/No"},{"$f":"Import!E2898","v":"Select Yes/No"},{"$f":"Import!E2961","v":"Select Yes/No"},{"$f":"Import!E3024","v":"Select Yes/No"},{"$f":"Import!E3087","v":"Select Yes/No"},{"$f":"Import!E3150","v":"Select Yes/No"},{"$f":"Import!E3213","v":"Select Yes/No"},{"$f":"Import!E3276","v":"Select Yes/No"},{"$f":"Import!E3339","v":"Select Yes/No"},{"$f":"Import!E3402","v":"Select Yes/No"},{"$f":"Import!E3465","v":"Select Yes/No"},{"$f":"Import!E3528","v":"Select Yes/No"},{"$f":"Import!E3591","v":"Select Yes/No"},{"$f":"Import!E3654","v":"Select Yes/No"},"Select Yes/No","Select Yes/No","Select Yes/No","Select Yes/No","Select Yes/No","Select Yes/No","Select Yes/No","Select Yes/No","Select Yes/No","Select Yes/No","Select Yes/No","Select Yes/No","Select Yes/No","Select Yes/No","Select Yes/No","Select Yes/No","Select Yes/No","Select Yes/No","Select Yes/No","Select Yes/No","Select Yes/No","Select Yes/No","Select Yes/No","Select Yes/No","Select Yes/No"]
[null,"(AH) ","Does Insurance/Reinsurance Agreement Contain Limited Recourse Language",{"$f":"Import!E2143","v":"Select Yes/No"},{"$f":"Import!E2206","v":"Select Yes/No"},{"$f":"Import!E2269","v":"Select Yes/No"},{"$f":"Import!E2332","v":"Select Yes/No"},{"$f":"Import!E2395","v":"Select Yes/No"},{"$f":"Import!E2458","v":"Select Yes/No"},{"$f":"Import!E2521","v":"Select Yes/No"},{"$f":"Import!E2584","v":"Select Yes/No"},{"$f":"Import!E2647","v":"Select Yes/No"},{"$f":"Import!E2710","v":"Select Yes/No"},{"$f":"Import!E2773","v":"Select Yes/No"},{"$f":"Import!E2836","v":"Select Yes/No"},{"$f":"Import!E2899","v":"Select Yes/No"},{"$f":"Import!E2962","v":"Select Yes/No"},{"$f":"Import!E3025","v":"Select Yes/No"},{"$f":"Import!E3088","v":"Select Yes/No"},{"$f":"Import!E3151","v":"Select Yes/No"},{"$f":"Import!E3214","v":"Select Yes/No"},{"$f":"Import!E3277","v":"Select Yes/No"},{"$f":"Import!E3340","v":"Select Yes/No"},{"$f":"Import!E3403","v":"Select Yes/No"},{"$f":"Import!E3466","v":"Select Yes/No"},{"$f":"Import!E3529","v":"Select Yes/No"},{"$f":"Import!E3592","v":"Select Yes/No"},{"$f":"Import!E3655","v":"Select Yes/No"},"Select Yes/No","Select Yes/No","Select Yes/No","Select Yes/No","Select Yes/No","Select Yes/No","Select Yes/No","Select Yes/No","Select Yes/No","Select Yes/No","Select Yes/No","Select Yes/No","Select Yes/No","Select Yes/No","Select Yes/No","Select Yes/No","Select Yes/No","Select Yes/No","Select Yes/No","Select Yes/No","Select Yes/No","Select Yes/No","Select Yes/No","Select Yes/No","Select Yes/No"]
[null,"(AI) ","Primary Cell Funding",{"$f":"Import!E2144","v":"Select Funding"},{"$f":"Import!E2207","v":"Select Funding"},{"$f":"Import!E2270","v":"Select Funding"},{"$f":"Import!E2333","v":"Select Funding"},{"$f":"Import!E2396","v":"Select Funding"},{"$f":"Import!E2459","v":"Select Funding"},{"$f":"Import!E2522","v":"Select Funding"},{"$f":"Import!E2585","v":"Select Funding"},{"$f":"Import!E2648","v":"Select Funding"},{"$f":"Import!E2711","v":"Select Funding"},{"$f":"Import!E2774","v":"Select Funding"},{"$f":"Import!E2837","v":"Select Funding"},{"$f":"Import!E2900","v":"Select Funding"},{"$f":"Import!E2963","v":"Select Funding"},{"$f":"Import!E3026","v":"Select Funding"},{"$f":"Import!E3089","v":"Select Funding"},{"$f":"Import!E3152","v":"Select Funding"},{"$f":"Import!E3215","v":"Select Funding"},{"$f":"Import!E3278","v":"Select Funding"},{"$f":"Import!E3341","v":"Select Funding"},{"$f":"Import!E3404","v":"Select Funding"},{"$f":"Import!E3467","v":"Select Funding"},{"$f":"Import!E3530","v":"Select Funding"},{"$f":"Import!E3593","v":"Select Funding"},{"$f":"Import!E3656","v":"Select Funding"},"Select Funding","Select Funding","Select Funding","Select Funding","Select Funding","Select Funding","Select Funding","Select Funding","Select Funding","Select Funding","Select Funding","Select Funding","Select Funding","Select Funding","Select Funding","Select Funding","Select Funding","Select Funding","Select Funding","Select Funding","Select Funding","Select Funding","Select Funding","Select Funding","Select Funding"]
[null,"(AJ) ","Limit of Cell  Funding/ Collateral",{"$f":"Import!E2145","v":"Confirm Funding / Collateral"},{"$f":"Import!E2208","v":"Confirm Funding / Collateral"},{"$f":"Import!E2271","v":"Confirm Funding / Collateral"},{"$f":"Import!E2334","v":"Confirm Funding / Collateral"},{"$f":"Import!E2397","v":"Confirm Funding / Collateral"},{"$f":"Import!E2460","v":"Confirm Funding / Collateral"},{"$f":"Import!E2523","v":"Confirm Funding / Collateral"},{"$f":"Import!E2586","v":"Confirm Funding / Collateral"},{"$f":"Import!E2649","v":"Confirm Funding / Collateral"},{"$f":"Import!E2712","v":"Confirm Funding / Collateral"},{"$f":"Import!E2775","v":"Confirm Funding / Collateral"},{"$f":"Import!E2838","v":"Confirm Funding / Collateral"},{"$f":"Import!E2901","v":"Confirm Funding / Collateral"},{"$f":"Import!E2964","v":"Confirm Funding / Collateral"},{"$f":"Import!E3027","v":"Confirm Funding / Collateral"},{"$f":"Import!E3090","v":"Confirm Funding / Collateral"},{"$f":"Import!E3153","v":"Confirm Funding / Collateral"},{"$f":"Import!E3216","v":"Confirm Funding / Collateral"},{"$f":"Import!E3279","v":"Confirm Funding / Collateral"},{"$f":"Import!E3342","v":"Confirm Funding / Collateral"},{"$f":"Import!E3405","v":"Confirm Funding / Collateral"},{"$f":"Import!E3468","v":"Confirm Funding / Collateral"},{"$f":"Import!E3531","v":"Confirm Funding / Collateral"},{"$f":"Import!E3594","v":"Confirm Funding / Collateral"},{"$f":"Import!E3657","v":"Confirm Funding / Collateral"},"Confirm Funding / Collateral","Confirm Funding / Collateral","Confirm Funding / Collateral","Confirm Funding / Collateral","Confirm Funding / Collateral","Confirm Funding / Collateral","Confirm Funding / Collateral","Confirm Funding / Collateral","Confirm Funding / Collateral","Confirm Funding / Collateral","Confirm Funding / Collateral","Confirm Funding / Collateral","Confirm Funding / Collateral","Confirm Funding / Collateral","Confirm Funding / Collateral","Confirm Funding / Collateral","Confirm Funding / Collateral","Confirm Funding / Collateral","Confirm Funding / Collateral","Confirm Funding / Collateral","Confirm Funding / Collateral","Confirm Funding / Collateral","Confirm Funding / Collateral","Confirm Funding / Collateral","Confirm Funding / Collateral"]
[null,"(AJ.1) ","Limit of Cell  Funding/ Collateral Details",{"$f":"Import!E2146","v":0},{"$f":"Import!E2209","v":0},{"$f":"Import!E2272","v":0},{"$f":"Import!E2335","v":0},{"$f":"Import!E2398","v":0},{"$f":"Import!E2461","v":0},{"$f":"Import!E2524","v":0},{"$f":"Import!E2587","v":0},{"$f":"Import!E2650","v":0},{"$f":"Import!E2713","v":0},{"$f":"Import!E2776","v":0},{"$f":"Import!E2839","v":0},{"$f":"Import!E2902","v":0},{"$f":"Import!E2965","v":0},{"$f":"Import!E3028","v":0},{"$f":"Import!E3091","v":0},{"$f":"Import!E3154","v":0},{"$f":"Import!E3217","v":0},{"$f":"Import!E3280","v":0},{"$f":"Import!E3343","v":0},{"$f":"Import!E3406","v":0},{"$f":"Import!E3469","v":0},{"$f":"Import!E3532","v":0},{"$f":"Import!E3595","v":0},{"$f":"Import!E3658","v":0}]
[null,"(AK) ","What mitigants are in place with respect to Operational Risk",{"$f":"Import!E2147","v":"Confirm Mitigants & Attach Support"},{"$f":"Import!E2210","v":"Confirm Mitigants & Attach Support"},{"$f":"Import!E2273","v":"Confirm Mitigants & Attach Support"},{"$f":"Import!E2336","v":"Confirm Mitigants & Attach Support"},{"$f":"Import!E2399","v":"Confirm Mitigants & Attach Support"},{"$f":"Import!E2462","v":"Confirm Mitigants & Attach Support"},{"$f":"Import!E2525","v":"Confirm Mitigants & Attach Support"},{"$f":"Import!E2588","v":"Confirm Mitigants & Attach Support"},{"$f":"Import!E2651","v":"Confirm Mitigants & Attach Support"},{"$f":"Import!E2714","v":"Confirm Mitigants & Attach Support"},{"$f":"Import!E2777","v":"Confirm Mitigants & Attach Support"},{"$f":"Import!E2840","v":"Confirm Mitigants & Attach Support"},{"$f":"Import!E2903","v":"Confirm Mitigants & Attach Support"},{"$f":"Import!E2966","v":"Confirm Mitigants & Attach Support"},{"$f":"Import!E3029","v":"Confirm Mitigants & Attach Support"},{"$f":"Import!E3092","v":"Confirm Mitigants & Attach Support"},{"$f":"Import!E3155","v":"Confirm Mitigants & Attach Support"},{"$f":"Import!E3218","v":"Confirm Mitigants & Attach Support"},{"$f":"Import!E3281","v":"Confirm Mitigants & Attach Support"},{"$f":"Import!E3344","v":"Confirm Mitigants & Attach Support"},{"$f":"Import!E3407","v":"Confirm Mitigants & Attach Support"},{"$f":"Import!E3470","v":"Confirm Mitigants & Attach Support"},{"$f":"Import!E3533","v":"Confirm Mitigants & Attach Support"},{"$f":"Import!E3596","v":"Confirm Mitigants & Attach Support"},{"$f":"Import!E3659","v":"Confirm Mitigants & Attach Support"},"Confirm Mitigants & Attach Support","Confirm Mitigants & Attach Support","Confirm Mitigants & Attach Support","Confirm Mitigants & Attach Support","Confirm Mitigants & Attach Support","Confirm Mitigants & Attach Support","Confirm Mitigants & Attach Support","Confirm Mitigants & Attach Support","Confirm Mitigants & Attach Support","Confirm Mitigants & Attach Support","Confirm Mitigants & Attach Support","Confirm Mitigants & Attach Support","Confirm Mitigants & Attach Support","Confirm Mitigants & Attach Support","Confirm Mitigants & Attach Support","Confirm Mitigants & Attach Support","Confirm Mitigants & Attach Support","Confirm Mitigants & Attach Support","Confirm Mitigants & Attach Support","Confirm Mitigants & Attach Support","Confirm Mitigants & Attach Support","Confirm Mitigants & Attach Support","Confirm Mitigants & Attach Support","Confirm Mitigants & Attach Support","Confirm Mitigants & Attach Support"]
[]
[null,null,"Balance Sheet Check",{"$f":"IF((ROUND(D9-D10-D11-D12,2))=0,\"Yes\",\"No\")","v":"Yes"},{"$f":"IF((ROUND(E9-E10-E11-E12,2))=0,\"Yes\",\"No\")","v":"Yes"},"Yes","Yes","Yes","Yes","Yes","Yes","Yes","Yes","Yes","Yes","Yes","Yes","Yes","Yes","Yes","Yes","Yes","Yes","Yes","Yes","Yes","Yes","Yes","Yes","Yes","Yes","Yes","Yes","Yes","Yes","Yes","Yes","Yes","Yes","Yes","Yes","Yes","Yes","Yes","Yes","Yes","Yes","Yes","Yes","Yes","Yes","Yes","Yes"]
[null,null,"Difference",{"$f":"ROUND(D9-D10-D11-D12,2)","v":0},{"$f":"ROUND(E9-E10-E11-E12,2)","v":0},0,0,0,0,0,0,0,0,0,0,0,0,0,0,0,0,0,0,0,0,0,0,0,0,0,0,0,0,0,0,0,0,0,0,0,0,0,0,0,0,0,0,0,0,0,0,0,0]
[]
[null,"(AL) ","Lines of Business Written by Premium Written"]
[null,"(i)","Statutory Lines of Business Written ",{"$f":"Import!E2148","v":"Select Line of Business"},{"$f":"Import!E2211","v":"Select Line of Business"},{"$f":"Import!E2274","v":"Select Line of Business"},{"$f":"Import!E2337","v":"Select Line of Business"},{"$f":"Import!E2400","v":"Select Line of Business"},{"$f":"Import!E2463","v":"Select Line of Business"},{"$f":"Import!E2526","v":"Select Line of Business"},{"$f":"Import!E2589","v":"Select Line of Business"},{"$f":"Import!E2652","v":"Select Line of Business"},{"$f":"Import!E2715","v":"Select Line of Business"},{"$f":"Import!E2778","v":"Select Line of Business"},{"$f":"Import!E2841","v":"Select Line of Business"},{"$f":"Import!E2904","v":"Select Line of Business"},{"$f":"Import!E2967","v":"Select Line of Business"},{"$f":"Import!E3030","v":"Select Line of Business"},{"$f":"Import!E3093","v":"Select Line of Business"},{"$f":"Import!E3156","v":"Select Line of Business"},{"$f":"Import!E3219","v":"Select Line of Business"},{"$f":"Import!E3282","v":"Select Line of Business"},{"$f":"Import!E3345","v":"Select Line of Business"},{"$f":"Import!E3408","v":"Select Line of Business"},{"$f":"Import!E3471","v":"Select Line of Business"},{"$f":"Import!E3534","v":"Select Line of Business"},{"$f":"Import!E3597","v":"Select Line of Business"},{"$f":"Import!E3660","v":"Select Line of Business"},"Select Line of Business","Select Line of Business","Select Line of Business","Select Line of Business","Select Line of Business","Select Line of Business","Select Line of Business","Select Line of Business","Select Line of Business","Select Line of Business","Select Line of Business","Select Line of Business","Select Line of Business","Select Line of Business","Select Line of Business","Select Line of Business","Select Line of Business","Select Line of Business","Select Line of Business","Select Line of Business","Select Line of Business","Select Line of Business","Select Line of Business","Select Line of Business","Select Line of Business",null,null,null,{"$f":"Import!E3697","v":"Select Line of Business"}]
[null,null,"Gross Premiums Written",{"$f":"Import!E2149","v":0},{"$f":"Import!E2212","v":0},{"$f":"Import!E2275","v":0},{"$f":"Import!E2338","v":0},{"$f":"Import!E2401","v":0},{"$f":"Import!E2464","v":0},{"$f":"Import!E2527","v":0},{"$f":"Import!E2590","v":0},{"$f":"Import!E2653","v":0},{"$f":"Import!E2716","v":0},{"$f":"Import!E2779","v":0},{"$f":"Import!E2842","v":0},{"$f":"Import!E2905","v":0},{"$f":"Import!E2968","v":0},{"$f":"Import!E3031","v":0},{"$f":"Import!E3094","v":0},{"$f":"Import!E3157","v":0},{"$f":"Import!E3220","v":0},{"$f":"Import!E3283","v":0},{"$f":"Import!E3346","v":0},{"$f":"Import!E3409","v":0},{"$f":"Import!E3472","v":0},{"$f":"Import!E3535","v":0},{"$f":"Import!E3598","v":0},{"$f":"Import!E3661","v":0},null,null,null,null,null,null,null,null,null,null,null,null,null,null,null,null,null,null,null,null,null,null,null,null,null,null,null,null,{"$f":"Import!E3698","v":0}]
[null,null,"Reinsurance Ceded",{"$f":"Import!E2150","v":0},{"$f":"Import!E2213","v":0},{"$f":"Import!E2276","v":0},{"$f":"Import!E2339","v":0},{"$f":"Import!E2402","v":0},{"$f":"Import!E2465","v":0},{"$f":"Import!E2528","v":0},{"$f":"Import!E2591","v":0},{"$f":"Import!E2654","v":0},{"$f":"Import!E2717","v":0},{"$f":"Import!E2780","v":0},{"$f":"Import!E2843","v":0},{"$f":"Import!E2906","v":0},{"$f":"Import!E2969","v":0},{"$f":"Import!E3032","v":0},{"$f":"Import!E3095","v":0},{"$f":"Import!E3158","v":0},{"$f":"Import!E3221","v":0},{"$f":"Import!E3284","v":0},{"$f":"Import!E3347","v":0},{"$f":"Import!E3410","v":0},{"$f":"Import!E3473","v":0},{"$f":"Import!E3536","v":0},{"$f":"Import!E3599","v":0},{"$f":"Import!E3662","v":0},null,null,null,null,null,null,null,null,null,null,null,null,null,null,null,null,null,null,null,null,null,null,null,null,null,null,null,null,{"$f":"Import!E3699","v":0}]
[null,null,"Net Premiums Written",{"$f":"D56-D57","v":0},0,0,0,0,0,0,0,0,0,0,0,0,0,0,0,0,0,0,0,0,0,0,0,0,0,0,0,0,0,0,0,0,0,0,0,0,0,0,0,0,0,0,0,0,0,0,0,0,0,null,null,null,{"$f":"BE56-BE57","v":0}]
[null,"(ii)","Statutory Lines of Business Written ",{"$f":"Import!E2152","v":"Select Line of Business"},{"$f":"Import!E2215","v":"Select Line of Business"},{"$f":"Import!E2278","v":"Select Line of Business"},{"$f":"Import!E2341","v":"Select Line of Business"},{"$f":"Import!E2404","v":"Select Line of Business"},{"$f":"Import!E2467","v":"Select Line of Business"},{"$f":"Import!E2530","v":"Select Line of Business"},{"$f":"Import!E2593","v":"Select Line of Business"},{"$f":"Import!E2656","v":"Select Line of Business"},{"$f":"Import!E2719","v":"Select Line of Business"},{"$f":"Import!E2782","v":"Select Line of Business"},{"$f":"Import!E2845","v":"Select Line of Business"},{"$f":"Import!E2908","v":"Select Line of Business"},{"$f":"Import!E2971","v":"Select Line of Business"},{"$f":"Import!E3034","v":"Select Line of Business"},{"$f":"Import!E3097","v":"Select Line of Business"},{"$f":"Import!E3160","v":"Select Line of Business"},{"$f":"Import!E3223","v":"Select Line of Business"},{"$f":"Import!E3286","v":"Select Line of Business"},{"$f":"Import!E3349","v":"Select Line of Business"},{"$f":"Import!E3412","v":"Select Line of Business"},{"$f":"Import!E3475","v":"Select Line of Business"},{"$f":"Import!E3538","v":"Select Line of Business"},{"$f":"Import!E3601","v":"Select Line of Business"},{"$f":"Import!E3664","v":"Select Line of Business"},"Select Line of Business","Select Line of Business","Select Line of Business","Select Line of Business","Select Line of Business","Select Line of Business","Select Line of Business","Select Line of Business","Select Line of Business","Select Line of Business","Select Line of Business","Select Line of Business","Select Line of Business","Select Line of Business","Select Line of Business","Select Line of Business","Select Line of Business","Select Line of Business","Select Line of Business","Select Line of Business","Select Line of Business","Select Line of Business","Select Line of Business","Select Line of Business","Select Line of Business",null,null,null,{"$f":"Import!E3701","v":"Select Line of Business"}]
[null,null,"Gross Premiums Written",{"$f":"Import!E2153","v":0},{"$f":"Import!E2216","v":0},{"$f":"Import!E2279","v":0},{"$f":"Import!E2342","v":0},{"$f":"Import!E2405","v":0},{"$f":"Import!E2468","v":0},{"$f":"Import!E2531","v":0},{"$f":"Import!E2594","v":0},{"$f":"Import!E2657","v":0},{"$f":"Import!E2720","v":0},{"$f":"Import!E2783","v":0},{"$f":"Import!E2846","v":0},{"$f":"Import!E2909","v":0},{"$f":"Import!E2972","v":0},{"$f":"Import!E3035","v":0},{"$f":"Import!E3098","v":0},{"$f":"Import!E3161","v":0},{"$f":"Import!E3224","v":0},{"$f":"Import!E3287","v":0},{"$f":"Import!E3350","v":0},{"$f":"Import!E3413","v":0},{"$f":"Import!E3476","v":0},{"$f":"Import!E3539","v":0},{"$f":"Import!E3602","v":0},{"$f":"Import!E3665","v":0},null,null,null,null,null,null,null,null,null,null,null,null,null,null,null,null,null,null,null,null,null,null,null,null,null,null,null,null,{"$f":"Import!E3702","v":0}]
[null,null,"Reinsurance Ceded",{"$f":"Import!E2154","v":0},{"$f":"Import!E2217","v":0},{"$f":"Import!E2280","v":0},{"$f":"Import!E2343","v":0},{"$f":"Import!E2406","v":0},{"$f":"Import!E2469","v":0},{"$f":"Import!E2532","v":0},{"$f":"Import!E2595","v":0},{"$f":"Import!E2658","v":0},{"$f":"Import!E2721","v":0},{"$f":"Import!E2784","v":0},{"$f":"Import!E2847","v":0},{"$f":"Import!E2910","v":0},{"$f":"Import!E2973","v":0},{"$f":"Import!E3036","v":0},{"$f":"Import!E3099","v":0},{"$f":"Import!E3162","v":0},{"$f":"Import!E3225","v":0},{"$f":"Import!E3288","v":0},{"$f":"Import!E3351","v":0},{"$f":"Import!E3414","v":0},{"$f":"Import!E3477","v":0},{"$f":"Import!E3540","v":0},{"$f":"Import!E3603","v":0},{"$f":"Import!E3666","v":0},null,null,null,null,null,null,null,null,null,null,null,null,null,null,null,null,null,null,null,null,null,null,null,null,null,null,null,null,{"$f":"Import!E3703","v":0}]
[null,null,"Net Premiums Written",{"$f":"D60-D61","v":0},0,0,0,0,0,0,0,0,0,0,0,0,0,0,0,0,0,0,0,0,0,0,0,0,{"$f":"AC60-AC61","v":0},0,0,0,0,0,0,0,0,0,0,0,0,0,0,0,0,0,0,0,0,0,0,0,0,null,null,null,{"$f":"BE60-BE61","v":0}]
[null,"(iii)","Statutory Lines of Business Written ",{"$f":"Import!E2156","v":"Select Line of Business"},{"$f":"Import!E2219","v":"Select Line of Business"},{"$f":"Import!E2282","v":"Select Line of Business"},{"$f":"Import!E2345","v":"Select Line of Business"},{"$f":"Import!E2408","v":"Select Line of Business"},{"$f":"Import!E2471","v":"Select Line of Business"},{"$f":"Import!E2534","v":"Select Line of Business"},{"$f":"Import!E2597","v":"Select Line of Business"},{"$f":"Import!E2660","v":"Select Line of Business"},{"$f":"Import!E2723","v":"Select Line of Business"},{"$f":"Import!E2786","v":"Select Line of Business"},{"$f":"Import!E2849","v":"Select Line of Business"},{"$f":"Import!E2912","v":"Select Line of Business"},{"$f":"Import!E2975","v":"Select Line of Business"},{"$f":"Import!E3038","v":"Select Line of Business"},{"$f":"Import!E3101","v":"Select Line of Business"},{"$f":"Import!E3164","v":"Select Line of Business"},{"$f":"Import!E3227","v":"Select Line of Business"},{"$f":"Import!E3290","v":"Select Line of Business"},{"$f":"Import!E3353","v":"Select Line of Business"},{"$f":"Import!E3416","v":"Select Line of Business"},{"$f":"Import!E3479","v":"Select Line of Business"},{"$f":"Import!E3542","v":"Select Line of Business"},{"$f":"Import!E3605","v":"Select Line of Business"},{"$f":"Import!E3668","v":"Select Line of Business"},"Select Line of Business","Select Line of Business","Select Line of Business","Select Line of Business","Select Line of Business","Select Line of Business","Select Line of Business","Select Line of Business","Select Line of Business","Select Line of Business","Select Line of Business","Select Line of Business","Select Line of Business","Select Line of Business","Select Line of Business","Select Line of Business","Select Line of Business","Select Line of Business","Select Line of Business","Select Line of Business","Select Line of Business","Select Line of Business","Select Line of Business","Select Line of Business","Select Line of Business",null,null,null,{"$f":"Import!E3705","v":"Select Line of Business"}]
[null,null,"Gross Premiums Written",{"$f":"Import!E2157","v":0},{"$f":"Import!E2220","v":0},{"$f":"Import!E2283","v":0},{"$f":"Import!E2346","v":0},{"$f":"Import!E2409","v":0},{"$f":"Import!E2472","v":0},{"$f":"Import!E2535","v":0},{"$f":"Import!E2598","v":0},{"$f":"Import!E2661","v":0},{"$f":"Import!E2724","v":0},{"$f":"Import!E2787","v":0},{"$f":"Import!E2850","v":0},{"$f":"Import!E2913","v":0},{"$f":"Import!E2976","v":0},{"$f":"Import!E3039","v":0},{"$f":"Import!E3102","v":0},{"$f":"Import!E3165","v":0},{"$f":"Import!E3228","v":0},{"$f":"Import!E3291","v":0},{"$f":"Import!E3354","v":0},{"$f":"Import!E3417","v":0},{"$f":"Import!E3480","v":0},{"$f":"Import!E3543","v":0},{"$f":"Import!E3606","v":0},{"$f":"Import!E3669","v":0},null,null,null,null,null,null,null,null,null,null,null,null,null,null,null,null,null,null,null,null,null,null,null,null,null,null,null,null,{"$f":"Import!E3706","v":0}]
[null,null,"Reinsurance Ceded",{"$f":"Import!E2158","v":0},{"$f":"Import!E2221","v":0},{"$f":"Import!E2284","v":0},{"$f":"Import!E2347","v":0},{"$f":"Import!E2410","v":0},{"$f":"Import!E2473","v":0},{"$f":"Import!E2536","v":0},{"$f":"Import!E2599","v":0},{"$f":"Import!E2662","v":0},{"$f":"Import!E2725","v":0},{"$f":"Import!E2788","v":0},{"$f":"Import!E2851","v":0},{"$f":"Import!E2914","v":0},{"$f":"Import!E2977","v":0},{"$f":"Import!E3040","v":0},{"$f":"Import!E3103","v":0},{"$f":"Import!E3166","v":0},{"$f":"Import!E3229","v":0},{"$f":"Import!E3292","v":0},{"$f":"Import!E3355","v":0},{"$f":"Import!E3418","v":0},{"$f":"Import!E3481","v":0},{"$f":"Import!E3544","v":0},{"$f":"Import!E3607","v":0},{"$f":"Import!E3670","v":0},null,null,null,null,null,null,null,null,null,null,null,null,null,null,null,null,null,null,null,null,null,null,null,null,null,null,null,null,{"$f":"Import!E3707","v":0}]
[null,null,"Net Premiums Written",{"$f":"D64-D65","v":0},0,0,0,0,0,0,0,0,0,0,0,0,0,0,0,0,0,0,0,0,0,0,0,0,{"$f":"AC64-AC65","v":0},0,0,0,0,0,0,0,0,0,0,0,0,0,0,0,0,0,0,0,0,0,0,0,0,null,null,null,{"$f":"BE64-BE65","v":0}]
[null,"(iv)","Statutory Lines of Business Written ",{"$f":"Import!E2160","v":"Select Line of Business"},{"$f":"Import!E2223","v":"Select Line of Business"},{"$f":"Import!E2286","v":"Select Line of Business"},{"$f":"Import!E2349","v":"Select Line of Business"},{"$f":"Import!E2412","v":"Select Line of Business"},{"$f":"Import!E2475","v":"Select Line of Business"},{"$f":"Import!E2538","v":"Select Line of Business"},{"$f":"Import!E2601","v":"Select Line of Business"},{"$f":"Import!E2664","v":"Select Line of Business"},{"$f":"Import!E2727","v":"Select Line of Business"},{"$f":"Import!E2790","v":"Select Line of Business"},{"$f":"Import!E2853","v":"Select Line of Business"},{"$f":"Import!E2916","v":"Select Line of Business"},{"$f":"Import!E2979","v":"Select Line of Business"},{"$f":"Import!E3042","v":"Select Line of Business"},{"$f":"Import!E3105","v":"Select Line of Business"},{"$f":"Import!E3168","v":"Select Line of Business"},{"$f":"Import!E3231","v":"Select Line of Business"},{"$f":"Import!E3294","v":"Select Line of Business"},{"$f":"Import!E3357","v":"Select Line of Business"},{"$f":"Import!E3420","v":"Select Line of Business"},{"$f":"Import!E3483","v":"Select Line of Business"},{"$f":"Import!E3546","v":"Select Line of Business"},{"$f":"Import!E3609","v":"Select Line of Business"},{"$f":"Import!E3672","v":"Select Line of Business"},"Select Line of Business","Select Line of Business","Select Line of Business","Select Line of Business","Select Line of Business","Select Line of Business","Select Line of Business","Select Line of Business","Select Line of Business","Select Line of Business","Select Line of Business","Select Line of Business","Select Line of Business","Select Line of Business","Select Line of Business","Select Line of Business","Select Line of Business","Select Line of Business","Select Line of Business","Select Line of Business","Select Line of Business","Select Line of Business","Select Line of Business","Select Line of Business","Select Line of Business",null,null,null,{"$f":"Import!E3709","v":"Select Line of Business"}]
[null,null,"Gross Premiums Written",{"$f":"Import!E2161","v":0},{"$f":"Import!E2224","v":0},{"$f":"Import!E2287","v":0},{"$f":"Import!E2350","v":0},{"$f":"Import!E2413","v":0},{"$f":"Import!E2476","v":0},{"$f":"Import!E2539","v":0},{"$f":"Import!E2602","v":0},{"$f":"Import!E2665","v":0},{"$f":"Import!E2728","v":0},{"$f":"Import!E2791","v":0},{"$f":"Import!E2854","v":0},{"$f":"Import!E2917","v":0},{"$f":"Import!E2980","v":0},{"$f":"Import!E3043","v":0},{"$f":"Import!E3106","v":0},{"$f":"Import!E3169","v":0},{"$f":"Import!E3232","v":0},{"$f":"Import!E3295","v":0},{"$f":"Import!E3358","v":0},{"$f":"Import!E3421","v":0},{"$f":"Import!E3484","v":0},{"$f":"Import!E3547","v":0},{"$f":"Import!E3610","v":0},{"$f":"Import!E3673","v":0},null,null,null,null,null,null,null,null,null,null,null,null,null,null,null,null,null,null,null,null,null,null,null,null,null,null,null,null,{"$f":"Import!E3710","v":0}]
[null,null,"Reinsurance Ceded",{"$f":"Import!E2162","v":0},{"$f":"Import!E2225","v":0},{"$f":"Import!E2288","v":0},{"$f":"Import!E2351","v":0},{"$f":"Import!E2414","v":0},{"$f":"Import!E2477","v":0},{"$f":"Import!E2540","v":0},{"$f":"Import!E2603","v":0},{"$f":"Import!E2666","v":0},{"$f":"Import!E2729","v":0},{"$f":"Import!E2792","v":0},{"$f":"Import!E2855","v":0},{"$f":"Import!E2918","v":0},{"$f":"Import!E2981","v":0},{"$f":"Import!E3044","v":0},{"$f":"Import!E3107","v":0},{"$f":"Import!E3170","v":0},{"$f":"Import!E3233","v":0},{"$f":"Import!E3296","v":0},{"$f":"Import!E3359","v":0},{"$f":"Import!E3422","v":0},{"$f":"Import!E3485","v":0},{"$f":"Import!E3548","v":0},{"$f":"Import!E3611","v":0},{"$f":"Import!E3674","v":0},null,null,null,null,null,null,null,null,null,null,null,null,null,null,null,null,null,null,null,null,null,null,null,null,null,null,null,null,{"$f":"Import!E3711","v":0}]
[null,null,"Net Premiums Written",{"$f":"D68-D69","v":0},0,0,0,0,0,0,0,0,0,0,0,0,0,0,0,0,0,0,0,0,0,0,0,0,{"$f":"AC68-AC69","v":0},0,0,0,0,0,0,0,0,0,0,0,0,0,0,0,0,0,0,0,0,0,0,0,0,null,null,null,{"$f":"BE68-BE69","v":0}]
[null,"(v)","Statutory Lines of Business Written ",{"$f":"Import!E2164","v":"Select Line of Business"},{"$f":"Import!E2227","v":"Select Line of Business"},{"$f":"Import!E2290","v":"Select Line of Business"},{"$f":"Import!E2353","v":"Select Line of Business"},{"$f":"Import!E2416","v":"Select Line of Business"},{"$f":"Import!E2479","v":"Select Line of Business"},{"$f":"Import!E2542","v":"Select Line of Business"},{"$f":"Import!E2605","v":"Select Line of Business"},{"$f":"Import!E2668","v":"Select Line of Business"},{"$f":"Import!E2731","v":"Select Line of Business"},{"$f":"Import!E2794","v":"Select Line of Business"},{"$f":"Import!E2857","v":"Select Line of Business"},{"$f":"Import!E2920","v":"Select Line of Business"},{"$f":"Import!E2983","v":"Select Line of Business"},{"$f":"Import!E3046","v":"Select Line of Business"},{"$f":"Import!E3109","v":"Select Line of Business"},{"$f":"Import!E3172","v":"Select Line of Business"},{"$f":"Import!E3235","v":"Select Line of Business"},{"$f":"Import!E3298","v":"Select Line of Business"},{"$f":"Import!E3361","v":"Select Line of Business"},{"$f":"Import!E3424","v":"Select Line of Business"},{"$f":"Import!E3487","v":"Select Line of Business"},{"$f":"Import!E3550","v":"Select Line of Business"},{"$f":"Import!E3613","v":"Select Line of Business"},{"$f":"Import!E3676","v":"Select Line of Business"},"Select Line of Business","Select Line of Business","Select Line of Business","Select Line of Business","Select Line of Business","Select Line of Business","Select Line of Business","Select Line of Business","Select Line of Business","Select Line of Business","Select Line of Business","Select Line of Business","Select Line of Business","Select Line of Business","Select Line of Business","Select Line of Business","Select Line of Business","Select Line of Business","Select Line of Business","Select Line of Business","Select Line of Business","Select Line of Business","Select Line of Business","Select Line of Business","Select Line of Business",null,null,null,{"$f":"Import!E3713","v":"Select Line of Business"}]
[null,null,"Gross Premiums Written",{"$f":"Import!E2165","v":0},{"$f":"Import!E2228","v":0},{"$f":"Import!E2291","v":0},{"$f":"Import!E2354","v":0},{"$f":"Import!E2417","v":0},{"$f":"Import!E2480","v":0},{"$f":"Import!E2543","v":0},{"$f":"Import!E2606","v":0},{"$f":"Import!E2669","v":0},{"$f":"Import!E2732","v":0},{"$f":"Import!E2795","v":0},{"$f":"Import!E2858","v":0},{"$f":"Import!E2921","v":0},{"$f":"Import!E2984","v":0},{"$f":"Import!E3047","v":0},{"$f":"Import!E3110","v":0},{"$f":"Import!E3173","v":0},{"$f":"Import!E3236","v":0},{"$f":"Import!E3299","v":0},{"$f":"Import!E3362","v":0},{"$f":"Import!E3425","v":0},{"$f":"Import!E3488","v":0},{"$f":"Import!E3551","v":0},{"$f":"Import!E3614","v":0},{"$f":"Import!E3677","v":0},null,null,null,null,null,null,null,null,null,null,null,null,null,null,null,null,null,null,null,null,null,null,null,null,null,null,null,null,{"$f":"Import!E3714","v":0}]
[null,null,"Reinsurance Ceded",{"$f":"Import!E2166","v":0},{"$f":"Import!E2229","v":0},{"$f":"Import!E2292","v":0},{"$f":"Import!E2355","v":0},{"$f":"Import!E2418","v":0},{"$f":"Import!E2481","v":0},{"$f":"Import!E2544","v":0},{"$f":"Import!E2607","v":0},{"$f":"Import!E2670","v":0},{"$f":"Import!E2733","v":0},{"$f":"Import!E2796","v":0},{"$f":"Import!E2859","v":0},{"$f":"Import!E2922","v":0},{"$f":"Import!E2985","v":0},{"$f":"Import!E3048","v":0},{"$f":"Import!E3111","v":0},{"$f":"Import!E3174","v":0},{"$f":"Import!E3237","v":0},{"$f":"Import!E3300","v":0},{"$f":"Import!E3363","v":0},{"$f":"Import!E3426","v":0},{"$f":"Import!E3489","v":0},{"$f":"Import!E3552","v":0},{"$f":"Import!E3615","v":0},{"$f":"Import!E3678","v":0},null,null,null,null,null,null,null,null,null,null,null,null,null,null,null,null,null,null,null,null,null,null,null,null,null,null,null,null,{"$f":"Import!E3715","v":0}]
[null,null,"Net Premiums Written",{"$f":"D72-D73","v":0},0,0,0,0,0,0,0,0,0,0,0,0,0,0,0,0,0,0,0,0,0,0,0,0,{"$f":"AC72-AC73","v":0},0,0,0,0,0,0,0,0,0,0,0,0,0,0,0,0,0,0,0,0,0,0,0,0,null,null,null,{"$f":"BE72-BE73","v":0}]
[null,null,"Total Gross Premiums Written",{"$f":"D56+D60+D64+D68+D72","v":0},{"$f":"E56+E60+E64+E68+E72","v":0},0,0,0,0,0,0,0,0,0,0,0,0,0,0,0,0,0,0,0,0,0,0,0,0,0,0,0,0,0,0,0,0,0,0,0,0,0,0,0,0,0,0,0,0,0,0,0,0,null,{"$f":"SUM(D75:BA75)","v":0},null,{"$f":"BE56+BE60+BE64+BE68+BE72","v":0}]
[null,null,"Total Net Premiums Written",{"$f":"D58+D62+D66+D70+D74","v":0},{"$f":"E58+E62+E66+E70+E74","v":0},0,0,0,0,0,0,0,0,0,0,0,0,0,0,0,0,0,0,0,0,0,0,0,0,0,0,0,0,0,0,0,0,0,0,0,0,0,0,0,0,0,0,0,0,0,0,0,0,null,0,null,{"$f":"BE57+BE61+BE65+BE69+BE73","v":0}]
[]
[null,null,"Notional Minimum Margin of Solvency Test"]
[null,null,"Test A $120,000 (General Account Only)"]
[null,null,"Test B 10% of Net Premiums Written",{"$f":"IF(D9>0,D76*10%,\"\")","v":""},{"$f":"IF(E9>0,E76*10%,\"\")","v":""},"","","","","","","","","","","","","","","","","","","","","","","","","","","","","","","","","","","","","","","","","","","","","","","",""]
[null,null,"Test C 10% of Net Loss Provisions",{"$f":"IF(D9>0,D24*10%,\"\")","v":""},{"$f":"IF(E9>0,E24*10%,\"\")","v":""},"","","","","","","","","","","","","","","","","","","","","","","","","","","","","","","","","","","","","","","","","","","","","","","","",null,null,null,{"$f":"IF(BE9>0,BE24*10%,\"\")","v":""}]
[]
[null,null,"Notional Minimum Margin of Solvency ",{"$f":"IF(D9=\"\",\"\",MAX(D80,D81))","v":0},{"$f":"IF(E9=\"\",\"\",MAX(E80,E81))","v":0},0,0,0,0,0,0,0,0,0,0,0,0,0,0,0,0,0,0,0,0,0,0,0,"","","","","","","","","","","","","","","","","","","","","","","","","",null,null,null,{"$f":"IF(BE9=\"\",\"\",MAX(BE79,BE80,BE81))","v":0}]
[]
[null,null,"Notional Enhanced Capital Requirement"]
[null,null,"Summary - ECR",{"$f":"IF(D9=\"\",\"\",Summary!$G$98)","v":4000},{"$f":"IF(E9=\"\",\"\",Summary!$G$98)","v":4000},{"$f":"IF(F9=\"\",\"\",Summary!$G$98)","v":4000},{"$f":"IF(G9=\"\",\"\",Summary!$G$98)","v":4000},{"$f":"IF(H9=\"\",\"\",Summary!$G$98)","v":4000},{"$f":"IF(I9=\"\",\"\",Summary!$G$98)","v":4000},{"$f":"IF(J9=\"\",\"\",Summary!$G$98)","v":4000},{"$f":"IF(K9=\"\",\"\",Summary!$G$98)","v":4000},{"$f":"IF(L9=\"\",\"\",Summary!$G$98)","v":4000},{"$f":"IF(M9=\"\",\"\",Summary!$G$98)","v":4000},{"$f":"IF(N9=\"\",\"\",Summary!$G$98)","v":4000},{"$f":"IF(O9=\"\",\"\",Summary!$G$98)","v":4000},{"$f":"IF(P9=\"\",\"\",Summary!$G$98)","v":4000},{"$f":"IF(Q9=\"\",\"\",Summary!$G$98)","v":4000},{"$f":"IF(R9=\"\",\"\",Summary!$G$98)","v":4000},{"$f":"IF(S9=\"\",\"\",Summary!$G$98)","v":4000},{"$f":"IF(T9=\"\",\"\",Summary!$G$98)","v":4000},{"$f":"IF(U9=\"\",\"\",Summary!$G$98)","v":4000},{"$f":"IF(V9=\"\",\"\",Summary!$G$98)","v":4000},{"$f":"IF(W9=\"\",\"\",Summary!$G$98)","v":4000},{"$f":"IF(X9=\"\",\"\",Summary!$G$98)","v":4000},{"$f":"IF(Y9=\"\",\"\",Summary!$G$98)","v":4000},{"$f":"IF(Z9=\"\",\"\",Summary!$G$98)","v":4000},{"$f":"IF(AA9=\"\",\"\",Summary!$G$98)","v":4000},{"$f":"IF(AB9=\"\",\"\",Summary!$G$98)","v":4000},{"$f":"IF(AC9=\"\",\"\",Summary!$G$98)","v":""},{"$f":"IF(AD9=\"\",\"\",Summary!$G$98)","v":""},{"$f":"IF(AE9=\"\",\"\",Summary!$G$98)","v":""},{"$f":"IF(AF9=\"\",\"\",Summary!$G$98)","v":""},{"$f":"IF(AG9=\"\",\"\",Summary!$G$98)","v":""},{"$f":"IF(AH9=\"\",\"\",Summary!$G$98)","v":""},{"$f":"IF(AI9=\"\",\"\",Summary!$G$98)","v":""},{"$f":"IF(AJ9=\"\",\"\",Summary!$G$98)","v":""},{"$f":"IF(AK9=\"\",\"\",Summary!$G$98)","v":""},{"$f":"IF(AL9=\"\",\"\",Summary!$G$98)","v":""},{"$f":"IF(AM9=\"\",\"\",Summary!$G$98)","v":""},{"$f":"IF(AN9=\"\",\"\",Summary!$G$98)","v":""},{"$f":"IF(AO9=\"\",\"\",Summary!$G$98)","v":""},{"$f":"IF(AP9=\"\",\"\",Summary!$G$98)","v":""},{"$f":"IF(AQ9=\"\",\"\",Summary!$G$98)","v":""},{"$f":"IF(AR9=\"\",\"\",Summary!$G$98)","v":""},{"$f":"IF(AS9=\"\",\"\",Summary!$G$98)","v":""},{"$f":"IF(AT9=\"\",\"\",Summary!$G$98)","v":""},{"$f":"IF(AU9=\"\",\"\",Summary!$G$98)","v":""},{"$f":"IF(AV9=\"\",\"\",Summary!$G$98)","v":""},{"$f":"IF(AW9=\"\",\"\",Summary!$G$98)","v":""},{"$f":"IF(AX9=\"\",\"\",Summary!$G$98)","v":""},{"$f":"IF(AY9=\"\",\"\",Summary!$G$98)","v":""},{"$f":"IF(AZ9=\"\",\"\",Summary!$G$98)","v":""},{"$f":"IF(BA9=\"\",\"\",Summary!$G$98)","v":""},null,null,null,{"$f":"IF(BE9=\"\",\"\",Summary!$G$98)","v":4000}]
[null,null,"Summary - Minimum Margin of Solvency",{"$f":"IF(D9=\"\",\"\",Summary!$G$92)","v":4000},{"$f":"IF(E9=\"\",\"\",Summary!$G$92)","v":4000},{"$f":"IF(F9=\"\",\"\",Summary!$G$92)","v":4000},{"$f":"IF(G9=\"\",\"\",Summary!$G$92)","v":4000},{"$f":"IF(H9=\"\",\"\",Summary!$G$92)","v":4000},{"$f":"IF(I9=\"\",\"\",Summary!$G$92)","v":4000},{"$f":"IF(J9=\"\",\"\",Summary!$G$92)","v":4000},{"$f":"IF(K9=\"\",\"\",Summary!$G$92)","v":4000},{"$f":"IF(L9=\"\",\"\",Summary!$G$92)","v":4000},{"$f":"IF(M9=\"\",\"\",Summary!$G$92)","v":4000},{"$f":"IF(N9=\"\",\"\",Summary!$G$92)","v":4000},{"$f":"IF(O9=\"\",\"\",Summary!$G$92)","v":4000},{"$f":"IF(P9=\"\",\"\",Summary!$G$92)","v":4000},{"$f":"IF(Q9=\"\",\"\",Summary!$G$92)","v":4000},{"$f":"IF(R9=\"\",\"\",Summary!$G$92)","v":4000},{"$f":"IF(S9=\"\",\"\",Summary!$G$92)","v":4000},{"$f":"IF(T9=\"\",\"\",Summary!$G$92)","v":4000},{"$f":"IF(U9=\"\",\"\",Summary!$G$92)","v":4000},{"$f":"IF(V9=\"\",\"\",Summary!$G$92)","v":4000},{"$f":"IF(W9=\"\",\"\",Summary!$G$92)","v":4000},{"$f":"IF(X9=\"\",\"\",Summary!$G$92)","v":4000},{"$f":"IF(Y9=\"\",\"\",Summary!$G$92)","v":4000},{"$f":"IF(Z9=\"\",\"\",Summary!$G$92)","v":4000},{"$f":"IF(AA9=\"\",\"\",Summary!$G$92)","v":4000},{"$f":"IF(AB9=\"\",\"\",Summary!$G$92)","v":4000},{"$f":"IF(AC9=\"\",\"\",Summary!$G$92)","v":""},{"$f":"IF(AD9=\"\",\"\",Summary!$G$92)","v":""},{"$f":"IF(AE9=\"\",\"\",Summary!$G$92)","v":""},{"$f":"IF(AF9=\"\",\"\",Summary!$G$92)","v":""},{"$f":"IF(AG9=\"\",\"\",Summary!$G$92)","v":""},{"$f":"IF(AH9=\"\",\"\",Summary!$G$92)","v":""},{"$f":"IF(AI9=\"\",\"\",Summary!$G$92)","v":""},{"$f":"IF(AJ9=\"\",\"\",Summary!$G$92)","v":""},{"$f":"IF(AK9=\"\",\"\",Summary!$G$92)","v":""},{"$f":"IF(AL9=\"\",\"\",Summary!$G$92)","v":""},{"$f":"IF(AM9=\"\",\"\",Summary!$G$92)","v":""},{"$f":"IF(AN9=\"\",\"\",Summary!$G$92)","v":""},{"$f":"IF(AO9=\"\",\"\",Summary!$G$92)","v":""},{"$f":"IF(AP9=\"\",\"\",Summary!$G$92)","v":""},{"$f":"IF(AQ9=\"\",\"\",Summary!$G$92)","v":""},{"$f":"IF(AR9=\"\",\"\",Summary!$G$92)","v":""},{"$f":"IF(AS9=\"\",\"\",Summary!$G$92)","v":""},{"$f":"IF(AT9=\"\",\"\",Summary!$G$92)","v":""},{"$f":"IF(AU9=\"\",\"\",Summary!$G$92)","v":""},{"$f":"IF(AV9=\"\",\"\",Summary!$G$92)","v":""},{"$f":"IF(AW9=\"\",\"\",Summary!$G$92)","v":""},{"$f":"IF(AX9=\"\",\"\",Summary!$G$92)","v":""},{"$f":"IF(AY9=\"\",\"\",Summary!$G$92)","v":""},{"$f":"IF(AZ9=\"\",\"\",Summary!$G$92)","v":""},{"$f":"IF(BA9=\"\",\"\",Summary!$G$92)","v":""},null,null,null,{"$f":"IF(BE9=\"\",\"\",Summary!$G$92)","v":4000}]
[null,null,"ECR to Minimum Margin of Solvency",{"$f":"IF(D9=\"\",\"\",IF(D87=0,0,D86/D87))","v":1},{"$f":"IF(E9=\"\",\"\",IF(E87=0,0,E86/E87))","v":1},1,1,1,1,1,1,1,1,1,1,1,1,1,1,1,1,1,1,1,1,1,1,1,"","","","","","","","","","","","","","","","","","","","","","","","","",null,null,null,{"$f":"IF(BE9=\"\",\"\",IF(BE87=0,0,BE86/BE87))","v":1}]
[]
[null,null,"Cell Notional ECR Requirement",{"$f":"IF(D9=0,\"\",D83*D88)","v":""},{"$f":"IF(E9=0,\"\",E83*E88)","v":""},"","","","","","","","","","","","","","","","","","","","","","","","","","","","","","","","","","","","","","","","","","","","","","","","",null,null,null,{"$f":"IF(BE9=0,\"\",BE83*BE88)","v":""}]
[]
[null,null,"Cell Notional ECR Ratio",{"$f":"IF(D9=0,\"\",IF((D11+D12)=0,0,(D11+D12)/D90))","v":""},{"$f":"IF(E9=0,\"\",IF((E11+E12)=0,0,(E11+E12)/E90))","v":""},"","","","","","","","","","","","","","","","","","","","","","","","","","","","","","","","","","","","","","","","","","","","","","","","",null,null,null,{"$f":"IF(BE9=0,\"\",IF((BE11+BE12)=0,0,(BE11+BE12)/BE90))","v":""}]
[]
[]
[null,null,null,null,"brrt_BondsAndDebentures",null,"brrt_BondsAndDebenturesFaceValue","brrt_BondsAndDebenturesAverageRating",null,"Select Line of Business",null,"Confirm Jurisdiction","Select Funding","Select Currency","Confirm Mitigants & Attach Support"]
[null,null,"01/01/2016",null,"01/01/2016",null,"01/01/2016","01/01/2016",null,"General Business",null,"Zone 1 - Central & Western Asia","Cash","Bermudian Dollar","None",null,"Yes"]
[null,null,"12/31/2016",null,"12/31/2016",null,"12/31/2016","12/31/2016",null,"Accident and Health, Travel, Personal Accident",null,"Zone 2 - Eastern Asia","Lines of Credit","US Dollar","Provide Support in Attachments tab",null,"No"]
[null,null,null,"Select Yes/No",null,null,null,null,null,"Agriculture",null,"Zone 3 - South and South-Eastern Asia","Guarantees","Canadian Dollar"]
[null,null,"Select Premiums Written","Yes","Confirm",null,"Confirm Activity","Confirm Funding / Collateral",null,"Asbestos",null,"Zone 4 - Oceania",null,"Euro"]
[null,null,"Direct Insurer","No","LOC ",null,"None","Up to Probable Maximum Loss",null,"Aviation - Hull, Liability and War",null,"Zone 5 - Northern Africa",null,"Japanese Yen"]
[null,null,"Reinsurer",null,"Gurantees",null,"Reinsurance","Up to Aggregate Limit",null,"Construction",null,"Zone 6 - Southern Africa",null,"Pound Sterling"]
[null,null,"Both",null,"Capital Calls",null,"Other (Define) ","Reserves",null,"Credit / Surety",null,"Zone 7 - Eastern Europe",null,"Swiss Franc"]
[null,null,null,null,"Other (Define) ",null,null,"Total Reserves and expenses",null,"Crime and Fidelity",null,"Zone 8 - Northern Europe"]
[null,null,null,null,null,null,null,"Other (define)",null,"Crime and Fraud",null,"Zone 9 - Southern Europe",null,"Afghanistan Afghani"]
[null,null,null,null,null,null,null,null,null,"Cyber Risk",null,"Zone 10 - Western Europe",null,"Albanian Lek"]
[null,null,null,null,"Confirm",null,null,null,null,"Energy - Onshore and offshore",null,"Zone 11 - Northern America (Excluding USA)",null,"Algerian Dinar"]
[null,null,null,null,"Related",null,null,null,null,"Environmental Risk",null,"Zone 12 - Caribbean & Centeral America",null,"Angolan Kwanza"]
[null,null,null,null,"Unrelated",null,null,null,null,"General liability - Public, Products, Umbrella, Product recall",null,"Zone 13 - Eastern South America",null,"Arab Emirates Dirham"]
[null,null,null,null,null,null,null,null,null,"Life and Accident and Health (General Business approval)",null,"Zone 14 - Northern, Southern and Western South America",null,"Argentine Peso"]
[null,null,null,null,"Confirm Beneficial Owner",null,null,null,null,"Marine - P&I, Cargo, Hull and Liability, War",null,"Zone 15 - North-East United States",null,"Armenian Dram"]
[null,null,null,null,"Single",null,null,null,null,"Medical Malpractice",null,"Zone 16 - South-East United States",null,"Aruban Guilder"]
[null,null,null,null,"Multiple",null,null,null,null,"Mortgage",null,"Zone 17 - Mid-West United States",null,"Australian Dollar"]
[null,null,null,null,null,null,null,null,null,"Motor - APD and Liability",null,"Zone 18 - Western United States",null,"Azerbaijan New Manat"]
[null,null,null,null,"Confirm Ownership",null,null,null,null,"Political Risks",null,null,null,"Bahamian Dollar"]
[null,null,null,null,"Management General Agents & Brokers",null,null,null,null,"Professional Liability - Professional Indemnity, D&O, Bankers Blanket, E&O",null,null,null,"Bahraini Dinar"]
[null,null,null,null,"Insurance Company",null,null,null,null,"Property Catastrophe",null,null,null,"Bangladeshi Taka"]
[null,null,null,null,"Reinsurance Company",null,null,null,null,"Property Damage and Business Interruption",null,null,null,"Barbados Dollar"]
[null,null,null,null,"Non-Insurance Company",null,null,null,null,"Property Retro",null,null,null,"Belarussian Ruble"]
[null,null,null,null,"Non-Related Investors",null,"A or better",null,null,"Structured/Finite Reinsurance",null,null,null,"Belize Dollar"]
[null,null,null,null,"Other",null,"BBB or equivalent",null,null,"Terrorism",null,null,null,"Bhutan Ngultrum"]
[null,null,null,null,null,null,"B or better",null,null,"Warranty, Residual Value",null,null,null,"Boliviano"]
[null,null,{"$error":"#VALUE!"},null,null,null,"unrated/other",null,null,"Workers Compensation/Employers Liability",null,null,null,"Botswana Pula"]
[null,null,null,null,"Confirm Instrument",null,null,null,null,null,null,null,null,"Brazilian Real"]
[null,null,{"$error":"#VALUE!"},null,"Non-Voting Preferred Shareholder Agreement",null,null,null,null,"Long Term Business",null,null,null,"Brunei Dollar"]
[null,null,null,null,"Participation Agreement",null,null,null,null,"Mortality",null,null,null,"Burundi Franc"]
[null,null,null,null,"Noteholder Agreement",null,null,null,null,"Critical Illness",null,null,null,"Cape Verde Escudo"]
[null,null,null,null,"Contingent Commission Agreement",null,null,null,null,"Longevity",null,null,null,"Cayman Islands Dollar"]
[null,null,null,null,"Other Agreement",null,null,null,null,"Deferred Annuities",null,null,null,"CFA Franc BCEAO"]
[null,null,null,null,null,null,null,null,null,"Disability Income: Active lives with premium guarantee of -",null,null,null,"CFA Franc BEAC"]
[null,null,null,null,null,null,null,null,null,"Less than or equal to 1 year",null,null,null,"CFP Franc"]
[null,null,null,null,null,null,null,null,null,"More than 1 year but less than 5 years",null,null,null,"Chilean Peso"]
[null,null,null,null,null,null,null,null,null,"Greater than 5 years",null,null,null,"Colombian Peso"]
[null,null,null,null,null,null,null,null,null,"Disability Income: Actives lives for other",null,null,null,"Comoros Franc"]
[null,null,null,null,null,null,null,null,null,"accident and sickness",null,null,null,"Costa Rican Colon"]
[null,null,null,null,null,null,null,null,null,"Disability Income: Claims in payment",null,null,null,"Croatian Kuna"]
[null,null,null,null,null,null,null,null,null,"Disability Income: Claims in payment for other",null,null,null,"Cuban Peso"]
[null,null,null,null,null,null,null,null,null,"accident and sickness",null,null,null,"Czech Koruna"]
[null,null,null,null,null,null,null,null,null,"Group Life",null,null,null,"Danish Krone"]
[null,null,null,null,null,null,null,null,null,"Group Disability",null,null,null,"Denar"]
[null,null,null,null,null,null,null,null,null,"Group Health",null,null,null,"Djibouti Franc"]
[null,null,null,null,null,null,null,null,null,"Stop Loss",null,null,null,"Dominican Peso"]
[null,null,null,null,null,null,null,null,null,"Rider",null,null,null,"East Caribbean Dollar"]
[null,null,null,null,null,null,null,null,null,"Variable Annuities",null,null,null,"Ecuador Sucre"]
[null,null,null,null,null,null,null,null,null,null,null,null,null,"Egyptian Pound"]
[null,null,null,null,null,null,null,null,null,null,null,null,null,"El Salvador Colon"]
[null,null,null,null,null,null,null,null,null,null,null,null,null,"Eritrean Nakfa"]
[null,null,null,null,null,null,null,null,null,null,null,null,null,"Falkland Islands Pound"]
[null,null,null,null,null,null,null,null,null,null,null,null,null,"Fiji Dollar"]
[null,null,null,null,null,null,null,null,null,null,null,null,null,"Francs"]
[null,null,null,null,null,null,null,null,null,null,null,null,null,"Gambian Dalasi"]
[null,null,null,null,null,null,null,null,null,null,null,null,null,"Georgian Lari"]
[null,null,null,null,null,null,null,null,null,null,null,null,null,"Ghanaian Cedi"]
[null,null,null,null,null,null,null,null,null,null,null,null,null,"Gibraltar Pound"]
[null,null,null,null,null,null,null,null,null,null,null,null,null,"Guatemalan Quetzal"]
[null,null,null,null,null,null,null,null,null,null,null,null,null,"Guinea Franc"]
[null,null,null,null,null,null,null,null,null,null,null,null,null,"Guinea-Bissau Peso"]
[null,null,null,null,null,null,null,null,null,null,null,null,null,"Guyana Dollar"]
[null,null,null,null,null,null,null,null,null,null,null,null,null,"Haitian Gourde"]
[null,null,null,null,null,null,null,null,null,null,null,null,null,"Honduran Lempira"]
[null,null,null,null,null,null,null,null,null,null,null,null,null,"Hong Kong Dollar"]
[null,null,null,null,null,null,null,null,null,null,null,null,null,"Hungarian Forint"]
[null,null,null,null,null,null,null,null,null,null,null,null,null,"Iceland Krona"]
[null,null,null,null,null,null,null,null,null,null,null,null,null,"Indian Rupee"]
[null,null,null,null,null,null,null,null,null,null,null,null,null,"Indonesian Rupiah"]
[null,null,null,null,null,null,null,null,null,null,null,null,null,"Iraqi Dinar"]
[null,null,null,null,null,null,null,null,null,null,null,null,null,"Israeli New Shekel"]
[null,null,null,null,null,null,null,null,null,null,null,null,null,"Jamaican Dollar"]
[null,null,null,null,null,null,null,null,null,null,null,null,null,"Jordanian Dinar"]
[null,null,null,null,null,null,null,null,null,null,null,null,null,"Kampuchean Riel"]
[null,null,null,null,null,null,null,null,null,null,null,null,null,"Kazakhstan Tenge"]
[null,null,null,null,null,null,null,null,null,null,null,null,null,"Kenyan Shilling"]
[null,null,null,null,null,null,null,null,null,null,null,null,null,"Korean Won"]
[null,null,null,null,null,null,null,null,null,null,null,null,null,"Kuwaiti Dinar"]
[null,null,null,null,null,null,null,null,null,null,null,null,null,"Lao Kip"]
[null,null,null,null,null,null,null,null,null,null,null,null,null,"Latvian Lats"]
[null,null,null,null,null,null,null,null,null,null,null,null,null,"Lebanese Pound"]
[null,null,null,null,null,null,null,null,null,null,null,null,null,"Lesotho Loti"]
[null,null,null,null,null,null,null,null,null,null,null,null,null,"Liberian Dollar"]
[null,null,null,null,null,null,null,null,null,null,null,null,null,"Libyan Dinar"]
[null,null,null,null,null,null,null,null,null,null,null,null,null,"Lithuanian Litas"]
[null,null,null,null,null,null,null,null,null,null,null,null,null,"Macau Pataca"]
[null,null,null,null,null,null,null,null,null,null,null,null,null,"Malagasy Franc"]
[null,null,null,null,null,null,null,null,null,null,null,null,null,"Malawi Kwacha"]
[null,null,null,null,null,null,null,null,null,null,null,null,null,"Malaysian Ringgit"]
[null,null,null,null,null,null,null,null,null,null,null,null,null,"Maldive Rufiyaa"]
[null,null,null,null,null,null,null,null,null,null,null,null,null,"Manat"]
[null,null,null,null,null,null,null,null,null,null,null,null,"Marka","Marka"]
[null,null,null,null,null,null,null,null,null,null,null,null,"Moroccan Dirham","Moroccan Dirham"]
[null,null,null,null,null,null,null,null,null,null,null,null,"New Zealand Dollar","New Zealand Dollar"]
[null,null,null,null,null,null,null,null,null,null,null,null,"North Korean Won","North Korean Won"]
[null,null,null,null,null,null,null,null,null,null,null,null,"Norwegian Krone","Norwegian Krone"]
[null,null,null,null,null,null,null,null,null,null,null,null,"Norwegian Krone","Norwegian Krone"]
[null,null,null,null,null,null,null,null,null,null,null,null,"Som","Som"]
[null,null,null,null,null,null,null,null,null,null,null,null,"Sri Lanka Rupee","Sri Lanka Rupee"]
[null,null,null,null,null,null,null,null,null,null,null,null,"Sudanese Pound","Sudanese Pound"]
[null,null,null,null,null,null,null,null,null,null,null,null,"Surinam Dollar","Surinam Dollar"]
[null,null,null,null,null,null,null,null,null,null,null,null,"Swaziland Lilangeni","Swaziland Lilangeni"]
[null,null,null,null,null,null,null,null,null,null,null,null,"Swedish Krona","Swedish Krona"]
[null,null,null,null,null,null,null,null,null,null,null,null,"Syrian Pound","Syrian Pound"]
[null,null,null,null,null,null,null,null,null,null,null,null,"Taiwan Dollar","Taiwan Dollar"]
[null,null,null,null,null,null,null,null,null,null,null,null,"Tajik Somoni","Tajik Somoni"]
[null,null,null,null,null,null,null,null,null,null,null,null,"Tanzanian Shilling","Tanzanian Shilling"]
[null,null,null,null,null,null,null,null,null,null,null,null,"Thai Baht","Thai Baht"]
[null,null,null,null,null,null,null,null,null,null,null,null,"Tongan Pa'anga","Tongan Pa'anga"]
[null,null,null,null,null,null,null,null,null,null,null,null,"Trinidad and Tobago Dollar","Trinidad and Tobago Dollar"]
[null,null,null,null,null,null,null,null,null,null,null,null,"Tunisian Dollar","Tunisian Dollar"]
[null,null,null,null,null,null,null,null,null,null,null,null,"Turkish Lira","Turkish Lira"]
[null,null,null,null,null,null,null,null,null,null,null,null,"Uganda Shilling","Uganda Shilling"]
[null,null,null,null,null,null,null,null,null,null,null,null,"Ukraine Hryvnia","Ukraine Hryvnia"]
[null,null,null,null,null,null,null,null,null,null,null,null,"Uruguayan Peso","Uruguayan Peso"]
[null,null,null,null,null,null,null,null,null,null,null,null,"Uzbekistan Sum","Uzbekistan Sum"]
[null,null,null,null,null,null,null,null,null,null,null,null,"Vanuatu Vatu","Vanuatu Vatu"]
[null,null,null,null,null,null,null,null,null,null,null,null,"Venezuelan Bolivar","Venezuelan Bolivar"]
[null,null,null,null,null,null,null,null,null,null,null,null,"Yemeni Rial","Yemeni Rial"]
[null,null,null,null,null,null,null,null,null,null,null,null,"Yuan Renminbi","Yuan Renminbi"]
[null,null,null,null,null,null,null,null,null,null,null,null,"Zambian Kwacha","Zambian Kwacha"]
[null,null,null,null,null,null,null,null,null,null,null,null,"Zimbabwe Dollar","Zimbabwe Dollar"]

{"sheet":"Schedule V(m)","index":45,"n_rows":1565,"n_cols":23,"rows_kept":1565,"cut":false,"hidden":false,"merged":[[1,2,1,3],[2,2,2,3],[3,2,3,3],[8,1,8,4],[1514,1,1520,10]]}
[null,"Alternative Capital Analysis ",null,null,null,null,null,null,null,null,null,null,null,null,null,null,null,null,null,null,null,null,{"$f":"HYPERLINK(\"#'Index'!A1\",\"Return to Index\")","v":"Return to Index"}]
[null,"Name of Insurer:",{"$f":"'Insurer Information'!C7","v":"Enter Company Name"}]
[null,"Structure of the Insurer:",{"$f":"Import!E3721","v":"Select from Drop Down"}]
[null,"For the Year-Ending:",{"$f":"'Insurer Information'!C3","v":"2019-12-31"}]
[]
[null,"Enter Number of Rows required",{"$f":"Import!E3722","v":0}]
[null,"(Maximum of 1,500 Rows available)"]
[null,"A)  Transaction Details"]
[null,"All monetary figures must be reported in Units and in United States Dollars"]
[null,"Name of Cedant","Contract Reference (e.g. Cell Name/Account No.)","Type of coverage","Statutory Line of Business Written","Location of Exposure Covered","Aggregate Maximum Limit as at Inception Date","Net Aggregate Maximum Limit at the end of Financial Year","Inception Date of Cover Period (DD/MM/YYYY)","Effective Date of Contract\n(DD/MM/YYYY)","Expiry Date of Cover Period (DD/MM/YYYY)","Gross Premium Written for the Cover Period","Net Premium Written for the Cover Period","Attachment Point","Aggregate Losses Outstanding at the Beginning of the Financial Year","Aggregate Losses Incurred During the Financial Year","Aggregate Losses Outstanding at the End of the Financial Year","Reserved Buffer Collateral","Currency of Exposure","Nature of Collateral ","Average Collateral Rating ","Amount of Collateral","Additional Comments (Optional/If Necessary)"]
[1,{"$f":"Import!E3723","v":0},{"$f":"Import!E3748","v":0},{"$f":"Import!E3773","v":"Select from Drop Down"},{"$f":"Import!E3798","v":"Select from Drop Down"},{"$f":"Import!E3823","v":"Select from Drop Down"},{"$f":"Import!E3848","v":0},{"$f":"Import!E3874","v":0},{"$f":"IF(Import!E3900=0,\"\",Import!E3900)","v":""},{"$f":"IF(Import!E3925=0,\"\",Import!E3925)","v":""},{"$f":"IF(Import!E3950=0,\"\",Import!E3950)","v":""},{"$f":"Import!E3975","v":0},{"$f":"Import!E4001","v":0},{"$f":"Import!E4027","v":0},{"$f":"Import!E4053","v":0},{"$f":"Import!E4079","v":0},{"$f":"Import!E4105","v":0},{"$f":"Import!E4131","v":0},{"$f":"Import!E4157","v":"Select from Drop Down"},{"$f":"Import!E4182","v":"Select from Drop Down"},{"$f":"Import!E4207","v":"Select from Drop Down"},{"$f":"Import!E4232","v":0},{"$f":"Import!E4258","v":0}]
[{"$f":"A11+1","v":2},{"$f":"Import!E3724","v":0},{"$f":"Import!E3749","v":0},{"$f":"Import!E3774","v":"Select from Drop Down"},{"$f":"Import!E3799","v":"Select from Drop Down"},{"$f":"Import!E3824","v":"Select from Drop Down"},{"$f":"Import!E3849","v":0},{"$f":"Import!E3875","v":0},{"$f":"IF(Import!E3901=0,\"\",Import!E3901)","v":""},{"$f":"IF(Import!E3926=0,\"\",Import!E3926)","v":""},{"$f":"IF(Import!E3951=0,\"\",Import!E3951)","v":""},{"$f":"Import!E3976","v":0},{"$f":"Import!E4002","v":0},{"$f":"Import!E4028","v":0},{"$f":"Import!E4054","v":0},{"$f":"Import!E4080","v":0},{"$f":"Import!E4106","v":0},{"$f":"Import!E4132","v":0},{"$f":"Import!E4158","v":"Select from Drop Down"},{"$f":"Import!E4183","v":"Select from Drop Down"},{"$f":"Import!E4208","v":"Select from Drop Down"},{"$f":"Import!E4233","v":0},{"$f":"Import!E4259","v":0}]
[{"$f":"A12+1","v":3},{"$f":"Import!E3725","v":0},{"$f":"Import!E3750","v":0},{"$f":"Import!E3775","v":"Select from Drop Down"},{"$f":"Import!E3800","v":"Select from Drop Down"},{"$f":"Import!E3825","v":"Select from Drop Down"},{"$f":"Import!E3850","v":0},{"$f":"Import!E3876","v":0},{"$f":"IF(Import!E3902=0,\"\",Import!E3902)","v":""},{"$f":"IF(Import!E3927=0,\"\",Import!E3927)","v":""},{"$f":"IF(Import!E3952=0,\"\",Import!E3952)","v":""},{"$f":"Import!E3977","v":0},{"$f":"Import!E4003","v":0},{"$f":"Import!E4029","v":0},{"$f":"Import!E4055","v":0},{"$f":"Import!E4081","v":0},{"$f":"Import!E4107","v":0},{"$f":"Import!E4133","v":0},{"$f":"Import!E4159","v":"Select from Drop Down"},{"$f":"Import!E4184","v":"Select from Drop Down"},{"$f":"Import!E4209","v":"Select from Drop Down"},{"$f":"Import!E4234","v":0},{"$f":"Import!E4260","v":0}]
[4,{"$f":"Import!E3726","v":0},{"$f":"Import!E3751","v":0},{"$f":"Import!E3776","v":"Select from Drop Down"},{"$f":"Import!E3801","v":"Select from Drop Down"},{"$f":"Import!E3826","v":"Select from Drop Down"},{"$f":"Import!E3851","v":0},{"$f":"Import!E3877","v":0},{"$f":"IF(Import!E3903=0,\"\",Import!E3903)","v":""},{"$f":"IF(Import!E3928=0,\"\",Import!E3928)","v":""},{"$f":"IF(Import!E3953=0,\"\",Import!E3953)","v":""},{"$f":"Import!E3978","v":0},{"$f":"Import!E4004","v":0},{"$f":"Import!E4030","v":0},{"$f":"Import!E4056","v":0},{"$f":"Import!E4082","v":0},{"$f":"Import!E4108","v":0},{"$f":"Import!E4134","v":0},{"$f":"Import!E4160","v":"Select from Drop Down"},{"$f":"Import!E4185","v":"Select from Drop Down"},{"$f":"Import!E4210","v":"Select from Drop Down"},{"$f":"Import!E4235","v":0},{"$f":"Import!E4261","v":0}]
[5,{"$f":"Import!E3727","v":0},{"$f":"Import!E3752","v":0},{"$f":"Import!E3777","v":"Select from Drop Down"},{"$f":"Import!E3802","v":"Select from Drop Down"},{"$f":"Import!E3827","v":"Select from Drop Down"},{"$f":"Import!E3852","v":0},{"$f":"Import!E3878","v":0},{"$f":"IF(Import!E3904=0,\"\",Import!E3904)","v":""},{"$f":"IF(Import!E3929=0,\"\",Import!E3929)","v":""},{"$f":"IF(Import!E3954=0,\"\",Import!E3954)","v":""},{"$f":"Import!E3979","v":0},{"$f":"Import!E4005","v":0},{"$f":"Import!E4031","v":0},{"$f":"Import!E4057","v":0},{"$f":"Import!E4083","v":0},{"$f":"Import!E4109","v":0},{"$f":"Import!E4135","v":0},{"$f":"Import!E4161","v":"Select from Drop Down"},{"$f":"Import!E4186","v":"Select from Drop Down"},{"$f":"Import!E4211","v":"Select from Drop Down"},{"$f":"Import!E4236","v":0},{"$f":"Import!E4262","v":0}]
[6,{"$f":"Import!E3728","v":0},{"$f":"Import!E3753","v":0},{"$f":"Import!E3778","v":"Select from Drop Down"},{"$f":"Import!E3803","v":"Select from Drop Down"},{"$f":"Import!E3828","v":"Select from Drop Down"},{"$f":"Import!E3853","v":0},{"$f":"Import!E3879","v":0},{"$f":"IF(Import!E3905=0,\"\",Import!E3905)","v":""},{"$f":"IF(Import!E3930=0,\"\",Import!E3930)","v":""},{"$f":"IF(Import!E3955=0,\"\",Import!E3955)","v":""},{"$f":"Import!E3980","v":0},{"$f":"Import!E4006","v":0},{"$f":"Import!E4032","v":0},{"$f":"Import!E4058","v":0},{"$f":"Import!E4084","v":0},{"$f":"Import!E4110","v":0},{"$f":"Import!E4136","v":0},{"$f":"Import!E4162","v":"Select from Drop Down"},{"$f":"Import!E4187","v":"Select from Drop Down"},{"$f":"Import!E4212","v":"Select from Drop Down"},{"$f":"Import!E4237","v":0},{"$f":"Import!E4263","v":0}]
[7,{"$f":"Import!E3729","v":0},{"$f":"Import!E3754","v":0},{"$f":"Import!E3779","v":"Select from Drop Down"},{"$f":"Import!E3804","v":"Select from Drop Down"},{"$f":"Import!E3829","v":"Select from Drop Down"},{"$f":"Import!E3854","v":0},{"$f":"Import!E3880","v":0},{"$f":"IF(Import!E3906=0,\"\",Import!E3906)","v":""},{"$f":"IF(Import!E3931=0,\"\",Import!E3931)","v":""},{"$f":"IF(Import!E3956=0,\"\",Import!E3956)","v":""},{"$f":"Import!E3981","v":0},{"$f":"Import!E4007","v":0},{"$f":"Import!E4033","v":0},{"$f":"Import!E4059","v":0},{"$f":"Import!E4085","v":0},{"$f":"Import!E4111","v":0},{"$f":"Import!E4137","v":0},{"$f":"Import!E4163","v":"Select from Drop Down"},{"$f":"Import!E4188","v":"Select from Drop Down"},{"$f":"Import!E4213","v":"Select from Drop Down"},{"$f":"Import!E4238","v":0},{"$f":"Import!E4264","v":0}]
[8,{"$f":"Import!E3730","v":0},{"$f":"Import!E3755","v":0},{"$f":"Import!E3780","v":"Select from Drop Down"},{"$f":"Import!E3805","v":"Select from Drop Down"},{"$f":"Import!E3830","v":"Select from Drop Down"},{"$f":"Import!E3855","v":0},{"$f":"Import!E3881","v":0},{"$f":"IF(Import!E3907=0,\"\",Import!E3907)","v":""},{"$f":"IF(Import!E3932=0,\"\",Import!E3932)","v":""},{"$f":"IF(Import!E3957=0,\"\",Import!E3957)","v":""},{"$f":"Import!E3982","v":0},{"$f":"Import!E4008","v":0},{"$f":"Import!E4034","v":0},{"$f":"Import!E4060","v":0},{"$f":"Import!E4086","v":0},{"$f":"Import!E4112","v":0},{"$f":"Import!E4138","v":0},{"$f":"Import!E4164","v":"Select from Drop Down"},{"$f":"Import!E4189","v":"Select from Drop Down"},{"$f":"Import!E4214","v":"Select from Drop Down"},{"$f":"Import!E4239","v":0},{"$f":"Import!E4265","v":0}]
[9,{"$f":"Import!E3731","v":0},{"$f":"Import!E3756","v":0},{"$f":"Import!E3781","v":"Select from Drop Down"},{"$f":"Import!E3806","v":"Select from Drop Down"},{"$f":"Import!E3831","v":"Select from Drop Down"},{"$f":"Import!E3856","v":0},{"$f":"Import!E3882","v":0},{"$f":"IF(Import!E3908=0,\"\",Import!E3908)","v":""},{"$f":"IF(Import!E3933=0,\"\",Import!E3933)","v":""},{"$f":"IF(Import!E3958=0,\"\",Import!E3958)","v":""},{"$f":"Import!E3983","v":0},{"$f":"Import!E4009","v":0},{"$f":"Import!E4035","v":0},{"$f":"Import!E4061","v":0},{"$f":"Import!E4087","v":0},{"$f":"Import!E4113","v":0},{"$f":"Import!E4139","v":0},{"$f":"Import!E4165","v":"Select from Drop Down"},{"$f":"Import!E4190","v":"Select from Drop Down"},{"$f":"Import!E4215","v":"Select from Drop Down"},{"$f":"Import!E4240","v":0},{"$f":"Import!E4266","v":0}]
[10,{"$f":"Import!E3732","v":0},{"$f":"Import!E3757","v":0},{"$f":"Import!E3782","v":"Select from Drop Down"},{"$f":"Import!E3807","v":"Select from Drop Down"},{"$f":"Import!E3832","v":"Select from Drop Down"},{"$f":"Import!E3857","v":0},{"$f":"Import!E3883","v":0},{"$f":"IF(Import!E3909=0,\"\",Import!E3909)","v":""},{"$f":"IF(Import!E3934=0,\"\",Import!E3934)","v":""},{"$f":"IF(Import!E3959=0,\"\",Import!E3959)","v":""},{"$f":"Import!E3984","v":0},{"$f":"Import!E4010","v":0},{"$f":"Import!E4036","v":0},{"$f":"Import!E4062","v":0},{"$f":"Import!E4088","v":0},{"$f":"Import!E4114","v":0},{"$f":"Import!E4140","v":0},{"$f":"Import!E4166","v":"Select from Drop Down"},{"$f":"Import!E4191","v":"Select from Drop Down"},{"$f":"Import!E4216","v":"Select from Drop Down"},{"$f":"Import!E4241","v":0},{"$f":"Import!E4267","v":0}]
[11,{"$f":"Import!E3733","v":0},{"$f":"Import!E3758","v":0},{"$f":"Import!E3783","v":"Select from Drop Down"},{"$f":"Import!E3808","v":"Select from Drop Down"},{"$f":"Import!E3833","v":"Select from Drop Down"},{"$f":"Import!E3858","v":0},{"$f":"Import!E3884","v":0},{"$f":"IF(Import!E3910=0,\"\",Import!E3910)","v":""},{"$f":"IF(Import!E3935=0,\"\",Import!E3935)","v":""},{"$f":"IF(Import!E3960=0,\"\",Import!E3960)","v":""},{"$f":"Import!E3985","v":0},{"$f":"Import!E4011","v":0},{"$f":"Import!E4037","v":0},{"$f":"Import!E4063","v":0},{"$f":"Import!E4089","v":0},{"$f":"Import!E4115","v":0},{"$f":"Import!E4141","v":0},{"$f":"Import!E4167","v":"Select from Drop Down"},{"$f":"Import!E4192","v":"Select from Drop Down"},{"$f":"Import!E4217","v":"Select from Drop Down"},{"$f":"Import!E4242","v":0},{"$f":"Import!E4268","v":0}]
[12,{"$f":"Import!E3734","v":0},{"$f":"Import!E3759","v":0},{"$f":"Import!E3784","v":"Select from Drop Down"},{"$f":"Import!E3809","v":"Select from Drop Down"},{"$f":"Import!E3834","v":"Select from Drop Down"},{"$f":"Import!E3859","v":0},{"$f":"Import!E3885","v":0},{"$f":"IF(Import!E3911=0,\"\",Import!E3911)","v":""},{"$f":"IF(Import!E3936=0,\"\",Import!E3936)","v":""},{"$f":"IF(Import!E3961=0,\"\",Import!E3961)","v":""},{"$f":"Import!E3986","v":0},{"$f":"Import!E4012","v":0},{"$f":"Import!E4038","v":0},{"$f":"Import!E4064","v":0},{"$f":"Import!E4090","v":0},{"$f":"Import!E4116","v":0},{"$f":"Import!E4142","v":0},{"$f":"Import!E4168","v":"Select from Drop Down"},{"$f":"Import!E4193","v":"Select from Drop Down"},{"$f":"Import!E4218","v":"Select from Drop Down"},{"$f":"Import!E4243","v":0},{"$f":"Import!E4269","v":0}]
[13,{"$f":"Import!E3735","v":0},{"$f":"Import!E3760","v":0},{"$f":"Import!E3785","v":"Select from Drop Down"},{"$f":"Import!E3810","v":"Select from Drop Down"},{"$f":"Import!E3835","v":"Select from Drop Down"},{"$f":"Import!E3860","v":0},{"$f":"Import!E3886","v":0},{"$f":"IF(Import!E3912=0,\"\",Import!E3912)","v":""},{"$f":"IF(Import!E3937=0,\"\",Import!E3937)","v":""},{"$f":"IF(Import!E3962=0,\"\",Import!E3962)","v":""},{"$f":"Import!E3987","v":0},{"$f":"Import!E4013","v":0},{"$f":"Import!E4039","v":0},{"$f":"Import!E4065","v":0},{"$f":"Import!E4091","v":0},{"$f":"Import!E4117","v":0},{"$f":"Import!E4143","v":0},{"$f":"Import!E4169","v":"Select from Drop Down"},{"$f":"Import!E4194","v":"Select from Drop Down"},{"$f":"Import!E4219","v":"Select from Drop Down"},{"$f":"Import!E4244","v":0},{"$f":"Import!E4270","v":0}]
[14,{"$f":"Import!E3736","v":0},{"$f":"Import!E3761","v":0},{"$f":"Import!E3786","v":"Select from Drop Down"},{"$f":"Import!E3811","v":"Select from Drop Down"},{"$f":"Import!E3836","v":"Select from Drop Down"},{"$f":"Import!E3861","v":0},{"$f":"Import!E3887","v":0},{"$f":"IF(Import!E3913=0,\"\",Import!E3913)","v":""},{"$f":"IF(Import!E3938=0,\"\",Import!E3938)","v":""},{"$f":"IF(Import!E3963=0,\"\",Import!E3963)","v":""},{"$f":"Import!E3988","v":0},{"$f":"Import!E4014","v":0},{"$f":"Import!E4040","v":0},{"$f":"Import!E4066","v":0},{"$f":"Import!E4092","v":0},{"$f":"Import!E4118","v":0},{"$f":"Import!E4144","v":0},{"$f":"Import!E4170","v":"Select from Drop Down"},{"$f":"Import!E4195","v":"Select from Drop Down"},{"$f":"Import!E4220","v":"Select from Drop Down"},{"$f":"Import!E4245","v":0},{"$f":"Import!E4271","v":0}]
[15,{"$f":"Import!E3737","v":0},{"$f":"Import!E3762","v":0},{"$f":"Import!E3787","v":"Select from Drop Down"},{"$f":"Import!E3812","v":"Select from Drop Down"},{"$f":"Import!E3837","v":"Select from Drop Down"},{"$f":"Import!E3862","v":0},{"$f":"Import!E3888","v":0},{"$f":"IF(Import!E3914=0,\"\",Import!E3914)","v":""},{"$f":"IF(Import!E3939=0,\"\",Import!E3939)","v":""},{"$f":"IF(Import!E3964=0,\"\",Import!E3964)","v":""},{"$f":"Import!E3989","v":0},{"$f":"Import!E4015","v":0},{"$f":"Import!E4041","v":0},{"$f":"Import!E4067","v":0},{"$f":"Import!E4093","v":0},{"$f":"Import!E4119","v":0},{"$f":"Import!E4145","v":0},{"$f":"Import!E4171","v":"Select from Drop Down"},{"$f":"Import!E4196","v":"Select from Drop Down"},{"$f":"Import!E4221","v":"Select from Drop Down"},{"$f":"Import!E4246","v":0},{"$f":"Import!E4272","v":0}]
[16,{"$f":"Import!E3738","v":0},{"$f":"Import!E3763","v":0},{"$f":"Import!E3788","v":"Select from Drop Down"},{"$f":"Import!E3813","v":"Select from Drop Down"},{"$f":"Import!E3838","v":"Select from Drop Down"},{"$f":"Import!E3863","v":0},{"$f":"Import!E3889","v":0},{"$f":"IF(Import!E3915=0,\"\",Import!E3915)","v":""},{"$f":"IF(Import!E3940=0,\"\",Import!E3940)","v":""},{"$f":"IF(Import!E3965=0,\"\",Import!E3965)","v":""},{"$f":"Import!E3990","v":0},{"$f":"Import!E4016","v":0},{"$f":"Import!E4042","v":0},{"$f":"Import!E4068","v":0},{"$f":"Import!E4094","v":0},{"$f":"Import!E4120","v":0},{"$f":"Import!E4146","v":0},{"$f":"Import!E4172","v":"Select from Drop Down"},{"$f":"Import!E4197","v":"Select from Drop Down"},{"$f":"Import!E4222","v":"Select from Drop Down"},{"$f":"Import!E4247","v":0},{"$f":"Import!E4273","v":0}]
[17,{"$f":"Import!E3739","v":0},{"$f":"Import!E3764","v":0},{"$f":"Import!E3789","v":"Select from Drop Down"},{"$f":"Import!E3814","v":"Select from Drop Down"},{"$f":"Import!E3839","v":"Select from Drop Down"},{"$f":"Import!E3864","v":0},{"$f":"Import!E3890","v":0},{"$f":"IF(Import!E3916=0,\"\",Import!E3916)","v":""},{"$f":"IF(Import!E3941=0,\"\",Import!E3941)","v":""},{"$f":"IF(Import!E3966=0,\"\",Import!E3966)","v":""},{"$f":"Import!E3991","v":0},{"$f":"Import!E4017","v":0},{"$f":"Import!E4043","v":0},{"$f":"Import!E4069","v":0},{"$f":"Import!E4095","v":0},{"$f":"Import!E4121","v":0},{"$f":"Import!E4147","v":0},{"$f":"Import!E4173","v":"Select from Drop Down"},{"$f":"Import!E4198","v":"Select from Drop Down"},{"$f":"Import!E4223","v":"Select from Drop Down"},{"$f":"Import!E4248","v":0},{"$f":"Import!E4274","v":0}]
[18,{"$f":"Import!E3740","v":0},{"$f":"Import!E3765","v":0},{"$f":"Import!E3790","v":"Select from Drop Down"},{"$f":"Import!E3815","v":"Select from Drop Down"},{"$f":"Import!E3840","v":"Select from Drop Down"},{"$f":"Import!E3865","v":0},{"$f":"Import!E3891","v":0},{"$f":"IF(Import!E3917=0,\"\",Import!E3917)","v":""},{"$f":"IF(Import!E3942=0,\"\",Import!E3942)","v":""},{"$f":"IF(Import!E3967=0,\"\",Import!E3967)","v":""},{"$f":"Import!E3992","v":0},{"$f":"Import!E4018","v":0},{"$f":"Import!E4044","v":0},{"$f":"Import!E4070","v":0},{"$f":"Import!E4096","v":0},{"$f":"Import!E4122","v":0},{"$f":"Import!E4148","v":0},{"$f":"Import!E4174","v":"Select from Drop Down"},{"$f":"Import!E4199","v":"Select from Drop Down"},{"$f":"Import!E4224","v":"Select from Drop Down"},{"$f":"Import!E4249","v":0},{"$f":"Import!E4275","v":0}]
[19,{"$f":"Import!E3741","v":0},{"$f":"Import!E3766","v":0},{"$f":"Import!E3791","v":"Select from Drop Down"},{"$f":"Import!E3816","v":"Select from Drop Down"},{"$f":"Import!E3841","v":"Select from Drop Down"},{"$f":"Import!E3866","v":0},{"$f":"Import!E3892","v":0},{"$f":"IF(Import!E3918=0,\"\",Import!E3918)","v":""},{"$f":"IF(Import!E3943=0,\"\",Import!E3943)","v":""},{"$f":"IF(Import!E3968=0,\"\",Import!E3968)","v":""},{"$f":"Import!E3993","v":0},{"$f":"Import!E4019","v":0},{"$f":"Import!E4045","v":0},{"$f":"Import!E4071","v":0},{"$f":"Import!E4097","v":0},{"$f":"Import!E4123","v":0},{"$f":"Import!E4149","v":0},{"$f":"Import!E4175","v":"Select from Drop Down"},{"$f":"Import!E4200","v":"Select from Drop Down"},{"$f":"Import!E4225","v":"Select from Drop Down"},{"$f":"Import!E4250","v":0},{"$f":"Import!E4276","v":0}]
[20,{"$f":"Import!E3742","v":0},{"$f":"Import!E3767","v":0},{"$f":"Import!E3792","v":"Select from Drop Down"},{"$f":"Import!E3817","v":"Select from Drop Down"},{"$f":"Import!E3842","v":"Select from Drop Down"},{"$f":"Import!E3867","v":0},{"$f":"Import!E3893","v":0},{"$f":"IF(Import!E3919=0,\"\",Import!E3919)","v":""},{"$f":"IF(Import!E3944=0,\"\",Import!E3944)","v":""},{"$f":"IF(Import!E3969=0,\"\",Import!E3969)","v":""},{"$f":"Import!E3994","v":0},{"$f":"Import!E4020","v":0},{"$f":"Import!E4046","v":0},{"$f":"Import!E4072","v":0},{"$f":"Import!E4098","v":0},{"$f":"Import!E4124","v":0},{"$f":"Import!E4150","v":0},{"$f":"Import!E4176","v":"Select from Drop Down"},{"$f":"Import!E4201","v":"Select from Drop Down"},{"$f":"Import!E4226","v":"Select from Drop Down"},{"$f":"Import!E4251","v":0},{"$f":"Import!E4277","v":0}]
[21,{"$f":"Import!E3743","v":0},{"$f":"Import!E3768","v":0},{"$f":"Import!E3793","v":"Select from Drop Down"},{"$f":"Import!E3818","v":"Select from Drop Down"},{"$f":"Import!E3843","v":"Select from Drop Down"},{"$f":"Import!E3868","v":0},{"$f":"Import!E3894","v":0},{"$f":"IF(Import!E3920=0,\"\",Import!E3920)","v":""},{"$f":"IF(Import!E3945=0,\"\",Import!E3945)","v":""},{"$f":"IF(Import!E3970=0,\"\",Import!E3970)","v":""},{"$f":"Import!E3995","v":0},{"$f":"Import!E4021","v":0},{"$f":"Import!E4047","v":0},{"$f":"Import!E4073","v":0},{"$f":"Import!E4099","v":0},{"$f":"Import!E4125","v":0},{"$f":"Import!E4151","v":0},{"$f":"Import!E4177","v":"Select from Drop Down"},{"$f":"Import!E4202","v":"Select from Drop Down"},{"$f":"Import!E4227","v":"Select from Drop Down"},{"$f":"Import!E4252","v":0},{"$f":"Import!E4278","v":0}]
[22,{"$f":"Import!E3744","v":0},{"$f":"Import!E3769","v":0},{"$f":"Import!E3794","v":"Select from Drop Down"},{"$f":"Import!E3819","v":"Select from Drop Down"},{"$f":"Import!E3844","v":"Select from Drop Down"},{"$f":"Import!E3869","v":0},{"$f":"Import!E3895","v":0},{"$f":"IF(Import!E3921=0,\"\",Import!E3921)","v":""},{"$f":"IF(Import!E3946=0,\"\",Import!E3946)","v":""},{"$f":"IF(Import!E3971=0,\"\",Import!E3971)","v":""},{"$f":"Import!E3996","v":0},{"$f":"Import!E4022","v":0},{"$f":"Import!E4048","v":0},{"$f":"Import!E4074","v":0},{"$f":"Import!E4100","v":0},{"$f":"Import!E4126","v":0},{"$f":"Import!E4152","v":0},{"$f":"Import!E4178","v":"Select from Drop Down"},{"$f":"Import!E4203","v":"Select from Drop Down"},{"$f":"Import!E4228","v":"Select from Drop Down"},{"$f":"Import!E4253","v":0},{"$f":"Import!E4279","v":0}]
[23,{"$f":"Import!E3745","v":0},{"$f":"Import!E3770","v":0},{"$f":"Import!E3795","v":"Select from Drop Down"},{"$f":"Import!E3820","v":"Select from Drop Down"},{"$f":"Import!E3845","v":"Select from Drop Down"},{"$f":"Import!E3870","v":0},{"$f":"Import!E3896","v":0},{"$f":"IF(Import!E3922=0,\"\",Import!E3922)","v":""},{"$f":"IF(Import!E3947=0,\"\",Import!E3947)","v":""},{"$f":"IF(Import!E3972=0,\"\",Import!E3972)","v":""},{"$f":"Import!E3997","v":0},{"$f":"Import!E4023","v":0},{"$f":"Import!E4049","v":0},{"$f":"Import!E4075","v":0},{"$f":"Import!E4101","v":0},{"$f":"Import!E4127","v":0},{"$f":"Import!E4153","v":0},{"$f":"Import!E4179","v":"Select from Drop Down"},{"$f":"Import!E4204","v":"Select from Drop Down"},{"$f":"Import!E4229","v":"Select from Drop Down"},{"$f":"Import!E4254","v":0},{"$f":"Import!E4280","v":0}]
[24,{"$f":"Import!E3746","v":0},{"$f":"Import!E3771","v":0},{"$f":"Import!E3796","v":"Select from Drop Down"},{"$f":"Import!E3821","v":"Select from Drop Down"},{"$f":"Import!E3846","v":"Select from Drop Down"},{"$f":"Import!E3871","v":0},{"$f":"Import!E3897","v":0},{"$f":"IF(Import!E3923=0,\"\",Import!E3923)","v":""},{"$f":"IF(Import!E3948=0,\"\",Import!E3948)","v":""},{"$f":"IF(Import!E3973=0,\"\",Import!E3973)","v":""},{"$f":"Import!E3998","v":0},{"$f":"Import!E4024","v":0},{"$f":"Import!E4050","v":0},{"$f":"Import!E4076","v":0},{"$f":"Import!E4102","v":0},{"$f":"Import!E4128","v":0},{"$f":"Import!E4154","v":0},{"$f":"Import!E4180","v":"Select from Drop Down"},{"$f":"Import!E4205","v":"Select from Drop Down"},{"$f":"Import!E4230","v":"Select from Drop Down"},{"$f":"Import!E4255","v":0},{"$f":"Import!E4281","v":0}]
[25,{"$f":"Import!E3747","v":0},{"$f":"Import!E3772","v":0},{"$f":"Import!E3797","v":"Select from Drop Down"},{"$f":"Import!E3822","v":"Select from Drop Down"},{"$f":"Import!E3847","v":"Select from Drop Down"},{"$f":"Import!E3872","v":0},{"$f":"Import!E3898","v":0},{"$f":"IF(Import!E3924=0,\"\",Import!E3924)","v":""},{"$f":"IF(Import!E3949=0,\"\",Import!E3949)","v":""},{"$f":"IF(Import!E3974=0,\"\",Import!E3974)","v":""},{"$f":"Import!E3999","v":0},{"$f":"Import!E4025","v":0},{"$f":"Import!E4051","v":0},{"$f":"Import!E4077","v":0},{"$f":"Import!E4103","v":0},{"$f":"Import!E4129","v":0},{"$f":"Import!E4155","v":0},{"$f":"Import!E4181","v":"Select from Drop Down"},{"$f":"Import!E4206","v":"Select from Drop Down"},{"$f":"Import!E4231","v":"Select from Drop Down"},{"$f":"Import!E4256","v":0},{"$f":"Import!E4282","v":0}]
[26,null,null,"Select from Drop Down","Select from Drop Down","Select from Drop Down",null,null,null,null,null,null,null,null,null,null,null,null,"Select from Drop Down","Select from Drop Down","Select from Drop Down"]
[27,null,null,"Select from Drop Down","Select from Drop Down","Select from Drop Down",null,null,null,null,null,null,null,null,null,null,null,null,"Select from Drop Down","Select from Drop Down","Select from Drop Down"]
[28,null,null,"Select from Drop Down","Select from Drop Down","Select from Drop Down",null,null,null,null,null,null,null,null,null,null,null,null,"Select from Drop Down","Select from Drop Down","Select from Drop Down"]
[29,null,null,"Select from Drop Down","Select from Drop Down","Select from Drop Down",null,null,null,null,null,null,null,null,null,null,null,null,"Select from Drop Down","Select from Drop Down","Select from Drop Down"]
[30,null,null,"Select from Drop Down","Select from Drop Down","Select from Drop Down",null,null,null,null,null,null,null,null,null,null,null,null,"Select from Drop Down","Select from Drop Down","Select from Drop Down"]
[31,null,null,"Select from Drop Down","Select from Drop Down","Select from Drop Down",null,null,null,null,null,null,null,null,null,null,null,null,"Select from Drop Down","Select from Drop Down","Select from Drop Down"]
[32,null,null,"Select from Drop Down","Select from Drop Down","Select from Drop Down",null,null,null,null,null,null,null,null,null,null,null,null,"Select from Drop Down","Select from Drop Down","Select from Drop Down"]
[33,null,null,"Select from Drop Down","Select from Drop Down","Select from Drop Down",null,null,null,null,null,null,null,null,null,null,null,null,"Select from Drop Down","Select from Drop Down","Select from Drop Down"]
[34,null,null,"Select from Drop Down","Select from Drop Down","Select from Drop Down",null,null,null,null,null,null,null,null,null,null,null,null,"Select from Drop Down","Select from Drop Down","Select from Drop Down"]
[35,null,null,"Select from Drop Down","Select from Drop Down","Select from Drop Down",null,null,null,null,null,null,null,null,null,null,null,null,"Select from Drop Down","Select from Drop Down","Select from Drop Down"]
[36,null,null,"Select from Drop Down","Select from Drop Down","Select from Drop Down",null,null,null,null,null,null,null,null,null,null,null,null,"Select from Drop Down","Select from Drop Down","Select from Drop Down"]
[37,null,null,"Select from Drop Down","Select from Drop Down","Select from Drop Down",null,null,null,null,null,null,null,null,null,null,null,null,"Select from Drop Down","Select from Drop Down","Select from Drop Down"]
[38,null,null,"Select from Drop Down","Select from Drop Down","Select from Drop Down",null,null,null,null,null,null,null,null,null,null,null,null,"Select from Drop Down","Select from Drop Down","Select from Drop Down"]
[39,null,null,"Select from Drop Down","Select from Drop Down","Select from Drop Down",null,null,null,null,null,null,null,null,null,null,null,null,"Select from Drop Down","Select from Drop Down","Select from Drop Down"]
[40,null,null,"Select from Drop Down","Select from Drop Down","Select from Drop Down",null,null,null,null,null,null,null,null,null,null,null,null,"Select from Drop Down","Select from Drop Down","Select from Drop Down"]
[41,null,null,"Select from Drop Down","Select from Drop Down","Select from Drop Down",null,null,null,null,null,null,null,null,null,null,null,null,"Select from Drop Down","Select from Drop Down","Select from Drop Down"]
[42,null,null,"Select from Drop Down","Select from Drop Down","Select from Drop Down",null,null,null,null,null,null,null,null,null,null,null,null,"Select from Drop Down","Select from Drop Down","Select from Drop Down"]
[43,null,null,"Select from Drop Down","Select from Drop Down","Select from Drop Down",null,null,null,null,null,null,null,null,null,null,null,null,"Select from Drop Down","Select from Drop Down","Select from Drop Down"]
[44,null,null,"Select from Drop Down","Select from Drop Down","Select from Drop Down",null,null,null,null,null,null,null,null,null,null,null,null,"Select from Drop Down","Select from Drop Down","Select from Drop Down"]
[45,null,null,"Select from Drop Down","Select from Drop Down","Select from Drop Down",null,null,null,null,null,null,null,null,null,null,null,null,"Select from Drop Down","Select from Drop Down","Select from Drop Down"]
[46,null,null,"Select from Drop Down","Select from Drop Down","Select from Drop Down",null,null,null,null,null,null,null,null,null,null,null,null,"Select from Drop Down","Select from Drop Down","Select from Drop Down"]
[47,null,null,"Select from Drop Down","Select from Drop Down","Select from Drop Down",null,null,null,null,null,null,null,null,null,null,null,null,"Select from Drop Down","Select from Drop Down","Select from Drop Down"]
[48,null,null,"Select from Drop Down","Select from Drop Down","Select from Drop Down",null,null,null,null,null,null,null,null,null,null,null,null,"Select from Drop Down","Select from Drop Down","Select from Drop Down"]
[49,null,null,"Select from Drop Down","Select from Drop Down","Select from Drop Down",null,null,null,null,null,null,null,null,null,null,null,null,"Select from Drop Down","Select from Drop Down","Select from Drop Down"]
[50,null,null,"Select from Drop Down","Select from Drop Down","Select from Drop Down",null,null,null,null,null,null,null,null,null,null,null,null,"Select from Drop Down","Select from Drop Down","Select from Drop Down"]
[51,null,null,"Select from Drop Down","Select from Drop Down","Select from Drop Down",null,null,null,null,null,null,null,null,null,null,null,null,"Select from Drop Down","Select from Drop Down","Select from Drop Down"]
[52,null,null,"Select from Drop Down","Select from Drop Down","Select from Drop Down",null,null,null,null,null,null,null,null,null,null,null,null,"Select from Drop Down","Select from Drop Down","Select from Drop Down"]
[53,null,null,"Select from Drop Down","Select from Drop Down","Select from Drop Down",null,null,null,null,null,null,null,null,null,null,null,null,"Select from Drop Down","Select from Drop Down","Select from Drop Down"]
[54,null,null,"Select from Drop Down","Select from Drop Down","Select from Drop Down",null,null,null,null,null,null,null,null,null,null,null,null,"Select from Drop Down","Select from Drop Down","Select from Drop Down"]
[55,null,null,"Select from Drop Down","Select from Drop Down","Select from Drop Down",null,null,null,null,null,null,null,null,null,null,null,null,"Select from Drop Down","Select from Drop Down","Select from Drop Down"]
[56,null,null,"Select from Drop Down","Select from Drop Down","Select from Drop Down",null,null,null,null,null,null,null,null,null,null,null,null,"Select from Drop Down","Select from Drop Down","Select from Drop Down"]
[57,null,null,"Select from Drop Down","Select from Drop Down","Select from Drop Down",null,null,null,null,null,null,null,null,null,null,null,null,"Select from Drop Down","Select from Drop Down","Select from Drop Down"]
[58,null,null,"Select from Drop Down","Select from Drop Down","Select from Drop Down",null,null,null,null,null,null,null,null,null,null,null,null,"Select from Drop Down","Select from Drop Down","Select from Drop Down"]
[59,null,null,"Select from Drop Down","Select from Drop Down","Select from Drop Down",null,null,null,null,null,null,null,null,null,null,null,null,"Select from Drop Down","Select from Drop Down","Select from Drop Down"]
[60,null,null,"Select from Drop Down","Select from Drop Down","Select from Drop Down",null,null,null,null,null,null,null,null,null,null,null,null,"Select from Drop Down","Select from Drop Down","Select from Drop Down"]
[61,null,null,"Select from Drop Down","Select from Drop Down","Select from Drop Down",null,null,null,null,null,null,null,null,null,null,null,null,"Select from Drop Down","Select from Drop Down","Select from Drop Down"]
[62,null,null,"Select from Drop Down","Select from Drop Down","Select from Drop Down",null,null,null,null,null,null,null,null,null,null,null,null,"Select from Drop Down","Select from Drop Down","Select from Drop Down"]
[63,null,null,"Select from Drop Down","Select from Drop Down","Select from Drop Down",null,null,null,null,null,null,null,null,null,null,null,null,"Select from Drop Down","Select from Drop Down","Select from Drop Down"]
[64,null,null,"Select from Drop Down","Select from Drop Down","Select from Drop Down",null,null,null,null,null,null,null,null,null,null,null,null,"Select from Drop Down","Select from Drop Down","Select from Drop Down"]
[65,null,null,"Select from Drop Down","Select from Drop Down","Select from Drop Down",null,null,null,null,null,null,null,null,null,null,null,null,"Select from Drop Down","Select from Drop Down","Select from Drop Down"]
[66,null,null,"Select from Drop Down","Select from Drop Down","Select from Drop Down",null,null,null,null,null,null,null,null,null,null,null,null,"Select from Drop Down","Select from Drop Down","Select from Drop Down"]
[{"$f":"A76+1","v":67},null,null,"Select from Drop Down","Select from Drop Down","Select from Drop Down",null,null,null,null,null,null,null,null,null,null,null,null,"Select from Drop Down","Select from Drop Down","Select from Drop Down"]
[68,null,null,"Select from Drop Down","Select from Drop Down","Select from Drop Down",null,null,null,null,null,null,null,null,null,null,null,null,"Select from Drop Down","Select from Drop Down","Select from Drop Down"]
[69,null,null,"Select from Drop Down","Select from Drop Down","Select from Drop Down",null,null,null,null,null,null,null,null,null,null,null,null,"Select from Drop Down","Select from Drop Down","Select from Drop Down"]
[70,null,null,"Select from Drop Down","Select from Drop Down","Select from Drop Down",null,null,null,null,null,null,null,null,null,null,null,null,"Select from Drop Down","Select from Drop Down","Select from Drop Down"]
[71,null,null,"Select from Drop Down","Select from Drop Down","Select from Drop Down",null,null,null,null,null,null,null,null,null,null,null,null,"Select from Drop Down","Select from Drop Down","Select from Drop Down"]
[72,null,null,"Select from Drop Down","Select from Drop Down","Select from Drop Down",null,null,null,null,null,null,null,null,null,null,null,null,"Select from Drop Down","Select from Drop Down","Select from Drop Down"]
[73,null,null,"Select from Drop Down","Select from Drop Down","Select from Drop Down",null,null,null,null,null,null,null,null,null,null,null,null,"Select from Drop Down","Select from Drop Down","Select from Drop Down"]
[74,null,null,"Select from Drop Down","Select from Drop Down","Select from Drop Down",null,null,null,null,null,null,null,null,null,null,null,null,"Select from Drop Down","Select from Drop Down","Select from Drop Down"]
[75,null,null,"Select from Drop Down","Select from Drop Down","Select from Drop Down",null,null,null,null,null,null,null,null,null,null,null,null,"Select from Drop Down","Select from Drop Down","Select from Drop Down"]
[76,null,null,"Select from Drop Down","Select from Drop Down","Select from Drop Down",null,null,null,null,null,null,null,null,null,null,null,null,"Select from Drop Down","Select from Drop Down","Select from Drop Down"]
[77,null,null,"Select from Drop Down","Select from Drop Down","Select from Drop Down",null,null,null,null,null,null,null,null,null,null,null,null,"Select from Drop Down","Select from Drop Down","Select from Drop Down"]
[78,null,null,"Select from Drop Down","Select from Drop Down","Select from Drop Down",null,null,null,null,null,null,null,null,null,null,null,null,"Select from Drop Down","Select from Drop Down","Select from Drop Down"]
[79,null,null,"Select from Drop Down","Select from Drop Down","Select from Drop Down",null,null,null,null,null,null,null,null,null,null,null,null,"Select from Drop Down","Select from Drop Down","Select from Drop Down"]
[80,null,null,"Select from Drop Down","Select from Drop Down","Select from Drop Down",null,null,null,null,null,null,null,null,null,null,null,null,"Select from Drop Down","Select from Drop Down","Select from Drop Down"]
[81,null,null,"Select from Drop Down","Select from Drop Down","Select from Drop Down",null,null,null,null,null,null,null,null,null,null,null,null,"Select from Drop Down","Select from Drop Down","Select from Drop Down"]
[82,null,null,"Select from Drop Down","Select from Drop Down","Select from Drop Down",null,null,null,null,null,null,null,null,null,null,null,null,"Select from Drop Down","Select from Drop Down","Select from Drop Down"]
[83,null,null,"Select from Drop Down","Select from Drop Down","Select from Drop Down",null,null,null,null,null,null,null,null,null,null,null,null,"Select from Drop Down","Select from Drop Down","Select from Drop Down"]
[84,null,null,"Select from Drop Down","Select from Drop Down","Select from Drop Down",null,null,null,null,null,null,null,null,null,null,null,null,"Select from Drop Down","Select from Drop Down","Select from Drop Down"]
[85,null,null,"Select from Drop Down","Select from Drop Down","Select from Drop Down",null,null,null,null,null,null,null,null,null,null,null,null,"Select from Drop Down","Select from Drop Down","Select from Drop Down"]
[86,null,null,"Select from Drop Down","Select from Drop Down","Select from Drop Down",null,null,null,null,null,null,null,null,null,null,null,null,"Select from Drop Down","Select from Drop Down","Select from Drop Down"]
[87,null,null,"Select from Drop Down","Select from Drop Down","Select from Drop Down",null,null,null,null,null,null,null,null,null,null,null,null,"Select from Drop Down","Select from Drop Down","Select from Drop Down"]
[88,null,null,"Select from Drop Down","Select from Drop Down","Select from Drop Down",null,null,null,null,null,null,null,null,null,null,null,null,"Select from Drop Down","Select from Drop Down","Select from Drop Down"]
[89,null,null,"Select from Drop Down","Select from Drop Down","Select from Drop Down",null,null,null,null,null,null,null,null,null,null,null,null,"Select from Drop Down","Select from Drop Down","Select from Drop Down"]
[90,null,null,"Select from Drop Down","Select from Drop Down","Select from Drop Down",null,null,null,null,null,null,null,null,null,null,null,null,"Select from Drop Down","Select from Drop Down","Select from Drop Down"]
[91,null,null,"Select from Drop Down","Select from Drop Down","Select from Drop Down",null,null,null,null,null,null,null,null,null,null,null,null,"Select from Drop Down","Select from Drop Down","Select from Drop Down"]
[92,null,null,"Select from Drop Down","Select from Drop Down","Select from Drop Down",null,null,null,null,null,null,null,null,null,null,null,null,"Select from Drop Down","Select from Drop Down","Select from Drop Down"]
[93,null,null,"Select from Drop Down","Select from Drop Down","Select from Drop Down",null,null,null,null,null,null,null,null,null,null,null,null,"Select from Drop Down","Select from Drop Down","Select from Drop Down"]
[94,null,null,"Select from Drop Down","Select from Drop Down","Select from Drop Down",null,null,null,null,null,null,null,null,null,null,null,null,"Select from Drop Down","Select from Drop Down","Select from Drop Down"]
[95,null,null,"Select from Drop Down","Select from Drop Down","Select from Drop Down",null,null,null,null,null,null,null,null,null,null,null,null,"Select from Drop Down","Select from Drop Down","Select from Drop Down"]
[96,null,null,"Select from Drop Down","Select from Drop Down","Select from Drop Down",null,null,null,null,null,null,null,null,null,null,null,null,"Select from Drop Down","Select from Drop Down","Select from Drop Down"]
[97,null,null,"Select from Drop Down","Select from Drop Down","Select from Drop Down",null,null,null,null,null,null,null,null,null,null,null,null,"Select from Drop Down","Select from Drop Down","Select from Drop Down"]
[98,null,null,"Select from Drop Down","Select from Drop Down","Select from Drop Down",null,null,null,null,null,null,null,null,null,null,null,null,"Select from Drop Down","Select from Drop Down","Select from Drop Down"]
[99,null,null,"Select from Drop Down","Select from Drop Down","Select from Drop Down",null,null,null,null,null,null,null,null,null,null,null,null,"Select from Drop Down","Select from Drop Down","Select from Drop Down"]
[100,null,null,"Select from Drop Down","Select from Drop Down","Select from Drop Down",null,null,null,null,null,null,null,null,null,null,null,null,"Select from Drop Down","Select from Drop Down","Select from Drop Down"]
[101,null,null,"Select from Drop Down","Select from Drop Down","Select from Drop Down",null,null,null,null,null,null,null,null,null,null,null,null,"Select from Drop Down","Select from Drop Down","Select from Drop Down"]
[102,null,null,"Select from Drop Down","Select from Drop Down","Select from Drop Down",null,null,null,null,null,null,null,null,null,null,null,null,"Select from Drop Down","Select from Drop Down","Select from Drop Down"]
[103,null,null,"Select from Drop Down","Select from Drop Down","Select from Drop Down",null,null,null,null,null,null,null,null,null,null,null,null,"Select from Drop Down","Select from Drop Down","Select from Drop Down"]
[104,null,null,"Select from Drop Down","Select from Drop Down","Select from Drop Down",null,null,null,null,null,null,null,null,null,null,null,null,"Select from Drop Down","Select from Drop Down","Select from Drop Down"]
[105,null,null,"Select from Drop Down","Select from Drop Down","Select from Drop Down",null,null,null,null,null,null,null,null,null,null,null,null,"Select from Drop Down","Select from Drop Down","Select from Drop Down"]
[106,null,null,"Select from Drop Down","Select from Drop Down","Select from Drop Down",null,null,null,null,null,null,null,null,null,null,null,null,"Select from Drop Down","Select from Drop Down","Select from Drop Down"]
[107,null,null,"Select from Drop Down","Select from Drop Down","Select from Drop Down",null,null,null,null,null,null,null,null,null,null,null,null,"Select from Drop Down","Select from Drop Down","Select from Drop Down"]
[108,null,null,"Select from Drop Down","Select from Drop Down","Select from Drop Down",null,null,null,null,null,null,null,null,null,null,null,null,"Select from Drop Down","Select from Drop Down","Select from Drop Down"]
[109,null,null,"Select from Drop Down","Select from Drop Down","Select from Drop Down",null,null,null,null,null,null,null,null,null,null,null,null,"Select from Drop Down","Select from Drop Down","Select from Drop Down"]
[110,null,null,"Select from Drop Down","Select from Drop Down","Select from Drop Down",null,null,null,null,null,null,null,null,null,null,null,null,"Select from Drop Down","Select from Drop Down","Select from Drop Down"]
[111,null,null,"Select from Drop Down","Select from Drop Down","Select from Drop Down",null,null,null,null,null,null,null,null,null,null,null,null,"Select from Drop Down","Select from Drop Down","Select from Drop Down"]
[112,null,null,"Select from Drop Down","Select from Drop Down","Select from Drop Down",null,null,null,null,null,null,null,null,null,null,null,null,"Select from Drop Down","Select from Drop Down","Select from Drop Down"]
[113,null,null,"Select from Drop Down","Select from Drop Down","Select from Drop Down",null,null,null,null,null,null,null,null,null,null,null,null,"Select from Drop Down","Select from Drop Down","Select from Drop Down"]
[114,null,null,"Select from Drop Down","Select from Drop Down","Select from Drop Down",null,null,null,null,null,null,null,null,null,null,null,null,"Select from Drop Down","Select from Drop Down","Select from Drop Down"]
[115,null,null,"Select from Drop Down","Select from Drop Down","Select from Drop Down",null,null,null,null,null,null,null,null,null,null,null,null,"Select from Drop Down","Select from Drop Down","Select from Drop Down"]
[116,null,null,"Select from Drop Down","Select from Drop Down","Select from Drop Down",null,null,null,null,null,null,null,null,null,null,null,null,"Select from Drop Down","Select from Drop Down","Select from Drop Down"]
[117,null,null,"Select from Drop Down","Select from Drop Down","Select from Drop Down",null,null,null,null,null,null,null,null,null,null,null,null,"Select from Drop Down","Select from Drop Down","Select from Drop Down"]
[118,null,null,"Select from Drop Down","Select from Drop Down","Select from Drop Down",null,null,null,null,null,null,null,null,null,null,null,null,"Select from Drop Down","Select from Drop Down","Select from Drop Down"]
[119,null,null,"Select from Drop Down","Select from Drop Down","Select from Drop Down",null,null,null,null,null,null,null,null,null,null,null,null,"Select from Drop Down","Select from Drop Down","Select from Drop Down"]
[120,null,null,"Select from Drop Down","Select from Drop Down","Select from Drop Down",null,null,null,null,null,null,null,null,null,null,null,null,"Select from Drop Down","Select from Drop Down","Select from Drop Down"]
[121,null,null,"Select from Drop Down","Select from Drop Down","Select from Drop Down",null,null,null,null,null,null,null,null,null,null,null,null,"Select from Drop Down","Select from Drop Down","Select from Drop Down"]
[122,null,null,"Select from Drop Down","Select from Drop Down","Select from Drop Down",null,null,null,null,null,null,null,null,null,null,null,null,"Select from Drop Down","Select from Drop Down","Select from Drop Down"]
[123,null,null,"Select from Drop Down","Select from Drop Down","Select from Drop Down",null,null,null,null,null,null,null,null,null,null,null,null,"Select from Drop Down","Select from Drop Down","Select from Drop Down"]
[124,null,null,"Select from Drop Down","Select from Drop Down","Select from Drop Down",null,null,null,null,null,null,null,null,null,null,null,null,"Select from Drop Down","Select from Drop Down","Select from Drop Down"]
[125,null,null,"Select from Drop Down","Select from Drop Down","Select from Drop Down",null,null,null,null,null,null,null,null,null,null,null,null,"Select from Drop Down","Select from Drop Down","Select from Drop Down"]
[126,null,null,"Select from Drop Down","Select from Drop Down","Select from Drop Down",null,null,null,null,null,null,null,null,null,null,null,null,"Select from Drop Down","Select from Drop Down","Select from Drop Down"]
[127,null,null,"Select from Drop Down","Select from Drop Down","Select from Drop Down",null,null,null,null,null,null,null,null,null,null,null,null,"Select from Drop Down","Select from Drop Down","Select from Drop Down"]
[128,null,null,"Select from Drop Down","Select from Drop Down","Select from Drop Down",null,null,null,null,null,null,null,null,null,null,null,null,"Select from Drop Down","Select from Drop Down","Select from Drop Down"]
[129,null,null,"Select from Drop Down","Select from Drop Down","Select from Drop Down",null,null,null,null,null,null,null,null,null,null,null,null,"Select from Drop Down","Select from Drop Down","Select from Drop Down"]
[130,null,null,"Select from Drop Down","Select from Drop Down","Select from Drop Down",null,null,null,null,null,null,null,null,null,null,null,null,"Select from Drop Down","Select from Drop Down","Select from Drop Down"]
[{"$f":"A140+1","v":131},null,null,"Select from Drop Down","Select from Drop Down","Select from Drop Down",null,null,null,null,null,null,null,null,null,null,null,null,"Select from Drop Down","Select from Drop Down","Select from Drop Down"]
[132,null,null,"Select from Drop Down","Select from Drop Down","Select from Drop Down",null,null,null,null,null,null,null,null,null,null,null,null,"Select from Drop Down","Select from Drop Down","Select from Drop Down"]
[133,null,null,"Select from Drop Down","Select from Drop Down","Select from Drop Down",null,null,null,null,null,null,null,null,null,null,null,null,"Select from Drop Down","Select from Drop Down","Select from Drop Down"]
[134,null,null,"Select from Drop Down","Select from Drop Down","Select from Drop Down",null,null,null,null,null,null,null,null,null,null,null,null,"Select from Drop Down","Select from Drop Down","Select from Drop Down"]
[135,null,null,"Select from Drop Down","Select from Drop Down","Select from Drop Down",null,null,null,null,null,null,null,null,null,null,null,null,"Select from Drop Down","Select from Drop Down","Select from Drop Down"]
[136,null,null,"Select from Drop Down","Select from Drop Down","Select from Drop Down",null,null,null,null,null,null,null,null,null,null,null,null,"Select from Drop Down","Select from Drop Down","Select from Drop Down"]
[137,null,null,"Select from Drop Down","Select from Drop Down","Select from Drop Down",null,null,null,null,null,null,null,null,null,null,null,null,"Select from Drop Down","Select from Drop Down","Select from Drop Down"]
[138,null,null,"Select from Drop Down","Select from Drop Down","Select from Drop Down",null,null,null,null,null,null,null,null,null,null,null,null,"Select from Drop Down","Select from Drop Down","Select from Drop Down"]
[139,null,null,"Select from Drop Down","Select from Drop Down","Select from Drop Down",null,null,null,null,null,null,null,null,null,null,null,null,"Select from Drop Down","Select from Drop Down","Select from Drop Down"]
[140,null,null,"Select from Drop Down","Select from Drop Down","Select from Drop Down",null,null,null,null,null,null,null,null,null,null,null,null,"Select from Drop Down","Select from Drop Down","Select from Drop Down"]
[141,null,null,"Select from Drop Down","Select from Drop Down","Select from Drop Down",null,null,null,null,null,null,null,null,null,null,null,null,"Select from Drop Down","Select from Drop Down","Select from Drop Down"]
[142,null,null,"Select from Drop Down","Select from Drop Down","Select from Drop Down",null,null,null,null,null,null,null,null,null,null,null,null,"Select from Drop Down","Select from Drop Down","Select from Drop Down"]
[143,null,null,"Select from Drop Down","Select from Drop Down","Select from Drop Down",null,null,null,null,null,null,null,null,null,null,null,null,"Select from Drop Down","Select from Drop Down","Select from Drop Down"]
[144,null,null,"Select from Drop Down","Select from Drop Down","Select from Drop Down",null,null,null,null,null,null,null,null,null,null,null,null,"Select from Drop Down","Select from Drop Down","Select from Drop Down"]
[145,null,null,"Select from Drop Down","Select from Drop Down","Select from Drop Down",null,null,null,null,null,null,null,null,null,null,null,null,"Select from Drop Down","Select from Drop Down","Select from Drop Down"]
[146,null,null,"Select from Drop Down","Select from Drop Down","Select from Drop Down",null,null,null,null,null,null,null,null,null,null,null,null,"Select from Drop Down","Select from Drop Down","Select from Drop Down"]
[147,null,null,"Select from Drop Down","Select from Drop Down","Select from Drop Down",null,null,null,null,null,null,null,null,null,null,null,null,"Select from Drop Down","Select from Drop Down","Select from Drop Down"]
[148,null,null,"Select from Drop Down","Select from Drop Down","Select from Drop Down",null,null,null,null,null,null,null,null,null,null,null,null,"Select from Drop Down","Select from Drop Down","Select from Drop Down"]
[149,null,null,"Select from Drop Down","Select from Drop Down","Select from Drop Down",null,null,null,null,null,null,null,null,null,null,null,null,"Select from Drop Down","Select from Drop Down","Select from Drop Down"]
[150,null,null,"Select from Drop Down","Select from Drop Down","Select from Drop Down",null,null,null,null,null,null,null,null,null,null,null,null,"Select from Drop Down","Select from Drop Down","Select from Drop Down"]
[151,null,null,"Select from Drop Down","Select from Drop Down","Select from Drop Down",null,null,null,null,null,null,null,null,null,null,null,null,"Select from Drop Down","Select from Drop Down","Select from Drop Down"]
[152,null,null,"Select from Drop Down","Select from Drop Down","Select from Drop Down",null,null,null,null,null,null,null,null,null,null,null,null,"Select from Drop Down","Select from Drop Down","Select from Drop Down"]
[153,null,null,"Select from Drop Down","Select from Drop Down","Select from Drop Down",null,null,null,null,null,null,null,null,null,null,null,null,"Select from Drop Down","Select from Drop Down","Select from Drop Down"]
[154,null,null,"Select from Drop Down","Select from Drop Down","Select from Drop Down",null,null,null,null,null,null,null,null,null,null,null,null,"Select from Drop Down","Select from Drop Down","Select from Drop Down"]
[155,null,null,"Select from Drop Down","Select from Drop Down","Select from Drop Down",null,null,null,null,null,null,null,null,null,null,null,null,"Select from Drop Down","Select from Drop Down","Select from Drop Down"]
[156,null,null,"Select from Drop Down","Select from Drop Down","Select from Drop Down",null,null,null,null,null,null,null,null,null,null,null,null,"Select from Drop Down","Select from Drop Down","Select from Drop Down"]
[157,null,null,"Select from Drop Down","Select from Drop Down","Select from Drop Down",null,null,null,null,null,null,null,null,null,null,null,null,"Select from Drop Down","Select from Drop Down","Select from Drop Down"]
[158,null,null,"Select from Drop Down","Select from Drop Down","Select from Drop Down",null,null,null,null,null,null,null,null,null,null,null,null,"Select from Drop Down","Select from Drop Down","Select from Drop Down"]
[159,null,null,"Select from Drop Down","Select from Drop Down","Select from Drop Down",null,null,null,null,null,null,null,null,null,null,null,null,"Select from Drop Down","Select from Drop Down","Select from Drop Down"]
[160,null,null,"Select from Drop Down","Select from Drop Down","Select from Drop Down",null,null,null,null,null,null,null,null,null,null,null,null,"Select from Drop Down","Select from Drop Down","Select from Drop Down"]
[161,null,null,"Select from Drop Down","Select from Drop Down","Select from Drop Down",null,null,null,null,null,null,null,null,null,null,null,null,"Select from Drop Down","Select from Drop Down","Select from Drop Down"]
[162,null,null,"Select from Drop Down","Select from Drop Down","Select from Drop Down",null,null,null,null,null,null,null,null,null,null,null,null,"Select from Drop Down","Select from Drop Down","Select from Drop Down"]
[163,null,null,"Select from Drop Down","Select from Drop Down","Select from Drop Down",null,null,null,null,null,null,null,null,null,null,null,null,"Select from Drop Down","Select from Drop Down","Select from Drop Down"]
[164,null,null,"Select from Drop Down","Select from Drop Down","Select from Drop Down",null,null,null,null,null,null,null,null,null,null,null,null,"Select from Drop Down","Select from Drop Down","Select from Drop Down"]
[165,null,null,"Select from Drop Down","Select from Drop Down","Select from Drop Down",null,null,null,null,null,null,null,null,null,null,null,null,"Select from Drop Down","Select from Drop Down","Select from Drop Down"]
[166,null,null,"Select from Drop Down","Select from Drop Down","Select from Drop Down",null,null,null,null,null,null,null,null,null,null,null,null,"Select from Drop Down","Select from Drop Down","Select from Drop Down"]
[167,null,null,"Select from Drop Down","Select from Drop Down","Select from Drop Down",null,null,null,null,null,null,null,null,null,null,null,null,"Select from Drop Down","Select from Drop Down","Select from Drop Down"]
[168,null,null,"Select from Drop Down","Select from Drop Down","Select from Drop Down",null,null,null,null,null,null,null,null,null,null,null,null,"Select from Drop Down","Select from Drop Down","Select from Drop Down"]
[169,null,null,"Select from Drop Down","Select from Drop Down","Select from Drop Down",null,null,null,null,null,null,null,null,null,null,null,null,"Select from Drop Down","Select from Drop Down","Select from Drop Down"]
[170,null,null,"Select from Drop Down","Select from Drop Down","Select from Drop Down",null,null,null,null,null,null,null,null,null,null,null,null,"Select from Drop Down","Select from Drop Down","Select from Drop Down"]
[171,null,null,"Select from Drop Down","Select from Drop Down","Select from Drop Down",null,null,null,null,null,null,null,null,null,null,null,null,"Select from Drop Down","Select from Drop Down","Select from Drop Down"]
[172,null,null,"Select from Drop Down","Select from Drop Down","Select from Drop Down",null,null,null,null,null,null,null,null,null,null,null,null,"Select from Drop Down","Select from Drop Down","Select from Drop Down"]
[173,null,null,"Select from Drop Down","Select from Drop Down","Select from Drop Down",null,null,null,null,null,null,null,null,null,null,null,null,"Select from Drop Down","Select from Drop Down","Select from Drop Down"]
[174,null,null,"Select from Drop Down","Select from Drop Down","Select from Drop Down",null,null,null,null,null,null,null,null,null,null,null,null,"Select from Drop Down","Select from Drop Down","Select from Drop Down"]
[175,null,null,"Select from Drop Down","Select from Drop Down","Select from Drop Down",null,null,null,null,null,null,null,null,null,null,null,null,"Select from Drop Down","Select from Drop Down","Select from Drop Down"]
[176,null,null,"Select from Drop Down","Select from Drop Down","Select from Drop Down",null,null,null,null,null,null,null,null,null,null,null,null,"Select from Drop Down","Select from Drop Down","Select from Drop Down"]
[177,null,null,"Select from Drop Down","Select from Drop Down","Select from Drop Down",null,null,null,null,null,null,null,null,null,null,null,null,"Select from Drop Down","Select from Drop Down","Select from Drop Down"]
[178,null,null,"Select from Drop Down","Select from Drop Down","Select from Drop Down",null,null,null,null,null,null,null,null,null,null,null,null,"Select from Drop Down","Select from Drop Down","Select from Drop Down"]
[179,null,null,"Select from Drop Down","Select from Drop Down","Select from Drop Down",null,null,null,null,null,null,null,null,null,null,null,null,"Select from Drop Down","Select from Drop Down","Select from Drop Down"]
[180,null,null,"Select from Drop Down","Select from Drop Down","Select from Drop Down",null,null,null,null,null,null,null,null,null,null,null,null,"Select from Drop Down","Select from Drop Down","Select from Drop Down"]
[181,null,null,"Select from Drop Down","Select from Drop Down","Select from Drop Down",null,null,null,null,null,null,null,null,null,null,null,null,"Select from Drop Down","Select from Drop Down","Select from Drop Down"]
[182,null,null,"Select from Drop Down","Select from Drop Down","Select from Drop Down",null,null,null,null,null,null,null,null,null,null,null,null,"Select from Drop Down","Select from Drop Down","Select from Drop Down"]
[183,null,null,"Select from Drop Down","Select from Drop Down","Select from Drop Down",null,null,null,null,null,null,null,null,null,null,null,null,"Select from Drop Down","Select from Drop Down","Select from Drop Down"]
[184,null,null,"Select from Drop Down","Select from Drop Down","Select from Drop Down",null,null,null,null,null,null,null,null,null,null,null,null,"Select from Drop Down","Select from Drop Down","Select from Drop Down"]
[185,null,null,"Select from Drop Down","Select from Drop Down","Select from Drop Down",null,null,null,null,null,null,null,null,null,null,null,null,"Select from Drop Down","Select from Drop Down","Select from Drop Down"]
[186,null,null,"Select from Drop Down","Select from Drop Down","Select from Drop Down",null,null,null,null,null,null,null,null,null,null,null,null,"Select from Drop Down","Select from Drop Down","Select from Drop Down"]
[187,null,null,"Select from Drop Down","Select from Drop Down","Select from Drop Down",null,null,null,null,null,null,null,null,null,null,null,null,"Select from Drop Down","Select from Drop Down","Select from Drop Down"]
[188,null,null,"Select from Drop Down","Select from Drop Down","Select from Drop Down",null,null,null,null,null,null,null,null,null,null,null,null,"Select from Drop Down","Select from Drop Down","Select from Drop Down"]
[189,null,null,"Select from Drop Down","Select from Drop Down","Select from Drop Down",null,null,null,null,null,null,null,null,null,null,null,null,"Select from Drop Down","Select from Drop Down","Select from Drop Down"]
[190,null,null,"Select from Drop Down","Select from Drop Down","Select from Drop Down",null,null,null,null,null,null,null,null,null,null,null,null,"Select from Drop Down","Select from Drop Down","Select from Drop Down"]
[191,null,null,"Select from Drop Down","Select from Drop Down","Select from Drop Down",null,null,null,null,null,null,null,null,null,null,null,null,"Select from Drop Down","Select from Drop Down","Select from Drop Down"]
[192,null,null,"Select from Drop Down","Select from Drop Down","Select from Drop Down",null,null,null,null,null,null,null,null,null,null,null,null,"Select from Drop Down","Select from Drop Down","Select from Drop Down"]
[193,null,null,"Select from Drop Down","Select from Drop Down","Select from Drop Down",null,null,null,null,null,null,null,null,null,null,null,null,"Select from Drop Down","Select from Drop Down","Select from Drop Down"]
[194,null,null,"Select from Drop Down","Select from Drop Down","Select from Drop Down",null,null,null,null,null,null,null,null,null,null,null,null,"Select from Drop Down","Select from Drop Down","Select from Drop Down"]
[{"$f":"A204+1","v":195},null,null,"Select from Drop Down","Select from Drop Down","Select from Drop Down",null,null,null,null,null,null,null,null,null,null,null,null,"Select from Drop Down","Select from Drop Down","Select from Drop Down"]
[196,null,null,"Select from Drop Down","Select from Drop Down","Select from Drop Down",null,null,null,null,null,null,null,null,null,null,null,null,"Select from Drop Down","Select from Drop Down","Select from Drop Down"]
[197,null,null,"Select from Drop Down","Select from Drop Down","Select from Drop Down",null,null,null,null,null,null,null,null,null,null,null,null,"Select from Drop Down","Select from Drop Down","Select from Drop Down"]
[198,null,null,"Select from Drop Down","Select from Drop Down","Select from Drop Down",null,null,null,null,null,null,null,null,null,null,null,null,"Select from Drop Down","Select from Drop Down","Select from Drop Down"]
[199,null,null,"Select from Drop Down","Select from Drop Down","Select from Drop Down",null,null,null,null,null,null,null,null,null,null,null,null,"Select from Drop Down","Select from Drop Down","Select from Drop Down"]
[200,null,null,"Select from Drop Down","Select from Drop Down","Select from Drop Down",null,null,null,null,null,null,null,null,null,null,null,null,"Select from Drop Down","Select from Drop Down","Select from Drop Down"]
[201,null,null,"Select from Drop Down","Select from Drop Down","Select from Drop Down",null,null,null,null,null,null,null,null,null,null,null,null,"Select from Drop Down","Select from Drop Down","Select from Drop Down"]
[202,null,null,"Select from Drop Down","Select from Drop Down","Select from Drop Down",null,null,null,null,null,null,null,null,null,null,null,null,"Select from Drop Down","Select from Drop Down","Select from Drop Down"]
[203,null,null,"Select from Drop Down","Select from Drop Down","Select from Drop Down",null,null,null,null,null,null,null,null,null,null,null,null,"Select from Drop Down","Select from Drop Down","Select from Drop Down"]
[204,null,null,"Select from Drop Down","Select from Drop Down","Select from Drop Down",null,null,null,null,null,null,null,null,null,null,null,null,"Select from Drop Down","Select from Drop Down","Select from Drop Down"]
[205,null,null,"Select from Drop Down","Select from Drop Down","Select from Drop Down",null,null,null,null,null,null,null,null,null,null,null,null,"Select from Drop Down","Select from Drop Down","Select from Drop Down"]
[206,null,null,"Select from Drop Down","Select from Drop Down","Select from Drop Down",null,null,null,null,null,null,null,null,null,null,null,null,"Select from Drop Down","Select from Drop Down","Select from Drop Down"]
[207,null,null,"Select from Drop Down","Select from Drop Down","Select from Drop Down",null,null,null,null,null,null,null,null,null,null,null,null,"Select from Drop Down","Select from Drop Down","Select from Drop Down"]
[208,null,null,"Select from Drop Down","Select from Drop Down","Select from Drop Down",null,null,null,null,null,null,null,null,null,null,null,null,"Select from Drop Down","Select from Drop Down","Select from Drop Down"]
[209,null,null,"Select from Drop Down","Select from Drop Down","Select from Drop Down",null,null,null,null,null,null,null,null,null,null,null,null,"Select from Drop Down","Select from Drop Down","Select from Drop Down"]
[210,null,null,"Select from Drop Down","Select from Drop Down","Select from Drop Down",null,null,null,null,null,null,null,null,null,null,null,null,"Select from Drop Down","Select from Drop Down","Select from Drop Down"]
[211,null,null,"Select from Drop Down","Select from Drop Down","Select from Drop Down",null,null,null,null,null,null,null,null,null,null,null,null,"Select from Drop Down","Select from Drop Down","Select from Drop Down"]
[212,null,null,"Select from Drop Down","Select from Drop Down","Select from Drop Down",null,null,null,null,null,null,null,null,null,null,null,null,"Select from Drop Down","Select from Drop Down","Select from Drop Down"]
[213,null,null,"Select from Drop Down","Select from Drop Down","Select from Drop Down",null,null,null,null,null,null,null,null,null,null,null,null,"Select from Drop Down","Select from Drop Down","Select from Drop Down"]
[214,null,null,"Select from Drop Down","Select from Drop Down","Select from Drop Down",null,null,null,null,null,null,null,null,null,null,null,null,"Select from Drop Down","Select from Drop Down","Select from Drop Down"]
[215,null,null,"Select from Drop Down","Select from Drop Down","Select from Drop Down",null,null,null,null,null,null,null,null,null,null,null,null,"Select from Drop Down","Select from Drop Down","Select from Drop Down"]
[216,null,null,"Select from Drop Down","Select from Drop Down","Select from Drop Down",null,null,null,null,null,null,null,null,null,null,null,null,"Select from Drop Down","Select from Drop Down","Select from Drop Down"]
[217,null,null,"Select from Drop Down","Select from Drop Down","Select from Drop Down",null,null,null,null,null,null,null,null,null,null,null,null,"Select from Drop Down","Select from Drop Down","Select from Drop Down"]
[218,null,null,"Select from Drop Down","Select from Drop Down","Select from Drop Down",null,null,null,null,null,null,null,null,null,null,null,null,"Select from Drop Down","Select from Drop Down","Select from Drop Down"]
[219,null,null,"Select from Drop Down","Select from Drop Down","Select from Drop Down",null,null,null,null,null,null,null,null,null,null,null,null,"Select from Drop Down","Select from Drop Down","Select from Drop Down"]
[220,null,null,"Select from Drop Down","Select from Drop Down","Select from Drop Down",null,null,null,null,null,null,null,null,null,null,null,null,"Select from Drop Down","Select from Drop Down","Select from Drop Down"]
[221,null,null,"Select from Drop Down","Select from Drop Down","Select from Drop Down",null,null,null,null,null,null,null,null,null,null,null,null,"Select from Drop Down","Select from Drop Down","Select from Drop Down"]
[222,null,null,"Select from Drop Down","Select from Drop Down","Select from Drop Down",null,null,null,null,null,null,null,null,null,null,null,null,"Select from Drop Down","Select from Drop Down","Select from Drop Down"]
[223,null,null,"Select from Drop Down","Select from Drop Down","Select from Drop Down",null,null,null,null,null,null,null,null,null,null,null,null,"Select from Drop Down","Select from Drop Down","Select from Drop Down"]
[224,null,null,"Select from Drop Down","Select from Drop Down","Select from Drop Down",null,null,null,null,null,null,null,null,null,null,null,null,"Select from Drop Down","Select from Drop Down","Select from Drop Down"]
[225,null,null,"Select from Drop Down","Select from Drop Down","Select from Drop Down",null,null,null,null,null,null,null,null,null,null,null,null,"Select from Drop Down","Select from Drop Down","Select from Drop Down"]
[226,null,null,"Select from Drop Down","Select from Drop Down","Select from Drop Down",null,null,null,null,null,null,null,null,null,null,null,null,"Select from Drop Down","Select from Drop Down","Select from Drop Down"]
[227,null,null,"Select from Drop Down","Select from Drop Down","Select from Drop Down",null,null,null,null,null,null,null,null,null,null,null,null,"Select from Drop Down","Select from Drop Down","Select from Drop Down"]
[228,null,null,"Select from Drop Down","Select from Drop Down","Select from Drop Down",null,null,null,null,null,null,null,null,null,null,null,null,"Select from Drop Down","Select from Drop Down","Select from Drop Down"]
[229,null,null,"Select from Drop Down","Select from Drop Down","Select from Drop Down",null,null,null,null,null,null,null,null,null,null,null,null,"Select from Drop Down","Select from Drop Down","Select from Drop Down"]
[230,null,null,"Select from Drop Down","Select from Drop Down","Select from Drop Down",null,null,null,null,null,null,null,null,null,null,null,null,"Select from Drop Down","Select from Drop Down","Select from Drop Down"]
[231,null,null,"Select from Drop Down","Select from Drop Down","Select from Drop Down",null,null,null,null,null,null,null,null,null,null,null,null,"Select from Drop Down","Select from Drop Down","Select from Drop Down"]
[232,null,null,"Select from Drop Down","Select from Drop Down","Select from Drop Down",null,null,null,null,null,null,null,null,null,null,null,null,"Select from Drop Down","Select from Drop Down","Select from Drop Down"]
[233,null,null,"Select from Drop Down","Select from Drop Down","Select from Drop Down",null,null,null,null,null,null,null,null,null,null,null,null,"Select from Drop Down","Select from Drop Down","Select from Drop Down"]
[234,null,null,"Select from Drop Down","Select from Drop Down","Select from Drop Down",null,null,null,null,null,null,null,null,null,null,null,null,"Select from Drop Down","Select from Drop Down","Select from Drop Down"]
[235,null,null,"Select from Drop Down","Select from Drop Down","Select from Drop Down",null,null,null,null,null,null,null,null,null,null,null,null,"Select from Drop Down","Select from Drop Down","Select from Drop Down"]
[236,null,null,"Select from Drop Down","Select from Drop Down","Select from Drop Down",null,null,null,null,null,null,null,null,null,null,null,null,"Select from Drop Down","Select from Drop Down","Select from Drop Down"]
[237,null,null,"Select from Drop Down","Select from Drop Down","Select from Drop Down",null,null,null,null,null,null,null,null,null,null,null,null,"Select from Drop Down","Select from Drop Down","Select from Drop Down"]
[238,null,null,"Select from Drop Down","Select from Drop Down","Select from Drop Down",null,null,null,null,null,null,null,null,null,null,null,null,"Select from Drop Down","Select from Drop Down","Select from Drop Down"]
[239,null,null,"Select from Drop Down","Select from Drop Down","Select from Drop Down",null,null,null,null,null,null,null,null,null,null,null,null,"Select from Drop Down","Select from Drop Down","Select from Drop Down"]
[240,null,null,"Select from Drop Down","Select from Drop Down","Select from Drop Down",null,null,null,null,null,null,null,null,null,null,null,null,"Select from Drop Down","Select from Drop Down","Select from Drop Down"]
[241,null,null,"Select from Drop Down","Select from Drop Down","Select from Drop Down",null,null,null,null,null,null,null,null,null,null,null,null,"Select from Drop Down","Select from Drop Down","Select from Drop Down"]
[242,null,null,"Select from Drop Down","Select from Drop Down","Select from Drop Down",null,null,null,null,null,null,null,null,null,null,null,null,"Select from Drop Down","Select from Drop Down","Select from Drop Down"]
[243,null,null,"Select from Drop Down","Select from Drop Down","Select from Drop Down",null,null,null,null,null,null,null,null,null,null,null,null,"Select from Drop Down","Select from Drop Down","Select from Drop Down"]
[244,null,null,"Select from Drop Down","Select from Drop Down","Select from Drop Down",null,null,null,null,null,null,null,null,null,null,null,null,"Select from Drop Down","Select from Drop Down","Select from Drop Down"]
[245,null,null,"Select from Drop Down","Select from Drop Down","Select from Drop Down",null,null,null,null,null,null,null,null,null,null,null,null,"Select from Drop Down","Select from Drop Down","Select from Drop Down"]
[246,null,null,"Select from Drop Down","Select from Drop Down","Select from Drop Down",null,null,null,null,null,null,null,null,null,null,null,null,"Select from Drop Down","Select from Drop Down","Select from Drop Down"]
[247,null,null,"Select from Drop Down","Select from Drop Down","Select from Drop Down",null,null,null,null,null,null,null,null,null,null,null,null,"Select from Drop Down","Select from Drop Down","Select from Drop Down"]
[248,null,null,"Select from Drop Down","Select from Drop Down","Select from Drop Down",null,null,null,null,null,null,null,null,null,null,null,null,"Select from Drop Down","Select from Drop Down","Select from Drop Down"]
[249,null,null,"Select from Drop Down","Select from Drop Down","Select from Drop Down",null,null,null,null,null,null,null,null,null,null,null,null,"Select from Drop Down","Select from Drop Down","Select from Drop Down"]
[250,null,null,"Select from Drop Down","Select from Drop Down","Select from Drop Down",null,null,null,null,null,null,null,null,null,null,null,null,"Select from Drop Down","Select from Drop Down","Select from Drop Down"]
[251,null,null,"Select from Drop Down","Select from Drop Down","Select from Drop Down",null,null,null,null,null,null,null,null,null,null,null,null,"Select from Drop Down","Select from Drop Down","Select from Drop Down"]
[252,null,null,"Select from Drop Down","Select from Drop Down","Select from Drop Down",null,null,null,null,null,null,null,null,null,null,null,null,"Select from Drop Down","Select from Drop Down","Select from Drop Down"]
[253,null,null,"Select from Drop Down","Select from Drop Down","Select from Drop Down",null,null,null,null,null,null,null,null,null,null,null,null,"Select from Drop Down","Select from Drop Down","Select from Drop Down"]
[254,null,null,"Select from Drop Down","Select from Drop Down","Select from Drop Down",null,null,null,null,null,null,null,null,null,null,null,null,"Select from Drop Down","Select from Drop Down","Select from Drop Down"]
[255,null,null,"Select from Drop Down","Select from Drop Down","Select from Drop Down",null,null,null,null,null,null,null,null,null,null,null,null,"Select from Drop Down","Select from Drop Down","Select from Drop Down"]
[256,null,null,"Select from Drop Down","Select from Drop Down","Select from Drop Down",null,null,null,null,null,null,null,null,null,null,null,null,"Select from Drop Down","Select from Drop Down","Select from Drop Down"]
[257,null,null,"Select from Drop Down","Select from Drop Down","Select from Drop Down",null,null,null,null,null,null,null,null,null,null,null,null,"Select from Drop Down","Select from Drop Down","Select from Drop Down"]
[258,null,null,"Select from Drop Down","Select from Drop Down","Select from Drop Down",null,null,null,null,null,null,null,null,null,null,null,null,"Select from Drop Down","Select from Drop Down","Select from Drop Down"]
[{"$f":"A268+1","v":259},null,null,"Select from Drop Down","Select from Drop Down","Select from Drop Down",null,null,null,null,null,null,null,null,null,null,null,null,"Select from Drop Down","Select from Drop Down","Select from Drop Down"]
[260,null,null,"Select from Drop Down","Select from Drop Down","Select from Drop Down",null,null,null,null,null,null,null,null,null,null,null,null,"Select from Drop Down","Select from Drop Down","Select from Drop Down"]
[261,null,null,"Select from Drop Down","Select from Drop Down","Select from Drop Down",null,null,null,null,null,null,null,null,null,null,null,null,"Select from Drop Down","Select from Drop Down","Select from Drop Down"]
[262,null,null,"Select from Drop Down","Select from Drop Down","Select from Drop Down",null,null,null,null,null,null,null,null,null,null,null,null,"Select from Drop Down","Select from Drop Down","Select from Drop Down"]
[263,null,null,"Select from Drop Down","Select from Drop Down","Select from Drop Down",null,null,null,null,null,null,null,null,null,null,null,null,"Select from Drop Down","Select from Drop Down","Select from Drop Down"]
[264,null,null,"Select from Drop Down","Select from Drop Down","Select from Drop Down",null,null,null,null,null,null,null,null,null,null,null,null,"Select from Drop Down","Select from Drop Down","Select from Drop Down"]
[265,null,null,"Select from Drop Down","Select from Drop Down","Select from Drop Down",null,null,null,null,null,null,null,null,null,null,null,null,"Select from Drop Down","Select from Drop Down","Select from Drop Down"]
[266,null,null,"Select from Drop Down","Select from Drop Down","Select from Drop Down",null,null,null,null,null,null,null,null,null,null,null,null,"Select from Drop Down","Select from Drop Down","Select from Drop Down"]
[267,null,null,"Select from Drop Down","Select from Drop Down","Select from Drop Down",null,null,null,null,null,null,null,null,null,null,null,null,"Select from Drop Down","Select from Drop Down","Select from Drop Down"]
[268,null,null,"Select from Drop Down","Select from Drop Down","Select from Drop Down",null,null,null,null,null,null,null,null,null,null,null,null,"Select from Drop Down","Select from Drop Down","Select from Drop Down"]
[269,null,null,"Select from Drop Down","Select from Drop Down","Select from Drop Down",null,null,null,null,null,null,null,null,null,null,null,null,"Select from Drop Down","Select from Drop Down","Select from Drop Down"]
[270,null,null,"Select from Drop Down","Select from Drop Down","Select from Drop Down",null,null,null,null,null,null,null,null,null,null,null,null,"Select from Drop Down","Select from Drop Down","Select from Drop Down"]
[271,null,null,"Select from Drop Down","Select from Drop Down","Select from Drop Down",null,null,null,null,null,null,null,null,null,null,null,null,"Select from Drop Down","Select from Drop Down","Select from Drop Down"]
[272,null,null,"Select from Drop Down","Select from Drop Down","Select from Drop Down",null,null,null,null,null,null,null,null,null,null,null,null,"Select from Drop Down","Select from Drop Down","Select from Drop Down"]
[273,null,null,"Select from Drop Down","Select from Drop Down","Select from Drop Down",null,null,null,null,null,null,null,null,null,null,null,null,"Select from Drop Down","Select from Drop Down","Select from Drop Down"]
[274,null,null,"Select from Drop Down","Select from Drop Down","Select from Drop Down",null,null,null,null,null,null,null,null,null,null,null,null,"Select from Drop Down","Select from Drop Down","Select from Drop Down"]
[275,null,null,"Select from Drop Down","Select from Drop Down","Select from Drop Down",null,null,null,null,null,null,null,null,null,null,null,null,"Select from Drop Down","Select from Drop Down","Select from Drop Down"]
[276,null,null,"Select from Drop Down","Select from Drop Down","Select from Drop Down",null,null,null,null,null,null,null,null,null,null,null,null,"Select from Drop Down","Select from Drop Down","Select from Drop Down"]
[277,null,null,"Select from Drop Down","Select from Drop Down","Select from Drop Down",null,null,null,null,null,null,null,null,null,null,null,null,"Select from Drop Down","Select from Drop Down","Select from Drop Down"]
[278,null,null,"Select from Drop Down","Select from Drop Down","Select from Drop Down",null,null,null,null,null,null,null,null,null,null,null,null,"Select from Drop Down","Select from Drop Down","Select from Drop Down"]
[279,null,null,"Select from Drop Down","Select from Drop Down","Select from Drop Down",null,null,null,null,null,null,null,null,null,null,null,null,"Select from Drop Down","Select from Drop Down","Select from Drop Down"]
[280,null,null,"Select from Drop Down","Select from Drop Down","Select from Drop Down",null,null,null,null,null,null,null,null,null,null,null,null,"Select from Drop Down","Select from Drop Down","Select from Drop Down"]
[281,null,null,"Select from Drop Down","Select from Drop Down","Select from Drop Down",null,null,null,null,null,null,null,null,null,null,null,null,"Select from Drop Down","Select from Drop Down","Select from Drop Down"]
[282,null,null,"Select from Drop Down","Select from Drop Down","Select from Drop Down",null,null,null,null,null,null,null,null,null,null,null,null,"Select from Drop Down","Select from Drop Down","Select from Drop Down"]
[283,null,null,"Select from Drop Down","Select from Drop Down","Select from Drop Down",null,null,null,null,null,null,null,null,null,null,null,null,"Select from Drop Down","Select from Drop Down","Select from Drop Down"]
[284,null,null,"Select from Drop Down","Select from Drop Down","Select from Drop Down",null,null,null,null,null,null,null,null,null,null,null,null,"Select from Drop Down","Select from Drop Down","Select from Drop Down"]
[285,null,null,"Select from Drop Down","Select from Drop Down","Select from Drop Down",null,null,null,null,null,null,null,null,null,null,null,null,"Select from Drop Down","Select from Drop Down","Select from Drop Down"]
[286,null,null,"Select from Drop Down","Select from Drop Down","Select from Drop Down",null,null,null,null,null,null,null,null,null,null,null,null,"Select from Drop Down","Select from Drop Down","Select from Drop Down"]
[287,null,null,"Select from Drop Down","Select from Drop Down","Select from Drop Down",null,null,null,null,null,null,null,null,null,null,null,null,"Select from Drop Down","Select from Drop Down","Select from Drop Down"]
[288,null,null,"Select from Drop Down","Select from Drop Down","Select from Drop Down",null,null,null,null,null,null,null,null,null,null,null,null,"Select from Drop Down","Select from Drop Down","Select from Drop Down"]
[289,null,null,"Select from Drop Down","Select from Drop Down","Select from Drop Down",null,null,null,null,null,null,null,null,null,null,null,null,"Select from Drop Down","Select from Drop Down","Select from Drop Down"]
[290,null,null,"Select from Drop Down","Select from Drop Down","Select from Drop Down",null,null,null,null,null,null,null,null,null,null,null,null,"Select from Drop Down","Select from Drop Down","Select from Drop Down"]
[291,null,null,"Select from Drop Down","Select from Drop Down","Select from Drop Down",null,null,null,null,null,null,null,null,null,null,null,null,"Select from Drop Down","Select from Drop Down","Select from Drop Down"]
[292,null,null,"Select from Drop Down","Select from Drop Down","Select from Drop Down",null,null,null,null,null,null,null,null,null,null,null,null,"Select from Drop Down","Select from Drop Down","Select from Drop Down"]
[293,null,null,"Select from Drop Down","Select from Drop Down","Select from Drop Down",null,null,null,null,null,null,null,null,null,null,null,null,"Select from Drop Down","Select from Drop Down","Select from Drop Down"]
[294,null,null,"Select from Drop Down","Select from Drop Down","Select from Drop Down",null,null,null,null,null,null,null,null,null,null,null,null,"Select from Drop Down","Select from Drop Down","Select from Drop Down"]
[295,null,null,"Select from Drop Down","Select from Drop Down","Select from Drop Down",null,null,null,null,null,null,null,null,null,null,null,null,"Select from Drop Down","Select from Drop Down","Select from Drop Down"]
[296,null,null,"Select from Drop Down","Select from Drop Down","Select from Drop Down",null,null,null,null,null,null,null,null,null,null,null,null,"Select from Drop Down","Select from Drop Down","Select from Drop Down"]
[297,null,null,"Select from Drop Down","Select from Drop Down","Select from Drop Down",null,null,null,null,null,null,null,null,null,null,null,null,"Select from Drop Down","Select from Drop Down","Select from Drop Down"]
[298,null,null,"Select from Drop Down","Select from Drop Down","Select from Drop Down",null,null,null,null,null,null,null,null,null,null,null,null,"Select from Drop Down","Select from Drop Down","Select from Drop Down"]
[299,null,null,"Select from Drop Down","Select from Drop Down","Select from Drop Down",null,null,null,null,null,null,null,null,null,null,null,null,"Select from Drop Down","Select from Drop Down","Select from Drop Down"]
[300,null,null,"Select from Drop Down","Select from Drop Down","Select from Drop Down",null,null,null,null,null,null,null,null,null,null,null,null,"Select from Drop Down","Select from Drop Down","Select from Drop Down"]
[301,null,null,"Select from Drop Down","Select from Drop Down","Select from Drop Down",null,null,null,null,null,null,null,null,null,null,null,null,"Select from Drop Down","Select from Drop Down","Select from Drop Down"]
[302,null,null,"Select from Drop Down","Select from Drop Down","Select from Drop Down",null,null,null,null,null,null,null,null,null,null,null,null,"Select from Drop Down","Select from Drop Down","Select from Drop Down"]
[303,null,null,"Select from Drop Down","Select from Drop Down","Select from Drop Down",null,null,null,null,null,null,null,null,null,null,null,null,"Select from Drop Down","Select from Drop Down","Select from Drop Down"]
[304,null,null,"Select from Drop Down","Select from Drop Down","Select from Drop Down",null,null,null,null,null,null,null,null,null,null,null,null,"Select from Drop Down","Select from Drop Down","Select from Drop Down"]
[305,null,null,"Select from Drop Down","Select from Drop Down","Select from Drop Down",null,null,null,null,null,null,null,null,null,null,null,null,"Select from Drop Down","Select from Drop Down","Select from Drop Down"]
[306,null,null,"Select from Drop Down","Select from Drop Down","Select from Drop Down",null,null,null,null,null,null,null,null,null,null,null,null,"Select from Drop Down","Select from Drop Down","Select from Drop Down"]
[307,null,null,"Select from Drop Down","Select from Drop Down","Select from Drop Down",null,null,null,null,null,null,null,null,null,null,null,null,"Select from Drop Down","Select from Drop Down","Select from Drop Down"]
[308,null,null,"Select from Drop Down","Select from Drop Down","Select from Drop Down",null,null,null,null,null,null,null,null,null,null,null,null,"Select from Drop Down","Select from Drop Down","Select from Drop Down"]
[309,null,null,"Select from Drop Down","Select from Drop Down","Select from Drop Down",null,null,null,null,null,null,null,null,null,null,null,null,"Select from Drop Down","Select from Drop Down","Select from Drop Down"]
[310,null,null,"Select from Drop Down","Select from Drop Down","Select from Drop Down",null,null,null,null,null,null,null,null,null,null,null,null,"Select from Drop Down","Select from Drop Down","Select from Drop Down"]
[311,null,null,"Select from Drop Down","Select from Drop Down","Select from Drop Down",null,null,null,null,null,null,null,null,null,null,null,null,"Select from Drop Down","Select from Drop Down","Select from Drop Down"]
[312,null,null,"Select from Drop Down","Select from Drop Down","Select from Drop Down",null,null,null,null,null,null,null,null,null,null,null,null,"Select from Drop Down","Select from Drop Down","Select from Drop Down"]
[313,null,null,"Select from Drop Down","Select from Drop Down","Select from Drop Down",null,null,null,null,null,null,null,null,null,null,null,null,"Select from Drop Down","Select from Drop Down","Select from Drop Down"]
[314,null,null,"Select from Drop Down","Select from Drop Down","Select from Drop Down",null,null,null,null,null,null,null,null,null,null,null,null,"Select from Drop Down","Select from Drop Down","Select from Drop Down"]
[315,null,null,"Select from Drop Down","Select from Drop Down","Select from Drop Down",null,null,null,null,null,null,null,null,null,null,null,null,"Select from Drop Down","Select from Drop Down","Select from Drop Down"]
[316,null,null,"Select from Drop Down","Select from Drop Down","Select from Drop Down",null,null,null,null,null,null,null,null,null,null,null,null,"Select from Drop Down","Select from Drop Down","Select from Drop Down"]
[317,null,null,"Select from Drop Down","Select from Drop Down","Select from Drop Down",null,null,null,null,null,null,null,null,null,null,null,null,"Select from Drop Down","Select from Drop Down","Select from Drop Down"]
[318,null,null,"Select from Drop Down","Select from Drop Down","Select from Drop Down",null,null,null,null,null,null,null,null,null,null,null,null,"Select from Drop Down","Select from Drop Down","Select from Drop Down"]
[319,null,null,"Select from Drop Down","Select from Drop Down","Select from Drop Down",null,null,null,null,null,null,null,null,null,null,null,null,"Select from Drop Down","Select from Drop Down","Select from Drop Down"]
[320,null,null,"Select from Drop Down","Select from Drop Down","Select from Drop Down",null,null,null,null,null,null,null,null,null,null,null,null,"Select from Drop Down","Select from Drop Down","Select from Drop Down"]
[321,null,null,"Select from Drop Down","Select from Drop Down","Select from Drop Down",null,null,null,null,null,null,null,null,null,null,null,null,"Select from Drop Down","Select from Drop Down","Select from Drop Down"]
[322,null,null,"Select from Drop Down","Select from Drop Down","Select from Drop Down",null,null,null,null,null,null,null,null,null,null,null,null,"Select from Drop Down","Select from Drop Down","Select from Drop Down"]
[{"$f":"A332+1","v":323},null,null,"Select from Drop Down","Select from Drop Down","Select from Drop Down",null,null,null,null,null,null,null,null,null,null,null,null,"Select from Drop Down","Select from Drop Down","Select from Drop Down"]
[324,null,null,"Select from Drop Down","Select from Drop Down","Select from Drop Down",null,null,null,null,null,null,null,null,null,null,null,null,"Select from Drop Down","Select from Drop Down","Select from Drop Down"]
[325,null,null,"Select from Drop Down","Select from Drop Down","Select from Drop Down",null,null,null,null,null,null,null,null,null,null,null,null,"Select from Drop Down","Select from Drop Down","Select from Drop Down"]
[326,null,null,"Select from Drop Down","Select from Drop Down","Select from Drop Down",null,null,null,null,null,null,null,null,null,null,null,null,"Select from Drop Down","Select from Drop Down","Select from Drop Down"]
[327,null,null,"Select from Drop Down","Select from Drop Down","Select from Drop Down",null,null,null,null,null,null,null,null,null,null,null,null,"Select from Drop Down","Select from Drop Down","Select from Drop Down"]
[328,null,null,"Select from Drop Down","Select from Drop Down","Select from Drop Down",null,null,null,null,null,null,null,null,null,null,null,null,"Select from Drop Down","Select from Drop Down","Select from Drop Down"]
[329,null,null,"Select from Drop Down","Select from Drop Down","Select from Drop Down",null,null,null,null,null,null,null,null,null,null,null,null,"Select from Drop Down","Select from Drop Down","Select from Drop Down"]
[330,null,null,"Select from Drop Down","Select from Drop Down","Select from Drop Down",null,null,null,null,null,null,null,null,null,null,null,null,"Select from Drop Down","Select from Drop Down","Select from Drop Down"]
[331,null,null,"Select from Drop Down","Select from Drop Down","Select from Drop Down",null,null,null,null,null,null,null,null,null,null,null,null,"Select from Drop Down","Select from Drop Down","Select from Drop Down"]
[332,null,null,"Select from Drop Down","Select from Drop Down","Select from Drop Down",null,null,null,null,null,null,null,null,null,null,null,null,"Select from Drop Down","Select from Drop Down","Select from Drop Down"]
[333,null,null,"Select from Drop Down","Select from Drop Down","Select from Drop Down",null,null,null,null,null,null,null,null,null,null,null,null,"Select from Drop Down","Select from Drop Down","Select from Drop Down"]
[334,null,null,"Select from Drop Down","Select from Drop Down","Select from Drop Down",null,null,null,null,null,null,null,null,null,null,null,null,"Select from Drop Down","Select from Drop Down","Select from Drop Down"]
[335,null,null,"Select from Drop Down","Select from Drop Down","Select from Drop Down",null,null,null,null,null,null,null,null,null,null,null,null,"Select from Drop Down","Select from Drop Down","Select from Drop Down"]
[336,null,null,"Select from Drop Down","Select from Drop Down","Select from Drop Down",null,null,null,null,null,null,null,null,null,null,null,null,"Select from Drop Down","Select from Drop Down","Select from Drop Down"]
[337,null,null,"Select from Drop Down","Select from Drop Down","Select from Drop Down",null,null,null,null,null,null,null,null,null,null,null,null,"Select from Drop Down","Select from Drop Down","Select from Drop Down"]
[338,null,null,"Select from Drop Down","Select from Drop Down","Select from Drop Down",null,null,null,null,null,null,null,null,null,null,null,null,"Select from Drop Down","Select from Drop Down","Select from Drop Down"]
[339,null,null,"Select from Drop Down","Select from Drop Down","Select from Drop Down",null,null,null,null,null,null,null,null,null,null,null,null,"Select from Drop Down","Select from Drop Down","Select from Drop Down"]
[340,null,null,"Select from Drop Down","Select from Drop Down","Select from Drop Down",null,null,null,null,null,null,null,null,null,null,null,null,"Select from Drop Down","Select from Drop Down","Select from Drop Down"]
[341,null,null,"Select from Drop Down","Select from Drop Down","Select from Drop Down",null,null,null,null,null,null,null,null,null,null,null,null,"Select from Drop Down","Select from Drop Down","Select from Drop Down"]
[342,null,null,"Select from Drop Down","Select from Drop Down","Select from Drop Down",null,null,null,null,null,null,null,null,null,null,null,null,"Select from Drop Down","Select from Drop Down","Select from Drop Down"]
[343,null,null,"Select from Drop Down","Select from Drop Down","Select from Drop Down",null,null,null,null,null,null,null,null,null,null,null,null,"Select from Drop Down","Select from Drop Down","Select from Drop Down"]
[344,null,null,"Select from Drop Down","Select from Drop Down","Select from Drop Down",null,null,null,null,null,null,null,null,null,null,null,null,"Select from Drop Down","Select from Drop Down","Select from Drop Down"]
[345,null,null,"Select from Drop Down","Select from Drop Down","Select from Drop Down",null,null,null,null,null,null,null,null,null,null,null,null,"Select from Drop Down","Select from Drop Down","Select from Drop Down"]
[346,null,null,"Select from Drop Down","Select from Drop Down","Select from Drop Down",null,null,null,null,null,null,null,null,null,null,null,null,"Select from Drop Down","Select from Drop Down","Select from Drop Down"]
[347,null,null,"Select from Drop Down","Select from Drop Down","Select from Drop Down",null,null,null,null,null,null,null,null,null,null,null,null,"Select from Drop Down","Select from Drop Down","Select from Drop Down"]
[348,null,null,"Select from Drop Down","Select from Drop Down","Select from Drop Down",null,null,null,null,null,null,null,null,null,null,null,null,"Select from Drop Down","Select from Drop Down","Select from Drop Down"]
[349,null,null,"Select from Drop Down","Select from Drop Down","Select from Drop Down",null,null,null,null,null,null,null,null,null,null,null,null,"Select from Drop Down","Select from Drop Down","Select from Drop Down"]
[350,null,null,"Select from Drop Down","Select from Drop Down","Select from Drop Down",null,null,null,null,null,null,null,null,null,null,null,null,"Select from Drop Down","Select from Drop Down","Select from Drop Down"]
[351,null,null,"Select from Drop Down","Select from Drop Down","Select from Drop Down",null,null,null,null,null,null,null,null,null,null,null,null,"Select from Drop Down","Select from Drop Down","Select from Drop Down"]
[352,null,null,"Select from Drop Down","Select from Drop Down","Select from Drop Down",null,null,null,null,null,null,null,null,null,null,null,null,"Select from Drop Down","Select from Drop Down","Select from Drop Down"]
[353,null,null,"Select from Drop Down","Select from Drop Down","Select from Drop Down",null,null,null,null,null,null,null,null,null,null,null,null,"Select from Drop Down","Select from Drop Down","Select from Drop Down"]
[354,null,null,"Select from Drop Down","Select from Drop Down","Select from Drop Down",null,null,null,null,null,null,null,null,null,null,null,null,"Select from Drop Down","Select from Drop Down","Select from Drop Down"]
[355,null,null,"Select from Drop Down","Select from Drop Down","Select from Drop Down",null,null,null,null,null,null,null,null,null,null,null,null,"Select from Drop Down","Select from Drop Down","Select from Drop Down"]
[356,null,null,"Select from Drop Down","Select from Drop Down","Select from Drop Down",null,null,null,null,null,null,null,null,null,null,null,null,"Select from Drop Down","Select from Drop Down","Select from Drop Down"]
[357,null,null,"Select from Drop Down","Select from Drop Down","Select from Drop Down",null,null,null,null,null,null,null,null,null,null,null,null,"Select from Drop Down","Select from Drop Down","Select from Drop Down"]
[358,null,null,"Select from Drop Down","Select from Drop Down","Select from Drop Down",null,null,null,null,null,null,null,null,null,null,null,null,"Select from Drop Down","Select from Drop Down","Select from Drop Down"]
[359,null,null,"Select from Drop Down","Select from Drop Down","Select from Drop Down",null,null,null,null,null,null,null,null,null,null,null,null,"Select from Drop Down","Select from Drop Down","Select from Drop Down"]
[360,null,null,"Select from Drop Down","Select from Drop Down","Select from Drop Down",null,null,null,null,null,null,null,null,null,null,null,null,"Select from Drop Down","Select from Drop Down","Select from Drop Down"]
[361,null,null,"Select from Drop Down","Select from Drop Down","Select from Drop Down",null,null,null,null,null,null,null,null,null,null,null,null,"Select from Drop Down","Select from Drop Down","Select from Drop Down"]
[362,null,null,"Select from Drop Down","Select from Drop Down","Select from Drop Down",null,null,null,null,null,null,null,null,null,null,null,null,"Select from Drop Down","Select from Drop Down","Select from Drop Down"]
[363,null,null,"Select from Drop Down","Select from Drop Down","Select from Drop Down",null,null,null,null,null,null,null,null,null,null,null,null,"Select from Drop Down","Select from Drop Down","Select from Drop Down"]
[364,null,null,"Select from Drop Down","Select from Drop Down","Select from Drop Down",null,null,null,null,null,null,null,null,null,null,null,null,"Select from Drop Down","Select from Drop Down","Select from Drop Down"]
[365,null,null,"Select from Drop Down","Select from Drop Down","Select from Drop Down",null,null,null,null,null,null,null,null,null,null,null,null,"Select from Drop Down","Select from Drop Down","Select from Drop Down"]
[366,null,null,"Select from Drop Down","Select from Drop Down","Select from Drop Down",null,null,null,null,null,null,null,null,null,null,null,null,"Select from Drop Down","Select from Drop Down","Select from Drop Down"]
[367,null,null,"Select from Drop Down","Select from Drop Down","Select from Drop Down",null,null,null,null,null,null,null,null,null,null,null,null,"Select from Drop Down","Select from Drop Down","Select from Drop Down"]
[368,null,null,"Select from Drop Down","Select from Drop Down","Select from Drop Down",null,null,null,null,null,null,null,null,null,null,null,null,"Select from Drop Down","Select from Drop Down","Select from Drop Down"]
[369,null,null,"Select from Drop Down","Select from Drop Down","Select from Drop Down",null,null,null,null,null,null,null,null,null,null,null,null,"Select from Drop Down","Select from Drop Down","Select from Drop Down"]
[370,null,null,"Select from Drop Down","Select from Drop Down","Select from Drop Down",null,null,null,null,null,null,null,null,null,null,null,null,"Select from Drop Down","Select from Drop Down","Select from Drop Down"]
[371,null,null,"Select from Drop Down","Select from Drop Down","Select from Drop Down",null,null,null,null,null,null,null,null,null,null,null,null,"Select from Drop Down","Select from Drop Down","Select from Drop Down"]
[372,null,null,"Select from Drop Down","Select from Drop Down","Select from Drop Down",null,null,null,null,null,null,null,null,null,null,null,null,"Select from Drop Down","Select from Drop Down","Select from Drop Down"]
[373,null,null,"Select from Drop Down","Select from Drop Down","Select from Drop Down",null,null,null,null,null,null,null,null,null,null,null,null,"Select from Drop Down","Select from Drop Down","Select from Drop Down"]
[374,null,null,"Select from Drop Down","Select from Drop Down","Select from Drop Down",null,null,null,null,null,null,null,null,null,null,null,null,"Select from Drop Down","Select from Drop Down","Select from Drop Down"]
[375,null,null,"Select from Drop Down","Select from Drop Down","Select from Drop Down",null,null,null,null,null,null,null,null,null,null,null,null,"Select from Drop Down","Select from Drop Down","Select from Drop Down"]
[376,null,null,"Select from Drop Down","Select from Drop Down","Select from Drop Down",null,null,null,null,null,null,null,null,null,null,null,null,"Select from Drop Down","Select from Drop Down","Select from Drop Down"]
[377,null,null,"Select from Drop Down","Select from Drop Down","Select from Drop Down",null,null,null,null,null,null,null,null,null,null,null,null,"Select from Drop Down","Select from Drop Down","Select from Drop Down"]
[378,null,null,"Select from Drop Down","Select from Drop Down","Select from Drop Down",null,null,null,null,null,null,null,null,null,null,null,null,"Select from Drop Down","Select from Drop Down","Select from Drop Down"]
[379,null,null,"Select from Drop Down","Select from Drop Down","Select from Drop Down",null,null,null,null,null,null,null,null,null,null,null,null,"Select from Drop Down","Select from Drop Down","Select from Drop Down"]
[380,null,null,"Select from Drop Down","Select from Drop Down","Select from Drop Down",null,null,null,null,null,null,null,null,null,null,null,null,"Select from Drop Down","Select from Drop Down","Select from Drop Down"]
[381,null,null,"Select from Drop Down","Select from Drop Down","Select from Drop Down",null,null,null,null,null,null,null,null,null,null,null,null,"Select from Drop Down","Select from Drop Down","Select from Drop Down"]
[382,null,null,"Select from Drop Down","Select from Drop Down","Select from Drop Down",null,null,null,null,null,null,null,null,null,null,null,null,"Select from Drop Down","Select from Drop Down","Select from Drop Down"]
[383,null,null,"Select from Drop Down","Select from Drop Down","Select from Drop Down",null,null,null,null,null,null,null,null,null,null,null,null,"Select from Drop Down","Select from Drop Down","Select from Drop Down"]
[384,null,null,"Select from Drop Down","Select from Drop Down","Select from Drop Down",null,null,null,null,null,null,null,null,null,null,null,null,"Select from Drop Down","Select from Drop Down","Select from Drop Down"]
[385,null,null,"Select from Drop Down","Select from Drop Down","Select from Drop Down",null,null,null,null,null,null,null,null,null,null,null,null,"Select from Drop Down","Select from Drop Down","Select from Drop Down"]
[386,null,null,"Select from Drop Down","Select from Drop Down","Select from Drop Down",null,null,null,null,null,null,null,null,null,null,null,null,"Select from Drop Down","Select from Drop Down","Select from Drop Down"]
[{"$f":"A396+1","v":387},null,null,"Select from Drop Down","Select from Drop Down","Select from Drop Down",null,null,null,null,null,null,null,null,null,null,null,null,"Select from Drop Down","Select from Drop Down","Select from Drop Down"]
[388,null,null,"Select from Drop Down","Select from Drop Down","Select from Drop Down",null,null,null,null,null,null,null,null,null,null,null,null,"Select from Drop Down","Select from Drop Down","Select from Drop Down"]
[389,null,null,"Select from Drop Down","Select from Drop Down","Select from Drop Down",null,null,null,null,null,null,null,null,null,null,null,null,"Select from Drop Down","Select from Drop Down","Select from Drop Down"]
[390,null,null,"Select from Drop Down","Select from Drop Down","Select from Drop Down",null,null,null,null,null,null,null,null,null,null,null,null,"Select from Drop Down","Select from Drop Down","Select from Drop Down"]
[391,null,null,"Select from Drop Down","Select from Drop Down","Select from Drop Down",null,null,null,null,null,null,null,null,null,null,null,null,"Select from Drop Down","Select from Drop Down","Select from Drop Down"]
[392,null,null,"Select from Drop Down","Select from Drop Down","Select from Drop Down",null,null,null,null,null,null,null,null,null,null,null,null,"Select from Drop Down","Select from Drop Down","Select from Drop Down"]
[393,null,null,"Select from Drop Down","Select from Drop Down","Select from Drop Down",null,null,null,null,null,null,null,null,null,null,null,null,"Select from Drop Down","Select from Drop Down","Select from Drop Down"]
[394,null,null,"Select from Drop Down","Select from Drop Down","Select from Drop Down",null,null,null,null,null,null,null,null,null,null,null,null,"Select from Drop Down","Select from Drop Down","Select from Drop Down"]
[395,null,null,"Select from Drop Down","Select from Drop Down","Select from Drop Down",null,null,null,null,null,null,null,null,null,null,null,null,"Select from Drop Down","Select from Drop Down","Select from Drop Down"]
[396,null,null,"Select from Drop Down","Select from Drop Down","Select from Drop Down",null,null,null,null,null,null,null,null,null,null,null,null,"Select from Drop Down","Select from Drop Down","Select from Drop Down"]
[397,null,null,"Select from Drop Down","Select from Drop Down","Select from Drop Down",null,null,null,null,null,null,null,null,null,null,null,null,"Select from Drop Down","Select from Drop Down","Select from Drop Down"]
[398,null,null,"Select from Drop Down","Select from Drop Down","Select from Drop Down",null,null,null,null,null,null,null,null,null,null,null,null,"Select from Drop Down","Select from Drop Down","Select from Drop Down"]
[399,null,null,"Select from Drop Down","Select from Drop Down","Select from Drop Down",null,null,null,null,null,null,null,null,null,null,null,null,"Select from Drop Down","Select from Drop Down","Select from Drop Down"]
[400,null,null,"Select from Drop Down","Select from Drop Down","Select from Drop Down",null,null,null,null,null,null,null,null,null,null,null,null,"Select from Drop Down","Select from Drop Down","Select from Drop Down"]
[401,null,null,"Select from Drop Down","Select from Drop Down","Select from Drop Down",null,null,null,null,null,null,null,null,null,null,null,null,"Select from Drop Down","Select from Drop Down","Select from Drop Down"]
[402,null,null,"Select from Drop Down","Select from Drop Down","Select from Drop Down",null,null,null,null,null,null,null,null,null,null,null,null,"Select from Drop Down","Select from Drop Down","Select from Drop Down"]
[403,null,null,"Select from Drop Down","Select from Drop Down","Select from Drop Down",null,null,null,null,null,null,null,null,null,null,null,null,"Select from Drop Down","Select from Drop Down","Select from Drop Down"]
[404,null,null,"Select from Drop Down","Select from Drop Down","Select from Drop Down",null,null,null,null,null,null,null,null,null,null,null,null,"Select from Drop Down","Select from Drop Down","Select from Drop Down"]
[405,null,null,"Select from Drop Down","Select from Drop Down","Select from Drop Down",null,null,null,null,null,null,null,null,null,null,null,null,"Select from Drop Down","Select from Drop Down","Select from Drop Down"]
[406,null,null,"Select from Drop Down","Select from Drop Down","Select from Drop Down",null,null,null,null,null,null,null,null,null,null,null,null,"Select from Drop Down","Select from Drop Down","Select from Drop Down"]
[407,null,null,"Select from Drop Down","Select from Drop Down","Select from Drop Down",null,null,null,null,null,null,null,null,null,null,null,null,"Select from Drop Down","Select from Drop Down","Select from Drop Down"]
[408,null,null,"Select from Drop Down","Select from Drop Down","Select from Drop Down",null,null,null,null,null,null,null,null,null,null,null,null,"Select from Drop Down","Select from Drop Down","Select from Drop Down"]
[409,null,null,"Select from Drop Down","Select from Drop Down","Select from Drop Down",null,null,null,null,null,null,null,null,null,null,null,null,"Select from Drop Down","Select from Drop Down","Select from Drop Down"]
[410,null,null,"Select from Drop Down","Select from Drop Down","Select from Drop Down",null,null,null,null,null,null,null,null,null,null,null,null,"Select from Drop Down","Select from Drop Down","Select from Drop Down"]
[411,null,null,"Select from Drop Down","Select from Drop Down","Select from Drop Down",null,null,null,null,null,null,null,null,null,null,null,null,"Select from Drop Down","Select from Drop Down","Select from Drop Down"]
[412,null,null,"Select from Drop Down","Select from Drop Down","Select from Drop Down",null,null,null,null,null,null,null,null,null,null,null,null,"Select from Drop Down","Select from Drop Down","Select from Drop Down"]
[413,null,null,"Select from Drop Down","Select from Drop Down","Select from Drop Down",null,null,null,null,null,null,null,null,null,null,null,null,"Select from Drop Down","Select from Drop Down","Select from Drop Down"]
[414,null,null,"Select from Drop Down","Select from Drop Down","Select from Drop Down",null,null,null,null,null,null,null,null,null,null,null,null,"Select from Drop Down","Select from Drop Down","Select from Drop Down"]
[415,null,null,"Select from Drop Down","Select from Drop Down","Select from Drop Down",null,null,null,null,null,null,null,null,null,null,null,null,"Select from Drop Down","Select from Drop Down","Select from Drop Down"]
[416,null,null,"Select from Drop Down","Select from Drop Down","Select from Drop Down",null,null,null,null,null,null,null,null,null,null,null,null,"Select from Drop Down","Select from Drop Down","Select from Drop Down"]
[417,null,null,"Select from Drop Down","Select from Drop Down","Select from Drop Down",null,null,null,null,null,null,null,null,null,null,null,null,"Select from Drop Down","Select from Drop Down","Select from Drop Down"]
[418,null,null,"Select from Drop Down","Select from Drop Down","Select from Drop Down",null,null,null,null,null,null,null,null,null,null,null,null,"Select from Drop Down","Select from Drop Down","Select from Drop Down"]
[419,null,null,"Select from Drop Down","Select from Drop Down","Select from Drop Down",null,null,null,null,null,null,null,null,null,null,null,null,"Select from Drop Down","Select from Drop Down","Select from Drop Down"]
[420,null,null,"Select from Drop Down","Select from Drop Down","Select from Drop Down",null,null,null,null,null,null,null,null,null,null,null,null,"Select from Drop Down","Select from Drop Down","Select from Drop Down"]
[421,null,null,"Select from Drop Down","Select from Drop Down","Select from Drop Down",null,null,null,null,null,null,null,null,null,null,null,null,"Select from Drop Down","Select from Drop Down","Select from Drop Down"]
[422,null,null,"Select from Drop Down","Select from Drop Down","Select from Drop Down",null,null,null,null,null,null,null,null,null,null,null,null,"Select from Drop Down","Select from Drop Down","Select from Drop Down"]
[423,null,null,"Select from Drop Down","Select from Drop Down","Select from Drop Down",null,null,null,null,null,null,null,null,null,null,null,null,"Select from Drop Down","Select from Drop Down","Select from Drop Down"]
[424,null,null,"Select from Drop Down","Select from Drop Down","Select from Drop Down",null,null,null,null,null,null,null,null,null,null,null,null,"Select from Drop Down","Select from Drop Down","Select from Drop Down"]
[425,null,null,"Select from Drop Down","Select from Drop Down","Select from Drop Down",null,null,null,null,null,null,null,null,null,null,null,null,"Select from Drop Down","Select from Drop Down","Select from Drop Down"]
[426,null,null,"Select from Drop Down","Select from Drop Down","Select from Drop Down",null,null,null,null,null,null,null,null,null,null,null,null,"Select from Drop Down","Select from Drop Down","Select from Drop Down"]
[427,null,null,"Select from Drop Down","Select from Drop Down","Select from Drop Down",null,null,null,null,null,null,null,null,null,null,null,null,"Select from Drop Down","Select from Drop Down","Select from Drop Down"]
[428,null,null,"Select from Drop Down","Select from Drop Down","Select from Drop Down",null,null,null,null,null,null,null,null,null,null,null,null,"Select from Drop Down","Select from Drop Down","Select from Drop Down"]
[429,null,null,"Select from Drop Down","Select from Drop Down","Select from Drop Down",null,null,null,null,null,null,null,null,null,null,null,null,"Select from Drop Down","Select from Drop Down","Select from Drop Down"]
[430,null,null,"Select from Drop Down","Select from Drop Down","Select from Drop Down",null,null,null,null,null,null,null,null,null,null,null,null,"Select from Drop Down","Select from Drop Down","Select from Drop Down"]
[431,null,null,"Select from Drop Down","Select from Drop Down","Select from Drop Down",null,null,null,null,null,null,null,null,null,null,null,null,"Select from Drop Down","Select from Drop Down","Select from Drop Down"]
[432,null,null,"Select from Drop Down","Select from Drop Down","Select from Drop Down",null,null,null,null,null,null,null,null,null,null,null,null,"Select from Drop Down","Select from Drop Down","Select from Drop Down"]
[433,null,null,"Select from Drop Down","Select from Drop Down","Select from Drop Down",null,null,null,null,null,null,null,null,null,null,null,null,"Select from Drop Down","Select from Drop Down","Select from Drop Down"]
[434,null,null,"Select from Drop Down","Select from Drop Down","Select from Drop Down",null,null,null,null,null,null,null,null,null,null,null,null,"Select from Drop Down","Select from Drop Down","Select from Drop Down"]
[435,null,null,"Select from Drop Down","Select from Drop Down","Select from Drop Down",null,null,null,null,null,null,null,null,null,null,null,null,"Select from Drop Down","Select from Drop Down","Select from Drop Down"]
[436,null,null,"Select from Drop Down","Select from Drop Down","Select from Drop Down",null,null,null,null,null,null,null,null,null,null,null,null,"Select from Drop Down","Select from Drop Down","Select from Drop Down"]
[437,null,null,"Select from Drop Down","Select from Drop Down","Select from Drop Down",null,null,null,null,null,null,null,null,null,null,null,null,"Select from Drop Down","Select from Drop Down","Select from Drop Down"]
[438,null,null,"Select from Drop Down","Select from Drop Down","Select from Drop Down",null,null,null,null,null,null,null,null,null,null,null,null,"Select from Drop Down","Select from Drop Down","Select from Drop Down"]
[439,null,null,"Select from Drop Down","Select from Drop Down","Select from Drop Down",null,null,null,null,null,null,null,null,null,null,null,null,"Select from Drop Down","Select from Drop Down","Select from Drop Down"]
[440,null,null,"Select from Drop Down","Select from Drop Down","Select from Drop Down",null,null,null,null,null,null,null,null,null,null,null,null,"Select from Drop Down","Select from Drop Down","Select from Drop Down"]
[441,null,null,"Select from Drop Down","Select from Drop Down","Select from Drop Down",null,null,null,null,null,null,null,null,null,null,null,null,"Select from Drop Down","Select from Drop Down","Select from Drop Down"]
[442,null,null,"Select from Drop Down","Select from Drop Down","Select from Drop Down",null,null,null,null,null,null,null,null,null,null,null,null,"Select from Drop Down","Select from Drop Down","Select from Drop Down"]
[443,null,null,"Select from Drop Down","Select from Drop Down","Select from Drop Down",null,null,null,null,null,null,null,null,null,null,null,null,"Select from Drop Down","Select from Drop Down","Select from Drop Down"]
[444,null,null,"Select from Drop Down","Select from Drop Down","Select from Drop Down",null,null,null,null,null,null,null,null,null,null,null,null,"Select from Drop Down","Select from Drop Down","Select from Drop Down"]
[445,null,null,"Select from Drop Down","Select from Drop Down","Select from Drop Down",null,null,null,null,null,null,null,null,null,null,null,null,"Select from Drop Down","Select from Drop Down","Select from Drop Down"]
[446,null,null,"Select from Drop Down","Select from Drop Down","Select from Drop Down",null,null,null,null,null,null,null,null,null,null,null,null,"Select from Drop Down","Select from Drop Down","Select from Drop Down"]
[447,null,null,"Select from Drop Down","Select from Drop Down","Select from Drop Down",null,null,null,null,null,null,null,null,null,null,null,null,"Select from Drop Down","Select from Drop Down","Select from Drop Down"]
[448,null,null,"Select from Drop Down","Select from Drop Down","Select from Drop Down",null,null,null,null,null,null,null,null,null,null,null,null,"Select from Drop Down","Select from Drop Down","Select from Drop Down"]
[449,null,null,"Select from Drop Down","Select from Drop Down","Select from Drop Down",null,null,null,null,null,null,null,null,null,null,null,null,"Select from Drop Down","Select from Drop Down","Select from Drop Down"]
[450,null,null,"Select from Drop Down","Select from Drop Down","Select from Drop Down",null,null,null,null,null,null,null,null,null,null,null,null,"Select from Drop Down","Select from Drop Down","Select from Drop Down"]
[{"$f":"A460+1","v":451},null,null,"Select from Drop Down","Select from Drop Down","Select from Drop Down",null,null,null,null,null,null,null,null,null,null,null,null,"Select from Drop Down","Select from Drop Down","Select from Drop Down"]
[452,null,null,"Select from Drop Down","Select from Drop Down","Select from Drop Down",null,null,null,null,null,null,null,null,null,null,null,null,"Select from Drop Down","Select from Drop Down","Select from Drop Down"]
[453,null,null,"Select from Drop Down","Select from Drop Down","Select from Drop Down",null,null,null,null,null,null,null,null,null,null,null,null,"Select from Drop Down","Select from Drop Down","Select from Drop Down"]
[454,null,null,"Select from Drop Down","Select from Drop Down","Select from Drop Down",null,null,null,null,null,null,null,null,null,null,null,null,"Select from Drop Down","Select from Drop Down","Select from Drop Down"]
[455,null,null,"Select from Drop Down","Select from Drop Down","Select from Drop Down",null,null,null,null,null,null,null,null,null,null,null,null,"Select from Drop Down","Select from Drop Down","Select from Drop Down"]
[456,null,null,"Select from Drop Down","Select from Drop Down","Select from Drop Down",null,null,null,null,null,null,null,null,null,null,null,null,"Select from Drop Down","Select from Drop Down","Select from Drop Down"]
[457,null,null,"Select from Drop Down","Select from Drop Down","Select from Drop Down",null,null,null,null,null,null,null,null,null,null,null,null,"Select from Drop Down","Select from Drop Down","Select from Drop Down"]
[458,null,null,"Select from Drop Down","Select from Drop Down","Select from Drop Down",null,null,null,null,null,null,null,null,null,null,null,null,"Select from Drop Down","Select from Drop Down","Select from Drop Down"]
[459,null,null,"Select from Drop Down","Select from Drop Down","Select from Drop Down",null,null,null,null,null,null,null,null,null,null,null,null,"Select from Drop Down","Select from Drop Down","Select from Drop Down"]
[460,null,null,"Select from Drop Down","Select from Drop Down","Select from Drop Down",null,null,null,null,null,null,null,null,null,null,null,null,"Select from Drop Down","Select from Drop Down","Select from Drop Down"]
[461,null,null,"Select from Drop Down","Select from Drop Down","Select from Drop Down",null,null,null,null,null,null,null,null,null,null,null,null,"Select from Drop Down","Select from Drop Down","Select from Drop Down"]
[462,null,null,"Select from Drop Down","Select from Drop Down","Select from Drop Down",null,null,null,null,null,null,null,null,null,null,null,null,"Select from Drop Down","Select from Drop Down","Select from Drop Down"]
[463,null,null,"Select from Drop Down","Select from Drop Down","Select from Drop Down",null,null,null,null,null,null,null,null,null,null,null,null,"Select from Drop Down","Select from Drop Down","Select from Drop Down"]
[464,null,null,"Select from Drop Down","Select from Drop Down","Select from Drop Down",null,null,null,null,null,null,null,null,null,null,null,null,"Select from Drop Down","Select from Drop Down","Select from Drop Down"]
[465,null,null,"Select from Drop Down","Select from Drop Down","Select from Drop Down",null,null,null,null,null,null,null,null,null,null,null,null,"Select from Drop Down","Select from Drop Down","Select from Drop Down"]
[466,null,null,"Select from Drop Down","Select from Drop Down","Select from Drop Down",null,null,null,null,null,null,null,null,null,null,null,null,"Select from Drop Down","Select from Drop Down","Select from Drop Down"]
[467,null,null,"Select from Drop Down","Select from Drop Down","Select from Drop Down",null,null,null,null,null,null,null,null,null,null,null,null,"Select from Drop Down","Select from Drop Down","Select from Drop Down"]
[468,null,null,"Select from Drop Down","Select from Drop Down","Select from Drop Down",null,null,null,null,null,null,null,null,null,null,null,null,"Select from Drop Down","Select from Drop Down","Select from Drop Down"]
[469,null,null,"Select from Drop Down","Select from Drop Down","Select from Drop Down",null,null,null,null,null,null,null,null,null,null,null,null,"Select from Drop Down","Select from Drop Down","Select from Drop Down"]
[470,null,null,"Select from Drop Down","Select from Drop Down","Select from Drop Down",null,null,null,null,null,null,null,null,null,null,null,null,"Select from Drop Down","Select from Drop Down","Select from Drop Down"]
[471,null,null,"Select from Drop Down","Select from Drop Down","Select from Drop Down",null,null,null,null,null,null,null,null,null,null,null,null,"Select from Drop Down","Select from Drop Down","Select from Drop Down"]
[472,null,null,"Select from Drop Down","Select from Drop Down","Select from Drop Down",null,null,null,null,null,null,null,null,null,null,null,null,"Select from Drop Down","Select from Drop Down","Select from Drop Down"]
[473,null,null,"Select from Drop Down","Select from Drop Down","Select from Drop Down",null,null,null,null,null,null,null,null,null,null,null,null,"Select from Drop Down","Select from Drop Down","Select from Drop Down"]
[474,null,null,"Select from Drop Down","Select from Drop Down","Select from Drop Down",null,null,null,null,null,null,null,null,null,null,null,null,"Select from Drop Down","Select from Drop Down","Select from Drop Down"]
[475,null,null,"Select from Drop Down","Select from Drop Down","Select from Drop Down",null,null,null,null,null,null,null,null,null,null,null,null,"Select from Drop Down","Select from Drop Down","Select from Drop Down"]
[476,null,null,"Select from Drop Down","Select from Drop Down","Select from Drop Down",null,null,null,null,null,null,null,null,null,null,null,null,"Select from Drop Down","Select from Drop Down","Select from Drop Down"]
[477,null,null,"Select from Drop Down","Select from Drop Down","Select from Drop Down",null,null,null,null,null,null,null,null,null,null,null,null,"Select from Drop Down","Select from Drop Down","Select from Drop Down"]
[478,null,null,"Select from Drop Down","Select from Drop Down","Select from Drop Down",null,null,null,null,null,null,null,null,null,null,null,null,"Select from Drop Down","Select from Drop Down","Select from Drop Down"]
[479,null,null,"Select from Drop Down","Select from Drop Down","Select from Drop Down",null,null,null,null,null,null,null,null,null,null,null,null,"Select from Drop Down","Select from Drop Down","Select from Drop Down"]
[480,null,null,"Select from Drop Down","Select from Drop Down","Select from Drop Down",null,null,null,null,null,null,null,null,null,null,null,null,"Select from Drop Down","Select from Drop Down","Select from Drop Down"]
[481,null,null,"Select from Drop Down","Select from Drop Down","Select from Drop Down",null,null,null,null,null,null,null,null,null,null,null,null,"Select from Drop Down","Select from Drop Down","Select from Drop Down"]
[482,null,null,"Select from Drop Down","Select from Drop Down","Select from Drop Down",null,null,null,null,null,null,null,null,null,null,null,null,"Select from Drop Down","Select from Drop Down","Select from Drop Down"]
[483,null,null,"Select from Drop Down","Select from Drop Down","Select from Drop Down",null,null,null,null,null,null,null,null,null,null,null,null,"Select from Drop Down","Select from Drop Down","Select from Drop Down"]
[484,null,null,"Select from Drop Down","Select from Drop Down","Select from Drop Down",null,null,null,null,null,null,null,null,null,null,null,null,"Select from Drop Down","Select from Drop Down","Select from Drop Down"]
[485,null,null,"Select from Drop Down","Select from Drop Down","Select from Drop Down",null,null,null,null,null,null,null,null,null,null,null,null,"Select from Drop Down","Select from Drop Down","Select from Drop Down"]
[486,null,null,"Select from Drop Down","Select from Drop Down","Select from Drop Down",null,null,null,null,null,null,null,null,null,null,null,null,"Select from Drop Down","Select from Drop Down","Select from Drop Down"]
[487,null,null,"Select from Drop Down","Select from Drop Down","Select from Drop Down",null,null,null,null,null,null,null,null,null,null,null,null,"Select from Drop Down","Select from Drop Down","Select from Drop Down"]
[488,null,null,"Select from Drop Down","Select from Drop Down","Select from Drop Down",null,null,null,null,null,null,null,null,null,null,null,null,"Select from Drop Down","Select from Drop Down","Select from Drop Down"]
[489,null,null,"Select from Drop Down","Select from Drop Down","Select from Drop Down",null,null,null,null,null,null,null,null,null,null,null,null,"Select from Drop Down","Select from Drop Down","Select from Drop Down"]
[490,null,null,"Select from Drop Down","Select from Drop Down","Select from Drop Down",null,null,null,null,null,null,null,null,null,null,null,null,"Select from Drop Down","Select from Drop Down","Select from Drop Down"]
[491,null,null,"Select from Drop Down","Select from Drop Down","Select from Drop Down",null,null,null,null,null,null,null,null,null,null,null,null,"Select from Drop Down","Select from Drop Down","Select from Drop Down"]
[492,null,null,"Select from Drop Down","Select from Drop Down","Select from Drop Down",null,null,null,null,null,null,null,null,null,null,null,null,"Select from Drop Down","Select from Drop Down","Select from Drop Down"]
[493,null,null,"Select from Drop Down","Select from Drop Down","Select from Drop Down",null,null,null,null,null,null,null,null,null,null,null,null,"Select from Drop Down","Select from Drop Down","Select from Drop Down"]
[494,null,null,"Select from Drop Down","Select from Drop Down","Select from Drop Down",null,null,null,null,null,null,null,null,null,null,null,null,"Select from Drop Down","Select from Drop Down","Select from Drop Down"]
[495,null,null,"Select from Drop Down","Select from Drop Down","Select from Drop Down",null,null,null,null,null,null,null,null,null,null,null,null,"Select from Drop Down","Select from Drop Down","Select from Drop Down"]
[496,null,null,"Select from Drop Down","Select from Drop Down","Select from Drop Down",null,null,null,null,null,null,null,null,null,null,null,null,"Select from Drop Down","Select from Drop Down","Select from Drop Down"]
[497,null,null,"Select from Drop Down","Select from Drop Down","Select from Drop Down",null,null,null,null,null,null,null,null,null,null,null,null,"Select from Drop Down","Select from Drop Down","Select from Drop Down"]
[498,null,null,"Select from Drop Down","Select from Drop Down","Select from Drop Down",null,null,null,null,null,null,null,null,null,null,null,null,"Select from Drop Down","Select from Drop Down","Select from Drop Down"]
[499,null,null,"Select from Drop Down","Select from Drop Down","Select from Drop Down",null,null,null,null,null,null,null,null,null,null,null,null,"Select from Drop Down","Select from Drop Down","Select from Drop Down"]
[500,null,null,"Select from Drop Down","Select from Drop Down","Select from Drop Down",null,null,null,null,null,null,null,null,null,null,null,null,"Select from Drop Down","Select from Drop Down","Select from Drop Down"]
[501,null,null,"Select from Drop Down","Select from Drop Down","Select from Drop Down",null,null,null,null,null,null,null,null,null,null,null,null,"Select from Drop Down","Select from Drop Down","Select from Drop Down"]
[502,null,null,"Select from Drop Down","Select from Drop Down","Select from Drop Down",null,null,null,null,null,null,null,null,null,null,null,null,"Select from Drop Down","Select from Drop Down","Select from Drop Down"]
[503,null,null,"Select from Drop Down","Select from Drop Down","Select from Drop Down",null,null,null,null,null,null,null,null,null,null,null,null,"Select from Drop Down","Select from Drop Down","Select from Drop Down"]
[504,null,null,"Select from Drop Down","Select from Drop Down","Select from Drop Down",null,null,null,null,null,null,null,null,null,null,null,null,"Select from Drop Down","Select from Drop Down","Select from Drop Down"]
[505,null,null,"Select from Drop Down","Select from Drop Down","Select from Drop Down",null,null,null,null,null,null,null,null,null,null,null,null,"Select from Drop Down","Select from Drop Down","Select from Drop Down"]
[506,null,null,"Select from Drop Down","Select from Drop Down","Select from Drop Down",null,null,null,null,null,null,null,null,null,null,null,null,"Select from Drop Down","Select from Drop Down","Select from Drop Down"]
[507,null,null,"Select from Drop Down","Select from Drop Down","Select from Drop Down",null,null,null,null,null,null,null,null,null,null,null,null,"Select from Drop Down","Select from Drop Down","Select from Drop Down"]
[508,null,null,"Select from Drop Down","Select from Drop Down","Select from Drop Down",null,null,null,null,null,null,null,null,null,null,null,null,"Select from Drop Down","Select from Drop Down","Select from Drop Down"]
[509,null,null,"Select from Drop Down","Select from Drop Down","Select from Drop Down",null,null,null,null,null,null,null,null,null,null,null,null,"Select from Drop Down","Select from Drop Down","Select from Drop Down"]
[510,null,null,"Select from Drop Down","Select from Drop Down","Select from Drop Down",null,null,null,null,null,null,null,null,null,null,null,null,"Select from Drop Down","Select from Drop Down","Select from Drop Down"]
[511,null,null,"Select from Drop Down","Select from Drop Down","Select from Drop Down",null,null,null,null,null,null,null,null,null,null,null,null,"Select from Drop Down","Select from Drop Down","Select from Drop Down"]
[512,null,null,"Select from Drop Down","Select from Drop Down","Select from Drop Down",null,null,null,null,null,null,null,null,null,null,null,null,"Select from Drop Down","Select from Drop Down","Select from Drop Down"]
[513,null,null,"Select from Drop Down","Select from Drop Down","Select from Drop Down",null,null,null,null,null,null,null,null,null,null,null,null,"Select from Drop Down","Select from Drop Down","Select from Drop Down"]
[514,null,null,"Select from Drop Down","Select from Drop Down","Select from Drop Down",null,null,null,null,null,null,null,null,null,null,null,null,"Select from Drop Down","Select from Drop Down","Select from Drop Down"]
[{"$f":"A524+1","v":515},null,null,"Select from Drop Down","Select from Drop Down","Select from Drop Down",null,null,null,null,null,null,null,null,null,null,null,null,"Select from Drop Down","Select from Drop Down","Select from Drop Down"]
[516,null,null,"Select from Drop Down","Select from Drop Down","Select from Drop Down",null,null,null,null,null,null,null,null,null,null,null,null,"Select from Drop Down","Select from Drop Down","Select from Drop Down"]
[517,null,null,"Select from Drop Down","Select from Drop Down","Select from Drop Down",null,null,null,null,null,null,null,null,null,null,null,null,"Select from Drop Down","Select from Drop Down","Select from Drop Down"]
[518,null,null,"Select from Drop Down","Select from Drop Down","Select from Drop Down",null,null,null,null,null,null,null,null,null,null,null,null,"Select from Drop Down","Select from Drop Down","Select from Drop Down"]
[519,null,null,"Select from Drop Down","Select from Drop Down","Select from Drop Down",null,null,null,null,null,null,null,null,null,null,null,null,"Select from Drop Down","Select from Drop Down","Select from Drop Down"]
[520,null,null,"Select from Drop Down","Select from Drop Down","Select from Drop Down",null,null,null,null,null,null,null,null,null,null,null,null,"Select from Drop Down","Select from Drop Down","Select from Drop Down"]
[521,null,null,"Select from Drop Down","Select from Drop Down","Select from Drop Down",null,null,null,null,null,null,null,null,null,null,null,null,"Select from Drop Down","Select from Drop Down","Select from Drop Down"]
[522,null,null,"Select from Drop Down","Select from Drop Down","Select from Drop Down",null,null,null,null,null,null,null,null,null,null,null,null,"Select from Drop Down","Select from Drop Down","Select from Drop Down"]
[523,null,null,"Select from Drop Down","Select from Drop Down","Select from Drop Down",null,null,null,null,null,null,null,null,null,null,null,null,"Select from Drop Down","Select from Drop Down","Select from Drop Down"]
[524,null,null,"Select from Drop Down","Select from Drop Down","Select from Drop Down",null,null,null,null,null,null,null,null,null,null,null,null,"Select from Drop Down","Select from Drop Down","Select from Drop Down"]
[525,null,null,"Select from Drop Down","Select from Drop Down","Select from Drop Down",null,null,null,null,null,null,null,null,null,null,null,null,"Select from Drop Down","Select from Drop Down","Select from Drop Down"]
[526,null,null,"Select from Drop Down","Select from Drop Down","Select from Drop Down",null,null,null,null,null,null,null,null,null,null,null,null,"Select from Drop Down","Select from Drop Down","Select from Drop Down"]
[527,null,null,"Select from Drop Down","Select from Drop Down","Select from Drop Down",null,null,null,null,null,null,null,null,null,null,null,null,"Select from Drop Down","Select from Drop Down","Select from Drop Down"]
[528,null,null,"Select from Drop Down","Select from Drop Down","Select from Drop Down",null,null,null,null,null,null,null,null,null,null,null,null,"Select from Drop Down","Select from Drop Down","Select from Drop Down"]
[529,null,null,"Select from Drop Down","Select from Drop Down","Select from Drop Down",null,null,null,null,null,null,null,null,null,null,null,null,"Select from Drop Down","Select from Drop Down","Select from Drop Down"]
[530,null,null,"Select from Drop Down","Select from Drop Down","Select from Drop Down",null,null,null,null,null,null,null,null,null,null,null,null,"Select from Drop Down","Select from Drop Down","Select from Drop Down"]
[531,null,null,"Select from Drop Down","Select from Drop Down","Select from Drop Down",null,null,null,null,null,null,null,null,null,null,null,null,"Select from Drop Down","Select from Drop Down","Select from Drop Down"]
[532,null,null,"Select from Drop Down","Select from Drop Down","Select from Drop Down",null,null,null,null,null,null,null,null,null,null,null,null,"Select from Drop Down","Select from Drop Down","Select from Drop Down"]
[533,null,null,"Select from Drop Down","Select from Drop Down","Select from Drop Down",null,null,null,null,null,null,null,null,null,null,null,null,"Select from Drop Down","Select from Drop Down","Select from Drop Down"]
[534,null,null,"Select from Drop Down","Select from Drop Down","Select from Drop Down",null,null,null,null,null,null,null,null,null,null,null,null,"Select from Drop Down","Select from Drop Down","Select from Drop Down"]
[535,null,null,"Select from Drop Down","Select from Drop Down","Select from Drop Down",null,null,null,null,null,null,null,null,null,null,null,null,"Select from Drop Down","Select from Drop Down","Select from Drop Down"]
[536,null,null,"Select from Drop Down","Select from Drop Down","Select from Drop Down",null,null,null,null,null,null,null,null,null,null,null,null,"Select from Drop Down","Select from Drop Down","Select from Drop Down"]
[537,null,null,"Select from Drop Down","Select from Drop Down","Select from Drop Down",null,null,null,null,null,null,null,null,null,null,null,null,"Select from Drop Down","Select from Drop Down","Select from Drop Down"]
[538,null,null,"Select from Drop Down","Select from Drop Down","Select from Drop Down",null,null,null,null,null,null,null,null,null,null,null,null,"Select from Drop Down","Select from Drop Down","Select from Drop Down"]
[539,null,null,"Select from Drop Down","Select from Drop Down","Select from Drop Down",null,null,null,null,null,null,null,null,null,null,null,null,"Select from Drop Down","Select from Drop Down","Select from Drop Down"]
[540,null,null,"Select from Drop Down","Select from Drop Down","Select from Drop Down",null,null,null,null,null,null,null,null,null,null,null,null,"Select from Drop Down","Select from Drop Down","Select from Drop Down"]
[541,null,null,"Select from Drop Down","Select from Drop Down","Select from Drop Down",null,null,null,null,null,null,null,null,null,null,null,null,"Select from Drop Down","Select from Drop Down","Select from Drop Down"]
[542,null,null,"Select from Drop Down","Select from Drop Down","Select from Drop Down",null,null,null,null,null,null,null,null,null,null,null,null,"Select from Drop Down","Select from Drop Down","Select from Drop Down"]
[543,null,null,"Select from Drop Down","Select from Drop Down","Select from Drop Down",null,null,null,null,null,null,null,null,null,null,null,null,"Select from Drop Down","Select from Drop Down","Select from Drop Down"]
[544,null,null,"Select from Drop Down","Select from Drop Down","Select from Drop Down",null,null,null,null,null,null,null,null,null,null,null,null,"Select from Drop Down","Select from Drop Down","Select from Drop Down"]
[545,null,null,"Select from Drop Down","Select from Drop Down","Select from Drop Down",null,null,null,null,null,null,null,null,null,null,null,null,"Select from Drop Down","Select from Drop Down","Select from Drop Down"]
[546,null,null,"Select from Drop Down","Select from Drop Down","Select from Drop Down",null,null,null,null,null,null,null,null,null,null,null,null,"Select from Drop Down","Select from Drop Down","Select from Drop Down"]
[547,null,null,"Select from Drop Down","Select from Drop Down","Select from Drop Down",null,null,null,null,null,null,null,null,null,null,null,null,"Select from Drop Down","Select from Drop Down","Select from Drop Down"]
[548,null,null,"Select from Drop Down","Select from Drop Down","Select from Drop Down",null,null,null,null,null,null,null,null,null,null,null,null,"Select from Drop Down","Select from Drop Down","Select from Drop Down"]
[549,null,null,"Select from Drop Down","Select from Drop Down","Select from Drop Down",null,null,null,null,null,null,null,null,null,null,null,null,"Select from Drop Down","Select from Drop Down","Select from Drop Down"]
[550,null,null,"Select from Drop Down","Select from Drop Down","Select from Drop Down",null,null,null,null,null,null,null,null,null,null,null,null,"Select from Drop Down","Select from Drop Down","Select from Drop Down"]
[551,null,null,"Select from Drop Down","Select from Drop Down","Select from Drop Down",null,null,null,null,null,null,null,null,null,null,null,null,"Select from Drop Down","Select from Drop Down","Select from Drop Down"]
[552,null,null,"Select from Drop Down","Select from Drop Down","Select from Drop Down",null,null,null,null,null,null,null,null,null,null,null,null,"Select from Drop Down","Select from Drop Down","Select from Drop Down"]
[553,null,null,"Select from Drop Down","Select from Drop Down","Select from Drop Down",null,null,null,null,null,null,null,null,null,null,null,null,"Select from Drop Down","Select from Drop Down","Select from Drop Down"]
[554,null,null,"Select from Drop Down","Select from Drop Down","Select from Drop Down",null,null,null,null,null,null,null,null,null,null,null,null,"Select from Drop Down","Select from Drop Down","Select from Drop Down"]
[555,null,null,"Select from Drop Down","Select from Drop Down","Select from Drop Down",null,null,null,null,null,null,null,null,null,null,null,null,"Select from Drop Down","Select from Drop Down","Select from Drop Down"]
[556,null,null,"Select from Drop Down","Select from Drop Down","Select from Drop Down",null,null,null,null,null,null,null,null,null,null,null,null,"Select from Drop Down","Select from Drop Down","Select from Drop Down"]
[557,null,null,"Select from Drop Down","Select from Drop Down","Select from Drop Down",null,null,null,null,null,null,null,null,null,null,null,null,"Select from Drop Down","Select from Drop Down","Select from Drop Down"]
[558,null,null,"Select from Drop Down","Select from Drop Down","Select from Drop Down",null,null,null,null,null,null,null,null,null,null,null,null,"Select from Drop Down","Select from Drop Down","Select from Drop Down"]
[559,null,null,"Select from Drop Down","Select from Drop Down","Select from Drop Down",null,null,null,null,null,null,null,null,null,null,null,null,"Select from Drop Down","Select from Drop Down","Select from Drop Down"]
[560,null,null,"Select from Drop Down","Select from Drop Down","Select from Drop Down",null,null,null,null,null,null,null,null,null,null,null,null,"Select from Drop Down","Select from Drop Down","Select from Drop Down"]
[561,null,null,"Select from Drop Down","Select from Drop Down","Select from Drop Down",null,null,null,null,null,null,null,null,null,null,null,null,"Select from Drop Down","Select from Drop Down","Select from Drop Down"]
[562,null,null,"Select from Drop Down","Select from Drop Down","Select from Drop Down",null,null,null,null,null,null,null,null,null,null,null,null,"Select from Drop Down","Select from Drop Down","Select from Drop Down"]
[563,null,null,"Select from Drop Down","Select from Drop Down","Select from Drop Down",null,null,null,null,null,null,null,null,null,null,null,null,"Select from Drop Down","Select from Drop Down","Select from Drop Down"]
[564,null,null,"Select from Drop Down","Select from Drop Down","Select from Drop Down",null,null,null,null,null,null,null,null,null,null,null,null,"Select from Drop Down","Select from Drop Down","Select from Drop Down"]
[565,null,null,"Select from Drop Down","Select from Drop Down","Select from Drop Down",null,null,null,null,null,null,null,null,null,null,null,null,"Select from Drop Down","Select from Drop Down","Select from Drop Down"]
[566,null,null,"Select from Drop Down","Select from Drop Down","Select from Drop Down",null,null,null,null,null,null,null,null,null,null,null,null,"Select from Drop Down","Select from Drop Down","Select from Drop Down"]
[567,null,null,"Select from Drop Down","Select from Drop Down","Select from Drop Down",null,null,null,null,null,null,null,null,null,null,null,null,"Select from Drop Down","Select from Drop Down","Select from Drop Down"]
[568,null,null,"Select from Drop Down","Select from Drop Down","Select from Drop Down",null,null,null,null,null,null,null,null,null,null,null,null,"Select from Drop Down","Select from Drop Down","Select from Drop Down"]
[569,null,null,"Select from Drop Down","Select from Drop Down","Select from Drop Down",null,null,null,null,null,null,null,null,null,null,null,null,"Select from Drop Down","Select from Drop Down","Select from Drop Down"]
[570,null,null,"Select from Drop Down","Select from Drop Down","Select from Drop Down",null,null,null,null,null,null,null,null,null,null,null,null,"Select from Drop Down","Select from Drop Down","Select from Drop Down"]
[571,null,null,"Select from Drop Down","Select from Drop Down","Select from Drop Down",null,null,null,null,null,null,null,null,null,null,null,null,"Select from Drop Down","Select from Drop Down","Select from Drop Down"]
[572,null,null,"Select from Drop Down","Select from Drop Down","Select from Drop Down",null,null,null,null,null,null,null,null,null,null,null,null,"Select from Drop Down","Select from Drop Down","Select from Drop Down"]
[573,null,null,"Select from Drop Down","Select from Drop Down","Select from Drop Down",null,null,null,null,null,null,null,null,null,null,null,null,"Select from Drop Down","Select from Drop Down","Select from Drop Down"]
[574,null,null,"Select from Drop Down","Select from Drop Down","Select from Drop Down",null,null,null,null,null,null,null,null,null,null,null,null,"Select from Drop Down","Select from Drop Down","Select from Drop Down"]
[575,null,null,"Select from Drop Down","Select from Drop Down","Select from Drop Down",null,null,null,null,null,null,null,null,null,null,null,null,"Select from Drop Down","Select from Drop Down","Select from Drop Down"]
[576,null,null,"Select from Drop Down","Select from Drop Down","Select from Drop Down",null,null,null,null,null,null,null,null,null,null,null,null,"Select from Drop Down","Select from Drop Down","Select from Drop Down"]
[577,null,null,"Select from Drop Down","Select from Drop Down","Select from Drop Down",null,null,null,null,null,null,null,null,null,null,null,null,"Select from Drop Down","Select from Drop Down","Select from Drop Down"]
[578,null,null,"Select from Drop Down","Select from Drop Down","Select from Drop Down",null,null,null,null,null,null,null,null,null,null,null,null,"Select from Drop Down","Select from Drop Down","Select from Drop Down"]
[{"$f":"A588+1","v":579},null,null,"Select from Drop Down","Select from Drop Down","Select from Drop Down",null,null,null,null,null,null,null,null,null,null,null,null,"Select from Drop Down","Select from Drop Down","Select from Drop Down"]
[580,null,null,"Select from Drop Down","Select from Drop Down","Select from Drop Down",null,null,null,null,null,null,null,null,null,null,null,null,"Select from Drop Down","Select from Drop Down","Select from Drop Down"]
[581,null,null,"Select from Drop Down","Select from Drop Down","Select from Drop Down",null,null,null,null,null,null,null,null,null,null,null,null,"Select from Drop Down","Select from Drop Down","Select from Drop Down"]
[582,null,null,"Select from Drop Down","Select from Drop Down","Select from Drop Down",null,null,null,null,null,null,null,null,null,null,null,null,"Select from Drop Down","Select from Drop Down","Select from Drop Down"]
[583,null,null,"Select from Drop Down","Select from Drop Down","Select from Drop Down",null,null,null,null,null,null,null,null,null,null,null,null,"Select from Drop Down","Select from Drop Down","Select from Drop Down"]
[584,null,null,"Select from Drop Down","Select from Drop Down","Select from Drop Down",null,null,null,null,null,null,null,null,null,null,null,null,"Select from Drop Down","Select from Drop Down","Select from Drop Down"]
[585,null,null,"Select from Drop Down","Select from Drop Down","Select from Drop Down",null,null,null,null,null,null,null,null,null,null,null,null,"Select from Drop Down","Select from Drop Down","Select from Drop Down"]
[586,null,null,"Select from Drop Down","Select from Drop Down","Select from Drop Down",null,null,null,null,null,null,null,null,null,null,null,null,"Select from Drop Down","Select from Drop Down","Select from Drop Down"]
[587,null,null,"Select from Drop Down","Select from Drop Down","Select from Drop Down",null,null,null,null,null,null,null,null,null,null,null,null,"Select from Drop Down","Select from Drop Down","Select from Drop Down"]
[588,null,null,"Select from Drop Down","Select from Drop Down","Select from Drop Down",null,null,null,null,null,null,null,null,null,null,null,null,"Select from Drop Down","Select from Drop Down","Select from Drop Down"]
[589,null,null,"Select from Drop Down","Select from Drop Down","Select from Drop Down",null,null,null,null,null,null,null,null,null,null,null,null,"Select from Drop Down","Select from Drop Down","Select from Drop Down"]
[590,null,null,"Select from Drop Down","Select from Drop Down","Select from Drop Down",null,null,null,null,null,null,null,null,null,null,null,null,"Select from Drop Down","Select from Drop Down","Select from Drop Down"]
[591,null,null,"Select from Drop Down","Select from Drop Down","Select from Drop Down",null,null,null,null,null,null,null,null,null,null,null,null,"Select from Drop Down","Select from Drop Down","Select from Drop Down"]
[592,null,null,"Select from Drop Down","Select from Drop Down","Select from Drop Down",null,null,null,null,null,null,null,null,null,null,null,null,"Select from Drop Down","Select from Drop Down","Select from Drop Down"]
[593,null,null,"Select from Drop Down","Select from Drop Down","Select from Drop Down",null,null,null,null,null,null,null,null,null,null,null,null,"Select from Drop Down","Select from Drop Down","Select from Drop Down"]
[594,null,null,"Select from Drop Down","Select from Drop Down","Select from Drop Down",null,null,null,null,null,null,null,null,null,null,null,null,"Select from Drop Down","Select from Drop Down","Select from Drop Down"]
[595,null,null,"Select from Drop Down","Select from Drop Down","Select from Drop Down",null,null,null,null,null,null,null,null,null,null,null,null,"Select from Drop Down","Select from Drop Down","Select from Drop Down"]
[596,null,null,"Select from Drop Down","Select from Drop Down","Select from Drop Down",null,null,null,null,null,null,null,null,null,null,null,null,"Select from Drop Down","Select from Drop Down","Select from Drop Down"]
[597,null,null,"Select from Drop Down","Select from Drop Down","Select from Drop Down",null,null,null,null,null,null,null,null,null,null,null,null,"Select from Drop Down","Select from Drop Down","Select from Drop Down"]
[598,null,null,"Select from Drop Down","Select from Drop Down","Select from Drop Down",null,null,null,null,null,null,null,null,null,null,null,null,"Select from Drop Down","Select from Drop Down","Select from Drop Down"]
[599,null,null,"Select from Drop Down","Select from Drop Down","Select from Drop Down",null,null,null,null,null,null,null,null,null,null,null,null,"Select from Drop Down","Select from Drop Down","Select from Drop Down"]
[600,null,null,"Select from Drop Down","Select from Drop Down","Select from Drop Down",null,null,null,null,null,null,null,null,null,null,null,null,"Select from Drop Down","Select from Drop Down","Select from Drop Down"]
[601,null,null,"Select from Drop Down","Select from Drop Down","Select from Drop Down",null,null,null,null,null,null,null,null,null,null,null,null,"Select from Drop Down","Select from Drop Down","Select from Drop Down"]
[602,null,null,"Select from Drop Down","Select from Drop Down","Select from Drop Down",null,null,null,null,null,null,null,null,null,null,null,null,"Select from Drop Down","Select from Drop Down","Select from Drop Down"]
[603,null,null,"Select from Drop Down","Select from Drop Down","Select from Drop Down",null,null,null,null,null,null,null,null,null,null,null,null,"Select from Drop Down","Select from Drop Down","Select from Drop Down"]
[604,null,null,"Select from Drop Down","Select from Drop Down","Select from Drop Down",null,null,null,null,null,null,null,null,null,null,null,null,"Select from Drop Down","Select from Drop Down","Select from Drop Down"]
[605,null,null,"Select from Drop Down","Select from Drop Down","Select from Drop Down",null,null,null,null,null,null,null,null,null,null,null,null,"Select from Drop Down","Select from Drop Down","Select from Drop Down"]
[606,null,null,"Select from Drop Down","Select from Drop Down","Select from Drop Down",null,null,null,null,null,null,null,null,null,null,null,null,"Select from Drop Down","Select from Drop Down","Select from Drop Down"]
[607,null,null,"Select from Drop Down","Select from Drop Down","Select from Drop Down",null,null,null,null,null,null,null,null,null,null,null,null,"Select from Drop Down","Select from Drop Down","Select from Drop Down"]
[608,null,null,"Select from Drop Down","Select from Drop Down","Select from Drop Down",null,null,null,null,null,null,null,null,null,null,null,null,"Select from Drop Down","Select from Drop Down","Select from Drop Down"]
[609,null,null,"Select from Drop Down","Select from Drop Down","Select from Drop Down",null,null,null,null,null,null,null,null,null,null,null,null,"Select from Drop Down","Select from Drop Down","Select from Drop Down"]
[610,null,null,"Select from Drop Down","Select from Drop Down","Select from Drop Down",null,null,null,null,null,null,null,null,null,null,null,null,"Select from Drop Down","Select from Drop Down","Select from Drop Down"]
[611,null,null,"Select from Drop Down","Select from Drop Down","Select from Drop Down",null,null,null,null,null,null,null,null,null,null,null,null,"Select from Drop Down","Select from Drop Down","Select from Drop Down"]
[612,null,null,"Select from Drop Down","Select from Drop Down","Select from Drop Down",null,null,null,null,null,null,null,null,null,null,null,null,"Select from Drop Down","Select from Drop Down","Select from Drop Down"]
[613,null,null,"Select from Drop Down","Select from Drop Down","Select from Drop Down",null,null,null,null,null,null,null,null,null,null,null,null,"Select from Drop Down","Select from Drop Down","Select from Drop Down"]
[614,null,null,"Select from Drop Down","Select from Drop Down","Select from Drop Down",null,null,null,null,null,null,null,null,null,null,null,null,"Select from Drop Down","Select from Drop Down","Select from Drop Down"]
[615,null,null,"Select from Drop Down","Select from Drop Down","Select from Drop Down",null,null,null,null,null,null,null,null,null,null,null,null,"Select from Drop Down","Select from Drop Down","Select from Drop Down"]
[616,null,null,"Select from Drop Down","Select from Drop Down","Select from Drop Down",null,null,null,null,null,null,null,null,null,null,null,null,"Select from Drop Down","Select from Drop Down","Select from Drop Down"]
[617,null,null,"Select from Drop Down","Select from Drop Down","Select from Drop Down",null,null,null,null,null,null,null,null,null,null,null,null,"Select from Drop Down","Select from Drop Down","Select from Drop Down"]
[618,null,null,"Select from Drop Down","Select from Drop Down","Select from Drop Down",null,null,null,null,null,null,null,null,null,null,null,null,"Select from Drop Down","Select from Drop Down","Select from Drop Down"]
[619,null,null,"Select from Drop Down","Select from Drop Down","Select from Drop Down",null,null,null,null,null,null,null,null,null,null,null,null,"Select from Drop Down","Select from Drop Down","Select from Drop Down"]
[620,null,null,"Select from Drop Down","Select from Drop Down","Select from Drop Down",null,null,null,null,null,null,null,null,null,null,null,null,"Select from Drop Down","Select from Drop Down","Select from Drop Down"]
[621,null,null,"Select from Drop Down","Select from Drop Down","Select from Drop Down",null,null,null,null,null,null,null,null,null,null,null,null,"Select from Drop Down","Select from Drop Down","Select from Drop Down"]
[622,null,null,"Select from Drop Down","Select from Drop Down","Select from Drop Down",null,null,null,null,null,null,null,null,null,null,null,null,"Select from Drop Down","Select from Drop Down","Select from Drop Down"]
[623,null,null,"Select from Drop Down","Select from Drop Down","Select from Drop Down",null,null,null,null,null,null,null,null,null,null,null,null,"Select from Drop Down","Select from Drop Down","Select from Drop Down"]
[624,null,null,"Select from Drop Down","Select from Drop Down","Select from Drop Down",null,null,null,null,null,null,null,null,null,null,null,null,"Select from Drop Down","Select from Drop Down","Select from Drop Down"]
[625,null,null,"Select from Drop Down","Select from Drop Down","Select from Drop Down",null,null,null,null,null,null,null,null,null,null,null,null,"Select from Drop Down","Select from Drop Down","Select from Drop Down"]
[626,null,null,"Select from Drop Down","Select from Drop Down","Select from Drop Down",null,null,null,null,null,null,null,null,null,null,null,null,"Select from Drop Down","Select from Drop Down","Select from Drop Down"]
[627,null,null,"Select from Drop Down","Select from Drop Down","Select from Drop Down",null,null,null,null,null,null,null,null,null,null,null,null,"Select from Drop Down","Select from Drop Down","Select from Drop Down"]
[628,null,null,"Select from Drop Down","Select from Drop Down","Select from Drop Down",null,null,null,null,null,null,null,null,null,null,null,null,"Select from Drop Down","Select from Drop Down","Select from Drop Down"]
[629,null,null,"Select from Drop Down","Select from Drop Down","Select from Drop Down",null,null,null,null,null,null,null,null,null,null,null,null,"Select from Drop Down","Select from Drop Down","Select from Drop Down"]
[630,null,null,"Select from Drop Down","Select from Drop Down","Select from Drop Down",null,null,null,null,null,null,null,null,null,null,null,null,"Select from Drop Down","Select from Drop Down","Select from Drop Down"]
[631,null,null,"Select from Drop Down","Select from Drop Down","Select from Drop Down",null,null,null,null,null,null,null,null,null,null,null,null,"Select from Drop Down","Select from Drop Down","Select from Drop Down"]
[632,null,null,"Select from Drop Down","Select from Drop Down","Select from Drop Down",null,null,null,null,null,null,null,null,null,null,null,null,"Select from Drop Down","Select from Drop Down","Select from Drop Down"]
[633,null,null,"Select from Drop Down","Select from Drop Down","Select from Drop Down",null,null,null,null,null,null,null,null,null,null,null,null,"Select from Drop Down","Select from Drop Down","Select from Drop Down"]
[634,null,null,"Select from Drop Down","Select from Drop Down","Select from Drop Down",null,null,null,null,null,null,null,null,null,null,null,null,"Select from Drop Down","Select from Drop Down","Select from Drop Down"]
[635,null,null,"Select from Drop Down","Select from Drop Down","Select from Drop Down",null,null,null,null,null,null,null,null,null,null,null,null,"Select from Drop Down","Select from Drop Down","Select from Drop Down"]
[636,null,null,"Select from Drop Down","Select from Drop Down","Select from Drop Down",null,null,null,null,null,null,null,null,null,null,null,null,"Select from Drop Down","Select from Drop Down","Select from Drop Down"]
[637,null,null,"Select from Drop Down","Select from Drop Down","Select from Drop Down",null,null,null,null,null,null,null,null,null,null,null,null,"Select from Drop Down","Select from Drop Down","Select from Drop Down"]
[638,null,null,"Select from Drop Down","Select from Drop Down","Select from Drop Down",null,null,null,null,null,null,null,null,null,null,null,null,"Select from Drop Down","Select from Drop Down","Select from Drop Down"]
[639,null,null,"Select from Drop Down","Select from Drop Down","Select from Drop Down",null,null,null,null,null,null,null,null,null,null,null,null,"Select from Drop Down","Select from Drop Down","Select from Drop Down"]
[640,null,null,"Select from Drop Down","Select from Drop Down","Select from Drop Down",null,null,null,null,null,null,null,null,null,null,null,null,"Select from Drop Down","Select from Drop Down","Select from Drop Down"]
[641,null,null,"Select from Drop Down","Select from Drop Down","Select from Drop Down",null,null,null,null,null,null,null,null,null,null,null,null,"Select from Drop Down","Select from Drop Down","Select from Drop Down"]
[642,null,null,"Select from Drop Down","Select from Drop Down","Select from Drop Down",null,null,null,null,null,null,null,null,null,null,null,null,"Select from Drop Down","Select from Drop Down","Select from Drop Down"]
[{"$f":"A652+1","v":643},null,null,"Select from Drop Down","Select from Drop Down","Select from Drop Down",null,null,null,null,null,null,null,null,null,null,null,null,"Select from Drop Down","Select from Drop Down","Select from Drop Down"]
[644,null,null,"Select from Drop Down","Select from Drop Down","Select from Drop Down",null,null,null,null,null,null,null,null,null,null,null,null,"Select from Drop Down","Select from Drop Down","Select from Drop Down"]
[645,null,null,"Select from Drop Down","Select from Drop Down","Select from Drop Down",null,null,null,null,null,null,null,null,null,null,null,null,"Select from Drop Down","Select from Drop Down","Select from Drop Down"]
[646,null,null,"Select from Drop Down","Select from Drop Down","Select from Drop Down",null,null,null,null,null,null,null,null,null,null,null,null,"Select from Drop Down","Select from Drop Down","Select from Drop Down"]
[647,null,null,"Select from Drop Down","Select from Drop Down","Select from Drop Down",null,null,null,null,null,null,null,null,null,null,null,null,"Select from Drop Down","Select from Drop Down","Select from Drop Down"]
[648,null,null,"Select from Drop Down","Select from Drop Down","Select from Drop Down",null,null,null,null,null,null,null,null,null,null,null,null,"Select from Drop Down","Select from Drop Down","Select from Drop Down"]
[649,null,null,"Select from Drop Down","Select from Drop Down","Select from Drop Down",null,null,null,null,null,null,null,null,null,null,null,null,"Select from Drop Down","Select from Drop Down","Select from Drop Down"]
[650,null,null,"Select from Drop Down","Select from Drop Down","Select from Drop Down",null,null,null,null,null,null,null,null,null,null,null,null,"Select from Drop Down","Select from Drop Down","Select from Drop Down"]
[651,null,null,"Select from Drop Down","Select from Drop Down","Select from Drop Down",null,null,null,null,null,null,null,null,null,null,null,null,"Select from Drop Down","Select from Drop Down","Select from Drop Down"]
[652,null,null,"Select from Drop Down","Select from Drop Down","Select from Drop Down",null,null,null,null,null,null,null,null,null,null,null,null,"Select from Drop Down","Select from Drop Down","Select from Drop Down"]
[653,null,null,"Select from Drop Down","Select from Drop Down","Select from Drop Down",null,null,null,null,null,null,null,null,null,null,null,null,"Select from Drop Down","Select from Drop Down","Select from Drop Down"]
[654,null,null,"Select from Drop Down","Select from Drop Down","Select from Drop Down",null,null,null,null,null,null,null,null,null,null,null,null,"Select from Drop Down","Select from Drop Down","Select from Drop Down"]
[655,null,null,"Select from Drop Down","Select from Drop Down","Select from Drop Down",null,null,null,null,null,null,null,null,null,null,null,null,"Select from Drop Down","Select from Drop Down","Select from Drop Down"]
[656,null,null,"Select from Drop Down","Select from Drop Down","Select from Drop Down",null,null,null,null,null,null,null,null,null,null,null,null,"Select from Drop Down","Select from Drop Down","Select from Drop Down"]
[657,null,null,"Select from Drop Down","Select from Drop Down","Select from Drop Down",null,null,null,null,null,null,null,null,null,null,null,null,"Select from Drop Down","Select from Drop Down","Select from Drop Down"]
[658,null,null,"Select from Drop Down","Select from Drop Down","Select from Drop Down",null,null,null,null,null,null,null,null,null,null,null,null,"Select from Drop Down","Select from Drop Down","Select from Drop Down"]
[659,null,null,"Select from Drop Down","Select from Drop Down","Select from Drop Down",null,null,null,null,null,null,null,null,null,null,null,null,"Select from Drop Down","Select from Drop Down","Select from Drop Down"]
[660,null,null,"Select from Drop Down","Select from Drop Down","Select from Drop Down",null,null,null,null,null,null,null,null,null,null,null,null,"Select from Drop Down","Select from Drop Down","Select from Drop Down"]
[661,null,null,"Select from Drop Down","Select from Drop Down","Select from Drop Down",null,null,null,null,null,null,null,null,null,null,null,null,"Select from Drop Down","Select from Drop Down","Select from Drop Down"]
[662,null,null,"Select from Drop Down","Select from Drop Down","Select from Drop Down",null,null,null,null,null,null,null,null,null,null,null,null,"Select from Drop Down","Select from Drop Down","Select from Drop Down"]
[663,null,null,"Select from Drop Down","Select from Drop Down","Select from Drop Down",null,null,null,null,null,null,null,null,null,null,null,null,"Select from Drop Down","Select from Drop Down","Select from Drop Down"]
[664,null,null,"Select from Drop Down","Select from Drop Down","Select from Drop Down",null,null,null,null,null,null,null,null,null,null,null,null,"Select from Drop Down","Select from Drop Down","Select from Drop Down"]
[665,null,null,"Select from Drop Down","Select from Drop Down","Select from Drop Down",null,null,null,null,null,null,null,null,null,null,null,null,"Select from Drop Down","Select from Drop Down","Select from Drop Down"]
[666,null,null,"Select from Drop Down","Select from Drop Down","Select from Drop Down",null,null,null,null,null,null,null,null,null,null,null,null,"Select from Drop Down","Select from Drop Down","Select from Drop Down"]
[667,null,null,"Select from Drop Down","Select from Drop Down","Select from Drop Down",null,null,null,null,null,null,null,null,null,null,null,null,"Select from Drop Down","Select from Drop Down","Select from Drop Down"]
[668,null,null,"Select from Drop Down","Select from Drop Down","Select from Drop Down",null,null,null,null,null,null,null,null,null,null,null,null,"Select from Drop Down","Select from Drop Down","Select from Drop Down"]
[669,null,null,"Select from Drop Down","Select from Drop Down","Select from Drop Down",null,null,null,null,null,null,null,null,null,null,null,null,"Select from Drop Down","Select from Drop Down","Select from Drop Down"]
[670,null,null,"Select from Drop Down","Select from Drop Down","Select from Drop Down",null,null,null,null,null,null,null,null,null,null,null,null,"Select from Drop Down","Select from Drop Down","Select from Drop Down"]
[671,null,null,"Select from Drop Down","Select from Drop Down","Select from Drop Down",null,null,null,null,null,null,null,null,null,null,null,null,"Select from Drop Down","Select from Drop Down","Select from Drop Down"]
[672,null,null,"Select from Drop Down","Select from Drop Down","Select from Drop Down",null,null,null,null,null,null,null,null,null,null,null,null,"Select from Drop Down","Select from Drop Down","Select from Drop Down"]
[673,null,null,"Select from Drop Down","Select from Drop Down","Select from Drop Down",null,null,null,null,null,null,null,null,null,null,null,null,"Select from Drop Down","Select from Drop Down","Select from Drop Down"]
[674,null,null,"Select from Drop Down","Select from Drop Down","Select from Drop Down",null,null,null,null,null,null,null,null,null,null,null,null,"Select from Drop Down","Select from Drop Down","Select from Drop Down"]
[675,null,null,"Select from Drop Down","Select from Drop Down","Select from Drop Down",null,null,null,null,null,null,null,null,null,null,null,null,"Select from Drop Down","Select from Drop Down","Select from Drop Down"]
[676,null,null,"Select from Drop Down","Select from Drop Down","Select from Drop Down",null,null,null,null,null,null,null,null,null,null,null,null,"Select from Drop Down","Select from Drop Down","Select from Drop Down"]
[677,null,null,"Select from Drop Down","Select from Drop Down","Select from Drop Down",null,null,null,null,null,null,null,null,null,null,null,null,"Select from Drop Down","Select from Drop Down","Select from Drop Down"]
[678,null,null,"Select from Drop Down","Select from Drop Down","Select from Drop Down",null,null,null,null,null,null,null,null,null,null,null,null,"Select from Drop Down","Select from Drop Down","Select from Drop Down"]
[679,null,null,"Select from Drop Down","Select from Drop Down","Select from Drop Down",null,null,null,null,null,null,null,null,null,null,null,null,"Select from Drop Down","Select from Drop Down","Select from Drop Down"]
[680,null,null,"Select from Drop Down","Select from Drop Down","Select from Drop Down",null,null,null,null,null,null,null,null,null,null,null,null,"Select from Drop Down","Select from Drop Down","Select from Drop Down"]
[681,null,null,"Select from Drop Down","Select from Drop Down","Select from Drop Down",null,null,null,null,null,null,null,null,null,null,null,null,"Select from Drop Down","Select from Drop Down","Select from Drop Down"]
[682,null,null,"Select from Drop Down","Select from Drop Down","Select from Drop Down",null,null,null,null,null,null,null,null,null,null,null,null,"Select from Drop Down","Select from Drop Down","Select from Drop Down"]
[683,null,null,"Select from Drop Down","Select from Drop Down","Select from Drop Down",null,null,null,null,null,null,null,null,null,null,null,null,"Select from Drop Down","Select from Drop Down","Select from Drop Down"]
[684,null,null,"Select from Drop Down","Select from Drop Down","Select from Drop Down",null,null,null,null,null,null,null,null,null,null,null,null,"Select from Drop Down","Select from Drop Down","Select from Drop Down"]
[685,null,null,"Select from Drop Down","Select from Drop Down","Select from Drop Down",null,null,null,null,null,null,null,null,null,null,null,null,"Select from Drop Down","Select from Drop Down","Select from Drop Down"]
[686,null,null,"Select from Drop Down","Select from Drop Down","Select from Drop Down",null,null,null,null,null,null,null,null,null,null,null,null,"Select from Drop Down","Select from Drop Down","Select from Drop Down"]
[687,null,null,"Select from Drop Down","Select from Drop Down","Select from Drop Down",null,null,null,null,null,null,null,null,null,null,null,null,"Select from Drop Down","Select from Drop Down","Select from Drop Down"]
[688,null,null,"Select from Drop Down","Select from Drop Down","Select from Drop Down",null,null,null,null,null,null,null,null,null,null,null,null,"Select from Drop Down","Select from Drop Down","Select from Drop Down"]
[689,null,null,"Select from Drop Down","Select from Drop Down","Select from Drop Down",null,null,null,null,null,null,null,null,null,null,null,null,"Select from Drop Down","Select from Drop Down","Select from Drop Down"]
[690,null,null,"Select from Drop Down","Select from Drop Down","Select from Drop Down",null,null,null,null,null,null,null,null,null,null,null,null,"Select from Drop Down","Select from Drop Down","Select from Drop Down"]
[691,null,null,"Select from Drop Down","Select from Drop Down","Select from Drop Down",null,null,null,null,null,null,null,null,null,null,null,null,"Select from Drop Down","Select from Drop Down","Select from Drop Down"]
[692,null,null,"Select from Drop Down","Select from Drop Down","Select from Drop Down",null,null,null,null,null,null,null,null,null,null,null,null,"Select from Drop Down","Select from Drop Down","Select from Drop Down"]
[693,null,null,"Select from Drop Down","Select from Drop Down","Select from Drop Down",null,null,null,null,null,null,null,null,null,null,null,null,"Select from Drop Down","Select from Drop Down","Select from Drop Down"]
[694,null,null,"Select from Drop Down","Select from Drop Down","Select from Drop Down",null,null,null,null,null,null,null,null,null,null,null,null,"Select from Drop Down","Select from Drop Down","Select from Drop Down"]
[695,null,null,"Select from Drop Down","Select from Drop Down","Select from Drop Down",null,null,null,null,null,null,null,null,null,null,null,null,"Select from Drop Down","Select from Drop Down","Select from Drop Down"]
[696,null,null,"Select from Drop Down","Select from Drop Down","Select from Drop Down",null,null,null,null,null,null,null,null,null,null,null,null,"Select from Drop Down","Select from Drop Down","Select from Drop Down"]
[697,null,null,"Select from Drop Down","Select from Drop Down","Select from Drop Down",null,null,null,null,null,null,null,null,null,null,null,null,"Select from Drop Down","Select from Drop Down","Select from Drop Down"]
[698,null,null,"Select from Drop Down","Select from Drop Down","Select from Drop Down",null,null,null,null,null,null,null,null,null,null,null,null,"Select from Drop Down","Select from Drop Down","Select from Drop Down"]
[699,null,null,"Select from Drop Down","Select from Drop Down","Select from Drop Down",null,null,null,null,null,null,null,null,null,null,null,null,"Select from Drop Down","Select from Drop Down","Select from Drop Down"]
[700,null,null,"Select from Drop Down","Select from Drop Down","Select from Drop Down",null,null,null,null,null,null,null,null,null,null,null,null,"Select from Drop Down","Select from Drop Down","Select from Drop Down"]
[701,null,null,"Select from Drop Down","Select from Drop Down","Select from Drop Down",null,null,null,null,null,null,null,null,null,null,null,null,"Select from Drop Down","Select from Drop Down","Select from Drop Down"]
[702,null,null,"Select from Drop Down","Select from Drop Down","Select from Drop Down",null,null,null,null,null,null,null,null,null,null,null,null,"Select from Drop Down","Select from Drop Down","Select from Drop Down"]
[703,null,null,"Select from Drop Down","Select from Drop Down","Select from Drop Down",null,null,null,null,null,null,null,null,null,null,null,null,"Select from Drop Down","Select from Drop Down","Select from Drop Down"]
[704,null,null,"Select from Drop Down","Select from Drop Down","Select from Drop Down",null,null,null,null,null,null,null,null,null,null,null,null,"Select from Drop Down","Select from Drop Down","Select from Drop Down"]
[705,null,null,"Select from Drop Down","Select from Drop Down","Select from Drop Down",null,null,null,null,null,null,null,null,null,null,null,null,"Select from Drop Down","Select from Drop Down","Select from Drop Down"]
[706,null,null,"Select from Drop Down","Select from Drop Down","Select from Drop Down",null,null,null,null,null,null,null,null,null,null,null,null,"Select from Drop Down","Select from Drop Down","Select from Drop Down"]
[{"$f":"A716+1","v":707},null,null,"Select from Drop Down","Select from Drop Down","Select from Drop Down",null,null,null,null,null,null,null,null,null,null,null,null,"Select from Drop Down","Select from Drop Down","Select from Drop Down"]
[708,null,null,"Select from Drop Down","Select from Drop Down","Select from Drop Down",null,null,null,null,null,null,null,null,null,null,null,null,"Select from Drop Down","Select from Drop Down","Select from Drop Down"]
[709,null,null,"Select from Drop Down","Select from Drop Down","Select from Drop Down",null,null,null,null,null,null,null,null,null,null,null,null,"Select from Drop Down","Select from Drop Down","Select from Drop Down"]
[710,null,null,"Select from Drop Down","Select from Drop Down","Select from Drop Down",null,null,null,null,null,null,null,null,null,null,null,null,"Select from Drop Down","Select from Drop Down","Select from Drop Down"]
[711,null,null,"Select from Drop Down","Select from Drop Down","Select from Drop Down",null,null,null,null,null,null,null,null,null,null,null,null,"Select from Drop Down","Select from Drop Down","Select from Drop Down"]
[712,null,null,"Select from Drop Down","Select from Drop Down","Select from Drop Down",null,null,null,null,null,null,null,null,null,null,null,null,"Select from Drop Down","Select from Drop Down","Select from Drop Down"]
[713,null,null,"Select from Drop Down","Select from Drop Down","Select from Drop Down",null,null,null,null,null,null,null,null,null,null,null,null,"Select from Drop Down","Select from Drop Down","Select from Drop Down"]
[714,null,null,"Select from Drop Down","Select from Drop Down","Select from Drop Down",null,null,null,null,null,null,null,null,null,null,null,null,"Select from Drop Down","Select from Drop Down","Select from Drop Down"]
[715,null,null,"Select from Drop Down","Select from Drop Down","Select from Drop Down",null,null,null,null,null,null,null,null,null,null,null,null,"Select from Drop Down","Select from Drop Down","Select from Drop Down"]
[716,null,null,"Select from Drop Down","Select from Drop Down","Select from Drop Down",null,null,null,null,null,null,null,null,null,null,null,null,"Select from Drop Down","Select from Drop Down","Select from Drop Down"]
[717,null,null,"Select from Drop Down","Select from Drop Down","Select from Drop Down",null,null,null,null,null,null,null,null,null,null,null,null,"Select from Drop Down","Select from Drop Down","Select from Drop Down"]
[718,null,null,"Select from Drop Down","Select from Drop Down","Select from Drop Down",null,null,null,null,null,null,null,null,null,null,null,null,"Select from Drop Down","Select from Drop Down","Select from Drop Down"]
[719,null,null,"Select from Drop Down","Select from Drop Down","Select from Drop Down",null,null,null,null,null,null,null,null,null,null,null,null,"Select from Drop Down","Select from Drop Down","Select from Drop Down"]
[720,null,null,"Select from Drop Down","Select from Drop Down","Select from Drop Down",null,null,null,null,null,null,null,null,null,null,null,null,"Select from Drop Down","Select from Drop Down","Select from Drop Down"]
[721,null,null,"Select from Drop Down","Select from Drop Down","Select from Drop Down",null,null,null,null,null,null,null,null,null,null,null,null,"Select from Drop Down","Select from Drop Down","Select from Drop Down"]
[722,null,null,"Select from Drop Down","Select from Drop Down","Select from Drop Down",null,null,null,null,null,null,null,null,null,null,null,null,"Select from Drop Down","Select from Drop Down","Select from Drop Down"]
[723,null,null,"Select from Drop Down","Select from Drop Down","Select from Drop Down",null,null,null,null,null,null,null,null,null,null,null,null,"Select from Drop Down","Select from Drop Down","Select from Drop Down"]
[724,null,null,"Select from Drop Down","Select from Drop Down","Select from Drop Down",null,null,null,null,null,null,null,null,null,null,null,null,"Select from Drop Down","Select from Drop Down","Select from Drop Down"]
[725,null,null,"Select from Drop Down","Select from Drop Down","Select from Drop Down",null,null,null,null,null,null,null,null,null,null,null,null,"Select from Drop Down","Select from Drop Down","Select from Drop Down"]
[726,null,null,"Select from Drop Down","Select from Drop Down","Select from Drop Down",null,null,null,null,null,null,null,null,null,null,null,null,"Select from Drop Down","Select from Drop Down","Select from Drop Down"]
[727,null,null,"Select from Drop Down","Select from Drop Down","Select from Drop Down",null,null,null,null,null,null,null,null,null,null,null,null,"Select from Drop Down","Select from Drop Down","Select from Drop Down"]
[728,null,null,"Select from Drop Down","Select from Drop Down","Select from Drop Down",null,null,null,null,null,null,null,null,null,null,null,null,"Select from Drop Down","Select from Drop Down","Select from Drop Down"]
[729,null,null,"Select from Drop Down","Select from Drop Down","Select from Drop Down",null,null,null,null,null,null,null,null,null,null,null,null,"Select from Drop Down","Select from Drop Down","Select from Drop Down"]
[730,null,null,"Select from Drop Down","Select from Drop Down","Select from Drop Down",null,null,null,null,null,null,null,null,null,null,null,null,"Select from Drop Down","Select from Drop Down","Select from Drop Down"]
[731,null,null,"Select from Drop Down","Select from Drop Down","Select from Drop Down",null,null,null,null,null,null,null,null,null,null,null,null,"Select from Drop Down","Select from Drop Down","Select from Drop Down"]
[732,null,null,"Select from Drop Down","Select from Drop Down","Select from Drop Down",null,null,null,null,null,null,null,null,null,null,null,null,"Select from Drop Down","Select from Drop Down","Select from Drop Down"]
[733,null,null,"Select from Drop Down","Select from Drop Down","Select from Drop Down",null,null,null,null,null,null,null,null,null,null,null,null,"Select from Drop Down","Select from Drop Down","Select from Drop Down"]
[734,null,null,"Select from Drop Down","Select from Drop Down","Select from Drop Down",null,null,null,null,null,null,null,null,null,null,null,null,"Select from Drop Down","Select from Drop Down","Select from Drop Down"]
[735,null,null,"Select from Drop Down","Select from Drop Down","Select from Drop Down",null,null,null,null,null,null,null,null,null,null,null,null,"Select from Drop Down","Select from Drop Down","Select from Drop Down"]
[736,null,null,"Select from Drop Down","Select from Drop Down","Select from Drop Down",null,null,null,null,null,null,null,null,null,null,null,null,"Select from Drop Down","Select from Drop Down","Select from Drop Down"]
[737,null,null,"Select from Drop Down","Select from Drop Down","Select from Drop Down",null,null,null,null,null,null,null,null,null,null,null,null,"Select from Drop Down","Select from Drop Down","Select from Drop Down"]
[738,null,null,"Select from Drop Down","Select from Drop Down","Select from Drop Down",null,null,null,null,null,null,null,null,null,null,null,null,"Select from Drop Down","Select from Drop Down","Select from Drop Down"]
[739,null,null,"Select from Drop Down","Select from Drop Down","Select from Drop Down",null,null,null,null,null,null,null,null,null,null,null,null,"Select from Drop Down","Select from Drop Down","Select from Drop Down"]
[740,null,null,"Select from Drop Down","Select from Drop Down","Select from Drop Down",null,null,null,null,null,null,null,null,null,null,null,null,"Select from Drop Down","Select from Drop Down","Select from Drop Down"]
[741,null,null,"Select from Drop Down","Select from Drop Down","Select from Drop Down",null,null,null,null,null,null,null,null,null,null,null,null,"Select from Drop Down","Select from Drop Down","Select from Drop Down"]
[742,null,null,"Select from Drop Down","Select from Drop Down","Select from Drop Down",null,null,null,null,null,null,null,null,null,null,null,null,"Select from Drop Down","Select from Drop Down","Select from Drop Down"]
[743,null,null,"Select from Drop Down","Select from Drop Down","Select from Drop Down",null,null,null,null,null,null,null,null,null,null,null,null,"Select from Drop Down","Select from Drop Down","Select from Drop Down"]
[744,null,null,"Select from Drop Down","Select from Drop Down","Select from Drop Down",null,null,null,null,null,null,null,null,null,null,null,null,"Select from Drop Down","Select from Drop Down","Select from Drop Down"]
[745,null,null,"Select from Drop Down","Select from Drop Down","Select from Drop Down",null,null,null,null,null,null,null,null,null,null,null,null,"Select from Drop Down","Select from Drop Down","Select from Drop Down"]
[746,null,null,"Select from Drop Down","Select from Drop Down","Select from Drop Down",null,null,null,null,null,null,null,null,null,null,null,null,"Select from Drop Down","Select from Drop Down","Select from Drop Down"]
[747,null,null,"Select from Drop Down","Select from Drop Down","Select from Drop Down",null,null,null,null,null,null,null,null,null,null,null,null,"Select from Drop Down","Select from Drop Down","Select from Drop Down"]
[748,null,null,"Select from Drop Down","Select from Drop Down","Select from Drop Down",null,null,null,null,null,null,null,null,null,null,null,null,"Select from Drop Down","Select from Drop Down","Select from Drop Down"]
[749,null,null,"Select from Drop Down","Select from Drop Down","Select from Drop Down",null,null,null,null,null,null,null,null,null,null,null,null,"Select from Drop Down","Select from Drop Down","Select from Drop Down"]
[750,null,null,"Select from Drop Down","Select from Drop Down","Select from Drop Down",null,null,null,null,null,null,null,null,null,null,null,null,"Select from Drop Down","Select from Drop Down","Select from Drop Down"]
[751,null,null,"Select from Drop Down","Select from Drop Down","Select from Drop Down",null,null,null,null,null,null,null,null,null,null,null,null,"Select from Drop Down","Select from Drop Down","Select from Drop Down"]
[752,null,null,"Select from Drop Down","Select from Drop Down","Select from Drop Down",null,null,null,null,null,null,null,null,null,null,null,null,"Select from Drop Down","Select from Drop Down","Select from Drop Down"]
[753,null,null,"Select from Drop Down","Select from Drop Down","Select from Drop Down",null,null,null,null,null,null,null,null,null,null,null,null,"Select from Drop Down","Select from Drop Down","Select from Drop Down"]
[754,null,null,"Select from Drop Down","Select from Drop Down","Select from Drop Down",null,null,null,null,null,null,null,null,null,null,null,null,"Select from Drop Down","Select from Drop Down","Select from Drop Down"]
[755,null,null,"Select from Drop Down","Select from Drop Down","Select from Drop Down",null,null,null,null,null,null,null,null,null,null,null,null,"Select from Drop Down","Select from Drop Down","Select from Drop Down"]
[756,null,null,"Select from Drop Down","Select from Drop Down","Select from Drop Down",null,null,null,null,null,null,null,null,null,null,null,null,"Select from Drop Down","Select from Drop Down","Select from Drop Down"]
[757,null,null,"Select from Drop Down","Select from Drop Down","Select from Drop Down",null,null,null,null,null,null,null,null,null,null,null,null,"Select from Drop Down","Select from Drop Down","Select from Drop Down"]
[758,null,null,"Select from Drop Down","Select from Drop Down","Select from Drop Down",null,null,null,null,null,null,null,null,null,null,null,null,"Select from Drop Down","Select from Drop Down","Select from Drop Down"]
[759,null,null,"Select from Drop Down","Select from Drop Down","Select from Drop Down",null,null,null,null,null,null,null,null,null,null,null,null,"Select from Drop Down","Select from Drop Down","Select from Drop Down"]
[760,null,null,"Select from Drop Down","Select from Drop Down","Select from Drop Down",null,null,null,null,null,null,null,null,null,null,null,null,"Select from Drop Down","Select from Drop Down","Select from Drop Down"]
[761,null,null,"Select from Drop Down","Select from Drop Down","Select from Drop Down",null,null,null,null,null,null,null,null,null,null,null,null,"Select from Drop Down","Select from Drop Down","Select from Drop Down"]
[762,null,null,"Select from Drop Down","Select from Drop Down","Select from Drop Down",null,null,null,null,null,null,null,null,null,null,null,null,"Select from Drop Down","Select from Drop Down","Select from Drop Down"]
[763,null,null,"Select from Drop Down","Select from Drop Down","Select from Drop Down",null,null,null,null,null,null,null,null,null,null,null,null,"Select from Drop Down","Select from Drop Down","Select from Drop Down"]
[764,null,null,"Select from Drop Down","Select from Drop Down","Select from Drop Down",null,null,null,null,null,null,null,null,null,null,null,null,"Select from Drop Down","Select from Drop Down","Select from Drop Down"]
[765,null,null,"Select from Drop Down","Select from Drop Down","Select from Drop Down",null,null,null,null,null,null,null,null,null,null,null,null,"Select from Drop Down","Select from Drop Down","Select from Drop Down"]
[766,null,null,"Select from Drop Down","Select from Drop Down","Select from Drop Down",null,null,null,null,null,null,null,null,null,null,null,null,"Select from Drop Down","Select from Drop Down","Select from Drop Down"]
[767,null,null,"Select from Drop Down","Select from Drop Down","Select from Drop Down",null,null,null,null,null,null,null,null,null,null,null,null,"Select from Drop Down","Select from Drop Down","Select from Drop Down"]
[768,null,null,"Select from Drop Down","Select from Drop Down","Select from Drop Down",null,null,null,null,null,null,null,null,null,null,null,null,"Select from Drop Down","Select from Drop Down","Select from Drop Down"]
[769,null,null,"Select from Drop Down","Select from Drop Down","Select from Drop Down",null,null,null,null,null,null,null,null,null,null,null,null,"Select from Drop Down","Select from Drop Down","Select from Drop Down"]
[770,null,null,"Select from Drop Down","Select from Drop Down","Select from Drop Down",null,null,null,null,null,null,null,null,null,null,null,null,"Select from Drop Down","Select from Drop Down","Select from Drop Down"]
[{"$f":"A780+1","v":771},null,null,"Select from Drop Down","Select from Drop Down","Select from Drop Down",null,null,null,null,null,null,null,null,null,null,null,null,"Select from Drop Down","Select from Drop Down","Select from Drop Down"]
[772,null,null,"Select from Drop Down","Select from Drop Down","Select from Drop Down",null,null,null,null,null,null,null,null,null,null,null,null,"Select from Drop Down","Select from Drop Down","Select from Drop Down"]
[773,null,null,"Select from Drop Down","Select from Drop Down","Select from Drop Down",null,null,null,null,null,null,null,null,null,null,null,null,"Select from Drop Down","Select from Drop Down","Select from Drop Down"]
[774,null,null,"Select from Drop Down","Select from Drop Down","Select from Drop Down",null,null,null,null,null,null,null,null,null,null,null,null,"Select from Drop Down","Select from Drop Down","Select from Drop Down"]
[775,null,null,"Select from Drop Down","Select from Drop Down","Select from Drop Down",null,null,null,null,null,null,null,null,null,null,null,null,"Select from Drop Down","Select from Drop Down","Select from Drop Down"]
[776,null,null,"Select from Drop Down","Select from Drop Down","Select from Drop Down",null,null,null,null,null,null,null,null,null,null,null,null,"Select from Drop Down","Select from Drop Down","Select from Drop Down"]
[777,null,null,"Select from Drop Down","Select from Drop Down","Select from Drop Down",null,null,null,null,null,null,null,null,null,null,null,null,"Select from Drop Down","Select from Drop Down","Select from Drop Down"]
[778,null,null,"Select from Drop Down","Select from Drop Down","Select from Drop Down",null,null,null,null,null,null,null,null,null,null,null,null,"Select from Drop Down","Select from Drop Down","Select from Drop Down"]
[779,null,null,"Select from Drop Down","Select from Drop Down","Select from Drop Down",null,null,null,null,null,null,null,null,null,null,null,null,"Select from Drop Down","Select from Drop Down","Select from Drop Down"]
[780,null,null,"Select from Drop Down","Select from Drop Down","Select from Drop Down",null,null,null,null,null,null,null,null,null,null,null,null,"Select from Drop Down","Select from Drop Down","Select from Drop Down"]
[781,null,null,"Select from Drop Down","Select from Drop Down","Select from Drop Down",null,null,null,null,null,null,null,null,null,null,null,null,"Select from Drop Down","Select from Drop Down","Select from Drop Down"]
[782,null,null,"Select from Drop Down","Select from Drop Down","Select from Drop Down",null,null,null,null,null,null,null,null,null,null,null,null,"Select from Drop Down","Select from Drop Down","Select from Drop Down"]
[783,null,null,"Select from Drop Down","Select from Drop Down","Select from Drop Down",null,null,null,null,null,null,null,null,null,null,null,null,"Select from Drop Down","Select from Drop Down","Select from Drop Down"]
[784,null,null,"Select from Drop Down","Select from Drop Down","Select from Drop Down",null,null,null,null,null,null,null,null,null,null,null,null,"Select from Drop Down","Select from Drop Down","Select from Drop Down"]
[785,null,null,"Select from Drop Down","Select from Drop Down","Select from Drop Down",null,null,null,null,null,null,null,null,null,null,null,null,"Select from Drop Down","Select from Drop Down","Select from Drop Down"]
[786,null,null,"Select from Drop Down","Select from Drop Down","Select from Drop Down",null,null,null,null,null,null,null,null,null,null,null,null,"Select from Drop Down","Select from Drop Down","Select from Drop Down"]
[787,null,null,"Select from Drop Down","Select from Drop Down","Select from Drop Down",null,null,null,null,null,null,null,null,null,null,null,null,"Select from Drop Down","Select from Drop Down","Select from Drop Down"]
[788,null,null,"Select from Drop Down","Select from Drop Down","Select from Drop Down",null,null,null,null,null,null,null,null,null,null,null,null,"Select from Drop Down","Select from Drop Down","Select from Drop Down"]
[789,null,null,"Select from Drop Down","Select from Drop Down","Select from Drop Down",null,null,null,null,null,null,null,null,null,null,null,null,"Select from Drop Down","Select from Drop Down","Select from Drop Down"]
[790,null,null,"Select from Drop Down","Select from Drop Down","Select from Drop Down",null,null,null,null,null,null,null,null,null,null,null,null,"Select from Drop Down","Select from Drop Down","Select from Drop Down"]
[791,null,null,"Select from Drop Down","Select from Drop Down","Select from Drop Down",null,null,null,null,null,null,null,null,null,null,null,null,"Select from Drop Down","Select from Drop Down","Select from Drop Down"]
[792,null,null,"Select from Drop Down","Select from Drop Down","Select from Drop Down",null,null,null,null,null,null,null,null,null,null,null,null,"Select from Drop Down","Select from Drop Down","Select from Drop Down"]
[793,null,null,"Select from Drop Down","Select from Drop Down","Select from Drop Down",null,null,null,null,null,null,null,null,null,null,null,null,"Select from Drop Down","Select from Drop Down","Select from Drop Down"]
[794,null,null,"Select from Drop Down","Select from Drop Down","Select from Drop Down",null,null,null,null,null,null,null,null,null,null,null,null,"Select from Drop Down","Select from Drop Down","Select from Drop Down"]
[795,null,null,"Select from Drop Down","Select from Drop Down","Select from Drop Down",null,null,null,null,null,null,null,null,null,null,null,null,"Select from Drop Down","Select from Drop Down","Select from Drop Down"]
[796,null,null,"Select from Drop Down","Select from Drop Down","Select from Drop Down",null,null,null,null,null,null,null,null,null,null,null,null,"Select from Drop Down","Select from Drop Down","Select from Drop Down"]
[797,null,null,"Select from Drop Down","Select from Drop Down","Select from Drop Down",null,null,null,null,null,null,null,null,null,null,null,null,"Select from Drop Down","Select from Drop Down","Select from Drop Down"]
[798,null,null,"Select from Drop Down","Select from Drop Down","Select from Drop Down",null,null,null,null,null,null,null,null,null,null,null,null,"Select from Drop Down","Select from Drop Down","Select from Drop Down"]
[799,null,null,"Select from Drop Down","Select from Drop Down","Select from Drop Down",null,null,null,null,null,null,null,null,null,null,null,null,"Select from Drop Down","Select from Drop Down","Select from Drop Down"]
[800,null,null,"Select from Drop Down","Select from Drop Down","Select from Drop Down",null,null,null,null,null,null,null,null,null,null,null,null,"Select from Drop Down","Select from Drop Down","Select from Drop Down"]
[801,null,null,"Select from Drop Down","Select from Drop Down","Select from Drop Down",null,null,null,null,null,null,null,null,null,null,null,null,"Select from Drop Down","Select from Drop Down","Select from Drop Down"]
[802,null,null,"Select from Drop Down","Select from Drop Down","Select from Drop Down",null,null,null,null,null,null,null,null,null,null,null,null,"Select from Drop Down","Select from Drop Down","Select from Drop Down"]
[803,null,null,"Select from Drop Down","Select from Drop Down","Select from Drop Down",null,null,null,null,null,null,null,null,null,null,null,null,"Select from Drop Down","Select from Drop Down","Select from Drop Down"]
[804,null,null,"Select from Drop Down","Select from Drop Down","Select from Drop Down",null,null,null,null,null,null,null,null,null,null,null,null,"Select from Drop Down","Select from Drop Down","Select from Drop Down"]
[805,null,null,"Select from Drop Down","Select from Drop Down","Select from Drop Down",null,null,null,null,null,null,null,null,null,null,null,null,"Select from Drop Down","Select from Drop Down","Select from Drop Down"]
[806,null,null,"Select from Drop Down","Select from Drop Down","Select from Drop Down",null,null,null,null,null,null,null,null,null,null,null,null,"Select from Drop Down","Select from Drop Down","Select from Drop Down"]
[807,null,null,"Select from Drop Down","Select from Drop Down","Select from Drop Down",null,null,null,null,null,null,null,null,null,null,null,null,"Select from Drop Down","Select from Drop Down","Select from Drop Down"]
[808,null,null,"Select from Drop Down","Select from Drop Down","Select from Drop Down",null,null,null,null,null,null,null,null,null,null,null,null,"Select from Drop Down","Select from Drop Down","Select from Drop Down"]
[809,null,null,"Select from Drop Down","Select from Drop Down","Select from Drop Down",null,null,null,null,null,null,null,null,null,null,null,null,"Select from Drop Down","Select from Drop Down","Select from Drop Down"]
[810,null,null,"Select from Drop Down","Select from Drop Down","Select from Drop Down",null,null,null,null,null,null,null,null,null,null,null,null,"Select from Drop Down","Select from Drop Down","Select from Drop Down"]
[811,null,null,"Select from Drop Down","Select from Drop Down","Select from Drop Down",null,null,null,null,null,null,null,null,null,null,null,null,"Select from Drop Down","Select from Drop Down","Select from Drop Down"]
[812,null,null,"Select from Drop Down","Select from Drop Down","Select from Drop Down",null,null,null,null,null,null,null,null,null,null,null,null,"Select from Drop Down","Select from Drop Down","Select from Drop Down"]
[813,null,null,"Select from Drop Down","Select from Drop Down","Select from Drop Down",null,null,null,null,null,null,null,null,null,null,null,null,"Select from Drop Down","Select from Drop Down","Select from Drop Down"]
[814,null,null,"Select from Drop Down","Select from Drop Down","Select from Drop Down",null,null,null,null,null,null,null,null,null,null,null,null,"Select from Drop Down","Select from Drop Down","Select from Drop Down"]
[815,null,null,"Select from Drop Down","Select from Drop Down","Select from Drop Down",null,null,null,null,null,null,null,null,null,null,null,null,"Select from Drop Down","Select from Drop Down","Select from Drop Down"]
[816,null,null,"Select from Drop Down","Select from Drop Down","Select from Drop Down",null,null,null,null,null,null,null,null,null,null,null,null,"Select from Drop Down","Select from Drop Down","Select from Drop Down"]
[817,null,null,"Select from Drop Down","Select from Drop Down","Select from Drop Down",null,null,null,null,null,null,null,null,null,null,null,null,"Select from Drop Down","Select from Drop Down","Select from Drop Down"]
[818,null,null,"Select from Drop Down","Select from Drop Down","Select from Drop Down",null,null,null,null,null,null,null,null,null,null,null,null,"Select from Drop Down","Select from Drop Down","Select from Drop Down"]
[819,null,null,"Select from Drop Down","Select from Drop Down","Select from Drop Down",null,null,null,null,null,null,null,null,null,null,null,null,"Select from Drop Down","Select from Drop Down","Select from Drop Down"]
[820,null,null,"Select from Drop Down","Select from Drop Down","Select from Drop Down",null,null,null,null,null,null,null,null,null,null,null,null,"Select from Drop Down","Select from Drop Down","Select from Drop Down"]
[821,null,null,"Select from Drop Down","Select from Drop Down","Select from Drop Down",null,null,null,null,null,null,null,null,null,null,null,null,"Select from Drop Down","Select from Drop Down","Select from Drop Down"]
[822,null,null,"Select from Drop Down","Select from Drop Down","Select from Drop Down",null,null,null,null,null,null,null,null,null,null,null,null,"Select from Drop Down","Select from Drop Down","Select from Drop Down"]
[823,null,null,"Select from Drop Down","Select from Drop Down","Select from Drop Down",null,null,null,null,null,null,null,null,null,null,null,null,"Select from Drop Down","Select from Drop Down","Select from Drop Down"]
[824,null,null,"Select from Drop Down","Select from Drop Down","Select from Drop Down",null,null,null,null,null,null,null,null,null,null,null,null,"Select from Drop Down","Select from Drop Down","Select from Drop Down"]
[825,null,null,"Select from Drop Down","Select from Drop Down","Select from Drop Down",null,null,null,null,null,null,null,null,null,null,null,null,"Select from Drop Down","Select from Drop Down","Select from Drop Down"]
[826,null,null,"Select from Drop Down","Select from Drop Down","Select from Drop Down",null,null,null,null,null,null,null,null,null,null,null,null,"Select from Drop Down","Select from Drop Down","Select from Drop Down"]
[827,null,null,"Select from Drop Down","Select from Drop Down","Select from Drop Down",null,null,null,null,null,null,null,null,null,null,null,null,"Select from Drop Down","Select from Drop Down","Select from Drop Down"]
[828,null,null,"Select from Drop Down","Select from Drop Down","Select from Drop Down",null,null,null,null,null,null,null,null,null,null,null,null,"Select from Drop Down","Select from Drop Down","Select from Drop Down"]
[829,null,null,"Select from Drop Down","Select from Drop Down","Select from Drop Down",null,null,null,null,null,null,null,null,null,null,null,null,"Select from Drop Down","Select from Drop Down","Select from Drop Down"]
[830,null,null,"Select from Drop Down","Select from Drop Down","Select from Drop Down",null,null,null,null,null,null,null,null,null,null,null,null,"Select from Drop Down","Select from Drop Down","Select from Drop Down"]
[831,null,null,"Select from Drop Down","Select from Drop Down","Select from Drop Down",null,null,null,null,null,null,null,null,null,null,null,null,"Select from Drop Down","Select from Drop Down","Select from Drop Down"]
[832,null,null,"Select from Drop Down","Select from Drop Down","Select from Drop Down",null,null,null,null,null,null,null,null,null,null,null,null,"Select from Drop Down","Select from Drop Down","Select from Drop Down"]
[833,null,null,"Select from Drop Down","Select from Drop Down","Select from Drop Down",null,null,null,null,null,null,null,null,null,null,null,null,"Select from Drop Down","Select from Drop Down","Select from Drop Down"]
[834,null,null,"Select from Drop Down","Select from Drop Down","Select from Drop Down",null,null,null,null,null,null,null,null,null,null,null,null,"Select from Drop Down","Select from Drop Down","Select from Drop Down"]
[{"$f":"A844+1","v":835},null,null,"Select from Drop Down","Select from Drop Down","Select from Drop Down",null,null,null,null,null,null,null,null,null,null,null,null,"Select from Drop Down","Select from Drop Down","Select from Drop Down"]
[836,null,null,"Select from Drop Down","Select from Drop Down","Select from Drop Down",null,null,null,null,null,null,null,null,null,null,null,null,"Select from Drop Down","Select from Drop Down","Select from Drop Down"]
[837,null,null,"Select from Drop Down","Select from Drop Down","Select from Drop Down",null,null,null,null,null,null,null,null,null,null,null,null,"Select from Drop Down","Select from Drop Down","Select from Drop Down"]
[838,null,null,"Select from Drop Down","Select from Drop Down","Select from Drop Down",null,null,null,null,null,null,null,null,null,null,null,null,"Select from Drop Down","Select from Drop Down","Select from Drop Down"]
[839,null,null,"Select from Drop Down","Select from Drop Down","Select from Drop Down",null,null,null,null,null,null,null,null,null,null,null,null,"Select from Drop Down","Select from Drop Down","Select from Drop Down"]
[840,null,null,"Select from Drop Down","Select from Drop Down","Select from Drop Down",null,null,null,null,null,null,null,null,null,null,null,null,"Select from Drop Down","Select from Drop Down","Select from Drop Down"]
[841,null,null,"Select from Drop Down","Select from Drop Down","Select from Drop Down",null,null,null,null,null,null,null,null,null,null,null,null,"Select from Drop Down","Select from Drop Down","Select from Drop Down"]
[842,null,null,"Select from Drop Down","Select from Drop Down","Select from Drop Down",null,null,null,null,null,null,null,null,null,null,null,null,"Select from Drop Down","Select from Drop Down","Select from Drop Down"]
[843,null,null,"Select from Drop Down","Select from Drop Down","Select from Drop Down",null,null,null,null,null,null,null,null,null,null,null,null,"Select from Drop Down","Select from Drop Down","Select from Drop Down"]
[844,null,null,"Select from Drop Down","Select from Drop Down","Select from Drop Down",null,null,null,null,null,null,null,null,null,null,null,null,"Select from Drop Down","Select from Drop Down","Select from Drop Down"]
[845,null,null,"Select from Drop Down","Select from Drop Down","Select from Drop Down",null,null,null,null,null,null,null,null,null,null,null,null,"Select from Drop Down","Select from Drop Down","Select from Drop Down"]
[846,null,null,"Select from Drop Down","Select from Drop Down","Select from Drop Down",null,null,null,null,null,null,null,null,null,null,null,null,"Select from Drop Down","Select from Drop Down","Select from Drop Down"]
[847,null,null,"Select from Drop Down","Select from Drop Down","Select from Drop Down",null,null,null,null,null,null,null,null,null,null,null,null,"Select from Drop Down","Select from Drop Down","Select from Drop Down"]
[848,null,null,"Select from Drop Down","Select from Drop Down","Select from Drop Down",null,null,null,null,null,null,null,null,null,null,null,null,"Select from Drop Down","Select from Drop Down","Select from Drop Down"]
[849,null,null,"Select from Drop Down","Select from Drop Down","Select from Drop Down",null,null,null,null,null,null,null,null,null,null,null,null,"Select from Drop Down","Select from Drop Down","Select from Drop Down"]
[850,null,null,"Select from Drop Down","Select from Drop Down","Select from Drop Down",null,null,null,null,null,null,null,null,null,null,null,null,"Select from Drop Down","Select from Drop Down","Select from Drop Down"]
[851,null,null,"Select from Drop Down","Select from Drop Down","Select from Drop Down",null,null,null,null,null,null,null,null,null,null,null,null,"Select from Drop Down","Select from Drop Down","Select from Drop Down"]
[852,null,null,"Select from Drop Down","Select from Drop Down","Select from Drop Down",null,null,null,null,null,null,null,null,null,null,null,null,"Select from Drop Down","Select from Drop Down","Select from Drop Down"]
[853,null,null,"Select from Drop Down","Select from Drop Down","Select from Drop Down",null,null,null,null,null,null,null,null,null,null,null,null,"Select from Drop Down","Select from Drop Down","Select from Drop Down"]
[854,null,null,"Select from Drop Down","Select from Drop Down","Select from Drop Down",null,null,null,null,null,null,null,null,null,null,null,null,"Select from Drop Down","Select from Drop Down","Select from Drop Down"]
[855,null,null,"Select from Drop Down","Select from Drop Down","Select from Drop Down",null,null,null,null,null,null,null,null,null,null,null,null,"Select from Drop Down","Select from Drop Down","Select from Drop Down"]
[856,null,null,"Select from Drop Down","Select from Drop Down","Select from Drop Down",null,null,null,null,null,null,null,null,null,null,null,null,"Select from Drop Down","Select from Drop Down","Select from Drop Down"]
[857,null,null,"Select from Drop Down","Select from Drop Down","Select from Drop Down",null,null,null,null,null,null,null,null,null,null,null,null,"Select from Drop Down","Select from Drop Down","Select from Drop Down"]
[858,null,null,"Select from Drop Down","Select from Drop Down","Select from Drop Down",null,null,null,null,null,null,null,null,null,null,null,null,"Select from Drop Down","Select from Drop Down","Select from Drop Down"]
[859,null,null,"Select from Drop Down","Select from Drop Down","Select from Drop Down",null,null,null,null,null,null,null,null,null,null,null,null,"Select from Drop Down","Select from Drop Down","Select from Drop Down"]
[860,null,null,"Select from Drop Down","Select from Drop Down","Select from Drop Down",null,null,null,null,null,null,null,null,null,null,null,null,"Select from Drop Down","Select from Drop Down","Select from Drop Down"]
[861,null,null,"Select from Drop Down","Select from Drop Down","Select from Drop Down",null,null,null,null,null,null,null,null,null,null,null,null,"Select from Drop Down","Select from Drop Down","Select from Drop Down"]
[862,null,null,"Select from Drop Down","Select from Drop Down","Select from Drop Down",null,null,null,null,null,null,null,null,null,null,null,null,"Select from Drop Down","Select from Drop Down","Select from Drop Down"]
[863,null,null,"Select from Drop Down","Select from Drop Down","Select from Drop Down",null,null,null,null,null,null,null,null,null,null,null,null,"Select from Drop Down","Select from Drop Down","Select from Drop Down"]
[864,null,null,"Select from Drop Down","Select from Drop Down","Select from Drop Down",null,null,null,null,null,null,null,null,null,null,null,null,"Select from Drop Down","Select from Drop Down","Select from Drop Down"]
[865,null,null,"Select from Drop Down","Select from Drop Down","Select from Drop Down",null,null,null,null,null,null,null,null,null,null,null,null,"Select from Drop Down","Select from Drop Down","Select from Drop Down"]
[866,null,null,"Select from Drop Down","Select from Drop Down","Select from Drop Down",null,null,null,null,null,null,null,null,null,null,null,null,"Select from Drop Down","Select from Drop Down","Select from Drop Down"]
[867,null,null,"Select from Drop Down","Select from Drop Down","Select from Drop Down",null,null,null,null,null,null,null,null,null,null,null,null,"Select from Drop Down","Select from Drop Down","Select from Drop Down"]
[868,null,null,"Select from Drop Down","Select from Drop Down","Select from Drop Down",null,null,null,null,null,null,null,null,null,null,null,null,"Select from Drop Down","Select from Drop Down","Select from Drop Down"]
[869,null,null,"Select from Drop Down","Select from Drop Down","Select from Drop Down",null,null,null,null,null,null,null,null,null,null,null,null,"Select from Drop Down","Select from Drop Down","Select from Drop Down"]
[870,null,null,"Select from Drop Down","Select from Drop Down","Select from Drop Down",null,null,null,null,null,null,null,null,null,null,null,null,"Select from Drop Down","Select from Drop Down","Select from Drop Down"]
[871,null,null,"Select from Drop Down","Select from Drop Down","Select from Drop Down",null,null,null,null,null,null,null,null,null,null,null,null,"Select from Drop Down","Select from Drop Down","Select from Drop Down"]
[872,null,null,"Select from Drop Down","Select from Drop Down","Select from Drop Down",null,null,null,null,null,null,null,null,null,null,null,null,"Select from Drop Down","Select from Drop Down","Select from Drop Down"]
[873,null,null,"Select from Drop Down","Select from Drop Down","Select from Drop Down",null,null,null,null,null,null,null,null,null,null,null,null,"Select from Drop Down","Select from Drop Down","Select from Drop Down"]
[874,null,null,"Select from Drop Down","Select from Drop Down","Select from Drop Down",null,null,null,null,null,null,null,null,null,null,null,null,"Select from Drop Down","Select from Drop Down","Select from Drop Down"]
[875,null,null,"Select from Drop Down","Select from Drop Down","Select from Drop Down",null,null,null,null,null,null,null,null,null,null,null,null,"Select from Drop Down","Select from Drop Down","Select from Drop Down"]
[876,null,null,"Select from Drop Down","Select from Drop Down","Select from Drop Down",null,null,null,null,null,null,null,null,null,null,null,null,"Select from Drop Down","Select from Drop Down","Select from Drop Down"]
[877,null,null,"Select from Drop Down","Select from Drop Down","Select from Drop Down",null,null,null,null,null,null,null,null,null,null,null,null,"Select from Drop Down","Select from Drop Down","Select from Drop Down"]
[878,null,null,"Select from Drop Down","Select from Drop Down","Select from Drop Down",null,null,null,null,null,null,null,null,null,null,null,null,"Select from Drop Down","Select from Drop Down","Select from Drop Down"]
[879,null,null,"Select from Drop Down","Select from Drop Down","Select from Drop Down",null,null,null,null,null,null,null,null,null,null,null,null,"Select from Drop Down","Select from Drop Down","Select from Drop Down"]
[880,null,null,"Select from Drop Down","Select from Drop Down","Select from Drop Down",null,null,null,null,null,null,null,null,null,null,null,null,"Select from Drop Down","Select from Drop Down","Select from Drop Down"]
[881,null,null,"Select from Drop Down","Select from Drop Down","Select from Drop Down",null,null,null,null,null,null,null,null,null,null,null,null,"Select from Drop Down","Select from Drop Down","Select from Drop Down"]
[882,null,null,"Select from Drop Down","Select from Drop Down","Select from Drop Down",null,null,null,null,null,null,null,null,null,null,null,null,"Select from Drop Down","Select from Drop Down","Select from Drop Down"]
[883,null,null,"Select from Drop Down","Select from Drop Down","Select from Drop Down",null,null,null,null,null,null,null,null,null,null,null,null,"Select from Drop Down","Select from Drop Down","Select from Drop Down"]
[884,null,null,"Select from Drop Down","Select from Drop Down","Select from Drop Down",null,null,null,null,null,null,null,null,null,null,null,null,"Select from Drop Down","Select from Drop Down","Select from Drop Down"]
[885,null,null,"Select from Drop Down","Select from Drop Down","Select from Drop Down",null,null,null,null,null,null,null,null,null,null,null,null,"Select from Drop Down","Select from Drop Down","Select from Drop Down"]
[886,null,null,"Select from Drop Down","Select from Drop Down","Select from Drop Down",null,null,null,null,null,null,null,null,null,null,null,null,"Select from Drop Down","Select from Drop Down","Select from Drop Down"]
[887,null,null,"Select from Drop Down","Select from Drop Down","Select from Drop Down",null,null,null,null,null,null,null,null,null,null,null,null,"Select from Drop Down","Select from Drop Down","Select from Drop Down"]
[888,null,null,"Select from Drop Down","Select from Drop Down","Select from Drop Down",null,null,null,null,null,null,null,null,null,null,null,null,"Select from Drop Down","Select from Drop Down","Select from Drop Down"]
[889,null,null,"Select from Drop Down","Select from Drop Down","Select from Drop Down",null,null,null,null,null,null,null,null,null,null,null,null,"Select from Drop Down","Select from Drop Down","Select from Drop Down"]
[890,null,null,"Select from Drop Down","Select from Drop Down","Select from Drop Down",null,null,null,null,null,null,null,null,null,null,null,null,"Select from Drop Down","Select from Drop Down","Select from Drop Down"]
[891,null,null,"Select from Drop Down","Select from Drop Down","Select from Drop Down",null,null,null,null,null,null,null,null,null,null,null,null,"Select from Drop Down","Select from Drop Down","Select from Drop Down"]
[892,null,null,"Select from Drop Down","Select from Drop Down","Select from Drop Down",null,null,null,null,null,null,null,null,null,null,null,null,"Select from Drop Down","Select from Drop Down","Select from Drop Down"]
[893,null,null,"Select from Drop Down","Select from Drop Down","Select from Drop Down",null,null,null,null,null,null,null,null,null,null,null,null,"Select from Drop Down","Select from Drop Down","Select from Drop Down"]
[894,null,null,"Select from Drop Down","Select from Drop Down","Select from Drop Down",null,null,null,null,null,null,null,null,null,null,null,null,"Select from Drop Down","Select from Drop Down","Select from Drop Down"]
[895,null,null,"Select from Drop Down","Select from Drop Down","Select from Drop Down",null,null,null,null,null,null,null,null,null,null,null,null,"Select from Drop Down","Select from Drop Down","Select from Drop Down"]
[896,null,null,"Select from Drop Down","Select from Drop Down","Select from Drop Down",null,null,null,null,null,null,null,null,null,null,null,null,"Select from Drop Down","Select from Drop Down","Select from Drop Down"]
[897,null,null,"Select from Drop Down","Select from Drop Down","Select from Drop Down",null,null,null,null,null,null,null,null,null,null,null,null,"Select from Drop Down","Select from Drop Down","Select from Drop Down"]
[898,null,null,"Select from Drop Down","Select from Drop Down","Select from Drop Down",null,null,null,null,null,null,null,null,null,null,null,null,"Select from Drop Down","Select from Drop Down","Select from Drop Down"]
[{"$f":"A908+1","v":899},null,null,"Select from Drop Down","Select from Drop Down","Select from Drop Down",null,null,null,null,null,null,null,null,null,null,null,null,"Select from Drop Down","Select from Drop Down","Select from Drop Down"]
[900,null,null,"Select from Drop Down","Select from Drop Down","Select from Drop Down",null,null,null,null,null,null,null,null,null,null,null,null,"Select from Drop Down","Select from Drop Down","Select from Drop Down"]
[901,null,null,"Select from Drop Down","Select from Drop Down","Select from Drop Down",null,null,null,null,null,null,null,null,null,null,null,null,"Select from Drop Down","Select from Drop Down","Select from Drop Down"]
[902,null,null,"Select from Drop Down","Select from Drop Down","Select from Drop Down",null,null,null,null,null,null,null,null,null,null,null,null,"Select from Drop Down","Select from Drop Down","Select from Drop Down"]
[903,null,null,"Select from Drop Down","Select from Drop Down","Select from Drop Down",null,null,null,null,null,null,null,null,null,null,null,null,"Select from Drop Down","Select from Drop Down","Select from Drop Down"]
[904,null,null,"Select from Drop Down","Select from Drop Down","Select from Drop Down",null,null,null,null,null,null,null,null,null,null,null,null,"Select from Drop Down","Select from Drop Down","Select from Drop Down"]
[905,null,null,"Select from Drop Down","Select from Drop Down","Select from Drop Down",null,null,null,null,null,null,null,null,null,null,null,null,"Select from Drop Down","Select from Drop Down","Select from Drop Down"]
[906,null,null,"Select from Drop Down","Select from Drop Down","Select from Drop Down",null,null,null,null,null,null,null,null,null,null,null,null,"Select from Drop Down","Select from Drop Down","Select from Drop Down"]
[907,null,null,"Select from Drop Down","Select from Drop Down","Select from Drop Down",null,null,null,null,null,null,null,null,null,null,null,null,"Select from Drop Down","Select from Drop Down","Select from Drop Down"]
[908,null,null,"Select from Drop Down","Select from Drop Down","Select from Drop Down",null,null,null,null,null,null,null,null,null,null,null,null,"Select from Drop Down","Select from Drop Down","Select from Drop Down"]
[909,null,null,"Select from Drop Down","Select from Drop Down","Select from Drop Down",null,null,null,null,null,null,null,null,null,null,null,null,"Select from Drop Down","Select from Drop Down","Select from Drop Down"]
[910,null,null,"Select from Drop Down","Select from Drop Down","Select from Drop Down",null,null,null,null,null,null,null,null,null,null,null,null,"Select from Drop Down","Select from Drop Down","Select from Drop Down"]
[911,null,null,"Select from Drop Down","Select from Drop Down","Select from Drop Down",null,null,null,null,null,null,null,null,null,null,null,null,"Select from Drop Down","Select from Drop Down","Select from Drop Down"]
[912,null,null,"Select from Drop Down","Select from Drop Down","Select from Drop Down",null,null,null,null,null,null,null,null,null,null,null,null,"Select from Drop Down","Select from Drop Down","Select from Drop Down"]
[913,null,null,"Select from Drop Down","Select from Drop Down","Select from Drop Down",null,null,null,null,null,null,null,null,null,null,null,null,"Select from Drop Down","Select from Drop Down","Select from Drop Down"]
[914,null,null,"Select from Drop Down","Select from Drop Down","Select from Drop Down",null,null,null,null,null,null,null,null,null,null,null,null,"Select from Drop Down","Select from Drop Down","Select from Drop Down"]
[915,null,null,"Select from Drop Down","Select from Drop Down","Select from Drop Down",null,null,null,null,null,null,null,null,null,null,null,null,"Select from Drop Down","Select from Drop Down","Select from Drop Down"]
[916,null,null,"Select from Drop Down","Select from Drop Down","Select from Drop Down",null,null,null,null,null,null,null,null,null,null,null,null,"Select from Drop Down","Select from Drop Down","Select from Drop Down"]
[917,null,null,"Select from Drop Down","Select from Drop Down","Select from Drop Down",null,null,null,null,null,null,null,null,null,null,null,null,"Select from Drop Down","Select from Drop Down","Select from Drop Down"]
[918,null,null,"Select from Drop Down","Select from Drop Down","Select from Drop Down",null,null,null,null,null,null,null,null,null,null,null,null,"Select from Drop Down","Select from Drop Down","Select from Drop Down"]
[919,null,null,"Select from Drop Down","Select from Drop Down","Select from Drop Down",null,null,null,null,null,null,null,null,null,null,null,null,"Select from Drop Down","Select from Drop Down","Select from Drop Down"]
[920,null,null,"Select from Drop Down","Select from Drop Down","Select from Drop Down",null,null,null,null,null,null,null,null,null,null,null,null,"Select from Drop Down","Select from Drop Down","Select from Drop Down"]
[921,null,null,"Select from Drop Down","Select from Drop Down","Select from Drop Down",null,null,null,null,null,null,null,null,null,null,null,null,"Select from Drop Down","Select from Drop Down","Select from Drop Down"]
[922,null,null,"Select from Drop Down","Select from Drop Down","Select from Drop Down",null,null,null,null,null,null,null,null,null,null,null,null,"Select from Drop Down","Select from Drop Down","Select from Drop Down"]
[923,null,null,"Select from Drop Down","Select from Drop Down","Select from Drop Down",null,null,null,null,null,null,null,null,null,null,null,null,"Select from Drop Down","Select from Drop Down","Select from Drop Down"]
[924,null,null,"Select from Drop Down","Select from Drop Down","Select from Drop Down",null,null,null,null,null,null,null,null,null,null,null,null,"Select from Drop Down","Select from Drop Down","Select from Drop Down"]
[925,null,null,"Select from Drop Down","Select from Drop Down","Select from Drop Down",null,null,null,null,null,null,null,null,null,null,null,null,"Select from Drop Down","Select from Drop Down","Select from Drop Down"]
[926,null,null,"Select from Drop Down","Select from Drop Down","Select from Drop Down",null,null,null,null,null,null,null,null,null,null,null,null,"Select from Drop Down","Select from Drop Down","Select from Drop Down"]
[927,null,null,"Select from Drop Down","Select from Drop Down","Select from Drop Down",null,null,null,null,null,null,null,null,null,null,null,null,"Select from Drop Down","Select from Drop Down","Select from Drop Down"]
[928,null,null,"Select from Drop Down","Select from Drop Down","Select from Drop Down",null,null,null,null,null,null,null,null,null,null,null,null,"Select from Drop Down","Select from Drop Down","Select from Drop Down"]
[929,null,null,"Select from Drop Down","Select from Drop Down","Select from Drop Down",null,null,null,null,null,null,null,null,null,null,null,null,"Select from Drop Down","Select from Drop Down","Select from Drop Down"]
[930,null,null,"Select from Drop Down","Select from Drop Down","Select from Drop Down",null,null,null,null,null,null,null,null,null,null,null,null,"Select from Drop Down","Select from Drop Down","Select from Drop Down"]
[931,null,null,"Select from Drop Down","Select from Drop Down","Select from Drop Down",null,null,null,null,null,null,null,null,null,null,null,null,"Select from Drop Down","Select from Drop Down","Select from Drop Down"]
[932,null,null,"Select from Drop Down","Select from Drop Down","Select from Drop Down",null,null,null,null,null,null,null,null,null,null,null,null,"Select from Drop Down","Select from Drop Down","Select from Drop Down"]
[933,null,null,"Select from Drop Down","Select from Drop Down","Select from Drop Down",null,null,null,null,null,null,null,null,null,null,null,null,"Select from Drop Down","Select from Drop Down","Select from Drop Down"]
[934,null,null,"Select from Drop Down","Select from Drop Down","Select from Drop Down",null,null,null,null,null,null,null,null,null,null,null,null,"Select from Drop Down","Select from Drop Down","Select from Drop Down"]
[935,null,null,"Select from Drop Down","Select from Drop Down","Select from Drop Down",null,null,null,null,null,null,null,null,null,null,null,null,"Select from Drop Down","Select from Drop Down","Select from Drop Down"]
[936,null,null,"Select from Drop Down","Select from Drop Down","Select from Drop Down",null,null,null,null,null,null,null,null,null,null,null,null,"Select from Drop Down","Select from Drop Down","Select from Drop Down"]
[937,null,null,"Select from Drop Down","Select from Drop Down","Select from Drop Down",null,null,null,null,null,null,null,null,null,null,null,null,"Select from Drop Down","Select from Drop Down","Select from Drop Down"]
[938,null,null,"Select from Drop Down","Select from Drop Down","Select from Drop Down",null,null,null,null,null,null,null,null,null,null,null,null,"Select from Drop Down","Select from Drop Down","Select from Drop Down"]
[939,null,null,"Select from Drop Down","Select from Drop Down","Select from Drop Down",null,null,null,null,null,null,null,null,null,null,null,null,"Select from Drop Down","Select from Drop Down","Select from Drop Down"]
[940,null,null,"Select from Drop Down","Select from Drop Down","Select from Drop Down",null,null,null,null,null,null,null,null,null,null,null,null,"Select from Drop Down","Select from Drop Down","Select from Drop Down"]
[941,null,null,"Select from Drop Down","Select from Drop Down","Select from Drop Down",null,null,null,null,null,null,null,null,null,null,null,null,"Select from Drop Down","Select from Drop Down","Select from Drop Down"]
[942,null,null,"Select from Drop Down","Select from Drop Down","Select from Drop Down",null,null,null,null,null,null,null,null,null,null,null,null,"Select from Drop Down","Select from Drop Down","Select from Drop Down"]
[943,null,null,"Select from Drop Down","Select from Drop Down","Select from Drop Down",null,null,null,null,null,null,null,null,null,null,null,null,"Select from Drop Down","Select from Drop Down","Select from Drop Down"]
[944,null,null,"Select from Drop Down","Select from Drop Down","Select from Drop Down",null,null,null,null,null,null,null,null,null,null,null,null,"Select from Drop Down","Select from Drop Down","Select from Drop Down"]
[945,null,null,"Select from Drop Down","Select from Drop Down","Select from Drop Down",null,null,null,null,null,null,null,null,null,null,null,null,"Select from Drop Down","Select from Drop Down","Select from Drop Down"]
[946,null,null,"Select from Drop Down","Select from Drop Down","Select from Drop Down",null,null,null,null,null,null,null,null,null,null,null,null,"Select from Drop Down","Select from Drop Down","Select from Drop Down"]
[947,null,null,"Select from Drop Down","Select from Drop Down","Select from Drop Down",null,null,null,null,null,null,null,null,null,null,null,null,"Select from Drop Down","Select from Drop Down","Select from Drop Down"]
[948,null,null,"Select from Drop Down","Select from Drop Down","Select from Drop Down",null,null,null,null,null,null,null,null,null,null,null,null,"Select from Drop Down","Select from Drop Down","Select from Drop Down"]
[949,null,null,"Select from Drop Down","Select from Drop Down","Select from Drop Down",null,null,null,null,null,null,null,null,null,null,null,null,"Select from Drop Down","Select from Drop Down","Select from Drop Down"]
[950,null,null,"Select from Drop Down","Select from Drop Down","Select from Drop Down",null,null,null,null,null,null,null,null,null,null,null,null,"Select from Drop Down","Select from Drop Down","Select from Drop Down"]
[951,null,null,"Select from Drop Down","Select from Drop Down","Select from Drop Down",null,null,null,null,null,null,null,null,null,null,null,null,"Select from Drop Down","Select from Drop Down","Select from Drop Down"]
[952,null,null,"Select from Drop Down","Select from Drop Down","Select from Drop Down",null,null,null,null,null,null,null,null,null,null,null,null,"Select from Drop Down","Select from Drop Down","Select from Drop Down"]
[953,null,null,"Select from Drop Down","Select from Drop Down","Select from Drop Down",null,null,null,null,null,null,null,null,null,null,null,null,"Select from Drop Down","Select from Drop Down","Select from Drop Down"]
[954,null,null,"Select from Drop Down","Select from Drop Down","Select from Drop Down",null,null,null,null,null,null,null,null,null,null,null,null,"Select from Drop Down","Select from Drop Down","Select from Drop Down"]
[955,null,null,"Select from Drop Down","Select from Drop Down","Select from Drop Down",null,null,null,null,null,null,null,null,null,null,null,null,"Select from Drop Down","Select from Drop Down","Select from Drop Down"]
[956,null,null,"Select from Drop Down","Select from Drop Down","Select from Drop Down",null,null,null,null,null,null,null,null,null,null,null,null,"Select from Drop Down","Select from Drop Down","Select from Drop Down"]
[957,null,null,"Select from Drop Down","Select from Drop Down","Select from Drop Down",null,null,null,null,null,null,null,null,null,null,null,null,"Select from Drop Down","Select from Drop Down","Select from Drop Down"]
[958,null,null,"Select from Drop Down","Select from Drop Down","Select from Drop Down",null,null,null,null,null,null,null,null,null,null,null,null,"Select from Drop Down","Select from Drop Down","Select from Drop Down"]
[959,null,null,"Select from Drop Down","Select from Drop Down","Select from Drop Down",null,null,null,null,null,null,null,null,null,null,null,null,"Select from Drop Down","Select from Drop Down","Select from Drop Down"]
[960,null,null,"Select from Drop Down","Select from Drop Down","Select from Drop Down",null,null,null,null,null,null,null,null,null,null,null,null,"Select from Drop Down","Select from Drop Down","Select from Drop Down"]
[961,null,null,"Select from Drop Down","Select from Drop Down","Select from Drop Down",null,null,null,null,null,null,null,null,null,null,null,null,"Select from Drop Down","Select from Drop Down","Select from Drop Down"]
[962,null,null,"Select from Drop Down","Select from Drop Down","Select from Drop Down",null,null,null,null,null,null,null,null,null,null,null,null,"Select from Drop Down","Select from Drop Down","Select from Drop Down"]
[{"$f":"A972+1","v":963},null,null,"Select from Drop Down","Select from Drop Down","Select from Drop Down",null,null,null,null,null,null,null,null,null,null,null,null,"Select from Drop Down","Select from Drop Down","Select from Drop Down"]
[964,null,null,"Select from Drop Down","Select from Drop Down","Select from Drop Down",null,null,null,null,null,null,null,null,null,null,null,null,"Select from Drop Down","Select from Drop Down","Select from Drop Down"]
[965,null,null,"Select from Drop Down","Select from Drop Down","Select from Drop Down",null,null,null,null,null,null,null,null,null,null,null,null,"Select from Drop Down","Select from Drop Down","Select from Drop Down"]
[966,null,null,"Select from Drop Down","Select from Drop Down","Select from Drop Down",null,null,null,null,null,null,null,null,null,null,null,null,"Select from Drop Down","Select from Drop Down","Select from Drop Down"]
[967,null,null,"Select from Drop Down","Select from Drop Down","Select from Drop Down",null,null,null,null,null,null,null,null,null,null,null,null,"Select from Drop Down","Select from Drop Down","Select from Drop Down"]
[968,null,null,"Select from Drop Down","Select from Drop Down","Select from Drop Down",null,null,null,null,null,null,null,null,null,null,null,null,"Select from Drop Down","Select from Drop Down","Select from Drop Down"]
[969,null,null,"Select from Drop Down","Select from Drop Down","Select from Drop Down",null,null,null,null,null,null,null,null,null,null,null,null,"Select from Drop Down","Select from Drop Down","Select from Drop Down"]
[970,null,null,"Select from Drop Down","Select from Drop Down","Select from Drop Down",null,null,null,null,null,null,null,null,null,null,null,null,"Select from Drop Down","Select from Drop Down","Select from Drop Down"]
[971,null,null,"Select from Drop Down","Select from Drop Down","Select from Drop Down",null,null,null,null,null,null,null,null,null,null,null,null,"Select from Drop Down","Select from Drop Down","Select from Drop Down"]
[972,null,null,"Select from Drop Down","Select from Drop Down","Select from Drop Down",null,null,null,null,null,null,null,null,null,null,null,null,"Select from Drop Down","Select from Drop Down","Select from Drop Down"]
[973,null,null,"Select from Drop Down","Select from Drop Down","Select from Drop Down",null,null,null,null,null,null,null,null,null,null,null,null,"Select from Drop Down","Select from Drop Down","Select from Drop Down"]
[974,null,null,"Select from Drop Down","Select from Drop Down","Select from Drop Down",null,null,null,null,null,null,null,null,null,null,null,null,"Select from Drop Down","Select from Drop Down","Select from Drop Down"]
[975,null,null,"Select from Drop Down","Select from Drop Down","Select from Drop Down",null,null,null,null,null,null,null,null,null,null,null,null,"Select from Drop Down","Select from Drop Down","Select from Drop Down"]
[976,null,null,"Select from Drop Down","Select from Drop Down","Select from Drop Down",null,null,null,null,null,null,null,null,null,null,null,null,"Select from Drop Down","Select from Drop Down","Select from Drop Down"]
[977,null,null,"Select from Drop Down","Select from Drop Down","Select from Drop Down",null,null,null,null,null,null,null,null,null,null,null,null,"Select from Drop Down","Select from Drop Down","Select from Drop Down"]
[978,null,null,"Select from Drop Down","Select from Drop Down","Select from Drop Down",null,null,null,null,null,null,null,null,null,null,null,null,"Select from Drop Down","Select from Drop Down","Select from Drop Down"]
[979,null,null,"Select from Drop Down","Select from Drop Down","Select from Drop Down",null,null,null,null,null,null,null,null,null,null,null,null,"Select from Drop Down","Select from Drop Down","Select from Drop Down"]
[980,null,null,"Select from Drop Down","Select from Drop Down","Select from Drop Down",null,null,null,null,null,null,null,null,null,null,null,null,"Select from Drop Down","Select from Drop Down","Select from Drop Down"]
[981,null,null,"Select from Drop Down","Select from Drop Down","Select from Drop Down",null,null,null,null,null,null,null,null,null,null,null,null,"Select from Drop Down","Select from Drop Down","Select from Drop Down"]
[982,null,null,"Select from Drop Down","Select from Drop Down","Select from Drop Down",null,null,null,null,null,null,null,null,null,null,null,null,"Select from Drop Down","Select from Drop Down","Select from Drop Down"]
[983,null,null,"Select from Drop Down","Select from Drop Down","Select from Drop Down",null,null,null,null,null,null,null,null,null,null,null,null,"Select from Drop Down","Select from Drop Down","Select from Drop Down"]
[984,null,null,"Select from Drop Down","Select from Drop Down","Select from Drop Down",null,null,null,null,null,null,null,null,null,null,null,null,"Select from Drop Down","Select from Drop Down","Select from Drop Down"]
[985,null,null,"Select from Drop Down","Select from Drop Down","Select from Drop Down",null,null,null,null,null,null,null,null,null,null,null,null,"Select from Drop Down","Select from Drop Down","Select from Drop Down"]
[986,null,null,"Select from Drop Down","Select from Drop Down","Select from Drop Down",null,null,null,null,null,null,null,null,null,null,null,null,"Select from Drop Down","Select from Drop Down","Select from Drop Down"]
[987,null,null,"Select from Drop Down","Select from Drop Down","Select from Drop Down",null,null,null,null,null,null,null,null,null,null,null,null,"Select from Drop Down","Select from Drop Down","Select from Drop Down"]
[988,null,null,"Select from Drop Down","Select from Drop Down","Select from Drop Down",null,null,null,null,null,null,null,null,null,null,null,null,"Select from Drop Down","Select from Drop Down","Select from Drop Down"]
[989,null,null,"Select from Drop Down","Select from Drop Down","Select from Drop Down",null,null,null,null,null,null,null,null,null,null,null,null,"Select from Drop Down","Select from Drop Down","Select from Drop Down"]
[990,null,null,"Select from Drop Down","Select from Drop Down","Select from Drop Down",null,null,null,null,null,null,null,null,null,null,null,null,"Select from Drop Down","Select from Drop Down","Select from Drop Down"]
[991,null,null,"Select from Drop Down","Select from Drop Down","Select from Drop Down",null,null,null,null,null,null,null,null,null,null,null,null,"Select from Drop Down","Select from Drop Down","Select from Drop Down"]
[992,null,null,"Select from Drop Down","Select from Drop Down","Select from Drop Down",null,null,null,null,null,null,null,null,null,null,null,null,"Select from Drop Down","Select from Drop Down","Select from Drop Down"]
[993,null,null,"Select from Drop Down","Select from Drop Down","Select from Drop Down",null,null,null,null,null,null,null,null,null,null,null,null,"Select from Drop Down","Select from Drop Down","Select from Drop Down"]
[994,null,null,"Select from Drop Down","Select from Drop Down","Select from Drop Down",null,null,null,null,null,null,null,null,null,null,null,null,"Select from Drop Down","Select from Drop Down","Select from Drop Down"]
[995,null,null,"Select from Drop Down","Select from Drop Down","Select from Drop Down",null,null,null,null,null,null,null,null,null,null,null,null,"Select from Drop Down","Select from Drop Down","Select from Drop Down"]
[996,null,null,"Select from Drop Down","Select from Drop Down","Select from Drop Down",null,null,null,null,null,null,null,null,null,null,null,null,"Select from Drop Down","Select from Drop Down","Select from Drop Down"]
[997,null,null,"Select from Drop Down","Select from Drop Down","Select from Drop Down",null,null,null,null,null,null,null,null,null,null,null,null,"Select from Drop Down","Select from Drop Down","Select from Drop Down"]
[998,null,null,"Select from Drop Down","Select from Drop Down","Select from Drop Down",null,null,null,null,null,null,null,null,null,null,null,null,"Select from Drop Down","Select from Drop Down","Select from Drop Down"]
[999,null,null,"Select from Drop Down","Select from Drop Down","Select from Drop Down",null,null,null,null,null,null,null,null,null,null,null,null,"Select from Drop Down","Select from Drop Down","Select from Drop Down"]
[1000,null,null,"Select from Drop Down","Select from Drop Down","Select from Drop Down",null,null,null,null,null,null,null,null,null,null,null,null,"Select from Drop Down","Select from Drop Down","Select from Drop Down"]
[1001,null,null,"Select from Drop Down","Select from Drop Down","Select from Drop Down",null,null,null,null,null,null,null,null,null,null,null,null,"Select from Drop Down","Select from Drop Down","Select from Drop Down"]
[1002,null,null,"Select from Drop Down","Select from Drop Down","Select from Drop Down",null,null,null,null,null,null,null,null,null,null,null,null,"Select from Drop Down","Select from Drop Down","Select from Drop Down"]
[1003,null,null,"Select from Drop Down","Select from Drop Down","Select from Drop Down",null,null,null,null,null,null,null,null,null,null,null,null,"Select from Drop Down","Select from Drop Down","Select from Drop Down"]
[1004,null,null,"Select from Drop Down","Select from Drop Down","Select from Drop Down",null,null,null,null,null,null,null,null,null,null,null,null,"Select from Drop Down","Select from Drop Down","Select from Drop Down"]
[1005,null,null,"Select from Drop Down","Select from Drop Down","Select from Drop Down",null,null,null,null,null,null,null,null,null,null,null,null,"Select from Drop Down","Select from Drop Down","Select from Drop Down"]
[1006,null,null,"Select from Drop Down","Select from Drop Down","Select from Drop Down",null,null,null,null,null,null,null,null,null,null,null,null,"Select from Drop Down","Select from Drop Down","Select from Drop Down"]
[1007,null,null,"Select from Drop Down","Select from Drop Down","Select from Drop Down",null,null,null,null,null,null,null,null,null,null,null,null,"Select from Drop Down","Select from Drop Down","Select from Drop Down"]
[1008,null,null,"Select from Drop Down","Select from Drop Down","Select from Drop Down",null,null,null,null,null,null,null,null,null,null,null,null,"Select from Drop Down","Select from Drop Down","Select from Drop Down"]
[1009,null,null,"Select from Drop Down","Select from Drop Down","Select from Drop Down",null,null,null,null,null,null,null,null,null,null,null,null,"Select from Drop Down","Select from Drop Down","Select from Drop Down"]
[1010,null,null,"Select from Drop Down","Select from Drop Down","Select from Drop Down",null,null,null,null,null,null,null,null,null,null,null,null,"Select from Drop Down","Select from Drop Down","Select from Drop Down"]
[1011,null,null,"Select from Drop Down","Select from Drop Down","Select from Drop Down",null,null,null,null,null,null,null,null,null,null,null,null,"Select from Drop Down","Select from Drop Down","Select from Drop Down"]
[1012,null,null,"Select from Drop Down","Select from Drop Down","Select from Drop Down",null,null,null,null,null,null,null,null,null,null,null,null,"Select from Drop Down","Select from Drop Down","Select from Drop Down"]
[1013,null,null,"Select from Drop Down","Select from Drop Down","Select from Drop Down",null,null,null,null,null,null,null,null,null,null,null,null,"Select from Drop Down","Select from Drop Down","Select from Drop Down"]
[1014,null,null,"Select from Drop Down","Select from Drop Down","Select from Drop Down",null,null,null,null,null,null,null,null,null,null,null,null,"Select from Drop Down","Select from Drop Down","Select from Drop Down"]
[1015,null,null,"Select from Drop Down","Select from Drop Down","Select from Drop Down",null,null,null,null,null,null,null,null,null,null,null,null,"Select from Drop Down","Select from Drop Down","Select from Drop Down"]
[1016,null,null,"Select from Drop Down","Select from Drop Down","Select from Drop Down",null,null,null,null,null,null,null,null,null,null,null,null,"Select from Drop Down","Select from Drop Down","Select from Drop Down"]
[1017,null,null,"Select from Drop Down","Select from Drop Down","Select from Drop Down",null,null,null,null,null,null,null,null,null,null,null,null,"Select from Drop Down","Select from Drop Down","Select from Drop Down"]
[1018,null,null,"Select from Drop Down","Select from Drop Down","Select from Drop Down",null,null,null,null,null,null,null,null,null,null,null,null,"Select from Drop Down","Select from Drop Down","Select from Drop Down"]
[1019,null,null,"Select from Drop Down","Select from Drop Down","Select from Drop Down",null,null,null,null,null,null,null,null,null,null,null,null,"Select from Drop Down","Select from Drop Down","Select from Drop Down"]
[1020,null,null,"Select from Drop Down","Select from Drop Down","Select from Drop Down",null,null,null,null,null,null,null,null,null,null,null,null,"Select from Drop Down","Select from Drop Down","Select from Drop Down"]
[1021,null,null,"Select from Drop Down","Select from Drop Down","Select from Drop Down",null,null,null,null,null,null,null,null,null,null,null,null,"Select from Drop Down","Select from Drop Down","Select from Drop Down"]
[1022,null,null,"Select from Drop Down","Select from Drop Down","Select from Drop Down",null,null,null,null,null,null,null,null,null,null,null,null,"Select from Drop Down","Select from Drop Down","Select from Drop Down"]
[1023,null,null,"Select from Drop Down","Select from Drop Down","Select from Drop Down",null,null,null,null,null,null,null,null,null,null,null,null,"Select from Drop Down","Select from Drop Down","Select from Drop Down"]
[1024,null,null,"Select from Drop Down","Select from Drop Down","Select from Drop Down",null,null,null,null,null,null,null,null,null,null,null,null,"Select from Drop Down","Select from Drop Down","Select from Drop Down"]
[1025,null,null,"Select from Drop Down","Select from Drop Down","Select from Drop Down",null,null,null,null,null,null,null,null,null,null,null,null,"Select from Drop Down","Select from Drop Down","Select from Drop Down"]
[1026,null,null,"Select from Drop Down","Select from Drop Down","Select from Drop Down",null,null,null,null,null,null,null,null,null,null,null,null,"Select from Drop Down","Select from Drop Down","Select from Drop Down"]
[{"$f":"A1036+1","v":1027},null,null,"Select from Drop Down","Select from Drop Down","Select from Drop Down",null,null,null,null,null,null,null,null,null,null,null,null,"Select from Drop Down","Select from Drop Down","Select from Drop Down"]
[1028,null,null,"Select from Drop Down","Select from Drop Down","Select from Drop Down",null,null,null,null,null,null,null,null,null,null,null,null,"Select from Drop Down","Select from Drop Down","Select from Drop Down"]
[1029,null,null,"Select from Drop Down","Select from Drop Down","Select from Drop Down",null,null,null,null,null,null,null,null,null,null,null,null,"Select from Drop Down","Select from Drop Down","Select from Drop Down"]
[1030,null,null,"Select from Drop Down","Select from Drop Down","Select from Drop Down",null,null,null,null,null,null,null,null,null,null,null,null,"Select from Drop Down","Select from Drop Down","Select from Drop Down"]
[1031,null,null,"Select from Drop Down","Select from Drop Down","Select from Drop Down",null,null,null,null,null,null,null,null,null,null,null,null,"Select from Drop Down","Select from Drop Down","Select from Drop Down"]
[1032,null,null,"Select from Drop Down","Select from Drop Down","Select from Drop Down",null,null,null,null,null,null,null,null,null,null,null,null,"Select from Drop Down","Select from Drop Down","Select from Drop Down"]
[1033,null,null,"Select from Drop Down","Select from Drop Down","Select from Drop Down",null,null,null,null,null,null,null,null,null,null,null,null,"Select from Drop Down","Select from Drop Down","Select from Drop Down"]
[1034,null,null,"Select from Drop Down","Select from Drop Down","Select from Drop Down",null,null,null,null,null,null,null,null,null,null,null,null,"Select from Drop Down","Select from Drop Down","Select from Drop Down"]
[1035,null,null,"Select from Drop Down","Select from Drop Down","Select from Drop Down",null,null,null,null,null,null,null,null,null,null,null,null,"Select from Drop Down","Select from Drop Down","Select from Drop Down"]
[1036,null,null,"Select from Drop Down","Select from Drop Down","Select from Drop Down",null,null,null,null,null,null,null,null,null,null,null,null,"Select from Drop Down","Select from Drop Down","Select from Drop Down"]
[1037,null,null,"Select from Drop Down","Select from Drop Down","Select from Drop Down",null,null,null,null,null,null,null,null,null,null,null,null,"Select from Drop Down","Select from Drop Down","Select from Drop Down"]
[1038,null,null,"Select from Drop Down","Select from Drop Down","Select from Drop Down",null,null,null,null,null,null,null,null,null,null,null,null,"Select from Drop Down","Select from Drop Down","Select from Drop Down"]
[1039,null,null,"Select from Drop Down","Select from Drop Down","Select from Drop Down",null,null,null,null,null,null,null,null,null,null,null,null,"Select from Drop Down","Select from Drop Down","Select from Drop Down"]
[1040,null,null,"Select from Drop Down","Select from Drop Down","Select from Drop Down",null,null,null,null,null,null,null,null,null,null,null,null,"Select from Drop Down","Select from Drop Down","Select from Drop Down"]
[1041,null,null,"Select from Drop Down","Select from Drop Down","Select from Drop Down",null,null,null,null,null,null,null,null,null,null,null,null,"Select from Drop Down","Select from Drop Down","Select from Drop Down"]
[1042,null,null,"Select from Drop Down","Select from Drop Down","Select from Drop Down",null,null,null,null,null,null,null,null,null,null,null,null,"Select from Drop Down","Select from Drop Down","Select from Drop Down"]
[1043,null,null,"Select from Drop Down","Select from Drop Down","Select from Drop Down",null,null,null,null,null,null,null,null,null,null,null,null,"Select from Drop Down","Select from Drop Down","Select from Drop Down"]
[1044,null,null,"Select from Drop Down","Select from Drop Down","Select from Drop Down",null,null,null,null,null,null,null,null,null,null,null,null,"Select from Drop Down","Select from Drop Down","Select from Drop Down"]
[1045,null,null,"Select from Drop Down","Select from Drop Down","Select from Drop Down",null,null,null,null,null,null,null,null,null,null,null,null,"Select from Drop Down","Select from Drop Down","Select from Drop Down"]
[1046,null,null,"Select from Drop Down","Select from Drop Down","Select from Drop Down",null,null,null,null,null,null,null,null,null,null,null,null,"Select from Drop Down","Select from Drop Down","Select from Drop Down"]
[1047,null,null,"Select from Drop Down","Select from Drop Down","Select from Drop Down",null,null,null,null,null,null,null,null,null,null,null,null,"Select from Drop Down","Select from Drop Down","Select from Drop Down"]
[1048,null,null,"Select from Drop Down","Select from Drop Down","Select from Drop Down",null,null,null,null,null,null,null,null,null,null,null,null,"Select from Drop Down","Select from Drop Down","Select from Drop Down"]
[1049,null,null,"Select from Drop Down","Select from Drop Down","Select from Drop Down",null,null,null,null,null,null,null,null,null,null,null,null,"Select from Drop Down","Select from Drop Down","Select from Drop Down"]
[1050,null,null,"Select from Drop Down","Select from Drop Down","Select from Drop Down",null,null,null,null,null,null,null,null,null,null,null,null,"Select from Drop Down","Select from Drop Down","Select from Drop Down"]
[1051,null,null,"Select from Drop Down","Select from Drop Down","Select from Drop Down",null,null,null,null,null,null,null,null,null,null,null,null,"Select from Drop Down","Select from Drop Down","Select from Drop Down"]
[1052,null,null,"Select from Drop Down","Select from Drop Down","Select from Drop Down",null,null,null,null,null,null,null,null,null,null,null,null,"Select from Drop Down","Select from Drop Down","Select from Drop Down"]
[1053,null,null,"Select from Drop Down","Select from Drop Down","Select from Drop Down",null,null,null,null,null,null,null,null,null,null,null,null,"Select from Drop Down","Select from Drop Down","Select from Drop Down"]
[1054,null,null,"Select from Drop Down","Select from Drop Down","Select from Drop Down",null,null,null,null,null,null,null,null,null,null,null,null,"Select from Drop Down","Select from Drop Down","Select from Drop Down"]
[1055,null,null,"Select from Drop Down","Select from Drop Down","Select from Drop Down",null,null,null,null,null,null,null,null,null,null,null,null,"Select from Drop Down","Select from Drop Down","Select from Drop Down"]
[1056,null,null,"Select from Drop Down","Select from Drop Down","Select from Drop Down",null,null,null,null,null,null,null,null,null,null,null,null,"Select from Drop Down","Select from Drop Down","Select from Drop Down"]
[1057,null,null,"Select from Drop Down","Select from Drop Down","Select from Drop Down",null,null,null,null,null,null,null,null,null,null,null,null,"Select from Drop Down","Select from Drop Down","Select from Drop Down"]
[1058,null,null,"Select from Drop Down","Select from Drop Down","Select from Drop Down",null,null,null,null,null,null,null,null,null,null,null,null,"Select from Drop Down","Select from Drop Down","Select from Drop Down"]
[1059,null,null,"Select from Drop Down","Select from Drop Down","Select from Drop Down",null,null,null,null,null,null,null,null,null,null,null,null,"Select from Drop Down","Select from Drop Down","Select from Drop Down"]
[1060,null,null,"Select from Drop Down","Select from Drop Down","Select from Drop Down",null,null,null,null,null,null,null,null,null,null,null,null,"Select from Drop Down","Select from Drop Down","Select from Drop Down"]
[1061,null,null,"Select from Drop Down","Select from Drop Down","Select from Drop Down",null,null,null,null,null,null,null,null,null,null,null,null,"Select from Drop Down","Select from Drop Down","Select from Drop Down"]
[1062,null,null,"Select from Drop Down","Select from Drop Down","Select from Drop Down",null,null,null,null,null,null,null,null,null,null,null,null,"Select from Drop Down","Select from Drop Down","Select from Drop Down"]
[1063,null,null,"Select from Drop Down","Select from Drop Down","Select from Drop Down",null,null,null,null,null,null,null,null,null,null,null,null,"Select from Drop Down","Select from Drop Down","Select from Drop Down"]
[1064,null,null,"Select from Drop Down","Select from Drop Down","Select from Drop Down",null,null,null,null,null,null,null,null,null,null,null,null,"Select from Drop Down","Select from Drop Down","Select from Drop Down"]
[1065,null,null,"Select from Drop Down","Select from Drop Down","Select from Drop Down",null,null,null,null,null,null,null,null,null,null,null,null,"Select from Drop Down","Select from Drop Down","Select from Drop Down"]
[1066,null,null,"Select from Drop Down","Select from Drop Down","Select from Drop Down",null,null,null,null,null,null,null,null,null,null,null,null,"Select from Drop Down","Select from Drop Down","Select from Drop Down"]
[1067,null,null,"Select from Drop Down","Select from Drop Down","Select from Drop Down",null,null,null,null,null,null,null,null,null,null,null,null,"Select from Drop Down","Select from Drop Down","Select from Drop Down"]
[1068,null,null,"Select from Drop Down","Select from Drop Down","Select from Drop Down",null,null,null,null,null,null,null,null,null,null,null,null,"Select from Drop Down","Select from Drop Down","Select from Drop Down"]
[1069,null,null,"Select from Drop Down","Select from Drop Down","Select from Drop Down",null,null,null,null,null,null,null,null,null,null,null,null,"Select from Drop Down","Select from Drop Down","Select from Drop Down"]
[1070,null,null,"Select from Drop Down","Select from Drop Down","Select from Drop Down",null,null,null,null,null,null,null,null,null,null,null,null,"Select from Drop Down","Select from Drop Down","Select from Drop Down"]
[1071,null,null,"Select from Drop Down","Select from Drop Down","Select from Drop Down",null,null,null,null,null,null,null,null,null,null,null,null,"Select from Drop Down","Select from Drop Down","Select from Drop Down"]
[1072,null,null,"Select from Drop Down","Select from Drop Down","Select from Drop Down",null,null,null,null,null,null,null,null,null,null,null,null,"Select from Drop Down","Select from Drop Down","Select from Drop Down"]
[1073,null,null,"Select from Drop Down","Select from Drop Down","Select from Drop Down",null,null,null,null,null,null,null,null,null,null,null,null,"Select from Drop Down","Select from Drop Down","Select from Drop Down"]
[1074,null,null,"Select from Drop Down","Select from Drop Down","Select from Drop Down",null,null,null,null,null,null,null,null,null,null,null,null,"Select from Drop Down","Select from Drop Down","Select from Drop Down"]
[1075,null,null,"Select from Drop Down","Select from Drop Down","Select from Drop Down",null,null,null,null,null,null,null,null,null,null,null,null,"Select from Drop Down","Select from Drop Down","Select from Drop Down"]
[1076,null,null,"Select from Drop Down","Select from Drop Down","Select from Drop Down",null,null,null,null,null,null,null,null,null,null,null,null,"Select from Drop Down","Select from Drop Down","Select from Drop Down"]
[1077,null,null,"Select from Drop Down","Select from Drop Down","Select from Drop Down",null,null,null,null,null,null,null,null,null,null,null,null,"Select from Drop Down","Select from Drop Down","Select from Drop Down"]
[1078,null,null,"Select from Drop Down","Select from Drop Down","Select from Drop Down",null,null,null,null,null,null,null,null,null,null,null,null,"Select from Drop Down","Select from Drop Down","Select from Drop Down"]
[1079,null,null,"Select from Drop Down","Select from Drop Down","Select from Drop Down",null,null,null,null,null,null,null,null,null,null,null,null,"Select from Drop Down","Select from Drop Down","Select from Drop Down"]
[1080,null,null,"Select from Drop Down","Select from Drop Down","Select from Drop Down",null,null,null,null,null,null,null,null,null,null,null,null,"Select from Drop Down","Select from Drop Down","Select from Drop Down"]
[1081,null,null,"Select from Drop Down","Select from Drop Down","Select from Drop Down",null,null,null,null,null,null,null,null,null,null,null,null,"Select from Drop Down","Select from Drop Down","Select from Drop Down"]
[1082,null,null,"Select from Drop Down","Select from Drop Down","Select from Drop Down",null,null,null,null,null,null,null,null,null,null,null,null,"Select from Drop Down","Select from Drop Down","Select from Drop Down"]
[1083,null,null,"Select from Drop Down","Select from Drop Down","Select from Drop Down",null,null,null,null,null,null,null,null,null,null,null,null,"Select from Drop Down","Select from Drop Down","Select from Drop Down"]
[1084,null,null,"Select from Drop Down","Select from Drop Down","Select from Drop Down",null,null,null,null,null,null,null,null,null,null,null,null,"Select from Drop Down","Select from Drop Down","Select from Drop Down"]
[1085,null,null,"Select from Drop Down","Select from Drop Down","Select from Drop Down",null,null,null,null,null,null,null,null,null,null,null,null,"Select from Drop Down","Select from Drop Down","Select from Drop Down"]
[1086,null,null,"Select from Drop Down","Select from Drop Down","Select from Drop Down",null,null,null,null,null,null,null,null,null,null,null,null,"Select from Drop Down","Select from Drop Down","Select from Drop Down"]
[1087,null,null,"Select from Drop Down","Select from Drop Down","Select from Drop Down",null,null,null,null,null,null,null,null,null,null,null,null,"Select from Drop Down","Select from Drop Down","Select from Drop Down"]
[1088,null,null,"Select from Drop Down","Select from Drop Down","Select from Drop Down",null,null,null,null,null,null,null,null,null,null,null,null,"Select from Drop Down","Select from Drop Down","Select from Drop Down"]
[1089,null,null,"Select from Drop Down","Select from Drop Down","Select from Drop Down",null,null,null,null,null,null,null,null,null,null,null,null,"Select from Drop Down","Select from Drop Down","Select from Drop Down"]
[1090,null,null,"Select from Drop Down","Select from Drop Down","Select from Drop Down",null,null,null,null,null,null,null,null,null,null,null,null,"Select from Drop Down","Select from Drop Down","Select from Drop Down"]
[{"$f":"A1100+1","v":1091},null,null,"Select from Drop Down","Select from Drop Down","Select from Drop Down",null,null,null,null,null,null,null,null,null,null,null,null,"Select from Drop Down","Select from Drop Down","Select from Drop Down"]
[1092,null,null,"Select from Drop Down","Select from Drop Down","Select from Drop Down",null,null,null,null,null,null,null,null,null,null,null,null,"Select from Drop Down","Select from Drop Down","Select from Drop Down"]
[1093,null,null,"Select from Drop Down","Select from Drop Down","Select from Drop Down",null,null,null,null,null,null,null,null,null,null,null,null,"Select from Drop Down","Select from Drop Down","Select from Drop Down"]
[1094,null,null,"Select from Drop Down","Select from Drop Down","Select from Drop Down",null,null,null,null,null,null,null,null,null,null,null,null,"Select from Drop Down","Select from Drop Down","Select from Drop Down"]
[1095,null,null,"Select from Drop Down","Select from Drop Down","Select from Drop Down",null,null,null,null,null,null,null,null,null,null,null,null,"Select from Drop Down","Select from Drop Down","Select from Drop Down"]
[1096,null,null,"Select from Drop Down","Select from Drop Down","Select from Drop Down",null,null,null,null,null,null,null,null,null,null,null,null,"Select from Drop Down","Select from Drop Down","Select from Drop Down"]
[1097,null,null,"Select from Drop Down","Select from Drop Down","Select from Drop Down",null,null,null,null,null,null,null,null,null,null,null,null,"Select from Drop Down","Select from Drop Down","Select from Drop Down"]
[1098,null,null,"Select from Drop Down","Select from Drop Down","Select from Drop Down",null,null,null,null,null,null,null,null,null,null,null,null,"Select from Drop Down","Select from Drop Down","Select from Drop Down"]
[1099,null,null,"Select from Drop Down","Select from Drop Down","Select from Drop Down",null,null,null,null,null,null,null,null,null,null,null,null,"Select from Drop Down","Select from Drop Down","Select from Drop Down"]
[1100,null,null,"Select from Drop Down","Select from Drop Down","Select from Drop Down",null,null,null,null,null,null,null,null,null,null,null,null,"Select from Drop Down","Select from Drop Down","Select from Drop Down"]
[1101,null,null,"Select from Drop Down","Select from Drop Down","Select from Drop Down",null,null,null,null,null,null,null,null,null,null,null,null,"Select from Drop Down","Select from Drop Down","Select from Drop Down"]
[1102,null,null,"Select from Drop Down","Select from Drop Down","Select from Drop Down",null,null,null,null,null,null,null,null,null,null,null,null,"Select from Drop Down","Select from Drop Down","Select from Drop Down"]
[1103,null,null,"Select from Drop Down","Select from Drop Down","Select from Drop Down",null,null,null,null,null,null,null,null,null,null,null,null,"Select from Drop Down","Select from Drop Down","Select from Drop Down"]
[1104,null,null,"Select from Drop Down","Select from Drop Down","Select from Drop Down",null,null,null,null,null,null,null,null,null,null,null,null,"Select from Drop Down","Select from Drop Down","Select from Drop Down"]
[1105,null,null,"Select from Drop Down","Select from Drop Down","Select from Drop Down",null,null,null,null,null,null,null,null,null,null,null,null,"Select from Drop Down","Select from Drop Down","Select from Drop Down"]
[1106,null,null,"Select from Drop Down","Select from Drop Down","Select from Drop Down",null,null,null,null,null,null,null,null,null,null,null,null,"Select from Drop Down","Select from Drop Down","Select from Drop Down"]
[1107,null,null,"Select from Drop Down","Select from Drop Down","Select from Drop Down",null,null,null,null,null,null,null,null,null,null,null,null,"Select from Drop Down","Select from Drop Down","Select from Drop Down"]
[1108,null,null,"Select from Drop Down","Select from Drop Down","Select from Drop Down",null,null,null,null,null,null,null,null,null,null,null,null,"Select from Drop Down","Select from Drop Down","Select from Drop Down"]
[1109,null,null,"Select from Drop Down","Select from Drop Down","Select from Drop Down",null,null,null,null,null,null,null,null,null,null,null,null,"Select from Drop Down","Select from Drop Down","Select from Drop Down"]
[1110,null,null,"Select from Drop Down","Select from Drop Down","Select from Drop Down",null,null,null,null,null,null,null,null,null,null,null,null,"Select from Drop Down","Select from Drop Down","Select from Drop Down"]
[1111,null,null,"Select from Drop Down","Select from Drop Down","Select from Drop Down",null,null,null,null,null,null,null,null,null,null,null,null,"Select from Drop Down","Select from Drop Down","Select from Drop Down"]
[1112,null,null,"Select from Drop Down","Select from Drop Down","Select from Drop Down",null,null,null,null,null,null,null,null,null,null,null,null,"Select from Drop Down","Select from Drop Down","Select from Drop Down"]
[1113,null,null,"Select from Drop Down","Select from Drop Down","Select from Drop Down",null,null,null,null,null,null,null,null,null,null,null,null,"Select from Drop Down","Select from Drop Down","Select from Drop Down"]
[1114,null,null,"Select from Drop Down","Select from Drop Down","Select from Drop Down",null,null,null,null,null,null,null,null,null,null,null,null,"Select from Drop Down","Select from Drop Down","Select from Drop Down"]
[1115,null,null,"Select from Drop Down","Select from Drop Down","Select from Drop Down",null,null,null,null,null,null,null,null,null,null,null,null,"Select from Drop Down","Select from Drop Down","Select from Drop Down"]
[1116,null,null,"Select from Drop Down","Select from Drop Down","Select from Drop Down",null,null,null,null,null,null,null,null,null,null,null,null,"Select from Drop Down","Select from Drop Down","Select from Drop Down"]
[1117,null,null,"Select from Drop Down","Select from Drop Down","Select from Drop Down",null,null,null,null,null,null,null,null,null,null,null,null,"Select from Drop Down","Select from Drop Down","Select from Drop Down"]
[1118,null,null,"Select from Drop Down","Select from Drop Down","Select from Drop Down",null,null,null,null,null,null,null,null,null,null,null,null,"Select from Drop Down","Select from Drop Down","Select from Drop Down"]
[1119,null,null,"Select from Drop Down","Select from Drop Down","Select from Drop Down",null,null,null,null,null,null,null,null,null,null,null,null,"Select from Drop Down","Select from Drop Down","Select from Drop Down"]
[1120,null,null,"Select from Drop Down","Select from Drop Down","Select from Drop Down",null,null,null,null,null,null,null,null,null,null,null,null,"Select from Drop Down","Select from Drop Down","Select from Drop Down"]
[1121,null,null,"Select from Drop Down","Select from Drop Down","Select from Drop Down",null,null,null,null,null,null,null,null,null,null,null,null,"Select from Drop Down","Select from Drop Down","Select from Drop Down"]
[1122,null,null,"Select from Drop Down","Select from Drop Down","Select from Drop Down",null,null,null,null,null,null,null,null,null,null,null,null,"Select from Drop Down","Select from Drop Down","Select from Drop Down"]
[1123,null,null,"Select from Drop Down","Select from Drop Down","Select from Drop Down",null,null,null,null,null,null,null,null,null,null,null,null,"Select from Drop Down","Select from Drop Down","Select from Drop Down"]
[1124,null,null,"Select from Drop Down","Select from Drop Down","Select from Drop Down",null,null,null,null,null,null,null,null,null,null,null,null,"Select from Drop Down","Select from Drop Down","Select from Drop Down"]
[1125,null,null,"Select from Drop Down","Select from Drop Down","Select from Drop Down",null,null,null,null,null,null,null,null,null,null,null,null,"Select from Drop Down","Select from Drop Down","Select from Drop Down"]
[1126,null,null,"Select from Drop Down","Select from Drop Down","Select from Drop Down",null,null,null,null,null,null,null,null,null,null,null,null,"Select from Drop Down","Select from Drop Down","Select from Drop Down"]
[1127,null,null,"Select from Drop Down","Select from Drop Down","Select from Drop Down",null,null,null,null,null,null,null,null,null,null,null,null,"Select from Drop Down","Select from Drop Down","Select from Drop Down"]
[1128,null,null,"Select from Drop Down","Select from Drop Down","Select from Drop Down",null,null,null,null,null,null,null,null,null,null,null,null,"Select from Drop Down","Select from Drop Down","Select from Drop Down"]
[1129,null,null,"Select from Drop Down","Select from Drop Down","Select from Drop Down",null,null,null,null,null,null,null,null,null,null,null,null,"Select from Drop Down","Select from Drop Down","Select from Drop Down"]
[1130,null,null,"Select from Drop Down","Select from Drop Down","Select from Drop Down",null,null,null,null,null,null,null,null,null,null,null,null,"Select from Drop Down","Select from Drop Down","Select from Drop Down"]
[1131,null,null,"Select from Drop Down","Select from Drop Down","Select from Drop Down",null,null,null,null,null,null,null,null,null,null,null,null,"Select from Drop Down","Select from Drop Down","Select from Drop Down"]
[1132,null,null,"Select from Drop Down","Select from Drop Down","Select from Drop Down",null,null,null,null,null,null,null,null,null,null,null,null,"Select from Drop Down","Select from Drop Down","Select from Drop Down"]
[1133,null,null,"Select from Drop Down","Select from Drop Down","Select from Drop Down",null,null,null,null,null,null,null,null,null,null,null,null,"Select from Drop Down","Select from Drop Down","Select from Drop Down"]
[1134,null,null,"Select from Drop Down","Select from Drop Down","Select from Drop Down",null,null,null,null,null,null,null,null,null,null,null,null,"Select from Drop Down","Select from Drop Down","Select from Drop Down"]
[1135,null,null,"Select from Drop Down","Select from Drop Down","Select from Drop Down",null,null,null,null,null,null,null,null,null,null,null,null,"Select from Drop Down","Select from Drop Down","Select from Drop Down"]
[1136,null,null,"Select from Drop Down","Select from Drop Down","Select from Drop Down",null,null,null,null,null,null,null,null,null,null,null,null,"Select from Drop Down","Select from Drop Down","Select from Drop Down"]
[1137,null,null,"Select from Drop Down","Select from Drop Down","Select from Drop Down",null,null,null,null,null,null,null,null,null,null,null,null,"Select from Drop Down","Select from Drop Down","Select from Drop Down"]
[1138,null,null,"Select from Drop Down","Select from Drop Down","Select from Drop Down",null,null,null,null,null,null,null,null,null,null,null,null,"Select from Drop Down","Select from Drop Down","Select from Drop Down"]
[1139,null,null,"Select from Drop Down","Select from Drop Down","Select from Drop Down",null,null,null,null,null,null,null,null,null,null,null,null,"Select from Drop Down","Select from Drop Down","Select from Drop Down"]
[1140,null,null,"Select from Drop Down","Select from Drop Down","Select from Drop Down",null,null,null,null,null,null,null,null,null,null,null,null,"Select from Drop Down","Select from Drop Down","Select from Drop Down"]
[1141,null,null,"Select from Drop Down","Select from Drop Down","Select from Drop Down",null,null,null,null,null,null,null,null,null,null,null,null,"Select from Drop Down","Select from Drop Down","Select from Drop Down"]
[1142,null,null,"Select from Drop Down","Select from Drop Down","Select from Drop Down",null,null,null,null,null,null,null,null,null,null,null,null,"Select from Drop Down","Select from Drop Down","Select from Drop Down"]
[1143,null,null,"Select from Drop Down","Select from Drop Down","Select from Drop Down",null,null,null,null,null,null,null,null,null,null,null,null,"Select from Drop Down","Select from Drop Down","Select from Drop Down"]
[1144,null,null,"Select from Drop Down","Select from Drop Down","Select from Drop Down",null,null,null,null,null,null,null,null,null,null,null,null,"Select from Drop Down","Select from Drop Down","Select from Drop Down"]
[1145,null,null,"Select from Drop Down","Select from Drop Down","Select from Drop Down",null,null,null,null,null,null,null,null,null,null,null,null,"Select from Drop Down","Select from Drop Down","Select from Drop Down"]
[1146,null,null,"Select from Drop Down","Select from Drop Down","Select from Drop Down",null,null,null,null,null,null,null,null,null,null,null,null,"Select from Drop Down","Select from Drop Down","Select from Drop Down"]
[1147,null,null,"Select from Drop Down","Select from Drop Down","Select from Drop Down",null,null,null,null,null,null,null,null,null,null,null,null,"Select from Drop Down","Select from Drop Down","Select from Drop Down"]
[1148,null,null,"Select from Drop Down","Select from Drop Down","Select from Drop Down",null,null,null,null,null,null,null,null,null,null,null,null,"Select from Drop Down","Select from Drop Down","Select from Drop Down"]
[1149,null,null,"Select from Drop Down","Select from Drop Down","Select from Drop Down",null,null,null,null,null,null,null,null,null,null,null,null,"Select from Drop Down","Select from Drop Down","Select from Drop Down"]
[1150,null,null,"Select from Drop Down","Select from Drop Down","Select from Drop Down",null,null,null,null,null,null,null,null,null,null,null,null,"Select from Drop Down","Select from Drop Down","Select from Drop Down"]
[1151,null,null,"Select from Drop Down","Select from Drop Down","Select from Drop Down",null,null,null,null,null,null,null,null,null,null,null,null,"Select from Drop Down","Select from Drop Down","Select from Drop Down"]
[1152,null,null,"Select from Drop Down","Select from Drop Down","Select from Drop Down",null,null,null,null,null,null,null,null,null,null,null,null,"Select from Drop Down","Select from Drop Down","Select from Drop Down"]
[1153,null,null,"Select from Drop Down","Select from Drop Down","Select from Drop Down",null,null,null,null,null,null,null,null,null,null,null,null,"Select from Drop Down","Select from Drop Down","Select from Drop Down"]
[1154,null,null,"Select from Drop Down","Select from Drop Down","Select from Drop Down",null,null,null,null,null,null,null,null,null,null,null,null,"Select from Drop Down","Select from Drop Down","Select from Drop Down"]
[{"$f":"A1164+1","v":1155},null,null,"Select from Drop Down","Select from Drop Down","Select from Drop Down",null,null,null,null,null,null,null,null,null,null,null,null,"Select from Drop Down","Select from Drop Down","Select from Drop Down"]
[1156,null,null,"Select from Drop Down","Select from Drop Down","Select from Drop Down",null,null,null,null,null,null,null,null,null,null,null,null,"Select from Drop Down","Select from Drop Down","Select from Drop Down"]
[1157,null,null,"Select from Drop Down","Select from Drop Down","Select from Drop Down",null,null,null,null,null,null,null,null,null,null,null,null,"Select from Drop Down","Select from Drop Down","Select from Drop Down"]
[1158,null,null,"Select from Drop Down","Select from Drop Down","Select from Drop Down",null,null,null,null,null,null,null,null,null,null,null,null,"Select from Drop Down","Select from Drop Down","Select from Drop Down"]
[1159,null,null,"Select from Drop Down","Select from Drop Down","Select from Drop Down",null,null,null,null,null,null,null,null,null,null,null,null,"Select from Drop Down","Select from Drop Down","Select from Drop Down"]
[1160,null,null,"Select from Drop Down","Select from Drop Down","Select from Drop Down",null,null,null,null,null,null,null,null,null,null,null,null,"Select from Drop Down","Select from Drop Down","Select from Drop Down"]
[1161,null,null,"Select from Drop Down","Select from Drop Down","Select from Drop Down",null,null,null,null,null,null,null,null,null,null,null,null,"Select from Drop Down","Select from Drop Down","Select from Drop Down"]
[1162,null,null,"Select from Drop Down","Select from Drop Down","Select from Drop Down",null,null,null,null,null,null,null,null,null,null,null,null,"Select from Drop Down","Select from Drop Down","Select from Drop Down"]
[1163,null,null,"Select from Drop Down","Select from Drop Down","Select from Drop Down",null,null,null,null,null,null,null,null,null,null,null,null,"Select from Drop Down","Select from Drop Down","Select from Drop Down"]
[1164,null,null,"Select from Drop Down","Select from Drop Down","Select from Drop Down",null,null,null,null,null,null,null,null,null,null,null,null,"Select from Drop Down","Select from Drop Down","Select from Drop Down"]
[1165,null,null,"Select from Drop Down","Select from Drop Down","Select from Drop Down",null,null,null,null,null,null,null,null,null,null,null,null,"Select from Drop Down","Select from Drop Down","Select from Drop Down"]
[1166,null,null,"Select from Drop Down","Select from Drop Down","Select from Drop Down",null,null,null,null,null,null,null,null,null,null,null,null,"Select from Drop Down","Select from Drop Down","Select from Drop Down"]
[1167,null,null,"Select from Drop Down","Select from Drop Down","Select from Drop Down",null,null,null,null,null,null,null,null,null,null,null,null,"Select from Drop Down","Select from Drop Down","Select from Drop Down"]
[1168,null,null,"Select from Drop Down","Select from Drop Down","Select from Drop Down",null,null,null,null,null,null,null,null,null,null,null,null,"Select from Drop Down","Select from Drop Down","Select from Drop Down"]
[1169,null,null,"Select from Drop Down","Select from Drop Down","Select from Drop Down",null,null,null,null,null,null,null,null,null,null,null,null,"Select from Drop Down","Select from Drop Down","Select from Drop Down"]
[1170,null,null,"Select from Drop Down","Select from Drop Down","Select from Drop Down",null,null,null,null,null,null,null,null,null,null,null,null,"Select from Drop Down","Select from Drop Down","Select from Drop Down"]
[1171,null,null,"Select from Drop Down","Select from Drop Down","Select from Drop Down",null,null,null,null,null,null,null,null,null,null,null,null,"Select from Drop Down","Select from Drop Down","Select from Drop Down"]
[1172,null,null,"Select from Drop Down","Select from Drop Down","Select from Drop Down",null,null,null,null,null,null,null,null,null,null,null,null,"Select from Drop Down","Select from Drop Down","Select from Drop Down"]
[1173,null,null,"Select from Drop Down","Select from Drop Down","Select from Drop Down",null,null,null,null,null,null,null,null,null,null,null,null,"Select from Drop Down","Select from Drop Down","Select from Drop Down"]
[1174,null,null,"Select from Drop Down","Select from Drop Down","Select from Drop Down",null,null,null,null,null,null,null,null,null,null,null,null,"Select from Drop Down","Select from Drop Down","Select from Drop Down"]
[1175,null,null,"Select from Drop Down","Select from Drop Down","Select from Drop Down",null,null,null,null,null,null,null,null,null,null,null,null,"Select from Drop Down","Select from Drop Down","Select from Drop Down"]
[1176,null,null,"Select from Drop Down","Select from Drop Down","Select from Drop Down",null,null,null,null,null,null,null,null,null,null,null,null,"Select from Drop Down","Select from Drop Down","Select from Drop Down"]
[1177,null,null,"Select from Drop Down","Select from Drop Down","Select from Drop Down",null,null,null,null,null,null,null,null,null,null,null,null,"Select from Drop Down","Select from Drop Down","Select from Drop Down"]
[1178,null,null,"Select from Drop Down","Select from Drop Down","Select from Drop Down",null,null,null,null,null,null,null,null,null,null,null,null,"Select from Drop Down","Select from Drop Down","Select from Drop Down"]
[1179,null,null,"Select from Drop Down","Select from Drop Down","Select from Drop Down",null,null,null,null,null,null,null,null,null,null,null,null,"Select from Drop Down","Select from Drop Down","Select from Drop Down"]
[1180,null,null,"Select from Drop Down","Select from Drop Down","Select from Drop Down",null,null,null,null,null,null,null,null,null,null,null,null,"Select from Drop Down","Select from Drop Down","Select from Drop Down"]
[1181,null,null,"Select from Drop Down","Select from Drop Down","Select from Drop Down",null,null,null,null,null,null,null,null,null,null,null,null,"Select from Drop Down","Select from Drop Down","Select from Drop Down"]
[1182,null,null,"Select from Drop Down","Select from Drop Down","Select from Drop Down",null,null,null,null,null,null,null,null,null,null,null,null,"Select from Drop Down","Select from Drop Down","Select from Drop Down"]
[1183,null,null,"Select from Drop Down","Select from Drop Down","Select from Drop Down",null,null,null,null,null,null,null,null,null,null,null,null,"Select from Drop Down","Select from Drop Down","Select from Drop Down"]
[1184,null,null,"Select from Drop Down","Select from Drop Down","Select from Drop Down",null,null,null,null,null,null,null,null,null,null,null,null,"Select from Drop Down","Select from Drop Down","Select from Drop Down"]
[1185,null,null,"Select from Drop Down","Select from Drop Down","Select from Drop Down",null,null,null,null,null,null,null,null,null,null,null,null,"Select from Drop Down","Select from Drop Down","Select from Drop Down"]
[1186,null,null,"Select from Drop Down","Select from Drop Down","Select from Drop Down",null,null,null,null,null,null,null,null,null,null,null,null,"Select from Drop Down","Select from Drop Down","Select from Drop Down"]
[1187,null,null,"Select from Drop Down","Select from Drop Down","Select from Drop Down",null,null,null,null,null,null,null,null,null,null,null,null,"Select from Drop Down","Select from Drop Down","Select from Drop Down"]
[1188,null,null,"Select from Drop Down","Select from Drop Down","Select from Drop Down",null,null,null,null,null,null,null,null,null,null,null,null,"Select from Drop Down","Select from Drop Down","Select from Drop Down"]
[1189,null,null,"Select from Drop Down","Select from Drop Down","Select from Drop Down",null,null,null,null,null,null,null,null,null,null,null,null,"Select from Drop Down","Select from Drop Down","Select from Drop Down"]
[1190,null,null,"Select from Drop Down","Select from Drop Down","Select from Drop Down",null,null,null,null,null,null,null,null,null,null,null,null,"Select from Drop Down","Select from Drop Down","Select from Drop Down"]
[1191,null,null,"Select from Drop Down","Select from Drop Down","Select from Drop Down",null,null,null,null,null,null,null,null,null,null,null,null,"Select from Drop Down","Select from Drop Down","Select from Drop Down"]
[1192,null,null,"Select from Drop Down","Select from Drop Down","Select from Drop Down",null,null,null,null,null,null,null,null,null,null,null,null,"Select from Drop Down","Select from Drop Down","Select from Drop Down"]
[1193,null,null,"Select from Drop Down","Select from Drop Down","Select from Drop Down",null,null,null,null,null,null,null,null,null,null,null,null,"Select from Drop Down","Select from Drop Down","Select from Drop Down"]
[1194,null,null,"Select from Drop Down","Select from Drop Down","Select from Drop Down",null,null,null,null,null,null,null,null,null,null,null,null,"Select from Drop Down","Select from Drop Down","Select from Drop Down"]
[1195,null,null,"Select from Drop Down","Select from Drop Down","Select from Drop Down",null,null,null,null,null,null,null,null,null,null,null,null,"Select from Drop Down","Select from Drop Down","Select from Drop Down"]
[1196,null,null,"Select from Drop Down","Select from Drop Down","Select from Drop Down",null,null,null,null,null,null,null,null,null,null,null,null,"Select from Drop Down","Select from Drop Down","Select from Drop Down"]
[1197,null,null,"Select from Drop Down","Select from Drop Down","Select from Drop Down",null,null,null,null,null,null,null,null,null,null,null,null,"Select from Drop Down","Select from Drop Down","Select from Drop Down"]
[1198,null,null,"Select from Drop Down","Select from Drop Down","Select from Drop Down",null,null,null,null,null,null,null,null,null,null,null,null,"Select from Drop Down","Select from Drop Down","Select from Drop Down"]
[1199,null,null,"Select from Drop Down","Select from Drop Down","Select from Drop Down",null,null,null,null,null,null,null,null,null,null,null,null,"Select from Drop Down","Select from Drop Down","Select from Drop Down"]
[1200,null,null,"Select from Drop Down","Select from Drop Down","Select from Drop Down",null,null,null,null,null,null,null,null,null,null,null,null,"Select from Drop Down","Select from Drop Down","Select from Drop Down"]
[1201,null,null,"Select from Drop Down","Select from Drop Down","Select from Drop Down",null,null,null,null,null,null,null,null,null,null,null,null,"Select from Drop Down","Select from Drop Down","Select from Drop Down"]
[1202,null,null,"Select from Drop Down","Select from Drop Down","Select from Drop Down",null,null,null,null,null,null,null,null,null,null,null,null,"Select from Drop Down","Select from Drop Down","Select from Drop Down"]
[1203,null,null,"Select from Drop Down","Select from Drop Down","Select from Drop Down",null,null,null,null,null,null,null,null,null,null,null,null,"Select from Drop Down","Select from Drop Down","Select from Drop Down"]
[1204,null,null,"Select from Drop Down","Select from Drop Down","Select from Drop Down",null,null,null,null,null,null,null,null,null,null,null,null,"Select from Drop Down","Select from Drop Down","Select from Drop Down"]
[1205,null,null,"Select from Drop Down","Select from Drop Down","Select from Drop Down",null,null,null,null,null,null,null,null,null,null,null,null,"Select from Drop Down","Select from Drop Down","Select from Drop Down"]
[1206,null,null,"Select from Drop Down","Select from Drop Down","Select from Drop Down",null,null,null,null,null,null,null,null,null,null,null,null,"Select from Drop Down","Select from Drop Down","Select from Drop Down"]
[1207,null,null,"Select from Drop Down","Select from Drop Down","Select from Drop Down",null,null,null,null,null,null,null,null,null,null,null,null,"Select from Drop Down","Select from Drop Down","Select from Drop Down"]
[1208,null,null,"Select from Drop Down","Select from Drop Down","Select from Drop Down",null,null,null,null,null,null,null,null,null,null,null,null,"Select from Drop Down","Select from Drop Down","Select from Drop Down"]
[1209,null,null,"Select from Drop Down","Select from Drop Down","Select from Drop Down",null,null,null,null,null,null,null,null,null,null,null,null,"Select from Drop Down","Select from Drop Down","Select from Drop Down"]
[1210,null,null,"Select from Drop Down","Select from Drop Down","Select from Drop Down",null,null,null,null,null,null,null,null,null,null,null,null,"Select from Drop Down","Select from Drop Down","Select from Drop Down"]
[1211,null,null,"Select from Drop Down","Select from Drop Down","Select from Drop Down",null,null,null,null,null,null,null,null,null,null,null,null,"Select from Drop Down","Select from Drop Down","Select from Drop Down"]
[1212,null,null,"Select from Drop Down","Select from Drop Down","Select from Drop Down",null,null,null,null,null,null,null,null,null,null,null,null,"Select from Drop Down","Select from Drop Down","Select from Drop Down"]
[1213,null,null,"Select from Drop Down","Select from Drop Down","Select from Drop Down",null,null,null,null,null,null,null,null,null,null,null,null,"Select from Drop Down","Select from Drop Down","Select from Drop Down"]
[1214,null,null,"Select from Drop Down","Select from Drop Down","Select from Drop Down",null,null,null,null,null,null,null,null,null,null,null,null,"Select from Drop Down","Select from Drop Down","Select from Drop Down"]
[1215,null,null,"Select from Drop Down","Select from Drop Down","Select from Drop Down",null,null,null,null,null,null,null,null,null,null,null,null,"Select from Drop Down","Select from Drop Down","Select from Drop Down"]
[1216,null,null,"Select from Drop Down","Select from Drop Down","Select from Drop Down",null,null,null,null,null,null,null,null,null,null,null,null,"Select from Drop Down","Select from Drop Down","Select from Drop Down"]
[1217,null,null,"Select from Drop Down","Select from Drop Down","Select from Drop Down",null,null,null,null,null,null,null,null,null,null,null,null,"Select from Drop Down","Select from Drop Down","Select from Drop Down"]
[1218,null,null,"Select from Drop Down","Select from Drop Down","Select from Drop Down",null,null,null,null,null,null,null,null,null,null,null,null,"Select from Drop Down","Select from Drop Down","Select from Drop Down"]
[{"$f":"A1228+1","v":1219},null,null,"Select from Drop Down","Select from Drop Down","Select from Drop Down",null,null,null,null,null,null,null,null,null,null,null,null,"Select from Drop Down","Select from Drop Down","Select from Drop Down"]
[1220,null,null,"Select from Drop Down","Select from Drop Down","Select from Drop Down",null,null,null,null,null,null,null,null,null,null,null,null,"Select from Drop Down","Select from Drop Down","Select from Drop Down"]
[1221,null,null,"Select from Drop Down","Select from Drop Down","Select from Drop Down",null,null,null,null,null,null,null,null,null,null,null,null,"Select from Drop Down","Select from Drop Down","Select from Drop Down"]
[1222,null,null,"Select from Drop Down","Select from Drop Down","Select from Drop Down",null,null,null,null,null,null,null,null,null,null,null,null,"Select from Drop Down","Select from Drop Down","Select from Drop Down"]
[1223,null,null,"Select from Drop Down","Select from Drop Down","Select from Drop Down",null,null,null,null,null,null,null,null,null,null,null,null,"Select from Drop Down","Select from Drop Down","Select from Drop Down"]
[1224,null,null,"Select from Drop Down","Select from Drop Down","Select from Drop Down",null,null,null,null,null,null,null,null,null,null,null,null,"Select from Drop Down","Select from Drop Down","Select from Drop Down"]
[1225,null,null,"Select from Drop Down","Select from Drop Down","Select from Drop Down",null,null,null,null,null,null,null,null,null,null,null,null,"Select from Drop Down","Select from Drop Down","Select from Drop Down"]
[1226,null,null,"Select from Drop Down","Select from Drop Down","Select from Drop Down",null,null,null,null,null,null,null,null,null,null,null,null,"Select from Drop Down","Select from Drop Down","Select from Drop Down"]
[1227,null,null,"Select from Drop Down","Select from Drop Down","Select from Drop Down",null,null,null,null,null,null,null,null,null,null,null,null,"Select from Drop Down","Select from Drop Down","Select from Drop Down"]
[1228,null,null,"Select from Drop Down","Select from Drop Down","Select from Drop Down",null,null,null,null,null,null,null,null,null,null,null,null,"Select from Drop Down","Select from Drop Down","Select from Drop Down"]
[1229,null,null,"Select from Drop Down","Select from Drop Down","Select from Drop Down",null,null,null,null,null,null,null,null,null,null,null,null,"Select from Drop Down","Select from Drop Down","Select from Drop Down"]
[1230,null,null,"Select from Drop Down","Select from Drop Down","Select from Drop Down",null,null,null,null,null,null,null,null,null,null,null,null,"Select from Drop Down","Select from Drop Down","Select from Drop Down"]
[1231,null,null,"Select from Drop Down","Select from Drop Down","Select from Drop Down",null,null,null,null,null,null,null,null,null,null,null,null,"Select from Drop Down","Select from Drop Down","Select from Drop Down"]
[1232,null,null,"Select from Drop Down","Select from Drop Down","Select from Drop Down",null,null,null,null,null,null,null,null,null,null,null,null,"Select from Drop Down","Select from Drop Down","Select from Drop Down"]
[1233,null,null,"Select from Drop Down","Select from Drop Down","Select from Drop Down",null,null,null,null,null,null,null,null,null,null,null,null,"Select from Drop Down","Select from Drop Down","Select from Drop Down"]
[1234,null,null,"Select from Drop Down","Select from Drop Down","Select from Drop Down",null,null,null,null,null,null,null,null,null,null,null,null,"Select from Drop Down","Select from Drop Down","Select from Drop Down"]
[1235,null,null,"Select from Drop Down","Select from Drop Down","Select from Drop Down",null,null,null,null,null,null,null,null,null,null,null,null,"Select from Drop Down","Select from Drop Down","Select from Drop Down"]
[1236,null,null,"Select from Drop Down","Select from Drop Down","Select from Drop Down",null,null,null,null,null,null,null,null,null,null,null,null,"Select from Drop Down","Select from Drop Down","Select from Drop Down"]
[1237,null,null,"Select from Drop Down","Select from Drop Down","Select from Drop Down",null,null,null,null,null,null,null,null,null,null,null,null,"Select from Drop Down","Select from Drop Down","Select from Drop Down"]
[1238,null,null,"Select from Drop Down","Select from Drop Down","Select from Drop Down",null,null,null,null,null,null,null,null,null,null,null,null,"Select from Drop Down","Select from Drop Down","Select from Drop Down"]
[1239,null,null,"Select from Drop Down","Select from Drop Down","Select from Drop Down",null,null,null,null,null,null,null,null,null,null,null,null,"Select from Drop Down","Select from Drop Down","Select from Drop Down"]
[1240,null,null,"Select from Drop Down","Select from Drop Down","Select from Drop Down",null,null,null,null,null,null,null,null,null,null,null,null,"Select from Drop Down","Select from Drop Down","Select from Drop Down"]
[1241,null,null,"Select from Drop Down","Select from Drop Down","Select from Drop Down",null,null,null,null,null,null,null,null,null,null,null,null,"Select from Drop Down","Select from Drop Down","Select from Drop Down"]
[1242,null,null,"Select from Drop Down","Select from Drop Down","Select from Drop Down",null,null,null,null,null,null,null,null,null,null,null,null,"Select from Drop Down","Select from Drop Down","Select from Drop Down"]
[1243,null,null,"Select from Drop Down","Select from Drop Down","Select from Drop Down",null,null,null,null,null,null,null,null,null,null,null,null,"Select from Drop Down","Select from Drop Down","Select from Drop Down"]
[1244,null,null,"Select from Drop Down","Select from Drop Down","Select from Drop Down",null,null,null,null,null,null,null,null,null,null,null,null,"Select from Drop Down","Select from Drop Down","Select from Drop Down"]
[1245,null,null,"Select from Drop Down","Select from Drop Down","Select from Drop Down",null,null,null,null,null,null,null,null,null,null,null,null,"Select from Drop Down","Select from Drop Down","Select from Drop Down"]
[1246,null,null,"Select from Drop Down","Select from Drop Down","Select from Drop Down",null,null,null,null,null,null,null,null,null,null,null,null,"Select from Drop Down","Select from Drop Down","Select from Drop Down"]
[1247,null,null,"Select from Drop Down","Select from Drop Down","Select from Drop Down",null,null,null,null,null,null,null,null,null,null,null,null,"Select from Drop Down","Select from Drop Down","Select from Drop Down"]
[1248,null,null,"Select from Drop Down","Select from Drop Down","Select from Drop Down",null,null,null,null,null,null,null,null,null,null,null,null,"Select from Drop Down","Select from Drop Down","Select from Drop Down"]
[1249,null,null,"Select from Drop Down","Select from Drop Down","Select from Drop Down",null,null,null,null,null,null,null,null,null,null,null,null,"Select from Drop Down","Select from Drop Down","Select from Drop Down"]
[1250,null,null,"Select from Drop Down","Select from Drop Down","Select from Drop Down",null,null,null,null,null,null,null,null,null,null,null,null,"Select from Drop Down","Select from Drop Down","Select from Drop Down"]
[1251,null,null,"Select from Drop Down","Select from Drop Down","Select from Drop Down",null,null,null,null,null,null,null,null,null,null,null,null,"Select from Drop Down","Select from Drop Down","Select from Drop Down"]
[1252,null,null,"Select from Drop Down","Select from Drop Down","Select from Drop Down",null,null,null,null,null,null,null,null,null,null,null,null,"Select from Drop Down","Select from Drop Down","Select from Drop Down"]
[1253,null,null,"Select from Drop Down","Select from Drop Down","Select from Drop Down",null,null,null,null,null,null,null,null,null,null,null,null,"Select from Drop Down","Select from Drop Down","Select from Drop Down"]
[1254,null,null,"Select from Drop Down","Select from Drop Down","Select from Drop Down",null,null,null,null,null,null,null,null,null,null,null,null,"Select from Drop Down","Select from Drop Down","Select from Drop Down"]
[1255,null,null,"Select from Drop Down","Select from Drop Down","Select from Drop Down",null,null,null,null,null,null,null,null,null,null,null,null,"Select from Drop Down","Select from Drop Down","Select from Drop Down"]
[1256,null,null,"Select from Drop Down","Select from Drop Down","Select from Drop Down",null,null,null,null,null,null,null,null,null,null,null,null,"Select from Drop Down","Select from Drop Down","Select from Drop Down"]
[1257,null,null,"Select from Drop Down","Select from Drop Down","Select from Drop Down",null,null,null,null,null,null,null,null,null,null,null,null,"Select from Drop Down","Select from Drop Down","Select from Drop Down"]
[1258,null,null,"Select from Drop Down","Select from Drop Down","Select from Drop Down",null,null,null,null,null,null,null,null,null,null,null,null,"Select from Drop Down","Select from Drop Down","Select from Drop Down"]
[1259,null,null,"Select from Drop Down","Select from Drop Down","Select from Drop Down",null,null,null,null,null,null,null,null,null,null,null,null,"Select from Drop Down","Select from Drop Down","Select from Drop Down"]
[1260,null,null,"Select from Drop Down","Select from Drop Down","Select from Drop Down",null,null,null,null,null,null,null,null,null,null,null,null,"Select from Drop Down","Select from Drop Down","Select from Drop Down"]
[1261,null,null,"Select from Drop Down","Select from Drop Down","Select from Drop Down",null,null,null,null,null,null,null,null,null,null,null,null,"Select from Drop Down","Select from Drop Down","Select from Drop Down"]
[1262,null,null,"Select from Drop Down","Select from Drop Down","Select from Drop Down",null,null,null,null,null,null,null,null,null,null,null,null,"Select from Drop Down","Select from Drop Down","Select from Drop Down"]
[1263,null,null,"Select from Drop Down","Select from Drop Down","Select from Drop Down",null,null,null,null,null,null,null,null,null,null,null,null,"Select from Drop Down","Select from Drop Down","Select from Drop Down"]
[1264,null,null,"Select from Drop Down","Select from Drop Down","Select from Drop Down",null,null,null,null,null,null,null,null,null,null,null,null,"Select from Drop Down","Select from Drop Down","Select from Drop Down"]
[1265,null,null,"Select from Drop Down","Select from Drop Down","Select from Drop Down",null,null,null,null,null,null,null,null,null,null,null,null,"Select from Drop Down","Select from Drop Down","Select from Drop Down"]
[1266,null,null,"Select from Drop Down","Select from Drop Down","Select from Drop Down",null,null,null,null,null,null,null,null,null,null,null,null,"Select from Drop Down","Select from Drop Down","Select from Drop Down"]
[1267,null,null,"Select from Drop Down","Select from Drop Down","Select from Drop Down",null,null,null,null,null,null,null,null,null,null,null,null,"Select from Drop Down","Select from Drop Down","Select from Drop Down"]
[1268,null,null,"Select from Drop Down","Select from Drop Down","Select from Drop Down",null,null,null,null,null,null,null,null,null,null,null,null,"Select from Drop Down","Select from Drop Down","Select from Drop Down"]
[1269,null,null,"Select from Drop Down","Select from Drop Down","Select from Drop Down",null,null,null,null,null,null,null,null,null,null,null,null,"Select from Drop Down","Select from Drop Down","Select from Drop Down"]
[1270,null,null,"Select from Drop Down","Select from Drop Down","Select from Drop Down",null,null,null,null,null,null,null,null,null,null,null,null,"Select from Drop Down","Select from Drop Down","Select from Drop Down"]
[1271,null,null,"Select from Drop Down","Select from Drop Down","Select from Drop Down",null,null,null,null,null,null,null,null,null,null,null,null,"Select from Drop Down","Select from Drop Down","Select from Drop Down"]
[1272,null,null,"Select from Drop Down","Select from Drop Down","Select from Drop Down",null,null,null,null,null,null,null,null,null,null,null,null,"Select from Drop Down","Select from Drop Down","Select from Drop Down"]
[1273,null,null,"Select from Drop Down","Select from Drop Down","Select from Drop Down",null,null,null,null,null,null,null,null,null,null,null,null,"Select from Drop Down","Select from Drop Down","Select from Drop Down"]
[1274,null,null,"Select from Drop Down","Select from Drop Down","Select from Drop Down",null,null,null,null,null,null,null,null,null,null,null,null,"Select from Drop Down","Select from Drop Down","Select from Drop Down"]
[1275,null,null,"Select from Drop Down","Select from Drop Down","Select from Drop Down",null,null,null,null,null,null,null,null,null,null,null,null,"Select from Drop Down","Select from Drop Down","Select from Drop Down"]
[1276,null,null,"Select from Drop Down","Select from Drop Down","Select from Drop Down",null,null,null,null,null,null,null,null,null,null,null,null,"Select from Drop Down","Select from Drop Down","Select from Drop Down"]
[1277,null,null,"Select from Drop Down","Select from Drop Down","Select from Drop Down",null,null,null,null,null,null,null,null,null,null,null,null,"Select from Drop Down","Select from Drop Down","Select from Drop Down"]
[1278,null,null,"Select from Drop Down","Select from Drop Down","Select from Drop Down",null,null,null,null,null,null,null,null,null,null,null,null,"Select from Drop Down","Select from Drop Down","Select from Drop Down"]
[1279,null,null,"Select from Drop Down","Select from Drop Down","Select from Drop Down",null,null,null,null,null,null,null,null,null,null,null,null,"Select from Drop Down","Select from Drop Down","Select from Drop Down"]
[1280,null,null,"Select from Drop Down","Select from Drop Down","Select from Drop Down",null,null,null,null,null,null,null,null,null,null,null,null,"Select from Drop Down","Select from Drop Down","Select from Drop Down"]
[1281,null,null,"Select from Drop Down","Select from Drop Down","Select from Drop Down",null,null,null,null,null,null,null,null,null,null,null,null,"Select from Drop Down","Select from Drop Down","Select from Drop Down"]
[1282,null,null,"Select from Drop Down","Select from Drop Down","Select from Drop Down",null,null,null,null,null,null,null,null,null,null,null,null,"Select from Drop Down","Select from Drop Down","Select from Drop Down"]
[{"$f":"A1292+1","v":1283},null,null,"Select from Drop Down","Select from Drop Down","Select from Drop Down",null,null,null,null,null,null,null,null,null,null,null,null,"Select from Drop Down","Select from Drop Down","Select from Drop Down"]
[1284,null,null,"Select from Drop Down","Select from Drop Down","Select from Drop Down",null,null,null,null,null,null,null,null,null,null,null,null,"Select from Drop Down","Select from Drop Down","Select from Drop Down"]
[1285,null,null,"Select from Drop Down","Select from Drop Down","Select from Drop Down",null,null,null,null,null,null,null,null,null,null,null,null,"Select from Drop Down","Select from Drop Down","Select from Drop Down"]
[1286,null,null,"Select from Drop Down","Select from Drop Down","Select from Drop Down",null,null,null,null,null,null,null,null,null,null,null,null,"Select from Drop Down","Select from Drop Down","Select from Drop Down"]
[1287,null,null,"Select from Drop Down","Select from Drop Down","Select from Drop Down",null,null,null,null,null,null,null,null,null,null,null,null,"Select from Drop Down","Select from Drop Down","Select from Drop Down"]
[1288,null,null,"Select from Drop Down","Select from Drop Down","Select from Drop Down",null,null,null,null,null,null,null,null,null,null,null,null,"Select from Drop Down","Select from Drop Down","Select from Drop Down"]
[1289,null,null,"Select from Drop Down","Select from Drop Down","Select from Drop Down",null,null,null,null,null,null,null,null,null,null,null,null,"Select from Drop Down","Select from Drop Down","Select from Drop Down"]
[1290,null,null,"Select from Drop Down","Select from Drop Down","Select from Drop Down",null,null,null,null,null,null,null,null,null,null,null,null,"Select from Drop Down","Select from Drop Down","Select from Drop Down"]
[1291,null,null,"Select from Drop Down","Select from Drop Down","Select from Drop Down",null,null,null,null,null,null,null,null,null,null,null,null,"Select from Drop Down","Select from Drop Down","Select from Drop Down"]
[1292,null,null,"Select from Drop Down","Select from Drop Down","Select from Drop Down",null,null,null,null,null,null,null,null,null,null,null,null,"Select from Drop Down","Select from Drop Down","Select from Drop Down"]
[1293,null,null,"Select from Drop Down","Select from Drop Down","Select from Drop Down",null,null,null,null,null,null,null,null,null,null,null,null,"Select from Drop Down","Select from Drop Down","Select from Drop Down"]
[1294,null,null,"Select from Drop Down","Select from Drop Down","Select from Drop Down",null,null,null,null,null,null,null,null,null,null,null,null,"Select from Drop Down","Select from Drop Down","Select from Drop Down"]
[1295,null,null,"Select from Drop Down","Select from Drop Down","Select from Drop Down",null,null,null,null,null,null,null,null,null,null,null,null,"Select from Drop Down","Select from Drop Down","Select from Drop Down"]
[1296,null,null,"Select from Drop Down","Select from Drop Down","Select from Drop Down",null,null,null,null,null,null,null,null,null,null,null,null,"Select from Drop Down","Select from Drop Down","Select from Drop Down"]
[1297,null,null,"Select from Drop Down","Select from Drop Down","Select from Drop Down",null,null,null,null,null,null,null,null,null,null,null,null,"Select from Drop Down","Select from Drop Down","Select from Drop Down"]
[1298,null,null,"Select from Drop Down","Select from Drop Down","Select from Drop Down",null,null,null,null,null,null,null,null,null,null,null,null,"Select from Drop Down","Select from Drop Down","Select from Drop Down"]
[1299,null,null,"Select from Drop Down","Select from Drop Down","Select from Drop Down",null,null,null,null,null,null,null,null,null,null,null,null,"Select from Drop Down","Select from Drop Down","Select from Drop Down"]
[1300,null,null,"Select from Drop Down","Select from Drop Down","Select from Drop Down",null,null,null,null,null,null,null,null,null,null,null,null,"Select from Drop Down","Select from Drop Down","Select from Drop Down"]
[1301,null,null,"Select from Drop Down","Select from Drop Down","Select from Drop Down",null,null,null,null,null,null,null,null,null,null,null,null,"Select from Drop Down","Select from Drop Down","Select from Drop Down"]
[1302,null,null,"Select from Drop Down","Select from Drop Down","Select from Drop Down",null,null,null,null,null,null,null,null,null,null,null,null,"Select from Drop Down","Select from Drop Down","Select from Drop Down"]
[1303,null,null,"Select from Drop Down","Select from Drop Down","Select from Drop Down",null,null,null,null,null,null,null,null,null,null,null,null,"Select from Drop Down","Select from Drop Down","Select from Drop Down"]
[1304,null,null,"Select from Drop Down","Select from Drop Down","Select from Drop Down",null,null,null,null,null,null,null,null,null,null,null,null,"Select from Drop Down","Select from Drop Down","Select from Drop Down"]
[1305,null,null,"Select from Drop Down","Select from Drop Down","Select from Drop Down",null,null,null,null,null,null,null,null,null,null,null,null,"Select from Drop Down","Select from Drop Down","Select from Drop Down"]
[1306,null,null,"Select from Drop Down","Select from Drop Down","Select from Drop Down",null,null,null,null,null,null,null,null,null,null,null,null,"Select from Drop Down","Select from Drop Down","Select from Drop Down"]
[1307,null,null,"Select from Drop Down","Select from Drop Down","Select from Drop Down",null,null,null,null,null,null,null,null,null,null,null,null,"Select from Drop Down","Select from Drop Down","Select from Drop Down"]
[1308,null,null,"Select from Drop Down","Select from Drop Down","Select from Drop Down",null,null,null,null,null,null,null,null,null,null,null,null,"Select from Drop Down","Select from Drop Down","Select from Drop Down"]
[1309,null,null,"Select from Drop Down","Select from Drop Down","Select from Drop Down",null,null,null,null,null,null,null,null,null,null,null,null,"Select from Drop Down","Select from Drop Down","Select from Drop Down"]
[1310,null,null,"Select from Drop Down","Select from Drop Down","Select from Drop Down",null,null,null,null,null,null,null,null,null,null,null,null,"Select from Drop Down","Select from Drop Down","Select from Drop Down"]
[1311,null,null,"Select from Drop Down","Select from Drop Down","Select from Drop Down",null,null,null,null,null,null,null,null,null,null,null,null,"Select from Drop Down","Select from Drop Down","Select from Drop Down"]
[1312,null,null,"Select from Drop Down","Select from Drop Down","Select from Drop Down",null,null,null,null,null,null,null,null,null,null,null,null,"Select from Drop Down","Select from Drop Down","Select from Drop Down"]
[1313,null,null,"Select from Drop Down","Select from Drop Down","Select from Drop Down",null,null,null,null,null,null,null,null,null,null,null,null,"Select from Drop Down","Select from Drop Down","Select from Drop Down"]
[1314,null,null,"Select from Drop Down","Select from Drop Down","Select from Drop Down",null,null,null,null,null,null,null,null,null,null,null,null,"Select from Drop Down","Select from Drop Down","Select from Drop Down"]
[1315,null,null,"Select from Drop Down","Select from Drop Down","Select from Drop Down",null,null,null,null,null,null,null,null,null,null,null,null,"Select from Drop Down","Select from Drop Down","Select from Drop Down"]
[1316,null,null,"Select from Drop Down","Select from Drop Down","Select from Drop Down",null,null,null,null,null,null,null,null,null,null,null,null,"Select from Drop Down","Select from Drop Down","Select from Drop Down"]
[1317,null,null,"Select from Drop Down","Select from Drop Down","Select from Drop Down",null,null,null,null,null,null,null,null,null,null,null,null,"Select from Drop Down","Select from Drop Down","Select from Drop Down"]
[1318,null,null,"Select from Drop Down","Select from Drop Down","Select from Drop Down",null,null,null,null,null,null,null,null,null,null,null,null,"Select from Drop Down","Select from Drop Down","Select from Drop Down"]
[1319,null,null,"Select from Drop Down","Select from Drop Down","Select from Drop Down",null,null,null,null,null,null,null,null,null,null,null,null,"Select from Drop Down","Select from Drop Down","Select from Drop Down"]
[1320,null,null,"Select from Drop Down","Select from Drop Down","Select from Drop Down",null,null,null,null,null,null,null,null,null,null,null,null,"Select from Drop Down","Select from Drop Down","Select from Drop Down"]
[1321,null,null,"Select from Drop Down","Select from Drop Down","Select from Drop Down",null,null,null,null,null,null,null,null,null,null,null,null,"Select from Drop Down","Select from Drop Down","Select from Drop Down"]
[1322,null,null,"Select from Drop Down","Select from Drop Down","Select from Drop Down",null,null,null,null,null,null,null,null,null,null,null,null,"Select from Drop Down","Select from Drop Down","Select from Drop Down"]
[1323,null,null,"Select from Drop Down","Select from Drop Down","Select from Drop Down",null,null,null,null,null,null,null,null,null,null,null,null,"Select from Drop Down","Select from Drop Down","Select from Drop Down"]
[1324,null,null,"Select from Drop Down","Select from Drop Down","Select from Drop Down",null,null,null,null,null,null,null,null,null,null,null,null,"Select from Drop Down","Select from Drop Down","Select from Drop Down"]
[1325,null,null,"Select from Drop Down","Select from Drop Down","Select from Drop Down",null,null,null,null,null,null,null,null,null,null,null,null,"Select from Drop Down","Select from Drop Down","Select from Drop Down"]
[1326,null,null,"Select from Drop Down","Select from Drop Down","Select from Drop Down",null,null,null,null,null,null,null,null,null,null,null,null,"Select from Drop Down","Select from Drop Down","Select from Drop Down"]
[1327,null,null,"Select from Drop Down","Select from Drop Down","Select from Drop Down",null,null,null,null,null,null,null,null,null,null,null,null,"Select from Drop Down","Select from Drop Down","Select from Drop Down"]
[1328,null,null,"Select from Drop Down","Select from Drop Down","Select from Drop Down",null,null,null,null,null,null,null,null,null,null,null,null,"Select from Drop Down","Select from Drop Down","Select from Drop Down"]
[1329,null,null,"Select from Drop Down","Select from Drop Down","Select from Drop Down",null,null,null,null,null,null,null,null,null,null,null,null,"Select from Drop Down","Select from Drop Down","Select from Drop Down"]
[1330,null,null,"Select from Drop Down","Select from Drop Down","Select from Drop Down",null,null,null,null,null,null,null,null,null,null,null,null,"Select from Drop Down","Select from Drop Down","Select from Drop Down"]
[1331,null,null,"Select from Drop Down","Select from Drop Down","Select from Drop Down",null,null,null,null,null,null,null,null,null,null,null,null,"Select from Drop Down","Select from Drop Down","Select from Drop Down"]
[1332,null,null,"Select from Drop Down","Select from Drop Down","Select from Drop Down",null,null,null,null,null,null,null,null,null,null,null,null,"Select from Drop Down","Select from Drop Down","Select from Drop Down"]
[1333,null,null,"Select from Drop Down","Select from Drop Down","Select from Drop Down",null,null,null,null,null,null,null,null,null,null,null,null,"Select from Drop Down","Select from Drop Down","Select from Drop Down"]
[1334,null,null,"Select from Drop Down","Select from Drop Down","Select from Drop Down",null,null,null,null,null,null,null,null,null,null,null,null,"Select from Drop Down","Select from Drop Down","Select from Drop Down"]
[1335,null,null,"Select from Drop Down","Select from Drop Down","Select from Drop Down",null,null,null,null,null,null,null,null,null,null,null,null,"Select from Drop Down","Select from Drop Down","Select from Drop Down"]
[1336,null,null,"Select from Drop Down","Select from Drop Down","Select from Drop Down",null,null,null,null,null,null,null,null,null,null,null,null,"Select from Drop Down","Select from Drop Down","Select from Drop Down"]
[1337,null,null,"Select from Drop Down","Select from Drop Down","Select from Drop Down",null,null,null,null,null,null,null,null,null,null,null,null,"Select from Drop Down","Select from Drop Down","Select from Drop Down"]
[1338,null,null,"Select from Drop Down","Select from Drop Down","Select from Drop Down",null,null,null,null,null,null,null,null,null,null,null,null,"Select from Drop Down","Select from Drop Down","Select from Drop Down"]
[1339,null,null,"Select from Drop Down","Select from Drop Down","Select from Drop Down",null,null,null,null,null,null,null,null,null,null,null,null,"Select from Drop Down","Select from Drop Down","Select from Drop Down"]
[1340,null,null,"Select from Drop Down","Select from Drop Down","Select from Drop Down",null,null,null,null,null,null,null,null,null,null,null,null,"Select from Drop Down","Select from Drop Down","Select from Drop Down"]
[1341,null,null,"Select from Drop Down","Select from Drop Down","Select from Drop Down",null,null,null,null,null,null,null,null,null,null,null,null,"Select from Drop Down","Select from Drop Down","Select from Drop Down"]
[1342,null,null,"Select from Drop Down","Select from Drop Down","Select from Drop Down",null,null,null,null,null,null,null,null,null,null,null,null,"Select from Drop Down","Select from Drop Down","Select from Drop Down"]
[1343,null,null,"Select from Drop Down","Select from Drop Down","Select from Drop Down",null,null,null,null,null,null,null,null,null,null,null,null,"Select from Drop Down","Select from Drop Down","Select from Drop Down"]
[1344,null,null,"Select from Drop Down","Select from Drop Down","Select from Drop Down",null,null,null,null,null,null,null,null,null,null,null,null,"Select from Drop Down","Select from Drop Down","Select from Drop Down"]
[1345,null,null,"Select from Drop Down","Select from Drop Down","Select from Drop Down",null,null,null,null,null,null,null,null,null,null,null,null,"Select from Drop Down","Select from Drop Down","Select from Drop Down"]
[1346,null,null,"Select from Drop Down","Select from Drop Down","Select from Drop Down",null,null,null,null,null,null,null,null,null,null,null,null,"Select from Drop Down","Select from Drop Down","Select from Drop Down"]
[{"$f":"A1356+1","v":1347},null,null,"Select from Drop Down","Select from Drop Down","Select from Drop Down",null,null,null,null,null,null,null,null,null,null,null,null,"Select from Drop Down","Select from Drop Down","Select from Drop Down"]
[1348,null,null,"Select from Drop Down","Select from Drop Down","Select from Drop Down",null,null,null,null,null,null,null,null,null,null,null,null,"Select from Drop Down","Select from Drop Down","Select from Drop Down"]
[1349,null,null,"Select from Drop Down","Select from Drop Down","Select from Drop Down",null,null,null,null,null,null,null,null,null,null,null,null,"Select from Drop Down","Select from Drop Down","Select from Drop Down"]
[1350,null,null,"Select from Drop Down","Select from Drop Down","Select from Drop Down",null,null,null,null,null,null,null,null,null,null,null,null,"Select from Drop Down","Select from Drop Down","Select from Drop Down"]
[1351,null,null,"Select from Drop Down","Select from Drop Down","Select from Drop Down",null,null,null,null,null,null,null,null,null,null,null,null,"Select from Drop Down","Select from Drop Down","Select from Drop Down"]
[1352,null,null,"Select from Drop Down","Select from Drop Down","Select from Drop Down",null,null,null,null,null,null,null,null,null,null,null,null,"Select from Drop Down","Select from Drop Down","Select from Drop Down"]
[1353,null,null,"Select from Drop Down","Select from Drop Down","Select from Drop Down",null,null,null,null,null,null,null,null,null,null,null,null,"Select from Drop Down","Select from Drop Down","Select from Drop Down"]
[1354,null,null,"Select from Drop Down","Select from Drop Down","Select from Drop Down",null,null,null,null,null,null,null,null,null,null,null,null,"Select from Drop Down","Select from Drop Down","Select from Drop Down"]
[1355,null,null,"Select from Drop Down","Select from Drop Down","Select from Drop Down",null,null,null,null,null,null,null,null,null,null,null,null,"Select from Drop Down","Select from Drop Down","Select from Drop Down"]
[1356,null,null,"Select from Drop Down","Select from Drop Down","Select from Drop Down",null,null,null,null,null,null,null,null,null,null,null,null,"Select from Drop Down","Select from Drop Down","Select from Drop Down"]
[1357,null,null,"Select from Drop Down","Select from Drop Down","Select from Drop Down",null,null,null,null,null,null,null,null,null,null,null,null,"Select from Drop Down","Select from Drop Down","Select from Drop Down"]
[1358,null,null,"Select from Drop Down","Select from Drop Down","Select from Drop Down",null,null,null,null,null,null,null,null,null,null,null,null,"Select from Drop Down","Select from Drop Down","Select from Drop Down"]
[1359,null,null,"Select from Drop Down","Select from Drop Down","Select from Drop Down",null,null,null,null,null,null,null,null,null,null,null,null,"Select from Drop Down","Select from Drop Down","Select from Drop Down"]
[1360,null,null,"Select from Drop Down","Select from Drop Down","Select from Drop Down",null,null,null,null,null,null,null,null,null,null,null,null,"Select from Drop Down","Select from Drop Down","Select from Drop Down"]
[1361,null,null,"Select from Drop Down","Select from Drop Down","Select from Drop Down",null,null,null,null,null,null,null,null,null,null,null,null,"Select from Drop Down","Select from Drop Down","Select from Drop Down"]
[1362,null,null,"Select from Drop Down","Select from Drop Down","Select from Drop Down",null,null,null,null,null,null,null,null,null,null,null,null,"Select from Drop Down","Select from Drop Down","Select from Drop Down"]
[1363,null,null,"Select from Drop Down","Select from Drop Down","Select from Drop Down",null,null,null,null,null,null,null,null,null,null,null,null,"Select from Drop Down","Select from Drop Down","Select from Drop Down"]
[1364,null,null,"Select from Drop Down","Select from Drop Down","Select from Drop Down",null,null,null,null,null,null,null,null,null,null,null,null,"Select from Drop Down","Select from Drop Down","Select from Drop Down"]
[1365,null,null,"Select from Drop Down","Select from Drop Down","Select from Drop Down",null,null,null,null,null,null,null,null,null,null,null,null,"Select from Drop Down","Select from Drop Down","Select from Drop Down"]
[1366,null,null,"Select from Drop Down","Select from Drop Down","Select from Drop Down",null,null,null,null,null,null,null,null,null,null,null,null,"Select from Drop Down","Select from Drop Down","Select from Drop Down"]
[1367,null,null,"Select from Drop Down","Select from Drop Down","Select from Drop Down",null,null,null,null,null,null,null,null,null,null,null,null,"Select from Drop Down","Select from Drop Down","Select from Drop Down"]
[1368,null,null,"Select from Drop Down","Select from Drop Down","Select from Drop Down",null,null,null,null,null,null,null,null,null,null,null,null,"Select from Drop Down","Select from Drop Down","Select from Drop Down"]
[1369,null,null,"Select from Drop Down","Select from Drop Down","Select from Drop Down",null,null,null,null,null,null,null,null,null,null,null,null,"Select from Drop Down","Select from Drop Down","Select from Drop Down"]
[1370,null,null,"Select from Drop Down","Select from Drop Down","Select from Drop Down",null,null,null,null,null,null,null,null,null,null,null,null,"Select from Drop Down","Select from Drop Down","Select from Drop Down"]
[1371,null,null,"Select from Drop Down","Select from Drop Down","Select from Drop Down",null,null,null,null,null,null,null,null,null,null,null,null,"Select from Drop Down","Select from Drop Down","Select from Drop Down"]
[1372,null,null,"Select from Drop Down","Select from Drop Down","Select from Drop Down",null,null,null,null,null,null,null,null,null,null,null,null,"Select from Drop Down","Select from Drop Down","Select from Drop Down"]
[1373,null,null,"Select from Drop Down","Select from Drop Down","Select from Drop Down",null,null,null,null,null,null,null,null,null,null,null,null,"Select from Drop Down","Select from Drop Down","Select from Drop Down"]
[1374,null,null,"Select from Drop Down","Select from Drop Down","Select from Drop Down",null,null,null,null,null,null,null,null,null,null,null,null,"Select from Drop Down","Select from Drop Down","Select from Drop Down"]
[1375,null,null,"Select from Drop Down","Select from Drop Down","Select from Drop Down",null,null,null,null,null,null,null,null,null,null,null,null,"Select from Drop Down","Select from Drop Down","Select from Drop Down"]
[1376,null,null,"Select from Drop Down","Select from Drop Down","Select from Drop Down",null,null,null,null,null,null,null,null,null,null,null,null,"Select from Drop Down","Select from Drop Down","Select from Drop Down"]
[1377,null,null,"Select from Drop Down","Select from Drop Down","Select from Drop Down",null,null,null,null,null,null,null,null,null,null,null,null,"Select from Drop Down","Select from Drop Down","Select from Drop Down"]
[1378,null,null,"Select from Drop Down","Select from Drop Down","Select from Drop Down",null,null,null,null,null,null,null,null,null,null,null,null,"Select from Drop Down","Select from Drop Down","Select from Drop Down"]
[1379,null,null,"Select from Drop Down","Select from Drop Down","Select from Drop Down",null,null,null,null,null,null,null,null,null,null,null,null,"Select from Drop Down","Select from Drop Down","Select from Drop Down"]
[1380,null,null,"Select from Drop Down","Select from Drop Down","Select from Drop Down",null,null,null,null,null,null,null,null,null,null,null,null,"Select from Drop Down","Select from Drop Down","Select from Drop Down"]
[1381,null,null,"Select from Drop Down","Select from Drop Down","Select from Drop Down",null,null,null,null,null,null,null,null,null,null,null,null,"Select from Drop Down","Select from Drop Down","Select from Drop Down"]
[1382,null,null,"Select from Drop Down","Select from Drop Down","Select from Drop Down",null,null,null,null,null,null,null,null,null,null,null,null,"Select from Drop Down","Select from Drop Down","Select from Drop Down"]
[1383,null,null,"Select from Drop Down","Select from Drop Down","Select from Drop Down",null,null,null,null,null,null,null,null,null,null,null,null,"Select from Drop Down","Select from Drop Down","Select from Drop Down"]
[1384,null,null,"Select from Drop Down","Select from Drop Down","Select from Drop Down",null,null,null,null,null,null,null,null,null,null,null,null,"Select from Drop Down","Select from Drop Down","Select from Drop Down"]
[1385,null,null,"Select from Drop Down","Select from Drop Down","Select from Drop Down",null,null,null,null,null,null,null,null,null,null,null,null,"Select from Drop Down","Select from Drop Down","Select from Drop Down"]
[1386,null,null,"Select from Drop Down","Select from Drop Down","Select from Drop Down",null,null,null,null,null,null,null,null,null,null,null,null,"Select from Drop Down","Select from Drop Down","Select from Drop Down"]
[1387,null,null,"Select from Drop Down","Select from Drop Down","Select from Drop Down",null,null,null,null,null,null,null,null,null,null,null,null,"Select from Drop Down","Select from Drop Down","Select from Drop Down"]
[1388,null,null,"Select from Drop Down","Select from Drop Down","Select from Drop Down",null,null,null,null,null,null,null,null,null,null,null,null,"Select from Drop Down","Select from Drop Down","Select from Drop Down"]
[1389,null,null,"Select from Drop Down","Select from Drop Down","Select from Drop Down",null,null,null,null,null,null,null,null,null,null,null,null,"Select from Drop Down","Select from Drop Down","Select from Drop Down"]
[1390,null,null,"Select from Drop Down","Select from Drop Down","Select from Drop Down",null,null,null,null,null,null,null,null,null,null,null,null,"Select from Drop Down","Select from Drop Down","Select from Drop Down"]
[1391,null,null,"Select from Drop Down","Select from Drop Down","Select from Drop Down",null,null,null,null,null,null,null,null,null,null,null,null,"Select from Drop Down","Select from Drop Down","Select from Drop Down"]
[1392,null,null,"Select from Drop Down","Select from Drop Down","Select from Drop Down",null,null,null,null,null,null,null,null,null,null,null,null,"Select from Drop Down","Select from Drop Down","Select from Drop Down"]
[1393,null,null,"Select from Drop Down","Select from Drop Down","Select from Drop Down",null,null,null,null,null,null,null,null,null,null,null,null,"Select from Drop Down","Select from Drop Down","Select from Drop Down"]
[1394,null,null,"Select from Drop Down","Select from Drop Down","Select from Drop Down",null,null,null,null,null,null,null,null,null,null,null,null,"Select from Drop Down","Select from Drop Down","Select from Drop Down"]
[1395,null,null,"Select from Drop Down","Select from Drop Down","Select from Drop Down",null,null,null,null,null,null,null,null,null,null,null,null,"Select from Drop Down","Select from Drop Down","Select from Drop Down"]
[1396,null,null,"Select from Drop Down","Select from Drop Down","Select from Drop Down",null,null,null,null,null,null,null,null,null,null,null,null,"Select from Drop Down","Select from Drop Down","Select from Drop Down"]
[1397,null,null,"Select from Drop Down","Select from Drop Down","Select from Drop Down",null,null,null,null,null,null,null,null,null,null,null,null,"Select from Drop Down","Select from Drop Down","Select from Drop Down"]
[1398,null,null,"Select from Drop Down","Select from Drop Down","Select from Drop Down",null,null,null,null,null,null,null,null,null,null,null,null,"Select from Drop Down","Select from Drop Down","Select from Drop Down"]
[1399,null,null,"Select from Drop Down","Select from Drop Down","Select from Drop Down",null,null,null,null,null,null,null,null,null,null,null,null,"Select from Drop Down","Select from Drop Down","Select from Drop Down"]
[1400,null,null,"Select from Drop Down","Select from Drop Down","Select from Drop Down",null,null,null,null,null,null,null,null,null,null,null,null,"Select from Drop Down","Select from Drop Down","Select from Drop Down"]
[1401,null,null,"Select from Drop Down","Select from Drop Down","Select from Drop Down",null,null,null,null,null,null,null,null,null,null,null,null,"Select from Drop Down","Select from Drop Down","Select from Drop Down"]
[1402,null,null,"Select from Drop Down","Select from Drop Down","Select from Drop Down",null,null,null,null,null,null,null,null,null,null,null,null,"Select from Drop Down","Select from Drop Down","Select from Drop Down"]
[1403,null,null,"Select from Drop Down","Select from Drop Down","Select from Drop Down",null,null,null,null,null,null,null,null,null,null,null,null,"Select from Drop Down","Select from Drop Down","Select from Drop Down"]
[1404,null,null,"Select from Drop Down","Select from Drop Down","Select from Drop Down",null,null,null,null,null,null,null,null,null,null,null,null,"Select from Drop Down","Select from Drop Down","Select from Drop Down"]
[1405,null,null,"Select from Drop Down","Select from Drop Down","Select from Drop Down",null,null,null,null,null,null,null,null,null,null,null,null,"Select from Drop Down","Select from Drop Down","Select from Drop Down"]
[1406,null,null,"Select from Drop Down","Select from Drop Down","Select from Drop Down",null,null,null,null,null,null,null,null,null,null,null,null,"Select from Drop Down","Select from Drop Down","Select from Drop Down"]
[1407,null,null,"Select from Drop Down","Select from Drop Down","Select from Drop Down",null,null,null,null,null,null,null,null,null,null,null,null,"Select from Drop Down","Select from Drop Down","Select from Drop Down"]
[1408,null,null,"Select from Drop Down","Select from Drop Down","Select from Drop Down",null,null,null,null,null,null,null,null,null,null,null,null,"Select from Drop Down","Select from Drop Down","Select from Drop Down"]
[1409,null,null,"Select from Drop Down","Select from Drop Down","Select from Drop Down",null,null,null,null,null,null,null,null,null,null,null,null,"Select from Drop Down","Select from Drop Down","Select from Drop Down"]
[1410,null,null,"Select from Drop Down","Select from Drop Down","Select from Drop Down",null,null,null,null,null,null,null,null,null,null,null,null,"Select from Drop Down","Select from Drop Down","Select from Drop Down"]
[{"$f":"A1420+1","v":1411},null,null,"Select from Drop Down","Select from Drop Down","Select from Drop Down",null,null,null,null,null,null,null,null,null,null,null,null,"Select from Drop Down","Select from Drop Down","Select from Drop Down"]
[1412,null,null,"Select from Drop Down","Select from Drop Down","Select from Drop Down",null,null,null,null,null,null,null,null,null,null,null,null,"Select from Drop Down","Select from Drop Down","Select from Drop Down"]
[1413,null,null,"Select from Drop Down","Select from Drop Down","Select from Drop Down",null,null,null,null,null,null,null,null,null,null,null,null,"Select from Drop Down","Select from Drop Down","Select from Drop Down"]
[1414,null,null,"Select from Drop Down","Select from Drop Down","Select from Drop Down",null,null,null,null,null,null,null,null,null,null,null,null,"Select from Drop Down","Select from Drop Down","Select from Drop Down"]
[1415,null,null,"Select from Drop Down","Select from Drop Down","Select from Drop Down",null,null,null,null,null,null,null,null,null,null,null,null,"Select from Drop Down","Select from Drop Down","Select from Drop Down"]
[1416,null,null,"Select from Drop Down","Select from Drop Down","Select from Drop Down",null,null,null,null,null,null,null,null,null,null,null,null,"Select from Drop Down","Select from Drop Down","Select from Drop Down"]
[1417,null,null,"Select from Drop Down","Select from Drop Down","Select from Drop Down",null,null,null,null,null,null,null,null,null,null,null,null,"Select from Drop Down","Select from Drop Down","Select from Drop Down"]
[1418,null,null,"Select from Drop Down","Select from Drop Down","Select from Drop Down",null,null,null,null,null,null,null,null,null,null,null,null,"Select from Drop Down","Select from Drop Down","Select from Drop Down"]
[1419,null,null,"Select from Drop Down","Select from Drop Down","Select from Drop Down",null,null,null,null,null,null,null,null,null,null,null,null,"Select from Drop Down","Select from Drop Down","Select from Drop Down"]
[1420,null,null,"Select from Drop Down","Select from Drop Down","Select from Drop Down",null,null,null,null,null,null,null,null,null,null,null,null,"Select from Drop Down","Select from Drop Down","Select from Drop Down"]
[1421,null,null,"Select from Drop Down","Select from Drop Down","Select from Drop Down",null,null,null,null,null,null,null,null,null,null,null,null,"Select from Drop Down","Select from Drop Down","Select from Drop Down"]
[1422,null,null,"Select from Drop Down","Select from Drop Down","Select from Drop Down",null,null,null,null,null,null,null,null,null,null,null,null,"Select from Drop Down","Select from Drop Down","Select from Drop Down"]
[1423,null,null,"Select from Drop Down","Select from Drop Down","Select from Drop Down",null,null,null,null,null,null,null,null,null,null,null,null,"Select from Drop Down","Select from Drop Down","Select from Drop Down"]
[1424,null,null,"Select from Drop Down","Select from Drop Down","Select from Drop Down",null,null,null,null,null,null,null,null,null,null,null,null,"Select from Drop Down","Select from Drop Down","Select from Drop Down"]
[1425,null,null,"Select from Drop Down","Select from Drop Down","Select from Drop Down",null,null,null,null,null,null,null,null,null,null,null,null,"Select from Drop Down","Select from Drop Down","Select from Drop Down"]
[1426,null,null,"Select from Drop Down","Select from Drop Down","Select from Drop Down",null,null,null,null,null,null,null,null,null,null,null,null,"Select from Drop Down","Select from Drop Down","Select from Drop Down"]
[1427,null,null,"Select from Drop Down","Select from Drop Down","Select from Drop Down",null,null,null,null,null,null,null,null,null,null,null,null,"Select from Drop Down","Select from Drop Down","Select from Drop Down"]
[1428,null,null,"Select from Drop Down","Select from Drop Down","Select from Drop Down",null,null,null,null,null,null,null,null,null,null,null,null,"Select from Drop Down","Select from Drop Down","Select from Drop Down"]
[1429,null,null,"Select from Drop Down","Select from Drop Down","Select from Drop Down",null,null,null,null,null,null,null,null,null,null,null,null,"Select from Drop Down","Select from Drop Down","Select from Drop Down"]
[1430,null,null,"Select from Drop Down","Select from Drop Down","Select from Drop Down",null,null,null,null,null,null,null,null,null,null,null,null,"Select from Drop Down","Select from Drop Down","Select from Drop Down"]
[1431,null,null,"Select from Drop Down","Select from Drop Down","Select from Drop Down",null,null,null,null,null,null,null,null,null,null,null,null,"Select from Drop Down","Select from Drop Down","Select from Drop Down"]
[1432,null,null,"Select from Drop Down","Select from Drop Down","Select from Drop Down",null,null,null,null,null,null,null,null,null,null,null,null,"Select from Drop Down","Select from Drop Down","Select from Drop Down"]
[1433,null,null,"Select from Drop Down","Select from Drop Down","Select from Drop Down",null,null,null,null,null,null,null,null,null,null,null,null,"Select from Drop Down","Select from Drop Down","Select from Drop Down"]
[1434,null,null,"Select from Drop Down","Select from Drop Down","Select from Drop Down",null,null,null,null,null,null,null,null,null,null,null,null,"Select from Drop Down","Select from Drop Down","Select from Drop Down"]
[1435,null,null,"Select from Drop Down","Select from Drop Down","Select from Drop Down",null,null,null,null,null,null,null,null,null,null,null,null,"Select from Drop Down","Select from Drop Down","Select from Drop Down"]
[1436,null,null,"Select from Drop Down","Select from Drop Down","Select from Drop Down",null,null,null,null,null,null,null,null,null,null,null,null,"Select from Drop Down","Select from Drop Down","Select from Drop Down"]
[1437,null,null,"Select from Drop Down","Select from Drop Down","Select from Drop Down",null,null,null,null,null,null,null,null,null,null,null,null,"Select from Drop Down","Select from Drop Down","Select from Drop Down"]
[1438,null,null,"Select from Drop Down","Select from Drop Down","Select from Drop Down",null,null,null,null,null,null,null,null,null,null,null,null,"Select from Drop Down","Select from Drop Down","Select from Drop Down"]
[1439,null,null,"Select from Drop Down","Select from Drop Down","Select from Drop Down",null,null,null,null,null,null,null,null,null,null,null,null,"Select from Drop Down","Select from Drop Down","Select from Drop Down"]
[1440,null,null,"Select from Drop Down","Select from Drop Down","Select from Drop Down",null,null,null,null,null,null,null,null,null,null,null,null,"Select from Drop Down","Select from Drop Down","Select from Drop Down"]
[1441,null,null,"Select from Drop Down","Select from Drop Down","Select from Drop Down",null,null,null,null,null,null,null,null,null,null,null,null,"Select from Drop Down","Select from Drop Down","Select from Drop Down"]
[1442,null,null,"Select from Drop Down","Select from Drop Down","Select from Drop Down",null,null,null,null,null,null,null,null,null,null,null,null,"Select from Drop Down","Select from Drop Down","Select from Drop Down"]
[1443,null,null,"Select from Drop Down","Select from Drop Down","Select from Drop Down",null,null,null,null,null,null,null,null,null,null,null,null,"Select from Drop Down","Select from Drop Down","Select from Drop Down"]
[1444,null,null,"Select from Drop Down","Select from Drop Down","Select from Drop Down",null,null,null,null,null,null,null,null,null,null,null,null,"Select from Drop Down","Select from Drop Down","Select from Drop Down"]
[1445,null,null,"Select from Drop Down","Select from Drop Down","Select from Drop Down",null,null,null,null,null,null,null,null,null,null,null,null,"Select from Drop Down","Select from Drop Down","Select from Drop Down"]
[1446,null,null,"Select from Drop Down","Select from Drop Down","Select from Drop Down",null,null,null,null,null,null,null,null,null,null,null,null,"Select from Drop Down","Select from Drop Down","Select from Drop Down"]
[1447,null,null,"Select from Drop Down","Select from Drop Down","Select from Drop Down",null,null,null,null,null,null,null,null,null,null,null,null,"Select from Drop Down","Select from Drop Down","Select from Drop Down"]
[1448,null,null,"Select from Drop Down","Select from Drop Down","Select from Drop Down",null,null,null,null,null,null,null,null,null,null,null,null,"Select from Drop Down","Select from Drop Down","Select from Drop Down"]
[1449,null,null,"Select from Drop Down","Select from Drop Down","Select from Drop Down",null,null,null,null,null,null,null,null,null,null,null,null,"Select from Drop Down","Select from Drop Down","Select from Drop Down"]
[1450,null,null,"Select from Drop Down","Select from Drop Down","Select from Drop Down",null,null,null,null,null,null,null,null,null,null,null,null,"Select from Drop Down","Select from Drop Down","Select from Drop Down"]
[1451,null,null,"Select from Drop Down","Select from Drop Down","Select from Drop Down",null,null,null,null,null,null,null,null,null,null,null,null,"Select from Drop Down","Select from Drop Down","Select from Drop Down"]
[1452,null,null,"Select from Drop Down","Select from Drop Down","Select from Drop Down",null,null,null,null,null,null,null,null,null,null,null,null,"Select from Drop Down","Select from Drop Down","Select from Drop Down"]
[1453,null,null,"Select from Drop Down","Select from Drop Down","Select from Drop Down",null,null,null,null,null,null,null,null,null,null,null,null,"Select from Drop Down","Select from Drop Down","Select from Drop Down"]
[1454,null,null,"Select from Drop Down","Select from Drop Down","Select from Drop Down",null,null,null,null,null,null,null,null,null,null,null,null,"Select from Drop Down","Select from Drop Down","Select from Drop Down"]
[1455,null,null,"Select from Drop Down","Select from Drop Down","Select from Drop Down",null,null,null,null,null,null,null,null,null,null,null,null,"Select from Drop Down","Select from Drop Down","Select from Drop Down"]
[1456,null,null,"Select from Drop Down","Select from Drop Down","Select from Drop Down",null,null,null,null,null,null,null,null,null,null,null,null,"Select from Drop Down","Select from Drop Down","Select from Drop Down"]
[1457,null,null,"Select from Drop Down","Select from Drop Down","Select from Drop Down",null,null,null,null,null,null,null,null,null,null,null,null,"Select from Drop Down","Select from Drop Down","Select from Drop Down"]
[1458,null,null,"Select from Drop Down","Select from Drop Down","Select from Drop Down",null,null,null,null,null,null,null,null,null,null,null,null,"Select from Drop Down","Select from Drop Down","Select from Drop Down"]
[1459,null,null,"Select from Drop Down","Select from Drop Down","Select from Drop Down",null,null,null,null,null,null,null,null,null,null,null,null,"Select from Drop Down","Select from Drop Down","Select from Drop Down"]
[1460,null,null,"Select from Drop Down","Select from Drop Down","Select from Drop Down",null,null,null,null,null,null,null,null,null,null,null,null,"Select from Drop Down","Select from Drop Down","Select from Drop Down"]
[1461,null,null,"Select from Drop Down","Select from Drop Down","Select from Drop Down",null,null,null,null,null,null,null,null,null,null,null,null,"Select from Drop Down","Select from Drop Down","Select from Drop Down"]
[1462,null,null,"Select from Drop Down","Select from Drop Down","Select from Drop Down",null,null,null,null,null,null,null,null,null,null,null,null,"Select from Drop Down","Select from Drop Down","Select from Drop Down"]
[1463,null,null,"Select from Drop Down","Select from Drop Down","Select from Drop Down",null,null,null,null,null,null,null,null,null,null,null,null,"Select from Drop Down","Select from Drop Down","Select from Drop Down"]
[1464,null,null,"Select from Drop Down","Select from Drop Down","Select from Drop Down",null,null,null,null,null,null,null,null,null,null,null,null,"Select from Drop Down","Select from Drop Down","Select from Drop Down"]
[1465,null,null,"Select from Drop Down","Select from Drop Down","Select from Drop Down",null,null,null,null,null,null,null,null,null,null,null,null,"Select from Drop Down","Select from Drop Down","Select from Drop Down"]
[1466,null,null,"Select from Drop Down","Select from Drop Down","Select from Drop Down",null,null,null,null,null,null,null,null,null,null,null,null,"Select from Drop Down","Select from Drop Down","Select from Drop Down"]
[1467,null,null,"Select from Drop Down","Select from Drop Down","Select from Drop Down",null,null,null,null,null,null,null,null,null,null,null,null,"Select from Drop Down","Select from Drop Down","Select from Drop Down"]
[1468,null,null,"Select from Drop Down","Select from Drop Down","Select from Drop Down",null,null,null,null,null,null,null,null,null,null,null,null,"Select from Drop Down","Select from Drop Down","Select from Drop Down"]
[1469,null,null,"Select from Drop Down","Select from Drop Down","Select from Drop Down",null,null,null,null,null,null,null,null,null,null,null,null,"Select from Drop Down","Select from Drop Down","Select from Drop Down"]
[1470,null,null,"Select from Drop Down","Select from Drop Down","Select from Drop Down",null,null,null,null,null,null,null,null,null,null,null,null,"Select from Drop Down","Select from Drop Down","Select from Drop Down"]
[1471,null,null,"Select from Drop Down","Select from Drop Down","Select from Drop Down",null,null,null,null,null,null,null,null,null,null,null,null,"Select from Drop Down","Select from Drop Down","Select from Drop Down"]
[1472,null,null,"Select from Drop Down","Select from Drop Down","Select from Drop Down",null,null,null,null,null,null,null,null,null,null,null,null,"Select from Drop Down","Select from Drop Down","Select from Drop Down"]
[1473,null,null,"Select from Drop Down","Select from Drop Down","Select from Drop Down",null,null,null,null,null,null,null,null,null,null,null,null,"Select from Drop Down","Select from Drop Down","Select from Drop Down"]
[1474,null,null,"Select from Drop Down","Select from Drop Down","Select from Drop Down",null,null,null,null,null,null,null,null,null,null,null,null,"Select from Drop Down","Select from Drop Down","Select from Drop Down"]
[{"$f":"A1484+1","v":1475},null,null,"Select from Drop Down","Select from Drop Down","Select from Drop Down",null,null,null,null,null,null,null,null,null,null,null,null,"Select from Drop Down","Select from Drop Down","Select from Drop Down"]
[1476,null,null,"Select from Drop Down","Select from Drop Down","Select from Drop Down",null,null,null,null,null,null,null,null,null,null,null,null,"Select from Drop Down","Select from Drop Down","Select from Drop Down"]
[1477,null,null,"Select from Drop Down","Select from Drop Down","Select from Drop Down",null,null,null,null,null,null,null,null,null,null,null,null,"Select from Drop Down","Select from Drop Down","Select from Drop Down"]
[1478,null,null,"Select from Drop Down","Select from Drop Down","Select from Drop Down",null,null,null,null,null,null,null,null,null,null,null,null,"Select from Drop Down","Select from Drop Down","Select from Drop Down"]
[1479,null,null,"Select from Drop Down","Select from Drop Down","Select from Drop Down",null,null,null,null,null,null,null,null,null,null,null,null,"Select from Drop Down","Select from Drop Down","Select from Drop Down"]
[1480,null,null,"Select from Drop Down","Select from Drop Down","Select from Drop Down",null,null,null,null,null,null,null,null,null,null,null,null,"Select from Drop Down","Select from Drop Down","Select from Drop Down"]
[1481,null,null,"Select from Drop Down","Select from Drop Down","Select from Drop Down",null,null,null,null,null,null,null,null,null,null,null,null,"Select from Drop Down","Select from Drop Down","Select from Drop Down"]
[1482,null,null,"Select from Drop Down","Select from Drop Down","Select from Drop Down",null,null,null,null,null,null,null,null,null,null,null,null,"Select from Drop Down","Select from Drop Down","Select from Drop Down"]
[1483,null,null,"Select from Drop Down","Select from Drop Down","Select from Drop Down",null,null,null,null,null,null,null,null,null,null,null,null,"Select from Drop Down","Select from Drop Down","Select from Drop Down"]
[1484,null,null,"Select from Drop Down","Select from Drop Down","Select from Drop Down",null,null,null,null,null,null,null,null,null,null,null,null,"Select from Drop Down","Select from Drop Down","Select from Drop Down"]
[1485,null,null,"Select from Drop Down","Select from Drop Down","Select from Drop Down",null,null,null,null,null,null,null,null,null,null,null,null,"Select from Drop Down","Select from Drop Down","Select from Drop Down"]
[1486,null,null,"Select from Drop Down","Select from Drop Down","Select from Drop Down",null,null,null,null,null,null,null,null,null,null,null,null,"Select from Drop Down","Select from Drop Down","Select from Drop Down"]
[1487,null,null,"Select from Drop Down","Select from Drop Down","Select from Drop Down",null,null,null,null,null,null,null,null,null,null,null,null,"Select from Drop Down","Select from Drop Down","Select from Drop Down"]
[1488,null,null,"Select from Drop Down","Select from Drop Down","Select from Drop Down",null,null,null,null,null,null,null,null,null,null,null,null,"Select from Drop Down","Select from Drop Down","Select from Drop Down"]
[1489,null,null,"Select from Drop Down","Select from Drop Down","Select from Drop Down",null,null,null,null,null,null,null,null,null,null,null,null,"Select from Drop Down","Select from Drop Down","Select from Drop Down"]
[1490,null,null,"Select from Drop Down","Select from Drop Down","Select from Drop Down",null,null,null,null,null,null,null,null,null,null,null,null,"Select from Drop Down","Select from Drop Down","Select from Drop Down"]
[1491,null,null,"Select from Drop Down","Select from Drop Down","Select from Drop Down",null,null,null,null,null,null,null,null,null,null,null,null,"Select from Drop Down","Select from Drop Down","Select from Drop Down"]
[1492,null,null,"Select from Drop Down","Select from Drop Down","Select from Drop Down",null,null,null,null,null,null,null,null,null,null,null,null,"Select from Drop Down","Select from Drop Down","Select from Drop Down"]
[1493,null,null,"Select from Drop Down","Select from Drop Down","Select from Drop Down",null,null,null,null,null,null,null,null,null,null,null,null,"Select from Drop Down","Select from Drop Down","Select from Drop Down"]
[1494,null,null,"Select from Drop Down","Select from Drop Down","Select from Drop Down",null,null,null,null,null,null,null,null,null,null,null,null,"Select from Drop Down","Select from Drop Down","Select from Drop Down"]
[1495,null,null,"Select from Drop Down","Select from Drop Down","Select from Drop Down",null,null,null,null,null,null,null,null,null,null,null,null,"Select from Drop Down","Select from Drop Down","Select from Drop Down"]
[1496,null,null,"Select from Drop Down","Select from Drop Down","Select from Drop Down",null,null,null,null,null,null,null,null,null,null,null,null,"Select from Drop Down","Select from Drop Down","Select from Drop Down"]
[1497,null,null,"Select from Drop Down","Select from Drop Down","Select from Drop Down",null,null,null,null,null,null,null,null,null,null,null,null,"Select from Drop Down","Select from Drop Down","Select from Drop Down"]
[1498,null,null,"Select from Drop Down","Select from Drop Down","Select from Drop Down",null,null,null,null,null,null,null,null,null,null,null,null,"Select from Drop Down","Select from Drop Down","Select from Drop Down"]
[1499,null,null,"Select from Drop Down","Select from Drop Down","Select from Drop Down",null,null,null,null,null,null,null,null,null,null,null,null,"Select from Drop Down","Select from Drop Down","Select from Drop Down"]
[1500,null,null,"Select from Drop Down","Select from Drop Down","Select from Drop Down",null,null,null,null,null,null,null,null,null,null,null,null,"Select from Drop Down","Select from Drop Down","Select from Drop Down"]
[]
[null,"TOTAL",null,null,null,null,{"$f":"SUM(G11:G1510)","v":0},{"$f":"SUM(H11:H1510)","v":0},null,null,null,{"$f":"SUM(L11:L1510)","v":0},0,0,0,0,0,0,null,null,null,{"$f":"SUM(V11:V1510)","v":0}]
[]
[null,"General Comments"]
[null,{"$f":"Import!E4283","v":0}]
[]
[]
[]
[]
[]
[]
[]
[]
[]
[null,null,null,null,null,null,null,null,"Select Yes/No",null,null,null,"Lines of Business",null,null,"Zones",null,null,"Currency",null,"Select from Drop Down","Nature of Collateral"]
[null,null,null,null,null,null,null,null,"Yes",null,null,null,"Select from Drop Down",null,null,"Select from Drop Down",null,null,"Select from Drop Down",null,"AAA","Select from Drop Down"]
[null,null,null,null,null,null,"Select from Drop Down","Select from Drop Down","No",null,null,null,"Property Catastrophe",null,null,"US,",null,null,"USD",null,"AA","Money Market Fund"]
[null,null,null,null,null,null,"Indemnity ","Parametric/Industry Loss Warranty",null,"Select from Drop Down",null,null,"Property",null,null,"Europe",null,null,"BP",null,"A","Letter of Credit "]
[null,null,null,null,null,null,"Excess-of-Loss","Excess-of-Loss",null,"Catastrophe Bond",null,null,"Property Non – Proportional",null,null,"UK",null,null,"Euro",null,"BBB","Funds Withheld"]
[null,null,null,null,null,null,"Industry Loss Warranty","Quota Share",null,"Sidecar",null,null,"Personal Accident",null,null,"Latin America",null,null,"AUD",null,"BB","Cash"]
[null,null,null,null,null,null,"Quota Share","Stop Loss",null,"Collateralised Reinsurance",null,null,"Personal Accident Non- Proportional",null,null,"Asia",null,null,"CAD",null,"B","Sovereign Bonds"]
[null,null,null,null,null,null,"Stop Loss","Other",null,"Other",null,null,"Aviation",null,null,"Africa",null,null,"Yen",null,"CCC","Corporate Bonds"]
[null,null,null,null,null,null,"Other",null,null,null,null,null,"Aviation Non – Proportional",null,null,"Worldwide",null,null,"Multi Currency",null,"CCC or Below","Other"]
[null,null,null,null,null,null,null,null,null,null,null,null,"Credit / Surety ",null,null,"Other",null,null,"Other"]
[null,null,null,null,null,null,null,null,null,null,null,null,"Credit / Surety Non – Proportional"]
[null,null,null,null,null,null,null,null,null,null,null,null,"Energy Offshore / Marine"]
[null,null,null,null,null,null,null,null,null,null,null,null,"Energy Offshore / Marine Non - Proportional "]
[null,null,null,null,null,null,null,null,null,null,null,null,"US Casualty"]
[null,null,null,null,null,null,null,null,null,null,null,null,"US Casualty Non - Proportional "]
[null,null,null,null,null,null,null,null,null,null,null,null,"US Professional"]
[null,null,null,null,null,null,null,null,null,null,null,null,"US Professional Non – Proportional"]
[null,null,null,null,null,null,null,null,null,null,null,null,"US Specialty "]
[null,null,null,null,null,null,null,null,null,null,null,null,"US Specialty Non - Proportional"]
[null,null,null,null,null,null,null,null,null,null,null,null,"International Motor "]
[null,null,null,null,null,null,null,null,null,null,null,null,"International Motor Non – Proportional"]
[null,null,null,null,null,null,null,null,null,null,null,null,"International Casualty Non – Motor "]
[null,null,null,null,null,null,null,null,null,null,null,null,"International Casualty Non Motor Non – Proportional "]
[null,null,null,null,null,null,null,null,null,null,null,null,"Retro Property"]
[null,null,null,null,null,null,null,null,null,null,null,null,"Structured / Finite Reinsurance"]
[null,null,null,null,null,null,null,null,null,null,null,null,"Health"]
[]
[null,null,null,null,null,null,null,null,null,null,null,null,"Mortality "]
[null,null,null,null,null,null,null,null,null,null,null,null,"Critical Illness"]
[null,null,null,null,null,null,null,null,null,null,null,null,"Longevity"]
[null,null,null,null,null,null,null,null,null,null,null,null,"Deferred Annuities"]
[null,null,null,null,null,null,null,null,null,null,null,null,"Disability Income: Active lives with premium guarantee"]
[null,null,null,null,null,null,null,null,null,null,null,null,"Disability Income: Actives lives for other accident and sickenss"]
[null,null,null,null,null,null,null,null,null,null,null,null,"Disability Income: Claims in payment "]
[null,null,null,null,null,null,null,null,null,null,null,null,"Disability Income: Claims in payment for other accident and sickness"]
[null,null,null,null,null,null,null,null,null,null,null,null,"Group Life"]
[null,null,null,null,null,null,null,null,null,null,null,null,"Group Disability"]
[null,null,null,null,null,null,null,null,null,null,null,null,"Group Health"]
[null,null,null,null,null,null,null,null,null,null,null,null,"Stop Loss"]
[null,null,null,null,null,null,null,null,null,null,null,null,"Rider"]
[null,null,null,null,null,null,null,null,null,null,null,null,"Variable Annuities"]

{"sheet":"Schedule VI","index":46,"n_rows":70,"n_cols":34,"rows_kept":70,"cut":false,"hidden":false,"merged":[[0,14,0,16],[1,2,1,3],[2,2,2,3],[2,14,2,16],[3,2,3,3],[3,14,3,16]]}
[null,null,"SCHEDULE OF FIXED INCOME SECURITIES",null,null,null,null,null,null,null,null,null,null,null,{"$f":"HYPERLINK(\"#'Index'!A1\",\"Return to Index\")","v":"Return to Index"}]
[null,null,{"$f":"'Schedule V'!B2","v":"Enter Company Name"}]
[null,null,{"$f":"'Schedule V'!C3","v":"2019-12-31"},null,null,null,null,null,null,null,null,null,null,null,"SCHEDULE VI"]
[null,null,{"$f":"'Schedule V(e)'!C4:D4","v":"United States Dollars"}]
[]
[null,null,"Security Type",null,"Amount per Form 1SFS, Lines 2(b) and 3(b)",null,"Face Value",null,"Fair Value",null,"Average YTM",null,"Average Rating",{"$f":"YEAR('Insurer Information'!C3)","v":2019},"Effective Duration",null,"Effective Convexity"]
[]
[null,1,"U.S. Government ",null,null,null,null,null,null,null,null,null,null,null,null,null,null,null,null,"",null,"bma_SecurityUSGovernmentAmountPerForm1ALines2bAnd3b",null,"bma_SecurityUSGovernmentFaceValue",null,"bma_SecurityUSGovernmentFairValue",null,"bma_SecurityUSGovernmentAverageYTM",null,"bma_SecurityUSGovernmentAverageRating",null,"bma_SecurityUSGovernmentEffectiveDuration",null,"bma_SecurityUSGovernmentEffectiveConvexity"]
[null,null,"(a) U.S. Government Federal",null,{"$f":"Import!E4285","v":0},null,{"$f":"Import!E4303","v":0},null,{"$f":"Import!E4321","v":0},null,{"$f":"Import!E4339","v":0},null,{"$f":"Import!E4356","v":0},null,{"$f":"Import!E4373","v":0},null,{"$f":"Import!E4390","v":0},null,null,"brrt_SecurityTypeAxis_brrt_USGovernmentMember",null,"bma_SecurityUSGovernmentAmountPerForm1ALines2bAnd3b",null,"bma_SecurityUSGovernmentFaceValue",null,"bma_SecurityUSGovernmentFairValue",null,"bma_SecurityUSGovernmentAverageYTM",null,"bma_SecurityUSGovernmentAverageRating",null,"bma_SecurityUSGovernmentEffectiveDuration",null,"bma_SecurityUSGovernmentEffectiveConvexity"]
[null,null,"(b) U.S. Government Agency - mortgage-backed securities",null,{"$f":"Import!E4286","v":0},null,{"$f":"Import!E4304","v":0},null,{"$f":"Import!E4322","v":0},null,{"$f":"Import!E4340","v":0},null,{"$f":"Import!E4357","v":0},null,{"$f":"Import!E4374","v":0},null,{"$f":"Import!E4391","v":0},null,null,"brrt_SecurityTypeAxis_brrt_USGovernmentAgencyMortgageBackedSecuritiesMember",null,"bma_SecurityUSGovernmentAgencyMortgageBackedSecuritiesAmountPerForm1ALines2bAnd3b",null,"bma_SecurityUSGovernmentAgencyMortgageBackedSecuritiesFaceValue",null,"bma_SecurityUSGovernmentAgencyMortgageBackedSecuritiesFairValue",null,"bma_SecurityUSGovernmentAgencyMortgageBackedSecuritiesAverageYTM",null,"bma_SecurityUSGovernmentAgencyMortgageBackedSecuritiesAverageRating",null,"bma_SecurityUSGovernmentAgencyMortgageBackedSecuritiesEffectiveDuration",null,"bma_SecurityUSGovernmentAgencyMortgageBackedSecuritiesEffectiveConvexity"]
[null,null,"(c) U.S. Government Agency - other",null,{"$f":"Import!E4287","v":0},null,{"$f":"Import!E4305","v":0},null,{"$f":"Import!E4323","v":0},null,{"$f":"Import!E4341","v":0},null,{"$f":"Import!E4358","v":0},null,{"$f":"Import!E4375","v":0},null,{"$f":"Import!E4392","v":0},null,null,"brrt_SecurityTypeAxis_brrt_USGovernmentAgencyOtherMember",null,"bma_SecurityUSGovernmentAgencyOtherAmountPerForm1ALines2bAnd3b",null,"bma_SecurityUSGovernmentAgencyOtherFaceValue",null,"bma_SecurityUSGovernmentAgencyOtherFairValue",null,"bma_SecurityUSGovernmentAgencyOtherAverageYTM",null,"bma_SecurityUSGovernmentAgencyOtherAverageRating",null,"bma_SecurityUSGovernmentAgencyOtherEffectiveDuration",null,"bma_SecurityUSGovernmentAgencyOtherEffectiveConvexity"]
[null,2,"Non-U.S. Government",null,{"$f":"Import!E4288","v":0},null,{"$f":"Import!E4306","v":0},null,{"$f":"Import!E4324","v":0},null,{"$f":"Import!E4342","v":0},null,{"$f":"Import!E4359","v":0},null,{"$f":"Import!E4376","v":0},null,{"$f":"Import!E4393","v":0},null,null,"brrt_SecurityTypeAxis_brrt_NonUSGovernmentMember",null,"bma_SecurityCorporateSecuritiesAmountPerForm1ALines2bAnd3b",null,"bma_SecurityCorporateSecuritiesFaceValue",null,"bma_SecurityCorporateSecuritiesFairValue",null,"bma_SecurityCorporateSecuritiesAverageYTM",null,"bma_SecurityCorporateSecuritiesAverageRating",null,"bma_SecurityCorporateSecuritiesEffectiveDuration",null,"bma_SecurityCorporateSecuritiesEffectiveConvexity"]
[null,3,"States, Municipalities, and Political Subdivision",null,{"$f":"Import!E4289","v":0},null,{"$f":"Import!E4307","v":0},null,{"$f":"Import!E4325","v":0},null,{"$f":"Import!E4343","v":0},null,{"$f":"Import!E4360","v":0},null,{"$f":"Import!E4377","v":0},null,{"$f":"Import!E4394","v":0},null,null,"brrt_SecurityTypeAxis_brrt_StatesMunicipalitiesAndPoliticalSubdivisionMember",null,"bma_SecurityCorporateSecuritiesAmountPerForm1ALines2bAnd3b",null,"bma_SecurityCorporateSecuritiesFaceValue",null,"bma_SecurityCorporateSecuritiesFairValue",null,"bma_SecurityCorporateSecuritiesAverageYTM",null,"bma_SecurityCorporateSecuritiesAverageRating",null,"bma_SecurityCorporateSecuritiesEffectiveDuration",null,"bma_SecurityCorporateSecuritiesEffectiveConvexity"]
[null,4,"Corporate Securities",null,null,null,null,null,null,null,null,null,null,null,null,null,null,null,null,null,null,"bma_SecurityAssetBackedSecuritiesAmountPerForm1ALines2bAnd3b",null,"bma_SecurityAssetBackedSecuritiesFaceValue",null,"bma_SecurityAssetBackedSecuritiesFairValue",null,"bma_SecurityAssetBackedSecuritiesAverageYTM",null,"bma_SecurityAssetBackedSecuritiesAverageRating",null,"bma_SecurityAssetBackedSecuritiesEffectiveDuration",null,"bma_SecurityAssetBackedSecuritiesEffectiveConvexity"]
[null,null,"(a) U.S. Government-backed Corporate",null,{"$f":"Import!E4290","v":0},null,{"$f":"Import!E4308","v":0},null,{"$f":"Import!E4326","v":0},null,{"$f":"Import!E4344","v":0},null,{"$f":"Import!E4361","v":0},null,{"$f":"Import!E4378","v":0},null,{"$f":"Import!E4395","v":0},null,null,"brrt_SecurityTypeAxis_brrt_USGovernmentBackedCorporateSecuritiesMember"]
[null,null,"(b) Non-U.S. Government-backed Corporate",null,{"$f":"Import!E4291","v":0},null,{"$f":"Import!E4309","v":0},null,{"$f":"Import!E4327","v":0},null,{"$f":"Import!E4345","v":0},null,{"$f":"Import!E4362","v":0},null,{"$f":"Import!E4379","v":0},null,{"$f":"Import!E4396","v":0},null,null,"brrt_SecurityTypeAxis_brrt_NonUSGovernmentBackedCorporateSecuritiesMember"]
[null,null,"(c) FDIC Guaranteed Corporate",null,{"$f":"Import!E4292","v":0},null,{"$f":"Import!E4310","v":0},null,{"$f":"Import!E4328","v":0},null,{"$f":"Import!E4346","v":0},null,{"$f":"Import!E4363","v":0},null,{"$f":"Import!E4380","v":0},null,{"$f":"Import!E4397","v":0},null,null,"brrt_SecurityTypeAxis_brrt_FDICGuaranteedCorporateSecuritiesMember"]
[null,null,"(d) Other Corporate",null,{"$f":"Import!E4293","v":0},null,{"$f":"Import!E4311","v":0},null,{"$f":"Import!E4329","v":0},null,{"$f":"Import!E4347","v":0},null,{"$f":"Import!E4364","v":0},null,{"$f":"Import!E4381","v":0},null,{"$f":"Import!E4398","v":0},null,null,"brrt_SecurityTypeAxis_brrt_OtherCorporateSecuritiesMember"]
[null,5,"Asset-backed Securities",null,{"$f":"Import!E4294","v":0},null,{"$f":"Import!E4312","v":0},null,{"$f":"Import!E4330","v":0},null,{"$f":"Import!E4348","v":0},null,{"$f":"Import!E4365","v":0},null,{"$f":"Import!E4382","v":0},null,{"$f":"Import!E4399","v":0},null,null,"brrt_SecurityTypeAxis_brrt_AssetBackedSecuritiesMember",null,"bma_SecurityMortgageBackedSecuritiesAmountPerForm1ALines2bAnd3b",null,"bma_SecurityMortgageBackedSecuritiesFaceValue",null,"bma_SecurityMortgageBackedSecuritiesFairValue",null,"bma_SecurityMortgageBackedSecuritiesAverageYTM",null,"bma_SecurityMortgageBackedSecuritiesAverageRating",null,"bma_SecurityMortgageBackedSecuritiesEffectiveDuration",null,"bma_SecurityMortgageBackedSecuritiesEffectiveConvexity"]
[null,6,"Mortgage-backed Securities",null,null,null,null,null,null,null,null,null,null,null,null,null,null,null,null,null,null,"bma_SecurityMutualFundsAmountPerForm1ALines2bAnd3b",null,"bma_SecurityMutualFundsFaceValue",null,"bma_SecurityMutualFundsFairValue",null,"bma_SecurityMutualFundsAverageYTM",null,"bma_SecurityMutualFundsAverageRating",null,"bma_SecurityMutualFundsEffectiveDuration",null,"bma_SecurityMutualFundsEffectiveConvexity"]
[null,null,"(a) Residential Subprime",null,{"$f":"Import!E4295","v":0},null,{"$f":"Import!E4313","v":0},null,{"$f":"Import!E4331","v":0},null,{"$f":"Import!E4349","v":0},null,{"$f":"Import!E4366","v":0},null,{"$f":"Import!E4383","v":0},null,{"$f":"Import!E4400","v":0},null,null,"brrt_SecurityTypeAxis_brrt_MortgageBackedSecuritiesSubprimeMember",null,"bma_SecurityOther1AmountPerForm1ALines2bAnd3b",null,"bma_SecurityOther1FaceValue",null,"bma_SecurityOther1FairValue",null,"bma_SecurityOther1AverageYTM",null,"bma_SecurityOther1AverageRating",null,"bma_SecurityOther1EffectiveDuration",null,"bma_SecurityOther1EffectiveConvexity"]
[null,null,"(b) Residential Non-subprime",null,{"$f":"Import!E4296","v":0},null,{"$f":"Import!E4314","v":0},null,{"$f":"Import!E4332","v":0},null,{"$f":"Import!E4350","v":0},null,{"$f":"Import!E4367","v":0},null,{"$f":"Import!E4384","v":0},null,{"$f":"Import!E4401","v":0},null,null,"brrt_SecurityTypeAxis_brrt_MortgageBackedSecuritiesNonSubprimeMember",null,"bma_SecurityOther2AmountPerForm1ALines2bAnd3b",null,"bma_SecurityOther2FaceValue",null,"bma_SecurityOther2FairValue",null,"bma_SecurityOther2AverageYTM",null,"bma_SecurityOther2AverageRating",null,"bma_SecurityOther2EffectiveDuration",null,"bma_SecurityOther2EffectiveConvexity"]
[null,null,"(c) Commercial",null,{"$f":"Import!E4297","v":0},null,{"$f":"Import!E4315","v":0},null,{"$f":"Import!E4333","v":0},null,{"$f":"Import!E4351","v":0},null,{"$f":"Import!E4368","v":0},null,{"$f":"Import!E4385","v":0},null,{"$f":"Import!E4402","v":0},null,null,"brrt_SecurityTypeAxis_brrt_MortgageBackedSecuritiesCommercialMember",null,"bma_SecurityOther2AmountPerForm1ALines2bAnd3b",null,"bma_SecurityOther2FaceValue",null,"bma_SecurityOther2FairValue",null,"bma_SecurityOther2AverageYTM",null,"bma_SecurityOther2AverageRating",null,"bma_SecurityOther2EffectiveDuration",null,"bma_SecurityOther2EffectiveConvexity"]
[null,7,"Mutual Funds",null,{"$f":"Import!E4298","v":0},null,{"$f":"Import!E4316","v":0},null,{"$f":"Import!E4334","v":0},null,{"$f":"Import!E4352","v":0},null,{"$f":"Import!E4369","v":0},null,{"$f":"Import!E4386","v":0},null,{"$f":"Import!E4403","v":0},null,null,"brrt_SecurityTypeAxis_brrt_MutualFundsMember",null,"bma_SecurityOther3AmountPerForm1ALines2bAnd3b",null,"bma_SecurityOther3FaceValue",null,"bma_SecurityOther3FairValue",null,"bma_SecurityOther3AverageYTM",null,"bma_SecurityOther3AverageRating",null,"bma_SecurityOther3EffectiveDuration",null,"bma_SecurityOther3EffectiveConvexity"]
[null,8,"Bank Loans",null,{"$f":"Import!E4299","v":0},null,{"$f":"Import!E4317","v":0},null,{"$f":"Import!E4335","v":0},null,{"$f":"Import!E4353","v":0},null,{"$f":"Import!E4370","v":0},null,{"$f":"Import!E4387","v":0},null,{"$f":"Import!E4404","v":0},null,null,"brrt_SecurityTypeAxis_brrt_BankLoansMember",null,"bma_SecurityOther4AmountPerForm1ALines2bAnd3b",null,"bma_SecurityOther4FaceValue",null,"bma_SecurityOther4FairValue",null,"bma_SecurityOther4AverageYTM",null,"bma_SecurityOther4AverageRating",null,"bma_SecurityOther4EffectiveDuration",null,"bma_SecurityOther4EffectiveConvexity"]
[null,9,"Catastrophe Bonds and Insurance-Linked Securities",null,{"$f":"Import!E4300","v":0},null,{"$f":"Import!E4318","v":0},null,{"$f":"Import!E4336","v":0},null,{"$f":"Import!E4354","v":0},null,{"$f":"Import!E4371","v":0},null,{"$f":"Import!E4388","v":0},null,{"$f":"Import!E4405","v":0},null,null,"brrt_SecurityTypeAxis_brrt_CatastropheBondsAndInsuranceLinkedSecuritiesMember",null,"bma_SecurityOther5AmountPerForm1ALines2bAnd3b",null,"bma_SecurityOther5FaceValue",null,"bma_SecurityOther5FairValue",null,"bma_SecurityOther5AverageYTM",null,"bma_SecurityOther5AverageRating",null,"bma_SecurityOther5EffectiveDuration",null,"bma_SecurityOther5EffectiveConvexity"]
[null,10,"Others (Briefly describe)",null,{"$f":"Import!E4301","v":0},null,{"$f":"Import!E4319","v":0},null,{"$f":"Import!E4337","v":0},null,{"$f":"Import!E4355","v":0},null,{"$f":"Import!E4372","v":0},null,{"$f":"Import!E4389","v":0},null,{"$f":"Import!E4406","v":0},null,null,"brrt_SecurityTypeAxis_brrt_OtherMember",null,"bma_SecurityOther6AmountPerForm1ALines2bAnd3b",null,"bma_SecurityOther6FaceValue",null,"bma_SecurityOther6FairValue",null,"bma_SecurityOther6AverageYTM",null,"bma_SecurityOther6AverageRating",null,"bma_SecurityOther6EffectiveDuration",null,"bma_SecurityOther6EffectiveConvexity"]
[null,null,"TOTAL PORTFOLIO",null,{"$f":"SUM(E9:E27)","v":0},null,{"$f":"SUM(G9:G27)","v":0},null,{"$f":"SUM(I9:I27)","v":0},null,null,null,null,null,null,null,null,null,null,"brrt_SecurityTypeAxis_brrt_TotalMember",null,"bma_SecurityTotalPortfolioAmountPerForm1ALines2bAnd3b",null,"bma_SecurityTotalPortfolioFaceValue",null,"bma_SecurityTotalPortfolioFairValue",null,"",null,"",null,"",null,""]
[]
[null,null,null,null,{"$f":"IF(E31=\"TRUE\",HYPERLINK(\"#'Form 1SFS'!F16:K30\",\"TRUE\"),HYPERLINK(\"#'Form 1SFS'!F16:K30\",\"FALSE\"))","v":"TRUE"}]
[null,null,null,null,{"$f":"IF((ROUND(E28-('Form 1SFS'!F18+'Form 1SFS'!H18+'Form 1SFS'!F31+'Form 1SFS'!H31),0))=0,\"TRUE\",\"FALSE\")","v":"TRUE"}]
[null,null,"Difference",null,{"$f":"ROUND(E28-('Form 1SFS'!F18+'Form 1SFS'!H18+'Form 1SFS'!F31+'Form 1SFS'!H31),0)","v":0}]
[]
[null,null,null,null,{"$f":"IF(E30=\"False\",\"Does not equal Form 1SFS Lines 2(b) & 3(b)\",\"\")","v":""}]
[]
[null,null,"Effective duration of the portfolio",null,{"$f":"Import!E4407","v":0},null,null,null,null,null,null,null,null,null,null,null,null,null,null,"brrt_PortfolioEffectiveDuration",null,"",null,"",null,"",null,"",null,"",null,"",null,""]
[null,null,null,null,null,null,null,null,null,null,null,null,null,null,null,null,null,null,null,"",null,"",null,"",null,"",null,"",null,"",null,"",null,""]
[null,null,"Effective convexity of the portfolio",null,{"$f":"Import!E4408","v":0},null,null,null,null,null,null,null,null,null,null,null,null,null,null,"brrt_PortfolioEffectiveConvexity",null,"",null,"",null,"",null,"",null,"",null,"",null,""]
[]
[]
[null,null,null,null,"brrt_BondsAndDebentures",null,"brrt_BondsAndDebenturesFaceValue",null,"brrt_BondsAndDebenturesFairValue",null,"brrt_BondsAndDebenturesAverageYieldToMaturity",null,"brrt_BondsAndDebenturesAverageRating",null,"brrt_BondsAndDebenturesEffectiveDuration",null,"brrt_BondsAndDebenturesEffectiveConvexity"]
[null,null,{"$f":"IF($C$3=\"\",\"\",TEXT(DATE(YEAR($C$3+1)-1,MONTH($C$3+1),DAY($C$3+1)),\"mm/dd/yyyy\"))","v":"01/01/2019"},null,{"$f":"IF($C$3=\"\",\"\",TEXT(DATE(YEAR($C$3+1)-1,MONTH($C$3+1),DAY($C$3+1)),\"mm/dd/yyyy\"))","v":"01/01/2019"},null,"01/01/2019",null,"01/01/2019",null,"01/01/2019",null,"01/01/2019",null,"01/01/2019",null,"01/01/2019"]
[null,null,{"$f":"IF($C$3=\"\",\"\",TEXT($C$3,\"mm/dd/yyyy\"))","v":"12/31/2019"},null,{"$f":"IF($C$3=\"\",\"\",TEXT($C$3,\"mm/dd/yyyy\"))","v":"12/31/2019"},null,"12/31/2019",null,"12/31/2019",null,"12/31/2019",null,"12/31/2019",null,"12/31/2019",null,"12/31/2019"]
[null,null,null,null,{"$f":"XBRLMap(E9,E$41&\".\"&$T9,E$42,E$43,CONFIGURATION!$B$10,\"BMA\",CONFIGURATION!$B$1,\"bscr\",CONFIGURATION!$B$12)","v":"Mapped"},null,{"$f":"XBRLMap(G9,G$41&\".\"&$T9,G$42,G$43,CONFIGURATION!$B$10,\"BMA\",CONFIGURATION!$B$1,\"bscr\",CONFIGURATION!$B$12)","v":"Mapped"},null,{"$f":"XBRLMap(I9,I$41&\".\"&$T9,I$42,I$43,CONFIGURATION!$B$10,\"BMA\",CONFIGURATION!$B$1,\"bscr\",CONFIGURATION!$B$12)","v":"Mapped"},null,{"$f":"XBRLMap(K9,K$41&\".\"&$T9,K$42,K$43,CONFIGURATION!$B$10,\"BMA\",CONFIGURATION!$B$1,\"bscr\")","v":"Mapped"},null,{"$f":"XBRLMap(M9,M$41&\".\"&$T9,M$42,M$43,CONFIGURATION!$B$10,\"BMA\",CONFIGURATION!$B$1,\"bscr\")","v":"Mapped"},null,{"$f":"XBRLMap(O9,O$41&\".\"&$T9,O$42,O$43,CONFIGURATION!$B$10,\"BMA\",CONFIGURATION!$B$1,\"bscr\")","v":"Mapped"},null,{"$f":"XBRLMap(Q9,Q$41&\".\"&$T9,Q$42,Q$43,CONFIGURATION!$B$10,\"BMA\",CONFIGURATION!$B$1,\"bscr\")","v":"Mapped"}]
[null,null,null,null,{"$f":"XBRLMap(E10,E$41&\".\"&$T10,E$42,E$43,CONFIGURATION!$B$10,\"BMA\",CONFIGURATION!$B$1,\"bscr\",CONFIGURATION!$B$12)","v":"Mapped"},null,{"$f":"XBRLMap(G10,G$41&\".\"&$T10,G$42,G$43,CONFIGURATION!$B$10,\"BMA\",CONFIGURATION!$B$1,\"bscr\",CONFIGURATION!$B$12)","v":"Mapped"},null,{"$f":"XBRLMap(I10,I$41&\".\"&$T10,I$42,I$43,CONFIGURATION!$B$10,\"BMA\",CONFIGURATION!$B$1,\"bscr\",CONFIGURATION!$B$12)","v":"Mapped"},null,{"$f":"XBRLMap(K10,K$41&\".\"&$T10,K$42,K$43,CONFIGURATION!$B$10,\"BMA\",CONFIGURATION!$B$1,\"bscr\")","v":"Mapped"},null,{"$f":"XBRLMap(M10,M$41&\".\"&$T10,M$42,M$43,CONFIGURATION!$B$10,\"BMA\",CONFIGURATION!$B$1,\"bscr\")","v":"Mapped"},null,{"$f":"XBRLMap(O10,O$41&\".\"&$T10,O$42,O$43,CONFIGURATION!$B$10,\"BMA\",CONFIGURATION!$B$1,\"bscr\")","v":"Mapped"},null,{"$f":"XBRLMap(Q10,Q$41&\".\"&$T10,Q$42,Q$43,CONFIGURATION!$B$10,\"BMA\",CONFIGURATION!$B$1,\"bscr\")","v":"Mapped"}]
[null,null,null,null,{"$f":"XBRLMap(E11,E$41&\".\"&$T11,E$42,E$43,CONFIGURATION!$B$10,\"BMA\",CONFIGURATION!$B$1,\"bscr\",CONFIGURATION!$B$12)","v":"Mapped"},null,{"$f":"XBRLMap(G11,G$41&\".\"&$T11,G$42,G$43,CONFIGURATION!$B$10,\"BMA\",CONFIGURATION!$B$1,\"bscr\",CONFIGURATION!$B$12)","v":"Mapped"},null,{"$f":"XBRLMap(I11,I$41&\".\"&$T11,I$42,I$43,CONFIGURATION!$B$10,\"BMA\",CONFIGURATION!$B$1,\"bscr\",CONFIGURATION!$B$12)","v":"Mapped"},null,{"$f":"XBRLMap(K11,K$41&\".\"&$T11,K$42,K$43,CONFIGURATION!$B$10,\"BMA\",CONFIGURATION!$B$1,\"bscr\")","v":"Mapped"},null,{"$f":"XBRLMap(M11,M$41&\".\"&$T11,M$42,M$43,CONFIGURATION!$B$10,\"BMA\",CONFIGURATION!$B$1,\"bscr\")","v":"Mapped"},null,{"$f":"XBRLMap(O11,O$41&\".\"&$T11,O$42,O$43,CONFIGURATION!$B$10,\"BMA\",CONFIGURATION!$B$1,\"bscr\")","v":"Mapped"},null,{"$f":"XBRLMap(Q11,Q$41&\".\"&$T11,Q$42,Q$43,CONFIGURATION!$B$10,\"BMA\",CONFIGURATION!$B$1,\"bscr\")","v":"Mapped"}]
[null,null,null,null,{"$f":"XBRLMap(E12,E$41&\".\"&$T12,E$42,E$43,CONFIGURATION!$B$10,\"BMA\",CONFIGURATION!$B$1,\"bscr\",CONFIGURATION!$B$12)","v":"Mapped"},null,{"$f":"XBRLMap(G12,G$41&\".\"&$T12,G$42,G$43,CONFIGURATION!$B$10,\"BMA\",CONFIGURATION!$B$1,\"bscr\",CONFIGURATION!$B$12)","v":"Mapped"},null,{"$f":"XBRLMap(I12,I$41&\".\"&$T12,I$42,I$43,CONFIGURATION!$B$10,\"BMA\",CONFIGURATION!$B$1,\"bscr\",CONFIGURATION!$B$12)","v":"Mapped"},null,{"$f":"XBRLMap(K12,K$41&\".\"&$T12,K$42,K$43,CONFIGURATION!$B$10,\"BMA\",CONFIGURATION!$B$1,\"bscr\")","v":"Mapped"},null,{"$f":"XBRLMap(M12,M$41&\".\"&$T12,M$42,M$43,CONFIGURATION!$B$10,\"BMA\",CONFIGURATION!$B$1,\"bscr\")","v":"Mapped"},null,{"$f":"XBRLMap(O12,O$41&\".\"&$T12,O$42,O$43,CONFIGURATION!$B$10,\"BMA\",CONFIGURATION!$B$1,\"bscr\")","v":"Mapped"},null,{"$f":"XBRLMap(Q12,Q$41&\".\"&$T12,Q$42,Q$43,CONFIGURATION!$B$10,\"BMA\",CONFIGURATION!$B$1,\"bscr\")","v":"Mapped"}]
[null,null,null,null,{"$f":"XBRLMap(E13,E$41&\".\"&$T13,E$42,E$43,CONFIGURATION!$B$10,\"BMA\",CONFIGURATION!$B$1,\"bscr\",CONFIGURATION!$B$12)","v":"Mapped"},null,{"$f":"XBRLMap(G13,G$41&\".\"&$T13,G$42,G$43,CONFIGURATION!$B$10,\"BMA\",CONFIGURATION!$B$1,\"bscr\",CONFIGURATION!$B$12)","v":"Mapped"},null,{"$f":"XBRLMap(I13,I$41&\".\"&$T13,I$42,I$43,CONFIGURATION!$B$10,\"BMA\",CONFIGURATION!$B$1,\"bscr\",CONFIGURATION!$B$12)","v":"Mapped"},null,{"$f":"XBRLMap(K13,K$41&\".\"&$T13,K$42,K$43,CONFIGURATION!$B$10,\"BMA\",CONFIGURATION!$B$1,\"bscr\")","v":"Mapped"},null,{"$f":"XBRLMap(M13,M$41&\".\"&$T13,M$42,M$43,CONFIGURATION!$B$10,\"BMA\",CONFIGURATION!$B$1,\"bscr\")","v":"Mapped"},null,{"$f":"XBRLMap(O13,O$41&\".\"&$T13,O$42,O$43,CONFIGURATION!$B$10,\"BMA\",CONFIGURATION!$B$1,\"bscr\")","v":"Mapped"},null,{"$f":"XBRLMap(Q13,Q$41&\".\"&$T13,Q$42,Q$43,CONFIGURATION!$B$10,\"BMA\",CONFIGURATION!$B$1,\"bscr\")","v":"Mapped"}]
[]
[null,null,null,null,{"$f":"XBRLMap(E15,E$41&\".\"&$T15,E$42,E$43,CONFIGURATION!$B$10,\"BMA\",CONFIGURATION!$B$1,\"bscr\",CONFIGURATION!$B$12)","v":"Mapped"},null,{"$f":"XBRLMap(G15,G$41&\".\"&$T15,G$42,G$43,CONFIGURATION!$B$10,\"BMA\",CONFIGURATION!$B$1,\"bscr\",CONFIGURATION!$B$12)","v":"Mapped"},null,{"$f":"XBRLMap(I15,I$41&\".\"&$T15,I$42,I$43,CONFIGURATION!$B$10,\"BMA\",CONFIGURATION!$B$1,\"bscr\",CONFIGURATION!$B$12)","v":"Mapped"},null,{"$f":"XBRLMap(K15,K$41&\".\"&$T15,K$42,K$43,CONFIGURATION!$B$10,\"BMA\",CONFIGURATION!$B$1,\"bscr\")","v":"Mapped"},null,{"$f":"XBRLMap(M15,M$41&\".\"&$T15,M$42,M$43,CONFIGURATION!$B$10,\"BMA\",CONFIGURATION!$B$1,\"bscr\")","v":"Mapped"},null,{"$f":"XBRLMap(O15,O$41&\".\"&$T15,O$42,O$43,CONFIGURATION!$B$10,\"BMA\",CONFIGURATION!$B$1,\"bscr\")","v":"Mapped"},null,{"$f":"XBRLMap(Q15,Q$41&\".\"&$T15,Q$42,Q$43,CONFIGURATION!$B$10,\"BMA\",CONFIGURATION!$B$1,\"bscr\")","v":"Mapped"}]
[null,null,null,null,{"$f":"XBRLMap(E16,E$41&\".\"&$T16,E$42,E$43,CONFIGURATION!$B$10,\"BMA\",CONFIGURATION!$B$1,\"bscr\",CONFIGURATION!$B$12)","v":"Mapped"},null,{"$f":"XBRLMap(G16,G$41&\".\"&$T16,G$42,G$43,CONFIGURATION!$B$10,\"BMA\",CONFIGURATION!$B$1,\"bscr\",CONFIGURATION!$B$12)","v":"Mapped"},null,{"$f":"XBRLMap(I16,I$41&\".\"&$T16,I$42,I$43,CONFIGURATION!$B$10,\"BMA\",CONFIGURATION!$B$1,\"bscr\",CONFIGURATION!$B$12)","v":"Mapped"},null,{"$f":"XBRLMap(K16,K$41&\".\"&$T16,K$42,K$43,CONFIGURATION!$B$10,\"BMA\",CONFIGURATION!$B$1,\"bscr\")","v":"Mapped"},null,{"$f":"XBRLMap(M16,M$41&\".\"&$T16,M$42,M$43,CONFIGURATION!$B$10,\"BMA\",CONFIGURATION!$B$1,\"bscr\")","v":"Mapped"},null,{"$f":"XBRLMap(O16,O$41&\".\"&$T16,O$42,O$43,CONFIGURATION!$B$10,\"BMA\",CONFIGURATION!$B$1,\"bscr\")","v":"Mapped"},null,{"$f":"XBRLMap(Q16,Q$41&\".\"&$T16,Q$42,Q$43,CONFIGURATION!$B$10,\"BMA\",CONFIGURATION!$B$1,\"bscr\")","v":"Mapped"}]
[null,null,null,null,{"$f":"XBRLMap(E17,E$41&\".\"&$T17,E$42,E$43,CONFIGURATION!$B$10,\"BMA\",CONFIGURATION!$B$1,\"bscr\",CONFIGURATION!$B$12)","v":"Mapped"},null,{"$f":"XBRLMap(G17,G$41&\".\"&$T17,G$42,G$43,CONFIGURATION!$B$10,\"BMA\",CONFIGURATION!$B$1,\"bscr\",CONFIGURATION!$B$12)","v":"Mapped"},null,{"$f":"XBRLMap(I17,I$41&\".\"&$T17,I$42,I$43,CONFIGURATION!$B$10,\"BMA\",CONFIGURATION!$B$1,\"bscr\",CONFIGURATION!$B$12)","v":"Mapped"},null,{"$f":"XBRLMap(K17,K$41&\".\"&$T17,K$42,K$43,CONFIGURATION!$B$10,\"BMA\",CONFIGURATION!$B$1,\"bscr\")","v":"Mapped"},null,{"$f":"XBRLMap(M17,M$41&\".\"&$T17,M$42,M$43,CONFIGURATION!$B$10,\"BMA\",CONFIGURATION!$B$1,\"bscr\")","v":"Mapped"},null,{"$f":"XBRLMap(O17,O$41&\".\"&$T17,O$42,O$43,CONFIGURATION!$B$10,\"BMA\",CONFIGURATION!$B$1,\"bscr\")","v":"Mapped"},null,{"$f":"XBRLMap(Q17,Q$41&\".\"&$T17,Q$42,Q$43,CONFIGURATION!$B$10,\"BMA\",CONFIGURATION!$B$1,\"bscr\")","v":"Mapped"}]
[null,null,null,null,{"$f":"XBRLMap(E18,E$41&\".\"&$T18,E$42,E$43,CONFIGURATION!$B$10,\"BMA\",CONFIGURATION!$B$1,\"bscr\",CONFIGURATION!$B$12)","v":"Mapped"},null,{"$f":"XBRLMap(G18,G$41&\".\"&$T18,G$42,G$43,CONFIGURATION!$B$10,\"BMA\",CONFIGURATION!$B$1,\"bscr\",CONFIGURATION!$B$12)","v":"Mapped"},null,{"$f":"XBRLMap(I18,I$41&\".\"&$T18,I$42,I$43,CONFIGURATION!$B$10,\"BMA\",CONFIGURATION!$B$1,\"bscr\",CONFIGURATION!$B$12)","v":"Mapped"},null,{"$f":"XBRLMap(K18,K$41&\".\"&$T18,K$42,K$43,CONFIGURATION!$B$10,\"BMA\",CONFIGURATION!$B$1,\"bscr\")","v":"Mapped"},null,{"$f":"XBRLMap(M18,M$41&\".\"&$T18,M$42,M$43,CONFIGURATION!$B$10,\"BMA\",CONFIGURATION!$B$1,\"bscr\")","v":"Mapped"},null,{"$f":"XBRLMap(O18,O$41&\".\"&$T18,O$42,O$43,CONFIGURATION!$B$10,\"BMA\",CONFIGURATION!$B$1,\"bscr\")","v":"Mapped"},null,{"$f":"XBRLMap(Q18,Q$41&\".\"&$T18,Q$42,Q$43,CONFIGURATION!$B$10,\"BMA\",CONFIGURATION!$B$1,\"bscr\")","v":"Mapped"}]
[null,null,null,null,{"$f":"XBRLMap(E19,E$41&\".\"&$T19,E$42,E$43,CONFIGURATION!$B$10,\"BMA\",CONFIGURATION!$B$1,\"bscr\",CONFIGURATION!$B$12)","v":"Mapped"},null,{"$f":"XBRLMap(G19,G$41&\".\"&$T19,G$42,G$43,CONFIGURATION!$B$10,\"BMA\",CONFIGURATION!$B$1,\"bscr\",CONFIGURATION!$B$12)","v":"Mapped"},null,{"$f":"XBRLMap(I19,I$41&\".\"&$T19,I$42,I$43,CONFIGURATION!$B$10,\"BMA\",CONFIGURATION!$B$1,\"bscr\",CONFIGURATION!$B$12)","v":"Mapped"},null,{"$f":"XBRLMap(K19,K$41&\".\"&$T19,K$42,K$43,CONFIGURATION!$B$10,\"BMA\",CONFIGURATION!$B$1,\"bscr\")","v":"Mapped"},null,{"$f":"XBRLMap(M19,M$41&\".\"&$T19,M$42,M$43,CONFIGURATION!$B$10,\"BMA\",CONFIGURATION!$B$1,\"bscr\")","v":"Mapped"},null,{"$f":"XBRLMap(O19,O$41&\".\"&$T19,O$42,O$43,CONFIGURATION!$B$10,\"BMA\",CONFIGURATION!$B$1,\"bscr\")","v":"Mapped"},null,{"$f":"XBRLMap(Q19,Q$41&\".\"&$T19,Q$42,Q$43,CONFIGURATION!$B$10,\"BMA\",CONFIGURATION!$B$1,\"bscr\")","v":"Mapped"}]
[]
[null,null,null,null,{"$f":"XBRLMap(E21,E$41&\".\"&$T21,E$42,E$43,CONFIGURATION!$B$10,\"BMA\",CONFIGURATION!$B$1,\"bscr\",CONFIGURATION!$B$12)","v":"Mapped"},null,{"$f":"XBRLMap(G21,G$41&\".\"&$T21,G$42,G$43,CONFIGURATION!$B$10,\"BMA\",CONFIGURATION!$B$1,\"bscr\",CONFIGURATION!$B$12)","v":"Mapped"},null,{"$f":"XBRLMap(I21,I$41&\".\"&$T21,I$42,I$43,CONFIGURATION!$B$10,\"BMA\",CONFIGURATION!$B$1,\"bscr\",CONFIGURATION!$B$12)","v":"Mapped"},null,{"$f":"XBRLMap(K21,K$41&\".\"&$T21,K$42,K$43,CONFIGURATION!$B$10,\"BMA\",CONFIGURATION!$B$1,\"bscr\")","v":"Mapped"},null,{"$f":"XBRLMap(M21,M$41&\".\"&$T21,M$42,M$43,CONFIGURATION!$B$10,\"BMA\",CONFIGURATION!$B$1,\"bscr\")","v":"Mapped"},null,{"$f":"XBRLMap(O21,O$41&\".\"&$T21,O$42,O$43,CONFIGURATION!$B$10,\"BMA\",CONFIGURATION!$B$1,\"bscr\")","v":"Mapped"},null,{"$f":"XBRLMap(Q21,Q$41&\".\"&$T21,Q$42,Q$43,CONFIGURATION!$B$10,\"BMA\",CONFIGURATION!$B$1,\"bscr\")","v":"Mapped"}]
[null,null,null,null,{"$f":"XBRLMap(E22,E$41&\".\"&$T22,E$42,E$43,CONFIGURATION!$B$10,\"BMA\",CONFIGURATION!$B$1,\"bscr\",CONFIGURATION!$B$12)","v":"Mapped"},null,{"$f":"XBRLMap(G22,G$41&\".\"&$T22,G$42,G$43,CONFIGURATION!$B$10,\"BMA\",CONFIGURATION!$B$1,\"bscr\",CONFIGURATION!$B$12)","v":"Mapped"},null,{"$f":"XBRLMap(I22,I$41&\".\"&$T22,I$42,I$43,CONFIGURATION!$B$10,\"BMA\",CONFIGURATION!$B$1,\"bscr\",CONFIGURATION!$B$12)","v":"Mapped"},null,{"$f":"XBRLMap(K22,K$41&\".\"&$T22,K$42,K$43,CONFIGURATION!$B$10,\"BMA\",CONFIGURATION!$B$1,\"bscr\")","v":"Mapped"},null,{"$f":"XBRLMap(M22,M$41&\".\"&$T22,M$42,M$43,CONFIGURATION!$B$10,\"BMA\",CONFIGURATION!$B$1,\"bscr\")","v":"Mapped"},null,{"$f":"XBRLMap(O22,O$41&\".\"&$T22,O$42,O$43,CONFIGURATION!$B$10,\"BMA\",CONFIGURATION!$B$1,\"bscr\")","v":"Mapped"},null,{"$f":"XBRLMap(Q22,Q$41&\".\"&$T22,Q$42,Q$43,CONFIGURATION!$B$10,\"BMA\",CONFIGURATION!$B$1,\"bscr\")","v":"Mapped"}]
[null,null,null,null,{"$f":"XBRLMap(E23,E$41&\".\"&$T23,E$42,E$43,CONFIGURATION!$B$10,\"BMA\",CONFIGURATION!$B$1,\"bscr\",CONFIGURATION!$B$12)","v":"Mapped"},null,{"$f":"XBRLMap(G23,G$41&\".\"&$T23,G$42,G$43,CONFIGURATION!$B$10,\"BMA\",CONFIGURATION!$B$1,\"bscr\",CONFIGURATION!$B$12)","v":"Mapped"},null,{"$f":"XBRLMap(I23,I$41&\".\"&$T23,I$42,I$43,CONFIGURATION!$B$10,\"BMA\",CONFIGURATION!$B$1,\"bscr\",CONFIGURATION!$B$12)","v":"Mapped"},null,{"$f":"XBRLMap(K23,K$41&\".\"&$T23,K$42,K$43,CONFIGURATION!$B$10,\"BMA\",CONFIGURATION!$B$1,\"bscr\")","v":"Mapped"},null,{"$f":"XBRLMap(M23,M$41&\".\"&$T23,M$42,M$43,CONFIGURATION!$B$10,\"BMA\",CONFIGURATION!$B$1,\"bscr\")","v":"Mapped"},null,{"$f":"XBRLMap(O23,O$41&\".\"&$T23,O$42,O$43,CONFIGURATION!$B$10,\"BMA\",CONFIGURATION!$B$1,\"bscr\")","v":"Mapped"},null,{"$f":"XBRLMap(Q23,Q$41&\".\"&$T23,Q$42,Q$43,CONFIGURATION!$B$10,\"BMA\",CONFIGURATION!$B$1,\"bscr\")","v":"Mapped"}]
[null,null,null,null,{"$f":"XBRLMap(E24,E$41&\".\"&$T24,E$42,E$43,CONFIGURATION!$B$10,\"BMA\",CONFIGURATION!$B$1,\"bscr\",CONFIGURATION!$B$12)","v":"Mapped"},null,{"$f":"XBRLMap(G24,G$41&\".\"&$T24,G$42,G$43,CONFIGURATION!$B$10,\"BMA\",CONFIGURATION!$B$1,\"bscr\",CONFIGURATION!$B$12)","v":"Mapped"},null,{"$f":"XBRLMap(I24,I$41&\".\"&$T24,I$42,I$43,CONFIGURATION!$B$10,\"BMA\",CONFIGURATION!$B$1,\"bscr\",CONFIGURATION!$B$12)","v":"Mapped"},null,{"$f":"XBRLMap(K24,K$41&\".\"&$T24,K$42,K$43,CONFIGURATION!$B$10,\"BMA\",CONFIGURATION!$B$1,\"bscr\")","v":"Mapped"},null,{"$f":"XBRLMap(M24,M$41&\".\"&$T24,M$42,M$43,CONFIGURATION!$B$10,\"BMA\",CONFIGURATION!$B$1,\"bscr\")","v":"Mapped"},null,{"$f":"XBRLMap(O24,O$41&\".\"&$T24,O$42,O$43,CONFIGURATION!$B$10,\"BMA\",CONFIGURATION!$B$1,\"bscr\")","v":"Mapped"},null,{"$f":"XBRLMap(Q24,Q$41&\".\"&$T24,Q$42,Q$43,CONFIGURATION!$B$10,\"BMA\",CONFIGURATION!$B$1,\"bscr\")","v":"Mapped"}]
[null,null,null,null,{"$f":"XBRLMap(E25,E$41&\".\"&$T25,E$42,E$43,CONFIGURATION!$B$10,\"BMA\",CONFIGURATION!$B$1,\"bscr\",CONFIGURATION!$B$12)","v":"Mapped"},null,{"$f":"XBRLMap(G25,G$41&\".\"&$T25,G$42,G$43,CONFIGURATION!$B$10,\"BMA\",CONFIGURATION!$B$1,\"bscr\",CONFIGURATION!$B$12)","v":"Mapped"},null,{"$f":"XBRLMap(I25,I$41&\".\"&$T25,I$42,I$43,CONFIGURATION!$B$10,\"BMA\",CONFIGURATION!$B$1,\"bscr\",CONFIGURATION!$B$12)","v":"Mapped"},null,{"$f":"XBRLMap(K25,K$41&\".\"&$T25,K$42,K$43,CONFIGURATION!$B$10,\"BMA\",CONFIGURATION!$B$1,\"bscr\")","v":"Mapped"},null,{"$f":"XBRLMap(M25,M$41&\".\"&$T25,M$42,M$43,CONFIGURATION!$B$10,\"BMA\",CONFIGURATION!$B$1,\"bscr\")","v":"Mapped"},null,{"$f":"XBRLMap(O25,O$41&\".\"&$T25,O$42,O$43,CONFIGURATION!$B$10,\"BMA\",CONFIGURATION!$B$1,\"bscr\")","v":"Mapped"},null,{"$f":"XBRLMap(Q25,Q$41&\".\"&$T25,Q$42,Q$43,CONFIGURATION!$B$10,\"BMA\",CONFIGURATION!$B$1,\"bscr\")","v":"Mapped"}]
[null,null,null,null,{"$f":"XBRLMap(E26,E$41&\".\"&$T26,E$42,E$43,CONFIGURATION!$B$10,\"BMA\",CONFIGURATION!$B$1,\"bscr\",CONFIGURATION!$B$12)","v":"Mapped"},null,{"$f":"XBRLMap(G26,G$41&\".\"&$T26,G$42,G$43,CONFIGURATION!$B$10,\"BMA\",CONFIGURATION!$B$1,\"bscr\",CONFIGURATION!$B$12)","v":"Mapped"},null,{"$f":"XBRLMap(I26,I$41&\".\"&$T26,I$42,I$43,CONFIGURATION!$B$10,\"BMA\",CONFIGURATION!$B$1,\"bscr\",CONFIGURATION!$B$12)","v":"Mapped"},null,{"$f":"XBRLMap(K26,K$41&\".\"&$T26,K$42,K$43,CONFIGURATION!$B$10,\"BMA\",CONFIGURATION!$B$1,\"bscr\")","v":"Mapped"},null,{"$f":"XBRLMap(M26,M$41&\".\"&$T26,M$42,M$43,CONFIGURATION!$B$10,\"BMA\",CONFIGURATION!$B$1,\"bscr\")","v":"Mapped"},null,{"$f":"XBRLMap(O26,O$41&\".\"&$T26,O$42,O$43,CONFIGURATION!$B$10,\"BMA\",CONFIGURATION!$B$1,\"bscr\")","v":"Mapped"},null,{"$f":"XBRLMap(Q26,Q$41&\".\"&$T26,Q$42,Q$43,CONFIGURATION!$B$10,\"BMA\",CONFIGURATION!$B$1,\"bscr\")","v":"Mapped"}]
[null,null,null,null,{"$f":"XBRLMap(E27,E$41&\".\"&$T27,E$42,E$43,CONFIGURATION!$B$10,\"BMA\",CONFIGURATION!$B$1,\"bscr\",CONFIGURATION!$B$12)","v":"Mapped"},null,{"$f":"XBRLMap(G27,G$41&\".\"&$T27,G$42,G$43,CONFIGURATION!$B$10,\"BMA\",CONFIGURATION!$B$1,\"bscr\",CONFIGURATION!$B$12)","v":"Mapped"},null,{"$f":"XBRLMap(I27,I$41&\".\"&$T27,I$42,I$43,CONFIGURATION!$B$10,\"BMA\",CONFIGURATION!$B$1,\"bscr\",CONFIGURATION!$B$12)","v":"Mapped"},null,{"$f":"XBRLMap(K27,K$41&\".\"&$T27,K$42,K$43,CONFIGURATION!$B$10,\"BMA\",CONFIGURATION!$B$1,\"bscr\")","v":"Mapped"},null,{"$f":"XBRLMap(M27,M$41&\".\"&$T27,M$42,M$43,CONFIGURATION!$B$10,\"BMA\",CONFIGURATION!$B$1,\"bscr\")","v":"Mapped"},null,{"$f":"XBRLMap(O27,O$41&\".\"&$T27,O$42,O$43,CONFIGURATION!$B$10,\"BMA\",CONFIGURATION!$B$1,\"bscr\")","v":"Mapped"},null,{"$f":"XBRLMap(Q27,Q$41&\".\"&$T27,Q$42,Q$43,CONFIGURATION!$B$10,\"BMA\",CONFIGURATION!$B$1,\"bscr\")","v":"Mapped"}]
[null,null,null,null,{"$f":"XBRLMap(E28,E$41&\".\"&$T28,E$42,E$43,CONFIGURATION!$B$10,\"BMA\",CONFIGURATION!$B$1,\"bscr\",CONFIGURATION!$B$12)","v":"Mapped"},null,{"$f":"XBRLMap(G28,G$41&\".\"&$T28,G$42,G$43,CONFIGURATION!$B$10,\"BMA\",CONFIGURATION!$B$1,\"bscr\",CONFIGURATION!$B$12)","v":"Mapped"},null,{"$f":"XBRLMap(I28,I$41&\".\"&$T28,I$42,I$43,CONFIGURATION!$B$10,\"BMA\",CONFIGURATION!$B$1,\"bscr\",CONFIGURATION!$B$12)","v":"Mapped"}]
[]
[]
[]
[]
[null,null,{"$f":"XBRLMap(E36,T36,C$42,C$43,CONFIGURATION!$B$10,\"BMA\",CONFIGURATION!$B$1,\"bscr\")","v":"Mapped"}]
[]
[null,null,{"$f":"XBRLMap(E38,T38,C$42,C$43,CONFIGURATION!$B$10,\"BMA\",CONFIGURATION!$B$1,\"bscr\")","v":"Mapped"}]

{"sheet":"Schedule VI (EBS)","index":47,"n_rows":70,"n_cols":34,"rows_kept":70,"cut":false,"hidden":false,"merged":[[0,14,0,16],[2,14,2,16],[1,2,1,3],[2,2,2,3],[3,2,3,3],[3,14,3,16]]}
[null,null,"SCHEDULE OF FIXED INCOME SECURITIES",null,null,null,null,null,null,null,null,null,null,null,{"$f":"HYPERLINK(\"#'Index'!A1\",\"Return to Index\")","v":"Return to Index"}]
[null,null,{"$f":"'Schedule V'!B2","v":"Enter Company Name"}]
[null,null,{"$f":"'Schedule V'!C3","v":"2019-12-31"},null,null,null,null,null,null,null,null,null,null,null,"SCHEDULE VI (EBS)"]
[null,null,{"$f":"'Schedule V(e)'!C4:D4","v":"United States Dollars"}]
[]
[null,null,"Security Type",null,"Amount per Form 4EBS, Lines 2(b) and 3(b)",null,"Face Value",null,"Fair Value",null,"Average YTM",null,"Average Rating",{"$f":"YEAR('Insurer Information'!C3)","v":2019},"Effective Duration",null,"Effective Convexity"]
[]
[null,1,"U.S. Government ",null,null,null,null,null,null,null,null,null,null,null,null,null,null,null,null,"",null,"bma_SecurityUSGovernmentAmountPerForm1ALines2bAnd3b",null,"bma_SecurityUSGovernmentFaceValue",null,"bma_SecurityUSGovernmentFairValue",null,"bma_SecurityUSGovernmentAverageYTM",null,"bma_SecurityUSGovernmentAverageRating",null,"bma_SecurityUSGovernmentEffectiveDuration",null,"bma_SecurityUSGovernmentEffectiveConvexity"]
[null,null,"(a) U.S. Government Federal",null,{"$f":"Import!M4285","v":0},null,{"$f":"Import!M4303","v":0},null,{"$f":"Import!M4321","v":0},null,{"$f":"Import!M4339","v":0},null,{"$f":"Import!M4356","v":0},null,{"$f":"Import!M4373","v":0},null,{"$f":"Import!M4390","v":0},null,null,"brrt_SecurityTypeAxis_brrt_USGovernmentMember",null,"bma_SecurityUSGovernmentAmountPerForm1ALines2bAnd3b",null,"bma_SecurityUSGovernmentFaceValue",null,"bma_SecurityUSGovernmentFairValue",null,"bma_SecurityUSGovernmentAverageYTM",null,"bma_SecurityUSGovernmentAverageRating",null,"bma_SecurityUSGovernmentEffectiveDuration",null,"bma_SecurityUSGovernmentEffectiveConvexity"]
[null,null,"(b) U.S. Government Agency - mortgage-backed securities",null,{"$f":"Import!M4286","v":0},null,{"$f":"Import!M4304","v":0},null,{"$f":"Import!M4322","v":0},null,{"$f":"Import!M4340","v":0},null,{"$f":"Import!M4357","v":0},null,{"$f":"Import!M4374","v":0},null,{"$f":"Import!M4391","v":0},null,null,"brrt_SecurityTypeAxis_brrt_USGovernmentAgencyMortgageBackedSecuritiesMember",null,"bma_SecurityUSGovernmentAgencyMortgageBackedSecuritiesAmountPerForm1ALines2bAnd3b",null,"bma_SecurityUSGovernmentAgencyMortgageBackedSecuritiesFaceValue",null,"bma_SecurityUSGovernmentAgencyMortgageBackedSecuritiesFairValue",null,"bma_SecurityUSGovernmentAgencyMortgageBackedSecuritiesAverageYTM",null,"bma_SecurityUSGovernmentAgencyMortgageBackedSecuritiesAverageRating",null,"bma_SecurityUSGovernmentAgencyMortgageBackedSecuritiesEffectiveDuration",null,"bma_SecurityUSGovernmentAgencyMortgageBackedSecuritiesEffectiveConvexity"]
[null,null,"(c) U.S. Government Agency - other",null,{"$f":"Import!M4287","v":0},null,{"$f":"Import!M4305","v":0},null,{"$f":"Import!M4323","v":0},null,{"$f":"Import!M4341","v":0},null,{"$f":"Import!M4358","v":0},null,{"$f":"Import!M4375","v":0},null,{"$f":"Import!M4392","v":0},null,null,"brrt_SecurityTypeAxis_brrt_USGovernmentAgencyOtherMember",null,"bma_SecurityUSGovernmentAgencyOtherAmountPerForm1ALines2bAnd3b",null,"bma_SecurityUSGovernmentAgencyOtherFaceValue",null,"bma_SecurityUSGovernmentAgencyOtherFairValue",null,"bma_SecurityUSGovernmentAgencyOtherAverageYTM",null,"bma_SecurityUSGovernmentAgencyOtherAverageRating",null,"bma_SecurityUSGovernmentAgencyOtherEffectiveDuration",null,"bma_SecurityUSGovernmentAgencyOtherEffectiveConvexity"]
[null,2,"Non-U.S. Government",null,{"$f":"Import!M4288","v":0},null,{"$f":"Import!M4306","v":0},null,{"$f":"Import!M4324","v":0},null,{"$f":"Import!M4342","v":0},null,{"$f":"Import!M4359","v":0},null,{"$f":"Import!M4376","v":0},null,{"$f":"Import!M4393","v":0},null,null,"brrt_SecurityTypeAxis_brrt_NonUSGovernmentMember",null,"bma_SecurityCorporateSecuritiesAmountPerForm1ALines2bAnd3b",null,"bma_SecurityCorporateSecuritiesFaceValue",null,"bma_SecurityCorporateSecuritiesFairValue",null,"bma_SecurityCorporateSecuritiesAverageYTM",null,"bma_SecurityCorporateSecuritiesAverageRating",null,"bma_SecurityCorporateSecuritiesEffectiveDuration",null,"bma_SecurityCorporateSecuritiesEffectiveConvexity"]
[null,3,"States, Municipalities, and Political Subdivision",null,{"$f":"Import!M4289","v":0},null,{"$f":"Import!M4307","v":0},null,{"$f":"Import!M4325","v":0},null,{"$f":"Import!M4343","v":0},null,{"$f":"Import!M4360","v":0},null,{"$f":"Import!M4377","v":0},null,{"$f":"Import!M4394","v":0},null,null,"brrt_SecurityTypeAxis_brrt_StatesMunicipalitiesAndPoliticalSubdivisionMember",null,"bma_SecurityCorporateSecuritiesAmountPerForm1ALines2bAnd3b",null,"bma_SecurityCorporateSecuritiesFaceValue",null,"bma_SecurityCorporateSecuritiesFairValue",null,"bma_SecurityCorporateSecuritiesAverageYTM",null,"bma_SecurityCorporateSecuritiesAverageRating",null,"bma_SecurityCorporateSecuritiesEffectiveDuration",null,"bma_SecurityCorporateSecuritiesEffectiveConvexity"]
[null,4,"Corporate Securities",null,null,null,null,null,null,null,null,null,null,null,null,null,null,null,null,null,null,"bma_SecurityAssetBackedSecuritiesAmountPerForm1ALines2bAnd3b",null,"bma_SecurityAssetBackedSecuritiesFaceValue",null,"bma_SecurityAssetBackedSecuritiesFairValue",null,"bma_SecurityAssetBackedSecuritiesAverageYTM",null,"bma_SecurityAssetBackedSecuritiesAverageRating",null,"bma_SecurityAssetBackedSecuritiesEffectiveDuration",null,"bma_SecurityAssetBackedSecuritiesEffectiveConvexity"]
[null,null,"(a) U.S. Government-backed Corporate",null,{"$f":"Import!M4290","v":0},null,{"$f":"Import!M4308","v":0},null,{"$f":"Import!M4326","v":0},null,{"$f":"Import!M4344","v":0},null,{"$f":"Import!M4361","v":0},null,{"$f":"Import!M4378","v":0},null,{"$f":"Import!M4395","v":0},null,null,"brrt_SecurityTypeAxis_brrt_USGovernmentBackedCorporateSecuritiesMember"]
[null,null,"(b) Non-U.S. Government-backed Corporate",null,{"$f":"Import!M4291","v":0},null,{"$f":"Import!M4309","v":0},null,{"$f":"Import!M4327","v":0},null,{"$f":"Import!M4345","v":0},null,{"$f":"Import!M4362","v":0},null,{"$f":"Import!M4379","v":0},null,{"$f":"Import!M4396","v":0},null,null,"brrt_SecurityTypeAxis_brrt_NonUSGovernmentBackedCorporateSecuritiesMember"]
[null,null,"(c) FDIC Guaranteed Corporate",null,{"$f":"Import!M4292","v":0},null,{"$f":"Import!M4310","v":0},null,{"$f":"Import!M4328","v":0},null,{"$f":"Import!M4346","v":0},null,{"$f":"Import!M4363","v":0},null,{"$f":"Import!M4380","v":0},null,{"$f":"Import!M4397","v":0},null,null,"brrt_SecurityTypeAxis_brrt_FDICGuaranteedCorporateSecuritiesMember"]
[null,null,"(d) Other Corporate",null,{"$f":"Import!M4293","v":0},null,{"$f":"Import!M4311","v":0},null,{"$f":"Import!M4329","v":0},null,{"$f":"Import!M4347","v":0},null,{"$f":"Import!M4364","v":0},null,{"$f":"Import!M4381","v":0},null,{"$f":"Import!M4398","v":0},null,null,"brrt_SecurityTypeAxis_brrt_OtherCorporateSecuritiesMember"]
[null,5,"Asset-backed Securities",null,{"$f":"Import!M4294","v":0},null,{"$f":"Import!M4312","v":0},null,{"$f":"Import!M4330","v":0},null,{"$f":"Import!M4348","v":0},null,{"$f":"Import!M4365","v":0},null,{"$f":"Import!M4382","v":0},null,{"$f":"Import!M4399","v":0},null,null,"brrt_SecurityTypeAxis_brrt_AssetBackedSecuritiesMember",null,"bma_SecurityMortgageBackedSecuritiesAmountPerForm1ALines2bAnd3b",null,"bma_SecurityMortgageBackedSecuritiesFaceValue",null,"bma_SecurityMortgageBackedSecuritiesFairValue",null,"bma_SecurityMortgageBackedSecuritiesAverageYTM",null,"bma_SecurityMortgageBackedSecuritiesAverageRating",null,"bma_SecurityMortgageBackedSecuritiesEffectiveDuration",null,"bma_SecurityMortgageBackedSecuritiesEffectiveConvexity"]
[null,6,"Mortgage-backed Securities",null,null,null,null,null,null,null,null,null,null,null,null,null,null,null,null,null,null,"bma_SecurityMutualFundsAmountPerForm1ALines2bAnd3b",null,"bma_SecurityMutualFundsFaceValue",null,"bma_SecurityMutualFundsFairValue",null,"bma_SecurityMutualFundsAverageYTM",null,"bma_SecurityMutualFundsAverageRating",null,"bma_SecurityMutualFundsEffectiveDuration",null,"bma_SecurityMutualFundsEffectiveConvexity"]
[null,null,"(a) Residential Subprime",null,{"$f":"Import!M4295","v":0},null,{"$f":"Import!M4313","v":0},null,{"$f":"Import!M4331","v":0},null,{"$f":"Import!M4349","v":0},null,{"$f":"Import!M4366","v":0},null,{"$f":"Import!M4383","v":0},null,{"$f":"Import!M4400","v":0},null,null,"brrt_SecurityTypeAxis_brrt_MortgageBackedSecuritiesSubprimeMember",null,"bma_SecurityOther1AmountPerForm1ALines2bAnd3b",null,"bma_SecurityOther1FaceValue",null,"bma_SecurityOther1FairValue",null,"bma_SecurityOther1AverageYTM",null,"bma_SecurityOther1AverageRating",null,"bma_SecurityOther1EffectiveDuration",null,"bma_SecurityOther1EffectiveConvexity"]
[null,null,"(b) Residential Non-subprime",null,{"$f":"Import!M4296","v":0},null,{"$f":"Import!M4314","v":0},null,{"$f":"Import!M4332","v":0},null,{"$f":"Import!M4350","v":0},null,{"$f":"Import!M4367","v":0},null,{"$f":"Import!M4384","v":0},null,{"$f":"Import!M4401","v":0},null,null,"brrt_SecurityTypeAxis_brrt_MortgageBackedSecuritiesNonSubprimeMember",null,"bma_SecurityOther2AmountPerForm1ALines2bAnd3b",null,"bma_SecurityOther2FaceValue",null,"bma_SecurityOther2FairValue",null,"bma_SecurityOther2AverageYTM",null,"bma_SecurityOther2AverageRating",null,"bma_SecurityOther2EffectiveDuration",null,"bma_SecurityOther2EffectiveConvexity"]
[null,null,"(c) Commercial",null,{"$f":"Import!M4297","v":0},null,{"$f":"Import!M4315","v":0},null,{"$f":"Import!M4333","v":0},null,{"$f":"Import!M4351","v":0},null,{"$f":"Import!M4368","v":0},null,{"$f":"Import!M4385","v":0},null,{"$f":"Import!M4402","v":0},null,null,"brrt_SecurityTypeAxis_brrt_MortgageBackedSecuritiesCommercialMember",null,"bma_SecurityOther2AmountPerForm1ALines2bAnd3b",null,"bma_SecurityOther2FaceValue",null,"bma_SecurityOther2FairValue",null,"bma_SecurityOther2AverageYTM",null,"bma_SecurityOther2AverageRating",null,"bma_SecurityOther2EffectiveDuration",null,"bma_SecurityOther2EffectiveConvexity"]
[null,7,"Mutual Funds",null,{"$f":"Import!M4298","v":0},null,{"$f":"Import!M4316","v":0},null,{"$f":"Import!M4334","v":0},null,{"$f":"Import!M4352","v":0},null,{"$f":"Import!M4369","v":0},null,{"$f":"Import!M4386","v":0},null,{"$f":"Import!M4403","v":0},null,null,"brrt_SecurityTypeAxis_brrt_MutualFundsMember",null,"bma_SecurityOther3AmountPerForm1ALines2bAnd3b",null,"bma_SecurityOther3FaceValue",null,"bma_SecurityOther3FairValue",null,"bma_SecurityOther3AverageYTM",null,"bma_SecurityOther3AverageRating",null,"bma_SecurityOther3EffectiveDuration",null,"bma_SecurityOther3EffectiveConvexity"]
[null,8,"Bank Loans",null,{"$f":"Import!M4299","v":0},null,{"$f":"Import!M4317","v":0},null,{"$f":"Import!M4335","v":0},null,{"$f":"Import!M4353","v":0},null,{"$f":"Import!M4370","v":0},null,{"$f":"Import!M4387","v":0},null,{"$f":"Import!M4404","v":0},null,null,"brrt_SecurityTypeAxis_brrt_BankLoansMember",null,"bma_SecurityOther4AmountPerForm1ALines2bAnd3b",null,"bma_SecurityOther4FaceValue",null,"bma_SecurityOther4FairValue",null,"bma_SecurityOther4AverageYTM",null,"bma_SecurityOther4AverageRating",null,"bma_SecurityOther4EffectiveDuration",null,"bma_SecurityOther4EffectiveConvexity"]
[null,9,"Catastrophe Bonds and Insurance-Linked Securities",null,{"$f":"Import!M4300","v":0},null,{"$f":"Import!M4318","v":0},null,{"$f":"Import!M4336","v":0},null,{"$f":"Import!M4354","v":0},null,{"$f":"Import!M4371","v":0},null,{"$f":"Import!M4388","v":0},null,{"$f":"Import!M4405","v":0},null,null,"brrt_SecurityTypeAxis_brrt_CatastropheBondsAndInsuranceLinkedSecuritiesMember",null,"bma_SecurityOther5AmountPerForm1ALines2bAnd3b",null,"bma_SecurityOther5FaceValue",null,"bma_SecurityOther5FairValue",null,"bma_SecurityOther5AverageYTM",null,"bma_SecurityOther5AverageRating",null,"bma_SecurityOther5EffectiveDuration",null,"bma_SecurityOther5EffectiveConvexity"]
[null,10,"Others (Briefly describe)",null,{"$f":"Import!M4301","v":0},null,{"$f":"Import!M4319","v":0},null,{"$f":"Import!M4337","v":0},null,{"$f":"Import!M4355","v":0},null,{"$f":"Import!M4372","v":0},null,{"$f":"Import!M4389","v":0},null,{"$f":"Import!M4406","v":0},null,null,"brrt_SecurityTypeAxis_brrt_OtherMember",null,"bma_SecurityOther6AmountPerForm1ALines2bAnd3b",null,"bma_SecurityOther6FaceValue",null,"bma_SecurityOther6FairValue",null,"bma_SecurityOther6AverageYTM",null,"bma_SecurityOther6AverageRating",null,"bma_SecurityOther6EffectiveDuration",null,"bma_SecurityOther6EffectiveConvexity"]
[null,null,"TOTAL PORTFOLIO",null,{"$f":"SUM(E9:E27)","v":0},null,{"$f":"SUM(G9:G27)","v":0},null,{"$f":"SUM(I9:I27)","v":0},null,null,null,null,null,null,null,null,null,null,"brrt_SecurityTypeAxis_brrt_TotalMember",null,"bma_SecurityTotalPortfolioAmountPerForm1ALines2bAnd3b",null,"bma_SecurityTotalPortfolioFaceValue",null,"bma_SecurityTotalPortfolioFairValue",null,"",null,"",null,"",null,""]
[]
[null,null,null,null,{"$f":"IF(E31=\"TRUE\",HYPERLINK(\"#'Form 4EBS'!F13:F23\",\"TRUE\"),HYPERLINK(\"#'Form 4EBS'!F13:F23\",\"FALSE\"))","v":"TRUE"}]
[null,null,null,null,{"$f":"IF(ROUND((E28-('Form 4EBS'!F13+'Form 4EBS'!F23)),0)=0,\"TRUE\",\"FALSE\")","v":"TRUE"}]
[null,null,"Difference",null,{"$f":"ROUND(E28-('Form 4EBS'!F13+'Form 4EBS'!F23),0)","v":0}]
[]
[null,null,null,null,{"$f":"IF(E30=\"False\",\"Does not equal Form 4EBS Lines 2(b) & 3(b)\",\"\")","v":""}]
[]
[null,null,"Effective duration of the portfolio",null,{"$f":"Import!M4407","v":0},null,null,null,null,null,null,null,null,null,null,null,null,null,null,"brrt_PortfolioEffectiveDuration",null,"",null,"",null,"",null,"",null,"",null,"",null,""]
[null,null,null,null,null,null,null,null,null,null,null,null,null,null,null,null,null,null,null,"",null,"",null,"",null,"",null,"",null,"",null,"",null,""]
[null,null,"Effective convexity of the portfolio",null,{"$f":"Import!M4408","v":0},null,null,null,null,null,null,null,null,null,null,null,null,null,null,"brrt_PortfolioEffectiveConvexity",null,"",null,"",null,"",null,"",null,"",null,"",null,""]
[]
[]
[null,null,null,null,"brrt_BondsAndDebentures",null,"brrt_BondsAndDebenturesFaceValue",null,"brrt_BondsAndDebenturesFairValue",null,"brrt_BondsAndDebenturesAverageYieldToMaturity",null,"brrt_BondsAndDebenturesAverageRating",null,"brrt_BondsAndDebenturesEffectiveDuration",null,"brrt_BondsAndDebenturesEffectiveConvexity"]
[null,null,{"$f":"IF($C$3=\"\",\"\",TEXT(DATE(YEAR($C$3+1)-1,MONTH($C$3+1),DAY($C$3+1)),\"mm/dd/yyyy\"))","v":"01/01/2019"},null,{"$f":"IF($C$3=\"\",\"\",TEXT(DATE(YEAR($C$3+1)-1,MONTH($C$3+1),DAY($C$3+1)),\"mm/dd/yyyy\"))","v":"01/01/2019"},null,"01/01/2019",null,"01/01/2019",null,"01/01/2019",null,"01/01/2019",null,"01/01/2019",null,"01/01/2019"]
[null,null,{"$f":"IF($C$3=\"\",\"\",TEXT($C$3,\"mm/dd/yyyy\"))","v":"12/31/2019"},null,{"$f":"IF($C$3=\"\",\"\",TEXT($C$3,\"mm/dd/yyyy\"))","v":"12/31/2019"},null,"12/31/2019",null,"12/31/2019",null,"12/31/2019",null,"12/31/2019",null,"12/31/2019",null,"12/31/2019"]
[null,null,null,null,{"$f":"XBRLMap(E9,E$41&\".\"&$T9,E$42,E$43,CONFIGURATION!$B$10,\"BMA\",CONFIGURATION!$B$1,\"bscr\",CONFIGURATION!$B$12)","v":"Mapped"},null,{"$f":"XBRLMap(G9,G$41&\".\"&$T9,G$42,G$43,CONFIGURATION!$B$10,\"BMA\",CONFIGURATION!$B$1,\"bscr\",CONFIGURATION!$B$12)","v":"Mapped"},null,{"$f":"XBRLMap(I9,I$41&\".\"&$T9,I$42,I$43,CONFIGURATION!$B$10,\"BMA\",CONFIGURATION!$B$1,\"bscr\",CONFIGURATION!$B$12)","v":"Mapped"},null,{"$f":"XBRLMap(K9,K$41&\".\"&$T9,K$42,K$43,CONFIGURATION!$B$10,\"BMA\",CONFIGURATION!$B$1,\"bscr\")","v":"Mapped"},null,{"$f":"XBRLMap(M9,M$41&\".\"&$T9,M$42,M$43,CONFIGURATION!$B$10,\"BMA\",CONFIGURATION!$B$1,\"bscr\")","v":"Mapped"},null,{"$f":"XBRLMap(O9,O$41&\".\"&$T9,O$42,O$43,CONFIGURATION!$B$10,\"BMA\",CONFIGURATION!$B$1,\"bscr\")","v":"Mapped"},null,{"$f":"XBRLMap(Q9,Q$41&\".\"&$T9,Q$42,Q$43,CONFIGURATION!$B$10,\"BMA\",CONFIGURATION!$B$1,\"bscr\")","v":"Mapped"}]
[null,null,null,null,{"$f":"XBRLMap(E10,E$41&\".\"&$T10,E$42,E$43,CONFIGURATION!$B$10,\"BMA\",CONFIGURATION!$B$1,\"bscr\",CONFIGURATION!$B$12)","v":"Mapped"},null,{"$f":"XBRLMap(G10,G$41&\".\"&$T10,G$42,G$43,CONFIGURATION!$B$10,\"BMA\",CONFIGURATION!$B$1,\"bscr\",CONFIGURATION!$B$12)","v":"Mapped"},null,{"$f":"XBRLMap(I10,I$41&\".\"&$T10,I$42,I$43,CONFIGURATION!$B$10,\"BMA\",CONFIGURATION!$B$1,\"bscr\",CONFIGURATION!$B$12)","v":"Mapped"},null,{"$f":"XBRLMap(K10,K$41&\".\"&$T10,K$42,K$43,CONFIGURATION!$B$10,\"BMA\",CONFIGURATION!$B$1,\"bscr\")","v":"Mapped"},null,{"$f":"XBRLMap(M10,M$41&\".\"&$T10,M$42,M$43,CONFIGURATION!$B$10,\"BMA\",CONFIGURATION!$B$1,\"bscr\")","v":"Mapped"},null,{"$f":"XBRLMap(O10,O$41&\".\"&$T10,O$42,O$43,CONFIGURATION!$B$10,\"BMA\",CONFIGURATION!$B$1,\"bscr\")","v":"Mapped"},null,{"$f":"XBRLMap(Q10,Q$41&\".\"&$T10,Q$42,Q$43,CONFIGURATION!$B$10,\"BMA\",CONFIGURATION!$B$1,\"bscr\")","v":"Mapped"}]
[null,null,null,null,{"$f":"XBRLMap(E11,E$41&\".\"&$T11,E$42,E$43,CONFIGURATION!$B$10,\"BMA\",CONFIGURATION!$B$1,\"bscr\",CONFIGURATION!$B$12)","v":"Mapped"},null,{"$f":"XBRLMap(G11,G$41&\".\"&$T11,G$42,G$43,CONFIGURATION!$B$10,\"BMA\",CONFIGURATION!$B$1,\"bscr\",CONFIGURATION!$B$12)","v":"Mapped"},null,{"$f":"XBRLMap(I11,I$41&\".\"&$T11,I$42,I$43,CONFIGURATION!$B$10,\"BMA\",CONFIGURATION!$B$1,\"bscr\",CONFIGURATION!$B$12)","v":"Mapped"},null,{"$f":"XBRLMap(K11,K$41&\".\"&$T11,K$42,K$43,CONFIGURATION!$B$10,\"BMA\",CONFIGURATION!$B$1,\"bscr\")","v":"Mapped"},null,{"$f":"XBRLMap(M11,M$41&\".\"&$T11,M$42,M$43,CONFIGURATION!$B$10,\"BMA\",CONFIGURATION!$B$1,\"bscr\")","v":"Mapped"},null,{"$f":"XBRLMap(O11,O$41&\".\"&$T11,O$42,O$43,CONFIGURATION!$B$10,\"BMA\",CONFIGURATION!$B$1,\"bscr\")","v":"Mapped"},null,{"$f":"XBRLMap(Q11,Q$41&\".\"&$T11,Q$42,Q$43,CONFIGURATION!$B$10,\"BMA\",CONFIGURATION!$B$1,\"bscr\")","v":"Mapped"}]
[null,null,null,null,{"$f":"XBRLMap(E12,E$41&\".\"&$T12,E$42,E$43,CONFIGURATION!$B$10,\"BMA\",CONFIGURATION!$B$1,\"bscr\",CONFIGURATION!$B$12)","v":"Mapped"},null,{"$f":"XBRLMap(G12,G$41&\".\"&$T12,G$42,G$43,CONFIGURATION!$B$10,\"BMA\",CONFIGURATION!$B$1,\"bscr\",CONFIGURATION!$B$12)","v":"Mapped"},null,{"$f":"XBRLMap(I12,I$41&\".\"&$T12,I$42,I$43,CONFIGURATION!$B$10,\"BMA\",CONFIGURATION!$B$1,\"bscr\",CONFIGURATION!$B$12)","v":"Mapped"},null,{"$f":"XBRLMap(K12,K$41&\".\"&$T12,K$42,K$43,CONFIGURATION!$B$10,\"BMA\",CONFIGURATION!$B$1,\"bscr\")","v":"Mapped"},null,{"$f":"XBRLMap(M12,M$41&\".\"&$T12,M$42,M$43,CONFIGURATION!$B$10,\"BMA\",CONFIGURATION!$B$1,\"bscr\")","v":"Mapped"},null,{"$f":"XBRLMap(O12,O$41&\".\"&$T12,O$42,O$43,CONFIGURATION!$B$10,\"BMA\",CONFIGURATION!$B$1,\"bscr\")","v":"Mapped"},null,{"$f":"XBRLMap(Q12,Q$41&\".\"&$T12,Q$42,Q$43,CONFIGURATION!$B$10,\"BMA\",CONFIGURATION!$B$1,\"bscr\")","v":"Mapped"}]
[null,null,null,null,{"$f":"XBRLMap(E13,E$41&\".\"&$T13,E$42,E$43,CONFIGURATION!$B$10,\"BMA\",CONFIGURATION!$B$1,\"bscr\",CONFIGURATION!$B$12)","v":"Mapped"},null,{"$f":"XBRLMap(G13,G$41&\".\"&$T13,G$42,G$43,CONFIGURATION!$B$10,\"BMA\",CONFIGURATION!$B$1,\"bscr\",CONFIGURATION!$B$12)","v":"Mapped"},null,{"$f":"XBRLMap(I13,I$41&\".\"&$T13,I$42,I$43,CONFIGURATION!$B$10,\"BMA\",CONFIGURATION!$B$1,\"bscr\",CONFIGURATION!$B$12)","v":"Mapped"},null,{"$f":"XBRLMap(K13,K$41&\".\"&$T13,K$42,K$43,CONFIGURATION!$B$10,\"BMA\",CONFIGURATION!$B$1,\"bscr\")","v":"Mapped"},null,{"$f":"XBRLMap(M13,M$41&\".\"&$T13,M$42,M$43,CONFIGURATION!$B$10,\"BMA\",CONFIGURATION!$B$1,\"bscr\")","v":"Mapped"},null,{"$f":"XBRLMap(O13,O$41&\".\"&$T13,O$42,O$43,CONFIGURATION!$B$10,\"BMA\",CONFIGURATION!$B$1,\"bscr\")","v":"Mapped"},null,{"$f":"XBRLMap(Q13,Q$41&\".\"&$T13,Q$42,Q$43,CONFIGURATION!$B$10,\"BMA\",CONFIGURATION!$B$1,\"bscr\")","v":"Mapped"}]
[]
[null,null,null,null,{"$f":"XBRLMap(E15,E$41&\".\"&$T15,E$42,E$43,CONFIGURATION!$B$10,\"BMA\",CONFIGURATION!$B$1,\"bscr\",CONFIGURATION!$B$12)","v":"Mapped"},null,{"$f":"XBRLMap(G15,G$41&\".\"&$T15,G$42,G$43,CONFIGURATION!$B$10,\"BMA\",CONFIGURATION!$B$1,\"bscr\",CONFIGURATION!$B$12)","v":"Mapped"},null,{"$f":"XBRLMap(I15,I$41&\".\"&$T15,I$42,I$43,CONFIGURATION!$B$10,\"BMA\",CONFIGURATION!$B$1,\"bscr\",CONFIGURATION!$B$12)","v":"Mapped"},null,{"$f":"XBRLMap(K15,K$41&\".\"&$T15,K$42,K$43,CONFIGURATION!$B$10,\"BMA\",CONFIGURATION!$B$1,\"bscr\")","v":"Mapped"},null,{"$f":"XBRLMap(M15,M$41&\".\"&$T15,M$42,M$43,CONFIGURATION!$B$10,\"BMA\",CONFIGURATION!$B$1,\"bscr\")","v":"Mapped"},null,{"$f":"XBRLMap(O15,O$41&\".\"&$T15,O$42,O$43,CONFIGURATION!$B$10,\"BMA\",CONFIGURATION!$B$1,\"bscr\")","v":"Mapped"},null,{"$f":"XBRLMap(Q15,Q$41&\".\"&$T15,Q$42,Q$43,CONFIGURATION!$B$10,\"BMA\",CONFIGURATION!$B$1,\"bscr\")","v":"Mapped"}]
[null,null,null,null,{"$f":"XBRLMap(E16,E$41&\".\"&$T16,E$42,E$43,CONFIGURATION!$B$10,\"BMA\",CONFIGURATION!$B$1,\"bscr\",CONFIGURATION!$B$12)","v":"Mapped"},null,{"$f":"XBRLMap(G16,G$41&\".\"&$T16,G$42,G$43,CONFIGURATION!$B$10,\"BMA\",CONFIGURATION!$B$1,\"bscr\",CONFIGURATION!$B$12)","v":"Mapped"},null,{"$f":"XBRLMap(I16,I$41&\".\"&$T16,I$42,I$43,CONFIGURATION!$B$10,\"BMA\",CONFIGURATION!$B$1,\"bscr\",CONFIGURATION!$B$12)","v":"Mapped"},null,{"$f":"XBRLMap(K16,K$41&\".\"&$T16,K$42,K$43,CONFIGURATION!$B$10,\"BMA\",CONFIGURATION!$B$1,\"bscr\")","v":"Mapped"},null,{"$f":"XBRLMap(M16,M$41&\".\"&$T16,M$42,M$43,CONFIGURATION!$B$10,\"BMA\",CONFIGURATION!$B$1,\"bscr\")","v":"Mapped"},null,{"$f":"XBRLMap(O16,O$41&\".\"&$T16,O$42,O$43,CONFIGURATION!$B$10,\"BMA\",CONFIGURATION!$B$1,\"bscr\")","v":"Mapped"},null,{"$f":"XBRLMap(Q16,Q$41&\".\"&$T16,Q$42,Q$43,CONFIGURATION!$B$10,\"BMA\",CONFIGURATION!$B$1,\"bscr\")","v":"Mapped"}]
[null,null,null,null,{"$f":"XBRLMap(E17,E$41&\".\"&$T17,E$42,E$43,CONFIGURATION!$B$10,\"BMA\",CONFIGURATION!$B$1,\"bscr\",CONFIGURATION!$B$12)","v":"Mapped"},null,{"$f":"XBRLMap(G17,G$41&\".\"&$T17,G$42,G$43,CONFIGURATION!$B$10,\"BMA\",CONFIGURATION!$B$1,\"bscr\",CONFIGURATION!$B$12)","v":"Mapped"},null,{"$f":"XBRLMap(I17,I$41&\".\"&$T17,I$42,I$43,CONFIGURATION!$B$10,\"BMA\",CONFIGURATION!$B$1,\"bscr\",CONFIGURATION!$B$12)","v":"Mapped"},null,{"$f":"XBRLMap(K17,K$41&\".\"&$T17,K$42,K$43,CONFIGURATION!$B$10,\"BMA\",CONFIGURATION!$B$1,\"bscr\")","v":"Mapped"},null,{"$f":"XBRLMap(M17,M$41&\".\"&$T17,M$42,M$43,CONFIGURATION!$B$10,\"BMA\",CONFIGURATION!$B$1,\"bscr\")","v":"Mapped"},null,{"$f":"XBRLMap(O17,O$41&\".\"&$T17,O$42,O$43,CONFIGURATION!$B$10,\"BMA\",CONFIGURATION!$B$1,\"bscr\")","v":"Mapped"},null,{"$f":"XBRLMap(Q17,Q$41&\".\"&$T17,Q$42,Q$43,CONFIGURATION!$B$10,\"BMA\",CONFIGURATION!$B$1,\"bscr\")","v":"Mapped"}]
[null,null,null,null,{"$f":"XBRLMap(E18,E$41&\".\"&$T18,E$42,E$43,CONFIGURATION!$B$10,\"BMA\",CONFIGURATION!$B$1,\"bscr\",CONFIGURATION!$B$12)","v":"Mapped"},null,{"$f":"XBRLMap(G18,G$41&\".\"&$T18,G$42,G$43,CONFIGURATION!$B$10,\"BMA\",CONFIGURATION!$B$1,\"bscr\",CONFIGURATION!$B$12)","v":"Mapped"},null,{"$f":"XBRLMap(I18,I$41&\".\"&$T18,I$42,I$43,CONFIGURATION!$B$10,\"BMA\",CONFIGURATION!$B$1,\"bscr\",CONFIGURATION!$B$12)","v":"Mapped"},null,{"$f":"XBRLMap(K18,K$41&\".\"&$T18,K$42,K$43,CONFIGURATION!$B$10,\"BMA\",CONFIGURATION!$B$1,\"bscr\")","v":"Mapped"},null,{"$f":"XBRLMap(M18,M$41&\".\"&$T18,M$42,M$43,CONFIGURATION!$B$10,\"BMA\",CONFIGURATION!$B$1,\"bscr\")","v":"Mapped"},null,{"$f":"XBRLMap(O18,O$41&\".\"&$T18,O$42,O$43,CONFIGURATION!$B$10,\"BMA\",CONFIGURATION!$B$1,\"bscr\")","v":"Mapped"},null,{"$f":"XBRLMap(Q18,Q$41&\".\"&$T18,Q$42,Q$43,CONFIGURATION!$B$10,\"BMA\",CONFIGURATION!$B$1,\"bscr\")","v":"Mapped"}]
[null,null,null,null,{"$f":"XBRLMap(E19,E$41&\".\"&$T19,E$42,E$43,CONFIGURATION!$B$10,\"BMA\",CONFIGURATION!$B$1,\"bscr\",CONFIGURATION!$B$12)","v":"Mapped"},null,{"$f":"XBRLMap(G19,G$41&\".\"&$T19,G$42,G$43,CONFIGURATION!$B$10,\"BMA\",CONFIGURATION!$B$1,\"bscr\",CONFIGURATION!$B$12)","v":"Mapped"},null,{"$f":"XBRLMap(I19,I$41&\".\"&$T19,I$42,I$43,CONFIGURATION!$B$10,\"BMA\",CONFIGURATION!$B$1,\"bscr\",CONFIGURATION!$B$12)","v":"Mapped"},null,{"$f":"XBRLMap(K19,K$41&\".\"&$T19,K$42,K$43,CONFIGURATION!$B$10,\"BMA\",CONFIGURATION!$B$1,\"bscr\")","v":"Mapped"},null,{"$f":"XBRLMap(M19,M$41&\".\"&$T19,M$42,M$43,CONFIGURATION!$B$10,\"BMA\",CONFIGURATION!$B$1,\"bscr\")","v":"Mapped"},null,{"$f":"XBRLMap(O19,O$41&\".\"&$T19,O$42,O$43,CONFIGURATION!$B$10,\"BMA\",CONFIGURATION!$B$1,\"bscr\")","v":"Mapped"},null,{"$f":"XBRLMap(Q19,Q$41&\".\"&$T19,Q$42,Q$43,CONFIGURATION!$B$10,\"BMA\",CONFIGURATION!$B$1,\"bscr\")","v":"Mapped"}]
[]
[null,null,null,null,{"$f":"XBRLMap(E21,E$41&\".\"&$T21,E$42,E$43,CONFIGURATION!$B$10,\"BMA\",CONFIGURATION!$B$1,\"bscr\",CONFIGURATION!$B$12)","v":"Mapped"},null,{"$f":"XBRLMap(G21,G$41&\".\"&$T21,G$42,G$43,CONFIGURATION!$B$10,\"BMA\",CONFIGURATION!$B$1,\"bscr\",CONFIGURATION!$B$12)","v":"Mapped"},null,{"$f":"XBRLMap(I21,I$41&\".\"&$T21,I$42,I$43,CONFIGURATION!$B$10,\"BMA\",CONFIGURATION!$B$1,\"bscr\",CONFIGURATION!$B$12)","v":"Mapped"},null,{"$f":"XBRLMap(K21,K$41&\".\"&$T21,K$42,K$43,CONFIGURATION!$B$10,\"BMA\",CONFIGURATION!$B$1,\"bscr\")","v":"Mapped"},null,{"$f":"XBRLMap(M21,M$41&\".\"&$T21,M$42,M$43,CONFIGURATION!$B$10,\"BMA\",CONFIGURATION!$B$1,\"bscr\")","v":"Mapped"},null,{"$f":"XBRLMap(O21,O$41&\".\"&$T21,O$42,O$43,CONFIGURATION!$B$10,\"BMA\",CONFIGURATION!$B$1,\"bscr\")","v":"Mapped"},null,{"$f":"XBRLMap(Q21,Q$41&\".\"&$T21,Q$42,Q$43,CONFIGURATION!$B$10,\"BMA\",CONFIGURATION!$B$1,\"bscr\")","v":"Mapped"}]
[null,null,null,null,{"$f":"XBRLMap(E22,E$41&\".\"&$T22,E$42,E$43,CONFIGURATION!$B$10,\"BMA\",CONFIGURATION!$B$1,\"bscr\",CONFIGURATION!$B$12)","v":"Mapped"},null,{"$f":"XBRLMap(G22,G$41&\".\"&$T22,G$42,G$43,CONFIGURATION!$B$10,\"BMA\",CONFIGURATION!$B$1,\"bscr\",CONFIGURATION!$B$12)","v":"Mapped"},null,{"$f":"XBRLMap(I22,I$41&\".\"&$T22,I$42,I$43,CONFIGURATION!$B$10,\"BMA\",CONFIGURATION!$B$1,\"bscr\",CONFIGURATION!$B$12)","v":"Mapped"},null,{"$f":"XBRLMap(K22,K$41&\".\"&$T22,K$42,K$43,CONFIGURATION!$B$10,\"BMA\",CONFIGURATION!$B$1,\"bscr\")","v":"Mapped"},null,{"$f":"XBRLMap(M22,M$41&\".\"&$T22,M$42,M$43,CONFIGURATION!$B$10,\"BMA\",CONFIGURATION!$B$1,\"bscr\")","v":"Mapped"},null,{"$f":"XBRLMap(O22,O$41&\".\"&$T22,O$42,O$43,CONFIGURATION!$B$10,\"BMA\",CONFIGURATION!$B$1,\"bscr\")","v":"Mapped"},null,{"$f":"XBRLMap(Q22,Q$41&\".\"&$T22,Q$42,Q$43,CONFIGURATION!$B$10,\"BMA\",CONFIGURATION!$B$1,\"bscr\")","v":"Mapped"}]
[null,null,null,null,{"$f":"XBRLMap(E23,E$41&\".\"&$T23,E$42,E$43,CONFIGURATION!$B$10,\"BMA\",CONFIGURATION!$B$1,\"bscr\",CONFIGURATION!$B$12)","v":"Mapped"},null,{"$f":"XBRLMap(G23,G$41&\".\"&$T23,G$42,G$43,CONFIGURATION!$B$10,\"BMA\",CONFIGURATION!$B$1,\"bscr\",CONFIGURATION!$B$12)","v":"Mapped"},null,{"$f":"XBRLMap(I23,I$41&\".\"&$T23,I$42,I$43,CONFIGURATION!$B$10,\"BMA\",CONFIGURATION!$B$1,\"bscr\",CONFIGURATION!$B$12)","v":"Mapped"},null,{"$f":"XBRLMap(K23,K$41&\".\"&$T23,K$42,K$43,CONFIGURATION!$B$10,\"BMA\",CONFIGURATION!$B$1,\"bscr\")","v":"Mapped"},null,{"$f":"XBRLMap(M23,M$41&\".\"&$T23,M$42,M$43,CONFIGURATION!$B$10,\"BMA\",CONFIGURATION!$B$1,\"bscr\")","v":"Mapped"},null,{"$f":"XBRLMap(O23,O$41&\".\"&$T23,O$42,O$43,CONFIGURATION!$B$10,\"BMA\",CONFIGURATION!$B$1,\"bscr\")","v":"Mapped"},null,{"$f":"XBRLMap(Q23,Q$41&\".\"&$T23,Q$42,Q$43,CONFIGURATION!$B$10,\"BMA\",CONFIGURATION!$B$1,\"bscr\")","v":"Mapped"}]
[null,null,null,null,{"$f":"XBRLMap(E24,E$41&\".\"&$T24,E$42,E$43,CONFIGURATION!$B$10,\"BMA\",CONFIGURATION!$B$1,\"bscr\",CONFIGURATION!$B$12)","v":"Mapped"},null,{"$f":"XBRLMap(G24,G$41&\".\"&$T24,G$42,G$43,CONFIGURATION!$B$10,\"BMA\",CONFIGURATION!$B$1,\"bscr\",CONFIGURATION!$B$12)","v":"Mapped"},null,{"$f":"XBRLMap(I24,I$41&\".\"&$T24,I$42,I$43,CONFIGURATION!$B$10,\"BMA\",CONFIGURATION!$B$1,\"bscr\",CONFIGURATION!$B$12)","v":"Mapped"},null,{"$f":"XBRLMap(K24,K$41&\".\"&$T24,K$42,K$43,CONFIGURATION!$B$10,\"BMA\",CONFIGURATION!$B$1,\"bscr\")","v":"Mapped"},null,{"$f":"XBRLMap(M24,M$41&\".\"&$T24,M$42,M$43,CONFIGURATION!$B$10,\"BMA\",CONFIGURATION!$B$1,\"bscr\")","v":"Mapped"},null,{"$f":"XBRLMap(O24,O$41&\".\"&$T24,O$42,O$43,CONFIGURATION!$B$10,\"BMA\",CONFIGURATION!$B$1,\"bscr\")","v":"Mapped"},null,{"$f":"XBRLMap(Q24,Q$41&\".\"&$T24,Q$42,Q$43,CONFIGURATION!$B$10,\"BMA\",CONFIGURATION!$B$1,\"bscr\")","v":"Mapped"}]
[null,null,null,null,{"$f":"XBRLMap(E25,E$41&\".\"&$T25,E$42,E$43,CONFIGURATION!$B$10,\"BMA\",CONFIGURATION!$B$1,\"bscr\",CONFIGURATION!$B$12)","v":"Mapped"},null,{"$f":"XBRLMap(G25,G$41&\".\"&$T25,G$42,G$43,CONFIGURATION!$B$10,\"BMA\",CONFIGURATION!$B$1,\"bscr\",CONFIGURATION!$B$12)","v":"Mapped"},null,{"$f":"XBRLMap(I25,I$41&\".\"&$T25,I$42,I$43,CONFIGURATION!$B$10,\"BMA\",CONFIGURATION!$B$1,\"bscr\",CONFIGURATION!$B$12)","v":"Mapped"},null,{"$f":"XBRLMap(K25,K$41&\".\"&$T25,K$42,K$43,CONFIGURATION!$B$10,\"BMA\",CONFIGURATION!$B$1,\"bscr\")","v":"Mapped"},null,{"$f":"XBRLMap(M25,M$41&\".\"&$T25,M$42,M$43,CONFIGURATION!$B$10,\"BMA\",CONFIGURATION!$B$1,\"bscr\")","v":"Mapped"},null,{"$f":"XBRLMap(O25,O$41&\".\"&$T25,O$42,O$43,CONFIGURATION!$B$10,\"BMA\",CONFIGURATION!$B$1,\"bscr\")","v":"Mapped"},null,{"$f":"XBRLMap(Q25,Q$41&\".\"&$T25,Q$42,Q$43,CONFIGURATION!$B$10,\"BMA\",CONFIGURATION!$B$1,\"bscr\")","v":"Mapped"}]
[null,null,null,null,{"$f":"XBRLMap(E26,E$41&\".\"&$T26,E$42,E$43,CONFIGURATION!$B$10,\"BMA\",CONFIGURATION!$B$1,\"bscr\",CONFIGURATION!$B$12)","v":"Mapped"},null,{"$f":"XBRLMap(G26,G$41&\".\"&$T26,G$42,G$43,CONFIGURATION!$B$10,\"BMA\",CONFIGURATION!$B$1,\"bscr\",CONFIGURATION!$B$12)","v":"Mapped"},null,{"$f":"XBRLMap(I26,I$41&\".\"&$T26,I$42,I$43,CONFIGURATION!$B$10,\"BMA\",CONFIGURATION!$B$1,\"bscr\",CONFIGURATION!$B$12)","v":"Mapped"},null,{"$f":"XBRLMap(K26,K$41&\".\"&$T26,K$42,K$43,CONFIGURATION!$B$10,\"BMA\",CONFIGURATION!$B$1,\"bscr\")","v":"Mapped"},null,{"$f":"XBRLMap(M26,M$41&\".\"&$T26,M$42,M$43,CONFIGURATION!$B$10,\"BMA\",CONFIGURATION!$B$1,\"bscr\")","v":"Mapped"},null,{"$f":"XBRLMap(O26,O$41&\".\"&$T26,O$42,O$43,CONFIGURATION!$B$10,\"BMA\",CONFIGURATION!$B$1,\"bscr\")","v":"Mapped"},null,{"$f":"XBRLMap(Q26,Q$41&\".\"&$T26,Q$42,Q$43,CONFIGURATION!$B$10,\"BMA\",CONFIGURATION!$B$1,\"bscr\")","v":"Mapped"}]
[null,null,null,null,{"$f":"XBRLMap(E27,E$41&\".\"&$T27,E$42,E$43,CONFIGURATION!$B$10,\"BMA\",CONFIGURATION!$B$1,\"bscr\",CONFIGURATION!$B$12)","v":"Mapped"},null,{"$f":"XBRLMap(G27,G$41&\".\"&$T27,G$42,G$43,CONFIGURATION!$B$10,\"BMA\",CONFIGURATION!$B$1,\"bscr\",CONFIGURATION!$B$12)","v":"Mapped"},null,{"$f":"XBRLMap(I27,I$41&\".\"&$T27,I$42,I$43,CONFIGURATION!$B$10,\"BMA\",CONFIGURATION!$B$1,\"bscr\",CONFIGURATION!$B$12)","v":"Mapped"},null,{"$f":"XBRLMap(K27,K$41&\".\"&$T27,K$42,K$43,CONFIGURATION!$B$10,\"BMA\",CONFIGURATION!$B$1,\"bscr\")","v":"Mapped"},null,{"$f":"XBRLMap(M27,M$41&\".\"&$T27,M$42,M$43,CONFIGURATION!$B$10,\"BMA\",CONFIGURATION!$B$1,\"bscr\")","v":"Mapped"},null,{"$f":"XBRLMap(O27,O$41&\".\"&$T27,O$42,O$43,CONFIGURATION!$B$10,\"BMA\",CONFIGURATION!$B$1,\"bscr\")","v":"Mapped"},null,{"$f":"XBRLMap(Q27,Q$41&\".\"&$T27,Q$42,Q$43,CONFIGURATION!$B$10,\"BMA\",CONFIGURATION!$B$1,\"bscr\")","v":"Mapped"}]
[null,null,null,null,{"$f":"XBRLMap(E28,E$41&\".\"&$T28,E$42,E$43,CONFIGURATION!$B$10,\"BMA\",CONFIGURATION!$B$1,\"bscr\",CONFIGURATION!$B$12)","v":"Mapped"},null,{"$f":"XBRLMap(G28,G$41&\".\"&$T28,G$42,G$43,CONFIGURATION!$B$10,\"BMA\",CONFIGURATION!$B$1,\"bscr\",CONFIGURATION!$B$12)","v":"Mapped"},null,{"$f":"XBRLMap(I28,I$41&\".\"&$T28,I$42,I$43,CONFIGURATION!$B$10,\"BMA\",CONFIGURATION!$B$1,\"bscr\",CONFIGURATION!$B$12)","v":"Mapped"}]
[]
[]
[]
[]
[null,null,{"$f":"XBRLMap(E36,T36,C$42,C$43,CONFIGURATION!$B$10,\"BMA\",CONFIGURATION!$B$1,\"bscr\")","v":"Mapped"}]
[]
[null,null,{"$f":"XBRLMap(E38,T38,C$42,C$43,CONFIGURATION!$B$10,\"BMA\",CONFIGURATION!$B$1,\"bscr\")","v":"Mapped"}]

{"sheet":"Schedule VII","index":48,"n_rows":115,"n_cols":26,"rows_kept":115,"cut":false,"hidden":false,"merged":[[6,9,7,9],[39,15,41,15],[6,3,7,3],[6,11,7,11],[6,13,6,15],[26,13,26,15],[30,13,31,13],[30,14,31,14],[30,15,31,15],[6,4,7,4],[6,5,7,5],[6,10,7,10]]}
[null,null,"SCHEDULE OF LONG-TERM INSURANCE",null,null,null,null,null,null,null,null,null,null,null,null,{"$f":"HYPERLINK(\"#'Index'!A1\",\"Return to Index\")","v":"Return to Index"}]
[null,null,{"$f":"'Insurer Information'!C7","v":"Enter Company Name"}]
[null,null,{"$f":"TEXT('Insurer Information'!C3,\"mmmm dd, yyyy\")","v":"December 31, 2019"},null,null,null,null,null,null,null,null,null,null,null,null,"SCHEDULE VII"]
[null,null,{"$f":"'Form 4EBS'!C4","v":"United States Dollars"}]
[null,"SCHEDULE OF LONG-TERM INSURANCE DATA"]
[null,null,null,"(1)","(2)","(3)","(4)","(5)",null,"(6)","(7)","(8)",null,{"$f":"YEAR('Insurer Information'!C3)","v":2019},"(10)","(11)"]
[null,null,null,"Bermuda Statutory Reserve\n","Reported \nDAC \n(if any)","Value of Business Acquired",null,null,null,"Net Reserve\n(1) - (2) - (3) - (4) ","BSCR Adjusted Reserve Greater of (1) and Zero","Margins in Reserves If (5) not blank, then Excess of (6) over (5)",null,"Net Amount at Risk"]
[null,null,null,null,null,null,"Present Value of Future Profits","Best Estimate Reserve",null,null,null,null,null,"Adjustable \nproduct/\ntreaty","Non-adjustable\nproduct/\ntreaty","Total"]
[null,null,null,{"$f":"CONFIGURATION!$D$12","v":" ('000s)"},{"$f":"CONFIGURATION!$D$12","v":" ('000s)"},{"$f":"CONFIGURATION!$D$12","v":" ('000s)"},{"$f":"CONFIGURATION!$D$12","v":" ('000s)"},{"$f":"CONFIGURATION!$D$12","v":" ('000s)"},null,{"$f":"CONFIGURATION!$D$12","v":" ('000s)"},{"$f":"CONFIGURATION!$D$12","v":" ('000s)"},{"$f":"CONFIGURATION!$D$12","v":" ('000s)"},null,{"$f":"CONFIGURATION!$D$12","v":" ('000s)"},{"$f":"CONFIGURATION!$D$12","v":" ('000s)"},{"$f":"CONFIGURATION!$D$12","v":" ('000s)"}]
[null,"1.","Mortality (term assurance, whole life, universal life)",{"$f":"Import!E4410","v":0},{"$f":"Import!E4439","v":0},{"$f":"Import!E4468","v":0},{"$f":"Import!E4497","v":0},{"$f":"Import!E4526","v":0},null,{"$f":"D10-E10-F10-G10","v":0},{"$f":"IF(J10>0,J10,0)","v":0},{"$f":"IF(H10=0,0,J10-H10)","v":0},null,{"$f":"Import!E4555","v":0},{"$f":"Import!E4557","v":0},{"$f":"N10+O10","v":0},null,null,null,"brrt_LongTermProductRidersAxis_brrt_MortalityMember",null,null,null,null,null,"bma_ScheduleOfLongtermInsuranceMortalitytermAssuranceWholeLifeUniversalLife"]
[null,"2.","Critical Illness (including accelerated critical illness products)",{"$f":"Import!E4411","v":0},{"$f":"Import!E4440","v":0},{"$f":"Import!E4469","v":0},{"$f":"Import!E4498","v":0},{"$f":"Import!E4527","v":0},null,{"$f":"D11-E11-F11-G11","v":0},{"$f":"IF(J11>0,J11,0)","v":0},{"$f":"IF(H11=0,0,J11-H11)","v":0},null,{"$f":"Import!E4556","v":0},{"$f":"Import!E4558","v":0},{"$f":"N11+O11","v":0},null,null,null,"brrt_LongTermProductRidersAxis_brrt_CriticalIllnessMember",null,null,null,null,null,"bma_ScheduleOfLongtermInsuranceCriticalIllnessincludingAcceleratedCiProducts"]
[null,"3.","Longevity (immediate pay-out annuities, contingent annuities, pension pay-outs)",null,null,null,null,null,null,null,null,null,null,null,null,null,null,null,null,null,null,null,null,null,null,"bma_ScheduleOfLongtermInsuranceLongevitypayoutAnnuitiesContingentAnnuitiesPensionBlocks"]
[null,null,"Attained age of Annuitant"]
[null,null,"(a) 0 - 55",{"$f":"Import!E4412","v":0},{"$f":"Import!E4441","v":0},{"$f":"Import!E4470","v":0},{"$f":"Import!E4499","v":0},{"$f":"Import!E4528","v":0},null,{"$f":"D14-E14-F14-G14","v":0},{"$f":"IF(J14>0,J14,0)","v":0},{"$f":"IF(H14=0,0,J14-H14)","v":0},null,null,null,null,null,null,null,"brrt_LongTermProductRidersAxis_brrt_LongevityImmediatePayoutAnnuitiesAgeOfAnnuitantLessEqual55YearsMember"]
[null,null,"(b) 56 - 65",{"$f":"Import!E4413","v":0},{"$f":"Import!E4442","v":0},{"$f":"Import!E4471","v":0},{"$f":"Import!E4500","v":0},{"$f":"Import!E4529","v":0},null,0,0,0,null,null,null,null,null,null,null,"brrt_LongTermProductRidersAxis_brrt_LongevityImmediatePayoutAnnuitiesAgeOfAnnuitantMoreThan56LessEqual65YearsMember"]
[null,null,"(c) 66 - 70",{"$f":"Import!E4414","v":0},{"$f":"Import!E4443","v":0},{"$f":"Import!E4472","v":0},{"$f":"Import!E4501","v":0},{"$f":"Import!E4530","v":0},null,0,0,0,null,null,null,null,null,null,null,"brrt_LongTermProductRidersAxis_brrt_LongevityImmediatePayoutAnnuitiesAgeOfAnnuitantMoreThan66LessEqual70YearsMember"]
[null,null,"(d) 71 - 80",{"$f":"Import!E4415","v":0},{"$f":"Import!E4444","v":0},{"$f":"Import!E4473","v":0},{"$f":"Import!E4502","v":0},{"$f":"Import!E4531","v":0},null,0,0,0,null,null,null,null,null,null,null,"brrt_LongTermProductRidersAxis_brrt_LongevityImmediatePayoutAnnuitiesAgeOfAnnuitantMoreThan71LessEqual80YearsMember"]
[null,null,"(e) 81+",{"$f":"Import!E4416","v":0},{"$f":"Import!E4445","v":0},{"$f":"Import!E4474","v":0},{"$f":"Import!E4503","v":0},{"$f":"Import!E4532","v":0},null,0,0,0,null,null,null,null,null,null,null,"brrt_LongTermProductRidersAxis_brrt_LongevityImmediatePayoutAnnuitiesAgeOfAnnuitantMoreThan81YearsMember"]
[null,null,"(f) Total",{"$f":"SUM(D14:D18)","v":0},{"$f":"SUM(E14:E18)","v":0},{"$f":"SUM(F14:F18)","v":0},{"$f":"SUM(G14:G18)","v":0},{"$f":"SUM(H14:H18)","v":0},null,{"$f":"SUM(J14:J18)","v":0},{"$f":"SUM(K14:K18)","v":0},{"$f":"SUM(L14:L18)","v":0},null,null,null,null,null,null,null,"brrt_LongTermProductRidersAxis_brrt_LongevityImmediatePayoutAnnuitiesTotalMember"]
[null,"4.","Longevity (deferred pay-out annuities, future contingent annuities, future pension pay-outs)",null,null,null,null,null,null,null,null,null,null,null,null,null,null,null,null,null,null,null,null,null,null,"bma_ScheduleOfLongtermInsuranceDeferredAnnuitiesincludingIndexLinkedProductsWithNoGuarantees"]
[null,null,"Age at which Annuity Benefits Commence"]
[null,null,"(a) 0 - 55",{"$f":"Import!E4418","v":0},{"$f":"Import!E4447","v":0},{"$f":"Import!E4476","v":0},{"$f":"Import!E4505","v":0},{"$f":"Import!E4534","v":0},null,{"$f":"D22-E22-F22-G22","v":0},{"$f":"IF(J22>0,J22,0)","v":0},{"$f":"IF(H22=0,0,J22-H22)","v":0},null,null,null,null,null,null,null,"brrt_LongTermProductRidersAxis_brrt_LongevityDeferredPayoutAnnuitiesAgeAtWhichAnnuityBenefitsCommenceLessEqual55YearsMember"]
[null,null,"(b) 56 - 60",{"$f":"Import!E4419","v":0},{"$f":"Import!E4448","v":0},{"$f":"Import!E4477","v":0},{"$f":"Import!E4506","v":0},{"$f":"Import!E4535","v":0},null,0,0,0,null,null,null,null,null,null,null,"brrt_LongTermProductRidersAxis_brrt_LongevityDeferredPayoutAnnuitiesAgeAtWhichAnnuityBenefitsCommenceMoreThan56LessEqual60YearsMember"]
[null,null,"(c) 61 - 65",{"$f":"Import!E4420","v":0},{"$f":"Import!E4449","v":0},{"$f":"Import!E4478","v":0},{"$f":"Import!E4507","v":0},{"$f":"Import!E4536","v":0},null,0,0,0,null,null,null,null,null,null,null,"brrt_LongTermProductRidersAxis_brrt_LongevityDeferredPayoutAnnuitiesAgeAtWhichAnnuityBenefitsCommenceMoreThan61YearsLessEqual65YearsMember"]
[null,null,"(d) 66 - 70",{"$f":"Import!E4421","v":0},{"$f":"Import!E4450","v":0},{"$f":"Import!E4479","v":0},{"$f":"Import!E4508","v":0},{"$f":"Import!E4537","v":0},null,0,0,0,null,null,null,null,null,null,null,"brrt_LongTermProductRidersAxis_brrt_LongevityDeferredPayoutAnnuitiesAgeAtWhichAnnuityBenefitsCommenceMoreThan66LessEqual70YearsMember"]
[null,null,"(e) 71 - 75",{"$f":"Import!E4422","v":0},{"$f":"Import!E4451","v":0},{"$f":"Import!E4480","v":0},{"$f":"Import!E4509","v":0},{"$f":"Import!E4538","v":0},null,0,0,0,null,null,null,null,null,null,null,"brrt_LongTermProductRidersAxis_brrt_LongevityDeferredPayoutAnnuitiesAgeAtWhichAnnuityBenefitsCommenceMoreThan71LessEqual75YearsMember"]
[null,null,"(f) 76+",{"$f":"Import!E4423","v":0},{"$f":"Import!E4452","v":0},{"$f":"Import!E4481","v":0},{"$f":"Import!E4510","v":0},{"$f":"Import!E4539","v":0},null,0,0,0,null,"Net Annual Premium",null,null,null,null,null,"brrt_LongTermProductRidersAxis_brrt_LongevityDeferredPayoutAnnuitiesAgeAtWhichAnnuityBenefitsCommenceMoreThan76YearsMember"]
[null,null,"(g) Total",{"$f":"SUM(D22:D27)","v":0},{"$f":"SUM(E22:E27)","v":0},0,0,0,null,0,{"$f":"SUM(K22:K27)","v":0},{"$f":"SUM(L22:L27)","v":0},null,null,null,null,null,null,null,"brrt_LongTermProductRidersAxis_brrt_LongevityDeferredPayoutAnnuitiesAgeAtWhichAnnuityBenefitsCommenceTotalMember"]
[null,"5.","Annuities certain only",{"$f":"Import!E4425","v":0},{"$f":"Import!E4454","v":0},{"$f":"Import!E4483","v":0},{"$f":"Import!E4512","v":0},{"$f":"Import!E4541","v":0},null,{"$f":"D29-E29-F29-G29","v":0},{"$f":"IF(J29>0,J29,0)","v":0},{"$f":"IF(H29=0,0,J29-H29)","v":0},null,null,null,null,null,null,null,"brrt_LongTermProductRidersAxis_brrt_AnnuitiesCertainOnlyMember",null,null,null,null,null,"bma_ScheduleOfLongtermInsuranceGroupLife"]
[null,"6.","Deferred accumulation annuities",{"$f":"Import!E4426","v":0},{"$f":"Import!E4455","v":0},{"$f":"Import!E4484","v":0},{"$f":"Import!E4513","v":0},{"$f":"Import!E4542","v":0},null,0,0,0,null,null,null,null,null,null,null,"brrt_LongTermProductRidersAxis_brrt_DeferredAnnuitiesMember",null,null,null,null,null,"bma_ScheduleOfLongtermInsuranceGroupLife"]
[null,"7.","Disability Income: active lives - including waiver of premium and long-term care",null,null,null,null,null,null,null,null,null,null,"Benefit Period \n<= 2 years","Benefit period \n>2 years","Total",null,null,null,null,null,null,null,null,null,"bma_ScheduleOfLongtermInsuranceDisabilityIncomeActiveLivesInclWaiverOfPremiumAndLtc"]
[null,null,"Length of Premium Guarantee",null,null,null,null,null,null,null,null,null,null,null,null,null,null,null,null,null,null,null,null,null,null,"bma_ScheduleOfLongtermInsuranceLengthOfPremiumGuarantee"]
[null,null,"(a) <= 1 year",null,null,null,null,null,null,null,null,null,null,{"$f":"+'Schedule IVB'!Q17","v":0},{"$f":"+'Schedule IVB'!U17","v":0},{"$f":"N33+O33","v":0},null,null,null,"brrt_LongTermProductRidersAxis_brrt_DisabilityIncomeActiveLivesWaiverOfPremiumAndLTCLessThanOneYearMember",null,null,null,null,null,"bma_ScheduleOfLongtermInsuranceLengthOfPremiumGuaranteeaLtOrETo1Year"]
[null,null,"(b) 1-5 years",null,null,null,null,null,null,null,null,null,null,{"$f":"+'Schedule IVB'!Q18","v":0},{"$f":"+'Schedule IVB'!U18","v":0},{"$f":"N34+O34","v":0},null,null,null,"brrt_LongTermProductRidersAxis_brrt_DisabilityIncomeActiveLivesWaiverOfPremiumAndLTCBetween1AndFiveYearsMember",null,null,null,null,null,"bma_ScheduleOfLongtermInsuranceLengthOfPremiumGuaranteeb15Years"]
[null,null,"(c) >5 years",null,null,null,null,null,null,null,null,null,null,{"$f":"+'Schedule IVB'!Q19","v":0},{"$f":"+'Schedule IVB'!U19","v":0},{"$f":"N35+O35","v":0},null,null,null,"brrt_LongTermProductRidersAxis_brrt_DisabilityIncomeActiveLivesWaiverOfPremiumAndLTCMoreThanFiveYearsMember",null,null,null,null,null,"bma_ScheduleOfLongtermInsuranceLengthOfPremiumGuaranteecGt5Years"]
[null,null,"(d) Total",{"$f":"Import!E4427","v":0},{"$f":"Import!E4456","v":0},{"$f":"Import!E4485","v":0},{"$f":"Import!E4514","v":0},{"$f":"Import!E4543","v":0},null,{"$f":"D36-E36-F36-G36","v":0},{"$f":"IF(J36>0,J36,0)","v":0},{"$f":"IF(H36=0,0,J36-H36)","v":0},null,null,null,{"$f":"SUM(P33:P35)","v":0},null,null,null,"brrt_LongTermProductRidersAxis_brrt_DisabilityIncomeActiveLivesWaiverOfPremiumAndLTCTotalMember",null,null,null,null,null,"bma_ScheduleOfLongtermInsuranceLengthOfPremiumGuaranteeTotal"]
[null,"8.","Disability income: active lives - other accident and sickness",{"$f":"Import!E4428","v":0},{"$f":"Import!E4457","v":0},{"$f":"Import!E4486","v":0},{"$f":"Import!E4515","v":0},{"$f":"Import!E4544","v":0},null,0,0,0,null,null,null,{"$f":"+'Schedule IVB'!Y20","v":0},null,null,null,"brrt_LongTermProductRidersAxis_brrt_DisabilityIncomeActiveLivesOtherAccidentAndSicknessMember",null,null,null,null,null,"bma_ScheduleOfLongtermInsuranceDisabilityIncomeActiveLivesOtherAccidentAndSickness"]
[null,"9.","Disability income: claims in payment - including waiver of premium and long-term care",{"$f":"Import!E4429","v":0},{"$f":"Import!E4458","v":0},{"$f":"Import!E4487","v":0},{"$f":"Import!E4516","v":0},{"$f":"Import!E4545","v":0},null,0,0,0,null,null,null,null,null,null,null,"brrt_LongTermProductRidersAxis_brrt_DisabilityIncomeClaimsInPaymentWaiverOfPremiumAndLTCMember",null,null,null,null,null,"bma_ScheduleOfLongtermInsuranceDisabilityIncomeClaimsInPaymentInclWaiverOfPremiumAndLtc"]
[null,"10.","Disability income: claims in payment - other accident and sickness",{"$f":"Import!E4430","v":0},{"$f":"Import!E4459","v":0},{"$f":"Import!E4488","v":0},{"$f":"Import!E4517","v":0},{"$f":"Import!E4546","v":0},null,0,0,0,null,null,null,null,null,null,null,"brrt_LongTermProductRidersAxis_brrt_DisabilityIncomeClaimsInPaymentOtherAccidentAndSicknessMember",null,null,null,null,null,"bma_ScheduleOfLongtermInsuranceDisabilityIncomeClaimsInPaymentOtherAccidentAndSickness"]
[null,"11.","Group Life",{"$f":"Import!E4431","v":0},{"$f":"Import!E4460","v":0},{"$f":"Import!E4489","v":0},{"$f":"Import!E4518","v":0},{"$f":"Import!E4547","v":0},null,0,0,0,null,null,null,"Total Annual Premiums",null,null,null,"brrt_LongTermProductRidersAxis_brrt_GroupLifeMember",null,null,null,null,null,"bma_ScheduleOfLongtermInsuranceGroupLife"]
[null,"12.","Group Disability",{"$f":"Import!E4432","v":0},{"$f":"Import!E4461","v":0},{"$f":"Import!E4490","v":0},{"$f":"Import!E4519","v":0},{"$f":"Import!E4548","v":0},null,0,0,0,null,null,null,null,null,null,null,"brrt_LongTermProductRidersAxis_brrt_GroupDisabilityMember",null,null,null,null,null,"bma_ScheduleOfLongtermInsuranceGroupDisability"]
[null,"13.","Group Health",{"$f":"Import!E4433","v":0},{"$f":"Import!E4462","v":0},{"$f":"Import!E4491","v":0},{"$f":"Import!E4520","v":0},{"$f":"Import!E4549","v":0},null,0,0,0,null,null,null,null,null,null,null,"brrt_LongTermProductRidersAxis_brrt_GroupHealthMember",null,null,null,null,null,"bma_ScheduleOfLongtermInsuranceGroupHealth"]
[null,"14.","Stop Loss",{"$f":"Import!E4434","v":0},{"$f":"Import!E4463","v":0},{"$f":"Import!E4492","v":0},{"$f":"Import!E4521","v":0},{"$f":"Import!E4550","v":0},null,0,0,0,null,null,null,{"$f":"+'Schedule IVB'!Y28","v":0},null,null,null,"brrt_LongTermProductRidersAxis_brrt_StopLossMember",null,null,null,null,null,"bma_ScheduleOfLongtermInsuranceNonproportionalCovers"]
[null,"15.","Rider (other product riders not included above)",{"$f":"Import!E4435","v":0},{"$f":"Import!E4464","v":0},{"$f":"Import!E4493","v":0},{"$f":"Import!E4522","v":0},{"$f":"Import!E4551","v":0},null,0,0,0,null,null,null,{"$f":"+'Schedule IVB'!Y29","v":0},null,null,null,"brrt_LongTermProductRidersAxis_brrt_OtherProductRidersMember",null,null,null,null,null,"bma_ScheduleOfLongtermInsuranceOtherProductRidersNotIncludedAbove"]
[null,null,null,null,null,null,null,null,null,null,null,null,null,null,null,null,null,null,null,null,null,null,null,null,null,""]
[null,"16.","Total (excluding variable annuities)",{"$f":"SUM(D10:D11,D14:D18,D29:D30,D22:D27,D36:D44)","v":0},{"$f":"SUM(E10:E11,E14:E18,E29:E30,E22:E27,E36:E44)","v":0},{"$f":"SUM(F10:F11,F14:F18,F29:F30,F22:F27,F36:F44)","v":0},{"$f":"SUM(G10:G11,G14:G18,G29:G30,G22:G27,G36:G44)","v":0},{"$f":"SUM(H10:H11,H14:H18,H29:H30,H22:H27,H36:H44)","v":0},null,{"$f":"SUM(J10:J11,J14:J18,J29:J30,J22:J27,J36:J44)","v":0},{"$f":"SUM(K10:K11,K14:K18,K29:K30,K22:K27,K36:K44)","v":0},{"$f":"SUM(L10:L11,L14:L18,L29:L30,L22:L27,L36:L44)","v":0},null,null,null,null,null,null,null,"brrt_LongTermProductRidersAxis_brrt_TotalExcludingVariableAnnuitiesMember",null,null,null,null,null,"bma_ScheduleOfLongtermInsuranceTotalexcludingVariableAnnuities"]
[null,"17.","Total - Variable Annuities",{"$f":"Import!E4437","v":0},{"$f":"Import!E4466","v":0},{"$f":"Import!E4495","v":0},{"$f":"Import!E4524","v":0},{"$f":"Import!E4553","v":0},null,{"$f":"D47-E47-F47-G47","v":0},{"$f":"IF(J47>0,J47,0)","v":0},{"$f":"IF(H47=0,0,J47-H47)","v":0},null,null,null,null,null,null,null,"brrt_LongTermProductRidersAxis_brrt_TotalVariableAnnuitiesMember"]
[null,"18.","Total with Variable Annuities",{"$f":"D46+D47","v":0},{"$f":"E46+E47","v":0},{"$f":"F46+F47","v":0},{"$f":"G46+G47","v":0},{"$f":"H46+H47","v":0},null,{"$f":"J46+J47","v":0},{"$f":"K46+K47","v":0},{"$f":"L46+L47","v":0},null,null,null,null,null,null,null,"brrt_LongTermProductRidersAxis_brrt_TotalIncludingVariableAnnuitiesMember"]
[]
[null,null,"Total Net Long-Term Business Insurance Reserves",{"$f":"'Form 4EBS'!F122","v":0}]
[]
[null,null,"Check",{"$f":"IF((D48-D50)=0,\"TRUE\",\"FALSE\")","v":"TRUE"}]
[]
[null,null,"Difference",{"$f":"D50-D48","v":0}]
[]
[]
[]
[]
[null,null,null,{"$f":"IF(C3=\"\",\"\",TEXT(DATE(YEAR(C3+1)-1,MONTH(C3+1),DAY(C3+1)),\"mm/dd/yyyy\"))","v":"01/01/2019"}]
[null,null,null,{"$f":"IF(C3=\"\",\"\",TEXT(C3,\"mm/dd/yyyy\"))","v":"12/31/2019"}]
[null,null,null,"brrt_BermudaStatutoryReserve","brrt_ReportedDAC","brrt_ValueOfBusinessAcquired","brrt_PresentValueOfFutureProfits","brrt_BestEstimateReserve",null,"brrt_NetReserve","brrt_NetReserve","brrt_BSCRAdjustedReserve",null,"brrt_NetAmountAtRiskAdjustableProductOrTreaty","brrt_NetAmountAtRiskNonAdjustableProductOrTreaty","brrt_NetAmountAtRisk"]
[null,null,null,null,null,null,null,null,null,null,null,null,null,"brrt_NetAnnualPremiumBenefitPeriodLessThanTwoYears","brrt_NetAnnualPremiumBenefitPeriodGreaterThanTwoYears","brrt_NetAnnualPremiumBenefitPeriodTotal"]
[]
[null,null,null,{"$f":"XBRLMap(D10,D$61&\".\"&$T10,$D$59,$D$60,CONFIGURATION!$B$10,\"BMA\",CONFIGURATION!$B$1,\"bscr\",CONFIGURATION!$B$12)","v":"Mapped"},"Mapped","Mapped","Mapped","Mapped",null,"Mapped","Mapped",{"$f":"XBRLMap(L10,L$61&\".\"&$T10,$D$59,$D$60,CONFIGURATION!$B$10,\"BMA\",CONFIGURATION!$B$1,\"bscr\",CONFIGURATION!$B$12)","v":"Mapped"},null,{"$f":"XBRLMap(N10,N$61&\".\"&$T10,$D$59,$D$60,CONFIGURATION!$B$10,\"BMA\",CONFIGURATION!$B$1,\"bscr\",CONFIGURATION!$B$12)","v":"Mapped"},{"$f":"XBRLMap(O10,O$61&\".\"&$T10,$D$59,$D$60,CONFIGURATION!$B$10,\"BMA\",CONFIGURATION!$B$1,\"bscr\",CONFIGURATION!$B$12)","v":"Mapped"},{"$f":"XBRLMap(P10,P$61&\".\"&$T10,$D$59,$D$60,CONFIGURATION!$B$10,\"BMA\",CONFIGURATION!$B$1,\"bscr\",CONFIGURATION!$B$12)","v":"Mapped"}]
[null,null,null,{"$f":"XBRLMap(D11,D$61&\".\"&$T11,$D$59,$D$60,CONFIGURATION!$B$10,\"BMA\",CONFIGURATION!$B$1,\"bscr\",CONFIGURATION!$B$12)","v":"Mapped"},"Mapped","Mapped","Mapped","Mapped",null,"Mapped","Mapped",{"$f":"XBRLMap(L11,L$61&\".\"&$T11,$D$59,$D$60,CONFIGURATION!$B$10,\"BMA\",CONFIGURATION!$B$1,\"bscr\",CONFIGURATION!$B$12)","v":"Mapped"},null,{"$f":"XBRLMap(N11,N$61&\".\"&$T11,$D$59,$D$60,CONFIGURATION!$B$10,\"BMA\",CONFIGURATION!$B$1,\"bscr\",CONFIGURATION!$B$12)","v":"Mapped"},{"$f":"XBRLMap(O11,O$61&\".\"&$T11,$D$59,$D$60,CONFIGURATION!$B$10,\"BMA\",CONFIGURATION!$B$1,\"bscr\",CONFIGURATION!$B$12)","v":"Mapped"},{"$f":"XBRLMap(P11,P$61&\".\"&$T11,$D$59,$D$60,CONFIGURATION!$B$10,\"BMA\",CONFIGURATION!$B$1,\"bscr\",CONFIGURATION!$B$12)","v":"Mapped"}]
[]
[]
[null,null,null,{"$f":"XBRLMap(D14,D$61&\".\"&$T14,$D$59,$D$60,CONFIGURATION!$B$10,\"BMA\",CONFIGURATION!$B$1,\"bscr\",CONFIGURATION!$B$12)","v":"Mapped"},"Mapped","Mapped","Mapped","Mapped",null,"Mapped","Mapped",{"$f":"XBRLMap(L14,L$61&\".\"&$T14,$D$59,$D$60,CONFIGURATION!$B$10,\"BMA\",CONFIGURATION!$B$1,\"bscr\",CONFIGURATION!$B$12)","v":"Mapped"}]
[null,null,null,{"$f":"XBRLMap(D15,D$61&\".\"&$T15,$D$59,$D$60,CONFIGURATION!$B$10,\"BMA\",CONFIGURATION!$B$1,\"bscr\",CONFIGURATION!$B$12)","v":"Mapped"},"Mapped","Mapped","Mapped","Mapped",null,"Mapped","Mapped",{"$f":"XBRLMap(L15,L$61&\".\"&$T15,$D$59,$D$60,CONFIGURATION!$B$10,\"BMA\",CONFIGURATION!$B$1,\"bscr\",CONFIGURATION!$B$12)","v":"Mapped"}]
[null,null,null,{"$f":"XBRLMap(D16,D$61&\".\"&$T16,$D$59,$D$60,CONFIGURATION!$B$10,\"BMA\",CONFIGURATION!$B$1,\"bscr\",CONFIGURATION!$B$12)","v":"Mapped"},"Mapped","Mapped","Mapped","Mapped",null,"Mapped","Mapped",{"$f":"XBRLMap(L16,L$61&\".\"&$T16,$D$59,$D$60,CONFIGURATION!$B$10,\"BMA\",CONFIGURATION!$B$1,\"bscr\",CONFIGURATION!$B$12)","v":"Mapped"}]
[null,null,null,{"$f":"XBRLMap(D17,D$61&\".\"&$T17,$D$59,$D$60,CONFIGURATION!$B$10,\"BMA\",CONFIGURATION!$B$1,\"bscr\",CONFIGURATION!$B$12)","v":"Mapped"},"Mapped","Mapped","Mapped","Mapped",null,"Mapped","Mapped",{"$f":"XBRLMap(L17,L$61&\".\"&$T17,$D$59,$D$60,CONFIGURATION!$B$10,\"BMA\",CONFIGURATION!$B$1,\"bscr\",CONFIGURATION!$B$12)","v":"Mapped"}]
[null,null,null,{"$f":"XBRLMap(D18,D$61&\".\"&$T18,$D$59,$D$60,CONFIGURATION!$B$10,\"BMA\",CONFIGURATION!$B$1,\"bscr\",CONFIGURATION!$B$12)","v":"Mapped"},"Mapped","Mapped","Mapped","Mapped",null,"Mapped","Mapped",{"$f":"XBRLMap(L18,L$61&\".\"&$T18,$D$59,$D$60,CONFIGURATION!$B$10,\"BMA\",CONFIGURATION!$B$1,\"bscr\",CONFIGURATION!$B$12)","v":"Mapped"}]
[null,null,null,{"$f":"XBRLMap(D19,D$61&\".\"&$T19,$D$59,$D$60,CONFIGURATION!$B$10,\"BMA\",CONFIGURATION!$B$1,\"bscr\",CONFIGURATION!$B$12)","v":"Mapped"},"Mapped","Mapped","Mapped","Mapped",null,"Mapped","Mapped",{"$f":"XBRLMap(L19,L$61&\".\"&$T19,$D$59,$D$60,CONFIGURATION!$B$10,\"BMA\",CONFIGURATION!$B$1,\"bscr\",CONFIGURATION!$B$12)","v":"Mapped"}]
[]
[]
[null,null,null,{"$f":"XBRLMap(D22,D$61&\".\"&$T22,$D$59,$D$60,CONFIGURATION!$B$10,\"BMA\",CONFIGURATION!$B$1,\"bscr\",CONFIGURATION!$B$12)","v":"Mapped"},"Mapped","Mapped","Mapped","Mapped",null,"Mapped","Mapped",{"$f":"XBRLMap(L22,L$61&\".\"&$T22,$D$59,$D$60,CONFIGURATION!$B$10,\"BMA\",CONFIGURATION!$B$1,\"bscr\",CONFIGURATION!$B$12)","v":"Mapped"}]
[null,null,null,{"$f":"XBRLMap(D23,D$61&\".\"&$T23,$D$59,$D$60,CONFIGURATION!$B$10,\"BMA\",CONFIGURATION!$B$1,\"bscr\",CONFIGURATION!$B$12)","v":"Mapped"},"Mapped","Mapped","Mapped","Mapped",null,"Mapped","Mapped",{"$f":"XBRLMap(L23,L$61&\".\"&$T23,$D$59,$D$60,CONFIGURATION!$B$10,\"BMA\",CONFIGURATION!$B$1,\"bscr\",CONFIGURATION!$B$12)","v":"Mapped"}]
[null,null,null,{"$f":"XBRLMap(D24,D$61&\".\"&$T24,$D$59,$D$60,CONFIGURATION!$B$10,\"BMA\",CONFIGURATION!$B$1,\"bscr\",CONFIGURATION!$B$12)","v":"Mapped"},"Mapped","Mapped","Mapped","Mapped",null,"Mapped","Mapped",{"$f":"XBRLMap(L24,L$61&\".\"&$T24,$D$59,$D$60,CONFIGURATION!$B$10,\"BMA\",CONFIGURATION!$B$1,\"bscr\",CONFIGURATION!$B$12)","v":"Mapped"}]
[null,null,null,{"$f":"XBRLMap(D25,D$61&\".\"&$T25,$D$59,$D$60,CONFIGURATION!$B$10,\"BMA\",CONFIGURATION!$B$1,\"bscr\",CONFIGURATION!$B$12)","v":"Mapped"},"Mapped","Mapped","Mapped","Mapped",null,"Mapped","Mapped",{"$f":"XBRLMap(L25,L$61&\".\"&$T25,$D$59,$D$60,CONFIGURATION!$B$10,\"BMA\",CONFIGURATION!$B$1,\"bscr\",CONFIGURATION!$B$12)","v":"Mapped"}]
[null,null,null,{"$f":"XBRLMap(D26,D$61&\".\"&$T26,$D$59,$D$60,CONFIGURATION!$B$10,\"BMA\",CONFIGURATION!$B$1,\"bscr\",CONFIGURATION!$B$12)","v":"Mapped"},"Mapped","Mapped","Mapped","Mapped",null,"Mapped","Mapped",{"$f":"XBRLMap(L26,L$61&\".\"&$T26,$D$59,$D$60,CONFIGURATION!$B$10,\"BMA\",CONFIGURATION!$B$1,\"bscr\",CONFIGURATION!$B$12)","v":"Mapped"}]
[null,null,null,{"$f":"XBRLMap(D27,D$61&\".\"&$T27,$D$59,$D$60,CONFIGURATION!$B$10,\"BMA\",CONFIGURATION!$B$1,\"bscr\",CONFIGURATION!$B$12)","v":"Mapped"},"Mapped","Mapped","Mapped","Mapped",null,"Mapped","Mapped",{"$f":"XBRLMap(L27,L$61&\".\"&$T27,$D$59,$D$60,CONFIGURATION!$B$10,\"BMA\",CONFIGURATION!$B$1,\"bscr\",CONFIGURATION!$B$12)","v":"Mapped"}]
[null,null,null,{"$f":"XBRLMap(D28,D$61&\".\"&$T28,$D$59,$D$60,CONFIGURATION!$B$10,\"BMA\",CONFIGURATION!$B$1,\"bscr\",CONFIGURATION!$B$12)","v":"Mapped"},"Mapped","Mapped","Mapped","Mapped",null,"Mapped","Mapped",{"$f":"XBRLMap(L28,L$61&\".\"&$T28,$D$59,$D$60,CONFIGURATION!$B$10,\"BMA\",CONFIGURATION!$B$1,\"bscr\",CONFIGURATION!$B$12)","v":"Mapped"}]
[null,null,null,{"$f":"XBRLMap(D29,D$61&\".\"&$T29,$D$59,$D$60,CONFIGURATION!$B$10,\"BMA\",CONFIGURATION!$B$1,\"bscr\",CONFIGURATION!$B$12)","v":"Mapped"},"Mapped","Mapped","Mapped","Mapped",null,"Mapped","Mapped",{"$f":"XBRLMap(L29,L$61&\".\"&$T29,$D$59,$D$60,CONFIGURATION!$B$10,\"BMA\",CONFIGURATION!$B$1,\"bscr\",CONFIGURATION!$B$12)","v":"Mapped"}]
[null,null,null,{"$f":"XBRLMap(D30,D$61&\".\"&$T30,$D$59,$D$60,CONFIGURATION!$B$10,\"BMA\",CONFIGURATION!$B$1,\"bscr\",CONFIGURATION!$B$12)","v":"Mapped"},"Mapped","Mapped","Mapped","Mapped",null,"Mapped","Mapped",{"$f":"XBRLMap(L30,L$61&\".\"&$T30,$D$59,$D$60,CONFIGURATION!$B$10,\"BMA\",CONFIGURATION!$B$1,\"bscr\",CONFIGURATION!$B$12)","v":"Mapped"}]
[]
[]
[null,null,null,null,null,null,null,null,null,null,null,null,null,{"$f":"XBRLMap(N33,N$62&\".\"&$T33,$D$59,$D$60,CONFIGURATION!$B$10,\"BMA\",CONFIGURATION!$B$1,\"bscr\",CONFIGURATION!$B$12)","v":"Mapped"},{"$f":"XBRLMap(O33,O$62&\".\"&$T33,$D$59,$D$60,CONFIGURATION!$B$10,\"BMA\",CONFIGURATION!$B$1,\"bscr\",CONFIGURATION!$B$12)","v":"Mapped"},{"$f":"XBRLMap(P33,P$62&\".\"&$T33,$D$59,$D$60,CONFIGURATION!$B$10,\"BMA\",CONFIGURATION!$B$1,\"bscr\",CONFIGURATION!$B$12)","v":"Mapped"}]
[null,null,null,null,null,null,null,null,null,null,null,null,null,{"$f":"XBRLMap(N34,N$62&\".\"&$T34,$D$59,$D$60,CONFIGURATION!$B$10,\"BMA\",CONFIGURATION!$B$1,\"bscr\",CONFIGURATION!$B$12)","v":"Mapped"},{"$f":"XBRLMap(O34,O$62&\".\"&$T34,$D$59,$D$60,CONFIGURATION!$B$10,\"BMA\",CONFIGURATION!$B$1,\"bscr\",CONFIGURATION!$B$12)","v":"Mapped"},{"$f":"XBRLMap(P34,P$62&\".\"&$T34,$D$59,$D$60,CONFIGURATION!$B$10,\"BMA\",CONFIGURATION!$B$1,\"bscr\",CONFIGURATION!$B$12)","v":"Mapped"}]
[null,null,null,null,null,null,null,null,null,null,null,null,null,{"$f":"XBRLMap(N35,N$62&\".\"&$T35,$D$59,$D$60,CONFIGURATION!$B$10,\"BMA\",CONFIGURATION!$B$1,\"bscr\",CONFIGURATION!$B$12)","v":"Mapped"},{"$f":"XBRLMap(O35,O$62&\".\"&$T35,$D$59,$D$60,CONFIGURATION!$B$10,\"BMA\",CONFIGURATION!$B$1,\"bscr\",CONFIGURATION!$B$12)","v":"Mapped"},{"$f":"XBRLMap(P35,P$62&\".\"&$T35,$D$59,$D$60,CONFIGURATION!$B$10,\"BMA\",CONFIGURATION!$B$1,\"bscr\",CONFIGURATION!$B$12)","v":"Mapped"}]
[null,null,null,{"$f":"XBRLMap(D36,D$61&\".\"&$T36,$D$59,$D$60,CONFIGURATION!$B$10,\"BMA\",CONFIGURATION!$B$1,\"bscr\",CONFIGURATION!$B$12)","v":"Mapped"},"Mapped","Mapped","Mapped","Mapped",null,"Mapped","Mapped",{"$f":"XBRLMap(L36,L$61&\".\"&$T36,$D$59,$D$60,CONFIGURATION!$B$10,\"BMA\",CONFIGURATION!$B$1,\"bscr\",CONFIGURATION!$B$12)","v":"Mapped"},null,null,null,{"$f":"XBRLMap(P36,P$62&\".\"&$T36,$D$59,$D$60,CONFIGURATION!$B$10,\"BMA\",CONFIGURATION!$B$1,\"bscr\",CONFIGURATION!$B$12)","v":"Mapped"}]
[null,null,null,{"$f":"XBRLMap(D37,D$61&\".\"&$T37,$D$59,$D$60,CONFIGURATION!$B$10,\"BMA\",CONFIGURATION!$B$1,\"bscr\",CONFIGURATION!$B$12)","v":"Mapped"},"Mapped","Mapped","Mapped","Mapped",null,"Mapped","Mapped",{"$f":"XBRLMap(L37,L$61&\".\"&$T37,$D$59,$D$60,CONFIGURATION!$B$10,\"BMA\",CONFIGURATION!$B$1,\"bscr\",CONFIGURATION!$B$12)","v":"Mapped"},null,null,null,{"$f":"XBRLMap(P37,P$62&\".\"&$T37,$D$59,$D$60,CONFIGURATION!$B$10,\"BMA\",CONFIGURATION!$B$1,\"bscr\",CONFIGURATION!$B$12)","v":"Mapped"}]
[null,null,null,{"$f":"XBRLMap(D38,D$61&\".\"&$T38,$D$59,$D$60,CONFIGURATION!$B$10,\"BMA\",CONFIGURATION!$B$1,\"bscr\",CONFIGURATION!$B$12)","v":"Mapped"},"Mapped","Mapped","Mapped","Mapped",null,"Mapped","Mapped",{"$f":"XBRLMap(L38,L$61&\".\"&$T38,$D$59,$D$60,CONFIGURATION!$B$10,\"BMA\",CONFIGURATION!$B$1,\"bscr\",CONFIGURATION!$B$12)","v":"Mapped"}]
[null,null,null,{"$f":"XBRLMap(D39,D$61&\".\"&$T39,$D$59,$D$60,CONFIGURATION!$B$10,\"BMA\",CONFIGURATION!$B$1,\"bscr\",CONFIGURATION!$B$12)","v":"Mapped"},"Mapped","Mapped","Mapped","Mapped",null,"Mapped","Mapped",{"$f":"XBRLMap(L39,L$61&\".\"&$T39,$D$59,$D$60,CONFIGURATION!$B$10,\"BMA\",CONFIGURATION!$B$1,\"bscr\",CONFIGURATION!$B$12)","v":"Mapped"}]
[null,null,null,{"$f":"XBRLMap(D40,D$61&\".\"&$T40,$D$59,$D$60,CONFIGURATION!$B$10,\"BMA\",CONFIGURATION!$B$1,\"bscr\",CONFIGURATION!$B$12)","v":"Mapped"},"Mapped","Mapped","Mapped","Mapped",null,"Mapped","Mapped",{"$f":"XBRLMap(L40,L$61&\".\"&$T40,$D$59,$D$60,CONFIGURATION!$B$10,\"BMA\",CONFIGURATION!$B$1,\"bscr\",CONFIGURATION!$B$12)","v":"Mapped"}]
[null,null,null,{"$f":"XBRLMap(D41,D$61&\".\"&$T41,$D$59,$D$60,CONFIGURATION!$B$10,\"BMA\",CONFIGURATION!$B$1,\"bscr\",CONFIGURATION!$B$12)","v":"Mapped"},"Mapped","Mapped","Mapped","Mapped",null,"Mapped","Mapped",{"$f":"XBRLMap(L41,L$61&\".\"&$T41,$D$59,$D$60,CONFIGURATION!$B$10,\"BMA\",CONFIGURATION!$B$1,\"bscr\",CONFIGURATION!$B$12)","v":"Mapped"}]
[null,null,null,{"$f":"XBRLMap(D42,D$61&\".\"&$T42,$D$59,$D$60,CONFIGURATION!$B$10,\"BMA\",CONFIGURATION!$B$1,\"bscr\",CONFIGURATION!$B$12)","v":"Mapped"},"Mapped","Mapped","Mapped","Mapped",null,"Mapped","Mapped",{"$f":"XBRLMap(L42,L$61&\".\"&$T42,$D$59,$D$60,CONFIGURATION!$B$10,\"BMA\",CONFIGURATION!$B$1,\"bscr\",CONFIGURATION!$B$12)","v":"Mapped"},null,null,null,"Already mapped IV(a)"]
[null,null,null,{"$f":"XBRLMap(D43,D$61&\".\"&$T43,$D$59,$D$60,CONFIGURATION!$B$10,\"BMA\",CONFIGURATION!$B$1,\"bscr\",CONFIGURATION!$B$12)","v":"Mapped"},"Mapped","Mapped","Mapped","Mapped",null,"Mapped","Mapped",{"$f":"XBRLMap(L43,L$61&\".\"&$T43,$D$59,$D$60,CONFIGURATION!$B$10,\"BMA\",CONFIGURATION!$B$1,\"bscr\",CONFIGURATION!$B$12)","v":"Mapped"},null,null,null,"Already mapped IV(a)"]
[null,null,null,{"$f":"XBRLMap(D44,D$61&\".\"&$T44,$D$59,$D$60,CONFIGURATION!$B$10,\"BMA\",CONFIGURATION!$B$1,\"bscr\",CONFIGURATION!$B$12)","v":"Mapped"},"Mapped","Mapped","Mapped","Mapped",null,"Mapped","Mapped",{"$f":"XBRLMap(L44,L$61&\".\"&$T44,$D$59,$D$60,CONFIGURATION!$B$10,\"BMA\",CONFIGURATION!$B$1,\"bscr\",CONFIGURATION!$B$12)","v":"Mapped"}]
[]
[null,null,null,{"$f":"XBRLMap(D46,D$61&\".\"&$T46,$D$59,$D$60,CONFIGURATION!$B$10,\"BMA\",CONFIGURATION!$B$1,\"bscr\",CONFIGURATION!$B$12)","v":"Mapped"},"Mapped","Mapped","Mapped","Mapped",null,"Mapped","Mapped",{"$f":"XBRLMap(L46,L$61&\".\"&$T46,$D$59,$D$60,CONFIGURATION!$B$10,\"BMA\",CONFIGURATION!$B$1,\"bscr\",CONFIGURATION!$B$12)","v":"Mapped"}]
[null,null,null,{"$f":"XBRLMap(D47,D$61&\".\"&$T47,$D$59,$D$60,CONFIGURATION!$B$10,\"BMA\",CONFIGURATION!$B$1,\"bscr\",CONFIGURATION!$B$12)","v":"Mapped"},"Mapped","Mapped","Mapped","Mapped",null,"Mapped","Mapped",{"$f":"XBRLMap(L47,L$61&\".\"&$T47,$D$59,$D$60,CONFIGURATION!$B$10,\"BMA\",CONFIGURATION!$B$1,\"bscr\",CONFIGURATION!$B$12)","v":"Mapped"}]
[null,null,null,{"$f":"XBRLMap(D48,D$61&\".\"&$T48,$D$59,$D$60,CONFIGURATION!$B$10,\"BMA\",CONFIGURATION!$B$1,\"bscr\",CONFIGURATION!$B$12)","v":"Mapped"},"Mapped","Mapped","Mapped","Mapped",null,"Mapped","Mapped",{"$f":"XBRLMap(L48,L$61&\".\"&$T48,$D$59,$D$60,CONFIGURATION!$B$10,\"BMA\",CONFIGURATION!$B$1,\"bscr\",CONFIGURATION!$B$12)","v":"Mapped"}]
[]
[]
[]
[]
[]
[]
[]
[]
[]
[]
[]
[]
[null,null,null,"bma_longterm_StatementComponentAxis1_bma_ScheduleOfLongtermInsuranceBermudaStatutoryReserve","bma_longterm_StatementComponentAxis1_bma_ScheduleOfLongtermInsuranceReportedDacifAny",null,null,"bma_longterm_StatementComponentAxis1_bma_ScheduleOfLongtermInsuranceBestEstimateReserve",null,"bma_longterm_StatementComponentAxis1_bma_ScheduleOfLongtermInsuranceBestEstimateReservesubjectToZeroFloor","bma_longterm_StatementComponentAxis1_bma_ScheduleOfLongtermInsuranceBestEstimateReservesubjectToZeroFloor"]

{"sheet":"Schedule VII (EBS)","index":49,"n_rows":120,"n_cols":29,"rows_kept":120,"cut":false,"hidden":false,"merged":[[4,11,4,19],[6,11,7,11],[6,12,7,12],[6,13,7,13],[6,14,7,14],[6,15,7,15],[6,16,7,16],[6,17,7,17],[6,18,7,18],[6,19,7,19],[39,9,41,9],[6,5,7,5],[6,3,7,3],[26,7,26,9],[6,7,6,9],[30,7,31,7],[30,8,31,8],[30,9,31,9]]}
[null,null,"SCHEDULE OF LONG-TERM INSURANCE",null,null,null,null,null,null,null,null,null,null,null,null,null,null,null,null,{"$f":"HYPERLINK(\"#'Index'!A1\",\"Return to Index\")","v":"Return to Index"}]
[null,null,{"$f":"'Insurer Information'!C7","v":"Enter Company Name"}]
[null,null,{"$f":"TEXT('Insurer Information'!C3,\"mmmm dd, yyyy\")","v":"December 31, 2019"},null,null,null,null,null,null,null,null,null,null,null,null,null,null,null,null,"SCHEDULE VII (EBS)"]
[null,null,{"$f":"'Form 4EBS'!C4","v":"United States Dollars"}]
[null,"SCHEDULE OF LONG-TERM INSURANCE DATA",null,null,null,null,null,null,null,null,null,"Supplemental Notes to Long-Term Best Estimate Provisions"]
[null,null,null,"(1)",null,"(7)",null,"(9)","(10)","(11)",null,"(12)","(13)",{"$f":"YEAR('Insurer Information'!C3)","v":2019},"(15)","(16)","(17)","(18)","(19)","(20)"]
[null,null,null,"Bermuda EBS Best Estimate Provisions\n\n",null,"BSCR Adjusted Reserve Greater of (1) and Zero",null,"Net Amount at Risk",null,null,null,"Bound But Not Incepted (BBNI) Premium ","Best Estimate Provision In Respect to BBNI","Best Estimate Provision Using Transitional Arrangements","Equivalent of Column (14) if Transitional Arrangements were not used","Scenario Based approach Best Estimate For Technical Provisions ","Equivalent of column (16) if the Scenario based approach were not used","Equivalent of column (16) if the Base Scenario were used","BBNI Premium ","Best Estimate Provision In Respect to BBNI"]
[null,null,null,null,null,null,null,"Adjustable \nproduct/\ntreaty","Non-adjustable\nproduct/\ntreaty","Total"]
[null,null,null,{"$f":"CONFIGURATION!$D$12","v":" ('000s)"},null,{"$f":"CONFIGURATION!$D$12","v":" ('000s)"},null,{"$f":"CONFIGURATION!$D$12","v":" ('000s)"},{"$f":"CONFIGURATION!$D$12","v":" ('000s)"},{"$f":"CONFIGURATION!$D$12","v":" ('000s)"},null,"[Form 4EBS, note Line 27(d)-(i)]","[Form 4EBS, note Line 27(d)-(ii)]","[Form 4EBS, note Line 27(d)-(iii)]","[Form 4EBS, note Line 27(d)-(iv)]","[Form 4EBS, note Line 27(d)-(v)]","[Form 4EBS, note Line 27(d)-(vi)]","[Form 4EBS, note Line 27(d)-(vii)]","[Form 4EBS, note Line 27B(d)-(i)]","[Form 4EBS, note Line 27B(d)-(ii)]"]
[null,"1.","Mortality (term assurance, whole life, universal life)",{"$f":"Import!M4526","v":0},null,{"$f":"IF(D10>0,D10,0)","v":0},null,{"$f":"Import!M4555","v":0},{"$f":"Import!M4557","v":0},{"$f":"H10+I10","v":0},null,{"$f":"Import!M4559","v":0},{"$f":"Import!M4577","v":0},{"$f":"Import!M4595","v":0},{"$f":"Import!M4613","v":0},{"$f":"Import!M4631","v":0},{"$f":"Import!M4649","v":0},{"$f":"Import!M4667","v":0},{"$f":"Import!M4685","v":0},{"$f":"Import!M4703","v":0},null,null,"brrt_LongTermProductRidersAxis_brrt_MortalityMember",null,null,null,null,null,"bma_ScheduleOfLongtermInsuranceMortalitytermAssuranceWholeLifeUniversalLife"]
[null,"2.","Critical Illness (including accelerated critical illness products)",{"$f":"Import!M4527","v":0},null,{"$f":"IF(D11>0,D11,0)","v":0},null,{"$f":"Import!M4556","v":0},{"$f":"Import!M4558","v":0},{"$f":"H11+I11","v":0},null,{"$f":"Import!M4560","v":0},{"$f":"Import!M4578","v":0},{"$f":"Import!M4596","v":0},{"$f":"Import!M4614","v":0},{"$f":"Import!M4632","v":0},{"$f":"Import!M4650","v":0},{"$f":"Import!M4668","v":0},{"$f":"Import!M4686","v":0},{"$f":"Import!M4704","v":0},null,null,"brrt_LongTermProductRidersAxis_brrt_CriticalIllnessMember",null,null,null,null,null,"bma_ScheduleOfLongtermInsuranceCriticalIllnessincludingAcceleratedCiProducts"]
[null,"3.","Longevity (immediate pay-out annuities, contingent annuities, pension pay-outs)",null,null,null,null,null,null,null,null,null,null,null,null,null,null,null,null,null,null,null,null,null,null,null,null,null,"bma_ScheduleOfLongtermInsuranceLongevitypayoutAnnuitiesContingentAnnuitiesPensionBlocks"]
[null,null,"Attained age of Annuitant"]
[null,null,"(a) 0 - 55",{"$f":"Import!M4528","v":0},null,{"$f":"IF(D14>0,D14,0)","v":0},null,null,null,null,null,null,null,null,null,null,null,null,null,null,null,null,"brrt_LongTermProductRidersAxis_brrt_LongevityImmediatePayoutAnnuitiesAgeOfAnnuitantLessEqual55YearsMember"]
[null,null,"(b) 56 - 65",{"$f":"Import!M4529","v":0},null,{"$f":"IF(D15>0,D15,0)","v":0},null,null,null,null,null,null,null,null,null,null,null,null,null,null,null,null,"brrt_LongTermProductRidersAxis_brrt_LongevityImmediatePayoutAnnuitiesAgeOfAnnuitantMoreThan56LessEqual65YearsMember"]
[null,null,"(c) 66 - 70",{"$f":"Import!M4530","v":0},null,{"$f":"IF(D16>0,D16,0)","v":0},null,null,null,null,null,null,null,null,null,null,null,null,null,null,null,null,"brrt_LongTermProductRidersAxis_brrt_LongevityImmediatePayoutAnnuitiesAgeOfAnnuitantMoreThan66LessEqual70YearsMember"]
[null,null,"(d) 71 - 80",{"$f":"Import!M4531","v":0},null,{"$f":"IF(D17>0,D17,0)","v":0},null,null,null,null,null,null,null,null,null,null,null,null,null,null,null,null,"brrt_LongTermProductRidersAxis_brrt_LongevityImmediatePayoutAnnuitiesAgeOfAnnuitantMoreThan71LessEqual80YearsMember"]
[null,null,"(e) 81+",{"$f":"Import!M4532","v":0},null,{"$f":"IF(D18>0,D18,0)","v":0},null,null,null,null,null,null,null,null,null,null,null,null,null,null,null,null,"brrt_LongTermProductRidersAxis_brrt_LongevityImmediatePayoutAnnuitiesAgeOfAnnuitantMoreThan81YearsMember"]
[null,null,"(f) Total",{"$f":"SUM(D14:D18)","v":0},null,{"$f":"SUM(F14:F18)","v":0},null,null,null,null,null,{"$f":"Import!M4561","v":0},{"$f":"Import!M4579","v":0},{"$f":"Import!M4597","v":0},{"$f":"Import!M4615","v":0},{"$f":"Import!M4633","v":0},{"$f":"Import!M4651","v":0},{"$f":"Import!M4669","v":0},{"$f":"Import!M4687","v":0},{"$f":"Import!M4705","v":0},null,null,"brrt_LongTermProductRidersAxis_brrt_LongevityImmediatePayoutAnnuitiesTotalMember"]
[null,"4.","Longevity (deferred pay-out annuities, future contingent annuities, future pension pay-outs)",null,null,null,null,null,null,null,null,null,null,null,null,null,null,null,null,null,null,null,null,null,null,null,null,null,"bma_ScheduleOfLongtermInsuranceDeferredAnnuitiesincludingIndexLinkedProductsWithNoGuarantees"]
[null,null,"Age at which Annuity Benefits Commence"]
[null,null,"(a) 0 - 55",{"$f":"Import!M4534","v":0},null,{"$f":"IF(D22>0,D22,0)","v":0},null,null,null,null,null,null,null,null,null,null,null,null,null,null,null,null,"brrt_LongTermProductRidersAxis_brrt_LongevityDeferredPayoutAnnuitiesAgeAtWhichAnnuityBenefitsCommenceLessEqual55YearsMember"]
[null,null,"(b) 56 - 60",{"$f":"Import!M4535","v":0},null,0,null,null,null,null,null,null,null,null,null,null,null,null,null,null,null,null,"brrt_LongTermProductRidersAxis_brrt_LongevityDeferredPayoutAnnuitiesAgeAtWhichAnnuityBenefitsCommenceMoreThan56LessEqual60YearsMember"]
[null,null,"(c) 61 - 65",{"$f":"Import!M4536","v":0},null,0,null,null,null,null,null,null,null,null,null,null,null,null,null,null,null,null,"brrt_LongTermProductRidersAxis_brrt_LongevityDeferredPayoutAnnuitiesAgeAtWhichAnnuityBenefitsCommenceMoreThan61YearsLessEqual65YearsMember"]
[null,null,"(d) 66 - 70",{"$f":"Import!M4537","v":0},null,0,null,null,null,null,null,null,null,null,null,null,null,null,null,null,null,null,"brrt_LongTermProductRidersAxis_brrt_LongevityDeferredPayoutAnnuitiesAgeAtWhichAnnuityBenefitsCommenceMoreThan66LessEqual70YearsMember"]
[null,null,"(e) 71 - 75",{"$f":"Import!M4538","v":0},null,0,null,null,null,null,null,null,null,null,null,null,null,null,null,null,null,null,"brrt_LongTermProductRidersAxis_brrt_LongevityDeferredPayoutAnnuitiesAgeAtWhichAnnuityBenefitsCommenceMoreThan71LessEqual75YearsMember"]
[null,null,"(f) 76+",{"$f":"Import!M4539","v":0},null,0,null,"Net Annual Premium",null,null,null,null,null,null,null,null,null,null,null,null,null,null,"brrt_LongTermProductRidersAxis_brrt_LongevityDeferredPayoutAnnuitiesAgeAtWhichAnnuityBenefitsCommenceMoreThan76YearsMember"]
[null,null,"(g) Total",{"$f":"SUM(D22:D27)","v":0},null,{"$f":"SUM(F22:F27)","v":0},null,null,null,null,null,{"$f":"Import!M4562","v":0},{"$f":"Import!M4580","v":0},{"$f":"Import!M4598","v":0},{"$f":"Import!M4616","v":0},{"$f":"Import!M4634","v":0},{"$f":"Import!M4652","v":0},{"$f":"Import!M4670","v":0},{"$f":"Import!M4688","v":0},{"$f":"Import!M4706","v":0},null,null,"brrt_LongTermProductRidersAxis_brrt_LongevityDeferredPayoutAnnuitiesAgeAtWhichAnnuityBenefitsCommenceTotalMember"]
[null,"5.","Annuities certain only",{"$f":"Import!M4541","v":0},null,{"$f":"IF(D29>0,D29,0)","v":0},null,null,null,null,null,{"$f":"Import!M4563","v":0},{"$f":"Import!M4581","v":0},{"$f":"Import!M4599","v":0},{"$f":"Import!M4617","v":0},{"$f":"Import!M4635","v":0},{"$f":"Import!M4653","v":0},{"$f":"Import!M4671","v":0},{"$f":"Import!M4689","v":0},{"$f":"Import!M4707","v":0},null,null,"brrt_LongTermProductRidersAxis_brrt_AnnuitiesCertainOnlyMember",null,null,null,null,null,"bma_ScheduleOfLongtermInsuranceGroupLife"]
[null,"6.","Deferred accumulation annuities",{"$f":"Import!M4542","v":0},null,{"$f":"IF(D30>0,D30,0)","v":0},null,null,null,null,null,{"$f":"Import!M4564","v":0},{"$f":"Import!M4582","v":0},{"$f":"Import!M4600","v":0},{"$f":"Import!M4618","v":0},{"$f":"Import!M4636","v":0},{"$f":"Import!M4654","v":0},{"$f":"Import!M4672","v":0},{"$f":"Import!M4690","v":0},{"$f":"Import!M4708","v":0},null,null,"brrt_LongTermProductRidersAxis_brrt_DeferredAnnuitiesMember",null,null,null,null,null,"bma_ScheduleOfLongtermInsuranceGroupLife"]
[null,"7.","Disability Income: active lives - including waiver of premium and long-term care",null,null,null,null,"Benefit Period \n<= 2 years","Benefit period \n>2 years","Total",null,null,null,null,null,null,null,null,null,null,null,null,null,null,null,null,null,null,"bma_ScheduleOfLongtermInsuranceDisabilityIncomeActiveLivesInclWaiverOfPremiumAndLtc"]
[null,null,"Length of Premium Guarantee",null,null,null,null,null,null,null,null,null,null,null,null,null,null,null,null,null,null,null,null,null,null,null,null,null,"bma_ScheduleOfLongtermInsuranceLengthOfPremiumGuarantee"]
[null,null,"(a) <= 1 year",null,null,null,null,{"$f":"+'Schedule IVB (EBS)'!Q17","v":0},{"$f":"+'Schedule IVB (EBS)'!U17","v":0},{"$f":"H33+I33","v":0},null,null,null,null,null,null,null,null,null,null,null,null,"brrt_LongTermProductRidersAxis_brrt_DisabilityIncomeActiveLivesWaiverOfPremiumAndLTCLessThanOneYearMember",null,null,null,null,null,"bma_ScheduleOfLongtermInsuranceLengthOfPremiumGuaranteeaLtOrETo1Year"]
[null,null,"(b) 1-5 years",null,null,null,null,{"$f":"+'Schedule IVB (EBS)'!Q18","v":0},{"$f":"+'Schedule IVB (EBS)'!U18","v":0},{"$f":"H34+I34","v":0},null,null,null,null,null,null,null,null,null,null,null,null,"brrt_LongTermProductRidersAxis_brrt_DisabilityIncomeActiveLivesWaiverOfPremiumAndLTCBetween1AndFiveYearsMember",null,null,null,null,null,"bma_ScheduleOfLongtermInsuranceLengthOfPremiumGuaranteeb15Years"]
[null,null,"(c) >5 years",null,null,null,null,{"$f":"+'Schedule IVB (EBS)'!Q19","v":0},{"$f":"+'Schedule IVB (EBS)'!U19","v":0},{"$f":"H35+I35","v":0},null,null,null,null,null,null,null,null,null,null,null,null,"brrt_LongTermProductRidersAxis_brrt_DisabilityIncomeActiveLivesWaiverOfPremiumAndLTCMoreThanFiveYearsMember",null,null,null,null,null,"bma_ScheduleOfLongtermInsuranceLengthOfPremiumGuaranteecGt5Years"]
[null,null,"(d) Total",{"$f":"Import!M4543","v":0},null,{"$f":"IF(D36>0,D36,0)","v":0},null,null,null,{"$f":"SUM(J33:J35)","v":0},null,{"$f":"Import!M4565","v":0},{"$f":"Import!M4583","v":0},{"$f":"Import!M4601","v":0},{"$f":"Import!M4619","v":0},{"$f":"Import!M4637","v":0},{"$f":"Import!M4655","v":0},{"$f":"Import!M4673","v":0},{"$f":"Import!M4691","v":0},{"$f":"Import!M4709","v":0},null,null,"brrt_LongTermProductRidersAxis_brrt_DisabilityIncomeActiveLivesWaiverOfPremiumAndLTCTotalMember",null,null,null,null,null,"bma_ScheduleOfLongtermInsuranceLengthOfPremiumGuaranteeTotal"]
[null,"8.","Disability income: active lives - other accident and sickness",{"$f":"Import!M4544","v":0},null,0,null,null,null,{"$f":"+'Schedule IVB (EBS)'!Y20","v":0},null,{"$f":"Import!M4566","v":0},{"$f":"Import!M4584","v":0},{"$f":"Import!M4602","v":0},{"$f":"Import!M4620","v":0},{"$f":"Import!M4638","v":0},{"$f":"Import!M4656","v":0},{"$f":"Import!M4674","v":0},{"$f":"Import!M4692","v":0},{"$f":"Import!M4710","v":0},null,null,"brrt_LongTermProductRidersAxis_brrt_DisabilityIncomeActiveLivesOtherAccidentAndSicknessMember",null,null,null,null,null,"bma_ScheduleOfLongtermInsuranceDisabilityIncomeActiveLivesOtherAccidentAndSickness"]
[null,"9.","Disability income: claims in payment - including waiver of premium and long-term care",{"$f":"Import!M4545","v":0},null,0,null,null,null,null,null,{"$f":"Import!M4567","v":0},{"$f":"Import!M4585","v":0},{"$f":"Import!M4603","v":0},{"$f":"Import!M4621","v":0},{"$f":"Import!M4639","v":0},{"$f":"Import!M4657","v":0},{"$f":"Import!M4675","v":0},{"$f":"Import!M4693","v":0},{"$f":"Import!M4711","v":0},null,null,"brrt_LongTermProductRidersAxis_brrt_DisabilityIncomeClaimsInPaymentWaiverOfPremiumAndLTCMember",null,null,null,null,null,"bma_ScheduleOfLongtermInsuranceDisabilityIncomeClaimsInPaymentInclWaiverOfPremiumAndLtc"]
[null,"10.","Disability income: claims in payment - other accident and sickness",{"$f":"Import!M4546","v":0},null,0,null,null,null,null,null,{"$f":"Import!M4568","v":0},{"$f":"Import!M4586","v":0},{"$f":"Import!M4604","v":0},{"$f":"Import!M4622","v":0},{"$f":"Import!M4640","v":0},{"$f":"Import!M4658","v":0},{"$f":"Import!M4676","v":0},{"$f":"Import!M4694","v":0},{"$f":"Import!M4712","v":0},null,null,"brrt_LongTermProductRidersAxis_brrt_DisabilityIncomeClaimsInPaymentOtherAccidentAndSicknessMember",null,null,null,null,null,"bma_ScheduleOfLongtermInsuranceDisabilityIncomeClaimsInPaymentOtherAccidentAndSickness"]
[null,"11.","Group Life",{"$f":"Import!M4547","v":0},null,0,null,null,null,"Total Annual Premiums",null,{"$f":"Import!M4569","v":0},{"$f":"Import!M4587","v":0},{"$f":"Import!M4605","v":0},{"$f":"Import!M4623","v":0},{"$f":"Import!M4641","v":0},{"$f":"Import!M4659","v":0},{"$f":"Import!M4677","v":0},{"$f":"Import!M4695","v":0},{"$f":"Import!M4713","v":0},null,null,"brrt_LongTermProductRidersAxis_brrt_GroupLifeMember",null,null,null,null,null,"bma_ScheduleOfLongtermInsuranceGroupLife"]
[null,"12.","Group Disability",{"$f":"Import!M4548","v":0},null,0,null,null,null,null,null,{"$f":"Import!M4570","v":0},{"$f":"Import!M4588","v":0},{"$f":"Import!M4606","v":0},{"$f":"Import!M4624","v":0},{"$f":"Import!M4642","v":0},{"$f":"Import!M4660","v":0},{"$f":"Import!M4678","v":0},{"$f":"Import!M4696","v":0},{"$f":"Import!M4714","v":0},null,null,"brrt_LongTermProductRidersAxis_brrt_GroupDisabilityMember",null,null,null,null,null,"bma_ScheduleOfLongtermInsuranceGroupDisability"]
[null,"13.","Group Health",{"$f":"Import!M4549","v":0},null,0,null,null,null,null,null,{"$f":"Import!M4571","v":0},{"$f":"Import!M4589","v":0},{"$f":"Import!M4607","v":0},{"$f":"Import!M4625","v":0},{"$f":"Import!M4643","v":0},{"$f":"Import!M4661","v":0},{"$f":"Import!M4679","v":0},{"$f":"Import!M4697","v":0},{"$f":"Import!M4715","v":0},null,null,"brrt_LongTermProductRidersAxis_brrt_GroupHealthMember",null,null,null,null,null,"bma_ScheduleOfLongtermInsuranceGroupHealth"]
[null,"14.","Stop Loss",{"$f":"Import!M4550","v":0},null,0,null,null,null,{"$f":"+'Schedule IVB (EBS)'!Y28","v":0},null,{"$f":"Import!M4572","v":0},{"$f":"Import!M4590","v":0},{"$f":"Import!M4608","v":0},{"$f":"Import!M4626","v":0},{"$f":"Import!M4644","v":0},{"$f":"Import!M4662","v":0},{"$f":"Import!M4680","v":0},{"$f":"Import!M4698","v":0},{"$f":"Import!M4716","v":0},null,null,"brrt_LongTermProductRidersAxis_brrt_StopLossMember",null,null,null,null,null,"bma_ScheduleOfLongtermInsuranceNonproportionalCovers"]
[null,"15.","Rider (other product riders not included above)",{"$f":"Import!M4551","v":0},null,0,null,null,null,{"$f":"+'Schedule IVB (EBS)'!Y29","v":0},null,{"$f":"Import!M4573","v":0},{"$f":"Import!M4591","v":0},{"$f":"Import!M4609","v":0},{"$f":"Import!M4627","v":0},{"$f":"Import!M4645","v":0},{"$f":"Import!M4663","v":0},{"$f":"Import!M4681","v":0},{"$f":"Import!M4699","v":0},{"$f":"Import!M4717","v":0},null,null,"brrt_LongTermProductRidersAxis_brrt_OtherProductRidersMember",null,null,null,null,null,"bma_ScheduleOfLongtermInsuranceOtherProductRidersNotIncludedAbove"]
[null,null,null,null,null,null,null,null,null,null,null,null,null,null,null,null,null,null,null,null,null,null,null,null,null,null,null,null,""]
[null,"16.","Total (excluding variable annuities)",{"$f":"SUM(D10:D11,D14:D18,D29:D30,D22:D27,D36:D44)","v":0},null,{"$f":"SUM(F10:F11,F14:F18,F29:F30,F22:F27,F36:F44)","v":0},null,null,null,null,null,{"$f":"SUM(L10:L44)","v":0},{"$f":"SUM(M10:M44)","v":0},0,0,0,0,0,0,0,null,null,"brrt_LongTermProductRidersAxis_brrt_TotalExcludingVariableAnnuitiesMember",null,null,null,null,null,"bma_ScheduleOfLongtermInsuranceTotalexcludingVariableAnnuities"]
[null,"17.","Total - Variable Annuities",{"$f":"Import!M4553","v":0},null,{"$f":"IF(D47>0,D47,0)","v":0},null,null,null,null,null,{"$f":"Import!M4575","v":0},{"$f":"Import!M4593","v":0},{"$f":"Import!M4611","v":0},{"$f":"Import!M4629","v":0},{"$f":"Import!M4647","v":0},{"$f":"Import!M4665","v":0},{"$f":"Import!M4683","v":0},{"$f":"Import!M4701","v":0},{"$f":"Import!M4719","v":0},null,null,"brrt_LongTermProductRidersAxis_brrt_TotalVariableAnnuitiesMember"]
[null,"18.","Total with Variable Annuities",{"$f":"D46+D47","v":0},null,{"$f":"F46+F47","v":0},null,null,null,null,null,{"$f":"L46+L47","v":0},{"$f":"M46+M47","v":0},0,0,0,0,0,0,0,null,null,"brrt_LongTermProductRidersAxis_brrt_TotalIncludingVariableAnnuitiesMember"]
[]
[null,null,"Total Net Long-Term Business Insurance Reserves",{"$f":"'Form 4EBS'!F122","v":0}]
[]
[null,null,"Check",{"$f":"IF((D48-D50)=0,\"TRUE\",\"FALSE\")","v":"TRUE"}]
[]
[null,null,"Difference",{"$f":"D50-D48","v":0}]
[]
[]
[null,null,null,null,null,null,null,null,null,null,null,{"$f":"+'Form 4EBS'!F229","v":0},{"$f":"+'Form 4EBS'!F230","v":0},{"$f":"+'Form 4EBS'!F231","v":0},{"$f":"+'Form 4EBS'!F232","v":0},{"$f":"+'Form 4EBS'!F233","v":0},{"$f":"+'Form 4EBS'!F234","v":0},{"$f":"+'Form 4EBS'!F235","v":0},{"$f":"+'Form 4EBS'!F237","v":0},{"$f":"+'Form 4EBS'!F238","v":0}]
[]
[null,null,null,null,null,null,null,null,null,null,null,{"$f":"IF((L57-L48)=0,\"TRUE\",FALSE)","v":"TRUE"},"TRUE","TRUE","TRUE","TRUE","TRUE","TRUE","TRUE","TRUE"]
[]
[null,null,null,null,null,null,null,null,null,null,null,{"$f":"L57-L48","v":0},{"$f":"M57-M48","v":0},0,0,0,0,0,0,0]
[]
[]
[null,null,null,{"$f":"IF(C3=\"\",\"\",TEXT(DATE(YEAR(C3+1)-1,MONTH(C3+1),DAY(C3+1)),\"mm/dd/yyyy\"))","v":"01/01/2019"}]
[null,null,null,{"$f":"IF(C3=\"\",\"\",TEXT(C3,\"mm/dd/yyyy\"))","v":"12/31/2019"}]
[null,null,null,"brrt_BermudaStatutoryReserve",null,"brrt_BSCRAdjustedReserve",null,"brrt_NetAmountAtRiskAdjustableProductOrTreaty","brrt_NetAmountAtRiskNonAdjustableProductOrTreaty","brrt_NetAmountAtRisk"]
[null,null,null,null,null,null,null,"brrt_NetAnnualPremiumBenefitPeriodLessThanTwoYears","brrt_NetAnnualPremiumBenefitPeriodGreaterThanTwoYears","brrt_NetAnnualPremiumBenefitPeriodTotal"]
[]
[null,null,null,{"$f":"XBRLMap(D10,D$66&\".\"&$W10,$D$64,$D$65,CONFIGURATION!$B$10,\"BMA\",CONFIGURATION!$B$1,\"bscr\",CONFIGURATION!$B$12)","v":"Mapped"},null,{"$f":"XBRLMap(F10,F$66&\".\"&$W10,$D$64,$D$65,CONFIGURATION!$B$10,\"BMA\",CONFIGURATION!$B$1,\"bscr\",CONFIGURATION!$B$12)","v":"Mapped"},null,{"$f":"XBRLMap(H10,H$66&\".\"&$W10,$D$64,$D$65,CONFIGURATION!$B$10,\"BMA\",CONFIGURATION!$B$1,\"bscr\",CONFIGURATION!$B$12)","v":"Mapped"},{"$f":"XBRLMap(I10,I$66&\".\"&$W10,$D$64,$D$65,CONFIGURATION!$B$10,\"BMA\",CONFIGURATION!$B$1,\"bscr\",CONFIGURATION!$B$12)","v":"Mapped"},{"$f":"XBRLMap(J10,J$66&\".\"&$W10,$D$64,$D$65,CONFIGURATION!$B$10,\"BMA\",CONFIGURATION!$B$1,\"bscr\",CONFIGURATION!$B$12)","v":"Mapped"}]
[null,null,null,{"$f":"XBRLMap(D11,D$66&\".\"&$W11,$D$64,$D$65,CONFIGURATION!$B$10,\"BMA\",CONFIGURATION!$B$1,\"bscr\",CONFIGURATION!$B$12)","v":"Mapped"},null,{"$f":"XBRLMap(F11,F$66&\".\"&$W11,$D$64,$D$65,CONFIGURATION!$B$10,\"BMA\",CONFIGURATION!$B$1,\"bscr\",CONFIGURATION!$B$12)","v":"Mapped"},null,{"$f":"XBRLMap(H11,H$66&\".\"&$W11,$D$64,$D$65,CONFIGURATION!$B$10,\"BMA\",CONFIGURATION!$B$1,\"bscr\",CONFIGURATION!$B$12)","v":"Mapped"},{"$f":"XBRLMap(I11,I$66&\".\"&$W11,$D$64,$D$65,CONFIGURATION!$B$10,\"BMA\",CONFIGURATION!$B$1,\"bscr\",CONFIGURATION!$B$12)","v":"Mapped"},{"$f":"XBRLMap(J11,J$66&\".\"&$W11,$D$64,$D$65,CONFIGURATION!$B$10,\"BMA\",CONFIGURATION!$B$1,\"bscr\",CONFIGURATION!$B$12)","v":"Mapped"}]
[]
[]
[null,null,null,{"$f":"XBRLMap(D14,D$66&\".\"&$W14,$D$64,$D$65,CONFIGURATION!$B$10,\"BMA\",CONFIGURATION!$B$1,\"bscr\",CONFIGURATION!$B$12)","v":"Mapped"},null,{"$f":"XBRLMap(F14,F$66&\".\"&$W14,$D$64,$D$65,CONFIGURATION!$B$10,\"BMA\",CONFIGURATION!$B$1,\"bscr\",CONFIGURATION!$B$12)","v":"Mapped"}]
[null,null,null,{"$f":"XBRLMap(D15,D$66&\".\"&$W15,$D$64,$D$65,CONFIGURATION!$B$10,\"BMA\",CONFIGURATION!$B$1,\"bscr\",CONFIGURATION!$B$12)","v":"Mapped"},null,{"$f":"XBRLMap(F15,F$66&\".\"&$W15,$D$64,$D$65,CONFIGURATION!$B$10,\"BMA\",CONFIGURATION!$B$1,\"bscr\",CONFIGURATION!$B$12)","v":"Mapped"}]
[null,null,null,{"$f":"XBRLMap(D16,D$66&\".\"&$W16,$D$64,$D$65,CONFIGURATION!$B$10,\"BMA\",CONFIGURATION!$B$1,\"bscr\",CONFIGURATION!$B$12)","v":"Mapped"},null,{"$f":"XBRLMap(F16,F$66&\".\"&$W16,$D$64,$D$65,CONFIGURATION!$B$10,\"BMA\",CONFIGURATION!$B$1,\"bscr\",CONFIGURATION!$B$12)","v":"Mapped"}]
[null,null,null,{"$f":"XBRLMap(D17,D$66&\".\"&$W17,$D$64,$D$65,CONFIGURATION!$B$10,\"BMA\",CONFIGURATION!$B$1,\"bscr\",CONFIGURATION!$B$12)","v":"Mapped"},null,{"$f":"XBRLMap(F17,F$66&\".\"&$W17,$D$64,$D$65,CONFIGURATION!$B$10,\"BMA\",CONFIGURATION!$B$1,\"bscr\",CONFIGURATION!$B$12)","v":"Mapped"}]
[null,null,null,{"$f":"XBRLMap(D18,D$66&\".\"&$W18,$D$64,$D$65,CONFIGURATION!$B$10,\"BMA\",CONFIGURATION!$B$1,\"bscr\",CONFIGURATION!$B$12)","v":"Mapped"},null,{"$f":"XBRLMap(F18,F$66&\".\"&$W18,$D$64,$D$65,CONFIGURATION!$B$10,\"BMA\",CONFIGURATION!$B$1,\"bscr\",CONFIGURATION!$B$12)","v":"Mapped"}]
[null,null,null,{"$f":"XBRLMap(D19,D$66&\".\"&$W19,$D$64,$D$65,CONFIGURATION!$B$10,\"BMA\",CONFIGURATION!$B$1,\"bscr\",CONFIGURATION!$B$12)","v":"Mapped"},null,{"$f":"XBRLMap(F19,F$66&\".\"&$W19,$D$64,$D$65,CONFIGURATION!$B$10,\"BMA\",CONFIGURATION!$B$1,\"bscr\",CONFIGURATION!$B$12)","v":"Mapped"}]
[]
[]
[null,null,null,{"$f":"XBRLMap(D22,D$66&\".\"&$W22,$D$64,$D$65,CONFIGURATION!$B$10,\"BMA\",CONFIGURATION!$B$1,\"bscr\",CONFIGURATION!$B$12)","v":"Mapped"},null,{"$f":"XBRLMap(F22,F$66&\".\"&$W22,$D$64,$D$65,CONFIGURATION!$B$10,\"BMA\",CONFIGURATION!$B$1,\"bscr\",CONFIGURATION!$B$12)","v":"Mapped"}]
[null,null,null,{"$f":"XBRLMap(D23,D$66&\".\"&$W23,$D$64,$D$65,CONFIGURATION!$B$10,\"BMA\",CONFIGURATION!$B$1,\"bscr\",CONFIGURATION!$B$12)","v":"Mapped"},null,{"$f":"XBRLMap(F23,F$66&\".\"&$W23,$D$64,$D$65,CONFIGURATION!$B$10,\"BMA\",CONFIGURATION!$B$1,\"bscr\",CONFIGURATION!$B$12)","v":"Mapped"}]
[null,null,null,{"$f":"XBRLMap(D24,D$66&\".\"&$W24,$D$64,$D$65,CONFIGURATION!$B$10,\"BMA\",CONFIGURATION!$B$1,\"bscr\",CONFIGURATION!$B$12)","v":"Mapped"},null,{"$f":"XBRLMap(F24,F$66&\".\"&$W24,$D$64,$D$65,CONFIGURATION!$B$10,\"BMA\",CONFIGURATION!$B$1,\"bscr\",CONFIGURATION!$B$12)","v":"Mapped"}]
[null,null,null,{"$f":"XBRLMap(D25,D$66&\".\"&$W25,$D$64,$D$65,CONFIGURATION!$B$10,\"BMA\",CONFIGURATION!$B$1,\"bscr\",CONFIGURATION!$B$12)","v":"Mapped"},null,{"$f":"XBRLMap(F25,F$66&\".\"&$W25,$D$64,$D$65,CONFIGURATION!$B$10,\"BMA\",CONFIGURATION!$B$1,\"bscr\",CONFIGURATION!$B$12)","v":"Mapped"}]
[null,null,null,{"$f":"XBRLMap(D26,D$66&\".\"&$W26,$D$64,$D$65,CONFIGURATION!$B$10,\"BMA\",CONFIGURATION!$B$1,\"bscr\",CONFIGURATION!$B$12)","v":"Mapped"},null,{"$f":"XBRLMap(F26,F$66&\".\"&$W26,$D$64,$D$65,CONFIGURATION!$B$10,\"BMA\",CONFIGURATION!$B$1,\"bscr\",CONFIGURATION!$B$12)","v":"Mapped"}]
[null,null,null,{"$f":"XBRLMap(D27,D$66&\".\"&$W27,$D$64,$D$65,CONFIGURATION!$B$10,\"BMA\",CONFIGURATION!$B$1,\"bscr\",CONFIGURATION!$B$12)","v":"Mapped"},null,{"$f":"XBRLMap(F27,F$66&\".\"&$W27,$D$64,$D$65,CONFIGURATION!$B$10,\"BMA\",CONFIGURATION!$B$1,\"bscr\",CONFIGURATION!$B$12)","v":"Mapped"}]
[null,null,null,{"$f":"XBRLMap(D28,D$66&\".\"&$W28,$D$64,$D$65,CONFIGURATION!$B$10,\"BMA\",CONFIGURATION!$B$1,\"bscr\",CONFIGURATION!$B$12)","v":"Mapped"},null,{"$f":"XBRLMap(F28,F$66&\".\"&$W28,$D$64,$D$65,CONFIGURATION!$B$10,\"BMA\",CONFIGURATION!$B$1,\"bscr\",CONFIGURATION!$B$12)","v":"Mapped"}]
[null,null,null,{"$f":"XBRLMap(D29,D$66&\".\"&$W29,$D$64,$D$65,CONFIGURATION!$B$10,\"BMA\",CONFIGURATION!$B$1,\"bscr\",CONFIGURATION!$B$12)","v":"Mapped"},null,{"$f":"XBRLMap(F29,F$66&\".\"&$W29,$D$64,$D$65,CONFIGURATION!$B$10,\"BMA\",CONFIGURATION!$B$1,\"bscr\",CONFIGURATION!$B$12)","v":"Mapped"}]
[null,null,null,{"$f":"XBRLMap(D30,D$66&\".\"&$W30,$D$64,$D$65,CONFIGURATION!$B$10,\"BMA\",CONFIGURATION!$B$1,\"bscr\",CONFIGURATION!$B$12)","v":"Mapped"},null,{"$f":"XBRLMap(F30,F$66&\".\"&$W30,$D$64,$D$65,CONFIGURATION!$B$10,\"BMA\",CONFIGURATION!$B$1,\"bscr\",CONFIGURATION!$B$12)","v":"Mapped"}]
[]
[]
[null,null,null,null,null,null,null,{"$f":"XBRLMap(H33,H$67&\".\"&$W33,$D$64,$D$65,CONFIGURATION!$B$10,\"BMA\",CONFIGURATION!$B$1,\"bscr\",CONFIGURATION!$B$12)","v":"Mapped"},{"$f":"XBRLMap(I33,I$67&\".\"&$W33,$D$64,$D$65,CONFIGURATION!$B$10,\"BMA\",CONFIGURATION!$B$1,\"bscr\",CONFIGURATION!$B$12)","v":"Mapped"},{"$f":"XBRLMap(J33,J$67&\".\"&$W33,$D$64,$D$65,CONFIGURATION!$B$10,\"BMA\",CONFIGURATION!$B$1,\"bscr\",CONFIGURATION!$B$12)","v":"Mapped"}]
[null,null,null,null,null,null,null,{"$f":"XBRLMap(H34,H$67&\".\"&$W34,$D$64,$D$65,CONFIGURATION!$B$10,\"BMA\",CONFIGURATION!$B$1,\"bscr\",CONFIGURATION!$B$12)","v":"Mapped"},{"$f":"XBRLMap(I34,I$67&\".\"&$W34,$D$64,$D$65,CONFIGURATION!$B$10,\"BMA\",CONFIGURATION!$B$1,\"bscr\",CONFIGURATION!$B$12)","v":"Mapped"},{"$f":"XBRLMap(J34,J$67&\".\"&$W34,$D$64,$D$65,CONFIGURATION!$B$10,\"BMA\",CONFIGURATION!$B$1,\"bscr\",CONFIGURATION!$B$12)","v":"Mapped"}]
[null,null,null,null,null,null,null,{"$f":"XBRLMap(H35,H$67&\".\"&$W35,$D$64,$D$65,CONFIGURATION!$B$10,\"BMA\",CONFIGURATION!$B$1,\"bscr\",CONFIGURATION!$B$12)","v":"Mapped"},{"$f":"XBRLMap(I35,I$67&\".\"&$W35,$D$64,$D$65,CONFIGURATION!$B$10,\"BMA\",CONFIGURATION!$B$1,\"bscr\",CONFIGURATION!$B$12)","v":"Mapped"},{"$f":"XBRLMap(J35,J$67&\".\"&$W35,$D$64,$D$65,CONFIGURATION!$B$10,\"BMA\",CONFIGURATION!$B$1,\"bscr\",CONFIGURATION!$B$12)","v":"Mapped"}]
[null,null,null,{"$f":"XBRLMap(D36,D$66&\".\"&$W36,$D$64,$D$65,CONFIGURATION!$B$10,\"BMA\",CONFIGURATION!$B$1,\"bscr\",CONFIGURATION!$B$12)","v":"Mapped"},null,{"$f":"XBRLMap(F36,F$66&\".\"&$W36,$D$64,$D$65,CONFIGURATION!$B$10,\"BMA\",CONFIGURATION!$B$1,\"bscr\",CONFIGURATION!$B$12)","v":"Mapped"},null,null,null,{"$f":"XBRLMap(J36,J$67&\".\"&$W36,$D$64,$D$65,CONFIGURATION!$B$10,\"BMA\",CONFIGURATION!$B$1,\"bscr\",CONFIGURATION!$B$12)","v":"Mapped"}]
[null,null,null,{"$f":"XBRLMap(D37,D$66&\".\"&$W37,$D$64,$D$65,CONFIGURATION!$B$10,\"BMA\",CONFIGURATION!$B$1,\"bscr\",CONFIGURATION!$B$12)","v":"Mapped"},null,{"$f":"XBRLMap(F37,F$66&\".\"&$W37,$D$64,$D$65,CONFIGURATION!$B$10,\"BMA\",CONFIGURATION!$B$1,\"bscr\",CONFIGURATION!$B$12)","v":"Mapped"},null,null,null,{"$f":"XBRLMap(J37,J$67&\".\"&$W37,$D$64,$D$65,CONFIGURATION!$B$10,\"BMA\",CONFIGURATION!$B$1,\"bscr\",CONFIGURATION!$B$12)","v":"Mapped"}]
[null,null,null,{"$f":"XBRLMap(D38,D$66&\".\"&$W38,$D$64,$D$65,CONFIGURATION!$B$10,\"BMA\",CONFIGURATION!$B$1,\"bscr\",CONFIGURATION!$B$12)","v":"Mapped"},null,{"$f":"XBRLMap(F38,F$66&\".\"&$W38,$D$64,$D$65,CONFIGURATION!$B$10,\"BMA\",CONFIGURATION!$B$1,\"bscr\",CONFIGURATION!$B$12)","v":"Mapped"}]
[null,null,null,{"$f":"XBRLMap(D39,D$66&\".\"&$W39,$D$64,$D$65,CONFIGURATION!$B$10,\"BMA\",CONFIGURATION!$B$1,\"bscr\",CONFIGURATION!$B$12)","v":"Mapped"},null,{"$f":"XBRLMap(F39,F$66&\".\"&$W39,$D$64,$D$65,CONFIGURATION!$B$10,\"BMA\",CONFIGURATION!$B$1,\"bscr\",CONFIGURATION!$B$12)","v":"Mapped"}]
[null,null,null,{"$f":"XBRLMap(D40,D$66&\".\"&$W40,$D$64,$D$65,CONFIGURATION!$B$10,\"BMA\",CONFIGURATION!$B$1,\"bscr\",CONFIGURATION!$B$12)","v":"Mapped"},null,{"$f":"XBRLMap(F40,F$66&\".\"&$W40,$D$64,$D$65,CONFIGURATION!$B$10,\"BMA\",CONFIGURATION!$B$1,\"bscr\",CONFIGURATION!$B$12)","v":"Mapped"}]
[null,null,null,{"$f":"XBRLMap(D41,D$66&\".\"&$W41,$D$64,$D$65,CONFIGURATION!$B$10,\"BMA\",CONFIGURATION!$B$1,\"bscr\",CONFIGURATION!$B$12)","v":"Mapped"},null,{"$f":"XBRLMap(F41,F$66&\".\"&$W41,$D$64,$D$65,CONFIGURATION!$B$10,\"BMA\",CONFIGURATION!$B$1,\"bscr\",CONFIGURATION!$B$12)","v":"Mapped"}]
[null,null,null,{"$f":"XBRLMap(D42,D$66&\".\"&$W42,$D$64,$D$65,CONFIGURATION!$B$10,\"BMA\",CONFIGURATION!$B$1,\"bscr\",CONFIGURATION!$B$12)","v":"Mapped"},null,{"$f":"XBRLMap(F42,F$66&\".\"&$W42,$D$64,$D$65,CONFIGURATION!$B$10,\"BMA\",CONFIGURATION!$B$1,\"bscr\",CONFIGURATION!$B$12)","v":"Mapped"},null,null,null,"Already mapped IV(a)"]
[null,null,null,{"$f":"XBRLMap(D43,D$66&\".\"&$W43,$D$64,$D$65,CONFIGURATION!$B$10,\"BMA\",CONFIGURATION!$B$1,\"bscr\",CONFIGURATION!$B$12)","v":"Mapped"},null,{"$f":"XBRLMap(F43,F$66&\".\"&$W43,$D$64,$D$65,CONFIGURATION!$B$10,\"BMA\",CONFIGURATION!$B$1,\"bscr\",CONFIGURATION!$B$12)","v":"Mapped"},null,null,null,"Already mapped IV(a)"]
[null,null,null,{"$f":"XBRLMap(D44,D$66&\".\"&$W44,$D$64,$D$65,CONFIGURATION!$B$10,\"BMA\",CONFIGURATION!$B$1,\"bscr\",CONFIGURATION!$B$12)","v":"Mapped"},null,{"$f":"XBRLMap(F44,F$66&\".\"&$W44,$D$64,$D$65,CONFIGURATION!$B$10,\"BMA\",CONFIGURATION!$B$1,\"bscr\",CONFIGURATION!$B$12)","v":"Mapped"}]
[]
[null,null,null,{"$f":"XBRLMap(D46,D$66&\".\"&$W46,$D$64,$D$65,CONFIGURATION!$B$10,\"BMA\",CONFIGURATION!$B$1,\"bscr\",CONFIGURATION!$B$12)","v":"Mapped"},null,{"$f":"XBRLMap(F46,F$66&\".\"&$W46,$D$64,$D$65,CONFIGURATION!$B$10,\"BMA\",CONFIGURATION!$B$1,\"bscr\",CONFIGURATION!$B$12)","v":"Mapped"}]
[null,null,null,{"$f":"XBRLMap(D47,D$66&\".\"&$W47,$D$64,$D$65,CONFIGURATION!$B$10,\"BMA\",CONFIGURATION!$B$1,\"bscr\",CONFIGURATION!$B$12)","v":"Mapped"},null,{"$f":"XBRLMap(F47,F$66&\".\"&$W47,$D$64,$D$65,CONFIGURATION!$B$10,\"BMA\",CONFIGURATION!$B$1,\"bscr\",CONFIGURATION!$B$12)","v":"Mapped"}]
[null,null,null,{"$f":"XBRLMap(D48,D$66&\".\"&$W48,$D$64,$D$65,CONFIGURATION!$B$10,\"BMA\",CONFIGURATION!$B$1,\"bscr\",CONFIGURATION!$B$12)","v":"Mapped"},null,{"$f":"XBRLMap(F48,F$66&\".\"&$W48,$D$64,$D$65,CONFIGURATION!$B$10,\"BMA\",CONFIGURATION!$B$1,\"bscr\",CONFIGURATION!$B$12)","v":"Mapped"}]
[]
[]
[]
[]
[]
[]
[]
[]
[]
[]
[]
[]
[null,null,null,"bma_longterm_StatementComponentAxis1_bma_ScheduleOfLongtermInsuranceBermudaStatutoryReserve"]

{"sheet":"Schedule VIII","index":50,"n_rows":116,"n_cols":29,"rows_kept":116,"cut":false,"hidden":false,"merged":[[31,2,31,4],[51,2,51,4],[56,3,56,13],[7,5,8,5],[7,7,7,11],[7,13,7,17],[12,2,12,4],[13,2,13,4],[30,2,30,4]]}
[null,null,"SCHEDULE OF LONG-TERM VARIABLE ANNUITY",null,null,null,null,null,null,null,null,null,null,null,null,null,null,{"$f":"HYPERLINK(\"#'Index'!A1\",\"Return to Index\")","v":"Return to Index"}]
[null,null,{"$f":"'Insurer Information'!C7","v":"Enter Company Name"}]
[null,null,{"$f":"TEXT('Insurer Information'!C3,\"mmmm dd, yyyy\")","v":"December 31, 2019"},null,null,null,null,null,null,null,null,null,null,null,null,null,null,"SCHEDULE VIII"]
[null,null,{"$f":"'Form 4EBS'!C4","v":"United States Dollars"}]
[]
[null,"SCHEDULE OF LONG TERM VARIABLE ANNUITY GUARANTEES",null,null,null,null,null,null,null,null,null,null,null,{"$f":"YEAR('Insurer Information'!C3)","v":2019}]
[null,null,null,null,null,"(1)",null,"(2)",null,"(3)",null,"(4)",null,"(5)",null,"(6)",null,"(7)"]
[null,null,null,null,null,"Bermuda Statutory Reserve",null,"Guaranteed Value 4",null,null,null,null,null,"Net Amount at Risk"]
[null,null,null,null,null,null,null,"Volatility (0% - 10.0%]",null,"Volatility (10.0% - 15.0%]",null,"Volatility >15.0%",null,"Volatility (0% - 10.0%]",null,"Volatility (10.0% - 15.0%]",null,"Volatility >15.0%"]
[null,null,null,null,null,{"$f":"CONFIGURATION!$D$12","v":" ('000s)"},null,{"$f":"CONFIGURATION!$D$12","v":" ('000s)"},null,{"$f":"CONFIGURATION!$D$12","v":" ('000s)"},null,{"$f":"CONFIGURATION!$D$12","v":" ('000s)"},null,{"$f":"CONFIGURATION!$D$12","v":" ('000s)"},null,{"$f":"CONFIGURATION!$D$12","v":" ('000s)"},null,{"$f":"CONFIGURATION!$D$12","v":" ('000s)"}]
[]
[null,null,"In-the-Money "]
[null,1,"Guaranteed Minimum Death Benefit: Return of Premium, Ratchet and Reset 2.",null,null,{"$f":"Import!E4722","v":0},null,{"$f":"Import!E4753","v":0},null,{"$f":"Import!E4784","v":0},null,{"$f":"Import!E4815","v":0},null,{"$f":"Import!E4846","v":0},null,{"$f":"Import!E4862","v":0},null,{"$f":"Import!E4878","v":0},null,null,"brrt_VariableAnnuitiesGuaranteesAxis_brrt_GuaranteedMinimumDeathBenefitReturnOfPremiumRatchetAndResetMember","brrt_InOutOfMoneyAxis_brrt_InTheMoneyMember",null,null,null,null,null,null,"bma_ScheduleOfLongTermVariableAnnuityGuaranteesGuaranteedMinimumDeathBenefitReturnOfPremiumRatchetAndReset2"]
[null,2,"Guaranteed Minimum Death Benefit: Enhanced Benefits (Roll up) 2.",null,null,{"$f":"Import!E4723","v":0},null,{"$f":"Import!E4754","v":0},null,{"$f":"Import!E4785","v":0},null,{"$f":"Import!E4816","v":0},null,{"$f":"Import!E4847","v":0},null,{"$f":"Import!E4863","v":0},null,{"$f":"Import!E4879","v":0},null,null,"brrt_VariableAnnuitiesGuaranteesAxis_brrt_GuaranteedMinimumDeathBenefitEnhancedBenefitsRollUpMember","brrt_InOutOfMoneyAxis_brrt_InTheMoneyMember",null,null,null,null,null,null,"bma_ScheduleOfLongTermVariableAnnuityGuaranteesGuaranteedMinimumDeathBenefitEnhancedBenefitsrollUp2"]
[null,3,"Guaranteed Minimum Income Benefit",null,null,{"$f":"Import!E4724","v":0},null,{"$f":"Import!E4755","v":0},null,{"$f":"Import!E4786","v":0},null,{"$f":"Import!E4817","v":0},null,{"$f":"Import!E4848","v":0},null,{"$f":"Import!E4864","v":0},null,{"$f":"Import!E4880","v":0},null,null,"brrt_VariableAnnuitiesGuaranteesAxis_brrt_GuaranteedMinimumIncomeBenefitMember","brrt_InOutOfMoneyAxis_brrt_InTheMoneyMember",null,null,null,null,null,null,"bma_ScheduleOfLongTermVariableAnnuityGuaranteesGuaranteedMinimumIncomeBenefit"]
[null,4,"Guaranteed Minimum Withdrawal Benefit",null,null,{"$f":"Import!E4725","v":0},null,{"$f":"Import!E4756","v":0},null,{"$f":"Import!E4787","v":0},null,{"$f":"Import!E4818","v":0},null,{"$f":"Import!E4849","v":0},null,{"$f":"Import!E4865","v":0},null,{"$f":"Import!E4881","v":0},null,null,"brrt_VariableAnnuitiesGuaranteesAxis_brrt_GuaranteedMinimumWithdrawalBenefitMember","brrt_InOutOfMoneyAxis_brrt_InTheMoneyMember",null,null,null,null,null,null,"bma_ScheduleOfLongTermVariableAnnuityGuaranteesGuaranteedMinimumWithdrawalBenefit"]
[null,5,"Guaranteed Enhanced Earnings Benefit",null,null,{"$f":"Import!E4726","v":0},null,{"$f":"Import!E4757","v":0},null,{"$f":"Import!E4788","v":0},null,{"$f":"Import!E4819","v":0},null,{"$f":"Import!E4850","v":0},null,{"$f":"Import!E4866","v":0},null,{"$f":"Import!E4882","v":0},null,null,"brrt_VariableAnnuitiesGuaranteesAxis_brrt_GuaranteedEnhancedEarningsBenefitMember","brrt_InOutOfMoneyAxis_brrt_InTheMoneyMember",null,null,null,null,null,null,"bma_ScheduleOfLongTermVariableAnnuityGuaranteesGuaranteedEnhancedEarningsBenefit"]
[null,null,"Guaranteed Minimum Accumulation Benefit: "]
[null,6,"Time To Maturity - 0-1 Year",null,null,{"$f":"Import!E4727","v":0},null,{"$f":"Import!E4758","v":0},null,{"$f":"Import!E4789","v":0},null,{"$f":"Import!E4820","v":0},null,{"$f":"Import!E4851","v":0},null,{"$f":"Import!E4867","v":0},null,{"$f":"Import!E4883","v":0},null,null,"brrt_VariableAnnuitiesGuaranteesAxis_brrt_GuaranteedMinimumAccumulationLessThan1YearMember","brrt_InOutOfMoneyAxis_brrt_InTheMoneyMember"]
[null,7,"Time To Maturity - 1-2 Years",null,null,{"$f":"Import!E4728","v":0},null,{"$f":"Import!E4759","v":0},null,{"$f":"Import!E4790","v":0},null,{"$f":"Import!E4821","v":0},null,{"$f":"Import!E4852","v":0},null,{"$f":"Import!E4868","v":0},null,{"$f":"Import!E4884","v":0},null,null,"brrt_VariableAnnuitiesGuaranteesAxis_brrt_GuaranteedMinimumAccumulationMoreThan1LessThan2YearsMember","brrt_InOutOfMoneyAxis_brrt_InTheMoneyMember"]
[null,8,"Time To Maturity - 2-3 Years",null,null,{"$f":"Import!E4729","v":0},null,{"$f":"Import!E4760","v":0},null,{"$f":"Import!E4791","v":0},null,{"$f":"Import!E4822","v":0},null,{"$f":"Import!E4853","v":0},null,{"$f":"Import!E4869","v":0},null,{"$f":"Import!E4885","v":0},null,null,"brrt_VariableAnnuitiesGuaranteesAxis_brrt_GuaranteedMinimumAccumulationMoreThan2LessThan3YearsMember","brrt_InOutOfMoneyAxis_brrt_InTheMoneyMember"]
[null,9,"Time To Maturity - 3-4 Years",null,null,{"$f":"Import!E4730","v":0},null,{"$f":"Import!E4761","v":0},null,{"$f":"Import!E4792","v":0},null,{"$f":"Import!E4823","v":0},null,{"$f":"Import!E4854","v":0},null,{"$f":"Import!E4870","v":0},null,{"$f":"Import!E4886","v":0},null,null,"brrt_VariableAnnuitiesGuaranteesAxis_brrt_GuaranteedMinimumAccumulationMoreThan3LessThan4YearsMember","brrt_InOutOfMoneyAxis_brrt_InTheMoneyMember"]
[null,10,"Time To Maturity - 4-5 Years",null,null,{"$f":"Import!E4731","v":0},null,{"$f":"Import!E4762","v":0},null,{"$f":"Import!E4793","v":0},null,{"$f":"Import!E4824","v":0},null,{"$f":"Import!E4855","v":0},null,{"$f":"Import!E4871","v":0},null,{"$f":"Import!E4887","v":0},null,null,"brrt_VariableAnnuitiesGuaranteesAxis_brrt_GuaranteedMinimumAccumulationMoreThan4LessThan5YearsMember","brrt_InOutOfMoneyAxis_brrt_InTheMoneyMember"]
[null,11,"Time To Maturity - 5-6 Years",null,null,{"$f":"Import!E4732","v":0},null,{"$f":"Import!E4763","v":0},null,{"$f":"Import!E4794","v":0},null,{"$f":"Import!E4825","v":0},null,{"$f":"Import!E4856","v":0},null,{"$f":"Import!E4872","v":0},null,{"$f":"Import!E4888","v":0},null,null,"brrt_VariableAnnuitiesGuaranteesAxis_brrt_GuaranteedMinimumAccumulationMoreThan5LessThan6YearsMember","brrt_InOutOfMoneyAxis_brrt_InTheMoneyMember"]
[null,12,"Time To Maturity - 6-7 Years",null,null,{"$f":"Import!E4733","v":0},null,{"$f":"Import!E4764","v":0},null,{"$f":"Import!E4795","v":0},null,{"$f":"Import!E4826","v":0},null,{"$f":"Import!E4857","v":0},null,{"$f":"Import!E4873","v":0},null,{"$f":"Import!E4889","v":0},null,null,"brrt_VariableAnnuitiesGuaranteesAxis_brrt_GuaranteedMinimumAccumulationMoreThan6LessThan7YearsMember","brrt_InOutOfMoneyAxis_brrt_InTheMoneyMember"]
[null,13,"Time To Maturity - 7-8 Years",null,null,{"$f":"Import!E4734","v":0},null,{"$f":"Import!E4765","v":0},null,{"$f":"Import!E4796","v":0},null,{"$f":"Import!E4827","v":0},null,{"$f":"Import!E4858","v":0},null,{"$f":"Import!E4874","v":0},null,{"$f":"Import!E4890","v":0},null,null,"brrt_VariableAnnuitiesGuaranteesAxis_brrt_GuaranteedMinimumAccumulationMoreThan7LessThan8YearsMember","brrt_InOutOfMoneyAxis_brrt_InTheMoneyMember"]
[null,14,"Time To Maturity - 8-9 Years",null,null,{"$f":"Import!E4735","v":0},null,{"$f":"Import!E4766","v":0},null,{"$f":"Import!E4797","v":0},null,{"$f":"Import!E4828","v":0},null,{"$f":"Import!E4859","v":0},null,{"$f":"Import!E4875","v":0},null,{"$f":"Import!E4891","v":0},null,null,"brrt_VariableAnnuitiesGuaranteesAxis_brrt_GuaranteedMinimumAccumulationMoreThan8LessThan9YearsMember","brrt_InOutOfMoneyAxis_brrt_InTheMoneyMember"]
[null,15,"Time To Maturity - >9 Years",null,null,{"$f":"Import!E4736","v":0},null,{"$f":"Import!E4767","v":0},null,{"$f":"Import!E4798","v":0},null,{"$f":"Import!E4829","v":0},null,{"$f":"Import!E4860","v":0},null,{"$f":"Import!E4876","v":0},null,{"$f":"Import!E4892","v":0},null,null,"brrt_VariableAnnuitiesGuaranteesAxis_brrt_GuaranteedMinimumAccumulationMoreThan9YearsMember","brrt_InOutOfMoneyAxis_brrt_InTheMoneyMember"]
[]
[null,null,"Out-of-the-Money "]
[null,16,"Guaranteed Minimum Death Benefit: Return of Premium, Ratchet and Reset 2.",null,null,{"$f":"Import!E4737","v":0},null,{"$f":"Import!E4768","v":0},null,{"$f":"Import!E4799","v":0},null,{"$f":"Import!E4830","v":0},null,null,null,null,null,null,null,null,"brrt_VariableAnnuitiesGuaranteesAxis_brrt_GuaranteedMinimumDeathBenefitReturnOfPremiumRatchetAndResetMember","brrt_InOutOfMoneyAxis_brrt_OutOfTheMoneyMember",null,null,null,null,null,null,"bma_ScheduleOfLongTermVariableAnnuityGuaranteesGuaranteedMinimumDeathBenefitReturnOfPremiumRatchetAndReset2"]
[null,17,"Guaranteed Minimum Death Benefit: Enhanced Benefits (Roll up) 2.",null,null,{"$f":"Import!E4738","v":0},null,{"$f":"Import!E4769","v":0},null,{"$f":"Import!E4800","v":0},null,{"$f":"Import!E4831","v":0},null,null,null,null,null,null,null,null,"brrt_VariableAnnuitiesGuaranteesAxis_brrt_GuaranteedMinimumDeathBenefitEnhancedBenefitsRollUpMember","brrt_InOutOfMoneyAxis_brrt_OutOfTheMoneyMember",null,null,null,null,null,null,"bma_ScheduleOfLongTermVariableAnnuityGuaranteesGuaranteedMinimumDeathBenefitEnhancedBenefitsrollUp2"]
[null,18,"Guaranteed Minimum Income Benefit",null,null,{"$f":"Import!E4739","v":0},null,{"$f":"Import!E4770","v":0},null,{"$f":"Import!E4801","v":0},null,{"$f":"Import!E4832","v":0},null,null,null,null,null,null,null,null,"brrt_VariableAnnuitiesGuaranteesAxis_brrt_GuaranteedMinimumIncomeBenefitMember","brrt_InOutOfMoneyAxis_brrt_OutOfTheMoneyMember",null,null,null,null,null,null,"bma_ScheduleOfLongTermVariableAnnuityGuaranteesGuaranteedMinimumIncomeBenefit"]
[null,19,"Guaranteed Minimum Withdrawal Benefit",null,null,{"$f":"Import!E4740","v":0},null,{"$f":"Import!E4771","v":0},null,{"$f":"Import!E4802","v":0},null,{"$f":"Import!E4833","v":0},null,null,null,null,null,null,null,null,"brrt_VariableAnnuitiesGuaranteesAxis_brrt_GuaranteedMinimumWithdrawalBenefitMember","brrt_InOutOfMoneyAxis_brrt_OutOfTheMoneyMember",null,null,null,null,null,null,"bma_ScheduleOfLongTermVariableAnnuityGuaranteesGuaranteedMinimumWithdrawalBenefit"]
[null,20,"Guaranteed Enhanced Earnings Benefit",null,null,{"$f":"Import!E4741","v":0},null,{"$f":"Import!E4772","v":0},null,{"$f":"Import!E4803","v":0},null,{"$f":"Import!E4834","v":0},null,null,null,null,null,null,null,null,"brrt_VariableAnnuitiesGuaranteesAxis_brrt_GuaranteedEnhancedEarningsBenefitMember","brrt_InOutOfMoneyAxis_brrt_OutOfTheMoneyMember",null,null,null,null,null,null,"bma_ScheduleOfLongTermVariableAnnuityGuaranteesGuaranteedEnhancedEarningsBenefit"]
[null,null,"Guaranteed Minimum Accumulation Benefit: "]
[null,21,"Time To Maturity - 0-1 Year",null,null,{"$f":"Import!E4742","v":0},null,{"$f":"Import!E4773","v":0},null,{"$f":"Import!E4804","v":0},null,{"$f":"Import!E4835","v":0},null,null,null,null,null,null,null,null,"brrt_VariableAnnuitiesGuaranteesAxis_brrt_GuaranteedMinimumAccumulationLessThan1YearMember","brrt_InOutOfMoneyAxis_brrt_OutOfTheMoneyMember"]
[null,22,"Time To Maturity - 1-2 Years",null,null,{"$f":"Import!E4743","v":0},null,{"$f":"Import!E4774","v":0},null,{"$f":"Import!E4805","v":0},null,{"$f":"Import!E4836","v":0},null,null,null,null,null,null,null,null,"brrt_VariableAnnuitiesGuaranteesAxis_brrt_GuaranteedMinimumAccumulationMoreThan1LessThan2YearsMember","brrt_InOutOfMoneyAxis_brrt_OutOfTheMoneyMember"]
[null,23,"Time To Maturity - 2-3 Years",null,null,{"$f":"Import!E4744","v":0},null,{"$f":"Import!E4775","v":0},null,{"$f":"Import!E4806","v":0},null,{"$f":"Import!E4837","v":0},null,null,null,null,null,null,null,null,"brrt_VariableAnnuitiesGuaranteesAxis_brrt_GuaranteedMinimumAccumulationMoreThan2LessThan3YearsMember","brrt_InOutOfMoneyAxis_brrt_OutOfTheMoneyMember"]
[null,24,"Time To Maturity - 3-4 Years",null,null,{"$f":"Import!E4745","v":0},null,{"$f":"Import!E4776","v":0},null,{"$f":"Import!E4807","v":0},null,{"$f":"Import!E4838","v":0},null,null,null,null,null,null,null,null,"brrt_VariableAnnuitiesGuaranteesAxis_brrt_GuaranteedMinimumAccumulationMoreThan3LessThan4YearsMember","brrt_InOutOfMoneyAxis_brrt_OutOfTheMoneyMember"]
[null,25,"Time To Maturity - 4-5 Years",null,null,{"$f":"Import!E4746","v":0},null,{"$f":"Import!E4777","v":0},null,{"$f":"Import!E4808","v":0},null,{"$f":"Import!E4839","v":0},null,null,null,null,null,null,null,null,"brrt_VariableAnnuitiesGuaranteesAxis_brrt_GuaranteedMinimumAccumulationMoreThan4LessThan5YearsMember","brrt_InOutOfMoneyAxis_brrt_OutOfTheMoneyMember"]
[null,26,"Time To Maturity - 5-6 Years",null,null,{"$f":"Import!E4747","v":0},null,{"$f":"Import!E4778","v":0},null,{"$f":"Import!E4809","v":0},null,{"$f":"Import!E4840","v":0},null,null,null,null,null,null,null,null,"brrt_VariableAnnuitiesGuaranteesAxis_brrt_GuaranteedMinimumAccumulationMoreThan5LessThan6YearsMember","brrt_InOutOfMoneyAxis_brrt_OutOfTheMoneyMember"]
[null,27,"Time To Maturity - 6-7 Years",null,null,{"$f":"Import!E4748","v":0},null,{"$f":"Import!E4779","v":0},null,{"$f":"Import!E4810","v":0},null,{"$f":"Import!E4841","v":0},null,null,null,null,null,null,null,null,"brrt_VariableAnnuitiesGuaranteesAxis_brrt_GuaranteedMinimumAccumulationMoreThan6LessThan7YearsMember","brrt_InOutOfMoneyAxis_brrt_OutOfTheMoneyMember"]
[null,28,"Time To Maturity - 7-8 Years",null,null,{"$f":"Import!E4749","v":0},null,{"$f":"Import!E4780","v":0},null,{"$f":"Import!E4811","v":0},null,{"$f":"Import!E4842","v":0},null,null,null,null,null,null,null,null,"brrt_VariableAnnuitiesGuaranteesAxis_brrt_GuaranteedMinimumAccumulationMoreThan7LessThan8YearsMember","brrt_InOutOfMoneyAxis_brrt_OutOfTheMoneyMember"]
[null,29,"Time To Maturity - 8-9 Years",null,null,{"$f":"Import!E4750","v":0},null,{"$f":"Import!E4781","v":0},null,{"$f":"Import!E4812","v":0},null,{"$f":"Import!E4843","v":0},null,null,null,null,null,null,null,null,"brrt_VariableAnnuitiesGuaranteesAxis_brrt_GuaranteedMinimumAccumulationMoreThan8LessThan9YearsMember","brrt_InOutOfMoneyAxis_brrt_OutOfTheMoneyMember"]
[null,30,"Time To Maturity - >9 Years",null,null,{"$f":"Import!E4751","v":0},null,{"$f":"Import!E4782","v":0},null,{"$f":"Import!E4813","v":0},null,{"$f":"Import!E4844","v":0},null,null,null,null,null,null,null,null,"brrt_VariableAnnuitiesGuaranteesAxis_brrt_GuaranteedMinimumAccumulationMoreThan9YearsMember","brrt_InOutOfMoneyAxis_brrt_OutOfTheMoneyMember"]
[null,null,null,null,null,null,null,null,null,null,null,null,null,null,null,null,null,null,null,null,null,null,null,null,null,null,null,null,""]
[null,31,"Total (Variable Annuities)",null,null,{"$f":"SUM(F13:F47)","v":0},null,{"$f":"SUM(H13:H47)","v":0},null,{"$f":"SUM(J13:J47)","v":0},null,{"$f":"SUM(L13:L47)","v":0},null,{"$f":"SUM(N13:N47)","v":0},null,{"$f":"SUM(P13:P47)","v":0},null,{"$f":"SUM(R13:R47)","v":0},null,null,"brrt_VariableAnnuitiesGuaranteesAxis_brrt_TotalMember","brrt_InOutOfMoneyAxis_brrt_TotalMember",null,null,null,null,null,null,"bma_ScheduleOfLongTermVariableAnnuityGuaranteesTotalvariableAnnuities"]
[]
[null,32,"Percentage of Guaranteed Minimum Death Benefit with Multiple Guarantees",null,null,null,null,null,null,null,null,{"$f":"Import!E4894","v":0},null,null,null,null,null,null,null,{"$f":"XBRLMap(L50,U$50,$F$71,$F$72,CONFIGURATION!$B$10,\"BMA\",CONFIGURATION!$B$1,\"bscr\",CONFIGURATION!$B$12)","v":"Mapped"},"brrt_PercentageOfGuaranteedMinimumDeathBenefitWithMultipleGuarantees"]
[]
[]
[null,"Notes"]
[null,"1.  Factors should be applied to Net Amount at Risk (NAR) defined as:"]
[null,null,"GMAB","Total claim payable if all contracts mature immediately"]
[null,null,"GMDB","Total claim amount payable upon immediate death of all policyholders"]
[null,null,"GMIB","Total claim payable upon full and immediate annuitization of all policies using an 80% factor applied to the GV (the 80% represents the ratio between current market annuitization factors and the guaranteed annuitization factors)"]
[null,null,"GMWB","Total claim payable if 100% of the guaranteed withdrawal benefit base in excess of the current account value is withdrawn immediately"]
[null,null,"GEEB","Total guaranteed enhanced payments upon immediate death of all policyholders"]
[]
[null,"2. Where ratchets, resets and roll-ups exist, please use the roll-up category."]
[]
[null,"3.  NAR is net of reinsurance."]
[]
[null,"4.  The proportion used for the account value under reinsurance is the proportion used for NAR."]
[]
[null,"5.  Volatility is defined as the annual volatility of the fund.  In the case where there is no, or limited, history of the fund, use the volatility of the benchmark."]
[]
[]
[]
[null,null,null,null,null,{"$f":"IF(C3=\"\",\"\",TEXT(DATE(YEAR(C3+1)-1,MONTH(C3+1),DAY(C3+1)),\"mm/dd/yyyy\"))","v":"01/01/2019"}]
[null,null,null,null,null,{"$f":"IF(C3=\"\",\"\",TEXT(C3,\"mm/dd/yyyy\"))","v":"12/31/2019"}]
[null,null,null,null,null,"brrt_BermudaStatutoryReserve",null,"brrt_VariableAnnuityGuaranteedValue",null,null,null,null,null,"brrt_NetAmountAtRisk"]
[null,null,null,null,null,null,null,"brrt_VolatilityAxis_LessEqual10PercentMember",null,"brrt_VolatilityAxis_MoreThan10LessEqual15PercentMember",null,"brrt_VolatilityAxis_MoreThan15PercentMember",null,"brrt_VolatilityAxis_LessEqual10PercentMember",null,"brrt_VolatilityAxis_MoreThan10LessEqual15PercentMember",null,"brrt_VolatilityAxis_MoreThan15PercentMember"]
[null,null,null,null,null,{"$f":"XBRLMap(F13,F$73&\".\"&$U13&\".\"&$V13,$F$71,$F$72,CONFIGURATION!$B$10,\"BMA\",CONFIGURATION!$B$1,\"bscr\",CONFIGURATION!$B$12)","v":"Mapped"},null,{"$f":"XBRLMap(H13,H$73&\".\"&$U13&\".\"&$V13&\".\"&$H$74,$F$71,$F$72,CONFIGURATION!$B$10,\"BMA\",CONFIGURATION!$B$1,\"bscr\",CONFIGURATION!$B$12)","v":"Mapped"},null,{"$f":"XBRLMap(J13,H$73&\".\"&$U13&\".\"&$V13&\".\"&$J$74,$F$71,$F$72,CONFIGURATION!$B$10,\"BMA\",CONFIGURATION!$B$1,\"bscr\",CONFIGURATION!$B$12)","v":"Mapped"},null,{"$f":"XBRLMap(L13,H$73&\".\"&$U13&\".\"&$V13&\".\"&$L$74,$F$71,$F$72,CONFIGURATION!$B$10,\"BMA\",CONFIGURATION!$B$1,\"bscr\",CONFIGURATION!$B$12)","v":"Mapped"},null,{"$f":"XBRLMap(N13,N$73&\".\"&$U13&\".\"&$V13&\".\"&$N$74,$F$71,$F$72,CONFIGURATION!$B$10,\"BMA\",CONFIGURATION!$B$1,\"bscr\",CONFIGURATION!$B$12)","v":"Mapped"},null,{"$f":"XBRLMap(P13,N$73&\".\"&$U13&\".\"&$V13&\".\"&$P$74,$F$71,$F$72,CONFIGURATION!$B$10,\"BMA\",CONFIGURATION!$B$1,\"bscr\",CONFIGURATION!$B$12)","v":"Mapped"},null,{"$f":"XBRLMap(R13,N$73&\".\"&$U13&\".\"&$V13&\".\"&$R$74,$F$71,$F$72,CONFIGURATION!$B$10,\"BMA\",CONFIGURATION!$B$1,\"bscr\",CONFIGURATION!$B$12)","v":"Mapped"}]
[null,null,null,null,null,{"$f":"XBRLMap(F14,F$73&\".\"&$U14&\".\"&$V14,$F$71,$F$72,CONFIGURATION!$B$10,\"BMA\",CONFIGURATION!$B$1,\"bscr\",CONFIGURATION!$B$12)","v":"Mapped"},null,{"$f":"XBRLMap(H14,H$73&\".\"&$U14&\".\"&$V14&\".\"&$H$74,$F$71,$F$72,CONFIGURATION!$B$10,\"BMA\",CONFIGURATION!$B$1,\"bscr\",CONFIGURATION!$B$12)","v":"Mapped"},null,{"$f":"XBRLMap(J14,H$73&\".\"&$U14&\".\"&$V14&\".\"&$J$74,$F$71,$F$72,CONFIGURATION!$B$10,\"BMA\",CONFIGURATION!$B$1,\"bscr\",CONFIGURATION!$B$12)","v":"Mapped"},null,{"$f":"XBRLMap(L14,H$73&\".\"&$U14&\".\"&$V14&\".\"&$L$74,$F$71,$F$72,CONFIGURATION!$B$10,\"BMA\",CONFIGURATION!$B$1,\"bscr\",CONFIGURATION!$B$12)","v":"Mapped"},null,{"$f":"XBRLMap(N14,N$73&\".\"&$U14&\".\"&$V14&\".\"&$N$74,$F$71,$F$72,CONFIGURATION!$B$10,\"BMA\",CONFIGURATION!$B$1,\"bscr\",CONFIGURATION!$B$12)","v":"Mapped"},null,{"$f":"XBRLMap(P14,N$73&\".\"&$U14&\".\"&$V14&\".\"&$P$74,$F$71,$F$72,CONFIGURATION!$B$10,\"BMA\",CONFIGURATION!$B$1,\"bscr\",CONFIGURATION!$B$12)","v":"Mapped"},null,{"$f":"XBRLMap(R14,N$73&\".\"&$U14&\".\"&$V14&\".\"&$R$74,$F$71,$F$72,CONFIGURATION!$B$10,\"BMA\",CONFIGURATION!$B$1,\"bscr\",CONFIGURATION!$B$12)","v":"Mapped"}]
[null,null,null,null,null,{"$f":"XBRLMap(F15,F$73&\".\"&$U15&\".\"&$V15,$F$71,$F$72,CONFIGURATION!$B$10,\"BMA\",CONFIGURATION!$B$1,\"bscr\",CONFIGURATION!$B$12)","v":"Mapped"},null,{"$f":"XBRLMap(H15,H$73&\".\"&$U15&\".\"&$V15&\".\"&$H$74,$F$71,$F$72,CONFIGURATION!$B$10,\"BMA\",CONFIGURATION!$B$1,\"bscr\",CONFIGURATION!$B$12)","v":"Mapped"},null,{"$f":"XBRLMap(J15,H$73&\".\"&$U15&\".\"&$V15&\".\"&$J$74,$F$71,$F$72,CONFIGURATION!$B$10,\"BMA\",CONFIGURATION!$B$1,\"bscr\",CONFIGURATION!$B$12)","v":"Mapped"},null,{"$f":"XBRLMap(L15,H$73&\".\"&$U15&\".\"&$V15&\".\"&$L$74,$F$71,$F$72,CONFIGURATION!$B$10,\"BMA\",CONFIGURATION!$B$1,\"bscr\",CONFIGURATION!$B$12)","v":"Mapped"},null,{"$f":"XBRLMap(N15,N$73&\".\"&$U15&\".\"&$V15&\".\"&$N$74,$F$71,$F$72,CONFIGURATION!$B$10,\"BMA\",CONFIGURATION!$B$1,\"bscr\",CONFIGURATION!$B$12)","v":"Mapped"},null,{"$f":"XBRLMap(P15,N$73&\".\"&$U15&\".\"&$V15&\".\"&$P$74,$F$71,$F$72,CONFIGURATION!$B$10,\"BMA\",CONFIGURATION!$B$1,\"bscr\",CONFIGURATION!$B$12)","v":"Mapped"},null,{"$f":"XBRLMap(R15,N$73&\".\"&$U15&\".\"&$V15&\".\"&$R$74,$F$71,$F$72,CONFIGURATION!$B$10,\"BMA\",CONFIGURATION!$B$1,\"bscr\",CONFIGURATION!$B$12)","v":"Mapped"}]
[null,null,null,null,null,{"$f":"XBRLMap(F16,F$73&\".\"&$U16&\".\"&$V16,$F$71,$F$72,CONFIGURATION!$B$10,\"BMA\",CONFIGURATION!$B$1,\"bscr\",CONFIGURATION!$B$12)","v":"Mapped"},null,{"$f":"XBRLMap(H16,H$73&\".\"&$U16&\".\"&$V16&\".\"&$H$74,$F$71,$F$72,CONFIGURATION!$B$10,\"BMA\",CONFIGURATION!$B$1,\"bscr\",CONFIGURATION!$B$12)","v":"Mapped"},null,{"$f":"XBRLMap(J16,H$73&\".\"&$U16&\".\"&$V16&\".\"&$J$74,$F$71,$F$72,CONFIGURATION!$B$10,\"BMA\",CONFIGURATION!$B$1,\"bscr\",CONFIGURATION!$B$12)","v":"Mapped"},null,{"$f":"XBRLMap(L16,H$73&\".\"&$U16&\".\"&$V16&\".\"&$L$74,$F$71,$F$72,CONFIGURATION!$B$10,\"BMA\",CONFIGURATION!$B$1,\"bscr\",CONFIGURATION!$B$12)","v":"Mapped"},null,{"$f":"XBRLMap(N16,N$73&\".\"&$U16&\".\"&$V16&\".\"&$N$74,$F$71,$F$72,CONFIGURATION!$B$10,\"BMA\",CONFIGURATION!$B$1,\"bscr\",CONFIGURATION!$B$12)","v":"Mapped"},null,{"$f":"XBRLMap(P16,N$73&\".\"&$U16&\".\"&$V16&\".\"&$P$74,$F$71,$F$72,CONFIGURATION!$B$10,\"BMA\",CONFIGURATION!$B$1,\"bscr\",CONFIGURATION!$B$12)","v":"Mapped"},null,{"$f":"XBRLMap(R16,N$73&\".\"&$U16&\".\"&$V16&\".\"&$R$74,$F$71,$F$72,CONFIGURATION!$B$10,\"BMA\",CONFIGURATION!$B$1,\"bscr\",CONFIGURATION!$B$12)","v":"Mapped"}]
[null,null,null,null,null,{"$f":"XBRLMap(F17,F$73&\".\"&$U17&\".\"&$V17,$F$71,$F$72,CONFIGURATION!$B$10,\"BMA\",CONFIGURATION!$B$1,\"bscr\",CONFIGURATION!$B$12)","v":"Mapped"},null,{"$f":"XBRLMap(H17,H$73&\".\"&$U17&\".\"&$V17&\".\"&$H$74,$F$71,$F$72,CONFIGURATION!$B$10,\"BMA\",CONFIGURATION!$B$1,\"bscr\",CONFIGURATION!$B$12)","v":"Mapped"},null,{"$f":"XBRLMap(J17,H$73&\".\"&$U17&\".\"&$V17&\".\"&$J$74,$F$71,$F$72,CONFIGURATION!$B$10,\"BMA\",CONFIGURATION!$B$1,\"bscr\",CONFIGURATION!$B$12)","v":"Mapped"},null,{"$f":"XBRLMap(L17,H$73&\".\"&$U17&\".\"&$V17&\".\"&$L$74,$F$71,$F$72,CONFIGURATION!$B$10,\"BMA\",CONFIGURATION!$B$1,\"bscr\",CONFIGURATION!$B$12)","v":"Mapped"},null,{"$f":"XBRLMap(N17,N$73&\".\"&$U17&\".\"&$V17&\".\"&$N$74,$F$71,$F$72,CONFIGURATION!$B$10,\"BMA\",CONFIGURATION!$B$1,\"bscr\",CONFIGURATION!$B$12)","v":"Mapped"},null,{"$f":"XBRLMap(P17,N$73&\".\"&$U17&\".\"&$V17&\".\"&$P$74,$F$71,$F$72,CONFIGURATION!$B$10,\"BMA\",CONFIGURATION!$B$1,\"bscr\",CONFIGURATION!$B$12)","v":"Mapped"},null,{"$f":"XBRLMap(R17,N$73&\".\"&$U17&\".\"&$V17&\".\"&$R$74,$F$71,$F$72,CONFIGURATION!$B$10,\"BMA\",CONFIGURATION!$B$1,\"bscr\",CONFIGURATION!$B$12)","v":"Mapped"}]
[]
[null,null,null,null,null,{"$f":"XBRLMap(F19,F$73&\".\"&$U19&\".\"&$V19,$F$71,$F$72,CONFIGURATION!$B$10,\"BMA\",CONFIGURATION!$B$1,\"bscr\",CONFIGURATION!$B$12)","v":"Mapped"},null,{"$f":"XBRLMap(H19,H$73&\".\"&$U19&\".\"&$V19&\".\"&$H$74,$F$71,$F$72,CONFIGURATION!$B$10,\"BMA\",CONFIGURATION!$B$1,\"bscr\",CONFIGURATION!$B$12)","v":"Mapped"},null,{"$f":"XBRLMap(J19,H$73&\".\"&$U19&\".\"&$V19&\".\"&$J$74,$F$71,$F$72,CONFIGURATION!$B$10,\"BMA\",CONFIGURATION!$B$1,\"bscr\",CONFIGURATION!$B$12)","v":"Mapped"},null,{"$f":"XBRLMap(L19,H$73&\".\"&$U19&\".\"&$V19&\".\"&$L$74,$F$71,$F$72,CONFIGURATION!$B$10,\"BMA\",CONFIGURATION!$B$1,\"bscr\",CONFIGURATION!$B$12)","v":"Mapped"},null,{"$f":"XBRLMap(N19,N$73&\".\"&$U19&\".\"&$V19&\".\"&$N$74,$F$71,$F$72,CONFIGURATION!$B$10,\"BMA\",CONFIGURATION!$B$1,\"bscr\",CONFIGURATION!$B$12)","v":"Mapped"},null,{"$f":"XBRLMap(P19,N$73&\".\"&$U19&\".\"&$V19&\".\"&$P$74,$F$71,$F$72,CONFIGURATION!$B$10,\"BMA\",CONFIGURATION!$B$1,\"bscr\",CONFIGURATION!$B$12)","v":"Mapped"},null,{"$f":"XBRLMap(R19,N$73&\".\"&$U19&\".\"&$V19&\".\"&$R$74,$F$71,$F$72,CONFIGURATION!$B$10,\"BMA\",CONFIGURATION!$B$1,\"bscr\",CONFIGURATION!$B$12)","v":"Mapped"}]
[null,null,null,null,null,{"$f":"XBRLMap(F20,F$73&\".\"&$U20&\".\"&$V20,$F$71,$F$72,CONFIGURATION!$B$10,\"BMA\",CONFIGURATION!$B$1,\"bscr\",CONFIGURATION!$B$12)","v":"Mapped"},null,{"$f":"XBRLMap(H20,H$73&\".\"&$U20&\".\"&$V20&\".\"&$H$74,$F$71,$F$72,CONFIGURATION!$B$10,\"BMA\",CONFIGURATION!$B$1,\"bscr\",CONFIGURATION!$B$12)","v":"Mapped"},null,{"$f":"XBRLMap(J20,H$73&\".\"&$U20&\".\"&$V20&\".\"&$J$74,$F$71,$F$72,CONFIGURATION!$B$10,\"BMA\",CONFIGURATION!$B$1,\"bscr\",CONFIGURATION!$B$12)","v":"Mapped"},null,{"$f":"XBRLMap(L20,H$73&\".\"&$U20&\".\"&$V20&\".\"&$L$74,$F$71,$F$72,CONFIGURATION!$B$10,\"BMA\",CONFIGURATION!$B$1,\"bscr\",CONFIGURATION!$B$12)","v":"Mapped"},null,{"$f":"XBRLMap(N20,N$73&\".\"&$U20&\".\"&$V20&\".\"&$N$74,$F$71,$F$72,CONFIGURATION!$B$10,\"BMA\",CONFIGURATION!$B$1,\"bscr\",CONFIGURATION!$B$12)","v":"Mapped"},null,{"$f":"XBRLMap(P20,N$73&\".\"&$U20&\".\"&$V20&\".\"&$P$74,$F$71,$F$72,CONFIGURATION!$B$10,\"BMA\",CONFIGURATION!$B$1,\"bscr\",CONFIGURATION!$B$12)","v":"Mapped"},null,{"$f":"XBRLMap(R20,N$73&\".\"&$U20&\".\"&$V20&\".\"&$R$74,$F$71,$F$72,CONFIGURATION!$B$10,\"BMA\",CONFIGURATION!$B$1,\"bscr\",CONFIGURATION!$B$12)","v":"Mapped"}]
[null,null,null,null,null,{"$f":"XBRLMap(F21,F$73&\".\"&$U21&\".\"&$V21,$F$71,$F$72,CONFIGURATION!$B$10,\"BMA\",CONFIGURATION!$B$1,\"bscr\",CONFIGURATION!$B$12)","v":"Mapped"},null,{"$f":"XBRLMap(H21,H$73&\".\"&$U21&\".\"&$V21&\".\"&$H$74,$F$71,$F$72,CONFIGURATION!$B$10,\"BMA\",CONFIGURATION!$B$1,\"bscr\",CONFIGURATION!$B$12)","v":"Mapped"},null,{"$f":"XBRLMap(J21,H$73&\".\"&$U21&\".\"&$V21&\".\"&$J$74,$F$71,$F$72,CONFIGURATION!$B$10,\"BMA\",CONFIGURATION!$B$1,\"bscr\",CONFIGURATION!$B$12)","v":"Mapped"},null,{"$f":"XBRLMap(L21,H$73&\".\"&$U21&\".\"&$V21&\".\"&$L$74,$F$71,$F$72,CONFIGURATION!$B$10,\"BMA\",CONFIGURATION!$B$1,\"bscr\",CONFIGURATION!$B$12)","v":"Mapped"},null,{"$f":"XBRLMap(N21,N$73&\".\"&$U21&\".\"&$V21&\".\"&$N$74,$F$71,$F$72,CONFIGURATION!$B$10,\"BMA\",CONFIGURATION!$B$1,\"bscr\",CONFIGURATION!$B$12)","v":"Mapped"},null,{"$f":"XBRLMap(P21,N$73&\".\"&$U21&\".\"&$V21&\".\"&$P$74,$F$71,$F$72,CONFIGURATION!$B$10,\"BMA\",CONFIGURATION!$B$1,\"bscr\",CONFIGURATION!$B$12)","v":"Mapped"},null,{"$f":"XBRLMap(R21,N$73&\".\"&$U21&\".\"&$V21&\".\"&$R$74,$F$71,$F$72,CONFIGURATION!$B$10,\"BMA\",CONFIGURATION!$B$1,\"bscr\",CONFIGURATION!$B$12)","v":"Mapped"}]
[null,null,null,null,null,{"$f":"XBRLMap(F22,F$73&\".\"&$U22&\".\"&$V22,$F$71,$F$72,CONFIGURATION!$B$10,\"BMA\",CONFIGURATION!$B$1,\"bscr\",CONFIGURATION!$B$12)","v":"Mapped"},null,{"$f":"XBRLMap(H22,H$73&\".\"&$U22&\".\"&$V22&\".\"&$H$74,$F$71,$F$72,CONFIGURATION!$B$10,\"BMA\",CONFIGURATION!$B$1,\"bscr\",CONFIGURATION!$B$12)","v":"Mapped"},null,{"$f":"XBRLMap(J22,H$73&\".\"&$U22&\".\"&$V22&\".\"&$J$74,$F$71,$F$72,CONFIGURATION!$B$10,\"BMA\",CONFIGURATION!$B$1,\"bscr\",CONFIGURATION!$B$12)","v":"Mapped"},null,{"$f":"XBRLMap(L22,H$73&\".\"&$U22&\".\"&$V22&\".\"&$L$74,$F$71,$F$72,CONFIGURATION!$B$10,\"BMA\",CONFIGURATION!$B$1,\"bscr\",CONFIGURATION!$B$12)","v":"Mapped"},null,{"$f":"XBRLMap(N22,N$73&\".\"&$U22&\".\"&$V22&\".\"&$N$74,$F$71,$F$72,CONFIGURATION!$B$10,\"BMA\",CONFIGURATION!$B$1,\"bscr\",CONFIGURATION!$B$12)","v":"Mapped"},null,{"$f":"XBRLMap(P22,N$73&\".\"&$U22&\".\"&$V22&\".\"&$P$74,$F$71,$F$72,CONFIGURATION!$B$10,\"BMA\",CONFIGURATION!$B$1,\"bscr\",CONFIGURATION!$B$12)","v":"Mapped"},null,{"$f":"XBRLMap(R22,N$73&\".\"&$U22&\".\"&$V22&\".\"&$R$74,$F$71,$F$72,CONFIGURATION!$B$10,\"BMA\",CONFIGURATION!$B$1,\"bscr\",CONFIGURATION!$B$12)","v":"Mapped"}]
[null,null,null,null,null,{"$f":"XBRLMap(F23,F$73&\".\"&$U23&\".\"&$V23,$F$71,$F$72,CONFIGURATION!$B$10,\"BMA\",CONFIGURATION!$B$1,\"bscr\",CONFIGURATION!$B$12)","v":"Mapped"},null,{"$f":"XBRLMap(H23,H$73&\".\"&$U23&\".\"&$V23&\".\"&$H$74,$F$71,$F$72,CONFIGURATION!$B$10,\"BMA\",CONFIGURATION!$B$1,\"bscr\",CONFIGURATION!$B$12)","v":"Mapped"},null,{"$f":"XBRLMap(J23,H$73&\".\"&$U23&\".\"&$V23&\".\"&$J$74,$F$71,$F$72,CONFIGURATION!$B$10,\"BMA\",CONFIGURATION!$B$1,\"bscr\",CONFIGURATION!$B$12)","v":"Mapped"},null,{"$f":"XBRLMap(L23,H$73&\".\"&$U23&\".\"&$V23&\".\"&$L$74,$F$71,$F$72,CONFIGURATION!$B$10,\"BMA\",CONFIGURATION!$B$1,\"bscr\",CONFIGURATION!$B$12)","v":"Mapped"},null,{"$f":"XBRLMap(N23,N$73&\".\"&$U23&\".\"&$V23&\".\"&$N$74,$F$71,$F$72,CONFIGURATION!$B$10,\"BMA\",CONFIGURATION!$B$1,\"bscr\",CONFIGURATION!$B$12)","v":"Mapped"},null,{"$f":"XBRLMap(P23,N$73&\".\"&$U23&\".\"&$V23&\".\"&$P$74,$F$71,$F$72,CONFIGURATION!$B$10,\"BMA\",CONFIGURATION!$B$1,\"bscr\",CONFIGURATION!$B$12)","v":"Mapped"},null,{"$f":"XBRLMap(R23,N$73&\".\"&$U23&\".\"&$V23&\".\"&$R$74,$F$71,$F$72,CONFIGURATION!$B$10,\"BMA\",CONFIGURATION!$B$1,\"bscr\",CONFIGURATION!$B$12)","v":"Mapped"}]
[null,null,null,null,null,{"$f":"XBRLMap(F24,F$73&\".\"&$U24&\".\"&$V24,$F$71,$F$72,CONFIGURATION!$B$10,\"BMA\",CONFIGURATION!$B$1,\"bscr\",CONFIGURATION!$B$12)","v":"Mapped"},null,{"$f":"XBRLMap(H24,H$73&\".\"&$U24&\".\"&$V24&\".\"&$H$74,$F$71,$F$72,CONFIGURATION!$B$10,\"BMA\",CONFIGURATION!$B$1,\"bscr\",CONFIGURATION!$B$12)","v":"Mapped"},null,{"$f":"XBRLMap(J24,H$73&\".\"&$U24&\".\"&$V24&\".\"&$J$74,$F$71,$F$72,CONFIGURATION!$B$10,\"BMA\",CONFIGURATION!$B$1,\"bscr\",CONFIGURATION!$B$12)","v":"Mapped"},null,{"$f":"XBRLMap(L24,H$73&\".\"&$U24&\".\"&$V24&\".\"&$L$74,$F$71,$F$72,CONFIGURATION!$B$10,\"BMA\",CONFIGURATION!$B$1,\"bscr\",CONFIGURATION!$B$12)","v":"Mapped"},null,{"$f":"XBRLMap(N24,N$73&\".\"&$U24&\".\"&$V24&\".\"&$N$74,$F$71,$F$72,CONFIGURATION!$B$10,\"BMA\",CONFIGURATION!$B$1,\"bscr\",CONFIGURATION!$B$12)","v":"Mapped"},null,{"$f":"XBRLMap(P24,N$73&\".\"&$U24&\".\"&$V24&\".\"&$P$74,$F$71,$F$72,CONFIGURATION!$B$10,\"BMA\",CONFIGURATION!$B$1,\"bscr\",CONFIGURATION!$B$12)","v":"Mapped"},null,{"$f":"XBRLMap(R24,N$73&\".\"&$U24&\".\"&$V24&\".\"&$R$74,$F$71,$F$72,CONFIGURATION!$B$10,\"BMA\",CONFIGURATION!$B$1,\"bscr\",CONFIGURATION!$B$12)","v":"Mapped"}]
[null,null,null,null,null,{"$f":"XBRLMap(F25,F$73&\".\"&$U25&\".\"&$V25,$F$71,$F$72,CONFIGURATION!$B$10,\"BMA\",CONFIGURATION!$B$1,\"bscr\",CONFIGURATION!$B$12)","v":"Mapped"},null,{"$f":"XBRLMap(H25,H$73&\".\"&$U25&\".\"&$V25&\".\"&$H$74,$F$71,$F$72,CONFIGURATION!$B$10,\"BMA\",CONFIGURATION!$B$1,\"bscr\",CONFIGURATION!$B$12)","v":"Mapped"},null,{"$f":"XBRLMap(J25,H$73&\".\"&$U25&\".\"&$V25&\".\"&$J$74,$F$71,$F$72,CONFIGURATION!$B$10,\"BMA\",CONFIGURATION!$B$1,\"bscr\",CONFIGURATION!$B$12)","v":"Mapped"},null,{"$f":"XBRLMap(L25,H$73&\".\"&$U25&\".\"&$V25&\".\"&$L$74,$F$71,$F$72,CONFIGURATION!$B$10,\"BMA\",CONFIGURATION!$B$1,\"bscr\",CONFIGURATION!$B$12)","v":"Mapped"},null,{"$f":"XBRLMap(N25,N$73&\".\"&$U25&\".\"&$V25&\".\"&$N$74,$F$71,$F$72,CONFIGURATION!$B$10,\"BMA\",CONFIGURATION!$B$1,\"bscr\",CONFIGURATION!$B$12)","v":"Mapped"},null,{"$f":"XBRLMap(P25,N$73&\".\"&$U25&\".\"&$V25&\".\"&$P$74,$F$71,$F$72,CONFIGURATION!$B$10,\"BMA\",CONFIGURATION!$B$1,\"bscr\",CONFIGURATION!$B$12)","v":"Mapped"},null,{"$f":"XBRLMap(R25,N$73&\".\"&$U25&\".\"&$V25&\".\"&$R$74,$F$71,$F$72,CONFIGURATION!$B$10,\"BMA\",CONFIGURATION!$B$1,\"bscr\",CONFIGURATION!$B$12)","v":"Mapped"}]
[null,null,null,null,null,{"$f":"XBRLMap(F26,F$73&\".\"&$U26&\".\"&$V26,$F$71,$F$72,CONFIGURATION!$B$10,\"BMA\",CONFIGURATION!$B$1,\"bscr\",CONFIGURATION!$B$12)","v":"Mapped"},null,{"$f":"XBRLMap(H26,H$73&\".\"&$U26&\".\"&$V26&\".\"&$H$74,$F$71,$F$72,CONFIGURATION!$B$10,\"BMA\",CONFIGURATION!$B$1,\"bscr\",CONFIGURATION!$B$12)","v":"Mapped"},null,{"$f":"XBRLMap(J26,H$73&\".\"&$U26&\".\"&$V26&\".\"&$J$74,$F$71,$F$72,CONFIGURATION!$B$10,\"BMA\",CONFIGURATION!$B$1,\"bscr\",CONFIGURATION!$B$12)","v":"Mapped"},null,{"$f":"XBRLMap(L26,H$73&\".\"&$U26&\".\"&$V26&\".\"&$L$74,$F$71,$F$72,CONFIGURATION!$B$10,\"BMA\",CONFIGURATION!$B$1,\"bscr\",CONFIGURATION!$B$12)","v":"Mapped"},null,{"$f":"XBRLMap(N26,N$73&\".\"&$U26&\".\"&$V26&\".\"&$N$74,$F$71,$F$72,CONFIGURATION!$B$10,\"BMA\",CONFIGURATION!$B$1,\"bscr\",CONFIGURATION!$B$12)","v":"Mapped"},null,{"$f":"XBRLMap(P26,N$73&\".\"&$U26&\".\"&$V26&\".\"&$P$74,$F$71,$F$72,CONFIGURATION!$B$10,\"BMA\",CONFIGURATION!$B$1,\"bscr\",CONFIGURATION!$B$12)","v":"Mapped"},null,{"$f":"XBRLMap(R26,N$73&\".\"&$U26&\".\"&$V26&\".\"&$R$74,$F$71,$F$72,CONFIGURATION!$B$10,\"BMA\",CONFIGURATION!$B$1,\"bscr\",CONFIGURATION!$B$12)","v":"Mapped"}]
[null,null,null,null,null,{"$f":"XBRLMap(F27,F$73&\".\"&$U27&\".\"&$V27,$F$71,$F$72,CONFIGURATION!$B$10,\"BMA\",CONFIGURATION!$B$1,\"bscr\",CONFIGURATION!$B$12)","v":"Mapped"},null,{"$f":"XBRLMap(H27,H$73&\".\"&$U27&\".\"&$V27&\".\"&$H$74,$F$71,$F$72,CONFIGURATION!$B$10,\"BMA\",CONFIGURATION!$B$1,\"bscr\",CONFIGURATION!$B$12)","v":"Mapped"},null,{"$f":"XBRLMap(J27,H$73&\".\"&$U27&\".\"&$V27&\".\"&$J$74,$F$71,$F$72,CONFIGURATION!$B$10,\"BMA\",CONFIGURATION!$B$1,\"bscr\",CONFIGURATION!$B$12)","v":"Mapped"},null,{"$f":"XBRLMap(L27,H$73&\".\"&$U27&\".\"&$V27&\".\"&$L$74,$F$71,$F$72,CONFIGURATION!$B$10,\"BMA\",CONFIGURATION!$B$1,\"bscr\",CONFIGURATION!$B$12)","v":"Mapped"},null,{"$f":"XBRLMap(N27,N$73&\".\"&$U27&\".\"&$V27&\".\"&$N$74,$F$71,$F$72,CONFIGURATION!$B$10,\"BMA\",CONFIGURATION!$B$1,\"bscr\",CONFIGURATION!$B$12)","v":"Mapped"},null,{"$f":"XBRLMap(P27,N$73&\".\"&$U27&\".\"&$V27&\".\"&$P$74,$F$71,$F$72,CONFIGURATION!$B$10,\"BMA\",CONFIGURATION!$B$1,\"bscr\",CONFIGURATION!$B$12)","v":"Mapped"},null,{"$f":"XBRLMap(R27,N$73&\".\"&$U27&\".\"&$V27&\".\"&$R$74,$F$71,$F$72,CONFIGURATION!$B$10,\"BMA\",CONFIGURATION!$B$1,\"bscr\",CONFIGURATION!$B$12)","v":"Mapped"}]
[null,null,null,null,null,{"$f":"XBRLMap(F28,F$73&\".\"&$U28&\".\"&$V28,$F$71,$F$72,CONFIGURATION!$B$10,\"BMA\",CONFIGURATION!$B$1,\"bscr\",CONFIGURATION!$B$12)","v":"Mapped"},null,{"$f":"XBRLMap(H28,H$73&\".\"&$U28&\".\"&$V28&\".\"&$H$74,$F$71,$F$72,CONFIGURATION!$B$10,\"BMA\",CONFIGURATION!$B$1,\"bscr\",CONFIGURATION!$B$12)","v":"Mapped"},null,{"$f":"XBRLMap(J28,H$73&\".\"&$U28&\".\"&$V28&\".\"&$J$74,$F$71,$F$72,CONFIGURATION!$B$10,\"BMA\",CONFIGURATION!$B$1,\"bscr\",CONFIGURATION!$B$12)","v":"Mapped"},null,{"$f":"XBRLMap(L28,H$73&\".\"&$U28&\".\"&$V28&\".\"&$L$74,$F$71,$F$72,CONFIGURATION!$B$10,\"BMA\",CONFIGURATION!$B$1,\"bscr\",CONFIGURATION!$B$12)","v":"Mapped"},null,{"$f":"XBRLMap(N28,N$73&\".\"&$U28&\".\"&$V28&\".\"&$N$74,$F$71,$F$72,CONFIGURATION!$B$10,\"BMA\",CONFIGURATION!$B$1,\"bscr\",CONFIGURATION!$B$12)","v":"Mapped"},null,{"$f":"XBRLMap(P28,N$73&\".\"&$U28&\".\"&$V28&\".\"&$P$74,$F$71,$F$72,CONFIGURATION!$B$10,\"BMA\",CONFIGURATION!$B$1,\"bscr\",CONFIGURATION!$B$12)","v":"Mapped"},null,{"$f":"XBRLMap(R28,N$73&\".\"&$U28&\".\"&$V28&\".\"&$R$74,$F$71,$F$72,CONFIGURATION!$B$10,\"BMA\",CONFIGURATION!$B$1,\"bscr\",CONFIGURATION!$B$12)","v":"Mapped"}]
[]
[]
[null,null,null,null,null,{"$f":"XBRLMap(F31,F$73&\".\"&$U31&\".\"&$V31,$F$71,$F$72,CONFIGURATION!$B$10,\"BMA\",CONFIGURATION!$B$1,\"bscr\",CONFIGURATION!$B$12)","v":"Mapped"},null,{"$f":"XBRLMap(H31,H$73&\".\"&$U31&\".\"&$V31&\".\"&$H$74,$F$71,$F$72,CONFIGURATION!$B$10,\"BMA\",CONFIGURATION!$B$1,\"bscr\",CONFIGURATION!$B$12)","v":"Mapped"},null,{"$f":"XBRLMap(J31,H$73&\".\"&$U31&\".\"&$V31&\".\"&$J$74,$F$71,$F$72,CONFIGURATION!$B$10,\"BMA\",CONFIGURATION!$B$1,\"bscr\",CONFIGURATION!$B$12)","v":"Mapped"},null,{"$f":"XBRLMap(L31,H$73&\".\"&$U31&\".\"&$V31&\".\"&$L$74,$F$71,$F$72,CONFIGURATION!$B$10,\"BMA\",CONFIGURATION!$B$1,\"bscr\",CONFIGURATION!$B$12)","v":"Mapped"}]
[null,null,null,null,null,{"$f":"XBRLMap(F32,F$73&\".\"&$U32&\".\"&$V32,$F$71,$F$72,CONFIGURATION!$B$10,\"BMA\",CONFIGURATION!$B$1,\"bscr\",CONFIGURATION!$B$12)","v":"Mapped"},null,{"$f":"XBRLMap(H32,H$73&\".\"&$U32&\".\"&$V32&\".\"&$H$74,$F$71,$F$72,CONFIGURATION!$B$10,\"BMA\",CONFIGURATION!$B$1,\"bscr\",CONFIGURATION!$B$12)","v":"Mapped"},null,{"$f":"XBRLMap(J32,H$73&\".\"&$U32&\".\"&$V32&\".\"&$J$74,$F$71,$F$72,CONFIGURATION!$B$10,\"BMA\",CONFIGURATION!$B$1,\"bscr\",CONFIGURATION!$B$12)","v":"Mapped"},null,{"$f":"XBRLMap(L32,H$73&\".\"&$U32&\".\"&$V32&\".\"&$L$74,$F$71,$F$72,CONFIGURATION!$B$10,\"BMA\",CONFIGURATION!$B$1,\"bscr\",CONFIGURATION!$B$12)","v":"Mapped"}]
[null,null,null,null,null,{"$f":"XBRLMap(F33,F$73&\".\"&$U33&\".\"&$V33,$F$71,$F$72,CONFIGURATION!$B$10,\"BMA\",CONFIGURATION!$B$1,\"bscr\",CONFIGURATION!$B$12)","v":"Mapped"},null,{"$f":"XBRLMap(H33,H$73&\".\"&$U33&\".\"&$V33&\".\"&$H$74,$F$71,$F$72,CONFIGURATION!$B$10,\"BMA\",CONFIGURATION!$B$1,\"bscr\",CONFIGURATION!$B$12)","v":"Mapped"},null,{"$f":"XBRLMap(J33,H$73&\".\"&$U33&\".\"&$V33&\".\"&$J$74,$F$71,$F$72,CONFIGURATION!$B$10,\"BMA\",CONFIGURATION!$B$1,\"bscr\",CONFIGURATION!$B$12)","v":"Mapped"},null,{"$f":"XBRLMap(L33,H$73&\".\"&$U33&\".\"&$V33&\".\"&$L$74,$F$71,$F$72,CONFIGURATION!$B$10,\"BMA\",CONFIGURATION!$B$1,\"bscr\",CONFIGURATION!$B$12)","v":"Mapped"}]
[null,null,null,null,null,{"$f":"XBRLMap(F34,F$73&\".\"&$U34&\".\"&$V34,$F$71,$F$72,CONFIGURATION!$B$10,\"BMA\",CONFIGURATION!$B$1,\"bscr\",CONFIGURATION!$B$12)","v":"Mapped"},null,{"$f":"XBRLMap(H34,H$73&\".\"&$U34&\".\"&$V34&\".\"&$H$74,$F$71,$F$72,CONFIGURATION!$B$10,\"BMA\",CONFIGURATION!$B$1,\"bscr\",CONFIGURATION!$B$12)","v":"Mapped"},null,{"$f":"XBRLMap(J34,H$73&\".\"&$U34&\".\"&$V34&\".\"&$J$74,$F$71,$F$72,CONFIGURATION!$B$10,\"BMA\",CONFIGURATION!$B$1,\"bscr\",CONFIGURATION!$B$12)","v":"Mapped"},null,{"$f":"XBRLMap(L34,H$73&\".\"&$U34&\".\"&$V34&\".\"&$L$74,$F$71,$F$72,CONFIGURATION!$B$10,\"BMA\",CONFIGURATION!$B$1,\"bscr\",CONFIGURATION!$B$12)","v":"Mapped"}]
[null,null,null,null,null,{"$f":"XBRLMap(F35,F$73&\".\"&$U35&\".\"&$V35,$F$71,$F$72,CONFIGURATION!$B$10,\"BMA\",CONFIGURATION!$B$1,\"bscr\",CONFIGURATION!$B$12)","v":"Mapped"},null,{"$f":"XBRLMap(H35,H$73&\".\"&$U35&\".\"&$V35&\".\"&$H$74,$F$71,$F$72,CONFIGURATION!$B$10,\"BMA\",CONFIGURATION!$B$1,\"bscr\",CONFIGURATION!$B$12)","v":"Mapped"},null,{"$f":"XBRLMap(J35,H$73&\".\"&$U35&\".\"&$V35&\".\"&$J$74,$F$71,$F$72,CONFIGURATION!$B$10,\"BMA\",CONFIGURATION!$B$1,\"bscr\",CONFIGURATION!$B$12)","v":"Mapped"},null,{"$f":"XBRLMap(L35,H$73&\".\"&$U35&\".\"&$V35&\".\"&$L$74,$F$71,$F$72,CONFIGURATION!$B$10,\"BMA\",CONFIGURATION!$B$1,\"bscr\",CONFIGURATION!$B$12)","v":"Mapped"}]
[]
[null,null,null,null,null,{"$f":"XBRLMap(F37,F$73&\".\"&$U37&\".\"&$V37,$F$71,$F$72,CONFIGURATION!$B$10,\"BMA\",CONFIGURATION!$B$1,\"bscr\",CONFIGURATION!$B$12)","v":"Mapped"},null,{"$f":"XBRLMap(H37,H$73&\".\"&$U37&\".\"&$V37&\".\"&$H$74,$F$71,$F$72,CONFIGURATION!$B$10,\"BMA\",CONFIGURATION!$B$1,\"bscr\",CONFIGURATION!$B$12)","v":"Mapped"},null,{"$f":"XBRLMap(J37,H$73&\".\"&$U37&\".\"&$V37&\".\"&$J$74,$F$71,$F$72,CONFIGURATION!$B$10,\"BMA\",CONFIGURATION!$B$1,\"bscr\",CONFIGURATION!$B$12)","v":"Mapped"},null,{"$f":"XBRLMap(L37,H$73&\".\"&$U37&\".\"&$V37&\".\"&$L$74,$F$71,$F$72,CONFIGURATION!$B$10,\"BMA\",CONFIGURATION!$B$1,\"bscr\",CONFIGURATION!$B$12)","v":"Mapped"}]
[null,null,null,null,null,{"$f":"XBRLMap(F38,F$73&\".\"&$U38&\".\"&$V38,$F$71,$F$72,CONFIGURATION!$B$10,\"BMA\",CONFIGURATION!$B$1,\"bscr\",CONFIGURATION!$B$12)","v":"Mapped"},null,{"$f":"XBRLMap(H38,H$73&\".\"&$U38&\".\"&$V38&\".\"&$H$74,$F$71,$F$72,CONFIGURATION!$B$10,\"BMA\",CONFIGURATION!$B$1,\"bscr\",CONFIGURATION!$B$12)","v":"Mapped"},null,{"$f":"XBRLMap(J38,H$73&\".\"&$U38&\".\"&$V38&\".\"&$J$74,$F$71,$F$72,CONFIGURATION!$B$10,\"BMA\",CONFIGURATION!$B$1,\"bscr\",CONFIGURATION!$B$12)","v":"Mapped"},null,{"$f":"XBRLMap(L38,H$73&\".\"&$U38&\".\"&$V38&\".\"&$L$74,$F$71,$F$72,CONFIGURATION!$B$10,\"BMA\",CONFIGURATION!$B$1,\"bscr\",CONFIGURATION!$B$12)","v":"Mapped"}]
[null,null,null,null,null,{"$f":"XBRLMap(F39,F$73&\".\"&$U39&\".\"&$V39,$F$71,$F$72,CONFIGURATION!$B$10,\"BMA\",CONFIGURATION!$B$1,\"bscr\",CONFIGURATION!$B$12)","v":"Mapped"},null,{"$f":"XBRLMap(H39,H$73&\".\"&$U39&\".\"&$V39&\".\"&$H$74,$F$71,$F$72,CONFIGURATION!$B$10,\"BMA\",CONFIGURATION!$B$1,\"bscr\",CONFIGURATION!$B$12)","v":"Mapped"},null,{"$f":"XBRLMap(J39,H$73&\".\"&$U39&\".\"&$V39&\".\"&$J$74,$F$71,$F$72,CONFIGURATION!$B$10,\"BMA\",CONFIGURATION!$B$1,\"bscr\",CONFIGURATION!$B$12)","v":"Mapped"},null,{"$f":"XBRLMap(L39,H$73&\".\"&$U39&\".\"&$V39&\".\"&$L$74,$F$71,$F$72,CONFIGURATION!$B$10,\"BMA\",CONFIGURATION!$B$1,\"bscr\",CONFIGURATION!$B$12)","v":"Mapped"}]
[null,null,null,null,null,{"$f":"XBRLMap(F40,F$73&\".\"&$U40&\".\"&$V40,$F$71,$F$72,CONFIGURATION!$B$10,\"BMA\",CONFIGURATION!$B$1,\"bscr\",CONFIGURATION!$B$12)","v":"Mapped"},null,{"$f":"XBRLMap(H40,H$73&\".\"&$U40&\".\"&$V40&\".\"&$H$74,$F$71,$F$72,CONFIGURATION!$B$10,\"BMA\",CONFIGURATION!$B$1,\"bscr\",CONFIGURATION!$B$12)","v":"Mapped"},null,{"$f":"XBRLMap(J40,H$73&\".\"&$U40&\".\"&$V40&\".\"&$J$74,$F$71,$F$72,CONFIGURATION!$B$10,\"BMA\",CONFIGURATION!$B$1,\"bscr\",CONFIGURATION!$B$12)","v":"Mapped"},null,{"$f":"XBRLMap(L40,H$73&\".\"&$U40&\".\"&$V40&\".\"&$L$74,$F$71,$F$72,CONFIGURATION!$B$10,\"BMA\",CONFIGURATION!$B$1,\"bscr\",CONFIGURATION!$B$12)","v":"Mapped"}]
[null,null,null,null,null,{"$f":"XBRLMap(F41,F$73&\".\"&$U41&\".\"&$V41,$F$71,$F$72,CONFIGURATION!$B$10,\"BMA\",CONFIGURATION!$B$1,\"bscr\",CONFIGURATION!$B$12)","v":"Mapped"},null,{"$f":"XBRLMap(H41,H$73&\".\"&$U41&\".\"&$V41&\".\"&$H$74,$F$71,$F$72,CONFIGURATION!$B$10,\"BMA\",CONFIGURATION!$B$1,\"bscr\",CONFIGURATION!$B$12)","v":"Mapped"},null,{"$f":"XBRLMap(J41,H$73&\".\"&$U41&\".\"&$V41&\".\"&$J$74,$F$71,$F$72,CONFIGURATION!$B$10,\"BMA\",CONFIGURATION!$B$1,\"bscr\",CONFIGURATION!$B$12)","v":"Mapped"},null,{"$f":"XBRLMap(L41,H$73&\".\"&$U41&\".\"&$V41&\".\"&$L$74,$F$71,$F$72,CONFIGURATION!$B$10,\"BMA\",CONFIGURATION!$B$1,\"bscr\",CONFIGURATION!$B$12)","v":"Mapped"}]
[null,null,null,null,null,{"$f":"XBRLMap(F42,F$73&\".\"&$U42&\".\"&$V42,$F$71,$F$72,CONFIGURATION!$B$10,\"BMA\",CONFIGURATION!$B$1,\"bscr\",CONFIGURATION!$B$12)","v":"Mapped"},null,{"$f":"XBRLMap(H42,H$73&\".\"&$U42&\".\"&$V42&\".\"&$H$74,$F$71,$F$72,CONFIGURATION!$B$10,\"BMA\",CONFIGURATION!$B$1,\"bscr\",CONFIGURATION!$B$12)","v":"Mapped"},null,{"$f":"XBRLMap(J42,H$73&\".\"&$U42&\".\"&$V42&\".\"&$J$74,$F$71,$F$72,CONFIGURATION!$B$10,\"BMA\",CONFIGURATION!$B$1,\"bscr\",CONFIGURATION!$B$12)","v":"Mapped"},null,{"$f":"XBRLMap(L42,H$73&\".\"&$U42&\".\"&$V42&\".\"&$L$74,$F$71,$F$72,CONFIGURATION!$B$10,\"BMA\",CONFIGURATION!$B$1,\"bscr\",CONFIGURATION!$B$12)","v":"Mapped"}]
[null,null,null,null,null,{"$f":"XBRLMap(F43,F$73&\".\"&$U43&\".\"&$V43,$F$71,$F$72,CONFIGURATION!$B$10,\"BMA\",CONFIGURATION!$B$1,\"bscr\",CONFIGURATION!$B$12)","v":"Mapped"},null,{"$f":"XBRLMap(H43,H$73&\".\"&$U43&\".\"&$V43&\".\"&$H$74,$F$71,$F$72,CONFIGURATION!$B$10,\"BMA\",CONFIGURATION!$B$1,\"bscr\",CONFIGURATION!$B$12)","v":"Mapped"},null,{"$f":"XBRLMap(J43,H$73&\".\"&$U43&\".\"&$V43&\".\"&$J$74,$F$71,$F$72,CONFIGURATION!$B$10,\"BMA\",CONFIGURATION!$B$1,\"bscr\",CONFIGURATION!$B$12)","v":"Mapped"},null,{"$f":"XBRLMap(L43,H$73&\".\"&$U43&\".\"&$V43&\".\"&$L$74,$F$71,$F$72,CONFIGURATION!$B$10,\"BMA\",CONFIGURATION!$B$1,\"bscr\",CONFIGURATION!$B$12)","v":"Mapped"}]
[null,null,null,null,null,{"$f":"XBRLMap(F44,F$73&\".\"&$U44&\".\"&$V44,$F$71,$F$72,CONFIGURATION!$B$10,\"BMA\",CONFIGURATION!$B$1,\"bscr\",CONFIGURATION!$B$12)","v":"Mapped"},null,{"$f":"XBRLMap(H44,H$73&\".\"&$U44&\".\"&$V44&\".\"&$H$74,$F$71,$F$72,CONFIGURATION!$B$10,\"BMA\",CONFIGURATION!$B$1,\"bscr\",CONFIGURATION!$B$12)","v":"Mapped"},null,{"$f":"XBRLMap(J44,H$73&\".\"&$U44&\".\"&$V44&\".\"&$J$74,$F$71,$F$72,CONFIGURATION!$B$10,\"BMA\",CONFIGURATION!$B$1,\"bscr\",CONFIGURATION!$B$12)","v":"Mapped"},null,{"$f":"XBRLMap(L44,H$73&\".\"&$U44&\".\"&$V44&\".\"&$L$74,$F$71,$F$72,CONFIGURATION!$B$10,\"BMA\",CONFIGURATION!$B$1,\"bscr\",CONFIGURATION!$B$12)","v":"Mapped"}]
[null,null,null,null,null,{"$f":"XBRLMap(F45,F$73&\".\"&$U45&\".\"&$V45,$F$71,$F$72,CONFIGURATION!$B$10,\"BMA\",CONFIGURATION!$B$1,\"bscr\",CONFIGURATION!$B$12)","v":"Mapped"},null,{"$f":"XBRLMap(H45,H$73&\".\"&$U45&\".\"&$V45&\".\"&$H$74,$F$71,$F$72,CONFIGURATION!$B$10,\"BMA\",CONFIGURATION!$B$1,\"bscr\",CONFIGURATION!$B$12)","v":"Mapped"},null,{"$f":"XBRLMap(J45,H$73&\".\"&$U45&\".\"&$V45&\".\"&$J$74,$F$71,$F$72,CONFIGURATION!$B$10,\"BMA\",CONFIGURATION!$B$1,\"bscr\",CONFIGURATION!$B$12)","v":"Mapped"},null,{"$f":"XBRLMap(L45,H$73&\".\"&$U45&\".\"&$V45&\".\"&$L$74,$F$71,$F$72,CONFIGURATION!$B$10,\"BMA\",CONFIGURATION!$B$1,\"bscr\",CONFIGURATION!$B$12)","v":"Mapped"}]
[null,null,null,null,null,{"$f":"XBRLMap(F46,F$73&\".\"&$U46&\".\"&$V46,$F$71,$F$72,CONFIGURATION!$B$10,\"BMA\",CONFIGURATION!$B$1,\"bscr\",CONFIGURATION!$B$12)","v":"Mapped"},null,{"$f":"XBRLMap(H46,H$73&\".\"&$U46&\".\"&$V46&\".\"&$H$74,$F$71,$F$72,CONFIGURATION!$B$10,\"BMA\",CONFIGURATION!$B$1,\"bscr\",CONFIGURATION!$B$12)","v":"Mapped"},null,{"$f":"XBRLMap(J46,H$73&\".\"&$U46&\".\"&$V46&\".\"&$J$74,$F$71,$F$72,CONFIGURATION!$B$10,\"BMA\",CONFIGURATION!$B$1,\"bscr\",CONFIGURATION!$B$12)","v":"Mapped"},null,{"$f":"XBRLMap(L46,H$73&\".\"&$U46&\".\"&$V46&\".\"&$L$74,$F$71,$F$72,CONFIGURATION!$B$10,\"BMA\",CONFIGURATION!$B$1,\"bscr\",CONFIGURATION!$B$12)","v":"Mapped"}]
[]
[null,null,null,null,null,{"$f":"XBRLMap(F48,F$73&\".\"&$U48&\".\"&$V48,$F$71,$F$72,CONFIGURATION!$B$10,\"BMA\",CONFIGURATION!$B$1,\"bscr\",CONFIGURATION!$B$12)","v":"Mapped"},null,{"$f":"XBRLMap(H48,H$73&\".\"&$U48&\".\"&$V48&\".\"&$H$74,$F$71,$F$72,CONFIGURATION!$B$10,\"BMA\",CONFIGURATION!$B$1,\"bscr\",CONFIGURATION!$B$12)","v":"Mapped"},null,{"$f":"XBRLMap(J48,H$73&\".\"&$U48&\".\"&$V48&\".\"&$J$74,$F$71,$F$72,CONFIGURATION!$B$10,\"BMA\",CONFIGURATION!$B$1,\"bscr\",CONFIGURATION!$B$12)","v":"Mapped"},null,{"$f":"XBRLMap(L48,H$73&\".\"&$U48&\".\"&$V48&\".\"&$L$74,$F$71,$F$72,CONFIGURATION!$B$10,\"BMA\",CONFIGURATION!$B$1,\"bscr\",CONFIGURATION!$B$12)","v":"Mapped"}]
[]
[]
[]
[]
[]
[null,null,null,null,null,"bma_longterm_StatementComponentAxis1_bma_ScheduleOfLongTermVariableAnnuityGuaranteesBermudaStatutoryReserve",null,"bma_longterm_StatementComponentAxis1_bma_ScheduleOfLongTermVariableAnnuityGuaranteesAccountValue4Volatility0Percent100Percent",null,null,null,"bma_longterm_StatementComponentAxis1_bma_ScheduleOfLongTermVariableAnnuityGuaranteesAccountValue4VolatilityGT100Percent",null,"bma_longterm_StatementComponentAxis1_bma_ScheduleOfLongTermVariableAnnuityGuaranteesNetAmountAtRisk13"]

{"sheet":"Schedule VIII (EBS)","index":51,"n_rows":118,"n_cols":29,"rows_kept":118,"cut":false,"hidden":false,"merged":[[56,3,56,13],[7,13,7,17],[12,2,12,4],[13,2,13,4],[30,2,30,4],[31,2,31,4],[7,5,8,5],[7,7,7,11],[51,2,51,4]]}
[null,null,"SCHEDULE OF LONG-TERM VARIABLE ANNUITY",null,null,null,null,null,null,null,null,null,null,null,null,null,null,{"$f":"HYPERLINK(\"#'Index'!A1\",\"Return to Index\")","v":"Return to Index"}]
[null,null,{"$f":"'Insurer Information'!C7","v":"Enter Company Name"}]
[null,null,{"$f":"TEXT('Insurer Information'!C3,\"mmmm dd, yyyy\")","v":"December 31, 2019"},null,null,null,null,null,null,null,null,null,null,null,null,null,null,"SCHEDULE VIII (EBS)"]
[null,null,{"$f":"'Form 4EBS'!C4","v":"United States Dollars"}]
[]
[null,"SCHEDULE OF LONG TERM VARIABLE ANNUITY GUARANTEES",null,null,null,null,null,null,null,null,null,null,null,{"$f":"YEAR('Insurer Information'!C3)","v":2019}]
[null,null,null,null,null,"(1)",null,"(2)",null,"(3)",null,"(4)",null,"(5)",null,"(6)",null,"(7)"]
[null,null,null,null,null,"Bermuda EBS Best Estimate Provisions",null,"Guaranteed Value 4",null,null,null,null,null,"Net Amount at Risk"]
[null,null,null,null,null,null,null,"Volatility (0% - 10.0%]",null,"Volatility (10.0% - 15.0%]",null,"Volatility >15.0%",null,"Volatility (0% - 10.0%]",null,"Volatility (10.0% - 15.0%]",null,"Volatility >15.0%"]
[null,null,null,null,null,{"$f":"CONFIGURATION!$D$12","v":" ('000s)"},null,{"$f":"CONFIGURATION!$D$12","v":" ('000s)"},null,{"$f":"CONFIGURATION!$D$12","v":" ('000s)"},null,{"$f":"CONFIGURATION!$D$12","v":" ('000s)"},null,{"$f":"CONFIGURATION!$D$12","v":" ('000s)"},null,{"$f":"CONFIGURATION!$D$12","v":" ('000s)"},null,{"$f":"CONFIGURATION!$D$12","v":" ('000s)"}]
[]
[null,null,"In-the-Money "]
[null,1,"Guaranteed Minimum Death Benefit: Return of Premium, Ratchet and Reset 2.",null,null,{"$f":"Import!M4722","v":0},null,{"$f":"Import!M4753","v":0},null,{"$f":"Import!M4784","v":0},null,{"$f":"Import!M4815","v":0},null,{"$f":"Import!M4846","v":0},null,{"$f":"Import!M4862","v":0},null,{"$f":"Import!M4878","v":0},null,null,"brrt_VariableAnnuitiesGuaranteesAxis_brrt_GuaranteedMinimumDeathBenefitReturnOfPremiumRatchetAndResetMember","brrt_InOutOfMoneyAxis_brrt_InTheMoneyMember",null,null,null,null,null,null,"bma_ScheduleOfLongTermVariableAnnuityGuaranteesGuaranteedMinimumDeathBenefitReturnOfPremiumRatchetAndReset2"]
[null,2,"Guaranteed Minimum Death Benefit: Enhanced Benefits (Roll up) 2.",null,null,{"$f":"Import!M4723","v":0},null,{"$f":"Import!M4754","v":0},null,{"$f":"Import!M4785","v":0},null,{"$f":"Import!M4816","v":0},null,{"$f":"Import!M4847","v":0},null,{"$f":"Import!M4863","v":0},null,{"$f":"Import!M4879","v":0},null,null,"brrt_VariableAnnuitiesGuaranteesAxis_brrt_GuaranteedMinimumDeathBenefitEnhancedBenefitsRollUpMember","brrt_InOutOfMoneyAxis_brrt_InTheMoneyMember",null,null,null,null,null,null,"bma_ScheduleOfLongTermVariableAnnuityGuaranteesGuaranteedMinimumDeathBenefitEnhancedBenefitsrollUp2"]
[null,3,"Guaranteed Minimum Income Benefit",null,null,{"$f":"Import!M4724","v":0},null,{"$f":"Import!M4755","v":0},null,{"$f":"Import!M4786","v":0},null,{"$f":"Import!M4817","v":0},null,{"$f":"Import!M4848","v":0},null,{"$f":"Import!M4864","v":0},null,{"$f":"Import!M4880","v":0},null,null,"brrt_VariableAnnuitiesGuaranteesAxis_brrt_GuaranteedMinimumIncomeBenefitMember","brrt_InOutOfMoneyAxis_brrt_InTheMoneyMember",null,null,null,null,null,null,"bma_ScheduleOfLongTermVariableAnnuityGuaranteesGuaranteedMinimumIncomeBenefit"]
[null,4,"Guaranteed Minimum Withdrawal Benefit",null,null,{"$f":"Import!M4725","v":0},null,{"$f":"Import!M4756","v":0},null,{"$f":"Import!M4787","v":0},null,{"$f":"Import!M4818","v":0},null,{"$f":"Import!M4849","v":0},null,{"$f":"Import!M4865","v":0},null,{"$f":"Import!M4881","v":0},null,null,"brrt_VariableAnnuitiesGuaranteesAxis_brrt_GuaranteedMinimumWithdrawalBenefitMember","brrt_InOutOfMoneyAxis_brrt_InTheMoneyMember",null,null,null,null,null,null,"bma_ScheduleOfLongTermVariableAnnuityGuaranteesGuaranteedMinimumWithdrawalBenefit"]
[null,5,"Guaranteed Enhanced Earnings Benefit",null,null,{"$f":"Import!M4726","v":0},null,{"$f":"Import!M4757","v":0},null,{"$f":"Import!M4788","v":0},null,{"$f":"Import!M4819","v":0},null,{"$f":"Import!M4850","v":0},null,{"$f":"Import!M4866","v":0},null,{"$f":"Import!M4882","v":0},null,null,"brrt_VariableAnnuitiesGuaranteesAxis_brrt_GuaranteedEnhancedEarningsBenefitMember","brrt_InOutOfMoneyAxis_brrt_InTheMoneyMember",null,null,null,null,null,null,"bma_ScheduleOfLongTermVariableAnnuityGuaranteesGuaranteedEnhancedEarningsBenefit"]
[null,null,"Guaranteed Minimum Accumulation Benefit: "]
[null,6,"Time To Maturity - 0-1 Year",null,null,{"$f":"Import!M4727","v":0},null,{"$f":"Import!M4758","v":0},null,{"$f":"Import!M4789","v":0},null,{"$f":"Import!M4820","v":0},null,{"$f":"Import!M4851","v":0},null,{"$f":"Import!M4867","v":0},null,{"$f":"Import!M4883","v":0},null,null,"brrt_VariableAnnuitiesGuaranteesAxis_brrt_GuaranteedMinimumAccumulationLessThan1YearMember","brrt_InOutOfMoneyAxis_brrt_InTheMoneyMember"]
[null,7,"Time To Maturity - 1-2 Years",null,null,{"$f":"Import!M4728","v":0},null,{"$f":"Import!M4759","v":0},null,{"$f":"Import!M4790","v":0},null,{"$f":"Import!M4821","v":0},null,{"$f":"Import!M4852","v":0},null,{"$f":"Import!M4868","v":0},null,{"$f":"Import!M4884","v":0},null,null,"brrt_VariableAnnuitiesGuaranteesAxis_brrt_GuaranteedMinimumAccumulationMoreThan1LessThan2YearsMember","brrt_InOutOfMoneyAxis_brrt_InTheMoneyMember"]
[null,8,"Time To Maturity - 2-3 Years",null,null,{"$f":"Import!M4729","v":0},null,{"$f":"Import!M4760","v":0},null,{"$f":"Import!M4791","v":0},null,{"$f":"Import!M4822","v":0},null,{"$f":"Import!M4853","v":0},null,{"$f":"Import!M4869","v":0},null,{"$f":"Import!M4885","v":0},null,null,"brrt_VariableAnnuitiesGuaranteesAxis_brrt_GuaranteedMinimumAccumulationMoreThan2LessThan3YearsMember","brrt_InOutOfMoneyAxis_brrt_InTheMoneyMember"]
[null,9,"Time To Maturity - 3-4 Years",null,null,{"$f":"Import!M4730","v":0},null,{"$f":"Import!M4761","v":0},null,{"$f":"Import!M4792","v":0},null,{"$f":"Import!M4823","v":0},null,{"$f":"Import!M4854","v":0},null,{"$f":"Import!M4870","v":0},null,{"$f":"Import!M4886","v":0},null,null,"brrt_VariableAnnuitiesGuaranteesAxis_brrt_GuaranteedMinimumAccumulationMoreThan3LessThan4YearsMember","brrt_InOutOfMoneyAxis_brrt_InTheMoneyMember"]
[null,10,"Time To Maturity - 4-5 Years",null,null,{"$f":"Import!M4731","v":0},null,{"$f":"Import!M4762","v":0},null,{"$f":"Import!M4793","v":0},null,{"$f":"Import!M4824","v":0},null,{"$f":"Import!M4855","v":0},null,{"$f":"Import!M4871","v":0},null,{"$f":"Import!M4887","v":0},null,null,"brrt_VariableAnnuitiesGuaranteesAxis_brrt_GuaranteedMinimumAccumulationMoreThan4LessThan5YearsMember","brrt_InOutOfMoneyAxis_brrt_InTheMoneyMember"]
[null,11,"Time To Maturity - 5-6 Years",null,null,{"$f":"Import!M4732","v":0},null,{"$f":"Import!M4763","v":0},null,{"$f":"Import!M4794","v":0},null,{"$f":"Import!M4825","v":0},null,{"$f":"Import!M4856","v":0},null,{"$f":"Import!M4872","v":0},null,{"$f":"Import!M4888","v":0},null,null,"brrt_VariableAnnuitiesGuaranteesAxis_brrt_GuaranteedMinimumAccumulationMoreThan5LessThan6YearsMember","brrt_InOutOfMoneyAxis_brrt_InTheMoneyMember"]
[null,12,"Time To Maturity - 6-7 Years",null,null,{"$f":"Import!M4733","v":0},null,{"$f":"Import!M4764","v":0},null,{"$f":"Import!M4795","v":0},null,{"$f":"Import!M4826","v":0},null,{"$f":"Import!M4857","v":0},null,{"$f":"Import!M4873","v":0},null,{"$f":"Import!M4889","v":0},null,null,"brrt_VariableAnnuitiesGuaranteesAxis_brrt_GuaranteedMinimumAccumulationMoreThan6LessThan7YearsMember","brrt_InOutOfMoneyAxis_brrt_InTheMoneyMember"]
[null,13,"Time To Maturity - 7-8 Years",null,null,{"$f":"Import!M4734","v":0},null,{"$f":"Import!M4765","v":0},null,{"$f":"Import!M4796","v":0},null,{"$f":"Import!M4827","v":0},null,{"$f":"Import!M4858","v":0},null,{"$f":"Import!M4874","v":0},null,{"$f":"Import!M4890","v":0},null,null,"brrt_VariableAnnuitiesGuaranteesAxis_brrt_GuaranteedMinimumAccumulationMoreThan7LessThan8YearsMember","brrt_InOutOfMoneyAxis_brrt_InTheMoneyMember"]
[null,14,"Time To Maturity - 8-9 Years",null,null,{"$f":"Import!M4735","v":0},null,{"$f":"Import!M4766","v":0},null,{"$f":"Import!M4797","v":0},null,{"$f":"Import!M4828","v":0},null,{"$f":"Import!M4859","v":0},null,{"$f":"Import!M4875","v":0},null,{"$f":"Import!M4891","v":0},null,null,"brrt_VariableAnnuitiesGuaranteesAxis_brrt_GuaranteedMinimumAccumulationMoreThan8LessThan9YearsMember","brrt_InOutOfMoneyAxis_brrt_InTheMoneyMember"]
[null,15,"Time To Maturity - >9 Years",null,null,{"$f":"Import!M4736","v":0},null,{"$f":"Import!M4767","v":0},null,{"$f":"Import!M4798","v":0},null,{"$f":"Import!M4829","v":0},null,{"$f":"Import!M4860","v":0},null,{"$f":"Import!M4876","v":0},null,{"$f":"Import!M4892","v":0},null,null,"brrt_VariableAnnuitiesGuaranteesAxis_brrt_GuaranteedMinimumAccumulationMoreThan9YearsMember","brrt_InOutOfMoneyAxis_brrt_InTheMoneyMember"]
[]
[null,null,"Out-of-the-Money "]
[null,16,"Guaranteed Minimum Death Benefit: Return of Premium, Ratchet and Reset 2.",null,null,{"$f":"Import!M4737","v":0},null,{"$f":"Import!M4768","v":0},null,{"$f":"Import!M4799","v":0},null,{"$f":"Import!M4830","v":0},null,null,null,null,null,null,null,null,"brrt_VariableAnnuitiesGuaranteesAxis_brrt_GuaranteedMinimumDeathBenefitReturnOfPremiumRatchetAndResetMember","brrt_InOutOfMoneyAxis_brrt_OutOfTheMoneyMember",null,null,null,null,null,null,"bma_ScheduleOfLongTermVariableAnnuityGuaranteesGuaranteedMinimumDeathBenefitReturnOfPremiumRatchetAndReset2"]
[null,17,"Guaranteed Minimum Death Benefit: Enhanced Benefits (Roll up) 2.",null,null,{"$f":"Import!M4738","v":0},null,{"$f":"Import!M4769","v":0},null,{"$f":"Import!M4800","v":0},null,{"$f":"Import!M4831","v":0},null,null,null,null,null,null,null,null,"brrt_VariableAnnuitiesGuaranteesAxis_brrt_GuaranteedMinimumDeathBenefitEnhancedBenefitsRollUpMember","brrt_InOutOfMoneyAxis_brrt_OutOfTheMoneyMember",null,null,null,null,null,null,"bma_ScheduleOfLongTermVariableAnnuityGuaranteesGuaranteedMinimumDeathBenefitEnhancedBenefitsrollUp2"]
[null,18,"Guaranteed Minimum Income Benefit",null,null,{"$f":"Import!M4739","v":0},null,{"$f":"Import!M4770","v":0},null,{"$f":"Import!M4801","v":0},null,{"$f":"Import!M4832","v":0},null,null,null,null,null,null,null,null,"brrt_VariableAnnuitiesGuaranteesAxis_brrt_GuaranteedMinimumIncomeBenefitMember","brrt_InOutOfMoneyAxis_brrt_OutOfTheMoneyMember",null,null,null,null,null,null,"bma_ScheduleOfLongTermVariableAnnuityGuaranteesGuaranteedMinimumIncomeBenefit"]
[null,19,"Guaranteed Minimum Withdrawal Benefit",null,null,{"$f":"Import!M4740","v":0},null,{"$f":"Import!M4771","v":0},null,{"$f":"Import!M4802","v":0},null,{"$f":"Import!M4833","v":0},null,null,null,null,null,null,null,null,"brrt_VariableAnnuitiesGuaranteesAxis_brrt_GuaranteedMinimumWithdrawalBenefitMember","brrt_InOutOfMoneyAxis_brrt_OutOfTheMoneyMember",null,null,null,null,null,null,"bma_ScheduleOfLongTermVariableAnnuityGuaranteesGuaranteedMinimumWithdrawalBenefit"]
[null,20,"Guaranteed Enhanced Earnings Benefit",null,null,{"$f":"Import!M4741","v":0},null,{"$f":"Import!M4772","v":0},null,{"$f":"Import!M4803","v":0},null,{"$f":"Import!M4834","v":0},null,null,null,null,null,null,null,null,"brrt_VariableAnnuitiesGuaranteesAxis_brrt_GuaranteedEnhancedEarningsBenefitMember","brrt_InOutOfMoneyAxis_brrt_OutOfTheMoneyMember",null,null,null,null,null,null,"bma_ScheduleOfLongTermVariableAnnuityGuaranteesGuaranteedEnhancedEarningsBenefit"]
[null,null,"Guaranteed Minimum Accumulation Benefit: "]
[null,21,"Time To Maturity - 0-1 Year",null,null,{"$f":"Import!M4742","v":0},null,{"$f":"Import!M4773","v":0},null,{"$f":"Import!M4804","v":0},null,{"$f":"Import!M4835","v":0},null,null,null,null,null,null,null,null,"brrt_VariableAnnuitiesGuaranteesAxis_brrt_GuaranteedMinimumAccumulationLessThan1YearMember","brrt_InOutOfMoneyAxis_brrt_OutOfTheMoneyMember"]
[null,22,"Time To Maturity - 1-2 Years",null,null,{"$f":"Import!M4743","v":0},null,{"$f":"Import!M4774","v":0},null,{"$f":"Import!M4805","v":0},null,{"$f":"Import!M4836","v":0},null,null,null,null,null,null,null,null,"brrt_VariableAnnuitiesGuaranteesAxis_brrt_GuaranteedMinimumAccumulationMoreThan1LessThan2YearsMember","brrt_InOutOfMoneyAxis_brrt_OutOfTheMoneyMember"]
[null,23,"Time To Maturity - 2-3 Years",null,null,{"$f":"Import!M4744","v":0},null,{"$f":"Import!M4775","v":0},null,{"$f":"Import!M4806","v":0},null,{"$f":"Import!M4837","v":0},null,null,null,null,null,null,null,null,"brrt_VariableAnnuitiesGuaranteesAxis_brrt_GuaranteedMinimumAccumulationMoreThan2LessThan3YearsMember","brrt_InOutOfMoneyAxis_brrt_OutOfTheMoneyMember"]
[null,24,"Time To Maturity - 3-4 Years",null,null,{"$f":"Import!M4745","v":0},null,{"$f":"Import!M4776","v":0},null,{"$f":"Import!M4807","v":0},null,{"$f":"Import!M4838","v":0},null,null,null,null,null,null,null,null,"brrt_VariableAnnuitiesGuaranteesAxis_brrt_GuaranteedMinimumAccumulationMoreThan3LessThan4YearsMember","brrt_InOutOfMoneyAxis_brrt_OutOfTheMoneyMember"]
[null,25,"Time To Maturity - 4-5 Years",null,null,{"$f":"Import!M4746","v":0},null,{"$f":"Import!M4777","v":0},null,{"$f":"Import!M4808","v":0},null,{"$f":"Import!M4839","v":0},null,null,null,null,null,null,null,null,"brrt_VariableAnnuitiesGuaranteesAxis_brrt_GuaranteedMinimumAccumulationMoreThan4LessThan5YearsMember","brrt_InOutOfMoneyAxis_brrt_OutOfTheMoneyMember"]
[null,26,"Time To Maturity - 5-6 Years",null,null,{"$f":"Import!M4747","v":0},null,{"$f":"Import!M4778","v":0},null,{"$f":"Import!M4809","v":0},null,{"$f":"Import!M4840","v":0},null,null,null,null,null,null,null,null,"brrt_VariableAnnuitiesGuaranteesAxis_brrt_GuaranteedMinimumAccumulationMoreThan5LessThan6YearsMember","brrt_InOutOfMoneyAxis_brrt_OutOfTheMoneyMember"]
[null,27,"Time To Maturity - 6-7 Years",null,null,{"$f":"Import!M4748","v":0},null,{"$f":"Import!M4779","v":0},null,{"$f":"Import!M4810","v":0},null,{"$f":"Import!M4841","v":0},null,null,null,null,null,null,null,null,"brrt_VariableAnnuitiesGuaranteesAxis_brrt_GuaranteedMinimumAccumulationMoreThan6LessThan7YearsMember","brrt_InOutOfMoneyAxis_brrt_OutOfTheMoneyMember"]
[null,28,"Time To Maturity - 7-8 Years",null,null,{"$f":"Import!M4749","v":0},null,{"$f":"Import!M4780","v":0},null,{"$f":"Import!M4811","v":0},null,{"$f":"Import!M4842","v":0},null,null,null,null,null,null,null,null,"brrt_VariableAnnuitiesGuaranteesAxis_brrt_GuaranteedMinimumAccumulationMoreThan7LessThan8YearsMember","brrt_InOutOfMoneyAxis_brrt_OutOfTheMoneyMember"]
[null,29,"Time To Maturity - 8-9 Years",null,null,{"$f":"Import!M4750","v":0},null,{"$f":"Import!M4781","v":0},null,{"$f":"Import!M4812","v":0},null,{"$f":"Import!M4843","v":0},null,null,null,null,null,null,null,null,"brrt_VariableAnnuitiesGuaranteesAxis_brrt_GuaranteedMinimumAccumulationMoreThan8LessThan9YearsMember","brrt_InOutOfMoneyAxis_brrt_OutOfTheMoneyMember"]
[null,30,"Time To Maturity - >9 Years",null,null,{"$f":"Import!M4751","v":0},null,{"$f":"Import!M4782","v":0},null,{"$f":"Import!M4813","v":0},null,{"$f":"Import!M4844","v":0},null,null,null,null,null,null,null,null,"brrt_VariableAnnuitiesGuaranteesAxis_brrt_GuaranteedMinimumAccumulationMoreThan9YearsMember","brrt_InOutOfMoneyAxis_brrt_OutOfTheMoneyMember"]
[null,null,null,null,null,null,null,null,null,null,null,null,null,null,null,null,null,null,null,null,null,null,null,null,null,null,null,null,""]
[null,31,"Total (Variable Annuities)",null,null,{"$f":"SUM(F13:F47)","v":0},null,{"$f":"SUM(H13:H47)","v":0},null,{"$f":"SUM(J13:J47)","v":0},null,{"$f":"SUM(L13:L47)","v":0},null,{"$f":"SUM(N13:N47)","v":0},null,{"$f":"SUM(P13:P47)","v":0},null,{"$f":"SUM(R13:R47)","v":0},null,null,"brrt_VariableAnnuitiesGuaranteesAxis_brrt_TotalMember","brrt_InOutOfMoneyAxis_brrt_TotalMember",null,null,null,null,null,null,"bma_ScheduleOfLongTermVariableAnnuityGuaranteesTotalvariableAnnuities"]
[]
[null,32,"Percentage of Guaranteed Minimum Death Benefit with Multiple Guarantees",null,null,null,null,null,null,null,null,{"$f":"Import!M4894","v":0},null,null,null,null,null,null,null,{"$f":"XBRLMap(L50,U$50,$F$73,$F$74,CONFIGURATION!$B$10,\"BMA\",CONFIGURATION!$B$1,\"bscr\",CONFIGURATION!$B$12)","v":"Mapped"},"brrt_PercentageOfGuaranteedMinimumDeathBenefitWithMultipleGuarantees"]
[]
[]
[null,"Notes"]
[null,"1.  Factors should be applied to Net Amount at Risk (NAR) defined as:"]
[null,null,"GMAB","Total claim payable if all contracts mature immediately"]
[null,null,"GMDB","Total claim amount payable upon immediate death of all policyholders"]
[null,null,"GMIB","Total claim payable upon full and immediate annuitization of all policies using an 80% factor applied to the GV (the 80% represents the ratio between current market annuitization factors and the guaranteed annuitization factors)"]
[null,null,"GMWB","Total claim payable if 100% of the guaranteed withdrawal benefit base in excess of the current account value is withdrawn immediately"]
[null,null,"GEEB","Total guaranteed enhanced payments upon immediate death of all policyholders"]
[]
[null,"2. Where ratchets, resets and roll-ups exist, please use the roll-up category."]
[]
[null,"3.  NAR is net of reinsurance."]
[]
[null,"4.  The proportion used for the account value under reinsurance is the proportion used for NAR."]
[]
[null,"5.  Volatility is defined as the annual volatility of the fund.  In the case where there is no, or limited, history of the fund, use the volatility of the benchmark."]
[]
[null,"6. Bermuda EBS best estimate provisions are to be calculated in accordance with Economic Balance Sheet valuation principals under Schedule XIV."]
[]
[]
[]
[null,null,null,null,null,{"$f":"IF(C3=\"\",\"\",TEXT(DATE(YEAR(C3+1)-1,MONTH(C3+1),DAY(C3+1)),\"mm/dd/yyyy\"))","v":"01/01/2019"}]
[null,null,null,null,null,{"$f":"IF(C3=\"\",\"\",TEXT(C3,\"mm/dd/yyyy\"))","v":"12/31/2019"}]
[null,null,null,null,null,"brrt_BermudaStatutoryReserve",null,"brrt_VariableAnnuityGuaranteedValue",null,null,null,null,null,"brrt_NetAmountAtRisk"]
[null,null,null,null,null,null,null,"brrt_VolatilityAxis_LessEqual10PercentMember",null,"brrt_VolatilityAxis_MoreThan10LessEqual15PercentMember",null,"brrt_VolatilityAxis_MoreThan15PercentMember",null,"brrt_VolatilityAxis_LessEqual10PercentMember",null,"brrt_VolatilityAxis_MoreThan10LessEqual15PercentMember",null,"brrt_VolatilityAxis_MoreThan15PercentMember"]
[null,null,null,null,null,{"$f":"XBRLMap(F13,F$75&\".\"&$U13&\".\"&$V13,$F$73,$F$74,CONFIGURATION!$B$10,\"BMA\",CONFIGURATION!$B$1,\"bscr\",CONFIGURATION!$B$12)","v":"Mapped"},null,{"$f":"XBRLMap(H13,H$75&\".\"&$U13&\".\"&$V13&\".\"&$H$76,$F$73,$F$74,CONFIGURATION!$B$10,\"BMA\",CONFIGURATION!$B$1,\"bscr\",CONFIGURATION!$B$12)","v":"Mapped"},null,{"$f":"XBRLMap(J13,H$75&\".\"&$U13&\".\"&$V13&\".\"&$J$76,$F$73,$F$74,CONFIGURATION!$B$10,\"BMA\",CONFIGURATION!$B$1,\"bscr\",CONFIGURATION!$B$12)","v":"Mapped"},null,{"$f":"XBRLMap(L13,H$75&\".\"&$U13&\".\"&$V13&\".\"&$L$76,$F$73,$F$74,CONFIGURATION!$B$10,\"BMA\",CONFIGURATION!$B$1,\"bscr\",CONFIGURATION!$B$12)","v":"Mapped"},null,{"$f":"XBRLMap(N13,N$75&\".\"&$U13&\".\"&$V13&\".\"&$N$76,$F$73,$F$74,CONFIGURATION!$B$10,\"BMA\",CONFIGURATION!$B$1,\"bscr\",CONFIGURATION!$B$12)","v":"Mapped"},null,{"$f":"XBRLMap(P13,N$75&\".\"&$U13&\".\"&$V13&\".\"&$P$76,$F$73,$F$74,CONFIGURATION!$B$10,\"BMA\",CONFIGURATION!$B$1,\"bscr\",CONFIGURATION!$B$12)","v":"Mapped"},null,{"$f":"XBRLMap(R13,N$75&\".\"&$U13&\".\"&$V13&\".\"&$R$76,$F$73,$F$74,CONFIGURATION!$B$10,\"BMA\",CONFIGURATION!$B$1,\"bscr\",CONFIGURATION!$B$12)","v":"Mapped"}]
[null,null,null,null,null,{"$f":"XBRLMap(F14,F$75&\".\"&$U14&\".\"&$V14,$F$73,$F$74,CONFIGURATION!$B$10,\"BMA\",CONFIGURATION!$B$1,\"bscr\",CONFIGURATION!$B$12)","v":"Mapped"},null,{"$f":"XBRLMap(H14,H$75&\".\"&$U14&\".\"&$V14&\".\"&$H$76,$F$73,$F$74,CONFIGURATION!$B$10,\"BMA\",CONFIGURATION!$B$1,\"bscr\",CONFIGURATION!$B$12)","v":"Mapped"},null,{"$f":"XBRLMap(J14,H$75&\".\"&$U14&\".\"&$V14&\".\"&$J$76,$F$73,$F$74,CONFIGURATION!$B$10,\"BMA\",CONFIGURATION!$B$1,\"bscr\",CONFIGURATION!$B$12)","v":"Mapped"},null,{"$f":"XBRLMap(L14,H$75&\".\"&$U14&\".\"&$V14&\".\"&$L$76,$F$73,$F$74,CONFIGURATION!$B$10,\"BMA\",CONFIGURATION!$B$1,\"bscr\",CONFIGURATION!$B$12)","v":"Mapped"},null,{"$f":"XBRLMap(N14,N$75&\".\"&$U14&\".\"&$V14&\".\"&$N$76,$F$73,$F$74,CONFIGURATION!$B$10,\"BMA\",CONFIGURATION!$B$1,\"bscr\",CONFIGURATION!$B$12)","v":"Mapped"},null,{"$f":"XBRLMap(P14,N$75&\".\"&$U14&\".\"&$V14&\".\"&$P$76,$F$73,$F$74,CONFIGURATION!$B$10,\"BMA\",CONFIGURATION!$B$1,\"bscr\",CONFIGURATION!$B$12)","v":"Mapped"},null,{"$f":"XBRLMap(R14,N$75&\".\"&$U14&\".\"&$V14&\".\"&$R$76,$F$73,$F$74,CONFIGURATION!$B$10,\"BMA\",CONFIGURATION!$B$1,\"bscr\",CONFIGURATION!$B$12)","v":"Mapped"}]
[null,null,null,null,null,{"$f":"XBRLMap(F15,F$75&\".\"&$U15&\".\"&$V15,$F$73,$F$74,CONFIGURATION!$B$10,\"BMA\",CONFIGURATION!$B$1,\"bscr\",CONFIGURATION!$B$12)","v":"Mapped"},null,{"$f":"XBRLMap(H15,H$75&\".\"&$U15&\".\"&$V15&\".\"&$H$76,$F$73,$F$74,CONFIGURATION!$B$10,\"BMA\",CONFIGURATION!$B$1,\"bscr\",CONFIGURATION!$B$12)","v":"Mapped"},null,{"$f":"XBRLMap(J15,H$75&\".\"&$U15&\".\"&$V15&\".\"&$J$76,$F$73,$F$74,CONFIGURATION!$B$10,\"BMA\",CONFIGURATION!$B$1,\"bscr\",CONFIGURATION!$B$12)","v":"Mapped"},null,{"$f":"XBRLMap(L15,H$75&\".\"&$U15&\".\"&$V15&\".\"&$L$76,$F$73,$F$74,CONFIGURATION!$B$10,\"BMA\",CONFIGURATION!$B$1,\"bscr\",CONFIGURATION!$B$12)","v":"Mapped"},null,{"$f":"XBRLMap(N15,N$75&\".\"&$U15&\".\"&$V15&\".\"&$N$76,$F$73,$F$74,CONFIGURATION!$B$10,\"BMA\",CONFIGURATION!$B$1,\"bscr\",CONFIGURATION!$B$12)","v":"Mapped"},null,{"$f":"XBRLMap(P15,N$75&\".\"&$U15&\".\"&$V15&\".\"&$P$76,$F$73,$F$74,CONFIGURATION!$B$10,\"BMA\",CONFIGURATION!$B$1,\"bscr\",CONFIGURATION!$B$12)","v":"Mapped"},null,{"$f":"XBRLMap(R15,N$75&\".\"&$U15&\".\"&$V15&\".\"&$R$76,$F$73,$F$74,CONFIGURATION!$B$10,\"BMA\",CONFIGURATION!$B$1,\"bscr\",CONFIGURATION!$B$12)","v":"Mapped"}]
[null,null,null,null,null,{"$f":"XBRLMap(F16,F$75&\".\"&$U16&\".\"&$V16,$F$73,$F$74,CONFIGURATION!$B$10,\"BMA\",CONFIGURATION!$B$1,\"bscr\",CONFIGURATION!$B$12)","v":"Mapped"},null,{"$f":"XBRLMap(H16,H$75&\".\"&$U16&\".\"&$V16&\".\"&$H$76,$F$73,$F$74,CONFIGURATION!$B$10,\"BMA\",CONFIGURATION!$B$1,\"bscr\",CONFIGURATION!$B$12)","v":"Mapped"},null,{"$f":"XBRLMap(J16,H$75&\".\"&$U16&\".\"&$V16&\".\"&$J$76,$F$73,$F$74,CONFIGURATION!$B$10,\"BMA\",CONFIGURATION!$B$1,\"bscr\",CONFIGURATION!$B$12)","v":"Mapped"},null,{"$f":"XBRLMap(L16,H$75&\".\"&$U16&\".\"&$V16&\".\"&$L$76,$F$73,$F$74,CONFIGURATION!$B$10,\"BMA\",CONFIGURATION!$B$1,\"bscr\",CONFIGURATION!$B$12)","v":"Mapped"},null,{"$f":"XBRLMap(N16,N$75&\".\"&$U16&\".\"&$V16&\".\"&$N$76,$F$73,$F$74,CONFIGURATION!$B$10,\"BMA\",CONFIGURATION!$B$1,\"bscr\",CONFIGURATION!$B$12)","v":"Mapped"},null,{"$f":"XBRLMap(P16,N$75&\".\"&$U16&\".\"&$V16&\".\"&$P$76,$F$73,$F$74,CONFIGURATION!$B$10,\"BMA\",CONFIGURATION!$B$1,\"bscr\",CONFIGURATION!$B$12)","v":"Mapped"},null,{"$f":"XBRLMap(R16,N$75&\".\"&$U16&\".\"&$V16&\".\"&$R$76,$F$73,$F$74,CONFIGURATION!$B$10,\"BMA\",CONFIGURATION!$B$1,\"bscr\",CONFIGURATION!$B$12)","v":"Mapped"}]
[null,null,null,null,null,{"$f":"XBRLMap(F17,F$75&\".\"&$U17&\".\"&$V17,$F$73,$F$74,CONFIGURATION!$B$10,\"BMA\",CONFIGURATION!$B$1,\"bscr\",CONFIGURATION!$B$12)","v":"Mapped"},null,{"$f":"XBRLMap(H17,H$75&\".\"&$U17&\".\"&$V17&\".\"&$H$76,$F$73,$F$74,CONFIGURATION!$B$10,\"BMA\",CONFIGURATION!$B$1,\"bscr\",CONFIGURATION!$B$12)","v":"Mapped"},null,{"$f":"XBRLMap(J17,H$75&\".\"&$U17&\".\"&$V17&\".\"&$J$76,$F$73,$F$74,CONFIGURATION!$B$10,\"BMA\",CONFIGURATION!$B$1,\"bscr\",CONFIGURATION!$B$12)","v":"Mapped"},null,{"$f":"XBRLMap(L17,H$75&\".\"&$U17&\".\"&$V17&\".\"&$L$76,$F$73,$F$74,CONFIGURATION!$B$10,\"BMA\",CONFIGURATION!$B$1,\"bscr\",CONFIGURATION!$B$12)","v":"Mapped"},null,{"$f":"XBRLMap(N17,N$75&\".\"&$U17&\".\"&$V17&\".\"&$N$76,$F$73,$F$74,CONFIGURATION!$B$10,\"BMA\",CONFIGURATION!$B$1,\"bscr\",CONFIGURATION!$B$12)","v":"Mapped"},null,{"$f":"XBRLMap(P17,N$75&\".\"&$U17&\".\"&$V17&\".\"&$P$76,$F$73,$F$74,CONFIGURATION!$B$10,\"BMA\",CONFIGURATION!$B$1,\"bscr\",CONFIGURATION!$B$12)","v":"Mapped"},null,{"$f":"XBRLMap(R17,N$75&\".\"&$U17&\".\"&$V17&\".\"&$R$76,$F$73,$F$74,CONFIGURATION!$B$10,\"BMA\",CONFIGURATION!$B$1,\"bscr\",CONFIGURATION!$B$12)","v":"Mapped"}]
[]
[null,null,null,null,null,{"$f":"XBRLMap(F19,F$75&\".\"&$U19&\".\"&$V19,$F$73,$F$74,CONFIGURATION!$B$10,\"BMA\",CONFIGURATION!$B$1,\"bscr\",CONFIGURATION!$B$12)","v":"Mapped"},null,{"$f":"XBRLMap(H19,H$75&\".\"&$U19&\".\"&$V19&\".\"&$H$76,$F$73,$F$74,CONFIGURATION!$B$10,\"BMA\",CONFIGURATION!$B$1,\"bscr\",CONFIGURATION!$B$12)","v":"Mapped"},null,{"$f":"XBRLMap(J19,H$75&\".\"&$U19&\".\"&$V19&\".\"&$J$76,$F$73,$F$74,CONFIGURATION!$B$10,\"BMA\",CONFIGURATION!$B$1,\"bscr\",CONFIGURATION!$B$12)","v":"Mapped"},null,{"$f":"XBRLMap(L19,H$75&\".\"&$U19&\".\"&$V19&\".\"&$L$76,$F$73,$F$74,CONFIGURATION!$B$10,\"BMA\",CONFIGURATION!$B$1,\"bscr\",CONFIGURATION!$B$12)","v":"Mapped"},null,{"$f":"XBRLMap(N19,N$75&\".\"&$U19&\".\"&$V19&\".\"&$N$76,$F$73,$F$74,CONFIGURATION!$B$10,\"BMA\",CONFIGURATION!$B$1,\"bscr\",CONFIGURATION!$B$12)","v":"Mapped"},null,{"$f":"XBRLMap(P19,N$75&\".\"&$U19&\".\"&$V19&\".\"&$P$76,$F$73,$F$74,CONFIGURATION!$B$10,\"BMA\",CONFIGURATION!$B$1,\"bscr\",CONFIGURATION!$B$12)","v":"Mapped"},null,{"$f":"XBRLMap(R19,N$75&\".\"&$U19&\".\"&$V19&\".\"&$R$76,$F$73,$F$74,CONFIGURATION!$B$10,\"BMA\",CONFIGURATION!$B$1,\"bscr\",CONFIGURATION!$B$12)","v":"Mapped"}]
[null,null,null,null,null,{"$f":"XBRLMap(F20,F$75&\".\"&$U20&\".\"&$V20,$F$73,$F$74,CONFIGURATION!$B$10,\"BMA\",CONFIGURATION!$B$1,\"bscr\",CONFIGURATION!$B$12)","v":"Mapped"},null,{"$f":"XBRLMap(H20,H$75&\".\"&$U20&\".\"&$V20&\".\"&$H$76,$F$73,$F$74,CONFIGURATION!$B$10,\"BMA\",CONFIGURATION!$B$1,\"bscr\",CONFIGURATION!$B$12)","v":"Mapped"},null,{"$f":"XBRLMap(J20,H$75&\".\"&$U20&\".\"&$V20&\".\"&$J$76,$F$73,$F$74,CONFIGURATION!$B$10,\"BMA\",CONFIGURATION!$B$1,\"bscr\",CONFIGURATION!$B$12)","v":"Mapped"},null,{"$f":"XBRLMap(L20,H$75&\".\"&$U20&\".\"&$V20&\".\"&$L$76,$F$73,$F$74,CONFIGURATION!$B$10,\"BMA\",CONFIGURATION!$B$1,\"bscr\",CONFIGURATION!$B$12)","v":"Mapped"},null,{"$f":"XBRLMap(N20,N$75&\".\"&$U20&\".\"&$V20&\".\"&$N$76,$F$73,$F$74,CONFIGURATION!$B$10,\"BMA\",CONFIGURATION!$B$1,\"bscr\",CONFIGURATION!$B$12)","v":"Mapped"},null,{"$f":"XBRLMap(P20,N$75&\".\"&$U20&\".\"&$V20&\".\"&$P$76,$F$73,$F$74,CONFIGURATION!$B$10,\"BMA\",CONFIGURATION!$B$1,\"bscr\",CONFIGURATION!$B$12)","v":"Mapped"},null,{"$f":"XBRLMap(R20,N$75&\".\"&$U20&\".\"&$V20&\".\"&$R$76,$F$73,$F$74,CONFIGURATION!$B$10,\"BMA\",CONFIGURATION!$B$1,\"bscr\",CONFIGURATION!$B$12)","v":"Mapped"}]
[null,null,null,null,null,{"$f":"XBRLMap(F21,F$75&\".\"&$U21&\".\"&$V21,$F$73,$F$74,CONFIGURATION!$B$10,\"BMA\",CONFIGURATION!$B$1,\"bscr\",CONFIGURATION!$B$12)","v":"Mapped"},null,{"$f":"XBRLMap(H21,H$75&\".\"&$U21&\".\"&$V21&\".\"&$H$76,$F$73,$F$74,CONFIGURATION!$B$10,\"BMA\",CONFIGURATION!$B$1,\"bscr\",CONFIGURATION!$B$12)","v":"Mapped"},null,{"$f":"XBRLMap(J21,H$75&\".\"&$U21&\".\"&$V21&\".\"&$J$76,$F$73,$F$74,CONFIGURATION!$B$10,\"BMA\",CONFIGURATION!$B$1,\"bscr\",CONFIGURATION!$B$12)","v":"Mapped"},null,{"$f":"XBRLMap(L21,H$75&\".\"&$U21&\".\"&$V21&\".\"&$L$76,$F$73,$F$74,CONFIGURATION!$B$10,\"BMA\",CONFIGURATION!$B$1,\"bscr\",CONFIGURATION!$B$12)","v":"Mapped"},null,{"$f":"XBRLMap(N21,N$75&\".\"&$U21&\".\"&$V21&\".\"&$N$76,$F$73,$F$74,CONFIGURATION!$B$10,\"BMA\",CONFIGURATION!$B$1,\"bscr\",CONFIGURATION!$B$12)","v":"Mapped"},null,{"$f":"XBRLMap(P21,N$75&\".\"&$U21&\".\"&$V21&\".\"&$P$76,$F$73,$F$74,CONFIGURATION!$B$10,\"BMA\",CONFIGURATION!$B$1,\"bscr\",CONFIGURATION!$B$12)","v":"Mapped"},null,{"$f":"XBRLMap(R21,N$75&\".\"&$U21&\".\"&$V21&\".\"&$R$76,$F$73,$F$74,CONFIGURATION!$B$10,\"BMA\",CONFIGURATION!$B$1,\"bscr\",CONFIGURATION!$B$12)","v":"Mapped"}]
[null,null,null,null,null,{"$f":"XBRLMap(F22,F$75&\".\"&$U22&\".\"&$V22,$F$73,$F$74,CONFIGURATION!$B$10,\"BMA\",CONFIGURATION!$B$1,\"bscr\",CONFIGURATION!$B$12)","v":"Mapped"},null,{"$f":"XBRLMap(H22,H$75&\".\"&$U22&\".\"&$V22&\".\"&$H$76,$F$73,$F$74,CONFIGURATION!$B$10,\"BMA\",CONFIGURATION!$B$1,\"bscr\",CONFIGURATION!$B$12)","v":"Mapped"},null,{"$f":"XBRLMap(J22,H$75&\".\"&$U22&\".\"&$V22&\".\"&$J$76,$F$73,$F$74,CONFIGURATION!$B$10,\"BMA\",CONFIGURATION!$B$1,\"bscr\",CONFIGURATION!$B$12)","v":"Mapped"},null,{"$f":"XBRLMap(L22,H$75&\".\"&$U22&\".\"&$V22&\".\"&$L$76,$F$73,$F$74,CONFIGURATION!$B$10,\"BMA\",CONFIGURATION!$B$1,\"bscr\",CONFIGURATION!$B$12)","v":"Mapped"},null,{"$f":"XBRLMap(N22,N$75&\".\"&$U22&\".\"&$V22&\".\"&$N$76,$F$73,$F$74,CONFIGURATION!$B$10,\"BMA\",CONFIGURATION!$B$1,\"bscr\",CONFIGURATION!$B$12)","v":"Mapped"},null,{"$f":"XBRLMap(P22,N$75&\".\"&$U22&\".\"&$V22&\".\"&$P$76,$F$73,$F$74,CONFIGURATION!$B$10,\"BMA\",CONFIGURATION!$B$1,\"bscr\",CONFIGURATION!$B$12)","v":"Mapped"},null,{"$f":"XBRLMap(R22,N$75&\".\"&$U22&\".\"&$V22&\".\"&$R$76,$F$73,$F$74,CONFIGURATION!$B$10,\"BMA\",CONFIGURATION!$B$1,\"bscr\",CONFIGURATION!$B$12)","v":"Mapped"}]
[null,null,null,null,null,{"$f":"XBRLMap(F23,F$75&\".\"&$U23&\".\"&$V23,$F$73,$F$74,CONFIGURATION!$B$10,\"BMA\",CONFIGURATION!$B$1,\"bscr\",CONFIGURATION!$B$12)","v":"Mapped"},null,{"$f":"XBRLMap(H23,H$75&\".\"&$U23&\".\"&$V23&\".\"&$H$76,$F$73,$F$74,CONFIGURATION!$B$10,\"BMA\",CONFIGURATION!$B$1,\"bscr\",CONFIGURATION!$B$12)","v":"Mapped"},null,{"$f":"XBRLMap(J23,H$75&\".\"&$U23&\".\"&$V23&\".\"&$J$76,$F$73,$F$74,CONFIGURATION!$B$10,\"BMA\",CONFIGURATION!$B$1,\"bscr\",CONFIGURATION!$B$12)","v":"Mapped"},null,{"$f":"XBRLMap(L23,H$75&\".\"&$U23&\".\"&$V23&\".\"&$L$76,$F$73,$F$74,CONFIGURATION!$B$10,\"BMA\",CONFIGURATION!$B$1,\"bscr\",CONFIGURATION!$B$12)","v":"Mapped"},null,{"$f":"XBRLMap(N23,N$75&\".\"&$U23&\".\"&$V23&\".\"&$N$76,$F$73,$F$74,CONFIGURATION!$B$10,\"BMA\",CONFIGURATION!$B$1,\"bscr\",CONFIGURATION!$B$12)","v":"Mapped"},null,{"$f":"XBRLMap(P23,N$75&\".\"&$U23&\".\"&$V23&\".\"&$P$76,$F$73,$F$74,CONFIGURATION!$B$10,\"BMA\",CONFIGURATION!$B$1,\"bscr\",CONFIGURATION!$B$12)","v":"Mapped"},null,{"$f":"XBRLMap(R23,N$75&\".\"&$U23&\".\"&$V23&\".\"&$R$76,$F$73,$F$74,CONFIGURATION!$B$10,\"BMA\",CONFIGURATION!$B$1,\"bscr\",CONFIGURATION!$B$12)","v":"Mapped"}]
[null,null,null,null,null,{"$f":"XBRLMap(F24,F$75&\".\"&$U24&\".\"&$V24,$F$73,$F$74,CONFIGURATION!$B$10,\"BMA\",CONFIGURATION!$B$1,\"bscr\",CONFIGURATION!$B$12)","v":"Mapped"},null,{"$f":"XBRLMap(H24,H$75&\".\"&$U24&\".\"&$V24&\".\"&$H$76,$F$73,$F$74,CONFIGURATION!$B$10,\"BMA\",CONFIGURATION!$B$1,\"bscr\",CONFIGURATION!$B$12)","v":"Mapped"},null,{"$f":"XBRLMap(J24,H$75&\".\"&$U24&\".\"&$V24&\".\"&$J$76,$F$73,$F$74,CONFIGURATION!$B$10,\"BMA\",CONFIGURATION!$B$1,\"bscr\",CONFIGURATION!$B$12)","v":"Mapped"},null,{"$f":"XBRLMap(L24,H$75&\".\"&$U24&\".\"&$V24&\".\"&$L$76,$F$73,$F$74,CONFIGURATION!$B$10,\"BMA\",CONFIGURATION!$B$1,\"bscr\",CONFIGURATION!$B$12)","v":"Mapped"},null,{"$f":"XBRLMap(N24,N$75&\".\"&$U24&\".\"&$V24&\".\"&$N$76,$F$73,$F$74,CONFIGURATION!$B$10,\"BMA\",CONFIGURATION!$B$1,\"bscr\",CONFIGURATION!$B$12)","v":"Mapped"},null,{"$f":"XBRLMap(P24,N$75&\".\"&$U24&\".\"&$V24&\".\"&$P$76,$F$73,$F$74,CONFIGURATION!$B$10,\"BMA\",CONFIGURATION!$B$1,\"bscr\",CONFIGURATION!$B$12)","v":"Mapped"},null,{"$f":"XBRLMap(R24,N$75&\".\"&$U24&\".\"&$V24&\".\"&$R$76,$F$73,$F$74,CONFIGURATION!$B$10,\"BMA\",CONFIGURATION!$B$1,\"bscr\",CONFIGURATION!$B$12)","v":"Mapped"}]
[null,null,null,null,null,{"$f":"XBRLMap(F25,F$75&\".\"&$U25&\".\"&$V25,$F$73,$F$74,CONFIGURATION!$B$10,\"BMA\",CONFIGURATION!$B$1,\"bscr\",CONFIGURATION!$B$12)","v":"Mapped"},null,{"$f":"XBRLMap(H25,H$75&\".\"&$U25&\".\"&$V25&\".\"&$H$76,$F$73,$F$74,CONFIGURATION!$B$10,\"BMA\",CONFIGURATION!$B$1,\"bscr\",CONFIGURATION!$B$12)","v":"Mapped"},null,{"$f":"XBRLMap(J25,H$75&\".\"&$U25&\".\"&$V25&\".\"&$J$76,$F$73,$F$74,CONFIGURATION!$B$10,\"BMA\",CONFIGURATION!$B$1,\"bscr\",CONFIGURATION!$B$12)","v":"Mapped"},null,{"$f":"XBRLMap(L25,H$75&\".\"&$U25&\".\"&$V25&\".\"&$L$76,$F$73,$F$74,CONFIGURATION!$B$10,\"BMA\",CONFIGURATION!$B$1,\"bscr\",CONFIGURATION!$B$12)","v":"Mapped"},null,{"$f":"XBRLMap(N25,N$75&\".\"&$U25&\".\"&$V25&\".\"&$N$76,$F$73,$F$74,CONFIGURATION!$B$10,\"BMA\",CONFIGURATION!$B$1,\"bscr\",CONFIGURATION!$B$12)","v":"Mapped"},null,{"$f":"XBRLMap(P25,N$75&\".\"&$U25&\".\"&$V25&\".\"&$P$76,$F$73,$F$74,CONFIGURATION!$B$10,\"BMA\",CONFIGURATION!$B$1,\"bscr\",CONFIGURATION!$B$12)","v":"Mapped"},null,{"$f":"XBRLMap(R25,N$75&\".\"&$U25&\".\"&$V25&\".\"&$R$76,$F$73,$F$74,CONFIGURATION!$B$10,\"BMA\",CONFIGURATION!$B$1,\"bscr\",CONFIGURATION!$B$12)","v":"Mapped"}]
[null,null,null,null,null,{"$f":"XBRLMap(F26,F$75&\".\"&$U26&\".\"&$V26,$F$73,$F$74,CONFIGURATION!$B$10,\"BMA\",CONFIGURATION!$B$1,\"bscr\",CONFIGURATION!$B$12)","v":"Mapped"},null,{"$f":"XBRLMap(H26,H$75&\".\"&$U26&\".\"&$V26&\".\"&$H$76,$F$73,$F$74,CONFIGURATION!$B$10,\"BMA\",CONFIGURATION!$B$1,\"bscr\",CONFIGURATION!$B$12)","v":"Mapped"},null,{"$f":"XBRLMap(J26,H$75&\".\"&$U26&\".\"&$V26&\".\"&$J$76,$F$73,$F$74,CONFIGURATION!$B$10,\"BMA\",CONFIGURATION!$B$1,\"bscr\",CONFIGURATION!$B$12)","v":"Mapped"},null,{"$f":"XBRLMap(L26,H$75&\".\"&$U26&\".\"&$V26&\".\"&$L$76,$F$73,$F$74,CONFIGURATION!$B$10,\"BMA\",CONFIGURATION!$B$1,\"bscr\",CONFIGURATION!$B$12)","v":"Mapped"},null,{"$f":"XBRLMap(N26,N$75&\".\"&$U26&\".\"&$V26&\".\"&$N$76,$F$73,$F$74,CONFIGURATION!$B$10,\"BMA\",CONFIGURATION!$B$1,\"bscr\",CONFIGURATION!$B$12)","v":"Mapped"},null,{"$f":"XBRLMap(P26,N$75&\".\"&$U26&\".\"&$V26&\".\"&$P$76,$F$73,$F$74,CONFIGURATION!$B$10,\"BMA\",CONFIGURATION!$B$1,\"bscr\",CONFIGURATION!$B$12)","v":"Mapped"},null,{"$f":"XBRLMap(R26,N$75&\".\"&$U26&\".\"&$V26&\".\"&$R$76,$F$73,$F$74,CONFIGURATION!$B$10,\"BMA\",CONFIGURATION!$B$1,\"bscr\",CONFIGURATION!$B$12)","v":"Mapped"}]
[null,null,null,null,null,{"$f":"XBRLMap(F27,F$75&\".\"&$U27&\".\"&$V27,$F$73,$F$74,CONFIGURATION!$B$10,\"BMA\",CONFIGURATION!$B$1,\"bscr\",CONFIGURATION!$B$12)","v":"Mapped"},null,{"$f":"XBRLMap(H27,H$75&\".\"&$U27&\".\"&$V27&\".\"&$H$76,$F$73,$F$74,CONFIGURATION!$B$10,\"BMA\",CONFIGURATION!$B$1,\"bscr\",CONFIGURATION!$B$12)","v":"Mapped"},null,{"$f":"XBRLMap(J27,H$75&\".\"&$U27&\".\"&$V27&\".\"&$J$76,$F$73,$F$74,CONFIGURATION!$B$10,\"BMA\",CONFIGURATION!$B$1,\"bscr\",CONFIGURATION!$B$12)","v":"Mapped"},null,{"$f":"XBRLMap(L27,H$75&\".\"&$U27&\".\"&$V27&\".\"&$L$76,$F$73,$F$74,CONFIGURATION!$B$10,\"BMA\",CONFIGURATION!$B$1,\"bscr\",CONFIGURATION!$B$12)","v":"Mapped"},null,{"$f":"XBRLMap(N27,N$75&\".\"&$U27&\".\"&$V27&\".\"&$N$76,$F$73,$F$74,CONFIGURATION!$B$10,\"BMA\",CONFIGURATION!$B$1,\"bscr\",CONFIGURATION!$B$12)","v":"Mapped"},null,{"$f":"XBRLMap(P27,N$75&\".\"&$U27&\".\"&$V27&\".\"&$P$76,$F$73,$F$74,CONFIGURATION!$B$10,\"BMA\",CONFIGURATION!$B$1,\"bscr\",CONFIGURATION!$B$12)","v":"Mapped"},null,{"$f":"XBRLMap(R27,N$75&\".\"&$U27&\".\"&$V27&\".\"&$R$76,$F$73,$F$74,CONFIGURATION!$B$10,\"BMA\",CONFIGURATION!$B$1,\"bscr\",CONFIGURATION!$B$12)","v":"Mapped"}]
[null,null,null,null,null,{"$f":"XBRLMap(F28,F$75&\".\"&$U28&\".\"&$V28,$F$73,$F$74,CONFIGURATION!$B$10,\"BMA\",CONFIGURATION!$B$1,\"bscr\",CONFIGURATION!$B$12)","v":"Mapped"},null,{"$f":"XBRLMap(H28,H$75&\".\"&$U28&\".\"&$V28&\".\"&$H$76,$F$73,$F$74,CONFIGURATION!$B$10,\"BMA\",CONFIGURATION!$B$1,\"bscr\",CONFIGURATION!$B$12)","v":"Mapped"},null,{"$f":"XBRLMap(J28,H$75&\".\"&$U28&\".\"&$V28&\".\"&$J$76,$F$73,$F$74,CONFIGURATION!$B$10,\"BMA\",CONFIGURATION!$B$1,\"bscr\",CONFIGURATION!$B$12)","v":"Mapped"},null,{"$f":"XBRLMap(L28,H$75&\".\"&$U28&\".\"&$V28&\".\"&$L$76,$F$73,$F$74,CONFIGURATION!$B$10,\"BMA\",CONFIGURATION!$B$1,\"bscr\",CONFIGURATION!$B$12)","v":"Mapped"},null,{"$f":"XBRLMap(N28,N$75&\".\"&$U28&\".\"&$V28&\".\"&$N$76,$F$73,$F$74,CONFIGURATION!$B$10,\"BMA\",CONFIGURATION!$B$1,\"bscr\",CONFIGURATION!$B$12)","v":"Mapped"},null,{"$f":"XBRLMap(P28,N$75&\".\"&$U28&\".\"&$V28&\".\"&$P$76,$F$73,$F$74,CONFIGURATION!$B$10,\"BMA\",CONFIGURATION!$B$1,\"bscr\",CONFIGURATION!$B$12)","v":"Mapped"},null,{"$f":"XBRLMap(R28,N$75&\".\"&$U28&\".\"&$V28&\".\"&$R$76,$F$73,$F$74,CONFIGURATION!$B$10,\"BMA\",CONFIGURATION!$B$1,\"bscr\",CONFIGURATION!$B$12)","v":"Mapped"}]
[]
[]
[null,null,null,null,null,{"$f":"XBRLMap(F31,F$75&\".\"&$U31&\".\"&$V31,$F$73,$F$74,CONFIGURATION!$B$10,\"BMA\",CONFIGURATION!$B$1,\"bscr\",CONFIGURATION!$B$12)","v":"Mapped"},null,{"$f":"XBRLMap(H31,H$75&\".\"&$U31&\".\"&$V31&\".\"&$H$76,$F$73,$F$74,CONFIGURATION!$B$10,\"BMA\",CONFIGURATION!$B$1,\"bscr\",CONFIGURATION!$B$12)","v":"Mapped"},null,{"$f":"XBRLMap(J31,H$75&\".\"&$U31&\".\"&$V31&\".\"&$J$76,$F$73,$F$74,CONFIGURATION!$B$10,\"BMA\",CONFIGURATION!$B$1,\"bscr\",CONFIGURATION!$B$12)","v":"Mapped"},null,{"$f":"XBRLMap(L31,H$75&\".\"&$U31&\".\"&$V31&\".\"&$L$76,$F$73,$F$74,CONFIGURATION!$B$10,\"BMA\",CONFIGURATION!$B$1,\"bscr\",CONFIGURATION!$B$12)","v":"Mapped"}]
[null,null,null,null,null,{"$f":"XBRLMap(F32,F$75&\".\"&$U32&\".\"&$V32,$F$73,$F$74,CONFIGURATION!$B$10,\"BMA\",CONFIGURATION!$B$1,\"bscr\",CONFIGURATION!$B$12)","v":"Mapped"},null,{"$f":"XBRLMap(H32,H$75&\".\"&$U32&\".\"&$V32&\".\"&$H$76,$F$73,$F$74,CONFIGURATION!$B$10,\"BMA\",CONFIGURATION!$B$1,\"bscr\",CONFIGURATION!$B$12)","v":"Mapped"},null,{"$f":"XBRLMap(J32,H$75&\".\"&$U32&\".\"&$V32&\".\"&$J$76,$F$73,$F$74,CONFIGURATION!$B$10,\"BMA\",CONFIGURATION!$B$1,\"bscr\",CONFIGURATION!$B$12)","v":"Mapped"},null,{"$f":"XBRLMap(L32,H$75&\".\"&$U32&\".\"&$V32&\".\"&$L$76,$F$73,$F$74,CONFIGURATION!$B$10,\"BMA\",CONFIGURATION!$B$1,\"bscr\",CONFIGURATION!$B$12)","v":"Mapped"}]
[null,null,null,null,null,{"$f":"XBRLMap(F33,F$75&\".\"&$U33&\".\"&$V33,$F$73,$F$74,CONFIGURATION!$B$10,\"BMA\",CONFIGURATION!$B$1,\"bscr\",CONFIGURATION!$B$12)","v":"Mapped"},null,{"$f":"XBRLMap(H33,H$75&\".\"&$U33&\".\"&$V33&\".\"&$H$76,$F$73,$F$74,CONFIGURATION!$B$10,\"BMA\",CONFIGURATION!$B$1,\"bscr\",CONFIGURATION!$B$12)","v":"Mapped"},null,{"$f":"XBRLMap(J33,H$75&\".\"&$U33&\".\"&$V33&\".\"&$J$76,$F$73,$F$74,CONFIGURATION!$B$10,\"BMA\",CONFIGURATION!$B$1,\"bscr\",CONFIGURATION!$B$12)","v":"Mapped"},null,{"$f":"XBRLMap(L33,H$75&\".\"&$U33&\".\"&$V33&\".\"&$L$76,$F$73,$F$74,CONFIGURATION!$B$10,\"BMA\",CONFIGURATION!$B$1,\"bscr\",CONFIGURATION!$B$12)","v":"Mapped"}]
[null,null,null,null,null,{"$f":"XBRLMap(F34,F$75&\".\"&$U34&\".\"&$V34,$F$73,$F$74,CONFIGURATION!$B$10,\"BMA\",CONFIGURATION!$B$1,\"bscr\",CONFIGURATION!$B$12)","v":"Mapped"},null,{"$f":"XBRLMap(H34,H$75&\".\"&$U34&\".\"&$V34&\".\"&$H$76,$F$73,$F$74,CONFIGURATION!$B$10,\"BMA\",CONFIGURATION!$B$1,\"bscr\",CONFIGURATION!$B$12)","v":"Mapped"},null,{"$f":"XBRLMap(J34,H$75&\".\"&$U34&\".\"&$V34&\".\"&$J$76,$F$73,$F$74,CONFIGURATION!$B$10,\"BMA\",CONFIGURATION!$B$1,\"bscr\",CONFIGURATION!$B$12)","v":"Mapped"},null,{"$f":"XBRLMap(L34,H$75&\".\"&$U34&\".\"&$V34&\".\"&$L$76,$F$73,$F$74,CONFIGURATION!$B$10,\"BMA\",CONFIGURATION!$B$1,\"bscr\",CONFIGURATION!$B$12)","v":"Mapped"}]
[null,null,null,null,null,{"$f":"XBRLMap(F35,F$75&\".\"&$U35&\".\"&$V35,$F$73,$F$74,CONFIGURATION!$B$10,\"BMA\",CONFIGURATION!$B$1,\"bscr\",CONFIGURATION!$B$12)","v":"Mapped"},null,{"$f":"XBRLMap(H35,H$75&\".\"&$U35&\".\"&$V35&\".\"&$H$76,$F$73,$F$74,CONFIGURATION!$B$10,\"BMA\",CONFIGURATION!$B$1,\"bscr\",CONFIGURATION!$B$12)","v":"Mapped"},null,{"$f":"XBRLMap(J35,H$75&\".\"&$U35&\".\"&$V35&\".\"&$J$76,$F$73,$F$74,CONFIGURATION!$B$10,\"BMA\",CONFIGURATION!$B$1,\"bscr\",CONFIGURATION!$B$12)","v":"Mapped"},null,{"$f":"XBRLMap(L35,H$75&\".\"&$U35&\".\"&$V35&\".\"&$L$76,$F$73,$F$74,CONFIGURATION!$B$10,\"BMA\",CONFIGURATION!$B$1,\"bscr\",CONFIGURATION!$B$12)","v":"Mapped"}]
[]
[null,null,null,null,null,{"$f":"XBRLMap(F37,F$75&\".\"&$U37&\".\"&$V37,$F$73,$F$74,CONFIGURATION!$B$10,\"BMA\",CONFIGURATION!$B$1,\"bscr\",CONFIGURATION!$B$12)","v":"Mapped"},null,{"$f":"XBRLMap(H37,H$75&\".\"&$U37&\".\"&$V37&\".\"&$H$76,$F$73,$F$74,CONFIGURATION!$B$10,\"BMA\",CONFIGURATION!$B$1,\"bscr\",CONFIGURATION!$B$12)","v":"Mapped"},null,{"$f":"XBRLMap(J37,H$75&\".\"&$U37&\".\"&$V37&\".\"&$J$76,$F$73,$F$74,CONFIGURATION!$B$10,\"BMA\",CONFIGURATION!$B$1,\"bscr\",CONFIGURATION!$B$12)","v":"Mapped"},null,{"$f":"XBRLMap(L37,H$75&\".\"&$U37&\".\"&$V37&\".\"&$L$76,$F$73,$F$74,CONFIGURATION!$B$10,\"BMA\",CONFIGURATION!$B$1,\"bscr\",CONFIGURATION!$B$12)","v":"Mapped"}]
[null,null,null,null,null,{"$f":"XBRLMap(F38,F$75&\".\"&$U38&\".\"&$V38,$F$73,$F$74,CONFIGURATION!$B$10,\"BMA\",CONFIGURATION!$B$1,\"bscr\",CONFIGURATION!$B$12)","v":"Mapped"},null,{"$f":"XBRLMap(H38,H$75&\".\"&$U38&\".\"&$V38&\".\"&$H$76,$F$73,$F$74,CONFIGURATION!$B$10,\"BMA\",CONFIGURATION!$B$1,\"bscr\",CONFIGURATION!$B$12)","v":"Mapped"},null,{"$f":"XBRLMap(J38,H$75&\".\"&$U38&\".\"&$V38&\".\"&$J$76,$F$73,$F$74,CONFIGURATION!$B$10,\"BMA\",CONFIGURATION!$B$1,\"bscr\",CONFIGURATION!$B$12)","v":"Mapped"},null,{"$f":"XBRLMap(L38,H$75&\".\"&$U38&\".\"&$V38&\".\"&$L$76,$F$73,$F$74,CONFIGURATION!$B$10,\"BMA\",CONFIGURATION!$B$1,\"bscr\",CONFIGURATION!$B$12)","v":"Mapped"}]
[null,null,null,null,null,{"$f":"XBRLMap(F39,F$75&\".\"&$U39&\".\"&$V39,$F$73,$F$74,CONFIGURATION!$B$10,\"BMA\",CONFIGURATION!$B$1,\"bscr\",CONFIGURATION!$B$12)","v":"Mapped"},null,{"$f":"XBRLMap(H39,H$75&\".\"&$U39&\".\"&$V39&\".\"&$H$76,$F$73,$F$74,CONFIGURATION!$B$10,\"BMA\",CONFIGURATION!$B$1,\"bscr\",CONFIGURATION!$B$12)","v":"Mapped"},null,{"$f":"XBRLMap(J39,H$75&\".\"&$U39&\".\"&$V39&\".\"&$J$76,$F$73,$F$74,CONFIGURATION!$B$10,\"BMA\",CONFIGURATION!$B$1,\"bscr\",CONFIGURATION!$B$12)","v":"Mapped"},null,{"$f":"XBRLMap(L39,H$75&\".\"&$U39&\".\"&$V39&\".\"&$L$76,$F$73,$F$74,CONFIGURATION!$B$10,\"BMA\",CONFIGURATION!$B$1,\"bscr\",CONFIGURATION!$B$12)","v":"Mapped"}]
[null,null,null,null,null,{"$f":"XBRLMap(F40,F$75&\".\"&$U40&\".\"&$V40,$F$73,$F$74,CONFIGURATION!$B$10,\"BMA\",CONFIGURATION!$B$1,\"bscr\",CONFIGURATION!$B$12)","v":"Mapped"},null,{"$f":"XBRLMap(H40,H$75&\".\"&$U40&\".\"&$V40&\".\"&$H$76,$F$73,$F$74,CONFIGURATION!$B$10,\"BMA\",CONFIGURATION!$B$1,\"bscr\",CONFIGURATION!$B$12)","v":"Mapped"},null,{"$f":"XBRLMap(J40,H$75&\".\"&$U40&\".\"&$V40&\".\"&$J$76,$F$73,$F$74,CONFIGURATION!$B$10,\"BMA\",CONFIGURATION!$B$1,\"bscr\",CONFIGURATION!$B$12)","v":"Mapped"},null,{"$f":"XBRLMap(L40,H$75&\".\"&$U40&\".\"&$V40&\".\"&$L$76,$F$73,$F$74,CONFIGURATION!$B$10,\"BMA\",CONFIGURATION!$B$1,\"bscr\",CONFIGURATION!$B$12)","v":"Mapped"}]
[null,null,null,null,null,{"$f":"XBRLMap(F41,F$75&\".\"&$U41&\".\"&$V41,$F$73,$F$74,CONFIGURATION!$B$10,\"BMA\",CONFIGURATION!$B$1,\"bscr\",CONFIGURATION!$B$12)","v":"Mapped"},null,{"$f":"XBRLMap(H41,H$75&\".\"&$U41&\".\"&$V41&\".\"&$H$76,$F$73,$F$74,CONFIGURATION!$B$10,\"BMA\",CONFIGURATION!$B$1,\"bscr\",CONFIGURATION!$B$12)","v":"Mapped"},null,{"$f":"XBRLMap(J41,H$75&\".\"&$U41&\".\"&$V41&\".\"&$J$76,$F$73,$F$74,CONFIGURATION!$B$10,\"BMA\",CONFIGURATION!$B$1,\"bscr\",CONFIGURATION!$B$12)","v":"Mapped"},null,{"$f":"XBRLMap(L41,H$75&\".\"&$U41&\".\"&$V41&\".\"&$L$76,$F$73,$F$74,CONFIGURATION!$B$10,\"BMA\",CONFIGURATION!$B$1,\"bscr\",CONFIGURATION!$B$12)","v":"Mapped"}]
[null,null,null,null,null,{"$f":"XBRLMap(F42,F$75&\".\"&$U42&\".\"&$V42,$F$73,$F$74,CONFIGURATION!$B$10,\"BMA\",CONFIGURATION!$B$1,\"bscr\",CONFIGURATION!$B$12)","v":"Mapped"},null,{"$f":"XBRLMap(H42,H$75&\".\"&$U42&\".\"&$V42&\".\"&$H$76,$F$73,$F$74,CONFIGURATION!$B$10,\"BMA\",CONFIGURATION!$B$1,\"bscr\",CONFIGURATION!$B$12)","v":"Mapped"},null,{"$f":"XBRLMap(J42,H$75&\".\"&$U42&\".\"&$V42&\".\"&$J$76,$F$73,$F$74,CONFIGURATION!$B$10,\"BMA\",CONFIGURATION!$B$1,\"bscr\",CONFIGURATION!$B$12)","v":"Mapped"},null,{"$f":"XBRLMap(L42,H$75&\".\"&$U42&\".\"&$V42&\".\"&$L$76,$F$73,$F$74,CONFIGURATION!$B$10,\"BMA\",CONFIGURATION!$B$1,\"bscr\",CONFIGURATION!$B$12)","v":"Mapped"}]
[null,null,null,null,null,{"$f":"XBRLMap(F43,F$75&\".\"&$U43&\".\"&$V43,$F$73,$F$74,CONFIGURATION!$B$10,\"BMA\",CONFIGURATION!$B$1,\"bscr\",CONFIGURATION!$B$12)","v":"Mapped"},null,{"$f":"XBRLMap(H43,H$75&\".\"&$U43&\".\"&$V43&\".\"&$H$76,$F$73,$F$74,CONFIGURATION!$B$10,\"BMA\",CONFIGURATION!$B$1,\"bscr\",CONFIGURATION!$B$12)","v":"Mapped"},null,{"$f":"XBRLMap(J43,H$75&\".\"&$U43&\".\"&$V43&\".\"&$J$76,$F$73,$F$74,CONFIGURATION!$B$10,\"BMA\",CONFIGURATION!$B$1,\"bscr\",CONFIGURATION!$B$12)","v":"Mapped"},null,{"$f":"XBRLMap(L43,H$75&\".\"&$U43&\".\"&$V43&\".\"&$L$76,$F$73,$F$74,CONFIGURATION!$B$10,\"BMA\",CONFIGURATION!$B$1,\"bscr\",CONFIGURATION!$B$12)","v":"Mapped"}]
[null,null,null,null,null,{"$f":"XBRLMap(F44,F$75&\".\"&$U44&\".\"&$V44,$F$73,$F$74,CONFIGURATION!$B$10,\"BMA\",CONFIGURATION!$B$1,\"bscr\",CONFIGURATION!$B$12)","v":"Mapped"},null,{"$f":"XBRLMap(H44,H$75&\".\"&$U44&\".\"&$V44&\".\"&$H$76,$F$73,$F$74,CONFIGURATION!$B$10,\"BMA\",CONFIGURATION!$B$1,\"bscr\",CONFIGURATION!$B$12)","v":"Mapped"},null,{"$f":"XBRLMap(J44,H$75&\".\"&$U44&\".\"&$V44&\".\"&$J$76,$F$73,$F$74,CONFIGURATION!$B$10,\"BMA\",CONFIGURATION!$B$1,\"bscr\",CONFIGURATION!$B$12)","v":"Mapped"},null,{"$f":"XBRLMap(L44,H$75&\".\"&$U44&\".\"&$V44&\".\"&$L$76,$F$73,$F$74,CONFIGURATION!$B$10,\"BMA\",CONFIGURATION!$B$1,\"bscr\",CONFIGURATION!$B$12)","v":"Mapped"}]
[null,null,null,null,null,{"$f":"XBRLMap(F45,F$75&\".\"&$U45&\".\"&$V45,$F$73,$F$74,CONFIGURATION!$B$10,\"BMA\",CONFIGURATION!$B$1,\"bscr\",CONFIGURATION!$B$12)","v":"Mapped"},null,{"$f":"XBRLMap(H45,H$75&\".\"&$U45&\".\"&$V45&\".\"&$H$76,$F$73,$F$74,CONFIGURATION!$B$10,\"BMA\",CONFIGURATION!$B$1,\"bscr\",CONFIGURATION!$B$12)","v":"Mapped"},null,{"$f":"XBRLMap(J45,H$75&\".\"&$U45&\".\"&$V45&\".\"&$J$76,$F$73,$F$74,CONFIGURATION!$B$10,\"BMA\",CONFIGURATION!$B$1,\"bscr\",CONFIGURATION!$B$12)","v":"Mapped"},null,{"$f":"XBRLMap(L45,H$75&\".\"&$U45&\".\"&$V45&\".\"&$L$76,$F$73,$F$74,CONFIGURATION!$B$10,\"BMA\",CONFIGURATION!$B$1,\"bscr\",CONFIGURATION!$B$12)","v":"Mapped"}]
[null,null,null,null,null,{"$f":"XBRLMap(F46,F$75&\".\"&$U46&\".\"&$V46,$F$73,$F$74,CONFIGURATION!$B$10,\"BMA\",CONFIGURATION!$B$1,\"bscr\",CONFIGURATION!$B$12)","v":"Mapped"},null,{"$f":"XBRLMap(H46,H$75&\".\"&$U46&\".\"&$V46&\".\"&$H$76,$F$73,$F$74,CONFIGURATION!$B$10,\"BMA\",CONFIGURATION!$B$1,\"bscr\",CONFIGURATION!$B$12)","v":"Mapped"},null,{"$f":"XBRLMap(J46,H$75&\".\"&$U46&\".\"&$V46&\".\"&$J$76,$F$73,$F$74,CONFIGURATION!$B$10,\"BMA\",CONFIGURATION!$B$1,\"bscr\",CONFIGURATION!$B$12)","v":"Mapped"},null,{"$f":"XBRLMap(L46,H$75&\".\"&$U46&\".\"&$V46&\".\"&$L$76,$F$73,$F$74,CONFIGURATION!$B$10,\"BMA\",CONFIGURATION!$B$1,\"bscr\",CONFIGURATION!$B$12)","v":"Mapped"}]
[]
[null,null,null,null,null,{"$f":"XBRLMap(F48,F$75&\".\"&$U48&\".\"&$V48,$F$73,$F$74,CONFIGURATION!$B$10,\"BMA\",CONFIGURATION!$B$1,\"bscr\",CONFIGURATION!$B$12)","v":"Mapped"},null,{"$f":"XBRLMap(H48,H$75&\".\"&$U48&\".\"&$V48&\".\"&$H$76,$F$73,$F$74,CONFIGURATION!$B$10,\"BMA\",CONFIGURATION!$B$1,\"bscr\",CONFIGURATION!$B$12)","v":"Mapped"},null,{"$f":"XBRLMap(J48,H$75&\".\"&$U48&\".\"&$V48&\".\"&$J$76,$F$73,$F$74,CONFIGURATION!$B$10,\"BMA\",CONFIGURATION!$B$1,\"bscr\",CONFIGURATION!$B$12)","v":"Mapped"},null,{"$f":"XBRLMap(L48,H$75&\".\"&$U48&\".\"&$V48&\".\"&$L$76,$F$73,$F$74,CONFIGURATION!$B$10,\"BMA\",CONFIGURATION!$B$1,\"bscr\",CONFIGURATION!$B$12)","v":"Mapped"}]
[]
[]
[]
[]
[]
[null,null,null,null,null,"bma_longterm_StatementComponentAxis1_bma_ScheduleOfLongTermVariableAnnuityGuaranteesBermudaStatutoryReserve",null,"bma_longterm_StatementComponentAxis1_bma_ScheduleOfLongTermVariableAnnuityGuaranteesAccountValue4Volatility0Percent100Percent",null,null,null,"bma_longterm_StatementComponentAxis1_bma_ScheduleOfLongTermVariableAnnuityGuaranteesAccountValue4VolatilityGT100Percent",null,"bma_longterm_StatementComponentAxis1_bma_ScheduleOfLongTermVariableAnnuityGuaranteesNetAmountAtRisk13"]

{"sheet":"Schedule VIIIA","index":52,"n_rows":226,"n_cols":27,"rows_kept":226,"cut":false,"hidden":false,"merged":[[91,3,91,18],[70,3,71,3],[70,5,71,5],[70,7,71,7],[70,9,71,9],[70,11,71,11],[85,2,85,5],[61,3,62,3],[61,5,62,5],[61,7,62,7],[61,9,62,9],[61,11,62,11],[50,3,51,3],[50,5,51,5],[50,7,51,7],[50,9,51,9],[50,11,51,11],[18,14,18,18],[27,3,28,3],[27,5,28,5],[27,7,28,7],[27,9,28,9],[27,11,28,11],[3,11,4,18],[6,1,6,12],[6,13,6,19],[8,3,9,3],[8,5,9,5],[8,7,9,7],[8,9,9,9],[8,11,9,11],[8,16,9,16],[8,18,9,18]]}
[null,null,"SCHEDULE OF LONG-TERM VARIABLE ANNUITY - INTERNAL CAPITAL MODEL",null,null,null,null,null,null,null,null,null,null,null,null,null,null,null,{"$f":"HYPERLINK(\"#'Index'!A1\",\"Return to Index\")","v":"Return to Index"}]
[null,null,{"$f":"'Insurer Information'!C7","v":"Enter Company Name"},null,null,null,null,null,null,null,null,null,null,null,null,null,null,null,"SCHEDULE VIII(a)"]
[null,null,{"$f":"TEXT('Insurer Information'!C3,\"mmmm dd, yyyy\")","v":"December 31, 2019"}]
[null,null,{"$f":"'Form 4EBS'!C4","v":"United States Dollars"},null,null,null,null,null,null,null,null,{"$f":"HYPERLINK(\"#'Attachments'!A55\",\"Details of Internal Variable Annuity Guarantees (IE Actuarial Memorandum and Distribution of Cumulative Losses) are to be included in the attachments section 6.\")","v":"Details of Internal Variable Annuity Guarantees (IE Actuarial Memorandum and Distribution of Cumulative Losses) are to be included in the attachments section 6."}]
[]
[null,null,null,null,null,null,null,null,null,null,null,null,null,{"$f":"YEAR('Insurer Information'!C3)","v":2019}]
[null,"SCHEDULE OF LONG TERM VARIABLE ANNUITY GUARANTEES",null,null,null,null,null,null,null,null,null,null,null,"TOTAL CAPITAL REQUIREMENT BASED ON INTERNAL MODEL RESULTS"]
[null,null,null,"(1)",null,"(2)",null,"(3)",null,"(4)",null,"(5)",null,null,null,null,"(6)",null,"(7)"]
[null,null,null,"Bermuda Statutory Reserve",null,"Policy Count",null,"Account Value",null,"Guarantee Value",null,"Net Amount At Risk",null,null,null,null,"Without Hedging",null,"With Hedging"]
[]
[null,null,"Policy Type",{"$f":"CONFIGURATION!$D$12","v":" ('000s)"},null,null,null,{"$f":"CONFIGURATION!$D$12","v":" ('000s)"},null,{"$f":"CONFIGURATION!$D$12","v":" ('000s)"},null,{"$f":"CONFIGURATION!$D$12","v":" ('000s)"}]
[null,null,"Guaranteed Minimum Death Benefit: Return of Premium",{"$f":"Import!E4916","v":0},null,{"$f":"Import!E4930","v":0},null,{"$f":"Import!E4944","v":0},null,{"$f":"Import!E4958","v":0},null,{"$f":"Import!E4972","v":0},null,"1.","Internal-Model Based Capital Requirement",null,{"$f":"Import!E4896","v":0},null,{"$f":"Import!E4904","v":0},null,null,null,"brrt_VariableAnnuitiesGuaranteesAxis_brrt_GuaranteedMinimumDeathBenefitReturnOfPremiumMember",null,null,null,"brrt_InternalModelBasedCapitalRequirement"]
[null,null,"Guaranteed Minimum Death Benefit: Ratchet ",{"$f":"Import!E4917","v":0},null,{"$f":"Import!E4931","v":0},null,{"$f":"Import!E4945","v":0},null,{"$f":"Import!E4959","v":0},null,{"$f":"Import!E4973","v":0},null,null,null,null,null,null,null,null,null,null,"brrt_VariableAnnuitiesGuaranteesAxis_brrt_GuaranteedMinimumDeathBenefitRatchetMember"]
[null,null,"Guaranteed Minimum Death Benefit: Roll-up",{"$f":"Import!E4918","v":0},null,{"$f":"Import!E4932","v":0},null,{"$f":"Import!E4946","v":0},null,{"$f":"Import!E4960","v":0},null,{"$f":"Import!E4974","v":0},null,"2.","Prescribed Stress Tests:",null,null,null,null,null,null,null,"brrt_VariableAnnuitiesGuaranteesAxis_brrt_GuaranteedMinimumDeathBenefitRollUpMember"]
[null,null,"Guaranteed Minimum Death Benefit: With Compound Guarantees",{"$f":"Import!E4919","v":0},null,{"$f":"Import!E4933","v":0},null,{"$f":"Import!E4947","v":0},null,{"$f":"Import!E4961","v":0},null,{"$f":"Import!E4975","v":0},null,null,"a. Equity - Immediate shock of 20% to separate account funds",null,{"$f":"Import!E4897","v":0},null,{"$f":"Import!E4905","v":0},null,null,null,"brrt_VariableAnnuitiesGuaranteesAxis_brrt_GuaranteedMinimumDeathBenefitWithCompoundGuaranteesMember",null,null,null,"brrt_StressTestEquityImmediateShockOf20PercentToSeparateAccountFunds"]
[null,null,"Guaranteed Minimum Income Benefit: Return of Premium",{"$f":"Import!E4920","v":0},null,{"$f":"Import!E4934","v":0},null,{"$f":"Import!E4948","v":0},null,{"$f":"Import!E4962","v":0},null,{"$f":"Import!E4976","v":0},null,null,"   b. Absolute immediate increase of 10% in implied volatility",null,{"$f":"Import!E4898","v":0},null,{"$f":"Import!E4906","v":0},null,null,null,"brrt_VariableAnnuitiesGuaranteesAxis_brrt_GuaranteedMinimumIncomeBenefitReturnOfPremiumMember",null,null,null,"brrt_StressTestAbsoluteImmediateIncreaseOf10PercentInImpliedVolatility"]
[null,null,"Guaranteed Minimum Income Benefit: Ratchet",{"$f":"Import!E4921","v":0},null,{"$f":"Import!E4935","v":0},null,{"$f":"Import!E4949","v":0},null,{"$f":"Import!E4963","v":0},null,{"$f":"Import!E4977","v":0},null,null,"   c. Interest rates - Immediate parallel shift up/down by 100 bps",null,{"$f":"Import!E4899","v":0},null,{"$f":"Import!E4907","v":0},null,null,null,"brrt_VariableAnnuitiesGuaranteesAxis_brrt_GuaranteedMinimumIncomeBenefitRatchetMember",null,null,null,"brrt_StressTestInterestRatesImmediateParallelShiftUpDownBy100Bps"]
[null,null,"Guaranteed Minimum Income Benefit: Roll-up",{"$f":"Import!E4922","v":0},null,{"$f":"Import!E4936","v":0},null,{"$f":"Import!E4950","v":0},null,{"$f":"Import!E4964","v":0},null,{"$f":"Import!E4978","v":0},null,null,null,null,null,null,null,null,null,null,"brrt_VariableAnnuitiesGuaranteesAxis_brrt_GuaranteedMinimumIncomeBenefitRollUpMember"]
[null,null,"Guaranteed Minimum Income Benefit: With Compound Guarantees",{"$f":"Import!E4923","v":0},null,{"$f":"Import!E4937","v":0},null,{"$f":"Import!E4951","v":0},null,{"$f":"Import!E4965","v":0},null,{"$f":"Import!E4979","v":0},null,"3.","Stresses to Actuarial Assumptions for Mortality and Policyholder behaviour:",null,null,null,null,null,null,null,"brrt_VariableAnnuitiesGuaranteesAxis_brrt_GuaranteedMinimumIncomeBenefitWithCompoundGuaranteesMember"]
[null,null,"Enhanced Earnings Benefit",{"$f":"Import!E4924","v":0},null,{"$f":"Import!E4938","v":0},null,{"$f":"Import!E4952","v":0},null,{"$f":"Import!E4966","v":0},null,{"$f":"Import!E4980","v":0},null,"a.",{"$f":"Import!E4912","v":0},null,{"$f":"Import!E4900","v":0},null,{"$f":"Import!E4908","v":0},null,null,null,"brrt_VariableAnnuitiesGuaranteesAxis_brrt_GuaranteedEnhancedEarningsBenefitMember"]
[null,null,"Guaranteed Minimum Withdrawal Benefit",{"$f":"Import!E4925","v":0},null,{"$f":"Import!E4939","v":0},null,{"$f":"Import!E4953","v":0},null,{"$f":"Import!E4967","v":0},null,{"$f":"Import!E4981","v":0},null,"b.",{"$f":"Import!E4913","v":0},null,{"$f":"Import!E4901","v":0},null,{"$f":"Import!E4909","v":0},null,null,null,"brrt_VariableAnnuitiesGuaranteesAxis_brrt_GuaranteedMinimumWithdrawalBenefitMember"]
[null,null,"Guaranteed Minimum Withdrawal for Life",{"$f":"Import!E4926","v":0},null,{"$f":"Import!E4940","v":0},null,{"$f":"Import!E4954","v":0},null,{"$f":"Import!E4968","v":0},null,{"$f":"Import!E4982","v":0},null,"c.",{"$f":"Import!E4914","v":0},null,{"$f":"Import!E4902","v":0},null,{"$f":"Import!E4910","v":0},null,null,null,"brrt_VariableAnnuitiesGuaranteesAxis_brrt_GuaranteedMinimumWithdrawalForLifeMember"]
[null,null,"Guaranteed Minimum Accumulation Benefit: ",{"$f":"Import!E4927","v":0},null,{"$f":"Import!E4941","v":0},null,{"$f":"Import!E4955","v":0},null,{"$f":"Import!E4969","v":0},null,{"$f":"Import!E4983","v":0},null,"d.",{"$f":"Import!E4915","v":0},null,{"$f":"Import!E4903","v":0},null,{"$f":"Import!E4911","v":0},null,null,null,"brrt_VariableAnnuitiesGuaranteesAxis_brrt_GuaranteedMinimumAccumulationMember"]
[null,null,"Guaranteed Minimum Accumulation Benefit: With Compound Guarantees",{"$f":"Import!E4928","v":0},null,{"$f":"Import!E4942","v":0},null,{"$f":"Import!E4956","v":0},null,{"$f":"Import!E4970","v":0},null,{"$f":"Import!E4984","v":0},null,null,null,null,null,null,null,null,null,null,"brrt_VariableAnnuitiesGuaranteesAxis_brrt_GuaranteedMinimumAccumulationWithCompoundGuaranteesMember"]
[null,null,"Total (Variable Annuities)",{"$f":"SUM(D12:D24)","v":0},null,{"$f":"SUM(F12:F24)","v":0},null,{"$f":"SUM(H12:H24)","v":0},null,{"$f":"SUM(J12:J24)","v":0},null,{"$f":"SUM(L12:L24)","v":0},null,null,null,null,null,null,null,null,null,null,"brrt_VariableAnnuitiesGuaranteesAxis_brrt_TotalMember"]
[]
[]
[null,null,null,"Bermuda Statutory Reserve",null,"Policy Count",null,"Account Value",null,"Guarantee Value",null,"Net Amount At Risk"]
[]
[null,null,"Years Since Issue",{"$f":"CONFIGURATION!$D$12","v":" ('000s)"},null,null,null,{"$f":"CONFIGURATION!$D$12","v":" ('000s)"},null,{"$f":"CONFIGURATION!$D$12","v":" ('000s)"},null,{"$f":"CONFIGURATION!$D$12","v":" ('000s)"}]
[null,null,0,{"$f":"Import!E4986","v":0},null,{"$f":"Import!E5004","v":0},null,{"$f":"Import!E5022","v":0},null,{"$f":"Import!E5040","v":0},null,{"$f":"Import!E5058","v":0},null,null,null,null,null,null,null,null,null,null,"brrt_YearsSinceIssueAxis_brrt_ZeroYearMember"]
[null,null,1,{"$f":"Import!E4987","v":0},null,{"$f":"Import!E5005","v":0},null,{"$f":"Import!E5023","v":0},null,{"$f":"Import!E5041","v":0},null,{"$f":"Import!E5059","v":0},null,null,null,null,null,null,null,null,null,null,"brrt_YearsSinceIssueAxis_brrt_OneYearMember"]
[null,null,2,{"$f":"Import!E4988","v":0},null,{"$f":"Import!E5006","v":0},null,{"$f":"Import!E5024","v":0},null,{"$f":"Import!E5042","v":0},null,{"$f":"Import!E5060","v":0},null,null,null,null,null,null,null,null,null,null,"brrt_YearsSinceIssueAxis_brrt_TwoYearsMember"]
[null,null,3,{"$f":"Import!E4989","v":0},null,{"$f":"Import!E5007","v":0},null,{"$f":"Import!E5025","v":0},null,{"$f":"Import!E5043","v":0},null,{"$f":"Import!E5061","v":0},null,null,null,null,null,null,null,null,null,null,"brrt_YearsSinceIssueAxis_brrt_ThreeYearsMember"]
[null,null,4,{"$f":"Import!E4990","v":0},null,{"$f":"Import!E5008","v":0},null,{"$f":"Import!E5026","v":0},null,{"$f":"Import!E5044","v":0},null,{"$f":"Import!E5062","v":0},null,null,null,null,null,null,null,null,null,null,"brrt_YearsSinceIssueAxis_brrt_FourYearsMember"]
[null,null,5,{"$f":"Import!E4991","v":0},null,{"$f":"Import!E5009","v":0},null,{"$f":"Import!E5027","v":0},null,{"$f":"Import!E5045","v":0},null,{"$f":"Import!E5063","v":0},null,null,null,null,null,null,null,null,null,null,"brrt_YearsSinceIssueAxis_brrt_FiveYearsMember"]
[null,null,6,{"$f":"Import!E4992","v":0},null,{"$f":"Import!E5010","v":0},null,{"$f":"Import!E5028","v":0},null,{"$f":"Import!E5046","v":0},null,{"$f":"Import!E5064","v":0},null,null,null,null,null,null,null,null,null,null,"brrt_YearsSinceIssueAxis_brrt_SixYearsMember"]
[" ",null,7,{"$f":"Import!E4993","v":0},null,{"$f":"Import!E5011","v":0},null,{"$f":"Import!E5029","v":0},null,{"$f":"Import!E5047","v":0},null,{"$f":"Import!E5065","v":0},null,null,null,null,null,null,null,null,null,null,"brrt_YearsSinceIssueAxis_brrt_SevenYearsMember"]
[null,null,8,{"$f":"Import!E4994","v":0},null,{"$f":"Import!E5012","v":0},null,{"$f":"Import!E5030","v":0},null,{"$f":"Import!E5048","v":0},null,{"$f":"Import!E5066","v":0},null,null,null,null,null,null,null,null,null,null,"brrt_YearsSinceIssueAxis_brrt_EightYearsMember"]
[null,null,9,{"$f":"Import!E4995","v":0},null,{"$f":"Import!E5013","v":0},null,{"$f":"Import!E5031","v":0},null,{"$f":"Import!E5049","v":0},null,{"$f":"Import!E5067","v":0},null,null,null,null,null,null,null,null,null,null,"brrt_YearsSinceIssueAxis_brrt_NineYearsMember"]
[null,null,10,{"$f":"Import!E4996","v":0},null,{"$f":"Import!E5014","v":0},null,{"$f":"Import!E5032","v":0},null,{"$f":"Import!E5050","v":0},null,{"$f":"Import!E5068","v":0},null,null,null,null,null,null,null,null,null,null,"brrt_YearsSinceIssueAxis_brrt_TenYearsMember"]
[null,null,11,{"$f":"Import!E4997","v":0},null,{"$f":"Import!E5015","v":0},null,{"$f":"Import!E5033","v":0},null,{"$f":"Import!E5051","v":0},null,{"$f":"Import!E5069","v":0},null,null,null,null,null,null,null,null,null,null,"brrt_YearsSinceIssueAxis_brrt_ElevenYearsMember"]
[null,null,12,{"$f":"Import!E4998","v":0},null,{"$f":"Import!E5016","v":0},null,{"$f":"Import!E5034","v":0},null,{"$f":"Import!E5052","v":0},null,{"$f":"Import!E5070","v":0},null,null,null,null,null,null,null,null,null,null,"brrt_YearsSinceIssueAxis_brrt_TwelveYearsMember"]
[null,null,13,{"$f":"Import!E4999","v":0},null,{"$f":"Import!E5017","v":0},null,{"$f":"Import!E5035","v":0},null,{"$f":"Import!E5053","v":0},null,{"$f":"Import!E5071","v":0},null,null,null,null,null,null,null,null,null,null,"brrt_YearsSinceIssueAxis_brrt_ThirteenYearsMember"]
[null,null,14,{"$f":"Import!E5000","v":0},null,{"$f":"Import!E5018","v":0},null,{"$f":"Import!E5036","v":0},null,{"$f":"Import!E5054","v":0},null,{"$f":"Import!E5072","v":0},null,null,null,null,null,null,null,null,null,null,"brrt_YearsSinceIssueAxis_brrt_FourteenYearsMember"]
[null,null,15,{"$f":"Import!E5001","v":0},null,{"$f":"Import!E5019","v":0},null,{"$f":"Import!E5037","v":0},null,{"$f":"Import!E5055","v":0},null,{"$f":"Import!E5073","v":0},null,null,null,null,null,null,null,null,null,null,"brrt_YearsSinceIssueAxis_brrt_FifteenYearsMember"]
[null,null,">15",{"$f":"Import!E5002","v":0},null,{"$f":"Import!E5020","v":0},null,{"$f":"Import!E5038","v":0},null,{"$f":"Import!E5056","v":0},null,{"$f":"Import!E5074","v":0},null,null,null,null,null,null,null,null,null,null,"brrt_YearsSinceIssueAxis_brrt_MoreThanFifteenYearsMember"]
[null,null,null,{"$f":"SUM(D31:D47)","v":0},null,{"$f":"SUM(F31:F47)","v":0},null,{"$f":"SUM(H31:H47)","v":0},null,{"$f":"SUM(J31:J47)","v":0},null,{"$f":"SUM(L31:L47)","v":0},null,null,null,null,null,null,null,null,null,null,"brrt_YearsSinceIssueAxis_brrt_TotalMember"]
[]
[]
[null,null,null,"Bermuda Statutory Reserve",null,"Policy Count",null,"Account Value",null,"Guarantee Value",null,"Net Amount At Risk"]
[]
[null,null,"In/Out of the Money",{"$f":"CONFIGURATION!$D$12","v":" ('000s)"},null,null,null,{"$f":"CONFIGURATION!$D$12","v":" ('000s)"},null,{"$f":"CONFIGURATION!$D$12","v":" ('000s)"},null,{"$f":"CONFIGURATION!$D$12","v":" ('000s)"}]
[null,null,"<-15%",{"$f":"Import!E5076","v":0},null,{"$f":"Import!E5082","v":0},null,{"$f":"Import!E5088","v":0},null,{"$f":"Import!E5094","v":0},null,{"$f":"Import!E5100","v":0},null,null,null,null,null,null,null,null,null,null,"brrt_InOutOfMoneyAxis_brrt_LessThanMinus15PercentMember"]
[null,null,"(-15%) - (-5%)",{"$f":"Import!E5077","v":0},null,{"$f":"Import!E5083","v":0},null,{"$f":"Import!E5089","v":0},null,{"$f":"Import!E5095","v":0},null,{"$f":"Import!E5101","v":0},null,null,null,null,null,null,null,null,null,null,"brrt_InOutOfMoneyAxis_brrt_MoreThanMinus15LessThanMinus5PercentMember"]
[null,null,"(-5%) - (+5%)",{"$f":"Import!E5078","v":0},null,{"$f":"Import!E5084","v":0},null,{"$f":"Import!E5090","v":0},null,{"$f":"Import!E5096","v":0},null,{"$f":"Import!E5102","v":0},null,null,null,null,null,null,null,null,null,null,"brrt_InOutOfMoneyAxis_brrt_MoreThanMinus5LessThanPlus5PercentMember"]
[null,null,"(+5%) - (+15%)",{"$f":"Import!E5079","v":0},null,{"$f":"Import!E5085","v":0},null,{"$f":"Import!E5091","v":0},null,{"$f":"Import!E5097","v":0},null,{"$f":"Import!E5103","v":0},null,null,null,null,null,null,null,null,null,null,"brrt_InOutOfMoneyAxis_brrt_MoreThanPlus5LessThanPlus15PercentMember"]
[null,null,">+15%",{"$f":"Import!E5080","v":0},null,{"$f":"Import!E5086","v":0},null,{"$f":"Import!E5092","v":0},null,{"$f":"Import!E5098","v":0},null,{"$f":"Import!E5104","v":0},null,null,null,null,null,null,null,null,null,null,"brrt_InOutOfMoneyAxis_brrt_MoreThanPlus15PercentMember"]
[null,null,null,{"$f":"SUM(D54:D58)","v":0},null,{"$f":"SUM(F54:F58)","v":0},null,{"$f":"SUM(H54:H58)","v":0},null,{"$f":"SUM(J54:J58)","v":0},null,{"$f":"SUM(L54:L58)","v":0},null,null,null,null,null,null,null,null,null,null,"brrt_InOutOfMoneyAxis_brrt_TotalMember"]
[]
[]
[null,null,null,"Bermuda Statutory Reserve",null,"Policy Count",null,"Account Value",null,"Guarantee Value",null,"Net Amount At Risk"]
[]
[null,null,"Fund Volatility",{"$f":"CONFIGURATION!$D$12","v":" ('000s)"},null,null,null,{"$f":"CONFIGURATION!$D$12","v":" ('000s)"},null,{"$f":"CONFIGURATION!$D$12","v":" ('000s)"},null,{"$f":"CONFIGURATION!$D$12","v":" ('000s)"}]
[null,null," 0-10% ",{"$f":"Import!E5106","v":0},null,{"$f":"Import!E5110","v":0},null,{"$f":"Import!E5114","v":0},null,{"$f":"Import!E5118","v":0},null,{"$f":"Import!E5122","v":0},null,null,null,null,null,null,null,null,null,null,"brrt_VolatilityAxis_brrt_LessEqual10PercentMember"]
[null,null," 10-20% ",{"$f":"Import!E5107","v":0},null,{"$f":"Import!E5111","v":0},null,{"$f":"Import!E5115","v":0},null,{"$f":"Import!E5119","v":0},null,{"$f":"Import!E5123","v":0},null,null,null,null,null,null,null,null,null,null,"brrt_VolatilityAxis_brrt_MoreThan10LessEqual20PercentMember"]
[null,null," 20%+ ",{"$f":"Import!E5108","v":0},null,{"$f":"Import!E5112","v":0},null,{"$f":"Import!E5116","v":0},null,{"$f":"Import!E5120","v":0},null,{"$f":"Import!E5124","v":0},null,null,null,null,null,null,null,null,null,null,"brrt_VolatilityAxis_brrt_MoreThan20PercentMember"]
[null,null,null,{"$f":"SUM(D65:D67)","v":0},null,{"$f":"SUM(F65:F67)","v":0},null,{"$f":"SUM(H65:H67)","v":0},null,{"$f":"SUM(J65:J67)","v":0},null,{"$f":"SUM(L65:L67)","v":0},null,null,null,null,null,null,null,null,null,null,"brrt_VolatilityAxis_brrt_TotalMember"]
[]
[]
[null,null,null,"Bermuda Statutory Reserve",null,"Policy Count",null,"Account Value",null,"Guarantee Value",null,"Net Amount At Risk"]
[]
[null,null,"Years to Next Maturity (GMAB Only)",{"$f":"CONFIGURATION!$D$12","v":" ('000s)"},null,null,null,{"$f":"CONFIGURATION!$D$12","v":" ('000s)"},null,{"$f":"CONFIGURATION!$D$12","v":" ('000s)"},null,{"$f":"CONFIGURATION!$D$12","v":" ('000s)"}]
[null,null,0,{"$f":"Import!E5126","v":0},null,{"$f":"Import!E5138","v":0},null,{"$f":"Import!E5150","v":0},null,{"$f":"Import!E5162","v":0},null,{"$f":"Import!E5174","v":0},null,null,null,null,null,null,null,null,null,null,"brrt_YearsToNextMaturityAxis_brrt_ZeroYearMember"]
[null,null,1,{"$f":"Import!E5127","v":0},null,{"$f":"Import!E5139","v":0},null,{"$f":"Import!E5151","v":0},null,{"$f":"Import!E5163","v":0},null,{"$f":"Import!E5175","v":0},null,null,null,null,null,null,null,null,null,null,"brrt_YearsToNextMaturityAxis_brrt_OneYearMember"]
[null,null,2,{"$f":"Import!E5128","v":0},null,{"$f":"Import!E5140","v":0},null,{"$f":"Import!E5152","v":0},null,{"$f":"Import!E5164","v":0},null,{"$f":"Import!E5176","v":0},null,null,null,null,null,null,null,null,null,null,"brrt_YearsToNextMaturityAxis_brrt_TwoYearsMember"]
[null,null,3,{"$f":"Import!E5129","v":0},null,{"$f":"Import!E5141","v":0},null,{"$f":"Import!E5153","v":0},null,{"$f":"Import!E5165","v":0},null,{"$f":"Import!E5177","v":0},null,null,null,null,null,null,null,null,null,null,"brrt_YearsToNextMaturityAxis_brrt_ThreeYearsMember"]
[null,null,4,{"$f":"Import!E5130","v":0},null,{"$f":"Import!E5142","v":0},null,{"$f":"Import!E5154","v":0},null,{"$f":"Import!E5166","v":0},null,{"$f":"Import!E5178","v":0},null,null,null,null,null,null,null,null,null,null,"brrt_YearsToNextMaturityAxis_brrt_FourYearsMember"]
[null,null,5,{"$f":"Import!E5131","v":0},null,{"$f":"Import!E5143","v":0},null,{"$f":"Import!E5155","v":0},null,{"$f":"Import!E5167","v":0},null,{"$f":"Import!E5179","v":0},null,null,null,null,null,null,null,null,null,null,"brrt_YearsToNextMaturityAxis_brrt_FiveYearsMember"]
[null,null,6,{"$f":"Import!E5132","v":0},null,{"$f":"Import!E5144","v":0},null,{"$f":"Import!E5156","v":0},null,{"$f":"Import!E5168","v":0},null,{"$f":"Import!E5180","v":0},null,null,null,null,null,null,null,null,null,null,"brrt_YearsToNextMaturityAxis_brrt_SixYearsMember"]
[" ",null,7,{"$f":"Import!E5133","v":0},null,{"$f":"Import!E5145","v":0},null,{"$f":"Import!E5157","v":0},null,{"$f":"Import!E5169","v":0},null,{"$f":"Import!E5181","v":0},null,null,null,null,null,null,null,null,null,null,"brrt_YearsToNextMaturityAxis_brrt_SevenYearsMember"]
[null,null,8,{"$f":"Import!E5134","v":0},null,{"$f":"Import!E5146","v":0},null,{"$f":"Import!E5158","v":0},null,{"$f":"Import!E5170","v":0},null,{"$f":"Import!E5182","v":0},null,null,null,null,null,null,null,null,null,null,"brrt_YearsToNextMaturityAxis_brrt_EightYearsMember"]
[null,null,9,{"$f":"Import!E5135","v":0},null,{"$f":"Import!E5147","v":0},null,{"$f":"Import!E5159","v":0},null,{"$f":"Import!E5171","v":0},null,{"$f":"Import!E5183","v":0},null,null,null,null,null,null,null,null,null,null,"brrt_YearsToNextMaturityAxis_brrt_NineYearsMember"]
[null,null,">10",{"$f":"Import!E5136","v":0},null,{"$f":"Import!E5148","v":0},null,{"$f":"Import!E5160","v":0},null,{"$f":"Import!E5172","v":0},null,{"$f":"Import!E5184","v":0},null,null,null,null,null,null,null,null,null,null,"brrt_YearsToNextMaturityAxis_brrt_MoreThanTenYearsMember"]
[null,null,null,{"$f":"SUM(D74:D84)","v":0},null,{"$f":"SUM(F74:F84)","v":0},null,{"$f":"SUM(H74:H84)","v":0},null,{"$f":"SUM(J74:J84)","v":0},null,{"$f":"SUM(L74:L84)","v":0},null,null,null,null,null,null,null,null,null,null,"brrt_YearsToNextMaturityAxis_brrt_TotalMember"]
[]
[]
[null,"Notes"]
[null,"1.  Factors should be applied to Net Amount at Risk (NAR) defined as:"]
[null,null,"GMAB","Total claim payable if all contracts mature immediately"]
[null,null,"GMDB","Total claim amount payable upon immediate death of all policyholders"]
[null,null,"GMIB","Total claim payable upon full and immediate annuitization of all policies using an 80% factor applied to the GV (the 80% represents the ratio between current market annuitization factors and the guaranteed annuitization factors)"]
[null,null,"GMWB","Total claim payable if 100% of the guaranteed withdrawal benefit base in excess of the current account value is withdrawn immediately"]
[null,null,"GEEB","Total guaranteed enhanced payments upon immediate death of all policyholders"]
[]
[null,"2. Where ratchets, resets and roll-ups exist, please use the roll-up category."]
[]
[null,"3.  NAR is net of reinsurance."]
[]
[null,"4.  The proportion used for the account value under reinsurance is the proportion used for NAR."]
[]
[null,"5.  Volatility is defined as the annual volatility of the fund.  In the case where there is no, or limited, history of the fund, use the volatility of the benchmark."]
[]
[]
[]
[null,null,{"$f":"IF(C3=\"\",\"\",TEXT(DATE(YEAR(C3+1)-1,MONTH(C3+1),DAY(C3+1)),\"mm/dd/yyyy\"))","v":"01/01/2019"}]
[null,null,{"$f":"IF(C3=\"\",\"\",TEXT(C3,\"mm/dd/yyyy\"))","v":"12/31/2019"}]
[null,null,null,"brrt_BermudaStatutoryReserve",null,"brrt_PolicyCount",null,"brrt_VariableAnnuityAccountValue",null,"brrt_VariableAnnuityGuaranteedValue",null,"brrt_NetAmountAtRisk",null,null,null,null,"brrt_HedgingStatusAxis_brrt_WithoutHedgingMember",null,"brrt_HedgingStatusAxis_brrt_WithHedgingMember"]
[null,null,null,{"$f":"XBRLMap(D12,D$108&\".\"&W12,$C$106,$C$107,CONFIGURATION!$B$10,\"BMA\",CONFIGURATION!$B$1,\"bscr\",CONFIGURATION!$B$12)","v":"Mapped"},null,{"$f":"XBRLMap(F12,F$108&\".\"&W12,$C$106,$C$107,CONFIGURATION!$B$10,\"BMA\",CONFIGURATION!$B$1,\"bscr\",CONFIGURATION!$B$12)","v":"Mapped"},null,{"$f":"XBRLMap(H12,H$108&\".\"&W12,$C$106,$C$107,CONFIGURATION!$B$10,\"BMA\",CONFIGURATION!$B$1,\"bscr\",CONFIGURATION!$B$12)","v":"Mapped"},null,{"$f":"XBRLMap(J12,J$108&\".\"&W12,$C$106,$C$107,CONFIGURATION!$B$10,\"BMA\",CONFIGURATION!$B$1,\"bscr\",CONFIGURATION!$B$12)","v":"Mapped"},null,{"$f":"XBRLMap(L12,L$108&\".\"&W12,$C$106,$C$107,CONFIGURATION!$B$10,\"BMA\",CONFIGURATION!$B$1,\"bscr\",CONFIGURATION!$B$12)","v":"Mapped"},null,null,"brrt_StressesToActuarialAssumptionsForMortalityPolicyholderBehaviour"]
[null,null,null,{"$f":"XBRLMap(D13,D$108&\".\"&W13,$C$106,$C$107,CONFIGURATION!$B$10,\"BMA\",CONFIGURATION!$B$1,\"bscr\",CONFIGURATION!$B$12)","v":"Mapped"},null,{"$f":"XBRLMap(F13,F$108&\".\"&W13,$C$106,$C$107,CONFIGURATION!$B$10,\"BMA\",CONFIGURATION!$B$1,\"bscr\",CONFIGURATION!$B$12)","v":"Mapped"},null,{"$f":"XBRLMap(H13,H$108&\".\"&W13,$C$106,$C$107,CONFIGURATION!$B$10,\"BMA\",CONFIGURATION!$B$1,\"bscr\",CONFIGURATION!$B$12)","v":"Mapped"},null,{"$f":"XBRLMap(J13,J$108&\".\"&W13,$C$106,$C$107,CONFIGURATION!$B$10,\"BMA\",CONFIGURATION!$B$1,\"bscr\",CONFIGURATION!$B$12)","v":"Mapped"},null,{"$f":"XBRLMap(L13,L$108&\".\"&W13,$C$106,$C$107,CONFIGURATION!$B$10,\"BMA\",CONFIGURATION!$B$1,\"bscr\",CONFIGURATION!$B$12)","v":"Mapped"},null,null,"brrt_DescriptionOfActuarialStressTest",null,"brrt_ValueWithoutHedging",null,"brrt_ValueWithHedging"]
[null,null,null,{"$f":"XBRLMap(D14,D$108&\".\"&W14,$C$106,$C$107,CONFIGURATION!$B$10,\"BMA\",CONFIGURATION!$B$1,\"bscr\",CONFIGURATION!$B$12)","v":"Mapped"},null,{"$f":"XBRLMap(F14,F$108&\".\"&W14,$C$106,$C$107,CONFIGURATION!$B$10,\"BMA\",CONFIGURATION!$B$1,\"bscr\",CONFIGURATION!$B$12)","v":"Mapped"},null,{"$f":"XBRLMap(H14,H$108&\".\"&W14,$C$106,$C$107,CONFIGURATION!$B$10,\"BMA\",CONFIGURATION!$B$1,\"bscr\",CONFIGURATION!$B$12)","v":"Mapped"},null,{"$f":"XBRLMap(J14,J$108&\".\"&W14,$C$106,$C$107,CONFIGURATION!$B$10,\"BMA\",CONFIGURATION!$B$1,\"bscr\",CONFIGURATION!$B$12)","v":"Mapped"},null,{"$f":"XBRLMap(L14,L$108&\".\"&W14,$C$106,$C$107,CONFIGURATION!$B$10,\"BMA\",CONFIGURATION!$B$1,\"bscr\",CONFIGURATION!$B$12)","v":"Mapped"},null,null,null,null,{"$f":"XBRLMap(Q12,AA$12&\".\"&Q108,$C$106,$C$107,CONFIGURATION!$B$10,\"BMA\",CONFIGURATION!$B$1,\"bscr\",CONFIGURATION!$B$12)","v":"Mapped"},null,{"$f":"XBRLMap(S12,AA$12&\".\"&S108,$C$106,$C$107,CONFIGURATION!$B$10,\"BMA\",CONFIGURATION!$B$1,\"bscr\",CONFIGURATION!$B$12)","v":"Mapped"}]
[null,null,null,{"$f":"XBRLMap(D15,D$108&\".\"&W15,$C$106,$C$107,CONFIGURATION!$B$10,\"BMA\",CONFIGURATION!$B$1,\"bscr\",CONFIGURATION!$B$12)","v":"Mapped"},null,{"$f":"XBRLMap(F15,F$108&\".\"&W15,$C$106,$C$107,CONFIGURATION!$B$10,\"BMA\",CONFIGURATION!$B$1,\"bscr\",CONFIGURATION!$B$12)","v":"Mapped"},null,{"$f":"XBRLMap(H15,H$108&\".\"&W15,$C$106,$C$107,CONFIGURATION!$B$10,\"BMA\",CONFIGURATION!$B$1,\"bscr\",CONFIGURATION!$B$12)","v":"Mapped"},null,{"$f":"XBRLMap(J15,J$108&\".\"&W15,$C$106,$C$107,CONFIGURATION!$B$10,\"BMA\",CONFIGURATION!$B$1,\"bscr\",CONFIGURATION!$B$12)","v":"Mapped"},null,{"$f":"XBRLMap(L15,L$108&\".\"&W15,$C$106,$C$107,CONFIGURATION!$B$10,\"BMA\",CONFIGURATION!$B$1,\"bscr\",CONFIGURATION!$B$12)","v":"Mapped"}]
[null,null,null,{"$f":"XBRLMap(D16,D$108&\".\"&W16,$C$106,$C$107,CONFIGURATION!$B$10,\"BMA\",CONFIGURATION!$B$1,\"bscr\",CONFIGURATION!$B$12)","v":"Mapped"},null,{"$f":"XBRLMap(F16,F$108&\".\"&W16,$C$106,$C$107,CONFIGURATION!$B$10,\"BMA\",CONFIGURATION!$B$1,\"bscr\",CONFIGURATION!$B$12)","v":"Mapped"},null,{"$f":"XBRLMap(H16,H$108&\".\"&W16,$C$106,$C$107,CONFIGURATION!$B$10,\"BMA\",CONFIGURATION!$B$1,\"bscr\",CONFIGURATION!$B$12)","v":"Mapped"},null,{"$f":"XBRLMap(J16,J$108&\".\"&W16,$C$106,$C$107,CONFIGURATION!$B$10,\"BMA\",CONFIGURATION!$B$1,\"bscr\",CONFIGURATION!$B$12)","v":"Mapped"},null,{"$f":"XBRLMap(L16,L$108&\".\"&W16,$C$106,$C$107,CONFIGURATION!$B$10,\"BMA\",CONFIGURATION!$B$1,\"bscr\",CONFIGURATION!$B$12)","v":"Mapped"}]
[null,null,null,{"$f":"XBRLMap(D17,D$108&\".\"&W17,$C$106,$C$107,CONFIGURATION!$B$10,\"BMA\",CONFIGURATION!$B$1,\"bscr\",CONFIGURATION!$B$12)","v":"Mapped"},null,{"$f":"XBRLMap(F17,F$108&\".\"&W17,$C$106,$C$107,CONFIGURATION!$B$10,\"BMA\",CONFIGURATION!$B$1,\"bscr\",CONFIGURATION!$B$12)","v":"Mapped"},null,{"$f":"XBRLMap(H17,H$108&\".\"&W17,$C$106,$C$107,CONFIGURATION!$B$10,\"BMA\",CONFIGURATION!$B$1,\"bscr\",CONFIGURATION!$B$12)","v":"Mapped"},null,{"$f":"XBRLMap(J17,J$108&\".\"&W17,$C$106,$C$107,CONFIGURATION!$B$10,\"BMA\",CONFIGURATION!$B$1,\"bscr\",CONFIGURATION!$B$12)","v":"Mapped"},null,{"$f":"XBRLMap(L17,L$108&\".\"&W17,$C$106,$C$107,CONFIGURATION!$B$10,\"BMA\",CONFIGURATION!$B$1,\"bscr\",CONFIGURATION!$B$12)","v":"Mapped"},null,null,null,null,{"$f":"XBRLMap(Q15,AA$15&\".\"&Q108,$C$106,$C$107,CONFIGURATION!$B$10,\"BMA\",CONFIGURATION!$B$1,\"bscr\",CONFIGURATION!$B$12)","v":"Mapped"},null,{"$f":"XBRLMap(S15,AA$15&\".\"&S108,$C$106,$C$107,CONFIGURATION!$B$10,\"BMA\",CONFIGURATION!$B$1,\"bscr\",CONFIGURATION!$B$12)","v":"Mapped"}]
[null,null,null,{"$f":"XBRLMap(D18,D$108&\".\"&W18,$C$106,$C$107,CONFIGURATION!$B$10,\"BMA\",CONFIGURATION!$B$1,\"bscr\",CONFIGURATION!$B$12)","v":"Mapped"},null,{"$f":"XBRLMap(F18,F$108&\".\"&W18,$C$106,$C$107,CONFIGURATION!$B$10,\"BMA\",CONFIGURATION!$B$1,\"bscr\",CONFIGURATION!$B$12)","v":"Mapped"},null,{"$f":"XBRLMap(H18,H$108&\".\"&W18,$C$106,$C$107,CONFIGURATION!$B$10,\"BMA\",CONFIGURATION!$B$1,\"bscr\",CONFIGURATION!$B$12)","v":"Mapped"},null,{"$f":"XBRLMap(J18,J$108&\".\"&W18,$C$106,$C$107,CONFIGURATION!$B$10,\"BMA\",CONFIGURATION!$B$1,\"bscr\",CONFIGURATION!$B$12)","v":"Mapped"},null,{"$f":"XBRLMap(L18,L$108&\".\"&W18,$C$106,$C$107,CONFIGURATION!$B$10,\"BMA\",CONFIGURATION!$B$1,\"bscr\",CONFIGURATION!$B$12)","v":"Mapped"},null,null,null,null,{"$f":"XBRLMap(Q16,AA$16&\".\"&Q108,$C$106,$C$107,CONFIGURATION!$B$10,\"BMA\",CONFIGURATION!$B$1,\"bscr\",CONFIGURATION!$B$12)","v":"Mapped"},null,{"$f":"XBRLMap(S16,AA$16&\".\"&S108,$C$106,$C$107,CONFIGURATION!$B$10,\"BMA\",CONFIGURATION!$B$1,\"bscr\",CONFIGURATION!$B$12)","v":"Mapped"}]
[null,null,null,{"$f":"XBRLMap(D19,D$108&\".\"&W19,$C$106,$C$107,CONFIGURATION!$B$10,\"BMA\",CONFIGURATION!$B$1,\"bscr\",CONFIGURATION!$B$12)","v":"Mapped"},null,{"$f":"XBRLMap(F19,F$108&\".\"&W19,$C$106,$C$107,CONFIGURATION!$B$10,\"BMA\",CONFIGURATION!$B$1,\"bscr\",CONFIGURATION!$B$12)","v":"Mapped"},null,{"$f":"XBRLMap(H19,H$108&\".\"&W19,$C$106,$C$107,CONFIGURATION!$B$10,\"BMA\",CONFIGURATION!$B$1,\"bscr\",CONFIGURATION!$B$12)","v":"Mapped"},null,{"$f":"XBRLMap(J19,J$108&\".\"&W19,$C$106,$C$107,CONFIGURATION!$B$10,\"BMA\",CONFIGURATION!$B$1,\"bscr\",CONFIGURATION!$B$12)","v":"Mapped"},null,{"$f":"XBRLMap(L19,L$108&\".\"&W19,$C$106,$C$107,CONFIGURATION!$B$10,\"BMA\",CONFIGURATION!$B$1,\"bscr\",CONFIGURATION!$B$12)","v":"Mapped"},null,null,null,null,{"$f":"XBRLMap(Q17,AA$17&\".\"&Q108,$C$106,$C$107,CONFIGURATION!$B$10,\"BMA\",CONFIGURATION!$B$1,\"bscr\",CONFIGURATION!$B$12)","v":"Mapped"},null,{"$f":"XBRLMap(S17,AA$17&\".\"&S108,$C$106,$C$107,CONFIGURATION!$B$10,\"BMA\",CONFIGURATION!$B$1,\"bscr\",CONFIGURATION!$B$12)","v":"Mapped"}]
[null,null,null,{"$f":"XBRLMap(D20,D$108&\".\"&W20,$C$106,$C$107,CONFIGURATION!$B$10,\"BMA\",CONFIGURATION!$B$1,\"bscr\",CONFIGURATION!$B$12)","v":"Mapped"},null,{"$f":"XBRLMap(F20,F$108&\".\"&W20,$C$106,$C$107,CONFIGURATION!$B$10,\"BMA\",CONFIGURATION!$B$1,\"bscr\",CONFIGURATION!$B$12)","v":"Mapped"},null,{"$f":"XBRLMap(H20,H$108&\".\"&W20,$C$106,$C$107,CONFIGURATION!$B$10,\"BMA\",CONFIGURATION!$B$1,\"bscr\",CONFIGURATION!$B$12)","v":"Mapped"},null,{"$f":"XBRLMap(J20,J$108&\".\"&W20,$C$106,$C$107,CONFIGURATION!$B$10,\"BMA\",CONFIGURATION!$B$1,\"bscr\",CONFIGURATION!$B$12)","v":"Mapped"},null,{"$f":"XBRLMap(L20,L$108&\".\"&W20,$C$106,$C$107,CONFIGURATION!$B$10,\"BMA\",CONFIGURATION!$B$1,\"bscr\",CONFIGURATION!$B$12)","v":"Mapped"}]
[null,null,null,{"$f":"XBRLMap(D21,D$108&\".\"&W21,$C$106,$C$107,CONFIGURATION!$B$10,\"BMA\",CONFIGURATION!$B$1,\"bscr\",CONFIGURATION!$B$12)","v":"Mapped"},null,{"$f":"XBRLMap(F21,F$108&\".\"&W21,$C$106,$C$107,CONFIGURATION!$B$10,\"BMA\",CONFIGURATION!$B$1,\"bscr\",CONFIGURATION!$B$12)","v":"Mapped"},null,{"$f":"XBRLMap(H21,H$108&\".\"&W21,$C$106,$C$107,CONFIGURATION!$B$10,\"BMA\",CONFIGURATION!$B$1,\"bscr\",CONFIGURATION!$B$12)","v":"Mapped"},null,{"$f":"XBRLMap(J21,J$108&\".\"&W21,$C$106,$C$107,CONFIGURATION!$B$10,\"BMA\",CONFIGURATION!$B$1,\"bscr\",CONFIGURATION!$B$12)","v":"Mapped"},null,{"$f":"XBRLMap(L21,L$108&\".\"&W21,$C$106,$C$107,CONFIGURATION!$B$10,\"BMA\",CONFIGURATION!$B$1,\"bscr\",CONFIGURATION!$B$12)","v":"Mapped"}]
[null,null,null,{"$f":"XBRLMap(D22,D$108&\".\"&W22,$C$106,$C$107,CONFIGURATION!$B$10,\"BMA\",CONFIGURATION!$B$1,\"bscr\",CONFIGURATION!$B$12)","v":"Mapped"},null,{"$f":"XBRLMap(F22,F$108&\".\"&W22,$C$106,$C$107,CONFIGURATION!$B$10,\"BMA\",CONFIGURATION!$B$1,\"bscr\",CONFIGURATION!$B$12)","v":"Mapped"},null,{"$f":"XBRLMap(H22,H$108&\".\"&W22,$C$106,$C$107,CONFIGURATION!$B$10,\"BMA\",CONFIGURATION!$B$1,\"bscr\",CONFIGURATION!$B$12)","v":"Mapped"},null,{"$f":"XBRLMap(J22,J$108&\".\"&W22,$C$106,$C$107,CONFIGURATION!$B$10,\"BMA\",CONFIGURATION!$B$1,\"bscr\",CONFIGURATION!$B$12)","v":"Mapped"},null,{"$f":"XBRLMap(L22,L$108&\".\"&W22,$C$106,$C$107,CONFIGURATION!$B$10,\"BMA\",CONFIGURATION!$B$1,\"bscr\",CONFIGURATION!$B$12)","v":"Mapped"}]
[null,null,null,{"$f":"XBRLMap(D23,D$108&\".\"&W23,$C$106,$C$107,CONFIGURATION!$B$10,\"BMA\",CONFIGURATION!$B$1,\"bscr\",CONFIGURATION!$B$12)","v":"Mapped"},null,{"$f":"XBRLMap(F23,F$108&\".\"&W23,$C$106,$C$107,CONFIGURATION!$B$10,\"BMA\",CONFIGURATION!$B$1,\"bscr\",CONFIGURATION!$B$12)","v":"Mapped"},null,{"$f":"XBRLMap(H23,H$108&\".\"&W23,$C$106,$C$107,CONFIGURATION!$B$10,\"BMA\",CONFIGURATION!$B$1,\"bscr\",CONFIGURATION!$B$12)","v":"Mapped"},null,{"$f":"XBRLMap(J23,J$108&\".\"&W23,$C$106,$C$107,CONFIGURATION!$B$10,\"BMA\",CONFIGURATION!$B$1,\"bscr\",CONFIGURATION!$B$12)","v":"Mapped"},null,{"$f":"XBRLMap(L23,L$108&\".\"&W23,$C$106,$C$107,CONFIGURATION!$B$10,\"BMA\",CONFIGURATION!$B$1,\"bscr\",CONFIGURATION!$B$12)","v":"Mapped"},null,null,null,null,null,null,{"$f":"IF(OR(O20<>\"\",Q20<>\"\",S20<>\"\"),XBRLMapTuple($O$109,C$106,C$107,\"BMA\",CONFIGURATION!$B$1,\"bscr\",\"\",CONFIGURATION!$B$12,$O$110,O20,$Q$110,Q20,$S$110,S20),\"emptyTuple\")","v":"Mapped"}]
[null,null,null,{"$f":"XBRLMap(D24,D$108&\".\"&W24,$C$106,$C$107,CONFIGURATION!$B$10,\"BMA\",CONFIGURATION!$B$1,\"bscr\",CONFIGURATION!$B$12)","v":"Mapped"},null,{"$f":"XBRLMap(F24,F$108&\".\"&W24,$C$106,$C$107,CONFIGURATION!$B$10,\"BMA\",CONFIGURATION!$B$1,\"bscr\",CONFIGURATION!$B$12)","v":"Mapped"},null,{"$f":"XBRLMap(H24,H$108&\".\"&W24,$C$106,$C$107,CONFIGURATION!$B$10,\"BMA\",CONFIGURATION!$B$1,\"bscr\",CONFIGURATION!$B$12)","v":"Mapped"},null,{"$f":"XBRLMap(J24,J$108&\".\"&W24,$C$106,$C$107,CONFIGURATION!$B$10,\"BMA\",CONFIGURATION!$B$1,\"bscr\",CONFIGURATION!$B$12)","v":"Mapped"},null,{"$f":"XBRLMap(L24,L$108&\".\"&W24,$C$106,$C$107,CONFIGURATION!$B$10,\"BMA\",CONFIGURATION!$B$1,\"bscr\",CONFIGURATION!$B$12)","v":"Mapped"},null,null,null,null,null,null,{"$f":"IF(OR(O21<>\"\",Q21<>\"\",S21<>\"\"),XBRLMapTuple($O$109,C$106,C$107,\"BMA\",CONFIGURATION!$B$1,\"bscr\",\"\",CONFIGURATION!$B$12,$O$110,O21,$Q$110,Q21,$S$110,S21),\"emptyTuple\")","v":"Mapped"}]
[null,null,null,{"$f":"XBRLMap(D25,D$108&\".\"&W25,$C$106,$C$107,CONFIGURATION!$B$10,\"BMA\",CONFIGURATION!$B$1,\"bscr\",CONFIGURATION!$B$12)","v":"Mapped"},null,{"$f":"XBRLMap(F25,F$108&\".\"&W25,$C$106,$C$107,CONFIGURATION!$B$10,\"BMA\",CONFIGURATION!$B$1,\"bscr\",CONFIGURATION!$B$12)","v":"Mapped"},null,{"$f":"XBRLMap(H25,H$108&\".\"&W25,$C$106,$C$107,CONFIGURATION!$B$10,\"BMA\",CONFIGURATION!$B$1,\"bscr\",CONFIGURATION!$B$12)","v":"Mapped"},null,{"$f":"XBRLMap(J25,J$108&\".\"&W25,$C$106,$C$107,CONFIGURATION!$B$10,\"BMA\",CONFIGURATION!$B$1,\"bscr\",CONFIGURATION!$B$12)","v":"Mapped"},null,{"$f":"XBRLMap(L25,L$108&\".\"&W25,$C$106,$C$107,CONFIGURATION!$B$10,\"BMA\",CONFIGURATION!$B$1,\"bscr\",CONFIGURATION!$B$12)","v":"Mapped"},null,null,null,null,null,null,{"$f":"IF(OR(O22<>\"\",Q22<>\"\",S22<>\"\"),XBRLMapTuple($O$109,C$106,C$107,\"BMA\",CONFIGURATION!$B$1,\"bscr\",\"\",CONFIGURATION!$B$12,$O$110,O22,$Q$110,Q22,$S$110,S22),\"emptyTuple\")","v":"Mapped"}]
[null,null,null,null,null,null,null,null,null,null,null,null,null,null,null,null,null,null,{"$f":"IF(OR(O23<>\"\",Q23<>\"\",S23<>\"\"),XBRLMapTuple($O$109,C$106,C$107,\"BMA\",CONFIGURATION!$B$1,\"bscr\",\"\",CONFIGURATION!$B$12,$O$110,O23,$Q$110,Q23,$S$110,S23),\"emptyTuple\")","v":"Mapped"}]
[null,null,null,{"$f":"XBRLMap(D31,D$108&\".\"&W31,$C$106,$C$107,CONFIGURATION!$B$10,\"BMA\",CONFIGURATION!$B$1,\"bscr\",CONFIGURATION!$B$12)","v":"Mapped"},null,{"$f":"XBRLMap(F31,F$108&\".\"&W31,$C$106,$C$107,CONFIGURATION!$B$10,\"BMA\",CONFIGURATION!$B$1,\"bscr\",CONFIGURATION!$B$12)","v":"Mapped"},null,{"$f":"XBRLMap(H31,H$108&\".\"&W31,$C$106,$C$107,CONFIGURATION!$B$10,\"BMA\",CONFIGURATION!$B$1,\"bscr\",CONFIGURATION!$B$12)","v":"Mapped"},null,{"$f":"XBRLMap(J31,J$108&\".\"&W31,$C$106,$C$107,CONFIGURATION!$B$10,\"BMA\",CONFIGURATION!$B$1,\"bscr\",CONFIGURATION!$B$12)","v":"Mapped"},null,{"$f":"XBRLMap(L31,L$108&\".\"&W31,$C$106,$C$107,CONFIGURATION!$B$10,\"BMA\",CONFIGURATION!$B$1,\"bscr\",CONFIGURATION!$B$12)","v":"Mapped"}]
[null,null,null,{"$f":"XBRLMap(D32,D$108&\".\"&W32,$C$106,$C$107,CONFIGURATION!$B$10,\"BMA\",CONFIGURATION!$B$1,\"bscr\",CONFIGURATION!$B$12)","v":"Mapped"},null,{"$f":"XBRLMap(F32,F$108&\".\"&W32,$C$106,$C$107,CONFIGURATION!$B$10,\"BMA\",CONFIGURATION!$B$1,\"bscr\",CONFIGURATION!$B$12)","v":"Mapped"},null,{"$f":"XBRLMap(H32,H$108&\".\"&W32,$C$106,$C$107,CONFIGURATION!$B$10,\"BMA\",CONFIGURATION!$B$1,\"bscr\",CONFIGURATION!$B$12)","v":"Mapped"},null,{"$f":"XBRLMap(J32,J$108&\".\"&W32,$C$106,$C$107,CONFIGURATION!$B$10,\"BMA\",CONFIGURATION!$B$1,\"bscr\",CONFIGURATION!$B$12)","v":"Mapped"},null,{"$f":"XBRLMap(L32,L$108&\".\"&W32,$C$106,$C$107,CONFIGURATION!$B$10,\"BMA\",CONFIGURATION!$B$1,\"bscr\",CONFIGURATION!$B$12)","v":"Mapped"}]
[null,null,null,{"$f":"XBRLMap(D33,D$108&\".\"&W33,$C$106,$C$107,CONFIGURATION!$B$10,\"BMA\",CONFIGURATION!$B$1,\"bscr\",CONFIGURATION!$B$12)","v":"Mapped"},null,{"$f":"XBRLMap(F33,F$108&\".\"&W33,$C$106,$C$107,CONFIGURATION!$B$10,\"BMA\",CONFIGURATION!$B$1,\"bscr\",CONFIGURATION!$B$12)","v":"Mapped"},null,{"$f":"XBRLMap(H33,H$108&\".\"&W33,$C$106,$C$107,CONFIGURATION!$B$10,\"BMA\",CONFIGURATION!$B$1,\"bscr\",CONFIGURATION!$B$12)","v":"Mapped"},null,{"$f":"XBRLMap(J33,J$108&\".\"&W33,$C$106,$C$107,CONFIGURATION!$B$10,\"BMA\",CONFIGURATION!$B$1,\"bscr\",CONFIGURATION!$B$12)","v":"Mapped"},null,{"$f":"XBRLMap(L33,L$108&\".\"&W33,$C$106,$C$107,CONFIGURATION!$B$10,\"BMA\",CONFIGURATION!$B$1,\"bscr\",CONFIGURATION!$B$12)","v":"Mapped"}]
[null,null,null,{"$f":"XBRLMap(D34,D$108&\".\"&W34,$C$106,$C$107,CONFIGURATION!$B$10,\"BMA\",CONFIGURATION!$B$1,\"bscr\",CONFIGURATION!$B$12)","v":"Mapped"},null,{"$f":"XBRLMap(F34,F$108&\".\"&W34,$C$106,$C$107,CONFIGURATION!$B$10,\"BMA\",CONFIGURATION!$B$1,\"bscr\",CONFIGURATION!$B$12)","v":"Mapped"},null,{"$f":"XBRLMap(H34,H$108&\".\"&W34,$C$106,$C$107,CONFIGURATION!$B$10,\"BMA\",CONFIGURATION!$B$1,\"bscr\",CONFIGURATION!$B$12)","v":"Mapped"},null,{"$f":"XBRLMap(J34,J$108&\".\"&W34,$C$106,$C$107,CONFIGURATION!$B$10,\"BMA\",CONFIGURATION!$B$1,\"bscr\",CONFIGURATION!$B$12)","v":"Mapped"},null,{"$f":"XBRLMap(L34,L$108&\".\"&W34,$C$106,$C$107,CONFIGURATION!$B$10,\"BMA\",CONFIGURATION!$B$1,\"bscr\",CONFIGURATION!$B$12)","v":"Mapped"}]
[null,null,null,{"$f":"XBRLMap(D35,D$108&\".\"&W35,$C$106,$C$107,CONFIGURATION!$B$10,\"BMA\",CONFIGURATION!$B$1,\"bscr\",CONFIGURATION!$B$12)","v":"Mapped"},null,{"$f":"XBRLMap(F35,F$108&\".\"&W35,$C$106,$C$107,CONFIGURATION!$B$10,\"BMA\",CONFIGURATION!$B$1,\"bscr\",CONFIGURATION!$B$12)","v":"Mapped"},null,{"$f":"XBRLMap(H35,H$108&\".\"&W35,$C$106,$C$107,CONFIGURATION!$B$10,\"BMA\",CONFIGURATION!$B$1,\"bscr\",CONFIGURATION!$B$12)","v":"Mapped"},null,{"$f":"XBRLMap(J35,J$108&\".\"&W35,$C$106,$C$107,CONFIGURATION!$B$10,\"BMA\",CONFIGURATION!$B$1,\"bscr\",CONFIGURATION!$B$12)","v":"Mapped"},null,{"$f":"XBRLMap(L35,L$108&\".\"&W35,$C$106,$C$107,CONFIGURATION!$B$10,\"BMA\",CONFIGURATION!$B$1,\"bscr\",CONFIGURATION!$B$12)","v":"Mapped"}]
[null,null,null,{"$f":"XBRLMap(D36,D$108&\".\"&W36,$C$106,$C$107,CONFIGURATION!$B$10,\"BMA\",CONFIGURATION!$B$1,\"bscr\",CONFIGURATION!$B$12)","v":"Mapped"},null,{"$f":"XBRLMap(F36,F$108&\".\"&W36,$C$106,$C$107,CONFIGURATION!$B$10,\"BMA\",CONFIGURATION!$B$1,\"bscr\",CONFIGURATION!$B$12)","v":"Mapped"},null,{"$f":"XBRLMap(H36,H$108&\".\"&W36,$C$106,$C$107,CONFIGURATION!$B$10,\"BMA\",CONFIGURATION!$B$1,\"bscr\",CONFIGURATION!$B$12)","v":"Mapped"},null,{"$f":"XBRLMap(J36,J$108&\".\"&W36,$C$106,$C$107,CONFIGURATION!$B$10,\"BMA\",CONFIGURATION!$B$1,\"bscr\",CONFIGURATION!$B$12)","v":"Mapped"},null,{"$f":"XBRLMap(L36,L$108&\".\"&W36,$C$106,$C$107,CONFIGURATION!$B$10,\"BMA\",CONFIGURATION!$B$1,\"bscr\",CONFIGURATION!$B$12)","v":"Mapped"}]
[null,null,null,{"$f":"XBRLMap(D37,D$108&\".\"&W37,$C$106,$C$107,CONFIGURATION!$B$10,\"BMA\",CONFIGURATION!$B$1,\"bscr\",CONFIGURATION!$B$12)","v":"Mapped"},null,{"$f":"XBRLMap(F37,F$108&\".\"&W37,$C$106,$C$107,CONFIGURATION!$B$10,\"BMA\",CONFIGURATION!$B$1,\"bscr\",CONFIGURATION!$B$12)","v":"Mapped"},null,{"$f":"XBRLMap(H37,H$108&\".\"&W37,$C$106,$C$107,CONFIGURATION!$B$10,\"BMA\",CONFIGURATION!$B$1,\"bscr\",CONFIGURATION!$B$12)","v":"Mapped"},null,{"$f":"XBRLMap(J37,J$108&\".\"&W37,$C$106,$C$107,CONFIGURATION!$B$10,\"BMA\",CONFIGURATION!$B$1,\"bscr\",CONFIGURATION!$B$12)","v":"Mapped"},null,{"$f":"XBRLMap(L37,L$108&\".\"&W37,$C$106,$C$107,CONFIGURATION!$B$10,\"BMA\",CONFIGURATION!$B$1,\"bscr\",CONFIGURATION!$B$12)","v":"Mapped"}]
[null,null,null,{"$f":"XBRLMap(D38,D$108&\".\"&W38,$C$106,$C$107,CONFIGURATION!$B$10,\"BMA\",CONFIGURATION!$B$1,\"bscr\",CONFIGURATION!$B$12)","v":"Mapped"},null,{"$f":"XBRLMap(F38,F$108&\".\"&W38,$C$106,$C$107,CONFIGURATION!$B$10,\"BMA\",CONFIGURATION!$B$1,\"bscr\",CONFIGURATION!$B$12)","v":"Mapped"},null,{"$f":"XBRLMap(H38,H$108&\".\"&W38,$C$106,$C$107,CONFIGURATION!$B$10,\"BMA\",CONFIGURATION!$B$1,\"bscr\",CONFIGURATION!$B$12)","v":"Mapped"},null,{"$f":"XBRLMap(J38,J$108&\".\"&W38,$C$106,$C$107,CONFIGURATION!$B$10,\"BMA\",CONFIGURATION!$B$1,\"bscr\",CONFIGURATION!$B$12)","v":"Mapped"},null,{"$f":"XBRLMap(L38,L$108&\".\"&W38,$C$106,$C$107,CONFIGURATION!$B$10,\"BMA\",CONFIGURATION!$B$1,\"bscr\",CONFIGURATION!$B$12)","v":"Mapped"}]
[null,null,null,{"$f":"XBRLMap(D39,D$108&\".\"&W39,$C$106,$C$107,CONFIGURATION!$B$10,\"BMA\",CONFIGURATION!$B$1,\"bscr\",CONFIGURATION!$B$12)","v":"Mapped"},null,{"$f":"XBRLMap(F39,F$108&\".\"&W39,$C$106,$C$107,CONFIGURATION!$B$10,\"BMA\",CONFIGURATION!$B$1,\"bscr\",CONFIGURATION!$B$12)","v":"Mapped"},null,{"$f":"XBRLMap(H39,H$108&\".\"&W39,$C$106,$C$107,CONFIGURATION!$B$10,\"BMA\",CONFIGURATION!$B$1,\"bscr\",CONFIGURATION!$B$12)","v":"Mapped"},null,{"$f":"XBRLMap(J39,J$108&\".\"&W39,$C$106,$C$107,CONFIGURATION!$B$10,\"BMA\",CONFIGURATION!$B$1,\"bscr\",CONFIGURATION!$B$12)","v":"Mapped"},null,{"$f":"XBRLMap(L39,L$108&\".\"&W39,$C$106,$C$107,CONFIGURATION!$B$10,\"BMA\",CONFIGURATION!$B$1,\"bscr\",CONFIGURATION!$B$12)","v":"Mapped"}]
[null,null,null,{"$f":"XBRLMap(D40,D$108&\".\"&W40,$C$106,$C$107,CONFIGURATION!$B$10,\"BMA\",CONFIGURATION!$B$1,\"bscr\",CONFIGURATION!$B$12)","v":"Mapped"},null,{"$f":"XBRLMap(F40,F$108&\".\"&W40,$C$106,$C$107,CONFIGURATION!$B$10,\"BMA\",CONFIGURATION!$B$1,\"bscr\",CONFIGURATION!$B$12)","v":"Mapped"},null,{"$f":"XBRLMap(H40,H$108&\".\"&W40,$C$106,$C$107,CONFIGURATION!$B$10,\"BMA\",CONFIGURATION!$B$1,\"bscr\",CONFIGURATION!$B$12)","v":"Mapped"},null,{"$f":"XBRLMap(J40,J$108&\".\"&W40,$C$106,$C$107,CONFIGURATION!$B$10,\"BMA\",CONFIGURATION!$B$1,\"bscr\",CONFIGURATION!$B$12)","v":"Mapped"},null,{"$f":"XBRLMap(L40,L$108&\".\"&W40,$C$106,$C$107,CONFIGURATION!$B$10,\"BMA\",CONFIGURATION!$B$1,\"bscr\",CONFIGURATION!$B$12)","v":"Mapped"}]
[null,null,null,{"$f":"XBRLMap(D41,D$108&\".\"&W41,$C$106,$C$107,CONFIGURATION!$B$10,\"BMA\",CONFIGURATION!$B$1,\"bscr\",CONFIGURATION!$B$12)","v":"Mapped"},null,{"$f":"XBRLMap(F41,F$108&\".\"&W41,$C$106,$C$107,CONFIGURATION!$B$10,\"BMA\",CONFIGURATION!$B$1,\"bscr\",CONFIGURATION!$B$12)","v":"Mapped"},null,{"$f":"XBRLMap(H41,H$108&\".\"&W41,$C$106,$C$107,CONFIGURATION!$B$10,\"BMA\",CONFIGURATION!$B$1,\"bscr\",CONFIGURATION!$B$12)","v":"Mapped"},null,{"$f":"XBRLMap(J41,J$108&\".\"&W41,$C$106,$C$107,CONFIGURATION!$B$10,\"BMA\",CONFIGURATION!$B$1,\"bscr\",CONFIGURATION!$B$12)","v":"Mapped"},null,{"$f":"XBRLMap(L41,L$108&\".\"&W41,$C$106,$C$107,CONFIGURATION!$B$10,\"BMA\",CONFIGURATION!$B$1,\"bscr\",CONFIGURATION!$B$12)","v":"Mapped"}]
[null,null,null,{"$f":"XBRLMap(D42,D$108&\".\"&W42,$C$106,$C$107,CONFIGURATION!$B$10,\"BMA\",CONFIGURATION!$B$1,\"bscr\",CONFIGURATION!$B$12)","v":"Mapped"},null,{"$f":"XBRLMap(F42,F$108&\".\"&W42,$C$106,$C$107,CONFIGURATION!$B$10,\"BMA\",CONFIGURATION!$B$1,\"bscr\",CONFIGURATION!$B$12)","v":"Mapped"},null,{"$f":"XBRLMap(H42,H$108&\".\"&W42,$C$106,$C$107,CONFIGURATION!$B$10,\"BMA\",CONFIGURATION!$B$1,\"bscr\",CONFIGURATION!$B$12)","v":"Mapped"},null,{"$f":"XBRLMap(J42,J$108&\".\"&W42,$C$106,$C$107,CONFIGURATION!$B$10,\"BMA\",CONFIGURATION!$B$1,\"bscr\",CONFIGURATION!$B$12)","v":"Mapped"},null,{"$f":"XBRLMap(L42,L$108&\".\"&W42,$C$106,$C$107,CONFIGURATION!$B$10,\"BMA\",CONFIGURATION!$B$1,\"bscr\",CONFIGURATION!$B$12)","v":"Mapped"}]
[null,null,null,{"$f":"XBRLMap(D43,D$108&\".\"&W43,$C$106,$C$107,CONFIGURATION!$B$10,\"BMA\",CONFIGURATION!$B$1,\"bscr\",CONFIGURATION!$B$12)","v":"Mapped"},null,{"$f":"XBRLMap(F43,F$108&\".\"&W43,$C$106,$C$107,CONFIGURATION!$B$10,\"BMA\",CONFIGURATION!$B$1,\"bscr\",CONFIGURATION!$B$12)","v":"Mapped"},null,{"$f":"XBRLMap(H43,H$108&\".\"&W43,$C$106,$C$107,CONFIGURATION!$B$10,\"BMA\",CONFIGURATION!$B$1,\"bscr\",CONFIGURATION!$B$12)","v":"Mapped"},null,{"$f":"XBRLMap(J43,J$108&\".\"&W43,$C$106,$C$107,CONFIGURATION!$B$10,\"BMA\",CONFIGURATION!$B$1,\"bscr\",CONFIGURATION!$B$12)","v":"Mapped"},null,{"$f":"XBRLMap(L43,L$108&\".\"&W43,$C$106,$C$107,CONFIGURATION!$B$10,\"BMA\",CONFIGURATION!$B$1,\"bscr\",CONFIGURATION!$B$12)","v":"Mapped"}]
[null,null,null,{"$f":"XBRLMap(D44,D$108&\".\"&W44,$C$106,$C$107,CONFIGURATION!$B$10,\"BMA\",CONFIGURATION!$B$1,\"bscr\",CONFIGURATION!$B$12)","v":"Mapped"},null,{"$f":"XBRLMap(F44,F$108&\".\"&W44,$C$106,$C$107,CONFIGURATION!$B$10,\"BMA\",CONFIGURATION!$B$1,\"bscr\",CONFIGURATION!$B$12)","v":"Mapped"},null,{"$f":"XBRLMap(H44,H$108&\".\"&W44,$C$106,$C$107,CONFIGURATION!$B$10,\"BMA\",CONFIGURATION!$B$1,\"bscr\",CONFIGURATION!$B$12)","v":"Mapped"},null,{"$f":"XBRLMap(J44,J$108&\".\"&W44,$C$106,$C$107,CONFIGURATION!$B$10,\"BMA\",CONFIGURATION!$B$1,\"bscr\",CONFIGURATION!$B$12)","v":"Mapped"},null,{"$f":"XBRLMap(L44,L$108&\".\"&W44,$C$106,$C$107,CONFIGURATION!$B$10,\"BMA\",CONFIGURATION!$B$1,\"bscr\",CONFIGURATION!$B$12)","v":"Mapped"}]
[null,null,null,{"$f":"XBRLMap(D45,D$108&\".\"&W45,$C$106,$C$107,CONFIGURATION!$B$10,\"BMA\",CONFIGURATION!$B$1,\"bscr\",CONFIGURATION!$B$12)","v":"Mapped"},null,{"$f":"XBRLMap(F45,F$108&\".\"&W45,$C$106,$C$107,CONFIGURATION!$B$10,\"BMA\",CONFIGURATION!$B$1,\"bscr\",CONFIGURATION!$B$12)","v":"Mapped"},null,{"$f":"XBRLMap(H45,H$108&\".\"&W45,$C$106,$C$107,CONFIGURATION!$B$10,\"BMA\",CONFIGURATION!$B$1,\"bscr\",CONFIGURATION!$B$12)","v":"Mapped"},null,{"$f":"XBRLMap(J45,J$108&\".\"&W45,$C$106,$C$107,CONFIGURATION!$B$10,\"BMA\",CONFIGURATION!$B$1,\"bscr\",CONFIGURATION!$B$12)","v":"Mapped"},null,{"$f":"XBRLMap(L45,L$108&\".\"&W45,$C$106,$C$107,CONFIGURATION!$B$10,\"BMA\",CONFIGURATION!$B$1,\"bscr\",CONFIGURATION!$B$12)","v":"Mapped"}]
[null,null,null,{"$f":"XBRLMap(D46,D$108&\".\"&W46,$C$106,$C$107,CONFIGURATION!$B$10,\"BMA\",CONFIGURATION!$B$1,\"bscr\",CONFIGURATION!$B$12)","v":"Mapped"},null,{"$f":"XBRLMap(F46,F$108&\".\"&W46,$C$106,$C$107,CONFIGURATION!$B$10,\"BMA\",CONFIGURATION!$B$1,\"bscr\",CONFIGURATION!$B$12)","v":"Mapped"},null,{"$f":"XBRLMap(H46,H$108&\".\"&W46,$C$106,$C$107,CONFIGURATION!$B$10,\"BMA\",CONFIGURATION!$B$1,\"bscr\",CONFIGURATION!$B$12)","v":"Mapped"},null,{"$f":"XBRLMap(J46,J$108&\".\"&W46,$C$106,$C$107,CONFIGURATION!$B$10,\"BMA\",CONFIGURATION!$B$1,\"bscr\",CONFIGURATION!$B$12)","v":"Mapped"},null,{"$f":"XBRLMap(L46,L$108&\".\"&W46,$C$106,$C$107,CONFIGURATION!$B$10,\"BMA\",CONFIGURATION!$B$1,\"bscr\",CONFIGURATION!$B$12)","v":"Mapped"}]
[null,null,null,{"$f":"XBRLMap(D47,D$108&\".\"&W47,$C$106,$C$107,CONFIGURATION!$B$10,\"BMA\",CONFIGURATION!$B$1,\"bscr\",CONFIGURATION!$B$12)","v":"Mapped"},null,{"$f":"XBRLMap(F47,F$108&\".\"&W47,$C$106,$C$107,CONFIGURATION!$B$10,\"BMA\",CONFIGURATION!$B$1,\"bscr\",CONFIGURATION!$B$12)","v":"Mapped"},null,{"$f":"XBRLMap(H47,H$108&\".\"&W47,$C$106,$C$107,CONFIGURATION!$B$10,\"BMA\",CONFIGURATION!$B$1,\"bscr\",CONFIGURATION!$B$12)","v":"Mapped"},null,{"$f":"XBRLMap(J47,J$108&\".\"&W47,$C$106,$C$107,CONFIGURATION!$B$10,\"BMA\",CONFIGURATION!$B$1,\"bscr\",CONFIGURATION!$B$12)","v":"Mapped"},null,{"$f":"XBRLMap(L47,L$108&\".\"&W47,$C$106,$C$107,CONFIGURATION!$B$10,\"BMA\",CONFIGURATION!$B$1,\"bscr\",CONFIGURATION!$B$12)","v":"Mapped"}]
[null,null,null,{"$f":"XBRLMap(D48,D$108&\".\"&W48,$C$106,$C$107,CONFIGURATION!$B$10,\"BMA\",CONFIGURATION!$B$1,\"bscr\",CONFIGURATION!$B$12)","v":"Mapped"},null,{"$f":"XBRLMap(F48,F$108&\".\"&W48,$C$106,$C$107,CONFIGURATION!$B$10,\"BMA\",CONFIGURATION!$B$1,\"bscr\",CONFIGURATION!$B$12)","v":"Mapped"},null,{"$f":"XBRLMap(H48,H$108&\".\"&W48,$C$106,$C$107,CONFIGURATION!$B$10,\"BMA\",CONFIGURATION!$B$1,\"bscr\",CONFIGURATION!$B$12)","v":"Mapped"},null,{"$f":"XBRLMap(J48,J$108&\".\"&W48,$C$106,$C$107,CONFIGURATION!$B$10,\"BMA\",CONFIGURATION!$B$1,\"bscr\",CONFIGURATION!$B$12)","v":"Mapped"},null,{"$f":"XBRLMap(L48,L$108&\".\"&W48,$C$106,$C$107,CONFIGURATION!$B$10,\"BMA\",CONFIGURATION!$B$1,\"bscr\",CONFIGURATION!$B$12)","v":"Mapped"}]
[]
[]
[null,null,null,{"$f":"XBRLMap(D54,D$108&\".\"&W54,$C$106,$C$107,CONFIGURATION!$B$10,\"BMA\",CONFIGURATION!$B$1,\"bscr\",CONFIGURATION!$B$12)","v":"Mapped"},null,{"$f":"XBRLMap(F54,F$108&\".\"&W54,$C$106,$C$107,CONFIGURATION!$B$10,\"BMA\",CONFIGURATION!$B$1,\"bscr\",CONFIGURATION!$B$12)","v":"Mapped"},null,{"$f":"XBRLMap(H54,H$108&\".\"&W54,$C$106,$C$107,CONFIGURATION!$B$10,\"BMA\",CONFIGURATION!$B$1,\"bscr\",CONFIGURATION!$B$12)","v":"Mapped"},null,{"$f":"XBRLMap(J54,J$108&\".\"&W54,$C$106,$C$107,CONFIGURATION!$B$10,\"BMA\",CONFIGURATION!$B$1,\"bscr\",CONFIGURATION!$B$12)","v":"Mapped"},null,{"$f":"XBRLMap(L54,L$108&\".\"&W54,$C$106,$C$107,CONFIGURATION!$B$10,\"BMA\",CONFIGURATION!$B$1,\"bscr\",CONFIGURATION!$B$12)","v":"Mapped"}]
[null,null,null,{"$f":"XBRLMap(D55,D$108&\".\"&W55,$C$106,$C$107,CONFIGURATION!$B$10,\"BMA\",CONFIGURATION!$B$1,\"bscr\",CONFIGURATION!$B$12)","v":"Mapped"},null,{"$f":"XBRLMap(F55,F$108&\".\"&W55,$C$106,$C$107,CONFIGURATION!$B$10,\"BMA\",CONFIGURATION!$B$1,\"bscr\",CONFIGURATION!$B$12)","v":"Mapped"},null,{"$f":"XBRLMap(H55,H$108&\".\"&W55,$C$106,$C$107,CONFIGURATION!$B$10,\"BMA\",CONFIGURATION!$B$1,\"bscr\",CONFIGURATION!$B$12)","v":"Mapped"},null,{"$f":"XBRLMap(J55,J$108&\".\"&W55,$C$106,$C$107,CONFIGURATION!$B$10,\"BMA\",CONFIGURATION!$B$1,\"bscr\",CONFIGURATION!$B$12)","v":"Mapped"},null,{"$f":"XBRLMap(L55,L$108&\".\"&W55,$C$106,$C$107,CONFIGURATION!$B$10,\"BMA\",CONFIGURATION!$B$1,\"bscr\",CONFIGURATION!$B$12)","v":"Mapped"}]
[null,null,null,{"$f":"XBRLMap(D56,D$108&\".\"&W56,$C$106,$C$107,CONFIGURATION!$B$10,\"BMA\",CONFIGURATION!$B$1,\"bscr\",CONFIGURATION!$B$12)","v":"Mapped"},null,{"$f":"XBRLMap(F56,F$108&\".\"&W56,$C$106,$C$107,CONFIGURATION!$B$10,\"BMA\",CONFIGURATION!$B$1,\"bscr\",CONFIGURATION!$B$12)","v":"Mapped"},null,{"$f":"XBRLMap(H56,H$108&\".\"&W56,$C$106,$C$107,CONFIGURATION!$B$10,\"BMA\",CONFIGURATION!$B$1,\"bscr\",CONFIGURATION!$B$12)","v":"Mapped"},null,{"$f":"XBRLMap(J56,J$108&\".\"&W56,$C$106,$C$107,CONFIGURATION!$B$10,\"BMA\",CONFIGURATION!$B$1,\"bscr\",CONFIGURATION!$B$12)","v":"Mapped"},null,{"$f":"XBRLMap(L56,L$108&\".\"&W56,$C$106,$C$107,CONFIGURATION!$B$10,\"BMA\",CONFIGURATION!$B$1,\"bscr\",CONFIGURATION!$B$12)","v":"Mapped"}]
[null,null,null,{"$f":"XBRLMap(D57,D$108&\".\"&W57,$C$106,$C$107,CONFIGURATION!$B$10,\"BMA\",CONFIGURATION!$B$1,\"bscr\",CONFIGURATION!$B$12)","v":"Mapped"},null,{"$f":"XBRLMap(F57,F$108&\".\"&W57,$C$106,$C$107,CONFIGURATION!$B$10,\"BMA\",CONFIGURATION!$B$1,\"bscr\",CONFIGURATION!$B$12)","v":"Mapped"},null,{"$f":"XBRLMap(H57,H$108&\".\"&W57,$C$106,$C$107,CONFIGURATION!$B$10,\"BMA\",CONFIGURATION!$B$1,\"bscr\",CONFIGURATION!$B$12)","v":"Mapped"},null,{"$f":"XBRLMap(J57,J$108&\".\"&W57,$C$106,$C$107,CONFIGURATION!$B$10,\"BMA\",CONFIGURATION!$B$1,\"bscr\",CONFIGURATION!$B$12)","v":"Mapped"},null,{"$f":"XBRLMap(L57,L$108&\".\"&W57,$C$106,$C$107,CONFIGURATION!$B$10,\"BMA\",CONFIGURATION!$B$1,\"bscr\",CONFIGURATION!$B$12)","v":"Mapped"}]
[null,null,null,{"$f":"XBRLMap(D58,D$108&\".\"&W58,$C$106,$C$107,CONFIGURATION!$B$10,\"BMA\",CONFIGURATION!$B$1,\"bscr\",CONFIGURATION!$B$12)","v":"Mapped"},null,{"$f":"XBRLMap(F58,F$108&\".\"&W58,$C$106,$C$107,CONFIGURATION!$B$10,\"BMA\",CONFIGURATION!$B$1,\"bscr\",CONFIGURATION!$B$12)","v":"Mapped"},null,{"$f":"XBRLMap(H58,H$108&\".\"&W58,$C$106,$C$107,CONFIGURATION!$B$10,\"BMA\",CONFIGURATION!$B$1,\"bscr\",CONFIGURATION!$B$12)","v":"Mapped"},null,{"$f":"XBRLMap(J58,J$108&\".\"&W58,$C$106,$C$107,CONFIGURATION!$B$10,\"BMA\",CONFIGURATION!$B$1,\"bscr\",CONFIGURATION!$B$12)","v":"Mapped"},null,{"$f":"XBRLMap(L58,L$108&\".\"&W58,$C$106,$C$107,CONFIGURATION!$B$10,\"BMA\",CONFIGURATION!$B$1,\"bscr\",CONFIGURATION!$B$12)","v":"Mapped"}]
[null,null,null,{"$f":"XBRLMap(D59,D$108&\".\"&W59,$C$106,$C$107,CONFIGURATION!$B$10,\"BMA\",CONFIGURATION!$B$1,\"bscr\",CONFIGURATION!$B$12)","v":"Mapped"},null,{"$f":"XBRLMap(F59,F$108&\".\"&W59,$C$106,$C$107,CONFIGURATION!$B$10,\"BMA\",CONFIGURATION!$B$1,\"bscr\",CONFIGURATION!$B$12)","v":"Mapped"},null,{"$f":"XBRLMap(H59,H$108&\".\"&W59,$C$106,$C$107,CONFIGURATION!$B$10,\"BMA\",CONFIGURATION!$B$1,\"bscr\",CONFIGURATION!$B$12)","v":"Mapped"},null,{"$f":"XBRLMap(J59,J$108&\".\"&W59,$C$106,$C$107,CONFIGURATION!$B$10,\"BMA\",CONFIGURATION!$B$1,\"bscr\",CONFIGURATION!$B$12)","v":"Mapped"},null,{"$f":"XBRLMap(L59,L$108&\".\"&W59,$C$106,$C$107,CONFIGURATION!$B$10,\"BMA\",CONFIGURATION!$B$1,\"bscr\",CONFIGURATION!$B$12)","v":"Mapped"}]
[]
[]
[null,null,null,{"$f":"XBRLMap(D65,D$108&\".\"&W65,$C$106,$C$107,CONFIGURATION!$B$10,\"BMA\",CONFIGURATION!$B$1,\"bscr\",CONFIGURATION!$B$12)","v":"Mapped"},null,{"$f":"XBRLMap(F65,F$108&\".\"&$W65,$C$106,$C$107,CONFIGURATION!$B$10,\"BMA\",CONFIGURATION!$B$1,\"bscr\",CONFIGURATION!$B$12)","v":"Mapped"},null,{"$f":"XBRLMap(H65,H$108&\".\"&$W65,$C$106,$C$107,CONFIGURATION!$B$10,\"BMA\",CONFIGURATION!$B$1,\"bscr\",CONFIGURATION!$B$12)","v":"Mapped"},null,{"$f":"XBRLMap(J65,J$108&\".\"&$W65,$C$106,$C$107,CONFIGURATION!$B$10,\"BMA\",CONFIGURATION!$B$1,\"bscr\",CONFIGURATION!$B$12)","v":"Mapped"},null,{"$f":"XBRLMap(L65,L$108&\".\"&$W65,$C$106,$C$107,CONFIGURATION!$B$10,\"BMA\",CONFIGURATION!$B$1,\"bscr\",CONFIGURATION!$B$12)","v":"Mapped"}]
[null,null,null,{"$f":"XBRLMap(D66,D$108&\".\"&W66,$C$106,$C$107,CONFIGURATION!$B$10,\"BMA\",CONFIGURATION!$B$1,\"bscr\",CONFIGURATION!$B$12)","v":"Mapped"},null,{"$f":"XBRLMap(F66,F$108&\".\"&$W66,$C$106,$C$107,CONFIGURATION!$B$10,\"BMA\",CONFIGURATION!$B$1,\"bscr\",CONFIGURATION!$B$12)","v":"Mapped"},null,{"$f":"XBRLMap(H66,H$108&\".\"&$W66,$C$106,$C$107,CONFIGURATION!$B$10,\"BMA\",CONFIGURATION!$B$1,\"bscr\",CONFIGURATION!$B$12)","v":"Mapped"},null,{"$f":"XBRLMap(J66,J$108&\".\"&$W66,$C$106,$C$107,CONFIGURATION!$B$10,\"BMA\",CONFIGURATION!$B$1,\"bscr\",CONFIGURATION!$B$12)","v":"Mapped"},null,{"$f":"XBRLMap(L66,L$108&\".\"&$W66,$C$106,$C$107,CONFIGURATION!$B$10,\"BMA\",CONFIGURATION!$B$1,\"bscr\",CONFIGURATION!$B$12)","v":"Mapped"}]
[null,null,null,{"$f":"XBRLMap(D67,D$108&\".\"&W67,$C$106,$C$107,CONFIGURATION!$B$10,\"BMA\",CONFIGURATION!$B$1,\"bscr\",CONFIGURATION!$B$12)","v":"Mapped"},null,{"$f":"XBRLMap(F67,F$108&\".\"&$W67,$C$106,$C$107,CONFIGURATION!$B$10,\"BMA\",CONFIGURATION!$B$1,\"bscr\",CONFIGURATION!$B$12)","v":"Mapped"},null,{"$f":"XBRLMap(H67,H$108&\".\"&$W67,$C$106,$C$107,CONFIGURATION!$B$10,\"BMA\",CONFIGURATION!$B$1,\"bscr\",CONFIGURATION!$B$12)","v":"Mapped"},null,{"$f":"XBRLMap(J67,J$108&\".\"&$W67,$C$106,$C$107,CONFIGURATION!$B$10,\"BMA\",CONFIGURATION!$B$1,\"bscr\",CONFIGURATION!$B$12)","v":"Mapped"},null,{"$f":"XBRLMap(L67,L$108&\".\"&$W67,$C$106,$C$107,CONFIGURATION!$B$10,\"BMA\",CONFIGURATION!$B$1,\"bscr\",CONFIGURATION!$B$12)","v":"Mapped"}]
[null,null,null,{"$f":"XBRLMap(D68,D$108&\".\"&W68,$C$106,$C$107,CONFIGURATION!$B$10,\"BMA\",CONFIGURATION!$B$1,\"bscr\",CONFIGURATION!$B$12)","v":"Mapped"},null,{"$f":"XBRLMap(F68,F$108&\".\"&$W68,$C$106,$C$107,CONFIGURATION!$B$10,\"BMA\",CONFIGURATION!$B$1,\"bscr\",CONFIGURATION!$B$12)","v":"Mapped"},null,{"$f":"XBRLMap(H68,H$108&\".\"&$W68,$C$106,$C$107,CONFIGURATION!$B$10,\"BMA\",CONFIGURATION!$B$1,\"bscr\",CONFIGURATION!$B$12)","v":"Mapped"},null,{"$f":"XBRLMap(J68,J$108&\".\"&$W68,$C$106,$C$107,CONFIGURATION!$B$10,\"BMA\",CONFIGURATION!$B$1,\"bscr\",CONFIGURATION!$B$12)","v":"Mapped"},null,{"$f":"XBRLMap(L68,L$108&\".\"&$W68,$C$106,$C$107,CONFIGURATION!$B$10,\"BMA\",CONFIGURATION!$B$1,\"bscr\",CONFIGURATION!$B$12)","v":"Mapped"}]
[]
[]
[null,null,null,{"$f":"XBRLMap(D74,D$108&\".\"&$W74,$C$106,$C$107,CONFIGURATION!$B$10,\"BMA\",CONFIGURATION!$B$1,\"bscr\",CONFIGURATION!$B$12)","v":"Mapped"},null,{"$f":"XBRLMap(F74,F$108&\".\"&$W74,$C$106,$C$107,CONFIGURATION!$B$10,\"BMA\",CONFIGURATION!$B$1,\"bscr\",CONFIGURATION!$B$12)","v":"Mapped"},null,{"$f":"XBRLMap(H74,H$108&\".\"&$W74,$C$106,$C$107,CONFIGURATION!$B$10,\"BMA\",CONFIGURATION!$B$1,\"bscr\",CONFIGURATION!$B$12)","v":"Mapped"},null,{"$f":"XBRLMap(J74,J$108&\".\"&$W74,$C$106,$C$107,CONFIGURATION!$B$10,\"BMA\",CONFIGURATION!$B$1,\"bscr\",CONFIGURATION!$B$12)","v":"Mapped"},null,{"$f":"XBRLMap(L74,L$108&\".\"&$W74,$C$106,$C$107,CONFIGURATION!$B$10,\"BMA\",CONFIGURATION!$B$1,\"bscr\",CONFIGURATION!$B$12)","v":"Mapped"}]
[null,null,null,{"$f":"XBRLMap(D75,D$108&\".\"&$W75,$C$106,$C$107,CONFIGURATION!$B$10,\"BMA\",CONFIGURATION!$B$1,\"bscr\",CONFIGURATION!$B$12)","v":"Mapped"},null,{"$f":"XBRLMap(F75,F$108&\".\"&$W75,$C$106,$C$107,CONFIGURATION!$B$10,\"BMA\",CONFIGURATION!$B$1,\"bscr\",CONFIGURATION!$B$12)","v":"Mapped"},null,{"$f":"XBRLMap(H75,H$108&\".\"&$W75,$C$106,$C$107,CONFIGURATION!$B$10,\"BMA\",CONFIGURATION!$B$1,\"bscr\",CONFIGURATION!$B$12)","v":"Mapped"},null,{"$f":"XBRLMap(J75,J$108&\".\"&$W75,$C$106,$C$107,CONFIGURATION!$B$10,\"BMA\",CONFIGURATION!$B$1,\"bscr\",CONFIGURATION!$B$12)","v":"Mapped"},null,{"$f":"XBRLMap(L75,L$108&\".\"&$W75,$C$106,$C$107,CONFIGURATION!$B$10,\"BMA\",CONFIGURATION!$B$1,\"bscr\",CONFIGURATION!$B$12)","v":"Mapped"}]
[null,null,null,{"$f":"XBRLMap(D76,D$108&\".\"&$W76,$C$106,$C$107,CONFIGURATION!$B$10,\"BMA\",CONFIGURATION!$B$1,\"bscr\",CONFIGURATION!$B$12)","v":"Mapped"},null,{"$f":"XBRLMap(F76,F$108&\".\"&$W76,$C$106,$C$107,CONFIGURATION!$B$10,\"BMA\",CONFIGURATION!$B$1,\"bscr\",CONFIGURATION!$B$12)","v":"Mapped"},null,{"$f":"XBRLMap(H76,H$108&\".\"&$W76,$C$106,$C$107,CONFIGURATION!$B$10,\"BMA\",CONFIGURATION!$B$1,\"bscr\",CONFIGURATION!$B$12)","v":"Mapped"},null,{"$f":"XBRLMap(J76,J$108&\".\"&$W76,$C$106,$C$107,CONFIGURATION!$B$10,\"BMA\",CONFIGURATION!$B$1,\"bscr\",CONFIGURATION!$B$12)","v":"Mapped"},null,{"$f":"XBRLMap(L76,L$108&\".\"&$W76,$C$106,$C$107,CONFIGURATION!$B$10,\"BMA\",CONFIGURATION!$B$1,\"bscr\",CONFIGURATION!$B$12)","v":"Mapped"}]
[null,null,null,{"$f":"XBRLMap(D77,D$108&\".\"&$W77,$C$106,$C$107,CONFIGURATION!$B$10,\"BMA\",CONFIGURATION!$B$1,\"bscr\",CONFIGURATION!$B$12)","v":"Mapped"},null,{"$f":"XBRLMap(F77,F$108&\".\"&$W77,$C$106,$C$107,CONFIGURATION!$B$10,\"BMA\",CONFIGURATION!$B$1,\"bscr\",CONFIGURATION!$B$12)","v":"Mapped"},null,{"$f":"XBRLMap(H77,H$108&\".\"&$W77,$C$106,$C$107,CONFIGURATION!$B$10,\"BMA\",CONFIGURATION!$B$1,\"bscr\",CONFIGURATION!$B$12)","v":"Mapped"},null,{"$f":"XBRLMap(J77,J$108&\".\"&$W77,$C$106,$C$107,CONFIGURATION!$B$10,\"BMA\",CONFIGURATION!$B$1,\"bscr\",CONFIGURATION!$B$12)","v":"Mapped"},null,{"$f":"XBRLMap(L77,L$108&\".\"&$W77,$C$106,$C$107,CONFIGURATION!$B$10,\"BMA\",CONFIGURATION!$B$1,\"bscr\",CONFIGURATION!$B$12)","v":"Mapped"}]
[null,null,null,{"$f":"XBRLMap(D78,D$108&\".\"&$W78,$C$106,$C$107,CONFIGURATION!$B$10,\"BMA\",CONFIGURATION!$B$1,\"bscr\",CONFIGURATION!$B$12)","v":"Mapped"},null,{"$f":"XBRLMap(F78,F$108&\".\"&$W78,$C$106,$C$107,CONFIGURATION!$B$10,\"BMA\",CONFIGURATION!$B$1,\"bscr\",CONFIGURATION!$B$12)","v":"Mapped"},null,{"$f":"XBRLMap(H78,H$108&\".\"&$W78,$C$106,$C$107,CONFIGURATION!$B$10,\"BMA\",CONFIGURATION!$B$1,\"bscr\",CONFIGURATION!$B$12)","v":"Mapped"},null,{"$f":"XBRLMap(J78,J$108&\".\"&$W78,$C$106,$C$107,CONFIGURATION!$B$10,\"BMA\",CONFIGURATION!$B$1,\"bscr\",CONFIGURATION!$B$12)","v":"Mapped"},null,{"$f":"XBRLMap(L78,L$108&\".\"&$W78,$C$106,$C$107,CONFIGURATION!$B$10,\"BMA\",CONFIGURATION!$B$1,\"bscr\",CONFIGURATION!$B$12)","v":"Mapped"}]
[null,null,null,{"$f":"XBRLMap(D79,D$108&\".\"&$W79,$C$106,$C$107,CONFIGURATION!$B$10,\"BMA\",CONFIGURATION!$B$1,\"bscr\",CONFIGURATION!$B$12)","v":"Mapped"},null,{"$f":"XBRLMap(F79,F$108&\".\"&$W79,$C$106,$C$107,CONFIGURATION!$B$10,\"BMA\",CONFIGURATION!$B$1,\"bscr\",CONFIGURATION!$B$12)","v":"Mapped"},null,{"$f":"XBRLMap(H79,H$108&\".\"&$W79,$C$106,$C$107,CONFIGURATION!$B$10,\"BMA\",CONFIGURATION!$B$1,\"bscr\",CONFIGURATION!$B$12)","v":"Mapped"},null,{"$f":"XBRLMap(J79,J$108&\".\"&$W79,$C$106,$C$107,CONFIGURATION!$B$10,\"BMA\",CONFIGURATION!$B$1,\"bscr\",CONFIGURATION!$B$12)","v":"Mapped"},null,{"$f":"XBRLMap(L79,L$108&\".\"&$W79,$C$106,$C$107,CONFIGURATION!$B$10,\"BMA\",CONFIGURATION!$B$1,\"bscr\",CONFIGURATION!$B$12)","v":"Mapped"}]
[null,null,null,{"$f":"XBRLMap(D80,D$108&\".\"&$W80,$C$106,$C$107,CONFIGURATION!$B$10,\"BMA\",CONFIGURATION!$B$1,\"bscr\",CONFIGURATION!$B$12)","v":"Mapped"},null,{"$f":"XBRLMap(F80,F$108&\".\"&$W80,$C$106,$C$107,CONFIGURATION!$B$10,\"BMA\",CONFIGURATION!$B$1,\"bscr\",CONFIGURATION!$B$12)","v":"Mapped"},null,{"$f":"XBRLMap(H80,H$108&\".\"&$W80,$C$106,$C$107,CONFIGURATION!$B$10,\"BMA\",CONFIGURATION!$B$1,\"bscr\",CONFIGURATION!$B$12)","v":"Mapped"},null,{"$f":"XBRLMap(J80,J$108&\".\"&$W80,$C$106,$C$107,CONFIGURATION!$B$10,\"BMA\",CONFIGURATION!$B$1,\"bscr\",CONFIGURATION!$B$12)","v":"Mapped"},null,{"$f":"XBRLMap(L80,L$108&\".\"&$W80,$C$106,$C$107,CONFIGURATION!$B$10,\"BMA\",CONFIGURATION!$B$1,\"bscr\",CONFIGURATION!$B$12)","v":"Mapped"}]
[null,null,null,{"$f":"XBRLMap(D81,D$108&\".\"&$W81,$C$106,$C$107,CONFIGURATION!$B$10,\"BMA\",CONFIGURATION!$B$1,\"bscr\",CONFIGURATION!$B$12)","v":"Mapped"},null,{"$f":"XBRLMap(F81,F$108&\".\"&$W81,$C$106,$C$107,CONFIGURATION!$B$10,\"BMA\",CONFIGURATION!$B$1,\"bscr\",CONFIGURATION!$B$12)","v":"Mapped"},null,{"$f":"XBRLMap(H81,H$108&\".\"&$W81,$C$106,$C$107,CONFIGURATION!$B$10,\"BMA\",CONFIGURATION!$B$1,\"bscr\",CONFIGURATION!$B$12)","v":"Mapped"},null,{"$f":"XBRLMap(J81,J$108&\".\"&$W81,$C$106,$C$107,CONFIGURATION!$B$10,\"BMA\",CONFIGURATION!$B$1,\"bscr\",CONFIGURATION!$B$12)","v":"Mapped"},null,{"$f":"XBRLMap(L81,L$108&\".\"&$W81,$C$106,$C$107,CONFIGURATION!$B$10,\"BMA\",CONFIGURATION!$B$1,\"bscr\",CONFIGURATION!$B$12)","v":"Mapped"}]
[null,null,null,{"$f":"XBRLMap(D82,D$108&\".\"&$W82,$C$106,$C$107,CONFIGURATION!$B$10,\"BMA\",CONFIGURATION!$B$1,\"bscr\",CONFIGURATION!$B$12)","v":"Mapped"},null,{"$f":"XBRLMap(F82,F$108&\".\"&$W82,$C$106,$C$107,CONFIGURATION!$B$10,\"BMA\",CONFIGURATION!$B$1,\"bscr\",CONFIGURATION!$B$12)","v":"Mapped"},null,{"$f":"XBRLMap(H82,H$108&\".\"&$W82,$C$106,$C$107,CONFIGURATION!$B$10,\"BMA\",CONFIGURATION!$B$1,\"bscr\",CONFIGURATION!$B$12)","v":"Mapped"},null,{"$f":"XBRLMap(J82,J$108&\".\"&$W82,$C$106,$C$107,CONFIGURATION!$B$10,\"BMA\",CONFIGURATION!$B$1,\"bscr\",CONFIGURATION!$B$12)","v":"Mapped"},null,{"$f":"XBRLMap(L82,L$108&\".\"&$W82,$C$106,$C$107,CONFIGURATION!$B$10,\"BMA\",CONFIGURATION!$B$1,\"bscr\",CONFIGURATION!$B$12)","v":"Mapped"}]
[null,null,null,{"$f":"XBRLMap(D83,D$108&\".\"&$W83,$C$106,$C$107,CONFIGURATION!$B$10,\"BMA\",CONFIGURATION!$B$1,\"bscr\",CONFIGURATION!$B$12)","v":"Mapped"},null,{"$f":"XBRLMap(F83,F$108&\".\"&$W83,$C$106,$C$107,CONFIGURATION!$B$10,\"BMA\",CONFIGURATION!$B$1,\"bscr\",CONFIGURATION!$B$12)","v":"Mapped"},null,{"$f":"XBRLMap(H83,H$108&\".\"&$W83,$C$106,$C$107,CONFIGURATION!$B$10,\"BMA\",CONFIGURATION!$B$1,\"bscr\",CONFIGURATION!$B$12)","v":"Mapped"},null,{"$f":"XBRLMap(J83,J$108&\".\"&$W83,$C$106,$C$107,CONFIGURATION!$B$10,\"BMA\",CONFIGURATION!$B$1,\"bscr\",CONFIGURATION!$B$12)","v":"Mapped"},null,{"$f":"XBRLMap(L83,L$108&\".\"&$W83,$C$106,$C$107,CONFIGURATION!$B$10,\"BMA\",CONFIGURATION!$B$1,\"bscr\",CONFIGURATION!$B$12)","v":"Mapped"}]
[null,null,null,{"$f":"XBRLMap(D84,D$108&\".\"&$W84,$C$106,$C$107,CONFIGURATION!$B$10,\"BMA\",CONFIGURATION!$B$1,\"bscr\",CONFIGURATION!$B$12)","v":"Mapped"},null,{"$f":"XBRLMap(F84,F$108&\".\"&$W84,$C$106,$C$107,CONFIGURATION!$B$10,\"BMA\",CONFIGURATION!$B$1,\"bscr\",CONFIGURATION!$B$12)","v":"Mapped"},null,{"$f":"XBRLMap(H84,H$108&\".\"&$W84,$C$106,$C$107,CONFIGURATION!$B$10,\"BMA\",CONFIGURATION!$B$1,\"bscr\",CONFIGURATION!$B$12)","v":"Mapped"},null,{"$f":"XBRLMap(J84,J$108&\".\"&$W84,$C$106,$C$107,CONFIGURATION!$B$10,\"BMA\",CONFIGURATION!$B$1,\"bscr\",CONFIGURATION!$B$12)","v":"Mapped"},null,{"$f":"XBRLMap(L84,L$108&\".\"&$W84,$C$106,$C$107,CONFIGURATION!$B$10,\"BMA\",CONFIGURATION!$B$1,\"bscr\",CONFIGURATION!$B$12)","v":"Mapped"}]
[null,null,null,{"$f":"XBRLMap(D85,D$108&\".\"&$W85,$C$106,$C$107,CONFIGURATION!$B$10,\"BMA\",CONFIGURATION!$B$1,\"bscr\",CONFIGURATION!$B$12)","v":"Mapped"},null,{"$f":"XBRLMap(F85,F$108&\".\"&$W85,$C$106,$C$107,CONFIGURATION!$B$10,\"BMA\",CONFIGURATION!$B$1,\"bscr\",CONFIGURATION!$B$12)","v":"Mapped"},null,{"$f":"XBRLMap(H85,H$108&\".\"&$W85,$C$106,$C$107,CONFIGURATION!$B$10,\"BMA\",CONFIGURATION!$B$1,\"bscr\",CONFIGURATION!$B$12)","v":"Mapped"},null,{"$f":"XBRLMap(J85,J$108&\".\"&$W85,$C$106,$C$107,CONFIGURATION!$B$10,\"BMA\",CONFIGURATION!$B$1,\"bscr\",CONFIGURATION!$B$12)","v":"Mapped"},null,{"$f":"XBRLMap(L85,L$108&\".\"&$W85,$C$106,$C$107,CONFIGURATION!$B$10,\"BMA\",CONFIGURATION!$B$1,\"bscr\",CONFIGURATION!$B$12)","v":"Mapped"}]
[]
[]
[]
[]
[]
[]
[]
[]
[]
[]
[]
[]
[]
[]
[]
[]
[]
[]
[]
[]
[]
[]
[]
[]
[]
[]
[]
[]
[]
[]
[]
[]
[]
[]
[]
[]
[]
[]
[]
[]
[]
[]
[]
[]
[null,null,"Guaranteed Minimum Death Benefit: Return of Premium","Guaranteed Minimum Death Benefit: Return of Premium, Ratchet and Reset 2.",null,null,null,null,null,null,null,"0-10%","<1","<1",1]
[null,null,"Guaranteed Minimum Death Benefit: Ratchet ",null,null,null,null,null,null,null,null,"10-15%",2,2,2]
[null,null,"Guaranteed Minimum Death Benefit: Roll-up","Guaranteed Minimum Death Benefit: Enhanced Benefits (Roll up) 2.",null,null,null,null,null,null,null,"15%+",3,3,3]
[null,null,"Guaranteed Minimum Death Benefit: With Compound Guarantees",null,null,null,null,null,null,null,null,null,4,4,4]
[null,null,"Guaranteed Minimum Income Benefit: Return of Premium","Guaranteed Minimum Income Benefit",null,null,null,null,null,null,null,null,5,5,5]
[null,null,"Guaranteed Minimum Income Benefit: Ratchet",null,null,null,null,null,null,null,null,null,"6-10","6-10",6]
[null,null,"Guaranteed Minimum Income Benefit: Roll-up",null,null,null,null,null,null,null,null,null,"10+","10+",7]
[null,null,"Guaranteed Minimum Income Benefit: With Compound Guarantees",null,null,null,null,null,null,null,null,null,null,null,8]
[null,null,"Enhanced Earnings Benefit","Guaranteed Enhanced Earnings Benefit",null,null,null,null,null,null,null,null,null,null,9]
[null,null,"Guaranteed Minimum Withdrawal Benefit","Guaranteed Minimum Withdrawal Benefit",null,null,null,null,null,null,null,null,null,null,"10+"]
[null,null,"Guaranteed Minimum Withdrawal for Life"]
[null,null,"Guaranteed Minimum Accumulation Benefit: ","Guaranteed Minimum Accumulation Benefit: "]
[null,null,"Guaranteed Minimum Accumulation Benefit: With Compound Guarantees"]

{"sheet":"Schedule VIIIA (EBS)","index":53,"n_rows":228,"n_cols":27,"rows_kept":228,"cut":false,"hidden":false,"merged":[[91,3,91,18],[27,3,28,3],[27,5,28,5],[70,3,71,3],[70,5,71,5],[70,7,71,7],[70,9,71,9],[61,7,62,7],[61,9,62,9],[70,11,71,11],[61,11,62,11],[85,2,85,5],[50,3,51,3],[50,5,51,5],[50,7,51,7],[27,11,28,11],[50,11,51,11],[61,3,62,3],[61,5,62,5],[27,7,28,7],[50,9,51,9],[27,9,28,9],[3,11,4,18],[18,14,18,18],[6,13,6,19],[8,3,9,3],[8,5,9,5],[8,7,9,7],[8,9,9,9],[8,11,9,11],[6,1,6,12],[8,16,9,16],[8,18,9,18]]}
[null,null,"SCHEDULE OF LONG-TERM VARIABLE ANNUITY - INTERNAL CAPITAL MODEL",null,null,null,null,null,null,null,null,null,null,null,null,null,null,null,{"$f":"HYPERLINK(\"#'Index'!A1\",\"Return to Index\")","v":"Return to Index"}]
[null,null,{"$f":"'Insurer Information'!C7","v":"Enter Company Name"},null,null,null,null,null,null,null,null,null,null,null,null,null,null,null,"SCHEDULE VIII(a) (EBS)"]
[null,null,{"$f":"TEXT('Insurer Information'!C3,\"mmmm dd, yyyy\")","v":"December 31, 2019"}]
[null,null,{"$f":"'Form 4EBS'!C4","v":"United States Dollars"},null,null,null,null,null,null,null,null,{"$f":"HYPERLINK(\"#'Attachments'!A55\",\"Details of Internal Variable Annuity Guarantees (IE Actuarial Memorandum and Distribution of Cumulative Losses) are to be included in the attachments section 6.\")","v":"Details of Internal Variable Annuity Guarantees (IE Actuarial Memorandum and Distribution of Cumulative Losses) are to be included in the attachments section 6."}]
[]
[null,null,null,null,null,null,null,null,null,null,null,null,null,{"$f":"YEAR('Insurer Information'!C3)","v":2019}]
[null,"SCHEDULE OF LONG TERM VARIABLE ANNUITY GUARANTEES",null,null,null,null,null,null,null,null,null,null,null,"TOTAL CAPITAL REQUIREMENT BASED ON INTERNAL MODEL RESULTS"]
[null,null,null,"(1)",null,"(2)",null,"(3)",null,"(4)",null,"(5)",null,null,null,null,"(6)",null,"(7)"]
[null,null,null,"Bermuda EBS Best Estimate Provisions",null,"Policy Count",null,"Account Value",null,"Guarantee Value",null,"Net Amount At Risk",null,null,null,null,"Without Hedging",null,"With Hedging"]
[]
[null,null,"Policy Type",{"$f":"CONFIGURATION!$D$12","v":" ('000s)"},null,null,null,{"$f":"CONFIGURATION!$D$12","v":" ('000s)"},null,{"$f":"CONFIGURATION!$D$12","v":" ('000s)"},null,{"$f":"CONFIGURATION!$D$12","v":" ('000s)"}]
[null,null,"Guaranteed Minimum Death Benefit: Return of Premium",{"$f":"Import!M4916","v":0},null,{"$f":"Import!M4930","v":0},null,{"$f":"Import!M4944","v":0},null,{"$f":"Import!M4958","v":0},null,{"$f":"Import!M4972","v":0},null,"1.","Internal-Model Based Capital Requirement",null,{"$f":"Import!M4896","v":0},null,{"$f":"Import!M4904","v":0},null,null,null,"brrt_VariableAnnuitiesGuaranteesAxis_brrt_GuaranteedMinimumDeathBenefitReturnOfPremiumMember",null,null,null,"brrt_InternalModelBasedCapitalRequirement"]
[null,null,"Guaranteed Minimum Death Benefit: Ratchet ",{"$f":"Import!M4917","v":0},null,{"$f":"Import!M4931","v":0},null,{"$f":"Import!M4945","v":0},null,{"$f":"Import!M4959","v":0},null,{"$f":"Import!M4973","v":0},null,null,null,null,null,null,null,null,null,null,"brrt_VariableAnnuitiesGuaranteesAxis_brrt_GuaranteedMinimumDeathBenefitRatchetMember"]
[null,null,"Guaranteed Minimum Death Benefit: Roll-up",{"$f":"Import!M4918","v":0},null,{"$f":"Import!M4932","v":0},null,{"$f":"Import!M4946","v":0},null,{"$f":"Import!M4960","v":0},null,{"$f":"Import!M4974","v":0},null,"2.","Prescribed Stress Tests:",null,null,null,null,null,null,null,"brrt_VariableAnnuitiesGuaranteesAxis_brrt_GuaranteedMinimumDeathBenefitRollUpMember"]
[null,null,"Guaranteed Minimum Death Benefit: With Compound Guarantees",{"$f":"Import!M4919","v":0},null,{"$f":"Import!M4933","v":0},null,{"$f":"Import!M4947","v":0},null,{"$f":"Import!M4961","v":0},null,{"$f":"Import!M4975","v":0},null,null,"a. Equity - Immediate shock of 20% to separate account funds",null,{"$f":"Import!M4897","v":0},null,{"$f":"Import!M4905","v":0},null,null,null,"brrt_VariableAnnuitiesGuaranteesAxis_brrt_GuaranteedMinimumDeathBenefitWithCompoundGuaranteesMember",null,null,null,"brrt_StressTestEquityImmediateShockOf20PercentToSeparateAccountFunds"]
[null,null,"Guaranteed Minimum Income Benefit: Return of Premium",{"$f":"Import!M4920","v":0},null,{"$f":"Import!M4934","v":0},null,{"$f":"Import!M4948","v":0},null,{"$f":"Import!M4962","v":0},null,{"$f":"Import!M4976","v":0},null,null,"   b. Absolute immediate increase of 10% in implied volatility",null,{"$f":"Import!M4898","v":0},null,{"$f":"Import!M4906","v":0},null,null,null,"brrt_VariableAnnuitiesGuaranteesAxis_brrt_GuaranteedMinimumIncomeBenefitReturnOfPremiumMember",null,null,null,"brrt_StressTestAbsoluteImmediateIncreaseOf10PercentInImpliedVolatility"]
[null,null,"Guaranteed Minimum Income Benefit: Ratchet",{"$f":"Import!M4921","v":0},null,{"$f":"Import!M4935","v":0},null,{"$f":"Import!M4949","v":0},null,{"$f":"Import!M4963","v":0},null,{"$f":"Import!M4977","v":0},null,null,"   c. Interest rates - Immediate parallel shift up/down by 100 bps",null,{"$f":"Import!M4899","v":0},null,{"$f":"Import!M4907","v":0},null,null,null,"brrt_VariableAnnuitiesGuaranteesAxis_brrt_GuaranteedMinimumIncomeBenefitRatchetMember",null,null,null,"brrt_StressTestInterestRatesImmediateParallelShiftUpDownBy100Bps"]
[null,null,"Guaranteed Minimum Income Benefit: Roll-up",{"$f":"Import!M4922","v":0},null,{"$f":"Import!M4936","v":0},null,{"$f":"Import!M4950","v":0},null,{"$f":"Import!M4964","v":0},null,{"$f":"Import!M4978","v":0},null,null,null,null,null,null,null,null,null,null,"brrt_VariableAnnuitiesGuaranteesAxis_brrt_GuaranteedMinimumIncomeBenefitRollUpMember"]
[null,null,"Guaranteed Minimum Income Benefit: With Compound Guarantees",{"$f":"Import!M4923","v":0},null,{"$f":"Import!M4937","v":0},null,{"$f":"Import!M4951","v":0},null,{"$f":"Import!M4965","v":0},null,{"$f":"Import!M4979","v":0},null,"3.","Stresses to Actuarial Assumptions for Mortality and Policyholder behaviour:",null,null,null,null,null,null,null,"brrt_VariableAnnuitiesGuaranteesAxis_brrt_GuaranteedMinimumIncomeBenefitWithCompoundGuaranteesMember"]
[null,null,"Enhanced Earnings Benefit",{"$f":"Import!M4924","v":0},null,{"$f":"Import!M4938","v":0},null,{"$f":"Import!M4952","v":0},null,{"$f":"Import!M4966","v":0},null,{"$f":"Import!M4980","v":0},null,"a.",{"$f":"Import!M4912","v":0},null,{"$f":"Import!M4900","v":0},null,{"$f":"Import!M4908","v":0},null,null,null,"brrt_VariableAnnuitiesGuaranteesAxis_brrt_GuaranteedEnhancedEarningsBenefitMember"]
[null,null,"Guaranteed Minimum Withdrawal Benefit",{"$f":"Import!M4925","v":0},null,{"$f":"Import!M4939","v":0},null,{"$f":"Import!M4953","v":0},null,{"$f":"Import!M4967","v":0},null,{"$f":"Import!M4981","v":0},null,"b.",{"$f":"Import!M4913","v":0},null,{"$f":"Import!M4901","v":0},null,{"$f":"Import!M4909","v":0},null,null,null,"brrt_VariableAnnuitiesGuaranteesAxis_brrt_GuaranteedMinimumWithdrawalBenefitMember"]
[null,null,"Guaranteed Minimum Withdrawal for Life",{"$f":"Import!M4926","v":0},null,{"$f":"Import!M4940","v":0},null,{"$f":"Import!M4954","v":0},null,{"$f":"Import!M4968","v":0},null,{"$f":"Import!M4982","v":0},null,"c.",{"$f":"Import!M4914","v":0},null,{"$f":"Import!M4902","v":0},null,{"$f":"Import!M4910","v":0},null,null,null,"brrt_VariableAnnuitiesGuaranteesAxis_brrt_GuaranteedMinimumWithdrawalForLifeMember"]
[null,null,"Guaranteed Minimum Accumulation Benefit: ",{"$f":"Import!M4927","v":0},null,{"$f":"Import!M4941","v":0},null,{"$f":"Import!M4955","v":0},null,{"$f":"Import!M4969","v":0},null,{"$f":"Import!M4983","v":0},null,"d.",{"$f":"Import!M4915","v":0},null,{"$f":"Import!M4903","v":0},null,{"$f":"Import!M4911","v":0},null,null,null,"brrt_VariableAnnuitiesGuaranteesAxis_brrt_GuaranteedMinimumAccumulationMember"]
[null,null,"Guaranteed Minimum Accumulation Benefit: With Compound Guarantees",{"$f":"Import!M4928","v":0},null,{"$f":"Import!M4942","v":0},null,{"$f":"Import!M4956","v":0},null,{"$f":"Import!M4970","v":0},null,{"$f":"Import!M4984","v":0},null,null,null,null,null,null,null,null,null,null,"brrt_VariableAnnuitiesGuaranteesAxis_brrt_GuaranteedMinimumAccumulationWithCompoundGuaranteesMember"]
[null,null,"Total (Variable Annuities)",{"$f":"SUM(D12:D24)","v":0},null,{"$f":"SUM(F12:F24)","v":0},null,{"$f":"SUM(H12:H24)","v":0},null,{"$f":"SUM(J12:J24)","v":0},null,{"$f":"SUM(L12:L24)","v":0},null,null,null,null,null,null,null,null,null,null,"brrt_VariableAnnuitiesGuaranteesAxis_brrt_TotalMember"]
[]
[]
[null,null,null,"Bermuda EBS Best Estimate Provisions",null,"Policy Count",null,"Account Value",null,"Guarantee Value",null,"Net Amount At Risk"]
[]
[null,null,"Years Since Issue",{"$f":"CONFIGURATION!$D$12","v":" ('000s)"},null,null,null,{"$f":"CONFIGURATION!$D$12","v":" ('000s)"},null,{"$f":"CONFIGURATION!$D$12","v":" ('000s)"},null,{"$f":"CONFIGURATION!$D$12","v":" ('000s)"}]
[null,null,0,{"$f":"Import!M4986","v":0},null,{"$f":"Import!M5004","v":0},null,{"$f":"Import!M5022","v":0},null,{"$f":"Import!M5040","v":0},null,{"$f":"Import!M5058","v":0},null,null,null,null,null,null,null,null,null,null,"brrt_YearsSinceIssueAxis_brrt_ZeroYearMember"]
[null,null,1,{"$f":"Import!M4987","v":0},null,{"$f":"Import!M5005","v":0},null,{"$f":"Import!M5023","v":0},null,{"$f":"Import!M5041","v":0},null,{"$f":"Import!M5059","v":0},null,null,null,null,null,null,null,null,null,null,"brrt_YearsSinceIssueAxis_brrt_OneYearMember"]
[null,null,2,{"$f":"Import!M4988","v":0},null,{"$f":"Import!M5006","v":0},null,{"$f":"Import!M5024","v":0},null,{"$f":"Import!M5042","v":0},null,{"$f":"Import!M5060","v":0},null,null,null,null,null,null,null,null,null,null,"brrt_YearsSinceIssueAxis_brrt_TwoYearsMember"]
[null,null,3,{"$f":"Import!M4989","v":0},null,{"$f":"Import!M5007","v":0},null,{"$f":"Import!M5025","v":0},null,{"$f":"Import!M5043","v":0},null,{"$f":"Import!M5061","v":0},null,null,null,null,null,null,null,null,null,null,"brrt_YearsSinceIssueAxis_brrt_ThreeYearsMember"]
[null,null,4,{"$f":"Import!M4990","v":0},null,{"$f":"Import!M5008","v":0},null,{"$f":"Import!M5026","v":0},null,{"$f":"Import!M5044","v":0},null,{"$f":"Import!M5062","v":0},null,null,null,null,null,null,null,null,null,null,"brrt_YearsSinceIssueAxis_brrt_FourYearsMember"]
[null,null,5,{"$f":"Import!M4991","v":0},null,{"$f":"Import!M5009","v":0},null,{"$f":"Import!M5027","v":0},null,{"$f":"Import!M5045","v":0},null,{"$f":"Import!M5063","v":0},null,null,null,null,null,null,null,null,null,null,"brrt_YearsSinceIssueAxis_brrt_FiveYearsMember"]
[null,null,6,{"$f":"Import!M4992","v":0},null,{"$f":"Import!M5010","v":0},null,{"$f":"Import!M5028","v":0},null,{"$f":"Import!M5046","v":0},null,{"$f":"Import!M5064","v":0},null,null,null,null,null,null,null,null,null,null,"brrt_YearsSinceIssueAxis_brrt_SixYearsMember"]
[" ",null,7,{"$f":"Import!M4993","v":0},null,{"$f":"Import!M5011","v":0},null,{"$f":"Import!M5029","v":0},null,{"$f":"Import!M5047","v":0},null,{"$f":"Import!M5065","v":0},null,null,null,null,null,null,null,null,null,null,"brrt_YearsSinceIssueAxis_brrt_SevenYearsMember"]
[null,null,8,{"$f":"Import!M4994","v":0},null,{"$f":"Import!M5012","v":0},null,{"$f":"Import!M5030","v":0},null,{"$f":"Import!M5048","v":0},null,{"$f":"Import!M5066","v":0},null,null,null,null,null,null,null,null,null,null,"brrt_YearsSinceIssueAxis_brrt_EightYearsMember"]
[null,null,9,{"$f":"Import!M4995","v":0},null,{"$f":"Import!M5013","v":0},null,{"$f":"Import!M5031","v":0},null,{"$f":"Import!M5049","v":0},null,{"$f":"Import!M5067","v":0},null,null,null,null,null,null,null,null,null,null,"brrt_YearsSinceIssueAxis_brrt_NineYearsMember"]
[null,null,10,{"$f":"Import!M4996","v":0},null,{"$f":"Import!M5014","v":0},null,{"$f":"Import!M5032","v":0},null,{"$f":"Import!M5050","v":0},null,{"$f":"Import!M5068","v":0},null,null,null,null,null,null,null,null,null,null,"brrt_YearsSinceIssueAxis_brrt_TenYearsMember"]
[null,null,11,{"$f":"Import!M4997","v":0},null,{"$f":"Import!M5015","v":0},null,{"$f":"Import!M5033","v":0},null,{"$f":"Import!M5051","v":0},null,{"$f":"Import!M5069","v":0},null,null,null,null,null,null,null,null,null,null,"brrt_YearsSinceIssueAxis_brrt_ElevenYearsMember"]
[null,null,12,{"$f":"Import!M4998","v":0},null,{"$f":"Import!M5016","v":0},null,{"$f":"Import!M5034","v":0},null,{"$f":"Import!M5052","v":0},null,{"$f":"Import!M5070","v":0},null,null,null,null,null,null,null,null,null,null,"brrt_YearsSinceIssueAxis_brrt_TwelveYearsMember"]
[null,null,13,{"$f":"Import!M4999","v":0},null,{"$f":"Import!M5017","v":0},null,{"$f":"Import!M5035","v":0},null,{"$f":"Import!M5053","v":0},null,{"$f":"Import!M5071","v":0},null,null,null,null,null,null,null,null,null,null,"brrt_YearsSinceIssueAxis_brrt_ThirteenYearsMember"]
[null,null,14,{"$f":"Import!M5000","v":0},null,{"$f":"Import!M5018","v":0},null,{"$f":"Import!M5036","v":0},null,{"$f":"Import!M5054","v":0},null,{"$f":"Import!M5072","v":0},null,null,null,null,null,null,null,null,null,null,"brrt_YearsSinceIssueAxis_brrt_FourteenYearsMember"]
[null,null,15,{"$f":"Import!M5001","v":0},null,{"$f":"Import!M5019","v":0},null,{"$f":"Import!M5037","v":0},null,{"$f":"Import!M5055","v":0},null,{"$f":"Import!M5073","v":0},null,null,null,null,null,null,null,null,null,null,"brrt_YearsSinceIssueAxis_brrt_FifteenYearsMember"]
[null,null,">15",{"$f":"Import!M5002","v":0},null,{"$f":"Import!M5020","v":0},null,{"$f":"Import!M5038","v":0},null,{"$f":"Import!M5056","v":0},null,{"$f":"Import!M5074","v":0},null,null,null,null,null,null,null,null,null,null,"brrt_YearsSinceIssueAxis_brrt_MoreThanFifteenYearsMember"]
[null,null,null,{"$f":"SUM(D31:D47)","v":0},null,{"$f":"SUM(F31:F47)","v":0},null,{"$f":"SUM(H31:H47)","v":0},null,{"$f":"SUM(J31:J47)","v":0},null,{"$f":"SUM(L31:L47)","v":0},null,null,null,null,null,null,null,null,null,null,"brrt_YearsSinceIssueAxis_brrt_TotalMember"]
[]
[]
[null,null,null,"Bermuda EBS Best Estimate Provisions ",null,"Policy Count",null,"Account Value",null,"Guarantee Value",null,"Net Amount At Risk"]
[]
[null,null,"In/Out of the Money",{"$f":"CONFIGURATION!$D$12","v":" ('000s)"},null,null,null,{"$f":"CONFIGURATION!$D$12","v":" ('000s)"},null,{"$f":"CONFIGURATION!$D$12","v":" ('000s)"},null,{"$f":"CONFIGURATION!$D$12","v":" ('000s)"}]
[null,null,"<-15%",{"$f":"Import!M5076","v":0},null,{"$f":"Import!M5082","v":0},null,{"$f":"Import!M5088","v":0},null,{"$f":"Import!M5094","v":0},null,{"$f":"Import!M5100","v":0},null,null,null,null,null,null,null,null,null,null,"brrt_InOutOfMoneyAxis_brrt_LessThanMinus15PercentMember"]
[null,null,"(-15%) - (-5%)",{"$f":"Import!M5077","v":0},null,{"$f":"Import!M5083","v":0},null,{"$f":"Import!M5089","v":0},null,{"$f":"Import!M5095","v":0},null,{"$f":"Import!M5101","v":0},null,null,null,null,null,null,null,null,null,null,"brrt_InOutOfMoneyAxis_brrt_MoreThanMinus15LessThanMinus5PercentMember"]
[null,null,"(-5%) - (+5%)",{"$f":"Import!M5078","v":0},null,{"$f":"Import!M5084","v":0},null,{"$f":"Import!M5090","v":0},null,{"$f":"Import!M5096","v":0},null,{"$f":"Import!M5102","v":0},null,null,null,null,null,null,null,null,null,null,"brrt_InOutOfMoneyAxis_brrt_MoreThanMinus5LessThanPlus5PercentMember"]
[null,null,"(+5%) - (+15%)",{"$f":"Import!M5079","v":0},null,{"$f":"Import!M5085","v":0},null,{"$f":"Import!M5091","v":0},null,{"$f":"Import!M5097","v":0},null,{"$f":"Import!M5103","v":0},null,null,null,null,null,null,null,null,null,null,"brrt_InOutOfMoneyAxis_brrt_MoreThanPlus5LessThanPlus15PercentMember"]
[null,null,">+15%",{"$f":"Import!M5080","v":0},null,{"$f":"Import!M5086","v":0},null,{"$f":"Import!M5092","v":0},null,{"$f":"Import!M5098","v":0},null,{"$f":"Import!M5104","v":0},null,null,null,null,null,null,null,null,null,null,"brrt_InOutOfMoneyAxis_brrt_MoreThanPlus15PercentMember"]
[null,null,null,{"$f":"SUM(D54:D58)","v":0},null,{"$f":"SUM(F54:F58)","v":0},null,{"$f":"SUM(H54:H58)","v":0},null,{"$f":"SUM(J54:J58)","v":0},null,{"$f":"SUM(L54:L58)","v":0},null,null,null,null,null,null,null,null,null,null,"brrt_InOutOfMoneyAxis_brrt_TotalMember"]
[]
[]
[null,null,null,"Bermuda EBS Best Estimate Provisions ",null,"Policy Count",null,"Account Value",null,"Guarantee Value",null,"Net Amount At Risk"]
[]
[null,null,"Fund Volatility",{"$f":"CONFIGURATION!$D$12","v":" ('000s)"},null,null,null,{"$f":"CONFIGURATION!$D$12","v":" ('000s)"},null,{"$f":"CONFIGURATION!$D$12","v":" ('000s)"},null,{"$f":"CONFIGURATION!$D$12","v":" ('000s)"}]
[null,null," 0-10% ",{"$f":"Import!M5106","v":0},null,{"$f":"Import!M5110","v":0},null,{"$f":"Import!M5114","v":0},null,{"$f":"Import!M5118","v":0},null,{"$f":"Import!M5122","v":0},null,null,null,null,null,null,null,null,null,null,"brrt_VolatilityAxis_brrt_LessEqual10PercentMember"]
[null,null," 10-20% ",{"$f":"Import!M5107","v":0},null,{"$f":"Import!M5111","v":0},null,{"$f":"Import!M5115","v":0},null,{"$f":"Import!M5119","v":0},null,{"$f":"Import!M5123","v":0},null,null,null,null,null,null,null,null,null,null,"brrt_VolatilityAxis_brrt_MoreThan10LessEqual20PercentMember"]
[null,null," 20%+ ",{"$f":"Import!M5108","v":0},null,{"$f":"Import!M5112","v":0},null,{"$f":"Import!M5116","v":0},null,{"$f":"Import!M5120","v":0},null,{"$f":"Import!M5124","v":0},null,null,null,null,null,null,null,null,null,null,"brrt_VolatilityAxis_brrt_MoreThan20PercentMember"]
[null,null,null,{"$f":"SUM(D65:D67)","v":0},null,{"$f":"SUM(F65:F67)","v":0},null,{"$f":"SUM(H65:H67)","v":0},null,{"$f":"SUM(J65:J67)","v":0},null,{"$f":"SUM(L65:L67)","v":0},null,null,null,null,null,null,null,null,null,null,"brrt_VolatilityAxis_brrt_TotalMember"]
[]
[]
[null,null,null,"Bermuda EBS Best Estimate Provisions",null,"Policy Count",null,"Account Value",null,"Guarantee Value",null,"Net Amount At Risk"]
[]
[null,null,"Years to Next Maturity (GMAB Only)",{"$f":"CONFIGURATION!$D$12","v":" ('000s)"},null,null,null,{"$f":"CONFIGURATION!$D$12","v":" ('000s)"},null,{"$f":"CONFIGURATION!$D$12","v":" ('000s)"},null,{"$f":"CONFIGURATION!$D$12","v":" ('000s)"}]
[null,null,0,{"$f":"Import!M5126","v":0},null,{"$f":"Import!M5138","v":0},null,{"$f":"Import!M5150","v":0},null,{"$f":"Import!M5162","v":0},null,{"$f":"Import!M5174","v":0},null,null,null,null,null,null,null,null,null,null,"brrt_YearsToNextMaturityAxis_brrt_ZeroYearMember"]
[null,null,1,{"$f":"Import!M5127","v":0},null,{"$f":"Import!M5139","v":0},null,{"$f":"Import!M5151","v":0},null,{"$f":"Import!M5163","v":0},null,{"$f":"Import!M5175","v":0},null,null,null,null,null,null,null,null,null,null,"brrt_YearsToNextMaturityAxis_brrt_OneYearMember"]
[null,null,2,{"$f":"Import!M5128","v":0},null,{"$f":"Import!M5140","v":0},null,{"$f":"Import!M5152","v":0},null,{"$f":"Import!M5164","v":0},null,{"$f":"Import!M5176","v":0},null,null,null,null,null,null,null,null,null,null,"brrt_YearsToNextMaturityAxis_brrt_TwoYearsMember"]
[null,null,3,{"$f":"Import!M5129","v":0},null,{"$f":"Import!M5141","v":0},null,{"$f":"Import!M5153","v":0},null,{"$f":"Import!M5165","v":0},null,{"$f":"Import!M5177","v":0},null,null,null,null,null,null,null,null,null,null,"brrt_YearsToNextMaturityAxis_brrt_ThreeYearsMember"]
[null,null,4,{"$f":"Import!M5130","v":0},null,{"$f":"Import!M5142","v":0},null,{"$f":"Import!M5154","v":0},null,{"$f":"Import!M5166","v":0},null,{"$f":"Import!M5178","v":0},null,null,null,null,null,null,null,null,null,null,"brrt_YearsToNextMaturityAxis_brrt_FourYearsMember"]
[null,null,5,{"$f":"Import!M5131","v":0},null,{"$f":"Import!M5143","v":0},null,{"$f":"Import!M5155","v":0},null,{"$f":"Import!M5167","v":0},null,{"$f":"Import!M5179","v":0},null,null,null,null,null,null,null,null,null,null,"brrt_YearsToNextMaturityAxis_brrt_FiveYearsMember"]
[null,null,6,{"$f":"Import!M5132","v":0},null,{"$f":"Import!M5144","v":0},null,{"$f":"Import!M5156","v":0},null,{"$f":"Import!M5168","v":0},null,{"$f":"Import!M5180","v":0},null,null,null,null,null,null,null,null,null,null,"brrt_YearsToNextMaturityAxis_brrt_SixYearsMember"]
[" ",null,7,{"$f":"Import!M5133","v":0},null,{"$f":"Import!M5145","v":0},null,{"$f":"Import!M5157","v":0},null,{"$f":"Import!M5169","v":0},null,{"$f":"Import!M5181","v":0},null,null,null,null,null,null,null,null,null,null,"brrt_YearsToNextMaturityAxis_brrt_SevenYearsMember"]
[null,null,8,{"$f":"Import!M5134","v":0},null,{"$f":"Import!M5146","v":0},null,{"$f":"Import!M5158","v":0},null,{"$f":"Import!M5170","v":0},null,{"$f":"Import!M5182","v":0},null,null,null,null,null,null,null,null,null,null,"brrt_YearsToNextMaturityAxis_brrt_EightYearsMember"]
[null,null,9,{"$f":"Import!M5135","v":0},null,{"$f":"Import!M5147","v":0},null,{"$f":"Import!M5159","v":0},null,{"$f":"Import!M5171","v":0},null,{"$f":"Import!M5183","v":0},null,null,null,null,null,null,null,null,null,null,"brrt_YearsToNextMaturityAxis_brrt_NineYearsMember"]
[null,null,">10",{"$f":"Import!M5136","v":0},null,{"$f":"Import!M5148","v":0},null,{"$f":"Import!M5160","v":0},null,{"$f":"Import!M5172","v":0},null,{"$f":"Import!M5184","v":0},null,null,null,null,null,null,null,null,null,null,"brrt_YearsToNextMaturityAxis_brrt_MoreThanTenYearsMember"]
[null,null,null,{"$f":"SUM(D74:D84)","v":0},null,{"$f":"SUM(F74:F84)","v":0},null,{"$f":"SUM(H74:H84)","v":0},null,{"$f":"SUM(J74:J84)","v":0},null,{"$f":"SUM(L74:L84)","v":0},null,null,null,null,null,null,null,null,null,null,"brrt_YearsToNextMaturityAxis_brrt_TotalMember"]
[]
[]
[null,"Notes"]
[null,"1.  Factors should be applied to Net Amount at Risk (NAR) defined as:"]
[null,null,"GMAB","Total claim payable if all contracts mature immediately"]
[null,null,"GMDB","Total claim amount payable upon immediate death of all policyholders"]
[null,null,"GMIB","Total claim payable upon full and immediate annuitization of all policies using an 80% factor applied to the GV (the 80% represents the ratio between current market annuitization factors and the guaranteed annuitization factors)"]
[null,null,"GMWB","Total claim payable if 100% of the guaranteed withdrawal benefit base in excess of the current account value is withdrawn immediately"]
[null,null,"GEEB","Total guaranteed enhanced payments upon immediate death of all policyholders"]
[]
[null,"2. Where ratchets, resets and roll-ups exist, please use the roll-up category."]
[]
[null,"3.  NAR is net of reinsurance."]
[]
[null,"4.  The proportion used for the account value under reinsurance is the proportion used for NAR."]
[]
[null,"5.  Volatility is defined as the annual volatility of the fund.  In the case where there is no, or limited, history of the fund, use the volatility of the benchmark."]
[]
[null,"6 Bermuda EBS best estimate provisions are to be calculated in accordance with Economic Balance Sheet valuation principals under Schedule XIV\n"]
[]
[]
[]
[null,null,{"$f":"IF(C3=\"\",\"\",TEXT(DATE(YEAR(C3+1)-1,MONTH(C3+1),DAY(C3+1)),\"mm/dd/yyyy\"))","v":"01/01/2019"}]
[null,null,{"$f":"IF(C3=\"\",\"\",TEXT(C3,\"mm/dd/yyyy\"))","v":"12/31/2019"}]
[null,null,null,"brrt_BermudaStatutoryReserve",null,"brrt_PolicyCount",null,"brrt_VariableAnnuityAccountValue",null,"brrt_VariableAnnuityGuaranteedValue",null,"brrt_NetAmountAtRisk",null,null,null,null,"brrt_HedgingStatusAxis_brrt_WithoutHedgingMember",null,"brrt_HedgingStatusAxis_brrt_WithHedgingMember"]
[null,null,null,{"$f":"XBRLMap(D12,D$110&\".\"&W12,$C$108,$C$109,CONFIGURATION!$B$10,\"BMA\",CONFIGURATION!$B$1,\"bscr\",CONFIGURATION!$B$12)","v":"Mapped"},null,{"$f":"XBRLMap(F12,F$110&\".\"&W12,$C$108,$C$109,CONFIGURATION!$B$10,\"BMA\",CONFIGURATION!$B$1,\"bscr\",CONFIGURATION!$B$12)","v":"Mapped"},null,{"$f":"XBRLMap(H12,H$110&\".\"&W12,$C$108,$C$109,CONFIGURATION!$B$10,\"BMA\",CONFIGURATION!$B$1,\"bscr\",CONFIGURATION!$B$12)","v":"Mapped"},null,{"$f":"XBRLMap(J12,J$110&\".\"&W12,$C$108,$C$109,CONFIGURATION!$B$10,\"BMA\",CONFIGURATION!$B$1,\"bscr\",CONFIGURATION!$B$12)","v":"Mapped"},null,{"$f":"XBRLMap(L12,L$110&\".\"&W12,$C$108,$C$109,CONFIGURATION!$B$10,\"BMA\",CONFIGURATION!$B$1,\"bscr\",CONFIGURATION!$B$12)","v":"Mapped"},null,null,"brrt_StressesToActuarialAssumptionsForMortalityPolicyholderBehaviour"]
[null,null,null,{"$f":"XBRLMap(D13,D$110&\".\"&W13,$C$108,$C$109,CONFIGURATION!$B$10,\"BMA\",CONFIGURATION!$B$1,\"bscr\",CONFIGURATION!$B$12)","v":"Mapped"},null,{"$f":"XBRLMap(F13,F$110&\".\"&W13,$C$108,$C$109,CONFIGURATION!$B$10,\"BMA\",CONFIGURATION!$B$1,\"bscr\",CONFIGURATION!$B$12)","v":"Mapped"},null,{"$f":"XBRLMap(H13,H$110&\".\"&W13,$C$108,$C$109,CONFIGURATION!$B$10,\"BMA\",CONFIGURATION!$B$1,\"bscr\",CONFIGURATION!$B$12)","v":"Mapped"},null,{"$f":"XBRLMap(J13,J$110&\".\"&W13,$C$108,$C$109,CONFIGURATION!$B$10,\"BMA\",CONFIGURATION!$B$1,\"bscr\",CONFIGURATION!$B$12)","v":"Mapped"},null,{"$f":"XBRLMap(L13,L$110&\".\"&W13,$C$108,$C$109,CONFIGURATION!$B$10,\"BMA\",CONFIGURATION!$B$1,\"bscr\",CONFIGURATION!$B$12)","v":"Mapped"},null,null,"brrt_DescriptionOfActuarialStressTest",null,"brrt_ValueWithoutHedging",null,"brrt_ValueWithHedging"]
[null,null,null,{"$f":"XBRLMap(D14,D$110&\".\"&W14,$C$108,$C$109,CONFIGURATION!$B$10,\"BMA\",CONFIGURATION!$B$1,\"bscr\",CONFIGURATION!$B$12)","v":"Mapped"},null,{"$f":"XBRLMap(F14,F$110&\".\"&W14,$C$108,$C$109,CONFIGURATION!$B$10,\"BMA\",CONFIGURATION!$B$1,\"bscr\",CONFIGURATION!$B$12)","v":"Mapped"},null,{"$f":"XBRLMap(H14,H$110&\".\"&W14,$C$108,$C$109,CONFIGURATION!$B$10,\"BMA\",CONFIGURATION!$B$1,\"bscr\",CONFIGURATION!$B$12)","v":"Mapped"},null,{"$f":"XBRLMap(J14,J$110&\".\"&W14,$C$108,$C$109,CONFIGURATION!$B$10,\"BMA\",CONFIGURATION!$B$1,\"bscr\",CONFIGURATION!$B$12)","v":"Mapped"},null,{"$f":"XBRLMap(L14,L$110&\".\"&W14,$C$108,$C$109,CONFIGURATION!$B$10,\"BMA\",CONFIGURATION!$B$1,\"bscr\",CONFIGURATION!$B$12)","v":"Mapped"},null,null,null,null,{"$f":"XBRLMap(Q12,AA$12&\".\"&Q110,$C$108,$C$109,CONFIGURATION!$B$10,\"BMA\",CONFIGURATION!$B$1,\"bscr\",CONFIGURATION!$B$12)","v":"Mapped"},null,{"$f":"XBRLMap(S12,AA$12&\".\"&S110,$C$108,$C$109,CONFIGURATION!$B$10,\"BMA\",CONFIGURATION!$B$1,\"bscr\",CONFIGURATION!$B$12)","v":"Mapped"}]
[null,null,null,{"$f":"XBRLMap(D15,D$110&\".\"&W15,$C$108,$C$109,CONFIGURATION!$B$10,\"BMA\",CONFIGURATION!$B$1,\"bscr\",CONFIGURATION!$B$12)","v":"Mapped"},null,{"$f":"XBRLMap(F15,F$110&\".\"&W15,$C$108,$C$109,CONFIGURATION!$B$10,\"BMA\",CONFIGURATION!$B$1,\"bscr\",CONFIGURATION!$B$12)","v":"Mapped"},null,{"$f":"XBRLMap(H15,H$110&\".\"&W15,$C$108,$C$109,CONFIGURATION!$B$10,\"BMA\",CONFIGURATION!$B$1,\"bscr\",CONFIGURATION!$B$12)","v":"Mapped"},null,{"$f":"XBRLMap(J15,J$110&\".\"&W15,$C$108,$C$109,CONFIGURATION!$B$10,\"BMA\",CONFIGURATION!$B$1,\"bscr\",CONFIGURATION!$B$12)","v":"Mapped"},null,{"$f":"XBRLMap(L15,L$110&\".\"&W15,$C$108,$C$109,CONFIGURATION!$B$10,\"BMA\",CONFIGURATION!$B$1,\"bscr\",CONFIGURATION!$B$12)","v":"Mapped"}]
[null,null,null,{"$f":"XBRLMap(D16,D$110&\".\"&W16,$C$108,$C$109,CONFIGURATION!$B$10,\"BMA\",CONFIGURATION!$B$1,\"bscr\",CONFIGURATION!$B$12)","v":"Mapped"},null,{"$f":"XBRLMap(F16,F$110&\".\"&W16,$C$108,$C$109,CONFIGURATION!$B$10,\"BMA\",CONFIGURATION!$B$1,\"bscr\",CONFIGURATION!$B$12)","v":"Mapped"},null,{"$f":"XBRLMap(H16,H$110&\".\"&W16,$C$108,$C$109,CONFIGURATION!$B$10,\"BMA\",CONFIGURATION!$B$1,\"bscr\",CONFIGURATION!$B$12)","v":"Mapped"},null,{"$f":"XBRLMap(J16,J$110&\".\"&W16,$C$108,$C$109,CONFIGURATION!$B$10,\"BMA\",CONFIGURATION!$B$1,\"bscr\",CONFIGURATION!$B$12)","v":"Mapped"},null,{"$f":"XBRLMap(L16,L$110&\".\"&W16,$C$108,$C$109,CONFIGURATION!$B$10,\"BMA\",CONFIGURATION!$B$1,\"bscr\",CONFIGURATION!$B$12)","v":"Mapped"}]
[null,null,null,{"$f":"XBRLMap(D17,D$110&\".\"&W17,$C$108,$C$109,CONFIGURATION!$B$10,\"BMA\",CONFIGURATION!$B$1,\"bscr\",CONFIGURATION!$B$12)","v":"Mapped"},null,{"$f":"XBRLMap(F17,F$110&\".\"&W17,$C$108,$C$109,CONFIGURATION!$B$10,\"BMA\",CONFIGURATION!$B$1,\"bscr\",CONFIGURATION!$B$12)","v":"Mapped"},null,{"$f":"XBRLMap(H17,H$110&\".\"&W17,$C$108,$C$109,CONFIGURATION!$B$10,\"BMA\",CONFIGURATION!$B$1,\"bscr\",CONFIGURATION!$B$12)","v":"Mapped"},null,{"$f":"XBRLMap(J17,J$110&\".\"&W17,$C$108,$C$109,CONFIGURATION!$B$10,\"BMA\",CONFIGURATION!$B$1,\"bscr\",CONFIGURATION!$B$12)","v":"Mapped"},null,{"$f":"XBRLMap(L17,L$110&\".\"&W17,$C$108,$C$109,CONFIGURATION!$B$10,\"BMA\",CONFIGURATION!$B$1,\"bscr\",CONFIGURATION!$B$12)","v":"Mapped"},null,null,null,null,{"$f":"XBRLMap(Q15,AA$15&\".\"&Q110,$C$108,$C$109,CONFIGURATION!$B$10,\"BMA\",CONFIGURATION!$B$1,\"bscr\",CONFIGURATION!$B$12)","v":"Mapped"},null,{"$f":"XBRLMap(S15,AA$15&\".\"&S110,$C$108,$C$109,CONFIGURATION!$B$10,\"BMA\",CONFIGURATION!$B$1,\"bscr\",CONFIGURATION!$B$12)","v":"Mapped"}]
[null,null,null,{"$f":"XBRLMap(D18,D$110&\".\"&W18,$C$108,$C$109,CONFIGURATION!$B$10,\"BMA\",CONFIGURATION!$B$1,\"bscr\",CONFIGURATION!$B$12)","v":"Mapped"},null,{"$f":"XBRLMap(F18,F$110&\".\"&W18,$C$108,$C$109,CONFIGURATION!$B$10,\"BMA\",CONFIGURATION!$B$1,\"bscr\",CONFIGURATION!$B$12)","v":"Mapped"},null,{"$f":"XBRLMap(H18,H$110&\".\"&W18,$C$108,$C$109,CONFIGURATION!$B$10,\"BMA\",CONFIGURATION!$B$1,\"bscr\",CONFIGURATION!$B$12)","v":"Mapped"},null,{"$f":"XBRLMap(J18,J$110&\".\"&W18,$C$108,$C$109,CONFIGURATION!$B$10,\"BMA\",CONFIGURATION!$B$1,\"bscr\",CONFIGURATION!$B$12)","v":"Mapped"},null,{"$f":"XBRLMap(L18,L$110&\".\"&W18,$C$108,$C$109,CONFIGURATION!$B$10,\"BMA\",CONFIGURATION!$B$1,\"bscr\",CONFIGURATION!$B$12)","v":"Mapped"},null,null,null,null,{"$f":"XBRLMap(Q16,AA$16&\".\"&Q110,$C$108,$C$109,CONFIGURATION!$B$10,\"BMA\",CONFIGURATION!$B$1,\"bscr\",CONFIGURATION!$B$12)","v":"Mapped"},null,{"$f":"XBRLMap(S16,AA$16&\".\"&S110,$C$108,$C$109,CONFIGURATION!$B$10,\"BMA\",CONFIGURATION!$B$1,\"bscr\",CONFIGURATION!$B$12)","v":"Mapped"}]
[null,null,null,{"$f":"XBRLMap(D19,D$110&\".\"&W19,$C$108,$C$109,CONFIGURATION!$B$10,\"BMA\",CONFIGURATION!$B$1,\"bscr\",CONFIGURATION!$B$12)","v":"Mapped"},null,{"$f":"XBRLMap(F19,F$110&\".\"&W19,$C$108,$C$109,CONFIGURATION!$B$10,\"BMA\",CONFIGURATION!$B$1,\"bscr\",CONFIGURATION!$B$12)","v":"Mapped"},null,{"$f":"XBRLMap(H19,H$110&\".\"&W19,$C$108,$C$109,CONFIGURATION!$B$10,\"BMA\",CONFIGURATION!$B$1,\"bscr\",CONFIGURATION!$B$12)","v":"Mapped"},null,{"$f":"XBRLMap(J19,J$110&\".\"&W19,$C$108,$C$109,CONFIGURATION!$B$10,\"BMA\",CONFIGURATION!$B$1,\"bscr\",CONFIGURATION!$B$12)","v":"Mapped"},null,{"$f":"XBRLMap(L19,L$110&\".\"&W19,$C$108,$C$109,CONFIGURATION!$B$10,\"BMA\",CONFIGURATION!$B$1,\"bscr\",CONFIGURATION!$B$12)","v":"Mapped"},null,null,null,null,{"$f":"XBRLMap(Q17,AA$17&\".\"&Q110,$C$108,$C$109,CONFIGURATION!$B$10,\"BMA\",CONFIGURATION!$B$1,\"bscr\",CONFIGURATION!$B$12)","v":"Mapped"},null,{"$f":"XBRLMap(S17,AA$17&\".\"&S110,$C$108,$C$109,CONFIGURATION!$B$10,\"BMA\",CONFIGURATION!$B$1,\"bscr\",CONFIGURATION!$B$12)","v":"Mapped"}]
[null,null,null,{"$f":"XBRLMap(D20,D$110&\".\"&W20,$C$108,$C$109,CONFIGURATION!$B$10,\"BMA\",CONFIGURATION!$B$1,\"bscr\",CONFIGURATION!$B$12)","v":"Mapped"},null,{"$f":"XBRLMap(F20,F$110&\".\"&W20,$C$108,$C$109,CONFIGURATION!$B$10,\"BMA\",CONFIGURATION!$B$1,\"bscr\",CONFIGURATION!$B$12)","v":"Mapped"},null,{"$f":"XBRLMap(H20,H$110&\".\"&W20,$C$108,$C$109,CONFIGURATION!$B$10,\"BMA\",CONFIGURATION!$B$1,\"bscr\",CONFIGURATION!$B$12)","v":"Mapped"},null,{"$f":"XBRLMap(J20,J$110&\".\"&W20,$C$108,$C$109,CONFIGURATION!$B$10,\"BMA\",CONFIGURATION!$B$1,\"bscr\",CONFIGURATION!$B$12)","v":"Mapped"},null,{"$f":"XBRLMap(L20,L$110&\".\"&W20,$C$108,$C$109,CONFIGURATION!$B$10,\"BMA\",CONFIGURATION!$B$1,\"bscr\",CONFIGURATION!$B$12)","v":"Mapped"}]
[null,null,null,{"$f":"XBRLMap(D21,D$110&\".\"&W21,$C$108,$C$109,CONFIGURATION!$B$10,\"BMA\",CONFIGURATION!$B$1,\"bscr\",CONFIGURATION!$B$12)","v":"Mapped"},null,{"$f":"XBRLMap(F21,F$110&\".\"&W21,$C$108,$C$109,CONFIGURATION!$B$10,\"BMA\",CONFIGURATION!$B$1,\"bscr\",CONFIGURATION!$B$12)","v":"Mapped"},null,{"$f":"XBRLMap(H21,H$110&\".\"&W21,$C$108,$C$109,CONFIGURATION!$B$10,\"BMA\",CONFIGURATION!$B$1,\"bscr\",CONFIGURATION!$B$12)","v":"Mapped"},null,{"$f":"XBRLMap(J21,J$110&\".\"&W21,$C$108,$C$109,CONFIGURATION!$B$10,\"BMA\",CONFIGURATION!$B$1,\"bscr\",CONFIGURATION!$B$12)","v":"Mapped"},null,{"$f":"XBRLMap(L21,L$110&\".\"&W21,$C$108,$C$109,CONFIGURATION!$B$10,\"BMA\",CONFIGURATION!$B$1,\"bscr\",CONFIGURATION!$B$12)","v":"Mapped"}]
[null,null,null,{"$f":"XBRLMap(D22,D$110&\".\"&W22,$C$108,$C$109,CONFIGURATION!$B$10,\"BMA\",CONFIGURATION!$B$1,\"bscr\",CONFIGURATION!$B$12)","v":"Mapped"},null,{"$f":"XBRLMap(F22,F$110&\".\"&W22,$C$108,$C$109,CONFIGURATION!$B$10,\"BMA\",CONFIGURATION!$B$1,\"bscr\",CONFIGURATION!$B$12)","v":"Mapped"},null,{"$f":"XBRLMap(H22,H$110&\".\"&W22,$C$108,$C$109,CONFIGURATION!$B$10,\"BMA\",CONFIGURATION!$B$1,\"bscr\",CONFIGURATION!$B$12)","v":"Mapped"},null,{"$f":"XBRLMap(J22,J$110&\".\"&W22,$C$108,$C$109,CONFIGURATION!$B$10,\"BMA\",CONFIGURATION!$B$1,\"bscr\",CONFIGURATION!$B$12)","v":"Mapped"},null,{"$f":"XBRLMap(L22,L$110&\".\"&W22,$C$108,$C$109,CONFIGURATION!$B$10,\"BMA\",CONFIGURATION!$B$1,\"bscr\",CONFIGURATION!$B$12)","v":"Mapped"}]
[null,null,null,{"$f":"XBRLMap(D23,D$110&\".\"&W23,$C$108,$C$109,CONFIGURATION!$B$10,\"BMA\",CONFIGURATION!$B$1,\"bscr\",CONFIGURATION!$B$12)","v":"Mapped"},null,{"$f":"XBRLMap(F23,F$110&\".\"&W23,$C$108,$C$109,CONFIGURATION!$B$10,\"BMA\",CONFIGURATION!$B$1,\"bscr\",CONFIGURATION!$B$12)","v":"Mapped"},null,{"$f":"XBRLMap(H23,H$110&\".\"&W23,$C$108,$C$109,CONFIGURATION!$B$10,\"BMA\",CONFIGURATION!$B$1,\"bscr\",CONFIGURATION!$B$12)","v":"Mapped"},null,{"$f":"XBRLMap(J23,J$110&\".\"&W23,$C$108,$C$109,CONFIGURATION!$B$10,\"BMA\",CONFIGURATION!$B$1,\"bscr\",CONFIGURATION!$B$12)","v":"Mapped"},null,{"$f":"XBRLMap(L23,L$110&\".\"&W23,$C$108,$C$109,CONFIGURATION!$B$10,\"BMA\",CONFIGURATION!$B$1,\"bscr\",CONFIGURATION!$B$12)","v":"Mapped"},null,null,null,null,null,null,{"$f":"IF(OR(O20<>\"\",Q20<>\"\",S20<>\"\"),XBRLMapTuple($O$111,C$108,C$109,\"BMA\",CONFIGURATION!$B$1,\"bscr\",\"\",CONFIGURATION!$B$12,$O$112,O20,$Q$112,Q20,$S$112,S20),\"emptyTuple\")","v":"Mapped"}]
[null,null,null,{"$f":"XBRLMap(D24,D$110&\".\"&W24,$C$108,$C$109,CONFIGURATION!$B$10,\"BMA\",CONFIGURATION!$B$1,\"bscr\",CONFIGURATION!$B$12)","v":"Mapped"},null,{"$f":"XBRLMap(F24,F$110&\".\"&W24,$C$108,$C$109,CONFIGURATION!$B$10,\"BMA\",CONFIGURATION!$B$1,\"bscr\",CONFIGURATION!$B$12)","v":"Mapped"},null,{"$f":"XBRLMap(H24,H$110&\".\"&W24,$C$108,$C$109,CONFIGURATION!$B$10,\"BMA\",CONFIGURATION!$B$1,\"bscr\",CONFIGURATION!$B$12)","v":"Mapped"},null,{"$f":"XBRLMap(J24,J$110&\".\"&W24,$C$108,$C$109,CONFIGURATION!$B$10,\"BMA\",CONFIGURATION!$B$1,\"bscr\",CONFIGURATION!$B$12)","v":"Mapped"},null,{"$f":"XBRLMap(L24,L$110&\".\"&W24,$C$108,$C$109,CONFIGURATION!$B$10,\"BMA\",CONFIGURATION!$B$1,\"bscr\",CONFIGURATION!$B$12)","v":"Mapped"},null,null,null,null,null,null,{"$f":"IF(OR(O21<>\"\",Q21<>\"\",S21<>\"\"),XBRLMapTuple($O$111,C$108,C$109,\"BMA\",CONFIGURATION!$B$1,\"bscr\",\"\",CONFIGURATION!$B$12,$O$112,O21,$Q$112,Q21,$S$112,S21),\"emptyTuple\")","v":"Mapped"}]
[null,null,null,{"$f":"XBRLMap(D25,D$110&\".\"&W25,$C$108,$C$109,CONFIGURATION!$B$10,\"BMA\",CONFIGURATION!$B$1,\"bscr\",CONFIGURATION!$B$12)","v":"Mapped"},null,{"$f":"XBRLMap(F25,F$110&\".\"&W25,$C$108,$C$109,CONFIGURATION!$B$10,\"BMA\",CONFIGURATION!$B$1,\"bscr\",CONFIGURATION!$B$12)","v":"Mapped"},null,{"$f":"XBRLMap(H25,H$110&\".\"&W25,$C$108,$C$109,CONFIGURATION!$B$10,\"BMA\",CONFIGURATION!$B$1,\"bscr\",CONFIGURATION!$B$12)","v":"Mapped"},null,{"$f":"XBRLMap(J25,J$110&\".\"&W25,$C$108,$C$109,CONFIGURATION!$B$10,\"BMA\",CONFIGURATION!$B$1,\"bscr\",CONFIGURATION!$B$12)","v":"Mapped"},null,{"$f":"XBRLMap(L25,L$110&\".\"&W25,$C$108,$C$109,CONFIGURATION!$B$10,\"BMA\",CONFIGURATION!$B$1,\"bscr\",CONFIGURATION!$B$12)","v":"Mapped"},null,null,null,null,null,null,{"$f":"IF(OR(O22<>\"\",Q22<>\"\",S22<>\"\"),XBRLMapTuple($O$111,C$108,C$109,\"BMA\",CONFIGURATION!$B$1,\"bscr\",\"\",CONFIGURATION!$B$12,$O$112,O22,$Q$112,Q22,$S$112,S22),\"emptyTuple\")","v":"Mapped"}]
[null,null,null,null,null,null,null,null,null,null,null,null,null,null,null,null,null,null,{"$f":"IF(OR(O23<>\"\",Q23<>\"\",S23<>\"\"),XBRLMapTuple($O$111,C$108,C$109,\"BMA\",CONFIGURATION!$B$1,\"bscr\",\"\",CONFIGURATION!$B$12,$O$112,O23,$Q$112,Q23,$S$112,S23),\"emptyTuple\")","v":"Mapped"}]
[null,null,null,{"$f":"XBRLMap(D31,D$110&\".\"&W31,$C$108,$C$109,CONFIGURATION!$B$10,\"BMA\",CONFIGURATION!$B$1,\"bscr\",CONFIGURATION!$B$12)","v":"Mapped"},null,{"$f":"XBRLMap(F31,F$110&\".\"&W31,$C$108,$C$109,CONFIGURATION!$B$10,\"BMA\",CONFIGURATION!$B$1,\"bscr\",CONFIGURATION!$B$12)","v":"Mapped"},null,{"$f":"XBRLMap(H31,H$110&\".\"&W31,$C$108,$C$109,CONFIGURATION!$B$10,\"BMA\",CONFIGURATION!$B$1,\"bscr\",CONFIGURATION!$B$12)","v":"Mapped"},null,{"$f":"XBRLMap(J31,J$110&\".\"&W31,$C$108,$C$109,CONFIGURATION!$B$10,\"BMA\",CONFIGURATION!$B$1,\"bscr\",CONFIGURATION!$B$12)","v":"Mapped"},null,{"$f":"XBRLMap(L31,L$110&\".\"&W31,$C$108,$C$109,CONFIGURATION!$B$10,\"BMA\",CONFIGURATION!$B$1,\"bscr\",CONFIGURATION!$B$12)","v":"Mapped"}]
[null,null,null,{"$f":"XBRLMap(D32,D$110&\".\"&W32,$C$108,$C$109,CONFIGURATION!$B$10,\"BMA\",CONFIGURATION!$B$1,\"bscr\",CONFIGURATION!$B$12)","v":"Mapped"},null,{"$f":"XBRLMap(F32,F$110&\".\"&W32,$C$108,$C$109,CONFIGURATION!$B$10,\"BMA\",CONFIGURATION!$B$1,\"bscr\",CONFIGURATION!$B$12)","v":"Mapped"},null,{"$f":"XBRLMap(H32,H$110&\".\"&W32,$C$108,$C$109,CONFIGURATION!$B$10,\"BMA\",CONFIGURATION!$B$1,\"bscr\",CONFIGURATION!$B$12)","v":"Mapped"},null,{"$f":"XBRLMap(J32,J$110&\".\"&W32,$C$108,$C$109,CONFIGURATION!$B$10,\"BMA\",CONFIGURATION!$B$1,\"bscr\",CONFIGURATION!$B$12)","v":"Mapped"},null,{"$f":"XBRLMap(L32,L$110&\".\"&W32,$C$108,$C$109,CONFIGURATION!$B$10,\"BMA\",CONFIGURATION!$B$1,\"bscr\",CONFIGURATION!$B$12)","v":"Mapped"}]
[null,null,null,{"$f":"XBRLMap(D33,D$110&\".\"&W33,$C$108,$C$109,CONFIGURATION!$B$10,\"BMA\",CONFIGURATION!$B$1,\"bscr\",CONFIGURATION!$B$12)","v":"Mapped"},null,{"$f":"XBRLMap(F33,F$110&\".\"&W33,$C$108,$C$109,CONFIGURATION!$B$10,\"BMA\",CONFIGURATION!$B$1,\"bscr\",CONFIGURATION!$B$12)","v":"Mapped"},null,{"$f":"XBRLMap(H33,H$110&\".\"&W33,$C$108,$C$109,CONFIGURATION!$B$10,\"BMA\",CONFIGURATION!$B$1,\"bscr\",CONFIGURATION!$B$12)","v":"Mapped"},null,{"$f":"XBRLMap(J33,J$110&\".\"&W33,$C$108,$C$109,CONFIGURATION!$B$10,\"BMA\",CONFIGURATION!$B$1,\"bscr\",CONFIGURATION!$B$12)","v":"Mapped"},null,{"$f":"XBRLMap(L33,L$110&\".\"&W33,$C$108,$C$109,CONFIGURATION!$B$10,\"BMA\",CONFIGURATION!$B$1,\"bscr\",CONFIGURATION!$B$12)","v":"Mapped"}]
[null,null,null,{"$f":"XBRLMap(D34,D$110&\".\"&W34,$C$108,$C$109,CONFIGURATION!$B$10,\"BMA\",CONFIGURATION!$B$1,\"bscr\",CONFIGURATION!$B$12)","v":"Mapped"},null,{"$f":"XBRLMap(F34,F$110&\".\"&W34,$C$108,$C$109,CONFIGURATION!$B$10,\"BMA\",CONFIGURATION!$B$1,\"bscr\",CONFIGURATION!$B$12)","v":"Mapped"},null,{"$f":"XBRLMap(H34,H$110&\".\"&W34,$C$108,$C$109,CONFIGURATION!$B$10,\"BMA\",CONFIGURATION!$B$1,\"bscr\",CONFIGURATION!$B$12)","v":"Mapped"},null,{"$f":"XBRLMap(J34,J$110&\".\"&W34,$C$108,$C$109,CONFIGURATION!$B$10,\"BMA\",CONFIGURATION!$B$1,\"bscr\",CONFIGURATION!$B$12)","v":"Mapped"},null,{"$f":"XBRLMap(L34,L$110&\".\"&W34,$C$108,$C$109,CONFIGURATION!$B$10,\"BMA\",CONFIGURATION!$B$1,\"bscr\",CONFIGURATION!$B$12)","v":"Mapped"}]
[null,null,null,{"$f":"XBRLMap(D35,D$110&\".\"&W35,$C$108,$C$109,CONFIGURATION!$B$10,\"BMA\",CONFIGURATION!$B$1,\"bscr\",CONFIGURATION!$B$12)","v":"Mapped"},null,{"$f":"XBRLMap(F35,F$110&\".\"&W35,$C$108,$C$109,CONFIGURATION!$B$10,\"BMA\",CONFIGURATION!$B$1,\"bscr\",CONFIGURATION!$B$12)","v":"Mapped"},null,{"$f":"XBRLMap(H35,H$110&\".\"&W35,$C$108,$C$109,CONFIGURATION!$B$10,\"BMA\",CONFIGURATION!$B$1,\"bscr\",CONFIGURATION!$B$12)","v":"Mapped"},null,{"$f":"XBRLMap(J35,J$110&\".\"&W35,$C$108,$C$109,CONFIGURATION!$B$10,\"BMA\",CONFIGURATION!$B$1,\"bscr\",CONFIGURATION!$B$12)","v":"Mapped"},null,{"$f":"XBRLMap(L35,L$110&\".\"&W35,$C$108,$C$109,CONFIGURATION!$B$10,\"BMA\",CONFIGURATION!$B$1,\"bscr\",CONFIGURATION!$B$12)","v":"Mapped"}]
[null,null,null,{"$f":"XBRLMap(D36,D$110&\".\"&W36,$C$108,$C$109,CONFIGURATION!$B$10,\"BMA\",CONFIGURATION!$B$1,\"bscr\",CONFIGURATION!$B$12)","v":"Mapped"},null,{"$f":"XBRLMap(F36,F$110&\".\"&W36,$C$108,$C$109,CONFIGURATION!$B$10,\"BMA\",CONFIGURATION!$B$1,\"bscr\",CONFIGURATION!$B$12)","v":"Mapped"},null,{"$f":"XBRLMap(H36,H$110&\".\"&W36,$C$108,$C$109,CONFIGURATION!$B$10,\"BMA\",CONFIGURATION!$B$1,\"bscr\",CONFIGURATION!$B$12)","v":"Mapped"},null,{"$f":"XBRLMap(J36,J$110&\".\"&W36,$C$108,$C$109,CONFIGURATION!$B$10,\"BMA\",CONFIGURATION!$B$1,\"bscr\",CONFIGURATION!$B$12)","v":"Mapped"},null,{"$f":"XBRLMap(L36,L$110&\".\"&W36,$C$108,$C$109,CONFIGURATION!$B$10,\"BMA\",CONFIGURATION!$B$1,\"bscr\",CONFIGURATION!$B$12)","v":"Mapped"}]
[null,null,null,{"$f":"XBRLMap(D37,D$110&\".\"&W37,$C$108,$C$109,CONFIGURATION!$B$10,\"BMA\",CONFIGURATION!$B$1,\"bscr\",CONFIGURATION!$B$12)","v":"Mapped"},null,{"$f":"XBRLMap(F37,F$110&\".\"&W37,$C$108,$C$109,CONFIGURATION!$B$10,\"BMA\",CONFIGURATION!$B$1,\"bscr\",CONFIGURATION!$B$12)","v":"Mapped"},null,{"$f":"XBRLMap(H37,H$110&\".\"&W37,$C$108,$C$109,CONFIGURATION!$B$10,\"BMA\",CONFIGURATION!$B$1,\"bscr\",CONFIGURATION!$B$12)","v":"Mapped"},null,{"$f":"XBRLMap(J37,J$110&\".\"&W37,$C$108,$C$109,CONFIGURATION!$B$10,\"BMA\",CONFIGURATION!$B$1,\"bscr\",CONFIGURATION!$B$12)","v":"Mapped"},null,{"$f":"XBRLMap(L37,L$110&\".\"&W37,$C$108,$C$109,CONFIGURATION!$B$10,\"BMA\",CONFIGURATION!$B$1,\"bscr\",CONFIGURATION!$B$12)","v":"Mapped"}]
[null,null,null,{"$f":"XBRLMap(D38,D$110&\".\"&W38,$C$108,$C$109,CONFIGURATION!$B$10,\"BMA\",CONFIGURATION!$B$1,\"bscr\",CONFIGURATION!$B$12)","v":"Mapped"},null,{"$f":"XBRLMap(F38,F$110&\".\"&W38,$C$108,$C$109,CONFIGURATION!$B$10,\"BMA\",CONFIGURATION!$B$1,\"bscr\",CONFIGURATION!$B$12)","v":"Mapped"},null,{"$f":"XBRLMap(H38,H$110&\".\"&W38,$C$108,$C$109,CONFIGURATION!$B$10,\"BMA\",CONFIGURATION!$B$1,\"bscr\",CONFIGURATION!$B$12)","v":"Mapped"},null,{"$f":"XBRLMap(J38,J$110&\".\"&W38,$C$108,$C$109,CONFIGURATION!$B$10,\"BMA\",CONFIGURATION!$B$1,\"bscr\",CONFIGURATION!$B$12)","v":"Mapped"},null,{"$f":"XBRLMap(L38,L$110&\".\"&W38,$C$108,$C$109,CONFIGURATION!$B$10,\"BMA\",CONFIGURATION!$B$1,\"bscr\",CONFIGURATION!$B$12)","v":"Mapped"}]
[null,null,null,{"$f":"XBRLMap(D39,D$110&\".\"&W39,$C$108,$C$109,CONFIGURATION!$B$10,\"BMA\",CONFIGURATION!$B$1,\"bscr\",CONFIGURATION!$B$12)","v":"Mapped"},null,{"$f":"XBRLMap(F39,F$110&\".\"&W39,$C$108,$C$109,CONFIGURATION!$B$10,\"BMA\",CONFIGURATION!$B$1,\"bscr\",CONFIGURATION!$B$12)","v":"Mapped"},null,{"$f":"XBRLMap(H39,H$110&\".\"&W39,$C$108,$C$109,CONFIGURATION!$B$10,\"BMA\",CONFIGURATION!$B$1,\"bscr\",CONFIGURATION!$B$12)","v":"Mapped"},null,{"$f":"XBRLMap(J39,J$110&\".\"&W39,$C$108,$C$109,CONFIGURATION!$B$10,\"BMA\",CONFIGURATION!$B$1,\"bscr\",CONFIGURATION!$B$12)","v":"Mapped"},null,{"$f":"XBRLMap(L39,L$110&\".\"&W39,$C$108,$C$109,CONFIGURATION!$B$10,\"BMA\",CONFIGURATION!$B$1,\"bscr\",CONFIGURATION!$B$12)","v":"Mapped"}]
[null,null,null,{"$f":"XBRLMap(D40,D$110&\".\"&W40,$C$108,$C$109,CONFIGURATION!$B$10,\"BMA\",CONFIGURATION!$B$1,\"bscr\",CONFIGURATION!$B$12)","v":"Mapped"},null,{"$f":"XBRLMap(F40,F$110&\".\"&W40,$C$108,$C$109,CONFIGURATION!$B$10,\"BMA\",CONFIGURATION!$B$1,\"bscr\",CONFIGURATION!$B$12)","v":"Mapped"},null,{"$f":"XBRLMap(H40,H$110&\".\"&W40,$C$108,$C$109,CONFIGURATION!$B$10,\"BMA\",CONFIGURATION!$B$1,\"bscr\",CONFIGURATION!$B$12)","v":"Mapped"},null,{"$f":"XBRLMap(J40,J$110&\".\"&W40,$C$108,$C$109,CONFIGURATION!$B$10,\"BMA\",CONFIGURATION!$B$1,\"bscr\",CONFIGURATION!$B$12)","v":"Mapped"},null,{"$f":"XBRLMap(L40,L$110&\".\"&W40,$C$108,$C$109,CONFIGURATION!$B$10,\"BMA\",CONFIGURATION!$B$1,\"bscr\",CONFIGURATION!$B$12)","v":"Mapped"}]
[null,null,null,{"$f":"XBRLMap(D41,D$110&\".\"&W41,$C$108,$C$109,CONFIGURATION!$B$10,\"BMA\",CONFIGURATION!$B$1,\"bscr\",CONFIGURATION!$B$12)","v":"Mapped"},null,{"$f":"XBRLMap(F41,F$110&\".\"&W41,$C$108,$C$109,CONFIGURATION!$B$10,\"BMA\",CONFIGURATION!$B$1,\"bscr\",CONFIGURATION!$B$12)","v":"Mapped"},null,{"$f":"XBRLMap(H41,H$110&\".\"&W41,$C$108,$C$109,CONFIGURATION!$B$10,\"BMA\",CONFIGURATION!$B$1,\"bscr\",CONFIGURATION!$B$12)","v":"Mapped"},null,{"$f":"XBRLMap(J41,J$110&\".\"&W41,$C$108,$C$109,CONFIGURATION!$B$10,\"BMA\",CONFIGURATION!$B$1,\"bscr\",CONFIGURATION!$B$12)","v":"Mapped"},null,{"$f":"XBRLMap(L41,L$110&\".\"&W41,$C$108,$C$109,CONFIGURATION!$B$10,\"BMA\",CONFIGURATION!$B$1,\"bscr\",CONFIGURATION!$B$12)","v":"Mapped"}]
[null,null,null,{"$f":"XBRLMap(D42,D$110&\".\"&W42,$C$108,$C$109,CONFIGURATION!$B$10,\"BMA\",CONFIGURATION!$B$1,\"bscr\",CONFIGURATION!$B$12)","v":"Mapped"},null,{"$f":"XBRLMap(F42,F$110&\".\"&W42,$C$108,$C$109,CONFIGURATION!$B$10,\"BMA\",CONFIGURATION!$B$1,\"bscr\",CONFIGURATION!$B$12)","v":"Mapped"},null,{"$f":"XBRLMap(H42,H$110&\".\"&W42,$C$108,$C$109,CONFIGURATION!$B$10,\"BMA\",CONFIGURATION!$B$1,\"bscr\",CONFIGURATION!$B$12)","v":"Mapped"},null,{"$f":"XBRLMap(J42,J$110&\".\"&W42,$C$108,$C$109,CONFIGURATION!$B$10,\"BMA\",CONFIGURATION!$B$1,\"bscr\",CONFIGURATION!$B$12)","v":"Mapped"},null,{"$f":"XBRLMap(L42,L$110&\".\"&W42,$C$108,$C$109,CONFIGURATION!$B$10,\"BMA\",CONFIGURATION!$B$1,\"bscr\",CONFIGURATION!$B$12)","v":"Mapped"}]
[null,null,null,{"$f":"XBRLMap(D43,D$110&\".\"&W43,$C$108,$C$109,CONFIGURATION!$B$10,\"BMA\",CONFIGURATION!$B$1,\"bscr\",CONFIGURATION!$B$12)","v":"Mapped"},null,{"$f":"XBRLMap(F43,F$110&\".\"&W43,$C$108,$C$109,CONFIGURATION!$B$10,\"BMA\",CONFIGURATION!$B$1,\"bscr\",CONFIGURATION!$B$12)","v":"Mapped"},null,{"$f":"XBRLMap(H43,H$110&\".\"&W43,$C$108,$C$109,CONFIGURATION!$B$10,\"BMA\",CONFIGURATION!$B$1,\"bscr\",CONFIGURATION!$B$12)","v":"Mapped"},null,{"$f":"XBRLMap(J43,J$110&\".\"&W43,$C$108,$C$109,CONFIGURATION!$B$10,\"BMA\",CONFIGURATION!$B$1,\"bscr\",CONFIGURATION!$B$12)","v":"Mapped"},null,{"$f":"XBRLMap(L43,L$110&\".\"&W43,$C$108,$C$109,CONFIGURATION!$B$10,\"BMA\",CONFIGURATION!$B$1,\"bscr\",CONFIGURATION!$B$12)","v":"Mapped"}]
[null,null,null,{"$f":"XBRLMap(D44,D$110&\".\"&W44,$C$108,$C$109,CONFIGURATION!$B$10,\"BMA\",CONFIGURATION!$B$1,\"bscr\",CONFIGURATION!$B$12)","v":"Mapped"},null,{"$f":"XBRLMap(F44,F$110&\".\"&W44,$C$108,$C$109,CONFIGURATION!$B$10,\"BMA\",CONFIGURATION!$B$1,\"bscr\",CONFIGURATION!$B$12)","v":"Mapped"},null,{"$f":"XBRLMap(H44,H$110&\".\"&W44,$C$108,$C$109,CONFIGURATION!$B$10,\"BMA\",CONFIGURATION!$B$1,\"bscr\",CONFIGURATION!$B$12)","v":"Mapped"},null,{"$f":"XBRLMap(J44,J$110&\".\"&W44,$C$108,$C$109,CONFIGURATION!$B$10,\"BMA\",CONFIGURATION!$B$1,\"bscr\",CONFIGURATION!$B$12)","v":"Mapped"},null,{"$f":"XBRLMap(L44,L$110&\".\"&W44,$C$108,$C$109,CONFIGURATION!$B$10,\"BMA\",CONFIGURATION!$B$1,\"bscr\",CONFIGURATION!$B$12)","v":"Mapped"}]
[null,null,null,{"$f":"XBRLMap(D45,D$110&\".\"&W45,$C$108,$C$109,CONFIGURATION!$B$10,\"BMA\",CONFIGURATION!$B$1,\"bscr\",CONFIGURATION!$B$12)","v":"Mapped"},null,{"$f":"XBRLMap(F45,F$110&\".\"&W45,$C$108,$C$109,CONFIGURATION!$B$10,\"BMA\",CONFIGURATION!$B$1,\"bscr\",CONFIGURATION!$B$12)","v":"Mapped"},null,{"$f":"XBRLMap(H45,H$110&\".\"&W45,$C$108,$C$109,CONFIGURATION!$B$10,\"BMA\",CONFIGURATION!$B$1,\"bscr\",CONFIGURATION!$B$12)","v":"Mapped"},null,{"$f":"XBRLMap(J45,J$110&\".\"&W45,$C$108,$C$109,CONFIGURATION!$B$10,\"BMA\",CONFIGURATION!$B$1,\"bscr\",CONFIGURATION!$B$12)","v":"Mapped"},null,{"$f":"XBRLMap(L45,L$110&\".\"&W45,$C$108,$C$109,CONFIGURATION!$B$10,\"BMA\",CONFIGURATION!$B$1,\"bscr\",CONFIGURATION!$B$12)","v":"Mapped"}]
[null,null,null,{"$f":"XBRLMap(D46,D$110&\".\"&W46,$C$108,$C$109,CONFIGURATION!$B$10,\"BMA\",CONFIGURATION!$B$1,\"bscr\",CONFIGURATION!$B$12)","v":"Mapped"},null,{"$f":"XBRLMap(F46,F$110&\".\"&W46,$C$108,$C$109,CONFIGURATION!$B$10,\"BMA\",CONFIGURATION!$B$1,\"bscr\",CONFIGURATION!$B$12)","v":"Mapped"},null,{"$f":"XBRLMap(H46,H$110&\".\"&W46,$C$108,$C$109,CONFIGURATION!$B$10,\"BMA\",CONFIGURATION!$B$1,\"bscr\",CONFIGURATION!$B$12)","v":"Mapped"},null,{"$f":"XBRLMap(J46,J$110&\".\"&W46,$C$108,$C$109,CONFIGURATION!$B$10,\"BMA\",CONFIGURATION!$B$1,\"bscr\",CONFIGURATION!$B$12)","v":"Mapped"},null,{"$f":"XBRLMap(L46,L$110&\".\"&W46,$C$108,$C$109,CONFIGURATION!$B$10,\"BMA\",CONFIGURATION!$B$1,\"bscr\",CONFIGURATION!$B$12)","v":"Mapped"}]
[null,null,null,{"$f":"XBRLMap(D47,D$110&\".\"&W47,$C$108,$C$109,CONFIGURATION!$B$10,\"BMA\",CONFIGURATION!$B$1,\"bscr\",CONFIGURATION!$B$12)","v":"Mapped"},null,{"$f":"XBRLMap(F47,F$110&\".\"&W47,$C$108,$C$109,CONFIGURATION!$B$10,\"BMA\",CONFIGURATION!$B$1,\"bscr\",CONFIGURATION!$B$12)","v":"Mapped"},null,{"$f":"XBRLMap(H47,H$110&\".\"&W47,$C$108,$C$109,CONFIGURATION!$B$10,\"BMA\",CONFIGURATION!$B$1,\"bscr\",CONFIGURATION!$B$12)","v":"Mapped"},null,{"$f":"XBRLMap(J47,J$110&\".\"&W47,$C$108,$C$109,CONFIGURATION!$B$10,\"BMA\",CONFIGURATION!$B$1,\"bscr\",CONFIGURATION!$B$12)","v":"Mapped"},null,{"$f":"XBRLMap(L47,L$110&\".\"&W47,$C$108,$C$109,CONFIGURATION!$B$10,\"BMA\",CONFIGURATION!$B$1,\"bscr\",CONFIGURATION!$B$12)","v":"Mapped"}]
[null,null,null,{"$f":"XBRLMap(D48,D$110&\".\"&W48,$C$108,$C$109,CONFIGURATION!$B$10,\"BMA\",CONFIGURATION!$B$1,\"bscr\",CONFIGURATION!$B$12)","v":"Mapped"},null,{"$f":"XBRLMap(F48,F$110&\".\"&W48,$C$108,$C$109,CONFIGURATION!$B$10,\"BMA\",CONFIGURATION!$B$1,\"bscr\",CONFIGURATION!$B$12)","v":"Mapped"},null,{"$f":"XBRLMap(H48,H$110&\".\"&W48,$C$108,$C$109,CONFIGURATION!$B$10,\"BMA\",CONFIGURATION!$B$1,\"bscr\",CONFIGURATION!$B$12)","v":"Mapped"},null,{"$f":"XBRLMap(J48,J$110&\".\"&W48,$C$108,$C$109,CONFIGURATION!$B$10,\"BMA\",CONFIGURATION!$B$1,\"bscr\",CONFIGURATION!$B$12)","v":"Mapped"},null,{"$f":"XBRLMap(L48,L$110&\".\"&W48,$C$108,$C$109,CONFIGURATION!$B$10,\"BMA\",CONFIGURATION!$B$1,\"bscr\",CONFIGURATION!$B$12)","v":"Mapped"}]
[]
[]
[null,null,null,{"$f":"XBRLMap(D54,D$110&\".\"&W54,$C$108,$C$109,CONFIGURATION!$B$10,\"BMA\",CONFIGURATION!$B$1,\"bscr\",CONFIGURATION!$B$12)","v":"Mapped"},null,{"$f":"XBRLMap(F54,F$110&\".\"&W54,$C$108,$C$109,CONFIGURATION!$B$10,\"BMA\",CONFIGURATION!$B$1,\"bscr\",CONFIGURATION!$B$12)","v":"Mapped"},null,{"$f":"XBRLMap(H54,H$110&\".\"&W54,$C$108,$C$109,CONFIGURATION!$B$10,\"BMA\",CONFIGURATION!$B$1,\"bscr\",CONFIGURATION!$B$12)","v":"Mapped"},null,{"$f":"XBRLMap(J54,J$110&\".\"&W54,$C$108,$C$109,CONFIGURATION!$B$10,\"BMA\",CONFIGURATION!$B$1,\"bscr\",CONFIGURATION!$B$12)","v":"Mapped"},null,{"$f":"XBRLMap(L54,L$110&\".\"&W54,$C$108,$C$109,CONFIGURATION!$B$10,\"BMA\",CONFIGURATION!$B$1,\"bscr\",CONFIGURATION!$B$12)","v":"Mapped"}]
[null,null,null,{"$f":"XBRLMap(D55,D$110&\".\"&W55,$C$108,$C$109,CONFIGURATION!$B$10,\"BMA\",CONFIGURATION!$B$1,\"bscr\",CONFIGURATION!$B$12)","v":"Mapped"},null,{"$f":"XBRLMap(F55,F$110&\".\"&W55,$C$108,$C$109,CONFIGURATION!$B$10,\"BMA\",CONFIGURATION!$B$1,\"bscr\",CONFIGURATION!$B$12)","v":"Mapped"},null,{"$f":"XBRLMap(H55,H$110&\".\"&W55,$C$108,$C$109,CONFIGURATION!$B$10,\"BMA\",CONFIGURATION!$B$1,\"bscr\",CONFIGURATION!$B$12)","v":"Mapped"},null,{"$f":"XBRLMap(J55,J$110&\".\"&W55,$C$108,$C$109,CONFIGURATION!$B$10,\"BMA\",CONFIGURATION!$B$1,\"bscr\",CONFIGURATION!$B$12)","v":"Mapped"},null,{"$f":"XBRLMap(L55,L$110&\".\"&W55,$C$108,$C$109,CONFIGURATION!$B$10,\"BMA\",CONFIGURATION!$B$1,\"bscr\",CONFIGURATION!$B$12)","v":"Mapped"}]
[null,null,null,{"$f":"XBRLMap(D56,D$110&\".\"&W56,$C$108,$C$109,CONFIGURATION!$B$10,\"BMA\",CONFIGURATION!$B$1,\"bscr\",CONFIGURATION!$B$12)","v":"Mapped"},null,{"$f":"XBRLMap(F56,F$110&\".\"&W56,$C$108,$C$109,CONFIGURATION!$B$10,\"BMA\",CONFIGURATION!$B$1,\"bscr\",CONFIGURATION!$B$12)","v":"Mapped"},null,{"$f":"XBRLMap(H56,H$110&\".\"&W56,$C$108,$C$109,CONFIGURATION!$B$10,\"BMA\",CONFIGURATION!$B$1,\"bscr\",CONFIGURATION!$B$12)","v":"Mapped"},null,{"$f":"XBRLMap(J56,J$110&\".\"&W56,$C$108,$C$109,CONFIGURATION!$B$10,\"BMA\",CONFIGURATION!$B$1,\"bscr\",CONFIGURATION!$B$12)","v":"Mapped"},null,{"$f":"XBRLMap(L56,L$110&\".\"&W56,$C$108,$C$109,CONFIGURATION!$B$10,\"BMA\",CONFIGURATION!$B$1,\"bscr\",CONFIGURATION!$B$12)","v":"Mapped"}]
[null,null,null,{"$f":"XBRLMap(D57,D$110&\".\"&W57,$C$108,$C$109,CONFIGURATION!$B$10,\"BMA\",CONFIGURATION!$B$1,\"bscr\",CONFIGURATION!$B$12)","v":"Mapped"},null,{"$f":"XBRLMap(F57,F$110&\".\"&W57,$C$108,$C$109,CONFIGURATION!$B$10,\"BMA\",CONFIGURATION!$B$1,\"bscr\",CONFIGURATION!$B$12)","v":"Mapped"},null,{"$f":"XBRLMap(H57,H$110&\".\"&W57,$C$108,$C$109,CONFIGURATION!$B$10,\"BMA\",CONFIGURATION!$B$1,\"bscr\",CONFIGURATION!$B$12)","v":"Mapped"},null,{"$f":"XBRLMap(J57,J$110&\".\"&W57,$C$108,$C$109,CONFIGURATION!$B$10,\"BMA\",CONFIGURATION!$B$1,\"bscr\",CONFIGURATION!$B$12)","v":"Mapped"},null,{"$f":"XBRLMap(L57,L$110&\".\"&W57,$C$108,$C$109,CONFIGURATION!$B$10,\"BMA\",CONFIGURATION!$B$1,\"bscr\",CONFIGURATION!$B$12)","v":"Mapped"}]
[null,null,null,{"$f":"XBRLMap(D58,D$110&\".\"&W58,$C$108,$C$109,CONFIGURATION!$B$10,\"BMA\",CONFIGURATION!$B$1,\"bscr\",CONFIGURATION!$B$12)","v":"Mapped"},null,{"$f":"XBRLMap(F58,F$110&\".\"&W58,$C$108,$C$109,CONFIGURATION!$B$10,\"BMA\",CONFIGURATION!$B$1,\"bscr\",CONFIGURATION!$B$12)","v":"Mapped"},null,{"$f":"XBRLMap(H58,H$110&\".\"&W58,$C$108,$C$109,CONFIGURATION!$B$10,\"BMA\",CONFIGURATION!$B$1,\"bscr\",CONFIGURATION!$B$12)","v":"Mapped"},null,{"$f":"XBRLMap(J58,J$110&\".\"&W58,$C$108,$C$109,CONFIGURATION!$B$10,\"BMA\",CONFIGURATION!$B$1,\"bscr\",CONFIGURATION!$B$12)","v":"Mapped"},null,{"$f":"XBRLMap(L58,L$110&\".\"&W58,$C$108,$C$109,CONFIGURATION!$B$10,\"BMA\",CONFIGURATION!$B$1,\"bscr\",CONFIGURATION!$B$12)","v":"Mapped"}]
[null,null,null,{"$f":"XBRLMap(D59,D$110&\".\"&W59,$C$108,$C$109,CONFIGURATION!$B$10,\"BMA\",CONFIGURATION!$B$1,\"bscr\",CONFIGURATION!$B$12)","v":"Mapped"},null,{"$f":"XBRLMap(F59,F$110&\".\"&W59,$C$108,$C$109,CONFIGURATION!$B$10,\"BMA\",CONFIGURATION!$B$1,\"bscr\",CONFIGURATION!$B$12)","v":"Mapped"},null,{"$f":"XBRLMap(H59,H$110&\".\"&W59,$C$108,$C$109,CONFIGURATION!$B$10,\"BMA\",CONFIGURATION!$B$1,\"bscr\",CONFIGURATION!$B$12)","v":"Mapped"},null,{"$f":"XBRLMap(J59,J$110&\".\"&W59,$C$108,$C$109,CONFIGURATION!$B$10,\"BMA\",CONFIGURATION!$B$1,\"bscr\",CONFIGURATION!$B$12)","v":"Mapped"},null,{"$f":"XBRLMap(L59,L$110&\".\"&W59,$C$108,$C$109,CONFIGURATION!$B$10,\"BMA\",CONFIGURATION!$B$1,\"bscr\",CONFIGURATION!$B$12)","v":"Mapped"}]
[]
[]
[null,null,null,{"$f":"XBRLMap(D65,D$110&\".\"&W65,$C$108,$C$109,CONFIGURATION!$B$10,\"BMA\",CONFIGURATION!$B$1,\"bscr\",CONFIGURATION!$B$12)","v":"Mapped"},null,{"$f":"XBRLMap(F65,F$110&\".\"&$W65,$C$108,$C$109,CONFIGURATION!$B$10,\"BMA\",CONFIGURATION!$B$1,\"bscr\",CONFIGURATION!$B$12)","v":"Mapped"},null,{"$f":"XBRLMap(H65,H$110&\".\"&$W65,$C$108,$C$109,CONFIGURATION!$B$10,\"BMA\",CONFIGURATION!$B$1,\"bscr\",CONFIGURATION!$B$12)","v":"Mapped"},null,{"$f":"XBRLMap(J65,J$110&\".\"&$W65,$C$108,$C$109,CONFIGURATION!$B$10,\"BMA\",CONFIGURATION!$B$1,\"bscr\",CONFIGURATION!$B$12)","v":"Mapped"},null,{"$f":"XBRLMap(L65,L$110&\".\"&$W65,$C$108,$C$109,CONFIGURATION!$B$10,\"BMA\",CONFIGURATION!$B$1,\"bscr\",CONFIGURATION!$B$12)","v":"Mapped"}]
[null,null,null,{"$f":"XBRLMap(D66,D$110&\".\"&W66,$C$108,$C$109,CONFIGURATION!$B$10,\"BMA\",CONFIGURATION!$B$1,\"bscr\",CONFIGURATION!$B$12)","v":"Mapped"},null,{"$f":"XBRLMap(F66,F$110&\".\"&$W66,$C$108,$C$109,CONFIGURATION!$B$10,\"BMA\",CONFIGURATION!$B$1,\"bscr\",CONFIGURATION!$B$12)","v":"Mapped"},null,{"$f":"XBRLMap(H66,H$110&\".\"&$W66,$C$108,$C$109,CONFIGURATION!$B$10,\"BMA\",CONFIGURATION!$B$1,\"bscr\",CONFIGURATION!$B$12)","v":"Mapped"},null,{"$f":"XBRLMap(J66,J$110&\".\"&$W66,$C$108,$C$109,CONFIGURATION!$B$10,\"BMA\",CONFIGURATION!$B$1,\"bscr\",CONFIGURATION!$B$12)","v":"Mapped"},null,{"$f":"XBRLMap(L66,L$110&\".\"&$W66,$C$108,$C$109,CONFIGURATION!$B$10,\"BMA\",CONFIGURATION!$B$1,\"bscr\",CONFIGURATION!$B$12)","v":"Mapped"}]
[null,null,null,{"$f":"XBRLMap(D67,D$110&\".\"&W67,$C$108,$C$109,CONFIGURATION!$B$10,\"BMA\",CONFIGURATION!$B$1,\"bscr\",CONFIGURATION!$B$12)","v":"Mapped"},null,{"$f":"XBRLMap(F67,F$110&\".\"&$W67,$C$108,$C$109,CONFIGURATION!$B$10,\"BMA\",CONFIGURATION!$B$1,\"bscr\",CONFIGURATION!$B$12)","v":"Mapped"},null,{"$f":"XBRLMap(H67,H$110&\".\"&$W67,$C$108,$C$109,CONFIGURATION!$B$10,\"BMA\",CONFIGURATION!$B$1,\"bscr\",CONFIGURATION!$B$12)","v":"Mapped"},null,{"$f":"XBRLMap(J67,J$110&\".\"&$W67,$C$108,$C$109,CONFIGURATION!$B$10,\"BMA\",CONFIGURATION!$B$1,\"bscr\",CONFIGURATION!$B$12)","v":"Mapped"},null,{"$f":"XBRLMap(L67,L$110&\".\"&$W67,$C$108,$C$109,CONFIGURATION!$B$10,\"BMA\",CONFIGURATION!$B$1,\"bscr\",CONFIGURATION!$B$12)","v":"Mapped"}]
[null,null,null,{"$f":"XBRLMap(D68,D$110&\".\"&W68,$C$108,$C$109,CONFIGURATION!$B$10,\"BMA\",CONFIGURATION!$B$1,\"bscr\",CONFIGURATION!$B$12)","v":"Mapped"},null,{"$f":"XBRLMap(F68,F$110&\".\"&$W68,$C$108,$C$109,CONFIGURATION!$B$10,\"BMA\",CONFIGURATION!$B$1,\"bscr\",CONFIGURATION!$B$12)","v":"Mapped"},null,{"$f":"XBRLMap(H68,H$110&\".\"&$W68,$C$108,$C$109,CONFIGURATION!$B$10,\"BMA\",CONFIGURATION!$B$1,\"bscr\",CONFIGURATION!$B$12)","v":"Mapped"},null,{"$f":"XBRLMap(J68,J$110&\".\"&$W68,$C$108,$C$109,CONFIGURATION!$B$10,\"BMA\",CONFIGURATION!$B$1,\"bscr\",CONFIGURATION!$B$12)","v":"Mapped"},null,{"$f":"XBRLMap(L68,L$110&\".\"&$W68,$C$108,$C$109,CONFIGURATION!$B$10,\"BMA\",CONFIGURATION!$B$1,\"bscr\",CONFIGURATION!$B$12)","v":"Mapped"}]
[]
[]
[null,null,null,{"$f":"XBRLMap(D74,D$110&\".\"&$W74,$C$108,$C$109,CONFIGURATION!$B$10,\"BMA\",CONFIGURATION!$B$1,\"bscr\",CONFIGURATION!$B$12)","v":"Mapped"},null,{"$f":"XBRLMap(F74,F$110&\".\"&$W74,$C$108,$C$109,CONFIGURATION!$B$10,\"BMA\",CONFIGURATION!$B$1,\"bscr\",CONFIGURATION!$B$12)","v":"Mapped"},null,{"$f":"XBRLMap(H74,H$110&\".\"&$W74,$C$108,$C$109,CONFIGURATION!$B$10,\"BMA\",CONFIGURATION!$B$1,\"bscr\",CONFIGURATION!$B$12)","v":"Mapped"},null,{"$f":"XBRLMap(J74,J$110&\".\"&$W74,$C$108,$C$109,CONFIGURATION!$B$10,\"BMA\",CONFIGURATION!$B$1,\"bscr\",CONFIGURATION!$B$12)","v":"Mapped"},null,{"$f":"XBRLMap(L74,L$110&\".\"&$W74,$C$108,$C$109,CONFIGURATION!$B$10,\"BMA\",CONFIGURATION!$B$1,\"bscr\",CONFIGURATION!$B$12)","v":"Mapped"}]
[null,null,null,{"$f":"XBRLMap(D75,D$110&\".\"&$W75,$C$108,$C$109,CONFIGURATION!$B$10,\"BMA\",CONFIGURATION!$B$1,\"bscr\",CONFIGURATION!$B$12)","v":"Mapped"},null,{"$f":"XBRLMap(F75,F$110&\".\"&$W75,$C$108,$C$109,CONFIGURATION!$B$10,\"BMA\",CONFIGURATION!$B$1,\"bscr\",CONFIGURATION!$B$12)","v":"Mapped"},null,{"$f":"XBRLMap(H75,H$110&\".\"&$W75,$C$108,$C$109,CONFIGURATION!$B$10,\"BMA\",CONFIGURATION!$B$1,\"bscr\",CONFIGURATION!$B$12)","v":"Mapped"},null,{"$f":"XBRLMap(J75,J$110&\".\"&$W75,$C$108,$C$109,CONFIGURATION!$B$10,\"BMA\",CONFIGURATION!$B$1,\"bscr\",CONFIGURATION!$B$12)","v":"Mapped"},null,{"$f":"XBRLMap(L75,L$110&\".\"&$W75,$C$108,$C$109,CONFIGURATION!$B$10,\"BMA\",CONFIGURATION!$B$1,\"bscr\",CONFIGURATION!$B$12)","v":"Mapped"}]
[null,null,null,{"$f":"XBRLMap(D76,D$110&\".\"&$W76,$C$108,$C$109,CONFIGURATION!$B$10,\"BMA\",CONFIGURATION!$B$1,\"bscr\",CONFIGURATION!$B$12)","v":"Mapped"},null,{"$f":"XBRLMap(F76,F$110&\".\"&$W76,$C$108,$C$109,CONFIGURATION!$B$10,\"BMA\",CONFIGURATION!$B$1,\"bscr\",CONFIGURATION!$B$12)","v":"Mapped"},null,{"$f":"XBRLMap(H76,H$110&\".\"&$W76,$C$108,$C$109,CONFIGURATION!$B$10,\"BMA\",CONFIGURATION!$B$1,\"bscr\",CONFIGURATION!$B$12)","v":"Mapped"},null,{"$f":"XBRLMap(J76,J$110&\".\"&$W76,$C$108,$C$109,CONFIGURATION!$B$10,\"BMA\",CONFIGURATION!$B$1,\"bscr\",CONFIGURATION!$B$12)","v":"Mapped"},null,{"$f":"XBRLMap(L76,L$110&\".\"&$W76,$C$108,$C$109,CONFIGURATION!$B$10,\"BMA\",CONFIGURATION!$B$1,\"bscr\",CONFIGURATION!$B$12)","v":"Mapped"}]
[null,null,null,{"$f":"XBRLMap(D77,D$110&\".\"&$W77,$C$108,$C$109,CONFIGURATION!$B$10,\"BMA\",CONFIGURATION!$B$1,\"bscr\",CONFIGURATION!$B$12)","v":"Mapped"},null,{"$f":"XBRLMap(F77,F$110&\".\"&$W77,$C$108,$C$109,CONFIGURATION!$B$10,\"BMA\",CONFIGURATION!$B$1,\"bscr\",CONFIGURATION!$B$12)","v":"Mapped"},null,{"$f":"XBRLMap(H77,H$110&\".\"&$W77,$C$108,$C$109,CONFIGURATION!$B$10,\"BMA\",CONFIGURATION!$B$1,\"bscr\",CONFIGURATION!$B$12)","v":"Mapped"},null,{"$f":"XBRLMap(J77,J$110&\".\"&$W77,$C$108,$C$109,CONFIGURATION!$B$10,\"BMA\",CONFIGURATION!$B$1,\"bscr\",CONFIGURATION!$B$12)","v":"Mapped"},null,{"$f":"XBRLMap(L77,L$110&\".\"&$W77,$C$108,$C$109,CONFIGURATION!$B$10,\"BMA\",CONFIGURATION!$B$1,\"bscr\",CONFIGURATION!$B$12)","v":"Mapped"}]
[null,null,null,{"$f":"XBRLMap(D78,D$110&\".\"&$W78,$C$108,$C$109,CONFIGURATION!$B$10,\"BMA\",CONFIGURATION!$B$1,\"bscr\",CONFIGURATION!$B$12)","v":"Mapped"},null,{"$f":"XBRLMap(F78,F$110&\".\"&$W78,$C$108,$C$109,CONFIGURATION!$B$10,\"BMA\",CONFIGURATION!$B$1,\"bscr\",CONFIGURATION!$B$12)","v":"Mapped"},null,{"$f":"XBRLMap(H78,H$110&\".\"&$W78,$C$108,$C$109,CONFIGURATION!$B$10,\"BMA\",CONFIGURATION!$B$1,\"bscr\",CONFIGURATION!$B$12)","v":"Mapped"},null,{"$f":"XBRLMap(J78,J$110&\".\"&$W78,$C$108,$C$109,CONFIGURATION!$B$10,\"BMA\",CONFIGURATION!$B$1,\"bscr\",CONFIGURATION!$B$12)","v":"Mapped"},null,{"$f":"XBRLMap(L78,L$110&\".\"&$W78,$C$108,$C$109,CONFIGURATION!$B$10,\"BMA\",CONFIGURATION!$B$1,\"bscr\",CONFIGURATION!$B$12)","v":"Mapped"}]
[null,null,null,{"$f":"XBRLMap(D79,D$110&\".\"&$W79,$C$108,$C$109,CONFIGURATION!$B$10,\"BMA\",CONFIGURATION!$B$1,\"bscr\",CONFIGURATION!$B$12)","v":"Mapped"},null,{"$f":"XBRLMap(F79,F$110&\".\"&$W79,$C$108,$C$109,CONFIGURATION!$B$10,\"BMA\",CONFIGURATION!$B$1,\"bscr\",CONFIGURATION!$B$12)","v":"Mapped"},null,{"$f":"XBRLMap(H79,H$110&\".\"&$W79,$C$108,$C$109,CONFIGURATION!$B$10,\"BMA\",CONFIGURATION!$B$1,\"bscr\",CONFIGURATION!$B$12)","v":"Mapped"},null,{"$f":"XBRLMap(J79,J$110&\".\"&$W79,$C$108,$C$109,CONFIGURATION!$B$10,\"BMA\",CONFIGURATION!$B$1,\"bscr\",CONFIGURATION!$B$12)","v":"Mapped"},null,{"$f":"XBRLMap(L79,L$110&\".\"&$W79,$C$108,$C$109,CONFIGURATION!$B$10,\"BMA\",CONFIGURATION!$B$1,\"bscr\",CONFIGURATION!$B$12)","v":"Mapped"}]
[null,null,null,{"$f":"XBRLMap(D80,D$110&\".\"&$W80,$C$108,$C$109,CONFIGURATION!$B$10,\"BMA\",CONFIGURATION!$B$1,\"bscr\",CONFIGURATION!$B$12)","v":"Mapped"},null,{"$f":"XBRLMap(F80,F$110&\".\"&$W80,$C$108,$C$109,CONFIGURATION!$B$10,\"BMA\",CONFIGURATION!$B$1,\"bscr\",CONFIGURATION!$B$12)","v":"Mapped"},null,{"$f":"XBRLMap(H80,H$110&\".\"&$W80,$C$108,$C$109,CONFIGURATION!$B$10,\"BMA\",CONFIGURATION!$B$1,\"bscr\",CONFIGURATION!$B$12)","v":"Mapped"},null,{"$f":"XBRLMap(J80,J$110&\".\"&$W80,$C$108,$C$109,CONFIGURATION!$B$10,\"BMA\",CONFIGURATION!$B$1,\"bscr\",CONFIGURATION!$B$12)","v":"Mapped"},null,{"$f":"XBRLMap(L80,L$110&\".\"&$W80,$C$108,$C$109,CONFIGURATION!$B$10,\"BMA\",CONFIGURATION!$B$1,\"bscr\",CONFIGURATION!$B$12)","v":"Mapped"}]
[null,null,null,{"$f":"XBRLMap(D81,D$110&\".\"&$W81,$C$108,$C$109,CONFIGURATION!$B$10,\"BMA\",CONFIGURATION!$B$1,\"bscr\",CONFIGURATION!$B$12)","v":"Mapped"},null,{"$f":"XBRLMap(F81,F$110&\".\"&$W81,$C$108,$C$109,CONFIGURATION!$B$10,\"BMA\",CONFIGURATION!$B$1,\"bscr\",CONFIGURATION!$B$12)","v":"Mapped"},null,{"$f":"XBRLMap(H81,H$110&\".\"&$W81,$C$108,$C$109,CONFIGURATION!$B$10,\"BMA\",CONFIGURATION!$B$1,\"bscr\",CONFIGURATION!$B$12)","v":"Mapped"},null,{"$f":"XBRLMap(J81,J$110&\".\"&$W81,$C$108,$C$109,CONFIGURATION!$B$10,\"BMA\",CONFIGURATION!$B$1,\"bscr\",CONFIGURATION!$B$12)","v":"Mapped"},null,{"$f":"XBRLMap(L81,L$110&\".\"&$W81,$C$108,$C$109,CONFIGURATION!$B$10,\"BMA\",CONFIGURATION!$B$1,\"bscr\",CONFIGURATION!$B$12)","v":"Mapped"}]
[null,null,null,{"$f":"XBRLMap(D82,D$110&\".\"&$W82,$C$108,$C$109,CONFIGURATION!$B$10,\"BMA\",CONFIGURATION!$B$1,\"bscr\",CONFIGURATION!$B$12)","v":"Mapped"},null,{"$f":"XBRLMap(F82,F$110&\".\"&$W82,$C$108,$C$109,CONFIGURATION!$B$10,\"BMA\",CONFIGURATION!$B$1,\"bscr\",CONFIGURATION!$B$12)","v":"Mapped"},null,{"$f":"XBRLMap(H82,H$110&\".\"&$W82,$C$108,$C$109,CONFIGURATION!$B$10,\"BMA\",CONFIGURATION!$B$1,\"bscr\",CONFIGURATION!$B$12)","v":"Mapped"},null,{"$f":"XBRLMap(J82,J$110&\".\"&$W82,$C$108,$C$109,CONFIGURATION!$B$10,\"BMA\",CONFIGURATION!$B$1,\"bscr\",CONFIGURATION!$B$12)","v":"Mapped"},null,{"$f":"XBRLMap(L82,L$110&\".\"&$W82,$C$108,$C$109,CONFIGURATION!$B$10,\"BMA\",CONFIGURATION!$B$1,\"bscr\",CONFIGURATION!$B$12)","v":"Mapped"}]
[null,null,null,{"$f":"XBRLMap(D83,D$110&\".\"&$W83,$C$108,$C$109,CONFIGURATION!$B$10,\"BMA\",CONFIGURATION!$B$1,\"bscr\",CONFIGURATION!$B$12)","v":"Mapped"},null,{"$f":"XBRLMap(F83,F$110&\".\"&$W83,$C$108,$C$109,CONFIGURATION!$B$10,\"BMA\",CONFIGURATION!$B$1,\"bscr\",CONFIGURATION!$B$12)","v":"Mapped"},null,{"$f":"XBRLMap(H83,H$110&\".\"&$W83,$C$108,$C$109,CONFIGURATION!$B$10,\"BMA\",CONFIGURATION!$B$1,\"bscr\",CONFIGURATION!$B$12)","v":"Mapped"},null,{"$f":"XBRLMap(J83,J$110&\".\"&$W83,$C$108,$C$109,CONFIGURATION!$B$10,\"BMA\",CONFIGURATION!$B$1,\"bscr\",CONFIGURATION!$B$12)","v":"Mapped"},null,{"$f":"XBRLMap(L83,L$110&\".\"&$W83,$C$108,$C$109,CONFIGURATION!$B$10,\"BMA\",CONFIGURATION!$B$1,\"bscr\",CONFIGURATION!$B$12)","v":"Mapped"}]
[null,null,null,{"$f":"XBRLMap(D84,D$110&\".\"&$W84,$C$108,$C$109,CONFIGURATION!$B$10,\"BMA\",CONFIGURATION!$B$1,\"bscr\",CONFIGURATION!$B$12)","v":"Mapped"},null,{"$f":"XBRLMap(F84,F$110&\".\"&$W84,$C$108,$C$109,CONFIGURATION!$B$10,\"BMA\",CONFIGURATION!$B$1,\"bscr\",CONFIGURATION!$B$12)","v":"Mapped"},null,{"$f":"XBRLMap(H84,H$110&\".\"&$W84,$C$108,$C$109,CONFIGURATION!$B$10,\"BMA\",CONFIGURATION!$B$1,\"bscr\",CONFIGURATION!$B$12)","v":"Mapped"},null,{"$f":"XBRLMap(J84,J$110&\".\"&$W84,$C$108,$C$109,CONFIGURATION!$B$10,\"BMA\",CONFIGURATION!$B$1,\"bscr\",CONFIGURATION!$B$12)","v":"Mapped"},null,{"$f":"XBRLMap(L84,L$110&\".\"&$W84,$C$108,$C$109,CONFIGURATION!$B$10,\"BMA\",CONFIGURATION!$B$1,\"bscr\",CONFIGURATION!$B$12)","v":"Mapped"}]
[null,null,null,{"$f":"XBRLMap(D85,D$110&\".\"&$W85,$C$108,$C$109,CONFIGURATION!$B$10,\"BMA\",CONFIGURATION!$B$1,\"bscr\",CONFIGURATION!$B$12)","v":"Mapped"},null,{"$f":"XBRLMap(F85,F$110&\".\"&$W85,$C$108,$C$109,CONFIGURATION!$B$10,\"BMA\",CONFIGURATION!$B$1,\"bscr\",CONFIGURATION!$B$12)","v":"Mapped"},null,{"$f":"XBRLMap(H85,H$110&\".\"&$W85,$C$108,$C$109,CONFIGURATION!$B$10,\"BMA\",CONFIGURATION!$B$1,\"bscr\",CONFIGURATION!$B$12)","v":"Mapped"},null,{"$f":"XBRLMap(J85,J$110&\".\"&$W85,$C$108,$C$109,CONFIGURATION!$B$10,\"BMA\",CONFIGURATION!$B$1,\"bscr\",CONFIGURATION!$B$12)","v":"Mapped"},null,{"$f":"XBRLMap(L85,L$110&\".\"&$W85,$C$108,$C$109,CONFIGURATION!$B$10,\"BMA\",CONFIGURATION!$B$1,\"bscr\",CONFIGURATION!$B$12)","v":"Mapped"}]
[]
[]
[]
[]
[]
[]
[]
[]
[]
[]
[]
[]
[]
[]
[]
[]
[]
[]
[]
[]
[]
[]
[]
[]
[]
[]
[]
[]
[]
[]
[]
[]
[]
[]
[]
[]
[]
[]
[]
[]
[]
[]
[]
[]
[null,null,"Guaranteed Minimum Death Benefit: Return of Premium","Guaranteed Minimum Death Benefit: Return of Premium, Ratchet and Reset 2.",null,null,null,null,null,null,null,"0-10%","<1","<1",1]
[null,null,"Guaranteed Minimum Death Benefit: Ratchet ",null,null,null,null,null,null,null,null,"10-15%",2,2,2]
[null,null,"Guaranteed Minimum Death Benefit: Roll-up","Guaranteed Minimum Death Benefit: Enhanced Benefits (Roll up) 2.",null,null,null,null,null,null,null,"15%+",3,3,3]
[null,null,"Guaranteed Minimum Death Benefit: With Compound Guarantees",null,null,null,null,null,null,null,null,null,4,4,4]
[null,null,"Guaranteed Minimum Income Benefit: Return of Premium","Guaranteed Minimum Income Benefit",null,null,null,null,null,null,null,null,5,5,5]
[null,null,"Guaranteed Minimum Income Benefit: Ratchet",null,null,null,null,null,null,null,null,null,"6-10","6-10",6]
[null,null,"Guaranteed Minimum Income Benefit: Roll-up",null,null,null,null,null,null,null,null,null,"10+","10+",7]
[null,null,"Guaranteed Minimum Income Benefit: With Compound Guarantees",null,null,null,null,null,null,null,null,null,null,null,8]
[null,null,"Enhanced Earnings Benefit","Guaranteed Enhanced Earnings Benefit",null,null,null,null,null,null,null,null,null,null,9]
[null,null,"Guaranteed Minimum Withdrawal Benefit","Guaranteed Minimum Withdrawal Benefit",null,null,null,null,null,null,null,null,null,null,"10+"]
[null,null,"Guaranteed Minimum Withdrawal for Life"]
[null,null,"Guaranteed Minimum Accumulation Benefit: ","Guaranteed Minimum Accumulation Benefit: "]
[null,null,"Guaranteed Minimum Accumulation Benefit: With Compound Guarantees"]

{"sheet":"Schedule IX(a)","index":54,"n_rows":125,"n_cols":21,"rows_kept":125,"cut":false,"hidden":false,"merged":[[84,1,84,6],[80,1,80,6],[76,1,76,6],[0,1,0,5],[108,1,108,3],[20,1,20,3],[33,1,33,6],[35,1,35,6],[39,1,39,6],[1,1,1,2]]}
[null,"SCHEDULE OF COMMERCIAL INSURER'S SOLVENCY SELF ASSESSMENT (CISSA)\nCAPITAL SUMMARY (TABLE 8)",null,null,null,null,{"$f":"HYPERLINK(\"#'Index'!A1\",\"Return to Index\")","v":"Return to Index"},null,null,null,null,null,null,{"$f":"IF($B$3=\"\",\"\",TEXT(DATE(YEAR($B$3+1)-1,MONTH($B$3+1),DAY($B$3+1)),\"mm/dd/yyyy\"))","v":"01/01/2019"}]
[null,{"$f":"+'Insurer Information'!C7","v":"Enter Company Name"},null,null,null,null,null,null,null,"",null,null,null,{"$f":"IF(B3=\"\",\"\",TEXT(B3,\"mm/dd/yyyy\"))","v":"12/31/2019"}]
[null,{"$f":" TEXT('Insurer Information'!C3,\"mmmm dd, yyyy\")","v":"December 31, 2019"},null,null,null,null,"SCHEDULE IX(a)",null,null,""]
[null,"expressed in ",null,{"$f":"IF(CONFIGURATION!$B$12>1,\" ['\"&MID(CONFIGURATION!$B$12,2,LEN(CONFIGURATION!$B$12))&\"s]\",\"\") &\" (currency used (vide Reg. 10(2))\"","v":" ['000s] (currency used (vide Reg. 10(2))"},null,null,null,null,null,""]
[]
[null,"Note: Documents supporting the CISSA filling should be retained for such period as specified in the [Rules]",null,null,null,null,null,null,null,"",null,null,null,{"$f":"YEAR('Insurer Information'!C3)","v":2019}]
[]
[null,"Risk Categories",null,null,"CISSA Capital",null,"Regulatory Capital"]
[null,null,null,null,null,null,null,null,null,""]
[null,{"$f":"IF('Insurer Information'!$F$9=\"Class C\",\"Insurance risk\",\"Insurance risk - mortality\")","v":"Insurance risk - mortality"},null,null,{"$f":"Import!M5187","v":0},null,{"$f":"IF('Insurer Information'!$F$9=\"Class C\",'CSP (Revised)'!L726+'CSP (Revised)'!L727+'CSP (Revised)'!L728+'CSP (Revised)'!L729+'CSP (Revised)'!L730+'CSP (Revised)'!L731+'CSP (Revised)'!L732,'CSP (Revised)'!L726)","v":0},null,null,"brrt_RiskCategoryAxis_brrt_InsuranceRiskMortalityMember",{"$f":"XBRLMap(E10,$E$95&\".\"&J10,$N$1,$N$2,CONFIGURATION!$B$10,\"BMA\",CONFIGURATION!$B$1,\"bscr\",CONFIGURATION!$B$12)","v":"Mapped"},{"$f":"XBRLMap(G10,$G$95&\".\"&J10,$N$1,$N$2,CONFIGURATION!$B$10,\"BMA\",CONFIGURATION!$B$1,\"bscr\",CONFIGURATION!$B$12)","v":"Mapped"},null,null,null,null,null,null,null,"SSA_LongtermInsuranceRiskMortalityssaCapital","SSA_LongtermInsuranceRiskMortalitybscrOrCapitalFromApprovedInternalModelAt990PercentTvar"]
[null,"Insurance risk - longevity",null,null,{"$f":"Import!M5188","v":0},null,{"$f":"IF('Insurer Information'!$F$9=\"Class C\",0,'CSP (Revised)'!L730)","v":0},null,null,"brrt_RiskCategoryAxis_brrt_InsuranceRiskLongevityMember",{"$f":"XBRLMap(E11,$E$95&\".\"&J11,$N$1,$N$2,CONFIGURATION!$B$10,\"BMA\",CONFIGURATION!$B$1,\"bscr\",CONFIGURATION!$B$12)","v":"Mapped"},{"$f":"XBRLMap(G11,$G$95&\".\"&J11,$N$1,$N$2,CONFIGURATION!$B$10,\"BMA\",CONFIGURATION!$B$1,\"bscr\",CONFIGURATION!$B$12)","v":"Mapped"}]
[null,"Insurance risk - morbidity",null,null,{"$f":"Import!M5189","v":0},null,{"$f":"IF('Insurer Information'!$F$9=\"Class C\",0,'CSP (Revised)'!L729)","v":0},null,null,"brrt_RiskCategoryAxis_brrt_InsuranceRiskMorbidityMember",{"$f":"XBRLMap(E12,$E$95&\".\"&J12,$N$1,$N$2,CONFIGURATION!$B$10,\"BMA\",CONFIGURATION!$B$1,\"bscr\",CONFIGURATION!$B$12)","v":"Mapped"},{"$f":"XBRLMap(G12,$G$95&\".\"&J12,$N$1,$N$2,CONFIGURATION!$B$10,\"BMA\",CONFIGURATION!$B$1,\"bscr\",CONFIGURATION!$B$12)","v":"Mapped"}]
[null,"Insurance risk - variable annuity guarantees",null,null,{"$f":"Import!M5190","v":0},null,{"$f":"IF('Insurer Information'!$F$9=\"Class C\",0,'CSP (Revised)'!L731)","v":0},null,null,"brrt_RiskCategoryAxis_brrt_InsuranceRiskVariableAnnuityGuaranteesMember",{"$f":"XBRLMap(E13,$E$95&\".\"&J13,$N$1,$N$2,CONFIGURATION!$B$10,\"BMA\",CONFIGURATION!$B$1,\"bscr\",CONFIGURATION!$B$12)","v":"Mapped"},{"$f":"XBRLMap(G13,$G$95&\".\"&J13,$N$1,$N$2,CONFIGURATION!$B$10,\"BMA\",CONFIGURATION!$B$1,\"bscr\",CONFIGURATION!$B$12)","v":"Mapped"}]
[null,"Insurance risk - other",null,null,{"$f":"Import!M5191","v":0},null,{"$f":"IF('Insurer Information'!$F$9=\"Class C\",0,'CSP (Revised)'!L732)","v":0},null,null,"brrt_RiskCategoryAxis_brrt_InsuranceRiskOtherMember",{"$f":"XBRLMap(E14,$E$95&\".\"&J14,$N$1,$N$2,CONFIGURATION!$B$10,\"BMA\",CONFIGURATION!$B$1,\"bscr\",CONFIGURATION!$B$12)","v":"Mapped"},{"$f":"XBRLMap(G14,$G$95&\".\"&J14,$N$1,$N$2,CONFIGURATION!$B$10,\"BMA\",CONFIGURATION!$B$1,\"bscr\",CONFIGURATION!$B$12)","v":"Mapped"}]
[null,"Insurance risk - stop loss",null,null,{"$f":"Import!M5192","v":0},null,{"$f":"IF('Insurer Information'!$F$9=\"Class C\",0,'CSP (Revised)'!L727)","v":0},null,null,"brrt_RiskCategoryAxis_brrt_InsuranceRiskStopLossMember",{"$f":"XBRLMap(E15,$E$95&\".\"&J15,$N$1,$N$2,CONFIGURATION!$B$10,\"BMA\",CONFIGURATION!$B$1,\"bscr\",CONFIGURATION!$B$12)","v":"Mapped"},{"$f":"XBRLMap(G15,$G$95&\".\"&J15,$N$1,$N$2,CONFIGURATION!$B$10,\"BMA\",CONFIGURATION!$B$1,\"bscr\",CONFIGURATION!$B$12)","v":"Mapped"}]
[null,"Insurance risk - rider",null,null,{"$f":"Import!M5193","v":0},null,{"$f":"IF('Insurer Information'!$F$9=\"Class C\",0,'CSP (Revised)'!L728)","v":0},null,null,"brrt_RiskCategoryAxis_brrt_InsuranceRiskRiderMember",{"$f":"XBRLMap(E16,$E$95&\".\"&J16,$N$1,$N$2,CONFIGURATION!$B$10,\"BMA\",CONFIGURATION!$B$1,\"bscr\",CONFIGURATION!$B$12)","v":"Mapped"},{"$f":"XBRLMap(G16,$G$95&\".\"&J16,$N$1,$N$2,CONFIGURATION!$B$10,\"BMA\",CONFIGURATION!$B$1,\"bscr\",CONFIGURATION!$B$12)","v":"Mapped"}]
[null,"Market risk",null,null,{"$f":"Import!M5194","v":0},null,{"$f":"'CSP (Revised)'!K720+'CSP (Revised)'!K721+'CSP (Revised)'!K723","v":0},null,null,"brrt_RiskCategoryAxis_brrt_MarketRiskMember",{"$f":"XBRLMap(E17,$E$95&\".\"&J17,$N$1,$N$2,CONFIGURATION!$B$10,\"BMA\",CONFIGURATION!$B$1,\"bscr\",CONFIGURATION!$B$12)","v":"Mapped"},{"$f":"XBRLMap(G17,$G$95&\".\"&J17,$N$1,$N$2,CONFIGURATION!$B$10,\"BMA\",CONFIGURATION!$B$1,\"bscr\",CONFIGURATION!$B$12)","v":"Mapped"},null,null,null,null,null,null,null,"SSA_MarketRiskssaCapital","SSA_MarketRiskbscrOrCapitalFromApprovedInternalModelAt990PercentTvar"]
[null,"Credit risk",null,null,{"$f":"Import!M5195","v":0},null,{"$f":"'CSP (Revised)'!L725","v":0},null,null,"brrt_RiskCategoryAxis_brrt_CreditRiskMember",{"$f":"XBRLMap(E18,$E$95&\".\"&J18,$N$1,$N$2,CONFIGURATION!$B$10,\"BMA\",CONFIGURATION!$B$1,\"bscr\",CONFIGURATION!$B$12)","v":"Mapped"},{"$f":"XBRLMap(G18,$G$95&\".\"&J18,$N$1,$N$2,CONFIGURATION!$B$10,\"BMA\",CONFIGURATION!$B$1,\"bscr\",CONFIGURATION!$B$12)","v":"Mapped"},null,null,null,null,null,null,null,"SSA_CreditRiskssaCapital","SSA_CreditRiskbscrOrCapitalFromApprovedInternalModelAt990PercentTvar"]
[null,"Interest Rate and Liquidity risk",null,null,{"$f":"Import!M5196","v":0},null,{"$f":"'CSP (Revised)'!K722","v":0},null,null,"brrt_RiskCategoryAxis_brrt_InterestAndLiquidityRiskMember",{"$f":"XBRLMap(E19,$E$95&\".\"&J19,$N$1,$N$2,CONFIGURATION!$B$10,\"BMA\",CONFIGURATION!$B$1,\"bscr\",CONFIGURATION!$B$12)","v":"Mapped"},{"$f":"XBRLMap(G19,$G$95&\".\"&J19,$N$1,$N$2,CONFIGURATION!$B$10,\"BMA\",CONFIGURATION!$B$1,\"bscr\",CONFIGURATION!$B$12)","v":"Mapped"}]
[null,"Group, Concentration, Reputational and Strategic risk",null,null,{"$f":"Import!M5197","v":0},null,{"$f":"'CSP (Revised)'!K724","v":0},null,null,"brrt_RiskCategoryAxis_brrt_GroupReputationalAndStrategicRiskMember",{"$f":"XBRLMap(E20,$E$95&\".\"&J20,$N$1,$N$2,CONFIGURATION!$B$10,\"BMA\",CONFIGURATION!$B$1,\"bscr\",CONFIGURATION!$B$12)","v":"Mapped"},{"$f":"XBRLMap(G20,$G$95&\".\"&J20,$N$1,$N$2,CONFIGURATION!$B$10,\"BMA\",CONFIGURATION!$B$1,\"bscr\",CONFIGURATION!$B$12)","v":"Mapped"},null,null,null,null,null,null,null,"SSA_GroupReputationalAndStrategicRiskssaCapital","SSA_GroupReputationalAndStrategicRiskbscrOrCapitalFromApprovedInternalModelAt990PercentTvar"]
[null,"Other (specify)",null,null,{"$f":"Import!M5198","v":0},null,0,null,null,"brrt_RiskCategoryAxis_brrt_OtherRiskMember",{"$f":"XBRLMap(E21,$E$95&\".\"&J21,$N$1,$N$2,CONFIGURATION!$B$10,\"BMA\",CONFIGURATION!$B$1,\"bscr\",CONFIGURATION!$B$12)","v":"Mapped"},{"$f":"XBRLMap(G21,$G$95&\".\"&J21,$N$1,$N$2,CONFIGURATION!$B$10,\"BMA\",CONFIGURATION!$B$1,\"bscr\",CONFIGURATION!$B$12)","v":"Mapped"},null,null,null,null,null,null,null,"SSA_OtherValuessaCapital","SSA_OtherValuebscrOrCapitalFromApprovedInternalModelAt990PercentTvar"]
[null,null,null,null,null,null,null,null,null,"brrt_RiskCategoryOtherDescription",{"$f":"XBRLMap(B21,J22,$N$1,$N$2,CONFIGURATION!$B$10,\"BMA\",CONFIGURATION!$B$1,\"bscr\")","v":"Mapped"},null,null,null,null,null,null,null,null,"SSA_OtherLabel"]
[null,"Total capital pre-diversification between risk categories",null,null,{"$f":"SUM(E10:E21)","v":0},null,{"$f":"SUM(G10:G21)","v":0},null,null,"brrt_RiskCategoryAxis_brrt_TotalCapitalPrediversificationBetweenRiskCategoriesMember",{"$f":"XBRLMap(E23,$E$95&\".\"&J23,$N$1,$N$2,CONFIGURATION!$B$10,\"BMA\",CONFIGURATION!$B$1,\"bscr\",CONFIGURATION!$B$12)","v":"Mapped"},{"$f":"XBRLMap(G23,$G$95&\".\"&J23,$N$1,$N$2,CONFIGURATION!$B$10,\"BMA\",CONFIGURATION!$B$1,\"bscr\",CONFIGURATION!$B$12)","v":"Mapped"},null,null,null,null,null,null,null,"SSA_TotalCapitalPrediversificationBetweenRiskCategoriesssaCapital","SSA_TotalCapitalPrediversificationBetweenRiskCategoriesbscrOrCapitalFromApprovedInternalModelAt990PercentTvar"]
[null,null,null,null,null,null,null,null,"",null,null,null,null,null,null,null,null,null,null,""]
[null,"Diversification credit between risk categories",null,null,{"$f":"Import!M5200","v":0},null,{"$f":"G23-G27","v":0},null,null,"brrt_RiskCategoryAxis_brrt_DiversificationCreditBetweenRiskCategoriesMember",{"$f":"XBRLMap(E25,$E$95&\".\"&J25,$N$1,$N$2,CONFIGURATION!$B$10,\"BMA\",CONFIGURATION!$B$1,\"bscr\",CONFIGURATION!$B$12)","v":"Mapped"},{"$f":"XBRLMap(G25,$G$95&\".\"&J25,$N$1,$N$2,CONFIGURATION!$B$10,\"BMA\",CONFIGURATION!$B$1,\"bscr\",CONFIGURATION!$B$12)","v":"Mapped"},null,null,null,null,null,null,null,"SSA_DiversificationCreditBetweenRiskCategoriesssaCapital","SSA_DiversificationCreditBetweenRiskCategoriesbscrOrCapitalFromApprovedInternalModelAt990PercentTvar"]
[null,null,null,null,null,null,null,null,null,null,null,null,null,null,null,null,null,null,null,""]
[null,"Total capital after diversification before operational risk ",null,null,{"$f":"E23-E25","v":0},null,{"$f":"Summary!N74-Summary!N64","v":0},null,null,"brrt_RiskCategoryAxis_brrt_TotalCapitalAfterDiversificationBeforeOperationalRiskMember",{"$f":"XBRLMap(E27,$E$95&\".\"&J27,$N$1,$N$2,CONFIGURATION!$B$10,\"BMA\",CONFIGURATION!$B$1,\"bscr\",CONFIGURATION!$B$12)","v":"Mapped"},{"$f":"XBRLMap(G27,$G$95&\".\"&J27,$N$1,$N$2,CONFIGURATION!$B$10,\"BMA\",CONFIGURATION!$B$1,\"bscr\",CONFIGURATION!$B$12)","v":"Mapped"}]
[]
[null,"Operational risk",null,null,{"$f":"Import!M5202","v":0},null,{"$f":"Summary!N64","v":0},null,null,"brrt_RiskCategoryAxis_brrt_OperationalRiskMember",{"$f":"XBRLMap(E29,$E$95&\".\"&J29,$N$1,$N$2,CONFIGURATION!$B$10,\"BMA\",CONFIGURATION!$B$1,\"bscr\",CONFIGURATION!$B$12)","v":"Mapped"},{"$f":"XBRLMap(G29,$G$95&\".\"&J29,$N$1,$N$2,CONFIGURATION!$B$10,\"BMA\",CONFIGURATION!$B$1,\"bscr\",CONFIGURATION!$B$12)","v":"Mapped"},null,null,null,null,null,null,null,"SSA_OperationalRiskssaCapital","SSA_OperationalRiskbscrOrCapitalFromApprovedInternalModelAt990PercentTvar"]
[null,null,null,null,null,null,null,null,""]
[null,"Total capital after diversification and opertional risk",null,null,{"$f":"E27+E29","v":0},null,{"$f":"G27+G29","v":0},null,null,"brrt_RiskCategoryAxis_brrt_TotalMember",{"$f":"XBRLMap(E31,$E$95&\".\"&J31,$N$1,$N$2,CONFIGURATION!$B$10,\"BMA\",CONFIGURATION!$B$1,\"bscr\",CONFIGURATION!$B$12)","v":"Mapped"},{"$f":"XBRLMap(G31,$G$95&\".\"&J31,$N$1,$N$2,CONFIGURATION!$B$10,\"BMA\",CONFIGURATION!$B$1,\"bscr\",CONFIGURATION!$B$12)","v":"Mapped"},null,null,null,null,null,null,null,"SSA_TotalCapitalAfterDiversificationBetweenRiskCategoriesssaCapital","SSA_TotalCapitalAfterDiversificationBetweenRiskCategoriesbscrOrCapitalFromApprovedInternalModelAt990PercentTvar"]
[null,null,null,null,null,null,null,null,null,"",null,null,null,null,null,null,null,null,null,""]
[null,"Where:",null,null,null,null,null,null,null,"",null,null,null,null,null,null,null,null,null,""]
["a)","CISSA Capital is the amount of capital the insurer has determined, that is required to achieve its strategic goals upon undertaking an assessment of all material (reasonably foreseeable) risks arising from its operations or operational environment.",null,null,null,null,null,null,null,""]
[]
["b)","Regulatory capital as determined by the Bermuda Solvency Capital Requirement (\"BSCR\") as described in the Insurance Prudential Standards (Class D and Class E Solvency Requirement) Order or regulatory capital determined from an approved internal model for regulatory purposes at 99% TVaR.",null,null,null,null,null,null,null,""]
[]
[null,"ADDITIONAL INFORMATION"]
[]
[null,"The insurer should review the following statements and select from the drop-down list as applicable and/or provide a brief description or an attachment.  Where an attachment is provided, include references (e.g. page number, paragraph number) of where the information is located in the comments box in the attachments tab."]
[]
[1,"What is the primary reason(s) (select multiple responses where applicable) for aiming at the disclosed CISSA Capital amount? (select all that apply by choosing Yes/No )"]
[]
[null,{"$f":"Import!E5204","v":"Select Yes/No"}," Target agency rating (e.g. \"A-\", \"AA\", etc) ",null,null,null,null,null,null,"brrt_PrimaryReasonForAimingAtTheDisclosedCISSACapitalAmountIsTargetAgencyRatingAMinusAA",{"$f":"XBRLMapBoolean(B44,J44,$N$1,$N$2,CONFIGURATION!$B$10,\"BMA\",CONFIGURATION!$B$1,\"bscr\",IF(B44=\"Yes\",\"1\",\"0\"))","v":"Mapped"},null,null,null,null,null,null,null,null,"SSA_PrimaryReasonForAimingAtDisclosedSsaCapitalAmountIsTargetAgencyRatingegaaaEtc"]
[null,{"$f":"Import!E5205","v":"Select Yes/No"}," Market share ",null,null,null,null,null,null,"brrt_PrimaryReasonForAimingAtTheDisclosedCISSACapitalAmountIsMarketShare",{"$f":"XBRLMapBoolean(B45,J45,$N$1,$N$2,CONFIGURATION!$B$10,\"BMA\",CONFIGURATION!$B$1,\"bscr\",IF(B45=\"Yes\",\"1\",\"0\"))","v":"Mapped"},null,null,null,null,null,null,null,null,"SSA_PrimaryReasonForAimingAtDisclosedSsaCapitalAmountIsMarketShare"]
[null,{"$f":"Import!E5206","v":"Select Yes/No"}," Business expansion ",null,null,null,null,null,null,"brrt_PrimaryReasonForAimingAtTheDisclosedCISSACapitalAmountIsBusinessExpansion",{"$f":"XBRLMapBoolean(B46,J46,$N$1,$N$2,CONFIGURATION!$B$10,\"BMA\",CONFIGURATION!$B$1,\"bscr\",IF(B46=\"Yes\",\"1\",\"0\"))","v":"Mapped"},null,null,null,null,null,null,null,null,"SSA_PrimaryReasonForAimingAtDisclosedSsaCapitalAmountIsBusinessExpansion"]
[null,{"$f":"Import!E5207","v":"Select Yes/No"}," Nature of product(s) (e.g. risk characteristics) ",null,null,null,null,null,null,"brrt_PrimaryReasonForAimingAtTheDisclosedCISSACapitalAmountIsNatureOfProductsRiskCharacteristics",{"$f":"XBRLMapBoolean(B47,J47,$N$1,$N$2,CONFIGURATION!$B$10,\"BMA\",CONFIGURATION!$B$1,\"bscr\",IF(B47=\"Yes\",\"1\",\"0\"))","v":"Mapped"},null,null,null,null,null,null,null,null,"SSA_PrimaryReasonForAimingAtDisclosedSsaCapitalAmountIsNatureOfProductsegRiskCharacteristics"]
[null,{"$f":"Import!E5208","v":"Select Yes/No"}," Manage downgrade risk",null,null,null,null,null,null,"brrt_PrimaryReasonForAimingAtTheDisclosedCISSACapitalAmountIsManageDowngradeRisk",{"$f":"XBRLMapBoolean(B48,J48,$N$1,$N$2,CONFIGURATION!$B$10,\"BMA\",CONFIGURATION!$B$1,\"bscr\",IF(B48=\"Yes\",\"1\",\"0\"))","v":"Mapped"},null,null,null,null,null,null,null,null,"SSA_PrimaryReasonForAimingAtDisclosedSsaCapitalAmountIsManageDowngradeRisk"]
[null,{"$f":"Import!E5209","v":"Select Yes/No"}," Regulatory capital requirements",null,null,null,null,null,null,"brrt_PrimaryReasonForAimingAtTheDisclosedCISSACapitalAmountIsRegulatoryCapitalRequirements",{"$f":"XBRLMapBoolean(B49,J49,$N$1,$N$2,CONFIGURATION!$B$10,\"BMA\",CONFIGURATION!$B$1,\"bscr\",IF(B49=\"Yes\",\"1\",\"0\"))","v":"Mapped"}]
[null,{"$f":"Import!E5210","v":"Select Yes/No"}," Others ","(Briefly Describe)",null,null,null,null,null,"brrt_PrimaryReasonForAimingAtTheDisclosedCISSACapitalAmountIsOther",{"$f":"XBRLMapBoolean(B50,J50,$N$1,$N$2,CONFIGURATION!$B$10,\"BMA\",CONFIGURATION!$B$1,\"bscr\",IF(B50=\"Yes\",\"1\",\"0\"))","v":"Mapped"},null,null,null,null,null,null,null,null,"SSA_OtherReasonForAimingAtDisclosedProjectedTargetEconomicCapitalAmount"]
[null,null,null,null,null,null,null,null,null,"brrt_PrimaryReasonForAimingAtTheDisclosedCISSACapitalAmountIsOtherDescription",{"$f":"XBRLMap(D50,J51,$N$1,$N$2,CONFIGURATION!$B$10,\"BMA\",CONFIGURATION!$B$1,\"bscr\")","v":"Mapped"},null,null,null,null,null,null,null,null,""]
[2,"What methodology is used to aggregate the risk categories? (select all that apply by choosing Yes/No)",null,null,null,null,null,null,null,null,null,null,null,null,null,null,null,null,null,"SSA_MethodologyUsedToAggregateRiskCategories"]
[null,null,null,null,null,null,null,null,null,"",null,null,null,null,null,null,null,null,null,""]
[null,{"$f":"Import!E5211","v":"Select Yes/No"}," Correlation matrix",null,null,null,null,null,null,"brrt_MethodologyUsedToAggregateTheRiskCategoriesInDerivingTheCISSACapitalIsCorrelationMatrix",{"$f":"XBRLMapBoolean(B54,J54,$N$1,$N$2,CONFIGURATION!$B$10,\"BMA\",CONFIGURATION!$B$1,\"bscr\",IF(B54=\"Yes\",\"1\",\"0\"))","v":"Mapped"}]
[null,{"$f":"Import!E5212","v":"Select Yes/No"}," Linear correlations",null,null,null,null,null,null,"brrt_MethodologyUsedToAggregateTheRiskCategoriesInDerivingTheCISSACapitalIsLinearCorrelations",{"$f":"XBRLMapBoolean(B55,J55,$N$1,$N$2,CONFIGURATION!$B$10,\"BMA\",CONFIGURATION!$B$1,\"bscr\",IF(B55=\"Yes\",\"1\",\"0\"))","v":"Mapped"}]
[null,{"$f":"Import!E5213","v":"Select Yes/No"}," T copulas",null,null,null,null,null,null,"brrt_MethodologyUsedToAggregateTheRiskCategoriesInDerivingTheCISSACapitalIsTCopulas",{"$f":"XBRLMapBoolean(B56,J56,$N$1,$N$2,CONFIGURATION!$B$10,\"BMA\",CONFIGURATION!$B$1,\"bscr\",IF(B56=\"Yes\",\"1\",\"0\"))","v":"Mapped"}]
[null,{"$f":"Import!E5214","v":"Select Yes/No"}," Gumbel copulas",null,null,null,null,null,null,"brrt_MethodologyUsedToAggregateTheRiskCategoriesInDerivingTheCISSACapitalIsGumbelCopulas",{"$f":"XBRLMapBoolean(B57,J57,$N$1,$N$2,CONFIGURATION!$B$10,\"BMA\",CONFIGURATION!$B$1,\"bscr\",IF(B57=\"Yes\",\"1\",\"0\"))","v":"Mapped"}]
[null,{"$f":"Import!E5215","v":"Select Yes/No"}," Clayton copulas",null,null,null,null,null,null,"brrt_MethodologyUsedToAggregateTheRiskCategoriesInDerivingTheCISSACapitalIsClaytonCopulas",{"$f":"XBRLMapBoolean(B58,J58,$N$1,$N$2,CONFIGURATION!$B$10,\"BMA\",CONFIGURATION!$B$1,\"bscr\",IF(B58=\"Yes\",\"1\",\"0\"))","v":"Mapped"}]
[null,{"$f":"Import!E5216","v":"Select Yes/No"}," Causal drivers approach e.g. inflation, cycles",null,null,null,null,null,null,"brrt_MethodologyUsedToAggregateTheRiskCategoriesInDerivingTheCISSACapitalIsCausalDriversApproachInflationCycles",{"$f":"XBRLMapBoolean(B59,J59,$N$1,$N$2,CONFIGURATION!$B$10,\"BMA\",CONFIGURATION!$B$1,\"bscr\",IF(B59=\"Yes\",\"1\",\"0\"))","v":"Mapped"}]
[null,{"$f":"Import!E5217","v":"Select Yes/No"}," Others","(Briefly Describe)",null,null,null,null,null,"brrt_MethodologyUsedToAggregateTheRiskCategoriesInDerivingTheCISSACapitalIsOthers",{"$f":"XBRLMapBoolean(B60,J60,$N$1,$N$2,CONFIGURATION!$B$10,\"BMA\",CONFIGURATION!$B$1,\"bscr\",IF(B60=\"Yes\",\"1\",\"0\"))","v":"Mapped"}]
[null,null,null,null,null,null,null,null,null,"brrt_MethodologyUsedToAggregateTheRiskCategoriesInDerivingTheCISSACapitalIsOthersDescription",{"$f":"XBRLMap(D60,J61,$N$1,$N$2,CONFIGURATION!$B$10,\"BMA\",CONFIGURATION!$B$1,\"bscr\")","v":"Mapped"}]
[3,"What contingency plans are in place for raising additional capital under stress situations?  (select all that apply by choosing Yes/No)",null,null,null,null,null,null,null,"",null,null,null,null,null,null,null,null,null,""]
[null,null,null,null,null,null,null,null,null,"",null,null,null,null,null,null,null,null,null,""]
[null,{"$f":"Import!E5218","v":"Select Yes/No"}," Parental guarantees",null,null,null,null,null,null,"brrt_ContingencyPlansInPlaceForRaisingAdditionalCapitalUnderStressSituationsIsParentalGuarantees",{"$f":"XBRLMapBoolean(B64,J64,$N$1,$N$2,CONFIGURATION!$B$10,\"BMA\",CONFIGURATION!$B$1,\"bscr\",IF(B64=\"Yes\",\"1\",\"0\"))","v":"Mapped"},null,null,null,null,null,null,null,null,"SSA_ParentalGuaranteesAreInPlaceForRaisingAdditionalCapitalUnderStressSituations"]
[null,{"$f":"Import!E5219","v":"Select Yes/No"}," Revolving letters of credit",null,null,null,null,null,null,"brrt_ContingencyPlansInPlaceForRaisingAdditionalCapitalUnderStressSituationsIsRevolvingLettersOfCredit",{"$f":"XBRLMapBoolean(B65,J65,$N$1,$N$2,CONFIGURATION!$B$10,\"BMA\",CONFIGURATION!$B$1,\"bscr\",IF(B65=\"Yes\",\"1\",\"0\"))","v":"Mapped"},null,null,null,null,null,null,null,null,"SSA_RevolvingLettersOfCreditAreInPlaceForRaisingAdditionalCapitalUnderStressSituations"]
[null,{"$f":"Import!E5220","v":"Select Yes/No"}," Issue subordinated debt",null,null,null,null,null,null,"brrt_ContingencyPlansInPlaceForRaisingAdditionalCapitalUnderStressSituationsIsIssueSubordinatedDebt",{"$f":"XBRLMapBoolean(B66,J66,$N$1,$N$2,CONFIGURATION!$B$10,\"BMA\",CONFIGURATION!$B$1,\"bscr\",IF(B66=\"Yes\",\"1\",\"0\"))","v":"Mapped"},null,null,null,null,null,null,null,null,"SSA_IssueSubordinatedDebtAreInPlaceForRaisingAdditionalCapitalUnderStressSituations"]
[null,{"$f":"Import!E5221","v":"Select Yes/No"}," Issue preference shares",null,null,null,null,null,null,"brrt_ContingencyPlansInPlaceForRaisingAdditionalCapitalUnderStressSituationsIsIssuePreferenceShares",{"$f":"XBRLMapBoolean(B67,J67,$N$1,$N$2,CONFIGURATION!$B$10,\"BMA\",CONFIGURATION!$B$1,\"bscr\",IF(B67=\"Yes\",\"1\",\"0\"))","v":"Mapped"},null,null,null,null,null,null,null,null,"SSA_IssuePreferenceSharesAreInPlaceForRaisingAdditionalCapitalUnderStressSituations"]
[null,{"$f":"Import!E5222","v":"Select Yes/No"}," Float additional shares",null,null,null,null,null,null,"brrt_ContingencyPlansInPlaceForRaisingAdditionalCapitalUnderStressSituationsIsFloatAdditionalShares",{"$f":"XBRLMapBoolean(B68,J68,$N$1,$N$2,CONFIGURATION!$B$10,\"BMA\",CONFIGURATION!$B$1,\"bscr\",IF(B68=\"Yes\",\"1\",\"0\"))","v":"Mapped"},null,null,null,null,null,null,null,null,"SSA_FloatAdditionalSharesAreInPlaceForRaisingAdditionalCapitalUnderStressSituations"]
[null,{"$f":"Import!E5223","v":"Select Yes/No"}," Capital injections from parent",null,null,null,null,null,null,"brrt_ContingencyPlansInPlaceForRaisingAdditionalCapitalUnderStressSituationsIsCapitalInjectionsFromParent",{"$f":"XBRLMapBoolean(B69,J69,$N$1,$N$2,CONFIGURATION!$B$10,\"BMA\",CONFIGURATION!$B$1,\"bscr\",IF(B69=\"Yes\",\"1\",\"0\"))","v":"Mapped"},null,null,null,null,null,null,null,null,"SSA_CapitalInjectionsFromParentAreInPlaceForRaisingAdditionalCapitalUnderStressSituations"]
[null,{"$f":"Import!E5224","v":"Select Yes/No"}," Contingent surplus notes",null,null,null,null,null,null,"brrt_ContingencyPlansInPlaceForRaisingAdditionalCapitalUnderStressSituationsIsContingentSurplusNotes",{"$f":"XBRLMapBoolean(B70,J70,$N$1,$N$2,CONFIGURATION!$B$10,\"BMA\",CONFIGURATION!$B$1,\"bscr\",IF(B70=\"Yes\",\"1\",\"0\"))","v":"Mapped"},null,null,null,null,null,null,null,null,"SSA_ContingentSurplusNotesAreInPlaceForRaisingAdditionalCapitalUnderStressSituations"]
[null,{"$f":"Import!E5225","v":"Select Yes/No"}," Catastrophe derivatives (e.g. bonds, swaps and options)",null,null,null,null,null,null,"brrt_ContingencyPlansInPlaceForRaisingAdditionalCapitalUnderStressSituationsIsCatastropheDerivativesBondsSwapsAndOptions",{"$f":"XBRLMapBoolean(B71,J71,$N$1,$N$2,CONFIGURATION!$B$10,\"BMA\",CONFIGURATION!$B$1,\"bscr\",IF(B71=\"Yes\",\"1\",\"0\"))","v":"Mapped"},null,null,null,null,null,null,null,null,"SSA_CatastropheDerivativesegBondsSwapsAndOptionsAreInPlaceForRaisingAdditionalCapitalUnderStressSituations"]
[null,{"$f":"Import!E5226","v":"Select Yes/No"},"Others ","(Briefly Describe)",null,null,null,null,null,"brrt_ContingencyPlansInPlaceForRaisingAdditionalCapitalUnderStressSituationsIsOther",{"$f":"XBRLMapBoolean(B72,J72,$N$1,$N$2,CONFIGURATION!$B$10,\"BMA\",CONFIGURATION!$B$1,\"bscr\",IF(B72=\"Yes\",\"1\",\"0\"))","v":"Mapped"},null,null,null,null,null,null,null,null,"SSA_OthersAreInPlaceForRaisingAdditionalCapitalUnderStressSituations"]
[null,null,null,null,null,null,null,null,null,"brrt_ContingencyPlansInPlaceForRaisingAdditionalCapitalUnderStressSituationsIsOtherDescription",{"$f":"XBRLMap(D72,J73,$N$1,$N$2,CONFIGURATION!$B$10,\"BMA\",CONFIGURATION!$B$1,\"bscr\")","v":"Mapped"},null,null,null,null,null,null,null,null,""]
[4,"Does the insurer have arrangements / contractual commitments to provide support, including forward purchase arrangements or guarantees, to affiliates/other ",null,null,null,null,{"$f":"Import!E5227","v":"Select Yes/No"},null,null,"brrt_InsureHasArrangementsContractualCommitmentsToProvideSupportToAffiliatesOtherCompaniesInStressedSituations",{"$f":"XBRLMapBoolean(G74,J74,$N$1,$N$2,CONFIGURATION!$B$10,\"BMA\",CONFIGURATION!$B$1,\"bscr\",IF(G74=\"Yes\",\"1\",\"0\"))","v":"Mapped"},null,null,null,null,null,null,null,null,"SSA_CompanyHasArrangementsContractualCommitmentsToProvideSupportToAffiliatesotherCompaniesInStressedSituations"]
[null,"companies in stressed situations? (Yes or No)"]
[null,"If yes, briefly describe the arrangement(s) and the aggregate exposure.",null,null,null,null,null,null,null,""]
[null,{"$f":"Import!E5228","v":0},null,null,null,null,null,null,null,"brrt_ArrangementsContractualCommitmentsToProvideSupportToAffiliatesOtherCompaniesInStressedSituationsDescription",{"$f":"XBRLMap(B77,J77,$N$1,$N$2,CONFIGURATION!$B$10,\"BMA\",CONFIGURATION!$B$1,\"bscr\")","v":"Mapped"},null,null,null,null,null,null,null,null,"SSA_DescriptionOfArrangementsAndAggregateExposure"]
[null,null,null,null,null,null,null,null,null,"",null,null,null,null,null,null,null,null,null,""]
[5,"Has the insurer down streamed debt to establish equity positions (participations), or engaged in double or multiple gearing? (Yes or No)",null,null,null,null,{"$f":"Import!E5229","v":"Select Yes/No"},null,null,"brrt_InsurerDownstreamedDebtToEstablishEquityPositionsParticipationsOrEngagedInDoubleOrMultipleGearing",{"$f":"XBRLMapBoolean(G79,J79,$N$1,$N$2,CONFIGURATION!$B$10,\"BMA\",CONFIGURATION!$B$1,\"bscr\",IF(G79=\"Yes\",\"1\",\"0\"))","v":"Mapped"},null,null,null,null,null,null,null,null,"SSA_CompanyHasEngagedInDoubleOrMultipleGearing"]
[null,"If yes, provide details and amount of capital.",null,null,null,null,null,null,null,null,null,null,null,null,null,null,null,null,null,""]
[null,{"$f":"Import!E5230","v":0},null,null,null,null,null,null,null,"brrt_InsurerDownstreamedDebtToEstablishEquityPositionsParticipationsOrEngagedInDoubleOrMultipleGearingDescriptionAndAmount",{"$f":"XBRLMap(B81,J81,$N$1,$N$2,CONFIGURATION!$B$10,\"BMA\",CONFIGURATION!$B$1,\"bscr\")","v":"Mapped"},null,null,null,null,null,null,null,null,"SSA_DetailsAndAmountOfCapitalOfDoubleOrMultipleGearing"]
[]
[6,"Has debt been down streamed to establish equity positions in the insurer, or is the insurer using capital that is double or multiple geared? (Yes or No)",null,null,null,null,{"$f":"Import!E5231","v":"Select Yes/No"},null,null,"brrt_DebtBeenDownstreamedToEstablishEquityPositionsInsurerOrIsInsurerUsingCapitalThatisDoubleOrMultipleGeared",{"$f":"XBRLMapBoolean(G83,J83,$N$1,$N$2,CONFIGURATION!$B$10,\"BMA\",CONFIGURATION!$B$1,\"bscr\",IF(G83=\"Yes\",\"1\",\"0\"))","v":"Mapped"}]
[null,"If yes, provide details and amount of capital."]
[null,{"$f":"Import!E5232","v":0},null,null,null,null,null,null,null,"brrt_DebtBeenDownstreamedToEstablishEquityPositionsInsurerOrIsInsurerUsingCapitalThatisDoubleOrMultipleGearedDescriptionAndAmount",{"$f":"XBRLMap(B85,J85,$N$1,$N$2,CONFIGURATION!$B$10,\"BMA\",CONFIGURATION!$B$1,\"bscr\")","v":"Mapped"}]
[]
[7,"Are there any assets of a subsidiary of the insurer that are restricted for use that cannot be transferred to another subsidiary or the insurer, that were not included in ",null,null,null,null,{"$f":"Import!E5233","v":"Select Yes/No"},null,null,"brrt_AssetsOfSubsidiaryOfInsurerRestrictedForUseReportedInScheduleOfEligibleCapital",{"$f":"XBRLMapBoolean(G87,J87,$N$1,$N$2,CONFIGURATION!$B$10,\"BMA\",CONFIGURATION!$B$1,\"bscr\",IF(G87=\"Yes\",\"1\",\"0\"))","v":"Mapped"}]
[null,"the encumbered assets (for both policyholders obligations and not policyholder obligations) reported in the Schedule of Eligible Capital? (Yes or No)"]
[null,{"$f":"HYPERLINK(\"#'Attachments'!G1\",\"Provide details in the CISSA Attachments section if there are any restrictions of movement of assets/payment of dividends\")","v":"Provide details in the CISSA Attachments section if there are any restrictions of movement of assets/payment of dividends"}]
[null,null,null,null,null,"Total restricted assets",{"$f":"Import!E5234","v":0},null,null,"brrt_AssetsOfSubsidiaryOfInsurerRestrictedForUseReportedInScheduleOfEligibleCapitalTotalRestrictedAssets",{"$f":"XBRLMap(G90,J90,$N$1,$N$2,CONFIGURATION!$B$10,\"BMA\",CONFIGURATION!$B$1,\"bscr\",CONFIGURATION!$B$12)","v":"Mapped"}]
[null,null,null,null,null,"Less: Regulatory capital requirements for members for which the assets pertain",{"$f":"Import!E5235","v":0},null,null,"brrt_AssetsOfSubsidiaryOfInsurerRestrictedForUseReportedInScheduleOfEligibleCapitalLessRegulatoryCapitalRequirements",{"$f":"XBRLMap(G91,J91,$N$1,$N$2,CONFIGURATION!$B$10,\"BMA\",CONFIGURATION!$B$1,\"bscr\",CONFIGURATION!$B$12)","v":"Mapped"}]
[null,null,null,null,null,"Restricted assets in excess of capital requirements to the extent that these amounts are not "]
[null,null,null,null,null,"included in the encumbered assets reported in the Schedule of Eligible Capital",{"$f":"G90-G91","v":0},null,null,"brrt_AssetsOfSubsidiaryOfInsurerRestrictedForUseReportedInScheduleOfEligibleCapitalRestrictedAssetsInExcessOfCapitalRequirements",{"$f":"XBRLMap(G93,J93,$N$1,$N$2,CONFIGURATION!$B$10,\"BMA\",CONFIGURATION!$B$1,\"bscr\",CONFIGURATION!$B$12)","v":"Mapped"}]
[]
[null,null,null,null,"brrt_CommercialInsurersSolvencySelfAssessmentCapital",null,"brrt_RegulatoryCapital"]
[null,null,null,null,"Contingency plans for additional capital"]
[]
[null,null,null,null,"Parental guarantees"]
[null,null,null,null,"revolving letters of credit"]
[null,null,null,null,"Contingent capital arrangements"]
[null,null,null,null,"Issue subordinated debt"]
[null,null,null,null,"Issue preference shares"]
[null,null,null,null,"Float additional shares"]
[null,null,null,null,"Capital injections from parent"]
[]
[]
[null,null,null,null,"Correlation matrix "]
[null,null,null,null,"Linear correlations"]
[null,null,null,null,"T copulas"]
[null,null,null,null,"Gumbel copulas"]
[null,null,null,null,"Clayton copulas"]
[null,null,null,null,"Causal drivers approach e.g. inflation, cycles"]
[null,null,null,null,"Other"]
[]
[]
[null,null,null,null,"Not applicable"]
[]
[]
[]
[]
[]
[]
[]
[null,null,null,null,"Yes"]
[null,null,null,null,"No"]

{"sheet":"Schedule IX(b)","index":55,"n_rows":69,"n_cols":18,"rows_kept":69,"cut":false,"hidden":false,"merged":[[37,1,37,5],[32,1,32,3],[16,1,16,4],[17,1,17,4],[18,1,18,4],[30,1,30,4],[19,1,19,4],[20,1,20,4],[21,1,21,4],[25,1,25,4],[34,1,34,4],[28,1,28,4],[0,1,0,4],[26,1,26,4],[10,1,10,4],[11,1,11,4],[4,1,4,5],[12,1,12,4],[13,1,13,4],[14,1,14,4],[15,1,15,4],[6,1,6,4],[22,1,22,4],[23,1,23,4],[24,1,24,4]]}
[null,"SCHEDULE OF COMMERCIAL INSURER'S SOLVENCY SELF ASSESSMENT (CISSA) GENERAL QUESTIONS (TABLE 8A)",null,null,null,{"$f":"HYPERLINK(\"#'Index'!A1\",\"Return to Index\")","v":"Return to Index"},null,null,null,null,null,null,null,{"$f":"IF($B$3=\"\",\"\",TEXT(DATE(YEAR($B$3+1)-1,MONTH($B$3+1),DAY($B$3+1)),\"mm/dd/yyyy\"))","v":"01/01/2019"}]
[null,{"$f":"'Insurer Information'!C7","v":"Enter Company Name"},null,null,null,null,null,null,""]
[null,{"$f":" TEXT('Insurer Information'!C3,\"mmmm dd, yyyy\")","v":"December 31, 2019"},null,null,null,"SCHEDULE IX(b)",null,null,""]
[null,null,null,null,null,null,null,null,""]
[null,"The insurer should review the following statements and select from the drop-down list as applicable and/or provide a brief description or an attachment. Where an attachment is provided, include references (e.g. page number, paragraph number) of where the information is located in the comments box in the attachments tab.",null,null,null,null,null,null,""]
[null,null,null,null,null,null,null,null,"",null,null,null,null,{"$f":"YEAR('Insurer Information'!C3)","v":2019}]
[1,"Is the CISSA and its underlying information integrated (i.e. considered when making key strategic decisions) into the insurer's strategic and risk management decision-making processes? (Yes or No)",null,null,null,{"$f":"Import!E5238","v":"Select Yes/No"},null,null,"brrt_CISSAAndItsUnderlyingInformationIsIntegratedConsideredWhenMakingKeyStrategicDecisionsIntoTheInsurersStrategicAndRiskManagementDecisionMakingProcess",{"$f":"XBRLMapBoolean(F7,I7,$N$1,#REF!,CONFIGURATION!$B$10,\"BMA\",CONFIGURATION!$B$1,\"bscr\",IF(F7=\"Yes\",\"1\",\"0\"))","v":{"$error":"#VALUE!"}},null,null,null,null,null,null,null,"SSA_SsaAndItsUnderlyingInformationIsIntegratedIntoCompanyStrategicAndRiskManagementDecisionmakingProcesses"]
[null,null,null,null,null,null,null,null,"",null,null,null,null,null,null,null,null,""]
[null,"If Yes, how is CISSA and its underlying information used? (select all that apply by choosing Yes/No )",null,null,null,null,null,null,"",null,null,null,null,null,null,null,null,""]
[]
[null,"Strategic planning",null,null,null,{"$f":"Import!E5239","v":"Select Yes/No"},null,null,"brrt_CISSAAndItsUnderlyingInformationIsUsedForStrategicPlanning",{"$f":"XBRLMapBoolean(F11,I11,$N$1,#REF!,CONFIGURATION!$B$10,\"BMA\",CONFIGURATION!$B$1,\"bscr\",IF(F11=\"Yes\",\"1\",\"0\"))","v":{"$error":"#VALUE!"}},null,null,null,null,null,null,null,"SSA_SsaAndItsUnderlyingInformationIsUsedForStrategicPlanning"]
[null,"Annual business planning",null,null,null,{"$f":"Import!E5240","v":"Select Yes/No"},null,null,"brrt_CISSAAndItsUnderlyingInformationIsUsedForAnnualBusinessPlanning",{"$f":"XBRLMapBoolean(F12,I12,$N$1,#REF!,CONFIGURATION!$B$10,\"BMA\",CONFIGURATION!$B$1,\"bscr\",IF(F12=\"Yes\",\"1\",\"0\"))","v":{"$error":"#VALUE!"}},null,null,null,null,null,null,null,"SSA_SsaAndItsUnderlyingInformationIsUsedForAnnualBusinessPlanning"]
[null,"Setting risk limits",null,null,null,{"$f":"Import!E5241","v":"Select Yes/No"},null,null,"brrt_CISSAAndItsUnderlyingInformationIsUsedForSettingRiskLimits",{"$f":"XBRLMapBoolean(F13,I13,$N$1,#REF!,CONFIGURATION!$B$10,\"BMA\",CONFIGURATION!$B$1,\"bscr\",IF(F13=\"Yes\",\"1\",\"0\"))","v":{"$error":"#VALUE!"}},null,null,null,null,null,null,null,"SSA_SsaAndItsUnderlyingInformationIsUsedForSettingRiskLimits"]
[null,"Defining risk appetite",null,null,null,{"$f":"Import!E5242","v":"Select Yes/No"},null,null,"brrt_CISSAAndItsUnderlyingInformationIsUsedForDefiningRiskAppetite",{"$f":"XBRLMapBoolean(F14,I14,$N$1,#REF!,CONFIGURATION!$B$10,\"BMA\",CONFIGURATION!$B$1,\"bscr\",IF(F14=\"Yes\",\"1\",\"0\"))","v":{"$error":"#VALUE!"}},null,null,null,null,null,null,null,"SSA_SsaAndItsUnderlyingInformationIsUsedForDefiningRiskAppetite"]
[null,"Evaluation of capital adequacy",null,null,null,{"$f":"Import!E5243","v":"Select Yes/No"},null,null,"brrt_CISSAAndItsUnderlyingInformationIsUsedForEvaluationOfCapitalAdequacy",{"$f":"XBRLMapBoolean(F15,I15,$N$1,#REF!,CONFIGURATION!$B$10,\"BMA\",CONFIGURATION!$B$1,\"bscr\",IF(F15=\"Yes\",\"1\",\"0\"))","v":{"$error":"#VALUE!"}},null,null,null,null,null,null,null,"SSA_SsaAndItsUnderlyingInformationIsUsedForEvaluationOfCapitalAdequacy"]
[null,"Allocation of capital to business segments and lines of business",null,null,null,{"$f":"Import!E5244","v":"Select Yes/No"},null,null,"brrt_CISSAAndItsUnderlyingInformationIsUsedForAllocationOfCapitalToBusinessSegmentsAndLinesOfBusiness",{"$f":"XBRLMapBoolean(F16,I16,$N$1,#REF!,CONFIGURATION!$B$10,\"BMA\",CONFIGURATION!$B$1,\"bscr\",IF(F16=\"Yes\",\"1\",\"0\"))","v":{"$error":"#VALUE!"}},null,null,null,null,null,null,null,"SSA_SsaAndItsUnderlyingInformationIsUsedForAllocationOfCapitalToBusinessSegmentsAndLinesOfBusiness"]
[null,"Capital management",null,null,null,{"$f":"Import!E5245","v":"Select Yes/No"},null,null,"brrt_CISSAAndItsUnderlyingInformationIsUsedForCapitalManagement",{"$f":"XBRLMapBoolean(F17,I17,$N$1,#REF!,CONFIGURATION!$B$10,\"BMA\",CONFIGURATION!$B$1,\"bscr\",IF(F17=\"Yes\",\"1\",\"0\"))","v":{"$error":"#VALUE!"}},null,null,null,null,null,null,null,"SSA_SsaAndItsUnderlyingInformationIsUsedForCapitalManagement"]
[null,"Determination of rates of return for pricing and underwriting guidelines",null,null,null,{"$f":"Import!E5246","v":"Select Yes/No"},null,null,"brrt_CISSAAndItsUnderlyingInformationIsUsedForDeterminationOfRatesOfReturnForPricingAndUnderwritingGuidelines",{"$f":"XBRLMapBoolean(F18,I18,$N$1,#REF!,CONFIGURATION!$B$10,\"BMA\",CONFIGURATION!$B$1,\"bscr\",IF(F18=\"Yes\",\"1\",\"0\"))","v":{"$error":"#VALUE!"}},null,null,null,null,null,null,null,"SSA_SsaAndItsUnderlyingInformationIsUsedForDeterminationOfRatesOfReturnForPricingAndUnderwritingGuidelines"]
[null,"Reinsurance purchase",null,null,null,{"$f":"Import!E5247","v":"Select Yes/No"},null,null,"brrt_CISSAAndItsUnderlyingInformationIsUsedForReinsurancePurchase",{"$f":"XBRLMapBoolean(F19,I19,$N$1,#REF!,CONFIGURATION!$B$10,\"BMA\",CONFIGURATION!$B$1,\"bscr\",IF(F19=\"Yes\",\"1\",\"0\"))","v":{"$error":"#VALUE!"}},null,null,null,null,null,null,null,"SSA_SsaAndItsUnderlyingInformationIsUsedForReinsurancePurchase"]
[null,"Determination of investment policies and strategies",null,null,null,{"$f":"Import!E5248","v":"Select Yes/No"},null,null,"brrt_CISSAAndItsUnderlyingInformationIsUsedForDeterminationOfInvestmentPoliciesAndStrategies",{"$f":"XBRLMapBoolean(F20,I20,$N$1,#REF!,CONFIGURATION!$B$10,\"BMA\",CONFIGURATION!$B$1,\"bscr\",IF(F20=\"Yes\",\"1\",\"0\"))","v":{"$error":"#VALUE!"}},null,null,null,null,null,null,null,"SSA_SsaAndItsUnderlyingInformationIsUsedForDeterminationOfInvestmentPoliciesAndStrategies"]
[null,"Meeting regulatory requirements",null,null,null,{"$f":"Import!E5249","v":"Select Yes/No"},null,null,"brrt_CISSAAndItsUnderlyingInformationIsUsedForMeetingRegulatoryRequirements",{"$f":"XBRLMapBoolean(F21,I21,$N$1,#REF!,CONFIGURATION!$B$10,\"BMA\",CONFIGURATION!$B$1,\"bscr\",IF(F21=\"Yes\",\"1\",\"0\"))","v":{"$error":"#VALUE!"}},null,null,null,null,null,null,null,"SSA_SsaAndItsUnderlyingInformationIsUsedForMeetingRegulatoryRequirements"]
[null,"Improving credit rating",null,null,null,{"$f":"Import!E5250","v":"Select Yes/No"},null,null,"brrt_CISSAAndItsUnderlyingInformationIsUsedForImprovingCreditRating",{"$f":"XBRLMapBoolean(F22,I22,$N$1,#REF!,CONFIGURATION!$B$10,\"BMA\",CONFIGURATION!$B$1,\"bscr\",IF(F22=\"Yes\",\"1\",\"0\"))","v":{"$error":"#VALUE!"}},null,null,null,null,null,null,null,"SSA_SsaAndItsUnderlyingInformationIsUsedForImprovingCreditRating"]
[null,"Improving investor relations",null,null,null,{"$f":"Import!E5251","v":"Select Yes/No"},null,null,"brrt_CISSAAndItsUnderlyingInformationIsUsedForImprovingInvestorRelations",{"$f":"XBRLMapBoolean(F23,I23,$N$1,#REF!,CONFIGURATION!$B$10,\"BMA\",CONFIGURATION!$B$1,\"bscr\",IF(F23=\"Yes\",\"1\",\"0\"))","v":{"$error":"#VALUE!"}},null,null,null,null,null,null,null,"SSA_SsaAndItsUnderlyingInformationIsUsedForImprovingInvestorRelations"]
[null,"Assessing risk adjusted product profitability",null,null,null,{"$f":"Import!E5252","v":"Select Yes/No"},null,null,"brrt_CISSAAndItsUnderlyingInformationIsUsedForAssessingRiskAdjustedProductProfitability",{"$f":"XBRLMapBoolean(F24,I24,$N$1,#REF!,CONFIGURATION!$B$10,\"BMA\",CONFIGURATION!$B$1,\"bscr\",IF(F24=\"Yes\",\"1\",\"0\"))","v":{"$error":"#VALUE!"}},null,null,null,null,null,null,null,"SSA_SsaAndItsUnderlyingInformationIsUsedForAssessingRiskAdjustedProductProfitability"]
[null,"Performance measurement and assessment",null,null,null,{"$f":"Import!E5253","v":"Select Yes/No"},null,null,"brrt_CISSAAndItsUnderlyingInformationIsUsedForPerformanceMeasurementAndAssessment",{"$f":"XBRLMapBoolean(F25,I25,$N$1,#REF!,CONFIGURATION!$B$10,\"BMA\",CONFIGURATION!$B$1,\"bscr\",IF(F25=\"Yes\",\"1\",\"0\"))","v":{"$error":"#VALUE!"}},null,null,null,null,null,null,null,"SSA_SsaAndItsUnderlyingInformationIsUsedForPerformanceMeasurementAndAssessment"]
[null,"Improving mergers and acquisition decisions",null,null,null,{"$f":"Import!E5254","v":"Select Yes/No"},null,null,"brrt_CISSAAndItsUnderlyingInformationIsUsedForImprovingMergersAndAcquisitionDecisions",{"$f":"XBRLMapBoolean(F26,I26,$N$1,#REF!,CONFIGURATION!$B$10,\"BMA\",CONFIGURATION!$B$1,\"bscr\",IF(F26=\"Yes\",\"1\",\"0\"))","v":{"$error":"#VALUE!"}},null,null,null,null,null,null,null,"SSA_SsaAndItsUnderlyingInformationIsUsedForImprovingMergersAndAcquisitionDecisions"]
[null,"Others",null,null,null,{"$f":"Import!E5255","v":"Select Yes/No"},null,null,"brrt_CISSAAndItsUnderlyingInformationIsUsedForOthersList",{"$f":"XBRLMapBoolean(F27,I27,$N$1,#REF!,CONFIGURATION!$B$10,\"BMA\",CONFIGURATION!$B$1,\"bscr\",IF(F27=\"Yes\",\"1\",\"0\"))","v":{"$error":"#VALUE!"}},null,null,null,null,null,null,null,"SSA_SsaAndItsUnderlyingInformationIsUsedForOthers"]
[null,null,null,null,null,null,null,null,null,null,null,null,null,null,null,null,null,""]
[2,"Has the insurer applied reverse stress testing to both identify the scenarios that could cause business failure and the required actions to manage such situations? (Yes or No)",null,null,null,{"$f":"Import!E5257","v":"Select Yes/No"},null,null,"brrt_TheInsurerHasAppliedReverseStressTestingToBothIdentifyTheScenariosThatCouldCauseBusinessFailureAndTheRequiredActionsToManageSuchSituations",{"$f":"XBRLMapBoolean(F29,I29,$N$1,#REF!,CONFIGURATION!$B$10,\"BMA\",CONFIGURATION!$B$1,\"bscr\",IF(F29=\"Yes\",\"1\",\"0\"))","v":{"$error":"#VALUE!"}},null,null,null,null,null,null,null,"SSA_HasReverseStressTestingBeenAppliedToBothIdentifyScenariosThatCouldCauseBusinessFailureAndRequiredActionsToManageSuchSituations"]
[null,null,null,null,null,null,null,null,"",{"$f":"XBRLMapBoolean(F30,I30,$N$1,#REF!,CONFIGURATION!$B$10,\"BMA\",CONFIGURATION!$B$1,\"bscr\",IF(F30=\"Yes\",\"1\",\"0\"))","v":{"$error":"#VALUE!"}},null,null,null,null,null,null,null,""]
[3,"Is the CISSA process clearly documented and regularly amended for changes in strategic direction, risk management framework, and market developments? (Yes or No)",null,null,null,{"$f":"Import!E5258","v":"Select Yes/No"},null,null,"brrt_TheCISSAProcessIsClearlyDocumentedAndRegularlyAmendedForChangesInStrategicDirectionRiskManagementFrameworkAndMarketDevelopments",{"$f":"XBRLMapBoolean(F31,I31,$N$1,#REF!,CONFIGURATION!$B$10,\"BMA\",CONFIGURATION!$B$1,\"bscr\",IF(F31=\"Yes\",\"1\",\"0\"))","v":{"$error":"#VALUE!"}},null,null,null,null,null,null,null,"SSA_SsaProcessIsClearlyDocumentedAndRegularlyAmendedForChangesInStrategicDirectionRiskManagementFrameworkAndMarketDevelopments"]
[null,null,null,null,null,null,null,null,"",{"$f":"XBRLMapBoolean(F32,I32,$N$1,#REF!,CONFIGURATION!$B$10,\"BMA\",CONFIGURATION!$B$1,\"bscr\",IF(F32=\"Yes\",\"1\",\"0\"))","v":{"$error":"#VALUE!"}}]
[4,"How often is the information underlying CISSA discussed and reviewed by the Board and chief and senior executives?",null,null,null,{"$f":"Import!E5259","v":"Select"},null,null,"brrt_FrequencyOfDiscussionAndRevisionOfTheInformationUnderlyingCISSAByTheBoardAndChiefAndSeniorExecutives",{"$f":"XBRLMap(F33,I33,$N$1,#REF!,CONFIGURATION!$B$10,\"BMA\",CONFIGURATION!$B$1,\"bscr\")","v":{"$error":"#VALUE!"}},null,null,null,null,null,null,null,"SSA_HowOftenInformationUnderlyingSsaIsDiscussedevaluatedAndReviewedByBoardOrBoardCommitteesAndChiefAndSeniorExecutives"]
[null,null,null,null,null,null,null,null,"",null,null,null,null,null,null,null,null,""]
[5,"Has the Board of Directors and chief and senior executives ensured that an appropriate oversight process is in place, including an appropriate level of independent verification, whereby material deficiencies are reported on a timely basis and suitable actions taken? (Yes or No)",null,null,null,{"$f":"Import!E5260","v":"Select Yes/No"},null,null,"brrt_TheBoardOfDirectorsAndChiefAndSeniorExecutivesHaveEnsuredThatAnAppropriateOversightProcessIsInPlaceIncludingAnAppropriateLevelOfIndependentVerificationWherebyMaterialDeficienciesAreReportedOnATimelyBasisAndSuitableActionsTaken",{"$f":"XBRLMapBoolean(F35,I35,$N$1,#REF!,CONFIGURATION!$B$10,\"BMA\",CONFIGURATION!$B$1,\"bscr\",IF(F35=\"Yes\",\"1\",\"0\"))","v":{"$error":"#VALUE!"}},null,null,null,null,null,null,null,"SSA_BoardOfDirectorsAndChiefAndSeniorExecutivesHasEnsuredThatAnAppropriateOversightProcessIsInPlaceIncludingAnAppropriateLevelOfIndependentVerificationWherebyMaterialDeficienciesAreReportedOnTimelyBasisAndSuitableActionsTaken"]
[null,null,null,null,null,null,null,null,""]
[null,"Optionally, the insurer may provide brief comments.",null,null,null,null,null,null,""]
[null,{"$f":"Import!E5261","v":0},null,null,null,null,null,null,"brrt_TheBoardOfDirectorsAndChiefAndSeniorExecutivesHaveEnsuredThatAnAppropriateOversightProcessIsInPlaceIncludingAnAppropriateLevelOfIndependentVerificationWherebyMaterialDeficienciesAreReportedOnATimelyBasisAndSuitableActionsTakenDescription",{"$f":"XBRLMap(B38,I38,$N$1,#REF!,CONFIGURATION!$B$10,\"BMA\",CONFIGURATION!$B$1,\"bscr\")","v":{"$error":"#VALUE!"}},null,null,null,null,null,null,null,"SSA_BoardOfDirectorsAndChiefAndSeniorExecutivesHasEnsuredThatAnAppropriateOversightProcessIsInPlaceIncludingAnAppropriateLevelOfIndependentVerificationWherebyMaterialDeficienciesAreReportedOnTimelyBasisAndSuitableActionsTakenComment"]
[]
[null,null,null,null,null,null,null,null,""]
[]
[]
[]
[]
[]
[]
[]
[]
[]
[null,null,null,null,"Select Yes/No"]
[null,null,null,null,"Yes"]
[null,null,null,null,"No"]
[null,null,null,null,"Select"]
[null,null,null,null,"Annually"]
[null,null,null,null,"Semi-annually"]
[null,null,null,null,"Quarterly"]
[null,null,null,null,"Monthly"]
[null,null,null,null,"Bi-monthly"]
[null,null,null,null,"Ad-hoc"]
[null,null,null,null,"Other"]
[null,null,null,null,"Select"]
[null,null,null,null,"Strong"]
[null,null,null,null,"Moderate"]
[null,null,null,null,"Weak"]
[]
[null,null,null,null,"Select"]
[null,null,null,null,"Fully documented"]
[null,null,null,null,"Partially documented"]
[null,null,null,null,"Other"]

{"sheet":"Schedule IX(c)","index":56,"n_rows":155,"n_cols":27,"rows_kept":155,"cut":false,"hidden":false,"merged":[[78,1,78,3],[79,1,79,3],[80,1,80,3],[81,4,81,5],[80,4,80,5],[81,1,81,3],[0,1,0,4],[64,13,64,15],[65,13,65,15],[4,1,5,5],[61,1,61,5],[63,1,63,4],[7,2,8,5],[59,2,59,5],[19,1,19,5],[11,1,11,5],[13,1,13,5],[27,1,27,5],[29,1,29,5],[65,1,65,3],[33,1,33,5],[57,2,57,5],[75,1,75,3],[76,1,76,3],[77,1,77,3],[71,1,71,3],[72,1,72,3],[73,1,73,3],[74,1,74,3],[69,1,69,3],[66,1,66,3],[67,1,67,3],[68,1,68,3],[70,1,70,3]]}
[null,"SCHEDULE OF COMMERCIAL INSURER'S SOLVENCY SELF ASSESSMENT (CISSA) ASSESSMENT OF MATERIAL RISKS OF THE COMPANY (TABLE 13B)",null,null,null,null,null,{"$f":"HYPERLINK(\"#'Index'!A1\",\"Return to Index\")","v":"Return to Index"},null,null,null,null,null,{"$f":"HYPERLINK(\"#'Index'!A1\",\"Return to Index\")","v":"Return to Index"},{"$f":"IF($B$3=\"\",\"\",TEXT(DATE(YEAR($B$3+1)-1,MONTH($B$3+1),DAY($B$3+1)),\"mm/dd/yyyy\"))","v":"01/01/2019"}]
[null,{"$f":"'Insurer Information'!C7","v":"Enter Company Name"},null,null,null,null,null,null,null,null,null,null,null,null,{"$f":"IF($B$3=\"\",\"\",TEXT($B$3,\"mm/dd/yyyy\"))","v":"12/31/2019"}]
[null,{"$f":" TEXT('Insurer Information'!C3,\"mmmm dd, yyyy\")","v":"December 31, 2019"},null,null,null,null,null,"SCHEDULE IX(c)"]
[]
[null,"The board must review policies, processes, and procedures to assess its material risks and self-determine the capital requirement it would need to support its insurance undertaking, at least annually. Minimally, the assessment should:"]
[null,null,null,null,null,null,null,null,null,null,null,null,null,{"$f":"YEAR('Insurer Information'!C3)","v":2019}]
[null,"•","Be an integral part of the insurer's risk management framework"]
[null,"•","Be clearly documented, reviewed, and evaluated regularly by the board and the chief and senior executives to ensure continual advancement in light of changes in the strategic direction, risk management framework, and market developments; and"]
[]
[null,"•","Ensure an appropriate oversight process whereby material deficiencies are reported on a timely basis and suitable actions taken."]
[]
[null,"The insurer must undertake and file with the Authority an assessment of the insurer’s most recent report (\"insurer-specific report\") comprising a solvency self-assessment of the insurer's material risks and the determination of both the quality (types of capital) and quantity of CISSA Capital required to cover these risks, while remaining solvent and achieving the insurer’s business goals.",null,null,null,null,"Doc. No","Page. No"]
[]
[null,"Minimally, the assessment should include:"]
[]
[1,"The date the assessment was completed."]
[]
[2,"A description of the insurer’s business and strategy."]
[]
[3,"The identification and assessment of all reasonably foreseeable material risks, (i.e. insurance underwriting risk; investment, liquidity and concentration risk; market risk; operational risk; strategic risk; reputational risk and legal risk)."]
[]
[4,"The identification of the relationships of the material risks with one another, and the quantity and type of capital required to cover the risks."]
[]
[5,"A description of the insurer's risk appetite, including limits imposed and how they are enforced."]
[]
[6,"Assumptions and methodology used to assess and aggregate risks."]
[]
[7,"A forward looking analysis of the risks faced by the insurer over its planning horizon and an analysis demonstrating the ability to manage its business and capital needs in adverse circumstances and still meet regulatory capital requirements."]
[]
[8,"An evaluation of whether the insurer has sufficient capital and liquidity available, including an assessment of whether capital is fungible and assets are transferrable, to achieve its strategic goals over its planning horizon and any potential adverse consequences if insufficient."]
[]
[9,"A description of business continuity and disaster plans."]
[]
[10,"A description of how the results of the self-assessment are integrated into the management and strategic decision making process."]
[]
[11,"The risk measure, time horizon and confidence level (if any) used to determine the CISSA capital."]
[]
[12,"Approval and signed declaration of the CISSA assessment by two members of the Board of directors."]
[]
[11,{"$f":"IF('Insurer Information'!$F$9=\"Class C\",\"The risk measure, time horizon and confidence level (if any) used to determine the CISSA capital.\",\"For each material risk identified the submission should minimally include:\")","v":"For each material risk identified the submission should minimally include:"}]
[]
[null,"a)","Identification of the risk owner, qualifications and responsibilities;"]
[]
[null,"b) ","The risk drivers (e.g. for catastrophe risk the drivers could be epidemic, medical advancements, etc.);"]
[]
[null,"c)","The primary model(s)/tool(s) used to calculate the CISSA Capital for the risk, where applicable;"]
[]
[null,"d) ","The primary sources of data used as inputs to the model(s)/tool(s);"]
[]
[null,"e)","The key assumptions used in the assessment of the risk;"]
[]
[null,"f)","A description and quantitative impact of stress and scenarios test on capital (if any) including key assumptions;"]
[]
[null,"g)","A description of measures taken to transfer or otherwise mitigate the risk;"]
[]
[null,"h)","Quantification of the risk if the insurer is holding capital against it both pre- and post- diversification; and"]
[]
[null,"i)","An explanation of the primary reasons for any material deviations between the CISSA capital as it pertains to the risk and the associated capital (if holding capital against the risk) and the regulatory capital charge for the risk, the deviation is greater than 15%."]
[]
[null,null,"Where attachments are submitted, include references (e.g page number, paragraph number) of where the information is located within the attachment."]
[]
[null,"The insurer shall review the following statements and select from the drop-down list as applicable and/or provide a brief description or an attachment. Where the insurer provides an attachment, include references(e.g. page number, paragraph number) of where the information is located within the attachment."]
[]
[12,"Model(s)/tool(s) used to calculate the CISSA capital "]
[]
[null,"Governance",null,null,"Select","Comments"]
["a)","Does the Board of Directors, chief and senior executives approve the design, maintenance and use of the model(s)/tool(s)?",null,null,{"$f":"Import!E5263","v":"Select Yes/No"},{"$f":"Import!E5274","v":0},null,null,null,null,null,null,null,null,null,null,"brrt_TheBoardOfDirectorsChiefAndSeniorExecutivesApproveTheDesignMaintenanceAndUseOfTheModelsTools",null,{"$f":"XBRLMapBoolean(E67,Q67,$O$1,$O$2,CONFIGURATION!$B$10,\"BMA\",CONFIGURATION!$B$1,\"bscr\",IF(E67=\"Yes\",\"1\",\"0\"))","v":"Mapped"},null,"brrt_TheBoardOfDirectorsChiefAndSeniorExecutivesApproveTheDesignMaintenanceAndUseOfTheModelsToolsDescription",{"$f":"XBRLMap(F67,U67,$O$1,$O$2,CONFIGURATION!$B$10,\"BMA\",CONFIGURATION!$B$1,\"bscr\")","v":"Mapped"},null,null,null,"SSA_BoardOfDirectorsAndSeniorManagementApproveDesignMaintenanceAndUseOfModelstools","SSA_BoardOfDirectorsAndSeniorManagementApproveDesignMaintenanceAndUseOfModelstoolsComments"]
["b)","How often does the Board or relevant Board committees review outputs, changes and issues arising from the model(s)/tool(s) (review should be documented  e.g.  minutes, presentations etc)?",null,null,{"$f":"Import!E5264","v":"Select"},{"$f":"Import!E5275","v":0},null,null,null,null,null,null,null,null,null,null,"brrt_FrequencyOfReviewFromTheBoardOrRelevantBoardCommitteesOfOutputsChangesAndIssuesArisingFromTheModelsTools",null,{"$f":"XBRLMap(E68,Q68,$O$1,$O$2,CONFIGURATION!$B$10,\"BMA\",CONFIGURATION!$B$1,\"bscr\")","v":"Mapped"},null,"brrt_FrequencyOfReviewFromTheBoardOrRelevantBoardCommitteesOfOutputsChangesAndIssuesArisingFromTheModelsToolsDescription",{"$f":"XBRLMap(F68,U68,$O$1,$O$2,CONFIGURATION!$B$10,\"BMA\",CONFIGURATION!$B$1,\"bscr\")","v":"Mapped"},null,null,null,"SSA_BoardOrRelevantBoardCommitteesReviewFrequencyOfOutputsChangesAndIssuesArisingFromModelstools","SSA_BoardOrRelevantBoardCommitteesReviewFrequencyOfOutputsChangesAndIssuesArisingFromModelstoolsComments"]
["c)","Does the Board and chief and senior executives have a  general understanding of the key assumptions/elements and the implications of the outputs (including limitations) of the model(s)/tool(s)?",null,null,{"$f":"Import!E5265","v":"Select Yes/No"},{"$f":"Import!E5276","v":0},null,null,null,null,null,null,null,null,null,null,"brrt_TheBoardAndChiefAndSeniorExecutivesHaveAGeneralUnderstandingOfTheKeyAssumptionsElementsAndTheImplicationsOfTheOutputsIncludingLimitationsOfTheModelsTools",null,{"$f":"XBRLMapBoolean(E69,Q69,$O$1,$O$2,CONFIGURATION!$B$10,\"BMA\",CONFIGURATION!$B$1,\"bscr\",IF(E69=\"Yes\",\"1\",\"0\"))","v":"Mapped"},null,"brrt_TheBoardAndChiefAndSeniorExecutivesHaveAGeneralUnderstandingOfTheKeyAssumptionsElementsAndTheImplicationsOfTheOutputsIncludingLimitationsOfTheModelsToolsDescription",{"$f":"XBRLMap(F69,U69,$O$1,$O$2,CONFIGURATION!$B$10,\"BMA\",CONFIGURATION!$B$1,\"bscr\")","v":"Mapped"},null,null,null,"SSA_BoardAndSeniorManagementHaveThoroughUnderstandingOfKeyAssumptionselementsAndImplicationsOfOutputsincludingLimitationsOfModelstools","SSA_BoardAndSeniorManagementHaveThoroughUnderstandingOfKeyAssumptionselementsAndImplicationsOfOutputsincludingLimitationsOfModelstoolsComments"]
[null,"Validation",null,null,"Select","Comments",null,null,null,null,null,null,null,null,null,null,"",null,{"$f":"XBRLMap(E70,Q70,$O$1,$O$2,CONFIGURATION!$B$10,\"BMA\",CONFIGURATION!$B$1,\"bscr\")","v":"-"},null,"",{"$f":"XBRLMap(F70,U70,$O$1,$O$2,CONFIGURATION!$B$10,\"BMA\",CONFIGURATION!$B$1,\"bscr\")","v":"-"},null,null,null,""]
["d)","Is the model(s)/tool(s) subject to a regular cycle of validation, which includes the monitoring of performance, review appropriateness of model specifications and testing of forecast results against actual results?",null,null,{"$f":"Import!E5266","v":"Select Yes/No"},{"$f":"Import!E5277","v":0},null,null,null,null,null,null,null,null,null,null,"brrt_TheModelsToolsAreSubjectToARegularCycleOfValidationWhichIncludesTheMonitoringOfPerformanceReviewOfAppropriatenessOfModelSpecificationsAndTestingOfForecastResultsAgainstActualResults",null,{"$f":"XBRLMapBoolean(E71,Q71,$O$1,$O$2,CONFIGURATION!$B$10,\"BMA\",CONFIGURATION!$B$1,\"bscr\",IF(E71=\"Yes\",\"1\",\"0\"))","v":"Mapped"},null,"brrt_TheModelsToolsAreSubjectToARegularCycleOfValidationWhichIncludesTheMonitoringOfPerformanceReviewOfAppropriatenessOfModelSpecificationsAndTestingOfForecastResultsAgainstActualResultsDescription",{"$f":"XBRLMap(F71,U71,$O$1,$O$2,CONFIGURATION!$B$10,\"BMA\",CONFIGURATION!$B$1,\"bscr\")","v":"Mapped"},null,null,null,"SSA_ModelstoolsSubjectToRegularCycleOfValidationWhichIncludesMonitoringOfPerformanceReviewAppropriatenessOfModelSpecificationsAndTestingOfForecastResultsAgainstActualResults","SSA_ModelstoolsSubjectToRegularCycleOfValidationWhichIncludesMonitoringOfPerformanceReviewAppropriatenessOfModelSpecificationsAndTestingOfForecastResultsAgainstActualResultsComments"]
["e)","How often is the validation of the model(s)/tool(s) performed?",null,null,{"$f":"Import!E5267","v":"Select"},{"$f":"Import!E5278","v":0},null,null,null,null,null,null,null,null,null,null,"brrt_FrequencyOfValidationOfModelsTools",null,{"$f":"XBRLMap(E72,Q72,$O$1,$O$2,CONFIGURATION!$B$10,\"BMA\",CONFIGURATION!$B$1,\"bscr\")","v":"Mapped"},null,"brrt_FrequencyOfValidationOfModelsToolsDescription",{"$f":"XBRLMap(F72,U72,$O$1,$O$2,CONFIGURATION!$B$10,\"BMA\",CONFIGURATION!$B$1,\"bscr\")","v":"Mapped"},null,null,null,"SSA_ValidationOfModelstoolsPerformed","SSA_ValidationOfModelstoolsPerformedComments"]
["f)","Does the validation process demonstrate that the model(s)/tool(s) remains suitable during changing conditions (e.g. changes in inflation, interest rate, etc)? If no, provide comments.",null,null,{"$f":"Import!E5268","v":"Select Yes/No"},{"$f":"Import!E5279","v":0},null,null,null,null,null,null,null,null,null,null,"brrt_ValidationProcessDemonstratesThatModelsToolsRemainSuitableDuringChangingConditions",null,{"$f":"XBRLMapBoolean(E73,Q73,$O$1,$O$2,CONFIGURATION!$B$10,\"BMA\",CONFIGURATION!$B$1,\"bscr\",IF(E73=\"Yes\",\"1\",\"0\"))","v":"Mapped"},null,"brrt_ValidationProcessDemonstratesThatModelsToolsRemainSuitableDuringChangingConditionsDescription",{"$f":"XBRLMap(F73,U73,$O$1,$O$2,CONFIGURATION!$B$10,\"BMA\",CONFIGURATION!$B$1,\"bscr\")","v":"Mapped"},null,null,null,"SSA_ValidationProcessDemonstrateThatModelstoolsRemainsSuitableDuringChangingConditions","SSA_ValidationProcessDemonstrateThatModelstoolsRemainsSuitableDuringChangingConditionsComments"]
[null,"Documentation",null,null,"Select","Comments",null,null,null,null,null,null,null,null,null,null,"",null,{"$f":"XBRLMap(E74,Q74,$O$1,$O$2,CONFIGURATION!$B$10,\"BMA\",CONFIGURATION!$B$1,\"bscr\")","v":"-"},null,"",{"$f":"XBRLMap(F74,U74,$O$1,$O$2,CONFIGURATION!$B$10,\"BMA\",CONFIGURATION!$B$1,\"bscr\")","v":"-"},null,null,null,"",""]
["g)","Does the insurer have formal documentation of the structure, design, operational details, input assumptions, parameters, governance process and controls of the model(s)/tool(s)?",null,null,{"$f":"Import!E5269","v":"Select Yes/No"},{"$f":"Import!E5280","v":0},null,null,null,null,null,null,null,null,null,null,"brrt_InsurerHasFormalDocumentationsOfStructureDesignOperationalDetailsInputAssumptionsParametersGovernanceProcessAndControlsOfTheModelsTools",null,{"$f":"XBRLMapBoolean(E75,Q75,$O$1,$O$2,CONFIGURATION!$B$10,\"BMA\",CONFIGURATION!$B$1,\"bscr\",IF(E75=\"Yes\",\"1\",\"0\"))","v":"Mapped"},null,"brrt_InsurerHasFormalDocumentationsOfStructureDesignOperationalDetailsInputAssumptionsParametersGovernanceProcessAndControlsOfTheModelsToolsDescription",{"$f":"XBRLMap(F75,U75,$O$1,$O$2,CONFIGURATION!$B$10,\"BMA\",CONFIGURATION!$B$1,\"bscr\")","v":"Mapped"},null,null,null,"SSA_CompanyHasFormalDocumentationOfStructureDesignOperationalDetailsInputAssumptionsParametersGovernanceProcessAndControlsOfModelstools","SSA_CompanyHasFormalDocumentationOfStructureDesignOperationalDetailsInputAssumptionsParametersGovernanceProcessAndControlsOfModelstoolsComments"]
["h)","If yes, to what extent is the model(s)/tool(s) documented such that it can be used by new personnel with limited user experience? (include comments for partial or no documentations)",null,null,{"$f":"Import!E5270","v":"Select"},{"$f":"Import!E5281","v":0},null,null,null,null,null,null,null,null,null,null,"brrt_ExtentToWhichTheModelsToolsAreDocumentedSuchThatItCanBeUsedByNewPersonnelWithLimitedUserExperience",null,{"$f":"XBRLMap(E76,Q76,$O$1,$O$2,CONFIGURATION!$B$10,\"BMA\",CONFIGURATION!$B$1,\"bscr\")","v":"Mapped"},null,"brrt_ExtentToWhichTheModelsToolsAreDocumentedSuchThatItCanBeUsedByNewPersonnelWithLimitedUserExperienceDescription",{"$f":"XBRLMap(F76,U76,$O$1,$O$2,CONFIGURATION!$B$10,\"BMA\",CONFIGURATION!$B$1,\"bscr\")","v":"Mapped"},null,null,null,"SSA_ToWhatExtentIsModelstoolsDocumentedSuchThatItCanBeUsedByNewPersonnelWithLimitedUserExperience","SSA_ToWhatExtentIsModelstoolsDocumentedSuchThatItCanBeUsedByNewPersonnelWithLimitedUserExperienceComments"]
["i)","How often does the Board of Directors or chief and senior executives review and approve the model/input documentation?",null,null,{"$f":"Import!E5271","v":"Select"},{"$f":"Import!E5282","v":0},null,null,null,null,null,null,null,null,null,null,"brrt_FrequencyOfReviewAndApprovalOfTheBoardOfDirectorsOrChiefAndSeniorExecutivesOfTheModelInputDocumentation",null,{"$f":"XBRLMap(E77,Q77,$O$1,$O$2,CONFIGURATION!$B$10,\"BMA\",CONFIGURATION!$B$1,\"bscr\")","v":"Mapped"},null,"brrt_FrequencyOfReviewAndApprovalOfTheBoardOfDirectorsOrChiefAndSeniorExecutivesOfTheModelInputDocumentationDescription",{"$f":"XBRLMap(F77,U77,$O$1,$O$2,CONFIGURATION!$B$10,\"BMA\",CONFIGURATION!$B$1,\"bscr\")","v":"Mapped"},null,null,null,"SSA_FrequencyOfBoardOfDirectorsOrSeniorManagementReviewAndApprovalOfModelinputDocumentation","SSA_FrequencyOfBoardOfDirectorsOrSeniorManagementReviewAndApprovalOfModelinputDocumentationComments"]
[null,"Internal controls",null,null,"Select","Comments",null,null,null,null,null,null,null,null,null,null,"",null,{"$f":"XBRLMap(E78,Q78,$O$1,$O$2,CONFIGURATION!$B$10,\"BMA\",CONFIGURATION!$B$1,\"bscr\")","v":"-"},null,"",{"$f":"XBRLMap(F78,U78,$O$1,$O$2,CONFIGURATION!$B$10,\"BMA\",CONFIGURATION!$B$1,\"bscr\")","v":"-"},null,null,null,"",""]
["j)","How does the insurer rate the effectiveness of the controls in place to monitor and evaluate the operation and maintenance of the model(s)/tool(s)?",null,null,{"$f":"Import!E5272","v":"Select"},{"$f":"Import!E5283","v":0},null,null,null,null,null,null,null,null,null,null,"brrt_InsurerRatingOfTheEffectivenessOfTheControlsInPlaceToMonitorAndEvaluateTheOperationAndMaintenanceOfTheModelsTools",null,{"$f":"XBRLMap(E79,Q79,$O$1,$O$2,CONFIGURATION!$B$10,\"BMA\",CONFIGURATION!$B$1,\"bscr\")","v":"Mapped"},null,"brrt_InsurerRatingOfTheEffectivenessOfTheControlsInPlaceToMonitorAndEvaluateTheOperationAndMaintenanceOfTheModelsToolsDescription",{"$f":"XBRLMap(F79,U79,$O$1,$O$2,CONFIGURATION!$B$10,\"BMA\",CONFIGURATION!$B$1,\"bscr\")","v":"Mapped"},null,null,null,"SSA_HowCompanyRatesEffectivenessOfControlsInPlaceToMonitorAndEvaluateOperationAndMaintenanceOfModelstools","SSA_HowCompanyRatesEffectivenessOfControlsInPlaceToMonitorAndEvaluateOperationAndMaintenanceOfModelstoolsComments"]
["k)","Are there strict protocols in place restricting access to the model(s)/tool(s) and ability to make adjustments thereto?",null,null,{"$f":"Import!E5273","v":"Select Yes/No"},{"$f":"Import!E5284","v":0},null,null,null,null,null,null,null,null,null,null,"brrt_StrictProtocolsAreInPlaceRestrictingAccessToTheModelsToolsAndTheAbilityToMakeAdjustmentsThereto",null,{"$f":"XBRLMapBoolean(E80,Q80,$O$1,$O$2,CONFIGURATION!$B$10,\"BMA\",CONFIGURATION!$B$1,\"bscr\",IF(E80=\"Yes\",\"1\",\"0\"))","v":"Mapped"},null,"brrt_StrictProtocolsAreInPlaceRestrictingAccessToTheModelsToolsAndTheAbilityToMakeAdjustmentsTheretoDescription",{"$f":"XBRLMap(F80,U80,$O$1,$O$2,CONFIGURATION!$B$10,\"BMA\",CONFIGURATION!$B$1,\"bscr\")","v":"Mapped"},null,null,null,"SSA_reAreStrictProtocolsInPlaceRestrictingAccessToModelstoolsAndAbilityToMakeAdjustmentsreto","SSA_reAreStrictProtocolsInPlaceRestrictingAccessToModelstoolsAndAbilityToMakeAdjustmentsretoComments"]
[null,"Others",null,null,"List",null,null,null,null,null,null,null,null,null,null,null,"",null,{"$f":"XBRLMap(E81,Q81,$O$1,$O$2,CONFIGURATION!$B$10,\"BMA\",CONFIGURATION!$B$1,\"bscr\")","v":"-"},null,null,null,null,null,null,""]
["l)","What is the risk measure (VaR,TVaR etc), confidence interval (95%, 99.95% etc)  and time horizon (1 year, 3 years etc) used to derive CISSA capital?",null,null,{"$f":"Import!E5285","v":0},null,null,null,null,null,null,null,null,null,null,null,"brrt_RiskmeasureconfidenceintervalandtimehorizonusedtoderivetheCISSAcapital",null,{"$f":"XBRLMap(E82,Q82,$O$1,$O$2,CONFIGURATION!$B$10,\"BMA\",CONFIGURATION!$B$1,\"bscr\")","v":"Mapped"},null,null,null,null,null,null,"SSA_RiskMeasurevartvarEtcConfidenceInterval95Percent9995PercentEtcAndTimeHorizon1Year3YearsEtc"]
[null,null,null,null,null,null,null,null,null,null,null,null,null,null,null,null,""]
[]
[]
[]
[]
[]
[]
[]
[]
[null,null,null,null,"Select Yes/No"]
[null,null,null,null,"Yes"]
[null,null,null,null,"No"]
[null,null,null,null,"Select"]
[null,null,null,null,"Annually"]
[null,null,null,null,"Semi-annually"]
[null,null,null,null,"Quarterly"]
[null,null,null,null,"Monthly"]
[null,null,null,null,"Bi-monthly"]
[null,null,null,null,"Ad-hoc"]
[null,null,null,null,"Other"]
[null,null,null,null,"Select"]
[null,null,null,null,"Strong"]
[null,null,null,null,"Moderate"]
[null,null,null,null,"Weak",null,null,null,null,null,"Others"]
[]
[null,null,null,null,"Select"]
[null,null,null,null,"Fully documented"]
[null,null,null,null,"Partially documented"]
[null,null,null,null,"Other"]
[]
[]
[]
[]
[]
[]
[]
[]
[]
[]
[]
[]
[]
[]
[]
[]
[]
[]
[]
[]
[]
[]
[]
[]
[]
[]
[]
[]
[]
[]
[]
[]
[]
[]
[]
[]
[]
[]
[]
[]
[]
[null,null,null,null,null,"No"]
[null,null,null,null,null,"Yes"]
[null,null,null,null,null,"N/A"]

{"sheet":"Schedule XII(a)","index":57,"n_rows":191,"n_cols":20,"rows_kept":191,"cut":false,"hidden":false,"merged":[[84,8,84,9],[16,4,16,7],[38,3,38,7],[39,3,39,7],[51,2,52,7],[59,4,59,6]]}
[null,"SCHEDULE OF ELIGIBLE CAPITAL",null,null,null,null,null,null,null,{"$f":"HYPERLINK(\"#'Index'!A1\",\"Return to Index\")","v":"Return to Index"}]
[null,{"$f":"'Insurer Information'!C7","v":"Enter Company Name"},null,null,null,null,null,null,null,null,null,null,null,{"$f":"IF($F$2=\"\",\"\",TEXT(DATE(YEAR($F$2+1)-1,MONTH($F$2+1),DAY($F$2+1)),\"mm/dd/yyyy\"))","v":""},null,null,null,null,null,{"$f":"'Insurer Information'!L1","v":"01/01/2019"}]
[null,"For the year ending",null,null,{"$f":"TEXT('Insurer Information'!C3,\"mmmm dd, yyyy\")","v":"December 31, 2019"},null,null,null,null,"SCHEDULE XII(a) (EBS)",null,null,null,null,null,null,null,null,null,{"$f":"'Insurer Information'!L2","v":"12/31/2019"}]
[null,{"$f":"\"expressed in\"& IF(CONFIGURATION!$B$12>1,\" ['\"&MID(CONFIGURATION!$B$12,2,LEN(CONFIGURATION!$B$12))&\"s]\",\"\")","v":"expressed in ['000s]"},null,null,{"$f":"'Form 4EBS'!C4","v":"United States Dollars"}]
[]
[null,"Total statutory economic capital and surplus (Form 4EBS, line 40 plus applicable adjustments)",null,null,null,null,null,null,null,{"$f":"+Summary!N86","v":0},null,null,"brrt_StatutoryCapitalAndSurplus",{"$f":"YEAR('Insurer Information'!C3)","v":2019},"brrt_TierAxis_brrt_TotalMember","brrt_BasicAncillaryAxis_brrt_BasicMember",null,"bma_ScheduleOfEligibleCapitalTotalStatutoryCapitalAndSurplusBefore"]
[null," ","Less: Encumbered assets not securing policyholder obligations (Notes to Form 4EBS, STMT Line 15) - Note 1",null,null,null,null,null,{"$f":"+'Form 4EBS'!F220","v":0},null,null,null,"brrt_EncumberedAssetsNotSecuringPolicyholdersObligations",{"$f":"XBRLMap(I7,M7&\".\"&O7&\".\"&P7,$T$2,$T$3,CONFIGURATION!$B$10,\"BMA\",CONFIGURATION!$B$1,\"bscr\",CONFIGURATION!$B$12)","v":"Mapped"},"brrt_TierAxis_brrt_TotalMember","brrt_BasicAncillaryAxis_brrt_BasicMember",null,"bma_ScheduleOfEligibleCapitalLessEncumbrancesNotSecuringPolicyholderObligations"]
[null,null,"            Less: relative liability or contingent liability (included on Form 4EBS) for which the encumbered assets are held ",null,null,null,null,null,{"$f":"Import!M5287","v":0},{"$f":"MAX(0,I7-I8)","v":0},null,null,"brrt_RelativeLiabilityOrContingentLiabilityForWhichTheEncumberedAssetsAreHeld",{"$f":"XBRLMap(J8,M8&\".\"&O8&\".\"&P8,$T$2,$T$3,CONFIGURATION!$B$10,\"BMA\",CONFIGURATION!$B$1,\"bscr\",CONFIGURATION!$B$12)","v":"Mapped"},"brrt_TierAxis_brrt_TotalMember","brrt_BasicAncillaryAxis_brrt_BasicMember"]
[null,null,"Subtotal:",null,null,null,null,null,null,{"$f":"J6-J8","v":0},null,null,"brrt_StatutoryCapitalAndSurplusNetOfEncumberedAssetsNotSecuringPolicyholdersObligations",{"$f":"XBRLMap(J9,M9&\".\"&O9&\".\"&P9,$T$2,$T$3,CONFIGURATION!$B$10,\"BMA\",CONFIGURATION!$B$1,\"bscr\",CONFIGURATION!$B$12)","v":"Mapped"},"brrt_TierAxis_brrt_TotalMember","brrt_BasicAncillaryAxis_brrt_BasicMember",null,"bma_ScheduleOfEligibleCapitalSubtotal"]
[]
[null,"TIER 1 BASIC CAPITAL"]
[null," ","(a) Fully paid common shares (Form 8, STMT LINE 1(a)(i))",null,null,null,null,null,null,{"$f":"IF('Form 8SFS'!O12=0,('Form 8SFS'!G11+'Form 8SFS'!K11),'Form 8SFS'!O12)","v":0},null,null,"brrt_FullyPaidShares",{"$f":"XBRLMap(J12,M12&\".\"&O12&\".\"&P12,$T$2,$T$3,CONFIGURATION!$B$10,\"BMA\",CONFIGURATION!$B$1,\"bscr\",CONFIGURATION!$B$12)","v":"Mapped"},"brrt_TierAxis_brrt_Tier1Member","brrt_BasicAncillaryAxis_brrt_BasicMember",null,"bma_ScheduleOfEligibleCapitalTier1CapitalaFullyPaidCommonSharesform8Line1a"]
[null," ","(b) Contributed surplus or share premium (Form 8, STMT LINE 1(b))",null,null,null,null,null,null,{"$f":"IF('Form 8SFS'!O29=0,('Form 8SFS'!G29+'Form 8SFS'!K29),'Form 8SFS'!O29)","v":0},null,null,"brrt_ContributedSurplus",{"$f":"XBRLMap(J13,M13&\".\"&O13&\".\"&P13,$T$2,$T$3,CONFIGURATION!$B$10,\"BMA\",CONFIGURATION!$B$1,\"bscr\",CONFIGURATION!$B$12)","v":"Mapped"},"brrt_TierAxis_brrt_Tier1Member","brrt_BasicAncillaryAxis_brrt_BasicMember",null,"bma_ScheduleOfEligibleCapitalTier1CapitalbContributedSurplusOrSharePremiumform8Line1b"]
[null," ","(c) Statutory economic surplus – End of Year (Form 4EBS, line 40 less Form 8, line 1(d)",null,null,null,null,null,null,{"$f":"IF(SUM('Form 1SFS'!$F$100,'Form 1SFS'!$H$100)=0,'Form 4EBS'!F184-'Form 8SFS'!O36-'Form 8SFS'!O56,'Form 4EBS'!F184-'Form 8SFS'!K36-'Form 8SFS'!K56)","v":0},null,null,"brrt_StatutorySurplus",{"$f":"XBRLMap(J14,M14&\".\"&O14&\".\"&P14,$T$2,$T$3,CONFIGURATION!$B$10,\"BMA\",CONFIGURATION!$B$1,\"bscr\",CONFIGURATION!$B$12)","v":"Mapped"},"brrt_TierAxis_brrt_Tier1Member","brrt_BasicAncillaryAxis_brrt_BasicMember",null,"bma_ScheduleOfEligibleCapitalTier1CapitalcStatutorySurplusdeficitOrRetainedEarningform8Line2h"]
[null,null,"(d) Capital adjustments",null,null,null,null,null,null,{"$f":"Import!M5289","v":0},null,null,"brrt_CapitalAdjustments",{"$f":"XBRLMap(J15,M15&\".\"&O15&\".\"&P15,$T$2,$T$3,CONFIGURATION!$B$10,\"BMA\",CONFIGURATION!$B$1,\"bscr\",CONFIGURATION!$B$12)","v":"Mapped"},"brrt_TierAxis_brrt_Tier1Member","brrt_BasicAncillaryAxis_brrt_BasicMember",null,"bma_ScheduleOfEligibleCapitalTier1CapitaldCapitalAdjustments"]
[null,null,"(e) Hybrid capital instruments: Perpetual or fixed term preference shares (Form 8, STMT LINE 1a(ii))",null,null,null,null,null,null,{"$f":"Import!M5290","v":0},null,null,"brrt_HybridCapitalInstrumentsNoncumulativePerpetualOrFixedTermPreferenceShares",{"$f":"XBRLMap(J16,M16&\".\"&O16&\".\"&P16,$T$2,$T$3,CONFIGURATION!$B$10,\"BMA\",CONFIGURATION!$B$1,\"bscr\",CONFIGURATION!$B$12)","v":"Mapped"},null,"brrt_BasicAncillaryAxis_brrt_BasicMember"]
[null,null,"(f) Other:",null,null,null,null,null,null,{"$f":"Import!M5291","v":0},null,null,"brrt_OtherBasicCapital",{"$f":"XBRLMap(J17,M17&\".\"&O17&\".\"&P17,$T$2,$T$3,CONFIGURATION!$B$10,\"BMA\",CONFIGURATION!$B$1,\"bscr\",CONFIGURATION!$B$12)","v":"Mapped"},"brrt_TierAxis_brrt_Tier1Member","brrt_BasicAncillaryAxis_brrt_BasicMember",null,"bma_ScheduleOfEligibleCapitalTier1CapitalgOthers"]
[null,null,"(g) Less: Treasury shares (Form 8, STMT LINE 1(a)(iii))",null,null,null,null,null,null,{"$f":"+'Form 8SFS'!O25","v":0},null,null,"brrt_OtherBasicCapitalDescription",{"$f":"XBRLMap(E17,M18&\".\"&O18&\".\"&P18,$T$2,$T$3,CONFIGURATION!$B$10,\"BMA\",CONFIGURATION!$B$1,\"bscr\",CONFIGURATION!$B$12)","v":"Mapped"},"brrt_TierAxis_brrt_Tier1Member","brrt_BasicAncillaryAxis_brrt_BasicMember"]
[null,null,"(h) Less: Difference between encumbered assets for policyholder obligations and policyholder obligations, calculated as follows:",null,null,null,null,null,null,null,null,null,"brrt_TreasuryShares",{"$f":"XBRLMap(J18,M19&\".\"&O19&\".\"&P19,$T$2,$T$3,CONFIGURATION!$B$10,\"BMA\",CONFIGURATION!$B$1,\"bscr\",CONFIGURATION!$B$12)","v":"Mapped"},"brrt_TierAxis_brrt_Tier1Member","brrt_BasicAncillaryAxis_brrt_BasicMember",null,"bma_ScheduleOfEligibleCapitalTier1CapitalhLessDifferenceBetweenEncumberedAssetsAndPolicyholdersObligations"]
[]
[null,null,null,null,null,null,"(A)","(B)"]
[null,null,null,null,null,null,"Policyholder","Encumbered"]
[null,null,null,null,null,null,"obligations","(pledged) assets",null,null,null,null,null,null,"brrt_TierAxis_brrt_Tier1Member","brrt_BasicAncillaryAxis_brrt_BasicMember"]
[null,null,"(i)","Contracts where pledged assets exceed the policyholder obligations",null,null,{"$f":"Import!M5292","v":0},{"$f":"Import!M5297","v":0},null,null,null,null,"brrt_PolicyholdersObligationsWherePledgedAssetsExceedPolicyholderObligations","brrt_EncumberedAssetsWherePledgedAssetsExccedPolicyholderObligationsPerContract",{"$f":"XBRLMap(G24,M24&\".\"&$O$23&\".\"&$P$23,$T$2,$T$3,CONFIGURATION!$B$10,\"BMA\",CONFIGURATION!$B$1,\"bscr\",CONFIGURATION!$B$12)","v":"Mapped"},{"$f":"XBRLMap(H24,N24&\".\"&$O$23&\".\"&$P$23,$T$2,$T$3,CONFIGURATION!$B$10,\"BMA\",CONFIGURATION!$B$1,\"bscr\",CONFIGURATION!$B$12)","v":"Mapped"}]
[null,null,"(ii)","Contracts where pledged assets are equal to the policyholder obligations",null,null,{"$f":"Import!M5293","v":0},{"$f":"Import!M5298","v":0},null,null,null,null,"brrt_PolicyholdersObligationsWherePledgedAssetsEqualPolicyholderObligations","brrt_EncumberedAssetsWherePledgedAssetsEqualPolicyholderObligations",{"$f":"XBRLMap(G25,M25&\".\"&$O$23&\".\"&$P$23,$T$2,$T$3,CONFIGURATION!$B$10,\"BMA\",CONFIGURATION!$B$1,\"bscr\",CONFIGURATION!$B$12)","v":"Mapped"},{"$f":"XBRLMap(H25,N25&\".\"&$O$23&\".\"&$P$23,$T$2,$T$3,CONFIGURATION!$B$10,\"BMA\",CONFIGURATION!$B$1,\"bscr\",CONFIGURATION!$B$12)","v":"Mapped"}]
[null,null,"(iii)","Contracts where pledged assets are less than the policyholder obligations",null,null,{"$f":"Import!M5294","v":0},{"$f":"Import!M5299","v":0},null,null,null,null,"brrt_PolicyholdersObligationsWherePledgedAssetsAreLessThanPolicyholderObligations","brrt_EncumberedAssetsWherePledgedAssetsAreLessThanPolicyholderObligations",{"$f":"XBRLMap(G26,M26&\".\"&$O$23&\".\"&$P$23,$T$2,$T$3,CONFIGURATION!$B$10,\"BMA\",CONFIGURATION!$B$1,\"bscr\",CONFIGURATION!$B$12)","v":"Mapped"},{"$f":"XBRLMap(H26,N26&\".\"&$O$23&\".\"&$P$23,$T$2,$T$3,CONFIGURATION!$B$10,\"BMA\",CONFIGURATION!$B$1,\"bscr\",CONFIGURATION!$B$12)","v":"Mapped"}]
[null,null,"(iv)","Contracts where policyholder obligations are not collateralized",null,null,{"$f":"Import!M5295","v":0},null,null,null,null,null,"brrt_PolicyholdersObligationsAreNotCollateralized",null,{"$f":"XBRLMap(G27,M27&\".\"&$O$23&\".\"&$P$23,$T$2,$T$3,CONFIGURATION!$B$10,\"BMA\",CONFIGURATION!$B$1,\"bscr\",CONFIGURATION!$B$12)","v":"Mapped"}]
[null,null,"(v)","Total",null,null,{"$f":"SUM(G24:G27)","v":0},{"$f":"SUM(H24:H27)","v":0},null,null,null,null,"brrt_PolicyholdersObligations","brrt_AssetsEncumberedAmountOfEncumbrance",{"$f":"XBRLMap(G28,M28&\".\"&$O$23&\".\"&$P$23,$T$2,$T$3,CONFIGURATION!$B$10,\"BMA\",CONFIGURATION!$B$1,\"bscr\",CONFIGURATION!$B$12)","v":"Mapped"},{"$f":"XBRLMap(H28,N28&\".\"&$O$23&\".\"&$P$23,$T$2,$T$3,CONFIGURATION!$B$10,\"BMA\",CONFIGURATION!$B$1,\"bscr\",CONFIGURATION!$B$12)","v":"Mapped"}]
[]
[null,null,null,"Form 4EBS Line 27(a) for policyholder obligations",null,null,null,{"$f":"+'Form 4EBS'!F115","v":0},null,null,null,null,"Already mapped"]
[]
[null,null,null,"Difference",null,null,null,{"$f":"ROUND(H30-G28,0)","v":0}]
[]
[null,null,null,"Notes to Form 4EBS Line 15 encumbered assets for policyholder obligations",null,null,null,{"$f":"'Form 4EBS'!F211","v":0},null,null,null,null,"Already mapped"]
[]
[null,null,null,"Difference",null,null,null,{"$f":"ROUND(H34-H28,0)","v":0}]
[]
[null,null,"(vi)","Excess encumbered assets i.e. Contracts where pledged assets exceed the policyholder obligations ((B)(i)-(A)(i))",null,null,null,null,{"$f":"H24-G24","v":0},null,null,{"$f":"H24-G24","v":0},"brrt_ExcessEncumberedAssets",null,{"$f":"XBRLMap(I38,M38&\".\"&$O$23&\".\"&$P$23,$T$2,$T$3,CONFIGURATION!$B$10,\"BMA\",CONFIGURATION!$B$1,\"bscr\",CONFIGURATION!$B$12)","v":"Mapped"}]
[null,null,"(vii)","Capital requirement applicable to the encumbered assets under (i) above (equal to the contribution of the pledged assets to the ECR)",null,null,null,null,{"$f":"Import!M5301","v":0},null,null,{"$f":"IF(J89=0,0,I39*J88/J89)","v":0},"brrt_CapitalRequirementApplicableToEncumberedAssetsForPolicyholderObligations",null,{"$f":"XBRLMap(I39,M39&\".\"&$O$23&\".\"&$P$23,$T$2,$T$3,CONFIGURATION!$B$10,\"BMA\",CONFIGURATION!$B$1,\"bscr\",CONFIGURATION!$B$12)","v":"Mapped"}]
[null,null,"(viii)","Capital requirement applicable to the policyholder obligations under (i) above (equal to the contribution of the policyholder obligations to the ECR)",null,null,null,null,{"$f":"Import!M5302","v":0},null,null,{"$f":"IF(J89=0,0,I40*J88/J89)","v":0},"brrt_CapitalRequirementApplicableToPolicyholderObligations",null,{"$f":"XBRLMap(I40,M40&\".\"&$O$23&\".\"&$P$23,$T$2,$T$3,CONFIGURATION!$B$10,\"BMA\",CONFIGURATION!$B$1,\"bscr\",CONFIGURATION!$B$12)","v":"Mapped"}]
[null,null,"(ix)"," Excess encumbered assets transferrable to Tier 2 ((vi) - (vii) - (viii))",null,null,null,null,{"$f":"MAX(0,(I38-I39-I40))","v":0},null,null,{"$f":"MAX(0,(L38-L39-L40))","v":0},"brrt_ExcessEncumberedAssetsTransferableToTier2",null,{"$f":"XBRLMap(I41,M41&\".\"&$O$23&\".\"&$P$23,$T$2,$T$3,CONFIGURATION!$B$10,\"BMA\",CONFIGURATION!$B$1,\"bscr\",CONFIGURATION!$B$12)","v":"Mapped"}]
[]
[null,null,"(x)","Policyholder obligations that are fully collateralized ((A)(i) + (A)(ii) + (B)(iii))",null,null,null,null,{"$f":"G24+G25+H26","v":0},null,null,{"$f":"G24+G25+H26","v":0},"brrt_PolicyholdersObligationsThatAreFullyCollateralized",null,{"$f":"XBRLMap(I43,M43&\".\"&$O$23&\".\"&$P$23,$T$2,$T$3,CONFIGURATION!$B$10,\"BMA\",CONFIGURATION!$B$1,\"bscr\",CONFIGURATION!$B$12)","v":"Mapped"}]
[null,null,"(xi)","Total Policyholder obligations ((A)(v))",null,null,null,null,{"$f":"G28","v":0},null,null,{"$f":"G28","v":0},"Allready mapped"]
[]
[null,null,"(xii)","Proportion of policyholder obligations that are NOT collateralized (1-(x)/(xi))",null,null,null,null,{"$f":"IF(I44=0,0,1-I43/I44)","v":0},null,null,{"$f":"IF(L44=0,0,1-L43/L44)","v":0},"brrt_ProportionOfNonCollateralizedPolicyHolderObligations",null,{"$f":"XBRLMap(I46,M46&\".\"&$O$23&\".\"&$P$23,$T$2,$T$3,CONFIGURATION!$B$10,\"BMA\",CONFIGURATION!$B$1,\"bscr\",CONFIGURATION!$B$12)","v":"Mapped"}]
[]
[null,null,"(xiii)","Excess encumbered assets transferred to Tier 2 ((ix) x (xii))",null,null,null,null,null,{"$f":"(I41*I46)+'Schedule IX(a)'!G93","v":0},null,{"$f":"L46*L41","v":0},"brrt_ExcessEncumberedAssetsTransferedTier2",null,{"$f":"XBRLMap(J48,M48&\".\"&$O$23&\".\"&$P$23,$T$2,$T$3,CONFIGURATION!$B$10,\"BMA\",CONFIGURATION!$B$1,\"bscr\",CONFIGURATION!$B$12)","v":"Mapped"}]
[]
[null,null,"(i) Encumbered assets not securing policyholder obligations (Notes to Form 4EBS, STMT LINE 15)"]
[null,null,"    Less: relative liability or contingent liability (Form 4EBS) for which the encumbered assets are held ",null,null,null,null,null,null,{"$f":"J8","v":0},null,null,"brrt_RelativeLiabilityOrContingentLiabilityForWhichTheEncumberedAssetsAreHeld",{"$f":"XBRLMap(J51,M51&\".\"&O51&\".\"&P51,$T$2,$T$3,CONFIGURATION!$B$10,\"BMA\",CONFIGURATION!$B$1,\"bscr\",CONFIGURATION!$B$12)","v":"Mapped"},"brrt_TierAxis_brrt_Tier1Member","brrt_BasicAncillaryAxis_brrt_BasicMember"]
[null,null,"(j) Less: Restricted assets in excess of capital requirements, reported in CISSA, to the extent that these amounts are not included in the encumbered assets for policyholder obligations and not for securing policyholder obligations"]
[null,null,null,null,null,null,null,null,null,{"$f":"Import!M5303","v":0},null,null,"brrt_RestrictedAssetsInExcessOfCapitalRequirementsReportedInCissaNotIncludedInEncumberedAssetsForPolicyholderObligationsAndForNotSecuringPolicyholderObligations",{"$f":"XBRLMap(J53,M53&\".\"&O53&\".\"&P53,$T$2,$T$3,CONFIGURATION!$B$10,\"BMA\",CONFIGURATION!$B$1,\"bscr\",CONFIGURATION!$B$12)","v":"Mapped"},"brrt_TierAxis_brrt_Tier1Member","brrt_BasicAncillaryAxis_brrt_BasicMember"]
[null,"TIER 1 ANCILLARY CAPITAL"]
[null,null,"Perpetual or fixed term subordinated debt (Form 8, STMT LINE 1(c)(i))",null,null,null,null,null,null,{"$f":"Import!M5304","v":0},null,null,"brrt_AnyOtherFixedCapital",{"$f":"XBRLMap(J55,M55&\".\"&O55&\".\"&P55,$T$2,$T$3,CONFIGURATION!$B$10,\"BMA\",CONFIGURATION!$B$1,\"bscr\",CONFIGURATION!$B$12)","v":"Mapped"},"brrt_TierAxis_brrt_Tier1Member","brrt_BasicAncillaryAxis_brrt_AncillaryMember",null,"bma_ScheduleOfEligibleCapitalTier1CapitalfPerpetualOrFixedTermSubordinatedLiabilities"]
[null,"TOTAL TIER 1 AVAILABLE CAPITAL",null,null,null,null,null,null,null,{"$f":"J12+J13+J14+J15+J16+J17-J18-J48-J51-J53+J55","v":0}," ",{"$f":"J12+J13+J14+J15+J16+J17-J18-L48-J51-J53+J55","v":0},"brrt_AvailableCapital",{"$f":"XBRLMap(J56,M56&\".\"&O56&\".\"&P56,$T$2,$T$3,CONFIGURATION!$B$10,\"BMA\",CONFIGURATION!$B$1,\"bscr\",CONFIGURATION!$B$12)","v":"Mapped"},"brrt_TierAxis_brrt_Tier1Member","brrt_BasicAncillaryAxis_brrt_TotalMember",null,"bma_ScheduleOfEligibleCapitalTotalTier1AvailableCapital"]
[]
[null,"TIER 2 BASIC CAPITAL"]
[null,null,"(a) Hybrid capital instruments: Perpetual or fixed term preference shares (Form 8, STMT LINE 1(a)(ii))",null,null,null,null,null,null,{"$f":"Import!M5306","v":0},null,null,"brrt_HybridCapitalInstrumentsCumulativePreferenceShares",{"$f":"XBRLMap(J59,M59&\".\"&O59&\".\"&P59,$T$2,$T$3,CONFIGURATION!$B$10,\"BMA\",CONFIGURATION!$B$1,\"bscr\",CONFIGURATION!$B$12)","v":"Mapped"},"brrt_TierAxis_brrt_Tier2Member","brrt_BasicAncillaryAxis_brrt_BasicMember",null,"bma_ScheduleOfEligibleCapitalTier2BasicCapitaliCumulativePreferenceShares"]
[null,null,"(b) Other: ",null,{"$f":"Import!M5307","v":0},null,null,null,null,{"$f":"Import!M5308","v":0},null,null,"brrt_OtherBasicCapital",{"$f":"XBRLMap(J60,M60&\".\"&O60&\".\"&P60,$T$2,$T$3,CONFIGURATION!$B$10,\"BMA\",CONFIGURATION!$B$1,\"bscr\",CONFIGURATION!$B$12)","v":"Mapped"},"brrt_TierAxis_brrt_Tier2Member","brrt_BasicAncillaryAxis_brrt_BasicMember",null,"bma_ScheduleOfEligibleCapitalTier2BasicCapitalcOther"]
[null,null,"(c) Add: Difference between encumbered assets for policyholder obligations and policyholder obligations deducted from Tier 1",null,null,null,null,null,null,{"$f":"+J48","v":0},null,{"$f":"+L48","v":0},"brrt_OtherBasicCapitalDescription",{"$f":"XBRLMap(E60,M61&\".\"&O61&\".\"&P61,$T$2,$T$3,CONFIGURATION!$B$10,\"BMA\",CONFIGURATION!$B$1,\"bscr\")","v":"Mapped"},"brrt_TierAxis_brrt_Tier2Member","brrt_BasicAncillaryAxis_brrt_BasicMember",null,"bma_ScheduleOfEligibleCapitalTier2BasicCapitalcOtherType"]
[null,"TIER 2 ANCILLARY CAPITAL",null,null,null,null,null,null,null,null,null,null,"brrt_EncumberedAssetsForPolicyholdersObligationsNetOfPolicyholdersObligations",{"$f":"XBRLMap(J61,M62&\".\"&O62&\".\"&P62,$T$2,$T$3,CONFIGURATION!$B$10,\"BMA\",CONFIGURATION!$B$1,\"bscr\",CONFIGURATION!$B$12)","v":"Mapped"},"brrt_TierAxis_brrt_Tier2Member","brrt_BasicAncillaryAxis_brrt_BasicMember",null,"bma_ScheduleOfEligibleCapitalTier2BasicCapitalAddEncumbranceDifferenceDeductedInTier1Capital"]
[null,null,"(a) Unpaid and callable common shares  (Form 8, STMT LINE 1 (c)(i))",null,null,null,null,null,null,{"$f":"Import!M5309","v":0},null,null,"brrt_UnpaidAndCallableCommonShares",{"$f":"XBRLMap(J63,M63&\".\"&O63&\".\"&P63,$T$2,$T$3,CONFIGURATION!$B$10,\"BMA\",CONFIGURATION!$B$1,\"bscr\",CONFIGURATION!$B$12)","v":"Mapped"},"brrt_TierAxis_brrt_Tier2Member","brrt_BasicAncillaryAxis_brrt_AncillaryMember",null,"bma_ScheduleOfEligibleCapitalTier2AncillaryCapitalaUnpaidAndCallableCommonShares"]
[null,null,"(b) Qualifying unpaid and callable hybrid capital (Form 8, STMT LINE (c)(i))",null,null,null,null,null,null,{"$f":"Import!M5310","v":0},null,null,"brrt_QualifyingUnpaidAndCallableHybridCapital",{"$f":"XBRLMap(J64,M64&\".\"&O64&\".\"&P64,$T$2,$T$3,CONFIGURATION!$B$10,\"BMA\",CONFIGURATION!$B$1,\"bscr\",CONFIGURATION!$B$12)","v":"Mapped"},"brrt_TierAxis_brrt_Tier2Member","brrt_BasicAncillaryAxis_brrt_AncillaryMember",null,"bma_ScheduleOfEligibleCapitalTier2AncillaryCapitalbQualifyingUnpaidAndCallableHybridCapital"]
[null,null,"(c) Qualifying unpaid and callable perpetual or fixed term preference shares (Form 8, STMT LINE 1(c) (i))",null,null,null,null,null,null,{"$f":"Import!M5311","v":0},null,null,"brrt_QualifyingUnpaidAndCallableNonCumulativePerpetualPreferenceShares",{"$f":"XBRLMap(J65,M65&\".\"&O65&\".\"&P65,$T$2,$T$3,CONFIGURATION!$B$10,\"BMA\",CONFIGURATION!$B$1,\"bscr\",CONFIGURATION!$B$12)","v":"Mapped"},"brrt_TierAxis_brrt_Tier2Member","brrt_BasicAncillaryAxis_brrt_AncillaryMember",null,"bma_ScheduleOfEligibleCapitalTier2AncillaryCapitalcQualifyingUnpaidAndCallableNoncumulativePerpetualPreferenceShares"]
[null,null,"(d) Perpetual or fixed term subordinated debt (Form 8, STMT LINE 1 (c)(i))",null,null,null,null,null,null,{"$f":"Import!M5312","v":0},null,null,"brrt_PerpetualOrFixedTermSubordinatedDebt",{"$f":"XBRLMap(J66,M66&\".\"&O66&\".\"&P66,$T$2,$T$3,CONFIGURATION!$B$10,\"BMA\",CONFIGURATION!$B$1,\"bscr\",CONFIGURATION!$B$12)","v":"Mapped"},"brrt_TierAxis_brrt_Tier2Member","brrt_BasicAncillaryAxis_brrt_AncillaryMember",null,"bma_ScheduleOfEligibleCapitalTier2AncillaryCapitaldPerpetualOrFixedTermSubordinatedDebt"]
[null,null,"(e) Approved letters of credit (Form 8, STMT Line 1(c)(ii))",null,null,null,null,null,null,{"$f":"Import!M5313","v":0},null,null,"brrt_ApprovedLettersOfCredit",{"$f":"XBRLMap(J67,M67&\".\"&O67&\".\"&P67,$T$2,$T$3,CONFIGURATION!$B$10,\"BMA\",CONFIGURATION!$B$1,\"bscr\",CONFIGURATION!$B$12)","v":"Mapped"},"brrt_TierAxis_brrt_Tier2Member","brrt_BasicAncillaryAxis_brrt_AncillaryMember",null,"bma_ScheduleOfEligibleCapitalTier2AncillaryCapitaldApprovedLettersOfCredit"]
[null,null,"(f) Approved guarantees (Form 8, Line 1(c)(ii))",null,null,null,null,null,null,{"$f":"Import!M5314","v":0},null,null,"brrt_ApprovedGuarantees",{"$f":"XBRLMap(J68,M68&\".\"&O68&\".\"&P68,$T$2,$T$3,CONFIGURATION!$B$10,\"BMA\",CONFIGURATION!$B$1,\"bscr\",CONFIGURATION!$B$12)","v":"Mapped"},"brrt_TierAxis_brrt_Tier2Member","brrt_BasicAncillaryAxis_brrt_AncillaryMember",null,"bma_ScheduleOfEligibleCapitalTier2AncillaryCapitaleApprovedParentalGuarantees"]
[null,"TOTAL TIER 2 AVAILABLE CAPITAL",null,null,null,null,null,null,null,{"$f":"J59+J63+J60+J61+J64+J65+J66+J67+J68","v":0}," ",{"$f":"J59+J63+J60+L61+J64+J65+J66+J67+J68","v":0},"brrt_AvailableCapital",{"$f":"XBRLMap(J69,M69&\".\"&O69&\".\"&P69,$T$2,$T$3,CONFIGURATION!$B$10,\"BMA\",CONFIGURATION!$B$1,\"bscr\",CONFIGURATION!$B$12)","v":"Mapped"},"brrt_TierAxis_brrt_Tier2Member","brrt_BasicAncillaryAxis_brrt_TotalMember",null,"bma_ScheduleOfEligibleCapitalTotalTier2AvailableCapital"]
[null,null,null,null,null,null,null,null,null,null,null,null,null,null,null,null,null,""]
[null,"TIER 3 BASIC CAPITAL"]
[null,null,"Short-term hybrid capital instruments: Perpetual or fixed term preference shares (Form 8, STMT Line 1(a)(ii))",null,null,null,null,null,null,{"$f":"Import!M5316","v":0},null,null,"brrt_ShortTermHybridCapitalInstrumentsCumulativePreferenceShares",{"$f":"XBRLMap(J72,M72&\".\"&O72&\".\"&P72,$T$2,$T$3,CONFIGURATION!$B$10,\"BMA\",CONFIGURATION!$B$1,\"bscr\",CONFIGURATION!$B$12)","v":"Mapped"},"brrt_TierAxis_brrt_Tier3Member","brrt_BasicAncillaryAxis_brrt_BasicMember",null,"bma_ScheduleOfEligibleCapitalTier3BasicCapitaliCumulativePreferenceShares"]
[null,"TIER 3 ANCILLARY CAPITAL"]
[null,null,"(a) Short-term subordinated debt (Form 8, STMT LINE 1(c)(i))",null,null,null,null,null,null,{"$f":"Import!M5317","v":0},null,null,"brrt_ShortTermSubordinatedDebt",{"$f":"XBRLMap(J74,M74&\".\"&O74&\".\"&P74,$T$2,$T$3,CONFIGURATION!$B$10,\"BMA\",CONFIGURATION!$B$1,\"bscr\",CONFIGURATION!$B$12)","v":"Mapped"},"brrt_TierAxis_brrt_Tier3Member","brrt_BasicAncillaryAxis_brrt_AncillaryMember",null,"bma_ScheduleOfEligibleCapitalTier3AncillaryCapitalbShorttermSubordinatedLiabilities"]
[null,null,"(b) Approved letters of credit (Form 8, STMT LINE 1(c)(i))",null,null,null,null,null,null,{"$f":"Import!M5318","v":0},null,null,"brrt_ApprovedLettersOfCredit",{"$f":"XBRLMap(J75,M75&\".\"&O75&\".\"&P75,$T$2,$T$3,CONFIGURATION!$B$10,\"BMA\",CONFIGURATION!$B$1,\"bscr\",CONFIGURATION!$B$12)","v":"Mapped"},"brrt_TierAxis_brrt_Tier3Member","brrt_BasicAncillaryAxis_brrt_AncillaryMember",null,"bma_ScheduleOfEligibleCapitalTier3AncillaryCapitalcApprovedLettersOfCreditform8Line1c"]
[null,null,"(c) Approved guarantees (Form 8, STMT Line 1(c)(ii))",null,null,null,null,null,null,{"$f":"Import!M5319","v":0},null,null,"brrt_ApprovedGuarantees",{"$f":"XBRLMap(J76,M76&\".\"&O76&\".\"&P76,$T$2,$T$3,CONFIGURATION!$B$10,\"BMA\",CONFIGURATION!$B$1,\"bscr\",CONFIGURATION!$B$12)","v":"Mapped"},"brrt_TierAxis_brrt_Tier3Member","brrt_BasicAncillaryAxis_brrt_AncillaryMember",null,"bma_ScheduleOfEligibleCapitalTier3AncillaryCapitaldApprovedParentalGuaranteesform8Line1c"]
[null,"TOTAL TIER 3 AVAILABLE CAPITAL",null,null,null,null,null,null,null,{"$f":"J72+J74+J75+J76","v":0}," ",null,"brrt_AvailableCapital",{"$f":"XBRLMap(J77,M77&\".\"&O77&\".\"&P77,$T$2,$T$3,CONFIGURATION!$B$10,\"BMA\",CONFIGURATION!$B$1,\"bscr\",CONFIGURATION!$B$12)","v":"Mapped"},"brrt_TierAxis_brrt_Tier3Member","brrt_BasicAncillaryAxis_brrt_TotalMember",null,"bma_ScheduleOfEligibleCapitalTotalTier3AvailableCapital"]
[null,null,null,null,null,null,null,null,null,null,null,null,null,null,null,null,null,""]
[null,"TOTAL ELIGIBLE CAPITAL",null,null,null,null,null,null,null,{"$f":"J56+J69+J77","v":0}," ",null,"brrt_TotalAvailableStatutoryCapitalAndSurplus",{"$f":"XBRLMap(J79,M79,$T$2,$T$3,CONFIGURATION!$B$10,\"BMA\",CONFIGURATION!$B$1,\"bscr\",CONFIGURATION!$B$12)","v":"Mapped"},null,null,null,"bma_ScheduleOfEligibleCapitalTotalStatutoryCapitalAndSurplus"]
[]
[null,null,null,null,null,null,null,null,null,{"$f":"IF(J82=\"TRUE\",HYPERLINK(\"#'Schedule XII(a)'!J9\",\"TRUE\"),HYPERLINK(\"#'Schedule XII(a)'!J9\",\"FALSE\"))","v":"TRUE"}]
[null,null,null,null,null,null,null,null,null,{"$f":"IF(ROUND((J9-J79),0)=0,\"TRUE\",\"FALSE\")","v":"TRUE"}]
[null,null,null,null,null,null,null,null,null,{"$f":"ROUND(J9-J79,0)","v":0}]
[]
[null,null,null,null,null,null,null,null,{"$f":"IF(J81=\"False\",\"Reconciliation does not equal Total Eligible Capital\",\"\")","v":""}]
[]
[null,"REGULATORY CAPITAL LEVELS"]
[null,null,"Minimum Margin of Solvency ",null,null,null,null,null,null,{"$f":"Summary!N92","v":4000},null,null,"brrt_MinimumSolvencyMargin",{"$f":"XBRLMap(J88,M88,$T$2,$T$3,CONFIGURATION!$B$10,\"BMA\",CONFIGURATION!$B$1,\"bscr\",CONFIGURATION!$B$12)","v":"Mapped"},null,null,null,"bma_ScheduleOfEligibleCapitalMinimumMarginOfSolvency"]
[null,null,"Enhanced Capital Requirement - Transitory",null,null,null,null,null,null,{"$f":"Summary!N96","v":4000},null,null,"brrt_EnhancedCapitalRequirement",{"$f":"XBRLMap(J89,M89,$T$2,$T$3,CONFIGURATION!$B$10,\"BMA\",CONFIGURATION!$B$1,\"bscr\",CONFIGURATION!$B$12)","v":"Mapped"},null,null,null,"bma_ScheduleOfEligibleCapitalEnhancedCapitalRequirement"]
[null,null,"Enhanced Capital Requirement",null,null,null,null,null,null,{"$f":"Summary!N98","v":4000}]
[]
[null,null,null,"Limits","MSM","ECR","Applied to MSM","Met - Y/N","Applied to ECR","Met - Y/N"]
[null,null,"Tier 1","min",0.8,0.5,{"$f":"MAX(0,(IF(I40<G24,J56,L56)))","v":0},{"$f":"IF(J56>=E93*J88,\"Yes\",\"No\")","v":"No"},{"$f":"MAX(0,J56)","v":0},{"$f":"IF(J56>=F93*J89,\"Yes\",\"No\")","v":"No"}]
[null,null,"Tier 2 ","max",0.25,0.5,{"$f":"MAX(0,(IF(I40<G24,MIN(J69,G93*0.25),MIN(L69,G93*0.25))))","v":0},null,{"$f":"MIN(J69,I93)","v":0}]
[null,null,"Tier 3 ",null,null,0.17649999999999999,null,null,{"$f":"MAX(0,MIN(J77,((I93+I94)*0.1765)))","v":0}]
[null,null,"Eligible Capital",null,null,null,{"$f":"SUM(G93:G95)","v":0},{"$f":"IF(G96>=J88,\"Yes\",\"No\")","v":"No"},{"$f":"SUM(I93:I95)","v":0},{"$f":"IF(I96>=J89,\"Yes\",\"No\")","v":"No"}]
[]
[null,null,"Note 1 - No deduction from Tier 1 would be required where an insurer can demonstrate that the assets are encumbered for its own risk management purposes."]
[]
[]
[]
[]
[]
[]
[]
[]
[]
[]
[]
[]
[]
[]
[]
[]
[]
[]
[]
[]
[]
[]
[]
[]
[]
[]
[]
[]
[null,"*¹"]
[]
[]
[]
[]
[]
[]
[]
[]
[]
[]
[]
[]
[]
[]
[]
[]
[]
[]
[]
[]
[]
[]
[]
[]
[]
[]
[]
[]
[]
[]
[]
[]
[]
[]
[]
[]
[]
[]
[]
[]
[]
[]
[]
[]
[]
[]
[]
[]
[]
[]
[]
[]
[]
[]
[]
[]
[]
[]
[]
[]
[]
[]
[]
[null,null,null,null,null,null,null,null,null,null,null,null,0]

{"sheet":"Schedule XII(b)","index":58,"n_rows":225,"n_cols":15,"rows_kept":225,"cut":false,"hidden":false,"merged":[]}
[null,"SCHEDULE OF ELIGIBLE CAPITAL- ADDITIONAL DETAILS",null,null,null,null,{"$f":"HYPERLINK(\"#'Index'!A1\",\"Return to Index\")","v":"Return to Index"}]
[]
[null,{"$f":"'Insurer Information'!C7","v":"Enter Company Name"}]
[null,"For the year ending",{"$f":"TEXT('Insurer Information'!C3,\"mmmm dd, yyyy\")","v":"December 31, 2019"},null,null,null,"SCHEDULE XII(b)"]
[null,{"$f":"\"expressed in\"& IF(CONFIGURATION!$B$12>1,\" ['\"&MID(CONFIGURATION!$B$12,2,LEN(CONFIGURATION!$B$12))&\"s]\",\"\")","v":"expressed in ['000s]"},{"$f":"'Form 4EBS'!C4","v":"United States Dollars"},null,null,null,null,null,null,null,{"$f":"'Insurer Information'!L1","v":"01/01/2019"}]
[null,null,null,null,null,null,null,null,null,null,{"$f":"'Insurer Information'!L2","v":"12/31/2019"},null,null,{"$f":"YEAR('Insurer Information'!C3)","v":2019}]
[null,"1) Enter number of capital instruments ",{"$f":"Import!E5322","v":0}]
[null,"2) Enter description of each capital instrument"]
[null,null,null,null,null,null,null,null,null,"brrt_EligibleCapitalDetails"]
[null,"Description of capital instrument","Date of issue","Maturity date (as applicable)","Date approved by the authority","Value of capital instrument","Eligible capital tier",null,null,"brrt_EligibleCapitalDetailsDescriptionOfCapitalInstrument","brrt_EligibleCapitalDetailsDateOfIssue","brrt_EligibleCapitalDetailsMaturityDate","brrt_EligibleCapitalDetailsDateApprovedByAuthority","brrt_EligibleCapitalDetailsValueOfCapitalInstrument","brrt_EligibleCapitalDetailsEligibleCapitalTier"]
[1,{"$f":"Import!E5323","v":0},{"$f":"Import!E5343","v":"00:00:00"},{"$f":"Import!E5363","v":"00:00:00"},{"$f":"Import!E5383","v":"00:00:00"},{"$f":"Import!E5403","v":0},{"$f":"Import!E5423","v":0},null,null,{"$f":"IF(OR(B11<>\"\",C11<>\"\",D11<>\"\",E11<>\"\",F11<>\"\",G11<>\"\"),XBRLMapTuple($J$9,$K$5,$K$6,\"BMA\",CONFIGURATION!$B$1,\"bscr\",\"\",CONFIGURATION!$B$12,$J$10,B11,$K$10,C11,$L$10,D11,$M$10,E11,$N$10,F11,$O$10,G11,\"\"),\"emptyTuple\")","v":"Mapped"}]
[2,{"$f":"Import!E5324","v":0},{"$f":"Import!E5344","v":"00:00:00"},{"$f":"Import!E5364","v":"00:00:00"},{"$f":"Import!E5384","v":"00:00:00"},{"$f":"Import!E5404","v":0},{"$f":"Import!E5424","v":0},null,null,{"$f":"IF(OR(B12<>\"\",C12<>\"\",D12<>\"\",E12<>\"\",F12<>\"\",G12<>\"\"),XBRLMapTuple($J$9,$K$5,$K$6,\"BMA\",CONFIGURATION!$B$1,\"bscr\",\"\",CONFIGURATION!$B$12,$J$10,B12,$K$10,C12,$L$10,D12,$M$10,E12,$N$10,F12,$O$10,G12,\"\"),\"emptyTuple\")","v":"Mapped"}]
[3,{"$f":"Import!E5325","v":0},{"$f":"Import!E5345","v":"00:00:00"},{"$f":"Import!E5365","v":"00:00:00"},{"$f":"Import!E5385","v":"00:00:00"},{"$f":"Import!E5405","v":0},{"$f":"Import!E5425","v":0},null,null,{"$f":"IF(OR(B13<>\"\",C13<>\"\",D13<>\"\",E13<>\"\",F13<>\"\",G13<>\"\"),XBRLMapTuple($J$9,$K$5,$K$6,\"BMA\",CONFIGURATION!$B$1,\"bscr\",\"\",CONFIGURATION!$B$12,$J$10,B13,$K$10,C13,$L$10,D13,$M$10,E13,$N$10,F13,$O$10,G13,\"\"),\"emptyTuple\")","v":"Mapped"}]
[4,{"$f":"Import!E5326","v":0},{"$f":"Import!E5346","v":"00:00:00"},{"$f":"Import!E5366","v":"00:00:00"},{"$f":"Import!E5386","v":"00:00:00"},{"$f":"Import!E5406","v":0},{"$f":"Import!E5426","v":0},null,null,{"$f":"IF(OR(B14<>\"\",C14<>\"\",D14<>\"\",E14<>\"\",F14<>\"\",G14<>\"\"),XBRLMapTuple($J$9,$K$5,$K$6,\"BMA\",CONFIGURATION!$B$1,\"bscr\",\"\",CONFIGURATION!$B$12,$J$10,B14,$K$10,C14,$L$10,D14,$M$10,E14,$N$10,F14,$O$10,G14,\"\"),\"emptyTuple\")","v":"Mapped"}]
[5,{"$f":"Import!E5327","v":0},{"$f":"Import!E5347","v":"00:00:00"},{"$f":"Import!E5367","v":"00:00:00"},{"$f":"Import!E5387","v":"00:00:00"},{"$f":"Import!E5407","v":0},{"$f":"Import!E5427","v":0},null,null,{"$f":"IF(OR(B15<>\"\",C15<>\"\",D15<>\"\",E15<>\"\",F15<>\"\",G15<>\"\"),XBRLMapTuple($J$9,$K$5,$K$6,\"BMA\",CONFIGURATION!$B$1,\"bscr\",\"\",CONFIGURATION!$B$12,$J$10,B15,$K$10,C15,$L$10,D15,$M$10,E15,$N$10,F15,$O$10,G15,\"\"),\"emptyTuple\")","v":"Mapped"}]
[6,{"$f":"Import!E5328","v":0},{"$f":"Import!E5348","v":"00:00:00"},{"$f":"Import!E5368","v":"00:00:00"},{"$f":"Import!E5388","v":"00:00:00"},{"$f":"Import!E5408","v":0},{"$f":"Import!E5428","v":0},null,null,{"$f":"IF(OR(B16<>\"\",C16<>\"\",D16<>\"\",E16<>\"\",F16<>\"\",G16<>\"\"),XBRLMapTuple($J$9,$K$5,$K$6,\"BMA\",CONFIGURATION!$B$1,\"bscr\",\"\",CONFIGURATION!$B$12,$J$10,B16,$K$10,C16,$L$10,D16,$M$10,E16,$N$10,F16,$O$10,G16,\"\"),\"emptyTuple\")","v":"Mapped"}]
[7,{"$f":"Import!E5329","v":0},{"$f":"Import!E5349","v":"00:00:00"},{"$f":"Import!E5369","v":"00:00:00"},{"$f":"Import!E5389","v":"00:00:00"},{"$f":"Import!E5409","v":0},{"$f":"Import!E5429","v":0},null,null,{"$f":"IF(OR(B17<>\"\",C17<>\"\",D17<>\"\",E17<>\"\",F17<>\"\",G17<>\"\"),XBRLMapTuple($J$9,$K$5,$K$6,\"BMA\",CONFIGURATION!$B$1,\"bscr\",\"\",CONFIGURATION!$B$12,$J$10,B17,$K$10,C17,$L$10,D17,$M$10,E17,$N$10,F17,$O$10,G17,\"\"),\"emptyTuple\")","v":"Mapped"}]
[8,{"$f":"Import!E5330","v":0},{"$f":"Import!E5350","v":"00:00:00"},{"$f":"Import!E5370","v":"00:00:00"},{"$f":"Import!E5390","v":"00:00:00"},{"$f":"Import!E5410","v":0},{"$f":"Import!E5430","v":0},null,null,{"$f":"IF(OR(B18<>\"\",C18<>\"\",D18<>\"\",E18<>\"\",F18<>\"\",G18<>\"\"),XBRLMapTuple($J$9,$K$5,$K$6,\"BMA\",CONFIGURATION!$B$1,\"bscr\",\"\",CONFIGURATION!$B$12,$J$10,B18,$K$10,C18,$L$10,D18,$M$10,E18,$N$10,F18,$O$10,G18,\"\"),\"emptyTuple\")","v":"Mapped"}]
[9,{"$f":"Import!E5331","v":0},{"$f":"Import!E5351","v":"00:00:00"},{"$f":"Import!E5371","v":"00:00:00"},{"$f":"Import!E5391","v":"00:00:00"},{"$f":"Import!E5411","v":0},{"$f":"Import!E5431","v":0},null,null,{"$f":"IF(OR(B19<>\"\",C19<>\"\",D19<>\"\",E19<>\"\",F19<>\"\",G19<>\"\"),XBRLMapTuple($J$9,$K$5,$K$6,\"BMA\",CONFIGURATION!$B$1,\"bscr\",\"\",CONFIGURATION!$B$12,$J$10,B19,$K$10,C19,$L$10,D19,$M$10,E19,$N$10,F19,$O$10,G19,\"\"),\"emptyTuple\")","v":"Mapped"}]
[10,{"$f":"Import!E5332","v":0},{"$f":"Import!E5352","v":"00:00:00"},{"$f":"Import!E5372","v":"00:00:00"},{"$f":"Import!E5392","v":"00:00:00"},{"$f":"Import!E5412","v":0},{"$f":"Import!E5432","v":0},null,null,{"$f":"IF(OR(B20<>\"\",C20<>\"\",D20<>\"\",E20<>\"\",F20<>\"\",G20<>\"\"),XBRLMapTuple($J$9,$K$5,$K$6,\"BMA\",CONFIGURATION!$B$1,\"bscr\",\"\",CONFIGURATION!$B$12,$J$10,B20,$K$10,C20,$L$10,D20,$M$10,E20,$N$10,F20,$O$10,G20,\"\"),\"emptyTuple\")","v":"Mapped"}]
[11,{"$f":"Import!E5333","v":0},{"$f":"Import!E5353","v":"00:00:00"},{"$f":"Import!E5373","v":"00:00:00"},{"$f":"Import!E5393","v":"00:00:00"},{"$f":"Import!E5413","v":0},{"$f":"Import!E5433","v":0},null,null,{"$f":"IF(OR(B21<>\"\",C21<>\"\",D21<>\"\",E21<>\"\",F21<>\"\",G21<>\"\"),XBRLMapTuple($J$9,$K$5,$K$6,\"BMA\",CONFIGURATION!$B$1,\"bscr\",\"\",CONFIGURATION!$B$12,$J$10,B21,$K$10,C21,$L$10,D21,$M$10,E21,$N$10,F21,$O$10,G21,\"\"),\"emptyTuple\")","v":"Mapped"}]
[12,{"$f":"Import!E5334","v":0},{"$f":"Import!E5354","v":"00:00:00"},{"$f":"Import!E5374","v":"00:00:00"},{"$f":"Import!E5394","v":"00:00:00"},{"$f":"Import!E5414","v":0},{"$f":"Import!E5434","v":0},null,null,{"$f":"IF(OR(B22<>\"\",C22<>\"\",D22<>\"\",E22<>\"\",F22<>\"\",G22<>\"\"),XBRLMapTuple($J$9,$K$5,$K$6,\"BMA\",CONFIGURATION!$B$1,\"bscr\",\"\",CONFIGURATION!$B$12,$J$10,B22,$K$10,C22,$L$10,D22,$M$10,E22,$N$10,F22,$O$10,G22,\"\"),\"emptyTuple\")","v":"Mapped"}]
[13,{"$f":"Import!E5335","v":0},{"$f":"Import!E5355","v":"00:00:00"},{"$f":"Import!E5375","v":"00:00:00"},{"$f":"Import!E5395","v":"00:00:00"},{"$f":"Import!E5415","v":0},{"$f":"Import!E5435","v":0},null,null,{"$f":"IF(OR(B23<>\"\",C23<>\"\",D23<>\"\",E23<>\"\",F23<>\"\",G23<>\"\"),XBRLMapTuple($J$9,$K$5,$K$6,\"BMA\",CONFIGURATION!$B$1,\"bscr\",\"\",CONFIGURATION!$B$12,$J$10,B23,$K$10,C23,$L$10,D23,$M$10,E23,$N$10,F23,$O$10,G23,\"\"),\"emptyTuple\")","v":"Mapped"}]
[14,{"$f":"Import!E5336","v":0},{"$f":"Import!E5356","v":"00:00:00"},{"$f":"Import!E5376","v":"00:00:00"},{"$f":"Import!E5396","v":"00:00:00"},{"$f":"Import!E5416","v":0},{"$f":"Import!E5436","v":0},null,null,{"$f":"IF(OR(B24<>\"\",C24<>\"\",D24<>\"\",E24<>\"\",F24<>\"\",G24<>\"\"),XBRLMapTuple($J$9,$K$5,$K$6,\"BMA\",CONFIGURATION!$B$1,\"bscr\",\"\",CONFIGURATION!$B$12,$J$10,B24,$K$10,C24,$L$10,D24,$M$10,E24,$N$10,F24,$O$10,G24,\"\"),\"emptyTuple\")","v":"Mapped"}]
[15,{"$f":"Import!E5337","v":0},{"$f":"Import!E5357","v":"00:00:00"},{"$f":"Import!E5377","v":"00:00:00"},{"$f":"Import!E5397","v":"00:00:00"},{"$f":"Import!E5417","v":0},{"$f":"Import!E5437","v":0},null,null,{"$f":"IF(OR(B25<>\"\",C25<>\"\",D25<>\"\",E25<>\"\",F25<>\"\",G25<>\"\"),XBRLMapTuple($J$9,$K$5,$K$6,\"BMA\",CONFIGURATION!$B$1,\"bscr\",\"\",CONFIGURATION!$B$12,$J$10,B25,$K$10,C25,$L$10,D25,$M$10,E25,$N$10,F25,$O$10,G25,\"\"),\"emptyTuple\")","v":"Mapped"}]
[16,{"$f":"Import!E5338","v":0},{"$f":"Import!E5358","v":"00:00:00"},{"$f":"Import!E5378","v":"00:00:00"},{"$f":"Import!E5398","v":"00:00:00"},{"$f":"Import!E5418","v":0},{"$f":"Import!E5438","v":0},null,null,{"$f":"IF(OR(B26<>\"\",C26<>\"\",D26<>\"\",E26<>\"\",F26<>\"\",G26<>\"\"),XBRLMapTuple($J$9,$K$5,$K$6,\"BMA\",CONFIGURATION!$B$1,\"bscr\",\"\",CONFIGURATION!$B$12,$J$10,B26,$K$10,C26,$L$10,D26,$M$10,E26,$N$10,F26,$O$10,G26,\"\"),\"emptyTuple\")","v":"Mapped"}]
[17,{"$f":"Import!E5339","v":0},{"$f":"Import!E5359","v":"00:00:00"},{"$f":"Import!E5379","v":"00:00:00"},{"$f":"Import!E5399","v":"00:00:00"},{"$f":"Import!E5419","v":0},{"$f":"Import!E5439","v":0},null,null,{"$f":"IF(OR(B27<>\"\",C27<>\"\",D27<>\"\",E27<>\"\",F27<>\"\",G27<>\"\"),XBRLMapTuple($J$9,$K$5,$K$6,\"BMA\",CONFIGURATION!$B$1,\"bscr\",\"\",CONFIGURATION!$B$12,$J$10,B27,$K$10,C27,$L$10,D27,$M$10,E27,$N$10,F27,$O$10,G27,\"\"),\"emptyTuple\")","v":"Mapped"}]
[18,{"$f":"Import!E5340","v":0},{"$f":"Import!E5360","v":"00:00:00"},{"$f":"Import!E5380","v":"00:00:00"},{"$f":"Import!E5400","v":"00:00:00"},{"$f":"Import!E5420","v":0},{"$f":"Import!E5440","v":0},null,null,{"$f":"IF(OR(B28<>\"\",C28<>\"\",D28<>\"\",E28<>\"\",F28<>\"\",G28<>\"\"),XBRLMapTuple($J$9,$K$5,$K$6,\"BMA\",CONFIGURATION!$B$1,\"bscr\",\"\",CONFIGURATION!$B$12,$J$10,B28,$K$10,C28,$L$10,D28,$M$10,E28,$N$10,F28,$O$10,G28,\"\"),\"emptyTuple\")","v":"Mapped"}]
[19,{"$f":"Import!E5341","v":0},{"$f":"Import!E5361","v":"00:00:00"},{"$f":"Import!E5381","v":"00:00:00"},{"$f":"Import!E5401","v":"00:00:00"},{"$f":"Import!E5421","v":0},{"$f":"Import!E5441","v":0},null,null,{"$f":"IF(OR(B29<>\"\",C29<>\"\",D29<>\"\",E29<>\"\",F29<>\"\",G29<>\"\"),XBRLMapTuple($J$9,$K$5,$K$6,\"BMA\",CONFIGURATION!$B$1,\"bscr\",\"\",CONFIGURATION!$B$12,$J$10,B29,$K$10,C29,$L$10,D29,$M$10,E29,$N$10,F29,$O$10,G29,\"\"),\"emptyTuple\")","v":"Mapped"}]
[20,{"$f":"Import!E5342","v":0},{"$f":"Import!E5362","v":"00:00:00"},{"$f":"Import!E5382","v":"00:00:00"},{"$f":"Import!E5402","v":"00:00:00"},{"$f":"Import!E5422","v":0},{"$f":"Import!E5442","v":0},null,null,{"$f":"IF(OR(B30<>\"\",C30<>\"\",D30<>\"\",E30<>\"\",F30<>\"\",G30<>\"\"),XBRLMapTuple($J$9,$K$5,$K$6,\"BMA\",CONFIGURATION!$B$1,\"bscr\",\"\",CONFIGURATION!$B$12,$J$10,B30,$K$10,C30,$L$10,D30,$M$10,E30,$N$10,F30,$O$10,G30,\"\"),\"emptyTuple\")","v":"Mapped"}]
[21,null,null,null,null,null,null,null,null,{"$f":"IF(OR(B31<>\"\",C31<>\"\",D31<>\"\",E31<>\"\",F31<>\"\",G31<>\"\"),XBRLMapTuple($J$9,$K$5,$K$6,\"BMA\",CONFIGURATION!$B$1,\"bscr\",\"\",CONFIGURATION!$B$12,$J$10,B31,$K$10,C31,$L$10,D31,$M$10,E31,$N$10,F31,$O$10,G31,\"\"),\"emptyTuple\")","v":"emptyTuple"}]
[22,null,null,null,null,null,null,null,null,{"$f":"IF(OR(B32<>\"\",C32<>\"\",D32<>\"\",E32<>\"\",F32<>\"\",G32<>\"\"),XBRLMapTuple($J$9,$K$5,$K$6,\"BMA\",CONFIGURATION!$B$1,\"bscr\",\"\",CONFIGURATION!$B$12,$J$10,B32,$K$10,C32,$L$10,D32,$M$10,E32,$N$10,F32,$O$10,G32,\"\"),\"emptyTuple\")","v":"emptyTuple"}]
[23,null,null,null,null,null,null,null,null,{"$f":"IF(OR(B33<>\"\",C33<>\"\",D33<>\"\",E33<>\"\",F33<>\"\",G33<>\"\"),XBRLMapTuple($J$9,$K$5,$K$6,\"BMA\",CONFIGURATION!$B$1,\"bscr\",\"\",CONFIGURATION!$B$12,$J$10,B33,$K$10,C33,$L$10,D33,$M$10,E33,$N$10,F33,$O$10,G33,\"\"),\"emptyTuple\")","v":"emptyTuple"}]
[24,null,null,null,null,null,null,null,null,{"$f":"IF(OR(B34<>\"\",C34<>\"\",D34<>\"\",E34<>\"\",F34<>\"\",G34<>\"\"),XBRLMapTuple($J$9,$K$5,$K$6,\"BMA\",CONFIGURATION!$B$1,\"bscr\",\"\",CONFIGURATION!$B$12,$J$10,B34,$K$10,C34,$L$10,D34,$M$10,E34,$N$10,F34,$O$10,G34,\"\"),\"emptyTuple\")","v":"emptyTuple"}]
[25,null,null,null,null,null,null,null,null,{"$f":"IF(OR(B35<>\"\",C35<>\"\",D35<>\"\",E35<>\"\",F35<>\"\",G35<>\"\"),XBRLMapTuple($J$9,$K$5,$K$6,\"BMA\",CONFIGURATION!$B$1,\"bscr\",\"\",CONFIGURATION!$B$12,$J$10,B35,$K$10,C35,$L$10,D35,$M$10,E35,$N$10,F35,$O$10,G35,\"\"),\"emptyTuple\")","v":"emptyTuple"}]
[26,null,null,null,null,null,null,null,null,{"$f":"IF(OR(B36<>\"\",C36<>\"\",D36<>\"\",E36<>\"\",F36<>\"\",G36<>\"\"),XBRLMapTuple($J$9,$K$5,$K$6,\"BMA\",CONFIGURATION!$B$1,\"bscr\",\"\",CONFIGURATION!$B$12,$J$10,B36,$K$10,C36,$L$10,D36,$M$10,E36,$N$10,F36,$O$10,G36,\"\"),\"emptyTuple\")","v":"emptyTuple"}]
[27,null,null,null,null,null,null,null,null,{"$f":"IF(OR(B37<>\"\",C37<>\"\",D37<>\"\",E37<>\"\",F37<>\"\",G37<>\"\"),XBRLMapTuple($J$9,$K$5,$K$6,\"BMA\",CONFIGURATION!$B$1,\"bscr\",\"\",CONFIGURATION!$B$12,$J$10,B37,$K$10,C37,$L$10,D37,$M$10,E37,$N$10,F37,$O$10,G37,\"\"),\"emptyTuple\")","v":"emptyTuple"}]
[28,null,null,null,null,null,null,null,null,{"$f":"IF(OR(B38<>\"\",C38<>\"\",D38<>\"\",E38<>\"\",F38<>\"\",G38<>\"\"),XBRLMapTuple($J$9,$K$5,$K$6,\"BMA\",CONFIGURATION!$B$1,\"bscr\",\"\",CONFIGURATION!$B$12,$J$10,B38,$K$10,C38,$L$10,D38,$M$10,E38,$N$10,F38,$O$10,G38,\"\"),\"emptyTuple\")","v":"emptyTuple"}]
[29,null,null,null,null,null,null,null,null,{"$f":"IF(OR(B39<>\"\",C39<>\"\",D39<>\"\",E39<>\"\",F39<>\"\",G39<>\"\"),XBRLMapTuple($J$9,$K$5,$K$6,\"BMA\",CONFIGURATION!$B$1,\"bscr\",\"\",CONFIGURATION!$B$12,$J$10,B39,$K$10,C39,$L$10,D39,$M$10,E39,$N$10,F39,$O$10,G39,\"\"),\"emptyTuple\")","v":"emptyTuple"}]
[30,null,null,null,null,null,null,null,null,{"$f":"IF(OR(B40<>\"\",C40<>\"\",D40<>\"\",E40<>\"\",F40<>\"\",G40<>\"\"),XBRLMapTuple($J$9,$K$5,$K$6,\"BMA\",CONFIGURATION!$B$1,\"bscr\",\"\",CONFIGURATION!$B$12,$J$10,B40,$K$10,C40,$L$10,D40,$M$10,E40,$N$10,F40,$O$10,G40,\"\"),\"emptyTuple\")","v":"emptyTuple"}]
[31,null,null,null,null,null,null,null,null,{"$f":"IF(OR(B41<>\"\",C41<>\"\",D41<>\"\",E41<>\"\",F41<>\"\",G41<>\"\"),XBRLMapTuple($J$9,$K$5,$K$6,\"BMA\",CONFIGURATION!$B$1,\"bscr\",\"\",CONFIGURATION!$B$12,$J$10,B41,$K$10,C41,$L$10,D41,$M$10,E41,$N$10,F41,$O$10,G41,\"\"),\"emptyTuple\")","v":"emptyTuple"}]
[32,null,null,null,null,null,null,null,null,{"$f":"IF(OR(B42<>\"\",C42<>\"\",D42<>\"\",E42<>\"\",F42<>\"\",G42<>\"\"),XBRLMapTuple($J$9,$K$5,$K$6,\"BMA\",CONFIGURATION!$B$1,\"bscr\",\"\",CONFIGURATION!$B$12,$J$10,B42,$K$10,C42,$L$10,D42,$M$10,E42,$N$10,F42,$O$10,G42,\"\"),\"emptyTuple\")","v":"emptyTuple"}]
[33,null,null,null,null,null,null,null,null,{"$f":"IF(OR(B43<>\"\",C43<>\"\",D43<>\"\",E43<>\"\",F43<>\"\",G43<>\"\"),XBRLMapTuple($J$9,$K$5,$K$6,\"BMA\",CONFIGURATION!$B$1,\"bscr\",\"\",CONFIGURATION!$B$12,$J$10,B43,$K$10,C43,$L$10,D43,$M$10,E43,$N$10,F43,$O$10,G43,\"\"),\"emptyTuple\")","v":"emptyTuple"}]
[34,null,null,null,null,null,null,null,null,{"$f":"IF(OR(B44<>\"\",C44<>\"\",D44<>\"\",E44<>\"\",F44<>\"\",G44<>\"\"),XBRLMapTuple($J$9,$K$5,$K$6,\"BMA\",CONFIGURATION!$B$1,\"bscr\",\"\",CONFIGURATION!$B$12,$J$10,B44,$K$10,C44,$L$10,D44,$M$10,E44,$N$10,F44,$O$10,G44,\"\"),\"emptyTuple\")","v":"emptyTuple"}]
[35,null,null,null,null,null,null,null,null,{"$f":"IF(OR(B45<>\"\",C45<>\"\",D45<>\"\",E45<>\"\",F45<>\"\",G45<>\"\"),XBRLMapTuple($J$9,$K$5,$K$6,\"BMA\",CONFIGURATION!$B$1,\"bscr\",\"\",CONFIGURATION!$B$12,$J$10,B45,$K$10,C45,$L$10,D45,$M$10,E45,$N$10,F45,$O$10,G45,\"\"),\"emptyTuple\")","v":"emptyTuple"}]
[36,null,null,null,null,null,null,null,null,{"$f":"IF(OR(B46<>\"\",C46<>\"\",D46<>\"\",E46<>\"\",F46<>\"\",G46<>\"\"),XBRLMapTuple($J$9,$K$5,$K$6,\"BMA\",CONFIGURATION!$B$1,\"bscr\",\"\",CONFIGURATION!$B$12,$J$10,B46,$K$10,C46,$L$10,D46,$M$10,E46,$N$10,F46,$O$10,G46,\"\"),\"emptyTuple\")","v":"emptyTuple"}]
[37,null,null,null,null,null,null,null,null,{"$f":"IF(OR(B47<>\"\",C47<>\"\",D47<>\"\",E47<>\"\",F47<>\"\",G47<>\"\"),XBRLMapTuple($J$9,$K$5,$K$6,\"BMA\",CONFIGURATION!$B$1,\"bscr\",\"\",CONFIGURATION!$B$12,$J$10,B47,$K$10,C47,$L$10,D47,$M$10,E47,$N$10,F47,$O$10,G47,\"\"),\"emptyTuple\")","v":"emptyTuple"}]
[38,null,null,null,null,null,null,null,null,{"$f":"IF(OR(B48<>\"\",C48<>\"\",D48<>\"\",E48<>\"\",F48<>\"\",G48<>\"\"),XBRLMapTuple($J$9,$K$5,$K$6,\"BMA\",CONFIGURATION!$B$1,\"bscr\",\"\",CONFIGURATION!$B$12,$J$10,B48,$K$10,C48,$L$10,D48,$M$10,E48,$N$10,F48,$O$10,G48,\"\"),\"emptyTuple\")","v":"emptyTuple"}]
[39,null,null,null,null,null,null,null,null,{"$f":"IF(OR(B49<>\"\",C49<>\"\",D49<>\"\",E49<>\"\",F49<>\"\",G49<>\"\"),XBRLMapTuple($J$9,$K$5,$K$6,\"BMA\",CONFIGURATION!$B$1,\"bscr\",\"\",CONFIGURATION!$B$12,$J$10,B49,$K$10,C49,$L$10,D49,$M$10,E49,$N$10,F49,$O$10,G49,\"\"),\"emptyTuple\")","v":"emptyTuple"}]
[40,null,null,null,null,null,null,null,null,{"$f":"IF(OR(B50<>\"\",C50<>\"\",D50<>\"\",E50<>\"\",F50<>\"\",G50<>\"\"),XBRLMapTuple($J$9,$K$5,$K$6,\"BMA\",CONFIGURATION!$B$1,\"bscr\",\"\",CONFIGURATION!$B$12,$J$10,B50,$K$10,C50,$L$10,D50,$M$10,E50,$N$10,F50,$O$10,G50,\"\"),\"emptyTuple\")","v":"emptyTuple"}]
[41,null,null,null,null,null,null,null,null,{"$f":"IF(OR(B51<>\"\",C51<>\"\",D51<>\"\",E51<>\"\",F51<>\"\",G51<>\"\"),XBRLMapTuple($J$9,$K$5,$K$6,\"BMA\",CONFIGURATION!$B$1,\"bscr\",\"\",CONFIGURATION!$B$12,$J$10,B51,$K$10,C51,$L$10,D51,$M$10,E51,$N$10,F51,$O$10,G51,\"\"),\"emptyTuple\")","v":"emptyTuple"}]
[42,null,null,null,null,null,null,null,null,{"$f":"IF(OR(B52<>\"\",C52<>\"\",D52<>\"\",E52<>\"\",F52<>\"\",G52<>\"\"),XBRLMapTuple($J$9,$K$5,$K$6,\"BMA\",CONFIGURATION!$B$1,\"bscr\",\"\",CONFIGURATION!$B$12,$J$10,B52,$K$10,C52,$L$10,D52,$M$10,E52,$N$10,F52,$O$10,G52,\"\"),\"emptyTuple\")","v":"emptyTuple"}]
[43,null,null,null,null,null,null,null,null,{"$f":"IF(OR(B53<>\"\",C53<>\"\",D53<>\"\",E53<>\"\",F53<>\"\",G53<>\"\"),XBRLMapTuple($J$9,$K$5,$K$6,\"BMA\",CONFIGURATION!$B$1,\"bscr\",\"\",CONFIGURATION!$B$12,$J$10,B53,$K$10,C53,$L$10,D53,$M$10,E53,$N$10,F53,$O$10,G53,\"\"),\"emptyTuple\")","v":"emptyTuple"}]
[44,null,null,null,null,null,null,null,null,{"$f":"IF(OR(B54<>\"\",C54<>\"\",D54<>\"\",E54<>\"\",F54<>\"\",G54<>\"\"),XBRLMapTuple($J$9,$K$5,$K$6,\"BMA\",CONFIGURATION!$B$1,\"bscr\",\"\",CONFIGURATION!$B$12,$J$10,B54,$K$10,C54,$L$10,D54,$M$10,E54,$N$10,F54,$O$10,G54,\"\"),\"emptyTuple\")","v":"emptyTuple"}]
[45,null,null,null,null,null,null,null,null,{"$f":"IF(OR(B55<>\"\",C55<>\"\",D55<>\"\",E55<>\"\",F55<>\"\",G55<>\"\"),XBRLMapTuple($J$9,$K$5,$K$6,\"BMA\",CONFIGURATION!$B$1,\"bscr\",\"\",CONFIGURATION!$B$12,$J$10,B55,$K$10,C55,$L$10,D55,$M$10,E55,$N$10,F55,$O$10,G55,\"\"),\"emptyTuple\")","v":"emptyTuple"}]
[46,null,null,null,null,null,null,null,null,{"$f":"IF(OR(B56<>\"\",C56<>\"\",D56<>\"\",E56<>\"\",F56<>\"\",G56<>\"\"),XBRLMapTuple($J$9,$K$5,$K$6,\"BMA\",CONFIGURATION!$B$1,\"bscr\",\"\",CONFIGURATION!$B$12,$J$10,B56,$K$10,C56,$L$10,D56,$M$10,E56,$N$10,F56,$O$10,G56,\"\"),\"emptyTuple\")","v":"emptyTuple"}]
[47,null,null,null,null,null,null,null,null,{"$f":"IF(OR(B57<>\"\",C57<>\"\",D57<>\"\",E57<>\"\",F57<>\"\",G57<>\"\"),XBRLMapTuple($J$9,$K$5,$K$6,\"BMA\",CONFIGURATION!$B$1,\"bscr\",\"\",CONFIGURATION!$B$12,$J$10,B57,$K$10,C57,$L$10,D57,$M$10,E57,$N$10,F57,$O$10,G57,\"\"),\"emptyTuple\")","v":"emptyTuple"}]
[48,null,null,null,null,null,null,null,null,{"$f":"IF(OR(B58<>\"\",C58<>\"\",D58<>\"\",E58<>\"\",F58<>\"\",G58<>\"\"),XBRLMapTuple($J$9,$K$5,$K$6,\"BMA\",CONFIGURATION!$B$1,\"bscr\",\"\",CONFIGURATION!$B$12,$J$10,B58,$K$10,C58,$L$10,D58,$M$10,E58,$N$10,F58,$O$10,G58,\"\"),\"emptyTuple\")","v":"emptyTuple"}]
[49,null,null,null,null,null,null,null,null,{"$f":"IF(OR(B59<>\"\",C59<>\"\",D59<>\"\",E59<>\"\",F59<>\"\",G59<>\"\"),XBRLMapTuple($J$9,$K$5,$K$6,\"BMA\",CONFIGURATION!$B$1,\"bscr\",\"\",CONFIGURATION!$B$12,$J$10,B59,$K$10,C59,$L$10,D59,$M$10,E59,$N$10,F59,$O$10,G59,\"\"),\"emptyTuple\")","v":"emptyTuple"}]
[50,null,null,null,null,null,null,null,null,{"$f":"IF(OR(B60<>\"\",C60<>\"\",D60<>\"\",E60<>\"\",F60<>\"\",G60<>\"\"),XBRLMapTuple($J$9,$K$5,$K$6,\"BMA\",CONFIGURATION!$B$1,\"bscr\",\"\",CONFIGURATION!$B$12,$J$10,B60,$K$10,C60,$L$10,D60,$M$10,E60,$N$10,F60,$O$10,G60,\"\"),\"emptyTuple\")","v":"emptyTuple"}]
[51,null,null,null,null,null,null,null,null,{"$f":"IF(OR(B61<>\"\",C61<>\"\",D61<>\"\",E61<>\"\",F61<>\"\",G61<>\"\"),XBRLMapTuple($J$9,$K$5,$K$6,\"BMA\",CONFIGURATION!$B$1,\"bscr\",\"\",CONFIGURATION!$B$12,$J$10,B61,$K$10,C61,$L$10,D61,$M$10,E61,$N$10,F61,$O$10,G61,\"\"),\"emptyTuple\")","v":"emptyTuple"}]
[52,null,null,null,null,null,null,null,null,{"$f":"IF(OR(B62<>\"\",C62<>\"\",D62<>\"\",E62<>\"\",F62<>\"\",G62<>\"\"),XBRLMapTuple($J$9,$K$5,$K$6,\"BMA\",CONFIGURATION!$B$1,\"bscr\",\"\",CONFIGURATION!$B$12,$J$10,B62,$K$10,C62,$L$10,D62,$M$10,E62,$N$10,F62,$O$10,G62,\"\"),\"emptyTuple\")","v":"emptyTuple"}]
[53,null,null,null,null,null,null,null,null,{"$f":"IF(OR(B63<>\"\",C63<>\"\",D63<>\"\",E63<>\"\",F63<>\"\",G63<>\"\"),XBRLMapTuple($J$9,$K$5,$K$6,\"BMA\",CONFIGURATION!$B$1,\"bscr\",\"\",CONFIGURATION!$B$12,$J$10,B63,$K$10,C63,$L$10,D63,$M$10,E63,$N$10,F63,$O$10,G63,\"\"),\"emptyTuple\")","v":"emptyTuple"}]
[54,null,null,null,null,null,null,null,null,{"$f":"IF(OR(B64<>\"\",C64<>\"\",D64<>\"\",E64<>\"\",F64<>\"\",G64<>\"\"),XBRLMapTuple($J$9,$K$5,$K$6,\"BMA\",CONFIGURATION!$B$1,\"bscr\",\"\",CONFIGURATION!$B$12,$J$10,B64,$K$10,C64,$L$10,D64,$M$10,E64,$N$10,F64,$O$10,G64,\"\"),\"emptyTuple\")","v":"emptyTuple"}]
[55,null,null,null,null,null,null,null,null,{"$f":"IF(OR(B65<>\"\",C65<>\"\",D65<>\"\",E65<>\"\",F65<>\"\",G65<>\"\"),XBRLMapTuple($J$9,$K$5,$K$6,\"BMA\",CONFIGURATION!$B$1,\"bscr\",\"\",CONFIGURATION!$B$12,$J$10,B65,$K$10,C65,$L$10,D65,$M$10,E65,$N$10,F65,$O$10,G65,\"\"),\"emptyTuple\")","v":"emptyTuple"}]
[56,null,null,null,null,null,null,null,null,{"$f":"IF(OR(B66<>\"\",C66<>\"\",D66<>\"\",E66<>\"\",F66<>\"\",G66<>\"\"),XBRLMapTuple($J$9,$K$5,$K$6,\"BMA\",CONFIGURATION!$B$1,\"bscr\",\"\",CONFIGURATION!$B$12,$J$10,B66,$K$10,C66,$L$10,D66,$M$10,E66,$N$10,F66,$O$10,G66,\"\"),\"emptyTuple\")","v":"emptyTuple"}]
[57,null,null,null,null,null,null,null,null,{"$f":"IF(OR(B67<>\"\",C67<>\"\",D67<>\"\",E67<>\"\",F67<>\"\",G67<>\"\"),XBRLMapTuple($J$9,$K$5,$K$6,\"BMA\",CONFIGURATION!$B$1,\"bscr\",\"\",CONFIGURATION!$B$12,$J$10,B67,$K$10,C67,$L$10,D67,$M$10,E67,$N$10,F67,$O$10,G67,\"\"),\"emptyTuple\")","v":"emptyTuple"}]
[58,null,null,null,null,null,null,null,null,{"$f":"IF(OR(B68<>\"\",C68<>\"\",D68<>\"\",E68<>\"\",F68<>\"\",G68<>\"\"),XBRLMapTuple($J$9,$K$5,$K$6,\"BMA\",CONFIGURATION!$B$1,\"bscr\",\"\",CONFIGURATION!$B$12,$J$10,B68,$K$10,C68,$L$10,D68,$M$10,E68,$N$10,F68,$O$10,G68,\"\"),\"emptyTuple\")","v":"emptyTuple"}]
[59,null,null,null,null,null,null,null,null,{"$f":"IF(OR(B69<>\"\",C69<>\"\",D69<>\"\",E69<>\"\",F69<>\"\",G69<>\"\"),XBRLMapTuple($J$9,$K$5,$K$6,\"BMA\",CONFIGURATION!$B$1,\"bscr\",\"\",CONFIGURATION!$B$12,$J$10,B69,$K$10,C69,$L$10,D69,$M$10,E69,$N$10,F69,$O$10,G69,\"\"),\"emptyTuple\")","v":"emptyTuple"}]
[60,null,null,null,null,null,null,null,null,{"$f":"IF(OR(B70<>\"\",C70<>\"\",D70<>\"\",E70<>\"\",F70<>\"\",G70<>\"\"),XBRLMapTuple($J$9,$K$5,$K$6,\"BMA\",CONFIGURATION!$B$1,\"bscr\",\"\",CONFIGURATION!$B$12,$J$10,B70,$K$10,C70,$L$10,D70,$M$10,E70,$N$10,F70,$O$10,G70,\"\"),\"emptyTuple\")","v":"emptyTuple"}]
[61,null,null,null,null,null,null,null,null,{"$f":"IF(OR(B71<>\"\",C71<>\"\",D71<>\"\",E71<>\"\",F71<>\"\",G71<>\"\"),XBRLMapTuple($J$9,$K$5,$K$6,\"BMA\",CONFIGURATION!$B$1,\"bscr\",\"\",CONFIGURATION!$B$12,$J$10,B71,$K$10,C71,$L$10,D71,$M$10,E71,$N$10,F71,$O$10,G71,\"\"),\"emptyTuple\")","v":"emptyTuple"}]
[62,null,null,null,null,null,null,null,null,{"$f":"IF(OR(B72<>\"\",C72<>\"\",D72<>\"\",E72<>\"\",F72<>\"\",G72<>\"\"),XBRLMapTuple($J$9,$K$5,$K$6,\"BMA\",CONFIGURATION!$B$1,\"bscr\",\"\",CONFIGURATION!$B$12,$J$10,B72,$K$10,C72,$L$10,D72,$M$10,E72,$N$10,F72,$O$10,G72,\"\"),\"emptyTuple\")","v":"emptyTuple"}]
[63,null,null,null,null,null,null,null,null,{"$f":"IF(OR(B73<>\"\",C73<>\"\",D73<>\"\",E73<>\"\",F73<>\"\",G73<>\"\"),XBRLMapTuple($J$9,$K$5,$K$6,\"BMA\",CONFIGURATION!$B$1,\"bscr\",\"\",CONFIGURATION!$B$12,$J$10,B73,$K$10,C73,$L$10,D73,$M$10,E73,$N$10,F73,$O$10,G73,\"\"),\"emptyTuple\")","v":"emptyTuple"}]
[64,null,null,null,null,null,null,null,null,{"$f":"IF(OR(B74<>\"\",C74<>\"\",D74<>\"\",E74<>\"\",F74<>\"\",G74<>\"\"),XBRLMapTuple($J$9,$K$5,$K$6,\"BMA\",CONFIGURATION!$B$1,\"bscr\",\"\",CONFIGURATION!$B$12,$J$10,B74,$K$10,C74,$L$10,D74,$M$10,E74,$N$10,F74,$O$10,G74,\"\"),\"emptyTuple\")","v":"emptyTuple"}]
[65,null,null,null,null,null,null,null,null,{"$f":"IF(OR(B75<>\"\",C75<>\"\",D75<>\"\",E75<>\"\",F75<>\"\",G75<>\"\"),XBRLMapTuple($J$9,$K$5,$K$6,\"BMA\",CONFIGURATION!$B$1,\"bscr\",\"\",CONFIGURATION!$B$12,$J$10,B75,$K$10,C75,$L$10,D75,$M$10,E75,$N$10,F75,$O$10,G75,\"\"),\"emptyTuple\")","v":"emptyTuple"}]
[66,null,null,null,null,null,null,null,null,{"$f":"IF(OR(B76<>\"\",C76<>\"\",D76<>\"\",E76<>\"\",F76<>\"\",G76<>\"\"),XBRLMapTuple($J$9,$K$5,$K$6,\"BMA\",CONFIGURATION!$B$1,\"bscr\",\"\",CONFIGURATION!$B$12,$J$10,B76,$K$10,C76,$L$10,D76,$M$10,E76,$N$10,F76,$O$10,G76,\"\"),\"emptyTuple\")","v":"emptyTuple"}]
[67,null,null,null,null,null,null,null,null,{"$f":"IF(OR(B77<>\"\",C77<>\"\",D77<>\"\",E77<>\"\",F77<>\"\",G77<>\"\"),XBRLMapTuple($J$9,$K$5,$K$6,\"BMA\",CONFIGURATION!$B$1,\"bscr\",\"\",CONFIGURATION!$B$12,$J$10,B77,$K$10,C77,$L$10,D77,$M$10,E77,$N$10,F77,$O$10,G77,\"\"),\"emptyTuple\")","v":"emptyTuple"}]
[68,null,null,null,null,null,null,null,null,{"$f":"IF(OR(B78<>\"\",C78<>\"\",D78<>\"\",E78<>\"\",F78<>\"\",G78<>\"\"),XBRLMapTuple($J$9,$K$5,$K$6,\"BMA\",CONFIGURATION!$B$1,\"bscr\",\"\",CONFIGURATION!$B$12,$J$10,B78,$K$10,C78,$L$10,D78,$M$10,E78,$N$10,F78,$O$10,G78,\"\"),\"emptyTuple\")","v":"emptyTuple"}]
[69,null,null,null,null,null,null,null,null,{"$f":"IF(OR(B79<>\"\",C79<>\"\",D79<>\"\",E79<>\"\",F79<>\"\",G79<>\"\"),XBRLMapTuple($J$9,$K$5,$K$6,\"BMA\",CONFIGURATION!$B$1,\"bscr\",\"\",CONFIGURATION!$B$12,$J$10,B79,$K$10,C79,$L$10,D79,$M$10,E79,$N$10,F79,$O$10,G79,\"\"),\"emptyTuple\")","v":"emptyTuple"}]
[70,null,null,null,null,null,null,null,null,{"$f":"IF(OR(B80<>\"\",C80<>\"\",D80<>\"\",E80<>\"\",F80<>\"\",G80<>\"\"),XBRLMapTuple($J$9,$K$5,$K$6,\"BMA\",CONFIGURATION!$B$1,\"bscr\",\"\",CONFIGURATION!$B$12,$J$10,B80,$K$10,C80,$L$10,D80,$M$10,E80,$N$10,F80,$O$10,G80,\"\"),\"emptyTuple\")","v":"emptyTuple"}]
[71,null,null,null,null,null,null,null,null,{"$f":"IF(OR(B81<>\"\",C81<>\"\",D81<>\"\",E81<>\"\",F81<>\"\",G81<>\"\"),XBRLMapTuple($J$9,$K$5,$K$6,\"BMA\",CONFIGURATION!$B$1,\"bscr\",\"\",CONFIGURATION!$B$12,$J$10,B81,$K$10,C81,$L$10,D81,$M$10,E81,$N$10,F81,$O$10,G81,\"\"),\"emptyTuple\")","v":"emptyTuple"}]
[72,null,null,null,null,null,null,null,null,{"$f":"IF(OR(B82<>\"\",C82<>\"\",D82<>\"\",E82<>\"\",F82<>\"\",G82<>\"\"),XBRLMapTuple($J$9,$K$5,$K$6,\"BMA\",CONFIGURATION!$B$1,\"bscr\",\"\",CONFIGURATION!$B$12,$J$10,B82,$K$10,C82,$L$10,D82,$M$10,E82,$N$10,F82,$O$10,G82,\"\"),\"emptyTuple\")","v":"emptyTuple"}]
[73,null,null,null,null,null,null,null,null,{"$f":"IF(OR(B83<>\"\",C83<>\"\",D83<>\"\",E83<>\"\",F83<>\"\",G83<>\"\"),XBRLMapTuple($J$9,$K$5,$K$6,\"BMA\",CONFIGURATION!$B$1,\"bscr\",\"\",CONFIGURATION!$B$12,$J$10,B83,$K$10,C83,$L$10,D83,$M$10,E83,$N$10,F83,$O$10,G83,\"\"),\"emptyTuple\")","v":"emptyTuple"}]
[74,null,null,null,null,null,null,null,null,{"$f":"IF(OR(B84<>\"\",C84<>\"\",D84<>\"\",E84<>\"\",F84<>\"\",G84<>\"\"),XBRLMapTuple($J$9,$K$5,$K$6,\"BMA\",CONFIGURATION!$B$1,\"bscr\",\"\",CONFIGURATION!$B$12,$J$10,B84,$K$10,C84,$L$10,D84,$M$10,E84,$N$10,F84,$O$10,G84,\"\"),\"emptyTuple\")","v":"emptyTuple"}]
[75,null,null,null,null,null,null,null,null,{"$f":"IF(OR(B85<>\"\",C85<>\"\",D85<>\"\",E85<>\"\",F85<>\"\",G85<>\"\"),XBRLMapTuple($J$9,$K$5,$K$6,\"BMA\",CONFIGURATION!$B$1,\"bscr\",\"\",CONFIGURATION!$B$12,$J$10,B85,$K$10,C85,$L$10,D85,$M$10,E85,$N$10,F85,$O$10,G85,\"\"),\"emptyTuple\")","v":"emptyTuple"}]
[76,null,null,null,null,null,null,null,null,{"$f":"IF(OR(B86<>\"\",C86<>\"\",D86<>\"\",E86<>\"\",F86<>\"\",G86<>\"\"),XBRLMapTuple($J$9,$K$5,$K$6,\"BMA\",CONFIGURATION!$B$1,\"bscr\",\"\",CONFIGURATION!$B$12,$J$10,B86,$K$10,C86,$L$10,D86,$M$10,E86,$N$10,F86,$O$10,G86,\"\"),\"emptyTuple\")","v":"emptyTuple"}]
[77,null,null,null,null,null,null,null,null,{"$f":"IF(OR(B87<>\"\",C87<>\"\",D87<>\"\",E87<>\"\",F87<>\"\",G87<>\"\"),XBRLMapTuple($J$9,$K$5,$K$6,\"BMA\",CONFIGURATION!$B$1,\"bscr\",\"\",CONFIGURATION!$B$12,$J$10,B87,$K$10,C87,$L$10,D87,$M$10,E87,$N$10,F87,$O$10,G87,\"\"),\"emptyTuple\")","v":"emptyTuple"}]
[78,null,null,null,null,null,null,null,null,{"$f":"IF(OR(B88<>\"\",C88<>\"\",D88<>\"\",E88<>\"\",F88<>\"\",G88<>\"\"),XBRLMapTuple($J$9,$K$5,$K$6,\"BMA\",CONFIGURATION!$B$1,\"bscr\",\"\",CONFIGURATION!$B$12,$J$10,B88,$K$10,C88,$L$10,D88,$M$10,E88,$N$10,F88,$O$10,G88,\"\"),\"emptyTuple\")","v":"emptyTuple"}]
[79,null,null,null,null,null,null,null,null,{"$f":"IF(OR(B89<>\"\",C89<>\"\",D89<>\"\",E89<>\"\",F89<>\"\",G89<>\"\"),XBRLMapTuple($J$9,$K$5,$K$6,\"BMA\",CONFIGURATION!$B$1,\"bscr\",\"\",CONFIGURATION!$B$12,$J$10,B89,$K$10,C89,$L$10,D89,$M$10,E89,$N$10,F89,$O$10,G89,\"\"),\"emptyTuple\")","v":"emptyTuple"}]
[80,null,null,null,null,null,null,null,null,{"$f":"IF(OR(B90<>\"\",C90<>\"\",D90<>\"\",E90<>\"\",F90<>\"\",G90<>\"\"),XBRLMapTuple($J$9,$K$5,$K$6,\"BMA\",CONFIGURATION!$B$1,\"bscr\",\"\",CONFIGURATION!$B$12,$J$10,B90,$K$10,C90,$L$10,D90,$M$10,E90,$N$10,F90,$O$10,G90,\"\"),\"emptyTuple\")","v":"emptyTuple"}]
[81,null,null,null,null,null,null,null,null,{"$f":"IF(OR(B91<>\"\",C91<>\"\",D91<>\"\",E91<>\"\",F91<>\"\",G91<>\"\"),XBRLMapTuple($J$9,$K$5,$K$6,\"BMA\",CONFIGURATION!$B$1,\"bscr\",\"\",CONFIGURATION!$B$12,$J$10,B91,$K$10,C91,$L$10,D91,$M$10,E91,$N$10,F91,$O$10,G91,\"\"),\"emptyTuple\")","v":"emptyTuple"}]
[82,null,null,null,null,null,null,null,null,{"$f":"IF(OR(B92<>\"\",C92<>\"\",D92<>\"\",E92<>\"\",F92<>\"\",G92<>\"\"),XBRLMapTuple($J$9,$K$5,$K$6,\"BMA\",CONFIGURATION!$B$1,\"bscr\",\"\",CONFIGURATION!$B$12,$J$10,B92,$K$10,C92,$L$10,D92,$M$10,E92,$N$10,F92,$O$10,G92,\"\"),\"emptyTuple\")","v":"emptyTuple"}]
[83,null,null,null,null,null,null,null,null,{"$f":"IF(OR(B93<>\"\",C93<>\"\",D93<>\"\",E93<>\"\",F93<>\"\",G93<>\"\"),XBRLMapTuple($J$9,$K$5,$K$6,\"BMA\",CONFIGURATION!$B$1,\"bscr\",\"\",CONFIGURATION!$B$12,$J$10,B93,$K$10,C93,$L$10,D93,$M$10,E93,$N$10,F93,$O$10,G93,\"\"),\"emptyTuple\")","v":"emptyTuple"}]
[84,null,null,null,null,null,null,null,null,{"$f":"IF(OR(B94<>\"\",C94<>\"\",D94<>\"\",E94<>\"\",F94<>\"\",G94<>\"\"),XBRLMapTuple($J$9,$K$5,$K$6,\"BMA\",CONFIGURATION!$B$1,\"bscr\",\"\",CONFIGURATION!$B$12,$J$10,B94,$K$10,C94,$L$10,D94,$M$10,E94,$N$10,F94,$O$10,G94,\"\"),\"emptyTuple\")","v":"emptyTuple"}]
[85,null,null,null,null,null,null,null,null,{"$f":"IF(OR(B95<>\"\",C95<>\"\",D95<>\"\",E95<>\"\",F95<>\"\",G95<>\"\"),XBRLMapTuple($J$9,$K$5,$K$6,\"BMA\",CONFIGURATION!$B$1,\"bscr\",\"\",CONFIGURATION!$B$12,$J$10,B95,$K$10,C95,$L$10,D95,$M$10,E95,$N$10,F95,$O$10,G95,\"\"),\"emptyTuple\")","v":"emptyTuple"}]
[86,null,null,null,null,null,null,null,null,{"$f":"IF(OR(B96<>\"\",C96<>\"\",D96<>\"\",E96<>\"\",F96<>\"\",G96<>\"\"),XBRLMapTuple($J$9,$K$5,$K$6,\"BMA\",CONFIGURATION!$B$1,\"bscr\",\"\",CONFIGURATION!$B$12,$J$10,B96,$K$10,C96,$L$10,D96,$M$10,E96,$N$10,F96,$O$10,G96,\"\"),\"emptyTuple\")","v":"emptyTuple"}]
[87,null,null,null,null,null,null,null,null,{"$f":"IF(OR(B97<>\"\",C97<>\"\",D97<>\"\",E97<>\"\",F97<>\"\",G97<>\"\"),XBRLMapTuple($J$9,$K$5,$K$6,\"BMA\",CONFIGURATION!$B$1,\"bscr\",\"\",CONFIGURATION!$B$12,$J$10,B97,$K$10,C97,$L$10,D97,$M$10,E97,$N$10,F97,$O$10,G97,\"\"),\"emptyTuple\")","v":"emptyTuple"}]
[88,null,null,null,null,null,null,null,null,{"$f":"IF(OR(B98<>\"\",C98<>\"\",D98<>\"\",E98<>\"\",F98<>\"\",G98<>\"\"),XBRLMapTuple($J$9,$K$5,$K$6,\"BMA\",CONFIGURATION!$B$1,\"bscr\",\"\",CONFIGURATION!$B$12,$J$10,B98,$K$10,C98,$L$10,D98,$M$10,E98,$N$10,F98,$O$10,G98,\"\"),\"emptyTuple\")","v":"emptyTuple"}]
[89,null,null,null,null,null,null,null,null,{"$f":"IF(OR(B99<>\"\",C99<>\"\",D99<>\"\",E99<>\"\",F99<>\"\",G99<>\"\"),XBRLMapTuple($J$9,$K$5,$K$6,\"BMA\",CONFIGURATION!$B$1,\"bscr\",\"\",CONFIGURATION!$B$12,$J$10,B99,$K$10,C99,$L$10,D99,$M$10,E99,$N$10,F99,$O$10,G99,\"\"),\"emptyTuple\")","v":"emptyTuple"}]
[90,null,null,null,null,null,null,null,null,{"$f":"IF(OR(B100<>\"\",C100<>\"\",D100<>\"\",E100<>\"\",F100<>\"\",G100<>\"\"),XBRLMapTuple($J$9,$K$5,$K$6,\"BMA\",CONFIGURATION!$B$1,\"bscr\",\"\",CONFIGURATION!$B$12,$J$10,B100,$K$10,C100,$L$10,D100,$M$10,E100,$N$10,F100,$O$10,G100,\"\"),\"emptyTuple\")","v":"emptyTuple"}]
[91,null,null,null,null,null,null,null,null,{"$f":"IF(OR(B101<>\"\",C101<>\"\",D101<>\"\",E101<>\"\",F101<>\"\",G101<>\"\"),XBRLMapTuple($J$9,$K$5,$K$6,\"BMA\",CONFIGURATION!$B$1,\"bscr\",\"\",CONFIGURATION!$B$12,$J$10,B101,$K$10,C101,$L$10,D101,$M$10,E101,$N$10,F101,$O$10,G101,\"\"),\"emptyTuple\")","v":"emptyTuple"}]
[92,null,null,null,null,null,null,null,null,{"$f":"IF(OR(B102<>\"\",C102<>\"\",D102<>\"\",E102<>\"\",F102<>\"\",G102<>\"\"),XBRLMapTuple($J$9,$K$5,$K$6,\"BMA\",CONFIGURATION!$B$1,\"bscr\",\"\",CONFIGURATION!$B$12,$J$10,B102,$K$10,C102,$L$10,D102,$M$10,E102,$N$10,F102,$O$10,G102,\"\"),\"emptyTuple\")","v":"emptyTuple"}]
[93,null,null,null,null,null,null,null,null,{"$f":"IF(OR(B103<>\"\",C103<>\"\",D103<>\"\",E103<>\"\",F103<>\"\",G103<>\"\"),XBRLMapTuple($J$9,$K$5,$K$6,\"BMA\",CONFIGURATION!$B$1,\"bscr\",\"\",CONFIGURATION!$B$12,$J$10,B103,$K$10,C103,$L$10,D103,$M$10,E103,$N$10,F103,$O$10,G103,\"\"),\"emptyTuple\")","v":"emptyTuple"}]
[94,null,null,null,null,null,null,null,null,{"$f":"IF(OR(B104<>\"\",C104<>\"\",D104<>\"\",E104<>\"\",F104<>\"\",G104<>\"\"),XBRLMapTuple($J$9,$K$5,$K$6,\"BMA\",CONFIGURATION!$B$1,\"bscr\",\"\",CONFIGURATION!$B$12,$J$10,B104,$K$10,C104,$L$10,D104,$M$10,E104,$N$10,F104,$O$10,G104,\"\"),\"emptyTuple\")","v":"emptyTuple"}]
[95,null,null,null,null,null,null,null,null,{"$f":"IF(OR(B105<>\"\",C105<>\"\",D105<>\"\",E105<>\"\",F105<>\"\",G105<>\"\"),XBRLMapTuple($J$9,$K$5,$K$6,\"BMA\",CONFIGURATION!$B$1,\"bscr\",\"\",CONFIGURATION!$B$12,$J$10,B105,$K$10,C105,$L$10,D105,$M$10,E105,$N$10,F105,$O$10,G105,\"\"),\"emptyTuple\")","v":"emptyTuple"}]
[96,null,null,null,null,null,null,null,null,{"$f":"IF(OR(B106<>\"\",C106<>\"\",D106<>\"\",E106<>\"\",F106<>\"\",G106<>\"\"),XBRLMapTuple($J$9,$K$5,$K$6,\"BMA\",CONFIGURATION!$B$1,\"bscr\",\"\",CONFIGURATION!$B$12,$J$10,B106,$K$10,C106,$L$10,D106,$M$10,E106,$N$10,F106,$O$10,G106,\"\"),\"emptyTuple\")","v":"emptyTuple"}]
[97,null,null,null,null,null,null,null,null,{"$f":"IF(OR(B107<>\"\",C107<>\"\",D107<>\"\",E107<>\"\",F107<>\"\",G107<>\"\"),XBRLMapTuple($J$9,$K$5,$K$6,\"BMA\",CONFIGURATION!$B$1,\"bscr\",\"\",CONFIGURATION!$B$12,$J$10,B107,$K$10,C107,$L$10,D107,$M$10,E107,$N$10,F107,$O$10,G107,\"\"),\"emptyTuple\")","v":"emptyTuple"}]
[98,null,null,null,null,null,null,null,null,{"$f":"IF(OR(B108<>\"\",C108<>\"\",D108<>\"\",E108<>\"\",F108<>\"\",G108<>\"\"),XBRLMapTuple($J$9,$K$5,$K$6,\"BMA\",CONFIGURATION!$B$1,\"bscr\",\"\",CONFIGURATION!$B$12,$J$10,B108,$K$10,C108,$L$10,D108,$M$10,E108,$N$10,F108,$O$10,G108,\"\"),\"emptyTuple\")","v":"emptyTuple"}]
[99,null,null,null,null,null,null,null,null,{"$f":"IF(OR(B109<>\"\",C109<>\"\",D109<>\"\",E109<>\"\",F109<>\"\",G109<>\"\"),XBRLMapTuple($J$9,$K$5,$K$6,\"BMA\",CONFIGURATION!$B$1,\"bscr\",\"\",CONFIGURATION!$B$12,$J$10,B109,$K$10,C109,$L$10,D109,$M$10,E109,$N$10,F109,$O$10,G109,\"\"),\"emptyTuple\")","v":"emptyTuple"}]
[100,null,null,null,null,null,null,null,null,{"$f":"IF(OR(B110<>\"\",C110<>\"\",D110<>\"\",E110<>\"\",F110<>\"\",G110<>\"\"),XBRLMapTuple($J$9,$K$5,$K$6,\"BMA\",CONFIGURATION!$B$1,\"bscr\",\"\",CONFIGURATION!$B$12,$J$10,B110,$K$10,C110,$L$10,D110,$M$10,E110,$N$10,F110,$O$10,G110,\"\"),\"emptyTuple\")","v":"emptyTuple"}]
[101,null,null,null,null,null,null,null,null,{"$f":"IF(OR(B111<>\"\",C111<>\"\",D111<>\"\",E111<>\"\",F111<>\"\",G111<>\"\"),XBRLMapTuple($J$9,$K$5,$K$6,\"BMA\",CONFIGURATION!$B$1,\"bscr\",\"\",CONFIGURATION!$B$12,$J$10,B111,$K$10,C111,$L$10,D111,$M$10,E111,$N$10,F111,$O$10,G111,\"\"),\"emptyTuple\")","v":"emptyTuple"}]
[102,null,null,null,null,null,null,null,null,{"$f":"IF(OR(B112<>\"\",C112<>\"\",D112<>\"\",E112<>\"\",F112<>\"\",G112<>\"\"),XBRLMapTuple($J$9,$K$5,$K$6,\"BMA\",CONFIGURATION!$B$1,\"bscr\",\"\",CONFIGURATION!$B$12,$J$10,B112,$K$10,C112,$L$10,D112,$M$10,E112,$N$10,F112,$O$10,G112,\"\"),\"emptyTuple\")","v":"emptyTuple"}]
[103,null,null,null,null,null,null,null,null,{"$f":"IF(OR(B113<>\"\",C113<>\"\",D113<>\"\",E113<>\"\",F113<>\"\",G113<>\"\"),XBRLMapTuple($J$9,$K$5,$K$6,\"BMA\",CONFIGURATION!$B$1,\"bscr\",\"\",CONFIGURATION!$B$12,$J$10,B113,$K$10,C113,$L$10,D113,$M$10,E113,$N$10,F113,$O$10,G113,\"\"),\"emptyTuple\")","v":"emptyTuple"}]
[104,null,null,null,null,null,null,null,null,{"$f":"IF(OR(B114<>\"\",C114<>\"\",D114<>\"\",E114<>\"\",F114<>\"\",G114<>\"\"),XBRLMapTuple($J$9,$K$5,$K$6,\"BMA\",CONFIGURATION!$B$1,\"bscr\",\"\",CONFIGURATION!$B$12,$J$10,B114,$K$10,C114,$L$10,D114,$M$10,E114,$N$10,F114,$O$10,G114,\"\"),\"emptyTuple\")","v":"emptyTuple"}]
[105,null,null,null,null,null,null,null,null,{"$f":"IF(OR(B115<>\"\",C115<>\"\",D115<>\"\",E115<>\"\",F115<>\"\",G115<>\"\"),XBRLMapTuple($J$9,$K$5,$K$6,\"BMA\",CONFIGURATION!$B$1,\"bscr\",\"\",CONFIGURATION!$B$12,$J$10,B115,$K$10,C115,$L$10,D115,$M$10,E115,$N$10,F115,$O$10,G115,\"\"),\"emptyTuple\")","v":"emptyTuple"}]
[106,null,null,null,null,null,null,null,null,{"$f":"IF(OR(B116<>\"\",C116<>\"\",D116<>\"\",E116<>\"\",F116<>\"\",G116<>\"\"),XBRLMapTuple($J$9,$K$5,$K$6,\"BMA\",CONFIGURATION!$B$1,\"bscr\",\"\",CONFIGURATION!$B$12,$J$10,B116,$K$10,C116,$L$10,D116,$M$10,E116,$N$10,F116,$O$10,G116,\"\"),\"emptyTuple\")","v":"emptyTuple"}]
[107,null,null,null,null,null,null,null,null,{"$f":"IF(OR(B117<>\"\",C117<>\"\",D117<>\"\",E117<>\"\",F117<>\"\",G117<>\"\"),XBRLMapTuple($J$9,$K$5,$K$6,\"BMA\",CONFIGURATION!$B$1,\"bscr\",\"\",CONFIGURATION!$B$12,$J$10,B117,$K$10,C117,$L$10,D117,$M$10,E117,$N$10,F117,$O$10,G117,\"\"),\"emptyTuple\")","v":"emptyTuple"}]
[108,null,null,null,null,null,null,null,null,{"$f":"IF(OR(B118<>\"\",C118<>\"\",D118<>\"\",E118<>\"\",F118<>\"\",G118<>\"\"),XBRLMapTuple($J$9,$K$5,$K$6,\"BMA\",CONFIGURATION!$B$1,\"bscr\",\"\",CONFIGURATION!$B$12,$J$10,B118,$K$10,C118,$L$10,D118,$M$10,E118,$N$10,F118,$O$10,G118,\"\"),\"emptyTuple\")","v":"emptyTuple"}]
[109,null,null,null,null,null,null,null,null,{"$f":"IF(OR(B119<>\"\",C119<>\"\",D119<>\"\",E119<>\"\",F119<>\"\",G119<>\"\"),XBRLMapTuple($J$9,$K$5,$K$6,\"BMA\",CONFIGURATION!$B$1,\"bscr\",\"\",CONFIGURATION!$B$12,$J$10,B119,$K$10,C119,$L$10,D119,$M$10,E119,$N$10,F119,$O$10,G119,\"\"),\"emptyTuple\")","v":"emptyTuple"}]
[110,null,null,null,null,null,null,null,null,{"$f":"IF(OR(B120<>\"\",C120<>\"\",D120<>\"\",E120<>\"\",F120<>\"\",G120<>\"\"),XBRLMapTuple($J$9,$K$5,$K$6,\"BMA\",CONFIGURATION!$B$1,\"bscr\",\"\",CONFIGURATION!$B$12,$J$10,B120,$K$10,C120,$L$10,D120,$M$10,E120,$N$10,F120,$O$10,G120,\"\"),\"emptyTuple\")","v":"emptyTuple"}]
[111,null,null,null,null,null,null,null,null,{"$f":"IF(OR(B121<>\"\",C121<>\"\",D121<>\"\",E121<>\"\",F121<>\"\",G121<>\"\"),XBRLMapTuple($J$9,$K$5,$K$6,\"BMA\",CONFIGURATION!$B$1,\"bscr\",\"\",CONFIGURATION!$B$12,$J$10,B121,$K$10,C121,$L$10,D121,$M$10,E121,$N$10,F121,$O$10,G121,\"\"),\"emptyTuple\")","v":"emptyTuple"}]
[112,null,null,null,null,null,null,null,null,{"$f":"IF(OR(B122<>\"\",C122<>\"\",D122<>\"\",E122<>\"\",F122<>\"\",G122<>\"\"),XBRLMapTuple($J$9,$K$5,$K$6,\"BMA\",CONFIGURATION!$B$1,\"bscr\",\"\",CONFIGURATION!$B$12,$J$10,B122,$K$10,C122,$L$10,D122,$M$10,E122,$N$10,F122,$O$10,G122,\"\"),\"emptyTuple\")","v":"emptyTuple"}]
[113,null,null,null,null,null,null,null,null,{"$f":"IF(OR(B123<>\"\",C123<>\"\",D123<>\"\",E123<>\"\",F123<>\"\",G123<>\"\"),XBRLMapTuple($J$9,$K$5,$K$6,\"BMA\",CONFIGURATION!$B$1,\"bscr\",\"\",CONFIGURATION!$B$12,$J$10,B123,$K$10,C123,$L$10,D123,$M$10,E123,$N$10,F123,$O$10,G123,\"\"),\"emptyTuple\")","v":"emptyTuple"}]
[114,null,null,null,null,null,null,null,null,{"$f":"IF(OR(B124<>\"\",C124<>\"\",D124<>\"\",E124<>\"\",F124<>\"\",G124<>\"\"),XBRLMapTuple($J$9,$K$5,$K$6,\"BMA\",CONFIGURATION!$B$1,\"bscr\",\"\",CONFIGURATION!$B$12,$J$10,B124,$K$10,C124,$L$10,D124,$M$10,E124,$N$10,F124,$O$10,G124,\"\"),\"emptyTuple\")","v":"emptyTuple"}]
[115,null,null,null,null,null,null,null,null,{"$f":"IF(OR(B125<>\"\",C125<>\"\",D125<>\"\",E125<>\"\",F125<>\"\",G125<>\"\"),XBRLMapTuple($J$9,$K$5,$K$6,\"BMA\",CONFIGURATION!$B$1,\"bscr\",\"\",CONFIGURATION!$B$12,$J$10,B125,$K$10,C125,$L$10,D125,$M$10,E125,$N$10,F125,$O$10,G125,\"\"),\"emptyTuple\")","v":"emptyTuple"}]
[116,null,null,null,null,null,null,null,null,{"$f":"IF(OR(B126<>\"\",C126<>\"\",D126<>\"\",E126<>\"\",F126<>\"\",G126<>\"\"),XBRLMapTuple($J$9,$K$5,$K$6,\"BMA\",CONFIGURATION!$B$1,\"bscr\",\"\",CONFIGURATION!$B$12,$J$10,B126,$K$10,C126,$L$10,D126,$M$10,E126,$N$10,F126,$O$10,G126,\"\"),\"emptyTuple\")","v":"emptyTuple"}]
[117,null,null,null,null,null,null,null,null,{"$f":"IF(OR(B127<>\"\",C127<>\"\",D127<>\"\",E127<>\"\",F127<>\"\",G127<>\"\"),XBRLMapTuple($J$9,$K$5,$K$6,\"BMA\",CONFIGURATION!$B$1,\"bscr\",\"\",CONFIGURATION!$B$12,$J$10,B127,$K$10,C127,$L$10,D127,$M$10,E127,$N$10,F127,$O$10,G127,\"\"),\"emptyTuple\")","v":"emptyTuple"}]
[118,null,null,null,null,null,null,null,null,{"$f":"IF(OR(B128<>\"\",C128<>\"\",D128<>\"\",E128<>\"\",F128<>\"\",G128<>\"\"),XBRLMapTuple($J$9,$K$5,$K$6,\"BMA\",CONFIGURATION!$B$1,\"bscr\",\"\",CONFIGURATION!$B$12,$J$10,B128,$K$10,C128,$L$10,D128,$M$10,E128,$N$10,F128,$O$10,G128,\"\"),\"emptyTuple\")","v":"emptyTuple"}]
[119,null,null,null,null,null,null,null,null,{"$f":"IF(OR(B129<>\"\",C129<>\"\",D129<>\"\",E129<>\"\",F129<>\"\",G129<>\"\"),XBRLMapTuple($J$9,$K$5,$K$6,\"BMA\",CONFIGURATION!$B$1,\"bscr\",\"\",CONFIGURATION!$B$12,$J$10,B129,$K$10,C129,$L$10,D129,$M$10,E129,$N$10,F129,$O$10,G129,\"\"),\"emptyTuple\")","v":"emptyTuple"}]
[120,null,null,null,null,null,null,null,null,{"$f":"IF(OR(B130<>\"\",C130<>\"\",D130<>\"\",E130<>\"\",F130<>\"\",G130<>\"\"),XBRLMapTuple($J$9,$K$5,$K$6,\"BMA\",CONFIGURATION!$B$1,\"bscr\",\"\",CONFIGURATION!$B$12,$J$10,B130,$K$10,C130,$L$10,D130,$M$10,E130,$N$10,F130,$O$10,G130,\"\"),\"emptyTuple\")","v":"emptyTuple"}]
[121,null,null,null,null,null,null,null,null,{"$f":"IF(OR(B131<>\"\",C131<>\"\",D131<>\"\",E131<>\"\",F131<>\"\",G131<>\"\"),XBRLMapTuple($J$9,$K$5,$K$6,\"BMA\",CONFIGURATION!$B$1,\"bscr\",\"\",CONFIGURATION!$B$12,$J$10,B131,$K$10,C131,$L$10,D131,$M$10,E131,$N$10,F131,$O$10,G131,\"\"),\"emptyTuple\")","v":"emptyTuple"}]
[122,null,null,null,null,null,null,null,null,{"$f":"IF(OR(B132<>\"\",C132<>\"\",D132<>\"\",E132<>\"\",F132<>\"\",G132<>\"\"),XBRLMapTuple($J$9,$K$5,$K$6,\"BMA\",CONFIGURATION!$B$1,\"bscr\",\"\",CONFIGURATION!$B$12,$J$10,B132,$K$10,C132,$L$10,D132,$M$10,E132,$N$10,F132,$O$10,G132,\"\"),\"emptyTuple\")","v":"emptyTuple"}]
[123,null,null,null,null,null,null,null,null,{"$f":"IF(OR(B133<>\"\",C133<>\"\",D133<>\"\",E133<>\"\",F133<>\"\",G133<>\"\"),XBRLMapTuple($J$9,$K$5,$K$6,\"BMA\",CONFIGURATION!$B$1,\"bscr\",\"\",CONFIGURATION!$B$12,$J$10,B133,$K$10,C133,$L$10,D133,$M$10,E133,$N$10,F133,$O$10,G133,\"\"),\"emptyTuple\")","v":"emptyTuple"}]
[124,null,null,null,null,null,null,null,null,{"$f":"IF(OR(B134<>\"\",C134<>\"\",D134<>\"\",E134<>\"\",F134<>\"\",G134<>\"\"),XBRLMapTuple($J$9,$K$5,$K$6,\"BMA\",CONFIGURATION!$B$1,\"bscr\",\"\",CONFIGURATION!$B$12,$J$10,B134,$K$10,C134,$L$10,D134,$M$10,E134,$N$10,F134,$O$10,G134,\"\"),\"emptyTuple\")","v":"emptyTuple"}]
[125,null,null,null,null,null,null,null,null,{"$f":"IF(OR(B135<>\"\",C135<>\"\",D135<>\"\",E135<>\"\",F135<>\"\",G135<>\"\"),XBRLMapTuple($J$9,$K$5,$K$6,\"BMA\",CONFIGURATION!$B$1,\"bscr\",\"\",CONFIGURATION!$B$12,$J$10,B135,$K$10,C135,$L$10,D135,$M$10,E135,$N$10,F135,$O$10,G135,\"\"),\"emptyTuple\")","v":"emptyTuple"}]
[126,null,null,null,null,null,null,null,null,{"$f":"IF(OR(B136<>\"\",C136<>\"\",D136<>\"\",E136<>\"\",F136<>\"\",G136<>\"\"),XBRLMapTuple($J$9,$K$5,$K$6,\"BMA\",CONFIGURATION!$B$1,\"bscr\",\"\",CONFIGURATION!$B$12,$J$10,B136,$K$10,C136,$L$10,D136,$M$10,E136,$N$10,F136,$O$10,G136,\"\"),\"emptyTuple\")","v":"emptyTuple"}]
[127,null,null,null,null,null,null,null,null,{"$f":"IF(OR(B137<>\"\",C137<>\"\",D137<>\"\",E137<>\"\",F137<>\"\",G137<>\"\"),XBRLMapTuple($J$9,$K$5,$K$6,\"BMA\",CONFIGURATION!$B$1,\"bscr\",\"\",CONFIGURATION!$B$12,$J$10,B137,$K$10,C137,$L$10,D137,$M$10,E137,$N$10,F137,$O$10,G137,\"\"),\"emptyTuple\")","v":"emptyTuple"}]
[128,null,null,null,null,null,null,null,null,{"$f":"IF(OR(B138<>\"\",C138<>\"\",D138<>\"\",E138<>\"\",F138<>\"\",G138<>\"\"),XBRLMapTuple($J$9,$K$5,$K$6,\"BMA\",CONFIGURATION!$B$1,\"bscr\",\"\",CONFIGURATION!$B$12,$J$10,B138,$K$10,C138,$L$10,D138,$M$10,E138,$N$10,F138,$O$10,G138,\"\"),\"emptyTuple\")","v":"emptyTuple"}]
[129,null,null,null,null,null,null,null,null,{"$f":"IF(OR(B139<>\"\",C139<>\"\",D139<>\"\",E139<>\"\",F139<>\"\",G139<>\"\"),XBRLMapTuple($J$9,$K$5,$K$6,\"BMA\",CONFIGURATION!$B$1,\"bscr\",\"\",CONFIGURATION!$B$12,$J$10,B139,$K$10,C139,$L$10,D139,$M$10,E139,$N$10,F139,$O$10,G139,\"\"),\"emptyTuple\")","v":"emptyTuple"}]
[130,null,null,null,null,null,null,null,null,{"$f":"IF(OR(B140<>\"\",C140<>\"\",D140<>\"\",E140<>\"\",F140<>\"\",G140<>\"\"),XBRLMapTuple($J$9,$K$5,$K$6,\"BMA\",CONFIGURATION!$B$1,\"bscr\",\"\",CONFIGURATION!$B$12,$J$10,B140,$K$10,C140,$L$10,D140,$M$10,E140,$N$10,F140,$O$10,G140,\"\"),\"emptyTuple\")","v":"emptyTuple"}]
[131,null,null,null,null,null,null,null,null,{"$f":"IF(OR(B141<>\"\",C141<>\"\",D141<>\"\",E141<>\"\",F141<>\"\",G141<>\"\"),XBRLMapTuple($J$9,$K$5,$K$6,\"BMA\",CONFIGURATION!$B$1,\"bscr\",\"\",CONFIGURATION!$B$12,$J$10,B141,$K$10,C141,$L$10,D141,$M$10,E141,$N$10,F141,$O$10,G141,\"\"),\"emptyTuple\")","v":"emptyTuple"}]
[132,null,null,null,null,null,null,null,null,{"$f":"IF(OR(B142<>\"\",C142<>\"\",D142<>\"\",E142<>\"\",F142<>\"\",G142<>\"\"),XBRLMapTuple($J$9,$K$5,$K$6,\"BMA\",CONFIGURATION!$B$1,\"bscr\",\"\",CONFIGURATION!$B$12,$J$10,B142,$K$10,C142,$L$10,D142,$M$10,E142,$N$10,F142,$O$10,G142,\"\"),\"emptyTuple\")","v":"emptyTuple"}]
[133,null,null,null,null,null,null,null,null,{"$f":"IF(OR(B143<>\"\",C143<>\"\",D143<>\"\",E143<>\"\",F143<>\"\",G143<>\"\"),XBRLMapTuple($J$9,$K$5,$K$6,\"BMA\",CONFIGURATION!$B$1,\"bscr\",\"\",CONFIGURATION!$B$12,$J$10,B143,$K$10,C143,$L$10,D143,$M$10,E143,$N$10,F143,$O$10,G143,\"\"),\"emptyTuple\")","v":"emptyTuple"}]
[134,null,null,null,null,null,null,null,null,{"$f":"IF(OR(B144<>\"\",C144<>\"\",D144<>\"\",E144<>\"\",F144<>\"\",G144<>\"\"),XBRLMapTuple($J$9,$K$5,$K$6,\"BMA\",CONFIGURATION!$B$1,\"bscr\",\"\",CONFIGURATION!$B$12,$J$10,B144,$K$10,C144,$L$10,D144,$M$10,E144,$N$10,F144,$O$10,G144,\"\"),\"emptyTuple\")","v":"emptyTuple"}]
[135,null,null,null,null,null,null,null,null,{"$f":"IF(OR(B145<>\"\",C145<>\"\",D145<>\"\",E145<>\"\",F145<>\"\",G145<>\"\"),XBRLMapTuple($J$9,$K$5,$K$6,\"BMA\",CONFIGURATION!$B$1,\"bscr\",\"\",CONFIGURATION!$B$12,$J$10,B145,$K$10,C145,$L$10,D145,$M$10,E145,$N$10,F145,$O$10,G145,\"\"),\"emptyTuple\")","v":"emptyTuple"}]
[136,null,null,null,null,null,null,null,null,{"$f":"IF(OR(B146<>\"\",C146<>\"\",D146<>\"\",E146<>\"\",F146<>\"\",G146<>\"\"),XBRLMapTuple($J$9,$K$5,$K$6,\"BMA\",CONFIGURATION!$B$1,\"bscr\",\"\",CONFIGURATION!$B$12,$J$10,B146,$K$10,C146,$L$10,D146,$M$10,E146,$N$10,F146,$O$10,G146,\"\"),\"emptyTuple\")","v":"emptyTuple"}]
[137,null,null,null,null,null,null,null,null,{"$f":"IF(OR(B147<>\"\",C147<>\"\",D147<>\"\",E147<>\"\",F147<>\"\",G147<>\"\"),XBRLMapTuple($J$9,$K$5,$K$6,\"BMA\",CONFIGURATION!$B$1,\"bscr\",\"\",CONFIGURATION!$B$12,$J$10,B147,$K$10,C147,$L$10,D147,$M$10,E147,$N$10,F147,$O$10,G147,\"\"),\"emptyTuple\")","v":"emptyTuple"}]
[138,null,null,null,null,null,null,null,null,{"$f":"IF(OR(B148<>\"\",C148<>\"\",D148<>\"\",E148<>\"\",F148<>\"\",G148<>\"\"),XBRLMapTuple($J$9,$K$5,$K$6,\"BMA\",CONFIGURATION!$B$1,\"bscr\",\"\",CONFIGURATION!$B$12,$J$10,B148,$K$10,C148,$L$10,D148,$M$10,E148,$N$10,F148,$O$10,G148,\"\"),\"emptyTuple\")","v":"emptyTuple"}]
[139,null,null,null,null,null,null,null,null,{"$f":"IF(OR(B149<>\"\",C149<>\"\",D149<>\"\",E149<>\"\",F149<>\"\",G149<>\"\"),XBRLMapTuple($J$9,$K$5,$K$6,\"BMA\",CONFIGURATION!$B$1,\"bscr\",\"\",CONFIGURATION!$B$12,$J$10,B149,$K$10,C149,$L$10,D149,$M$10,E149,$N$10,F149,$O$10,G149,\"\"),\"emptyTuple\")","v":"emptyTuple"}]
[140,null,null,null,null,null,null,null,null,{"$f":"IF(OR(B150<>\"\",C150<>\"\",D150<>\"\",E150<>\"\",F150<>\"\",G150<>\"\"),XBRLMapTuple($J$9,$K$5,$K$6,\"BMA\",CONFIGURATION!$B$1,\"bscr\",\"\",CONFIGURATION!$B$12,$J$10,B150,$K$10,C150,$L$10,D150,$M$10,E150,$N$10,F150,$O$10,G150,\"\"),\"emptyTuple\")","v":"emptyTuple"}]
[141,null,null,null,null,null,null,null,null,{"$f":"IF(OR(B151<>\"\",C151<>\"\",D151<>\"\",E151<>\"\",F151<>\"\",G151<>\"\"),XBRLMapTuple($J$9,$K$5,$K$6,\"BMA\",CONFIGURATION!$B$1,\"bscr\",\"\",CONFIGURATION!$B$12,$J$10,B151,$K$10,C151,$L$10,D151,$M$10,E151,$N$10,F151,$O$10,G151,\"\"),\"emptyTuple\")","v":"emptyTuple"}]
[142,null,null,null,null,null,null,null,null,{"$f":"IF(OR(B152<>\"\",C152<>\"\",D152<>\"\",E152<>\"\",F152<>\"\",G152<>\"\"),XBRLMapTuple($J$9,$K$5,$K$6,\"BMA\",CONFIGURATION!$B$1,\"bscr\",\"\",CONFIGURATION!$B$12,$J$10,B152,$K$10,C152,$L$10,D152,$M$10,E152,$N$10,F152,$O$10,G152,\"\"),\"emptyTuple\")","v":"emptyTuple"}]
[143,null,null,null,null,null,null,null,null,{"$f":"IF(OR(B153<>\"\",C153<>\"\",D153<>\"\",E153<>\"\",F153<>\"\",G153<>\"\"),XBRLMapTuple($J$9,$K$5,$K$6,\"BMA\",CONFIGURATION!$B$1,\"bscr\",\"\",CONFIGURATION!$B$12,$J$10,B153,$K$10,C153,$L$10,D153,$M$10,E153,$N$10,F153,$O$10,G153,\"\"),\"emptyTuple\")","v":"emptyTuple"}]
[144,null,null,null,null,null,null,null,null,{"$f":"IF(OR(B154<>\"\",C154<>\"\",D154<>\"\",E154<>\"\",F154<>\"\",G154<>\"\"),XBRLMapTuple($J$9,$K$5,$K$6,\"BMA\",CONFIGURATION!$B$1,\"bscr\",\"\",CONFIGURATION!$B$12,$J$10,B154,$K$10,C154,$L$10,D154,$M$10,E154,$N$10,F154,$O$10,G154,\"\"),\"emptyTuple\")","v":"emptyTuple"}]
[145,null,null,null,null,null,null,null,null,{"$f":"IF(OR(B155<>\"\",C155<>\"\",D155<>\"\",E155<>\"\",F155<>\"\",G155<>\"\"),XBRLMapTuple($J$9,$K$5,$K$6,\"BMA\",CONFIGURATION!$B$1,\"bscr\",\"\",CONFIGURATION!$B$12,$J$10,B155,$K$10,C155,$L$10,D155,$M$10,E155,$N$10,F155,$O$10,G155,\"\"),\"emptyTuple\")","v":"emptyTuple"}]
[146,null,null,null,null,null,null,null,null,{"$f":"IF(OR(B156<>\"\",C156<>\"\",D156<>\"\",E156<>\"\",F156<>\"\",G156<>\"\"),XBRLMapTuple($J$9,$K$5,$K$6,\"BMA\",CONFIGURATION!$B$1,\"bscr\",\"\",CONFIGURATION!$B$12,$J$10,B156,$K$10,C156,$L$10,D156,$M$10,E156,$N$10,F156,$O$10,G156,\"\"),\"emptyTuple\")","v":"emptyTuple"}]
[147,null,null,null,null,null,null,null,null,{"$f":"IF(OR(B157<>\"\",C157<>\"\",D157<>\"\",E157<>\"\",F157<>\"\",G157<>\"\"),XBRLMapTuple($J$9,$K$5,$K$6,\"BMA\",CONFIGURATION!$B$1,\"bscr\",\"\",CONFIGURATION!$B$12,$J$10,B157,$K$10,C157,$L$10,D157,$M$10,E157,$N$10,F157,$O$10,G157,\"\"),\"emptyTuple\")","v":"emptyTuple"}]
[148,null,null,null,null,null,null,null,null,{"$f":"IF(OR(B158<>\"\",C158<>\"\",D158<>\"\",E158<>\"\",F158<>\"\",G158<>\"\"),XBRLMapTuple($J$9,$K$5,$K$6,\"BMA\",CONFIGURATION!$B$1,\"bscr\",\"\",CONFIGURATION!$B$12,$J$10,B158,$K$10,C158,$L$10,D158,$M$10,E158,$N$10,F158,$O$10,G158,\"\"),\"emptyTuple\")","v":"emptyTuple"}]
[149,null,null,null,null,null,null,null,null,{"$f":"IF(OR(B159<>\"\",C159<>\"\",D159<>\"\",E159<>\"\",F159<>\"\",G159<>\"\"),XBRLMapTuple($J$9,$K$5,$K$6,\"BMA\",CONFIGURATION!$B$1,\"bscr\",\"\",CONFIGURATION!$B$12,$J$10,B159,$K$10,C159,$L$10,D159,$M$10,E159,$N$10,F159,$O$10,G159,\"\"),\"emptyTuple\")","v":"emptyTuple"}]
[150,null,null,null,null,null,null,null,null,{"$f":"IF(OR(B160<>\"\",C160<>\"\",D160<>\"\",E160<>\"\",F160<>\"\",G160<>\"\"),XBRLMapTuple($J$9,$K$5,$K$6,\"BMA\",CONFIGURATION!$B$1,\"bscr\",\"\",CONFIGURATION!$B$12,$J$10,B160,$K$10,C160,$L$10,D160,$M$10,E160,$N$10,F160,$O$10,G160,\"\"),\"emptyTuple\")","v":"emptyTuple"}]
[151,null,null,null,null,null,null,null,null,{"$f":"IF(OR(B161<>\"\",C161<>\"\",D161<>\"\",E161<>\"\",F161<>\"\",G161<>\"\"),XBRLMapTuple($J$9,$K$5,$K$6,\"BMA\",CONFIGURATION!$B$1,\"bscr\",\"\",CONFIGURATION!$B$12,$J$10,B161,$K$10,C161,$L$10,D161,$M$10,E161,$N$10,F161,$O$10,G161,\"\"),\"emptyTuple\")","v":"emptyTuple"}]
[152,null,null,null,null,null,null,null,null,{"$f":"IF(OR(B162<>\"\",C162<>\"\",D162<>\"\",E162<>\"\",F162<>\"\",G162<>\"\"),XBRLMapTuple($J$9,$K$5,$K$6,\"BMA\",CONFIGURATION!$B$1,\"bscr\",\"\",CONFIGURATION!$B$12,$J$10,B162,$K$10,C162,$L$10,D162,$M$10,E162,$N$10,F162,$O$10,G162,\"\"),\"emptyTuple\")","v":"emptyTuple"}]
[153,null,null,null,null,null,null,null,null,{"$f":"IF(OR(B163<>\"\",C163<>\"\",D163<>\"\",E163<>\"\",F163<>\"\",G163<>\"\"),XBRLMapTuple($J$9,$K$5,$K$6,\"BMA\",CONFIGURATION!$B$1,\"bscr\",\"\",CONFIGURATION!$B$12,$J$10,B163,$K$10,C163,$L$10,D163,$M$10,E163,$N$10,F163,$O$10,G163,\"\"),\"emptyTuple\")","v":"emptyTuple"}]
[154,null,null,null,null,null,null,null,null,{"$f":"IF(OR(B164<>\"\",C164<>\"\",D164<>\"\",E164<>\"\",F164<>\"\",G164<>\"\"),XBRLMapTuple($J$9,$K$5,$K$6,\"BMA\",CONFIGURATION!$B$1,\"bscr\",\"\",CONFIGURATION!$B$12,$J$10,B164,$K$10,C164,$L$10,D164,$M$10,E164,$N$10,F164,$O$10,G164,\"\"),\"emptyTuple\")","v":"emptyTuple"}]
[155,null,null,null,null,null,null,null,null,{"$f":"IF(OR(B165<>\"\",C165<>\"\",D165<>\"\",E165<>\"\",F165<>\"\",G165<>\"\"),XBRLMapTuple($J$9,$K$5,$K$6,\"BMA\",CONFIGURATION!$B$1,\"bscr\",\"\",CONFIGURATION!$B$12,$J$10,B165,$K$10,C165,$L$10,D165,$M$10,E165,$N$10,F165,$O$10,G165,\"\"),\"emptyTuple\")","v":"emptyTuple"}]
[156,null,null,null,null,null,null,null,null,{"$f":"IF(OR(B166<>\"\",C166<>\"\",D166<>\"\",E166<>\"\",F166<>\"\",G166<>\"\"),XBRLMapTuple($J$9,$K$5,$K$6,\"BMA\",CONFIGURATION!$B$1,\"bscr\",\"\",CONFIGURATION!$B$12,$J$10,B166,$K$10,C166,$L$10,D166,$M$10,E166,$N$10,F166,$O$10,G166,\"\"),\"emptyTuple\")","v":"emptyTuple"}]
[157,null,null,null,null,null,null,null,null,{"$f":"IF(OR(B167<>\"\",C167<>\"\",D167<>\"\",E167<>\"\",F167<>\"\",G167<>\"\"),XBRLMapTuple($J$9,$K$5,$K$6,\"BMA\",CONFIGURATION!$B$1,\"bscr\",\"\",CONFIGURATION!$B$12,$J$10,B167,$K$10,C167,$L$10,D167,$M$10,E167,$N$10,F167,$O$10,G167,\"\"),\"emptyTuple\")","v":"emptyTuple"}]
[158,null,null,null,null,null,null,null,null,{"$f":"IF(OR(B168<>\"\",C168<>\"\",D168<>\"\",E168<>\"\",F168<>\"\",G168<>\"\"),XBRLMapTuple($J$9,$K$5,$K$6,\"BMA\",CONFIGURATION!$B$1,\"bscr\",\"\",CONFIGURATION!$B$12,$J$10,B168,$K$10,C168,$L$10,D168,$M$10,E168,$N$10,F168,$O$10,G168,\"\"),\"emptyTuple\")","v":"emptyTuple"}]
[159,null,null,null,null,null,null,null,null,{"$f":"IF(OR(B169<>\"\",C169<>\"\",D169<>\"\",E169<>\"\",F169<>\"\",G169<>\"\"),XBRLMapTuple($J$9,$K$5,$K$6,\"BMA\",CONFIGURATION!$B$1,\"bscr\",\"\",CONFIGURATION!$B$12,$J$10,B169,$K$10,C169,$L$10,D169,$M$10,E169,$N$10,F169,$O$10,G169,\"\"),\"emptyTuple\")","v":"emptyTuple"}]
[160,null,null,null,null,null,null,null,null,{"$f":"IF(OR(B170<>\"\",C170<>\"\",D170<>\"\",E170<>\"\",F170<>\"\",G170<>\"\"),XBRLMapTuple($J$9,$K$5,$K$6,\"BMA\",CONFIGURATION!$B$1,\"bscr\",\"\",CONFIGURATION!$B$12,$J$10,B170,$K$10,C170,$L$10,D170,$M$10,E170,$N$10,F170,$O$10,G170,\"\"),\"emptyTuple\")","v":"emptyTuple"}]
[161,null,null,null,null,null,null,null,null,{"$f":"IF(OR(B171<>\"\",C171<>\"\",D171<>\"\",E171<>\"\",F171<>\"\",G171<>\"\"),XBRLMapTuple($J$9,$K$5,$K$6,\"BMA\",CONFIGURATION!$B$1,\"bscr\",\"\",CONFIGURATION!$B$12,$J$10,B171,$K$10,C171,$L$10,D171,$M$10,E171,$N$10,F171,$O$10,G171,\"\"),\"emptyTuple\")","v":"emptyTuple"}]
[162,null,null,null,null,null,null,null,null,{"$f":"IF(OR(B172<>\"\",C172<>\"\",D172<>\"\",E172<>\"\",F172<>\"\",G172<>\"\"),XBRLMapTuple($J$9,$K$5,$K$6,\"BMA\",CONFIGURATION!$B$1,\"bscr\",\"\",CONFIGURATION!$B$12,$J$10,B172,$K$10,C172,$L$10,D172,$M$10,E172,$N$10,F172,$O$10,G172,\"\"),\"emptyTuple\")","v":"emptyTuple"}]
[163,null,null,null,null,null,null,null,null,{"$f":"IF(OR(B173<>\"\",C173<>\"\",D173<>\"\",E173<>\"\",F173<>\"\",G173<>\"\"),XBRLMapTuple($J$9,$K$5,$K$6,\"BMA\",CONFIGURATION!$B$1,\"bscr\",\"\",CONFIGURATION!$B$12,$J$10,B173,$K$10,C173,$L$10,D173,$M$10,E173,$N$10,F173,$O$10,G173,\"\"),\"emptyTuple\")","v":"emptyTuple"}]
[164,null,null,null,null,null,null,null,null,{"$f":"IF(OR(B174<>\"\",C174<>\"\",D174<>\"\",E174<>\"\",F174<>\"\",G174<>\"\"),XBRLMapTuple($J$9,$K$5,$K$6,\"BMA\",CONFIGURATION!$B$1,\"bscr\",\"\",CONFIGURATION!$B$12,$J$10,B174,$K$10,C174,$L$10,D174,$M$10,E174,$N$10,F174,$O$10,G174,\"\"),\"emptyTuple\")","v":"emptyTuple"}]
[165,null,null,null,null,null,null,null,null,{"$f":"IF(OR(B175<>\"\",C175<>\"\",D175<>\"\",E175<>\"\",F175<>\"\",G175<>\"\"),XBRLMapTuple($J$9,$K$5,$K$6,\"BMA\",CONFIGURATION!$B$1,\"bscr\",\"\",CONFIGURATION!$B$12,$J$10,B175,$K$10,C175,$L$10,D175,$M$10,E175,$N$10,F175,$O$10,G175,\"\"),\"emptyTuple\")","v":"emptyTuple"}]
[166,null,null,null,null,null,null,null,null,{"$f":"IF(OR(B176<>\"\",C176<>\"\",D176<>\"\",E176<>\"\",F176<>\"\",G176<>\"\"),XBRLMapTuple($J$9,$K$5,$K$6,\"BMA\",CONFIGURATION!$B$1,\"bscr\",\"\",CONFIGURATION!$B$12,$J$10,B176,$K$10,C176,$L$10,D176,$M$10,E176,$N$10,F176,$O$10,G176,\"\"),\"emptyTuple\")","v":"emptyTuple"}]
[167,null,null,null,null,null,null,null,null,{"$f":"IF(OR(B177<>\"\",C177<>\"\",D177<>\"\",E177<>\"\",F177<>\"\",G177<>\"\"),XBRLMapTuple($J$9,$K$5,$K$6,\"BMA\",CONFIGURATION!$B$1,\"bscr\",\"\",CONFIGURATION!$B$12,$J$10,B177,$K$10,C177,$L$10,D177,$M$10,E177,$N$10,F177,$O$10,G177,\"\"),\"emptyTuple\")","v":"emptyTuple"}]
[168,null,null,null,null,null,null,null,null,{"$f":"IF(OR(B178<>\"\",C178<>\"\",D178<>\"\",E178<>\"\",F178<>\"\",G178<>\"\"),XBRLMapTuple($J$9,$K$5,$K$6,\"BMA\",CONFIGURATION!$B$1,\"bscr\",\"\",CONFIGURATION!$B$12,$J$10,B178,$K$10,C178,$L$10,D178,$M$10,E178,$N$10,F178,$O$10,G178,\"\"),\"emptyTuple\")","v":"emptyTuple"}]
[169,null,null,null,null,null,null,null,null,{"$f":"IF(OR(B179<>\"\",C179<>\"\",D179<>\"\",E179<>\"\",F179<>\"\",G179<>\"\"),XBRLMapTuple($J$9,$K$5,$K$6,\"BMA\",CONFIGURATION!$B$1,\"bscr\",\"\",CONFIGURATION!$B$12,$J$10,B179,$K$10,C179,$L$10,D179,$M$10,E179,$N$10,F179,$O$10,G179,\"\"),\"emptyTuple\")","v":"emptyTuple"}]
[170,null,null,null,null,null,null,null,null,{"$f":"IF(OR(B180<>\"\",C180<>\"\",D180<>\"\",E180<>\"\",F180<>\"\",G180<>\"\"),XBRLMapTuple($J$9,$K$5,$K$6,\"BMA\",CONFIGURATION!$B$1,\"bscr\",\"\",CONFIGURATION!$B$12,$J$10,B180,$K$10,C180,$L$10,D180,$M$10,E180,$N$10,F180,$O$10,G180,\"\"),\"emptyTuple\")","v":"emptyTuple"}]
[171,null,null,null,null,null,null,null,null,{"$f":"IF(OR(B181<>\"\",C181<>\"\",D181<>\"\",E181<>\"\",F181<>\"\",G181<>\"\"),XBRLMapTuple($J$9,$K$5,$K$6,\"BMA\",CONFIGURATION!$B$1,\"bscr\",\"\",CONFIGURATION!$B$12,$J$10,B181,$K$10,C181,$L$10,D181,$M$10,E181,$N$10,F181,$O$10,G181,\"\"),\"emptyTuple\")","v":"emptyTuple"}]
[172,null,null,null,null,null,null,null,null,{"$f":"IF(OR(B182<>\"\",C182<>\"\",D182<>\"\",E182<>\"\",F182<>\"\",G182<>\"\"),XBRLMapTuple($J$9,$K$5,$K$6,\"BMA\",CONFIGURATION!$B$1,\"bscr\",\"\",CONFIGURATION!$B$12,$J$10,B182,$K$10,C182,$L$10,D182,$M$10,E182,$N$10,F182,$O$10,G182,\"\"),\"emptyTuple\")","v":"emptyTuple"}]
[173,null,null,null,null,null,null,null,null,{"$f":"IF(OR(B183<>\"\",C183<>\"\",D183<>\"\",E183<>\"\",F183<>\"\",G183<>\"\"),XBRLMapTuple($J$9,$K$5,$K$6,\"BMA\",CONFIGURATION!$B$1,\"bscr\",\"\",CONFIGURATION!$B$12,$J$10,B183,$K$10,C183,$L$10,D183,$M$10,E183,$N$10,F183,$O$10,G183,\"\"),\"emptyTuple\")","v":"emptyTuple"}]
[174,null,null,null,null,null,null,null,null,{"$f":"IF(OR(B184<>\"\",C184<>\"\",D184<>\"\",E184<>\"\",F184<>\"\",G184<>\"\"),XBRLMapTuple($J$9,$K$5,$K$6,\"BMA\",CONFIGURATION!$B$1,\"bscr\",\"\",CONFIGURATION!$B$12,$J$10,B184,$K$10,C184,$L$10,D184,$M$10,E184,$N$10,F184,$O$10,G184,\"\"),\"emptyTuple\")","v":"emptyTuple"}]
[175,null,null,null,null,null,null,null,null,{"$f":"IF(OR(B185<>\"\",C185<>\"\",D185<>\"\",E185<>\"\",F185<>\"\",G185<>\"\"),XBRLMapTuple($J$9,$K$5,$K$6,\"BMA\",CONFIGURATION!$B$1,\"bscr\",\"\",CONFIGURATION!$B$12,$J$10,B185,$K$10,C185,$L$10,D185,$M$10,E185,$N$10,F185,$O$10,G185,\"\"),\"emptyTuple\")","v":"emptyTuple"}]
[176,null,null,null,null,null,null,null,null,{"$f":"IF(OR(B186<>\"\",C186<>\"\",D186<>\"\",E186<>\"\",F186<>\"\",G186<>\"\"),XBRLMapTuple($J$9,$K$5,$K$6,\"BMA\",CONFIGURATION!$B$1,\"bscr\",\"\",CONFIGURATION!$B$12,$J$10,B186,$K$10,C186,$L$10,D186,$M$10,E186,$N$10,F186,$O$10,G186,\"\"),\"emptyTuple\")","v":"emptyTuple"}]
[177,null,null,null,null,null,null,null,null,{"$f":"IF(OR(B187<>\"\",C187<>\"\",D187<>\"\",E187<>\"\",F187<>\"\",G187<>\"\"),XBRLMapTuple($J$9,$K$5,$K$6,\"BMA\",CONFIGURATION!$B$1,\"bscr\",\"\",CONFIGURATION!$B$12,$J$10,B187,$K$10,C187,$L$10,D187,$M$10,E187,$N$10,F187,$O$10,G187,\"\"),\"emptyTuple\")","v":"emptyTuple"}]
[178,null,null,null,null,null,null,null,null,{"$f":"IF(OR(B188<>\"\",C188<>\"\",D188<>\"\",E188<>\"\",F188<>\"\",G188<>\"\"),XBRLMapTuple($J$9,$K$5,$K$6,\"BMA\",CONFIGURATION!$B$1,\"bscr\",\"\",CONFIGURATION!$B$12,$J$10,B188,$K$10,C188,$L$10,D188,$M$10,E188,$N$10,F188,$O$10,G188,\"\"),\"emptyTuple\")","v":"emptyTuple"}]
[179,null,null,null,null,null,null,null,null,{"$f":"IF(OR(B189<>\"\",C189<>\"\",D189<>\"\",E189<>\"\",F189<>\"\",G189<>\"\"),XBRLMapTuple($J$9,$K$5,$K$6,\"BMA\",CONFIGURATION!$B$1,\"bscr\",\"\",CONFIGURATION!$B$12,$J$10,B189,$K$10,C189,$L$10,D189,$M$10,E189,$N$10,F189,$O$10,G189,\"\"),\"emptyTuple\")","v":"emptyTuple"}]
[180,null,null,null,null,null,null,null,null,{"$f":"IF(OR(B190<>\"\",C190<>\"\",D190<>\"\",E190<>\"\",F190<>\"\",G190<>\"\"),XBRLMapTuple($J$9,$K$5,$K$6,\"BMA\",CONFIGURATION!$B$1,\"bscr\",\"\",CONFIGURATION!$B$12,$J$10,B190,$K$10,C190,$L$10,D190,$M$10,E190,$N$10,F190,$O$10,G190,\"\"),\"emptyTuple\")","v":"emptyTuple"}]
[181,null,null,null,null,null,null,null,null,{"$f":"IF(OR(B191<>\"\",C191<>\"\",D191<>\"\",E191<>\"\",F191<>\"\",G191<>\"\"),XBRLMapTuple($J$9,$K$5,$K$6,\"BMA\",CONFIGURATION!$B$1,\"bscr\",\"\",CONFIGURATION!$B$12,$J$10,B191,$K$10,C191,$L$10,D191,$M$10,E191,$N$10,F191,$O$10,G191,\"\"),\"emptyTuple\")","v":"emptyTuple"}]
[182,null,null,null,null,null,null,null,null,{"$f":"IF(OR(B192<>\"\",C192<>\"\",D192<>\"\",E192<>\"\",F192<>\"\",G192<>\"\"),XBRLMapTuple($J$9,$K$5,$K$6,\"BMA\",CONFIGURATION!$B$1,\"bscr\",\"\",CONFIGURATION!$B$12,$J$10,B192,$K$10,C192,$L$10,D192,$M$10,E192,$N$10,F192,$O$10,G192,\"\"),\"emptyTuple\")","v":"emptyTuple"}]
[183,null,null,null,null,null,null,null,null,{"$f":"IF(OR(B193<>\"\",C193<>\"\",D193<>\"\",E193<>\"\",F193<>\"\",G193<>\"\"),XBRLMapTuple($J$9,$K$5,$K$6,\"BMA\",CONFIGURATION!$B$1,\"bscr\",\"\",CONFIGURATION!$B$12,$J$10,B193,$K$10,C193,$L$10,D193,$M$10,E193,$N$10,F193,$O$10,G193,\"\"),\"emptyTuple\")","v":"emptyTuple"}]
[184,null,null,null,null,null,null,null,null,{"$f":"IF(OR(B194<>\"\",C194<>\"\",D194<>\"\",E194<>\"\",F194<>\"\",G194<>\"\"),XBRLMapTuple($J$9,$K$5,$K$6,\"BMA\",CONFIGURATION!$B$1,\"bscr\",\"\",CONFIGURATION!$B$12,$J$10,B194,$K$10,C194,$L$10,D194,$M$10,E194,$N$10,F194,$O$10,G194,\"\"),\"emptyTuple\")","v":"emptyTuple"}]
[185,null,null,null,null,null,null,null,null,{"$f":"IF(OR(B195<>\"\",C195<>\"\",D195<>\"\",E195<>\"\",F195<>\"\",G195<>\"\"),XBRLMapTuple($J$9,$K$5,$K$6,\"BMA\",CONFIGURATION!$B$1,\"bscr\",\"\",CONFIGURATION!$B$12,$J$10,B195,$K$10,C195,$L$10,D195,$M$10,E195,$N$10,F195,$O$10,G195,\"\"),\"emptyTuple\")","v":"emptyTuple"}]
[186,null,null,null,null,null,null,null,null,{"$f":"IF(OR(B196<>\"\",C196<>\"\",D196<>\"\",E196<>\"\",F196<>\"\",G196<>\"\"),XBRLMapTuple($J$9,$K$5,$K$6,\"BMA\",CONFIGURATION!$B$1,\"bscr\",\"\",CONFIGURATION!$B$12,$J$10,B196,$K$10,C196,$L$10,D196,$M$10,E196,$N$10,F196,$O$10,G196,\"\"),\"emptyTuple\")","v":"emptyTuple"}]
[187,null,null,null,null,null,null,null,null,{"$f":"IF(OR(B197<>\"\",C197<>\"\",D197<>\"\",E197<>\"\",F197<>\"\",G197<>\"\"),XBRLMapTuple($J$9,$K$5,$K$6,\"BMA\",CONFIGURATION!$B$1,\"bscr\",\"\",CONFIGURATION!$B$12,$J$10,B197,$K$10,C197,$L$10,D197,$M$10,E197,$N$10,F197,$O$10,G197,\"\"),\"emptyTuple\")","v":"emptyTuple"}]
[188,null,null,null,null,null,null,null,null,{"$f":"IF(OR(B198<>\"\",C198<>\"\",D198<>\"\",E198<>\"\",F198<>\"\",G198<>\"\"),XBRLMapTuple($J$9,$K$5,$K$6,\"BMA\",CONFIGURATION!$B$1,\"bscr\",\"\",CONFIGURATION!$B$12,$J$10,B198,$K$10,C198,$L$10,D198,$M$10,E198,$N$10,F198,$O$10,G198,\"\"),\"emptyTuple\")","v":"emptyTuple"}]
[189,null,null,null,null,null,null,null,null,{"$f":"IF(OR(B199<>\"\",C199<>\"\",D199<>\"\",E199<>\"\",F199<>\"\",G199<>\"\"),XBRLMapTuple($J$9,$K$5,$K$6,\"BMA\",CONFIGURATION!$B$1,\"bscr\",\"\",CONFIGURATION!$B$12,$J$10,B199,$K$10,C199,$L$10,D199,$M$10,E199,$N$10,F199,$O$10,G199,\"\"),\"emptyTuple\")","v":"emptyTuple"}]
[190,null,null,null,null,null,null,null,null,{"$f":"IF(OR(B200<>\"\",C200<>\"\",D200<>\"\",E200<>\"\",F200<>\"\",G200<>\"\"),XBRLMapTuple($J$9,$K$5,$K$6,\"BMA\",CONFIGURATION!$B$1,\"bscr\",\"\",CONFIGURATION!$B$12,$J$10,B200,$K$10,C200,$L$10,D200,$M$10,E200,$N$10,F200,$O$10,G200,\"\"),\"emptyTuple\")","v":"emptyTuple"}]
[191,null,null,null,null,null,null,null,null,{"$f":"IF(OR(B201<>\"\",C201<>\"\",D201<>\"\",E201<>\"\",F201<>\"\",G201<>\"\"),XBRLMapTuple($J$9,$K$5,$K$6,\"BMA\",CONFIGURATION!$B$1,\"bscr\",\"\",CONFIGURATION!$B$12,$J$10,B201,$K$10,C201,$L$10,D201,$M$10,E201,$N$10,F201,$O$10,G201,\"\"),\"emptyTuple\")","v":"emptyTuple"}]
[192,null,null,null,null,null,null,null,null,{"$f":"IF(OR(B202<>\"\",C202<>\"\",D202<>\"\",E202<>\"\",F202<>\"\",G202<>\"\"),XBRLMapTuple($J$9,$K$5,$K$6,\"BMA\",CONFIGURATION!$B$1,\"bscr\",\"\",CONFIGURATION!$B$12,$J$10,B202,$K$10,C202,$L$10,D202,$M$10,E202,$N$10,F202,$O$10,G202,\"\"),\"emptyTuple\")","v":"emptyTuple"}]
[193,null,null,null,null,null,null,null,null,{"$f":"IF(OR(B203<>\"\",C203<>\"\",D203<>\"\",E203<>\"\",F203<>\"\",G203<>\"\"),XBRLMapTuple($J$9,$K$5,$K$6,\"BMA\",CONFIGURATION!$B$1,\"bscr\",\"\",CONFIGURATION!$B$12,$J$10,B203,$K$10,C203,$L$10,D203,$M$10,E203,$N$10,F203,$O$10,G203,\"\"),\"emptyTuple\")","v":"emptyTuple"}]
[194,null,null,null,null,null,null,null,null,{"$f":"IF(OR(B204<>\"\",C204<>\"\",D204<>\"\",E204<>\"\",F204<>\"\",G204<>\"\"),XBRLMapTuple($J$9,$K$5,$K$6,\"BMA\",CONFIGURATION!$B$1,\"bscr\",\"\",CONFIGURATION!$B$12,$J$10,B204,$K$10,C204,$L$10,D204,$M$10,E204,$N$10,F204,$O$10,G204,\"\"),\"emptyTuple\")","v":"emptyTuple"}]
[195,null,null,null,null,null,null,null,null,{"$f":"IF(OR(B205<>\"\",C205<>\"\",D205<>\"\",E205<>\"\",F205<>\"\",G205<>\"\"),XBRLMapTuple($J$9,$K$5,$K$6,\"BMA\",CONFIGURATION!$B$1,\"bscr\",\"\",CONFIGURATION!$B$12,$J$10,B205,$K$10,C205,$L$10,D205,$M$10,E205,$N$10,F205,$O$10,G205,\"\"),\"emptyTuple\")","v":"emptyTuple"}]
[196,null,null,null,null,null,null,null,null,{"$f":"IF(OR(B206<>\"\",C206<>\"\",D206<>\"\",E206<>\"\",F206<>\"\",G206<>\"\"),XBRLMapTuple($J$9,$K$5,$K$6,\"BMA\",CONFIGURATION!$B$1,\"bscr\",\"\",CONFIGURATION!$B$12,$J$10,B206,$K$10,C206,$L$10,D206,$M$10,E206,$N$10,F206,$O$10,G206,\"\"),\"emptyTuple\")","v":"emptyTuple"}]
[197,null,null,null,null,null,null,null,null,{"$f":"IF(OR(B207<>\"\",C207<>\"\",D207<>\"\",E207<>\"\",F207<>\"\",G207<>\"\"),XBRLMapTuple($J$9,$K$5,$K$6,\"BMA\",CONFIGURATION!$B$1,\"bscr\",\"\",CONFIGURATION!$B$12,$J$10,B207,$K$10,C207,$L$10,D207,$M$10,E207,$N$10,F207,$O$10,G207,\"\"),\"emptyTuple\")","v":"emptyTuple"}]
[198,null,null,null,null,null,null,null,null,{"$f":"IF(OR(B208<>\"\",C208<>\"\",D208<>\"\",E208<>\"\",F208<>\"\",G208<>\"\"),XBRLMapTuple($J$9,$K$5,$K$6,\"BMA\",CONFIGURATION!$B$1,\"bscr\",\"\",CONFIGURATION!$B$12,$J$10,B208,$K$10,C208,$L$10,D208,$M$10,E208,$N$10,F208,$O$10,G208,\"\"),\"emptyTuple\")","v":"emptyTuple"}]
[199,null,null,null,null,null,null,null,null,{"$f":"IF(OR(B209<>\"\",C209<>\"\",D209<>\"\",E209<>\"\",F209<>\"\",G209<>\"\"),XBRLMapTuple($J$9,$K$5,$K$6,\"BMA\",CONFIGURATION!$B$1,\"bscr\",\"\",CONFIGURATION!$B$12,$J$10,B209,$K$10,C209,$L$10,D209,$M$10,E209,$N$10,F209,$O$10,G209,\"\"),\"emptyTuple\")","v":"emptyTuple"}]
[200,null,null,null,null,null,null,null,null,{"$f":"IF(OR(B210<>\"\",C210<>\"\",D210<>\"\",E210<>\"\",F210<>\"\",G210<>\"\"),XBRLMapTuple($J$9,$K$5,$K$6,\"BMA\",CONFIGURATION!$B$1,\"bscr\",\"\",CONFIGURATION!$B$12,$J$10,B210,$K$10,C210,$L$10,D210,$M$10,E210,$N$10,F210,$O$10,G210,\"\"),\"emptyTuple\")","v":"emptyTuple"}]
[null,"Total Preferred Shares, Treasury Shares and Other Fixed Capital",null,null,null,{"$f":"SUM(F11:F210)","v":0},null,null,null,"brrt_TotalAvailableCapitalAndSurplus",{"$f":"XBRLMap(F211,J211,$K$5,$K$6,CONFIGURATION!$B$10,\"BMA\",CONFIGURATION!$B$1,\"bscr\",CONFIGURATION!$B$12)","v":"Mapped"}]
[]
[null,null,null,null,null,{"$f":"'Form 8SFS'!O17-'Form 8SFS'!O25+'Form 8SFS'!O34","v":0}]
[]
[null,null,null,null,null,{"$f":"IF(F216=\"TRUE\",HYPERLINK(\"#'Form 8SFS'!O17:O34\",\"TRUE\"),HYPERLINK(\"#'Form 8SFS'!O17:O34\",\"FALSE\"))","v":"TRUE"}]
[null,null,null,null,null,{"$f":"IF(ROUND((F211-F213),0)=0,\"TRUE\",\"FALSE\")","v":"TRUE"}]
[null,null,null,null,null,{"$f":"ROUND((F213-F211),0)","v":0}]
[]
[null,null,null,null,null,{"$f":"IF(F215=\"False\",\"Does not equal Form 8SFS Lines 1(a)(ii), 1(a)(iii) & 1(c)(iii)\",\"\")","v":""}]
[]
[]
[]
[]
[]
[null,"bma_ScheduleOfEligibleCapitalAdditionalDetails_DescriptionOfCapitalInstrument","bma_ScheduleOfEligibleCapitalAdditionalDetails_DateOfIssue","bma_ScheduleOfEligibleCapitalAdditionalDetails_MaturityDateasApplicable","bma_ScheduleOfEligibleCapitalAdditionalDetails_DateApprovedByTheAuthority","bma_ScheduleOfEligibleCapitalAdditionalDetails_ValueOfCapitalInstrument","bma_ScheduleOfEligibleCapitalAdditionalDetails_Tier"]

{"sheet":"Schedule XVI","index":59,"n_rows":216,"n_cols":21,"rows_kept":216,"cut":false,"hidden":false,"merged":[[3,2,3,3]]}
[null,"SCHEDULE OF REGULATED NON-INSURANCE FINANCIAL OPERATING ENTITIES",null,null,null,null,null,null,null,null,null,null,{"$f":"HYPERLINK(\"#'Index'!A1\",\"Return to Index\")","v":"Return to Index"}]
[]
[null,{"$f":"'Insurer Information'!C7","v":"Enter Company Name"}]
[null,"For the year ending",{"$f":"TEXT('Insurer Information'!C3,\"mmmm dd, yyyy\")","v":"December 31, 2019"},null,null,null,null,null,null,null,null,null,"SCHEDULE XVI"]
[null,{"$f":"\"expressed in\"& IF(CONFIGURATION!$B$12>1,\" ['\"&MID(CONFIGURATION!$B$12,2,LEN(CONFIGURATION!$B$12))&\"s]\",\"\")","v":"expressed in ['000s]"},{"$f":"'Form 4EBS'!C4","v":"United States Dollars"},null,null,null,null,null,null,null,null,null,null,null,"Select","Select","Select"]
[null,null,null,null,null,null,null,null,null,null,null,null,null,{"$f":"YEAR('Insurer Information'!C3)","v":2019},"Energy","Holding Entity","Significant Influence"]
[null," Enter Number of Regulated Non-Insurance Entities",{"$f":"Import!I5444","v":0},null,null,null,null,null,null,null,null,null,null,null,"Materials","Operating Entity","Control"]
[null," Enter information for each entity",null,null,null,null,null,null,null,null,null,null,null,null,"Industrial","Branch"]
[null,null,null,null,null,null,null,null,null,null,null,null,null,null,"Consumer Discretionary"]
[null,"Entity name","Jurisdiction","Sector Classification (Select from drop-down list)","Strategic Purpose","Entity Type (Select from drop-down list)","Products & Services Offered","Participation (Select from drop-down list)","Percent of Participating Interest","Assets","Investment Amount (equity method)","Regulatory Capital Requirement for Regulated Entities (RCR) (100%)","Applicable Share of the RCR",null,"Consumer Staples",null,null,null,"brrt_EligibleCapitalDetailsDateApprovedByAuthority","brrt_EligibleCapitalDetailsValueOfCapitalInstrument","brrt_EligibleCapitalDetailsEligibleCapitalTier"]
[1,{"$f":"Import!I5445","v":0},{"$f":"Import!I5460","v":0},{"$f":"Import!I5475","v":"Select"},{"$f":"Import!I5490","v":0},{"$f":"Import!I5505","v":"Select"},{"$f":"Import!I5520","v":0},{"$f":"Import!I5535","v":"Select"},{"$f":"Import!I5550","v":0},{"$f":"Import!I5565","v":0},{"$f":"Import!I5581","v":0},{"$f":"Import!I5597","v":0},{"$f":"I11*L11","v":0},null,"Healthcare"]
[2,{"$f":"Import!I5446","v":0},{"$f":"Import!I5461","v":0},{"$f":"Import!I5476","v":"Select"},{"$f":"Import!I5491","v":0},{"$f":"Import!I5506","v":"Select"},{"$f":"Import!I5521","v":0},{"$f":"Import!I5536","v":"Select"},{"$f":"Import!I5551","v":0},{"$f":"Import!I5566","v":0},{"$f":"Import!I5582","v":0},{"$f":"Import!I5598","v":0},0,null,"Financial"]
[3,{"$f":"Import!I5447","v":0},{"$f":"Import!I5462","v":0},{"$f":"Import!I5477","v":"Select"},{"$f":"Import!I5492","v":0},{"$f":"Import!I5507","v":"Select"},{"$f":"Import!I5522","v":0},{"$f":"Import!I5537","v":"Select"},{"$f":"Import!I5552","v":0},{"$f":"Import!I5567","v":0},{"$f":"Import!I5583","v":0},{"$f":"Import!I5599","v":0},0,null,null,{"$f":"IF(OR(B13<>\"\",C13<>\"\",D13<>\"\",E13<>\"\",F13<>\"\",M13<>\"\"),XBRLMapTuple($P$9,$Q$5,$Q$6,\"BMA\",CONFIGURATION!$B$1,\"bscr\",\"\",CONFIGURATION!$B$12,$P$10,B13,$Q$10,C13,$R$10,D13,$S$10,E13,$T$10,F13,$U$10,M13,\"\"),\"emptyTuple\")","v":{"$error":"#VALUE!"}}]
[4,{"$f":"Import!I5448","v":0},{"$f":"Import!I5463","v":0},{"$f":"Import!I5478","v":"Select"},{"$f":"Import!I5493","v":0},{"$f":"Import!I5508","v":"Select"},{"$f":"Import!I5523","v":0},{"$f":"Import!I5538","v":"Select"},{"$f":"Import!I5553","v":0},{"$f":"Import!I5568","v":0},{"$f":"Import!I5584","v":0},{"$f":"Import!I5600","v":0},0,null,null,{"$f":"IF(OR(B14<>\"\",C14<>\"\",D14<>\"\",E14<>\"\",F14<>\"\",M14<>\"\"),XBRLMapTuple($P$9,$Q$5,$Q$6,\"BMA\",CONFIGURATION!$B$1,\"bscr\",\"\",CONFIGURATION!$B$12,$P$10,B14,$Q$10,C14,$R$10,D14,$S$10,E14,$T$10,F14,$U$10,M14,\"\"),\"emptyTuple\")","v":{"$error":"#VALUE!"}}]
[5,{"$f":"Import!I5449","v":0},{"$f":"Import!I5464","v":0},{"$f":"Import!I5479","v":"Select"},{"$f":"Import!I5494","v":0},{"$f":"Import!I5509","v":"Select"},{"$f":"Import!I5524","v":0},{"$f":"Import!I5539","v":"Select"},{"$f":"Import!I5554","v":0},{"$f":"Import!I5569","v":0},{"$f":"Import!I5585","v":0},{"$f":"Import!I5601","v":0},0,null,null,{"$f":"IF(OR(B15<>\"\",C15<>\"\",D15<>\"\",E15<>\"\",F15<>\"\",M15<>\"\"),XBRLMapTuple($P$9,$Q$5,$Q$6,\"BMA\",CONFIGURATION!$B$1,\"bscr\",\"\",CONFIGURATION!$B$12,$P$10,B15,$Q$10,C15,$R$10,D15,$S$10,E15,$T$10,F15,$U$10,M15,\"\"),\"emptyTuple\")","v":{"$error":"#VALUE!"}}]
[6,{"$f":"Import!I5450","v":0},{"$f":"Import!I5465","v":0},{"$f":"Import!I5480","v":"Select"},{"$f":"Import!I5495","v":0},{"$f":"Import!I5510","v":"Select"},{"$f":"Import!I5525","v":0},{"$f":"Import!I5540","v":"Select"},{"$f":"Import!I5555","v":0},{"$f":"Import!I5570","v":0},{"$f":"Import!I5586","v":0},{"$f":"Import!I5602","v":0},0,null,null,{"$f":"IF(OR(B16<>\"\",C16<>\"\",D16<>\"\",E16<>\"\",F16<>\"\",M16<>\"\"),XBRLMapTuple($P$9,$Q$5,$Q$6,\"BMA\",CONFIGURATION!$B$1,\"bscr\",\"\",CONFIGURATION!$B$12,$P$10,B16,$Q$10,C16,$R$10,D16,$S$10,E16,$T$10,F16,$U$10,M16,\"\"),\"emptyTuple\")","v":{"$error":"#VALUE!"}}]
[7,{"$f":"Import!I5451","v":0},{"$f":"Import!I5466","v":0},{"$f":"Import!I5481","v":"Select"},{"$f":"Import!I5496","v":0},{"$f":"Import!I5511","v":"Select"},{"$f":"Import!I5526","v":0},{"$f":"Import!I5541","v":"Select"},{"$f":"Import!I5556","v":0},{"$f":"Import!I5571","v":0},{"$f":"Import!I5587","v":0},{"$f":"Import!I5603","v":0},0,null,null,{"$f":"IF(OR(B17<>\"\",C17<>\"\",D17<>\"\",E17<>\"\",F17<>\"\",M17<>\"\"),XBRLMapTuple($P$9,$Q$5,$Q$6,\"BMA\",CONFIGURATION!$B$1,\"bscr\",\"\",CONFIGURATION!$B$12,$P$10,B17,$Q$10,C17,$R$10,D17,$S$10,E17,$T$10,F17,$U$10,M17,\"\"),\"emptyTuple\")","v":{"$error":"#VALUE!"}}]
[8,{"$f":"Import!I5452","v":0},{"$f":"Import!I5467","v":0},{"$f":"Import!I5482","v":"Select"},{"$f":"Import!I5497","v":0},{"$f":"Import!I5512","v":"Select"},{"$f":"Import!I5527","v":0},{"$f":"Import!I5542","v":"Select"},{"$f":"Import!I5557","v":0},{"$f":"Import!I5572","v":0},{"$f":"Import!I5588","v":0},{"$f":"Import!I5604","v":0},0,null,null,{"$f":"IF(OR(B18<>\"\",C18<>\"\",D18<>\"\",E18<>\"\",F18<>\"\",M18<>\"\"),XBRLMapTuple($P$9,$Q$5,$Q$6,\"BMA\",CONFIGURATION!$B$1,\"bscr\",\"\",CONFIGURATION!$B$12,$P$10,B18,$Q$10,C18,$R$10,D18,$S$10,E18,$T$10,F18,$U$10,M18,\"\"),\"emptyTuple\")","v":{"$error":"#VALUE!"}}]
[9,{"$f":"Import!I5453","v":0},{"$f":"Import!I5468","v":0},{"$f":"Import!I5483","v":"Select"},{"$f":"Import!I5498","v":0},{"$f":"Import!I5513","v":"Select"},{"$f":"Import!I5528","v":0},{"$f":"Import!I5543","v":"Select"},{"$f":"Import!I5558","v":0},{"$f":"Import!I5573","v":0},{"$f":"Import!I5589","v":0},{"$f":"Import!I5605","v":0},0,null,null,{"$f":"IF(OR(B19<>\"\",C19<>\"\",D19<>\"\",E19<>\"\",F19<>\"\",M19<>\"\"),XBRLMapTuple($P$9,$Q$5,$Q$6,\"BMA\",CONFIGURATION!$B$1,\"bscr\",\"\",CONFIGURATION!$B$12,$P$10,B19,$Q$10,C19,$R$10,D19,$S$10,E19,$T$10,F19,$U$10,M19,\"\"),\"emptyTuple\")","v":{"$error":"#VALUE!"}}]
[10,{"$f":"Import!I5454","v":0},{"$f":"Import!I5469","v":0},{"$f":"Import!I5484","v":"Select"},{"$f":"Import!I5499","v":0},{"$f":"Import!I5514","v":"Select"},{"$f":"Import!I5529","v":0},{"$f":"Import!I5544","v":"Select"},{"$f":"Import!I5559","v":0},{"$f":"Import!I5574","v":0},{"$f":"Import!I5590","v":0},{"$f":"Import!I5606","v":0},0,null,null,{"$f":"IF(OR(B20<>\"\",C20<>\"\",D20<>\"\",E20<>\"\",F20<>\"\",M20<>\"\"),XBRLMapTuple($P$9,$Q$5,$Q$6,\"BMA\",CONFIGURATION!$B$1,\"bscr\",\"\",CONFIGURATION!$B$12,$P$10,B20,$Q$10,C20,$R$10,D20,$S$10,E20,$T$10,F20,$U$10,M20,\"\"),\"emptyTuple\")","v":{"$error":"#VALUE!"}}]
[11,{"$f":"Import!I5455","v":0},{"$f":"Import!I5470","v":0},{"$f":"Import!I5485","v":"Select"},{"$f":"Import!I5500","v":0},{"$f":"Import!I5515","v":"Select"},{"$f":"Import!I5530","v":0},{"$f":"Import!I5545","v":"Select"},{"$f":"Import!I5560","v":0},{"$f":"Import!I5575","v":0},{"$f":"Import!I5591","v":0},{"$f":"Import!I5607","v":0},0,null,null,{"$f":"IF(OR(B21<>\"\",C21<>\"\",D21<>\"\",E21<>\"\",F21<>\"\",M21<>\"\"),XBRLMapTuple($P$9,$Q$5,$Q$6,\"BMA\",CONFIGURATION!$B$1,\"bscr\",\"\",CONFIGURATION!$B$12,$P$10,B21,$Q$10,C21,$R$10,D21,$S$10,E21,$T$10,F21,$U$10,M21,\"\"),\"emptyTuple\")","v":{"$error":"#VALUE!"}}]
[12,{"$f":"Import!I5456","v":0},{"$f":"Import!I5471","v":0},{"$f":"Import!I5486","v":"Select"},{"$f":"Import!I5501","v":0},{"$f":"Import!I5516","v":"Select"},{"$f":"Import!I5531","v":0},{"$f":"Import!I5546","v":"Select"},{"$f":"Import!I5561","v":0},{"$f":"Import!I5576","v":0},{"$f":"Import!I5592","v":0},{"$f":"Import!I5608","v":0},0,null,null,{"$f":"IF(OR(B22<>\"\",C22<>\"\",D22<>\"\",E22<>\"\",F22<>\"\",M22<>\"\"),XBRLMapTuple($P$9,$Q$5,$Q$6,\"BMA\",CONFIGURATION!$B$1,\"bscr\",\"\",CONFIGURATION!$B$12,$P$10,B22,$Q$10,C22,$R$10,D22,$S$10,E22,$T$10,F22,$U$10,M22,\"\"),\"emptyTuple\")","v":{"$error":"#VALUE!"}}]
[13,{"$f":"Import!I5457","v":0},{"$f":"Import!I5472","v":0},{"$f":"Import!I5487","v":"Select"},{"$f":"Import!I5502","v":0},{"$f":"Import!I5517","v":"Select"},{"$f":"Import!I5532","v":0},{"$f":"Import!I5547","v":"Select"},{"$f":"Import!I5562","v":0},{"$f":"Import!I5577","v":0},{"$f":"Import!I5593","v":0},{"$f":"Import!I5609","v":0},0,null,null,{"$f":"IF(OR(B23<>\"\",C23<>\"\",D23<>\"\",E23<>\"\",F23<>\"\",M23<>\"\"),XBRLMapTuple($P$9,$Q$5,$Q$6,\"BMA\",CONFIGURATION!$B$1,\"bscr\",\"\",CONFIGURATION!$B$12,$P$10,B23,$Q$10,C23,$R$10,D23,$S$10,E23,$T$10,F23,$U$10,M23,\"\"),\"emptyTuple\")","v":{"$error":"#VALUE!"}}]
[14,{"$f":"Import!I5458","v":0},{"$f":"Import!I5473","v":0},{"$f":"Import!I5488","v":"Select"},{"$f":"Import!I5503","v":0},{"$f":"Import!I5518","v":"Select"},{"$f":"Import!I5533","v":0},{"$f":"Import!I5548","v":"Select"},{"$f":"Import!I5563","v":0},{"$f":"Import!I5578","v":0},{"$f":"Import!I5594","v":0},{"$f":"Import!I5610","v":0},0,null,null,{"$f":"IF(OR(B24<>\"\",C24<>\"\",D24<>\"\",E24<>\"\",F24<>\"\",M24<>\"\"),XBRLMapTuple($P$9,$Q$5,$Q$6,\"BMA\",CONFIGURATION!$B$1,\"bscr\",\"\",CONFIGURATION!$B$12,$P$10,B24,$Q$10,C24,$R$10,D24,$S$10,E24,$T$10,F24,$U$10,M24,\"\"),\"emptyTuple\")","v":{"$error":"#VALUE!"}}]
[15,{"$f":"Import!I5459","v":0},{"$f":"Import!I5474","v":0},{"$f":"Import!I5489","v":"Select"},{"$f":"Import!I5504","v":0},{"$f":"Import!I5519","v":"Select"},{"$f":"Import!I5534","v":0},{"$f":"Import!I5549","v":"Select"},{"$f":"Import!I5564","v":0},{"$f":"Import!I5579","v":0},{"$f":"Import!I5595","v":0},{"$f":"Import!I5611","v":0},0,null,null,{"$f":"IF(OR(B25<>\"\",C25<>\"\",D25<>\"\",E25<>\"\",F25<>\"\",M25<>\"\"),XBRLMapTuple($P$9,$Q$5,$Q$6,\"BMA\",CONFIGURATION!$B$1,\"bscr\",\"\",CONFIGURATION!$B$12,$P$10,B25,$Q$10,C25,$R$10,D25,$S$10,E25,$T$10,F25,$U$10,M25,\"\"),\"emptyTuple\")","v":{"$error":"#VALUE!"}}]
[16,null,null,null,null,null,null,null,null,null,null,null,0,null,null,{"$f":"IF(OR(B26<>\"\",C26<>\"\",D26<>\"\",E26<>\"\",F26<>\"\",M26<>\"\"),XBRLMapTuple($P$9,$Q$5,$Q$6,\"BMA\",CONFIGURATION!$B$1,\"bscr\",\"\",CONFIGURATION!$B$12,$P$10,B26,$Q$10,C26,$R$10,D26,$S$10,E26,$T$10,F26,$U$10,M26,\"\"),\"emptyTuple\")","v":{"$error":"#VALUE!"}}]
[17,null,null,null,null,null,null,null,null,null,null,null,0,null,null,{"$f":"IF(OR(B27<>\"\",C27<>\"\",D27<>\"\",E27<>\"\",F27<>\"\",M27<>\"\"),XBRLMapTuple($P$9,$Q$5,$Q$6,\"BMA\",CONFIGURATION!$B$1,\"bscr\",\"\",CONFIGURATION!$B$12,$P$10,B27,$Q$10,C27,$R$10,D27,$S$10,E27,$T$10,F27,$U$10,M27,\"\"),\"emptyTuple\")","v":{"$error":"#VALUE!"}}]
[18,null,null,null,null,null,null,null,null,null,null,null,0,null,null,{"$f":"IF(OR(B28<>\"\",C28<>\"\",D28<>\"\",E28<>\"\",F28<>\"\",M28<>\"\"),XBRLMapTuple($P$9,$Q$5,$Q$6,\"BMA\",CONFIGURATION!$B$1,\"bscr\",\"\",CONFIGURATION!$B$12,$P$10,B28,$Q$10,C28,$R$10,D28,$S$10,E28,$T$10,F28,$U$10,M28,\"\"),\"emptyTuple\")","v":{"$error":"#VALUE!"}}]
[19,null,null,null,null,null,null,null,null,null,null,null,0,null,null,{"$f":"IF(OR(B29<>\"\",C29<>\"\",D29<>\"\",E29<>\"\",F29<>\"\",M29<>\"\"),XBRLMapTuple($P$9,$Q$5,$Q$6,\"BMA\",CONFIGURATION!$B$1,\"bscr\",\"\",CONFIGURATION!$B$12,$P$10,B29,$Q$10,C29,$R$10,D29,$S$10,E29,$T$10,F29,$U$10,M29,\"\"),\"emptyTuple\")","v":{"$error":"#VALUE!"}}]
[20,null,null,null,null,null,null,null,null,null,null,null,0,null,null,{"$f":"IF(OR(B30<>\"\",C30<>\"\",D30<>\"\",E30<>\"\",F30<>\"\",M30<>\"\"),XBRLMapTuple($P$9,$Q$5,$Q$6,\"BMA\",CONFIGURATION!$B$1,\"bscr\",\"\",CONFIGURATION!$B$12,$P$10,B30,$Q$10,C30,$R$10,D30,$S$10,E30,$T$10,F30,$U$10,M30,\"\"),\"emptyTuple\")","v":{"$error":"#VALUE!"}}]
[21,null,null,null,null,null,null,null,null,null,null,null,0,null,null,{"$f":"IF(OR(B31<>\"\",C31<>\"\",D31<>\"\",E31<>\"\",F31<>\"\",M31<>\"\"),XBRLMapTuple($P$9,$Q$5,$Q$6,\"BMA\",CONFIGURATION!$B$1,\"bscr\",\"\",CONFIGURATION!$B$12,$P$10,B31,$Q$10,C31,$R$10,D31,$S$10,E31,$T$10,F31,$U$10,M31,\"\"),\"emptyTuple\")","v":{"$error":"#VALUE!"}}]
[22,null,null,null,null,null,null,null,null,null,null,null,0,null,null,{"$f":"IF(OR(B32<>\"\",C32<>\"\",D32<>\"\",E32<>\"\",F32<>\"\",M32<>\"\"),XBRLMapTuple($P$9,$Q$5,$Q$6,\"BMA\",CONFIGURATION!$B$1,\"bscr\",\"\",CONFIGURATION!$B$12,$P$10,B32,$Q$10,C32,$R$10,D32,$S$10,E32,$T$10,F32,$U$10,M32,\"\"),\"emptyTuple\")","v":{"$error":"#VALUE!"}}]
[23,null,null,null,null,null,null,null,null,null,null,null,0,null,null,{"$f":"IF(OR(B33<>\"\",C33<>\"\",D33<>\"\",E33<>\"\",F33<>\"\",M33<>\"\"),XBRLMapTuple($P$9,$Q$5,$Q$6,\"BMA\",CONFIGURATION!$B$1,\"bscr\",\"\",CONFIGURATION!$B$12,$P$10,B33,$Q$10,C33,$R$10,D33,$S$10,E33,$T$10,F33,$U$10,M33,\"\"),\"emptyTuple\")","v":{"$error":"#VALUE!"}}]
[24,null,null,null,null,null,null,null,null,null,null,null,0,null,null,{"$f":"IF(OR(B34<>\"\",C34<>\"\",D34<>\"\",E34<>\"\",F34<>\"\",M34<>\"\"),XBRLMapTuple($P$9,$Q$5,$Q$6,\"BMA\",CONFIGURATION!$B$1,\"bscr\",\"\",CONFIGURATION!$B$12,$P$10,B34,$Q$10,C34,$R$10,D34,$S$10,E34,$T$10,F34,$U$10,M34,\"\"),\"emptyTuple\")","v":{"$error":"#VALUE!"}}]
[25,null,null,null,null,null,null,null,null,null,null,null,0,null,null,{"$f":"IF(OR(B35<>\"\",C35<>\"\",D35<>\"\",E35<>\"\",F35<>\"\",M35<>\"\"),XBRLMapTuple($P$9,$Q$5,$Q$6,\"BMA\",CONFIGURATION!$B$1,\"bscr\",\"\",CONFIGURATION!$B$12,$P$10,B35,$Q$10,C35,$R$10,D35,$S$10,E35,$T$10,F35,$U$10,M35,\"\"),\"emptyTuple\")","v":{"$error":"#VALUE!"}}]
[26,null,null,null,null,null,null,null,null,null,null,null,0,null,null,{"$f":"IF(OR(B36<>\"\",C36<>\"\",D36<>\"\",E36<>\"\",F36<>\"\",M36<>\"\"),XBRLMapTuple($P$9,$Q$5,$Q$6,\"BMA\",CONFIGURATION!$B$1,\"bscr\",\"\",CONFIGURATION!$B$12,$P$10,B36,$Q$10,C36,$R$10,D36,$S$10,E36,$T$10,F36,$U$10,M36,\"\"),\"emptyTuple\")","v":{"$error":"#VALUE!"}}]
[27,null,null,null,null,null,null,null,null,null,null,null,0,null,null,{"$f":"IF(OR(B37<>\"\",C37<>\"\",D37<>\"\",E37<>\"\",F37<>\"\",M37<>\"\"),XBRLMapTuple($P$9,$Q$5,$Q$6,\"BMA\",CONFIGURATION!$B$1,\"bscr\",\"\",CONFIGURATION!$B$12,$P$10,B37,$Q$10,C37,$R$10,D37,$S$10,E37,$T$10,F37,$U$10,M37,\"\"),\"emptyTuple\")","v":{"$error":"#VALUE!"}}]
[28,null,null,null,null,null,null,null,null,null,null,null,0,null,null,{"$f":"IF(OR(B38<>\"\",C38<>\"\",D38<>\"\",E38<>\"\",F38<>\"\",M38<>\"\"),XBRLMapTuple($P$9,$Q$5,$Q$6,\"BMA\",CONFIGURATION!$B$1,\"bscr\",\"\",CONFIGURATION!$B$12,$P$10,B38,$Q$10,C38,$R$10,D38,$S$10,E38,$T$10,F38,$U$10,M38,\"\"),\"emptyTuple\")","v":{"$error":"#VALUE!"}}]
[29,null,null,null,null,null,null,null,null,null,null,null,0,null,null,{"$f":"IF(OR(B39<>\"\",C39<>\"\",D39<>\"\",E39<>\"\",F39<>\"\",M39<>\"\"),XBRLMapTuple($P$9,$Q$5,$Q$6,\"BMA\",CONFIGURATION!$B$1,\"bscr\",\"\",CONFIGURATION!$B$12,$P$10,B39,$Q$10,C39,$R$10,D39,$S$10,E39,$T$10,F39,$U$10,M39,\"\"),\"emptyTuple\")","v":{"$error":"#VALUE!"}}]
[30,null,null,null,null,null,null,null,null,null,null,null,0,null,null,{"$f":"IF(OR(B40<>\"\",C40<>\"\",D40<>\"\",E40<>\"\",F40<>\"\",M40<>\"\"),XBRLMapTuple($P$9,$Q$5,$Q$6,\"BMA\",CONFIGURATION!$B$1,\"bscr\",\"\",CONFIGURATION!$B$12,$P$10,B40,$Q$10,C40,$R$10,D40,$S$10,E40,$T$10,F40,$U$10,M40,\"\"),\"emptyTuple\")","v":{"$error":"#VALUE!"}}]
[31,null,null,null,null,null,null,null,null,null,null,null,0,null,null,{"$f":"IF(OR(B41<>\"\",C41<>\"\",D41<>\"\",E41<>\"\",F41<>\"\",M41<>\"\"),XBRLMapTuple($P$9,$Q$5,$Q$6,\"BMA\",CONFIGURATION!$B$1,\"bscr\",\"\",CONFIGURATION!$B$12,$P$10,B41,$Q$10,C41,$R$10,D41,$S$10,E41,$T$10,F41,$U$10,M41,\"\"),\"emptyTuple\")","v":{"$error":"#VALUE!"}}]
[32,null,null,null,null,null,null,null,null,null,null,null,0,null,null,{"$f":"IF(OR(B42<>\"\",C42<>\"\",D42<>\"\",E42<>\"\",F42<>\"\",M42<>\"\"),XBRLMapTuple($P$9,$Q$5,$Q$6,\"BMA\",CONFIGURATION!$B$1,\"bscr\",\"\",CONFIGURATION!$B$12,$P$10,B42,$Q$10,C42,$R$10,D42,$S$10,E42,$T$10,F42,$U$10,M42,\"\"),\"emptyTuple\")","v":{"$error":"#VALUE!"}}]
[33,null,null,null,null,null,null,null,null,null,null,null,0,null,null,{"$f":"IF(OR(B43<>\"\",C43<>\"\",D43<>\"\",E43<>\"\",F43<>\"\",M43<>\"\"),XBRLMapTuple($P$9,$Q$5,$Q$6,\"BMA\",CONFIGURATION!$B$1,\"bscr\",\"\",CONFIGURATION!$B$12,$P$10,B43,$Q$10,C43,$R$10,D43,$S$10,E43,$T$10,F43,$U$10,M43,\"\"),\"emptyTuple\")","v":{"$error":"#VALUE!"}}]
[34,null,null,null,null,null,null,null,null,null,null,null,0,null,null,{"$f":"IF(OR(B44<>\"\",C44<>\"\",D44<>\"\",E44<>\"\",F44<>\"\",M44<>\"\"),XBRLMapTuple($P$9,$Q$5,$Q$6,\"BMA\",CONFIGURATION!$B$1,\"bscr\",\"\",CONFIGURATION!$B$12,$P$10,B44,$Q$10,C44,$R$10,D44,$S$10,E44,$T$10,F44,$U$10,M44,\"\"),\"emptyTuple\")","v":{"$error":"#VALUE!"}}]
[35,null,null,null,null,null,null,null,null,null,null,null,0,null,null,{"$f":"IF(OR(B45<>\"\",C45<>\"\",D45<>\"\",E45<>\"\",F45<>\"\",M45<>\"\"),XBRLMapTuple($P$9,$Q$5,$Q$6,\"BMA\",CONFIGURATION!$B$1,\"bscr\",\"\",CONFIGURATION!$B$12,$P$10,B45,$Q$10,C45,$R$10,D45,$S$10,E45,$T$10,F45,$U$10,M45,\"\"),\"emptyTuple\")","v":{"$error":"#VALUE!"}}]
[36,null,null,null,null,null,null,null,null,null,null,null,0,null,null,{"$f":"IF(OR(B46<>\"\",C46<>\"\",D46<>\"\",E46<>\"\",F46<>\"\",M46<>\"\"),XBRLMapTuple($P$9,$Q$5,$Q$6,\"BMA\",CONFIGURATION!$B$1,\"bscr\",\"\",CONFIGURATION!$B$12,$P$10,B46,$Q$10,C46,$R$10,D46,$S$10,E46,$T$10,F46,$U$10,M46,\"\"),\"emptyTuple\")","v":{"$error":"#VALUE!"}}]
[37,null,null,null,null,null,null,null,null,null,null,null,0,null,null,{"$f":"IF(OR(B47<>\"\",C47<>\"\",D47<>\"\",E47<>\"\",F47<>\"\",M47<>\"\"),XBRLMapTuple($P$9,$Q$5,$Q$6,\"BMA\",CONFIGURATION!$B$1,\"bscr\",\"\",CONFIGURATION!$B$12,$P$10,B47,$Q$10,C47,$R$10,D47,$S$10,E47,$T$10,F47,$U$10,M47,\"\"),\"emptyTuple\")","v":{"$error":"#VALUE!"}}]
[38,null,null,null,null,null,null,null,null,null,null,null,0,null,null,{"$f":"IF(OR(B48<>\"\",C48<>\"\",D48<>\"\",E48<>\"\",F48<>\"\",M48<>\"\"),XBRLMapTuple($P$9,$Q$5,$Q$6,\"BMA\",CONFIGURATION!$B$1,\"bscr\",\"\",CONFIGURATION!$B$12,$P$10,B48,$Q$10,C48,$R$10,D48,$S$10,E48,$T$10,F48,$U$10,M48,\"\"),\"emptyTuple\")","v":{"$error":"#VALUE!"}}]
[39,null,null,null,null,null,null,null,null,null,null,null,0,null,null,{"$f":"IF(OR(B49<>\"\",C49<>\"\",D49<>\"\",E49<>\"\",F49<>\"\",M49<>\"\"),XBRLMapTuple($P$9,$Q$5,$Q$6,\"BMA\",CONFIGURATION!$B$1,\"bscr\",\"\",CONFIGURATION!$B$12,$P$10,B49,$Q$10,C49,$R$10,D49,$S$10,E49,$T$10,F49,$U$10,M49,\"\"),\"emptyTuple\")","v":{"$error":"#VALUE!"}}]
[40,null,null,null,null,null,null,null,null,null,null,null,0,null,null,{"$f":"IF(OR(B50<>\"\",C50<>\"\",D50<>\"\",E50<>\"\",F50<>\"\",M50<>\"\"),XBRLMapTuple($P$9,$Q$5,$Q$6,\"BMA\",CONFIGURATION!$B$1,\"bscr\",\"\",CONFIGURATION!$B$12,$P$10,B50,$Q$10,C50,$R$10,D50,$S$10,E50,$T$10,F50,$U$10,M50,\"\"),\"emptyTuple\")","v":{"$error":"#VALUE!"}}]
[41,null,null,null,null,null,null,null,null,null,null,null,0,null,null,{"$f":"IF(OR(B51<>\"\",C51<>\"\",D51<>\"\",E51<>\"\",F51<>\"\",M51<>\"\"),XBRLMapTuple($P$9,$Q$5,$Q$6,\"BMA\",CONFIGURATION!$B$1,\"bscr\",\"\",CONFIGURATION!$B$12,$P$10,B51,$Q$10,C51,$R$10,D51,$S$10,E51,$T$10,F51,$U$10,M51,\"\"),\"emptyTuple\")","v":{"$error":"#VALUE!"}}]
[42,null,null,null,null,null,null,null,null,null,null,null,0,null,null,{"$f":"IF(OR(B52<>\"\",C52<>\"\",D52<>\"\",E52<>\"\",F52<>\"\",M52<>\"\"),XBRLMapTuple($P$9,$Q$5,$Q$6,\"BMA\",CONFIGURATION!$B$1,\"bscr\",\"\",CONFIGURATION!$B$12,$P$10,B52,$Q$10,C52,$R$10,D52,$S$10,E52,$T$10,F52,$U$10,M52,\"\"),\"emptyTuple\")","v":{"$error":"#VALUE!"}}]
[43,null,null,null,null,null,null,null,null,null,null,null,0,null,null,{"$f":"IF(OR(B53<>\"\",C53<>\"\",D53<>\"\",E53<>\"\",F53<>\"\",M53<>\"\"),XBRLMapTuple($P$9,$Q$5,$Q$6,\"BMA\",CONFIGURATION!$B$1,\"bscr\",\"\",CONFIGURATION!$B$12,$P$10,B53,$Q$10,C53,$R$10,D53,$S$10,E53,$T$10,F53,$U$10,M53,\"\"),\"emptyTuple\")","v":{"$error":"#VALUE!"}}]
[44,null,null,null,null,null,null,null,null,null,null,null,0,null,null,{"$f":"IF(OR(B54<>\"\",C54<>\"\",D54<>\"\",E54<>\"\",F54<>\"\",M54<>\"\"),XBRLMapTuple($P$9,$Q$5,$Q$6,\"BMA\",CONFIGURATION!$B$1,\"bscr\",\"\",CONFIGURATION!$B$12,$P$10,B54,$Q$10,C54,$R$10,D54,$S$10,E54,$T$10,F54,$U$10,M54,\"\"),\"emptyTuple\")","v":{"$error":"#VALUE!"}}]
[45,null,null,null,null,null,null,null,null,null,null,null,0,null,null,{"$f":"IF(OR(B55<>\"\",C55<>\"\",D55<>\"\",E55<>\"\",F55<>\"\",M55<>\"\"),XBRLMapTuple($P$9,$Q$5,$Q$6,\"BMA\",CONFIGURATION!$B$1,\"bscr\",\"\",CONFIGURATION!$B$12,$P$10,B55,$Q$10,C55,$R$10,D55,$S$10,E55,$T$10,F55,$U$10,M55,\"\"),\"emptyTuple\")","v":{"$error":"#VALUE!"}}]
[46,null,null,null,null,null,null,null,null,null,null,null,0,null,null,{"$f":"IF(OR(B56<>\"\",C56<>\"\",D56<>\"\",E56<>\"\",F56<>\"\",M56<>\"\"),XBRLMapTuple($P$9,$Q$5,$Q$6,\"BMA\",CONFIGURATION!$B$1,\"bscr\",\"\",CONFIGURATION!$B$12,$P$10,B56,$Q$10,C56,$R$10,D56,$S$10,E56,$T$10,F56,$U$10,M56,\"\"),\"emptyTuple\")","v":{"$error":"#VALUE!"}}]
[47,null,null,null,null,null,null,null,null,null,null,null,0,null,null,{"$f":"IF(OR(B57<>\"\",C57<>\"\",D57<>\"\",E57<>\"\",F57<>\"\",M57<>\"\"),XBRLMapTuple($P$9,$Q$5,$Q$6,\"BMA\",CONFIGURATION!$B$1,\"bscr\",\"\",CONFIGURATION!$B$12,$P$10,B57,$Q$10,C57,$R$10,D57,$S$10,E57,$T$10,F57,$U$10,M57,\"\"),\"emptyTuple\")","v":{"$error":"#VALUE!"}}]
[48,null,null,null,null,null,null,null,null,null,null,null,0,null,null,{"$f":"IF(OR(B58<>\"\",C58<>\"\",D58<>\"\",E58<>\"\",F58<>\"\",M58<>\"\"),XBRLMapTuple($P$9,$Q$5,$Q$6,\"BMA\",CONFIGURATION!$B$1,\"bscr\",\"\",CONFIGURATION!$B$12,$P$10,B58,$Q$10,C58,$R$10,D58,$S$10,E58,$T$10,F58,$U$10,M58,\"\"),\"emptyTuple\")","v":{"$error":"#VALUE!"}}]
[49,null,null,null,null,null,null,null,null,null,null,null,0,null,null,{"$f":"IF(OR(B59<>\"\",C59<>\"\",D59<>\"\",E59<>\"\",F59<>\"\",M59<>\"\"),XBRLMapTuple($P$9,$Q$5,$Q$6,\"BMA\",CONFIGURATION!$B$1,\"bscr\",\"\",CONFIGURATION!$B$12,$P$10,B59,$Q$10,C59,$R$10,D59,$S$10,E59,$T$10,F59,$U$10,M59,\"\"),\"emptyTuple\")","v":{"$error":"#VALUE!"}}]
[50,null,null,null,null,null,null,null,null,null,null,null,0,null,null,{"$f":"IF(OR(B60<>\"\",C60<>\"\",D60<>\"\",E60<>\"\",F60<>\"\",M60<>\"\"),XBRLMapTuple($P$9,$Q$5,$Q$6,\"BMA\",CONFIGURATION!$B$1,\"bscr\",\"\",CONFIGURATION!$B$12,$P$10,B60,$Q$10,C60,$R$10,D60,$S$10,E60,$T$10,F60,$U$10,M60,\"\"),\"emptyTuple\")","v":{"$error":"#VALUE!"}}]
[51,null,null,null,null,null,null,null,null,null,null,null,0,null,null,{"$f":"IF(OR(B61<>\"\",C61<>\"\",D61<>\"\",E61<>\"\",F61<>\"\",M61<>\"\"),XBRLMapTuple($P$9,$Q$5,$Q$6,\"BMA\",CONFIGURATION!$B$1,\"bscr\",\"\",CONFIGURATION!$B$12,$P$10,B61,$Q$10,C61,$R$10,D61,$S$10,E61,$T$10,F61,$U$10,M61,\"\"),\"emptyTuple\")","v":{"$error":"#VALUE!"}}]
[52,null,null,null,null,null,null,null,null,null,null,null,0,null,null,{"$f":"IF(OR(B62<>\"\",C62<>\"\",D62<>\"\",E62<>\"\",F62<>\"\",M62<>\"\"),XBRLMapTuple($P$9,$Q$5,$Q$6,\"BMA\",CONFIGURATION!$B$1,\"bscr\",\"\",CONFIGURATION!$B$12,$P$10,B62,$Q$10,C62,$R$10,D62,$S$10,E62,$T$10,F62,$U$10,M62,\"\"),\"emptyTuple\")","v":{"$error":"#VALUE!"}}]
[53,null,null,null,null,null,null,null,null,null,null,null,0,null,null,{"$f":"IF(OR(B63<>\"\",C63<>\"\",D63<>\"\",E63<>\"\",F63<>\"\",M63<>\"\"),XBRLMapTuple($P$9,$Q$5,$Q$6,\"BMA\",CONFIGURATION!$B$1,\"bscr\",\"\",CONFIGURATION!$B$12,$P$10,B63,$Q$10,C63,$R$10,D63,$S$10,E63,$T$10,F63,$U$10,M63,\"\"),\"emptyTuple\")","v":{"$error":"#VALUE!"}}]
[54,null,null,null,null,null,null,null,null,null,null,null,0,null,null,{"$f":"IF(OR(B64<>\"\",C64<>\"\",D64<>\"\",E64<>\"\",F64<>\"\",M64<>\"\"),XBRLMapTuple($P$9,$Q$5,$Q$6,\"BMA\",CONFIGURATION!$B$1,\"bscr\",\"\",CONFIGURATION!$B$12,$P$10,B64,$Q$10,C64,$R$10,D64,$S$10,E64,$T$10,F64,$U$10,M64,\"\"),\"emptyTuple\")","v":{"$error":"#VALUE!"}}]
[55,null,null,null,null,null,null,null,null,null,null,null,0,null,null,{"$f":"IF(OR(B65<>\"\",C65<>\"\",D65<>\"\",E65<>\"\",F65<>\"\",M65<>\"\"),XBRLMapTuple($P$9,$Q$5,$Q$6,\"BMA\",CONFIGURATION!$B$1,\"bscr\",\"\",CONFIGURATION!$B$12,$P$10,B65,$Q$10,C65,$R$10,D65,$S$10,E65,$T$10,F65,$U$10,M65,\"\"),\"emptyTuple\")","v":{"$error":"#VALUE!"}}]
[56,null,null,null,null,null,null,null,null,null,null,null,0,null,null,{"$f":"IF(OR(B66<>\"\",C66<>\"\",D66<>\"\",E66<>\"\",F66<>\"\",M66<>\"\"),XBRLMapTuple($P$9,$Q$5,$Q$6,\"BMA\",CONFIGURATION!$B$1,\"bscr\",\"\",CONFIGURATION!$B$12,$P$10,B66,$Q$10,C66,$R$10,D66,$S$10,E66,$T$10,F66,$U$10,M66,\"\"),\"emptyTuple\")","v":{"$error":"#VALUE!"}}]
[57,null,null,null,null,null,null,null,null,null,null,null,0,null,null,{"$f":"IF(OR(B67<>\"\",C67<>\"\",D67<>\"\",E67<>\"\",F67<>\"\",M67<>\"\"),XBRLMapTuple($P$9,$Q$5,$Q$6,\"BMA\",CONFIGURATION!$B$1,\"bscr\",\"\",CONFIGURATION!$B$12,$P$10,B67,$Q$10,C67,$R$10,D67,$S$10,E67,$T$10,F67,$U$10,M67,\"\"),\"emptyTuple\")","v":{"$error":"#VALUE!"}}]
[58,null,null,null,null,null,null,null,null,null,null,null,0,null,null,{"$f":"IF(OR(B68<>\"\",C68<>\"\",D68<>\"\",E68<>\"\",F68<>\"\",M68<>\"\"),XBRLMapTuple($P$9,$Q$5,$Q$6,\"BMA\",CONFIGURATION!$B$1,\"bscr\",\"\",CONFIGURATION!$B$12,$P$10,B68,$Q$10,C68,$R$10,D68,$S$10,E68,$T$10,F68,$U$10,M68,\"\"),\"emptyTuple\")","v":{"$error":"#VALUE!"}}]
[59,null,null,null,null,null,null,null,null,null,null,null,0,null,null,{"$f":"IF(OR(B69<>\"\",C69<>\"\",D69<>\"\",E69<>\"\",F69<>\"\",M69<>\"\"),XBRLMapTuple($P$9,$Q$5,$Q$6,\"BMA\",CONFIGURATION!$B$1,\"bscr\",\"\",CONFIGURATION!$B$12,$P$10,B69,$Q$10,C69,$R$10,D69,$S$10,E69,$T$10,F69,$U$10,M69,\"\"),\"emptyTuple\")","v":{"$error":"#VALUE!"}}]
[60,null,null,null,null,null,null,null,null,null,null,null,0,null,null,{"$f":"IF(OR(B70<>\"\",C70<>\"\",D70<>\"\",E70<>\"\",F70<>\"\",M70<>\"\"),XBRLMapTuple($P$9,$Q$5,$Q$6,\"BMA\",CONFIGURATION!$B$1,\"bscr\",\"\",CONFIGURATION!$B$12,$P$10,B70,$Q$10,C70,$R$10,D70,$S$10,E70,$T$10,F70,$U$10,M70,\"\"),\"emptyTuple\")","v":{"$error":"#VALUE!"}}]
[61,null,null,null,null,null,null,null,null,null,null,null,0,null,null,{"$f":"IF(OR(B71<>\"\",C71<>\"\",D71<>\"\",E71<>\"\",F71<>\"\",M71<>\"\"),XBRLMapTuple($P$9,$Q$5,$Q$6,\"BMA\",CONFIGURATION!$B$1,\"bscr\",\"\",CONFIGURATION!$B$12,$P$10,B71,$Q$10,C71,$R$10,D71,$S$10,E71,$T$10,F71,$U$10,M71,\"\"),\"emptyTuple\")","v":{"$error":"#VALUE!"}}]
[62,null,null,null,null,null,null,null,null,null,null,null,0,null,null,{"$f":"IF(OR(B72<>\"\",C72<>\"\",D72<>\"\",E72<>\"\",F72<>\"\",M72<>\"\"),XBRLMapTuple($P$9,$Q$5,$Q$6,\"BMA\",CONFIGURATION!$B$1,\"bscr\",\"\",CONFIGURATION!$B$12,$P$10,B72,$Q$10,C72,$R$10,D72,$S$10,E72,$T$10,F72,$U$10,M72,\"\"),\"emptyTuple\")","v":{"$error":"#VALUE!"}}]
[63,null,null,null,null,null,null,null,null,null,null,null,0,null,null,{"$f":"IF(OR(B73<>\"\",C73<>\"\",D73<>\"\",E73<>\"\",F73<>\"\",M73<>\"\"),XBRLMapTuple($P$9,$Q$5,$Q$6,\"BMA\",CONFIGURATION!$B$1,\"bscr\",\"\",CONFIGURATION!$B$12,$P$10,B73,$Q$10,C73,$R$10,D73,$S$10,E73,$T$10,F73,$U$10,M73,\"\"),\"emptyTuple\")","v":{"$error":"#VALUE!"}}]
[64,null,null,null,null,null,null,null,null,null,null,null,0,null,null,{"$f":"IF(OR(B74<>\"\",C74<>\"\",D74<>\"\",E74<>\"\",F74<>\"\",M74<>\"\"),XBRLMapTuple($P$9,$Q$5,$Q$6,\"BMA\",CONFIGURATION!$B$1,\"bscr\",\"\",CONFIGURATION!$B$12,$P$10,B74,$Q$10,C74,$R$10,D74,$S$10,E74,$T$10,F74,$U$10,M74,\"\"),\"emptyTuple\")","v":{"$error":"#VALUE!"}}]
[65,null,null,null,null,null,null,null,null,null,null,null,{"$f":"I75*L75","v":0},null,null,{"$f":"IF(OR(B75<>\"\",C75<>\"\",D75<>\"\",E75<>\"\",F75<>\"\",M75<>\"\"),XBRLMapTuple($P$9,$Q$5,$Q$6,\"BMA\",CONFIGURATION!$B$1,\"bscr\",\"\",CONFIGURATION!$B$12,$P$10,B75,$Q$10,C75,$R$10,D75,$S$10,E75,$T$10,F75,$U$10,M75,\"\"),\"emptyTuple\")","v":{"$error":"#VALUE!"}}]
[66,null,null,null,null,null,null,null,null,null,null,null,0,null,null,{"$f":"IF(OR(B76<>\"\",C76<>\"\",D76<>\"\",E76<>\"\",F76<>\"\",M76<>\"\"),XBRLMapTuple($P$9,$Q$5,$Q$6,\"BMA\",CONFIGURATION!$B$1,\"bscr\",\"\",CONFIGURATION!$B$12,$P$10,B76,$Q$10,C76,$R$10,D76,$S$10,E76,$T$10,F76,$U$10,M76,\"\"),\"emptyTuple\")","v":{"$error":"#VALUE!"}}]
[67,null,null,null,null,null,null,null,null,null,null,null,0,null,null,{"$f":"IF(OR(B77<>\"\",C77<>\"\",D77<>\"\",E77<>\"\",F77<>\"\",M77<>\"\"),XBRLMapTuple($P$9,$Q$5,$Q$6,\"BMA\",CONFIGURATION!$B$1,\"bscr\",\"\",CONFIGURATION!$B$12,$P$10,B77,$Q$10,C77,$R$10,D77,$S$10,E77,$T$10,F77,$U$10,M77,\"\"),\"emptyTuple\")","v":{"$error":"#VALUE!"}}]
[68,null,null,null,null,null,null,null,null,null,null,null,0,null,null,{"$f":"IF(OR(B78<>\"\",C78<>\"\",D78<>\"\",E78<>\"\",F78<>\"\",M78<>\"\"),XBRLMapTuple($P$9,$Q$5,$Q$6,\"BMA\",CONFIGURATION!$B$1,\"bscr\",\"\",CONFIGURATION!$B$12,$P$10,B78,$Q$10,C78,$R$10,D78,$S$10,E78,$T$10,F78,$U$10,M78,\"\"),\"emptyTuple\")","v":{"$error":"#VALUE!"}}]
[69,null,null,null,null,null,null,null,null,null,null,null,0,null,null,{"$f":"IF(OR(B79<>\"\",C79<>\"\",D79<>\"\",E79<>\"\",F79<>\"\",M79<>\"\"),XBRLMapTuple($P$9,$Q$5,$Q$6,\"BMA\",CONFIGURATION!$B$1,\"bscr\",\"\",CONFIGURATION!$B$12,$P$10,B79,$Q$10,C79,$R$10,D79,$S$10,E79,$T$10,F79,$U$10,M79,\"\"),\"emptyTuple\")","v":{"$error":"#VALUE!"}}]
[70,null,null,null,null,null,null,null,null,null,null,null,0,null,null,{"$f":"IF(OR(B80<>\"\",C80<>\"\",D80<>\"\",E80<>\"\",F80<>\"\",M80<>\"\"),XBRLMapTuple($P$9,$Q$5,$Q$6,\"BMA\",CONFIGURATION!$B$1,\"bscr\",\"\",CONFIGURATION!$B$12,$P$10,B80,$Q$10,C80,$R$10,D80,$S$10,E80,$T$10,F80,$U$10,M80,\"\"),\"emptyTuple\")","v":{"$error":"#VALUE!"}}]
[71,null,null,null,null,null,null,null,null,null,null,null,0,null,null,{"$f":"IF(OR(B81<>\"\",C81<>\"\",D81<>\"\",E81<>\"\",F81<>\"\",M81<>\"\"),XBRLMapTuple($P$9,$Q$5,$Q$6,\"BMA\",CONFIGURATION!$B$1,\"bscr\",\"\",CONFIGURATION!$B$12,$P$10,B81,$Q$10,C81,$R$10,D81,$S$10,E81,$T$10,F81,$U$10,M81,\"\"),\"emptyTuple\")","v":{"$error":"#VALUE!"}}]
[72,null,null,null,null,null,null,null,null,null,null,null,0,null,null,{"$f":"IF(OR(B82<>\"\",C82<>\"\",D82<>\"\",E82<>\"\",F82<>\"\",M82<>\"\"),XBRLMapTuple($P$9,$Q$5,$Q$6,\"BMA\",CONFIGURATION!$B$1,\"bscr\",\"\",CONFIGURATION!$B$12,$P$10,B82,$Q$10,C82,$R$10,D82,$S$10,E82,$T$10,F82,$U$10,M82,\"\"),\"emptyTuple\")","v":{"$error":"#VALUE!"}}]
[73,null,null,null,null,null,null,null,null,null,null,null,0,null,null,{"$f":"IF(OR(B83<>\"\",C83<>\"\",D83<>\"\",E83<>\"\",F83<>\"\",M83<>\"\"),XBRLMapTuple($P$9,$Q$5,$Q$6,\"BMA\",CONFIGURATION!$B$1,\"bscr\",\"\",CONFIGURATION!$B$12,$P$10,B83,$Q$10,C83,$R$10,D83,$S$10,E83,$T$10,F83,$U$10,M83,\"\"),\"emptyTuple\")","v":{"$error":"#VALUE!"}}]
[74,null,null,null,null,null,null,null,null,null,null,null,0,null,null,{"$f":"IF(OR(B84<>\"\",C84<>\"\",D84<>\"\",E84<>\"\",F84<>\"\",M84<>\"\"),XBRLMapTuple($P$9,$Q$5,$Q$6,\"BMA\",CONFIGURATION!$B$1,\"bscr\",\"\",CONFIGURATION!$B$12,$P$10,B84,$Q$10,C84,$R$10,D84,$S$10,E84,$T$10,F84,$U$10,M84,\"\"),\"emptyTuple\")","v":{"$error":"#VALUE!"}}]
[75,null,null,null,null,null,null,null,null,null,null,null,0,null,null,{"$f":"IF(OR(B85<>\"\",C85<>\"\",D85<>\"\",E85<>\"\",F85<>\"\",M85<>\"\"),XBRLMapTuple($P$9,$Q$5,$Q$6,\"BMA\",CONFIGURATION!$B$1,\"bscr\",\"\",CONFIGURATION!$B$12,$P$10,B85,$Q$10,C85,$R$10,D85,$S$10,E85,$T$10,F85,$U$10,M85,\"\"),\"emptyTuple\")","v":{"$error":"#VALUE!"}}]
[76,null,null,null,null,null,null,null,null,null,null,null,0,null,null,{"$f":"IF(OR(B86<>\"\",C86<>\"\",D86<>\"\",E86<>\"\",F86<>\"\",M86<>\"\"),XBRLMapTuple($P$9,$Q$5,$Q$6,\"BMA\",CONFIGURATION!$B$1,\"bscr\",\"\",CONFIGURATION!$B$12,$P$10,B86,$Q$10,C86,$R$10,D86,$S$10,E86,$T$10,F86,$U$10,M86,\"\"),\"emptyTuple\")","v":{"$error":"#VALUE!"}}]
[77,null,null,null,null,null,null,null,null,null,null,null,0,null,null,{"$f":"IF(OR(B87<>\"\",C87<>\"\",D87<>\"\",E87<>\"\",F87<>\"\",M87<>\"\"),XBRLMapTuple($P$9,$Q$5,$Q$6,\"BMA\",CONFIGURATION!$B$1,\"bscr\",\"\",CONFIGURATION!$B$12,$P$10,B87,$Q$10,C87,$R$10,D87,$S$10,E87,$T$10,F87,$U$10,M87,\"\"),\"emptyTuple\")","v":{"$error":"#VALUE!"}}]
[78,null,null,null,null,null,null,null,null,null,null,null,0,null,null,{"$f":"IF(OR(B88<>\"\",C88<>\"\",D88<>\"\",E88<>\"\",F88<>\"\",M88<>\"\"),XBRLMapTuple($P$9,$Q$5,$Q$6,\"BMA\",CONFIGURATION!$B$1,\"bscr\",\"\",CONFIGURATION!$B$12,$P$10,B88,$Q$10,C88,$R$10,D88,$S$10,E88,$T$10,F88,$U$10,M88,\"\"),\"emptyTuple\")","v":{"$error":"#VALUE!"}}]
[79,null,null,null,null,null,null,null,null,null,null,null,0,null,null,{"$f":"IF(OR(B89<>\"\",C89<>\"\",D89<>\"\",E89<>\"\",F89<>\"\",M89<>\"\"),XBRLMapTuple($P$9,$Q$5,$Q$6,\"BMA\",CONFIGURATION!$B$1,\"bscr\",\"\",CONFIGURATION!$B$12,$P$10,B89,$Q$10,C89,$R$10,D89,$S$10,E89,$T$10,F89,$U$10,M89,\"\"),\"emptyTuple\")","v":{"$error":"#VALUE!"}}]
[80,null,null,null,null,null,null,null,null,null,null,null,0,null,null,{"$f":"IF(OR(B90<>\"\",C90<>\"\",D90<>\"\",E90<>\"\",F90<>\"\",M90<>\"\"),XBRLMapTuple($P$9,$Q$5,$Q$6,\"BMA\",CONFIGURATION!$B$1,\"bscr\",\"\",CONFIGURATION!$B$12,$P$10,B90,$Q$10,C90,$R$10,D90,$S$10,E90,$T$10,F90,$U$10,M90,\"\"),\"emptyTuple\")","v":{"$error":"#VALUE!"}}]
[81,null,null,null,null,null,null,null,null,null,null,null,0,null,null,{"$f":"IF(OR(B91<>\"\",C91<>\"\",D91<>\"\",E91<>\"\",F91<>\"\",M91<>\"\"),XBRLMapTuple($P$9,$Q$5,$Q$6,\"BMA\",CONFIGURATION!$B$1,\"bscr\",\"\",CONFIGURATION!$B$12,$P$10,B91,$Q$10,C91,$R$10,D91,$S$10,E91,$T$10,F91,$U$10,M91,\"\"),\"emptyTuple\")","v":{"$error":"#VALUE!"}}]
[82,null,null,null,null,null,null,null,null,null,null,null,0,null,null,{"$f":"IF(OR(B92<>\"\",C92<>\"\",D92<>\"\",E92<>\"\",F92<>\"\",M92<>\"\"),XBRLMapTuple($P$9,$Q$5,$Q$6,\"BMA\",CONFIGURATION!$B$1,\"bscr\",\"\",CONFIGURATION!$B$12,$P$10,B92,$Q$10,C92,$R$10,D92,$S$10,E92,$T$10,F92,$U$10,M92,\"\"),\"emptyTuple\")","v":{"$error":"#VALUE!"}}]
[83,null,null,null,null,null,null,null,null,null,null,null,0,null,null,{"$f":"IF(OR(B93<>\"\",C93<>\"\",D93<>\"\",E93<>\"\",F93<>\"\",M93<>\"\"),XBRLMapTuple($P$9,$Q$5,$Q$6,\"BMA\",CONFIGURATION!$B$1,\"bscr\",\"\",CONFIGURATION!$B$12,$P$10,B93,$Q$10,C93,$R$10,D93,$S$10,E93,$T$10,F93,$U$10,M93,\"\"),\"emptyTuple\")","v":{"$error":"#VALUE!"}}]
[84,null,null,null,null,null,null,null,null,null,null,null,0,null,null,{"$f":"IF(OR(B94<>\"\",C94<>\"\",D94<>\"\",E94<>\"\",F94<>\"\",M94<>\"\"),XBRLMapTuple($P$9,$Q$5,$Q$6,\"BMA\",CONFIGURATION!$B$1,\"bscr\",\"\",CONFIGURATION!$B$12,$P$10,B94,$Q$10,C94,$R$10,D94,$S$10,E94,$T$10,F94,$U$10,M94,\"\"),\"emptyTuple\")","v":{"$error":"#VALUE!"}}]
[85,null,null,null,null,null,null,null,null,null,null,null,0,null,null,{"$f":"IF(OR(B95<>\"\",C95<>\"\",D95<>\"\",E95<>\"\",F95<>\"\",M95<>\"\"),XBRLMapTuple($P$9,$Q$5,$Q$6,\"BMA\",CONFIGURATION!$B$1,\"bscr\",\"\",CONFIGURATION!$B$12,$P$10,B95,$Q$10,C95,$R$10,D95,$S$10,E95,$T$10,F95,$U$10,M95,\"\"),\"emptyTuple\")","v":{"$error":"#VALUE!"}}]
[86,null,null,null,null,null,null,null,null,null,null,null,0,null,null,{"$f":"IF(OR(B96<>\"\",C96<>\"\",D96<>\"\",E96<>\"\",F96<>\"\",M96<>\"\"),XBRLMapTuple($P$9,$Q$5,$Q$6,\"BMA\",CONFIGURATION!$B$1,\"bscr\",\"\",CONFIGURATION!$B$12,$P$10,B96,$Q$10,C96,$R$10,D96,$S$10,E96,$T$10,F96,$U$10,M96,\"\"),\"emptyTuple\")","v":{"$error":"#VALUE!"}}]
[87,null,null,null,null,null,null,null,null,null,null,null,0,null,null,{"$f":"IF(OR(B97<>\"\",C97<>\"\",D97<>\"\",E97<>\"\",F97<>\"\",M97<>\"\"),XBRLMapTuple($P$9,$Q$5,$Q$6,\"BMA\",CONFIGURATION!$B$1,\"bscr\",\"\",CONFIGURATION!$B$12,$P$10,B97,$Q$10,C97,$R$10,D97,$S$10,E97,$T$10,F97,$U$10,M97,\"\"),\"emptyTuple\")","v":{"$error":"#VALUE!"}}]
[88,null,null,null,null,null,null,null,null,null,null,null,0,null,null,{"$f":"IF(OR(B98<>\"\",C98<>\"\",D98<>\"\",E98<>\"\",F98<>\"\",M98<>\"\"),XBRLMapTuple($P$9,$Q$5,$Q$6,\"BMA\",CONFIGURATION!$B$1,\"bscr\",\"\",CONFIGURATION!$B$12,$P$10,B98,$Q$10,C98,$R$10,D98,$S$10,E98,$T$10,F98,$U$10,M98,\"\"),\"emptyTuple\")","v":{"$error":"#VALUE!"}}]
[89,null,null,null,null,null,null,null,null,null,null,null,0,null,null,{"$f":"IF(OR(B99<>\"\",C99<>\"\",D99<>\"\",E99<>\"\",F99<>\"\",M99<>\"\"),XBRLMapTuple($P$9,$Q$5,$Q$6,\"BMA\",CONFIGURATION!$B$1,\"bscr\",\"\",CONFIGURATION!$B$12,$P$10,B99,$Q$10,C99,$R$10,D99,$S$10,E99,$T$10,F99,$U$10,M99,\"\"),\"emptyTuple\")","v":{"$error":"#VALUE!"}}]
[90,null,null,null,null,null,null,null,null,null,null,null,0,null,null,{"$f":"IF(OR(B100<>\"\",C100<>\"\",D100<>\"\",E100<>\"\",F100<>\"\",M100<>\"\"),XBRLMapTuple($P$9,$Q$5,$Q$6,\"BMA\",CONFIGURATION!$B$1,\"bscr\",\"\",CONFIGURATION!$B$12,$P$10,B100,$Q$10,C100,$R$10,D100,$S$10,E100,$T$10,F100,$U$10,M100,\"\"),\"emptyTuple\")","v":{"$error":"#VALUE!"}}]
[91,null,null,null,null,null,null,null,null,null,null,null,0,null,null,{"$f":"IF(OR(B101<>\"\",C101<>\"\",D101<>\"\",E101<>\"\",F101<>\"\",M101<>\"\"),XBRLMapTuple($P$9,$Q$5,$Q$6,\"BMA\",CONFIGURATION!$B$1,\"bscr\",\"\",CONFIGURATION!$B$12,$P$10,B101,$Q$10,C101,$R$10,D101,$S$10,E101,$T$10,F101,$U$10,M101,\"\"),\"emptyTuple\")","v":{"$error":"#VALUE!"}}]
[92,null,null,null,null,null,null,null,null,null,null,null,0,null,null,{"$f":"IF(OR(B102<>\"\",C102<>\"\",D102<>\"\",E102<>\"\",F102<>\"\",M102<>\"\"),XBRLMapTuple($P$9,$Q$5,$Q$6,\"BMA\",CONFIGURATION!$B$1,\"bscr\",\"\",CONFIGURATION!$B$12,$P$10,B102,$Q$10,C102,$R$10,D102,$S$10,E102,$T$10,F102,$U$10,M102,\"\"),\"emptyTuple\")","v":{"$error":"#VALUE!"}}]
[93,null,null,null,null,null,null,null,null,null,null,null,0,null,null,{"$f":"IF(OR(B103<>\"\",C103<>\"\",D103<>\"\",E103<>\"\",F103<>\"\",M103<>\"\"),XBRLMapTuple($P$9,$Q$5,$Q$6,\"BMA\",CONFIGURATION!$B$1,\"bscr\",\"\",CONFIGURATION!$B$12,$P$10,B103,$Q$10,C103,$R$10,D103,$S$10,E103,$T$10,F103,$U$10,M103,\"\"),\"emptyTuple\")","v":{"$error":"#VALUE!"}}]
[94,null,null,null,null,null,null,null,null,null,null,null,0,null,null,{"$f":"IF(OR(B104<>\"\",C104<>\"\",D104<>\"\",E104<>\"\",F104<>\"\",M104<>\"\"),XBRLMapTuple($P$9,$Q$5,$Q$6,\"BMA\",CONFIGURATION!$B$1,\"bscr\",\"\",CONFIGURATION!$B$12,$P$10,B104,$Q$10,C104,$R$10,D104,$S$10,E104,$T$10,F104,$U$10,M104,\"\"),\"emptyTuple\")","v":{"$error":"#VALUE!"}}]
[95,null,null,null,null,null,null,null,null,null,null,null,0,null,null,{"$f":"IF(OR(B105<>\"\",C105<>\"\",D105<>\"\",E105<>\"\",F105<>\"\",M105<>\"\"),XBRLMapTuple($P$9,$Q$5,$Q$6,\"BMA\",CONFIGURATION!$B$1,\"bscr\",\"\",CONFIGURATION!$B$12,$P$10,B105,$Q$10,C105,$R$10,D105,$S$10,E105,$T$10,F105,$U$10,M105,\"\"),\"emptyTuple\")","v":{"$error":"#VALUE!"}}]
[96,null,null,null,null,null,null,null,null,null,null,null,0,null,null,{"$f":"IF(OR(B106<>\"\",C106<>\"\",D106<>\"\",E106<>\"\",F106<>\"\",M106<>\"\"),XBRLMapTuple($P$9,$Q$5,$Q$6,\"BMA\",CONFIGURATION!$B$1,\"bscr\",\"\",CONFIGURATION!$B$12,$P$10,B106,$Q$10,C106,$R$10,D106,$S$10,E106,$T$10,F106,$U$10,M106,\"\"),\"emptyTuple\")","v":{"$error":"#VALUE!"}}]
[97,null,null,null,null,null,null,null,null,null,null,null,0,null,null,{"$f":"IF(OR(B107<>\"\",C107<>\"\",D107<>\"\",E107<>\"\",F107<>\"\",M107<>\"\"),XBRLMapTuple($P$9,$Q$5,$Q$6,\"BMA\",CONFIGURATION!$B$1,\"bscr\",\"\",CONFIGURATION!$B$12,$P$10,B107,$Q$10,C107,$R$10,D107,$S$10,E107,$T$10,F107,$U$10,M107,\"\"),\"emptyTuple\")","v":{"$error":"#VALUE!"}}]
[98,null,null,null,null,null,null,null,null,null,null,null,0,null,null,{"$f":"IF(OR(B108<>\"\",C108<>\"\",D108<>\"\",E108<>\"\",F108<>\"\",M108<>\"\"),XBRLMapTuple($P$9,$Q$5,$Q$6,\"BMA\",CONFIGURATION!$B$1,\"bscr\",\"\",CONFIGURATION!$B$12,$P$10,B108,$Q$10,C108,$R$10,D108,$S$10,E108,$T$10,F108,$U$10,M108,\"\"),\"emptyTuple\")","v":{"$error":"#VALUE!"}}]
[99,null,null,null,null,null,null,null,null,null,null,null,0,null,null,{"$f":"IF(OR(B109<>\"\",C109<>\"\",D109<>\"\",E109<>\"\",F109<>\"\",M109<>\"\"),XBRLMapTuple($P$9,$Q$5,$Q$6,\"BMA\",CONFIGURATION!$B$1,\"bscr\",\"\",CONFIGURATION!$B$12,$P$10,B109,$Q$10,C109,$R$10,D109,$S$10,E109,$T$10,F109,$U$10,M109,\"\"),\"emptyTuple\")","v":{"$error":"#VALUE!"}}]
[100,null,null,null,null,null,null,null,null,null,null,null,0,null,null,{"$f":"IF(OR(B110<>\"\",C110<>\"\",D110<>\"\",E110<>\"\",F110<>\"\",M110<>\"\"),XBRLMapTuple($P$9,$Q$5,$Q$6,\"BMA\",CONFIGURATION!$B$1,\"bscr\",\"\",CONFIGURATION!$B$12,$P$10,B110,$Q$10,C110,$R$10,D110,$S$10,E110,$T$10,F110,$U$10,M110,\"\"),\"emptyTuple\")","v":{"$error":"#VALUE!"}}]
[101,null,null,null,null,null,null,null,null,null,null,null,0,null,null,{"$f":"IF(OR(B111<>\"\",C111<>\"\",D111<>\"\",E111<>\"\",F111<>\"\",M111<>\"\"),XBRLMapTuple($P$9,$Q$5,$Q$6,\"BMA\",CONFIGURATION!$B$1,\"bscr\",\"\",CONFIGURATION!$B$12,$P$10,B111,$Q$10,C111,$R$10,D111,$S$10,E111,$T$10,F111,$U$10,M111,\"\"),\"emptyTuple\")","v":{"$error":"#VALUE!"}}]
[102,null,null,null,null,null,null,null,null,null,null,null,0,null,null,{"$f":"IF(OR(B112<>\"\",C112<>\"\",D112<>\"\",E112<>\"\",F112<>\"\",M112<>\"\"),XBRLMapTuple($P$9,$Q$5,$Q$6,\"BMA\",CONFIGURATION!$B$1,\"bscr\",\"\",CONFIGURATION!$B$12,$P$10,B112,$Q$10,C112,$R$10,D112,$S$10,E112,$T$10,F112,$U$10,M112,\"\"),\"emptyTuple\")","v":{"$error":"#VALUE!"}}]
[103,null,null,null,null,null,null,null,null,null,null,null,0,null,null,{"$f":"IF(OR(B113<>\"\",C113<>\"\",D113<>\"\",E113<>\"\",F113<>\"\",M113<>\"\"),XBRLMapTuple($P$9,$Q$5,$Q$6,\"BMA\",CONFIGURATION!$B$1,\"bscr\",\"\",CONFIGURATION!$B$12,$P$10,B113,$Q$10,C113,$R$10,D113,$S$10,E113,$T$10,F113,$U$10,M113,\"\"),\"emptyTuple\")","v":{"$error":"#VALUE!"}}]
[104,null,null,null,null,null,null,null,null,null,null,null,0,null,null,{"$f":"IF(OR(B114<>\"\",C114<>\"\",D114<>\"\",E114<>\"\",F114<>\"\",M114<>\"\"),XBRLMapTuple($P$9,$Q$5,$Q$6,\"BMA\",CONFIGURATION!$B$1,\"bscr\",\"\",CONFIGURATION!$B$12,$P$10,B114,$Q$10,C114,$R$10,D114,$S$10,E114,$T$10,F114,$U$10,M114,\"\"),\"emptyTuple\")","v":{"$error":"#VALUE!"}}]
[105,null,null,null,null,null,null,null,null,null,null,null,0,null,null,{"$f":"IF(OR(B115<>\"\",C115<>\"\",D115<>\"\",E115<>\"\",F115<>\"\",M115<>\"\"),XBRLMapTuple($P$9,$Q$5,$Q$6,\"BMA\",CONFIGURATION!$B$1,\"bscr\",\"\",CONFIGURATION!$B$12,$P$10,B115,$Q$10,C115,$R$10,D115,$S$10,E115,$T$10,F115,$U$10,M115,\"\"),\"emptyTuple\")","v":{"$error":"#VALUE!"}}]
[106,null,null,null,null,null,null,null,null,null,null,null,0,null,null,{"$f":"IF(OR(B116<>\"\",C116<>\"\",D116<>\"\",E116<>\"\",F116<>\"\",M116<>\"\"),XBRLMapTuple($P$9,$Q$5,$Q$6,\"BMA\",CONFIGURATION!$B$1,\"bscr\",\"\",CONFIGURATION!$B$12,$P$10,B116,$Q$10,C116,$R$10,D116,$S$10,E116,$T$10,F116,$U$10,M116,\"\"),\"emptyTuple\")","v":{"$error":"#VALUE!"}}]
[107,null,null,null,null,null,null,null,null,null,null,null,0,null,null,{"$f":"IF(OR(B117<>\"\",C117<>\"\",D117<>\"\",E117<>\"\",F117<>\"\",M117<>\"\"),XBRLMapTuple($P$9,$Q$5,$Q$6,\"BMA\",CONFIGURATION!$B$1,\"bscr\",\"\",CONFIGURATION!$B$12,$P$10,B117,$Q$10,C117,$R$10,D117,$S$10,E117,$T$10,F117,$U$10,M117,\"\"),\"emptyTuple\")","v":{"$error":"#VALUE!"}}]
[108,null,null,null,null,null,null,null,null,null,null,null,0,null,null,{"$f":"IF(OR(B118<>\"\",C118<>\"\",D118<>\"\",E118<>\"\",F118<>\"\",M118<>\"\"),XBRLMapTuple($P$9,$Q$5,$Q$6,\"BMA\",CONFIGURATION!$B$1,\"bscr\",\"\",CONFIGURATION!$B$12,$P$10,B118,$Q$10,C118,$R$10,D118,$S$10,E118,$T$10,F118,$U$10,M118,\"\"),\"emptyTuple\")","v":{"$error":"#VALUE!"}}]
[109,null,null,null,null,null,null,null,null,null,null,null,0,null,null,{"$f":"IF(OR(B119<>\"\",C119<>\"\",D119<>\"\",E119<>\"\",F119<>\"\",M119<>\"\"),XBRLMapTuple($P$9,$Q$5,$Q$6,\"BMA\",CONFIGURATION!$B$1,\"bscr\",\"\",CONFIGURATION!$B$12,$P$10,B119,$Q$10,C119,$R$10,D119,$S$10,E119,$T$10,F119,$U$10,M119,\"\"),\"emptyTuple\")","v":{"$error":"#VALUE!"}}]
[110,null,null,null,null,null,null,null,null,null,null,null,0,null,null,{"$f":"IF(OR(B120<>\"\",C120<>\"\",D120<>\"\",E120<>\"\",F120<>\"\",M120<>\"\"),XBRLMapTuple($P$9,$Q$5,$Q$6,\"BMA\",CONFIGURATION!$B$1,\"bscr\",\"\",CONFIGURATION!$B$12,$P$10,B120,$Q$10,C120,$R$10,D120,$S$10,E120,$T$10,F120,$U$10,M120,\"\"),\"emptyTuple\")","v":{"$error":"#VALUE!"}}]
[111,null,null,null,null,null,null,null,null,null,null,null,0,null,null,{"$f":"IF(OR(B121<>\"\",C121<>\"\",D121<>\"\",E121<>\"\",F121<>\"\",M121<>\"\"),XBRLMapTuple($P$9,$Q$5,$Q$6,\"BMA\",CONFIGURATION!$B$1,\"bscr\",\"\",CONFIGURATION!$B$12,$P$10,B121,$Q$10,C121,$R$10,D121,$S$10,E121,$T$10,F121,$U$10,M121,\"\"),\"emptyTuple\")","v":{"$error":"#VALUE!"}}]
[112,null,null,null,null,null,null,null,null,null,null,null,0,null,null,{"$f":"IF(OR(B122<>\"\",C122<>\"\",D122<>\"\",E122<>\"\",F122<>\"\",M122<>\"\"),XBRLMapTuple($P$9,$Q$5,$Q$6,\"BMA\",CONFIGURATION!$B$1,\"bscr\",\"\",CONFIGURATION!$B$12,$P$10,B122,$Q$10,C122,$R$10,D122,$S$10,E122,$T$10,F122,$U$10,M122,\"\"),\"emptyTuple\")","v":{"$error":"#VALUE!"}}]
[113,null,null,null,null,null,null,null,null,null,null,null,0,null,null,{"$f":"IF(OR(B123<>\"\",C123<>\"\",D123<>\"\",E123<>\"\",F123<>\"\",M123<>\"\"),XBRLMapTuple($P$9,$Q$5,$Q$6,\"BMA\",CONFIGURATION!$B$1,\"bscr\",\"\",CONFIGURATION!$B$12,$P$10,B123,$Q$10,C123,$R$10,D123,$S$10,E123,$T$10,F123,$U$10,M123,\"\"),\"emptyTuple\")","v":{"$error":"#VALUE!"}}]
[114,null,null,null,null,null,null,null,null,null,null,null,0,null,null,{"$f":"IF(OR(B124<>\"\",C124<>\"\",D124<>\"\",E124<>\"\",F124<>\"\",M124<>\"\"),XBRLMapTuple($P$9,$Q$5,$Q$6,\"BMA\",CONFIGURATION!$B$1,\"bscr\",\"\",CONFIGURATION!$B$12,$P$10,B124,$Q$10,C124,$R$10,D124,$S$10,E124,$T$10,F124,$U$10,M124,\"\"),\"emptyTuple\")","v":{"$error":"#VALUE!"}}]
[115,null,null,null,null,null,null,null,null,null,null,null,0,null,null,{"$f":"IF(OR(B125<>\"\",C125<>\"\",D125<>\"\",E125<>\"\",F125<>\"\",M125<>\"\"),XBRLMapTuple($P$9,$Q$5,$Q$6,\"BMA\",CONFIGURATION!$B$1,\"bscr\",\"\",CONFIGURATION!$B$12,$P$10,B125,$Q$10,C125,$R$10,D125,$S$10,E125,$T$10,F125,$U$10,M125,\"\"),\"emptyTuple\")","v":{"$error":"#VALUE!"}}]
[116,null,null,null,null,null,null,null,null,null,null,null,0,null,null,{"$f":"IF(OR(B126<>\"\",C126<>\"\",D126<>\"\",E126<>\"\",F126<>\"\",M126<>\"\"),XBRLMapTuple($P$9,$Q$5,$Q$6,\"BMA\",CONFIGURATION!$B$1,\"bscr\",\"\",CONFIGURATION!$B$12,$P$10,B126,$Q$10,C126,$R$10,D126,$S$10,E126,$T$10,F126,$U$10,M126,\"\"),\"emptyTuple\")","v":{"$error":"#VALUE!"}}]
[117,null,null,null,null,null,null,null,null,null,null,null,0,null,null,{"$f":"IF(OR(B127<>\"\",C127<>\"\",D127<>\"\",E127<>\"\",F127<>\"\",M127<>\"\"),XBRLMapTuple($P$9,$Q$5,$Q$6,\"BMA\",CONFIGURATION!$B$1,\"bscr\",\"\",CONFIGURATION!$B$12,$P$10,B127,$Q$10,C127,$R$10,D127,$S$10,E127,$T$10,F127,$U$10,M127,\"\"),\"emptyTuple\")","v":{"$error":"#VALUE!"}}]
[118,null,null,null,null,null,null,null,null,null,null,null,0,null,null,{"$f":"IF(OR(B128<>\"\",C128<>\"\",D128<>\"\",E128<>\"\",F128<>\"\",M128<>\"\"),XBRLMapTuple($P$9,$Q$5,$Q$6,\"BMA\",CONFIGURATION!$B$1,\"bscr\",\"\",CONFIGURATION!$B$12,$P$10,B128,$Q$10,C128,$R$10,D128,$S$10,E128,$T$10,F128,$U$10,M128,\"\"),\"emptyTuple\")","v":{"$error":"#VALUE!"}}]
[119,null,null,null,null,null,null,null,null,null,null,null,0,null,null,{"$f":"IF(OR(B129<>\"\",C129<>\"\",D129<>\"\",E129<>\"\",F129<>\"\",M129<>\"\"),XBRLMapTuple($P$9,$Q$5,$Q$6,\"BMA\",CONFIGURATION!$B$1,\"bscr\",\"\",CONFIGURATION!$B$12,$P$10,B129,$Q$10,C129,$R$10,D129,$S$10,E129,$T$10,F129,$U$10,M129,\"\"),\"emptyTuple\")","v":{"$error":"#VALUE!"}}]
[120,null,null,null,null,null,null,null,null,null,null,null,0,null,null,{"$f":"IF(OR(B130<>\"\",C130<>\"\",D130<>\"\",E130<>\"\",F130<>\"\",M130<>\"\"),XBRLMapTuple($P$9,$Q$5,$Q$6,\"BMA\",CONFIGURATION!$B$1,\"bscr\",\"\",CONFIGURATION!$B$12,$P$10,B130,$Q$10,C130,$R$10,D130,$S$10,E130,$T$10,F130,$U$10,M130,\"\"),\"emptyTuple\")","v":{"$error":"#VALUE!"}}]
[121,null,null,null,null,null,null,null,null,null,null,null,0,null,null,{"$f":"IF(OR(B131<>\"\",C131<>\"\",D131<>\"\",E131<>\"\",F131<>\"\",M131<>\"\"),XBRLMapTuple($P$9,$Q$5,$Q$6,\"BMA\",CONFIGURATION!$B$1,\"bscr\",\"\",CONFIGURATION!$B$12,$P$10,B131,$Q$10,C131,$R$10,D131,$S$10,E131,$T$10,F131,$U$10,M131,\"\"),\"emptyTuple\")","v":{"$error":"#VALUE!"}}]
[122,null,null,null,null,null,null,null,null,null,null,null,0,null,null,{"$f":"IF(OR(B132<>\"\",C132<>\"\",D132<>\"\",E132<>\"\",F132<>\"\",M132<>\"\"),XBRLMapTuple($P$9,$Q$5,$Q$6,\"BMA\",CONFIGURATION!$B$1,\"bscr\",\"\",CONFIGURATION!$B$12,$P$10,B132,$Q$10,C132,$R$10,D132,$S$10,E132,$T$10,F132,$U$10,M132,\"\"),\"emptyTuple\")","v":{"$error":"#VALUE!"}}]
[123,null,null,null,null,null,null,null,null,null,null,null,0,null,null,{"$f":"IF(OR(B133<>\"\",C133<>\"\",D133<>\"\",E133<>\"\",F133<>\"\",M133<>\"\"),XBRLMapTuple($P$9,$Q$5,$Q$6,\"BMA\",CONFIGURATION!$B$1,\"bscr\",\"\",CONFIGURATION!$B$12,$P$10,B133,$Q$10,C133,$R$10,D133,$S$10,E133,$T$10,F133,$U$10,M133,\"\"),\"emptyTuple\")","v":{"$error":"#VALUE!"}}]
[124,null,null,null,null,null,null,null,null,null,null,null,0,null,null,{"$f":"IF(OR(B134<>\"\",C134<>\"\",D134<>\"\",E134<>\"\",F134<>\"\",M134<>\"\"),XBRLMapTuple($P$9,$Q$5,$Q$6,\"BMA\",CONFIGURATION!$B$1,\"bscr\",\"\",CONFIGURATION!$B$12,$P$10,B134,$Q$10,C134,$R$10,D134,$S$10,E134,$T$10,F134,$U$10,M134,\"\"),\"emptyTuple\")","v":{"$error":"#VALUE!"}}]
[125,null,null,null,null,null,null,null,null,null,null,null,0,null,null,{"$f":"IF(OR(B135<>\"\",C135<>\"\",D135<>\"\",E135<>\"\",F135<>\"\",M135<>\"\"),XBRLMapTuple($P$9,$Q$5,$Q$6,\"BMA\",CONFIGURATION!$B$1,\"bscr\",\"\",CONFIGURATION!$B$12,$P$10,B135,$Q$10,C135,$R$10,D135,$S$10,E135,$T$10,F135,$U$10,M135,\"\"),\"emptyTuple\")","v":{"$error":"#VALUE!"}}]
[126,null,null,null,null,null,null,null,null,null,null,null,0,null,null,{"$f":"IF(OR(B136<>\"\",C136<>\"\",D136<>\"\",E136<>\"\",F136<>\"\",M136<>\"\"),XBRLMapTuple($P$9,$Q$5,$Q$6,\"BMA\",CONFIGURATION!$B$1,\"bscr\",\"\",CONFIGURATION!$B$12,$P$10,B136,$Q$10,C136,$R$10,D136,$S$10,E136,$T$10,F136,$U$10,M136,\"\"),\"emptyTuple\")","v":{"$error":"#VALUE!"}}]
[127,null,null,null,null,null,null,null,null,null,null,null,0,null,null,{"$f":"IF(OR(B137<>\"\",C137<>\"\",D137<>\"\",E137<>\"\",F137<>\"\",M137<>\"\"),XBRLMapTuple($P$9,$Q$5,$Q$6,\"BMA\",CONFIGURATION!$B$1,\"bscr\",\"\",CONFIGURATION!$B$12,$P$10,B137,$Q$10,C137,$R$10,D137,$S$10,E137,$T$10,F137,$U$10,M137,\"\"),\"emptyTuple\")","v":{"$error":"#VALUE!"}}]
[128,null,null,null,null,null,null,null,null,null,null,null,0,null,null,{"$f":"IF(OR(B138<>\"\",C138<>\"\",D138<>\"\",E138<>\"\",F138<>\"\",M138<>\"\"),XBRLMapTuple($P$9,$Q$5,$Q$6,\"BMA\",CONFIGURATION!$B$1,\"bscr\",\"\",CONFIGURATION!$B$12,$P$10,B138,$Q$10,C138,$R$10,D138,$S$10,E138,$T$10,F138,$U$10,M138,\"\"),\"emptyTuple\")","v":{"$error":"#VALUE!"}}]
[129,null,null,null,null,null,null,null,null,null,null,null,{"$f":"I139*L139","v":0},null,null,{"$f":"IF(OR(B139<>\"\",C139<>\"\",D139<>\"\",E139<>\"\",F139<>\"\",M139<>\"\"),XBRLMapTuple($P$9,$Q$5,$Q$6,\"BMA\",CONFIGURATION!$B$1,\"bscr\",\"\",CONFIGURATION!$B$12,$P$10,B139,$Q$10,C139,$R$10,D139,$S$10,E139,$T$10,F139,$U$10,M139,\"\"),\"emptyTuple\")","v":{"$error":"#VALUE!"}}]
[130,null,null,null,null,null,null,null,null,null,null,null,0,null,null,{"$f":"IF(OR(B140<>\"\",C140<>\"\",D140<>\"\",E140<>\"\",F140<>\"\",M140<>\"\"),XBRLMapTuple($P$9,$Q$5,$Q$6,\"BMA\",CONFIGURATION!$B$1,\"bscr\",\"\",CONFIGURATION!$B$12,$P$10,B140,$Q$10,C140,$R$10,D140,$S$10,E140,$T$10,F140,$U$10,M140,\"\"),\"emptyTuple\")","v":{"$error":"#VALUE!"}}]
[131,null,null,null,null,null,null,null,null,null,null,null,0,null,null,{"$f":"IF(OR(B141<>\"\",C141<>\"\",D141<>\"\",E141<>\"\",F141<>\"\",M141<>\"\"),XBRLMapTuple($P$9,$Q$5,$Q$6,\"BMA\",CONFIGURATION!$B$1,\"bscr\",\"\",CONFIGURATION!$B$12,$P$10,B141,$Q$10,C141,$R$10,D141,$S$10,E141,$T$10,F141,$U$10,M141,\"\"),\"emptyTuple\")","v":{"$error":"#VALUE!"}}]
[132,null,null,null,null,null,null,null,null,null,null,null,0,null,null,{"$f":"IF(OR(B142<>\"\",C142<>\"\",D142<>\"\",E142<>\"\",F142<>\"\",M142<>\"\"),XBRLMapTuple($P$9,$Q$5,$Q$6,\"BMA\",CONFIGURATION!$B$1,\"bscr\",\"\",CONFIGURATION!$B$12,$P$10,B142,$Q$10,C142,$R$10,D142,$S$10,E142,$T$10,F142,$U$10,M142,\"\"),\"emptyTuple\")","v":{"$error":"#VALUE!"}}]
[133,null,null,null,null,null,null,null,null,null,null,null,0,null,null,{"$f":"IF(OR(B143<>\"\",C143<>\"\",D143<>\"\",E143<>\"\",F143<>\"\",M143<>\"\"),XBRLMapTuple($P$9,$Q$5,$Q$6,\"BMA\",CONFIGURATION!$B$1,\"bscr\",\"\",CONFIGURATION!$B$12,$P$10,B143,$Q$10,C143,$R$10,D143,$S$10,E143,$T$10,F143,$U$10,M143,\"\"),\"emptyTuple\")","v":{"$error":"#VALUE!"}}]
[134,null,null,null,null,null,null,null,null,null,null,null,0,null,null,{"$f":"IF(OR(B144<>\"\",C144<>\"\",D144<>\"\",E144<>\"\",F144<>\"\",M144<>\"\"),XBRLMapTuple($P$9,$Q$5,$Q$6,\"BMA\",CONFIGURATION!$B$1,\"bscr\",\"\",CONFIGURATION!$B$12,$P$10,B144,$Q$10,C144,$R$10,D144,$S$10,E144,$T$10,F144,$U$10,M144,\"\"),\"emptyTuple\")","v":{"$error":"#VALUE!"}}]
[135,null,null,null,null,null,null,null,null,null,null,null,0,null,null,{"$f":"IF(OR(B145<>\"\",C145<>\"\",D145<>\"\",E145<>\"\",F145<>\"\",M145<>\"\"),XBRLMapTuple($P$9,$Q$5,$Q$6,\"BMA\",CONFIGURATION!$B$1,\"bscr\",\"\",CONFIGURATION!$B$12,$P$10,B145,$Q$10,C145,$R$10,D145,$S$10,E145,$T$10,F145,$U$10,M145,\"\"),\"emptyTuple\")","v":{"$error":"#VALUE!"}}]
[136,null,null,null,null,null,null,null,null,null,null,null,0,null,null,{"$f":"IF(OR(B146<>\"\",C146<>\"\",D146<>\"\",E146<>\"\",F146<>\"\",M146<>\"\"),XBRLMapTuple($P$9,$Q$5,$Q$6,\"BMA\",CONFIGURATION!$B$1,\"bscr\",\"\",CONFIGURATION!$B$12,$P$10,B146,$Q$10,C146,$R$10,D146,$S$10,E146,$T$10,F146,$U$10,M146,\"\"),\"emptyTuple\")","v":{"$error":"#VALUE!"}}]
[137,null,null,null,null,null,null,null,null,null,null,null,0,null,null,{"$f":"IF(OR(B147<>\"\",C147<>\"\",D147<>\"\",E147<>\"\",F147<>\"\",M147<>\"\"),XBRLMapTuple($P$9,$Q$5,$Q$6,\"BMA\",CONFIGURATION!$B$1,\"bscr\",\"\",CONFIGURATION!$B$12,$P$10,B147,$Q$10,C147,$R$10,D147,$S$10,E147,$T$10,F147,$U$10,M147,\"\"),\"emptyTuple\")","v":{"$error":"#VALUE!"}}]
[138,null,null,null,null,null,null,null,null,null,null,null,0,null,null,{"$f":"IF(OR(B148<>\"\",C148<>\"\",D148<>\"\",E148<>\"\",F148<>\"\",M148<>\"\"),XBRLMapTuple($P$9,$Q$5,$Q$6,\"BMA\",CONFIGURATION!$B$1,\"bscr\",\"\",CONFIGURATION!$B$12,$P$10,B148,$Q$10,C148,$R$10,D148,$S$10,E148,$T$10,F148,$U$10,M148,\"\"),\"emptyTuple\")","v":{"$error":"#VALUE!"}}]
[139,null,null,null,null,null,null,null,null,null,null,null,0,null,null,{"$f":"IF(OR(B149<>\"\",C149<>\"\",D149<>\"\",E149<>\"\",F149<>\"\",M149<>\"\"),XBRLMapTuple($P$9,$Q$5,$Q$6,\"BMA\",CONFIGURATION!$B$1,\"bscr\",\"\",CONFIGURATION!$B$12,$P$10,B149,$Q$10,C149,$R$10,D149,$S$10,E149,$T$10,F149,$U$10,M149,\"\"),\"emptyTuple\")","v":{"$error":"#VALUE!"}}]
[140,null,null,null,null,null,null,null,null,null,null,null,0,null,null,{"$f":"IF(OR(B150<>\"\",C150<>\"\",D150<>\"\",E150<>\"\",F150<>\"\",M150<>\"\"),XBRLMapTuple($P$9,$Q$5,$Q$6,\"BMA\",CONFIGURATION!$B$1,\"bscr\",\"\",CONFIGURATION!$B$12,$P$10,B150,$Q$10,C150,$R$10,D150,$S$10,E150,$T$10,F150,$U$10,M150,\"\"),\"emptyTuple\")","v":{"$error":"#VALUE!"}}]
[141,null,null,null,null,null,null,null,null,null,null,null,0,null,null,{"$f":"IF(OR(B151<>\"\",C151<>\"\",D151<>\"\",E151<>\"\",F151<>\"\",M151<>\"\"),XBRLMapTuple($P$9,$Q$5,$Q$6,\"BMA\",CONFIGURATION!$B$1,\"bscr\",\"\",CONFIGURATION!$B$12,$P$10,B151,$Q$10,C151,$R$10,D151,$S$10,E151,$T$10,F151,$U$10,M151,\"\"),\"emptyTuple\")","v":{"$error":"#VALUE!"}}]
[142,null,null,null,null,null,null,null,null,null,null,null,0,null,null,{"$f":"IF(OR(B152<>\"\",C152<>\"\",D152<>\"\",E152<>\"\",F152<>\"\",M152<>\"\"),XBRLMapTuple($P$9,$Q$5,$Q$6,\"BMA\",CONFIGURATION!$B$1,\"bscr\",\"\",CONFIGURATION!$B$12,$P$10,B152,$Q$10,C152,$R$10,D152,$S$10,E152,$T$10,F152,$U$10,M152,\"\"),\"emptyTuple\")","v":{"$error":"#VALUE!"}}]
[143,null,null,null,null,null,null,null,null,null,null,null,0,null,null,{"$f":"IF(OR(B153<>\"\",C153<>\"\",D153<>\"\",E153<>\"\",F153<>\"\",M153<>\"\"),XBRLMapTuple($P$9,$Q$5,$Q$6,\"BMA\",CONFIGURATION!$B$1,\"bscr\",\"\",CONFIGURATION!$B$12,$P$10,B153,$Q$10,C153,$R$10,D153,$S$10,E153,$T$10,F153,$U$10,M153,\"\"),\"emptyTuple\")","v":{"$error":"#VALUE!"}}]
[144,null,null,null,null,null,null,null,null,null,null,null,0,null,null,{"$f":"IF(OR(B154<>\"\",C154<>\"\",D154<>\"\",E154<>\"\",F154<>\"\",M154<>\"\"),XBRLMapTuple($P$9,$Q$5,$Q$6,\"BMA\",CONFIGURATION!$B$1,\"bscr\",\"\",CONFIGURATION!$B$12,$P$10,B154,$Q$10,C154,$R$10,D154,$S$10,E154,$T$10,F154,$U$10,M154,\"\"),\"emptyTuple\")","v":{"$error":"#VALUE!"}}]
[145,null,null,null,null,null,null,null,null,null,null,null,0,null,null,{"$f":"IF(OR(B155<>\"\",C155<>\"\",D155<>\"\",E155<>\"\",F155<>\"\",M155<>\"\"),XBRLMapTuple($P$9,$Q$5,$Q$6,\"BMA\",CONFIGURATION!$B$1,\"bscr\",\"\",CONFIGURATION!$B$12,$P$10,B155,$Q$10,C155,$R$10,D155,$S$10,E155,$T$10,F155,$U$10,M155,\"\"),\"emptyTuple\")","v":{"$error":"#VALUE!"}}]
[146,null,null,null,null,null,null,null,null,null,null,null,0,null,null,{"$f":"IF(OR(B156<>\"\",C156<>\"\",D156<>\"\",E156<>\"\",F156<>\"\",M156<>\"\"),XBRLMapTuple($P$9,$Q$5,$Q$6,\"BMA\",CONFIGURATION!$B$1,\"bscr\",\"\",CONFIGURATION!$B$12,$P$10,B156,$Q$10,C156,$R$10,D156,$S$10,E156,$T$10,F156,$U$10,M156,\"\"),\"emptyTuple\")","v":{"$error":"#VALUE!"}}]
[147,null,null,null,null,null,null,null,null,null,null,null,0,null,null,{"$f":"IF(OR(B157<>\"\",C157<>\"\",D157<>\"\",E157<>\"\",F157<>\"\",M157<>\"\"),XBRLMapTuple($P$9,$Q$5,$Q$6,\"BMA\",CONFIGURATION!$B$1,\"bscr\",\"\",CONFIGURATION!$B$12,$P$10,B157,$Q$10,C157,$R$10,D157,$S$10,E157,$T$10,F157,$U$10,M157,\"\"),\"emptyTuple\")","v":{"$error":"#VALUE!"}}]
[148,null,null,null,null,null,null,null,null,null,null,null,0,null,null,{"$f":"IF(OR(B158<>\"\",C158<>\"\",D158<>\"\",E158<>\"\",F158<>\"\",M158<>\"\"),XBRLMapTuple($P$9,$Q$5,$Q$6,\"BMA\",CONFIGURATION!$B$1,\"bscr\",\"\",CONFIGURATION!$B$12,$P$10,B158,$Q$10,C158,$R$10,D158,$S$10,E158,$T$10,F158,$U$10,M158,\"\"),\"emptyTuple\")","v":{"$error":"#VALUE!"}}]
[149,null,null,null,null,null,null,null,null,null,null,null,0,null,null,{"$f":"IF(OR(B159<>\"\",C159<>\"\",D159<>\"\",E159<>\"\",F159<>\"\",M159<>\"\"),XBRLMapTuple($P$9,$Q$5,$Q$6,\"BMA\",CONFIGURATION!$B$1,\"bscr\",\"\",CONFIGURATION!$B$12,$P$10,B159,$Q$10,C159,$R$10,D159,$S$10,E159,$T$10,F159,$U$10,M159,\"\"),\"emptyTuple\")","v":{"$error":"#VALUE!"}}]
[150,null,null,null,null,null,null,null,null,null,null,null,0,null,null,{"$f":"IF(OR(B160<>\"\",C160<>\"\",D160<>\"\",E160<>\"\",F160<>\"\",M160<>\"\"),XBRLMapTuple($P$9,$Q$5,$Q$6,\"BMA\",CONFIGURATION!$B$1,\"bscr\",\"\",CONFIGURATION!$B$12,$P$10,B160,$Q$10,C160,$R$10,D160,$S$10,E160,$T$10,F160,$U$10,M160,\"\"),\"emptyTuple\")","v":{"$error":"#VALUE!"}}]
[151,null,null,null,null,null,null,null,null,null,null,null,0,null,null,{"$f":"IF(OR(B161<>\"\",C161<>\"\",D161<>\"\",E161<>\"\",F161<>\"\",M161<>\"\"),XBRLMapTuple($P$9,$Q$5,$Q$6,\"BMA\",CONFIGURATION!$B$1,\"bscr\",\"\",CONFIGURATION!$B$12,$P$10,B161,$Q$10,C161,$R$10,D161,$S$10,E161,$T$10,F161,$U$10,M161,\"\"),\"emptyTuple\")","v":{"$error":"#VALUE!"}}]
[152,null,null,null,null,null,null,null,null,null,null,null,0,null,null,{"$f":"IF(OR(B162<>\"\",C162<>\"\",D162<>\"\",E162<>\"\",F162<>\"\",M162<>\"\"),XBRLMapTuple($P$9,$Q$5,$Q$6,\"BMA\",CONFIGURATION!$B$1,\"bscr\",\"\",CONFIGURATION!$B$12,$P$10,B162,$Q$10,C162,$R$10,D162,$S$10,E162,$T$10,F162,$U$10,M162,\"\"),\"emptyTuple\")","v":{"$error":"#VALUE!"}}]
[153,null,null,null,null,null,null,null,null,null,null,null,0,null,null,{"$f":"IF(OR(B163<>\"\",C163<>\"\",D163<>\"\",E163<>\"\",F163<>\"\",M163<>\"\"),XBRLMapTuple($P$9,$Q$5,$Q$6,\"BMA\",CONFIGURATION!$B$1,\"bscr\",\"\",CONFIGURATION!$B$12,$P$10,B163,$Q$10,C163,$R$10,D163,$S$10,E163,$T$10,F163,$U$10,M163,\"\"),\"emptyTuple\")","v":{"$error":"#VALUE!"}}]
[154,null,null,null,null,null,null,null,null,null,null,null,0,null,null,{"$f":"IF(OR(B164<>\"\",C164<>\"\",D164<>\"\",E164<>\"\",F164<>\"\",M164<>\"\"),XBRLMapTuple($P$9,$Q$5,$Q$6,\"BMA\",CONFIGURATION!$B$1,\"bscr\",\"\",CONFIGURATION!$B$12,$P$10,B164,$Q$10,C164,$R$10,D164,$S$10,E164,$T$10,F164,$U$10,M164,\"\"),\"emptyTuple\")","v":{"$error":"#VALUE!"}}]
[155,null,null,null,null,null,null,null,null,null,null,null,0,null,null,{"$f":"IF(OR(B165<>\"\",C165<>\"\",D165<>\"\",E165<>\"\",F165<>\"\",M165<>\"\"),XBRLMapTuple($P$9,$Q$5,$Q$6,\"BMA\",CONFIGURATION!$B$1,\"bscr\",\"\",CONFIGURATION!$B$12,$P$10,B165,$Q$10,C165,$R$10,D165,$S$10,E165,$T$10,F165,$U$10,M165,\"\"),\"emptyTuple\")","v":{"$error":"#VALUE!"}}]
[156,null,null,null,null,null,null,null,null,null,null,null,0,null,null,{"$f":"IF(OR(B166<>\"\",C166<>\"\",D166<>\"\",E166<>\"\",F166<>\"\",M166<>\"\"),XBRLMapTuple($P$9,$Q$5,$Q$6,\"BMA\",CONFIGURATION!$B$1,\"bscr\",\"\",CONFIGURATION!$B$12,$P$10,B166,$Q$10,C166,$R$10,D166,$S$10,E166,$T$10,F166,$U$10,M166,\"\"),\"emptyTuple\")","v":{"$error":"#VALUE!"}}]
[157,null,null,null,null,null,null,null,null,null,null,null,0,null,null,{"$f":"IF(OR(B167<>\"\",C167<>\"\",D167<>\"\",E167<>\"\",F167<>\"\",M167<>\"\"),XBRLMapTuple($P$9,$Q$5,$Q$6,\"BMA\",CONFIGURATION!$B$1,\"bscr\",\"\",CONFIGURATION!$B$12,$P$10,B167,$Q$10,C167,$R$10,D167,$S$10,E167,$T$10,F167,$U$10,M167,\"\"),\"emptyTuple\")","v":{"$error":"#VALUE!"}}]
[158,null,null,null,null,null,null,null,null,null,null,null,0,null,null,{"$f":"IF(OR(B168<>\"\",C168<>\"\",D168<>\"\",E168<>\"\",F168<>\"\",M168<>\"\"),XBRLMapTuple($P$9,$Q$5,$Q$6,\"BMA\",CONFIGURATION!$B$1,\"bscr\",\"\",CONFIGURATION!$B$12,$P$10,B168,$Q$10,C168,$R$10,D168,$S$10,E168,$T$10,F168,$U$10,M168,\"\"),\"emptyTuple\")","v":{"$error":"#VALUE!"}}]
[159,null,null,null,null,null,null,null,null,null,null,null,0,null,null,{"$f":"IF(OR(B169<>\"\",C169<>\"\",D169<>\"\",E169<>\"\",F169<>\"\",M169<>\"\"),XBRLMapTuple($P$9,$Q$5,$Q$6,\"BMA\",CONFIGURATION!$B$1,\"bscr\",\"\",CONFIGURATION!$B$12,$P$10,B169,$Q$10,C169,$R$10,D169,$S$10,E169,$T$10,F169,$U$10,M169,\"\"),\"emptyTuple\")","v":{"$error":"#VALUE!"}}]
[160,null,null,null,null,null,null,null,null,null,null,null,0,null,null,{"$f":"IF(OR(B170<>\"\",C170<>\"\",D170<>\"\",E170<>\"\",F170<>\"\",M170<>\"\"),XBRLMapTuple($P$9,$Q$5,$Q$6,\"BMA\",CONFIGURATION!$B$1,\"bscr\",\"\",CONFIGURATION!$B$12,$P$10,B170,$Q$10,C170,$R$10,D170,$S$10,E170,$T$10,F170,$U$10,M170,\"\"),\"emptyTuple\")","v":{"$error":"#VALUE!"}}]
[161,null,null,null,null,null,null,null,null,null,null,null,0,null,null,{"$f":"IF(OR(B171<>\"\",C171<>\"\",D171<>\"\",E171<>\"\",F171<>\"\",M171<>\"\"),XBRLMapTuple($P$9,$Q$5,$Q$6,\"BMA\",CONFIGURATION!$B$1,\"bscr\",\"\",CONFIGURATION!$B$12,$P$10,B171,$Q$10,C171,$R$10,D171,$S$10,E171,$T$10,F171,$U$10,M171,\"\"),\"emptyTuple\")","v":{"$error":"#VALUE!"}}]
[162,null,null,null,null,null,null,null,null,null,null,null,0,null,null,{"$f":"IF(OR(B172<>\"\",C172<>\"\",D172<>\"\",E172<>\"\",F172<>\"\",M172<>\"\"),XBRLMapTuple($P$9,$Q$5,$Q$6,\"BMA\",CONFIGURATION!$B$1,\"bscr\",\"\",CONFIGURATION!$B$12,$P$10,B172,$Q$10,C172,$R$10,D172,$S$10,E172,$T$10,F172,$U$10,M172,\"\"),\"emptyTuple\")","v":{"$error":"#VALUE!"}}]
[163,null,null,null,null,null,null,null,null,null,null,null,0,null,null,{"$f":"IF(OR(B173<>\"\",C173<>\"\",D173<>\"\",E173<>\"\",F173<>\"\",M173<>\"\"),XBRLMapTuple($P$9,$Q$5,$Q$6,\"BMA\",CONFIGURATION!$B$1,\"bscr\",\"\",CONFIGURATION!$B$12,$P$10,B173,$Q$10,C173,$R$10,D173,$S$10,E173,$T$10,F173,$U$10,M173,\"\"),\"emptyTuple\")","v":{"$error":"#VALUE!"}}]
[164,null,null,null,null,null,null,null,null,null,null,null,0,null,null,{"$f":"IF(OR(B174<>\"\",C174<>\"\",D174<>\"\",E174<>\"\",F174<>\"\",M174<>\"\"),XBRLMapTuple($P$9,$Q$5,$Q$6,\"BMA\",CONFIGURATION!$B$1,\"bscr\",\"\",CONFIGURATION!$B$12,$P$10,B174,$Q$10,C174,$R$10,D174,$S$10,E174,$T$10,F174,$U$10,M174,\"\"),\"emptyTuple\")","v":{"$error":"#VALUE!"}}]
[165,null,null,null,null,null,null,null,null,null,null,null,0,null,null,{"$f":"IF(OR(B175<>\"\",C175<>\"\",D175<>\"\",E175<>\"\",F175<>\"\",M175<>\"\"),XBRLMapTuple($P$9,$Q$5,$Q$6,\"BMA\",CONFIGURATION!$B$1,\"bscr\",\"\",CONFIGURATION!$B$12,$P$10,B175,$Q$10,C175,$R$10,D175,$S$10,E175,$T$10,F175,$U$10,M175,\"\"),\"emptyTuple\")","v":{"$error":"#VALUE!"}}]
[166,null,null,null,null,null,null,null,null,null,null,null,0,null,null,{"$f":"IF(OR(B176<>\"\",C176<>\"\",D176<>\"\",E176<>\"\",F176<>\"\",M176<>\"\"),XBRLMapTuple($P$9,$Q$5,$Q$6,\"BMA\",CONFIGURATION!$B$1,\"bscr\",\"\",CONFIGURATION!$B$12,$P$10,B176,$Q$10,C176,$R$10,D176,$S$10,E176,$T$10,F176,$U$10,M176,\"\"),\"emptyTuple\")","v":{"$error":"#VALUE!"}}]
[167,null,null,null,null,null,null,null,null,null,null,null,0,null,null,{"$f":"IF(OR(B177<>\"\",C177<>\"\",D177<>\"\",E177<>\"\",F177<>\"\",M177<>\"\"),XBRLMapTuple($P$9,$Q$5,$Q$6,\"BMA\",CONFIGURATION!$B$1,\"bscr\",\"\",CONFIGURATION!$B$12,$P$10,B177,$Q$10,C177,$R$10,D177,$S$10,E177,$T$10,F177,$U$10,M177,\"\"),\"emptyTuple\")","v":{"$error":"#VALUE!"}}]
[168,null,null,null,null,null,null,null,null,null,null,null,0,null,null,{"$f":"IF(OR(B178<>\"\",C178<>\"\",D178<>\"\",E178<>\"\",F178<>\"\",M178<>\"\"),XBRLMapTuple($P$9,$Q$5,$Q$6,\"BMA\",CONFIGURATION!$B$1,\"bscr\",\"\",CONFIGURATION!$B$12,$P$10,B178,$Q$10,C178,$R$10,D178,$S$10,E178,$T$10,F178,$U$10,M178,\"\"),\"emptyTuple\")","v":{"$error":"#VALUE!"}}]
[169,null,null,null,null,null,null,null,null,null,null,null,0,null,null,{"$f":"IF(OR(B179<>\"\",C179<>\"\",D179<>\"\",E179<>\"\",F179<>\"\",M179<>\"\"),XBRLMapTuple($P$9,$Q$5,$Q$6,\"BMA\",CONFIGURATION!$B$1,\"bscr\",\"\",CONFIGURATION!$B$12,$P$10,B179,$Q$10,C179,$R$10,D179,$S$10,E179,$T$10,F179,$U$10,M179,\"\"),\"emptyTuple\")","v":{"$error":"#VALUE!"}}]
[170,null,null,null,null,null,null,null,null,null,null,null,0,null,null,{"$f":"IF(OR(B180<>\"\",C180<>\"\",D180<>\"\",E180<>\"\",F180<>\"\",M180<>\"\"),XBRLMapTuple($P$9,$Q$5,$Q$6,\"BMA\",CONFIGURATION!$B$1,\"bscr\",\"\",CONFIGURATION!$B$12,$P$10,B180,$Q$10,C180,$R$10,D180,$S$10,E180,$T$10,F180,$U$10,M180,\"\"),\"emptyTuple\")","v":{"$error":"#VALUE!"}}]
[171,null,null,null,null,null,null,null,null,null,null,null,0,null,null,{"$f":"IF(OR(B181<>\"\",C181<>\"\",D181<>\"\",E181<>\"\",F181<>\"\",M181<>\"\"),XBRLMapTuple($P$9,$Q$5,$Q$6,\"BMA\",CONFIGURATION!$B$1,\"bscr\",\"\",CONFIGURATION!$B$12,$P$10,B181,$Q$10,C181,$R$10,D181,$S$10,E181,$T$10,F181,$U$10,M181,\"\"),\"emptyTuple\")","v":{"$error":"#VALUE!"}}]
[172,null,null,null,null,null,null,null,null,null,null,null,0,null,null,{"$f":"IF(OR(B182<>\"\",C182<>\"\",D182<>\"\",E182<>\"\",F182<>\"\",M182<>\"\"),XBRLMapTuple($P$9,$Q$5,$Q$6,\"BMA\",CONFIGURATION!$B$1,\"bscr\",\"\",CONFIGURATION!$B$12,$P$10,B182,$Q$10,C182,$R$10,D182,$S$10,E182,$T$10,F182,$U$10,M182,\"\"),\"emptyTuple\")","v":{"$error":"#VALUE!"}}]
[173,null,null,null,null,null,null,null,null,null,null,null,0,null,null,{"$f":"IF(OR(B183<>\"\",C183<>\"\",D183<>\"\",E183<>\"\",F183<>\"\",M183<>\"\"),XBRLMapTuple($P$9,$Q$5,$Q$6,\"BMA\",CONFIGURATION!$B$1,\"bscr\",\"\",CONFIGURATION!$B$12,$P$10,B183,$Q$10,C183,$R$10,D183,$S$10,E183,$T$10,F183,$U$10,M183,\"\"),\"emptyTuple\")","v":{"$error":"#VALUE!"}}]
[174,null,null,null,null,null,null,null,null,null,null,null,0,null,null,{"$f":"IF(OR(B184<>\"\",C184<>\"\",D184<>\"\",E184<>\"\",F184<>\"\",M184<>\"\"),XBRLMapTuple($P$9,$Q$5,$Q$6,\"BMA\",CONFIGURATION!$B$1,\"bscr\",\"\",CONFIGURATION!$B$12,$P$10,B184,$Q$10,C184,$R$10,D184,$S$10,E184,$T$10,F184,$U$10,M184,\"\"),\"emptyTuple\")","v":{"$error":"#VALUE!"}}]
[175,null,null,null,null,null,null,null,null,null,null,null,0,null,null,{"$f":"IF(OR(B185<>\"\",C185<>\"\",D185<>\"\",E185<>\"\",F185<>\"\",M185<>\"\"),XBRLMapTuple($P$9,$Q$5,$Q$6,\"BMA\",CONFIGURATION!$B$1,\"bscr\",\"\",CONFIGURATION!$B$12,$P$10,B185,$Q$10,C185,$R$10,D185,$S$10,E185,$T$10,F185,$U$10,M185,\"\"),\"emptyTuple\")","v":{"$error":"#VALUE!"}}]
[176,null,null,null,null,null,null,null,null,null,null,null,0,null,null,{"$f":"IF(OR(B186<>\"\",C186<>\"\",D186<>\"\",E186<>\"\",F186<>\"\",M186<>\"\"),XBRLMapTuple($P$9,$Q$5,$Q$6,\"BMA\",CONFIGURATION!$B$1,\"bscr\",\"\",CONFIGURATION!$B$12,$P$10,B186,$Q$10,C186,$R$10,D186,$S$10,E186,$T$10,F186,$U$10,M186,\"\"),\"emptyTuple\")","v":{"$error":"#VALUE!"}}]
[177,null,null,null,null,null,null,null,null,null,null,null,0,null,null,{"$f":"IF(OR(B187<>\"\",C187<>\"\",D187<>\"\",E187<>\"\",F187<>\"\",M187<>\"\"),XBRLMapTuple($P$9,$Q$5,$Q$6,\"BMA\",CONFIGURATION!$B$1,\"bscr\",\"\",CONFIGURATION!$B$12,$P$10,B187,$Q$10,C187,$R$10,D187,$S$10,E187,$T$10,F187,$U$10,M187,\"\"),\"emptyTuple\")","v":{"$error":"#VALUE!"}}]
[178,null,null,null,null,null,null,null,null,null,null,null,0,null,null,{"$f":"IF(OR(B188<>\"\",C188<>\"\",D188<>\"\",E188<>\"\",F188<>\"\",M188<>\"\"),XBRLMapTuple($P$9,$Q$5,$Q$6,\"BMA\",CONFIGURATION!$B$1,\"bscr\",\"\",CONFIGURATION!$B$12,$P$10,B188,$Q$10,C188,$R$10,D188,$S$10,E188,$T$10,F188,$U$10,M188,\"\"),\"emptyTuple\")","v":{"$error":"#VALUE!"}}]
[179,null,null,null,null,null,null,null,null,null,null,null,0,null,null,{"$f":"IF(OR(B189<>\"\",C189<>\"\",D189<>\"\",E189<>\"\",F189<>\"\",M189<>\"\"),XBRLMapTuple($P$9,$Q$5,$Q$6,\"BMA\",CONFIGURATION!$B$1,\"bscr\",\"\",CONFIGURATION!$B$12,$P$10,B189,$Q$10,C189,$R$10,D189,$S$10,E189,$T$10,F189,$U$10,M189,\"\"),\"emptyTuple\")","v":{"$error":"#VALUE!"}}]
[180,null,null,null,null,null,null,null,null,null,null,null,0,null,null,{"$f":"IF(OR(B190<>\"\",C190<>\"\",D190<>\"\",E190<>\"\",F190<>\"\",M190<>\"\"),XBRLMapTuple($P$9,$Q$5,$Q$6,\"BMA\",CONFIGURATION!$B$1,\"bscr\",\"\",CONFIGURATION!$B$12,$P$10,B190,$Q$10,C190,$R$10,D190,$S$10,E190,$T$10,F190,$U$10,M190,\"\"),\"emptyTuple\")","v":{"$error":"#VALUE!"}}]
[181,null,null,null,null,null,null,null,null,null,null,null,0,null,null,{"$f":"IF(OR(B191<>\"\",C191<>\"\",D191<>\"\",E191<>\"\",F191<>\"\",M191<>\"\"),XBRLMapTuple($P$9,$Q$5,$Q$6,\"BMA\",CONFIGURATION!$B$1,\"bscr\",\"\",CONFIGURATION!$B$12,$P$10,B191,$Q$10,C191,$R$10,D191,$S$10,E191,$T$10,F191,$U$10,M191,\"\"),\"emptyTuple\")","v":{"$error":"#VALUE!"}}]
[182,null,null,null,null,null,null,null,null,null,null,null,0,null,null,{"$f":"IF(OR(B192<>\"\",C192<>\"\",D192<>\"\",E192<>\"\",F192<>\"\",M192<>\"\"),XBRLMapTuple($P$9,$Q$5,$Q$6,\"BMA\",CONFIGURATION!$B$1,\"bscr\",\"\",CONFIGURATION!$B$12,$P$10,B192,$Q$10,C192,$R$10,D192,$S$10,E192,$T$10,F192,$U$10,M192,\"\"),\"emptyTuple\")","v":{"$error":"#VALUE!"}}]
[183,null,null,null,null,null,null,null,null,null,null,null,0,null,null,{"$f":"IF(OR(B193<>\"\",C193<>\"\",D193<>\"\",E193<>\"\",F193<>\"\",M193<>\"\"),XBRLMapTuple($P$9,$Q$5,$Q$6,\"BMA\",CONFIGURATION!$B$1,\"bscr\",\"\",CONFIGURATION!$B$12,$P$10,B193,$Q$10,C193,$R$10,D193,$S$10,E193,$T$10,F193,$U$10,M193,\"\"),\"emptyTuple\")","v":{"$error":"#VALUE!"}}]
[184,null,null,null,null,null,null,null,null,null,null,null,0,null,null,{"$f":"IF(OR(B194<>\"\",C194<>\"\",D194<>\"\",E194<>\"\",F194<>\"\",M194<>\"\"),XBRLMapTuple($P$9,$Q$5,$Q$6,\"BMA\",CONFIGURATION!$B$1,\"bscr\",\"\",CONFIGURATION!$B$12,$P$10,B194,$Q$10,C194,$R$10,D194,$S$10,E194,$T$10,F194,$U$10,M194,\"\"),\"emptyTuple\")","v":{"$error":"#VALUE!"}}]
[185,null,null,null,null,null,null,null,null,null,null,null,0,null,null,{"$f":"IF(OR(B195<>\"\",C195<>\"\",D195<>\"\",E195<>\"\",F195<>\"\",M195<>\"\"),XBRLMapTuple($P$9,$Q$5,$Q$6,\"BMA\",CONFIGURATION!$B$1,\"bscr\",\"\",CONFIGURATION!$B$12,$P$10,B195,$Q$10,C195,$R$10,D195,$S$10,E195,$T$10,F195,$U$10,M195,\"\"),\"emptyTuple\")","v":{"$error":"#VALUE!"}}]
[186,null,null,null,null,null,null,null,null,null,null,null,0,null,null,{"$f":"IF(OR(B196<>\"\",C196<>\"\",D196<>\"\",E196<>\"\",F196<>\"\",M196<>\"\"),XBRLMapTuple($P$9,$Q$5,$Q$6,\"BMA\",CONFIGURATION!$B$1,\"bscr\",\"\",CONFIGURATION!$B$12,$P$10,B196,$Q$10,C196,$R$10,D196,$S$10,E196,$T$10,F196,$U$10,M196,\"\"),\"emptyTuple\")","v":{"$error":"#VALUE!"}}]
[187,null,null,null,null,null,null,null,null,null,null,null,0,null,null,{"$f":"IF(OR(B197<>\"\",C197<>\"\",D197<>\"\",E197<>\"\",F197<>\"\",M197<>\"\"),XBRLMapTuple($P$9,$Q$5,$Q$6,\"BMA\",CONFIGURATION!$B$1,\"bscr\",\"\",CONFIGURATION!$B$12,$P$10,B197,$Q$10,C197,$R$10,D197,$S$10,E197,$T$10,F197,$U$10,M197,\"\"),\"emptyTuple\")","v":{"$error":"#VALUE!"}}]
[188,null,null,null,null,null,null,null,null,null,null,null,0,null,null,{"$f":"IF(OR(B198<>\"\",C198<>\"\",D198<>\"\",E198<>\"\",F198<>\"\",M198<>\"\"),XBRLMapTuple($P$9,$Q$5,$Q$6,\"BMA\",CONFIGURATION!$B$1,\"bscr\",\"\",CONFIGURATION!$B$12,$P$10,B198,$Q$10,C198,$R$10,D198,$S$10,E198,$T$10,F198,$U$10,M198,\"\"),\"emptyTuple\")","v":{"$error":"#VALUE!"}}]
[189,null,null,null,null,null,null,null,null,null,null,null,0,null,null,{"$f":"IF(OR(B199<>\"\",C199<>\"\",D199<>\"\",E199<>\"\",F199<>\"\",M199<>\"\"),XBRLMapTuple($P$9,$Q$5,$Q$6,\"BMA\",CONFIGURATION!$B$1,\"bscr\",\"\",CONFIGURATION!$B$12,$P$10,B199,$Q$10,C199,$R$10,D199,$S$10,E199,$T$10,F199,$U$10,M199,\"\"),\"emptyTuple\")","v":{"$error":"#VALUE!"}}]
[190,null,null,null,null,null,null,null,null,null,null,null,0,null,null,{"$f":"IF(OR(B200<>\"\",C200<>\"\",D200<>\"\",E200<>\"\",F200<>\"\",M200<>\"\"),XBRLMapTuple($P$9,$Q$5,$Q$6,\"BMA\",CONFIGURATION!$B$1,\"bscr\",\"\",CONFIGURATION!$B$12,$P$10,B200,$Q$10,C200,$R$10,D200,$S$10,E200,$T$10,F200,$U$10,M200,\"\"),\"emptyTuple\")","v":{"$error":"#VALUE!"}}]
[191,null,null,null,null,null,null,null,null,null,null,null,0,null,null,{"$f":"IF(OR(B201<>\"\",C201<>\"\",D201<>\"\",E201<>\"\",F201<>\"\",M201<>\"\"),XBRLMapTuple($P$9,$Q$5,$Q$6,\"BMA\",CONFIGURATION!$B$1,\"bscr\",\"\",CONFIGURATION!$B$12,$P$10,B201,$Q$10,C201,$R$10,D201,$S$10,E201,$T$10,F201,$U$10,M201,\"\"),\"emptyTuple\")","v":{"$error":"#VALUE!"}}]
[192,null,null,null,null,null,null,null,null,null,null,null,0,null,null,{"$f":"IF(OR(B202<>\"\",C202<>\"\",D202<>\"\",E202<>\"\",F202<>\"\",M202<>\"\"),XBRLMapTuple($P$9,$Q$5,$Q$6,\"BMA\",CONFIGURATION!$B$1,\"bscr\",\"\",CONFIGURATION!$B$12,$P$10,B202,$Q$10,C202,$R$10,D202,$S$10,E202,$T$10,F202,$U$10,M202,\"\"),\"emptyTuple\")","v":{"$error":"#VALUE!"}}]
[193,null,null,null,null,null,null,null,null,null,null,null,{"$f":"I203*L203","v":0},null,null,{"$f":"IF(OR(B203<>\"\",C203<>\"\",D203<>\"\",E203<>\"\",F203<>\"\",M203<>\"\"),XBRLMapTuple($P$9,$Q$5,$Q$6,\"BMA\",CONFIGURATION!$B$1,\"bscr\",\"\",CONFIGURATION!$B$12,$P$10,B203,$Q$10,C203,$R$10,D203,$S$10,E203,$T$10,F203,$U$10,M203,\"\"),\"emptyTuple\")","v":{"$error":"#VALUE!"}}]
[194,null,null,null,null,null,null,null,null,null,null,null,0,null,null,{"$f":"IF(OR(B204<>\"\",C204<>\"\",D204<>\"\",E204<>\"\",F204<>\"\",M204<>\"\"),XBRLMapTuple($P$9,$Q$5,$Q$6,\"BMA\",CONFIGURATION!$B$1,\"bscr\",\"\",CONFIGURATION!$B$12,$P$10,B204,$Q$10,C204,$R$10,D204,$S$10,E204,$T$10,F204,$U$10,M204,\"\"),\"emptyTuple\")","v":{"$error":"#VALUE!"}}]
[195,null,null,null,null,null,null,null,null,null,null,null,0,null,null,{"$f":"IF(OR(B205<>\"\",C205<>\"\",D205<>\"\",E205<>\"\",F205<>\"\",M205<>\"\"),XBRLMapTuple($P$9,$Q$5,$Q$6,\"BMA\",CONFIGURATION!$B$1,\"bscr\",\"\",CONFIGURATION!$B$12,$P$10,B205,$Q$10,C205,$R$10,D205,$S$10,E205,$T$10,F205,$U$10,M205,\"\"),\"emptyTuple\")","v":{"$error":"#VALUE!"}}]
[196,null,null,null,null,null,null,null,null,null,null,null,0,null,null,{"$f":"IF(OR(B206<>\"\",C206<>\"\",D206<>\"\",E206<>\"\",F206<>\"\",M206<>\"\"),XBRLMapTuple($P$9,$Q$5,$Q$6,\"BMA\",CONFIGURATION!$B$1,\"bscr\",\"\",CONFIGURATION!$B$12,$P$10,B206,$Q$10,C206,$R$10,D206,$S$10,E206,$T$10,F206,$U$10,M206,\"\"),\"emptyTuple\")","v":{"$error":"#VALUE!"}}]
[197,null,null,null,null,null,null,null,null,null,null,null,0,null,null,{"$f":"IF(OR(B207<>\"\",C207<>\"\",D207<>\"\",E207<>\"\",F207<>\"\",M207<>\"\"),XBRLMapTuple($P$9,$Q$5,$Q$6,\"BMA\",CONFIGURATION!$B$1,\"bscr\",\"\",CONFIGURATION!$B$12,$P$10,B207,$Q$10,C207,$R$10,D207,$S$10,E207,$T$10,F207,$U$10,M207,\"\"),\"emptyTuple\")","v":{"$error":"#VALUE!"}}]
[198,null,null,null,null,null,null,null,null,null,null,null,0,null,null,{"$f":"IF(OR(B208<>\"\",C208<>\"\",D208<>\"\",E208<>\"\",F208<>\"\",M208<>\"\"),XBRLMapTuple($P$9,$Q$5,$Q$6,\"BMA\",CONFIGURATION!$B$1,\"bscr\",\"\",CONFIGURATION!$B$12,$P$10,B208,$Q$10,C208,$R$10,D208,$S$10,E208,$T$10,F208,$U$10,M208,\"\"),\"emptyTuple\")","v":{"$error":"#VALUE!"}}]
[199,null,null,null,null,null,null,null,null,null,null,null,0,null,null,{"$f":"IF(OR(B209<>\"\",C209<>\"\",D209<>\"\",E209<>\"\",F209<>\"\",M209<>\"\"),XBRLMapTuple($P$9,$Q$5,$Q$6,\"BMA\",CONFIGURATION!$B$1,\"bscr\",\"\",CONFIGURATION!$B$12,$P$10,B209,$Q$10,C209,$R$10,D209,$S$10,E209,$T$10,F209,$U$10,M209,\"\"),\"emptyTuple\")","v":{"$error":"#VALUE!"}}]
[200,null,null,null,null,null,null,null,null,null,null,null,{"$f":"I210*L210","v":0},null,null,{"$f":"IF(OR(B210<>\"\",C210<>\"\",D210<>\"\",E210<>\"\",F210<>\"\",M210<>\"\"),XBRLMapTuple($P$9,$Q$5,$Q$6,\"BMA\",CONFIGURATION!$B$1,\"bscr\",\"\",CONFIGURATION!$B$12,$P$10,B210,$Q$10,C210,$R$10,D210,$S$10,E210,$T$10,F210,$U$10,M210,\"\"),\"emptyTuple\")","v":{"$error":"#VALUE!"}}]
[null,null,null,null,null,null,null,null,null,{"$f":"SUM(J11:J210)","v":0},{"$f":"SUM(K11:K210)","v":0},null,{"$f":"SUM(M11:M210)","v":0},null,null,"brrt_TotalAvailableCapitalAndSurplus",{"$f":"XBRLMap(F211,P211,$Q$5,$Q$6,CONFIGURATION!$B$10,\"BMA\",CONFIGURATION!$B$1,\"bscr\",CONFIGURATION!$B$12)","v":{"$error":"#VALUE!"}}]
[]
[]
[]
[]
[null,"bma_ScheduleOfEligibleCapitalAdditionalDetails_DescriptionOfCapitalInstrument","bma_ScheduleOfEligibleCapitalAdditionalDetails_DateOfIssue","bma_ScheduleOfEligibleCapitalAdditionalDetails_MaturityDateasApplicable","bma_ScheduleOfEligibleCapitalAdditionalDetails_DateApprovedByTheAuthority","bma_ScheduleOfEligibleCapitalAdditionalDetails_ValueOfCapitalInstrument",null,null,null,null,null,null,"bma_ScheduleOfEligibleCapitalAdditionalDetails_Tier"]

{"sheet":"Schedule XVII","index":60,"n_rows":219,"n_cols":18,"rows_kept":219,"cut":false,"hidden":false,"merged":[[3,2,3,3]]}
[null,"SCHEDULE OF SOLVENCY",null,null,null,null,null,null,null,{"$f":"HYPERLINK(\"#'Index'!A1\",\"Return to Index\")","v":"Return to Index"}]
[]
[null,{"$f":"'Insurer Information'!C7","v":"Enter Company Name"}]
[null,"For the year ending",{"$f":"TEXT('Insurer Information'!C3,\"mmmm dd, yyyy\")","v":"December 31, 2019"},null,null,null,null,null,null,"SCHEDULE XVII"]
[null,{"$f":"\"expressed in\"& IF(CONFIGURATION!$B$12>1,\" ['\"&MID(CONFIGURATION!$B$12,2,LEN(CONFIGURATION!$B$12))&\"s]\",\"\")","v":"expressed in ['000s]"},{"$f":"'Form 4EBS'!C4","v":"United States Dollars"},null,null,null,null,null,null,null,null,null,"Select"]
[null,null,null,null,null,null,null,null,null,null,null,"Energy","Holding Entity",{"$f":"YEAR('Insurer Information'!C3)","v":"1905-07-11"}]
[null,"Enter Number of Entities ",{"$f":"Import!I5613","v":0},null,null,null,null,null,null,null,null,"Materials","Operating Entity","Control"]
[null," Enter information for each entity",null,null,null,null,null,null,null,null,null,"Industrial","Branch"]
[null,null,null,null,null,null,null,null,null,null,null,"Consumer Discretionary"]
[null,"Entity name","Jurisdiction","Entity Type","Percent of Participating Interest","Gross Premiums Written","Net Premiums Written","Total Assets ","Net Assets","Regulatory Capital Requirement (ECR Equivalent)",null,"Consumer Staples",null,null,null,"brrt_EligibleCapitalDetailsDateApprovedByAuthority","brrt_EligibleCapitalDetailsValueOfCapitalInstrument","brrt_EligibleCapitalDetailsEligibleCapitalTier"]
[1,{"$f":"Import!I5614","v":0},{"$f":"Import!I5644","v":0},{"$f":"Import!I5674","v":"Select"},{"$f":"Import!I5704","v":0},{"$f":"Import!I5734","v":0},{"$f":"Import!I5765","v":0},{"$f":"Import!I5796","v":0},{"$f":"Import!I5827","v":0},{"$f":"Import!I5858","v":0},null,"Healthcare"]
[2,{"$f":"Import!I5615","v":0},{"$f":"Import!I5645","v":0},{"$f":"Import!I5675","v":"Select"},{"$f":"Import!I5705","v":0},{"$f":"Import!I5735","v":0},{"$f":"Import!I5766","v":0},{"$f":"Import!I5797","v":0},{"$f":"Import!I5828","v":0},{"$f":"Import!I5859","v":0},null,"Financial"]
[3,{"$f":"Import!I5616","v":0},{"$f":"Import!I5646","v":0},{"$f":"Import!I5676","v":"Select"},{"$f":"Import!I5706","v":0},{"$f":"Import!I5736","v":0},{"$f":"Import!I5767","v":0},{"$f":"Import!I5798","v":0},{"$f":"Import!I5829","v":0},{"$f":"Import!I5860","v":0},null,null,{"$f":"IF(OR(B13<>\"\",C13<>\"\",D13<>\"\",E13<>\"\",G13<>\"\",J13<>\"\"),XBRLMapTuple($M$9,$N$5,$N$6,\"BMA\",CONFIGURATION!$B$1,\"bscr\",\"\",CONFIGURATION!$B$12,$M$10,B13,$N$10,C13,$O$10,D13,$P$10,E13,$Q$10,G13,$R$10,J13,\"\"),\"emptyTuple\")","v":"-"}]
[4,{"$f":"Import!I5617","v":0},{"$f":"Import!I5647","v":0},{"$f":"Import!I5677","v":"Select"},{"$f":"Import!I5707","v":0},{"$f":"Import!I5737","v":0},{"$f":"Import!I5768","v":0},{"$f":"Import!I5799","v":0},{"$f":"Import!I5830","v":0},{"$f":"Import!I5861","v":0},null,null,{"$f":"IF(OR(B14<>\"\",C14<>\"\",D14<>\"\",E14<>\"\",G14<>\"\",J14<>\"\"),XBRLMapTuple($M$9,$N$5,$N$6,\"BMA\",CONFIGURATION!$B$1,\"bscr\",\"\",CONFIGURATION!$B$12,$M$10,B14,$N$10,C14,$O$10,D14,$P$10,E14,$Q$10,G14,$R$10,J14,\"\"),\"emptyTuple\")","v":"-"}]
[5,{"$f":"Import!I5618","v":0},{"$f":"Import!I5648","v":0},{"$f":"Import!I5678","v":"Select"},{"$f":"Import!I5708","v":0},{"$f":"Import!I5738","v":0},{"$f":"Import!I5769","v":0},{"$f":"Import!I5800","v":0},{"$f":"Import!I5831","v":0},{"$f":"Import!I5862","v":0},null,null,{"$f":"IF(OR(B15<>\"\",C15<>\"\",D15<>\"\",E15<>\"\",G15<>\"\",J15<>\"\"),XBRLMapTuple($M$9,$N$5,$N$6,\"BMA\",CONFIGURATION!$B$1,\"bscr\",\"\",CONFIGURATION!$B$12,$M$10,B15,$N$10,C15,$O$10,D15,$P$10,E15,$Q$10,G15,$R$10,J15,\"\"),\"emptyTuple\")","v":"-"}]
[6,{"$f":"Import!I5619","v":0},{"$f":"Import!I5649","v":0},{"$f":"Import!I5679","v":"Select"},{"$f":"Import!I5709","v":0},{"$f":"Import!I5739","v":0},{"$f":"Import!I5770","v":0},{"$f":"Import!I5801","v":0},{"$f":"Import!I5832","v":0},{"$f":"Import!I5863","v":0},null,null,{"$f":"IF(OR(B16<>\"\",C16<>\"\",D16<>\"\",E16<>\"\",G16<>\"\",J16<>\"\"),XBRLMapTuple($M$9,$N$5,$N$6,\"BMA\",CONFIGURATION!$B$1,\"bscr\",\"\",CONFIGURATION!$B$12,$M$10,B16,$N$10,C16,$O$10,D16,$P$10,E16,$Q$10,G16,$R$10,J16,\"\"),\"emptyTuple\")","v":"-"}]
[7,{"$f":"Import!I5620","v":0},{"$f":"Import!I5650","v":0},{"$f":"Import!I5680","v":"Select"},{"$f":"Import!I5710","v":0},{"$f":"Import!I5740","v":0},{"$f":"Import!I5771","v":0},{"$f":"Import!I5802","v":0},{"$f":"Import!I5833","v":0},{"$f":"Import!I5864","v":0},null,null,{"$f":"IF(OR(B17<>\"\",C17<>\"\",D17<>\"\",E17<>\"\",G17<>\"\",J17<>\"\"),XBRLMapTuple($M$9,$N$5,$N$6,\"BMA\",CONFIGURATION!$B$1,\"bscr\",\"\",CONFIGURATION!$B$12,$M$10,B17,$N$10,C17,$O$10,D17,$P$10,E17,$Q$10,G17,$R$10,J17,\"\"),\"emptyTuple\")","v":"-"}]
[8,{"$f":"Import!I5621","v":0},{"$f":"Import!I5651","v":0},{"$f":"Import!I5681","v":"Select"},{"$f":"Import!I5711","v":0},{"$f":"Import!I5741","v":0},{"$f":"Import!I5772","v":0},{"$f":"Import!I5803","v":0},{"$f":"Import!I5834","v":0},{"$f":"Import!I5865","v":0},null,null,{"$f":"IF(OR(B18<>\"\",C18<>\"\",D18<>\"\",E18<>\"\",G18<>\"\",J18<>\"\"),XBRLMapTuple($M$9,$N$5,$N$6,\"BMA\",CONFIGURATION!$B$1,\"bscr\",\"\",CONFIGURATION!$B$12,$M$10,B18,$N$10,C18,$O$10,D18,$P$10,E18,$Q$10,G18,$R$10,J18,\"\"),\"emptyTuple\")","v":"-"}]
[9,{"$f":"Import!I5622","v":0},{"$f":"Import!I5652","v":0},{"$f":"Import!I5682","v":"Select"},{"$f":"Import!I5712","v":0},{"$f":"Import!I5742","v":0},{"$f":"Import!I5773","v":0},{"$f":"Import!I5804","v":0},{"$f":"Import!I5835","v":0},{"$f":"Import!I5866","v":0},null,null,{"$f":"IF(OR(B19<>\"\",C19<>\"\",D19<>\"\",E19<>\"\",G19<>\"\",J19<>\"\"),XBRLMapTuple($M$9,$N$5,$N$6,\"BMA\",CONFIGURATION!$B$1,\"bscr\",\"\",CONFIGURATION!$B$12,$M$10,B19,$N$10,C19,$O$10,D19,$P$10,E19,$Q$10,G19,$R$10,J19,\"\"),\"emptyTuple\")","v":"-"}]
[10,{"$f":"Import!I5623","v":0},{"$f":"Import!I5653","v":0},{"$f":"Import!I5683","v":"Select"},{"$f":"Import!I5713","v":0},{"$f":"Import!I5743","v":0},{"$f":"Import!I5774","v":0},{"$f":"Import!I5805","v":0},{"$f":"Import!I5836","v":0},{"$f":"Import!I5867","v":0},null,null,{"$f":"IF(OR(B20<>\"\",C20<>\"\",D20<>\"\",E20<>\"\",G20<>\"\",J20<>\"\"),XBRLMapTuple($M$9,$N$5,$N$6,\"BMA\",CONFIGURATION!$B$1,\"bscr\",\"\",CONFIGURATION!$B$12,$M$10,B20,$N$10,C20,$O$10,D20,$P$10,E20,$Q$10,G20,$R$10,J20,\"\"),\"emptyTuple\")","v":"-"}]
[11,{"$f":"Import!I5624","v":0},{"$f":"Import!I5654","v":0},{"$f":"Import!I5684","v":"Select"},{"$f":"Import!I5714","v":0},{"$f":"Import!I5744","v":0},{"$f":"Import!I5775","v":0},{"$f":"Import!I5806","v":0},{"$f":"Import!I5837","v":0},{"$f":"Import!I5868","v":0},null,null,{"$f":"IF(OR(B21<>\"\",C21<>\"\",D21<>\"\",E21<>\"\",G21<>\"\",J21<>\"\"),XBRLMapTuple($M$9,$N$5,$N$6,\"BMA\",CONFIGURATION!$B$1,\"bscr\",\"\",CONFIGURATION!$B$12,$M$10,B21,$N$10,C21,$O$10,D21,$P$10,E21,$Q$10,G21,$R$10,J21,\"\"),\"emptyTuple\")","v":"-"}]
[12,{"$f":"Import!I5625","v":0},{"$f":"Import!I5655","v":0},{"$f":"Import!I5685","v":"Select"},{"$f":"Import!I5715","v":0},{"$f":"Import!I5745","v":0},{"$f":"Import!I5776","v":0},{"$f":"Import!I5807","v":0},{"$f":"Import!I5838","v":0},{"$f":"Import!I5869","v":0},null,null,{"$f":"IF(OR(B22<>\"\",C22<>\"\",D22<>\"\",E22<>\"\",G22<>\"\",J22<>\"\"),XBRLMapTuple($M$9,$N$5,$N$6,\"BMA\",CONFIGURATION!$B$1,\"bscr\",\"\",CONFIGURATION!$B$12,$M$10,B22,$N$10,C22,$O$10,D22,$P$10,E22,$Q$10,G22,$R$10,J22,\"\"),\"emptyTuple\")","v":"-"}]
[13,{"$f":"Import!I5626","v":0},{"$f":"Import!I5656","v":0},{"$f":"Import!I5686","v":"Select"},{"$f":"Import!I5716","v":0},{"$f":"Import!I5746","v":0},{"$f":"Import!I5777","v":0},{"$f":"Import!I5808","v":0},{"$f":"Import!I5839","v":0},{"$f":"Import!I5870","v":0},null,null,{"$f":"IF(OR(B23<>\"\",C23<>\"\",D23<>\"\",E23<>\"\",G23<>\"\",J23<>\"\"),XBRLMapTuple($M$9,$N$5,$N$6,\"BMA\",CONFIGURATION!$B$1,\"bscr\",\"\",CONFIGURATION!$B$12,$M$10,B23,$N$10,C23,$O$10,D23,$P$10,E23,$Q$10,G23,$R$10,J23,\"\"),\"emptyTuple\")","v":"-"}]
[14,{"$f":"Import!I5627","v":0},{"$f":"Import!I5657","v":0},{"$f":"Import!I5687","v":"Select"},{"$f":"Import!I5717","v":0},{"$f":"Import!I5747","v":0},{"$f":"Import!I5778","v":0},{"$f":"Import!I5809","v":0},{"$f":"Import!I5840","v":0},{"$f":"Import!I5871","v":0},null,null,{"$f":"IF(OR(B24<>\"\",C24<>\"\",D24<>\"\",E24<>\"\",G24<>\"\",J24<>\"\"),XBRLMapTuple($M$9,$N$5,$N$6,\"BMA\",CONFIGURATION!$B$1,\"bscr\",\"\",CONFIGURATION!$B$12,$M$10,B24,$N$10,C24,$O$10,D24,$P$10,E24,$Q$10,G24,$R$10,J24,\"\"),\"emptyTuple\")","v":"-"}]
[15,{"$f":"Import!I5628","v":0},{"$f":"Import!I5658","v":0},{"$f":"Import!I5688","v":"Select"},{"$f":"Import!I5718","v":0},{"$f":"Import!I5748","v":0},{"$f":"Import!I5779","v":0},{"$f":"Import!I5810","v":0},{"$f":"Import!I5841","v":0},{"$f":"Import!I5872","v":0},null,null,{"$f":"IF(OR(B25<>\"\",C25<>\"\",D25<>\"\",E25<>\"\",G25<>\"\",J25<>\"\"),XBRLMapTuple($M$9,$N$5,$N$6,\"BMA\",CONFIGURATION!$B$1,\"bscr\",\"\",CONFIGURATION!$B$12,$M$10,B25,$N$10,C25,$O$10,D25,$P$10,E25,$Q$10,G25,$R$10,J25,\"\"),\"emptyTuple\")","v":"-"}]
[16,{"$f":"Import!I5629","v":0},{"$f":"Import!I5659","v":0},{"$f":"Import!I5689","v":"Select"},{"$f":"Import!I5719","v":0},{"$f":"Import!I5749","v":0},{"$f":"Import!I5780","v":0},{"$f":"Import!I5811","v":0},{"$f":"Import!I5842","v":0},{"$f":"Import!I5873","v":0},null,null,{"$f":"IF(OR(B26<>\"\",C26<>\"\",D26<>\"\",E26<>\"\",G26<>\"\",J26<>\"\"),XBRLMapTuple($M$9,$N$5,$N$6,\"BMA\",CONFIGURATION!$B$1,\"bscr\",\"\",CONFIGURATION!$B$12,$M$10,B26,$N$10,C26,$O$10,D26,$P$10,E26,$Q$10,G26,$R$10,J26,\"\"),\"emptyTuple\")","v":"-"}]
[17,{"$f":"Import!I5630","v":0},{"$f":"Import!I5660","v":0},{"$f":"Import!I5690","v":"Select"},{"$f":"Import!I5720","v":0},{"$f":"Import!I5750","v":0},{"$f":"Import!I5781","v":0},{"$f":"Import!I5812","v":0},{"$f":"Import!I5843","v":0},{"$f":"Import!I5874","v":0},null,null,{"$f":"IF(OR(B27<>\"\",C27<>\"\",D27<>\"\",E27<>\"\",G27<>\"\",J27<>\"\"),XBRLMapTuple($M$9,$N$5,$N$6,\"BMA\",CONFIGURATION!$B$1,\"bscr\",\"\",CONFIGURATION!$B$12,$M$10,B27,$N$10,C27,$O$10,D27,$P$10,E27,$Q$10,G27,$R$10,J27,\"\"),\"emptyTuple\")","v":"-"}]
[18,{"$f":"Import!I5631","v":0},{"$f":"Import!I5661","v":0},{"$f":"Import!I5691","v":"Select"},{"$f":"Import!I5721","v":0},{"$f":"Import!I5751","v":0},{"$f":"Import!I5782","v":0},{"$f":"Import!I5813","v":0},{"$f":"Import!I5844","v":0},{"$f":"Import!I5875","v":0},null,null,{"$f":"IF(OR(B28<>\"\",C28<>\"\",D28<>\"\",E28<>\"\",G28<>\"\",J28<>\"\"),XBRLMapTuple($M$9,$N$5,$N$6,\"BMA\",CONFIGURATION!$B$1,\"bscr\",\"\",CONFIGURATION!$B$12,$M$10,B28,$N$10,C28,$O$10,D28,$P$10,E28,$Q$10,G28,$R$10,J28,\"\"),\"emptyTuple\")","v":"-"}]
[19,{"$f":"Import!I5632","v":0},{"$f":"Import!I5662","v":0},{"$f":"Import!I5692","v":"Select"},{"$f":"Import!I5722","v":0},{"$f":"Import!I5752","v":0},{"$f":"Import!I5783","v":0},{"$f":"Import!I5814","v":0},{"$f":"Import!I5845","v":0},{"$f":"Import!I5876","v":0},null,null,{"$f":"IF(OR(B29<>\"\",C29<>\"\",D29<>\"\",E29<>\"\",G29<>\"\",J29<>\"\"),XBRLMapTuple($M$9,$N$5,$N$6,\"BMA\",CONFIGURATION!$B$1,\"bscr\",\"\",CONFIGURATION!$B$12,$M$10,B29,$N$10,C29,$O$10,D29,$P$10,E29,$Q$10,G29,$R$10,J29,\"\"),\"emptyTuple\")","v":"-"}]
[20,{"$f":"Import!I5633","v":0},{"$f":"Import!I5663","v":0},{"$f":"Import!I5693","v":"Select"},{"$f":"Import!I5723","v":0},{"$f":"Import!I5753","v":0},{"$f":"Import!I5784","v":0},{"$f":"Import!I5815","v":0},{"$f":"Import!I5846","v":0},{"$f":"Import!I5877","v":0},null,null,{"$f":"IF(OR(B30<>\"\",C30<>\"\",D30<>\"\",E30<>\"\",G30<>\"\",J30<>\"\"),XBRLMapTuple($M$9,$N$5,$N$6,\"BMA\",CONFIGURATION!$B$1,\"bscr\",\"\",CONFIGURATION!$B$12,$M$10,B30,$N$10,C30,$O$10,D30,$P$10,E30,$Q$10,G30,$R$10,J30,\"\"),\"emptyTuple\")","v":"-"}]
[21,{"$f":"Import!I5634","v":0},{"$f":"Import!I5664","v":0},{"$f":"Import!I5694","v":"Select"},{"$f":"Import!I5724","v":0},{"$f":"Import!I5754","v":0},{"$f":"Import!I5785","v":0},{"$f":"Import!I5816","v":0},{"$f":"Import!I5847","v":0},{"$f":"Import!I5878","v":0},null,null,{"$f":"IF(OR(B31<>\"\",C31<>\"\",D31<>\"\",E31<>\"\",G31<>\"\",J31<>\"\"),XBRLMapTuple($M$9,$N$5,$N$6,\"BMA\",CONFIGURATION!$B$1,\"bscr\",\"\",CONFIGURATION!$B$12,$M$10,B31,$N$10,C31,$O$10,D31,$P$10,E31,$Q$10,G31,$R$10,J31,\"\"),\"emptyTuple\")","v":"-"}]
[22,{"$f":"Import!I5635","v":0},{"$f":"Import!I5665","v":0},{"$f":"Import!I5695","v":"Select"},{"$f":"Import!I5725","v":0},{"$f":"Import!I5755","v":0},{"$f":"Import!I5786","v":0},{"$f":"Import!I5817","v":0},{"$f":"Import!I5848","v":0},{"$f":"Import!I5879","v":0},null,null,{"$f":"IF(OR(B32<>\"\",C32<>\"\",D32<>\"\",E32<>\"\",G32<>\"\",J32<>\"\"),XBRLMapTuple($M$9,$N$5,$N$6,\"BMA\",CONFIGURATION!$B$1,\"bscr\",\"\",CONFIGURATION!$B$12,$M$10,B32,$N$10,C32,$O$10,D32,$P$10,E32,$Q$10,G32,$R$10,J32,\"\"),\"emptyTuple\")","v":"-"}]
[23,{"$f":"Import!I5636","v":0},{"$f":"Import!I5666","v":0},{"$f":"Import!I5696","v":"Select"},{"$f":"Import!I5726","v":0},{"$f":"Import!I5756","v":0},{"$f":"Import!I5787","v":0},{"$f":"Import!I5818","v":0},{"$f":"Import!I5849","v":0},{"$f":"Import!I5880","v":0},null,null,{"$f":"IF(OR(B33<>\"\",C33<>\"\",D33<>\"\",E33<>\"\",G33<>\"\",J33<>\"\"),XBRLMapTuple($M$9,$N$5,$N$6,\"BMA\",CONFIGURATION!$B$1,\"bscr\",\"\",CONFIGURATION!$B$12,$M$10,B33,$N$10,C33,$O$10,D33,$P$10,E33,$Q$10,G33,$R$10,J33,\"\"),\"emptyTuple\")","v":"-"}]
[24,{"$f":"Import!I5637","v":0},{"$f":"Import!I5667","v":0},{"$f":"Import!I5697","v":"Select"},{"$f":"Import!I5727","v":0},{"$f":"Import!I5757","v":0},{"$f":"Import!I5788","v":0},{"$f":"Import!I5819","v":0},{"$f":"Import!I5850","v":0},{"$f":"Import!I5881","v":0},null,null,{"$f":"IF(OR(B34<>\"\",C34<>\"\",D34<>\"\",E34<>\"\",G34<>\"\",J34<>\"\"),XBRLMapTuple($M$9,$N$5,$N$6,\"BMA\",CONFIGURATION!$B$1,\"bscr\",\"\",CONFIGURATION!$B$12,$M$10,B34,$N$10,C34,$O$10,D34,$P$10,E34,$Q$10,G34,$R$10,J34,\"\"),\"emptyTuple\")","v":"-"}]
[25,{"$f":"Import!I5638","v":0},{"$f":"Import!I5668","v":0},{"$f":"Import!I5698","v":"Select"},{"$f":"Import!I5728","v":0},{"$f":"Import!I5758","v":0},{"$f":"Import!I5789","v":0},{"$f":"Import!I5820","v":0},{"$f":"Import!I5851","v":0},{"$f":"Import!I5882","v":0},null,null,{"$f":"IF(OR(B35<>\"\",C35<>\"\",D35<>\"\",E35<>\"\",G35<>\"\",J35<>\"\"),XBRLMapTuple($M$9,$N$5,$N$6,\"BMA\",CONFIGURATION!$B$1,\"bscr\",\"\",CONFIGURATION!$B$12,$M$10,B35,$N$10,C35,$O$10,D35,$P$10,E35,$Q$10,G35,$R$10,J35,\"\"),\"emptyTuple\")","v":"-"}]
[26,{"$f":"Import!I5639","v":0},{"$f":"Import!I5669","v":0},{"$f":"Import!I5699","v":"Select"},{"$f":"Import!I5729","v":0},{"$f":"Import!I5759","v":0},{"$f":"Import!I5790","v":0},{"$f":"Import!I5821","v":0},{"$f":"Import!I5852","v":0},{"$f":"Import!I5883","v":0},null,null,{"$f":"IF(OR(B36<>\"\",C36<>\"\",D36<>\"\",E36<>\"\",G36<>\"\",J36<>\"\"),XBRLMapTuple($M$9,$N$5,$N$6,\"BMA\",CONFIGURATION!$B$1,\"bscr\",\"\",CONFIGURATION!$B$12,$M$10,B36,$N$10,C36,$O$10,D36,$P$10,E36,$Q$10,G36,$R$10,J36,\"\"),\"emptyTuple\")","v":"-"}]
[27,{"$f":"Import!I5640","v":0},{"$f":"Import!I5670","v":0},{"$f":"Import!I5700","v":"Select"},{"$f":"Import!I5730","v":0},{"$f":"Import!I5760","v":0},{"$f":"Import!I5791","v":0},{"$f":"Import!I5822","v":0},{"$f":"Import!I5853","v":0},{"$f":"Import!I5884","v":0},null,null,{"$f":"IF(OR(B37<>\"\",C37<>\"\",D37<>\"\",E37<>\"\",G37<>\"\",J37<>\"\"),XBRLMapTuple($M$9,$N$5,$N$6,\"BMA\",CONFIGURATION!$B$1,\"bscr\",\"\",CONFIGURATION!$B$12,$M$10,B37,$N$10,C37,$O$10,D37,$P$10,E37,$Q$10,G37,$R$10,J37,\"\"),\"emptyTuple\")","v":"-"}]
[28,{"$f":"Import!I5641","v":0},{"$f":"Import!I5671","v":0},{"$f":"Import!I5701","v":"Select"},{"$f":"Import!I5731","v":0},{"$f":"Import!I5761","v":0},{"$f":"Import!I5792","v":0},{"$f":"Import!I5823","v":0},{"$f":"Import!I5854","v":0},{"$f":"Import!I5885","v":0},null,null,{"$f":"IF(OR(B38<>\"\",C38<>\"\",D38<>\"\",E38<>\"\",G38<>\"\",J38<>\"\"),XBRLMapTuple($M$9,$N$5,$N$6,\"BMA\",CONFIGURATION!$B$1,\"bscr\",\"\",CONFIGURATION!$B$12,$M$10,B38,$N$10,C38,$O$10,D38,$P$10,E38,$Q$10,G38,$R$10,J38,\"\"),\"emptyTuple\")","v":"-"}]
[29,{"$f":"Import!I5642","v":0},{"$f":"Import!I5672","v":0},{"$f":"Import!I5702","v":"Select"},{"$f":"Import!I5732","v":0},{"$f":"Import!I5762","v":0},{"$f":"Import!I5793","v":0},{"$f":"Import!I5824","v":0},{"$f":"Import!I5855","v":0},{"$f":"Import!I5886","v":0},null,null,{"$f":"IF(OR(B39<>\"\",C39<>\"\",D39<>\"\",E39<>\"\",G39<>\"\",J39<>\"\"),XBRLMapTuple($M$9,$N$5,$N$6,\"BMA\",CONFIGURATION!$B$1,\"bscr\",\"\",CONFIGURATION!$B$12,$M$10,B39,$N$10,C39,$O$10,D39,$P$10,E39,$Q$10,G39,$R$10,J39,\"\"),\"emptyTuple\")","v":"-"}]
[30,{"$f":"Import!I5643","v":0},{"$f":"Import!I5673","v":0},{"$f":"Import!I5703","v":"Select"},{"$f":"Import!I5733","v":0},{"$f":"Import!I5763","v":0},{"$f":"Import!I5794","v":0},{"$f":"Import!I5825","v":0},{"$f":"Import!I5856","v":0},{"$f":"Import!I5887","v":0},null,null,{"$f":"IF(OR(B40<>\"\",C40<>\"\",D40<>\"\",E40<>\"\",G40<>\"\",J40<>\"\"),XBRLMapTuple($M$9,$N$5,$N$6,\"BMA\",CONFIGURATION!$B$1,\"bscr\",\"\",CONFIGURATION!$B$12,$M$10,B40,$N$10,C40,$O$10,D40,$P$10,E40,$Q$10,G40,$R$10,J40,\"\"),\"emptyTuple\")","v":"-"}]
[31,null,null,null,null,null,null,null,null,null,null,null,{"$f":"IF(OR(B41<>\"\",C41<>\"\",D41<>\"\",E41<>\"\",G41<>\"\",J41<>\"\"),XBRLMapTuple($M$9,$N$5,$N$6,\"BMA\",CONFIGURATION!$B$1,\"bscr\",\"\",CONFIGURATION!$B$12,$M$10,B41,$N$10,C41,$O$10,D41,$P$10,E41,$Q$10,G41,$R$10,J41,\"\"),\"emptyTuple\")","v":"emptyTuple"}]
[32,null,null,null,null,null,null,null,null,null,null,null,{"$f":"IF(OR(B42<>\"\",C42<>\"\",D42<>\"\",E42<>\"\",G42<>\"\",J42<>\"\"),XBRLMapTuple($M$9,$N$5,$N$6,\"BMA\",CONFIGURATION!$B$1,\"bscr\",\"\",CONFIGURATION!$B$12,$M$10,B42,$N$10,C42,$O$10,D42,$P$10,E42,$Q$10,G42,$R$10,J42,\"\"),\"emptyTuple\")","v":"emptyTuple"}]
[33,null,null,null,null,null,null,null,null,null,null,null,{"$f":"IF(OR(B43<>\"\",C43<>\"\",D43<>\"\",E43<>\"\",G43<>\"\",J43<>\"\"),XBRLMapTuple($M$9,$N$5,$N$6,\"BMA\",CONFIGURATION!$B$1,\"bscr\",\"\",CONFIGURATION!$B$12,$M$10,B43,$N$10,C43,$O$10,D43,$P$10,E43,$Q$10,G43,$R$10,J43,\"\"),\"emptyTuple\")","v":"emptyTuple"}]
[34,null,null,null,null,null,null,null,null,null,null,null,{"$f":"IF(OR(B44<>\"\",C44<>\"\",D44<>\"\",E44<>\"\",G44<>\"\",J44<>\"\"),XBRLMapTuple($M$9,$N$5,$N$6,\"BMA\",CONFIGURATION!$B$1,\"bscr\",\"\",CONFIGURATION!$B$12,$M$10,B44,$N$10,C44,$O$10,D44,$P$10,E44,$Q$10,G44,$R$10,J44,\"\"),\"emptyTuple\")","v":"emptyTuple"}]
[35,null,null,null,null,null,null,null,null,null,null,null,{"$f":"IF(OR(B45<>\"\",C45<>\"\",D45<>\"\",E45<>\"\",G45<>\"\",J45<>\"\"),XBRLMapTuple($M$9,$N$5,$N$6,\"BMA\",CONFIGURATION!$B$1,\"bscr\",\"\",CONFIGURATION!$B$12,$M$10,B45,$N$10,C45,$O$10,D45,$P$10,E45,$Q$10,G45,$R$10,J45,\"\"),\"emptyTuple\")","v":"emptyTuple"}]
[36,null,null,null,null,null,null,null,null,null,null,null,{"$f":"IF(OR(B46<>\"\",C46<>\"\",D46<>\"\",E46<>\"\",G46<>\"\",J46<>\"\"),XBRLMapTuple($M$9,$N$5,$N$6,\"BMA\",CONFIGURATION!$B$1,\"bscr\",\"\",CONFIGURATION!$B$12,$M$10,B46,$N$10,C46,$O$10,D46,$P$10,E46,$Q$10,G46,$R$10,J46,\"\"),\"emptyTuple\")","v":"emptyTuple"}]
[37,null,null,null,null,null,null,null,null,null,null,null,{"$f":"IF(OR(B47<>\"\",C47<>\"\",D47<>\"\",E47<>\"\",G47<>\"\",J47<>\"\"),XBRLMapTuple($M$9,$N$5,$N$6,\"BMA\",CONFIGURATION!$B$1,\"bscr\",\"\",CONFIGURATION!$B$12,$M$10,B47,$N$10,C47,$O$10,D47,$P$10,E47,$Q$10,G47,$R$10,J47,\"\"),\"emptyTuple\")","v":"emptyTuple"}]
[38,null,null,null,null,null,null,null,null,null,null,null,{"$f":"IF(OR(B48<>\"\",C48<>\"\",D48<>\"\",E48<>\"\",G48<>\"\",J48<>\"\"),XBRLMapTuple($M$9,$N$5,$N$6,\"BMA\",CONFIGURATION!$B$1,\"bscr\",\"\",CONFIGURATION!$B$12,$M$10,B48,$N$10,C48,$O$10,D48,$P$10,E48,$Q$10,G48,$R$10,J48,\"\"),\"emptyTuple\")","v":"emptyTuple"}]
[39,null,null,null,null,null,null,null,null,null,null,null,{"$f":"IF(OR(B49<>\"\",C49<>\"\",D49<>\"\",E49<>\"\",G49<>\"\",J49<>\"\"),XBRLMapTuple($M$9,$N$5,$N$6,\"BMA\",CONFIGURATION!$B$1,\"bscr\",\"\",CONFIGURATION!$B$12,$M$10,B49,$N$10,C49,$O$10,D49,$P$10,E49,$Q$10,G49,$R$10,J49,\"\"),\"emptyTuple\")","v":"emptyTuple"}]
[40,null,null,null,null,null,null,null,null,null,null,null,{"$f":"IF(OR(B50<>\"\",C50<>\"\",D50<>\"\",E50<>\"\",G50<>\"\",J50<>\"\"),XBRLMapTuple($M$9,$N$5,$N$6,\"BMA\",CONFIGURATION!$B$1,\"bscr\",\"\",CONFIGURATION!$B$12,$M$10,B50,$N$10,C50,$O$10,D50,$P$10,E50,$Q$10,G50,$R$10,J50,\"\"),\"emptyTuple\")","v":"emptyTuple"}]
[41,null,null,null,null,null,null,null,null,null,null,null,{"$f":"IF(OR(B51<>\"\",C51<>\"\",D51<>\"\",E51<>\"\",G51<>\"\",J51<>\"\"),XBRLMapTuple($M$9,$N$5,$N$6,\"BMA\",CONFIGURATION!$B$1,\"bscr\",\"\",CONFIGURATION!$B$12,$M$10,B51,$N$10,C51,$O$10,D51,$P$10,E51,$Q$10,G51,$R$10,J51,\"\"),\"emptyTuple\")","v":"emptyTuple"}]
[42,null,null,null,null,null,null,null,null,null,null,null,{"$f":"IF(OR(B52<>\"\",C52<>\"\",D52<>\"\",E52<>\"\",G52<>\"\",J52<>\"\"),XBRLMapTuple($M$9,$N$5,$N$6,\"BMA\",CONFIGURATION!$B$1,\"bscr\",\"\",CONFIGURATION!$B$12,$M$10,B52,$N$10,C52,$O$10,D52,$P$10,E52,$Q$10,G52,$R$10,J52,\"\"),\"emptyTuple\")","v":"emptyTuple"}]
[43,null,null,null,null,null,null,null,null,null,null,null,{"$f":"IF(OR(B53<>\"\",C53<>\"\",D53<>\"\",E53<>\"\",G53<>\"\",J53<>\"\"),XBRLMapTuple($M$9,$N$5,$N$6,\"BMA\",CONFIGURATION!$B$1,\"bscr\",\"\",CONFIGURATION!$B$12,$M$10,B53,$N$10,C53,$O$10,D53,$P$10,E53,$Q$10,G53,$R$10,J53,\"\"),\"emptyTuple\")","v":"emptyTuple"}]
[44,null,null,null,null,null,null,null,null,null,null,null,{"$f":"IF(OR(B54<>\"\",C54<>\"\",D54<>\"\",E54<>\"\",G54<>\"\",J54<>\"\"),XBRLMapTuple($M$9,$N$5,$N$6,\"BMA\",CONFIGURATION!$B$1,\"bscr\",\"\",CONFIGURATION!$B$12,$M$10,B54,$N$10,C54,$O$10,D54,$P$10,E54,$Q$10,G54,$R$10,J54,\"\"),\"emptyTuple\")","v":"emptyTuple"}]
[45,null,null,null,null,null,null,null,null,null,null,null,{"$f":"IF(OR(B55<>\"\",C55<>\"\",D55<>\"\",E55<>\"\",G55<>\"\",J55<>\"\"),XBRLMapTuple($M$9,$N$5,$N$6,\"BMA\",CONFIGURATION!$B$1,\"bscr\",\"\",CONFIGURATION!$B$12,$M$10,B55,$N$10,C55,$O$10,D55,$P$10,E55,$Q$10,G55,$R$10,J55,\"\"),\"emptyTuple\")","v":"emptyTuple"}]
[46,null,null,null,null,null,null,null,null,null,null,null,{"$f":"IF(OR(B56<>\"\",C56<>\"\",D56<>\"\",E56<>\"\",G56<>\"\",J56<>\"\"),XBRLMapTuple($M$9,$N$5,$N$6,\"BMA\",CONFIGURATION!$B$1,\"bscr\",\"\",CONFIGURATION!$B$12,$M$10,B56,$N$10,C56,$O$10,D56,$P$10,E56,$Q$10,G56,$R$10,J56,\"\"),\"emptyTuple\")","v":"emptyTuple"}]
[47,null,null,null,null,null,null,null,null,null,null,null,{"$f":"IF(OR(B57<>\"\",C57<>\"\",D57<>\"\",E57<>\"\",G57<>\"\",J57<>\"\"),XBRLMapTuple($M$9,$N$5,$N$6,\"BMA\",CONFIGURATION!$B$1,\"bscr\",\"\",CONFIGURATION!$B$12,$M$10,B57,$N$10,C57,$O$10,D57,$P$10,E57,$Q$10,G57,$R$10,J57,\"\"),\"emptyTuple\")","v":"emptyTuple"}]
[48,null,null,null,null,null,null,null,null,null,null,null,{"$f":"IF(OR(B58<>\"\",C58<>\"\",D58<>\"\",E58<>\"\",G58<>\"\",J58<>\"\"),XBRLMapTuple($M$9,$N$5,$N$6,\"BMA\",CONFIGURATION!$B$1,\"bscr\",\"\",CONFIGURATION!$B$12,$M$10,B58,$N$10,C58,$O$10,D58,$P$10,E58,$Q$10,G58,$R$10,J58,\"\"),\"emptyTuple\")","v":"emptyTuple"}]
[49,null,null,null,null,null,null,null,null,null,null,null,{"$f":"IF(OR(B59<>\"\",C59<>\"\",D59<>\"\",E59<>\"\",G59<>\"\",J59<>\"\"),XBRLMapTuple($M$9,$N$5,$N$6,\"BMA\",CONFIGURATION!$B$1,\"bscr\",\"\",CONFIGURATION!$B$12,$M$10,B59,$N$10,C59,$O$10,D59,$P$10,E59,$Q$10,G59,$R$10,J59,\"\"),\"emptyTuple\")","v":"emptyTuple"}]
[50,null,null,null,null,null,null,null,null,null,null,null,{"$f":"IF(OR(B60<>\"\",C60<>\"\",D60<>\"\",E60<>\"\",G60<>\"\",J60<>\"\"),XBRLMapTuple($M$9,$N$5,$N$6,\"BMA\",CONFIGURATION!$B$1,\"bscr\",\"\",CONFIGURATION!$B$12,$M$10,B60,$N$10,C60,$O$10,D60,$P$10,E60,$Q$10,G60,$R$10,J60,\"\"),\"emptyTuple\")","v":"emptyTuple"}]
[51,null,null,null,null,null,null,null,null,null,null,null,{"$f":"IF(OR(B61<>\"\",C61<>\"\",D61<>\"\",E61<>\"\",G61<>\"\",J61<>\"\"),XBRLMapTuple($M$9,$N$5,$N$6,\"BMA\",CONFIGURATION!$B$1,\"bscr\",\"\",CONFIGURATION!$B$12,$M$10,B61,$N$10,C61,$O$10,D61,$P$10,E61,$Q$10,G61,$R$10,J61,\"\"),\"emptyTuple\")","v":"emptyTuple"}]
[52,null,null,null,null,null,null,null,null,null,null,null,{"$f":"IF(OR(B62<>\"\",C62<>\"\",D62<>\"\",E62<>\"\",G62<>\"\",J62<>\"\"),XBRLMapTuple($M$9,$N$5,$N$6,\"BMA\",CONFIGURATION!$B$1,\"bscr\",\"\",CONFIGURATION!$B$12,$M$10,B62,$N$10,C62,$O$10,D62,$P$10,E62,$Q$10,G62,$R$10,J62,\"\"),\"emptyTuple\")","v":"emptyTuple"}]
[53,null,null,null,null,null,null,null,null,null,null,null,{"$f":"IF(OR(B63<>\"\",C63<>\"\",D63<>\"\",E63<>\"\",G63<>\"\",J63<>\"\"),XBRLMapTuple($M$9,$N$5,$N$6,\"BMA\",CONFIGURATION!$B$1,\"bscr\",\"\",CONFIGURATION!$B$12,$M$10,B63,$N$10,C63,$O$10,D63,$P$10,E63,$Q$10,G63,$R$10,J63,\"\"),\"emptyTuple\")","v":"emptyTuple"}]
[54,null,null,null,null,null,null,null,null,null,null,null,{"$f":"IF(OR(B64<>\"\",C64<>\"\",D64<>\"\",E64<>\"\",G64<>\"\",J64<>\"\"),XBRLMapTuple($M$9,$N$5,$N$6,\"BMA\",CONFIGURATION!$B$1,\"bscr\",\"\",CONFIGURATION!$B$12,$M$10,B64,$N$10,C64,$O$10,D64,$P$10,E64,$Q$10,G64,$R$10,J64,\"\"),\"emptyTuple\")","v":"emptyTuple"}]
[55,null,null,null,null,null,null,null,null,null,null,null,{"$f":"IF(OR(B65<>\"\",C65<>\"\",D65<>\"\",E65<>\"\",G65<>\"\",J65<>\"\"),XBRLMapTuple($M$9,$N$5,$N$6,\"BMA\",CONFIGURATION!$B$1,\"bscr\",\"\",CONFIGURATION!$B$12,$M$10,B65,$N$10,C65,$O$10,D65,$P$10,E65,$Q$10,G65,$R$10,J65,\"\"),\"emptyTuple\")","v":"emptyTuple"}]
[56,null,null,null,null,null,null,null,null,null,null,null,{"$f":"IF(OR(B66<>\"\",C66<>\"\",D66<>\"\",E66<>\"\",G66<>\"\",J66<>\"\"),XBRLMapTuple($M$9,$N$5,$N$6,\"BMA\",CONFIGURATION!$B$1,\"bscr\",\"\",CONFIGURATION!$B$12,$M$10,B66,$N$10,C66,$O$10,D66,$P$10,E66,$Q$10,G66,$R$10,J66,\"\"),\"emptyTuple\")","v":"emptyTuple"}]
[57,null,null,null,null,null,null,null,null,null,null,null,{"$f":"IF(OR(B67<>\"\",C67<>\"\",D67<>\"\",E67<>\"\",G67<>\"\",J67<>\"\"),XBRLMapTuple($M$9,$N$5,$N$6,\"BMA\",CONFIGURATION!$B$1,\"bscr\",\"\",CONFIGURATION!$B$12,$M$10,B67,$N$10,C67,$O$10,D67,$P$10,E67,$Q$10,G67,$R$10,J67,\"\"),\"emptyTuple\")","v":"emptyTuple"}]
[58,null,null,null,null,null,null,null,null,null,null,null,{"$f":"IF(OR(B68<>\"\",C68<>\"\",D68<>\"\",E68<>\"\",G68<>\"\",J68<>\"\"),XBRLMapTuple($M$9,$N$5,$N$6,\"BMA\",CONFIGURATION!$B$1,\"bscr\",\"\",CONFIGURATION!$B$12,$M$10,B68,$N$10,C68,$O$10,D68,$P$10,E68,$Q$10,G68,$R$10,J68,\"\"),\"emptyTuple\")","v":"emptyTuple"}]
[59,null,null,null,null,null,null,null,null,null,null,null,{"$f":"IF(OR(B69<>\"\",C69<>\"\",D69<>\"\",E69<>\"\",G69<>\"\",J69<>\"\"),XBRLMapTuple($M$9,$N$5,$N$6,\"BMA\",CONFIGURATION!$B$1,\"bscr\",\"\",CONFIGURATION!$B$12,$M$10,B69,$N$10,C69,$O$10,D69,$P$10,E69,$Q$10,G69,$R$10,J69,\"\"),\"emptyTuple\")","v":"emptyTuple"}]
[60,null,null,null,null,null,null,null,null,null,null,null,{"$f":"IF(OR(B70<>\"\",C70<>\"\",D70<>\"\",E70<>\"\",G70<>\"\",J70<>\"\"),XBRLMapTuple($M$9,$N$5,$N$6,\"BMA\",CONFIGURATION!$B$1,\"bscr\",\"\",CONFIGURATION!$B$12,$M$10,B70,$N$10,C70,$O$10,D70,$P$10,E70,$Q$10,G70,$R$10,J70,\"\"),\"emptyTuple\")","v":"emptyTuple"}]
[61,null,null,null,null,null,null,null,null,null,null,null,{"$f":"IF(OR(B71<>\"\",C71<>\"\",D71<>\"\",E71<>\"\",G71<>\"\",J71<>\"\"),XBRLMapTuple($M$9,$N$5,$N$6,\"BMA\",CONFIGURATION!$B$1,\"bscr\",\"\",CONFIGURATION!$B$12,$M$10,B71,$N$10,C71,$O$10,D71,$P$10,E71,$Q$10,G71,$R$10,J71,\"\"),\"emptyTuple\")","v":"emptyTuple"}]
[62,null,null,null,null,null,null,null,null,null,null,null,{"$f":"IF(OR(B72<>\"\",C72<>\"\",D72<>\"\",E72<>\"\",G72<>\"\",J72<>\"\"),XBRLMapTuple($M$9,$N$5,$N$6,\"BMA\",CONFIGURATION!$B$1,\"bscr\",\"\",CONFIGURATION!$B$12,$M$10,B72,$N$10,C72,$O$10,D72,$P$10,E72,$Q$10,G72,$R$10,J72,\"\"),\"emptyTuple\")","v":"emptyTuple"}]
[63,null,null,null,null,null,null,null,null,null,null,null,{"$f":"IF(OR(B73<>\"\",C73<>\"\",D73<>\"\",E73<>\"\",G73<>\"\",J73<>\"\"),XBRLMapTuple($M$9,$N$5,$N$6,\"BMA\",CONFIGURATION!$B$1,\"bscr\",\"\",CONFIGURATION!$B$12,$M$10,B73,$N$10,C73,$O$10,D73,$P$10,E73,$Q$10,G73,$R$10,J73,\"\"),\"emptyTuple\")","v":"emptyTuple"}]
[64,null,null,null,null,null,null,null,null,null,null,null,{"$f":"IF(OR(B74<>\"\",C74<>\"\",D74<>\"\",E74<>\"\",G74<>\"\",J74<>\"\"),XBRLMapTuple($M$9,$N$5,$N$6,\"BMA\",CONFIGURATION!$B$1,\"bscr\",\"\",CONFIGURATION!$B$12,$M$10,B74,$N$10,C74,$O$10,D74,$P$10,E74,$Q$10,G74,$R$10,J74,\"\"),\"emptyTuple\")","v":"emptyTuple"}]
[65,null,null,null,null,null,null,null,null,null,null,null,{"$f":"IF(OR(B75<>\"\",C75<>\"\",D75<>\"\",E75<>\"\",G75<>\"\",J75<>\"\"),XBRLMapTuple($M$9,$N$5,$N$6,\"BMA\",CONFIGURATION!$B$1,\"bscr\",\"\",CONFIGURATION!$B$12,$M$10,B75,$N$10,C75,$O$10,D75,$P$10,E75,$Q$10,G75,$R$10,J75,\"\"),\"emptyTuple\")","v":"emptyTuple"}]
[66,null,null,null,null,null,null,null,null,null,null,null,{"$f":"IF(OR(B76<>\"\",C76<>\"\",D76<>\"\",E76<>\"\",G76<>\"\",J76<>\"\"),XBRLMapTuple($M$9,$N$5,$N$6,\"BMA\",CONFIGURATION!$B$1,\"bscr\",\"\",CONFIGURATION!$B$12,$M$10,B76,$N$10,C76,$O$10,D76,$P$10,E76,$Q$10,G76,$R$10,J76,\"\"),\"emptyTuple\")","v":"emptyTuple"}]
[67,null,null,null,null,null,null,null,null,null,null,null,{"$f":"IF(OR(B77<>\"\",C77<>\"\",D77<>\"\",E77<>\"\",G77<>\"\",J77<>\"\"),XBRLMapTuple($M$9,$N$5,$N$6,\"BMA\",CONFIGURATION!$B$1,\"bscr\",\"\",CONFIGURATION!$B$12,$M$10,B77,$N$10,C77,$O$10,D77,$P$10,E77,$Q$10,G77,$R$10,J77,\"\"),\"emptyTuple\")","v":"emptyTuple"}]
[68,null,null,null,null,null,null,null,null,null,null,null,{"$f":"IF(OR(B78<>\"\",C78<>\"\",D78<>\"\",E78<>\"\",G78<>\"\",J78<>\"\"),XBRLMapTuple($M$9,$N$5,$N$6,\"BMA\",CONFIGURATION!$B$1,\"bscr\",\"\",CONFIGURATION!$B$12,$M$10,B78,$N$10,C78,$O$10,D78,$P$10,E78,$Q$10,G78,$R$10,J78,\"\"),\"emptyTuple\")","v":"emptyTuple"}]
[69,null,null,null,null,null,null,null,null,null,null,null,{"$f":"IF(OR(B79<>\"\",C79<>\"\",D79<>\"\",E79<>\"\",G79<>\"\",J79<>\"\"),XBRLMapTuple($M$9,$N$5,$N$6,\"BMA\",CONFIGURATION!$B$1,\"bscr\",\"\",CONFIGURATION!$B$12,$M$10,B79,$N$10,C79,$O$10,D79,$P$10,E79,$Q$10,G79,$R$10,J79,\"\"),\"emptyTuple\")","v":"emptyTuple"}]
[70,null,null,null,null,null,null,null,null,null,null,null,{"$f":"IF(OR(B80<>\"\",C80<>\"\",D80<>\"\",E80<>\"\",G80<>\"\",J80<>\"\"),XBRLMapTuple($M$9,$N$5,$N$6,\"BMA\",CONFIGURATION!$B$1,\"bscr\",\"\",CONFIGURATION!$B$12,$M$10,B80,$N$10,C80,$O$10,D80,$P$10,E80,$Q$10,G80,$R$10,J80,\"\"),\"emptyTuple\")","v":"emptyTuple"}]
[71,null,null,null,null,null,null,null,null,null,null,null,{"$f":"IF(OR(B81<>\"\",C81<>\"\",D81<>\"\",E81<>\"\",G81<>\"\",J81<>\"\"),XBRLMapTuple($M$9,$N$5,$N$6,\"BMA\",CONFIGURATION!$B$1,\"bscr\",\"\",CONFIGURATION!$B$12,$M$10,B81,$N$10,C81,$O$10,D81,$P$10,E81,$Q$10,G81,$R$10,J81,\"\"),\"emptyTuple\")","v":"emptyTuple"}]
[72,null,null,null,null,null,null,null,null,null,null,null,{"$f":"IF(OR(B82<>\"\",C82<>\"\",D82<>\"\",E82<>\"\",G82<>\"\",J82<>\"\"),XBRLMapTuple($M$9,$N$5,$N$6,\"BMA\",CONFIGURATION!$B$1,\"bscr\",\"\",CONFIGURATION!$B$12,$M$10,B82,$N$10,C82,$O$10,D82,$P$10,E82,$Q$10,G82,$R$10,J82,\"\"),\"emptyTuple\")","v":"emptyTuple"}]
[73,null,null,null,null,null,null,null,null,null,null,null,{"$f":"IF(OR(B83<>\"\",C83<>\"\",D83<>\"\",E83<>\"\",G83<>\"\",J83<>\"\"),XBRLMapTuple($M$9,$N$5,$N$6,\"BMA\",CONFIGURATION!$B$1,\"bscr\",\"\",CONFIGURATION!$B$12,$M$10,B83,$N$10,C83,$O$10,D83,$P$10,E83,$Q$10,G83,$R$10,J83,\"\"),\"emptyTuple\")","v":"emptyTuple"}]
[74,null,null,null,null,null,null,null,null,null,null,null,{"$f":"IF(OR(B84<>\"\",C84<>\"\",D84<>\"\",E84<>\"\",G84<>\"\",J84<>\"\"),XBRLMapTuple($M$9,$N$5,$N$6,\"BMA\",CONFIGURATION!$B$1,\"bscr\",\"\",CONFIGURATION!$B$12,$M$10,B84,$N$10,C84,$O$10,D84,$P$10,E84,$Q$10,G84,$R$10,J84,\"\"),\"emptyTuple\")","v":"emptyTuple"}]
[75,null,null,null,null,null,null,null,null,null,null,null,{"$f":"IF(OR(B85<>\"\",C85<>\"\",D85<>\"\",E85<>\"\",G85<>\"\",J85<>\"\"),XBRLMapTuple($M$9,$N$5,$N$6,\"BMA\",CONFIGURATION!$B$1,\"bscr\",\"\",CONFIGURATION!$B$12,$M$10,B85,$N$10,C85,$O$10,D85,$P$10,E85,$Q$10,G85,$R$10,J85,\"\"),\"emptyTuple\")","v":"emptyTuple"}]
[76,null,null,null,null,null,null,null,null,null,null,null,{"$f":"IF(OR(B86<>\"\",C86<>\"\",D86<>\"\",E86<>\"\",G86<>\"\",J86<>\"\"),XBRLMapTuple($M$9,$N$5,$N$6,\"BMA\",CONFIGURATION!$B$1,\"bscr\",\"\",CONFIGURATION!$B$12,$M$10,B86,$N$10,C86,$O$10,D86,$P$10,E86,$Q$10,G86,$R$10,J86,\"\"),\"emptyTuple\")","v":"emptyTuple"}]
[77,null,null,null,null,null,null,null,null,null,null,null,{"$f":"IF(OR(B87<>\"\",C87<>\"\",D87<>\"\",E87<>\"\",G87<>\"\",J87<>\"\"),XBRLMapTuple($M$9,$N$5,$N$6,\"BMA\",CONFIGURATION!$B$1,\"bscr\",\"\",CONFIGURATION!$B$12,$M$10,B87,$N$10,C87,$O$10,D87,$P$10,E87,$Q$10,G87,$R$10,J87,\"\"),\"emptyTuple\")","v":"emptyTuple"}]
[78,null,null,null,null,null,null,null,null,null,null,null,{"$f":"IF(OR(B88<>\"\",C88<>\"\",D88<>\"\",E88<>\"\",G88<>\"\",J88<>\"\"),XBRLMapTuple($M$9,$N$5,$N$6,\"BMA\",CONFIGURATION!$B$1,\"bscr\",\"\",CONFIGURATION!$B$12,$M$10,B88,$N$10,C88,$O$10,D88,$P$10,E88,$Q$10,G88,$R$10,J88,\"\"),\"emptyTuple\")","v":"emptyTuple"}]
[79,null,null,null,null,null,null,null,null,null,null,null,{"$f":"IF(OR(B89<>\"\",C89<>\"\",D89<>\"\",E89<>\"\",G89<>\"\",J89<>\"\"),XBRLMapTuple($M$9,$N$5,$N$6,\"BMA\",CONFIGURATION!$B$1,\"bscr\",\"\",CONFIGURATION!$B$12,$M$10,B89,$N$10,C89,$O$10,D89,$P$10,E89,$Q$10,G89,$R$10,J89,\"\"),\"emptyTuple\")","v":"emptyTuple"}]
[80,null,null,null,null,null,null,null,null,null,null,null,{"$f":"IF(OR(B90<>\"\",C90<>\"\",D90<>\"\",E90<>\"\",G90<>\"\",J90<>\"\"),XBRLMapTuple($M$9,$N$5,$N$6,\"BMA\",CONFIGURATION!$B$1,\"bscr\",\"\",CONFIGURATION!$B$12,$M$10,B90,$N$10,C90,$O$10,D90,$P$10,E90,$Q$10,G90,$R$10,J90,\"\"),\"emptyTuple\")","v":"emptyTuple"}]
[81,null,null,null,null,null,null,null,null,null,null,null,{"$f":"IF(OR(B91<>\"\",C91<>\"\",D91<>\"\",E91<>\"\",G91<>\"\",J91<>\"\"),XBRLMapTuple($M$9,$N$5,$N$6,\"BMA\",CONFIGURATION!$B$1,\"bscr\",\"\",CONFIGURATION!$B$12,$M$10,B91,$N$10,C91,$O$10,D91,$P$10,E91,$Q$10,G91,$R$10,J91,\"\"),\"emptyTuple\")","v":"emptyTuple"}]
[82,null,null,null,null,null,null,null,null,null,null,null,{"$f":"IF(OR(B92<>\"\",C92<>\"\",D92<>\"\",E92<>\"\",G92<>\"\",J92<>\"\"),XBRLMapTuple($M$9,$N$5,$N$6,\"BMA\",CONFIGURATION!$B$1,\"bscr\",\"\",CONFIGURATION!$B$12,$M$10,B92,$N$10,C92,$O$10,D92,$P$10,E92,$Q$10,G92,$R$10,J92,\"\"),\"emptyTuple\")","v":"emptyTuple"}]
[83,null,null,null,null,null,null,null,null,null,null,null,{"$f":"IF(OR(B93<>\"\",C93<>\"\",D93<>\"\",E93<>\"\",G93<>\"\",J93<>\"\"),XBRLMapTuple($M$9,$N$5,$N$6,\"BMA\",CONFIGURATION!$B$1,\"bscr\",\"\",CONFIGURATION!$B$12,$M$10,B93,$N$10,C93,$O$10,D93,$P$10,E93,$Q$10,G93,$R$10,J93,\"\"),\"emptyTuple\")","v":"emptyTuple"}]
[84,null,null,null,null,null,null,null,null,null,null,null,{"$f":"IF(OR(B94<>\"\",C94<>\"\",D94<>\"\",E94<>\"\",G94<>\"\",J94<>\"\"),XBRLMapTuple($M$9,$N$5,$N$6,\"BMA\",CONFIGURATION!$B$1,\"bscr\",\"\",CONFIGURATION!$B$12,$M$10,B94,$N$10,C94,$O$10,D94,$P$10,E94,$Q$10,G94,$R$10,J94,\"\"),\"emptyTuple\")","v":"emptyTuple"}]
[85,null,null,null,null,null,null,null,null,null,null,null,{"$f":"IF(OR(B95<>\"\",C95<>\"\",D95<>\"\",E95<>\"\",G95<>\"\",J95<>\"\"),XBRLMapTuple($M$9,$N$5,$N$6,\"BMA\",CONFIGURATION!$B$1,\"bscr\",\"\",CONFIGURATION!$B$12,$M$10,B95,$N$10,C95,$O$10,D95,$P$10,E95,$Q$10,G95,$R$10,J95,\"\"),\"emptyTuple\")","v":"emptyTuple"}]
[86,null,null,null,null,null,null,null,null,null,null,null,{"$f":"IF(OR(B96<>\"\",C96<>\"\",D96<>\"\",E96<>\"\",G96<>\"\",J96<>\"\"),XBRLMapTuple($M$9,$N$5,$N$6,\"BMA\",CONFIGURATION!$B$1,\"bscr\",\"\",CONFIGURATION!$B$12,$M$10,B96,$N$10,C96,$O$10,D96,$P$10,E96,$Q$10,G96,$R$10,J96,\"\"),\"emptyTuple\")","v":"emptyTuple"}]
[87,null,null,null,null,null,null,null,null,null,null,null,{"$f":"IF(OR(B97<>\"\",C97<>\"\",D97<>\"\",E97<>\"\",G97<>\"\",J97<>\"\"),XBRLMapTuple($M$9,$N$5,$N$6,\"BMA\",CONFIGURATION!$B$1,\"bscr\",\"\",CONFIGURATION!$B$12,$M$10,B97,$N$10,C97,$O$10,D97,$P$10,E97,$Q$10,G97,$R$10,J97,\"\"),\"emptyTuple\")","v":"emptyTuple"}]
[88,null,null,null,null,null,null,null,null,null,null,null,{"$f":"IF(OR(B98<>\"\",C98<>\"\",D98<>\"\",E98<>\"\",G98<>\"\",J98<>\"\"),XBRLMapTuple($M$9,$N$5,$N$6,\"BMA\",CONFIGURATION!$B$1,\"bscr\",\"\",CONFIGURATION!$B$12,$M$10,B98,$N$10,C98,$O$10,D98,$P$10,E98,$Q$10,G98,$R$10,J98,\"\"),\"emptyTuple\")","v":"emptyTuple"}]
[89,null,null,null,null,null,null,null,null,null,null,null,{"$f":"IF(OR(B99<>\"\",C99<>\"\",D99<>\"\",E99<>\"\",G99<>\"\",J99<>\"\"),XBRLMapTuple($M$9,$N$5,$N$6,\"BMA\",CONFIGURATION!$B$1,\"bscr\",\"\",CONFIGURATION!$B$12,$M$10,B99,$N$10,C99,$O$10,D99,$P$10,E99,$Q$10,G99,$R$10,J99,\"\"),\"emptyTuple\")","v":"emptyTuple"}]
[90,null,null,null,null,null,null,null,null,null,null,null,{"$f":"IF(OR(B100<>\"\",C100<>\"\",D100<>\"\",E100<>\"\",G100<>\"\",J100<>\"\"),XBRLMapTuple($M$9,$N$5,$N$6,\"BMA\",CONFIGURATION!$B$1,\"bscr\",\"\",CONFIGURATION!$B$12,$M$10,B100,$N$10,C100,$O$10,D100,$P$10,E100,$Q$10,G100,$R$10,J100,\"\"),\"emptyTuple\")","v":"emptyTuple"}]
[91,null,null,null,null,null,null,null,null,null,null,null,{"$f":"IF(OR(B101<>\"\",C101<>\"\",D101<>\"\",E101<>\"\",G101<>\"\",J101<>\"\"),XBRLMapTuple($M$9,$N$5,$N$6,\"BMA\",CONFIGURATION!$B$1,\"bscr\",\"\",CONFIGURATION!$B$12,$M$10,B101,$N$10,C101,$O$10,D101,$P$10,E101,$Q$10,G101,$R$10,J101,\"\"),\"emptyTuple\")","v":"emptyTuple"}]
[92,null,null,null,null,null,null,null,null,null,null,null,{"$f":"IF(OR(B102<>\"\",C102<>\"\",D102<>\"\",E102<>\"\",G102<>\"\",J102<>\"\"),XBRLMapTuple($M$9,$N$5,$N$6,\"BMA\",CONFIGURATION!$B$1,\"bscr\",\"\",CONFIGURATION!$B$12,$M$10,B102,$N$10,C102,$O$10,D102,$P$10,E102,$Q$10,G102,$R$10,J102,\"\"),\"emptyTuple\")","v":"emptyTuple"}]
[93,null,null,null,null,null,null,null,null,null,null,null,{"$f":"IF(OR(B103<>\"\",C103<>\"\",D103<>\"\",E103<>\"\",G103<>\"\",J103<>\"\"),XBRLMapTuple($M$9,$N$5,$N$6,\"BMA\",CONFIGURATION!$B$1,\"bscr\",\"\",CONFIGURATION!$B$12,$M$10,B103,$N$10,C103,$O$10,D103,$P$10,E103,$Q$10,G103,$R$10,J103,\"\"),\"emptyTuple\")","v":"emptyTuple"}]
[94,null,null,null,null,null,null,null,null,null,null,null,{"$f":"IF(OR(B104<>\"\",C104<>\"\",D104<>\"\",E104<>\"\",G104<>\"\",J104<>\"\"),XBRLMapTuple($M$9,$N$5,$N$6,\"BMA\",CONFIGURATION!$B$1,\"bscr\",\"\",CONFIGURATION!$B$12,$M$10,B104,$N$10,C104,$O$10,D104,$P$10,E104,$Q$10,G104,$R$10,J104,\"\"),\"emptyTuple\")","v":"emptyTuple"}]
[95,null,null,null,null,null,null,null,null,null,null,null,{"$f":"IF(OR(B105<>\"\",C105<>\"\",D105<>\"\",E105<>\"\",G105<>\"\",J105<>\"\"),XBRLMapTuple($M$9,$N$5,$N$6,\"BMA\",CONFIGURATION!$B$1,\"bscr\",\"\",CONFIGURATION!$B$12,$M$10,B105,$N$10,C105,$O$10,D105,$P$10,E105,$Q$10,G105,$R$10,J105,\"\"),\"emptyTuple\")","v":"emptyTuple"}]
[96,null,null,null,null,null,null,null,null,null,null,null,{"$f":"IF(OR(B106<>\"\",C106<>\"\",D106<>\"\",E106<>\"\",G106<>\"\",J106<>\"\"),XBRLMapTuple($M$9,$N$5,$N$6,\"BMA\",CONFIGURATION!$B$1,\"bscr\",\"\",CONFIGURATION!$B$12,$M$10,B106,$N$10,C106,$O$10,D106,$P$10,E106,$Q$10,G106,$R$10,J106,\"\"),\"emptyTuple\")","v":"emptyTuple"}]
[97,null,null,null,null,null,null,null,null,null,null,null,{"$f":"IF(OR(B107<>\"\",C107<>\"\",D107<>\"\",E107<>\"\",G107<>\"\",J107<>\"\"),XBRLMapTuple($M$9,$N$5,$N$6,\"BMA\",CONFIGURATION!$B$1,\"bscr\",\"\",CONFIGURATION!$B$12,$M$10,B107,$N$10,C107,$O$10,D107,$P$10,E107,$Q$10,G107,$R$10,J107,\"\"),\"emptyTuple\")","v":"emptyTuple"}]
[98,null,null,null,null,null,null,null,null,null,null,null,{"$f":"IF(OR(B108<>\"\",C108<>\"\",D108<>\"\",E108<>\"\",G108<>\"\",J108<>\"\"),XBRLMapTuple($M$9,$N$5,$N$6,\"BMA\",CONFIGURATION!$B$1,\"bscr\",\"\",CONFIGURATION!$B$12,$M$10,B108,$N$10,C108,$O$10,D108,$P$10,E108,$Q$10,G108,$R$10,J108,\"\"),\"emptyTuple\")","v":"emptyTuple"}]
[99,null,null,null,null,null,null,null,null,null,null,null,{"$f":"IF(OR(B109<>\"\",C109<>\"\",D109<>\"\",E109<>\"\",G109<>\"\",J109<>\"\"),XBRLMapTuple($M$9,$N$5,$N$6,\"BMA\",CONFIGURATION!$B$1,\"bscr\",\"\",CONFIGURATION!$B$12,$M$10,B109,$N$10,C109,$O$10,D109,$P$10,E109,$Q$10,G109,$R$10,J109,\"\"),\"emptyTuple\")","v":"emptyTuple"}]
[100,null,null,null,null,null,null,null,null,null,null,null,{"$f":"IF(OR(B110<>\"\",C110<>\"\",D110<>\"\",E110<>\"\",G110<>\"\",J110<>\"\"),XBRLMapTuple($M$9,$N$5,$N$6,\"BMA\",CONFIGURATION!$B$1,\"bscr\",\"\",CONFIGURATION!$B$12,$M$10,B110,$N$10,C110,$O$10,D110,$P$10,E110,$Q$10,G110,$R$10,J110,\"\"),\"emptyTuple\")","v":"emptyTuple"}]
[101,null,null,null,null,null,null,null,null,null,null,null,{"$f":"IF(OR(B111<>\"\",C111<>\"\",D111<>\"\",E111<>\"\",G111<>\"\",J111<>\"\"),XBRLMapTuple($M$9,$N$5,$N$6,\"BMA\",CONFIGURATION!$B$1,\"bscr\",\"\",CONFIGURATION!$B$12,$M$10,B111,$N$10,C111,$O$10,D111,$P$10,E111,$Q$10,G111,$R$10,J111,\"\"),\"emptyTuple\")","v":"emptyTuple"}]
[102,null,null,null,null,null,null,null,null,null,null,null,{"$f":"IF(OR(B112<>\"\",C112<>\"\",D112<>\"\",E112<>\"\",G112<>\"\",J112<>\"\"),XBRLMapTuple($M$9,$N$5,$N$6,\"BMA\",CONFIGURATION!$B$1,\"bscr\",\"\",CONFIGURATION!$B$12,$M$10,B112,$N$10,C112,$O$10,D112,$P$10,E112,$Q$10,G112,$R$10,J112,\"\"),\"emptyTuple\")","v":"emptyTuple"}]
[103,null,null,null,null,null,null,null,null,null,null,null,{"$f":"IF(OR(B113<>\"\",C113<>\"\",D113<>\"\",E113<>\"\",G113<>\"\",J113<>\"\"),XBRLMapTuple($M$9,$N$5,$N$6,\"BMA\",CONFIGURATION!$B$1,\"bscr\",\"\",CONFIGURATION!$B$12,$M$10,B113,$N$10,C113,$O$10,D113,$P$10,E113,$Q$10,G113,$R$10,J113,\"\"),\"emptyTuple\")","v":"emptyTuple"}]
[104,null,null,null,null,null,null,null,null,null,null,null,{"$f":"IF(OR(B114<>\"\",C114<>\"\",D114<>\"\",E114<>\"\",G114<>\"\",J114<>\"\"),XBRLMapTuple($M$9,$N$5,$N$6,\"BMA\",CONFIGURATION!$B$1,\"bscr\",\"\",CONFIGURATION!$B$12,$M$10,B114,$N$10,C114,$O$10,D114,$P$10,E114,$Q$10,G114,$R$10,J114,\"\"),\"emptyTuple\")","v":"emptyTuple"}]
[105,null,null,null,null,null,null,null,null,null,null,null,{"$f":"IF(OR(B115<>\"\",C115<>\"\",D115<>\"\",E115<>\"\",G115<>\"\",J115<>\"\"),XBRLMapTuple($M$9,$N$5,$N$6,\"BMA\",CONFIGURATION!$B$1,\"bscr\",\"\",CONFIGURATION!$B$12,$M$10,B115,$N$10,C115,$O$10,D115,$P$10,E115,$Q$10,G115,$R$10,J115,\"\"),\"emptyTuple\")","v":"emptyTuple"}]
[106,null,null,null,null,null,null,null,null,null,null,null,{"$f":"IF(OR(B116<>\"\",C116<>\"\",D116<>\"\",E116<>\"\",G116<>\"\",J116<>\"\"),XBRLMapTuple($M$9,$N$5,$N$6,\"BMA\",CONFIGURATION!$B$1,\"bscr\",\"\",CONFIGURATION!$B$12,$M$10,B116,$N$10,C116,$O$10,D116,$P$10,E116,$Q$10,G116,$R$10,J116,\"\"),\"emptyTuple\")","v":"emptyTuple"}]
[107,null,null,null,null,null,null,null,null,null,null,null,{"$f":"IF(OR(B117<>\"\",C117<>\"\",D117<>\"\",E117<>\"\",G117<>\"\",J117<>\"\"),XBRLMapTuple($M$9,$N$5,$N$6,\"BMA\",CONFIGURATION!$B$1,\"bscr\",\"\",CONFIGURATION!$B$12,$M$10,B117,$N$10,C117,$O$10,D117,$P$10,E117,$Q$10,G117,$R$10,J117,\"\"),\"emptyTuple\")","v":"emptyTuple"}]
[108,null,null,null,null,null,null,null,null,null,null,null,{"$f":"IF(OR(B118<>\"\",C118<>\"\",D118<>\"\",E118<>\"\",G118<>\"\",J118<>\"\"),XBRLMapTuple($M$9,$N$5,$N$6,\"BMA\",CONFIGURATION!$B$1,\"bscr\",\"\",CONFIGURATION!$B$12,$M$10,B118,$N$10,C118,$O$10,D118,$P$10,E118,$Q$10,G118,$R$10,J118,\"\"),\"emptyTuple\")","v":"emptyTuple"}]
[109,null,null,null,null,null,null,null,null,null,null,null,{"$f":"IF(OR(B119<>\"\",C119<>\"\",D119<>\"\",E119<>\"\",G119<>\"\",J119<>\"\"),XBRLMapTuple($M$9,$N$5,$N$6,\"BMA\",CONFIGURATION!$B$1,\"bscr\",\"\",CONFIGURATION!$B$12,$M$10,B119,$N$10,C119,$O$10,D119,$P$10,E119,$Q$10,G119,$R$10,J119,\"\"),\"emptyTuple\")","v":"emptyTuple"}]
[110,null,null,null,null,null,null,null,null,null,null,null,{"$f":"IF(OR(B120<>\"\",C120<>\"\",D120<>\"\",E120<>\"\",G120<>\"\",J120<>\"\"),XBRLMapTuple($M$9,$N$5,$N$6,\"BMA\",CONFIGURATION!$B$1,\"bscr\",\"\",CONFIGURATION!$B$12,$M$10,B120,$N$10,C120,$O$10,D120,$P$10,E120,$Q$10,G120,$R$10,J120,\"\"),\"emptyTuple\")","v":"emptyTuple"}]
[111,null,null,null,null,null,null,null,null,null,null,null,{"$f":"IF(OR(B121<>\"\",C121<>\"\",D121<>\"\",E121<>\"\",G121<>\"\",J121<>\"\"),XBRLMapTuple($M$9,$N$5,$N$6,\"BMA\",CONFIGURATION!$B$1,\"bscr\",\"\",CONFIGURATION!$B$12,$M$10,B121,$N$10,C121,$O$10,D121,$P$10,E121,$Q$10,G121,$R$10,J121,\"\"),\"emptyTuple\")","v":"emptyTuple"}]
[112,null,null,null,null,null,null,null,null,null,null,null,{"$f":"IF(OR(B122<>\"\",C122<>\"\",D122<>\"\",E122<>\"\",G122<>\"\",J122<>\"\"),XBRLMapTuple($M$9,$N$5,$N$6,\"BMA\",CONFIGURATION!$B$1,\"bscr\",\"\",CONFIGURATION!$B$12,$M$10,B122,$N$10,C122,$O$10,D122,$P$10,E122,$Q$10,G122,$R$10,J122,\"\"),\"emptyTuple\")","v":"emptyTuple"}]
[113,null,null,null,null,null,null,null,null,null,null,null,{"$f":"IF(OR(B123<>\"\",C123<>\"\",D123<>\"\",E123<>\"\",G123<>\"\",J123<>\"\"),XBRLMapTuple($M$9,$N$5,$N$6,\"BMA\",CONFIGURATION!$B$1,\"bscr\",\"\",CONFIGURATION!$B$12,$M$10,B123,$N$10,C123,$O$10,D123,$P$10,E123,$Q$10,G123,$R$10,J123,\"\"),\"emptyTuple\")","v":"emptyTuple"}]
[114,null,null,null,null,null,null,null,null,null,null,null,{"$f":"IF(OR(B124<>\"\",C124<>\"\",D124<>\"\",E124<>\"\",G124<>\"\",J124<>\"\"),XBRLMapTuple($M$9,$N$5,$N$6,\"BMA\",CONFIGURATION!$B$1,\"bscr\",\"\",CONFIGURATION!$B$12,$M$10,B124,$N$10,C124,$O$10,D124,$P$10,E124,$Q$10,G124,$R$10,J124,\"\"),\"emptyTuple\")","v":"emptyTuple"}]
[115,null,null,null,null,null,null,null,null,null,null,null,{"$f":"IF(OR(B125<>\"\",C125<>\"\",D125<>\"\",E125<>\"\",G125<>\"\",J125<>\"\"),XBRLMapTuple($M$9,$N$5,$N$6,\"BMA\",CONFIGURATION!$B$1,\"bscr\",\"\",CONFIGURATION!$B$12,$M$10,B125,$N$10,C125,$O$10,D125,$P$10,E125,$Q$10,G125,$R$10,J125,\"\"),\"emptyTuple\")","v":"emptyTuple"}]
[116,null,null,null,null,null,null,null,null,null,null,null,{"$f":"IF(OR(B126<>\"\",C126<>\"\",D126<>\"\",E126<>\"\",G126<>\"\",J126<>\"\"),XBRLMapTuple($M$9,$N$5,$N$6,\"BMA\",CONFIGURATION!$B$1,\"bscr\",\"\",CONFIGURATION!$B$12,$M$10,B126,$N$10,C126,$O$10,D126,$P$10,E126,$Q$10,G126,$R$10,J126,\"\"),\"emptyTuple\")","v":"emptyTuple"}]
[117,null,null,null,null,null,null,null,null,null,null,null,{"$f":"IF(OR(B127<>\"\",C127<>\"\",D127<>\"\",E127<>\"\",G127<>\"\",J127<>\"\"),XBRLMapTuple($M$9,$N$5,$N$6,\"BMA\",CONFIGURATION!$B$1,\"bscr\",\"\",CONFIGURATION!$B$12,$M$10,B127,$N$10,C127,$O$10,D127,$P$10,E127,$Q$10,G127,$R$10,J127,\"\"),\"emptyTuple\")","v":"emptyTuple"}]
[118,null,null,null,null,null,null,null,null,null,null,null,{"$f":"IF(OR(B128<>\"\",C128<>\"\",D128<>\"\",E128<>\"\",G128<>\"\",J128<>\"\"),XBRLMapTuple($M$9,$N$5,$N$6,\"BMA\",CONFIGURATION!$B$1,\"bscr\",\"\",CONFIGURATION!$B$12,$M$10,B128,$N$10,C128,$O$10,D128,$P$10,E128,$Q$10,G128,$R$10,J128,\"\"),\"emptyTuple\")","v":"emptyTuple"}]
[119,null,null,null,null,null,null,null,null,null,null,null,{"$f":"IF(OR(B129<>\"\",C129<>\"\",D129<>\"\",E129<>\"\",G129<>\"\",J129<>\"\"),XBRLMapTuple($M$9,$N$5,$N$6,\"BMA\",CONFIGURATION!$B$1,\"bscr\",\"\",CONFIGURATION!$B$12,$M$10,B129,$N$10,C129,$O$10,D129,$P$10,E129,$Q$10,G129,$R$10,J129,\"\"),\"emptyTuple\")","v":"emptyTuple"}]
[120,null,null,null,null,null,null,null,null,null,null,null,{"$f":"IF(OR(B130<>\"\",C130<>\"\",D130<>\"\",E130<>\"\",G130<>\"\",J130<>\"\"),XBRLMapTuple($M$9,$N$5,$N$6,\"BMA\",CONFIGURATION!$B$1,\"bscr\",\"\",CONFIGURATION!$B$12,$M$10,B130,$N$10,C130,$O$10,D130,$P$10,E130,$Q$10,G130,$R$10,J130,\"\"),\"emptyTuple\")","v":"emptyTuple"}]
[121,null,null,null,null,null,null,null,null,null,null,null,{"$f":"IF(OR(B131<>\"\",C131<>\"\",D131<>\"\",E131<>\"\",G131<>\"\",J131<>\"\"),XBRLMapTuple($M$9,$N$5,$N$6,\"BMA\",CONFIGURATION!$B$1,\"bscr\",\"\",CONFIGURATION!$B$12,$M$10,B131,$N$10,C131,$O$10,D131,$P$10,E131,$Q$10,G131,$R$10,J131,\"\"),\"emptyTuple\")","v":"emptyTuple"}]
[122,null,null,null,null,null,null,null,null,null,null,null,{"$f":"IF(OR(B132<>\"\",C132<>\"\",D132<>\"\",E132<>\"\",G132<>\"\",J132<>\"\"),XBRLMapTuple($M$9,$N$5,$N$6,\"BMA\",CONFIGURATION!$B$1,\"bscr\",\"\",CONFIGURATION!$B$12,$M$10,B132,$N$10,C132,$O$10,D132,$P$10,E132,$Q$10,G132,$R$10,J132,\"\"),\"emptyTuple\")","v":"emptyTuple"}]
[123,null,null,null,null,null,null,null,null,null,null,null,{"$f":"IF(OR(B133<>\"\",C133<>\"\",D133<>\"\",E133<>\"\",G133<>\"\",J133<>\"\"),XBRLMapTuple($M$9,$N$5,$N$6,\"BMA\",CONFIGURATION!$B$1,\"bscr\",\"\",CONFIGURATION!$B$12,$M$10,B133,$N$10,C133,$O$10,D133,$P$10,E133,$Q$10,G133,$R$10,J133,\"\"),\"emptyTuple\")","v":"emptyTuple"}]
[124,null,null,null,null,null,null,null,null,null,null,null,{"$f":"IF(OR(B134<>\"\",C134<>\"\",D134<>\"\",E134<>\"\",G134<>\"\",J134<>\"\"),XBRLMapTuple($M$9,$N$5,$N$6,\"BMA\",CONFIGURATION!$B$1,\"bscr\",\"\",CONFIGURATION!$B$12,$M$10,B134,$N$10,C134,$O$10,D134,$P$10,E134,$Q$10,G134,$R$10,J134,\"\"),\"emptyTuple\")","v":"emptyTuple"}]
[125,null,null,null,null,null,null,null,null,null,null,null,{"$f":"IF(OR(B135<>\"\",C135<>\"\",D135<>\"\",E135<>\"\",G135<>\"\",J135<>\"\"),XBRLMapTuple($M$9,$N$5,$N$6,\"BMA\",CONFIGURATION!$B$1,\"bscr\",\"\",CONFIGURATION!$B$12,$M$10,B135,$N$10,C135,$O$10,D135,$P$10,E135,$Q$10,G135,$R$10,J135,\"\"),\"emptyTuple\")","v":"emptyTuple"}]
[126,null,null,null,null,null,null,null,null,null,null,null,{"$f":"IF(OR(B136<>\"\",C136<>\"\",D136<>\"\",E136<>\"\",G136<>\"\",J136<>\"\"),XBRLMapTuple($M$9,$N$5,$N$6,\"BMA\",CONFIGURATION!$B$1,\"bscr\",\"\",CONFIGURATION!$B$12,$M$10,B136,$N$10,C136,$O$10,D136,$P$10,E136,$Q$10,G136,$R$10,J136,\"\"),\"emptyTuple\")","v":"emptyTuple"}]
[127,null,null,null,null,null,null,null,null,null,null,null,{"$f":"IF(OR(B137<>\"\",C137<>\"\",D137<>\"\",E137<>\"\",G137<>\"\",J137<>\"\"),XBRLMapTuple($M$9,$N$5,$N$6,\"BMA\",CONFIGURATION!$B$1,\"bscr\",\"\",CONFIGURATION!$B$12,$M$10,B137,$N$10,C137,$O$10,D137,$P$10,E137,$Q$10,G137,$R$10,J137,\"\"),\"emptyTuple\")","v":"emptyTuple"}]
[128,null,null,null,null,null,null,null,null,null,null,null,{"$f":"IF(OR(B138<>\"\",C138<>\"\",D138<>\"\",E138<>\"\",G138<>\"\",J138<>\"\"),XBRLMapTuple($M$9,$N$5,$N$6,\"BMA\",CONFIGURATION!$B$1,\"bscr\",\"\",CONFIGURATION!$B$12,$M$10,B138,$N$10,C138,$O$10,D138,$P$10,E138,$Q$10,G138,$R$10,J138,\"\"),\"emptyTuple\")","v":"emptyTuple"}]
[129,null,null,null,null,null,null,null,null,null,null,null,{"$f":"IF(OR(B139<>\"\",C139<>\"\",D139<>\"\",E139<>\"\",G139<>\"\",J139<>\"\"),XBRLMapTuple($M$9,$N$5,$N$6,\"BMA\",CONFIGURATION!$B$1,\"bscr\",\"\",CONFIGURATION!$B$12,$M$10,B139,$N$10,C139,$O$10,D139,$P$10,E139,$Q$10,G139,$R$10,J139,\"\"),\"emptyTuple\")","v":"emptyTuple"}]
[130,null,null,null,null,null,null,null,null,null,null,null,{"$f":"IF(OR(B140<>\"\",C140<>\"\",D140<>\"\",E140<>\"\",G140<>\"\",J140<>\"\"),XBRLMapTuple($M$9,$N$5,$N$6,\"BMA\",CONFIGURATION!$B$1,\"bscr\",\"\",CONFIGURATION!$B$12,$M$10,B140,$N$10,C140,$O$10,D140,$P$10,E140,$Q$10,G140,$R$10,J140,\"\"),\"emptyTuple\")","v":"emptyTuple"}]
[131,null,null,null,null,null,null,null,null,null,null,null,{"$f":"IF(OR(B141<>\"\",C141<>\"\",D141<>\"\",E141<>\"\",G141<>\"\",J141<>\"\"),XBRLMapTuple($M$9,$N$5,$N$6,\"BMA\",CONFIGURATION!$B$1,\"bscr\",\"\",CONFIGURATION!$B$12,$M$10,B141,$N$10,C141,$O$10,D141,$P$10,E141,$Q$10,G141,$R$10,J141,\"\"),\"emptyTuple\")","v":"emptyTuple"}]
[132,null,null,null,null,null,null,null,null,null,null,null,{"$f":"IF(OR(B142<>\"\",C142<>\"\",D142<>\"\",E142<>\"\",G142<>\"\",J142<>\"\"),XBRLMapTuple($M$9,$N$5,$N$6,\"BMA\",CONFIGURATION!$B$1,\"bscr\",\"\",CONFIGURATION!$B$12,$M$10,B142,$N$10,C142,$O$10,D142,$P$10,E142,$Q$10,G142,$R$10,J142,\"\"),\"emptyTuple\")","v":"emptyTuple"}]
[133,null,null,null,null,null,null,null,null,null,null,null,{"$f":"IF(OR(B143<>\"\",C143<>\"\",D143<>\"\",E143<>\"\",G143<>\"\",J143<>\"\"),XBRLMapTuple($M$9,$N$5,$N$6,\"BMA\",CONFIGURATION!$B$1,\"bscr\",\"\",CONFIGURATION!$B$12,$M$10,B143,$N$10,C143,$O$10,D143,$P$10,E143,$Q$10,G143,$R$10,J143,\"\"),\"emptyTuple\")","v":"emptyTuple"}]
[134,null,null,null,null,null,null,null,null,null,null,null,{"$f":"IF(OR(B144<>\"\",C144<>\"\",D144<>\"\",E144<>\"\",G144<>\"\",J144<>\"\"),XBRLMapTuple($M$9,$N$5,$N$6,\"BMA\",CONFIGURATION!$B$1,\"bscr\",\"\",CONFIGURATION!$B$12,$M$10,B144,$N$10,C144,$O$10,D144,$P$10,E144,$Q$10,G144,$R$10,J144,\"\"),\"emptyTuple\")","v":"emptyTuple"}]
[135,null,null,null,null,null,null,null,null,null,null,null,{"$f":"IF(OR(B145<>\"\",C145<>\"\",D145<>\"\",E145<>\"\",G145<>\"\",J145<>\"\"),XBRLMapTuple($M$9,$N$5,$N$6,\"BMA\",CONFIGURATION!$B$1,\"bscr\",\"\",CONFIGURATION!$B$12,$M$10,B145,$N$10,C145,$O$10,D145,$P$10,E145,$Q$10,G145,$R$10,J145,\"\"),\"emptyTuple\")","v":"emptyTuple"}]
[136,null,null,null,null,null,null,null,null,null,null,null,{"$f":"IF(OR(B146<>\"\",C146<>\"\",D146<>\"\",E146<>\"\",G146<>\"\",J146<>\"\"),XBRLMapTuple($M$9,$N$5,$N$6,\"BMA\",CONFIGURATION!$B$1,\"bscr\",\"\",CONFIGURATION!$B$12,$M$10,B146,$N$10,C146,$O$10,D146,$P$10,E146,$Q$10,G146,$R$10,J146,\"\"),\"emptyTuple\")","v":"emptyTuple"}]
[137,null,null,null,null,null,null,null,null,null,null,null,{"$f":"IF(OR(B147<>\"\",C147<>\"\",D147<>\"\",E147<>\"\",G147<>\"\",J147<>\"\"),XBRLMapTuple($M$9,$N$5,$N$6,\"BMA\",CONFIGURATION!$B$1,\"bscr\",\"\",CONFIGURATION!$B$12,$M$10,B147,$N$10,C147,$O$10,D147,$P$10,E147,$Q$10,G147,$R$10,J147,\"\"),\"emptyTuple\")","v":"emptyTuple"}]
[138,null,null,null,null,null,null,null,null,null,null,null,{"$f":"IF(OR(B148<>\"\",C148<>\"\",D148<>\"\",E148<>\"\",G148<>\"\",J148<>\"\"),XBRLMapTuple($M$9,$N$5,$N$6,\"BMA\",CONFIGURATION!$B$1,\"bscr\",\"\",CONFIGURATION!$B$12,$M$10,B148,$N$10,C148,$O$10,D148,$P$10,E148,$Q$10,G148,$R$10,J148,\"\"),\"emptyTuple\")","v":"emptyTuple"}]
[139,null,null,null,null,null,null,null,null,null,null,null,{"$f":"IF(OR(B149<>\"\",C149<>\"\",D149<>\"\",E149<>\"\",G149<>\"\",J149<>\"\"),XBRLMapTuple($M$9,$N$5,$N$6,\"BMA\",CONFIGURATION!$B$1,\"bscr\",\"\",CONFIGURATION!$B$12,$M$10,B149,$N$10,C149,$O$10,D149,$P$10,E149,$Q$10,G149,$R$10,J149,\"\"),\"emptyTuple\")","v":"emptyTuple"}]
[140,null,null,null,null,null,null,null,null,null,null,null,{"$f":"IF(OR(B150<>\"\",C150<>\"\",D150<>\"\",E150<>\"\",G150<>\"\",J150<>\"\"),XBRLMapTuple($M$9,$N$5,$N$6,\"BMA\",CONFIGURATION!$B$1,\"bscr\",\"\",CONFIGURATION!$B$12,$M$10,B150,$N$10,C150,$O$10,D150,$P$10,E150,$Q$10,G150,$R$10,J150,\"\"),\"emptyTuple\")","v":"emptyTuple"}]
[141,null,null,null,null,null,null,null,null,null,null,null,{"$f":"IF(OR(B151<>\"\",C151<>\"\",D151<>\"\",E151<>\"\",G151<>\"\",J151<>\"\"),XBRLMapTuple($M$9,$N$5,$N$6,\"BMA\",CONFIGURATION!$B$1,\"bscr\",\"\",CONFIGURATION!$B$12,$M$10,B151,$N$10,C151,$O$10,D151,$P$10,E151,$Q$10,G151,$R$10,J151,\"\"),\"emptyTuple\")","v":"emptyTuple"}]
[142,null,null,null,null,null,null,null,null,null,null,null,{"$f":"IF(OR(B152<>\"\",C152<>\"\",D152<>\"\",E152<>\"\",G152<>\"\",J152<>\"\"),XBRLMapTuple($M$9,$N$5,$N$6,\"BMA\",CONFIGURATION!$B$1,\"bscr\",\"\",CONFIGURATION!$B$12,$M$10,B152,$N$10,C152,$O$10,D152,$P$10,E152,$Q$10,G152,$R$10,J152,\"\"),\"emptyTuple\")","v":"emptyTuple"}]
[143,null,null,null,null,null,null,null,null,null,null,null,{"$f":"IF(OR(B153<>\"\",C153<>\"\",D153<>\"\",E153<>\"\",G153<>\"\",J153<>\"\"),XBRLMapTuple($M$9,$N$5,$N$6,\"BMA\",CONFIGURATION!$B$1,\"bscr\",\"\",CONFIGURATION!$B$12,$M$10,B153,$N$10,C153,$O$10,D153,$P$10,E153,$Q$10,G153,$R$10,J153,\"\"),\"emptyTuple\")","v":"emptyTuple"}]
[144,null,null,null,null,null,null,null,null,null,null,null,{"$f":"IF(OR(B154<>\"\",C154<>\"\",D154<>\"\",E154<>\"\",G154<>\"\",J154<>\"\"),XBRLMapTuple($M$9,$N$5,$N$6,\"BMA\",CONFIGURATION!$B$1,\"bscr\",\"\",CONFIGURATION!$B$12,$M$10,B154,$N$10,C154,$O$10,D154,$P$10,E154,$Q$10,G154,$R$10,J154,\"\"),\"emptyTuple\")","v":"emptyTuple"}]
[145,null,null,null,null,null,null,null,null,null,null,null,{"$f":"IF(OR(B155<>\"\",C155<>\"\",D155<>\"\",E155<>\"\",G155<>\"\",J155<>\"\"),XBRLMapTuple($M$9,$N$5,$N$6,\"BMA\",CONFIGURATION!$B$1,\"bscr\",\"\",CONFIGURATION!$B$12,$M$10,B155,$N$10,C155,$O$10,D155,$P$10,E155,$Q$10,G155,$R$10,J155,\"\"),\"emptyTuple\")","v":"emptyTuple"}]
[146,null,null,null,null,null,null,null,null,null,null,null,{"$f":"IF(OR(B156<>\"\",C156<>\"\",D156<>\"\",E156<>\"\",G156<>\"\",J156<>\"\"),XBRLMapTuple($M$9,$N$5,$N$6,\"BMA\",CONFIGURATION!$B$1,\"bscr\",\"\",CONFIGURATION!$B$12,$M$10,B156,$N$10,C156,$O$10,D156,$P$10,E156,$Q$10,G156,$R$10,J156,\"\"),\"emptyTuple\")","v":"emptyTuple"}]
[147,null,null,null,null,null,null,null,null,null,null,null,{"$f":"IF(OR(B157<>\"\",C157<>\"\",D157<>\"\",E157<>\"\",G157<>\"\",J157<>\"\"),XBRLMapTuple($M$9,$N$5,$N$6,\"BMA\",CONFIGURATION!$B$1,\"bscr\",\"\",CONFIGURATION!$B$12,$M$10,B157,$N$10,C157,$O$10,D157,$P$10,E157,$Q$10,G157,$R$10,J157,\"\"),\"emptyTuple\")","v":"emptyTuple"}]
[148,null,null,null,null,null,null,null,null,null,null,null,{"$f":"IF(OR(B158<>\"\",C158<>\"\",D158<>\"\",E158<>\"\",G158<>\"\",J158<>\"\"),XBRLMapTuple($M$9,$N$5,$N$6,\"BMA\",CONFIGURATION!$B$1,\"bscr\",\"\",CONFIGURATION!$B$12,$M$10,B158,$N$10,C158,$O$10,D158,$P$10,E158,$Q$10,G158,$R$10,J158,\"\"),\"emptyTuple\")","v":"emptyTuple"}]
[149,null,null,null,null,null,null,null,null,null,null,null,{"$f":"IF(OR(B159<>\"\",C159<>\"\",D159<>\"\",E159<>\"\",G159<>\"\",J159<>\"\"),XBRLMapTuple($M$9,$N$5,$N$6,\"BMA\",CONFIGURATION!$B$1,\"bscr\",\"\",CONFIGURATION!$B$12,$M$10,B159,$N$10,C159,$O$10,D159,$P$10,E159,$Q$10,G159,$R$10,J159,\"\"),\"emptyTuple\")","v":"emptyTuple"}]
[150,null,null,null,null,null,null,null,null,null,null,null,{"$f":"IF(OR(B160<>\"\",C160<>\"\",D160<>\"\",E160<>\"\",G160<>\"\",J160<>\"\"),XBRLMapTuple($M$9,$N$5,$N$6,\"BMA\",CONFIGURATION!$B$1,\"bscr\",\"\",CONFIGURATION!$B$12,$M$10,B160,$N$10,C160,$O$10,D160,$P$10,E160,$Q$10,G160,$R$10,J160,\"\"),\"emptyTuple\")","v":"emptyTuple"}]
[151,null,null,null,null,null,null,null,null,null,null,null,{"$f":"IF(OR(B161<>\"\",C161<>\"\",D161<>\"\",E161<>\"\",G161<>\"\",J161<>\"\"),XBRLMapTuple($M$9,$N$5,$N$6,\"BMA\",CONFIGURATION!$B$1,\"bscr\",\"\",CONFIGURATION!$B$12,$M$10,B161,$N$10,C161,$O$10,D161,$P$10,E161,$Q$10,G161,$R$10,J161,\"\"),\"emptyTuple\")","v":"emptyTuple"}]
[152,null,null,null,null,null,null,null,null,null,null,null,{"$f":"IF(OR(B162<>\"\",C162<>\"\",D162<>\"\",E162<>\"\",G162<>\"\",J162<>\"\"),XBRLMapTuple($M$9,$N$5,$N$6,\"BMA\",CONFIGURATION!$B$1,\"bscr\",\"\",CONFIGURATION!$B$12,$M$10,B162,$N$10,C162,$O$10,D162,$P$10,E162,$Q$10,G162,$R$10,J162,\"\"),\"emptyTuple\")","v":"emptyTuple"}]
[153,null,null,null,null,null,null,null,null,null,null,null,{"$f":"IF(OR(B163<>\"\",C163<>\"\",D163<>\"\",E163<>\"\",G163<>\"\",J163<>\"\"),XBRLMapTuple($M$9,$N$5,$N$6,\"BMA\",CONFIGURATION!$B$1,\"bscr\",\"\",CONFIGURATION!$B$12,$M$10,B163,$N$10,C163,$O$10,D163,$P$10,E163,$Q$10,G163,$R$10,J163,\"\"),\"emptyTuple\")","v":"emptyTuple"}]
[154,null,null,null,null,null,null,null,null,null,null,null,{"$f":"IF(OR(B164<>\"\",C164<>\"\",D164<>\"\",E164<>\"\",G164<>\"\",J164<>\"\"),XBRLMapTuple($M$9,$N$5,$N$6,\"BMA\",CONFIGURATION!$B$1,\"bscr\",\"\",CONFIGURATION!$B$12,$M$10,B164,$N$10,C164,$O$10,D164,$P$10,E164,$Q$10,G164,$R$10,J164,\"\"),\"emptyTuple\")","v":"emptyTuple"}]
[155,null,null,null,null,null,null,null,null,null,null,null,{"$f":"IF(OR(B165<>\"\",C165<>\"\",D165<>\"\",E165<>\"\",G165<>\"\",J165<>\"\"),XBRLMapTuple($M$9,$N$5,$N$6,\"BMA\",CONFIGURATION!$B$1,\"bscr\",\"\",CONFIGURATION!$B$12,$M$10,B165,$N$10,C165,$O$10,D165,$P$10,E165,$Q$10,G165,$R$10,J165,\"\"),\"emptyTuple\")","v":"emptyTuple"}]
[156,null,null,null,null,null,null,null,null,null,null,null,{"$f":"IF(OR(B166<>\"\",C166<>\"\",D166<>\"\",E166<>\"\",G166<>\"\",J166<>\"\"),XBRLMapTuple($M$9,$N$5,$N$6,\"BMA\",CONFIGURATION!$B$1,\"bscr\",\"\",CONFIGURATION!$B$12,$M$10,B166,$N$10,C166,$O$10,D166,$P$10,E166,$Q$10,G166,$R$10,J166,\"\"),\"emptyTuple\")","v":"emptyTuple"}]
[157,null,null,null,null,null,null,null,null,null,null,null,{"$f":"IF(OR(B167<>\"\",C167<>\"\",D167<>\"\",E167<>\"\",G167<>\"\",J167<>\"\"),XBRLMapTuple($M$9,$N$5,$N$6,\"BMA\",CONFIGURATION!$B$1,\"bscr\",\"\",CONFIGURATION!$B$12,$M$10,B167,$N$10,C167,$O$10,D167,$P$10,E167,$Q$10,G167,$R$10,J167,\"\"),\"emptyTuple\")","v":"emptyTuple"}]
[158,null,null,null,null,null,null,null,null,null,null,null,{"$f":"IF(OR(B168<>\"\",C168<>\"\",D168<>\"\",E168<>\"\",G168<>\"\",J168<>\"\"),XBRLMapTuple($M$9,$N$5,$N$6,\"BMA\",CONFIGURATION!$B$1,\"bscr\",\"\",CONFIGURATION!$B$12,$M$10,B168,$N$10,C168,$O$10,D168,$P$10,E168,$Q$10,G168,$R$10,J168,\"\"),\"emptyTuple\")","v":"emptyTuple"}]
[159,null,null,null,null,null,null,null,null,null,null,null,{"$f":"IF(OR(B169<>\"\",C169<>\"\",D169<>\"\",E169<>\"\",G169<>\"\",J169<>\"\"),XBRLMapTuple($M$9,$N$5,$N$6,\"BMA\",CONFIGURATION!$B$1,\"bscr\",\"\",CONFIGURATION!$B$12,$M$10,B169,$N$10,C169,$O$10,D169,$P$10,E169,$Q$10,G169,$R$10,J169,\"\"),\"emptyTuple\")","v":"emptyTuple"}]
[160,null,null,null,null,null,null,null,null,null,null,null,{"$f":"IF(OR(B170<>\"\",C170<>\"\",D170<>\"\",E170<>\"\",G170<>\"\",J170<>\"\"),XBRLMapTuple($M$9,$N$5,$N$6,\"BMA\",CONFIGURATION!$B$1,\"bscr\",\"\",CONFIGURATION!$B$12,$M$10,B170,$N$10,C170,$O$10,D170,$P$10,E170,$Q$10,G170,$R$10,J170,\"\"),\"emptyTuple\")","v":"emptyTuple"}]
[161,null,null,null,null,null,null,null,null,null,null,null,{"$f":"IF(OR(B171<>\"\",C171<>\"\",D171<>\"\",E171<>\"\",G171<>\"\",J171<>\"\"),XBRLMapTuple($M$9,$N$5,$N$6,\"BMA\",CONFIGURATION!$B$1,\"bscr\",\"\",CONFIGURATION!$B$12,$M$10,B171,$N$10,C171,$O$10,D171,$P$10,E171,$Q$10,G171,$R$10,J171,\"\"),\"emptyTuple\")","v":"emptyTuple"}]
[162,null,null,null,null,null,null,null,null,null,null,null,{"$f":"IF(OR(B172<>\"\",C172<>\"\",D172<>\"\",E172<>\"\",G172<>\"\",J172<>\"\"),XBRLMapTuple($M$9,$N$5,$N$6,\"BMA\",CONFIGURATION!$B$1,\"bscr\",\"\",CONFIGURATION!$B$12,$M$10,B172,$N$10,C172,$O$10,D172,$P$10,E172,$Q$10,G172,$R$10,J172,\"\"),\"emptyTuple\")","v":"emptyTuple"}]
[163,null,null,null,null,null,null,null,null,null,null,null,{"$f":"IF(OR(B173<>\"\",C173<>\"\",D173<>\"\",E173<>\"\",G173<>\"\",J173<>\"\"),XBRLMapTuple($M$9,$N$5,$N$6,\"BMA\",CONFIGURATION!$B$1,\"bscr\",\"\",CONFIGURATION!$B$12,$M$10,B173,$N$10,C173,$O$10,D173,$P$10,E173,$Q$10,G173,$R$10,J173,\"\"),\"emptyTuple\")","v":"emptyTuple"}]
[164,null,null,null,null,null,null,null,null,null,null,null,{"$f":"IF(OR(B174<>\"\",C174<>\"\",D174<>\"\",E174<>\"\",G174<>\"\",J174<>\"\"),XBRLMapTuple($M$9,$N$5,$N$6,\"BMA\",CONFIGURATION!$B$1,\"bscr\",\"\",CONFIGURATION!$B$12,$M$10,B174,$N$10,C174,$O$10,D174,$P$10,E174,$Q$10,G174,$R$10,J174,\"\"),\"emptyTuple\")","v":"emptyTuple"}]
[165,null,null,null,null,null,null,null,null,null,null,null,{"$f":"IF(OR(B175<>\"\",C175<>\"\",D175<>\"\",E175<>\"\",G175<>\"\",J175<>\"\"),XBRLMapTuple($M$9,$N$5,$N$6,\"BMA\",CONFIGURATION!$B$1,\"bscr\",\"\",CONFIGURATION!$B$12,$M$10,B175,$N$10,C175,$O$10,D175,$P$10,E175,$Q$10,G175,$R$10,J175,\"\"),\"emptyTuple\")","v":"emptyTuple"}]
[166,null,null,null,null,null,null,null,null,null,null,null,{"$f":"IF(OR(B176<>\"\",C176<>\"\",D176<>\"\",E176<>\"\",G176<>\"\",J176<>\"\"),XBRLMapTuple($M$9,$N$5,$N$6,\"BMA\",CONFIGURATION!$B$1,\"bscr\",\"\",CONFIGURATION!$B$12,$M$10,B176,$N$10,C176,$O$10,D176,$P$10,E176,$Q$10,G176,$R$10,J176,\"\"),\"emptyTuple\")","v":"emptyTuple"}]
[167,null,null,null,null,null,null,null,null,null,null,null,{"$f":"IF(OR(B177<>\"\",C177<>\"\",D177<>\"\",E177<>\"\",G177<>\"\",J177<>\"\"),XBRLMapTuple($M$9,$N$5,$N$6,\"BMA\",CONFIGURATION!$B$1,\"bscr\",\"\",CONFIGURATION!$B$12,$M$10,B177,$N$10,C177,$O$10,D177,$P$10,E177,$Q$10,G177,$R$10,J177,\"\"),\"emptyTuple\")","v":"emptyTuple"}]
[168,null,null,null,null,null,null,null,null,null,null,null,{"$f":"IF(OR(B178<>\"\",C178<>\"\",D178<>\"\",E178<>\"\",G178<>\"\",J178<>\"\"),XBRLMapTuple($M$9,$N$5,$N$6,\"BMA\",CONFIGURATION!$B$1,\"bscr\",\"\",CONFIGURATION!$B$12,$M$10,B178,$N$10,C178,$O$10,D178,$P$10,E178,$Q$10,G178,$R$10,J178,\"\"),\"emptyTuple\")","v":"emptyTuple"}]
[169,null,null,null,null,null,null,null,null,null,null,null,{"$f":"IF(OR(B179<>\"\",C179<>\"\",D179<>\"\",E179<>\"\",G179<>\"\",J179<>\"\"),XBRLMapTuple($M$9,$N$5,$N$6,\"BMA\",CONFIGURATION!$B$1,\"bscr\",\"\",CONFIGURATION!$B$12,$M$10,B179,$N$10,C179,$O$10,D179,$P$10,E179,$Q$10,G179,$R$10,J179,\"\"),\"emptyTuple\")","v":"emptyTuple"}]
[170,null,null,null,null,null,null,null,null,null,null,null,{"$f":"IF(OR(B180<>\"\",C180<>\"\",D180<>\"\",E180<>\"\",G180<>\"\",J180<>\"\"),XBRLMapTuple($M$9,$N$5,$N$6,\"BMA\",CONFIGURATION!$B$1,\"bscr\",\"\",CONFIGURATION!$B$12,$M$10,B180,$N$10,C180,$O$10,D180,$P$10,E180,$Q$10,G180,$R$10,J180,\"\"),\"emptyTuple\")","v":"emptyTuple"}]
[171,null,null,null,null,null,null,null,null,null,null,null,{"$f":"IF(OR(B181<>\"\",C181<>\"\",D181<>\"\",E181<>\"\",G181<>\"\",J181<>\"\"),XBRLMapTuple($M$9,$N$5,$N$6,\"BMA\",CONFIGURATION!$B$1,\"bscr\",\"\",CONFIGURATION!$B$12,$M$10,B181,$N$10,C181,$O$10,D181,$P$10,E181,$Q$10,G181,$R$10,J181,\"\"),\"emptyTuple\")","v":"emptyTuple"}]
[172,null,null,null,null,null,null,null,null,null,null,null,{"$f":"IF(OR(B182<>\"\",C182<>\"\",D182<>\"\",E182<>\"\",G182<>\"\",J182<>\"\"),XBRLMapTuple($M$9,$N$5,$N$6,\"BMA\",CONFIGURATION!$B$1,\"bscr\",\"\",CONFIGURATION!$B$12,$M$10,B182,$N$10,C182,$O$10,D182,$P$10,E182,$Q$10,G182,$R$10,J182,\"\"),\"emptyTuple\")","v":"emptyTuple"}]
[173,null,null,null,null,null,null,null,null,null,null,null,{"$f":"IF(OR(B183<>\"\",C183<>\"\",D183<>\"\",E183<>\"\",G183<>\"\",J183<>\"\"),XBRLMapTuple($M$9,$N$5,$N$6,\"BMA\",CONFIGURATION!$B$1,\"bscr\",\"\",CONFIGURATION!$B$12,$M$10,B183,$N$10,C183,$O$10,D183,$P$10,E183,$Q$10,G183,$R$10,J183,\"\"),\"emptyTuple\")","v":"emptyTuple"}]
[174,null,null,null,null,null,null,null,null,null,null,null,{"$f":"IF(OR(B184<>\"\",C184<>\"\",D184<>\"\",E184<>\"\",G184<>\"\",J184<>\"\"),XBRLMapTuple($M$9,$N$5,$N$6,\"BMA\",CONFIGURATION!$B$1,\"bscr\",\"\",CONFIGURATION!$B$12,$M$10,B184,$N$10,C184,$O$10,D184,$P$10,E184,$Q$10,G184,$R$10,J184,\"\"),\"emptyTuple\")","v":"emptyTuple"}]
[175,null,null,null,null,null,null,null,null,null,null,null,{"$f":"IF(OR(B185<>\"\",C185<>\"\",D185<>\"\",E185<>\"\",G185<>\"\",J185<>\"\"),XBRLMapTuple($M$9,$N$5,$N$6,\"BMA\",CONFIGURATION!$B$1,\"bscr\",\"\",CONFIGURATION!$B$12,$M$10,B185,$N$10,C185,$O$10,D185,$P$10,E185,$Q$10,G185,$R$10,J185,\"\"),\"emptyTuple\")","v":"emptyTuple"}]
[176,null,null,null,null,null,null,null,null,null,null,null,{"$f":"IF(OR(B186<>\"\",C186<>\"\",D186<>\"\",E186<>\"\",G186<>\"\",J186<>\"\"),XBRLMapTuple($M$9,$N$5,$N$6,\"BMA\",CONFIGURATION!$B$1,\"bscr\",\"\",CONFIGURATION!$B$12,$M$10,B186,$N$10,C186,$O$10,D186,$P$10,E186,$Q$10,G186,$R$10,J186,\"\"),\"emptyTuple\")","v":"emptyTuple"}]
[177,null,null,null,null,null,null,null,null,null,null,null,{"$f":"IF(OR(B187<>\"\",C187<>\"\",D187<>\"\",E187<>\"\",G187<>\"\",J187<>\"\"),XBRLMapTuple($M$9,$N$5,$N$6,\"BMA\",CONFIGURATION!$B$1,\"bscr\",\"\",CONFIGURATION!$B$12,$M$10,B187,$N$10,C187,$O$10,D187,$P$10,E187,$Q$10,G187,$R$10,J187,\"\"),\"emptyTuple\")","v":"emptyTuple"}]
[178,null,null,null,null,null,null,null,null,null,null,null,{"$f":"IF(OR(B188<>\"\",C188<>\"\",D188<>\"\",E188<>\"\",G188<>\"\",J188<>\"\"),XBRLMapTuple($M$9,$N$5,$N$6,\"BMA\",CONFIGURATION!$B$1,\"bscr\",\"\",CONFIGURATION!$B$12,$M$10,B188,$N$10,C188,$O$10,D188,$P$10,E188,$Q$10,G188,$R$10,J188,\"\"),\"emptyTuple\")","v":"emptyTuple"}]
[179,null,null,null,null,null,null,null,null,null,null,null,{"$f":"IF(OR(B189<>\"\",C189<>\"\",D189<>\"\",E189<>\"\",G189<>\"\",J189<>\"\"),XBRLMapTuple($M$9,$N$5,$N$6,\"BMA\",CONFIGURATION!$B$1,\"bscr\",\"\",CONFIGURATION!$B$12,$M$10,B189,$N$10,C189,$O$10,D189,$P$10,E189,$Q$10,G189,$R$10,J189,\"\"),\"emptyTuple\")","v":"emptyTuple"}]
[180,null,null,null,null,null,null,null,null,null,null,null,{"$f":"IF(OR(B190<>\"\",C190<>\"\",D190<>\"\",E190<>\"\",G190<>\"\",J190<>\"\"),XBRLMapTuple($M$9,$N$5,$N$6,\"BMA\",CONFIGURATION!$B$1,\"bscr\",\"\",CONFIGURATION!$B$12,$M$10,B190,$N$10,C190,$O$10,D190,$P$10,E190,$Q$10,G190,$R$10,J190,\"\"),\"emptyTuple\")","v":"emptyTuple"}]
[181,null,null,null,null,null,null,null,null,null,null,null,{"$f":"IF(OR(B191<>\"\",C191<>\"\",D191<>\"\",E191<>\"\",G191<>\"\",J191<>\"\"),XBRLMapTuple($M$9,$N$5,$N$6,\"BMA\",CONFIGURATION!$B$1,\"bscr\",\"\",CONFIGURATION!$B$12,$M$10,B191,$N$10,C191,$O$10,D191,$P$10,E191,$Q$10,G191,$R$10,J191,\"\"),\"emptyTuple\")","v":"emptyTuple"}]
[182,null,null,null,null,null,null,null,null,null,null,null,{"$f":"IF(OR(B192<>\"\",C192<>\"\",D192<>\"\",E192<>\"\",G192<>\"\",J192<>\"\"),XBRLMapTuple($M$9,$N$5,$N$6,\"BMA\",CONFIGURATION!$B$1,\"bscr\",\"\",CONFIGURATION!$B$12,$M$10,B192,$N$10,C192,$O$10,D192,$P$10,E192,$Q$10,G192,$R$10,J192,\"\"),\"emptyTuple\")","v":"emptyTuple"}]
[183,null,null,null,null,null,null,null,null,null,null,null,{"$f":"IF(OR(B193<>\"\",C193<>\"\",D193<>\"\",E193<>\"\",G193<>\"\",J193<>\"\"),XBRLMapTuple($M$9,$N$5,$N$6,\"BMA\",CONFIGURATION!$B$1,\"bscr\",\"\",CONFIGURATION!$B$12,$M$10,B193,$N$10,C193,$O$10,D193,$P$10,E193,$Q$10,G193,$R$10,J193,\"\"),\"emptyTuple\")","v":"emptyTuple"}]
[184,null,null,null,null,null,null,null,null,null,null,null,{"$f":"IF(OR(B194<>\"\",C194<>\"\",D194<>\"\",E194<>\"\",G194<>\"\",J194<>\"\"),XBRLMapTuple($M$9,$N$5,$N$6,\"BMA\",CONFIGURATION!$B$1,\"bscr\",\"\",CONFIGURATION!$B$12,$M$10,B194,$N$10,C194,$O$10,D194,$P$10,E194,$Q$10,G194,$R$10,J194,\"\"),\"emptyTuple\")","v":"emptyTuple"}]
[185,null,null,null,null,null,null,null,null,null,null,null,{"$f":"IF(OR(B195<>\"\",C195<>\"\",D195<>\"\",E195<>\"\",G195<>\"\",J195<>\"\"),XBRLMapTuple($M$9,$N$5,$N$6,\"BMA\",CONFIGURATION!$B$1,\"bscr\",\"\",CONFIGURATION!$B$12,$M$10,B195,$N$10,C195,$O$10,D195,$P$10,E195,$Q$10,G195,$R$10,J195,\"\"),\"emptyTuple\")","v":"emptyTuple"}]
[186,null,null,null,null,null,null,null,null,null,null,null,{"$f":"IF(OR(B196<>\"\",C196<>\"\",D196<>\"\",E196<>\"\",G196<>\"\",J196<>\"\"),XBRLMapTuple($M$9,$N$5,$N$6,\"BMA\",CONFIGURATION!$B$1,\"bscr\",\"\",CONFIGURATION!$B$12,$M$10,B196,$N$10,C196,$O$10,D196,$P$10,E196,$Q$10,G196,$R$10,J196,\"\"),\"emptyTuple\")","v":"emptyTuple"}]
[187,null,null,null,null,null,null,null,null,null,null,null,{"$f":"IF(OR(B197<>\"\",C197<>\"\",D197<>\"\",E197<>\"\",G197<>\"\",J197<>\"\"),XBRLMapTuple($M$9,$N$5,$N$6,\"BMA\",CONFIGURATION!$B$1,\"bscr\",\"\",CONFIGURATION!$B$12,$M$10,B197,$N$10,C197,$O$10,D197,$P$10,E197,$Q$10,G197,$R$10,J197,\"\"),\"emptyTuple\")","v":"emptyTuple"}]
[188,null,null,null,null,null,null,null,null,null,null,null,{"$f":"IF(OR(B198<>\"\",C198<>\"\",D198<>\"\",E198<>\"\",G198<>\"\",J198<>\"\"),XBRLMapTuple($M$9,$N$5,$N$6,\"BMA\",CONFIGURATION!$B$1,\"bscr\",\"\",CONFIGURATION!$B$12,$M$10,B198,$N$10,C198,$O$10,D198,$P$10,E198,$Q$10,G198,$R$10,J198,\"\"),\"emptyTuple\")","v":"emptyTuple"}]
[189,null,null,null,null,null,null,null,null,null,null,null,{"$f":"IF(OR(B199<>\"\",C199<>\"\",D199<>\"\",E199<>\"\",G199<>\"\",J199<>\"\"),XBRLMapTuple($M$9,$N$5,$N$6,\"BMA\",CONFIGURATION!$B$1,\"bscr\",\"\",CONFIGURATION!$B$12,$M$10,B199,$N$10,C199,$O$10,D199,$P$10,E199,$Q$10,G199,$R$10,J199,\"\"),\"emptyTuple\")","v":"emptyTuple"}]
[190,null,null,null,null,null,null,null,null,null,null,null,{"$f":"IF(OR(B200<>\"\",C200<>\"\",D200<>\"\",E200<>\"\",G200<>\"\",J200<>\"\"),XBRLMapTuple($M$9,$N$5,$N$6,\"BMA\",CONFIGURATION!$B$1,\"bscr\",\"\",CONFIGURATION!$B$12,$M$10,B200,$N$10,C200,$O$10,D200,$P$10,E200,$Q$10,G200,$R$10,J200,\"\"),\"emptyTuple\")","v":"emptyTuple"}]
[191,null,null,null,null,null,null,null,null,null,null,null,{"$f":"IF(OR(B201<>\"\",C201<>\"\",D201<>\"\",E201<>\"\",G201<>\"\",J201<>\"\"),XBRLMapTuple($M$9,$N$5,$N$6,\"BMA\",CONFIGURATION!$B$1,\"bscr\",\"\",CONFIGURATION!$B$12,$M$10,B201,$N$10,C201,$O$10,D201,$P$10,E201,$Q$10,G201,$R$10,J201,\"\"),\"emptyTuple\")","v":"emptyTuple"}]
[192,null,null,null,null,null,null,null,null,null,null,null,{"$f":"IF(OR(B202<>\"\",C202<>\"\",D202<>\"\",E202<>\"\",G202<>\"\",J202<>\"\"),XBRLMapTuple($M$9,$N$5,$N$6,\"BMA\",CONFIGURATION!$B$1,\"bscr\",\"\",CONFIGURATION!$B$12,$M$10,B202,$N$10,C202,$O$10,D202,$P$10,E202,$Q$10,G202,$R$10,J202,\"\"),\"emptyTuple\")","v":"emptyTuple"}]
[193,null,null,null,null,null,null,null,null,null,null,null,{"$f":"IF(OR(B203<>\"\",C203<>\"\",D203<>\"\",E203<>\"\",G203<>\"\",J203<>\"\"),XBRLMapTuple($M$9,$N$5,$N$6,\"BMA\",CONFIGURATION!$B$1,\"bscr\",\"\",CONFIGURATION!$B$12,$M$10,B203,$N$10,C203,$O$10,D203,$P$10,E203,$Q$10,G203,$R$10,J203,\"\"),\"emptyTuple\")","v":"emptyTuple"}]
[194,null,null,null,null,null,null,null,null,null,null,null,{"$f":"IF(OR(B204<>\"\",C204<>\"\",D204<>\"\",E204<>\"\",G204<>\"\",J204<>\"\"),XBRLMapTuple($M$9,$N$5,$N$6,\"BMA\",CONFIGURATION!$B$1,\"bscr\",\"\",CONFIGURATION!$B$12,$M$10,B204,$N$10,C204,$O$10,D204,$P$10,E204,$Q$10,G204,$R$10,J204,\"\"),\"emptyTuple\")","v":"emptyTuple"}]
[195,null,null,null,null,null,null,null,null,null,null,null,{"$f":"IF(OR(B205<>\"\",C205<>\"\",D205<>\"\",E205<>\"\",G205<>\"\",J205<>\"\"),XBRLMapTuple($M$9,$N$5,$N$6,\"BMA\",CONFIGURATION!$B$1,\"bscr\",\"\",CONFIGURATION!$B$12,$M$10,B205,$N$10,C205,$O$10,D205,$P$10,E205,$Q$10,G205,$R$10,J205,\"\"),\"emptyTuple\")","v":"emptyTuple"}]
[196,null,null,null,null,null,null,null,null,null,null,null,{"$f":"IF(OR(B206<>\"\",C206<>\"\",D206<>\"\",E206<>\"\",G206<>\"\",J206<>\"\"),XBRLMapTuple($M$9,$N$5,$N$6,\"BMA\",CONFIGURATION!$B$1,\"bscr\",\"\",CONFIGURATION!$B$12,$M$10,B206,$N$10,C206,$O$10,D206,$P$10,E206,$Q$10,G206,$R$10,J206,\"\"),\"emptyTuple\")","v":"emptyTuple"}]
[197,null,null,null,null,null,null,null,null,null,null,null,{"$f":"IF(OR(B207<>\"\",C207<>\"\",D207<>\"\",E207<>\"\",G207<>\"\",J207<>\"\"),XBRLMapTuple($M$9,$N$5,$N$6,\"BMA\",CONFIGURATION!$B$1,\"bscr\",\"\",CONFIGURATION!$B$12,$M$10,B207,$N$10,C207,$O$10,D207,$P$10,E207,$Q$10,G207,$R$10,J207,\"\"),\"emptyTuple\")","v":"emptyTuple"}]
[198,null,null,null,null,null,null,null,null,null,null,null,{"$f":"IF(OR(B208<>\"\",C208<>\"\",D208<>\"\",E208<>\"\",G208<>\"\",J208<>\"\"),XBRLMapTuple($M$9,$N$5,$N$6,\"BMA\",CONFIGURATION!$B$1,\"bscr\",\"\",CONFIGURATION!$B$12,$M$10,B208,$N$10,C208,$O$10,D208,$P$10,E208,$Q$10,G208,$R$10,J208,\"\"),\"emptyTuple\")","v":"emptyTuple"}]
[199,null,null,null,null,null,null,null,null,null,null,null,{"$f":"IF(OR(B209<>\"\",C209<>\"\",D209<>\"\",E209<>\"\",G209<>\"\",J209<>\"\"),XBRLMapTuple($M$9,$N$5,$N$6,\"BMA\",CONFIGURATION!$B$1,\"bscr\",\"\",CONFIGURATION!$B$12,$M$10,B209,$N$10,C209,$O$10,D209,$P$10,E209,$Q$10,G209,$R$10,J209,\"\"),\"emptyTuple\")","v":"emptyTuple"}]
[200,null,null,null,null,null,null,null,null,null,null,null,{"$f":"IF(OR(B210<>\"\",C210<>\"\",D210<>\"\",E210<>\"\",G210<>\"\",J210<>\"\"),XBRLMapTuple($M$9,$N$5,$N$6,\"BMA\",CONFIGURATION!$B$1,\"bscr\",\"\",CONFIGURATION!$B$12,$M$10,B210,$N$10,C210,$O$10,D210,$P$10,E210,$Q$10,G210,$R$10,J210,\"\"),\"emptyTuple\")","v":"emptyTuple"}]
[null,null,null,null,null,{"$f":"SUM(F11:F210)","v":0},{"$f":"SUM(G11:G210)","v":0},{"$f":"SUM(H11:H210)","v":0},{"$f":"SUM(I11:I210)","v":0},{"$f":"SUM(J11:J210)","v":0},null,null,"brrt_TotalAvailableCapitalAndSurplus",{"$f":"XBRLMap(G211,M211,$N$5,$N$6,CONFIGURATION!$B$10,\"BMA\",CONFIGURATION!$B$1,\"bscr\",CONFIGURATION!$B$12)","v":"Mapped"}]
[]
[]
[]
[null,null,null,"Select"]
[null,"bma_ScheduleOfEligibleCapitalAdditionalDetails_DescriptionOfCapitalInstrument","bma_ScheduleOfEligibleCapitalAdditionalDetails_DateOfIssue","Holding Entity","bma_ScheduleOfEligibleCapitalAdditionalDetails_DateApprovedByTheAuthority",null,"bma_ScheduleOfEligibleCapitalAdditionalDetails_ValueOfCapitalInstrument",null,null,"bma_ScheduleOfEligibleCapitalAdditionalDetails_Tier"]
[null,null,null,"Operating Entity"]
[null,null,null,"Branch"]
[null,null,null,"Other"]

{"sheet":"Schedule XVIII","index":61,"n_rows":104,"n_cols":25,"rows_kept":104,"cut":false,"hidden":false,"merged":[[18,2,18,3],[0,2,0,10],[1,2,1,4],[2,2,2,3],[3,2,3,3],[7,2,7,14],[12,2,12,3],[13,2,13,3],[14,2,14,3],[15,2,15,3],[16,2,16,3],[17,2,17,3],[30,2,30,3],[19,2,19,3],[20,2,20,3],[21,2,21,3],[22,2,22,3],[23,2,23,3],[24,2,24,3],[25,2,25,3],[26,2,26,3],[27,2,27,3],[28,2,28,3],[29,2,29,3],[42,2,42,3],[31,2,31,3],[32,2,32,3],[33,2,33,3],[34,2,34,3],[35,2,35,3],[36,2,36,3],[37,2,37,3],[38,2,38,3],[39,2,39,3],[40,2,40,3],[41,2,41,3],[56,3,56,4],[43,2,43,3],[44,2,44,3],[45,2,45,3],[46,2,46,3],[47,2,47,3],[48,2,48,3],[49,2,49,3],[50,2,50,3],[51,2,51,3],[52,2,52,3],[55,3,55,4],[87,3,87,4],[57,3,57,4],[58,3,58,4],[59,3,59,4],[60,3,60,4],[61,3,61,4],[62,3,62,4],[63,3,63,4],[64,3,64,4],[69,3,71,4],[83,3,84,14],[86,3,86,4],[94,3,94,4],[98,3,99,14],[88,3,88,4],[89,3,89,4],[90,3,90,4],[91,3,91,4],[92,3,92,4],[93,3,93,4]]}
[null,null,"SCHEDULE OF PARTICULARS OF CEDED REINSURANCE",null,null,null,null,null,null,null,null,null,null,null,{"$f":"HYPERLINK(\"#'Index'!A1\",\"Return to Index\")","v":"Return to Index"}]
[null,null,{"$f":"+'Insurer Information'!C7","v":"Enter Company Name"}]
[null,null,{"$f":"+'Insurer Information'!C3","v":"2019-12-31"},null,null,null,null,null,null,null,null,null,null,null,null,null,null,{"$f":"IF(C3=\"\",\"\",TEXT(DATE(YEAR(C3+1)-1,MONTH(C3+1),DAY(C3+1)),\"mm/dd/yyyy\"))","v":"01/01/2019"}]
[null,null,{"$f":"+'Form 4EBS'!B4","v":"Expressed in  ['000s]"},null,null,null,null,null,null,null,null,null,null,null,"SCHEDULE XVIII",null,null,{"$f":"IF(C3=\"\",\"\",TEXT(C3,\"mm/dd/yyyy\"))","v":"12/31/2019"}]
[]
[null,null,"Particulars of reinsurance balances ",null,null,null,null,null,null,null,null,null,null,{"$f":"YEAR('Insurer Information'!C3)","v":2019}]
[]
[null,null,"Enter at Least the 10 Largest Reinsurance Exposures with the Remaining Reinsurance Exposures Grouped According to BSCR Rating and/or a Single Consolidated Reinsurance Exposure"]
[]
[null,null,"Enter Number of Entities",null,{"$f":"Import!E5890","v":0}]
[]
[null,null,"Exposure by Reinsurer",null,null,null,"(A)",null,"(B)",null,"(C)",null,"(D)",null,"(E)",null,null,"brrt_ExposureByReinsurer"]
[null,null,"Name of Reinsurer",null,"BSCR Rating",null,"Reinsurance Assets\nForm 1SFS Lines 11(e), 12 and 27(c) \n(Include Form 4, Line 12(c) Only to the Extent That They Are Not Already Included Under Schedule IIA)",null,"Reinsurance Payable\nForm 1SFS, Lines 28, 29, 33 and 34(c) ",null,"Collateral\nNotes to Form 1SFS Lines 11(e) and Line 27(c) ",null,"Qualifying Collateral\nMax(0,Min(C,(A-B)/.98))",null,"Net Qualifying Exposure\nMax (0, (A - B - D x 98%))",null,null,"brrt_ParticularsOfCededReinsuranceNameOfReinsurer","brrt_ParticularsOfCededReinsuranceBSCRRating","brrt_ParticularsOfCededReinsuranceReinsuranceRecoverable","brrt_ParticularsOfCededReinsuranceReinsurancePayable","brrt_ParticularsOfCededReinsuranceCollateral","brrt_ParticularsOfCededReinsuranceQualifyingCollateral","brrt_ParticularsOfCededReinsuranceNetQualifyingExposure"]
[null,1,{"$f":"Import!E5891","v":0},null,{"$f":"Import!E5921","v":"Select"},null,{"$f":"Import!E5951","v":0},null,{"$f":"Import!E5982","v":0},null,{"$f":"Import!E6013","v":0},null,{"$f":"IF(K14=0,0,MAX(0,MIN(K14,(G14-I14)/0.98)))","v":0},null,{"$f":"MAX(0,(G14-I14-M14*98%))","v":0},null,null,null,null,null,null,null,null,null,{"$f":"IF(OR(C14<>\"\",E14<>\"\",G14<>\"\",I14<>\"\",K14<>\"\"),XBRLMapTuple($R$12,R$3,R$4,\"BMA\",CONFIGURATION!$B$1,\"bscr\",\"\",CONFIGURATION!$B$12,$R$13,C14,$S$13,E14,$T$13,G14,$U$13,I14,$V$13,K14,$W$13,M14,$X$13,O14),\"emptyTuple\")","v":"Mapped"}]
[null,2,{"$f":"Import!E5892","v":0},null,{"$f":"Import!E5922","v":"Select"},null,{"$f":"Import!E5952","v":0},null,{"$f":"Import!E5983","v":0},null,{"$f":"Import!E6014","v":0},null,{"$f":"IF(K15=0,0,MAX(0,MIN(K15,(G15-I15)/0.98)))","v":0},null,0,null,null,null,null,null,null,null,null,null,{"$f":"IF(OR(C15<>\"\",E15<>\"\",G15<>\"\",I15<>\"\",K15<>\"\"),XBRLMapTuple($R$12,R$3,R$4,\"BMA\",CONFIGURATION!$B$1,\"bscr\",\"\",CONFIGURATION!$B$12,$R$13,C15,$S$13,E15,$T$13,G15,$U$13,I15,$V$13,K15,$W$13,M15,$X$13,O15),\"emptyTuple\")","v":"Mapped"}]
[null,3,{"$f":"Import!E5893","v":0},null,{"$f":"Import!E5923","v":"Select"},null,{"$f":"Import!E5953","v":0},null,{"$f":"Import!E5984","v":0},null,{"$f":"Import!E6015","v":0},null,0,null,0,null,null,null,null,null,null,null,null,null,{"$f":"IF(OR(C16<>\"\",E16<>\"\",G16<>\"\",I16<>\"\",K16<>\"\"),XBRLMapTuple($R$12,R$3,R$4,\"BMA\",CONFIGURATION!$B$1,\"bscr\",\"\",CONFIGURATION!$B$12,$R$13,C16,$S$13,E16,$T$13,G16,$U$13,I16,$V$13,K16,$W$13,M16,$X$13,O16),\"emptyTuple\")","v":"Mapped"}]
[null,4,{"$f":"Import!E5894","v":0},null,{"$f":"Import!E5924","v":"Select"},null,{"$f":"Import!E5954","v":0},null,{"$f":"Import!E5985","v":0},null,{"$f":"Import!E6016","v":0},null,0,null,0,null,null,null,null,null,null,null,null,null,{"$f":"IF(OR(C17<>\"\",E17<>\"\",G17<>\"\",I17<>\"\",K17<>\"\"),XBRLMapTuple($R$12,R$3,R$4,\"BMA\",CONFIGURATION!$B$1,\"bscr\",\"\",CONFIGURATION!$B$12,$R$13,C17,$S$13,E17,$T$13,G17,$U$13,I17,$V$13,K17,$W$13,M17,$X$13,O17),\"emptyTuple\")","v":"Mapped"}]
[null,5,{"$f":"Import!E5895","v":0},null,{"$f":"Import!E5925","v":"Select"},null,{"$f":"Import!E5955","v":0},null,{"$f":"Import!E5986","v":0},null,{"$f":"Import!E6017","v":0},null,0,null,0,null,null,null,null,null,null,null,null,null,{"$f":"IF(OR(C18<>\"\",E18<>\"\",G18<>\"\",I18<>\"\",K18<>\"\"),XBRLMapTuple($R$12,R$3,R$4,\"BMA\",CONFIGURATION!$B$1,\"bscr\",\"\",CONFIGURATION!$B$12,$R$13,C18,$S$13,E18,$T$13,G18,$U$13,I18,$V$13,K18,$W$13,M18,$X$13,O18),\"emptyTuple\")","v":"Mapped"}]
[null,6,{"$f":"Import!E5896","v":0},null,{"$f":"Import!E5926","v":"Select"},null,{"$f":"Import!E5956","v":0},null,{"$f":"Import!E5987","v":0},null,{"$f":"Import!E6018","v":0},null,0,null,0,null,null,null,null,null,null,null,null,null,{"$f":"IF(OR(C19<>\"\",E19<>\"\",G19<>\"\",I19<>\"\",K19<>\"\"),XBRLMapTuple($R$12,R$3,R$4,\"BMA\",CONFIGURATION!$B$1,\"bscr\",\"\",CONFIGURATION!$B$12,$R$13,C19,$S$13,E19,$T$13,G19,$U$13,I19,$V$13,K19,$W$13,M19,$X$13,O19),\"emptyTuple\")","v":"Mapped"}]
[null,7,{"$f":"Import!E5897","v":0},null,{"$f":"Import!E5927","v":"Select"},null,{"$f":"Import!E5957","v":0},null,{"$f":"Import!E5988","v":0},null,{"$f":"Import!E6019","v":0},null,0,null,0,null,null,null,null,null,null,null,null,null,{"$f":"IF(OR(C20<>\"\",E20<>\"\",G20<>\"\",I20<>\"\",K20<>\"\"),XBRLMapTuple($R$12,R$3,R$4,\"BMA\",CONFIGURATION!$B$1,\"bscr\",\"\",CONFIGURATION!$B$12,$R$13,C20,$S$13,E20,$T$13,G20,$U$13,I20,$V$13,K20,$W$13,M20,$X$13,O20),\"emptyTuple\")","v":"Mapped"}]
[null,8,{"$f":"Import!E5898","v":0},null,{"$f":"Import!E5928","v":"Select"},null,{"$f":"Import!E5958","v":0},null,{"$f":"Import!E5989","v":0},null,{"$f":"Import!E6020","v":0},null,0,null,0,null,null,null,null,null,null,null,null,null,{"$f":"IF(OR(C21<>\"\",E21<>\"\",G21<>\"\",I21<>\"\",K21<>\"\"),XBRLMapTuple($R$12,R$3,R$4,\"BMA\",CONFIGURATION!$B$1,\"bscr\",\"\",CONFIGURATION!$B$12,$R$13,C21,$S$13,E21,$T$13,G21,$U$13,I21,$V$13,K21,$W$13,M21,$X$13,O21),\"emptyTuple\")","v":"Mapped"}]
[null,9,{"$f":"Import!E5899","v":0},null,{"$f":"Import!E5929","v":"Select"},null,{"$f":"Import!E5959","v":0},null,{"$f":"Import!E5990","v":0},null,{"$f":"Import!E6021","v":0},null,0,null,0,null,null,null,null,null,null,null,null,null,{"$f":"IF(OR(C22<>\"\",E22<>\"\",G22<>\"\",I22<>\"\",K22<>\"\"),XBRLMapTuple($R$12,R$3,R$4,\"BMA\",CONFIGURATION!$B$1,\"bscr\",\"\",CONFIGURATION!$B$12,$R$13,C22,$S$13,E22,$T$13,G22,$U$13,I22,$V$13,K22,$W$13,M22,$X$13,O22),\"emptyTuple\")","v":"Mapped"}]
[null,10,{"$f":"Import!E5900","v":0},null,{"$f":"Import!E5930","v":"Select"},null,{"$f":"Import!E5960","v":0},null,{"$f":"Import!E5991","v":0},null,{"$f":"Import!E6022","v":0},null,0,null,0,null,null,null,null,null,null,null,null,null,{"$f":"IF(OR(C23<>\"\",E23<>\"\",G23<>\"\",I23<>\"\",K23<>\"\"),XBRLMapTuple($R$12,R$3,R$4,\"BMA\",CONFIGURATION!$B$1,\"bscr\",\"\",CONFIGURATION!$B$12,$R$13,C23,$S$13,E23,$T$13,G23,$U$13,I23,$V$13,K23,$W$13,M23,$X$13,O23),\"emptyTuple\")","v":"Mapped"}]
[null,11,{"$f":"Import!E5901","v":0},null,{"$f":"Import!E5931","v":"Select"},null,{"$f":"Import!E5961","v":0},null,{"$f":"Import!E5992","v":0},null,{"$f":"Import!E6023","v":0},null,0,null,0,null,null,null,null,null,null,null,null,null,{"$f":"IF(OR(C24<>\"\",E24<>\"\",G24<>\"\",I24<>\"\",K24<>\"\"),XBRLMapTuple($R$12,R$3,R$4,\"BMA\",CONFIGURATION!$B$1,\"bscr\",\"\",CONFIGURATION!$B$12,$R$13,C24,$S$13,E24,$T$13,G24,$U$13,I24,$V$13,K24,$W$13,M24,$X$13,O24),\"emptyTuple\")","v":"Mapped"}]
[null,12,{"$f":"Import!E5902","v":0},null,{"$f":"Import!E5932","v":"Select"},null,{"$f":"Import!E5962","v":0},null,{"$f":"Import!E5993","v":0},null,{"$f":"Import!E6024","v":0},null,0,null,0,null,null,null,null,null,null,null,null,null,{"$f":"IF(OR(C25<>\"\",E25<>\"\",G25<>\"\",I25<>\"\",K25<>\"\"),XBRLMapTuple($R$12,R$3,R$4,\"BMA\",CONFIGURATION!$B$1,\"bscr\",\"\",CONFIGURATION!$B$12,$R$13,C25,$S$13,E25,$T$13,G25,$U$13,I25,$V$13,K25,$W$13,M25,$X$13,O25),\"emptyTuple\")","v":"Mapped"}]
[null,13,{"$f":"Import!E5903","v":0},null,{"$f":"Import!E5933","v":"Select"},null,{"$f":"Import!E5963","v":0},null,{"$f":"Import!E5994","v":0},null,{"$f":"Import!E6025","v":0},null,0,null,0,null,null,null,null,null,null,null,null,null,{"$f":"IF(OR(C26<>\"\",E26<>\"\",G26<>\"\",I26<>\"\",K26<>\"\"),XBRLMapTuple($R$12,R$3,R$4,\"BMA\",CONFIGURATION!$B$1,\"bscr\",\"\",CONFIGURATION!$B$12,$R$13,C26,$S$13,E26,$T$13,G26,$U$13,I26,$V$13,K26,$W$13,M26,$X$13,O26),\"emptyTuple\")","v":"Mapped"}]
[null,14,{"$f":"Import!E5904","v":0},null,{"$f":"Import!E5934","v":"Select"},null,{"$f":"Import!E5964","v":0},null,{"$f":"Import!E5995","v":0},null,{"$f":"Import!E6026","v":0},null,0,null,0,null,null,null,null,null,null,null,null,null,{"$f":"IF(OR(C27<>\"\",E27<>\"\",G27<>\"\",I27<>\"\",K27<>\"\"),XBRLMapTuple($R$12,R$3,R$4,\"BMA\",CONFIGURATION!$B$1,\"bscr\",\"\",CONFIGURATION!$B$12,$R$13,C27,$S$13,E27,$T$13,G27,$U$13,I27,$V$13,K27,$W$13,M27,$X$13,O27),\"emptyTuple\")","v":"Mapped"}]
[null,15,{"$f":"Import!E5905","v":0},null,{"$f":"Import!E5935","v":"Select"},null,{"$f":"Import!E5965","v":0},null,{"$f":"Import!E5996","v":0},null,{"$f":"Import!E6027","v":0},null,0,null,0,null,null,null,null,null,null,null,null,null,{"$f":"IF(OR(C28<>\"\",E28<>\"\",G28<>\"\",I28<>\"\",K28<>\"\"),XBRLMapTuple($R$12,R$3,R$4,\"BMA\",CONFIGURATION!$B$1,\"bscr\",\"\",CONFIGURATION!$B$12,$R$13,C28,$S$13,E28,$T$13,G28,$U$13,I28,$V$13,K28,$W$13,M28,$X$13,O28),\"emptyTuple\")","v":"Mapped"}]
[null,16,{"$f":"Import!E5906","v":0},null,{"$f":"Import!E5936","v":"Select"},null,{"$f":"Import!E5966","v":0},null,{"$f":"Import!E5997","v":0},null,{"$f":"Import!E6028","v":0},null,0,null,0,null,null,null,null,null,null,null,null,null,{"$f":"IF(OR(C29<>\"\",E29<>\"\",G29<>\"\",I29<>\"\",K29<>\"\"),XBRLMapTuple($R$12,R$3,R$4,\"BMA\",CONFIGURATION!$B$1,\"bscr\",\"\",CONFIGURATION!$B$12,$R$13,C29,$S$13,E29,$T$13,G29,$U$13,I29,$V$13,K29,$W$13,M29,$X$13,O29),\"emptyTuple\")","v":"Mapped"}]
[null,17,{"$f":"Import!E5907","v":0},null,{"$f":"Import!E5937","v":"Select"},null,{"$f":"Import!E5967","v":0},null,{"$f":"Import!E5998","v":0},null,{"$f":"Import!E6029","v":0},null,0,null,0,null,null,null,null,null,null,null,null,null,{"$f":"IF(OR(C30<>\"\",E30<>\"\",G30<>\"\",I30<>\"\",K30<>\"\"),XBRLMapTuple($R$12,R$3,R$4,\"BMA\",CONFIGURATION!$B$1,\"bscr\",\"\",CONFIGURATION!$B$12,$R$13,C30,$S$13,E30,$T$13,G30,$U$13,I30,$V$13,K30,$W$13,M30,$X$13,O30),\"emptyTuple\")","v":"Mapped"}]
[null,18,{"$f":"Import!E5908","v":0},null,{"$f":"Import!E5938","v":"Select"},null,{"$f":"Import!E5968","v":0},null,{"$f":"Import!E5999","v":0},null,{"$f":"Import!E6030","v":0},null,0,null,0,null,null,null,null,null,null,null,null,null,{"$f":"IF(OR(C31<>\"\",E31<>\"\",G31<>\"\",I31<>\"\",K31<>\"\"),XBRLMapTuple($R$12,R$3,R$4,\"BMA\",CONFIGURATION!$B$1,\"bscr\",\"\",CONFIGURATION!$B$12,$R$13,C31,$S$13,E31,$T$13,G31,$U$13,I31,$V$13,K31,$W$13,M31,$X$13,O31),\"emptyTuple\")","v":"Mapped"}]
[null,19,{"$f":"Import!E5909","v":0},null,{"$f":"Import!E5939","v":"Select"},null,{"$f":"Import!E5969","v":0},null,{"$f":"Import!E6000","v":0},null,{"$f":"Import!E6031","v":0},null,0,null,0,null,null,null,null,null,null,null,null,null,{"$f":"IF(OR(C32<>\"\",E32<>\"\",G32<>\"\",I32<>\"\",K32<>\"\"),XBRLMapTuple($R$12,R$3,R$4,\"BMA\",CONFIGURATION!$B$1,\"bscr\",\"\",CONFIGURATION!$B$12,$R$13,C32,$S$13,E32,$T$13,G32,$U$13,I32,$V$13,K32,$W$13,M32,$X$13,O32),\"emptyTuple\")","v":"Mapped"}]
[null,20,{"$f":"Import!E5910","v":0},null,{"$f":"Import!E5940","v":"Select"},null,{"$f":"Import!E5970","v":0},null,{"$f":"Import!E6001","v":0},null,{"$f":"Import!E6032","v":0},null,0,null,0,null,null,null,null,null,null,null,null,null,{"$f":"IF(OR(C33<>\"\",E33<>\"\",G33<>\"\",I33<>\"\",K33<>\"\"),XBRLMapTuple($R$12,R$3,R$4,\"BMA\",CONFIGURATION!$B$1,\"bscr\",\"\",CONFIGURATION!$B$12,$R$13,C33,$S$13,E33,$T$13,G33,$U$13,I33,$V$13,K33,$W$13,M33,$X$13,O33),\"emptyTuple\")","v":"Mapped"}]
[null,21,{"$f":"Import!E5911","v":0},null,{"$f":"Import!E5941","v":"Select"},null,{"$f":"Import!E5971","v":0},null,{"$f":"Import!E6002","v":0},null,{"$f":"Import!E6033","v":0},null,0,null,0,null,null,null,null,null,null,null,null,null,{"$f":"IF(OR(C34<>\"\",E34<>\"\",G34<>\"\",I34<>\"\",K34<>\"\"),XBRLMapTuple($R$12,R$3,R$4,\"BMA\",CONFIGURATION!$B$1,\"bscr\",\"\",CONFIGURATION!$B$12,$R$13,C34,$S$13,E34,$T$13,G34,$U$13,I34,$V$13,K34,$W$13,M34,$X$13,O34),\"emptyTuple\")","v":"Mapped"}]
[null,22,{"$f":"Import!E5912","v":0},null,{"$f":"Import!E5942","v":"Select"},null,{"$f":"Import!E5972","v":0},null,{"$f":"Import!E6003","v":0},null,{"$f":"Import!E6034","v":0},null,0,null,0,null,null,null,null,null,null,null,null,null,{"$f":"IF(OR(C35<>\"\",E35<>\"\",G35<>\"\",I35<>\"\",K35<>\"\"),XBRLMapTuple($R$12,R$3,R$4,\"BMA\",CONFIGURATION!$B$1,\"bscr\",\"\",CONFIGURATION!$B$12,$R$13,C35,$S$13,E35,$T$13,G35,$U$13,I35,$V$13,K35,$W$13,M35,$X$13,O35),\"emptyTuple\")","v":"Mapped"}]
[null,23,{"$f":"Import!E5913","v":0},null,{"$f":"Import!E5943","v":"Select"},null,{"$f":"Import!E5973","v":0},null,{"$f":"Import!E6004","v":0},null,{"$f":"Import!E6035","v":0},null,0,null,0,null,null,null,null,null,null,null,null,null,{"$f":"IF(OR(C36<>\"\",E36<>\"\",G36<>\"\",I36<>\"\",K36<>\"\"),XBRLMapTuple($R$12,R$3,R$4,\"BMA\",CONFIGURATION!$B$1,\"bscr\",\"\",CONFIGURATION!$B$12,$R$13,C36,$S$13,E36,$T$13,G36,$U$13,I36,$V$13,K36,$W$13,M36,$X$13,O36),\"emptyTuple\")","v":"Mapped"}]
[null,24,{"$f":"Import!E5914","v":0},null,{"$f":"Import!E5944","v":"Select"},null,{"$f":"Import!E5974","v":0},null,{"$f":"Import!E6005","v":0},null,{"$f":"Import!E6036","v":0},null,0,null,0,null,null,null,null,null,null,null,null,null,{"$f":"IF(OR(C37<>\"\",E37<>\"\",G37<>\"\",I37<>\"\",K37<>\"\"),XBRLMapTuple($R$12,R$3,R$4,\"BMA\",CONFIGURATION!$B$1,\"bscr\",\"\",CONFIGURATION!$B$12,$R$13,C37,$S$13,E37,$T$13,G37,$U$13,I37,$V$13,K37,$W$13,M37,$X$13,O37),\"emptyTuple\")","v":"Mapped"}]
[null,25,{"$f":"Import!E5915","v":0},null,{"$f":"Import!E5945","v":"Select"},null,{"$f":"Import!E5975","v":0},null,{"$f":"Import!E6006","v":0},null,{"$f":"Import!E6037","v":0},null,0,null,0,null,null,null,null,null,null,null,null,null,{"$f":"IF(OR(C38<>\"\",E38<>\"\",G38<>\"\",I38<>\"\",K38<>\"\"),XBRLMapTuple($R$12,R$3,R$4,\"BMA\",CONFIGURATION!$B$1,\"bscr\",\"\",CONFIGURATION!$B$12,$R$13,C38,$S$13,E38,$T$13,G38,$U$13,I38,$V$13,K38,$W$13,M38,$X$13,O38),\"emptyTuple\")","v":"Mapped"}]
[null,26,{"$f":"Import!E5916","v":0},null,{"$f":"Import!E5946","v":"Select"},null,{"$f":"Import!E5976","v":0},null,{"$f":"Import!E6007","v":0},null,{"$f":"Import!E6038","v":0},null,0,null,0,null,null,null,null,null,null,null,null,null,{"$f":"IF(OR(C39<>\"\",E39<>\"\",G39<>\"\",I39<>\"\",K39<>\"\"),XBRLMapTuple($R$12,R$3,R$4,\"BMA\",CONFIGURATION!$B$1,\"bscr\",\"\",CONFIGURATION!$B$12,$R$13,C39,$S$13,E39,$T$13,G39,$U$13,I39,$V$13,K39,$W$13,M39,$X$13,O39),\"emptyTuple\")","v":"Mapped"}]
[null,27,{"$f":"Import!E5917","v":0},null,{"$f":"Import!E5947","v":"Select"},null,{"$f":"Import!E5977","v":0},null,{"$f":"Import!E6008","v":0},null,{"$f":"Import!E6039","v":0},null,0,null,0,null,null,null,null,null,null,null,null,null,{"$f":"IF(OR(C40<>\"\",E40<>\"\",G40<>\"\",I40<>\"\",K40<>\"\"),XBRLMapTuple($R$12,R$3,R$4,\"BMA\",CONFIGURATION!$B$1,\"bscr\",\"\",CONFIGURATION!$B$12,$R$13,C40,$S$13,E40,$T$13,G40,$U$13,I40,$V$13,K40,$W$13,M40,$X$13,O40),\"emptyTuple\")","v":"Mapped"}]
[null,28,{"$f":"Import!E5918","v":0},null,{"$f":"Import!E5948","v":"Select"},null,{"$f":"Import!E5978","v":0},null,{"$f":"Import!E6009","v":0},null,{"$f":"Import!E6040","v":0},null,0,null,0,null,null,null,null,null,null,null,null,null,{"$f":"IF(OR(C41<>\"\",E41<>\"\",G41<>\"\",I41<>\"\",K41<>\"\"),XBRLMapTuple($R$12,R$3,R$4,\"BMA\",CONFIGURATION!$B$1,\"bscr\",\"\",CONFIGURATION!$B$12,$R$13,C41,$S$13,E41,$T$13,G41,$U$13,I41,$V$13,K41,$W$13,M41,$X$13,O41),\"emptyTuple\")","v":"Mapped"}]
[null,29,{"$f":"Import!E5919","v":0},null,{"$f":"Import!E5949","v":"Select"},null,{"$f":"Import!E5979","v":0},null,{"$f":"Import!E6010","v":0},null,{"$f":"Import!E6041","v":0},null,0,null,0,null,null,null,null,null,null,null,null,null,{"$f":"IF(OR(C42<>\"\",E42<>\"\",G42<>\"\",I42<>\"\",K42<>\"\"),XBRLMapTuple($R$12,R$3,R$4,\"BMA\",CONFIGURATION!$B$1,\"bscr\",\"\",CONFIGURATION!$B$12,$R$13,C42,$S$13,E42,$T$13,G42,$U$13,I42,$V$13,K42,$W$13,M42,$X$13,O42),\"emptyTuple\")","v":"Mapped"}]
[null,30,{"$f":"Import!E5920","v":0},null,{"$f":"Import!E5950","v":"Select"},null,{"$f":"Import!E5980","v":0},null,{"$f":"Import!E6011","v":0},null,{"$f":"Import!E6042","v":0},null,0,null,0,null,null,null,null,null,null,null,null,null,{"$f":"IF(OR(C43<>\"\",E43<>\"\",G43<>\"\",I43<>\"\",K43<>\"\"),XBRLMapTuple($R$12,R$3,R$4,\"BMA\",CONFIGURATION!$B$1,\"bscr\",\"\",CONFIGURATION!$B$12,$R$13,C43,$S$13,E43,$T$13,G43,$U$13,I43,$V$13,K43,$W$13,M43,$X$13,O43),\"emptyTuple\")","v":"Mapped"}]
[null,31,null,null,null,null,null,null,null,null,null,null,0,null,0,null,null,null,null,null,null,null,null,null,{"$f":"IF(OR(C44<>\"\",E44<>\"\",G44<>\"\",I44<>\"\",K44<>\"\"),XBRLMapTuple($R$12,R$3,R$4,\"BMA\",CONFIGURATION!$B$1,\"bscr\",\"\",CONFIGURATION!$B$12,$R$13,C44,$S$13,E44,$T$13,G44,$U$13,I44,$V$13,K44,$W$13,M44,$X$13,O44),\"emptyTuple\")","v":"emptyTuple"}]
[null,32,null,null,null,null,null,null,null,null,null,null,0,null,0,null,null,null,null,null,null,null,null,null,{"$f":"IF(OR(C45<>\"\",E45<>\"\",G45<>\"\",I45<>\"\",K45<>\"\"),XBRLMapTuple($R$12,R$3,R$4,\"BMA\",CONFIGURATION!$B$1,\"bscr\",\"\",CONFIGURATION!$B$12,$R$13,C45,$S$13,E45,$T$13,G45,$U$13,I45,$V$13,K45,$W$13,M45,$X$13,O45),\"emptyTuple\")","v":"emptyTuple"}]
[null,33,null,null,null,null,null,null,null,null,null,null,0,null,0,null,null,null,null,null,null,null,null,null,{"$f":"IF(OR(C46<>\"\",E46<>\"\",G46<>\"\",I46<>\"\",K46<>\"\"),XBRLMapTuple($R$12,R$3,R$4,\"BMA\",CONFIGURATION!$B$1,\"bscr\",\"\",CONFIGURATION!$B$12,$R$13,C46,$S$13,E46,$T$13,G46,$U$13,I46,$V$13,K46,$W$13,M46,$X$13,O46),\"emptyTuple\")","v":"emptyTuple"}]
[null,34,null,null,null,null,null,null,null,null,null,null,0,null,0,null,null,null,null,null,null,null,null,null,{"$f":"IF(OR(C47<>\"\",E47<>\"\",G47<>\"\",I47<>\"\",K47<>\"\"),XBRLMapTuple($R$12,R$3,R$4,\"BMA\",CONFIGURATION!$B$1,\"bscr\",\"\",CONFIGURATION!$B$12,$R$13,C47,$S$13,E47,$T$13,G47,$U$13,I47,$V$13,K47,$W$13,M47,$X$13,O47),\"emptyTuple\")","v":"emptyTuple"}]
[null,35,null,null,null,null,null,null,null,null,null,null,0,null,0,null,null,null,null,null,null,null,null,null,{"$f":"IF(OR(C48<>\"\",E48<>\"\",G48<>\"\",I48<>\"\",K48<>\"\"),XBRLMapTuple($R$12,R$3,R$4,\"BMA\",CONFIGURATION!$B$1,\"bscr\",\"\",CONFIGURATION!$B$12,$R$13,C48,$S$13,E48,$T$13,G48,$U$13,I48,$V$13,K48,$W$13,M48,$X$13,O48),\"emptyTuple\")","v":"emptyTuple"}]
[null,36,null,null,null,null,null,null,null,null,null,null,0,null,0,null,null,null,null,null,null,null,null,null,{"$f":"IF(OR(C49<>\"\",E49<>\"\",G49<>\"\",I49<>\"\",K49<>\"\"),XBRLMapTuple($R$12,R$3,R$4,\"BMA\",CONFIGURATION!$B$1,\"bscr\",\"\",CONFIGURATION!$B$12,$R$13,C49,$S$13,E49,$T$13,G49,$U$13,I49,$V$13,K49,$W$13,M49,$X$13,O49),\"emptyTuple\")","v":"emptyTuple"}]
[null,37,null,null,null,null,null,null,null,null,null,null,0,null,0,null,null,null,null,null,null,null,null,null,{"$f":"IF(OR(C50<>\"\",E50<>\"\",G50<>\"\",I50<>\"\",K50<>\"\"),XBRLMapTuple($R$12,R$3,R$4,\"BMA\",CONFIGURATION!$B$1,\"bscr\",\"\",CONFIGURATION!$B$12,$R$13,C50,$S$13,E50,$T$13,G50,$U$13,I50,$V$13,K50,$W$13,M50,$X$13,O50),\"emptyTuple\")","v":"emptyTuple"}]
[null,38,null,null,null,null,null,null,null,null,null,null,0,null,0,null,null,null,null,null,null,null,null,null,{"$f":"IF(OR(C51<>\"\",E51<>\"\",G51<>\"\",I51<>\"\",K51<>\"\"),XBRLMapTuple($R$12,R$3,R$4,\"BMA\",CONFIGURATION!$B$1,\"bscr\",\"\",CONFIGURATION!$B$12,$R$13,C51,$S$13,E51,$T$13,G51,$U$13,I51,$V$13,K51,$W$13,M51,$X$13,O51),\"emptyTuple\")","v":"emptyTuple"}]
[null,39,null,null,null,null,null,null,null,null,null,null,0,null,0,null,null,null,null,null,null,null,null,null,{"$f":"IF(OR(C52<>\"\",E52<>\"\",G52<>\"\",I52<>\"\",K52<>\"\"),XBRLMapTuple($R$12,R$3,R$4,\"BMA\",CONFIGURATION!$B$1,\"bscr\",\"\",CONFIGURATION!$B$12,$R$13,C52,$S$13,E52,$T$13,G52,$U$13,I52,$V$13,K52,$W$13,M52,$X$13,O52),\"emptyTuple\")","v":"emptyTuple"}]
[null,40,null,null,null,null,null,null,null,null,null,null,0,null,0,null,null,null,null,null,null,null,null,null,{"$f":"IF(OR(C53<>\"\",E53<>\"\",G53<>\"\",I53<>\"\",K53<>\"\"),XBRLMapTuple($R$12,R$3,R$4,\"BMA\",CONFIGURATION!$B$1,\"bscr\",\"\",CONFIGURATION!$B$12,$R$13,C53,$S$13,E53,$T$13,G53,$U$13,I53,$V$13,K53,$W$13,M53,$X$13,O53),\"emptyTuple\")","v":"emptyTuple"}]
[null,null,"Total Exposure By Reinsurer",null,null,null,{"$f":"SUM(G14:G53)","v":0},null,{"$f":"SUM(I14:I53)","v":0},null,{"$f":"SUM(K14:K53)","v":0},null,{"$f":"SUM(M14:M53)","v":0},null,{"$f":"SUM(O14:O53)","v":0},null,null,null,null,{"$f":"XBRLMap(G54,T13,$R$3,$R$4,CONFIGURATION!$B$10,\"BMA\",CONFIGURATION!$B$1,\"bscr\",CONFIGURATION!$B$12)","v":"Mapped"},{"$f":"XBRLMap(I54,U13,$R$3,$R$4,CONFIGURATION!$B$10,\"BMA\",CONFIGURATION!$B$1,\"bscr\",CONFIGURATION!$B$12)","v":"Mapped"},{"$f":"XBRLMap(K54,V13,$R$3,$R$4,CONFIGURATION!$B$10,\"BMA\",CONFIGURATION!$B$1,\"bscr\",CONFIGURATION!$B$12)","v":"Mapped"},{"$f":"XBRLMap(M54,W13,$R$3,$R$4,CONFIGURATION!$B$10,\"BMA\",CONFIGURATION!$B$1,\"bscr\",CONFIGURATION!$B$12)","v":"Mapped"},{"$f":"XBRLMap(O54,X13,$R$3,$R$4,CONFIGURATION!$B$10,\"BMA\",CONFIGURATION!$B$1,\"bscr\",CONFIGURATION!$B$12)","v":"Mapped"}]
[]
[null,null,null,"Exposure by BSCR Rating"]
[null,null,null,"BSCR Rating 0 (Domestic Affiliates)",null,null,{"$f":"Import!E6044","v":0},null,{"$f":"Import!E6055","v":0},null,{"$f":"Import!E6066","v":0},null,{"$f":"IF(K57=0,0,MAX(0,MIN(K57,(G57-I57)/0.98)))","v":0},null,{"$f":"MAX(0,(G57-I57-M57*98%))","v":0},null,"brrt_RiskGradeAxis_brrt_BSCRRating0Member",null,null,{"$f":"XBRLMap(G57,$T$13&\".\"&Q57,$R$3,$R$4,CONFIGURATION!$B$10,\"BMA\",CONFIGURATION!$B$1,\"bscr\",CONFIGURATION!$B$12)","v":"Mapped"},{"$f":"XBRLMap(I57,$U$13&\".\"&Q57,$R$3,$R$4,CONFIGURATION!$B$10,\"BMA\",CONFIGURATION!$B$1,\"bscr\",CONFIGURATION!$B$12)","v":"Mapped"},{"$f":"XBRLMap(K57,$V$13&\".\"&Q57,$R$3,$R$4,CONFIGURATION!$B$10,\"BMA\",CONFIGURATION!$B$1,\"bscr\",CONFIGURATION!$B$12)","v":"Mapped"},{"$f":"XBRLMap(M57,$W$13&\".\"&Q57,$R$3,$R$4,CONFIGURATION!$B$10,\"BMA\",CONFIGURATION!$B$1,\"bscr\",CONFIGURATION!$B$12)","v":"Mapped"},{"$f":"XBRLMap(O57,$X$13&\".\"&Q57,$R$3,$R$4,CONFIGURATION!$B$10,\"BMA\",CONFIGURATION!$B$1,\"bscr\",CONFIGURATION!$B$12)","v":"Mapped"}]
[null,null,null,"BSCR Rating 1",null,null,{"$f":"Import!E6045","v":0},null,{"$f":"Import!E6056","v":0},null,{"$f":"Import!E6067","v":0},null,0,null,0,null,"brrt_RiskGradeAxis_brrt_BSCRRating1Member",null,null,{"$f":"XBRLMap(G58,$T$13&\".\"&Q58,$R$3,$R$4,CONFIGURATION!$B$10,\"BMA\",CONFIGURATION!$B$1,\"bscr\",CONFIGURATION!$B$12)","v":"Mapped"},{"$f":"XBRLMap(I58,$U$13&\".\"&Q58,$R$3,$R$4,CONFIGURATION!$B$10,\"BMA\",CONFIGURATION!$B$1,\"bscr\",CONFIGURATION!$B$12)","v":"Mapped"},{"$f":"XBRLMap(K58,$V$13&\".\"&Q58,$R$3,$R$4,CONFIGURATION!$B$10,\"BMA\",CONFIGURATION!$B$1,\"bscr\",CONFIGURATION!$B$12)","v":"Mapped"},{"$f":"XBRLMap(M58,$W$13&\".\"&Q58,$R$3,$R$4,CONFIGURATION!$B$10,\"BMA\",CONFIGURATION!$B$1,\"bscr\",CONFIGURATION!$B$12)","v":"Mapped"},{"$f":"XBRLMap(O58,$X$13&\".\"&Q58,$R$3,$R$4,CONFIGURATION!$B$10,\"BMA\",CONFIGURATION!$B$1,\"bscr\",CONFIGURATION!$B$12)","v":"Mapped"}]
[null,null,null,"BSCR Rating 2",null,null,{"$f":"Import!E6046","v":0},null,{"$f":"Import!E6057","v":0},null,{"$f":"Import!E6068","v":0},null,0,null,0,null,"brrt_RiskGradeAxis_brrt_BSCRRating2Member",null,null,{"$f":"XBRLMap(G59,$T$13&\".\"&Q59,$R$3,$R$4,CONFIGURATION!$B$10,\"BMA\",CONFIGURATION!$B$1,\"bscr\",CONFIGURATION!$B$12)","v":"Mapped"},{"$f":"XBRLMap(I59,$U$13&\".\"&Q59,$R$3,$R$4,CONFIGURATION!$B$10,\"BMA\",CONFIGURATION!$B$1,\"bscr\",CONFIGURATION!$B$12)","v":"Mapped"},{"$f":"XBRLMap(K59,$V$13&\".\"&Q59,$R$3,$R$4,CONFIGURATION!$B$10,\"BMA\",CONFIGURATION!$B$1,\"bscr\",CONFIGURATION!$B$12)","v":"Mapped"},{"$f":"XBRLMap(M59,$W$13&\".\"&Q59,$R$3,$R$4,CONFIGURATION!$B$10,\"BMA\",CONFIGURATION!$B$1,\"bscr\",CONFIGURATION!$B$12)","v":"Mapped"},{"$f":"XBRLMap(O59,$X$13&\".\"&Q59,$R$3,$R$4,CONFIGURATION!$B$10,\"BMA\",CONFIGURATION!$B$1,\"bscr\",CONFIGURATION!$B$12)","v":"Mapped"}]
[null,null,null,"BSCR Rating 3",null,null,{"$f":"Import!E6047","v":0},null,{"$f":"Import!E6058","v":0},null,{"$f":"Import!E6069","v":0},null,0,null,0,null,"brrt_RiskGradeAxis_brrt_BSCRRating3Member",null,null,{"$f":"XBRLMap(G60,$T$13&\".\"&Q60,$R$3,$R$4,CONFIGURATION!$B$10,\"BMA\",CONFIGURATION!$B$1,\"bscr\",CONFIGURATION!$B$12)","v":"Mapped"},{"$f":"XBRLMap(I60,$U$13&\".\"&Q60,$R$3,$R$4,CONFIGURATION!$B$10,\"BMA\",CONFIGURATION!$B$1,\"bscr\",CONFIGURATION!$B$12)","v":"Mapped"},{"$f":"XBRLMap(K60,$V$13&\".\"&Q60,$R$3,$R$4,CONFIGURATION!$B$10,\"BMA\",CONFIGURATION!$B$1,\"bscr\",CONFIGURATION!$B$12)","v":"Mapped"},{"$f":"XBRLMap(M60,$W$13&\".\"&Q60,$R$3,$R$4,CONFIGURATION!$B$10,\"BMA\",CONFIGURATION!$B$1,\"bscr\",CONFIGURATION!$B$12)","v":"Mapped"},{"$f":"XBRLMap(O60,$X$13&\".\"&Q60,$R$3,$R$4,CONFIGURATION!$B$10,\"BMA\",CONFIGURATION!$B$1,\"bscr\",CONFIGURATION!$B$12)","v":"Mapped"}]
[null,null,null,"BSCR Rating 4",null,null,{"$f":"Import!E6048","v":0},null,{"$f":"Import!E6059","v":0},null,{"$f":"Import!E6070","v":0},null,0,null,0,null,"brrt_RiskGradeAxis_brrt_BSCRRating4Member",null,null,{"$f":"XBRLMap(G61,$T$13&\".\"&Q61,$R$3,$R$4,CONFIGURATION!$B$10,\"BMA\",CONFIGURATION!$B$1,\"bscr\",CONFIGURATION!$B$12)","v":"Mapped"},{"$f":"XBRLMap(I61,$U$13&\".\"&Q61,$R$3,$R$4,CONFIGURATION!$B$10,\"BMA\",CONFIGURATION!$B$1,\"bscr\",CONFIGURATION!$B$12)","v":"Mapped"},{"$f":"XBRLMap(K61,$V$13&\".\"&Q61,$R$3,$R$4,CONFIGURATION!$B$10,\"BMA\",CONFIGURATION!$B$1,\"bscr\",CONFIGURATION!$B$12)","v":"Mapped"},{"$f":"XBRLMap(M61,$W$13&\".\"&Q61,$R$3,$R$4,CONFIGURATION!$B$10,\"BMA\",CONFIGURATION!$B$1,\"bscr\",CONFIGURATION!$B$12)","v":"Mapped"},{"$f":"XBRLMap(O61,$X$13&\".\"&Q61,$R$3,$R$4,CONFIGURATION!$B$10,\"BMA\",CONFIGURATION!$B$1,\"bscr\",CONFIGURATION!$B$12)","v":"Mapped"}]
[null,null,null,"BSCR Rating 5",null,null,{"$f":"Import!E6049","v":0},null,{"$f":"Import!E6060","v":0},null,{"$f":"Import!E6071","v":0},null,0,null,0,null,"brrt_RiskGradeAxis_brrt_BSCRRating5Member",null,null,{"$f":"XBRLMap(G62,$T$13&\".\"&Q62,$R$3,$R$4,CONFIGURATION!$B$10,\"BMA\",CONFIGURATION!$B$1,\"bscr\",CONFIGURATION!$B$12)","v":"Mapped"},{"$f":"XBRLMap(I62,$U$13&\".\"&Q62,$R$3,$R$4,CONFIGURATION!$B$10,\"BMA\",CONFIGURATION!$B$1,\"bscr\",CONFIGURATION!$B$12)","v":"Mapped"},{"$f":"XBRLMap(K62,$V$13&\".\"&Q62,$R$3,$R$4,CONFIGURATION!$B$10,\"BMA\",CONFIGURATION!$B$1,\"bscr\",CONFIGURATION!$B$12)","v":"Mapped"},{"$f":"XBRLMap(M62,$W$13&\".\"&Q62,$R$3,$R$4,CONFIGURATION!$B$10,\"BMA\",CONFIGURATION!$B$1,\"bscr\",CONFIGURATION!$B$12)","v":"Mapped"},{"$f":"XBRLMap(O62,$X$13&\".\"&Q62,$R$3,$R$4,CONFIGURATION!$B$10,\"BMA\",CONFIGURATION!$B$1,\"bscr\",CONFIGURATION!$B$12)","v":"Mapped"}]
[null,null,null,"BSCR Rating 6",null,null,{"$f":"Import!E6050","v":0},null,{"$f":"Import!E6061","v":0},null,{"$f":"Import!E6072","v":0},null,0,null,0,null,"brrt_RiskGradeAxis_brrt_BSCRRating6Member",null,null,{"$f":"XBRLMap(G63,$T$13&\".\"&Q63,$R$3,$R$4,CONFIGURATION!$B$10,\"BMA\",CONFIGURATION!$B$1,\"bscr\",CONFIGURATION!$B$12)","v":"Mapped"},{"$f":"XBRLMap(I63,$U$13&\".\"&Q63,$R$3,$R$4,CONFIGURATION!$B$10,\"BMA\",CONFIGURATION!$B$1,\"bscr\",CONFIGURATION!$B$12)","v":"Mapped"},{"$f":"XBRLMap(K63,$V$13&\".\"&Q63,$R$3,$R$4,CONFIGURATION!$B$10,\"BMA\",CONFIGURATION!$B$1,\"bscr\",CONFIGURATION!$B$12)","v":"Mapped"},{"$f":"XBRLMap(M63,$W$13&\".\"&Q63,$R$3,$R$4,CONFIGURATION!$B$10,\"BMA\",CONFIGURATION!$B$1,\"bscr\",CONFIGURATION!$B$12)","v":"Mapped"},{"$f":"XBRLMap(O63,$X$13&\".\"&Q63,$R$3,$R$4,CONFIGURATION!$B$10,\"BMA\",CONFIGURATION!$B$1,\"bscr\",CONFIGURATION!$B$12)","v":"Mapped"}]
[null,null,null,"BSCR Rating 7",null,null,{"$f":"Import!E6051","v":0},null,{"$f":"Import!E6062","v":0},null,{"$f":"Import!E6073","v":0},null,{"$f":"IF(K64=0,0,MAX(0,MIN(K64,(G64-I64)/0.98)))","v":0},null,0,null,"brrt_RiskGradeAxis_brrt_BSCRRating7Member",null,null,{"$f":"XBRLMap(G64,$T$13&\".\"&Q64,$R$3,$R$4,CONFIGURATION!$B$10,\"BMA\",CONFIGURATION!$B$1,\"bscr\",CONFIGURATION!$B$12)","v":"Mapped"},{"$f":"XBRLMap(I64,$U$13&\".\"&Q64,$R$3,$R$4,CONFIGURATION!$B$10,\"BMA\",CONFIGURATION!$B$1,\"bscr\",CONFIGURATION!$B$12)","v":"Mapped"},{"$f":"XBRLMap(K64,$V$13&\".\"&Q64,$R$3,$R$4,CONFIGURATION!$B$10,\"BMA\",CONFIGURATION!$B$1,\"bscr\",CONFIGURATION!$B$12)","v":"Mapped"},{"$f":"XBRLMap(M64,$W$13&\".\"&Q64,$R$3,$R$4,CONFIGURATION!$B$10,\"BMA\",CONFIGURATION!$B$1,\"bscr\",CONFIGURATION!$B$12)","v":"Mapped"},{"$f":"XBRLMap(O64,$X$13&\".\"&Q64,$R$3,$R$4,CONFIGURATION!$B$10,\"BMA\",CONFIGURATION!$B$1,\"bscr\",CONFIGURATION!$B$12)","v":"Mapped"}]
[null,null,null,"BSCR Rating 8",null,null,{"$f":"Import!E6052","v":0},null,{"$f":"Import!E6063","v":0},null,{"$f":"Import!E6074","v":0},null,0,null,0,null,"brrt_RiskGradeAxis_brrt_BSCRRating8Member",null,null,{"$f":"XBRLMap(G65,$T$13&\".\"&Q65,$R$3,$R$4,CONFIGURATION!$B$10,\"BMA\",CONFIGURATION!$B$1,\"bscr\",CONFIGURATION!$B$12)","v":"Mapped"},{"$f":"XBRLMap(I65,$U$13&\".\"&Q65,$R$3,$R$4,CONFIGURATION!$B$10,\"BMA\",CONFIGURATION!$B$1,\"bscr\",CONFIGURATION!$B$12)","v":"Mapped"},{"$f":"XBRLMap(K65,$V$13&\".\"&Q65,$R$3,$R$4,CONFIGURATION!$B$10,\"BMA\",CONFIGURATION!$B$1,\"bscr\",CONFIGURATION!$B$12)","v":"Mapped"},{"$f":"XBRLMap(M65,$W$13&\".\"&Q65,$R$3,$R$4,CONFIGURATION!$B$10,\"BMA\",CONFIGURATION!$B$1,\"bscr\",CONFIGURATION!$B$12)","v":"Mapped"},{"$f":"XBRLMap(O65,$X$13&\".\"&Q65,$R$3,$R$4,CONFIGURATION!$B$10,\"BMA\",CONFIGURATION!$B$1,\"bscr\",CONFIGURATION!$B$12)","v":"Mapped"}]
[null,null,null,"Total Exposure by BSCR Rating",null,null,{"$f":"SUM(G57:G65)","v":0},null,{"$f":"SUM(I57:I65)","v":0},null,{"$f":"SUM(K57:K65)","v":0},null,{"$f":"SUM(M57:M65)","v":0},null,{"$f":"SUM(O57:O65)","v":0},null,"brrt_RiskGradeAxis_brrt_TotalMember",null,null,{"$f":"XBRLMap(G66,$T$13&\".\"&Q66,$R$3,$R$4,CONFIGURATION!$B$10,\"BMA\",CONFIGURATION!$B$1,\"bscr\",CONFIGURATION!$B$12)","v":"Mapped"},{"$f":"XBRLMap(I66,$U$13&\".\"&Q66,$R$3,$R$4,CONFIGURATION!$B$10,\"BMA\",CONFIGURATION!$B$1,\"bscr\",CONFIGURATION!$B$12)","v":"Mapped"},{"$f":"XBRLMap(K66,$V$13&\".\"&Q66,$R$3,$R$4,CONFIGURATION!$B$10,\"BMA\",CONFIGURATION!$B$1,\"bscr\",CONFIGURATION!$B$12)","v":"Mapped"},{"$f":"XBRLMap(M66,$W$13&\".\"&Q66,$R$3,$R$4,CONFIGURATION!$B$10,\"BMA\",CONFIGURATION!$B$1,\"bscr\",CONFIGURATION!$B$12)","v":"Mapped"},{"$f":"XBRLMap(O66,$X$13&\".\"&Q66,$R$3,$R$4,CONFIGURATION!$B$10,\"BMA\",CONFIGURATION!$B$1,\"bscr\",CONFIGURATION!$B$12)","v":"Mapped"}]
[null,null,null,null,null,null,null,null,null,null,null,null,null,null,null,null,null,null,null,"brrt_SingleConsolidatedExposureReinsuranceRecoverable","brrt_SingleConsolidatedExposureReinsurancePayable","brrt_SingleConsolidatedExposureReinsuranceCollateral","brrt_SingleConsolidatedExposureReinsuranceQualifyingCollateral","brrt_SingleConsolidatedExposureReinsuranceNetQualifyingExposure"]
[null,null,null,"Single Consolidated Exposure",null,null,{"$f":"'Form 1SFS'!F77+'Form 1SFS'!H77+'Form 1SFS'!F79+'Form 1SFS'!H79+'Form 1SFS'!H153-'Schedule IIA'!D74-G54-G66","v":0},null,{"$f":"Import!E6065","v":0},null,null,null,{"$f":"IF(K68=0,0,MAX(0,MIN(K68,(G68-I68)/0.98)))","v":0},null,{"$f":"MAX(0,(G68-I68-M68*98%))","v":0},null,null,null,null,{"$f":"XBRLMap(G68,T67,$R$3,$R$4,CONFIGURATION!$B$10,\"BMA\",CONFIGURATION!$B$1,\"bscr\",CONFIGURATION!$B$12)","v":"Mapped"},{"$f":"XBRLMap(I68,U67,$R$3,$R$4,CONFIGURATION!$B$10,\"BMA\",CONFIGURATION!$B$1,\"bscr\",CONFIGURATION!$B$12)","v":"Mapped"},{"$f":"XBRLMap(K68,V67,$R$3,$R$4,CONFIGURATION!$B$10,\"BMA\",CONFIGURATION!$B$1,\"bscr\",CONFIGURATION!$B$12)","v":"Mapped"},{"$f":"XBRLMap(M68,W67,$R$3,$R$4,CONFIGURATION!$B$10,\"BMA\",CONFIGURATION!$B$1,\"bscr\",CONFIGURATION!$B$12)","v":"Mapped"},{"$f":"XBRLMap(O68,X67,$R$3,$R$4,CONFIGURATION!$B$10,\"BMA\",CONFIGURATION!$B$1,\"bscr\",CONFIGURATION!$B$12)","v":"Mapped"}]
[]
[null,null,null,"Total Balance Sheet Adjusted for Schedule IIA, Line 28, Column (1)"]
[null,null,null,null,null,null,{"$f":"'Form 1SFS'!F77+'Form 1SFS'!H77+'Form 1SFS'!F79+'Form 1SFS'!H79+'Form 1SFS'!H153-'Schedule IIA'!D74","v":0},null,null,null,null,null,null,null,null,null,"brrt_AdjustedBalanceSheetReinsuranceAssets",null,null,{"$f":"XBRLMap(G71,Q71,$R$3,$R$4,CONFIGURATION!$B$10,\"BMA\",CONFIGURATION!$B$1,\"bscr\",CONFIGURATION!$B$12)","v":"Mapped"}]
[]
[]
[null,null,null,"Total Collateral",null,null,null,null,null,null,{"$f":"'Form 1SFS'!K212+'Form 1SFS'!K214","v":0},null,null,null,null,null,"brrt_ExposureCollateral",null,null,{"$f":"XBRLMap(K74,Q74,$R$3,$R$4,CONFIGURATION!$B$10,\"BMA\",CONFIGURATION!$B$1,\"bscr\",CONFIGURATION!$B$12)","v":"Mapped"}]
[]
[null,null,null,null,null,null,{"$f":"IF((G54+G66+G68-G71)=0,\"TRUE\",\"FALSE\")","v":"TRUE"},null,null,null,{"$f":"IF((K54+K66+K68-K74)=0,\"TRUE\",\"FALSE\")","v":"TRUE"}]
[]
[null,null,null,"Difference",null,null,{"$f":"ROUND(G71-G54-G66-G68,0)","v":0},null,null,null,{"$f":"ROUND(K74-K54-K66-K68,0)","v":0}]
[]
[null,null,null,"Total Qualifying Collateral",null,null,null,null,null,null,null,null,{"$f":"IF(K74=0,0,MAX(0,MIN(K74,(G71)/0.98)))","v":0},null,null,null,"brrt_TotalQualifyingCollateral",null,null,{"$f":"XBRLMap(M80,Q80,$R$3,$R$4,CONFIGURATION!$B$10,\"BMA\",CONFIGURATION!$B$1,\"bscr\",CONFIGURATION!$B$12)","v":"Mapped"}]
[]
[null,null,null,"Total Net Qualifying Exposure",null,null,null,null,null,null,null,null,null,null,{"$f":"O54+O66+O68","v":0},null,"brrt_TotalNetQualifyingExposure",null,null,{"$f":"XBRLMap(O82,Q82,$R$3,$R$4,CONFIGURATION!$B$10,\"BMA\",CONFIGURATION!$B$1,\"bscr\",CONFIGURATION!$B$12)","v":"Mapped"}]
[]
[null,null,null,"Particulars of Reinsurance Balances by BSCR Rating"]
[]
[null,null,null,"Select",null,null,"Reinsurance Assets",null,"Reinsurance Payable",null,"Collateral",null,"Qualifying Collateral",null,"Net Qualifying Exposure"]
[null,null,null,"BSCR Rating 0 (Domestic Affiliates)",null,null,{"$f":"SUMPRODUCT(G$14:G$53,($E$14:$E$53=D87)*1)+G57","v":0},null,{"$f":"SUMPRODUCT(I$14:I$53,($E$14:$E$53=D87)*1)+I57","v":0},null,{"$f":"SUMPRODUCT(K$14:K$53,($E$14:$E$53=D87)*1)+K57","v":0},null,{"$f":"SUMPRODUCT(M$14:M$53,($E$14:$E$53=D87)*1)+M57","v":0},null,{"$f":"SUMPRODUCT(O$14:O$53,($E$14:$E$53=D87)*1)+O57","v":0}]
[null,null,null,"BSCR Rating 1",null,null,0,null,0,null,0,null,0,null,0]
[null,null,null,"BSCR Rating 2",null,null,0,null,0,null,0,null,0,null,0]
[null,null,null,"BSCR Rating 3",null,null,0,null,0,null,0,null,0,null,0]
[null,null,null,"BSCR Rating 4",null,null,0,null,0,null,0,null,0,null,0]
[null,null,null,"BSCR Rating 5",null,null,0,null,0,null,0,null,0,null,0]
[null,null,null,"BSCR Rating 6",null,null,0,null,0,null,0,null,0,null,0]
[null,null,null,"BSCR Rating 7",null,null,0,null,0,null,0,null,0,null,0]
[null,null,null,"BSCR Rating 8",null,null,{"$f":"SUMPRODUCT(G$14:G$53,($E$14:$E$53=D95)*1)+G65+G68","v":0},null,{"$f":"SUMPRODUCT(I$14:I$53,($E$14:$E$53=D95)*1)+I65+I68","v":0},null,{"$f":"SUMPRODUCT(K$14:K$53,($E$14:$E$53=D95)*1)+K65+K68","v":0},null,{"$f":"SUMPRODUCT(M$14:M$53,($E$14:$E$53=D95)*1)+M65+M68","v":0},null,{"$f":"SUMPRODUCT(O$14:O$53,($E$14:$E$53=D95)*1)+O65+O68","v":0}]
[null,null,null,"Total",null,null,{"$f":"SUM(G87:G95)","v":0},null,{"$f":"SUM(I87:I95)","v":0},null,{"$f":"SUM(K87:K95)","v":0},null,{"$f":"SUM(M87:M95)","v":0},null,{"$f":"SUM(O87:O95)","v":0}]
[]
[]
[null,null,null,"Diversification Adjustment Calculation On a Net Qualifying Exposure Basis"]
[]
[null,null,null,"Maximum Net Qualifying Exposure Balance On a Single Reinsurer Basis",null,null,null,null,null,null,null,null,null,null,{"$f":"MAX(O14:O53)","v":0}]
[null,null,null,"Total Net Qualifying Exposure",null,null,null,null,null,null,null,null,null,null,{"$f":"O82","v":0}]
[null,null,null,"Percentage",null,null,null,null,null,null,null,null,null,null,{"$f":"IF(O102=0,0,O101/O102)","v":0}]
[null,null,null,"Diversification Adjustment up to 40%",null,null,null,null,null,null,null,null,null,null,{"$f":"IF(O101=0,0,(1-O103)*40%)","v":0}]

{"sheet":"Schedule XVIII (EBS)","index":62,"n_rows":104,"n_cols":25,"rows_kept":104,"cut":false,"hidden":false,"merged":[[92,3,92,4],[93,3,93,4],[94,3,94,4],[86,3,86,4],[87,3,87,4],[88,3,88,4],[89,3,89,4],[90,3,90,4],[91,3,91,4],[62,3,62,4],[63,3,63,4],[64,3,64,4],[61,3,61,4],[56,3,56,4],[57,3,57,4],[58,3,58,4],[60,3,60,4],[59,3,59,4],[50,2,50,3],[51,2,51,3],[52,2,52,3],[55,3,55,4],[44,2,44,3],[45,2,45,3],[46,2,46,3],[47,2,47,3],[48,2,48,3],[40,2,40,3],[41,2,41,3],[42,2,42,3],[43,2,43,3],[49,2,49,3],[35,2,35,3],[36,2,36,3],[37,2,37,3],[38,2,38,3],[39,2,39,3],[30,2,30,3],[31,2,31,3],[32,2,32,3],[33,2,33,3],[34,2,34,3],[15,2,15,3],[1,2,1,4],[2,2,2,3],[3,2,3,3],[23,2,23,3],[0,2,0,10],[7,2,7,14],[13,2,13,3],[12,2,12,3],[14,2,14,3],[69,3,71,4],[83,3,84,14],[98,3,99,14],[16,2,16,3],[17,2,17,3],[18,2,18,3],[19,2,19,3],[20,2,20,3],[21,2,21,3],[22,2,22,3],[24,2,24,3],[25,2,25,3],[26,2,26,3],[27,2,27,3],[28,2,28,3],[29,2,29,3]]}
[null,null,"SCHEDULE OF PARTICULARS OF CEDED REINSURANCE",null,null,null,null,null,null,null,null,null,null,null,{"$f":"HYPERLINK(\"#'Index'!A1\",\"Return to Index\")","v":"Return to Index"}]
[null,null,{"$f":"+'Insurer Information'!C7","v":"Enter Company Name"}]
[null,null,{"$f":"+'Insurer Information'!C3","v":"2019-12-31"},null,null,null,null,null,null,null,null,null,null,null,null,null,null,{"$f":"IF(C3=\"\",\"\",TEXT(DATE(YEAR(C3+1)-1,MONTH(C3+1),DAY(C3+1)),\"mm/dd/yyyy\"))","v":"01/01/2019"}]
[null,null,{"$f":"+'Form 4EBS'!B4","v":"Expressed in  ['000s]"},null,null,null,null,null,null,null,null,null,null,null,"SCHEDULE XVIII (EBS)",null,null,{"$f":"IF(C3=\"\",\"\",TEXT(C3,\"mm/dd/yyyy\"))","v":"12/31/2019"}]
[]
[null,null,"Particulars of reinsurance balances ",null,null,null,null,null,null,null,null,null,null,{"$f":"YEAR('Insurer Information'!C3)","v":2019}]
[]
[null,null,"Enter at Least the 10 Largest Reinsurance Exposures with the Remaining Reinsurance Exposures Grouped According to BSCR Rating and/or a Single Consolidated Reinsurance Exposure"]
[]
[null,null,"Enter Number of Entities",null,{"$f":"Import!M5890","v":0}]
[]
[null,null,"Exposure by Reinsurer",null,null,null,"(A)",null,"(B)",null,"(C)",null,"(D)",null,"(E)",null,null,"brrt_ExposureByReinsurer"]
[null,null,"Name of Reinsurer",null,"BSCR Rating",null,"Reinsurance Assets\nForm 4EBS Lines 11(e), 12(c) and 27(c) \n(Include Form 4EBS, Line 12(c) Only to the Extent That They Are Not Already Included Under Schedule IIA)",null,"Reinsurance Payable\nForm 4EBS, Lines 28, 29, 33 and 34(c) ",null,"Collateral\nNotes to Form 4EBS Lines 11(e) and Line 27(c) ",null,"Qualifying Collateral\nMax(0,Min(C,(A-B)/.98))",null,"Net Qualifying Exposure\nMax (0, (A - B - D x 98%))",null,null,"brrt_ParticularsOfCededReinsuranceNameOfReinsurer","brrt_ParticularsOfCededReinsuranceBSCRRating","brrt_ParticularsOfCededReinsuranceReinsuranceRecoverable","brrt_ParticularsOfCededReinsuranceReinsurancePayable","brrt_ParticularsOfCededReinsuranceCollateral","brrt_ParticularsOfCededReinsuranceQualifyingCollateral","brrt_ParticularsOfCededReinsuranceNetQualifyingExposure"]
[null,1,{"$f":"Import!M5891","v":0},null,{"$f":"Import!M5921","v":"Select"},null,{"$f":"Import!M5951","v":0},null,{"$f":"Import!M5982","v":0},null,{"$f":"Import!M6013","v":0},null,{"$f":"IF(K14=0,0,MAX(0,MIN(K14,(G14-I14)/0.98)))","v":0},null,{"$f":"MAX(0,(G14-I14-M14*98%))","v":0},null,null,null,null,null,null,null,null,null,{"$f":"IF(OR(C14<>\"\",E14<>\"\",G14<>\"\",I14<>\"\",K14<>\"\"),XBRLMapTuple($R$12,R$3,R$4,\"BMA\",CONFIGURATION!$B$1,\"bscr\",\"\",CONFIGURATION!$B$12,$R$13,C14,$S$13,E14,$T$13,G14,$U$13,I14,$V$13,K14,$W$13,M14,$X$13,O14),\"emptyTuple\")","v":"Mapped"}]
[null,2,{"$f":"Import!M5892","v":0},null,{"$f":"Import!M5922","v":"Select"},null,{"$f":"Import!M5952","v":0},null,{"$f":"Import!M5983","v":0},null,{"$f":"Import!M6014","v":0},null,{"$f":"IF(K15=0,0,MAX(0,MIN(K15,(G15-I15)/0.98)))","v":0},null,0,null,null,null,null,null,null,null,null,null,{"$f":"IF(OR(C15<>\"\",E15<>\"\",G15<>\"\",I15<>\"\",K15<>\"\"),XBRLMapTuple($R$12,R$3,R$4,\"BMA\",CONFIGURATION!$B$1,\"bscr\",\"\",CONFIGURATION!$B$12,$R$13,C15,$S$13,E15,$T$13,G15,$U$13,I15,$V$13,K15,$W$13,M15,$X$13,O15),\"emptyTuple\")","v":"Mapped"}]
[null,3,{"$f":"Import!M5893","v":0},null,{"$f":"Import!M5923","v":"Select"},null,{"$f":"Import!M5953","v":0},null,{"$f":"Import!M5984","v":0},null,{"$f":"Import!M6015","v":0},null,0,null,0,null,null,null,null,null,null,null,null,null,{"$f":"IF(OR(C16<>\"\",E16<>\"\",G16<>\"\",I16<>\"\",K16<>\"\"),XBRLMapTuple($R$12,R$3,R$4,\"BMA\",CONFIGURATION!$B$1,\"bscr\",\"\",CONFIGURATION!$B$12,$R$13,C16,$S$13,E16,$T$13,G16,$U$13,I16,$V$13,K16,$W$13,M16,$X$13,O16),\"emptyTuple\")","v":"Mapped"}]
[null,4,{"$f":"Import!M5894","v":0},null,{"$f":"Import!M5924","v":"Select"},null,{"$f":"Import!M5954","v":0},null,{"$f":"Import!M5985","v":0},null,{"$f":"Import!M6016","v":0},null,0,null,0,null,null,null,null,null,null,null,null,null,{"$f":"IF(OR(C17<>\"\",E17<>\"\",G17<>\"\",I17<>\"\",K17<>\"\"),XBRLMapTuple($R$12,R$3,R$4,\"BMA\",CONFIGURATION!$B$1,\"bscr\",\"\",CONFIGURATION!$B$12,$R$13,C17,$S$13,E17,$T$13,G17,$U$13,I17,$V$13,K17,$W$13,M17,$X$13,O17),\"emptyTuple\")","v":"Mapped"}]
[null,5,{"$f":"Import!M5895","v":0},null,{"$f":"Import!M5925","v":"Select"},null,{"$f":"Import!M5955","v":0},null,{"$f":"Import!M5986","v":0},null,{"$f":"Import!M6017","v":0},null,0,null,0,null,null,null,null,null,null,null,null,null,{"$f":"IF(OR(C18<>\"\",E18<>\"\",G18<>\"\",I18<>\"\",K18<>\"\"),XBRLMapTuple($R$12,R$3,R$4,\"BMA\",CONFIGURATION!$B$1,\"bscr\",\"\",CONFIGURATION!$B$12,$R$13,C18,$S$13,E18,$T$13,G18,$U$13,I18,$V$13,K18,$W$13,M18,$X$13,O18),\"emptyTuple\")","v":"Mapped"}]
[null,6,{"$f":"Import!M5896","v":0},null,{"$f":"Import!M5926","v":"Select"},null,{"$f":"Import!M5956","v":0},null,{"$f":"Import!M5987","v":0},null,{"$f":"Import!M6018","v":0},null,0,null,0,null,null,null,null,null,null,null,null,null,{"$f":"IF(OR(C19<>\"\",E19<>\"\",G19<>\"\",I19<>\"\",K19<>\"\"),XBRLMapTuple($R$12,R$3,R$4,\"BMA\",CONFIGURATION!$B$1,\"bscr\",\"\",CONFIGURATION!$B$12,$R$13,C19,$S$13,E19,$T$13,G19,$U$13,I19,$V$13,K19,$W$13,M19,$X$13,O19),\"emptyTuple\")","v":"Mapped"}]
[null,7,{"$f":"Import!M5897","v":0},null,{"$f":"Import!M5927","v":"Select"},null,{"$f":"Import!M5957","v":0},null,{"$f":"Import!M5988","v":0},null,{"$f":"Import!M6019","v":0},null,0,null,0,null,null,null,null,null,null,null,null,null,{"$f":"IF(OR(C20<>\"\",E20<>\"\",G20<>\"\",I20<>\"\",K20<>\"\"),XBRLMapTuple($R$12,R$3,R$4,\"BMA\",CONFIGURATION!$B$1,\"bscr\",\"\",CONFIGURATION!$B$12,$R$13,C20,$S$13,E20,$T$13,G20,$U$13,I20,$V$13,K20,$W$13,M20,$X$13,O20),\"emptyTuple\")","v":"Mapped"}]
[null,8,{"$f":"Import!M5898","v":0},null,{"$f":"Import!M5928","v":"Select"},null,{"$f":"Import!M5958","v":0},null,{"$f":"Import!M5989","v":0},null,{"$f":"Import!M6020","v":0},null,0,null,0,null,null,null,null,null,null,null,null,null,{"$f":"IF(OR(C21<>\"\",E21<>\"\",G21<>\"\",I21<>\"\",K21<>\"\"),XBRLMapTuple($R$12,R$3,R$4,\"BMA\",CONFIGURATION!$B$1,\"bscr\",\"\",CONFIGURATION!$B$12,$R$13,C21,$S$13,E21,$T$13,G21,$U$13,I21,$V$13,K21,$W$13,M21,$X$13,O21),\"emptyTuple\")","v":"Mapped"}]
[null,9,{"$f":"Import!M5899","v":0},null,{"$f":"Import!M5929","v":"Select"},null,{"$f":"Import!M5959","v":0},null,{"$f":"Import!M5990","v":0},null,{"$f":"Import!M6021","v":0},null,0,null,0,null,null,null,null,null,null,null,null,null,{"$f":"IF(OR(C22<>\"\",E22<>\"\",G22<>\"\",I22<>\"\",K22<>\"\"),XBRLMapTuple($R$12,R$3,R$4,\"BMA\",CONFIGURATION!$B$1,\"bscr\",\"\",CONFIGURATION!$B$12,$R$13,C22,$S$13,E22,$T$13,G22,$U$13,I22,$V$13,K22,$W$13,M22,$X$13,O22),\"emptyTuple\")","v":"Mapped"}]
[null,10,{"$f":"Import!M5900","v":0},null,{"$f":"Import!M5930","v":"Select"},null,{"$f":"Import!M5960","v":0},null,{"$f":"Import!M5991","v":0},null,{"$f":"Import!M6022","v":0},null,0,null,0,null,null,null,null,null,null,null,null,null,{"$f":"IF(OR(C23<>\"\",E23<>\"\",G23<>\"\",I23<>\"\",K23<>\"\"),XBRLMapTuple($R$12,R$3,R$4,\"BMA\",CONFIGURATION!$B$1,\"bscr\",\"\",CONFIGURATION!$B$12,$R$13,C23,$S$13,E23,$T$13,G23,$U$13,I23,$V$13,K23,$W$13,M23,$X$13,O23),\"emptyTuple\")","v":"Mapped"}]
[null,11,{"$f":"Import!M5901","v":0},null,{"$f":"Import!M5931","v":"Select"},null,{"$f":"Import!M5961","v":0},null,{"$f":"Import!M5992","v":0},null,{"$f":"Import!M6023","v":0},null,0,null,0,null,null,null,null,null,null,null,null,null,{"$f":"IF(OR(C24<>\"\",E24<>\"\",G24<>\"\",I24<>\"\",K24<>\"\"),XBRLMapTuple($R$12,R$3,R$4,\"BMA\",CONFIGURATION!$B$1,\"bscr\",\"\",CONFIGURATION!$B$12,$R$13,C24,$S$13,E24,$T$13,G24,$U$13,I24,$V$13,K24,$W$13,M24,$X$13,O24),\"emptyTuple\")","v":"Mapped"}]
[null,12,{"$f":"Import!M5902","v":0},null,{"$f":"Import!M5932","v":"Select"},null,{"$f":"Import!M5962","v":0},null,{"$f":"Import!M5993","v":0},null,{"$f":"Import!M6024","v":0},null,0,null,0,null,null,null,null,null,null,null,null,null,{"$f":"IF(OR(C25<>\"\",E25<>\"\",G25<>\"\",I25<>\"\",K25<>\"\"),XBRLMapTuple($R$12,R$3,R$4,\"BMA\",CONFIGURATION!$B$1,\"bscr\",\"\",CONFIGURATION!$B$12,$R$13,C25,$S$13,E25,$T$13,G25,$U$13,I25,$V$13,K25,$W$13,M25,$X$13,O25),\"emptyTuple\")","v":"Mapped"}]
[null,13,{"$f":"Import!M5903","v":0},null,{"$f":"Import!M5933","v":"Select"},null,{"$f":"Import!M5963","v":0},null,{"$f":"Import!M5994","v":0},null,{"$f":"Import!M6025","v":0},null,0,null,0,null,null,null,null,null,null,null,null,null,{"$f":"IF(OR(C26<>\"\",E26<>\"\",G26<>\"\",I26<>\"\",K26<>\"\"),XBRLMapTuple($R$12,R$3,R$4,\"BMA\",CONFIGURATION!$B$1,\"bscr\",\"\",CONFIGURATION!$B$12,$R$13,C26,$S$13,E26,$T$13,G26,$U$13,I26,$V$13,K26,$W$13,M26,$X$13,O26),\"emptyTuple\")","v":"Mapped"}]
[null,14,{"$f":"Import!M5904","v":0},null,{"$f":"Import!M5934","v":"Select"},null,{"$f":"Import!M5964","v":0},null,{"$f":"Import!M5995","v":0},null,{"$f":"Import!M6026","v":0},null,0,null,0,null,null,null,null,null,null,null,null,null,{"$f":"IF(OR(C27<>\"\",E27<>\"\",G27<>\"\",I27<>\"\",K27<>\"\"),XBRLMapTuple($R$12,R$3,R$4,\"BMA\",CONFIGURATION!$B$1,\"bscr\",\"\",CONFIGURATION!$B$12,$R$13,C27,$S$13,E27,$T$13,G27,$U$13,I27,$V$13,K27,$W$13,M27,$X$13,O27),\"emptyTuple\")","v":"Mapped"}]
[null,15,{"$f":"Import!M5905","v":0},null,{"$f":"Import!M5935","v":"Select"},null,{"$f":"Import!M5965","v":0},null,{"$f":"Import!M5996","v":0},null,{"$f":"Import!M6027","v":0},null,0,null,0,null,null,null,null,null,null,null,null,null,{"$f":"IF(OR(C28<>\"\",E28<>\"\",G28<>\"\",I28<>\"\",K28<>\"\"),XBRLMapTuple($R$12,R$3,R$4,\"BMA\",CONFIGURATION!$B$1,\"bscr\",\"\",CONFIGURATION!$B$12,$R$13,C28,$S$13,E28,$T$13,G28,$U$13,I28,$V$13,K28,$W$13,M28,$X$13,O28),\"emptyTuple\")","v":"Mapped"}]
[null,16,{"$f":"Import!M5906","v":0},null,{"$f":"Import!M5936","v":"Select"},null,{"$f":"Import!M5966","v":0},null,{"$f":"Import!M5997","v":0},null,{"$f":"Import!M6028","v":0},null,0,null,0,null,null,null,null,null,null,null,null,null,{"$f":"IF(OR(C29<>\"\",E29<>\"\",G29<>\"\",I29<>\"\",K29<>\"\"),XBRLMapTuple($R$12,R$3,R$4,\"BMA\",CONFIGURATION!$B$1,\"bscr\",\"\",CONFIGURATION!$B$12,$R$13,C29,$S$13,E29,$T$13,G29,$U$13,I29,$V$13,K29,$W$13,M29,$X$13,O29),\"emptyTuple\")","v":"Mapped"}]
[null,17,{"$f":"Import!M5907","v":0},null,{"$f":"Import!M5937","v":"Select"},null,{"$f":"Import!M5967","v":0},null,{"$f":"Import!M5998","v":0},null,{"$f":"Import!M6029","v":0},null,0,null,0,null,null,null,null,null,null,null,null,null,{"$f":"IF(OR(C30<>\"\",E30<>\"\",G30<>\"\",I30<>\"\",K30<>\"\"),XBRLMapTuple($R$12,R$3,R$4,\"BMA\",CONFIGURATION!$B$1,\"bscr\",\"\",CONFIGURATION!$B$12,$R$13,C30,$S$13,E30,$T$13,G30,$U$13,I30,$V$13,K30,$W$13,M30,$X$13,O30),\"emptyTuple\")","v":"Mapped"}]
[null,18,{"$f":"Import!M5908","v":0},null,{"$f":"Import!M5938","v":"Select"},null,{"$f":"Import!M5968","v":0},null,{"$f":"Import!M5999","v":0},null,{"$f":"Import!M6030","v":0},null,0,null,0,null,null,null,null,null,null,null,null,null,{"$f":"IF(OR(C31<>\"\",E31<>\"\",G31<>\"\",I31<>\"\",K31<>\"\"),XBRLMapTuple($R$12,R$3,R$4,\"BMA\",CONFIGURATION!$B$1,\"bscr\",\"\",CONFIGURATION!$B$12,$R$13,C31,$S$13,E31,$T$13,G31,$U$13,I31,$V$13,K31,$W$13,M31,$X$13,O31),\"emptyTuple\")","v":"Mapped"}]
[null,19,{"$f":"Import!M5909","v":0},null,{"$f":"Import!M5939","v":"Select"},null,{"$f":"Import!M5969","v":0},null,{"$f":"Import!M6000","v":0},null,{"$f":"Import!M6031","v":0},null,0,null,0,null,null,null,null,null,null,null,null,null,{"$f":"IF(OR(C32<>\"\",E32<>\"\",G32<>\"\",I32<>\"\",K32<>\"\"),XBRLMapTuple($R$12,R$3,R$4,\"BMA\",CONFIGURATION!$B$1,\"bscr\",\"\",CONFIGURATION!$B$12,$R$13,C32,$S$13,E32,$T$13,G32,$U$13,I32,$V$13,K32,$W$13,M32,$X$13,O32),\"emptyTuple\")","v":"Mapped"}]
[null,20,{"$f":"Import!M5910","v":0},null,{"$f":"Import!M5940","v":"Select"},null,{"$f":"Import!M5970","v":0},null,{"$f":"Import!M6001","v":0},null,{"$f":"Import!M6032","v":0},null,0,null,0,null,null,null,null,null,null,null,null,null,{"$f":"IF(OR(C33<>\"\",E33<>\"\",G33<>\"\",I33<>\"\",K33<>\"\"),XBRLMapTuple($R$12,R$3,R$4,\"BMA\",CONFIGURATION!$B$1,\"bscr\",\"\",CONFIGURATION!$B$12,$R$13,C33,$S$13,E33,$T$13,G33,$U$13,I33,$V$13,K33,$W$13,M33,$X$13,O33),\"emptyTuple\")","v":"Mapped"}]
[null,21,{"$f":"Import!M5911","v":0},null,{"$f":"Import!M5941","v":"Select"},null,{"$f":"Import!M5971","v":0},null,{"$f":"Import!M6002","v":0},null,{"$f":"Import!M6033","v":0},null,0,null,0,null,null,null,null,null,null,null,null,null,{"$f":"IF(OR(C34<>\"\",E34<>\"\",G34<>\"\",I34<>\"\",K34<>\"\"),XBRLMapTuple($R$12,R$3,R$4,\"BMA\",CONFIGURATION!$B$1,\"bscr\",\"\",CONFIGURATION!$B$12,$R$13,C34,$S$13,E34,$T$13,G34,$U$13,I34,$V$13,K34,$W$13,M34,$X$13,O34),\"emptyTuple\")","v":"Mapped"}]
[null,22,{"$f":"Import!M5912","v":0},null,{"$f":"Import!M5942","v":"Select"},null,{"$f":"Import!M5972","v":0},null,{"$f":"Import!M6003","v":0},null,{"$f":"Import!M6034","v":0},null,0,null,0,null,null,null,null,null,null,null,null,null,{"$f":"IF(OR(C35<>\"\",E35<>\"\",G35<>\"\",I35<>\"\",K35<>\"\"),XBRLMapTuple($R$12,R$3,R$4,\"BMA\",CONFIGURATION!$B$1,\"bscr\",\"\",CONFIGURATION!$B$12,$R$13,C35,$S$13,E35,$T$13,G35,$U$13,I35,$V$13,K35,$W$13,M35,$X$13,O35),\"emptyTuple\")","v":"Mapped"}]
[null,23,{"$f":"Import!M5913","v":0},null,{"$f":"Import!M5943","v":"Select"},null,{"$f":"Import!M5973","v":0},null,{"$f":"Import!M6004","v":0},null,{"$f":"Import!M6035","v":0},null,0,null,0,null,null,null,null,null,null,null,null,null,{"$f":"IF(OR(C36<>\"\",E36<>\"\",G36<>\"\",I36<>\"\",K36<>\"\"),XBRLMapTuple($R$12,R$3,R$4,\"BMA\",CONFIGURATION!$B$1,\"bscr\",\"\",CONFIGURATION!$B$12,$R$13,C36,$S$13,E36,$T$13,G36,$U$13,I36,$V$13,K36,$W$13,M36,$X$13,O36),\"emptyTuple\")","v":"Mapped"}]
[null,24,{"$f":"Import!M5914","v":0},null,{"$f":"Import!M5944","v":"Select"},null,{"$f":"Import!M5974","v":0},null,{"$f":"Import!M6005","v":0},null,{"$f":"Import!M6036","v":0},null,0,null,0,null,null,null,null,null,null,null,null,null,{"$f":"IF(OR(C37<>\"\",E37<>\"\",G37<>\"\",I37<>\"\",K37<>\"\"),XBRLMapTuple($R$12,R$3,R$4,\"BMA\",CONFIGURATION!$B$1,\"bscr\",\"\",CONFIGURATION!$B$12,$R$13,C37,$S$13,E37,$T$13,G37,$U$13,I37,$V$13,K37,$W$13,M37,$X$13,O37),\"emptyTuple\")","v":"Mapped"}]
[null,25,{"$f":"Import!M5915","v":0},null,{"$f":"Import!M5945","v":"Select"},null,{"$f":"Import!M5975","v":0},null,{"$f":"Import!M6006","v":0},null,{"$f":"Import!M6037","v":0},null,0,null,0,null,null,null,null,null,null,null,null,null,{"$f":"IF(OR(C38<>\"\",E38<>\"\",G38<>\"\",I38<>\"\",K38<>\"\"),XBRLMapTuple($R$12,R$3,R$4,\"BMA\",CONFIGURATION!$B$1,\"bscr\",\"\",CONFIGURATION!$B$12,$R$13,C38,$S$13,E38,$T$13,G38,$U$13,I38,$V$13,K38,$W$13,M38,$X$13,O38),\"emptyTuple\")","v":"Mapped"}]
[null,26,{"$f":"Import!M5916","v":0},null,{"$f":"Import!M5946","v":"Select"},null,{"$f":"Import!M5976","v":0},null,{"$f":"Import!M6007","v":0},null,{"$f":"Import!M6038","v":0},null,0,null,0,null,null,null,null,null,null,null,null,null,{"$f":"IF(OR(C39<>\"\",E39<>\"\",G39<>\"\",I39<>\"\",K39<>\"\"),XBRLMapTuple($R$12,R$3,R$4,\"BMA\",CONFIGURATION!$B$1,\"bscr\",\"\",CONFIGURATION!$B$12,$R$13,C39,$S$13,E39,$T$13,G39,$U$13,I39,$V$13,K39,$W$13,M39,$X$13,O39),\"emptyTuple\")","v":"Mapped"}]
[null,27,{"$f":"Import!M5917","v":0},null,{"$f":"Import!M5947","v":"Select"},null,{"$f":"Import!M5977","v":0},null,{"$f":"Import!M6008","v":0},null,{"$f":"Import!M6039","v":0},null,0,null,0,null,null,null,null,null,null,null,null,null,{"$f":"IF(OR(C40<>\"\",E40<>\"\",G40<>\"\",I40<>\"\",K40<>\"\"),XBRLMapTuple($R$12,R$3,R$4,\"BMA\",CONFIGURATION!$B$1,\"bscr\",\"\",CONFIGURATION!$B$12,$R$13,C40,$S$13,E40,$T$13,G40,$U$13,I40,$V$13,K40,$W$13,M40,$X$13,O40),\"emptyTuple\")","v":"Mapped"}]
[null,28,{"$f":"Import!M5918","v":0},null,{"$f":"Import!M5948","v":"Select"},null,{"$f":"Import!M5978","v":0},null,{"$f":"Import!M6009","v":0},null,{"$f":"Import!M6040","v":0},null,0,null,0,null,null,null,null,null,null,null,null,null,{"$f":"IF(OR(C41<>\"\",E41<>\"\",G41<>\"\",I41<>\"\",K41<>\"\"),XBRLMapTuple($R$12,R$3,R$4,\"BMA\",CONFIGURATION!$B$1,\"bscr\",\"\",CONFIGURATION!$B$12,$R$13,C41,$S$13,E41,$T$13,G41,$U$13,I41,$V$13,K41,$W$13,M41,$X$13,O41),\"emptyTuple\")","v":"Mapped"}]
[null,29,{"$f":"Import!M5919","v":0},null,{"$f":"Import!M5949","v":"Select"},null,{"$f":"Import!M5979","v":0},null,{"$f":"Import!M6010","v":0},null,{"$f":"Import!M6041","v":0},null,0,null,0,null,null,null,null,null,null,null,null,null,{"$f":"IF(OR(C42<>\"\",E42<>\"\",G42<>\"\",I42<>\"\",K42<>\"\"),XBRLMapTuple($R$12,R$3,R$4,\"BMA\",CONFIGURATION!$B$1,\"bscr\",\"\",CONFIGURATION!$B$12,$R$13,C42,$S$13,E42,$T$13,G42,$U$13,I42,$V$13,K42,$W$13,M42,$X$13,O42),\"emptyTuple\")","v":"Mapped"}]
[null,30,{"$f":"Import!M5920","v":0},null,{"$f":"Import!M5950","v":"Select"},null,{"$f":"Import!M5980","v":0},null,{"$f":"Import!M6011","v":0},null,{"$f":"Import!M6042","v":0},null,0,null,0,null,null,null,null,null,null,null,null,null,{"$f":"IF(OR(C43<>\"\",E43<>\"\",G43<>\"\",I43<>\"\",K43<>\"\"),XBRLMapTuple($R$12,R$3,R$4,\"BMA\",CONFIGURATION!$B$1,\"bscr\",\"\",CONFIGURATION!$B$12,$R$13,C43,$S$13,E43,$T$13,G43,$U$13,I43,$V$13,K43,$W$13,M43,$X$13,O43),\"emptyTuple\")","v":"Mapped"}]
[null,31,null,null,null,null,null,null,null,null,null,null,0,null,0,null,null,null,null,null,null,null,null,null,{"$f":"IF(OR(C44<>\"\",E44<>\"\",G44<>\"\",I44<>\"\",K44<>\"\"),XBRLMapTuple($R$12,R$3,R$4,\"BMA\",CONFIGURATION!$B$1,\"bscr\",\"\",CONFIGURATION!$B$12,$R$13,C44,$S$13,E44,$T$13,G44,$U$13,I44,$V$13,K44,$W$13,M44,$X$13,O44),\"emptyTuple\")","v":"emptyTuple"}]
[null,32,null,null,null,null,null,null,null,null,null,null,0,null,0,null,null,null,null,null,null,null,null,null,{"$f":"IF(OR(C45<>\"\",E45<>\"\",G45<>\"\",I45<>\"\",K45<>\"\"),XBRLMapTuple($R$12,R$3,R$4,\"BMA\",CONFIGURATION!$B$1,\"bscr\",\"\",CONFIGURATION!$B$12,$R$13,C45,$S$13,E45,$T$13,G45,$U$13,I45,$V$13,K45,$W$13,M45,$X$13,O45),\"emptyTuple\")","v":"emptyTuple"}]
[null,33,null,null,null,null,null,null,null,null,null,null,0,null,0,null,null,null,null,null,null,null,null,null,{"$f":"IF(OR(C46<>\"\",E46<>\"\",G46<>\"\",I46<>\"\",K46<>\"\"),XBRLMapTuple($R$12,R$3,R$4,\"BMA\",CONFIGURATION!$B$1,\"bscr\",\"\",CONFIGURATION!$B$12,$R$13,C46,$S$13,E46,$T$13,G46,$U$13,I46,$V$13,K46,$W$13,M46,$X$13,O46),\"emptyTuple\")","v":"emptyTuple"}]
[null,34,null,null,null,null,null,null,null,null,null,null,0,null,0,null,null,null,null,null,null,null,null,null,{"$f":"IF(OR(C47<>\"\",E47<>\"\",G47<>\"\",I47<>\"\",K47<>\"\"),XBRLMapTuple($R$12,R$3,R$4,\"BMA\",CONFIGURATION!$B$1,\"bscr\",\"\",CONFIGURATION!$B$12,$R$13,C47,$S$13,E47,$T$13,G47,$U$13,I47,$V$13,K47,$W$13,M47,$X$13,O47),\"emptyTuple\")","v":"emptyTuple"}]
[null,35,null,null,null,null,null,null,null,null,null,null,0,null,0,null,null,null,null,null,null,null,null,null,{"$f":"IF(OR(C48<>\"\",E48<>\"\",G48<>\"\",I48<>\"\",K48<>\"\"),XBRLMapTuple($R$12,R$3,R$4,\"BMA\",CONFIGURATION!$B$1,\"bscr\",\"\",CONFIGURATION!$B$12,$R$13,C48,$S$13,E48,$T$13,G48,$U$13,I48,$V$13,K48,$W$13,M48,$X$13,O48),\"emptyTuple\")","v":"emptyTuple"}]
[null,36,null,null,null,null,null,null,null,null,null,null,0,null,0,null,null,null,null,null,null,null,null,null,{"$f":"IF(OR(C49<>\"\",E49<>\"\",G49<>\"\",I49<>\"\",K49<>\"\"),XBRLMapTuple($R$12,R$3,R$4,\"BMA\",CONFIGURATION!$B$1,\"bscr\",\"\",CONFIGURATION!$B$12,$R$13,C49,$S$13,E49,$T$13,G49,$U$13,I49,$V$13,K49,$W$13,M49,$X$13,O49),\"emptyTuple\")","v":"emptyTuple"}]
[null,37,null,null,null,null,null,null,null,null,null,null,0,null,0,null,null,null,null,null,null,null,null,null,{"$f":"IF(OR(C50<>\"\",E50<>\"\",G50<>\"\",I50<>\"\",K50<>\"\"),XBRLMapTuple($R$12,R$3,R$4,\"BMA\",CONFIGURATION!$B$1,\"bscr\",\"\",CONFIGURATION!$B$12,$R$13,C50,$S$13,E50,$T$13,G50,$U$13,I50,$V$13,K50,$W$13,M50,$X$13,O50),\"emptyTuple\")","v":"emptyTuple"}]
[null,38,null,null,null,null,null,null,null,null,null,null,0,null,0,null,null,null,null,null,null,null,null,null,{"$f":"IF(OR(C51<>\"\",E51<>\"\",G51<>\"\",I51<>\"\",K51<>\"\"),XBRLMapTuple($R$12,R$3,R$4,\"BMA\",CONFIGURATION!$B$1,\"bscr\",\"\",CONFIGURATION!$B$12,$R$13,C51,$S$13,E51,$T$13,G51,$U$13,I51,$V$13,K51,$W$13,M51,$X$13,O51),\"emptyTuple\")","v":"emptyTuple"}]
[null,39,null,null,null,null,null,null,null,null,null,null,0,null,0,null,null,null,null,null,null,null,null,null,{"$f":"IF(OR(C52<>\"\",E52<>\"\",G52<>\"\",I52<>\"\",K52<>\"\"),XBRLMapTuple($R$12,R$3,R$4,\"BMA\",CONFIGURATION!$B$1,\"bscr\",\"\",CONFIGURATION!$B$12,$R$13,C52,$S$13,E52,$T$13,G52,$U$13,I52,$V$13,K52,$W$13,M52,$X$13,O52),\"emptyTuple\")","v":"emptyTuple"}]
[null,40,null,null,null,null,null,null,null,null,null,null,0,null,0,null,null,null,null,null,null,null,null,null,{"$f":"IF(OR(C53<>\"\",E53<>\"\",G53<>\"\",I53<>\"\",K53<>\"\"),XBRLMapTuple($R$12,R$3,R$4,\"BMA\",CONFIGURATION!$B$1,\"bscr\",\"\",CONFIGURATION!$B$12,$R$13,C53,$S$13,E53,$T$13,G53,$U$13,I53,$V$13,K53,$W$13,M53,$X$13,O53),\"emptyTuple\")","v":"emptyTuple"}]
[null,null,"Total Exposure By Reinsurer",null,null,null,{"$f":"SUM(G14:G53)","v":0},null,{"$f":"SUM(I14:I53)","v":0},null,{"$f":"SUM(K14:K53)","v":0},null,{"$f":"SUM(M14:M53)","v":0},null,{"$f":"SUM(O14:O53)","v":0},null,null,null,null,{"$f":"XBRLMap(G54,T13,$R$3,$R$4,CONFIGURATION!$B$10,\"BMA\",CONFIGURATION!$B$1,\"bscr\",CONFIGURATION!$B$12)","v":"Mapped"},{"$f":"XBRLMap(I54,U13,$R$3,$R$4,CONFIGURATION!$B$10,\"BMA\",CONFIGURATION!$B$1,\"bscr\",CONFIGURATION!$B$12)","v":"Mapped"},{"$f":"XBRLMap(K54,V13,$R$3,$R$4,CONFIGURATION!$B$10,\"BMA\",CONFIGURATION!$B$1,\"bscr\",CONFIGURATION!$B$12)","v":"Mapped"},{"$f":"XBRLMap(M54,W13,$R$3,$R$4,CONFIGURATION!$B$10,\"BMA\",CONFIGURATION!$B$1,\"bscr\",CONFIGURATION!$B$12)","v":"Mapped"},{"$f":"XBRLMap(O54,X13,$R$3,$R$4,CONFIGURATION!$B$10,\"BMA\",CONFIGURATION!$B$1,\"bscr\",CONFIGURATION!$B$12)","v":"Mapped"}]
[]
[null,null,null,"Exposure by BSCR Rating"]
[null,null,null,"BSCR Rating 0 (Domestic Affiliates)",null,null,{"$f":"Import!M6044","v":0},null,{"$f":"Import!M6055","v":0},null,{"$f":"Import!M6066","v":0},null,{"$f":"IF(K57=0,0,MAX(0,MIN(K57,(G57-I57)/0.98)))","v":0},null,{"$f":"MAX(0,(G57-I57-M57*98%))","v":0},null,"brrt_RiskGradeAxis_brrt_BSCRRating0Member",null,null,{"$f":"XBRLMap(G57,$T$13&\".\"&Q57,$R$3,$R$4,CONFIGURATION!$B$10,\"BMA\",CONFIGURATION!$B$1,\"bscr\",CONFIGURATION!$B$12)","v":"Mapped"},{"$f":"XBRLMap(I57,$U$13&\".\"&Q57,$R$3,$R$4,CONFIGURATION!$B$10,\"BMA\",CONFIGURATION!$B$1,\"bscr\",CONFIGURATION!$B$12)","v":"Mapped"},{"$f":"XBRLMap(K57,$V$13&\".\"&Q57,$R$3,$R$4,CONFIGURATION!$B$10,\"BMA\",CONFIGURATION!$B$1,\"bscr\",CONFIGURATION!$B$12)","v":"Mapped"},{"$f":"XBRLMap(M57,$W$13&\".\"&Q57,$R$3,$R$4,CONFIGURATION!$B$10,\"BMA\",CONFIGURATION!$B$1,\"bscr\",CONFIGURATION!$B$12)","v":"Mapped"},{"$f":"XBRLMap(O57,$X$13&\".\"&Q57,$R$3,$R$4,CONFIGURATION!$B$10,\"BMA\",CONFIGURATION!$B$1,\"bscr\",CONFIGURATION!$B$12)","v":"Mapped"}]
[null,null,null,"BSCR Rating 1",null,null,{"$f":"Import!M6045","v":0},null,{"$f":"Import!M6056","v":0},null,{"$f":"Import!M6067","v":0},null,0,null,0,null,"brrt_RiskGradeAxis_brrt_BSCRRating1Member",null,null,{"$f":"XBRLMap(G58,$T$13&\".\"&Q58,$R$3,$R$4,CONFIGURATION!$B$10,\"BMA\",CONFIGURATION!$B$1,\"bscr\",CONFIGURATION!$B$12)","v":"Mapped"},{"$f":"XBRLMap(I58,$U$13&\".\"&Q58,$R$3,$R$4,CONFIGURATION!$B$10,\"BMA\",CONFIGURATION!$B$1,\"bscr\",CONFIGURATION!$B$12)","v":"Mapped"},{"$f":"XBRLMap(K58,$V$13&\".\"&Q58,$R$3,$R$4,CONFIGURATION!$B$10,\"BMA\",CONFIGURATION!$B$1,\"bscr\",CONFIGURATION!$B$12)","v":"Mapped"},{"$f":"XBRLMap(M58,$W$13&\".\"&Q58,$R$3,$R$4,CONFIGURATION!$B$10,\"BMA\",CONFIGURATION!$B$1,\"bscr\",CONFIGURATION!$B$12)","v":"Mapped"},{"$f":"XBRLMap(O58,$X$13&\".\"&Q58,$R$3,$R$4,CONFIGURATION!$B$10,\"BMA\",CONFIGURATION!$B$1,\"bscr\",CONFIGURATION!$B$12)","v":"Mapped"}]
[null,null,null,"BSCR Rating 2",null,null,{"$f":"Import!M6046","v":0},null,{"$f":"Import!M6057","v":0},null,{"$f":"Import!M6068","v":0},null,0,null,0,null,"brrt_RiskGradeAxis_brrt_BSCRRating2Member",null,null,{"$f":"XBRLMap(G59,$T$13&\".\"&Q59,$R$3,$R$4,CONFIGURATION!$B$10,\"BMA\",CONFIGURATION!$B$1,\"bscr\",CONFIGURATION!$B$12)","v":"Mapped"},{"$f":"XBRLMap(I59,$U$13&\".\"&Q59,$R$3,$R$4,CONFIGURATION!$B$10,\"BMA\",CONFIGURATION!$B$1,\"bscr\",CONFIGURATION!$B$12)","v":"Mapped"},{"$f":"XBRLMap(K59,$V$13&\".\"&Q59,$R$3,$R$4,CONFIGURATION!$B$10,\"BMA\",CONFIGURATION!$B$1,\"bscr\",CONFIGURATION!$B$12)","v":"Mapped"},{"$f":"XBRLMap(M59,$W$13&\".\"&Q59,$R$3,$R$4,CONFIGURATION!$B$10,\"BMA\",CONFIGURATION!$B$1,\"bscr\",CONFIGURATION!$B$12)","v":"Mapped"},{"$f":"XBRLMap(O59,$X$13&\".\"&Q59,$R$3,$R$4,CONFIGURATION!$B$10,\"BMA\",CONFIGURATION!$B$1,\"bscr\",CONFIGURATION!$B$12)","v":"Mapped"}]
[null,null,null,"BSCR Rating 3",null,null,{"$f":"Import!M6047","v":0},null,{"$f":"Import!M6058","v":0},null,{"$f":"Import!M6069","v":0},null,0,null,0,null,"brrt_RiskGradeAxis_brrt_BSCRRating3Member",null,null,{"$f":"XBRLMap(G60,$T$13&\".\"&Q60,$R$3,$R$4,CONFIGURATION!$B$10,\"BMA\",CONFIGURATION!$B$1,\"bscr\",CONFIGURATION!$B$12)","v":"Mapped"},{"$f":"XBRLMap(I60,$U$13&\".\"&Q60,$R$3,$R$4,CONFIGURATION!$B$10,\"BMA\",CONFIGURATION!$B$1,\"bscr\",CONFIGURATION!$B$12)","v":"Mapped"},{"$f":"XBRLMap(K60,$V$13&\".\"&Q60,$R$3,$R$4,CONFIGURATION!$B$10,\"BMA\",CONFIGURATION!$B$1,\"bscr\",CONFIGURATION!$B$12)","v":"Mapped"},{"$f":"XBRLMap(M60,$W$13&\".\"&Q60,$R$3,$R$4,CONFIGURATION!$B$10,\"BMA\",CONFIGURATION!$B$1,\"bscr\",CONFIGURATION!$B$12)","v":"Mapped"},{"$f":"XBRLMap(O60,$X$13&\".\"&Q60,$R$3,$R$4,CONFIGURATION!$B$10,\"BMA\",CONFIGURATION!$B$1,\"bscr\",CONFIGURATION!$B$12)","v":"Mapped"}]
[null,null,null,"BSCR Rating 4",null,null,{"$f":"Import!M6048","v":0},null,{"$f":"Import!M6059","v":0},null,{"$f":"Import!M6070","v":0},null,0,null,0,null,"brrt_RiskGradeAxis_brrt_BSCRRating4Member",null,null,{"$f":"XBRLMap(G61,$T$13&\".\"&Q61,$R$3,$R$4,CONFIGURATION!$B$10,\"BMA\",CONFIGURATION!$B$1,\"bscr\",CONFIGURATION!$B$12)","v":"Mapped"},{"$f":"XBRLMap(I61,$U$13&\".\"&Q61,$R$3,$R$4,CONFIGURATION!$B$10,\"BMA\",CONFIGURATION!$B$1,\"bscr\",CONFIGURATION!$B$12)","v":"Mapped"},{"$f":"XBRLMap(K61,$V$13&\".\"&Q61,$R$3,$R$4,CONFIGURATION!$B$10,\"BMA\",CONFIGURATION!$B$1,\"bscr\",CONFIGURATION!$B$12)","v":"Mapped"},{"$f":"XBRLMap(M61,$W$13&\".\"&Q61,$R$3,$R$4,CONFIGURATION!$B$10,\"BMA\",CONFIGURATION!$B$1,\"bscr\",CONFIGURATION!$B$12)","v":"Mapped"},{"$f":"XBRLMap(O61,$X$13&\".\"&Q61,$R$3,$R$4,CONFIGURATION!$B$10,\"BMA\",CONFIGURATION!$B$1,\"bscr\",CONFIGURATION!$B$12)","v":"Mapped"}]
[null,null,null,"BSCR Rating 5",null,null,{"$f":"Import!M6049","v":0},null,{"$f":"Import!M6060","v":0},null,{"$f":"Import!M6071","v":0},null,0,null,0,null,"brrt_RiskGradeAxis_brrt_BSCRRating5Member",null,null,{"$f":"XBRLMap(G62,$T$13&\".\"&Q62,$R$3,$R$4,CONFIGURATION!$B$10,\"BMA\",CONFIGURATION!$B$1,\"bscr\",CONFIGURATION!$B$12)","v":"Mapped"},{"$f":"XBRLMap(I62,$U$13&\".\"&Q62,$R$3,$R$4,CONFIGURATION!$B$10,\"BMA\",CONFIGURATION!$B$1,\"bscr\",CONFIGURATION!$B$12)","v":"Mapped"},{"$f":"XBRLMap(K62,$V$13&\".\"&Q62,$R$3,$R$4,CONFIGURATION!$B$10,\"BMA\",CONFIGURATION!$B$1,\"bscr\",CONFIGURATION!$B$12)","v":"Mapped"},{"$f":"XBRLMap(M62,$W$13&\".\"&Q62,$R$3,$R$4,CONFIGURATION!$B$10,\"BMA\",CONFIGURATION!$B$1,\"bscr\",CONFIGURATION!$B$12)","v":"Mapped"},{"$f":"XBRLMap(O62,$X$13&\".\"&Q62,$R$3,$R$4,CONFIGURATION!$B$10,\"BMA\",CONFIGURATION!$B$1,\"bscr\",CONFIGURATION!$B$12)","v":"Mapped"}]
[null,null,null,"BSCR Rating 6",null,null,{"$f":"Import!M6050","v":0},null,{"$f":"Import!M6061","v":0},null,{"$f":"Import!M6072","v":0},null,0,null,0,null,"brrt_RiskGradeAxis_brrt_BSCRRating6Member",null,null,{"$f":"XBRLMap(G63,$T$13&\".\"&Q63,$R$3,$R$4,CONFIGURATION!$B$10,\"BMA\",CONFIGURATION!$B$1,\"bscr\",CONFIGURATION!$B$12)","v":"Mapped"},{"$f":"XBRLMap(I63,$U$13&\".\"&Q63,$R$3,$R$4,CONFIGURATION!$B$10,\"BMA\",CONFIGURATION!$B$1,\"bscr\",CONFIGURATION!$B$12)","v":"Mapped"},{"$f":"XBRLMap(K63,$V$13&\".\"&Q63,$R$3,$R$4,CONFIGURATION!$B$10,\"BMA\",CONFIGURATION!$B$1,\"bscr\",CONFIGURATION!$B$12)","v":"Mapped"},{"$f":"XBRLMap(M63,$W$13&\".\"&Q63,$R$3,$R$4,CONFIGURATION!$B$10,\"BMA\",CONFIGURATION!$B$1,\"bscr\",CONFIGURATION!$B$12)","v":"Mapped"},{"$f":"XBRLMap(O63,$X$13&\".\"&Q63,$R$3,$R$4,CONFIGURATION!$B$10,\"BMA\",CONFIGURATION!$B$1,\"bscr\",CONFIGURATION!$B$12)","v":"Mapped"}]
[null,null,null,"BSCR Rating 7",null,null,{"$f":"Import!M6051","v":0},null,{"$f":"Import!M6062","v":0},null,{"$f":"Import!M6073","v":0},null,{"$f":"IF(K64=0,0,MAX(0,MIN(K64,(G64-I64)/0.98)))","v":0},null,0,null,"brrt_RiskGradeAxis_brrt_BSCRRating7Member",null,null,{"$f":"XBRLMap(G64,$T$13&\".\"&Q64,$R$3,$R$4,CONFIGURATION!$B$10,\"BMA\",CONFIGURATION!$B$1,\"bscr\",CONFIGURATION!$B$12)","v":"Mapped"},{"$f":"XBRLMap(I64,$U$13&\".\"&Q64,$R$3,$R$4,CONFIGURATION!$B$10,\"BMA\",CONFIGURATION!$B$1,\"bscr\",CONFIGURATION!$B$12)","v":"Mapped"},{"$f":"XBRLMap(K64,$V$13&\".\"&Q64,$R$3,$R$4,CONFIGURATION!$B$10,\"BMA\",CONFIGURATION!$B$1,\"bscr\",CONFIGURATION!$B$12)","v":"Mapped"},{"$f":"XBRLMap(M64,$W$13&\".\"&Q64,$R$3,$R$4,CONFIGURATION!$B$10,\"BMA\",CONFIGURATION!$B$1,\"bscr\",CONFIGURATION!$B$12)","v":"Mapped"},{"$f":"XBRLMap(O64,$X$13&\".\"&Q64,$R$3,$R$4,CONFIGURATION!$B$10,\"BMA\",CONFIGURATION!$B$1,\"bscr\",CONFIGURATION!$B$12)","v":"Mapped"}]
[null,null,null,"BSCR Rating 8",null,null,{"$f":"Import!M6052","v":0},null,{"$f":"Import!M6063","v":0},null,{"$f":"Import!M6074","v":0},null,0,null,0,null,"brrt_RiskGradeAxis_brrt_BSCRRating8Member",null,null,{"$f":"XBRLMap(G65,$T$13&\".\"&Q65,$R$3,$R$4,CONFIGURATION!$B$10,\"BMA\",CONFIGURATION!$B$1,\"bscr\",CONFIGURATION!$B$12)","v":"Mapped"},{"$f":"XBRLMap(I65,$U$13&\".\"&Q65,$R$3,$R$4,CONFIGURATION!$B$10,\"BMA\",CONFIGURATION!$B$1,\"bscr\",CONFIGURATION!$B$12)","v":"Mapped"},{"$f":"XBRLMap(K65,$V$13&\".\"&Q65,$R$3,$R$4,CONFIGURATION!$B$10,\"BMA\",CONFIGURATION!$B$1,\"bscr\",CONFIGURATION!$B$12)","v":"Mapped"},{"$f":"XBRLMap(M65,$W$13&\".\"&Q65,$R$3,$R$4,CONFIGURATION!$B$10,\"BMA\",CONFIGURATION!$B$1,\"bscr\",CONFIGURATION!$B$12)","v":"Mapped"},{"$f":"XBRLMap(O65,$X$13&\".\"&Q65,$R$3,$R$4,CONFIGURATION!$B$10,\"BMA\",CONFIGURATION!$B$1,\"bscr\",CONFIGURATION!$B$12)","v":"Mapped"}]
[null,null,null,"Total Exposure by BSCR Rating",null,null,{"$f":"SUM(G57:G65)","v":0},null,{"$f":"SUM(I57:I65)","v":0},null,{"$f":"SUM(K57:K65)","v":0},null,{"$f":"SUM(M57:M65)","v":0},null,{"$f":"SUM(O57:O65)","v":0},null,"brrt_RiskGradeAxis_brrt_TotalMember",null,null,{"$f":"XBRLMap(G66,$T$13&\".\"&Q66,$R$3,$R$4,CONFIGURATION!$B$10,\"BMA\",CONFIGURATION!$B$1,\"bscr\",CONFIGURATION!$B$12)","v":"Mapped"},{"$f":"XBRLMap(I66,$U$13&\".\"&Q66,$R$3,$R$4,CONFIGURATION!$B$10,\"BMA\",CONFIGURATION!$B$1,\"bscr\",CONFIGURATION!$B$12)","v":"Mapped"},{"$f":"XBRLMap(K66,$V$13&\".\"&Q66,$R$3,$R$4,CONFIGURATION!$B$10,\"BMA\",CONFIGURATION!$B$1,\"bscr\",CONFIGURATION!$B$12)","v":"Mapped"},{"$f":"XBRLMap(M66,$W$13&\".\"&Q66,$R$3,$R$4,CONFIGURATION!$B$10,\"BMA\",CONFIGURATION!$B$1,\"bscr\",CONFIGURATION!$B$12)","v":"Mapped"},{"$f":"XBRLMap(O66,$X$13&\".\"&Q66,$R$3,$R$4,CONFIGURATION!$B$10,\"BMA\",CONFIGURATION!$B$1,\"bscr\",CONFIGURATION!$B$12)","v":"Mapped"}]
[null,null,null,null,null,null,null,null,null,null,null,null,null,null,null,null,null,null,null,"brrt_SingleConsolidatedExposureReinsuranceRecoverable","brrt_SingleConsolidatedExposureReinsurancePayable","brrt_SingleConsolidatedExposureReinsuranceCollateral","brrt_SingleConsolidatedExposureReinsuranceQualifyingCollateral","brrt_SingleConsolidatedExposureReinsuranceNetQualifyingExposure"]
[null,null,null,"Single Consolidated Exposure",null,null,{"$f":"'Form 4EBS'!F68+'Form 4EBS'!F73+'Form 4EBS'!F121-'Schedule IIA (EBS)'!D74-G54-G66","v":0},null,{"$f":"Import!M6065","v":0},null,null,null,{"$f":"IF(K68=0,0,MAX(0,MIN(K68,(G68-I68)/0.98)))","v":0},null,{"$f":"MAX(0,(G68-I68-M68*98%))","v":0},null,null,null,null,{"$f":"XBRLMap(G68,T67,$R$3,$R$4,CONFIGURATION!$B$10,\"BMA\",CONFIGURATION!$B$1,\"bscr\",CONFIGURATION!$B$12)","v":"Mapped"},{"$f":"XBRLMap(I68,U67,$R$3,$R$4,CONFIGURATION!$B$10,\"BMA\",CONFIGURATION!$B$1,\"bscr\",CONFIGURATION!$B$12)","v":"Mapped"},{"$f":"XBRLMap(K68,V67,$R$3,$R$4,CONFIGURATION!$B$10,\"BMA\",CONFIGURATION!$B$1,\"bscr\",CONFIGURATION!$B$12)","v":"Mapped"},{"$f":"XBRLMap(M68,W67,$R$3,$R$4,CONFIGURATION!$B$10,\"BMA\",CONFIGURATION!$B$1,\"bscr\",CONFIGURATION!$B$12)","v":"Mapped"},{"$f":"XBRLMap(O68,X67,$R$3,$R$4,CONFIGURATION!$B$10,\"BMA\",CONFIGURATION!$B$1,\"bscr\",CONFIGURATION!$B$12)","v":"Mapped"}]
[]
[null,null,null,"Total Balance Sheet Adjusted for Schedule IIA, Line 28, Column (1)"]
[null,null,null,null,null,null,{"$f":"'Form 4EBS'!F68+'Form 4EBS'!F73+'Form 4EBS'!F121-'Schedule IIA (EBS)'!D74","v":0},null,null,null,null,null,null,null,null,null,"brrt_AdjustedBalanceSheetReinsuranceAssets",null,null,{"$f":"XBRLMap(G71,Q71,$R$3,$R$4,CONFIGURATION!$B$10,\"BMA\",CONFIGURATION!$B$1,\"bscr\",CONFIGURATION!$B$12)","v":"Mapped"}]
[]
[]
[null,null,null,"Total Collateral",null,null,null,null,null,null,{"$f":"'Form 4EBS'!F197+'Form 4EBS'!F198","v":0},null,null,null,null,null,"brrt_ExposureCollateral",null,null,{"$f":"XBRLMap(K74,Q74,$R$3,$R$4,CONFIGURATION!$B$10,\"BMA\",CONFIGURATION!$B$1,\"bscr\",CONFIGURATION!$B$12)","v":"Mapped"}]
[]
[null,null,null,null,null,null,{"$f":"IF((G54+G66+G68-G71)=0,\"TRUE\",\"FALSE\")","v":"TRUE"},null,null,null,{"$f":"IF((K54+K66+K68-K74)=0,\"TRUE\",\"FALSE\")","v":"TRUE"}]
[]
[null,null,null,"Difference",null,null,{"$f":"ROUND(G71-G54-G66-G68,0)","v":0},null,null,null,{"$f":"ROUND(K74-K54-K66-K68,0)","v":0}]
[]
[null,null,null,"Total Qualifying Collateral",null,null,null,null,null,null,null,null,{"$f":"IF(K74=0,0,MAX(0,MIN(K74,(G71)/0.98)))","v":0},null,null,null,"brrt_TotalQualifyingCollateral",null,null,{"$f":"XBRLMap(M80,Q80,$R$3,$R$4,CONFIGURATION!$B$10,\"BMA\",CONFIGURATION!$B$1,\"bscr\",CONFIGURATION!$B$12)","v":"Mapped"}]
[]
[null,null,null,"Total Net Qualifying Exposure",null,null,null,null,null,null,null,null,null,null,{"$f":"O54+O66+O68","v":0},null,"brrt_TotalNetQualifyingExposure",null,null,{"$f":"XBRLMap(O82,Q82,$R$3,$R$4,CONFIGURATION!$B$10,\"BMA\",CONFIGURATION!$B$1,\"bscr\",CONFIGURATION!$B$12)","v":"Mapped"}]
[]
[null,null,null,"Particulars of Reinsurance Balances by BSCR Rating"]
[]
[null,null,null,"Select",null,null,"Reinsurance Assets",null,"Reinsurance Payable",null,"Collateral",null,"Qualifying Collateral",null,"Net Qualifying Exposure"]
[null,null,null,"BSCR Rating 0 (Domestic Affiliates)",null,null,{"$f":"SUMPRODUCT(G$14:G$53,($E$14:$E$53=D87)*1)+G57","v":0},null,{"$f":"SUMPRODUCT(I$14:I$53,($E$14:$E$53=D87)*1)+I57","v":0},null,{"$f":"SUMPRODUCT(K$14:K$53,($E$14:$E$53=D87)*1)+K57","v":0},null,{"$f":"SUMPRODUCT(M$14:M$53,($E$14:$E$53=D87)*1)+M57","v":0},null,{"$f":"SUMPRODUCT(O$14:O$53,($E$14:$E$53=D87)*1)+O57","v":0}]
[null,null,null,"BSCR Rating 1",null,null,0,null,0,null,0,null,0,null,0]
[null,null,null,"BSCR Rating 2",null,null,0,null,0,null,0,null,0,null,0]
[null,null,null,"BSCR Rating 3",null,null,0,null,0,null,0,null,0,null,0]
[null,null,null,"BSCR Rating 4",null,null,0,null,0,null,0,null,0,null,0]
[null,null,null,"BSCR Rating 5",null,null,0,null,0,null,0,null,0,null,0]
[null,null,null,"BSCR Rating 6",null,null,0,null,0,null,0,null,0,null,0]
[null,null,null,"BSCR Rating 7",null,null,0,null,0,null,0,null,0,null,0]
[null,null,null,"BSCR Rating 8",null,null,{"$f":"SUMPRODUCT(G$14:G$53,($E$14:$E$53=D95)*1)+G65+G68","v":0},null,{"$f":"SUMPRODUCT(I$14:I$53,($E$14:$E$53=D95)*1)+I65+I68","v":0},null,{"$f":"SUMPRODUCT(K$14:K$53,($E$14:$E$53=D95)*1)+K65+K68","v":0},null,{"$f":"SUMPRODUCT(M$14:M$53,($E$14:$E$53=D95)*1)+M65+M68","v":0},null,{"$f":"SUMPRODUCT(O$14:O$53,($E$14:$E$53=D95)*1)+O65+O68","v":0}]
[null,null,null,"Total",null,null,{"$f":"SUM(G87:G95)","v":0},null,{"$f":"SUM(I87:I95)","v":0},null,{"$f":"SUM(K87:K95)","v":0},null,{"$f":"SUM(M87:M95)","v":0},null,{"$f":"SUM(O87:O95)","v":0}]
[]
[]
[null,null,null,"Diversification Adjustment Calculation On a Net Qualifying Exposure Basis"]
[]
[null,null,null,"Maximum Net Qualifying Exposure Balance On a Single Reinsurer Basis",null,null,null,null,null,null,null,null,null,null,{"$f":"MAX(O14:O53)","v":0}]
[null,null,null,"Total Net Qualifying Exposure",null,null,null,null,null,null,null,null,null,null,{"$f":"O82","v":0}]
[null,null,null,"Percentage",null,null,null,null,null,null,null,null,null,null,{"$f":"IF(O102=0,0,O101/O102)","v":0}]
[null,null,null,"Diversification Adjustment up to 40%",null,null,null,null,null,null,null,null,null,null,{"$f":"IF(O101=0,0,(1-O103)*40%)","v":0}]

{"sheet":"Schedule XIX","index":63,"n_rows":100,"n_cols":18,"rows_kept":100,"cut":false,"hidden":false,"merged":[[79,2,80,7],[0,2,0,4],[7,2,7,7],[56,2,56,3],[57,2,57,3],[58,2,58,3],[59,2,59,3],[60,2,60,3],[61,2,61,3],[62,2,62,3],[63,2,63,3],[64,2,64,3],[1,5,6,6],[87,2,87,3],[88,2,88,3],[89,2,89,3],[90,2,90,3],[82,2,82,3],[83,2,83,3],[84,2,84,3],[85,2,85,3],[86,2,86,3]]}
[null,null,"SCHEDULE OF RISK MANAGEMENT -  CASH AND CASH EQUIVALENTS COUNTERPARTY ANALYSIS",null,null,null,null,{"$f":"HYPERLINK(\"#'Index'!A1\",\"Return to Index\")","v":"Return to Index"}]
[null,null,{"$f":"+'Insurer Information'!C7","v":"Enter Company Name"},null,null,"Note if an insurer does not have any entities to consolidate, enter EBS Valuation information only (This cell is editable for deletion)"]
[null,null,{"$f":"+'Insurer Information'!C3","v":"2019-12-31"},null,null,null,null,null,null,null,{"$f":"IF(C3=\"\",\"\",TEXT(DATE(YEAR(C3+1)-1,MONTH(C3+1),DAY(C3+1)),\"mm/dd/yyyy\"))","v":"01/01/2019"}]
[null,null,{"$f":"+'Form 4EBS'!B4","v":"Expressed in  ['000s]"},null,null,null,null,"SCHEDULE XIX",null,null,{"$f":"IF(C3=\"\",\"\",TEXT(C3,\"mm/dd/yyyy\"))","v":"12/31/2019"}]
[]
[null,null,"Cash and cash equivalent countparty balances",null,null,null,null,null,null,null,null,null,null,{"$f":"YEAR('Insurer Information'!C3)","v":2019}]
[]
[null,null,"Enter at Least the 10 Largest Balances for Cash and Cash Equivalents with the Remaining Balances Grouped According to BSCR Ratings and/or a Single Consolidated Cash Balance"]
[]
[null,null,"Enter Number of Balances",{"$f":"Import!E6077","v":0},null,"Unconsolidated SFS",null,"EBS Valuation"]
[]
[null,null,"Cash and Cash Equivalent Counterparty Balance",null,null,"(A)",null,"(B)",null,null,"brrt_ExposureByReinsurer"]
[null,null,"Name of Cash and Cash Equivalent Counterparty Balance","BSCR Rating",null,"Cash and Cash Equivalent Balance\n(Form 1SFS, Line 1 & Schedule IIA Line 27)",null,"Cash and Cash Equivalent Balance\n(Form 4EBS, Line 1 & Schedule IIA Line 27)",null,null,"brrt_ParticularsOfCededReinsuranceNameOfReinsurer","brrt_ParticularsOfCededReinsuranceBSCRRating","brrt_ParticularsOfCededReinsuranceReinsuranceRecoverable","brrt_ParticularsOfCededReinsuranceReinsurancePayable","brrt_ParticularsOfCededReinsuranceCollateral","brrt_ParticularsOfCededReinsuranceQualifyingCollateral","brrt_ParticularsOfCededReinsuranceNetQualifyingExposure"]
[null,1,{"$f":"Import!E6078","v":0},{"$f":"Import!E6098","v":"Select"},null,{"$f":"Import!E6118","v":0},null,{"$f":"Import!M6118","v":0},null,null,null,null,null,null,null,null,null,{"$f":"IF(OR(C14<>\"\",D14<>\"\",#REF!<>\"\",#REF!<>\"\",#REF!<>\"\"),XBRLMapTuple($K$12,K$3,K$4,\"BMA\",CONFIGURATION!$B$1,\"bscr\",\"\",CONFIGURATION!$B$12,$K$13,C14,$L$13,D14,$M$13,#REF!,$N$13,#REF!,$O$13,#REF!,$P$13,#REF!,$Q$13,H14),\"emptyTuple\")","v":{"$error":"#REF!"}}]
[null,2,{"$f":"Import!E6079","v":0},{"$f":"Import!E6099","v":"Select"},null,{"$f":"Import!E6119","v":0},null,{"$f":"Import!M6119","v":0},null,null,null,null,null,null,null,null,null,{"$f":"IF(OR(C15<>\"\",D15<>\"\",#REF!<>\"\",#REF!<>\"\",#REF!<>\"\"),XBRLMapTuple($K$12,K$3,K$4,\"BMA\",CONFIGURATION!$B$1,\"bscr\",\"\",CONFIGURATION!$B$12,$K$13,C15,$L$13,D15,$M$13,#REF!,$N$13,#REF!,$O$13,#REF!,$P$13,#REF!,$Q$13,H15),\"emptyTuple\")","v":{"$error":"#REF!"}}]
[null,3,{"$f":"Import!E6080","v":0},{"$f":"Import!E6100","v":"Select"},null,{"$f":"Import!E6120","v":0},null,{"$f":"Import!M6120","v":0},null,null,null,null,null,null,null,null,null,{"$f":"IF(OR(C16<>\"\",D16<>\"\",#REF!<>\"\",#REF!<>\"\",#REF!<>\"\"),XBRLMapTuple($K$12,K$3,K$4,\"BMA\",CONFIGURATION!$B$1,\"bscr\",\"\",CONFIGURATION!$B$12,$K$13,C16,$L$13,D16,$M$13,#REF!,$N$13,#REF!,$O$13,#REF!,$P$13,#REF!,$Q$13,H16),\"emptyTuple\")","v":{"$error":"#REF!"}}]
[null,4,{"$f":"Import!E6081","v":0},{"$f":"Import!E6101","v":"Select"},null,{"$f":"Import!E6121","v":0},null,{"$f":"Import!M6121","v":0},null,null,null,null,null,null,null,null,null,{"$f":"IF(OR(C17<>\"\",D17<>\"\",#REF!<>\"\",#REF!<>\"\",#REF!<>\"\"),XBRLMapTuple($K$12,K$3,K$4,\"BMA\",CONFIGURATION!$B$1,\"bscr\",\"\",CONFIGURATION!$B$12,$K$13,C17,$L$13,D17,$M$13,#REF!,$N$13,#REF!,$O$13,#REF!,$P$13,#REF!,$Q$13,H17),\"emptyTuple\")","v":{"$error":"#REF!"}}]
[null,5,{"$f":"Import!E6082","v":0},{"$f":"Import!E6102","v":"Select"},null,{"$f":"Import!E6122","v":0},null,{"$f":"Import!M6122","v":0},null,null,null,null,null,null,null,null,null,{"$f":"IF(OR(C18<>\"\",D18<>\"\",#REF!<>\"\",#REF!<>\"\",#REF!<>\"\"),XBRLMapTuple($K$12,K$3,K$4,\"BMA\",CONFIGURATION!$B$1,\"bscr\",\"\",CONFIGURATION!$B$12,$K$13,C18,$L$13,D18,$M$13,#REF!,$N$13,#REF!,$O$13,#REF!,$P$13,#REF!,$Q$13,H18),\"emptyTuple\")","v":{"$error":"#REF!"}}]
[null,6,{"$f":"Import!E6083","v":0},{"$f":"Import!E6103","v":"Select"},null,{"$f":"Import!E6123","v":0},null,{"$f":"Import!M6123","v":0},null,null,null,null,null,null,null,null,null,{"$f":"IF(OR(C19<>\"\",D19<>\"\",#REF!<>\"\",#REF!<>\"\",#REF!<>\"\"),XBRLMapTuple($K$12,K$3,K$4,\"BMA\",CONFIGURATION!$B$1,\"bscr\",\"\",CONFIGURATION!$B$12,$K$13,C19,$L$13,D19,$M$13,#REF!,$N$13,#REF!,$O$13,#REF!,$P$13,#REF!,$Q$13,H19),\"emptyTuple\")","v":{"$error":"#REF!"}}]
[null,7,{"$f":"Import!E6084","v":0},{"$f":"Import!E6104","v":"Select"},null,{"$f":"Import!E6124","v":0},null,{"$f":"Import!M6124","v":0},null,null,null,null,null,null,null,null,null,{"$f":"IF(OR(C20<>\"\",D20<>\"\",#REF!<>\"\",#REF!<>\"\",#REF!<>\"\"),XBRLMapTuple($K$12,K$3,K$4,\"BMA\",CONFIGURATION!$B$1,\"bscr\",\"\",CONFIGURATION!$B$12,$K$13,C20,$L$13,D20,$M$13,#REF!,$N$13,#REF!,$O$13,#REF!,$P$13,#REF!,$Q$13,H20),\"emptyTuple\")","v":{"$error":"#REF!"}}]
[null,8,{"$f":"Import!E6085","v":0},{"$f":"Import!E6105","v":"Select"},null,{"$f":"Import!E6125","v":0},null,{"$f":"Import!M6125","v":0},null,null,null,null,null,null,null,null,null,{"$f":"IF(OR(C21<>\"\",D21<>\"\",#REF!<>\"\",#REF!<>\"\",#REF!<>\"\"),XBRLMapTuple($K$12,K$3,K$4,\"BMA\",CONFIGURATION!$B$1,\"bscr\",\"\",CONFIGURATION!$B$12,$K$13,C21,$L$13,D21,$M$13,#REF!,$N$13,#REF!,$O$13,#REF!,$P$13,#REF!,$Q$13,H21),\"emptyTuple\")","v":{"$error":"#REF!"}}]
[null,9,{"$f":"Import!E6086","v":0},{"$f":"Import!E6106","v":"Select"},null,{"$f":"Import!E6126","v":0},null,{"$f":"Import!M6126","v":0},null,null,null,null,null,null,null,null,null,{"$f":"IF(OR(C22<>\"\",D22<>\"\",#REF!<>\"\",#REF!<>\"\",#REF!<>\"\"),XBRLMapTuple($K$12,K$3,K$4,\"BMA\",CONFIGURATION!$B$1,\"bscr\",\"\",CONFIGURATION!$B$12,$K$13,C22,$L$13,D22,$M$13,#REF!,$N$13,#REF!,$O$13,#REF!,$P$13,#REF!,$Q$13,H22),\"emptyTuple\")","v":{"$error":"#REF!"}}]
[null,10,{"$f":"Import!E6087","v":0},{"$f":"Import!E6107","v":"Select"},null,{"$f":"Import!E6127","v":0},null,{"$f":"Import!M6127","v":0},null,null,null,null,null,null,null,null,null,{"$f":"IF(OR(C23<>\"\",D23<>\"\",#REF!<>\"\",#REF!<>\"\",#REF!<>\"\"),XBRLMapTuple($K$12,K$3,K$4,\"BMA\",CONFIGURATION!$B$1,\"bscr\",\"\",CONFIGURATION!$B$12,$K$13,C23,$L$13,D23,$M$13,#REF!,$N$13,#REF!,$O$13,#REF!,$P$13,#REF!,$Q$13,H23),\"emptyTuple\")","v":{"$error":"#REF!"}}]
[null,11,{"$f":"Import!E6088","v":0},{"$f":"Import!E6108","v":"Select"},null,{"$f":"Import!E6128","v":0},null,{"$f":"Import!M6128","v":0},null,null,null,null,null,null,null,null,null,{"$f":"IF(OR(C24<>\"\",D24<>\"\",#REF!<>\"\",#REF!<>\"\",#REF!<>\"\"),XBRLMapTuple($K$12,K$3,K$4,\"BMA\",CONFIGURATION!$B$1,\"bscr\",\"\",CONFIGURATION!$B$12,$K$13,C24,$L$13,D24,$M$13,#REF!,$N$13,#REF!,$O$13,#REF!,$P$13,#REF!,$Q$13,H24),\"emptyTuple\")","v":{"$error":"#REF!"}}]
[null,12,{"$f":"Import!E6089","v":0},{"$f":"Import!E6109","v":"Select"},null,{"$f":"Import!E6129","v":0},null,{"$f":"Import!M6129","v":0},null,null,null,null,null,null,null,null,null,{"$f":"IF(OR(C25<>\"\",D25<>\"\",#REF!<>\"\",#REF!<>\"\",#REF!<>\"\"),XBRLMapTuple($K$12,K$3,K$4,\"BMA\",CONFIGURATION!$B$1,\"bscr\",\"\",CONFIGURATION!$B$12,$K$13,C25,$L$13,D25,$M$13,#REF!,$N$13,#REF!,$O$13,#REF!,$P$13,#REF!,$Q$13,H25),\"emptyTuple\")","v":{"$error":"#REF!"}}]
[null,13,{"$f":"Import!E6090","v":0},{"$f":"Import!E6110","v":"Select"},null,{"$f":"Import!E6130","v":0},null,{"$f":"Import!M6130","v":0},null,null,null,null,null,null,null,null,null,{"$f":"IF(OR(C26<>\"\",D26<>\"\",#REF!<>\"\",#REF!<>\"\",#REF!<>\"\"),XBRLMapTuple($K$12,K$3,K$4,\"BMA\",CONFIGURATION!$B$1,\"bscr\",\"\",CONFIGURATION!$B$12,$K$13,C26,$L$13,D26,$M$13,#REF!,$N$13,#REF!,$O$13,#REF!,$P$13,#REF!,$Q$13,H26),\"emptyTuple\")","v":{"$error":"#REF!"}}]
[null,14,{"$f":"Import!E6091","v":0},{"$f":"Import!E6111","v":"Select"},null,{"$f":"Import!E6131","v":0},null,{"$f":"Import!M6131","v":0},null,null,null,null,null,null,null,null,null,{"$f":"IF(OR(C27<>\"\",D27<>\"\",#REF!<>\"\",#REF!<>\"\",#REF!<>\"\"),XBRLMapTuple($K$12,K$3,K$4,\"BMA\",CONFIGURATION!$B$1,\"bscr\",\"\",CONFIGURATION!$B$12,$K$13,C27,$L$13,D27,$M$13,#REF!,$N$13,#REF!,$O$13,#REF!,$P$13,#REF!,$Q$13,H27),\"emptyTuple\")","v":{"$error":"#REF!"}}]
[null,15,{"$f":"Import!E6092","v":0},{"$f":"Import!E6112","v":"Select"},null,{"$f":"Import!E6132","v":0},null,{"$f":"Import!M6132","v":0},null,null,null,null,null,null,null,null,null,{"$f":"IF(OR(C28<>\"\",D28<>\"\",#REF!<>\"\",#REF!<>\"\",#REF!<>\"\"),XBRLMapTuple($K$12,K$3,K$4,\"BMA\",CONFIGURATION!$B$1,\"bscr\",\"\",CONFIGURATION!$B$12,$K$13,C28,$L$13,D28,$M$13,#REF!,$N$13,#REF!,$O$13,#REF!,$P$13,#REF!,$Q$13,H28),\"emptyTuple\")","v":{"$error":"#REF!"}}]
[null,16,{"$f":"Import!E6093","v":0},{"$f":"Import!E6113","v":"Select"},null,{"$f":"Import!E6133","v":0},null,{"$f":"Import!M6133","v":0},null,null,null,null,null,null,null,null,null,{"$f":"IF(OR(C29<>\"\",D29<>\"\",#REF!<>\"\",#REF!<>\"\",#REF!<>\"\"),XBRLMapTuple($K$12,K$3,K$4,\"BMA\",CONFIGURATION!$B$1,\"bscr\",\"\",CONFIGURATION!$B$12,$K$13,C29,$L$13,D29,$M$13,#REF!,$N$13,#REF!,$O$13,#REF!,$P$13,#REF!,$Q$13,H29),\"emptyTuple\")","v":{"$error":"#REF!"}}]
[null,17,{"$f":"Import!E6094","v":0},{"$f":"Import!E6114","v":"Select"},null,{"$f":"Import!E6134","v":0},null,{"$f":"Import!M6134","v":0},null,null,null,null,null,null,null,null,null,{"$f":"IF(OR(C30<>\"\",D30<>\"\",#REF!<>\"\",#REF!<>\"\",#REF!<>\"\"),XBRLMapTuple($K$12,K$3,K$4,\"BMA\",CONFIGURATION!$B$1,\"bscr\",\"\",CONFIGURATION!$B$12,$K$13,C30,$L$13,D30,$M$13,#REF!,$N$13,#REF!,$O$13,#REF!,$P$13,#REF!,$Q$13,H30),\"emptyTuple\")","v":{"$error":"#REF!"}}]
[null,18,{"$f":"Import!E6095","v":0},{"$f":"Import!E6115","v":"Select"},null,{"$f":"Import!E6135","v":0},null,{"$f":"Import!M6135","v":0},null,null,null,null,null,null,null,null,null,{"$f":"IF(OR(C31<>\"\",D31<>\"\",#REF!<>\"\",#REF!<>\"\",#REF!<>\"\"),XBRLMapTuple($K$12,K$3,K$4,\"BMA\",CONFIGURATION!$B$1,\"bscr\",\"\",CONFIGURATION!$B$12,$K$13,C31,$L$13,D31,$M$13,#REF!,$N$13,#REF!,$O$13,#REF!,$P$13,#REF!,$Q$13,H31),\"emptyTuple\")","v":{"$error":"#REF!"}}]
[null,19,{"$f":"Import!E6096","v":0},{"$f":"Import!E6116","v":"Select"},null,{"$f":"Import!E6136","v":0},null,{"$f":"Import!M6136","v":0},null,null,null,null,null,null,null,null,null,{"$f":"IF(OR(C32<>\"\",D32<>\"\",#REF!<>\"\",#REF!<>\"\",#REF!<>\"\"),XBRLMapTuple($K$12,K$3,K$4,\"BMA\",CONFIGURATION!$B$1,\"bscr\",\"\",CONFIGURATION!$B$12,$K$13,C32,$L$13,D32,$M$13,#REF!,$N$13,#REF!,$O$13,#REF!,$P$13,#REF!,$Q$13,H32),\"emptyTuple\")","v":{"$error":"#REF!"}}]
[null,20,{"$f":"Import!E6097","v":0},{"$f":"Import!E6117","v":"Select"},null,{"$f":"Import!E6137","v":0},null,{"$f":"Import!M6137","v":0},null,null,null,null,null,null,null,null,null,{"$f":"IF(OR(C33<>\"\",D33<>\"\",#REF!<>\"\",#REF!<>\"\",#REF!<>\"\"),XBRLMapTuple($K$12,K$3,K$4,\"BMA\",CONFIGURATION!$B$1,\"bscr\",\"\",CONFIGURATION!$B$12,$K$13,C33,$L$13,D33,$M$13,#REF!,$N$13,#REF!,$O$13,#REF!,$P$13,#REF!,$Q$13,H33),\"emptyTuple\")","v":{"$error":"#REF!"}}]
[null,21,null,null,null,null,null,null,null,null,null,null,null,null,null,null,null,{"$f":"IF(OR(C34<>\"\",D34<>\"\",#REF!<>\"\",#REF!<>\"\",#REF!<>\"\"),XBRLMapTuple($K$12,K$3,K$4,\"BMA\",CONFIGURATION!$B$1,\"bscr\",\"\",CONFIGURATION!$B$12,$K$13,C34,$L$13,D34,$M$13,#REF!,$N$13,#REF!,$O$13,#REF!,$P$13,#REF!,$Q$13,H34),\"emptyTuple\")","v":{"$error":"#REF!"}}]
[null,22,null,null,null,null,null,null,null,null,null,null,null,null,null,null,null,{"$f":"IF(OR(C35<>\"\",D35<>\"\",#REF!<>\"\",#REF!<>\"\",#REF!<>\"\"),XBRLMapTuple($K$12,K$3,K$4,\"BMA\",CONFIGURATION!$B$1,\"bscr\",\"\",CONFIGURATION!$B$12,$K$13,C35,$L$13,D35,$M$13,#REF!,$N$13,#REF!,$O$13,#REF!,$P$13,#REF!,$Q$13,H35),\"emptyTuple\")","v":{"$error":"#REF!"}}]
[null,23,null,null,null,null,null,null,null,null,null,null,null,null,null,null,null,{"$f":"IF(OR(C36<>\"\",D36<>\"\",#REF!<>\"\",#REF!<>\"\",#REF!<>\"\"),XBRLMapTuple($K$12,K$3,K$4,\"BMA\",CONFIGURATION!$B$1,\"bscr\",\"\",CONFIGURATION!$B$12,$K$13,C36,$L$13,D36,$M$13,#REF!,$N$13,#REF!,$O$13,#REF!,$P$13,#REF!,$Q$13,H36),\"emptyTuple\")","v":{"$error":"#REF!"}}]
[null,24,null,null,null,null,null,null,null,null,null,null,null,null,null,null,null,{"$f":"IF(OR(C37<>\"\",D37<>\"\",#REF!<>\"\",#REF!<>\"\",#REF!<>\"\"),XBRLMapTuple($K$12,K$3,K$4,\"BMA\",CONFIGURATION!$B$1,\"bscr\",\"\",CONFIGURATION!$B$12,$K$13,C37,$L$13,D37,$M$13,#REF!,$N$13,#REF!,$O$13,#REF!,$P$13,#REF!,$Q$13,H37),\"emptyTuple\")","v":{"$error":"#REF!"}}]
[null,25,null,null,null,null,null,null,null,null,null,null,null,null,null,null,null,{"$f":"IF(OR(C38<>\"\",D38<>\"\",#REF!<>\"\",#REF!<>\"\",#REF!<>\"\"),XBRLMapTuple($K$12,K$3,K$4,\"BMA\",CONFIGURATION!$B$1,\"bscr\",\"\",CONFIGURATION!$B$12,$K$13,C38,$L$13,D38,$M$13,#REF!,$N$13,#REF!,$O$13,#REF!,$P$13,#REF!,$Q$13,H38),\"emptyTuple\")","v":{"$error":"#REF!"}}]
[null,26,null,null,null,null,null,null,null,null,null,null,null,null,null,null,null,{"$f":"IF(OR(C39<>\"\",D39<>\"\",#REF!<>\"\",#REF!<>\"\",#REF!<>\"\"),XBRLMapTuple($K$12,K$3,K$4,\"BMA\",CONFIGURATION!$B$1,\"bscr\",\"\",CONFIGURATION!$B$12,$K$13,C39,$L$13,D39,$M$13,#REF!,$N$13,#REF!,$O$13,#REF!,$P$13,#REF!,$Q$13,H39),\"emptyTuple\")","v":{"$error":"#REF!"}}]
[null,27,null,null,null,null,null,null,null,null,null,null,null,null,null,null,null,{"$f":"IF(OR(C40<>\"\",D40<>\"\",#REF!<>\"\",#REF!<>\"\",#REF!<>\"\"),XBRLMapTuple($K$12,K$3,K$4,\"BMA\",CONFIGURATION!$B$1,\"bscr\",\"\",CONFIGURATION!$B$12,$K$13,C40,$L$13,D40,$M$13,#REF!,$N$13,#REF!,$O$13,#REF!,$P$13,#REF!,$Q$13,H40),\"emptyTuple\")","v":{"$error":"#REF!"}}]
[null,28,null,null,null,null,null,null,null,null,null,null,null,null,null,null,null,{"$f":"IF(OR(C41<>\"\",D41<>\"\",#REF!<>\"\",#REF!<>\"\",#REF!<>\"\"),XBRLMapTuple($K$12,K$3,K$4,\"BMA\",CONFIGURATION!$B$1,\"bscr\",\"\",CONFIGURATION!$B$12,$K$13,C41,$L$13,D41,$M$13,#REF!,$N$13,#REF!,$O$13,#REF!,$P$13,#REF!,$Q$13,H41),\"emptyTuple\")","v":{"$error":"#REF!"}}]
[null,29,null,null,null,null,null,null,null,null,null,null,null,null,null,null,null,{"$f":"IF(OR(C42<>\"\",D42<>\"\",#REF!<>\"\",#REF!<>\"\",#REF!<>\"\"),XBRLMapTuple($K$12,K$3,K$4,\"BMA\",CONFIGURATION!$B$1,\"bscr\",\"\",CONFIGURATION!$B$12,$K$13,C42,$L$13,D42,$M$13,#REF!,$N$13,#REF!,$O$13,#REF!,$P$13,#REF!,$Q$13,H42),\"emptyTuple\")","v":{"$error":"#REF!"}}]
[null,30,null,null,null,null,null,null,null,null,null,null,null,null,null,null,null,{"$f":"IF(OR(C43<>\"\",D43<>\"\",#REF!<>\"\",#REF!<>\"\",#REF!<>\"\"),XBRLMapTuple($K$12,K$3,K$4,\"BMA\",CONFIGURATION!$B$1,\"bscr\",\"\",CONFIGURATION!$B$12,$K$13,C43,$L$13,D43,$M$13,#REF!,$N$13,#REF!,$O$13,#REF!,$P$13,#REF!,$Q$13,H43),\"emptyTuple\")","v":{"$error":"#REF!"}}]
[null,31,null,null,null,null,null,null,null,null,null,null,null,null,null,null,null,{"$f":"IF(OR(C44<>\"\",D44<>\"\",#REF!<>\"\",#REF!<>\"\",#REF!<>\"\"),XBRLMapTuple($K$12,K$3,K$4,\"BMA\",CONFIGURATION!$B$1,\"bscr\",\"\",CONFIGURATION!$B$12,$K$13,C44,$L$13,D44,$M$13,#REF!,$N$13,#REF!,$O$13,#REF!,$P$13,#REF!,$Q$13,H44),\"emptyTuple\")","v":{"$error":"#REF!"}}]
[null,32,null,null,null,null,null,null,null,null,null,null,null,null,null,null,null,{"$f":"IF(OR(C45<>\"\",D45<>\"\",#REF!<>\"\",#REF!<>\"\",#REF!<>\"\"),XBRLMapTuple($K$12,K$3,K$4,\"BMA\",CONFIGURATION!$B$1,\"bscr\",\"\",CONFIGURATION!$B$12,$K$13,C45,$L$13,D45,$M$13,#REF!,$N$13,#REF!,$O$13,#REF!,$P$13,#REF!,$Q$13,H45),\"emptyTuple\")","v":{"$error":"#REF!"}}]
[null,33,null,null,null,null,null,null,null,null,null,null,null,null,null,null,null,{"$f":"IF(OR(C46<>\"\",D46<>\"\",#REF!<>\"\",#REF!<>\"\",#REF!<>\"\"),XBRLMapTuple($K$12,K$3,K$4,\"BMA\",CONFIGURATION!$B$1,\"bscr\",\"\",CONFIGURATION!$B$12,$K$13,C46,$L$13,D46,$M$13,#REF!,$N$13,#REF!,$O$13,#REF!,$P$13,#REF!,$Q$13,H46),\"emptyTuple\")","v":{"$error":"#REF!"}}]
[null,34,null,null,null,null,null,null,null,null,null,null,null,null,null,null,null,{"$f":"IF(OR(C47<>\"\",D47<>\"\",#REF!<>\"\",#REF!<>\"\",#REF!<>\"\"),XBRLMapTuple($K$12,K$3,K$4,\"BMA\",CONFIGURATION!$B$1,\"bscr\",\"\",CONFIGURATION!$B$12,$K$13,C47,$L$13,D47,$M$13,#REF!,$N$13,#REF!,$O$13,#REF!,$P$13,#REF!,$Q$13,H47),\"emptyTuple\")","v":{"$error":"#REF!"}}]
[null,35,null,null,null,null,null,null,null,null,null,null,null,null,null,null,null,{"$f":"IF(OR(C48<>\"\",D48<>\"\",#REF!<>\"\",#REF!<>\"\",#REF!<>\"\"),XBRLMapTuple($K$12,K$3,K$4,\"BMA\",CONFIGURATION!$B$1,\"bscr\",\"\",CONFIGURATION!$B$12,$K$13,C48,$L$13,D48,$M$13,#REF!,$N$13,#REF!,$O$13,#REF!,$P$13,#REF!,$Q$13,H48),\"emptyTuple\")","v":{"$error":"#REF!"}}]
[null,36,null,null,null,null,null,null,null,null,null,null,null,null,null,null,null,{"$f":"IF(OR(C49<>\"\",D49<>\"\",#REF!<>\"\",#REF!<>\"\",#REF!<>\"\"),XBRLMapTuple($K$12,K$3,K$4,\"BMA\",CONFIGURATION!$B$1,\"bscr\",\"\",CONFIGURATION!$B$12,$K$13,C49,$L$13,D49,$M$13,#REF!,$N$13,#REF!,$O$13,#REF!,$P$13,#REF!,$Q$13,H49),\"emptyTuple\")","v":{"$error":"#REF!"}}]
[null,37,null,null,null,null,null,null,null,null,null,null,null,null,null,null,null,{"$f":"IF(OR(C50<>\"\",D50<>\"\",#REF!<>\"\",#REF!<>\"\",#REF!<>\"\"),XBRLMapTuple($K$12,K$3,K$4,\"BMA\",CONFIGURATION!$B$1,\"bscr\",\"\",CONFIGURATION!$B$12,$K$13,C50,$L$13,D50,$M$13,#REF!,$N$13,#REF!,$O$13,#REF!,$P$13,#REF!,$Q$13,H50),\"emptyTuple\")","v":{"$error":"#REF!"}}]
[null,38,null,null,null,null,null,null,null,null,null,null,null,null,null,null,null,{"$f":"IF(OR(C51<>\"\",D51<>\"\",#REF!<>\"\",#REF!<>\"\",#REF!<>\"\"),XBRLMapTuple($K$12,K$3,K$4,\"BMA\",CONFIGURATION!$B$1,\"bscr\",\"\",CONFIGURATION!$B$12,$K$13,C51,$L$13,D51,$M$13,#REF!,$N$13,#REF!,$O$13,#REF!,$P$13,#REF!,$Q$13,H51),\"emptyTuple\")","v":{"$error":"#REF!"}}]
[null,39,null,null,null,null,null,null,null,null,null,null,null,null,null,null,null,{"$f":"IF(OR(C52<>\"\",D52<>\"\",#REF!<>\"\",#REF!<>\"\",#REF!<>\"\"),XBRLMapTuple($K$12,K$3,K$4,\"BMA\",CONFIGURATION!$B$1,\"bscr\",\"\",CONFIGURATION!$B$12,$K$13,C52,$L$13,D52,$M$13,#REF!,$N$13,#REF!,$O$13,#REF!,$P$13,#REF!,$Q$13,H52),\"emptyTuple\")","v":{"$error":"#REF!"}}]
[null,40,null,null,null,null,null,null,null,null,null,null,null,null,null,null,null,{"$f":"IF(OR(C53<>\"\",D53<>\"\",#REF!<>\"\",#REF!<>\"\",#REF!<>\"\"),XBRLMapTuple($K$12,K$3,K$4,\"BMA\",CONFIGURATION!$B$1,\"bscr\",\"\",CONFIGURATION!$B$12,$K$13,C53,$L$13,D53,$M$13,#REF!,$N$13,#REF!,$O$13,#REF!,$P$13,#REF!,$Q$13,H53),\"emptyTuple\")","v":{"$error":"#REF!"}}]
[null,null,"Total Cash and Cash Equivalent Counterparty Balance",null,null,{"$f":"SUM(F14:F53)","v":0},null,{"$f":"SUM(H14:H53)","v":0},null,null,null,null,{"$f":"XBRLMap(#REF!,M13,$K$3,$K$4,CONFIGURATION!$B$10,\"BMA\",CONFIGURATION!$B$1,\"bscr\",CONFIGURATION!$B$12)","v":{"$error":"#VALUE!"}},{"$f":"XBRLMap(#REF!,N13,$K$3,$K$4,CONFIGURATION!$B$10,\"BMA\",CONFIGURATION!$B$1,\"bscr\",CONFIGURATION!$B$12)","v":{"$error":"#VALUE!"}},{"$f":"XBRLMap(#REF!,O13,$K$3,$K$4,CONFIGURATION!$B$10,\"BMA\",CONFIGURATION!$B$1,\"bscr\",CONFIGURATION!$B$12)","v":{"$error":"#VALUE!"}},{"$f":"XBRLMap(#REF!,P13,$K$3,$K$4,CONFIGURATION!$B$10,\"BMA\",CONFIGURATION!$B$1,\"bscr\",CONFIGURATION!$B$12)","v":{"$error":"#VALUE!"}},{"$f":"XBRLMap(H54,Q13,$K$3,$K$4,CONFIGURATION!$B$10,\"BMA\",CONFIGURATION!$B$1,\"bscr\",CONFIGURATION!$B$12)","v":"Mapped"}]
[]
[null,null,"Exposure by BSCR Rating"]
[null,null,"BSCR Rating 0 (Domestic Affiliates)",null,null,{"$f":"Import!E6139","v":0},null,{"$f":"Import!M6139","v":0},null,"brrt_RiskGradeAxis_brrt_BSCRRating0Member",null,null,{"$f":"XBRLMap(#REF!,$M$13&\".\"&J57,$K$3,$K$4,CONFIGURATION!$B$10,\"BMA\",CONFIGURATION!$B$1,\"bscr\",CONFIGURATION!$B$12)","v":{"$error":"#VALUE!"}},{"$f":"XBRLMap(#REF!,$N$13&\".\"&J57,$K$3,$K$4,CONFIGURATION!$B$10,\"BMA\",CONFIGURATION!$B$1,\"bscr\",CONFIGURATION!$B$12)","v":{"$error":"#VALUE!"}},{"$f":"XBRLMap(#REF!,$O$13&\".\"&J57,$K$3,$K$4,CONFIGURATION!$B$10,\"BMA\",CONFIGURATION!$B$1,\"bscr\",CONFIGURATION!$B$12)","v":{"$error":"#VALUE!"}},{"$f":"XBRLMap(#REF!,$P$13&\".\"&J57,$K$3,$K$4,CONFIGURATION!$B$10,\"BMA\",CONFIGURATION!$B$1,\"bscr\",CONFIGURATION!$B$12)","v":{"$error":"#VALUE!"}},{"$f":"XBRLMap(H57,$Q$13&\".\"&J57,$K$3,$K$4,CONFIGURATION!$B$10,\"BMA\",CONFIGURATION!$B$1,\"bscr\",CONFIGURATION!$B$12)","v":"Mapped"}]
[null,null,"BSCR Rating 1",null,null,{"$f":"Import!E6140","v":0},null,{"$f":"Import!M6140","v":0},null,"brrt_RiskGradeAxis_brrt_BSCRRating1Member",null,null,{"$f":"XBRLMap(#REF!,$M$13&\".\"&J58,$K$3,$K$4,CONFIGURATION!$B$10,\"BMA\",CONFIGURATION!$B$1,\"bscr\",CONFIGURATION!$B$12)","v":{"$error":"#VALUE!"}},{"$f":"XBRLMap(#REF!,$N$13&\".\"&J58,$K$3,$K$4,CONFIGURATION!$B$10,\"BMA\",CONFIGURATION!$B$1,\"bscr\",CONFIGURATION!$B$12)","v":{"$error":"#VALUE!"}},{"$f":"XBRLMap(#REF!,$O$13&\".\"&J58,$K$3,$K$4,CONFIGURATION!$B$10,\"BMA\",CONFIGURATION!$B$1,\"bscr\",CONFIGURATION!$B$12)","v":{"$error":"#VALUE!"}},{"$f":"XBRLMap(#REF!,$P$13&\".\"&J58,$K$3,$K$4,CONFIGURATION!$B$10,\"BMA\",CONFIGURATION!$B$1,\"bscr\",CONFIGURATION!$B$12)","v":{"$error":"#VALUE!"}},{"$f":"XBRLMap(H58,$Q$13&\".\"&J58,$K$3,$K$4,CONFIGURATION!$B$10,\"BMA\",CONFIGURATION!$B$1,\"bscr\",CONFIGURATION!$B$12)","v":"Mapped"}]
[null,null,"BSCR Rating 2",null,null,{"$f":"Import!E6141","v":0},null,{"$f":"Import!M6141","v":0},null,"brrt_RiskGradeAxis_brrt_BSCRRating2Member",null,null,{"$f":"XBRLMap(#REF!,$M$13&\".\"&J59,$K$3,$K$4,CONFIGURATION!$B$10,\"BMA\",CONFIGURATION!$B$1,\"bscr\",CONFIGURATION!$B$12)","v":{"$error":"#VALUE!"}},{"$f":"XBRLMap(#REF!,$N$13&\".\"&J59,$K$3,$K$4,CONFIGURATION!$B$10,\"BMA\",CONFIGURATION!$B$1,\"bscr\",CONFIGURATION!$B$12)","v":{"$error":"#VALUE!"}},{"$f":"XBRLMap(#REF!,$O$13&\".\"&J59,$K$3,$K$4,CONFIGURATION!$B$10,\"BMA\",CONFIGURATION!$B$1,\"bscr\",CONFIGURATION!$B$12)","v":{"$error":"#VALUE!"}},{"$f":"XBRLMap(#REF!,$P$13&\".\"&J59,$K$3,$K$4,CONFIGURATION!$B$10,\"BMA\",CONFIGURATION!$B$1,\"bscr\",CONFIGURATION!$B$12)","v":{"$error":"#VALUE!"}},{"$f":"XBRLMap(H59,$Q$13&\".\"&J59,$K$3,$K$4,CONFIGURATION!$B$10,\"BMA\",CONFIGURATION!$B$1,\"bscr\",CONFIGURATION!$B$12)","v":"Mapped"}]
[null,null,"BSCR Rating 3",null,null,{"$f":"Import!E6142","v":0},null,{"$f":"Import!M6142","v":0},null,"brrt_RiskGradeAxis_brrt_BSCRRating3Member",null,null,{"$f":"XBRLMap(#REF!,$M$13&\".\"&J60,$K$3,$K$4,CONFIGURATION!$B$10,\"BMA\",CONFIGURATION!$B$1,\"bscr\",CONFIGURATION!$B$12)","v":{"$error":"#VALUE!"}},{"$f":"XBRLMap(#REF!,$N$13&\".\"&J60,$K$3,$K$4,CONFIGURATION!$B$10,\"BMA\",CONFIGURATION!$B$1,\"bscr\",CONFIGURATION!$B$12)","v":{"$error":"#VALUE!"}},{"$f":"XBRLMap(#REF!,$O$13&\".\"&J60,$K$3,$K$4,CONFIGURATION!$B$10,\"BMA\",CONFIGURATION!$B$1,\"bscr\",CONFIGURATION!$B$12)","v":{"$error":"#VALUE!"}},{"$f":"XBRLMap(#REF!,$P$13&\".\"&J60,$K$3,$K$4,CONFIGURATION!$B$10,\"BMA\",CONFIGURATION!$B$1,\"bscr\",CONFIGURATION!$B$12)","v":{"$error":"#VALUE!"}},{"$f":"XBRLMap(H60,$Q$13&\".\"&J60,$K$3,$K$4,CONFIGURATION!$B$10,\"BMA\",CONFIGURATION!$B$1,\"bscr\",CONFIGURATION!$B$12)","v":"Mapped"}]
[null,null,"BSCR Rating 4",null,null,{"$f":"Import!E6143","v":0},null,{"$f":"Import!M6143","v":0},null,"brrt_RiskGradeAxis_brrt_BSCRRating4Member",null,null,{"$f":"XBRLMap(#REF!,$M$13&\".\"&J61,$K$3,$K$4,CONFIGURATION!$B$10,\"BMA\",CONFIGURATION!$B$1,\"bscr\",CONFIGURATION!$B$12)","v":{"$error":"#VALUE!"}},{"$f":"XBRLMap(#REF!,$N$13&\".\"&J61,$K$3,$K$4,CONFIGURATION!$B$10,\"BMA\",CONFIGURATION!$B$1,\"bscr\",CONFIGURATION!$B$12)","v":{"$error":"#VALUE!"}},{"$f":"XBRLMap(#REF!,$O$13&\".\"&J61,$K$3,$K$4,CONFIGURATION!$B$10,\"BMA\",CONFIGURATION!$B$1,\"bscr\",CONFIGURATION!$B$12)","v":{"$error":"#VALUE!"}},{"$f":"XBRLMap(#REF!,$P$13&\".\"&J61,$K$3,$K$4,CONFIGURATION!$B$10,\"BMA\",CONFIGURATION!$B$1,\"bscr\",CONFIGURATION!$B$12)","v":{"$error":"#VALUE!"}},{"$f":"XBRLMap(H61,$Q$13&\".\"&J61,$K$3,$K$4,CONFIGURATION!$B$10,\"BMA\",CONFIGURATION!$B$1,\"bscr\",CONFIGURATION!$B$12)","v":"Mapped"}]
[null,null,"BSCR Rating 5",null,null,{"$f":"Import!E6144","v":0},null,{"$f":"Import!M6144","v":0},null,"brrt_RiskGradeAxis_brrt_BSCRRating5Member",null,null,{"$f":"XBRLMap(#REF!,$M$13&\".\"&J62,$K$3,$K$4,CONFIGURATION!$B$10,\"BMA\",CONFIGURATION!$B$1,\"bscr\",CONFIGURATION!$B$12)","v":{"$error":"#VALUE!"}},{"$f":"XBRLMap(#REF!,$N$13&\".\"&J62,$K$3,$K$4,CONFIGURATION!$B$10,\"BMA\",CONFIGURATION!$B$1,\"bscr\",CONFIGURATION!$B$12)","v":{"$error":"#VALUE!"}},{"$f":"XBRLMap(#REF!,$O$13&\".\"&J62,$K$3,$K$4,CONFIGURATION!$B$10,\"BMA\",CONFIGURATION!$B$1,\"bscr\",CONFIGURATION!$B$12)","v":{"$error":"#VALUE!"}},{"$f":"XBRLMap(#REF!,$P$13&\".\"&J62,$K$3,$K$4,CONFIGURATION!$B$10,\"BMA\",CONFIGURATION!$B$1,\"bscr\",CONFIGURATION!$B$12)","v":{"$error":"#VALUE!"}},{"$f":"XBRLMap(H62,$Q$13&\".\"&J62,$K$3,$K$4,CONFIGURATION!$B$10,\"BMA\",CONFIGURATION!$B$1,\"bscr\",CONFIGURATION!$B$12)","v":"Mapped"}]
[null,null,"BSCR Rating 6",null,null,{"$f":"Import!E6145","v":0},null,{"$f":"Import!M6145","v":0},null,"brrt_RiskGradeAxis_brrt_BSCRRating6Member",null,null,{"$f":"XBRLMap(#REF!,$M$13&\".\"&J63,$K$3,$K$4,CONFIGURATION!$B$10,\"BMA\",CONFIGURATION!$B$1,\"bscr\",CONFIGURATION!$B$12)","v":{"$error":"#VALUE!"}},{"$f":"XBRLMap(#REF!,$N$13&\".\"&J63,$K$3,$K$4,CONFIGURATION!$B$10,\"BMA\",CONFIGURATION!$B$1,\"bscr\",CONFIGURATION!$B$12)","v":{"$error":"#VALUE!"}},{"$f":"XBRLMap(#REF!,$O$13&\".\"&J63,$K$3,$K$4,CONFIGURATION!$B$10,\"BMA\",CONFIGURATION!$B$1,\"bscr\",CONFIGURATION!$B$12)","v":{"$error":"#VALUE!"}},{"$f":"XBRLMap(#REF!,$P$13&\".\"&J63,$K$3,$K$4,CONFIGURATION!$B$10,\"BMA\",CONFIGURATION!$B$1,\"bscr\",CONFIGURATION!$B$12)","v":{"$error":"#VALUE!"}},{"$f":"XBRLMap(H63,$Q$13&\".\"&J63,$K$3,$K$4,CONFIGURATION!$B$10,\"BMA\",CONFIGURATION!$B$1,\"bscr\",CONFIGURATION!$B$12)","v":"Mapped"}]
[null,null,"BSCR Rating 7",null,null,{"$f":"Import!E6146","v":0},null,{"$f":"Import!M6146","v":0},null,"brrt_RiskGradeAxis_brrt_BSCRRating7Member",null,null,{"$f":"XBRLMap(#REF!,$M$13&\".\"&J64,$K$3,$K$4,CONFIGURATION!$B$10,\"BMA\",CONFIGURATION!$B$1,\"bscr\",CONFIGURATION!$B$12)","v":{"$error":"#VALUE!"}},{"$f":"XBRLMap(#REF!,$N$13&\".\"&J64,$K$3,$K$4,CONFIGURATION!$B$10,\"BMA\",CONFIGURATION!$B$1,\"bscr\",CONFIGURATION!$B$12)","v":{"$error":"#VALUE!"}},{"$f":"XBRLMap(#REF!,$O$13&\".\"&J64,$K$3,$K$4,CONFIGURATION!$B$10,\"BMA\",CONFIGURATION!$B$1,\"bscr\",CONFIGURATION!$B$12)","v":{"$error":"#VALUE!"}},{"$f":"XBRLMap(#REF!,$P$13&\".\"&J64,$K$3,$K$4,CONFIGURATION!$B$10,\"BMA\",CONFIGURATION!$B$1,\"bscr\",CONFIGURATION!$B$12)","v":{"$error":"#VALUE!"}},{"$f":"XBRLMap(H64,$Q$13&\".\"&J64,$K$3,$K$4,CONFIGURATION!$B$10,\"BMA\",CONFIGURATION!$B$1,\"bscr\",CONFIGURATION!$B$12)","v":"Mapped"}]
[null,null,"BSCR Rating 8",null,null,{"$f":"Import!E6147","v":0},null,{"$f":"Import!M6147","v":0},null,"brrt_RiskGradeAxis_brrt_BSCRRating8Member",null,null,{"$f":"XBRLMap(#REF!,$M$13&\".\"&J65,$K$3,$K$4,CONFIGURATION!$B$10,\"BMA\",CONFIGURATION!$B$1,\"bscr\",CONFIGURATION!$B$12)","v":{"$error":"#VALUE!"}},{"$f":"XBRLMap(#REF!,$N$13&\".\"&J65,$K$3,$K$4,CONFIGURATION!$B$10,\"BMA\",CONFIGURATION!$B$1,\"bscr\",CONFIGURATION!$B$12)","v":{"$error":"#VALUE!"}},{"$f":"XBRLMap(#REF!,$O$13&\".\"&J65,$K$3,$K$4,CONFIGURATION!$B$10,\"BMA\",CONFIGURATION!$B$1,\"bscr\",CONFIGURATION!$B$12)","v":{"$error":"#VALUE!"}},{"$f":"XBRLMap(#REF!,$P$13&\".\"&J65,$K$3,$K$4,CONFIGURATION!$B$10,\"BMA\",CONFIGURATION!$B$1,\"bscr\",CONFIGURATION!$B$12)","v":{"$error":"#VALUE!"}},{"$f":"XBRLMap(H65,$Q$13&\".\"&J65,$K$3,$K$4,CONFIGURATION!$B$10,\"BMA\",CONFIGURATION!$B$1,\"bscr\",CONFIGURATION!$B$12)","v":"Mapped"}]
[null,null,"Total Exposure by BSCR Rating",null,null,{"$f":"SUM(F57:F65)","v":0},null,{"$f":"SUM(H57:H65)","v":0},null,"brrt_RiskGradeAxis_brrt_TotalMember",null,null,{"$f":"XBRLMap(#REF!,$M$13&\".\"&J66,$K$3,$K$4,CONFIGURATION!$B$10,\"BMA\",CONFIGURATION!$B$1,\"bscr\",CONFIGURATION!$B$12)","v":{"$error":"#VALUE!"}},{"$f":"XBRLMap(#REF!,$N$13&\".\"&J66,$K$3,$K$4,CONFIGURATION!$B$10,\"BMA\",CONFIGURATION!$B$1,\"bscr\",CONFIGURATION!$B$12)","v":{"$error":"#VALUE!"}},{"$f":"XBRLMap(#REF!,$O$13&\".\"&J66,$K$3,$K$4,CONFIGURATION!$B$10,\"BMA\",CONFIGURATION!$B$1,\"bscr\",CONFIGURATION!$B$12)","v":{"$error":"#VALUE!"}},{"$f":"XBRLMap(#REF!,$P$13&\".\"&J66,$K$3,$K$4,CONFIGURATION!$B$10,\"BMA\",CONFIGURATION!$B$1,\"bscr\",CONFIGURATION!$B$12)","v":{"$error":"#VALUE!"}},{"$f":"XBRLMap(H66,$Q$13&\".\"&J66,$K$3,$K$4,CONFIGURATION!$B$10,\"BMA\",CONFIGURATION!$B$1,\"bscr\",CONFIGURATION!$B$12)","v":"Mapped"}]
[null,null,null,null,null,null,null,null,null,null,null,null,"brrt_SingleConsolidatedExposureReinsuranceRecoverable","brrt_SingleConsolidatedExposureReinsurancePayable","brrt_SingleConsolidatedExposureReinsuranceCollateral","brrt_SingleConsolidatedExposureReinsuranceQualifyingCollateral","brrt_SingleConsolidatedExposureReinsuranceNetQualifyingExposure"]
[null,null,"Single Consolidated Exposure",null,null,{"$f":"'Form 1SFS'!H12+'Schedule IIA'!D68-F54-F66","v":0},null,{"$f":"'Form 4EBS'!F10+'Schedule IIA (EBS)'!D68-H54-H66","v":0},null,null,null,null,{"$f":"XBRLMap(#REF!,M67,$K$3,$K$4,CONFIGURATION!$B$10,\"BMA\",CONFIGURATION!$B$1,\"bscr\",CONFIGURATION!$B$12)","v":{"$error":"#VALUE!"}},{"$f":"XBRLMap(#REF!,N67,$K$3,$K$4,CONFIGURATION!$B$10,\"BMA\",CONFIGURATION!$B$1,\"bscr\",CONFIGURATION!$B$12)","v":{"$error":"#VALUE!"}},{"$f":"XBRLMap(#REF!,O67,$K$3,$K$4,CONFIGURATION!$B$10,\"BMA\",CONFIGURATION!$B$1,\"bscr\",CONFIGURATION!$B$12)","v":{"$error":"#VALUE!"}},{"$f":"XBRLMap(#REF!,P67,$K$3,$K$4,CONFIGURATION!$B$10,\"BMA\",CONFIGURATION!$B$1,\"bscr\",CONFIGURATION!$B$12)","v":{"$error":"#VALUE!"}},{"$f":"XBRLMap(H68,Q67,$K$3,$K$4,CONFIGURATION!$B$10,\"BMA\",CONFIGURATION!$B$1,\"bscr\",CONFIGURATION!$B$12)","v":"Mapped"}]
[]
[null,null,"Total Cash and Cash Equivalent Balance",null,null,{"$f":"F54+F66+F68","v":0},null,{"$f":"H54+H66+H68","v":0}]
[]
[null,null,"Cash and Cash Equivalent Check",null,null,{"$f":"'Form 1SFS'!H12+'Schedule IIA'!D68","v":0},null,{"$f":"'Form 4EBS'!F10+'Schedule IIA (EBS)'!D68","v":0},null,"brrt_AdjustedBalanceSheetReinsuranceAssets",null,null,{"$f":"XBRLMap(#REF!,J72,$K$3,$K$4,CONFIGURATION!$B$10,\"BMA\",CONFIGURATION!$B$1,\"bscr\",CONFIGURATION!$B$12)","v":{"$error":"#VALUE!"}}]
[]
[null,null,null,null,null,{"$f":"IF(F75=\"TRUE\",HYPERLINK(\"#'Form 1SFS'!F12:K12\",\"TRUE\"),HYPERLINK(\"#'Form 1SFS'!F12:K12\",\"FALSE\"))","v":"TRUE"},null,{"$f":"IF(H75=\"TRUE\",HYPERLINK(\"#'Form 4EBS'!F10\",\"TRUE\"),HYPERLINK(\"#'Form 4EBS'!F10\",\"FALSE\"))","v":"TRUE"}]
[null,null,null,null,null,{"$f":"IF((F70-F72)=0,\"TRUE\",\"FALSE\")","v":"TRUE"},null,{"$f":"IF((H70-H72)=0,\"TRUE\",\"FALSE\")","v":"TRUE"}]
[null,null,"Difference",null,null,{"$f":"ROUND(F70-F72,0)","v":0},null,{"$f":"ROUND(H70-H72,0)","v":0}]
[]
[null,null,null,null,null,{"$f":"IF(F74=\"False\",\"Does not equal Form 1SFS Line 1 & Sch IIA Line 27\",\"\")","v":""},null,{"$f":"IF(H74=\"False\",\"Does not equal Form 1EBS Line 1 & Sch IIA EBS Line 27\",\"\")","v":""}]
[]
[null,null,"Cash and Cash Equivalents Counterparty Balance by BSCR Rating"]
[]
[null,null,"Select",null,null,null,null,"Cash and Cash Equivalent Exposure"]
[null,null,"BSCR Rating 0 (Domestic Affiliates)",null,null,null,null,{"$f":"SUMPRODUCT(H$14:H$53,($D$14:$D$53=C83)*1)+H57","v":0}]
[null,null,"BSCR Rating 1",null,null,null,null,0]
[null,null,"BSCR Rating 2",null,null,null,null,0]
[null,null,"BSCR Rating 3",null,null,null,null,0]
[null,null,"BSCR Rating 4",null,null,null,null,0]
[null,null,"BSCR Rating 5",null,null,null,null,0]
[null,null,"BSCR Rating 6",null,null,null,null,0]
[null,null,"BSCR Rating 7",null,null,null,null,0]
[null,null,"BSCR Rating 8",null,null,null,null,{"$f":"SUMPRODUCT(H$14:H$53,($D$14:$D$53=C91)*1)+H65+H68","v":0}]
[null,null,"Total",null,null,null,null,{"$f":"SUM(H83:H91)","v":0}]
[]
[]
[null,null,"Diversification Adjustment Calculation On an Exposure Basis"]
[]
[null,null,"Maximum Cash and Cash Equivalent Counterparty Balance On a Single Exposure Basis",null,null,null,null,{"$f":"MAX(H14:H53)","v":0}]
[null,null,"Total Cash and Cash Equivalent Counterparty Balance",null,null,null,null,{"$f":"H72","v":0}]
[null,null,"Percentage",null,null,null,null,{"$f":"IF(H98=0,0,H97/H98)","v":0}]
[null,null,"Diversification Adjustment up to 40%",null,null,null,null,{"$f":"IF(H97=0,0,(1-H99)*40%)","v":0}]

{"sheet":"Schedule XIXA","index":64,"n_rows":98,"n_cols":16,"rows_kept":98,"cut":false,"hidden":false,"merged":[[64,2,64,3],[0,2,0,4],[7,2,7,5],[56,2,56,3],[57,2,57,3],[58,2,58,3],[59,2,59,3],[60,2,60,3],[61,2,61,3],[62,2,62,3],[63,2,63,3],[85,2,85,3],[86,2,86,3],[87,2,87,3],[88,2,88,3],[77,2,78,5],[80,2,80,3],[81,2,81,3],[82,2,82,3],[83,2,83,3],[84,2,84,3]]}
[null,null,"SCHEDULE OF RISK MANAGEMENT -  CASH AND CASH EQUIVALENTS COUNTERPARTY ANALYSIS",null,null,{"$f":"HYPERLINK(\"#'Index'!A1\",\"Return to Index\")","v":"Return to Index"}]
[null,null,{"$f":"+'Insurer Information'!C7","v":"Enter Company Name"}]
[null,null,{"$f":"+'Insurer Information'!C3","v":"2019-12-31"},null,null,null,null,null,{"$f":"IF(C3=\"\",\"\",TEXT(DATE(YEAR(C3+1)-1,MONTH(C3+1),DAY(C3+1)),\"mm/dd/yyyy\"))","v":"01/01/2019"}]
[null,null,{"$f":"+'Form 4EBS'!B4","v":"Expressed in  ['000s]"},null,null,"SCHEDULE XIXA",null,null,{"$f":"IF(C3=\"\",\"\",TEXT(C3,\"mm/dd/yyyy\"))","v":"12/31/2019"}]
[]
[null,null,"Cash and cash equivalent countparty balances",null,null,null,null,null,null,null,null,null,null,{"$f":"YEAR('Insurer Information'!C3)","v":2019}]
[]
[null,null,"Enter at Least the 10 Largest Balances for Cash and Cash Equivalents with the Remaining Balances Grouped According to BSCR Ratings and/or a Single Consolidated Cash Balance"]
[]
[null,null,"Enter Number of Balances",{"$f":"Import!M8154","v":0},null,"EBS Valuation"]
[]
[null,null,"Cash and Cash Equivalent Counterparty Balance",null,null,"(A)",null,null,"brrt_ExposureByReinsurer"]
[null,null,"Name of Cash and Cash Equivalent Counterparty Balance","BSCR Rating",null,"Cash and Cash Equivalent Balance\n(Form 4EBS Line 1 & Schedule IIB-IIF Line 58)",null,null,"brrt_ParticularsOfCededReinsuranceNameOfReinsurer","brrt_ParticularsOfCededReinsuranceBSCRRating","brrt_ParticularsOfCededReinsuranceReinsuranceRecoverable","brrt_ParticularsOfCededReinsuranceReinsurancePayable","brrt_ParticularsOfCededReinsuranceCollateral","brrt_ParticularsOfCededReinsuranceQualifyingCollateral","brrt_ParticularsOfCededReinsuranceNetQualifyingExposure"]
[null,1,{"$f":"Import!M8155","v":0},{"$f":"Import!M8175","v":"Select"},null,{"$f":"Import!M8195","v":0},null,null,null,null,null,null,null,null,null,{"$f":"IF(OR(C14<>\"\",D14<>\"\",#REF!<>\"\",#REF!<>\"\",#REF!<>\"\"),XBRLMapTuple($I$12,I$3,I$4,\"BMA\",CONFIGURATION!$B$1,\"bscr\",\"\",CONFIGURATION!$B$12,$I$13,C14,$J$13,D14,$K$13,#REF!,$L$13,#REF!,$M$13,#REF!,$N$13,#REF!,$O$13,F14),\"emptyTuple\")","v":{"$error":"#REF!"}}]
[null,2,{"$f":"Import!M8156","v":0},{"$f":"Import!M8176","v":"Select"},null,{"$f":"Import!M8196","v":0},null,null,null,null,null,null,null,null,null,{"$f":"IF(OR(C15<>\"\",D15<>\"\",#REF!<>\"\",#REF!<>\"\",#REF!<>\"\"),XBRLMapTuple($I$12,I$3,I$4,\"BMA\",CONFIGURATION!$B$1,\"bscr\",\"\",CONFIGURATION!$B$12,$I$13,C15,$J$13,D15,$K$13,#REF!,$L$13,#REF!,$M$13,#REF!,$N$13,#REF!,$O$13,F15),\"emptyTuple\")","v":{"$error":"#REF!"}}]
[null,3,{"$f":"Import!M8157","v":0},{"$f":"Import!M8177","v":"Select"},null,{"$f":"Import!M8197","v":0},null,null,null,null,null,null,null,null,null,{"$f":"IF(OR(C16<>\"\",D16<>\"\",#REF!<>\"\",#REF!<>\"\",#REF!<>\"\"),XBRLMapTuple($I$12,I$3,I$4,\"BMA\",CONFIGURATION!$B$1,\"bscr\",\"\",CONFIGURATION!$B$12,$I$13,C16,$J$13,D16,$K$13,#REF!,$L$13,#REF!,$M$13,#REF!,$N$13,#REF!,$O$13,F16),\"emptyTuple\")","v":{"$error":"#REF!"}}]
[null,4,{"$f":"Import!M8158","v":0},{"$f":"Import!M8178","v":"Select"},null,{"$f":"Import!M8198","v":0},null,null,null,null,null,null,null,null,null,{"$f":"IF(OR(C17<>\"\",D17<>\"\",#REF!<>\"\",#REF!<>\"\",#REF!<>\"\"),XBRLMapTuple($I$12,I$3,I$4,\"BMA\",CONFIGURATION!$B$1,\"bscr\",\"\",CONFIGURATION!$B$12,$I$13,C17,$J$13,D17,$K$13,#REF!,$L$13,#REF!,$M$13,#REF!,$N$13,#REF!,$O$13,F17),\"emptyTuple\")","v":{"$error":"#REF!"}}]
[null,5,{"$f":"Import!M8159","v":0},{"$f":"Import!M8179","v":"Select"},null,{"$f":"Import!M8199","v":0},null,null,null,null,null,null,null,null,null,{"$f":"IF(OR(C18<>\"\",D18<>\"\",#REF!<>\"\",#REF!<>\"\",#REF!<>\"\"),XBRLMapTuple($I$12,I$3,I$4,\"BMA\",CONFIGURATION!$B$1,\"bscr\",\"\",CONFIGURATION!$B$12,$I$13,C18,$J$13,D18,$K$13,#REF!,$L$13,#REF!,$M$13,#REF!,$N$13,#REF!,$O$13,F18),\"emptyTuple\")","v":{"$error":"#REF!"}}]
[null,6,{"$f":"Import!M8160","v":0},{"$f":"Import!M8180","v":"Select"},null,{"$f":"Import!M8200","v":0},null,null,null,null,null,null,null,null,null,{"$f":"IF(OR(C19<>\"\",D19<>\"\",#REF!<>\"\",#REF!<>\"\",#REF!<>\"\"),XBRLMapTuple($I$12,I$3,I$4,\"BMA\",CONFIGURATION!$B$1,\"bscr\",\"\",CONFIGURATION!$B$12,$I$13,C19,$J$13,D19,$K$13,#REF!,$L$13,#REF!,$M$13,#REF!,$N$13,#REF!,$O$13,F19),\"emptyTuple\")","v":{"$error":"#REF!"}}]
[null,7,{"$f":"Import!M8161","v":0},{"$f":"Import!M8181","v":"Select"},null,{"$f":"Import!M8201","v":0},null,null,null,null,null,null,null,null,null,{"$f":"IF(OR(C20<>\"\",D20<>\"\",#REF!<>\"\",#REF!<>\"\",#REF!<>\"\"),XBRLMapTuple($I$12,I$3,I$4,\"BMA\",CONFIGURATION!$B$1,\"bscr\",\"\",CONFIGURATION!$B$12,$I$13,C20,$J$13,D20,$K$13,#REF!,$L$13,#REF!,$M$13,#REF!,$N$13,#REF!,$O$13,F20),\"emptyTuple\")","v":{"$error":"#REF!"}}]
[null,8,{"$f":"Import!M8162","v":0},{"$f":"Import!M8182","v":"Select"},null,{"$f":"Import!M8202","v":0},null,null,null,null,null,null,null,null,null,{"$f":"IF(OR(C21<>\"\",D21<>\"\",#REF!<>\"\",#REF!<>\"\",#REF!<>\"\"),XBRLMapTuple($I$12,I$3,I$4,\"BMA\",CONFIGURATION!$B$1,\"bscr\",\"\",CONFIGURATION!$B$12,$I$13,C21,$J$13,D21,$K$13,#REF!,$L$13,#REF!,$M$13,#REF!,$N$13,#REF!,$O$13,F21),\"emptyTuple\")","v":{"$error":"#REF!"}}]
[null,9,{"$f":"Import!M8163","v":0},{"$f":"Import!M8183","v":"Select"},null,{"$f":"Import!M8203","v":0},null,null,null,null,null,null,null,null,null,{"$f":"IF(OR(C22<>\"\",D22<>\"\",#REF!<>\"\",#REF!<>\"\",#REF!<>\"\"),XBRLMapTuple($I$12,I$3,I$4,\"BMA\",CONFIGURATION!$B$1,\"bscr\",\"\",CONFIGURATION!$B$12,$I$13,C22,$J$13,D22,$K$13,#REF!,$L$13,#REF!,$M$13,#REF!,$N$13,#REF!,$O$13,F22),\"emptyTuple\")","v":{"$error":"#REF!"}}]
[null,10,{"$f":"Import!M8164","v":0},{"$f":"Import!M8184","v":"Select"},null,{"$f":"Import!M8204","v":0},null,null,null,null,null,null,null,null,null,{"$f":"IF(OR(C23<>\"\",D23<>\"\",#REF!<>\"\",#REF!<>\"\",#REF!<>\"\"),XBRLMapTuple($I$12,I$3,I$4,\"BMA\",CONFIGURATION!$B$1,\"bscr\",\"\",CONFIGURATION!$B$12,$I$13,C23,$J$13,D23,$K$13,#REF!,$L$13,#REF!,$M$13,#REF!,$N$13,#REF!,$O$13,F23),\"emptyTuple\")","v":{"$error":"#REF!"}}]
[null,11,{"$f":"Import!M8165","v":0},{"$f":"Import!M8185","v":"Select"},null,{"$f":"Import!M8205","v":0},null,null,null,null,null,null,null,null,null,{"$f":"IF(OR(C24<>\"\",D24<>\"\",#REF!<>\"\",#REF!<>\"\",#REF!<>\"\"),XBRLMapTuple($I$12,I$3,I$4,\"BMA\",CONFIGURATION!$B$1,\"bscr\",\"\",CONFIGURATION!$B$12,$I$13,C24,$J$13,D24,$K$13,#REF!,$L$13,#REF!,$M$13,#REF!,$N$13,#REF!,$O$13,F24),\"emptyTuple\")","v":{"$error":"#REF!"}}]
[null,12,{"$f":"Import!M8166","v":0},{"$f":"Import!M8186","v":"Select"},null,{"$f":"Import!M8206","v":0},null,null,null,null,null,null,null,null,null,{"$f":"IF(OR(C25<>\"\",D25<>\"\",#REF!<>\"\",#REF!<>\"\",#REF!<>\"\"),XBRLMapTuple($I$12,I$3,I$4,\"BMA\",CONFIGURATION!$B$1,\"bscr\",\"\",CONFIGURATION!$B$12,$I$13,C25,$J$13,D25,$K$13,#REF!,$L$13,#REF!,$M$13,#REF!,$N$13,#REF!,$O$13,F25),\"emptyTuple\")","v":{"$error":"#REF!"}}]
[null,13,{"$f":"Import!M8167","v":0},{"$f":"Import!M8187","v":"Select"},null,{"$f":"Import!M8207","v":0},null,null,null,null,null,null,null,null,null,{"$f":"IF(OR(C26<>\"\",D26<>\"\",#REF!<>\"\",#REF!<>\"\",#REF!<>\"\"),XBRLMapTuple($I$12,I$3,I$4,\"BMA\",CONFIGURATION!$B$1,\"bscr\",\"\",CONFIGURATION!$B$12,$I$13,C26,$J$13,D26,$K$13,#REF!,$L$13,#REF!,$M$13,#REF!,$N$13,#REF!,$O$13,F26),\"emptyTuple\")","v":{"$error":"#REF!"}}]
[null,14,{"$f":"Import!M8168","v":0},{"$f":"Import!M8188","v":"Select"},null,{"$f":"Import!M8208","v":0},null,null,null,null,null,null,null,null,null,{"$f":"IF(OR(C27<>\"\",D27<>\"\",#REF!<>\"\",#REF!<>\"\",#REF!<>\"\"),XBRLMapTuple($I$12,I$3,I$4,\"BMA\",CONFIGURATION!$B$1,\"bscr\",\"\",CONFIGURATION!$B$12,$I$13,C27,$J$13,D27,$K$13,#REF!,$L$13,#REF!,$M$13,#REF!,$N$13,#REF!,$O$13,F27),\"emptyTuple\")","v":{"$error":"#REF!"}}]
[null,15,{"$f":"Import!M8169","v":0},{"$f":"Import!M8189","v":"Select"},null,{"$f":"Import!M8209","v":0},null,null,null,null,null,null,null,null,null,{"$f":"IF(OR(C28<>\"\",D28<>\"\",#REF!<>\"\",#REF!<>\"\",#REF!<>\"\"),XBRLMapTuple($I$12,I$3,I$4,\"BMA\",CONFIGURATION!$B$1,\"bscr\",\"\",CONFIGURATION!$B$12,$I$13,C28,$J$13,D28,$K$13,#REF!,$L$13,#REF!,$M$13,#REF!,$N$13,#REF!,$O$13,F28),\"emptyTuple\")","v":{"$error":"#REF!"}}]
[null,16,{"$f":"Import!M8170","v":0},{"$f":"Import!M8190","v":"Select"},null,{"$f":"Import!M8210","v":0},null,null,null,null,null,null,null,null,null,{"$f":"IF(OR(C29<>\"\",D29<>\"\",#REF!<>\"\",#REF!<>\"\",#REF!<>\"\"),XBRLMapTuple($I$12,I$3,I$4,\"BMA\",CONFIGURATION!$B$1,\"bscr\",\"\",CONFIGURATION!$B$12,$I$13,C29,$J$13,D29,$K$13,#REF!,$L$13,#REF!,$M$13,#REF!,$N$13,#REF!,$O$13,F29),\"emptyTuple\")","v":{"$error":"#REF!"}}]
[null,17,{"$f":"Import!M8171","v":0},{"$f":"Import!M8191","v":"Select"},null,{"$f":"Import!M8211","v":0},null,null,null,null,null,null,null,null,null,{"$f":"IF(OR(C30<>\"\",D30<>\"\",#REF!<>\"\",#REF!<>\"\",#REF!<>\"\"),XBRLMapTuple($I$12,I$3,I$4,\"BMA\",CONFIGURATION!$B$1,\"bscr\",\"\",CONFIGURATION!$B$12,$I$13,C30,$J$13,D30,$K$13,#REF!,$L$13,#REF!,$M$13,#REF!,$N$13,#REF!,$O$13,F30),\"emptyTuple\")","v":{"$error":"#REF!"}}]
[null,18,{"$f":"Import!M8172","v":0},{"$f":"Import!M8192","v":"Select"},null,{"$f":"Import!M8212","v":0},null,null,null,null,null,null,null,null,null,{"$f":"IF(OR(C31<>\"\",D31<>\"\",#REF!<>\"\",#REF!<>\"\",#REF!<>\"\"),XBRLMapTuple($I$12,I$3,I$4,\"BMA\",CONFIGURATION!$B$1,\"bscr\",\"\",CONFIGURATION!$B$12,$I$13,C31,$J$13,D31,$K$13,#REF!,$L$13,#REF!,$M$13,#REF!,$N$13,#REF!,$O$13,F31),\"emptyTuple\")","v":{"$error":"#REF!"}}]
[null,19,{"$f":"Import!M8173","v":0},{"$f":"Import!M8193","v":"Select"},null,{"$f":"Import!M8213","v":0},null,null,null,null,null,null,null,null,null,{"$f":"IF(OR(C32<>\"\",D32<>\"\",#REF!<>\"\",#REF!<>\"\",#REF!<>\"\"),XBRLMapTuple($I$12,I$3,I$4,\"BMA\",CONFIGURATION!$B$1,\"bscr\",\"\",CONFIGURATION!$B$12,$I$13,C32,$J$13,D32,$K$13,#REF!,$L$13,#REF!,$M$13,#REF!,$N$13,#REF!,$O$13,F32),\"emptyTuple\")","v":{"$error":"#REF!"}}]
[null,20,{"$f":"Import!M8174","v":0},{"$f":"Import!M8194","v":"Select"},null,{"$f":"Import!M8214","v":0},null,null,null,null,null,null,null,null,null,{"$f":"IF(OR(C33<>\"\",D33<>\"\",#REF!<>\"\",#REF!<>\"\",#REF!<>\"\"),XBRLMapTuple($I$12,I$3,I$4,\"BMA\",CONFIGURATION!$B$1,\"bscr\",\"\",CONFIGURATION!$B$12,$I$13,C33,$J$13,D33,$K$13,#REF!,$L$13,#REF!,$M$13,#REF!,$N$13,#REF!,$O$13,F33),\"emptyTuple\")","v":{"$error":"#REF!"}}]
[null,21,null,null,null,null,null,null,null,null,null,null,null,null,null,{"$f":"IF(OR(C34<>\"\",D34<>\"\",#REF!<>\"\",#REF!<>\"\",#REF!<>\"\"),XBRLMapTuple($I$12,I$3,I$4,\"BMA\",CONFIGURATION!$B$1,\"bscr\",\"\",CONFIGURATION!$B$12,$I$13,C34,$J$13,D34,$K$13,#REF!,$L$13,#REF!,$M$13,#REF!,$N$13,#REF!,$O$13,F34),\"emptyTuple\")","v":{"$error":"#REF!"}}]
[null,22,null,null,null,null,null,null,null,null,null,null,null,null,null,{"$f":"IF(OR(C35<>\"\",D35<>\"\",#REF!<>\"\",#REF!<>\"\",#REF!<>\"\"),XBRLMapTuple($I$12,I$3,I$4,\"BMA\",CONFIGURATION!$B$1,\"bscr\",\"\",CONFIGURATION!$B$12,$I$13,C35,$J$13,D35,$K$13,#REF!,$L$13,#REF!,$M$13,#REF!,$N$13,#REF!,$O$13,F35),\"emptyTuple\")","v":{"$error":"#REF!"}}]
[null,23,null,null,null,null,null,null,null,null,null,null,null,null,null,{"$f":"IF(OR(C36<>\"\",D36<>\"\",#REF!<>\"\",#REF!<>\"\",#REF!<>\"\"),XBRLMapTuple($I$12,I$3,I$4,\"BMA\",CONFIGURATION!$B$1,\"bscr\",\"\",CONFIGURATION!$B$12,$I$13,C36,$J$13,D36,$K$13,#REF!,$L$13,#REF!,$M$13,#REF!,$N$13,#REF!,$O$13,F36),\"emptyTuple\")","v":{"$error":"#REF!"}}]
[null,24,null,null,null,null,null,null,null,null,null,null,null,null,null,{"$f":"IF(OR(C37<>\"\",D37<>\"\",#REF!<>\"\",#REF!<>\"\",#REF!<>\"\"),XBRLMapTuple($I$12,I$3,I$4,\"BMA\",CONFIGURATION!$B$1,\"bscr\",\"\",CONFIGURATION!$B$12,$I$13,C37,$J$13,D37,$K$13,#REF!,$L$13,#REF!,$M$13,#REF!,$N$13,#REF!,$O$13,F37),\"emptyTuple\")","v":{"$error":"#REF!"}}]
[null,25,null,null,null,null,null,null,null,null,null,null,null,null,null,{"$f":"IF(OR(C38<>\"\",D38<>\"\",#REF!<>\"\",#REF!<>\"\",#REF!<>\"\"),XBRLMapTuple($I$12,I$3,I$4,\"BMA\",CONFIGURATION!$B$1,\"bscr\",\"\",CONFIGURATION!$B$12,$I$13,C38,$J$13,D38,$K$13,#REF!,$L$13,#REF!,$M$13,#REF!,$N$13,#REF!,$O$13,F38),\"emptyTuple\")","v":{"$error":"#REF!"}}]
[null,26,null,null,null,null,null,null,null,null,null,null,null,null,null,{"$f":"IF(OR(C39<>\"\",D39<>\"\",#REF!<>\"\",#REF!<>\"\",#REF!<>\"\"),XBRLMapTuple($I$12,I$3,I$4,\"BMA\",CONFIGURATION!$B$1,\"bscr\",\"\",CONFIGURATION!$B$12,$I$13,C39,$J$13,D39,$K$13,#REF!,$L$13,#REF!,$M$13,#REF!,$N$13,#REF!,$O$13,F39),\"emptyTuple\")","v":{"$error":"#REF!"}}]
[null,27,null,null,null,null,null,null,null,null,null,null,null,null,null,{"$f":"IF(OR(C40<>\"\",D40<>\"\",#REF!<>\"\",#REF!<>\"\",#REF!<>\"\"),XBRLMapTuple($I$12,I$3,I$4,\"BMA\",CONFIGURATION!$B$1,\"bscr\",\"\",CONFIGURATION!$B$12,$I$13,C40,$J$13,D40,$K$13,#REF!,$L$13,#REF!,$M$13,#REF!,$N$13,#REF!,$O$13,F40),\"emptyTuple\")","v":{"$error":"#REF!"}}]
[null,28,null,null,null,null,null,null,null,null,null,null,null,null,null,{"$f":"IF(OR(C41<>\"\",D41<>\"\",#REF!<>\"\",#REF!<>\"\",#REF!<>\"\"),XBRLMapTuple($I$12,I$3,I$4,\"BMA\",CONFIGURATION!$B$1,\"bscr\",\"\",CONFIGURATION!$B$12,$I$13,C41,$J$13,D41,$K$13,#REF!,$L$13,#REF!,$M$13,#REF!,$N$13,#REF!,$O$13,F41),\"emptyTuple\")","v":{"$error":"#REF!"}}]
[null,29,null,null,null,null,null,null,null,null,null,null,null,null,null,{"$f":"IF(OR(C42<>\"\",D42<>\"\",#REF!<>\"\",#REF!<>\"\",#REF!<>\"\"),XBRLMapTuple($I$12,I$3,I$4,\"BMA\",CONFIGURATION!$B$1,\"bscr\",\"\",CONFIGURATION!$B$12,$I$13,C42,$J$13,D42,$K$13,#REF!,$L$13,#REF!,$M$13,#REF!,$N$13,#REF!,$O$13,F42),\"emptyTuple\")","v":{"$error":"#REF!"}}]
[null,30,null,null,null,null,null,null,null,null,null,null,null,null,null,{"$f":"IF(OR(C43<>\"\",D43<>\"\",#REF!<>\"\",#REF!<>\"\",#REF!<>\"\"),XBRLMapTuple($I$12,I$3,I$4,\"BMA\",CONFIGURATION!$B$1,\"bscr\",\"\",CONFIGURATION!$B$12,$I$13,C43,$J$13,D43,$K$13,#REF!,$L$13,#REF!,$M$13,#REF!,$N$13,#REF!,$O$13,F43),\"emptyTuple\")","v":{"$error":"#REF!"}}]
[null,31,null,null,null,null,null,null,null,null,null,null,null,null,null,{"$f":"IF(OR(C44<>\"\",D44<>\"\",#REF!<>\"\",#REF!<>\"\",#REF!<>\"\"),XBRLMapTuple($I$12,I$3,I$4,\"BMA\",CONFIGURATION!$B$1,\"bscr\",\"\",CONFIGURATION!$B$12,$I$13,C44,$J$13,D44,$K$13,#REF!,$L$13,#REF!,$M$13,#REF!,$N$13,#REF!,$O$13,F44),\"emptyTuple\")","v":{"$error":"#REF!"}}]
[null,32,null,null,null,null,null,null,null,null,null,null,null,null,null,{"$f":"IF(OR(C45<>\"\",D45<>\"\",#REF!<>\"\",#REF!<>\"\",#REF!<>\"\"),XBRLMapTuple($I$12,I$3,I$4,\"BMA\",CONFIGURATION!$B$1,\"bscr\",\"\",CONFIGURATION!$B$12,$I$13,C45,$J$13,D45,$K$13,#REF!,$L$13,#REF!,$M$13,#REF!,$N$13,#REF!,$O$13,F45),\"emptyTuple\")","v":{"$error":"#REF!"}}]
[null,33,null,null,null,null,null,null,null,null,null,null,null,null,null,{"$f":"IF(OR(C46<>\"\",D46<>\"\",#REF!<>\"\",#REF!<>\"\",#REF!<>\"\"),XBRLMapTuple($I$12,I$3,I$4,\"BMA\",CONFIGURATION!$B$1,\"bscr\",\"\",CONFIGURATION!$B$12,$I$13,C46,$J$13,D46,$K$13,#REF!,$L$13,#REF!,$M$13,#REF!,$N$13,#REF!,$O$13,F46),\"emptyTuple\")","v":{"$error":"#REF!"}}]
[null,34,null,null,null,null,null,null,null,null,null,null,null,null,null,{"$f":"IF(OR(C47<>\"\",D47<>\"\",#REF!<>\"\",#REF!<>\"\",#REF!<>\"\"),XBRLMapTuple($I$12,I$3,I$4,\"BMA\",CONFIGURATION!$B$1,\"bscr\",\"\",CONFIGURATION!$B$12,$I$13,C47,$J$13,D47,$K$13,#REF!,$L$13,#REF!,$M$13,#REF!,$N$13,#REF!,$O$13,F47),\"emptyTuple\")","v":{"$error":"#REF!"}}]
[null,35,null,null,null,null,null,null,null,null,null,null,null,null,null,{"$f":"IF(OR(C48<>\"\",D48<>\"\",#REF!<>\"\",#REF!<>\"\",#REF!<>\"\"),XBRLMapTuple($I$12,I$3,I$4,\"BMA\",CONFIGURATION!$B$1,\"bscr\",\"\",CONFIGURATION!$B$12,$I$13,C48,$J$13,D48,$K$13,#REF!,$L$13,#REF!,$M$13,#REF!,$N$13,#REF!,$O$13,F48),\"emptyTuple\")","v":{"$error":"#REF!"}}]
[null,36,null,null,null,null,null,null,null,null,null,null,null,null,null,{"$f":"IF(OR(C49<>\"\",D49<>\"\",#REF!<>\"\",#REF!<>\"\",#REF!<>\"\"),XBRLMapTuple($I$12,I$3,I$4,\"BMA\",CONFIGURATION!$B$1,\"bscr\",\"\",CONFIGURATION!$B$12,$I$13,C49,$J$13,D49,$K$13,#REF!,$L$13,#REF!,$M$13,#REF!,$N$13,#REF!,$O$13,F49),\"emptyTuple\")","v":{"$error":"#REF!"}}]
[null,37,null,null,null,null,null,null,null,null,null,null,null,null,null,{"$f":"IF(OR(C50<>\"\",D50<>\"\",#REF!<>\"\",#REF!<>\"\",#REF!<>\"\"),XBRLMapTuple($I$12,I$3,I$4,\"BMA\",CONFIGURATION!$B$1,\"bscr\",\"\",CONFIGURATION!$B$12,$I$13,C50,$J$13,D50,$K$13,#REF!,$L$13,#REF!,$M$13,#REF!,$N$13,#REF!,$O$13,F50),\"emptyTuple\")","v":{"$error":"#REF!"}}]
[null,38,null,null,null,null,null,null,null,null,null,null,null,null,null,{"$f":"IF(OR(C51<>\"\",D51<>\"\",#REF!<>\"\",#REF!<>\"\",#REF!<>\"\"),XBRLMapTuple($I$12,I$3,I$4,\"BMA\",CONFIGURATION!$B$1,\"bscr\",\"\",CONFIGURATION!$B$12,$I$13,C51,$J$13,D51,$K$13,#REF!,$L$13,#REF!,$M$13,#REF!,$N$13,#REF!,$O$13,F51),\"emptyTuple\")","v":{"$error":"#REF!"}}]
[null,39,null,null,null,null,null,null,null,null,null,null,null,null,null,{"$f":"IF(OR(C52<>\"\",D52<>\"\",#REF!<>\"\",#REF!<>\"\",#REF!<>\"\"),XBRLMapTuple($I$12,I$3,I$4,\"BMA\",CONFIGURATION!$B$1,\"bscr\",\"\",CONFIGURATION!$B$12,$I$13,C52,$J$13,D52,$K$13,#REF!,$L$13,#REF!,$M$13,#REF!,$N$13,#REF!,$O$13,F52),\"emptyTuple\")","v":{"$error":"#REF!"}}]
[null,40,null,null,null,null,null,null,null,null,null,null,null,null,null,{"$f":"IF(OR(C53<>\"\",D53<>\"\",#REF!<>\"\",#REF!<>\"\",#REF!<>\"\"),XBRLMapTuple($I$12,I$3,I$4,\"BMA\",CONFIGURATION!$B$1,\"bscr\",\"\",CONFIGURATION!$B$12,$I$13,C53,$J$13,D53,$K$13,#REF!,$L$13,#REF!,$M$13,#REF!,$N$13,#REF!,$O$13,F53),\"emptyTuple\")","v":{"$error":"#REF!"}}]
[null,null,"Total Cash and Cash Equivalent Counterparty Balance",null,null,{"$f":"SUM(F14:F53)","v":0},null,null,null,null,{"$f":"XBRLMap(#REF!,K13,$I$3,$I$4,CONFIGURATION!$B$10,\"BMA\",CONFIGURATION!$B$1,\"bscr\",CONFIGURATION!$B$12)","v":{"$error":"#VALUE!"}},{"$f":"XBRLMap(#REF!,L13,$I$3,$I$4,CONFIGURATION!$B$10,\"BMA\",CONFIGURATION!$B$1,\"bscr\",CONFIGURATION!$B$12)","v":{"$error":"#VALUE!"}},{"$f":"XBRLMap(#REF!,M13,$I$3,$I$4,CONFIGURATION!$B$10,\"BMA\",CONFIGURATION!$B$1,\"bscr\",CONFIGURATION!$B$12)","v":{"$error":"#VALUE!"}},{"$f":"XBRLMap(#REF!,N13,$I$3,$I$4,CONFIGURATION!$B$10,\"BMA\",CONFIGURATION!$B$1,\"bscr\",CONFIGURATION!$B$12)","v":{"$error":"#VALUE!"}},{"$f":"XBRLMap(F54,O13,$I$3,$I$4,CONFIGURATION!$B$10,\"BMA\",CONFIGURATION!$B$1,\"bscr\",CONFIGURATION!$B$12)","v":"Mapped"}]
[]
[null,null,"Exposure by BSCR Rating"]
[null,null,"BSCR Rating 0 (Domestic Affiliates)",null,null,{"$f":"Import!M8216","v":0},null,"brrt_RiskGradeAxis_brrt_BSCRRating0Member",null,null,{"$f":"XBRLMap(#REF!,$K$13&\".\"&H57,$I$3,$I$4,CONFIGURATION!$B$10,\"BMA\",CONFIGURATION!$B$1,\"bscr\",CONFIGURATION!$B$12)","v":{"$error":"#VALUE!"}},{"$f":"XBRLMap(#REF!,$L$13&\".\"&H57,$I$3,$I$4,CONFIGURATION!$B$10,\"BMA\",CONFIGURATION!$B$1,\"bscr\",CONFIGURATION!$B$12)","v":{"$error":"#VALUE!"}},{"$f":"XBRLMap(#REF!,$M$13&\".\"&H57,$I$3,$I$4,CONFIGURATION!$B$10,\"BMA\",CONFIGURATION!$B$1,\"bscr\",CONFIGURATION!$B$12)","v":{"$error":"#VALUE!"}},{"$f":"XBRLMap(#REF!,$N$13&\".\"&H57,$I$3,$I$4,CONFIGURATION!$B$10,\"BMA\",CONFIGURATION!$B$1,\"bscr\",CONFIGURATION!$B$12)","v":{"$error":"#VALUE!"}},{"$f":"XBRLMap(F57,$O$13&\".\"&H57,$I$3,$I$4,CONFIGURATION!$B$10,\"BMA\",CONFIGURATION!$B$1,\"bscr\",CONFIGURATION!$B$12)","v":"Mapped"}]
[null,null,"BSCR Rating 1",null,null,{"$f":"Import!M8217","v":0},null,"brrt_RiskGradeAxis_brrt_BSCRRating1Member",null,null,{"$f":"XBRLMap(#REF!,$K$13&\".\"&H58,$I$3,$I$4,CONFIGURATION!$B$10,\"BMA\",CONFIGURATION!$B$1,\"bscr\",CONFIGURATION!$B$12)","v":{"$error":"#VALUE!"}},{"$f":"XBRLMap(#REF!,$L$13&\".\"&H58,$I$3,$I$4,CONFIGURATION!$B$10,\"BMA\",CONFIGURATION!$B$1,\"bscr\",CONFIGURATION!$B$12)","v":{"$error":"#VALUE!"}},{"$f":"XBRLMap(#REF!,$M$13&\".\"&H58,$I$3,$I$4,CONFIGURATION!$B$10,\"BMA\",CONFIGURATION!$B$1,\"bscr\",CONFIGURATION!$B$12)","v":{"$error":"#VALUE!"}},{"$f":"XBRLMap(#REF!,$N$13&\".\"&H58,$I$3,$I$4,CONFIGURATION!$B$10,\"BMA\",CONFIGURATION!$B$1,\"bscr\",CONFIGURATION!$B$12)","v":{"$error":"#VALUE!"}},{"$f":"XBRLMap(F58,$O$13&\".\"&H58,$I$3,$I$4,CONFIGURATION!$B$10,\"BMA\",CONFIGURATION!$B$1,\"bscr\",CONFIGURATION!$B$12)","v":"Mapped"}]
[null,null,"BSCR Rating 2",null,null,{"$f":"Import!M8218","v":0},null,"brrt_RiskGradeAxis_brrt_BSCRRating2Member",null,null,{"$f":"XBRLMap(#REF!,$K$13&\".\"&H59,$I$3,$I$4,CONFIGURATION!$B$10,\"BMA\",CONFIGURATION!$B$1,\"bscr\",CONFIGURATION!$B$12)","v":{"$error":"#VALUE!"}},{"$f":"XBRLMap(#REF!,$L$13&\".\"&H59,$I$3,$I$4,CONFIGURATION!$B$10,\"BMA\",CONFIGURATION!$B$1,\"bscr\",CONFIGURATION!$B$12)","v":{"$error":"#VALUE!"}},{"$f":"XBRLMap(#REF!,$M$13&\".\"&H59,$I$3,$I$4,CONFIGURATION!$B$10,\"BMA\",CONFIGURATION!$B$1,\"bscr\",CONFIGURATION!$B$12)","v":{"$error":"#VALUE!"}},{"$f":"XBRLMap(#REF!,$N$13&\".\"&H59,$I$3,$I$4,CONFIGURATION!$B$10,\"BMA\",CONFIGURATION!$B$1,\"bscr\",CONFIGURATION!$B$12)","v":{"$error":"#VALUE!"}},{"$f":"XBRLMap(F59,$O$13&\".\"&H59,$I$3,$I$4,CONFIGURATION!$B$10,\"BMA\",CONFIGURATION!$B$1,\"bscr\",CONFIGURATION!$B$12)","v":"Mapped"}]
[null,null,"BSCR Rating 3",null,null,{"$f":"Import!M8219","v":0},null,"brrt_RiskGradeAxis_brrt_BSCRRating3Member",null,null,{"$f":"XBRLMap(#REF!,$K$13&\".\"&H60,$I$3,$I$4,CONFIGURATION!$B$10,\"BMA\",CONFIGURATION!$B$1,\"bscr\",CONFIGURATION!$B$12)","v":{"$error":"#VALUE!"}},{"$f":"XBRLMap(#REF!,$L$13&\".\"&H60,$I$3,$I$4,CONFIGURATION!$B$10,\"BMA\",CONFIGURATION!$B$1,\"bscr\",CONFIGURATION!$B$12)","v":{"$error":"#VALUE!"}},{"$f":"XBRLMap(#REF!,$M$13&\".\"&H60,$I$3,$I$4,CONFIGURATION!$B$10,\"BMA\",CONFIGURATION!$B$1,\"bscr\",CONFIGURATION!$B$12)","v":{"$error":"#VALUE!"}},{"$f":"XBRLMap(#REF!,$N$13&\".\"&H60,$I$3,$I$4,CONFIGURATION!$B$10,\"BMA\",CONFIGURATION!$B$1,\"bscr\",CONFIGURATION!$B$12)","v":{"$error":"#VALUE!"}},{"$f":"XBRLMap(F60,$O$13&\".\"&H60,$I$3,$I$4,CONFIGURATION!$B$10,\"BMA\",CONFIGURATION!$B$1,\"bscr\",CONFIGURATION!$B$12)","v":"Mapped"}]
[null,null,"BSCR Rating 4",null,null,{"$f":"Import!M8220","v":0},null,"brrt_RiskGradeAxis_brrt_BSCRRating4Member",null,null,{"$f":"XBRLMap(#REF!,$K$13&\".\"&H61,$I$3,$I$4,CONFIGURATION!$B$10,\"BMA\",CONFIGURATION!$B$1,\"bscr\",CONFIGURATION!$B$12)","v":{"$error":"#VALUE!"}},{"$f":"XBRLMap(#REF!,$L$13&\".\"&H61,$I$3,$I$4,CONFIGURATION!$B$10,\"BMA\",CONFIGURATION!$B$1,\"bscr\",CONFIGURATION!$B$12)","v":{"$error":"#VALUE!"}},{"$f":"XBRLMap(#REF!,$M$13&\".\"&H61,$I$3,$I$4,CONFIGURATION!$B$10,\"BMA\",CONFIGURATION!$B$1,\"bscr\",CONFIGURATION!$B$12)","v":{"$error":"#VALUE!"}},{"$f":"XBRLMap(#REF!,$N$13&\".\"&H61,$I$3,$I$4,CONFIGURATION!$B$10,\"BMA\",CONFIGURATION!$B$1,\"bscr\",CONFIGURATION!$B$12)","v":{"$error":"#VALUE!"}},{"$f":"XBRLMap(F61,$O$13&\".\"&H61,$I$3,$I$4,CONFIGURATION!$B$10,\"BMA\",CONFIGURATION!$B$1,\"bscr\",CONFIGURATION!$B$12)","v":"Mapped"}]
[null,null,"BSCR Rating 5",null,null,{"$f":"Import!M8221","v":0},null,"brrt_RiskGradeAxis_brrt_BSCRRating5Member",null,null,{"$f":"XBRLMap(#REF!,$K$13&\".\"&H62,$I$3,$I$4,CONFIGURATION!$B$10,\"BMA\",CONFIGURATION!$B$1,\"bscr\",CONFIGURATION!$B$12)","v":{"$error":"#VALUE!"}},{"$f":"XBRLMap(#REF!,$L$13&\".\"&H62,$I$3,$I$4,CONFIGURATION!$B$10,\"BMA\",CONFIGURATION!$B$1,\"bscr\",CONFIGURATION!$B$12)","v":{"$error":"#VALUE!"}},{"$f":"XBRLMap(#REF!,$M$13&\".\"&H62,$I$3,$I$4,CONFIGURATION!$B$10,\"BMA\",CONFIGURATION!$B$1,\"bscr\",CONFIGURATION!$B$12)","v":{"$error":"#VALUE!"}},{"$f":"XBRLMap(#REF!,$N$13&\".\"&H62,$I$3,$I$4,CONFIGURATION!$B$10,\"BMA\",CONFIGURATION!$B$1,\"bscr\",CONFIGURATION!$B$12)","v":{"$error":"#VALUE!"}},{"$f":"XBRLMap(F62,$O$13&\".\"&H62,$I$3,$I$4,CONFIGURATION!$B$10,\"BMA\",CONFIGURATION!$B$1,\"bscr\",CONFIGURATION!$B$12)","v":"Mapped"}]
[null,null,"BSCR Rating 6",null,null,{"$f":"Import!M8222","v":0},null,"brrt_RiskGradeAxis_brrt_BSCRRating6Member",null,null,{"$f":"XBRLMap(#REF!,$K$13&\".\"&H63,$I$3,$I$4,CONFIGURATION!$B$10,\"BMA\",CONFIGURATION!$B$1,\"bscr\",CONFIGURATION!$B$12)","v":{"$error":"#VALUE!"}},{"$f":"XBRLMap(#REF!,$L$13&\".\"&H63,$I$3,$I$4,CONFIGURATION!$B$10,\"BMA\",CONFIGURATION!$B$1,\"bscr\",CONFIGURATION!$B$12)","v":{"$error":"#VALUE!"}},{"$f":"XBRLMap(#REF!,$M$13&\".\"&H63,$I$3,$I$4,CONFIGURATION!$B$10,\"BMA\",CONFIGURATION!$B$1,\"bscr\",CONFIGURATION!$B$12)","v":{"$error":"#VALUE!"}},{"$f":"XBRLMap(#REF!,$N$13&\".\"&H63,$I$3,$I$4,CONFIGURATION!$B$10,\"BMA\",CONFIGURATION!$B$1,\"bscr\",CONFIGURATION!$B$12)","v":{"$error":"#VALUE!"}},{"$f":"XBRLMap(F63,$O$13&\".\"&H63,$I$3,$I$4,CONFIGURATION!$B$10,\"BMA\",CONFIGURATION!$B$1,\"bscr\",CONFIGURATION!$B$12)","v":"Mapped"}]
[null,null,"BSCR Rating 7",null,null,{"$f":"Import!M8223","v":0},null,"brrt_RiskGradeAxis_brrt_BSCRRating7Member",null,null,{"$f":"XBRLMap(#REF!,$K$13&\".\"&H64,$I$3,$I$4,CONFIGURATION!$B$10,\"BMA\",CONFIGURATION!$B$1,\"bscr\",CONFIGURATION!$B$12)","v":{"$error":"#VALUE!"}},{"$f":"XBRLMap(#REF!,$L$13&\".\"&H64,$I$3,$I$4,CONFIGURATION!$B$10,\"BMA\",CONFIGURATION!$B$1,\"bscr\",CONFIGURATION!$B$12)","v":{"$error":"#VALUE!"}},{"$f":"XBRLMap(#REF!,$M$13&\".\"&H64,$I$3,$I$4,CONFIGURATION!$B$10,\"BMA\",CONFIGURATION!$B$1,\"bscr\",CONFIGURATION!$B$12)","v":{"$error":"#VALUE!"}},{"$f":"XBRLMap(#REF!,$N$13&\".\"&H64,$I$3,$I$4,CONFIGURATION!$B$10,\"BMA\",CONFIGURATION!$B$1,\"bscr\",CONFIGURATION!$B$12)","v":{"$error":"#VALUE!"}},{"$f":"XBRLMap(F64,$O$13&\".\"&H64,$I$3,$I$4,CONFIGURATION!$B$10,\"BMA\",CONFIGURATION!$B$1,\"bscr\",CONFIGURATION!$B$12)","v":"Mapped"}]
[null,null,"BSCR Rating 8",null,null,{"$f":"Import!M8224","v":0},null,"brrt_RiskGradeAxis_brrt_BSCRRating8Member",null,null,{"$f":"XBRLMap(#REF!,$K$13&\".\"&H65,$I$3,$I$4,CONFIGURATION!$B$10,\"BMA\",CONFIGURATION!$B$1,\"bscr\",CONFIGURATION!$B$12)","v":{"$error":"#VALUE!"}},{"$f":"XBRLMap(#REF!,$L$13&\".\"&H65,$I$3,$I$4,CONFIGURATION!$B$10,\"BMA\",CONFIGURATION!$B$1,\"bscr\",CONFIGURATION!$B$12)","v":{"$error":"#VALUE!"}},{"$f":"XBRLMap(#REF!,$M$13&\".\"&H65,$I$3,$I$4,CONFIGURATION!$B$10,\"BMA\",CONFIGURATION!$B$1,\"bscr\",CONFIGURATION!$B$12)","v":{"$error":"#VALUE!"}},{"$f":"XBRLMap(#REF!,$N$13&\".\"&H65,$I$3,$I$4,CONFIGURATION!$B$10,\"BMA\",CONFIGURATION!$B$1,\"bscr\",CONFIGURATION!$B$12)","v":{"$error":"#VALUE!"}},{"$f":"XBRLMap(F65,$O$13&\".\"&H65,$I$3,$I$4,CONFIGURATION!$B$10,\"BMA\",CONFIGURATION!$B$1,\"bscr\",CONFIGURATION!$B$12)","v":"Mapped"}]
[null,null,"Total Exposure by BSCR Rating",null,null,{"$f":"SUM(F57:F65)","v":0},null,"brrt_RiskGradeAxis_brrt_TotalMember",null,null,{"$f":"XBRLMap(#REF!,$K$13&\".\"&H66,$I$3,$I$4,CONFIGURATION!$B$10,\"BMA\",CONFIGURATION!$B$1,\"bscr\",CONFIGURATION!$B$12)","v":{"$error":"#VALUE!"}},{"$f":"XBRLMap(#REF!,$L$13&\".\"&H66,$I$3,$I$4,CONFIGURATION!$B$10,\"BMA\",CONFIGURATION!$B$1,\"bscr\",CONFIGURATION!$B$12)","v":{"$error":"#VALUE!"}},{"$f":"XBRLMap(#REF!,$M$13&\".\"&H66,$I$3,$I$4,CONFIGURATION!$B$10,\"BMA\",CONFIGURATION!$B$1,\"bscr\",CONFIGURATION!$B$12)","v":{"$error":"#VALUE!"}},{"$f":"XBRLMap(#REF!,$N$13&\".\"&H66,$I$3,$I$4,CONFIGURATION!$B$10,\"BMA\",CONFIGURATION!$B$1,\"bscr\",CONFIGURATION!$B$12)","v":{"$error":"#VALUE!"}},{"$f":"XBRLMap(F66,$O$13&\".\"&H66,$I$3,$I$4,CONFIGURATION!$B$10,\"BMA\",CONFIGURATION!$B$1,\"bscr\",CONFIGURATION!$B$12)","v":"Mapped"}]
[null,null,null,null,null,null,null,null,null,null,"brrt_SingleConsolidatedExposureReinsuranceRecoverable","brrt_SingleConsolidatedExposureReinsurancePayable","brrt_SingleConsolidatedExposureReinsuranceCollateral","brrt_SingleConsolidatedExposureReinsuranceQualifyingCollateral","brrt_SingleConsolidatedExposureReinsuranceNetQualifyingExposure"]
[null,null,"Single Consolidated Exposure",null,null,{"$f":"'Form 4EBS'!F10+'Schedule IIB (EBS)'!D95+'Schedule IIC (EBS)'!D95+'Schedule IID (EBS)'!D95+'Schedule IIE (EBS)'!D95+'Schedule IIF (EBS)'!D95-F54-F66","v":0},null,null,null,null,{"$f":"XBRLMap(#REF!,K67,$I$3,$I$4,CONFIGURATION!$B$10,\"BMA\",CONFIGURATION!$B$1,\"bscr\",CONFIGURATION!$B$12)","v":{"$error":"#VALUE!"}},{"$f":"XBRLMap(#REF!,L67,$I$3,$I$4,CONFIGURATION!$B$10,\"BMA\",CONFIGURATION!$B$1,\"bscr\",CONFIGURATION!$B$12)","v":{"$error":"#VALUE!"}},{"$f":"XBRLMap(#REF!,M67,$I$3,$I$4,CONFIGURATION!$B$10,\"BMA\",CONFIGURATION!$B$1,\"bscr\",CONFIGURATION!$B$12)","v":{"$error":"#VALUE!"}},{"$f":"XBRLMap(#REF!,N67,$I$3,$I$4,CONFIGURATION!$B$10,\"BMA\",CONFIGURATION!$B$1,\"bscr\",CONFIGURATION!$B$12)","v":{"$error":"#VALUE!"}},{"$f":"XBRLMap(F68,O67,$I$3,$I$4,CONFIGURATION!$B$10,\"BMA\",CONFIGURATION!$B$1,\"bscr\",CONFIGURATION!$B$12)","v":"Mapped"}]
[]
[null,null,"Total Cash and Cash Equivalent Balance",null,null,{"$f":"F54+F66+F68","v":0}]
[]
[null,null,"Cash and Cash Equivalent Check",null,null,{"$f":"'Form 4EBS'!F10+'Schedule IIB (EBS)'!D95+'Schedule IIC (EBS)'!D95+'Schedule IID (EBS)'!D95+'Schedule IIE (EBS)'!D95+'Schedule IIF (EBS)'!D95","v":0},null,"brrt_AdjustedBalanceSheetReinsuranceAssets",null,null,{"$f":"XBRLMap(#REF!,H72,$I$3,$I$4,CONFIGURATION!$B$10,\"BMA\",CONFIGURATION!$B$1,\"bscr\",CONFIGURATION!$B$12)","v":{"$error":"#VALUE!"}}]
[]
[null,null,null,null,null,{"$f":"IF((F70-F72)=0,\"TRUE\",\"FALSE\")","v":"TRUE"}]
[]
[null,null,"Difference",null,null,{"$f":"F70-F72","v":0}]
[]
[null,null,"Cash and Cash Equivalents Counterparty Balance by BSCR Rating"]
[]
[null,null,"Select",null,null,"Cash and Cash Equivalent Exposure"]
[null,null,"BSCR Rating 0 (Domestic Affiliates)",null,null,{"$f":"SUMPRODUCT(F$14:F$53,($D$14:$D$53=C81)*1)+F57","v":0}]
[null,null,"BSCR Rating 1",null,null,0]
[null,null,"BSCR Rating 2",null,null,0]
[null,null,"BSCR Rating 3",null,null,0]
[null,null,"BSCR Rating 4",null,null,0]
[null,null,"BSCR Rating 5",null,null,0]
[null,null,"BSCR Rating 6",null,null,0]
[null,null,"BSCR Rating 7",null,null,0]
[null,null,"BSCR Rating 8",null,null,{"$f":"SUMPRODUCT(F$14:F$53,($D$14:$D$53=C89)*1)+F65+F68","v":0}]
[null,null,"Total",null,null,{"$f":"SUM(F81:F89)","v":0}]
[]
[]
[null,null,"Diversification Adjustment Calculation On an Exposure Basis"]
[]
[null,null,"Maximum Cash and Cash Equivalent Counterparty Balance On a Single Exposure Basis",null,null,{"$f":"MAX(F14:F53)","v":0}]
[null,null,"Total Cash and Cash Equivalent Counterparty Balance",null,null,{"$f":"F72","v":0}]
[null,null,"Percentage",null,null,{"$f":"IF(F96=0,0,F95/F96)","v":0}]
[null,null,"Diversification Adjustment up to 40%",null,null,{"$f":"IF(F95=0,0,(1-F97)*40%)","v":0}]

{"sheet":"Schedule XX","index":65,"n_rows":68,"n_cols":20,"rows_kept":68,"cut":false,"hidden":false,"merged":[[4,3,4,9],[4,11,4,17],[2,3,3,9]]}
[null,"SCHEDULE OF CURRENCY RISK",null,null,null,null,null,null,null,null,null,null,null,null,null,null,null,null,null,{"$f":"HYPERLINK(\"#'Index'!A1\",\"Return to Index\")","v":"Return to Index"}]
[null,{"$f":"+'Insurer Information'!C7","v":"Enter Company Name"}]
[null,{"$f":"+'Insurer Information'!C3","v":"2019-12-31"},null,"Note if an insurer does not have any entities to consolidate, enter EBS Valuation information only \n(This cell is editable for deletion)",null,null,null,null,null,null,null,null,null,null,null,null,null,null,null,"SCHEDULE XX"]
[null,{"$f":"+'Form 4EBS'!B4","v":"Expressed in  ['000s]"}]
[null,null,null,"Unconsolidated SFS",null,null,null,null,null,null,null,"EBS Valuation"]
[null,null,null,"(A)",null,"(B)",null,"(C)",null,"(D)",null,"(E)",null,{"$f":"YEAR('Insurer Information'!C3)","v":2019},null,"(G)",null,"(H)",null,"(I)"]
[null,"Currency",null,"Assets",null,"Assets with Hedging Arrangements",null,"Liabilities",null,"Liabilities with Hedging Arrangements",null,"Assets",null,"Assets with Hedging Arrangements",null,"Liabilities",null,"Liabilities with Hedging Arrangements",null,"Net Asset Value"]
[]
[null,{"$f":"'Form 4EBS'!C4","v":"United States Dollars"},null,{"$f":"Import!E6149","v":0},null,{"$f":"Import!E6165","v":0},null,{"$f":"Import!E6181","v":0},null,{"$f":"Import!E6197","v":0},null,{"$f":"Import!M6149","v":0},null,{"$f":"Import!M6165","v":0},null,{"$f":"Import!M6181","v":0},null,{"$f":"Import!M6197","v":0},null,{"$f":"L9-P9","v":0}]
[null,{"$f":"IF($B$9=\"Euro\",\"United States Dollar\",\"Euro\")","v":"Euro"},null,{"$f":"Import!E6150","v":0},null,{"$f":"Import!E6166","v":0},null,{"$f":"Import!E6182","v":0},null,{"$f":"Import!E6198","v":0},null,{"$f":"Import!M6150","v":0},null,{"$f":"Import!M6166","v":0},null,{"$f":"Import!M6182","v":0},null,{"$f":"Import!M6198","v":0},null,{"$f":"L10-P10","v":0}]
[null,{"$f":"IF($B$9=\"United Kingdom Pounds\",\"United States Dollar\",\"United Kingdom Pounds\")","v":"United Kingdom Pounds"},null,{"$f":"Import!E6151","v":0},null,{"$f":"Import!E6167","v":0},null,{"$f":"Import!E6183","v":0},null,{"$f":"Import!E6199","v":0},null,{"$f":"Import!M6151","v":0},null,{"$f":"Import!M6167","v":0},null,{"$f":"Import!M6183","v":0},null,{"$f":"Import!M6199","v":0},null,0]
[null,{"$f":"IF($B$9=\"Canada Dollars\",\"United States Dollar\",\"Canada Dollars\")","v":"Canada Dollars"},null,{"$f":"Import!E6152","v":0},null,{"$f":"Import!E6168","v":0},null,{"$f":"Import!E6184","v":0},null,{"$f":"Import!E6200","v":0},null,{"$f":"Import!M6152","v":0},null,{"$f":"Import!M6168","v":0},null,{"$f":"Import!M6184","v":0},null,{"$f":"Import!M6200","v":0},null,0]
[null,{"$f":"IF($B$9=\"Japan Yen\",\"United States Dollar\",\"Japan Yen\")","v":"Japan Yen"},null,{"$f":"Import!E6153","v":0},null,{"$f":"Import!E6169","v":0},null,{"$f":"Import!E6185","v":0},null,{"$f":"Import!E6201","v":0},null,{"$f":"Import!M6153","v":0},null,{"$f":"Import!M6169","v":0},null,{"$f":"Import!M6185","v":0},null,{"$f":"Import!M6201","v":0},null,0]
[null,"Other currency 1",null,{"$f":"Import!E6154","v":0},null,{"$f":"Import!E6170","v":0},null,{"$f":"Import!E6186","v":0},null,{"$f":"Import!E6202","v":0},null,{"$f":"Import!M6154","v":0},null,{"$f":"Import!M6170","v":0},null,{"$f":"Import!M6186","v":0},null,{"$f":"Import!M6202","v":0},null,0]
[null,"Other currency 2",null,{"$f":"Import!E6155","v":0},null,{"$f":"Import!E6171","v":0},null,{"$f":"Import!E6187","v":0},null,{"$f":"Import!E6203","v":0},null,{"$f":"Import!M6155","v":0},null,{"$f":"Import!M6171","v":0},null,{"$f":"Import!M6187","v":0},null,{"$f":"Import!M6203","v":0},null,0]
[null,"Other currency 3",null,{"$f":"Import!E6156","v":0},null,{"$f":"Import!E6172","v":0},null,{"$f":"Import!E6188","v":0},null,{"$f":"Import!E6204","v":0},null,{"$f":"Import!M6156","v":0},null,{"$f":"Import!M6172","v":0},null,{"$f":"Import!M6188","v":0},null,{"$f":"Import!M6204","v":0},null,0]
[null,"Other currency 4",null,{"$f":"Import!E6157","v":0},null,{"$f":"Import!E6173","v":0},null,{"$f":"Import!E6189","v":0},null,{"$f":"Import!E6205","v":0},null,{"$f":"Import!M6157","v":0},null,{"$f":"Import!M6173","v":0},null,{"$f":"Import!M6189","v":0},null,{"$f":"Import!M6205","v":0},null,0]
[null,"Other currency 5",null,{"$f":"Import!E6158","v":0},null,{"$f":"Import!E6174","v":0},null,{"$f":"Import!E6190","v":0},null,{"$f":"Import!E6206","v":0},null,{"$f":"Import!M6158","v":0},null,{"$f":"Import!M6174","v":0},null,{"$f":"Import!M6190","v":0},null,{"$f":"Import!M6206","v":0},null,0]
[null,"Other currency 6",null,{"$f":"Import!E6159","v":0},null,{"$f":"Import!E6175","v":0},null,{"$f":"Import!E6191","v":0},null,{"$f":"Import!E6207","v":0},null,{"$f":"Import!M6159","v":0},null,{"$f":"Import!M6175","v":0},null,{"$f":"Import!M6191","v":0},null,{"$f":"Import!M6207","v":0},null,0]
[null,"Other currency 7",null,{"$f":"Import!E6160","v":0},null,{"$f":"Import!E6176","v":0},null,{"$f":"Import!E6192","v":0},null,{"$f":"Import!E6208","v":0},null,{"$f":"Import!M6160","v":0},null,{"$f":"Import!M6176","v":0},null,{"$f":"Import!M6192","v":0},null,{"$f":"Import!M6208","v":0},null,0]
[null,"Other currency 8",null,{"$f":"Import!E6161","v":0},null,{"$f":"Import!E6177","v":0},null,{"$f":"Import!E6193","v":0},null,{"$f":"Import!E6209","v":0},null,{"$f":"Import!M6161","v":0},null,{"$f":"Import!M6177","v":0},null,{"$f":"Import!M6193","v":0},null,{"$f":"Import!M6209","v":0},null,0]
[null,"Other currency 9",null,{"$f":"Import!E6162","v":0},null,{"$f":"Import!E6178","v":0},null,{"$f":"Import!E6194","v":0},null,{"$f":"Import!E6210","v":0},null,{"$f":"Import!M6162","v":0},null,{"$f":"Import!M6178","v":0},null,{"$f":"Import!M6194","v":0},null,{"$f":"Import!M6210","v":0},null,0]
[null,"Other currency 10",null,{"$f":"Import!E6163","v":0},null,{"$f":"Import!E6179","v":0},null,{"$f":"Import!E6195","v":0},null,{"$f":"Import!E6211","v":0},null,{"$f":"Import!M6163","v":0},null,{"$f":"Import!M6179","v":0},null,{"$f":"Import!M6195","v":0},null,{"$f":"Import!M6211","v":0},null,0]
[null,"Currency Total",null,{"$f":"SUM(D9:D23)","v":0},null,{"$f":"SUM(F9:F23)","v":0},null,{"$f":"SUM(H9:H23)","v":0},null,{"$f":"SUM(J9:J23)","v":0},null,{"$f":"SUM(L9:L23)","v":0},null,{"$f":"SUM(N9:N23)","v":0},null,{"$f":"SUM(P9:P23)","v":0},null,{"$f":"SUM(R9:R23)","v":0},null,{"$f":"SUM(T9:T23)","v":0}]
[]
[null,null,null,null,null,null,null,null,null,null,null,"Form 4EBS Line 15",null,null,null,"Form 4EBS Line 39"]
[null,"Balance Sheet Total",null,null,null,null,null,null,null,null,null,{"$f":"+'Form 4EBS'!F93","v":0},null,null,null,{"$f":"+'Form 4EBS'!F180","v":0}]
[null,"% of Balance Sheet Total",null,null,null,null,null,null,null,null,null,{"$f":"IF(L27=0,0,L24/L27)","v":0},null,null,null,{"$f":"IF(P27=0,0,P24/P27)","v":0}]
[]
[null,"95% Minimum Test Met",null,null,null,null,null,null,null,null,null,{"$f":"IF(L27=0,\"Form 4EBS is Blank\",IF(L28<=95%,\"False\",IF(L28>100%,\"False\",\"True\")))","v":"Form 4EBS is Blank"},null,null,null,{"$f":"IF(P27=0,\"Form 4EBS is Blank\",IF(P28<=95%,\"False\",IF(P28>100%,\"False\",\"True\")))","v":"Form 4EBS is Blank"}]
[]
[null,null,null,null,null,null,null,null,null,null,null,"Liabilities",null,null,null,"ECR Charge",null,"Ratio",null,"Assessment*"]
[null,null,null,null,null,null,null,null,null,null,null,"Form 4EBS, Line 39",null,null,null,"Summary tab"]
[null,{"$f":"'Form 4EBS'!H6","v":"2018-12-31"},null,null,null,null,null,null,null,null,null,{"$f":"Import!M6213","v":0},null,null,null,{"$f":"Import!M6216","v":0},null,{"$f":"IF(P34=0,\"\",P34/L34)","v":""}]
[null,{"$f":"DATE(YEAR(B34)-1,MONTH(B34),DAY(B34))","v":"2017-12-31"},null,null,null,null,null,null,null,null,null,{"$f":"Import!M6214","v":0},null,null,null,{"$f":"Import!M6217","v":0},null,{"$f":"IF(P35=0,\"\",P35/L35)","v":""}]
[null,{"$f":"DATE(YEAR(B35)-1,MONTH(B35),DAY(B35))","v":"2016-12-31"},null,null,null,null,null,null,null,null,null,{"$f":"Import!M6215","v":0},null,null,null,{"$f":"Import!M6218","v":0},null,{"$f":"IF(P36=0,\"\",P36/L36)","v":""},null,{"$f":"IF(SUM(R34:R36)=0,IF(P34=0,0%,R34),MAX(R34,AVERAGE(R34:R36)))","v":0}]
[]
[null,"*If there are no amounts for previous years, enter the results from the current year without taking currency risk into account into the prior year"]
[]
[]
[]
[]
[]
[]
[]
[]
[]
[]
[]
[]
[]
[]
[]
[]
[]
[]
[]
[]
[]
[]
[]
[]
[]
[]
[null,null,null,null,null,null,null,null,null,null,null,"A or better"]
[null,null,null,null,null,null,null,null,null,null,null,"BBB or equivalent"]
[null,null,null,null,null,null,null,null,null,null,null,"B or better"]
[null,null,null,null,null,null,null,null,null,null,null,"unrated/other"]

{"sheet":"Schedule XXA","index":66,"n_rows":77,"n_cols":34,"rows_kept":77,"cut":false,"hidden":false,"merged":[[2,3,3,3],[4,3,4,33],[6,5,6,7],[6,9,6,11],[6,23,6,25],[6,27,6,29],[5,3,5,14],[5,21,5,33]]}
[null,"SCHEDULE OF CURRENCY RISK",null,null,null,null,null,null,null,null,null,null,null,null,null,null,null,null,null,null,null,null,null,null,null,null,null,null,null,null,null,null,null,{"$f":"HYPERLINK(\"#'Index'!A1\",\"Return to Index\")","v":"Return to Index"}]
[null,{"$f":"+'Insurer Information'!C7","v":"Enter Company Name"}]
[null,{"$f":"+'Insurer Information'!C3","v":"2019-12-31"},null,null,null,null,null,null,null,null,null,null,null,null,null,null,null,null,null,null,null,null,null,null,null,null,null,null,null,null,null,null,null,"SCHEDULE XXA"]
[null,{"$f":"+'Form 4EBS'!B4","v":"Expressed in  ['000s]"}]
[null,null,null,"EBS Valuation"]
[null,null,null,"MARKET VALUE BEFORE SHOCK",null,null,null,null,null,null,null,null,null,null,null,null,null,null,null,null,null,"MARKET VALUE AFTER SHOCK"]
[null,null,null,null,null,"Long Exposures",null,null,null,"Short Exposures",null,null,null,null,null,null,null,null,null,null,null,null,null,"Long Exposures",null,null,null,"Short Exposures"]
[null,"Currency",null,"Assets - Excluding currency- derivatives",null,"Currency Derivatives Qualifying as held for risk-mitigation purposes",null,"Currency Derivatives Not Qualifying as held for risk-mitigation purposes",null,"Currency Derivatives Qualifying as held for risk-mitigation purposes",null,"Currency Derivatives Not Qualifying as held for risk-mitigation purposes",null,"Best Estimate Liabilities without Management Actions",null,"Proxy BSCR",null,"Surplus Assets",null,"Shock",null,"Assets - Excluding currency- derivatives",null,"Currency Derivatives Qualifying as held for risk-mitigation purposes",null,"Currency Derivatives Not Qualifying as held for risk-mitigation purposes",null,"Currency Derivatives Qualifying as held for risk-mitigation purposes",null,"Currency Derivatives Not Qualifying as held for risk-mitigation purposes",null,"Best Estimate Liabilities without Management Actions",null,"Best Estimate Liabilities with Management Actions"]
[null,null,null,"(A)",null,"(B)",null,"(C)",null,"(D)",null,"(E)",null,"(F)",null,null,null,null,null,null,null,"(G)",null,"(H)",null,"(I)",null,"(J)",null,"(K)",null,"(L)",null,"(M)"]
[null,{"$f":"'Form 4EBS'!C4","v":"United States Dollars"},null,{"$f":"Import!M8236","v":0},null,{"$f":"Import!M8259","v":0},null,{"$f":"Import!M8282","v":0},null,{"$f":"Import!M8305","v":0},null,{"$f":"Import!M8328","v":0},null,{"$f":"Import!M8351","v":0},null,{"$f":"$P$45*N10","v":0},null,{"$f":"D10+F10+H10+J10+L10-N10-P10","v":0},null,0,null,{"$f":"IF(OR(Import!M8374=0,Import!M8374=\"\"),(1+T10)*D10,Import!M8374)","v":0},null,{"$f":"Import!M8397","v":0},null,{"$f":"Import!M8420","v":0},null,{"$f":"Import!M8443","v":0},null,{"$f":"Import!M8466","v":0},null,{"$f":"IF(OR(Import!M8489=0,Import!M8489=\"\"),(1+T10)*N10,Import!M8489)","v":0},null,{"$f":"IF(OR(Import!M8512=0,Import!M8512=\"\"),AF10,Import!M8512)","v":0}]
[null,{"$f":"IF($B$10=\"Bermuda Dollars\",\"United States Dollar\",\"Bermuda Dollars\")","v":"Bermuda Dollars"},null,{"$f":"Import!M8237","v":0},null,{"$f":"Import!M8260","v":0},null,{"$f":"Import!M8283","v":0},null,{"$f":"Import!M8306","v":0},null,{"$f":"Import!M8329","v":0},null,{"$f":"Import!M8352","v":0},null,{"$f":"$P$45*N11","v":0},null,{"$f":"D11+F11+H11+J11+L11-N11-P11","v":0},null,{"$f":"IF($B$10=\"Bermuda Dollars\",0%,IF($B$10=\"United States Dollars\",0%,IF((D11+F11+H11+J11+L11)>(N11+P11),0%,25%)))","v":0},null,{"$f":"IF(OR(Import!M8375=0,Import!M8375=\"\"),(1+T11)*D11,Import!M8375)","v":0},null,{"$f":"Import!M8398","v":0},null,{"$f":"Import!M8421","v":0},null,{"$f":"Import!M8444","v":0},null,{"$f":"Import!M8467","v":0},null,{"$f":"IF(OR(Import!M8490=0,Import!M8490=\"\"),(1+T11)*N11,Import!M8490)","v":0},null,{"$f":"IF(OR(Import!M8513=0,Import!M8513=\"\"),AF11,Import!M8513)","v":0}]
[null,{"$f":"IF($B$10=\"Qatar Riyals\",\"United States Dollar\",\"Qatar Riyals\")","v":"Qatar Riyals"},null,{"$f":"Import!M8238","v":0},null,{"$f":"Import!M8261","v":0},null,{"$f":"Import!M8284","v":0},null,{"$f":"Import!M8307","v":0},null,{"$f":"Import!M8330","v":0},null,{"$f":"Import!M8353","v":0},null,0,null,0,null,{"$f":"IF($B$10=\"Qatar Riyals\",IF((D12+F12+H12+J12+L12)>(N12+P12),0%,5%),IF($B$10=\"United States Dollars\",IF((D12+F12+H12+J12+L12)>(N12+P12),0%,5%),IF((D12+F12+H12+J12+L12)>(N12+P12),0%,25%)))","v":0.05},null,{"$f":"IF(OR(Import!M8376=0,Import!M8376=\"\"),(1+T12)*D12,Import!M8376)","v":0},null,{"$f":"Import!M8399","v":0},null,{"$f":"Import!M8422","v":0},null,{"$f":"Import!M8445","v":0},null,{"$f":"Import!M8468","v":0},null,{"$f":"IF(OR(Import!M8491=0,Import!M8491=\"\"),(1+T12)*N12,Import!M8491)","v":0},null,{"$f":"IF(OR(Import!M8514=0,Import!M8514=\"\"),AF12,Import!M8514)","v":0}]
[null,{"$f":"IF($B$10=\"Hong Kong Dollars\",\"United States Dollar\",\"Hong Kong Dollars\")","v":"Hong Kong Dollars"},null,{"$f":"Import!M8239","v":0},null,{"$f":"Import!M8262","v":0},null,{"$f":"Import!M8285","v":0},null,{"$f":"Import!M8308","v":0},null,{"$f":"Import!M8331","v":0},null,{"$f":"Import!M8354","v":0},null,0,null,0,null,{"$f":"IF($B$10=\"Hong Kong Dollars\",IF((D13+F13+H13+J13+L13)>(N13+P13),0%,1%),IF($B$10=\"United States Dollars\",IF((D13+F13+H13+J13+L13)>(N13+P13),0%,1%),IF((D13+F13+H13+J13+L13)>(N13+P13),0%,25%)))","v":0.01},null,{"$f":"IF(OR(Import!M8377=0,Import!M8377=\"\"),(1+T13)*D13,Import!M8377)","v":0},null,{"$f":"Import!M8400","v":0},null,{"$f":"Import!M8423","v":0},null,{"$f":"Import!M8446","v":0},null,{"$f":"Import!M8469","v":0},null,{"$f":"IF(OR(Import!M8492=0,Import!M8492=\"\"),(1+T13)*N13,Import!M8492)","v":0},null,{"$f":"IF(OR(Import!M8515=0,Import!M8515=\"\"),AF13,Import!M8515)","v":0}]
[null,{"$f":"IF($B$10=\"Euro\",\"United States Dollar\",\"Euro\")","v":"Euro"},null,{"$f":"Import!M8240","v":0},null,{"$f":"Import!M8263","v":0},null,{"$f":"Import!M8286","v":0},null,{"$f":"Import!M8309","v":0},null,{"$f":"Import!M8332","v":0},null,{"$f":"Import!M8355","v":0},null,0,null,0,null,{"$f":"IF($B$10=\"Denmark Kroner\",IF((D14+F14+H14+J14+L14)>(N14+P14),0%,0.39%),IF($B$10=\"Bulgaria Leva\",IF((D14+F14+H14+J14+L14)>(N14+P14),0%,1.81%),IF($B$10=\"West African CFA Francs\",IF((D14+F14+H14+J14+L14)>(N14+P14),0%,2.18%),IF($B$10=\"Central African CFA Francs\",IF((D14+F14+H14+J14+L14)>(N14+P14),0%,1.96%),IF($B$10=\"Comorian Francs\",IF((D14+F14+H14+J14+L14)>(N14+P14),0%,2%),IF((D14+F14+H14+J14+L14)>(N14+P14),0%,25%))))))","v":0.25},null,{"$f":"IF(OR(Import!M8378=0,Import!M8378=\"\"),(1+T14)*D14,Import!M8378)","v":0},null,{"$f":"Import!M8401","v":0},null,{"$f":"Import!M8424","v":0},null,{"$f":"Import!M8447","v":0},null,{"$f":"Import!M8470","v":0},null,{"$f":"IF(OR(Import!M8493=0,Import!M8493=\"\"),(1+T14)*N14,Import!M8493)","v":0},null,{"$f":"IF(OR(Import!M8516=0,Import!M8516=\"\"),AF14,Import!M8516)","v":0}]
[null,{"$f":"IF($B$10=\"Denmark Kroner\",\"United States Dollar\",\"Denmark Kroner\")","v":"Denmark Kroner"},null,{"$f":"Import!M8241","v":0},null,{"$f":"Import!M8264","v":0},null,{"$f":"Import!M8287","v":0},null,{"$f":"Import!M8310","v":0},null,{"$f":"Import!M8333","v":0},null,{"$f":"Import!M8356","v":0},null,0,null,0,null,{"$f":"IF($B$10=\"Euro\",IF((D15+F15+H15+J15+L15)>(N15+P15),0%,0.39%),IF((D15+F15+H15+J15+L15)>(N15+P15),0%,25%))","v":0.25},null,{"$f":"IF(OR(Import!M8379=0,Import!M8379=\"\"),(1+T15)*D15,Import!M8379)","v":0},null,{"$f":"Import!M8402","v":0},null,{"$f":"Import!M8425","v":0},null,{"$f":"Import!M8448","v":0},null,{"$f":"Import!M8471","v":0},null,{"$f":"IF(OR(Import!M8494=0,Import!M8494=\"\"),(1+T15)*N15,Import!M8494)","v":0},null,{"$f":"IF(OR(Import!M8517=0,Import!M8517=\"\"),AF15,Import!M8517)","v":0}]
[null,{"$f":"IF($B$10=\"Bulgaria Leva\",\"United States Dollar\",\"Bulgaria Leva\")","v":"Bulgaria Leva"},null,{"$f":"Import!M8242","v":0},null,{"$f":"Import!M8265","v":0},null,{"$f":"Import!M8288","v":0},null,{"$f":"Import!M8311","v":0},null,{"$f":"Import!M8334","v":0},null,{"$f":"Import!M8357","v":0},null,0,null,0,null,{"$f":"IF($B$10=\"Euro\",IF((D16+F16+H16+J16+L16)>(N16+P16),0%,1.81%),IF((D16+F16+H16+J16+L16)>(N16+P16),0%,25%))","v":0.25},null,{"$f":"IF(OR(Import!M8380=0,Import!M8380=\"\"),(1+T16)*D16,Import!M8380)","v":0},null,{"$f":"Import!M8403","v":0},null,{"$f":"Import!M8426","v":0},null,{"$f":"Import!M8449","v":0},null,{"$f":"Import!M8472","v":0},null,{"$f":"IF(OR(Import!M8495=0,Import!M8495=\"\"),(1+T16)*N16,Import!M8495)","v":0},null,{"$f":"IF(OR(Import!M8518=0,Import!M8518=\"\"),AF16,Import!M8518)","v":0}]
[null,{"$f":"IF($B$10=\"West African CFA Francs\",\"United States Dollar\",\"West African CFA Francs\")","v":"West African CFA Francs"},null,{"$f":"Import!M8243","v":0},null,{"$f":"Import!M8266","v":0},null,{"$f":"Import!M8289","v":0},null,{"$f":"Import!M8312","v":0},null,{"$f":"Import!M8335","v":0},null,{"$f":"Import!M8358","v":0},null,0,null,0,null,{"$f":"IF($B$10=\"Euro\",IF((D17+F17+H17+J17+L17)>(N17+P17),0%,2.18%),IF((D17+F17+H17+J17+L17)>(N17+P17),0%,25%))","v":0.25},null,{"$f":"IF(OR(Import!M8381=0,Import!M8381=\"\"),(1+T17)*D17,Import!M8381)","v":0},null,{"$f":"Import!M8404","v":0},null,{"$f":"Import!M8427","v":0},null,{"$f":"Import!M8450","v":0},null,{"$f":"Import!M8473","v":0},null,{"$f":"IF(OR(Import!M8496=0,Import!M8496=\"\"),(1+T17)*N17,Import!M8496)","v":0},null,{"$f":"IF(OR(Import!M8519=0,Import!M8519=\"\"),AF17,Import!M8519)","v":0}]
[null,{"$f":"IF($B$10=\"Central African CFA Francs\",\"United States Dollar\",\"Central African CFA Francs\")","v":"Central African CFA Francs"},null,{"$f":"Import!M8244","v":0},null,{"$f":"Import!M8267","v":0},null,{"$f":"Import!M8290","v":0},null,{"$f":"Import!M8313","v":0},null,{"$f":"Import!M8336","v":0},null,{"$f":"Import!M8359","v":0},null,0,null,0,null,{"$f":"IF($B$10=\"Euro\",IF((D18+F18+H18+J18+L18)>(N18+P18),0%,1.96%),IF((D18+F18+H18+J18+L18)>(N18+P18),0%,25%))","v":0.25},null,{"$f":"IF(OR(Import!M8382=0,Import!M8382=\"\"),(1+T18)*D18,Import!M8382)","v":0},null,{"$f":"Import!M8405","v":0},null,{"$f":"Import!M8428","v":0},null,{"$f":"Import!M8451","v":0},null,{"$f":"Import!M8474","v":0},null,{"$f":"IF(OR(Import!M8497=0,Import!M8497=\"\"),(1+T18)*N18,Import!M8497)","v":0},null,{"$f":"IF(OR(Import!M8520=0,Import!M8520=\"\"),AF18,Import!M8520)","v":0}]
[null,{"$f":"IF($B$10=\"Comorian Francs\",\"United States Dollar\",\"Comorian Francs\")","v":"Comorian Francs"},null,{"$f":"Import!M8245","v":0},null,{"$f":"Import!M8268","v":0},null,{"$f":"Import!M8291","v":0},null,{"$f":"Import!M8314","v":0},null,{"$f":"Import!M8337","v":0},null,{"$f":"Import!M8360","v":0},null,0,null,0,null,{"$f":"IF($B$10=\"Euro\",IF((D19+F19+H19+J19+L19)>(N19+P19),0%,2%),IF((D19+F19+H19+J19+L19)>(N19+P19),0%,25%))","v":0.25},null,{"$f":"IF(OR(Import!M8383=0,Import!M8383=\"\"),(1+T19)*D19,Import!M8383)","v":0},null,{"$f":"Import!M8406","v":0},null,{"$f":"Import!M8429","v":0},null,{"$f":"Import!M8452","v":0},null,{"$f":"Import!M8475","v":0},null,{"$f":"IF(OR(Import!M8498=0,Import!M8498=\"\"),(1+T19)*N19,Import!M8498)","v":0},null,{"$f":"IF(OR(Import!M8521=0,Import!M8521=\"\"),AF19,Import!M8521)","v":0}]
[null,{"$f":"IF($B$10=\"United Kingdom Pounds\",\"United States Dollar\",\"United Kingdom Pounds\")","v":"United Kingdom Pounds"},null,{"$f":"Import!M8246","v":0},null,{"$f":"Import!M8269","v":0},null,{"$f":"Import!M8292","v":0},null,{"$f":"Import!M8315","v":0},null,{"$f":"Import!M8338","v":0},null,{"$f":"Import!M8361","v":0},null,0,null,0,null,{"$f":"IF((D20+F20+H20+J20+L20)>(N20+P20),0%,25%)","v":0.25},null,{"$f":"IF(OR(Import!M8384=0,Import!M8384=\"\"),(1+T20)*D20,Import!M8384)","v":0},null,{"$f":"Import!M8407","v":0},null,{"$f":"Import!M8430","v":0},null,{"$f":"Import!M8453","v":0},null,{"$f":"Import!M8476","v":0},null,{"$f":"IF(OR(Import!M8499=0,Import!M8499=\"\"),(1+T20)*N20,Import!M8499)","v":0},null,{"$f":"IF(OR(Import!M8522=0,Import!M8522=\"\"),AF20,Import!M8522)","v":0}]
[null,{"$f":"IF($B$10=\"Canada Dollars\",\"United States Dollar\",\"Canada Dollars\")","v":"Canada Dollars"},null,{"$f":"Import!M8247","v":0},null,{"$f":"Import!M8270","v":0},null,{"$f":"Import!M8293","v":0},null,{"$f":"Import!M8316","v":0},null,{"$f":"Import!M8339","v":0},null,{"$f":"Import!M8362","v":0},null,0,null,0,null,{"$f":"IF((D21+F21+H21+J21+L21)>(N21+P21),0%,25%)","v":0.25},null,{"$f":"IF(OR(Import!M8385=0,Import!M8385=\"\"),(1+T21)*D21,Import!M8385)","v":0},null,{"$f":"Import!M8408","v":0},null,{"$f":"Import!M8431","v":0},null,{"$f":"Import!M8454","v":0},null,{"$f":"Import!M8477","v":0},null,{"$f":"IF(OR(Import!M8500=0,Import!M8500=\"\"),(1+T21)*N21,Import!M8500)","v":0},null,{"$f":"IF(OR(Import!M8523=0,Import!M8523=\"\"),AF21,Import!M8523)","v":0}]
[null,{"$f":"IF($B$10=\"Japan Yen\",\"United States Dollar\",\"Japan Yen\")","v":"Japan Yen"},null,{"$f":"Import!M8248","v":0},null,{"$f":"Import!M8271","v":0},null,{"$f":"Import!M8294","v":0},null,{"$f":"Import!M8317","v":0},null,{"$f":"Import!M8340","v":0},null,{"$f":"Import!M8363","v":0},null,0,null,0,null,{"$f":"IF((D22+F22+H22+J22+L22)>(N22+P22),0%,25%)","v":0.25},null,{"$f":"IF(OR(Import!M8386=0,Import!M8386=\"\"),(1+T22)*D22,Import!M8386)","v":0},null,{"$f":"Import!M8409","v":0},null,{"$f":"Import!M8432","v":0},null,{"$f":"Import!M8455","v":0},null,{"$f":"Import!M8478","v":0},null,{"$f":"IF(OR(Import!M8501=0,Import!M8501=\"\"),(1+T22)*N22,Import!M8501)","v":0},null,{"$f":"IF(OR(Import!M8524=0,Import!M8524=\"\"),AF22,Import!M8524)","v":0}]
[null,"Other currency 1",null,{"$f":"Import!M8249","v":0},null,{"$f":"Import!M8272","v":0},null,{"$f":"Import!M8295","v":0},null,{"$f":"Import!M8318","v":0},null,{"$f":"Import!M8341","v":0},null,{"$f":"Import!M8364","v":0},null,0,null,0,null,0.25,null,{"$f":"IF(OR(Import!M8387=0,Import!M8387=\"\"),(1+T23)*D23,Import!M8387)","v":0},null,{"$f":"Import!M8410","v":0},null,{"$f":"Import!M8433","v":0},null,{"$f":"Import!M8456","v":0},null,{"$f":"Import!M8479","v":0},null,{"$f":"IF(OR(Import!M8502=0,Import!M8502=\"\"),(1+T23)*N23,Import!M8502)","v":0},null,{"$f":"IF(OR(Import!M8525=0,Import!M8525=\"\"),AF23,Import!M8525)","v":0}]
[null,"Other currency 2",null,{"$f":"Import!M8250","v":0},null,{"$f":"Import!M8273","v":0},null,{"$f":"Import!M8296","v":0},null,{"$f":"Import!M8319","v":0},null,{"$f":"Import!M8342","v":0},null,{"$f":"Import!M8365","v":0},null,0,null,0,null,0.25,null,{"$f":"IF(OR(Import!M8388=0,Import!M8388=\"\"),(1+T24)*D24,Import!M8388)","v":0},null,{"$f":"Import!M8411","v":0},null,{"$f":"Import!M8434","v":0},null,{"$f":"Import!M8457","v":0},null,{"$f":"Import!M8480","v":0},null,{"$f":"IF(OR(Import!M8503=0,Import!M8503=\"\"),(1+T24)*N24,Import!M8503)","v":0},null,{"$f":"IF(OR(Import!M8526=0,Import!M8526=\"\"),AF24,Import!M8526)","v":0}]
[null,"Other currency 3",null,{"$f":"Import!M8251","v":0},null,{"$f":"Import!M8274","v":0},null,{"$f":"Import!M8297","v":0},null,{"$f":"Import!M8320","v":0},null,{"$f":"Import!M8343","v":0},null,{"$f":"Import!M8366","v":0},null,0,null,0,null,0.25,null,{"$f":"IF(OR(Import!M8389=0,Import!M8389=\"\"),(1+T25)*D25,Import!M8389)","v":0},null,{"$f":"Import!M8412","v":0},null,{"$f":"Import!M8435","v":0},null,{"$f":"Import!M8458","v":0},null,{"$f":"Import!M8481","v":0},null,{"$f":"IF(OR(Import!M8504=0,Import!M8504=\"\"),(1+T25)*N25,Import!M8504)","v":0},null,{"$f":"IF(OR(Import!M8527=0,Import!M8527=\"\"),AF25,Import!M8527)","v":0}]
[null,"Other currency 4",null,{"$f":"Import!M8252","v":0},null,{"$f":"Import!M8275","v":0},null,{"$f":"Import!M8298","v":0},null,{"$f":"Import!M8321","v":0},null,{"$f":"Import!M8344","v":0},null,{"$f":"Import!M8367","v":0},null,0,null,0,null,0.25,null,{"$f":"IF(OR(Import!M8390=0,Import!M8390=\"\"),(1+T26)*D26,Import!M8390)","v":0},null,{"$f":"Import!M8413","v":0},null,{"$f":"Import!M8436","v":0},null,{"$f":"Import!M8459","v":0},null,{"$f":"Import!M8482","v":0},null,{"$f":"IF(OR(Import!M8505=0,Import!M8505=\"\"),(1+T26)*N26,Import!M8505)","v":0},null,{"$f":"IF(OR(Import!M8528=0,Import!M8528=\"\"),AF26,Import!M8528)","v":0}]
[null,"Other currency 5",null,{"$f":"Import!M8253","v":0},null,{"$f":"Import!M8276","v":0},null,{"$f":"Import!M8299","v":0},null,{"$f":"Import!M8322","v":0},null,{"$f":"Import!M8345","v":0},null,{"$f":"Import!M8368","v":0},null,0,null,0,null,0.25,null,{"$f":"IF(OR(Import!M8391=0,Import!M8391=\"\"),(1+T27)*D27,Import!M8391)","v":0},null,{"$f":"Import!M8414","v":0},null,{"$f":"Import!M8437","v":0},null,{"$f":"Import!M8460","v":0},null,{"$f":"Import!M8483","v":0},null,{"$f":"IF(OR(Import!M8506=0,Import!M8506=\"\"),(1+T27)*N27,Import!M8506)","v":0},null,{"$f":"IF(OR(Import!M8529=0,Import!M8529=\"\"),AF27,Import!M8529)","v":0}]
[null,"Other currency 6",null,{"$f":"Import!M8254","v":0},null,{"$f":"Import!M8277","v":0},null,{"$f":"Import!M8300","v":0},null,{"$f":"Import!M8323","v":0},null,{"$f":"Import!M8346","v":0},null,{"$f":"Import!M8369","v":0},null,0,null,0,null,0.25,null,{"$f":"IF(OR(Import!M8392=0,Import!M8392=\"\"),(1+T28)*D28,Import!M8392)","v":0},null,{"$f":"Import!M8415","v":0},null,{"$f":"Import!M8438","v":0},null,{"$f":"Import!M8461","v":0},null,{"$f":"Import!M8484","v":0},null,{"$f":"IF(OR(Import!M8507=0,Import!M8507=\"\"),(1+T28)*N28,Import!M8507)","v":0},null,{"$f":"IF(OR(Import!M8530=0,Import!M8530=\"\"),AF28,Import!M8530)","v":0}]
[null,"Other currency 7",null,{"$f":"Import!M8255","v":0},null,{"$f":"Import!M8278","v":0},null,{"$f":"Import!M8301","v":0},null,{"$f":"Import!M8324","v":0},null,{"$f":"Import!M8347","v":0},null,{"$f":"Import!M8370","v":0},null,0,null,0,null,0.25,null,{"$f":"IF(OR(Import!M8393=0,Import!M8393=\"\"),(1+T29)*D29,Import!M8393)","v":0},null,{"$f":"Import!M8416","v":0},null,{"$f":"Import!M8439","v":0},null,{"$f":"Import!M8462","v":0},null,{"$f":"Import!M8485","v":0},null,{"$f":"IF(OR(Import!M8508=0,Import!M8508=\"\"),(1+T29)*N29,Import!M8508)","v":0},null,{"$f":"IF(OR(Import!M8531=0,Import!M8531=\"\"),AF29,Import!M8531)","v":0}]
[null,"Other currency 8",null,{"$f":"Import!M8256","v":0},null,{"$f":"Import!M8279","v":0},null,{"$f":"Import!M8302","v":0},null,{"$f":"Import!M8325","v":0},null,{"$f":"Import!M8348","v":0},null,{"$f":"Import!M8371","v":0},null,0,null,0,null,0.25,null,{"$f":"IF(OR(Import!M8394=0,Import!M8394=\"\"),(1+T30)*D30,Import!M8394)","v":0},null,{"$f":"Import!M8417","v":0},null,{"$f":"Import!M8440","v":0},null,{"$f":"Import!M8463","v":0},null,{"$f":"Import!M8486","v":0},null,{"$f":"IF(OR(Import!M8509=0,Import!M8509=\"\"),(1+T30)*N30,Import!M8509)","v":0},null,{"$f":"IF(OR(Import!M8532=0,Import!M8532=\"\"),AF30,Import!M8532)","v":0}]
[null,"Other currency 9",null,{"$f":"Import!M8257","v":0},null,{"$f":"Import!M8280","v":0},null,{"$f":"Import!M8303","v":0},null,{"$f":"Import!M8326","v":0},null,{"$f":"Import!M8349","v":0},null,{"$f":"Import!M8372","v":0},null,0,null,0,null,0.25,null,{"$f":"IF(OR(Import!M8395=0,Import!M8395=\"\"),(1+T31)*D31,Import!M8395)","v":0},null,{"$f":"Import!M8418","v":0},null,{"$f":"Import!M8441","v":0},null,{"$f":"Import!M8464","v":0},null,{"$f":"Import!M8487","v":0},null,{"$f":"IF(OR(Import!M8510=0,Import!M8510=\"\"),(1+T31)*N31,Import!M8510)","v":0},null,{"$f":"IF(OR(Import!M8533=0,Import!M8533=\"\"),AF31,Import!M8533)","v":0}]
[null,"Other currency 10",null,{"$f":"Import!M8258","v":0},null,{"$f":"Import!M8281","v":0},null,{"$f":"Import!M8304","v":0},null,{"$f":"Import!M8327","v":0},null,{"$f":"Import!M8350","v":0},null,{"$f":"Import!M8373","v":0},null,0,null,0,null,0.25,null,{"$f":"IF(OR(Import!M8396=0,Import!M8396=\"\"),(1+T32)*D32,Import!M8396)","v":0},null,{"$f":"Import!M8419","v":0},null,{"$f":"Import!M8442","v":0},null,{"$f":"Import!M8465","v":0},null,{"$f":"Import!M8488","v":0},null,{"$f":"IF(OR(Import!M8511=0,Import!M8511=\"\"),(1+T32)*N32,Import!M8511)","v":0},null,{"$f":"IF(OR(Import!M8534=0,Import!M8534=\"\"),AF32,Import!M8534)","v":0}]
[null,"Currency Total",null,{"$f":"SUM(D10:D32)","v":0},null,{"$f":"SUM(F10:F32)","v":0},null,{"$f":"SUM(H10:H32)","v":0},null,{"$f":"SUM(J10:J32)","v":0},null,{"$f":"SUM(L10:L32)","v":0},null,{"$f":"SUM(N10:N32)","v":0},null,null,null,null,null,null,null,{"$f":"SUM(V10:V32)","v":0},null,{"$f":"SUM(X10:X32)","v":0},null,{"$f":"SUM(Z10:Z32)","v":0},null,{"$f":"SUM(AB10:AB32)","v":0},null,{"$f":"SUM(AD10:AD32)","v":0},null,{"$f":"SUM(AF10:AF32)","v":0},null,{"$f":"SUM(AH10:AH32)","v":0}]
[]
[null,null,null,"Form 4EBS Line 15",null,null,null,null,null,null,null,null,null,"Form 4EBS Line 39"]
[null,"Balance Sheet Total",null,{"$f":"+'Form 4EBS'!F93","v":0},null,null,null,null,null,null,null,null,null,{"$f":"+'Form 4EBS'!F180","v":0}]
[null,"% of Balance Sheet Total",null,{"$f":"IF(D36=0,0,(SUM(D33:L33))/D36)","v":0},null,null,null,null,null,null,null,null,null,{"$f":"IF(N36=0,0,N33/N36)","v":0}]
[]
[null,"95% Minimum Test Met",null,{"$f":"IF(D36=0,\"Form 4EBS is Blank\",IF(D37<=95%,\"False\",IF(D37>100%,\"False\",\"True\")))","v":"Form 4EBS is Blank"},null,null,null,null,null,null,null,null,null,{"$f":"IF(N36=0,\"Form 4EBS is Blank\",IF(N37<=95%,\"False\",IF(N37>100%,\"False\",\"True\")))","v":"Form 4EBS is Blank"}]
[]
[null,null,null,"Liabilities",null,null,null,"ECR Charge",null,null,null,null,null,"Ratio",null,"Assessment*"]
[null,null,null,"Form 4EBS, Line 39",null,null,null,"Summary tab"]
[null,{"$f":"'Form 4EBS'!H6","v":"2018-12-31"},null,{"$f":"Import!M8535","v":0},null,null,null,{"$f":"Import!M8538","v":0},null,null,null,null,null,{"$f":"IF(H43=0,\"\",H43/D43)","v":""}]
[null,{"$f":"DATE(YEAR(B43)-1,MONTH(B43),DAY(B43))","v":"2017-12-31"},null,{"$f":"Import!M8536","v":0},null,null,null,{"$f":"Import!M8539","v":0},null,null,null,null,null,{"$f":"IF(H44=0,\"\",H44/D44)","v":""}]
[null,{"$f":"DATE(YEAR(B44)-1,MONTH(B44),DAY(B44))","v":"2016-12-31"},null,{"$f":"Import!M8537","v":0},null,null,null,{"$f":"Import!M8540","v":0},null,null,null,null,null,{"$f":"IF(H45=0,\"\",H45/D45)","v":""},null,{"$f":"IF(SUM(N43:N45)=0,IF(H43=0,0%,N43),MAX(N43,AVERAGE(N43:N45)))","v":0}]
[]
[null,"*If there are no amounts for previous years, enter the results from the current year without taking currency risk into account into the prior year"]
[]
[]
[]
[]
[]
[]
[]
[]
[]
[]
[]
[]
[]
[]
[]
[]
[]
[]
[]
[]
[]
[]
[]
[]
[]
[]
[null,null,null,"A or better"]
[null,null,null,"BBB or equivalent"]
[null,null,null,"B or better"]
[null,null,null,"unrated/other"]

{"sheet":"Schedule XXI","index":67,"n_rows":107,"n_cols":45,"rows_kept":107,"cut":false,"hidden":false,"merged":[[4,9,4,12],[2,1,2,2],[4,4,4,7],[61,9,62,12]]}
[null,null,"SCHEDULE OF CONCENTRATION RISK",null,null,null,null,null,null,null,null,null,{"$f":"HYPERLINK(\"#'Index'!A1\",\"Return to Index\")","v":"Return to Index"}]
[null,{"$f":"+'Insurer Information'!C7","v":"Enter Company Name"}]
[null,{"$f":"+'Insurer Information'!C3","v":"2019-12-31"},null,null,null,null,null,null,null,{"$f":"Import!E6220","v":0},null,"Enter # of Rows","SCHEDULE XXI"]
[null,{"$f":"+'Form 4EBS'!B4","v":"Expressed in  ['000s]"}]
[null,null,null,null,"Unconsolidated SFS",null,null,null,null,"EBS Valuation"]
[null,null,null,null,"(A)","(B)","(C)","(D)",null,"(E)","(F)","(G)","(H)",{"$f":"YEAR('Insurer Information'!C3)","v":2019}]
[null,null,"Name of Exposure",null,"Asset Type","Bond / Mortgage Loan Type","BSCR Rating","Asset Value",null,"Asset Type","Bond / Mortgage Loan Type","BSCR Rating","Asset Value"]
[null,1,{"$f":"Import!E6221","v":0},null,{"$f":"Import!E6246","v":"Select"},{"$f":"Import!E6271","v":"Select"},{"$f":"Import!E6296","v":"Select"},{"$f":"Import!E6321","v":0},null,{"$f":"Import!M6246","v":"Select"},{"$f":"Import!M6271","v":"Select"},{"$f":"Import!M6296","v":"Select"},{"$f":"Import!M6321","v":0},null,null,null,null,null,null,null,null,null,null,null,null,null,null,null,null,null,"",null,"bma_SecurityUSGovernmentAmountPerForm1ALines2bAnd3b",null,"bma_SecurityUSGovernmentFaceValue",null,"bma_SecurityUSGovernmentFairValue",null,"bma_SecurityUSGovernmentAverageYTM",null,"bma_SecurityUSGovernmentAverageRating",null,"bma_SecurityUSGovernmentEffectiveDuration",null,"bma_SecurityUSGovernmentEffectiveConvexity"]
[null,{"$f":"B8+1","v":2},{"$f":"Import!E6222","v":0},null,{"$f":"Import!E6247","v":"Select"},{"$f":"Import!E6272","v":"Select"},{"$f":"Import!E6297","v":"Select"},{"$f":"Import!E6322","v":0},null,{"$f":"Import!M6247","v":"Select"},{"$f":"Import!M6272","v":"Select"},{"$f":"Import!M6297","v":"Select"},{"$f":"Import!M6322","v":0},null,null,null,null,null,null,null,null,null,null,null,null,null,null,null,null,null,"",null,"bma_SecurityNonUSGovernmentAmountPerForm1ALines2bAnd3b",null,"bma_SecurityNonUSGovernmentFaceValue",null,"bma_SecurityNonUSGovernmentFairValue",null,"bma_SecurityNonUSGovernmentAverageYTM",null,"bma_SecurityNonUSGovernmentAverageRating",null,"bma_SecurityNonUSGovernmentEffectiveDuration",null,"bma_SecurityNonUSGovernmentEffectiveConvexity"]
[null,{"$f":"B9+1","v":3},{"$f":"Import!E6223","v":0},null,{"$f":"Import!E6248","v":"Select"},{"$f":"Import!E6273","v":"Select"},{"$f":"Import!E6298","v":"Select"},{"$f":"Import!E6323","v":0},null,{"$f":"Import!M6248","v":"Select"},{"$f":"Import!M6273","v":"Select"},{"$f":"Import!M6298","v":"Select"},{"$f":"Import!M6323","v":0},null,null,null,null,null,null,null,null,null,null,null,null,null,null,null,null,null,"",null,"bma_SecurityUSGovernmentAgencyMortgageBackedSecuritiesAmountPerForm1ALines2bAnd3b",null,"bma_SecurityUSGovernmentAgencyMortgageBackedSecuritiesFaceValue",null,"bma_SecurityUSGovernmentAgencyMortgageBackedSecuritiesFairValue",null,"bma_SecurityUSGovernmentAgencyMortgageBackedSecuritiesAverageYTM",null,"bma_SecurityUSGovernmentAgencyMortgageBackedSecuritiesAverageRating",null,"bma_SecurityUSGovernmentAgencyMortgageBackedSecuritiesEffectiveDuration",null,"bma_SecurityUSGovernmentAgencyMortgageBackedSecuritiesEffectiveConvexity"]
[null,4,{"$f":"Import!E6224","v":0},null,{"$f":"Import!E6249","v":"Select"},{"$f":"Import!E6274","v":"Select"},{"$f":"Import!E6299","v":"Select"},{"$f":"Import!E6324","v":0},null,{"$f":"Import!M6249","v":"Select"},{"$f":"Import!M6274","v":"Select"},{"$f":"Import!M6299","v":"Select"},{"$f":"Import!M6324","v":0},null,null,null,null,null,null,null,null,null,null,null,null,null,null,null,null,null,"",null,"bma_SecurityUSGovernmentAgencyOtherAmountPerForm1ALines2bAnd3b",null,"bma_SecurityUSGovernmentAgencyOtherFaceValue",null,"bma_SecurityUSGovernmentAgencyOtherFairValue",null,"bma_SecurityUSGovernmentAgencyOtherAverageYTM",null,"bma_SecurityUSGovernmentAgencyOtherAverageRating",null,"bma_SecurityUSGovernmentAgencyOtherEffectiveDuration",null,"bma_SecurityUSGovernmentAgencyOtherEffectiveConvexity"]
[null,5,{"$f":"Import!E6225","v":0},null,{"$f":"Import!E6250","v":"Select"},{"$f":"Import!E6275","v":"Select"},{"$f":"Import!E6300","v":"Select"},{"$f":"Import!E6325","v":0},null,{"$f":"Import!M6250","v":"Select"},{"$f":"Import!M6275","v":"Select"},{"$f":"Import!M6300","v":"Select"},{"$f":"Import!M6325","v":0},null,null,null,null,null,null,null,null,null,null,null,null,null,null,null,null,null,"",null,"bma_SecurityCorporateSecuritiesAmountPerForm1ALines2bAnd3b",null,"bma_SecurityCorporateSecuritiesFaceValue",null,"bma_SecurityCorporateSecuritiesFairValue",null,"bma_SecurityCorporateSecuritiesAverageYTM",null,"bma_SecurityCorporateSecuritiesAverageRating",null,"bma_SecurityCorporateSecuritiesEffectiveDuration",null,"bma_SecurityCorporateSecuritiesEffectiveConvexity"]
[null,6,{"$f":"Import!E6226","v":0},null,{"$f":"Import!E6251","v":"Select"},{"$f":"Import!E6276","v":"Select"},{"$f":"Import!E6301","v":"Select"},{"$f":"Import!E6326","v":0},null,{"$f":"Import!M6251","v":"Select"},{"$f":"Import!M6276","v":"Select"},{"$f":"Import!M6301","v":"Select"},{"$f":"Import!M6326","v":0},null,null,null,null,null,null,null,null,null,null,null,null,null,null,null,null,null,"",null,"bma_SecurityAssetBackedSecuritiesAmountPerForm1ALines2bAnd3b",null,"bma_SecurityAssetBackedSecuritiesFaceValue",null,"bma_SecurityAssetBackedSecuritiesFairValue",null,"bma_SecurityAssetBackedSecuritiesAverageYTM",null,"bma_SecurityAssetBackedSecuritiesAverageRating",null,"bma_SecurityAssetBackedSecuritiesEffectiveDuration",null,"bma_SecurityAssetBackedSecuritiesEffectiveConvexity"]
[null,7,{"$f":"Import!E6227","v":0},null,{"$f":"Import!E6252","v":"Select"},{"$f":"Import!E6277","v":"Select"},{"$f":"Import!E6302","v":"Select"},{"$f":"Import!E6327","v":0},null,{"$f":"Import!M6252","v":"Select"},{"$f":"Import!M6277","v":"Select"},{"$f":"Import!M6302","v":"Select"},{"$f":"Import!M6327","v":0},null,null,null,null,null,null,null,null,null,null,null,null,null,null,null,null,null,"",null,"bma_SecurityMortgageBackedSecuritiesAmountPerForm1ALines2bAnd3b",null,"bma_SecurityMortgageBackedSecuritiesFaceValue",null,"bma_SecurityMortgageBackedSecuritiesFairValue",null,"bma_SecurityMortgageBackedSecuritiesAverageYTM",null,"bma_SecurityMortgageBackedSecuritiesAverageRating",null,"bma_SecurityMortgageBackedSecuritiesEffectiveDuration",null,"bma_SecurityMortgageBackedSecuritiesEffectiveConvexity"]
[null,8,{"$f":"Import!E6228","v":0},null,{"$f":"Import!E6253","v":"Select"},{"$f":"Import!E6278","v":"Select"},{"$f":"Import!E6303","v":"Select"},{"$f":"Import!E6328","v":0},null,{"$f":"Import!M6253","v":"Select"},{"$f":"Import!M6278","v":"Select"},{"$f":"Import!M6303","v":"Select"},{"$f":"Import!M6328","v":0},null,null,null,null,null,null,null,null,null,null,null,null,null,null,null,null,null,"",null,"bma_SecurityMutualFundsAmountPerForm1ALines2bAnd3b",null,"bma_SecurityMutualFundsFaceValue",null,"bma_SecurityMutualFundsFairValue",null,"bma_SecurityMutualFundsAverageYTM",null,"bma_SecurityMutualFundsAverageRating",null,"bma_SecurityMutualFundsEffectiveDuration",null,"bma_SecurityMutualFundsEffectiveConvexity"]
[null,9,{"$f":"Import!E6229","v":0},null,{"$f":"Import!E6254","v":"Select"},{"$f":"Import!E6279","v":"Select"},{"$f":"Import!E6304","v":"Select"},{"$f":"Import!E6329","v":0},null,{"$f":"Import!M6254","v":"Select"},{"$f":"Import!M6279","v":"Select"},{"$f":"Import!M6304","v":"Select"},{"$f":"Import!M6329","v":0},null,null,null,null,null,null,null,null,null,null,null,null,null,null,null,null,null,"bma_SecurityOther1Type",null,"bma_SecurityOther1AmountPerForm1ALines2bAnd3b",null,"bma_SecurityOther1FaceValue",null,"bma_SecurityOther1FairValue",null,"bma_SecurityOther1AverageYTM",null,"bma_SecurityOther1AverageRating",null,"bma_SecurityOther1EffectiveDuration",null,"bma_SecurityOther1EffectiveConvexity"]
[null,10,{"$f":"Import!E6230","v":0},null,{"$f":"Import!E6255","v":"Select"},{"$f":"Import!E6280","v":"Select"},{"$f":"Import!E6305","v":"Select"},{"$f":"Import!E6330","v":0},null,{"$f":"Import!M6255","v":"Select"},{"$f":"Import!M6280","v":"Select"},{"$f":"Import!M6305","v":"Select"},{"$f":"Import!M6330","v":0}]
[null,11,{"$f":"Import!E6231","v":0},null,{"$f":"Import!E6256","v":"Select"},{"$f":"Import!E6281","v":"Select"},{"$f":"Import!E6306","v":"Select"},{"$f":"Import!E6331","v":0},null,{"$f":"Import!M6256","v":"Select"},{"$f":"Import!M6281","v":"Select"},{"$f":"Import!M6306","v":"Select"},{"$f":"Import!M6331","v":0}]
[null,12,{"$f":"Import!E6232","v":0},null,{"$f":"Import!E6257","v":"Select"},{"$f":"Import!E6282","v":"Select"},{"$f":"Import!E6307","v":"Select"},{"$f":"Import!E6332","v":0},null,{"$f":"Import!M6257","v":"Select"},{"$f":"Import!M6282","v":"Select"},{"$f":"Import!M6307","v":"Select"},{"$f":"Import!M6332","v":0}]
[null,13,{"$f":"Import!E6233","v":0},null,{"$f":"Import!E6258","v":"Select"},{"$f":"Import!E6283","v":"Select"},{"$f":"Import!E6308","v":"Select"},{"$f":"Import!E6333","v":0},null,{"$f":"Import!M6258","v":"Select"},{"$f":"Import!M6283","v":"Select"},{"$f":"Import!M6308","v":"Select"},{"$f":"Import!M6333","v":0}]
[null,14,{"$f":"Import!E6234","v":0},null,{"$f":"Import!E6259","v":"Select"},{"$f":"Import!E6284","v":"Select"},{"$f":"Import!E6309","v":"Select"},{"$f":"Import!E6334","v":0},null,{"$f":"Import!M6259","v":"Select"},{"$f":"Import!M6284","v":"Select"},{"$f":"Import!M6309","v":"Select"},{"$f":"Import!M6334","v":0}]
[null,15,{"$f":"Import!E6235","v":0},null,{"$f":"Import!E6260","v":"Select"},{"$f":"Import!E6285","v":"Select"},{"$f":"Import!E6310","v":"Select"},{"$f":"Import!E6335","v":0},null,{"$f":"Import!M6260","v":"Select"},{"$f":"Import!M6285","v":"Select"},{"$f":"Import!M6310","v":"Select"},{"$f":"Import!M6335","v":0}]
[null,16,{"$f":"Import!E6236","v":0},null,{"$f":"Import!E6261","v":"Select"},{"$f":"Import!E6286","v":"Select"},{"$f":"Import!E6311","v":"Select"},{"$f":"Import!E6336","v":0},null,{"$f":"Import!M6261","v":"Select"},{"$f":"Import!M6286","v":"Select"},{"$f":"Import!M6311","v":"Select"},{"$f":"Import!M6336","v":0}]
[null,17,{"$f":"Import!E6237","v":0},null,{"$f":"Import!E6262","v":"Select"},{"$f":"Import!E6287","v":"Select"},{"$f":"Import!E6312","v":"Select"},{"$f":"Import!E6337","v":0},null,{"$f":"Import!M6262","v":"Select"},{"$f":"Import!M6287","v":"Select"},{"$f":"Import!M6312","v":"Select"},{"$f":"Import!M6337","v":0}]
[null,18,{"$f":"Import!E6238","v":0},null,{"$f":"Import!E6263","v":"Select"},{"$f":"Import!E6288","v":"Select"},{"$f":"Import!E6313","v":"Select"},{"$f":"Import!E6338","v":0},null,{"$f":"Import!M6263","v":"Select"},{"$f":"Import!M6288","v":"Select"},{"$f":"Import!M6313","v":"Select"},{"$f":"Import!M6338","v":0}]
[null,19,{"$f":"Import!E6239","v":0},null,{"$f":"Import!E6264","v":"Select"},{"$f":"Import!E6289","v":"Select"},{"$f":"Import!E6314","v":"Select"},{"$f":"Import!E6339","v":0},null,{"$f":"Import!M6264","v":"Select"},{"$f":"Import!M6289","v":"Select"},{"$f":"Import!M6314","v":"Select"},{"$f":"Import!M6339","v":0}]
[null,20,{"$f":"Import!E6240","v":0},null,{"$f":"Import!E6265","v":"Select"},{"$f":"Import!E6290","v":"Select"},{"$f":"Import!E6315","v":"Select"},{"$f":"Import!E6340","v":0},null,{"$f":"Import!M6265","v":"Select"},{"$f":"Import!M6290","v":"Select"},{"$f":"Import!M6315","v":"Select"},{"$f":"Import!M6340","v":0}]
[null,21,{"$f":"Import!E6241","v":0},null,{"$f":"Import!E6266","v":"Select"},{"$f":"Import!E6291","v":"Select"},{"$f":"Import!E6316","v":"Select"},{"$f":"Import!E6341","v":0},null,{"$f":"Import!M6266","v":"Select"},{"$f":"Import!M6291","v":"Select"},{"$f":"Import!M6316","v":"Select"},{"$f":"Import!M6341","v":0}]
[null,22,{"$f":"Import!E6242","v":0},null,{"$f":"Import!E6267","v":"Select"},{"$f":"Import!E6292","v":"Select"},{"$f":"Import!E6317","v":"Select"},{"$f":"Import!E6342","v":0},null,{"$f":"Import!M6267","v":"Select"},{"$f":"Import!M6292","v":"Select"},{"$f":"Import!M6317","v":"Select"},{"$f":"Import!M6342","v":0}]
[null,23,{"$f":"Import!E6243","v":0},null,{"$f":"Import!E6268","v":"Select"},{"$f":"Import!E6293","v":"Select"},{"$f":"Import!E6318","v":"Select"},{"$f":"Import!E6343","v":0},null,{"$f":"Import!M6268","v":"Select"},{"$f":"Import!M6293","v":"Select"},{"$f":"Import!M6318","v":"Select"},{"$f":"Import!M6343","v":0}]
[null,24,{"$f":"Import!E6244","v":0},null,{"$f":"Import!E6269","v":"Select"},{"$f":"Import!E6294","v":"Select"},{"$f":"Import!E6319","v":"Select"},{"$f":"Import!E6344","v":0},null,{"$f":"Import!M6269","v":"Select"},{"$f":"Import!M6294","v":"Select"},{"$f":"Import!M6319","v":"Select"},{"$f":"Import!M6344","v":0}]
[null,25,{"$f":"Import!E6245","v":0},null,{"$f":"Import!E6270","v":"Select"},{"$f":"Import!E6295","v":"Select"},{"$f":"Import!E6320","v":"Select"},{"$f":"Import!E6345","v":0},null,{"$f":"Import!M6270","v":"Select"},{"$f":"Import!M6295","v":"Select"},{"$f":"Import!M6320","v":"Select"},{"$f":"Import!M6345","v":0}]
[null,26]
[null,27]
[null,28]
[null,29]
[null,30]
[null,31]
[null,32]
[null,33]
[null,34]
[null,35]
[null,36]
[null,37]
[null,38]
[null,39]
[null,40]
[null,41]
[null,42]
[null,43]
[null,44]
[null,45]
[null,46]
[null,47]
[null,48]
[null,49]
[null,50,null,null,null,null,null,null,null,null,null,null,null,null,null,null,null,null,null,null,null,null,null,null,null,null,null,null,null,null,"bma_SecurityOther2Type",null,"bma_SecurityOther2AmountPerForm1ALines2bAnd3b",null,"bma_SecurityOther2FaceValue",null,"bma_SecurityOther2FairValue",null,"bma_SecurityOther2AverageYTM",null,"bma_SecurityOther2AverageRating",null,"bma_SecurityOther2EffectiveDuration",null,"bma_SecurityOther2EffectiveConvexity"]
[null,null,"TOTAL CONCENTRATION RISK",null,null,null,null,{"$f":"SUM(H8:H57)","v":0},null,null,null,null,{"$f":"SUM(M8:M57)","v":0},null,null,null,null,null,null,null,null,null,null,null,null,null,null,null,null,null,"",null,"bma_SecurityTotalPortfolioAmountPerForm1ALines2bAnd3b",null,"bma_SecurityTotalPortfolioFaceValue",null,"bma_SecurityTotalPortfolioFairValue",null,"",null,"",null,"",null,""]
[null,null,null,null,null,null,null,null,null,null,null,null,null,null,null,null,null,null,null,null,null,null,null,null,"",null,"",null,"",null,"",null,"",null,"",null,"",null,"",null,"",null,"",null,""]
[null,null,"Asset Type",null,null,"Bond Types",null,"BSCR Rating Reference"]
[null,null,"Select",null,null,"Select",null,"Select"]
[null,null,"Cash and Cash Equivalent",null,null,"Corporate & Sovereign Bonds",null,"BSCR Rating 0",null,"Note if an insurer does not have any entities to consolidate, enter consolidated information only (This cell is editable for deletion)"]
[null,null,"BondTypes",null,null,"Residential Mortgage-Backed Securities",null,"BSCR Rating 1"]
[null,null,"Preferred Shares",null,null,"Commercial Mortgage-Backed Securities",null,"BSCR Rating 2"]
[null,null,"MortgageLoanTypes",null,null,"Bond Mutual Funds",null,"BSCR Rating 3"]
[null,null,"Common Stock and Mutual Funds",null,null,null,null,"BSCR Rating 4"]
[null,null,"Other Investments",null,null,"Mortgage Loan Categories",null,"BSCR Rating 5"]
[null,null,"Investment in Affiliates – Unregulated entities that conduct ancillary services",null,null,"Select",null,"BSCR Rating 6"]
[null,null,"Investment in Affiliates - Unregulated non-financial operating entities",null,null,"Insured/Guaranteed Mortgages",null,"BSCR Rating 7"]
[null,null,"Investment in Affiliates - Unregulated financial operating entities",null,null,"Other Commercial and Farm Mortgages",null,"BSCR Rating 8"]
[null,null,"Investment in Affiliates - Regulated non-insurance financial operating entities",null,null,"Other Residential Mortgages"]
[null,null,"Investment in Affiliates - Regulated insurance financial operating entities",null,null,"Mortgages Not In Good Standing"]
[null,null,"Advances to Affiliates - "]
[null,null,"Policy Loans"]
[null,null,"Real Estate: Occupied by company"]
[null,null,"Real Estate: Other properties"]
[null,null,"Collateral Loans"]
[]
[]
[]
[]
[]
[]
[]
[]
[]
[]
[]
[]
[]
[]
[]
[]
[]
[]
[]
[]
[]
[]
[]
[]
[]
[]
[null,null,null,null,null,"A or better",null,"A or better"]
[null,null,null,null,null,"BBB or equivalent",null,"BBB or equivalent"]
[null,null,null,null,null,"B or better",null,"B or better"]
[null,null,null,null,null,"unrated/other",null,"unrated/other"]

{"sheet":"Schedule XXIA","index":68,"n_rows":119,"n_cols":45,"rows_kept":119,"cut":false,"hidden":false,"merged":[[2,1,2,2],[4,4,4,7],[4,9,4,12],[61,9,62,12]]}
[null,null,"SCHEDULE OF CONCENTRATION RISK DRAFT",null,null,null,null,null,null,null,null,null,{"$f":"HYPERLINK(\"#'Index'!A1\",\"Return to Index\")","v":"Return to Index"}]
[null,{"$f":"+'Insurer Information'!C7","v":"Enter Company Name"}]
[null,{"$f":"+'Insurer Information'!C3","v":"2019-12-31"},null,null,{"$f":"Import!E8542","v":0},null,"Enter Number of Rows Required",null,null,null,null,null,"SCHEDULE XXIA"]
[null,{"$f":"+'Form 4EBS'!B4","v":"Expressed in  ['000s]"}]
[null,null,null,null,"Unconsolidated SFS",null,null,null,null,"EBS Valuation"]
[null,null,null,null,"(A)","(B)","(C)","(D)",null,"(E)","(F)","(G)","(H)"]
[null,null,"Name of Exposure",null,"Asset Type","Bond / Mortgage Loan Type","BSCR Rating","Asset Value",null,"Asset Type","Bond / Mortgage Loan Type","BSCR Rating","Asset Value"]
[null,1,{"$f":"Import!E8543","v":0},null,{"$f":"Import!E8593","v":"Select"},{"$f":"Import!E8643","v":"Select"},{"$f":"Import!E8693","v":"Select"},{"$f":"Import!E8743","v":0},null,{"$f":"Import!M8593","v":"Select"},{"$f":"Import!M8643","v":"Select"},{"$f":"Import!M8693","v":"Select"},{"$f":"Import!M8743","v":0},null,null,null,null,null,null,null,null,null,null,null,null,null,null,null,null,null,"",null,"bma_SecurityUSGovernmentAmountPerForm1ALines2bAnd3b",null,"bma_SecurityUSGovernmentFaceValue",null,"bma_SecurityUSGovernmentFairValue",null,"bma_SecurityUSGovernmentAverageYTM",null,"bma_SecurityUSGovernmentAverageRating",null,"bma_SecurityUSGovernmentEffectiveDuration",null,"bma_SecurityUSGovernmentEffectiveConvexity"]
[null,{"$f":"B8+1","v":2},{"$f":"Import!E8544","v":0},null,{"$f":"Import!E8594","v":"Select"},{"$f":"Import!E8644","v":"Select"},{"$f":"Import!E8694","v":"Select"},{"$f":"Import!E8744","v":0},null,{"$f":"Import!M8594","v":"Select"},{"$f":"Import!M8644","v":"Select"},{"$f":"Import!M8694","v":"Select"},{"$f":"Import!M8744","v":0},null,null,null,null,null,null,null,null,null,null,null,null,null,null,null,null,null,"",null,"bma_SecurityNonUSGovernmentAmountPerForm1ALines2bAnd3b",null,"bma_SecurityNonUSGovernmentFaceValue",null,"bma_SecurityNonUSGovernmentFairValue",null,"bma_SecurityNonUSGovernmentAverageYTM",null,"bma_SecurityNonUSGovernmentAverageRating",null,"bma_SecurityNonUSGovernmentEffectiveDuration",null,"bma_SecurityNonUSGovernmentEffectiveConvexity"]
[null,{"$f":"B9+1","v":3},{"$f":"Import!E8545","v":0},null,{"$f":"Import!E8595","v":"Select"},{"$f":"Import!E8645","v":"Select"},{"$f":"Import!E8695","v":"Select"},{"$f":"Import!E8745","v":0},null,{"$f":"Import!M8595","v":"Select"},{"$f":"Import!M8645","v":"Select"},{"$f":"Import!M8695","v":"Select"},{"$f":"Import!M8745","v":0},null,null,null,null,null,null,null,null,null,null,null,null,null,null,null,null,null,"",null,"bma_SecurityUSGovernmentAgencyMortgageBackedSecuritiesAmountPerForm1ALines2bAnd3b",null,"bma_SecurityUSGovernmentAgencyMortgageBackedSecuritiesFaceValue",null,"bma_SecurityUSGovernmentAgencyMortgageBackedSecuritiesFairValue",null,"bma_SecurityUSGovernmentAgencyMortgageBackedSecuritiesAverageYTM",null,"bma_SecurityUSGovernmentAgencyMortgageBackedSecuritiesAverageRating",null,"bma_SecurityUSGovernmentAgencyMortgageBackedSecuritiesEffectiveDuration",null,"bma_SecurityUSGovernmentAgencyMortgageBackedSecuritiesEffectiveConvexity"]
[null,4,{"$f":"Import!E8546","v":0},null,{"$f":"Import!E8596","v":"Select"},{"$f":"Import!E8646","v":"Select"},{"$f":"Import!E8696","v":"Select"},{"$f":"Import!E8746","v":0},null,{"$f":"Import!M8596","v":"Select"},{"$f":"Import!M8646","v":"Select"},{"$f":"Import!M8696","v":"Select"},{"$f":"Import!M8746","v":0},null,null,null,null,null,null,null,null,null,null,null,null,null,null,null,null,null,"",null,"bma_SecurityUSGovernmentAgencyOtherAmountPerForm1ALines2bAnd3b",null,"bma_SecurityUSGovernmentAgencyOtherFaceValue",null,"bma_SecurityUSGovernmentAgencyOtherFairValue",null,"bma_SecurityUSGovernmentAgencyOtherAverageYTM",null,"bma_SecurityUSGovernmentAgencyOtherAverageRating",null,"bma_SecurityUSGovernmentAgencyOtherEffectiveDuration",null,"bma_SecurityUSGovernmentAgencyOtherEffectiveConvexity"]
[null,5,{"$f":"Import!E8547","v":0},null,{"$f":"Import!E8597","v":"Select"},{"$f":"Import!E8647","v":"Select"},{"$f":"Import!E8697","v":"Select"},{"$f":"Import!E8747","v":0},null,{"$f":"Import!M8597","v":"Select"},{"$f":"Import!M8647","v":"Select"},{"$f":"Import!M8697","v":"Select"},{"$f":"Import!M8747","v":0},null,null,null,null,null,null,null,null,null,null,null,null,null,null,null,null,null,"",null,"bma_SecurityCorporateSecuritiesAmountPerForm1ALines2bAnd3b",null,"bma_SecurityCorporateSecuritiesFaceValue",null,"bma_SecurityCorporateSecuritiesFairValue",null,"bma_SecurityCorporateSecuritiesAverageYTM",null,"bma_SecurityCorporateSecuritiesAverageRating",null,"bma_SecurityCorporateSecuritiesEffectiveDuration",null,"bma_SecurityCorporateSecuritiesEffectiveConvexity"]
[null,6,{"$f":"Import!E8548","v":0},null,{"$f":"Import!E8598","v":"Select"},{"$f":"Import!E8648","v":"Select"},{"$f":"Import!E8698","v":"Select"},{"$f":"Import!E8748","v":0},null,{"$f":"Import!M8598","v":"Select"},{"$f":"Import!M8648","v":"Select"},{"$f":"Import!M8698","v":"Select"},{"$f":"Import!M8748","v":0},null,null,null,null,null,null,null,null,null,null,null,null,null,null,null,null,null,"",null,"bma_SecurityAssetBackedSecuritiesAmountPerForm1ALines2bAnd3b",null,"bma_SecurityAssetBackedSecuritiesFaceValue",null,"bma_SecurityAssetBackedSecuritiesFairValue",null,"bma_SecurityAssetBackedSecuritiesAverageYTM",null,"bma_SecurityAssetBackedSecuritiesAverageRating",null,"bma_SecurityAssetBackedSecuritiesEffectiveDuration",null,"bma_SecurityAssetBackedSecuritiesEffectiveConvexity"]
[null,7,{"$f":"Import!E8549","v":0},null,{"$f":"Import!E8599","v":"Select"},{"$f":"Import!E8649","v":"Select"},{"$f":"Import!E8699","v":"Select"},{"$f":"Import!E8749","v":0},null,{"$f":"Import!M8599","v":"Select"},{"$f":"Import!M8649","v":"Select"},{"$f":"Import!M8699","v":"Select"},{"$f":"Import!M8749","v":0},null,null,null,null,null,null,null,null,null,null,null,null,null,null,null,null,null,"",null,"bma_SecurityMortgageBackedSecuritiesAmountPerForm1ALines2bAnd3b",null,"bma_SecurityMortgageBackedSecuritiesFaceValue",null,"bma_SecurityMortgageBackedSecuritiesFairValue",null,"bma_SecurityMortgageBackedSecuritiesAverageYTM",null,"bma_SecurityMortgageBackedSecuritiesAverageRating",null,"bma_SecurityMortgageBackedSecuritiesEffectiveDuration",null,"bma_SecurityMortgageBackedSecuritiesEffectiveConvexity"]
[null,8,{"$f":"Import!E8550","v":0},null,{"$f":"Import!E8600","v":"Select"},{"$f":"Import!E8650","v":"Select"},{"$f":"Import!E8700","v":"Select"},{"$f":"Import!E8750","v":0},null,{"$f":"Import!M8600","v":"Select"},{"$f":"Import!M8650","v":"Select"},{"$f":"Import!M8700","v":"Select"},{"$f":"Import!M8750","v":0},null,null,null,null,null,null,null,null,null,null,null,null,null,null,null,null,null,"",null,"bma_SecurityMutualFundsAmountPerForm1ALines2bAnd3b",null,"bma_SecurityMutualFundsFaceValue",null,"bma_SecurityMutualFundsFairValue",null,"bma_SecurityMutualFundsAverageYTM",null,"bma_SecurityMutualFundsAverageRating",null,"bma_SecurityMutualFundsEffectiveDuration",null,"bma_SecurityMutualFundsEffectiveConvexity"]
[null,9,{"$f":"Import!E8551","v":0},null,{"$f":"Import!E8601","v":"Select"},{"$f":"Import!E8651","v":"Select"},{"$f":"Import!E8701","v":"Select"},{"$f":"Import!E8751","v":0},null,{"$f":"Import!M8601","v":"Select"},{"$f":"Import!M8651","v":"Select"},{"$f":"Import!M8701","v":"Select"},{"$f":"Import!M8751","v":0},null,null,null,null,null,null,null,null,null,null,null,null,null,null,null,null,null,"bma_SecurityOther1Type",null,"bma_SecurityOther1AmountPerForm1ALines2bAnd3b",null,"bma_SecurityOther1FaceValue",null,"bma_SecurityOther1FairValue",null,"bma_SecurityOther1AverageYTM",null,"bma_SecurityOther1AverageRating",null,"bma_SecurityOther1EffectiveDuration",null,"bma_SecurityOther1EffectiveConvexity"]
[null,10,{"$f":"Import!E8552","v":0},null,{"$f":"Import!E8602","v":"Select"},{"$f":"Import!E8652","v":"Select"},{"$f":"Import!E8702","v":"Select"},{"$f":"Import!E8752","v":0},null,{"$f":"Import!M8602","v":"Select"},{"$f":"Import!M8652","v":"Select"},{"$f":"Import!M8702","v":"Select"},{"$f":"Import!M8752","v":0}]
[null,11,{"$f":"Import!E8553","v":0},null,{"$f":"Import!E8603","v":"Select"},{"$f":"Import!E8653","v":"Select"},{"$f":"Import!E8703","v":"Select"},{"$f":"Import!E8753","v":0},null,{"$f":"Import!M8603","v":"Select"},{"$f":"Import!M8653","v":"Select"},{"$f":"Import!M8703","v":"Select"},{"$f":"Import!M8753","v":0}]
[null,12,{"$f":"Import!E8554","v":0},null,{"$f":"Import!E8604","v":"Select"},{"$f":"Import!E8654","v":"Select"},{"$f":"Import!E8704","v":"Select"},{"$f":"Import!E8754","v":0},null,{"$f":"Import!M8604","v":"Select"},{"$f":"Import!M8654","v":"Select"},{"$f":"Import!M8704","v":"Select"},{"$f":"Import!M8754","v":0}]
[null,13,{"$f":"Import!E8555","v":0},null,{"$f":"Import!E8605","v":"Select"},{"$f":"Import!E8655","v":"Select"},{"$f":"Import!E8705","v":"Select"},{"$f":"Import!E8755","v":0},null,{"$f":"Import!M8605","v":"Select"},{"$f":"Import!M8655","v":"Select"},{"$f":"Import!M8705","v":"Select"},{"$f":"Import!M8755","v":0}]
[null,14,{"$f":"Import!E8556","v":0},null,{"$f":"Import!E8606","v":"Select"},{"$f":"Import!E8656","v":"Select"},{"$f":"Import!E8706","v":"Select"},{"$f":"Import!E8756","v":0},null,{"$f":"Import!M8606","v":"Select"},{"$f":"Import!M8656","v":"Select"},{"$f":"Import!M8706","v":"Select"},{"$f":"Import!M8756","v":0}]
[null,15,{"$f":"Import!E8557","v":0},null,{"$f":"Import!E8607","v":"Select"},{"$f":"Import!E8657","v":"Select"},{"$f":"Import!E8707","v":"Select"},{"$f":"Import!E8757","v":0},null,{"$f":"Import!M8607","v":"Select"},{"$f":"Import!M8657","v":"Select"},{"$f":"Import!M8707","v":"Select"},{"$f":"Import!M8757","v":0}]
[null,16,{"$f":"Import!E8558","v":0},null,{"$f":"Import!E8608","v":"Select"},{"$f":"Import!E8658","v":"Select"},{"$f":"Import!E8708","v":"Select"},{"$f":"Import!E8758","v":0},null,{"$f":"Import!M8608","v":"Select"},{"$f":"Import!M8658","v":"Select"},{"$f":"Import!M8708","v":"Select"},{"$f":"Import!M8758","v":0}]
[null,17,{"$f":"Import!E8559","v":0},null,{"$f":"Import!E8609","v":"Select"},{"$f":"Import!E8659","v":"Select"},{"$f":"Import!E8709","v":"Select"},{"$f":"Import!E8759","v":0},null,{"$f":"Import!M8609","v":"Select"},{"$f":"Import!M8659","v":"Select"},{"$f":"Import!M8709","v":"Select"},{"$f":"Import!M8759","v":0}]
[null,18,{"$f":"Import!E8560","v":0},null,{"$f":"Import!E8610","v":"Select"},{"$f":"Import!E8660","v":"Select"},{"$f":"Import!E8710","v":"Select"},{"$f":"Import!E8760","v":0},null,{"$f":"Import!M8610","v":"Select"},{"$f":"Import!M8660","v":"Select"},{"$f":"Import!M8710","v":"Select"},{"$f":"Import!M8760","v":0}]
[null,19,{"$f":"Import!E8561","v":0},null,{"$f":"Import!E8611","v":"Select"},{"$f":"Import!E8661","v":"Select"},{"$f":"Import!E8711","v":"Select"},{"$f":"Import!E8761","v":0},null,{"$f":"Import!M8611","v":"Select"},{"$f":"Import!M8661","v":"Select"},{"$f":"Import!M8711","v":"Select"},{"$f":"Import!M8761","v":0}]
[null,20,{"$f":"Import!E8562","v":0},null,{"$f":"Import!E8612","v":"Select"},{"$f":"Import!E8662","v":"Select"},{"$f":"Import!E8712","v":"Select"},{"$f":"Import!E8762","v":0},null,{"$f":"Import!M8612","v":"Select"},{"$f":"Import!M8662","v":"Select"},{"$f":"Import!M8712","v":"Select"},{"$f":"Import!M8762","v":0}]
[null,21,{"$f":"Import!E8563","v":0},null,{"$f":"Import!E8613","v":"Select"},{"$f":"Import!E8663","v":"Select"},{"$f":"Import!E8713","v":"Select"},{"$f":"Import!E8763","v":0},null,{"$f":"Import!M8613","v":"Select"},{"$f":"Import!M8663","v":"Select"},{"$f":"Import!M8713","v":"Select"},{"$f":"Import!M8763","v":0}]
[null,22,{"$f":"Import!E8564","v":0},null,{"$f":"Import!E8614","v":"Select"},{"$f":"Import!E8664","v":"Select"},{"$f":"Import!E8714","v":"Select"},{"$f":"Import!E8764","v":0},null,{"$f":"Import!M8614","v":"Select"},{"$f":"Import!M8664","v":"Select"},{"$f":"Import!M8714","v":"Select"},{"$f":"Import!M8764","v":0}]
[null,23,{"$f":"Import!E8565","v":0},null,{"$f":"Import!E8615","v":"Select"},{"$f":"Import!E8665","v":"Select"},{"$f":"Import!E8715","v":"Select"},{"$f":"Import!E8765","v":0},null,{"$f":"Import!M8615","v":"Select"},{"$f":"Import!M8665","v":"Select"},{"$f":"Import!M8715","v":"Select"},{"$f":"Import!M8765","v":0}]
[null,24,{"$f":"Import!E8566","v":0},null,{"$f":"Import!E8616","v":"Select"},{"$f":"Import!E8666","v":"Select"},{"$f":"Import!E8716","v":"Select"},{"$f":"Import!E8766","v":0},null,{"$f":"Import!M8616","v":"Select"},{"$f":"Import!M8666","v":"Select"},{"$f":"Import!M8716","v":"Select"},{"$f":"Import!M8766","v":0}]
[null,25,{"$f":"Import!E8567","v":0},null,{"$f":"Import!E8617","v":"Select"},{"$f":"Import!E8667","v":"Select"},{"$f":"Import!E8717","v":"Select"},{"$f":"Import!E8767","v":0},null,{"$f":"Import!M8617","v":"Select"},{"$f":"Import!M8667","v":"Select"},{"$f":"Import!M8717","v":"Select"},{"$f":"Import!M8767","v":0}]
[null,26,{"$f":"Import!E8568","v":0},null,{"$f":"Import!E8618","v":"Select"},{"$f":"Import!E8668","v":"Select"},{"$f":"Import!E8718","v":"Select"},{"$f":"Import!E8768","v":0},null,{"$f":"Import!M8618","v":"Select"},{"$f":"Import!M8668","v":"Select"},{"$f":"Import!M8718","v":"Select"},{"$f":"Import!M8768","v":0}]
[null,27,{"$f":"Import!E8569","v":0},null,{"$f":"Import!E8619","v":"Select"},{"$f":"Import!E8669","v":"Select"},{"$f":"Import!E8719","v":"Select"},{"$f":"Import!E8769","v":0},null,{"$f":"Import!M8619","v":"Select"},{"$f":"Import!M8669","v":"Select"},{"$f":"Import!M8719","v":"Select"},{"$f":"Import!M8769","v":0}]
[null,28,{"$f":"Import!E8570","v":0},null,{"$f":"Import!E8620","v":"Select"},{"$f":"Import!E8670","v":"Select"},{"$f":"Import!E8720","v":"Select"},{"$f":"Import!E8770","v":0},null,{"$f":"Import!M8620","v":"Select"},{"$f":"Import!M8670","v":"Select"},{"$f":"Import!M8720","v":"Select"},{"$f":"Import!M8770","v":0}]
[null,29,{"$f":"Import!E8571","v":0},null,{"$f":"Import!E8621","v":"Select"},{"$f":"Import!E8671","v":"Select"},{"$f":"Import!E8721","v":"Select"},{"$f":"Import!E8771","v":0},null,{"$f":"Import!M8621","v":"Select"},{"$f":"Import!M8671","v":"Select"},{"$f":"Import!M8721","v":"Select"},{"$f":"Import!M8771","v":0}]
[null,30,{"$f":"Import!E8572","v":0},null,{"$f":"Import!E8622","v":"Select"},{"$f":"Import!E8672","v":"Select"},{"$f":"Import!E8722","v":"Select"},{"$f":"Import!E8772","v":0},null,{"$f":"Import!M8622","v":"Select"},{"$f":"Import!M8672","v":"Select"},{"$f":"Import!M8722","v":"Select"},{"$f":"Import!M8772","v":0}]
[null,31,{"$f":"Import!E8573","v":0},null,{"$f":"Import!E8623","v":"Select"},{"$f":"Import!E8673","v":"Select"},{"$f":"Import!E8723","v":"Select"},{"$f":"Import!E8773","v":0},null,{"$f":"Import!M8623","v":"Select"},{"$f":"Import!M8673","v":"Select"},{"$f":"Import!M8723","v":"Select"},{"$f":"Import!M8773","v":0}]
[null,32,{"$f":"Import!E8574","v":0},null,{"$f":"Import!E8624","v":"Select"},{"$f":"Import!E8674","v":"Select"},{"$f":"Import!E8724","v":"Select"},{"$f":"Import!E8774","v":0},null,{"$f":"Import!M8624","v":"Select"},{"$f":"Import!M8674","v":"Select"},{"$f":"Import!M8724","v":"Select"},{"$f":"Import!M8774","v":0}]
[null,33,{"$f":"Import!E8575","v":0},null,{"$f":"Import!E8625","v":"Select"},{"$f":"Import!E8675","v":"Select"},{"$f":"Import!E8725","v":"Select"},{"$f":"Import!E8775","v":0},null,{"$f":"Import!M8625","v":"Select"},{"$f":"Import!M8675","v":"Select"},{"$f":"Import!M8725","v":"Select"},{"$f":"Import!M8775","v":0}]
[null,34,{"$f":"Import!E8576","v":0},null,{"$f":"Import!E8626","v":"Select"},{"$f":"Import!E8676","v":"Select"},{"$f":"Import!E8726","v":"Select"},{"$f":"Import!E8776","v":0},null,{"$f":"Import!M8626","v":"Select"},{"$f":"Import!M8676","v":"Select"},{"$f":"Import!M8726","v":"Select"},{"$f":"Import!M8776","v":0}]
[null,35,{"$f":"Import!E8577","v":0},null,{"$f":"Import!E8627","v":"Select"},{"$f":"Import!E8677","v":"Select"},{"$f":"Import!E8727","v":"Select"},{"$f":"Import!E8777","v":0},null,{"$f":"Import!M8627","v":"Select"},{"$f":"Import!M8677","v":"Select"},{"$f":"Import!M8727","v":"Select"},{"$f":"Import!M8777","v":0}]
[null,36,{"$f":"Import!E8578","v":0},null,{"$f":"Import!E8628","v":"Select"},{"$f":"Import!E8678","v":"Select"},{"$f":"Import!E8728","v":"Select"},{"$f":"Import!E8778","v":0},null,{"$f":"Import!M8628","v":"Select"},{"$f":"Import!M8678","v":"Select"},{"$f":"Import!M8728","v":"Select"},{"$f":"Import!M8778","v":0}]
[null,37,{"$f":"Import!E8579","v":0},null,{"$f":"Import!E8629","v":"Select"},{"$f":"Import!E8679","v":"Select"},{"$f":"Import!E8729","v":"Select"},{"$f":"Import!E8779","v":0},null,{"$f":"Import!M8629","v":"Select"},{"$f":"Import!M8679","v":"Select"},{"$f":"Import!M8729","v":"Select"},{"$f":"Import!M8779","v":0}]
[null,38,{"$f":"Import!E8580","v":0},null,{"$f":"Import!E8630","v":"Select"},{"$f":"Import!E8680","v":"Select"},{"$f":"Import!E8730","v":"Select"},{"$f":"Import!E8780","v":0},null,{"$f":"Import!M8630","v":"Select"},{"$f":"Import!M8680","v":"Select"},{"$f":"Import!M8730","v":"Select"},{"$f":"Import!M8780","v":0}]
[null,39,{"$f":"Import!E8581","v":0},null,{"$f":"Import!E8631","v":"Select"},{"$f":"Import!E8681","v":"Select"},{"$f":"Import!E8731","v":"Select"},{"$f":"Import!E8781","v":0},null,{"$f":"Import!M8631","v":"Select"},{"$f":"Import!M8681","v":"Select"},{"$f":"Import!M8731","v":"Select"},{"$f":"Import!M8781","v":0}]
[null,40,{"$f":"Import!E8582","v":0},null,{"$f":"Import!E8632","v":"Select"},{"$f":"Import!E8682","v":"Select"},{"$f":"Import!E8732","v":"Select"},{"$f":"Import!E8782","v":0},null,{"$f":"Import!M8632","v":"Select"},{"$f":"Import!M8682","v":"Select"},{"$f":"Import!M8732","v":"Select"},{"$f":"Import!M8782","v":0}]
[null,41,{"$f":"Import!E8583","v":0},null,{"$f":"Import!E8633","v":"Select"},{"$f":"Import!E8683","v":"Select"},{"$f":"Import!E8733","v":"Select"},{"$f":"Import!E8783","v":0},null,{"$f":"Import!M8633","v":"Select"},{"$f":"Import!M8683","v":"Select"},{"$f":"Import!M8733","v":"Select"},{"$f":"Import!M8783","v":0}]
[null,42,{"$f":"Import!E8584","v":0},null,{"$f":"Import!E8634","v":"Select"},{"$f":"Import!E8684","v":"Select"},{"$f":"Import!E8734","v":"Select"},{"$f":"Import!E8784","v":0},null,{"$f":"Import!M8634","v":"Select"},{"$f":"Import!M8684","v":"Select"},{"$f":"Import!M8734","v":"Select"},{"$f":"Import!M8784","v":0}]
[null,43,{"$f":"Import!E8585","v":0},null,{"$f":"Import!E8635","v":"Select"},{"$f":"Import!E8685","v":"Select"},{"$f":"Import!E8735","v":"Select"},{"$f":"Import!E8785","v":0},null,{"$f":"Import!M8635","v":"Select"},{"$f":"Import!M8685","v":"Select"},{"$f":"Import!M8735","v":"Select"},{"$f":"Import!M8785","v":0}]
[null,44,{"$f":"Import!E8586","v":0},null,{"$f":"Import!E8636","v":"Select"},{"$f":"Import!E8686","v":"Select"},{"$f":"Import!E8736","v":"Select"},{"$f":"Import!E8786","v":0},null,{"$f":"Import!M8636","v":"Select"},{"$f":"Import!M8686","v":"Select"},{"$f":"Import!M8736","v":"Select"},{"$f":"Import!M8786","v":0}]
[null,45,{"$f":"Import!E8587","v":0},null,{"$f":"Import!E8637","v":"Select"},{"$f":"Import!E8687","v":"Select"},{"$f":"Import!E8737","v":"Select"},{"$f":"Import!E8787","v":0},null,{"$f":"Import!M8637","v":"Select"},{"$f":"Import!M8687","v":"Select"},{"$f":"Import!M8737","v":"Select"},{"$f":"Import!M8787","v":0}]
[null,46,{"$f":"Import!E8588","v":0},null,{"$f":"Import!E8638","v":"Select"},{"$f":"Import!E8688","v":"Select"},{"$f":"Import!E8738","v":"Select"},{"$f":"Import!E8788","v":0},null,{"$f":"Import!M8638","v":"Select"},{"$f":"Import!M8688","v":"Select"},{"$f":"Import!M8738","v":"Select"},{"$f":"Import!M8788","v":0}]
[null,47,{"$f":"Import!E8589","v":0},null,{"$f":"Import!E8639","v":"Select"},{"$f":"Import!E8689","v":"Select"},{"$f":"Import!E8739","v":"Select"},{"$f":"Import!E8789","v":0},null,{"$f":"Import!M8639","v":"Select"},{"$f":"Import!M8689","v":"Select"},{"$f":"Import!M8739","v":"Select"},{"$f":"Import!M8789","v":0}]
[null,48,{"$f":"Import!E8590","v":0},null,{"$f":"Import!E8640","v":"Select"},{"$f":"Import!E8690","v":"Select"},{"$f":"Import!E8740","v":"Select"},{"$f":"Import!E8790","v":0},null,{"$f":"Import!M8640","v":"Select"},{"$f":"Import!M8690","v":"Select"},{"$f":"Import!M8740","v":"Select"},{"$f":"Import!M8790","v":0}]
[null,49,{"$f":"Import!E8591","v":0},null,{"$f":"Import!E8641","v":"Select"},{"$f":"Import!E8691","v":"Select"},{"$f":"Import!E8741","v":"Select"},{"$f":"Import!E8791","v":0},null,{"$f":"Import!M8641","v":"Select"},{"$f":"Import!M8691","v":"Select"},{"$f":"Import!M8741","v":"Select"},{"$f":"Import!M8791","v":0}]
[null,50,{"$f":"Import!E8592","v":0},null,{"$f":"Import!E8642","v":"Select"},{"$f":"Import!E8692","v":"Select"},{"$f":"Import!E8742","v":"Select"},{"$f":"Import!E8792","v":0},null,{"$f":"Import!M8642","v":"Select"},{"$f":"Import!M8692","v":"Select"},{"$f":"Import!M8742","v":"Select"},{"$f":"Import!M8792","v":0},null,null,null,null,null,null,null,null,null,null,null,null,null,null,null,null,null,"bma_SecurityOther2Type",null,"bma_SecurityOther2AmountPerForm1ALines2bAnd3b",null,"bma_SecurityOther2FaceValue",null,"bma_SecurityOther2FairValue",null,"bma_SecurityOther2AverageYTM",null,"bma_SecurityOther2AverageRating",null,"bma_SecurityOther2EffectiveDuration",null,"bma_SecurityOther2EffectiveConvexity"]
[null,null,"TOTAL CONCENTRATION RISK",null,null,null,null,{"$f":"SUM(H8:H57)","v":0},null,null,null,null,{"$f":"SUM(M8:M57)","v":0},null,null,null,null,null,null,null,null,null,null,null,null,null,null,null,null,null,"",null,"bma_SecurityTotalPortfolioAmountPerForm1ALines2bAnd3b",null,"bma_SecurityTotalPortfolioFaceValue",null,"bma_SecurityTotalPortfolioFairValue",null,"",null,"",null,"",null,""]
[null,null,null,null,null,null,null,null,null,null,null,null,null,null,null,null,null,null,null,null,null,null,null,null,"",null,"",null,"",null,"",null,"",null,"",null,"",null,"",null,"",null,"",null,""]
[null,null,"Asset Type",null,null,"Bond Types",null,"BSCR Rating Reference"]
[null,null,"Select",null,null,"Select",null,"Select"]
[null,null,"Cash and Cash Equivalent",null,null,"Corporate & Sovereign Bonds",null,"BSCR Rating 0",null,"Note if an insurer does not have any entities to consolidate, enter consolidated information only (This cell is editable for deletion)"]
[null,null,"BondTypes",null,null,"Residential Mortgage-Backed Securities",null,"BSCR Rating 1"]
[null,null,"Preferred Shares",null,null,"Commercial Mortgage-Backed Securities",null,"BSCR Rating 2"]
[null,null,"MortgageLoanTypes",null,null,"Bond Mutual Funds",null,"BSCR Rating 3"]
[null,null,"Infrastructure (Non-affiliate holdings, non-duration based)",null,null,null,null,"BSCR Rating 4"]
[null,null,"Listed Equity Securities in Developed Markets",null,null,"Mortgage Loan Categories",null,"BSCR Rating 5"]
[null,null,"Other Equities",null,null,"Select",null,"BSCR Rating 6"]
[null,null,"Strategic Holdings",null,null,"Insured/Guaranteed Mortgages",null,"BSCR Rating 7"]
[null,null,"Duration Based",null,null,"Other Commercial and Farm Mortgages",null,"BSCR Rating 8"]
[null,null,"Letters of Credit",null,null,"Other Residential Mortgages"]
[null,null,"Advances to Affiliates - ",null,null,"Mortgages Not In Good Standing"]
[null,null,"Policy Loans"]
[null,null,"Equity Real Estate 1"]
[null,null,"Equity Real Estate 2"]
[null,null,"Collateral Loans"]
[]
[null,null,"Grandfathered - Common Stock and Mutual Funds"]
[null,null,"Grandfathered - Other Investments"]
[null,null,"Grandfathered - Investment in Affiliates – Unregulated entities that conduct ancillary services"]
[null,null,"Grandfathered - Investment in Affiliates - Unregulated non-financial operating entities"]
[null,null,"Grandfathered - Investment in Affiliates - Unregulated financial operating entities"]
[null,null,"Grandfathered - Investment in Affiliates - Regulated non-insurance financial operating entities"]
[null,null,"Grandfathered - Investment in Affiliates - Regulated insurance financial operating entities"]
[null,null,"Grandfathered - Real Estate: Occupied by company"]
[null,null,"Grandfathered - Real Estate: Other properties"]
[]
[]
[]
[]
[]
[]
[]
[]
[]
[]
[]
[]
[]
[]
[]
[]
[]
[]
[]
[]
[]
[]
[]
[]
[]
[]
[]
[]
[]
[null,null,null,null,null,"A or better",null,"A or better"]
[null,null,null,null,null,"BBB or equivalent",null,"BBB or equivalent"]
[null,null,null,null,null,"B or better",null,"B or better"]
[null,null,null,null,null,"unrated/other",null,"unrated/other"]

{"sheet":"Schedule XXIII","index":69,"n_rows":86,"n_cols":22,"rows_kept":86,"cut":false,"hidden":false,"merged":[[29,4,29,21],[30,4,30,10],[30,12,30,21],[31,4,31,5],[31,12,31,13],[31,15,31,16],[2,4,3,4],[4,4,4,21],[5,4,5,10],[5,12,5,21],[6,4,6,5],[6,12,6,13],[6,15,6,16]]}
[null,null,"SCHEDULE OF INTEREST RATE SENSITIVE ASSETS AND LIABILITIES",null,null,null,null,null,null,null,null,null,null,null,null,null,null,null,null,null,null,{"$f":"HYPERLINK(\"#'Index'!A1\",\"Return to Index\")","v":"Return to Index"}]
[null,null,{"$f":"+'Insurer Information'!C7","v":"Enter Company Name"}]
[null,null,{"$f":"+'Insurer Information'!C3","v":"2019-12-31"},null,null,null,null,null,null,null,null,null,null,null,null,null,null,null,null,null,null,"SCHEDULE XXIII"]
[null,null,{"$f":"+'Form 4EBS'!B4","v":"Expressed in  ['000s]"}]
[null,null,null,null,"INTEREST RATE DOWN SHOCK"]
[null,null,null,null,"Exposures other than derivatives",null,null,null,null,null,null,null,"Derivative exposures"]
[null,null,"Currency",null,"Assets",null,null,"Liabilities","Liabilities without Management Actions",null,"Liabilities with Management Actions",null,"Assets - Qualifying as held for risk-mitigation purposes",null,null,"Assets - Not Qualifying as held for risk-mitigation purposes",null,null,"Liabilities","Liabilities without Management Actions",null,"Liabilities with Management Actions"]
[null,null,null,null,"Before Shock","After Shock",null,"Before Shock","After Shock",null,"After Shock",null,"Before Shock","After Shock",null,"Before Shock","After Shock",null,"Before Shock","After Shock",null,"After Shock"]
[null,null,null,null,"(A)","(B)",null,"(C)","(D)",null,"(F)",null,"(G)","(H)",null,"(I)","(J)",null,"(K)","(L)",null,"(N)"]
[null,1,"United States Dollars",null,{"$f":"Import!M8805","v":0},{"$f":"Import!M8824","v":0},null,{"$f":"Import!M8843","v":0},{"$f":"Import!M8862","v":0},null,{"$f":"Import!M8881","v":0},null,{"$f":"Import!M8900","v":0},{"$f":"Import!M8919","v":0},null,{"$f":"Import!M8938","v":0},{"$f":"Import!M8957","v":0},null,{"$f":"Import!M8976","v":0},{"$f":"Import!M8995","v":0},null,{"$f":"Import!M9014","v":0}]
[null,{"$f":"B10+1","v":2},"Euro",null,{"$f":"Import!M8806","v":0},{"$f":"Import!M8825","v":0},null,{"$f":"Import!M8844","v":0},{"$f":"Import!M8863","v":0},null,{"$f":"Import!M8882","v":0},null,{"$f":"Import!M8901","v":0},{"$f":"Import!M8920","v":0},null,{"$f":"Import!M8939","v":0},{"$f":"Import!M8958","v":0},null,{"$f":"Import!M8977","v":0},{"$f":"Import!M8996","v":0},null,{"$f":"Import!M9015","v":0}]
[null,{"$f":"B11+1","v":3},"United Kingdom Pounds",null,{"$f":"Import!M8807","v":0},{"$f":"Import!M8826","v":0},null,{"$f":"Import!M8845","v":0},{"$f":"Import!M8864","v":0},null,{"$f":"Import!M8883","v":0},null,{"$f":"Import!M8902","v":0},{"$f":"Import!M8921","v":0},null,{"$f":"Import!M8940","v":0},{"$f":"Import!M8959","v":0},null,{"$f":"Import!M8978","v":0},{"$f":"Import!M8997","v":0},null,{"$f":"Import!M9016","v":0}]
[null,4,"Japan Yen",null,{"$f":"Import!M8808","v":0},{"$f":"Import!M8827","v":0},null,{"$f":"Import!M8846","v":0},{"$f":"Import!M8865","v":0},null,{"$f":"Import!M8884","v":0},null,{"$f":"Import!M8903","v":0},{"$f":"Import!M8922","v":0},null,{"$f":"Import!M8941","v":0},{"$f":"Import!M8960","v":0},null,{"$f":"Import!M8979","v":0},{"$f":"Import!M8998","v":0},null,{"$f":"Import!M9017","v":0}]
[null,5,"Canada Dollars",null,{"$f":"Import!M8809","v":0},{"$f":"Import!M8828","v":0},null,{"$f":"Import!M8847","v":0},{"$f":"Import!M8866","v":0},null,{"$f":"Import!M8885","v":0},null,{"$f":"Import!M8904","v":0},{"$f":"Import!M8923","v":0},null,{"$f":"Import!M8942","v":0},{"$f":"Import!M8961","v":0},null,{"$f":"Import!M8980","v":0},{"$f":"Import!M8999","v":0},null,{"$f":"Import!M9018","v":0}]
[null,6,"Swiss Francs",null,{"$f":"Import!M8810","v":0},{"$f":"Import!M8829","v":0},null,{"$f":"Import!M8848","v":0},{"$f":"Import!M8867","v":0},null,{"$f":"Import!M8886","v":0},null,{"$f":"Import!M8905","v":0},{"$f":"Import!M8924","v":0},null,{"$f":"Import!M8943","v":0},{"$f":"Import!M8962","v":0},null,{"$f":"Import!M8981","v":0},{"$f":"Import!M9000","v":0},null,{"$f":"Import!M9019","v":0}]
[null,7,"Australia Dollar",null,{"$f":"Import!M8811","v":0},{"$f":"Import!M8830","v":0},null,{"$f":"Import!M8849","v":0},{"$f":"Import!M8868","v":0},null,{"$f":"Import!M8887","v":0},null,{"$f":"Import!M8906","v":0},{"$f":"Import!M8925","v":0},null,{"$f":"Import!M8944","v":0},{"$f":"Import!M8963","v":0},null,{"$f":"Import!M8982","v":0},{"$f":"Import!M9001","v":0},null,{"$f":"Import!M9020","v":0}]
[null,8,"New Zealand Dollar",null,{"$f":"Import!M8812","v":0},{"$f":"Import!M8831","v":0},null,{"$f":"Import!M8850","v":0},{"$f":"Import!M8869","v":0},null,{"$f":"Import!M8888","v":0},null,{"$f":"Import!M8907","v":0},{"$f":"Import!M8926","v":0},null,{"$f":"Import!M8945","v":0},{"$f":"Import!M8964","v":0},null,{"$f":"Import!M8983","v":0},{"$f":"Import!M9002","v":0},null,{"$f":"Import!M9021","v":0}]
[null,9,{"$f":"Import!M8795","v":"Other currency 1"},null,{"$f":"Import!M8813","v":0},{"$f":"Import!M8832","v":0},null,{"$f":"Import!M8851","v":0},{"$f":"Import!M8870","v":0},null,{"$f":"Import!M8889","v":0},null,{"$f":"Import!M8908","v":0},{"$f":"Import!M8927","v":0},null,{"$f":"Import!M8946","v":0},{"$f":"Import!M8965","v":0},null,{"$f":"Import!M8984","v":0},{"$f":"Import!M9003","v":0},null,{"$f":"Import!M9022","v":0}]
[null,10,{"$f":"Import!M8796","v":"Other currency 2"},null,{"$f":"Import!M8814","v":0},{"$f":"Import!M8833","v":0},null,{"$f":"Import!M8852","v":0},{"$f":"Import!M8871","v":0},null,{"$f":"Import!M8890","v":0},null,{"$f":"Import!M8909","v":0},{"$f":"Import!M8928","v":0},null,{"$f":"Import!M8947","v":0},{"$f":"Import!M8966","v":0},null,{"$f":"Import!M8985","v":0},{"$f":"Import!M9004","v":0},null,{"$f":"Import!M9023","v":0}]
[null,11,{"$f":"Import!M8797","v":"Other currency 3"},null,{"$f":"Import!M8815","v":0},{"$f":"Import!M8834","v":0},null,{"$f":"Import!M8853","v":0},{"$f":"Import!M8872","v":0},null,{"$f":"Import!M8891","v":0},null,{"$f":"Import!M8910","v":0},{"$f":"Import!M8929","v":0},null,{"$f":"Import!M8948","v":0},{"$f":"Import!M8967","v":0},null,{"$f":"Import!M8986","v":0},{"$f":"Import!M9005","v":0},null,{"$f":"Import!M9024","v":0}]
[null,12,{"$f":"Import!M8798","v":"Other currency 4"},null,{"$f":"Import!M8816","v":0},{"$f":"Import!M8835","v":0},null,{"$f":"Import!M8854","v":0},{"$f":"Import!M8873","v":0},null,{"$f":"Import!M8892","v":0},null,{"$f":"Import!M8911","v":0},{"$f":"Import!M8930","v":0},null,{"$f":"Import!M8949","v":0},{"$f":"Import!M8968","v":0},null,{"$f":"Import!M8987","v":0},{"$f":"Import!M9006","v":0},null,{"$f":"Import!M9025","v":0}]
[null,13,{"$f":"Import!M8799","v":"Other currency 5"},null,{"$f":"Import!M8817","v":0},{"$f":"Import!M8836","v":0},null,{"$f":"Import!M8855","v":0},{"$f":"Import!M8874","v":0},null,{"$f":"Import!M8893","v":0},null,{"$f":"Import!M8912","v":0},{"$f":"Import!M8931","v":0},null,{"$f":"Import!M8950","v":0},{"$f":"Import!M8969","v":0},null,{"$f":"Import!M8988","v":0},{"$f":"Import!M9007","v":0},null,{"$f":"Import!M9026","v":0}]
[null,14,{"$f":"Import!M8800","v":"Other currency 6"},null,{"$f":"Import!M8818","v":0},{"$f":"Import!M8837","v":0},null,{"$f":"Import!M8856","v":0},{"$f":"Import!M8875","v":0},null,{"$f":"Import!M8894","v":0},null,{"$f":"Import!M8913","v":0},{"$f":"Import!M8932","v":0},null,{"$f":"Import!M8951","v":0},{"$f":"Import!M8970","v":0},null,{"$f":"Import!M8989","v":0},{"$f":"Import!M9008","v":0},null,{"$f":"Import!M9027","v":0}]
[null,15,{"$f":"Import!M8801","v":"Other currency 7"},null,{"$f":"Import!M8819","v":0},{"$f":"Import!M8838","v":0},null,{"$f":"Import!M8857","v":0},{"$f":"Import!M8876","v":0},null,{"$f":"Import!M8895","v":0},null,{"$f":"Import!M8914","v":0},{"$f":"Import!M8933","v":0},null,{"$f":"Import!M8952","v":0},{"$f":"Import!M8971","v":0},null,{"$f":"Import!M8990","v":0},{"$f":"Import!M9009","v":0},null,{"$f":"Import!M9028","v":0}]
[null,16,{"$f":"Import!M8802","v":"Other currency 8"},null,{"$f":"Import!M8820","v":0},{"$f":"Import!M8839","v":0},null,{"$f":"Import!M8858","v":0},{"$f":"Import!M8877","v":0},null,{"$f":"Import!M8896","v":0},null,{"$f":"Import!M8915","v":0},{"$f":"Import!M8934","v":0},null,{"$f":"Import!M8953","v":0},{"$f":"Import!M8972","v":0},null,{"$f":"Import!M8991","v":0},{"$f":"Import!M9010","v":0},null,{"$f":"Import!M9029","v":0}]
[null,17,{"$f":"Import!M8803","v":"Other currency 9"},null,{"$f":"Import!M8821","v":0},{"$f":"Import!M8840","v":0},null,{"$f":"Import!M8859","v":0},{"$f":"Import!M8878","v":0},null,{"$f":"Import!M8897","v":0},null,{"$f":"Import!M8916","v":0},{"$f":"Import!M8935","v":0},null,{"$f":"Import!M8954","v":0},{"$f":"Import!M8973","v":0},null,{"$f":"Import!M8992","v":0},{"$f":"Import!M9011","v":0},null,{"$f":"Import!M9030","v":0}]
[null,18,{"$f":"Import!M8804","v":"Other currency 10"},null,{"$f":"Import!M8822","v":0},{"$f":"Import!M8841","v":0},null,{"$f":"Import!M8860","v":0},{"$f":"Import!M8879","v":0},null,{"$f":"Import!M8898","v":0},null,{"$f":"Import!M8917","v":0},{"$f":"Import!M8936","v":0},null,{"$f":"Import!M8955","v":0},{"$f":"Import!M8974","v":0},null,{"$f":"Import!M8993","v":0},{"$f":"Import!M9012","v":0},null,{"$f":"Import!M9031","v":0}]
[null,19,"IR Down Shock Total",null,{"$f":"SUM(E10:E27)","v":0},{"$f":"SUM(F10:F27)","v":0},null,{"$f":"SUM(H10:H27)","v":0},{"$f":"SUM(I10:I27)","v":0},null,{"$f":"SUM(K10:K27)","v":0},null,{"$f":"SUM(M10:M27)","v":0},{"$f":"SUM(N10:N27)","v":0},null,{"$f":"SUM(P10:P27)","v":0},{"$f":"SUM(Q10:Q27)","v":0},null,{"$f":"SUM(S10:S27)","v":0},{"$f":"SUM(T10:T27)","v":0},null,{"$f":"SUM(V10:V27)","v":0}]
[]
[null,null,null,null,"INTEREST RATE UP SHOCK"]
[null,null,null,null,"Exposures other than derivatives",null,null,null,null,null,null,null,"Derivative exposures"]
[null,null,"Currency",null,"Assets",null,null,"Liabilities","Liabilities without Management Actions",null,"Liabilities with Management Actions",null,"Assets - Qualifying as held for risk-mitigation purposes",null,null,"Assets - Not Qualifying as held for risk-mitigation purposes",null,null,"Liabilities","Liabilities without Management Actions",null,"Liabilities with Management Actions"]
[null,null,null,null,"Before Shock","After Shock",null,"Before Shock","After Shock",null,"After Shock",null,"Before Shock","After Shock",null,"Before Shock","After Shock",null,"Before Shock","After Shock",null,"After Shock"]
[null,null,null,null,"(A)","(B)",null,"(C)","(D)",null,"(F)",null,"(G)","(H)",null,"(I)","(J)",null,"(K)","(L)",null,"(N)"]
[null,{"$f":"B28+1","v":20},"United States Dollars",null,{"$f":"Import!M9043","v":0},{"$f":"Import!M9062","v":0},null,{"$f":"Import!M9081","v":0},{"$f":"Import!M9100","v":0},null,{"$f":"Import!M9119","v":0},null,{"$f":"Import!M9138","v":0},{"$f":"Import!M9157","v":0},null,{"$f":"Import!M9176","v":0},{"$f":"Import!M9195","v":0},null,{"$f":"Import!M9214","v":0},{"$f":"Import!M9233","v":0},null,{"$f":"Import!M9252","v":0}]
[null,{"$f":"B35+1","v":21},"Euro",null,{"$f":"Import!M9044","v":0},{"$f":"Import!M9063","v":0},null,{"$f":"Import!M9082","v":0},{"$f":"Import!M9101","v":0},null,{"$f":"Import!M9120","v":0},null,{"$f":"Import!M9139","v":0},{"$f":"Import!M9158","v":0},null,{"$f":"Import!M9177","v":0},{"$f":"Import!M9196","v":0},null,{"$f":"Import!M9215","v":0},{"$f":"Import!M9234","v":0},null,{"$f":"Import!M9253","v":0}]
[null,{"$f":"B36+1","v":22},"United Kingdom Pounds",null,{"$f":"Import!M9045","v":0},{"$f":"Import!M9064","v":0},null,{"$f":"Import!M9083","v":0},{"$f":"Import!M9102","v":0},null,{"$f":"Import!M9121","v":0},null,{"$f":"Import!M9140","v":0},{"$f":"Import!M9159","v":0},null,{"$f":"Import!M9178","v":0},{"$f":"Import!M9197","v":0},null,{"$f":"Import!M9216","v":0},{"$f":"Import!M9235","v":0},null,{"$f":"Import!M9254","v":0}]
[null,23,"Japan Yen",null,{"$f":"Import!M9046","v":0},{"$f":"Import!M9065","v":0},null,{"$f":"Import!M9084","v":0},{"$f":"Import!M9103","v":0},null,{"$f":"Import!M9122","v":0},null,{"$f":"Import!M9141","v":0},{"$f":"Import!M9160","v":0},null,{"$f":"Import!M9179","v":0},{"$f":"Import!M9198","v":0},null,{"$f":"Import!M9217","v":0},{"$f":"Import!M9236","v":0},null,{"$f":"Import!M9255","v":0}]
[null,24,"Canada Dollars",null,{"$f":"Import!M9047","v":0},{"$f":"Import!M9066","v":0},null,{"$f":"Import!M9085","v":0},{"$f":"Import!M9104","v":0},null,{"$f":"Import!M9123","v":0},null,{"$f":"Import!M9142","v":0},{"$f":"Import!M9161","v":0},null,{"$f":"Import!M9180","v":0},{"$f":"Import!M9199","v":0},null,{"$f":"Import!M9218","v":0},{"$f":"Import!M9237","v":0},null,{"$f":"Import!M9256","v":0}]
[null,25,"Swiss Francs",null,{"$f":"Import!M9048","v":0},{"$f":"Import!M9067","v":0},null,{"$f":"Import!M9086","v":0},{"$f":"Import!M9105","v":0},null,{"$f":"Import!M9124","v":0},null,{"$f":"Import!M9143","v":0},{"$f":"Import!M9162","v":0},null,{"$f":"Import!M9181","v":0},{"$f":"Import!M9200","v":0},null,{"$f":"Import!M9219","v":0},{"$f":"Import!M9238","v":0},null,{"$f":"Import!M9257","v":0}]
[null,26,"Australia Dollar",null,{"$f":"Import!M9049","v":0},{"$f":"Import!M9068","v":0},null,{"$f":"Import!M9087","v":0},{"$f":"Import!M9106","v":0},null,{"$f":"Import!M9125","v":0},null,{"$f":"Import!M9144","v":0},{"$f":"Import!M9163","v":0},null,{"$f":"Import!M9182","v":0},{"$f":"Import!M9201","v":0},null,{"$f":"Import!M9220","v":0},{"$f":"Import!M9239","v":0},null,{"$f":"Import!M9258","v":0}]
[null,27,"New Zealand Dollar",null,{"$f":"Import!M9050","v":0},{"$f":"Import!M9069","v":0},null,{"$f":"Import!M9088","v":0},{"$f":"Import!M9107","v":0},null,{"$f":"Import!M9126","v":0},null,{"$f":"Import!M9145","v":0},{"$f":"Import!M9164","v":0},null,{"$f":"Import!M9183","v":0},{"$f":"Import!M9202","v":0},null,{"$f":"Import!M9221","v":0},{"$f":"Import!M9240","v":0},null,{"$f":"Import!M9259","v":0}]
[null,28,{"$f":"Import!M9033","v":"Other currency 1"},null,{"$f":"Import!M9051","v":0},{"$f":"Import!M9070","v":0},null,{"$f":"Import!M9089","v":0},{"$f":"Import!M9108","v":0},null,{"$f":"Import!M9127","v":0},null,{"$f":"Import!M9146","v":0},{"$f":"Import!M9165","v":0},null,{"$f":"Import!M9184","v":0},{"$f":"Import!M9203","v":0},null,{"$f":"Import!M9222","v":0},{"$f":"Import!M9241","v":0},null,{"$f":"Import!M9260","v":0}]
[null,29,{"$f":"Import!M9034","v":"Other currency 2"},null,{"$f":"Import!M9052","v":0},{"$f":"Import!M9071","v":0},null,{"$f":"Import!M9090","v":0},{"$f":"Import!M9109","v":0},null,{"$f":"Import!M9128","v":0},null,{"$f":"Import!M9147","v":0},{"$f":"Import!M9166","v":0},null,{"$f":"Import!M9185","v":0},{"$f":"Import!M9204","v":0},null,{"$f":"Import!M9223","v":0},{"$f":"Import!M9242","v":0},null,{"$f":"Import!M9261","v":0}]
[null,30,{"$f":"Import!M9035","v":"Other currency 3"},null,{"$f":"Import!M9053","v":0},{"$f":"Import!M9072","v":0},null,{"$f":"Import!M9091","v":0},{"$f":"Import!M9110","v":0},null,{"$f":"Import!M9129","v":0},null,{"$f":"Import!M9148","v":0},{"$f":"Import!M9167","v":0},null,{"$f":"Import!M9186","v":0},{"$f":"Import!M9205","v":0},null,{"$f":"Import!M9224","v":0},{"$f":"Import!M9243","v":0},null,{"$f":"Import!M9262","v":0}]
[null,31,{"$f":"Import!M9036","v":"Other currency 4"},null,{"$f":"Import!M9054","v":0},{"$f":"Import!M9073","v":0},null,{"$f":"Import!M9092","v":0},{"$f":"Import!M9111","v":0},null,{"$f":"Import!M9130","v":0},null,{"$f":"Import!M9149","v":0},{"$f":"Import!M9168","v":0},null,{"$f":"Import!M9187","v":0},{"$f":"Import!M9206","v":0},null,{"$f":"Import!M9225","v":0},{"$f":"Import!M9244","v":0},null,{"$f":"Import!M9263","v":0}]
[null,32,{"$f":"Import!M9037","v":"Other currency 5"},null,{"$f":"Import!M9055","v":0},{"$f":"Import!M9074","v":0},null,{"$f":"Import!M9093","v":0},{"$f":"Import!M9112","v":0},null,{"$f":"Import!M9131","v":0},null,{"$f":"Import!M9150","v":0},{"$f":"Import!M9169","v":0},null,{"$f":"Import!M9188","v":0},{"$f":"Import!M9207","v":0},null,{"$f":"Import!M9226","v":0},{"$f":"Import!M9245","v":0},null,{"$f":"Import!M9264","v":0}]
[null,33,{"$f":"Import!M9038","v":"Other currency 6"},null,{"$f":"Import!M9056","v":0},{"$f":"Import!M9075","v":0},null,{"$f":"Import!M9094","v":0},{"$f":"Import!M9113","v":0},null,{"$f":"Import!M9132","v":0},null,{"$f":"Import!M9151","v":0},{"$f":"Import!M9170","v":0},null,{"$f":"Import!M9189","v":0},{"$f":"Import!M9208","v":0},null,{"$f":"Import!M9227","v":0},{"$f":"Import!M9246","v":0},null,{"$f":"Import!M9265","v":0}]
[null,34,{"$f":"Import!M9039","v":"Other currency 7"},null,{"$f":"Import!M9057","v":0},{"$f":"Import!M9076","v":0},null,{"$f":"Import!M9095","v":0},{"$f":"Import!M9114","v":0},null,{"$f":"Import!M9133","v":0},null,{"$f":"Import!M9152","v":0},{"$f":"Import!M9171","v":0},null,{"$f":"Import!M9190","v":0},{"$f":"Import!M9209","v":0},null,{"$f":"Import!M9228","v":0},{"$f":"Import!M9247","v":0},null,{"$f":"Import!M9266","v":0}]
[null,35,{"$f":"Import!M9040","v":"Other currency 8"},null,{"$f":"Import!M9058","v":0},{"$f":"Import!M9077","v":0},null,{"$f":"Import!M9096","v":0},{"$f":"Import!M9115","v":0},null,{"$f":"Import!M9134","v":0},null,{"$f":"Import!M9153","v":0},{"$f":"Import!M9172","v":0},null,{"$f":"Import!M9191","v":0},{"$f":"Import!M9210","v":0},null,{"$f":"Import!M9229","v":0},{"$f":"Import!M9248","v":0},null,{"$f":"Import!M9267","v":0}]
[null,36,{"$f":"Import!M9041","v":"Other currency 9"},null,{"$f":"Import!M9059","v":0},{"$f":"Import!M9078","v":0},null,{"$f":"Import!M9097","v":0},{"$f":"Import!M9116","v":0},null,{"$f":"Import!M9135","v":0},null,{"$f":"Import!M9154","v":0},{"$f":"Import!M9173","v":0},null,{"$f":"Import!M9192","v":0},{"$f":"Import!M9211","v":0},null,{"$f":"Import!M9230","v":0},{"$f":"Import!M9249","v":0},null,{"$f":"Import!M9268","v":0}]
[null,37,{"$f":"Import!M9042","v":"Other currency 10"},null,{"$f":"Import!M9060","v":0},{"$f":"Import!M9079","v":0},null,{"$f":"Import!M9098","v":0},{"$f":"Import!M9117","v":0},null,{"$f":"Import!M9136","v":0},null,{"$f":"Import!M9155","v":0},{"$f":"Import!M9174","v":0},null,{"$f":"Import!M9193","v":0},{"$f":"Import!M9212","v":0},null,{"$f":"Import!M9231","v":0},{"$f":"Import!M9250","v":0},null,{"$f":"Import!M9269","v":0}]
[null,38,"IR UP Shock Total",null,{"$f":"SUM(E35:E52)","v":0},{"$f":"SUM(F35:F52)","v":0},null,{"$f":"SUM(H35:H52)","v":0},{"$f":"SUM(I35:I52)","v":0},null,{"$f":"SUM(K35:K52)","v":0},null,{"$f":"SUM(M35:M52)","v":0},{"$f":"SUM(N35:N52)","v":0},null,{"$f":"SUM(P35:P52)","v":0},{"$f":"SUM(Q35:Q52)","v":0},null,{"$f":"SUM(S35:S52)","v":0},{"$f":"SUM(T35:T52)","v":0},null,{"$f":"SUM(V35:V52)","v":0}]
[]
[null,null,"Interest Rate Check",null,{"$f":"IF(ROUND(E28-E53,0)=0,\"Yes\",\"No\")","v":"Yes"},null,null,{"$f":"IF(ROUND(H28-H53,0)=0,\"Yes\",\"No\")","v":"Yes"},null,null,null,null,{"$f":"IF(ROUND(M28-M53,0)=0,\"Yes\",\"No\")","v":"Yes"},null,null,{"$f":"IF(ROUND(P28-P53,0)=0,\"Yes\",\"No\")","v":"Yes"},null,null,{"$f":"IF(ROUND(S28-S53,0)=0,\"Yes\",\"No\")","v":"Yes"}]
[null,null,"Difference",null,{"$f":"ROUND(E28-E53,0)","v":0},null,null,{"$f":"ROUND(H28-H53,0)","v":0},null,null,null,null,{"$f":"ROUND(M28-M53,0)","v":0},null,null,{"$f":"ROUND(P28-P53,0)","v":0},null,null,{"$f":"ROUND(S28-S53,0)","v":0}]
[]
[]
[]
[]
[]
[]
[]
[]
[]
[]
[]
[]
[]
[]
[]
[]
[]
[]
[]
[]
[]
[]
[]
[]
[]
[]
[null,null,null,null,"A or better"]
[null,null,null,null,"BBB or equivalent"]
[null,null,null,null,"B or better"]
[null,null,null,null,"unrated/other"]

{"sheet":"Corp Gov","index":70,"n_rows":21,"n_cols":14,"rows_kept":21,"cut":false,"hidden":false,"merged":[[5,1,5,3],[20,1,20,3],[0,2,0,3]]}
[null,"OPERATIONAL RISK: CORPORATE GOVERNANCE",{"$f":"HYPERLINK(\"#'Index'!A1\",\"Return to Index\")","v":"Return to Index"}]
[]
[null,{"$f":"'Insurer Information'!C7","v":"Enter Company Name"}]
[null,{"$f":"TEXT('Insurer Information'!C3,\"mmmm dd, yyyy\")","v":"December 31, 2019"}]
[]
[null,"The insurer is to review the following statements below.  The insurer is to place an “X” in the column “Implemented” where the Corporate Governance function meets the criteria (200 points for each fulfilled criteria).  The worksheet will automatically aggregate all scores.",null,null,null,null,null,null,null,null,null,null,null,{"$f":"YEAR('Insurer Information'!C3)","v":2019}]
[]
[null,"The Board of Directors:"]
[null,null,null,null,null,null,{"$f":"IF(B4=\"\",\"\",TEXT(DATE(YEAR(B4+1)-1,MONTH(B4+1),DAY(B4+1)),\"mm/dd/yyyy\"))","v":"01/01/2019"}]
[null,"Description","Implemented","Score",null,null,{"$f":"IF(B4=\"\",\"\",TEXT(B4,\"mm/dd/yyyy\"))","v":"12/31/2019"}]
[null,"Sets risk policies, practices and tolerance limits for all material foreseeable operational risks at least annually and ensures they are communicated to releveant business units",null,{"$f":"IF(C11=\"\",Import!I6348,IF(C11=\"X\", 200, 0))","v":0},null,"brrt_TheBoardOfDirectorsSetsRiskPoliciesPracticesAndToleranceLimitsForAllMaterialForeseeableOperationalRisksAtLeastAnnuallyAndEnsuresTheyAreCommunicatedToRelevantBusinessUnits",{"$f":"XBRLMapBoolean(C11,$F11,$G$9,$G$10,CONFIGURATION!$B$10,\"BMA\",CONFIGURATION!$B$1,\"bscr\",IF(OR(C11=\"X\",C11=\"x\"),\"1\",\"0\"))","v":"Mapped"},null,null,null,null,"bma_CorporateGovernance1"]
[null,"Ensures that risk policies, practices and tolerance limits for all material foreseeable operational risks are communicated to relevant business units at least annually",null,{"$f":"IF(C12=\"\",Import!I6349,IF(C12=\"X\", 200, 0))","v":0}]
[null,"Monitors adherence to operational risk tolerance limits more regularly than annually",null,{"$f":"IF(C13=\"\",Import!I6350,IF(C13=\"X\", 200, 0))","v":0},null,"brrt_TheBoardOfDirectorsMonitorsAdherenceToOperationalRiskToleranceLimitsMoreRegularlyThanAnnually",{"$f":"XBRLMapBoolean(C13,$F13,$G$9,$G$10,CONFIGURATION!$B$10,\"BMA\",CONFIGURATION!$B$1,\"bscr\",IF(OR(C13=\"X\",C13=\"x\"),\"1\",\"0\"))","v":"Mapped"},null,null,null,null,"bma_CorporateGovernance2"]
[null,"Receives, at least annually, reports on the effectiveness of material operational risk internal controls as well as management’s plans to address related weaknesses",null,{"$f":"IF(C14=\"\",Import!I6351,IF(C14=\"X\", 200, 0))","v":0},null,"brrt_TheBoardOfDirectorsReceivesAtLeastAnnuallyReportsOnTheEffectivenessOfMaterialOperationalRiskInternalControlsAsWellAsManagementsPlansToAddressRelatedWeaknesses",{"$f":"XBRLMapBoolean(C14,$F14,$G$9,$G$10,CONFIGURATION!$B$10,\"BMA\",CONFIGURATION!$B$1,\"bscr\",IF(OR(C14=\"X\",C14=\"x\"),\"1\",\"0\"))","v":"Mapped"},null,null,null,null,"bma_CorporateGovernance3"]
[null,"Ensures that systems and/or procedures are in place to identify, report and promptly address internal control deficiencies related to operational risks",null,{"$f":"IF(C15=\"\",Import!I6352,IF(C15=\"X\", 200, 0))","v":0},null,"brrt_TheBoardOfDirectorsEnsuresThatSystemsAndOrProceduresAreInPlaceToIdentifyReportAndPromptlyAddressInternalControlDeficienciesRelatedToOperationalRisks",{"$f":"XBRLMapBoolean(C15,$F15,$G$9,$G$10,CONFIGURATION!$B$10,\"BMA\",CONFIGURATION!$B$1,\"bscr\",IF(OR(C15=\"X\",C15=\"x\"),\"1\",\"0\"))","v":"Mapped"},null,null,null,null,"bma_CorporateGovernance4"]
[null,"Promotes full, open and timely disclosure from senior management on all significant issues related to operational risk",null,{"$f":"IF(C16=\"\",Import!I6353,IF(C16=\"X\", 200, 0))","v":0},null,"brrt_TheBoardOfDirectorsPromotesFullOpenAndTimelyDisclosureFromSeniorManagementOnAllSignificantIssuesRelatedToOperationalRisk",{"$f":"XBRLMapBoolean(C16,$F16,$G$9,$G$10,CONFIGURATION!$B$10,\"BMA\",CONFIGURATION!$B$1,\"bscr\",IF(OR(C16=\"X\",C16=\"x\"),\"1\",\"0\"))","v":"Mapped"},null,null,null,null,"bma_CorporateGovernance5"]
[null,"Ensures that periodic independent reviews of the risk management function are performed and receives the findings of the review",null,{"$f":"IF(C17=\"\",Import!I6354,IF(C17=\"X\", 200, 0))","v":0},null,"brrt_TheBoardOfDirectorsEnsuresThatPeriodicIndependentReviewsOfTheRiskManagementFunctionArePerformedAndReceivesTheFindingsOfTheReview",{"$f":"XBRLMapBoolean(C17,$F17,$G$9,$G$10,CONFIGURATION!$B$10,\"BMA\",CONFIGURATION!$B$1,\"bscr\",IF(OR(C17=\"X\",C17=\"x\"),\"1\",\"0\"))","v":"Mapped"},null,null,null,null,"bma_CorporateGovernance6"]
[null,null,null,{"$f":"SUM(D11:D17)","v":0},null,"brrt_CorporateGovernanceScore",{"$f":"XBRLMap(D18,$F18,$G$9,$G$10,CONFIGURATION!$B$10,\"BMA\",CONFIGURATION!$B$1,\"bscr\")","v":"Mapped"},null,null,null,null,"bma_CorporateGovernanceTotal"]
[]
[null,"Comments (optionally, the insurer may provide comments in the box below to support its responses above):"]
[null,null,null,null,null,"brrt_AdditionalCommentsCorporateGovernance",{"$f":"XBRLMap(B21,$F21,$G$9,$G$10,CONFIGURATION!$B$10,\"BMA\",CONFIGURATION!$B$1,\"bscr\")","v":"Mapped"},null,null,null,null,"bma_CorporateGovernanceComment"]

{"sheet":"Risk Man","index":71,"n_rows":21,"n_cols":14,"rows_kept":21,"cut":false,"hidden":false,"merged":[[5,1,5,3],[20,1,20,3],[0,2,0,3]]}
[null,"OPERATIONAL RISK: RISK MANAGEMENT FUNCTION",{"$f":"HYPERLINK(\"#'Index'!A1\",\"Return to Index\")","v":"Return to Index"}]
[]
[null,{"$f":"'Insurer Information'!C7","v":"Enter Company Name"}]
[null,{"$f":"TEXT('Insurer Information'!C3,\"mmmm dd, yyyy\")","v":"December 31, 2019"},null,{"$f":"IF('Insurer Information'!$F$9=\"Class C\",200,150)","v":150}]
[]
[null,{"$f":"\"The insurer is to review the following statements below.  The insurer is to place an X in the column Implemented where the Risk Management function meets the criteria (\"&D4&\" points for each fulfilled criteria).  The worksheet will automatically aggregate all scores.\"","v":"The insurer is to review the following statements below.  The insurer is to place an X in the column Implemented where the Risk Management function meets the criteria (150 points for each fulfilled criteria).  The worksheet will automatically aggregate all scores."},null,null,null,null,null,null,null,null,null,null,null,{"$f":"YEAR('Insurer Information'!C3)","v":2019}]
[]
[null,"The Risk Management Function:",null,null,null,null,null,null,{"$f":"IF(B4=\"\",\"\",TEXT(DATE(YEAR(B4+1)-1,MONTH(B4+1),DAY(B4+1)),\"mm/dd/yyyy\"))","v":"01/01/2019"}]
[]
[null,"Description","Implemented","Score"]
[null,"Is independent of other operational units and has direct access to the Board of Directors",null,{"$f":"IF(C11=\"\",Import!I6355,IF('Insurer Information'!$F$9=\"Class C\",IF(C11=\"X\", 200, 0),IF(C11=\"X\", 150, 0)))","v":0},null,"brrt_TheRiskManagementFunctionIsIndependentOfOtherOperationalUnitsAndHasDirectAccessToTheBoardOfDirectors",null,null,{"$f":"XBRLMapBoolean(C11,$F11,$I$8,$I$9,CONFIGURATION!$B$10,\"BMA\",CONFIGURATION!$B$1,\"bscr\",IF(OR(C11=\"X\",C11=\"x\"),\"1\",\"0\"))","v":"Mapped"},null,null,null,null,"bma_RiskManagementFunction1"]
[null,"Is entrenched in strategic planning, decision making and budgeting process",null,{"$f":"IF(C12=\"\",Import!I6356,IF('Insurer Information'!$F$9=\"Class C\",IF(C12=\"X\", 200, 0),IF(C12=\"X\", 150, 0)))","v":0},null,"brrt_TheRiskManagementFunctionIsEntrenchedInStrategicPlanningDecisionMakingAndBudgetingProcess",null,null,{"$f":"XBRLMapBoolean(C12,$F12,$I$8,$I$9,CONFIGURATION!$B$10,\"BMA\",CONFIGURATION!$B$1,\"bscr\",IF(OR(C12=\"X\",C12=\"x\"),\"1\",\"0\"))","v":"Mapped"},null,null,null,null,"bma_RiskManagementFunction2"]
[null,"Ensures that the risk management procedures and policies are well documented and approved by the Board of Directors",null,{"$f":"IF(C13=\"\",Import!I6357,IF('Insurer Information'!$F$9=\"Class C\",IF(C13=\"X\", 200, 0),IF(C13=\"X\", 150, 0)))","v":0},null,"brrt_TheRiskManagementFunctionEnsuresThatTheRiskManagementProceduresAndPoliciesAreWellDocumentedAndApprovedByTheBoardOfDirectors",null,null,{"$f":"XBRLMapBoolean(C13,$F13,$I$8,$I$9,CONFIGURATION!$B$10,\"BMA\",CONFIGURATION!$B$1,\"bscr\",IF(OR(C13=\"X\",C13=\"x\"),\"1\",\"0\"))","v":"Mapped"},null,null,null,null,"bma_RiskManagementFunction3"]
[null,"Ensures the risk management policies and procedures are communicated throughout the organisation.",null,{"$f":"IF(C14=\"\",Import!I6358,IF('Insurer Information'!$F$9=\"Class C\",IF(C14=\"X\", 200, 0),IF(C14=\"X\", 150, 0)))","v":0},null,"brrt_TheRiskManagementFunctionEnsuresTheRiskManagementPoliciesAndProceduresAreCommunicatedThroughoutTheOrganisation",null,null,{"$f":"XBRLMapBoolean(C14,$F14,$I$8,$I$9,CONFIGURATION!$B$10,\"BMA\",CONFIGURATION!$B$1,\"bscr\",IF(OR(C14=\"X\",C14=\"x\"),\"1\",\"0\"))","v":"Mapped"},null,null,null,null,"bma_RiskManagementFunction4"]
[null,"Reviews operational risk management processes and procedures at least annually",null,{"$f":"IF(C15=\"\",Import!I6359,IF('Insurer Information'!$F$9=\"Class C\",IF(C15=\"X\", 200, 0),IF(C15=\"X\", 150, 0)))","v":0},null,"brrt_TheRiskManagementFunctionReviewsOperationalRiskManagementProcessesAndProceduresAtLeastAnnually",null,null,{"$f":"XBRLMapBoolean(C15,$F15,$I$8,$I$9,CONFIGURATION!$B$10,\"BMA\",CONFIGURATION!$B$1,\"bscr\",IF(OR(C15=\"X\",C15=\"x\"),\"1\",\"0\"))","v":"Mapped"},null,null,null,null,"bma_RiskManagementFunction5"]
[null,"Ensures that loss events arising from operational risks are documented and loss event data is integrated into enterprise risk management ",null,{"$f":"IF(C16=\"\",Import!I6360,IF('Insurer Information'!$F$9=\"Class C\",IF(C16=\"X\", 200, 0),IF(C16=\"X\", 150, 0)))","v":0},null,"brrt_TheRiskManagementFunctionEnsuresThatLossEventsArisingFromOperationalRisksAreDocumentedAndLossEventDataIsIntegratedIntoEnterpriseRiskManagement",null,null,{"$f":"XBRLMapBoolean(C16,$F16,$I$8,$I$9,CONFIGURATION!$B$10,\"BMA\",CONFIGURATION!$B$1,\"bscr\",IF(OR(C16=\"X\",C16=\"x\"),\"1\",\"0\"))","v":"Mapped"},null,null,null,null,"bma_RiskManagementFunction6"]
[null,"Documents its risk management recommendations for operational units, ensures that deficiencies have remedial plans and progress on the execution of such plans are reported to the Board of Directors at least annually",null,{"$f":"IF(C17=\"\",Import!I6361,IF('Insurer Information'!$F$9=\"Class C\",IF(C17=\"X\", 200, 0),IF(C17=\"X\", 150, 0)))","v":0},null,"brrt_TheRiskManagementFunctionDocumentsItsRiskManagementRecommendationsForOperationalUnitsEnsuresThatDeficienciesHaveRemedialPlansAndProgressOnTheExecutionOfSuchPlansAreReportedToTheBoardOfDirectorsAtLeastAnnually",null,null,{"$f":"XBRLMapBoolean(C17,$F17,$I$8,$I$9,CONFIGURATION!$B$10,\"BMA\",CONFIGURATION!$B$1,\"bscr\",IF(OR(C17=\"X\",C17=\"x\"),\"1\",\"0\"))","v":"Mapped"},null,null,null,null,"bma_RiskManagementFunction7"]
[null,null,null,{"$f":"SUM(D11:D17)","v":0},null,"brrt_RiskManagementScore",null,null,{"$f":"XBRLMap(D18,$F18,$I$8,$I$9,CONFIGURATION!$B$10,\"BMA\",CONFIGURATION!$B$1,\"bscr\")","v":"Mapped"},null,null,null,null,"bma_RiskManagementFunctionTotal"]
[]
[null,"Comments (optionally, the insurer may provide comments in the box below to support its responses above):"]
[null,null,null,null,null,"brrt_AdditionalCommentsRiskManagement",null,null,{"$f":"XBRLMap(B21,$F21,$I$8,$I$9,CONFIGURATION!$B$10,\"BMA\",CONFIGURATION!$B$1,\"bscr\")","v":"Mapped"},null,null,null,null,"bma_RiskManagementFunctionComment"]

{"sheet":"Identification","index":72,"n_rows":32,"n_cols":38,"rows_kept":32,"cut":false,"hidden":false,"merged":[[0,11,0,12],[2,1,2,2],[21,1,21,12],[12,1,12,2],[12,3,13,3],[12,4,12,12],[20,1,20,7],[4,1,4,12],[6,1,6,10],[6,11,6,12]]}
[null,"OPERATIONAL RISK: RISK IDENTIFICATION",null,null,null,null,null,null,null,null,null,{"$f":"HYPERLINK(\"#'Index'!A1\",\"Return to Index\")","v":"Return to Index"}]
[null,{"$f":"'Insurer Information'!C7","v":"Enter Company Name"},null,null,null,null,null,null,null,null,null,null,null,null,null,"brrt_OperationalRiskAreaActionAxis_brrt_IdentificationMember"]
[null,{"$f":"TEXT('Insurer Information'!C3,\"mmmm dd, yyyy\")","v":"December 31, 2019"},null,null,null,null,null,null,null,null,null,null,null,null,null,"brrt_OperationalRiskAreaStageAxis_brrt_TotalMember"]
[]
[null,"The insurer is to answer the following question.  If the answer to the question is \"No\" then the insurer does not have to complete the matrix/grid.  If the answer to the question is \"Yes\" then the insurer is to identify the stage of progression of each Operational Risk Area based upon the Dimension descriptor.  The insurer is then to input an “X” in the grid corresponding to the stage in the matrix table under the relevant Operational Risk Area."]
[]
[null,"Has your company taken steps to identify material risks arising from the Operational Risk Areas identified below? (Y/N) ",null,null,null,null,null,null,null,null,null,null,null,null,null,null,"brrt_StepsHaveBeenTakenToIdentifyMaterialRisksArisingFromOperationalRiskAreasIdentified",{"$f":"XBRLMapBoolean(L7,Q$7&\".\"&$P$2&\".\"&$P$3,$E$25,$E$26,CONFIGURATION!$B$10,\"BMA\",CONFIGURATION!$B$1,\"bscr\",IF(L7=\"Yes\",\"1\",\"0\"))","v":"Mapped"},null,null,null,null,null,null,null,null,null,null,null,"bma_RiskIdentificationPractice"]
[]
[null,"If \"Y\", identify the stage of each Operational Risk Area and input an \"X\" in the appropriate grid under each area."]
[]
[null,"Risk Identification Processes are:"]
[]
[null,"Progression",null,"Dimension","Operational Risk Areas"]
[null,"Stage","Scoring",null,"Fraud","Human Resources","Outsourcing","Distribution Channels","Business Processes","Business Continuity","Information Systems","Compliance","Total (Si)",null,null,null,null,null,null,null,null,null,null,null,null,null,null,null,null,"bma_RiskIdentificationFraudAbstract","bma_RiskIdentificationHumanResourcesAbstract","bma_RiskIdentificationOutsourcingAbstract","bma_RiskIdentificationDistributionChannelsAbstract","bma_RiskIdentificationBusinessProcessesAbstract","bma_RiskIdentificationBusinessContinuityAbstract","bma_RiskIdentificationInformationSystemsAbstract","bma_RiskIdentificationComplianceAbstract","bma_RiskIdentificationTotalAbstract"]
[null,1,50,"“ad hoc”",null,null,null,null,null,null,null,null,null,null,null,null,"brrt_OperationalRiskAreaStageAxis_brrt_Stage1Member",null,null,null,null,null,null,null,null,null,null,null,null,"bma_RiskIdentificationFraudStage1","bma_RiskIdentificationHumanResourcesStage1","bma_RiskIdentificationOutsourcingStage1","bma_RiskIdentificationDistributionChannelsStage1","bma_RiskIdentificationBusinessProcessesStage1","bma_RiskIdentificationBusinessContinuityStage1","bma_RiskIdentificationInformationSystemsStage1","bma_RiskIdentificationComplianceStage1","bma_RiskIdentificationTotalStage1"]
[null,2,100,"Implemented but not standardized across the organization",null,null,null,null,null,null,null,null,null,null,null,null,"brrt_OperationalRiskAreaStageAxis_brrt_Stage2Member",null,null,null,null,null,null,null,null,null,null,null,null,"bma_RiskIdentificationFraudStage2","bma_RiskIdentificationHumanResourcesStage2","bma_RiskIdentificationOutsourcingStage2","bma_RiskIdentificationDistributionChannelsStage2","bma_RiskIdentificationBusinessProcessesStage2","bma_RiskIdentificationBusinessContinuityStage2","bma_RiskIdentificationInformationSystemsStage2","bma_RiskIdentificationComplianceStage2","bma_RiskIdentificationTotalStage2"]
[null,3,150,"Implemented, well documented policies and procedures that are understood by relevant staff, and standardized across the entire organization",null,null,null,null,null,null,null,null,null,null,null,null,"brrt_OperationalRiskAreaStageAxis_brrt_Stage3Member",null,null,null,null,null,null,null,null,null,null,null,null,"bma_RiskIdentificationFraudStage3","bma_RiskIdentificationHumanResourcesStage3","bma_RiskIdentificationOutsourcingStage3","bma_RiskIdentificationDistributionChannelsStage3","bma_RiskIdentificationBusinessProcessesStage3","bma_RiskIdentificationBusinessContinuityStage3","bma_RiskIdentificationInformationSystemsStage3","bma_RiskIdentificationComplianceStage3","bma_RiskIdentificationTotalStage3"]
[null,4,200,"In addition to Stage 3, processes are reviewed at least annually with the view to assessing effectiveness and introducing improvements",null,null,null,null,null,null,null,null,null,null,null,null,"brrt_OperationalRiskAreaStageAxis_brrt_Stage4Member",null,null,null,null,null,null,null,null,null,null,null,null,"bma_RiskIdentificationFraudStage4","bma_RiskIdentificationHumanResourcesStage4","bma_RiskIdentificationOutsourcingStage4","bma_RiskIdentificationDistributionChannelsStage4","bma_RiskIdentificationBusinessProcessesStage4","bma_RiskIdentificationBusinessContinuityStage4","bma_RiskIdentificationInformationSystemsStage4","bma_RiskIdentificationComplianceStage4","bma_RiskIdentificationTotalStage4"]
[null,null,null,null,{"$f":"IF(COUNTA(E15:E18)=0,Import!$I6362,IF(E15=\"X\", 50, IF(E16=\"X\", 100, IF(E17=\"X\", 150, IF(E18=\"X\", 200, 0)))))","v":0},{"$f":"IF(COUNTA(F15:F18)=0,Import!$I6363,IF(F15=\"X\", 50, IF(F16=\"X\", 100, IF(F17=\"X\", 150, IF(F18=\"X\", 200, 0)))))","v":0},{"$f":"IF(COUNTA(G15:G18)=0,Import!$I6364,IF(G15=\"X\", 50, IF(G16=\"X\", 100, IF(G17=\"X\", 150, IF(G18=\"X\", 200, 0)))))","v":0},{"$f":"IF(COUNTA(H15:H18)=0,Import!$I6365,IF(H15=\"X\", 50, IF(H16=\"X\", 100, IF(H17=\"X\", 150, IF(H18=\"X\", 200, 0)))))","v":0},{"$f":"IF(COUNTA(I15:I18)=0,Import!$I6366,IF(I15=\"X\", 50, IF(I16=\"X\", 100, IF(I17=\"X\", 150, IF(I18=\"X\", 200, 0)))))","v":0},{"$f":"IF(COUNTA(J15:J18)=0,Import!$I6367,IF(J15=\"X\", 50, IF(J16=\"X\", 100, IF(J17=\"X\", 150, IF(J18=\"X\", 200, 0)))))","v":0},{"$f":"IF(COUNTA(K15:K18)=0,Import!$I6368,IF(K15=\"X\", 50, IF(K16=\"X\", 100, IF(K17=\"X\", 150, IF(K18=\"X\", 200, 0)))))","v":0},{"$f":"IF(COUNTA(L15:L18)=0,Import!$I6369,IF(L15=\"X\", 50, IF(L16=\"X\", 100, IF(L17=\"X\", 150, IF(L18=\"X\", 200, 0)))))","v":0},{"$f":"SUM(E19:L19)","v":0},{"$f":"IF(M19>1600, \"ERR\", \"OK\")","v":"OK"},null,null,null,null,null,null,null,null,null,null,null,null,null,null,null,"bma_RiskIdentificationFraudTotal","bma_RiskIdentificationHumanResourcesTotal","bma_RiskIdentificationOutsourcingTotal","bma_RiskIdentificationDistributionChannelsTotal","bma_RiskIdentificationBusinessProcessesTotal","bma_RiskIdentificationBusinessContinuityTotal","bma_RiskIdentificationInformationSystemsTotal","bma_RiskIdentificationComplianceTotal","bma_RiskIdentificationTotalTotal"]
[]
[null,"Comments (optionally, the insurer may provide comments in the box below to support its responses above):"]
[null,null,null,null,null,null,null,null,null,null,null,null,null,null,null,null,"brrt_AdditionalComments",{"$f":"XBRLMap(B22,Q$22&\".\"&$P$2&\".\"&$P$3,$E$25,$E$26,CONFIGURATION!$B$10,\"BMA\",CONFIGURATION!$B$1,\"bscr\")","v":"Mapped"},null,null,null,null,null,null,null,null,null,null,null,"bma_RiskIdentificationComment"]
[]
[null,null,null,null,"brrt_Fraud","brrt_HumanResources","brrt_Outsourcing","brrt_DistributionChannels","brrt_BusinessProcesses","brrt_BusinessContinuity","brrt_InformationSystems","brrt_Compliance"]
[null,null,null,null,{"$f":"IF(B3=\"\",\"\",TEXT(DATE(YEAR(B3+1)-1,MONTH(B3+1),DAY(B3+1)),\"mm/dd/yyyy\"))","v":"01/01/2019"}]
[null,null,null,null,{"$f":"IF(B3=\"\",\"\",TEXT(B3,\"mm/dd/yyyy\"))","v":"12/31/2019"}]
[null,null,null,null,{"$f":"XBRLMapBoolean(E15,E$24&\".\"&$Q15&\".\"&$P$2,$E$25,$E$26,CONFIGURATION!$B$10,\"BMA\",CONFIGURATION!$B$1,\"bscr\",IF(OR(E15=\"X\",E15=\"x\"),\"1\",\"0\"))","v":"Mapped"},{"$f":"XBRLMapBoolean(F15,F$24&\".\"&$Q15&\".\"&$P$2,$E$25,$E$26,CONFIGURATION!$B$10,\"BMA\",CONFIGURATION!$B$1,\"bscr\",IF(OR(F15=\"X\",F15=\"x\"),\"1\",\"0\"))","v":"Mapped"},{"$f":"XBRLMapBoolean(G15,G$24&\".\"&$Q15&\".\"&$P$2,$E$25,$E$26,CONFIGURATION!$B$10,\"BMA\",CONFIGURATION!$B$1,\"bscr\",IF(OR(G15=\"X\",G15=\"x\"),\"1\",\"0\"))","v":"Mapped"},{"$f":"XBRLMapBoolean(H15,H$24&\".\"&$Q15&\".\"&$P$2,$E$25,$E$26,CONFIGURATION!$B$10,\"BMA\",CONFIGURATION!$B$1,\"bscr\",IF(OR(H15=\"X\",H15=\"x\"),\"1\",\"0\"))","v":"Mapped"},{"$f":"XBRLMapBoolean(I15,I$24&\".\"&$Q15&\".\"&$P$2,$E$25,$E$26,CONFIGURATION!$B$10,\"BMA\",CONFIGURATION!$B$1,\"bscr\",IF(OR(I15=\"X\",I15=\"x\"),\"1\",\"0\"))","v":"Mapped"},{"$f":"XBRLMapBoolean(J15,J$24&\".\"&$Q15&\".\"&$P$2,$E$25,$E$26,CONFIGURATION!$B$10,\"BMA\",CONFIGURATION!$B$1,\"bscr\",IF(OR(J15=\"X\",J15=\"x\"),\"1\",\"0\"))","v":"Mapped"},{"$f":"XBRLMapBoolean(K15,K$24&\".\"&$Q15&\".\"&$P$2,$E$25,$E$26,CONFIGURATION!$B$10,\"BMA\",CONFIGURATION!$B$1,\"bscr\",IF(OR(K15=\"X\",K15=\"x\"),\"1\",\"0\"))","v":"Mapped"},{"$f":"XBRLMapBoolean(L15,L$24&\".\"&$Q15&\".\"&$P$2,$E$25,$E$26,CONFIGURATION!$B$10,\"BMA\",CONFIGURATION!$B$1,\"bscr\",IF(OR(L15=\"X\",L15=\"x\"),\"1\",\"0\"))","v":"Mapped"}]
[null,null,null,null,{"$f":"XBRLMapBoolean(E16,E$24&\".\"&$Q16&\".\"&$P$2,$E$25,$E$26,CONFIGURATION!$B$10,\"BMA\",CONFIGURATION!$B$1,\"bscr\",IF(OR(E16=\"X\",E16=\"x\"),\"1\",\"0\"))","v":"Mapped"},{"$f":"XBRLMapBoolean(F16,F$24&\".\"&$Q16&\".\"&$P$2,$E$25,$E$26,CONFIGURATION!$B$10,\"BMA\",CONFIGURATION!$B$1,\"bscr\",IF(OR(F16=\"X\",F16=\"x\"),\"1\",\"0\"))","v":"Mapped"},{"$f":"XBRLMapBoolean(G16,G$24&\".\"&$Q16&\".\"&$P$2,$E$25,$E$26,CONFIGURATION!$B$10,\"BMA\",CONFIGURATION!$B$1,\"bscr\",IF(OR(G16=\"X\",G16=\"x\"),\"1\",\"0\"))","v":"Mapped"},{"$f":"XBRLMapBoolean(H16,H$24&\".\"&$Q16&\".\"&$P$2,$E$25,$E$26,CONFIGURATION!$B$10,\"BMA\",CONFIGURATION!$B$1,\"bscr\",IF(OR(H16=\"X\",H16=\"x\"),\"1\",\"0\"))","v":"Mapped"},{"$f":"XBRLMapBoolean(I16,I$24&\".\"&$Q16&\".\"&$P$2,$E$25,$E$26,CONFIGURATION!$B$10,\"BMA\",CONFIGURATION!$B$1,\"bscr\",IF(OR(I16=\"X\",I16=\"x\"),\"1\",\"0\"))","v":"Mapped"},{"$f":"XBRLMapBoolean(J16,J$24&\".\"&$Q16&\".\"&$P$2,$E$25,$E$26,CONFIGURATION!$B$10,\"BMA\",CONFIGURATION!$B$1,\"bscr\",IF(OR(J16=\"X\",J16=\"x\"),\"1\",\"0\"))","v":"Mapped"},{"$f":"XBRLMapBoolean(K16,K$24&\".\"&$Q16&\".\"&$P$2,$E$25,$E$26,CONFIGURATION!$B$10,\"BMA\",CONFIGURATION!$B$1,\"bscr\",IF(OR(K16=\"X\",K16=\"x\"),\"1\",\"0\"))","v":"Mapped"},{"$f":"XBRLMapBoolean(L16,L$24&\".\"&$Q16&\".\"&$P$2,$E$25,$E$26,CONFIGURATION!$B$10,\"BMA\",CONFIGURATION!$B$1,\"bscr\",IF(OR(L16=\"X\",L16=\"x\"),\"1\",\"0\"))","v":"Mapped"}]
[null,null,null,null,{"$f":"XBRLMapBoolean(E17,E$24&\".\"&$Q17&\".\"&$P$2,$E$25,$E$26,CONFIGURATION!$B$10,\"BMA\",CONFIGURATION!$B$1,\"bscr\",IF(OR(E17=\"X\",E17=\"x\"),\"1\",\"0\"))","v":"Mapped"},{"$f":"XBRLMapBoolean(F17,F$24&\".\"&$Q17&\".\"&$P$2,$E$25,$E$26,CONFIGURATION!$B$10,\"BMA\",CONFIGURATION!$B$1,\"bscr\",IF(OR(F17=\"X\",F17=\"x\"),\"1\",\"0\"))","v":"Mapped"},{"$f":"XBRLMapBoolean(G17,G$24&\".\"&$Q17&\".\"&$P$2,$E$25,$E$26,CONFIGURATION!$B$10,\"BMA\",CONFIGURATION!$B$1,\"bscr\",IF(OR(G17=\"X\",G17=\"x\"),\"1\",\"0\"))","v":"Mapped"},{"$f":"XBRLMapBoolean(H17,H$24&\".\"&$Q17&\".\"&$P$2,$E$25,$E$26,CONFIGURATION!$B$10,\"BMA\",CONFIGURATION!$B$1,\"bscr\",IF(OR(H17=\"X\",H17=\"x\"),\"1\",\"0\"))","v":"Mapped"},{"$f":"XBRLMapBoolean(I17,I$24&\".\"&$Q17&\".\"&$P$2,$E$25,$E$26,CONFIGURATION!$B$10,\"BMA\",CONFIGURATION!$B$1,\"bscr\",IF(OR(I17=\"X\",I17=\"x\"),\"1\",\"0\"))","v":"Mapped"},{"$f":"XBRLMapBoolean(J17,J$24&\".\"&$Q17&\".\"&$P$2,$E$25,$E$26,CONFIGURATION!$B$10,\"BMA\",CONFIGURATION!$B$1,\"bscr\",IF(OR(J17=\"X\",J17=\"x\"),\"1\",\"0\"))","v":"Mapped"},{"$f":"XBRLMapBoolean(K17,K$24&\".\"&$Q17&\".\"&$P$2,$E$25,$E$26,CONFIGURATION!$B$10,\"BMA\",CONFIGURATION!$B$1,\"bscr\",IF(OR(K17=\"X\",K17=\"x\"),\"1\",\"0\"))","v":"Mapped"},{"$f":"XBRLMapBoolean(L17,L$24&\".\"&$Q17&\".\"&$P$2,$E$25,$E$26,CONFIGURATION!$B$10,\"BMA\",CONFIGURATION!$B$1,\"bscr\",IF(OR(L17=\"X\",L17=\"x\"),\"1\",\"0\"))","v":"Mapped"}]
[null,null,null,null,{"$f":"XBRLMapBoolean(E18,E$24&\".\"&$Q18&\".\"&$P$2,$E$25,$E$26,CONFIGURATION!$B$10,\"BMA\",CONFIGURATION!$B$1,\"bscr\",IF(OR(E18=\"X\",E18=\"x\"),\"1\",\"0\"))","v":"Mapped"},{"$f":"XBRLMapBoolean(F18,F$24&\".\"&$Q18&\".\"&$P$2,$E$25,$E$26,CONFIGURATION!$B$10,\"BMA\",CONFIGURATION!$B$1,\"bscr\",IF(OR(F18=\"X\",F18=\"x\"),\"1\",\"0\"))","v":"Mapped"},{"$f":"XBRLMapBoolean(G18,G$24&\".\"&$Q18&\".\"&$P$2,$E$25,$E$26,CONFIGURATION!$B$10,\"BMA\",CONFIGURATION!$B$1,\"bscr\",IF(OR(G18=\"X\",G18=\"x\"),\"1\",\"0\"))","v":"Mapped"},{"$f":"XBRLMapBoolean(H18,H$24&\".\"&$Q18&\".\"&$P$2,$E$25,$E$26,CONFIGURATION!$B$10,\"BMA\",CONFIGURATION!$B$1,\"bscr\",IF(OR(H18=\"X\",H18=\"x\"),\"1\",\"0\"))","v":"Mapped"},{"$f":"XBRLMapBoolean(I18,I$24&\".\"&$Q18&\".\"&$P$2,$E$25,$E$26,CONFIGURATION!$B$10,\"BMA\",CONFIGURATION!$B$1,\"bscr\",IF(OR(I18=\"X\",I18=\"x\"),\"1\",\"0\"))","v":"Mapped"},{"$f":"XBRLMapBoolean(J18,J$24&\".\"&$Q18&\".\"&$P$2,$E$25,$E$26,CONFIGURATION!$B$10,\"BMA\",CONFIGURATION!$B$1,\"bscr\",IF(OR(J18=\"X\",J18=\"x\"),\"1\",\"0\"))","v":"Mapped"},{"$f":"XBRLMapBoolean(K18,K$24&\".\"&$Q18&\".\"&$P$2,$E$25,$E$26,CONFIGURATION!$B$10,\"BMA\",CONFIGURATION!$B$1,\"bscr\",IF(OR(K18=\"X\",K18=\"x\"),\"1\",\"0\"))","v":"Mapped"},{"$f":"XBRLMapBoolean(L18,L$24&\".\"&$Q18&\".\"&$P$2,$E$25,$E$26,CONFIGURATION!$B$10,\"BMA\",CONFIGURATION!$B$1,\"bscr\",IF(OR(L18=\"X\",L18=\"x\"),\"1\",\"0\"))","v":"Mapped"}]
[null,null,null,null,"brrt_FraudScore","brrt_HumanResourcesScore","brrt_OutsourcingScore","brrt_DistributionChannelsScore","brrt_BusinessProcessesScore","brrt_BusinessContinuityScore","brrt_InformationSystemsScore","brrt_ComplianceScore","brrt_OperationalRiskScore"]
[null,null,null,null,{"$f":"XBRLMap(E19,E$31&\".\"&$P$2&\".\"&$P$3,$E$25,$E$26,CONFIGURATION!$B$10,\"BMA\",CONFIGURATION!$B$1,\"bscr\")","v":"Mapped"},{"$f":"XBRLMap(F19,F$31&\".\"&$P$2&\".\"&$P$3,$E$25,$E$26,CONFIGURATION!$B$10,\"BMA\",CONFIGURATION!$B$1,\"bscr\")","v":"Mapped"},{"$f":"XBRLMap(G19,G$31&\".\"&$P$2&\".\"&$P$3,$E$25,$E$26,CONFIGURATION!$B$10,\"BMA\",CONFIGURATION!$B$1,\"bscr\")","v":"Mapped"},{"$f":"XBRLMap(H19,H$31&\".\"&$P$2&\".\"&$P$3,$E$25,$E$26,CONFIGURATION!$B$10,\"BMA\",CONFIGURATION!$B$1,\"bscr\")","v":"Mapped"},{"$f":"XBRLMap(I19,I$31&\".\"&$P$2&\".\"&$P$3,$E$25,$E$26,CONFIGURATION!$B$10,\"BMA\",CONFIGURATION!$B$1,\"bscr\")","v":"Mapped"},{"$f":"XBRLMap(J19,J$31&\".\"&$P$2&\".\"&$P$3,$E$25,$E$26,CONFIGURATION!$B$10,\"BMA\",CONFIGURATION!$B$1,\"bscr\")","v":"Mapped"},{"$f":"XBRLMap(K19,K$31&\".\"&$P$2&\".\"&$P$3,$E$25,$E$26,CONFIGURATION!$B$10,\"BMA\",CONFIGURATION!$B$1,\"bscr\")","v":"Mapped"},{"$f":"XBRLMap(L19,L$31&\".\"&$P$2&\".\"&$P$3,$E$25,$E$26,CONFIGURATION!$B$10,\"BMA\",CONFIGURATION!$B$1,\"bscr\")","v":"Mapped"},{"$f":"XBRLMap(M19,M$31&\".\"&$P$2&\".\"&$P$3,$E$25,$E$26,CONFIGURATION!$B$10,\"BMA\",CONFIGURATION!$B$1,\"bscr\")","v":"Mapped"}]

{"sheet":"Measurement","index":73,"n_rows":35,"n_cols":38,"rows_kept":35,"cut":false,"hidden":false,"merged":[[0,11,0,12],[12,4,12,12],[21,1,21,12],[2,1,2,2],[6,1,6,10],[6,11,6,12],[20,1,20,7],[4,1,4,12],[12,1,12,2],[12,3,13,3]]}
[null,"OPERATIONAL RISK: RISK MEASUREMENT",null,null,null,null,null,null,null,null,null,{"$f":"HYPERLINK(\"#'Index'!A1\",\"Return to Index\")","v":"Return to Index"}]
[null,{"$f":"'Insurer Information'!C7","v":"Enter Company Name"},null,null,null,null,null,null,null,null,null,null,null,null,null,"brrt_OperationalRiskAreaActionAxis_brrt_MeasurementMember"]
[null,{"$f":"TEXT('Insurer Information'!C3,\"mmmm dd, yyyy\")","v":"December 31, 2019"},null,null,null,null,null,null,null,null,null,null,null,null,null,"brrt_OperationalRiskAreaStageAxis_brrt_TotalMember"]
[]
[null,"The insurer is to answer the following question.  If the answer to the question is \"No\" then the insurer does not have to complete the matrix/grid.  If the answer to the question is \"Yes\" then the insurer is to identify the stage of progression of each Operational Risk Area based upon the Dimension descriptor.  The insurer is then to input an “X” in the grid corresponding to the stage in the matrix table under the relevant Operational Risk Area."]
[]
[null,"Has your company taken steps to measure material risks arising from the Operational Risk Areas identified below? (Y/N) ",null,null,null,null,null,null,null,null,null,null,null,null,null,null,"brrt_StepsHaveBeenTakenToMeasureMaterialRisksArisingFromOperationalRiskAreasIdentified",{"$f":"XBRLMapBoolean(L7,Q$7&\".\"&$P$2&\".\"&$P$3,$E$28,$E$29,CONFIGURATION!$B$10,\"BMA\",CONFIGURATION!$B$1,\"bscr\",IF(L7=\"Yes\",\"1\",\"0\"))","v":"Mapped"},null,null,null,null,null,null,null,null,null,null,null,"bma_RiskMeasurementPractice"]
[]
[null,"If \"Y\", identify the stage of each Operational Risk Area and input an \"X\" in the appropriate grid under each area."]
[]
[null,"Risk Identification Processes are:"]
[]
[null,"Progression",null,"Dimension","Operational Risk Areas",null,null,null,null,null,null,null,null,null,null,null,null,null,null,null,null,null,null,null,null,null,null,null,null,"bma_RiskMeasurementFraudAbstract","bma_RiskMeasurementHumanResourcesAbstract","bma_RiskMeasurementOutsourcingAbstract","bma_RiskMeasurementDistributionChannelsAbstract","bma_RiskMeasurementBusinessProcessesAbstract","bma_RiskMeasurementBusinessContinuityAbstract","bma_RiskMeasurementInformationSystemsAbstract","bma_RiskMeasurementComplianceAbstract","bma_RiskMeasurementTotalAbstract"]
[null,"Stage","Scoring",null,"Fraud","Human Resources","Outsourcing","Distribution Channels","Business Processes","Business Continuity","Information Systems","Compliance","Total (Si)"]
[null,1,50,"“ad hoc”",null,null,null,null,null,null,null,null,null,null,null,null,"brrt_OperationalRiskAreaStageAxis_brrt_Stage1Member",null,null,null,null,null,null,null,null,null,null,null,null,"bma_RiskMeasurementFraudStage1","bma_RiskMeasurementHumanResourcesStage1","bma_RiskMeasurementOutsourcingStage1","bma_RiskMeasurementDistributionChannelsStage1","bma_RiskMeasurementBusinessProcessesStage1","bma_RiskMeasurementBusinessContinuityStage1","bma_RiskMeasurementInformationSystemsStage1","bma_RiskMeasurementComplianceStage1","bma_RiskMeasurementTotalStage1"]
[null,2,100,"Implemented but not standardized across the organization",null,null,null,null,null,null,null,null,null,null,null,null,"brrt_OperationalRiskAreaStageAxis_brrt_Stage2Member",null,null,null,null,null,null,null,null,null,null,null,null,"bma_RiskMeasurementFraudStage2","bma_RiskMeasurementHumanResourcesStage2","bma_RiskMeasurementOutsourcingStage2","bma_RiskMeasurementDistributionChannelsStage2","bma_RiskMeasurementBusinessProcessesStage2","bma_RiskMeasurementBusinessContinuityStage2","bma_RiskMeasurementInformationSystemsStage2","bma_RiskMeasurementComplianceStage2","bma_RiskMeasurementTotalStage2"]
[null,3,150,"Implemented, well documented policies and procedures that are understood by relevant staff, and standardized across the entire organization",null,null,null,null,null,null,null,null,null,null,null,null,"brrt_OperationalRiskAreaStageAxis_brrt_Stage3Member",null,null,null,null,null,null,null,null,null,null,null,null,"bma_RiskMeasurementFraudStage3","bma_RiskMeasurementHumanResourcesStage3","bma_RiskMeasurementOutsourcingStage3","bma_RiskMeasurementDistributionChannelsStage3","bma_RiskMeasurementBusinessProcessesStage3","bma_RiskMeasurementBusinessContinuityStage3","bma_RiskMeasurementInformationSystemsStage3","bma_RiskMeasurementComplianceStage3","bma_RiskMeasurementTotalStage3"]
[null,4,200,"In addition to Stage 3, processes are reviewed at least annually with the view to assessing effectiveness and introducing improvements",null,null,null,null,null,null,null,null,null,null,null,null,"brrt_OperationalRiskAreaStageAxis_brrt_Stage4Member",null,null,null,null,null,null,null,null,null,null,null,null,"bma_RiskMeasurementFraudStage4","bma_RiskMeasurementHumanResourcesStage4","bma_RiskMeasurementOutsourcingStage4","bma_RiskMeasurementDistributionChannelsStage4","bma_RiskMeasurementBusinessProcessesStage4","bma_RiskMeasurementBusinessContinuityStage4","bma_RiskMeasurementInformationSystemsStage4","bma_RiskMeasurementComplianceStage4","bma_RiskMeasurementTotalStage4"]
[null,null,null,null,{"$f":"IF(COUNTA(E15:E18)=0,Import!$I6370,IF(E15=\"X\", 50, IF(E16=\"X\", 100, IF(E17=\"X\", 150, IF(E18=\"X\", 200, 0)))))","v":0},{"$f":"IF(COUNTA(F15:F18)=0,Import!$I6371,IF(F15=\"X\", 50, IF(F16=\"X\", 100, IF(F17=\"X\", 150, IF(F18=\"X\", 200, 0)))))","v":0},{"$f":"IF(COUNTA(G15:G18)=0,Import!$I6372,IF(G15=\"X\", 50, IF(G16=\"X\", 100, IF(G17=\"X\", 150, IF(G18=\"X\", 200, 0)))))","v":0},{"$f":"IF(COUNTA(H15:H18)=0,Import!$I6373,IF(H15=\"X\", 50, IF(H16=\"X\", 100, IF(H17=\"X\", 150, IF(H18=\"X\", 200, 0)))))","v":0},{"$f":"IF(COUNTA(I15:I18)=0,Import!$I6374,IF(I15=\"X\", 50, IF(I16=\"X\", 100, IF(I17=\"X\", 150, IF(I18=\"X\", 200, 0)))))","v":0},{"$f":"IF(COUNTA(J15:J18)=0,Import!$I6375,IF(J15=\"X\", 50, IF(J16=\"X\", 100, IF(J17=\"X\", 150, IF(J18=\"X\", 200, 0)))))","v":0},{"$f":"IF(COUNTA(K15:K18)=0,Import!$I6376,IF(K15=\"X\", 50, IF(K16=\"X\", 100, IF(K17=\"X\", 150, IF(K18=\"X\", 200, 0)))))","v":0},{"$f":"IF(COUNTA(L15:L18)=0,Import!$I6377,IF(L15=\"X\", 50, IF(L16=\"X\", 100, IF(L17=\"X\", 150, IF(L18=\"X\", 200, 0)))))","v":0},{"$f":"SUM(E19:L19)","v":0},{"$f":"IF(M19>1600, \"ERR\", \"OK\")","v":"OK"},null,null,null,null,null,null,null,null,null,null,null,null,null,null,null,"bma_RiskMeasurementFraudTotal","bma_RiskMeasurementHumanResourcesTotal","bma_RiskMeasurementOutsourcingTotal","bma_RiskMeasurementDistributionChannelsTotal","bma_RiskMeasurementBusinessProcessesTotal","bma_RiskMeasurementBusinessContinuityTotal","bma_RiskMeasurementInformationSystemsTotal","bma_RiskMeasurementComplianceTotal","bma_RiskMeasurementTotalTotal"]
[]
[null,"Comments (optionally, the insurer may provide comments in the box below to support its responses above):"]
[null,null,null,null,null,null,null,null,null,null,null,null,null,null,null,null,"brrt_AdditionalComments",{"$f":"XBRLMap(B22,Q$22&\".\"&$P$2&\".\"&$P$3,$E$28,$E$29,CONFIGURATION!$B$10,\"BMA\",CONFIGURATION!$B$1,\"bscr\")","v":"Mapped"},null,null,null,null,null,null,null,null,null,null,null,"bma_RiskMeasurementComment"]
[]
[]
[]
[]
[null,null,null,null,"brrt_Fraud","brrt_HumanResources","brrt_Outsourcing","brrt_DistributionChannels","brrt_BusinessProcesses","brrt_BusinessContinuity","brrt_InformationSystems","brrt_Compliance"]
[null,null,null,null,{"$f":"IF(B3=\"\",\"\",TEXT(DATE(YEAR(B3+1)-1,MONTH(B3+1),DAY(B3+1)),\"mm/dd/yyyy\"))","v":"01/01/2019"}]
[null,null,null,null,{"$f":"IF(B3=\"\",\"\",TEXT(B3,\"mm/dd/yyyy\"))","v":"12/31/2019"}]
[null,null,null,null,{"$f":"XBRLMapBoolean(E15,E$27&\".\"&$Q15&\".\"&$P$2,$E$28,$E$29,CONFIGURATION!$B$10,\"BMA\",CONFIGURATION!$B$1,\"bscr\",IF(OR(E15=\"X\",E15=\"x\"),\"1\",\"0\"))","v":"Mapped"},{"$f":"XBRLMapBoolean(F15,F$27&\".\"&$Q15&\".\"&$P$2,$E$28,$E$29,CONFIGURATION!$B$10,\"BMA\",CONFIGURATION!$B$1,\"bscr\",IF(OR(F15=\"X\",F15=\"x\"),\"1\",\"0\"))","v":"Mapped"},{"$f":"XBRLMapBoolean(G15,G$27&\".\"&$Q15&\".\"&$P$2,$E$28,$E$29,CONFIGURATION!$B$10,\"BMA\",CONFIGURATION!$B$1,\"bscr\",IF(OR(G15=\"X\",G15=\"x\"),\"1\",\"0\"))","v":"Mapped"},{"$f":"XBRLMapBoolean(H15,H$27&\".\"&$Q15&\".\"&$P$2,$E$28,$E$29,CONFIGURATION!$B$10,\"BMA\",CONFIGURATION!$B$1,\"bscr\",IF(OR(H15=\"X\",H15=\"x\"),\"1\",\"0\"))","v":"Mapped"},{"$f":"XBRLMapBoolean(I15,I$27&\".\"&$Q15&\".\"&$P$2,$E$28,$E$29,CONFIGURATION!$B$10,\"BMA\",CONFIGURATION!$B$1,\"bscr\",IF(OR(I15=\"X\",I15=\"x\"),\"1\",\"0\"))","v":"Mapped"},{"$f":"XBRLMapBoolean(J15,J$27&\".\"&$Q15&\".\"&$P$2,$E$28,$E$29,CONFIGURATION!$B$10,\"BMA\",CONFIGURATION!$B$1,\"bscr\",IF(OR(J15=\"X\",J15=\"x\"),\"1\",\"0\"))","v":"Mapped"},{"$f":"XBRLMapBoolean(K15,K$27&\".\"&$Q15&\".\"&$P$2,$E$28,$E$29,CONFIGURATION!$B$10,\"BMA\",CONFIGURATION!$B$1,\"bscr\",IF(OR(K15=\"X\",K15=\"x\"),\"1\",\"0\"))","v":"Mapped"},{"$f":"XBRLMapBoolean(L15,L$27&\".\"&$Q15&\".\"&$P$2,$E$28,$E$29,CONFIGURATION!$B$10,\"BMA\",CONFIGURATION!$B$1,\"bscr\",IF(OR(L15=\"X\",L15=\"x\"),\"1\",\"0\"))","v":"Mapped"}]
[null,null,null,null,{"$f":"XBRLMapBoolean(E16,E$27&\".\"&$Q16&\".\"&$P$2,$E$28,$E$29,CONFIGURATION!$B$10,\"BMA\",CONFIGURATION!$B$1,\"bscr\",IF(OR(E16=\"X\",E16=\"x\"),\"1\",\"0\"))","v":"Mapped"},{"$f":"XBRLMapBoolean(F16,F$27&\".\"&$Q16&\".\"&$P$2,$E$28,$E$29,CONFIGURATION!$B$10,\"BMA\",CONFIGURATION!$B$1,\"bscr\",IF(OR(F16=\"X\",F16=\"x\"),\"1\",\"0\"))","v":"Mapped"},{"$f":"XBRLMapBoolean(G16,G$27&\".\"&$Q16&\".\"&$P$2,$E$28,$E$29,CONFIGURATION!$B$10,\"BMA\",CONFIGURATION!$B$1,\"bscr\",IF(OR(G16=\"X\",G16=\"x\"),\"1\",\"0\"))","v":"Mapped"},{"$f":"XBRLMapBoolean(H16,H$27&\".\"&$Q16&\".\"&$P$2,$E$28,$E$29,CONFIGURATION!$B$10,\"BMA\",CONFIGURATION!$B$1,\"bscr\",IF(OR(H16=\"X\",H16=\"x\"),\"1\",\"0\"))","v":"Mapped"},{"$f":"XBRLMapBoolean(I16,I$27&\".\"&$Q16&\".\"&$P$2,$E$28,$E$29,CONFIGURATION!$B$10,\"BMA\",CONFIGURATION!$B$1,\"bscr\",IF(OR(I16=\"X\",I16=\"x\"),\"1\",\"0\"))","v":"Mapped"},{"$f":"XBRLMapBoolean(J16,J$27&\".\"&$Q16&\".\"&$P$2,$E$28,$E$29,CONFIGURATION!$B$10,\"BMA\",CONFIGURATION!$B$1,\"bscr\",IF(OR(J16=\"X\",J16=\"x\"),\"1\",\"0\"))","v":"Mapped"},{"$f":"XBRLMapBoolean(K16,K$27&\".\"&$Q16&\".\"&$P$2,$E$28,$E$29,CONFIGURATION!$B$10,\"BMA\",CONFIGURATION!$B$1,\"bscr\",IF(OR(K16=\"X\",K16=\"x\"),\"1\",\"0\"))","v":"Mapped"},{"$f":"XBRLMapBoolean(L16,L$27&\".\"&$Q16&\".\"&$P$2,$E$28,$E$29,CONFIGURATION!$B$10,\"BMA\",CONFIGURATION!$B$1,\"bscr\",IF(OR(L16=\"X\",L16=\"x\"),\"1\",\"0\"))","v":"Mapped"}]
[null,null,null,null,{"$f":"XBRLMapBoolean(E17,E$27&\".\"&$Q17&\".\"&$P$2,$E$28,$E$29,CONFIGURATION!$B$10,\"BMA\",CONFIGURATION!$B$1,\"bscr\",IF(OR(E17=\"X\",E17=\"x\"),\"1\",\"0\"))","v":"Mapped"},{"$f":"XBRLMapBoolean(F17,F$27&\".\"&$Q17&\".\"&$P$2,$E$28,$E$29,CONFIGURATION!$B$10,\"BMA\",CONFIGURATION!$B$1,\"bscr\",IF(OR(F17=\"X\",F17=\"x\"),\"1\",\"0\"))","v":"Mapped"},{"$f":"XBRLMapBoolean(G17,G$27&\".\"&$Q17&\".\"&$P$2,$E$28,$E$29,CONFIGURATION!$B$10,\"BMA\",CONFIGURATION!$B$1,\"bscr\",IF(OR(G17=\"X\",G17=\"x\"),\"1\",\"0\"))","v":"Mapped"},{"$f":"XBRLMapBoolean(H17,H$27&\".\"&$Q17&\".\"&$P$2,$E$28,$E$29,CONFIGURATION!$B$10,\"BMA\",CONFIGURATION!$B$1,\"bscr\",IF(OR(H17=\"X\",H17=\"x\"),\"1\",\"0\"))","v":"Mapped"},{"$f":"XBRLMapBoolean(I17,I$27&\".\"&$Q17&\".\"&$P$2,$E$28,$E$29,CONFIGURATION!$B$10,\"BMA\",CONFIGURATION!$B$1,\"bscr\",IF(OR(I17=\"X\",I17=\"x\"),\"1\",\"0\"))","v":"Mapped"},{"$f":"XBRLMapBoolean(J17,J$27&\".\"&$Q17&\".\"&$P$2,$E$28,$E$29,CONFIGURATION!$B$10,\"BMA\",CONFIGURATION!$B$1,\"bscr\",IF(OR(J17=\"X\",J17=\"x\"),\"1\",\"0\"))","v":"Mapped"},{"$f":"XBRLMapBoolean(K17,K$27&\".\"&$Q17&\".\"&$P$2,$E$28,$E$29,CONFIGURATION!$B$10,\"BMA\",CONFIGURATION!$B$1,\"bscr\",IF(OR(K17=\"X\",K17=\"x\"),\"1\",\"0\"))","v":"Mapped"},{"$f":"XBRLMapBoolean(L17,L$27&\".\"&$Q17&\".\"&$P$2,$E$28,$E$29,CONFIGURATION!$B$10,\"BMA\",CONFIGURATION!$B$1,\"bscr\",IF(OR(L17=\"X\",L17=\"x\"),\"1\",\"0\"))","v":"Mapped"}]
[null,null,null,null,{"$f":"XBRLMapBoolean(E18,E$27&\".\"&$Q18&\".\"&$P$2,$E$28,$E$29,CONFIGURATION!$B$10,\"BMA\",CONFIGURATION!$B$1,\"bscr\",IF(OR(E18=\"X\",E18=\"x\"),\"1\",\"0\"))","v":"Mapped"},{"$f":"XBRLMapBoolean(F18,F$27&\".\"&$Q18&\".\"&$P$2,$E$28,$E$29,CONFIGURATION!$B$10,\"BMA\",CONFIGURATION!$B$1,\"bscr\",IF(OR(F18=\"X\",F18=\"x\"),\"1\",\"0\"))","v":"Mapped"},{"$f":"XBRLMapBoolean(G18,G$27&\".\"&$Q18&\".\"&$P$2,$E$28,$E$29,CONFIGURATION!$B$10,\"BMA\",CONFIGURATION!$B$1,\"bscr\",IF(OR(G18=\"X\",G18=\"x\"),\"1\",\"0\"))","v":"Mapped"},{"$f":"XBRLMapBoolean(H18,H$27&\".\"&$Q18&\".\"&$P$2,$E$28,$E$29,CONFIGURATION!$B$10,\"BMA\",CONFIGURATION!$B$1,\"bscr\",IF(OR(H18=\"X\",H18=\"x\"),\"1\",\"0\"))","v":"Mapped"},{"$f":"XBRLMapBoolean(I18,I$27&\".\"&$Q18&\".\"&$P$2,$E$28,$E$29,CONFIGURATION!$B$10,\"BMA\",CONFIGURATION!$B$1,\"bscr\",IF(OR(I18=\"X\",I18=\"x\"),\"1\",\"0\"))","v":"Mapped"},{"$f":"XBRLMapBoolean(J18,J$27&\".\"&$Q18&\".\"&$P$2,$E$28,$E$29,CONFIGURATION!$B$10,\"BMA\",CONFIGURATION!$B$1,\"bscr\",IF(OR(J18=\"X\",J18=\"x\"),\"1\",\"0\"))","v":"Mapped"},{"$f":"XBRLMapBoolean(K18,K$27&\".\"&$Q18&\".\"&$P$2,$E$28,$E$29,CONFIGURATION!$B$10,\"BMA\",CONFIGURATION!$B$1,\"bscr\",IF(OR(K18=\"X\",K18=\"x\"),\"1\",\"0\"))","v":"Mapped"},{"$f":"XBRLMapBoolean(L18,L$27&\".\"&$Q18&\".\"&$P$2,$E$28,$E$29,CONFIGURATION!$B$10,\"BMA\",CONFIGURATION!$B$1,\"bscr\",IF(OR(L18=\"X\",L18=\"x\"),\"1\",\"0\"))","v":"Mapped"}]
[null,null,null,null,"brrt_FraudScore","brrt_HumanResourcesScore","brrt_OutsourcingScore","brrt_DistributionChannelsScore","brrt_BusinessProcessesScore","brrt_BusinessContinuityScore","brrt_InformationSystemsScore","brrt_ComplianceScore","brrt_OperationalRiskScore"]
[null,null,null,null,{"$f":"XBRLMap(E19,E$34&\".\"&$P$2&\".\"&$P$3,$E$28,$E$29,CONFIGURATION!$B$10,\"BMA\",CONFIGURATION!$B$1,\"bscr\")","v":"Mapped"},{"$f":"XBRLMap(F19,F$34&\".\"&$P$2&\".\"&$P$3,$E$28,$E$29,CONFIGURATION!$B$10,\"BMA\",CONFIGURATION!$B$1,\"bscr\")","v":"Mapped"},{"$f":"XBRLMap(G19,G$34&\".\"&$P$2&\".\"&$P$3,$E$28,$E$29,CONFIGURATION!$B$10,\"BMA\",CONFIGURATION!$B$1,\"bscr\")","v":"Mapped"},{"$f":"XBRLMap(H19,H$34&\".\"&$P$2&\".\"&$P$3,$E$28,$E$29,CONFIGURATION!$B$10,\"BMA\",CONFIGURATION!$B$1,\"bscr\")","v":"Mapped"},{"$f":"XBRLMap(I19,I$34&\".\"&$P$2&\".\"&$P$3,$E$28,$E$29,CONFIGURATION!$B$10,\"BMA\",CONFIGURATION!$B$1,\"bscr\")","v":"Mapped"},{"$f":"XBRLMap(J19,J$34&\".\"&$P$2&\".\"&$P$3,$E$28,$E$29,CONFIGURATION!$B$10,\"BMA\",CONFIGURATION!$B$1,\"bscr\")","v":"Mapped"},{"$f":"XBRLMap(K19,K$34&\".\"&$P$2&\".\"&$P$3,$E$28,$E$29,CONFIGURATION!$B$10,\"BMA\",CONFIGURATION!$B$1,\"bscr\")","v":"Mapped"},{"$f":"XBRLMap(L19,L$34&\".\"&$P$2&\".\"&$P$3,$E$28,$E$29,CONFIGURATION!$B$10,\"BMA\",CONFIGURATION!$B$1,\"bscr\")","v":"Mapped"},{"$f":"XBRLMap(M19,M$34&\".\"&$P$2&\".\"&$P$3,$E$28,$E$29,CONFIGURATION!$B$10,\"BMA\",CONFIGURATION!$B$1,\"bscr\")","v":"Mapped"}]

{"sheet":"Response","index":74,"n_rows":33,"n_cols":38,"rows_kept":33,"cut":false,"hidden":false,"merged":[[0,11,0,12],[4,1,4,12],[21,1,21,12],[12,1,12,2],[12,3,13,3],[12,4,12,12],[20,1,20,7],[3,1,3,12],[5,1,5,10],[6,11,6,12]]}
[null,"OPERATIONAL RISK: RISK RESPONSE",null,null,null,null,null,null,null,null,null,{"$f":"HYPERLINK(\"#'Index'!A1\",\"Return to Index\")","v":"Return to Index"}]
[null,{"$f":"'Insurer Information'!C7","v":"Enter Company Name"},null,null,null,null,null,null,null,null,null,null,null,null,null,"brrt_OperationalRiskAreaActionAxis_brrt_ResponseMember"]
[null,{"$f":"TEXT('Insurer Information'!C3,\"mmmm dd, yyyy\")","v":"December 31, 2019"},null,null,null,null,null,null,null,null,null,null,null,null,null,"brrt_OperationalRiskAreaStageAxis_brrt_TotalMember"]
[]
[null,"The insurer is to answer the following question.  If the answer to the question is \"No\" then the insurer does not have to complete the matrix/grid.  If the answer to the question is \"Yes\" then the insurer is to identify the stage of progression of each Operational Risk Area based upon the Dimension descriptor.  The insurer is then to input an “X” in the grid corresponding to the stage in the matrix table under the relevant Operational Risk Area."]
[]
[null,"Has your company taken steps to control and/or mitigate material risks arising from the Operational Risk Areas identified below? (Y/N)",null,null,null,null,null,null,null,null,null,null,null,null,null,null,"brrt_StepsHaveBeenTakenToControlAndOrMitigateMaterialRisksArisingFromOperationalRiskAreasIdentified",{"$f":"XBRLMapBoolean(L7,Q$7&\".\"&$P$2&\".\"&$P$3,$E$26,$E$27,CONFIGURATION!$B$10,\"BMA\",CONFIGURATION!$B$1,\"bscr\",IF(L7=\"Yes\",\"1\",\"0\"))","v":"Mapped"},null,null,null,null,null,null,null,null,null,null,null,"bma_RiskResponsePractice"]
[]
[null,"If \"Y\", identify the stage of each Operational Risk Area and input an \"X\" in the appropriate grid under each area."]
[]
[null,"Risk Response processes are:"]
[]
[null,"Progression",null,"Dimension","Operational Risk Areas"]
[null,"Stage","Scoring",null,"Fraud","Human Resources","Outsourcing","Distribution Channels","Business Processes","Business Continuity","Information Systems","Compliance","Total (Si)",null,null,null,null,null,null,null,null,null,null,null,null,null,null,null,null,"bma_RiskResponseFraudAbstract","bma_RiskResponseHumanResourcesAbstract","bma_RiskResponseOutsourcingAbstract","bma_RiskResponseDistributionChannelsAbstract","bma_RiskResponseBusinessProcessesAbstract","bma_RiskResponseBusinessContinuityAbstract","bma_RiskResponseInformationSystemsAbstract","bma_RiskResponseComplianceAbstract","bma_RiskResponseTotalAbstract"]
[null,1,50,"“ad hoc”",null,null,null,null,null,null,null,null,null,null,null,null,"brrt_OperationalRiskAreaStageAxis_brrt_Stage1Member",null,null,null,null,null,null,null,null,null,null,null,null,"bma_RiskResponseFraudStage1","bma_RiskResponseHumanResourcesStage1","bma_RiskResponseOutsourcingStage1","bma_RiskResponseDistributionChannelsStage1","bma_RiskResponseBusinessProcessesStage1","bma_RiskResponseBusinessContinuityStage1","bma_RiskResponseInformationSystemsStage1","bma_RiskResponseComplianceStage1","bma_RiskResponseTotalStage1"]
[null,2,100,"Implemented but not standardized across the organization",null,null,null,null,null,null,null,null,null,null,null,null,"brrt_OperationalRiskAreaStageAxis_brrt_Stage2Member",null,null,null,null,null,null,null,null,null,null,null,null,"bma_RiskResponseFraudStage2","bma_RiskResponseHumanResourcesStage2","bma_RiskResponseOutsourcingStage2","bma_RiskResponseDistributionChannelsStage2","bma_RiskResponseBusinessProcessesStage2","bma_RiskResponseBusinessContinuityStage2","bma_RiskResponseInformationSystemsStage2","bma_RiskResponseComplianceStage2","bma_RiskResponseTotalStage2"]
[null,3,150,"Implemented, well documented policies and procedures that are understood by relevant staff, and standardized across the entire organization",null,null,null,null,null,null,null,null,null,null,null,null,"brrt_OperationalRiskAreaStageAxis_brrt_Stage3Member",null,null,null,null,null,null,null,null,null,null,null,null,"bma_RiskResponseFraudStage3","bma_RiskResponseHumanResourcesStage3","bma_RiskResponseOutsourcingStage3","bma_RiskResponseDistributionChannelsStage3","bma_RiskResponseBusinessProcessesStage3","bma_RiskResponseBusinessContinuityStage3","bma_RiskResponseInformationSystemsStage3","bma_RiskResponseComplianceStage3","bma_RiskResponseTotalStage3"]
[null,4,200,"In addition to Stage 3, processes are reviewed at least annually with the view to assessing effectiveness and introducing improvements",null,null,null,null,null,null,null,null,null,null,null,null,"brrt_OperationalRiskAreaStageAxis_brrt_Stage4Member",null,null,null,null,null,null,null,null,null,null,null,null,"bma_RiskResponseFraudStage4","bma_RiskResponseHumanResourcesStage4","bma_RiskResponseOutsourcingStage4","bma_RiskResponseDistributionChannelsStage4","bma_RiskResponseBusinessProcessesStage4","bma_RiskResponseBusinessContinuityStage4","bma_RiskResponseInformationSystemsStage4","bma_RiskResponseComplianceStage4","bma_RiskResponseTotalStage4"]
[null,null,null,null,{"$f":"IF(COUNTA(E15:E18)=0,Import!$I6378,IF(E15=\"X\", 50, IF(E16=\"X\", 100, IF(E17=\"X\", 150, IF(E18=\"X\", 200, 0)))))","v":0},{"$f":"IF(COUNTA(F15:F18)=0,Import!$I6379,IF(F15=\"X\", 50, IF(F16=\"X\", 100, IF(F17=\"X\", 150, IF(F18=\"X\", 200, 0)))))","v":0},{"$f":"IF(COUNTA(G15:G18)=0,Import!$I6380,IF(G15=\"X\", 50, IF(G16=\"X\", 100, IF(G17=\"X\", 150, IF(G18=\"X\", 200, 0)))))","v":0},{"$f":"IF(COUNTA(H15:H18)=0,Import!$I6381,IF(H15=\"X\", 50, IF(H16=\"X\", 100, IF(H17=\"X\", 150, IF(H18=\"X\", 200, 0)))))","v":0},{"$f":"IF(COUNTA(I15:I18)=0,Import!$I6382,IF(I15=\"X\", 50, IF(I16=\"X\", 100, IF(I17=\"X\", 150, IF(I18=\"X\", 200, 0)))))","v":0},{"$f":"IF(COUNTA(J15:J18)=0,Import!$I6383,IF(J15=\"X\", 50, IF(J16=\"X\", 100, IF(J17=\"X\", 150, IF(J18=\"X\", 200, 0)))))","v":0},{"$f":"IF(COUNTA(K15:K18)=0,Import!$I6384,IF(K15=\"X\", 50, IF(K16=\"X\", 100, IF(K17=\"X\", 150, IF(K18=\"X\", 200, 0)))))","v":0},{"$f":"IF(COUNTA(L15:L18)=0,Import!$I6385,IF(L15=\"X\", 50, IF(L16=\"X\", 100, IF(L17=\"X\", 150, IF(L18=\"X\", 200, 0)))))","v":0},{"$f":"SUM(E19:L19)","v":0},{"$f":"IF(M19>1600, \"ERR\", \"OK\")","v":"OK"},null,null,null,null,null,null,null,null,null,null,null,null,null,null,null,"bma_RiskResponseFraudTotal","bma_RiskResponseHumanResourcesTotal","bma_RiskResponseOutsourcingTotal","bma_RiskResponseDistributionChannelsTotal","bma_RiskResponseBusinessProcessesTotal","bma_RiskResponseBusinessContinuityTotal","bma_RiskResponseInformationSystemsTotal","bma_RiskResponseComplianceTotal","bma_RiskResponseTotalTotal"]
[]
[null,"Comments (optionally, the insurer may provide comments in the box below to support its responses above):"]
[null,null,null,null,null,null,null,null,null,null,null,null,null,null,null,null,"brrt_AdditionalComments",{"$f":"XBRLMap(B22,Q$22&\".\"&$P$2&\".\"&$P$3,$E$26,$E$27,CONFIGURATION!$B$10,\"BMA\",CONFIGURATION!$B$1,\"bscr\")","v":"Mapped"},null,null,null,null,null,null,null,null,null,null,null,"bma_RiskResponseComment"]
[]
[]
[null,null,null,null,"brrt_Fraud","brrt_HumanResources","brrt_Outsourcing","brrt_DistributionChannels","brrt_BusinessProcesses","brrt_BusinessContinuity","brrt_InformationSystems","brrt_Compliance"]
[null,null,null,null,{"$f":"IF(B3=\"\",\"\",TEXT(DATE(YEAR(B3+1)-1,MONTH(B3+1),DAY(B3+1)),\"mm/dd/yyyy\"))","v":"01/01/2019"}]
[null,null,null,null,{"$f":"IF(B3=\"\",\"\",TEXT(B3,\"mm/dd/yyyy\"))","v":"12/31/2019"}]
[null,null,null,null,{"$f":"XBRLMapBoolean(E15,E$25&\".\"&$Q15&\".\"&$P$2,$E$26,$E$27,CONFIGURATION!$B$10,\"BMA\",CONFIGURATION!$B$1,\"bscr\",IF(OR(E15=\"X\",E15=\"x\"),\"1\",\"0\"))","v":"Mapped"},{"$f":"XBRLMapBoolean(F15,F$25&\".\"&$Q15&\".\"&$P$2,$E$26,$E$27,CONFIGURATION!$B$10,\"BMA\",CONFIGURATION!$B$1,\"bscr\",IF(OR(F15=\"X\",F15=\"x\"),\"1\",\"0\"))","v":"Mapped"},{"$f":"XBRLMapBoolean(G15,G$25&\".\"&$Q15&\".\"&$P$2,$E$26,$E$27,CONFIGURATION!$B$10,\"BMA\",CONFIGURATION!$B$1,\"bscr\",IF(OR(G15=\"X\",G15=\"x\"),\"1\",\"0\"))","v":"Mapped"},{"$f":"XBRLMapBoolean(H15,H$25&\".\"&$Q15&\".\"&$P$2,$E$26,$E$27,CONFIGURATION!$B$10,\"BMA\",CONFIGURATION!$B$1,\"bscr\",IF(OR(H15=\"X\",H15=\"x\"),\"1\",\"0\"))","v":"Mapped"},{"$f":"XBRLMapBoolean(I15,I$25&\".\"&$Q15&\".\"&$P$2,$E$26,$E$27,CONFIGURATION!$B$10,\"BMA\",CONFIGURATION!$B$1,\"bscr\",IF(OR(I15=\"X\",I15=\"x\"),\"1\",\"0\"))","v":"Mapped"},{"$f":"XBRLMapBoolean(J15,J$25&\".\"&$Q15&\".\"&$P$2,$E$26,$E$27,CONFIGURATION!$B$10,\"BMA\",CONFIGURATION!$B$1,\"bscr\",IF(OR(J15=\"X\",J15=\"x\"),\"1\",\"0\"))","v":"Mapped"},{"$f":"XBRLMapBoolean(K15,K$25&\".\"&$Q15&\".\"&$P$2,$E$26,$E$27,CONFIGURATION!$B$10,\"BMA\",CONFIGURATION!$B$1,\"bscr\",IF(OR(K15=\"X\",K15=\"x\"),\"1\",\"0\"))","v":"Mapped"},{"$f":"XBRLMapBoolean(L15,L$25&\".\"&$Q15&\".\"&$P$2,$E$26,$E$27,CONFIGURATION!$B$10,\"BMA\",CONFIGURATION!$B$1,\"bscr\",IF(OR(L15=\"X\",L15=\"x\"),\"1\",\"0\"))","v":"Mapped"}]
[null,null,null,null,{"$f":"XBRLMapBoolean(E16,E$25&\".\"&$Q16&\".\"&$P$2,$E$26,$E$27,CONFIGURATION!$B$10,\"BMA\",CONFIGURATION!$B$1,\"bscr\",IF(OR(E16=\"X\",E16=\"x\"),\"1\",\"0\"))","v":"Mapped"},{"$f":"XBRLMapBoolean(F16,F$25&\".\"&$Q16&\".\"&$P$2,$E$26,$E$27,CONFIGURATION!$B$10,\"BMA\",CONFIGURATION!$B$1,\"bscr\",IF(OR(F16=\"X\",F16=\"x\"),\"1\",\"0\"))","v":"Mapped"},{"$f":"XBRLMapBoolean(G16,G$25&\".\"&$Q16&\".\"&$P$2,$E$26,$E$27,CONFIGURATION!$B$10,\"BMA\",CONFIGURATION!$B$1,\"bscr\",IF(OR(G16=\"X\",G16=\"x\"),\"1\",\"0\"))","v":"Mapped"},{"$f":"XBRLMapBoolean(H16,H$25&\".\"&$Q16&\".\"&$P$2,$E$26,$E$27,CONFIGURATION!$B$10,\"BMA\",CONFIGURATION!$B$1,\"bscr\",IF(OR(H16=\"X\",H16=\"x\"),\"1\",\"0\"))","v":"Mapped"},{"$f":"XBRLMapBoolean(I16,I$25&\".\"&$Q16&\".\"&$P$2,$E$26,$E$27,CONFIGURATION!$B$10,\"BMA\",CONFIGURATION!$B$1,\"bscr\",IF(OR(I16=\"X\",I16=\"x\"),\"1\",\"0\"))","v":"Mapped"},{"$f":"XBRLMapBoolean(J16,J$25&\".\"&$Q16&\".\"&$P$2,$E$26,$E$27,CONFIGURATION!$B$10,\"BMA\",CONFIGURATION!$B$1,\"bscr\",IF(OR(J16=\"X\",J16=\"x\"),\"1\",\"0\"))","v":"Mapped"},{"$f":"XBRLMapBoolean(K16,K$25&\".\"&$Q16&\".\"&$P$2,$E$26,$E$27,CONFIGURATION!$B$10,\"BMA\",CONFIGURATION!$B$1,\"bscr\",IF(OR(K16=\"X\",K16=\"x\"),\"1\",\"0\"))","v":"Mapped"},{"$f":"XBRLMapBoolean(L16,L$25&\".\"&$Q16&\".\"&$P$2,$E$26,$E$27,CONFIGURATION!$B$10,\"BMA\",CONFIGURATION!$B$1,\"bscr\",IF(OR(L16=\"X\",L16=\"x\"),\"1\",\"0\"))","v":"Mapped"}]
[null,null,null,null,{"$f":"XBRLMapBoolean(E17,E$25&\".\"&$Q17&\".\"&$P$2,$E$26,$E$27,CONFIGURATION!$B$10,\"BMA\",CONFIGURATION!$B$1,\"bscr\",IF(OR(E17=\"X\",E17=\"x\"),\"1\",\"0\"))","v":"Mapped"},{"$f":"XBRLMapBoolean(F17,F$25&\".\"&$Q17&\".\"&$P$2,$E$26,$E$27,CONFIGURATION!$B$10,\"BMA\",CONFIGURATION!$B$1,\"bscr\",IF(OR(F17=\"X\",F17=\"x\"),\"1\",\"0\"))","v":"Mapped"},{"$f":"XBRLMapBoolean(G17,G$25&\".\"&$Q17&\".\"&$P$2,$E$26,$E$27,CONFIGURATION!$B$10,\"BMA\",CONFIGURATION!$B$1,\"bscr\",IF(OR(G17=\"X\",G17=\"x\"),\"1\",\"0\"))","v":"Mapped"},{"$f":"XBRLMapBoolean(H17,H$25&\".\"&$Q17&\".\"&$P$2,$E$26,$E$27,CONFIGURATION!$B$10,\"BMA\",CONFIGURATION!$B$1,\"bscr\",IF(OR(H17=\"X\",H17=\"x\"),\"1\",\"0\"))","v":"Mapped"},{"$f":"XBRLMapBoolean(I17,I$25&\".\"&$Q17&\".\"&$P$2,$E$26,$E$27,CONFIGURATION!$B$10,\"BMA\",CONFIGURATION!$B$1,\"bscr\",IF(OR(I17=\"X\",I17=\"x\"),\"1\",\"0\"))","v":"Mapped"},{"$f":"XBRLMapBoolean(J17,J$25&\".\"&$Q17&\".\"&$P$2,$E$26,$E$27,CONFIGURATION!$B$10,\"BMA\",CONFIGURATION!$B$1,\"bscr\",IF(OR(J17=\"X\",J17=\"x\"),\"1\",\"0\"))","v":"Mapped"},{"$f":"XBRLMapBoolean(K17,K$25&\".\"&$Q17&\".\"&$P$2,$E$26,$E$27,CONFIGURATION!$B$10,\"BMA\",CONFIGURATION!$B$1,\"bscr\",IF(OR(K17=\"X\",K17=\"x\"),\"1\",\"0\"))","v":"Mapped"},{"$f":"XBRLMapBoolean(L17,L$25&\".\"&$Q17&\".\"&$P$2,$E$26,$E$27,CONFIGURATION!$B$10,\"BMA\",CONFIGURATION!$B$1,\"bscr\",IF(OR(L17=\"X\",L17=\"x\"),\"1\",\"0\"))","v":"Mapped"}]
[null,null,null,null,{"$f":"XBRLMapBoolean(E18,E$25&\".\"&$Q18&\".\"&$P$2,$E$26,$E$27,CONFIGURATION!$B$10,\"BMA\",CONFIGURATION!$B$1,\"bscr\",IF(OR(E18=\"X\",E18=\"x\"),\"1\",\"0\"))","v":"Mapped"},{"$f":"XBRLMapBoolean(F18,F$25&\".\"&$Q18&\".\"&$P$2,$E$26,$E$27,CONFIGURATION!$B$10,\"BMA\",CONFIGURATION!$B$1,\"bscr\",IF(OR(F18=\"X\",F18=\"x\"),\"1\",\"0\"))","v":"Mapped"},{"$f":"XBRLMapBoolean(G18,G$25&\".\"&$Q18&\".\"&$P$2,$E$26,$E$27,CONFIGURATION!$B$10,\"BMA\",CONFIGURATION!$B$1,\"bscr\",IF(OR(G18=\"X\",G18=\"x\"),\"1\",\"0\"))","v":"Mapped"},{"$f":"XBRLMapBoolean(H18,H$25&\".\"&$Q18&\".\"&$P$2,$E$26,$E$27,CONFIGURATION!$B$10,\"BMA\",CONFIGURATION!$B$1,\"bscr\",IF(OR(H18=\"X\",H18=\"x\"),\"1\",\"0\"))","v":"Mapped"},{"$f":"XBRLMapBoolean(I18,I$25&\".\"&$Q18&\".\"&$P$2,$E$26,$E$27,CONFIGURATION!$B$10,\"BMA\",CONFIGURATION!$B$1,\"bscr\",IF(OR(I18=\"X\",I18=\"x\"),\"1\",\"0\"))","v":"Mapped"},{"$f":"XBRLMapBoolean(J18,J$25&\".\"&$Q18&\".\"&$P$2,$E$26,$E$27,CONFIGURATION!$B$10,\"BMA\",CONFIGURATION!$B$1,\"bscr\",IF(OR(J18=\"X\",J18=\"x\"),\"1\",\"0\"))","v":"Mapped"},{"$f":"XBRLMapBoolean(K18,K$25&\".\"&$Q18&\".\"&$P$2,$E$26,$E$27,CONFIGURATION!$B$10,\"BMA\",CONFIGURATION!$B$1,\"bscr\",IF(OR(K18=\"X\",K18=\"x\"),\"1\",\"0\"))","v":"Mapped"},{"$f":"XBRLMapBoolean(L18,L$25&\".\"&$Q18&\".\"&$P$2,$E$26,$E$27,CONFIGURATION!$B$10,\"BMA\",CONFIGURATION!$B$1,\"bscr\",IF(OR(L18=\"X\",L18=\"x\"),\"1\",\"0\"))","v":"Mapped"}]
[null,null,null,null,"brrt_FraudScore","brrt_HumanResourcesScore","brrt_OutsourcingScore","brrt_DistributionChannelsScore","brrt_BusinessProcessesScore","brrt_BusinessContinuityScore","brrt_InformationSystemsScore","brrt_ComplianceScore","brrt_OperationalRiskScore"]
[null,null,null,null,{"$f":"XBRLMap(E19,E$32&\".\"&$P$2&\".\"&$P$3,$E$26,$E$27,CONFIGURATION!$B$10,\"BMA\",CONFIGURATION!$B$1,\"bscr\")","v":"Mapped"},{"$f":"XBRLMap(F19,F$32&\".\"&$P$2&\".\"&$P$3,$E$26,$E$27,CONFIGURATION!$B$10,\"BMA\",CONFIGURATION!$B$1,\"bscr\")","v":"Mapped"},{"$f":"XBRLMap(G19,G$32&\".\"&$P$2&\".\"&$P$3,$E$26,$E$27,CONFIGURATION!$B$10,\"BMA\",CONFIGURATION!$B$1,\"bscr\")","v":"Mapped"},{"$f":"XBRLMap(H19,H$32&\".\"&$P$2&\".\"&$P$3,$E$26,$E$27,CONFIGURATION!$B$10,\"BMA\",CONFIGURATION!$B$1,\"bscr\")","v":"Mapped"},{"$f":"XBRLMap(I19,I$32&\".\"&$P$2&\".\"&$P$3,$E$26,$E$27,CONFIGURATION!$B$10,\"BMA\",CONFIGURATION!$B$1,\"bscr\")","v":"Mapped"},{"$f":"XBRLMap(J19,J$32&\".\"&$P$2&\".\"&$P$3,$E$26,$E$27,CONFIGURATION!$B$10,\"BMA\",CONFIGURATION!$B$1,\"bscr\")","v":"Mapped"},{"$f":"XBRLMap(K19,K$32&\".\"&$P$2&\".\"&$P$3,$E$26,$E$27,CONFIGURATION!$B$10,\"BMA\",CONFIGURATION!$B$1,\"bscr\")","v":"Mapped"},{"$f":"XBRLMap(L19,L$32&\".\"&$P$2&\".\"&$P$3,$E$26,$E$27,CONFIGURATION!$B$10,\"BMA\",CONFIGURATION!$B$1,\"bscr\")","v":"Mapped"},{"$f":"XBRLMap(M19,M$32&\".\"&$P$2&\".\"&$P$3,$E$26,$E$27,CONFIGURATION!$B$10,\"BMA\",CONFIGURATION!$B$1,\"bscr\")","v":"Mapped"}]

{"sheet":"Monitoring & Reporting","index":75,"n_rows":33,"n_cols":39,"rows_kept":33,"cut":false,"hidden":false,"merged":[[0,11,0,12],[3,1,3,12],[5,1,5,10],[4,1,4,12],[6,11,6,12],[21,1,21,12],[12,1,12,2],[12,3,13,3],[12,4,12,12],[20,1,20,7]]}
[null,"OPERATIONAL RISK: RISK MONITORING & REPORTING",null,null,null,null,null,null,null,null,null,{"$f":"HYPERLINK(\"#'Index'!A1\",\"Return to Index\")","v":"Return to Index"}]
[null,{"$f":"'Insurer Information'!C7","v":"Enter Company Name"},null,null,null,null,null,null,null,null,null,null,null,null,null,"brrt_OperationalRiskAreaActionAxis_brrt_MonitoringAndReportingMember"]
[null,{"$f":"TEXT('Insurer Information'!C3,\"mmmm dd, yyyy\")","v":"December 31, 2019"},null,null,null,null,null,null,null,null,null,null,null,null,null,"brrt_OperationalRiskAreaStageAxis_brrt_TotalMember"]
[]
[null,"The insurer is to answer the following question.  If the answer to the question is \"No\" then the insurer does not have to complete the matrix/grid.  If the answer to the question is \"Yes\" then the insurer is to identify the stage of progression of each Operational Risk Area based upon the Dimension descriptor.  The insurer is then to input an “X” in the grid corresponding to the stage in the matrix table under the relevant Operational Risk Area."]
[]
[null,"Has your company taken steps to monitor and report material risks arising from the Operational Risk Areas identified below? (Y/N)",null,null,null,null,null,null,null,null,null,null,null,null,null,null,"brrt_StepsHaveBeenTakenToControlAndOrMitigateMaterialRisksArisingFromOperationalRiskAreasIdentified",{"$f":"XBRLMap(L7,Q$7&\".\"&$P$2&\".\"&$P$3,$E$26,$E$27,CONFIGURATION!$B$10,\"BMA\",CONFIGURATION!$B$1,\"bscr\",IF(L7=\"Yes\",\"1\",\"0\"))","v":"Mapped"},null,null,null,null,null,null,null,null,null,null,null,null,"bma_RiskMonitoringAndReportingPractice"]
[]
[null,"If \"Y\", identify the stage of each Operational Risk Area and input an \"X\" in the appropriate grid under each area."]
[]
[null,"Risk Monitoring & Reporting processes are:"]
[]
[null,"Progression",null,"Dimension","Operational Risk Areas"]
[null,"Stage","Scoring",null,"Fraud","Human Resources","Outsourcing","Distribution Channels","Business Processes","Business Continuity","Information Systems","Compliance","Total (Si)",null,null,null,null,null,null,null,null,null,null,null,null,null,null,null,null,null,"bma_RiskMonitoringAndReportingFraudAbstract","bma_RiskMonitoringAndReportingHumanResourcesAbstract","bma_RiskMonitoringAndReportingOutsourcingAbstract","bma_RiskMonitoringAndReportingDistributionChannelsAbstract","bma_RiskMonitoringAndReportingBusinessProcessesAbstract","bma_RiskMonitoringAndReportingBusinessContinuityAbstract","bma_RiskMonitoringAndReportingInformationSystemsAbstract","bma_RiskMonitoringAndReportingComplianceAbstract","bma_RiskMonitoringAndReportingTotalAbstract"]
[null,1,50,"“ad hoc”",null,null,null,null,null,null,null,null,null,null,null,null,"brrt_OperationalRiskAreaStageAxis_brrt_Stage1Member",null,null,null,null,null,null,null,null,null,null,null,null,null,"bma_RiskMonitoringAndReportingFraudStage1","bma_RiskMonitoringAndReportingHumanResourcesStage1","bma_RiskMonitoringAndReportingOutsourcingStage1","bma_RiskMonitoringAndReportingDistributionChannelsStage1","bma_RiskMonitoringAndReportingBusinessProcessesStage1","bma_RiskMonitoringAndReportingBusinessContinuityStage1","bma_RiskMonitoringAndReportingInformationSystemsStage1","bma_RiskMonitoringAndReportingComplianceStage1","bma_RiskMonitoringAndReportingTotalStage1"]
[null,2,100,"Implemented but not standardized across the organization",null,null,null,null,null,null,null,null,null,null,null,null,"brrt_OperationalRiskAreaStageAxis_brrt_Stage2Member",null,null,null,null,null,null,null,null,null,null,null,null,null,"bma_RiskMonitoringAndReportingFraudStage2","bma_RiskMonitoringAndReportingHumanResourcesStage2","bma_RiskMonitoringAndReportingOutsourcingStage2","bma_RiskMonitoringAndReportingDistributionChannelsStage2","bma_RiskMonitoringAndReportingBusinessProcessesStage2","bma_RiskMonitoringAndReportingBusinessContinuityStage2","bma_RiskMonitoringAndReportingInformationSystemsStage2","bma_RiskMonitoringAndReportingComplianceStage2","bma_RiskMonitoringAndReportingTotalStage2"]
[null,3,150,"Implemented, well documented policies and procedures that are understood by relevant staff, and standardized across the entire organization",null,null,null,null,null,null,null,null,null,null,null,null,"brrt_OperationalRiskAreaStageAxis_brrt_Stage3Member",null,null,null,null,null,null,null,null,null,null,null,null,null,"bma_RiskMonitoringAndReportingFraudStage3","bma_RiskMonitoringAndReportingHumanResourcesStage3","bma_RiskMonitoringAndReportingOutsourcingStage3","bma_RiskMonitoringAndReportingDistributionChannelsStage3","bma_RiskMonitoringAndReportingBusinessProcessesStage3","bma_RiskMonitoringAndReportingBusinessContinuityStage3","bma_RiskMonitoringAndReportingInformationSystemsStage3","bma_RiskMonitoringAndReportingComplianceStage3","bma_RiskMonitoringAndReportingTotalStage3"]
[null,4,200,"In addition to Stage 3, processes are reviewed at least annually with the view to assessing effectiveness and introducing improvements",null,null,null,null,null,null,null,null,null,null,null,null,"brrt_OperationalRiskAreaStageAxis_brrt_Stage4Member",null,null,null,null,null,null,null,null,null,null,null,null,null,"bma_RiskMonitoringAndReportingFraudStage4","bma_RiskMonitoringAndReportingHumanResourcesStage4","bma_RiskMonitoringAndReportingOutsourcingStage4","bma_RiskMonitoringAndReportingDistributionChannelsStage4","bma_RiskMonitoringAndReportingBusinessProcessesStage4","bma_RiskMonitoringAndReportingBusinessContinuityStage4","bma_RiskMonitoringAndReportingInformationSystemsStage4","bma_RiskMonitoringAndReportingComplianceStage4","bma_RiskMonitoringAndReportingTotalStage4"]
[null,null,null,null,{"$f":"IF(COUNTA(E15:E18)=0,Import!$I6386,IF(E15=\"X\", 50, IF(E16=\"X\", 100, IF(E17=\"X\", 150, IF(E18=\"X\", 200, 0)))))","v":0},{"$f":"IF(COUNTA(F15:F18)=0,Import!$I6387,IF(F15=\"X\", 50, IF(F16=\"X\", 100, IF(F17=\"X\", 150, IF(F18=\"X\", 200, 0)))))","v":0},{"$f":"IF(COUNTA(G15:G18)=0,Import!$I6388,IF(G15=\"X\", 50, IF(G16=\"X\", 100, IF(G17=\"X\", 150, IF(G18=\"X\", 200, 0)))))","v":0},{"$f":"IF(COUNTA(H15:H18)=0,Import!$I6389,IF(H15=\"X\", 50, IF(H16=\"X\", 100, IF(H17=\"X\", 150, IF(H18=\"X\", 200, 0)))))","v":0},{"$f":"IF(COUNTA(I15:I18)=0,Import!$I6390,IF(I15=\"X\", 50, IF(I16=\"X\", 100, IF(I17=\"X\", 150, IF(I18=\"X\", 200, 0)))))","v":0},{"$f":"IF(COUNTA(J15:J18)=0,Import!$I6391,IF(J15=\"X\", 50, IF(J16=\"X\", 100, IF(J17=\"X\", 150, IF(J18=\"X\", 200, 0)))))","v":0},{"$f":"IF(COUNTA(K15:K18)=0,Import!$I6392,IF(K15=\"X\", 50, IF(K16=\"X\", 100, IF(K17=\"X\", 150, IF(K18=\"X\", 200, 0)))))","v":0},{"$f":"IF(COUNTA(L15:L18)=0,Import!$I6393,IF(L15=\"X\", 50, IF(L16=\"X\", 100, IF(L17=\"X\", 150, IF(L18=\"X\", 200, 0)))))","v":0},{"$f":"SUM(E19:L19)","v":0},{"$f":"IF(M19>1600, \"ERR\", \"OK\")","v":"OK"},null,null,null,null,null,null,null,null,null,null,null,null,null,null,null,null,"bma_RiskMonitoringAndReportingFraudTotal","bma_RiskMonitoringAndReportingHumanResourcesTotal","bma_RiskMonitoringAndReportingOutsourcingTotal","bma_RiskMonitoringAndReportingDistributionChannelsTotal","bma_RiskMonitoringAndReportingBusinessProcessesTotal","bma_RiskMonitoringAndReportingBusinessContinuityTotal","bma_RiskMonitoringAndReportingInformationSystemsTotal","bma_RiskMonitoringAndReportingComplianceTotal","bma_RiskMonitoringAndReportingTotalTotal"]
[]
[null,"Comments (optionally, the insurer may provide comments in the box below to support its responses above):"]
[null,null,null,null,null,null,null,null,null,null,null,null,null,null,null,null,"brrt_AdditionalComments",{"$f":"XBRLMap(B22,Q$22&\".\"&$P$2&\".\"&$P$3,$E$26,$E$27,CONFIGURATION!$B$10,\"BMA\",CONFIGURATION!$B$1,\"bscr\")","v":"Mapped"},null,null,null,null,null,null,null,null,null,null,null,null,"bma_RiskMonitoringAndReportingComment"]
[]
[]
[null,null,null,null,"brrt_Fraud","brrt_HumanResources","brrt_Outsourcing","brrt_DistributionChannels","brrt_BusinessProcesses","brrt_BusinessContinuity","brrt_InformationSystems","brrt_Compliance"]
[null,null,null,null,{"$f":"IF(B3=\"\",\"\",TEXT(DATE(YEAR(B3+1)-1,MONTH(B3+1),DAY(B3+1)),\"mm/dd/yyyy\"))","v":"01/01/2019"}]
[null,null,null,null,{"$f":"IF(B3=\"\",\"\",TEXT(B3,\"mm/dd/yyyy\"))","v":"12/31/2019"}]
[null,null,null,null,{"$f":"XBRLMapBoolean(E15,E$25&\".\"&$Q15&\".\"&$P$2,$E$26,$E$27,CONFIGURATION!$B$10,\"BMA\",CONFIGURATION!$B$1,\"bscr\",IF(OR(E15=\"X\",E15=\"x\"),\"1\",\"0\"))","v":"Mapped"},{"$f":"XBRLMapBoolean(F15,F$25&\".\"&$Q15&\".\"&$P$2,$E$26,$E$27,CONFIGURATION!$B$10,\"BMA\",CONFIGURATION!$B$1,\"bscr\",IF(OR(F15=\"X\",F15=\"x\"),\"1\",\"0\"))","v":"Mapped"},{"$f":"XBRLMapBoolean(G15,G$25&\".\"&$Q15&\".\"&$P$2,$E$26,$E$27,CONFIGURATION!$B$10,\"BMA\",CONFIGURATION!$B$1,\"bscr\",IF(OR(G15=\"X\",G15=\"x\"),\"1\",\"0\"))","v":"Mapped"},{"$f":"XBRLMapBoolean(H15,H$25&\".\"&$Q15&\".\"&$P$2,$E$26,$E$27,CONFIGURATION!$B$10,\"BMA\",CONFIGURATION!$B$1,\"bscr\",IF(OR(H15=\"X\",H15=\"x\"),\"1\",\"0\"))","v":"Mapped"},{"$f":"XBRLMapBoolean(I15,I$25&\".\"&$Q15&\".\"&$P$2,$E$26,$E$27,CONFIGURATION!$B$10,\"BMA\",CONFIGURATION!$B$1,\"bscr\",IF(OR(I15=\"X\",I15=\"x\"),\"1\",\"0\"))","v":"Mapped"},{"$f":"XBRLMapBoolean(J15,J$25&\".\"&$Q15&\".\"&$P$2,$E$26,$E$27,CONFIGURATION!$B$10,\"BMA\",CONFIGURATION!$B$1,\"bscr\",IF(OR(J15=\"X\",J15=\"x\"),\"1\",\"0\"))","v":"Mapped"},{"$f":"XBRLMapBoolean(K15,K$25&\".\"&$Q15&\".\"&$P$2,$E$26,$E$27,CONFIGURATION!$B$10,\"BMA\",CONFIGURATION!$B$1,\"bscr\",IF(OR(K15=\"X\",K15=\"x\"),\"1\",\"0\"))","v":"Mapped"},{"$f":"XBRLMapBoolean(L15,L$25&\".\"&$Q15&\".\"&$P$2,$E$26,$E$27,CONFIGURATION!$B$10,\"BMA\",CONFIGURATION!$B$1,\"bscr\",IF(OR(L15=\"X\",L15=\"x\"),\"1\",\"0\"))","v":"Mapped"}]
[null,null,null,null,{"$f":"XBRLMapBoolean(E16,E$25&\".\"&$Q16&\".\"&$P$2,$E$26,$E$27,CONFIGURATION!$B$10,\"BMA\",CONFIGURATION!$B$1,\"bscr\",IF(OR(E16=\"X\",E16=\"x\"),\"1\",\"0\"))","v":"Mapped"},{"$f":"XBRLMapBoolean(F16,F$25&\".\"&$Q16&\".\"&$P$2,$E$26,$E$27,CONFIGURATION!$B$10,\"BMA\",CONFIGURATION!$B$1,\"bscr\",IF(OR(F16=\"X\",F16=\"x\"),\"1\",\"0\"))","v":"Mapped"},{"$f":"XBRLMapBoolean(G16,G$25&\".\"&$Q16&\".\"&$P$2,$E$26,$E$27,CONFIGURATION!$B$10,\"BMA\",CONFIGURATION!$B$1,\"bscr\",IF(OR(G16=\"X\",G16=\"x\"),\"1\",\"0\"))","v":"Mapped"},{"$f":"XBRLMapBoolean(H16,H$25&\".\"&$Q16&\".\"&$P$2,$E$26,$E$27,CONFIGURATION!$B$10,\"BMA\",CONFIGURATION!$B$1,\"bscr\",IF(OR(H16=\"X\",H16=\"x\"),\"1\",\"0\"))","v":"Mapped"},{"$f":"XBRLMapBoolean(I16,I$25&\".\"&$Q16&\".\"&$P$2,$E$26,$E$27,CONFIGURATION!$B$10,\"BMA\",CONFIGURATION!$B$1,\"bscr\",IF(OR(I16=\"X\",I16=\"x\"),\"1\",\"0\"))","v":"Mapped"},{"$f":"XBRLMapBoolean(J16,J$25&\".\"&$Q16&\".\"&$P$2,$E$26,$E$27,CONFIGURATION!$B$10,\"BMA\",CONFIGURATION!$B$1,\"bscr\",IF(OR(J16=\"X\",J16=\"x\"),\"1\",\"0\"))","v":"Mapped"},{"$f":"XBRLMapBoolean(K16,K$25&\".\"&$Q16&\".\"&$P$2,$E$26,$E$27,CONFIGURATION!$B$10,\"BMA\",CONFIGURATION!$B$1,\"bscr\",IF(OR(K16=\"X\",K16=\"x\"),\"1\",\"0\"))","v":"Mapped"},{"$f":"XBRLMapBoolean(L16,L$25&\".\"&$Q16&\".\"&$P$2,$E$26,$E$27,CONFIGURATION!$B$10,\"BMA\",CONFIGURATION!$B$1,\"bscr\",IF(OR(L16=\"X\",L16=\"x\"),\"1\",\"0\"))","v":"Mapped"}]
[null,null,null,null,{"$f":"XBRLMapBoolean(E17,E$25&\".\"&$Q17&\".\"&$P$2,$E$26,$E$27,CONFIGURATION!$B$10,\"BMA\",CONFIGURATION!$B$1,\"bscr\",IF(OR(E17=\"X\",E17=\"x\"),\"1\",\"0\"))","v":"Mapped"},{"$f":"XBRLMapBoolean(F17,F$25&\".\"&$Q17&\".\"&$P$2,$E$26,$E$27,CONFIGURATION!$B$10,\"BMA\",CONFIGURATION!$B$1,\"bscr\",IF(OR(F17=\"X\",F17=\"x\"),\"1\",\"0\"))","v":"Mapped"},{"$f":"XBRLMapBoolean(G17,G$25&\".\"&$Q17&\".\"&$P$2,$E$26,$E$27,CONFIGURATION!$B$10,\"BMA\",CONFIGURATION!$B$1,\"bscr\",IF(OR(G17=\"X\",G17=\"x\"),\"1\",\"0\"))","v":"Mapped"},{"$f":"XBRLMapBoolean(H17,H$25&\".\"&$Q17&\".\"&$P$2,$E$26,$E$27,CONFIGURATION!$B$10,\"BMA\",CONFIGURATION!$B$1,\"bscr\",IF(OR(H17=\"X\",H17=\"x\"),\"1\",\"0\"))","v":"Mapped"},{"$f":"XBRLMapBoolean(I17,I$25&\".\"&$Q17&\".\"&$P$2,$E$26,$E$27,CONFIGURATION!$B$10,\"BMA\",CONFIGURATION!$B$1,\"bscr\",IF(OR(I17=\"X\",I17=\"x\"),\"1\",\"0\"))","v":"Mapped"},{"$f":"XBRLMapBoolean(J17,J$25&\".\"&$Q17&\".\"&$P$2,$E$26,$E$27,CONFIGURATION!$B$10,\"BMA\",CONFIGURATION!$B$1,\"bscr\",IF(OR(J17=\"X\",J17=\"x\"),\"1\",\"0\"))","v":"Mapped"},{"$f":"XBRLMapBoolean(K17,K$25&\".\"&$Q17&\".\"&$P$2,$E$26,$E$27,CONFIGURATION!$B$10,\"BMA\",CONFIGURATION!$B$1,\"bscr\",IF(OR(K17=\"X\",K17=\"x\"),\"1\",\"0\"))","v":"Mapped"},{"$f":"XBRLMapBoolean(L17,L$25&\".\"&$Q17&\".\"&$P$2,$E$26,$E$27,CONFIGURATION!$B$10,\"BMA\",CONFIGURATION!$B$1,\"bscr\",IF(OR(L17=\"X\",L17=\"x\"),\"1\",\"0\"))","v":"Mapped"}]
[null,null,null,null,{"$f":"XBRLMapBoolean(E18,E$25&\".\"&$Q18&\".\"&$P$2,$E$26,$E$27,CONFIGURATION!$B$10,\"BMA\",CONFIGURATION!$B$1,\"bscr\",IF(OR(E18=\"X\",E18=\"x\"),\"1\",\"0\"))","v":"Mapped"},{"$f":"XBRLMapBoolean(F18,F$25&\".\"&$Q18&\".\"&$P$2,$E$26,$E$27,CONFIGURATION!$B$10,\"BMA\",CONFIGURATION!$B$1,\"bscr\",IF(OR(F18=\"X\",F18=\"x\"),\"1\",\"0\"))","v":"Mapped"},{"$f":"XBRLMapBoolean(G18,G$25&\".\"&$Q18&\".\"&$P$2,$E$26,$E$27,CONFIGURATION!$B$10,\"BMA\",CONFIGURATION!$B$1,\"bscr\",IF(OR(G18=\"X\",G18=\"x\"),\"1\",\"0\"))","v":"Mapped"},{"$f":"XBRLMapBoolean(H18,H$25&\".\"&$Q18&\".\"&$P$2,$E$26,$E$27,CONFIGURATION!$B$10,\"BMA\",CONFIGURATION!$B$1,\"bscr\",IF(OR(H18=\"X\",H18=\"x\"),\"1\",\"0\"))","v":"Mapped"},{"$f":"XBRLMapBoolean(I18,I$25&\".\"&$Q18&\".\"&$P$2,$E$26,$E$27,CONFIGURATION!$B$10,\"BMA\",CONFIGURATION!$B$1,\"bscr\",IF(OR(I18=\"X\",I18=\"x\"),\"1\",\"0\"))","v":"Mapped"},{"$f":"XBRLMapBoolean(J18,J$25&\".\"&$Q18&\".\"&$P$2,$E$26,$E$27,CONFIGURATION!$B$10,\"BMA\",CONFIGURATION!$B$1,\"bscr\",IF(OR(J18=\"X\",J18=\"x\"),\"1\",\"0\"))","v":"Mapped"},{"$f":"XBRLMapBoolean(K18,K$25&\".\"&$Q18&\".\"&$P$2,$E$26,$E$27,CONFIGURATION!$B$10,\"BMA\",CONFIGURATION!$B$1,\"bscr\",IF(OR(K18=\"X\",K18=\"x\"),\"1\",\"0\"))","v":"Mapped"},{"$f":"XBRLMapBoolean(L18,L$25&\".\"&$Q18&\".\"&$P$2,$E$26,$E$27,CONFIGURATION!$B$10,\"BMA\",CONFIGURATION!$B$1,\"bscr\",IF(OR(L18=\"X\",L18=\"x\"),\"1\",\"0\"))","v":"Mapped"}]
[null,null,null,null,"brrt_FraudScore","brrt_HumanResourcesScore","brrt_OutsourcingScore","brrt_DistributionChannelsScore","brrt_BusinessProcessesScore","brrt_BusinessContinuityScore","brrt_InformationSystemsScore","brrt_ComplianceScore","brrt_OperationalRiskScore"]
[null,null,null,null,{"$f":"XBRLMap(E19,E$32&\".\"&$P$2&\".\"&$P$3,$E$26,$E$27,CONFIGURATION!$B$10,\"BMA\",CONFIGURATION!$B$1,\"bscr\")","v":"Mapped"},{"$f":"XBRLMap(F19,F$32&\".\"&$P$2&\".\"&$P$3,$E$26,$E$27,CONFIGURATION!$B$10,\"BMA\",CONFIGURATION!$B$1,\"bscr\")","v":"Mapped"},{"$f":"XBRLMap(G19,G$32&\".\"&$P$2&\".\"&$P$3,$E$26,$E$27,CONFIGURATION!$B$10,\"BMA\",CONFIGURATION!$B$1,\"bscr\")","v":"Mapped"},{"$f":"XBRLMap(H19,H$32&\".\"&$P$2&\".\"&$P$3,$E$26,$E$27,CONFIGURATION!$B$10,\"BMA\",CONFIGURATION!$B$1,\"bscr\")","v":"Mapped"},{"$f":"XBRLMap(I19,I$32&\".\"&$P$2&\".\"&$P$3,$E$26,$E$27,CONFIGURATION!$B$10,\"BMA\",CONFIGURATION!$B$1,\"bscr\")","v":"Mapped"},{"$f":"XBRLMap(J19,J$32&\".\"&$P$2&\".\"&$P$3,$E$26,$E$27,CONFIGURATION!$B$10,\"BMA\",CONFIGURATION!$B$1,\"bscr\")","v":"Mapped"},{"$f":"XBRLMap(K19,K$32&\".\"&$P$2&\".\"&$P$3,$E$26,$E$27,CONFIGURATION!$B$10,\"BMA\",CONFIGURATION!$B$1,\"bscr\")","v":"Mapped"},{"$f":"XBRLMap(L19,L$32&\".\"&$P$2&\".\"&$P$3,$E$26,$E$27,CONFIGURATION!$B$10,\"BMA\",CONFIGURATION!$B$1,\"bscr\")","v":"Mapped"},{"$f":"XBRLMap(M19,M$32&\".\"&$P$2&\".\"&$P$3,$E$26,$E$27,CONFIGURATION!$B$10,\"BMA\",CONFIGURATION!$B$1,\"bscr\")","v":"Mapped"}]

{"sheet":"Op Risk","index":76,"n_rows":47,"n_cols":14,"rows_kept":47,"cut":false,"hidden":false,"merged":[[3,1,3,7],[46,3,46,7],[33,3,33,7],[28,3,28,7],[30,3,30,7],[35,3,35,7],[37,3,37,7],[40,3,40,7]]}
[null,"OPERATIONAL RISK: OPERATIONAL RISK CHARGE CALCULATION",null,null,null,null,null,{"$f":"HYPERLINK(\"#'Index'!A1\",\"Return to Index\")","v":"Return to Index"},null,"bma_OperationalRiskChargeCalculationInstructionsAbstract"]
[null,null,null,null,null,null,null,null,null,""]
[null,null,null,null,null,null,null,null,null,""]
[null,"Subject to the Authority applying a re-assessment upon onsite inspection, the “Total Operational Risk Capital Charge” below will be applied to the insurer’s BSCR (After Covariance Adjustment) sub-total in the BSCR model for purposes of arriving at its Enhanced Capital Requirement for the year-end filing.",null,null,null,null,null,null,null,"",{"$f":"IF(K5=\"\",\"\",TEXT(DATE(YEAR(K5+1)-1,MONTH(K5+1),DAY(K5+1)),\"mm/dd/yyyy\"))","v":"01/01/2019"}]
[null,null,null,null,null,null,null,null,null,"",{"$f":"IF('Insurer Information'!C3=\"\",\"\",'Insurer Information'!C3)","v":"2019-12-31"}]
[null,null,"Overall CIRA Score",{"$f":"'Corp Gov'!D18+'Risk Man'!D18+Identification!M19+Measurement!M19+'Monitoring & Reporting'!M19+Response!M19","v":0},null,null,null,null,null,"bma_OverallCIRAScore",null,null,null,{"$f":"YEAR('Insurer Information'!C3)","v":2019}]
[null,null,null,null,null,null,null,null,null,""]
[null,null,"CIRA Scoring Grid",null,null,null,null,null,null,""]
[null,null,null,null,null,null,null,null,null,""]
[null,null,"OVERALL SCORE","APPLICABLE OPERATIONAL RISK CHARGE % OF \"BSCR AFTER COVARIANCE ADJUSTMENT\"",null,null,null,null,null,""]
[null,null,null,null,null,null,null,null,null,""]
[null,null,{"$f":"IF('Insurer Information'!F9=\"Class E\",\"<= 5,200\",IF('Insurer Information'!F9=\"Class D\",\"<= 5,200\",\"<=800\"))","v":"<= 5,200"},0.1,null,null,null,null,null,""]
[null,null,{"$f":"IF('Insurer Information'!F9=\"Class E\",\"> 5,200 <= 6,000\",IF('Insurer Information'!F9=\"Class D\",\"> 5,200 <= 6,000\",\"> 800 <= 1,200\"))","v":"> 5,200 <= 6,000"},0.09,null,null,null,null,null,""]
[null,null,{"$f":"IF('Insurer Information'!F9=\"Class E\",\"> 6,000 <= 6,650\",IF('Insurer Information'!F9=\"Class D\",\"> 6,000 <= 6,650\",\"> 1,200 <= 1,400\"))","v":"> 6,000 <= 6,650"},0.08,null,null,null,null,null,""]
[null,null,{"$f":"IF('Insurer Information'!F9=\"Class E\",\"> 6,650 <= 7,250\",IF('Insurer Information'!F9=\"Class D\",\"> 6,650 <= 7,250\",\"> 1,400 <= 1,600\"))","v":"> 6,650 <= 7,250"},7.0000000000000007E-2,null,null,null,null,null,""]
[null,null,{"$f":"IF('Insurer Information'!F9=\"Class E\",\"> 7,250 <= 7,650\",IF('Insurer Information'!F9=\"Class D\",\"> 7,250 <= 7,650\",\"> 1,600 <= 1,800\"))","v":"> 7,250 <= 7,650"},0.06,null,null,null,null,null,""]
[null,null,{"$f":"IF('Insurer Information'!F9=\"Class E\",\"> 7,650 <= 7,850\",IF('Insurer Information'!F9=\"Class D\",\"> 7,650 <= 7,850\",\"> 1,800 <= 2,000\"))","v":"> 7,650 <= 7,850"},0.05,null,null,null,null,null,""]
[null,null,{"$f":"IF('Insurer Information'!F9=\"Class E\",\"> 7,850 <= 8,050\",IF('Insurer Information'!F9=\"Class D\",\"> 7,850 <= 8,050\",\"> 2,000 <= 2,200\"))","v":"> 7,850 <= 8,050"},0.04,null,null,null,null,null,""]
[null,null,{"$f":"IF('Insurer Information'!F9=\"Class E\",\"> 8,050 <= 8,250\",IF('Insurer Information'!F9=\"Class D\",\"> 8,050 <= 8,250\",\"> 2,200 <= 2,400\"))","v":"> 8,050 <= 8,250"},0.03,null,null,null,null,null,""]
[null,null,{"$f":"IF('Insurer Information'!F9=\"Class E\",\"> 8,250 <= 8,450\",IF('Insurer Information'!F9=\"Class D\",\"> 8,250 <= 8,450\",\"> 2,400 <= 2,600\"))","v":"> 8,250 <= 8,450"},0.02,null,null,null,null,null,""]
[null,null,{"$f":"IF('Insurer Information'!F9=\"Class E\",\"> 8,450\",IF('Insurer Information'!F9=\"Class D\",\"> 8,450\",\"> 2,600\"))","v":"> 8,450"},0.01,null,null,null,null,null,""]
[null,null,null,null,null,null,null,null,null,""]
[null,null,"BSCR After Covariance Adjustment:",{"$f":"Summary!G60","v":0},null,null,null,null,null,"bma_BSCRAfterCovarianceAdjustment"]
[null,null,null,null,null,null,null,null,null,""]
[null,null,"Operational Risk Charge %:",{"$f":"IF('Insurer Information'!F9=\"Class C\",F25,F27)","v":0.1},null,{"$f":"IF(D6<=800,0.1, IF(D6<=1200, 0.09, IF(D6<=1400, 0.08, IF(D6<=1600, 0.07, IF(D6<=1800, 0.06, IF(D6<=2000, 0.05, IF(D6<=2200, 0.04, IF(D6<=2400, 0.03,IF(D6<=2400, 0.03,IF(D6<=2600,0.02,IF(D6>2600,0.01,\"N/A\")))))))))))","v":0.1},null,null,null,"bma_OperationalRiskChargePercentage"]
[null,null,null,null,null,null,null,null,null,""]
[null,null,"Total Operational Risk Capital Charge:",{"$f":"D23*D25","v":0},null,{"$f":"IF(D6<=5200,0.1, IF(D6<=6000, 0.09, IF(D6<=6650, 0.08, IF(D6<=7250, 0.07, IF(D6<=7650, 0.06, IF(D6<=7850, 0.05, IF(D6<=8050, 0.04, IF(D6<=8250, 0.03, IF(D6<=8250, 0.03,IF(D6<=8450,0.02,IF(D6>8450,0.01,\"N/A\")))))))))))","v":0.1},null,null,null,"bma_TotalOperationalRiskCapitalCharge"]
[null,null,null,null,null,null,null,null,null,"bma_ResidentDirectorAbstract"]
[null,null,"Signatory:",null,null,null,null,null,null,"bma_ResidentDirectorSignatory"]
[null,null,null,null,null,null,null,null,null,""]
[null,null,"Print Name:",null,null,null,null,null,null,"bma_ResidentDirectorPrintName"]
[null,null,null,"Resident Director",null,null,null,null,null,""]
[null,null,null,null,null,null,null,null,null,""]
[null,null,"Date:",null,null,null,null,null,null,"bma_ResidentDirectorSignedDate"]
[null,null,null,null,null,null,null,null,null,"bma_DirectorAbstract"]
[null,null,"Signatory:",null,null,null,null,null,null,"bma_DirectorSignatory"]
[null,null,null,null,null,null,null,null,null,""]
[null,null,"Print Name:",null,null,null,null,null,null,"bma_DirectorPrintName"]
[null,null,null,"Director",null,null,null,null,null,""]
[null,null,null,null,null,null,null,null,null,""]
[null,null,"Date:",null,null,null,null,null,null,"bma_DirectorSignedDate"]
[null,null,null,null,null,null,null,null,null,""]
[null,null,"Insurer Name:",{"$f":"'Insurer Information'!C7","v":"Enter Company Name"},null,null,null,null,null,""]
[null,null,null,null,null,null,null,null,null,""]
[null,null,"Year-end:",{"$f":"'Form 4EBS'!C3","v":"2019-12-31"},null,null,null,null,null,""]
[null,null,null,null,null,null,null,null,null,""]
[null,null,"Insurer Registration No.",{"$f":"CONFIGURATION!B1","v":0},null,null,null,null,null,"bma_InsurerRegistrationNo"]

{"sheet":"Op Risk (Revised)","index":77,"n_rows":47,"n_cols":14,"rows_kept":47,"cut":false,"hidden":false,"merged":[[40,3,40,7],[46,3,46,7],[3,1,3,7],[28,3,28,7],[30,3,30,7],[33,3,33,7],[35,3,35,7],[37,3,37,7]]}
[null,"OPERATIONAL RISK: OPERATIONAL RISK CHARGE CALCULATION",null,null,null,null,null,{"$f":"HYPERLINK(\"#'Index'!A1\",\"Return to Index\")","v":"Return to Index"},null,"bma_OperationalRiskChargeCalculationInstructionsAbstract"]
[null,null,null,null,null,null,null,null,null,""]
[null,null,null,null,null,null,null,null,null,""]
[null,"Subject to the Authority applying a re-assessment upon onsite inspection, the “Total Operational Risk Capital Charge” below will be applied to the insurer’s BSCR (After Covariance Adjustment) sub-total in the BSCR model for purposes of arriving at its Enhanced Capital Requirement for the year-end filing.",null,null,null,null,null,null,null,"",{"$f":"IF(K5=\"\",\"\",TEXT(DATE(YEAR(K5+1)-1,MONTH(K5+1),DAY(K5+1)),\"mm/dd/yyyy\"))","v":"01/01/2019"}]
[null,null,null,null,null,null,null,null,null,"",{"$f":"IF('Insurer Information'!C3=\"\",\"\",'Insurer Information'!C3)","v":"2019-12-31"}]
[null,null,"Overall CIRA Score",{"$f":"'Corp Gov'!D18+'Risk Man'!D18+Identification!M19+Measurement!M19+'Monitoring & Reporting'!M19+Response!M19","v":0},null,null,null,null,null,"bma_OverallCIRAScore",null,null,null,{"$f":"YEAR('Insurer Information'!C3)","v":2019}]
[null,null,null,null,null,null,null,null,null,""]
[null,null,"CIRA Scoring Grid",null,null,null,null,null,null,""]
[null,null,null,null,null,null,null,null,null,""]
[null,null,"OVERALL SCORE","APPLICABLE OPERATIONAL RISK CHARGE % OF \"BSCR AFTER COVARIANCE ADJUSTMENT\"",null,null,null,null,null,""]
[null,null,null,null,null,null,null,null,null,""]
[null,null,{"$f":"IF('Insurer Information'!F9=\"Class E\",\"<= 4,000\",IF('Insurer Information'!F9=\"Class D\",\"<= 4,000\",\"<=800\"))","v":"<= 4,000"},0.2,null,null,null,null,null,""]
[null,null,{"$f":"IF('Insurer Information'!F9=\"Class E\",\"> 4,000 <= 5,200\",IF('Insurer Information'!F9=\"Class D\",\"> 4,000 <= 5,200\",\"> 800 <= 1,200\"))","v":"> 4,000 <= 5,200"},0.18,null,null,null,null,null,""]
[null,null,{"$f":"IF('Insurer Information'!F9=\"Class E\",\"> 5,200 <= 6,000\",IF('Insurer Information'!F9=\"Class D\",\"> 5,200 <= 6,000\",\"> 1,200 <= 1,400\"))","v":"> 5,200 <= 6,000"},0.15,null,null,null,null,null,""]
[null,null,{"$f":"IF('Insurer Information'!F9=\"Class E\",\"> 6,000 <= 6,650\",IF('Insurer Information'!F9=\"Class D\",\"> 6,000 <= 6,650\",\"> 1,400 <= 1,600\"))","v":"> 6,000 <= 6,650"},0.12,null,null,null,null,null,""]
[null,null,{"$f":"IF('Insurer Information'!F9=\"Class E\",\"> 6,650 <= 7,250\",IF('Insurer Information'!F9=\"Class D\",\"> 6,650 <= 7,250\",\"> 1,600 <= 1,800\"))","v":"> 6,650 <= 7,250"},0.09,null,null,null,null,null,""]
[null,null,{"$f":"IF('Insurer Information'!F9=\"Class E\",\"> 7,250 <= 7,650\",IF('Insurer Information'!F9=\"Class D\",\"> 7,250 <= 7,650\",\"> 1,800 <= 2,000\"))","v":"> 7,250 <= 7,650"},7.0000000000000007E-2,null,null,null,null,null,""]
[null,null,{"$f":"IF('Insurer Information'!F9=\"Class E\",\"> 7,650 <= 7,850\",IF('Insurer Information'!F9=\"Class D\",\"> 7,650 <= 7,850\",\"> 2,000 <= 2,200\"))","v":"> 7,650 <= 7,850"},0.05,null,null,null,null,null,""]
[null,null,{"$f":"IF('Insurer Information'!F9=\"Class E\",\"> 7,850 <= 8,050\",IF('Insurer Information'!F9=\"Class D\",\"> 7,850 <= 8,050\",\"> 2,200 <= 2,400\"))","v":"> 7,850 <= 8,050"},0.03,null,null,null,null,null,""]
[null,null,{"$f":"IF('Insurer Information'!F9=\"Class E\",\"> 8,050 <= 8,250\",IF('Insurer Information'!F9=\"Class D\",\"> 8,050 <= 8,250\",\"> 2,400 <= 2,600\"))","v":"> 8,050 <= 8,250"},0.02,null,null,null,null,null,""]
[null,null,{"$f":"IF('Insurer Information'!F9=\"Class E\",\"> 8,250\",IF('Insurer Information'!F9=\"Class D\",\"> 8,250\",\"> 2,600\"))","v":"> 8,250"},0.01,null,null,null,null,null,""]
[null,null,null,null,null,null,null,null,null,""]
[null,null,"BSCR After Covariance Adjustment:",{"$f":"Summary!N60","v":0},null,null,null,null,null,"bma_BSCRAfterCovarianceAdjustment"]
[null,null,null,null,null,null,null,null,null,""]
[null,null,"Operational Risk Charge %:",{"$f":"IF('Insurer Information'!F9=\"Class C\",F25,F26)","v":0.2},null,{"$f":"IF(D6<=800,0.2, IF(D6<=1200, 0.18, IF(D6<=1400, 0.15, IF(D6<=1600, 0.12, IF(D6<=1800, 0.09, IF(D6<=2000, 0.07, IF(D6<=2200, 0.05, IF(D6<=2400, 0.03, IF(D6<=2600,0.02,IF(D6>2600,0.01,\"N/A\"))))))))))","v":0.2},null,null,null,"bma_OperationalRiskChargePercentage"]
[null,null,null,null,null,{"$f":"IF(D6<=4000,0.2,IF(D6<=5200,0.18,IF(D6<=6000,0.15,IF(D6<=6650,0.12,IF(D6<=7250,0.09,IF(D6<=7650,0.07,IF(D6<=7850,0.05,IF(D6<=8050,0.03,IF(D6<=8250,0.02,IF(D6>8450,0.01,\"N/A\"))))))))))","v":0.2},null,null,null,""]
[null,null,"Total Operational Risk Capital Charge:",{"$f":"D23*D25","v":0},null,null,null,null,null,"bma_TotalOperationalRiskCapitalCharge"]
[null,null,null,null,null,null,null,null,null,"bma_ResidentDirectorAbstract"]
[null,null,"Signatory:",null,null,null,null,null,null,"bma_ResidentDirectorSignatory"]
[null,null,null,null,null,null,null,null,null,""]
[null,null,"Print Name:",null,null,null,null,null,null,"bma_ResidentDirectorPrintName"]
[null,null,null,"Resident Director",null,null,null,null,null,""]
[null,null,null,null,null,null,null,null,null,""]
[null,null,"Date:",null,null,null,null,null,null,"bma_ResidentDirectorSignedDate"]
[null,null,null,null,null,null,null,null,null,"bma_DirectorAbstract"]
[null,null,"Signatory:",null,null,null,null,null,null,"bma_DirectorSignatory"]
[null,null,null,null,null,null,null,null,null,""]
[null,null,"Print Name:",null,null,null,null,null,null,"bma_DirectorPrintName"]
[null,null,null,"Director",null,null,null,null,null,""]
[null,null,null,null,null,null,null,null,null,""]
[null,null,"Date:",null,null,null,null,null,null,"bma_DirectorSignedDate"]
[null,null,null,null,null,null,null,null,null,""]
[null,null,"Insurer Name:",{"$f":"'Insurer Information'!C7","v":"Enter Company Name"},null,null,null,null,null,""]
[null,null,null,null,null,null,null,null,null,""]
[null,null,"Year-end:",{"$f":"'Form 4EBS'!C3","v":"2019-12-31"},null,null,null,null,null,""]
[null,null,null,null,null,null,null,null,null,""]
[null,null,"Insurer Registration No.",{"$f":"CONFIGURATION!B1","v":0},null,null,null,null,null,"bma_InsurerRegistrationNo"]

{"sheet":"Summary","index":78,"n_rows":168,"n_cols":33,"rows_kept":168,"cut":false,"hidden":false,"merged":[[57,40,59,41],[65,2,65,3],[57,34,57,35],[57,36,57,37],[57,38,57,39],[142,7,142,8],[6,1,6,17],[35,10,35,13],[33,1,33,18],[77,10,77,13],[87,10,87,13],[137,11,137,13],[37,10,37,11],[37,12,37,13],[93,10,93,13],[103,10,103,13],[128,10,128,13],[135,10,135,13],[35,5,35,6]]}
["SUMMARY",null,null,null,null,null,null,null,null,null,null,null,null,null,null,null,null,{"$f":"HYPERLINK(\"#'Index'!A1\",\"Return to Index\")","v":"Return to Index"}]
[{"$f":"'Insurer Information'!C7","v":"Enter Company Name"}]
[{"$f":"IF('Insurer Information'!F9=\"Class C\",\"Bermuda Solvency Capital Requirement - Class C Insurers (BSCR-LT)\",\"Bermuda Solvency Capital Requirement - Class D and Class E Insurers (BSCR-LT)\")","v":"Bermuda Solvency Capital Requirement - Class D and Class E Insurers (BSCR-LT)"}]
[{"$f":"\"For the Year Ending \"","v":"For the Year Ending "},null,null,{"$f":"TEXT('Insurer Information'!C3,\"mmmm dd, yyyy\")","v":"December 31, 2019"}]
[{"$f":"\"Expressed in \" & IF(CONFIGURATION!$B$12>1,\" ['\"&MID(CONFIGURATION!$B$12,2,LEN(CONFIGURATION!$B$12))&\"s]\",\"\")","v":"Expressed in  ['000s]"},null,null,{"$f":"'Form 4EBS'!C4","v":"United States Dollars"}]
[null,null,null,null,null,null,null,null,null,null,null,null,null,{"$f":"YEAR('Insurer Information'!C3)","v":2019}]
[null,"UNCONSOLIDATED BASIS"]
[]
[null,"Long-Term Business Minimum Solvency Margin",null,null,null,null,null,null,null,null,"Statutory Capital & Surplus Reduction"]
[]
[null,"Unconsolidated Capital & Surplus (Form 8SFS, Line 4)",null,null,null,null,{"$f":"IF('Insurer Information'!$F$2=\"Unconsolidated BSCR Model\",'Form 1SFS'!$K$198,'Form 1SFS'!$H$198)*IF('Form 1SFS'!$C$5=\"United States Dollars\",1,'Information Sheet'!$H$18)","v":0},null,null,null,"31B Statutory Capital & Surplus Reduction (Dividend Payment Maximum 25%)"]
[]
[null,"Long-Term Assets for Minimum Margin of Solvency Calculation",null,null,null,null,null,null,null,null,{"$f":"\"Unconsolidated Statutory Capital & Surplus for \"&YEAR('Form 1SFS'!$G$9)","v":"Unconsolidated Statutory Capital & Surplus for 2018"},null,null,null,{"$f":"IF('Insurer Information'!$F$2=\"Unconsolidated BSCR Model\",'Form 8SFS'!$Q$58,'Form 8SFS'!M58+'Form 8SFS'!I58)","v":0}]
[null,"Total Unconsolidated Assets (Form 1SFS, Line 15)",null,null,null,{"$f":"IF('Insurer Information'!$F$2=\"Unconsolidated BSCR Model\",'Form 1SFS'!$K$100,'Form 1SFS'!$H$100)*IF('Form 1SFS'!$C$5=\"United States Dollars\",1,'Information Sheet'!$H$18)","v":0}]
[null,"less: [Form 1SFS]",null,null,null,null,null,null,null,null,"Maximum Dividend",null,null,{"$f":"25%*O13","v":0}]
[null,"a)","Segregated - Annuities (Form 1SFS, Line 13(b))",null,null,{"$f":"-IF('Insurer Information'!$F$2=\"Unconsolidated BSCR Model\",'Form 1SFS'!$K$83,'Form 1SFS'!$H$83)*IF('Form 1SFS'!$C$5=\"United States Dollars\",1,'Information Sheet'!$H$18)","v":0},null,null,null,null,{"$f":"\"Dividend Payment in \"&YEAR('Form 1SFS'!$F$9)","v":"Dividend Payment in 2019"},null,null,{"$f":"-IF('Insurer Information'!$F$2=\"Unconsolidated BSCR Model\",'Form 8SFS'!$O$44,'Form 8SFS'!G44+'Form 8SFS'!K44)","v":0}]
[null,"b)","Segregated - Other (Form 1SFS, Line 13(c))",null,null,{"$f":"-IF('Insurer Information'!$F$2=\"Unconsolidated BSCR Model\",'Form 1SFS'!$K$84,'Form 1SFS'!$H$84)*IF('Form 1SFS'!$C$5=\"United States Dollars\",1,'Information Sheet'!$H$18)","v":0}]
[]
[null,"Long-Term Assets for Minimum Margin of Solvency Calculation",null,null,null,null,{"$f":"SUM(F14:F17)","v":0},null,null,null,"Insurer met Dividend Payment Requirement",null,null,null,{"$f":"IF(N15>=N16,\"YES\",\"NO\")","v":"YES"}]
[]
[null,"Test A - Minimum Capital ",null,null,null,null,{"$f":"IF('Insurer Information'!$F$9=\"Class C\",500,IF('Insurer Information'!$F$9=\"Class D\",4000,IF('Insurer Information'!$F$9=\"Class E\",8000,\"Error\")))","v":4000},null,null,null,"Statutory Capital Reduction"]
[]
[null,"Test B - Asset Test",null,null,null,{"$f":"IF('Insurer Information'!$F$9=\"Class C\",1.5%,IF('Insurer Information'!$F$9=\"Class D\",1.5%,IF('Insurer Information'!$F$9=\"Class E\",1.5%,\"Error\")))","v":1.4999999999999999E-2},{"$f":"IF('Insurer Information'!$F$9=\"Class C\",G19*F23,(IF('Insurer Information'!$F$9=\"Class D\",IF(G19>250000,5000+(G19-250000)*1.5%,G19*2%),(IF('Insurer Information'!$F$9=\"Class E\",IF(G19>500000,10000+(G19-500000)*1.5%,G19*2%),\"Error\")))))","v":0},null,null,null,"31C Statutory Capital Reduction (Maximum Reduction of 15%)"]
[]
[null,"Test C - 25% of ECR",null,null,null,{"$f":"G98","v":4000},{"$f":"F25*25%","v":1000},null,null,null,{"$f":"\"Unconsolidated Statutory Capital for \"&YEAR('Form 1SFS'!$F9)","v":"Unconsolidated Statutory Capital for 2019"},null,null,null,{"$f":"IF('Insurer Information'!$F$2=\"Unconsolidated BSCR Model\",'Form 8SFS'!$O$36,'Form 8SFS'!G36+'Form 8SFS'!K36)","v":0}]
[null,null,null,null,null,null,null,null,null,null,{"$f":"\"Unconsolidated Statutory Capital for \"&YEAR('Form 1SFS'!$G9)","v":"Unconsolidated Statutory Capital for 2018"},null,null,null,{"$f":"IF('Insurer Information'!$F$2=\"Unconsolidated BSCR Model\",'Form 8SFS'!$Q$36,'Form 8SFS'!I36+'Form 8SFS'!M36)","v":0}]
[null,"Modified MSM (if Applicable)"]
[null,null,null,null,null,null,null,null,null,null,{"$f":"\"Statutory Capital Change from \"&YEAR('Form 1SFS'!$G9)&\" to \"&YEAR('Form 1SFS'!$F9)","v":"Statutory Capital Change from 2018 to 2019"},null,null,{"$f":"O25-O26","v":0}]
[null,{"$f":"\"MSM for \"&YEAR('Form 1SFS'!$F$9)","v":"MSM for 2019"},null,null,null,null,{"$f":"IF(G27=\"\",MAX(G21,G23,G25),G27)","v":4000},null,null,null,"Maximum Reduction",null,null,{"$f":"O26*-15%","v":0}]
[]
[null,"Minimum Margin of Solvency Met",null,null,null,null,{"$f":"IF(G11>=G29,\"YES\",\"NO\")","v":"NO"},null,null,null,"Insurer met Capital Reduction Requirement",null,null,null,{"$f":"IF(N29<N28,\"YES\",\"NO\")","v":"NO"}]
[]
[]
[null,"CONSOLIDATED ECONOMIC BALANCE SHEET BASIS"]
[]
[null,"REQUIRED CAPITAL AND SURPLUS",null,null,null,"2018 Year-End Methodology",null,null,null,null,"2019 Year-End Revised Methodology",null,null,null,null,null,null,null,null,null,null,null,"Data for Pie Chart"]
[]
[null,null,null,null,null,null,null,null,null,null,"Net Capital Charge",null,"Gross Capital Charge"]
[null,"Market Risk",null,null,null,null,null,null,null,null,null,{"$f":"SQRT(MMULT(TRANSPOSE(K40:K44),MMULT('Correlation Matrix'!B7:F11,K40:K44)))","v":0},null,{"$f":"SQRT(MMULT(TRANSPOSE(M40:M44),MMULT('Correlation Matrix'!B7:F11,M40:M44)))","v":0}]
[null,"Cfi","Fixed Income Investment Risk",null,null,null,{"$f":"ROUND('Fixed Income Investments'!F99,$N$153)","v":0},null,null,null,{"$f":"ROUND('Fixed Income Investments (Rev.)'!I136,$N$153)","v":0},null,{"$f":"ROUND('Fixed Income Investments (Rev.)'!I136,$N$153)","v":0},null,null,null,null,null,null,"Fixed Income",{"$f":"G40","v":0},null,{"$f":"IF($G$60=0,1/13,U40/$U$54)","v":7.6923076923076927E-2},null,{"$f":"M40","v":0},{"$f":"IF($N$60=0,1/13,Y40/$Y$54)","v":7.6923076923076927E-2}]
[null,"Ceq","Equity Investment Risk",null,"Without Grandfathering",null,{"$f":"ROUND('Equity Investments'!F51,$N$153)","v":0},null,null,null,{"$f":"ROUND(IF(E41=\"With Grandfathering\",('Equity Investments (Grandf)'!F51+'Equity Investments (Non-Grandf)'!R58),'Equity Investments (Revised)'!R56),$N$153)","v":0},null,{"$f":"ROUND(IF(E41=\"With Grandfathering\",('Equity Investments (Grandf)'!F51+'Equity Investments (Non-Grandf)'!P58),'Equity Investments (Revised)'!P56),$N$153)","v":0},null,null,null,null,null,null,"Equity",{"$f":"G41","v":0},null,{"$f":"IF($G$60=0,1/13,U41/$U$54)","v":7.6923076923076927E-2},null,{"$f":"M41","v":0},{"$f":"IF($N$60=0,1/13,Y41/$Y$54)","v":7.6923076923076927E-2}]
[null,"CLTint","Long Term Interest and Liquidity Risk",null,"Duration-Based Approach",null,{"$f":"ROUND('Interest Rate-Liquidity Risk'!L14,$N$153)","v":0},null,null,null,{"$f":"ROUND(IF(E42=\"Duration-Based Approach\",'Interest Rate-Liquidity Risk'!L14,'Interest Rate-Liquidity (Rev.)'!$E$117),$N$153)","v":0},null,{"$f":"ROUND(IF(E42=\"Duration-Based Approach\",'Interest Rate-Liquidity Risk'!L15,'Interest Rate-Liquidity (Rev.)'!$D$117),$N$153)","v":0},null,null,null,null,null,null,"Interest and Liquidity Risk",{"$f":"G42","v":0},null,7.6923076923076927E-2,null,{"$f":"M42","v":0},7.6923076923076927E-2]
[null,"CCur","Currency Risk",null,null,null,{"$f":"ROUND('Currency Risk'!I28,$N$153)","v":0},null,null,null,{"$f":"ROUND('Currency Risk (Revised)'!Y39,$N$153)","v":0},null,{"$f":"ROUND('Currency Risk (Revised)'!X39,$N$153)","v":0},null,null,null,null,null,null,"Currency Risk",{"$f":"G43","v":0},null,7.6923076923076927E-2,null,{"$f":"M43","v":0},7.6923076923076927E-2]
[null,"CCon","Concentration Risk",null,null,null,{"$f":"+'Concentration Risk'!F111","v":0},null,null,null,{"$f":"'Concentration Risk (Revised)'!F123","v":0},null,{"$f":"'Concentration Risk (Revised)'!F123","v":0},null,null,null,null,null,null,"Concentration Risk",{"$f":"G44","v":0},null,7.6923076923076927E-2,null,{"$f":"M44","v":0},7.6923076923076927E-2]
[null,null,null,null,null,null,null,null,null,null,null,null,null,null,null,null,null,null,null,"Credit Risk",{"$f":"G47","v":0},null,7.6923076923076927E-2,null,{"$f":"M47","v":0},7.6923076923076927E-2]
[null,"Credit Risk",null,null,null,null,null,null,null,null,null,{"$f":"K47","v":0},null,{"$f":"M47","v":0},null,null,null,null,null,"Mortality",{"$f":"G50","v":0},null,7.6923076923076927E-2,null,{"$f":"M50","v":0},7.6923076923076927E-2]
[null,"Ccred","Credit Risk",null,null,null,{"$f":"ROUND('Credit Risk'!F45,$N$153)","v":0},null,null,null,{"$f":"ROUND('Credit Risk (Revised)'!H59,$N$153)","v":0},null,{"$f":"ROUND('Credit Risk (Revised)'!H59,$N$153)","v":0},null,null,null,null,null,null,"Stop-Loss",0,null,7.6923076923076927E-2,null,0,7.6923076923076927E-2]
[null,null,null,null,null,null,null,null,null,null,null,null,null,null,null,null,null,null,null,"Riders",0,null,7.6923076923076927E-2,null,0,7.6923076923076927E-2]
[null,"Long-term Insurance Risk",null,null,null,null,null,null,null,null,null,{"$f":"SQRT(MMULT(TRANSPOSE(K50:K56),MMULT('Correlation Matrix'!I7:O13,K50:K56)))","v":0},null,{"$f":"SQRT(MMULT(TRANSPOSE(M50:M56),MMULT('Correlation Matrix'!I7:O13,M50:M56)))","v":0},null,null,null,null,null,"Morbidity and Disability",0,null,7.6923076923076927E-2,null,0,7.6923076923076927E-2]
[null,"CLTmort","Long Term Insurance Risk - Mortality",null,null,null,{"$f":"ROUND('LT Insurance Risk'!O60,$N$153)","v":0},null,null,null,{"$f":"ROUND('LT Insurance Risk'!O60,$N$153)","v":0},null,{"$f":"ROUND('LT Insurance Risk'!O60,$N$153)","v":0},null,null,null,null,null,null,"Longevity",0,null,7.6923076923076927E-2,null,0,7.6923076923076927E-2]
[null,"CLTsl","Long Term Insurance Risk - Stop-Loss",null,null,null,{"$f":"ROUND('LT Insurance Risk'!O61,$N$153)","v":0},null,null,null,{"$f":"ROUND('LT Insurance Risk'!O61,$N$153)","v":0},null,{"$f":"ROUND('LT Insurance Risk'!O61,$N$153)","v":0},null,null,null,null,null,null,"Variable Annuity",0,null,7.6923076923076927E-2,null,0,7.6923076923076927E-2]
[null,"CLTr","Long Term Insurance Risk - Riders",null,null,null,{"$f":"ROUND('LT Insurance Risk'!O62,$N$153)","v":0},null,null,null,{"$f":"ROUND('LT Insurance Risk'!O62,$N$153)","v":0},null,{"$f":"ROUND('LT Insurance Risk'!O62,$N$153)","v":0},null,null,null,null,null,null,"Other Ins.",0,null,7.6923076923076927E-2,null,0,7.6923076923076927E-2]
[null,"CLTmorb","Long Term Insurance Risk - Morbidity and Disability",null,null,null,{"$f":"ROUND('LT Insurance Risk'!O63,$N$153)","v":0},null,null,null,{"$f":"ROUND('LT Insurance Risk'!O63,$N$153)","v":0},null,{"$f":"ROUND('LT Insurance Risk'!O63,$N$153)","v":0}]
[null,"CLTlong","Long Term Insurance Risk - Longevity",null,null,null,{"$f":"ROUND('LT Insurance Risk'!O64,$N$153)","v":0},null,null,null,{"$f":"ROUND('LT Insurance Risk'!O64,$N$153)","v":0},null,{"$f":"ROUND('LT Insurance Risk'!O64,$N$153)","v":0},null,null,null,null,null,null,null,{"$f":"SUM(U40:U53)","v":0},null,{"$f":"SUM(X40:X56)","v":0},null,{"$f":"SUM(Y40:Y53)","v":0},{"$f":"SUM(AA40:AA56)","v":0}]
[null,"CLTVA","Long Term Variable Annuity Guarantee Risk",null,null,null,{"$f":"ROUND(IF('Schedule VIIIA (EBS)'!S12=0,'LT Variable Annuity Gte Risk'!W60,'Schedule VIIIA (EBS)'!S12),N$153)","v":0},null,null,null,{"$f":"ROUND(IF('Schedule VIIIA (EBS)'!S12=0,'LT Variable Annuity Gte Risk'!W60,'Schedule VIIIA (EBS)'!S12),N$153)","v":0},null,{"$f":"ROUND(IF('Schedule VIIIA (EBS)'!S12=0,'LT Variable Annuity Gte Risk'!W60,'Schedule VIIIA (EBS)'!S12),N$153)","v":0}]
[null,"CLToth","Long Term Other Insurance Risk",null,null,null,{"$f":"ROUND('LT Other Insurance Risk'!I27,$N$153)","v":0},null,null,null,{"$f":"ROUND('LT Other Insurance Risk'!I27,$N$153)","v":0},null,{"$f":"ROUND('LT Other Insurance Risk'!I27,$N$153)","v":0}]
[]
[null,"BSCRLT (Prior to Covariance Adjustment and prior to Cop)",null,null,null,null,{"$f":"SUM(G40:G56)","v":0},null,null,null,null,{"$f":"SUM(K40:K56)","v":0},null,{"$f":"SUM(M40:M56)","v":0}]
[]
[null,"BSCRLT (After Covariance Adjustment and prior to Cop)",null,null,null,null,{"$f":"(G40^2+G41^2+G47^2+G42^2+G43^2+G44^2+((G50+G51+G52))^2+G53^2+G54^2+-0.5*((G50+G51+G52)*G54)+G55^2+G56^2)^0.5","v":0},null,null,null,null,{"$f":"SQRT(MMULT(TRANSPOSE('Correlation Matrix'!W12:W14),MMULT('Correlation Matrix'!R7:T9,'Correlation Matrix'!W12:W14)))","v":0},null,{"$f":"SQRT(MMULT(TRANSPOSE('Correlation Matrix'!W6:W8),MMULT('Correlation Matrix'!R7:T9,'Correlation Matrix'!W6:W8)))","v":0},null,null,null,null,null,null,null,null,null,"Minimum Solvency Margin"]
[]
[null,"Operational risk charge (%)",null,null,null,null,{"$f":"'Op Risk'!D25","v":0.1},null,null,null,null,null,null,{"$f":"'Op Risk (Revised)'!D25","v":0.2},null,null,null,null,null,null,null,null,null,"Asset Base",null,{"$f":"G19","v":0},"First Cap Factor",null,"Second Cap Factor","Fixed Limit","Minimum Amount"]
[null,null,null,null,null,null,null,null,null,null,null,null,null,null,null,null,null,null,null,null,null,null,null,"Class A",null,null,0,null,5.0000000000000001E-3,0,120,null,{"$f":"MAX(AE63,AA63*MIN(Z$62,AD63)+AC63*MAX((Z$62-AD63),0))","v":120}]
[null,"Cop","Operational risk capital charge ($)",null,null,null,{"$f":"$G$60*$G$62","v":0},null,null,null,null,null,null,{"$f":"($N$60+N133)*$N$62","v":0},null,null,null,null,null,null,null,null,null,"Class B",null,null,0,null,0.01,0,250,null,{"$f":"MAX(AE64,AA64*MIN(Z$62,AD64)+AC64*MAX((Z$62-AD64),0))","v":250}]
[null,null,null,null,null,null,null,null,null,null,null,null,null,null,null,null,null,null,null,null,null,null,null,"Class C",null,null,0,null,1.4999999999999999E-2,0,500,null,{"$f":"MAX(AE65,AA65*MIN(Z$62,AD65)+AC65*MAX((Z$62-AD65),0))","v":500}]
[null,"Cadj","Capital Adjustment for (Regulatory) Capital Requirement for Regulated Non-Insurance Financial Operating Entities:",null,null,null,{"$f":"+'Schedule XVI'!M211","v":0},null,null,null,null,null,null,{"$f":"+'Schedule XVI'!M211","v":0}]
[]
[null,"Capital add-on / reduction (BMA assessment)",null,null,null,null,{"$f":"'Company Specific Parameters'!I553-'Company Specific Parameters'!F553","v":0},null,null,null,null,null,null,{"$f":"'CSP (Revised)'!L750-'CSP (Revised)'!I750","v":0},null,null,null,null,null,null,null,null,null,"Class D",null,null,0.02,null,1.4999999999999999E-2,250000,4000,null,{"$f":"MAX(AE68,AA68*MIN(Z$62,AD68)+AC68*MAX((Z$62-AD68),0))","v":4000}]
[null,null,null,null,null,null,null,null,null,null,null,null,null,null,null,null,null,null,null,null,null,null,null,"Class E",null,null,0.02,null,1.4999999999999999E-2,500000,8000,null,{"$f":"MAX(AE69,AA69*MIN(Z$62,AD69)+AC69*MAX((Z$62-AD69),0))","v":8000}]
[null,"CMgmtAction",null,null,null,null,null,null,null,null,null,null,null,{"$f":"N133","v":0}]
[]
[null,"Other Capital Adjustment",null,null,null,null,0,null,null,null,null,null,null,{"$f":"L138","v":0}]
[]
[null,"Transition BSCR ",null,null,null,null,null,null,null,null,null,null,null,{"$f":"IF(YEAR('Insurer Information'!C3)<2020,(N76-G76)*10%+G76,IF(YEAR('Insurer Information'!C3)<2021,(N76-G76)*20%+G76,IF(YEAR('Insurer Information'!C3)<2022,(N76-G76)*30%+G76,IF(YEAR('Insurer Information'!C3)<2023,(N76-G76)*40%+G76,IF(YEAR('Insurer Information'!C3)<2024,(N76-G76)*50%+G76,IF(YEAR('Insurer Information'!C3)<2025,(N76-G76)*60%+G76,IF(YEAR('Insurer Information'!C3)<2026,(N76-G76)*70%+G76,IF(YEAR('Insurer Information'!C3)<2027,(N76-G76)*80%+G76,IF(YEAR('Insurer Information'!C3)<2028,(N76-G76)*90%+G76,N76)))))))))","v":0}]
[]
[null,"Final BSCRLT",null,null,null,null,{"$f":"G64+G68+G60+G66","v":0},null,null,null,null,null,null,{"$f":"N64+N68+N60+N66+N72+N70","v":0},null,null,null,null,null,"brrt_BSCR",{"$f":"XBRLMap(N76,T76,$D$153,$D$154,CONFIGURATION!$B$10,\"BMA\",CONFIGURATION!$B$1,\"bscr\",CONFIGURATION!$B$12)","v":"Mapped"}]
[]
[null,"AVAILABLE STATUTORY CAPITAL AND SURPLUS",null,null,null,null,{"$f":"'Form 4EBS'!$F$6","v":"2019-12-31"},null,null,null,"2019 Year-End Revised Methodology"]
[null,null,null,null,null,null,null,null,null,null,null,null,null,null,null,null,null,null,null,null,null,null,null,null,null,{"$f":"N90","v":4000}]
[null,"Total statutory economic capital and surplus",null,null,"Form 4EBS, line (40)",null,{"$f":"'Form 4EBS'!F184","v":0},null,null,null,null,null,null,{"$f":"'Form 4EBS'!F184","v":0},null,null,null,null,null,"brrt_StatutoryCapitalAndSurplus","Mapped in Form 8",null,"Data for Column Chart"]
[null,"Capital contribution",null,null,null,null,null,null,null,null,null,null,null,null,null,null,null,null,null,"brrt_CapitalContribution",{"$f":"XBRLMap(N81,T81,$D$153,$D$154,CONFIGURATION!$B$10,\"BMA\",CONFIGURATION!$B$1,\"bscr\",CONFIGURATION!$B$12)","v":"Mapped"},null,"bma_CapitalContributions"]
[null,"Pre-adjustment available statutory economic capital and surplus",null,null,null,null,{"$f":"G80+G81","v":0},null,null,null,null,null,null,{"$f":"N80+N81","v":0},null,null,null,null,null,"brrt_PreAdjustmentAvailableStatutoryCapitalSurplus",{"$f":"XBRLMap(N82,T82,$D$153,$D$154,CONFIGURATION!$B$10,\"BMA\",CONFIGURATION!$B$1,\"bscr\",CONFIGURATION!$B$12)","v":"Mapped"}]
[]
[null,null,"Capital add-on / reduction (BMA Assessment)",null,null,null,0,null,null,null,null,null,null,0,null,null,null,null,null,"brrt_CapitalAddonReductionBMAAssessmentAvailableStatutoryCapitalAndSurplus",{"$f":"XBRLMap(N84,T84,$D$153,$D$154,CONFIGURATION!$B$10,\"BMA\",CONFIGURATION!$B$1,\"bscr\",CONFIGURATION!$B$12)","v":"Mapped"},null,"bma_AvailableCapitalAdd-onReductionBMAAssessment"]
[]
[null,"Available Statutory Economic Capital and Surplus",null,null,null,null,{"$f":"G82+G84","v":0},null,null,null,null,null,null,{"$f":"N82+N84","v":0},null,null,null,null,null,"brrt_AvailableStatutoryCapitalSurplus",{"$f":"XBRLMap(N86,T86,$D$153,$D$154,CONFIGURATION!$B$10,\"BMA\",CONFIGURATION!$B$1,\"bscr\",CONFIGURATION!$B$12)","v":"Mapped"},null,"Data for Column Chart"]
[]
[null,"MINIMUM MARGIN OF SOLVENCY",null,null,null,null,{"$f":"'Form 4EBS'!$F$6","v":"2019-12-31"},null,null,null,"2019 Year-End Revised Methodology"]
[]
[null,"Minimum Margin of Solvency (Calculation)",null,null,null,null,{"$f":"MAX((G76*25%),(IF('Insurer Information'!F9=\"Class E\",AG69,IF('Insurer Information'!F9=\"Class D\",AG68,IF('Insurer Information'!F9=\"Class C\",AG65,IF('Insurer Information'!F9=\"Class B\",AG64,IF('Insurer Information'!F9=\"Class A\",AG63,0)))))))","v":4000},null,null,null,null,null,null,{"$f":"MAX((N76*25%),(IF('Insurer Information'!F9=\"Class E\",AG69,IF('Insurer Information'!F9=\"Class D\",AG68,IF('Insurer Information'!F9=\"Class C\",AG65,IF('Insurer Information'!F9=\"Class B\",AG64,IF('Insurer Information'!F9=\"Class A\",AG63,0)))))))","v":4000},null,null,null,null,null,"brrt_MinimumSolvencyMarginPreAdjustmentFactor",{"$f":"XBRLMap(N90,T90,$D$153,$D$154,CONFIGURATION!$B$10,\"BMA\",CONFIGURATION!$B$1,\"bscr\",CONFIGURATION!$B$12)","v":"Mapped"},null,null,null,null,null,"Bottom",null,"Top","Level"]
[null,"Approved Minimum Margin of Solvency (if applicable)",null,null,null,null,null,null,null,null,null,null,null,null,null,null,null,null,null,"brrt_MinimumSolvencyMarginTransitionalAdjustmentFactor",{"$f":"XBRLMap(N91,T91,$D$153,$D$154,CONFIGURATION!$B$10,\"BMA\",CONFIGURATION!$B$1,\"bscr\")","v":"Mapped"}]
[null,"Minimum Margin of Solvency",null,null,null,null,{"$f":"SUM(G90:G91)","v":4000},null,null,null,null,null,null,{"$f":"SUM(N90:N91)","v":4000},null,null,null,null,null,"brrt_MinimumSolvencyMargin","Mapped in Schedule XII(a)"]
[]
[null,"ENHANCED CAPITAL REQUIREMENT & TARGET CAPITAL LEVEL",null,null,null,null,{"$f":"'Form 4EBS'!$F$6","v":"2019-12-31"},null,null,null,"2019 Year-End Revised Methodology",null,null,null,null,null,null,null,null,null,null,null,null,"Adjusted Surplus","Available Statutory Capital and Surplus",null,{"$f":"G86","v":0},null,{"$f":"AC$102-AA94","v":25000000},{"$f":"IF($N$86=0,25000000,1000*$N$86)","v":25000000}]
[]
[null,"Transition Enhanced Capital Requirement",null,null,null,null,null,null,null,null,null,null,null,{"$f":"MAX(N74,N92)","v":4000}]
[]
[null,"Enhanced Capital Requirement",null,null,null,null,{"$f":"MAX(G76,G92)","v":4000},null,null,null,null,null,null,{"$f":"MAX(N76,N92)","v":4000},null,null,null,null,null,"brrt_EnhancedCapitalRequirementPreAdjustmentFactor",{"$f":"XBRLMap(N98,T98,$D$153,$D$154,CONFIGURATION!$B$10,\"BMA\",CONFIGURATION!$B$1,\"bscr\",CONFIGURATION!$B$12)","v":"Mapped"},null,null,"Mandatory Control Level (100% of ACL)","Regulatory Action Level 1",null,null,null,{"$f":"AC$102-AA98","v":25000000},{"$f":"IF(N98=0,15000000,1000*N98)","v":4000000}]
[null,null,null,null,null,null,null,null,null,null,null,null,null,null,null,null,null,null,null,"brrt_EnhancedCapitalRequirementTransitionalAdjustmentFactor",{"$f":"XBRLMap(#REF!,T99,$D$153,$D$154,CONFIGURATION!$B$10,\"BMA\",CONFIGURATION!$B$1,\"bscr\")","v":{"$error":"#VALUE!"}}]
[null,"Transition Target Capital Level",null,null,null,null,null,null,null,null,null,null,null,{"$f":"N96*1.2","v":4800},null,null,null,null,null,"brrt_EnhancedCapitalRequirement","Mapped in Schedule XII(a)",null,null,"Authorized Control Level (120% of ACL)","Regulatory Action Level 2",null,null,null,{"$f":"AC$102-AA100","v":25000000},{"$f":"IF($N$102=0,18000000,1000*$N$102)","v":4800000}]
[]
[null,"Target Capital Level",null,null,null,null,{"$f":"$G$98*1.2","v":4800},null,null,null,null,null,null,{"$f":"$N$98*1.2","v":4800},null,null,null,null,null,"brrt_TargetCapitalLevel",{"$f":"XBRLMap(N102,T102,$D$153,$D$154,CONFIGURATION!$B$10,\"BMA\",CONFIGURATION!$B$1,\"bscr\",CONFIGURATION!$B$12)","v":"Mapped"},null,null,null,null,null,"Max Column",null,{"$f":"MAX(AD94:AD103)","v":25000000}]
[]
[null,"RATIOS",null,null,null,null,{"$f":"'Form 4EBS'!$F$6","v":"2019-12-31"},null,null,null,"2019 Year-End Revised Methodology"]
[]
[null,"Transition Bermuda Solvency Capital Requirement Ratio",null,null,null,null,null,null,null,null,null,null,null,{"$f":"IF(N74=0,\"n/a\",N86/N74)","v":"n/a"}]
[]
[null,"Bermuda Solvency Capital Requirement Ratio",null,null,null,null,{"$f":"IF($G$76=0,\"n/a\",$G$86/$G$76)","v":"n/a"},null,null,null,null,null,null,{"$f":"IF($N$76=0,\"n/a\",$N$86/$N$76)","v":"n/a"},null,null,null,null,null,"brrt_BSCRRatio",{"$f":"XBRLMap(N108,T108,$D$153,$D$154,CONFIGURATION!$B$10,\"BMA\",CONFIGURATION!$B$1,\"bscr\",CONFIGURATION!$B$12)","v":"Mapped"}]
[]
[null,"Transition Enhanced Capital Requirement Ratio",null,null,null,null,null,null,null,null,null,null,null,{"$f":"IF(N96=0,\"n/a\",N86/N96)","v":0},null,null,null,null,null,"brrt_TransitoryEnhancedCapitalRequirementRatio",{"$f":"XBRLMap(#REF!,T110,$D$153,$D$154,CONFIGURATION!$B$10,\"BMA\",CONFIGURATION!$B$1,\"bscr\",CONFIGURATION!$B$12)","v":{"$error":"#VALUE!"}}]
[]
[null,"Enhanced Capital Requirement Ratio",null,null,null,null,{"$f":"IF(G98=0,\"n/a\",$G$86/G98)","v":0},null,null,null,null,null,null,{"$f":"IF(N98=0,\"n/a\",$N$86/N98)","v":0},null,null,null,null,null,"brrt_EnhancedCapitalRequirementRatio",{"$f":"XBRLMap(N112,T112,$D$153,$D$154,CONFIGURATION!$B$10,\"BMA\",CONFIGURATION!$B$1,\"bscr\",CONFIGURATION!$B$12)","v":"Mapped"}]
[]
[null,"Enhancement Capital Requirement Met",null,null,null,null,{"$f":"IF(G112>100%,\"YES\",\"NO\")","v":"NO"},null,null,null,null,null,null,{"$f":"IF(N112>100%,\"YES\",\"NO\")","v":"NO"}]
[]
[]
[null,"Eligible Capital",null,null,null,null,{"$f":"'Form 4EBS'!$F$6","v":"2019-12-31"}]
[]
[null,null,null,null,"Applied to MSM",null,"Applied to ECR"]
[]
[null,"Tier 1 Capital ",null,null,{"$f":"+'Schedule XII(a)'!G93","v":0},null,{"$f":"+'Schedule XII(a)'!I93","v":0}]
[null,"Tier 2 Capital ",null,null,{"$f":"+'Schedule XII(a)'!G94","v":0},null,{"$f":"+'Schedule XII(a)'!I94","v":0}]
[null,"Tier 3 Capital ",null,null,{"$f":"+'Schedule XII(a)'!G95","v":0},null,{"$f":"+'Schedule XII(a)'!I95","v":0}]
[null,"Total Capital",null,null,{"$f":"+'Schedule XII(a)'!G96","v":0},null,{"$f":"+'Schedule XII(a)'!I96","v":0}]
[]
[null,"Insurer met Eligible Capital Requirement",null,null,{"$f":"IF(E124>=$G$98,\"YES\",\"NO\")","v":"NO"},null,{"$f":"IF(G124>=$G$98,\"YES\",\"NO\")","v":"NO"}]
[]
[]
[null,"Capital Adjustment - Management Action ",null,null,null,null,null,null,null,null,"2019 Year-End Revised Methodology"]
[]
[null,"Implied Loss-absorbing capacity of Technical Provisions without cap",null,null,null,null,null,null,null,null,null,null,null,{"$f":"N60-L60","v":0}]
[null,"Initial FDB / Bonus reserve on EBS basis",null,null,null,null,null,null,null,null,null,null,null,{"$f":"Import!M6399","v":0}]
[null,"Adj. for the Loss-absorbing capacity of Tech. Provisions",null,null,null,null,null,null,null,null,null,null,null,{"$f":"-MAX(MIN(N131,N132),0)","v":0}]
[]
[]
[null,"Other Capital Adjustment",null,null,null,null,null,null,null,null,"2019 Year-End Revised Methodology"]
[]
[null,"Adjustment = min (BSCR x t, Limit, 20% x BSCR)",null,null,null,null,null,null,null,null,null,{"$f":"-MIN(D144,G147,N143)","v":0}]
[]
[null,"Test 1",null,null,"Test 2",null,null,"Test 3"]
[]
[null,"BSCR",null,{"$f":"N60+N64+N66+N68+N70","v":0},"Limit = Past LAC + Current LAC + Future LAC",null,null,"BSCR",null,null,null,null,null,{"$f":"N60+N64+N66+N68+N70","v":0}]
[null,"T",null,{"$f":"Import!M6397","v":0},"Loss Carryback",null,{"$f":"MAX(0,Import!M6398)","v":0},0.2,null,null,null,null,null,{"$f":"N142*H143","v":0}]
[null,"Test Result",null,{"$f":"MAX(0,D142*D143)","v":0},"PAST LAC",null,{"$f":"G143*D143","v":0}]
[null,null,null,null,"Current LAC",null,{"$f":"'Form 4EBS'!F148-'Form 4EBS'!F82","v":0}]
[null,null,null,null,"Future LAC",null,{"$f":"'Form 4EBS'!F124*D143","v":0}]
[null,null,null,null,"Total Limit",null,{"$f":"MAX(0,SUM(G144:G146))","v":0}]
[]
[]
[]
[]
[]
[null,"Rounding (decimal places)",null,{"$f":"IF($D$4=\"\",\"\",TEXT(DATE(YEAR($D$4+1)-1,MONTH($D$4+1),DAY($D$4+1)),\"mm/dd/yyyy\"))","v":"01/01/2019"},null,null,null,null,null,null,null,null,null,10]
[null,null,null,{"$f":"IF($D$4=\"\",\"\",TEXT($D$4,\"mm/dd/yyyy\"))","v":"12/31/2019"}]
[]
[null,null,null,"bma_RequiredCapitalAdd-onReductionBMAAssessment"]
[]
[null,null,null,"bma_FixedIncomeInvestmentRisk"]
[null,null,null,"bma_EquityInvestmentRisk"]
[null,null,null,"bma_FixedIncomeInvestmentRisk"]
[null,null,null,"bma_LongTermInterestRateAndLiquidityRisk"]
[null,null,null,"bma_LongTermInsuranceRiskMortality"]
[null,null,null,"bma_LongTermInsuranceRiskNonProportional"]
[null,null,null,"bma_LongTermInsuranceRiskRiders"]
[null,null,null,"bma_LongTermInsuranceRiskMorbidityAndDisability"]
[null,null,null,"bma_LongTermInsuranceRiskLongevity"]
[null,null,null,"bma_LongTermVariableAnnuityGuaranteeRisk"]
[null,null,null,"bma_LongTermOtherInsuranceRisk"]

{"sheet":"Fixed Income Investments","index":79,"n_rows":99,"n_cols":6,"rows_kept":99,"cut":false,"hidden":false,"merged":[[103,0,103,1],[0,5,0,6],[49,1,50,2]]}
["FIXED INCOME INVESTMENTS",null,null,null,null,{"$f":"HYPERLINK(\"#'Index'!A1\",\"Return to Index\")","v":"Return to Index"}]
[{"$f":"'Insurer Information'!C7","v":"Enter Company Name"}]
["Fixed Income Investment Risk",null,{"$f":" TEXT('Insurer Information'!C3,\"mmmm dd, yyyy\")","v":"December 31, 2019"},"(1)","(2)","(3)"]
[]
[]
[null,"TYPE OF ",null,"ASSET","CAPITAL","REQUIRED"]
[null,"FIXED INCOME INVESTMENTS","STATEMENT SOURCE","VALUE","FACTOR","CAPITAL"]
[]
[null,"(a)  Corporate & Sovereign Bonds",null,null,null,"(1) x (2)"]
[]
[null,"BSCR Rating"]
[null,0,"Sch II EBS, Line (1), Column 1 & Sch IIA EBS, Line (1), Column 1",{"$f":"+'Schedule II (EBS)'!D12+'Schedule IIA (EBS)'!D12","v":0},0,{"$f":"IF(D12<0,0,D12*E12)","v":0}]
[null,1,"Sch II EBS, Line (2), Column 1 & Sch IIA EBS, Line (2), Column 1",{"$f":"+'Schedule II (EBS)'!D13+'Schedule IIA (EBS)'!D13","v":0},4.0000000000000001E-3,{"$f":"IF(D13<0,0,D13*E13)","v":0}]
[null,2,"Sch II EBS, Line (3), Column 1 & Sch IIA EBS, Line (3), Column 1",{"$f":"+'Schedule II (EBS)'!D14+'Schedule IIA (EBS)'!D14","v":0},8.0000000000000002E-3,0]
[null,3,"Sch II EBS, Line (4), Column 1 & Sch IIA EBS, Line (4), Column 1",{"$f":"+'Schedule II (EBS)'!D15+'Schedule IIA (EBS)'!D15","v":0},1.4999999999999999E-2,0]
[null,4,"Sch II EBS, Line (5), Column 1 & Sch IIA EBS, Line (5), Column 1",{"$f":"+'Schedule II (EBS)'!D16+'Schedule IIA (EBS)'!D16","v":0},0.03,0]
[null,5,"Sch II EBS, Line (6), Column 1 & Sch IIA EBS, Line (6), Column 1",{"$f":"+'Schedule II (EBS)'!D17+'Schedule IIA (EBS)'!D17","v":0},0.08,0]
[null,6,"Sch II EBS, Line (7), Column 1 & Sch IIA EBS, Line (7), Column 1",{"$f":"+'Schedule II (EBS)'!D18+'Schedule IIA (EBS)'!D18","v":0},0.15,0]
[null,7,"Sch II EBS, Line (8), Column 1 & Sch IIA EBS, Line (8), Column 1",{"$f":"+'Schedule II (EBS)'!D19+'Schedule IIA (EBS)'!D19","v":0},0.26300000000000001,0]
[null,8,"Sch II EBS, Line (9), Column 1 & Sch IIA EBS, Line (9), Column 1",{"$f":"+'Schedule II (EBS)'!D20+'Schedule IIA (EBS)'!D20","v":0},0.35,0]
[]
[null,"(a)  SUBTOTAL -  CORPORATE BONDS",null,{"$f":"SUM(D12:D20)","v":0},null,{"$f":"MAX(0,SUM(F12:F20))","v":0}]
[]
[null,"(b) Residential Mortgage-Backed Securities"]
[]
[null,"BSCR Rating"]
[null,1,"Sch II EBS, Line (2), Column 3 & Sch IIA EBS, Line (2), Column 3",{"$f":"+'Schedule II (EBS)'!H13+'Schedule IIA (EBS)'!H13","v":0},6.0000000000000001E-3,{"$f":"IF(D27<0,0,D27*E27)","v":0}]
[null,2,"Sch II EBS, Line (3), Column 3 & Sch IIA EBS, Line (3), Column 3",{"$f":"+'Schedule II (EBS)'!H14+'Schedule IIA (EBS)'!H14","v":0},1.2E-2,0]
[null,3,"Sch II EBS, Line (4), Column 3 & Sch IIA EBS, Line (4), Column 3",{"$f":"+'Schedule II (EBS)'!H15+'Schedule IIA (EBS)'!H15","v":0},0.02,0]
[null,4,"Sch II EBS, Line (5), Column 3 & Sch IIA EBS, Line (5), Column 3",{"$f":"+'Schedule II (EBS)'!H16+'Schedule IIA (EBS)'!H16","v":0},0.04,0]
[null,5,"Sch II EBS, Line (6), Column 3 & Sch IIA EBS, Line (6), Column 3",{"$f":"+'Schedule II (EBS)'!H17+'Schedule IIA (EBS)'!H17","v":0},0.11,0]
[null,6,"Sch II EBS, Line (7), Column 3 & Sch IIA EBS, Line (7), Column 3",{"$f":"+'Schedule II (EBS)'!H18+'Schedule IIA (EBS)'!H18","v":0},0.25,0]
[null,7,"Sch II EBS, Line (8), Column 3 & Sch IIA EBS, Line (8), Column 3",{"$f":"+'Schedule II (EBS)'!H19+'Schedule IIA (EBS)'!H19","v":0},0.35,0]
[null,8,"Sch II EBS, Line (9), Column 3 & Sch IIA EBS, Line (9), Column 3",{"$f":"+'Schedule II (EBS)'!H20+'Schedule IIA (EBS)'!H20","v":0},0.35,0]
[]
[null,"(b)  SUBTOTAL - RESIDENTIAL MORTGAGE-BACKED SECURITIES",null,{"$f":"SUM(D26:D34)","v":0},null,{"$f":"MAX(0,SUM(F26:F34))","v":0}]
[]
[null,"(c) Commercial Mortgage-Backed Securities / Asset Backed Securities"]
[]
[null,"BSCR Rating"]
[null,1,"Sch II EBS, Line (2), Column 5 & Sch IIA EBS, Line (2), Column 5",{"$f":"+'Schedule II (EBS)'!L13+'Schedule IIA (EBS)'!L13","v":0},5.0000000000000001E-3,{"$f":"IF(D41<0,0,D41*E41)","v":0}]
[null,2,"Sch II EBS, Line (3), Column 5 & Sch IIA EBS, Line (3), Column 5",{"$f":"+'Schedule II (EBS)'!L14+'Schedule IIA (EBS)'!L14","v":0},0.01,0]
[null,3,"Sch II EBS, Line (4), Column 5 & Sch IIA EBS, Line (4), Column 5",{"$f":"+'Schedule II (EBS)'!L15+'Schedule IIA (EBS)'!L15","v":0},1.7999999999999999E-2,0]
[null,4,"Sch II EBS, Line (5), Column 5 & Sch IIA EBS, Line (5), Column 5",{"$f":"+'Schedule II (EBS)'!L16+'Schedule IIA (EBS)'!L16","v":0},3.5000000000000003E-2,0]
[null,5,"Sch II EBS, Line (6), Column 5 & Sch IIA EBS, Line (6), Column 5",{"$f":"+'Schedule II (EBS)'!L17+'Schedule IIA (EBS)'!L17","v":0},0.1,0]
[null,6,"Sch II EBS, Line (7), Column 5 & Sch IIA EBS, Line (7), Column 5",{"$f":"+'Schedule II (EBS)'!L18+'Schedule IIA (EBS)'!L18","v":0},0.2,0]
[null,7,"Sch II EBS, Line (8), Column 5 & Sch IIA EBS, Line (8), Column 5",{"$f":"+'Schedule II (EBS)'!L19+'Schedule IIA (EBS)'!L19","v":0},0.3,0]
[null,8,"Sch II EBS, Line (9), Column 5 & Sch IIA EBS, Line (9), Column 5",{"$f":"+'Schedule II (EBS)'!L20+'Schedule IIA (EBS)'!L20","v":0},0.35,0]
[]
[null,"(c)  SUBTOTAL - COMMERCIAL MORTGAGE-BACKED SECURITIES / ASSET-BACKED SECURITIES"]
[null,null,null,{"$f":"SUM(D41:D48)","v":0},null,{"$f":"MAX(0,SUM(F41:F48))","v":0}]
[]
[null,"(d) Bond Mutual Funds"]
[]
[null,"BSCR Rating"]
[null,0,"Sch II EBS, Line (1), Column 7 & Sch IIA EBS, Line (1), Column 7",{"$f":"'Schedule II (EBS)'!P12+'Schedule IIA (EBS)'!P12","v":0},0,{"$f":"IF(D56<0,0,D56*E56)","v":0}]
[null,1,"Sch II EBS, Line (2), Column 7 & Sch IIA EBS, Line (2), Column 7",{"$f":"'Schedule II (EBS)'!P13+'Schedule IIA (EBS)'!P13","v":0},4.0000000000000001E-3,0]
[null,2,"Sch II EBS, Line (3), Column 7 & Sch IIA EBS, Line (3), Column 7",{"$f":"'Schedule II (EBS)'!P14+'Schedule IIA (EBS)'!P14","v":0},8.0000000000000002E-3,0]
[null,3,"Sch II EBS, Line (4), Column 7 & Sch IIA EBS, Line (4), Column 7",{"$f":"'Schedule II (EBS)'!P15+'Schedule IIA (EBS)'!P15","v":0},1.4999999999999999E-2,0]
[null,4,"Sch II EBS, Line (5), Column 7 & Sch IIA EBS, Line (5), Column 7",{"$f":"'Schedule II (EBS)'!P16+'Schedule IIA (EBS)'!P16","v":0},0.03,0]
[null,5,"Sch II EBS, Line (6), Column 7 & Sch IIA EBS, Line (6), Column 7",{"$f":"'Schedule II (EBS)'!P17+'Schedule IIA (EBS)'!P17","v":0},0.08,0]
[null,6,"Sch II EBS, Line (7), Column 7 & Sch IIA EBS, Line (7), Column 7",{"$f":"'Schedule II (EBS)'!P18+'Schedule IIA (EBS)'!P18","v":0},0.15,0]
[null,7,"Sch II EBS, Line (8), Column 7 & Sch IIA EBS, Line (8), Column 7",{"$f":"'Schedule II (EBS)'!P19+'Schedule IIA (EBS)'!P19","v":0},0.26300000000000001,0]
[null,8,"Sch II EBS, Line (9), Column 7 & Sch IIA EBS, Line (9), Column 7",{"$f":"'Schedule II (EBS)'!P20+'Schedule IIA (EBS)'!P20","v":0},0.35,0]
[]
[null,"(d)  SUBTOTAL - BOND MUTUAL FUNDS",null,{"$f":"SUM(D56:D64)","v":0},null,{"$f":"MAX(0,SUM(F56:F64))","v":0}]
[]
[null,"(e) Mortgage Loans"]
[]
[null,"Insured/Guaranteed Mortgages","Sch II EBS, Line (22), Column 1 & Sch IIA EBS, Line (22), Column 1",{"$f":"+'Schedule II (EBS)'!D57+'Schedule IIA (EBS)'!D57","v":0},3.0000000000000001E-3,{"$f":"IF(D70<0,0,D70*E70)","v":0}]
[null,"Other Commercial and Farm Mortgages","Sch II EBS, Line (23), Column 1 & Sch IIA EBS, Line (23), Column 1 ",{"$f":"+'Schedule II (EBS)'!D58+'Schedule IIA (EBS)'!D58","v":0},0.05,{"$f":"IF(D71<0,0,D71*E71)","v":0}]
[null,"Other Residential Mortgages","Sch II EBS, Line (24), Column 1 & Sch IIA EBS, Line (24), Column 1",{"$f":"+'Schedule II (EBS)'!D59+'Schedule IIA (EBS)'!D59","v":0},1.4999999999999999E-2,{"$f":"IF(D72<0,0,D72*E72)","v":0}]
[null,"Mortgages Not In Good Standing","Sch II EBS, Line (25), Column 1 & Sch IIA EBS, Line (25), Column 1",{"$f":"+'Schedule II (EBS)'!D60+'Schedule IIA (EBS)'!D60","v":0},0.25,{"$f":"IF(D73<0,0,D73*E73)","v":0}]
[]
[null,"(e)  SUBTOTAL - MORTGAGE LOANS",null,{"$f":"SUM(D70:D73)","v":0},null,{"$f":"MAX(0,SUM(F70:F73))","v":0}]
[]
[null,"(f) Other Fixed Income Investments"]
[]
[null,"Other Loans","Form 4EBS, Line (8)",{"$f":"+'Form 4EBS'!F54","v":0},0.05,{"$f":"IF(D79<0,0,D79*E79)","v":0}]
[]
[null,"Cash and Cash Equivalent Counterparty Balances By BSCR Rating"]
[]
[null,"BSCR Rating 0 ","Schedule XIX, Column B",{"$f":"+'Schedule XIX'!H83","v":0},0,{"$f":"IF($D$83<0,0,$D$83*$E$83)","v":0}]
[null,"BSCR Rating 1","Schedule XIX, Column B",{"$f":"+'Schedule XIX'!H84","v":0},1E-3,{"$f":"IF($D$84<0,0,$D$84*$E$84)","v":0}]
[null,"BSCR Rating 2","Schedule XIX, Column B",{"$f":"+'Schedule XIX'!H85","v":0},2E-3,{"$f":"IF($D$85<0,0,$D$85*$E$85)","v":0}]
[null,"BSCR Rating 3","Schedule XIX, Column B",{"$f":"+'Schedule XIX'!H86","v":0},3.0000000000000001E-3,{"$f":"IF($D$86<0,0,$D$86*$E$86)","v":0}]
[null,"BSCR Rating 4","Schedule XIX, Column B",{"$f":"+'Schedule XIX'!H87","v":0},5.0000000000000001E-3,{"$f":"IF($D$87<0,0,$D$87*$E$87)","v":0}]
[null,"BSCR Rating 5","Schedule XIX, Column B",{"$f":"+'Schedule XIX'!H88","v":0},1.4999999999999999E-2,{"$f":"IF($D$88<0,0,$D$88*$E$88)","v":0}]
[null,"BSCR Rating 6","Schedule XIX, Column B",{"$f":"+'Schedule XIX'!H89","v":0},0.04,{"$f":"IF($D$89<0,0,$D$89*$E$89)","v":0}]
[null,"BSCR Rating 7","Schedule XIX, Column B",{"$f":"+'Schedule XIX'!H90","v":0},0.06,{"$f":"IF($D$90<0,0,$D$90*$E$90)","v":0}]
[null,"BSCR Rating 8","Schedule XIX, Column B",{"$f":"+'Schedule XIX'!H91","v":0},0.09,{"$f":"IF($D$91<0,0,$D$91*$E$91)","v":0}]
[]
[null,"Total",null,{"$f":"SUM(D83:D92)","v":0},null,{"$f":"SUM(F83:F92)","v":0}]
[]
[null,"Diversification Adjustment up to 40%",null,null,{"$f":"+'Schedule XIX'!H100","v":0},{"$f":"SUM(F83:F91)*-(+'Schedule XIX'!H100)","v":0}]
[]
[null,"(f)  SUBTOTAL - OTHER FIXED INCOME SECURITIES",null,{"$f":"SUM(D79,D93)","v":0},null,{"$f":"MAX(0,SUM(F79,F83:F91,F95))","v":0}]
[]
[null,"(G)  TOTAL FIXED INCOME INVESTMENTS [ (a)+(b)+(c)+(d)+(e)+(f) ]",null,{"$f":"D22+D36+D75+D66+D51+D97","v":0},null,{"$f":"MAX(0,F22+F36+F75+F66+F51+F97)","v":0}]

{"sheet":"Fixed Income Investments (Rev.)","index":80,"n_rows":136,"n_cols":11,"rows_kept":136,"cut":false,"hidden":false,"merged":[[71,2,71,5],[72,2,72,5],[27,2,27,5],[28,2,28,5],[29,2,29,5],[30,2,30,5],[31,2,31,5],[59,2,59,5],[60,2,60,5],[61,2,61,5],[62,2,62,5],[63,2,63,5],[69,2,69,5],[70,2,70,5],[47,2,47,5],[55,2,55,5],[56,2,56,5],[57,2,57,5],[58,2,58,5],[42,2,42,5],[43,2,43,5],[44,2,44,5],[45,2,45,5],[46,2,46,5],[32,2,32,5],[33,2,33,5],[40,2,40,5],[41,2,41,5],[0,8,0,9],[11,2,11,5],[12,2,12,5],[13,2,13,5],[14,2,14,5],[15,2,15,5],[16,2,16,5],[17,2,17,5],[18,2,18,5],[19,2,19,5],[26,2,26,5],[140,0,140,1],[100,2,100,5],[101,4,101,5],[115,2,115,5],[116,2,116,3],[116,4,116,5],[101,2,101,3]]}
["FIXED INCOME INVESTMENTS (REVISED)",null,null,null,null,null,null,null,{"$f":"HYPERLINK(\"#'Index'!A1\",\"Return to Index\")","v":"Return to Index"}]
[{"$f":"'Insurer Information'!C7","v":"Enter Company Name"}]
[{"$f":"\"Fixed Income Investment Risk\" & \" ($\" & IF(CONFIGURATION!$B$12>1,\"'\"&MID(CONFIGURATION!$B$12,2,LEN(CONFIGURATION!$B$12)),\"\") & \")\"","v":"Fixed Income Investment Risk ($'000)"},null,{"$f":" TEXT('Insurer Information'!C3,\"mmmm dd, yyyy\")","v":"December 31, 2019"},null,null,null,"(1)","(2)","(3)"]
[]
[]
[null,"TYPE OF ",null,null,null,null,"ASSET","CAPITAL","REQUIRED",null,{"$f":"YEAR('Insurer Information'!C3)","v":2019}]
[null,"FIXED INCOME INVESTMENTS","STATEMENT SOURCE",null,null,null,"VALUE","FACTOR","CAPITAL"]
[]
[null,"(a)  Corporate & Sovereign Bonds",null,null,null,null,null,null,"(1) x (2)"]
[]
[null,"BSCR Rating"]
[null,0,"Sch IIB, Column (1), Line 1, Sch IIC, Column (1), Line 1, (Sch IID, Column (1), Line 1 - Column (2), Line 1), Sch IIE, Column (1), Line 1, Sch IIF, Column (1), Line 1",null,null,null,{"$f":"'Schedule IIB (EBS)'!D13+'Schedule IIC (EBS)'!D13+(MAX(0,'Schedule IID (EBS)'!D13-'Schedule IID (EBS)'!F13))+'Schedule IIE (EBS)'!D13+'Schedule IIF (EBS)'!D13","v":0},0,{"$f":"IF(G12<0,0,G12*H12)","v":0}]
[null,1,"Sch IIB, Column (1), Line 2, Sch IIC, Column (1), Line 2, (Sch IID, Column (1), Line 2 - Column (2), Line 2), Sch IIE, Column (1), Line 2, Sch IIF, Column (1), Line 2",null,null,null,{"$f":"'Schedule IIB (EBS)'!D14+'Schedule IIC (EBS)'!D14+(MAX(0,'Schedule IID (EBS)'!D14-'Schedule IID (EBS)'!F14))+'Schedule IIE (EBS)'!D14+'Schedule IIF (EBS)'!D14","v":0},4.0000000000000001E-3,{"$f":"IF(G13<0,0,G13*H13)","v":0}]
[null,2,"Sch IIB, Column (1), Line 3, Sch IIC, Column (1), Line 3, (Sch IID, Column (1), Line 3 - Column (2), Line 3), Sch IIE, Column (1), Line 3, Sch IIF, Column (1), Line 3",null,null,null,{"$f":"'Schedule IIB (EBS)'!D15+'Schedule IIC (EBS)'!D15+(MAX(0,'Schedule IID (EBS)'!D15-'Schedule IID (EBS)'!F15))+'Schedule IIE (EBS)'!D15+'Schedule IIF (EBS)'!D15","v":0},8.0000000000000002E-3,0]
[null,3,"Sch IIB, Column (1), Line 4, Sch IIC, Column (1), Line 4, (Sch IID, Column (1), Line 4 - Column (2), Line 4), Sch IIE, Column (1), Line 4, Sch IIF, Column (1), Line 4",null,null,null,{"$f":"'Schedule IIB (EBS)'!D16+'Schedule IIC (EBS)'!D16+(MAX(0,'Schedule IID (EBS)'!D16-'Schedule IID (EBS)'!F16))+'Schedule IIE (EBS)'!D16+'Schedule IIF (EBS)'!D16","v":0},1.4999999999999999E-2,0]
[null,4,"Sch IIB, Column (1), Line 5, Sch IIC, Column (1), Line 5, (Sch IID, Column (1), Line 5 - Column (2), Line 5), Sch IIE, Column (1), Line 5, Sch IIF, Column (1), Line 5",null,null,null,{"$f":"'Schedule IIB (EBS)'!D17+'Schedule IIC (EBS)'!D17+(MAX(0,'Schedule IID (EBS)'!D17-'Schedule IID (EBS)'!F17))+'Schedule IIE (EBS)'!D17+'Schedule IIF (EBS)'!D17","v":0},0.03,0]
[null,5,"Sch IIB, Column (1), Line 6, Sch IIC, Column (1), Line 6, (Sch IID, Column (1), Line 6 - Column (2), Line 6), Sch IIE, Column (1), Line 6, Sch IIF, Column (1), Line 6",null,null,null,{"$f":"'Schedule IIB (EBS)'!D18+'Schedule IIC (EBS)'!D18+(MAX(0,'Schedule IID (EBS)'!D18-'Schedule IID (EBS)'!F18))+'Schedule IIE (EBS)'!D18+'Schedule IIF (EBS)'!D18","v":0},0.08,0]
[null,6,"Sch IIB, Column (1), Line 7, Sch IIC, Column (1), Line 7, (Sch IID, Column (1), Line 7 - Column (2), Line 7), Sch IIE, Column (1), Line 7, Sch IIF, Column (1), Line 7",null,null,null,{"$f":"'Schedule IIB (EBS)'!D19+'Schedule IIC (EBS)'!D19+(MAX(0,'Schedule IID (EBS)'!D19-'Schedule IID (EBS)'!F19))+'Schedule IIE (EBS)'!D19+'Schedule IIF (EBS)'!D19","v":0},0.15,0]
[null,7,"Sch IIB, Column (1), Line 8, Sch IIC, Column (1), Line 8, (Sch IID, Column (1), Line 8 - Column (2), Line 8), Sch IIE, Column (1), Line 8, Sch IIF, Column (1), Line 8",null,null,null,{"$f":"'Schedule IIB (EBS)'!D20+'Schedule IIC (EBS)'!D20+(MAX(0,'Schedule IID (EBS)'!D20-'Schedule IID (EBS)'!F20))+'Schedule IIE (EBS)'!D20+'Schedule IIF (EBS)'!D20","v":0},0.26300000000000001,0]
[null,8,"Sch IIB, Column (1), Line 9, Sch IIC, Column (1), Line 9, (Sch IID, Column (1), Line 9 - Column (2), Line 9), Sch IIE, Column (1), Line 9, Sch IIF, Column (1), Line 9",null,null,null,{"$f":"'Schedule IIB (EBS)'!D21+'Schedule IIC (EBS)'!D21+(MAX(0,'Schedule IID (EBS)'!D21-'Schedule IID (EBS)'!F21))+'Schedule IIE (EBS)'!D21+'Schedule IIF (EBS)'!D21","v":0},0.35,0]
[]
[null,"(a)  SUBTOTAL -  CORPORATE BONDS",null,null,null,null,{"$f":"SUM(G11:G20)","v":0},null,{"$f":"MAX(0,SUM(I12:I20))","v":0}]
[]
[null,"(b) Residential Mortgage-Backed Securities"]
[]
[null,"BSCR Rating"]
[null,1,"Sch IIB, Column (3), Line 2, Sch IIC, Column (3), Line 2, (Sch IID, Column (3), Line 2 - Column (4), Line 2), Sch IIE, Column (3), Line 2, Sch IIF, Column (3), Line 2",null,null,null,{"$f":"'Schedule IIB (EBS)'!H14+'Schedule IIC (EBS)'!H14+(MAX(0,'Schedule IID (EBS)'!H14-'Schedule IID (EBS)'!J14))+'Schedule IIE (EBS)'!H14+'Schedule IIF (EBS)'!H14","v":0},6.0000000000000001E-3,{"$f":"IF(G27<0,0,G27*H27)","v":0}]
[null,2,"Sch IIB, Column (3), Line 3, Sch IIC, Column (3), Line 3, (Sch IID, Column (3), Line 3 - Column (4), Line 3), Sch IIE, Column (3), Line 3, Sch IIF, Column (3), Line 3",null,null,null,{"$f":"'Schedule IIB (EBS)'!H15+'Schedule IIC (EBS)'!H15+(MAX(0,'Schedule IID (EBS)'!H15-'Schedule IID (EBS)'!J15))+'Schedule IIE (EBS)'!H15+'Schedule IIF (EBS)'!H15","v":0},1.2E-2,0]
[null,3,"Sch IIB, Column (3), Line 4, Sch IIC, Column (3), Line 4, (Sch IID, Column (3), Line 4 - Column (4), Line 4), Sch IIE, Column (3), Line 4, Sch IIF, Column (3), Line 4",null,null,null,{"$f":"'Schedule IIB (EBS)'!H16+'Schedule IIC (EBS)'!H16+(MAX(0,'Schedule IID (EBS)'!H16-'Schedule IID (EBS)'!J16))+'Schedule IIE (EBS)'!H16+'Schedule IIF (EBS)'!H16","v":0},0.02,0]
[null,4,"Sch IIB, Column (3), Line 5, Sch IIC, Column (3), Line 5, (Sch IID, Column (3), Line 5 - Column (4), Line 5), Sch IIE, Column (3), Line 5, Sch IIF, Column (3), Line 5",null,null,null,{"$f":"'Schedule IIB (EBS)'!H17+'Schedule IIC (EBS)'!H17+(MAX(0,'Schedule IID (EBS)'!H17-'Schedule IID (EBS)'!J17))+'Schedule IIE (EBS)'!H17+'Schedule IIF (EBS)'!H17","v":0},0.04,0]
[null,5,"Sch IIB, Column (3), Line 6, Sch IIC, Column (3), Line 6, (Sch IID, Column (3), Line 6 - Column (4), Line 6), Sch IIE, Column (3), Line 6, Sch IIF, Column (3), Line 6",null,null,null,{"$f":"'Schedule IIB (EBS)'!H18+'Schedule IIC (EBS)'!H18+(MAX(0,'Schedule IID (EBS)'!H18-'Schedule IID (EBS)'!J18))+'Schedule IIE (EBS)'!H18+'Schedule IIF (EBS)'!H18","v":0},0.11,0]
[null,6,"Sch IIB, Column (3), Line 7, Sch IIC, Column (3), Line 7, (Sch IID, Column (3), Line 7 - Column (4), Line 7), Sch IIE, Column (3), Line 7, Sch IIF, Column (3), Line 7",null,null,null,{"$f":"'Schedule IIB (EBS)'!H19+'Schedule IIC (EBS)'!H19+(MAX(0,'Schedule IID (EBS)'!H19-'Schedule IID (EBS)'!J19))+'Schedule IIE (EBS)'!H19+'Schedule IIF (EBS)'!H19","v":0},0.25,0]
[null,7,"Sch IIB, Column (3), Line 8, Sch IIC, Column (3), Line 8, (Sch IID, Column (3), Line 8 - Column (4), Line 8), Sch IIE, Column (3), Line 8, Sch IIF, Column (3), Line 8",null,null,null,{"$f":"'Schedule IIB (EBS)'!H20+'Schedule IIC (EBS)'!H20+(MAX(0,'Schedule IID (EBS)'!H20-'Schedule IID (EBS)'!J20))+'Schedule IIE (EBS)'!H20+'Schedule IIF (EBS)'!H20","v":0},0.35,0]
[null,8,"Sch IIB, Column (3), Line 9, Sch IIC, Column (3), Line 9, (Sch IID, Column (3), Line 9 - Column (4), Line 9), Sch IIE, Column (3), Line 9, Sch IIF, Column (3), Line 9",null,null,null,{"$f":"'Schedule IIB (EBS)'!H21+'Schedule IIC (EBS)'!H21+(MAX(0,'Schedule IID (EBS)'!H21-'Schedule IID (EBS)'!J21))+'Schedule IIE (EBS)'!H21+'Schedule IIF (EBS)'!H21","v":0},0.35,0]
[]
[null,"(b)  SUBTOTAL - RESIDENTIAL MORTGAGE-BACKED SECURITIES",null,null,null,null,{"$f":"SUM(G27:G34)","v":0},null,{"$f":"MAX(0,SUM(I26:I34))","v":0}]
[]
[null,"(c) Commercial Mortgage-Backed Securities / Asset Backed Securities"]
[]
[null,"BSCR Rating"]
[null,1,"Sch IIB, Column (5), Line 2, Sch IIC, Column (5), Line 2, (Sch IID, Column (5), Line 2 - Column (4), Line 2), Sch IIE, Column (5), Line 2, Sch IIF, Column (5), Line 2",null,null,null,{"$f":"'Schedule IIB (EBS)'!L14+'Schedule IIC (EBS)'!L14+(MAX(0,'Schedule IID (EBS)'!L14-'Schedule IID (EBS)'!N14))+'Schedule IIE (EBS)'!L14+'Schedule IIF (EBS)'!L14","v":0},5.0000000000000001E-3,{"$f":"IF(G41<0,0,G41*H41)","v":0}]
[null,2,"Sch IIB, Column (5), Line 3, Sch IIC, Column (5), Line 3, (Sch IID, Column (5), Line 3 - Column (4), Line 3), Sch IIE, Column (5), Line 3, Sch IIF, Column (5), Line 3",null,null,null,{"$f":"'Schedule IIB (EBS)'!L15+'Schedule IIC (EBS)'!L15+(MAX(0,'Schedule IID (EBS)'!L15-'Schedule IID (EBS)'!N15))+'Schedule IIE (EBS)'!L15+'Schedule IIF (EBS)'!L15","v":0},0.01,0]
[null,3,"Sch IIB, Column (5), Line 4, Sch IIC, Column (5), Line 4, (Sch IID, Column (5), Line 4 - Column (4), Line 4), Sch IIE, Column (5), Line 4, Sch IIF, Column (5), Line 4",null,null,null,{"$f":"'Schedule IIB (EBS)'!L16+'Schedule IIC (EBS)'!L16+(MAX(0,'Schedule IID (EBS)'!L16-'Schedule IID (EBS)'!N16))+'Schedule IIE (EBS)'!L16+'Schedule IIF (EBS)'!L16","v":0},1.7999999999999999E-2,0]
[null,4,"Sch IIB, Column (5), Line 5, Sch IIC, Column (5), Line 5, (Sch IID, Column (5), Line 5 - Column (4), Line 5), Sch IIE, Column (5), Line 5, Sch IIF, Column (5), Line 5",null,null,null,{"$f":"'Schedule IIB (EBS)'!L17+'Schedule IIC (EBS)'!L17+(MAX(0,'Schedule IID (EBS)'!L17-'Schedule IID (EBS)'!N17))+'Schedule IIE (EBS)'!L17+'Schedule IIF (EBS)'!L17","v":0},3.5000000000000003E-2,0]
[null,5,"Sch IIB, Column (5), Line 6, Sch IIC, Column (5), Line 6, (Sch IID, Column (5), Line 6 - Column (4), Line 6), Sch IIE, Column (5), Line 6, Sch IIF, Column (5), Line 6",null,null,null,{"$f":"'Schedule IIB (EBS)'!L18+'Schedule IIC (EBS)'!L18+(MAX(0,'Schedule IID (EBS)'!L18-'Schedule IID (EBS)'!N18))+'Schedule IIE (EBS)'!L18+'Schedule IIF (EBS)'!L18","v":0},0.1,0]
[null,6,"Sch IIB, Column (5), Line 7, Sch IIC, Column (5), Line 7, (Sch IID, Column (5), Line 7 - Column (4), Line 7), Sch IIE, Column (5), Line 7, Sch IIF, Column (5), Line 7",null,null,null,{"$f":"'Schedule IIB (EBS)'!L19+'Schedule IIC (EBS)'!L19+(MAX(0,'Schedule IID (EBS)'!L19-'Schedule IID (EBS)'!N19))+'Schedule IIE (EBS)'!L19+'Schedule IIF (EBS)'!L19","v":0},0.2,0]
[null,7,"Sch IIB, Column (5), Line 8, Sch IIC, Column (5), Line 8, (Sch IID, Column (5), Line 8 - Column (4), Line 8), Sch IIE, Column (5), Line 8, Sch IIF, Column (5), Line 8",null,null,null,{"$f":"'Schedule IIB (EBS)'!L20+'Schedule IIC (EBS)'!L20+(MAX(0,'Schedule IID (EBS)'!L20-'Schedule IID (EBS)'!N20))+'Schedule IIE (EBS)'!L20+'Schedule IIF (EBS)'!L20","v":0},0.3,0]
[null,8,"Sch IIB, Column (5), Line 9, Sch IIC, Column (5), Line 9, (Sch IID, Column (5), Line 9 - Column (4), Line 9), Sch IIE, Column (5), Line 9, Sch IIF, Column (5), Line 9",null,null,null,{"$f":"'Schedule IIB (EBS)'!L21+'Schedule IIC (EBS)'!L21+(MAX(0,'Schedule IID (EBS)'!L21-'Schedule IID (EBS)'!N21))+'Schedule IIE (EBS)'!L21+'Schedule IIF (EBS)'!L21","v":0},0.35,0]
[]
[]
[null,"(c)  SUBTOTAL - COMMERCIAL MORTGAGE-BACKED SECURITIES / ASSET-BACKED SECURITIES",null,null,null,null,{"$f":"SUM(G41:G48)","v":0},null,{"$f":"MAX(0,SUM(I41:I48))","v":0}]
[]
[null,"(d) Bond Mutual Funds"]
[]
[null,"BSCR Rating"]
[null,0,"Sch IIB, Column (7), Line 1, Sch IIC, Column (7), Line 1, (Sch IID, Column (7), Line 1 - Column (8), Line 1), Sch IIE, Column (7), Line 1, Sch IIF, Column (7), Line 1",null,null,null,{"$f":"'Schedule IIB (EBS)'!P13+'Schedule IIC (EBS)'!P13+(MAX(0,'Schedule IID (EBS)'!P13-'Schedule IID (EBS)'!R13))+'Schedule IIE (EBS)'!P13+'Schedule IIF (EBS)'!P13","v":0},0,{"$f":"IF(G56<0,0,G56*H56)","v":0}]
[null,1,"Sch IIB, Column (7), Line 2, Sch IIC, Column (7), Line 2, (Sch IID, Column (7), Line 2 - Column (8), Line 2), Sch IIE, Column (7), Line 2, Sch IIF, Column (7), Line 2",null,null,null,{"$f":"'Schedule IIB (EBS)'!P14+'Schedule IIC (EBS)'!P14+(MAX(0,'Schedule IID (EBS)'!P14-'Schedule IID (EBS)'!R14))+'Schedule IIE (EBS)'!P14+'Schedule IIF (EBS)'!P14","v":0},4.0000000000000001E-3,0]
[null,2,"Sch IIB, Column (7), Line 3, Sch IIC, Column (7), Line 3, (Sch IID, Column (7), Line 3 - Column (8), Line 3), Sch IIE, Column (7), Line 3, Sch IIF, Column (7), Line 3",null,null,null,{"$f":"'Schedule IIB (EBS)'!P15+'Schedule IIC (EBS)'!P15+(MAX(0,'Schedule IID (EBS)'!P15-'Schedule IID (EBS)'!R15))+'Schedule IIE (EBS)'!P15+'Schedule IIF (EBS)'!P15","v":0},8.0000000000000002E-3,0]
[null,3,"Sch IIB, Column (7), Line 4, Sch IIC, Column (7), Line 4, (Sch IID, Column (7), Line 4 - Column (8), Line 4), Sch IIE, Column (7), Line 4, Sch IIF, Column (7), Line 4",null,null,null,{"$f":"'Schedule IIB (EBS)'!P16+'Schedule IIC (EBS)'!P16+(MAX(0,'Schedule IID (EBS)'!P16-'Schedule IID (EBS)'!R16))+'Schedule IIE (EBS)'!P16+'Schedule IIF (EBS)'!P16","v":0},1.4999999999999999E-2,0]
[null,4,"Sch IIB, Column (7), Line 5, Sch IIC, Column (7), Line 5, (Sch IID, Column (7), Line 5 - Column (8), Line 5), Sch IIE, Column (7), Line 5, Sch IIF, Column (7), Line 5",null,null,null,{"$f":"'Schedule IIB (EBS)'!P17+'Schedule IIC (EBS)'!P17+(MAX(0,'Schedule IID (EBS)'!P17-'Schedule IID (EBS)'!R17))+'Schedule IIE (EBS)'!P17+'Schedule IIF (EBS)'!P17","v":0},0.03,0]
[null,5,"Sch IIB, Column (7), Line 6, Sch IIC, Column (7), Line 6, (Sch IID, Column (7), Line 6 - Column (8), Line 6), Sch IIE, Column (7), Line 6, Sch IIF, Column (7), Line 6",null,null,null,{"$f":"'Schedule IIB (EBS)'!P18+'Schedule IIC (EBS)'!P18+(MAX(0,'Schedule IID (EBS)'!P18-'Schedule IID (EBS)'!R18))+'Schedule IIE (EBS)'!P18+'Schedule IIF (EBS)'!P18","v":0},0.08,0]
[null,6,"Sch IIB, Column (7), Line 7, Sch IIC, Column (7), Line 7, (Sch IID, Column (7), Line 7 - Column (8), Line 7), Sch IIE, Column (7), Line 7, Sch IIF, Column (7), Line 7",null,null,null,{"$f":"'Schedule IIB (EBS)'!P19+'Schedule IIC (EBS)'!P19+(MAX(0,'Schedule IID (EBS)'!P19-'Schedule IID (EBS)'!R19))+'Schedule IIE (EBS)'!P19+'Schedule IIF (EBS)'!P19","v":0},0.15,0]
[null,7,"Sch IIB, Column (7), Line 8, Sch IIC, Column (7), Line 8, (Sch IID, Column (7), Line 8 - Column (8), Line 8), Sch IIE, Column (7), Line 8, Sch IIF, Column (7), Line 8",null,null,null,{"$f":"'Schedule IIB (EBS)'!P20+'Schedule IIC (EBS)'!P20+(MAX(0,'Schedule IID (EBS)'!P20-'Schedule IID (EBS)'!R20))+'Schedule IIE (EBS)'!P20+'Schedule IIF (EBS)'!P20","v":0},0.26300000000000001,0]
[null,8,"Sch IIB, Column (7), Line 9, Sch IIC, Column (7), Line 9, (Sch IID, Column (7), Line 9 - Column (8), Line 9), Sch IIE, Column (7), Line 9, Sch IIF, Column (7), Line 9",null,null,null,{"$f":"'Schedule IIB (EBS)'!P21+'Schedule IIC (EBS)'!P21+(MAX(0,'Schedule IID (EBS)'!P21-'Schedule IID (EBS)'!R21))+'Schedule IIE (EBS)'!P21+'Schedule IIF (EBS)'!P21","v":0},0.35,0]
[]
[null,"(d)  SUBTOTAL - BOND MUTUAL FUNDS",null,null,null,null,{"$f":"SUM(G56:G64)","v":0},null,{"$f":"MAX(0,SUM(I56:I64))","v":0}]
[]
[null,"(e) Mortgage Loans"]
[]
[null,"Insured/Guaranteed Mortgages","Sch IIB, Column (9), Line 10, Sch IIC, Column (9), Line 10, (Sch IID, Column (9), Line 10 - Column (10), Line 10), Sch IIE, Column (9), Line 10, Sch IIF, Column (9), Line 10",null,null,null,{"$f":"'Schedule IIB (EBS)'!T22+'Schedule IIC (EBS)'!T22+(MAX(0,'Schedule IID (EBS)'!T22-'Schedule IID (EBS)'!V22))+'Schedule IIE (EBS)'!T22+'Schedule IIF (EBS)'!T22","v":0},3.0000000000000001E-3,{"$f":"IF(G70<0,0,G70*H70)","v":0}]
[null,"Other Commercial and Farm Mortgages","Sch IIB, Column (9), Line 11, Sch IIC, Column (9), Line 11, (Sch IID, Column (9), Line 11 - Column (10), Line 11), Sch IIE, Column (9), Line 11, Sch IIF, Column (9), Line 11",null,null,null,{"$f":"'Schedule IIB (EBS)'!T23+'Schedule IIC (EBS)'!T23+(MAX(0,'Schedule IID (EBS)'!T23-'Schedule IID (EBS)'!V23))+'Schedule IIE (EBS)'!T23+'Schedule IIF (EBS)'!T23","v":0},0.05,{"$f":"IF(G71<0,0,G71*H71)","v":0}]
[null,"Other Residential Mortgages","Sch IIB, Column (9), Line 12, Sch IIC, Column (9), Line 12, (Sch IID, Column (9), Line 12 - Column (10), Line 12), Sch IIE, Column (9), Line 12, Sch IIF, Column (9), Line 12",null,null,null,{"$f":"'Schedule IIB (EBS)'!T24+'Schedule IIC (EBS)'!T24+(MAX(0,'Schedule IID (EBS)'!T24-'Schedule IID (EBS)'!V24))+'Schedule IIE (EBS)'!T24+'Schedule IIF (EBS)'!T24","v":0},1.4999999999999999E-2,{"$f":"IF(G72<0,0,G72*H72)","v":0}]
[null,"Mortgages Not In Good Standing","Sch IIB, Column (9), Line 13, Sch IIC, Column (9), Line 13, (Sch IID, Column (9), Line 13 - Column (10), Line 13), Sch IIE, Column (9), Line 13, Sch IIF, Column (9), Line 13",null,null,null,{"$f":"'Schedule IIB (EBS)'!T25+'Schedule IIC (EBS)'!T25+(MAX(0,'Schedule IID (EBS)'!T25-'Schedule IID (EBS)'!V25))+'Schedule IIE (EBS)'!T25+'Schedule IIF (EBS)'!T25","v":0},0.25,{"$f":"IF(G73<0,0,G73*H73)","v":0}]
[]
[null,"(e)  SUBTOTAL - MORTGAGE LOANS",null,null,null,null,{"$f":"SUM(G70:G73)","v":0},null,{"$f":"MAX(0,SUM(I70:I73))","v":0}]
[]
[null,"(f) Other Fixed Income Investments"]
[]
[null,"Other Loans","Form 4EBS, Line (8)",null,null,null,{"$f":"+'Form 4EBS'!F54","v":0},0.05,{"$f":"IF(G79<0,0,G79*H79)","v":0}]
[]
[null,"Cash and Cash Equivalent Counterparty Balances By BSCR Rating"]
[]
[null,"BSCR Rating 0 ","Schedule XIXA, Column B",null,null,null,{"$f":"'Schedule XIXA'!F81","v":0},0,{"$f":"IF($G$83<0,0,$G$83*$H$83)","v":0}]
[null,"BSCR Rating 1","Schedule XIXA, Column B",null,null,null,{"$f":"'Schedule XIXA'!F82","v":0},1E-3,{"$f":"IF($G$84<0,0,$G$84*$H$84)","v":0}]
[null,"BSCR Rating 2","Schedule XIXA, Column B",null,null,null,{"$f":"'Schedule XIXA'!F83","v":0},2E-3,{"$f":"IF($G$85<0,0,$G$85*$H$85)","v":0}]
[null,"BSCR Rating 3","Schedule XIXA, Column B",null,null,null,{"$f":"'Schedule XIXA'!F84","v":0},3.0000000000000001E-3,{"$f":"IF($G$86<0,0,$G$86*$H$86)","v":0}]
[null,"BSCR Rating 4","Schedule XIXA, Column B",null,null,null,{"$f":"'Schedule XIXA'!F85","v":0},5.0000000000000001E-3,{"$f":"IF($G$87<0,0,$G$87*$H$87)","v":0}]
[null,"BSCR Rating 5","Schedule XIXA, Column B",null,null,null,{"$f":"'Schedule XIXA'!F86","v":0},1.4999999999999999E-2,{"$f":"IF($G$88<0,0,$G$88*$H$88)","v":0}]
[null,"BSCR Rating 6","Schedule XIXA, Column B",null,null,null,{"$f":"'Schedule XIXA'!F87","v":0},0.04,{"$f":"IF($G$89<0,0,$G$89*$H$89)","v":0}]
[null,"BSCR Rating 7","Schedule XIXA, Column B",null,null,null,{"$f":"'Schedule XIXA'!F88","v":0},0.06,{"$f":"IF($G$90<0,0,$G$90*$H$90)","v":0}]
[null,"BSCR Rating 8","Schedule XIXA, Column B",null,null,null,{"$f":"'Schedule XIXA'!F89","v":0},0.09,{"$f":"IF($G$91<0,0,$G$91*$H$91)","v":0}]
[]
[null,"Total",null,null,null,null,{"$f":"SUM(G83:G92)","v":0},null,{"$f":"SUM(I83:I92)","v":0}]
[]
[null,"Diversification Adjustment up to 40%",null,null,null,null,null,{"$f":"'Schedule XIXA'!$F$98","v":0},{"$f":"SUM(I83:I91)*-('Schedule XIXA'!$F$98)","v":0}]
[]
[null,"(f)  SUBTOTAL - OTHER FIXED INCOME SECURITIES",null,null,null,null,{"$f":"SUM(G79,G93)","v":0},null,{"$f":"MAX(0,SUM(I79,I83:I91,I95))","v":0}]
[]
[null,"(g) Spread Risk for Credit Derivatives"]
[]
[null,null,"SPREAD UP"]
[null,null,"Long Exposures",null,"Short Exposures"]
[null,null,"Before Shock","After Shock","Before Shock","After Shock"]
[null,"Spread Up",null,null,null,null,null,"Shock (bps)"]
[null,"BSCR Rating 0 ",{"$f":"'Schedule IIB (EBS)'!D68+'Schedule IIC (EBS)'!D68+'Schedule IID (EBS)'!D68+'Schedule IIE (EBS)'!D68+'Schedule IIF (EBS)'!D68","v":0},{"$f":"'Schedule IIB (EBS)'!F68+'Schedule IIC (EBS)'!F68+'Schedule IID (EBS)'!F68+'Schedule IIE (EBS)'!F68+'Schedule IIF (EBS)'!F68","v":0},{"$f":"'Schedule IIB (EBS)'!H68+'Schedule IIC (EBS)'!H68+'Schedule IID (EBS)'!H68+'Schedule IIE (EBS)'!H68+'Schedule IIF (EBS)'!H68","v":0},{"$f":"'Schedule IIB (EBS)'!J68+'Schedule IIC (EBS)'!J68+'Schedule IID (EBS)'!J68+'Schedule IIE (EBS)'!J68+'Schedule IIF (EBS)'!J68","v":0},null,0,{"$f":"(C105-D105)+MAX(0,E105-F105)","v":0}]
[null,"BSCR Rating 1",{"$f":"'Schedule IIB (EBS)'!D69+'Schedule IIC (EBS)'!D69+'Schedule IID (EBS)'!D69+'Schedule IIE (EBS)'!D69+'Schedule IIF (EBS)'!D69","v":0},{"$f":"'Schedule IIB (EBS)'!F69+'Schedule IIC (EBS)'!F69+'Schedule IID (EBS)'!F69+'Schedule IIE (EBS)'!F69+'Schedule IIF (EBS)'!F69","v":0},{"$f":"'Schedule IIB (EBS)'!H69+'Schedule IIC (EBS)'!H69+'Schedule IID (EBS)'!H69+'Schedule IIE (EBS)'!H69+'Schedule IIF (EBS)'!H69","v":0},{"$f":"'Schedule IIB (EBS)'!J69+'Schedule IIC (EBS)'!J69+'Schedule IID (EBS)'!J69+'Schedule IIE (EBS)'!J69+'Schedule IIF (EBS)'!J69","v":0},null,130,0]
[null,"BSCR Rating 2",{"$f":"'Schedule IIB (EBS)'!D70+'Schedule IIC (EBS)'!D70+'Schedule IID (EBS)'!D70+'Schedule IIE (EBS)'!D70+'Schedule IIF (EBS)'!D70","v":0},{"$f":"'Schedule IIB (EBS)'!F70+'Schedule IIC (EBS)'!F70+'Schedule IID (EBS)'!F70+'Schedule IIE (EBS)'!F70+'Schedule IIF (EBS)'!F70","v":0},{"$f":"'Schedule IIB (EBS)'!H70+'Schedule IIC (EBS)'!H70+'Schedule IID (EBS)'!H70+'Schedule IIE (EBS)'!H70+'Schedule IIF (EBS)'!H70","v":0},{"$f":"'Schedule IIB (EBS)'!J70+'Schedule IIC (EBS)'!J70+'Schedule IID (EBS)'!J70+'Schedule IIE (EBS)'!J70+'Schedule IIF (EBS)'!J70","v":0},null,150,0]
[null,"BSCR Rating 3",{"$f":"'Schedule IIB (EBS)'!D71+'Schedule IIC (EBS)'!D71+'Schedule IID (EBS)'!D71+'Schedule IIE (EBS)'!D71+'Schedule IIF (EBS)'!D71","v":0},{"$f":"'Schedule IIB (EBS)'!F71+'Schedule IIC (EBS)'!F71+'Schedule IID (EBS)'!F71+'Schedule IIE (EBS)'!F71+'Schedule IIF (EBS)'!F71","v":0},{"$f":"'Schedule IIB (EBS)'!H71+'Schedule IIC (EBS)'!H71+'Schedule IID (EBS)'!H71+'Schedule IIE (EBS)'!H71+'Schedule IIF (EBS)'!H71","v":0},{"$f":"'Schedule IIB (EBS)'!J71+'Schedule IIC (EBS)'!J71+'Schedule IID (EBS)'!J71+'Schedule IIE (EBS)'!J71+'Schedule IIF (EBS)'!J71","v":0},null,260,0]
[null,"BSCR Rating 4",{"$f":"'Schedule IIB (EBS)'!D72+'Schedule IIC (EBS)'!D72+'Schedule IID (EBS)'!D72+'Schedule IIE (EBS)'!D72+'Schedule IIF (EBS)'!D72","v":0},{"$f":"'Schedule IIB (EBS)'!F72+'Schedule IIC (EBS)'!F72+'Schedule IID (EBS)'!F72+'Schedule IIE (EBS)'!F72+'Schedule IIF (EBS)'!F72","v":0},{"$f":"'Schedule IIB (EBS)'!H72+'Schedule IIC (EBS)'!H72+'Schedule IID (EBS)'!H72+'Schedule IIE (EBS)'!H72+'Schedule IIF (EBS)'!H72","v":0},{"$f":"'Schedule IIB (EBS)'!J72+'Schedule IIC (EBS)'!J72+'Schedule IID (EBS)'!J72+'Schedule IIE (EBS)'!J72+'Schedule IIF (EBS)'!J72","v":0},null,450,0]
[null,"BSCR Rating 5",{"$f":"'Schedule IIB (EBS)'!D73+'Schedule IIC (EBS)'!D73+'Schedule IID (EBS)'!D73+'Schedule IIE (EBS)'!D73+'Schedule IIF (EBS)'!D73","v":0},{"$f":"'Schedule IIB (EBS)'!F73+'Schedule IIC (EBS)'!F73+'Schedule IID (EBS)'!F73+'Schedule IIE (EBS)'!F73+'Schedule IIF (EBS)'!F73","v":0},{"$f":"'Schedule IIB (EBS)'!H73+'Schedule IIC (EBS)'!H73+'Schedule IID (EBS)'!H73+'Schedule IIE (EBS)'!H73+'Schedule IIF (EBS)'!H73","v":0},{"$f":"'Schedule IIB (EBS)'!J73+'Schedule IIC (EBS)'!J73+'Schedule IID (EBS)'!J73+'Schedule IIE (EBS)'!J73+'Schedule IIF (EBS)'!J73","v":0},null,840,0]
[null,"BSCR Rating 6",{"$f":"'Schedule IIB (EBS)'!D74+'Schedule IIC (EBS)'!D74+'Schedule IID (EBS)'!D74+'Schedule IIE (EBS)'!D74+'Schedule IIF (EBS)'!D74","v":0},{"$f":"'Schedule IIB (EBS)'!F74+'Schedule IIC (EBS)'!F74+'Schedule IID (EBS)'!F74+'Schedule IIE (EBS)'!F74+'Schedule IIF (EBS)'!F74","v":0},{"$f":"'Schedule IIB (EBS)'!H74+'Schedule IIC (EBS)'!H74+'Schedule IID (EBS)'!H74+'Schedule IIE (EBS)'!H74+'Schedule IIF (EBS)'!H74","v":0},{"$f":"'Schedule IIB (EBS)'!J74+'Schedule IIC (EBS)'!J74+'Schedule IID (EBS)'!J74+'Schedule IIE (EBS)'!J74+'Schedule IIF (EBS)'!J74","v":0},null,1620,0]
[null,"BSCR Rating 7",{"$f":"'Schedule IIB (EBS)'!D75+'Schedule IIC (EBS)'!D75+'Schedule IID (EBS)'!D75+'Schedule IIE (EBS)'!D75+'Schedule IIF (EBS)'!D75","v":0},{"$f":"'Schedule IIB (EBS)'!F75+'Schedule IIC (EBS)'!F75+'Schedule IID (EBS)'!F75+'Schedule IIE (EBS)'!F75+'Schedule IIF (EBS)'!F75","v":0},{"$f":"'Schedule IIB (EBS)'!H75+'Schedule IIC (EBS)'!H75+'Schedule IID (EBS)'!H75+'Schedule IIE (EBS)'!H75+'Schedule IIF (EBS)'!H75","v":0},{"$f":"'Schedule IIB (EBS)'!J75+'Schedule IIC (EBS)'!J75+'Schedule IID (EBS)'!J75+'Schedule IIE (EBS)'!J75+'Schedule IIF (EBS)'!J75","v":0},null,1620,0]
[null,"BSCR Rating 8",{"$f":"'Schedule IIB (EBS)'!D76+'Schedule IIC (EBS)'!D76+'Schedule IID (EBS)'!D76+'Schedule IIE (EBS)'!D76+'Schedule IIF (EBS)'!D76","v":0},{"$f":"'Schedule IIB (EBS)'!F76+'Schedule IIC (EBS)'!F76+'Schedule IID (EBS)'!F76+'Schedule IIE (EBS)'!F76+'Schedule IIF (EBS)'!F76","v":0},{"$f":"'Schedule IIB (EBS)'!H76+'Schedule IIC (EBS)'!H76+'Schedule IID (EBS)'!H76+'Schedule IIE (EBS)'!H76+'Schedule IIF (EBS)'!H76","v":0},{"$f":"'Schedule IIB (EBS)'!J76+'Schedule IIC (EBS)'!J76+'Schedule IID (EBS)'!J76+'Schedule IIE (EBS)'!J76+'Schedule IIF (EBS)'!J76","v":0},null,1620,0]
[null,"Total Spread Up",{"$f":"SUM(C105:C113)","v":0},{"$f":"SUM(D105:D113)","v":0},{"$f":"SUM(E105:E113)","v":0},{"$f":"SUM(F105:F113)","v":0},null,null,{"$f":"MAX(SUM(I105:I113),0)","v":0}]
[]
[null,null,"SPREAD DOWN"]
[null,null,"Long Exposures",null,"Short Exposures"]
[null,null,"Before Shock","After Shock","Before Shock","After Shock"]
[null,"Spread Down",null,null,null,null,null,"Shock (%)"]
[null,"BSCR Rating 0 ",{"$f":"'Schedule IIB (EBS)'!N68+'Schedule IIC (EBS)'!N68+'Schedule IID (EBS)'!N68+'Schedule IIE (EBS)'!N68+'Schedule IIF (EBS)'!N68","v":0},{"$f":"'Schedule IIB (EBS)'!P68+'Schedule IIC (EBS)'!P68+'Schedule IID (EBS)'!P68+'Schedule IIE (EBS)'!P68+'Schedule IIF (EBS)'!P68","v":0},{"$f":"'Schedule IIB (EBS)'!R68+'Schedule IIC (EBS)'!R68+'Schedule IID (EBS)'!R68+'Schedule IIE (EBS)'!R68+'Schedule IIF (EBS)'!R68","v":0},{"$f":"'Schedule IIB (EBS)'!T68+'Schedule IIC (EBS)'!T68+'Schedule IID (EBS)'!T68+'Schedule IIE (EBS)'!T68+'Schedule IIF (EBS)'!T68","v":0},null,0,{"$f":"(C120-D120)+MAX(0,E120-F120)","v":0}]
[null,"BSCR Rating 1",{"$f":"'Schedule IIB (EBS)'!N69+'Schedule IIC (EBS)'!N69+'Schedule IID (EBS)'!N69+'Schedule IIE (EBS)'!N69+'Schedule IIF (EBS)'!N69","v":0},{"$f":"'Schedule IIB (EBS)'!P69+'Schedule IIC (EBS)'!P69+'Schedule IID (EBS)'!P69+'Schedule IIE (EBS)'!P69+'Schedule IIF (EBS)'!P69","v":0},{"$f":"'Schedule IIB (EBS)'!R69+'Schedule IIC (EBS)'!R69+'Schedule IID (EBS)'!R69+'Schedule IIE (EBS)'!R69+'Schedule IIF (EBS)'!R69","v":0},{"$f":"'Schedule IIB (EBS)'!T69+'Schedule IIC (EBS)'!T69+'Schedule IID (EBS)'!T69+'Schedule IIE (EBS)'!T69+'Schedule IIF (EBS)'!T69","v":0},null,-0.75,0]
[null,"BSCR Rating 2",{"$f":"'Schedule IIB (EBS)'!N70+'Schedule IIC (EBS)'!N70+'Schedule IID (EBS)'!N70+'Schedule IIE (EBS)'!N70+'Schedule IIF (EBS)'!N70","v":0},{"$f":"'Schedule IIB (EBS)'!P70+'Schedule IIC (EBS)'!P70+'Schedule IID (EBS)'!P70+'Schedule IIE (EBS)'!P70+'Schedule IIF (EBS)'!P70","v":0},{"$f":"'Schedule IIB (EBS)'!R70+'Schedule IIC (EBS)'!R70+'Schedule IID (EBS)'!R70+'Schedule IIE (EBS)'!R70+'Schedule IIF (EBS)'!R70","v":0},{"$f":"'Schedule IIB (EBS)'!T70+'Schedule IIC (EBS)'!T70+'Schedule IID (EBS)'!T70+'Schedule IIE (EBS)'!T70+'Schedule IIF (EBS)'!T70","v":0},null,-0.75,0]
[null,"BSCR Rating 3",{"$f":"'Schedule IIB (EBS)'!N71+'Schedule IIC (EBS)'!N71+'Schedule IID (EBS)'!N71+'Schedule IIE (EBS)'!N71+'Schedule IIF (EBS)'!N71","v":0},{"$f":"'Schedule IIB (EBS)'!P71+'Schedule IIC (EBS)'!P71+'Schedule IID (EBS)'!P71+'Schedule IIE (EBS)'!P71+'Schedule IIF (EBS)'!P71","v":0},{"$f":"'Schedule IIB (EBS)'!R71+'Schedule IIC (EBS)'!R71+'Schedule IID (EBS)'!R71+'Schedule IIE (EBS)'!R71+'Schedule IIF (EBS)'!R71","v":0},{"$f":"'Schedule IIB (EBS)'!T71+'Schedule IIC (EBS)'!T71+'Schedule IID (EBS)'!T71+'Schedule IIE (EBS)'!T71+'Schedule IIF (EBS)'!T71","v":0},null,-0.75,0]
[null,"BSCR Rating 4",{"$f":"'Schedule IIB (EBS)'!N72+'Schedule IIC (EBS)'!N72+'Schedule IID (EBS)'!N72+'Schedule IIE (EBS)'!N72+'Schedule IIF (EBS)'!N72","v":0},{"$f":"'Schedule IIB (EBS)'!P72+'Schedule IIC (EBS)'!P72+'Schedule IID (EBS)'!P72+'Schedule IIE (EBS)'!P72+'Schedule IIF (EBS)'!P72","v":0},{"$f":"'Schedule IIB (EBS)'!R72+'Schedule IIC (EBS)'!R72+'Schedule IID (EBS)'!R72+'Schedule IIE (EBS)'!R72+'Schedule IIF (EBS)'!R72","v":0},{"$f":"'Schedule IIB (EBS)'!T72+'Schedule IIC (EBS)'!T72+'Schedule IID (EBS)'!T72+'Schedule IIE (EBS)'!T72+'Schedule IIF (EBS)'!T72","v":0},null,-0.75,0]
[null,"BSCR Rating 5",{"$f":"'Schedule IIB (EBS)'!N73+'Schedule IIC (EBS)'!N73+'Schedule IID (EBS)'!N73+'Schedule IIE (EBS)'!N73+'Schedule IIF (EBS)'!N73","v":0},{"$f":"'Schedule IIB (EBS)'!P73+'Schedule IIC (EBS)'!P73+'Schedule IID (EBS)'!P73+'Schedule IIE (EBS)'!P73+'Schedule IIF (EBS)'!P73","v":0},{"$f":"'Schedule IIB (EBS)'!R73+'Schedule IIC (EBS)'!R73+'Schedule IID (EBS)'!R73+'Schedule IIE (EBS)'!R73+'Schedule IIF (EBS)'!R73","v":0},{"$f":"'Schedule IIB (EBS)'!T73+'Schedule IIC (EBS)'!T73+'Schedule IID (EBS)'!T73+'Schedule IIE (EBS)'!T73+'Schedule IIF (EBS)'!T73","v":0},null,-0.75,0]
[null,"BSCR Rating 6",{"$f":"'Schedule IIB (EBS)'!N74+'Schedule IIC (EBS)'!N74+'Schedule IID (EBS)'!N74+'Schedule IIE (EBS)'!N74+'Schedule IIF (EBS)'!N74","v":0},{"$f":"'Schedule IIB (EBS)'!P74+'Schedule IIC (EBS)'!P74+'Schedule IID (EBS)'!P74+'Schedule IIE (EBS)'!P74+'Schedule IIF (EBS)'!P74","v":0},{"$f":"'Schedule IIB (EBS)'!R74+'Schedule IIC (EBS)'!R74+'Schedule IID (EBS)'!R74+'Schedule IIE (EBS)'!R74+'Schedule IIF (EBS)'!R74","v":0},{"$f":"'Schedule IIB (EBS)'!T74+'Schedule IIC (EBS)'!T74+'Schedule IID (EBS)'!T74+'Schedule IIE (EBS)'!T74+'Schedule IIF (EBS)'!T74","v":0},null,-0.75,0]
[null,"BSCR Rating 7",{"$f":"'Schedule IIB (EBS)'!N75+'Schedule IIC (EBS)'!N75+'Schedule IID (EBS)'!N75+'Schedule IIE (EBS)'!N75+'Schedule IIF (EBS)'!N75","v":0},{"$f":"'Schedule IIB (EBS)'!P75+'Schedule IIC (EBS)'!P75+'Schedule IID (EBS)'!P75+'Schedule IIE (EBS)'!P75+'Schedule IIF (EBS)'!P75","v":0},{"$f":"'Schedule IIB (EBS)'!R75+'Schedule IIC (EBS)'!R75+'Schedule IID (EBS)'!R75+'Schedule IIE (EBS)'!R75+'Schedule IIF (EBS)'!R75","v":0},{"$f":"'Schedule IIB (EBS)'!T75+'Schedule IIC (EBS)'!T75+'Schedule IID (EBS)'!T75+'Schedule IIE (EBS)'!T75+'Schedule IIF (EBS)'!T75","v":0},null,-0.75,0]
[null,"BSCR Rating 8",{"$f":"'Schedule IIB (EBS)'!N76+'Schedule IIC (EBS)'!N76+'Schedule IID (EBS)'!N76+'Schedule IIE (EBS)'!N76+'Schedule IIF (EBS)'!N76","v":0},{"$f":"'Schedule IIB (EBS)'!P76+'Schedule IIC (EBS)'!P76+'Schedule IID (EBS)'!P76+'Schedule IIE (EBS)'!P76+'Schedule IIF (EBS)'!P76","v":0},{"$f":"'Schedule IIB (EBS)'!R76+'Schedule IIC (EBS)'!R76+'Schedule IID (EBS)'!R76+'Schedule IIE (EBS)'!R76+'Schedule IIF (EBS)'!R76","v":0},{"$f":"'Schedule IIB (EBS)'!T76+'Schedule IIC (EBS)'!T76+'Schedule IID (EBS)'!T76+'Schedule IIE (EBS)'!T76+'Schedule IIF (EBS)'!T76","v":0},null,-0.75,0]
[null,"Total Spread Down",{"$f":"SUM(C120:C128)","v":0},{"$f":"SUM(D120:D128)","v":0},{"$f":"SUM(E120:E128)","v":0},{"$f":"SUM(F120:F128)","v":0},null,null,{"$f":"MAX(SUM(I120:I128),0)","v":0}]
[]
[null,"Spread Up",null,null,null,null,null,null,{"$f":"I114","v":0}]
[null,"Spread Down",null,null,null,null,null,null,{"$f":"I129","v":0}]
[]
[null,"(g) Total Spread Risk",null,null,null,null,null,null,{"$f":"MAX(I131,I132)","v":0}]
[]
[null,"(H)  TOTAL FIXED INCOME INVESTMENTS [ (a)+(b)+(c)+(d)+(e)+(f)+(g) ]",null,null,null,null,{"$f":"G22+G36+G75+G66+G51+G97","v":0},null,{"$f":"MAX(0,I22+I36+I75+I66+I51+I97+I134)","v":0}]

{"sheet":"Equity Investments","index":81,"n_rows":51,"n_cols":6,"rows_kept":51,"cut":false,"hidden":false,"merged":[[52,0,52,1],[0,5,0,6]]}
["EQUITY INVESTMENTS",null,null,null,null,{"$f":"HYPERLINK(\"#'Index'!A1\",\"Return to Index\")","v":"Return to Index"}]
[{"$f":"'Insurer Information'!C7","v":"Enter Company Name"}]
[{"$f":"\"Equity Investment Risk\"& \" ($\" & IF(CONFIGURATION!$B$12>1,\"'\"&MID(CONFIGURATION!$B$12,2,LEN(CONFIGURATION!$B$12)),\"\") & \")\"","v":"Equity Investment Risk ($'000)"},null,{"$f":" TEXT('Insurer Information'!C3,\"mmmm dd, yyyy\")","v":"December 31, 2019"},"(1)","(2)","(3)"]
[]
[]
[null,"TYPE OF ",null,"ASSET","CAPITAL","REQUIRED"]
[null,"EQUITY INVESTMENTS","STATEMENT SOURCE","VALUE","FACTOR","CAPITAL"]
[]
[null,"(a)  Common Stocks",null,null,null,"(1) x (2)"]
[]
[null,"Non-Affiliated (Quoted)","Sch II EBS, Line (19), Column (1) and Sch IIA EBS, Line (19), Column (1)",{"$f":"'Schedule II (EBS)'!D41+'Schedule IIA (EBS)'!D41","v":0},0.14399999999999999,{"$f":"IF(D11<0,0,D11*E11)","v":0}]
[null,"Non-Affiliated (Unquoted)","Sch II EBS, Line (20), Column (1) and Sch IIA EBS, Line (20), Column (1)",{"$f":"'Schedule II (EBS)'!D42+'Schedule IIA (EBS)'!D42","v":0},0.14399999999999999,{"$f":"IF(D12<0,0,D12*E12)","v":0}]
[null,"Equity mutual funds","Sch II EBS, Line (21), Column (5) and Sch IIA EBS, Line (21), Column (5)",{"$f":"'Schedule II (EBS)'!L41+'Schedule II (EBS)'!L42+'Schedule IIA (EBS)'!L41+'Schedule IIA (EBS)'!L42","v":0},0.14399999999999999,{"$f":"IF(D13<0,0,D13*E13)","v":0}]
[]
[null,"(a)  SUBTOTAL - COMMON STOCKS",null,{"$f":"SUM(D11:D13)","v":0},null,{"$f":"MAX(0,(SUM(F11:F13)))","v":0}]
[]
[null,"(b)  Preferred Stocks"]
[]
[null,"BSCR Rating"]
[null,1,"Sch II EBS, Line (11), Column (3) and Sch IIA EBS, Line (11), Column (3)",{"$f":"+'Schedule II (EBS)'!H33+'Schedule IIA (EBS)'!H33","v":0},6.0000000000000001E-3,{"$f":"IF(D20<0,0,D20*E20)","v":0}]
[null,2,"Sch II EBS, Line (12), Column (3) and Sch IIA EBS, Line (12), Column (3)",{"$f":"+'Schedule II (EBS)'!H34+'Schedule IIA (EBS)'!H34","v":0},1.2E-2,0]
[null,3,"Sch II EBS, Line (13), Column (3) and Sch IIA EBS, Line (13), Column (3)",{"$f":"+'Schedule II (EBS)'!H35+'Schedule IIA (EBS)'!H35","v":0},0.02,0]
[null,4,"Sch II EBS, Line (14), Column (3) and Sch IIA EBS, Line (14), Column (3)",{"$f":"+'Schedule II (EBS)'!H36+'Schedule IIA (EBS)'!H36","v":0},0.04,0]
[null,5,"Sch II EBS, Line (15), Column (3) and Sch IIA EBS, Line (15), Column (3)",{"$f":"+'Schedule II (EBS)'!H37+'Schedule IIA (EBS)'!H37","v":0},0.11,0]
[null,6,"Sch II EBS, Line (16), Column (3) and Sch IIA EBS, Line (16), Column (3)",{"$f":"+'Schedule II (EBS)'!H38+'Schedule IIA (EBS)'!H38","v":0},0.25,0]
[null,7,"Sch II EBS, Line (17), Column (3) and Sch IIA EBS, Line (17), Column (3)",{"$f":"+'Schedule II (EBS)'!H39+'Schedule IIA (EBS)'!H39","v":0},0.35,0]
[null,8,"Sch II EBS, Line (18), Column (3) and Sch IIA EBS, Line (18), Column (3)",{"$f":"+'Schedule II (EBS)'!H40+'Schedule IIA (EBS)'!H40","v":0},0.35,0]
[]
[null,"(b)  SUBTOTAL - PREFERRED STOCKS",null,{"$f":"SUM(D19:D27)","v":0},null,{"$f":"MAX(0,(SUM(F19:F27)))","v":0}]
[]
[null,"(c)  Other Equity Investments"]
[]
[null,"Real Estate"]
[null,"Company-Occupied Less Encumbrances","Form 4EBS, Line (7a)",{"$f":"'Form 4EBS'!F50","v":0},0.1,{"$f":"IF(D34<0,0,D34*E34)","v":0}]
[null,"Investments Less Encumbrances","Form 4EBS, Line (7b)",{"$f":"'Form 4EBS'!F51","v":0},0.2,{"$f":"IF(D35<0,0,D35*E35)","v":0}]
[]
[null,"Other Equity Investments","Form 4EBS, Lines (2e), (3e) & Schedule IIA EBS, Line 21, Column (7)",{"$f":"'Form 4EBS'!F19+'Form 4EBS'!F29+'Schedule IIA (EBS)'!P44","v":0},0.2,{"$f":"IF(D37<0,0,D37*E37)","v":0}]
[null,"Other Tangible Assets (Net of Segregated Accounts Companies)","Form 4EBS, Lines (13k), (14d), and (36f) Less Form 4EBS, Lines (13b),  (13c) and (13h)",{"$f":"'Form 4EBS'!F85-'Form 4EBS'!F77-'Form 4EBS'!F78-'Form 4EBS'!F82+'Form 4EBS'!F91+'Form 4EBS'!F166","v":0},0.2,{"$f":"IF(D38<0,0,D38*E38)","v":0}]
[]
[null,"(c)  SUBTOTAL - OTHER EQUITY INVESTMENTS",null,{"$f":"SUM(D34:D35,D37:D38)","v":0},null,{"$f":"MAX(0,(SUM(F34:F38)))","v":0}]
[]
[null,"(d)  Investments in Affiliates"]
[]
[null,"Unregulated Entities That Conduct Ancillary Services","Form 4EBS, Line (4a)",{"$f":"+'Form 4EBS'!F33","v":0},0.05,{"$f":"IF(D44<0,0,D44*E44)","v":0}]
[null,"Unregulated Non-Financial Operating Entities","Form 4EBS, Line (4b)",{"$f":"+'Form 4EBS'!F34","v":0},0.2,{"$f":"IF(D45<0,0,D45*E45)","v":0}]
[null,"Unregulated Financial Operating Entities","Form 4EBS, Line (4c)",{"$f":"+'Form 4EBS'!F35","v":0},0.55000000000000004,{"$f":"IF(D46<0,0,D46*E46)","v":0}]
[null,"Regulated Insurance Financial Operating Entities","Form 4EBS, Line (4e)",{"$f":"+'Form 4EBS'!F37","v":0},0.2,{"$f":"IF(D47<0,0,D47*E47)","v":0}]
[]
[null,"(d)  SUBTOTAL - INVESTMENTS IN AFFILIATES",null,{"$f":"SUM(D44:D47)","v":0},null,{"$f":"MAX(0,SUM(F44:F47))","v":0}]
[]
[null,"(e)  TOTAL EQUITY INVESTMENTS [ (a) + (b) + (c) + (d) ]",null,{"$f":"D15+D29+D40+D49","v":0},null,{"$f":"MAX(0,(F15+F29+F40+F49))","v":0}]

{"sheet":"Equity Investments (Revised)","index":82,"n_rows":56,"n_cols":18,"rows_kept":56,"cut":false,"hidden":false,"merged":[[5,17,6,17],[6,5,6,6],[6,7,6,8],[0,17,0,18],[57,0,57,1],[4,3,4,8],[4,9,4,11],[4,15,6,15],[5,3,6,4],[5,5,5,8],[5,11,6,11],[5,9,6,9],[5,10,6,10]]}
["EQUITY INVESTMENTS (REVISED)",null,null,null,null,null,null,null,null,null,null,null,null,null,null,null,null,{"$f":"HYPERLINK(\"#'Index'!A1\",\"Return to Index\")","v":"Return to Index"}]
[{"$f":"'Insurer Information'!C7","v":"Enter Company Name"}]
[{"$f":"\"Equity Investment Risk\"& \" ($\" & IF(CONFIGURATION!$B$12>1,\"'\"&MID(CONFIGURATION!$B$12,2,LEN(CONFIGURATION!$B$12)),\"\") & \")\"","v":"Equity Investment Risk ($'000)"},null,{"$f":" TEXT('Insurer Information'!C3,\"mmmm dd, yyyy\")","v":"December 31, 2019"},null,null,null,null,null,null,null,null,null,null,null,null,null,null,"(3)"]
[]
[null,null,null,"ASSETS",null,null,null,null,null,"LIABILITIES",null,null,null,null,null,"WITHOUT MANAGEMENT ACTIONS"]
[null,null,null,"Long Exposure",null,"Short Exposure",null,null,null,null,"Without Mgmt Actions","With Mgmt Actions",null,{"$f":"YEAR('Insurer Information'!C3)","v":2019},null,null,null,"WITH MANAGEMENT ACTIONS"]
[null,"TYPE OF ",null,null,null,"Qualifying as Assets held for risk-mitigation purposes",null,"Not Qualifying as Assets held for risk-mitigation purposes",null,null,null,null,null,"CAPITAL"]
[null,"EQUITY INVESTMENTS","STATEMENT SOURCE","Before Shock","After Shock","Before Shock","After Shock","Before Shock","After Shock","Before Shock","After Shock","After Shock",null,"FACTOR",null,"REQUIRED CAPITAL",null,"CAPITAL"]
[]
[null,"Type 1 Equity Holdings"]
[null,"Strategic Holdings - Listed","Sch IIB, IIC, IID, IIE and IIF Line (15)",{"$f":"'Schedule IIB (EBS)'!D39+'Schedule IIC (EBS)'!D39+'Schedule IID (EBS)'!D39+'Schedule IIE (EBS)'!D39+'Schedule IIF (EBS)'!D39","v":0},{"$f":"'Schedule IIB (EBS)'!F39+'Schedule IIC (EBS)'!F39+'Schedule IID (EBS)'!F39+'Schedule IIE (EBS)'!F39+'Schedule IIF (EBS)'!F39","v":0},{"$f":"'Schedule IIB (EBS)'!H39+'Schedule IIC (EBS)'!H39+'Schedule IID (EBS)'!H39+'Schedule IIE (EBS)'!H39+'Schedule IIF (EBS)'!H39","v":0},{"$f":"'Schedule IIB (EBS)'!J39+'Schedule IIC (EBS)'!J39+'Schedule IID (EBS)'!J39+'Schedule IIE (EBS)'!J39+'Schedule IIF (EBS)'!J39","v":0},{"$f":"'Schedule IIB (EBS)'!L39+'Schedule IIC (EBS)'!L39+'Schedule IID (EBS)'!L39+'Schedule IIE (EBS)'!L39+'Schedule IIF (EBS)'!L39","v":0},{"$f":"'Schedule IIB (EBS)'!N39+'Schedule IIC (EBS)'!N39+'Schedule IID (EBS)'!N39+'Schedule IIE (EBS)'!N39+'Schedule IIF (EBS)'!N39","v":0},{"$f":"'Schedule IIB (EBS)'!P39+'Schedule IIC (EBS)'!P39+'Schedule IID (EBS)'!P39+'Schedule IIE (EBS)'!P39+'Schedule IIF (EBS)'!P39","v":0},{"$f":"'Schedule IIB (EBS)'!R39+'Schedule IIC (EBS)'!R39+'Schedule IID (EBS)'!R39+'Schedule IIE (EBS)'!R39+'Schedule IIF (EBS)'!R39","v":0},{"$f":"'Schedule IIB (EBS)'!T39+'Schedule IIC (EBS)'!T39+'Schedule IID (EBS)'!T39+'Schedule IIE (EBS)'!T39+'Schedule IIF (EBS)'!T39","v":0},null,0.2,null,{"$f":"MAX(D11-E11,0)+(F11-G11)+MAX(H11-I11,0)+(K11-J11)","v":0},null,{"$f":"MAX(D11-E11,0)+(F11-G11)+MAX(H11-I11,0)+(L11-J11)","v":0}]
[null,"Duration Based","Sch IIB, IIC, IID, IIE and IIF Line (16)",{"$f":"'Schedule IIB (EBS)'!D40+'Schedule IIC (EBS)'!D40+'Schedule IID (EBS)'!D40+'Schedule IIE (EBS)'!D40+'Schedule IIF (EBS)'!D40","v":0},{"$f":"'Schedule IIB (EBS)'!F40+'Schedule IIC (EBS)'!F40+'Schedule IID (EBS)'!F40+'Schedule IIE (EBS)'!F40+'Schedule IIF (EBS)'!F40","v":0},{"$f":"'Schedule IIB (EBS)'!H40+'Schedule IIC (EBS)'!H40+'Schedule IID (EBS)'!H40+'Schedule IIE (EBS)'!H40+'Schedule IIF (EBS)'!H40","v":0},{"$f":"'Schedule IIB (EBS)'!J40+'Schedule IIC (EBS)'!J40+'Schedule IID (EBS)'!J40+'Schedule IIE (EBS)'!J40+'Schedule IIF (EBS)'!J40","v":0},{"$f":"'Schedule IIB (EBS)'!L40+'Schedule IIC (EBS)'!L40+'Schedule IID (EBS)'!L40+'Schedule IIE (EBS)'!L40+'Schedule IIF (EBS)'!L40","v":0},{"$f":"'Schedule IIB (EBS)'!N40+'Schedule IIC (EBS)'!N40+'Schedule IID (EBS)'!N40+'Schedule IIE (EBS)'!N40+'Schedule IIF (EBS)'!N40","v":0},{"$f":"'Schedule IIB (EBS)'!P40+'Schedule IIC (EBS)'!P40+'Schedule IID (EBS)'!P40+'Schedule IIE (EBS)'!P40+'Schedule IIF (EBS)'!P40","v":0},{"$f":"'Schedule IIB (EBS)'!R40+'Schedule IIC (EBS)'!R40+'Schedule IID (EBS)'!R40+'Schedule IIE (EBS)'!R40+'Schedule IIF (EBS)'!R40","v":0},{"$f":"'Schedule IIB (EBS)'!T40+'Schedule IIC (EBS)'!T40+'Schedule IID (EBS)'!T40+'Schedule IIE (EBS)'!T40+'Schedule IIF (EBS)'!T40","v":0},null,0.2,null,0,null,{"$f":"MAX(D12-E12,0)+(F12-G12)+MAX(H12-I12,0)+(L12-J12)","v":0}]
[null,"Listed Equity Securities in Developed Markets","Sch IIB, IIC, IID, IIE and IIF Line (17)",{"$f":"'Schedule IIB (EBS)'!D41+'Schedule IIC (EBS)'!D41+'Schedule IID (EBS)'!D41+'Schedule IIE (EBS)'!D41+'Schedule IIF (EBS)'!D41","v":0},{"$f":"'Schedule IIB (EBS)'!F41+'Schedule IIC (EBS)'!F41+'Schedule IID (EBS)'!F41+'Schedule IIE (EBS)'!F41+'Schedule IIF (EBS)'!F41","v":0},{"$f":"'Schedule IIB (EBS)'!H41+'Schedule IIC (EBS)'!H41+'Schedule IID (EBS)'!H41+'Schedule IIE (EBS)'!H41+'Schedule IIF (EBS)'!H41","v":0},{"$f":"'Schedule IIB (EBS)'!J41+'Schedule IIC (EBS)'!J41+'Schedule IID (EBS)'!J41+'Schedule IIE (EBS)'!J41+'Schedule IIF (EBS)'!J41","v":0},{"$f":"'Schedule IIB (EBS)'!L41+'Schedule IIC (EBS)'!L41+'Schedule IID (EBS)'!L41+'Schedule IIE (EBS)'!L41+'Schedule IIF (EBS)'!L41","v":0},{"$f":"'Schedule IIB (EBS)'!N41+'Schedule IIC (EBS)'!N41+'Schedule IID (EBS)'!N41+'Schedule IIE (EBS)'!N41+'Schedule IIF (EBS)'!N41","v":0},{"$f":"'Schedule IIB (EBS)'!P41+'Schedule IIC (EBS)'!P41+'Schedule IID (EBS)'!P41+'Schedule IIE (EBS)'!P41+'Schedule IIF (EBS)'!P41","v":0},{"$f":"'Schedule IIB (EBS)'!R41+'Schedule IIC (EBS)'!R41+'Schedule IID (EBS)'!R41+'Schedule IIE (EBS)'!R41+'Schedule IIF (EBS)'!R41","v":0},{"$f":"'Schedule IIB (EBS)'!T41+'Schedule IIC (EBS)'!T41+'Schedule IID (EBS)'!T41+'Schedule IIE (EBS)'!T41+'Schedule IIF (EBS)'!T41","v":0},null,0.35,null,0,null,0]
[null,"Preferred Stocks, BSCR Rating 1","Sch IIB, IIC, IID, IIE and IIF Line (18)",{"$f":"'Schedule IIB (EBS)'!D42+'Schedule IIC (EBS)'!D42+'Schedule IID (EBS)'!D42+'Schedule IIE (EBS)'!D42+'Schedule IIF (EBS)'!D42","v":0},{"$f":"'Schedule IIB (EBS)'!F42+'Schedule IIC (EBS)'!F42+'Schedule IID (EBS)'!F42+'Schedule IIE (EBS)'!F42+'Schedule IIF (EBS)'!F42","v":0},{"$f":"'Schedule IIB (EBS)'!H42+'Schedule IIC (EBS)'!H42+'Schedule IID (EBS)'!H42+'Schedule IIE (EBS)'!H42+'Schedule IIF (EBS)'!H42","v":0},{"$f":"'Schedule IIB (EBS)'!J42+'Schedule IIC (EBS)'!J42+'Schedule IID (EBS)'!J42+'Schedule IIE (EBS)'!J42+'Schedule IIF (EBS)'!J42","v":0},{"$f":"'Schedule IIB (EBS)'!L42+'Schedule IIC (EBS)'!L42+'Schedule IID (EBS)'!L42+'Schedule IIE (EBS)'!L42+'Schedule IIF (EBS)'!L42","v":0},{"$f":"'Schedule IIB (EBS)'!N42+'Schedule IIC (EBS)'!N42+'Schedule IID (EBS)'!N42+'Schedule IIE (EBS)'!N42+'Schedule IIF (EBS)'!N42","v":0},{"$f":"'Schedule IIB (EBS)'!P42+'Schedule IIC (EBS)'!P42+'Schedule IID (EBS)'!P42+'Schedule IIE (EBS)'!P42+'Schedule IIF (EBS)'!P42","v":0},{"$f":"'Schedule IIB (EBS)'!R42+'Schedule IIC (EBS)'!R42+'Schedule IID (EBS)'!R42+'Schedule IIE (EBS)'!R42+'Schedule IIF (EBS)'!R42","v":0},{"$f":"'Schedule IIB (EBS)'!T42+'Schedule IIC (EBS)'!T42+'Schedule IID (EBS)'!T42+'Schedule IIE (EBS)'!T42+'Schedule IIF (EBS)'!T42","v":0},null,6.0000000000000001E-3,null,0,null,0]
[null,"Preferred Stocks, BSCR Rating 2","Sch IIB, IIC, IID, IIE and IIF Line (19)",{"$f":"'Schedule IIB (EBS)'!D43+'Schedule IIC (EBS)'!D43+'Schedule IID (EBS)'!D43+'Schedule IIE (EBS)'!D43+'Schedule IIF (EBS)'!D43","v":0},{"$f":"'Schedule IIB (EBS)'!F43+'Schedule IIC (EBS)'!F43+'Schedule IID (EBS)'!F43+'Schedule IIE (EBS)'!F43+'Schedule IIF (EBS)'!F43","v":0},{"$f":"'Schedule IIB (EBS)'!H43+'Schedule IIC (EBS)'!H43+'Schedule IID (EBS)'!H43+'Schedule IIE (EBS)'!H43+'Schedule IIF (EBS)'!H43","v":0},{"$f":"'Schedule IIB (EBS)'!J43+'Schedule IIC (EBS)'!J43+'Schedule IID (EBS)'!J43+'Schedule IIE (EBS)'!J43+'Schedule IIF (EBS)'!J43","v":0},{"$f":"'Schedule IIB (EBS)'!L43+'Schedule IIC (EBS)'!L43+'Schedule IID (EBS)'!L43+'Schedule IIE (EBS)'!L43+'Schedule IIF (EBS)'!L43","v":0},{"$f":"'Schedule IIB (EBS)'!N43+'Schedule IIC (EBS)'!N43+'Schedule IID (EBS)'!N43+'Schedule IIE (EBS)'!N43+'Schedule IIF (EBS)'!N43","v":0},{"$f":"'Schedule IIB (EBS)'!P43+'Schedule IIC (EBS)'!P43+'Schedule IID (EBS)'!P43+'Schedule IIE (EBS)'!P43+'Schedule IIF (EBS)'!P43","v":0},{"$f":"'Schedule IIB (EBS)'!R43+'Schedule IIC (EBS)'!R43+'Schedule IID (EBS)'!R43+'Schedule IIE (EBS)'!R43+'Schedule IIF (EBS)'!R43","v":0},{"$f":"'Schedule IIB (EBS)'!T43+'Schedule IIC (EBS)'!T43+'Schedule IID (EBS)'!T43+'Schedule IIE (EBS)'!T43+'Schedule IIF (EBS)'!T43","v":0},null,1.2E-2,null,0,null,0]
[null,"Preferred Stocks, BSCR Rating 3","Sch IIB, IIC, IID, IIE and IIF Line (20)",{"$f":"'Schedule IIB (EBS)'!D44+'Schedule IIC (EBS)'!D44+'Schedule IID (EBS)'!D44+'Schedule IIE (EBS)'!D44+'Schedule IIF (EBS)'!D44","v":0},{"$f":"'Schedule IIB (EBS)'!F44+'Schedule IIC (EBS)'!F44+'Schedule IID (EBS)'!F44+'Schedule IIE (EBS)'!F44+'Schedule IIF (EBS)'!F44","v":0},{"$f":"'Schedule IIB (EBS)'!H44+'Schedule IIC (EBS)'!H44+'Schedule IID (EBS)'!H44+'Schedule IIE (EBS)'!H44+'Schedule IIF (EBS)'!H44","v":0},{"$f":"'Schedule IIB (EBS)'!J44+'Schedule IIC (EBS)'!J44+'Schedule IID (EBS)'!J44+'Schedule IIE (EBS)'!J44+'Schedule IIF (EBS)'!J44","v":0},{"$f":"'Schedule IIB (EBS)'!L44+'Schedule IIC (EBS)'!L44+'Schedule IID (EBS)'!L44+'Schedule IIE (EBS)'!L44+'Schedule IIF (EBS)'!L44","v":0},{"$f":"'Schedule IIB (EBS)'!N44+'Schedule IIC (EBS)'!N44+'Schedule IID (EBS)'!N44+'Schedule IIE (EBS)'!N44+'Schedule IIF (EBS)'!N44","v":0},{"$f":"'Schedule IIB (EBS)'!P44+'Schedule IIC (EBS)'!P44+'Schedule IID (EBS)'!P44+'Schedule IIE (EBS)'!P44+'Schedule IIF (EBS)'!P44","v":0},{"$f":"'Schedule IIB (EBS)'!R44+'Schedule IIC (EBS)'!R44+'Schedule IID (EBS)'!R44+'Schedule IIE (EBS)'!R44+'Schedule IIF (EBS)'!R44","v":0},{"$f":"'Schedule IIB (EBS)'!T44+'Schedule IIC (EBS)'!T44+'Schedule IID (EBS)'!T44+'Schedule IIE (EBS)'!T44+'Schedule IIF (EBS)'!T44","v":0},null,0.02,null,0,null,0]
[null,"Preferred Stocks, BSCR Rating 4","Sch IIB, IIC, IID, IIE and IIF Line (21)",{"$f":"'Schedule IIB (EBS)'!D45+'Schedule IIC (EBS)'!D45+'Schedule IID (EBS)'!D45+'Schedule IIE (EBS)'!D45+'Schedule IIF (EBS)'!D45","v":0},{"$f":"'Schedule IIB (EBS)'!F45+'Schedule IIC (EBS)'!F45+'Schedule IID (EBS)'!F45+'Schedule IIE (EBS)'!F45+'Schedule IIF (EBS)'!F45","v":0},{"$f":"'Schedule IIB (EBS)'!H45+'Schedule IIC (EBS)'!H45+'Schedule IID (EBS)'!H45+'Schedule IIE (EBS)'!H45+'Schedule IIF (EBS)'!H45","v":0},{"$f":"'Schedule IIB (EBS)'!J45+'Schedule IIC (EBS)'!J45+'Schedule IID (EBS)'!J45+'Schedule IIE (EBS)'!J45+'Schedule IIF (EBS)'!J45","v":0},{"$f":"'Schedule IIB (EBS)'!L45+'Schedule IIC (EBS)'!L45+'Schedule IID (EBS)'!L45+'Schedule IIE (EBS)'!L45+'Schedule IIF (EBS)'!L45","v":0},{"$f":"'Schedule IIB (EBS)'!N45+'Schedule IIC (EBS)'!N45+'Schedule IID (EBS)'!N45+'Schedule IIE (EBS)'!N45+'Schedule IIF (EBS)'!N45","v":0},{"$f":"'Schedule IIB (EBS)'!P45+'Schedule IIC (EBS)'!P45+'Schedule IID (EBS)'!P45+'Schedule IIE (EBS)'!P45+'Schedule IIF (EBS)'!P45","v":0},{"$f":"'Schedule IIB (EBS)'!R45+'Schedule IIC (EBS)'!R45+'Schedule IID (EBS)'!R45+'Schedule IIE (EBS)'!R45+'Schedule IIF (EBS)'!R45","v":0},{"$f":"'Schedule IIB (EBS)'!T45+'Schedule IIC (EBS)'!T45+'Schedule IID (EBS)'!T45+'Schedule IIE (EBS)'!T45+'Schedule IIF (EBS)'!T45","v":0},null,0.04,null,0,null,0]
[null,"Preferred Stocks, BSCR Rating 5","Sch IIB, IIC, IID, IIE and IIF Line (22)",{"$f":"'Schedule IIB (EBS)'!D46+'Schedule IIC (EBS)'!D46+'Schedule IID (EBS)'!D46+'Schedule IIE (EBS)'!D46+'Schedule IIF (EBS)'!D46","v":0},{"$f":"'Schedule IIB (EBS)'!F46+'Schedule IIC (EBS)'!F46+'Schedule IID (EBS)'!F46+'Schedule IIE (EBS)'!F46+'Schedule IIF (EBS)'!F46","v":0},{"$f":"'Schedule IIB (EBS)'!H46+'Schedule IIC (EBS)'!H46+'Schedule IID (EBS)'!H46+'Schedule IIE (EBS)'!H46+'Schedule IIF (EBS)'!H46","v":0},{"$f":"'Schedule IIB (EBS)'!J46+'Schedule IIC (EBS)'!J46+'Schedule IID (EBS)'!J46+'Schedule IIE (EBS)'!J46+'Schedule IIF (EBS)'!J46","v":0},{"$f":"'Schedule IIB (EBS)'!L46+'Schedule IIC (EBS)'!L46+'Schedule IID (EBS)'!L46+'Schedule IIE (EBS)'!L46+'Schedule IIF (EBS)'!L46","v":0},{"$f":"'Schedule IIB (EBS)'!N46+'Schedule IIC (EBS)'!N46+'Schedule IID (EBS)'!N46+'Schedule IIE (EBS)'!N46+'Schedule IIF (EBS)'!N46","v":0},{"$f":"'Schedule IIB (EBS)'!P46+'Schedule IIC (EBS)'!P46+'Schedule IID (EBS)'!P46+'Schedule IIE (EBS)'!P46+'Schedule IIF (EBS)'!P46","v":0},{"$f":"'Schedule IIB (EBS)'!R46+'Schedule IIC (EBS)'!R46+'Schedule IID (EBS)'!R46+'Schedule IIE (EBS)'!R46+'Schedule IIF (EBS)'!R46","v":0},{"$f":"'Schedule IIB (EBS)'!T46+'Schedule IIC (EBS)'!T46+'Schedule IID (EBS)'!T46+'Schedule IIE (EBS)'!T46+'Schedule IIF (EBS)'!T46","v":0},null,0.11,null,0,null,0]
[null,"Preferred Stocks, BSCR Rating 6","Sch IIB, IIC, IID, IIE and IIF Line (23)",{"$f":"'Schedule IIB (EBS)'!D47+'Schedule IIC (EBS)'!D47+'Schedule IID (EBS)'!D47+'Schedule IIE (EBS)'!D47+'Schedule IIF (EBS)'!D47","v":0},{"$f":"'Schedule IIB (EBS)'!F47+'Schedule IIC (EBS)'!F47+'Schedule IID (EBS)'!F47+'Schedule IIE (EBS)'!F47+'Schedule IIF (EBS)'!F47","v":0},{"$f":"'Schedule IIB (EBS)'!H47+'Schedule IIC (EBS)'!H47+'Schedule IID (EBS)'!H47+'Schedule IIE (EBS)'!H47+'Schedule IIF (EBS)'!H47","v":0},{"$f":"'Schedule IIB (EBS)'!J47+'Schedule IIC (EBS)'!J47+'Schedule IID (EBS)'!J47+'Schedule IIE (EBS)'!J47+'Schedule IIF (EBS)'!J47","v":0},{"$f":"'Schedule IIB (EBS)'!L47+'Schedule IIC (EBS)'!L47+'Schedule IID (EBS)'!L47+'Schedule IIE (EBS)'!L47+'Schedule IIF (EBS)'!L47","v":0},{"$f":"'Schedule IIB (EBS)'!N47+'Schedule IIC (EBS)'!N47+'Schedule IID (EBS)'!N47+'Schedule IIE (EBS)'!N47+'Schedule IIF (EBS)'!N47","v":0},{"$f":"'Schedule IIB (EBS)'!P47+'Schedule IIC (EBS)'!P47+'Schedule IID (EBS)'!P47+'Schedule IIE (EBS)'!P47+'Schedule IIF (EBS)'!P47","v":0},{"$f":"'Schedule IIB (EBS)'!R47+'Schedule IIC (EBS)'!R47+'Schedule IID (EBS)'!R47+'Schedule IIE (EBS)'!R47+'Schedule IIF (EBS)'!R47","v":0},{"$f":"'Schedule IIB (EBS)'!T47+'Schedule IIC (EBS)'!T47+'Schedule IID (EBS)'!T47+'Schedule IIE (EBS)'!T47+'Schedule IIF (EBS)'!T47","v":0},null,0.25,null,0,null,0]
[null,"Preferred Stocks, BSCR Rating 7","Sch IIB, IIC, IID, IIE and IIF Line (24)",{"$f":"'Schedule IIB (EBS)'!D48+'Schedule IIC (EBS)'!D48+'Schedule IID (EBS)'!D48+'Schedule IIE (EBS)'!D48+'Schedule IIF (EBS)'!D48","v":0},{"$f":"'Schedule IIB (EBS)'!F48+'Schedule IIC (EBS)'!F48+'Schedule IID (EBS)'!F48+'Schedule IIE (EBS)'!F48+'Schedule IIF (EBS)'!F48","v":0},{"$f":"'Schedule IIB (EBS)'!H48+'Schedule IIC (EBS)'!H48+'Schedule IID (EBS)'!H48+'Schedule IIE (EBS)'!H48+'Schedule IIF (EBS)'!H48","v":0},{"$f":"'Schedule IIB (EBS)'!J48+'Schedule IIC (EBS)'!J48+'Schedule IID (EBS)'!J48+'Schedule IIE (EBS)'!J48+'Schedule IIF (EBS)'!J48","v":0},{"$f":"'Schedule IIB (EBS)'!L48+'Schedule IIC (EBS)'!L48+'Schedule IID (EBS)'!L48+'Schedule IIE (EBS)'!L48+'Schedule IIF (EBS)'!L48","v":0},{"$f":"'Schedule IIB (EBS)'!N48+'Schedule IIC (EBS)'!N48+'Schedule IID (EBS)'!N48+'Schedule IIE (EBS)'!N48+'Schedule IIF (EBS)'!N48","v":0},{"$f":"'Schedule IIB (EBS)'!P48+'Schedule IIC (EBS)'!P48+'Schedule IID (EBS)'!P48+'Schedule IIE (EBS)'!P48+'Schedule IIF (EBS)'!P48","v":0},{"$f":"'Schedule IIB (EBS)'!R48+'Schedule IIC (EBS)'!R48+'Schedule IID (EBS)'!R48+'Schedule IIE (EBS)'!R48+'Schedule IIF (EBS)'!R48","v":0},{"$f":"'Schedule IIB (EBS)'!T48+'Schedule IIC (EBS)'!T48+'Schedule IID (EBS)'!T48+'Schedule IIE (EBS)'!T48+'Schedule IIF (EBS)'!T48","v":0},null,0.35,null,0,null,0]
[null,"Preferred Stocks, BSCR Rating 8","Sch IIB, IIC, IID, IIE and IIF Line (25)",{"$f":"'Schedule IIB (EBS)'!D49+'Schedule IIC (EBS)'!D49+'Schedule IID (EBS)'!D49+'Schedule IIE (EBS)'!D49+'Schedule IIF (EBS)'!D49","v":0},{"$f":"'Schedule IIB (EBS)'!F49+'Schedule IIC (EBS)'!F49+'Schedule IID (EBS)'!F49+'Schedule IIE (EBS)'!F49+'Schedule IIF (EBS)'!F49","v":0},{"$f":"'Schedule IIB (EBS)'!H49+'Schedule IIC (EBS)'!H49+'Schedule IID (EBS)'!H49+'Schedule IIE (EBS)'!H49+'Schedule IIF (EBS)'!H49","v":0},{"$f":"'Schedule IIB (EBS)'!J49+'Schedule IIC (EBS)'!J49+'Schedule IID (EBS)'!J49+'Schedule IIE (EBS)'!J49+'Schedule IIF (EBS)'!J49","v":0},{"$f":"'Schedule IIB (EBS)'!L49+'Schedule IIC (EBS)'!L49+'Schedule IID (EBS)'!L49+'Schedule IIE (EBS)'!L49+'Schedule IIF (EBS)'!L49","v":0},{"$f":"'Schedule IIB (EBS)'!N49+'Schedule IIC (EBS)'!N49+'Schedule IID (EBS)'!N49+'Schedule IIE (EBS)'!N49+'Schedule IIF (EBS)'!N49","v":0},{"$f":"'Schedule IIB (EBS)'!P49+'Schedule IIC (EBS)'!P49+'Schedule IID (EBS)'!P49+'Schedule IIE (EBS)'!P49+'Schedule IIF (EBS)'!P49","v":0},{"$f":"'Schedule IIB (EBS)'!R49+'Schedule IIC (EBS)'!R49+'Schedule IID (EBS)'!R49+'Schedule IIE (EBS)'!R49+'Schedule IIF (EBS)'!R49","v":0},{"$f":"'Schedule IIB (EBS)'!T49+'Schedule IIC (EBS)'!T49+'Schedule IID (EBS)'!T49+'Schedule IIE (EBS)'!T49+'Schedule IIF (EBS)'!T49","v":0},null,0.35,null,0,null,0]
[null,"Equity Derivatives on Type 1 Equities","Sch IIB, IIC, IID, IIE and IIF Line (26)",{"$f":"'Schedule IIB (EBS)'!D50+'Schedule IIC (EBS)'!D50+'Schedule IID (EBS)'!D50+'Schedule IIE (EBS)'!D50+'Schedule IIF (EBS)'!D50","v":0},{"$f":"'Schedule IIB (EBS)'!F50+'Schedule IIC (EBS)'!F50+'Schedule IID (EBS)'!F50+'Schedule IIE (EBS)'!F50+'Schedule IIF (EBS)'!F50","v":0},{"$f":"'Schedule IIB (EBS)'!H50+'Schedule IIC (EBS)'!H50+'Schedule IID (EBS)'!H50+'Schedule IIE (EBS)'!H50+'Schedule IIF (EBS)'!H50","v":0},{"$f":"'Schedule IIB (EBS)'!J50+'Schedule IIC (EBS)'!J50+'Schedule IID (EBS)'!J50+'Schedule IIE (EBS)'!J50+'Schedule IIF (EBS)'!J50","v":0},{"$f":"'Schedule IIB (EBS)'!L50+'Schedule IIC (EBS)'!L50+'Schedule IID (EBS)'!L50+'Schedule IIE (EBS)'!L50+'Schedule IIF (EBS)'!L50","v":0},{"$f":"'Schedule IIB (EBS)'!N50+'Schedule IIC (EBS)'!N50+'Schedule IID (EBS)'!N50+'Schedule IIE (EBS)'!N50+'Schedule IIF (EBS)'!N50","v":0},{"$f":"'Schedule IIB (EBS)'!P50+'Schedule IIC (EBS)'!P50+'Schedule IID (EBS)'!P50+'Schedule IIE (EBS)'!P50+'Schedule IIF (EBS)'!P50","v":0},{"$f":"'Schedule IIB (EBS)'!R50+'Schedule IIC (EBS)'!R50+'Schedule IID (EBS)'!R50+'Schedule IIE (EBS)'!R50+'Schedule IIF (EBS)'!R50","v":0},{"$f":"'Schedule IIB (EBS)'!T50+'Schedule IIC (EBS)'!T50+'Schedule IID (EBS)'!T50+'Schedule IIE (EBS)'!T50+'Schedule IIF (EBS)'!T50","v":0},null,0.35,null,0,null,0]
[]
[null,"Subtotal - Type 1 Equity Holdings",null,{"$f":"SUM(D11:D23)","v":0},0,0,0,0,0,0,0,0,null,null,null,{"$f":"MAX(SUM(P11:P22,0))","v":0},null,{"$f":"MAX(SUM(R11:R22,0))","v":0}]
[]
[null,"Type 2 Equity Holdings"]
[null,"Strategic Holdings - Unlisted","Sch IIB, IIC, IID, IIE and IIF Line (27)",{"$f":"'Schedule IIB (EBS)'!D51+'Schedule IIC (EBS)'!D51+'Schedule IID (EBS)'!D51+'Schedule IIE (EBS)'!D51+'Schedule IIF (EBS)'!D51","v":0},{"$f":"'Schedule IIB (EBS)'!F51+'Schedule IIC (EBS)'!F51+'Schedule IID (EBS)'!F51+'Schedule IIE (EBS)'!F51+'Schedule IIF (EBS)'!F51","v":0},{"$f":"'Schedule IIB (EBS)'!H51+'Schedule IIC (EBS)'!H51+'Schedule IID (EBS)'!H51+'Schedule IIE (EBS)'!H51+'Schedule IIF (EBS)'!H51","v":0},{"$f":"'Schedule IIB (EBS)'!J51+'Schedule IIC (EBS)'!J51+'Schedule IID (EBS)'!J51+'Schedule IIE (EBS)'!J51+'Schedule IIF (EBS)'!J51","v":0},{"$f":"'Schedule IIB (EBS)'!L51+'Schedule IIC (EBS)'!L51+'Schedule IID (EBS)'!L51+'Schedule IIE (EBS)'!L51+'Schedule IIF (EBS)'!L51","v":0},{"$f":"'Schedule IIB (EBS)'!N51+'Schedule IIC (EBS)'!N51+'Schedule IID (EBS)'!N51+'Schedule IIE (EBS)'!N51+'Schedule IIF (EBS)'!N51","v":0},{"$f":"'Schedule IIB (EBS)'!P51+'Schedule IIC (EBS)'!P51+'Schedule IID (EBS)'!P51+'Schedule IIE (EBS)'!P51+'Schedule IIF (EBS)'!P51","v":0},{"$f":"'Schedule IIB (EBS)'!R51+'Schedule IIC (EBS)'!R51+'Schedule IID (EBS)'!R51+'Schedule IIE (EBS)'!R51+'Schedule IIF (EBS)'!R51","v":0},{"$f":"'Schedule IIB (EBS)'!T51+'Schedule IIC (EBS)'!T51+'Schedule IID (EBS)'!T51+'Schedule IIE (EBS)'!T51+'Schedule IIF (EBS)'!T51","v":0},null,0.2,null,{"$f":"MAX(D27-E27,0)+(F27-G27)+MAX(H27-I27,0)+(K27-J27)","v":0},null,{"$f":"MAX(D27-E27,0)+(F27-G27)+MAX(H27-I27,0)+(L27-J27)","v":0}]
[null,"Other Equities","Sch IIB, IIC, IID, IIE and IIF Line (28)",{"$f":"'Schedule IIB (EBS)'!D52+'Schedule IIC (EBS)'!D52+'Schedule IID (EBS)'!D52+'Schedule IIE (EBS)'!D52+'Schedule IIF (EBS)'!D52","v":0},{"$f":"'Schedule IIB (EBS)'!F52+'Schedule IIC (EBS)'!F52+'Schedule IID (EBS)'!F52+'Schedule IIE (EBS)'!F52+'Schedule IIF (EBS)'!F52","v":0},{"$f":"'Schedule IIB (EBS)'!H52+'Schedule IIC (EBS)'!H52+'Schedule IID (EBS)'!H52+'Schedule IIE (EBS)'!H52+'Schedule IIF (EBS)'!H52","v":0},{"$f":"'Schedule IIB (EBS)'!J52+'Schedule IIC (EBS)'!J52+'Schedule IID (EBS)'!J52+'Schedule IIE (EBS)'!J52+'Schedule IIF (EBS)'!J52","v":0},{"$f":"'Schedule IIB (EBS)'!L52+'Schedule IIC (EBS)'!L52+'Schedule IID (EBS)'!L52+'Schedule IIE (EBS)'!L52+'Schedule IIF (EBS)'!L52","v":0},{"$f":"'Schedule IIB (EBS)'!N52+'Schedule IIC (EBS)'!N52+'Schedule IID (EBS)'!N52+'Schedule IIE (EBS)'!N52+'Schedule IIF (EBS)'!N52","v":0},{"$f":"'Schedule IIB (EBS)'!P52+'Schedule IIC (EBS)'!P52+'Schedule IID (EBS)'!P52+'Schedule IIE (EBS)'!P52+'Schedule IIF (EBS)'!P52","v":0},{"$f":"'Schedule IIB (EBS)'!R52+'Schedule IIC (EBS)'!R52+'Schedule IID (EBS)'!R52+'Schedule IIE (EBS)'!R52+'Schedule IIF (EBS)'!R52","v":0},{"$f":"'Schedule IIB (EBS)'!T52+'Schedule IIC (EBS)'!T52+'Schedule IID (EBS)'!T52+'Schedule IIE (EBS)'!T52+'Schedule IIF (EBS)'!T52","v":0},null,0.45,null,0,null,0]
[null,"Letters of Credit","Sch IIB, IIC, IID, IIE and IIF Line (29)",{"$f":"'Schedule IIB (EBS)'!D53+'Schedule IIC (EBS)'!D53+'Schedule IID (EBS)'!D53+'Schedule IIE (EBS)'!D53+'Schedule IIF (EBS)'!D53","v":0},{"$f":"'Schedule IIB (EBS)'!F53+'Schedule IIC (EBS)'!F53+'Schedule IID (EBS)'!F53+'Schedule IIE (EBS)'!F53+'Schedule IIF (EBS)'!F53","v":0},{"$f":"'Schedule IIB (EBS)'!H53+'Schedule IIC (EBS)'!H53+'Schedule IID (EBS)'!H53+'Schedule IIE (EBS)'!H53+'Schedule IIF (EBS)'!H53","v":0},{"$f":"'Schedule IIB (EBS)'!J53+'Schedule IIC (EBS)'!J53+'Schedule IID (EBS)'!J53+'Schedule IIE (EBS)'!J53+'Schedule IIF (EBS)'!J53","v":0},{"$f":"'Schedule IIB (EBS)'!L53+'Schedule IIC (EBS)'!L53+'Schedule IID (EBS)'!L53+'Schedule IIE (EBS)'!L53+'Schedule IIF (EBS)'!L53","v":0},{"$f":"'Schedule IIB (EBS)'!N53+'Schedule IIC (EBS)'!N53+'Schedule IID (EBS)'!N53+'Schedule IIE (EBS)'!N53+'Schedule IIF (EBS)'!N53","v":0},{"$f":"'Schedule IIB (EBS)'!P53+'Schedule IIC (EBS)'!P53+'Schedule IID (EBS)'!P53+'Schedule IIE (EBS)'!P53+'Schedule IIF (EBS)'!P53","v":0},{"$f":"'Schedule IIB (EBS)'!R53+'Schedule IIC (EBS)'!R53+'Schedule IID (EBS)'!R53+'Schedule IIE (EBS)'!R53+'Schedule IIF (EBS)'!R53","v":0},{"$f":"'Schedule IIB (EBS)'!T53+'Schedule IIC (EBS)'!T53+'Schedule IID (EBS)'!T53+'Schedule IIE (EBS)'!T53+'Schedule IIF (EBS)'!T53","v":0},null,0.2,null,0,null,0]
[null,"Intangible assets","Sch IIB, IIC, IID, IIE and IIF Line (30)",{"$f":"'Schedule IIB (EBS)'!D54+'Schedule IIC (EBS)'!D54+'Schedule IID (EBS)'!D54+'Schedule IIE (EBS)'!D54+'Schedule IIF (EBS)'!D54","v":0},{"$f":"'Schedule IIB (EBS)'!F54+'Schedule IIC (EBS)'!F54+'Schedule IID (EBS)'!F54+'Schedule IIE (EBS)'!F54+'Schedule IIF (EBS)'!F54","v":0},{"$f":"'Schedule IIB (EBS)'!H54+'Schedule IIC (EBS)'!H54+'Schedule IID (EBS)'!H54+'Schedule IIE (EBS)'!H54+'Schedule IIF (EBS)'!H54","v":0},{"$f":"'Schedule IIB (EBS)'!J54+'Schedule IIC (EBS)'!J54+'Schedule IID (EBS)'!J54+'Schedule IIE (EBS)'!J54+'Schedule IIF (EBS)'!J54","v":0},{"$f":"'Schedule IIB (EBS)'!L54+'Schedule IIC (EBS)'!L54+'Schedule IID (EBS)'!L54+'Schedule IIE (EBS)'!L54+'Schedule IIF (EBS)'!L54","v":0},{"$f":"'Schedule IIB (EBS)'!N54+'Schedule IIC (EBS)'!N54+'Schedule IID (EBS)'!N54+'Schedule IIE (EBS)'!N54+'Schedule IIF (EBS)'!N54","v":0},{"$f":"'Schedule IIB (EBS)'!P54+'Schedule IIC (EBS)'!P54+'Schedule IID (EBS)'!P54+'Schedule IIE (EBS)'!P54+'Schedule IIF (EBS)'!P54","v":0},{"$f":"'Schedule IIB (EBS)'!R54+'Schedule IIC (EBS)'!R54+'Schedule IID (EBS)'!R54+'Schedule IIE (EBS)'!R54+'Schedule IIF (EBS)'!R54","v":0},{"$f":"'Schedule IIB (EBS)'!T54+'Schedule IIC (EBS)'!T54+'Schedule IID (EBS)'!T54+'Schedule IIE (EBS)'!T54+'Schedule IIF (EBS)'!T54","v":0},null,0.2,null,0,null,0]
[null,"Pension Benefit Surplus","Sch IIB, IIC, IID, IIE and IIF Line (31)",{"$f":"'Schedule IIB (EBS)'!D55+'Schedule IIC (EBS)'!D55+'Schedule IID (EBS)'!D55+'Schedule IIE (EBS)'!D55+'Schedule IIF (EBS)'!D55","v":0},{"$f":"'Schedule IIB (EBS)'!F55+'Schedule IIC (EBS)'!F55+'Schedule IID (EBS)'!F55+'Schedule IIE (EBS)'!F55+'Schedule IIF (EBS)'!F55","v":0},{"$f":"'Schedule IIB (EBS)'!H55+'Schedule IIC (EBS)'!H55+'Schedule IID (EBS)'!H55+'Schedule IIE (EBS)'!H55+'Schedule IIF (EBS)'!H55","v":0},{"$f":"'Schedule IIB (EBS)'!J55+'Schedule IIC (EBS)'!J55+'Schedule IID (EBS)'!J55+'Schedule IIE (EBS)'!J55+'Schedule IIF (EBS)'!J55","v":0},{"$f":"'Schedule IIB (EBS)'!L55+'Schedule IIC (EBS)'!L55+'Schedule IID (EBS)'!L55+'Schedule IIE (EBS)'!L55+'Schedule IIF (EBS)'!L55","v":0},{"$f":"'Schedule IIB (EBS)'!N55+'Schedule IIC (EBS)'!N55+'Schedule IID (EBS)'!N55+'Schedule IIE (EBS)'!N55+'Schedule IIF (EBS)'!N55","v":0},{"$f":"'Schedule IIB (EBS)'!P55+'Schedule IIC (EBS)'!P55+'Schedule IID (EBS)'!P55+'Schedule IIE (EBS)'!P55+'Schedule IIF (EBS)'!P55","v":0},{"$f":"'Schedule IIB (EBS)'!R55+'Schedule IIC (EBS)'!R55+'Schedule IID (EBS)'!R55+'Schedule IIE (EBS)'!R55+'Schedule IIF (EBS)'!R55","v":0},{"$f":"'Schedule IIB (EBS)'!T55+'Schedule IIC (EBS)'!T55+'Schedule IID (EBS)'!T55+'Schedule IIE (EBS)'!T55+'Schedule IIF (EBS)'!T55","v":0},null,0.2,null,0,null,0]
[null,"Equity Derivatives on Type 2 Equities","Sch IIB, IIC, IID, IIE and IIF Line (32)",{"$f":"'Schedule IIB (EBS)'!D56+'Schedule IIC (EBS)'!D56+'Schedule IID (EBS)'!D56+'Schedule IIE (EBS)'!D56+'Schedule IIF (EBS)'!D56","v":0},{"$f":"'Schedule IIB (EBS)'!F56+'Schedule IIC (EBS)'!F56+'Schedule IID (EBS)'!F56+'Schedule IIE (EBS)'!F56+'Schedule IIF (EBS)'!F56","v":0},{"$f":"'Schedule IIB (EBS)'!H56+'Schedule IIC (EBS)'!H56+'Schedule IID (EBS)'!H56+'Schedule IIE (EBS)'!H56+'Schedule IIF (EBS)'!H56","v":0},{"$f":"'Schedule IIB (EBS)'!J56+'Schedule IIC (EBS)'!J56+'Schedule IID (EBS)'!J56+'Schedule IIE (EBS)'!J56+'Schedule IIF (EBS)'!J56","v":0},{"$f":"'Schedule IIB (EBS)'!L56+'Schedule IIC (EBS)'!L56+'Schedule IID (EBS)'!L56+'Schedule IIE (EBS)'!L56+'Schedule IIF (EBS)'!L56","v":0},{"$f":"'Schedule IIB (EBS)'!N56+'Schedule IIC (EBS)'!N56+'Schedule IID (EBS)'!N56+'Schedule IIE (EBS)'!N56+'Schedule IIF (EBS)'!N56","v":0},{"$f":"'Schedule IIB (EBS)'!P56+'Schedule IIC (EBS)'!P56+'Schedule IID (EBS)'!P56+'Schedule IIE (EBS)'!P56+'Schedule IIF (EBS)'!P56","v":0},{"$f":"'Schedule IIB (EBS)'!R56+'Schedule IIC (EBS)'!R56+'Schedule IID (EBS)'!R56+'Schedule IIE (EBS)'!R56+'Schedule IIF (EBS)'!R56","v":0},{"$f":"'Schedule IIB (EBS)'!T56+'Schedule IIC (EBS)'!T56+'Schedule IID (EBS)'!T56+'Schedule IIE (EBS)'!T56+'Schedule IIF (EBS)'!T56","v":0},null,0.45,null,0,null,0]
[]
[null,"Subtotal - Type 2 Equity Holdings",null,{"$f":"SUM(D27:D33)","v":0},{"$f":"SUM(E27:E33)","v":0},0,0,0,0,0,0,{"$f":"SUM(L27:L33)","v":0},null,null,null,{"$f":"MAX(SUM(P27:P33),0)","v":0},null,{"$f":"MAX(SUM(R27:R33),0)","v":0}]
[]
[null,"Type 3 Equity Holdings"]
[null,"Infrastructure","Sch IIB, IIC, IID, IIE and IIF Line (33)",{"$f":"'Schedule IIB (EBS)'!D57+'Schedule IIC (EBS)'!D57+'Schedule IID (EBS)'!D57+'Schedule IIE (EBS)'!D57+'Schedule IIF (EBS)'!D57","v":0},{"$f":"'Schedule IIB (EBS)'!F57+'Schedule IIC (EBS)'!F57+'Schedule IID (EBS)'!F57+'Schedule IIE (EBS)'!F57+'Schedule IIF (EBS)'!F57","v":0},{"$f":"'Schedule IIB (EBS)'!H57+'Schedule IIC (EBS)'!H57+'Schedule IID (EBS)'!H57+'Schedule IIE (EBS)'!H57+'Schedule IIF (EBS)'!H57","v":0},{"$f":"'Schedule IIB (EBS)'!J57+'Schedule IIC (EBS)'!J57+'Schedule IID (EBS)'!J57+'Schedule IIE (EBS)'!J57+'Schedule IIF (EBS)'!J57","v":0},{"$f":"'Schedule IIB (EBS)'!L57+'Schedule IIC (EBS)'!L57+'Schedule IID (EBS)'!L57+'Schedule IIE (EBS)'!L57+'Schedule IIF (EBS)'!L57","v":0},{"$f":"'Schedule IIB (EBS)'!N57+'Schedule IIC (EBS)'!N57+'Schedule IID (EBS)'!N57+'Schedule IIE (EBS)'!N57+'Schedule IIF (EBS)'!N57","v":0},{"$f":"'Schedule IIB (EBS)'!P57+'Schedule IIC (EBS)'!P57+'Schedule IID (EBS)'!P57+'Schedule IIE (EBS)'!P57+'Schedule IIF (EBS)'!P57","v":0},{"$f":"'Schedule IIB (EBS)'!R57+'Schedule IIC (EBS)'!R57+'Schedule IID (EBS)'!R57+'Schedule IIE (EBS)'!R57+'Schedule IIF (EBS)'!R57","v":0},{"$f":"'Schedule IIB (EBS)'!T57+'Schedule IIC (EBS)'!T57+'Schedule IID (EBS)'!T57+'Schedule IIE (EBS)'!T57+'Schedule IIF (EBS)'!T57","v":0},null,0.25,null,{"$f":"MAX(D37-E37,0)+(F37-G37)+MAX(H37-I37,0)+(K37-J37)","v":0},null,{"$f":"MAX(D37-E37,0)+(F37-G37)+MAX(H37-I37,0)+(L37-J37)","v":0}]
[null,"Derivatives on Infrastructure","Sch IIB, IIC, IID, IIE and IIF Line (34)",{"$f":"'Schedule IIB (EBS)'!D58+'Schedule IIC (EBS)'!D58+'Schedule IID (EBS)'!D58+'Schedule IIE (EBS)'!D58+'Schedule IIF (EBS)'!D58","v":0},{"$f":"'Schedule IIB (EBS)'!F58+'Schedule IIC (EBS)'!F58+'Schedule IID (EBS)'!F58+'Schedule IIE (EBS)'!F58+'Schedule IIF (EBS)'!F58","v":0},{"$f":"'Schedule IIB (EBS)'!H58+'Schedule IIC (EBS)'!H58+'Schedule IID (EBS)'!H58+'Schedule IIE (EBS)'!H58+'Schedule IIF (EBS)'!H58","v":0},{"$f":"'Schedule IIB (EBS)'!J58+'Schedule IIC (EBS)'!J58+'Schedule IID (EBS)'!J58+'Schedule IIE (EBS)'!J58+'Schedule IIF (EBS)'!J58","v":0},{"$f":"'Schedule IIB (EBS)'!L58+'Schedule IIC (EBS)'!L58+'Schedule IID (EBS)'!L58+'Schedule IIE (EBS)'!L58+'Schedule IIF (EBS)'!L58","v":0},{"$f":"'Schedule IIB (EBS)'!N58+'Schedule IIC (EBS)'!N58+'Schedule IID (EBS)'!N58+'Schedule IIE (EBS)'!N58+'Schedule IIF (EBS)'!N58","v":0},{"$f":"'Schedule IIB (EBS)'!P58+'Schedule IIC (EBS)'!P58+'Schedule IID (EBS)'!P58+'Schedule IIE (EBS)'!P58+'Schedule IIF (EBS)'!P58","v":0},{"$f":"'Schedule IIB (EBS)'!R58+'Schedule IIC (EBS)'!R58+'Schedule IID (EBS)'!R58+'Schedule IIE (EBS)'!R58+'Schedule IIF (EBS)'!R58","v":0},{"$f":"'Schedule IIB (EBS)'!T58+'Schedule IIC (EBS)'!T58+'Schedule IID (EBS)'!T58+'Schedule IIE (EBS)'!T58+'Schedule IIF (EBS)'!T58","v":0},null,0.25,null,{"$f":"MAX(D38-E38,0)+(F38-G38)+MAX(H38-I38,0)+(K38-J38)","v":0},null,0]
[]
[null,"Subtotal - Type 3 Equity Holdings",null,{"$f":"SUM(D37:D39)","v":0},{"$f":"SUM(E37:E39)","v":0},0,0,0,0,0,0,{"$f":"SUM(L37:L39)","v":0},null,null,null,{"$f":"MAX(SUM(P37:P39),0)","v":0},null,{"$f":"MAX(SUM(R37:R39),0)","v":0}]
[]
[null,"Type 4 Equity Holdings"]
[null,"Equity Real Estate 1","Sch IIB, IIC, IID, IIE and IIF Line (35)",{"$f":"'Schedule IIB (EBS)'!D59+'Schedule IIC (EBS)'!D59+'Schedule IID (EBS)'!D59+'Schedule IIE (EBS)'!D59+'Schedule IIF (EBS)'!D59","v":0},{"$f":"'Schedule IIB (EBS)'!F59+'Schedule IIC (EBS)'!F59+'Schedule IID (EBS)'!F59+'Schedule IIE (EBS)'!F59+'Schedule IIF (EBS)'!F59","v":0},{"$f":"'Schedule IIB (EBS)'!H59+'Schedule IIC (EBS)'!H59+'Schedule IID (EBS)'!H59+'Schedule IIE (EBS)'!H59+'Schedule IIF (EBS)'!H59","v":0},{"$f":"'Schedule IIB (EBS)'!J59+'Schedule IIC (EBS)'!J59+'Schedule IID (EBS)'!J59+'Schedule IIE (EBS)'!J59+'Schedule IIF (EBS)'!J59","v":0},{"$f":"'Schedule IIB (EBS)'!L59+'Schedule IIC (EBS)'!L59+'Schedule IID (EBS)'!L59+'Schedule IIE (EBS)'!L59+'Schedule IIF (EBS)'!L59","v":0},{"$f":"'Schedule IIB (EBS)'!N59+'Schedule IIC (EBS)'!N59+'Schedule IID (EBS)'!N59+'Schedule IIE (EBS)'!N59+'Schedule IIF (EBS)'!N59","v":0},{"$f":"'Schedule IIB (EBS)'!P59+'Schedule IIC (EBS)'!P59+'Schedule IID (EBS)'!P59+'Schedule IIE (EBS)'!P59+'Schedule IIF (EBS)'!P59","v":0},{"$f":"'Schedule IIB (EBS)'!R59+'Schedule IIC (EBS)'!R59+'Schedule IID (EBS)'!R59+'Schedule IIE (EBS)'!R59+'Schedule IIF (EBS)'!R59","v":0},{"$f":"'Schedule IIB (EBS)'!T59+'Schedule IIC (EBS)'!T59+'Schedule IID (EBS)'!T59+'Schedule IIE (EBS)'!T59+'Schedule IIF (EBS)'!T59","v":0},null,0.1,null,{"$f":"MAX(D43-E43,0)+(F43-G43)+MAX(H43-I43,0)+(K43-J43)","v":0},null,{"$f":"MAX(D43-E43,0)+(F43-G43)+MAX(H43-I43,0)+(L43-J43)","v":0}]
[null,"Equity Real Estate 2","Sch IIB, IIC, IID, IIE and IIF Line (36)",{"$f":"'Schedule IIB (EBS)'!D60+'Schedule IIC (EBS)'!D60+'Schedule IID (EBS)'!D60+'Schedule IIE (EBS)'!D60+'Schedule IIF (EBS)'!D60","v":0},{"$f":"'Schedule IIB (EBS)'!F60+'Schedule IIC (EBS)'!F60+'Schedule IID (EBS)'!F60+'Schedule IIE (EBS)'!F60+'Schedule IIF (EBS)'!F60","v":0},{"$f":"'Schedule IIB (EBS)'!H60+'Schedule IIC (EBS)'!H60+'Schedule IID (EBS)'!H60+'Schedule IIE (EBS)'!H60+'Schedule IIF (EBS)'!H60","v":0},{"$f":"'Schedule IIB (EBS)'!J60+'Schedule IIC (EBS)'!J60+'Schedule IID (EBS)'!J60+'Schedule IIE (EBS)'!J60+'Schedule IIF (EBS)'!J60","v":0},{"$f":"'Schedule IIB (EBS)'!L60+'Schedule IIC (EBS)'!L60+'Schedule IID (EBS)'!L60+'Schedule IIE (EBS)'!L60+'Schedule IIF (EBS)'!L60","v":0},{"$f":"'Schedule IIB (EBS)'!N60+'Schedule IIC (EBS)'!N60+'Schedule IID (EBS)'!N60+'Schedule IIE (EBS)'!N60+'Schedule IIF (EBS)'!N60","v":0},{"$f":"'Schedule IIB (EBS)'!P60+'Schedule IIC (EBS)'!P60+'Schedule IID (EBS)'!P60+'Schedule IIE (EBS)'!P60+'Schedule IIF (EBS)'!P60","v":0},{"$f":"'Schedule IIB (EBS)'!R60+'Schedule IIC (EBS)'!R60+'Schedule IID (EBS)'!R60+'Schedule IIE (EBS)'!R60+'Schedule IIF (EBS)'!R60","v":0},{"$f":"'Schedule IIB (EBS)'!T60+'Schedule IIC (EBS)'!T60+'Schedule IID (EBS)'!T60+'Schedule IIE (EBS)'!T60+'Schedule IIF (EBS)'!T60","v":0},null,0.2,null,{"$f":"MAX(D44-E44,0)+(F44-G44)+MAX(H44-I44,0)+(K44-J44)","v":0},null,0]
[]
[null,"Subtotal - Type 4 Equity Holdings",null,{"$f":"SUM(D43:D45)","v":0},{"$f":"SUM(E43:E45)","v":0},0,0,0,0,0,{"$f":"SUM(K43:K45)","v":0},{"$f":"SUM(L43:L45)","v":0},null,null,null,{"$f":"MAX(SUM(P43:P45),0)","v":0},null,{"$f":"MAX(SUM(R43:R45),0)","v":0}]
[]
[null,"Total Equity Risk before Diversification",null,{"$f":"D40+D34+D24+D46","v":0},{"$f":"E40+E34+E24+E46","v":0},0,0,0,0,0,{"$f":"K40+K34+K24+K46","v":0},{"$f":"L40+L34+L24+L46","v":0},null,null,null,{"$f":"P40+P34+P24+P46","v":0},null,{"$f":"R40+R34+R24+R46","v":0}]
[]
[null,"Aggregation of Risks","Correlation Matrix","Type 1","Type 2","Type 3","Type 4"]
[null,null,"Type 1",1,0.75,0.75,0.5,null,null,null,null,null,null,"Total Type 1 Risk ",null,{"$f":"P24","v":0},null,{"$f":"R24","v":0}]
[null,null,"Type 2",0.75,1,0.75,0.5,null,null,null,null,null,null,"Total Type 2 Risk ",null,{"$f":"P34","v":0},null,{"$f":"R34","v":0}]
[null,null,"Type 3",0.75,0.75,1,0.5,null,null,null,null,null,null,"Total Type 3 Risk",null,{"$f":"P40","v":0},null,{"$f":"R40","v":0}]
[null,null,"Type 4",0.5,0.5,0.5,1,null,null,null,null,null,null,"Total Type 4 Risk",null,{"$f":"P46","v":0},null,{"$f":"R46","v":0}]
[]
[null,"Total Equity Risk (Post Diversification) ",null,null,null,null,null,null,null,null,null,null,null,null,null,{"$f":"SQRT(MMULT(TRANSPOSE($P$51:$P$54),MMULT($D$51:$G$54,$P$51:$P$54)))","v":0},null,{"$f":"SQRT(MMULT(TRANSPOSE($R$51:$R$54),MMULT($D$51:$G$54,$R$51:$R$54)))","v":0}]

{"sheet":"Equity Grandfathering","index":83,"n_rows":51,"n_cols":17,"rows_kept":51,"cut":false,"hidden":false,"merged":[[12,1,12,4],[0,16,0,17]]}
[null,null,null,"Calculation of Grandfathered Equity Limits",null,null,null,null,null,null,null,null,null,"Application of Grandfathered Equity Limits",null,null,{"$f":"HYPERLINK(\"#'Index'!A1\",\"Return to Index\")","v":"Return to Index"}]
[]
[null,null,null,null,null,null,null,null,null,null,null,null,"Application of Grandfathered Equity Limits"]
[]
[null,null,null,null,null,null,null,null,null,null,null,null,null,"Current"]
[null,null,null,null,null,null,null,null,null,null,null,null,"Year",{"$f":"YEAR('Insurer Information'!C3)","v":2019}]
[null,null,null,null,null,null,null,null,null,null,null,null,"Legacy Reserves",0]
[null,null,null,null,null,null,null,null,null,null,null,null,"Other reserves",0]
[null,null,null,null,null,null,null,null,null,null,null,null,"Capped legacy reserves",{"$f":"MIN(N7,E46)","v":0}]
[null,null,null,null,null,null,null,null,null,null,null,null,"Grandfathered percentage",{"$f":"F50","v":0}]
[null,null,null,null,null,null,null,null,null,null,null,null,"Grandfathered Equities",{"$f":"N10*N9","v":0}]
[]
[null,"Historical Equity Holdings",null,null,null,null,null,null,"Percentages"]
[null,"Year",2016,2017,2018,null,2016,2017,2018,"Average",null,null,null,"Available for","Actual Market Value","Grandfathered","Non-Grandfathered"]
[null,"Type 1",null,null,null,null,null,null,null,null,null,null,"Type 1","Grandfathering","as of Valuation Date","Amount","Amount"]
["Equity classes","Strategic Holdings - Listed",null,null,null,null,{"$f":"IF(C$42=0,0,C16/C$42)","v":0},0,0,{"$f":"AVERAGE(G16:I16)","v":0},null,null,"Strategic Holdings - Listed",{"$f":"N$11*$J16","v":0},{"$f":"'Schedule IIB (EBS)'!D39+'Schedule IIC (EBS)'!D39+'Schedule IID (EBS)'!D39+'Schedule IIE (EBS)'!D39+'Schedule IIF (EBS)'!D39","v":0},{"$f":"MIN(N16,O16)","v":0},{"$f":"O16-P16","v":0}]
[null,"Duration based",null,null,null,null,0,0,0,{"$f":"AVERAGE(G17:I17)","v":0},null,null,"Duration based",{"$f":"N$11*$J17","v":0},{"$f":"'Schedule IIB (EBS)'!D40+'Schedule IIC (EBS)'!D40+'Schedule IID (EBS)'!D40+'Schedule IIE (EBS)'!D40+'Schedule IIF (EBS)'!D40","v":0},{"$f":"MIN(N17,O17)","v":0},{"$f":"O17-P17","v":0}]
[null,"Listed equities in developed markets",null,null,null,null,0,0,0,{"$f":"AVERAGE(G18:I18)","v":0},null,null,"Listed equities in developed markets",{"$f":"N$11*$J18","v":0},{"$f":"'Schedule IIB (EBS)'!D41+'Schedule IIC (EBS)'!D41+'Schedule IID (EBS)'!D41+'Schedule IIE (EBS)'!D41+'Schedule IIF (EBS)'!D41","v":0},0,0]
[null,"Preferred Stocks, BSCR Rating 1",null,null,null,null,0,0,0,{"$f":"AVERAGE(G19:I19)","v":0},null,null,"Preferred Stocks, BSCR Rating 1",{"$f":"N$11*$J19","v":0},{"$f":"'Schedule IIB (EBS)'!D42+'Schedule IIC (EBS)'!D42+'Schedule IID (EBS)'!D42+'Schedule IIE (EBS)'!D42+'Schedule IIF (EBS)'!D42","v":0},0,0]
[null,"Preferred Stocks, BSCR Rating 2",null,null,null,null,0,0,0,{"$f":"AVERAGE(G20:I20)","v":0},null,null,"Preferred Stocks, BSCR Rating 2",{"$f":"N$11*$J20","v":0},{"$f":"'Schedule IIB (EBS)'!D43+'Schedule IIC (EBS)'!D43+'Schedule IID (EBS)'!D43+'Schedule IIE (EBS)'!D43+'Schedule IIF (EBS)'!D43","v":0},0,0]
[null,"Preferred Stocks, BSCR Rating 3",null,null,null,null,0,0,0,0,null,null,"Preferred Stocks, BSCR Rating 3",0,{"$f":"'Schedule IIB (EBS)'!D44+'Schedule IIC (EBS)'!D44+'Schedule IID (EBS)'!D44+'Schedule IIE (EBS)'!D44+'Schedule IIF (EBS)'!D44","v":0},0,0]
[null,"Preferred Stocks, BSCR Rating 4",null,null,null,null,0,0,0,0,null,null,"Preferred Stocks, BSCR Rating 4",0,{"$f":"'Schedule IIB (EBS)'!D45+'Schedule IIC (EBS)'!D45+'Schedule IID (EBS)'!D45+'Schedule IIE (EBS)'!D45+'Schedule IIF (EBS)'!D45","v":0},0,0]
[null,"Preferred Stocks, BSCR Rating 5",null,null,null,null,0,0,0,0,null,null,"Preferred Stocks, BSCR Rating 5",0,{"$f":"'Schedule IIB (EBS)'!D46+'Schedule IIC (EBS)'!D46+'Schedule IID (EBS)'!D46+'Schedule IIE (EBS)'!D46+'Schedule IIF (EBS)'!D46","v":0},0,0]
[null,"Preferred Stocks, BSCR Rating 6",null,null,null,null,0,0,0,0,null,null,"Preferred Stocks, BSCR Rating 6",0,{"$f":"'Schedule IIB (EBS)'!D47+'Schedule IIC (EBS)'!D47+'Schedule IID (EBS)'!D47+'Schedule IIE (EBS)'!D47+'Schedule IIF (EBS)'!D47","v":0},0,0]
[null,"Preferred Stocks, BSCR Rating 7",null,null,null,null,0,0,0,0,null,null,"Preferred Stocks, BSCR Rating 7",0,{"$f":"'Schedule IIB (EBS)'!D48+'Schedule IIC (EBS)'!D48+'Schedule IID (EBS)'!D48+'Schedule IIE (EBS)'!D48+'Schedule IIF (EBS)'!D48","v":0},0,0]
[null,"Preferred Stocks, BSCR Rating 8",null,null,null,null,0,0,0,0,null,null,"Preferred Stocks, BSCR Rating 8",0,{"$f":"'Schedule IIB (EBS)'!D49+'Schedule IIC (EBS)'!D49+'Schedule IID (EBS)'!D49+'Schedule IIE (EBS)'!D49+'Schedule IIF (EBS)'!D49","v":0},0,0]
[null,"Equity derivatives on type 1",null,null,null,null,0,0,0,0,null,null,"Equity derivatives on type 1",0,{"$f":"'Schedule IIB (EBS)'!D50+'Schedule IIC (EBS)'!D50+'Schedule IID (EBS)'!D50+'Schedule IIE (EBS)'!D50+'Schedule IIF (EBS)'!D50","v":0},0,0]
[null,"Type 2",null,null,null,null,null,null,null,null,null,null,"Type 2"]
[null,"Strategic Holdings- Unlisted",null,null,null,null,{"$f":"IF(C$42=0,0,C29/C$42)","v":0},0,0,{"$f":"AVERAGE(G29:I29)","v":0},null,null,"Strategic Holdings- Unlisted",{"$f":"N$11*$J29","v":0},{"$f":"'Schedule IIB (EBS)'!D51+'Schedule IIC (EBS)'!D51+'Schedule IID (EBS)'!D51+'Schedule IIE (EBS)'!D51+'Schedule IIF (EBS)'!D51","v":0},0,0]
[null,"Other Equities",null,null,null,null,0,0,0,0,null,null,"Other Equities",0,{"$f":"'Schedule IIB (EBS)'!D52+'Schedule IIC (EBS)'!D52+'Schedule IID (EBS)'!D52+'Schedule IIE (EBS)'!D52+'Schedule IIF (EBS)'!D52","v":0},0,0]
[null,"Letters of Credit",null,null,null,null,0,0,0,0,null,null,"Letters of Credit",0,{"$f":"'Schedule IIB (EBS)'!D53+'Schedule IIC (EBS)'!D53+'Schedule IID (EBS)'!D53+'Schedule IIE (EBS)'!D53+'Schedule IIF (EBS)'!D53","v":0},0,0]
[null,"Intangible Assets",null,null,null,null,0,0,0,0,null,null,"Intangible Assets",0,{"$f":"'Schedule IIB (EBS)'!D54+'Schedule IIC (EBS)'!D54+'Schedule IID (EBS)'!D54+'Schedule IIE (EBS)'!D54+'Schedule IIF (EBS)'!D54","v":0},0,0]
[null,"Pension Benefit Surplus",null,null,null,null,0,0,0,0,null,null,"Pension Benefit Surplus",0,{"$f":"'Schedule IIB (EBS)'!D55+'Schedule IIC (EBS)'!D55+'Schedule IID (EBS)'!D55+'Schedule IIE (EBS)'!D55+'Schedule IIF (EBS)'!D55","v":0},0,0]
[null,"Equity Derivatives on Type 2",null,null,null,null,0,0,0,0,null,null,"Equity Derivatives on Type 2",0,{"$f":"'Schedule IIB (EBS)'!D56+'Schedule IIC (EBS)'!D56+'Schedule IID (EBS)'!D56+'Schedule IIE (EBS)'!D56+'Schedule IIF (EBS)'!D56","v":0},0,0]
[null,"Type 3",null,null,null,null,null,null,null,null,null,null,"Type 3"]
[null,"Infrastructure",null,null,null,null,{"$f":"IF(C$42=0,0,C36/C$42)","v":0},0,0,0,null,null,"Infrastructure",{"$f":"N$11*$J36","v":0},{"$f":"'Schedule IIB (EBS)'!D57+'Schedule IIC (EBS)'!D57+'Schedule IID (EBS)'!D57+'Schedule IIE (EBS)'!D57+'Schedule IIF (EBS)'!D57","v":0},0,0]
[null,"Derivatives on Infrastructure",null,null,null,null,0,0,0,0,null,null,"Derivatives on Infrastructure",{"$f":"N$11*$J37","v":0},{"$f":"'Schedule IIB (EBS)'!D58+'Schedule IIC (EBS)'!D58+'Schedule IID (EBS)'!D58+'Schedule IIE (EBS)'!D58+'Schedule IIF (EBS)'!D58","v":0},0,0]
[null,"Type 4",null,null,null,null,null,null,null,null,null,null,"Type 4"]
[null,"Equity real estate 1",null,null,null,null,{"$f":"IF(C$42=0,0,C39/C$42)","v":0},0,0,0,null,null,"Equity real estate 1",{"$f":"N$11*$J39","v":0},{"$f":"'Schedule IIB (EBS)'!D59+'Schedule IIC (EBS)'!D59+'Schedule IID (EBS)'!D59+'Schedule IIE (EBS)'!D59+'Schedule IIF (EBS)'!D59","v":0},0,0]
[null,"Equity real estate 2",null,null,null,null,0,0,0,0,null,null,"Equity real estate 2",{"$f":"N$11*$J40","v":0},{"$f":"'Schedule IIB (EBS)'!D60+'Schedule IIC (EBS)'!D60+'Schedule IID (EBS)'!D60+'Schedule IIE (EBS)'!D60+'Schedule IIF (EBS)'!D60","v":0},0,0]
[null,null,null,null,null,null,null,null,null,{"$f":"SUM(J16:J40)","v":0},null,null,"Total",{"$f":"SUM(N16:N40)","v":0},{"$f":"SUM(O16:O40)","v":0},{"$f":"SUM(P16:P40)","v":0},{"$f":"SUM(Q16:Q40)","v":0}]
[null,"Total",{"$f":"SUM(C16:C40)","v":0},{"$f":"SUM(D16:D40)","v":0},{"$f":"SUM(E16:E40)","v":0},null,null,null,null,null,null,null,"In Equity Risk Calculations",null,{"$f":"'Equity Investments (Revised)'!D48","v":0},{"$f":"'Equity Investments (Grandf)'!$D$51","v":0},{"$f":"'Equity Investments (Non-Grandf)'!$D$48","v":0}]
[null,null,null,null,null,null,null,null,null,null,null,null,"Check",null,{"$f":"O41-O42","v":0},{"$f":"P41-P42","v":0},{"$f":"Q41-Q42","v":0}]
[null,"P&C reserves",null,null,null,null,null,null,null,null,null,null,null,null,{"$f":"IF(ROUND(O43,0)<>0,\"Actual amount of equities must match the amount of equities filled in the new equity risk calculation without Grandfathering\",\"OK\")","v":"OK"},{"$f":"IF(ROUND(P43,0)<>0,\"Amount of equities included in the Grandfathered equity risk calculation must match the Grandfathered Amount here\",\"OK\")","v":"OK"},{"$f":"IF(ROUND(Q43,0)<>0,\"Amount of equities included in the new Non-Grandfathered equity risk calculation must match the Non-Grandfathered Amount here\",\"OK\")","v":"OK"}]
[]
[null,"Long Term Reserves"]
[null,"Percentage",{"$f":"IF(C46=0,0,C42/C46)","v":0},{"$f":"IF(D46=0,0,D42/D46)","v":0},{"$f":"IF(E46=0,0,E42/E46)","v":0}]
[null,"Average 3 year %",null,null,null,{"$f":"AVERAGE(C47:E47)","v":0}]
[null,"Long Term reserves % of total",null,null,null,{"$f":"IF((E46+E44)=0,0,E46/(E46+E44))","v":0}]
[null,"Allowable average 3 year %",null,null,null,{"$f":"F49*F48","v":0}]
[null,"Grandfathered Equity amount",null,null,null,{"$f":"F50*E46","v":0}]

{"sheet":"Equity Investments (Grandf)","index":84,"n_rows":51,"n_cols":6,"rows_kept":51,"cut":false,"hidden":false,"merged":[[0,5,0,6],[52,0,52,1]]}
["EQUITY INVESTMENTS - GRANDFATHERED EQUITY PORTION ONLY",null,null,null,null,{"$f":"HYPERLINK(\"#'Index'!A1\",\"Return to Index\")","v":"Return to Index"}]
[{"$f":"'Insurer Information'!C7","v":"Enter Company Name"}]
[{"$f":"\"Equity Investment Risk\"& \" ($\" & IF(CONFIGURATION!$B$12>1,\"'\"&MID(CONFIGURATION!$B$12,2,LEN(CONFIGURATION!$B$12)),\"\") & \")\"","v":"Equity Investment Risk ($'000)"},null,{"$f":" TEXT('Insurer Information'!C3,\"mmmm dd, yyyy\")","v":"December 31, 2019"},"(1)","(2)","(3)"]
[]
[]
[null,"TYPE OF ",null,"ASSET","CAPITAL","REQUIRED"]
[null,"EQUITY INVESTMENTS","STATEMENT SOURCE","VALUE","FACTOR","CAPITAL"]
[]
[null,"(a)  Common Stocks",null,null,null,"(1) x (2)"]
[]
[null,"Non-Affiliated (Quoted)","Sch II EBS, Line (19), Column (1) and Sch IIA EBS, Line (19), Column (1)",{"$f":"'Grandfathered Equity Part'!D11","v":0},0.14399999999999999,{"$f":"IF(D11<0,0,D11*E11)","v":0}]
[null,"Non-Affiliated (Unquoted)","Sch II EBS, Line (20), Column (1) and Sch IIA EBS, Line (20), Column (1)",{"$f":"'Grandfathered Equity Part'!D12","v":0},0.14399999999999999,{"$f":"IF(D12<0,0,D12*E12)","v":0}]
[null,"Equity mutual funds","Sch II EBS, Line (21), Column (5) and Sch IIA EBS, Line (21), Column (5)",{"$f":"'Grandfathered Equity Part'!D13","v":0},0.14399999999999999,{"$f":"IF(D13<0,0,D13*E13)","v":0}]
[]
[null,"(a)  SUBTOTAL - COMMON STOCKS",null,{"$f":"SUM(D11:D13)","v":0},null,{"$f":"MAX(0,(SUM(F11:F13)))","v":0}]
[]
[null,"(b)  Preferred Stocks"]
[]
[null,"BSCR Rating"]
[null,1,"Sch II EBS, Line (11), Column (3) and Sch IIA EBS, Line (11), Column (3)",{"$f":"'Grandfathered Equity Part'!D20","v":0},6.0000000000000001E-3,{"$f":"IF(D20<0,0,D20*E20)","v":0}]
[null,2,"Sch II EBS, Line (12), Column (3) and Sch IIA EBS, Line (12), Column (3)",{"$f":"'Grandfathered Equity Part'!D21","v":0},1.2E-2,0]
[null,3,"Sch II EBS, Line (13), Column (3) and Sch IIA EBS, Line (13), Column (3)",{"$f":"'Grandfathered Equity Part'!D22","v":0},0.02,0]
[null,4,"Sch II EBS, Line (14), Column (3) and Sch IIA EBS, Line (14), Column (3)",{"$f":"'Grandfathered Equity Part'!D23","v":0},0.04,0]
[null,5,"Sch II EBS, Line (15), Column (3) and Sch IIA EBS, Line (15), Column (3)",{"$f":"'Grandfathered Equity Part'!D24","v":0},0.11,0]
[null,6,"Sch II EBS, Line (16), Column (3) and Sch IIA EBS, Line (16), Column (3)",{"$f":"'Grandfathered Equity Part'!D25","v":0},0.25,0]
[null,7,"Sch II EBS, Line (17), Column (3) and Sch IIA EBS, Line (17), Column (3)",{"$f":"'Grandfathered Equity Part'!D26","v":0},0.35,0]
[null,8,"Sch II EBS, Line (18), Column (3) and Sch IIA EBS, Line (18), Column (3)",{"$f":"'Grandfathered Equity Part'!D27","v":0},0.35,0]
[]
[null,"(b)  SUBTOTAL - PREFERRED STOCKS",null,{"$f":"SUM(D19:D27)","v":0},null,{"$f":"MAX(0,(SUM(F19:F27)))","v":0}]
[]
[null,"(c)  Other Equity Investments"]
[]
[null,"Real Estate"]
[null,"Company-Occupied Less Encumbrances","Form 4EBS, Line (7a)",{"$f":"'Grandfathered Equity Part'!D34","v":0},0.1,{"$f":"IF(D34<0,0,D34*E34)","v":0}]
[null,"Investments Less Encumbrances","Form 4EBS, Line (7b)",{"$f":"'Grandfathered Equity Part'!D35","v":0},0.2,{"$f":"IF(D35<0,0,D35*E35)","v":0}]
[]
[null,"Other Equity Investments","Form 4EBS, Lines (2e), (3e) & Schedule IIA EBS, Line 21, Column (7)",{"$f":"'Grandfathered Equity Part'!D37","v":0},0.2,{"$f":"IF(D37<0,0,D37*E37)","v":0}]
[null,"Other Tangible Assets (Net of Segregated Accounts Companies)","Form 4EBS, Lines (13k), (14d), and (36f) Less Form 4EBS, Lines (13b), (13c) and (13h)",{"$f":"'Grandfathered Equity Part'!D38","v":0},0.2,{"$f":"IF(D38<0,0,D38*E38)","v":0}]
[]
[null,"(c)  SUBTOTAL - OTHER EQUITY INVESTMENTS",null,{"$f":"SUM(D34:D35,D37:D38)","v":0},null,{"$f":"MAX(0,(SUM(F34:F38)))","v":0}]
[]
[null,"(d)  Investments in Affiliates"]
[]
[null,"Unregulated Entities That Conduct Ancillary Services","Form 4EBS, Line (4a)",{"$f":"'Grandfathered Equity Part'!D44","v":0},0.05,{"$f":"IF(D44<0,0,D44*E44)","v":0}]
[null,"Unregulated Non-Financial Operating Entities","Form 4EBS, Line (4b)",{"$f":"'Grandfathered Equity Part'!D45","v":0},0.2,{"$f":"IF(D45<0,0,D45*E45)","v":0}]
[null,"Unregulated Financial Operating Entities","Form 4EBS, Line (4c)",{"$f":"'Grandfathered Equity Part'!D46","v":0},0.55000000000000004,{"$f":"IF(D46<0,0,D46*E46)","v":0}]
[null,"Regulated Insurance Financial Operating Entities","Form 4EBS, Line (4e)",{"$f":"'Grandfathered Equity Part'!D47","v":0},0.2,{"$f":"IF(D47<0,0,D47*E47)","v":0}]
[]
[null,"(d)  SUBTOTAL - INVESTMENTS IN AFFILIATES",null,{"$f":"SUM(D44:D47)","v":0},null,{"$f":"MAX(0,SUM(F44:F47))","v":0}]
[]
[null,"(e)  TOTAL EQUITY INVESTMENTS [ (a) + (b) + (c) + (d) ]",null,{"$f":"D15+D29+D40+D49","v":0},null,{"$f":"MAX(0,(F15+F29+F40+F49))","v":0}]

{"sheet":"Equity Investments (Non-Grandf)","index":85,"n_rows":58,"n_cols":18,"rows_kept":58,"cut":false,"hidden":false,"merged":[[6,5,6,6],[6,7,6,8],[59,0,59,1],[0,17,0,18],[4,3,4,8],[4,9,4,11],[4,15,6,15],[5,3,6,4],[5,5,5,8],[5,9,6,9],[5,10,6,10],[5,11,6,11],[5,17,6,17]]}
["EQUITY INVESTMENTS (REVISED) - NON-GRANDFATHERED EQUITY PORTION ONLY",null,null,null,null,null,null,null,null,null,null,null,null,null,null,null,null,{"$f":"HYPERLINK(\"#'Index'!A1\",\"Return to Index\")","v":"Return to Index"}]
[{"$f":"'Insurer Information'!C7","v":"Enter Company Name"}]
[{"$f":"\"Equity Investment Risk\"& \" ($\" & IF(CONFIGURATION!$B$12>1,\"'\"&MID(CONFIGURATION!$B$12,2,LEN(CONFIGURATION!$B$12)),\"\") & \")\"","v":"Equity Investment Risk ($'000)"},null,{"$f":" TEXT('Insurer Information'!C3,\"mmmm dd, yyyy\")","v":"December 31, 2019"},null,null,null,null,null,null,null,null,null,null,null,null,null,null,"(3)"]
[]
[null,null,null,"ASSETS",null,null,null,null,null,"LIABILITIES",null,null,null,null,null,"WITHOUT MANAGEMENT ACTIONS"]
[null,null,null,"Long Exposure",null,"Short Exposure",null,null,null,null,"Without Mgmt Actions","With Mgmt Actions",null,{"$f":"YEAR('Insurer Information'!C3)","v":2019},null,null,null,"WITH MANAGEMENT ACTIONS"]
[null,"TYPE OF ",null,null,null,"Qualifying as Assets held for risk-mitigation purposes",null,"Not Qualifying as Assets held for risk-mitigation purposes",null,null,null,null,null,"CAPITAL"]
[null,"EQUITY INVESTMENTS","STATEMENT SOURCE","Before Shock","After Shock","Before Shock","After Shock","Before Shock","After Shock","Before Shock","After Shock","After Shock",null,"FACTOR",null,"REQUIRED CAPITAL",null,"CAPITAL"]
[]
[null,"Type 1 Equity Holdings"]
[null,"Strategic Holdings - Listed","Sch IIB, IIC, IID, IIE and IIF Line (15)",{"$f":"'Non-Grandfathered Equity Part'!D15","v":0},{"$f":"'Non-Grandfathered Equity Part'!F15","v":0},{"$f":"'Non-Grandfathered Equity Part'!H15","v":0},{"$f":"'Non-Grandfathered Equity Part'!J15","v":0},{"$f":"'Non-Grandfathered Equity Part'!L15","v":0},{"$f":"'Non-Grandfathered Equity Part'!N15","v":0},{"$f":"'Non-Grandfathered Equity Part'!P15","v":0},{"$f":"'Non-Grandfathered Equity Part'!R15","v":0},{"$f":"'Non-Grandfathered Equity Part'!T15","v":0},null,0.2,null,{"$f":"MAX(D11-E11,0)+(F11-G11)+MAX(H11-I11,0)+(K11-J11)","v":0},null,{"$f":"MAX(D11-E11,0)+(F11-G11)+MAX(H11-I11,0)+(L11-J11)","v":0}]
[null,"Duration Based","Sch IIB, IIC, IID, IIE and IIF Line (16)",{"$f":"'Non-Grandfathered Equity Part'!D16","v":0},{"$f":"'Non-Grandfathered Equity Part'!F16","v":0},{"$f":"'Non-Grandfathered Equity Part'!H16","v":0},{"$f":"'Non-Grandfathered Equity Part'!J16","v":0},{"$f":"'Non-Grandfathered Equity Part'!L16","v":0},{"$f":"'Non-Grandfathered Equity Part'!N16","v":0},{"$f":"'Non-Grandfathered Equity Part'!P16","v":0},{"$f":"'Non-Grandfathered Equity Part'!R16","v":0},{"$f":"'Non-Grandfathered Equity Part'!T16","v":0},null,0.2,null,0,null,{"$f":"MAX(D12-E12,0)+(F12-G12)+MAX(H12-I12,0)+(L12-J12)","v":0}]
[null,"Listed Equity Securities in Developed Markets","Sch IIB, IIC, IID, IIE and IIF Line (17)",{"$f":"'Non-Grandfathered Equity Part'!D17","v":0},{"$f":"'Non-Grandfathered Equity Part'!F17","v":0},{"$f":"'Non-Grandfathered Equity Part'!H17","v":0},{"$f":"'Non-Grandfathered Equity Part'!J17","v":0},{"$f":"'Non-Grandfathered Equity Part'!L17","v":0},{"$f":"'Non-Grandfathered Equity Part'!N17","v":0},{"$f":"'Non-Grandfathered Equity Part'!P17","v":0},{"$f":"'Non-Grandfathered Equity Part'!R17","v":0},{"$f":"'Non-Grandfathered Equity Part'!T17","v":0},null,0.35,null,0,null,0]
[null,"Preferred Stocks, BSCR Rating 1","Sch IIB, IIC, IID, IIE and IIF Line (18)",{"$f":"'Non-Grandfathered Equity Part'!D18","v":0},{"$f":"'Non-Grandfathered Equity Part'!F18","v":0},{"$f":"'Non-Grandfathered Equity Part'!H18","v":0},{"$f":"'Non-Grandfathered Equity Part'!J18","v":0},{"$f":"'Non-Grandfathered Equity Part'!L18","v":0},{"$f":"'Non-Grandfathered Equity Part'!N18","v":0},{"$f":"'Non-Grandfathered Equity Part'!P18","v":0},{"$f":"'Non-Grandfathered Equity Part'!R18","v":0},{"$f":"'Non-Grandfathered Equity Part'!T18","v":0},null,6.0000000000000001E-3,null,0,null,0]
[null,"Preferred Stocks, BSCR Rating 2","Sch IIB, IIC, IID, IIE and IIF Line (19)",{"$f":"'Non-Grandfathered Equity Part'!D19","v":0},{"$f":"'Non-Grandfathered Equity Part'!F19","v":0},{"$f":"'Non-Grandfathered Equity Part'!H19","v":0},{"$f":"'Non-Grandfathered Equity Part'!J19","v":0},{"$f":"'Non-Grandfathered Equity Part'!L19","v":0},{"$f":"'Non-Grandfathered Equity Part'!N19","v":0},{"$f":"'Non-Grandfathered Equity Part'!P19","v":0},{"$f":"'Non-Grandfathered Equity Part'!R19","v":0},{"$f":"'Non-Grandfathered Equity Part'!T19","v":0},null,1.2E-2,null,0,null,0]
[null,"Preferred Stocks, BSCR Rating 3","Sch IIB, IIC, IID, IIE and IIF Line (20)",{"$f":"'Non-Grandfathered Equity Part'!D20","v":0},{"$f":"'Non-Grandfathered Equity Part'!F20","v":0},{"$f":"'Non-Grandfathered Equity Part'!H20","v":0},{"$f":"'Non-Grandfathered Equity Part'!J20","v":0},{"$f":"'Non-Grandfathered Equity Part'!L20","v":0},{"$f":"'Non-Grandfathered Equity Part'!N20","v":0},{"$f":"'Non-Grandfathered Equity Part'!P20","v":0},{"$f":"'Non-Grandfathered Equity Part'!R20","v":0},{"$f":"'Non-Grandfathered Equity Part'!T20","v":0},null,0.02,null,0,null,0]
[null,"Preferred Stocks, BSCR Rating 4","Sch IIB, IIC, IID, IIE and IIF Line (21)",{"$f":"'Non-Grandfathered Equity Part'!D21","v":0},{"$f":"'Non-Grandfathered Equity Part'!F21","v":0},{"$f":"'Non-Grandfathered Equity Part'!H21","v":0},{"$f":"'Non-Grandfathered Equity Part'!J21","v":0},{"$f":"'Non-Grandfathered Equity Part'!L21","v":0},{"$f":"'Non-Grandfathered Equity Part'!N21","v":0},{"$f":"'Non-Grandfathered Equity Part'!P21","v":0},{"$f":"'Non-Grandfathered Equity Part'!R21","v":0},{"$f":"'Non-Grandfathered Equity Part'!T21","v":0},null,0.04,null,0,null,0]
[null,"Preferred Stocks, BSCR Rating 5","Sch IIB, IIC, IID, IIE and IIF Line (22)",{"$f":"'Non-Grandfathered Equity Part'!D22","v":0},{"$f":"'Non-Grandfathered Equity Part'!F22","v":0},{"$f":"'Non-Grandfathered Equity Part'!H22","v":0},{"$f":"'Non-Grandfathered Equity Part'!J22","v":0},{"$f":"'Non-Grandfathered Equity Part'!L22","v":0},{"$f":"'Non-Grandfathered Equity Part'!N22","v":0},{"$f":"'Non-Grandfathered Equity Part'!P22","v":0},{"$f":"'Non-Grandfathered Equity Part'!R22","v":0},{"$f":"'Non-Grandfathered Equity Part'!T22","v":0},null,0.11,null,0,null,0]
[null,"Preferred Stocks, BSCR Rating 6","Sch IIB, IIC, IID, IIE and IIF Line (23)",{"$f":"'Non-Grandfathered Equity Part'!D23","v":0},{"$f":"'Non-Grandfathered Equity Part'!F23","v":0},{"$f":"'Non-Grandfathered Equity Part'!H23","v":0},{"$f":"'Non-Grandfathered Equity Part'!J23","v":0},{"$f":"'Non-Grandfathered Equity Part'!L23","v":0},{"$f":"'Non-Grandfathered Equity Part'!N23","v":0},{"$f":"'Non-Grandfathered Equity Part'!P23","v":0},{"$f":"'Non-Grandfathered Equity Part'!R23","v":0},{"$f":"'Non-Grandfathered Equity Part'!T23","v":0},null,0.25,null,0,null,0]
[null,"Preferred Stocks, BSCR Rating 7","Sch IIB, IIC, IID, IIE and IIF Line (24)",{"$f":"'Non-Grandfathered Equity Part'!D24","v":0},{"$f":"'Non-Grandfathered Equity Part'!F24","v":0},{"$f":"'Non-Grandfathered Equity Part'!H24","v":0},{"$f":"'Non-Grandfathered Equity Part'!J24","v":0},{"$f":"'Non-Grandfathered Equity Part'!L24","v":0},{"$f":"'Non-Grandfathered Equity Part'!N24","v":0},{"$f":"'Non-Grandfathered Equity Part'!P24","v":0},{"$f":"'Non-Grandfathered Equity Part'!R24","v":0},{"$f":"'Non-Grandfathered Equity Part'!T24","v":0},null,0.35,null,0,null,0]
[null,"Preferred Stocks, BSCR Rating 8","Sch IIB, IIC, IID, IIE and IIF Line (25)",{"$f":"'Non-Grandfathered Equity Part'!D25","v":0},{"$f":"'Non-Grandfathered Equity Part'!F25","v":0},{"$f":"'Non-Grandfathered Equity Part'!H25","v":0},{"$f":"'Non-Grandfathered Equity Part'!J25","v":0},{"$f":"'Non-Grandfathered Equity Part'!L25","v":0},{"$f":"'Non-Grandfathered Equity Part'!N25","v":0},{"$f":"'Non-Grandfathered Equity Part'!P25","v":0},{"$f":"'Non-Grandfathered Equity Part'!R25","v":0},{"$f":"'Non-Grandfathered Equity Part'!T25","v":0},null,0.35,null,0,null,0]
[null,"Equity Derivatives on Type 1 Equities","Sch IIB, IIC, IID, IIE and IIF Line (26)",{"$f":"'Non-Grandfathered Equity Part'!D26","v":0},{"$f":"'Non-Grandfathered Equity Part'!F26","v":0},{"$f":"'Non-Grandfathered Equity Part'!H26","v":0},{"$f":"'Non-Grandfathered Equity Part'!J26","v":0},{"$f":"'Non-Grandfathered Equity Part'!L26","v":0},{"$f":"'Non-Grandfathered Equity Part'!N26","v":0},{"$f":"'Non-Grandfathered Equity Part'!P26","v":0},{"$f":"'Non-Grandfathered Equity Part'!R26","v":0},{"$f":"'Non-Grandfathered Equity Part'!T26","v":0},null,0.35,null,0,null,0]
[]
[null,"Subtotal - Type 1 Equity Holdings",null,{"$f":"SUM(D11:D23)","v":0},0,0,0,0,0,0,0,0,null,null,null,{"$f":"MAX(SUM(P11:P22,0))","v":0},null,{"$f":"MAX(SUM(R11:R22,0))","v":0}]
[]
[null,"Type 2 Equity Holdings"]
[null,"Strategic Holdings - Unlisted","Sch IIB, IIC, IID, IIE and IIF Line (27)",{"$f":"'Non-Grandfathered Equity Part'!D27","v":0},{"$f":"'Non-Grandfathered Equity Part'!F27","v":0},{"$f":"'Non-Grandfathered Equity Part'!H27","v":0},{"$f":"'Non-Grandfathered Equity Part'!J27","v":0},{"$f":"'Non-Grandfathered Equity Part'!L27","v":0},{"$f":"'Non-Grandfathered Equity Part'!N27","v":0},{"$f":"'Non-Grandfathered Equity Part'!P27","v":0},{"$f":"'Non-Grandfathered Equity Part'!R27","v":0},{"$f":"'Non-Grandfathered Equity Part'!T27","v":0},null,0.2,null,{"$f":"MAX(D27-E27,0)+(F27-G27)+MAX(H27-I27,0)+(K27-J27)","v":0},null,{"$f":"MAX(D27-E27,0)+(F27-G27)+MAX(H27-I27,0)+(L27-J27)","v":0}]
[null,"Other Equities","Sch IIB, IIC, IID, IIE and IIF Line (28)",{"$f":"'Non-Grandfathered Equity Part'!D28","v":0},{"$f":"'Non-Grandfathered Equity Part'!F28","v":0},{"$f":"'Non-Grandfathered Equity Part'!H28","v":0},{"$f":"'Non-Grandfathered Equity Part'!J28","v":0},{"$f":"'Non-Grandfathered Equity Part'!L28","v":0},{"$f":"'Non-Grandfathered Equity Part'!N28","v":0},{"$f":"'Non-Grandfathered Equity Part'!P28","v":0},{"$f":"'Non-Grandfathered Equity Part'!R28","v":0},{"$f":"'Non-Grandfathered Equity Part'!T28","v":0},null,0.45,null,0,null,0]
[null,"Letters of Credit","Sch IIB, IIC, IID, IIE and IIF Line (29)",{"$f":"'Non-Grandfathered Equity Part'!D29","v":0},{"$f":"'Non-Grandfathered Equity Part'!F29","v":0},{"$f":"'Non-Grandfathered Equity Part'!H29","v":0},{"$f":"'Non-Grandfathered Equity Part'!J29","v":0},{"$f":"'Non-Grandfathered Equity Part'!L29","v":0},{"$f":"'Non-Grandfathered Equity Part'!N29","v":0},{"$f":"'Non-Grandfathered Equity Part'!P29","v":0},{"$f":"'Non-Grandfathered Equity Part'!R29","v":0},{"$f":"'Non-Grandfathered Equity Part'!T29","v":0},null,0.2,null,0,null,0]
[null,"Intangible assets","Sch IIB, IIC, IID, IIE and IIF Line (30)",{"$f":"'Non-Grandfathered Equity Part'!D30","v":0},{"$f":"'Non-Grandfathered Equity Part'!F30","v":0},{"$f":"'Non-Grandfathered Equity Part'!H30","v":0},{"$f":"'Non-Grandfathered Equity Part'!J30","v":0},{"$f":"'Non-Grandfathered Equity Part'!L30","v":0},{"$f":"'Non-Grandfathered Equity Part'!N30","v":0},{"$f":"'Non-Grandfathered Equity Part'!P30","v":0},{"$f":"'Non-Grandfathered Equity Part'!R30","v":0},{"$f":"'Non-Grandfathered Equity Part'!T30","v":0},null,0.2,null,0,null,0]
[null,"Pension Benefit Surplus","Sch IIB, IIC, IID, IIE and IIF Line (31)",{"$f":"'Non-Grandfathered Equity Part'!D31","v":0},{"$f":"'Non-Grandfathered Equity Part'!F31","v":0},{"$f":"'Non-Grandfathered Equity Part'!H31","v":0},{"$f":"'Non-Grandfathered Equity Part'!J31","v":0},{"$f":"'Non-Grandfathered Equity Part'!L31","v":0},{"$f":"'Non-Grandfathered Equity Part'!N31","v":0},{"$f":"'Non-Grandfathered Equity Part'!P31","v":0},{"$f":"'Non-Grandfathered Equity Part'!R31","v":0},{"$f":"'Non-Grandfathered Equity Part'!T31","v":0},null,0.2,null,0,null,0]
[null,"Equity Derivatives on Type 2 Equities","Sch IIB, IIC, IID, IIE and IIF Line (32)",{"$f":"'Non-Grandfathered Equity Part'!D32","v":0},{"$f":"'Non-Grandfathered Equity Part'!F32","v":0},{"$f":"'Non-Grandfathered Equity Part'!H32","v":0},{"$f":"'Non-Grandfathered Equity Part'!J32","v":0},{"$f":"'Non-Grandfathered Equity Part'!L32","v":0},{"$f":"'Non-Grandfathered Equity Part'!N32","v":0},{"$f":"'Non-Grandfathered Equity Part'!P32","v":0},{"$f":"'Non-Grandfathered Equity Part'!R32","v":0},{"$f":"'Non-Grandfathered Equity Part'!T32","v":0},null,0.45,null,0,null,0]
[]
[null,"Subtotal - Type 2 Equity Holdings",null,{"$f":"SUM(D27:D33)","v":0},{"$f":"SUM(E27:E33)","v":0},0,0,0,0,0,0,{"$f":"SUM(L27:L33)","v":0},null,null,null,{"$f":"MAX(SUM(P27:P33),0)","v":0},null,{"$f":"MAX(SUM(R27:R33),0)","v":0}]
[]
[null,"Type 3 Equity Holdings"]
[null,"Infrastructure","Sch IIB, IIC, IID, IIE and IIF Line (33)",{"$f":"'Non-Grandfathered Equity Part'!D33","v":0},{"$f":"'Non-Grandfathered Equity Part'!F33","v":0},{"$f":"'Non-Grandfathered Equity Part'!H33","v":0},{"$f":"'Non-Grandfathered Equity Part'!J33","v":0},{"$f":"'Non-Grandfathered Equity Part'!L33","v":0},{"$f":"'Non-Grandfathered Equity Part'!N33","v":0},{"$f":"'Non-Grandfathered Equity Part'!P33","v":0},{"$f":"'Non-Grandfathered Equity Part'!R33","v":0},{"$f":"'Non-Grandfathered Equity Part'!T33","v":0},null,0.25,null,{"$f":"MAX(D37-E37,0)+(F37-G37)+MAX(H37-I37,0)+(K37-J37)","v":0},null,{"$f":"MAX(D37-E37,0)+(F37-G37)+MAX(H37-I37,0)+(L37-J37)","v":0}]
[null,"Derivatives on Infrastructure","Sch IIB, IIC, IID, IIE and IIF Line (34)",{"$f":"'Non-Grandfathered Equity Part'!D34","v":0},{"$f":"'Non-Grandfathered Equity Part'!F34","v":0},{"$f":"'Non-Grandfathered Equity Part'!H34","v":0},{"$f":"'Non-Grandfathered Equity Part'!J34","v":0},{"$f":"'Non-Grandfathered Equity Part'!L34","v":0},{"$f":"'Non-Grandfathered Equity Part'!N34","v":0},{"$f":"'Non-Grandfathered Equity Part'!P34","v":0},{"$f":"'Non-Grandfathered Equity Part'!R34","v":0},{"$f":"'Non-Grandfathered Equity Part'!T34","v":0},null,0.25,null,{"$f":"MAX(D38-E38,0)+(F38-G38)+MAX(H38-I38,0)+(K38-J38)","v":0},null,0]
[]
[null,"Subtotal - Type 3 Equity Holdings",null,{"$f":"SUM(D37:D39)","v":0},{"$f":"SUM(E37:E39)","v":0},0,0,0,0,0,0,{"$f":"SUM(L37:L39)","v":0},null,null,null,{"$f":"MAX(SUM(P37:P39),0)","v":0},null,{"$f":"MAX(SUM(R37:R39),0)","v":0}]
[]
[null,"Type 4 Equity Holdings"]
[null,"Equity Real Estate 1","Sch IIB, IIC, IID, IIE and IIF Line (35)",{"$f":"'Non-Grandfathered Equity Part'!D35","v":0},{"$f":"'Non-Grandfathered Equity Part'!F35","v":0},{"$f":"'Non-Grandfathered Equity Part'!H35","v":0},{"$f":"'Non-Grandfathered Equity Part'!J35","v":0},{"$f":"'Non-Grandfathered Equity Part'!L35","v":0},{"$f":"'Non-Grandfathered Equity Part'!N35","v":0},{"$f":"'Non-Grandfathered Equity Part'!P35","v":0},{"$f":"'Non-Grandfathered Equity Part'!R35","v":0},{"$f":"'Non-Grandfathered Equity Part'!T35","v":0},null,0.1,null,{"$f":"MAX(D43-E43,0)+(F43-G43)+MAX(H43-I43,0)+(K43-J43)","v":0},null,{"$f":"MAX(D43-E43,0)+(F43-G43)+MAX(H43-I43,0)+(L43-J43)","v":0}]
[null,"Equity Real Estate 2","Sch IIB, IIC, IID, IIE and IIF Line (36)",{"$f":"'Non-Grandfathered Equity Part'!D36","v":0},{"$f":"'Non-Grandfathered Equity Part'!F36","v":0},{"$f":"'Non-Grandfathered Equity Part'!H36","v":0},{"$f":"'Non-Grandfathered Equity Part'!J36","v":0},{"$f":"'Non-Grandfathered Equity Part'!L36","v":0},{"$f":"'Non-Grandfathered Equity Part'!N36","v":0},{"$f":"'Non-Grandfathered Equity Part'!P36","v":0},{"$f":"'Non-Grandfathered Equity Part'!R36","v":0},{"$f":"'Non-Grandfathered Equity Part'!T36","v":0},null,0.2,null,{"$f":"MAX(D44-E44,0)+(F44-G44)+MAX(H44-I44,0)+(K44-J44)","v":0},null,0]
[]
[null,"Subtotal - Type 4 Equity Holdings",null,{"$f":"SUM(D43:D45)","v":0},{"$f":"SUM(E43:E45)","v":0},0,0,0,0,0,{"$f":"SUM(K43:K45)","v":0},{"$f":"SUM(L43:L45)","v":0},null,null,null,{"$f":"MAX(SUM(P43:P45),0)","v":0},null,{"$f":"MAX(SUM(R43:R45),0)","v":0}]
[]
[null,"Total Equity Risk before Diversification",null,{"$f":"D40+D34+D24+D46","v":0},{"$f":"E40+E34+E24+E46","v":0},0,0,0,0,0,{"$f":"K40+K34+K24+K46","v":0},{"$f":"L40+L34+L24+L46","v":0},null,null,null,{"$f":"P40+P34+P24+P46","v":0},null,{"$f":"R40+R34+R24+R46","v":0}]
[]
[null,"Aggregation of Risks","Correlation Matrix","Type 1","Type 2","Type 3","Type 4"]
[null,null,"Type 1",1,0.75,0.75,0.5,null,null,null,null,null,null,"Total Type 1 Risk ",null,{"$f":"P24","v":0},null,{"$f":"R24","v":0}]
[null,null,"Type 2",0.75,1,0.75,0.5,null,null,null,null,null,null,"Total Type 2 Risk ",null,{"$f":"P34","v":0},null,{"$f":"R34","v":0}]
[null,null,"Type 3",0.75,0.75,1,0.5,null,null,null,null,null,null,"Total Type 3 Risk",null,{"$f":"P40","v":0},null,{"$f":"R40","v":0}]
[null,null,"Type 4",0.5,0.5,0.5,1,null,null,null,null,null,null,"Total Type 4 Risk",null,{"$f":"P46","v":0},null,{"$f":"R46","v":0}]
[]
[]
[]
[null,"Total Equity Risk (Post Diversification) ",null,null,null,null,null,null,null,null,null,null,null,null,null,{"$f":"SQRT(MMULT(TRANSPOSE($P$51:$P$54),MMULT($D$51:$G$54,$P$51:$P$54)))","v":0},null,{"$f":"SQRT(MMULT(TRANSPOSE($R$51:$R$54),MMULT($D$51:$G$54,$R$51:$R$54)))","v":0}]

{"sheet":"Interest Rate-Liquidity Risk","index":86,"n_rows":39,"n_cols":14,"rows_kept":39,"cut":false,"hidden":false,"merged":[[0,10,0,11]]}
["INTEREST AND LIQUIDITY RISK",null,null,null,null,null,null,null,null,null,{"$f":"HYPERLINK(\"#'Index'!A1\",\"Return to Index\")","v":"Return to Index"}]
[{"$f":"'Insurer Information'!C7","v":"Enter Company Name"}]
[{"$f":"\"Interest Rate and Liquidity Risk\"& \" ($\" & IF(CONFIGURATION!$B$12>1,\"'\"&MID(CONFIGURATION!$B$12,2,LEN(CONFIGURATION!$B$12)),\"\") & \")\"","v":"Interest Rate and Liquidity Risk ($'000)"},null,"(1)","(2)","(3)","(4)","(5)","(6)","(7)","(8)","(9)","(10)"]
[{"$f":" TEXT('Insurer Information'!C3,\"mmmm dd, yyyy\")","v":"December 31, 2019"}]
[]
[null,"EXTENT OF MISMATCH","200 BASIS POINT INTEREST RATE SHOCK","STATEMENT SOURCE","WEIGHTED AVERAGE OF THE DIFFERENCE IN ASSET AND LIABILITY DURATION (MINIMUM OF 1 YEAR)","STATEMENT SOURCE","RESERVES WITH KNOWN DURATIONS / TOTAL RESERVES","STATEMENT SOURCE","ASSET VALUE","ALM CREDIT","CAPITAL FACTOR","REQUIRED CAPITAL",null,{"$f":"YEAR('Insurer Information'!C3)","v":2019}]
[]
[null,"For assets (and liabilities) where the extent of the duration mismatch is:"]
[null,"(a) Known"]
[null,"(a.1) With Management Actions",0.02,"Schedule V, Line (f)",{"$f":"MAX(1,ABS('Schedule V'!H15))","v":1},{"$f":"IF('Insurer Information'!F9=\"Class C\",\"Schedule V, Line (g)\",\"Schedule V, Line (h)\")","v":"Schedule V, Line (h)"},{"$f":"'Schedule V'!H19","v":0},"Sch II EBS & Sch IIA EBS, Line 10, Column 9 Sch II EBS & Sch IIA EBS, Line 21, Column 3 Sch II EBS & Sch IIA EBS , Line 26, Column 1",{"$f":"E39","v":0},{"$f":"L31","v":0},{"$f":"C10*MAX(1,IF(E10=\"\",ABS('Schedule V'!$H$15),ABS(E10)))*G10*(1-J10)","v":0},{"$f":"I10*K10","v":0}]
[null,"(a.2) Without Management Actions",0.02,"Schedule V, Line (f)",{"$f":"MAX(1,IF(OR(Import!$M$56526=\"\",Import!$M$6401=0),E10,ABS(Import!$M$6401)))","v":1},{"$f":"IF('Insurer Information'!F10=\"Class C\",\"Schedule V, Line (g)\",\"Schedule V, Line (h)\")","v":"Schedule V, Line (h)"},{"$f":"'Schedule V'!H19","v":0},"Sch II EBS & Sch IIA EBS, Line 10, Column 9 Sch II EBS & Sch IIA EBS, Line 21, Column 3 Sch II EBS & Sch IIA EBS , Line 26, Column 1",{"$f":"E39","v":0},{"$f":"L31","v":0},{"$f":"C11*MAX(1,IF(E11=\"\",ABS('Schedule V'!$H$15),ABS(E11)))*G11*(1-J11)","v":0},{"$f":"I11*K11","v":0}]
[null,"(b) Unknown",0.02,null,2,null,"N/A","Sch II EBS & Sch IIA EBS, Line 10, Column 9 Sch II EBS & Sch IIA EBS, Line 21, Column 3 Sch II EBS & Sch IIA EBS , Line 26, Column 1",{"$f":"I10","v":0},"N/A",{"$f":"C12*E12*(1-G10)","v":0.04},{"$f":"I12*K12","v":0}]
[]
[null,"TOTAL INTEREST RATE AND LIQUIDITY RISK With Management Actions",null,null,null,null,null,null,null,null,null,{"$f":"L10+L12","v":0}]
[null,"TOTAL INTEREST RATE AND LIQUIDITY RISK Without Management Actions",null,null,null,null,null,null,null,null,null,{"$f":"L11+L12","v":0}]
[]
[null,"ALM CREDIT",null,null,null,null,null,null,null,null,null,"DISCOUNT FACTOR"]
[]
[null,"Has the insurer implemented policies on Asset Liability Management, including tolerances for deviation?"]
[null,null,null,null,null,null,null,null,null,null,"Yes/No"]
[null,"Question 1: Have clear roles and responsibilities for the execution of the Asset Liability Management program been assigned?",null,null,null,null,null,null,null,null,null,{"$f":"IF($J$19=\"No\",0,IF(K21=\"Yes\",0.1,0))","v":0}]
[]
[null,"Question 2: Are Asset Liability Management positions / tolerances communicated to the investment function, senior management and the board on a timely basis?",null,null,null,null,null,null,null,null,null,{"$f":"IF($J$19=\"No\",0,IF(K23=\"Yes\",0.1,0))","v":0}]
[]
[null,"Question 3: Have systems and procedures been established to identify, report and promptly address Asset Liability Management deficiencies?",null,null,null,null,null,null,null,null,null,{"$f":"IF($J$19=\"No\",0,IF(K25=\"Yes\",0.1,0))","v":0}]
[]
[null,"Question 4: Are the Asset Liability Management policies and procedures reviewed and reapproved or revised at least annually?",null,null,null,null,null,null,null,null,null,{"$f":"IF($J$19=\"No\",0,IF(K27=\"Yes\",0.1,0))","v":0}]
[]
[null,"Question 5: Is the insurer's current Asset Liability Management position in compliance with the insurer’s policies?",null,null,null,null,null,null,null,null,null,{"$f":"IF($J$19=\"No\",0,IF(K29=\"Yes\",0.1,0))","v":0}]
[]
[null,"Total discount factor to apply on the interest rate / liquidity risk capital requirement",null,null,null,null,null,null,null,null,"Total",{"$f":"SUM(L21:L29)","v":0}]
[]
[]
[null,"Quoted & Unquoted Bonds and debentures","Schedule II (Consolidated), Line 10, Column 9",null,{"$f":"+'Schedule II (EBS)'!T22","v":0}]
[null,"Quoted & Unquoted Bonds and debentures","Schedule IIA (Consolidated), Line 10, Column 9",null,{"$f":"+'Schedule IIA (EBS)'!T22","v":0}]
[null,"Quoted & Unquoted Preferred stocks","Schedule II (Consolidated), Line 21, Column 3",null,{"$f":"+'Schedule II (EBS)'!H44","v":0}]
[null,"Quoted & Unquoted Preferred stocks","Schedule II (Consolidated), Line 21, Column 3",null,{"$f":"+'Schedule IIA (EBS)'!H44","v":0}]
[null,"Mortgage loans ","Schedule II & IIA (Consolidated), Line 26, Column 1",null,{"$f":"'Schedule II (EBS)'!D62+'Schedule IIA (EBS)'!D62","v":0}]
[null,"Total",null,null,{"$f":"SUM(E34:E38)","v":0}]

{"sheet":"Interest Rate-Liquidity (Rev.)","index":87,"n_rows":117,"n_cols":20,"rows_kept":117,"cut":false,"hidden":false,"merged":[[97,10,97,11],[97,14,97,15],[98,10,98,11],[98,14,98,15],[5,2,5,8],[5,10,5,12],[6,2,6,3],[6,4,6,5],[6,7,6,8],[6,10,6,11]]}
["INTEREST RATE - LIQUIDITY RISK (REVISED)",null,null,null,null,null,null,null,null,null,null,null,null,null,null,null,null,null,null,{"$f":"HYPERLINK(\"#'Index'!A1\",\"Return to Index\")","v":"Return to Index"}]
[{"$f":"'Insurer Information'!C7","v":"Enter Company Name"}]
[{"$f":"\"Interest Rate / Liquidity Risk\" & \" ($\" & IF(CONFIGURATION!$B$12>1,\"'\"&MID(CONFIGURATION!$B$12,2,LEN(CONFIGURATION!$B$12)),\"\") & \")\"","v":"Interest Rate / Liquidity Risk ($'000)"},null,null,null,{"$f":" TEXT('Insurer Information'!C3,\"mmmm dd, yyyy\")","v":"December 31, 2019"}]
[]
[null,null,-1,{"$f":"C5-1","v":-2},{"$f":"D5-1","v":-3},{"$f":"E5-1","v":-4},null,{"$f":"F5-1","v":-5},{"$f":"H5-1","v":-6},null,{"$f":"I5-1","v":-7},{"$f":"K5-1","v":-8},{"$f":"L5-1","v":-9},null,{"$f":"M5-1","v":-10},{"$f":"O5-1","v":-11},{"$f":"P5-1","v":-12},null,{"$f":"Q5-1","v":-13},{"$f":"S5-1","v":-14}]
[null,null,"ASSETS",null,null,null,null,null,null,null,"LIABILITIES",null,null,{"$f":"YEAR('Insurer Information'!C3)","v":2019}]
[null,null,"Assets including derivatives qualifying as held for risk-mitigation purposes",null,"Derivatives not qualifying as held for risk-mitigation purposes",null,null,"Gross Position",null,null,"Without Management Actions",null,"With Management Actions"]
[null,"Currency","Market Value Before Shock","Market Value After Shock","Market Value Before Shock","Market Value After Shock",null,"Market Value Before Shock","Market Value After Shock",null,"Best Estimate Before Shock","Best Estimate After Shock","Best Estimate After Shock",null,"IR - Assets","IR Risk - TP without MA","IR Risk - TP with MA",null,"IR Risk - without MA","IR Risk - with MA"]
[]
[null,"IR Down- Exposures without Derivatives",null,"x"]
[null,{"$f":"'Schedule XXIII'!C10","v":"United States Dollars"},{"$f":"'Schedule XXIII'!E10","v":0},{"$f":"'Schedule XXIII'!F10","v":0},null,null,null,{"$f":"C11+E11","v":0},{"$f":"D11+F11","v":0},null,{"$f":"'Schedule XXIII'!H10","v":0},{"$f":"'Schedule XXIII'!I10","v":0},{"$f":"'Schedule XXIII'!K10","v":0},null,{"$f":"C11-D11","v":0},{"$f":"L11-K11","v":0},{"$f":"M11-K11","v":0},null,{"$f":"$O11+P11","v":0},{"$f":"$O11+Q11","v":0}]
[null,{"$f":"'Schedule XXIII'!C11","v":"Euro"},{"$f":"'Schedule XXIII'!E11","v":0},{"$f":"'Schedule XXIII'!F11","v":0},null,null,null,{"$f":"C12+E12","v":0},0,null,{"$f":"'Schedule XXIII'!H11","v":0},{"$f":"'Schedule XXIII'!I11","v":0},{"$f":"'Schedule XXIII'!K11","v":0},null,0,0,{"$f":"M12-K12","v":0},null,{"$f":"$O12+P12","v":0},0]
[null,{"$f":"'Schedule XXIII'!C12","v":"United Kingdom Pounds"},{"$f":"'Schedule XXIII'!E12","v":0},{"$f":"'Schedule XXIII'!F12","v":0},null,null,null,0,0,null,{"$f":"'Schedule XXIII'!H12","v":0},{"$f":"'Schedule XXIII'!I12","v":0},{"$f":"'Schedule XXIII'!K12","v":0},null,0,0,0,null,0,0]
[null,{"$f":"'Schedule XXIII'!C13","v":"Japan Yen"},{"$f":"'Schedule XXIII'!E13","v":0},{"$f":"'Schedule XXIII'!F13","v":0},null,null,null,0,0,null,{"$f":"'Schedule XXIII'!H13","v":0},{"$f":"'Schedule XXIII'!I13","v":0},{"$f":"'Schedule XXIII'!K13","v":0},null,0,0,0,null,0,0]
[null,{"$f":"'Schedule XXIII'!C14","v":"Canada Dollars"},{"$f":"'Schedule XXIII'!E14","v":0},{"$f":"'Schedule XXIII'!F14","v":0},null,null,null,0,0,null,{"$f":"'Schedule XXIII'!H14","v":0},{"$f":"'Schedule XXIII'!I14","v":0},{"$f":"'Schedule XXIII'!K14","v":0},null,0,0,0,null,0,0]
[null,{"$f":"'Schedule XXIII'!C15","v":"Swiss Francs"},{"$f":"'Schedule XXIII'!E15","v":0},{"$f":"'Schedule XXIII'!F15","v":0},null,null,null,0,0,null,{"$f":"'Schedule XXIII'!H15","v":0},{"$f":"'Schedule XXIII'!I15","v":0},{"$f":"'Schedule XXIII'!K15","v":0},null,0,0,0,null,0,0]
[null,{"$f":"'Schedule XXIII'!C16","v":"Australia Dollar"},{"$f":"'Schedule XXIII'!E16","v":0},{"$f":"'Schedule XXIII'!F16","v":0},null,null,null,0,0,null,{"$f":"'Schedule XXIII'!H16","v":0},{"$f":"'Schedule XXIII'!I16","v":0},{"$f":"'Schedule XXIII'!K16","v":0},null,0,0,0,null,0,0]
[null,{"$f":"'Schedule XXIII'!C17","v":"New Zealand Dollar"},{"$f":"'Schedule XXIII'!E17","v":0},{"$f":"'Schedule XXIII'!F17","v":0},null,null,null,0,0,null,{"$f":"'Schedule XXIII'!H17","v":0},{"$f":"'Schedule XXIII'!I17","v":0},{"$f":"'Schedule XXIII'!K17","v":0},null,0,0,0,null,0,0]
[null,{"$f":"'Schedule XXIII'!C18","v":"Other currency 1"},{"$f":"'Schedule XXIII'!E18","v":0},{"$f":"'Schedule XXIII'!F18","v":0},null,null,null,0,0,null,{"$f":"'Schedule XXIII'!H18","v":0},{"$f":"'Schedule XXIII'!I18","v":0},{"$f":"'Schedule XXIII'!K18","v":0},null,0,0,0,null,0,0]
[null,{"$f":"'Schedule XXIII'!C19","v":"Other currency 2"},{"$f":"'Schedule XXIII'!E19","v":0},{"$f":"'Schedule XXIII'!F19","v":0},null,null,null,0,0,null,{"$f":"'Schedule XXIII'!H19","v":0},{"$f":"'Schedule XXIII'!I19","v":0},{"$f":"'Schedule XXIII'!K19","v":0},null,0,0,0,null,0,0]
[null,{"$f":"'Schedule XXIII'!C20","v":"Other currency 3"},{"$f":"'Schedule XXIII'!E20","v":0},{"$f":"'Schedule XXIII'!F20","v":0},null,null,null,0,0,null,{"$f":"'Schedule XXIII'!H20","v":0},{"$f":"'Schedule XXIII'!I20","v":0},{"$f":"'Schedule XXIII'!K20","v":0},null,0,0,0,null,0,0]
[null,{"$f":"'Schedule XXIII'!C21","v":"Other currency 4"},{"$f":"'Schedule XXIII'!E21","v":0},{"$f":"'Schedule XXIII'!F21","v":0},null,null,null,0,0,null,{"$f":"'Schedule XXIII'!H21","v":0},{"$f":"'Schedule XXIII'!I21","v":0},{"$f":"'Schedule XXIII'!K21","v":0},null,0,0,0,null,0,0]
[null,{"$f":"'Schedule XXIII'!C22","v":"Other currency 5"},{"$f":"'Schedule XXIII'!E22","v":0},{"$f":"'Schedule XXIII'!F22","v":0},null,null,null,0,0,null,{"$f":"'Schedule XXIII'!H22","v":0},{"$f":"'Schedule XXIII'!I22","v":0},{"$f":"'Schedule XXIII'!K22","v":0},null,0,0,0,null,0,0]
[null,{"$f":"'Schedule XXIII'!C23","v":"Other currency 6"},{"$f":"'Schedule XXIII'!E23","v":0},{"$f":"'Schedule XXIII'!F23","v":0},null,null,null,0,0,null,{"$f":"'Schedule XXIII'!H23","v":0},{"$f":"'Schedule XXIII'!I23","v":0},{"$f":"'Schedule XXIII'!K23","v":0},null,0,0,0,null,0,0]
[null,{"$f":"'Schedule XXIII'!C24","v":"Other currency 7"},{"$f":"'Schedule XXIII'!E24","v":0},{"$f":"'Schedule XXIII'!F24","v":0},null,null,null,0,0,null,{"$f":"'Schedule XXIII'!H24","v":0},{"$f":"'Schedule XXIII'!I24","v":0},{"$f":"'Schedule XXIII'!K24","v":0},null,0,0,0,null,0,0]
[null,{"$f":"'Schedule XXIII'!C25","v":"Other currency 8"},{"$f":"'Schedule XXIII'!E25","v":0},{"$f":"'Schedule XXIII'!F25","v":0},null,null,null,0,0,null,{"$f":"'Schedule XXIII'!H25","v":0},{"$f":"'Schedule XXIII'!I25","v":0},{"$f":"'Schedule XXIII'!K25","v":0},null,0,0,0,null,0,0]
[null,{"$f":"'Schedule XXIII'!C26","v":"Other currency 9"},{"$f":"'Schedule XXIII'!E26","v":0},{"$f":"'Schedule XXIII'!F26","v":0},null,null,null,0,0,null,{"$f":"'Schedule XXIII'!H26","v":0},{"$f":"'Schedule XXIII'!I26","v":0},{"$f":"'Schedule XXIII'!K26","v":0},null,0,0,0,null,0,0]
[null,{"$f":"'Schedule XXIII'!C27","v":"Other currency 10"},{"$f":"'Schedule XXIII'!E27","v":0},{"$f":"'Schedule XXIII'!F27","v":0},null,null,null,{"$f":"C28+E28","v":0},0,null,{"$f":"'Schedule XXIII'!H27","v":0},{"$f":"'Schedule XXIII'!I27","v":0},{"$f":"'Schedule XXIII'!K27","v":0},null,0,0,0,null,0,0]
[null,"Total IR - Other",{"$f":"SUM(C11:C28)","v":0},{"$f":"SUM(D11:D28)","v":0},{"$f":"SUM(E11:E28)","v":0},{"$f":"SUM(F11:F28)","v":0},null,{"$f":"SUM(H11:H28)","v":0},{"$f":"SUM(I11:I28)","v":0},null,{"$f":"SUM(K11:K28)","v":0},{"$f":"SUM(L11:L28)","v":0},{"$f":"SUM(M11:M28)","v":0},null,{"$f":"SUM(O11:O28)","v":0},{"$f":"SUM(P11:P28)","v":0},{"$f":"SUM(Q11:Q28)","v":0},null,{"$f":"SUM(S11:S28)","v":0},{"$f":"SUM(T11:T28)","v":0}]
[]
[null,"IR Down- Derivatives"]
[null,{"$f":"'Schedule XXIII'!C10","v":"United States Dollars"},{"$f":"'Schedule XXIII'!M10","v":0},{"$f":"'Schedule XXIII'!N10","v":0},{"$f":"'Schedule XXIII'!P10","v":0},{"$f":"'Schedule XXIII'!Q10","v":0},null,{"$f":"C32+E32","v":0},{"$f":"D32+F32","v":0},null,{"$f":"'Schedule XXIII'!S10","v":0},{"$f":"'Schedule XXIII'!T10","v":0},{"$f":"'Schedule XXIII'!V10","v":0},null,{"$f":"C32-D32 + MAX(0,E32-F32)","v":0},{"$f":"L32-K32","v":0},{"$f":"M32-K32","v":0},null,{"$f":"$O32+P32","v":0},{"$f":"$O32+Q32","v":0}]
[null,{"$f":"'Schedule XXIII'!C11","v":"Euro"},{"$f":"'Schedule XXIII'!M11","v":0},{"$f":"'Schedule XXIII'!N11","v":0},{"$f":"'Schedule XXIII'!P11","v":0},{"$f":"'Schedule XXIII'!Q11","v":0},null,{"$f":"C33+E33","v":0},0,null,{"$f":"'Schedule XXIII'!S11","v":0},{"$f":"'Schedule XXIII'!T11","v":0},{"$f":"'Schedule XXIII'!V11","v":0},null,0,0,0,null,{"$f":"$O33+P33","v":0},0]
[null,{"$f":"'Schedule XXIII'!C12","v":"United Kingdom Pounds"},{"$f":"'Schedule XXIII'!M12","v":0},{"$f":"'Schedule XXIII'!N12","v":0},{"$f":"'Schedule XXIII'!P12","v":0},{"$f":"'Schedule XXIII'!Q12","v":0},null,0,0,null,{"$f":"'Schedule XXIII'!S12","v":0},{"$f":"'Schedule XXIII'!T12","v":0},{"$f":"'Schedule XXIII'!V12","v":0},null,0,0,0,null,0,0]
[null,{"$f":"'Schedule XXIII'!C13","v":"Japan Yen"},{"$f":"'Schedule XXIII'!M13","v":0},{"$f":"'Schedule XXIII'!N13","v":0},{"$f":"'Schedule XXIII'!P13","v":0},{"$f":"'Schedule XXIII'!Q13","v":0},null,0,0,null,{"$f":"'Schedule XXIII'!S13","v":0},{"$f":"'Schedule XXIII'!T13","v":0},{"$f":"'Schedule XXIII'!V13","v":0},null,0,0,0,null,0,0]
[null,{"$f":"'Schedule XXIII'!C14","v":"Canada Dollars"},{"$f":"'Schedule XXIII'!M14","v":0},{"$f":"'Schedule XXIII'!N14","v":0},{"$f":"'Schedule XXIII'!P14","v":0},{"$f":"'Schedule XXIII'!Q14","v":0},null,0,0,null,{"$f":"'Schedule XXIII'!S14","v":0},{"$f":"'Schedule XXIII'!T14","v":0},{"$f":"'Schedule XXIII'!V14","v":0},null,0,0,0,null,0,0]
[null,{"$f":"'Schedule XXIII'!C15","v":"Swiss Francs"},{"$f":"'Schedule XXIII'!M15","v":0},{"$f":"'Schedule XXIII'!N15","v":0},{"$f":"'Schedule XXIII'!P15","v":0},{"$f":"'Schedule XXIII'!Q15","v":0},null,0,0,null,{"$f":"'Schedule XXIII'!S15","v":0},{"$f":"'Schedule XXIII'!T15","v":0},{"$f":"'Schedule XXIII'!V15","v":0},null,0,0,0,null,0,0]
[null,{"$f":"'Schedule XXIII'!C16","v":"Australia Dollar"},{"$f":"'Schedule XXIII'!M16","v":0},{"$f":"'Schedule XXIII'!N16","v":0},{"$f":"'Schedule XXIII'!P16","v":0},{"$f":"'Schedule XXIII'!Q16","v":0},null,0,0,null,{"$f":"'Schedule XXIII'!S16","v":0},{"$f":"'Schedule XXIII'!T16","v":0},{"$f":"'Schedule XXIII'!V16","v":0},null,0,0,0,null,0,0]
[null,{"$f":"'Schedule XXIII'!C17","v":"New Zealand Dollar"},{"$f":"'Schedule XXIII'!M17","v":0},{"$f":"'Schedule XXIII'!N17","v":0},{"$f":"'Schedule XXIII'!P17","v":0},{"$f":"'Schedule XXIII'!Q17","v":0},null,0,0,null,{"$f":"'Schedule XXIII'!S17","v":0},{"$f":"'Schedule XXIII'!T17","v":0},{"$f":"'Schedule XXIII'!V17","v":0},null,0,0,0,null,0,0]
[null,{"$f":"'Schedule XXIII'!C18","v":"Other currency 1"},{"$f":"'Schedule XXIII'!M18","v":0},{"$f":"'Schedule XXIII'!N18","v":0},{"$f":"'Schedule XXIII'!P18","v":0},{"$f":"'Schedule XXIII'!Q18","v":0},null,0,0,null,{"$f":"'Schedule XXIII'!S18","v":0},{"$f":"'Schedule XXIII'!T18","v":0},{"$f":"'Schedule XXIII'!V18","v":0},null,0,0,0,null,0,0]
[null,{"$f":"'Schedule XXIII'!C19","v":"Other currency 2"},{"$f":"'Schedule XXIII'!M19","v":0},{"$f":"'Schedule XXIII'!N19","v":0},{"$f":"'Schedule XXIII'!P19","v":0},{"$f":"'Schedule XXIII'!Q19","v":0},null,0,0,null,{"$f":"'Schedule XXIII'!S19","v":0},{"$f":"'Schedule XXIII'!T19","v":0},{"$f":"'Schedule XXIII'!V19","v":0},null,0,0,0,null,0,0]
[null,{"$f":"'Schedule XXIII'!C20","v":"Other currency 3"},{"$f":"'Schedule XXIII'!M20","v":0},{"$f":"'Schedule XXIII'!N20","v":0},{"$f":"'Schedule XXIII'!P20","v":0},{"$f":"'Schedule XXIII'!Q20","v":0},null,0,0,null,{"$f":"'Schedule XXIII'!S20","v":0},{"$f":"'Schedule XXIII'!T20","v":0},{"$f":"'Schedule XXIII'!V20","v":0},null,0,0,0,null,0,0]
[null,{"$f":"'Schedule XXIII'!C21","v":"Other currency 4"},{"$f":"'Schedule XXIII'!M21","v":0},{"$f":"'Schedule XXIII'!N21","v":0},{"$f":"'Schedule XXIII'!P21","v":0},{"$f":"'Schedule XXIII'!Q21","v":0},null,0,0,null,{"$f":"'Schedule XXIII'!S21","v":0},{"$f":"'Schedule XXIII'!T21","v":0},{"$f":"'Schedule XXIII'!V21","v":0},null,0,0,0,null,0,0]
[null,{"$f":"'Schedule XXIII'!C22","v":"Other currency 5"},{"$f":"'Schedule XXIII'!M22","v":0},{"$f":"'Schedule XXIII'!N22","v":0},{"$f":"'Schedule XXIII'!P22","v":0},{"$f":"'Schedule XXIII'!Q22","v":0},null,0,0,null,{"$f":"'Schedule XXIII'!S22","v":0},{"$f":"'Schedule XXIII'!T22","v":0},{"$f":"'Schedule XXIII'!V22","v":0},null,0,0,0,null,0,0]
[null,{"$f":"'Schedule XXIII'!C23","v":"Other currency 6"},{"$f":"'Schedule XXIII'!M23","v":0},{"$f":"'Schedule XXIII'!N23","v":0},{"$f":"'Schedule XXIII'!P23","v":0},{"$f":"'Schedule XXIII'!Q23","v":0},null,0,0,null,{"$f":"'Schedule XXIII'!S23","v":0},{"$f":"'Schedule XXIII'!T23","v":0},{"$f":"'Schedule XXIII'!V23","v":0},null,0,0,0,null,0,0]
[null,{"$f":"'Schedule XXIII'!C24","v":"Other currency 7"},{"$f":"'Schedule XXIII'!M24","v":0},{"$f":"'Schedule XXIII'!N24","v":0},{"$f":"'Schedule XXIII'!P24","v":0},{"$f":"'Schedule XXIII'!Q24","v":0},null,0,0,null,{"$f":"'Schedule XXIII'!S24","v":0},{"$f":"'Schedule XXIII'!T24","v":0},{"$f":"'Schedule XXIII'!V24","v":0},null,0,0,0,null,0,0]
[null,{"$f":"'Schedule XXIII'!C25","v":"Other currency 8"},{"$f":"'Schedule XXIII'!M25","v":0},{"$f":"'Schedule XXIII'!N25","v":0},{"$f":"'Schedule XXIII'!P25","v":0},{"$f":"'Schedule XXIII'!Q25","v":0},null,0,0,null,{"$f":"'Schedule XXIII'!S25","v":0},{"$f":"'Schedule XXIII'!T25","v":0},{"$f":"'Schedule XXIII'!V25","v":0},null,0,0,0,null,0,0]
[null,{"$f":"'Schedule XXIII'!C26","v":"Other currency 9"},{"$f":"'Schedule XXIII'!M26","v":0},{"$f":"'Schedule XXIII'!N26","v":0},{"$f":"'Schedule XXIII'!P26","v":0},{"$f":"'Schedule XXIII'!Q26","v":0},null,0,0,null,{"$f":"'Schedule XXIII'!S26","v":0},{"$f":"'Schedule XXIII'!T26","v":0},{"$f":"'Schedule XXIII'!V26","v":0},null,0,0,0,null,0,0]
[null,{"$f":"'Schedule XXIII'!C27","v":"Other currency 10"},{"$f":"'Schedule XXIII'!M27","v":0},{"$f":"'Schedule XXIII'!N27","v":0},{"$f":"'Schedule XXIII'!P27","v":0},{"$f":"'Schedule XXIII'!Q27","v":0},null,0,0,null,{"$f":"'Schedule XXIII'!S27","v":0},{"$f":"'Schedule XXIII'!T27","v":0},{"$f":"'Schedule XXIII'!V27","v":0},null,0,0,0,null,0,0]
[null,"Total IR - Derivatives",{"$f":"SUM(C32:C49)","v":0},{"$f":"SUM(D32:D49)","v":0},{"$f":"SUM(E32:E49)","v":0},{"$f":"SUM(F32:F49)","v":0},null,{"$f":"SUM(H32:H49)","v":0},{"$f":"SUM(I32:I49)","v":0},null,{"$f":"SUM(K32:K49)","v":0},{"$f":"SUM(L32:L49)","v":0},{"$f":"SUM(M32:M49)","v":0},null,{"$f":"SUM(O32:O49)","v":0},{"$f":"SUM(P32:P49)","v":0},{"$f":"SUM(Q32:Q49)","v":0},null,{"$f":"SUM(S32:S49)","v":0},{"$f":"SUM(T32:T49)","v":0}]
[null,"Total IR - DOWN",{"$f":"C29+C50","v":0},{"$f":"D29+D50","v":0},{"$f":"E29+E50","v":0},{"$f":"F29+F50","v":0},null,{"$f":"H29+H50","v":0},{"$f":"I29+I50","v":0},null,{"$f":"K29+K50","v":0},{"$f":"L29+L50","v":0},{"$f":"M29+M50","v":0},null,{"$f":"O29+O50","v":0},{"$f":"P29+P50","v":0},{"$f":"Q29+Q50","v":0},null,{"$f":"MAX(0,S29+S50)","v":0},{"$f":"MAX(0,T29+T50)","v":0}]
[]
[null,"IR UP - Exposures without Derivatives"]
[null,{"$f":"'Schedule XXIII'!C35","v":"United States Dollars"},{"$f":"'Schedule XXIII'!E35","v":0},{"$f":"'Schedule XXIII'!F35","v":0},null,null,null,{"$f":"C54+E54","v":0},{"$f":"D54+F54","v":0},null,{"$f":"'Schedule XXIII'!H35","v":0},{"$f":"'Schedule XXIII'!I35","v":0},{"$f":"'Schedule XXIII'!K35","v":0},null,{"$f":"C54-D54","v":0},{"$f":"L54-K54","v":0},{"$f":"M54-K54","v":0},null,{"$f":"$O54+P54","v":0},{"$f":"$O54+Q54","v":0}]
[null,{"$f":"'Schedule XXIII'!C36","v":"Euro"},{"$f":"'Schedule XXIII'!E36","v":0},{"$f":"'Schedule XXIII'!F36","v":0},null,null,null,{"$f":"C55+E55","v":0},0,null,{"$f":"'Schedule XXIII'!H36","v":0},{"$f":"'Schedule XXIII'!I36","v":0},{"$f":"'Schedule XXIII'!K36","v":0},null,0,0,0,null,{"$f":"$O55+P55","v":0},0]
[null,{"$f":"'Schedule XXIII'!C37","v":"United Kingdom Pounds"},{"$f":"'Schedule XXIII'!E37","v":0},{"$f":"'Schedule XXIII'!F37","v":0},null,null,null,0,0,null,{"$f":"'Schedule XXIII'!H37","v":0},{"$f":"'Schedule XXIII'!I37","v":0},{"$f":"'Schedule XXIII'!K37","v":0},null,0,0,0,null,0,0]
[null,{"$f":"'Schedule XXIII'!C38","v":"Japan Yen"},{"$f":"'Schedule XXIII'!E38","v":0},{"$f":"'Schedule XXIII'!F38","v":0},null,null,null,0,0,null,{"$f":"'Schedule XXIII'!H38","v":0},{"$f":"'Schedule XXIII'!I38","v":0},{"$f":"'Schedule XXIII'!K38","v":0},null,0,0,0,null,0,0]
[null,{"$f":"'Schedule XXIII'!C39","v":"Canada Dollars"},{"$f":"'Schedule XXIII'!E39","v":0},{"$f":"'Schedule XXIII'!F39","v":0},null,null,null,0,0,null,{"$f":"'Schedule XXIII'!H39","v":0},{"$f":"'Schedule XXIII'!I39","v":0},{"$f":"'Schedule XXIII'!K39","v":0},null,0,0,0,null,0,0]
[null,{"$f":"'Schedule XXIII'!C40","v":"Swiss Francs"},{"$f":"'Schedule XXIII'!E40","v":0},{"$f":"'Schedule XXIII'!F40","v":0},null,null,null,0,0,null,{"$f":"'Schedule XXIII'!H40","v":0},{"$f":"'Schedule XXIII'!I40","v":0},{"$f":"'Schedule XXIII'!K40","v":0},null,0,0,0,null,0,0]
[null,{"$f":"'Schedule XXIII'!C41","v":"Australia Dollar"},{"$f":"'Schedule XXIII'!E41","v":0},{"$f":"'Schedule XXIII'!F41","v":0},null,null,null,0,0,null,{"$f":"'Schedule XXIII'!H41","v":0},{"$f":"'Schedule XXIII'!I41","v":0},{"$f":"'Schedule XXIII'!K41","v":0},null,0,0,0,null,0,0]
[null,{"$f":"'Schedule XXIII'!C42","v":"New Zealand Dollar"},{"$f":"'Schedule XXIII'!E42","v":0},{"$f":"'Schedule XXIII'!F42","v":0},null,null,null,0,0,null,{"$f":"'Schedule XXIII'!H42","v":0},{"$f":"'Schedule XXIII'!I42","v":0},{"$f":"'Schedule XXIII'!K42","v":0},null,0,0,0,null,0,0]
[null,{"$f":"'Schedule XXIII'!C43","v":"Other currency 1"},{"$f":"'Schedule XXIII'!E43","v":0},{"$f":"'Schedule XXIII'!F43","v":0},null,null,null,0,0,null,{"$f":"'Schedule XXIII'!H43","v":0},{"$f":"'Schedule XXIII'!I43","v":0},{"$f":"'Schedule XXIII'!K43","v":0},null,0,0,0,null,0,0]
[null,{"$f":"'Schedule XXIII'!C44","v":"Other currency 2"},{"$f":"'Schedule XXIII'!E44","v":0},{"$f":"'Schedule XXIII'!F44","v":0},null,null,null,0,0,null,{"$f":"'Schedule XXIII'!H44","v":0},{"$f":"'Schedule XXIII'!I44","v":0},{"$f":"'Schedule XXIII'!K44","v":0},null,0,0,0,null,0,0]
[null,{"$f":"'Schedule XXIII'!C45","v":"Other currency 3"},{"$f":"'Schedule XXIII'!E45","v":0},{"$f":"'Schedule XXIII'!F45","v":0},null,null,null,0,0,null,{"$f":"'Schedule XXIII'!H45","v":0},{"$f":"'Schedule XXIII'!I45","v":0},{"$f":"'Schedule XXIII'!K45","v":0},null,0,0,0,null,0,0]
[null,{"$f":"'Schedule XXIII'!C46","v":"Other currency 4"},{"$f":"'Schedule XXIII'!E46","v":0},{"$f":"'Schedule XXIII'!F46","v":0},null,null,null,0,0,null,{"$f":"'Schedule XXIII'!H46","v":0},{"$f":"'Schedule XXIII'!I46","v":0},{"$f":"'Schedule XXIII'!K46","v":0},null,0,0,0,null,0,0]
[null,{"$f":"'Schedule XXIII'!C47","v":"Other currency 5"},{"$f":"'Schedule XXIII'!E47","v":0},{"$f":"'Schedule XXIII'!F47","v":0},null,null,null,0,0,null,{"$f":"'Schedule XXIII'!H47","v":0},{"$f":"'Schedule XXIII'!I47","v":0},{"$f":"'Schedule XXIII'!K47","v":0},null,0,0,0,null,0,0]
[null,{"$f":"'Schedule XXIII'!C48","v":"Other currency 6"},{"$f":"'Schedule XXIII'!E48","v":0},{"$f":"'Schedule XXIII'!F48","v":0},null,null,null,0,0,null,{"$f":"'Schedule XXIII'!H48","v":0},{"$f":"'Schedule XXIII'!I48","v":0},{"$f":"'Schedule XXIII'!K48","v":0},null,0,0,0,null,0,0]
[null,{"$f":"'Schedule XXIII'!C49","v":"Other currency 7"},{"$f":"'Schedule XXIII'!E49","v":0},{"$f":"'Schedule XXIII'!F49","v":0},null,null,null,0,0,null,{"$f":"'Schedule XXIII'!H49","v":0},{"$f":"'Schedule XXIII'!I49","v":0},{"$f":"'Schedule XXIII'!K49","v":0},null,0,0,0,null,0,0]
[null,{"$f":"'Schedule XXIII'!C50","v":"Other currency 8"},{"$f":"'Schedule XXIII'!E50","v":0},{"$f":"'Schedule XXIII'!F50","v":0},null,null,null,0,0,null,{"$f":"'Schedule XXIII'!H50","v":0},{"$f":"'Schedule XXIII'!I50","v":0},{"$f":"'Schedule XXIII'!K50","v":0},null,0,0,0,null,0,0]
[null,{"$f":"'Schedule XXIII'!C51","v":"Other currency 9"},{"$f":"'Schedule XXIII'!E51","v":0},{"$f":"'Schedule XXIII'!F51","v":0},null,null,null,0,0,null,{"$f":"'Schedule XXIII'!H51","v":0},{"$f":"'Schedule XXIII'!I51","v":0},{"$f":"'Schedule XXIII'!K51","v":0},null,0,0,0,null,0,0]
[null,{"$f":"'Schedule XXIII'!C52","v":"Other currency 10"},{"$f":"'Schedule XXIII'!E52","v":0},{"$f":"'Schedule XXIII'!F52","v":0},null,null,null,0,0,null,{"$f":"'Schedule XXIII'!H52","v":0},{"$f":"'Schedule XXIII'!I52","v":0},{"$f":"'Schedule XXIII'!K52","v":0},null,0,0,0,null,0,0]
[null,"Total IR - Other",{"$f":"SUM(C54:C71)","v":0},{"$f":"SUM(D54:D71)","v":0},{"$f":"SUM(E54:E71)","v":0},null,null,{"$f":"SUM(H54:H71)","v":0},{"$f":"SUM(I54:I71)","v":0},null,{"$f":"SUM(K54:K71)","v":0},{"$f":"SUM(L54:L71)","v":0},{"$f":"SUM(M54:M71)","v":0},null,{"$f":"SUM(O54:O71)","v":0},{"$f":"SUM(P54:P71)","v":0},{"$f":"SUM(Q54:Q71)","v":0},null,{"$f":"SUM(S54:S71)","v":0},{"$f":"SUM(T54:T71)","v":0}]
[]
[null,"IR Up - Derivatives"]
[null,{"$f":"'Schedule XXIII'!C35","v":"United States Dollars"},{"$f":"'Schedule XXIII'!M35","v":0},{"$f":"'Schedule XXIII'!N35","v":0},{"$f":"'Schedule XXIII'!P35","v":0},{"$f":"'Schedule XXIII'!Q35","v":0},null,{"$f":"C75+E75","v":0},{"$f":"D75+F75","v":0},null,{"$f":"'Schedule XXIII'!S35","v":0},{"$f":"'Schedule XXIII'!T35","v":0},{"$f":"'Schedule XXIII'!V35","v":0},null,{"$f":"C75-D75 + MAX(0,E75-F75)","v":0},{"$f":"L75-K75","v":0},{"$f":"M75-K75","v":0},null,{"$f":"$O75+P75","v":0},{"$f":"$O75+Q75","v":0}]
[null,{"$f":"'Schedule XXIII'!C36","v":"Euro"},{"$f":"'Schedule XXIII'!M36","v":0},{"$f":"'Schedule XXIII'!N36","v":0},{"$f":"'Schedule XXIII'!P36","v":0},{"$f":"'Schedule XXIII'!Q36","v":0},null,{"$f":"C76+E76","v":0},0,null,{"$f":"'Schedule XXIII'!S36","v":0},{"$f":"'Schedule XXIII'!T36","v":0},{"$f":"'Schedule XXIII'!V36","v":0},null,{"$f":"C76-D76 + MAX(0,E76-F76)","v":0},0,0,null,{"$f":"$O76+P76","v":0},0]
[null,{"$f":"'Schedule XXIII'!C37","v":"United Kingdom Pounds"},{"$f":"'Schedule XXIII'!M37","v":0},{"$f":"'Schedule XXIII'!N37","v":0},{"$f":"'Schedule XXIII'!P37","v":0},{"$f":"'Schedule XXIII'!Q37","v":0},null,0,0,null,{"$f":"'Schedule XXIII'!S37","v":0},{"$f":"'Schedule XXIII'!T37","v":0},{"$f":"'Schedule XXIII'!V37","v":0},null,{"$f":"C77-D77 + MAX(0,E77-F77)","v":0},0,0,null,0,0]
[null,{"$f":"'Schedule XXIII'!C38","v":"Japan Yen"},{"$f":"'Schedule XXIII'!M38","v":0},{"$f":"'Schedule XXIII'!N38","v":0},{"$f":"'Schedule XXIII'!P38","v":0},{"$f":"'Schedule XXIII'!Q38","v":0},null,0,0,null,{"$f":"'Schedule XXIII'!S38","v":0},{"$f":"'Schedule XXIII'!T38","v":0},{"$f":"'Schedule XXIII'!V38","v":0},null,{"$f":"C78-D78 + MAX(0,E78-F78)","v":0},0,0,null,0,0]
[null,{"$f":"'Schedule XXIII'!C39","v":"Canada Dollars"},{"$f":"'Schedule XXIII'!M39","v":0},{"$f":"'Schedule XXIII'!N39","v":0},{"$f":"'Schedule XXIII'!P39","v":0},{"$f":"'Schedule XXIII'!Q39","v":0},null,0,0,null,{"$f":"'Schedule XXIII'!S39","v":0},{"$f":"'Schedule XXIII'!T39","v":0},{"$f":"'Schedule XXIII'!V39","v":0},null,{"$f":"C79-D79 + MAX(0,E79-F79)","v":0},0,0,null,0,0]
[null,{"$f":"'Schedule XXIII'!C40","v":"Swiss Francs"},{"$f":"'Schedule XXIII'!M40","v":0},{"$f":"'Schedule XXIII'!N40","v":0},{"$f":"'Schedule XXIII'!P40","v":0},{"$f":"'Schedule XXIII'!Q40","v":0},null,0,0,null,{"$f":"'Schedule XXIII'!S40","v":0},{"$f":"'Schedule XXIII'!T40","v":0},{"$f":"'Schedule XXIII'!V40","v":0},null,{"$f":"C80-D80 + MAX(0,E80-F80)","v":0},0,0,null,0,0]
[null,{"$f":"'Schedule XXIII'!C41","v":"Australia Dollar"},{"$f":"'Schedule XXIII'!M41","v":0},{"$f":"'Schedule XXIII'!N41","v":0},{"$f":"'Schedule XXIII'!P41","v":0},{"$f":"'Schedule XXIII'!Q41","v":0},null,0,0,null,{"$f":"'Schedule XXIII'!S41","v":0},{"$f":"'Schedule XXIII'!T41","v":0},{"$f":"'Schedule XXIII'!V41","v":0},null,0,0,0,null,0,0]
[null,{"$f":"'Schedule XXIII'!C42","v":"New Zealand Dollar"},{"$f":"'Schedule XXIII'!M42","v":0},{"$f":"'Schedule XXIII'!N42","v":0},{"$f":"'Schedule XXIII'!P42","v":0},{"$f":"'Schedule XXIII'!Q42","v":0},null,0,0,null,{"$f":"'Schedule XXIII'!S42","v":0},{"$f":"'Schedule XXIII'!T42","v":0},{"$f":"'Schedule XXIII'!V42","v":0},null,0,0,0,null,0,0]
[null,{"$f":"'Schedule XXIII'!C43","v":"Other currency 1"},{"$f":"'Schedule XXIII'!M43","v":0},{"$f":"'Schedule XXIII'!N43","v":0},{"$f":"'Schedule XXIII'!P43","v":0},{"$f":"'Schedule XXIII'!Q43","v":0},null,0,0,null,{"$f":"'Schedule XXIII'!S43","v":0},{"$f":"'Schedule XXIII'!T43","v":0},{"$f":"'Schedule XXIII'!V43","v":0},null,0,0,0,null,0,0]
[null,{"$f":"'Schedule XXIII'!C44","v":"Other currency 2"},{"$f":"'Schedule XXIII'!M44","v":0},{"$f":"'Schedule XXIII'!N44","v":0},{"$f":"'Schedule XXIII'!P44","v":0},{"$f":"'Schedule XXIII'!Q44","v":0},null,0,0,null,{"$f":"'Schedule XXIII'!S44","v":0},{"$f":"'Schedule XXIII'!T44","v":0},{"$f":"'Schedule XXIII'!V44","v":0},null,0,0,0,null,0,0]
[null,{"$f":"'Schedule XXIII'!C45","v":"Other currency 3"},{"$f":"'Schedule XXIII'!M45","v":0},{"$f":"'Schedule XXIII'!N45","v":0},{"$f":"'Schedule XXIII'!P45","v":0},{"$f":"'Schedule XXIII'!Q45","v":0},null,0,0,null,{"$f":"'Schedule XXIII'!S45","v":0},{"$f":"'Schedule XXIII'!T45","v":0},{"$f":"'Schedule XXIII'!V45","v":0},null,0,0,0,null,0,0]
[null,{"$f":"'Schedule XXIII'!C46","v":"Other currency 4"},{"$f":"'Schedule XXIII'!M46","v":0},{"$f":"'Schedule XXIII'!N46","v":0},{"$f":"'Schedule XXIII'!P46","v":0},{"$f":"'Schedule XXIII'!Q46","v":0},null,0,0,null,{"$f":"'Schedule XXIII'!S46","v":0},{"$f":"'Schedule XXIII'!T46","v":0},{"$f":"'Schedule XXIII'!V46","v":0},null,0,0,0,null,0,0]
[null,{"$f":"'Schedule XXIII'!C47","v":"Other currency 5"},{"$f":"'Schedule XXIII'!M47","v":0},{"$f":"'Schedule XXIII'!N47","v":0},{"$f":"'Schedule XXIII'!P47","v":0},{"$f":"'Schedule XXIII'!Q47","v":0},null,0,0,null,{"$f":"'Schedule XXIII'!S47","v":0},{"$f":"'Schedule XXIII'!T47","v":0},{"$f":"'Schedule XXIII'!V47","v":0},null,0,0,0,null,0,0]
[null,{"$f":"'Schedule XXIII'!C48","v":"Other currency 6"},{"$f":"'Schedule XXIII'!M48","v":0},{"$f":"'Schedule XXIII'!N48","v":0},{"$f":"'Schedule XXIII'!P48","v":0},{"$f":"'Schedule XXIII'!Q48","v":0},null,0,0,null,{"$f":"'Schedule XXIII'!S48","v":0},{"$f":"'Schedule XXIII'!T48","v":0},{"$f":"'Schedule XXIII'!V48","v":0},null,0,0,0,null,0,0]
[null,{"$f":"'Schedule XXIII'!C49","v":"Other currency 7"},{"$f":"'Schedule XXIII'!M49","v":0},{"$f":"'Schedule XXIII'!N49","v":0},{"$f":"'Schedule XXIII'!P49","v":0},{"$f":"'Schedule XXIII'!Q49","v":0},null,0,0,null,{"$f":"'Schedule XXIII'!S49","v":0},{"$f":"'Schedule XXIII'!T49","v":0},{"$f":"'Schedule XXIII'!V49","v":0},null,0,0,0,null,0,0]
[null,{"$f":"'Schedule XXIII'!C50","v":"Other currency 8"},{"$f":"'Schedule XXIII'!M50","v":0},{"$f":"'Schedule XXIII'!N50","v":0},{"$f":"'Schedule XXIII'!P50","v":0},{"$f":"'Schedule XXIII'!Q50","v":0},null,0,0,null,{"$f":"'Schedule XXIII'!S50","v":0},{"$f":"'Schedule XXIII'!T50","v":0},{"$f":"'Schedule XXIII'!V50","v":0},null,0,0,0,null,0,0]
[null,{"$f":"'Schedule XXIII'!C51","v":"Other currency 9"},{"$f":"'Schedule XXIII'!M51","v":0},{"$f":"'Schedule XXIII'!N51","v":0},{"$f":"'Schedule XXIII'!P51","v":0},{"$f":"'Schedule XXIII'!Q51","v":0},null,0,0,null,{"$f":"'Schedule XXIII'!S51","v":0},{"$f":"'Schedule XXIII'!T51","v":0},{"$f":"'Schedule XXIII'!V51","v":0},null,0,0,0,null,0,0]
[null,{"$f":"'Schedule XXIII'!C52","v":"Other currency 10"},{"$f":"'Schedule XXIII'!M52","v":0},{"$f":"'Schedule XXIII'!N52","v":0},{"$f":"'Schedule XXIII'!P52","v":0},{"$f":"'Schedule XXIII'!Q52","v":0},null,0,0,null,{"$f":"'Schedule XXIII'!S52","v":0},{"$f":"'Schedule XXIII'!T52","v":0},{"$f":"'Schedule XXIII'!V52","v":0},null,0,0,0,null,0,0]
[null,"Total IR - Derivatives",{"$f":"SUM(C75:C92)","v":0},{"$f":"SUM(D75:D92)","v":0},{"$f":"SUM(E75:E92)","v":0},null,null,{"$f":"SUM(H75:H92)","v":0},{"$f":"SUM(I75:I92)","v":0},null,{"$f":"SUM(K75:K92)","v":0},{"$f":"SUM(L75:L92)","v":0},{"$f":"SUM(M75:M92)","v":0},null,{"$f":"SUM(O75:O92)","v":0},{"$f":"SUM(P75:P92)","v":0},{"$f":"SUM(Q75:Q92)","v":0},null,{"$f":"SUM(S75:S92)","v":0},{"$f":"SUM(T75:T92)","v":0}]
[null,"Total IR - UP",{"$f":"C72+C93","v":0},{"$f":"D72+D93","v":0},{"$f":"E72+E93","v":0},{"$f":"F72+F93","v":0},null,{"$f":"H72+H93","v":0},{"$f":"I72+I93","v":0},null,{"$f":"K72+K93","v":0},{"$f":"L72+L93","v":0},{"$f":"M72+M93","v":0},null,{"$f":"O72+O93","v":0},{"$f":"P72+P93","v":0},{"$f":"Q72+Q93","v":0},null,{"$f":"MAX(0,S72+S93)","v":0},{"$f":"MAX(0,T72+T93)","v":0}]
[]
[]
[null,"Overall Interest Rate Risk",null,null,null,null,null,"Scenario-Based Approach"]
[null,null,null,null,null,null,null,null,null,null,"Without Management Actions",null,null,null,"With Management Actions"]
[null,"Interest Rates Down Shock - without Management Actions",null,null,{"$f":"S51","v":0},null,null,null,"EBS Base",null,"EBS Shock",null,null,null,"EBS Shock"]
[null,"Interest Rates Up Shock - without Management Actions",null,null,{"$f":"S94","v":0}]
[null,"Max(IR Down, IR Up) - without MA",null,null,{"$f":"MAX(0,E99,E100)","v":0},null,null,"Shock used",null,null,"Down","Up",null,null,"Down","Up"]
[]
[null,"Interest Rate Risk without Management Actions",null,null,{"$f":"MAX(0,IF(E109=\"UP\",E100,E99))","v":0},null,null,"MV Assets",{"$f":"C51","v":0},null,{"$f":"D51+F51","v":0},{"$f":"D94+F94","v":0},null,null,{"$f":"K103","v":0},{"$f":"L103","v":0}]
[null,null,null,null,null,null,null,"BEL",{"$f":"K51","v":0},null,{"$f":"L51","v":0},{"$f":"L94","v":0},null,null,{"$f":"M51","v":0},{"$f":"M94","v":0}]
[]
[null,"Interest Rates Down Shock - with Management Actions",null,null,{"$f":"T51","v":0},null,null,"BEL-Worst",{"$f":"'Form 4EBS'!$F$233","v":0},null,{"$f":"$I106","v":0},{"$f":"$I106","v":0},null,null,{"$f":"$I106","v":0},{"$f":"$I106","v":0}]
[null,"Interest Rates Up Shock - with Management Actions",null,null,{"$f":"T94","v":0},null,null,"BEL-Base",{"$f":"'Form 4EBS'!$F$235","v":0},null,{"$f":"$I107","v":0},{"$f":"$I107","v":0},null,null,{"$f":"$I107","v":0},{"$f":"$I107","v":0}]
[null,"Max(IR Down, IR Up) - with MA",null,null,{"$f":"MAX(E106,E107)","v":0}]
[null,"Biting scenario",null,null,{"$f":"IF(E108=E106,\"DOWN\",\"UP\")","v":"DOWN"},null,null,"\"NAV\"",{"$f":"I$103-I$104","v":0},null,{"$f":"K$103-K$104","v":0},{"$f":"L$103-L$104","v":0},null,null,{"$f":"O$103-O$104","v":0},{"$f":"P$103-P$104","v":0}]
[]
[null,"Interest Rate Risk with Management Actions",null,null,{"$f":"MAX(0,E108)","v":0},null,null,"CR IR",null,null,{"$f":"MAX(0,$I109-K109)","v":0},{"$f":"MAX(0,$I109-L109)","v":0},null,null,{"$f":"MAX(0,$I109-O109)","v":0},{"$f":"MAX(0,$I109-P109)","v":0}]
[null,null,null,null,null,null,null,"Floor (25 % of CR IR)",null,null,{"$f":"25%*K111","v":0},{"$f":"25%*L111","v":0},null,null,{"$f":"25%*O111","v":0},{"$f":"25%*P111","v":0}]
[null,null,null,null,null,null,null,"BEL Deduction",null,null,{"$f":"K$106-K$107","v":0},{"$f":"L$106-L$107","v":0},null,null,{"$f":"O$106-O$107","v":0},{"$f":"P$106-P$107","v":0}]
[null,"Adjustment to IR Risk capital requirement",null,"Without MA","With MA",null,null,"Factor-adjusted BEL Deduct",null,null,{"$f":"50%*K113","v":0},{"$f":"50%*L113","v":0},null,null,{"$f":"50%*O113","v":0},{"$f":"50%*P113","v":0}]
[null,"For companies using Scenario-Based Approach",null,{"$f":"IF(OR(VALUE(I107)=0,VALUE(I106)=0),0,IF($E$109=\"DOWN\",K116-K111,L116-L111))","v":0},{"$f":"IF(OR(VALUE(I107)=0,VALUE(I106)=0),0,IF($E$109=\"DOWN\",O116-O111,P116-P111))","v":0}]
[null,null,null,null,null,null,null,"Capital Charge with 50 % factor",null,null,{"$f":"MAX(K112,K111-K114)","v":0},{"$f":"MAX(L112,L111-L114)","v":0},null,null,{"$f":"MAX(O112,O111-O114)","v":0},{"$f":"MAX(P112,P111-P114)","v":0}]
[null,"Interest Rate Risk capital requirement",null,{"$f":"MAX(E103+D115,0)","v":0},{"$f":"MAX(E111+E115,0)","v":0},null,null,"Max(Down,Up)",null,null,{"$f":"IF(K111>L111,K116,L116)","v":0},null,null,null,{"$f":"IF(O111>P111,O116,P116)","v":0}]

{"sheet":"Currency Risk","index":88,"n_rows":28,"n_cols":14,"rows_kept":28,"cut":false,"hidden":false,"merged":[[0,8,0,9],[4,7,5,7],[4,8,4,9]]}
["CURRENCY RISK",null,null,null,null,null,null,null,{"$f":"HYPERLINK(\"#'Index'!A1\",\"Return to Index\")","v":"Return to Index"}]
[{"$f":"'Insurer Information'!C7","v":"Enter Company Name"}]
[{"$f":"\"Currency Risk\" & \" ($\" & IF(CONFIGURATION!$B$12>1,\"'\"&MID(CONFIGURATION!$B$12,2,LEN(CONFIGURATION!$B$12)),\"\") & \")\"","v":"Currency Risk ($'000)"},null,{"$f":" TEXT('Insurer Information'!C3,\"mmmm dd, yyyy\")","v":"December 31, 2019"}]
[]
[null,null,"(A)","(B)","(C)","(D)",{"$f":"\"(E) = (\"&ROUND(G6,2)*100&\"% of C)\"","v":"(E) = (0% of C)"},"(F) = (if(A>(C+E), 0%, 25%))","(G) = F x ABS(A-C-E)"]
[null,null,"ASSETS","TOTAL ASSETS WITH","LIABILITIES","TOTAL LIABILITIES WITH",{"$f":"+'Schedule XX'!T36","v":0},null,"REQUIRED",null,null,null,null,{"$f":"YEAR('Insurer Information'!C3)","v":2019}]
[null,"CURRENCY","Form 1EBS, Line 15","HEDGING ARRAGEMENTS","Form 1EBS, Line 39","HEDGING ARRAGEMENTS","PROXY BSCR","CHARGE","CAPITAL"]
[]
[null,{"$f":"'Schedule XX'!B9","v":"United States Dollars"},{"$f":"+'Schedule XX'!L9","v":0},{"$f":"+'Schedule XX'!N9","v":0},{"$f":"+'Schedule XX'!P9","v":0},{"$f":"+'Schedule XX'!R9","v":0},{"$f":"IF(F9=0,E9*$G$6,F9*$G$6)","v":0},0,{"$f":"IF(SUM(C10:E23)=0,0,IF(D9=0,H9*ABS(C9-E9-G9),H9*ABS(D9-F9-G9)))","v":0}]
[null,{"$f":"'Schedule XX'!B10","v":"Euro"},{"$f":"+'Schedule XX'!L10","v":0},{"$f":"+'Schedule XX'!N10","v":0},{"$f":"+'Schedule XX'!P10","v":0},{"$f":"+'Schedule XX'!R10","v":0},{"$f":"IF(F10=0,E10*$G$6,F10*$G$6)","v":0},{"$f":"IF(D10=0,IF(C10>(E10+G10),0%,25%),IF(D10>(F10+G10),0%,25%))","v":0.25},{"$f":"IF(D10=0,H10*ABS(C10-E10-G10),H10*ABS(D10-F10-G10))","v":0}]
[null,{"$f":"'Schedule XX'!B11","v":"United Kingdom Pounds"},{"$f":"+'Schedule XX'!L11","v":0},{"$f":"+'Schedule XX'!N11","v":0},{"$f":"+'Schedule XX'!P11","v":0},{"$f":"+'Schedule XX'!R11","v":0},0,0.25,0]
[null,{"$f":"'Schedule XX'!B12","v":"Canada Dollars"},{"$f":"+'Schedule XX'!L12","v":0},{"$f":"+'Schedule XX'!N12","v":0},{"$f":"+'Schedule XX'!P12","v":0},{"$f":"+'Schedule XX'!R12","v":0},0,0.25,0]
[null,{"$f":"'Schedule XX'!B13","v":"Japan Yen"},{"$f":"+'Schedule XX'!L13","v":0},{"$f":"+'Schedule XX'!N13","v":0},{"$f":"+'Schedule XX'!P13","v":0},{"$f":"+'Schedule XX'!R13","v":0},0,0.25,0]
[null,{"$f":"'Schedule XX'!B14","v":"Other currency 1"},{"$f":"+'Schedule XX'!L14","v":0},{"$f":"+'Schedule XX'!N14","v":0},{"$f":"+'Schedule XX'!P14","v":0},{"$f":"+'Schedule XX'!R14","v":0},0,0.25,0]
[null,{"$f":"'Schedule XX'!B15","v":"Other currency 2"},{"$f":"+'Schedule XX'!L15","v":0},{"$f":"+'Schedule XX'!N15","v":0},{"$f":"+'Schedule XX'!P15","v":0},{"$f":"+'Schedule XX'!R15","v":0},0,0.25,0]
[null,{"$f":"'Schedule XX'!B16","v":"Other currency 3"},{"$f":"+'Schedule XX'!L16","v":0},{"$f":"+'Schedule XX'!N16","v":0},{"$f":"+'Schedule XX'!P16","v":0},{"$f":"+'Schedule XX'!R16","v":0},0,0.25,0]
[null,{"$f":"'Schedule XX'!B17","v":"Other currency 4"},{"$f":"+'Schedule XX'!L17","v":0},{"$f":"+'Schedule XX'!N17","v":0},{"$f":"+'Schedule XX'!P17","v":0},{"$f":"+'Schedule XX'!R17","v":0},0,0.25,0]
[null,{"$f":"'Schedule XX'!B18","v":"Other currency 5"},{"$f":"+'Schedule XX'!L18","v":0},{"$f":"+'Schedule XX'!N18","v":0},{"$f":"+'Schedule XX'!P18","v":0},{"$f":"+'Schedule XX'!R18","v":0},0,0.25,{"$f":"IF(D18=0,H18*ABS(C18-E18-G18),H18*ABS(D18-F18-G18))","v":0}]
[null,{"$f":"'Schedule XX'!B19","v":"Other currency 6"},{"$f":"+'Schedule XX'!L19","v":0},{"$f":"+'Schedule XX'!N19","v":0},{"$f":"+'Schedule XX'!P19","v":0},{"$f":"+'Schedule XX'!R19","v":0},0,0.25,0]
[null,{"$f":"'Schedule XX'!B20","v":"Other currency 7"},{"$f":"+'Schedule XX'!L20","v":0},{"$f":"+'Schedule XX'!N20","v":0},{"$f":"+'Schedule XX'!P20","v":0},{"$f":"+'Schedule XX'!R20","v":0},0,0.25,0]
[null,{"$f":"'Schedule XX'!B21","v":"Other currency 8"},{"$f":"+'Schedule XX'!L21","v":0},{"$f":"+'Schedule XX'!N21","v":0},{"$f":"+'Schedule XX'!P21","v":0},{"$f":"+'Schedule XX'!R21","v":0},0,0.25,0]
[null,{"$f":"'Schedule XX'!B22","v":"Other currency 9"},{"$f":"+'Schedule XX'!L22","v":0},{"$f":"+'Schedule XX'!N22","v":0},{"$f":"+'Schedule XX'!P22","v":0},{"$f":"+'Schedule XX'!R22","v":0},0,0.25,0]
[null,{"$f":"'Schedule XX'!B23","v":"Other currency 10"},{"$f":"+'Schedule XX'!L23","v":0},{"$f":"+'Schedule XX'!N23","v":0},{"$f":"+'Schedule XX'!P23","v":0},{"$f":"+'Schedule XX'!R23","v":0},0,0.25,0]
[null,"Total Identified",{"$f":"SUM(C9:C23)","v":0},{"$f":"SUM(D9:D23)","v":0},{"$f":"SUM(E9:E23)","v":0},{"$f":"SUM(F9:F23)","v":0}]
[null,"Total",{"$f":"+'Schedule XX'!L27","v":0},null,{"$f":"+'Schedule XX'!P27","v":0}]
[null,"% Identified",{"$f":"IF(C24=0,0,C24/C25)","v":0},null,{"$f":"IF(E24=0,0,E24/E25)","v":0}]
[]
[null,"TOTAL CURRENCY RISK",{"$f":"SUM(C9:C23)","v":0},null,{"$f":"SUM(E9:E23)","v":0},null,null,null,{"$f":"IF(SUM(I9:I26)>=0,SUM(I9:I26),0)","v":0}]

{"sheet":"Currency Risk (Revised)","index":89,"n_rows":39,"n_cols":25,"rows_kept":39,"cut":false,"hidden":false,"merged":[[5,2,5,9],[5,11,5,17],[5,19,5,21],[5,23,5,24],[8,3,8,4],[8,5,8,6],[8,12,8,13],[8,14,8,15]]}
["CURRENCY RISK (REVISED)",null,null,null,null,null,null,null,null,null,null,null,null,null,null,null,null,null,null,null,null,null,null,null,{"$f":"HYPERLINK(\"#'Index'!A1\",\"Return to Index\")","v":"Return to Index"}]
[{"$f":"'Insurer Information'!C7","v":"Enter Company Name"}]
[{"$f":"\"Currency Risk\" & \" ($\" & IF(CONFIGURATION!$B$12>1,\"'\"&MID(CONFIGURATION!$B$12,2,LEN(CONFIGURATION!$B$12)),\"\") & \")\"","v":"Currency Risk ($'000)"},null,null,null,null,null,{"$f":" TEXT('Insurer Information'!C3,\"mmmm dd, yyyy\")","v":"December 31, 2019"}]
[]
[null,null,-1,{"$f":"C5-1","v":-2},-3,-4,-5,-6,-7,-8,null,{"$f":"J5-1","v":-9},{"$f":"L5-1","v":-10},-11,-12,-13,-14,-15,null,{"$f":"R5-1","v":-16},{"$f":"T5-1","v":-17},{"$f":"U5-1","v":-18},null,{"$f":"V5-1","v":-19},{"$f":"X5-1","v":-20}]
[null,null,"MARKET VALUE BEFORE SHOCK",null,null,null,null,null,null,null,null,"MARKET VALUE AFTER SHOCK",null,null,null,null,null,null,null,"CURRENCY RISK"]
[null,null,null,null,null,null,null,null,"(6) x BSCR PROXY","if(((1) + (2) + (3) + (4) + (5)) > ((6) + (7)), 0, X1)"]
[null,null,null,null,null,null,null,null,"PROXY BSCR",null,null,"(1) + (8) x (1)",null,null,null,null,"(6) + (8) x (6)",null,null,"((1) - (9)) + ((2) - (10)) + ((3) - (11)) + MAX((4) - (12),0) + MAX((5) - (13),0)","(14) - (6)","(15) - (6)",null,"(16) + (17)","(16) + (18)"]
[null,null,null,"Long Exposures",null,"Short Exposures",null,null,null,null,null,null,"Long Exposures",null,"Short Exposures"]
[null,"CURRENCY","Assets - Excluding currency-sensitive derivatives","Currency Derivatives Qualifying as held for risk-mitigation purposes","Currency Derivatives Not Qualifying as held for risk-mitigation purposes","Currency Derivatives Qualifying as held for risk-mitigation purposes","Currency Derivatives Not Qualifying as held for risk-mitigation purposes","Best Estimate Liabilities",{"$f":"'Schedule XXA'!P45","v":0},"SHOCK",null,"Assets - Excluding currency-sensitive derivatives","Currency Derivatives Qualifying as held for risk-mitigation purposes","Currency Derivatives Not Qualifying as held for risk-mitigation purposes","Currency Derivatives Qualifying as held for risk-mitigation purposes","Currency Derivatives Not Qualifying as held for risk-mitigation purposes","Best Estimate Liabilities without Management Actions","Best Estimate Liabilities with Management Actions",null,"ASSETS","TECHNICAL PROVISIONS WITHOUT MANAGEMENT ACTIONS","TECHNICAL PROVISIONS WITH MANAGEMENT ACTIONS",null,"CAPITAL CHARGE WITHOUT MANAGEMENT ACTIONS","CAPITAL CHARGE WITH MANAGEMENT ACTIONS"]
[]
[null,{"$f":"'Schedule XXA'!B10","v":"United States Dollars"},{"$f":"'Schedule XXA'!D10","v":0},{"$f":"'Schedule XXA'!F10","v":0},{"$f":"'Schedule XXA'!H10","v":0},{"$f":"'Schedule XXA'!J10","v":0},{"$f":"'Schedule XXA'!L10","v":0},{"$f":"'Schedule XXA'!N10","v":0},{"$f":"$I$10*H12","v":0},0,null,{"$f":"'Schedule XXA'!V10","v":0},{"$f":"'Schedule XXA'!X10","v":0},{"$f":"'Schedule XXA'!Z10","v":0},{"$f":"'Schedule XXA'!AB10","v":0},{"$f":"'Schedule XXA'!AD10","v":0},{"$f":"'Schedule XXA'!AF10","v":0},{"$f":"IF('Schedule XXA'!AH10=0,Q12,'Schedule XXA'!AH10)","v":0},null,{"$f":"(C12-L12)+(D12-M12)+(F12-O12)+MAX(E12-N12,0)+MAX(G12-P12,0)","v":0},{"$f":"Q12-$H12","v":0},{"$f":"R12-$H12","v":0},null,{"$f":"MAX(0,$T12+U12+(J12*I12))","v":0},{"$f":"MAX(0,$T12+V12+(J12*I12))","v":0}]
[null,{"$f":"'Schedule XXA'!B11","v":"Bermuda Dollars"},{"$f":"'Schedule XXA'!D11","v":0},{"$f":"'Schedule XXA'!F11","v":0},{"$f":"'Schedule XXA'!H11","v":0},{"$f":"'Schedule XXA'!J11","v":0},{"$f":"'Schedule XXA'!L11","v":0},{"$f":"'Schedule XXA'!N11","v":0},{"$f":"$I$10*H13","v":0},{"$f":"IF($B$12=\"Bermuda Dollars\",0%,IF($B$12=\"United States Dollars\",0%,IF((SUM(C13:G13))>(H13+I13),0%,25%)))","v":0},null,{"$f":"'Schedule XXA'!V11","v":0},{"$f":"'Schedule XXA'!X11","v":0},{"$f":"'Schedule XXA'!Z11","v":0},{"$f":"'Schedule XXA'!AB11","v":0},{"$f":"'Schedule XXA'!AD11","v":0},{"$f":"'Schedule XXA'!AF11","v":0},{"$f":"IF('Schedule XXA'!AH11=0,Q13,'Schedule XXA'!AH11)","v":0},null,{"$f":"(C13-L13)+(D13-M13)+(F13-O13)+MAX(E13-N13,0)+MAX(G13-P13,0)","v":0},{"$f":"Q13-$H13","v":0},0,null,{"$f":"MAX(0,$T13+U13+(J13*I13))","v":0},{"$f":"MAX(0,$T13+V13+(J13*I13))","v":0}]
[null,{"$f":"'Schedule XXA'!B12","v":"Qatar Riyals"},{"$f":"'Schedule XXA'!D12","v":0},{"$f":"'Schedule XXA'!F12","v":0},{"$f":"'Schedule XXA'!H12","v":0},{"$f":"'Schedule XXA'!J12","v":0},{"$f":"'Schedule XXA'!L12","v":0},{"$f":"'Schedule XXA'!N12","v":0},0,{"$f":"IF($B$12=\"Qatar Riyals\",IF((SUM(C14:G14))>(H14+I14),0%,5%),IF($B$12=\"United States Dollars\",IF((C14+E14)>(H14+I14),0%,5%),IF((SUM(C14:G14))>(H14+I14),0%,25%)))","v":0.05},null,{"$f":"'Schedule XXA'!V12","v":0},{"$f":"'Schedule XXA'!X12","v":0},{"$f":"'Schedule XXA'!Z12","v":0},{"$f":"'Schedule XXA'!AB12","v":0},{"$f":"'Schedule XXA'!AD12","v":0},{"$f":"'Schedule XXA'!AF12","v":0},{"$f":"IF('Schedule XXA'!AH12=0,Q14,'Schedule XXA'!AH12)","v":0},null,0,0,0,null,0,0]
[null,{"$f":"'Schedule XXA'!B13","v":"Hong Kong Dollars"},{"$f":"'Schedule XXA'!D13","v":0},{"$f":"'Schedule XXA'!F13","v":0},{"$f":"'Schedule XXA'!H13","v":0},{"$f":"'Schedule XXA'!J13","v":0},{"$f":"'Schedule XXA'!L13","v":0},{"$f":"'Schedule XXA'!N13","v":0},0,{"$f":"IF($B$12=\"Hong Kong Dollars\",IF((SUM(C15:G15))>(H15+I15),0%,1%),IF($B$12=\"United States Dollars\",IF((C15+E15)>(H15+I15),0%,1%),IF((SUM(C15:G15))>(H15+I15),0%,25%)))","v":0.01},null,{"$f":"'Schedule XXA'!V13","v":0},{"$f":"'Schedule XXA'!X13","v":0},{"$f":"'Schedule XXA'!Z13","v":0},{"$f":"'Schedule XXA'!AB13","v":0},{"$f":"'Schedule XXA'!AD13","v":0},{"$f":"'Schedule XXA'!AF13","v":0},{"$f":"IF('Schedule XXA'!AH13=0,Q15,'Schedule XXA'!AH13)","v":0},null,0,0,0,null,0,0]
[null,{"$f":"'Schedule XXA'!B14","v":"Euro"},{"$f":"'Schedule XXA'!D14","v":0},{"$f":"'Schedule XXA'!F14","v":0},{"$f":"'Schedule XXA'!H14","v":0},{"$f":"'Schedule XXA'!J14","v":0},{"$f":"'Schedule XXA'!L14","v":0},{"$f":"'Schedule XXA'!N14","v":0},0,{"$f":"IF($B$12=\"Denmark Kroner\",IF((C16+D16+E16+F16+G16)>(H16+I16),0%,0.39%),IF($B$12=\"Bulgaria Leva\",IF((C16+D16+E16+F16+G16)>(H16+I16),0%,1.81%),IF($B$12=\"West African CFA Francs\",IF((C16+D16+E16+F16+G16)>(H16+I16),0%,2.18%),IF($B$12=\"Central African CFA Francs\",IF((C16+D16+E16+F16+G16)>(H16+I16),0%,1.96%),IF($B$12=\"Comorian Francs\",IF((C16+D16+E16+F16+G16)>(H16+I16),0%,2%),IF((C16+D16+E16+F16+G16)>(H16+I16),0%,25%))))))","v":0.25},null,{"$f":"'Schedule XXA'!V14","v":0},{"$f":"'Schedule XXA'!X14","v":0},{"$f":"'Schedule XXA'!Z14","v":0},{"$f":"'Schedule XXA'!AB14","v":0},{"$f":"'Schedule XXA'!AD14","v":0},{"$f":"'Schedule XXA'!AF14","v":0},{"$f":"IF('Schedule XXA'!AH14=0,Q16,'Schedule XXA'!AH14)","v":0},null,0,0,0,null,0,0]
[null,{"$f":"'Schedule XXA'!B15","v":"Denmark Kroner"},{"$f":"'Schedule XXA'!D15","v":0},{"$f":"'Schedule XXA'!F15","v":0},{"$f":"'Schedule XXA'!H15","v":0},{"$f":"'Schedule XXA'!J15","v":0},{"$f":"'Schedule XXA'!L15","v":0},{"$f":"'Schedule XXA'!N15","v":0},0,{"$f":"IF($B$12=\"Euro\",IF((SUM(C17:G17))>(H17+I17),0%,0.39%),IF((SUM(C17:G17))>(H17+I17),0%,25%))","v":0.25},null,{"$f":"'Schedule XXA'!V15","v":0},{"$f":"'Schedule XXA'!X15","v":0},{"$f":"'Schedule XXA'!Z15","v":0},{"$f":"'Schedule XXA'!AB15","v":0},{"$f":"'Schedule XXA'!AD15","v":0},{"$f":"'Schedule XXA'!AF15","v":0},{"$f":"IF('Schedule XXA'!AH15=0,Q17,'Schedule XXA'!AH15)","v":0},null,0,0,0,null,0,0]
[null,{"$f":"'Schedule XXA'!B16","v":"Bulgaria Leva"},{"$f":"'Schedule XXA'!D16","v":0},{"$f":"'Schedule XXA'!F16","v":0},{"$f":"'Schedule XXA'!H16","v":0},{"$f":"'Schedule XXA'!J16","v":0},{"$f":"'Schedule XXA'!L16","v":0},{"$f":"'Schedule XXA'!N16","v":0},0,{"$f":"IF($B$12=\"Euro\",IF((SUM(C18:G18))>(H18+I18),0%,1.81%),IF((SUM(C18:G18))>(H18+I18),0%,25%))","v":0.25},null,{"$f":"'Schedule XXA'!V16","v":0},{"$f":"'Schedule XXA'!X16","v":0},{"$f":"'Schedule XXA'!Z16","v":0},{"$f":"'Schedule XXA'!AB16","v":0},{"$f":"'Schedule XXA'!AD16","v":0},{"$f":"'Schedule XXA'!AF16","v":0},{"$f":"IF('Schedule XXA'!AH16=0,Q18,'Schedule XXA'!AH16)","v":0},null,0,0,0,null,0,0]
[null,{"$f":"'Schedule XXA'!B17","v":"West African CFA Francs"},{"$f":"'Schedule XXA'!D17","v":0},{"$f":"'Schedule XXA'!F17","v":0},{"$f":"'Schedule XXA'!H17","v":0},{"$f":"'Schedule XXA'!J17","v":0},{"$f":"'Schedule XXA'!L17","v":0},{"$f":"'Schedule XXA'!N17","v":0},0,{"$f":"IF($B$12=\"Euro\",IF((SUM(C19:G19))>(H19+I19),0%,2.18%),IF((SUM(C19:G19))>(H19+I19),0%,25%))","v":0.25},null,{"$f":"'Schedule XXA'!V17","v":0},{"$f":"'Schedule XXA'!X17","v":0},{"$f":"'Schedule XXA'!Z17","v":0},{"$f":"'Schedule XXA'!AB17","v":0},{"$f":"'Schedule XXA'!AD17","v":0},{"$f":"'Schedule XXA'!AF17","v":0},{"$f":"IF('Schedule XXA'!AH17=0,Q19,'Schedule XXA'!AH17)","v":0},null,0,0,0,null,0,0]
[null,{"$f":"'Schedule XXA'!B18","v":"Central African CFA Francs"},{"$f":"'Schedule XXA'!D18","v":0},{"$f":"'Schedule XXA'!F18","v":0},{"$f":"'Schedule XXA'!H18","v":0},{"$f":"'Schedule XXA'!J18","v":0},{"$f":"'Schedule XXA'!L18","v":0},{"$f":"'Schedule XXA'!N18","v":0},0,{"$f":"IF($B$12=\"Euro\",IF((SUM(C20:G20))>(H20+I20),0%,1.96%),IF((SUM(C20:G20))>(H20+I20),0%,25%))","v":0.25},null,{"$f":"'Schedule XXA'!V18","v":0},{"$f":"'Schedule XXA'!X18","v":0},{"$f":"'Schedule XXA'!Z18","v":0},{"$f":"'Schedule XXA'!AB18","v":0},{"$f":"'Schedule XXA'!AD18","v":0},{"$f":"'Schedule XXA'!AF18","v":0},{"$f":"IF('Schedule XXA'!AH18=0,Q20,'Schedule XXA'!AH18)","v":0},null,0,0,0,null,0,0]
[null,{"$f":"'Schedule XXA'!B19","v":"Comorian Francs"},{"$f":"'Schedule XXA'!D19","v":0},{"$f":"'Schedule XXA'!F19","v":0},{"$f":"'Schedule XXA'!H19","v":0},{"$f":"'Schedule XXA'!J19","v":0},{"$f":"'Schedule XXA'!L19","v":0},{"$f":"'Schedule XXA'!N19","v":0},0,{"$f":"IF($B$12=\"Euro\",IF((SUM(C21:G21))>(H21+I21),0%,2%),IF((SUM(C21:G21))>(H21+I21),0%,25%))","v":0.25},null,{"$f":"'Schedule XXA'!V19","v":0},{"$f":"'Schedule XXA'!X19","v":0},{"$f":"'Schedule XXA'!Z19","v":0},{"$f":"'Schedule XXA'!AB19","v":0},{"$f":"'Schedule XXA'!AD19","v":0},{"$f":"'Schedule XXA'!AF19","v":0},{"$f":"IF('Schedule XXA'!AH19=0,Q21,'Schedule XXA'!AH19)","v":0},null,0,0,0,null,0,0]
[null,{"$f":"'Schedule XXA'!B20","v":"United Kingdom Pounds"},{"$f":"'Schedule XXA'!D20","v":0},{"$f":"'Schedule XXA'!F20","v":0},{"$f":"'Schedule XXA'!H20","v":0},{"$f":"'Schedule XXA'!J20","v":0},{"$f":"'Schedule XXA'!L20","v":0},{"$f":"'Schedule XXA'!N20","v":0},0,{"$f":"IF((SUM(C22:G22))>(H22+I22),0%,25%)","v":0.25},null,{"$f":"'Schedule XXA'!V20","v":0},{"$f":"'Schedule XXA'!X20","v":0},{"$f":"'Schedule XXA'!Z20","v":0},{"$f":"'Schedule XXA'!AB20","v":0},{"$f":"'Schedule XXA'!AD20","v":0},{"$f":"'Schedule XXA'!AF20","v":0},{"$f":"IF('Schedule XXA'!AH20=0,Q22,'Schedule XXA'!AH20)","v":0},null,0,0,0,null,0,0]
[null,{"$f":"'Schedule XXA'!B21","v":"Canada Dollars"},{"$f":"'Schedule XXA'!D21","v":0},{"$f":"'Schedule XXA'!F21","v":0},{"$f":"'Schedule XXA'!H21","v":0},{"$f":"'Schedule XXA'!J21","v":0},{"$f":"'Schedule XXA'!L21","v":0},{"$f":"'Schedule XXA'!N21","v":0},0,{"$f":"IF((SUM(C23:G23))>(H23+I23),0%,25%)","v":0.25},null,{"$f":"'Schedule XXA'!V21","v":0},{"$f":"'Schedule XXA'!X21","v":0},{"$f":"'Schedule XXA'!Z21","v":0},{"$f":"'Schedule XXA'!AB21","v":0},{"$f":"'Schedule XXA'!AD21","v":0},{"$f":"'Schedule XXA'!AF21","v":0},{"$f":"IF('Schedule XXA'!AH21=0,Q23,'Schedule XXA'!AH21)","v":0},null,0,0,0,null,0,0]
[null,{"$f":"'Schedule XXA'!B22","v":"Japan Yen"},{"$f":"'Schedule XXA'!D22","v":0},{"$f":"'Schedule XXA'!F22","v":0},{"$f":"'Schedule XXA'!H22","v":0},{"$f":"'Schedule XXA'!J22","v":0},{"$f":"'Schedule XXA'!L22","v":0},{"$f":"'Schedule XXA'!N22","v":0},0,{"$f":"IF((SUM(C24:G24))>(H24+I24),0%,25%)","v":0.25},null,{"$f":"'Schedule XXA'!V22","v":0},{"$f":"'Schedule XXA'!X22","v":0},{"$f":"'Schedule XXA'!Z22","v":0},{"$f":"'Schedule XXA'!AB22","v":0},{"$f":"'Schedule XXA'!AD22","v":0},{"$f":"'Schedule XXA'!AF22","v":0},{"$f":"IF('Schedule XXA'!AH22=0,Q24,'Schedule XXA'!AH22)","v":0},null,0,0,0,null,0,0]
[null,{"$f":"'Schedule XXA'!B23","v":"Other currency 1"},{"$f":"'Schedule XXA'!D23","v":0},{"$f":"'Schedule XXA'!F23","v":0},{"$f":"'Schedule XXA'!H23","v":0},{"$f":"'Schedule XXA'!J23","v":0},{"$f":"'Schedule XXA'!L23","v":0},{"$f":"'Schedule XXA'!N23","v":0},0,{"$f":"IF((SUM(C25:G25))>(H25+I25),0%,25%)","v":0.25},null,{"$f":"'Schedule XXA'!V23","v":0},{"$f":"'Schedule XXA'!X23","v":0},{"$f":"'Schedule XXA'!Z23","v":0},{"$f":"'Schedule XXA'!AB23","v":0},{"$f":"'Schedule XXA'!AD23","v":0},{"$f":"'Schedule XXA'!AF23","v":0},{"$f":"IF('Schedule XXA'!AH23=0,Q25,'Schedule XXA'!AH23)","v":0},null,0,0,0,null,0,0]
[null,{"$f":"'Schedule XXA'!B24","v":"Other currency 2"},{"$f":"'Schedule XXA'!D24","v":0},{"$f":"'Schedule XXA'!F24","v":0},{"$f":"'Schedule XXA'!H24","v":0},{"$f":"'Schedule XXA'!J24","v":0},{"$f":"'Schedule XXA'!L24","v":0},{"$f":"'Schedule XXA'!N24","v":0},0,0.25,null,{"$f":"'Schedule XXA'!V24","v":0},{"$f":"'Schedule XXA'!X24","v":0},{"$f":"'Schedule XXA'!Z24","v":0},{"$f":"'Schedule XXA'!AB24","v":0},{"$f":"'Schedule XXA'!AD24","v":0},{"$f":"'Schedule XXA'!AF24","v":0},{"$f":"IF('Schedule XXA'!AH24=0,Q26,'Schedule XXA'!AH24)","v":0},null,0,0,0,null,0,0]
[null,{"$f":"'Schedule XXA'!B25","v":"Other currency 3"},{"$f":"'Schedule XXA'!D25","v":0},{"$f":"'Schedule XXA'!F25","v":0},{"$f":"'Schedule XXA'!H25","v":0},{"$f":"'Schedule XXA'!J25","v":0},{"$f":"'Schedule XXA'!L25","v":0},{"$f":"'Schedule XXA'!N25","v":0},0,0.25,null,{"$f":"'Schedule XXA'!V25","v":0},{"$f":"'Schedule XXA'!X25","v":0},{"$f":"'Schedule XXA'!Z25","v":0},{"$f":"'Schedule XXA'!AB25","v":0},{"$f":"'Schedule XXA'!AD25","v":0},{"$f":"'Schedule XXA'!AF25","v":0},{"$f":"IF('Schedule XXA'!AH25=0,Q27,'Schedule XXA'!AH25)","v":0},null,0,0,0,null,0,0]
[null,{"$f":"'Schedule XXA'!B26","v":"Other currency 4"},{"$f":"'Schedule XXA'!D26","v":0},{"$f":"'Schedule XXA'!F26","v":0},{"$f":"'Schedule XXA'!H26","v":0},{"$f":"'Schedule XXA'!J26","v":0},{"$f":"'Schedule XXA'!L26","v":0},{"$f":"'Schedule XXA'!N26","v":0},0,0.25,null,{"$f":"'Schedule XXA'!V26","v":0},{"$f":"'Schedule XXA'!X26","v":0},{"$f":"'Schedule XXA'!Z26","v":0},{"$f":"'Schedule XXA'!AB26","v":0},{"$f":"'Schedule XXA'!AD26","v":0},{"$f":"'Schedule XXA'!AF26","v":0},{"$f":"IF('Schedule XXA'!AH26=0,Q28,'Schedule XXA'!AH26)","v":0},null,0,0,0,null,0,0]
[null,{"$f":"'Schedule XXA'!B27","v":"Other currency 5"},{"$f":"'Schedule XXA'!D27","v":0},{"$f":"'Schedule XXA'!F27","v":0},{"$f":"'Schedule XXA'!H27","v":0},{"$f":"'Schedule XXA'!J27","v":0},{"$f":"'Schedule XXA'!L27","v":0},{"$f":"'Schedule XXA'!N27","v":0},0,0.25,null,{"$f":"'Schedule XXA'!V27","v":0},{"$f":"'Schedule XXA'!X27","v":0},{"$f":"'Schedule XXA'!Z27","v":0},{"$f":"'Schedule XXA'!AB27","v":0},{"$f":"'Schedule XXA'!AD27","v":0},{"$f":"'Schedule XXA'!AF27","v":0},{"$f":"IF('Schedule XXA'!AH27=0,Q29,'Schedule XXA'!AH27)","v":0},null,0,0,0,null,0,0]
[null,{"$f":"'Schedule XXA'!B28","v":"Other currency 6"},{"$f":"'Schedule XXA'!D28","v":0},{"$f":"'Schedule XXA'!F28","v":0},{"$f":"'Schedule XXA'!H28","v":0},{"$f":"'Schedule XXA'!J28","v":0},{"$f":"'Schedule XXA'!L28","v":0},{"$f":"'Schedule XXA'!N28","v":0},0,0.25,null,{"$f":"'Schedule XXA'!V28","v":0},{"$f":"'Schedule XXA'!X28","v":0},{"$f":"'Schedule XXA'!Z28","v":0},{"$f":"'Schedule XXA'!AB28","v":0},{"$f":"'Schedule XXA'!AD28","v":0},{"$f":"'Schedule XXA'!AF28","v":0},{"$f":"IF('Schedule XXA'!AH28=0,Q30,'Schedule XXA'!AH28)","v":0},null,0,0,0,null,0,0]
[null,{"$f":"'Schedule XXA'!B29","v":"Other currency 7"},{"$f":"'Schedule XXA'!D29","v":0},{"$f":"'Schedule XXA'!F29","v":0},{"$f":"'Schedule XXA'!H29","v":0},{"$f":"'Schedule XXA'!J29","v":0},{"$f":"'Schedule XXA'!L29","v":0},{"$f":"'Schedule XXA'!N29","v":0},0,0.25,null,{"$f":"'Schedule XXA'!V29","v":0},{"$f":"'Schedule XXA'!X29","v":0},{"$f":"'Schedule XXA'!Z29","v":0},{"$f":"'Schedule XXA'!AB29","v":0},{"$f":"'Schedule XXA'!AD29","v":0},{"$f":"'Schedule XXA'!AF29","v":0},{"$f":"IF('Schedule XXA'!AH29=0,Q31,'Schedule XXA'!AH29)","v":0},null,0,0,0,null,0,0]
[null,{"$f":"'Schedule XXA'!B30","v":"Other currency 8"},{"$f":"'Schedule XXA'!D30","v":0},{"$f":"'Schedule XXA'!F30","v":0},{"$f":"'Schedule XXA'!H30","v":0},{"$f":"'Schedule XXA'!J30","v":0},{"$f":"'Schedule XXA'!L30","v":0},{"$f":"'Schedule XXA'!N30","v":0},0,0.25,null,{"$f":"'Schedule XXA'!V30","v":0},{"$f":"'Schedule XXA'!X30","v":0},{"$f":"'Schedule XXA'!Z30","v":0},{"$f":"'Schedule XXA'!AB30","v":0},{"$f":"'Schedule XXA'!AD30","v":0},{"$f":"'Schedule XXA'!AF30","v":0},{"$f":"IF('Schedule XXA'!AH30=0,Q32,'Schedule XXA'!AH30)","v":0},null,0,0,0,null,0,0]
[null,{"$f":"'Schedule XXA'!B31","v":"Other currency 9"},{"$f":"'Schedule XXA'!D31","v":0},{"$f":"'Schedule XXA'!F31","v":0},{"$f":"'Schedule XXA'!H31","v":0},{"$f":"'Schedule XXA'!J31","v":0},{"$f":"'Schedule XXA'!L31","v":0},{"$f":"'Schedule XXA'!N31","v":0},0,0.25,null,{"$f":"'Schedule XXA'!V31","v":0},{"$f":"'Schedule XXA'!X31","v":0},{"$f":"'Schedule XXA'!Z31","v":0},{"$f":"'Schedule XXA'!AB31","v":0},{"$f":"'Schedule XXA'!AD31","v":0},{"$f":"'Schedule XXA'!AF31","v":0},{"$f":"IF('Schedule XXA'!AH31=0,Q33,'Schedule XXA'!AH31)","v":0},null,0,0,0,null,0,0]
[null,{"$f":"'Schedule XXA'!B32","v":"Other currency 10"},{"$f":"'Schedule XXA'!D32","v":0},{"$f":"'Schedule XXA'!F32","v":0},{"$f":"'Schedule XXA'!H32","v":0},{"$f":"'Schedule XXA'!J32","v":0},{"$f":"'Schedule XXA'!L32","v":0},{"$f":"'Schedule XXA'!N32","v":0},0,0.25,null,{"$f":"'Schedule XXA'!V32","v":0},{"$f":"'Schedule XXA'!X32","v":0},{"$f":"'Schedule XXA'!Z32","v":0},{"$f":"'Schedule XXA'!AB32","v":0},{"$f":"'Schedule XXA'!AD32","v":0},{"$f":"'Schedule XXA'!AF32","v":0},{"$f":"IF('Schedule XXA'!AH32=0,Q34,'Schedule XXA'!AH32)","v":0},null,0,0,0,null,0,0]
[null,"Total Identified",{"$f":"SUM(C12:C34)","v":0},0,0,0,0,0,null,null,null,{"$f":"SUM(L12:L34)","v":0},0,0,0,0,0,0,null,{"$f":"SUM(T12:T34)","v":0},0,0,null,{"$f":"SUM(X12:X34)","v":0},0]
[null,"Total",{"$f":"+'Schedule XXA'!D36","v":0},null,null,null,null,{"$f":"'Schedule XXA'!N36","v":0}]
[null,"% Identified",{"$f":"IF(C35=0,0,(C35+G35)/C36)","v":0},null,null,null,null,{"$f":"IF(H35=0,0,H35/H36)","v":0}]
[]
[null,"TOTAL CURRENCY RISK",null,null,null,null,null,null,null,null,null,null,null,null,null,null,null,null,null,null,null,null,null,{"$f":"IF(SUM(X12:X34)>=0,SUM(X12:X34),0)","v":0},{"$f":"IF(SUM(Y12:Y34)>=0,SUM(Y12:Y34),0)","v":0}]

{"sheet":"Concentration Risk","index":90,"n_rows":111,"n_cols":14,"rows_kept":111,"cut":false,"hidden":false,"merged":[[0,5,0,6]]}
["CONCENTRATION RISK",null,null,null,null,{"$f":"HYPERLINK(\"#'Index'!A1\",\"Return to Index\")","v":"Return to Index"}]
[{"$f":"'Insurer Information'!C7","v":"Enter Company Name"}]
[{"$f":"\"Concentration Risk\" & \" ($\" & IF(CONFIGURATION!$B$12>1,\"'\"&MID(CONFIGURATION!$B$12,2,LEN(CONFIGURATION!$B$12)),\"\") & \")\"","v":"Concentration Risk ($'000)"},null,{"$f":" TEXT('Insurer Information'!C3,\"mmmm dd, yyyy\")","v":"December 31, 2019"}]
[null,null,null,"(1)","(2)","(3)"]
[]
[null,"ASSET",null,null,"CAPITAL","REQUIRED",null,null,null,null,null,null,null,{"$f":"YEAR('Insurer Information'!C3)","v":2019}]
[null,"TYPE","STATEMENT SOURCE","EXPOSURE","FACTOR","CAPITAL"]
[]
[null,"(a) Cash and Cash Equivalents",null,"Cash and Cash Equivalent"]
[null,"BSCR Rating 0","Schedule XXI, Column H",{"$f":"SUMIFS('Schedule XXI'!$M$8:$M$57,'Schedule XXI'!$J$8:$J$57,$D$9,'Schedule XXI'!$L$8:$L$57,$B10)","v":0},{"$f":"+'Fixed Income Investments'!E83","v":0},{"$f":"MAX(0,(D10*E10))","v":0}]
[null,"BSCR Rating 1","Schedule XXI, Column H",{"$f":"SUMIFS('Schedule XXI'!$M$8:$M$57,'Schedule XXI'!$J$8:$J$57,$D$9,'Schedule XXI'!$L$8:$L$57,$B11)","v":0},{"$f":"+'Fixed Income Investments'!E84","v":1E-3},{"$f":"MAX(0,(D11*E11))","v":0}]
[null,"BSCR Rating 2","Schedule XXI, Column H",{"$f":"SUMIFS('Schedule XXI'!$M$8:$M$57,'Schedule XXI'!$J$8:$J$57,$D$9,'Schedule XXI'!$L$8:$L$57,$B12)","v":0},{"$f":"+'Fixed Income Investments'!E85","v":2E-3},0]
[null,"BSCR Rating 3","Schedule XXI, Column H",{"$f":"SUMIFS('Schedule XXI'!$M$8:$M$57,'Schedule XXI'!$J$8:$J$57,$D$9,'Schedule XXI'!$L$8:$L$57,$B13)","v":0},{"$f":"+'Fixed Income Investments'!E86","v":3.0000000000000001E-3},0]
[null,"BSCR Rating 4","Schedule XXI, Column H",{"$f":"SUMIFS('Schedule XXI'!$M$8:$M$57,'Schedule XXI'!$J$8:$J$57,$D$9,'Schedule XXI'!$L$8:$L$57,$B14)","v":0},{"$f":"+'Fixed Income Investments'!E87","v":5.0000000000000001E-3},0]
[null,"BSCR Rating 5","Schedule XXI, Column H",{"$f":"SUMIFS('Schedule XXI'!$M$8:$M$57,'Schedule XXI'!$J$8:$J$57,$D$9,'Schedule XXI'!$L$8:$L$57,$B15)","v":0},{"$f":"+'Fixed Income Investments'!E88","v":1.4999999999999999E-2},0]
[null,"BSCR Rating 6","Schedule XXI, Column H",{"$f":"SUMIFS('Schedule XXI'!$M$8:$M$57,'Schedule XXI'!$J$8:$J$57,$D$9,'Schedule XXI'!$L$8:$L$57,$B16)","v":0},{"$f":"+'Fixed Income Investments'!E89","v":0.04},0]
[null,"BSCR Rating 7","Schedule XXI, Column H",{"$f":"SUMIFS('Schedule XXI'!$M$8:$M$57,'Schedule XXI'!$J$8:$J$57,$D$9,'Schedule XXI'!$L$8:$L$57,$B17)","v":0},{"$f":"+'Fixed Income Investments'!E90","v":0.06},0]
[null,"BSCR Rating 8","Schedule XXI, Column H",{"$f":"SUMIFS('Schedule XXI'!$M$8:$M$57,'Schedule XXI'!$J$8:$J$57,$D$9,'Schedule XXI'!$L$8:$L$57,$B18)","v":0},{"$f":"+'Fixed Income Investments'!E91","v":0.09},0]
[]
[null,"(a)  SUBTOTAL - CASH AND CASH EQUIVALENTS",null,{"$f":"SUM(D10:D18)","v":0},null,{"$f":"SUM(F10:F18)","v":0}]
[]
[null,"(b) Corporate & Sovereign Bonds",null,"Corporate & Sovereign Bonds"]
[null,"BSCR Rating 0","Schedule XXI, Column H",{"$f":"SUMIFS('Schedule XXI'!$M$8:$M$57,'Schedule XXI'!$K$8:$K$57,$D$22,'Schedule XXI'!$L$8:$L$57,$B23)","v":0},0,{"$f":"MAX(0,(D23*E23))","v":0}]
[null,"BSCR Rating 1","Schedule XXI, Column H",{"$f":"SUMIFS('Schedule XXI'!$M$8:$M$57,'Schedule XXI'!$K$8:$K$57,$D$22,'Schedule XXI'!$L$8:$L$57,$B24)","v":0},4.0000000000000001E-3,{"$f":"MAX(0,(D24*E24))","v":0}]
[null,"BSCR Rating 2","Schedule XXI, Column H",{"$f":"SUMIFS('Schedule XXI'!$M$8:$M$57,'Schedule XXI'!$K$8:$K$57,$D$22,'Schedule XXI'!$L$8:$L$57,$B25)","v":0},8.0000000000000002E-3,0]
[null,"BSCR Rating 3","Schedule XXI, Column H",{"$f":"SUMIFS('Schedule XXI'!$M$8:$M$57,'Schedule XXI'!$K$8:$K$57,$D$22,'Schedule XXI'!$L$8:$L$57,$B26)","v":0},1.4999999999999999E-2,0]
[null,"BSCR Rating 4","Schedule XXI, Column H",{"$f":"SUMIFS('Schedule XXI'!$M$8:$M$57,'Schedule XXI'!$K$8:$K$57,$D$22,'Schedule XXI'!$L$8:$L$57,$B27)","v":0},0.03,0]
[null,"BSCR Rating 5","Schedule XXI, Column H",{"$f":"SUMIFS('Schedule XXI'!$M$8:$M$57,'Schedule XXI'!$K$8:$K$57,$D$22,'Schedule XXI'!$L$8:$L$57,$B28)","v":0},0.08,0]
[null,"BSCR Rating 6","Schedule XXI, Column H",{"$f":"SUMIFS('Schedule XXI'!$M$8:$M$57,'Schedule XXI'!$K$8:$K$57,$D$22,'Schedule XXI'!$L$8:$L$57,$B29)","v":0},0.15,0]
[null,"BSCR Rating 7","Schedule XXI, Column H",{"$f":"SUMIFS('Schedule XXI'!$M$8:$M$57,'Schedule XXI'!$K$8:$K$57,$D$22,'Schedule XXI'!$L$8:$L$57,$B30)","v":0},0.26300000000000001,0]
[null,"BSCR Rating 8","Schedule XXI, Column H",{"$f":"SUMIFS('Schedule XXI'!$M$8:$M$57,'Schedule XXI'!$K$8:$K$57,$D$22,'Schedule XXI'!$L$8:$L$57,$B31)","v":0},0.35,0]
[]
[null,"(b)  SUBTOTAL - CORPORATE & SOVEREIGN BONDS",null,{"$f":"SUM(D23:D31)","v":0},null,{"$f":"SUM(F23:F31)","v":0}]
[]
[null,"(c) Residential Mortage-Backed Securities",null,"Residential Mortgage-Backed Securities"]
[null,"BSCR Rating 0","Schedule XXI, Column H",{"$f":"SUMIFS('Schedule XXI'!$M$8:$M$57,'Schedule XXI'!$K$8:$K$57,$D$35,'Schedule XXI'!$L$8:$L$57,$B36)","v":0},0,{"$f":"MAX(0,(D36*E36))","v":0}]
[null,"BSCR Rating 1","Schedule XXI, Column H",{"$f":"SUMIFS('Schedule XXI'!$M$8:$M$57,'Schedule XXI'!$K$8:$K$57,$D$35,'Schedule XXI'!$L$8:$L$57,$B37)","v":0},6.0000000000000001E-3,{"$f":"MAX(0,(D37*E37))","v":0}]
[null,"BSCR Rating 2","Schedule XXI, Column H",{"$f":"SUMIFS('Schedule XXI'!$M$8:$M$57,'Schedule XXI'!$K$8:$K$57,$D$35,'Schedule XXI'!$L$8:$L$57,$B38)","v":0},1.2E-2,0]
[null,"BSCR Rating 3","Schedule XXI, Column H",{"$f":"SUMIFS('Schedule XXI'!$M$8:$M$57,'Schedule XXI'!$K$8:$K$57,$D$35,'Schedule XXI'!$L$8:$L$57,$B39)","v":0},0.02,0]
[null,"BSCR Rating 4","Schedule XXI, Column H",{"$f":"SUMIFS('Schedule XXI'!$M$8:$M$57,'Schedule XXI'!$K$8:$K$57,$D$35,'Schedule XXI'!$L$8:$L$57,$B40)","v":0},0.04,0]
[null,"BSCR Rating 5","Schedule XXI, Column H",{"$f":"SUMIFS('Schedule XXI'!$M$8:$M$57,'Schedule XXI'!$K$8:$K$57,$D$35,'Schedule XXI'!$L$8:$L$57,$B41)","v":0},0.11,0]
[null,"BSCR Rating 6","Schedule XXI, Column H",{"$f":"SUMIFS('Schedule XXI'!$M$8:$M$57,'Schedule XXI'!$K$8:$K$57,$D$35,'Schedule XXI'!$L$8:$L$57,$B42)","v":0},0.25,0]
[null,"BSCR Rating 7","Schedule XXI, Column H",{"$f":"SUMIFS('Schedule XXI'!$M$8:$M$57,'Schedule XXI'!$K$8:$K$57,$D$35,'Schedule XXI'!$L$8:$L$57,$B43)","v":0},0.35,0]
[null,"BSCR Rating 8","Schedule XXI, Column H",{"$f":"SUMIFS('Schedule XXI'!$M$8:$M$57,'Schedule XXI'!$K$8:$K$57,$D$35,'Schedule XXI'!$L$8:$L$57,$B44)","v":0},0.35,0]
[]
[null,"(c)  SUBTOTAL - RESIDENTIAL MORTGAGE-BACKED SECURITIES",null,{"$f":"SUM(D36:D44)","v":0},null,{"$f":"SUM(F36:F44)","v":0}]
[]
[null,"(d) Commercial Mortgage-Backed Securities / Asset Backed Securities",null,"Commercial Mortgage-Backed Securities"]
[null,"BSCR Rating 0","Schedule XXI, Column H",{"$f":"SUMIFS('Schedule XXI'!$M$8:$M$57,'Schedule XXI'!$K$8:$K$57,$D$48,'Schedule XXI'!$L$8:$L$57,$B49)","v":0},0,{"$f":"MAX(0,(D49*E49))","v":0}]
[null,"BSCR Rating 1","Schedule XXI, Column H",{"$f":"SUMIFS('Schedule XXI'!$M$8:$M$57,'Schedule XXI'!$K$8:$K$57,$D$48,'Schedule XXI'!$L$8:$L$57,$B50)","v":0},5.0000000000000001E-3,{"$f":"MAX(0,(D50*E50))","v":0}]
[null,"BSCR Rating 2","Schedule XXI, Column H",{"$f":"SUMIFS('Schedule XXI'!$M$8:$M$57,'Schedule XXI'!$K$8:$K$57,$D$48,'Schedule XXI'!$L$8:$L$57,$B51)","v":0},0.01,0]
[null,"BSCR Rating 3","Schedule XXI, Column H",{"$f":"SUMIFS('Schedule XXI'!$M$8:$M$57,'Schedule XXI'!$K$8:$K$57,$D$48,'Schedule XXI'!$L$8:$L$57,$B52)","v":0},1.7999999999999999E-2,0]
[null,"BSCR Rating 4","Schedule XXI, Column H",{"$f":"SUMIFS('Schedule XXI'!$M$8:$M$57,'Schedule XXI'!$K$8:$K$57,$D$48,'Schedule XXI'!$L$8:$L$57,$B53)","v":0},3.5000000000000003E-2,0]
[null,"BSCR Rating 5","Schedule XXI, Column H",{"$f":"SUMIFS('Schedule XXI'!$M$8:$M$57,'Schedule XXI'!$K$8:$K$57,$D$48,'Schedule XXI'!$L$8:$L$57,$B54)","v":0},0.1,0]
[null,"BSCR Rating 6","Schedule XXI, Column H",{"$f":"SUMIFS('Schedule XXI'!$M$8:$M$57,'Schedule XXI'!$K$8:$K$57,$D$48,'Schedule XXI'!$L$8:$L$57,$B55)","v":0},0.2,0]
[null,"BSCR Rating 7","Schedule XXI, Column H",{"$f":"SUMIFS('Schedule XXI'!$M$8:$M$57,'Schedule XXI'!$K$8:$K$57,$D$48,'Schedule XXI'!$L$8:$L$57,$B56)","v":0},0.3,0]
[null,"BSCR Rating 8","Schedule XXI, Column H",{"$f":"SUMIFS('Schedule XXI'!$M$8:$M$57,'Schedule XXI'!$K$8:$K$57,$D$48,'Schedule XXI'!$L$8:$L$57,$B57)","v":0},0.35,0]
[]
[null,"(d)  SUBTOTAL - COMMERCIAL MORTGAGE-BACKED SECURITIES / ASSET-BACKED SECURITIES",null,{"$f":"SUM(D49:D57)","v":0},null,{"$f":"SUM(F49:F57)","v":0}]
[]
[null,"(e) Bond Mutual Funds",null,"Bond Mutual Funds"]
[null,"BSCR Rating 0","Schedule XXI, Column H",{"$f":"SUMIFS('Schedule XXI'!$M$8:$M$57,'Schedule XXI'!$K$8:$K$57,$D$61,'Schedule XXI'!$L$8:$L$57,$B62)","v":0},0,{"$f":"MAX(0,(D62*E62))","v":0}]
[null,"BSCR Rating 1","Schedule XXI, Column H",{"$f":"SUMIFS('Schedule XXI'!$M$8:$M$57,'Schedule XXI'!$K$8:$K$57,$D$61,'Schedule XXI'!$L$8:$L$57,$B63)","v":0},4.0000000000000001E-3,{"$f":"MAX(0,(D63*E63))","v":0}]
[null,"BSCR Rating 2","Schedule XXI, Column H",{"$f":"SUMIFS('Schedule XXI'!$M$8:$M$57,'Schedule XXI'!$K$8:$K$57,$D$61,'Schedule XXI'!$L$8:$L$57,$B64)","v":0},8.0000000000000002E-3,0]
[null,"BSCR Rating 3","Schedule XXI, Column H",{"$f":"SUMIFS('Schedule XXI'!$M$8:$M$57,'Schedule XXI'!$K$8:$K$57,$D$61,'Schedule XXI'!$L$8:$L$57,$B65)","v":0},1.4999999999999999E-2,0]
[null,"BSCR Rating 4","Schedule XXI, Column H",{"$f":"SUMIFS('Schedule XXI'!$M$8:$M$57,'Schedule XXI'!$K$8:$K$57,$D$61,'Schedule XXI'!$L$8:$L$57,$B66)","v":0},0.03,0]
[null,"BSCR Rating 5","Schedule XXI, Column H",{"$f":"SUMIFS('Schedule XXI'!$M$8:$M$57,'Schedule XXI'!$K$8:$K$57,$D$61,'Schedule XXI'!$L$8:$L$57,$B67)","v":0},0.08,0]
[null,"BSCR Rating 6","Schedule XXI, Column H",{"$f":"SUMIFS('Schedule XXI'!$M$8:$M$57,'Schedule XXI'!$K$8:$K$57,$D$61,'Schedule XXI'!$L$8:$L$57,$B68)","v":0},0.15,0]
[null,"BSCR Rating 7","Schedule XXI, Column H",{"$f":"SUMIFS('Schedule XXI'!$M$8:$M$57,'Schedule XXI'!$K$8:$K$57,$D$61,'Schedule XXI'!$L$8:$L$57,$B69)","v":0},0.26300000000000001,0]
[null,"BSCR Rating 8","Schedule XXI, Column H",{"$f":"SUMIFS('Schedule XXI'!$M$8:$M$57,'Schedule XXI'!$K$8:$K$57,$D$61,'Schedule XXI'!$L$8:$L$57,$B70)","v":0},0.35,0]
[]
[null,"(e)  SUBTOTAL - BOND MUTUAL FUNDS",null,{"$f":"SUM(D62:D70)","v":0},null,{"$f":"SUM(F62:F70)","v":0}]
[]
[null,"(f) Preferred Shares",null,"Preferred Shares"]
[null,"BSCR Rating 0","Schedule XXI, Column H",{"$f":"SUMIFS('Schedule XXI'!$M$8:$M$57,'Schedule XXI'!$J$8:$J$57,$D$74,'Schedule XXI'!$L$8:$L$57,$B75)","v":0},0,{"$f":"MAX(0,(D75*E75))","v":0}]
[null,"BSCR Rating 1","Schedule XXI, Column H",{"$f":"SUMIFS('Schedule XXI'!$M$8:$M$57,'Schedule XXI'!$J$8:$J$57,$D$74,'Schedule XXI'!$L$8:$L$57,$B76)","v":0},6.0000000000000001E-3,0]
[null,"BSCR Rating 2","Schedule XXI, Column H",{"$f":"SUMIFS('Schedule XXI'!$M$8:$M$57,'Schedule XXI'!$J$8:$J$57,$D$74,'Schedule XXI'!$L$8:$L$57,$B77)","v":0},1.2E-2,0]
[null,"BSCR Rating 3","Schedule XXI, Column H",{"$f":"SUMIFS('Schedule XXI'!$M$8:$M$57,'Schedule XXI'!$J$8:$J$57,$D$74,'Schedule XXI'!$L$8:$L$57,$B78)","v":0},0.02,0]
[null,"BSCR Rating 4","Schedule XXI, Column H",{"$f":"SUMIFS('Schedule XXI'!$M$8:$M$57,'Schedule XXI'!$J$8:$J$57,$D$74,'Schedule XXI'!$L$8:$L$57,$B79)","v":0},0.04,0]
[null,"BSCR Rating 5","Schedule XXI, Column H",{"$f":"SUMIFS('Schedule XXI'!$M$8:$M$57,'Schedule XXI'!$J$8:$J$57,$D$74,'Schedule XXI'!$L$8:$L$57,$B80)","v":0},0.11,0]
[null,"BSCR Rating 6","Schedule XXI, Column H",{"$f":"SUMIFS('Schedule XXI'!$M$8:$M$57,'Schedule XXI'!$J$8:$J$57,$D$74,'Schedule XXI'!$L$8:$L$57,$B81)","v":0},0.25,0]
[null,"BSCR Rating 7","Schedule XXI, Column H",{"$f":"SUMIFS('Schedule XXI'!$M$8:$M$57,'Schedule XXI'!$J$8:$J$57,$D$74,'Schedule XXI'!$L$8:$L$57,$B82)","v":0},0.35,0]
[null,"BSCR Rating 8","Schedule XXI, Column H",{"$f":"SUMIFS('Schedule XXI'!$M$8:$M$57,'Schedule XXI'!$J$8:$J$57,$D$74,'Schedule XXI'!$L$8:$L$57,$B83)","v":0},0.35,0]
[]
[null,"(f)  SUBTOTAL - PREFERRED SHARES",null,{"$f":"SUM(D75:D83)","v":0},null,{"$f":"SUM(F75:F83)","v":0}]
[]
[null,"(g) Mortgage Loans",null,"MortgageLoanTypes"]
[null,"Insured/Guaranteed Mortgages","Schedule XXI, Column H",{"$f":"SUMIFS('Schedule XXI'!$M$8:$M$57,'Schedule XXI'!$J$8:$J$57,$D$87,'Schedule XXI'!$K$8:$K$57,$B88)","v":0},{"$f":"'Fixed Income Investments'!E70","v":3.0000000000000001E-3},{"$f":"MAX(0,(D88*E88))","v":0}]
[null,"Other Commercial and Farm Mortgages","Schedule XXI, Column H",{"$f":"SUMIFS('Schedule XXI'!$M$8:$M$57,'Schedule XXI'!$J$8:$J$57,$D$87,'Schedule XXI'!$K$8:$K$57,$B89)","v":0},{"$f":"'Fixed Income Investments'!E71","v":0.05},{"$f":"MAX(0,(D89*E89))","v":0}]
[null,"Other Residential Mortgages","Schedule XXI, Column H",{"$f":"SUMIFS('Schedule XXI'!$M$8:$M$57,'Schedule XXI'!$J$8:$J$57,$D$87,'Schedule XXI'!$K$8:$K$57,$B90)","v":0},{"$f":"'Fixed Income Investments'!E72","v":1.4999999999999999E-2},{"$f":"MAX(0,(D90*E90))","v":0}]
[null,"Mortgages Not In Good Standing","Schedule XXI, Column H",{"$f":"SUMIFS('Schedule XXI'!$M$8:$M$57,'Schedule XXI'!$J$8:$J$57,$D$87,'Schedule XXI'!$K$8:$K$57,$B91)","v":0},{"$f":"'Fixed Income Investments'!E73","v":0.25},{"$f":"MAX(0,(D91*E91))","v":0}]
[]
[null,"(g)  SUBTOTAL - Mortgage Loans",null,{"$f":"SUM(D88:D91)","v":0},null,{"$f":"SUM(F88:F91)","v":0}]
[]
[null,"(h) Other Asset Classes"]
[null,"Common Stock and Mutual Funds","Schedule XXI, Column H",{"$f":"SUMIFS('Schedule XXI'!$M$8:$M$57,'Schedule XXI'!$J$8:$J$57,$B96)","v":0},0.14399999999999999,{"$f":"MAX(0,(D96*E96))","v":0}]
[null,"Other Investments","Schedule XXI, Column H",{"$f":"SUMIFS('Schedule XXI'!$M$8:$M$57,'Schedule XXI'!$J$8:$J$57,$B97)","v":0},0.2,0]
[null,"Investment in Affiliates – Unregulated entities that conduct ancillary services",null,{"$f":"SUMIFS('Schedule XXI'!$M$8:$M$57,'Schedule XXI'!$J$8:$J$57,$B98)","v":0},0.05,0]
[null,"Investment in Affiliates - Unregulated non-financial operating entities",null,{"$f":"SUMIFS('Schedule XXI'!$M$8:$M$57,'Schedule XXI'!$J$8:$J$57,$B99)","v":0},0.2,0]
[null,"Investment in Affiliates - Unregulated financial operating entities",null,{"$f":"SUMIFS('Schedule XXI'!$M$8:$M$57,'Schedule XXI'!$J$8:$J$57,$B100)","v":0},0.55000000000000004,0]
[null,"Investment in Affiliates - Regulated non-insurance financial operating entities",null,{"$f":"SUMIFS('Schedule XXI'!$M$8:$M$57,'Schedule XXI'!$J$8:$J$57,$B101)","v":0},0.55000000000000004,0]
[null,"Investment in Affiliates - Regulated insurance financial operating entities",null,{"$f":"SUMIFS('Schedule XXI'!$M$8:$M$57,'Schedule XXI'!$J$8:$J$57,$B102)","v":0},0.2,0]
[null,"Advances to Affiliates - ","Schedule XXI, Column H",{"$f":"SUMIFS('Schedule XXI'!$M$8:$M$57,'Schedule XXI'!$J$8:$J$57,$B103)","v":0},0.05,0]
[null,"Policy Loans","Schedule XXI, Column H",{"$f":"SUMIFS('Schedule XXI'!$M$8:$M$57,'Schedule XXI'!$J$8:$J$57,$B104)","v":0},0,0]
[null,"Real Estate: Occupied by company","Schedule XXI, Column H",{"$f":"SUMIFS('Schedule XXI'!$M$8:$M$57,'Schedule XXI'!$J$8:$J$57,$B105)","v":0},0.1,0]
[null,"Real Estate: Other properties","Schedule XXI, Column H",{"$f":"SUMIFS('Schedule XXI'!$M$8:$M$57,'Schedule XXI'!$J$8:$J$57,$B106)","v":0},0.2,0]
[null,"Collateral Loans","Schedule XXI, Column H",{"$f":"SUMIFS('Schedule XXI'!$M$8:$M$57,'Schedule XXI'!$J$8:$J$57,$B107)","v":0},0.05,0]
[]
[null,"(h)  SUBTOTAL - OTHER ASSET CLASSES",null,{"$f":"SUM(D96:D107)","v":0},null,{"$f":"SUM(F96:F107)","v":0}]
[]
[null,"TOTAL CONCENTRATION RISK",null,{"$f":"D109+D93+D85+D72+D59+D46+D33+D20","v":0},null,{"$f":"F109+F93+F85+F72+F59+F46+F33+F20","v":0}]

{"sheet":"Concentration Risk (Revised)","index":91,"n_rows":123,"n_cols":14,"rows_kept":123,"cut":false,"hidden":false,"merged":[[0,5,0,6]]}
["CONCENTRATION RISK (REVISED)",null,null,null,null,{"$f":"HYPERLINK(\"#'Index'!A1\",\"Return to Index\")","v":"Return to Index"}]
[{"$f":"'Insurer Information'!C7","v":"Enter Company Name"}]
[{"$f":"\"Concentration Risk\" & \" ($\" & IF(CONFIGURATION!$B$12>1,\"'\"&MID(CONFIGURATION!$B$12,2,LEN(CONFIGURATION!$B$12)),\"\") & \")\"","v":"Concentration Risk ($'000)"},null,{"$f":" TEXT('Insurer Information'!C3,\"mmmm dd, yyyy\")","v":"December 31, 2019"}]
[null,null,null,"(1)","(2)","(3)"]
[]
[null,"ASSET",null,null,"CAPITAL","REQUIRED",null,null,null,null,null,null,null,{"$f":"YEAR('Insurer Information'!C3)","v":2019}]
[null,"TYPE","STATEMENT SOURCE","EXPOSURE","FACTOR","CAPITAL"]
[]
[null,"(a) Cash and Cash Equivalents",null,"Cash and Cash Equivalent"]
[null,"BSCR Rating 0","Schedule XXIA, Column H",{"$f":"SUMIFS('Schedule XXIA'!$M$8:$M$57,'Schedule XXIA'!$J$8:$J$57,$D$9,'Schedule XXIA'!$L$8:$L$57,$B10)","v":0},{"$f":"+'Fixed Income Investments'!E83","v":0},{"$f":"MAX(0,(D10*E10))","v":0}]
[null,"BSCR Rating 1","Schedule XXIA, Column H",{"$f":"SUMIFS('Schedule XXIA'!$M$8:$M$57,'Schedule XXIA'!$J$8:$J$57,$D$9,'Schedule XXIA'!$L$8:$L$57,$B11)","v":0},{"$f":"+'Fixed Income Investments'!E84","v":1E-3},{"$f":"MAX(0,(D11*E11))","v":0}]
[null,"BSCR Rating 2","Schedule XXIA, Column H",{"$f":"SUMIFS('Schedule XXIA'!$M$8:$M$57,'Schedule XXIA'!$J$8:$J$57,$D$9,'Schedule XXIA'!$L$8:$L$57,$B12)","v":0},{"$f":"+'Fixed Income Investments'!E85","v":2E-3},0]
[null,"BSCR Rating 3","Schedule XXIA, Column H",{"$f":"SUMIFS('Schedule XXIA'!$M$8:$M$57,'Schedule XXIA'!$J$8:$J$57,$D$9,'Schedule XXIA'!$L$8:$L$57,$B13)","v":0},{"$f":"+'Fixed Income Investments'!E86","v":3.0000000000000001E-3},0]
[null,"BSCR Rating 4","Schedule XXIA, Column H",{"$f":"SUMIFS('Schedule XXIA'!$M$8:$M$57,'Schedule XXIA'!$J$8:$J$57,$D$9,'Schedule XXIA'!$L$8:$L$57,$B14)","v":0},{"$f":"+'Fixed Income Investments'!E87","v":5.0000000000000001E-3},0]
[null,"BSCR Rating 5","Schedule XXIA, Column H",{"$f":"SUMIFS('Schedule XXIA'!$M$8:$M$57,'Schedule XXIA'!$J$8:$J$57,$D$9,'Schedule XXIA'!$L$8:$L$57,$B15)","v":0},{"$f":"+'Fixed Income Investments'!E88","v":1.4999999999999999E-2},0]
[null,"BSCR Rating 6","Schedule XXIA, Column H",{"$f":"SUMIFS('Schedule XXIA'!$M$8:$M$57,'Schedule XXIA'!$J$8:$J$57,$D$9,'Schedule XXIA'!$L$8:$L$57,$B16)","v":0},{"$f":"+'Fixed Income Investments'!E89","v":0.04},0]
[null,"BSCR Rating 7","Schedule XXIA, Column H",{"$f":"SUMIFS('Schedule XXIA'!$M$8:$M$57,'Schedule XXIA'!$J$8:$J$57,$D$9,'Schedule XXIA'!$L$8:$L$57,$B17)","v":0},{"$f":"+'Fixed Income Investments'!E90","v":0.06},0]
[null,"BSCR Rating 8","Schedule XXIA, Column H",{"$f":"SUMIFS('Schedule XXIA'!$M$8:$M$57,'Schedule XXIA'!$J$8:$J$57,$D$9,'Schedule XXIA'!$L$8:$L$57,$B18)","v":0},{"$f":"+'Fixed Income Investments'!E91","v":0.09},0]
[]
[null,"(a)  SUBTOTAL - CASH AND CASH EQUIVALENTS",null,{"$f":"SUM(D10:D18)","v":0},null,{"$f":"SUM(F10:F18)","v":0}]
[]
[null,"(b) Corporate & Sovereign Bonds",null,"Corporate & Sovereign Bonds"]
[null,"BSCR Rating 0","Schedule XXIA, Column H",{"$f":"SUMIFS('Schedule XXIA'!$M$8:$M$57,'Schedule XXIA'!$K$8:$K$57,$D$22,'Schedule XXIA'!$L$8:$L$57,$B23)","v":0},0,{"$f":"MAX(0,(D23*E23))","v":0}]
[null,"BSCR Rating 1","Schedule XXIA, Column H",{"$f":"SUMIFS('Schedule XXIA'!$M$8:$M$57,'Schedule XXIA'!$K$8:$K$57,$D$22,'Schedule XXIA'!$L$8:$L$57,$B24)","v":0},4.0000000000000001E-3,{"$f":"MAX(0,(D24*E24))","v":0}]
[null,"BSCR Rating 2","Schedule XXIA, Column H",{"$f":"SUMIFS('Schedule XXIA'!$M$8:$M$57,'Schedule XXIA'!$K$8:$K$57,$D$22,'Schedule XXIA'!$L$8:$L$57,$B25)","v":0},8.0000000000000002E-3,0]
[null,"BSCR Rating 3","Schedule XXIA, Column H",{"$f":"SUMIFS('Schedule XXIA'!$M$8:$M$57,'Schedule XXIA'!$K$8:$K$57,$D$22,'Schedule XXIA'!$L$8:$L$57,$B26)","v":0},1.4999999999999999E-2,0]
[null,"BSCR Rating 4","Schedule XXIA, Column H",{"$f":"SUMIFS('Schedule XXIA'!$M$8:$M$57,'Schedule XXIA'!$K$8:$K$57,$D$22,'Schedule XXIA'!$L$8:$L$57,$B27)","v":0},0.03,0]
[null,"BSCR Rating 5","Schedule XXIA, Column H",{"$f":"SUMIFS('Schedule XXIA'!$M$8:$M$57,'Schedule XXIA'!$K$8:$K$57,$D$22,'Schedule XXIA'!$L$8:$L$57,$B28)","v":0},0.08,0]
[null,"BSCR Rating 6","Schedule XXIA, Column H",{"$f":"SUMIFS('Schedule XXIA'!$M$8:$M$57,'Schedule XXIA'!$K$8:$K$57,$D$22,'Schedule XXIA'!$L$8:$L$57,$B29)","v":0},0.15,0]
[null,"BSCR Rating 7","Schedule XXIA, Column H",{"$f":"SUMIFS('Schedule XXIA'!$M$8:$M$57,'Schedule XXIA'!$K$8:$K$57,$D$22,'Schedule XXIA'!$L$8:$L$57,$B30)","v":0},0.26300000000000001,0]
[null,"BSCR Rating 8","Schedule XXIA, Column H",{"$f":"SUMIFS('Schedule XXIA'!$M$8:$M$57,'Schedule XXIA'!$K$8:$K$57,$D$22,'Schedule XXIA'!$L$8:$L$57,$B31)","v":0},0.35,0]
[]
[null,"(b)  SUBTOTAL - CORPORATE & SOVEREIGN BONDS",null,{"$f":"SUM(D23:D31)","v":0},null,{"$f":"SUM(F23:F31)","v":0}]
[]
[null,"(c) Residential Mortage-Backed Securities",null,"Residential Mortgage-Backed Securities"]
[null,"BSCR Rating 0","Schedule XXIA, Column H",{"$f":"SUMIFS('Schedule XXIA'!$M$8:$M$57,'Schedule XXIA'!$K$8:$K$57,$D$35,'Schedule XXIA'!$L$8:$L$57,$B36)","v":0},0,{"$f":"MAX(0,(D36*E36))","v":0}]
[null,"BSCR Rating 1","Schedule XXIA, Column H",{"$f":"SUMIFS('Schedule XXIA'!$M$8:$M$57,'Schedule XXIA'!$K$8:$K$57,$D$35,'Schedule XXIA'!$L$8:$L$57,$B37)","v":0},6.0000000000000001E-3,{"$f":"MAX(0,(D37*E37))","v":0}]
[null,"BSCR Rating 2","Schedule XXIA, Column H",{"$f":"SUMIFS('Schedule XXIA'!$M$8:$M$57,'Schedule XXIA'!$K$8:$K$57,$D$35,'Schedule XXIA'!$L$8:$L$57,$B38)","v":0},1.2E-2,0]
[null,"BSCR Rating 3","Schedule XXIA, Column H",{"$f":"SUMIFS('Schedule XXIA'!$M$8:$M$57,'Schedule XXIA'!$K$8:$K$57,$D$35,'Schedule XXIA'!$L$8:$L$57,$B39)","v":0},0.02,0]
[null,"BSCR Rating 4","Schedule XXIA, Column H",{"$f":"SUMIFS('Schedule XXIA'!$M$8:$M$57,'Schedule XXIA'!$K$8:$K$57,$D$35,'Schedule XXIA'!$L$8:$L$57,$B40)","v":0},0.04,0]
[null,"BSCR Rating 5","Schedule XXIA, Column H",{"$f":"SUMIFS('Schedule XXIA'!$M$8:$M$57,'Schedule XXIA'!$K$8:$K$57,$D$35,'Schedule XXIA'!$L$8:$L$57,$B41)","v":0},0.11,0]
[null,"BSCR Rating 6","Schedule XXIA, Column H",{"$f":"SUMIFS('Schedule XXIA'!$M$8:$M$57,'Schedule XXIA'!$K$8:$K$57,$D$35,'Schedule XXIA'!$L$8:$L$57,$B42)","v":0},0.25,0]
[null,"BSCR Rating 7","Schedule XXIA, Column H",{"$f":"SUMIFS('Schedule XXIA'!$M$8:$M$57,'Schedule XXIA'!$K$8:$K$57,$D$35,'Schedule XXIA'!$L$8:$L$57,$B43)","v":0},0.35,0]
[null,"BSCR Rating 8","Schedule XXIA, Column H",{"$f":"SUMIFS('Schedule XXIA'!$M$8:$M$57,'Schedule XXIA'!$K$8:$K$57,$D$35,'Schedule XXIA'!$L$8:$L$57,$B44)","v":0},0.35,0]
[]
[null,"(c)  SUBTOTAL - RESIDENTIAL MORTGAGE-BACKED SECURITIES",null,{"$f":"SUM(D36:D44)","v":0},null,{"$f":"SUM(F36:F44)","v":0}]
[]
[null,"(d) Commercial Mortgage-Backed Securities / Asset Backed Securities",null,"Commercial Mortgage-Backed Securities"]
[null,"BSCR Rating 0","Schedule XXIA, Column H",{"$f":"SUMIFS('Schedule XXIA'!$M$8:$M$57,'Schedule XXIA'!$K$8:$K$57,$D$48,'Schedule XXIA'!$L$8:$L$57,$B49)","v":0},0,{"$f":"MAX(0,(D49*E49))","v":0}]
[null,"BSCR Rating 1","Schedule XXIA, Column H",{"$f":"SUMIFS('Schedule XXIA'!$M$8:$M$57,'Schedule XXIA'!$K$8:$K$57,$D$48,'Schedule XXIA'!$L$8:$L$57,$B50)","v":0},5.0000000000000001E-3,{"$f":"MAX(0,(D50*E50))","v":0}]
[null,"BSCR Rating 2","Schedule XXIA, Column H",{"$f":"SUMIFS('Schedule XXIA'!$M$8:$M$57,'Schedule XXIA'!$K$8:$K$57,$D$48,'Schedule XXIA'!$L$8:$L$57,$B51)","v":0},0.01,0]
[null,"BSCR Rating 3","Schedule XXIA, Column H",{"$f":"SUMIFS('Schedule XXIA'!$M$8:$M$57,'Schedule XXIA'!$K$8:$K$57,$D$48,'Schedule XXIA'!$L$8:$L$57,$B52)","v":0},1.7999999999999999E-2,0]
[null,"BSCR Rating 4","Schedule XXIA, Column H",{"$f":"SUMIFS('Schedule XXIA'!$M$8:$M$57,'Schedule XXIA'!$K$8:$K$57,$D$48,'Schedule XXIA'!$L$8:$L$57,$B53)","v":0},3.5000000000000003E-2,0]
[null,"BSCR Rating 5","Schedule XXIA, Column H",{"$f":"SUMIFS('Schedule XXIA'!$M$8:$M$57,'Schedule XXIA'!$K$8:$K$57,$D$48,'Schedule XXIA'!$L$8:$L$57,$B54)","v":0},0.1,0]
[null,"BSCR Rating 6","Schedule XXIA, Column H",{"$f":"SUMIFS('Schedule XXIA'!$M$8:$M$57,'Schedule XXIA'!$K$8:$K$57,$D$48,'Schedule XXIA'!$L$8:$L$57,$B55)","v":0},0.2,0]
[null,"BSCR Rating 7","Schedule XXIA, Column H",{"$f":"SUMIFS('Schedule XXIA'!$M$8:$M$57,'Schedule XXIA'!$K$8:$K$57,$D$48,'Schedule XXIA'!$L$8:$L$57,$B56)","v":0},0.3,0]
[null,"BSCR Rating 8","Schedule XXIA, Column H",{"$f":"SUMIFS('Schedule XXIA'!$M$8:$M$57,'Schedule XXIA'!$K$8:$K$57,$D$48,'Schedule XXIA'!$L$8:$L$57,$B57)","v":0},0.35,0]
[]
[null,"(d)  SUBTOTAL - COMMERCIAL MORTGAGE-BACKED SECURITIES / ASSET-BACKED SECURITIES",null,{"$f":"SUM(D49:D57)","v":0},null,{"$f":"SUM(F49:F57)","v":0}]
[]
[null,"(e) Bond Mutual Funds",null,"Bond Mutual Funds"]
[null,"BSCR Rating 0","Schedule XXIA, Column H",{"$f":"SUMIFS('Schedule XXIA'!$M$8:$M$57,'Schedule XXIA'!$K$8:$K$57,$D$61,'Schedule XXIA'!$L$8:$L$57,$B62)","v":0},0,{"$f":"MAX(0,(D62*E62))","v":0}]
[null,"BSCR Rating 1","Schedule XXIA, Column H",{"$f":"SUMIFS('Schedule XXIA'!$M$8:$M$57,'Schedule XXIA'!$K$8:$K$57,$D$61,'Schedule XXIA'!$L$8:$L$57,$B63)","v":0},4.0000000000000001E-3,{"$f":"MAX(0,(D63*E63))","v":0}]
[null,"BSCR Rating 2","Schedule XXIA, Column H",{"$f":"SUMIFS('Schedule XXIA'!$M$8:$M$57,'Schedule XXIA'!$K$8:$K$57,$D$61,'Schedule XXIA'!$L$8:$L$57,$B64)","v":0},8.0000000000000002E-3,0]
[null,"BSCR Rating 3","Schedule XXIA, Column H",{"$f":"SUMIFS('Schedule XXIA'!$M$8:$M$57,'Schedule XXIA'!$K$8:$K$57,$D$61,'Schedule XXIA'!$L$8:$L$57,$B65)","v":0},1.4999999999999999E-2,0]
[null,"BSCR Rating 4","Schedule XXIA, Column H",{"$f":"SUMIFS('Schedule XXIA'!$M$8:$M$57,'Schedule XXIA'!$K$8:$K$57,$D$61,'Schedule XXIA'!$L$8:$L$57,$B66)","v":0},0.03,0]
[null,"BSCR Rating 5","Schedule XXIA, Column H",{"$f":"SUMIFS('Schedule XXIA'!$M$8:$M$57,'Schedule XXIA'!$K$8:$K$57,$D$61,'Schedule XXIA'!$L$8:$L$57,$B67)","v":0},0.08,0]
[null,"BSCR Rating 6","Schedule XXIA, Column H",{"$f":"SUMIFS('Schedule XXIA'!$M$8:$M$57,'Schedule XXIA'!$K$8:$K$57,$D$61,'Schedule XXIA'!$L$8:$L$57,$B68)","v":0},0.15,0]
[null,"BSCR Rating 7","Schedule XXIA, Column H",{"$f":"SUMIFS('Schedule XXIA'!$M$8:$M$57,'Schedule XXIA'!$K$8:$K$57,$D$61,'Schedule XXIA'!$L$8:$L$57,$B69)","v":0},0.26300000000000001,0]
[null,"BSCR Rating 8","Schedule XXIA, Column H",{"$f":"SUMIFS('Schedule XXIA'!$M$8:$M$57,'Schedule XXIA'!$K$8:$K$57,$D$61,'Schedule XXIA'!$L$8:$L$57,$B70)","v":0},0.35,0]
[]
[null,"(e)  SUBTOTAL - BOND MUTUAL FUNDS",null,{"$f":"SUM(D62:D70)","v":0},null,{"$f":"SUM(F62:F70)","v":0}]
[]
[null,"(f) Preferred Shares",null,"Preferred Shares"]
[null,"BSCR Rating 0","Schedule XXIA, Column H",{"$f":"SUMIFS('Schedule XXIA'!$M$8:$M$57,'Schedule XXIA'!$J$8:$J$57,$D$74,'Schedule XXIA'!$L$8:$L$57,$B75)","v":0},0,{"$f":"MAX(0,(D75*E75))","v":0}]
[null,"BSCR Rating 1","Schedule XXIA, Column H",{"$f":"SUMIFS('Schedule XXIA'!$M$8:$M$57,'Schedule XXIA'!$J$8:$J$57,$D$74,'Schedule XXIA'!$L$8:$L$57,$B76)","v":0},6.0000000000000001E-3,0]
[null,"BSCR Rating 2","Schedule XXIA, Column H",{"$f":"SUMIFS('Schedule XXIA'!$M$8:$M$57,'Schedule XXIA'!$J$8:$J$57,$D$74,'Schedule XXIA'!$L$8:$L$57,$B77)","v":0},1.2E-2,0]
[null,"BSCR Rating 3","Schedule XXIA, Column H",{"$f":"SUMIFS('Schedule XXIA'!$M$8:$M$57,'Schedule XXIA'!$J$8:$J$57,$D$74,'Schedule XXIA'!$L$8:$L$57,$B78)","v":0},0.02,0]
[null,"BSCR Rating 4","Schedule XXIA, Column H",{"$f":"SUMIFS('Schedule XXIA'!$M$8:$M$57,'Schedule XXIA'!$J$8:$J$57,$D$74,'Schedule XXIA'!$L$8:$L$57,$B79)","v":0},0.04,0]
[null,"BSCR Rating 5","Schedule XXIA, Column H",{"$f":"SUMIFS('Schedule XXIA'!$M$8:$M$57,'Schedule XXIA'!$J$8:$J$57,$D$74,'Schedule XXIA'!$L$8:$L$57,$B80)","v":0},0.11,0]
[null,"BSCR Rating 6","Schedule XXIA, Column H",{"$f":"SUMIFS('Schedule XXIA'!$M$8:$M$57,'Schedule XXIA'!$J$8:$J$57,$D$74,'Schedule XXIA'!$L$8:$L$57,$B81)","v":0},0.25,0]
[null,"BSCR Rating 7","Schedule XXIA, Column H",{"$f":"SUMIFS('Schedule XXIA'!$M$8:$M$57,'Schedule XXIA'!$J$8:$J$57,$D$74,'Schedule XXIA'!$L$8:$L$57,$B82)","v":0},0.35,0]
[null,"BSCR Rating 8","Schedule XXIA, Column H",{"$f":"SUMIFS('Schedule XXIA'!$M$8:$M$57,'Schedule XXIA'!$J$8:$J$57,$D$74,'Schedule XXIA'!$L$8:$L$57,$B83)","v":0},0.35,0]
[]
[null,"(f)  SUBTOTAL - PREFERRED SHARES",null,{"$f":"SUM(D75:D83)","v":0},null,{"$f":"SUM(F75:F83)","v":0}]
[]
[null,"(g) Mortgage Loans",null,"MortgageLoanTypes"]
[null,"Insured/Guaranteed Mortgages","Schedule XXIA, Column H",{"$f":"SUMIFS('Schedule XXIA'!$M$8:$M$57,'Schedule XXIA'!$J$8:$J$57,$D$87,'Schedule XXIA'!$K$8:$K$57,$B88)","v":0},{"$f":"'Fixed Income Investments (Rev.)'!H70","v":3.0000000000000001E-3},{"$f":"MAX(0,(D88*E88))","v":0}]
[null,"Other Commercial and Farm Mortgages","Schedule XXIA, Column H",{"$f":"SUMIFS('Schedule XXIA'!$M$8:$M$57,'Schedule XXIA'!$J$8:$J$57,$D$87,'Schedule XXIA'!$K$8:$K$57,$B89)","v":0},{"$f":"'Fixed Income Investments (Rev.)'!H71","v":0.05},{"$f":"MAX(0,(D89*E89))","v":0}]
[null,"Other Residential Mortgages","Schedule XXIA, Column H",{"$f":"SUMIFS('Schedule XXIA'!$M$8:$M$57,'Schedule XXIA'!$J$8:$J$57,$D$87,'Schedule XXIA'!$K$8:$K$57,$B90)","v":0},{"$f":"'Fixed Income Investments (Rev.)'!H72","v":1.4999999999999999E-2},{"$f":"MAX(0,(D90*E90))","v":0}]
[null,"Mortgages Not In Good Standing","Schedule XXIA, Column H",{"$f":"SUMIFS('Schedule XXIA'!$M$8:$M$57,'Schedule XXIA'!$J$8:$J$57,$D$87,'Schedule XXIA'!$K$8:$K$57,$B91)","v":0},{"$f":"'Fixed Income Investments (Rev.)'!H73","v":0.25},{"$f":"MAX(0,(D91*E91))","v":0}]
[]
[null,"(g)  SUBTOTAL - Mortgage Loans",null,{"$f":"SUM(D88:D91)","v":0},null,{"$f":"SUM(F88:F91)","v":0}]
[]
[null,"(h) Other Asset Classes"]
[null,"Infrastructure (Non-affiliate holdings, non-duration based)","Schedule XXIA, Column H",{"$f":"SUMIFS('Schedule XXIA'!$M$8:$M$57,'Schedule XXIA'!$J$8:$J$57,$B96)","v":0},0.25,{"$f":"MAX(0,(D96*E96))","v":0}]
[null,"Listed Equity Securities in Developed Markets","Schedule XXIA, Column H",{"$f":"SUMIFS('Schedule XXIA'!$M$8:$M$57,'Schedule XXIA'!$J$8:$J$57,$B97)","v":0},0.35,{"$f":"MAX(0,(D97*E97))","v":0}]
[null,"Other Equities","Schedule XXIA, Column H",{"$f":"SUMIFS('Schedule XXIA'!$M$8:$M$57,'Schedule XXIA'!$J$8:$J$57,$B98)","v":0},0.45,0]
[null,"Strategic Holdings","Schedule XXIA, Column H",{"$f":"SUMIFS('Schedule XXIA'!$M$8:$M$57,'Schedule XXIA'!$J$8:$J$57,$B99)","v":0},0.2,0]
[null,"Duration Based","Schedule XXIA, Column H",{"$f":"SUMIFS('Schedule XXIA'!$M$8:$M$57,'Schedule XXIA'!$J$8:$J$57,$B100)","v":0},0.2,0]
[null,"Letters of Credit","Schedule XXIA, Column H",{"$f":"SUMIFS('Schedule XXIA'!$M$8:$M$57,'Schedule XXIA'!$J$8:$J$57,$B101)","v":0},0.2,0]
[null,"Advances to Affiliates - ","Schedule XXIA, Column H",{"$f":"SUMIFS('Schedule XXIA'!$M$8:$M$57,'Schedule XXIA'!$J$8:$J$57,$B102)","v":0},0.05,0]
[null,"Policy Loans","Schedule XXIA, Column H",{"$f":"SUMIFS('Schedule XXIA'!$M$8:$M$57,'Schedule XXIA'!$J$8:$J$57,$B103)","v":0},0,0]
[null,"Equity Real Estate 1","Schedule XXIA, Column H",{"$f":"SUMIFS('Schedule XXIA'!$M$8:$M$57,'Schedule XXIA'!$J$8:$J$57,$B104)","v":0},0.1,0]
[null,"Equity Real Estate 2","Schedule XXIA, Column H",{"$f":"SUMIFS('Schedule XXIA'!$M$8:$M$57,'Schedule XXIA'!$J$8:$J$57,$B105)","v":0},0.2,0]
[null,"Collateral Loans","Schedule XXIA, Column H",{"$f":"SUMIFS('Schedule XXIA'!$M$8:$M$57,'Schedule XXIA'!$J$8:$J$57,$B106)","v":0},0.05,0]
[]
[null,"(h)  SUBTOTAL - OTHER ASSET CLASSES",null,{"$f":"SUM(D96:D106)","v":0},null,{"$f":"SUM(F96:F106)","v":0}]
[]
[null,"(i) Grandfathered - Other Asset Classes"]
[null,"Grandfathered - Common Stock and Mutual Funds","Schedule XXIA, Column H",{"$f":"SUMIFS('Schedule XXIA'!$M$8:$M$57,'Schedule XXIA'!$J$8:$J$57,$B111)","v":0},0.14399999999999999,{"$f":"MAX(0,(D111*E111))","v":0}]
[null,"Grandfathered - Other Investments","Schedule XXIA, Column H",{"$f":"SUMIFS('Schedule XXIA'!$M$8:$M$57,'Schedule XXIA'!$J$8:$J$57,$B112)","v":0},0.2,0]
[null,"Grandfathered - Investment in Affiliates – Unregulated entities that conduct ancillary services",null,{"$f":"SUMIFS('Schedule XXIA'!$M$8:$M$57,'Schedule XXIA'!$J$8:$J$57,$B113)","v":0},0.05,0]
[null,"Grandfathered - Investment in Affiliates - Unregulated non-financial operating entities",null,{"$f":"SUMIFS('Schedule XXIA'!$M$8:$M$57,'Schedule XXIA'!$J$8:$J$57,$B114)","v":0},0.2,0]
[null,"Grandfathered - Investment in Affiliates - Unregulated financial operating entities",null,{"$f":"SUMIFS('Schedule XXIA'!$M$8:$M$57,'Schedule XXIA'!$J$8:$J$57,$B115)","v":0},0.55000000000000004,0]
[null,"Grandfathered - Investment in Affiliates - Regulated non-insurance financial operating entities",null,{"$f":"SUMIFS('Schedule XXIA'!$M$8:$M$57,'Schedule XXIA'!$J$8:$J$57,$B116)","v":0},0.55000000000000004,0]
[null,"Grandfathered - Investment in Affiliates - Regulated insurance financial operating entities",null,{"$f":"SUMIFS('Schedule XXIA'!$M$8:$M$57,'Schedule XXIA'!$J$8:$J$57,$B117)","v":0},0.2,0]
[null,"Grandfathered - Real Estate: Occupied by company","Schedule XXIA, Column H",{"$f":"SUMIFS('Schedule XXIA'!$M$8:$M$57,'Schedule XXIA'!$J$8:$J$57,$B118)","v":0},0.1,0]
[null,"Grandfathered - Real Estate: Other properties","Schedule XXIA, Column H",{"$f":"SUMIFS('Schedule XXIA'!$M$8:$M$57,'Schedule XXIA'!$J$8:$J$57,$B119)","v":0},0.2,0]
[]
[null,"(i)  SUBTOTAL - GRANDFATHERED OTHER ASSET CLASSES",null,{"$f":"SUM(D111:D119)","v":0},null,{"$f":"SUM(F111:F119)","v":0}]
[]
[null,"TOTAL CONCENTRATION RISK",null,{"$f":"D121+D108+D93+D85+D72+D59+D46+D33+D20","v":0},null,{"$f":"F121+F108+F93+F85+F72+F59+F46+F33+F20","v":0}]

{"sheet":"Credit Risk","index":92,"n_rows":45,"n_cols":6,"rows_kept":45,"cut":false,"hidden":false,"merged":[[47,0,47,1],[0,5,0,6],[24,3,25,3]]}
["CREDIT RISK",null,null,null,null,{"$f":"HYPERLINK(\"#'Index'!A1\",\"Return to Index\")","v":"Return to Index"}]
[{"$f":"'Insurer Information'!C7","v":"Enter Company Name"}]
[{"$f":"\"Credit Risk\"& \" ($\" & IF(CONFIGURATION!$B$12>1,\"'\"&MID(CONFIGURATION!$B$12,2,LEN(CONFIGURATION!$B$12)),\"\") & \")\"","v":"Credit Risk ($'000)"},null,{"$f":" TEXT('Insurer Information'!C3,\"mmmm dd, yyyy\")","v":"December 31, 2019"},"(1)","(2)","(3)"]
[]
[]
[null,"TYPE OF ",null,"RECEIVABLES/","CAPITAL","REQUIRED"]
[null,"DEBTOR","STATEMENT SOURCE","RECOVERABLES","FACTOR","CAPITAL"]
[]
[null,"(a)  Accounts and Premiums Receivable",null,null,null,"(1) x (2)"]
[]
[null,"In Course of Collection ","Form 4EBS, Line (10a)",{"$f":"'Form 4EBS'!F59","v":0},0.05,{"$f":"D11*E11","v":0}]
[null,"Receivables from retrocessional contracts Less: Collateralized Balances","Form 4EBS, Line (10c) Less Notes to Form 4EBS",{"$f":"'Form 4EBS'!F60-'Form 4EBS'!F196","v":0},0.1,{"$f":"D12*E12","v":0}]
[]
[null,"(a)  SUBTOTAL - ACCOUNTS AND PREMIUMS RECEIVABLE",null,{"$f":"SUM(D11:D12)","v":0},null,{"$f":"IF(SUM(F11:F12)>=0,SUM(F11:F12),0)","v":0}]
[]
[null,"(b)  All Other Receivables"]
[]
[null,"Accrued Investment Income","Form 4EBS, Line (9)",{"$f":"'Form 4EBS'!F56","v":0},2.5000000000000001E-2,{"$f":"D18*E18","v":0}]
[null,"Advances to Affiliates","Form 4EBS, Line (4g)",{"$f":"'Form 4EBS'!F39","v":0},0.05,{"$f":"D19*E19","v":0}]
[null,"Policy Loans","Form 4EBS, Line (6)",{"$f":"'Form 4EBS'!F47","v":0},0,{"$f":"D20*E20","v":0}]
[]
[null,"(b)  SUBTOTAL - ALL OTHER RECEIVABLES",null,{"$f":"SUM(D18:D20)","v":0},null,{"$f":"IF(SUM(F18:F20)>=0,SUM(F18:F20),0)","v":0}]
[]
[]
[null,"TYPE OF ",null,"NET QUALIFYING EXPOSURE"]
[null,"DEBTOR","STATEMENT SOURCE",null,"CAPITAL FACTOR","REQUIRED CAPITAL"]
[null,"(c) Particulars of Reinsurance Balances By BSCR Rating",null,null,null,"Max(0, (Column (1) x Column (2) ))"]
[null,0]
[null,"BSCR Rating 0","Schedule XVIII EBS, Column E",{"$f":"+'Schedule XVIII (EBS)'!O87","v":0},0,{"$f":"MAX(0,(D29*E29))","v":0}]
[null,"BSCR Rating 1","Schedule XVIII EBS, Column E",{"$f":"+'Schedule XVIII (EBS)'!O88","v":0},7.0000000000000001E-3,0]
[null,"BSCR Rating 2","Schedule XVIII EBS, Column E",{"$f":"+'Schedule XVIII (EBS)'!O89","v":0},1.4999999999999999E-2,0]
[null,"BSCR Rating 3","Schedule XVIII EBS, Column E",{"$f":"+'Schedule XVIII (EBS)'!O90","v":0},3.5000000000000003E-2,0]
[null,"BSCR Rating 4","Schedule XVIII EBS, Column E",{"$f":"+'Schedule XVIII (EBS)'!O91","v":0},7.0000000000000007E-2,0]
[null,"BSCR Rating 5","Schedule XVIII EBS, Column E",{"$f":"+'Schedule XVIII (EBS)'!O92","v":0},0.12,0]
[null,"BSCR Rating 6","Schedule XVIII EBS, Column E",{"$f":"+'Schedule XVIII (EBS)'!O93","v":0},0.2,0]
[null,"BSCR Rating 7","Schedule XVIII EBS, Column E",{"$f":"+'Schedule XVIII (EBS)'!O94","v":0},0.27,0]
[null,"BSCR Rating 8","Schedule XVIII EBS, Column E",{"$f":"+'Schedule XVIII (EBS)'!O95","v":0},0.35,0]
[]
[null,"Total",null,{"$f":"SUM(D29:D38)","v":0},null,{"$f":"SUM(F29:F38)","v":0}]
[]
[null,{"$f":"\"Less: Diversification Adjustment up to \"&(ROUND('Schedule XVIII (EBS)'!O104,2)*100&\"%\")","v":"Less: Diversification Adjustment up to 0%"},"Schedule XVIII EBS, Column E",null,{"$f":"'Schedule XVIII (EBS)'!O104","v":0},{"$f":"SUM(F29:F38)*-('Schedule XVIII (EBS)'!O104)","v":0}]
[]
[null,"(c)  SUBTOTAL - PARTICULARS OF REINSURANCE BALANCES BY BSCR RATING",null,{"$f":"MAX(+D39,0)","v":0},null,{"$f":"MAX(0,SUM(F29:F38)+F41)","v":0}]
[]
[null,"(d)  TOTAL CREDIT RISK  [ (a) + (b) + (c) ]",null,{"$f":"D43+D22+D14","v":0},null,{"$f":"F43+F22+F14","v":0}]

{"sheet":"Credit Risk (Revised)","index":93,"n_rows":59,"n_cols":8,"rows_kept":59,"cut":false,"hidden":false,"merged":[[0,7,0,8],[61,0,61,1]]}
["CREDIT RISK (REVISED)",null,null,null,null,null,null,{"$f":"HYPERLINK(\"#'Index'!A1\",\"Return to Index\")","v":"Return to Index"}]
[{"$f":"'Insurer Information'!C7","v":"Enter Company Name"}]
[{"$f":"\"Credit Risk\"& \" ($\" & IF(CONFIGURATION!$B$12>1,\"'\"&MID(CONFIGURATION!$B$12,2,LEN(CONFIGURATION!$B$12)),\"\") & \")\"","v":"Credit Risk ($'000)"},null,null,null,{"$f":" TEXT('Insurer Information'!C3,\"mmmm dd, yyyy\")","v":"December 31, 2019"},"(1)","(2)","(3)"]
[]
[]
[null,"TYPE OF ",null,null,null,"RECEIVABLES/","CAPITAL","REQUIRED"]
[null,"DEBTOR",null,null,"STATEMENT SOURCE","RECOVERABLES","FACTOR","CAPITAL"]
[]
[null,"(a)  Accounts and Premiums Receivable",null,null,null,null,null,"(1) x (2)"]
[]
[null,"In Course of Collection ","Form 4EBS, Line (10a)",null,null,{"$f":"'Form 4EBS'!F59","v":0},0.05,{"$f":"F11*G11","v":0}]
[null,"Deferred - Not Yet Due","Form 1SFS, Line (10b)",null,null,{"$f":"IF('Form 1SFS'!K68=0,'Form 1SFS'!F68+'Form 1SFS'!H68,'Form 1SFS'!K68)","v":0},0.05,{"$f":"F12*G12","v":0}]
[null,"Receivables from retrocessional contracts Less: Collateralized Balances","Form 4EBS, Line (10c) Less Notes to Form 4EBS",null,null,{"$f":"'Form 4EBS'!F60-'Form 4EBS'!F196","v":0},0.1,{"$f":"F13*G13","v":0}]
[]
[null,"(a)  SUBTOTAL - ACCOUNTS AND PREMIUMS RECEIVABLE",null,null,null,{"$f":"SUM(F11:F13)","v":0},null,{"$f":"IF(SUM(H11:H13)>=0,SUM(H11:H13),0)","v":0}]
[]
[null,"(b)  All Other Receivables"]
[]
[null,"Accrued Investment Income","Form 4EBS, Line (9)",null,null,{"$f":"'Form 4EBS'!F56","v":0},2.5000000000000001E-2,{"$f":"F19*G19","v":0}]
[null,"Advances to Affiliates","Form 4EBS, Line (4g)",null,null,{"$f":"'Form 4EBS'!F39","v":0},0.05,{"$f":"F20*G20","v":0}]
[null,"Policy Loans","Form 4EBS, Line (6)",null,null,{"$f":"'Form 4EBS'!F47","v":0},0,{"$f":"F21*G21","v":0}]
[null,"Balances receivable on sale of investments","Form 4EBS, Line (13f)",null,null,{"$f":"'Form 4EBS'!F80","v":0},2.5000000000000001E-2,{"$f":"F22*G22","v":0}]
[]
[null,"(b)  SUBTOTAL - ALL OTHER RECEIVABLES",null,null,null,{"$f":"SUM(F19:F22)","v":0},null,{"$f":"IF(SUM(H19:H22)>=0,SUM(H19:H22),0)","v":0}]
[]
[null,"(c) Particulars of Reinsurance Balances By BSCR Rating",null,null,null,null,null,"Max(0, (Column (1) x Column (2) ))"]
[null,0]
[null,"BSCR Rating 0",null,"Schedule XVIII EBS, Column E",null,{"$f":"+'Schedule XVIII (EBS)'!O87","v":0},0,{"$f":"MAX(0,(F28*G28))","v":0}]
[null,"BSCR Rating 1",null,"Schedule XVIII EBS, Column E",null,{"$f":"+'Schedule XVIII (EBS)'!O88","v":0},7.0000000000000001E-3,0]
[null,"BSCR Rating 2",null,"Schedule XVIII EBS, Column E",null,{"$f":"+'Schedule XVIII (EBS)'!O89","v":0},1.4999999999999999E-2,0]
[null,"BSCR Rating 3",null,"Schedule XVIII EBS, Column E",null,{"$f":"+'Schedule XVIII (EBS)'!O90","v":0},3.5000000000000003E-2,0]
[null,"BSCR Rating 4",null,"Schedule XVIII EBS, Column E",null,{"$f":"+'Schedule XVIII (EBS)'!O91","v":0},7.0000000000000007E-2,0]
[null,"BSCR Rating 5",null,"Schedule XVIII EBS, Column E",null,{"$f":"+'Schedule XVIII (EBS)'!O92","v":0},0.12,0]
[null,"BSCR Rating 6",null,"Schedule XVIII EBS, Column E",null,{"$f":"+'Schedule XVIII (EBS)'!O93","v":0},0.2,0]
[null,"BSCR Rating 7",null,"Schedule XVIII EBS, Column E",null,{"$f":"+'Schedule XVIII (EBS)'!O94","v":0},0.27,0]
[null,"BSCR Rating 8",null,"Schedule XVIII EBS, Column E",null,{"$f":"+'Schedule XVIII (EBS)'!O95","v":0},0.35,0]
[]
[null,"Total",null,null,null,{"$f":"SUM(F28:F37)","v":0},null,{"$f":"SUM(H28:H37)","v":0}]
[]
[null,{"$f":"\"Less: Diversification Adjustment up to \"&(ROUND('Schedule XVIII (EBS)'!O104,2)*100&\"%\")","v":"Less: Diversification Adjustment up to 0%"},null,"Schedule XVIII EBS, Column E",null,null,{"$f":"'Schedule XVIII (EBS)'!O104","v":0},{"$f":"SUM(H28:H37)*-('Schedule XVIII (EBS)'!O104)","v":0}]
[]
[null,"(c)  SUBTOTAL - PARTICULARS OF REINSURANCE BALANCES BY BSCR RATING",null,null,null,{"$f":"MAX(+F38,0)","v":0},null,{"$f":"MAX(0,SUM(H28:H37)+H40)","v":0}]
[]
[null,"(d) Counterparty Default Risk for OTC Derivatives"]
[]
[null,null,"Market Value of Derivatives with Positive Market Value","Market Value of Derivatives with Negative Market Value","Market Value of Collateral, Excluding any overcollateralization","Capital Factor","Haircut on Collateral"]
[null,"BSCR Rating 0 ",{"$f":"'Schedule IIB (EBS)'!D84+'Schedule IIC (EBS)'!D84+'Schedule IID (EBS)'!D84+'Schedule IIE (EBS)'!D84+'Schedule IIF (EBS)'!D84","v":0},{"$f":"'Schedule IIB (EBS)'!F84+'Schedule IIC (EBS)'!F84+'Schedule IID (EBS)'!F84+'Schedule IIE (EBS)'!F84+'Schedule IIF (EBS)'!F84","v":0},{"$f":"'Schedule IIB (EBS)'!H84+'Schedule IIC (EBS)'!H84+'Schedule IID (EBS)'!H84+'Schedule IIE (EBS)'!H84+'Schedule IIF (EBS)'!H84","v":0},0,0.03,{"$f":"MAX(0,C47-(1-G47)*MIN(C47,E47))*F47","v":0}]
[null,"BSCR Rating 1",{"$f":"'Schedule IIB (EBS)'!D85+'Schedule IIC (EBS)'!D85+'Schedule IID (EBS)'!D85+'Schedule IIE (EBS)'!D85+'Schedule IIF (EBS)'!D85","v":0},{"$f":"'Schedule IIB (EBS)'!F85+'Schedule IIC (EBS)'!F85+'Schedule IID (EBS)'!F85+'Schedule IIE (EBS)'!F85+'Schedule IIF (EBS)'!F85","v":0},{"$f":"'Schedule IIB (EBS)'!H85+'Schedule IIC (EBS)'!H85+'Schedule IID (EBS)'!H85+'Schedule IIE (EBS)'!H85+'Schedule IIF (EBS)'!H85","v":0},4.0000000000000001E-3,0.03,{"$f":"MAX(0,C48-(1-G48)*MIN(C48,E48))*F48","v":0}]
[null,"BSCR Rating 2",{"$f":"'Schedule IIB (EBS)'!D86+'Schedule IIC (EBS)'!D86+'Schedule IID (EBS)'!D86+'Schedule IIE (EBS)'!D86+'Schedule IIF (EBS)'!D86","v":0},{"$f":"'Schedule IIB (EBS)'!F86+'Schedule IIC (EBS)'!F86+'Schedule IID (EBS)'!F86+'Schedule IIE (EBS)'!F86+'Schedule IIF (EBS)'!F86","v":0},{"$f":"'Schedule IIB (EBS)'!H86+'Schedule IIC (EBS)'!H86+'Schedule IID (EBS)'!H86+'Schedule IIE (EBS)'!H86+'Schedule IIF (EBS)'!H86","v":0},8.0000000000000002E-3,0.03,0]
[null,"BSCR Rating 3",{"$f":"'Schedule IIB (EBS)'!D87+'Schedule IIC (EBS)'!D87+'Schedule IID (EBS)'!D87+'Schedule IIE (EBS)'!D87+'Schedule IIF (EBS)'!D87","v":0},{"$f":"'Schedule IIB (EBS)'!F87+'Schedule IIC (EBS)'!F87+'Schedule IID (EBS)'!F87+'Schedule IIE (EBS)'!F87+'Schedule IIF (EBS)'!F87","v":0},{"$f":"'Schedule IIB (EBS)'!H87+'Schedule IIC (EBS)'!H87+'Schedule IID (EBS)'!H87+'Schedule IIE (EBS)'!H87+'Schedule IIF (EBS)'!H87","v":0},1.4999999999999999E-2,0.03,0]
[null,"BSCR Rating 4",{"$f":"'Schedule IIB (EBS)'!D88+'Schedule IIC (EBS)'!D88+'Schedule IID (EBS)'!D88+'Schedule IIE (EBS)'!D88+'Schedule IIF (EBS)'!D88","v":0},{"$f":"'Schedule IIB (EBS)'!F88+'Schedule IIC (EBS)'!F88+'Schedule IID (EBS)'!F88+'Schedule IIE (EBS)'!F88+'Schedule IIF (EBS)'!F88","v":0},{"$f":"'Schedule IIB (EBS)'!H88+'Schedule IIC (EBS)'!H88+'Schedule IID (EBS)'!H88+'Schedule IIE (EBS)'!H88+'Schedule IIF (EBS)'!H88","v":0},0.03,0.03,0]
[null,"BSCR Rating 5",{"$f":"'Schedule IIB (EBS)'!D89+'Schedule IIC (EBS)'!D89+'Schedule IID (EBS)'!D89+'Schedule IIE (EBS)'!D89+'Schedule IIF (EBS)'!D89","v":0},{"$f":"'Schedule IIB (EBS)'!F89+'Schedule IIC (EBS)'!F89+'Schedule IID (EBS)'!F89+'Schedule IIE (EBS)'!F89+'Schedule IIF (EBS)'!F89","v":0},{"$f":"'Schedule IIB (EBS)'!H89+'Schedule IIC (EBS)'!H89+'Schedule IID (EBS)'!H89+'Schedule IIE (EBS)'!H89+'Schedule IIF (EBS)'!H89","v":0},0.08,0.03,0]
[null,"BSCR Rating 6",{"$f":"'Schedule IIB (EBS)'!D90+'Schedule IIC (EBS)'!D90+'Schedule IID (EBS)'!D90+'Schedule IIE (EBS)'!D90+'Schedule IIF (EBS)'!D90","v":0},{"$f":"'Schedule IIB (EBS)'!F90+'Schedule IIC (EBS)'!F90+'Schedule IID (EBS)'!F90+'Schedule IIE (EBS)'!F90+'Schedule IIF (EBS)'!F90","v":0},{"$f":"'Schedule IIB (EBS)'!H90+'Schedule IIC (EBS)'!H90+'Schedule IID (EBS)'!H90+'Schedule IIE (EBS)'!H90+'Schedule IIF (EBS)'!H90","v":0},0.15,0.03,0]
[null,"BSCR Rating 7",{"$f":"'Schedule IIB (EBS)'!D91+'Schedule IIC (EBS)'!D91+'Schedule IID (EBS)'!D91+'Schedule IIE (EBS)'!D91+'Schedule IIF (EBS)'!D91","v":0},{"$f":"'Schedule IIB (EBS)'!F91+'Schedule IIC (EBS)'!F91+'Schedule IID (EBS)'!F91+'Schedule IIE (EBS)'!F91+'Schedule IIF (EBS)'!F91","v":0},{"$f":"'Schedule IIB (EBS)'!H91+'Schedule IIC (EBS)'!H91+'Schedule IID (EBS)'!H91+'Schedule IIE (EBS)'!H91+'Schedule IIF (EBS)'!H91","v":0},0.26300000000000001,0.03,0]
[null,"BSCR Rating 8",{"$f":"'Schedule IIB (EBS)'!D92+'Schedule IIC (EBS)'!D92+'Schedule IID (EBS)'!D92+'Schedule IIE (EBS)'!D92+'Schedule IIF (EBS)'!D92","v":0},{"$f":"'Schedule IIB (EBS)'!F92+'Schedule IIC (EBS)'!F92+'Schedule IID (EBS)'!F92+'Schedule IIE (EBS)'!F92+'Schedule IIF (EBS)'!F92","v":0},{"$f":"'Schedule IIB (EBS)'!H92+'Schedule IIC (EBS)'!H92+'Schedule IID (EBS)'!H92+'Schedule IIE (EBS)'!H92+'Schedule IIF (EBS)'!H92","v":0},0.35,0.03,0]
[]
[null,"(d)  SUBTOTAL - COUNTERPARTY DEFAULT RISK FOR OTC DERIVATIVES",null,null,null,null,null,{"$f":"SUM(H47:H55)","v":0}]
[]
[null,"(e)  TOTAL CREDIT RISK  [ (a) + (b) + (c) + (d) ]",null,null,null,{"$f":"F42+F24+F15","v":0},null,{"$f":"H24+H15+H42+H57","v":0}]

{"sheet":"LT Insurance Risk","index":94,"n_rows":64,"n_cols":15,"rows_kept":64,"cut":false,"hidden":false,"merged":[[54,11,54,12],[55,11,55,12],[25,11,25,12],[40,11,40,12],[40,3,40,4],[41,3,41,4],[41,11,41,12],[49,11,49,12],[50,11,50,12],[53,11,53,12],[43,11,43,12],[39,11,39,12],[34,11,34,12],[53,3,53,4],[55,6,55,7],[50,6,50,7],[0,14,0,15],[16,11,16,12],[24,11,24,12],[29,11,29,12],[4,13,4,14],[28,11,28,12],[26,11,26,12],[27,11,27,12],[4,11,4,12],[9,11,9,12],[9,7,10,7],[24,3,24,4],[43,3,43,4],[39,3,39,4],[40,6,40,7],[21,2,21,4],[32,6,32,7],[26,6,26,7],[27,6,27,7],[28,6,28,7],[29,6,29,7],[33,3,33,4],[35,3,35,4],[25,6,25,7],[25,3,25,4],[27,3,27,4],[41,6,41,7],[34,3,34,4],[34,6,34,7],[28,3,28,4],[29,3,29,4],[55,3,55,4],[54,3,54,4],[30,3,30,4],[31,3,31,4],[4,6,4,7],[9,3,9,4],[16,3,16,4],[18,2,18,3],[9,6,10,6],[16,6,17,6],[16,7,17,7],[4,3,4,4],[49,3,49,4],[50,3,50,4],[54,6,54,7],[26,3,26,4],[31,11,31,12],[32,11,32,12],[33,11,33,12],[35,11,35,12],[36,11,36,12],[37,11,37,12],[32,3,32,4],[33,6,33,7],[35,6,35,7],[36,6,36,7],[37,6,37,7],[36,3,36,4],[37,3,37,4]]}
["LONG TERM INSURANCE RISK",null,null,null,null,null,null,null,null,null,null,null,null,null,{"$f":"HYPERLINK(\"#'Index'!A1\",\"Return to Index\")","v":"Return to Index"}]
[{"$f":"'Insurer Information'!C7","v":"Enter Company Name"},null,null,{"$f":" TEXT('Insurer Information'!C3,\"mmmm dd, yyyy\")","v":"December 31, 2019"}]
[{"$f":"\"Long Term Insurance Risk\"& \" ($\" & IF(CONFIGURATION!$B$12>1,\"'\"&MID(CONFIGURATION!$B$12,2,LEN(CONFIGURATION!$B$12)),\"\") & \")\"","v":"Long Term Insurance Risk ($'000)"},null,null,"(1)","(2)",null,null,null,null,null,null,"(3)","(4)","(5)","(6)"]
[]
[null,null,"TYPE OF RISK","RISK MEASURE",null,null,"STATEMENT SOURCE",null,null,null,null,"CAPITAL FACTORS",null,"CAPITAL REQUIREMENTS"]
[null,null,null,null,null,null,null,null,null,null,null,null,null,{"$f":"YEAR('Insurer Information'!C3)","v":2019}]
[null,null,"Insurance risks"]
[null,null,"Definition of Adjustable: re/insurer has the ability to make a material adjustment to the cost of insurance, based on recent experience"]
[null,null,null,"Adjustable product/treaty","Non-adjustable product/treaty",null,"Adjustable product/treaty","Non-adjustable product/treaty",null,"Tier","NAR (B=$Billions)","Adjustable product/treaty","Non-adjustable product/treaty","Adjustable product/treaty","Non-adjustable product/treaty"]
[null,null,null,"Net Amount at Risk",null,null,"Schedule VII EBS, Line 1, Column (9)","Schedule VII EBS, Line 1, Column (10)",null,null,null,"Factor (per 1000 of NAR)",null,"(1) * (3)","(2) * (4)"]
[null,null,"Mortality ",{"$f":"'Schedule VII (EBS)'!H10","v":0},{"$f":"'Schedule VII (EBS)'!I10","v":0},null,null,null,null,1,"NAR <1B",{"$f":"M11/2","v":1.9850000000000001},3.97,{"$f":"IF(D11>1000000,L11*1000000,L11*D11)/1000","v":0},{"$f":"IF(E11>1000000,M11*1000000,M11*E11)/1000","v":0}]
[null,null,"  (term assurance, whole life, universal life, AD&D)",null,null,null,null,null,null,2,"1B - 5B",{"$f":"M12/2","v":0.9},1.8,{"$f":"IF(D11<1000000,0,IF(D11>5000000,L12*4000000,L12*(D11-1000000)))/1000","v":0},{"$f":"IF(E11<1000000,0,IF(E11>5000000,M12*4000000,M12*(E11-1000000)))/1000","v":0}]
[null,null,null,null,null,null,null,null,null,3,"5B -10B",{"$f":"M13/2","v":0.72},1.44,{"$f":"IF(D11<5000000,0,IF(D11>10000000,L13*5000000,L13*(D11-5000000)))/1000","v":0},{"$f":"IF(E11<5000000,0,IF(E11>10000000,M13*5000000,M13*(E11-5000000)))/1000","v":0}]
[null,null,null,null,null,null,null,null,null,4,"10B - 50B",{"$f":"M14/2","v":0.64500000000000002},1.29,{"$f":"IF(D11<10000000,0,IF(D11>50000000,L14*40000000,L14*(D11-10000000)))/1000","v":0},{"$f":"IF(E11<10000000,0,IF(E11>50000000,M14*40000000,M14*(E11-10000000)))/1000","v":0}]
[null,null,null,null,null,null,null,null,null,5,"NAR > 50B",{"$f":"M15/2","v":0.56499999999999995},1.1299999999999999,{"$f":"IF(D11<50000000,0,L15*(D11-50000000))/1000","v":0},{"$f":"IF(E11<50000000,0,M15*(E11-50000000))/1000","v":0}]
[null,null,null,null,null,null,null,null,null,null,null,null,"Subtotal",{"$f":"SUM(N11:N15)","v":0},{"$f":"SUM(O11:O15)","v":0}]
[null,null,null,"Net Amount at Risk",null,null,"Schedule VII EBS, Line 2, Column (9)","Schedule VII EBS, Line 2, Column (10)",null,null,null,"Factor (per 1000 of NAR)"]
[null,null,"Critical Illness",{"$f":"'Schedule VII (EBS)'!H11","v":0},{"$f":"'Schedule VII (EBS)'!I11","v":0},null,null,null,null,1,"NAR <1B",{"$f":"M18/2","v":5.9550000000000001},{"$f":"M11*3","v":11.91},{"$f":"IF(D18>1000000,L18*1000000,L18*D18)/1000","v":0},{"$f":"IF(E18>1000000,M18*1000000,M18*E18)/1000","v":0}]
[null,null,"  (including accelerated critical illness products)",null,null,null,null,null,null,2,"1B - 5B",{"$f":"M19/2","v":2.7},{"$f":"M12*3","v":5.4},{"$f":"IF(D18<1000000,0,IF(D18>5000000,L19*4000000,L19*(D18-1000000)))/1000","v":0},{"$f":"IF(E18<1000000,0,IF(E18>5000000,M19*4000000,M19*(E18-1000000)))/1000","v":0}]
[null,null,null,null,null,null,null,null,null,3,"5B -10B",{"$f":"M20/2","v":2.16},{"$f":"M13*3","v":4.32},{"$f":"IF(D18<5000000,0,IF(D18>10000000,L20*5000000,L20*(D18-5000000)))/1000","v":0},{"$f":"IF(E18<5000000,0,IF(E18>10000000,M20*5000000,M20*(E18-5000000)))/1000","v":0}]
[null,null,null,null,null,null,null,null,null,4,"10B - 50B",{"$f":"M21/2","v":1.9350000000000001},{"$f":"M14*3","v":3.87},{"$f":"IF(D18<10000000,0,IF(D18>50000000,L21*40000000,L21*(D18-10000000)))/1000","v":0},{"$f":"IF(E18<10000000,0,IF(E18>50000000,M21*40000000,M21*(E18-10000000)))/1000","v":0}]
[null,null,null,null,null,null,null,null,null,5,"NAR > 50B",{"$f":"M22/2","v":1.6949999999999998},{"$f":"M15*3","v":3.3899999999999997},{"$f":"IF(D18<50000000,0,L22*(D18-50000000))/1000","v":0},{"$f":"IF(E18<50000000,0,M22*(E18-50000000))/1000","v":0}]
[null,null,null,null,null,null,null,null,null,null,null,null,"Subtotal",{"$f":"SUM(N18:N22)","v":0},{"$f":"SUM(O18:O22)","v":0}]
[]
[null,null,"Longevity Risk (immediate pay-out annuities, contingent annuities, pension pay-outs) - attained age of annuitant:","BSCR ADJUSTED RESERVE",null,null,null,null,null,null,null,"% of BSCR Adjusted Reserves"]
[null,null,"(a) 0 - 55",{"$f":"+'Schedule VII (EBS)'!F14","v":0},null,null,"Schedule VII EBS, Line 3(a), Column (7)",null,null,null,null,0.02,null,"(1) * (4)",{"$f":"D26*L26","v":0}]
[null,null,"(b) 56 - 65",{"$f":"+'Schedule VII (EBS)'!F15","v":0},null,null,"Schedule VII EBS, Line 3(b), Column (7)",null,null,null,null,0.03,null,"(1) * (4)",{"$f":"D27*L27","v":0}]
[null,null,"(c) 66 - 70",{"$f":"+'Schedule VII (EBS)'!F16","v":0},null,null,"Schedule VII EBS, Line 3(c), Column (7)",null,null,null,null,0.04,null,"(1) * (4)",{"$f":"D28*L28","v":0}]
[null,null,"(d) 71 - 80",{"$f":"+'Schedule VII (EBS)'!F17","v":0},null,null,"Schedule VII EBS, Line 3(d), Column (7)",null,null,null,null,0.05,null,"(1) * (4)",{"$f":"D29*L29","v":0}]
[null,null,"(e) 81+",{"$f":"+'Schedule VII (EBS)'!F18","v":0},null,null,"Schedule VII EBS, Line 3(e), Column (7)",null,null,null,null,0.06,null,"(1) * (4)",{"$f":"D30*L30","v":0}]
[]
[null,null,"Longevity (deferred pay-out annuities, future contingent annuities, future pension pay-outs) - age at which annuity benefit commence:","BSCR ADJUSTED RESERVE",null,null,null,null,null,null,null,"% of BSCR Adjusted Reserves"]
[null,null,"(a) 0 - 55",{"$f":"+'Schedule VII (EBS)'!F22","v":0},null,null,"Schedule VII EBS, Line 4(a), Column (7)",null,null,null,null,0.02,null,"(1) * (4)",{"$f":"D33*L33","v":0}]
[null,null,"(b) 56 - 60",{"$f":"+'Schedule VII (EBS)'!F23","v":0},null,null,"Schedule VII EBS, Line 4(b), Column (7)",null,null,null,null,0.03,null,"(1) * (4)",0]
[null,null,"(c) 61 - 65",{"$f":"+'Schedule VII (EBS)'!F24","v":0},null,null,"Schedule VII EBS, Line 4(c), Column (7)",null,null,null,null,0.04,null,"(1) * (4)",0]
[null,null,"(d) 66 - 70",{"$f":"+'Schedule VII (EBS)'!F25","v":0},null,null,"Schedule VII EBS, Line 4(d), Column (7)",null,null,null,null,0.05,null,"(1) * (4)",0]
[null,null,"(e) 71 - 75",{"$f":"+'Schedule VII (EBS)'!F26","v":0},null,null,"Schedule VII EBS, Line 4(e), Column (7)",null,null,null,null,0.06,null,"(1) * (4)",0]
[null,null,"(f) 76+",{"$f":"+'Schedule VII (EBS)'!F27","v":0},null,null,"Schedule VII EBS, Line 4(f), Column (7)",null,null,null,null,7.0000000000000007E-2,null,"(1) * (4)",0]
[]
[null,null,null,"BSCR ADJUSTED RESERVE",null,null,null,null,null,null,null,"% of BSCR Adjusted Reserves"]
[null,null,"Disability income: claims in payment Waiver of premium and long-term care",{"$f":"'Schedule VII (EBS)'!F38","v":0},null,null,"Schedule VII EBS, Line 9, Column (7)",null,null,null,null,7.0000000000000007E-2,null,"(1) * (4)",{"$f":"D41*L41","v":0}]
[null,null,"Disability income: claims in payment Other accident and sickness",{"$f":"'Schedule VII (EBS)'!F39","v":0},null,null,"Schedule VII EBS, Line 10, Column (7)",null,null,null,null,0.1,null,"(1) * (4)",{"$f":"D42*L42","v":0}]
[]
[null,null,"Disability income: active lives (including waiver of premium and long-term care)","Net Annual Premium ",null,null,null,null,null,null,null,"% of Annual Premiums"]
[null,null,"Length of premium guarantee","Benefit Period <= 2 years","Benefit Period > 2 years",null,null,null,null,null,null,"Benefit Period <= 2 years","Benefit Period > 2 years"]
[null,null,"<= 1 year",{"$f":"'Schedule VII (EBS)'!H33","v":0},{"$f":"'Schedule VII (EBS)'!I33","v":0},null,"Schedule VII EBS, Line 7(a), Column (9)","Schedule VII EBS, Line 7(a), Column (10)",null,null,null,{"$f":"M46*0.75","v":0.09},0.12,"(1) * (3) + (2) * (4)",{"$f":"D46*L46+E46*M46","v":0}]
[null,null,"1 - 5 years",{"$f":"'Schedule VII (EBS)'!H34","v":0},{"$f":"'Schedule VII (EBS)'!I34","v":0},null,"Schedule VII EBS, Line 7(b), Column (9)","Schedule VII EBS, Line 7(b), Column (10)",null,null,null,{"$f":"M47*0.75","v":0.15000000000000002},0.2,"(1) * (3) + (2) * (4)",{"$f":"D47*L47+E47*M47","v":0}]
[null,null,">5 years",{"$f":"'Schedule VII (EBS)'!H35","v":0},{"$f":"'Schedule VII (EBS)'!I35","v":0},null,"Schedule VII EBS, Line 7(c), Column (9)","Schedule VII EBS, Line 7(c), Column (10)",null,null,null,{"$f":"M48*0.75","v":0.22499999999999998},0.3,"(1) * (3) + (2) * (4)",{"$f":"D48*L48+E48*M48","v":0}]
[]
[null,null,null,"Net Annual Premium ",null,null,null,null,null,null,null,"% of Annual Premiums"]
[null,null,"Disability income: active lives  Other accident and sickness",{"$f":"'Schedule VII (EBS)'!J37","v":0},null,null,"Schedule VII EBS, Line 8, Column (11)",null,null,null,null,0.12,null,"(1) * (4)",{"$f":"D51*L51","v":0}]
[]
[]
[null,null,null,"Net Annual Premium ",null,null,null,null,null,null,null,"% of Annual Premiums"]
[null,null,"Stop Loss ",{"$f":"'Schedule VII (EBS)'!J43","v":0},null,null,"Schedule VII EBS, Line 14, Column (11)",null,null,null,null,0.5,null,"(1) * (4)",{"$f":"D55*L55","v":0}]
[null,null,"Rider (Other product riders not included above)",{"$f":"'Schedule VII (EBS)'!J44","v":0},null,null,"Schedule VII EBS, Line 15, Column (11)",null,null,null,null,0.25,null,"(1) * (4)",{"$f":"D56*L56","v":0}]
[null,null,"(for example: Guaranteed Insurability Options, Conversion options, etc)"]
[]
[null,null,"TOTAL INSURANCE RISK"]
[null,null,"Mortality",null,null,null,null,null,null,null,null,null,null,null,{"$f":"MAX(0,N16+O16)","v":0}]
[null,null,"Stop Loss",null,null,null,null,null,null,null,null,null,null,null,{"$f":"MAX(0,O55)","v":0}]
[null,null,"Riders ",null,null,null,null,null,null,null,null,null,null,null,{"$f":"MAX(0,O56)","v":0}]
[null,null,"Morbidity and Disability",null,null,null,null,null,null,null,null,null,null,null,{"$f":"MAX(0,N23+O23+O41+O42+O46+O47+O48+O51)","v":0}]
[null,null,"Longevity",null,null,null,null,null,null,null,null,null,null,null,{"$f":"MAX(0,(SUM(O26:O38)))","v":0}]

{"sheet":"LT Other Insurance Risk","index":95,"n_rows":27,"n_cols":14,"rows_kept":27,"cut":false,"hidden":false,"merged":[[0,7,0,9]]}
[{"$f":"\"LONG TERM OTHER INSURANCE RISK\"& \" ($\" & IF(CONFIGURATION!$B$12>1,\"'\"&MID(CONFIGURATION!$B$12,2,LEN(CONFIGURATION!$B$12)),\"\") & \")\"","v":"LONG TERM OTHER INSURANCE RISK ($'000)"},null,null,null,null,null,null,{"$f":"HYPERLINK(\"#'Index'!A1\",\"Return to Index\")","v":"Return to Index"}]
[{"$f":"'Insurer Information'!C7","v":"Enter Company Name"}]
[{"$f":" TEXT('Insurer Information'!C3,\"mmmm dd, yyyy\")","v":"December 31, 2019"},null,null,null,"(1)",null,"(2)",null,"(3)"]
[]
[]
[null,null,"OTHER INSURANCE RISK","STATEMENT SOURCE","BERMUDA ADJUSTED RESERVE",null,"CAPITAL FACTOR",null,"CAPITAL REQUIREMENT",null,null,null,null,{"$f":"YEAR('Insurer Information'!C3)","v":2019}]
[null,null,"(covering insurance risks such as policyholder behaviour, expenses, and product guarantees)"]
[null,null,null,null,null,null,null,null,"Max [0, (1) x (2)]"]
[null,null,"Line of Business"]
[null,null,"Mortality (term insurance, whole life, universal life)","Schedule VII EBS, Line 1, Column (7)",{"$f":"'Schedule VII (EBS)'!F10","v":0},null,0.02,null,{"$f":"MAX(0,E10*G10)","v":0}]
[null,null,"Critical Illness (including accelerated critical illness products)","Schedule VII EBS, Line 2, Column (7)",{"$f":"'Schedule VII (EBS)'!F11","v":0},null,0.02,null,0]
[null,null,"Longevity (immediate pay-out annuities, contingent annuities, pension pay-outs)","Schedule VII EBS, Line 3(f), Column (7)",{"$f":"+'Schedule VII (EBS)'!F19","v":0},null,5.0000000000000001E-3,null,0]
[null,null,"Longevity (deferred pay-out annuities, future contingent annuities, future pension pay-outs) ","Schedule VII EBS, Line 4(g), Column (7)",{"$f":"+'Schedule VII (EBS)'!F28","v":0},null,5.0000000000000001E-3,null,0]
[null,null,"Annuities certain only","Schedule VII EBS, Line 5, Column (7)",{"$f":"+'Schedule VII (EBS)'!F29","v":0},null,5.0000000000000001E-3,null,0]
[null,null,"Deferred accumulation annuities","Schedule VII EBS, Line 6, Column (7)",{"$f":"+'Schedule VII (EBS)'!F30","v":0},null,5.0000000000000001E-3,null,0]
[null,null,"Disability Income: active lives - including waiver of premium and long-term care","Schedule VII EBS, Line 7(d), Column (7)",{"$f":"'Schedule VII (EBS)'!F36","v":0},null,0.02,null,{"$f":"MAX(0,E16*G16)","v":0}]
[null,null,"Disability Income: active lives - other accident and sickness","Schedule VII EBS, Line 8, Column (7)",{"$f":"'Schedule VII (EBS)'!F37","v":0},null,0.02,null,0]
[null,null,"Disability Income: claims in payment - including waiver of premium and long-term care","Schedule VII EBS, Line 9, Column (7)",{"$f":"'Schedule VII (EBS)'!F38","v":0},null,5.0000000000000001E-3,null,0]
[null,null,"Disability Income: claims in payment - other accident and sickness","Schedule VII EBS, Line 10, Column (7)",{"$f":"'Schedule VII (EBS)'!F39","v":0},null,5.0000000000000001E-3,null,0]
[null,null,"Group Life","Schedule VII EBS, Line 11, Column (7)",{"$f":"'Schedule VII (EBS)'!F40","v":0},null,5.0000000000000001E-3,null,0]
[null,null,"Group Disability","Schedule VII EBS, Line 12, Column (7)",{"$f":"'Schedule VII (EBS)'!F41","v":0},null,5.0000000000000001E-3,null,0]
[null,null,"Group Health","Schedule VII EBS, Line 13, Column (7)",{"$f":"'Schedule VII (EBS)'!F42","v":0},null,5.0000000000000001E-3,null,0]
[null,null,"Stop Loss arrangements","Schedule VII EBS, Line 14, Column (7)",{"$f":"'Schedule VII (EBS)'!F43","v":0},null,0.02,null,0]
[null,null,"Riders (all other products not included above)","Schedule VII EBS, Line 15, Column (7)",{"$f":"'Schedule VII (EBS)'!F44","v":0},null,0.02,null,0]
[]
[]
[null,null,"TOTAL OTHER INSURANCE RISK",null,{"$f":"SUM(E10:E24)","v":0},null,null,null,{"$f":"MAX(0,SUM(I10:I24))","v":0}]

{"sheet":"LT Variable Annuity Gte Risk","index":96,"n_rows":76,"n_cols":27,"rows_kept":76,"cut":false,"hidden":false,"merged":[[6,26,8,26],[7,4,7,5],[7,7,7,8],[7,10,7,11],[6,3,6,4],[6,22,8,22],[6,24,8,24],[7,13,7,14],[7,16,7,17],[7,19,7,20]]}
["LONG TERM VARIABLE ANNUITY GUARANTEE RISK",null,null,null,null,null,null,null,null,null,null,null,null,null,null,null,null,null,null,null,null,null,{"$f":"HYPERLINK(\"#'Index'!A1\",\"Return to Index\")","v":"Return to Index"}]
[{"$f":"'Insurer Information'!C7","v":"Enter Company Name"}]
[{"$f":"\"Long Term Business Variable Annuity Guarantee Risk\"& \" ($\" & IF(CONFIGURATION!$B$12>1,\"'\"&MID(CONFIGURATION!$B$12,2,LEN(CONFIGURATION!$B$12)),\"\") & \")\"","v":"Long Term Business Variable Annuity Guarantee Risk ($'000)"},null,null,null,null,null,null,null,null,null,null,{"$f":" TEXT('Insurer Information'!C3,\"mmmm dd, yyyy\")","v":"December 31, 2019"}]
[]
[null,null,null,null,"(1)","(2)",null,"(3)","(4)",null,"(5)","(6)",null,"(7)","(8)",null,"(9)","(10)",null,"(11)","(12)",null,"(13)",null,"(13)",null,"(14)"]
[null,null,null,null,null,null,null,null,null,null,null,null,null,{"$f":"YEAR('Insurer Information'!C3)","v":2019}]
[null,null,null,null,null,null,null,null,null,null,null,null,null,null,null,null,null,null,null,null,null,null,"CAPITAL REQUIREMENTS",null,"BERMUDA STATUTORY RESERVES",null,"CAPITAL REQUIREMENT"]
[null,null,null,null,"Volatility (0% - 10.0%]",null,null,"Volatility (10.0% - 15.0%]",null,null,"Volatility >15.0%",null,null,"Volatility (0% - 10.0%]",null,null,"Volatility (10.0% - 15.0%]",null,null,"Volatility >15.0%"]
[null,null,null,null,"Guaranteed Value","Capital Factor",null,"Guaranteed Value","Capital Factor",null,"Guaranteed Value","Capital Factor",null,"Net Value at Risk","Capital Factor",null,"Net Value at Risk","Capital Factor",null,"Net Value at Risk","Capital Factor"]
[]
[null,null,null,"Variable Annuity Guarantee Risk",null,null,null,null,null,null,null,null,null,null," ",null,null,null,null,null,null,null,"Max [{(1) x (2) + (3) x (4) + (5) x (6)},(7) x (8) + (9) x (10) + (11) x (12)]",null,null,null,"(13) - (12)"]
[]
[null,null,null,"Guaranteed Minimum Death Benefit: Return of Premium, Ratchet and Reset "]
[null,1,null,null,{"$f":"'Schedule VIII (EBS)'!H13","v":0},2.5000000000000001E-3,null,{"$f":"'Schedule VIII (EBS)'!J13","v":0},5.0000000000000001E-3,null,{"$f":"'Schedule VIII (EBS)'!L13","v":0},7.4999999999999997E-3,null,{"$f":"'Schedule VIII (EBS)'!N13","v":0},0.04,null,{"$f":"+'Schedule VIII (EBS)'!P13","v":0},8.5000000000000006E-2,null,{"$f":"+'Schedule VIII (EBS)'!R13","v":0},0.13,null,{"$f":"IF(ISERROR(OR(E14*F14+H14*I14+K14*L14,N14*O14+Q14*R14+T14*U14)),0,MAX(E14*F14+H14*I14+K14*L14,N14*O14+Q14*R14+T14*U14))","v":0},null,{"$f":"'Schedule VIII (EBS)'!F13","v":0},null,{"$f":"MAX(0,W14-Y14)","v":0}]
[null,16,null,null,{"$f":"+'Schedule VIII (EBS)'!H31","v":0},2.5000000000000001E-3,null,{"$f":"'Schedule VIII (EBS)'!J31","v":0},5.0000000000000001E-3,null,{"$f":"'Schedule VIII (EBS)'!L31","v":0},7.4999999999999997E-3,null,null,null,null,null,null,null,null,null,null,{"$f":"IF(ISERROR(OR(E15*F15+H15*I15+K15*L15,N15*O15+Q15*R15+T15*U15)),0,MAX(E15*F15+H15*I15+K15*L15,N15*O15+Q15*R15+T15*U15))","v":0},null,{"$f":"'Schedule VIII (EBS)'!F14","v":0},null,{"$f":"MAX(0,W15-Y15)","v":0}]
[]
[null,null,null,"Guaranteed Minimum Death Benefit: Enhanced Benefits (Roll up) "]
[null,2,null,null,{"$f":"'Schedule VIII (EBS)'!H14","v":0},7.4999999999999997E-3,null,{"$f":"'Schedule VIII (EBS)'!J14","v":0},0.01,null,{"$f":"'Schedule VIII (EBS)'!L14","v":0},1.2500000000000001E-2,null,{"$f":"'Schedule VIII (EBS)'!N14","v":0},0.12,null,{"$f":"+'Schedule VIII (EBS)'!P14","v":0},0.16500000000000001,null,{"$f":"+'Schedule VIII (EBS)'!R14","v":0},0.21,null,{"$f":"IF(ISERROR(OR(E18*F18+H18*I18+K18*L18,N18*O18+Q18*R18+T18*U18)),0,MAX(E18*F18+H18*I18+K18*L18,N18*O18+Q18*R18+T18*U18))","v":0},null,{"$f":"'Schedule VIII (EBS)'!F14","v":0},null,{"$f":"MAX(0,W18-Y18)","v":0}]
[null,17,null,null,{"$f":"+'Schedule VIII (EBS)'!H32","v":0},7.4999999999999997E-3,null,{"$f":"'Schedule VIII (EBS)'!J32","v":0},0.01,null,{"$f":"'Schedule VIII (EBS)'!L32","v":0},1.2500000000000001E-2,null,null,null,null,null,null,null,null,null,null,{"$f":"IF(ISERROR(OR(E19*F19+H19*I19+K19*L19,N19*O19+Q19*R19+T19*U19)),0,MAX(E19*F19+H19*I19+K19*L19,N19*O19+Q19*R19+T19*U19))","v":0},null,{"$f":"'Schedule VIII (EBS)'!F15","v":0},null,{"$f":"MAX(0,W19-Y19)","v":0}]
[]
[null,null,null,"Guaranteed Minimum Income Benefit (GMIB)"]
[null,3,null,null,{"$f":"'Schedule VIII (EBS)'!H15","v":0},0.05,null,{"$f":"'Schedule VIII (EBS)'!J15","v":0},6.5000000000000002E-2,null,{"$f":"'Schedule VIII (EBS)'!L15","v":0},0.08,null,{"$f":"'Schedule VIII (EBS)'!N15","v":0},1,null,{"$f":"+'Schedule VIII (EBS)'!P15","v":0},1.3,null,{"$f":"+'Schedule VIII (EBS)'!R15","v":0},1.6,null,{"$f":"IF(ISERROR(OR(E22*F22+H22*I22+K22*L22,N22*O22+Q22*R22+T22*U22)),0,MAX(E22*F22+H22*I22+K22*L22,N22*O22+Q22*R22+T22*U22))","v":0},null,{"$f":"'Schedule VIII (EBS)'!F15","v":0},null,{"$f":"MAX(0,W22-Y22)","v":0}]
[null,18,null,null,{"$f":"'Schedule VIII (EBS)'!H33","v":0},0.05,null,{"$f":"'Schedule VIII (EBS)'!J33","v":0},6.5000000000000002E-2,null,{"$f":"'Schedule VIII (EBS)'!L33","v":0},0.08,null,null,null,null,null,null,null,null,null,null,{"$f":"IF(ISERROR(OR(E23*F23+H23*I23+K23*L23,N23*O23+Q23*R23+T23*U23)),0,MAX(E23*F23+H23*I23+K23*L23,N23*O23+Q23*R23+T23*U23))","v":0},null,{"$f":"'Schedule VIII (EBS)'!F16","v":0},null,{"$f":"MAX(0,W23-Y23)","v":0}]
[]
[null,null,null,"Guaranteed Minimum Withdrawal Benefit (GMWB)"]
[null,4,null,null,{"$f":"'Schedule VIII (EBS)'!H16","v":0},3.2500000000000001E-2,null,{"$f":"'Schedule VIII (EBS)'!J16","v":0},4.2500000000000003E-2,null,{"$f":"'Schedule VIII (EBS)'!L16","v":0},0.05,null,{"$f":"'Schedule VIII (EBS)'!N16","v":0},0.6,null,{"$f":"+'Schedule VIII (EBS)'!P16","v":0},0.75,null,{"$f":"+'Schedule VIII (EBS)'!R16","v":0},0.9,null,{"$f":"IF(ISERROR(OR(E26*F26+H26*I26+K26*L26,N26*O26+Q26*R26+T26*U26)),0,MAX(E26*F26+H26*I26+K26*L26,N26*O26+Q26*R26+T26*U26))","v":0},null,{"$f":"'Schedule VIII (EBS)'!F16","v":0},null,{"$f":"MAX(0,W26-Y26)","v":0}]
[null,19,null,null,{"$f":"'Schedule VIII (EBS)'!H34","v":0},3.2500000000000001E-2,null,{"$f":"'Schedule VIII (EBS)'!J34","v":0},4.2500000000000003E-2,null,{"$f":"'Schedule VIII (EBS)'!L34","v":0},0.05,null,null,null,null,null,null,null,null,null,null,{"$f":"IF(ISERROR(OR(E27*F27+H27*I27+K27*L27,N27*O27+Q27*R27+T27*U27)),0,MAX(E27*F27+H27*I27+K27*L27,N27*O27+Q27*R27+T27*U27))","v":0},null,{"$f":"'Schedule VIII (EBS)'!F17","v":0},null,{"$f":"MAX(0,W27-Y27)","v":0}]
[]
[null,null,null,"Guaranteed Enhanced Earnings Benefit (GEEB)"]
[null,5,null,null,{"$f":"'Schedule VIII (EBS)'!H17","v":0},0,null,{"$f":"'Schedule VIII (EBS)'!J17","v":0},5.0000000000000001E-3,null,{"$f":"'Schedule VIII (EBS)'!L17","v":0},0.01,null,{"$f":"'Schedule VIII (EBS)'!N17","v":0},0.01,null,{"$f":"+'Schedule VIII (EBS)'!P17","v":0},0.09,null,{"$f":"+'Schedule VIII (EBS)'!R17","v":0},0.17,null,{"$f":"IF(ISERROR(OR(E30*F30+H30*I30+K30*L30,N30*O30+Q30*R30+T30*U30)),0,MAX(E30*F30+H30*I30+K30*L30,N30*O30+Q30*R30+T30*U30))","v":0},null,{"$f":"'Schedule VIII (EBS)'!F17","v":0},null,{"$f":"MAX(0,W30-Y30)","v":0}]
[null,20,null,null,{"$f":"'Schedule VIII (EBS)'!H35","v":0},0,null,{"$f":"'Schedule VIII (EBS)'!J35","v":0},5.0000000000000001E-3,null,{"$f":"'Schedule VIII (EBS)'!L35","v":0},0.01,null,null,null,null,null,null,null,null,null,null,{"$f":"IF(ISERROR(OR(E31*F31+H31*I31+K31*L31,N31*O31+Q31*R31+T31*U31)),0,MAX(E31*F31+H31*I31+K31*L31,N31*O31+Q31*R31+T31*U31))","v":0},null,{"$f":"'Schedule VIII (EBS)'!F18","v":0},null,{"$f":"MAX(0,W31-Y31)","v":0}]
[]
[null,null,null,"Guaranteed Minimum Accumulation Benefit (GMAB): "]
[null,6,null,"0-1",{"$f":"+'Schedule VIII (EBS)'!H19","v":0},3.2000000000000001E-2,null,{"$f":"+'Schedule VIII (EBS)'!J19","v":0},0.05,null,{"$f":"+'Schedule VIII (EBS)'!L19","v":0},0.09,null,{"$f":"+'Schedule VIII (EBS)'!N19","v":0},0.9,null,{"$f":"+'Schedule VIII (EBS)'!P19","v":0},1.3,null,{"$f":"+'Schedule VIII (EBS)'!R19","v":0},2.5,null,{"$f":"IF(ISERROR(OR(E34*F34+H34*I34+K34*L34,N34*O34+Q34*R34+T34*U34)),0,MAX(E34*F34+H34*I34+K34*L34,N34*O34+Q34*R34+T34*U34))","v":0},null,{"$f":"+'Schedule VIII (EBS)'!F19","v":0},null,{"$f":"MAX(0,W34-Y34)","v":0}]
[null,7,null,"1-2",{"$f":"+'Schedule VIII (EBS)'!H20","v":0},0.03,null,{"$f":"+'Schedule VIII (EBS)'!J20","v":0},0.05,null,{"$f":"+'Schedule VIII (EBS)'!L20","v":0},8.8999999999999996E-2,null,{"$f":"+'Schedule VIII (EBS)'!N20","v":0},0.8,null,{"$f":"+'Schedule VIII (EBS)'!P20","v":0},1.1499999999999999,null,{"$f":"+'Schedule VIII (EBS)'!R20","v":0},2,null,0,null,{"$f":"+'Schedule VIII (EBS)'!F20","v":0},null,0]
[null,8,null,"2-3",{"$f":"+'Schedule VIII (EBS)'!H21","v":0},0.03,null,{"$f":"+'Schedule VIII (EBS)'!J21","v":0},0.05,null,{"$f":"+'Schedule VIII (EBS)'!L21","v":0},8.8999999999999996E-2,null,{"$f":"+'Schedule VIII (EBS)'!N21","v":0},0.7,null,{"$f":"+'Schedule VIII (EBS)'!P21","v":0},1.05,null,{"$f":"+'Schedule VIII (EBS)'!R21","v":0},1.6,null,0,null,{"$f":"+'Schedule VIII (EBS)'!F21","v":0},null,0]
[null,9,null,"3-4",{"$f":"+'Schedule VIII (EBS)'!H22","v":0},2.8000000000000001E-2,null,{"$f":"+'Schedule VIII (EBS)'!J22","v":0},0.05,null,{"$f":"+'Schedule VIII (EBS)'!L22","v":0},8.7999999999999995E-2,null,{"$f":"+'Schedule VIII (EBS)'!N22","v":0},0.6,null,{"$f":"+'Schedule VIII (EBS)'!P22","v":0},0.95,null,{"$f":"+'Schedule VIII (EBS)'!R22","v":0},1.35,null,0,null,{"$f":"+'Schedule VIII (EBS)'!F22","v":0},null,0]
[null,10,null,"4-5",{"$f":"+'Schedule VIII (EBS)'!H23","v":0},2.4E-2,null,{"$f":"+'Schedule VIII (EBS)'!J23","v":0},4.2999999999999997E-2,null,{"$f":"+'Schedule VIII (EBS)'!L23","v":0},0.08,null,{"$f":"+'Schedule VIII (EBS)'!N23","v":0},0.55000000000000004,null,{"$f":"+'Schedule VIII (EBS)'!P23","v":0},0.85,null,{"$f":"+'Schedule VIII (EBS)'!R23","v":0},1.1499999999999999,null,0,null,{"$f":"+'Schedule VIII (EBS)'!F23","v":0},null,0]
[null,11,null,"5-6",{"$f":"+'Schedule VIII (EBS)'!H24","v":0},0.02,null,{"$f":"+'Schedule VIII (EBS)'!J24","v":0},3.5000000000000003E-2,null,{"$f":"+'Schedule VIII (EBS)'!L24","v":0},6.8000000000000005E-2,null,{"$f":"+'Schedule VIII (EBS)'!N24","v":0},0.5,null,{"$f":"+'Schedule VIII (EBS)'!P24","v":0},0.75,null,{"$f":"+'Schedule VIII (EBS)'!R24","v":0},1,null,0,null,{"$f":"+'Schedule VIII (EBS)'!F24","v":0},null,0]
[null,12,null,"6-7",{"$f":"+'Schedule VIII (EBS)'!H25","v":0},1.7000000000000001E-2,null,{"$f":"+'Schedule VIII (EBS)'!J25","v":0},2.8000000000000001E-2,null,{"$f":"+'Schedule VIII (EBS)'!L25","v":0},5.8999999999999997E-2,null,{"$f":"+'Schedule VIII (EBS)'!N25","v":0},0.45,null,{"$f":"+'Schedule VIII (EBS)'!P25","v":0},0.65,null,{"$f":"+'Schedule VIII (EBS)'!R25","v":0},0.9,null,0,null,{"$f":"+'Schedule VIII (EBS)'!F25","v":0},null,0]
[null,13,null,"7-8",{"$f":"+'Schedule VIII (EBS)'!H26","v":0},1.4E-2,null,{"$f":"+'Schedule VIII (EBS)'!J26","v":0},2.1000000000000001E-2,null,{"$f":"+'Schedule VIII (EBS)'!L26","v":0},4.9000000000000002E-2,null,{"$f":"+'Schedule VIII (EBS)'!N26","v":0},0.4,null,{"$f":"+'Schedule VIII (EBS)'!P26","v":0},0.55000000000000004,null,{"$f":"+'Schedule VIII (EBS)'!R26","v":0},0.8,null,0,null,{"$f":"+'Schedule VIII (EBS)'!F26","v":0},null,0]
[null,14,null,"8-9",{"$f":"+'Schedule VIII (EBS)'!H27","v":0},1.0999999999999999E-2,null,{"$f":"+'Schedule VIII (EBS)'!J27","v":0},1.7000000000000001E-2,null,{"$f":"+'Schedule VIII (EBS)'!L27","v":0},4.2999999999999997E-2,null,{"$f":"+'Schedule VIII (EBS)'!N27","v":0},0.35,null,{"$f":"+'Schedule VIII (EBS)'!P27","v":0},0.5,null,{"$f":"+'Schedule VIII (EBS)'!R27","v":0},0.7,null,0,null,{"$f":"+'Schedule VIII (EBS)'!F27","v":0},null,0]
[null,15,null,">9",{"$f":"+'Schedule VIII (EBS)'!H28","v":0},0.01,null,{"$f":"+'Schedule VIII (EBS)'!J28","v":0},1.4E-2,null,{"$f":"+'Schedule VIII (EBS)'!L28","v":0},3.9E-2,null,{"$f":"+'Schedule VIII (EBS)'!N28","v":0},0.3,null,{"$f":"+'Schedule VIII (EBS)'!P28","v":0},0.45,null,{"$f":"+'Schedule VIII (EBS)'!R28","v":0},0.6,null,0,null,{"$f":"+'Schedule VIII (EBS)'!F28","v":0},null,0]
[]
[null,21,null,"0-1",{"$f":"+'Schedule VIII (EBS)'!H37","v":0},3.2000000000000001E-2,null,{"$f":"+'Schedule VIII (EBS)'!J37","v":0},0.05,null,{"$f":"+'Schedule VIII (EBS)'!L37","v":0},0.09,null,null,null,null,null,null,null,null,null,null,{"$f":"IF(ISERROR(OR(E45*F45+H45*I45+K45*L45,N45*O45+Q45*R45+T45*U45)),0,MAX(E45*F45+H45*I45+K45*L45,N45*O45+Q45*R45+T45*U45))","v":0},null,{"$f":"+'Schedule VIII (EBS)'!F30","v":0},null,{"$f":"MAX(0,W45-Y45)","v":0}]
[null,22,null,"1-2",{"$f":"+'Schedule VIII (EBS)'!H38","v":0},0.03,null,{"$f":"+'Schedule VIII (EBS)'!J38","v":0},0.05,null,{"$f":"+'Schedule VIII (EBS)'!L38","v":0},8.8999999999999996E-2,null,null,null,null,null,null,null,null,null,null,0,null,{"$f":"+'Schedule VIII (EBS)'!F31","v":0},null,0]
[null,23,null,"2-3",{"$f":"+'Schedule VIII (EBS)'!H39","v":0},0.03,null,{"$f":"+'Schedule VIII (EBS)'!J39","v":0},0.05,null,{"$f":"+'Schedule VIII (EBS)'!L39","v":0},8.8999999999999996E-2,null,null,null,null,null,null,null,null,null,null,0,null,{"$f":"+'Schedule VIII (EBS)'!F32","v":0},null,0]
[null,24,null,"3-4",{"$f":"+'Schedule VIII (EBS)'!H40","v":0},2.8000000000000001E-2,null,{"$f":"+'Schedule VIII (EBS)'!J40","v":0},0.05,null,{"$f":"+'Schedule VIII (EBS)'!L40","v":0},8.7999999999999995E-2,null,null,null,null,null,null,null,null,null,null,0,null,{"$f":"+'Schedule VIII (EBS)'!F33","v":0},null,0]
[null,25,null,"4-5",{"$f":"+'Schedule VIII (EBS)'!H41","v":0},2.4E-2,null,{"$f":"+'Schedule VIII (EBS)'!J41","v":0},4.2999999999999997E-2,null,{"$f":"+'Schedule VIII (EBS)'!L41","v":0},0.08,null,null,null,null,null,null,null,null,null,null,0,null,{"$f":"+'Schedule VIII (EBS)'!F34","v":0},null,0]
[null,26,null,"5-6",{"$f":"+'Schedule VIII (EBS)'!H42","v":0},0.02,null,{"$f":"+'Schedule VIII (EBS)'!J42","v":0},3.5000000000000003E-2,null,{"$f":"+'Schedule VIII (EBS)'!L42","v":0},6.8000000000000005E-2,null,null,null,null,null,null,null,null,null,null,0,null,{"$f":"+'Schedule VIII (EBS)'!F35","v":0},null,0]
[null,27,null,"6-7",{"$f":"+'Schedule VIII (EBS)'!H43","v":0},1.7000000000000001E-2,null,{"$f":"+'Schedule VIII (EBS)'!J43","v":0},2.8000000000000001E-2,null,{"$f":"+'Schedule VIII (EBS)'!L43","v":0},5.8999999999999997E-2,null,null,null,null,null,null,null,null,null,null,0,null,{"$f":"+'Schedule VIII (EBS)'!F36","v":0},null,0]
[null,28,null,"7-8",{"$f":"+'Schedule VIII (EBS)'!H44","v":0},1.4E-2,null,{"$f":"+'Schedule VIII (EBS)'!J44","v":0},2.1000000000000001E-2,null,{"$f":"+'Schedule VIII (EBS)'!L44","v":0},4.9000000000000002E-2,null,null,null,null,null,null,null,null,null,null,0,null,{"$f":"+'Schedule VIII (EBS)'!F37","v":0},null,0]
[null,29,null,"8-9",{"$f":"+'Schedule VIII (EBS)'!H45","v":0},1.0999999999999999E-2,null,{"$f":"+'Schedule VIII (EBS)'!J45","v":0},1.7000000000000001E-2,null,{"$f":"+'Schedule VIII (EBS)'!L45","v":0},4.2999999999999997E-2,null,null,null,null,null,null,null,null,null,null,0,null,{"$f":"+'Schedule VIII (EBS)'!F38","v":0},null,0]
[null,30,null,">9",{"$f":"+'Schedule VIII (EBS)'!H46","v":0},0.01,null,{"$f":"+'Schedule VIII (EBS)'!J46","v":0},1.4E-2,null,{"$f":"+'Schedule VIII (EBS)'!L46","v":0},3.9E-2,null,null,null,null,null,null,null,null,null,null,0,null,{"$f":"+'Schedule VIII (EBS)'!F39","v":0},null,0]
[]
[null,null,null,"Reduction:"]
[null,31,null,"Percentage of Guaranteed Minimum Death Benefit with Multiple Guarantees",null,null,null,null,null,null,null,null,null,null,null,null,null,null,null,null,null,{"$f":"+'Schedule VIII (EBS)'!L50","v":0},{"$f":"IF(V57=0,0,(W14+W15+W18+W19)*(-V57))","v":0}]
[null,32,null,"Total BSCR Adjusted Reserves for Variable Annuities",null,null,null,null,null,null,null,null,null,null,null,null,null,null,null,null,null,null,{"$f":"-'Schedule VII (EBS)'!F47","v":0}]
[]
[null,33,null,"TOTAL - VARIABLE ANNUITY GUARANTEE RISK",null,null,null,null,null,null,null,null,null,null,null,null,null,null,null,null,null,null,{"$f":"MAX(0,SUM(W14:W58))","v":0},null,{"$f":"MAX(0,SUM(Y14:Y58))","v":0},null,{"$f":"MAX(0,SUM(AA14:AA58))","v":0}]
[]
[null,null,null,"Notes"]
[null,null,null,"1.  Factors should be applied to Net Amount at Risk (NAR) defined as:"]
[null,null,null,null,"GMAB",null,null,"Total claim payable if all contracts mature immediately"]
[null,null,null,null,"GMDB",null,null,"Total claim amount payable upon immediate death of all policyholders"]
[null,null,null,null,"GMIB",null,null,"Total claim payable upon full and immediate annuitization of all policies using an 80% factor applied to the Guaranteed Value (the 80% represents the ratio between current market annuitization factors and the guaranteed annuitization factors)"]
[null,null,null,null,"GMWB",null,null,"Total claim payable if 100% of the guaranteed withdrawal benefit base in excess of the current account value is withdrawn immediately"]
[null,null,null,null,"GEEB",null,null,"Total guaranteed enhanced payments upon immediate death of all policyholders"]
[]
[null,null,null,"2.  Where ratchets, resets and roll-ups exist, please use the roll-up category."]
[]
[null,null,null,"3.  NAR is net of reinsurance."]
[]
[null,null,null,"4.  The proportion used for the account value under reinsurance is the proportion used for NAR."]
[]
[null,null,null,"5.  Need minimium amount when Guaranteed Value (GV) < Account Value (AV), the minimum floor factor is applied to AV."]

{"sheet":"Company Specific Parameters","index":97,"n_rows":556,"n_cols":21,"rows_kept":556,"cut":false,"hidden":false,"merged":[[0,0,0,6],[441,6,442,6],[372,1,372,4],[391,1,391,4],[392,2,393,3],[353,2,355,3],[441,7,442,7],[2,5,3,8],[5,1,5,8],[331,3,331,4],[332,3,332,4],[420,1,421,1],[441,2,442,2],[441,8,442,8],[337,3,337,4],[338,3,338,4],[412,3,412,4],[441,3,442,3],[441,4,442,4],[373,2,374,3],[2,0,2,2],[441,5,442,5]]}
["COMPANY SPECIFIC PARAMETERS",null,null,null,null,null,null,null,{"$f":"HYPERLINK(\"#'Index'!A1\",\"Return to Index\")","v":"Return to Index"},null,null,null,null,null,null,null,null,null,null,null,{"$f":"IF(C4=\"\",\"\",TEXT(DATE(YEAR(C4+1)-1,MONTH(C4+1),DAY(C4+1)),\"mm/dd/yyyy\"))","v":"01/01/2019"}]
[null,null,null,null,null,null,null,null,null,null,null,null,"",null,null,null,null,null,null,null,{"$f":"IF(C4=\"\",\"\",TEXT(C4,\"mm/dd/yyyy\"))","v":"12/31/2019"}]
[{"$f":"+'Insurer Information'!C7","v":"Enter Company Name"},null,null,null,null,{"$f":"HYPERLINK(\"#'Attachments'!A184\",\"Details of User Capital Factor to be included in the attachments section 9.\")","v":"Details of User Capital Factor to be included in the attachments section 9."}]
["For the Year Ending ",null,{"$f":"+'Insurer Information'!C3","v":"2019-12-31"},null,null,null,null,null,null,null,null,null,""]
[]
[null,"To be completed only with prior approval from the Bermuda Monetary Authority",null,null,null,null,null,null,null,null,null,null,null,{"$f":"YEAR('Insurer Information'!C3)","v":2019}]
[]
[null,null,null,null,"STANDARD","STANDARD",null,"USER","USER"]
[null,"TYPE OF ",null,"ASSET","CAPITAL","REQUIRED",null,"CAPITAL","REQUIRED"]
[null,"FIXED INCOME INVESTMENTS","STATEMENT SOURCE","VALUE","FACTOR","CAPITAL",null,"FACTOR","CAPITAL"]
[]
[null,"(a)  Corporate & Sovereign Bonds",null,"(1) ","(2)","(1) x (2)",null,"(3)","(1) x (3)"]
[]
[null,"BSCR Rating"]
[null,0,"Sch II EBS, Line (1), Column 1 & Sch IIA EBS, Line (1), Column 1",{"$f":"+'Schedule II (EBS)'!D12+'Schedule IIA (EBS)'!D12","v":0},{"$f":"+'Fixed Income Investments'!E12","v":0},{"$f":"IF(D15<0,0,D15*E15)","v":0},null,null,{"$f":"MAX(0,IF(H15=\"\",E15*D15,D15*H15))","v":0}]
[null,1,"Sch II EBS, Line (2), Column 1 & Sch IIA EBS, Line (2), Column 1",{"$f":"+'Schedule II (EBS)'!D13+'Schedule IIA (EBS)'!D13","v":0},{"$f":"+'Fixed Income Investments'!E13","v":4.0000000000000001E-3},{"$f":"IF(D16<0,0,D16*E16)","v":0},null,null,{"$f":"MAX(0,IF(H16=\"\",E16*D16,D16*H16))","v":0}]
[null,2,"Sch II EBS, Line (3), Column 1 & Sch IIA EBS, Line (3), Column 1",{"$f":"+'Schedule II (EBS)'!D14+'Schedule IIA (EBS)'!D14","v":0},{"$f":"+'Fixed Income Investments'!E14","v":8.0000000000000002E-3},0,null,null,0]
[null,3,"Sch II EBS, Line (4), Column 1 & Sch IIA EBS, Line (4), Column 1",{"$f":"+'Schedule II (EBS)'!D15+'Schedule IIA (EBS)'!D15","v":0},{"$f":"+'Fixed Income Investments'!E15","v":1.4999999999999999E-2},0,null,null,0]
[null,4,"Sch II EBS, Line (5), Column 1 & Sch IIA EBS, Line (5), Column 1",{"$f":"+'Schedule II (EBS)'!D16+'Schedule IIA (EBS)'!D16","v":0},{"$f":"+'Fixed Income Investments'!E16","v":0.03},0,null,null,0]
[null,5,"Sch II EBS, Line (6), Column 1 & Sch IIA EBS, Line (6), Column 1",{"$f":"+'Schedule II (EBS)'!D17+'Schedule IIA (EBS)'!D17","v":0},{"$f":"+'Fixed Income Investments'!E17","v":0.08},0,null,null,0]
[null,6,"Sch II EBS, Line (7), Column 1 & Sch IIA EBS, Line (7), Column 1",{"$f":"+'Schedule II (EBS)'!D18+'Schedule IIA (EBS)'!D18","v":0},{"$f":"+'Fixed Income Investments'!E18","v":0.15},0,null,null,0]
[null,7,"Sch II EBS, Line (8), Column 1 & Sch IIA EBS, Line (8), Column 1",{"$f":"+'Schedule II (EBS)'!D19+'Schedule IIA (EBS)'!D19","v":0},{"$f":"+'Fixed Income Investments'!E19","v":0.26300000000000001},{"$f":"IF(D22<0,0,D22*E22)","v":0},null,null,0]
[null,8,"Sch II EBS, Line (9), Column 1 & Sch IIA EBS, Line (9), Column 1",{"$f":"+'Schedule II (EBS)'!D20+'Schedule IIA (EBS)'!D20","v":0},{"$f":"+'Fixed Income Investments'!E20","v":0.35},{"$f":"IF(D23<0,0,D23*E23)","v":0},null,null,0]
[]
[null,"(a)  SUBTOTAL -  CORPORATE BONDS",null,{"$f":"SUM(D15:D23)","v":0},null,{"$f":"IF(SUM(F15:F23)>=0,SUM(F15:F23),0)","v":0},null,null,{"$f":"IF(SUM(I15:I23)>=0,SUM(I15:I23),0)","v":0}]
[]
[null,"(b) Residential Mortgage-Backed Securities",null,"(1) ","(2)","(1) x (2)",null,"(3)","(1) x (3)"]
[]
[null,"BSCR Rating"]
[null,1,"Sch II EBS, Line (2), Column 3 & Sch IIA EBS, Line (2), Column 3",{"$f":"+'Schedule II (EBS)'!H13+'Schedule IIA (EBS)'!H13","v":0},{"$f":"+'Fixed Income Investments'!E27","v":6.0000000000000001E-3},{"$f":"IF(D30<0,0,D30*E30)","v":0},null,null,{"$f":"MAX(0,IF(H30=\"\",E30*D30,D30*H30))","v":0}]
[null,2,"Sch II EBS, Line (3), Column 3 & Sch IIA EBS, Line (3), Column 3",{"$f":"+'Schedule II (EBS)'!H14+'Schedule IIA (EBS)'!H14","v":0},{"$f":"+'Fixed Income Investments'!E28","v":1.2E-2},0,null,null,0]
[null,3,"Sch II EBS, Line (4), Column 3 & Sch IIA EBS, Line (4), Column 3",{"$f":"+'Schedule II (EBS)'!H15+'Schedule IIA (EBS)'!H15","v":0},{"$f":"+'Fixed Income Investments'!E29","v":0.02},0,null,null,0]
[null,4,"Sch II EBS, Line (5), Column 3 & Sch IIA EBS, Line (5), Column 3",{"$f":"+'Schedule II (EBS)'!H16+'Schedule IIA (EBS)'!H16","v":0},{"$f":"+'Fixed Income Investments'!E30","v":0.04},0,null,null,0]
[null,5,"Sch II EBS, Line (6), Column 3 & Sch IIA EBS, Line (6), Column 3",{"$f":"+'Schedule II (EBS)'!H17+'Schedule IIA (EBS)'!H17","v":0},{"$f":"+'Fixed Income Investments'!E31","v":0.11},0,null,null,0]
[null,6,"Sch II EBS, Line (7), Column 3 & Sch IIA EBS, Line (7), Column 3",{"$f":"+'Schedule II (EBS)'!H18+'Schedule IIA (EBS)'!H18","v":0},{"$f":"+'Fixed Income Investments'!E32","v":0.25},0,null,null,0]
[null,7,"Sch II EBS, Line (8), Column 3 & Sch IIA EBS, Line (8), Column 3",{"$f":"+'Schedule II (EBS)'!H19+'Schedule IIA (EBS)'!H19","v":0},{"$f":"+'Fixed Income Investments'!E33","v":0.35},{"$f":"IF(D36<0,0,D36*E36)","v":0},null,null,0]
[null,8,"Sch II EBS, Line (9), Column 3 & Sch IIA EBS, Line (9), Column 3",{"$f":"+'Schedule II (EBS)'!H20+'Schedule IIA (EBS)'!H20","v":0},{"$f":"+'Fixed Income Investments'!E34","v":0.35},{"$f":"IF(D37<0,0,D37*E37)","v":0},null,null,0]
[]
[null,"(b)  SUBTOTAL - RESIDENTIAL MORTGAGE-BACKED SECURITIES",null,{"$f":"SUM(D30:D37)","v":0},null,{"$f":"IF(SUM(F30:F37)>=0,SUM(F30:F37),0)","v":0},null,null,{"$f":"IF(SUM(I30:I37)>=0,SUM(I30:I37),0)","v":0}]
[]
[null,"(c) Commercial Mortgage-Backed Securities / Asset Backed Securities",null,"(1) ","(2)","(1) x (2)",null,"(3)","(1) x (3)"]
[]
[null,"BSCR Rating"]
[null,1,"Sch II EBS, Line (2), Column 5 & Sch IIA EBS, Line (2), Column 5",{"$f":"+'Schedule II (EBS)'!L13+'Schedule IIA (EBS)'!L13","v":0},{"$f":"+'Fixed Income Investments'!E41","v":5.0000000000000001E-3},{"$f":"IF(D44<0,0,D44*E44)","v":0},null,null,{"$f":"MAX(0,IF(H44=\"\",E44*D44,D44*H44))","v":0}]
[null,2,"Sch II EBS, Line (3), Column 5 & Sch IIA EBS, Line (3), Column 5",{"$f":"+'Schedule II (EBS)'!L14+'Schedule IIA (EBS)'!L14","v":0},{"$f":"+'Fixed Income Investments'!E42","v":0.01},0,null,null,0]
[null,3,"Sch II EBS, Line (4), Column 5 & Sch IIA EBS, Line (4), Column 5",{"$f":"+'Schedule II (EBS)'!L15+'Schedule IIA (EBS)'!L15","v":0},{"$f":"+'Fixed Income Investments'!E43","v":1.7999999999999999E-2},0,null,null,0]
[null,4,"Sch II EBS, Line (5), Column 5 & Sch IIA EBS, Line (5), Column 5",{"$f":"+'Schedule II (EBS)'!L16+'Schedule IIA (EBS)'!L16","v":0},{"$f":"+'Fixed Income Investments'!E44","v":3.5000000000000003E-2},0,null,null,0]
[null,5,"Sch II EBS, Line (6), Column 5 & Sch IIA EBS, Line (6), Column 5",{"$f":"+'Schedule II (EBS)'!L17+'Schedule IIA (EBS)'!L17","v":0},{"$f":"+'Fixed Income Investments'!E45","v":0.1},0,null,null,0]
[null,6,"Sch II EBS, Line (7), Column 5 & Sch IIA EBS, Line (7), Column 5",{"$f":"+'Schedule II (EBS)'!L18+'Schedule IIA (EBS)'!L18","v":0},{"$f":"+'Fixed Income Investments'!E46","v":0.2},0,null,null,0]
[null,7,"Sch II EBS, Line (8), Column 5 & Sch IIA EBS, Line (8), Column 5",{"$f":"+'Schedule II (EBS)'!L19+'Schedule IIA (EBS)'!L19","v":0},{"$f":"+'Fixed Income Investments'!E47","v":0.3},{"$f":"IF(D50<0,0,D50*E50)","v":0},null,null,0]
[null,8,"Sch II EBS, Line (9), Column 5 & Sch IIA EBS, Line (9), Column 5",{"$f":"+'Schedule II (EBS)'!L20+'Schedule IIA (EBS)'!L20","v":0},{"$f":"+'Fixed Income Investments'!E48","v":0.35},{"$f":"IF(D51<0,0,D51*E51)","v":0},null,null,0]
[]
[null,"(c)  SUBTOTAL - COMMERCIAL MORTGAGE-BACKED SECURITIES / ASSET-BACKED SECURITIES",null,{"$f":"SUM(D44:D51)","v":0},null,{"$f":"IF(SUM(F44:F51)>=0,SUM(F44:F51),0)","v":0},null,null,{"$f":"IF(SUM(I44:I51)>=0,SUM(I44:I51),0)","v":0}]
[]
[null,"(d) Bond Mutual Funds",null,"(1) ","(2)","(1) x (2)",null,"(3)","(1) x (3)"]
[]
[null,"BSCR Rating"]
[null,0,"Sch II EBS, Line (1), Column 7 & Sch IIA EBS, Line (1), Column 7",{"$f":"'Schedule II (EBS)'!P12+'Schedule IIA (EBS)'!P12","v":0},{"$f":"+'Fixed Income Investments'!E56","v":0},{"$f":"IF(D58<0,0,D58*E58)","v":0},null,null,{"$f":"MAX(0,IF(H58=\"\",E58*D58,D58*H58))","v":0}]
[null,1,"Sch II EBS, Line (2), Column 7 & Sch IIA EBS, Line (2), Column 7",{"$f":"'Schedule II (EBS)'!P13+'Schedule IIA (EBS)'!P13","v":0},{"$f":"+'Fixed Income Investments'!E57","v":4.0000000000000001E-3},{"$f":"IF(D59<0,0,D59*E59)","v":0},null,null,0]
[null,2,"Sch II EBS, Line (3), Column 7 & Sch IIA EBS, Line (3), Column 7",{"$f":"'Schedule II (EBS)'!P14+'Schedule IIA (EBS)'!P14","v":0},{"$f":"+'Fixed Income Investments'!E58","v":8.0000000000000002E-3},0,null,null,0]
[null,3,"Sch II EBS, Line (4), Column 7 & Sch IIA EBS, Line (4), Column 7",{"$f":"'Schedule II (EBS)'!P15+'Schedule IIA (EBS)'!P15","v":0},{"$f":"+'Fixed Income Investments'!E59","v":1.4999999999999999E-2},0,null,null,0]
[null,4,"Sch II EBS, Line (5), Column 7 & Sch IIA EBS, Line (5), Column 7",{"$f":"'Schedule II (EBS)'!P16+'Schedule IIA (EBS)'!P16","v":0},{"$f":"+'Fixed Income Investments'!E60","v":0.03},0,null,null,0]
[null,5,"Sch II EBS, Line (6), Column 7 & Sch IIA EBS, Line (6), Column 7",{"$f":"'Schedule II (EBS)'!P17+'Schedule IIA (EBS)'!P17","v":0},{"$f":"+'Fixed Income Investments'!E61","v":0.08},0,null,null,0]
[null,6,"Sch II EBS, Line (7), Column 7 & Sch IIA EBS, Line (7), Column 7",{"$f":"'Schedule II (EBS)'!P18+'Schedule IIA (EBS)'!P18","v":0},{"$f":"+'Fixed Income Investments'!E62","v":0.15},0,null,null,0]
[null,7,"Sch II EBS, Line (8), Column 7 & Sch IIA EBS, Line (8), Column 7",{"$f":"'Schedule II (EBS)'!P19+'Schedule IIA (EBS)'!P19","v":0},{"$f":"+'Fixed Income Investments'!E63","v":0.26300000000000001},{"$f":"IF(D65<0,0,D65*E65)","v":0},null,null,0]
[null,8,"Sch II EBS, Line (9), Column 7 & Sch IIA EBS, Line (9), Column 7",{"$f":"'Schedule II (EBS)'!P20+'Schedule IIA (EBS)'!P20","v":0},{"$f":"+'Fixed Income Investments'!E64","v":0.35},{"$f":"IF(D66<0,0,D66*E66)","v":0},null,null,0]
[]
[null,"(d)  SUBTOTAL - BOND MUTUAL FUNDS",null,{"$f":"SUM(D58:D66)","v":0},null,{"$f":"IF(SUM(F58:F66)>=0,SUM(F58:F66),0)","v":0},null,null,{"$f":"IF(SUM(I58:I66)>=0,SUM(I58:I66),0)","v":0}]
[]
[null,"(e) Mortgage Loans"]
[]
[null,"Insured/Guaranteed Mortgages","Sch II EBS, Line (22), Column 1 & Sch IIA EBS, Line (22), Column 1",{"$f":"+'Schedule II (EBS)'!D57+'Schedule IIA (EBS)'!D57","v":0},{"$f":"+'Fixed Income Investments'!E70","v":3.0000000000000001E-3},{"$f":"IF(D72<0,0,D72*E72)","v":0},null,null,{"$f":"MAX(0,IF(H72=\"\",E72*D72,D72*H72))","v":0}]
[null,"Other Commercial and Farm Mortgages","Sch II EBS, Line (23), Column 1 & Sch IIA EBS, Line (23), Column 1 ",{"$f":"+'Schedule II (EBS)'!D58+'Schedule IIA (EBS)'!D58","v":0},{"$f":"+'Fixed Income Investments'!E71","v":0.05},{"$f":"IF(D73<0,0,D73*E73)","v":0},null,null,{"$f":"MAX(0,IF(H73=\"\",E73*D73,D73*H73))","v":0}]
[null,"Other Residential Mortgages","Sch II EBS, Line (24), Column 1 & Sch IIA EBS, Line (24), Column 1",{"$f":"+'Schedule II (EBS)'!D59+'Schedule IIA (EBS)'!D59","v":0},{"$f":"+'Fixed Income Investments'!E72","v":1.4999999999999999E-2},{"$f":"IF(D74<0,0,D74*E74)","v":0},null,null,{"$f":"MAX(0,IF(H74=\"\",E74*D74,D74*H74))","v":0}]
[null,"Mortgages Not In Good Standing","Sch II EBS, Line (25), Column 1 & Sch IIA EBS, Line (25), Column 1",{"$f":"+'Schedule II (EBS)'!D60+'Schedule IIA (EBS)'!D60","v":0},{"$f":"+'Fixed Income Investments'!E73","v":0.25},{"$f":"IF(D75<0,0,D75*E75)","v":0},null,null,{"$f":"MAX(0,IF(H75=\"\",E75*D75,D75*H75))","v":0}]
[]
[null,"(e)  SUBTOTAL - MORTGAGE LOANS",null,{"$f":"SUM(D72:D75)","v":0},null,{"$f":"IF(SUM(F72:F75)>=0,SUM(F72:F75),0)","v":0},null,null,{"$f":"IF(SUM(I72:I75)>=0,SUM(I72:I75),0)","v":0}]
[]
[null,"(f) Other Fixed Income Investments"]
[]
[null,"Other Loans","Form 4EBS, Line (8)",{"$f":"+'Form 4EBS'!F54","v":0},{"$f":"+'Fixed Income Investments'!E79","v":0.05},{"$f":"IF(D81<0,0,D81*E81)","v":0},null,null,{"$f":"MAX(0,IF(H81=\"\",E81*D81,D81*H81))","v":0}]
[]
[null,"Cash and Cash Equivalent Counterparty Balances By BSCR Rating"]
[]
[null,"BSCR Rating 0 ","Schedule XIX, Column B",{"$f":"+'Schedule XIX'!H83","v":0},{"$f":"+'Fixed Income Investments'!E83","v":0},{"$f":"IF(D85<0,0,D85*E85)","v":0},null,null,{"$f":"MAX(0,IF(H85=\"\",E85*D85,D85*H85))","v":0}]
[null,"BSCR Rating 1","Schedule XIX, Column B",{"$f":"+'Schedule XIX'!H84","v":0},{"$f":"+'Fixed Income Investments'!E84","v":1E-3},{"$f":"IF(D86<0,0,D86*E86)","v":0},null,null,{"$f":"MAX(0,IF(H86=\"\",E86*D86,D86*H86))","v":0}]
[null,"BSCR Rating 2","Schedule XIX, Column B",{"$f":"+'Schedule XIX'!H85","v":0},{"$f":"+'Fixed Income Investments'!E85","v":2E-3},0,null,null,0]
[null,"BSCR Rating 3","Schedule XIX, Column B",{"$f":"+'Schedule XIX'!H86","v":0},{"$f":"+'Fixed Income Investments'!E86","v":3.0000000000000001E-3},0,null,null,0]
[null,"BSCR Rating 4","Schedule XIX, Column B",{"$f":"+'Schedule XIX'!H87","v":0},{"$f":"+'Fixed Income Investments'!E87","v":5.0000000000000001E-3},0,null,null,0]
[null,"BSCR Rating 5","Schedule XIX, Column B",{"$f":"+'Schedule XIX'!H88","v":0},{"$f":"+'Fixed Income Investments'!E88","v":1.4999999999999999E-2},0,null,null,0]
[null,"BSCR Rating 6","Schedule XIX, Column B",{"$f":"+'Schedule XIX'!H89","v":0},{"$f":"+'Fixed Income Investments'!E89","v":0.04},0,null,null,0]
[null,"BSCR Rating 7","Schedule XIX, Column B",{"$f":"+'Schedule XIX'!H90","v":0},{"$f":"+'Fixed Income Investments'!E90","v":0.06},0,null,null,0]
[null,"BSCR Rating 8","Schedule XIX, Column B",{"$f":"+'Schedule XIX'!H91","v":0},{"$f":"+'Fixed Income Investments'!E91","v":0.09},0,null,null,0]
[]
[null,"Total",null,{"$f":"SUM(D85:D94)","v":0},null,{"$f":"SUM(F85:F94)","v":0},null,null,{"$f":"SUM(I85:I94)","v":0}]
[]
[null,"Diversification Adj at 40%","Schedule XIX, Column B",null,null,{"$f":"SUM(F85:F93)*-('Schedule XIX'!H100)","v":0},null,null,{"$f":"SUM(I85:I93)*-('Schedule XIX'!H100)","v":0}]
[]
[null,"(f)  SUBTOTAL - OTHER FIXED INCOME SECURITIES",null,{"$f":"SUM(D81,D95)","v":0},null,{"$f":"IF(SUM(F81,F95,F97)>=0,SUM(F81,F95,F97),0)","v":0},null,null,{"$f":"IF(SUM(I81,I95,I97)>=0,SUM(I81,I95,I97),0)","v":0}]
[]
[null,"(G)  TOTAL FIXED INCOME INVESTMENTS [ (a)+(b)+(c)+(d)+(e)+(f) ]",null,{"$f":"D25+D39+D53+D68+D77+D99","v":0},null,{"$f":"F25+F39+F53+F68+F77+F99","v":0},null,null,{"$f":"I25+I39+I53+I68+I77+I99","v":0}]
[]
[null,null,null,null,"STANDARD","STANDARD",null,"USER","USER"]
[null,"TYPE OF ",null,"ASSET","CAPITAL","REQUIRED",null,"CAPITAL","REQUIRED"]
[null,"EQUITY INVESTMENTS","STATEMENT SOURCE","VALUE","FACTOR","CAPITAL",null,"FACTOR","CAPITAL"]
[]
[null,"(a)  Common Stocks",null,"(1) ","(2)","(1) x (2)",null,"(3)","(1) x (3)"]
[]
[null,"Non-Affiliated (Quoted)","Sch II EBS, Line (19), Column (1) and Sch IIA EBS, Line (19), Column (1)",{"$f":"'Schedule II (EBS)'!D41+'Schedule IIA (EBS)'!D41","v":0},{"$f":"+'Equity Investments'!E11","v":0.14399999999999999},{"$f":"IF(D109<0,0,D109*E109)","v":0},null,null,{"$f":"MAX(0,IF(H109=\"\",E109*D109,D109*H109))","v":0}]
[null,"Non-Affiliated (Unquoted)","Sch II EBS, Line (20), Column (1) and Sch IIA EBS, Line (20), Column (1)",{"$f":"'Schedule II (EBS)'!D42+'Schedule IIA (EBS)'!D42","v":0},{"$f":"+'Equity Investments'!E12","v":0.14399999999999999},{"$f":"IF(D110<0,0,D110*E110)","v":0},null,null,{"$f":"MAX(0,IF(H110=\"\",E110*D110,D110*H110))","v":0}]
[null,"Equity Mutual Funds","Sch II EBS, Line (21), Column (5) and Sch IIA EBS, Line (21), Column (5)",{"$f":"'Schedule II (EBS)'!L41+'Schedule II (EBS)'!L42+'Schedule IIA (EBS)'!L41+'Schedule IIA (EBS)'!L42","v":0},{"$f":"+'Equity Investments'!E13","v":0.14399999999999999},{"$f":"IF(D111<0,0,D111*E111)","v":0},null,null,{"$f":"MAX(0,IF(H111=\"\",E111*D111,D111*H111))","v":0}]
[]
[null,"(a)  SUBTOTAL - COMMON STOCKS",null,{"$f":"SUM(D109:D111)","v":0},null,{"$f":"IF(SUM(F109:F111)>=0,SUM(F109:F111),0)","v":0},null,null,{"$f":"IF(SUM(I109:I111)>=0,SUM(I109:I111),0)","v":0}]
[]
[null,"(b)  Preferred Stocks"]
[]
[null,"BSCR Rating"]
[null,1,"Sch II EBS, Line (11), Column (3) and Sch IIA EBS, Line (11), Column (3)",{"$f":"+'Schedule II (EBS)'!H33+'Schedule IIA (EBS)'!H33","v":0},{"$f":"+'Equity Investments'!E20","v":6.0000000000000001E-3},{"$f":"IF(D118<0,0,D118*E118)","v":0},null,null,{"$f":"MAX(0,IF(H118=\"\",E118*D118,D118*H118))","v":0}]
[null,2,"Sch II EBS, Line (12), Column (3) and Sch IIA EBS, Line (12), Column (3)",{"$f":"+'Schedule II (EBS)'!H34+'Schedule IIA (EBS)'!H34","v":0},{"$f":"+'Equity Investments'!E21","v":1.2E-2},{"$f":"IF(D119<0,0,D119*E119)","v":0},null,null,0]
[null,3,"Sch II EBS, Line (13), Column (3) and Sch IIA EBS, Line (13), Column (3)",{"$f":"+'Schedule II (EBS)'!H35+'Schedule IIA (EBS)'!H35","v":0},{"$f":"+'Equity Investments'!E22","v":0.02},0,null,null,0]
[null,4,"Sch II EBS, Line (14), Column (3) and Sch IIA EBS, Line (14), Column (3)",{"$f":"+'Schedule II (EBS)'!H36+'Schedule IIA (EBS)'!H36","v":0},{"$f":"+'Equity Investments'!E23","v":0.04},0,null,null,0]
[null,5,"Sch II EBS, Line (15), Column (3) and Sch IIA EBS, Line (15), Column (3)",{"$f":"+'Schedule II (EBS)'!H37+'Schedule IIA (EBS)'!H37","v":0},{"$f":"+'Equity Investments'!E24","v":0.11},0,null,null,0]
[null,6,"Sch II EBS, Line (16), Column (3) and Sch IIA EBS, Line (16), Column (3)",{"$f":"+'Schedule II (EBS)'!H38+'Schedule IIA (EBS)'!H38","v":0},{"$f":"+'Equity Investments'!E25","v":0.25},0,null,null,0]
[null,7,"Sch II EBS, Line (17), Column (3) and Sch IIA EBS, Line (17), Column (3)",{"$f":"+'Schedule II (EBS)'!H39+'Schedule IIA (EBS)'!H39","v":0},{"$f":"+'Equity Investments'!E26","v":0.35},0,null,null,0]
[null,8,"Sch II EBS, Line (18), Column (3) and Sch IIA EBS, Line (18), Column (3)",{"$f":"+'Schedule II (EBS)'!H40+'Schedule IIA (EBS)'!H40","v":0},{"$f":"+'Equity Investments'!E27","v":0.35},{"$f":"IF(D125<0,0,D125*E125)","v":0},null,null,0]
[]
[null,"(b)  SUBTOTAL - PREFERRED STOCKS",null,{"$f":"SUM(D118:D125)","v":0},null,{"$f":"IF(SUM(F118:F125)>=0,SUM(F118:F125),0)","v":0},null,null,{"$f":"IF(SUM(I118:I125)>=0,SUM(I118:I125),0)","v":0}]
[]
[null,"(c)  Other Equity Investments"]
[]
[null,"Real Estate"]
[null,"Company-Occupied Less Encumbrances","Form 4EBS, Line (7a)",{"$f":"+'Form 4EBS'!F50","v":0},{"$f":"+'Equity Investments'!E34","v":0.1},{"$f":"IF(D132<0,0,D132*E132)","v":0},null,null,{"$f":"MAX(0,IF(H132=\"\",E132*D132,D132*H132))","v":0}]
[null,"Investments Less Encumbrances","Form 4EBS, Line (7b)",{"$f":"+'Form 4EBS'!F51","v":0},{"$f":"+'Equity Investments'!E35","v":0.2},{"$f":"IF(D133<0,0,D133*E133)","v":0},null,null,{"$f":"MAX(0,IF(H133=\"\",E133*D133,D133*H133))","v":0}]
[]
[null,"Other Equity Investments","Form 4EBS, Lines (2e), (3e) & Schedule IIA EBS, Line 21, Column (7)",{"$f":"+'Form 4EBS'!F19+'Form 4EBS'!F29+'Schedule IIA (EBS)'!P44","v":0},{"$f":"+'Equity Investments'!E37","v":0.2},{"$f":"IF(D135<0,0,D135*E135)","v":0},null,null,{"$f":"MAX(0,IF(H135=\"\",E135*D135,D135*H135))","v":0}]
[null,"Other Tangible Assets - Net of Segregated Accounts Companies","Form 4EBS, Lines (13k), (14d), and (36f) Less Form 4EBS, Lines (13b),  (13c) and (13h)",{"$f":"'Form 4EBS'!F85-'Form 4EBS'!F77-'Form 4EBS'!F78-'Form 4EBS'!F82+'Form 4EBS'!F91+'Form 4EBS'!F166","v":0},{"$f":"+'Equity Investments'!E38","v":0.2},{"$f":"IF(D136<0,0,D136*E136)","v":0},null,null,{"$f":"MAX(0,IF(H136=\"\",E136*D136,D136*H136))","v":0}]
[]
[null,"(c)  SUBTOTAL - OTHER EQUITY INVESTMENTS",null,{"$f":"SUM(D132:D136)","v":0},null,{"$f":"IF(SUM(F132:F136)>=0,SUM(F132:F136),0)","v":0},null,null,{"$f":"IF(SUM(I132:I136)>=0,SUM(I132:I136),0)","v":0}]
[]
[null,"(d)  Investments in Affiliates"]
[]
[null,"Unregulated Entities That Conduct Ancillary Services","Form 4EBS, Line (4a)",{"$f":"+'Form 4EBS'!F33","v":0},{"$f":"+'Equity Investments'!E44","v":0.05},{"$f":"IF(D142<0,0,D142*E142)","v":0},null,null,{"$f":"MAX(0,IF(H142=\"\",E142*D142,D142*H142))","v":0}]
[null,"Unregulated Non-Financial Operating Entities","Form 4EBS, Line (4b)",{"$f":"+'Form 4EBS'!F34","v":0},{"$f":"+'Equity Investments'!E45","v":0.2},{"$f":"IF(D143<0,0,D143*E143)","v":0},null,null,{"$f":"MAX(0,IF(H143=\"\",E143*D143,D143*H143))","v":0}]
[null,"Unregulated Financial Operating Entities","Form 4EBS, Line (4c)",{"$f":"+'Form 4EBS'!F35","v":0},{"$f":"+'Equity Investments'!E46","v":0.55000000000000004},{"$f":"IF(D144<0,0,D144*E144)","v":0},null,null,{"$f":"MAX(0,IF(H144=\"\",E144*D144,D144*H144))","v":0}]
[null,"Regulated Insurance Financial Operating Entities","Form 4EBS, Line (4e)",{"$f":"+'Form 4EBS'!F37","v":0},{"$f":"+'Equity Investments'!E47","v":0.2},{"$f":"IF(D145<0,0,D145*E145)","v":0},null,null,{"$f":"MAX(0,IF(H145=\"\",E145*D145,D145*H145))","v":0}]
[]
[null,"(d)  SUBTOTAL - INVESTMENTS IN AFFILIATES",null,{"$f":"SUM(D142:D145)","v":0},null,{"$f":"IF(SUM(F142:F145)>=0,SUM(F142:F145),0)","v":0},null,null,{"$f":"IF(SUM(I142:I145)>=0,SUM(I142:I145),0)","v":0}]
[]
[null,"(e)  TOTAL EQUITY INVESTMENTS [ (a) + (b) + (c) + (d) ]",null,{"$f":"D113+D127+D138+D147","v":0},null,{"$f":"F113+F127+F138+F147","v":0},null,null,{"$f":"I113+I127+I138+I147","v":0}]
[]
[null,null,null,null,"STANDARD","STANDARD",null,"USER","USER"]
[null,null,null,null,"CAPITAL","REQUIRED",null,"CAPITAL","REQUIRED"]
[null,"CURRENCY RISK","ASSETS","LIABILITIES","FACTOR","CAPITAL",null,"FACTOR","CAPITAL"]
[]
[null,"US Dollar",{"$f":"IF('Currency Risk'!D9=0,'Currency Risk'!C9,'Currency Risk'!D9)","v":0},{"$f":"IF('Currency Risk'!D9=0,'Currency Risk'!E9,'Currency Risk'!F9)","v":0},{"$f":"'Currency Risk'!H9","v":0},{"$f":"'Currency Risk'!I9","v":0},null,null,{"$f":"IF(H155=\"\",F155,H155*ABS(D155-C155))","v":0}]
[null,"Euro",{"$f":"IF('Currency Risk'!D10=0,'Currency Risk'!C10,'Currency Risk'!D10)","v":0},{"$f":"IF('Currency Risk'!D10=0,'Currency Risk'!E10,'Currency Risk'!F10)","v":0},{"$f":"'Currency Risk'!H10","v":0.25},{"$f":"'Currency Risk'!I10","v":0},null,null,{"$f":"IF(H156=\"\",F156,H156*ABS(D156-C156))","v":0}]
[null,"GBP",{"$f":"IF('Currency Risk'!D11=0,'Currency Risk'!C11,'Currency Risk'!D11)","v":0},{"$f":"IF('Currency Risk'!D11=0,'Currency Risk'!E11,'Currency Risk'!F11)","v":0},{"$f":"'Currency Risk'!H11","v":0.25},{"$f":"'Currency Risk'!I11","v":0},null,null,0]
[null,"CAD$",{"$f":"IF('Currency Risk'!D12=0,'Currency Risk'!C12,'Currency Risk'!D12)","v":0},{"$f":"IF('Currency Risk'!D12=0,'Currency Risk'!E12,'Currency Risk'!F12)","v":0},{"$f":"'Currency Risk'!H12","v":0.25},{"$f":"'Currency Risk'!I12","v":0},null,null,0]
[null,"YEN",{"$f":"IF('Currency Risk'!D13=0,'Currency Risk'!C13,'Currency Risk'!D13)","v":0},{"$f":"IF('Currency Risk'!D13=0,'Currency Risk'!E13,'Currency Risk'!F13)","v":0},{"$f":"'Currency Risk'!H13","v":0.25},{"$f":"'Currency Risk'!I13","v":0},null,null,0]
[null,"Other currency 1",{"$f":"IF('Currency Risk'!D14=0,'Currency Risk'!C14,'Currency Risk'!D14)","v":0},{"$f":"IF('Currency Risk'!D14=0,'Currency Risk'!E14,'Currency Risk'!F14)","v":0},{"$f":"'Currency Risk'!H14","v":0.25},{"$f":"'Currency Risk'!I14","v":0},null,null,0]
[null,"Other currency 2",{"$f":"IF('Currency Risk'!D15=0,'Currency Risk'!C15,'Currency Risk'!D15)","v":0},{"$f":"IF('Currency Risk'!D15=0,'Currency Risk'!E15,'Currency Risk'!F15)","v":0},{"$f":"'Currency Risk'!H15","v":0.25},{"$f":"'Currency Risk'!I15","v":0},null,null,0]
[null,"Other currency 3",{"$f":"IF('Currency Risk'!D16=0,'Currency Risk'!C16,'Currency Risk'!D16)","v":0},{"$f":"IF('Currency Risk'!D16=0,'Currency Risk'!E16,'Currency Risk'!F16)","v":0},{"$f":"'Currency Risk'!H16","v":0.25},{"$f":"'Currency Risk'!I16","v":0},null,null,0]
[null,"Other currency 4",{"$f":"IF('Currency Risk'!D17=0,'Currency Risk'!C17,'Currency Risk'!D17)","v":0},{"$f":"IF('Currency Risk'!D17=0,'Currency Risk'!E17,'Currency Risk'!F17)","v":0},{"$f":"'Currency Risk'!H17","v":0.25},{"$f":"'Currency Risk'!I17","v":0},null,null,0]
[null,"Other currency 5",{"$f":"IF('Currency Risk'!D18=0,'Currency Risk'!C18,'Currency Risk'!D18)","v":0},{"$f":"IF('Currency Risk'!D18=0,'Currency Risk'!E18,'Currency Risk'!F18)","v":0},{"$f":"'Currency Risk'!H18","v":0.25},{"$f":"'Currency Risk'!I18","v":0},null,null,0]
[null,"Other currency 6",{"$f":"IF('Currency Risk'!D19=0,'Currency Risk'!C19,'Currency Risk'!D19)","v":0},{"$f":"IF('Currency Risk'!D19=0,'Currency Risk'!E19,'Currency Risk'!F19)","v":0},{"$f":"'Currency Risk'!H19","v":0.25},{"$f":"'Currency Risk'!I19","v":0},null,null,0]
[null,"Other currency 7",{"$f":"IF('Currency Risk'!D20=0,'Currency Risk'!C20,'Currency Risk'!D20)","v":0},{"$f":"IF('Currency Risk'!D20=0,'Currency Risk'!E20,'Currency Risk'!F20)","v":0},{"$f":"'Currency Risk'!H20","v":0.25},{"$f":"'Currency Risk'!I20","v":0},null,null,0]
[null,"Other currency 8",{"$f":"IF('Currency Risk'!D21=0,'Currency Risk'!C21,'Currency Risk'!D21)","v":0},{"$f":"IF('Currency Risk'!D21=0,'Currency Risk'!E21,'Currency Risk'!F21)","v":0},{"$f":"'Currency Risk'!H21","v":0.25},{"$f":"'Currency Risk'!I21","v":0},null,null,0]
[null,"Other currency 9",{"$f":"IF('Currency Risk'!D22=0,'Currency Risk'!C22,'Currency Risk'!D22)","v":0},{"$f":"IF('Currency Risk'!D22=0,'Currency Risk'!E22,'Currency Risk'!F22)","v":0},{"$f":"'Currency Risk'!H22","v":0.25},{"$f":"'Currency Risk'!I22","v":0},null,null,0]
[null,"Other currency 10",{"$f":"IF('Currency Risk'!D23=0,'Currency Risk'!C23,'Currency Risk'!D23)","v":0},{"$f":"IF('Currency Risk'!D23=0,'Currency Risk'!E23,'Currency Risk'!F23)","v":0},{"$f":"'Currency Risk'!H23","v":0.25},{"$f":"'Currency Risk'!I23","v":0},null,null,0]
[null,"Total Identified",{"$f":"SUM(C155:C169)","v":0},{"$f":"SUM(D155:D169)","v":0}]
[null,"Total",{"$f":"+'Schedule XX'!L27","v":0},{"$f":"+'Schedule XX'!P27","v":0}]
[null,"% Identified",{"$f":"IF(C170=0,0,C170/C171)","v":0},{"$f":"IF(D170=0,0,D170/D171)","v":0}]
[]
[null,"TOTAL CURRENCY RISK",{"$f":"SUM(C155:C169)","v":0},{"$f":"SUM(D155:D169)","v":0},null,{"$f":"IF(SUM(F155:F172)>=0,SUM(F155:F172),0)","v":0},null,null,{"$f":"IF(SUM(I155:I172)>=0,SUM(I155:I172),0)","v":0}]
[]
[null,"CONCENTRATION RISK",null,null,"STANDARD","STANDARD",null,"USER","USER"]
[null,null,null,"EXPOSURE","CAPITAL","REQUIRED",null,"CAPITAL","REQUIRED"]
[null,"ASSET TYPE","STATEMENT SOURCE","VALUE","FACTOR","CAPITAL",null,"FACTOR","CAPITAL"]
[]
[null,"(a) Cash and Cash Equivalents"]
[null,"BSCR Rating 0","Schedule XXI, Column H",{"$f":"+'Concentration Risk'!D10","v":0},{"$f":"+'Fixed Income Investments'!E83","v":0},{"$f":"IF(D181<0,0,D181*E181)","v":0},null,null,{"$f":"MAX(0,IF(H181=\"\",E181*D181,D181*H181))","v":0}]
[null,"BSCR Rating 1","Schedule XXI, Column H",{"$f":"+'Concentration Risk'!D11","v":0},{"$f":"+'Fixed Income Investments'!E84","v":1E-3},{"$f":"IF(D182<0,0,D182*E182)","v":0},null,null,0]
[null,"BSCR Rating 2","Schedule XXI, Column H",{"$f":"+'Concentration Risk'!D12","v":0},{"$f":"+'Fixed Income Investments'!E85","v":2E-3},0,null,null,0]
[null,"BSCR Rating 3","Schedule XXI, Column H",{"$f":"+'Concentration Risk'!D13","v":0},{"$f":"+'Fixed Income Investments'!E86","v":3.0000000000000001E-3},0,null,null,0]
[null,"BSCR Rating 4","Schedule XXI, Column H",{"$f":"+'Concentration Risk'!D14","v":0},{"$f":"+'Fixed Income Investments'!E87","v":5.0000000000000001E-3},0,null,null,0]
[null,"BSCR Rating 5","Schedule XXI, Column H",{"$f":"+'Concentration Risk'!D15","v":0},{"$f":"+'Fixed Income Investments'!E88","v":1.4999999999999999E-2},0,null,null,0]
[null,"BSCR Rating 6","Schedule XXI, Column H",{"$f":"+'Concentration Risk'!D16","v":0},{"$f":"+'Fixed Income Investments'!E89","v":0.04},0,null,null,0]
[null,"BSCR Rating 7","Schedule XXI, Column H",{"$f":"+'Concentration Risk'!D17","v":0},{"$f":"+'Fixed Income Investments'!E90","v":0.06},0,null,null,0]
[null,"BSCR Rating 8","Schedule XXI, Column H",{"$f":"+'Concentration Risk'!D18","v":0},{"$f":"+'Fixed Income Investments'!E91","v":0.09},0,null,null,0]
[]
[null,"(a)  SUBTOTAL - CASH AND CASH EQUIVALENTS",null,{"$f":"SUM(D181:D189)","v":0},null,{"$f":"SUM(F181:F189)","v":0},null,null,{"$f":"SUM(I181:I189)","v":0}]
[]
[null,"(b) Corporate & Sovereign Bonds"]
[null,"BSCR Rating 0","Schedule XXI, Column H",{"$f":"+'Concentration Risk'!D23","v":0},{"$f":"+E15","v":0},{"$f":"IF(D194<0,0,D194*E194)","v":0},null,null,{"$f":"MAX(0,IF(H194=\"\",E194*D194,D194*H194))","v":0}]
[null,"BSCR Rating 1","Schedule XXI, Column H",{"$f":"+'Concentration Risk'!D24","v":0},4.0000000000000001E-3,{"$f":"IF(D195<0,0,D195*E195)","v":0},null,null,0]
[null,"BSCR Rating 2","Schedule XXI, Column H",{"$f":"+'Concentration Risk'!D25","v":0},8.0000000000000002E-3,0,null,null,0]
[null,"BSCR Rating 3","Schedule XXI, Column H",{"$f":"+'Concentration Risk'!D26","v":0},1.4999999999999999E-2,0,null,null,0]
[null,"BSCR Rating 4","Schedule XXI, Column H",{"$f":"+'Concentration Risk'!D27","v":0},0.03,0,null,null,0]
[null,"BSCR Rating 5","Schedule XXI, Column H",{"$f":"+'Concentration Risk'!D28","v":0},0.08,0,null,null,0]
[null,"BSCR Rating 6","Schedule XXI, Column H",{"$f":"+'Concentration Risk'!D29","v":0},0.15,0,null,null,0]
[null,"BSCR Rating 7","Schedule XXI, Column H",{"$f":"+'Concentration Risk'!D30","v":0},0.26300000000000001,0,null,null,0]
[null,"BSCR Rating 8","Schedule XXI, Column H",{"$f":"+'Concentration Risk'!D31","v":0},0.35,0,null,null,0]
[]
[null,"(b)  SUBTOTAL - CORPORATE & SOVEREIGN BONDS",null,{"$f":"SUM(D194:D202)","v":0},null,{"$f":"SUM(F194:F202)","v":0},null,null,{"$f":"SUM(I194:I202)","v":0}]
[]
[null,"(c) Residential Mortage-Backed Securities"]
[null,"BSCR Rating 0","Schedule XXI, Column H",{"$f":"+'Concentration Risk'!D36","v":0},0,{"$f":"IF(D207<0,0,D207*E207)","v":0},null,null,{"$f":"MAX(0,IF(H207=\"\",E207*D207,D207*H207))","v":0}]
[null,"BSCR Rating 1","Schedule XXI, Column H",{"$f":"+'Concentration Risk'!D37","v":0},{"$f":"+E30","v":6.0000000000000001E-3},{"$f":"IF(D208<0,0,D208*E208)","v":0},null,null,0]
[null,"BSCR Rating 2","Schedule XXI, Column H",{"$f":"+'Concentration Risk'!D38","v":0},1.2E-2,0,null,null,0]
[null,"BSCR Rating 3","Schedule XXI, Column H",{"$f":"+'Concentration Risk'!D39","v":0},0.02,0,null,null,0]
[null,"BSCR Rating 4","Schedule XXI, Column H",{"$f":"+'Concentration Risk'!D40","v":0},0.04,0,null,null,0]
[null,"BSCR Rating 5","Schedule XXI, Column H",{"$f":"+'Concentration Risk'!D41","v":0},0.11,0,null,null,0]
[null,"BSCR Rating 6","Schedule XXI, Column H",{"$f":"+'Concentration Risk'!D42","v":0},0.25,0,null,null,0]
[null,"BSCR Rating 7","Schedule XXI, Column H",{"$f":"+'Concentration Risk'!D43","v":0},0.35,0,null,null,0]
[null,"BSCR Rating 8","Schedule XXI, Column H",{"$f":"+'Concentration Risk'!D44","v":0},0.35,0,null,null,0]
[]
[null,"(c)  SUBTOTAL - RESIDENTIAL MORTGAGE-BACKED SECURITIES",null,{"$f":"SUM(D207:D215)","v":0},null,{"$f":"SUM(F207:F215)","v":0},null,null,{"$f":"SUM(I207:I215)","v":0}]
[]
[null,"(d) Commercial Mortgage-Backed Securities / Asset Backed Securities"]
[null,"BSCR Rating 0","Schedule XXI, Column H",{"$f":"+'Concentration Risk'!D49","v":0},0,{"$f":"IF(D220<0,0,D220*E220)","v":0},null,null,{"$f":"MAX(0,IF(H220=\"\",E220*D220,D220*H220))","v":0}]
[null,"BSCR Rating 1","Schedule XXI, Column H",{"$f":"+'Concentration Risk'!D50","v":0},{"$f":"+E44","v":5.0000000000000001E-3},{"$f":"IF(D221<0,0,D221*E221)","v":0},null,null,0]
[null,"BSCR Rating 2","Schedule XXI, Column H",{"$f":"+'Concentration Risk'!D51","v":0},0.01,0,null,null,0]
[null,"BSCR Rating 3","Schedule XXI, Column H",{"$f":"+'Concentration Risk'!D52","v":0},1.7999999999999999E-2,0,null,null,0]
[null,"BSCR Rating 4","Schedule XXI, Column H",{"$f":"+'Concentration Risk'!D53","v":0},3.5000000000000003E-2,0,null,null,0]
[null,"BSCR Rating 5","Schedule XXI, Column H",{"$f":"+'Concentration Risk'!D54","v":0},0.1,0,null,null,0]
[null,"BSCR Rating 6","Schedule XXI, Column H",{"$f":"+'Concentration Risk'!D55","v":0},0.2,0,null,null,0]
[null,"BSCR Rating 7","Schedule XXI, Column H",{"$f":"+'Concentration Risk'!D56","v":0},0.3,0,null,null,0]
[null,"BSCR Rating 8","Schedule XXI, Column H",{"$f":"+'Concentration Risk'!D57","v":0},0.35,0,null,null,0]
[]
[null,"(d)  SUBTOTAL - COMMERCIAL MORTGAGE-BACKED SECURITIES / ASSET-BACKED SECURITIES",null,{"$f":"SUM(D220:D228)","v":0},null,{"$f":"SUM(F220:F228)","v":0},null,null,{"$f":"SUM(I220:I228)","v":0}]
[]
[null,"(e) Bond Mutual Funds"]
[null,"BSCR Rating 0","Schedule XXI, Column H",{"$f":"+'Concentration Risk'!D62","v":0},{"$f":"+E58","v":0},{"$f":"IF(D233<0,0,D233*E233)","v":0},null,null,{"$f":"MAX(0,IF(H233=\"\",E233*D233,D233*H233))","v":0}]
[null,"BSCR Rating 1","Schedule XXI, Column H",{"$f":"+'Concentration Risk'!D63","v":0},4.0000000000000001E-3,{"$f":"IF(D234<0,0,D234*E234)","v":0},null,null,0]
[null,"BSCR Rating 2","Schedule XXI, Column H",{"$f":"+'Concentration Risk'!D64","v":0},8.0000000000000002E-3,0,null,null,0]
[null,"BSCR Rating 3","Schedule XXI, Column H",{"$f":"+'Concentration Risk'!D65","v":0},1.4999999999999999E-2,0,null,null,0]
[null,"BSCR Rating 4","Schedule XXI, Column H",{"$f":"+'Concentration Risk'!D66","v":0},0.03,0,null,null,0]
[null,"BSCR Rating 5","Schedule XXI, Column H",{"$f":"+'Concentration Risk'!D67","v":0},0.08,0,null,null,0]
[null,"BSCR Rating 6","Schedule XXI, Column H",{"$f":"+'Concentration Risk'!D68","v":0},0.15,0,null,null,0]
[null,"BSCR Rating 7","Schedule XXI, Column H",{"$f":"+'Concentration Risk'!D69","v":0},0.26300000000000001,0,null,null,0]
[null,"BSCR Rating 8","Schedule XXI, Column H",{"$f":"+'Concentration Risk'!D70","v":0},0.35,0,null,null,0]
[]
[null,"(e)  SUBTOTAL - BOND MUTUAL FUNDS",null,{"$f":"SUM(D233:D241)","v":0},null,{"$f":"SUM(F233:F241)","v":0},null,null,{"$f":"SUM(I233:I241)","v":0}]
[]
[null,"(f) Preferred Shares"]
[null,"BSCR Rating 0","Schedule XXI, Column H",{"$f":"+'Concentration Risk'!D75","v":0},{"$f":"+'Concentration Risk'!E75","v":0},{"$f":"MAX(0,(D246*E246))","v":0},null,null,{"$f":"MAX(0,IF(H246=\"\",D246*E246,D246*H246))","v":0}]
[null,"BSCR Rating 1","Schedule XXI, Column H",{"$f":"+'Concentration Risk'!D76","v":0},{"$f":"+'Concentration Risk'!E76","v":6.0000000000000001E-3},{"$f":"MAX(0,(D247*E247))","v":0},null,null,{"$f":"MAX(0,IF(H247=\"\",D247*E247,D247*H247))","v":0}]
[null,"BSCR Rating 2","Schedule XXI, Column H",{"$f":"+'Concentration Risk'!D77","v":0},{"$f":"+'Concentration Risk'!E77","v":1.2E-2},0,null,null,0]
[null,"BSCR Rating 3","Schedule XXI, Column H",{"$f":"+'Concentration Risk'!D78","v":0},{"$f":"+'Concentration Risk'!E78","v":0.02},0,null,null,0]
[null,"BSCR Rating 4","Schedule XXI, Column H",{"$f":"+'Concentration Risk'!D79","v":0},{"$f":"+'Concentration Risk'!E79","v":0.04},0,null,null,0]
[null,"BSCR Rating 5","Schedule XXI, Column H",{"$f":"+'Concentration Risk'!D80","v":0},{"$f":"+'Concentration Risk'!E80","v":0.11},0,null,null,0]
[null,"BSCR Rating 6","Schedule XXI, Column H",{"$f":"+'Concentration Risk'!D81","v":0},{"$f":"+'Concentration Risk'!E81","v":0.25},0,null,null,0]
[null,"BSCR Rating 7","Schedule XXI, Column H",{"$f":"+'Concentration Risk'!D82","v":0},{"$f":"+'Concentration Risk'!E82","v":0.35},0,null,null,0]
[null,"BSCR Rating 8","Schedule XXI, Column H",{"$f":"+'Concentration Risk'!D83","v":0},{"$f":"+'Concentration Risk'!E83","v":0.35},0,null,null,0]
[]
[null,"(f)  SUBTOTAL - PREFERRED SHARES",null,{"$f":"SUM(D246:D254)","v":0},null,{"$f":"SUM(F246:F254)","v":0},null,null,{"$f":"SUM(I246:I254)","v":0}]
[]
[null,"(g) Mortgage Loans"]
[null,"Insured/Guaranteed Mortgages","Schedule XXI, Column H",{"$f":"+'Concentration Risk'!D88","v":0},{"$f":"+'Concentration Risk'!E88","v":3.0000000000000001E-3},{"$f":"MAX(0,(D259*E259))","v":0},null,null,{"$f":"MAX(0,IF(H259=\"\",D259*E259,D259*H259))","v":0}]
[null,"Other Commercial and Farm Mortgages","Schedule XXI, Column H",{"$f":"+'Concentration Risk'!D89","v":0},{"$f":"+'Concentration Risk'!E89","v":0.05},{"$f":"MAX(0,(D260*E260))","v":0},null,null,{"$f":"MAX(0,IF(H260=\"\",D260*E260,D260*H260))","v":0}]
[null,"Other Residential Mortgages","Schedule XXI, Column H",{"$f":"+'Concentration Risk'!D90","v":0},{"$f":"+'Concentration Risk'!E90","v":1.4999999999999999E-2},{"$f":"MAX(0,(D261*E261))","v":0},null,null,{"$f":"MAX(0,IF(H261=\"\",D261*E261,D261*H261))","v":0}]
[null,"Mortgages Not In Good Standing","Schedule XXI, Column H",{"$f":"+'Concentration Risk'!D91","v":0},{"$f":"+'Concentration Risk'!E91","v":0.25},{"$f":"MAX(0,(D262*E262))","v":0},null,null,{"$f":"MAX(0,IF(H262=\"\",D262*E262,D262*H262))","v":0}]
[]
[null,"(g)  SUBTOTAL - MORTGAGE LOANS",null,{"$f":"SUM(D259:D262)","v":0},null,{"$f":"SUM(F259:F262)","v":0},null,null,{"$f":"SUM(I259:I262)","v":0}]
[]
[null,"(h) Other Asset Classes"]
[null,"Common Stock and Mutual Funds","Schedule XXI, Column H",{"$f":"+'Concentration Risk'!D96","v":0},{"$f":"+'Concentration Risk'!E96","v":0.14399999999999999},{"$f":"MAX(0,(D267*E267))","v":0},null,null,{"$f":"MAX(0,IF(H267=\"\",D267*E267,D267*H267))","v":0}]
[null,"Other Investments","Schedule XXI, Column H",{"$f":"+'Concentration Risk'!D97","v":0},{"$f":"+'Concentration Risk'!E97","v":0.2},0,null,null,0]
[null,"Investment in Affiliates – Unregulated entities that conduct ancillary services",null,{"$f":"+'Concentration Risk'!D98","v":0},{"$f":"+'Concentration Risk'!E98","v":0.05},0,null,null,0]
[null,"Investment in Affiliates - Unregulated non-financial operating entities",null,{"$f":"+'Concentration Risk'!D99","v":0},{"$f":"+'Concentration Risk'!E99","v":0.2},0,null,null,0]
[null,"Investment in Affiliates - Unregulated financial operating entities",null,{"$f":"+'Concentration Risk'!D100","v":0},{"$f":"+'Concentration Risk'!E100","v":0.55000000000000004},0,null,null,0]
[null,"Investment in Affiliates - Regulated non-insurance financial operating entities",null,{"$f":"+'Concentration Risk'!D101","v":0},{"$f":"+'Concentration Risk'!E101","v":0.55000000000000004},0,null,null,0]
[null,"Investment in Affiliates - Regulated insurance financial operating entities",null,{"$f":"+'Concentration Risk'!D102","v":0},{"$f":"+'Concentration Risk'!E102","v":0.2},0,null,null,0]
[null,"Advances to Affiliates - ","Schedule XXI, Column H",{"$f":"+'Concentration Risk'!D103","v":0},{"$f":"+'Concentration Risk'!E103","v":0.05},0,null,null,0]
[null,"Policy Loans","Schedule XXI, Column H",{"$f":"+'Concentration Risk'!D104","v":0},{"$f":"+'Concentration Risk'!E104","v":0},0,null,null,0]
[null,"Real Estate: Occupied by company","Schedule XXI, Column H",{"$f":"+'Concentration Risk'!D105","v":0},{"$f":"+'Concentration Risk'!E105","v":0.1},0,null,null,0]
[null,"Real Estate: Other properties","Schedule XXI, Column H",{"$f":"+'Concentration Risk'!D106","v":0},{"$f":"+'Concentration Risk'!E106","v":0.2},0,null,null,0]
[null,"Collateral Loans","Schedule XXI, Column H",{"$f":"+'Concentration Risk'!D107","v":0},{"$f":"+'Concentration Risk'!E107","v":0.05},0,null,null,0]
[]
[null,"(h)  SUBTOTAL - OTHER CONCENTRATION RISK",null,{"$f":"SUM(D267:D279)","v":0},null,{"$f":"SUM(F267:F279)","v":0},null,null,{"$f":"SUM(I267:I279)","v":0}]
[]
[null,"TOTAL CONCENTRATION RISK",null,{"$f":"D191+D204+D217+D230+D243+D256+D264+D280","v":0},null,{"$f":"F191+F204+F217+F230+F243+F256+F264+F280","v":0},null,null,{"$f":"I191+I204+I217+I230+I243+I256+I264+I280","v":0}]
[]
[null,null,null,null,"STANDARD","STANDARD",null,"USER","USER"]
[null,"TYPE OF ",null,"ASSET","CAPITAL","REQUIRED",null,"CAPITAL","REQUIRED"]
[null,"DEBTOR","STATEMENT SOURCE","VALUE","FACTOR","CAPITAL",null,"FACTOR","CAPITAL"]
[]
[null,"(a)  Accounts and Premiums Receivable",null,"(1) ","(2)","(1) x (2)",null,"(3)","(1) x (3)"]
[]
[null,"In Course of Collection","Form 4EBS, Line (10a)",{"$f":"+'Form 4EBS'!F59","v":0},{"$f":"+'Credit Risk'!E11","v":0.05},{"$f":"IF(D290<0,0,D290*E290)","v":0},null,null,{"$f":"MAX(0,IF(H290=\"\",E290*D290,D290*H290))","v":0}]
[null,"Receivables from retrocessional contracts                            Less: Collateralized Balances","Form 4EBS, Line (10c), Notes to Form 4EBS, \nLine (10)",{"$f":"+'Form 4EBS'!F60-'Form 4EBS'!F196","v":0},{"$f":"+'Credit Risk'!E12","v":0.1},{"$f":"(D291*E291)","v":0},null,null,{"$f":"IF(H291=\"\",E291*D291,D291*H291)","v":0}]
[]
[null,"(a)  SUBTOTAL - ACCOUNTS AND PREMIUMS RECEIVABLE",null,{"$f":"SUM(D290:D291)","v":0},null,{"$f":"IF(SUM(F290:F291)>=0,SUM(F290:F291),0)","v":0},null,null,{"$f":"IF(SUM(I290:I291)>=0,SUM(I290:I291),0)","v":0}]
[]
[null,"(b)  All Other Receivables"]
[]
[null,"Accrued Investment Income","Form 4EBS, Line (9)",{"$f":"+'Form 4EBS'!F56","v":0},{"$f":"+'Credit Risk'!E18","v":2.5000000000000001E-2},{"$f":"IF(D297<0,0,D297*E297)","v":0},null,null,{"$f":"MAX(0,IF(H297=\"\",E297*D297,D297*H297))","v":0}]
[null,"Advances to Affiliates","Form 4EBS, Line (4g)",{"$f":"+'Form 4EBS'!F39","v":0},{"$f":"+'Credit Risk'!E19","v":0.05},{"$f":"IF(D298<0,0,D298*E298)","v":0},null,null,{"$f":"MAX(0,IF(H298=\"\",E298*D298,D298*H298))","v":0}]
[null,"Policy Loans","Form 4EBS, Line (6)",{"$f":"+'Form 4EBS'!F47","v":0},{"$f":"+'Credit Risk'!E20","v":0},{"$f":"IF(D299<0,0,D299*E299)","v":0},null,null,{"$f":"MAX(0,IF(H299=\"\",E299*D299,D299*H299))","v":0}]
[]
[null,"(b)  SUBTOTAL - ALL OTHER RECEIVABLES",null,{"$f":"SUM(D297:D299)","v":0},null,{"$f":"IF(SUM(F297:F299)>=0,SUM(F297:F299),0)","v":0},null,null,{"$f":"IF(SUM(I297:I299)>=0,SUM(I297:I299),0)","v":0}]
[]
[null,"(c) Particulars of Reinsurance Balances By BSCR Rating"]
[]
[null,"BSCR Rating 0 (Domestic Affiliates)","Schedule XVIII EBS, Column E",{"$f":"+'Schedule XVIII (EBS)'!O87","v":0},{"$f":"+'Credit Risk'!E29","v":0},{"$f":"IF(D305<0,0,D305*E305)","v":0},null,null,{"$f":"MAX(0,IF(H305=\"\",E305*D305,D305*H305))","v":0}]
[null,"BSCR Rating 1","Schedule XVIII EBS, Column E",{"$f":"+'Schedule XVIII (EBS)'!O88","v":0},{"$f":"+'Credit Risk'!E30","v":7.0000000000000001E-3},{"$f":"IF(D306<0,0,D306*E306)","v":0},null,null,0]
[null,"BSCR Rating 2","Schedule XVIII EBS, Column E",{"$f":"+'Schedule XVIII (EBS)'!O89","v":0},{"$f":"+'Credit Risk'!E31","v":1.4999999999999999E-2},0,null,null,0]
[null,"BSCR Rating 3","Schedule XVIII EBS, Column E",{"$f":"+'Schedule XVIII (EBS)'!O90","v":0},{"$f":"+'Credit Risk'!E32","v":3.5000000000000003E-2},0,null,null,0]
[null,"BSCR Rating 4","Schedule XVIII EBS, Column E",{"$f":"+'Schedule XVIII (EBS)'!O91","v":0},{"$f":"+'Credit Risk'!E33","v":7.0000000000000007E-2},0,null,null,0]
[null,"BSCR Rating 5","Schedule XVIII EBS, Column E",{"$f":"+'Schedule XVIII (EBS)'!O92","v":0},{"$f":"+'Credit Risk'!E34","v":0.12},0,null,null,0]
[null,"BSCR Rating 6","Schedule XVIII EBS, Column E",{"$f":"+'Schedule XVIII (EBS)'!O93","v":0},{"$f":"+'Credit Risk'!E35","v":0.2},0,null,null,0]
[null,"BSCR Rating 7","Schedule XVIII EBS, Column E",{"$f":"+'Schedule XVIII (EBS)'!O94","v":0},{"$f":"+'Credit Risk'!E36","v":0.27},0,null,null,0]
[null,"BSCR Rating 8","Schedule XVIII EBS, Column E",{"$f":"+'Schedule XVIII (EBS)'!O95","v":0},{"$f":"+'Credit Risk'!E37","v":0.35},0,null,null,0]
[]
[null,"Total",null,{"$f":"SUM(D305:D314)","v":0},null,{"$f":"SUM(F305:F314)","v":0},null,null,{"$f":"SUM(I305:I314)","v":0}]
[]
[null,"Less: Diversification Adjustment at 40%",null,null,null,{"$f":"SUM(F305:F313)*-('Schedule XVIII (EBS)'!O104)","v":0},null,null,{"$f":"SUM(I305:I313)*-('Schedule XVIII (EBS)'!O104)","v":0}]
[]
[null,"(c)  SUBTOTAL - PARTICULARS OF REINSURANCE BALANCES",null,{"$f":"SUM(D305:D313)","v":0},null,{"$f":"IF(SUM(F305:F313,F317)>=0,SUM(F305:F313,F317),0)","v":0},null,null,{"$f":"IF(SUM(I305:I313,I317)>=0,SUM(I305:I313,I317),0)","v":0}]
[]
[null,"(d)  TOTAL CREDIT RISK  [ (a) + (b) + (c) ]",null,{"$f":"D293+D301+D319","v":0},null,{"$f":"F293+F301+F319","v":0},null,null,{"$f":"I293+I301+I319","v":0}]
[]
[null,null,null,null,"STANDARD","STANDARD",null,"USER","USER"]
[null,"TYPE OF ",null,"ASSET","CAPITAL","REQUIRED",null,"CAPITAL","REQUIRED"]
[null,"INTEREST RATE/LIQUIDITY RISK","STATEMENT SOURCE","VALUE","FACTOR","CAPITAL",null,"FACTOR","CAPITAL"]
[]
[null,"Known","Sch II EBS & Sch IIA EBS, Line 10, Column 9, Line 21, Column 3, Line 26, Column 1",{"$f":"'Schedule II (EBS)'!T22+'Schedule II (EBS)'!H44+'Schedule II (EBS)'!D62+'Schedule IIA (EBS)'!T22+'Schedule IIA (EBS)'!H44+'Schedule IIA (EBS)'!D62","v":0},{"$f":"2%*MAX(1,ABS('Schedule V'!H15))*+'Schedule V'!H19*(1-'Interest Rate-Liquidity Risk'!L31)","v":0},{"$f":"D327*E327","v":0},null,null,{"$f":"MAX(0,IF(H327=\"\",E327*D327,D327*H327))","v":0}]
[null,"Unknown","Sch II EBS & Sch IIA EBS, Line 10, Column 9, Line 21, Column 3, Line 26, Column 1",{"$f":"'Schedule II (EBS)'!T22+'Schedule II (EBS)'!H44+'Schedule II (EBS)'!D62+'Schedule IIA (EBS)'!T22+'Schedule IIA (EBS)'!H44+'Schedule IIA (EBS)'!D62","v":0},{"$f":"2%*2*(1-+'Schedule V'!H19)","v":0.04},{"$f":"D328*E328","v":0},null,null,{"$f":"MAX(0,IF(H328=\"\",E328*D328,D328*H328))","v":0}]
[]
[null,"TOTAL INTEREST RATE / LIQUIDITY RISK",null,{"$f":"SUM(D327:D328)","v":0},null,{"$f":"SUM(F327:F328)","v":0},null,null,{"$f":"SUM(I327:I328)","v":0}]
[]
[null,null,null,null,null,"STANDARD",null,"USER","USER"]
[null,null,null,"Net Amount of Risk",null,"REQUIRED",null,"CAPITAL","REQUIRED"]
[null,"Mortality","Statement Source","Adjustable","Non-Adjust","CAPITAL",null,"FACTOR","CAPITAL"]
[]
[null,"Mortality","Sch VII EBS, Line 1, Column (9) and Sch VII EBS, Line 1, Column (10)",{"$f":"'Schedule VII (EBS)'!H10","v":0},{"$f":"'Schedule VII (EBS)'!I10","v":0},{"$f":"(IF(D336>1000000,1.985*1000000,1.985*D336)/1000)+(IF(D336<1000000,0,IF(D336>5000000,0.9*4000000,0.9*(D336-1000000)))/1000)+(IF(D336<5000000,0,IF(D336>10000000,0.72*5000000,0.72*(D336-5000000)))/1000)+(IF(D336<10000000,0,IF(D336>50000000,0.645*40000000,0.645*(D336-10000000)))/1000)+(IF(D336<50000000,0,0.565*(D336-50000000))/1000)+(IF(E336>1000000,3.97*1000000,3.97*E336)/1000)+(IF(E336<1000000,0,IF(E336>5000000,1.8*4000000,1.8*(E336-1000000)))/1000)+(IF(E336<5000000,0,IF(E336>10000000,1.44*5000000,1.44*(E336-5000000)))/1000)+(IF(E336<10000000,0,IF(E336>50000000,1.29*40000000,1.29*(E336-10000000)))/1000)+(IF(E336<50000000,0,1.13*(E336-50000000))/1000)","v":0},null,null,{"$f":"IF(H336=\"\",F336,(D336+E336)*H336)","v":0}]
[]
[null,null,null,null,null,"STANDARD",null,"USER","USER"]
[null,null,null,"Net Annual Premium",null,"REQUIRED",null,"CAPITAL","REQUIRED"]
[null,"Morbility","Statement Source","<2 years",">2 years","CAPITAL",null,"FACTOR","CAPITAL"]
[]
[null,"Critical Illness","Sch VII EBS, Line 2, Column (9) and Sch VII EBS, Line 2, Column (10)",{"$f":"'Schedule VII (EBS)'!H11","v":0},{"$f":"'Schedule VII (EBS)'!I11","v":0},{"$f":"(IF(D342>1000000,5.955*1000000,5.955*D342)/1000)+(IF(D342<1000000,0,IF(D342>5000000,2.7*4000000,2.7*(D342-1000000)))/1000)+(IF(D342<5000000,0,IF(D342>10000000,2.16*5000000,2.16*(D342-5000000)))/1000)+(IF(D342<10000000,0,IF(D342>50000000,1.935*40000000,1.935*(D342-10000000)))/1000)+(IF(D342<50000000,0,1.695*(D342-50000000))/1000)+(IF(E342>1000000,11.91*1000000,11.91*E342)/1000)+(IF(E342<1000000,0,IF(E342>5000000,5.4*4000000,5.4*(E342-1000000)))/1000)+(IF(E342<5000000,0,IF(E342>10000000,4.32*5000000,4.32*(E342-5000000)))/1000)+(IF(E342<10000000,0,IF(E342>50000000,3.87*40000000,3.87*(E342-10000000)))/1000)+(IF(E342<50000000,0,3.39*(E342-50000000))/1000)","v":0},null,null,{"$f":"IF(H342=\"\",F342,(D342+E342)*H342)","v":0}]
[]
[null,"Dis. Inc :Claim in Pymnt (1)","Schedule VII EBS, Line 9, Column (7)",{"$f":"'Schedule VII (EBS)'!F38","v":0},null,{"$f":"D344*7%","v":0},null,null,{"$f":"IF(H344=\"\",F344,D344*H344)","v":0}]
[null,"Dis. Inc :Claim in Pymnt (2)","Schedule VII EBS, Line 10, Column (7)",{"$f":"'Schedule VII (EBS)'!F39","v":0},null,{"$f":"D345*10%","v":0},null,null,{"$f":"IF(H345=\"\",F345,D345*H345)","v":0}]
[]
[null,"Disability Income: active lives (including waiver of premium and long-term care)"]
[null,"< = 1 Year","Sch VII EBS, Line 7(a), Column (9) and Sch VII EBS, Line 7(a), Column (10)",{"$f":"'Schedule VII (EBS)'!H33","v":0},{"$f":"'Schedule VII (EBS)'!I33","v":0},{"$f":"D348*9%+E348*12%","v":0},null,null,{"$f":"IF(H348=\"\",F348,(D348+E348)*H348)","v":0}]
[null,"1 - 5 years","Sch VII EBS, Line 7(b), Column (9) and Sch VII EBS, Line 7(b), Column (10)",{"$f":"'Schedule VII (EBS)'!H34","v":0},{"$f":"'Schedule VII (EBS)'!I34","v":0},{"$f":"D349*15%+E349*20%","v":0},null,null,{"$f":"IF(H349=\"\",F349,(D349+E349)*H349)","v":0}]
[null,"> 5 years","Sch VII EBS, Line 7(c), Column (9) and Sch VII EBS, Line 7(c), Column (10)",{"$f":"'Schedule VII (EBS)'!H35","v":0},{"$f":"'Schedule VII (EBS)'!I35","v":0},{"$f":"D350*22.5%+E350*30%","v":0},null,null,{"$f":"IF(H350=\"\",F350,(D350+E350)*H350)","v":0}]
[]
[null,"Other Accident & Sickness","Schedule VII EBS, Line 8, Column (11)",{"$f":"'Schedule VII (EBS)'!J37","v":0},null,{"$f":"D352*12%","v":0},null,null,{"$f":"IF(H352=\"\",F352,D352*H352)","v":0}]
[]
[null,null,"Bermuda EBS Best Estimate Provision on Schedule VII",null,null,"STANDARD",null,"USER","USER"]
[null,null,null,null,"CAPITAL","REQUIRED",null,"CAPITAL","REQUIRED"]
[null,"Longevity",null,null,"FACTOR","CAPITAL",null,"FACTOR","CAPITAL"]
[]
[null,"Longevity Risk (immediate pay-out annuities, contingent annuities, pension pay-outs)"]
[null,"(a) 0 - 55","Schedule VII EBS, Line 3(a), Column (7)",{"$f":"+'Schedule VII (EBS)'!F14","v":0},{"$f":"+'LT Insurance Risk'!L26","v":0.02},{"$f":"D359*E359","v":0},null,null,{"$f":"IF(H359=\"\",F359,(D359)*H359)","v":0}]
[null,"(b) 56 - 65","Schedule VII EBS, Line 3(b), Column (7)",{"$f":"+'Schedule VII (EBS)'!F15","v":0},{"$f":"+'LT Insurance Risk'!L27","v":0.03},{"$f":"D360*E360","v":0},null,null,{"$f":"IF(H360=\"\",F360,(D360)*H360)","v":0}]
[null,"(c) 66 - 70","Schedule VII EBS, Line 3(c), Column (7)",{"$f":"+'Schedule VII (EBS)'!F16","v":0},{"$f":"+'LT Insurance Risk'!L28","v":0.04},{"$f":"D361*E361","v":0},null,null,0]
[null,"(d) 71 - 80","Schedule VII EBS, Line 3(d), Column (7)",{"$f":"+'Schedule VII (EBS)'!F17","v":0},{"$f":"+'LT Insurance Risk'!L29","v":0.05},{"$f":"D362*E362","v":0},null,null,0]
[null,"(e) 81+","Schedule VII EBS, Line 3(e), Column (7)",{"$f":"+'Schedule VII (EBS)'!F18","v":0},{"$f":"+'LT Insurance Risk'!L30","v":0.06},{"$f":"D363*E363","v":0},null,null,0]
[]
[null,"Longevity (deferred pay-out annuities, future contingent annuities, future pension pay-outs)"]
[null,"(a) 0 - 55","Schedule VII EBS, Line 4(a), Column (7)",{"$f":"+'Schedule VII (EBS)'!F22","v":0},{"$f":"+'LT Insurance Risk'!L33","v":0.02},{"$f":"D366*E366","v":0},null,null,{"$f":"IF(H366=\"\",F366,(D366)*H366)","v":0}]
[null,"(b) 56 - 60","Schedule VII EBS, Line 4(b), Column (7)",{"$f":"+'Schedule VII (EBS)'!F23","v":0},{"$f":"+'LT Insurance Risk'!L34","v":0.03},0,null,null,0]
[null,"(c) 61 - 65","Schedule VII EBS, Line 4(c), Column (7)",{"$f":"+'Schedule VII (EBS)'!F24","v":0},{"$f":"+'LT Insurance Risk'!L35","v":0.04},0,null,null,0]
[null,"(d) 66 - 70","Schedule VII EBS, Line 4(d), Column (7)",{"$f":"+'Schedule VII (EBS)'!F25","v":0},{"$f":"+'LT Insurance Risk'!L36","v":0.05},0,null,null,0]
[null,"(e) 71 - 75","Schedule VII EBS, Line 4(e), Column (7)",{"$f":"+'Schedule VII (EBS)'!F26","v":0},{"$f":"+'LT Insurance Risk'!L37","v":0.06},0,null,null,0]
[null,"(f) 76+","Schedule VII EBS, Line 4(f), Column (7)",{"$f":"+'Schedule VII (EBS)'!F27","v":0},{"$f":"+'LT Insurance Risk'!L38","v":7.0000000000000007E-2},0,null,null,0]
[]
[null," - Part (A) Removes any Longevity Swap Capital Requirement that has been included in the Standard Longevity Capital Requirement",null,null,null,null,null,"ACTUAL"]
[null,null,"BSCR ADJUSTED RESERVE for Regular Longevity Risk Business only (excluding Longevity Swaps)",null,"CAPITAL","CAPITAL",null,"CAPITAL"]
[null,"Longevity Capital Adj",null,null,"FACTOR","FROM ABOVE",null,"REQUIRED","ADJUSTMENT"]
[]
[null,"Longevity Risk (immediate pay-out annuities, contingent annuities, pension pay-outs)"]
[null,"(a) 0 - 55",null,null,{"$f":"IF(H359=\"\",'LT Insurance Risk'!L26,H359)","v":0.02},{"$f":"I359","v":0},null,{"$f":"MAX(0,IF(D378=\"\",0,E378*D378))","v":0},{"$f":"IF(D378=\"\",0,H378-F378)","v":0}]
[null,"(b) 56 - 65",null,null,{"$f":"IF(H360=\"\",'LT Insurance Risk'!L27,H360)","v":0.03},{"$f":"I360","v":0},null,{"$f":"MAX(0,IF(D379=\"\",0,E379*D379))","v":0},{"$f":"IF(D379=\"\",0,H379-F379)","v":0}]
[null,"(c) 66 - 70",null,null,{"$f":"IF(H361=\"\",'LT Insurance Risk'!L28,H361)","v":0.04},0,null,0,0]
[null,"(d) 71 - 80",null,null,{"$f":"IF(H362=\"\",'LT Insurance Risk'!L29,H362)","v":0.05},0,null,0,0]
[null,"(e) 81+",null,null,{"$f":"IF(H363=\"\",'LT Insurance Risk'!L30,H363)","v":0.06},0,null,0,0]
[null,null,null,null,{"$f":"IF(H364=\"\",'LT Insurance Risk'!L31,H364)","v":0}]
[null,"Longevity (deferred pay-out annuities, future contingent annuities, future pension pay-outs)"]
[null,"(a) 0 - 55",null,null,{"$f":"IF(H366=\"\",'LT Insurance Risk'!L33,H366)","v":0.02},0,null,0,0]
[null,"(b) 56 - 60",null,null,{"$f":"IF(H367=\"\",'LT Insurance Risk'!L34,H367)","v":0.03},0,null,0,0]
[null,"(c) 61 - 65",null,null,{"$f":"IF(H368=\"\",'LT Insurance Risk'!L35,H368)","v":0.04},0,null,0,0]
[null,"(d) 66 - 70",null,null,{"$f":"IF(H369=\"\",'LT Insurance Risk'!L36,H369)","v":0.05},0,null,0,0]
[null,"(e) 71 - 75",null,null,{"$f":"IF(H370=\"\",'LT Insurance Risk'!L37,H370)","v":0.06},0,null,0,0]
[null,"(f) 76+",null,null,{"$f":"IF(H371=\"\",'LT Insurance Risk'!L38,H371)","v":7.0000000000000007E-2},0,null,{"$f":"MAX(0,IF(D390=\"\",0,E390*D390))","v":0},0]
[]
[null," - Part (B) Determines Appropriate Capital Requirment to include for Longevity Swaps"]
[null,null,"Bermuda EBS Best Estimate Provision for the Floating Leg of Longevity Swap",null,null,null,null,"CAPITAL"]
[null,"Longevity Capital Adj",null,null,null,null,null,"FACTOR","ADJUSTMENT"]
[]
[null,"Longevity Risk (immediate pay-out annuities, contingent annuities, pension pay-outs)"]
[null,"(a) 0 - 55",null,null,null,null,null,{"$f":"+'LT Insurance Risk'!L26","v":0.02},{"$f":"IF(D397=\"\",0,H397*D397)","v":0}]
[null,"(b) 56 - 65",null,null,null,null,null,{"$f":"+'LT Insurance Risk'!L27","v":0.03},{"$f":"IF(D398=\"\",0,H398*D398)","v":0}]
[null,"(c) 66 - 70",null,null,null,null,null,{"$f":"+'LT Insurance Risk'!L28","v":0.04},0]
[null,"(d) 71 - 80",null,null,null,null,null,{"$f":"+'LT Insurance Risk'!L29","v":0.05},0]
[null,"(e) 81+",null,null,null,null,null,{"$f":"+'LT Insurance Risk'!L30","v":0.06},0]
[null,null,null,null,null,null,null,{"$f":"+'LT Insurance Risk'!L50","v":"% of Annual Premiums"}]
[null,"Longevity (deferred pay-out annuities, future contingent annuities, future pension pay-outs)"]
[null,"(a) 0 - 55",null,null,null,null,null,{"$f":"+'LT Insurance Risk'!L33","v":0.02},{"$f":"IF(D404=\"\",0,H404*D404)","v":0}]
[null,"(b) 56 - 60",null,null,null,null,null,{"$f":"+'LT Insurance Risk'!L34","v":0.03},0]
[null,"(c) 61 - 65",null,null,null,null,null,{"$f":"+'LT Insurance Risk'!L35","v":0.04},0]
[null,"(d) 66 - 70",null,null,null,null,null,{"$f":"+'LT Insurance Risk'!L36","v":0.05},0]
[null,"(e) 71 - 75",null,null,null,null,null,{"$f":"+'LT Insurance Risk'!L37","v":0.06},0]
[null,"(f) 76+",null,null,null,null,null,{"$f":"+'LT Insurance Risk'!L38","v":7.0000000000000007E-2},0]
[]
[null,null,null,null,null,"STANDARD",null,"USER","USER"]
[null,null,null,null,null,"REQUIRED",null,"CAPITAL","REQUIRED"]
[null,null,"Statement Source","Net Annual Premium",null,"CAPITAL",null,"FACTOR","CAPITAL"]
[]
[null,"Stop Loss","Schedule VII EBS, Line 14, Column (11)",{"$f":"'Schedule VII (EBS)'!J43","v":0},{"$f":"+'LT Insurance Risk'!L55","v":0.5},{"$f":"D415*E415","v":0},null,null,{"$f":"IF(H415=\"\",F415,D415*H415)","v":0}]
[]
[null,"Rider","Schedule VII EBS, Line 15, Column (11)",{"$f":"'Schedule VII (EBS)'!J44","v":0},{"$f":"+'LT Insurance Risk'!L56","v":0.25},{"$f":"D417*E417","v":0},null,null,{"$f":"IF(H417=\"\",F417,D417*H417)","v":0}]
[]
[]
[null,null,null,null,"STANDARD","STANDARD",null,"USER","USER"]
[null,"LINE OF LONG-TERM BUSINESS",null,null,"CAPITAL","REQUIRED",null,"CAPITAL","REQUIRED"]
[null,null,"STATEMENT SOURCE","NET RESERVES","FACTOR","CAPITAL",null,"FACTOR","CAPITAL"]
[]
[null,"Mortality","Schedule VII EBS, Line 1, Column (7)",{"$f":"'Schedule VII (EBS)'!F10","v":0},{"$f":"+'LT Other Insurance Risk'!G10","v":0.02},{"$f":"IF(D424<0,0,D424*E424)","v":0},null,null,{"$f":"IF(H424=\"\",E424*D424,D424*H424)","v":0}]
[null,"Critical Illness","Schedule VII EBS, Line 2, Column (7)",{"$f":"'Schedule VII (EBS)'!F11","v":0},{"$f":"+'LT Other Insurance Risk'!G11","v":0.02},{"$f":"IF(D425<0,0,D425*E425)","v":0},null,null,0]
[null,"Longevity (1)","Schedule VII EBS, Line 3(f), Column (7)",{"$f":"'Schedule VII (EBS)'!F19","v":0},{"$f":"+'LT Other Insurance Risk'!G12","v":5.0000000000000001E-3},0,null,null,0]
[null,"Longevity (2)","Schedule VII EBS, Line 4(g), Column (7)",{"$f":"+'Schedule VII (EBS)'!F28","v":0},{"$f":"+'LT Other Insurance Risk'!G13","v":5.0000000000000001E-3},0,null,null,0]
[null,"Annuities certain only","Schedule VII EBS, Line 5, Column (7)",{"$f":"+'Schedule VII (EBS)'!F29","v":0},{"$f":"+'LT Other Insurance Risk'!G14","v":5.0000000000000001E-3},0,null,null,0]
[null,"Deferred accumulation annuities","Schedule VII EBS, Line 6, Column (7)",{"$f":"+'Schedule VII (EBS)'!F30","v":0},{"$f":"+'LT Other Insurance Risk'!G15","v":5.0000000000000001E-3},{"$f":"IF(D429<0,0,D429*E429)","v":0},null,null,0]
[null,"Disability Income: active lives","Schedule VII EBS, Line 7, Column (7)",{"$f":"'Schedule VII (EBS)'!F36","v":0},{"$f":"+'LT Other Insurance Risk'!G16","v":0.02},0,null,null,0]
[null,"Disability: accident & sickness","Schedule VII EBS, Line 8, Column (7)",{"$f":"'Schedule VII (EBS)'!F37","v":0},{"$f":"+'LT Other Insurance Risk'!G17","v":0.02},0,null,null,0]
[null,"Disability claims in payment (1)","Schedule VII EBS, Line 9, Column (7)",{"$f":"'Schedule VII (EBS)'!F38","v":0},{"$f":"+'LT Other Insurance Risk'!G18","v":5.0000000000000001E-3},0,null,null,0]
[null,"Disability claims in payment (2)","Schedule VII EBS, Line 10, Column (7)",{"$f":"'Schedule VII (EBS)'!F39","v":0},{"$f":"+'LT Other Insurance Risk'!G19","v":5.0000000000000001E-3},0,null,null,0]
[null,"Group Life","Schedule VII EBS, Line 11, Column (7)",{"$f":"'Schedule VII (EBS)'!F40","v":0},{"$f":"+'LT Other Insurance Risk'!G20","v":5.0000000000000001E-3},0,null,null,0]
[null,"Group Disability","Schedule VII EBS, Line 12, Column (7)",{"$f":"'Schedule VII (EBS)'!F41","v":0},{"$f":"+'LT Other Insurance Risk'!G21","v":5.0000000000000001E-3},0,null,null,0]
[null,"Group Health","Schedule VII EBS, Line 13, Column (7)",{"$f":"'Schedule VII (EBS)'!F42","v":0},{"$f":"+'LT Other Insurance Risk'!G22","v":5.0000000000000001E-3},0,null,null,0]
[null,"Stop Loss","Schedule VII EBS, Line 14, Column (7)",{"$f":"'Schedule VII (EBS)'!F43","v":0},{"$f":"+'LT Other Insurance Risk'!G23","v":0.02},0,null,null,0]
[null,"Rider","Schedule VII EBS, Line 15, Column (7)",{"$f":"'Schedule VII (EBS)'!F44","v":0},{"$f":"+'LT Other Insurance Risk'!G24","v":0.02},0,null,null,0]
[]
[null,"REQUIRED CAPITAL FOR OTHER INSURANCE RISK",null,{"$f":"IF(SUM(D424:D438)>=0,(SUM(D424:D438)),0)","v":0},null,{"$f":"IF(SUM(F424:F438)>=0,(SUM(F424:F438)),0)","v":0},null,null,{"$f":"IF(SUM(I424:I438)>=0,(SUM(I424:I438)),0)","v":0}]
[]
[null,null,"Volatility \n(0%-10.0%]","Volatility 10.0% - 15.0%","Volatility >15.0%","STANDARD REQUIRED CAPITAL",null,"USER CAPITAL FACTOR","USER REQUIRED CAPITAL"]
[null,"Variable Annuity Guarantee Risk"]
[]
[null,"GMDB - Guar. Val In Money",{"$f":"'Schedule VIII (EBS)'!H13","v":0},{"$f":"'Schedule VIII (EBS)'!J13","v":0},{"$f":"'Schedule VIII (EBS)'!L13","v":0},{"$f":"(C445*0.25%)+(D445*0.5%)+(E445*0.75%)","v":0},null,null,{"$f":"IF(H445=\"\",F445,(C445+D445+E445)*H445)","v":0}]
[null,"GMDB - Net Value at Risk",{"$f":"'Schedule VIII (EBS)'!N13","v":0},{"$f":"+'Schedule VIII (EBS)'!P13","v":0},{"$f":"+'Schedule VIII (EBS)'!R13","v":0},{"$f":"(C446*4%)+(D446*8.5%)+(E446*13%)","v":0},null,null,{"$f":"IF(H446=\"\",F446,(C446+D446+E446)*H446)","v":0}]
[null,"GMDB - Guar. Val Out Money",{"$f":"'Schedule VIII (EBS)'!H31","v":0},{"$f":"'Schedule VIII (EBS)'!J31","v":0},{"$f":"'Schedule VIII (EBS)'!L31","v":0},{"$f":"(C447*0.25%)+(D447*0.5%)+(E447*0.75%)","v":0},null,null,{"$f":"IF(H447=\"\",F447,(C447+D447+E447)*H447)","v":0}]
[null,"GMDB - Total",null,null,null,{"$f":"F447+(MAX(F445,F446))","v":0},null,null,{"$f":"I447+(MAX(I445,I446))","v":0}]
[]
[null,"GMDB (2) - Guar. Val In Money",{"$f":"'Schedule VIII (EBS)'!H14","v":0},{"$f":"'Schedule VIII (EBS)'!J14","v":0},{"$f":"'Schedule VIII (EBS)'!L14","v":0},{"$f":"(C450*0.75%)+(D450*1%)+(E450*1.25%)","v":0},null,null,{"$f":"IF(H450=\"\",F450,(C450+D450+E450)*H450)","v":0}]
[null,"GMDB (2) - Net Value at Risk",{"$f":"'Schedule VIII (EBS)'!N14","v":0},{"$f":"+'Schedule VIII (EBS)'!P14","v":0},{"$f":"+'Schedule VIII (EBS)'!R14","v":0},{"$f":"(C451*12%)+(D451*16.5%)+(E451*21%)","v":0},null,null,{"$f":"IF(H451=\"\",F451,(C451+D451+E451)*H451)","v":0}]
[null,"GMDB (2) - Guar. Val Out Money",{"$f":"'Schedule VIII (EBS)'!H32","v":0},{"$f":"'Schedule VIII (EBS)'!J32","v":0},{"$f":"'Schedule VIII (EBS)'!L32","v":0},{"$f":"(C452*0.75%)+(D452*1%)+(E452*1.25%)","v":0},null,null,{"$f":"IF(H452=\"\",F452,(C452+D452+E452)*H452)","v":0}]
[null,"GMDB (2) - Total",null,null,null,{"$f":"F452+(MAX(F450,F451))","v":0},null,null,{"$f":"I452+(MAX(I450,I451))","v":0}]
[]
[null,"GMIB - Guar. Val In Money",{"$f":"'Schedule VIII (EBS)'!H15","v":0},{"$f":"'Schedule VIII (EBS)'!J15","v":0},{"$f":"'Schedule VIII (EBS)'!L15","v":0},{"$f":"(C455*5%)+(D455*6.5%)+(E455*8%)","v":0},null,null,{"$f":"IF(H455=\"\",F455,(C455+D455+E455)*H455)","v":0}]
[null,"GMIB - Net Value at Risk",{"$f":"'Schedule VIII (EBS)'!N15","v":0},{"$f":"+'Schedule VIII (EBS)'!P15","v":0},{"$f":"+'Schedule VIII (EBS)'!R15","v":0},{"$f":"(C456*100%)+(D456*130%)+(E456*160%)","v":0},null,null,{"$f":"IF(H456=\"\",F456,(C456+D456+E456)*H456)","v":0}]
[null,"GMIB - Guar. Val Out Money",{"$f":"'Schedule VIII (EBS)'!H33","v":0},{"$f":"'Schedule VIII (EBS)'!J33","v":0},{"$f":"'Schedule VIII (EBS)'!L33","v":0},{"$f":"(C457*5%)+(D457*6.5%)+(E457*8%)","v":0},null,null,{"$f":"IF(H457=\"\",F457,(C457+D457+E457)*H457)","v":0}]
[null,"GMIB - Total",null,null,null,{"$f":"F457+(MAX(F455,F456))","v":0},null,null,{"$f":"I457+(MAX(I455,I456))","v":0}]
[]
[null,"GMWB - Guar. Val In Money",{"$f":"'Schedule VIII (EBS)'!H16","v":0},{"$f":"'Schedule VIII (EBS)'!J16","v":0},{"$f":"'Schedule VIII (EBS)'!L16","v":0},{"$f":"(C460*3.25%)+(D460*4.25%)+(E460*5%)","v":0},null,null,{"$f":"IF(H460=\"\",F460,(C460+D460+E460)*H460)","v":0}]
[null,"GMWB - Net Value at Risk",{"$f":"'Schedule VIII (EBS)'!N16","v":0},{"$f":"+'Schedule VIII (EBS)'!P16","v":0},{"$f":"+'Schedule VIII (EBS)'!R16","v":0},{"$f":"(C461*60%)+(D461*75%)+(E461*90%)","v":0},null,null,{"$f":"IF(H461=\"\",F461,(C461+D461+E461)*H461)","v":0}]
[null,"GMWB - Guar. Val Out Money",{"$f":"'Schedule VIII (EBS)'!H34","v":0},{"$f":"'Schedule VIII (EBS)'!J34","v":0},{"$f":"'Schedule VIII (EBS)'!L34","v":0},{"$f":"(C462*3.25%)+(D462*4.25%)+(E462*5%)","v":0},null,null,{"$f":"IF(H462=\"\",F462,(C462+D462+E462)*H462)","v":0}]
[null,"GMWB - Total",null,null,null,{"$f":"F462+(MAX(F460,F461))","v":0},null,null,{"$f":"I462+(MAX(I460,I461))","v":0}]
[]
[null,"GEEB - Guar. Val In Money",{"$f":"'Schedule VIII (EBS)'!H17","v":0},{"$f":"'Schedule VIII (EBS)'!J17","v":0},{"$f":"'Schedule VIII (EBS)'!L17","v":0},{"$f":"(C465*0%)+(D465*0.5%)+(E465*1%)","v":0},null,null,{"$f":"IF(H465=\"\",F465,(C465+D465+E465)*H465)","v":0}]
[null,"GEEB - Net Value at Risk",{"$f":"'Schedule VIII (EBS)'!N17","v":0},{"$f":"+'Schedule VIII (EBS)'!P17","v":0},{"$f":"+'Schedule VIII (EBS)'!R17","v":0},{"$f":"(C466*1%)+(D466*9%)+(E466*17%)","v":0},null,null,{"$f":"IF(H466=\"\",F466,(C466+D466+E466)*H466)","v":0}]
[null,"GEEB - Guar. Val Out Money",{"$f":"'Schedule VIII (EBS)'!H35","v":0},{"$f":"'Schedule VIII (EBS)'!J35","v":0},{"$f":"'Schedule VIII (EBS)'!L35","v":0},{"$f":"(C467*0%)+(D467*0.5%)+(E467*1%)","v":0},null,null,{"$f":"IF(H467=\"\",F467,(C467+D467+E467)*H467)","v":0}]
[null,"GEEB - Total",null,null,null,{"$f":"F467+(MAX(F465,F466))","v":0},null,null,{"$f":"I467+(MAX(I465,I466))","v":0}]
[]
[null,"GMAB 0-1 Guar. Val In Money",{"$f":"'Schedule VIII (EBS)'!H19","v":0},{"$f":"'Schedule VIII (EBS)'!J19","v":0},{"$f":"'Schedule VIII (EBS)'!L19","v":0},{"$f":"(C470*3.2%)+(D470*5%)+(E470*9%)","v":0},null,null,{"$f":"IF(H470=\"\",F470,(C470+D470+E470)*H470)","v":0}]
[null,"GMWB 0-1 Net Value at Risk",{"$f":"'Schedule VIII (EBS)'!N19","v":0},{"$f":"+'Schedule VIII (EBS)'!P19","v":0},{"$f":"+'Schedule VIII (EBS)'!R19","v":0},{"$f":"(C471*90%)+(D471*130%)+(E471*250%)","v":0},null,null,{"$f":"IF(H471=\"\",F471,(C471+D471+E471)*H471)","v":0}]
[null,"GMWB 0-1 Guar. Val Out Money",{"$f":"'Schedule VIII (EBS)'!H37","v":0},{"$f":"'Schedule VIII (EBS)'!J37","v":0},{"$f":"'Schedule VIII (EBS)'!L37","v":0},{"$f":"(C472*3.2%)+(D472*5%)+(E472*9%)","v":0},null,null,{"$f":"IF(H472=\"\",F472,(C472+D472+E472)*H472)","v":0}]
[null,"GMWB - Total for 0-1",null,null,null,{"$f":"F472+(MAX(F470,F471))","v":0},null,null,{"$f":"I472+(MAX(I470,I471))","v":0}]
[]
[null,"GMAB 1-2 Guar. Val In Money",{"$f":"'Schedule VIII (EBS)'!H20","v":0},{"$f":"'Schedule VIII (EBS)'!J20","v":0},{"$f":"'Schedule VIII (EBS)'!L20","v":0},{"$f":"(C475*3%)+(D475*5%)+(E475*8.9%)","v":0},null,null,{"$f":"IF(H475=\"\",F475,(C475+D475+E475)*H475)","v":0}]
[null,"GMWB 1-2 Net Value at Risk",{"$f":"'Schedule VIII (EBS)'!N20","v":0},{"$f":"+'Schedule VIII (EBS)'!P20","v":0},{"$f":"+'Schedule VIII (EBS)'!R20","v":0},{"$f":"(C476*80%)+(D476*115%)+(E476*200%)","v":0},null,null,{"$f":"IF(H476=\"\",F476,(C476+D476+E476)*H476)","v":0}]
[null,"GMWB 1-2 Guar. Val Out Money",{"$f":"'Schedule VIII (EBS)'!H38","v":0},{"$f":"'Schedule VIII (EBS)'!J38","v":0},{"$f":"'Schedule VIII (EBS)'!L38","v":0},{"$f":"(C477*3%)+(D477*5%)+(E477*8.9%)","v":0},null,null,{"$f":"IF(H477=\"\",F477,(C477+D477+E477)*H477)","v":0}]
[null,"GMWB - Total for 1-2",null,null,null,{"$f":"F477+(MAX(F475,F476))","v":0},null,null,{"$f":"I477+(MAX(I475,I476))","v":0}]
[]
[null,"GMAB 2-3 Guar. Val In Money",{"$f":"'Schedule VIII (EBS)'!H21","v":0},{"$f":"'Schedule VIII (EBS)'!J21","v":0},{"$f":"'Schedule VIII (EBS)'!L21","v":0},{"$f":"(C480*3%)+(D480*5%)+(E480*8.9%)","v":0},null,null,{"$f":"IF(H480=\"\",F480,(C480+D480+E480)*H480)","v":0}]
[null,"GMWB 2-3 Net Value at Risk",{"$f":"'Schedule VIII (EBS)'!N21","v":0},{"$f":"+'Schedule VIII (EBS)'!P21","v":0},{"$f":"+'Schedule VIII (EBS)'!R21","v":0},{"$f":"(C481*70%)+(D481*105%)+(E481*160%)","v":0},null,null,{"$f":"IF(H481=\"\",F481,(C481+D481+E481)*H481)","v":0}]
[null,"GMWB 2-3 Guar. Val Out Money",{"$f":"'Schedule VIII (EBS)'!H39","v":0},{"$f":"'Schedule VIII (EBS)'!J39","v":0},{"$f":"'Schedule VIII (EBS)'!L39","v":0},{"$f":"(C482*3%)+(D482*5%)+(E482*8.9%)","v":0},null,null,{"$f":"IF(H482=\"\",F482,(C482+D482+E482)*H482)","v":0}]
[null,"GMWB - Total for 2-3",null,null,null,{"$f":"F482+(MAX(F480,F481))","v":0},null,null,{"$f":"I482+(MAX(I480,I481))","v":0}]
[]
[null,"GMAB 3-4 Guar. Val In Money",{"$f":"'Schedule VIII (EBS)'!H22","v":0},{"$f":"'Schedule VIII (EBS)'!J22","v":0},{"$f":"'Schedule VIII (EBS)'!L22","v":0},{"$f":"(C485*2.8%)+(D485*5%)+(E485*8.8%)","v":0},null,null,{"$f":"IF(H485=\"\",F485,(C485+D485+E485)*H485)","v":0}]
[null,"GMWB 3-4 Net Value at Risk",{"$f":"'Schedule VIII (EBS)'!N22","v":0},{"$f":"+'Schedule VIII (EBS)'!P22","v":0},{"$f":"+'Schedule VIII (EBS)'!R22","v":0},{"$f":"(C486*60%)+(D486*95%)+(E486*135%)","v":0},null,null,{"$f":"IF(H486=\"\",F486,(C486+D486+E486)*H486)","v":0}]
[null,"GMWB 3-4 Guar. Val Out Money",{"$f":"'Schedule VIII (EBS)'!H40","v":0},{"$f":"'Schedule VIII (EBS)'!J40","v":0},{"$f":"'Schedule VIII (EBS)'!L40","v":0},{"$f":"(C487*2.8%)+(D487*5%)+(E487*8.8%)","v":0},null,null,{"$f":"IF(H487=\"\",F487,(C487+D487+E487)*H487)","v":0}]
[null,"GMWB - Total for 3-4",null,null,null,{"$f":"F487+(MAX(F485,F486))","v":0},null,null,{"$f":"I487+(MAX(I485,I486))","v":0}]
[]
[null,"GMAB 4-5 Guar. Val In Money",{"$f":"'Schedule VIII (EBS)'!H23","v":0},{"$f":"'Schedule VIII (EBS)'!J23","v":0},{"$f":"'Schedule VIII (EBS)'!L23","v":0},{"$f":"(C490*2.4%)+(D490*4.3%)+(E490*8%)","v":0},null,null,{"$f":"IF(H490=\"\",F490,(C490+D490+E490)*H490)","v":0}]
[null,"GMWB 4-5 Net Value at Risk",{"$f":"'Schedule VIII (EBS)'!N23","v":0},{"$f":"+'Schedule VIII (EBS)'!P23","v":0},{"$f":"+'Schedule VIII (EBS)'!R23","v":0},{"$f":"(C491*55%)+(D491*85%)+(E491*115%)","v":0},null,null,{"$f":"IF(H491=\"\",F491,(C491+D491+E491)*H491)","v":0}]
[null,"GMWB 4-5 Guar. Val Out Money",{"$f":"'Schedule VIII (EBS)'!H41","v":0},{"$f":"'Schedule VIII (EBS)'!J41","v":0},{"$f":"'Schedule VIII (EBS)'!L41","v":0},{"$f":"(C492*2.4%)+(D492*4.3%)+(E492*8%)","v":0},null,null,{"$f":"IF(H492=\"\",F492,(C492+D492+E492)*H492)","v":0}]
[null,"GMWB - Total for 4-5",null,null,null,{"$f":"F492+(MAX(F490,F491))","v":0},null,null,{"$f":"I492+(MAX(I490,I491))","v":0}]
[]
[null,"GMAB 5-6 Guar. Val In Money",{"$f":"'Schedule VIII (EBS)'!H24","v":0},{"$f":"'Schedule VIII (EBS)'!J24","v":0},{"$f":"'Schedule VIII (EBS)'!L24","v":0},{"$f":"(C495*2%)+(D495*3.5%)+(E495*6.8%)","v":0},null,null,{"$f":"IF(H495=\"\",F495,(C495+D495+E495)*H495)","v":0}]
[null,"GMWB 5-6 Net Value at Risk",{"$f":"'Schedule VIII (EBS)'!N24","v":0},{"$f":"+'Schedule VIII (EBS)'!P24","v":0},{"$f":"+'Schedule VIII (EBS)'!R24","v":0},{"$f":"(C496*50%)+(D496*75%)+(E496*100%)","v":0},null,null,{"$f":"IF(H496=\"\",F496,(C496+D496+E496)*H496)","v":0}]
[null,"GMWB 5-6 Guar. Val Out Money",{"$f":"'Schedule VIII (EBS)'!H42","v":0},{"$f":"'Schedule VIII (EBS)'!J42","v":0},{"$f":"'Schedule VIII (EBS)'!L42","v":0},{"$f":"(C497*2%)+(D497*3.5%)+(E497*6.8%)","v":0},null,null,{"$f":"IF(H497=\"\",F497,(C497+D497+E497)*H497)","v":0}]
[null,"GMWB - Total for 5-6",null,null,null,{"$f":"F497+(MAX(F495,F496))","v":0},null,null,{"$f":"I497+(MAX(I495,I496))","v":0}]
[]
[null,"GMAB 6-7 Guar. Val In Money",{"$f":"'Schedule VIII (EBS)'!H25","v":0},{"$f":"'Schedule VIII (EBS)'!J25","v":0},{"$f":"'Schedule VIII (EBS)'!L25","v":0},{"$f":"(C500*1.7%)+(D500*2.8%)+(E500*5.9%)","v":0},null,null,{"$f":"IF(H500=\"\",F500,(C500+D500+E500)*H500)","v":0}]
[null,"GMWB 6-7 Net Value at Risk",{"$f":"'Schedule VIII (EBS)'!N25","v":0},{"$f":"+'Schedule VIII (EBS)'!P25","v":0},{"$f":"+'Schedule VIII (EBS)'!R25","v":0},{"$f":"(C501*45%)+(D501*65%)+(E501*90%)","v":0},null,null,{"$f":"IF(H501=\"\",F501,(C501+D501+E501)*H501)","v":0}]
[null,"GMWB 6-7 Guar. Val Out Money",{"$f":"'Schedule VIII (EBS)'!H43","v":0},{"$f":"'Schedule VIII (EBS)'!J43","v":0},{"$f":"'Schedule VIII (EBS)'!L43","v":0},{"$f":"(C502*1.7%)+(D502*2.8%)+(E502*5.9%)","v":0},null,null,{"$f":"IF(H502=\"\",F502,(C502+D502+E502)*H502)","v":0}]
[null,"GMWB - Total for 6-7",null,null,null,{"$f":"F502+(MAX(F500,F501))","v":0},null,null,{"$f":"I502+(MAX(I500,I501))","v":0}]
[]
[null,"GMAB 7-8 Guar. Val In Money",{"$f":"'Schedule VIII (EBS)'!H26","v":0},{"$f":"'Schedule VIII (EBS)'!J26","v":0},{"$f":"'Schedule VIII (EBS)'!L26","v":0},{"$f":"(C505*1.4%)+(D505*2.1%)+(E505*4.9%)","v":0},null,null,{"$f":"IF(H505=\"\",F505,(C505+D505+E505)*H505)","v":0}]
[null,"GMWB 7-8 Net Value at Risk",{"$f":"'Schedule VIII (EBS)'!N26","v":0},{"$f":"+'Schedule VIII (EBS)'!P26","v":0},{"$f":"+'Schedule VIII (EBS)'!R26","v":0},{"$f":"(C506*40%)+(D506*55%)+(E506*80%)","v":0},null,null,{"$f":"IF(H506=\"\",F506,(C506+D506+E506)*H506)","v":0}]
[null,"GMWB 7-8 Guar. Val Out Money",{"$f":"'Schedule VIII (EBS)'!H44","v":0},{"$f":"'Schedule VIII (EBS)'!J44","v":0},{"$f":"'Schedule VIII (EBS)'!L44","v":0},{"$f":"(C507*1.4%)+(D507*2.1%)+(E507*4.9%)","v":0},null,null,{"$f":"IF(H507=\"\",F507,(C507+D507+E507)*H507)","v":0}]
[null,"GMWB - Total for 7-8",null,null,null,{"$f":"F507+(MAX(F505,F506))","v":0},null,null,{"$f":"I507+(MAX(I505,I506))","v":0}]
[]
[null,"GMAB 8-9 Guar. Val In Money",{"$f":"'Schedule VIII (EBS)'!H27","v":0},{"$f":"'Schedule VIII (EBS)'!J27","v":0},{"$f":"'Schedule VIII (EBS)'!L27","v":0},{"$f":"(C510*1.1%)+(D510*1.7%)+(E510*4.3%)","v":0},null,null,{"$f":"IF(H510=\"\",F510,(C510+D510+E510)*H510)","v":0}]
[null,"GMWB 8-9 Net Value at Risk",{"$f":"'Schedule VIII (EBS)'!N27","v":0},{"$f":"+'Schedule VIII (EBS)'!P27","v":0},{"$f":"+'Schedule VIII (EBS)'!R27","v":0},{"$f":"(C511*35%)+(D511*50%)+(E511*70%)","v":0},null,null,{"$f":"IF(H511=\"\",F511,(C511+D511+E511)*H511)","v":0}]
[null,"GMWB 8-9 Guar. Val Out Money",{"$f":"'Schedule VIII (EBS)'!H45","v":0},{"$f":"'Schedule VIII (EBS)'!J45","v":0},{"$f":"'Schedule VIII (EBS)'!L45","v":0},{"$f":"(C512*1.1%)+(D512*1.7%)+(E512*4.3%)","v":0},null,null,{"$f":"IF(H512=\"\",F512,(C512+D512+E512)*H512)","v":0}]
[null,"GMWB - Total for 8-9",null,null,null,{"$f":"F512+(MAX(F510,F511))","v":0},null,null,{"$f":"I512+(MAX(I510,I511))","v":0}]
[]
[null,"GMAB >9 Guar. Val In Money",{"$f":"'Schedule VIII (EBS)'!H28","v":0},{"$f":"'Schedule VIII (EBS)'!J28","v":0},{"$f":"'Schedule VIII (EBS)'!L28","v":0},{"$f":"(C515*1%)+(D515*1.4%)+(E515*3.9%)","v":0},null,null,{"$f":"IF(H515=\"\",F515,(C515+D515+E515)*H515)","v":0}]
[null,"GMWB >9 Net Value at Risk",{"$f":"'Schedule VIII (EBS)'!N28","v":0},{"$f":"+'Schedule VIII (EBS)'!P28","v":0},{"$f":"+'Schedule VIII (EBS)'!R28","v":0},{"$f":"(C516*30%)+(D516*45%)+(E516*60%)","v":0},null,null,{"$f":"IF(H516=\"\",F516,(C516+D516+E516)*H516)","v":0}]
[null,"GMWB >9 Guar. Val Out Money",{"$f":"'Schedule VIII (EBS)'!H46","v":0},{"$f":"'Schedule VIII (EBS)'!J46","v":0},{"$f":"'Schedule VIII (EBS)'!L46","v":0},{"$f":"(C517*1%)+(D517*1.4%)+(E517*3.9%)","v":0},null,null,{"$f":"IF(H517=\"\",F517,(C517+D517+E517)*H517)","v":0}]
[null,"GMWB - Total for >9",null,null,null,{"$f":"F517+(MAX(F515,F516))","v":0},null,null,{"$f":"I517+(MAX(I515,I516))","v":0}]
[]
[null,"Percentage of Guaranteed Minimum Death Benefit with Multiple Guarantees",null,null,{"$f":"+'Schedule VIII (EBS)'!L50","v":0},{"$f":"IF(E520=0,0,(F448+F453)*(-E520))","v":0},null,null,{"$f":"IF(E520=0,0,(I448+I453)*(-E520))","v":0}]
[null,"Total BSCR Adjusted Reserves for Variable Annuities",null,null,null,{"$f":"-'Schedule VII (EBS)'!F47","v":0},null,null,{"$f":"-'Schedule VII (EBS)'!F47","v":0}]
[]
[null,"(a) REQUIRED CAPITAL FOR VARIABLE ANNUITY GUARANTEE RISK ",null,null,null,{"$f":"MAX(0,SUM(F448,F453,F458,F463,F468,F473,F478,F483,F488,F493,F498,F503,F508,F513,F518,F520,F521))","v":0},null,null,{"$f":"MAX(0,SUM(I448,I453,I458,I463,I468,I473,I478,I483,I488,I493,I498,I503,I508,I513,I518,I520,I521))","v":0}]
[]
[null,"REQUIRED CAPITAL AND SURPLUS"]
[]
[null,"Fixed Income Investment Risk",null,null,null,{"$f":"MAX(0,+F101)","v":0},null,null,{"$f":"MAX(0,+I101)","v":0}]
[null,"Equity Investment Risk",null,null,null,{"$f":"MAX(0,+F149)","v":0},null,null,{"$f":"MAX(0,+I149)","v":0}]
[null,"Interest Rate / Liquidity Risk",null,null,null,{"$f":"MAX(0,+F330)","v":0},null,null,{"$f":"MAX(0,+I330)","v":0}]
[null,"Currency Risk",null,null,null,{"$f":"+F174","v":0},null,null,{"$f":"+I174","v":0}]
[null,"Concentration Risk",null,null,null,{"$f":"+F282","v":0},null,null,{"$f":"+I282","v":0}]
[null,"Credit Risk",null,null,null,{"$f":"MAX(0,+F321)","v":0},null,null,{"$f":"MAX(0,+I321)","v":0}]
[null,"Mortality",null,null,null,{"$f":"MAX(0,+F336)","v":0},null,null,{"$f":"MAX(0,+I336)","v":0}]
[null,"Stop Loss",null,null,null,{"$f":"MAX(0,+F415)","v":0},null,null,{"$f":"MAX(0,+I415)","v":0}]
[null,"Riders",null,null,null,{"$f":"MAX(0,+F417)","v":0},null,null,{"$f":"MAX(0,+I417)","v":0}]
[null,"Morbidity and Disability",null,null,null,{"$f":"MAX(0,+F342+F348+F349+F350+F344+F345+F352)","v":0},null,null,{"$f":"MAX(0,+I342+I348+I349+I350+I344+I345+I352)","v":0}]
[null,"Longevity",null,null,null,{"$f":"MAX(0,SUM(F359:F371))","v":0},null,null,{"$f":"MAX(0,(SUM(I359:I371)+SUM(I378:I390)+SUM(I397:I409)))","v":0}]
[null,"Variable Annuity Guarantee Risk",null,null,null,{"$f":"MAX(0,+F523,'Schedule VIIIA (EBS)'!S12)","v":0},null,null,{"$f":"MAX(0,+I523,'Schedule VIIIA (EBS)'!S12)","v":0}]
[null,"Other Insurance Risk",null,null,null,{"$f":"MAX(0,+F440)","v":0},null,null,{"$f":"MAX(0,+I440)","v":0}]
[]
[null,"BSCR (Prior to Covariance Adjustment)",null,null,null,{"$f":"SUM(F527:F539)","v":0},null,null,{"$f":"SUM(I527:I539)","v":0}]
[]
[null,"BSCR (After Covariance Adjustment)",null,null,null,{"$f":"(F527^2+F528^2+F529^2+F530^2+F531^2+F532^2+((F533+F534+F535))^2+F536^2+F537^2+-0.5*((F533+F534+F535)*F537)+F538^2+F539^2)^0.5","v":0},null,null,{"$f":"(I527^2+I528^2+I529^2+I530^2+I531^2+I532^2+((I533+I534+I535))^2+I536^2+I537^2+-0.5*((I533+I534+I535)*I537)+I538^2+I539^2)^0.5","v":0}]
[]
[null,"Operational risk charge (%)",null,null,null,{"$f":"+Summary!G62","v":0.1}]
[]
[null,"Operational risk capital charge ($)",null,null,null,{"$f":"F543*F545","v":0},null,null,{"$f":"IF(I545=\"\",I543*F545,I543*I545)","v":0}]
[]
[null,"Capital add-on / reduction (BMA assessment)"]
[]
[null,{"$f":"+Summary!C66","v":"Capital Adjustment for (Regulatory) Capital Requirement for Regulated Non-Insurance Financial Operating Entities:"},null,null,null,{"$f":"+'Schedule XVI'!M211","v":0},null,null,{"$f":"+'Schedule XVI'!M211","v":0}]
[]
[null,"BSCR ",null,null,null,{"$f":"F543+F547+F549","v":0},null,null,{"$f":"I543+I547+I549","v":0}]
[]
[null,null,null,null,null,null,null,null,null,null,null,null,""]
[null,null,null,null,null,null,null,null,null,null,null,null,""]

{"sheet":"Crosscheck - SFS","index":98,"n_rows":98,"n_cols":4,"rows_kept":98,"cut":false,"hidden":true,"merged":[]}
[{"$f":"'Insurer Information'!C7","v":"Enter Company Name"}]
["Summary of SFS Inputs ($000) - For BMA Use Only"]
[{"$f":"'Insurer Information'!B3","v":"For the Year Ending "}]
[]
[]
[]
[null,"INPUT","STATEMENT SOURCE","VALUE"]
[]
[null,"Cash and time deposits","Form 4, Line 1",{"$f":"'Form 4EBS'!F10","v":0}]
[null,"Quoted invesments, bonds and debentures","Form 4, Line 2(a)",{"$f":"'Form 4EBS'!F13","v":0}]
[null,"Quoted investments, equities - common stocks","Form 4, Line 2(c)(i)",{"$f":"'Form 4EBS'!F15","v":0}]
[null,"Quoted investments, equities - preferred stocks","Form 4, Line 2(c)(ii)",{"$f":"'Form 4EBS'!F16","v":0}]
[null,"Quoted investments, equities - mutual funds","Form 4, Line 2(c)(iii)",{"$f":"'Form 4EBS'!F17","v":0}]
[null,"Other quoted investments","Form 4, Line 2(e)",{"$f":"'Form 4EBS'!F19","v":0}]
[null,"Unquoted investments, bonds and debentures","Form 4, Line 3(a)",{"$f":"'Form 4EBS'!F23","v":0}]
[null,"Unquoted investments, equities - common stocks","Form 4, Line 3(c)(i)",{"$f":"'Form 4EBS'!F25","v":0}]
[null,"Unquoted investments, equities - preferred stocks","Form 4, Line 3(c)(ii)",{"$f":"'Form 4EBS'!F26","v":0}]
[null,"Unquoted investments, equities - mutual funds","Form 4, Line 3(c)(iii)",{"$f":"'Form 4EBS'!F27","v":0}]
[null,"Other unquoted investments","Form 4, Line 3(e)",{"$f":"'Form 4EBS'!F29","v":0}]
[null,"Investments in and advances to affiliates","Form 4, Line 4",{"$f":"'Form 4EBS'!F32","v":0}]
[null,"Investment in mortgage loans on real estate","Form 4, Line 5",{"$f":"'Form 4EBS'!F42","v":0}]
[null,"Mortgage loans","Form 4, Line 6",{"$f":"'Form 4EBS'!F47","v":0}]
[null,"Real estate, occupied by the company (less encumbrances)","Form 4, Line 7(a)",{"$f":"'Form 4EBS'!F50","v":0}]
[null,"Real estate, other properties (less encumbrances)","Form 4, Line 7(b)",{"$f":"'Form 4EBS'!F51","v":0}]
[null,"Collateral loans","Form 4, Line 8",{"$f":"'Form 4EBS'!F54","v":0}]
[null,"Investment income due and accrued","Form 4, Line 9",{"$f":"'Form 4EBS'!F56","v":0}]
[null,"Accounts and premium receivable - in course of collection","Form 4, Line 10(a)",{"$f":"'Form 4EBS'!F59","v":0}]
[null,"Accounts and premium receivable - deferred - not yet due","Form 4, Line 10(b)"]
[null,"Accounts and premium receivable - receivables from retrocessional contracts","Form 4, Line 10(c)",{"$f":"'Form 4EBS'!F60","v":0}]
[null,"Reinsurance balances receivable - foreign affiliates","Form 4, Line 11(a)",{"$f":"'Form 4EBS'!F64","v":0}]
[null,"Reinsurance balances receivable - domestic affiliates","Form 4, Line 11(b)",{"$f":"'Form 4EBS'!F65","v":0}]
[null,"Reinsurance balances receivable - pools & associations","Form 4, Line 11(c)",{"$f":"'Form 4EBS'!F66","v":0}]
[null,"Reinsurance balances receivable - all other insurers","Form 4, Line 11(d)",{"$f":"'Form 4EBS'!F67","v":0}]
[null,"Funds held by ceding companies","Form 4, Line 12",{"$f":"'Form 4EBS'!F70","v":0}]
[null,"Sundry assets - derivative instruments","Form 4, Line 13(a)",{"$f":"'Form 4EBS'!F76","v":0}]
[null,"Sundry assets - segregated accounts companies","Form 4, Line 13(b)",{"$f":"'Form 4EBS'!F77","v":0}]
[null,"Sundry assets - deposit assets","Form 4, Line 13(c)",{"$f":"'Form 4EBS'!F79","v":0}]
[null,"Sundry assets - others","Form 4, Line 13(d)",{"$f":"'Form 4EBS'!F84","v":0}]
[null,"Letters of credit, guarantees and other instruments - letters of credit","Form 4, Line 14(a)",{"$f":"'Form 4EBS'!F88","v":0}]
[null,"Letters of credit, guarantees and other instruments - guarantees","Form 4, Line 14(b)",{"$f":"'Form 4EBS'!F89","v":0}]
[null,"Letters of credit, guarantees and other instruments - other instruments","Form 4, Line 14(c)",{"$f":"'Form 4EBS'!F90","v":0}]
[null,"Reserves for reported claims","Form 4, Line 20",{"$f":"'Form 4EBS'!F100","v":0}]
[null,"Reserves for unreported claims","Form 4, Line 21",{"$f":"'Form 4EBS'!F102","v":0}]
[null,"Policy reserves life","Form 4, Line 22",{"$f":"'Form 4EBS'!F104","v":0}]
[null,"Policy reserves accident and health","Form 4, Line 23",{"$f":"'Form 4EBS'!F106","v":0}]
[null,"Policyholder's funds on deposit","Form 4, Line 24",{"$f":"'Form 4EBS'!F108","v":0}]
[null,"Liability for future policyholder dividends","Form 4, Line 25",{"$f":"'Form 4EBS'!F110","v":0}]
[null,"Other insurance reserves - long-term","Form 4, Line 26",{"$f":"'Form 4EBS'!F112","v":0}]
[null,"Insurance and reinsurance balances payable","Form 4, Line 28",{"$f":"'Form 4EBS'!F140","v":0}]
[null,"Commissions, expenses, fees and taxes payable","Form 4, Line 29",{"$f":"'Form 4EBS'!F142","v":0}]
[null,"Loans and notes payable","Form 4, Line 30",{"$f":"'Form 4EBS'!F144","v":0}]
[null,"Income taxes payable","Form 4, Line 31(a)",{"$f":"'Form 4EBS'!F147","v":0}]
[null,"Deferred income taxes","Form 4, Line 31(b)",{"$f":"'Form 4EBS'!F148","v":0}]
[null,"Amounts due to affiliates","Form 4, Line 32",{"$f":"'Form 4EBS'!F150","v":0}]
[null,"Accounts payable and accrued liabilities","Form 4, Line 33",{"$f":"'Form 4EBS'!F152","v":0}]
[null,"Funds held under reinsurance contracts","Form 4, Line 34",{"$f":"'Form 4EBS'!F154","v":0}]
[null,"Dividends payable","Form 4, Line 35",{"$f":"'Form 4EBS'!F159","v":0}]
[null,"Sundry liabilities - derivative instruments","Form 4, Line 36(a)",{"$f":"'Form 4EBS'!F162","v":0}]
[null,"Sundry liabilities - segregated accounts companies","Form 4, Line 36(b)",{"$f":"'Form 4EBS'!F164","v":0}]
[null,"Sundry liabilities - deposit liabilities","Form 4, Line 36(c)",{"$f":"'Form 4EBS'!F166","v":0}]
[null,"Sundry liabilities - others","Form 4, Line 36(d)",{"$f":"'Form 4EBS'!F169","v":0}]
[null,"Letters of credit, guarantees and other instruments - letters of credit","Form 4, Line 37(a)",{"$f":"'Form 4EBS'!F173","v":0}]
[null,"Letters of credit, guarantees and other instruments - guarantees","Form 4, Line 37(b)",{"$f":"'Form 4EBS'!F174","v":0}]
[null,"Letters of credit, guarantees and other instruments - other instruments","Form 4, Line 37(c)",{"$f":"'Form 4EBS'!F175","v":0}]
[null,"Government","Schedule II, Line (1)",{"$f":"'Schedule II (EBS)'!T12","v":0}]
[null,"High Investment Grade (AAA & AA)","Schedule II, Line (2)",{"$f":"'Schedule II (EBS)'!T13","v":0}]
[null,"Medium Investment Grade (A)","Schedule II, Line (3)",{"$f":"'Schedule II (EBS)'!T14","v":0}]
[null,"Low Investment Grade (BBB)","Schedule II, Line (4)",{"$f":"'Schedule II (EBS)'!T15","v":0}]
[null,"Non Investment Grade","Schedule II, Line (5)",{"$f":"'Schedule II (EBS)'!T16","v":0}]
[null,"Mortgage Backed","Schedule II, Line (6)",{"$f":"'Schedule II (EBS)'!T17","v":0}]
[null,"Mutual Funds","Schedule II, Line (7)",{"$f":"'Schedule II (EBS)'!T18","v":0}]
[null,"Non Rated","Schedule II, Line (8)",{"$f":"'Schedule II (EBS)'!T19","v":0}]
[null,"Mortality (term assurance, whole life, universal life) - Bermuda Statutory Reserve","Schedule III, Line (1) col (1)",{"$f":"'Schedule VII (EBS)'!D10","v":0}]
[null,"Critical Illness (including accelerated CI products) - Bermuda Statutory Reserve","Schedule III, Line (2) col (1)",{"$f":"'Schedule VII (EBS)'!D11","v":0}]
[null,"Longevity (payout annuities, contingent annuities) - Bermuda Statutory Reserve","Schedule III, Line (3) col (1)",{"$f":"'Schedule VII (EBS)'!D12","v":0}]
[null,"Deferred annuities (including index linked products with no guarantees) - Bermuda Statutory Reserve","Schedule III, Line (4) col (1)",{"$f":"'Schedule VII (EBS)'!D20","v":0}]
[null,"Disability Income: active lives - incl. waiver of premium and LTC - Bermuda Statutory Reserve","Schedule III, Line (5) col (1)",{"$f":"'Schedule VII (EBS)'!D36","v":0}]
[null,{"$f":"'Schedule VII (EBS)'!C37&\" - Bermuda Statutory Reserve\"","v":"Disability income: active lives - other accident and sickness - Bermuda Statutory Reserve"},"Schedule III, Line (6) col (1)",{"$f":"'Schedule VII (EBS)'!D37","v":0}]
[null,{"$f":"'Schedule VII (EBS)'!C38&\" - Bermuda Statutory Reserve\"","v":"Disability income: claims in payment - including waiver of premium and long-term care - Bermuda Statutory Reserve"},"Schedule III, Line (7) col (1)",{"$f":"'Schedule VII (EBS)'!D38","v":0}]
[null,{"$f":"'Schedule VII (EBS)'!C39&\" - Bermuda Statutory Reserve\"","v":"Disability income: claims in payment - other accident and sickness - Bermuda Statutory Reserve"},"Schedule III, Line (8) col (1)",{"$f":"'Schedule VII (EBS)'!D39","v":0}]
[null,{"$f":"'Schedule VII (EBS)'!C40&\" - Bermuda Statutory Reserve\"","v":"Group Life - Bermuda Statutory Reserve"},"Schedule III, Line (9) col (1)",{"$f":"'Schedule VII (EBS)'!D40","v":0}]
[null,{"$f":"'Schedule VII (EBS)'!C41&\" - Bermuda Statutory Reserve\"","v":"Group Disability - Bermuda Statutory Reserve"},"Schedule III, Line (10) col (1)",{"$f":"'Schedule VII (EBS)'!D41","v":0}]
[null,{"$f":"'Schedule VII (EBS)'!C42&\" - Bermuda Statutory Reserve\"","v":"Group Health - Bermuda Statutory Reserve"},"Schedule III, Line (11) col (1)",{"$f":"'Schedule VII (EBS)'!D42","v":0}]
[null,{"$f":"'Schedule VII (EBS)'!C43&\" - Bermuda Statutory Reserve\"","v":"Stop Loss - Bermuda Statutory Reserve"},"Schedule III, Line (12) col (1)",{"$f":"'Schedule VII (EBS)'!D43","v":0}]
[null,{"$f":"'Schedule VII (EBS)'!C44&\" - Bermuda Statutory Reserve\"","v":"Rider (other product riders not included above) - Bermuda Statutory Reserve"},"Schedule III, Line (13) col (1)",{"$f":"'Schedule VII (EBS)'!D44","v":0}]
[null,{"$f":"'Schedule VII (EBS)'!C10&\" - DAC\"","v":"Mortality (term assurance, whole life, universal life) - DAC"},"Schedule III, Line (1) col (2)"]
[null,{"$f":"'Schedule VII (EBS)'!C11&\" - DAC\"","v":"Critical Illness (including accelerated critical illness products) - DAC"},"Schedule III, Line (2) col (2)"]
[null,{"$f":"'Schedule VII (EBS)'!C12&\" - DAC\"","v":"Longevity (immediate pay-out annuities, contingent annuities, pension pay-outs) - DAC"},"Schedule III, Line (3) col (2)"]
[null,{"$f":"'Schedule VII (EBS)'!C20&\" - DAC\"","v":"Longevity (deferred pay-out annuities, future contingent annuities, future pension pay-outs) - DAC"},"Schedule III, Line (4) col (2)"]
[null,{"$f":"'Schedule VII (EBS)'!C31&\" - DAC\"","v":"Disability Income: active lives - including waiver of premium and long-term care - DAC"},"Schedule III, Line (5) col (2)"]
[null,{"$f":"'Schedule VII (EBS)'!C37&\" - DAC\"","v":"Disability income: active lives - other accident and sickness - DAC"},"Schedule III, Line (11) col (2)"]
[null,{"$f":"'Schedule VII (EBS)'!C38&\" - DAC\"","v":"Disability income: claims in payment - including waiver of premium and long-term care - DAC"},"Schedule III, Line (12) col (2)"]
[null,{"$f":"'Schedule VII (EBS)'!C39&\" - DAC\"","v":"Disability income: claims in payment - other accident and sickness - DAC"},"Schedule III, Line (13) col (2)"]
[null,{"$f":"'Schedule VII (EBS)'!C40&\" - DAC\"","v":"Group Life - DAC"},"Schedule III, Line (13) col (2)"]
[null,{"$f":"'Schedule VII (EBS)'!C41&\" - DAC\"","v":"Group Disability - DAC"},"Schedule III, Line (13) col (2)"]
[null,{"$f":"'Schedule VII (EBS)'!C42&\" - DAC\"","v":"Group Health - DAC"},"Schedule III, Line (13) col (2)"]
[null,{"$f":"'Schedule VII (EBS)'!C43&\" - DAC\"","v":"Stop Loss - DAC"},"Schedule III, Line (13) col (2)"]
[null,{"$f":"'Schedule VII (EBS)'!C44&\" - DAC\"","v":"Rider (other product riders not included above) - DAC"},"Schedule III, Line (13) col (2)"]

{"sheet":"Crosscheck-Model","index":99,"n_rows":95,"n_cols":4,"rows_kept":95,"cut":false,"hidden":true,"merged":[]}
[{"$f":"'Insurer Information'!C7","v":"Enter Company Name"}]
["Summary of Inputs ($000) - For BMA Use Only"]
[{"$f":"'Insurer Information'!B3","v":"For the Year Ending "}]
[]
[]
[]
[null,"INPUT","STATEMENT SOURCE","VALUE"]
[]
[null,"Reported Surplus","Form 1A, Line (40)",{"$f":"Summary!N80","v":0}]
[null,"Government","Schedule II, Line (1)",{"$f":"'Fixed Income Investments'!D12","v":0}]
[null,"High Investment Grade (AAA & AA)","Schedule II, Line (2)",{"$f":"'Fixed Income Investments'!D13","v":0}]
[null,"Medium Investment Grade (A)","Schedule II, Line (3)",{"$f":"'Fixed Income Investments'!D14","v":0}]
[null,"Low Investment Grade (BBB)","Schedule II, Line (4)",{"$f":"'Fixed Income Investments'!D15","v":0}]
[null,"Non Investment Grade","Schedule II, Line (5)",{"$f":"'Fixed Income Investments'!D16","v":0}]
[null,"Mortgage Backed","Schedule II, Line (6)",{"$f":"'Fixed Income Investments'!D17","v":0}]
[null,"Mutual Funds","Schedule II, Line (7)",{"$f":"'Fixed Income Investments'!D18","v":0}]
[null,"Non Rated","Schedule II, Line (8)",{"$f":"'Fixed Income Investments'!D20","v":0}]
[null,"Mortgage Loans","Form 1A, Line (5c)",{"$f":"'Fixed Income Investments'!D26","v":0}]
[null,"Other Loans","Form 1A, Line (8)"]
[null,"Cash","Form 1A, Line (1)"]
[null,"Non-Affiliated (Quoted)","Form 1A, Line (2c)-i",{"$f":"'Equity Investments'!D11","v":0}]
[null,"Non-Affiliated (Unquoted)","Form 1A, Line (3c)-i",{"$f":"'Equity Investments'!D12","v":0}]
[null,"Mutual Funds","Form 1A, Lines (2c)-iii, (3c)-iii"]
[null,"Non-Affiliated (Quoted)","Form 1A, Line (2c)-ii",{"$f":"'Equity Investments'!D19","v":0}]
[null,"Non-Affiliated (Unquoted)","Form 1A, Line (3c)-ii",{"$f":"'Equity Investments'!D20","v":0}]
[null,"Company-Occupied Less Encumbrances","Form 1A, Line (7a)",{"$f":"'Equity Investments'!D34","v":0}]
[null,"Investments Less Encumbrances","Form 1A, Line (7b)",{"$f":"'Equity Investments'!D35","v":0}]
[null,"Other Investments","Form 1A, Lines (2e), (3e)",{"$f":"'Equity Investments'!D37","v":0}]
[null,"Other Tangible Assets","Form 1A, Lines (13e), (14d)",{"$f":"'Equity Investments'!D38","v":0}]
[null,"Bonds (Quoted Only)","Form 1A, Lines (2a)-ii and (3a)-ii"]
[null,"In Course of Collection","Form 1A, Line (10a)",{"$f":"'Credit Risk'!D11","v":0}]
[null,"Deferred - Not Yet Due","Form 1A, Line (10b)"]
[null,"Receivables from retrocessional contracts  less: Collateralized Balances","Form 1A, Line (10c)",{"$f":"'Credit Risk'!D12","v":0}]
[null,"Foreign Affiliates","Form 1A, Line (11a)"]
[null,"Domestic Affiliates","Form 1A, Line (11b)"]
[null,"Pools & Associations","Form 1A, Line (11c)"]
[null,"All Other Insurers","Form 1A, Line (11d)"]
[null,"Letter of credits","Notes to Form 1A, Line 11"]
[null,"Funds held by Company","Form 1A, Line 34(c)"]
[null,"Funds Held by Ceding Reinsurers","Form 1A, Line (12c)"]
[null,"Accrued Investment Income","Form 1A, Line (9)",{"$f":"'Credit Risk'!D18","v":0}]
[null,"Receivable from Affiliates","Form 1A, Line (4c)",{"$f":"'Credit Risk'!D19","v":0}]
[null,"Foreign Affiliates","Form 1A, Line (17b)-i"]
[null,"Domestic Affiliates","Form 1A, Line (17b)-ii"]
[null,"Pools & Associations","Form 1A, Line (17b)-iii"]
[null,"All Other Insurers","Form 1A, Line (17b)-iv"]
[null,"Premium - Property Catastrophe","Schedule IV, Line (1)"]
[null,"Premium - Property","Schedule IV, Line (2)"]
[null,"Premium - Property Non-Proportional","Schedule IV, Line (3)"]
[null,"Premium - Personal Accident","Schedule IV, Line (4)"]
[null,"Premium - Personal Accident Non-Proportional","Schedule IV, Line (5)"]
[null,"Premium - Aviation","Schedule IV, Line (6)"]
[null,"Premium - Aviation Non-Proportional","Schedule IV, Line (7)"]
[null,"Premium - Credit / Surety","Schedule IV, Line (8)"]
[null,"Premium - Credit / Surety Non-Proportional","Schedule IV, Line (9)"]
[null,"Premium - Energy Offshore / Marine","Schedule IV, Line (10)"]
[null,"Premium - Energy Offshore / Marine Non-Proportional","Schedule IV, Line (11)"]
[null,"Premium - US Casualty","Schedule IV, Line (12)"]
[null,"Premium - US Casualty Non-Proportional","Schedule IV, Line (13)"]
[null,"Premium - US Professional","Schedule IV, Line (14)"]
[null,"Premium - US Professional Non-Proportional","Schedule IV, Line (15)"]
[null,"Premium - US Specialty","Schedule IV, Line (16)"]
[null,"Premium - US Specialty Non-Proportional","Schedule IV, Line (17)"]
[null,"Premium - International Motor","Schedule IV, Line (18)"]
[null,"Premium - International Motor Non-Proportional","Schedule IV, Line (19)"]
[null,"Premium - International Casualty Non-Motor","Schedule IV, Line (20)"]
[null,"Premium - International Casualty Non-Motor Non-Proportional","Schedule IV, Line (21)"]
[null,"Premium - Retro Property","Schedule IV, Line (22)"]
[null,"Premium - Structured / Finite Reinsurance","Schedule IV, Line (23)"]
[null,null,"Schedule III, Line (1)"]
[null,null,"Schedule III, Line (2)"]
[null,null,"Schedule III, Line (3)"]
[null,null,"Schedule III, Line (4)"]
[null,null,"Schedule III, Line (5)"]
[null,null,"Schedule III, Line (6)"]
[null,null,"Schedule III, Line (7)"]
[null,null,"Schedule III, Line (8)"]
[null,null,"Schedule III, Line (9)"]
[null,null,"Schedule III, Line (10)"]
[null,null,"Schedule III, Line (11)"]
[null,null,"Schedule III, Line (12)"]
[null,null,"Schedule III, Line (13)"]
[null,null,"Schedule III, Line (14)"]
[null,null,"Schedule III, Line (15)"]
[null,null,"Schedule III, Line (16)"]
[null,null,"Schedule III, Line (17)"]
[null,null,"Schedule III, Line (18)"]
[null,null,"Schedule III, Line (19)"]
[null,null,"Schedule III, Line (20)"]
[null,null,"Schedule III, Line (21)"]
[null,null,"Schedule III, Line (22)"]
[null,null,"Schedule III, Line (23)"]
[null,"Gross Probable Maximum Loss","Schedule V, Line (b)"]
[null,"Net Probable Maximum Loss","Schedule V, Line (c)"]
[null,"Average Annual Loss (AAL) Excluding Property Catastrophe","Schedule V, Line (d)"]

{"sheet":"Crosscheck - Op Risk","index":100,"n_rows":153,"n_cols":4,"rows_kept":153,"cut":false,"hidden":true,"merged":[]}
["Sample Company"]
["Summary of Operational Risk - For BMA Use Only"]
["For the Year Ending "]
[]
[]
[]
[null,"INPUT","STATEMENT SOURCE","SCORE"]
[]
[null,"Corporate Governance - 1","Corp Gov",{"$f":"'Corp Gov'!C11","v":0}]
[null,"Corporate Governance - 2","Corp Gov",{"$f":"'Corp Gov'!C13","v":0}]
[null,"Corporate Governance - 3","Corp Gov",{"$f":"'Corp Gov'!C14","v":0}]
[null,"Corporate Governance - 4","Corp Gov",{"$f":"'Corp Gov'!C15","v":0}]
[null,"Corporate Governance - 5","Corp Gov",{"$f":"'Corp Gov'!C16","v":0}]
[null,"Corporate Governance - 6","Corp Gov",{"$f":"'Corp Gov'!C17","v":0}]
[null,"Risk Management - 1","Risk Man",{"$f":"'Risk Man'!C11","v":0}]
[null,"Risk Management - 2","Risk Man",{"$f":"'Risk Man'!C12","v":0}]
[null,"Risk Management - 3","Risk Man",{"$f":"'Risk Man'!C13","v":0}]
[null,"Risk Management - 4","Risk Man",{"$f":"'Risk Man'!C14","v":0}]
[null,"Risk Management - 5","Risk Man",{"$f":"'Risk Man'!C15","v":0}]
[null,"Risk Management - 6","Risk Man",{"$f":"'Risk Man'!C16","v":0}]
[null,"Risk Management - 7","Risk Man",{"$f":"'Risk Man'!C17","v":0}]
[null,"Risk Identification"]
[null,"Fraud - Stage 1","Identification",{"$f":"Identification!E15","v":0}]
[null,"Fraud - Stage 2","Identification",{"$f":"Identification!E16","v":0}]
[null,"Fraud - Stage 3","Identification",{"$f":"Identification!E17","v":0}]
[null,"Fraud - Stage 4","Identification",{"$f":"Identification!E18","v":0}]
[null,"Human Resources - Stage 1","Identification",{"$f":"Identification!F15","v":0}]
[null,"Human Resources - Stage 2","Identification",{"$f":"Identification!F16","v":0}]
[null,"Human Resources - Stage 3","Identification",{"$f":"Identification!F17","v":0}]
[null,"Human Resources - Stage 4","Identification",{"$f":"Identification!F18","v":0}]
[null,"Outsourcing - Stage 1","Identification",{"$f":"Identification!G15","v":0}]
[null,"Outsourcing - Stage 2","Identification",{"$f":"Identification!G16","v":0}]
[null,"Outsourcing - Stage 3","Identification",{"$f":"Identification!G17","v":0}]
[null,"Outsourcing - Stage 4","Identification",{"$f":"Identification!G18","v":0}]
[null,"Distribution Channels - Stage 1","Identification",{"$f":"Identification!H15","v":0}]
[null,"Distribution Channels - Stage 2","Identification",{"$f":"Identification!H16","v":0}]
[null,"Distribution Channels - Stage 3","Identification",{"$f":"Identification!H17","v":0}]
[null,"Distribution Channels - Stage 4","Identification",{"$f":"Identification!H18","v":0}]
[null,"Business Processes - Stage 1","Identification",{"$f":"Identification!I15","v":0}]
[null,"Business Processes - Stage 2","Identification",{"$f":"Identification!I16","v":0}]
[null,"Business Processes - Stage 3","Identification",{"$f":"Identification!I17","v":0}]
[null,"Business Processes - Stage 4","Identification",{"$f":"Identification!I18","v":0}]
[null,"Business Continuity - Stage 1","Identification",{"$f":"Identification!J15","v":0}]
[null,"Business Continuity - Stage 2","Identification",{"$f":"Identification!J16","v":0}]
[null,"Business Continuity - Stage 3","Identification",{"$f":"Identification!J17","v":0}]
[null,"Business Continuity - Stage 4","Identification",{"$f":"Identification!J18","v":0}]
[null,"Information Systems - Stage 1","Identification",{"$f":"Identification!K15","v":0}]
[null,"Information Systems - Stage 2","Identification",{"$f":"Identification!K16","v":0}]
[null,"Information Systems - Stage 3","Identification",{"$f":"Identification!K17","v":0}]
[null,"Information Systems - Stage 4","Identification",{"$f":"Identification!K18","v":0}]
[null,"Compliance - Stage 1","Identification",{"$f":"Identification!L15","v":0}]
[null,"Compliance - Stage 2","Identification",{"$f":"Identification!L16","v":0}]
[null,"Compliance - Stage 3","Identification",{"$f":"Identification!L17","v":0}]
[null,"Compliance - Stage 4","Identification",{"$f":"Identification!L18","v":0}]
[null,"Risk Measurement"]
[null,"Fraud - Stage 1","Measurement",{"$f":"Measurement!E14","v":"Fraud"}]
[null,"Fraud - Stage 2","Measurement",{"$f":"Measurement!E15","v":0}]
[null,"Fraud - Stage 3","Measurement",{"$f":"Measurement!E16","v":0}]
[null,"Fraud - Stage 4","Measurement",{"$f":"Measurement!E17","v":0}]
[null,"Human Resources - Stage 1","Measurement",{"$f":"Measurement!F14","v":"Human Resources"}]
[null,"Human Resources - Stage 2","Measurement",{"$f":"Measurement!F15","v":0}]
[null,"Human Resources - Stage 3","Measurement",{"$f":"Measurement!F16","v":0}]
[null,"Human Resources - Stage 4","Measurement",{"$f":"Measurement!F17","v":0}]
[null,"Outsourcing - Stage 1","Measurement",{"$f":"Measurement!G14","v":"Outsourcing"}]
[null,"Outsourcing - Stage 2","Measurement",{"$f":"Measurement!G15","v":0}]
[null,"Outsourcing - Stage 3","Measurement",{"$f":"Measurement!G16","v":0}]
[null,"Outsourcing - Stage 4","Measurement",{"$f":"Measurement!G17","v":0}]
[null,"Distribution Channels - Stage 1","Measurement",{"$f":"Measurement!H14","v":"Distribution Channels"}]
[null,"Distribution Channels - Stage 2","Measurement",{"$f":"Measurement!H15","v":0}]
[null,"Distribution Channels - Stage 3","Measurement",{"$f":"Measurement!H16","v":0}]
[null,"Distribution Channels - Stage 4","Measurement",{"$f":"Measurement!H17","v":0}]
[null,"Business Processes - Stage 1","Measurement",{"$f":"Measurement!I14","v":"Business Processes"}]
[null,"Business Processes - Stage 2","Measurement",{"$f":"Measurement!I15","v":0}]
[null,"Business Processes - Stage 3","Measurement",{"$f":"Measurement!I16","v":0}]
[null,"Business Processes - Stage 4","Measurement",{"$f":"Measurement!I17","v":0}]
[null,"Business Continuity - Stage 1","Measurement",{"$f":"Measurement!J14","v":"Business Continuity"}]
[null,"Business Continuity - Stage 2","Measurement",{"$f":"Measurement!J15","v":0}]
[null,"Business Continuity - Stage 3","Measurement",{"$f":"Measurement!J16","v":0}]
[null,"Business Continuity - Stage 4","Measurement",{"$f":"Measurement!J17","v":0}]
[null,"Information Systems - Stage 1","Measurement",{"$f":"Measurement!K14","v":"Information Systems"}]
[null,"Information Systems - Stage 2","Measurement",{"$f":"Measurement!K15","v":0}]
[null,"Information Systems - Stage 3","Measurement",{"$f":"Measurement!K16","v":0}]
[null,"Information Systems - Stage 4","Measurement",{"$f":"Measurement!K17","v":0}]
[null,"Compliance - Stage 1","Measurement",{"$f":"Measurement!L14","v":"Compliance"}]
[null,"Compliance - Stage 2","Measurement",{"$f":"Measurement!L15","v":0}]
[null,"Compliance - Stage 3","Measurement",{"$f":"Measurement!L16","v":0}]
[null,"Compliance - Stage 4","Measurement",{"$f":"Measurement!L17","v":0}]
[null,"Risk Response"]
[null,"Fraud - Stage 1","Response",{"$f":"Response!E15","v":0}]
[null,"Fraud - Stage 2","Response",{"$f":"Response!E16","v":0}]
[null,"Fraud - Stage 3","Response",{"$f":"Response!E17","v":0}]
[null,"Fraud - Stage 4","Response",{"$f":"Response!E18","v":0}]
[null,"Human Resources - Stage 1","Response",{"$f":"Response!F15","v":0}]
[null,"Human Resources - Stage 2","Response",{"$f":"Response!F16","v":0}]
[null,"Human Resources - Stage 3","Response",{"$f":"Response!F17","v":0}]
[null,"Human Resources - Stage 4","Response",{"$f":"Response!F18","v":0}]
[null,"Outsourcing - Stage 1","Response",{"$f":"Response!G15","v":0}]
[null,"Outsourcing - Stage 2","Response",{"$f":"Response!G16","v":0}]
[null,"Outsourcing - Stage 3","Response",{"$f":"Response!G17","v":0}]
[null,"Outsourcing - Stage 4","Response",{"$f":"Response!G18","v":0}]
[null,"Distribution Channels - Stage 1","Response",{"$f":"Response!H15","v":0}]
[null,"Distribution Channels - Stage 2","Response",{"$f":"Response!H16","v":0}]
[null,"Distribution Channels - Stage 3","Response",{"$f":"Response!H17","v":0}]
[null,"Distribution Channels - Stage 4","Response",{"$f":"Response!H18","v":0}]
[null,"Business Processes - Stage 1","Response",{"$f":"Response!I15","v":0}]
[null,"Business Processes - Stage 2","Response",{"$f":"Response!I16","v":0}]
[null,"Business Processes - Stage 3","Response",{"$f":"Response!I17","v":0}]
[null,"Business Processes - Stage 4","Response",{"$f":"Response!I18","v":0}]
[null,"Business Continuity - Stage 1","Response",{"$f":"Response!J15","v":0}]
[null,"Business Continuity - Stage 2","Response",{"$f":"Response!J16","v":0}]
[null,"Business Continuity - Stage 3","Response",{"$f":"Response!J17","v":0}]
[null,"Business Continuity - Stage 4","Response",{"$f":"Response!J18","v":0}]
[null,"Information Systems - Stage 1","Response",{"$f":"Response!K15","v":0}]
[null,"Information Systems - Stage 2","Response",{"$f":"Response!K16","v":0}]
[null,"Information Systems - Stage 3","Response",{"$f":"Response!K17","v":0}]
[null,"Information Systems - Stage 4","Response",{"$f":"Response!K18","v":0}]
[null,"Compliance - Stage 1","Response",{"$f":"Response!L15","v":0}]
[null,"Compliance - Stage 2","Response",{"$f":"Response!L16","v":0}]
[null,"Compliance - Stage 3","Response",{"$f":"Response!L17","v":0}]
[null,"Compliance - Stage 4","Response",{"$f":"Response!L18","v":0}]
[null,"Risk Monitoring & Reporting"]
[null,"Fraud - Stage 1","Monitoring & Reporting",{"$f":"'Monitoring & Reporting'!E15","v":0}]
[null,"Fraud - Stage 2","Monitoring & Reporting",{"$f":"'Monitoring & Reporting'!E16","v":0}]
[null,"Fraud - Stage 3","Monitoring & Reporting",{"$f":"'Monitoring & Reporting'!E17","v":0}]
[null,"Fraud - Stage 4","Monitoring & Reporting",{"$f":"'Monitoring & Reporting'!E18","v":0}]
[null,"Human Resources - Stage 1","Monitoring & Reporting",{"$f":"'Monitoring & Reporting'!F15","v":0}]
[null,"Human Resources - Stage 2","Monitoring & Reporting",{"$f":"'Monitoring & Reporting'!F16","v":0}]
[null,"Human Resources - Stage 3","Monitoring & Reporting",{"$f":"'Monitoring & Reporting'!F17","v":0}]
[null,"Human Resources - Stage 4","Monitoring & Reporting",{"$f":"'Monitoring & Reporting'!F18","v":0}]
[null,"Outsourcing - Stage 1","Monitoring & Reporting",{"$f":"'Monitoring & Reporting'!G15","v":0}]
[null,"Outsourcing - Stage 2","Monitoring & Reporting",{"$f":"'Monitoring & Reporting'!G16","v":0}]
[null,"Outsourcing - Stage 3","Monitoring & Reporting",{"$f":"'Monitoring & Reporting'!G17","v":0}]
[null,"Outsourcing - Stage 4","Monitoring & Reporting",{"$f":"'Monitoring & Reporting'!G18","v":0}]
[null,"Distribution Channels - Stage 1","Monitoring & Reporting",{"$f":"'Monitoring & Reporting'!H15","v":0}]
[null,"Distribution Channels - Stage 2","Monitoring & Reporting",{"$f":"'Monitoring & Reporting'!H16","v":0}]
[null,"Distribution Channels - Stage 3","Monitoring & Reporting",{"$f":"'Monitoring & Reporting'!H17","v":0}]
[null,"Distribution Channels - Stage 4","Monitoring & Reporting",{"$f":"'Monitoring & Reporting'!H18","v":0}]
[null,"Business Processes - Stage 1","Monitoring & Reporting",{"$f":"'Monitoring & Reporting'!I15","v":0}]
[null,"Business Processes - Stage 2","Monitoring & Reporting",{"$f":"'Monitoring & Reporting'!I16","v":0}]
[null,"Business Processes - Stage 3","Monitoring & Reporting",{"$f":"'Monitoring & Reporting'!I17","v":0}]
[null,"Business Processes - Stage 4","Monitoring & Reporting",{"$f":"'Monitoring & Reporting'!I18","v":0}]
[null,"Business Continuity - Stage 1","Monitoring & Reporting",{"$f":"'Monitoring & Reporting'!J15","v":0}]
[null,"Business Continuity - Stage 2","Monitoring & Reporting",{"$f":"'Monitoring & Reporting'!J16","v":0}]
[null,"Business Continuity - Stage 3","Monitoring & Reporting",{"$f":"'Monitoring & Reporting'!J17","v":0}]
[null,"Business Continuity - Stage 4","Monitoring & Reporting",{"$f":"'Monitoring & Reporting'!J18","v":0}]
[null,"Information Systems - Stage 1","Monitoring & Reporting",{"$f":"'Monitoring & Reporting'!K15","v":0}]
[null,"Information Systems - Stage 2","Monitoring & Reporting",{"$f":"'Monitoring & Reporting'!K16","v":0}]
[null,"Information Systems - Stage 3","Monitoring & Reporting",{"$f":"'Monitoring & Reporting'!K17","v":0}]
[null,"Information Systems - Stage 4","Monitoring & Reporting",{"$f":"'Monitoring & Reporting'!K18","v":0}]
[null,"Compliance - Stage 1","Monitoring & Reporting",{"$f":"'Monitoring & Reporting'!L15","v":0}]
[null,"Compliance - Stage 2","Monitoring & Reporting",{"$f":"'Monitoring & Reporting'!L16","v":0}]
[null,"Compliance - Stage 3","Monitoring & Reporting",{"$f":"'Monitoring & Reporting'!L17","v":0}]
[null,"Compliance - Stage 4","Monitoring & Reporting",{"$f":"'Monitoring & Reporting'!L18","v":0}]

{"sheet":"prt_res","index":101,"n_rows":54,"n_cols":4,"rows_kept":54,"cut":false,"hidden":true,"merged":[]}
[true,"Company_Information_Print",null,true]
[true,"Summary_Print",null,false]
[true,"Fixed_Income_Print"]
[true,"Equity_Print"]
[true,"Interest_Rate_Print"]
[true,"Credit_Print"]
[true,"Premium_Print"]
[true,"Reserve_Print"]
[true,"Cat_Print"]
[]
[]
[]
[]
[]
[]
[]
[]
[]
[]
[]
[]
[]
[]
[]
[]
[]
[]
[]
[]
[]
[]
[]
[]
[]
[]
[]
[]
[]
[]
[]
[]
[]
[]
[]
[]
[]
[]
[]
[]
[]
[]
[]
[]
[null,"a"]

{"sheet":"CSP (Revised)","index":102,"n_rows":764,"n_cols":24,"rows_kept":764,"cut":false,"hidden":false,"merged":[[523,6,523,7],[0,0,0,6],[2,0,2,2],[138,6,139,6],[202,3,203,4],[501,2,503,2],[501,3,503,3],[501,4,503,4],[501,5,503,5],[311,3,311,4],[311,5,311,6],[2,8,3,11],[5,1,5,11],[522,6,522,7],[3,2,3,3],[102,3,102,6],[103,3,103,4],[103,5,103,6],[116,3,116,6],[117,3,117,4],[117,5,117,6],[202,5,204,5],[137,3,137,5],[138,4,138,5],[310,2,310,6],[611,1,612,1],[632,2,633,2],[632,6,633,6],[632,7,633,7],[528,6,528,7],[529,6,529,7],[544,2,546,6],[563,1,563,7],[564,2,565,6],[582,1,582,7],[632,8,633,8],[632,9,633,9],[632,10,633,10],[632,11,633,11],[583,2,584,6],[603,6,603,7]]}
["COMPANY SPECIFIC PARAMETERS (REVISED)",null,null,null,null,null,null,null,null,null,null,{"$f":"HYPERLINK(\"#'Index'!A1\",\"Return to Index\")","v":"Return to Index"},null,null,null,null,null,null,null,null,null,null,null,{"$f":"IF(C4=\"\",\"\",TEXT(DATE(YEAR(C4+1)-1,MONTH(C4+1),DAY(C4+1)),\"mm/dd/yyyy\"))","v":"01/01/2019"}]
[null,null,null,null,null,null,null,null,null,null,null,null,null,null,null,"",null,null,null,null,null,null,null,{"$f":"IF(C4=\"\",\"\",TEXT(C4,\"mm/dd/yyyy\"))","v":"12/31/2019"}]
[{"$f":"+'Insurer Information'!C7","v":"Enter Company Name"},null,null,null,null,null,null,null,{"$f":"HYPERLINK(\"#'Attachments'!A184\",\"Details of User Capital Factor to be included in the attachments section 9.\")","v":"Details of User Capital Factor to be included in the attachments section 9."}]
["For the Year Ending ",null,{"$f":"+'Insurer Information'!C3","v":"2019-12-31"},null,null,null,null,null,null,null,null,null,null,null,null,""]
[]
[null,"To be completed only with prior approval from the Bermuda Monetary Authority",null,null,null,null,null,null,null,null,null,null,null,{"$f":"YEAR('Insurer Information'!C3)","v":2019}]
[]
[null,null,null,null,null,null,null,"STANDARD","STANDARD",null,"USER","USER"]
[null,"TYPE OF ",null,null,null,null,"ASSET","CAPITAL","REQUIRED",null,"CAPITAL","REQUIRED"]
[null,"FIXED INCOME INVESTMENTS",null,null,null,null,"VALUE","FACTOR","CAPITAL",null,"FACTOR","CAPITAL"]
[]
[null,"(a) Corporate & Sovereign Bonds",null,null,null,null,"(1) ","(2)","(1) x (2)",null,"(3)","(1) x (3)"]
[]
[null,"BSCR Rating"]
[null,0,null,null,null,null,{"$f":"'Schedule IIB (EBS)'!D13+'Schedule IIC (EBS)'!D13+(MAX(0,'Schedule IID (EBS)'!D13-'Schedule IID (EBS)'!F13))+'Schedule IIE (EBS)'!D13+'Schedule IIF (EBS)'!D13","v":0},{"$f":"'Fixed Income Investments (Rev.)'!H12","v":0},{"$f":"IF(G15<0,0,G15*H15)","v":0},null,null,{"$f":"MAX(0,IF(K15=\"\",H15*G15,G15*K15))","v":0}]
[null,1,null,null,null,null,{"$f":"'Schedule IIB (EBS)'!D14+'Schedule IIC (EBS)'!D14+(MAX(0,'Schedule IID (EBS)'!D14-'Schedule IID (EBS)'!F14))+'Schedule IIE (EBS)'!D14+'Schedule IIF (EBS)'!D14","v":0},{"$f":"'Fixed Income Investments (Rev.)'!H13","v":4.0000000000000001E-3},0,null,null,{"$f":"MAX(0,IF(K16=\"\",H16*G16,G16*K16))","v":0}]
[null,2,null,null,null,null,{"$f":"'Schedule IIB (EBS)'!D15+'Schedule IIC (EBS)'!D15+(MAX(0,'Schedule IID (EBS)'!D15-'Schedule IID (EBS)'!F15))+'Schedule IIE (EBS)'!D15+'Schedule IIF (EBS)'!D15","v":0},{"$f":"'Fixed Income Investments (Rev.)'!H14","v":8.0000000000000002E-3},0,null,null,0]
[null,3,null,null,null,null,{"$f":"'Schedule IIB (EBS)'!D16+'Schedule IIC (EBS)'!D16+(MAX(0,'Schedule IID (EBS)'!D16-'Schedule IID (EBS)'!F16))+'Schedule IIE (EBS)'!D16+'Schedule IIF (EBS)'!D16","v":0},{"$f":"'Fixed Income Investments (Rev.)'!H15","v":1.4999999999999999E-2},0,null,null,0]
[null,4,null,null,null,null,{"$f":"'Schedule IIB (EBS)'!D17+'Schedule IIC (EBS)'!D17+(MAX(0,'Schedule IID (EBS)'!D17-'Schedule IID (EBS)'!F17))+'Schedule IIE (EBS)'!D17+'Schedule IIF (EBS)'!D17","v":0},{"$f":"'Fixed Income Investments (Rev.)'!H16","v":0.03},0,null,null,0]
[null,5,null,null,null,null,{"$f":"'Schedule IIB (EBS)'!D18+'Schedule IIC (EBS)'!D18+(MAX(0,'Schedule IID (EBS)'!D18-'Schedule IID (EBS)'!F18))+'Schedule IIE (EBS)'!D18+'Schedule IIF (EBS)'!D18","v":0},{"$f":"'Fixed Income Investments (Rev.)'!H17","v":0.08},0,null,null,0]
[null,6,null,null,null,null,{"$f":"'Schedule IIB (EBS)'!D19+'Schedule IIC (EBS)'!D19+(MAX(0,'Schedule IID (EBS)'!D19-'Schedule IID (EBS)'!F19))+'Schedule IIE (EBS)'!D19+'Schedule IIF (EBS)'!D19","v":0},{"$f":"'Fixed Income Investments (Rev.)'!H18","v":0.15},0,null,null,0]
[null,7,null,null,null,null,{"$f":"'Schedule IIB (EBS)'!D20+'Schedule IIC (EBS)'!D20+(MAX(0,'Schedule IID (EBS)'!D20-'Schedule IID (EBS)'!F20))+'Schedule IIE (EBS)'!D20+'Schedule IIF (EBS)'!D20","v":0},{"$f":"'Fixed Income Investments (Rev.)'!H19","v":0.26300000000000001},0,null,null,0]
[null,8,null,null,null,null,{"$f":"'Schedule IIB (EBS)'!D21+'Schedule IIC (EBS)'!D21+(MAX(0,'Schedule IID (EBS)'!D21-'Schedule IID (EBS)'!F21))+'Schedule IIE (EBS)'!D21+'Schedule IIF (EBS)'!D21","v":0},{"$f":"'Fixed Income Investments (Rev.)'!H20","v":0.35},0,null,null,0]
[]
[null,"(a)  SUBTOTAL -  CORPORATE BONDS",null,null,null,null,{"$f":"SUM(G15:G24)","v":0},null,{"$f":"IF(SUM(I15:I23)>=0,SUM(I15:I23),0)","v":0},null,null,{"$f":"IF(SUM(L15:L23)>=0,SUM(L15:L23),0)","v":0}]
[]
[null,"(b) Residential Mortgage-Backed Securities"]
[]
[null,"BSCR Rating"]
[null,1,null,null,null,null,{"$f":"'Schedule IIB (EBS)'!H14+'Schedule IIC (EBS)'!H14+(MAX(0,'Schedule IID (EBS)'!H14-'Schedule IID (EBS)'!J14))+'Schedule IIE (EBS)'!H14+'Schedule IIF (EBS)'!H14","v":0},{"$f":"'Fixed Income Investments (Rev.)'!H27","v":6.0000000000000001E-3},{"$f":"IF(G30<0,0,G30*H30)","v":0},null,null,{"$f":"MAX(0,IF(K30=\"\",H30*G30,G30*K30))","v":0}]
[null,2,null,null,null,null,{"$f":"'Schedule IIB (EBS)'!H15+'Schedule IIC (EBS)'!H15+(MAX(0,'Schedule IID (EBS)'!H15-'Schedule IID (EBS)'!J15))+'Schedule IIE (EBS)'!H15+'Schedule IIF (EBS)'!H15","v":0},{"$f":"'Fixed Income Investments (Rev.)'!H28","v":1.2E-2},0,null,null,0]
[null,3,null,null,null,null,{"$f":"'Schedule IIB (EBS)'!H16+'Schedule IIC (EBS)'!H16+(MAX(0,'Schedule IID (EBS)'!H16-'Schedule IID (EBS)'!J16))+'Schedule IIE (EBS)'!H16+'Schedule IIF (EBS)'!H16","v":0},{"$f":"'Fixed Income Investments (Rev.)'!H29","v":0.02},0,null,null,0]
[null,4,null,null,null,null,{"$f":"'Schedule IIB (EBS)'!H17+'Schedule IIC (EBS)'!H17+(MAX(0,'Schedule IID (EBS)'!H17-'Schedule IID (EBS)'!J17))+'Schedule IIE (EBS)'!H17+'Schedule IIF (EBS)'!H17","v":0},{"$f":"'Fixed Income Investments (Rev.)'!H30","v":0.04},0,null,null,0]
[null,5,null,null,null,null,{"$f":"'Schedule IIB (EBS)'!H18+'Schedule IIC (EBS)'!H18+(MAX(0,'Schedule IID (EBS)'!H18-'Schedule IID (EBS)'!J18))+'Schedule IIE (EBS)'!H18+'Schedule IIF (EBS)'!H18","v":0},{"$f":"'Fixed Income Investments (Rev.)'!H31","v":0.11},0,null,null,0]
[null,6,null,null,null,null,{"$f":"'Schedule IIB (EBS)'!H19+'Schedule IIC (EBS)'!H19+(MAX(0,'Schedule IID (EBS)'!H19-'Schedule IID (EBS)'!J19))+'Schedule IIE (EBS)'!H19+'Schedule IIF (EBS)'!H19","v":0},{"$f":"'Fixed Income Investments (Rev.)'!H32","v":0.25},0,null,null,0]
[null,7,null,null,null,null,{"$f":"'Schedule IIB (EBS)'!H20+'Schedule IIC (EBS)'!H20+(MAX(0,'Schedule IID (EBS)'!H20-'Schedule IID (EBS)'!J20))+'Schedule IIE (EBS)'!H20+'Schedule IIF (EBS)'!H20","v":0},{"$f":"'Fixed Income Investments (Rev.)'!H33","v":0.35},0,null,null,0]
[null,8,null,null,null,null,{"$f":"'Schedule IIB (EBS)'!H21+'Schedule IIC (EBS)'!H21+(MAX(0,'Schedule IID (EBS)'!H21-'Schedule IID (EBS)'!J21))+'Schedule IIE (EBS)'!H21+'Schedule IIF (EBS)'!H21","v":0},{"$f":"'Fixed Income Investments (Rev.)'!H34","v":0.35},0,null,null,0]
[]
[null,"(b)  SUBTOTAL - RESIDENTIAL MORTGAGE-BACKED SECURITIES",null,null,null,null,{"$f":"SUM(G29:G38)","v":0},null,{"$f":"IF(SUM(I29:I37)>=0,SUM(I29:I37),0)","v":0},null,null,{"$f":"IF(SUM(L29:L37)>=0,SUM(L29:L37),0)","v":0}]
[]
[null,"(c) Commercial Mortgage-Backed Securities / Asset-Backed Securities"]
[]
[null,"BSCR Rating"]
[null,1,null,null,null,null,{"$f":"'Schedule IIB (EBS)'!L14+'Schedule IIC (EBS)'!L14+(MAX(0,'Schedule IID (EBS)'!L14-'Schedule IID (EBS)'!N14))+'Schedule IIE (EBS)'!L14+'Schedule IIF (EBS)'!L14","v":0},{"$f":"'Fixed Income Investments (Rev.)'!H41","v":5.0000000000000001E-3},{"$f":"IF(G44<0,0,G44*H44)","v":0},null,null,{"$f":"MAX(0,IF(K44=\"\",H44*G44,G44*K44))","v":0}]
[null,2,null,null,null,null,{"$f":"'Schedule IIB (EBS)'!L15+'Schedule IIC (EBS)'!L15+(MAX(0,'Schedule IID (EBS)'!L15-'Schedule IID (EBS)'!N15))+'Schedule IIE (EBS)'!L15+'Schedule IIF (EBS)'!L15","v":0},{"$f":"'Fixed Income Investments (Rev.)'!H42","v":0.01},0,null,null,0]
[null,3,null,null,null,null,{"$f":"'Schedule IIB (EBS)'!L16+'Schedule IIC (EBS)'!L16+(MAX(0,'Schedule IID (EBS)'!L16-'Schedule IID (EBS)'!N16))+'Schedule IIE (EBS)'!L16+'Schedule IIF (EBS)'!L16","v":0},{"$f":"'Fixed Income Investments (Rev.)'!H43","v":1.7999999999999999E-2},0,null,null,0]
[null,4,null,null,null,null,{"$f":"'Schedule IIB (EBS)'!L17+'Schedule IIC (EBS)'!L17+(MAX(0,'Schedule IID (EBS)'!L17-'Schedule IID (EBS)'!N17))+'Schedule IIE (EBS)'!L17+'Schedule IIF (EBS)'!L17","v":0},{"$f":"'Fixed Income Investments (Rev.)'!H44","v":3.5000000000000003E-2},0,null,null,0]
[null,5,null,null,null,null,{"$f":"'Schedule IIB (EBS)'!L18+'Schedule IIC (EBS)'!L18+(MAX(0,'Schedule IID (EBS)'!L18-'Schedule IID (EBS)'!N18))+'Schedule IIE (EBS)'!L18+'Schedule IIF (EBS)'!L18","v":0},{"$f":"'Fixed Income Investments (Rev.)'!H45","v":0.1},0,null,null,0]
[null,6,null,null,null,null,{"$f":"'Schedule IIB (EBS)'!L19+'Schedule IIC (EBS)'!L19+(MAX(0,'Schedule IID (EBS)'!L19-'Schedule IID (EBS)'!N19))+'Schedule IIE (EBS)'!L19+'Schedule IIF (EBS)'!L19","v":0},{"$f":"'Fixed Income Investments (Rev.)'!H46","v":0.2},0,null,null,0]
[null,7,null,null,null,null,{"$f":"'Schedule IIB (EBS)'!L20+'Schedule IIC (EBS)'!L20+(MAX(0,'Schedule IID (EBS)'!L20-'Schedule IID (EBS)'!N20))+'Schedule IIE (EBS)'!L20+'Schedule IIF (EBS)'!L20","v":0},{"$f":"'Fixed Income Investments (Rev.)'!H47","v":0.3},0,null,null,0]
[null,8,null,null,null,null,{"$f":"'Schedule IIB (EBS)'!L21+'Schedule IIC (EBS)'!L21+(MAX(0,'Schedule IID (EBS)'!L21-'Schedule IID (EBS)'!N21))+'Schedule IIE (EBS)'!L21+'Schedule IIF (EBS)'!L21","v":0},{"$f":"'Fixed Income Investments (Rev.)'!H48","v":0.35},0,null,null,0]
[]
[null,"(c)  SUBTOTAL - COMMERCIAL MORTGAGE-BACKED SECURITIES / ASSET-BACKED SECURITIES",null,null,null,null,{"$f":"SUM(G43:G52)","v":0},null,{"$f":"IF(SUM(I43:I51)>=0,SUM(I43:I51),0)","v":0},null,null,{"$f":"IF(SUM(L43:L51)>=0,SUM(L43:L51),0)","v":0}]
[]
[null,"(d) Bond Mutual Funds"]
[]
[null,"BSCR Rating"]
[null,0,null,null,null,null,{"$f":"'Schedule IIB (EBS)'!P13+'Schedule IIC (EBS)'!P13+(MAX(0,'Schedule IID (EBS)'!P13-'Schedule IID (EBS)'!R13))+'Schedule IIE (EBS)'!P13+'Schedule IIF (EBS)'!P13","v":0},{"$f":"'Fixed Income Investments (Rev.)'!H56","v":0},{"$f":"IF(G58<0,0,G58*H58)","v":0},null,null,{"$f":"MAX(0,IF(K58=\"\",H58*G58,G58*K58))","v":0}]
[null,1,null,null,null,null,{"$f":"'Schedule IIB (EBS)'!P14+'Schedule IIC (EBS)'!P14+(MAX(0,'Schedule IID (EBS)'!P14-'Schedule IID (EBS)'!R14))+'Schedule IIE (EBS)'!P14+'Schedule IIF (EBS)'!P14","v":0},{"$f":"'Fixed Income Investments (Rev.)'!H57","v":4.0000000000000001E-3},0,null,null,0]
[null,2,null,null,null,null,{"$f":"'Schedule IIB (EBS)'!P15+'Schedule IIC (EBS)'!P15+(MAX(0,'Schedule IID (EBS)'!P15-'Schedule IID (EBS)'!R15))+'Schedule IIE (EBS)'!P15+'Schedule IIF (EBS)'!P15","v":0},{"$f":"'Fixed Income Investments (Rev.)'!H58","v":8.0000000000000002E-3},0,null,null,0]
[null,3,null,null,null,null,{"$f":"'Schedule IIB (EBS)'!P16+'Schedule IIC (EBS)'!P16+(MAX(0,'Schedule IID (EBS)'!P16-'Schedule IID (EBS)'!R16))+'Schedule IIE (EBS)'!P16+'Schedule IIF (EBS)'!P16","v":0},{"$f":"'Fixed Income Investments (Rev.)'!H59","v":1.4999999999999999E-2},0,null,null,0]
[null,4,null,null,null,null,{"$f":"'Schedule IIB (EBS)'!P17+'Schedule IIC (EBS)'!P17+(MAX(0,'Schedule IID (EBS)'!P17-'Schedule IID (EBS)'!R17))+'Schedule IIE (EBS)'!P17+'Schedule IIF (EBS)'!P17","v":0},{"$f":"'Fixed Income Investments (Rev.)'!H60","v":0.03},0,null,null,0]
[null,5,null,null,null,null,{"$f":"'Schedule IIB (EBS)'!P18+'Schedule IIC (EBS)'!P18+(MAX(0,'Schedule IID (EBS)'!P18-'Schedule IID (EBS)'!R18))+'Schedule IIE (EBS)'!P18+'Schedule IIF (EBS)'!P18","v":0},{"$f":"'Fixed Income Investments (Rev.)'!H61","v":0.08},0,null,null,0]
[null,6,null,null,null,null,{"$f":"'Schedule IIB (EBS)'!P19+'Schedule IIC (EBS)'!P19+(MAX(0,'Schedule IID (EBS)'!P19-'Schedule IID (EBS)'!R19))+'Schedule IIE (EBS)'!P19+'Schedule IIF (EBS)'!P19","v":0},{"$f":"'Fixed Income Investments (Rev.)'!H62","v":0.15},0,null,null,0]
[null,7,null,null,null,null,{"$f":"'Schedule IIB (EBS)'!P20+'Schedule IIC (EBS)'!P20+(MAX(0,'Schedule IID (EBS)'!P20-'Schedule IID (EBS)'!R20))+'Schedule IIE (EBS)'!P20+'Schedule IIF (EBS)'!P20","v":0},{"$f":"'Fixed Income Investments (Rev.)'!H63","v":0.26300000000000001},0,null,null,0]
[null,8,null,null,null,null,{"$f":"'Schedule IIB (EBS)'!P21+'Schedule IIC (EBS)'!P21+(MAX(0,'Schedule IID (EBS)'!P21-'Schedule IID (EBS)'!R21))+'Schedule IIE (EBS)'!P21+'Schedule IIF (EBS)'!P21","v":0},{"$f":"'Fixed Income Investments (Rev.)'!H64","v":0.35},0,null,null,0]
[]
[null,"(d)  SUBTOTAL - BOND MUTUAL FUNDS",null,null,null,null,{"$f":"SUM(G58:G67)","v":0},null,{"$f":"IF(SUM(I58:I66)>=0,SUM(I58:I66),0)","v":0},null,null,{"$f":"IF(SUM(L58:L66)>=0,SUM(L58:L66),0)","v":0}]
[]
[null,"(e) Mortgage Loans"]
[]
[null,"Insured/Guaranteed Mortgages",null,null,null,null,{"$f":"'Schedule IIB (EBS)'!T22+'Schedule IIC (EBS)'!T22+(MAX(0,'Schedule IID (EBS)'!T22-'Schedule IID (EBS)'!V22))+'Schedule IIE (EBS)'!T22+'Schedule IIF (EBS)'!T22","v":0},{"$f":"'Fixed Income Investments (Rev.)'!H70","v":3.0000000000000001E-3},{"$f":"IF(G72<0,0,G72*H72)","v":0},null,null,{"$f":"MAX(0,IF(K72=\"\",H72*G72,G72*K72))","v":0}]
[null,"Other Commercial and Farm Mortgages",null,null,null,null,{"$f":"'Schedule IIB (EBS)'!T23+'Schedule IIC (EBS)'!T23+(MAX(0,'Schedule IID (EBS)'!T23-'Schedule IID (EBS)'!V23))+'Schedule IIE (EBS)'!T23+'Schedule IIF (EBS)'!T23","v":0},{"$f":"'Fixed Income Investments (Rev.)'!H71","v":0.05},{"$f":"IF(G73<0,0,G73*H73)","v":0},null,null,{"$f":"MAX(0,IF(K73=\"\",H73*G73,G73*K73))","v":0}]
[null,"Other Residential Mortgages",null,null,null,null,{"$f":"'Schedule IIB (EBS)'!T24+'Schedule IIC (EBS)'!T24+(MAX(0,'Schedule IID (EBS)'!T24-'Schedule IID (EBS)'!V24))+'Schedule IIE (EBS)'!T24+'Schedule IIF (EBS)'!T24","v":0},{"$f":"'Fixed Income Investments (Rev.)'!H72","v":1.4999999999999999E-2},{"$f":"IF(G74<0,0,G74*H74)","v":0},null,null,{"$f":"MAX(0,IF(K74=\"\",H74*G74,G74*K74))","v":0}]
[null,"Mortgages Not In Good Standing",null,null,null,null,{"$f":"'Schedule IIB (EBS)'!T25+'Schedule IIC (EBS)'!T25+(MAX(0,'Schedule IID (EBS)'!T25-'Schedule IID (EBS)'!V25))+'Schedule IIE (EBS)'!T25+'Schedule IIF (EBS)'!T25","v":0},{"$f":"'Fixed Income Investments (Rev.)'!H73","v":0.25},{"$f":"IF(G75<0,0,G75*H75)","v":0},null,null,{"$f":"MAX(0,IF(K75=\"\",H75*G75,G75*K75))","v":0}]
[]
[null,"(e)  SUBTOTAL - MORTGAGE LOANS",null,null,null,null,{"$f":"SUM(G72:G76)","v":0},null,{"$f":"IF(SUM(I72:I75)>=0,SUM(I72:I75),0)","v":0},null,null,{"$f":"IF(SUM(L72:L75)>=0,SUM(L72:L75),0)","v":0}]
[]
[null,"(f) Other Fixed Income Investments"]
[]
[null,"Other Loans",null,null,null,null,{"$f":"'Form 4EBS'!F54","v":0},{"$f":"'Fixed Income Investments (Rev.)'!H79","v":0.05},{"$f":"IF(G81<0,0,G81*H81)","v":0},null,null,{"$f":"MAX(0,IF(K81=\"\",H81*G81,G81*K81))","v":0}]
[]
[null,"Cash and Cash Equivalent Counterparty Balances By BSCR Rating"]
[]
[null,"BSCR Rating 0 ",null,null,null,null,{"$f":"'Schedule XIXA'!F81","v":0},{"$f":"'Fixed Income Investments (Rev.)'!H83","v":0},{"$f":"IF(G85<0,0,G85*H85)","v":0},null,null,{"$f":"MAX(0,IF(K85=\"\",H85*G85,G85*K85))","v":0}]
[null,"BSCR Rating 1",null,null,null,null,{"$f":"'Schedule XIXA'!F82","v":0},{"$f":"'Fixed Income Investments (Rev.)'!H84","v":1E-3},{"$f":"IF(G86<0,0,G86*H86)","v":0},null,null,{"$f":"MAX(0,IF(K86=\"\",H86*G86,G86*K86))","v":0}]
[null,"BSCR Rating 2",null,null,null,null,{"$f":"'Schedule XIXA'!F83","v":0},{"$f":"'Fixed Income Investments (Rev.)'!H85","v":2E-3},0,null,null,0]
[null,"BSCR Rating 3",null,null,null,null,{"$f":"'Schedule XIXA'!F84","v":0},{"$f":"'Fixed Income Investments (Rev.)'!H86","v":3.0000000000000001E-3},0,null,null,0]
[null,"BSCR Rating 4",null,null,null,null,{"$f":"'Schedule XIXA'!F85","v":0},{"$f":"'Fixed Income Investments (Rev.)'!H87","v":5.0000000000000001E-3},0,null,null,0]
[null,"BSCR Rating 5",null,null,null,null,{"$f":"'Schedule XIXA'!F86","v":0},{"$f":"'Fixed Income Investments (Rev.)'!H88","v":1.4999999999999999E-2},0,null,null,0]
[null,"BSCR Rating 6",null,null,null,null,{"$f":"'Schedule XIXA'!F87","v":0},{"$f":"'Fixed Income Investments (Rev.)'!H89","v":0.04},0,null,null,0]
[null,"BSCR Rating 7",null,null,null,null,{"$f":"'Schedule XIXA'!F88","v":0},{"$f":"'Fixed Income Investments (Rev.)'!H90","v":0.06},0,null,null,0]
[null,"BSCR Rating 8",null,null,null,null,{"$f":"'Schedule XIXA'!F89","v":0},{"$f":"'Fixed Income Investments (Rev.)'!H91","v":0.09},0,null,null,0]
[]
[null,"Total",null,null,null,null,{"$f":"SUM(G85:G94)","v":0},null,{"$f":"SUM(I85:I94)","v":0},null,null,{"$f":"SUM(L85:L94)","v":0}]
[]
[null,"Diversification Adj at 40%",null,null,null,null,null,null,{"$f":"SUM(I85:I93)*-('Schedule XIXA'!$F$98)","v":0},null,null,{"$f":"SUM(L85:L93)*-('Schedule XIXA'!$F$98)","v":0}]
[]
[null,"(f)  SUBTOTAL - OTHER FIXED INCOME SECURITIES",null,null,null,null,{"$f":"G81+G95","v":0},null,{"$f":"IF(SUM(I81,I95,I97)>=0,SUM(I81,I95,I97),0)","v":0},null,null,{"$f":"IF(SUM(L81,L95,L97)>=0,SUM(L81,L95,L97),0)","v":0}]
[]
[null,"(g) Spread Risk for Credit Derivatives"]
[]
[null,null,null,"Spread Up"]
[null,null,null,"Long Exposures",null,"Short Exposures"]
[null,"Spread Up",null,"Before Shock","After Shock","Before Shock","After Shock"]
[null,"BSCR Rating 0 ",null,{"$f":"'Schedule IIB (EBS)'!D68+'Schedule IIC (EBS)'!D68+'Schedule IID (EBS)'!D68+'Schedule IIE (EBS)'!D68+'Schedule IIF (EBS)'!D68","v":0},{"$f":"'Schedule IIB (EBS)'!F68+'Schedule IIC (EBS)'!F68+'Schedule IID (EBS)'!F68+'Schedule IIE (EBS)'!F68+'Schedule IIF (EBS)'!F68","v":0},{"$f":"'Schedule IIB (EBS)'!H68+'Schedule IIC (EBS)'!H68+'Schedule IID (EBS)'!H68+'Schedule IIE (EBS)'!H68+'Schedule IIF (EBS)'!H68","v":0},{"$f":"'Schedule IIB (EBS)'!J68+'Schedule IIC (EBS)'!J68+'Schedule IID (EBS)'!J68+'Schedule IIE (EBS)'!J68+'Schedule IIF (EBS)'!J68","v":0},0,{"$f":"'Fixed Income Investments (Rev.)'!I105","v":0},null,null,{"$f":"IF(K106=\"\",I106,K106)","v":0}]
[null,"BSCR Rating 1",null,{"$f":"'Schedule IIB (EBS)'!D69+'Schedule IIC (EBS)'!D69+'Schedule IID (EBS)'!D69+'Schedule IIE (EBS)'!D69+'Schedule IIF (EBS)'!D69","v":0},{"$f":"'Schedule IIB (EBS)'!F69+'Schedule IIC (EBS)'!F69+'Schedule IID (EBS)'!F69+'Schedule IIE (EBS)'!F69+'Schedule IIF (EBS)'!F69","v":0},{"$f":"'Schedule IIB (EBS)'!H69+'Schedule IIC (EBS)'!H69+'Schedule IID (EBS)'!H69+'Schedule IIE (EBS)'!H69+'Schedule IIF (EBS)'!H69","v":0},{"$f":"'Schedule IIB (EBS)'!J69+'Schedule IIC (EBS)'!J69+'Schedule IID (EBS)'!J69+'Schedule IIE (EBS)'!J69+'Schedule IIF (EBS)'!J69","v":0},130,{"$f":"'Fixed Income Investments (Rev.)'!I106","v":0},null,null,{"$f":"IF(K107=\"\",I107,K107)","v":0}]
[null,"BSCR Rating 2",null,{"$f":"'Schedule IIB (EBS)'!D70+'Schedule IIC (EBS)'!D70+'Schedule IID (EBS)'!D70+'Schedule IIE (EBS)'!D70+'Schedule IIF (EBS)'!D70","v":0},{"$f":"'Schedule IIB (EBS)'!F70+'Schedule IIC (EBS)'!F70+'Schedule IID (EBS)'!F70+'Schedule IIE (EBS)'!F70+'Schedule IIF (EBS)'!F70","v":0},{"$f":"'Schedule IIB (EBS)'!H70+'Schedule IIC (EBS)'!H70+'Schedule IID (EBS)'!H70+'Schedule IIE (EBS)'!H70+'Schedule IIF (EBS)'!H70","v":0},{"$f":"'Schedule IIB (EBS)'!J70+'Schedule IIC (EBS)'!J70+'Schedule IID (EBS)'!J70+'Schedule IIE (EBS)'!J70+'Schedule IIF (EBS)'!J70","v":0},150,{"$f":"'Fixed Income Investments (Rev.)'!I107","v":0},null,null,0]
[null,"BSCR Rating 3",null,{"$f":"'Schedule IIB (EBS)'!D71+'Schedule IIC (EBS)'!D71+'Schedule IID (EBS)'!D71+'Schedule IIE (EBS)'!D71+'Schedule IIF (EBS)'!D71","v":0},{"$f":"'Schedule IIB (EBS)'!F71+'Schedule IIC (EBS)'!F71+'Schedule IID (EBS)'!F71+'Schedule IIE (EBS)'!F71+'Schedule IIF (EBS)'!F71","v":0},{"$f":"'Schedule IIB (EBS)'!H71+'Schedule IIC (EBS)'!H71+'Schedule IID (EBS)'!H71+'Schedule IIE (EBS)'!H71+'Schedule IIF (EBS)'!H71","v":0},{"$f":"'Schedule IIB (EBS)'!J71+'Schedule IIC (EBS)'!J71+'Schedule IID (EBS)'!J71+'Schedule IIE (EBS)'!J71+'Schedule IIF (EBS)'!J71","v":0},260,{"$f":"'Fixed Income Investments (Rev.)'!I108","v":0},null,null,0]
[null,"BSCR Rating 4",null,{"$f":"'Schedule IIB (EBS)'!D72+'Schedule IIC (EBS)'!D72+'Schedule IID (EBS)'!D72+'Schedule IIE (EBS)'!D72+'Schedule IIF (EBS)'!D72","v":0},{"$f":"'Schedule IIB (EBS)'!F72+'Schedule IIC (EBS)'!F72+'Schedule IID (EBS)'!F72+'Schedule IIE (EBS)'!F72+'Schedule IIF (EBS)'!F72","v":0},{"$f":"'Schedule IIB (EBS)'!H72+'Schedule IIC (EBS)'!H72+'Schedule IID (EBS)'!H72+'Schedule IIE (EBS)'!H72+'Schedule IIF (EBS)'!H72","v":0},{"$f":"'Schedule IIB (EBS)'!J72+'Schedule IIC (EBS)'!J72+'Schedule IID (EBS)'!J72+'Schedule IIE (EBS)'!J72+'Schedule IIF (EBS)'!J72","v":0},450,{"$f":"'Fixed Income Investments (Rev.)'!I109","v":0},null,null,0]
[null,"BSCR Rating 5",null,{"$f":"'Schedule IIB (EBS)'!D73+'Schedule IIC (EBS)'!D73+'Schedule IID (EBS)'!D73+'Schedule IIE (EBS)'!D73+'Schedule IIF (EBS)'!D73","v":0},{"$f":"'Schedule IIB (EBS)'!F73+'Schedule IIC (EBS)'!F73+'Schedule IID (EBS)'!F73+'Schedule IIE (EBS)'!F73+'Schedule IIF (EBS)'!F73","v":0},{"$f":"'Schedule IIB (EBS)'!H73+'Schedule IIC (EBS)'!H73+'Schedule IID (EBS)'!H73+'Schedule IIE (EBS)'!H73+'Schedule IIF (EBS)'!H73","v":0},{"$f":"'Schedule IIB (EBS)'!J73+'Schedule IIC (EBS)'!J73+'Schedule IID (EBS)'!J73+'Schedule IIE (EBS)'!J73+'Schedule IIF (EBS)'!J73","v":0},840,{"$f":"'Fixed Income Investments (Rev.)'!I110","v":0},null,null,0]
[null,"BSCR Rating 6",null,{"$f":"'Schedule IIB (EBS)'!D74+'Schedule IIC (EBS)'!D74+'Schedule IID (EBS)'!D74+'Schedule IIE (EBS)'!D74+'Schedule IIF (EBS)'!D74","v":0},{"$f":"'Schedule IIB (EBS)'!F74+'Schedule IIC (EBS)'!F74+'Schedule IID (EBS)'!F74+'Schedule IIE (EBS)'!F74+'Schedule IIF (EBS)'!F74","v":0},{"$f":"'Schedule IIB (EBS)'!H74+'Schedule IIC (EBS)'!H74+'Schedule IID (EBS)'!H74+'Schedule IIE (EBS)'!H74+'Schedule IIF (EBS)'!H74","v":0},{"$f":"'Schedule IIB (EBS)'!J74+'Schedule IIC (EBS)'!J74+'Schedule IID (EBS)'!J74+'Schedule IIE (EBS)'!J74+'Schedule IIF (EBS)'!J74","v":0},1620,{"$f":"'Fixed Income Investments (Rev.)'!I111","v":0},null,null,0]
[null,"BSCR Rating 7",null,{"$f":"'Schedule IIB (EBS)'!D75+'Schedule IIC (EBS)'!D75+'Schedule IID (EBS)'!D75+'Schedule IIE (EBS)'!D75+'Schedule IIF (EBS)'!D75","v":0},{"$f":"'Schedule IIB (EBS)'!F75+'Schedule IIC (EBS)'!F75+'Schedule IID (EBS)'!F75+'Schedule IIE (EBS)'!F75+'Schedule IIF (EBS)'!F75","v":0},{"$f":"'Schedule IIB (EBS)'!H75+'Schedule IIC (EBS)'!H75+'Schedule IID (EBS)'!H75+'Schedule IIE (EBS)'!H75+'Schedule IIF (EBS)'!H75","v":0},{"$f":"'Schedule IIB (EBS)'!J75+'Schedule IIC (EBS)'!J75+'Schedule IID (EBS)'!J75+'Schedule IIE (EBS)'!J75+'Schedule IIF (EBS)'!J75","v":0},1620,{"$f":"'Fixed Income Investments (Rev.)'!I112","v":0},null,null,0]
[null,"BSCR Rating 8",null,{"$f":"'Schedule IIB (EBS)'!D76+'Schedule IIC (EBS)'!D76+'Schedule IID (EBS)'!D76+'Schedule IIE (EBS)'!D76+'Schedule IIF (EBS)'!D76","v":0},{"$f":"'Schedule IIB (EBS)'!F76+'Schedule IIC (EBS)'!F76+'Schedule IID (EBS)'!F76+'Schedule IIE (EBS)'!F76+'Schedule IIF (EBS)'!F76","v":0},{"$f":"'Schedule IIB (EBS)'!H76+'Schedule IIC (EBS)'!H76+'Schedule IID (EBS)'!H76+'Schedule IIE (EBS)'!H76+'Schedule IIF (EBS)'!H76","v":0},{"$f":"'Schedule IIB (EBS)'!J76+'Schedule IIC (EBS)'!J76+'Schedule IID (EBS)'!J76+'Schedule IIE (EBS)'!J76+'Schedule IIF (EBS)'!J76","v":0},1620,{"$f":"'Fixed Income Investments (Rev.)'!I113","v":0},null,null,0]
[null,"Total Spread Up",null,{"$f":"SUM(D106:D114)","v":0},{"$f":"SUM(E106:E114)","v":0},{"$f":"SUM(F106:F114)","v":0},{"$f":"SUM(G106:G114)","v":0},null,{"$f":"SUM(I106:I114)","v":0},null,{"$f":"SUM(K106:K114)","v":0},{"$f":"SUM(L106:L114)","v":0}]
[]
[null,null,null,"Spread Down"]
[null,null,null,"Long Exposures",null,"Short Exposures"]
[null,"Spread Up",null,"Before Shock","After Shock","Before Shock","After Shock"]
[null,"BSCR Rating 0 ",null,{"$f":"'Schedule IIB (EBS)'!N68+'Schedule IIC (EBS)'!N68+'Schedule IID (EBS)'!N68+'Schedule IIE (EBS)'!N68+'Schedule IIF (EBS)'!N68","v":0},{"$f":"'Schedule IIB (EBS)'!P68+'Schedule IIC (EBS)'!P68+'Schedule IID (EBS)'!P68+'Schedule IIE (EBS)'!P68+'Schedule IIF (EBS)'!P68","v":0},{"$f":"'Schedule IIB (EBS)'!R68+'Schedule IIC (EBS)'!R68+'Schedule IID (EBS)'!R68+'Schedule IIE (EBS)'!R68+'Schedule IIF (EBS)'!R68","v":0},{"$f":"'Schedule IIB (EBS)'!T68+'Schedule IIC (EBS)'!T68+'Schedule IID (EBS)'!T68+'Schedule IIE (EBS)'!T68+'Schedule IIF (EBS)'!T68","v":0},0,{"$f":"'Fixed Income Investments (Rev.)'!I122","v":0},null,null,{"$f":"IF(K120=\"\",I120,K120)","v":0}]
[null,"BSCR Rating 1",null,{"$f":"'Schedule IIB (EBS)'!N69+'Schedule IIC (EBS)'!N69+'Schedule IID (EBS)'!N69+'Schedule IIE (EBS)'!N69+'Schedule IIF (EBS)'!N69","v":0},{"$f":"'Schedule IIB (EBS)'!P69+'Schedule IIC (EBS)'!P69+'Schedule IID (EBS)'!P69+'Schedule IIE (EBS)'!P69+'Schedule IIF (EBS)'!P69","v":0},{"$f":"'Schedule IIB (EBS)'!R69+'Schedule IIC (EBS)'!R69+'Schedule IID (EBS)'!R69+'Schedule IIE (EBS)'!R69+'Schedule IIF (EBS)'!R69","v":0},{"$f":"'Schedule IIB (EBS)'!T69+'Schedule IIC (EBS)'!T69+'Schedule IID (EBS)'!T69+'Schedule IIE (EBS)'!T69+'Schedule IIF (EBS)'!T69","v":0},-0.75,{"$f":"'Fixed Income Investments (Rev.)'!I123","v":0},null,null,0]
[null,"BSCR Rating 2",null,{"$f":"'Schedule IIB (EBS)'!N70+'Schedule IIC (EBS)'!N70+'Schedule IID (EBS)'!N70+'Schedule IIE (EBS)'!N70+'Schedule IIF (EBS)'!N70","v":0},{"$f":"'Schedule IIB (EBS)'!P70+'Schedule IIC (EBS)'!P70+'Schedule IID (EBS)'!P70+'Schedule IIE (EBS)'!P70+'Schedule IIF (EBS)'!P70","v":0},{"$f":"'Schedule IIB (EBS)'!R70+'Schedule IIC (EBS)'!R70+'Schedule IID (EBS)'!R70+'Schedule IIE (EBS)'!R70+'Schedule IIF (EBS)'!R70","v":0},{"$f":"'Schedule IIB (EBS)'!T70+'Schedule IIC (EBS)'!T70+'Schedule IID (EBS)'!T70+'Schedule IIE (EBS)'!T70+'Schedule IIF (EBS)'!T70","v":0},-0.75,{"$f":"'Fixed Income Investments (Rev.)'!I124","v":0},null,null,0]
[null,"BSCR Rating 3",null,{"$f":"'Schedule IIB (EBS)'!N71+'Schedule IIC (EBS)'!N71+'Schedule IID (EBS)'!N71+'Schedule IIE (EBS)'!N71+'Schedule IIF (EBS)'!N71","v":0},{"$f":"'Schedule IIB (EBS)'!P71+'Schedule IIC (EBS)'!P71+'Schedule IID (EBS)'!P71+'Schedule IIE (EBS)'!P71+'Schedule IIF (EBS)'!P71","v":0},{"$f":"'Schedule IIB (EBS)'!R71+'Schedule IIC (EBS)'!R71+'Schedule IID (EBS)'!R71+'Schedule IIE (EBS)'!R71+'Schedule IIF (EBS)'!R71","v":0},{"$f":"'Schedule IIB (EBS)'!T71+'Schedule IIC (EBS)'!T71+'Schedule IID (EBS)'!T71+'Schedule IIE (EBS)'!T71+'Schedule IIF (EBS)'!T71","v":0},-0.75,{"$f":"'Fixed Income Investments (Rev.)'!I125","v":0},null,null,0]
[null,"BSCR Rating 4",null,{"$f":"'Schedule IIB (EBS)'!N72+'Schedule IIC (EBS)'!N72+'Schedule IID (EBS)'!N72+'Schedule IIE (EBS)'!N72+'Schedule IIF (EBS)'!N72","v":0},{"$f":"'Schedule IIB (EBS)'!P72+'Schedule IIC (EBS)'!P72+'Schedule IID (EBS)'!P72+'Schedule IIE (EBS)'!P72+'Schedule IIF (EBS)'!P72","v":0},{"$f":"'Schedule IIB (EBS)'!R72+'Schedule IIC (EBS)'!R72+'Schedule IID (EBS)'!R72+'Schedule IIE (EBS)'!R72+'Schedule IIF (EBS)'!R72","v":0},{"$f":"'Schedule IIB (EBS)'!T72+'Schedule IIC (EBS)'!T72+'Schedule IID (EBS)'!T72+'Schedule IIE (EBS)'!T72+'Schedule IIF (EBS)'!T72","v":0},-0.75,{"$f":"'Fixed Income Investments (Rev.)'!I126","v":0},null,null,0]
[null,"BSCR Rating 5",null,{"$f":"'Schedule IIB (EBS)'!N73+'Schedule IIC (EBS)'!N73+'Schedule IID (EBS)'!N73+'Schedule IIE (EBS)'!N73+'Schedule IIF (EBS)'!N73","v":0},{"$f":"'Schedule IIB (EBS)'!P73+'Schedule IIC (EBS)'!P73+'Schedule IID (EBS)'!P73+'Schedule IIE (EBS)'!P73+'Schedule IIF (EBS)'!P73","v":0},{"$f":"'Schedule IIB (EBS)'!R73+'Schedule IIC (EBS)'!R73+'Schedule IID (EBS)'!R73+'Schedule IIE (EBS)'!R73+'Schedule IIF (EBS)'!R73","v":0},{"$f":"'Schedule IIB (EBS)'!T73+'Schedule IIC (EBS)'!T73+'Schedule IID (EBS)'!T73+'Schedule IIE (EBS)'!T73+'Schedule IIF (EBS)'!T73","v":0},-0.75,{"$f":"'Fixed Income Investments (Rev.)'!I127","v":0},null,null,0]
[null,"BSCR Rating 6",null,{"$f":"'Schedule IIB (EBS)'!N74+'Schedule IIC (EBS)'!N74+'Schedule IID (EBS)'!N74+'Schedule IIE (EBS)'!N74+'Schedule IIF (EBS)'!N74","v":0},{"$f":"'Schedule IIB (EBS)'!P74+'Schedule IIC (EBS)'!P74+'Schedule IID (EBS)'!P74+'Schedule IIE (EBS)'!P74+'Schedule IIF (EBS)'!P74","v":0},{"$f":"'Schedule IIB (EBS)'!R74+'Schedule IIC (EBS)'!R74+'Schedule IID (EBS)'!R74+'Schedule IIE (EBS)'!R74+'Schedule IIF (EBS)'!R74","v":0},{"$f":"'Schedule IIB (EBS)'!T74+'Schedule IIC (EBS)'!T74+'Schedule IID (EBS)'!T74+'Schedule IIE (EBS)'!T74+'Schedule IIF (EBS)'!T74","v":0},-0.75,{"$f":"'Fixed Income Investments (Rev.)'!I128","v":0},null,null,0]
[null,"BSCR Rating 7",null,{"$f":"'Schedule IIB (EBS)'!N75+'Schedule IIC (EBS)'!N75+'Schedule IID (EBS)'!N75+'Schedule IIE (EBS)'!N75+'Schedule IIF (EBS)'!N75","v":0},{"$f":"'Schedule IIB (EBS)'!P75+'Schedule IIC (EBS)'!P75+'Schedule IID (EBS)'!P75+'Schedule IIE (EBS)'!P75+'Schedule IIF (EBS)'!P75","v":0},{"$f":"'Schedule IIB (EBS)'!R75+'Schedule IIC (EBS)'!R75+'Schedule IID (EBS)'!R75+'Schedule IIE (EBS)'!R75+'Schedule IIF (EBS)'!R75","v":0},{"$f":"'Schedule IIB (EBS)'!T75+'Schedule IIC (EBS)'!T75+'Schedule IID (EBS)'!T75+'Schedule IIE (EBS)'!T75+'Schedule IIF (EBS)'!T75","v":0},-0.75,{"$f":"'Fixed Income Investments (Rev.)'!I129","v":0},null,null,0]
[null,"BSCR Rating 8",null,{"$f":"'Schedule IIB (EBS)'!N76+'Schedule IIC (EBS)'!N76+'Schedule IID (EBS)'!N76+'Schedule IIE (EBS)'!N76+'Schedule IIF (EBS)'!N76","v":0},{"$f":"'Schedule IIB (EBS)'!P76+'Schedule IIC (EBS)'!P76+'Schedule IID (EBS)'!P76+'Schedule IIE (EBS)'!P76+'Schedule IIF (EBS)'!P76","v":0},{"$f":"'Schedule IIB (EBS)'!R76+'Schedule IIC (EBS)'!R76+'Schedule IID (EBS)'!R76+'Schedule IIE (EBS)'!R76+'Schedule IIF (EBS)'!R76","v":0},{"$f":"'Schedule IIB (EBS)'!T76+'Schedule IIC (EBS)'!T76+'Schedule IID (EBS)'!T76+'Schedule IIE (EBS)'!T76+'Schedule IIF (EBS)'!T76","v":0},-0.75,{"$f":"'Fixed Income Investments (Rev.)'!I130","v":0},null,null,0]
[null,"Total Spread Down",null,{"$f":"SUM(D120:D128)","v":0},{"$f":"SUM(E120:E128)","v":0},{"$f":"SUM(F120:F128)","v":0},{"$f":"SUM(G120:G128)","v":0},null,{"$f":"SUM(I120:I128)","v":0},null,{"$f":"SUM(K120:K128)","v":0},{"$f":"SUM(L120:L128)","v":0}]
[]
[null,"Spread Up",null,null,null,null,null,null,{"$f":"I115","v":0},null,null,{"$f":"L115","v":0}]
[null,"Spread Down",null,null,null,null,null,null,{"$f":"I129","v":0},null,null,{"$f":"L129","v":0}]
[]
[null,"(g) Total Spread Risk",null,null,null,null,null,null,{"$f":"MAX(0,I131,I132)","v":0},null,null,{"$f":"MAX(0,L131,L132)","v":0}]
[]
[null,"(h)  TOTAL FIXED INCOME INVESTMENTS [ (a)+(b)+(c)+(d)+(e)+(f)+(g) ]",null,null,null,null,{"$f":"G25+G39+G53+G68+G77+G99","v":0},null,{"$f":"IF(SUM(I25+I39+I53+I68+I77+I99+I134)>=0,SUM(I25+I39+I53+I68+I77+I99+I134),0)","v":0},null,null,{"$f":"IF(SUM(L25+L39+L53+L68+L77+L99+L134)>=0,SUM(L25+L39+L53+L68+L77+L99+L134),0)","v":0}]
[]
[null,null,null,"ASSETS",null,null,"LIABILITIES","STANDARD","STANDARD",null,"USER","USER"]
[null,"TYPE OF ",null,"Long Exposures","Short Exposures",null,null,"CAPITAL","REQUIRED",null,"CAPITAL","REQUIRED"]
[null,"EQUITY INVESTMENTS",null,"Qualified Assets","Qualified Assets","Not Qual. Assets",null,"FACTOR","CAPITAL",null,"FACTOR","CAPITAL"]
[]
[null,"Type 1 Equity Holdings"]
[null,"Strategic Holdings - Listed",null,{"$f":"'Schedule IIB (EBS)'!D39+'Schedule IIC (EBS)'!D39+'Schedule IID (EBS)'!D39+'Schedule IIE (EBS)'!D39+'Schedule IIF (EBS)'!D39","v":0},{"$f":"'Schedule IIB (EBS)'!H39+'Schedule IIC (EBS)'!H39+'Schedule IID (EBS)'!H39+'Schedule IIE (EBS)'!H39+'Schedule IIF (EBS)'!H39","v":0},{"$f":"'Schedule IIB (EBS)'!L39+'Schedule IIC (EBS)'!L39+'Schedule IID (EBS)'!L39+'Schedule IIE (EBS)'!L39+'Schedule IIF (EBS)'!L39","v":0},{"$f":"'Schedule IIB (EBS)'!P39+'Schedule IIC (EBS)'!P39+'Schedule IID (EBS)'!P39+'Schedule IIE (EBS)'!P39+'Schedule IIF (EBS)'!P39","v":0},{"$f":"'Equity Investments (Revised)'!N11","v":0.2},{"$f":"'Equity Investments (Revised)'!P11","v":0},null,null,{"$f":"IF(K143=\"\",I143,K143*(SUM(D143:F143)))","v":0}]
[null,"Duration Based",null,{"$f":"'Schedule IIB (EBS)'!D40+'Schedule IIC (EBS)'!D40+'Schedule IID (EBS)'!D40+'Schedule IIE (EBS)'!D40+'Schedule IIF (EBS)'!D40","v":0},{"$f":"'Schedule IIB (EBS)'!H40+'Schedule IIC (EBS)'!H40+'Schedule IID (EBS)'!H40+'Schedule IIE (EBS)'!H40+'Schedule IIF (EBS)'!H40","v":0},{"$f":"'Schedule IIB (EBS)'!L40+'Schedule IIC (EBS)'!L40+'Schedule IID (EBS)'!L40+'Schedule IIE (EBS)'!L40+'Schedule IIF (EBS)'!L40","v":0},{"$f":"'Schedule IIB (EBS)'!P40+'Schedule IIC (EBS)'!P40+'Schedule IID (EBS)'!P40+'Schedule IIE (EBS)'!P40+'Schedule IIF (EBS)'!P40","v":0},{"$f":"'Equity Investments (Revised)'!N12","v":0.2},{"$f":"'Equity Investments (Revised)'!P12","v":0},null,null,{"$f":"IF(K144=\"\",I144,K144*(SUM(D144:F144)))","v":0}]
[null,"Listed Equity Securities in Developed Markets",null,{"$f":"'Schedule IIB (EBS)'!D41+'Schedule IIC (EBS)'!D41+'Schedule IID (EBS)'!D41+'Schedule IIE (EBS)'!D41+'Schedule IIF (EBS)'!D41","v":0},{"$f":"'Schedule IIB (EBS)'!H41+'Schedule IIC (EBS)'!H41+'Schedule IID (EBS)'!H41+'Schedule IIE (EBS)'!H41+'Schedule IIF (EBS)'!H41","v":0},{"$f":"'Schedule IIB (EBS)'!L41+'Schedule IIC (EBS)'!L41+'Schedule IID (EBS)'!L41+'Schedule IIE (EBS)'!L41+'Schedule IIF (EBS)'!L41","v":0},{"$f":"'Schedule IIB (EBS)'!P41+'Schedule IIC (EBS)'!P41+'Schedule IID (EBS)'!P41+'Schedule IIE (EBS)'!P41+'Schedule IIF (EBS)'!P41","v":0},{"$f":"'Equity Investments (Revised)'!N13","v":0.35},{"$f":"'Equity Investments (Revised)'!P13","v":0},null,null,0]
[null,"Preferred Stocks, BSCR Rating 1",null,{"$f":"'Schedule IIB (EBS)'!D42+'Schedule IIC (EBS)'!D42+'Schedule IID (EBS)'!D42+'Schedule IIE (EBS)'!D42+'Schedule IIF (EBS)'!D42","v":0},{"$f":"'Schedule IIB (EBS)'!H42+'Schedule IIC (EBS)'!H42+'Schedule IID (EBS)'!H42+'Schedule IIE (EBS)'!H42+'Schedule IIF (EBS)'!H42","v":0},{"$f":"'Schedule IIB (EBS)'!L42+'Schedule IIC (EBS)'!L42+'Schedule IID (EBS)'!L42+'Schedule IIE (EBS)'!L42+'Schedule IIF (EBS)'!L42","v":0},{"$f":"'Schedule IIB (EBS)'!P42+'Schedule IIC (EBS)'!P42+'Schedule IID (EBS)'!P42+'Schedule IIE (EBS)'!P42+'Schedule IIF (EBS)'!P42","v":0},{"$f":"'Equity Investments (Revised)'!N14","v":6.0000000000000001E-3},{"$f":"'Equity Investments (Revised)'!P14","v":0},null,null,0]
[null,"Preferred Stocks, BSCR Rating 2",null,{"$f":"'Schedule IIB (EBS)'!D43+'Schedule IIC (EBS)'!D43+'Schedule IID (EBS)'!D43+'Schedule IIE (EBS)'!D43+'Schedule IIF (EBS)'!D43","v":0},{"$f":"'Schedule IIB (EBS)'!H43+'Schedule IIC (EBS)'!H43+'Schedule IID (EBS)'!H43+'Schedule IIE (EBS)'!H43+'Schedule IIF (EBS)'!H43","v":0},{"$f":"'Schedule IIB (EBS)'!L43+'Schedule IIC (EBS)'!L43+'Schedule IID (EBS)'!L43+'Schedule IIE (EBS)'!L43+'Schedule IIF (EBS)'!L43","v":0},{"$f":"'Schedule IIB (EBS)'!P43+'Schedule IIC (EBS)'!P43+'Schedule IID (EBS)'!P43+'Schedule IIE (EBS)'!P43+'Schedule IIF (EBS)'!P43","v":0},{"$f":"'Equity Investments (Revised)'!N15","v":1.2E-2},{"$f":"'Equity Investments (Revised)'!P15","v":0},null,null,0]
[null,"Preferred Stocks, BSCR Rating 3",null,{"$f":"'Schedule IIB (EBS)'!D44+'Schedule IIC (EBS)'!D44+'Schedule IID (EBS)'!D44+'Schedule IIE (EBS)'!D44+'Schedule IIF (EBS)'!D44","v":0},{"$f":"'Schedule IIB (EBS)'!H44+'Schedule IIC (EBS)'!H44+'Schedule IID (EBS)'!H44+'Schedule IIE (EBS)'!H44+'Schedule IIF (EBS)'!H44","v":0},{"$f":"'Schedule IIB (EBS)'!L44+'Schedule IIC (EBS)'!L44+'Schedule IID (EBS)'!L44+'Schedule IIE (EBS)'!L44+'Schedule IIF (EBS)'!L44","v":0},{"$f":"'Schedule IIB (EBS)'!P44+'Schedule IIC (EBS)'!P44+'Schedule IID (EBS)'!P44+'Schedule IIE (EBS)'!P44+'Schedule IIF (EBS)'!P44","v":0},{"$f":"'Equity Investments (Revised)'!N16","v":0.02},{"$f":"'Equity Investments (Revised)'!P16","v":0},null,null,0]
[null,"Preferred Stocks, BSCR Rating 4",null,{"$f":"'Schedule IIB (EBS)'!D45+'Schedule IIC (EBS)'!D45+'Schedule IID (EBS)'!D45+'Schedule IIE (EBS)'!D45+'Schedule IIF (EBS)'!D45","v":0},{"$f":"'Schedule IIB (EBS)'!H45+'Schedule IIC (EBS)'!H45+'Schedule IID (EBS)'!H45+'Schedule IIE (EBS)'!H45+'Schedule IIF (EBS)'!H45","v":0},{"$f":"'Schedule IIB (EBS)'!L45+'Schedule IIC (EBS)'!L45+'Schedule IID (EBS)'!L45+'Schedule IIE (EBS)'!L45+'Schedule IIF (EBS)'!L45","v":0},{"$f":"'Schedule IIB (EBS)'!P45+'Schedule IIC (EBS)'!P45+'Schedule IID (EBS)'!P45+'Schedule IIE (EBS)'!P45+'Schedule IIF (EBS)'!P45","v":0},{"$f":"'Equity Investments (Revised)'!N17","v":0.04},{"$f":"'Equity Investments (Revised)'!P17","v":0},null,null,0]
[null,"Preferred Stocks, BSCR Rating 5",null,{"$f":"'Schedule IIB (EBS)'!D46+'Schedule IIC (EBS)'!D46+'Schedule IID (EBS)'!D46+'Schedule IIE (EBS)'!D46+'Schedule IIF (EBS)'!D46","v":0},{"$f":"'Schedule IIB (EBS)'!H46+'Schedule IIC (EBS)'!H46+'Schedule IID (EBS)'!H46+'Schedule IIE (EBS)'!H46+'Schedule IIF (EBS)'!H46","v":0},{"$f":"'Schedule IIB (EBS)'!L46+'Schedule IIC (EBS)'!L46+'Schedule IID (EBS)'!L46+'Schedule IIE (EBS)'!L46+'Schedule IIF (EBS)'!L46","v":0},{"$f":"'Schedule IIB (EBS)'!P46+'Schedule IIC (EBS)'!P46+'Schedule IID (EBS)'!P46+'Schedule IIE (EBS)'!P46+'Schedule IIF (EBS)'!P46","v":0},{"$f":"'Equity Investments (Revised)'!N18","v":0.11},{"$f":"'Equity Investments (Revised)'!P18","v":0},null,null,0]
[null,"Preferred Stocks, BSCR Rating 6",null,{"$f":"'Schedule IIB (EBS)'!D47+'Schedule IIC (EBS)'!D47+'Schedule IID (EBS)'!D47+'Schedule IIE (EBS)'!D47+'Schedule IIF (EBS)'!D47","v":0},{"$f":"'Schedule IIB (EBS)'!H47+'Schedule IIC (EBS)'!H47+'Schedule IID (EBS)'!H47+'Schedule IIE (EBS)'!H47+'Schedule IIF (EBS)'!H47","v":0},{"$f":"'Schedule IIB (EBS)'!L47+'Schedule IIC (EBS)'!L47+'Schedule IID (EBS)'!L47+'Schedule IIE (EBS)'!L47+'Schedule IIF (EBS)'!L47","v":0},{"$f":"'Schedule IIB (EBS)'!P47+'Schedule IIC (EBS)'!P47+'Schedule IID (EBS)'!P47+'Schedule IIE (EBS)'!P47+'Schedule IIF (EBS)'!P47","v":0},{"$f":"'Equity Investments (Revised)'!N19","v":0.25},{"$f":"'Equity Investments (Revised)'!P19","v":0},null,null,0]
[null,"Preferred Stocks, BSCR Rating 7",null,{"$f":"'Schedule IIB (EBS)'!D48+'Schedule IIC (EBS)'!D48+'Schedule IID (EBS)'!D48+'Schedule IIE (EBS)'!D48+'Schedule IIF (EBS)'!D48","v":0},{"$f":"'Schedule IIB (EBS)'!H48+'Schedule IIC (EBS)'!H48+'Schedule IID (EBS)'!H48+'Schedule IIE (EBS)'!H48+'Schedule IIF (EBS)'!H48","v":0},{"$f":"'Schedule IIB (EBS)'!L48+'Schedule IIC (EBS)'!L48+'Schedule IID (EBS)'!L48+'Schedule IIE (EBS)'!L48+'Schedule IIF (EBS)'!L48","v":0},{"$f":"'Schedule IIB (EBS)'!P48+'Schedule IIC (EBS)'!P48+'Schedule IID (EBS)'!P48+'Schedule IIE (EBS)'!P48+'Schedule IIF (EBS)'!P48","v":0},{"$f":"'Equity Investments (Revised)'!N20","v":0.35},{"$f":"'Equity Investments (Revised)'!P20","v":0},null,null,0]
[null,"Preferred Stocks, BSCR Rating 8",null,{"$f":"'Schedule IIB (EBS)'!D49+'Schedule IIC (EBS)'!D49+'Schedule IID (EBS)'!D49+'Schedule IIE (EBS)'!D49+'Schedule IIF (EBS)'!D49","v":0},{"$f":"'Schedule IIB (EBS)'!H49+'Schedule IIC (EBS)'!H49+'Schedule IID (EBS)'!H49+'Schedule IIE (EBS)'!H49+'Schedule IIF (EBS)'!H49","v":0},{"$f":"'Schedule IIB (EBS)'!L49+'Schedule IIC (EBS)'!L49+'Schedule IID (EBS)'!L49+'Schedule IIE (EBS)'!L49+'Schedule IIF (EBS)'!L49","v":0},{"$f":"'Schedule IIB (EBS)'!P49+'Schedule IIC (EBS)'!P49+'Schedule IID (EBS)'!P49+'Schedule IIE (EBS)'!P49+'Schedule IIF (EBS)'!P49","v":0},{"$f":"'Equity Investments (Revised)'!N21","v":0.35},{"$f":"'Equity Investments (Revised)'!P21","v":0},null,null,0]
[null,"Equity Derivatives on Type 1 Equities",null,{"$f":"'Schedule IIB (EBS)'!D50+'Schedule IIC (EBS)'!D50+'Schedule IID (EBS)'!D50+'Schedule IIE (EBS)'!D50+'Schedule IIF (EBS)'!D50","v":0},{"$f":"'Schedule IIB (EBS)'!H50+'Schedule IIC (EBS)'!H50+'Schedule IID (EBS)'!H50+'Schedule IIE (EBS)'!H50+'Schedule IIF (EBS)'!H50","v":0},{"$f":"'Schedule IIB (EBS)'!L50+'Schedule IIC (EBS)'!L50+'Schedule IID (EBS)'!L50+'Schedule IIE (EBS)'!L50+'Schedule IIF (EBS)'!L50","v":0},{"$f":"'Schedule IIB (EBS)'!P50+'Schedule IIC (EBS)'!P50+'Schedule IID (EBS)'!P50+'Schedule IIE (EBS)'!P50+'Schedule IIF (EBS)'!P50","v":0},{"$f":"'Equity Investments (Revised)'!N22","v":0.35},{"$f":"'Equity Investments (Revised)'!P22","v":0},null,null,0]
[]
[null,"Subtotal - Type 1 Equity Holdings",null,{"$f":"SUM(D143:D155)","v":0},{"$f":"SUM(E143:E155)","v":0},{"$f":"SUM(F143:F155)","v":0},{"$f":"SUM(G143:G155)","v":0},null,{"$f":"SUM(I143:I155)","v":0},null,null,{"$f":"SUM(L143:L155)","v":0}]
[]
[null,"Type 2 Equity Holdings"]
[null,"Strategic Holdings - Unlisted",null,{"$f":"'Schedule IIB (EBS)'!D51+'Schedule IIC (EBS)'!D51+'Schedule IID (EBS)'!D51+'Schedule IIE (EBS)'!D51+'Schedule IIF (EBS)'!D51","v":0},{"$f":"'Schedule IIB (EBS)'!H51+'Schedule IIC (EBS)'!H51+'Schedule IID (EBS)'!H51+'Schedule IIE (EBS)'!H51+'Schedule IIF (EBS)'!H51","v":0},{"$f":"'Schedule IIB (EBS)'!L51+'Schedule IIC (EBS)'!L51+'Schedule IID (EBS)'!L51+'Schedule IIE (EBS)'!L51+'Schedule IIF (EBS)'!L51","v":0},{"$f":"'Schedule IIB (EBS)'!P51+'Schedule IIC (EBS)'!P51+'Schedule IID (EBS)'!P51+'Schedule IIE (EBS)'!P51+'Schedule IIF (EBS)'!P51","v":0},{"$f":"'Equity Investments (Revised)'!N27","v":0.2},{"$f":"'Equity Investments (Revised)'!P27","v":0},null,null,{"$f":"IF(K159=\"\",I159,K159*(SUM(D159:F159)))","v":0}]
[null,"Other Equities",null,{"$f":"'Schedule IIB (EBS)'!D52+'Schedule IIC (EBS)'!D52+'Schedule IID (EBS)'!D52+'Schedule IIE (EBS)'!D52+'Schedule IIF (EBS)'!D52","v":0},{"$f":"'Schedule IIB (EBS)'!H52+'Schedule IIC (EBS)'!H52+'Schedule IID (EBS)'!H52+'Schedule IIE (EBS)'!H52+'Schedule IIF (EBS)'!H52","v":0},{"$f":"'Schedule IIB (EBS)'!L52+'Schedule IIC (EBS)'!L52+'Schedule IID (EBS)'!L52+'Schedule IIE (EBS)'!L52+'Schedule IIF (EBS)'!L52","v":0},{"$f":"'Schedule IIB (EBS)'!P52+'Schedule IIC (EBS)'!P52+'Schedule IID (EBS)'!P52+'Schedule IIE (EBS)'!P52+'Schedule IIF (EBS)'!P52","v":0},{"$f":"'Equity Investments (Revised)'!N28","v":0.45},{"$f":"'Equity Investments (Revised)'!P28","v":0},null,null,0]
[null,"Letters of Credit",null,{"$f":"'Schedule IIB (EBS)'!D53+'Schedule IIC (EBS)'!D53+'Schedule IID (EBS)'!D53+'Schedule IIE (EBS)'!D53+'Schedule IIF (EBS)'!D53","v":0},{"$f":"'Schedule IIB (EBS)'!H53+'Schedule IIC (EBS)'!H53+'Schedule IID (EBS)'!H53+'Schedule IIE (EBS)'!H53+'Schedule IIF (EBS)'!H53","v":0},{"$f":"'Schedule IIB (EBS)'!L53+'Schedule IIC (EBS)'!L53+'Schedule IID (EBS)'!L53+'Schedule IIE (EBS)'!L53+'Schedule IIF (EBS)'!L53","v":0},{"$f":"'Schedule IIB (EBS)'!P53+'Schedule IIC (EBS)'!P53+'Schedule IID (EBS)'!P53+'Schedule IIE (EBS)'!P53+'Schedule IIF (EBS)'!P53","v":0},{"$f":"'Equity Investments (Revised)'!N29","v":0.2},{"$f":"'Equity Investments (Revised)'!P29","v":0},null,null,0]
[null,"Intangible assets",null,{"$f":"'Schedule IIB (EBS)'!D54+'Schedule IIC (EBS)'!D54+'Schedule IID (EBS)'!D54+'Schedule IIE (EBS)'!D54+'Schedule IIF (EBS)'!D54","v":0},{"$f":"'Schedule IIB (EBS)'!H54+'Schedule IIC (EBS)'!H54+'Schedule IID (EBS)'!H54+'Schedule IIE (EBS)'!H54+'Schedule IIF (EBS)'!H54","v":0},{"$f":"'Schedule IIB (EBS)'!L54+'Schedule IIC (EBS)'!L54+'Schedule IID (EBS)'!L54+'Schedule IIE (EBS)'!L54+'Schedule IIF (EBS)'!L54","v":0},{"$f":"'Schedule IIB (EBS)'!P54+'Schedule IIC (EBS)'!P54+'Schedule IID (EBS)'!P54+'Schedule IIE (EBS)'!P54+'Schedule IIF (EBS)'!P54","v":0},{"$f":"'Equity Investments (Revised)'!N30","v":0.2},{"$f":"'Equity Investments (Revised)'!P30","v":0},null,null,0]
[null,"Pension Benefit Surplus",null,{"$f":"'Schedule IIB (EBS)'!D55+'Schedule IIC (EBS)'!D55+'Schedule IID (EBS)'!D55+'Schedule IIE (EBS)'!D55+'Schedule IIF (EBS)'!D55","v":0},{"$f":"'Schedule IIB (EBS)'!H55+'Schedule IIC (EBS)'!H55+'Schedule IID (EBS)'!H55+'Schedule IIE (EBS)'!H55+'Schedule IIF (EBS)'!H55","v":0},{"$f":"'Schedule IIB (EBS)'!L55+'Schedule IIC (EBS)'!L55+'Schedule IID (EBS)'!L55+'Schedule IIE (EBS)'!L55+'Schedule IIF (EBS)'!L55","v":0},{"$f":"'Schedule IIB (EBS)'!P55+'Schedule IIC (EBS)'!P55+'Schedule IID (EBS)'!P55+'Schedule IIE (EBS)'!P55+'Schedule IIF (EBS)'!P55","v":0},{"$f":"'Equity Investments (Revised)'!N31","v":0.2},{"$f":"'Equity Investments (Revised)'!P31","v":0},null,null,0]
[null,"Equity Derivatives on Type 2 Equities",null,{"$f":"'Schedule IIB (EBS)'!D56+'Schedule IIC (EBS)'!D56+'Schedule IID (EBS)'!D56+'Schedule IIE (EBS)'!D56+'Schedule IIF (EBS)'!D56","v":0},{"$f":"'Schedule IIB (EBS)'!H56+'Schedule IIC (EBS)'!H56+'Schedule IID (EBS)'!H56+'Schedule IIE (EBS)'!H56+'Schedule IIF (EBS)'!H56","v":0},{"$f":"'Schedule IIB (EBS)'!L56+'Schedule IIC (EBS)'!L56+'Schedule IID (EBS)'!L56+'Schedule IIE (EBS)'!L56+'Schedule IIF (EBS)'!L56","v":0},{"$f":"'Schedule IIB (EBS)'!P56+'Schedule IIC (EBS)'!P56+'Schedule IID (EBS)'!P56+'Schedule IIE (EBS)'!P56+'Schedule IIF (EBS)'!P56","v":0},{"$f":"'Equity Investments (Revised)'!N32","v":0.45},{"$f":"'Equity Investments (Revised)'!P32","v":0},null,null,0]
[]
[null,"Subtotal - Type 2 Equity Holdings",null,{"$f":"SUM(D159:D165)","v":0},{"$f":"SUM(E159:E165)","v":0},{"$f":"SUM(F159:F165)","v":0},{"$f":"SUM(G159:G165)","v":0},null,{"$f":"SUM(I159:I165)","v":0},null,null,{"$f":"SUM(L159:L165)","v":0}]
[]
[null,"Type 3 Equity Holdings"]
[null,"Infrastructure",null,{"$f":"'Schedule IIB (EBS)'!D57+'Schedule IIC (EBS)'!D57+'Schedule IID (EBS)'!D57+'Schedule IIE (EBS)'!D57+'Schedule IIF (EBS)'!D57","v":0},{"$f":"'Schedule IIB (EBS)'!H57+'Schedule IIC (EBS)'!H57+'Schedule IID (EBS)'!H57+'Schedule IIE (EBS)'!H57+'Schedule IIF (EBS)'!H57","v":0},{"$f":"'Schedule IIB (EBS)'!L57+'Schedule IIC (EBS)'!L57+'Schedule IID (EBS)'!L57+'Schedule IIE (EBS)'!L57+'Schedule IIF (EBS)'!L57","v":0},{"$f":"'Schedule IIB (EBS)'!P57+'Schedule IIC (EBS)'!P57+'Schedule IID (EBS)'!P57+'Schedule IIE (EBS)'!P57+'Schedule IIF (EBS)'!P57","v":0},{"$f":"'Equity Investments (Revised)'!N37","v":0.25},{"$f":"'Equity Investments (Revised)'!P37","v":0},null,null,{"$f":"IF(K169=\"\",I169,K169*(SUM(D169:F169)))","v":0}]
[null,"Derivatives on Infrastructure",null,{"$f":"'Schedule IIB (EBS)'!D58+'Schedule IIC (EBS)'!D58+'Schedule IID (EBS)'!D58+'Schedule IIE (EBS)'!D58+'Schedule IIF (EBS)'!D58","v":0},{"$f":"'Schedule IIB (EBS)'!H58+'Schedule IIC (EBS)'!H58+'Schedule IID (EBS)'!H58+'Schedule IIE (EBS)'!H58+'Schedule IIF (EBS)'!H58","v":0},{"$f":"'Schedule IIB (EBS)'!L58+'Schedule IIC (EBS)'!L58+'Schedule IID (EBS)'!L58+'Schedule IIE (EBS)'!L58+'Schedule IIF (EBS)'!L58","v":0},{"$f":"'Schedule IIB (EBS)'!P58+'Schedule IIC (EBS)'!P58+'Schedule IID (EBS)'!P58+'Schedule IIE (EBS)'!P58+'Schedule IIF (EBS)'!P58","v":0},{"$f":"'Equity Investments (Revised)'!N38","v":0.25},{"$f":"'Equity Investments (Revised)'!P38","v":0},null,null,0]
[]
[null,"Subtotal - Type 3 Equity Holdings",null,{"$f":"SUM(D169:D171)","v":0},{"$f":"SUM(E169:E171)","v":0},{"$f":"SUM(F169:F171)","v":0},{"$f":"SUM(G169:G171)","v":0},null,{"$f":"SUM(I169:I171)","v":0},null,null,{"$f":"SUM(L169:L171)","v":0}]
[]
[null,"Type 4 Equity Holdings"]
[null,"Equity Real Estate 1",null,{"$f":"'Schedule IIB (EBS)'!D59+'Schedule IIC (EBS)'!D59+'Schedule IID (EBS)'!D59+'Schedule IIE (EBS)'!D59+'Schedule IIF (EBS)'!D59","v":0},{"$f":"'Schedule IIB (EBS)'!H59+'Schedule IIC (EBS)'!H59+'Schedule IID (EBS)'!H59+'Schedule IIE (EBS)'!H59+'Schedule IIF (EBS)'!H59","v":0},{"$f":"'Schedule IIB (EBS)'!L59+'Schedule IIC (EBS)'!L59+'Schedule IID (EBS)'!L59+'Schedule IIE (EBS)'!L59+'Schedule IIF (EBS)'!L59","v":0},{"$f":"'Schedule IIB (EBS)'!P59+'Schedule IIC (EBS)'!P59+'Schedule IID (EBS)'!P59+'Schedule IIE (EBS)'!P59+'Schedule IIF (EBS)'!P59","v":0},{"$f":"'Equity Investments (Revised)'!N43","v":0.1},{"$f":"'Equity Investments (Revised)'!P43","v":0},null,null,{"$f":"IF(K175=\"\",I175,K175*(SUM(D175:F175)))","v":0}]
[null,"Equity Real Estate 2",null,{"$f":"'Schedule IIB (EBS)'!D60+'Schedule IIC (EBS)'!D60+'Schedule IID (EBS)'!D60+'Schedule IIE (EBS)'!D60+'Schedule IIF (EBS)'!D60","v":0},{"$f":"'Schedule IIB (EBS)'!H60+'Schedule IIC (EBS)'!H60+'Schedule IID (EBS)'!H60+'Schedule IIE (EBS)'!H60+'Schedule IIF (EBS)'!H60","v":0},{"$f":"'Schedule IIB (EBS)'!L60+'Schedule IIC (EBS)'!L60+'Schedule IID (EBS)'!L60+'Schedule IIE (EBS)'!L60+'Schedule IIF (EBS)'!L60","v":0},{"$f":"'Schedule IIB (EBS)'!P60+'Schedule IIC (EBS)'!P60+'Schedule IID (EBS)'!P60+'Schedule IIE (EBS)'!P60+'Schedule IIF (EBS)'!P60","v":0},{"$f":"'Equity Investments (Revised)'!N44","v":0.2},{"$f":"'Equity Investments (Revised)'!P44","v":0},null,null,0]
[]
[null,"Subtotal - Type 4 Equity Holdings",null,{"$f":"SUM(D175:D177)","v":0},{"$f":"SUM(E175:E177)","v":0},{"$f":"SUM(F175:F177)","v":0},{"$f":"SUM(G175:G177)","v":0},null,{"$f":"SUM(I175:I177)","v":0},null,null,{"$f":"SUM(L175:L177)","v":0}]
[]
[null,"Total Equity Risk before Diversification"]
[]
[null,"Correlation Matrix","Type 1","Type 2","Type 3","Type 4","W/O Mgmt. Action","Mgmt. Action",null,null,"W/O Mgmt. Action","Mgmt. Action"]
[null,"Type 1",1,0.75,0.75,0.5,{"$f":"I156","v":0},{"$f":"'Equity Investments (Revised)'!R51","v":0},null,null,{"$f":"L156","v":0},{"$f":"K183","v":0}]
[null,"Type 2",0.75,1,0.75,0.5,{"$f":"I166","v":0},{"$f":"'Equity Investments (Revised)'!R52","v":0},null,null,{"$f":"L166","v":0},{"$f":"K184","v":0}]
[null,"Type 3",0.75,0.75,1,0.5,{"$f":"I172","v":0},{"$f":"'Equity Investments (Revised)'!R53","v":0},null,null,{"$f":"L172","v":0},0]
[null,"Type 4",0.5,0.5,0.5,1,{"$f":"I178","v":0},{"$f":"'Equity Investments (Revised)'!R54","v":0},null,null,{"$f":"L178","v":0},0]
[]
[null,"Adjustment for Grandfathering of Equity Holdings for years-ending 2018 and prior"]
[]
[null,"(f)  TOTAL EQUITY INVESTMENTS (AFTER CORRELATION ADJUSTMENT)",null,null,null,null,{"$f":"SQRT(MMULT(TRANSPOSE(G183:G186),MMULT($C$183:$F$186,G183:G186)))+G188","v":0},{"$f":"SQRT(MMULT(TRANSPOSE(H183:H186),MMULT($C$183:$F$186,H183:H186)))+H188","v":0},null,null,{"$f":"SQRT(MMULT(TRANSPOSE(K183:K186),MMULT($C$183:$F$186,K183:K186)))+K188","v":0},{"$f":"SQRT(MMULT(TRANSPOSE(L183:L186),MMULT($C$183:$F$186,L183:L186)))+L188","v":0}]
[]
[]
[null,null,null,null,null,null,"STANDARD","REQUIRED","REQUIRED",null,"USER","USER"]
[null,"TYPE OF ",null,null,null,"ASSET","CAPITAL","CAPITAL","CAPITAL",null,"CAPITAL","CAPITAL"]
[null,"INTEREST LIQUIDITY RISK",null,null,null,"VALUE","FACTOR","W/O MGMT","W MGMT ACTION",null,"W/O MGMT","W MGMT ACTION"]
[]
[null,"(a.1) Known With Management Actions",null,null,null,{"$f":"'Interest Rate-Liquidity Risk'!I10","v":0},{"$f":"'Interest Rate-Liquidity Risk'!K10","v":0},{"$f":"F197*G197","v":0},{"$f":"H197","v":0},null,null,{"$f":"I197","v":0}]
[null,"(a.2) Known Without Management Actions",null,null,null,{"$f":"'Interest Rate-Liquidity Risk'!I11","v":0},{"$f":"'Interest Rate-Liquidity Risk'!K11","v":0},{"$f":"F198*G198","v":0},{"$f":"H198","v":0},null,{"$f":"H198","v":0}]
[null,"(a.3) Unknown ",null,null,null,{"$f":"'Interest Rate-Liquidity Risk'!I12","v":0},{"$f":"'Interest Rate-Liquidity Risk'!K12","v":0.04},{"$f":"F199*G199","v":0},{"$f":"H199","v":0},null,{"$f":"H199","v":0},{"$f":"I199","v":0}]
[]
[null,"TOTAL INTEREST LIQUIDITY RISK",null,null,null,{"$f":"SUM(F197:F199)","v":0},null,{"$f":"H198+H199","v":0},{"$f":"I197+I199","v":0},null,{"$f":"K198+K199","v":0},{"$f":"L197+L199","v":0}]
[]
[null,null,null,"ASSETS",null,"LIABILITIES",null,"CAPITAL","CAPITAL",null,"USER","USER"]
[null,"INTEREST RATE -",null,null,null,null,null,"CHARGE","CHARGE",null,"CAPITAL","CAPITAL"]
[null,"LIQUIDITY RISK",null,"Qualified Assets","Not Qual. Assets",null,null,"W/O MGMT","W MGMT",null,"W/O MGMT","W MGMT ACTION"]
[]
[null,"IR Down- Exposures without Derivatives"]
[null,{"$f":"'Interest Rate-Liquidity (Rev.)'!B11","v":"United States Dollars"},null,{"$f":"'Schedule XXIII'!E10","v":0},null,{"$f":"'Schedule XXIII'!H10","v":0},null,{"$f":"'Interest Rate-Liquidity (Rev.)'!S11","v":0},{"$f":"'Interest Rate-Liquidity (Rev.)'!T11","v":0},null,null,{"$f":"MAX(0,IF(K208=\"\",H208,K208))","v":0}]
[null,{"$f":"'Interest Rate-Liquidity (Rev.)'!B12","v":"Euro"},null,{"$f":"'Schedule XXIII'!E11","v":0},null,{"$f":"'Schedule XXIII'!H11","v":0},null,{"$f":"'Interest Rate-Liquidity (Rev.)'!S12","v":0},{"$f":"'Interest Rate-Liquidity (Rev.)'!T12","v":0},null,null,{"$f":"MAX(0,IF(K209=\"\",H209,K209))","v":0}]
[null,{"$f":"'Interest Rate-Liquidity (Rev.)'!B13","v":"United Kingdom Pounds"},null,{"$f":"'Schedule XXIII'!E12","v":0},null,{"$f":"'Schedule XXIII'!H12","v":0},null,{"$f":"'Interest Rate-Liquidity (Rev.)'!S13","v":0},{"$f":"'Interest Rate-Liquidity (Rev.)'!T13","v":0},null,null,{"$f":"MAX(0,IF(K210=\"\",H210,K210))","v":0}]
[null,{"$f":"'Interest Rate-Liquidity (Rev.)'!B14","v":"Japan Yen"},null,{"$f":"'Schedule XXIII'!E13","v":0},null,{"$f":"'Schedule XXIII'!H13","v":0},null,{"$f":"'Interest Rate-Liquidity (Rev.)'!S14","v":0},{"$f":"'Interest Rate-Liquidity (Rev.)'!T14","v":0},null,null,0]
[null,{"$f":"'Interest Rate-Liquidity (Rev.)'!B15","v":"Canada Dollars"},null,{"$f":"'Schedule XXIII'!E14","v":0},null,{"$f":"'Schedule XXIII'!H14","v":0},null,{"$f":"'Interest Rate-Liquidity (Rev.)'!S15","v":0},{"$f":"'Interest Rate-Liquidity (Rev.)'!T15","v":0},null,null,0]
[null,{"$f":"'Interest Rate-Liquidity (Rev.)'!B16","v":"Swiss Francs"},null,{"$f":"'Schedule XXIII'!E15","v":0},null,{"$f":"'Schedule XXIII'!H15","v":0},null,{"$f":"'Interest Rate-Liquidity (Rev.)'!S16","v":0},{"$f":"'Interest Rate-Liquidity (Rev.)'!T16","v":0},null,null,0]
[null,{"$f":"'Interest Rate-Liquidity (Rev.)'!B17","v":"Australia Dollar"},null,{"$f":"'Schedule XXIII'!E16","v":0},null,{"$f":"'Schedule XXIII'!H16","v":0},null,{"$f":"'Interest Rate-Liquidity (Rev.)'!S17","v":0},{"$f":"'Interest Rate-Liquidity (Rev.)'!T17","v":0},null,null,0]
[null,{"$f":"'Interest Rate-Liquidity (Rev.)'!B18","v":"New Zealand Dollar"},null,{"$f":"'Schedule XXIII'!E17","v":0},null,{"$f":"'Schedule XXIII'!H17","v":0},null,{"$f":"'Interest Rate-Liquidity (Rev.)'!S18","v":0},{"$f":"'Interest Rate-Liquidity (Rev.)'!T18","v":0},null,null,0]
[null,{"$f":"'Interest Rate-Liquidity (Rev.)'!B19","v":"Other currency 1"},null,{"$f":"'Schedule XXIII'!E18","v":0},null,{"$f":"'Schedule XXIII'!H18","v":0},null,{"$f":"'Interest Rate-Liquidity (Rev.)'!S19","v":0},{"$f":"'Interest Rate-Liquidity (Rev.)'!T19","v":0},null,null,0]
[null,{"$f":"'Interest Rate-Liquidity (Rev.)'!B20","v":"Other currency 2"},null,{"$f":"'Schedule XXIII'!E19","v":0},null,{"$f":"'Schedule XXIII'!H19","v":0},null,{"$f":"'Interest Rate-Liquidity (Rev.)'!S20","v":0},{"$f":"'Interest Rate-Liquidity (Rev.)'!T20","v":0},null,null,0]
[null,{"$f":"'Interest Rate-Liquidity (Rev.)'!B21","v":"Other currency 3"},null,{"$f":"'Schedule XXIII'!E20","v":0},null,{"$f":"'Schedule XXIII'!H20","v":0},null,{"$f":"'Interest Rate-Liquidity (Rev.)'!S21","v":0},{"$f":"'Interest Rate-Liquidity (Rev.)'!T21","v":0},null,null,0]
[null,{"$f":"'Interest Rate-Liquidity (Rev.)'!B22","v":"Other currency 4"},null,{"$f":"'Schedule XXIII'!E21","v":0},null,{"$f":"'Schedule XXIII'!H21","v":0},null,{"$f":"'Interest Rate-Liquidity (Rev.)'!S22","v":0},{"$f":"'Interest Rate-Liquidity (Rev.)'!T22","v":0},null,null,0]
[null,{"$f":"'Interest Rate-Liquidity (Rev.)'!B23","v":"Other currency 5"},null,{"$f":"'Schedule XXIII'!E22","v":0},null,{"$f":"'Schedule XXIII'!H22","v":0},null,{"$f":"'Interest Rate-Liquidity (Rev.)'!S23","v":0},{"$f":"'Interest Rate-Liquidity (Rev.)'!T23","v":0},null,null,0]
[null,{"$f":"'Interest Rate-Liquidity (Rev.)'!B24","v":"Other currency 6"},null,{"$f":"'Schedule XXIII'!E23","v":0},null,{"$f":"'Schedule XXIII'!H23","v":0},null,{"$f":"'Interest Rate-Liquidity (Rev.)'!S24","v":0},{"$f":"'Interest Rate-Liquidity (Rev.)'!T24","v":0},null,null,0]
[null,{"$f":"'Interest Rate-Liquidity (Rev.)'!B25","v":"Other currency 7"},null,{"$f":"'Schedule XXIII'!E24","v":0},null,{"$f":"'Schedule XXIII'!H24","v":0},null,{"$f":"'Interest Rate-Liquidity (Rev.)'!S25","v":0},{"$f":"'Interest Rate-Liquidity (Rev.)'!T25","v":0},null,null,0]
[null,{"$f":"'Interest Rate-Liquidity (Rev.)'!B26","v":"Other currency 8"},null,{"$f":"'Schedule XXIII'!E25","v":0},null,{"$f":"'Schedule XXIII'!H25","v":0},null,{"$f":"'Interest Rate-Liquidity (Rev.)'!S26","v":0},{"$f":"'Interest Rate-Liquidity (Rev.)'!T26","v":0},null,null,0]
[null,{"$f":"'Interest Rate-Liquidity (Rev.)'!B27","v":"Other currency 9"},null,{"$f":"'Schedule XXIII'!E26","v":0},null,{"$f":"'Schedule XXIII'!H26","v":0},null,{"$f":"'Interest Rate-Liquidity (Rev.)'!S27","v":0},{"$f":"'Interest Rate-Liquidity (Rev.)'!T27","v":0},null,null,0]
[null,{"$f":"'Interest Rate-Liquidity (Rev.)'!B28","v":"Other currency 10"},null,{"$f":"'Schedule XXIII'!E27","v":0},null,{"$f":"'Schedule XXIII'!H27","v":0},null,{"$f":"'Interest Rate-Liquidity (Rev.)'!S28","v":0},{"$f":"'Interest Rate-Liquidity (Rev.)'!T28","v":0},null,null,0]
[null,{"$f":"'Interest Rate-Liquidity (Rev.)'!B29","v":"Total IR - Other"},null,{"$f":"SUM(D208:D225)","v":0},null,{"$f":"SUM(F208:F225)","v":0},null,{"$f":"SUM(H208:H225)","v":0},{"$f":"SUM(I208:I225)","v":0},null,{"$f":"SUM(K208:K225)","v":0},{"$f":"SUM(L208:L225)","v":0}]
[]
[null,{"$f":"'Interest Rate-Liquidity (Rev.)'!B31","v":"IR Down- Derivatives"}]
[null,{"$f":"'Interest Rate-Liquidity (Rev.)'!B32","v":"United States Dollars"},null,{"$f":"'Schedule XXIII'!M10","v":0},{"$f":"'Schedule XXIII'!P10","v":0},{"$f":"'Schedule XXIII'!S10","v":0},null,{"$f":"'Interest Rate-Liquidity (Rev.)'!S32","v":0},{"$f":"'Interest Rate-Liquidity (Rev.)'!T32","v":0},null,null,{"$f":"MAX(0,IF(K229=\"\",H229,K229))","v":0}]
[null,{"$f":"'Interest Rate-Liquidity (Rev.)'!B33","v":"Euro"},null,{"$f":"'Schedule XXIII'!M11","v":0},{"$f":"'Schedule XXIII'!P11","v":0},{"$f":"'Schedule XXIII'!S11","v":0},null,{"$f":"'Interest Rate-Liquidity (Rev.)'!S33","v":0},{"$f":"'Interest Rate-Liquidity (Rev.)'!T33","v":0},null,null,{"$f":"MAX(0,IF(K230=\"\",H230,K230))","v":0}]
[null,{"$f":"'Interest Rate-Liquidity (Rev.)'!B34","v":"United Kingdom Pounds"},null,{"$f":"'Schedule XXIII'!M12","v":0},{"$f":"'Schedule XXIII'!P12","v":0},{"$f":"'Schedule XXIII'!S12","v":0},null,{"$f":"'Interest Rate-Liquidity (Rev.)'!S34","v":0},{"$f":"'Interest Rate-Liquidity (Rev.)'!T34","v":0},null,null,0]
[null,{"$f":"'Interest Rate-Liquidity (Rev.)'!B35","v":"Japan Yen"},null,{"$f":"'Schedule XXIII'!M13","v":0},{"$f":"'Schedule XXIII'!P13","v":0},{"$f":"'Schedule XXIII'!S13","v":0},null,{"$f":"'Interest Rate-Liquidity (Rev.)'!S35","v":0},{"$f":"'Interest Rate-Liquidity (Rev.)'!T35","v":0},null,null,0]
[null,{"$f":"'Interest Rate-Liquidity (Rev.)'!B36","v":"Canada Dollars"},null,{"$f":"'Schedule XXIII'!M14","v":0},{"$f":"'Schedule XXIII'!P14","v":0},{"$f":"'Schedule XXIII'!S14","v":0},null,{"$f":"'Interest Rate-Liquidity (Rev.)'!S36","v":0},{"$f":"'Interest Rate-Liquidity (Rev.)'!T36","v":0},null,null,0]
[null,{"$f":"'Interest Rate-Liquidity (Rev.)'!B37","v":"Swiss Francs"},null,{"$f":"'Schedule XXIII'!M15","v":0},{"$f":"'Schedule XXIII'!P15","v":0},{"$f":"'Schedule XXIII'!S15","v":0},null,{"$f":"'Interest Rate-Liquidity (Rev.)'!S37","v":0},{"$f":"'Interest Rate-Liquidity (Rev.)'!T37","v":0},null,null,0]
[null,{"$f":"'Interest Rate-Liquidity (Rev.)'!B38","v":"Australia Dollar"},null,{"$f":"'Schedule XXIII'!M16","v":0},{"$f":"'Schedule XXIII'!P16","v":0},{"$f":"'Schedule XXIII'!S16","v":0},null,{"$f":"'Interest Rate-Liquidity (Rev.)'!S38","v":0},{"$f":"'Interest Rate-Liquidity (Rev.)'!T38","v":0},null,null,0]
[null,{"$f":"'Interest Rate-Liquidity (Rev.)'!B39","v":"New Zealand Dollar"},null,{"$f":"'Schedule XXIII'!M17","v":0},{"$f":"'Schedule XXIII'!P17","v":0},{"$f":"'Schedule XXIII'!S17","v":0},null,{"$f":"'Interest Rate-Liquidity (Rev.)'!S39","v":0},{"$f":"'Interest Rate-Liquidity (Rev.)'!T39","v":0},null,null,0]
[null,{"$f":"'Interest Rate-Liquidity (Rev.)'!B40","v":"Other currency 1"},null,{"$f":"'Schedule XXIII'!M18","v":0},{"$f":"'Schedule XXIII'!P18","v":0},{"$f":"'Schedule XXIII'!S18","v":0},null,{"$f":"'Interest Rate-Liquidity (Rev.)'!S40","v":0},{"$f":"'Interest Rate-Liquidity (Rev.)'!T40","v":0},null,null,0]
[null,{"$f":"'Interest Rate-Liquidity (Rev.)'!B41","v":"Other currency 2"},null,{"$f":"'Schedule XXIII'!M19","v":0},{"$f":"'Schedule XXIII'!P19","v":0},{"$f":"'Schedule XXIII'!S19","v":0},null,{"$f":"'Interest Rate-Liquidity (Rev.)'!S41","v":0},{"$f":"'Interest Rate-Liquidity (Rev.)'!T41","v":0},null,null,0]
[null,{"$f":"'Interest Rate-Liquidity (Rev.)'!B42","v":"Other currency 3"},null,{"$f":"'Schedule XXIII'!M20","v":0},{"$f":"'Schedule XXIII'!P20","v":0},{"$f":"'Schedule XXIII'!S20","v":0},null,{"$f":"'Interest Rate-Liquidity (Rev.)'!S42","v":0},{"$f":"'Interest Rate-Liquidity (Rev.)'!T42","v":0},null,null,0]
[null,{"$f":"'Interest Rate-Liquidity (Rev.)'!B43","v":"Other currency 4"},null,{"$f":"'Schedule XXIII'!M21","v":0},{"$f":"'Schedule XXIII'!P21","v":0},{"$f":"'Schedule XXIII'!S21","v":0},null,{"$f":"'Interest Rate-Liquidity (Rev.)'!S43","v":0},{"$f":"'Interest Rate-Liquidity (Rev.)'!T43","v":0},null,null,0]
[null,{"$f":"'Interest Rate-Liquidity (Rev.)'!B44","v":"Other currency 5"},null,{"$f":"'Schedule XXIII'!M22","v":0},{"$f":"'Schedule XXIII'!P22","v":0},{"$f":"'Schedule XXIII'!S22","v":0},null,{"$f":"'Interest Rate-Liquidity (Rev.)'!S44","v":0},{"$f":"'Interest Rate-Liquidity (Rev.)'!T44","v":0},null,null,0]
[null,{"$f":"'Interest Rate-Liquidity (Rev.)'!B45","v":"Other currency 6"},null,{"$f":"'Schedule XXIII'!M23","v":0},{"$f":"'Schedule XXIII'!P23","v":0},{"$f":"'Schedule XXIII'!S23","v":0},null,{"$f":"'Interest Rate-Liquidity (Rev.)'!S45","v":0},{"$f":"'Interest Rate-Liquidity (Rev.)'!T45","v":0},null,null,0]
[null,{"$f":"'Interest Rate-Liquidity (Rev.)'!B46","v":"Other currency 7"},null,{"$f":"'Schedule XXIII'!M24","v":0},{"$f":"'Schedule XXIII'!P24","v":0},{"$f":"'Schedule XXIII'!S24","v":0},null,{"$f":"'Interest Rate-Liquidity (Rev.)'!S46","v":0},{"$f":"'Interest Rate-Liquidity (Rev.)'!T46","v":0},null,null,0]
[null,{"$f":"'Interest Rate-Liquidity (Rev.)'!B47","v":"Other currency 8"},null,{"$f":"'Schedule XXIII'!M25","v":0},{"$f":"'Schedule XXIII'!P25","v":0},{"$f":"'Schedule XXIII'!S25","v":0},null,{"$f":"'Interest Rate-Liquidity (Rev.)'!S47","v":0},{"$f":"'Interest Rate-Liquidity (Rev.)'!T47","v":0},null,null,0]
[null,{"$f":"'Interest Rate-Liquidity (Rev.)'!B48","v":"Other currency 9"},null,{"$f":"'Schedule XXIII'!M26","v":0},{"$f":"'Schedule XXIII'!P26","v":0},{"$f":"'Schedule XXIII'!S26","v":0},null,{"$f":"'Interest Rate-Liquidity (Rev.)'!S48","v":0},{"$f":"'Interest Rate-Liquidity (Rev.)'!T48","v":0},null,null,0]
[null,{"$f":"'Interest Rate-Liquidity (Rev.)'!B49","v":"Other currency 10"},null,{"$f":"'Schedule XXIII'!M27","v":0},{"$f":"'Schedule XXIII'!P27","v":0},{"$f":"'Schedule XXIII'!S27","v":0},null,{"$f":"'Interest Rate-Liquidity (Rev.)'!S49","v":0},{"$f":"'Interest Rate-Liquidity (Rev.)'!T49","v":0},null,null,0]
[null,{"$f":"'Interest Rate-Liquidity (Rev.)'!B50","v":"Total IR - Derivatives"},null,{"$f":"SUM(D229:D246)","v":0},0,0,null,0,0,null,{"$f":"SUM(K229:K246)","v":0},{"$f":"SUM(L229:L246)","v":0}]
[null,{"$f":"'Interest Rate-Liquidity (Rev.)'!B51","v":"Total IR - DOWN"},null,{"$f":"D226+D247","v":0},{"$f":"E226+E247","v":0},0,null,{"$f":"MAX(0,H226+H247)","v":0},{"$f":"MAX(0,I226+I247)","v":0},null,{"$f":"MAX(0,K226+K247)","v":0},0]
[]
[null,{"$f":"'Interest Rate-Liquidity (Rev.)'!B53","v":"IR UP - Exposures without Derivatives"}]
[null,{"$f":"'Interest Rate-Liquidity (Rev.)'!B54","v":"United States Dollars"},null,{"$f":"'Schedule XXIII'!E35","v":0},null,{"$f":"'Schedule XXIII'!H35","v":0},null,{"$f":"'Interest Rate-Liquidity (Rev.)'!S54","v":0},{"$f":"'Interest Rate-Liquidity (Rev.)'!T54","v":0},null,null,{"$f":"MAX(0,IF(K251=\"\",H251,K251))","v":0}]
[null,{"$f":"'Interest Rate-Liquidity (Rev.)'!B55","v":"Euro"},null,{"$f":"'Schedule XXIII'!E36","v":0},null,{"$f":"'Schedule XXIII'!H36","v":0},null,{"$f":"'Interest Rate-Liquidity (Rev.)'!S55","v":0},{"$f":"'Interest Rate-Liquidity (Rev.)'!T55","v":0},null,null,{"$f":"MAX(0,IF(K252=\"\",H252,K252))","v":0}]
[null,{"$f":"'Interest Rate-Liquidity (Rev.)'!B56","v":"United Kingdom Pounds"},null,{"$f":"'Schedule XXIII'!E37","v":0},null,{"$f":"'Schedule XXIII'!H37","v":0},null,{"$f":"'Interest Rate-Liquidity (Rev.)'!S56","v":0},{"$f":"'Interest Rate-Liquidity (Rev.)'!T56","v":0},null,null,0]
[null,{"$f":"'Interest Rate-Liquidity (Rev.)'!B57","v":"Japan Yen"},null,{"$f":"'Schedule XXIII'!E38","v":0},null,{"$f":"'Schedule XXIII'!H38","v":0},null,{"$f":"'Interest Rate-Liquidity (Rev.)'!S57","v":0},{"$f":"'Interest Rate-Liquidity (Rev.)'!T57","v":0},null,null,0]
[null,{"$f":"'Interest Rate-Liquidity (Rev.)'!B58","v":"Canada Dollars"},null,{"$f":"'Schedule XXIII'!E39","v":0},null,{"$f":"'Schedule XXIII'!H39","v":0},null,{"$f":"'Interest Rate-Liquidity (Rev.)'!S58","v":0},{"$f":"'Interest Rate-Liquidity (Rev.)'!T58","v":0},null,null,0]
[null,{"$f":"'Interest Rate-Liquidity (Rev.)'!B59","v":"Swiss Francs"},null,{"$f":"'Schedule XXIII'!E40","v":0},null,{"$f":"'Schedule XXIII'!H40","v":0},null,{"$f":"'Interest Rate-Liquidity (Rev.)'!S59","v":0},{"$f":"'Interest Rate-Liquidity (Rev.)'!T59","v":0},null,null,0]
[null,{"$f":"'Interest Rate-Liquidity (Rev.)'!B60","v":"Australia Dollar"},null,{"$f":"'Schedule XXIII'!E41","v":0},null,{"$f":"'Schedule XXIII'!H41","v":0},null,{"$f":"'Interest Rate-Liquidity (Rev.)'!S60","v":0},{"$f":"'Interest Rate-Liquidity (Rev.)'!T60","v":0},null,null,0]
[null,{"$f":"'Interest Rate-Liquidity (Rev.)'!B61","v":"New Zealand Dollar"},null,{"$f":"'Schedule XXIII'!E42","v":0},null,{"$f":"'Schedule XXIII'!H42","v":0},null,{"$f":"'Interest Rate-Liquidity (Rev.)'!S61","v":0},{"$f":"'Interest Rate-Liquidity (Rev.)'!T61","v":0},null,null,0]
[null,{"$f":"'Interest Rate-Liquidity (Rev.)'!B62","v":"Other currency 1"},null,{"$f":"'Schedule XXIII'!E43","v":0},null,{"$f":"'Schedule XXIII'!H43","v":0},null,{"$f":"'Interest Rate-Liquidity (Rev.)'!S62","v":0},{"$f":"'Interest Rate-Liquidity (Rev.)'!T62","v":0},null,null,0]
[null,{"$f":"'Interest Rate-Liquidity (Rev.)'!B63","v":"Other currency 2"},null,{"$f":"'Schedule XXIII'!E44","v":0},null,{"$f":"'Schedule XXIII'!H44","v":0},null,{"$f":"'Interest Rate-Liquidity (Rev.)'!S63","v":0},{"$f":"'Interest Rate-Liquidity (Rev.)'!T63","v":0},null,null,0]
[null,{"$f":"'Interest Rate-Liquidity (Rev.)'!B64","v":"Other currency 3"},null,{"$f":"'Schedule XXIII'!E45","v":0},null,{"$f":"'Schedule XXIII'!H45","v":0},null,{"$f":"'Interest Rate-Liquidity (Rev.)'!S64","v":0},{"$f":"'Interest Rate-Liquidity (Rev.)'!T64","v":0},null,null,0]
[null,{"$f":"'Interest Rate-Liquidity (Rev.)'!B65","v":"Other currency 4"},null,{"$f":"'Schedule XXIII'!E46","v":0},null,{"$f":"'Schedule XXIII'!H46","v":0},null,{"$f":"'Interest Rate-Liquidity (Rev.)'!S65","v":0},{"$f":"'Interest Rate-Liquidity (Rev.)'!T65","v":0},null,null,0]
[null,{"$f":"'Interest Rate-Liquidity (Rev.)'!B66","v":"Other currency 5"},null,{"$f":"'Schedule XXIII'!E47","v":0},null,{"$f":"'Schedule XXIII'!H47","v":0},null,{"$f":"'Interest Rate-Liquidity (Rev.)'!S66","v":0},{"$f":"'Interest Rate-Liquidity (Rev.)'!T66","v":0},null,null,0]
[null,{"$f":"'Interest Rate-Liquidity (Rev.)'!B67","v":"Other currency 6"},null,{"$f":"'Schedule XXIII'!E48","v":0},null,{"$f":"'Schedule XXIII'!H48","v":0},null,{"$f":"'Interest Rate-Liquidity (Rev.)'!S67","v":0},{"$f":"'Interest Rate-Liquidity (Rev.)'!T67","v":0},null,null,0]
[null,{"$f":"'Interest Rate-Liquidity (Rev.)'!B68","v":"Other currency 7"},null,{"$f":"'Schedule XXIII'!E49","v":0},null,{"$f":"'Schedule XXIII'!H49","v":0},null,{"$f":"'Interest Rate-Liquidity (Rev.)'!S68","v":0},{"$f":"'Interest Rate-Liquidity (Rev.)'!T68","v":0},null,null,0]
[null,{"$f":"'Interest Rate-Liquidity (Rev.)'!B69","v":"Other currency 8"},null,{"$f":"'Schedule XXIII'!E50","v":0},null,{"$f":"'Schedule XXIII'!H50","v":0},null,{"$f":"'Interest Rate-Liquidity (Rev.)'!S69","v":0},{"$f":"'Interest Rate-Liquidity (Rev.)'!T69","v":0},null,null,0]
[null,{"$f":"'Interest Rate-Liquidity (Rev.)'!B70","v":"Other currency 9"},null,{"$f":"'Schedule XXIII'!E51","v":0},null,{"$f":"'Schedule XXIII'!H51","v":0},null,{"$f":"'Interest Rate-Liquidity (Rev.)'!S70","v":0},{"$f":"'Interest Rate-Liquidity (Rev.)'!T70","v":0},null,null,0]
[null,{"$f":"'Interest Rate-Liquidity (Rev.)'!B71","v":"Other currency 10"},null,{"$f":"'Schedule XXIII'!E52","v":0},null,{"$f":"'Schedule XXIII'!H52","v":0},null,{"$f":"'Interest Rate-Liquidity (Rev.)'!S71","v":0},{"$f":"'Interest Rate-Liquidity (Rev.)'!T71","v":0},null,null,0]
[null,{"$f":"'Interest Rate-Liquidity (Rev.)'!B72","v":"Total IR - Other"},null,{"$f":"SUM(D251:D268)","v":0},null,{"$f":"SUM(F251:F268)","v":0},null,{"$f":"SUM(H251:H268)","v":0},{"$f":"SUM(I251:I268)","v":0},null,{"$f":"SUM(K251:K268)","v":0},{"$f":"SUM(L251:L268)","v":0}]
[]
[null,{"$f":"'Interest Rate-Liquidity (Rev.)'!B74","v":"IR Up - Derivatives"}]
[null,{"$f":"'Interest Rate-Liquidity (Rev.)'!B75","v":"United States Dollars"},null,{"$f":"'Schedule XXIII'!M35","v":0},{"$f":"'Schedule XXIII'!P35","v":0},{"$f":"'Schedule XXIII'!S35","v":0},null,{"$f":"'Interest Rate-Liquidity (Rev.)'!S75","v":0},{"$f":"'Interest Rate-Liquidity (Rev.)'!T75","v":0},null,null,{"$f":"MAX(0,IF(K272=\"\",H272,K272))","v":0}]
[null,{"$f":"'Interest Rate-Liquidity (Rev.)'!B76","v":"Euro"},null,{"$f":"'Schedule XXIII'!M36","v":0},{"$f":"'Schedule XXIII'!P36","v":0},{"$f":"'Schedule XXIII'!S36","v":0},null,{"$f":"'Interest Rate-Liquidity (Rev.)'!S76","v":0},{"$f":"'Interest Rate-Liquidity (Rev.)'!T76","v":0},null,null,{"$f":"MAX(0,IF(K273=\"\",H273,K273))","v":0}]
[null,{"$f":"'Interest Rate-Liquidity (Rev.)'!B77","v":"United Kingdom Pounds"},null,{"$f":"'Schedule XXIII'!M37","v":0},{"$f":"'Schedule XXIII'!P37","v":0},{"$f":"'Schedule XXIII'!S37","v":0},null,{"$f":"'Interest Rate-Liquidity (Rev.)'!S77","v":0},{"$f":"'Interest Rate-Liquidity (Rev.)'!T77","v":0},null,null,0]
[null,{"$f":"'Interest Rate-Liquidity (Rev.)'!B78","v":"Japan Yen"},null,{"$f":"'Schedule XXIII'!M38","v":0},{"$f":"'Schedule XXIII'!P38","v":0},{"$f":"'Schedule XXIII'!S38","v":0},null,{"$f":"'Interest Rate-Liquidity (Rev.)'!S78","v":0},{"$f":"'Interest Rate-Liquidity (Rev.)'!T78","v":0},null,null,0]
[null,{"$f":"'Interest Rate-Liquidity (Rev.)'!B79","v":"Canada Dollars"},null,{"$f":"'Schedule XXIII'!M39","v":0},{"$f":"'Schedule XXIII'!P39","v":0},{"$f":"'Schedule XXIII'!S39","v":0},null,{"$f":"'Interest Rate-Liquidity (Rev.)'!S79","v":0},{"$f":"'Interest Rate-Liquidity (Rev.)'!T79","v":0},null,null,0]
[null,{"$f":"'Interest Rate-Liquidity (Rev.)'!B80","v":"Swiss Francs"},null,{"$f":"'Schedule XXIII'!M40","v":0},{"$f":"'Schedule XXIII'!P40","v":0},{"$f":"'Schedule XXIII'!S40","v":0},null,{"$f":"'Interest Rate-Liquidity (Rev.)'!S80","v":0},{"$f":"'Interest Rate-Liquidity (Rev.)'!T80","v":0},null,null,0]
[null,{"$f":"'Interest Rate-Liquidity (Rev.)'!B81","v":"Australia Dollar"},null,{"$f":"'Schedule XXIII'!M41","v":0},{"$f":"'Schedule XXIII'!P41","v":0},{"$f":"'Schedule XXIII'!S41","v":0},null,{"$f":"'Interest Rate-Liquidity (Rev.)'!S81","v":0},{"$f":"'Interest Rate-Liquidity (Rev.)'!T81","v":0},null,null,0]
[null,{"$f":"'Interest Rate-Liquidity (Rev.)'!B82","v":"New Zealand Dollar"},null,{"$f":"'Schedule XXIII'!M42","v":0},{"$f":"'Schedule XXIII'!P42","v":0},{"$f":"'Schedule XXIII'!S42","v":0},null,{"$f":"'Interest Rate-Liquidity (Rev.)'!S82","v":0},{"$f":"'Interest Rate-Liquidity (Rev.)'!T82","v":0},null,null,0]
[null,{"$f":"'Interest Rate-Liquidity (Rev.)'!B83","v":"Other currency 1"},null,{"$f":"'Schedule XXIII'!M43","v":0},{"$f":"'Schedule XXIII'!P43","v":0},{"$f":"'Schedule XXIII'!S43","v":0},null,{"$f":"'Interest Rate-Liquidity (Rev.)'!S83","v":0},{"$f":"'Interest Rate-Liquidity (Rev.)'!T83","v":0},null,null,0]
[null,{"$f":"'Interest Rate-Liquidity (Rev.)'!B84","v":"Other currency 2"},null,{"$f":"'Schedule XXIII'!M44","v":0},{"$f":"'Schedule XXIII'!P44","v":0},{"$f":"'Schedule XXIII'!S44","v":0},null,{"$f":"'Interest Rate-Liquidity (Rev.)'!S84","v":0},{"$f":"'Interest Rate-Liquidity (Rev.)'!T84","v":0},null,null,0]
[null,{"$f":"'Interest Rate-Liquidity (Rev.)'!B85","v":"Other currency 3"},null,{"$f":"'Schedule XXIII'!M45","v":0},{"$f":"'Schedule XXIII'!P45","v":0},{"$f":"'Schedule XXIII'!S45","v":0},null,{"$f":"'Interest Rate-Liquidity (Rev.)'!S85","v":0},{"$f":"'Interest Rate-Liquidity (Rev.)'!T85","v":0},null,null,0]
[null,{"$f":"'Interest Rate-Liquidity (Rev.)'!B86","v":"Other currency 4"},null,{"$f":"'Schedule XXIII'!M46","v":0},{"$f":"'Schedule XXIII'!P46","v":0},{"$f":"'Schedule XXIII'!S46","v":0},null,{"$f":"'Interest Rate-Liquidity (Rev.)'!S86","v":0},{"$f":"'Interest Rate-Liquidity (Rev.)'!T86","v":0},null,null,0]
[null,{"$f":"'Interest Rate-Liquidity (Rev.)'!B87","v":"Other currency 5"},null,{"$f":"'Schedule XXIII'!M47","v":0},{"$f":"'Schedule XXIII'!P47","v":0},{"$f":"'Schedule XXIII'!S47","v":0},null,{"$f":"'Interest Rate-Liquidity (Rev.)'!S87","v":0},{"$f":"'Interest Rate-Liquidity (Rev.)'!T87","v":0},null,null,0]
[null,{"$f":"'Interest Rate-Liquidity (Rev.)'!B88","v":"Other currency 6"},null,{"$f":"'Schedule XXIII'!M48","v":0},{"$f":"'Schedule XXIII'!P48","v":0},{"$f":"'Schedule XXIII'!S48","v":0},null,{"$f":"'Interest Rate-Liquidity (Rev.)'!S88","v":0},{"$f":"'Interest Rate-Liquidity (Rev.)'!T88","v":0},null,null,0]
[null,{"$f":"'Interest Rate-Liquidity (Rev.)'!B89","v":"Other currency 7"},null,{"$f":"'Schedule XXIII'!M49","v":0},{"$f":"'Schedule XXIII'!P49","v":0},{"$f":"'Schedule XXIII'!S49","v":0},null,{"$f":"'Interest Rate-Liquidity (Rev.)'!S89","v":0},{"$f":"'Interest Rate-Liquidity (Rev.)'!T89","v":0},null,null,0]
[null,{"$f":"'Interest Rate-Liquidity (Rev.)'!B90","v":"Other currency 8"},null,{"$f":"'Schedule XXIII'!M50","v":0},{"$f":"'Schedule XXIII'!P50","v":0},{"$f":"'Schedule XXIII'!S50","v":0},null,{"$f":"'Interest Rate-Liquidity (Rev.)'!S90","v":0},{"$f":"'Interest Rate-Liquidity (Rev.)'!T90","v":0},null,null,0]
[null,{"$f":"'Interest Rate-Liquidity (Rev.)'!B91","v":"Other currency 9"},null,{"$f":"'Schedule XXIII'!M51","v":0},{"$f":"'Schedule XXIII'!P51","v":0},{"$f":"'Schedule XXIII'!S51","v":0},null,{"$f":"'Interest Rate-Liquidity (Rev.)'!S91","v":0},{"$f":"'Interest Rate-Liquidity (Rev.)'!T91","v":0},null,null,0]
[null,{"$f":"'Interest Rate-Liquidity (Rev.)'!B92","v":"Other currency 10"},null,{"$f":"'Schedule XXIII'!M52","v":0},{"$f":"'Schedule XXIII'!P52","v":0},{"$f":"'Schedule XXIII'!S52","v":0},null,{"$f":"'Interest Rate-Liquidity (Rev.)'!S92","v":0},{"$f":"'Interest Rate-Liquidity (Rev.)'!T92","v":0},null,null,0]
[null,{"$f":"'Interest Rate-Liquidity (Rev.)'!B93","v":"Total IR - Derivatives"},null,{"$f":"SUM(D272:D289)","v":0},0,0,null,0,0,null,{"$f":"SUM(K272:K289)","v":0},{"$f":"SUM(L272:L289)","v":0}]
[null,{"$f":"'Interest Rate-Liquidity (Rev.)'!B94","v":"Total IR - UP"},null,{"$f":"D269+D290","v":0},{"$f":"E269+E290","v":0},0,null,{"$f":"MAX(0,H269+H290)","v":0},{"$f":"MAX(0,I269+I290)","v":0},null,{"$f":"MAX(0,K269+K290)","v":0},{"$f":"MAX(0,L269+L290)","v":0}]
[]
[null,{"$f":"'Interest Rate-Liquidity (Rev.)'!B97","v":"Overall Interest Rate Risk"},null,null,null,null,"Scenario-Based Approach"]
[]
[null,{"$f":"'Interest Rate-Liquidity (Rev.)'!B99","v":"Interest Rates Down Shock - without Management Actions"},null,null,null,{"$f":"H248","v":0}]
[null,{"$f":"'Interest Rate-Liquidity (Rev.)'!B100","v":"Interest Rates Up Shock - without Management Actions"},null,null,null,{"$f":"H269","v":0}]
[null,{"$f":"'Interest Rate-Liquidity (Rev.)'!B101","v":"Max(IR Down, IR Up) - without MA"},null,null,null,{"$f":"MAX(0,F295,F296)","v":0}]
[]
[null,{"$f":"'Interest Rate-Liquidity (Rev.)'!B103","v":"Interest Rate Risk without Management Actions"},null,null,null,{"$f":"IF(F305=\"UP\",F296,F295)","v":0},"Adj. IR Risk Cap. Req.",{"$f":"'Interest Rate-Liquidity (Rev.)'!D115","v":0},{"$f":"'Interest Rate-Liquidity (Rev.)'!E115","v":0},null,{"$f":"H299","v":0},{"$f":"I299","v":0}]
[]
[]
[null,{"$f":"'Interest Rate-Liquidity (Rev.)'!B106","v":"Interest Rates Down Shock - with Management Actions"},null,null,null,{"$f":"I248","v":0}]
[null,{"$f":"'Interest Rate-Liquidity (Rev.)'!B107","v":"Interest Rates Up Shock - with Management Actions"},null,null,null,{"$f":"I269","v":0}]
[null,{"$f":"'Interest Rate-Liquidity (Rev.)'!B108","v":"Max(IR Down, IR Up) - with MA"},null,null,null,{"$f":"MAX(F302,F303)","v":0}]
[null,{"$f":"'Interest Rate-Liquidity (Rev.)'!B109","v":"Biting scenario"},null,null,null,{"$f":"IF(F304=F302,\"DOWN\",\"UP\")","v":"DOWN"},null,"W/O Mgmt. Action","Mgmt. Action",null,"W/O Mgmt. Action","Mgmt. Action"]
[]
[null,{"$f":"'Interest Rate-Liquidity (Rev.)'!B111","v":"Interest Rate Risk with Management Actions"},null,null,null,{"$f":"F304","v":0}]
[]
[null,"Interest Rate Risk capital requirement",null,null,null,null,null,{"$f":"'Interest Rate-Liquidity (Rev.)'!D117","v":0},{"$f":"'Interest Rate-Liquidity (Rev.)'!E117","v":0},null,{"$f":"H309","v":0},{"$f":"I309","v":0}]
[]
[null,null,"ASSETS",null,null,null,null,"CAPITAL","CAPITAL",null,"USER","USER"]
[null,null,null,"Long Exposures",null,"Long Exposures",null,"CHARGE","CHARGE",null,"CAPITAL","REQUIRED"]
[null,"CURRENCY RISK","Assets - Excluding currency-sensitive derivatives","Currency Derivatives Qualifying as held for risk-mitigation purposes","Currency Derivatives Not Qualifying as held for risk-mitigation purposes","Currency Derivatives Qualifying as held for risk-mitigation purposes","Currency Derivatives Not Qualifying as held for risk-mitigation purposes","W/O MGMT","W MGMT",null,"FACTOR","CAPITAL"]
[]
[null,{"$f":"'Currency Risk (Revised)'!B12","v":"United States Dollars"},{"$f":"'Schedule XXA'!D10","v":0},{"$f":"'Schedule XXA'!F10","v":0},{"$f":"'Schedule XXA'!H10","v":0},{"$f":"'Schedule XXA'!J10","v":0},{"$f":"'Schedule XXA'!L10","v":0},{"$f":"'Currency Risk (Revised)'!X12","v":0},{"$f":"'Currency Risk (Revised)'!Y12","v":0},null,null,{"$f":"MAX(0,IF(K315=\"\",H315,K315*SUM(C315:G315)))","v":0}]
[null,{"$f":"'Currency Risk (Revised)'!B13","v":"Bermuda Dollars"},{"$f":"'Schedule XXA'!D11","v":0},{"$f":"'Schedule XXA'!F11","v":0},{"$f":"'Schedule XXA'!H11","v":0},{"$f":"'Schedule XXA'!J11","v":0},{"$f":"'Schedule XXA'!L11","v":0},{"$f":"'Currency Risk (Revised)'!X13","v":0},{"$f":"'Currency Risk (Revised)'!Y13","v":0},null,null,{"$f":"MAX(0,IF(K316=\"\",H316,K316*SUM(C316:G316)))","v":0}]
[null,{"$f":"'Currency Risk (Revised)'!B14","v":"Qatar Riyals"},{"$f":"'Schedule XXA'!D12","v":0},{"$f":"'Schedule XXA'!F12","v":0},{"$f":"'Schedule XXA'!H12","v":0},{"$f":"'Schedule XXA'!J12","v":0},{"$f":"'Schedule XXA'!L12","v":0},{"$f":"'Currency Risk (Revised)'!X14","v":0},{"$f":"'Currency Risk (Revised)'!Y14","v":0},null,null,{"$f":"MAX(0,IF(K317=\"\",H317,K317*SUM(C317:G317)))","v":0}]
[null,{"$f":"'Currency Risk (Revised)'!B15","v":"Hong Kong Dollars"},{"$f":"'Schedule XXA'!D13","v":0},{"$f":"'Schedule XXA'!F13","v":0},{"$f":"'Schedule XXA'!H13","v":0},{"$f":"'Schedule XXA'!J13","v":0},{"$f":"'Schedule XXA'!L13","v":0},{"$f":"'Currency Risk (Revised)'!X15","v":0},{"$f":"'Currency Risk (Revised)'!Y15","v":0},null,null,0]
[null,{"$f":"'Currency Risk (Revised)'!B16","v":"Euro"},{"$f":"'Schedule XXA'!D14","v":0},{"$f":"'Schedule XXA'!F14","v":0},{"$f":"'Schedule XXA'!H14","v":0},{"$f":"'Schedule XXA'!J14","v":0},{"$f":"'Schedule XXA'!L14","v":0},{"$f":"'Currency Risk (Revised)'!X16","v":0},{"$f":"'Currency Risk (Revised)'!Y16","v":0},null,null,0]
[null,{"$f":"'Currency Risk (Revised)'!B17","v":"Denmark Kroner"},{"$f":"'Schedule XXA'!D15","v":0},{"$f":"'Schedule XXA'!F15","v":0},{"$f":"'Schedule XXA'!H15","v":0},{"$f":"'Schedule XXA'!J15","v":0},{"$f":"'Schedule XXA'!L15","v":0},{"$f":"'Currency Risk (Revised)'!X17","v":0},{"$f":"'Currency Risk (Revised)'!Y17","v":0},null,null,0]
[null,{"$f":"'Currency Risk (Revised)'!B18","v":"Bulgaria Leva"},{"$f":"'Schedule XXA'!D16","v":0},{"$f":"'Schedule XXA'!F16","v":0},{"$f":"'Schedule XXA'!H16","v":0},{"$f":"'Schedule XXA'!J16","v":0},{"$f":"'Schedule XXA'!L16","v":0},{"$f":"'Currency Risk (Revised)'!X18","v":0},{"$f":"'Currency Risk (Revised)'!Y18","v":0},null,null,0]
[null,{"$f":"'Currency Risk (Revised)'!B19","v":"West African CFA Francs"},{"$f":"'Schedule XXA'!D17","v":0},{"$f":"'Schedule XXA'!F17","v":0},{"$f":"'Schedule XXA'!H17","v":0},{"$f":"'Schedule XXA'!J17","v":0},{"$f":"'Schedule XXA'!L17","v":0},{"$f":"'Currency Risk (Revised)'!X19","v":0},{"$f":"'Currency Risk (Revised)'!Y19","v":0},null,null,0]
[null,{"$f":"'Currency Risk (Revised)'!B20","v":"Central African CFA Francs"},{"$f":"'Schedule XXA'!D18","v":0},{"$f":"'Schedule XXA'!F18","v":0},{"$f":"'Schedule XXA'!H18","v":0},{"$f":"'Schedule XXA'!J18","v":0},{"$f":"'Schedule XXA'!L18","v":0},{"$f":"'Currency Risk (Revised)'!X20","v":0},{"$f":"'Currency Risk (Revised)'!Y20","v":0},null,null,0]
[null,{"$f":"'Currency Risk (Revised)'!B21","v":"Comorian Francs"},{"$f":"'Schedule XXA'!D19","v":0},{"$f":"'Schedule XXA'!F19","v":0},{"$f":"'Schedule XXA'!H19","v":0},{"$f":"'Schedule XXA'!J19","v":0},{"$f":"'Schedule XXA'!L19","v":0},{"$f":"'Currency Risk (Revised)'!X21","v":0},{"$f":"'Currency Risk (Revised)'!Y21","v":0},null,null,0]
[null,{"$f":"'Currency Risk (Revised)'!B22","v":"United Kingdom Pounds"},{"$f":"'Schedule XXA'!D20","v":0},{"$f":"'Schedule XXA'!F20","v":0},{"$f":"'Schedule XXA'!H20","v":0},{"$f":"'Schedule XXA'!J20","v":0},{"$f":"'Schedule XXA'!L20","v":0},{"$f":"'Currency Risk (Revised)'!X22","v":0},{"$f":"'Currency Risk (Revised)'!Y22","v":0},null,null,0]
[null,{"$f":"'Currency Risk (Revised)'!B23","v":"Canada Dollars"},{"$f":"'Schedule XXA'!D21","v":0},{"$f":"'Schedule XXA'!F21","v":0},{"$f":"'Schedule XXA'!H21","v":0},{"$f":"'Schedule XXA'!J21","v":0},{"$f":"'Schedule XXA'!L21","v":0},{"$f":"'Currency Risk (Revised)'!X23","v":0},{"$f":"'Currency Risk (Revised)'!Y23","v":0},null,null,0]
[null,{"$f":"'Currency Risk (Revised)'!B24","v":"Japan Yen"},{"$f":"'Schedule XXA'!D22","v":0},{"$f":"'Schedule XXA'!F22","v":0},{"$f":"'Schedule XXA'!H22","v":0},{"$f":"'Schedule XXA'!J22","v":0},{"$f":"'Schedule XXA'!L22","v":0},{"$f":"'Currency Risk (Revised)'!X24","v":0},{"$f":"'Currency Risk (Revised)'!Y24","v":0},null,null,0]
[null,{"$f":"'Currency Risk (Revised)'!B25","v":"Other currency 1"},{"$f":"'Schedule XXA'!D23","v":0},{"$f":"'Schedule XXA'!F23","v":0},{"$f":"'Schedule XXA'!H23","v":0},{"$f":"'Schedule XXA'!J23","v":0},{"$f":"'Schedule XXA'!L23","v":0},{"$f":"'Currency Risk (Revised)'!X25","v":0},{"$f":"'Currency Risk (Revised)'!Y25","v":0},null,null,0]
[null,{"$f":"'Currency Risk (Revised)'!B26","v":"Other currency 2"},{"$f":"'Schedule XXA'!D24","v":0},{"$f":"'Schedule XXA'!F24","v":0},{"$f":"'Schedule XXA'!H24","v":0},{"$f":"'Schedule XXA'!J24","v":0},{"$f":"'Schedule XXA'!L24","v":0},{"$f":"'Currency Risk (Revised)'!X26","v":0},{"$f":"'Currency Risk (Revised)'!Y26","v":0},null,null,0]
[null,{"$f":"'Currency Risk (Revised)'!B27","v":"Other currency 3"},{"$f":"'Schedule XXA'!D25","v":0},{"$f":"'Schedule XXA'!F25","v":0},{"$f":"'Schedule XXA'!H25","v":0},{"$f":"'Schedule XXA'!J25","v":0},{"$f":"'Schedule XXA'!L25","v":0},{"$f":"'Currency Risk (Revised)'!X27","v":0},{"$f":"'Currency Risk (Revised)'!Y27","v":0},null,null,0]
[null,{"$f":"'Currency Risk (Revised)'!B28","v":"Other currency 4"},{"$f":"'Schedule XXA'!D26","v":0},{"$f":"'Schedule XXA'!F26","v":0},{"$f":"'Schedule XXA'!H26","v":0},{"$f":"'Schedule XXA'!J26","v":0},{"$f":"'Schedule XXA'!L26","v":0},{"$f":"'Currency Risk (Revised)'!X28","v":0},{"$f":"'Currency Risk (Revised)'!Y28","v":0},null,null,0]
[null,{"$f":"'Currency Risk (Revised)'!B29","v":"Other currency 5"},{"$f":"'Schedule XXA'!D27","v":0},{"$f":"'Schedule XXA'!F27","v":0},{"$f":"'Schedule XXA'!H27","v":0},{"$f":"'Schedule XXA'!J27","v":0},{"$f":"'Schedule XXA'!L27","v":0},{"$f":"'Currency Risk (Revised)'!X29","v":0},{"$f":"'Currency Risk (Revised)'!Y29","v":0},null,null,0]
[null,{"$f":"'Currency Risk (Revised)'!B30","v":"Other currency 6"},{"$f":"'Schedule XXA'!D28","v":0},{"$f":"'Schedule XXA'!F28","v":0},{"$f":"'Schedule XXA'!H28","v":0},{"$f":"'Schedule XXA'!J28","v":0},{"$f":"'Schedule XXA'!L28","v":0},{"$f":"'Currency Risk (Revised)'!X30","v":0},{"$f":"'Currency Risk (Revised)'!Y30","v":0},null,null,0]
[null,{"$f":"'Currency Risk (Revised)'!B31","v":"Other currency 7"},{"$f":"'Schedule XXA'!D29","v":0},{"$f":"'Schedule XXA'!F29","v":0},{"$f":"'Schedule XXA'!H29","v":0},{"$f":"'Schedule XXA'!J29","v":0},{"$f":"'Schedule XXA'!L29","v":0},{"$f":"'Currency Risk (Revised)'!X31","v":0},{"$f":"'Currency Risk (Revised)'!Y31","v":0},null,null,0]
[null,{"$f":"'Currency Risk (Revised)'!B32","v":"Other currency 8"},{"$f":"'Schedule XXA'!D30","v":0},{"$f":"'Schedule XXA'!F30","v":0},{"$f":"'Schedule XXA'!H30","v":0},{"$f":"'Schedule XXA'!J30","v":0},{"$f":"'Schedule XXA'!L30","v":0},{"$f":"'Currency Risk (Revised)'!X32","v":0},{"$f":"'Currency Risk (Revised)'!Y32","v":0},null,null,0]
[null,{"$f":"'Currency Risk (Revised)'!B33","v":"Other currency 9"},{"$f":"'Schedule XXA'!D31","v":0},{"$f":"'Schedule XXA'!F31","v":0},{"$f":"'Schedule XXA'!H31","v":0},{"$f":"'Schedule XXA'!J31","v":0},{"$f":"'Schedule XXA'!L31","v":0},{"$f":"'Currency Risk (Revised)'!X33","v":0},{"$f":"'Currency Risk (Revised)'!Y33","v":0},null,null,0]
[null,{"$f":"'Currency Risk (Revised)'!B34","v":"Other currency 10"},{"$f":"'Schedule XXA'!D32","v":0},{"$f":"'Schedule XXA'!F32","v":0},{"$f":"'Schedule XXA'!H32","v":0},{"$f":"'Schedule XXA'!J32","v":0},{"$f":"'Schedule XXA'!L32","v":0},{"$f":"'Currency Risk (Revised)'!X34","v":0},{"$f":"'Currency Risk (Revised)'!Y34","v":0},null,null,0]
[null,{"$f":"'Currency Risk (Revised)'!B36","v":"Total"},{"$f":"SUM(C315:C337)","v":0},{"$f":"SUM(D315:D337)","v":0},{"$f":"SUM(E315:E337)","v":0},{"$f":"SUM(F315:F337)","v":0},{"$f":"SUM(G315:G337)","v":0},{"$f":"SUM(H315:H337)","v":0},0,null,{"$f":"SUM(K315:K337)","v":0},{"$f":"SUM(L315:L337)","v":0}]
[]
[null,null,null,null,null,null,null,"W/O Mgmt. Action","Mgmt. Action",null,"W/O Mgmt. Action","Mgmt. Action"]
[]
[null,"CURRENCY RISK",null,null,null,null,null,{"$f":"IF(SUM(H315:H337)>=0,SUM(H315:H337),0)","v":0},{"$f":"IF(SUM(I315:I337)>=0,SUM(I315:I337),0)","v":0},null,{"$f":"IF(SUM(L315:L337)>=0,SUM(L315:L337),0)","v":0},{"$f":"IF(SUM(L315:L337)>=0,SUM(L315:L337),0)","v":0}]
[]
[null,"CONCENTRATION RISK",null,null,null,null,null,"STANDARD","STANDARD",null,"USER","USER"]
[null,null,null,null,null,null,"EXPOSURE","CAPITAL","REQUIRED",null,"CAPITAL","REQUIRED"]
[null,"ASSET TYPE",null,null,null,null,"VALUE","FACTOR","CAPITAL",null,"FACTOR","CAPITAL"]
[]
[null,"(a) Cash and Cash Equivalents"]
[null,"BSCR Rating 0",null,null,null,null,{"$f":"'Concentration Risk (Revised)'!D10","v":0},{"$f":"+'Fixed Income Investments'!E83","v":0},{"$f":"IF(G349<0,0,G349*H349)","v":0},null,null,{"$f":"MAX(0,IF(K349=\"\",H349*G349,G349*K349))","v":0}]
[null,"BSCR Rating 1",null,null,null,null,{"$f":"'Concentration Risk (Revised)'!D11","v":0},{"$f":"+'Fixed Income Investments'!E84","v":1E-3},{"$f":"IF(G350<0,0,G350*H350)","v":0},null,null,{"$f":"MAX(0,IF(K350=\"\",H350*G350,G350*K350))","v":0}]
[null,"BSCR Rating 2",null,null,null,null,{"$f":"'Concentration Risk (Revised)'!D12","v":0},{"$f":"+'Fixed Income Investments'!E85","v":2E-3},{"$f":"IF(G351<0,0,G351*H351)","v":0},null,null,{"$f":"MAX(0,IF(K351=\"\",H351*G351,G351*K351))","v":0}]
[null,"BSCR Rating 3",null,null,null,null,{"$f":"'Concentration Risk (Revised)'!D13","v":0},{"$f":"+'Fixed Income Investments'!E86","v":3.0000000000000001E-3},0,null,null,0]
[null,"BSCR Rating 4",null,null,null,null,{"$f":"'Concentration Risk (Revised)'!D14","v":0},{"$f":"+'Fixed Income Investments'!E87","v":5.0000000000000001E-3},0,null,null,0]
[null,"BSCR Rating 5",null,null,null,null,{"$f":"'Concentration Risk (Revised)'!D15","v":0},{"$f":"+'Fixed Income Investments'!E88","v":1.4999999999999999E-2},0,null,null,0]
[null,"BSCR Rating 6",null,null,null,null,{"$f":"'Concentration Risk (Revised)'!D16","v":0},{"$f":"+'Fixed Income Investments'!E89","v":0.04},0,null,null,0]
[null,"BSCR Rating 7",null,null,null,null,{"$f":"'Concentration Risk (Revised)'!D17","v":0},{"$f":"+'Fixed Income Investments'!E90","v":0.06},0,null,null,0]
[null,"BSCR Rating 8",null,null,null,null,{"$f":"'Concentration Risk (Revised)'!D18","v":0},{"$f":"+'Fixed Income Investments'!E91","v":0.09},0,null,null,0]
[]
[null,"(a)  SUBTOTAL - CASH AND CASH EQUIVALENTS",null,null,null,null,{"$f":"SUM(G349:G357)","v":0},null,{"$f":"SUM(I349:I357)","v":0},null,null,{"$f":"SUM(L349:L357)","v":0}]
[]
[null,"(b) Corporate & Sovereign Bonds"]
[null,"BSCR Rating 0",null,null,null,null,{"$f":"'Concentration Risk (Revised)'!D23","v":0},{"$f":"+H15","v":0},{"$f":"IF(G362<0,0,G362*H362)","v":0},null,null,{"$f":"MAX(0,IF(K362=\"\",H362*G362,G362*K362))","v":0}]
[null,"BSCR Rating 1",null,null,null,null,{"$f":"'Concentration Risk (Revised)'!D24","v":0},4.0000000000000001E-3,0,null,null,{"$f":"MAX(0,IF(K363=\"\",H363*G363,G363*K363))","v":0}]
[null,"BSCR Rating 2",null,null,null,null,{"$f":"'Concentration Risk (Revised)'!D25","v":0},8.0000000000000002E-3,0,null,null,{"$f":"MAX(0,IF(K364=\"\",H364*G364,G364*K364))","v":0}]
[null,"BSCR Rating 3",null,null,null,null,{"$f":"'Concentration Risk (Revised)'!D26","v":0},1.4999999999999999E-2,0,null,null,0]
[null,"BSCR Rating 4",null,null,null,null,{"$f":"'Concentration Risk (Revised)'!D27","v":0},0.03,0,null,null,0]
[null,"BSCR Rating 5",null,null,null,null,{"$f":"'Concentration Risk (Revised)'!D28","v":0},0.08,0,null,null,0]
[null,"BSCR Rating 6",null,null,null,null,{"$f":"'Concentration Risk (Revised)'!D29","v":0},0.15,0,null,null,0]
[null,"BSCR Rating 7",null,null,null,null,{"$f":"'Concentration Risk (Revised)'!D30","v":0},0.26300000000000001,0,null,null,0]
[null,"BSCR Rating 8",null,null,null,null,{"$f":"'Concentration Risk (Revised)'!D31","v":0},0.35,0,null,null,0]
[]
[null,"(b)  SUBTOTAL - CORPORATE & SOVEREIGN BONDS",null,null,null,null,{"$f":"SUM(G362:G370)","v":0},null,{"$f":"SUM(I362:I370)","v":0},null,null,{"$f":"SUM(L362:L370)","v":0}]
[]
[null,"(c) Residential Mortage-Backed Securities"]
[null,"BSCR Rating 0",null,null,null,null,{"$f":"'Concentration Risk (Revised)'!D36","v":0},0,{"$f":"IF(G375<0,0,G375*H375)","v":0},null,null,{"$f":"MAX(0,IF(K375=\"\",H375*G375,G375*K375))","v":0}]
[null,"BSCR Rating 1",null,null,null,null,{"$f":"'Concentration Risk (Revised)'!D37","v":0},{"$f":"+H30","v":6.0000000000000001E-3},0,null,null,{"$f":"MAX(0,IF(K376=\"\",H376*G376,G376*K376))","v":0}]
[null,"BSCR Rating 2",null,null,null,null,{"$f":"'Concentration Risk (Revised)'!D38","v":0},1.2E-2,0,null,null,{"$f":"MAX(0,IF(K377=\"\",H377*G377,G377*K377))","v":0}]
[null,"BSCR Rating 3",null,null,null,null,{"$f":"'Concentration Risk (Revised)'!D39","v":0},0.02,0,null,null,0]
[null,"BSCR Rating 4",null,null,null,null,{"$f":"'Concentration Risk (Revised)'!D40","v":0},0.04,0,null,null,0]
[null,"BSCR Rating 5",null,null,null,null,{"$f":"'Concentration Risk (Revised)'!D41","v":0},0.11,0,null,null,0]
[null,"BSCR Rating 6",null,null,null,null,{"$f":"'Concentration Risk (Revised)'!D42","v":0},0.25,0,null,null,0]
[null,"BSCR Rating 7",null,null,null,null,{"$f":"'Concentration Risk (Revised)'!D43","v":0},0.35,0,null,null,0]
[null,"BSCR Rating 8",null,null,null,null,{"$f":"'Concentration Risk (Revised)'!D44","v":0},0.35,0,null,null,0]
[]
[null,"(c)  SUBTOTAL - RESIDENTIAL MORTGAGE-BACKED SECURITIES",null,null,null,null,{"$f":"SUM(G375:G383)","v":0},null,{"$f":"SUM(I375:I383)","v":0},null,null,{"$f":"SUM(L375:L383)","v":0}]
[]
[null,"(d) Commercial Mortgage-Backed Securities / Asset Backed Securities"]
[null,"BSCR Rating 0",null,null,null,null,{"$f":"'Concentration Risk (Revised)'!D49","v":0},0,{"$f":"IF(G388<0,0,G388*H388)","v":0},null,null,{"$f":"MAX(0,IF(K388=\"\",H388*G388,G388*K388))","v":0}]
[null,"BSCR Rating 1",null,null,null,null,{"$f":"'Concentration Risk (Revised)'!D50","v":0},{"$f":"+H44","v":5.0000000000000001E-3},0,null,null,{"$f":"MAX(0,IF(K389=\"\",H389*G389,G389*K389))","v":0}]
[null,"BSCR Rating 2",null,null,null,null,{"$f":"'Concentration Risk (Revised)'!D51","v":0},0.01,0,null,null,{"$f":"MAX(0,IF(K390=\"\",H390*G390,G390*K390))","v":0}]
[null,"BSCR Rating 3",null,null,null,null,{"$f":"'Concentration Risk (Revised)'!D52","v":0},1.7999999999999999E-2,0,null,null,0]
[null,"BSCR Rating 4",null,null,null,null,{"$f":"'Concentration Risk (Revised)'!D53","v":0},3.5000000000000003E-2,0,null,null,0]
[null,"BSCR Rating 5",null,null,null,null,{"$f":"'Concentration Risk (Revised)'!D54","v":0},0.1,0,null,null,0]
[null,"BSCR Rating 6",null,null,null,null,{"$f":"'Concentration Risk (Revised)'!D55","v":0},0.2,0,null,null,0]
[null,"BSCR Rating 7",null,null,null,null,{"$f":"'Concentration Risk (Revised)'!D56","v":0},0.3,0,null,null,0]
[null,"BSCR Rating 8",null,null,null,null,{"$f":"'Concentration Risk (Revised)'!D57","v":0},0.35,0,null,null,0]
[]
[null,"(d)  SUBTOTAL - COMMERCIAL MORTGAGE-BACKED SECURITIES / ASSET-BACKED SECURITIES",null,null,null,null,{"$f":"SUM(G388:G396)","v":0},null,{"$f":"SUM(I388:I396)","v":0},null,null,{"$f":"SUM(L388:L396)","v":0}]
[]
[null,"(e) Bond Mutual Funds"]
[null,"BSCR Rating 0",null,null,null,null,{"$f":"'Concentration Risk (Revised)'!D62","v":0},{"$f":"+H58","v":0},{"$f":"IF(G401<0,0,G401*H401)","v":0},null,null,{"$f":"MAX(0,IF(K401=\"\",H401*G401,G401*K401))","v":0}]
[null,"BSCR Rating 1",null,null,null,null,{"$f":"'Concentration Risk (Revised)'!D63","v":0},4.0000000000000001E-3,0,null,null,{"$f":"MAX(0,IF(K402=\"\",H402*G402,G402*K402))","v":0}]
[null,"BSCR Rating 2",null,null,null,null,{"$f":"'Concentration Risk (Revised)'!D64","v":0},8.0000000000000002E-3,0,null,null,{"$f":"MAX(0,IF(K403=\"\",H403*G403,G403*K403))","v":0}]
[null,"BSCR Rating 3",null,null,null,null,{"$f":"'Concentration Risk (Revised)'!D65","v":0},1.4999999999999999E-2,0,null,null,0]
[null,"BSCR Rating 4",null,null,null,null,{"$f":"'Concentration Risk (Revised)'!D66","v":0},0.03,0,null,null,0]
[null,"BSCR Rating 5",null,null,null,null,{"$f":"'Concentration Risk (Revised)'!D67","v":0},0.08,0,null,null,0]
[null,"BSCR Rating 6",null,null,null,null,{"$f":"'Concentration Risk (Revised)'!D68","v":0},0.15,0,null,null,0]
[null,"BSCR Rating 7",null,null,null,null,{"$f":"'Concentration Risk (Revised)'!D69","v":0},0.26300000000000001,0,null,null,0]
[null,"BSCR Rating 8",null,null,null,null,{"$f":"'Concentration Risk (Revised)'!D70","v":0},0.35,0,null,null,0]
[]
[null,"(e)  SUBTOTAL - BOND MUTUAL FUNDS",null,null,null,null,{"$f":"SUM(G401:G409)","v":0},null,{"$f":"SUM(I401:I409)","v":0},null,null,{"$f":"SUM(L401:L409)","v":0}]
[]
[null,"(f) Preferred Shares"]
[null,"BSCR Rating 0",null,null,null,null,{"$f":"'Concentration Risk (Revised)'!D75","v":0},{"$f":"+'Concentration Risk'!E75","v":0},{"$f":"IF(G414<0,0,G414*H414)","v":0},null,null,{"$f":"MAX(0,IF(K414=\"\",H414*G414,G414*K414))","v":0}]
[null,"BSCR Rating 1",null,null,null,null,{"$f":"'Concentration Risk (Revised)'!D76","v":0},{"$f":"+'Concentration Risk'!E76","v":6.0000000000000001E-3},{"$f":"IF(G415<0,0,G415*H415)","v":0},null,null,{"$f":"MAX(0,IF(K415=\"\",H415*G415,G415*K415))","v":0}]
[null,"BSCR Rating 2",null,null,null,null,{"$f":"'Concentration Risk (Revised)'!D77","v":0},{"$f":"+'Concentration Risk'!E77","v":1.2E-2},0,null,null,0]
[null,"BSCR Rating 3",null,null,null,null,{"$f":"'Concentration Risk (Revised)'!D78","v":0},{"$f":"+'Concentration Risk'!E78","v":0.02},0,null,null,0]
[null,"BSCR Rating 4",null,null,null,null,{"$f":"'Concentration Risk (Revised)'!D79","v":0},{"$f":"+'Concentration Risk'!E79","v":0.04},0,null,null,0]
[null,"BSCR Rating 5",null,null,null,null,{"$f":"'Concentration Risk (Revised)'!D80","v":0},{"$f":"+'Concentration Risk'!E80","v":0.11},0,null,null,0]
[null,"BSCR Rating 6",null,null,null,null,{"$f":"'Concentration Risk (Revised)'!D81","v":0},{"$f":"+'Concentration Risk'!E81","v":0.25},0,null,null,0]
[null,"BSCR Rating 7",null,null,null,null,{"$f":"'Concentration Risk (Revised)'!D82","v":0},{"$f":"+'Concentration Risk'!E82","v":0.35},0,null,null,0]
[null,"BSCR Rating 8",null,null,null,null,{"$f":"'Concentration Risk (Revised)'!D83","v":0},{"$f":"+'Concentration Risk'!E83","v":0.35},0,null,null,0]
[]
[null,"(f)  SUBTOTAL - PREFERRED SHARES",null,null,null,null,{"$f":"SUM(G414:G422)","v":0},null,{"$f":"SUM(I414:I422)","v":0},null,null,{"$f":"SUM(L414:L422)","v":0}]
[]
[null,"(g) Mortgage Loans"]
[null,"Insured/Guaranteed Mortgages",null,null,null,null,{"$f":"'Concentration Risk (Revised)'!D88","v":0},{"$f":"+'Concentration Risk'!E88","v":3.0000000000000001E-3},{"$f":"IF(G427<0,0,G427*H427)","v":0},null,null,{"$f":"MAX(0,IF(K427=\"\",H427*G427,G427*K427))","v":0}]
[null,"Other Commercial and Farm Mortgages",null,null,null,null,{"$f":"'Concentration Risk (Revised)'!D89","v":0},{"$f":"+'Concentration Risk'!E89","v":0.05},{"$f":"IF(G428<0,0,G428*H428)","v":0},null,null,{"$f":"MAX(0,IF(K428=\"\",H428*G428,G428*K428))","v":0}]
[null,"Other Residential Mortgages",null,null,null,null,{"$f":"'Concentration Risk (Revised)'!D90","v":0},{"$f":"+'Concentration Risk'!E90","v":1.4999999999999999E-2},{"$f":"IF(G429<0,0,G429*H429)","v":0},null,null,{"$f":"MAX(0,IF(K429=\"\",H429*G429,G429*K429))","v":0}]
[null,"Mortgages Not In Good Standing",null,null,null,null,{"$f":"'Concentration Risk (Revised)'!D91","v":0},{"$f":"+'Concentration Risk'!E91","v":0.25},{"$f":"IF(G430<0,0,G430*H430)","v":0},null,null,{"$f":"MAX(0,IF(K430=\"\",H430*G430,G430*K430))","v":0}]
[]
[null,"(g)  SUBTOTAL - Mortgage Loans",null,null,null,null,{"$f":"SUM(G426:G430)","v":0},null,{"$f":"SUM(I426:I430)","v":0},null,null,{"$f":"SUM(L426:L430)","v":0}]
[]
[null,"(h) Other Asset Classes"]
[null,"Infrastructure (Non-affiliate holdings, non-duration based)",null,null,null,null,{"$f":"'Concentration Risk (Revised)'!D96","v":0},{"$f":"'Concentration Risk (Revised)'!E96","v":0.25},{"$f":"IF(G435<0,0,G435*H435)","v":0},null,null,{"$f":"MAX(0,IF(K435=\"\",H435*G435,G435*K435))","v":0}]
[null,"Listed Equity Securities in Developed Markets",null,null,null,null,{"$f":"'Concentration Risk (Revised)'!D97","v":0},{"$f":"'Concentration Risk (Revised)'!E97","v":0.35},0,null,null,0]
[null,"Other Equities",null,null,null,null,{"$f":"'Concentration Risk (Revised)'!D98","v":0},{"$f":"'Concentration Risk (Revised)'!E98","v":0.45},0,null,null,0]
[null,"Strategic Holdings",null,null,null,null,{"$f":"'Concentration Risk (Revised)'!D99","v":0},{"$f":"'Concentration Risk (Revised)'!E99","v":0.2},0,null,null,0]
[null,"Duration Based",null,null,null,null,{"$f":"'Concentration Risk (Revised)'!D100","v":0},{"$f":"'Concentration Risk (Revised)'!E100","v":0.2},0,null,null,0]
[null,"Letters of Credit",null,null,null,null,{"$f":"'Concentration Risk (Revised)'!D101","v":0},{"$f":"'Concentration Risk (Revised)'!E101","v":0.2},0,null,null,0]
[null,"Advances to Affiliates - ",null,null,null,null,{"$f":"'Concentration Risk (Revised)'!D102","v":0},{"$f":"+'Concentration Risk'!E103","v":0.05},0,null,null,0]
[null,"Policy Loans",null,null,null,null,{"$f":"'Concentration Risk (Revised)'!D103","v":0},{"$f":"+'Concentration Risk'!E104","v":0},0,null,null,0]
[null,"Equity Real Estate 1",null,null,null,null,{"$f":"'Concentration Risk (Revised)'!D104","v":0},{"$f":"+'Concentration Risk'!E105","v":0.1},0,null,null,0]
[null,"Equity Real Estate 2",null,null,null,null,{"$f":"'Concentration Risk (Revised)'!D105","v":0},{"$f":"+'Concentration Risk'!E106","v":0.2},0,null,null,0]
[null,"Collateral Loans",null,null,null,null,{"$f":"'Concentration Risk (Revised)'!D106","v":0},{"$f":"+'Concentration Risk'!E107","v":0.05},0,null,null,0]
[]
[null,"(h)  SUBTOTAL - OTHER ASSET CLASSES",null,null,null,null,{"$f":"SUM(G435:G446)","v":0},null,{"$f":"SUM(I435:I446)","v":0},null,null,{"$f":"SUM(L435:L446)","v":0}]
[]
[null,"(i) Grandfathered - Other Asset Classes"]
[null,"Grandfathered - Common Stock and Mutual Funds",null,null,null,null,{"$f":"'Concentration Risk (Revised)'!D111","v":0},{"$f":"'Concentration Risk (Revised)'!E111","v":0.14399999999999999},{"$f":"IF(G450<0,0,G450*H450)","v":0},null,null,{"$f":"MAX(0,IF(K450=\"\",H450*G450,G450*K450))","v":0}]
[null,"Grandfathered - Other Investments",null,null,null,null,{"$f":"'Concentration Risk (Revised)'!D112","v":0},{"$f":"'Concentration Risk (Revised)'!E112","v":0.2},0,null,null,0]
[null,"Grandfathered - Investment in Affiliates – Unregulated entities that conduct ancillary services",null,null,null,null,{"$f":"'Concentration Risk (Revised)'!D113","v":0},{"$f":"'Concentration Risk (Revised)'!E113","v":0.05},0,null,null,0]
[null,"Grandfathered - Investment in Affiliates - Unregulated non-financial operating entities",null,null,null,null,{"$f":"'Concentration Risk (Revised)'!D114","v":0},{"$f":"'Concentration Risk (Revised)'!E114","v":0.2},0,null,null,0]
[null,"Grandfathered - Investment in Affiliates - Unregulated financial operating entities",null,null,null,null,{"$f":"'Concentration Risk (Revised)'!D115","v":0},{"$f":"'Concentration Risk (Revised)'!E115","v":0.55000000000000004},0,null,null,0]
[null,"Grandfathered - Investment in Affiliates - Regulated non-insurance financial operating entities",null,null,null,null,{"$f":"'Concentration Risk (Revised)'!D116","v":0},{"$f":"'Concentration Risk (Revised)'!E116","v":0.55000000000000004},0,null,null,0]
[null,"Grandfathered - Investment in Affiliates - Regulated insurance financial operating entities",null,null,null,null,{"$f":"'Concentration Risk (Revised)'!D117","v":0},{"$f":"'Concentration Risk (Revised)'!E117","v":0.2},0,null,null,0]
[null,"Grandfathered - Real Estate: Occupied by company",null,null,null,null,{"$f":"'Concentration Risk (Revised)'!D118","v":0},{"$f":"'Concentration Risk (Revised)'!E118","v":0.1},0,null,null,0]
[null,"Grandfathered - Real Estate: Other properties",null,null,null,null,{"$f":"'Concentration Risk (Revised)'!D119","v":0},{"$f":"'Concentration Risk (Revised)'!E119","v":0.2},0,null,null,0]
[]
[null,"(i)  SUBTOTAL - GRANDFATHERED OTHER ASSET CLASSES",null,null,null,null,{"$f":"SUM(G450:G458)","v":0},null,{"$f":"SUM(I450:I458)","v":0},null,null,{"$f":"SUM(L450:L458)","v":0}]
[]
[null,"TOTAL CONCENTRATION RISK",null,null,null,null,{"$f":"G359+G372+G385+G398+G411+G424+G432+G447+G460","v":0},null,{"$f":"I359+I372+I385+I398+I411+I424+I432+I447+I460","v":0},null,null,{"$f":"L359+L372+L385+L398+L411+L424+L432+L447+L460","v":0}]
[]
[null,null,null,null,null,null,null,"STANDARD","STANDARD",null,"USER","USER"]
[null,"TYPE OF ",null,null,null,null,"ASSET","CAPITAL","REQUIRED",null,"CAPITAL","REQUIRED"]
[null,"CREDIT RISK",null,null,null,null,"VALUE","FACTOR","CAPITAL",null,"FACTOR","CAPITAL"]
[]
[null,"(a)  Accounts and Premiums Receivable",null,null,null,null,"(1) ","(2)","(1) x (2)",null,"(3)","(1) x (3)"]
[]
[null,"In Course of Collection",null,null,null,null,{"$f":"'Form 4EBS'!F59","v":0},{"$f":"'Credit Risk (Revised)'!G11","v":0.05},{"$f":"IF(G470<0,0,G470*H470)","v":0},null,null,{"$f":"MAX(0,IF(K470=\"\",H470*G470,G470*K470))","v":0}]
[null,"Deferred - Not Yet Due",null,null,null,null,{"$f":"IF('Form 1SFS'!K68=0,'Form 1SFS'!F68+'Form 1SFS'!H68,'Form 1SFS'!K68)","v":0},{"$f":"'Credit Risk (Revised)'!G12","v":0.05},{"$f":"IF(G471<0,0,G471*H471)","v":0},null,null,{"$f":"MAX(0,IF(K471=\"\",H471*G471,G471*K471))","v":0}]
[null,"Receivables from retrocessional contracts Less: Collateralized Balances",null,null,null,null,{"$f":"'Form 4EBS'!F60-'Form 4EBS'!F196","v":0},{"$f":"'Credit Risk (Revised)'!G13","v":0.1},{"$f":"(G472*H472)","v":0},null,null,{"$f":"IF(K472=\"\",H472*G472,G472*K472)","v":0}]
[]
[null,"(a)  SUBTOTAL - ACCOUNTS AND PREMIUMS RECEIVABLE",null,null,null,null,{"$f":"SUM(G470:G472)","v":0},null,{"$f":"IF(SUM(I470:I472)>=0,SUM(I470:I472),0)","v":0},null,null,{"$f":"IF(SUM(L470:L472)>=0,SUM(L470:L472),0)","v":0}]
[]
[null,"(b)  All Other Receivables"]
[]
[null,"Accrued Investment Income",null,null,null,null,{"$f":"'Form 4EBS'!F56","v":0},{"$f":"'Credit Risk (Revised)'!G19","v":2.5000000000000001E-2},{"$f":"IF(G478<0,0,G478*H478)","v":0},null,null,{"$f":"MAX(0,IF(K478=\"\",H478*G478,G478*K478))","v":0}]
[null,"Advances to Affiliates",null,null,null,null,{"$f":"'Form 4EBS'!F39","v":0},{"$f":"'Credit Risk (Revised)'!G20","v":0.05},{"$f":"IF(G479<0,0,G479*H479)","v":0},null,null,{"$f":"MAX(0,IF(K479=\"\",H479*G479,G479*K479))","v":0}]
[null,"Balances receivable on sale of investments",null,null,null,null,{"$f":"'Form 4EBS'!F80","v":0},{"$f":"'Credit Risk (Revised)'!G22","v":2.5000000000000001E-2},{"$f":"IF(G480<0,0,G480*H480)","v":0},null,null,{"$f":"MAX(0,IF(K480=\"\",H480*G480,G480*K480))","v":0}]
[]
[null,"(b)  SUBTOTAL - ALL OTHER RECEIVABLES",null,null,null,null,{"$f":"SUM(G478:G480)","v":0},null,{"$f":"IF(SUM(I478:I480)>=0,SUM(I478:I480),0)","v":0},null,null,{"$f":"IF(SUM(L478:L480)>=0,SUM(L478:L480),0)","v":0}]
[]
[null,"(c) Particulars of Reinsurance Balances For Current Year By BSCR Rating"]
[]
[null,"BSCR Rating 0 (Domestic Affiliates)",null,null,null,null,{"$f":"'Schedule XVIII (EBS)'!O87","v":0},{"$f":"'Credit Risk (Revised)'!G28","v":0},{"$f":"IF(G486<0,0,G486*H486)","v":0},null,null,{"$f":"MAX(0,IF(K486=\"\",H486*G486,G486*K486))","v":0}]
[null,"BSCR Rating 1",null,null,null,null,{"$f":"'Schedule XVIII (EBS)'!O88","v":0},{"$f":"'Credit Risk (Revised)'!G29","v":7.0000000000000001E-3},{"$f":"IF(G487<0,0,G487*H487)","v":0},null,null,0]
[null,"BSCR Rating 2",null,null,null,null,{"$f":"'Schedule XVIII (EBS)'!O89","v":0},{"$f":"'Credit Risk (Revised)'!G30","v":1.4999999999999999E-2},0,null,null,0]
[null,"BSCR Rating 3",null,null,null,null,{"$f":"'Schedule XVIII (EBS)'!O90","v":0},{"$f":"'Credit Risk (Revised)'!G31","v":3.5000000000000003E-2},0,null,null,0]
[null,"BSCR Rating 4",null,null,null,null,{"$f":"'Schedule XVIII (EBS)'!O91","v":0},{"$f":"'Credit Risk (Revised)'!G32","v":7.0000000000000007E-2},0,null,null,0]
[null,"BSCR Rating 5",null,null,null,null,{"$f":"'Schedule XVIII (EBS)'!O92","v":0},{"$f":"'Credit Risk (Revised)'!G33","v":0.12},0,null,null,0]
[null,"BSCR Rating 6",null,null,null,null,{"$f":"'Schedule XVIII (EBS)'!O93","v":0},{"$f":"'Credit Risk (Revised)'!G34","v":0.2},0,null,null,0]
[null,"BSCR Rating 7",null,null,null,null,{"$f":"'Schedule XVIII (EBS)'!O94","v":0},{"$f":"'Credit Risk (Revised)'!G35","v":0.27},0,null,null,0]
[null,"BSCR Rating 8",null,null,null,null,{"$f":"'Schedule XVIII (EBS)'!O95","v":0},{"$f":"'Credit Risk (Revised)'!G36","v":0.35},0,null,null,0]
[]
[null,"Total",null,null,null,null,{"$f":"SUM(G486:G495)","v":0},null,{"$f":"SUM(I486:I495)","v":0},null,null,{"$f":"SUM(L486:L495)","v":0}]
[]
[null,"Diversification Adjustment at 40%",null,null,null,null,null,null,{"$f":"SUM(I486:I494)*-('Schedule XVIII (EBS)'!O104)","v":0},null,null,{"$f":"SUM(L486:L494)*-('Schedule XVIII (EBS)'!O104)","v":0}]
[]
[null,"(c)  SUBTOTAL - PARTICULARS OF REINSURANCE BALANCES BY BSCR RATING",null,null,null,null,{"$f":"+G496","v":0},null,{"$f":"IF(SUM(I486:I494,I498)>=0,SUM(I486:I494,I498),0)","v":0},null,null,{"$f":"IF(SUM(L486:L494,L498)>=0,SUM(L486:L494,L498),0)","v":0}]
[]
[null,null,null,"Market Value of Derivatives with Positive Market Value","Market Value of Derivatives with Negative Market Value","Market Value of Collateral, Excluding any overcollateralization","STANDARD","HAIRCUT","STANDARD",null,"USER","USER"]
[null,null,null,null,null,null,"CAPITAL","ON","REQUIRED",null,"CAPITAL","REQUIRED"]
[null,null,null,null,null,null,"FACTOR","COLLATERAL","CAPITAL",null,"FACTOR","CAPITAL"]
[]
[null,"(d) Counterparty Default Risk for OTC Derivatives"]
[]
[null,"BSCR Rating 0 ",null,{"$f":"'Schedule IIB (EBS)'!D84+'Schedule IIC (EBS)'!D84+'Schedule IID (EBS)'!D84+'Schedule IIE (EBS)'!D84+'Schedule IIF (EBS)'!D84","v":0},{"$f":"'Schedule IIB (EBS)'!F84+'Schedule IIC (EBS)'!F84+'Schedule IID (EBS)'!F84+'Schedule IIE (EBS)'!F84+'Schedule IIF (EBS)'!F84","v":0},{"$f":"'Schedule IIB (EBS)'!H84+'Schedule IIC (EBS)'!H84+'Schedule IID (EBS)'!H84+'Schedule IIE (EBS)'!H84+'Schedule IIF (EBS)'!H84","v":0},{"$f":"'Credit Risk (Revised)'!F47","v":0},{"$f":"'Credit Risk (Revised)'!G47","v":0.03},{"$f":"MAX(0,D508-(1-H508)*MIN(D508,F508))*G508","v":0},null,null,{"$f":"IF(K508=\"\",I508,MAX(0,D508-(1-H508)*MIN(D508,F508))*K508)","v":0}]
[null,"BSCR Rating 1",null,{"$f":"'Schedule IIB (EBS)'!D85+'Schedule IIC (EBS)'!D85+'Schedule IID (EBS)'!D85+'Schedule IIE (EBS)'!D85+'Schedule IIF (EBS)'!D85","v":0},{"$f":"'Schedule IIB (EBS)'!F85+'Schedule IIC (EBS)'!F85+'Schedule IID (EBS)'!F85+'Schedule IIE (EBS)'!F85+'Schedule IIF (EBS)'!F85","v":0},{"$f":"'Schedule IIB (EBS)'!H85+'Schedule IIC (EBS)'!H85+'Schedule IID (EBS)'!H85+'Schedule IIE (EBS)'!H85+'Schedule IIF (EBS)'!H85","v":0},{"$f":"'Credit Risk (Revised)'!F48","v":4.0000000000000001E-3},{"$f":"'Credit Risk (Revised)'!G48","v":0.03},{"$f":"MAX(0,D509-(1-H509)*MIN(D509,F509))*G509","v":0},null,null,{"$f":"IF(K509=\"\",I509,MAX(0,D509-(1-H509)*MIN(D509,F509))*K509)","v":0}]
[null,"BSCR Rating 2",null,{"$f":"'Schedule IIB (EBS)'!D86+'Schedule IIC (EBS)'!D86+'Schedule IID (EBS)'!D86+'Schedule IIE (EBS)'!D86+'Schedule IIF (EBS)'!D86","v":0},{"$f":"'Schedule IIB (EBS)'!F86+'Schedule IIC (EBS)'!F86+'Schedule IID (EBS)'!F86+'Schedule IIE (EBS)'!F86+'Schedule IIF (EBS)'!F86","v":0},{"$f":"'Schedule IIB (EBS)'!H86+'Schedule IIC (EBS)'!H86+'Schedule IID (EBS)'!H86+'Schedule IIE (EBS)'!H86+'Schedule IIF (EBS)'!H86","v":0},{"$f":"'Credit Risk (Revised)'!F49","v":8.0000000000000002E-3},{"$f":"'Credit Risk (Revised)'!G49","v":0.03},0,null,null,0]
[null,"BSCR Rating 3",null,{"$f":"'Schedule IIB (EBS)'!D87+'Schedule IIC (EBS)'!D87+'Schedule IID (EBS)'!D87+'Schedule IIE (EBS)'!D87+'Schedule IIF (EBS)'!D87","v":0},{"$f":"'Schedule IIB (EBS)'!F87+'Schedule IIC (EBS)'!F87+'Schedule IID (EBS)'!F87+'Schedule IIE (EBS)'!F87+'Schedule IIF (EBS)'!F87","v":0},{"$f":"'Schedule IIB (EBS)'!H87+'Schedule IIC (EBS)'!H87+'Schedule IID (EBS)'!H87+'Schedule IIE (EBS)'!H87+'Schedule IIF (EBS)'!H87","v":0},{"$f":"'Credit Risk (Revised)'!F50","v":1.4999999999999999E-2},{"$f":"'Credit Risk (Revised)'!G50","v":0.03},0,null,null,0]
[null,"BSCR Rating 4",null,{"$f":"'Schedule IIB (EBS)'!D88+'Schedule IIC (EBS)'!D88+'Schedule IID (EBS)'!D88+'Schedule IIE (EBS)'!D88+'Schedule IIF (EBS)'!D88","v":0},{"$f":"'Schedule IIB (EBS)'!F88+'Schedule IIC (EBS)'!F88+'Schedule IID (EBS)'!F88+'Schedule IIE (EBS)'!F88+'Schedule IIF (EBS)'!F88","v":0},{"$f":"'Schedule IIB (EBS)'!H88+'Schedule IIC (EBS)'!H88+'Schedule IID (EBS)'!H88+'Schedule IIE (EBS)'!H88+'Schedule IIF (EBS)'!H88","v":0},{"$f":"'Credit Risk (Revised)'!F51","v":0.03},{"$f":"'Credit Risk (Revised)'!G51","v":0.03},0,null,null,0]
[null,"BSCR Rating 5",null,{"$f":"'Schedule IIB (EBS)'!D89+'Schedule IIC (EBS)'!D89+'Schedule IID (EBS)'!D89+'Schedule IIE (EBS)'!D89+'Schedule IIF (EBS)'!D89","v":0},{"$f":"'Schedule IIB (EBS)'!F89+'Schedule IIC (EBS)'!F89+'Schedule IID (EBS)'!F89+'Schedule IIE (EBS)'!F89+'Schedule IIF (EBS)'!F89","v":0},{"$f":"'Schedule IIB (EBS)'!H89+'Schedule IIC (EBS)'!H89+'Schedule IID (EBS)'!H89+'Schedule IIE (EBS)'!H89+'Schedule IIF (EBS)'!H89","v":0},{"$f":"'Credit Risk (Revised)'!F52","v":0.08},{"$f":"'Credit Risk (Revised)'!G52","v":0.03},0,null,null,0]
[null,"BSCR Rating 6",null,{"$f":"'Schedule IIB (EBS)'!D90+'Schedule IIC (EBS)'!D90+'Schedule IID (EBS)'!D90+'Schedule IIE (EBS)'!D90+'Schedule IIF (EBS)'!D90","v":0},{"$f":"'Schedule IIB (EBS)'!F90+'Schedule IIC (EBS)'!F90+'Schedule IID (EBS)'!F90+'Schedule IIE (EBS)'!F90+'Schedule IIF (EBS)'!F90","v":0},{"$f":"'Schedule IIB (EBS)'!H90+'Schedule IIC (EBS)'!H90+'Schedule IID (EBS)'!H90+'Schedule IIE (EBS)'!H90+'Schedule IIF (EBS)'!H90","v":0},{"$f":"'Credit Risk (Revised)'!F53","v":0.15},{"$f":"'Credit Risk (Revised)'!G53","v":0.03},0,null,null,0]
[null,"BSCR Rating 7",null,{"$f":"'Schedule IIB (EBS)'!D91+'Schedule IIC (EBS)'!D91+'Schedule IID (EBS)'!D91+'Schedule IIE (EBS)'!D91+'Schedule IIF (EBS)'!D91","v":0},{"$f":"'Schedule IIB (EBS)'!F91+'Schedule IIC (EBS)'!F91+'Schedule IID (EBS)'!F91+'Schedule IIE (EBS)'!F91+'Schedule IIF (EBS)'!F91","v":0},{"$f":"'Schedule IIB (EBS)'!H91+'Schedule IIC (EBS)'!H91+'Schedule IID (EBS)'!H91+'Schedule IIE (EBS)'!H91+'Schedule IIF (EBS)'!H91","v":0},{"$f":"'Credit Risk (Revised)'!F54","v":0.26300000000000001},{"$f":"'Credit Risk (Revised)'!G54","v":0.03},0,null,null,0]
[null,"BSCR Rating 8",null,{"$f":"'Schedule IIB (EBS)'!D92+'Schedule IIC (EBS)'!D92+'Schedule IID (EBS)'!D92+'Schedule IIE (EBS)'!D92+'Schedule IIF (EBS)'!D92","v":0},{"$f":"'Schedule IIB (EBS)'!F92+'Schedule IIC (EBS)'!F92+'Schedule IID (EBS)'!F92+'Schedule IIE (EBS)'!F92+'Schedule IIF (EBS)'!F92","v":0},{"$f":"'Schedule IIB (EBS)'!H92+'Schedule IIC (EBS)'!H92+'Schedule IID (EBS)'!H92+'Schedule IIE (EBS)'!H92+'Schedule IIF (EBS)'!H92","v":0},{"$f":"'Credit Risk (Revised)'!F55","v":0.35},{"$f":"'Credit Risk (Revised)'!G55","v":0.03},0,null,null,0]
[null,null,null,{"$f":"SUM(D508:D516)","v":0},{"$f":"SUM(E508:E516)","v":0},{"$f":"SUM(F508:F516)","v":0},null,null,{"$f":"SUM(I508:I516)","v":0},null,{"$f":"SUM(K508:K516)","v":0},{"$f":"SUM(L508:L516)","v":0}]
[]
[null,"(d)  SUBTOTAL - COUNTERPARTY DEFAULT RISK FOR OTC DERIVATIVES",null,null,null,null,null,null,{"$f":"SUM(I508:I516)","v":0},null,null,{"$f":"SUM(L508:L516)","v":0}]
[]
[null,"(d)  TOTAL CREDIT RISK  [ (a) + (b) + (c) ]",null,null,null,null,{"$f":"G500+G482+G474","v":0},null,{"$f":"I482+I474+I500+I519","v":0},null,null,{"$f":"L482+L474+L500+L519","v":0}]
[]
[null,null,null,null,null,null,null,null,"STANDARD",null,"USER","USER"]
[null,null,null,null,null,null,"Net Amount of Risk",null,"REQUIRED",null,"CAPITAL","REQUIRED"]
[null,"Mortality","Statement Source",null,null,null,"Adjustable","Non-Adjust","CAPITAL",null,"FACTOR","CAPITAL"]
[]
[null,"Mortality","Sch VII EBS, Line 1, Column (9) and Sch VII EBS, Line 1, Column (10)",null,null,null,{"$f":"'Schedule VII (EBS)'!H10","v":0},{"$f":"'Schedule VII (EBS)'!I10","v":0},{"$f":"(IF(G527>1000000,1.985*1000000,1.985*G527)/1000)+(IF(G527<1000000,0,IF(G527>5000000,0.9*4000000,0.9*(G527-1000000)))/1000)+(IF(G527<5000000,0,IF(G527>10000000,0.72*5000000,0.72*(G527-5000000)))/1000)+(IF(G527<10000000,0,IF(G527>50000000,0.645*40000000,0.645*(G527-10000000)))/1000)+(IF(G527<50000000,0,0.565*(G527-50000000))/1000)+(IF(H527>1000000,3.97*1000000,3.97*H527)/1000)+(IF(H527<1000000,0,IF(H527>5000000,1.8*4000000,1.8*(H527-1000000)))/1000)+(IF(H527<5000000,0,IF(H527>10000000,1.44*5000000,1.44*(H527-5000000)))/1000)+(IF(H527<10000000,0,IF(H527>50000000,1.29*40000000,1.29*(H527-10000000)))/1000)+(IF(H527<50000000,0,1.13*(H527-50000000))/1000)","v":0},null,null,{"$f":"IF(K527=\"\",I527,(G527+H527)*K527)","v":0}]
[]
[null,null,null,null,null,null,null,null,"STANDARD",null,"USER","USER"]
[null,null,null,null,null,null,"Net Annual Premium",null,"REQUIRED",null,"CAPITAL","REQUIRED"]
[null,"Morbility","Statement Source",null,null,null,"<2 years",">2 years","CAPITAL",null,"FACTOR","CAPITAL"]
[]
[null,"Critical Illness","Sch VII EBS, Line 2, Column (9) and Sch VII EBS, Line 2, Column (10)",null,null,null,{"$f":"'Schedule VII (EBS)'!H11","v":0},{"$f":"'Schedule VII (EBS)'!I11","v":0},{"$f":"(IF(G533>1000000,5.955*1000000,5.955*G533)/1000)+(IF(G533<1000000,0,IF(G533>5000000,2.7*4000000,2.7*(G533-1000000)))/1000)+(IF(G533<5000000,0,IF(G533>10000000,2.16*5000000,2.16*(G533-5000000)))/1000)+(IF(G533<10000000,0,IF(G533>50000000,1.935*40000000,1.935*(G533-10000000)))/1000)+(IF(G533<50000000,0,1.695*(G533-50000000))/1000)+(IF(H533>1000000,11.91*1000000,11.91*H533)/1000)+(IF(H533<1000000,0,IF(H533>5000000,5.4*4000000,5.4*(H533-1000000)))/1000)+(IF(H533<5000000,0,IF(H533>10000000,4.32*5000000,4.32*(H533-5000000)))/1000)+(IF(H533<10000000,0,IF(H533>50000000,3.87*40000000,3.87*(H533-10000000)))/1000)+(IF(H533<50000000,0,3.39*(H533-50000000))/1000)","v":0},null,null,{"$f":"IF(K533=\"\",I533,(G533+H533)*K533)","v":0}]
[]
[null,"Dis. Inc :Claim in Pymnt (1)","Schedule VII EBS, Line 9, Column (7)",null,null,null,{"$f":"'Schedule VII (EBS)'!F38","v":0},null,{"$f":"G535*7%","v":0},null,null,{"$f":"IF(K535=\"\",I535,G535*K535)","v":0}]
[null,"Dis. Inc :Claim in Pymnt (2)","Schedule VII EBS, Line 10, Column (7)",null,null,null,{"$f":"'Schedule VII (EBS)'!F39","v":0},null,{"$f":"G536*10%","v":0},null,null,{"$f":"IF(K536=\"\",I536,G536*K536)","v":0}]
[]
[null,"Disability Income: active lives (including waiver of premium and long-term care)"]
[null,"< = 1 Year","Sch VII EBS, Line 7(a), Column (9) and Sch VII EBS, Line 7(a), Column (10)",null,null,null,{"$f":"'Schedule VII (EBS)'!H33","v":0},{"$f":"'Schedule VII (EBS)'!I33","v":0},{"$f":"G539*9%+H539*12%","v":0},null,null,{"$f":"IF(K539=\"\",I539,(G539+H539)*K539)","v":0}]
[null,"1 - 5 years","Sch VII EBS, Line 7(b), Column (9) and Sch VII EBS, Line 7(b), Column (10)",null,null,null,{"$f":"'Schedule VII (EBS)'!H34","v":0},{"$f":"'Schedule VII (EBS)'!I34","v":0},{"$f":"G540*15%+H540*20%","v":0},null,null,{"$f":"IF(K540=\"\",I540,(G540+H540)*K540)","v":0}]
[null,"> 5 years","Sch VII EBS, Line 7(c), Column (9) and Sch VII EBS, Line 7(c), Column (10)",null,null,null,{"$f":"'Schedule VII (EBS)'!H35","v":0},{"$f":"'Schedule VII (EBS)'!I35","v":0},{"$f":"G541*22.5%+H541*30%","v":0},null,null,{"$f":"IF(K541=\"\",I541,(G541+H541)*K541)","v":0}]
[]
[null,"Other Accident & Sickness","Schedule VII EBS, Line 8, Column (11)",null,null,null,{"$f":"'Schedule VII (EBS)'!J37","v":0},null,{"$f":"G543*12%","v":0},null,null,{"$f":"IF(K543=\"\",I543,G543*K543)","v":0}]
[]
[null,null,"Bermuda EBS Best Estimate Provision on Schedule VII",null,null,null,null,null,"STANDARD",null,"USER","USER"]
[null,null,null,null,null,null,null,"CAPITAL","REQUIRED",null,"CAPITAL","REQUIRED"]
[null,"Longevity",null,null,null,null,null,"FACTOR","CAPITAL",null,"FACTOR","CAPITAL"]
[]
[null,"Longevity Risk (immediate pay-out annuities, contingent annuities, pension pay-outs)"]
[null,"(a) 0 - 55","Schedule VII EBS, Line 3(a), Column (7)",null,null,null,{"$f":"+'Schedule VII (EBS)'!F14","v":0},{"$f":"+'LT Insurance Risk'!L26","v":0.02},{"$f":"G550*H550","v":0},null,null,{"$f":"IF(K550=\"\",I550,(G550)*K550)","v":0}]
[null,"(b) 56 - 65","Schedule VII EBS, Line 3(b), Column (7)",null,null,null,{"$f":"+'Schedule VII (EBS)'!F15","v":0},{"$f":"+'LT Insurance Risk'!L27","v":0.03},{"$f":"G551*H551","v":0},null,null,{"$f":"IF(K551=\"\",I551,(G551)*K551)","v":0}]
[null,"(c) 66 - 70","Schedule VII EBS, Line 3(c), Column (7)",null,null,null,{"$f":"+'Schedule VII (EBS)'!F16","v":0},{"$f":"+'LT Insurance Risk'!L28","v":0.04},{"$f":"G552*H552","v":0},null,null,0]
[null,"(d) 71 - 80","Schedule VII EBS, Line 3(d), Column (7)",null,null,null,{"$f":"+'Schedule VII (EBS)'!F17","v":0},{"$f":"+'LT Insurance Risk'!L29","v":0.05},{"$f":"G553*H553","v":0},null,null,0]
[null,"(e) 81+","Schedule VII EBS, Line 3(e), Column (7)",null,null,null,{"$f":"+'Schedule VII (EBS)'!F18","v":0},{"$f":"+'LT Insurance Risk'!L30","v":0.06},{"$f":"G554*H554","v":0},null,null,0]
[]
[null,"Longevity (deferred pay-out annuities, future contingent annuities, future pension pay-outs)"]
[null,"(a) 0 - 55","Schedule VII EBS, Line 4(a), Column (7)",null,null,null,{"$f":"+'Schedule VII (EBS)'!F22","v":0},{"$f":"+'LT Insurance Risk'!L33","v":0.02},{"$f":"G557*H557","v":0},null,null,{"$f":"IF(K557=\"\",I557,(G557)*K557)","v":0}]
[null,"(b) 56 - 60","Schedule VII EBS, Line 4(b), Column (7)",null,null,null,{"$f":"+'Schedule VII (EBS)'!F23","v":0},{"$f":"+'LT Insurance Risk'!L34","v":0.03},0,null,null,0]
[null,"(c) 61 - 65","Schedule VII EBS, Line 4(c), Column (7)",null,null,null,{"$f":"+'Schedule VII (EBS)'!F24","v":0},{"$f":"+'LT Insurance Risk'!L35","v":0.04},0,null,null,0]
[null,"(d) 66 - 70","Schedule VII EBS, Line 4(d), Column (7)",null,null,null,{"$f":"+'Schedule VII (EBS)'!F25","v":0},{"$f":"+'LT Insurance Risk'!L36","v":0.05},0,null,null,0]
[null,"(e) 71 - 75","Schedule VII EBS, Line 4(e), Column (7)",null,null,null,{"$f":"+'Schedule VII (EBS)'!F26","v":0},{"$f":"+'LT Insurance Risk'!L37","v":0.06},0,null,null,0]
[null,"(f) 76+","Schedule VII EBS, Line 4(f), Column (7)",null,null,null,{"$f":"+'Schedule VII (EBS)'!F27","v":0},{"$f":"+'LT Insurance Risk'!L38","v":7.0000000000000007E-2},0,null,null,0]
[]
[null," - Part (A) Removes any Longevity Swap Capital Requirement that has been included in the Standard Longevity Capital Requirement",null,null,null,null,null,null,null,null,"ACTUAL"]
[null,null,"BSCR ADJUSTED RESERVE for Regular Longevity Risk Business only (excluding Longevity Swaps)",null,null,null,null,"CAPITAL","CAPITAL",null,"CAPITAL"]
[null,"Longevity Capital Adj",null,null,null,null,null,"FACTOR","FROM ABOVE",null,"REQUIRED","ADJUSTMENT"]
[]
[null,"Longevity Risk (immediate pay-out annuities, contingent annuities, pension pay-outs)"]
[null,"(a) 0 - 55",null,null,null,null,null,{"$f":"IF(K550=\"\",'LT Insurance Risk'!L26,K550)","v":0.02},{"$f":"L550","v":0},null,{"$f":"MAX(0,IF(G569=\"\",0,H569*G569))","v":0},{"$f":"IF(G569=\"\",0,K569-I569)","v":0}]
[null,"(b) 56 - 65",null,null,null,null,null,{"$f":"IF(K551=\"\",'LT Insurance Risk'!L27,K551)","v":0.03},{"$f":"L551","v":0},null,{"$f":"MAX(0,IF(G570=\"\",0,H570*G570))","v":0},{"$f":"IF(G570=\"\",0,K570-I570)","v":0}]
[null,"(c) 66 - 70",null,null,null,null,null,{"$f":"IF(K552=\"\",'LT Insurance Risk'!L28,K552)","v":0.04},0,null,0,0]
[null,"(d) 71 - 80",null,null,null,null,null,{"$f":"IF(K553=\"\",'LT Insurance Risk'!L29,K553)","v":0.05},0,null,0,0]
[null,"(e) 81+",null,null,null,null,null,{"$f":"IF(K554=\"\",'LT Insurance Risk'!L30,K554)","v":0.06},0,null,0,0]
[null,null,null,null,null,null,null,{"$f":"IF(K555=\"\",'LT Insurance Risk'!L31,K555)","v":0}]
[null,"Longevity (deferred pay-out annuities, future contingent annuities, future pension pay-outs)"]
[null,"(a) 0 - 55",null,null,null,null,null,{"$f":"IF(K557=\"\",'LT Insurance Risk'!L33,K557)","v":0.02},0,null,0,0]
[null,"(b) 56 - 60",null,null,null,null,null,{"$f":"IF(K558=\"\",'LT Insurance Risk'!L34,K558)","v":0.03},0,null,0,0]
[null,"(c) 61 - 65",null,null,null,null,null,{"$f":"IF(K559=\"\",'LT Insurance Risk'!L35,K559)","v":0.04},0,null,0,0]
[null,"(d) 66 - 70",null,null,null,null,null,{"$f":"IF(K560=\"\",'LT Insurance Risk'!L36,K560)","v":0.05},0,null,0,0]
[null,"(e) 71 - 75",null,null,null,null,null,{"$f":"IF(K561=\"\",'LT Insurance Risk'!L37,K561)","v":0.06},0,null,0,0]
[null,"(f) 76+",null,null,null,null,null,{"$f":"IF(K562=\"\",'LT Insurance Risk'!L38,K562)","v":7.0000000000000007E-2},0,null,0,0]
[]
[null," - Part (B) Determines Appropriate Capital Requirment to include for Longevity Swaps"]
[null,null,"Bermuda EBS Best Estimate Provision for the Floating Leg of Longevity Swap",null,null,null,null,null,null,null,"CAPITAL"]
[null,"Longevity Capital Adj",null,null,null,null,null,null,null,null,"FACTOR","ADJUSTMENT"]
[]
[null,"Longevity Risk (immediate pay-out annuities, contingent annuities, pension pay-outs)"]
[null,"(a) 0 - 55",null,null,null,null,null,null,null,null,{"$f":"+'LT Insurance Risk'!L26","v":0.02},{"$f":"IF(G588=\"\",0,K588*G588)","v":0}]
[null,"(b) 56 - 65",null,null,null,null,null,null,null,null,{"$f":"+'LT Insurance Risk'!L27","v":0.03},{"$f":"IF(G589=\"\",0,K589*G589)","v":0}]
[null,"(c) 66 - 70",null,null,null,null,null,null,null,null,{"$f":"+'LT Insurance Risk'!L28","v":0.04},0]
[null,"(d) 71 - 80",null,null,null,null,null,null,null,null,{"$f":"+'LT Insurance Risk'!L29","v":0.05},0]
[null,"(e) 81+",null,null,null,null,null,null,null,null,{"$f":"+'LT Insurance Risk'!L30","v":0.06},0]
[null,null,null,null,null,null,null,null,null,null,{"$f":"+'LT Insurance Risk'!L50","v":"% of Annual Premiums"}]
[null,"Longevity (deferred pay-out annuities, future contingent annuities, future pension pay-outs)"]
[null,"(a) 0 - 55",null,null,null,null,null,null,null,null,{"$f":"+'LT Insurance Risk'!L33","v":0.02},{"$f":"IF(G595=\"\",0,K595*G595)","v":0}]
[null,"(b) 56 - 60",null,null,null,null,null,null,null,null,{"$f":"+'LT Insurance Risk'!L34","v":0.03},0]
[null,"(c) 61 - 65",null,null,null,null,null,null,null,null,{"$f":"+'LT Insurance Risk'!L35","v":0.04},0]
[null,"(d) 66 - 70",null,null,null,null,null,null,null,null,{"$f":"+'LT Insurance Risk'!L36","v":0.05},0]
[null,"(e) 71 - 75",null,null,null,null,null,null,null,null,{"$f":"+'LT Insurance Risk'!L37","v":0.06},0]
[null,"(f) 76+",null,null,null,null,null,null,null,null,{"$f":"+'LT Insurance Risk'!L38","v":7.0000000000000007E-2},{"$f":"IF(G600=\"\",0,K600*G600)","v":0}]
[]
[null,null,null,null,null,null,null,null,"STANDARD",null,"USER","USER"]
[null,null,null,null,null,null,null,null,"REQUIRED",null,"CAPITAL","REQUIRED"]
[null,null,"Statement Source",null,null,null,"Net Annual Premium",null,"CAPITAL",null,"FACTOR","CAPITAL"]
[]
[null,"Stop Loss","Schedule VII EBS, Line 14, Column (11)",null,null,null,{"$f":"'Schedule VII (EBS)'!J43","v":0},{"$f":"+'LT Insurance Risk'!L55","v":0.5},{"$f":"G606*H606","v":0},null,null,{"$f":"IF(K606=\"\",I606,G606*K606)","v":0}]
[]
[null,"Rider","Schedule VII EBS, Line 15, Column (11)",null,null,null,{"$f":"'Schedule VII (EBS)'!J44","v":0},{"$f":"+'LT Insurance Risk'!L56","v":0.25},{"$f":"G608*H608","v":0},null,null,{"$f":"IF(K608=\"\",I608,G608*K608)","v":0}]
[]
[]
[null,null,null,null,null,null,null,"STANDARD","STANDARD",null,"USER","USER"]
[null,"LINE OF LONG-TERM BUSINESS",null,null,null,null,null,"CAPITAL","REQUIRED",null,"CAPITAL","REQUIRED"]
[null,null,"STATEMENT SOURCE",null,null,null,"NET RESERVES","FACTOR","CAPITAL",null,"FACTOR","CAPITAL"]
[]
[null,"Mortality (term assurance)","Schedule VII EBS, Line 1, Column (7)",null,null,null,{"$f":"'Schedule VII (EBS)'!F10","v":0},{"$f":"+'LT Other Insurance Risk'!G10","v":0.02},{"$f":"IF(G615<0,0,G615*H615)","v":0},null,null,{"$f":"IF(K615=\"\",H615*G615,G615*K615)","v":0}]
[null,"Critical Illness","Schedule VII EBS, Line 2, Column (7)",null,null,null,{"$f":"'Schedule VII (EBS)'!F11","v":0},{"$f":"+'LT Other Insurance Risk'!G11","v":0.02},{"$f":"IF(G616<0,0,G616*H616)","v":0},null,null,0]
[null,"Longevity (1)","Schedule VII EBS, Line 3(f), Column (7)",null,null,null,{"$f":"'Schedule VII (EBS)'!F19","v":0},{"$f":"+'LT Other Insurance Risk'!G12","v":5.0000000000000001E-3},0,null,null,0]
[null,"Longevity (2)","Schedule VII EBS, Line 4(g), Column (7)",null,null,null,{"$f":"+'Schedule VII (EBS)'!F28","v":0},{"$f":"+'LT Other Insurance Risk'!G13","v":5.0000000000000001E-3},0,null,null,0]
[null,"Annuities certain only","Schedule VII EBS, Line 5, Column (7)",null,null,null,{"$f":"+'Schedule VII (EBS)'!F29","v":0},{"$f":"+'LT Other Insurance Risk'!G14","v":5.0000000000000001E-3},0,null,null,0]
[null,"Deferred accumulation annuities","Schedule VII EBS, Line 6, Column (7)",null,null,null,{"$f":"+'Schedule VII (EBS)'!F30","v":0},{"$f":"+'LT Other Insurance Risk'!G15","v":5.0000000000000001E-3},{"$f":"IF(G620<0,0,G620*H620)","v":0},null,null,0]
[null,"Disability Income: active lives","Schedule VII EBS, Line 7, Column (7)",null,null,null,{"$f":"'Schedule VII (EBS)'!F36","v":0},{"$f":"+'LT Other Insurance Risk'!G16","v":0.02},0,null,null,0]
[null,"Disability: accident & sickness","Schedule VII EBS, Line 8, Column (7)",null,null,null,{"$f":"'Schedule VII (EBS)'!F37","v":0},{"$f":"+'LT Other Insurance Risk'!G17","v":0.02},0,null,null,0]
[null,"Disability claims in payment (1)","Schedule VII EBS, Line 9, Column (7)",null,null,null,{"$f":"'Schedule VII (EBS)'!F38","v":0},{"$f":"+'LT Other Insurance Risk'!G18","v":5.0000000000000001E-3},0,null,null,0]
[null,"Disability claims in payment (2)","Schedule VII EBS, Line 10, Column (7)",null,null,null,{"$f":"'Schedule VII (EBS)'!F39","v":0},{"$f":"+'LT Other Insurance Risk'!G19","v":5.0000000000000001E-3},0,null,null,0]
[null,"Group Life","Schedule VII EBS, Line 11, Column (7)",null,null,null,{"$f":"'Schedule VII (EBS)'!F40","v":0},{"$f":"+'LT Other Insurance Risk'!G20","v":5.0000000000000001E-3},0,null,null,0]
[null,"Group Disability","Schedule VII EBS, Line 12, Column (7)",null,null,null,{"$f":"'Schedule VII (EBS)'!F41","v":0},{"$f":"+'LT Other Insurance Risk'!G21","v":5.0000000000000001E-3},0,null,null,0]
[null,"Group Health","Schedule VII EBS, Line 13, Column (7)",null,null,null,{"$f":"'Schedule VII (EBS)'!F42","v":0},{"$f":"+'LT Other Insurance Risk'!G22","v":5.0000000000000001E-3},0,null,null,0]
[null,"Stop Loss","Schedule VII EBS, Line 14, Column (7)",null,null,null,{"$f":"'Schedule VII (EBS)'!F43","v":0},{"$f":"+'LT Other Insurance Risk'!G23","v":0.02},0,null,null,0]
[null,"Rider","Schedule VII EBS, Line 15, Column (7)",null,null,null,{"$f":"'Schedule VII (EBS)'!F44","v":0},{"$f":"+'LT Other Insurance Risk'!G24","v":0.02},0,null,null,0]
[]
[null,"REQUIRED CAPITAL FOR OTHER INSURANCE RISK",null,null,null,null,{"$f":"IF(SUM(G615:G629)>=0,(SUM(G615:G629)),0)","v":0},null,{"$f":"IF(SUM(I615:I629)>=0,(SUM(I615:I629)),0)","v":0},null,null,{"$f":"IF(SUM(L615:L629)>=0,(SUM(L615:L629)),0)","v":0}]
[]
[null,null,"Volatility \n(0%-10.0%]",null,null,null,"Volatility 10.0% - 15.0%","Volatility >15.0%","STANDARD REQUIRED CAPITAL",null,"USER CAPITAL FACTOR","USER REQUIRED CAPITAL"]
[null,"Variable Annuity Guarantee Risk"]
[]
[null,"GMDB - Guar. Val In Money",{"$f":"'Schedule VIII (EBS)'!H13","v":0},null,null,null,{"$f":"'Schedule VIII (EBS)'!J13","v":0},{"$f":"'Schedule VIII (EBS)'!L13","v":0},{"$f":"(C636*0.25%)+(G636*0.5%)+(H636*0.75%)","v":0},null,null,{"$f":"IF(K636=\"\",I636,(C636+G636+H636)*K636)","v":0}]
[null,"GMDB - Net Value at Risk",{"$f":"'Schedule VIII (EBS)'!N13","v":0},null,null,null,{"$f":"+'Schedule VIII (EBS)'!P13","v":0},{"$f":"+'Schedule VIII (EBS)'!R13","v":0},{"$f":"(C637*4%)+(G637*8.5%)+(H637*13%)","v":0},null,null,{"$f":"IF(K637=\"\",I637,(C637+G637+H637)*K637)","v":0}]
[null,"GMDB - Guar. Val Out Money",{"$f":"'Schedule VIII (EBS)'!H31","v":0},null,null,null,{"$f":"'Schedule VIII (EBS)'!J31","v":0},{"$f":"'Schedule VIII (EBS)'!L31","v":0},{"$f":"(C638*0.25%)+(G638*0.5%)+(H638*0.75%)","v":0},null,null,{"$f":"IF(K638=\"\",I638,(C638+G638+H638)*K638)","v":0}]
[null,"GMDB - Total",null,null,null,null,null,null,{"$f":"I638+(MAX(I636,I637))","v":0},null,null,{"$f":"L638+(MAX(L636,L637))","v":0}]
[]
[null,"GMDB (2) - Guar. Val In Money",{"$f":"'Schedule VIII (EBS)'!H14","v":0},null,null,null,{"$f":"'Schedule VIII (EBS)'!J14","v":0},{"$f":"'Schedule VIII (EBS)'!L14","v":0},{"$f":"(C641*0.75%)+(G641*1%)+(H641*1.25%)","v":0},null,null,{"$f":"IF(K641=\"\",I641,(C641+G641+H641)*K641)","v":0}]
[null,"GMDB (2) - Net Value at Risk",{"$f":"'Schedule VIII (EBS)'!N14","v":0},null,null,null,{"$f":"+'Schedule VIII (EBS)'!P14","v":0},{"$f":"+'Schedule VIII (EBS)'!R14","v":0},{"$f":"(C642*12%)+(G642*16.5%)+(H642*21%)","v":0},null,null,{"$f":"IF(K642=\"\",I642,(C642+G642+H642)*K642)","v":0}]
[null,"GMDB (2) - Guar. Val Out Money",{"$f":"'Schedule VIII (EBS)'!H32","v":0},null,null,null,{"$f":"'Schedule VIII (EBS)'!J32","v":0},{"$f":"'Schedule VIII (EBS)'!L32","v":0},{"$f":"(C643*0.75%)+(G643*1%)+(H643*1.25%)","v":0},null,null,{"$f":"IF(K643=\"\",I643,(C643+G643+H643)*K643)","v":0}]
[null,"GMDB (2) - Total",null,null,null,null,null,null,{"$f":"I643+(MAX(I641,I642))","v":0},null,null,{"$f":"L643+(MAX(L641,L642))","v":0}]
[]
[null,"GMIB - Guar. Val In Money",{"$f":"'Schedule VIII (EBS)'!H15","v":0},null,null,null,{"$f":"'Schedule VIII (EBS)'!J15","v":0},{"$f":"'Schedule VIII (EBS)'!L15","v":0},{"$f":"(C646*5%)+(G646*6.5%)+(H646*8%)","v":0},null,null,{"$f":"IF(K646=\"\",I646,(C646+G646+H646)*K646)","v":0}]
[null,"GMIB - Net Value at Risk",{"$f":"'Schedule VIII (EBS)'!N15","v":0},null,null,null,{"$f":"+'Schedule VIII (EBS)'!P15","v":0},{"$f":"+'Schedule VIII (EBS)'!R15","v":0},{"$f":"(C647*100%)+(G647*130%)+(H647*160%)","v":0},null,null,{"$f":"IF(K647=\"\",I647,(C647+G647+H647)*K647)","v":0}]
[null,"GMIB - Guar. Val Out Money",{"$f":"'Schedule VIII (EBS)'!H33","v":0},null,null,null,{"$f":"'Schedule VIII (EBS)'!J33","v":0},{"$f":"'Schedule VIII (EBS)'!L33","v":0},{"$f":"(C648*5%)+(G648*6.5%)+(H648*8%)","v":0},null,null,{"$f":"IF(K648=\"\",I648,(C648+G648+H648)*K648)","v":0}]
[null,"GMIB - Total",null,null,null,null,null,null,{"$f":"I648+(MAX(I646,I647))","v":0},null,null,{"$f":"L648+(MAX(L646,L647))","v":0}]
[]
[null,"GMWB - Guar. Val In Money",{"$f":"'Schedule VIII (EBS)'!H16","v":0},null,null,null,{"$f":"'Schedule VIII (EBS)'!J16","v":0},{"$f":"'Schedule VIII (EBS)'!L16","v":0},{"$f":"(C651*3.25%)+(G651*4.25%)+(H651*5%)","v":0},null,null,{"$f":"IF(K651=\"\",I651,(C651+G651+H651)*K651)","v":0}]
[null,"GMWB - Net Value at Risk",{"$f":"'Schedule VIII (EBS)'!N16","v":0},null,null,null,{"$f":"+'Schedule VIII (EBS)'!P16","v":0},{"$f":"+'Schedule VIII (EBS)'!R16","v":0},{"$f":"(C652*60%)+(G652*75%)+(H652*90%)","v":0},null,null,{"$f":"IF(K652=\"\",I652,(C652+G652+H652)*K652)","v":0}]
[null,"GMWB - Guar. Val Out Money",{"$f":"'Schedule VIII (EBS)'!H34","v":0},null,null,null,{"$f":"'Schedule VIII (EBS)'!J34","v":0},{"$f":"'Schedule VIII (EBS)'!L34","v":0},{"$f":"(C653*3.25%)+(G653*4.25%)+(H653*5%)","v":0},null,null,{"$f":"IF(K653=\"\",I653,(C653+G653+H653)*K653)","v":0}]
[null,"GMWB - Total",null,null,null,null,null,null,{"$f":"I653+(MAX(I651,I652))","v":0},null,null,{"$f":"L653+(MAX(L651,L652))","v":0}]
[]
[null,"GEEB - Guar. Val In Money",{"$f":"'Schedule VIII (EBS)'!H17","v":0},null,null,null,{"$f":"'Schedule VIII (EBS)'!J17","v":0},{"$f":"'Schedule VIII (EBS)'!L17","v":0},{"$f":"(C656*0%)+(G656*0.5%)+(H656*1%)","v":0},null,null,{"$f":"IF(K656=\"\",I656,(C656+G656+H656)*K656)","v":0}]
[null,"GEEB - Net Value at Risk",{"$f":"'Schedule VIII (EBS)'!N17","v":0},null,null,null,{"$f":"+'Schedule VIII (EBS)'!P17","v":0},{"$f":"+'Schedule VIII (EBS)'!R17","v":0},{"$f":"(C657*1%)+(G657*9%)+(H657*17%)","v":0},null,null,{"$f":"IF(K657=\"\",I657,(C657+G657+H657)*K657)","v":0}]
[null,"GEEB - Guar. Val Out Money",{"$f":"'Schedule VIII (EBS)'!H35","v":0},null,null,null,{"$f":"'Schedule VIII (EBS)'!J35","v":0},{"$f":"'Schedule VIII (EBS)'!L35","v":0},{"$f":"(C658*0%)+(G658*0.5%)+(H658*1%)","v":0},null,null,{"$f":"IF(K658=\"\",I658,(C658+G658+H658)*K658)","v":0}]
[null,"GEEB - Total",null,null,null,null,null,null,{"$f":"I658+(MAX(I656,I657))","v":0},null,null,{"$f":"L658+(MAX(L656,L657))","v":0}]
[]
[null,"GMAB 0-1 Guar. Val In Money",{"$f":"'Schedule VIII (EBS)'!H19","v":0},null,null,null,{"$f":"'Schedule VIII (EBS)'!J19","v":0},{"$f":"'Schedule VIII (EBS)'!L19","v":0},{"$f":"(C661*3.2%)+(G661*5%)+(H661*9%)","v":0},null,null,{"$f":"IF(K661=\"\",I661,(C661+G661+H661)*K661)","v":0}]
[null,"GMWB 0-1 Net Value at Risk",{"$f":"'Schedule VIII (EBS)'!N19","v":0},null,null,null,{"$f":"+'Schedule VIII (EBS)'!P19","v":0},{"$f":"+'Schedule VIII (EBS)'!R19","v":0},{"$f":"(C662*90%)+(G662*130%)+(H662*250%)","v":0},null,null,{"$f":"IF(K662=\"\",I662,(C662+G662+H662)*K662)","v":0}]
[null,"GMWB 0-1 Guar. Val Out Money",{"$f":"'Schedule VIII (EBS)'!H37","v":0},null,null,null,{"$f":"'Schedule VIII (EBS)'!J37","v":0},{"$f":"'Schedule VIII (EBS)'!L37","v":0},{"$f":"(C663*3.2%)+(G663*5%)+(H663*9%)","v":0},null,null,{"$f":"IF(K663=\"\",I663,(C663+G663+H663)*K663)","v":0}]
[null,"GMWB - Total for 0-1",null,null,null,null,null,null,{"$f":"I663+(MAX(I661,I662))","v":0},null,null,{"$f":"L663+(MAX(L661,L662))","v":0}]
[]
[null,"GMAB 1-2 Guar. Val In Money",{"$f":"'Schedule VIII (EBS)'!H20","v":0},null,null,null,{"$f":"'Schedule VIII (EBS)'!J20","v":0},{"$f":"'Schedule VIII (EBS)'!L20","v":0},{"$f":"(C666*3%)+(G666*5%)+(H666*8.9%)","v":0},null,null,{"$f":"IF(K666=\"\",I666,(C666+G666+H666)*K666)","v":0}]
[null,"GMWB 1-2 Net Value at Risk",{"$f":"'Schedule VIII (EBS)'!N20","v":0},null,null,null,{"$f":"+'Schedule VIII (EBS)'!P20","v":0},{"$f":"+'Schedule VIII (EBS)'!R20","v":0},{"$f":"(C667*80%)+(G667*115%)+(H667*200%)","v":0},null,null,{"$f":"IF(K667=\"\",I667,(C667+G667+H667)*K667)","v":0}]
[null,"GMWB 1-2 Guar. Val Out Money",{"$f":"'Schedule VIII (EBS)'!H38","v":0},null,null,null,{"$f":"'Schedule VIII (EBS)'!J38","v":0},{"$f":"'Schedule VIII (EBS)'!L38","v":0},{"$f":"(C668*3%)+(G668*5%)+(H668*8.9%)","v":0},null,null,{"$f":"IF(K668=\"\",I668,(C668+G668+H668)*K668)","v":0}]
[null,"GMWB - Total for 1-2",null,null,null,null,null,null,{"$f":"I668+(MAX(I666,I667))","v":0},null,null,{"$f":"L668+(MAX(L666,L667))","v":0}]
[]
[null,"GMAB 2-3 Guar. Val In Money",{"$f":"'Schedule VIII (EBS)'!H21","v":0},null,null,null,{"$f":"'Schedule VIII (EBS)'!J21","v":0},{"$f":"'Schedule VIII (EBS)'!L21","v":0},{"$f":"(C671*3%)+(G671*5%)+(H671*8.9%)","v":0},null,null,{"$f":"IF(K671=\"\",I671,(C671+G671+H671)*K671)","v":0}]
[null,"GMWB 2-3 Net Value at Risk",{"$f":"'Schedule VIII (EBS)'!N21","v":0},null,null,null,{"$f":"+'Schedule VIII (EBS)'!P21","v":0},{"$f":"+'Schedule VIII (EBS)'!R21","v":0},{"$f":"(C672*70%)+(G672*105%)+(H672*160%)","v":0},null,null,{"$f":"IF(K672=\"\",I672,(C672+G672+H672)*K672)","v":0}]
[null,"GMWB 2-3 Guar. Val Out Money",{"$f":"'Schedule VIII (EBS)'!H39","v":0},null,null,null,{"$f":"'Schedule VIII (EBS)'!J39","v":0},{"$f":"'Schedule VIII (EBS)'!L39","v":0},{"$f":"(C673*3%)+(G673*5%)+(H673*8.9%)","v":0},null,null,{"$f":"IF(K673=\"\",I673,(C673+G673+H673)*K673)","v":0}]
[null,"GMWB - Total for 2-3",null,null,null,null,null,null,{"$f":"I673+(MAX(I671,I672))","v":0},null,null,{"$f":"L673+(MAX(L671,L672))","v":0}]
[]
[null,"GMAB 3-4 Guar. Val In Money",{"$f":"'Schedule VIII (EBS)'!H22","v":0},null,null,null,{"$f":"'Schedule VIII (EBS)'!J22","v":0},{"$f":"'Schedule VIII (EBS)'!L22","v":0},{"$f":"(C676*2.8%)+(G676*5%)+(H676*8.8%)","v":0},null,null,{"$f":"IF(K676=\"\",I676,(C676+G676+H676)*K676)","v":0}]
[null,"GMWB 3-4 Net Value at Risk",{"$f":"'Schedule VIII (EBS)'!N22","v":0},null,null,null,{"$f":"+'Schedule VIII (EBS)'!P22","v":0},{"$f":"+'Schedule VIII (EBS)'!R22","v":0},{"$f":"(C677*60%)+(G677*95%)+(H677*135%)","v":0},null,null,{"$f":"IF(K677=\"\",I677,(C677+G677+H677)*K677)","v":0}]
[null,"GMWB 3-4 Guar. Val Out Money",{"$f":"'Schedule VIII (EBS)'!H40","v":0},null,null,null,{"$f":"'Schedule VIII (EBS)'!J40","v":0},{"$f":"'Schedule VIII (EBS)'!L40","v":0},{"$f":"(C678*2.8%)+(G678*5%)+(H678*8.8%)","v":0},null,null,{"$f":"IF(K678=\"\",I678,(C678+G678+H678)*K678)","v":0}]
[null,"GMWB - Total for 3-4",null,null,null,null,null,null,{"$f":"I678+(MAX(I676,I677))","v":0},null,null,{"$f":"L678+(MAX(L676,L677))","v":0}]
[]
[null,"GMAB 4-5 Guar. Val In Money",{"$f":"'Schedule VIII (EBS)'!H23","v":0},null,null,null,{"$f":"'Schedule VIII (EBS)'!J23","v":0},{"$f":"'Schedule VIII (EBS)'!L23","v":0},{"$f":"(C681*2.4%)+(G681*4.3%)+(H681*8%)","v":0},null,null,{"$f":"IF(K681=\"\",I681,(C681+G681+H681)*K681)","v":0}]
[null,"GMWB 4-5 Net Value at Risk",{"$f":"'Schedule VIII (EBS)'!N23","v":0},null,null,null,{"$f":"+'Schedule VIII (EBS)'!P23","v":0},{"$f":"+'Schedule VIII (EBS)'!R23","v":0},{"$f":"(C682*55%)+(G682*85%)+(H682*115%)","v":0},null,null,{"$f":"IF(K682=\"\",I682,(C682+G682+H682)*K682)","v":0}]
[null,"GMWB 4-5 Guar. Val Out Money",{"$f":"'Schedule VIII (EBS)'!H41","v":0},null,null,null,{"$f":"'Schedule VIII (EBS)'!J41","v":0},{"$f":"'Schedule VIII (EBS)'!L41","v":0},{"$f":"(C683*2.4%)+(G683*4.3%)+(H683*8%)","v":0},null,null,{"$f":"IF(K683=\"\",I683,(C683+G683+H683)*K683)","v":0}]
[null,"GMWB - Total for 4-5",null,null,null,null,null,null,{"$f":"I683+(MAX(I681,I682))","v":0},null,null,{"$f":"L683+(MAX(L681,L682))","v":0}]
[]
[null,"GMAB 5-6 Guar. Val In Money",{"$f":"'Schedule VIII (EBS)'!H24","v":0},null,null,null,{"$f":"'Schedule VIII (EBS)'!J24","v":0},{"$f":"'Schedule VIII (EBS)'!L24","v":0},{"$f":"(C686*2%)+(G686*3.5%)+(H686*6.8%)","v":0},null,null,{"$f":"IF(K686=\"\",I686,(C686+G686+H686)*K686)","v":0}]
[null,"GMWB 5-6 Net Value at Risk",{"$f":"'Schedule VIII (EBS)'!N24","v":0},null,null,null,{"$f":"+'Schedule VIII (EBS)'!P24","v":0},{"$f":"+'Schedule VIII (EBS)'!R24","v":0},{"$f":"(C687*50%)+(G687*75%)+(H687*100%)","v":0},null,null,{"$f":"IF(K687=\"\",I687,(C687+G687+H687)*K687)","v":0}]
[null,"GMWB 5-6 Guar. Val Out Money",{"$f":"'Schedule VIII (EBS)'!H42","v":0},null,null,null,{"$f":"'Schedule VIII (EBS)'!J42","v":0},{"$f":"'Schedule VIII (EBS)'!L42","v":0},{"$f":"(C688*2%)+(G688*3.5%)+(H688*6.8%)","v":0},null,null,{"$f":"IF(K688=\"\",I688,(C688+G688+H688)*K688)","v":0}]
[null,"GMWB - Total for 5-6",null,null,null,null,null,null,{"$f":"I688+(MAX(I686,I687))","v":0},null,null,{"$f":"L688+(MAX(L686,L687))","v":0}]
[]
[null,"GMAB 6-7 Guar. Val In Money",{"$f":"'Schedule VIII (EBS)'!H25","v":0},null,null,null,{"$f":"'Schedule VIII (EBS)'!J25","v":0},{"$f":"'Schedule VIII (EBS)'!L25","v":0},{"$f":"(C691*1.7%)+(G691*2.8%)+(H691*5.9%)","v":0},null,null,{"$f":"IF(K691=\"\",I691,(C691+G691+H691)*K691)","v":0}]
[null,"GMWB 6-7 Net Value at Risk",{"$f":"'Schedule VIII (EBS)'!N25","v":0},null,null,null,{"$f":"+'Schedule VIII (EBS)'!P25","v":0},{"$f":"+'Schedule VIII (EBS)'!R25","v":0},{"$f":"(C692*45%)+(G692*65%)+(H692*90%)","v":0},null,null,{"$f":"IF(K692=\"\",I692,(C692+G692+H692)*K692)","v":0}]
[null,"GMWB 6-7 Guar. Val Out Money",{"$f":"'Schedule VIII (EBS)'!H43","v":0},null,null,null,{"$f":"'Schedule VIII (EBS)'!J43","v":0},{"$f":"'Schedule VIII (EBS)'!L43","v":0},{"$f":"(C693*1.7%)+(G693*2.8%)+(H693*5.9%)","v":0},null,null,{"$f":"IF(K693=\"\",I693,(C693+G693+H693)*K693)","v":0}]
[null,"GMWB - Total for 6-7",null,null,null,null,null,null,{"$f":"I693+(MAX(I691,I692))","v":0},null,null,{"$f":"L693+(MAX(L691,L692))","v":0}]
[]
[null,"GMAB 7-8 Guar. Val In Money",{"$f":"'Schedule VIII (EBS)'!H26","v":0},null,null,null,{"$f":"'Schedule VIII (EBS)'!J26","v":0},{"$f":"'Schedule VIII (EBS)'!L26","v":0},{"$f":"(C696*1.4%)+(G696*2.1%)+(H696*4.9%)","v":0},null,null,{"$f":"IF(K696=\"\",I696,(C696+G696+H696)*K696)","v":0}]
[null,"GMWB 7-8 Net Value at Risk",{"$f":"'Schedule VIII (EBS)'!N26","v":0},null,null,null,{"$f":"+'Schedule VIII (EBS)'!P26","v":0},{"$f":"+'Schedule VIII (EBS)'!R26","v":0},{"$f":"(C697*40%)+(G697*55%)+(H697*80%)","v":0},null,null,{"$f":"IF(K697=\"\",I697,(C697+G697+H697)*K697)","v":0}]
[null,"GMWB 7-8 Guar. Val Out Money",{"$f":"'Schedule VIII (EBS)'!H44","v":0},null,null,null,{"$f":"'Schedule VIII (EBS)'!J44","v":0},{"$f":"'Schedule VIII (EBS)'!L44","v":0},{"$f":"(C698*1.4%)+(G698*2.1%)+(H698*4.9%)","v":0},null,null,{"$f":"IF(K698=\"\",I698,(C698+G698+H698)*K698)","v":0}]
[null,"GMWB - Total for 7-8",null,null,null,null,null,null,{"$f":"I698+(MAX(I696,I697))","v":0},null,null,{"$f":"L698+(MAX(L696,L697))","v":0}]
[]
[null,"GMAB 8-9 Guar. Val In Money",{"$f":"'Schedule VIII (EBS)'!H27","v":0},null,null,null,{"$f":"'Schedule VIII (EBS)'!J27","v":0},{"$f":"'Schedule VIII (EBS)'!L27","v":0},{"$f":"(C701*1.1%)+(G701*1.7%)+(H701*4.3%)","v":0},null,null,{"$f":"IF(K701=\"\",I701,(C701+G701+H701)*K701)","v":0}]
[null,"GMWB 8-9 Net Value at Risk",{"$f":"'Schedule VIII (EBS)'!N27","v":0},null,null,null,{"$f":"+'Schedule VIII (EBS)'!P27","v":0},{"$f":"+'Schedule VIII (EBS)'!R27","v":0},{"$f":"(C702*35%)+(G702*50%)+(H702*70%)","v":0},null,null,{"$f":"IF(K702=\"\",I702,(C702+G702+H702)*K702)","v":0}]
[null,"GMWB 8-9 Guar. Val Out Money",{"$f":"'Schedule VIII (EBS)'!H45","v":0},null,null,null,{"$f":"'Schedule VIII (EBS)'!J45","v":0},{"$f":"'Schedule VIII (EBS)'!L45","v":0},{"$f":"(C703*1.1%)+(G703*1.7%)+(H703*4.3%)","v":0},null,null,{"$f":"IF(K703=\"\",I703,(C703+G703+H703)*K703)","v":0}]
[null,"GMWB - Total for 8-9",null,null,null,null,null,null,{"$f":"I703+(MAX(I701,I702))","v":0},null,null,{"$f":"L703+(MAX(L701,L702))","v":0}]
[]
[null,"GMAB >9 Guar. Val In Money",{"$f":"'Schedule VIII (EBS)'!H28","v":0},null,null,null,{"$f":"'Schedule VIII (EBS)'!J28","v":0},{"$f":"'Schedule VIII (EBS)'!L28","v":0},{"$f":"(C706*1%)+(G706*1.4%)+(H706*3.9%)","v":0},null,null,{"$f":"IF(K706=\"\",I706,(C706+G706+H706)*K706)","v":0}]
[null,"GMWB >9 Net Value at Risk",{"$f":"'Schedule VIII (EBS)'!N28","v":0},null,null,null,{"$f":"+'Schedule VIII (EBS)'!P28","v":0},{"$f":"+'Schedule VIII (EBS)'!R28","v":0},{"$f":"(C707*30%)+(G707*45%)+(H707*60%)","v":0},null,null,{"$f":"IF(K707=\"\",I707,(C707+G707+H707)*K707)","v":0}]
[null,"GMWB >9 Guar. Val Out Money",{"$f":"'Schedule VIII (EBS)'!H46","v":0},null,null,null,{"$f":"'Schedule VIII (EBS)'!J46","v":0},{"$f":"'Schedule VIII (EBS)'!L46","v":0},{"$f":"(C708*1%)+(G708*1.4%)+(H708*3.9%)","v":0},null,null,{"$f":"IF(K708=\"\",I708,(C708+G708+H708)*K708)","v":0}]
[null,"GMWB - Total for >9",null,null,null,null,null,null,{"$f":"I708+(MAX(I706,I707))","v":0},null,null,{"$f":"L708+(MAX(L706,L707))","v":0}]
[]
[null,"Percentage of Guaranteed Minimum Death Benefit with Multiple Guarantees",null,null,null,null,null,{"$f":"+'Schedule VIII (EBS)'!L50","v":0},{"$f":"IF(H711=0,0,(I639+I644)*(-H711))","v":0},null,null,{"$f":"IF(H711=0,0,(L639+L644)*(-H711))","v":0}]
[null,"Total BSCR Adjusted Reserves for Variable Annuities",null,null,null,null,null,null,{"$f":"-'Schedule VII (EBS)'!F47","v":0},null,null,{"$f":"-'Schedule VII (EBS)'!F47","v":0}]
[]
[null,"(a) REQUIRED CAPITAL FOR VARIABLE ANNUITY GUARANTEE RISK ",null,null,null,null,null,null,{"$f":"MAX(0,SUM(I639,I644,I649,I654,I659,I664,I669,I674,I679,I684,I689,I694,I699,I704,I709,I711,I712))","v":0},null,null,{"$f":"MAX(0,SUM(L639,L644,L649,L654,L659,L664,L669,L674,L679,L684,L689,L694,L699,L704,L709,L711,L712))","v":0}]
[]
[null,"REQUIRED CAPITAL AND SURPLUS"]
[]
[null,null,null,null,null,null,null,"Net","Gross",null,"Net","Gross"]
[]
[null,"Fixed Income Investment Risk",null,null,null,null,null,{"$f":"I136","v":0},{"$f":"I136","v":0},null,{"$f":"+L136","v":0},{"$f":"+L136","v":0}]
[null,"Equity Investment Risk",null,null,null,null,null,{"$f":"IF(Summary!E41=\"With Grandfathering\",('Equity Investments (Grandf)'!F51+'Equity Investments (Non-Grandf)'!R58),H190)","v":0},{"$f":"IF(Summary!E41=\"With Grandfathering\",('Equity Investments (Grandf)'!F51+'Equity Investments (Non-Grandf)'!P58),G190)","v":0},null,{"$f":"IF(Summary!E41=\"With Grandfathering\",('Equity Investments (Grandf)'!F51+'Equity Investments (Non-Grandf)'!R58),L190)","v":0},{"$f":"IF(Summary!E41=\"With Grandfathering\",('Equity Investments (Grandf)'!F51+'Equity Investments (Non-Grandf)'!P58),K190)","v":0}]
[null,"Interest Rate / Liquidity Risk",null,null,null,null,null,{"$f":"IF(Summary!$E$42=\"Duration-Based Approach\",I201,I309)","v":0},{"$f":"IF(Summary!$E$42=\"Duration-Based Approach\",H201,H309)","v":0},null,{"$f":"IF(Summary!$E$42=\"Duration-Based Approach\",L201,L309)","v":0},{"$f":"IF(Summary!$E$42=\"Duration-Based Approach\",K201,K309)","v":0}]
[null,"Currency Risk",null,null,null,null,null,{"$f":"I342","v":0},{"$f":"H342","v":0},null,{"$f":"L342","v":0},{"$f":"K342","v":0}]
[null,"Concentration Risk",null,null,null,null,null,{"$f":"I462","v":0},{"$f":"I462","v":0},null,{"$f":"+L462","v":0},{"$f":"+L462","v":0}]
[null,"Credit Risk",null,null,null,null,null,null,{"$f":"I521","v":0},null,null,{"$f":"+L521","v":0}]
[null,"Mortality",null,null,null,null,null,null,{"$f":"MAX(0,+I527)","v":0},null,null,{"$f":"MAX(0,+L527)","v":0}]
[null,"Stop Loss",null,null,null,null,null,null,{"$f":"MAX(0,+I606)","v":0},null,null,{"$f":"MAX(0,+L606)","v":0}]
[null,"Riders",null,null,null,null,null,null,{"$f":"MAX(0,+I608)","v":0},null,null,{"$f":"MAX(0,+L608)","v":0}]
[null,"Morbidity and Disability",null,null,null,null,null,null,{"$f":"MAX(0,SUM(I533:I543))","v":0},null,null,{"$f":"MAX(0,SUM(L533:L543))","v":0}]
[null,"Longevity",null,null,null,null,null,null,{"$f":"MAX(0,SUM(I550:I562))","v":0},null,null,{"$f":"MAX(0,(SUM(L550:L562)+SUM(L569:L581)+SUM(L588:L600)))","v":0}]
[null,"Variable Annuity Guarantee Risk",null,null,null,null,null,null,{"$f":"MAX(0,+I714,'Schedule VIIIA (EBS)'!S12)","v":0},null,null,{"$f":"MAX(0,+L714,'Schedule VIIIA (EBS)'!S12)","v":0}]
[null,"Other Insurance Risk",null,null,null,null,null,null,{"$f":"MAX(0,I631)","v":0},null,null,{"$f":"MAX(0,+L631)","v":0}]
[]
[null,"BSCR (Prior to Correlation Adjustment)",null,null,null,null,null,null,{"$f":"SUM(I720:I732)","v":0},null,null,{"$f":"SUM(L720:L732)","v":0}]
[]
[null,"BSCR (After Correlation Adjustment)",null,null,null,null,null,null,{"$f":"SQRT(MMULT(TRANSPOSE(I754:I756),MMULT('Correlation Matrix'!$R$7:$T$9,I754:I756)))","v":0},null,null,{"$f":"SQRT(MMULT(TRANSPOSE(L754:L756),MMULT('Correlation Matrix'!$R$7:$T$9,L754:L756)))","v":0}]
[]
[null,"Operational risk charge (%)",null,null,null,null,null,null,{"$f":"Summary!N62","v":0.2}]
[]
[null,"Operational risk capital charge ($)",null,null,null,null,null,null,{"$f":"(I736+I762)*I738","v":0},null,null,{"$f":"IF(L738=\"\",(L736+L762)*I738,(L736+L762)*L738)","v":0}]
[]
[null,"Capital Adjustment for (Regulatory) Capital Requirement for Regulated Non-Insurance Financial Operating Entities:",null,null,null,null,null,null,{"$f":"'Schedule XVI'!M211","v":0},null,null,{"$f":"'Schedule XVI'!M211","v":0}]
[]
[null,"CMgmtAction",null,null,null,null,null,null,{"$f":"I762","v":0},null,null,{"$f":"L762","v":0}]
[]
[null,"Other Capital Adjustment"]
[]
[null,"Capital add-on / reduction (BMA assessment)"]
[]
[null,"BSCR ",null,null,null,null,null,null,{"$f":"I736+I740+I748+I742+I744+I746","v":0},null,null,{"$f":"L736+L740+L748+L742+L744+L746","v":0}]
[]
[]
[null,"Capital Charges",null,null,null,null,null,"Net","Gross",null,"Net","Gross"]
[null,"Market Risk",null,null,null,null,null,{"$f":"SQRT(MMULT(TRANSPOSE(H720:H724),MMULT('Correlation Matrix'!$B$7:$F$11,H720:H724)))","v":0},{"$f":"SQRT(MMULT(TRANSPOSE(I720:I724),MMULT('Correlation Matrix'!$B$7:$F$11,I720:I724)))","v":0},null,{"$f":"SQRT(MMULT(TRANSPOSE(K720:K724),MMULT('Correlation Matrix'!$B$7:$F$11,K720:K724)))","v":0},{"$f":"SQRT(MMULT(TRANSPOSE(L720:L724),MMULT('Correlation Matrix'!$B$7:$F$11,L720:L724)))","v":0}]
[null,"Credit Risk",null,null,null,null,null,{"$f":"I725","v":0},{"$f":"I725","v":0},null,{"$f":"L725","v":0},{"$f":"L725","v":0}]
[null,"LT Insurance Risk",null,null,null,null,null,{"$f":"SQRT(MMULT(TRANSPOSE(I726:I732),MMULT('Correlation Matrix'!$I$7:$O$13,I726:I732)))","v":0},{"$f":"SQRT(MMULT(TRANSPOSE(I726:I732),MMULT('Correlation Matrix'!$I$7:$O$13,I726:I732)))","v":0},null,{"$f":"SQRT(MMULT(TRANSPOSE(L726:L732),MMULT('Correlation Matrix'!$I$7:$O$13,L726:L732)))","v":0},{"$f":"SQRT(MMULT(TRANSPOSE(L726:L732),MMULT('Correlation Matrix'!$I$7:$O$13,L726:L732)))","v":0}]
[null,"Total",null,null,null,null,null,{"$f":"SUM(H754:H756)","v":0},{"$f":"SUM(I754:I756)","v":0},null,{"$f":"SUM(K754:K756)","v":0},{"$f":"SUM(L754:L756)","v":0}]
[]
[null,"Management Action"]
[null,"Implied Loss-absorbing capacity of Technical Provisions without cap",null,null,null,null,null,null,{"$f":"(I754+I755+I756)-(H754+H755+H756)","v":0},null,null,{"$f":"(L754+L755+L756)-(K754+K755+K756)","v":0}]
[null,"Initial FDB / Bonus reserve",null,null,null,null,null,null,{"$f":"Summary!Q139","v":0},null,null,{"$f":"I761","v":0}]
[null,"Adjustment for the LaC of TP",null,null,null,null,null,null,{"$f":"-MAX(MIN((I754+I755+I756)-(H754+H755+H756),I761),0)","v":0},null,null,{"$f":"-MAX(MIN((L754+L755+L756)-(K754+K755+K756),L761),0)","v":0}]
[null,null,null,null,null,null,null,null,null,null,null,null,null,null,null,""]
[null,null,null,null,null,null,null,null,null,null,null,null,null,null,null,""]

{"sheet":"Correlation Matrix","index":103,"n_rows":15,"n_cols":23,"rows_kept":15,"cut":false,"hidden":false,"merged":[[2,3,2,5]]}
["Correlation Factors",null,null,null,null,null,null,null,null,null,null,null,null,null,null,null,null,null,null,null,null,null,{"$f":"HYPERLINK(\"#'Index'!A1\",\"Return to Index\")","v":"Return to Index"}]
[]
[]
[]
["Market Risk",null,null,null,null,null,null,"Long-term Insurance Risk",null,null,null,null,null,null,null,null,"Overall BSCR",null,null,null,null,"Capital Charges - Gross"]
[null,"Cfi","Ceq","Cint","CCur","Cconc",null,null,"Mort","Stop Loss","Riders","Morb & Dis","Long",{"$f":"YEAR('Insurer Information'!C3)","v":2019},"Other",null,null,"Market","Credit","LT Ins",null,"Market",{"$f":"Summary!N39","v":0}]
["Cfi",1,0.5,{"$f":"IF(Summary!E42=\"Duration-Based Approach\",0.25,IF('Interest Rate-Liquidity (Rev.)'!$E$109=\"Down\",0.25,0))","v":0.25},0.25,0,null,"Mort",1,0.75,0.75,0.25,-0.5,0,0.125,null,"Market",1,0.25,0.125,null,"Credit",{"$f":"Summary!N46","v":0}]
["Ceq",0.5,1,{"$f":"IF(Summary!E42=\"Duration-Based Approach\",0.25,IF('Interest Rate-Liquidity (Rev.)'!$E$109=\"Down\",0.25,0))","v":0.25},0.25,0,null,"Stop Loss",0.75,1,0.75,0,-0.5,0,0.25,null,"Credit",0.25,1,0.25,null,"Long-Term",{"$f":"Summary!N49","v":0}]
["Cint",{"$f":"IF(Summary!E42=\"Duration-Based Approach\",0.25,IF('Interest Rate-Liquidity (Rev.)'!$E$109=\"Down\",0.25,0))","v":0.25},{"$f":"IF(Summary!E42=\"Duration-Based Approach\",0.25,IF('Interest Rate-Liquidity (Rev.)'!$E$109=\"Down\",0.25,0))","v":0.25},1,0.25,0,null,"Riders",0.75,0.75,1,0,-0.5,0,0.25,null,"LT Ins",0.125,0.25,1,null,null,{"$f":"SUM(W6:W8)","v":0}]
["CCur",0.25,0.25,0.25,1,0,null,"Morb & Dis",0.25,0,0,1,0,0,0.25]
["Cconc",0,0,0,0,1,null,"Long",-0.5,-0.5,-0.5,0,1,0,0.25,null,null,null,null,null,null,"Capital Charges - Net"]
[null,null,null,null,null,null,null,"VA Guar",0,0,0,0,0,1,0.25,null,null,null,null,null,null,"Market",{"$f":"Summary!L39","v":0}]
[null,null,null,null,null,null,null,"Other",0.125,0.25,0.25,0.25,0.25,0.25,1,null,null,null,null,null,null,"Credit",{"$f":"Summary!L46","v":0}]
[null,null,null,null,null,null,null,null,null,null,null,null,null,null,null,null,null,null,null,null,null,"Long-Term",{"$f":"Summary!L49","v":0}]
[null,null,null,null,null,null,null,null,null,null,null,null,null,null,null,null,null,null,null,null,null,null,{"$f":"SUM(W12:W14)","v":0}]

{"sheet":"HiddenFormulas","index":104,"n_rows":374,"n_cols":27,"rows_kept":374,"cut":false,"hidden":true,"merged":[]}
["Summary",null,null,"Fixed Income Investments",null,null,"Equity Investments",null,null,"Interest Rate-Liquidity Risk",null,null,"Concentration Risk",null,null,"Credit Risk",null,null,"LT Insurance Risk",null,null,"LT Variable Annuity Gte Risk",null,null,"LT Other Insurance Risk"]
[{"$f":"IFERROR(SUM(C2:AA2),999)","v":0},null,{"$f":"IFERROR(SUM(C3:C273),999)","v":0},null,null,{"$f":"IFERROR(SUM(F3:F168),999)","v":0},null,null,{"$f":"IFERROR(SUM(I3:I74),999)","v":0},null,null,{"$f":"IFERROR(SUM(L3:L41),999)","v":0},null,null,{"$f":"IFERROR(SUM(O3:O313),999)","v":0},null,null,{"$f":"IFERROR(SUM(R3:R62),999)","v":0},null,null,{"$f":"IFERROR(SUM(U3:U124),999)","v":0},null,null,{"$f":"IFERROR(SUM(X3:X374),999)","v":0},null,null,{"$f":"IFERROR(SUM(AA3:AA55),999)","v":0}]
[{"$f":"IF(_xlfn.FORMULATEXT(INDIRECT(Y54))=Z54,0,1)","v":0},null,273,null,null,168,null,null,74,null,null,41,null,null,313,null,null,62,null,null,124,null,null,374,null,null,55]
[{"$f":"ADDRESS(2,1,1,1,$A$1)","v":"Summary!$A$2"},"='Insurer Information'!C7",{"$f":"IF(_xlfn.FORMULATEXT(INDIRECT(A4))=B4,0,1)","v":0},{"$f":"ADDRESS(2,1,1,1,$D$1)","v":"'Fixed Income Investments'!$A$2"},"='Insurer Information'!C7",{"$f":"IF(_xlfn.FORMULATEXT(INDIRECT(D4))=E4,0,1)","v":0},{"$f":"ADDRESS(2,1,1,1,$G$1)","v":"'Equity Investments'!$A$2"},"='Insurer Information'!C7",{"$f":"IF(_xlfn.FORMULATEXT(INDIRECT(G4))=H4,0,1)","v":0},{"$f":"ADDRESS(2,1,1,1,$J$1)","v":"'Interest Rate-Liquidity Risk'!$A$2"},"='Insurer Information'!C7",{"$f":"IF(_xlfn.FORMULATEXT(INDIRECT(J4))=K4,0,1)","v":0},{"$f":"ADDRESS(2,1,1,1,$M$1)","v":"'Concentration Risk'!$A$2"},"='Insurer Information'!C7",{"$f":"IF(_xlfn.FORMULATEXT(INDIRECT(M4))=N4,0,1)","v":0},{"$f":"ADDRESS(2,1,1,1,$P$1)","v":"'Credit Risk'!$A$2"},"='Insurer Information'!C7",{"$f":"IF(_xlfn.FORMULATEXT(INDIRECT(P4))=Q4,0,1)","v":0},{"$f":"ADDRESS(2,1,1,1,$S$1)","v":"'LT Insurance Risk'!$A$2"},"='Insurer Information'!C7",{"$f":"IF(_xlfn.FORMULATEXT(INDIRECT(S4))=T4,0,1)","v":0},{"$f":"ADDRESS(2,1,1,1,$V$1)","v":"'LT Variable Annuity Gte Risk'!$A$2"},"='Insurer Information'!C7",{"$f":"IF(_xlfn.FORMULATEXT(INDIRECT(V4))=W4,0,1)","v":0},{"$f":"ADDRESS(1,1,1,1,$Y$1)","v":"'LT Other Insurance Risk'!$A$1"},"=\"LONG TERM OTHER INSURANCE RISK\"& \" ($\" & IF(CONFIGURATION!$B$12>1,\"'\"&MID(CONFIGURATION!$B$12,2,LEN(CONFIGURATION!$B$12)),\"\") & \")\"",{"$f":"IF(_xlfn.FORMULATEXT(INDIRECT(Y4))=Z4,0,1)","v":0}]
[{"$f":"ADDRESS(3,1,1,1,$A$1)","v":"Summary!$A$3"},"=IF('Insurer Information'!F9=\"Class C\",\"Bermuda Solvency Capital Requirement - Class C Insurers (BSCR-LT)\",\"Bermuda Solvency Capital Requirement - Class D and Class E Insurers (BSCR-LT)\")",0,{"$f":"ADDRESS(3,3,1,1,$D$1)","v":"'Fixed Income Investments'!$C$3"},"= TEXT('Insurer Information'!C3,\"mmmm dd, yyyy\")",{"$f":"IF(_xlfn.FORMULATEXT(INDIRECT(D5))=E5,0,1)","v":0},{"$f":"ADDRESS(3,1,1,1,$G$1)","v":"'Equity Investments'!$A$3"},"=\"Equity Investment Risk\"& \" ($\" & IF(CONFIGURATION!$B$12>1,\"'\"&MID(CONFIGURATION!$B$12,2,LEN(CONFIGURATION!$B$12)),\"\") & \")\"",{"$f":"IF(_xlfn.FORMULATEXT(INDIRECT(G5))=H5,0,1)","v":0},{"$f":"ADDRESS(3,1,1,1,$J$1)","v":"'Interest Rate-Liquidity Risk'!$A$3"},"=\"Interest Rate and Liquidity Risk\"& \" ($\" & IF(CONFIGURATION!$B$12>1,\"'\"&MID(CONFIGURATION!$B$12,2,LEN(CONFIGURATION!$B$12)),\"\") & \")\"",{"$f":"IF(_xlfn.FORMULATEXT(INDIRECT(J5))=K5,0,1)","v":0},{"$f":"ADDRESS(3,1,1,1,$M$1)","v":"'Concentration Risk'!$A$3"},"=\"Concentration Risk\" & \" ($\" & IF(CONFIGURATION!$B$12>1,\"'\"&MID(CONFIGURATION!$B$12,2,LEN(CONFIGURATION!$B$12)),\"\") & \")\"",{"$f":"IF(_xlfn.FORMULATEXT(INDIRECT(M5))=N5,0,1)","v":0},{"$f":"ADDRESS(3,1,1,1,$P$1)","v":"'Credit Risk'!$A$3"},"=\"Credit Risk\"& \" ($\" & IF(CONFIGURATION!$B$12>1,\"'\"&MID(CONFIGURATION!$B$12,2,LEN(CONFIGURATION!$B$12)),\"\") & \")\"",{"$f":"IF(_xlfn.FORMULATEXT(INDIRECT(P5))=Q5,0,1)","v":0},{"$f":"ADDRESS(2,4,1,1,$S$1)","v":"'LT Insurance Risk'!$D$2"},"= TEXT('Insurer Information'!C3,\"mmmm dd, yyyy\")",0,{"$f":"ADDRESS(3,1,1,1,$V$1)","v":"'LT Variable Annuity Gte Risk'!$A$3"},"=\"Long Term Business Variable Annuity Guarantee Risk\"& \" ($\" & IF(CONFIGURATION!$B$12>1,\"'\"&MID(CONFIGURATION!$B$12,2,LEN(CONFIGURATION!$B$12)),\"\") & \")\"",{"$f":"IF(_xlfn.FORMULATEXT(INDIRECT(V5))=W5,0,1)","v":0},{"$f":"ADDRESS(2,1,1,1,$Y$1)","v":"'LT Other Insurance Risk'!$A$2"},"='Insurer Information'!C7",{"$f":"IF(_xlfn.FORMULATEXT(INDIRECT(Y5))=Z5,0,1)","v":0}]
[{"$f":"ADDRESS(4,1,1,1,$A$1)","v":"Summary!$A$4"},"=\"For the Year Ending \"",0,{"$f":"ADDRESS(12,4,1,1,$D$1)","v":"'Fixed Income Investments'!$D$12"},"=+'Schedule II (EBS)'!D12+'Schedule IIA (EBS)'!D12",{"$f":"IF(_xlfn.FORMULATEXT(INDIRECT(D6))=E6,0,1)","v":0},{"$f":"ADDRESS(3,3,1,1,$G$1)","v":"'Equity Investments'!$C$3"},"= TEXT('Insurer Information'!C3,\"mmmm dd, yyyy\")",{"$f":"IF(_xlfn.FORMULATEXT(INDIRECT(G6))=H6,0,1)","v":0},{"$f":"ADDRESS(4,1,1,1,$J$1)","v":"'Interest Rate-Liquidity Risk'!$A$4"},"= TEXT('Insurer Information'!C3,\"mmmm dd, yyyy\")",{"$f":"IF(_xlfn.FORMULATEXT(INDIRECT(J6))=K6,0,1)","v":0},{"$f":"ADDRESS(3,3,1,1,$M$1)","v":"'Concentration Risk'!$C$3"},"= TEXT('Insurer Information'!C3,\"mmmm dd, yyyy\")",{"$f":"IF(_xlfn.FORMULATEXT(INDIRECT(M6))=N6,0,1)","v":0},{"$f":"ADDRESS(3,3,1,1,$P$1)","v":"'Credit Risk'!$C$3"},"= TEXT('Insurer Information'!C3,\"mmmm dd, yyyy\")",{"$f":"IF(_xlfn.FORMULATEXT(INDIRECT(P6))=Q6,0,1)","v":0},{"$f":"ADDRESS(3,1,1,1,$S$1)","v":"'LT Insurance Risk'!$A$3"},"=\"Long Term Insurance Risk\"& \" ($\" & IF(CONFIGURATION!$B$12>1,\"'\"&MID(CONFIGURATION!$B$12,2,LEN(CONFIGURATION!$B$12)),\"\") & \")\"",0,{"$f":"ADDRESS(3,12,1,1,$V$1)","v":"'LT Variable Annuity Gte Risk'!$L$3"},"= TEXT('Insurer Information'!C3,\"mmmm dd, yyyy\")",{"$f":"IF(_xlfn.FORMULATEXT(INDIRECT(V6))=W6,0,1)","v":0},{"$f":"ADDRESS(3,1,1,1,$Y$1)","v":"'LT Other Insurance Risk'!$A$3"},"= TEXT('Insurer Information'!C3,\"mmmm dd, yyyy\")",{"$f":"IF(_xlfn.FORMULATEXT(INDIRECT(Y6))=Z6,0,1)","v":0}]
[{"$f":"ADDRESS(4,4,1,1,$A$1)","v":"Summary!$D$4"},"=TEXT('Insurer Information'!C3,\"mmmm dd, yyyy\")",0,{"$f":"ADDRESS(12,5,1,1,$D$1)","v":"'Fixed Income Investments'!$E$12"},0,{"$f":"IF(INDIRECT(D7)=E7,0,1)","v":0},{"$f":"ADDRESS(11,4,1,1,$G$1)","v":"'Equity Investments'!$D$11"},"='Schedule II (EBS)'!D41+'Schedule IIA (EBS)'!D41",{"$f":"IF(_xlfn.FORMULATEXT(INDIRECT(G7))=H7,0,1)","v":0},{"$f":"ADDRESS(6,14,1,1,$J$1)","v":"'Interest Rate-Liquidity Risk'!$N$6"},"=YEAR('Insurer Information'!C3)",{"$f":"IF(_xlfn.FORMULATEXT(INDIRECT(J7))=K7,0,1)","v":0},{"$f":"ADDRESS(6,14,1,1,$M$1)","v":"'Concentration Risk'!$N$6"},"=YEAR('Insurer Information'!C3)",{"$f":"IF(_xlfn.FORMULATEXT(INDIRECT(M7))=N7,0,1)","v":0},{"$f":"ADDRESS(11,4,1,1,$P$1)","v":"'Credit Risk'!$D$11"},"='Form 4EBS'!F59",{"$f":"IF(_xlfn.FORMULATEXT(INDIRECT(P7))=Q7,0,1)","v":0},{"$f":"ADDRESS(6,14,1,1,$S$1)","v":"'LT Insurance Risk'!$N$6"},"=YEAR('Insurer Information'!C3)",0,{"$f":"ADDRESS(6,14,1,1,$V$1)","v":"'LT Variable Annuity Gte Risk'!$N$6"},"=YEAR('Insurer Information'!C3)",{"$f":"IF(_xlfn.FORMULATEXT(INDIRECT(V7))=W7,0,1)","v":0},{"$f":"ADDRESS(6,14,1,1,$Y$1)","v":"'LT Other Insurance Risk'!$N$6"},"=YEAR('Insurer Information'!C3)",{"$f":"IF(_xlfn.FORMULATEXT(INDIRECT(Y7))=Z7,0,1)","v":0}]
[{"$f":"ADDRESS(5,1,1,1,$A$1)","v":"Summary!$A$5"},"=\"Expressed in \" & IF(CONFIGURATION!$B$12>1,\" ['\"&MID(CONFIGURATION!$B$12,2,LEN(CONFIGURATION!$B$12))&\"s]\",\"\")",0,{"$f":"ADDRESS(12,6,1,1,$D$1)","v":"'Fixed Income Investments'!$F$12"},"=IF(D12<0,0,D12*E12)",{"$f":"IF(_xlfn.FORMULATEXT(INDIRECT(D8))=E8,0,1)","v":0},{"$f":"ADDRESS(11,5,1,1,$G$1)","v":"'Equity Investments'!$E$11"},0.14399999999999999,{"$f":"IF(INDIRECT(G8)=H8,0,1)","v":0},{"$f":"ADDRESS(10,3,1,1,$J$1)","v":"'Interest Rate-Liquidity Risk'!$C$10"},0.02,{"$f":"IF(INDIRECT(J8)=K8,0,1)","v":0},{"$f":"ADDRESS(9,4,1,1,$M$1)","v":"'Concentration Risk'!$D$9"},"Cash and Cash Equivalent",{"$f":"IF(INDIRECT(M8)=N8,0,1)","v":0},{"$f":"ADDRESS(11,5,1,1,$P$1)","v":"'Credit Risk'!$E$11"},0.05,{"$f":"IF(INDIRECT(P8)=Q8,0,1)","v":0},{"$f":"ADDRESS(11,4,1,1,$S$1)","v":"'LT Insurance Risk'!$D$11"},"='Schedule VII (EBS)'!H10",0,{"$f":"ADDRESS(14,5,1,1,$V$1)","v":"'LT Variable Annuity Gte Risk'!$E$14"},"='Schedule VIII (EBS)'!H13",{"$f":"IF(_xlfn.FORMULATEXT(INDIRECT(V8))=W8,0,1)","v":0},{"$f":"ADDRESS(10,5,1,1,$Y$1)","v":"'LT Other Insurance Risk'!$E$10"},"='Schedule VII (EBS)'!F10",{"$f":"IF(_xlfn.FORMULATEXT(INDIRECT(Y8))=Z8,0,1)","v":0}]
[{"$f":"ADDRESS(5,4,1,1,$A$1)","v":"Summary!$D$5"},"='Form 4EBS'!C4",0,{"$f":"ADDRESS(13,4,1,1,$D$1)","v":"'Fixed Income Investments'!$D$13"},"=+'Schedule II (EBS)'!D13+'Schedule IIA (EBS)'!D13",{"$f":"IF(_xlfn.FORMULATEXT(INDIRECT(D9))=E9,0,1)","v":0},{"$f":"ADDRESS(11,6,1,1,$G$1)","v":"'Equity Investments'!$F$11"},"=IF(D11<0,0,D11*E11)",{"$f":"IF(_xlfn.FORMULATEXT(INDIRECT(G9))=H9,0,1)","v":0},{"$f":"ADDRESS(10,6,1,1,$J$1)","v":"'Interest Rate-Liquidity Risk'!$F$10"},"=IF('Insurer Information'!F9=\"Class C\",\"Schedule V, Line (g)\",\"Schedule V, Line (h)\")",{"$f":"IF(_xlfn.FORMULATEXT(INDIRECT(J9))=K9,0,1)","v":0},{"$f":"ADDRESS(10,2,1,1,$M$1)","v":"'Concentration Risk'!$B$10"},"BSCR Rating 0",{"$f":"IF(INDIRECT(M9)=N9,0,1)","v":0},{"$f":"ADDRESS(11,6,1,1,$P$1)","v":"'Credit Risk'!$F$11"},"=D11*E11",{"$f":"IF(_xlfn.FORMULATEXT(INDIRECT(P9))=Q9,0,1)","v":0},{"$f":"ADDRESS(11,5,1,1,$S$1)","v":"'LT Insurance Risk'!$E$11"},"='Schedule VII (EBS)'!I10",0,{"$f":"ADDRESS(14,6,1,1,$V$1)","v":"'LT Variable Annuity Gte Risk'!$F$14"},2.5000000000000001E-3,{"$f":"IF(INDIRECT(V9)=W9,0,1)","v":0},{"$f":"ADDRESS(10,7,1,1,$Y$1)","v":"'LT Other Insurance Risk'!$G$10"},0.02,{"$f":"IF(INDIRECT(Y9)=Z9,0,1)","v":0}]
[{"$f":"ADDRESS(6,14,1,1,$A$1)","v":"Summary!$N$6"},"=YEAR('Insurer Information'!C3)",0,{"$f":"ADDRESS(13,5,1,1,$D$1)","v":"'Fixed Income Investments'!$E$13"},4.0000000000000001E-3,{"$f":"IF(INDIRECT(D10)=E10,0,1)","v":0},{"$f":"ADDRESS(12,4,1,1,$G$1)","v":"'Equity Investments'!$D$12"},"='Schedule II (EBS)'!D42+'Schedule IIA (EBS)'!D42",{"$f":"IF(_xlfn.FORMULATEXT(INDIRECT(G10))=H10,0,1)","v":0},{"$f":"ADDRESS(10,7,1,1,$J$1)","v":"'Interest Rate-Liquidity Risk'!$G$10"},"='Schedule V'!H19",0,{"$f":"ADDRESS(10,4,1,1,$M$1)","v":"'Concentration Risk'!$D$10"},"=SUMIFS('Schedule XXI'!$M$8:$M$57,'Schedule XXI'!$J$8:$J$57,$D$9,'Schedule XXI'!$L$8:$L$57,$B10)",{"$f":"IF(_xlfn.FORMULATEXT(INDIRECT(M10))=N10,0,1)","v":0},{"$f":"ADDRESS(12,4,1,1,$P$1)","v":"'Credit Risk'!$D$12"},"='Form 4EBS'!F60-'Form 4EBS'!F196",{"$f":"IF(_xlfn.FORMULATEXT(INDIRECT(P10))=Q10,0,1)","v":0},{"$f":"ADDRESS(11,12,1,1,$S$1)","v":"'LT Insurance Risk'!$L$11"},"=M11/2",0,{"$f":"ADDRESS(14,8,1,1,$V$1)","v":"'LT Variable Annuity Gte Risk'!$H$14"},"='Schedule VIII (EBS)'!J13",{"$f":"IF(_xlfn.FORMULATEXT(INDIRECT(V10))=W10,0,1)","v":0},{"$f":"ADDRESS(10,9,1,1,$Y$1)","v":"'LT Other Insurance Risk'!$I$10"},"=MAX(0,E10*G10)",{"$f":"IF(_xlfn.FORMULATEXT(INDIRECT(Y10))=Z10,0,1)","v":0}]
[{"$f":"ADDRESS(11,7,1,1,$A$1)","v":"Summary!$G$11"},"=IF('Insurer Information'!$F$2=\"Unconsolidated BSCR Model\",'Form 1SFS'!$K$198,'Form 1SFS'!$H$198)*IF('Form 1SFS'!$C$5=\"United States Dollars\",1,'Information Sheet'!$H$18)",0,{"$f":"ADDRESS(13,6,1,1,$D$1)","v":"'Fixed Income Investments'!$F$13"},"=IF(D13<0,0,D13*E13)",{"$f":"IF(_xlfn.FORMULATEXT(INDIRECT(D11))=E11,0,1)","v":0},{"$f":"ADDRESS(12,5,1,1,$G$1)","v":"'Equity Investments'!$E$12"},0.14399999999999999,{"$f":"IF(INDIRECT(G11)=H11,0,1)","v":0},{"$f":"ADDRESS(10,9,1,1,$J$1)","v":"'Interest Rate-Liquidity Risk'!$I$10"},"=E39",0,{"$f":"ADDRESS(10,5,1,1,$M$1)","v":"'Concentration Risk'!$E$10"},"=+'Fixed Income Investments'!E83",{"$f":"IF(_xlfn.FORMULATEXT(INDIRECT(M11))=N11,0,1)","v":0},{"$f":"ADDRESS(12,5,1,1,$P$1)","v":"'Credit Risk'!$E$12"},0.1,{"$f":"IF(INDIRECT(P11)=Q11,0,1)","v":0},{"$f":"ADDRESS(11,13,1,1,$S$1)","v":"'LT Insurance Risk'!$M$11"},3.97,{"$f":"IF(INDIRECT(S11)=T11,0,1)","v":0},{"$f":"ADDRESS(14,9,1,1,$V$1)","v":"'LT Variable Annuity Gte Risk'!$I$14"},5.0000000000000001E-3,{"$f":"IF(INDIRECT(V11)=W11,0,1)","v":0},{"$f":"ADDRESS(11,5,1,1,$Y$1)","v":"'LT Other Insurance Risk'!$E$11"},"='Schedule VII (EBS)'!F11",{"$f":"IF(_xlfn.FORMULATEXT(INDIRECT(Y11))=Z11,0,1)","v":0}]
[{"$f":"ADDRESS(13,11,1,1,$A$1)","v":"Summary!$K$13"},"=\"Unconsolidated Statutory Capital & Surplus for \"&YEAR('Form 1SFS'!$G$9)",0,{"$f":"ADDRESS(14,4,1,1,$D$1)","v":"'Fixed Income Investments'!$D$14"},"=+'Schedule II (EBS)'!D14+'Schedule IIA (EBS)'!D14",{"$f":"IF(_xlfn.FORMULATEXT(INDIRECT(D12))=E12,0,1)","v":0},{"$f":"ADDRESS(12,6,1,1,$G$1)","v":"'Equity Investments'!$F$12"},"=IF(D12<0,0,D12*E12)",{"$f":"IF(_xlfn.FORMULATEXT(INDIRECT(G12))=H12,0,1)","v":0},{"$f":"ADDRESS(10,10,1,1,$J$1)","v":"'Interest Rate-Liquidity Risk'!$J$10"},"=L31",0,{"$f":"ADDRESS(10,6,1,1,$M$1)","v":"'Concentration Risk'!$F$10"},"=MAX(0,(D10*E10))",{"$f":"IF(_xlfn.FORMULATEXT(INDIRECT(M12))=N12,0,1)","v":0},{"$f":"ADDRESS(12,6,1,1,$P$1)","v":"'Credit Risk'!$F$12"},"=D12*E12",{"$f":"IF(_xlfn.FORMULATEXT(INDIRECT(P12))=Q12,0,1)","v":0},{"$f":"ADDRESS(11,14,1,1,$S$1)","v":"'LT Insurance Risk'!$N$11"},"=IF(D11>1000000,L11*1000000,L11*D11)/1000",{"$f":"IF(_xlfn.FORMULATEXT(INDIRECT(S12))=T12,0,1)","v":0},{"$f":"ADDRESS(14,11,1,1,$V$1)","v":"'LT Variable Annuity Gte Risk'!$K$14"},"='Schedule VIII (EBS)'!L13",{"$f":"IF(_xlfn.FORMULATEXT(INDIRECT(V12))=W12,0,1)","v":0},{"$f":"ADDRESS(11,7,1,1,$Y$1)","v":"'LT Other Insurance Risk'!$G$11"},0.02,{"$f":"IF(INDIRECT(Y12)=Z12,0,1)","v":0}]
[{"$f":"ADDRESS(13,15,1,1,$A$1)","v":"Summary!$O$13"},"=IF('Insurer Information'!$F$2=\"Unconsolidated BSCR Model\",'Form 8SFS'!$Q$58,'Form 8SFS'!M58+'Form 8SFS'!I58)",0,{"$f":"ADDRESS(14,5,1,1,$D$1)","v":"'Fixed Income Investments'!$E$14"},8.0000000000000002E-3,{"$f":"IF(INDIRECT(D13)=E13,0,1)","v":0},{"$f":"ADDRESS(13,4,1,1,$G$1)","v":"'Equity Investments'!$D$13"},"='Schedule II (EBS)'!L41+'Schedule II (EBS)'!L42+'Schedule IIA (EBS)'!L41+'Schedule IIA (EBS)'!L42",{"$f":"IF(_xlfn.FORMULATEXT(INDIRECT(G13))=H13,0,1)","v":0},{"$f":"ADDRESS(10,11,1,1,$J$1)","v":"'Interest Rate-Liquidity Risk'!$K$10"},"=C10*MAX(1,IF(E10=\"\",ABS('Schedule V'!$H$15),ABS(E10)))*G10*(1-J10)",0,{"$f":"ADDRESS(11,2,1,1,$M$1)","v":"'Concentration Risk'!$B$11"},"BSCR Rating 1",{"$f":"IF(INDIRECT(M13)=N13,0,1)","v":0},{"$f":"ADDRESS(14,4,1,1,$P$1)","v":"'Credit Risk'!$D$14"},"=SUM(D11:D12)",{"$f":"IF(_xlfn.FORMULATEXT(INDIRECT(P13))=Q13,0,1)","v":0},{"$f":"ADDRESS(11,15,1,1,$S$1)","v":"'LT Insurance Risk'!$O$11"},"=IF(E11>1000000,M11*1000000,M11*E11)/1000",{"$f":"IF(_xlfn.FORMULATEXT(INDIRECT(S13))=T13,0,1)","v":0},{"$f":"ADDRESS(14,12,1,1,$V$1)","v":"'LT Variable Annuity Gte Risk'!$L$14"},7.4999999999999997E-3,{"$f":"IF(INDIRECT(V13)=W13,0,1)","v":0},{"$f":"ADDRESS(11,9,1,1,$Y$1)","v":"'LT Other Insurance Risk'!$I$11"},"=MAX(0,E11*G11)",{"$f":"IF(_xlfn.FORMULATEXT(INDIRECT(Y13))=Z13,0,1)","v":0}]
[{"$f":"ADDRESS(14,6,1,1,$A$1)","v":"Summary!$F$14"},"=IF('Insurer Information'!$F$2=\"Unconsolidated BSCR Model\",'Form 1SFS'!$K$100,'Form 1SFS'!$H$100)*IF('Form 1SFS'!$C$5=\"United States Dollars\",1,'Information Sheet'!$H$18)",0,{"$f":"ADDRESS(14,6,1,1,$D$1)","v":"'Fixed Income Investments'!$F$14"},"=IF(D14<0,0,D14*E14)",{"$f":"IF(_xlfn.FORMULATEXT(INDIRECT(D14))=E14,0,1)","v":0},{"$f":"ADDRESS(13,5,1,1,$G$1)","v":"'Equity Investments'!$E$13"},0.14399999999999999,{"$f":"IF(INDIRECT(G14)=H14,0,1)","v":0},{"$f":"ADDRESS(10,12,1,1,$J$1)","v":"'Interest Rate-Liquidity Risk'!$L$10"},"=I10*K10",0,{"$f":"ADDRESS(11,4,1,1,$M$1)","v":"'Concentration Risk'!$D$11"},"=SUMIFS('Schedule XXI'!$M$8:$M$57,'Schedule XXI'!$J$8:$J$57,$D$9,'Schedule XXI'!$L$8:$L$57,$B11)",{"$f":"IF(_xlfn.FORMULATEXT(INDIRECT(M14))=N14,0,1)","v":0},{"$f":"ADDRESS(14,6,1,1,$P$1)","v":"'Credit Risk'!$F$14"},"=IF(SUM(F11:F12)>=0,SUM(F11:F12),0)",{"$f":"IF(_xlfn.FORMULATEXT(INDIRECT(P14))=Q14,0,1)","v":0},{"$f":"ADDRESS(12,12,1,1,$S$1)","v":"'LT Insurance Risk'!$L$12"},"=M12/2",{"$f":"IF(_xlfn.FORMULATEXT(INDIRECT(S14))=T14,0,1)","v":0},{"$f":"ADDRESS(14,14,1,1,$V$1)","v":"'LT Variable Annuity Gte Risk'!$N$14"},"='Schedule VIII (EBS)'!N13",{"$f":"IF(_xlfn.FORMULATEXT(INDIRECT(V14))=W14,0,1)","v":0},{"$f":"ADDRESS(12,5,1,1,$Y$1)","v":"'LT Other Insurance Risk'!$E$12"},"=+'Schedule VII (EBS)'!F19",{"$f":"IF(_xlfn.FORMULATEXT(INDIRECT(Y14))=Z14,0,1)","v":0}]
[{"$f":"ADDRESS(15,14,1,1,$A$1)","v":"Summary!$N$15"},"=25%*O13",0,{"$f":"ADDRESS(15,4,1,1,$D$1)","v":"'Fixed Income Investments'!$D$15"},"=+'Schedule II (EBS)'!D15+'Schedule IIA (EBS)'!D15",{"$f":"IF(_xlfn.FORMULATEXT(INDIRECT(D15))=E15,0,1)","v":0},{"$f":"ADDRESS(13,6,1,1,$G$1)","v":"'Equity Investments'!$F$13"},"=IF(D13<0,0,D13*E13)",{"$f":"IF(_xlfn.FORMULATEXT(INDIRECT(G15))=H15,0,1)","v":0},{"$f":"ADDRESS(11,3,1,1,$J$1)","v":"'Interest Rate-Liquidity Risk'!$C$11"},0.02,{"$f":"IF(INDIRECT(J15)=K15,0,1)","v":0},{"$f":"ADDRESS(11,5,1,1,$M$1)","v":"'Concentration Risk'!$E$11"},"=+'Fixed Income Investments'!E84",{"$f":"IF(_xlfn.FORMULATEXT(INDIRECT(M15))=N15,0,1)","v":0},{"$f":"ADDRESS(18,4,1,1,$P$1)","v":"'Credit Risk'!$D$18"},"='Form 4EBS'!F56",{"$f":"IF(_xlfn.FORMULATEXT(INDIRECT(P15))=Q15,0,1)","v":0},{"$f":"ADDRESS(12,13,1,1,$S$1)","v":"'LT Insurance Risk'!$M$12"},1.8,{"$f":"IF(INDIRECT(S15)=T15,0,1)","v":0},{"$f":"ADDRESS(14,15,1,1,$V$1)","v":"'LT Variable Annuity Gte Risk'!$O$14"},0.04,{"$f":"IF(INDIRECT(V15)=W15,0,1)","v":0},{"$f":"ADDRESS(12,7,1,1,$Y$1)","v":"'LT Other Insurance Risk'!$G$12"},5.0000000000000001E-3,{"$f":"IF(INDIRECT(Y15)=Z15,0,1)","v":0}]
[{"$f":"ADDRESS(16,6,1,1,$A$1)","v":"Summary!$F$16"},"=-IF('Insurer Information'!$F$2=\"Unconsolidated BSCR Model\",'Form 1SFS'!$K$83,'Form 1SFS'!$H$83)*IF('Form 1SFS'!$C$5=\"United States Dollars\",1,'Information Sheet'!$H$18)",0,{"$f":"ADDRESS(15,5,1,1,$D$1)","v":"'Fixed Income Investments'!$E$15"},1.4999999999999999E-2,{"$f":"IF(INDIRECT(D16)=E16,0,1)","v":0},{"$f":"ADDRESS(15,4,1,1,$G$1)","v":"'Equity Investments'!$D$15"},"=SUM(D11:D13)",{"$f":"IF(_xlfn.FORMULATEXT(INDIRECT(G16))=H16,0,1)","v":0},{"$f":"ADDRESS(11,6,1,1,$J$1)","v":"'Interest Rate-Liquidity Risk'!$F$11"},"=IF('Insurer Information'!F10=\"Class C\",\"Schedule V, Line (g)\",\"Schedule V, Line (h)\")",{"$f":"IF(_xlfn.FORMULATEXT(INDIRECT(J16))=K16,0,1)","v":0},{"$f":"ADDRESS(11,6,1,1,$M$1)","v":"'Concentration Risk'!$F$11"},"=MAX(0,(D11*E11))",{"$f":"IF(_xlfn.FORMULATEXT(INDIRECT(M16))=N16,0,1)","v":0},{"$f":"ADDRESS(18,5,1,1,$P$1)","v":"'Credit Risk'!$E$18"},2.5000000000000001E-2,{"$f":"IF(INDIRECT(P16)=Q16,0,1)","v":0},{"$f":"ADDRESS(12,14,1,1,$S$1)","v":"'LT Insurance Risk'!$N$12"},"=IF(D11<1000000,0,IF(D11>5000000,L12*4000000,L12*(D11-1000000)))/1000",{"$f":"IF(_xlfn.FORMULATEXT(INDIRECT(S16))=T16,0,1)","v":0},{"$f":"ADDRESS(14,17,1,1,$V$1)","v":"'LT Variable Annuity Gte Risk'!$Q$14"},"=+'Schedule VIII (EBS)'!P13",{"$f":"IF(_xlfn.FORMULATEXT(INDIRECT(V16))=W16,0,1)","v":0},{"$f":"ADDRESS(12,9,1,1,$Y$1)","v":"'LT Other Insurance Risk'!$I$12"},"=MAX(0,E12*G12)",{"$f":"IF(_xlfn.FORMULATEXT(INDIRECT(Y16))=Z16,0,1)","v":0}]
[{"$f":"ADDRESS(16,11,1,1,$A$1)","v":"Summary!$K$16"},"=\"Dividend Payment in \"&YEAR('Form 1SFS'!$F$9)",0,{"$f":"ADDRESS(15,6,1,1,$D$1)","v":"'Fixed Income Investments'!$F$15"},"=IF(D15<0,0,D15*E15)",{"$f":"IF(_xlfn.FORMULATEXT(INDIRECT(D17))=E17,0,1)","v":0},{"$f":"ADDRESS(15,6,1,1,$G$1)","v":"'Equity Investments'!$F$15"},"=MAX(0,(SUM(F11:F13)))",{"$f":"IF(_xlfn.FORMULATEXT(INDIRECT(G17))=H17,0,1)","v":0},{"$f":"ADDRESS(11,7,1,1,$J$1)","v":"'Interest Rate-Liquidity Risk'!$G$11"},"='Schedule V'!H19",0,{"$f":"ADDRESS(12,2,1,1,$M$1)","v":"'Concentration Risk'!$B$12"},"BSCR Rating 2",{"$f":"IF(INDIRECT(M17)=N17,0,1)","v":0},{"$f":"ADDRESS(18,6,1,1,$P$1)","v":"'Credit Risk'!$F$18"},"=D18*E18",{"$f":"IF(_xlfn.FORMULATEXT(INDIRECT(P17))=Q17,0,1)","v":0},{"$f":"ADDRESS(12,15,1,1,$S$1)","v":"'LT Insurance Risk'!$O$12"},"=IF(E11<1000000,0,IF(E11>5000000,M12*4000000,M12*(E11-1000000)))/1000",{"$f":"IF(_xlfn.FORMULATEXT(INDIRECT(S17))=T17,0,1)","v":0},{"$f":"ADDRESS(14,18,1,1,$V$1)","v":"'LT Variable Annuity Gte Risk'!$R$14"},8.5000000000000006E-2,{"$f":"IF(INDIRECT(V17)=W17,0,1)","v":0},{"$f":"ADDRESS(13,5,1,1,$Y$1)","v":"'LT Other Insurance Risk'!$E$13"},"=+'Schedule VII (EBS)'!F28",{"$f":"IF(_xlfn.FORMULATEXT(INDIRECT(Y17))=Z17,0,1)","v":0}]
[{"$f":"ADDRESS(16,14,1,1,$A$1)","v":"Summary!$N$16"},"=-IF('Insurer Information'!$F$2=\"Unconsolidated BSCR Model\",'Form 8SFS'!$O$44,'Form 8SFS'!G44+'Form 8SFS'!K44)",0,{"$f":"ADDRESS(16,4,1,1,$D$1)","v":"'Fixed Income Investments'!$D$16"},"=+'Schedule II (EBS)'!D16+'Schedule IIA (EBS)'!D16",{"$f":"IF(_xlfn.FORMULATEXT(INDIRECT(D18))=E18,0,1)","v":0},{"$f":"ADDRESS(20,4,1,1,$G$1)","v":"'Equity Investments'!$D$20"},"=+'Schedule II (EBS)'!H33+'Schedule IIA (EBS)'!H33",{"$f":"IF(_xlfn.FORMULATEXT(INDIRECT(G18))=H18,0,1)","v":0},{"$f":"ADDRESS(11,9,1,1,$J$1)","v":"'Interest Rate-Liquidity Risk'!$I$11"},"=E39",0,{"$f":"ADDRESS(12,4,1,1,$M$1)","v":"'Concentration Risk'!$D$12"},"=SUMIFS('Schedule XXI'!$M$8:$M$57,'Schedule XXI'!$J$8:$J$57,$D$9,'Schedule XXI'!$L$8:$L$57,$B12)",{"$f":"IF(_xlfn.FORMULATEXT(INDIRECT(M18))=N18,0,1)","v":0},{"$f":"ADDRESS(19,4,1,1,$P$1)","v":"'Credit Risk'!$D$19"},"='Form 4EBS'!F39",{"$f":"IF(_xlfn.FORMULATEXT(INDIRECT(P18))=Q18,0,1)","v":0},{"$f":"ADDRESS(13,12,1,1,$S$1)","v":"'LT Insurance Risk'!$L$13"},"=M13/2",{"$f":"IF(_xlfn.FORMULATEXT(INDIRECT(S18))=T18,0,1)","v":0},{"$f":"ADDRESS(14,20,1,1,$V$1)","v":"'LT Variable Annuity Gte Risk'!$T$14"},"=+'Schedule VIII (EBS)'!R13",{"$f":"IF(_xlfn.FORMULATEXT(INDIRECT(V18))=W18,0,1)","v":0},{"$f":"ADDRESS(13,7,1,1,$Y$1)","v":"'LT Other Insurance Risk'!$G$13"},5.0000000000000001E-3,{"$f":"IF(INDIRECT(Y18)=Z18,0,1)","v":0}]
[{"$f":"ADDRESS(17,6,1,1,$A$1)","v":"Summary!$F$17"},"=-IF('Insurer Information'!$F$2=\"Unconsolidated BSCR Model\",'Form 1SFS'!$K$84,'Form 1SFS'!$H$84)*IF('Form 1SFS'!$C$5=\"United States Dollars\",1,'Information Sheet'!$H$18)",0,{"$f":"ADDRESS(16,5,1,1,$D$1)","v":"'Fixed Income Investments'!$E$16"},0.03,{"$f":"IF(INDIRECT(D19)=E19,0,1)","v":0},{"$f":"ADDRESS(20,5,1,1,$G$1)","v":"'Equity Investments'!$E$20"},6.0000000000000001E-3,{"$f":"IF(INDIRECT(G19)=H19,0,1)","v":0},{"$f":"ADDRESS(11,10,1,1,$J$1)","v":"'Interest Rate-Liquidity Risk'!$J$11"},"=L31",0,{"$f":"ADDRESS(12,5,1,1,$M$1)","v":"'Concentration Risk'!$E$12"},"=+'Fixed Income Investments'!E85",{"$f":"IF(_xlfn.FORMULATEXT(INDIRECT(M19))=N19,0,1)","v":0},{"$f":"ADDRESS(19,5,1,1,$P$1)","v":"'Credit Risk'!$E$19"},0.05,{"$f":"IF(INDIRECT(P19)=Q19,0,1)","v":0},{"$f":"ADDRESS(13,13,1,1,$S$1)","v":"'LT Insurance Risk'!$M$13"},1.44,{"$f":"IF(INDIRECT(S19)=T19,0,1)","v":0},{"$f":"ADDRESS(14,21,1,1,$V$1)","v":"'LT Variable Annuity Gte Risk'!$U$14"},0.13,{"$f":"IF(INDIRECT(V19)=W19,0,1)","v":0},{"$f":"ADDRESS(13,9,1,1,$Y$1)","v":"'LT Other Insurance Risk'!$I$13"},"=MAX(0,E13*G13)",{"$f":"IF(_xlfn.FORMULATEXT(INDIRECT(Y19))=Z19,0,1)","v":0}]
[{"$f":"ADDRESS(19,7,1,1,$A$1)","v":"Summary!$G$19"},"=SUM(F14:F17)",0,{"$f":"ADDRESS(16,6,1,1,$D$1)","v":"'Fixed Income Investments'!$F$16"},"=IF(D16<0,0,D16*E16)",{"$f":"IF(_xlfn.FORMULATEXT(INDIRECT(D20))=E20,0,1)","v":0},{"$f":"ADDRESS(20,6,1,1,$G$1)","v":"'Equity Investments'!$F$20"},"=IF(D20<0,0,D20*E20)",{"$f":"IF(_xlfn.FORMULATEXT(INDIRECT(G20))=H20,0,1)","v":0},{"$f":"ADDRESS(11,11,1,1,$J$1)","v":"'Interest Rate-Liquidity Risk'!$K$11"},"=C11*MAX(1,IF(E11=\"\",ABS('Schedule V'!$H$15),ABS(E11)))*G11*(1-J11)",0,{"$f":"ADDRESS(12,6,1,1,$M$1)","v":"'Concentration Risk'!$F$12"},"=MAX(0,(D12*E12))",{"$f":"IF(_xlfn.FORMULATEXT(INDIRECT(M20))=N20,0,1)","v":0},{"$f":"ADDRESS(19,6,1,1,$P$1)","v":"'Credit Risk'!$F$19"},"=D19*E19",{"$f":"IF(_xlfn.FORMULATEXT(INDIRECT(P20))=Q20,0,1)","v":0},{"$f":"ADDRESS(13,14,1,1,$S$1)","v":"'LT Insurance Risk'!$N$13"},"=IF(D11<5000000,0,IF(D11>10000000,L13*5000000,L13*(D11-5000000)))/1000",{"$f":"IF(_xlfn.FORMULATEXT(INDIRECT(S20))=T20,0,1)","v":0},{"$f":"ADDRESS(14,23,1,1,$V$1)","v":"'LT Variable Annuity Gte Risk'!$W$14"},"=IF(ISERROR(OR(E14*F14+H14*I14+K14*L14,N14*O14+Q14*R14+T14*U14)),0,MAX(E14*F14+H14*I14+K14*L14,N14*O14+Q14*R14+T14*U14))",{"$f":"IF(_xlfn.FORMULATEXT(INDIRECT(V20))=W20,0,1)","v":0},{"$f":"ADDRESS(14,5,1,1,$Y$1)","v":"'LT Other Insurance Risk'!$E$14"},"=+'Schedule VII (EBS)'!F29",{"$f":"IF(_xlfn.FORMULATEXT(INDIRECT(Y20))=Z20,0,1)","v":0}]
[{"$f":"ADDRESS(19,15,1,1,$A$1)","v":"Summary!$O$19"},"=IF(N15>=N16,\"YES\",\"NO\")",0,{"$f":"ADDRESS(17,4,1,1,$D$1)","v":"'Fixed Income Investments'!$D$17"},"=+'Schedule II (EBS)'!D17+'Schedule IIA (EBS)'!D17",{"$f":"IF(_xlfn.FORMULATEXT(INDIRECT(D21))=E21,0,1)","v":0},{"$f":"ADDRESS(21,4,1,1,$G$1)","v":"'Equity Investments'!$D$21"},"=+'Schedule II (EBS)'!H34+'Schedule IIA (EBS)'!H34",{"$f":"IF(_xlfn.FORMULATEXT(INDIRECT(G21))=H21,0,1)","v":0},{"$f":"ADDRESS(11,12,1,1,$J$1)","v":"'Interest Rate-Liquidity Risk'!$L$11"},"=I11*K11",0,{"$f":"ADDRESS(13,2,1,1,$M$1)","v":"'Concentration Risk'!$B$13"},"BSCR Rating 3",{"$f":"IF(INDIRECT(M21)=N21,0,1)","v":0},{"$f":"ADDRESS(20,4,1,1,$P$1)","v":"'Credit Risk'!$D$20"},"='Form 4EBS'!F47",{"$f":"IF(_xlfn.FORMULATEXT(INDIRECT(P21))=Q21,0,1)","v":0},{"$f":"ADDRESS(13,15,1,1,$S$1)","v":"'LT Insurance Risk'!$O$13"},"=IF(E11<5000000,0,IF(E11>10000000,M13*5000000,M13*(E11-5000000)))/1000",{"$f":"IF(_xlfn.FORMULATEXT(INDIRECT(S21))=T21,0,1)","v":0},{"$f":"ADDRESS(14,25,1,1,$V$1)","v":"'LT Variable Annuity Gte Risk'!$Y$14"},"='Schedule VIII (EBS)'!F13",{"$f":"IF(_xlfn.FORMULATEXT(INDIRECT(V21))=W21,0,1)","v":0},{"$f":"ADDRESS(14,7,1,1,$Y$1)","v":"'LT Other Insurance Risk'!$G$14"},5.0000000000000001E-3,{"$f":"IF(INDIRECT(Y21)=Z21,0,1)","v":0}]
[{"$f":"ADDRESS(21,7,1,1,$A$1)","v":"Summary!$G$21"},"=IF('Insurer Information'!$F$9=\"Class C\",500,IF('Insurer Information'!$F$9=\"Class D\",4000,IF('Insurer Information'!$F$9=\"Class E\",8000,\"Error\")))",0,{"$f":"ADDRESS(17,5,1,1,$D$1)","v":"'Fixed Income Investments'!$E$17"},0.08,{"$f":"IF(INDIRECT(D22)=E22,0,1)","v":0},{"$f":"ADDRESS(21,5,1,1,$G$1)","v":"'Equity Investments'!$E$21"},1.2E-2,{"$f":"IF(INDIRECT(G22)=H22,0,1)","v":0},{"$f":"ADDRESS(12,3,1,1,$J$1)","v":"'Interest Rate-Liquidity Risk'!$C$12"},0.02,{"$f":"IF(INDIRECT(J22)=K22,0,1)","v":0},{"$f":"ADDRESS(13,4,1,1,$M$1)","v":"'Concentration Risk'!$D$13"},"=SUMIFS('Schedule XXI'!$M$8:$M$57,'Schedule XXI'!$J$8:$J$57,$D$9,'Schedule XXI'!$L$8:$L$57,$B13)",{"$f":"IF(_xlfn.FORMULATEXT(INDIRECT(M22))=N22,0,1)","v":0},{"$f":"ADDRESS(20,5,1,1,$P$1)","v":"'Credit Risk'!$E$20"},0,{"$f":"IF(INDIRECT(P22)=Q22,0,1)","v":0},{"$f":"ADDRESS(14,12,1,1,$S$1)","v":"'LT Insurance Risk'!$L$14"},"=M14/2",{"$f":"IF(_xlfn.FORMULATEXT(INDIRECT(S22))=T22,0,1)","v":0},{"$f":"ADDRESS(14,27,1,1,$V$1)","v":"'LT Variable Annuity Gte Risk'!$AA$14"},"=MAX(0,W14-Y14)",{"$f":"IF(_xlfn.FORMULATEXT(INDIRECT(V22))=W22,0,1)","v":0},{"$f":"ADDRESS(14,9,1,1,$Y$1)","v":"'LT Other Insurance Risk'!$I$14"},"=MAX(0,E14*G14)",{"$f":"IF(_xlfn.FORMULATEXT(INDIRECT(Y22))=Z22,0,1)","v":0}]
[{"$f":"ADDRESS(23,6,1,1,$A$1)","v":"Summary!$F$23"},"=IF('Insurer Information'!$F$9=\"Class C\",1.5%,IF('Insurer Information'!$F$9=\"Class D\",1.5%,IF('Insurer Information'!$F$9=\"Class E\",1.5%,\"Error\")))",0,{"$f":"ADDRESS(17,6,1,1,$D$1)","v":"'Fixed Income Investments'!$F$17"},"=IF(D17<0,0,D17*E17)",{"$f":"IF(_xlfn.FORMULATEXT(INDIRECT(D23))=E23,0,1)","v":0},{"$f":"ADDRESS(21,6,1,1,$G$1)","v":"'Equity Investments'!$F$21"},"=IF(D21<0,0,D21*E21)",{"$f":"IF(_xlfn.FORMULATEXT(INDIRECT(G23))=H23,0,1)","v":0},{"$f":"ADDRESS(12,5,1,1,$J$1)","v":"'Interest Rate-Liquidity Risk'!$E$12"},2,{"$f":"IF(INDIRECT(J23)=K23,0,1)","v":0},{"$f":"ADDRESS(13,5,1,1,$M$1)","v":"'Concentration Risk'!$E$13"},"=+'Fixed Income Investments'!E86",{"$f":"IF(_xlfn.FORMULATEXT(INDIRECT(M23))=N23,0,1)","v":0},{"$f":"ADDRESS(20,6,1,1,$P$1)","v":"'Credit Risk'!$F$20"},"=D20*E20",{"$f":"IF(_xlfn.FORMULATEXT(INDIRECT(P23))=Q23,0,1)","v":0},{"$f":"ADDRESS(14,13,1,1,$S$1)","v":"'LT Insurance Risk'!$M$14"},1.29,{"$f":"IF(INDIRECT(S23)=T23,0,1)","v":0},{"$f":"ADDRESS(15,5,1,1,$V$1)","v":"'LT Variable Annuity Gte Risk'!$E$15"},"=+'Schedule VIII (EBS)'!H31",{"$f":"IF(_xlfn.FORMULATEXT(INDIRECT(V23))=W23,0,1)","v":0},{"$f":"ADDRESS(15,5,1,1,$Y$1)","v":"'LT Other Insurance Risk'!$E$15"},"=+'Schedule VII (EBS)'!F30",{"$f":"IF(_xlfn.FORMULATEXT(INDIRECT(Y23))=Z23,0,1)","v":0}]
[{"$f":"ADDRESS(23,7,1,1,$A$1)","v":"Summary!$G$23"},"=IF('Insurer Information'!$F$9=\"Class C\",G19*F23,(IF('Insurer Information'!$F$9=\"Class D\",IF(G19>250000,5000+(G19-250000)*1.5%,G19*2%),(IF('Insurer Information'!$F$9=\"Class E\",IF(G19>500000,10000+(G19-500000)*1.5%,G19*2%),\"Error\")))))",0,{"$f":"ADDRESS(18,4,1,1,$D$1)","v":"'Fixed Income Investments'!$D$18"},"=+'Schedule II (EBS)'!D18+'Schedule IIA (EBS)'!D18",{"$f":"IF(_xlfn.FORMULATEXT(INDIRECT(D24))=E24,0,1)","v":0},{"$f":"ADDRESS(22,4,1,1,$G$1)","v":"'Equity Investments'!$D$22"},"=+'Schedule II (EBS)'!H35+'Schedule IIA (EBS)'!H35",{"$f":"IF(_xlfn.FORMULATEXT(INDIRECT(G24))=H24,0,1)","v":0},{"$f":"ADDRESS(12,9,1,1,$J$1)","v":"'Interest Rate-Liquidity Risk'!$I$12"},"=I10",{"$f":"IF(_xlfn.FORMULATEXT(INDIRECT(J24))=K24,0,1)","v":0},{"$f":"ADDRESS(13,6,1,1,$M$1)","v":"'Concentration Risk'!$F$13"},"=MAX(0,(D13*E13))",{"$f":"IF(_xlfn.FORMULATEXT(INDIRECT(M24))=N24,0,1)","v":0},{"$f":"ADDRESS(22,4,1,1,$P$1)","v":"'Credit Risk'!$D$22"},"=SUM(D18:D20)",{"$f":"IF(_xlfn.FORMULATEXT(INDIRECT(P24))=Q24,0,1)","v":0},{"$f":"ADDRESS(14,14,1,1,$S$1)","v":"'LT Insurance Risk'!$N$14"},"=IF(D11<10000000,0,IF(D11>50000000,L14*40000000,L14*(D11-10000000)))/1000",{"$f":"IF(_xlfn.FORMULATEXT(INDIRECT(S24))=T24,0,1)","v":0},{"$f":"ADDRESS(15,6,1,1,$V$1)","v":"'LT Variable Annuity Gte Risk'!$F$15"},2.5000000000000001E-3,{"$f":"IF(INDIRECT(V24)=W24,0,1)","v":0},{"$f":"ADDRESS(15,7,1,1,$Y$1)","v":"'LT Other Insurance Risk'!$G$15"},5.0000000000000001E-3,{"$f":"IF(INDIRECT(Y24)=Z24,0,1)","v":0}]
[{"$f":"ADDRESS(25,6,1,1,$A$1)","v":"Summary!$F$25"},"=G98",0,{"$f":"ADDRESS(18,5,1,1,$D$1)","v":"'Fixed Income Investments'!$E$18"},0.15,{"$f":"IF(INDIRECT(D25)=E25,0,1)","v":0},{"$f":"ADDRESS(22,5,1,1,$G$1)","v":"'Equity Investments'!$E$22"},0.02,{"$f":"IF(INDIRECT(G25)=H25,0,1)","v":0},{"$f":"ADDRESS(12,11,1,1,$J$1)","v":"'Interest Rate-Liquidity Risk'!$K$12"},"=C12*E12*(1-G10)",0,{"$f":"ADDRESS(14,2,1,1,$M$1)","v":"'Concentration Risk'!$B$14"},"BSCR Rating 4",{"$f":"IF(INDIRECT(M25)=N25,0,1)","v":0},{"$f":"ADDRESS(22,6,1,1,$P$1)","v":"'Credit Risk'!$F$22"},"=IF(SUM(F18:F20)>=0,SUM(F18:F20),0)",{"$f":"IF(_xlfn.FORMULATEXT(INDIRECT(P25))=Q25,0,1)","v":0},{"$f":"ADDRESS(14,15,1,1,$S$1)","v":"'LT Insurance Risk'!$O$14"},"=IF(E11<10000000,0,IF(E11>50000000,M14*40000000,M14*(E11-10000000)))/1000",{"$f":"IF(_xlfn.FORMULATEXT(INDIRECT(S25))=T25,0,1)","v":0},{"$f":"ADDRESS(15,8,1,1,$V$1)","v":"'LT Variable Annuity Gte Risk'!$H$15"},"='Schedule VIII (EBS)'!J31",{"$f":"IF(_xlfn.FORMULATEXT(INDIRECT(V25))=W25,0,1)","v":0},{"$f":"ADDRESS(15,9,1,1,$Y$1)","v":"'LT Other Insurance Risk'!$I$15"},"=MAX(0,E15*G15)",{"$f":"IF(_xlfn.FORMULATEXT(INDIRECT(Y25))=Z25,0,1)","v":0}]
[{"$f":"ADDRESS(25,7,1,1,$A$1)","v":"Summary!$G$25"},"=F25*25%",0,{"$f":"ADDRESS(18,6,1,1,$D$1)","v":"'Fixed Income Investments'!$F$18"},"=IF(D18<0,0,D18*E18)",{"$f":"IF(_xlfn.FORMULATEXT(INDIRECT(D26))=E26,0,1)","v":0},{"$f":"ADDRESS(22,6,1,1,$G$1)","v":"'Equity Investments'!$F$22"},"=IF(D22<0,0,D22*E22)",{"$f":"IF(_xlfn.FORMULATEXT(INDIRECT(G26))=H26,0,1)","v":0},{"$f":"ADDRESS(12,12,1,1,$J$1)","v":"'Interest Rate-Liquidity Risk'!$L$12"},"=I12*K12",0,{"$f":"ADDRESS(14,4,1,1,$M$1)","v":"'Concentration Risk'!$D$14"},"=SUMIFS('Schedule XXI'!$M$8:$M$57,'Schedule XXI'!$J$8:$J$57,$D$9,'Schedule XXI'!$L$8:$L$57,$B14)",{"$f":"IF(_xlfn.FORMULATEXT(INDIRECT(M26))=N26,0,1)","v":0},{"$f":"ADDRESS(29,4,1,1,$P$1)","v":"'Credit Risk'!$D$29"},"=+'Schedule XVIII (EBS)'!O87",{"$f":"IF(_xlfn.FORMULATEXT(INDIRECT(P26))=Q26,0,1)","v":0},{"$f":"ADDRESS(15,12,1,1,$S$1)","v":"'LT Insurance Risk'!$L$15"},"=M15/2",{"$f":"IF(_xlfn.FORMULATEXT(INDIRECT(S26))=T26,0,1)","v":0},{"$f":"ADDRESS(15,9,1,1,$V$1)","v":"'LT Variable Annuity Gte Risk'!$I$15"},5.0000000000000001E-3,{"$f":"IF(INDIRECT(V26)=W26,0,1)","v":0},{"$f":"ADDRESS(16,5,1,1,$Y$1)","v":"'LT Other Insurance Risk'!$E$16"},"='Schedule VII (EBS)'!F36",{"$f":"IF(_xlfn.FORMULATEXT(INDIRECT(Y26))=Z26,0,1)","v":0}]
[{"$f":"ADDRESS(25,11,1,1,$A$1)","v":"Summary!$K$25"},"=\"Unconsolidated Statutory Capital for \"&YEAR('Form 1SFS'!$F9)",0,{"$f":"ADDRESS(19,4,1,1,$D$1)","v":"'Fixed Income Investments'!$D$19"},"=+'Schedule II (EBS)'!D19+'Schedule IIA (EBS)'!D19",{"$f":"IF(_xlfn.FORMULATEXT(INDIRECT(D27))=E27,0,1)","v":0},{"$f":"ADDRESS(23,4,1,1,$G$1)","v":"'Equity Investments'!$D$23"},"=+'Schedule II (EBS)'!H36+'Schedule IIA (EBS)'!H36",{"$f":"IF(_xlfn.FORMULATEXT(INDIRECT(G27))=H27,0,1)","v":0},{"$f":"ADDRESS(14,12,1,1,$J$1)","v":"'Interest Rate-Liquidity Risk'!$L$14"},"=L10+L12",0,{"$f":"ADDRESS(14,5,1,1,$M$1)","v":"'Concentration Risk'!$E$14"},"=+'Fixed Income Investments'!E87",{"$f":"IF(_xlfn.FORMULATEXT(INDIRECT(M27))=N27,0,1)","v":0},{"$f":"ADDRESS(29,5,1,1,$P$1)","v":"'Credit Risk'!$E$29"},0,{"$f":"IF(INDIRECT(P27)=Q27,0,1)","v":0},{"$f":"ADDRESS(15,13,1,1,$S$1)","v":"'LT Insurance Risk'!$M$15"},1.1299999999999999,{"$f":"IF(INDIRECT(S27)=T27,0,1)","v":0},{"$f":"ADDRESS(15,11,1,1,$V$1)","v":"'LT Variable Annuity Gte Risk'!$K$15"},"='Schedule VIII (EBS)'!L31",{"$f":"IF(_xlfn.FORMULATEXT(INDIRECT(V27))=W27,0,1)","v":0},{"$f":"ADDRESS(16,7,1,1,$Y$1)","v":"'LT Other Insurance Risk'!$G$16"},0.02,{"$f":"IF(INDIRECT(Y27)=Z27,0,1)","v":0}]
[{"$f":"ADDRESS(25,15,1,1,$A$1)","v":"Summary!$O$25"},"=IF('Insurer Information'!$F$2=\"Unconsolidated BSCR Model\",'Form 8SFS'!$O$36,'Form 8SFS'!G36+'Form 8SFS'!K36)",0,{"$f":"ADDRESS(19,5,1,1,$D$1)","v":"'Fixed Income Investments'!$E$19"},0.26300000000000001,{"$f":"IF(INDIRECT(D28)=E28,0,1)","v":0},{"$f":"ADDRESS(23,5,1,1,$G$1)","v":"'Equity Investments'!$E$23"},0.04,{"$f":"IF(INDIRECT(G28)=H28,0,1)","v":0},{"$f":"ADDRESS(15,12,1,1,$J$1)","v":"'Interest Rate-Liquidity Risk'!$L$15"},"=L11+L12",0,{"$f":"ADDRESS(14,6,1,1,$M$1)","v":"'Concentration Risk'!$F$14"},"=MAX(0,(D14*E14))",{"$f":"IF(_xlfn.FORMULATEXT(INDIRECT(M28))=N28,0,1)","v":0},{"$f":"ADDRESS(29,6,1,1,$P$1)","v":"'Credit Risk'!$F$29"},"=MAX(0,(D29*E29))",{"$f":"IF(_xlfn.FORMULATEXT(INDIRECT(P28))=Q28,0,1)","v":0},{"$f":"ADDRESS(15,14,1,1,$S$1)","v":"'LT Insurance Risk'!$N$15"},"=IF(D11<50000000,0,L15*(D11-50000000))/1000",{"$f":"IF(_xlfn.FORMULATEXT(INDIRECT(S28))=T28,0,1)","v":0},{"$f":"ADDRESS(15,12,1,1,$V$1)","v":"'LT Variable Annuity Gte Risk'!$L$15"},7.4999999999999997E-3,{"$f":"IF(INDIRECT(V28)=W28,0,1)","v":0},{"$f":"ADDRESS(16,9,1,1,$Y$1)","v":"'LT Other Insurance Risk'!$I$16"},"=MAX(0,E16*G16)",{"$f":"IF(_xlfn.FORMULATEXT(INDIRECT(Y28))=Z28,0,1)","v":0}]
[{"$f":"ADDRESS(26,11,1,1,$A$1)","v":"Summary!$K$26"},"=\"Unconsolidated Statutory Capital for \"&YEAR('Form 1SFS'!$G9)",0,{"$f":"ADDRESS(19,6,1,1,$D$1)","v":"'Fixed Income Investments'!$F$19"},"=IF(D19<0,0,D19*E19)",{"$f":"IF(_xlfn.FORMULATEXT(INDIRECT(D29))=E29,0,1)","v":0},{"$f":"ADDRESS(23,6,1,1,$G$1)","v":"'Equity Investments'!$F$23"},"=IF(D23<0,0,D23*E23)",{"$f":"IF(_xlfn.FORMULATEXT(INDIRECT(G29))=H29,0,1)","v":0},{"$f":"ADDRESS(21,12,1,1,$J$1)","v":"'Interest Rate-Liquidity Risk'!$L$21"},"=IF($J$19=\"No\",0,IF(K21=\"Yes\",0.1,0))",0,{"$f":"ADDRESS(15,2,1,1,$M$1)","v":"'Concentration Risk'!$B$15"},"BSCR Rating 5",{"$f":"IF(INDIRECT(M29)=N29,0,1)","v":0},{"$f":"ADDRESS(30,4,1,1,$P$1)","v":"'Credit Risk'!$D$30"},"=+'Schedule XVIII (EBS)'!O88",{"$f":"IF(_xlfn.FORMULATEXT(INDIRECT(P29))=Q29,0,1)","v":0},{"$f":"ADDRESS(15,15,1,1,$S$1)","v":"'LT Insurance Risk'!$O$15"},"=IF(E11<50000000,0,M15*(E11-50000000))/1000",0,{"$f":"ADDRESS(15,23,1,1,$V$1)","v":"'LT Variable Annuity Gte Risk'!$W$15"},"=IF(ISERROR(OR(E15*F15+H15*I15+K15*L15,N15*O15+Q15*R15+T15*U15)),0,MAX(E15*F15+H15*I15+K15*L15,N15*O15+Q15*R15+T15*U15))",{"$f":"IF(_xlfn.FORMULATEXT(INDIRECT(V29))=W29,0,1)","v":0},{"$f":"ADDRESS(17,5,1,1,$Y$1)","v":"'LT Other Insurance Risk'!$E$17"},"='Schedule VII (EBS)'!F37",{"$f":"IF(_xlfn.FORMULATEXT(INDIRECT(Y29))=Z29,0,1)","v":0}]
[{"$f":"ADDRESS(26,15,1,1,$A$1)","v":"Summary!$O$26"},"=IF('Insurer Information'!$F$2=\"Unconsolidated BSCR Model\",'Form 8SFS'!$Q$36,'Form 8SFS'!I36+'Form 8SFS'!M36)",0,{"$f":"ADDRESS(20,4,1,1,$D$1)","v":"'Fixed Income Investments'!$D$20"},"=+'Schedule II (EBS)'!D20+'Schedule IIA (EBS)'!D20",{"$f":"IF(_xlfn.FORMULATEXT(INDIRECT(D30))=E30,0,1)","v":0},{"$f":"ADDRESS(24,4,1,1,$G$1)","v":"'Equity Investments'!$D$24"},"=+'Schedule II (EBS)'!H37+'Schedule IIA (EBS)'!H37",{"$f":"IF(_xlfn.FORMULATEXT(INDIRECT(G30))=H30,0,1)","v":0},{"$f":"ADDRESS(23,12,1,1,$J$1)","v":"'Interest Rate-Liquidity Risk'!$L$23"},"=IF($J$19=\"No\",0,IF(K23=\"Yes\",0.1,0))",0,{"$f":"ADDRESS(15,4,1,1,$M$1)","v":"'Concentration Risk'!$D$15"},"=SUMIFS('Schedule XXI'!$M$8:$M$57,'Schedule XXI'!$J$8:$J$57,$D$9,'Schedule XXI'!$L$8:$L$57,$B15)",{"$f":"IF(_xlfn.FORMULATEXT(INDIRECT(M30))=N30,0,1)","v":0},{"$f":"ADDRESS(30,5,1,1,$P$1)","v":"'Credit Risk'!$E$30"},7.0000000000000001E-3,{"$f":"IF(INDIRECT(P30)=Q30,0,1)","v":0},{"$f":"ADDRESS(16,14,1,1,$S$1)","v":"'LT Insurance Risk'!$N$16"},"=SUM(N11:N15)",0,{"$f":"ADDRESS(15,25,1,1,$V$1)","v":"'LT Variable Annuity Gte Risk'!$Y$15"},"='Schedule VIII (EBS)'!F14",{"$f":"IF(_xlfn.FORMULATEXT(INDIRECT(V30))=W30,0,1)","v":0},{"$f":"ADDRESS(17,7,1,1,$Y$1)","v":"'LT Other Insurance Risk'!$G$17"},0.02,{"$f":"IF(INDIRECT(Y30)=Z30,0,1)","v":0}]
[{"$f":"ADDRESS(28,11,1,1,$A$1)","v":"Summary!$K$28"},"=\"Statutory Capital Change from \"&YEAR('Form 1SFS'!$G9)&\" to \"&YEAR('Form 1SFS'!$F9)",0,{"$f":"ADDRESS(20,5,1,1,$D$1)","v":"'Fixed Income Investments'!$E$20"},0.35,{"$f":"IF(INDIRECT(D31)=E31,0,1)","v":0},{"$f":"ADDRESS(24,5,1,1,$G$1)","v":"'Equity Investments'!$E$24"},0.11,{"$f":"IF(INDIRECT(G31)=H31,0,1)","v":0},{"$f":"ADDRESS(25,12,1,1,$J$1)","v":"'Interest Rate-Liquidity Risk'!$L$25"},"=IF($J$19=\"No\",0,IF(K25=\"Yes\",0.1,0))",0,{"$f":"ADDRESS(15,5,1,1,$M$1)","v":"'Concentration Risk'!$E$15"},"=+'Fixed Income Investments'!E88",{"$f":"IF(_xlfn.FORMULATEXT(INDIRECT(M31))=N31,0,1)","v":0},{"$f":"ADDRESS(30,6,1,1,$P$1)","v":"'Credit Risk'!$F$30"},"=MAX(0,(D30*E30))",{"$f":"IF(_xlfn.FORMULATEXT(INDIRECT(P31))=Q31,0,1)","v":0},{"$f":"ADDRESS(16,15,1,1,$S$1)","v":"'LT Insurance Risk'!$O$16"},"=SUM(O11:O15)",0,{"$f":"ADDRESS(15,27,1,1,$V$1)","v":"'LT Variable Annuity Gte Risk'!$AA$15"},"=MAX(0,W15-Y15)",{"$f":"IF(_xlfn.FORMULATEXT(INDIRECT(V31))=W31,0,1)","v":0},{"$f":"ADDRESS(17,9,1,1,$Y$1)","v":"'LT Other Insurance Risk'!$I$17"},"=MAX(0,E17*G17)",{"$f":"IF(_xlfn.FORMULATEXT(INDIRECT(Y31))=Z31,0,1)","v":0}]
[{"$f":"ADDRESS(28,14,1,1,$A$1)","v":"Summary!$N$28"},"=O25-O26",0,{"$f":"ADDRESS(20,6,1,1,$D$1)","v":"'Fixed Income Investments'!$F$20"},"=IF(D20<0,0,D20*E20)",{"$f":"IF(_xlfn.FORMULATEXT(INDIRECT(D32))=E32,0,1)","v":0},{"$f":"ADDRESS(24,6,1,1,$G$1)","v":"'Equity Investments'!$F$24"},"=IF(D24<0,0,D24*E24)",{"$f":"IF(_xlfn.FORMULATEXT(INDIRECT(G32))=H32,0,1)","v":0},{"$f":"ADDRESS(27,12,1,1,$J$1)","v":"'Interest Rate-Liquidity Risk'!$L$27"},"=IF($J$19=\"No\",0,IF(K27=\"Yes\",0.1,0))",0,{"$f":"ADDRESS(15,6,1,1,$M$1)","v":"'Concentration Risk'!$F$15"},"=MAX(0,(D15*E15))",{"$f":"IF(_xlfn.FORMULATEXT(INDIRECT(M32))=N32,0,1)","v":0},{"$f":"ADDRESS(31,4,1,1,$P$1)","v":"'Credit Risk'!$D$31"},"=+'Schedule XVIII (EBS)'!O89",{"$f":"IF(_xlfn.FORMULATEXT(INDIRECT(P32))=Q32,0,1)","v":0},{"$f":"ADDRESS(18,4,1,1,$S$1)","v":"'LT Insurance Risk'!$D$18"},"='Schedule VII (EBS)'!H11",0,{"$f":"ADDRESS(18,5,1,1,$V$1)","v":"'LT Variable Annuity Gte Risk'!$E$18"},"='Schedule VIII (EBS)'!H14",{"$f":"IF(_xlfn.FORMULATEXT(INDIRECT(V32))=W32,0,1)","v":0},{"$f":"ADDRESS(18,5,1,1,$Y$1)","v":"'LT Other Insurance Risk'!$E$18"},"='Schedule VII (EBS)'!F38",{"$f":"IF(_xlfn.FORMULATEXT(INDIRECT(Y32))=Z32,0,1)","v":0}]
[{"$f":"ADDRESS(29,2,1,1,$A$1)","v":"Summary!$B$29"},"=\"MSM for \"&YEAR('Form 1SFS'!$F$9)",0,{"$f":"ADDRESS(22,4,1,1,$D$1)","v":"'Fixed Income Investments'!$D$22"},"=SUM(D12:D20)",{"$f":"IF(_xlfn.FORMULATEXT(INDIRECT(D33))=E33,0,1)","v":0},{"$f":"ADDRESS(25,4,1,1,$G$1)","v":"'Equity Investments'!$D$25"},"=+'Schedule II (EBS)'!H38+'Schedule IIA (EBS)'!H38",{"$f":"IF(_xlfn.FORMULATEXT(INDIRECT(G33))=H33,0,1)","v":0},{"$f":"ADDRESS(29,12,1,1,$J$1)","v":"'Interest Rate-Liquidity Risk'!$L$29"},"=IF($J$19=\"No\",0,IF(K29=\"Yes\",0.1,0))",0,{"$f":"ADDRESS(16,2,1,1,$M$1)","v":"'Concentration Risk'!$B$16"},"BSCR Rating 6",{"$f":"IF(INDIRECT(M33)=N33,0,1)","v":0},{"$f":"ADDRESS(31,5,1,1,$P$1)","v":"'Credit Risk'!$E$31"},1.4999999999999999E-2,{"$f":"IF(INDIRECT(P33)=Q33,0,1)","v":0},{"$f":"ADDRESS(18,5,1,1,$S$1)","v":"'LT Insurance Risk'!$E$18"},"='Schedule VII (EBS)'!I11",0,{"$f":"ADDRESS(18,6,1,1,$V$1)","v":"'LT Variable Annuity Gte Risk'!$F$18"},7.4999999999999997E-3,{"$f":"IF(INDIRECT(V33)=W33,0,1)","v":0},{"$f":"ADDRESS(18,7,1,1,$Y$1)","v":"'LT Other Insurance Risk'!$G$18"},5.0000000000000001E-3,{"$f":"IF(INDIRECT(Y33)=Z33,0,1)","v":0}]
[{"$f":"ADDRESS(29,7,1,1,$A$1)","v":"Summary!$G$29"},"=IF(G27=\"\",MAX(G21,G23,G25),G27)",0,{"$f":"ADDRESS(22,6,1,1,$D$1)","v":"'Fixed Income Investments'!$F$22"},"=MAX(0,SUM(F12:F20))",{"$f":"IF(_xlfn.FORMULATEXT(INDIRECT(D34))=E34,0,1)","v":0},{"$f":"ADDRESS(25,5,1,1,$G$1)","v":"'Equity Investments'!$E$25"},0.25,{"$f":"IF(INDIRECT(G34)=H34,0,1)","v":0},{"$f":"ADDRESS(31,12,1,1,$J$1)","v":"'Interest Rate-Liquidity Risk'!$L$31"},"=SUM(L21:L29)",0,{"$f":"ADDRESS(16,4,1,1,$M$1)","v":"'Concentration Risk'!$D$16"},"=SUMIFS('Schedule XXI'!$M$8:$M$57,'Schedule XXI'!$J$8:$J$57,$D$9,'Schedule XXI'!$L$8:$L$57,$B16)",{"$f":"IF(_xlfn.FORMULATEXT(INDIRECT(M34))=N34,0,1)","v":0},{"$f":"ADDRESS(31,6,1,1,$P$1)","v":"'Credit Risk'!$F$31"},"=MAX(0,(D31*E31))",{"$f":"IF(_xlfn.FORMULATEXT(INDIRECT(P34))=Q34,0,1)","v":0},{"$f":"ADDRESS(18,12,1,1,$S$1)","v":"'LT Insurance Risk'!$L$18"},"=M18/2",0,{"$f":"ADDRESS(18,8,1,1,$V$1)","v":"'LT Variable Annuity Gte Risk'!$H$18"},"='Schedule VIII (EBS)'!J14",{"$f":"IF(_xlfn.FORMULATEXT(INDIRECT(V34))=W34,0,1)","v":0},{"$f":"ADDRESS(18,9,1,1,$Y$1)","v":"'LT Other Insurance Risk'!$I$18"},"=MAX(0,E18*G18)",{"$f":"IF(_xlfn.FORMULATEXT(INDIRECT(Y34))=Z34,0,1)","v":0}]
[{"$f":"ADDRESS(29,14,1,1,$A$1)","v":"Summary!$N$29"},"=O26*-15%",0,{"$f":"ADDRESS(27,4,1,1,$D$1)","v":"'Fixed Income Investments'!$D$27"},"=+'Schedule II (EBS)'!H13+'Schedule IIA (EBS)'!H13",{"$f":"IF(_xlfn.FORMULATEXT(INDIRECT(D35))=E35,0,1)","v":0},{"$f":"ADDRESS(25,6,1,1,$G$1)","v":"'Equity Investments'!$F$25"},"=IF(D25<0,0,D25*E25)",{"$f":"IF(_xlfn.FORMULATEXT(INDIRECT(G35))=H35,0,1)","v":0},{"$f":"ADDRESS(34,5,1,1,$J$1)","v":"'Interest Rate-Liquidity Risk'!$E$34"},"=+'Schedule II (EBS)'!T22",0,{"$f":"ADDRESS(16,5,1,1,$M$1)","v":"'Concentration Risk'!$E$16"},"=+'Fixed Income Investments'!E89",{"$f":"IF(_xlfn.FORMULATEXT(INDIRECT(M35))=N35,0,1)","v":0},{"$f":"ADDRESS(32,4,1,1,$P$1)","v":"'Credit Risk'!$D$32"},"=+'Schedule XVIII (EBS)'!O90",{"$f":"IF(_xlfn.FORMULATEXT(INDIRECT(P35))=Q35,0,1)","v":0},{"$f":"ADDRESS(18,13,1,1,$S$1)","v":"'LT Insurance Risk'!$M$18"},"=M11*3",0,{"$f":"ADDRESS(18,9,1,1,$V$1)","v":"'LT Variable Annuity Gte Risk'!$I$18"},0.01,{"$f":"IF(INDIRECT(V35)=W35,0,1)","v":0},{"$f":"ADDRESS(19,5,1,1,$Y$1)","v":"'LT Other Insurance Risk'!$E$19"},"='Schedule VII (EBS)'!F39",{"$f":"IF(_xlfn.FORMULATEXT(INDIRECT(Y35))=Z35,0,1)","v":0}]
[{"$f":"ADDRESS(31,7,1,1,$A$1)","v":"Summary!$G$31"},"=IF(G11>=G29,\"YES\",\"NO\")",{"$f":"IF(_xlfn.FORMULATEXT(INDIRECT(A36))=B36,0,1)","v":0},{"$f":"ADDRESS(27,5,1,1,$D$1)","v":"'Fixed Income Investments'!$E$27"},6.0000000000000001E-3,{"$f":"IF(INDIRECT(D36)=E36,0,1)","v":0},{"$f":"ADDRESS(26,4,1,1,$G$1)","v":"'Equity Investments'!$D$26"},"=+'Schedule II (EBS)'!H39+'Schedule IIA (EBS)'!H39",{"$f":"IF(_xlfn.FORMULATEXT(INDIRECT(G36))=H36,0,1)","v":0},{"$f":"ADDRESS(35,5,1,1,$J$1)","v":"'Interest Rate-Liquidity Risk'!$E$35"},"=+'Schedule IIA (EBS)'!T22",0,{"$f":"ADDRESS(16,6,1,1,$M$1)","v":"'Concentration Risk'!$F$16"},"=MAX(0,(D16*E16))",{"$f":"IF(_xlfn.FORMULATEXT(INDIRECT(M36))=N36,0,1)","v":0},{"$f":"ADDRESS(32,5,1,1,$P$1)","v":"'Credit Risk'!$E$32"},3.5000000000000003E-2,{"$f":"IF(INDIRECT(P36)=Q36,0,1)","v":0},{"$f":"ADDRESS(18,14,1,1,$S$1)","v":"'LT Insurance Risk'!$N$18"},"=IF(D18>1000000,L18*1000000,L18*D18)/1000",0,{"$f":"ADDRESS(18,11,1,1,$V$1)","v":"'LT Variable Annuity Gte Risk'!$K$18"},"='Schedule VIII (EBS)'!L14",{"$f":"IF(_xlfn.FORMULATEXT(INDIRECT(V36))=W36,0,1)","v":0},{"$f":"ADDRESS(19,7,1,1,$Y$1)","v":"'LT Other Insurance Risk'!$G$19"},5.0000000000000001E-3,{"$f":"IF(INDIRECT(Y36)=Z36,0,1)","v":0}]
[{"$f":"ADDRESS(31,15,1,1,$A$1)","v":"Summary!$O$31"},"=IF(N29<N28,\"YES\",\"NO\")",0,{"$f":"ADDRESS(27,6,1,1,$D$1)","v":"'Fixed Income Investments'!$F$27"},"=IF(D27<0,0,D27*E27)",{"$f":"IF(_xlfn.FORMULATEXT(INDIRECT(D37))=E37,0,1)","v":0},{"$f":"ADDRESS(26,5,1,1,$G$1)","v":"'Equity Investments'!$E$26"},0.35,{"$f":"IF(INDIRECT(G37)=H37,0,1)","v":0},{"$f":"ADDRESS(36,5,1,1,$J$1)","v":"'Interest Rate-Liquidity Risk'!$E$36"},"=+'Schedule II (EBS)'!H44",0,{"$f":"ADDRESS(17,2,1,1,$M$1)","v":"'Concentration Risk'!$B$17"},"BSCR Rating 7",{"$f":"IF(INDIRECT(M37)=N37,0,1)","v":0},{"$f":"ADDRESS(32,6,1,1,$P$1)","v":"'Credit Risk'!$F$32"},"=MAX(0,(D32*E32))",{"$f":"IF(_xlfn.FORMULATEXT(INDIRECT(P37))=Q37,0,1)","v":0},{"$f":"ADDRESS(18,15,1,1,$S$1)","v":"'LT Insurance Risk'!$O$18"},"=IF(E18>1000000,M18*1000000,M18*E18)/1000",0,{"$f":"ADDRESS(18,12,1,1,$V$1)","v":"'LT Variable Annuity Gte Risk'!$L$18"},1.2500000000000001E-2,{"$f":"IF(INDIRECT(V37)=W37,0,1)","v":0},{"$f":"ADDRESS(19,9,1,1,$Y$1)","v":"'LT Other Insurance Risk'!$I$19"},"=MAX(0,E19*G19)",{"$f":"IF(_xlfn.FORMULATEXT(INDIRECT(Y37))=Z37,0,1)","v":0}]
[{"$f":"ADDRESS(39,12,1,1,$A$1)","v":"Summary!$L$39"},"{=SQRT(MMULT(TRANSPOSE(K40:K44),MMULT('Correlation Matrix'!B7:F11,K40:K44)))}",0,{"$f":"ADDRESS(28,4,1,1,$D$1)","v":"'Fixed Income Investments'!$D$28"},"=+'Schedule II (EBS)'!H14+'Schedule IIA (EBS)'!H14",{"$f":"IF(_xlfn.FORMULATEXT(INDIRECT(D38))=E38,0,1)","v":0},{"$f":"ADDRESS(26,6,1,1,$G$1)","v":"'Equity Investments'!$F$26"},"=IF(D26<0,0,D26*E26)",{"$f":"IF(_xlfn.FORMULATEXT(INDIRECT(G38))=H38,0,1)","v":0},{"$f":"ADDRESS(37,5,1,1,$J$1)","v":"'Interest Rate-Liquidity Risk'!$E$37"},"=+'Schedule IIA (EBS)'!H44",0,{"$f":"ADDRESS(17,4,1,1,$M$1)","v":"'Concentration Risk'!$D$17"},"=SUMIFS('Schedule XXI'!$M$8:$M$57,'Schedule XXI'!$J$8:$J$57,$D$9,'Schedule XXI'!$L$8:$L$57,$B17)",{"$f":"IF(_xlfn.FORMULATEXT(INDIRECT(M38))=N38,0,1)","v":0},{"$f":"ADDRESS(33,4,1,1,$P$1)","v":"'Credit Risk'!$D$33"},"=+'Schedule XVIII (EBS)'!O91",{"$f":"IF(_xlfn.FORMULATEXT(INDIRECT(P38))=Q38,0,1)","v":0},{"$f":"ADDRESS(19,12,1,1,$S$1)","v":"'LT Insurance Risk'!$L$19"},"=M19/2",0,{"$f":"ADDRESS(18,14,1,1,$V$1)","v":"'LT Variable Annuity Gte Risk'!$N$18"},"='Schedule VIII (EBS)'!N14",{"$f":"IF(_xlfn.FORMULATEXT(INDIRECT(V38))=W38,0,1)","v":0},{"$f":"ADDRESS(20,5,1,1,$Y$1)","v":"'LT Other Insurance Risk'!$E$20"},"='Schedule VII (EBS)'!F40",{"$f":"IF(_xlfn.FORMULATEXT(INDIRECT(Y38))=Z38,0,1)","v":0}]
[{"$f":"ADDRESS(39,14,1,1,$A$1)","v":"Summary!$N$39"},"{=SQRT(MMULT(TRANSPOSE(M40:M44),MMULT('Correlation Matrix'!B7:F11,M40:M44)))}",0,{"$f":"ADDRESS(28,5,1,1,$D$1)","v":"'Fixed Income Investments'!$E$28"},1.2E-2,{"$f":"IF(INDIRECT(D39)=E39,0,1)","v":0},{"$f":"ADDRESS(27,4,1,1,$G$1)","v":"'Equity Investments'!$D$27"},"=+'Schedule II (EBS)'!H40+'Schedule IIA (EBS)'!H40",{"$f":"IF(_xlfn.FORMULATEXT(INDIRECT(G39))=H39,0,1)","v":0},{"$f":"ADDRESS(38,5,1,1,$J$1)","v":"'Interest Rate-Liquidity Risk'!$E$38"},"='Schedule II (EBS)'!D62+'Schedule IIA (EBS)'!D62",0,{"$f":"ADDRESS(17,5,1,1,$M$1)","v":"'Concentration Risk'!$E$17"},"=+'Fixed Income Investments'!E90",{"$f":"IF(_xlfn.FORMULATEXT(INDIRECT(M39))=N39,0,1)","v":0},{"$f":"ADDRESS(33,5,1,1,$P$1)","v":"'Credit Risk'!$E$33"},7.0000000000000007E-2,{"$f":"IF(INDIRECT(P39)=Q39,0,1)","v":0},{"$f":"ADDRESS(19,13,1,1,$S$1)","v":"'LT Insurance Risk'!$M$19"},"=M12*3",0,{"$f":"ADDRESS(18,15,1,1,$V$1)","v":"'LT Variable Annuity Gte Risk'!$O$18"},0.12,{"$f":"IF(INDIRECT(V39)=W39,0,1)","v":0},{"$f":"ADDRESS(20,7,1,1,$Y$1)","v":"'LT Other Insurance Risk'!$G$20"},5.0000000000000001E-3,{"$f":"IF(INDIRECT(Y39)=Z39,0,1)","v":0}]
[{"$f":"ADDRESS(40,7,1,1,$A$1)","v":"Summary!$G$40"},"=ROUND('Fixed Income Investments'!F99,$N$153)",0,{"$f":"ADDRESS(28,6,1,1,$D$1)","v":"'Fixed Income Investments'!$F$28"},"=IF(D28<0,0,D28*E28)",{"$f":"IF(_xlfn.FORMULATEXT(INDIRECT(D40))=E40,0,1)","v":0},{"$f":"ADDRESS(27,5,1,1,$G$1)","v":"'Equity Investments'!$E$27"},0.35,{"$f":"IF(INDIRECT(G40)=H40,0,1)","v":0},{"$f":"ADDRESS(39,5,1,1,$J$1)","v":"'Interest Rate-Liquidity Risk'!$E$39"},"=SUM(E34:E38)",0,{"$f":"ADDRESS(17,6,1,1,$M$1)","v":"'Concentration Risk'!$F$17"},"=MAX(0,(D17*E17))",{"$f":"IF(_xlfn.FORMULATEXT(INDIRECT(M40))=N40,0,1)","v":0},{"$f":"ADDRESS(33,6,1,1,$P$1)","v":"'Credit Risk'!$F$33"},"=MAX(0,(D33*E33))",{"$f":"IF(_xlfn.FORMULATEXT(INDIRECT(P40))=Q40,0,1)","v":0},{"$f":"ADDRESS(19,14,1,1,$S$1)","v":"'LT Insurance Risk'!$N$19"},"=IF(D18<1000000,0,IF(D18>5000000,L19*4000000,L19*(D18-1000000)))/1000",0,{"$f":"ADDRESS(18,17,1,1,$V$1)","v":"'LT Variable Annuity Gte Risk'!$Q$18"},"=+'Schedule VIII (EBS)'!P14",{"$f":"IF(_xlfn.FORMULATEXT(INDIRECT(V40))=W40,0,1)","v":0},{"$f":"ADDRESS(20,9,1,1,$Y$1)","v":"'LT Other Insurance Risk'!$I$20"},"=MAX(0,E20*G20)",{"$f":"IF(_xlfn.FORMULATEXT(INDIRECT(Y40))=Z40,0,1)","v":0}]
[{"$f":"ADDRESS(40,11,1,1,$A$1)","v":"Summary!$K$40"},"=ROUND('Fixed Income Investments (Rev.)'!I136,$N$153)",0,{"$f":"ADDRESS(29,4,1,1,$D$1)","v":"'Fixed Income Investments'!$D$29"},"=+'Schedule II (EBS)'!H15+'Schedule IIA (EBS)'!H15",{"$f":"IF(_xlfn.FORMULATEXT(INDIRECT(D41))=E41,0,1)","v":0},{"$f":"ADDRESS(27,6,1,1,$G$1)","v":"'Equity Investments'!$F$27"},"=IF(D27<0,0,D27*E27)",{"$f":"IF(_xlfn.FORMULATEXT(INDIRECT(G41))=H41,0,1)","v":0},null,null,-41,{"$f":"ADDRESS(18,2,1,1,$M$1)","v":"'Concentration Risk'!$B$18"},"BSCR Rating 8",{"$f":"IF(INDIRECT(M41)=N41,0,1)","v":0},{"$f":"ADDRESS(34,4,1,1,$P$1)","v":"'Credit Risk'!$D$34"},"=+'Schedule XVIII (EBS)'!O92",{"$f":"IF(_xlfn.FORMULATEXT(INDIRECT(P41))=Q41,0,1)","v":0},{"$f":"ADDRESS(19,15,1,1,$S$1)","v":"'LT Insurance Risk'!$O$19"},"=IF(E18<1000000,0,IF(E18>5000000,M19*4000000,M19*(E18-1000000)))/1000",0,{"$f":"ADDRESS(18,18,1,1,$V$1)","v":"'LT Variable Annuity Gte Risk'!$R$18"},0.16500000000000001,{"$f":"IF(INDIRECT(V41)=W41,0,1)","v":0},{"$f":"ADDRESS(21,5,1,1,$Y$1)","v":"'LT Other Insurance Risk'!$E$21"},"='Schedule VII (EBS)'!F41",{"$f":"IF(_xlfn.FORMULATEXT(INDIRECT(Y41))=Z41,0,1)","v":0}]
[{"$f":"ADDRESS(40,13,1,1,$A$1)","v":"Summary!$M$40"},"=ROUND('Fixed Income Investments (Rev.)'!I136,$N$153)",0,{"$f":"ADDRESS(29,5,1,1,$D$1)","v":"'Fixed Income Investments'!$E$29"},0.02,{"$f":"IF(INDIRECT(D42)=E42,0,1)","v":0},{"$f":"ADDRESS(29,4,1,1,$G$1)","v":"'Equity Investments'!$D$29"},"=SUM(D19:D27)",{"$f":"IF(_xlfn.FORMULATEXT(INDIRECT(G42))=H42,0,1)","v":0},null,null,null,{"$f":"ADDRESS(18,4,1,1,$M$1)","v":"'Concentration Risk'!$D$18"},"=SUMIFS('Schedule XXI'!$M$8:$M$57,'Schedule XXI'!$J$8:$J$57,$D$9,'Schedule XXI'!$L$8:$L$57,$B18)",{"$f":"IF(_xlfn.FORMULATEXT(INDIRECT(M42))=N42,0,1)","v":0},{"$f":"ADDRESS(34,5,1,1,$P$1)","v":"'Credit Risk'!$E$34"},0.12,{"$f":"IF(INDIRECT(P42)=Q42,0,1)","v":0},{"$f":"ADDRESS(20,12,1,1,$S$1)","v":"'LT Insurance Risk'!$L$20"},"=M20/2",0,{"$f":"ADDRESS(18,20,1,1,$V$1)","v":"'LT Variable Annuity Gte Risk'!$T$18"},"=+'Schedule VIII (EBS)'!R14",{"$f":"IF(_xlfn.FORMULATEXT(INDIRECT(V42))=W42,0,1)","v":0},{"$f":"ADDRESS(21,7,1,1,$Y$1)","v":"'LT Other Insurance Risk'!$G$21"},5.0000000000000001E-3,{"$f":"IF(INDIRECT(Y42)=Z42,0,1)","v":0}]
[{"$f":"ADDRESS(40,21,1,1,$A$1)","v":"Summary!$U$40"},"=G40",0,{"$f":"ADDRESS(29,6,1,1,$D$1)","v":"'Fixed Income Investments'!$F$29"},"=IF(D29<0,0,D29*E29)",{"$f":"IF(_xlfn.FORMULATEXT(INDIRECT(D43))=E43,0,1)","v":0},{"$f":"ADDRESS(29,6,1,1,$G$1)","v":"'Equity Investments'!$F$29"},"=MAX(0,(SUM(F19:F27)))",{"$f":"IF(_xlfn.FORMULATEXT(INDIRECT(G43))=H43,0,1)","v":0},null,null,null,{"$f":"ADDRESS(18,5,1,1,$M$1)","v":"'Concentration Risk'!$E$18"},"=+'Fixed Income Investments'!E91",{"$f":"IF(_xlfn.FORMULATEXT(INDIRECT(M43))=N43,0,1)","v":0},{"$f":"ADDRESS(34,6,1,1,$P$1)","v":"'Credit Risk'!$F$34"},"=MAX(0,(D34*E34))",{"$f":"IF(_xlfn.FORMULATEXT(INDIRECT(P43))=Q43,0,1)","v":0},{"$f":"ADDRESS(20,13,1,1,$S$1)","v":"'LT Insurance Risk'!$M$20"},"=M13*3",0,{"$f":"ADDRESS(18,21,1,1,$V$1)","v":"'LT Variable Annuity Gte Risk'!$U$18"},0.21,{"$f":"IF(INDIRECT(V43)=W43,0,1)","v":0},{"$f":"ADDRESS(21,9,1,1,$Y$1)","v":"'LT Other Insurance Risk'!$I$21"},"=MAX(0,E21*G21)",{"$f":"IF(_xlfn.FORMULATEXT(INDIRECT(Y43))=Z43,0,1)","v":0}]
[{"$f":"ADDRESS(40,23,1,1,$A$1)","v":"Summary!$W$40"},"=IF($G$60=0,1/13,U40/$U$54)",0,{"$f":"ADDRESS(30,4,1,1,$D$1)","v":"'Fixed Income Investments'!$D$30"},"=+'Schedule II (EBS)'!H16+'Schedule IIA (EBS)'!H16",{"$f":"IF(_xlfn.FORMULATEXT(INDIRECT(D44))=E44,0,1)","v":0},{"$f":"ADDRESS(34,4,1,1,$G$1)","v":"'Equity Investments'!$D$34"},"='Form 4EBS'!F50",{"$f":"IF(_xlfn.FORMULATEXT(INDIRECT(G44))=H44,0,1)","v":0},null,null,null,{"$f":"ADDRESS(18,6,1,1,$M$1)","v":"'Concentration Risk'!$F$18"},"=MAX(0,(D18*E18))",{"$f":"IF(_xlfn.FORMULATEXT(INDIRECT(M44))=N44,0,1)","v":0},{"$f":"ADDRESS(35,4,1,1,$P$1)","v":"'Credit Risk'!$D$35"},"=+'Schedule XVIII (EBS)'!O93",{"$f":"IF(_xlfn.FORMULATEXT(INDIRECT(P44))=Q44,0,1)","v":0},{"$f":"ADDRESS(20,14,1,1,$S$1)","v":"'LT Insurance Risk'!$N$20"},"=IF(D18<5000000,0,IF(D18>10000000,L20*5000000,L20*(D18-5000000)))/1000",0,{"$f":"ADDRESS(18,23,1,1,$V$1)","v":"'LT Variable Annuity Gte Risk'!$W$18"},"=IF(ISERROR(OR(E18*F18+H18*I18+K18*L18,N18*O18+Q18*R18+T18*U18)),0,MAX(E18*F18+H18*I18+K18*L18,N18*O18+Q18*R18+T18*U18))",{"$f":"IF(_xlfn.FORMULATEXT(INDIRECT(V44))=W44,0,1)","v":0},{"$f":"ADDRESS(22,5,1,1,$Y$1)","v":"'LT Other Insurance Risk'!$E$22"},"='Schedule VII (EBS)'!F42",{"$f":"IF(_xlfn.FORMULATEXT(INDIRECT(Y44))=Z44,0,1)","v":0}]
[{"$f":"ADDRESS(40,25,1,1,$A$1)","v":"Summary!$Y$40"},"=M40",0,{"$f":"ADDRESS(30,5,1,1,$D$1)","v":"'Fixed Income Investments'!$E$30"},0.04,{"$f":"IF(INDIRECT(D45)=E45,0,1)","v":0},{"$f":"ADDRESS(34,5,1,1,$G$1)","v":"'Equity Investments'!$E$34"},0.1,{"$f":"IF(INDIRECT(G45)=H45,0,1)","v":0},null,null,null,{"$f":"ADDRESS(20,4,1,1,$M$1)","v":"'Concentration Risk'!$D$20"},"=SUM(D10:D18)",{"$f":"IF(_xlfn.FORMULATEXT(INDIRECT(M45))=N45,0,1)","v":0},{"$f":"ADDRESS(35,5,1,1,$P$1)","v":"'Credit Risk'!$E$35"},0.2,{"$f":"IF(INDIRECT(P45)=Q45,0,1)","v":0},{"$f":"ADDRESS(20,15,1,1,$S$1)","v":"'LT Insurance Risk'!$O$20"},"=IF(E18<5000000,0,IF(E18>10000000,M20*5000000,M20*(E18-5000000)))/1000",0,{"$f":"ADDRESS(18,25,1,1,$V$1)","v":"'LT Variable Annuity Gte Risk'!$Y$18"},"='Schedule VIII (EBS)'!F14",{"$f":"IF(_xlfn.FORMULATEXT(INDIRECT(V45))=W45,0,1)","v":0},{"$f":"ADDRESS(22,7,1,1,$Y$1)","v":"'LT Other Insurance Risk'!$G$22"},5.0000000000000001E-3,{"$f":"IF(INDIRECT(Y45)=Z45,0,1)","v":0}]
[{"$f":"ADDRESS(40,26,1,1,$A$1)","v":"Summary!$Z$40"},"=IF($N$60=0,1/13,Y40/$Y$54)",0,{"$f":"ADDRESS(30,6,1,1,$D$1)","v":"'Fixed Income Investments'!$F$30"},"=IF(D30<0,0,D30*E30)",{"$f":"IF(_xlfn.FORMULATEXT(INDIRECT(D46))=E46,0,1)","v":0},{"$f":"ADDRESS(34,6,1,1,$G$1)","v":"'Equity Investments'!$F$34"},"=IF(D34<0,0,D34*E34)",{"$f":"IF(_xlfn.FORMULATEXT(INDIRECT(G46))=H46,0,1)","v":0},null,null,null,{"$f":"ADDRESS(20,6,1,1,$M$1)","v":"'Concentration Risk'!$F$20"},"=SUM(F10:F18)",{"$f":"IF(_xlfn.FORMULATEXT(INDIRECT(M46))=N46,0,1)","v":0},{"$f":"ADDRESS(35,6,1,1,$P$1)","v":"'Credit Risk'!$F$35"},"=MAX(0,(D35*E35))",{"$f":"IF(_xlfn.FORMULATEXT(INDIRECT(P46))=Q46,0,1)","v":0},{"$f":"ADDRESS(21,12,1,1,$S$1)","v":"'LT Insurance Risk'!$L$21"},"=M21/2",0,{"$f":"ADDRESS(18,27,1,1,$V$1)","v":"'LT Variable Annuity Gte Risk'!$AA$18"},"=MAX(0,W18-Y18)",{"$f":"IF(_xlfn.FORMULATEXT(INDIRECT(V46))=W46,0,1)","v":0},{"$f":"ADDRESS(22,9,1,1,$Y$1)","v":"'LT Other Insurance Risk'!$I$22"},"=MAX(0,E22*G22)",{"$f":"IF(_xlfn.FORMULATEXT(INDIRECT(Y46))=Z46,0,1)","v":0}]
[{"$f":"ADDRESS(41,7,1,1,$A$1)","v":"Summary!$G$41"},"=ROUND('Equity Investments'!F51,$N$153)",0,{"$f":"ADDRESS(31,4,1,1,$D$1)","v":"'Fixed Income Investments'!$D$31"},"=+'Schedule II (EBS)'!H17+'Schedule IIA (EBS)'!H17",{"$f":"IF(_xlfn.FORMULATEXT(INDIRECT(D47))=E47,0,1)","v":0},{"$f":"ADDRESS(35,4,1,1,$G$1)","v":"'Equity Investments'!$D$35"},"='Form 4EBS'!F51",{"$f":"IF(_xlfn.FORMULATEXT(INDIRECT(G47))=H47,0,1)","v":0},null,null,null,{"$f":"ADDRESS(22,4,1,1,$M$1)","v":"'Concentration Risk'!$D$22"},"Corporate & Sovereign Bonds",{"$f":"IF(INDIRECT(M47)=N47,0,1)","v":0},{"$f":"ADDRESS(36,4,1,1,$P$1)","v":"'Credit Risk'!$D$36"},"=+'Schedule XVIII (EBS)'!O94",{"$f":"IF(_xlfn.FORMULATEXT(INDIRECT(P47))=Q47,0,1)","v":0},{"$f":"ADDRESS(21,13,1,1,$S$1)","v":"'LT Insurance Risk'!$M$21"},"=M14*3",0,{"$f":"ADDRESS(19,5,1,1,$V$1)","v":"'LT Variable Annuity Gte Risk'!$E$19"},"=+'Schedule VIII (EBS)'!H32",{"$f":"IF(_xlfn.FORMULATEXT(INDIRECT(V47))=W47,0,1)","v":0},{"$f":"ADDRESS(23,5,1,1,$Y$1)","v":"'LT Other Insurance Risk'!$E$23"},"='Schedule VII (EBS)'!F43",{"$f":"IF(_xlfn.FORMULATEXT(INDIRECT(Y47))=Z47,0,1)","v":0}]
[{"$f":"ADDRESS(41,11,1,1,$A$1)","v":"Summary!$K$41"},"=ROUND(IF(E41=\"With Grandfathering\",('Equity Investments (Grandf)'!F51+'Equity Investments (Non-Grandf)'!R58),'Equity Investments (Revised)'!R56),$N$153)",0,{"$f":"ADDRESS(31,5,1,1,$D$1)","v":"'Fixed Income Investments'!$E$31"},0.11,{"$f":"IF(INDIRECT(D48)=E48,0,1)","v":0},{"$f":"ADDRESS(35,5,1,1,$G$1)","v":"'Equity Investments'!$E$35"},0.2,{"$f":"IF(INDIRECT(G48)=H48,0,1)","v":0},null,null,null,{"$f":"ADDRESS(23,2,1,1,$M$1)","v":"'Concentration Risk'!$B$23"},"BSCR Rating 0",{"$f":"IF(INDIRECT(M48)=N48,0,1)","v":0},{"$f":"ADDRESS(36,5,1,1,$P$1)","v":"'Credit Risk'!$E$36"},0.27,{"$f":"IF(INDIRECT(P48)=Q48,0,1)","v":0},{"$f":"ADDRESS(21,14,1,1,$S$1)","v":"'LT Insurance Risk'!$N$21"},"=IF(D18<10000000,0,IF(D18>50000000,L21*40000000,L21*(D18-10000000)))/1000",0,{"$f":"ADDRESS(19,6,1,1,$V$1)","v":"'LT Variable Annuity Gte Risk'!$F$19"},7.4999999999999997E-3,{"$f":"IF(INDIRECT(V48)=W48,0,1)","v":0},{"$f":"ADDRESS(23,7,1,1,$Y$1)","v":"'LT Other Insurance Risk'!$G$23"},0.02,{"$f":"IF(INDIRECT(Y48)=Z48,0,1)","v":0}]
[{"$f":"ADDRESS(41,13,1,1,$A$1)","v":"Summary!$M$41"},"=ROUND(IF(E41=\"With Grandfathering\",('Equity Investments (Grandf)'!F51+'Equity Investments (Non-Grandf)'!P58),'Equity Investments (Revised)'!P56),$N$153)",0,{"$f":"ADDRESS(31,6,1,1,$D$1)","v":"'Fixed Income Investments'!$F$31"},"=IF(D31<0,0,D31*E31)",{"$f":"IF(_xlfn.FORMULATEXT(INDIRECT(D49))=E49,0,1)","v":0},{"$f":"ADDRESS(35,6,1,1,$G$1)","v":"'Equity Investments'!$F$35"},"=IF(D35<0,0,D35*E35)",{"$f":"IF(_xlfn.FORMULATEXT(INDIRECT(G49))=H49,0,1)","v":0},null,null,null,{"$f":"ADDRESS(23,4,1,1,$M$1)","v":"'Concentration Risk'!$D$23"},"=SUMIFS('Schedule XXI'!$M$8:$M$57,'Schedule XXI'!$K$8:$K$57,$D$22,'Schedule XXI'!$L$8:$L$57,$B23)",{"$f":"IF(_xlfn.FORMULATEXT(INDIRECT(M49))=N49,0,1)","v":0},{"$f":"ADDRESS(36,6,1,1,$P$1)","v":"'Credit Risk'!$F$36"},"=MAX(0,(D36*E36))",{"$f":"IF(_xlfn.FORMULATEXT(INDIRECT(P49))=Q49,0,1)","v":0},{"$f":"ADDRESS(21,15,1,1,$S$1)","v":"'LT Insurance Risk'!$O$21"},"=IF(E18<10000000,0,IF(E18>50000000,M21*40000000,M21*(E18-10000000)))/1000",0,{"$f":"ADDRESS(19,8,1,1,$V$1)","v":"'LT Variable Annuity Gte Risk'!$H$19"},"='Schedule VIII (EBS)'!J32",{"$f":"IF(_xlfn.FORMULATEXT(INDIRECT(V49))=W49,0,1)","v":0},{"$f":"ADDRESS(23,9,1,1,$Y$1)","v":"'LT Other Insurance Risk'!$I$23"},"=MAX(0,E23*G23)",{"$f":"IF(_xlfn.FORMULATEXT(INDIRECT(Y49))=Z49,0,1)","v":0}]
[{"$f":"ADDRESS(41,21,1,1,$A$1)","v":"Summary!$U$41"},"=G41",0,{"$f":"ADDRESS(32,4,1,1,$D$1)","v":"'Fixed Income Investments'!$D$32"},"=+'Schedule II (EBS)'!H18+'Schedule IIA (EBS)'!H18",{"$f":"IF(_xlfn.FORMULATEXT(INDIRECT(D50))=E50,0,1)","v":0},{"$f":"ADDRESS(37,4,1,1,$G$1)","v":"'Equity Investments'!$D$37"},"='Form 4EBS'!F19+'Form 4EBS'!F29+'Schedule IIA (EBS)'!P44",{"$f":"IF(_xlfn.FORMULATEXT(INDIRECT(G50))=H50,0,1)","v":0},null,null,null,{"$f":"ADDRESS(23,5,1,1,$M$1)","v":"'Concentration Risk'!$E$23"},0,{"$f":"IF(INDIRECT(M50)=N50,0,1)","v":0},{"$f":"ADDRESS(37,4,1,1,$P$1)","v":"'Credit Risk'!$D$37"},"=+'Schedule XVIII (EBS)'!O95",{"$f":"IF(_xlfn.FORMULATEXT(INDIRECT(P50))=Q50,0,1)","v":0},{"$f":"ADDRESS(22,12,1,1,$S$1)","v":"'LT Insurance Risk'!$L$22"},"=M22/2",0,{"$f":"ADDRESS(19,9,1,1,$V$1)","v":"'LT Variable Annuity Gte Risk'!$I$19"},0.01,{"$f":"IF(INDIRECT(V50)=W50,0,1)","v":0},{"$f":"ADDRESS(24,5,1,1,$Y$1)","v":"'LT Other Insurance Risk'!$E$24"},"='Schedule VII (EBS)'!F44",{"$f":"IF(_xlfn.FORMULATEXT(INDIRECT(Y50))=Z50,0,1)","v":0}]
[{"$f":"ADDRESS(41,23,1,1,$A$1)","v":"Summary!$W$41"},"=IF($G$60=0,1/13,U41/$U$54)",0,{"$f":"ADDRESS(32,5,1,1,$D$1)","v":"'Fixed Income Investments'!$E$32"},0.25,{"$f":"IF(INDIRECT(D51)=E51,0,1)","v":0},{"$f":"ADDRESS(37,5,1,1,$G$1)","v":"'Equity Investments'!$E$37"},0.2,{"$f":"IF(INDIRECT(G51)=H51,0,1)","v":0},null,null,null,{"$f":"ADDRESS(23,6,1,1,$M$1)","v":"'Concentration Risk'!$F$23"},"=MAX(0,(D23*E23))",{"$f":"IF(_xlfn.FORMULATEXT(INDIRECT(M51))=N51,0,1)","v":0},{"$f":"ADDRESS(37,5,1,1,$P$1)","v":"'Credit Risk'!$E$37"},0.35,{"$f":"IF(INDIRECT(P51)=Q51,0,1)","v":0},{"$f":"ADDRESS(22,13,1,1,$S$1)","v":"'LT Insurance Risk'!$M$22"},"=M15*3",0,{"$f":"ADDRESS(19,11,1,1,$V$1)","v":"'LT Variable Annuity Gte Risk'!$K$19"},"='Schedule VIII (EBS)'!L32",{"$f":"IF(_xlfn.FORMULATEXT(INDIRECT(V51))=W51,0,1)","v":0},{"$f":"ADDRESS(24,7,1,1,$Y$1)","v":"'LT Other Insurance Risk'!$G$24"},0.02,{"$f":"IF(INDIRECT(Y51)=Z51,0,1)","v":0}]
[{"$f":"ADDRESS(41,25,1,1,$A$1)","v":"Summary!$Y$41"},"=M41",0,{"$f":"ADDRESS(32,6,1,1,$D$1)","v":"'Fixed Income Investments'!$F$32"},"=IF(D32<0,0,D32*E32)",{"$f":"IF(_xlfn.FORMULATEXT(INDIRECT(D52))=E52,0,1)","v":0},{"$f":"ADDRESS(37,6,1,1,$G$1)","v":"'Equity Investments'!$F$37"},"=IF(D37<0,0,D37*E37)",{"$f":"IF(_xlfn.FORMULATEXT(INDIRECT(G52))=H52,0,1)","v":0},null,null,null,{"$f":"ADDRESS(24,2,1,1,$M$1)","v":"'Concentration Risk'!$B$24"},"BSCR Rating 1",{"$f":"IF(INDIRECT(M52)=N52,0,1)","v":0},{"$f":"ADDRESS(37,6,1,1,$P$1)","v":"'Credit Risk'!$F$37"},"=MAX(0,(D37*E37))",{"$f":"IF(_xlfn.FORMULATEXT(INDIRECT(P52))=Q52,0,1)","v":0},{"$f":"ADDRESS(22,14,1,1,$S$1)","v":"'LT Insurance Risk'!$N$22"},"=IF(D18<50000000,0,L22*(D18-50000000))/1000",0,{"$f":"ADDRESS(19,12,1,1,$V$1)","v":"'LT Variable Annuity Gte Risk'!$L$19"},1.2500000000000001E-2,{"$f":"IF(INDIRECT(V52)=W52,0,1)","v":0},{"$f":"ADDRESS(24,9,1,1,$Y$1)","v":"'LT Other Insurance Risk'!$I$24"},"=MAX(0,E24*G24)",{"$f":"IF(_xlfn.FORMULATEXT(INDIRECT(Y52))=Z52,0,1)","v":0}]
[{"$f":"ADDRESS(41,26,1,1,$A$1)","v":"Summary!$Z$41"},"=IF($N$60=0,1/13,Y41/$Y$54)",0,{"$f":"ADDRESS(33,4,1,1,$D$1)","v":"'Fixed Income Investments'!$D$33"},"=+'Schedule II (EBS)'!H19+'Schedule IIA (EBS)'!H19",{"$f":"IF(_xlfn.FORMULATEXT(INDIRECT(D53))=E53,0,1)","v":0},{"$f":"ADDRESS(38,4,1,1,$G$1)","v":"'Equity Investments'!$D$38"},"='Form 4EBS'!F85-'Form 4EBS'!F77-'Form 4EBS'!F78-'Form 4EBS'!F82+'Form 4EBS'!F91+'Form 4EBS'!F166",{"$f":"IF(_xlfn.FORMULATEXT(INDIRECT(G53))=H53,0,1)","v":0},null,null,null,{"$f":"ADDRESS(24,4,1,1,$M$1)","v":"'Concentration Risk'!$D$24"},"=SUMIFS('Schedule XXI'!$M$8:$M$57,'Schedule XXI'!$K$8:$K$57,$D$22,'Schedule XXI'!$L$8:$L$57,$B24)",{"$f":"IF(_xlfn.FORMULATEXT(INDIRECT(M53))=N53,0,1)","v":0},{"$f":"ADDRESS(39,4,1,1,$P$1)","v":"'Credit Risk'!$D$39"},"=SUM(D29:D38)",0,{"$f":"ADDRESS(22,15,1,1,$S$1)","v":"'LT Insurance Risk'!$O$22"},"=IF(E18<50000000,0,M22*(E18-50000000))/1000",0,{"$f":"ADDRESS(19,23,1,1,$V$1)","v":"'LT Variable Annuity Gte Risk'!$W$19"},"=IF(ISERROR(OR(E19*F19+H19*I19+K19*L19,N19*O19+Q19*R19+T19*U19)),0,MAX(E19*F19+H19*I19+K19*L19,N19*O19+Q19*R19+T19*U19))",{"$f":"IF(_xlfn.FORMULATEXT(INDIRECT(V53))=W53,0,1)","v":0},{"$f":"ADDRESS(27,5,1,1,$Y$1)","v":"'LT Other Insurance Risk'!$E$27"},"=SUM(E10:E24)",{"$f":"IF(_xlfn.FORMULATEXT(INDIRECT(Y53))=Z53,0,1)","v":0}]
[{"$f":"ADDRESS(42,7,1,1,$A$1)","v":"Summary!$G$42"},"=ROUND('Interest Rate-Liquidity Risk'!L14,$N$153)",0,{"$f":"ADDRESS(33,5,1,1,$D$1)","v":"'Fixed Income Investments'!$E$33"},0.35,{"$f":"IF(INDIRECT(D54)=E54,0,1)","v":0},{"$f":"ADDRESS(38,5,1,1,$G$1)","v":"'Equity Investments'!$E$38"},0.2,{"$f":"IF(INDIRECT(G54)=H54,0,1)","v":0},null,null,null,{"$f":"ADDRESS(24,5,1,1,$M$1)","v":"'Concentration Risk'!$E$24"},4.0000000000000001E-3,{"$f":"IF(INDIRECT(M54)=N54,0,1)","v":0},{"$f":"ADDRESS(39,6,1,1,$P$1)","v":"'Credit Risk'!$F$39"},"=SUM(F29:F38)",0,{"$f":"ADDRESS(23,14,1,1,$S$1)","v":"'LT Insurance Risk'!$N$23"},"=SUM(N18:N22)",0,{"$f":"ADDRESS(19,25,1,1,$V$1)","v":"'LT Variable Annuity Gte Risk'!$Y$19"},"='Schedule VIII (EBS)'!F15",{"$f":"IF(_xlfn.FORMULATEXT(INDIRECT(V54))=W54,0,1)","v":0},{"$f":"ADDRESS(27,9,1,1,$Y$1)","v":"'LT Other Insurance Risk'!$I$27"},"=MAX(0,SUM(I10:I24))",{"$f":"IF(_xlfn.FORMULATEXT(INDIRECT(Y54))=Z54,0,1)","v":0}]
[{"$f":"ADDRESS(42,11,1,1,$A$1)","v":"Summary!$K$42"},"=ROUND(IF(E42=\"Duration-Based Approach\",'Interest Rate-Liquidity Risk'!L14,'Interest Rate-Liquidity (Rev.)'!$E$117),$N$153)",0,{"$f":"ADDRESS(33,6,1,1,$D$1)","v":"'Fixed Income Investments'!$F$33"},"=IF(D33<0,0,D33*E33)",{"$f":"IF(_xlfn.FORMULATEXT(INDIRECT(D55))=E55,0,1)","v":0},{"$f":"ADDRESS(38,6,1,1,$G$1)","v":"'Equity Investments'!$F$38"},"=IF(D38<0,0,D38*E38)",{"$f":"IF(_xlfn.FORMULATEXT(INDIRECT(G55))=H55,0,1)","v":0},null,null,null,{"$f":"ADDRESS(24,6,1,1,$M$1)","v":"'Concentration Risk'!$F$24"},"=MAX(0,(D24*E24))",{"$f":"IF(_xlfn.FORMULATEXT(INDIRECT(M55))=N55,0,1)","v":0},{"$f":"ADDRESS(41,2,1,1,$P$1)","v":"'Credit Risk'!$B$41"},"=\"Less: Diversification Adjustment up to \"&(ROUND('Schedule XVIII (EBS)'!O104,2)*100&\"%\")",0,{"$f":"ADDRESS(23,15,1,1,$S$1)","v":"'LT Insurance Risk'!$O$23"},"=SUM(O18:O22)",0,{"$f":"ADDRESS(19,27,1,1,$V$1)","v":"'LT Variable Annuity Gte Risk'!$AA$19"},"=MAX(0,W19-Y19)",{"$f":"IF(_xlfn.FORMULATEXT(INDIRECT(V55))=W55,0,1)","v":0},null,null,-55]
[{"$f":"ADDRESS(42,13,1,1,$A$1)","v":"Summary!$M$42"},"=ROUND(IF(E42=\"Duration-Based Approach\",'Interest Rate-Liquidity Risk'!L15,'Interest Rate-Liquidity (Rev.)'!$D$117),$N$153)",0,{"$f":"ADDRESS(34,4,1,1,$D$1)","v":"'Fixed Income Investments'!$D$34"},"=+'Schedule II (EBS)'!H20+'Schedule IIA (EBS)'!H20",{"$f":"IF(_xlfn.FORMULATEXT(INDIRECT(D56))=E56,0,1)","v":0},{"$f":"ADDRESS(40,4,1,1,$G$1)","v":"'Equity Investments'!$D$40"},"=SUM(D34:D35,D37:D38)",{"$f":"IF(_xlfn.FORMULATEXT(INDIRECT(G56))=H56,0,1)","v":0},null,null,null,{"$f":"ADDRESS(25,2,1,1,$M$1)","v":"'Concentration Risk'!$B$25"},"BSCR Rating 2",{"$f":"IF(INDIRECT(M56)=N56,0,1)","v":0},{"$f":"ADDRESS(41,5,1,1,$P$1)","v":"'Credit Risk'!$E$41"},"='Schedule XVIII (EBS)'!O104",0,{"$f":"ADDRESS(26,4,1,1,$S$1)","v":"'LT Insurance Risk'!$D$26"},"=+'Schedule VII (EBS)'!F14",0,{"$f":"ADDRESS(22,5,1,1,$V$1)","v":"'LT Variable Annuity Gte Risk'!$E$22"},"='Schedule VIII (EBS)'!H15",{"$f":"IF(_xlfn.FORMULATEXT(INDIRECT(V56))=W56,0,1)","v":0}]
[{"$f":"ADDRESS(42,21,1,1,$A$1)","v":"Summary!$U$42"},"=G42",0,{"$f":"ADDRESS(34,5,1,1,$D$1)","v":"'Fixed Income Investments'!$E$34"},0.35,{"$f":"IF(INDIRECT(D57)=E57,0,1)","v":0},{"$f":"ADDRESS(40,6,1,1,$G$1)","v":"'Equity Investments'!$F$40"},"=MAX(0,(SUM(F34:F38)))",{"$f":"IF(_xlfn.FORMULATEXT(INDIRECT(G57))=H57,0,1)","v":0},null,null,null,{"$f":"ADDRESS(25,4,1,1,$M$1)","v":"'Concentration Risk'!$D$25"},"=SUMIFS('Schedule XXI'!$M$8:$M$57,'Schedule XXI'!$K$8:$K$57,$D$22,'Schedule XXI'!$L$8:$L$57,$B25)",{"$f":"IF(_xlfn.FORMULATEXT(INDIRECT(M57))=N57,0,1)","v":0},{"$f":"ADDRESS(41,6,1,1,$P$1)","v":"'Credit Risk'!$F$41"},"=SUM(F29:F38)*-('Schedule XVIII (EBS)'!O104)",0,{"$f":"ADDRESS(26,12,1,1,$S$1)","v":"'LT Insurance Risk'!$L$26"},0.02,{"$f":"IF(INDIRECT(S57)=T57,0,1)","v":0},{"$f":"ADDRESS(22,6,1,1,$V$1)","v":"'LT Variable Annuity Gte Risk'!$F$22"},0.05,{"$f":"IF(INDIRECT(V57)=W57,0,1)","v":0}]
[{"$f":"ADDRESS(42,23,1,1,$A$1)","v":"Summary!$W$42"},"=IF($G$60=0,1/13,U42/$U$54)",0,{"$f":"ADDRESS(34,6,1,1,$D$1)","v":"'Fixed Income Investments'!$F$34"},"=IF(D34<0,0,D34*E34)",{"$f":"IF(_xlfn.FORMULATEXT(INDIRECT(D58))=E58,0,1)","v":0},{"$f":"ADDRESS(44,4,1,1,$G$1)","v":"'Equity Investments'!$D$44"},"=+'Form 4EBS'!F33",{"$f":"IF(_xlfn.FORMULATEXT(INDIRECT(G58))=H58,0,1)","v":0},null,null,null,{"$f":"ADDRESS(25,5,1,1,$M$1)","v":"'Concentration Risk'!$E$25"},8.0000000000000002E-3,{"$f":"IF(INDIRECT(M58)=N58,0,1)","v":0},{"$f":"ADDRESS(43,4,1,1,$P$1)","v":"'Credit Risk'!$D$43"},"=MAX(+D39,0)",0,{"$f":"ADDRESS(26,15,1,1,$S$1)","v":"'LT Insurance Risk'!$O$26"},"=D26*L26",{"$f":"IF(_xlfn.FORMULATEXT(INDIRECT(S58))=T58,0,1)","v":0},{"$f":"ADDRESS(22,8,1,1,$V$1)","v":"'LT Variable Annuity Gte Risk'!$H$22"},"='Schedule VIII (EBS)'!J15",{"$f":"IF(_xlfn.FORMULATEXT(INDIRECT(V58))=W58,0,1)","v":0}]
[{"$f":"ADDRESS(42,25,1,1,$A$1)","v":"Summary!$Y$42"},"=M42",0,{"$f":"ADDRESS(36,4,1,1,$D$1)","v":"'Fixed Income Investments'!$D$36"},"=SUM(D26:D34)",{"$f":"IF(_xlfn.FORMULATEXT(INDIRECT(D59))=E59,0,1)","v":0},{"$f":"ADDRESS(44,5,1,1,$G$1)","v":"'Equity Investments'!$E$44"},0.05,{"$f":"IF(INDIRECT(G59)=H59,0,1)","v":0},null,null,null,{"$f":"ADDRESS(25,6,1,1,$M$1)","v":"'Concentration Risk'!$F$25"},"=MAX(0,(D25*E25))",{"$f":"IF(_xlfn.FORMULATEXT(INDIRECT(M59))=N59,0,1)","v":0},{"$f":"ADDRESS(43,6,1,1,$P$1)","v":"'Credit Risk'!$F$43"},"=MAX(0,SUM(F29:F38)+F41)",0,{"$f":"ADDRESS(27,4,1,1,$S$1)","v":"'LT Insurance Risk'!$D$27"},"=+'Schedule VII (EBS)'!F15",{"$f":"IF(_xlfn.FORMULATEXT(INDIRECT(S59))=T59,0,1)","v":0},{"$f":"ADDRESS(22,9,1,1,$V$1)","v":"'LT Variable Annuity Gte Risk'!$I$22"},6.5000000000000002E-2,{"$f":"IF(INDIRECT(V59)=W59,0,1)","v":0}]
[{"$f":"ADDRESS(42,26,1,1,$A$1)","v":"Summary!$Z$42"},"=IF($N$60=0,1/13,Y42/$Y$54)",0,{"$f":"ADDRESS(36,6,1,1,$D$1)","v":"'Fixed Income Investments'!$F$36"},"=MAX(0,SUM(F26:F34))",{"$f":"IF(_xlfn.FORMULATEXT(INDIRECT(D60))=E60,0,1)","v":0},{"$f":"ADDRESS(44,6,1,1,$G$1)","v":"'Equity Investments'!$F$44"},"=IF(D44<0,0,D44*E44)",{"$f":"IF(_xlfn.FORMULATEXT(INDIRECT(G60))=H60,0,1)","v":0},null,null,null,{"$f":"ADDRESS(26,2,1,1,$M$1)","v":"'Concentration Risk'!$B$26"},"BSCR Rating 3",{"$f":"IF(INDIRECT(M60)=N60,0,1)","v":0},{"$f":"ADDRESS(45,4,1,1,$P$1)","v":"'Credit Risk'!$D$45"},"=D43+D22+D14",0,{"$f":"ADDRESS(27,12,1,1,$S$1)","v":"'LT Insurance Risk'!$L$27"},0.03,{"$f":"IF(INDIRECT(S60)=T60,0,1)","v":0},{"$f":"ADDRESS(22,11,1,1,$V$1)","v":"'LT Variable Annuity Gte Risk'!$K$22"},"='Schedule VIII (EBS)'!L15",{"$f":"IF(_xlfn.FORMULATEXT(INDIRECT(V60))=W60,0,1)","v":0}]
[{"$f":"ADDRESS(43,7,1,1,$A$1)","v":"Summary!$G$43"},"=ROUND('Currency Risk'!I28,$N$153)",0,{"$f":"ADDRESS(41,4,1,1,$D$1)","v":"'Fixed Income Investments'!$D$41"},"=+'Schedule II (EBS)'!L13+'Schedule IIA (EBS)'!L13",{"$f":"IF(_xlfn.FORMULATEXT(INDIRECT(D61))=E61,0,1)","v":0},{"$f":"ADDRESS(45,4,1,1,$G$1)","v":"'Equity Investments'!$D$45"},"=+'Form 4EBS'!F34",{"$f":"IF(_xlfn.FORMULATEXT(INDIRECT(G61))=H61,0,1)","v":0},null,null,null,{"$f":"ADDRESS(26,4,1,1,$M$1)","v":"'Concentration Risk'!$D$26"},"=SUMIFS('Schedule XXI'!$M$8:$M$57,'Schedule XXI'!$K$8:$K$57,$D$22,'Schedule XXI'!$L$8:$L$57,$B26)",{"$f":"IF(_xlfn.FORMULATEXT(INDIRECT(M61))=N61,0,1)","v":0},{"$f":"ADDRESS(45,6,1,1,$P$1)","v":"'Credit Risk'!$F$45"},"=F43+F22+F14",0,{"$f":"ADDRESS(27,15,1,1,$S$1)","v":"'LT Insurance Risk'!$O$27"},"=D27*L27",{"$f":"IF(_xlfn.FORMULATEXT(INDIRECT(S61))=T61,0,1)","v":0},{"$f":"ADDRESS(22,12,1,1,$V$1)","v":"'LT Variable Annuity Gte Risk'!$L$22"},0.08,{"$f":"IF(INDIRECT(V61)=W61,0,1)","v":0}]
[{"$f":"ADDRESS(43,11,1,1,$A$1)","v":"Summary!$K$43"},"=ROUND('Currency Risk (Revised)'!Y39,$N$153)",0,{"$f":"ADDRESS(41,5,1,1,$D$1)","v":"'Fixed Income Investments'!$E$41"},5.0000000000000001E-3,{"$f":"IF(INDIRECT(D62)=E62,0,1)","v":0},{"$f":"ADDRESS(45,5,1,1,$G$1)","v":"'Equity Investments'!$E$45"},0.2,{"$f":"IF(INDIRECT(G62)=H62,0,1)","v":0},null,null,null,{"$f":"ADDRESS(26,5,1,1,$M$1)","v":"'Concentration Risk'!$E$26"},1.4999999999999999E-2,{"$f":"IF(INDIRECT(M62)=N62,0,1)","v":0},null,null,-62,{"$f":"ADDRESS(28,4,1,1,$S$1)","v":"'LT Insurance Risk'!$D$28"},"=+'Schedule VII (EBS)'!F16",{"$f":"IF(_xlfn.FORMULATEXT(INDIRECT(S62))=T62,0,1)","v":0},{"$f":"ADDRESS(22,14,1,1,$V$1)","v":"'LT Variable Annuity Gte Risk'!$N$22"},"='Schedule VIII (EBS)'!N15",{"$f":"IF(_xlfn.FORMULATEXT(INDIRECT(V62))=W62,0,1)","v":0}]
[{"$f":"ADDRESS(43,13,1,1,$A$1)","v":"Summary!$M$43"},"=ROUND('Currency Risk (Revised)'!X39,$N$153)",0,{"$f":"ADDRESS(41,6,1,1,$D$1)","v":"'Fixed Income Investments'!$F$41"},"=IF(D41<0,0,D41*E41)",{"$f":"IF(_xlfn.FORMULATEXT(INDIRECT(D63))=E63,0,1)","v":0},{"$f":"ADDRESS(45,6,1,1,$G$1)","v":"'Equity Investments'!$F$45"},"=IF(D45<0,0,D45*E45)",{"$f":"IF(_xlfn.FORMULATEXT(INDIRECT(G63))=H63,0,1)","v":0},null,null,null,{"$f":"ADDRESS(26,6,1,1,$M$1)","v":"'Concentration Risk'!$F$26"},"=MAX(0,(D26*E26))",{"$f":"IF(_xlfn.FORMULATEXT(INDIRECT(M63))=N63,0,1)","v":0},null,null,null,{"$f":"ADDRESS(28,12,1,1,$S$1)","v":"'LT Insurance Risk'!$L$28"},0.04,{"$f":"IF(INDIRECT(S63)=T63,0,1)","v":0},{"$f":"ADDRESS(22,15,1,1,$V$1)","v":"'LT Variable Annuity Gte Risk'!$O$22"},1,{"$f":"IF(INDIRECT(V63)=W63,0,1)","v":0}]
[{"$f":"ADDRESS(43,21,1,1,$A$1)","v":"Summary!$U$43"},"=G43",0,{"$f":"ADDRESS(42,4,1,1,$D$1)","v":"'Fixed Income Investments'!$D$42"},"=+'Schedule II (EBS)'!L14+'Schedule IIA (EBS)'!L14",{"$f":"IF(_xlfn.FORMULATEXT(INDIRECT(D64))=E64,0,1)","v":0},{"$f":"ADDRESS(46,4,1,1,$G$1)","v":"'Equity Investments'!$D$46"},"=+'Form 4EBS'!F35",{"$f":"IF(_xlfn.FORMULATEXT(INDIRECT(G64))=H64,0,1)","v":0},null,null,null,{"$f":"ADDRESS(27,2,1,1,$M$1)","v":"'Concentration Risk'!$B$27"},"BSCR Rating 4",{"$f":"IF(INDIRECT(M64)=N64,0,1)","v":0},null,null,null,{"$f":"ADDRESS(28,15,1,1,$S$1)","v":"'LT Insurance Risk'!$O$28"},"=D28*L28",{"$f":"IF(_xlfn.FORMULATEXT(INDIRECT(S64))=T64,0,1)","v":0},{"$f":"ADDRESS(22,17,1,1,$V$1)","v":"'LT Variable Annuity Gte Risk'!$Q$22"},"=+'Schedule VIII (EBS)'!P15",{"$f":"IF(_xlfn.FORMULATEXT(INDIRECT(V64))=W64,0,1)","v":0}]
[{"$f":"ADDRESS(43,23,1,1,$A$1)","v":"Summary!$W$43"},"=IF($G$60=0,1/13,U43/$U$54)",0,{"$f":"ADDRESS(42,5,1,1,$D$1)","v":"'Fixed Income Investments'!$E$42"},0.01,{"$f":"IF(INDIRECT(D65)=E65,0,1)","v":0},{"$f":"ADDRESS(46,5,1,1,$G$1)","v":"'Equity Investments'!$E$46"},0.55000000000000004,{"$f":"IF(INDIRECT(G65)=H65,0,1)","v":0},null,null,null,{"$f":"ADDRESS(27,4,1,1,$M$1)","v":"'Concentration Risk'!$D$27"},"=SUMIFS('Schedule XXI'!$M$8:$M$57,'Schedule XXI'!$K$8:$K$57,$D$22,'Schedule XXI'!$L$8:$L$57,$B27)",{"$f":"IF(_xlfn.FORMULATEXT(INDIRECT(M65))=N65,0,1)","v":0},null,null,null,{"$f":"ADDRESS(29,4,1,1,$S$1)","v":"'LT Insurance Risk'!$D$29"},"=+'Schedule VII (EBS)'!F17",{"$f":"IF(_xlfn.FORMULATEXT(INDIRECT(S65))=T65,0,1)","v":0},{"$f":"ADDRESS(22,18,1,1,$V$1)","v":"'LT Variable Annuity Gte Risk'!$R$22"},1.3,{"$f":"IF(INDIRECT(V65)=W65,0,1)","v":0}]
[{"$f":"ADDRESS(43,25,1,1,$A$1)","v":"Summary!$Y$43"},"=M43",0,{"$f":"ADDRESS(42,6,1,1,$D$1)","v":"'Fixed Income Investments'!$F$42"},"=IF(D42<0,0,D42*E42)",{"$f":"IF(_xlfn.FORMULATEXT(INDIRECT(D66))=E66,0,1)","v":0},{"$f":"ADDRESS(46,6,1,1,$G$1)","v":"'Equity Investments'!$F$46"},"=IF(D46<0,0,D46*E46)",{"$f":"IF(_xlfn.FORMULATEXT(INDIRECT(G66))=H66,0,1)","v":0},null,null,null,{"$f":"ADDRESS(27,5,1,1,$M$1)","v":"'Concentration Risk'!$E$27"},0.03,{"$f":"IF(INDIRECT(M66)=N66,0,1)","v":0},null,null,null,{"$f":"ADDRESS(29,12,1,1,$S$1)","v":"'LT Insurance Risk'!$L$29"},0.05,{"$f":"IF(INDIRECT(S66)=T66,0,1)","v":0},{"$f":"ADDRESS(22,20,1,1,$V$1)","v":"'LT Variable Annuity Gte Risk'!$T$22"},"=+'Schedule VIII (EBS)'!R15",{"$f":"IF(_xlfn.FORMULATEXT(INDIRECT(V66))=W66,0,1)","v":0}]
[{"$f":"ADDRESS(43,26,1,1,$A$1)","v":"Summary!$Z$43"},"=IF($N$60=0,1/13,Y43/$Y$54)",0,{"$f":"ADDRESS(43,4,1,1,$D$1)","v":"'Fixed Income Investments'!$D$43"},"=+'Schedule II (EBS)'!L15+'Schedule IIA (EBS)'!L15",{"$f":"IF(_xlfn.FORMULATEXT(INDIRECT(D67))=E67,0,1)","v":0},{"$f":"ADDRESS(47,4,1,1,$G$1)","v":"'Equity Investments'!$D$47"},"=+'Form 4EBS'!F37",{"$f":"IF(_xlfn.FORMULATEXT(INDIRECT(G67))=H67,0,1)","v":0},null,null,null,{"$f":"ADDRESS(27,6,1,1,$M$1)","v":"'Concentration Risk'!$F$27"},"=MAX(0,(D27*E27))",{"$f":"IF(_xlfn.FORMULATEXT(INDIRECT(M67))=N67,0,1)","v":0},null,null,null,{"$f":"ADDRESS(29,15,1,1,$S$1)","v":"'LT Insurance Risk'!$O$29"},"=D29*L29",{"$f":"IF(_xlfn.FORMULATEXT(INDIRECT(S67))=T67,0,1)","v":0},{"$f":"ADDRESS(22,21,1,1,$V$1)","v":"'LT Variable Annuity Gte Risk'!$U$22"},1.6,{"$f":"IF(INDIRECT(V67)=W67,0,1)","v":0}]
[{"$f":"ADDRESS(44,7,1,1,$A$1)","v":"Summary!$G$44"},"=+'Concentration Risk'!F111",{"$f":"IF(_xlfn.FORMULATEXT(INDIRECT(A68))=B68,0,1)","v":0},{"$f":"ADDRESS(43,5,1,1,$D$1)","v":"'Fixed Income Investments'!$E$43"},1.7999999999999999E-2,{"$f":"IF(INDIRECT(D68)=E68,0,1)","v":0},{"$f":"ADDRESS(47,5,1,1,$G$1)","v":"'Equity Investments'!$E$47"},0.2,{"$f":"IF(INDIRECT(G68)=H68,0,1)","v":0},null,null,null,{"$f":"ADDRESS(28,2,1,1,$M$1)","v":"'Concentration Risk'!$B$28"},"BSCR Rating 5",{"$f":"IF(INDIRECT(M68)=N68,0,1)","v":0},null,null,null,{"$f":"ADDRESS(30,4,1,1,$S$1)","v":"'LT Insurance Risk'!$D$30"},"=+'Schedule VII (EBS)'!F18",{"$f":"IF(_xlfn.FORMULATEXT(INDIRECT(S68))=T68,0,1)","v":0},{"$f":"ADDRESS(22,23,1,1,$V$1)","v":"'LT Variable Annuity Gte Risk'!$W$22"},"=IF(ISERROR(OR(E22*F22+H22*I22+K22*L22,N22*O22+Q22*R22+T22*U22)),0,MAX(E22*F22+H22*I22+K22*L22,N22*O22+Q22*R22+T22*U22))",{"$f":"IF(_xlfn.FORMULATEXT(INDIRECT(V68))=W68,0,1)","v":0}]
[{"$f":"ADDRESS(44,11,1,1,$A$1)","v":"Summary!$K$44"},"='Concentration Risk (Revised)'!F123",0,{"$f":"ADDRESS(43,6,1,1,$D$1)","v":"'Fixed Income Investments'!$F$43"},"=IF(D43<0,0,D43*E43)",{"$f":"IF(_xlfn.FORMULATEXT(INDIRECT(D69))=E69,0,1)","v":0},{"$f":"ADDRESS(47,6,1,1,$G$1)","v":"'Equity Investments'!$F$47"},"=IF(D47<0,0,D47*E47)",{"$f":"IF(_xlfn.FORMULATEXT(INDIRECT(G69))=H69,0,1)","v":0},null,null,null,{"$f":"ADDRESS(28,4,1,1,$M$1)","v":"'Concentration Risk'!$D$28"},"=SUMIFS('Schedule XXI'!$M$8:$M$57,'Schedule XXI'!$K$8:$K$57,$D$22,'Schedule XXI'!$L$8:$L$57,$B28)",{"$f":"IF(_xlfn.FORMULATEXT(INDIRECT(M69))=N69,0,1)","v":0},null,null,null,{"$f":"ADDRESS(30,12,1,1,$S$1)","v":"'LT Insurance Risk'!$L$30"},0.06,{"$f":"IF(INDIRECT(S69)=T69,0,1)","v":0},{"$f":"ADDRESS(22,25,1,1,$V$1)","v":"'LT Variable Annuity Gte Risk'!$Y$22"},"='Schedule VIII (EBS)'!F15",{"$f":"IF(_xlfn.FORMULATEXT(INDIRECT(V69))=W69,0,1)","v":0}]
[{"$f":"ADDRESS(44,13,1,1,$A$1)","v":"Summary!$M$44"},"='Concentration Risk (Revised)'!F123",0,{"$f":"ADDRESS(44,4,1,1,$D$1)","v":"'Fixed Income Investments'!$D$44"},"=+'Schedule II (EBS)'!L16+'Schedule IIA (EBS)'!L16",{"$f":"IF(_xlfn.FORMULATEXT(INDIRECT(D70))=E70,0,1)","v":0},{"$f":"ADDRESS(49,4,1,1,$G$1)","v":"'Equity Investments'!$D$49"},"=SUM(D44:D47)",{"$f":"IF(_xlfn.FORMULATEXT(INDIRECT(G70))=H70,0,1)","v":0},null,null,null,{"$f":"ADDRESS(28,5,1,1,$M$1)","v":"'Concentration Risk'!$E$28"},0.08,{"$f":"IF(INDIRECT(M70)=N70,0,1)","v":0},null,null,null,{"$f":"ADDRESS(30,15,1,1,$S$1)","v":"'LT Insurance Risk'!$O$30"},"=D30*L30",{"$f":"IF(_xlfn.FORMULATEXT(INDIRECT(S70))=T70,0,1)","v":0},{"$f":"ADDRESS(22,27,1,1,$V$1)","v":"'LT Variable Annuity Gte Risk'!$AA$22"},"=MAX(0,W22-Y22)",{"$f":"IF(_xlfn.FORMULATEXT(INDIRECT(V70))=W70,0,1)","v":0}]
[{"$f":"ADDRESS(44,21,1,1,$A$1)","v":"Summary!$U$44"},"=G44",0,{"$f":"ADDRESS(44,5,1,1,$D$1)","v":"'Fixed Income Investments'!$E$44"},3.5000000000000003E-2,{"$f":"IF(INDIRECT(D71)=E71,0,1)","v":0},{"$f":"ADDRESS(49,6,1,1,$G$1)","v":"'Equity Investments'!$F$49"},"=MAX(0,SUM(F44:F47))",{"$f":"IF(_xlfn.FORMULATEXT(INDIRECT(G71))=H71,0,1)","v":0},null,null,null,{"$f":"ADDRESS(28,6,1,1,$M$1)","v":"'Concentration Risk'!$F$28"},"=MAX(0,(D28*E28))",{"$f":"IF(_xlfn.FORMULATEXT(INDIRECT(M71))=N71,0,1)","v":0},null,null,null,{"$f":"ADDRESS(33,4,1,1,$S$1)","v":"'LT Insurance Risk'!$D$33"},"=+'Schedule VII (EBS)'!F22",{"$f":"IF(_xlfn.FORMULATEXT(INDIRECT(S71))=T71,0,1)","v":0},{"$f":"ADDRESS(23,5,1,1,$V$1)","v":"'LT Variable Annuity Gte Risk'!$E$23"},"='Schedule VIII (EBS)'!H33",{"$f":"IF(_xlfn.FORMULATEXT(INDIRECT(V71))=W71,0,1)","v":0}]
[{"$f":"ADDRESS(44,23,1,1,$A$1)","v":"Summary!$W$44"},"=IF($G$60=0,1/13,U44/$U$54)",0,{"$f":"ADDRESS(44,6,1,1,$D$1)","v":"'Fixed Income Investments'!$F$44"},"=IF(D44<0,0,D44*E44)",{"$f":"IF(_xlfn.FORMULATEXT(INDIRECT(D72))=E72,0,1)","v":0},{"$f":"ADDRESS(51,4,1,1,$G$1)","v":"'Equity Investments'!$D$51"},"=D15+D29+D40+D49",{"$f":"IF(_xlfn.FORMULATEXT(INDIRECT(G72))=H72,0,1)","v":0},null,null,null,{"$f":"ADDRESS(29,2,1,1,$M$1)","v":"'Concentration Risk'!$B$29"},"BSCR Rating 6",{"$f":"IF(INDIRECT(M72)=N72,0,1)","v":0},null,null,null,{"$f":"ADDRESS(33,12,1,1,$S$1)","v":"'LT Insurance Risk'!$L$33"},0.02,{"$f":"IF(INDIRECT(S72)=T72,0,1)","v":0},{"$f":"ADDRESS(23,6,1,1,$V$1)","v":"'LT Variable Annuity Gte Risk'!$F$23"},0.05,{"$f":"IF(INDIRECT(V72)=W72,0,1)","v":0}]
[{"$f":"ADDRESS(44,25,1,1,$A$1)","v":"Summary!$Y$44"},"=M44",0,{"$f":"ADDRESS(45,4,1,1,$D$1)","v":"'Fixed Income Investments'!$D$45"},"=+'Schedule II (EBS)'!L17+'Schedule IIA (EBS)'!L17",{"$f":"IF(_xlfn.FORMULATEXT(INDIRECT(D73))=E73,0,1)","v":0},{"$f":"ADDRESS(51,6,1,1,$G$1)","v":"'Equity Investments'!$F$51"},"=MAX(0,(F15+F29+F40+F49))",{"$f":"IF(_xlfn.FORMULATEXT(INDIRECT(G73))=H73,0,1)","v":0},null,null,null,{"$f":"ADDRESS(29,4,1,1,$M$1)","v":"'Concentration Risk'!$D$29"},"=SUMIFS('Schedule XXI'!$M$8:$M$57,'Schedule XXI'!$K$8:$K$57,$D$22,'Schedule XXI'!$L$8:$L$57,$B29)",{"$f":"IF(_xlfn.FORMULATEXT(INDIRECT(M73))=N73,0,1)","v":0},null,null,null,{"$f":"ADDRESS(33,15,1,1,$S$1)","v":"'LT Insurance Risk'!$O$33"},"=D33*L33",{"$f":"IF(_xlfn.FORMULATEXT(INDIRECT(S73))=T73,0,1)","v":0},{"$f":"ADDRESS(23,8,1,1,$V$1)","v":"'LT Variable Annuity Gte Risk'!$H$23"},"='Schedule VIII (EBS)'!J33",{"$f":"IF(_xlfn.FORMULATEXT(INDIRECT(V73))=W73,0,1)","v":0}]
[{"$f":"ADDRESS(44,26,1,1,$A$1)","v":"Summary!$Z$44"},"=IF($N$60=0,1/13,Y44/$Y$54)",0,{"$f":"ADDRESS(45,5,1,1,$D$1)","v":"'Fixed Income Investments'!$E$45"},0.1,{"$f":"IF(INDIRECT(D74)=E74,0,1)","v":0},null,null,-74,null,null,null,{"$f":"ADDRESS(29,5,1,1,$M$1)","v":"'Concentration Risk'!$E$29"},0.15,{"$f":"IF(INDIRECT(M74)=N74,0,1)","v":0},null,null,null,{"$f":"ADDRESS(34,4,1,1,$S$1)","v":"'LT Insurance Risk'!$D$34"},"=+'Schedule VII (EBS)'!F23",{"$f":"IF(_xlfn.FORMULATEXT(INDIRECT(S74))=T74,0,1)","v":0},{"$f":"ADDRESS(23,9,1,1,$V$1)","v":"'LT Variable Annuity Gte Risk'!$I$23"},6.5000000000000002E-2,{"$f":"IF(INDIRECT(V74)=W74,0,1)","v":0}]
[{"$f":"ADDRESS(45,21,1,1,$A$1)","v":"Summary!$U$45"},"=G47",0,{"$f":"ADDRESS(45,6,1,1,$D$1)","v":"'Fixed Income Investments'!$F$45"},"=IF(D45<0,0,D45*E45)",{"$f":"IF(_xlfn.FORMULATEXT(INDIRECT(D75))=E75,0,1)","v":0},null,null,null,null,null,null,{"$f":"ADDRESS(29,6,1,1,$M$1)","v":"'Concentration Risk'!$F$29"},"=MAX(0,(D29*E29))",{"$f":"IF(_xlfn.FORMULATEXT(INDIRECT(M75))=N75,0,1)","v":0},null,null,null,{"$f":"ADDRESS(34,12,1,1,$S$1)","v":"'LT Insurance Risk'!$L$34"},0.03,{"$f":"IF(INDIRECT(S75)=T75,0,1)","v":0},{"$f":"ADDRESS(23,11,1,1,$V$1)","v":"'LT Variable Annuity Gte Risk'!$K$23"},"='Schedule VIII (EBS)'!L33",{"$f":"IF(_xlfn.FORMULATEXT(INDIRECT(V75))=W75,0,1)","v":0}]
[{"$f":"ADDRESS(45,23,1,1,$A$1)","v":"Summary!$W$45"},"=IF($G$60=0,1/13,U45/$U$54)",0,{"$f":"ADDRESS(46,4,1,1,$D$1)","v":"'Fixed Income Investments'!$D$46"},"=+'Schedule II (EBS)'!L18+'Schedule IIA (EBS)'!L18",{"$f":"IF(_xlfn.FORMULATEXT(INDIRECT(D76))=E76,0,1)","v":0},null,null,null,null,null,null,{"$f":"ADDRESS(30,2,1,1,$M$1)","v":"'Concentration Risk'!$B$30"},"BSCR Rating 7",{"$f":"IF(INDIRECT(M76)=N76,0,1)","v":0},null,null,null,{"$f":"ADDRESS(34,15,1,1,$S$1)","v":"'LT Insurance Risk'!$O$34"},"=D34*L34",{"$f":"IF(_xlfn.FORMULATEXT(INDIRECT(S76))=T76,0,1)","v":0},{"$f":"ADDRESS(23,12,1,1,$V$1)","v":"'LT Variable Annuity Gte Risk'!$L$23"},0.08,{"$f":"IF(INDIRECT(V76)=W76,0,1)","v":0}]
[{"$f":"ADDRESS(45,25,1,1,$A$1)","v":"Summary!$Y$45"},"=M47",0,{"$f":"ADDRESS(46,5,1,1,$D$1)","v":"'Fixed Income Investments'!$E$46"},0.2,{"$f":"IF(INDIRECT(D77)=E77,0,1)","v":0},null,null,null,null,null,null,{"$f":"ADDRESS(30,4,1,1,$M$1)","v":"'Concentration Risk'!$D$30"},"=SUMIFS('Schedule XXI'!$M$8:$M$57,'Schedule XXI'!$K$8:$K$57,$D$22,'Schedule XXI'!$L$8:$L$57,$B30)",{"$f":"IF(_xlfn.FORMULATEXT(INDIRECT(M77))=N77,0,1)","v":0},null,null,null,{"$f":"ADDRESS(35,4,1,1,$S$1)","v":"'LT Insurance Risk'!$D$35"},"=+'Schedule VII (EBS)'!F24",{"$f":"IF(_xlfn.FORMULATEXT(INDIRECT(S77))=T77,0,1)","v":0},{"$f":"ADDRESS(23,23,1,1,$V$1)","v":"'LT Variable Annuity Gte Risk'!$W$23"},"=IF(ISERROR(OR(E23*F23+H23*I23+K23*L23,N23*O23+Q23*R23+T23*U23)),0,MAX(E23*F23+H23*I23+K23*L23,N23*O23+Q23*R23+T23*U23))",{"$f":"IF(_xlfn.FORMULATEXT(INDIRECT(V77))=W77,0,1)","v":0}]
[{"$f":"ADDRESS(45,26,1,1,$A$1)","v":"Summary!$Z$45"},"=IF($N$60=0,1/13,Y45/$Y$54)",0,{"$f":"ADDRESS(46,6,1,1,$D$1)","v":"'Fixed Income Investments'!$F$46"},"=IF(D46<0,0,D46*E46)",{"$f":"IF(_xlfn.FORMULATEXT(INDIRECT(D78))=E78,0,1)","v":0},null,null,null,null,null,null,{"$f":"ADDRESS(30,5,1,1,$M$1)","v":"'Concentration Risk'!$E$30"},0.26300000000000001,{"$f":"IF(INDIRECT(M78)=N78,0,1)","v":0},null,null,null,{"$f":"ADDRESS(35,12,1,1,$S$1)","v":"'LT Insurance Risk'!$L$35"},0.04,{"$f":"IF(INDIRECT(S78)=T78,0,1)","v":0},{"$f":"ADDRESS(23,25,1,1,$V$1)","v":"'LT Variable Annuity Gte Risk'!$Y$23"},"='Schedule VIII (EBS)'!F16",{"$f":"IF(_xlfn.FORMULATEXT(INDIRECT(V78))=W78,0,1)","v":0}]
[{"$f":"ADDRESS(46,12,1,1,$A$1)","v":"Summary!$L$46"},"=K47",0,{"$f":"ADDRESS(47,4,1,1,$D$1)","v":"'Fixed Income Investments'!$D$47"},"=+'Schedule II (EBS)'!L19+'Schedule IIA (EBS)'!L19",{"$f":"IF(_xlfn.FORMULATEXT(INDIRECT(D79))=E79,0,1)","v":0},null,null,null,null,null,null,{"$f":"ADDRESS(30,6,1,1,$M$1)","v":"'Concentration Risk'!$F$30"},"=MAX(0,(D30*E30))",{"$f":"IF(_xlfn.FORMULATEXT(INDIRECT(M79))=N79,0,1)","v":0},null,null,null,{"$f":"ADDRESS(35,15,1,1,$S$1)","v":"'LT Insurance Risk'!$O$35"},"=D35*L35",{"$f":"IF(_xlfn.FORMULATEXT(INDIRECT(S79))=T79,0,1)","v":0},{"$f":"ADDRESS(23,27,1,1,$V$1)","v":"'LT Variable Annuity Gte Risk'!$AA$23"},"=MAX(0,W23-Y23)",{"$f":"IF(_xlfn.FORMULATEXT(INDIRECT(V79))=W79,0,1)","v":0}]
[{"$f":"ADDRESS(46,14,1,1,$A$1)","v":"Summary!$N$46"},"=M47",0,{"$f":"ADDRESS(47,5,1,1,$D$1)","v":"'Fixed Income Investments'!$E$47"},0.3,{"$f":"IF(INDIRECT(D80)=E80,0,1)","v":0},null,null,null,null,null,null,{"$f":"ADDRESS(31,2,1,1,$M$1)","v":"'Concentration Risk'!$B$31"},"BSCR Rating 8",{"$f":"IF(INDIRECT(M80)=N80,0,1)","v":0},null,null,null,{"$f":"ADDRESS(36,4,1,1,$S$1)","v":"'LT Insurance Risk'!$D$36"},"=+'Schedule VII (EBS)'!F25",{"$f":"IF(_xlfn.FORMULATEXT(INDIRECT(S80))=T80,0,1)","v":0},{"$f":"ADDRESS(26,5,1,1,$V$1)","v":"'LT Variable Annuity Gte Risk'!$E$26"},"='Schedule VIII (EBS)'!H16",{"$f":"IF(_xlfn.FORMULATEXT(INDIRECT(V80))=W80,0,1)","v":0}]
[{"$f":"ADDRESS(46,21,1,1,$A$1)","v":"Summary!$U$46"},"=G50",0,{"$f":"ADDRESS(47,6,1,1,$D$1)","v":"'Fixed Income Investments'!$F$47"},"=IF(D47<0,0,D47*E47)",{"$f":"IF(_xlfn.FORMULATEXT(INDIRECT(D81))=E81,0,1)","v":0},null,null,null,null,null,null,{"$f":"ADDRESS(31,4,1,1,$M$1)","v":"'Concentration Risk'!$D$31"},"=SUMIFS('Schedule XXI'!$M$8:$M$57,'Schedule XXI'!$K$8:$K$57,$D$22,'Schedule XXI'!$L$8:$L$57,$B31)",{"$f":"IF(_xlfn.FORMULATEXT(INDIRECT(M81))=N81,0,1)","v":0},null,null,null,{"$f":"ADDRESS(36,12,1,1,$S$1)","v":"'LT Insurance Risk'!$L$36"},0.05,{"$f":"IF(INDIRECT(S81)=T81,0,1)","v":0},{"$f":"ADDRESS(26,6,1,1,$V$1)","v":"'LT Variable Annuity Gte Risk'!$F$26"},3.2500000000000001E-2,{"$f":"IF(INDIRECT(V81)=W81,0,1)","v":0}]
[{"$f":"ADDRESS(46,23,1,1,$A$1)","v":"Summary!$W$46"},"=IF($G$60=0,1/13,U46/$U$54)",0,{"$f":"ADDRESS(48,4,1,1,$D$1)","v":"'Fixed Income Investments'!$D$48"},"=+'Schedule II (EBS)'!L20+'Schedule IIA (EBS)'!L20",{"$f":"IF(_xlfn.FORMULATEXT(INDIRECT(D82))=E82,0,1)","v":0},null,null,null,null,null,null,{"$f":"ADDRESS(31,5,1,1,$M$1)","v":"'Concentration Risk'!$E$31"},0.35,{"$f":"IF(INDIRECT(M82)=N82,0,1)","v":0},null,null,null,{"$f":"ADDRESS(36,15,1,1,$S$1)","v":"'LT Insurance Risk'!$O$36"},"=D36*L36",{"$f":"IF(_xlfn.FORMULATEXT(INDIRECT(S82))=T82,0,1)","v":0},{"$f":"ADDRESS(26,8,1,1,$V$1)","v":"'LT Variable Annuity Gte Risk'!$H$26"},"='Schedule VIII (EBS)'!J16",{"$f":"IF(_xlfn.FORMULATEXT(INDIRECT(V82))=W82,0,1)","v":0}]
[{"$f":"ADDRESS(46,25,1,1,$A$1)","v":"Summary!$Y$46"},"=M50",0,{"$f":"ADDRESS(48,5,1,1,$D$1)","v":"'Fixed Income Investments'!$E$48"},0.35,{"$f":"IF(INDIRECT(D83)=E83,0,1)","v":0},null,null,null,null,null,null,{"$f":"ADDRESS(31,6,1,1,$M$1)","v":"'Concentration Risk'!$F$31"},"=MAX(0,(D31*E31))",{"$f":"IF(_xlfn.FORMULATEXT(INDIRECT(M83))=N83,0,1)","v":0},null,null,null,{"$f":"ADDRESS(37,4,1,1,$S$1)","v":"'LT Insurance Risk'!$D$37"},"=+'Schedule VII (EBS)'!F26",{"$f":"IF(_xlfn.FORMULATEXT(INDIRECT(S83))=T83,0,1)","v":0},{"$f":"ADDRESS(26,9,1,1,$V$1)","v":"'LT Variable Annuity Gte Risk'!$I$26"},4.2500000000000003E-2,{"$f":"IF(INDIRECT(V83)=W83,0,1)","v":0}]
[{"$f":"ADDRESS(46,26,1,1,$A$1)","v":"Summary!$Z$46"},"=IF($N$60=0,1/13,Y46/$Y$54)",0,{"$f":"ADDRESS(48,6,1,1,$D$1)","v":"'Fixed Income Investments'!$F$48"},"=IF(D48<0,0,D48*E48)",{"$f":"IF(_xlfn.FORMULATEXT(INDIRECT(D84))=E84,0,1)","v":0},null,null,null,null,null,null,{"$f":"ADDRESS(33,4,1,1,$M$1)","v":"'Concentration Risk'!$D$33"},"=SUM(D23:D31)",{"$f":"IF(_xlfn.FORMULATEXT(INDIRECT(M84))=N84,0,1)","v":0},null,null,null,{"$f":"ADDRESS(37,12,1,1,$S$1)","v":"'LT Insurance Risk'!$L$37"},0.06,{"$f":"IF(INDIRECT(S84)=T84,0,1)","v":0},{"$f":"ADDRESS(26,11,1,1,$V$1)","v":"'LT Variable Annuity Gte Risk'!$K$26"},"='Schedule VIII (EBS)'!L16",{"$f":"IF(_xlfn.FORMULATEXT(INDIRECT(V84))=W84,0,1)","v":0}]
[{"$f":"ADDRESS(47,7,1,1,$A$1)","v":"Summary!$G$47"},"=ROUND('Credit Risk'!F45,$N$153)",0,{"$f":"ADDRESS(51,4,1,1,$D$1)","v":"'Fixed Income Investments'!$D$51"},"=SUM(D41:D48)",{"$f":"IF(_xlfn.FORMULATEXT(INDIRECT(D85))=E85,0,1)","v":0},null,null,null,null,null,null,{"$f":"ADDRESS(33,6,1,1,$M$1)","v":"'Concentration Risk'!$F$33"},"=SUM(F23:F31)",{"$f":"IF(_xlfn.FORMULATEXT(INDIRECT(M85))=N85,0,1)","v":0},null,null,null,{"$f":"ADDRESS(37,15,1,1,$S$1)","v":"'LT Insurance Risk'!$O$37"},"=D37*L37",{"$f":"IF(_xlfn.FORMULATEXT(INDIRECT(S85))=T85,0,1)","v":0},{"$f":"ADDRESS(26,12,1,1,$V$1)","v":"'LT Variable Annuity Gte Risk'!$L$26"},0.05,{"$f":"IF(INDIRECT(V85)=W85,0,1)","v":0}]
[{"$f":"ADDRESS(47,11,1,1,$A$1)","v":"Summary!$K$47"},"=ROUND('Credit Risk (Revised)'!H59,$N$153)",0,{"$f":"ADDRESS(51,6,1,1,$D$1)","v":"'Fixed Income Investments'!$F$51"},"=MAX(0,SUM(F41:F48))",{"$f":"IF(_xlfn.FORMULATEXT(INDIRECT(D86))=E86,0,1)","v":0},null,null,null,null,null,null,{"$f":"ADDRESS(35,4,1,1,$M$1)","v":"'Concentration Risk'!$D$35"},"Residential Mortgage-Backed Securities",{"$f":"IF(INDIRECT(M86)=N86,0,1)","v":0},null,null,null,{"$f":"ADDRESS(38,4,1,1,$S$1)","v":"'LT Insurance Risk'!$D$38"},"=+'Schedule VII (EBS)'!F27",{"$f":"IF(_xlfn.FORMULATEXT(INDIRECT(S86))=T86,0,1)","v":0},{"$f":"ADDRESS(26,14,1,1,$V$1)","v":"'LT Variable Annuity Gte Risk'!$N$26"},"='Schedule VIII (EBS)'!N16",{"$f":"IF(_xlfn.FORMULATEXT(INDIRECT(V86))=W86,0,1)","v":0}]
[{"$f":"ADDRESS(47,13,1,1,$A$1)","v":"Summary!$M$47"},"=ROUND('Credit Risk (Revised)'!H59,$N$153)",0,{"$f":"ADDRESS(56,4,1,1,$D$1)","v":"'Fixed Income Investments'!$D$56"},"='Schedule II (EBS)'!P12+'Schedule IIA (EBS)'!P12",{"$f":"IF(_xlfn.FORMULATEXT(INDIRECT(D87))=E87,0,1)","v":0},null,null,null,null,null,null,{"$f":"ADDRESS(36,2,1,1,$M$1)","v":"'Concentration Risk'!$B$36"},"BSCR Rating 0",{"$f":"IF(INDIRECT(M87)=N87,0,1)","v":0},null,null,null,{"$f":"ADDRESS(38,12,1,1,$S$1)","v":"'LT Insurance Risk'!$L$38"},7.0000000000000007E-2,{"$f":"IF(INDIRECT(S87)=T87,0,1)","v":0},{"$f":"ADDRESS(26,15,1,1,$V$1)","v":"'LT Variable Annuity Gte Risk'!$O$26"},0.6,{"$f":"IF(INDIRECT(V87)=W87,0,1)","v":0}]
[{"$f":"ADDRESS(47,21,1,1,$A$1)","v":"Summary!$U$47"},"=G51",0,{"$f":"ADDRESS(56,5,1,1,$D$1)","v":"'Fixed Income Investments'!$E$56"},0,{"$f":"IF(INDIRECT(D88)=E88,0,1)","v":0},null,null,null,null,null,null,{"$f":"ADDRESS(36,4,1,1,$M$1)","v":"'Concentration Risk'!$D$36"},"=SUMIFS('Schedule XXI'!$M$8:$M$57,'Schedule XXI'!$K$8:$K$57,$D$35,'Schedule XXI'!$L$8:$L$57,$B36)",{"$f":"IF(_xlfn.FORMULATEXT(INDIRECT(M88))=N88,0,1)","v":0},null,null,null,{"$f":"ADDRESS(38,15,1,1,$S$1)","v":"'LT Insurance Risk'!$O$38"},"=D38*L38",{"$f":"IF(_xlfn.FORMULATEXT(INDIRECT(S88))=T88,0,1)","v":0},{"$f":"ADDRESS(26,17,1,1,$V$1)","v":"'LT Variable Annuity Gte Risk'!$Q$26"},"=+'Schedule VIII (EBS)'!P16",{"$f":"IF(_xlfn.FORMULATEXT(INDIRECT(V88))=W88,0,1)","v":0}]
[{"$f":"ADDRESS(47,23,1,1,$A$1)","v":"Summary!$W$47"},"=IF($G$60=0,1/13,U47/$U$54)",0,{"$f":"ADDRESS(56,6,1,1,$D$1)","v":"'Fixed Income Investments'!$F$56"},"=IF(D56<0,0,D56*E56)",{"$f":"IF(_xlfn.FORMULATEXT(INDIRECT(D89))=E89,0,1)","v":0},null,null,null,null,null,null,{"$f":"ADDRESS(36,5,1,1,$M$1)","v":"'Concentration Risk'!$E$36"},0,{"$f":"IF(INDIRECT(M89)=N89,0,1)","v":0},null,null,null,{"$f":"ADDRESS(41,4,1,1,$S$1)","v":"'LT Insurance Risk'!$D$41"},"='Schedule VII (EBS)'!F38",{"$f":"IF(_xlfn.FORMULATEXT(INDIRECT(S89))=T89,0,1)","v":0},{"$f":"ADDRESS(26,18,1,1,$V$1)","v":"'LT Variable Annuity Gte Risk'!$R$26"},0.75,{"$f":"IF(INDIRECT(V89)=W89,0,1)","v":0}]
[{"$f":"ADDRESS(47,25,1,1,$A$1)","v":"Summary!$Y$47"},"=M51",0,{"$f":"ADDRESS(57,4,1,1,$D$1)","v":"'Fixed Income Investments'!$D$57"},"='Schedule II (EBS)'!P13+'Schedule IIA (EBS)'!P13",{"$f":"IF(_xlfn.FORMULATEXT(INDIRECT(D90))=E90,0,1)","v":0},null,null,null,null,null,null,{"$f":"ADDRESS(36,6,1,1,$M$1)","v":"'Concentration Risk'!$F$36"},"=MAX(0,(D36*E36))",{"$f":"IF(_xlfn.FORMULATEXT(INDIRECT(M90))=N90,0,1)","v":0},null,null,null,{"$f":"ADDRESS(41,12,1,1,$S$1)","v":"'LT Insurance Risk'!$L$41"},7.0000000000000007E-2,{"$f":"IF(INDIRECT(S90)=T90,0,1)","v":0},{"$f":"ADDRESS(26,20,1,1,$V$1)","v":"'LT Variable Annuity Gte Risk'!$T$26"},"=+'Schedule VIII (EBS)'!R16",{"$f":"IF(_xlfn.FORMULATEXT(INDIRECT(V90))=W90,0,1)","v":0}]
[{"$f":"ADDRESS(47,26,1,1,$A$1)","v":"Summary!$Z$47"},"=IF($N$60=0,1/13,Y47/$Y$54)",0,{"$f":"ADDRESS(57,5,1,1,$D$1)","v":"'Fixed Income Investments'!$E$57"},4.0000000000000001E-3,{"$f":"IF(INDIRECT(D91)=E91,0,1)","v":0},null,null,null,null,null,null,{"$f":"ADDRESS(37,2,1,1,$M$1)","v":"'Concentration Risk'!$B$37"},"BSCR Rating 1",{"$f":"IF(INDIRECT(M91)=N91,0,1)","v":0},null,null,null,{"$f":"ADDRESS(41,15,1,1,$S$1)","v":"'LT Insurance Risk'!$O$41"},"=D41*L41",{"$f":"IF(_xlfn.FORMULATEXT(INDIRECT(S91))=T91,0,1)","v":0},{"$f":"ADDRESS(26,21,1,1,$V$1)","v":"'LT Variable Annuity Gte Risk'!$U$26"},0.9,{"$f":"IF(INDIRECT(V91)=W91,0,1)","v":0}]
[{"$f":"ADDRESS(48,21,1,1,$A$1)","v":"Summary!$U$48"},"=G52",0,{"$f":"ADDRESS(57,6,1,1,$D$1)","v":"'Fixed Income Investments'!$F$57"},"=IF(D57<0,0,D57*E57)",{"$f":"IF(_xlfn.FORMULATEXT(INDIRECT(D92))=E92,0,1)","v":0},null,null,null,null,null,null,{"$f":"ADDRESS(37,4,1,1,$M$1)","v":"'Concentration Risk'!$D$37"},"=SUMIFS('Schedule XXI'!$M$8:$M$57,'Schedule XXI'!$K$8:$K$57,$D$35,'Schedule XXI'!$L$8:$L$57,$B37)",{"$f":"IF(_xlfn.FORMULATEXT(INDIRECT(M92))=N92,0,1)","v":0},null,null,null,{"$f":"ADDRESS(42,4,1,1,$S$1)","v":"'LT Insurance Risk'!$D$42"},"='Schedule VII (EBS)'!F39",{"$f":"IF(_xlfn.FORMULATEXT(INDIRECT(S92))=T92,0,1)","v":0},{"$f":"ADDRESS(26,23,1,1,$V$1)","v":"'LT Variable Annuity Gte Risk'!$W$26"},"=IF(ISERROR(OR(E26*F26+H26*I26+K26*L26,N26*O26+Q26*R26+T26*U26)),0,MAX(E26*F26+H26*I26+K26*L26,N26*O26+Q26*R26+T26*U26))",{"$f":"IF(_xlfn.FORMULATEXT(INDIRECT(V92))=W92,0,1)","v":0}]
[{"$f":"ADDRESS(48,23,1,1,$A$1)","v":"Summary!$W$48"},"=IF($G$60=0,1/13,U48/$U$54)",0,{"$f":"ADDRESS(58,4,1,1,$D$1)","v":"'Fixed Income Investments'!$D$58"},"='Schedule II (EBS)'!P14+'Schedule IIA (EBS)'!P14",{"$f":"IF(_xlfn.FORMULATEXT(INDIRECT(D93))=E93,0,1)","v":0},null,null,null,null,null,null,{"$f":"ADDRESS(37,5,1,1,$M$1)","v":"'Concentration Risk'!$E$37"},6.0000000000000001E-3,{"$f":"IF(INDIRECT(M93)=N93,0,1)","v":0},null,null,null,{"$f":"ADDRESS(42,12,1,1,$S$1)","v":"'LT Insurance Risk'!$L$42"},0.1,{"$f":"IF(INDIRECT(S93)=T93,0,1)","v":0},{"$f":"ADDRESS(26,25,1,1,$V$1)","v":"'LT Variable Annuity Gte Risk'!$Y$26"},"='Schedule VIII (EBS)'!F16",{"$f":"IF(_xlfn.FORMULATEXT(INDIRECT(V93))=W93,0,1)","v":0}]
[{"$f":"ADDRESS(48,25,1,1,$A$1)","v":"Summary!$Y$48"},"=M52",0,{"$f":"ADDRESS(58,5,1,1,$D$1)","v":"'Fixed Income Investments'!$E$58"},8.0000000000000002E-3,{"$f":"IF(INDIRECT(D94)=E94,0,1)","v":0},null,null,null,null,null,null,{"$f":"ADDRESS(37,6,1,1,$M$1)","v":"'Concentration Risk'!$F$37"},"=MAX(0,(D37*E37))",{"$f":"IF(_xlfn.FORMULATEXT(INDIRECT(M94))=N94,0,1)","v":0},null,null,null,{"$f":"ADDRESS(42,15,1,1,$S$1)","v":"'LT Insurance Risk'!$O$42"},"=D42*L42",{"$f":"IF(_xlfn.FORMULATEXT(INDIRECT(S94))=T94,0,1)","v":0},{"$f":"ADDRESS(26,27,1,1,$V$1)","v":"'LT Variable Annuity Gte Risk'!$AA$26"},"=MAX(0,W26-Y26)",{"$f":"IF(_xlfn.FORMULATEXT(INDIRECT(V94))=W94,0,1)","v":0}]
[{"$f":"ADDRESS(48,26,1,1,$A$1)","v":"Summary!$Z$48"},"=IF($N$60=0,1/13,Y48/$Y$54)",0,{"$f":"ADDRESS(58,6,1,1,$D$1)","v":"'Fixed Income Investments'!$F$58"},"=IF(D58<0,0,D58*E58)",{"$f":"IF(_xlfn.FORMULATEXT(INDIRECT(D95))=E95,0,1)","v":0},null,null,null,null,null,null,{"$f":"ADDRESS(38,2,1,1,$M$1)","v":"'Concentration Risk'!$B$38"},"BSCR Rating 2",{"$f":"IF(INDIRECT(M95)=N95,0,1)","v":0},null,null,null,{"$f":"ADDRESS(46,4,1,1,$S$1)","v":"'LT Insurance Risk'!$D$46"},"='Schedule VII (EBS)'!H33",{"$f":"IF(_xlfn.FORMULATEXT(INDIRECT(S95))=T95,0,1)","v":0},{"$f":"ADDRESS(27,5,1,1,$V$1)","v":"'LT Variable Annuity Gte Risk'!$E$27"},"='Schedule VIII (EBS)'!H34",{"$f":"IF(_xlfn.FORMULATEXT(INDIRECT(V95))=W95,0,1)","v":0}]
[{"$f":"ADDRESS(49,12,1,1,$A$1)","v":"Summary!$L$49"},"{=SQRT(MMULT(TRANSPOSE(K50:K56),MMULT('Correlation Matrix'!I7:O13,K50:K56)))}",0,{"$f":"ADDRESS(59,4,1,1,$D$1)","v":"'Fixed Income Investments'!$D$59"},"='Schedule II (EBS)'!P15+'Schedule IIA (EBS)'!P15",{"$f":"IF(_xlfn.FORMULATEXT(INDIRECT(D96))=E96,0,1)","v":0},null,null,null,null,null,null,{"$f":"ADDRESS(38,4,1,1,$M$1)","v":"'Concentration Risk'!$D$38"},"=SUMIFS('Schedule XXI'!$M$8:$M$57,'Schedule XXI'!$K$8:$K$57,$D$35,'Schedule XXI'!$L$8:$L$57,$B38)",{"$f":"IF(_xlfn.FORMULATEXT(INDIRECT(M96))=N96,0,1)","v":0},null,null,null,{"$f":"ADDRESS(46,5,1,1,$S$1)","v":"'LT Insurance Risk'!$E$46"},"='Schedule VII (EBS)'!I33",{"$f":"IF(_xlfn.FORMULATEXT(INDIRECT(S96))=T96,0,1)","v":0},{"$f":"ADDRESS(27,6,1,1,$V$1)","v":"'LT Variable Annuity Gte Risk'!$F$27"},3.2500000000000001E-2,{"$f":"IF(INDIRECT(V96)=W96,0,1)","v":0}]
[{"$f":"ADDRESS(49,14,1,1,$A$1)","v":"Summary!$N$49"},"{=SQRT(MMULT(TRANSPOSE(M50:M56),MMULT('Correlation Matrix'!I7:O13,M50:M56)))}",0,{"$f":"ADDRESS(59,5,1,1,$D$1)","v":"'Fixed Income Investments'!$E$59"},1.4999999999999999E-2,{"$f":"IF(INDIRECT(D97)=E97,0,1)","v":0},null,null,null,null,null,null,{"$f":"ADDRESS(38,5,1,1,$M$1)","v":"'Concentration Risk'!$E$38"},1.2E-2,{"$f":"IF(INDIRECT(M97)=N97,0,1)","v":0},null,null,null,{"$f":"ADDRESS(46,12,1,1,$S$1)","v":"'LT Insurance Risk'!$L$46"},"=M46*0.75",{"$f":"IF(_xlfn.FORMULATEXT(INDIRECT(S97))=T97,0,1)","v":0},{"$f":"ADDRESS(27,8,1,1,$V$1)","v":"'LT Variable Annuity Gte Risk'!$H$27"},"='Schedule VIII (EBS)'!J34",{"$f":"IF(_xlfn.FORMULATEXT(INDIRECT(V97))=W97,0,1)","v":0}]
[{"$f":"ADDRESS(49,21,1,1,$A$1)","v":"Summary!$U$49"},"=G53",0,{"$f":"ADDRESS(59,6,1,1,$D$1)","v":"'Fixed Income Investments'!$F$59"},"=IF(D59<0,0,D59*E59)",{"$f":"IF(_xlfn.FORMULATEXT(INDIRECT(D98))=E98,0,1)","v":0},null,null,null,null,null,null,{"$f":"ADDRESS(38,6,1,1,$M$1)","v":"'Concentration Risk'!$F$38"},"=MAX(0,(D38*E38))",{"$f":"IF(_xlfn.FORMULATEXT(INDIRECT(M98))=N98,0,1)","v":0},null,null,null,{"$f":"ADDRESS(46,13,1,1,$S$1)","v":"'LT Insurance Risk'!$M$46"},0.12,{"$f":"IF(INDIRECT(S98)=T98,0,1)","v":0},{"$f":"ADDRESS(27,9,1,1,$V$1)","v":"'LT Variable Annuity Gte Risk'!$I$27"},4.2500000000000003E-2,{"$f":"IF(INDIRECT(V98)=W98,0,1)","v":0}]
[{"$f":"ADDRESS(49,23,1,1,$A$1)","v":"Summary!$W$49"},"=IF($G$60=0,1/13,U49/$U$54)",0,{"$f":"ADDRESS(60,4,1,1,$D$1)","v":"'Fixed Income Investments'!$D$60"},"='Schedule II (EBS)'!P16+'Schedule IIA (EBS)'!P16",{"$f":"IF(_xlfn.FORMULATEXT(INDIRECT(D99))=E99,0,1)","v":0},null,null,null,null,null,null,{"$f":"ADDRESS(39,2,1,1,$M$1)","v":"'Concentration Risk'!$B$39"},"BSCR Rating 3",{"$f":"IF(INDIRECT(M99)=N99,0,1)","v":0},null,null,null,{"$f":"ADDRESS(46,15,1,1,$S$1)","v":"'LT Insurance Risk'!$O$46"},"=D46*L46+E46*M46",{"$f":"IF(_xlfn.FORMULATEXT(INDIRECT(S99))=T99,0,1)","v":0},{"$f":"ADDRESS(27,11,1,1,$V$1)","v":"'LT Variable Annuity Gte Risk'!$K$27"},"='Schedule VIII (EBS)'!L34",{"$f":"IF(_xlfn.FORMULATEXT(INDIRECT(V99))=W99,0,1)","v":0}]
[{"$f":"ADDRESS(49,25,1,1,$A$1)","v":"Summary!$Y$49"},"=M53",{"$f":"IF(_xlfn.FORMULATEXT(INDIRECT(A100))=B100,0,1)","v":0},{"$f":"ADDRESS(60,5,1,1,$D$1)","v":"'Fixed Income Investments'!$E$60"},0.03,{"$f":"IF(INDIRECT(D100)=E100,0,1)","v":0},null,null,null,null,null,null,{"$f":"ADDRESS(39,4,1,1,$M$1)","v":"'Concentration Risk'!$D$39"},"=SUMIFS('Schedule XXI'!$M$8:$M$57,'Schedule XXI'!$K$8:$K$57,$D$35,'Schedule XXI'!$L$8:$L$57,$B39)",{"$f":"IF(_xlfn.FORMULATEXT(INDIRECT(M100))=N100,0,1)","v":0},null,null,null,{"$f":"ADDRESS(47,4,1,1,$S$1)","v":"'LT Insurance Risk'!$D$47"},"='Schedule VII (EBS)'!H34",{"$f":"IF(_xlfn.FORMULATEXT(INDIRECT(S100))=T100,0,1)","v":0},{"$f":"ADDRESS(27,12,1,1,$V$1)","v":"'LT Variable Annuity Gte Risk'!$L$27"},0.05,{"$f":"IF(INDIRECT(V100)=W100,0,1)","v":0}]
[{"$f":"ADDRESS(49,26,1,1,$A$1)","v":"Summary!$Z$49"},"=IF($N$60=0,1/13,Y49/$Y$54)",0,{"$f":"ADDRESS(60,6,1,1,$D$1)","v":"'Fixed Income Investments'!$F$60"},"=IF(D60<0,0,D60*E60)",{"$f":"IF(_xlfn.FORMULATEXT(INDIRECT(D101))=E101,0,1)","v":0},null,null,null,null,null,null,{"$f":"ADDRESS(39,5,1,1,$M$1)","v":"'Concentration Risk'!$E$39"},0.02,{"$f":"IF(INDIRECT(M101)=N101,0,1)","v":0},null,null,null,{"$f":"ADDRESS(47,5,1,1,$S$1)","v":"'LT Insurance Risk'!$E$47"},"='Schedule VII (EBS)'!I34",{"$f":"IF(_xlfn.FORMULATEXT(INDIRECT(S101))=T101,0,1)","v":0},{"$f":"ADDRESS(27,23,1,1,$V$1)","v":"'LT Variable Annuity Gte Risk'!$W$27"},"=IF(ISERROR(OR(E27*F27+H27*I27+K27*L27,N27*O27+Q27*R27+T27*U27)),0,MAX(E27*F27+H27*I27+K27*L27,N27*O27+Q27*R27+T27*U27))",{"$f":"IF(_xlfn.FORMULATEXT(INDIRECT(V101))=W101,0,1)","v":0}]
[{"$f":"ADDRESS(50,7,1,1,$A$1)","v":"Summary!$G$50"},"=ROUND('LT Insurance Risk'!O60,$N$153)",0,{"$f":"ADDRESS(61,4,1,1,$D$1)","v":"'Fixed Income Investments'!$D$61"},"='Schedule II (EBS)'!P17+'Schedule IIA (EBS)'!P17",{"$f":"IF(_xlfn.FORMULATEXT(INDIRECT(D102))=E102,0,1)","v":0},null,null,null,null,null,null,{"$f":"ADDRESS(39,6,1,1,$M$1)","v":"'Concentration Risk'!$F$39"},"=MAX(0,(D39*E39))",{"$f":"IF(_xlfn.FORMULATEXT(INDIRECT(M102))=N102,0,1)","v":0},null,null,null,{"$f":"ADDRESS(47,12,1,1,$S$1)","v":"'LT Insurance Risk'!$L$47"},"=M47*0.75",{"$f":"IF(_xlfn.FORMULATEXT(INDIRECT(S102))=T102,0,1)","v":0},{"$f":"ADDRESS(27,25,1,1,$V$1)","v":"'LT Variable Annuity Gte Risk'!$Y$27"},"='Schedule VIII (EBS)'!F17",{"$f":"IF(_xlfn.FORMULATEXT(INDIRECT(V102))=W102,0,1)","v":0}]
[{"$f":"ADDRESS(50,11,1,1,$A$1)","v":"Summary!$K$50"},"=ROUND('LT Insurance Risk'!O60,$N$153)",0,{"$f":"ADDRESS(61,5,1,1,$D$1)","v":"'Fixed Income Investments'!$E$61"},0.08,{"$f":"IF(INDIRECT(D103)=E103,0,1)","v":0},null,null,null,null,null,null,{"$f":"ADDRESS(40,2,1,1,$M$1)","v":"'Concentration Risk'!$B$40"},"BSCR Rating 4",{"$f":"IF(INDIRECT(M103)=N103,0,1)","v":0},null,null,null,{"$f":"ADDRESS(47,13,1,1,$S$1)","v":"'LT Insurance Risk'!$M$47"},0.2,{"$f":"IF(INDIRECT(S103)=T103,0,1)","v":0},{"$f":"ADDRESS(27,27,1,1,$V$1)","v":"'LT Variable Annuity Gte Risk'!$AA$27"},"=MAX(0,W27-Y27)",{"$f":"IF(_xlfn.FORMULATEXT(INDIRECT(V103))=W103,0,1)","v":0}]
[{"$f":"ADDRESS(50,13,1,1,$A$1)","v":"Summary!$M$50"},"=ROUND('LT Insurance Risk'!O60,$N$153)",0,{"$f":"ADDRESS(61,6,1,1,$D$1)","v":"'Fixed Income Investments'!$F$61"},"=IF(D61<0,0,D61*E61)",{"$f":"IF(_xlfn.FORMULATEXT(INDIRECT(D104))=E104,0,1)","v":0},null,null,null,null,null,null,{"$f":"ADDRESS(40,4,1,1,$M$1)","v":"'Concentration Risk'!$D$40"},"=SUMIFS('Schedule XXI'!$M$8:$M$57,'Schedule XXI'!$K$8:$K$57,$D$35,'Schedule XXI'!$L$8:$L$57,$B40)",{"$f":"IF(_xlfn.FORMULATEXT(INDIRECT(M104))=N104,0,1)","v":0},null,null,null,{"$f":"ADDRESS(47,15,1,1,$S$1)","v":"'LT Insurance Risk'!$O$47"},"=D47*L47+E47*M47",{"$f":"IF(_xlfn.FORMULATEXT(INDIRECT(S104))=T104,0,1)","v":0},{"$f":"ADDRESS(30,5,1,1,$V$1)","v":"'LT Variable Annuity Gte Risk'!$E$30"},"='Schedule VIII (EBS)'!H17",{"$f":"IF(_xlfn.FORMULATEXT(INDIRECT(V104))=W104,0,1)","v":0}]
[{"$f":"ADDRESS(50,21,1,1,$A$1)","v":"Summary!$U$50"},"=G54",0,{"$f":"ADDRESS(62,4,1,1,$D$1)","v":"'Fixed Income Investments'!$D$62"},"='Schedule II (EBS)'!P18+'Schedule IIA (EBS)'!P18",{"$f":"IF(_xlfn.FORMULATEXT(INDIRECT(D105))=E105,0,1)","v":0},null,null,null,null,null,null,{"$f":"ADDRESS(40,5,1,1,$M$1)","v":"'Concentration Risk'!$E$40"},0.04,{"$f":"IF(INDIRECT(M105)=N105,0,1)","v":0},null,null,null,{"$f":"ADDRESS(48,4,1,1,$S$1)","v":"'LT Insurance Risk'!$D$48"},"='Schedule VII (EBS)'!H35",{"$f":"IF(_xlfn.FORMULATEXT(INDIRECT(S105))=T105,0,1)","v":0},{"$f":"ADDRESS(30,6,1,1,$V$1)","v":"'LT Variable Annuity Gte Risk'!$F$30"},0,{"$f":"IF(INDIRECT(V105)=W105,0,1)","v":0}]
[{"$f":"ADDRESS(50,23,1,1,$A$1)","v":"Summary!$W$50"},"=IF($G$60=0,1/13,U50/$U$54)",0,{"$f":"ADDRESS(62,5,1,1,$D$1)","v":"'Fixed Income Investments'!$E$62"},0.15,{"$f":"IF(INDIRECT(D106)=E106,0,1)","v":0},null,null,null,null,null,null,{"$f":"ADDRESS(40,6,1,1,$M$1)","v":"'Concentration Risk'!$F$40"},"=MAX(0,(D40*E40))",{"$f":"IF(_xlfn.FORMULATEXT(INDIRECT(M106))=N106,0,1)","v":0},null,null,null,{"$f":"ADDRESS(48,5,1,1,$S$1)","v":"'LT Insurance Risk'!$E$48"},"='Schedule VII (EBS)'!I35",{"$f":"IF(_xlfn.FORMULATEXT(INDIRECT(S106))=T106,0,1)","v":0},{"$f":"ADDRESS(30,8,1,1,$V$1)","v":"'LT Variable Annuity Gte Risk'!$H$30"},"='Schedule VIII (EBS)'!J17",{"$f":"IF(_xlfn.FORMULATEXT(INDIRECT(V106))=W106,0,1)","v":0}]
[{"$f":"ADDRESS(50,25,1,1,$A$1)","v":"Summary!$Y$50"},"=M54",0,{"$f":"ADDRESS(62,6,1,1,$D$1)","v":"'Fixed Income Investments'!$F$62"},"=IF(D62<0,0,D62*E62)",{"$f":"IF(_xlfn.FORMULATEXT(INDIRECT(D107))=E107,0,1)","v":0},null,null,null,null,null,null,{"$f":"ADDRESS(41,2,1,1,$M$1)","v":"'Concentration Risk'!$B$41"},"BSCR Rating 5",{"$f":"IF(INDIRECT(M107)=N107,0,1)","v":0},null,null,null,{"$f":"ADDRESS(48,12,1,1,$S$1)","v":"'LT Insurance Risk'!$L$48"},"=M48*0.75",{"$f":"IF(_xlfn.FORMULATEXT(INDIRECT(S107))=T107,0,1)","v":0},{"$f":"ADDRESS(30,9,1,1,$V$1)","v":"'LT Variable Annuity Gte Risk'!$I$30"},5.0000000000000001E-3,{"$f":"IF(INDIRECT(V107)=W107,0,1)","v":0}]
[{"$f":"ADDRESS(50,26,1,1,$A$1)","v":"Summary!$Z$50"},"=IF($N$60=0,1/13,Y50/$Y$54)",0,{"$f":"ADDRESS(63,4,1,1,$D$1)","v":"'Fixed Income Investments'!$D$63"},"='Schedule II (EBS)'!P19+'Schedule IIA (EBS)'!P19",{"$f":"IF(_xlfn.FORMULATEXT(INDIRECT(D108))=E108,0,1)","v":0},null,null,null,null,null,null,{"$f":"ADDRESS(41,4,1,1,$M$1)","v":"'Concentration Risk'!$D$41"},"=SUMIFS('Schedule XXI'!$M$8:$M$57,'Schedule XXI'!$K$8:$K$57,$D$35,'Schedule XXI'!$L$8:$L$57,$B41)",{"$f":"IF(_xlfn.FORMULATEXT(INDIRECT(M108))=N108,0,1)","v":0},null,null,null,{"$f":"ADDRESS(48,13,1,1,$S$1)","v":"'LT Insurance Risk'!$M$48"},0.3,{"$f":"IF(INDIRECT(S108)=T108,0,1)","v":0},{"$f":"ADDRESS(30,11,1,1,$V$1)","v":"'LT Variable Annuity Gte Risk'!$K$30"},"='Schedule VIII (EBS)'!L17",{"$f":"IF(_xlfn.FORMULATEXT(INDIRECT(V108))=W108,0,1)","v":0}]
[{"$f":"ADDRESS(51,7,1,1,$A$1)","v":"Summary!$G$51"},"=ROUND('LT Insurance Risk'!O61,$N$153)",0,{"$f":"ADDRESS(63,5,1,1,$D$1)","v":"'Fixed Income Investments'!$E$63"},0.26300000000000001,{"$f":"IF(INDIRECT(D109)=E109,0,1)","v":0},null,null,null,null,null,null,{"$f":"ADDRESS(41,5,1,1,$M$1)","v":"'Concentration Risk'!$E$41"},0.11,{"$f":"IF(INDIRECT(M109)=N109,0,1)","v":0},null,null,null,{"$f":"ADDRESS(48,15,1,1,$S$1)","v":"'LT Insurance Risk'!$O$48"},"=D48*L48+E48*M48",{"$f":"IF(_xlfn.FORMULATEXT(INDIRECT(S109))=T109,0,1)","v":0},{"$f":"ADDRESS(30,12,1,1,$V$1)","v":"'LT Variable Annuity Gte Risk'!$L$30"},0.01,{"$f":"IF(INDIRECT(V109)=W109,0,1)","v":0}]
[{"$f":"ADDRESS(51,11,1,1,$A$1)","v":"Summary!$K$51"},"=ROUND('LT Insurance Risk'!O61,$N$153)",0,{"$f":"ADDRESS(63,6,1,1,$D$1)","v":"'Fixed Income Investments'!$F$63"},"=IF(D63<0,0,D63*E63)",{"$f":"IF(_xlfn.FORMULATEXT(INDIRECT(D110))=E110,0,1)","v":0},null,null,null,null,null,null,{"$f":"ADDRESS(41,6,1,1,$M$1)","v":"'Concentration Risk'!$F$41"},"=MAX(0,(D41*E41))",{"$f":"IF(_xlfn.FORMULATEXT(INDIRECT(M110))=N110,0,1)","v":0},null,null,null,{"$f":"ADDRESS(51,4,1,1,$S$1)","v":"'LT Insurance Risk'!$D$51"},"='Schedule VII (EBS)'!J37",{"$f":"IF(_xlfn.FORMULATEXT(INDIRECT(S110))=T110,0,1)","v":0},{"$f":"ADDRESS(30,14,1,1,$V$1)","v":"'LT Variable Annuity Gte Risk'!$N$30"},"='Schedule VIII (EBS)'!N17",{"$f":"IF(_xlfn.FORMULATEXT(INDIRECT(V110))=W110,0,1)","v":0}]
[{"$f":"ADDRESS(51,13,1,1,$A$1)","v":"Summary!$M$51"},"=ROUND('LT Insurance Risk'!O61,$N$153)",0,{"$f":"ADDRESS(64,4,1,1,$D$1)","v":"'Fixed Income Investments'!$D$64"},"='Schedule II (EBS)'!P20+'Schedule IIA (EBS)'!P20",{"$f":"IF(_xlfn.FORMULATEXT(INDIRECT(D111))=E111,0,1)","v":0},null,null,null,null,null,null,{"$f":"ADDRESS(42,2,1,1,$M$1)","v":"'Concentration Risk'!$B$42"},"BSCR Rating 6",{"$f":"IF(INDIRECT(M111)=N111,0,1)","v":0},null,null,null,{"$f":"ADDRESS(51,12,1,1,$S$1)","v":"'LT Insurance Risk'!$L$51"},0.12,{"$f":"IF(INDIRECT(S111)=T111,0,1)","v":0},{"$f":"ADDRESS(30,15,1,1,$V$1)","v":"'LT Variable Annuity Gte Risk'!$O$30"},0.01,{"$f":"IF(INDIRECT(V111)=W111,0,1)","v":0}]
[{"$f":"ADDRESS(51,21,1,1,$A$1)","v":"Summary!$U$51"},"=G55",0,{"$f":"ADDRESS(64,5,1,1,$D$1)","v":"'Fixed Income Investments'!$E$64"},0.35,{"$f":"IF(INDIRECT(D112)=E112,0,1)","v":0},null,null,null,null,null,null,{"$f":"ADDRESS(42,4,1,1,$M$1)","v":"'Concentration Risk'!$D$42"},"=SUMIFS('Schedule XXI'!$M$8:$M$57,'Schedule XXI'!$K$8:$K$57,$D$35,'Schedule XXI'!$L$8:$L$57,$B42)",{"$f":"IF(_xlfn.FORMULATEXT(INDIRECT(M112))=N112,0,1)","v":0},null,null,null,{"$f":"ADDRESS(51,15,1,1,$S$1)","v":"'LT Insurance Risk'!$O$51"},"=D51*L51",{"$f":"IF(_xlfn.FORMULATEXT(INDIRECT(S112))=T112,0,1)","v":0},{"$f":"ADDRESS(30,17,1,1,$V$1)","v":"'LT Variable Annuity Gte Risk'!$Q$30"},"=+'Schedule VIII (EBS)'!P17",{"$f":"IF(_xlfn.FORMULATEXT(INDIRECT(V112))=W112,0,1)","v":0}]
[{"$f":"ADDRESS(51,23,1,1,$A$1)","v":"Summary!$W$51"},"=IF($G$60=0,1/13,U51/$U$54)",0,{"$f":"ADDRESS(64,6,1,1,$D$1)","v":"'Fixed Income Investments'!$F$64"},"=IF(D64<0,0,D64*E64)",{"$f":"IF(_xlfn.FORMULATEXT(INDIRECT(D113))=E113,0,1)","v":0},null,null,null,null,null,null,{"$f":"ADDRESS(42,5,1,1,$M$1)","v":"'Concentration Risk'!$E$42"},0.25,{"$f":"IF(INDIRECT(M113)=N113,0,1)","v":0},null,null,null,{"$f":"ADDRESS(55,4,1,1,$S$1)","v":"'LT Insurance Risk'!$D$55"},"='Schedule VII (EBS)'!J43",{"$f":"IF(_xlfn.FORMULATEXT(INDIRECT(S113))=T113,0,1)","v":0},{"$f":"ADDRESS(30,18,1,1,$V$1)","v":"'LT Variable Annuity Gte Risk'!$R$30"},0.09,{"$f":"IF(INDIRECT(V113)=W113,0,1)","v":0}]
[{"$f":"ADDRESS(51,25,1,1,$A$1)","v":"Summary!$Y$51"},"=M55",0,{"$f":"ADDRESS(66,4,1,1,$D$1)","v":"'Fixed Income Investments'!$D$66"},"=SUM(D56:D64)",{"$f":"IF(_xlfn.FORMULATEXT(INDIRECT(D114))=E114,0,1)","v":0},null,null,null,null,null,null,{"$f":"ADDRESS(42,6,1,1,$M$1)","v":"'Concentration Risk'!$F$42"},"=MAX(0,(D42*E42))",{"$f":"IF(_xlfn.FORMULATEXT(INDIRECT(M114))=N114,0,1)","v":0},null,null,null,{"$f":"ADDRESS(55,12,1,1,$S$1)","v":"'LT Insurance Risk'!$L$55"},0.5,{"$f":"IF(INDIRECT(S114)=T114,0,1)","v":0},{"$f":"ADDRESS(30,20,1,1,$V$1)","v":"'LT Variable Annuity Gte Risk'!$T$30"},"=+'Schedule VIII (EBS)'!R17",{"$f":"IF(_xlfn.FORMULATEXT(INDIRECT(V114))=W114,0,1)","v":0}]
[{"$f":"ADDRESS(51,26,1,1,$A$1)","v":"Summary!$Z$51"},"=IF($N$60=0,1/13,Y51/$Y$54)",0,{"$f":"ADDRESS(66,6,1,1,$D$1)","v":"'Fixed Income Investments'!$F$66"},"=MAX(0,SUM(F56:F64))",{"$f":"IF(_xlfn.FORMULATEXT(INDIRECT(D115))=E115,0,1)","v":0},null,null,null,null,null,null,{"$f":"ADDRESS(43,2,1,1,$M$1)","v":"'Concentration Risk'!$B$43"},"BSCR Rating 7",{"$f":"IF(INDIRECT(M115)=N115,0,1)","v":0},null,null,null,{"$f":"ADDRESS(55,15,1,1,$S$1)","v":"'LT Insurance Risk'!$O$55"},"=D55*L55",{"$f":"IF(_xlfn.FORMULATEXT(INDIRECT(S115))=T115,0,1)","v":0},{"$f":"ADDRESS(30,21,1,1,$V$1)","v":"'LT Variable Annuity Gte Risk'!$U$30"},0.17,{"$f":"IF(INDIRECT(V115)=W115,0,1)","v":0}]
[{"$f":"ADDRESS(52,7,1,1,$A$1)","v":"Summary!$G$52"},"=ROUND('LT Insurance Risk'!O62,$N$153)",0,{"$f":"ADDRESS(70,4,1,1,$D$1)","v":"'Fixed Income Investments'!$D$70"},"=+'Schedule II (EBS)'!D57+'Schedule IIA (EBS)'!D57",{"$f":"IF(_xlfn.FORMULATEXT(INDIRECT(D116))=E116,0,1)","v":0},null,null,null,null,null,null,{"$f":"ADDRESS(43,4,1,1,$M$1)","v":"'Concentration Risk'!$D$43"},"=SUMIFS('Schedule XXI'!$M$8:$M$57,'Schedule XXI'!$K$8:$K$57,$D$35,'Schedule XXI'!$L$8:$L$57,$B43)",{"$f":"IF(_xlfn.FORMULATEXT(INDIRECT(M116))=N116,0,1)","v":0},null,null,null,{"$f":"ADDRESS(56,4,1,1,$S$1)","v":"'LT Insurance Risk'!$D$56"},"='Schedule VII (EBS)'!J44",{"$f":"IF(_xlfn.FORMULATEXT(INDIRECT(S116))=T116,0,1)","v":0},{"$f":"ADDRESS(30,23,1,1,$V$1)","v":"'LT Variable Annuity Gte Risk'!$W$30"},"=IF(ISERROR(OR(E30*F30+H30*I30+K30*L30,N30*O30+Q30*R30+T30*U30)),0,MAX(E30*F30+H30*I30+K30*L30,N30*O30+Q30*R30+T30*U30))",{"$f":"IF(_xlfn.FORMULATEXT(INDIRECT(V116))=W116,0,1)","v":0}]
[{"$f":"ADDRESS(52,11,1,1,$A$1)","v":"Summary!$K$52"},"=ROUND('LT Insurance Risk'!O62,$N$153)",0,{"$f":"ADDRESS(70,5,1,1,$D$1)","v":"'Fixed Income Investments'!$E$70"},3.0000000000000001E-3,{"$f":"IF(INDIRECT(D117)=E117,0,1)","v":0},null,null,null,null,null,null,{"$f":"ADDRESS(43,5,1,1,$M$1)","v":"'Concentration Risk'!$E$43"},0.35,{"$f":"IF(INDIRECT(M117)=N117,0,1)","v":0},null,null,null,{"$f":"ADDRESS(56,12,1,1,$S$1)","v":"'LT Insurance Risk'!$L$56"},0.25,{"$f":"IF(INDIRECT(S117)=T117,0,1)","v":0},{"$f":"ADDRESS(30,25,1,1,$V$1)","v":"'LT Variable Annuity Gte Risk'!$Y$30"},"='Schedule VIII (EBS)'!F17",{"$f":"IF(_xlfn.FORMULATEXT(INDIRECT(V117))=W117,0,1)","v":0}]
[{"$f":"ADDRESS(52,13,1,1,$A$1)","v":"Summary!$M$52"},"=ROUND('LT Insurance Risk'!O62,$N$153)",0,{"$f":"ADDRESS(70,6,1,1,$D$1)","v":"'Fixed Income Investments'!$F$70"},"=IF(D70<0,0,D70*E70)",{"$f":"IF(_xlfn.FORMULATEXT(INDIRECT(D118))=E118,0,1)","v":0},null,null,null,null,null,null,{"$f":"ADDRESS(43,6,1,1,$M$1)","v":"'Concentration Risk'!$F$43"},"=MAX(0,(D43*E43))",{"$f":"IF(_xlfn.FORMULATEXT(INDIRECT(M118))=N118,0,1)","v":0},null,null,null,{"$f":"ADDRESS(56,15,1,1,$S$1)","v":"'LT Insurance Risk'!$O$56"},"=D56*L56",{"$f":"IF(_xlfn.FORMULATEXT(INDIRECT(S118))=T118,0,1)","v":0},{"$f":"ADDRESS(30,27,1,1,$V$1)","v":"'LT Variable Annuity Gte Risk'!$AA$30"},"=MAX(0,W30-Y30)",{"$f":"IF(_xlfn.FORMULATEXT(INDIRECT(V118))=W118,0,1)","v":0}]
[{"$f":"ADDRESS(52,21,1,1,$A$1)","v":"Summary!$U$52"},"=G56",0,{"$f":"ADDRESS(71,4,1,1,$D$1)","v":"'Fixed Income Investments'!$D$71"},"=+'Schedule II (EBS)'!D58+'Schedule IIA (EBS)'!D58",{"$f":"IF(_xlfn.FORMULATEXT(INDIRECT(D119))=E119,0,1)","v":0},null,null,null,null,null,null,{"$f":"ADDRESS(44,2,1,1,$M$1)","v":"'Concentration Risk'!$B$44"},"BSCR Rating 8",{"$f":"IF(INDIRECT(M119)=N119,0,1)","v":0},null,null,null,{"$f":"ADDRESS(60,15,1,1,$S$1)","v":"'LT Insurance Risk'!$O$60"},"=MAX(0,N16+O16)",0,{"$f":"ADDRESS(31,5,1,1,$V$1)","v":"'LT Variable Annuity Gte Risk'!$E$31"},"='Schedule VIII (EBS)'!H35",{"$f":"IF(_xlfn.FORMULATEXT(INDIRECT(V119))=W119,0,1)","v":0}]
[{"$f":"ADDRESS(52,23,1,1,$A$1)","v":"Summary!$W$52"},"=IF($G$60=0,1/13,U52/$U$54)",0,{"$f":"ADDRESS(71,5,1,1,$D$1)","v":"'Fixed Income Investments'!$E$71"},0.05,{"$f":"IF(INDIRECT(D120)=E120,0,1)","v":0},null,null,null,null,null,null,{"$f":"ADDRESS(44,4,1,1,$M$1)","v":"'Concentration Risk'!$D$44"},"=SUMIFS('Schedule XXI'!$M$8:$M$57,'Schedule XXI'!$K$8:$K$57,$D$35,'Schedule XXI'!$L$8:$L$57,$B44)",{"$f":"IF(_xlfn.FORMULATEXT(INDIRECT(M120))=N120,0,1)","v":0},null,null,null,{"$f":"ADDRESS(61,15,1,1,$S$1)","v":"'LT Insurance Risk'!$O$61"},"=MAX(0,O55)",0,{"$f":"ADDRESS(31,6,1,1,$V$1)","v":"'LT Variable Annuity Gte Risk'!$F$31"},0,{"$f":"IF(INDIRECT(V120)=W120,0,1)","v":0}]
[{"$f":"ADDRESS(52,25,1,1,$A$1)","v":"Summary!$Y$52"},"=M56",0,{"$f":"ADDRESS(71,6,1,1,$D$1)","v":"'Fixed Income Investments'!$F$71"},"=IF(D71<0,0,D71*E71)",{"$f":"IF(_xlfn.FORMULATEXT(INDIRECT(D121))=E121,0,1)","v":0},null,null,null,null,null,null,{"$f":"ADDRESS(44,5,1,1,$M$1)","v":"'Concentration Risk'!$E$44"},0.35,{"$f":"IF(INDIRECT(M121)=N121,0,1)","v":0},null,null,null,{"$f":"ADDRESS(62,15,1,1,$S$1)","v":"'LT Insurance Risk'!$O$62"},"=MAX(0,O56)",0,{"$f":"ADDRESS(31,8,1,1,$V$1)","v":"'LT Variable Annuity Gte Risk'!$H$31"},"='Schedule VIII (EBS)'!J35",{"$f":"IF(_xlfn.FORMULATEXT(INDIRECT(V121))=W121,0,1)","v":0}]
[{"$f":"ADDRESS(52,26,1,1,$A$1)","v":"Summary!$Z$52"},"=IF($N$60=0,1/13,Y52/$Y$54)",0,{"$f":"ADDRESS(72,4,1,1,$D$1)","v":"'Fixed Income Investments'!$D$72"},"=+'Schedule II (EBS)'!D59+'Schedule IIA (EBS)'!D59",{"$f":"IF(_xlfn.FORMULATEXT(INDIRECT(D122))=E122,0,1)","v":0},null,null,null,null,null,null,{"$f":"ADDRESS(44,6,1,1,$M$1)","v":"'Concentration Risk'!$F$44"},"=MAX(0,(D44*E44))",{"$f":"IF(_xlfn.FORMULATEXT(INDIRECT(M122))=N122,0,1)","v":0},null,null,null,{"$f":"ADDRESS(63,15,1,1,$S$1)","v":"'LT Insurance Risk'!$O$63"},"=MAX(0,N23+O23+O41+O42+O46+O47+O48+O51)",0,{"$f":"ADDRESS(31,9,1,1,$V$1)","v":"'LT Variable Annuity Gte Risk'!$I$31"},5.0000000000000001E-3,{"$f":"IF(INDIRECT(V122)=W122,0,1)","v":0}]
[{"$f":"ADDRESS(53,7,1,1,$A$1)","v":"Summary!$G$53"},"=ROUND('LT Insurance Risk'!O63,$N$153)",0,{"$f":"ADDRESS(72,5,1,1,$D$1)","v":"'Fixed Income Investments'!$E$72"},1.4999999999999999E-2,{"$f":"IF(INDIRECT(D123)=E123,0,1)","v":0},null,null,null,null,null,null,{"$f":"ADDRESS(46,4,1,1,$M$1)","v":"'Concentration Risk'!$D$46"},"=SUM(D36:D44)",{"$f":"IF(_xlfn.FORMULATEXT(INDIRECT(M123))=N123,0,1)","v":0},null,null,null,{"$f":"ADDRESS(64,15,1,1,$S$1)","v":"'LT Insurance Risk'!$O$64"},"=MAX(0,(SUM(O26:O38)))",0,{"$f":"ADDRESS(31,11,1,1,$V$1)","v":"'LT Variable Annuity Gte Risk'!$K$31"},"='Schedule VIII (EBS)'!L35",{"$f":"IF(_xlfn.FORMULATEXT(INDIRECT(V123))=W123,0,1)","v":0}]
[{"$f":"ADDRESS(53,11,1,1,$A$1)","v":"Summary!$K$53"},"=ROUND('LT Insurance Risk'!O63,$N$153)",0,{"$f":"ADDRESS(72,6,1,1,$D$1)","v":"'Fixed Income Investments'!$F$72"},"=IF(D72<0,0,D72*E72)",{"$f":"IF(_xlfn.FORMULATEXT(INDIRECT(D124))=E124,0,1)","v":0},null,null,null,null,null,null,{"$f":"ADDRESS(46,6,1,1,$M$1)","v":"'Concentration Risk'!$F$46"},"=SUM(F36:F44)",{"$f":"IF(_xlfn.FORMULATEXT(INDIRECT(M124))=N124,0,1)","v":0},null,null,null,null,null,-124,{"$f":"ADDRESS(31,12,1,1,$V$1)","v":"'LT Variable Annuity Gte Risk'!$L$31"},0.01,{"$f":"IF(INDIRECT(V124)=W124,0,1)","v":0}]
[{"$f":"ADDRESS(53,13,1,1,$A$1)","v":"Summary!$M$53"},"=ROUND('LT Insurance Risk'!O63,$N$153)",0,{"$f":"ADDRESS(73,4,1,1,$D$1)","v":"'Fixed Income Investments'!$D$73"},"=+'Schedule II (EBS)'!D60+'Schedule IIA (EBS)'!D60",{"$f":"IF(_xlfn.FORMULATEXT(INDIRECT(D125))=E125,0,1)","v":0},null,null,null,null,null,null,{"$f":"ADDRESS(48,4,1,1,$M$1)","v":"'Concentration Risk'!$D$48"},"Commercial Mortgage-Backed Securities",{"$f":"IF(INDIRECT(M125)=N125,0,1)","v":0},null,null,null,null,null,null,{"$f":"ADDRESS(31,23,1,1,$V$1)","v":"'LT Variable Annuity Gte Risk'!$W$31"},"=IF(ISERROR(OR(E31*F31+H31*I31+K31*L31,N31*O31+Q31*R31+T31*U31)),0,MAX(E31*F31+H31*I31+K31*L31,N31*O31+Q31*R31+T31*U31))",{"$f":"IF(_xlfn.FORMULATEXT(INDIRECT(V125))=W125,0,1)","v":0}]
[{"$f":"ADDRESS(54,7,1,1,$A$1)","v":"Summary!$G$54"},"=ROUND('LT Insurance Risk'!O64,$N$153)",0,{"$f":"ADDRESS(73,5,1,1,$D$1)","v":"'Fixed Income Investments'!$E$73"},0.25,{"$f":"IF(INDIRECT(D126)=E126,0,1)","v":0},null,null,null,null,null,null,{"$f":"ADDRESS(49,2,1,1,$M$1)","v":"'Concentration Risk'!$B$49"},"BSCR Rating 0",{"$f":"IF(INDIRECT(M126)=N126,0,1)","v":0},null,null,null,null,null,null,{"$f":"ADDRESS(31,25,1,1,$V$1)","v":"'LT Variable Annuity Gte Risk'!$Y$31"},"='Schedule VIII (EBS)'!F18",{"$f":"IF(_xlfn.FORMULATEXT(INDIRECT(V126))=W126,0,1)","v":0}]
[{"$f":"ADDRESS(54,11,1,1,$A$1)","v":"Summary!$K$54"},"=ROUND('LT Insurance Risk'!O64,$N$153)",0,{"$f":"ADDRESS(73,6,1,1,$D$1)","v":"'Fixed Income Investments'!$F$73"},"=IF(D73<0,0,D73*E73)",{"$f":"IF(_xlfn.FORMULATEXT(INDIRECT(D127))=E127,0,1)","v":0},null,null,null,null,null,null,{"$f":"ADDRESS(49,4,1,1,$M$1)","v":"'Concentration Risk'!$D$49"},"=SUMIFS('Schedule XXI'!$M$8:$M$57,'Schedule XXI'!$K$8:$K$57,$D$48,'Schedule XXI'!$L$8:$L$57,$B49)",{"$f":"IF(_xlfn.FORMULATEXT(INDIRECT(M127))=N127,0,1)","v":0},null,null,null,null,null,null,{"$f":"ADDRESS(31,27,1,1,$V$1)","v":"'LT Variable Annuity Gte Risk'!$AA$31"},"=MAX(0,W31-Y31)",{"$f":"IF(_xlfn.FORMULATEXT(INDIRECT(V127))=W127,0,1)","v":0}]
[{"$f":"ADDRESS(54,13,1,1,$A$1)","v":"Summary!$M$54"},"=ROUND('LT Insurance Risk'!O64,$N$153)",0,{"$f":"ADDRESS(75,4,1,1,$D$1)","v":"'Fixed Income Investments'!$D$75"},"=SUM(D70:D73)",{"$f":"IF(_xlfn.FORMULATEXT(INDIRECT(D128))=E128,0,1)","v":0},null,null,null,null,null,null,{"$f":"ADDRESS(49,5,1,1,$M$1)","v":"'Concentration Risk'!$E$49"},0,{"$f":"IF(INDIRECT(M128)=N128,0,1)","v":0},null,null,null,null,null,null,{"$f":"ADDRESS(34,5,1,1,$V$1)","v":"'LT Variable Annuity Gte Risk'!$E$34"},"=+'Schedule VIII (EBS)'!H19",{"$f":"IF(_xlfn.FORMULATEXT(INDIRECT(V128))=W128,0,1)","v":0}]
[{"$f":"ADDRESS(54,21,1,1,$A$1)","v":"Summary!$U$54"},"=SUM(U40:U53)",0,{"$f":"ADDRESS(75,6,1,1,$D$1)","v":"'Fixed Income Investments'!$F$75"},"=MAX(0,SUM(F70:F73))",{"$f":"IF(_xlfn.FORMULATEXT(INDIRECT(D129))=E129,0,1)","v":0},null,null,null,null,null,null,{"$f":"ADDRESS(49,6,1,1,$M$1)","v":"'Concentration Risk'!$F$49"},"=MAX(0,(D49*E49))",{"$f":"IF(_xlfn.FORMULATEXT(INDIRECT(M129))=N129,0,1)","v":0},null,null,null,null,null,null,{"$f":"ADDRESS(34,6,1,1,$V$1)","v":"'LT Variable Annuity Gte Risk'!$F$34"},3.2000000000000001E-2,{"$f":"IF(INDIRECT(V129)=W129,0,1)","v":0}]
[{"$f":"ADDRESS(54,23,1,1,$A$1)","v":"Summary!$W$54"},"=SUM(X40:X56)",0,{"$f":"ADDRESS(79,4,1,1,$D$1)","v":"'Fixed Income Investments'!$D$79"},"=+'Form 4EBS'!F54",{"$f":"IF(_xlfn.FORMULATEXT(INDIRECT(D130))=E130,0,1)","v":0},null,null,null,null,null,null,{"$f":"ADDRESS(50,2,1,1,$M$1)","v":"'Concentration Risk'!$B$50"},"BSCR Rating 1",{"$f":"IF(INDIRECT(M130)=N130,0,1)","v":0},null,null,null,null,null,null,{"$f":"ADDRESS(34,8,1,1,$V$1)","v":"'LT Variable Annuity Gte Risk'!$H$34"},"=+'Schedule VIII (EBS)'!J19",{"$f":"IF(_xlfn.FORMULATEXT(INDIRECT(V130))=W130,0,1)","v":0}]
[{"$f":"ADDRESS(54,25,1,1,$A$1)","v":"Summary!$Y$54"},"=SUM(Y40:Y53)",0,{"$f":"ADDRESS(79,5,1,1,$D$1)","v":"'Fixed Income Investments'!$E$79"},0.05,{"$f":"IF(INDIRECT(D131)=E131,0,1)","v":0},null,null,null,null,null,null,{"$f":"ADDRESS(50,4,1,1,$M$1)","v":"'Concentration Risk'!$D$50"},"=SUMIFS('Schedule XXI'!$M$8:$M$57,'Schedule XXI'!$K$8:$K$57,$D$48,'Schedule XXI'!$L$8:$L$57,$B50)",{"$f":"IF(_xlfn.FORMULATEXT(INDIRECT(M131))=N131,0,1)","v":0},null,null,null,null,null,null,{"$f":"ADDRESS(34,9,1,1,$V$1)","v":"'LT Variable Annuity Gte Risk'!$I$34"},0.05,{"$f":"IF(INDIRECT(V131)=W131,0,1)","v":0}]
[{"$f":"ADDRESS(54,26,1,1,$A$1)","v":"Summary!$Z$54"},"=SUM(AA40:AA56)",{"$f":"IF(_xlfn.FORMULATEXT(INDIRECT(A132))=B132,0,1)","v":0},{"$f":"ADDRESS(79,6,1,1,$D$1)","v":"'Fixed Income Investments'!$F$79"},"=IF(D79<0,0,D79*E79)",{"$f":"IF(_xlfn.FORMULATEXT(INDIRECT(D132))=E132,0,1)","v":0},null,null,null,null,null,null,{"$f":"ADDRESS(50,5,1,1,$M$1)","v":"'Concentration Risk'!$E$50"},5.0000000000000001E-3,{"$f":"IF(INDIRECT(M132)=N132,0,1)","v":0},null,null,null,null,null,null,{"$f":"ADDRESS(34,11,1,1,$V$1)","v":"'LT Variable Annuity Gte Risk'!$K$34"},"=+'Schedule VIII (EBS)'!L19",{"$f":"IF(_xlfn.FORMULATEXT(INDIRECT(V132))=W132,0,1)","v":0}]
[{"$f":"ADDRESS(55,7,1,1,$A$1)","v":"Summary!$G$55"},"=ROUND(IF('Schedule VIIIA (EBS)'!S12=0,'LT Variable Annuity Gte Risk'!W60,'Schedule VIIIA (EBS)'!S12),N$153)",0,{"$f":"ADDRESS(83,4,1,1,$D$1)","v":"'Fixed Income Investments'!$D$83"},"=+'Schedule XIX'!H83",{"$f":"IF(_xlfn.FORMULATEXT(INDIRECT(D133))=E133,0,1)","v":0},null,null,null,null,null,null,{"$f":"ADDRESS(50,6,1,1,$M$1)","v":"'Concentration Risk'!$F$50"},"=MAX(0,(D50*E50))",{"$f":"IF(_xlfn.FORMULATEXT(INDIRECT(M133))=N133,0,1)","v":0},null,null,null,null,null,null,{"$f":"ADDRESS(34,12,1,1,$V$1)","v":"'LT Variable Annuity Gte Risk'!$L$34"},0.09,{"$f":"IF(INDIRECT(V133)=W133,0,1)","v":0}]
[{"$f":"ADDRESS(55,11,1,1,$A$1)","v":"Summary!$K$55"},"=ROUND(IF('Schedule VIIIA (EBS)'!S12=0,'LT Variable Annuity Gte Risk'!W60,'Schedule VIIIA (EBS)'!S12),N$153)",0,{"$f":"ADDRESS(83,5,1,1,$D$1)","v":"'Fixed Income Investments'!$E$83"},0,{"$f":"IF(INDIRECT(D134)=E134,0,1)","v":0},null,null,null,null,null,null,{"$f":"ADDRESS(51,2,1,1,$M$1)","v":"'Concentration Risk'!$B$51"},"BSCR Rating 2",{"$f":"IF(INDIRECT(M134)=N134,0,1)","v":0},null,null,null,null,null,null,{"$f":"ADDRESS(34,14,1,1,$V$1)","v":"'LT Variable Annuity Gte Risk'!$N$34"},"=+'Schedule VIII (EBS)'!N19",{"$f":"IF(_xlfn.FORMULATEXT(INDIRECT(V134))=W134,0,1)","v":0}]
[{"$f":"ADDRESS(55,13,1,1,$A$1)","v":"Summary!$M$55"},"=ROUND(IF('Schedule VIIIA (EBS)'!S12=0,'LT Variable Annuity Gte Risk'!W60,'Schedule VIIIA (EBS)'!S12),N$153)",0,{"$f":"ADDRESS(83,6,1,1,$D$1)","v":"'Fixed Income Investments'!$F$83"},"=IF($D$83<0,0,$D$83*$E$83)",{"$f":"IF(_xlfn.FORMULATEXT(INDIRECT(D135))=E135,0,1)","v":0},null,null,null,null,null,null,{"$f":"ADDRESS(51,4,1,1,$M$1)","v":"'Concentration Risk'!$D$51"},"=SUMIFS('Schedule XXI'!$M$8:$M$57,'Schedule XXI'!$K$8:$K$57,$D$48,'Schedule XXI'!$L$8:$L$57,$B51)",{"$f":"IF(_xlfn.FORMULATEXT(INDIRECT(M135))=N135,0,1)","v":0},null,null,null,null,null,null,{"$f":"ADDRESS(34,15,1,1,$V$1)","v":"'LT Variable Annuity Gte Risk'!$O$34"},0.9,{"$f":"IF(INDIRECT(V135)=W135,0,1)","v":0}]
[{"$f":"ADDRESS(56,7,1,1,$A$1)","v":"Summary!$G$56"},"=ROUND('LT Other Insurance Risk'!I27,$N$153)",0,{"$f":"ADDRESS(84,4,1,1,$D$1)","v":"'Fixed Income Investments'!$D$84"},"=+'Schedule XIX'!H84",{"$f":"IF(_xlfn.FORMULATEXT(INDIRECT(D136))=E136,0,1)","v":0},null,null,null,null,null,null,{"$f":"ADDRESS(51,5,1,1,$M$1)","v":"'Concentration Risk'!$E$51"},0.01,{"$f":"IF(INDIRECT(M136)=N136,0,1)","v":0},null,null,null,null,null,null,{"$f":"ADDRESS(34,17,1,1,$V$1)","v":"'LT Variable Annuity Gte Risk'!$Q$34"},"=+'Schedule VIII (EBS)'!P19",{"$f":"IF(_xlfn.FORMULATEXT(INDIRECT(V136))=W136,0,1)","v":0}]
[{"$f":"ADDRESS(56,11,1,1,$A$1)","v":"Summary!$K$56"},"=ROUND('LT Other Insurance Risk'!I27,$N$153)",0,{"$f":"ADDRESS(84,5,1,1,$D$1)","v":"'Fixed Income Investments'!$E$84"},1E-3,{"$f":"IF(INDIRECT(D137)=E137,0,1)","v":0},null,null,null,null,null,null,{"$f":"ADDRESS(51,6,1,1,$M$1)","v":"'Concentration Risk'!$F$51"},"=MAX(0,(D51*E51))",{"$f":"IF(_xlfn.FORMULATEXT(INDIRECT(M137))=N137,0,1)","v":0},null,null,null,null,null,null,{"$f":"ADDRESS(34,18,1,1,$V$1)","v":"'LT Variable Annuity Gte Risk'!$R$34"},1.3,{"$f":"IF(INDIRECT(V137)=W137,0,1)","v":0}]
[{"$f":"ADDRESS(56,13,1,1,$A$1)","v":"Summary!$M$56"},"=ROUND('LT Other Insurance Risk'!I27,$N$153)",0,{"$f":"ADDRESS(84,6,1,1,$D$1)","v":"'Fixed Income Investments'!$F$84"},"=IF($D$84<0,0,$D$84*$E$84)",{"$f":"IF(_xlfn.FORMULATEXT(INDIRECT(D138))=E138,0,1)","v":0},null,null,null,null,null,null,{"$f":"ADDRESS(52,2,1,1,$M$1)","v":"'Concentration Risk'!$B$52"},"BSCR Rating 3",{"$f":"IF(INDIRECT(M138)=N138,0,1)","v":0},null,null,null,null,null,null,{"$f":"ADDRESS(34,20,1,1,$V$1)","v":"'LT Variable Annuity Gte Risk'!$T$34"},"=+'Schedule VIII (EBS)'!R19",{"$f":"IF(_xlfn.FORMULATEXT(INDIRECT(V138))=W138,0,1)","v":0}]
[{"$f":"ADDRESS(58,7,1,1,$A$1)","v":"Summary!$G$58"},"=SUM(G40:G56)",0,{"$f":"ADDRESS(85,4,1,1,$D$1)","v":"'Fixed Income Investments'!$D$85"},"=+'Schedule XIX'!H85",{"$f":"IF(_xlfn.FORMULATEXT(INDIRECT(D139))=E139,0,1)","v":0},null,null,null,null,null,null,{"$f":"ADDRESS(52,4,1,1,$M$1)","v":"'Concentration Risk'!$D$52"},"=SUMIFS('Schedule XXI'!$M$8:$M$57,'Schedule XXI'!$K$8:$K$57,$D$48,'Schedule XXI'!$L$8:$L$57,$B52)",{"$f":"IF(_xlfn.FORMULATEXT(INDIRECT(M139))=N139,0,1)","v":0},null,null,null,null,null,null,{"$f":"ADDRESS(34,21,1,1,$V$1)","v":"'LT Variable Annuity Gte Risk'!$U$34"},2.5,{"$f":"IF(INDIRECT(V139)=W139,0,1)","v":0}]
[{"$f":"ADDRESS(58,12,1,1,$A$1)","v":"Summary!$L$58"},"=SUM(K40:K56)",0,{"$f":"ADDRESS(85,5,1,1,$D$1)","v":"'Fixed Income Investments'!$E$85"},2E-3,{"$f":"IF(INDIRECT(D140)=E140,0,1)","v":0},null,null,null,null,null,null,{"$f":"ADDRESS(52,5,1,1,$M$1)","v":"'Concentration Risk'!$E$52"},1.7999999999999999E-2,{"$f":"IF(INDIRECT(M140)=N140,0,1)","v":0},null,null,null,null,null,null,{"$f":"ADDRESS(34,23,1,1,$V$1)","v":"'LT Variable Annuity Gte Risk'!$W$34"},"=IF(ISERROR(OR(E34*F34+H34*I34+K34*L34,N34*O34+Q34*R34+T34*U34)),0,MAX(E34*F34+H34*I34+K34*L34,N34*O34+Q34*R34+T34*U34))",{"$f":"IF(_xlfn.FORMULATEXT(INDIRECT(V140))=W140,0,1)","v":0}]
[{"$f":"ADDRESS(58,14,1,1,$A$1)","v":"Summary!$N$58"},"=SUM(M40:M56)",0,{"$f":"ADDRESS(85,6,1,1,$D$1)","v":"'Fixed Income Investments'!$F$85"},"=IF($D$85<0,0,$D$85*$E$85)",{"$f":"IF(_xlfn.FORMULATEXT(INDIRECT(D141))=E141,0,1)","v":0},null,null,null,null,null,null,{"$f":"ADDRESS(52,6,1,1,$M$1)","v":"'Concentration Risk'!$F$52"},"=MAX(0,(D52*E52))",{"$f":"IF(_xlfn.FORMULATEXT(INDIRECT(M141))=N141,0,1)","v":0},null,null,null,null,null,null,{"$f":"ADDRESS(34,25,1,1,$V$1)","v":"'LT Variable Annuity Gte Risk'!$Y$34"},"=+'Schedule VIII (EBS)'!F19",{"$f":"IF(_xlfn.FORMULATEXT(INDIRECT(V141))=W141,0,1)","v":0}]
[{"$f":"ADDRESS(60,7,1,1,$A$1)","v":"Summary!$G$60"},"=(G40^2+G41^2+G47^2+G42^2+G43^2+G44^2+((G50+G51+G52))^2+G53^2+G54^2+-0.5*((G50+G51+G52)*G54)+G55^2+G56^2)^0.5",0,{"$f":"ADDRESS(86,4,1,1,$D$1)","v":"'Fixed Income Investments'!$D$86"},"=+'Schedule XIX'!H86",{"$f":"IF(_xlfn.FORMULATEXT(INDIRECT(D142))=E142,0,1)","v":0},null,null,null,null,null,null,{"$f":"ADDRESS(53,2,1,1,$M$1)","v":"'Concentration Risk'!$B$53"},"BSCR Rating 4",{"$f":"IF(INDIRECT(M142)=N142,0,1)","v":0},null,null,null,null,null,null,{"$f":"ADDRESS(34,27,1,1,$V$1)","v":"'LT Variable Annuity Gte Risk'!$AA$34"},"=MAX(0,W34-Y34)",{"$f":"IF(_xlfn.FORMULATEXT(INDIRECT(V142))=W142,0,1)","v":0}]
[{"$f":"ADDRESS(60,12,1,1,$A$1)","v":"Summary!$L$60"},"{=SQRT(MMULT(TRANSPOSE('Correlation Matrix'!W12:W14),MMULT('Correlation Matrix'!R7:T9,'Correlation Matrix'!W12:W14)))}",0,{"$f":"ADDRESS(86,5,1,1,$D$1)","v":"'Fixed Income Investments'!$E$86"},3.0000000000000001E-3,{"$f":"IF(INDIRECT(D143)=E143,0,1)","v":0},null,null,null,null,null,null,{"$f":"ADDRESS(53,4,1,1,$M$1)","v":"'Concentration Risk'!$D$53"},"=SUMIFS('Schedule XXI'!$M$8:$M$57,'Schedule XXI'!$K$8:$K$57,$D$48,'Schedule XXI'!$L$8:$L$57,$B53)",{"$f":"IF(_xlfn.FORMULATEXT(INDIRECT(M143))=N143,0,1)","v":0},null,null,null,null,null,null,{"$f":"ADDRESS(35,5,1,1,$V$1)","v":"'LT Variable Annuity Gte Risk'!$E$35"},"=+'Schedule VIII (EBS)'!H20",{"$f":"IF(_xlfn.FORMULATEXT(INDIRECT(V143))=W143,0,1)","v":0}]
[{"$f":"ADDRESS(60,14,1,1,$A$1)","v":"Summary!$N$60"},"{=SQRT(MMULT(TRANSPOSE('Correlation Matrix'!W6:W8),MMULT('Correlation Matrix'!R7:T9,'Correlation Matrix'!W6:W8)))}",0,{"$f":"ADDRESS(86,6,1,1,$D$1)","v":"'Fixed Income Investments'!$F$86"},"=IF($D$86<0,0,$D$86*$E$86)",{"$f":"IF(_xlfn.FORMULATEXT(INDIRECT(D144))=E144,0,1)","v":0},null,null,null,null,null,null,{"$f":"ADDRESS(53,5,1,1,$M$1)","v":"'Concentration Risk'!$E$53"},3.5000000000000003E-2,{"$f":"IF(INDIRECT(M144)=N144,0,1)","v":0},null,null,null,null,null,null,{"$f":"ADDRESS(35,6,1,1,$V$1)","v":"'LT Variable Annuity Gte Risk'!$F$35"},0.03,{"$f":"IF(INDIRECT(V144)=W144,0,1)","v":0}]
[{"$f":"ADDRESS(62,26,1,1,$A$1)","v":"Summary!$Z$62"},"=G19",0,{"$f":"ADDRESS(87,4,1,1,$D$1)","v":"'Fixed Income Investments'!$D$87"},"=+'Schedule XIX'!H87",{"$f":"IF(_xlfn.FORMULATEXT(INDIRECT(D145))=E145,0,1)","v":0},null,null,null,null,null,null,{"$f":"ADDRESS(53,6,1,1,$M$1)","v":"'Concentration Risk'!$F$53"},"=MAX(0,(D53*E53))",{"$f":"IF(_xlfn.FORMULATEXT(INDIRECT(M145))=N145,0,1)","v":0},null,null,null,null,null,null,{"$f":"ADDRESS(35,8,1,1,$V$1)","v":"'LT Variable Annuity Gte Risk'!$H$35"},"=+'Schedule VIII (EBS)'!J20",{"$f":"IF(_xlfn.FORMULATEXT(INDIRECT(V145))=W145,0,1)","v":0}]
[{"$f":"ADDRESS(63,27,1,1,$A$1)","v":"Summary!$AA$63"},0,{"$f":"IF(INDIRECT(A146)=B146,0,1)","v":0},{"$f":"ADDRESS(87,5,1,1,$D$1)","v":"'Fixed Income Investments'!$E$87"},5.0000000000000001E-3,{"$f":"IF(INDIRECT(D146)=E146,0,1)","v":0},null,null,null,null,null,null,{"$f":"ADDRESS(54,2,1,1,$M$1)","v":"'Concentration Risk'!$B$54"},"BSCR Rating 5",{"$f":"IF(INDIRECT(M146)=N146,0,1)","v":0},null,null,null,null,null,null,{"$f":"ADDRESS(35,9,1,1,$V$1)","v":"'LT Variable Annuity Gte Risk'!$I$35"},0.05,{"$f":"IF(INDIRECT(V146)=W146,0,1)","v":0}]
[{"$f":"ADDRESS(63,29,1,1,$A$1)","v":"Summary!$AC$63"},5.0000000000000001E-3,{"$f":"IF(INDIRECT(A147)=B147,0,1)","v":0},{"$f":"ADDRESS(87,6,1,1,$D$1)","v":"'Fixed Income Investments'!$F$87"},"=IF($D$87<0,0,$D$87*$E$87)",{"$f":"IF(_xlfn.FORMULATEXT(INDIRECT(D147))=E147,0,1)","v":0},null,null,null,null,null,null,{"$f":"ADDRESS(54,4,1,1,$M$1)","v":"'Concentration Risk'!$D$54"},"=SUMIFS('Schedule XXI'!$M$8:$M$57,'Schedule XXI'!$K$8:$K$57,$D$48,'Schedule XXI'!$L$8:$L$57,$B54)",{"$f":"IF(_xlfn.FORMULATEXT(INDIRECT(M147))=N147,0,1)","v":0},null,null,null,null,null,null,{"$f":"ADDRESS(35,11,1,1,$V$1)","v":"'LT Variable Annuity Gte Risk'!$K$35"},"=+'Schedule VIII (EBS)'!L20",{"$f":"IF(_xlfn.FORMULATEXT(INDIRECT(V147))=W147,0,1)","v":0}]
[{"$f":"ADDRESS(63,30,1,1,$A$1)","v":"Summary!$AD$63"},0,{"$f":"IF(INDIRECT(A148)=B148,0,1)","v":0},{"$f":"ADDRESS(88,4,1,1,$D$1)","v":"'Fixed Income Investments'!$D$88"},"=+'Schedule XIX'!H88",{"$f":"IF(_xlfn.FORMULATEXT(INDIRECT(D148))=E148,0,1)","v":0},null,null,null,null,null,null,{"$f":"ADDRESS(54,5,1,1,$M$1)","v":"'Concentration Risk'!$E$54"},0.1,{"$f":"IF(INDIRECT(M148)=N148,0,1)","v":0},null,null,null,null,null,null,{"$f":"ADDRESS(35,12,1,1,$V$1)","v":"'LT Variable Annuity Gte Risk'!$L$35"},8.8999999999999996E-2,{"$f":"IF(INDIRECT(V148)=W148,0,1)","v":0}]
[{"$f":"ADDRESS(63,31,1,1,$A$1)","v":"Summary!$AE$63"},120,{"$f":"IF(INDIRECT(A149)=B149,0,1)","v":0},{"$f":"ADDRESS(88,5,1,1,$D$1)","v":"'Fixed Income Investments'!$E$88"},1.4999999999999999E-2,{"$f":"IF(INDIRECT(D149)=E149,0,1)","v":0},null,null,null,null,null,null,{"$f":"ADDRESS(54,6,1,1,$M$1)","v":"'Concentration Risk'!$F$54"},"=MAX(0,(D54*E54))",{"$f":"IF(_xlfn.FORMULATEXT(INDIRECT(M149))=N149,0,1)","v":0},null,null,null,null,null,null,{"$f":"ADDRESS(35,14,1,1,$V$1)","v":"'LT Variable Annuity Gte Risk'!$N$35"},"=+'Schedule VIII (EBS)'!N20",{"$f":"IF(_xlfn.FORMULATEXT(INDIRECT(V149))=W149,0,1)","v":0}]
[{"$f":"ADDRESS(63,33,1,1,$A$1)","v":"Summary!$AG$63"},"=MAX(AE63,AA63*MIN(Z$62,AD63)+AC63*MAX((Z$62-AD63),0))",{"$f":"IF(_xlfn.FORMULATEXT(INDIRECT(A150))=B150,0,1)","v":0},{"$f":"ADDRESS(88,6,1,1,$D$1)","v":"'Fixed Income Investments'!$F$88"},"=IF($D$88<0,0,$D$88*$E$88)",{"$f":"IF(_xlfn.FORMULATEXT(INDIRECT(D150))=E150,0,1)","v":0},null,null,null,null,null,null,{"$f":"ADDRESS(55,2,1,1,$M$1)","v":"'Concentration Risk'!$B$55"},"BSCR Rating 6",{"$f":"IF(INDIRECT(M150)=N150,0,1)","v":0},null,null,null,null,null,null,{"$f":"ADDRESS(35,15,1,1,$V$1)","v":"'LT Variable Annuity Gte Risk'!$O$35"},0.8,{"$f":"IF(INDIRECT(V150)=W150,0,1)","v":0}]
[{"$f":"ADDRESS(64,7,1,1,$A$1)","v":"Summary!$G$64"},"=$G$60*$G$62",{"$f":"IF(_xlfn.FORMULATEXT(INDIRECT(A151))=B151,0,1)","v":0},{"$f":"ADDRESS(89,4,1,1,$D$1)","v":"'Fixed Income Investments'!$D$89"},"=+'Schedule XIX'!H89",{"$f":"IF(_xlfn.FORMULATEXT(INDIRECT(D151))=E151,0,1)","v":0},null,null,null,null,null,null,{"$f":"ADDRESS(55,4,1,1,$M$1)","v":"'Concentration Risk'!$D$55"},"=SUMIFS('Schedule XXI'!$M$8:$M$57,'Schedule XXI'!$K$8:$K$57,$D$48,'Schedule XXI'!$L$8:$L$57,$B55)",{"$f":"IF(_xlfn.FORMULATEXT(INDIRECT(M151))=N151,0,1)","v":0},null,null,null,null,null,null,{"$f":"ADDRESS(35,17,1,1,$V$1)","v":"'LT Variable Annuity Gte Risk'!$Q$35"},"=+'Schedule VIII (EBS)'!P20",{"$f":"IF(_xlfn.FORMULATEXT(INDIRECT(V151))=W151,0,1)","v":0}]
[{"$f":"ADDRESS(64,14,1,1,$A$1)","v":"Summary!$N$64"},"=($N$60+N133)*$N$62",{"$f":"IF(_xlfn.FORMULATEXT(INDIRECT(A152))=B152,0,1)","v":0},{"$f":"ADDRESS(89,5,1,1,$D$1)","v":"'Fixed Income Investments'!$E$89"},0.04,{"$f":"IF(INDIRECT(D152)=E152,0,1)","v":0},null,null,null,null,null,null,{"$f":"ADDRESS(55,5,1,1,$M$1)","v":"'Concentration Risk'!$E$55"},0.2,{"$f":"IF(INDIRECT(M152)=N152,0,1)","v":0},null,null,null,null,null,null,{"$f":"ADDRESS(35,18,1,1,$V$1)","v":"'LT Variable Annuity Gte Risk'!$R$35"},1.1499999999999999,{"$f":"IF(INDIRECT(V152)=W152,0,1)","v":0}]
[{"$f":"ADDRESS(64,27,1,1,$A$1)","v":"Summary!$AA$64"},0,{"$f":"IF(INDIRECT(A153)=B153,0,1)","v":0},{"$f":"ADDRESS(89,6,1,1,$D$1)","v":"'Fixed Income Investments'!$F$89"},"=IF($D$89<0,0,$D$89*$E$89)",{"$f":"IF(_xlfn.FORMULATEXT(INDIRECT(D153))=E153,0,1)","v":0},null,null,null,null,null,null,{"$f":"ADDRESS(55,6,1,1,$M$1)","v":"'Concentration Risk'!$F$55"},"=MAX(0,(D55*E55))",{"$f":"IF(_xlfn.FORMULATEXT(INDIRECT(M153))=N153,0,1)","v":0},null,null,null,null,null,null,{"$f":"ADDRESS(35,20,1,1,$V$1)","v":"'LT Variable Annuity Gte Risk'!$T$35"},"=+'Schedule VIII (EBS)'!R20",{"$f":"IF(_xlfn.FORMULATEXT(INDIRECT(V153))=W153,0,1)","v":0}]
[{"$f":"ADDRESS(64,29,1,1,$A$1)","v":"Summary!$AC$64"},0.01,{"$f":"IF(INDIRECT(A154)=B154,0,1)","v":0},{"$f":"ADDRESS(90,4,1,1,$D$1)","v":"'Fixed Income Investments'!$D$90"},"=+'Schedule XIX'!H90",{"$f":"IF(_xlfn.FORMULATEXT(INDIRECT(D154))=E154,0,1)","v":0},null,null,null,null,null,null,{"$f":"ADDRESS(56,2,1,1,$M$1)","v":"'Concentration Risk'!$B$56"},"BSCR Rating 7",{"$f":"IF(INDIRECT(M154)=N154,0,1)","v":0},null,null,null,null,null,null,{"$f":"ADDRESS(35,21,1,1,$V$1)","v":"'LT Variable Annuity Gte Risk'!$U$35"},2,{"$f":"IF(INDIRECT(V154)=W154,0,1)","v":0}]
[{"$f":"ADDRESS(64,30,1,1,$A$1)","v":"Summary!$AD$64"},0,{"$f":"IF(INDIRECT(A155)=B155,0,1)","v":0},{"$f":"ADDRESS(90,5,1,1,$D$1)","v":"'Fixed Income Investments'!$E$90"},0.06,{"$f":"IF(INDIRECT(D155)=E155,0,1)","v":0},null,null,null,null,null,null,{"$f":"ADDRESS(56,4,1,1,$M$1)","v":"'Concentration Risk'!$D$56"},"=SUMIFS('Schedule XXI'!$M$8:$M$57,'Schedule XXI'!$K$8:$K$57,$D$48,'Schedule XXI'!$L$8:$L$57,$B56)",{"$f":"IF(_xlfn.FORMULATEXT(INDIRECT(M155))=N155,0,1)","v":0},null,null,null,null,null,null,{"$f":"ADDRESS(35,23,1,1,$V$1)","v":"'LT Variable Annuity Gte Risk'!$W$35"},"=IF(ISERROR(OR(E35*F35+H35*I35+K35*L35,N35*O35+Q35*R35+T35*U35)),0,MAX(E35*F35+H35*I35+K35*L35,N35*O35+Q35*R35+T35*U35))",{"$f":"IF(_xlfn.FORMULATEXT(INDIRECT(V155))=W155,0,1)","v":0}]
[{"$f":"ADDRESS(64,31,1,1,$A$1)","v":"Summary!$AE$64"},250,{"$f":"IF(INDIRECT(A156)=B156,0,1)","v":0},{"$f":"ADDRESS(90,6,1,1,$D$1)","v":"'Fixed Income Investments'!$F$90"},"=IF($D$90<0,0,$D$90*$E$90)",{"$f":"IF(_xlfn.FORMULATEXT(INDIRECT(D156))=E156,0,1)","v":0},null,null,null,null,null,null,{"$f":"ADDRESS(56,5,1,1,$M$1)","v":"'Concentration Risk'!$E$56"},0.3,{"$f":"IF(INDIRECT(M156)=N156,0,1)","v":0},null,null,null,null,null,null,{"$f":"ADDRESS(35,25,1,1,$V$1)","v":"'LT Variable Annuity Gte Risk'!$Y$35"},"=+'Schedule VIII (EBS)'!F20",{"$f":"IF(_xlfn.FORMULATEXT(INDIRECT(V156))=W156,0,1)","v":0}]
[{"$f":"ADDRESS(64,33,1,1,$A$1)","v":"Summary!$AG$64"},"=MAX(AE64,AA64*MIN(Z$62,AD64)+AC64*MAX((Z$62-AD64),0))",{"$f":"IF(_xlfn.FORMULATEXT(INDIRECT(A157))=B157,0,1)","v":0},{"$f":"ADDRESS(91,4,1,1,$D$1)","v":"'Fixed Income Investments'!$D$91"},"=+'Schedule XIX'!H91",{"$f":"IF(_xlfn.FORMULATEXT(INDIRECT(D157))=E157,0,1)","v":0},null,null,null,null,null,null,{"$f":"ADDRESS(56,6,1,1,$M$1)","v":"'Concentration Risk'!$F$56"},"=MAX(0,(D56*E56))",{"$f":"IF(_xlfn.FORMULATEXT(INDIRECT(M157))=N157,0,1)","v":0},null,null,null,null,null,null,{"$f":"ADDRESS(35,27,1,1,$V$1)","v":"'LT Variable Annuity Gte Risk'!$AA$35"},"=MAX(0,W35-Y35)",{"$f":"IF(_xlfn.FORMULATEXT(INDIRECT(V157))=W157,0,1)","v":0}]
[{"$f":"ADDRESS(65,27,1,1,$A$1)","v":"Summary!$AA$65"},0,{"$f":"IF(INDIRECT(A158)=B158,0,1)","v":0},{"$f":"ADDRESS(91,5,1,1,$D$1)","v":"'Fixed Income Investments'!$E$91"},0.09,{"$f":"IF(INDIRECT(D158)=E158,0,1)","v":0},null,null,null,null,null,null,{"$f":"ADDRESS(57,2,1,1,$M$1)","v":"'Concentration Risk'!$B$57"},"BSCR Rating 8",{"$f":"IF(INDIRECT(M158)=N158,0,1)","v":0},null,null,null,null,null,null,{"$f":"ADDRESS(36,5,1,1,$V$1)","v":"'LT Variable Annuity Gte Risk'!$E$36"},"=+'Schedule VIII (EBS)'!H21",{"$f":"IF(_xlfn.FORMULATEXT(INDIRECT(V158))=W158,0,1)","v":0}]
[{"$f":"ADDRESS(65,29,1,1,$A$1)","v":"Summary!$AC$65"},1.4999999999999999E-2,{"$f":"IF(INDIRECT(A159)=B159,0,1)","v":0},{"$f":"ADDRESS(91,6,1,1,$D$1)","v":"'Fixed Income Investments'!$F$91"},"=IF($D$91<0,0,$D$91*$E$91)",{"$f":"IF(_xlfn.FORMULATEXT(INDIRECT(D159))=E159,0,1)","v":0},null,null,null,null,null,null,{"$f":"ADDRESS(57,4,1,1,$M$1)","v":"'Concentration Risk'!$D$57"},"=SUMIFS('Schedule XXI'!$M$8:$M$57,'Schedule XXI'!$K$8:$K$57,$D$48,'Schedule XXI'!$L$8:$L$57,$B57)",{"$f":"IF(_xlfn.FORMULATEXT(INDIRECT(M159))=N159,0,1)","v":0},null,null,null,null,null,null,{"$f":"ADDRESS(36,6,1,1,$V$1)","v":"'LT Variable Annuity Gte Risk'!$F$36"},0.03,{"$f":"IF(INDIRECT(V159)=W159,0,1)","v":0}]
[{"$f":"ADDRESS(65,30,1,1,$A$1)","v":"Summary!$AD$65"},0,{"$f":"IF(INDIRECT(A160)=B160,0,1)","v":0},{"$f":"ADDRESS(93,4,1,1,$D$1)","v":"'Fixed Income Investments'!$D$93"},"=SUM(D83:D92)",0,null,null,null,null,null,null,{"$f":"ADDRESS(57,5,1,1,$M$1)","v":"'Concentration Risk'!$E$57"},0.35,{"$f":"IF(INDIRECT(M160)=N160,0,1)","v":0},null,null,null,null,null,null,{"$f":"ADDRESS(36,8,1,1,$V$1)","v":"'LT Variable Annuity Gte Risk'!$H$36"},"=+'Schedule VIII (EBS)'!J21",{"$f":"IF(_xlfn.FORMULATEXT(INDIRECT(V160))=W160,0,1)","v":0}]
[{"$f":"ADDRESS(65,31,1,1,$A$1)","v":"Summary!$AE$65"},500,{"$f":"IF(INDIRECT(A161)=B161,0,1)","v":0},{"$f":"ADDRESS(93,6,1,1,$D$1)","v":"'Fixed Income Investments'!$F$93"},"=SUM(F83:F92)",0,null,null,null,null,null,null,{"$f":"ADDRESS(57,6,1,1,$M$1)","v":"'Concentration Risk'!$F$57"},"=MAX(0,(D57*E57))",{"$f":"IF(_xlfn.FORMULATEXT(INDIRECT(M161))=N161,0,1)","v":0},null,null,null,null,null,null,{"$f":"ADDRESS(36,9,1,1,$V$1)","v":"'LT Variable Annuity Gte Risk'!$I$36"},0.05,{"$f":"IF(INDIRECT(V161)=W161,0,1)","v":0}]
[{"$f":"ADDRESS(65,33,1,1,$A$1)","v":"Summary!$AG$65"},"=MAX(AE65,AA65*MIN(Z$62,AD65)+AC65*MAX((Z$62-AD65),0))",{"$f":"IF(_xlfn.FORMULATEXT(INDIRECT(A162))=B162,0,1)","v":0},{"$f":"ADDRESS(95,5,1,1,$D$1)","v":"'Fixed Income Investments'!$E$95"},"=+'Schedule XIX'!H100",0,null,null,null,null,null,null,{"$f":"ADDRESS(59,4,1,1,$M$1)","v":"'Concentration Risk'!$D$59"},"=SUM(D49:D57)",{"$f":"IF(_xlfn.FORMULATEXT(INDIRECT(M162))=N162,0,1)","v":0},null,null,null,null,null,null,{"$f":"ADDRESS(36,11,1,1,$V$1)","v":"'LT Variable Annuity Gte Risk'!$K$36"},"=+'Schedule VIII (EBS)'!L21",{"$f":"IF(_xlfn.FORMULATEXT(INDIRECT(V162))=W162,0,1)","v":0}]
[{"$f":"ADDRESS(66,7,1,1,$A$1)","v":"Summary!$G$66"},"=+'Schedule XVI'!M211",{"$f":"IF(_xlfn.FORMULATEXT(INDIRECT(A163))=B163,0,1)","v":0},{"$f":"ADDRESS(95,6,1,1,$D$1)","v":"'Fixed Income Investments'!$F$95"},"=SUM(F83:F91)*-(+'Schedule XIX'!H100)",0,null,null,null,null,null,null,{"$f":"ADDRESS(59,6,1,1,$M$1)","v":"'Concentration Risk'!$F$59"},"=SUM(F49:F57)",{"$f":"IF(_xlfn.FORMULATEXT(INDIRECT(M163))=N163,0,1)","v":0},null,null,null,null,null,null,{"$f":"ADDRESS(36,12,1,1,$V$1)","v":"'LT Variable Annuity Gte Risk'!$L$36"},8.8999999999999996E-2,{"$f":"IF(INDIRECT(V163)=W163,0,1)","v":0}]
[{"$f":"ADDRESS(66,14,1,1,$A$1)","v":"Summary!$N$66"},"=+'Schedule XVI'!M211",{"$f":"IF(_xlfn.FORMULATEXT(INDIRECT(A164))=B164,0,1)","v":0},{"$f":"ADDRESS(97,4,1,1,$D$1)","v":"'Fixed Income Investments'!$D$97"},"=SUM(D79,D93)",0,null,null,null,null,null,null,{"$f":"ADDRESS(61,4,1,1,$M$1)","v":"'Concentration Risk'!$D$61"},"Bond Mutual Funds",{"$f":"IF(INDIRECT(M164)=N164,0,1)","v":0},null,null,null,null,null,null,{"$f":"ADDRESS(36,14,1,1,$V$1)","v":"'LT Variable Annuity Gte Risk'!$N$36"},"=+'Schedule VIII (EBS)'!N21",{"$f":"IF(_xlfn.FORMULATEXT(INDIRECT(V164))=W164,0,1)","v":0}]
[{"$f":"ADDRESS(68,7,1,1,$A$1)","v":"Summary!$G$68"},"='Company Specific Parameters'!I553-'Company Specific Parameters'!F553",{"$f":"IF(_xlfn.FORMULATEXT(INDIRECT(A165))=B165,0,1)","v":0},{"$f":"ADDRESS(97,6,1,1,$D$1)","v":"'Fixed Income Investments'!$F$97"},"=MAX(0,SUM(F79,F83:F91,F95))",0,null,null,null,null,null,null,{"$f":"ADDRESS(62,2,1,1,$M$1)","v":"'Concentration Risk'!$B$62"},"BSCR Rating 0",{"$f":"IF(INDIRECT(M165)=N165,0,1)","v":0},null,null,null,null,null,null,{"$f":"ADDRESS(36,15,1,1,$V$1)","v":"'LT Variable Annuity Gte Risk'!$O$36"},0.7,{"$f":"IF(INDIRECT(V165)=W165,0,1)","v":0}]
[{"$f":"ADDRESS(68,14,1,1,$A$1)","v":"Summary!$N$68"},"='CSP (Revised)'!L750-'CSP (Revised)'!I750",{"$f":"IF(_xlfn.FORMULATEXT(INDIRECT(A166))=B166,0,1)","v":0},{"$f":"ADDRESS(99,4,1,1,$D$1)","v":"'Fixed Income Investments'!$D$99"},"=D22+D36+D75+D66+D51+D97",0,null,null,null,null,null,null,{"$f":"ADDRESS(62,4,1,1,$M$1)","v":"'Concentration Risk'!$D$62"},"=SUMIFS('Schedule XXI'!$M$8:$M$57,'Schedule XXI'!$K$8:$K$57,$D$61,'Schedule XXI'!$L$8:$L$57,$B62)",{"$f":"IF(_xlfn.FORMULATEXT(INDIRECT(M166))=N166,0,1)","v":0},null,null,null,null,null,null,{"$f":"ADDRESS(36,17,1,1,$V$1)","v":"'LT Variable Annuity Gte Risk'!$Q$36"},"=+'Schedule VIII (EBS)'!P21",{"$f":"IF(_xlfn.FORMULATEXT(INDIRECT(V166))=W166,0,1)","v":0}]
[{"$f":"ADDRESS(68,27,1,1,$A$1)","v":"Summary!$AA$68"},0.02,{"$f":"IF(INDIRECT(A167)=B167,0,1)","v":0},{"$f":"ADDRESS(99,6,1,1,$D$1)","v":"'Fixed Income Investments'!$F$99"},"=MAX(0,F22+F36+F75+F66+F51+F97)",0,null,null,null,null,null,null,{"$f":"ADDRESS(62,5,1,1,$M$1)","v":"'Concentration Risk'!$E$62"},0,{"$f":"IF(INDIRECT(M167)=N167,0,1)","v":0},null,null,null,null,null,null,{"$f":"ADDRESS(36,18,1,1,$V$1)","v":"'LT Variable Annuity Gte Risk'!$R$36"},1.05,{"$f":"IF(INDIRECT(V167)=W167,0,1)","v":0}]
[{"$f":"ADDRESS(68,29,1,1,$A$1)","v":"Summary!$AC$68"},1.4999999999999999E-2,{"$f":"IF(INDIRECT(A168)=B168,0,1)","v":0},null,null,-168,null,null,null,null,null,null,{"$f":"ADDRESS(62,6,1,1,$M$1)","v":"'Concentration Risk'!$F$62"},"=MAX(0,(D62*E62))",{"$f":"IF(_xlfn.FORMULATEXT(INDIRECT(M168))=N168,0,1)","v":0},null,null,null,null,null,null,{"$f":"ADDRESS(36,20,1,1,$V$1)","v":"'LT Variable Annuity Gte Risk'!$T$36"},"=+'Schedule VIII (EBS)'!R21",{"$f":"IF(_xlfn.FORMULATEXT(INDIRECT(V168))=W168,0,1)","v":0}]
[{"$f":"ADDRESS(68,30,1,1,$A$1)","v":"Summary!$AD$68"},250000,{"$f":"IF(INDIRECT(A169)=B169,0,1)","v":0},null,null,null,null,null,null,null,null,null,{"$f":"ADDRESS(63,2,1,1,$M$1)","v":"'Concentration Risk'!$B$63"},"BSCR Rating 1",{"$f":"IF(INDIRECT(M169)=N169,0,1)","v":0},null,null,null,null,null,null,{"$f":"ADDRESS(36,21,1,1,$V$1)","v":"'LT Variable Annuity Gte Risk'!$U$36"},1.6,{"$f":"IF(INDIRECT(V169)=W169,0,1)","v":0}]
[{"$f":"ADDRESS(68,31,1,1,$A$1)","v":"Summary!$AE$68"},4000,{"$f":"IF(INDIRECT(A170)=B170,0,1)","v":0},null,null,null,null,null,null,null,null,null,{"$f":"ADDRESS(63,4,1,1,$M$1)","v":"'Concentration Risk'!$D$63"},"=SUMIFS('Schedule XXI'!$M$8:$M$57,'Schedule XXI'!$K$8:$K$57,$D$61,'Schedule XXI'!$L$8:$L$57,$B63)",{"$f":"IF(_xlfn.FORMULATEXT(INDIRECT(M170))=N170,0,1)","v":0},null,null,null,null,null,null,{"$f":"ADDRESS(36,23,1,1,$V$1)","v":"'LT Variable Annuity Gte Risk'!$W$36"},"=IF(ISERROR(OR(E36*F36+H36*I36+K36*L36,N36*O36+Q36*R36+T36*U36)),0,MAX(E36*F36+H36*I36+K36*L36,N36*O36+Q36*R36+T36*U36))",{"$f":"IF(_xlfn.FORMULATEXT(INDIRECT(V170))=W170,0,1)","v":0}]
[{"$f":"ADDRESS(68,33,1,1,$A$1)","v":"Summary!$AG$68"},"=MAX(AE68,AA68*MIN(Z$62,AD68)+AC68*MAX((Z$62-AD68),0))",{"$f":"IF(_xlfn.FORMULATEXT(INDIRECT(A171))=B171,0,1)","v":0},null,null,null,null,null,null,null,null,null,{"$f":"ADDRESS(63,5,1,1,$M$1)","v":"'Concentration Risk'!$E$63"},4.0000000000000001E-3,{"$f":"IF(INDIRECT(M171)=N171,0,1)","v":0},null,null,null,null,null,null,{"$f":"ADDRESS(36,25,1,1,$V$1)","v":"'LT Variable Annuity Gte Risk'!$Y$36"},"=+'Schedule VIII (EBS)'!F21",{"$f":"IF(_xlfn.FORMULATEXT(INDIRECT(V171))=W171,0,1)","v":0}]
[{"$f":"ADDRESS(69,27,1,1,$A$1)","v":"Summary!$AA$69"},0.02,{"$f":"IF(INDIRECT(A172)=B172,0,1)","v":0},null,null,null,null,null,null,null,null,null,{"$f":"ADDRESS(63,6,1,1,$M$1)","v":"'Concentration Risk'!$F$63"},"=MAX(0,(D63*E63))",{"$f":"IF(_xlfn.FORMULATEXT(INDIRECT(M172))=N172,0,1)","v":0},null,null,null,null,null,null,{"$f":"ADDRESS(36,27,1,1,$V$1)","v":"'LT Variable Annuity Gte Risk'!$AA$36"},"=MAX(0,W36-Y36)",{"$f":"IF(_xlfn.FORMULATEXT(INDIRECT(V172))=W172,0,1)","v":0}]
[{"$f":"ADDRESS(69,29,1,1,$A$1)","v":"Summary!$AC$69"},1.4999999999999999E-2,{"$f":"IF(INDIRECT(A173)=B173,0,1)","v":0},null,null,null,null,null,null,null,null,null,{"$f":"ADDRESS(64,2,1,1,$M$1)","v":"'Concentration Risk'!$B$64"},"BSCR Rating 2",{"$f":"IF(INDIRECT(M173)=N173,0,1)","v":0},null,null,null,null,null,null,{"$f":"ADDRESS(37,5,1,1,$V$1)","v":"'LT Variable Annuity Gte Risk'!$E$37"},"=+'Schedule VIII (EBS)'!H22",{"$f":"IF(_xlfn.FORMULATEXT(INDIRECT(V173))=W173,0,1)","v":0}]
[{"$f":"ADDRESS(69,30,1,1,$A$1)","v":"Summary!$AD$69"},500000,{"$f":"IF(INDIRECT(A174)=B174,0,1)","v":0},null,null,null,null,null,null,null,null,null,{"$f":"ADDRESS(64,4,1,1,$M$1)","v":"'Concentration Risk'!$D$64"},"=SUMIFS('Schedule XXI'!$M$8:$M$57,'Schedule XXI'!$K$8:$K$57,$D$61,'Schedule XXI'!$L$8:$L$57,$B64)",{"$f":"IF(_xlfn.FORMULATEXT(INDIRECT(M174))=N174,0,1)","v":0},null,null,null,null,null,null,{"$f":"ADDRESS(37,6,1,1,$V$1)","v":"'LT Variable Annuity Gte Risk'!$F$37"},2.8000000000000001E-2,{"$f":"IF(INDIRECT(V174)=W174,0,1)","v":0}]
[{"$f":"ADDRESS(69,31,1,1,$A$1)","v":"Summary!$AE$69"},8000,{"$f":"IF(INDIRECT(A175)=B175,0,1)","v":0},null,null,null,null,null,null,null,null,null,{"$f":"ADDRESS(64,5,1,1,$M$1)","v":"'Concentration Risk'!$E$64"},8.0000000000000002E-3,{"$f":"IF(INDIRECT(M175)=N175,0,1)","v":0},null,null,null,null,null,null,{"$f":"ADDRESS(37,8,1,1,$V$1)","v":"'LT Variable Annuity Gte Risk'!$H$37"},"=+'Schedule VIII (EBS)'!J22",{"$f":"IF(_xlfn.FORMULATEXT(INDIRECT(V175))=W175,0,1)","v":0}]
[{"$f":"ADDRESS(69,33,1,1,$A$1)","v":"Summary!$AG$69"},"=MAX(AE69,AA69*MIN(Z$62,AD69)+AC69*MAX((Z$62-AD69),0))",{"$f":"IF(_xlfn.FORMULATEXT(INDIRECT(A176))=B176,0,1)","v":0},null,null,null,null,null,null,null,null,null,{"$f":"ADDRESS(64,6,1,1,$M$1)","v":"'Concentration Risk'!$F$64"},"=MAX(0,(D64*E64))",{"$f":"IF(_xlfn.FORMULATEXT(INDIRECT(M176))=N176,0,1)","v":0},null,null,null,null,null,null,{"$f":"ADDRESS(37,9,1,1,$V$1)","v":"'LT Variable Annuity Gte Risk'!$I$37"},0.05,{"$f":"IF(INDIRECT(V176)=W176,0,1)","v":0}]
[{"$f":"ADDRESS(70,14,1,1,$A$1)","v":"Summary!$N$70"},"=N133",0,null,null,null,null,null,null,null,null,null,{"$f":"ADDRESS(65,2,1,1,$M$1)","v":"'Concentration Risk'!$B$65"},"BSCR Rating 3",{"$f":"IF(INDIRECT(M177)=N177,0,1)","v":0},null,null,null,null,null,null,{"$f":"ADDRESS(37,11,1,1,$V$1)","v":"'LT Variable Annuity Gte Risk'!$K$37"},"=+'Schedule VIII (EBS)'!L22",{"$f":"IF(_xlfn.FORMULATEXT(INDIRECT(V177))=W177,0,1)","v":0}]
[{"$f":"ADDRESS(72,14,1,1,$A$1)","v":"Summary!$N$72"},"=L138",0,null,null,null,null,null,null,null,null,null,{"$f":"ADDRESS(65,4,1,1,$M$1)","v":"'Concentration Risk'!$D$65"},"=SUMIFS('Schedule XXI'!$M$8:$M$57,'Schedule XXI'!$K$8:$K$57,$D$61,'Schedule XXI'!$L$8:$L$57,$B65)",{"$f":"IF(_xlfn.FORMULATEXT(INDIRECT(M178))=N178,0,1)","v":0},null,null,null,null,null,null,{"$f":"ADDRESS(37,12,1,1,$V$1)","v":"'LT Variable Annuity Gte Risk'!$L$37"},8.7999999999999995E-2,{"$f":"IF(INDIRECT(V178)=W178,0,1)","v":0}]
[{"$f":"ADDRESS(74,14,1,1,$A$1)","v":"Summary!$N$74"},"=IF(YEAR('Insurer Information'!C3)<2020,(N76-G76)*10%+G76,IF(YEAR('Insurer Information'!C3)<2021,(N76-G76)*20%+G76,IF(YEAR('Insurer Information'!C3)<2022,(N76-G76)*30%+G76,IF(YEAR('Insurer Information'!C3)<2023,(N76-G76)*40%+G76,IF(YEAR('Insurer Information'!C3)<2024,(N76-G76)*50%+G76,IF(YEAR('Insurer Information'!C3)<2025,(N76-G76)*60%+G76,IF(YEAR('Insurer Information'!C3)<2026,(N76-G76)*70%+G76,IF(YEAR('Insurer Information'!C3)<2027,(N76-G76)*80%+G76,IF(YEAR('Insurer Information'!C3)<2028,(N76-G76)*90%+G76,N76)))))))))",0,null,null,null,null,null,null,null,null,null,{"$f":"ADDRESS(65,5,1,1,$M$1)","v":"'Concentration Risk'!$E$65"},1.4999999999999999E-2,{"$f":"IF(INDIRECT(M179)=N179,0,1)","v":0},null,null,null,null,null,null,{"$f":"ADDRESS(37,14,1,1,$V$1)","v":"'LT Variable Annuity Gte Risk'!$N$37"},"=+'Schedule VIII (EBS)'!N22",{"$f":"IF(_xlfn.FORMULATEXT(INDIRECT(V179))=W179,0,1)","v":0}]
[{"$f":"ADDRESS(76,7,1,1,$A$1)","v":"Summary!$G$76"},"=G64+G68+G60+G66",0,null,null,null,null,null,null,null,null,null,{"$f":"ADDRESS(65,6,1,1,$M$1)","v":"'Concentration Risk'!$F$65"},"=MAX(0,(D65*E65))",{"$f":"IF(_xlfn.FORMULATEXT(INDIRECT(M180))=N180,0,1)","v":0},null,null,null,null,null,null,{"$f":"ADDRESS(37,15,1,1,$V$1)","v":"'LT Variable Annuity Gte Risk'!$O$37"},0.6,{"$f":"IF(INDIRECT(V180)=W180,0,1)","v":0}]
[{"$f":"ADDRESS(76,14,1,1,$A$1)","v":"Summary!$N$76"},"=N64+N68+N60+N66+N72+N70",0,null,null,null,null,null,null,null,null,null,{"$f":"ADDRESS(66,2,1,1,$M$1)","v":"'Concentration Risk'!$B$66"},"BSCR Rating 4",{"$f":"IF(INDIRECT(M181)=N181,0,1)","v":0},null,null,null,null,null,null,{"$f":"ADDRESS(37,17,1,1,$V$1)","v":"'LT Variable Annuity Gte Risk'!$Q$37"},"=+'Schedule VIII (EBS)'!P22",{"$f":"IF(_xlfn.FORMULATEXT(INDIRECT(V181))=W181,0,1)","v":0}]
[{"$f":"ADDRESS(76,20,1,1,$A$1)","v":"Summary!$T$76"},"brrt_BSCR",{"$f":"IF(INDIRECT(A182)=B182,0,1)","v":0},null,null,null,null,null,null,null,null,null,{"$f":"ADDRESS(66,4,1,1,$M$1)","v":"'Concentration Risk'!$D$66"},"=SUMIFS('Schedule XXI'!$M$8:$M$57,'Schedule XXI'!$K$8:$K$57,$D$61,'Schedule XXI'!$L$8:$L$57,$B66)",{"$f":"IF(_xlfn.FORMULATEXT(INDIRECT(M182))=N182,0,1)","v":0},null,null,null,null,null,null,{"$f":"ADDRESS(37,18,1,1,$V$1)","v":"'LT Variable Annuity Gte Risk'!$R$37"},0.95,{"$f":"IF(INDIRECT(V182)=W182,0,1)","v":0}]
[{"$f":"ADDRESS(76,21,1,1,$A$1)","v":"Summary!$U$76"},"=XBRLMap(N76,T76,$D$153,$D$154,CONFIGURATION!$B$10,\"BMA\",CONFIGURATION!$B$1,\"bscr\",CONFIGURATION!$B$12)",{"$f":"IF(_xlfn.FORMULATEXT(INDIRECT(A183))=B183,0,1)","v":0},null,null,null,null,null,null,null,null,null,{"$f":"ADDRESS(66,5,1,1,$M$1)","v":"'Concentration Risk'!$E$66"},0.03,{"$f":"IF(INDIRECT(M183)=N183,0,1)","v":0},null,null,null,null,null,null,{"$f":"ADDRESS(37,20,1,1,$V$1)","v":"'LT Variable Annuity Gte Risk'!$T$37"},"=+'Schedule VIII (EBS)'!R22",{"$f":"IF(_xlfn.FORMULATEXT(INDIRECT(V183))=W183,0,1)","v":0}]
[{"$f":"ADDRESS(78,7,1,1,$A$1)","v":"Summary!$G$78"},"='Form 4EBS'!$F$6",{"$f":"IF(_xlfn.FORMULATEXT(INDIRECT(A184))=B184,0,1)","v":0},null,null,null,null,null,null,null,null,null,{"$f":"ADDRESS(66,6,1,1,$M$1)","v":"'Concentration Risk'!$F$66"},"=MAX(0,(D66*E66))",{"$f":"IF(_xlfn.FORMULATEXT(INDIRECT(M184))=N184,0,1)","v":0},null,null,null,null,null,null,{"$f":"ADDRESS(37,21,1,1,$V$1)","v":"'LT Variable Annuity Gte Risk'!$U$37"},1.35,{"$f":"IF(INDIRECT(V184)=W184,0,1)","v":0}]
[{"$f":"ADDRESS(79,26,1,1,$A$1)","v":"Summary!$Z$79"},"=N90",{"$f":"IF(_xlfn.FORMULATEXT(INDIRECT(A185))=B185,0,1)","v":0},null,null,null,null,null,null,null,null,null,{"$f":"ADDRESS(67,2,1,1,$M$1)","v":"'Concentration Risk'!$B$67"},"BSCR Rating 5",{"$f":"IF(INDIRECT(M185)=N185,0,1)","v":0},null,null,null,null,null,null,{"$f":"ADDRESS(37,23,1,1,$V$1)","v":"'LT Variable Annuity Gte Risk'!$W$37"},"=IF(ISERROR(OR(E37*F37+H37*I37+K37*L37,N37*O37+Q37*R37+T37*U37)),0,MAX(E37*F37+H37*I37+K37*L37,N37*O37+Q37*R37+T37*U37))",{"$f":"IF(_xlfn.FORMULATEXT(INDIRECT(V185))=W185,0,1)","v":0}]
[{"$f":"ADDRESS(80,7,1,1,$A$1)","v":"Summary!$G$80"},"='Form 4EBS'!F184",{"$f":"IF(_xlfn.FORMULATEXT(INDIRECT(A186))=B186,0,1)","v":0},null,null,null,null,null,null,null,null,null,{"$f":"ADDRESS(67,4,1,1,$M$1)","v":"'Concentration Risk'!$D$67"},"=SUMIFS('Schedule XXI'!$M$8:$M$57,'Schedule XXI'!$K$8:$K$57,$D$61,'Schedule XXI'!$L$8:$L$57,$B67)",{"$f":"IF(_xlfn.FORMULATEXT(INDIRECT(M186))=N186,0,1)","v":0},null,null,null,null,null,null,{"$f":"ADDRESS(37,25,1,1,$V$1)","v":"'LT Variable Annuity Gte Risk'!$Y$37"},"=+'Schedule VIII (EBS)'!F22",{"$f":"IF(_xlfn.FORMULATEXT(INDIRECT(V186))=W186,0,1)","v":0}]
[{"$f":"ADDRESS(80,14,1,1,$A$1)","v":"Summary!$N$80"},"='Form 4EBS'!F184",{"$f":"IF(_xlfn.FORMULATEXT(INDIRECT(A187))=B187,0,1)","v":0},null,null,null,null,null,null,null,null,null,{"$f":"ADDRESS(67,5,1,1,$M$1)","v":"'Concentration Risk'!$E$67"},0.08,{"$f":"IF(INDIRECT(M187)=N187,0,1)","v":0},null,null,null,null,null,null,{"$f":"ADDRESS(37,27,1,1,$V$1)","v":"'LT Variable Annuity Gte Risk'!$AA$37"},"=MAX(0,W37-Y37)",{"$f":"IF(_xlfn.FORMULATEXT(INDIRECT(V187))=W187,0,1)","v":0}]
[{"$f":"ADDRESS(81,20,1,1,$A$1)","v":"Summary!$T$81"},"brrt_CapitalContribution",{"$f":"IF(INDIRECT(A188)=B188,0,1)","v":0},null,null,null,null,null,null,null,null,null,{"$f":"ADDRESS(67,6,1,1,$M$1)","v":"'Concentration Risk'!$F$67"},"=MAX(0,(D67*E67))",{"$f":"IF(_xlfn.FORMULATEXT(INDIRECT(M188))=N188,0,1)","v":0},null,null,null,null,null,null,{"$f":"ADDRESS(38,5,1,1,$V$1)","v":"'LT Variable Annuity Gte Risk'!$E$38"},"=+'Schedule VIII (EBS)'!H23",{"$f":"IF(_xlfn.FORMULATEXT(INDIRECT(V188))=W188,0,1)","v":0}]
[{"$f":"ADDRESS(81,21,1,1,$A$1)","v":"Summary!$U$81"},"=XBRLMap(N81,T81,$D$153,$D$154,CONFIGURATION!$B$10,\"BMA\",CONFIGURATION!$B$1,\"bscr\",CONFIGURATION!$B$12)",{"$f":"IF(_xlfn.FORMULATEXT(INDIRECT(A189))=B189,0,1)","v":0},null,null,null,null,null,null,null,null,null,{"$f":"ADDRESS(68,2,1,1,$M$1)","v":"'Concentration Risk'!$B$68"},"BSCR Rating 6",{"$f":"IF(INDIRECT(M189)=N189,0,1)","v":0},null,null,null,null,null,null,{"$f":"ADDRESS(38,6,1,1,$V$1)","v":"'LT Variable Annuity Gte Risk'!$F$38"},2.4E-2,{"$f":"IF(INDIRECT(V189)=W189,0,1)","v":0}]
[{"$f":"ADDRESS(82,7,1,1,$A$1)","v":"Summary!$G$82"},"=G80+G81",{"$f":"IF(_xlfn.FORMULATEXT(INDIRECT(A190))=B190,0,1)","v":0},null,null,null,null,null,null,null,null,null,{"$f":"ADDRESS(68,4,1,1,$M$1)","v":"'Concentration Risk'!$D$68"},"=SUMIFS('Schedule XXI'!$M$8:$M$57,'Schedule XXI'!$K$8:$K$57,$D$61,'Schedule XXI'!$L$8:$L$57,$B68)",{"$f":"IF(_xlfn.FORMULATEXT(INDIRECT(M190))=N190,0,1)","v":0},null,null,null,null,null,null,{"$f":"ADDRESS(38,8,1,1,$V$1)","v":"'LT Variable Annuity Gte Risk'!$H$38"},"=+'Schedule VIII (EBS)'!J23",{"$f":"IF(_xlfn.FORMULATEXT(INDIRECT(V190))=W190,0,1)","v":0}]
[{"$f":"ADDRESS(82,14,1,1,$A$1)","v":"Summary!$N$82"},"=N80+N81",{"$f":"IF(_xlfn.FORMULATEXT(INDIRECT(A191))=B191,0,1)","v":0},null,null,null,null,null,null,null,null,null,{"$f":"ADDRESS(68,5,1,1,$M$1)","v":"'Concentration Risk'!$E$68"},0.15,{"$f":"IF(INDIRECT(M191)=N191,0,1)","v":0},null,null,null,null,null,null,{"$f":"ADDRESS(38,9,1,1,$V$1)","v":"'LT Variable Annuity Gte Risk'!$I$38"},4.2999999999999997E-2,{"$f":"IF(INDIRECT(V191)=W191,0,1)","v":0}]
[{"$f":"ADDRESS(82,20,1,1,$A$1)","v":"Summary!$T$82"},"brrt_PreAdjustmentAvailableStatutoryCapitalSurplus",{"$f":"IF(INDIRECT(A192)=B192,0,1)","v":0},null,null,null,null,null,null,null,null,null,{"$f":"ADDRESS(68,6,1,1,$M$1)","v":"'Concentration Risk'!$F$68"},"=MAX(0,(D68*E68))",{"$f":"IF(_xlfn.FORMULATEXT(INDIRECT(M192))=N192,0,1)","v":0},null,null,null,null,null,null,{"$f":"ADDRESS(38,11,1,1,$V$1)","v":"'LT Variable Annuity Gte Risk'!$K$38"},"=+'Schedule VIII (EBS)'!L23",{"$f":"IF(_xlfn.FORMULATEXT(INDIRECT(V192))=W192,0,1)","v":0}]
[{"$f":"ADDRESS(82,21,1,1,$A$1)","v":"Summary!$U$82"},"=XBRLMap(N82,T82,$D$153,$D$154,CONFIGURATION!$B$10,\"BMA\",CONFIGURATION!$B$1,\"bscr\",CONFIGURATION!$B$12)",{"$f":"IF(_xlfn.FORMULATEXT(INDIRECT(A193))=B193,0,1)","v":0},null,null,null,null,null,null,null,null,null,{"$f":"ADDRESS(69,2,1,1,$M$1)","v":"'Concentration Risk'!$B$69"},"BSCR Rating 7",{"$f":"IF(INDIRECT(M193)=N193,0,1)","v":0},null,null,null,null,null,null,{"$f":"ADDRESS(38,12,1,1,$V$1)","v":"'LT Variable Annuity Gte Risk'!$L$38"},0.08,{"$f":"IF(INDIRECT(V193)=W193,0,1)","v":0}]
[{"$f":"ADDRESS(84,7,1,1,$A$1)","v":"Summary!$G$84"},0,{"$f":"IF(INDIRECT(A194)=B194,0,1)","v":0},null,null,null,null,null,null,null,null,null,{"$f":"ADDRESS(69,4,1,1,$M$1)","v":"'Concentration Risk'!$D$69"},"=SUMIFS('Schedule XXI'!$M$8:$M$57,'Schedule XXI'!$K$8:$K$57,$D$61,'Schedule XXI'!$L$8:$L$57,$B69)",{"$f":"IF(_xlfn.FORMULATEXT(INDIRECT(M194))=N194,0,1)","v":0},null,null,null,null,null,null,{"$f":"ADDRESS(38,14,1,1,$V$1)","v":"'LT Variable Annuity Gte Risk'!$N$38"},"=+'Schedule VIII (EBS)'!N23",{"$f":"IF(_xlfn.FORMULATEXT(INDIRECT(V194))=W194,0,1)","v":0}]
[{"$f":"ADDRESS(84,14,1,1,$A$1)","v":"Summary!$N$84"},0,{"$f":"IF(INDIRECT(A195)=B195,0,1)","v":0},null,null,null,null,null,null,null,null,null,{"$f":"ADDRESS(69,5,1,1,$M$1)","v":"'Concentration Risk'!$E$69"},0.26300000000000001,{"$f":"IF(INDIRECT(M195)=N195,0,1)","v":0},null,null,null,null,null,null,{"$f":"ADDRESS(38,15,1,1,$V$1)","v":"'LT Variable Annuity Gte Risk'!$O$38"},0.55000000000000004,{"$f":"IF(INDIRECT(V195)=W195,0,1)","v":0}]
[{"$f":"ADDRESS(84,20,1,1,$A$1)","v":"Summary!$T$84"},"brrt_CapitalAddonReductionBMAAssessmentAvailableStatutoryCapitalAndSurplus",{"$f":"IF(INDIRECT(A196)=B196,0,1)","v":0},null,null,null,null,null,null,null,null,null,{"$f":"ADDRESS(69,6,1,1,$M$1)","v":"'Concentration Risk'!$F$69"},"=MAX(0,(D69*E69))",{"$f":"IF(_xlfn.FORMULATEXT(INDIRECT(M196))=N196,0,1)","v":0},null,null,null,null,null,null,{"$f":"ADDRESS(38,17,1,1,$V$1)","v":"'LT Variable Annuity Gte Risk'!$Q$38"},"=+'Schedule VIII (EBS)'!P23",{"$f":"IF(_xlfn.FORMULATEXT(INDIRECT(V196))=W196,0,1)","v":0}]
[{"$f":"ADDRESS(84,21,1,1,$A$1)","v":"Summary!$U$84"},"=XBRLMap(N84,T84,$D$153,$D$154,CONFIGURATION!$B$10,\"BMA\",CONFIGURATION!$B$1,\"bscr\",CONFIGURATION!$B$12)",{"$f":"IF(_xlfn.FORMULATEXT(INDIRECT(A197))=B197,0,1)","v":0},null,null,null,null,null,null,null,null,null,{"$f":"ADDRESS(70,2,1,1,$M$1)","v":"'Concentration Risk'!$B$70"},"BSCR Rating 8",{"$f":"IF(INDIRECT(M197)=N197,0,1)","v":0},null,null,null,null,null,null,{"$f":"ADDRESS(38,18,1,1,$V$1)","v":"'LT Variable Annuity Gte Risk'!$R$38"},0.85,{"$f":"IF(INDIRECT(V197)=W197,0,1)","v":0}]
[{"$f":"ADDRESS(86,7,1,1,$A$1)","v":"Summary!$G$86"},"=G82+G84",{"$f":"IF(_xlfn.FORMULATEXT(INDIRECT(A198))=B198,0,1)","v":0},null,null,null,null,null,null,null,null,null,{"$f":"ADDRESS(70,4,1,1,$M$1)","v":"'Concentration Risk'!$D$70"},"=SUMIFS('Schedule XXI'!$M$8:$M$57,'Schedule XXI'!$K$8:$K$57,$D$61,'Schedule XXI'!$L$8:$L$57,$B70)",{"$f":"IF(_xlfn.FORMULATEXT(INDIRECT(M198))=N198,0,1)","v":0},null,null,null,null,null,null,{"$f":"ADDRESS(38,20,1,1,$V$1)","v":"'LT Variable Annuity Gte Risk'!$T$38"},"=+'Schedule VIII (EBS)'!R23",{"$f":"IF(_xlfn.FORMULATEXT(INDIRECT(V198))=W198,0,1)","v":0}]
[{"$f":"ADDRESS(86,14,1,1,$A$1)","v":"Summary!$N$86"},"=N82+N84",{"$f":"IF(_xlfn.FORMULATEXT(INDIRECT(A199))=B199,0,1)","v":0},null,null,null,null,null,null,null,null,null,{"$f":"ADDRESS(70,5,1,1,$M$1)","v":"'Concentration Risk'!$E$70"},0.35,{"$f":"IF(INDIRECT(M199)=N199,0,1)","v":0},null,null,null,null,null,null,{"$f":"ADDRESS(38,21,1,1,$V$1)","v":"'LT Variable Annuity Gte Risk'!$U$38"},1.1499999999999999,{"$f":"IF(INDIRECT(V199)=W199,0,1)","v":0}]
[{"$f":"ADDRESS(86,20,1,1,$A$1)","v":"Summary!$T$86"},"brrt_AvailableStatutoryCapitalSurplus",{"$f":"IF(INDIRECT(A200)=B200,0,1)","v":0},null,null,null,null,null,null,null,null,null,{"$f":"ADDRESS(70,6,1,1,$M$1)","v":"'Concentration Risk'!$F$70"},"=MAX(0,(D70*E70))",{"$f":"IF(_xlfn.FORMULATEXT(INDIRECT(M200))=N200,0,1)","v":0},null,null,null,null,null,null,{"$f":"ADDRESS(38,23,1,1,$V$1)","v":"'LT Variable Annuity Gte Risk'!$W$38"},"=IF(ISERROR(OR(E38*F38+H38*I38+K38*L38,N38*O38+Q38*R38+T38*U38)),0,MAX(E38*F38+H38*I38+K38*L38,N38*O38+Q38*R38+T38*U38))",{"$f":"IF(_xlfn.FORMULATEXT(INDIRECT(V200))=W200,0,1)","v":0}]
[{"$f":"ADDRESS(86,21,1,1,$A$1)","v":"Summary!$U$86"},"=XBRLMap(N86,T86,$D$153,$D$154,CONFIGURATION!$B$10,\"BMA\",CONFIGURATION!$B$1,\"bscr\",CONFIGURATION!$B$12)",{"$f":"IF(_xlfn.FORMULATEXT(INDIRECT(A201))=B201,0,1)","v":0},null,null,null,null,null,null,null,null,null,{"$f":"ADDRESS(72,4,1,1,$M$1)","v":"'Concentration Risk'!$D$72"},"=SUM(D62:D70)",{"$f":"IF(_xlfn.FORMULATEXT(INDIRECT(M201))=N201,0,1)","v":0},null,null,null,null,null,null,{"$f":"ADDRESS(38,25,1,1,$V$1)","v":"'LT Variable Annuity Gte Risk'!$Y$38"},"=+'Schedule VIII (EBS)'!F23",{"$f":"IF(_xlfn.FORMULATEXT(INDIRECT(V201))=W201,0,1)","v":0}]
[{"$f":"ADDRESS(88,7,1,1,$A$1)","v":"Summary!$G$88"},"='Form 4EBS'!$F$6",{"$f":"IF(_xlfn.FORMULATEXT(INDIRECT(A202))=B202,0,1)","v":0},null,null,null,null,null,null,null,null,null,{"$f":"ADDRESS(72,6,1,1,$M$1)","v":"'Concentration Risk'!$F$72"},"=SUM(F62:F70)",{"$f":"IF(_xlfn.FORMULATEXT(INDIRECT(M202))=N202,0,1)","v":0},null,null,null,null,null,null,{"$f":"ADDRESS(38,27,1,1,$V$1)","v":"'LT Variable Annuity Gte Risk'!$AA$38"},"=MAX(0,W38-Y38)",{"$f":"IF(_xlfn.FORMULATEXT(INDIRECT(V202))=W202,0,1)","v":0}]
[{"$f":"ADDRESS(90,7,1,1,$A$1)","v":"Summary!$G$90"},"=MAX((G76*25%),(IF('Insurer Information'!F9=\"Class E\",AG69,IF('Insurer Information'!F9=\"Class D\",AG68,IF('Insurer Information'!F9=\"Class C\",AG65,IF('Insurer Information'!F9=\"Class B\",AG64,IF('Insurer Information'!F9=\"Class A\",AG63,0)))))))",{"$f":"IF(_xlfn.FORMULATEXT(INDIRECT(A203))=B203,0,1)","v":0},null,null,null,null,null,null,null,null,null,{"$f":"ADDRESS(74,4,1,1,$M$1)","v":"'Concentration Risk'!$D$74"},"Preferred Shares",{"$f":"IF(INDIRECT(M203)=N203,0,1)","v":0},null,null,null,null,null,null,{"$f":"ADDRESS(39,5,1,1,$V$1)","v":"'LT Variable Annuity Gte Risk'!$E$39"},"=+'Schedule VIII (EBS)'!H24",{"$f":"IF(_xlfn.FORMULATEXT(INDIRECT(V203))=W203,0,1)","v":0}]
[{"$f":"ADDRESS(90,14,1,1,$A$1)","v":"Summary!$N$90"},"=MAX((N76*25%),(IF('Insurer Information'!F9=\"Class E\",AG69,IF('Insurer Information'!F9=\"Class D\",AG68,IF('Insurer Information'!F9=\"Class C\",AG65,IF('Insurer Information'!F9=\"Class B\",AG64,IF('Insurer Information'!F9=\"Class A\",AG63,0)))))))",{"$f":"IF(_xlfn.FORMULATEXT(INDIRECT(A204))=B204,0,1)","v":0},null,null,null,null,null,null,null,null,null,{"$f":"ADDRESS(75,2,1,1,$M$1)","v":"'Concentration Risk'!$B$75"},"BSCR Rating 0",{"$f":"IF(INDIRECT(M204)=N204,0,1)","v":0},null,null,null,null,null,null,{"$f":"ADDRESS(39,6,1,1,$V$1)","v":"'LT Variable Annuity Gte Risk'!$F$39"},0.02,{"$f":"IF(INDIRECT(V204)=W204,0,1)","v":0}]
[{"$f":"ADDRESS(90,20,1,1,$A$1)","v":"Summary!$T$90"},"brrt_MinimumSolvencyMarginPreAdjustmentFactor",{"$f":"IF(INDIRECT(A205)=B205,0,1)","v":0},null,null,null,null,null,null,null,null,null,{"$f":"ADDRESS(75,4,1,1,$M$1)","v":"'Concentration Risk'!$D$75"},"=SUMIFS('Schedule XXI'!$M$8:$M$57,'Schedule XXI'!$J$8:$J$57,$D$74,'Schedule XXI'!$L$8:$L$57,$B75)",{"$f":"IF(_xlfn.FORMULATEXT(INDIRECT(M205))=N205,0,1)","v":0},null,null,null,null,null,null,{"$f":"ADDRESS(39,8,1,1,$V$1)","v":"'LT Variable Annuity Gte Risk'!$H$39"},"=+'Schedule VIII (EBS)'!J24",{"$f":"IF(_xlfn.FORMULATEXT(INDIRECT(V205))=W205,0,1)","v":0}]
[{"$f":"ADDRESS(90,21,1,1,$A$1)","v":"Summary!$U$90"},"=XBRLMap(N90,T90,$D$153,$D$154,CONFIGURATION!$B$10,\"BMA\",CONFIGURATION!$B$1,\"bscr\",CONFIGURATION!$B$12)",{"$f":"IF(_xlfn.FORMULATEXT(INDIRECT(A206))=B206,0,1)","v":0},null,null,null,null,null,null,null,null,null,{"$f":"ADDRESS(75,5,1,1,$M$1)","v":"'Concentration Risk'!$E$75"},0,{"$f":"IF(INDIRECT(M206)=N206,0,1)","v":0},null,null,null,null,null,null,{"$f":"ADDRESS(39,9,1,1,$V$1)","v":"'LT Variable Annuity Gte Risk'!$I$39"},3.5000000000000003E-2,{"$f":"IF(INDIRECT(V206)=W206,0,1)","v":0}]
[{"$f":"ADDRESS(91,20,1,1,$A$1)","v":"Summary!$T$91"},"brrt_MinimumSolvencyMarginTransitionalAdjustmentFactor",{"$f":"IF(INDIRECT(A207)=B207,0,1)","v":0},null,null,null,null,null,null,null,null,null,{"$f":"ADDRESS(75,6,1,1,$M$1)","v":"'Concentration Risk'!$F$75"},"=MAX(0,(D75*E75))",{"$f":"IF(_xlfn.FORMULATEXT(INDIRECT(M207))=N207,0,1)","v":0},null,null,null,null,null,null,{"$f":"ADDRESS(39,11,1,1,$V$1)","v":"'LT Variable Annuity Gte Risk'!$K$39"},"=+'Schedule VIII (EBS)'!L24",{"$f":"IF(_xlfn.FORMULATEXT(INDIRECT(V207))=W207,0,1)","v":0}]
[{"$f":"ADDRESS(91,21,1,1,$A$1)","v":"Summary!$U$91"},"=XBRLMap(N91,T91,$D$153,$D$154,CONFIGURATION!$B$10,\"BMA\",CONFIGURATION!$B$1,\"bscr\")",{"$f":"IF(_xlfn.FORMULATEXT(INDIRECT(A208))=B208,0,1)","v":0},null,null,null,null,null,null,null,null,null,{"$f":"ADDRESS(76,2,1,1,$M$1)","v":"'Concentration Risk'!$B$76"},"BSCR Rating 1",{"$f":"IF(INDIRECT(M208)=N208,0,1)","v":0},null,null,null,null,null,null,{"$f":"ADDRESS(39,12,1,1,$V$1)","v":"'LT Variable Annuity Gte Risk'!$L$39"},6.8000000000000005E-2,{"$f":"IF(INDIRECT(V208)=W208,0,1)","v":0}]
[{"$f":"ADDRESS(92,7,1,1,$A$1)","v":"Summary!$G$92"},"=SUM(G90:G91)",0,null,null,null,null,null,null,null,null,null,{"$f":"ADDRESS(76,4,1,1,$M$1)","v":"'Concentration Risk'!$D$76"},"=SUMIFS('Schedule XXI'!$M$8:$M$57,'Schedule XXI'!$J$8:$J$57,$D$74,'Schedule XXI'!$L$8:$L$57,$B76)",{"$f":"IF(_xlfn.FORMULATEXT(INDIRECT(M209))=N209,0,1)","v":0},null,null,null,null,null,null,{"$f":"ADDRESS(39,14,1,1,$V$1)","v":"'LT Variable Annuity Gte Risk'!$N$39"},"=+'Schedule VIII (EBS)'!N24",{"$f":"IF(_xlfn.FORMULATEXT(INDIRECT(V209))=W209,0,1)","v":0}]
[{"$f":"ADDRESS(92,14,1,1,$A$1)","v":"Summary!$N$92"},"=SUM(N90:N91)",0,null,null,null,null,null,null,null,null,null,{"$f":"ADDRESS(76,5,1,1,$M$1)","v":"'Concentration Risk'!$E$76"},6.0000000000000001E-3,{"$f":"IF(INDIRECT(M210)=N210,0,1)","v":0},null,null,null,null,null,null,{"$f":"ADDRESS(39,15,1,1,$V$1)","v":"'LT Variable Annuity Gte Risk'!$O$39"},0.5,{"$f":"IF(INDIRECT(V210)=W210,0,1)","v":0}]
[{"$f":"ADDRESS(94,7,1,1,$A$1)","v":"Summary!$G$94"},"='Form 4EBS'!$F$6",0,null,null,null,null,null,null,null,null,null,{"$f":"ADDRESS(76,6,1,1,$M$1)","v":"'Concentration Risk'!$F$76"},"=MAX(0,(D76*E76))",{"$f":"IF(_xlfn.FORMULATEXT(INDIRECT(M211))=N211,0,1)","v":0},null,null,null,null,null,null,{"$f":"ADDRESS(39,17,1,1,$V$1)","v":"'LT Variable Annuity Gte Risk'!$Q$39"},"=+'Schedule VIII (EBS)'!P24",{"$f":"IF(_xlfn.FORMULATEXT(INDIRECT(V211))=W211,0,1)","v":0}]
[{"$f":"ADDRESS(94,27,1,1,$A$1)","v":"Summary!$AA$94"},"=G86",0,null,null,null,null,null,null,null,null,null,{"$f":"ADDRESS(77,2,1,1,$M$1)","v":"'Concentration Risk'!$B$77"},"BSCR Rating 2",{"$f":"IF(INDIRECT(M212)=N212,0,1)","v":0},null,null,null,null,null,null,{"$f":"ADDRESS(39,18,1,1,$V$1)","v":"'LT Variable Annuity Gte Risk'!$R$39"},0.75,{"$f":"IF(INDIRECT(V212)=W212,0,1)","v":0}]
[{"$f":"ADDRESS(94,29,1,1,$A$1)","v":"Summary!$AC$94"},"=AC$102-AA94",0,null,null,null,null,null,null,null,null,null,{"$f":"ADDRESS(77,4,1,1,$M$1)","v":"'Concentration Risk'!$D$77"},"=SUMIFS('Schedule XXI'!$M$8:$M$57,'Schedule XXI'!$J$8:$J$57,$D$74,'Schedule XXI'!$L$8:$L$57,$B77)",{"$f":"IF(_xlfn.FORMULATEXT(INDIRECT(M213))=N213,0,1)","v":0},null,null,null,null,null,null,{"$f":"ADDRESS(39,20,1,1,$V$1)","v":"'LT Variable Annuity Gte Risk'!$T$39"},"=+'Schedule VIII (EBS)'!R24",{"$f":"IF(_xlfn.FORMULATEXT(INDIRECT(V213))=W213,0,1)","v":0}]
[{"$f":"ADDRESS(94,30,1,1,$A$1)","v":"Summary!$AD$94"},"=IF($N$86=0,25000000,1000*$N$86)",0,null,null,null,null,null,null,null,null,null,{"$f":"ADDRESS(77,5,1,1,$M$1)","v":"'Concentration Risk'!$E$77"},1.2E-2,{"$f":"IF(INDIRECT(M214)=N214,0,1)","v":0},null,null,null,null,null,null,{"$f":"ADDRESS(39,21,1,1,$V$1)","v":"'LT Variable Annuity Gte Risk'!$U$39"},1,{"$f":"IF(INDIRECT(V214)=W214,0,1)","v":0}]
[{"$f":"ADDRESS(96,14,1,1,$A$1)","v":"Summary!$N$96"},"=MAX(N74,N92)",0,null,null,null,null,null,null,null,null,null,{"$f":"ADDRESS(77,6,1,1,$M$1)","v":"'Concentration Risk'!$F$77"},"=MAX(0,(D77*E77))",{"$f":"IF(_xlfn.FORMULATEXT(INDIRECT(M215))=N215,0,1)","v":0},null,null,null,null,null,null,{"$f":"ADDRESS(39,23,1,1,$V$1)","v":"'LT Variable Annuity Gte Risk'!$W$39"},"=IF(ISERROR(OR(E39*F39+H39*I39+K39*L39,N39*O39+Q39*R39+T39*U39)),0,MAX(E39*F39+H39*I39+K39*L39,N39*O39+Q39*R39+T39*U39))",{"$f":"IF(_xlfn.FORMULATEXT(INDIRECT(V215))=W215,0,1)","v":0}]
[{"$f":"ADDRESS(98,7,1,1,$A$1)","v":"Summary!$G$98"},"=MAX(G76,G92)",0,null,null,null,null,null,null,null,null,null,{"$f":"ADDRESS(78,2,1,1,$M$1)","v":"'Concentration Risk'!$B$78"},"BSCR Rating 3",{"$f":"IF(INDIRECT(M216)=N216,0,1)","v":0},null,null,null,null,null,null,{"$f":"ADDRESS(39,25,1,1,$V$1)","v":"'LT Variable Annuity Gte Risk'!$Y$39"},"=+'Schedule VIII (EBS)'!F24",{"$f":"IF(_xlfn.FORMULATEXT(INDIRECT(V216))=W216,0,1)","v":0}]
[{"$f":"ADDRESS(98,14,1,1,$A$1)","v":"Summary!$N$98"},"=MAX(N76,N92)",0,null,null,null,null,null,null,null,null,null,{"$f":"ADDRESS(78,4,1,1,$M$1)","v":"'Concentration Risk'!$D$78"},"=SUMIFS('Schedule XXI'!$M$8:$M$57,'Schedule XXI'!$J$8:$J$57,$D$74,'Schedule XXI'!$L$8:$L$57,$B78)",{"$f":"IF(_xlfn.FORMULATEXT(INDIRECT(M217))=N217,0,1)","v":0},null,null,null,null,null,null,{"$f":"ADDRESS(39,27,1,1,$V$1)","v":"'LT Variable Annuity Gte Risk'!$AA$39"},"=MAX(0,W39-Y39)",{"$f":"IF(_xlfn.FORMULATEXT(INDIRECT(V217))=W217,0,1)","v":0}]
[{"$f":"ADDRESS(98,20,1,1,$A$1)","v":"Summary!$T$98"},"brrt_EnhancedCapitalRequirementPreAdjustmentFactor",{"$f":"IF(INDIRECT(A218)=B218,0,1)","v":0},null,null,null,null,null,null,null,null,null,{"$f":"ADDRESS(78,5,1,1,$M$1)","v":"'Concentration Risk'!$E$78"},0.02,{"$f":"IF(INDIRECT(M218)=N218,0,1)","v":0},null,null,null,null,null,null,{"$f":"ADDRESS(40,5,1,1,$V$1)","v":"'LT Variable Annuity Gte Risk'!$E$40"},"=+'Schedule VIII (EBS)'!H25",{"$f":"IF(_xlfn.FORMULATEXT(INDIRECT(V218))=W218,0,1)","v":0}]
[{"$f":"ADDRESS(98,21,1,1,$A$1)","v":"Summary!$U$98"},"=XBRLMap(N98,T98,$D$153,$D$154,CONFIGURATION!$B$10,\"BMA\",CONFIGURATION!$B$1,\"bscr\",CONFIGURATION!$B$12)",{"$f":"IF(_xlfn.FORMULATEXT(INDIRECT(A219))=B219,0,1)","v":0},null,null,null,null,null,null,null,null,null,{"$f":"ADDRESS(78,6,1,1,$M$1)","v":"'Concentration Risk'!$F$78"},"=MAX(0,(D78*E78))",{"$f":"IF(_xlfn.FORMULATEXT(INDIRECT(M219))=N219,0,1)","v":0},null,null,null,null,null,null,{"$f":"ADDRESS(40,6,1,1,$V$1)","v":"'LT Variable Annuity Gte Risk'!$F$40"},1.7000000000000001E-2,{"$f":"IF(INDIRECT(V219)=W219,0,1)","v":0}]
[{"$f":"ADDRESS(98,29,1,1,$A$1)","v":"Summary!$AC$98"},"=AC$102-AA98",{"$f":"IF(_xlfn.FORMULATEXT(INDIRECT(A220))=B220,0,1)","v":0},null,null,null,null,null,null,null,null,null,{"$f":"ADDRESS(79,2,1,1,$M$1)","v":"'Concentration Risk'!$B$79"},"BSCR Rating 4",{"$f":"IF(INDIRECT(M220)=N220,0,1)","v":0},null,null,null,null,null,null,{"$f":"ADDRESS(40,8,1,1,$V$1)","v":"'LT Variable Annuity Gte Risk'!$H$40"},"=+'Schedule VIII (EBS)'!J25",{"$f":"IF(_xlfn.FORMULATEXT(INDIRECT(V220))=W220,0,1)","v":0}]
[{"$f":"ADDRESS(98,30,1,1,$A$1)","v":"Summary!$AD$98"},"=IF(N98=0,15000000,1000*N98)",{"$f":"IF(_xlfn.FORMULATEXT(INDIRECT(A221))=B221,0,1)","v":0},null,null,null,null,null,null,null,null,null,{"$f":"ADDRESS(79,4,1,1,$M$1)","v":"'Concentration Risk'!$D$79"},"=SUMIFS('Schedule XXI'!$M$8:$M$57,'Schedule XXI'!$J$8:$J$57,$D$74,'Schedule XXI'!$L$8:$L$57,$B79)",{"$f":"IF(_xlfn.FORMULATEXT(INDIRECT(M221))=N221,0,1)","v":0},null,null,null,null,null,null,{"$f":"ADDRESS(40,9,1,1,$V$1)","v":"'LT Variable Annuity Gte Risk'!$I$40"},2.8000000000000001E-2,{"$f":"IF(INDIRECT(V221)=W221,0,1)","v":0}]
[{"$f":"ADDRESS(99,20,1,1,$A$1)","v":"Summary!$T$99"},"brrt_EnhancedCapitalRequirementTransitionalAdjustmentFactor",{"$f":"IF(INDIRECT(A222)=B222,0,1)","v":0},null,null,null,null,null,null,null,null,null,{"$f":"ADDRESS(79,5,1,1,$M$1)","v":"'Concentration Risk'!$E$79"},0.04,{"$f":"IF(INDIRECT(M222)=N222,0,1)","v":0},null,null,null,null,null,null,{"$f":"ADDRESS(40,11,1,1,$V$1)","v":"'LT Variable Annuity Gte Risk'!$K$40"},"=+'Schedule VIII (EBS)'!L25",{"$f":"IF(_xlfn.FORMULATEXT(INDIRECT(V222))=W222,0,1)","v":0}]
[{"$f":"ADDRESS(99,21,1,1,$A$1)","v":"Summary!$U$99"},"=XBRLMap(#REF!,T99,$D$153,$D$154,CONFIGURATION!$B$10,\"BMA\",CONFIGURATION!$B$1,\"bscr\")",{"$f":"IF(_xlfn.FORMULATEXT(INDIRECT(A223))=B223,0,1)","v":0},null,null,null,null,null,null,null,null,null,{"$f":"ADDRESS(79,6,1,1,$M$1)","v":"'Concentration Risk'!$F$79"},"=MAX(0,(D79*E79))",{"$f":"IF(_xlfn.FORMULATEXT(INDIRECT(M223))=N223,0,1)","v":0},null,null,null,null,null,null,{"$f":"ADDRESS(40,12,1,1,$V$1)","v":"'LT Variable Annuity Gte Risk'!$L$40"},5.8999999999999997E-2,{"$f":"IF(INDIRECT(V223)=W223,0,1)","v":0}]
[{"$f":"ADDRESS(100,14,1,1,$A$1)","v":"Summary!$N$100"},"=N96*1.2",0,null,null,null,null,null,null,null,null,null,{"$f":"ADDRESS(80,2,1,1,$M$1)","v":"'Concentration Risk'!$B$80"},"BSCR Rating 5",{"$f":"IF(INDIRECT(M224)=N224,0,1)","v":0},null,null,null,null,null,null,{"$f":"ADDRESS(40,14,1,1,$V$1)","v":"'LT Variable Annuity Gte Risk'!$N$40"},"=+'Schedule VIII (EBS)'!N25",{"$f":"IF(_xlfn.FORMULATEXT(INDIRECT(V224))=W224,0,1)","v":0}]
[{"$f":"ADDRESS(100,29,1,1,$A$1)","v":"Summary!$AC$100"},"=AC$102-AA100",0,null,null,null,null,null,null,null,null,null,{"$f":"ADDRESS(80,4,1,1,$M$1)","v":"'Concentration Risk'!$D$80"},"=SUMIFS('Schedule XXI'!$M$8:$M$57,'Schedule XXI'!$J$8:$J$57,$D$74,'Schedule XXI'!$L$8:$L$57,$B80)",{"$f":"IF(_xlfn.FORMULATEXT(INDIRECT(M225))=N225,0,1)","v":0},null,null,null,null,null,null,{"$f":"ADDRESS(40,15,1,1,$V$1)","v":"'LT Variable Annuity Gte Risk'!$O$40"},0.45,{"$f":"IF(INDIRECT(V225)=W225,0,1)","v":0}]
[{"$f":"ADDRESS(100,30,1,1,$A$1)","v":"Summary!$AD$100"},"=IF($N$102=0,18000000,1000*$N$102)",0,null,null,null,null,null,null,null,null,null,{"$f":"ADDRESS(80,5,1,1,$M$1)","v":"'Concentration Risk'!$E$80"},0.11,{"$f":"IF(INDIRECT(M226)=N226,0,1)","v":0},null,null,null,null,null,null,{"$f":"ADDRESS(40,17,1,1,$V$1)","v":"'LT Variable Annuity Gte Risk'!$Q$40"},"=+'Schedule VIII (EBS)'!P25",{"$f":"IF(_xlfn.FORMULATEXT(INDIRECT(V226))=W226,0,1)","v":0}]
[{"$f":"ADDRESS(102,7,1,1,$A$1)","v":"Summary!$G$102"},"=$G$98*1.2",0,null,null,null,null,null,null,null,null,null,{"$f":"ADDRESS(80,6,1,1,$M$1)","v":"'Concentration Risk'!$F$80"},"=MAX(0,(D80*E80))",{"$f":"IF(_xlfn.FORMULATEXT(INDIRECT(M227))=N227,0,1)","v":0},null,null,null,null,null,null,{"$f":"ADDRESS(40,18,1,1,$V$1)","v":"'LT Variable Annuity Gte Risk'!$R$40"},0.65,{"$f":"IF(INDIRECT(V227)=W227,0,1)","v":0}]
[{"$f":"ADDRESS(102,14,1,1,$A$1)","v":"Summary!$N$102"},"=$N$98*1.2",0,null,null,null,null,null,null,null,null,null,{"$f":"ADDRESS(81,2,1,1,$M$1)","v":"'Concentration Risk'!$B$81"},"BSCR Rating 6",{"$f":"IF(INDIRECT(M228)=N228,0,1)","v":0},null,null,null,null,null,null,{"$f":"ADDRESS(40,20,1,1,$V$1)","v":"'LT Variable Annuity Gte Risk'!$T$40"},"=+'Schedule VIII (EBS)'!R25",{"$f":"IF(_xlfn.FORMULATEXT(INDIRECT(V228))=W228,0,1)","v":0}]
[{"$f":"ADDRESS(102,20,1,1,$A$1)","v":"Summary!$T$102"},"brrt_TargetCapitalLevel",{"$f":"IF(INDIRECT(A229)=B229,0,1)","v":0},null,null,null,null,null,null,null,null,null,{"$f":"ADDRESS(81,4,1,1,$M$1)","v":"'Concentration Risk'!$D$81"},"=SUMIFS('Schedule XXI'!$M$8:$M$57,'Schedule XXI'!$J$8:$J$57,$D$74,'Schedule XXI'!$L$8:$L$57,$B81)",{"$f":"IF(_xlfn.FORMULATEXT(INDIRECT(M229))=N229,0,1)","v":0},null,null,null,null,null,null,{"$f":"ADDRESS(40,21,1,1,$V$1)","v":"'LT Variable Annuity Gte Risk'!$U$40"},0.9,{"$f":"IF(INDIRECT(V229)=W229,0,1)","v":0}]
[{"$f":"ADDRESS(102,21,1,1,$A$1)","v":"Summary!$U$102"},"=XBRLMap(N102,T102,$D$153,$D$154,CONFIGURATION!$B$10,\"BMA\",CONFIGURATION!$B$1,\"bscr\",CONFIGURATION!$B$12)",{"$f":"IF(_xlfn.FORMULATEXT(INDIRECT(A230))=B230,0,1)","v":0},null,null,null,null,null,null,null,null,null,{"$f":"ADDRESS(81,5,1,1,$M$1)","v":"'Concentration Risk'!$E$81"},0.25,{"$f":"IF(INDIRECT(M230)=N230,0,1)","v":0},null,null,null,null,null,null,{"$f":"ADDRESS(40,23,1,1,$V$1)","v":"'LT Variable Annuity Gte Risk'!$W$40"},"=IF(ISERROR(OR(E40*F40+H40*I40+K40*L40,N40*O40+Q40*R40+T40*U40)),0,MAX(E40*F40+H40*I40+K40*L40,N40*O40+Q40*R40+T40*U40))",{"$f":"IF(_xlfn.FORMULATEXT(INDIRECT(V230))=W230,0,1)","v":0}]
[{"$f":"ADDRESS(102,29,1,1,$A$1)","v":"Summary!$AC$102"},"=MAX(AD94:AD103)",0,null,null,null,null,null,null,null,null,null,{"$f":"ADDRESS(81,6,1,1,$M$1)","v":"'Concentration Risk'!$F$81"},"=MAX(0,(D81*E81))",{"$f":"IF(_xlfn.FORMULATEXT(INDIRECT(M231))=N231,0,1)","v":0},null,null,null,null,null,null,{"$f":"ADDRESS(40,25,1,1,$V$1)","v":"'LT Variable Annuity Gte Risk'!$Y$40"},"=+'Schedule VIII (EBS)'!F25",{"$f":"IF(_xlfn.FORMULATEXT(INDIRECT(V231))=W231,0,1)","v":0}]
[{"$f":"ADDRESS(104,7,1,1,$A$1)","v":"Summary!$G$104"},"='Form 4EBS'!$F$6",0,null,null,null,null,null,null,null,null,null,{"$f":"ADDRESS(82,2,1,1,$M$1)","v":"'Concentration Risk'!$B$82"},"BSCR Rating 7",{"$f":"IF(INDIRECT(M232)=N232,0,1)","v":0},null,null,null,null,null,null,{"$f":"ADDRESS(40,27,1,1,$V$1)","v":"'LT Variable Annuity Gte Risk'!$AA$40"},"=MAX(0,W40-Y40)",{"$f":"IF(_xlfn.FORMULATEXT(INDIRECT(V232))=W232,0,1)","v":0}]
[{"$f":"ADDRESS(106,14,1,1,$A$1)","v":"Summary!$N$106"},"=IF(N74=0,\"n/a\",N86/N74)",0,null,null,null,null,null,null,null,null,null,{"$f":"ADDRESS(82,4,1,1,$M$1)","v":"'Concentration Risk'!$D$82"},"=SUMIFS('Schedule XXI'!$M$8:$M$57,'Schedule XXI'!$J$8:$J$57,$D$74,'Schedule XXI'!$L$8:$L$57,$B82)",{"$f":"IF(_xlfn.FORMULATEXT(INDIRECT(M233))=N233,0,1)","v":0},null,null,null,null,null,null,{"$f":"ADDRESS(41,5,1,1,$V$1)","v":"'LT Variable Annuity Gte Risk'!$E$41"},"=+'Schedule VIII (EBS)'!H26",{"$f":"IF(_xlfn.FORMULATEXT(INDIRECT(V233))=W233,0,1)","v":0}]
[{"$f":"ADDRESS(108,7,1,1,$A$1)","v":"Summary!$G$108"},"=IF($G$76=0,\"n/a\",$G$86/$G$76)",0,null,null,null,null,null,null,null,null,null,{"$f":"ADDRESS(82,5,1,1,$M$1)","v":"'Concentration Risk'!$E$82"},0.35,{"$f":"IF(INDIRECT(M234)=N234,0,1)","v":0},null,null,null,null,null,null,{"$f":"ADDRESS(41,6,1,1,$V$1)","v":"'LT Variable Annuity Gte Risk'!$F$41"},1.4E-2,{"$f":"IF(INDIRECT(V234)=W234,0,1)","v":0}]
[{"$f":"ADDRESS(108,14,1,1,$A$1)","v":"Summary!$N$108"},"=IF($N$76=0,\"n/a\",$N$86/$N$76)",0,null,null,null,null,null,null,null,null,null,{"$f":"ADDRESS(82,6,1,1,$M$1)","v":"'Concentration Risk'!$F$82"},"=MAX(0,(D82*E82))",{"$f":"IF(_xlfn.FORMULATEXT(INDIRECT(M235))=N235,0,1)","v":0},null,null,null,null,null,null,{"$f":"ADDRESS(41,8,1,1,$V$1)","v":"'LT Variable Annuity Gte Risk'!$H$41"},"=+'Schedule VIII (EBS)'!J26",{"$f":"IF(_xlfn.FORMULATEXT(INDIRECT(V235))=W235,0,1)","v":0}]
[{"$f":"ADDRESS(108,20,1,1,$A$1)","v":"Summary!$T$108"},"brrt_BSCRRatio",{"$f":"IF(INDIRECT(A236)=B236,0,1)","v":0},null,null,null,null,null,null,null,null,null,{"$f":"ADDRESS(83,2,1,1,$M$1)","v":"'Concentration Risk'!$B$83"},"BSCR Rating 8",{"$f":"IF(INDIRECT(M236)=N236,0,1)","v":0},null,null,null,null,null,null,{"$f":"ADDRESS(41,9,1,1,$V$1)","v":"'LT Variable Annuity Gte Risk'!$I$41"},2.1000000000000001E-2,{"$f":"IF(INDIRECT(V236)=W236,0,1)","v":0}]
[{"$f":"ADDRESS(108,21,1,1,$A$1)","v":"Summary!$U$108"},"=XBRLMap(N108,T108,$D$153,$D$154,CONFIGURATION!$B$10,\"BMA\",CONFIGURATION!$B$1,\"bscr\",CONFIGURATION!$B$12)",{"$f":"IF(_xlfn.FORMULATEXT(INDIRECT(A237))=B237,0,1)","v":0},null,null,null,null,null,null,null,null,null,{"$f":"ADDRESS(83,4,1,1,$M$1)","v":"'Concentration Risk'!$D$83"},"=SUMIFS('Schedule XXI'!$M$8:$M$57,'Schedule XXI'!$J$8:$J$57,$D$74,'Schedule XXI'!$L$8:$L$57,$B83)",{"$f":"IF(_xlfn.FORMULATEXT(INDIRECT(M237))=N237,0,1)","v":0},null,null,null,null,null,null,{"$f":"ADDRESS(41,11,1,1,$V$1)","v":"'LT Variable Annuity Gte Risk'!$K$41"},"=+'Schedule VIII (EBS)'!L26",{"$f":"IF(_xlfn.FORMULATEXT(INDIRECT(V237))=W237,0,1)","v":0}]
[{"$f":"ADDRESS(110,14,1,1,$A$1)","v":"Summary!$N$110"},"=IF(N96=0,\"n/a\",N86/N96)",{"$f":"IF(_xlfn.FORMULATEXT(INDIRECT(A238))=B238,0,1)","v":0},null,null,null,null,null,null,null,null,null,{"$f":"ADDRESS(83,5,1,1,$M$1)","v":"'Concentration Risk'!$E$83"},0.35,{"$f":"IF(INDIRECT(M238)=N238,0,1)","v":0},null,null,null,null,null,null,{"$f":"ADDRESS(41,12,1,1,$V$1)","v":"'LT Variable Annuity Gte Risk'!$L$41"},4.9000000000000002E-2,{"$f":"IF(INDIRECT(V238)=W238,0,1)","v":0}]
[{"$f":"ADDRESS(110,20,1,1,$A$1)","v":"Summary!$T$110"},"brrt_TransitoryEnhancedCapitalRequirementRatio",{"$f":"IF(INDIRECT(A239)=B239,0,1)","v":0},null,null,null,null,null,null,null,null,null,{"$f":"ADDRESS(83,6,1,1,$M$1)","v":"'Concentration Risk'!$F$83"},"=MAX(0,(D83*E83))",{"$f":"IF(_xlfn.FORMULATEXT(INDIRECT(M239))=N239,0,1)","v":0},null,null,null,null,null,null,{"$f":"ADDRESS(41,14,1,1,$V$1)","v":"'LT Variable Annuity Gte Risk'!$N$41"},"=+'Schedule VIII (EBS)'!N26",{"$f":"IF(_xlfn.FORMULATEXT(INDIRECT(V239))=W239,0,1)","v":0}]
[{"$f":"ADDRESS(110,21,1,1,$A$1)","v":"Summary!$U$110"},"=XBRLMap(#REF!,T110,$D$153,$D$154,CONFIGURATION!$B$10,\"BMA\",CONFIGURATION!$B$1,\"bscr\",CONFIGURATION!$B$12)",{"$f":"IF(_xlfn.FORMULATEXT(INDIRECT(A240))=B240,0,1)","v":0},null,null,null,null,null,null,null,null,null,{"$f":"ADDRESS(85,4,1,1,$M$1)","v":"'Concentration Risk'!$D$85"},"=SUM(D75:D83)",{"$f":"IF(_xlfn.FORMULATEXT(INDIRECT(M240))=N240,0,1)","v":0},null,null,null,null,null,null,{"$f":"ADDRESS(41,15,1,1,$V$1)","v":"'LT Variable Annuity Gte Risk'!$O$41"},0.4,{"$f":"IF(INDIRECT(V240)=W240,0,1)","v":0}]
[{"$f":"ADDRESS(112,7,1,1,$A$1)","v":"Summary!$G$112"},"=IF(G98=0,\"n/a\",$G$86/G98)",{"$f":"IF(_xlfn.FORMULATEXT(INDIRECT(A241))=B241,0,1)","v":0},null,null,null,null,null,null,null,null,null,{"$f":"ADDRESS(85,6,1,1,$M$1)","v":"'Concentration Risk'!$F$85"},"=SUM(F75:F83)",{"$f":"IF(_xlfn.FORMULATEXT(INDIRECT(M241))=N241,0,1)","v":0},null,null,null,null,null,null,{"$f":"ADDRESS(41,17,1,1,$V$1)","v":"'LT Variable Annuity Gte Risk'!$Q$41"},"=+'Schedule VIII (EBS)'!P26",{"$f":"IF(_xlfn.FORMULATEXT(INDIRECT(V241))=W241,0,1)","v":0}]
[{"$f":"ADDRESS(112,14,1,1,$A$1)","v":"Summary!$N$112"},"=IF(N98=0,\"n/a\",$N$86/N98)",{"$f":"IF(_xlfn.FORMULATEXT(INDIRECT(A242))=B242,0,1)","v":0},null,null,null,null,null,null,null,null,null,{"$f":"ADDRESS(87,4,1,1,$M$1)","v":"'Concentration Risk'!$D$87"},"MortgageLoanTypes",{"$f":"IF(INDIRECT(M242)=N242,0,1)","v":0},null,null,null,null,null,null,{"$f":"ADDRESS(41,18,1,1,$V$1)","v":"'LT Variable Annuity Gte Risk'!$R$41"},0.55000000000000004,{"$f":"IF(INDIRECT(V242)=W242,0,1)","v":0}]
[{"$f":"ADDRESS(112,20,1,1,$A$1)","v":"Summary!$T$112"},"brrt_EnhancedCapitalRequirementRatio",{"$f":"IF(INDIRECT(A243)=B243,0,1)","v":0},null,null,null,null,null,null,null,null,null,{"$f":"ADDRESS(88,2,1,1,$M$1)","v":"'Concentration Risk'!$B$88"},"Insured/Guaranteed Mortgages",{"$f":"IF(INDIRECT(M243)=N243,0,1)","v":0},null,null,null,null,null,null,{"$f":"ADDRESS(41,20,1,1,$V$1)","v":"'LT Variable Annuity Gte Risk'!$T$41"},"=+'Schedule VIII (EBS)'!R26",{"$f":"IF(_xlfn.FORMULATEXT(INDIRECT(V243))=W243,0,1)","v":0}]
[{"$f":"ADDRESS(112,21,1,1,$A$1)","v":"Summary!$U$112"},"=XBRLMap(N112,T112,$D$153,$D$154,CONFIGURATION!$B$10,\"BMA\",CONFIGURATION!$B$1,\"bscr\",CONFIGURATION!$B$12)",{"$f":"IF(_xlfn.FORMULATEXT(INDIRECT(A244))=B244,0,1)","v":0},null,null,null,null,null,null,null,null,null,{"$f":"ADDRESS(88,4,1,1,$M$1)","v":"'Concentration Risk'!$D$88"},"=SUMIFS('Schedule XXI'!$M$8:$M$57,'Schedule XXI'!$J$8:$J$57,$D$87,'Schedule XXI'!$K$8:$K$57,$B88)",{"$f":"IF(_xlfn.FORMULATEXT(INDIRECT(M244))=N244,0,1)","v":0},null,null,null,null,null,null,{"$f":"ADDRESS(41,21,1,1,$V$1)","v":"'LT Variable Annuity Gte Risk'!$U$41"},0.8,{"$f":"IF(INDIRECT(V244)=W244,0,1)","v":0}]
[{"$f":"ADDRESS(114,7,1,1,$A$1)","v":"Summary!$G$114"},"=IF(G112>100%,\"YES\",\"NO\")",0,null,null,null,null,null,null,null,null,null,{"$f":"ADDRESS(88,5,1,1,$M$1)","v":"'Concentration Risk'!$E$88"},"='Fixed Income Investments'!E70",{"$f":"IF(_xlfn.FORMULATEXT(INDIRECT(M245))=N245,0,1)","v":0},null,null,null,null,null,null,{"$f":"ADDRESS(41,23,1,1,$V$1)","v":"'LT Variable Annuity Gte Risk'!$W$41"},"=IF(ISERROR(OR(E41*F41+H41*I41+K41*L41,N41*O41+Q41*R41+T41*U41)),0,MAX(E41*F41+H41*I41+K41*L41,N41*O41+Q41*R41+T41*U41))",{"$f":"IF(_xlfn.FORMULATEXT(INDIRECT(V245))=W245,0,1)","v":0}]
[{"$f":"ADDRESS(114,14,1,1,$A$1)","v":"Summary!$N$114"},"=IF(N112>100%,\"YES\",\"NO\")",0,null,null,null,null,null,null,null,null,null,{"$f":"ADDRESS(88,6,1,1,$M$1)","v":"'Concentration Risk'!$F$88"},"=MAX(0,(D88*E88))",{"$f":"IF(_xlfn.FORMULATEXT(INDIRECT(M246))=N246,0,1)","v":0},null,null,null,null,null,null,{"$f":"ADDRESS(41,25,1,1,$V$1)","v":"'LT Variable Annuity Gte Risk'!$Y$41"},"=+'Schedule VIII (EBS)'!F26",{"$f":"IF(_xlfn.FORMULATEXT(INDIRECT(V246))=W246,0,1)","v":0}]
[{"$f":"ADDRESS(117,7,1,1,$A$1)","v":"Summary!$G$117"},"='Form 4EBS'!$F$6",0,null,null,null,null,null,null,null,null,null,{"$f":"ADDRESS(89,2,1,1,$M$1)","v":"'Concentration Risk'!$B$89"},"Other Commercial and Farm Mortgages",{"$f":"IF(INDIRECT(M247)=N247,0,1)","v":0},null,null,null,null,null,null,{"$f":"ADDRESS(41,27,1,1,$V$1)","v":"'LT Variable Annuity Gte Risk'!$AA$41"},"=MAX(0,W41-Y41)",{"$f":"IF(_xlfn.FORMULATEXT(INDIRECT(V247))=W247,0,1)","v":0}]
[{"$f":"ADDRESS(121,5,1,1,$A$1)","v":"Summary!$E$121"},"=+'Schedule XII(a)'!G93",0,null,null,null,null,null,null,null,null,null,{"$f":"ADDRESS(89,4,1,1,$M$1)","v":"'Concentration Risk'!$D$89"},"=SUMIFS('Schedule XXI'!$M$8:$M$57,'Schedule XXI'!$J$8:$J$57,$D$87,'Schedule XXI'!$K$8:$K$57,$B89)",{"$f":"IF(_xlfn.FORMULATEXT(INDIRECT(M248))=N248,0,1)","v":0},null,null,null,null,null,null,{"$f":"ADDRESS(42,5,1,1,$V$1)","v":"'LT Variable Annuity Gte Risk'!$E$42"},"=+'Schedule VIII (EBS)'!H27",{"$f":"IF(_xlfn.FORMULATEXT(INDIRECT(V248))=W248,0,1)","v":0}]
[{"$f":"ADDRESS(121,7,1,1,$A$1)","v":"Summary!$G$121"},"=+'Schedule XII(a)'!I93",0,null,null,null,null,null,null,null,null,null,{"$f":"ADDRESS(89,5,1,1,$M$1)","v":"'Concentration Risk'!$E$89"},"='Fixed Income Investments'!E71",{"$f":"IF(_xlfn.FORMULATEXT(INDIRECT(M249))=N249,0,1)","v":0},null,null,null,null,null,null,{"$f":"ADDRESS(42,6,1,1,$V$1)","v":"'LT Variable Annuity Gte Risk'!$F$42"},1.0999999999999999E-2,{"$f":"IF(INDIRECT(V249)=W249,0,1)","v":0}]
[{"$f":"ADDRESS(122,5,1,1,$A$1)","v":"Summary!$E$122"},"=+'Schedule XII(a)'!G94",0,null,null,null,null,null,null,null,null,null,{"$f":"ADDRESS(89,6,1,1,$M$1)","v":"'Concentration Risk'!$F$89"},"=MAX(0,(D89*E89))",{"$f":"IF(_xlfn.FORMULATEXT(INDIRECT(M250))=N250,0,1)","v":0},null,null,null,null,null,null,{"$f":"ADDRESS(42,8,1,1,$V$1)","v":"'LT Variable Annuity Gte Risk'!$H$42"},"=+'Schedule VIII (EBS)'!J27",{"$f":"IF(_xlfn.FORMULATEXT(INDIRECT(V250))=W250,0,1)","v":0}]
[{"$f":"ADDRESS(122,7,1,1,$A$1)","v":"Summary!$G$122"},"=+'Schedule XII(a)'!I94",0,null,null,null,null,null,null,null,null,null,{"$f":"ADDRESS(90,2,1,1,$M$1)","v":"'Concentration Risk'!$B$90"},"Other Residential Mortgages",{"$f":"IF(INDIRECT(M251)=N251,0,1)","v":0},null,null,null,null,null,null,{"$f":"ADDRESS(42,9,1,1,$V$1)","v":"'LT Variable Annuity Gte Risk'!$I$42"},1.7000000000000001E-2,{"$f":"IF(INDIRECT(V251)=W251,0,1)","v":0}]
[{"$f":"ADDRESS(123,5,1,1,$A$1)","v":"Summary!$E$123"},"=+'Schedule XII(a)'!G95",0,null,null,null,null,null,null,null,null,null,{"$f":"ADDRESS(90,4,1,1,$M$1)","v":"'Concentration Risk'!$D$90"},"=SUMIFS('Schedule XXI'!$M$8:$M$57,'Schedule XXI'!$J$8:$J$57,$D$87,'Schedule XXI'!$K$8:$K$57,$B90)",{"$f":"IF(_xlfn.FORMULATEXT(INDIRECT(M252))=N252,0,1)","v":0},null,null,null,null,null,null,{"$f":"ADDRESS(42,11,1,1,$V$1)","v":"'LT Variable Annuity Gte Risk'!$K$42"},"=+'Schedule VIII (EBS)'!L27",{"$f":"IF(_xlfn.FORMULATEXT(INDIRECT(V252))=W252,0,1)","v":0}]
[{"$f":"ADDRESS(123,7,1,1,$A$1)","v":"Summary!$G$123"},"=+'Schedule XII(a)'!I95",0,null,null,null,null,null,null,null,null,null,{"$f":"ADDRESS(90,5,1,1,$M$1)","v":"'Concentration Risk'!$E$90"},"='Fixed Income Investments'!E72",{"$f":"IF(_xlfn.FORMULATEXT(INDIRECT(M253))=N253,0,1)","v":0},null,null,null,null,null,null,{"$f":"ADDRESS(42,12,1,1,$V$1)","v":"'LT Variable Annuity Gte Risk'!$L$42"},4.2999999999999997E-2,{"$f":"IF(INDIRECT(V253)=W253,0,1)","v":0}]
[{"$f":"ADDRESS(124,5,1,1,$A$1)","v":"Summary!$E$124"},"=+'Schedule XII(a)'!G96",0,null,null,null,null,null,null,null,null,null,{"$f":"ADDRESS(90,6,1,1,$M$1)","v":"'Concentration Risk'!$F$90"},"=MAX(0,(D90*E90))",{"$f":"IF(_xlfn.FORMULATEXT(INDIRECT(M254))=N254,0,1)","v":0},null,null,null,null,null,null,{"$f":"ADDRESS(42,14,1,1,$V$1)","v":"'LT Variable Annuity Gte Risk'!$N$42"},"=+'Schedule VIII (EBS)'!N27",{"$f":"IF(_xlfn.FORMULATEXT(INDIRECT(V254))=W254,0,1)","v":0}]
[{"$f":"ADDRESS(124,7,1,1,$A$1)","v":"Summary!$G$124"},"=+'Schedule XII(a)'!I96",0,null,null,null,null,null,null,null,null,null,{"$f":"ADDRESS(91,2,1,1,$M$1)","v":"'Concentration Risk'!$B$91"},"Mortgages Not In Good Standing",{"$f":"IF(INDIRECT(M255)=N255,0,1)","v":0},null,null,null,null,null,null,{"$f":"ADDRESS(42,15,1,1,$V$1)","v":"'LT Variable Annuity Gte Risk'!$O$42"},0.35,{"$f":"IF(INDIRECT(V255)=W255,0,1)","v":0}]
[{"$f":"ADDRESS(126,5,1,1,$A$1)","v":"Summary!$E$126"},"=IF(E124>=$G$98,\"YES\",\"NO\")",0,null,null,null,null,null,null,null,null,null,{"$f":"ADDRESS(91,4,1,1,$M$1)","v":"'Concentration Risk'!$D$91"},"=SUMIFS('Schedule XXI'!$M$8:$M$57,'Schedule XXI'!$J$8:$J$57,$D$87,'Schedule XXI'!$K$8:$K$57,$B91)",{"$f":"IF(_xlfn.FORMULATEXT(INDIRECT(M256))=N256,0,1)","v":0},null,null,null,null,null,null,{"$f":"ADDRESS(42,17,1,1,$V$1)","v":"'LT Variable Annuity Gte Risk'!$Q$42"},"=+'Schedule VIII (EBS)'!P27",{"$f":"IF(_xlfn.FORMULATEXT(INDIRECT(V256))=W256,0,1)","v":0}]
[{"$f":"ADDRESS(126,7,1,1,$A$1)","v":"Summary!$G$126"},"=IF(G124>=$G$98,\"YES\",\"NO\")",0,null,null,null,null,null,null,null,null,null,{"$f":"ADDRESS(91,5,1,1,$M$1)","v":"'Concentration Risk'!$E$91"},"='Fixed Income Investments'!E73",{"$f":"IF(_xlfn.FORMULATEXT(INDIRECT(M257))=N257,0,1)","v":0},null,null,null,null,null,null,{"$f":"ADDRESS(42,18,1,1,$V$1)","v":"'LT Variable Annuity Gte Risk'!$R$42"},0.5,{"$f":"IF(INDIRECT(V257)=W257,0,1)","v":0}]
[{"$f":"ADDRESS(131,14,1,1,$A$1)","v":"Summary!$N$131"},"=N60-L60",0,null,null,null,null,null,null,null,null,null,{"$f":"ADDRESS(91,6,1,1,$M$1)","v":"'Concentration Risk'!$F$91"},"=MAX(0,(D91*E91))",{"$f":"IF(_xlfn.FORMULATEXT(INDIRECT(M258))=N258,0,1)","v":0},null,null,null,null,null,null,{"$f":"ADDRESS(42,20,1,1,$V$1)","v":"'LT Variable Annuity Gte Risk'!$T$42"},"=+'Schedule VIII (EBS)'!R27",{"$f":"IF(_xlfn.FORMULATEXT(INDIRECT(V258))=W258,0,1)","v":0}]
[{"$f":"ADDRESS(133,14,1,1,$A$1)","v":"Summary!$N$133"},"=-MAX(MIN(N131,N132),0)",0,null,null,null,null,null,null,null,null,null,{"$f":"ADDRESS(93,4,1,1,$M$1)","v":"'Concentration Risk'!$D$93"},"=SUM(D88:D91)",{"$f":"IF(_xlfn.FORMULATEXT(INDIRECT(M259))=N259,0,1)","v":0},null,null,null,null,null,null,{"$f":"ADDRESS(42,21,1,1,$V$1)","v":"'LT Variable Annuity Gte Risk'!$U$42"},0.7,{"$f":"IF(INDIRECT(V259)=W259,0,1)","v":0}]
[{"$f":"ADDRESS(138,12,1,1,$A$1)","v":"Summary!$L$138"},"=-MIN(D144,G147,N143)",0,null,null,null,null,null,null,null,null,null,{"$f":"ADDRESS(93,6,1,1,$M$1)","v":"'Concentration Risk'!$F$93"},"=SUM(F88:F91)",{"$f":"IF(_xlfn.FORMULATEXT(INDIRECT(M260))=N260,0,1)","v":0},null,null,null,null,null,null,{"$f":"ADDRESS(42,23,1,1,$V$1)","v":"'LT Variable Annuity Gte Risk'!$W$42"},"=IF(ISERROR(OR(E42*F42+H42*I42+K42*L42,N42*O42+Q42*R42+T42*U42)),0,MAX(E42*F42+H42*I42+K42*L42,N42*O42+Q42*R42+T42*U42))",{"$f":"IF(_xlfn.FORMULATEXT(INDIRECT(V260))=W260,0,1)","v":0}]
[{"$f":"ADDRESS(142,4,1,1,$A$1)","v":"Summary!$D$142"},"=N60+N64+N66+N68+N70",0,null,null,null,null,null,null,null,null,null,{"$f":"ADDRESS(96,2,1,1,$M$1)","v":"'Concentration Risk'!$B$96"},"Common Stock and Mutual Funds",{"$f":"IF(INDIRECT(M261)=N261,0,1)","v":0},null,null,null,null,null,null,{"$f":"ADDRESS(42,25,1,1,$V$1)","v":"'LT Variable Annuity Gte Risk'!$Y$42"},"=+'Schedule VIII (EBS)'!F27",{"$f":"IF(_xlfn.FORMULATEXT(INDIRECT(V261))=W261,0,1)","v":0}]
[{"$f":"ADDRESS(142,14,1,1,$A$1)","v":"Summary!$N$142"},"=N60+N64+N66+N68+N70",0,null,null,null,null,null,null,null,null,null,{"$f":"ADDRESS(96,4,1,1,$M$1)","v":"'Concentration Risk'!$D$96"},"=SUMIFS('Schedule XXI'!$M$8:$M$57,'Schedule XXI'!$J$8:$J$57,$B96)",{"$f":"IF(_xlfn.FORMULATEXT(INDIRECT(M262))=N262,0,1)","v":0},null,null,null,null,null,null,{"$f":"ADDRESS(42,27,1,1,$V$1)","v":"'LT Variable Annuity Gte Risk'!$AA$42"},"=MAX(0,W42-Y42)",{"$f":"IF(_xlfn.FORMULATEXT(INDIRECT(V262))=W262,0,1)","v":0}]
[{"$f":"ADDRESS(143,8,1,1,$A$1)","v":"Summary!$H$143"},0.2,{"$f":"IF(INDIRECT(A263)=B263,0,1)","v":0},null,null,null,null,null,null,null,null,null,{"$f":"ADDRESS(96,5,1,1,$M$1)","v":"'Concentration Risk'!$E$96"},0.14399999999999999,{"$f":"IF(INDIRECT(M263)=N263,0,1)","v":0},null,null,null,null,null,null,{"$f":"ADDRESS(43,5,1,1,$V$1)","v":"'LT Variable Annuity Gte Risk'!$E$43"},"=+'Schedule VIII (EBS)'!H28",{"$f":"IF(_xlfn.FORMULATEXT(INDIRECT(V263))=W263,0,1)","v":0}]
[{"$f":"ADDRESS(143,14,1,1,$A$1)","v":"Summary!$N$143"},"=N142*H143",{"$f":"IF(_xlfn.FORMULATEXT(INDIRECT(A264))=B264,0,1)","v":0},null,null,null,null,null,null,null,null,null,{"$f":"ADDRESS(96,6,1,1,$M$1)","v":"'Concentration Risk'!$F$96"},"=MAX(0,(D96*E96))",{"$f":"IF(_xlfn.FORMULATEXT(INDIRECT(M264))=N264,0,1)","v":0},null,null,null,null,null,null,{"$f":"ADDRESS(43,6,1,1,$V$1)","v":"'LT Variable Annuity Gte Risk'!$F$43"},0.01,{"$f":"IF(INDIRECT(V264)=W264,0,1)","v":0}]
[{"$f":"ADDRESS(144,4,1,1,$A$1)","v":"Summary!$D$144"},"=MAX(0,D142*D143)",0,null,null,null,null,null,null,null,null,null,{"$f":"ADDRESS(97,2,1,1,$M$1)","v":"'Concentration Risk'!$B$97"},"Other Investments",{"$f":"IF(INDIRECT(M265)=N265,0,1)","v":0},null,null,null,null,null,null,{"$f":"ADDRESS(43,8,1,1,$V$1)","v":"'LT Variable Annuity Gte Risk'!$H$43"},"=+'Schedule VIII (EBS)'!J28",{"$f":"IF(_xlfn.FORMULATEXT(INDIRECT(V265))=W265,0,1)","v":0}]
[{"$f":"ADDRESS(144,7,1,1,$A$1)","v":"Summary!$G$144"},"=G143*D143",0,null,null,null,null,null,null,null,null,null,{"$f":"ADDRESS(97,4,1,1,$M$1)","v":"'Concentration Risk'!$D$97"},"=SUMIFS('Schedule XXI'!$M$8:$M$57,'Schedule XXI'!$J$8:$J$57,$B97)",{"$f":"IF(_xlfn.FORMULATEXT(INDIRECT(M266))=N266,0,1)","v":0},null,null,null,null,null,null,{"$f":"ADDRESS(43,9,1,1,$V$1)","v":"'LT Variable Annuity Gte Risk'!$I$43"},1.4E-2,{"$f":"IF(INDIRECT(V266)=W266,0,1)","v":0}]
[{"$f":"ADDRESS(145,7,1,1,$A$1)","v":"Summary!$G$145"},"='Form 4EBS'!F148-'Form 4EBS'!F82",0,null,null,null,null,null,null,null,null,null,{"$f":"ADDRESS(97,5,1,1,$M$1)","v":"'Concentration Risk'!$E$97"},0.2,{"$f":"IF(INDIRECT(M267)=N267,0,1)","v":0},null,null,null,null,null,null,{"$f":"ADDRESS(43,11,1,1,$V$1)","v":"'LT Variable Annuity Gte Risk'!$K$43"},"=+'Schedule VIII (EBS)'!L28",{"$f":"IF(_xlfn.FORMULATEXT(INDIRECT(V267))=W267,0,1)","v":0}]
[{"$f":"ADDRESS(146,7,1,1,$A$1)","v":"Summary!$G$146"},"='Form 4EBS'!F124*D143",0,null,null,null,null,null,null,null,null,null,{"$f":"ADDRESS(97,6,1,1,$M$1)","v":"'Concentration Risk'!$F$97"},"=MAX(0,(D97*E97))",{"$f":"IF(_xlfn.FORMULATEXT(INDIRECT(M268))=N268,0,1)","v":0},null,null,null,null,null,null,{"$f":"ADDRESS(43,12,1,1,$V$1)","v":"'LT Variable Annuity Gte Risk'!$L$43"},3.9E-2,{"$f":"IF(INDIRECT(V268)=W268,0,1)","v":0}]
[{"$f":"ADDRESS(147,7,1,1,$A$1)","v":"Summary!$G$147"},"=MAX(0,SUM(G144:G146))",0,null,null,null,null,null,null,null,null,null,{"$f":"ADDRESS(98,2,1,1,$M$1)","v":"'Concentration Risk'!$B$98"},"Investment in Affiliates – Unregulated entities that conduct ancillary services",{"$f":"IF(INDIRECT(M269)=N269,0,1)","v":0},null,null,null,null,null,null,{"$f":"ADDRESS(43,14,1,1,$V$1)","v":"'LT Variable Annuity Gte Risk'!$N$43"},"=+'Schedule VIII (EBS)'!N28",{"$f":"IF(_xlfn.FORMULATEXT(INDIRECT(V269))=W269,0,1)","v":0}]
[{"$f":"ADDRESS(153,4,1,1,$A$1)","v":"Summary!$D$153"},"=IF($D$4=\"\",\"\",TEXT(DATE(YEAR($D$4+1)-1,MONTH($D$4+1),DAY($D$4+1)),\"mm/dd/yyyy\"))",0,null,null,null,null,null,null,null,null,null,{"$f":"ADDRESS(98,4,1,1,$M$1)","v":"'Concentration Risk'!$D$98"},"=SUMIFS('Schedule XXI'!$M$8:$M$57,'Schedule XXI'!$J$8:$J$57,$B98)",{"$f":"IF(_xlfn.FORMULATEXT(INDIRECT(M270))=N270,0,1)","v":0},null,null,null,null,null,null,{"$f":"ADDRESS(43,15,1,1,$V$1)","v":"'LT Variable Annuity Gte Risk'!$O$43"},0.3,{"$f":"IF(INDIRECT(V270)=W270,0,1)","v":0}]
[{"$f":"ADDRESS(153,14,1,1,$A$1)","v":"Summary!$N$153"},10,{"$f":"IF(INDIRECT(A271)=B271,0,1)","v":0},null,null,null,null,null,null,null,null,null,{"$f":"ADDRESS(98,5,1,1,$M$1)","v":"'Concentration Risk'!$E$98"},0.05,{"$f":"IF(INDIRECT(M271)=N271,0,1)","v":0},null,null,null,null,null,null,{"$f":"ADDRESS(43,17,1,1,$V$1)","v":"'LT Variable Annuity Gte Risk'!$Q$43"},"=+'Schedule VIII (EBS)'!P28",{"$f":"IF(_xlfn.FORMULATEXT(INDIRECT(V271))=W271,0,1)","v":0}]
[{"$f":"ADDRESS(154,4,1,1,$A$1)","v":"Summary!$D$154"},"=IF($D$4=\"\",\"\",TEXT($D$4,\"mm/dd/yyyy\"))",{"$f":"IF(_xlfn.FORMULATEXT(INDIRECT(A272))=B272,0,1)","v":0},null,null,null,null,null,null,null,null,null,{"$f":"ADDRESS(98,6,1,1,$M$1)","v":"'Concentration Risk'!$F$98"},"=MAX(0,(D98*E98))",{"$f":"IF(_xlfn.FORMULATEXT(INDIRECT(M272))=N272,0,1)","v":0},null,null,null,null,null,null,{"$f":"ADDRESS(43,18,1,1,$V$1)","v":"'LT Variable Annuity Gte Risk'!$R$43"},0.45,{"$f":"IF(INDIRECT(V272)=W272,0,1)","v":0}]
[null,null,-273,null,null,null,null,null,null,null,null,null,{"$f":"ADDRESS(99,2,1,1,$M$1)","v":"'Concentration Risk'!$B$99"},"Investment in Affiliates - Unregulated non-financial operating entities",{"$f":"IF(INDIRECT(M273)=N273,0,1)","v":0},null,null,null,null,null,null,{"$f":"ADDRESS(43,20,1,1,$V$1)","v":"'LT Variable Annuity Gte Risk'!$T$43"},"=+'Schedule VIII (EBS)'!R28",{"$f":"IF(_xlfn.FORMULATEXT(INDIRECT(V273))=W273,0,1)","v":0}]
[null,null,null,null,null,null,null,null,null,null,null,null,{"$f":"ADDRESS(99,4,1,1,$M$1)","v":"'Concentration Risk'!$D$99"},"=SUMIFS('Schedule XXI'!$M$8:$M$57,'Schedule XXI'!$J$8:$J$57,$B99)",{"$f":"IF(_xlfn.FORMULATEXT(INDIRECT(M274))=N274,0,1)","v":0},null,null,null,null,null,null,{"$f":"ADDRESS(43,21,1,1,$V$1)","v":"'LT Variable Annuity Gte Risk'!$U$43"},0.6,{"$f":"IF(INDIRECT(V274)=W274,0,1)","v":0}]
[null,null,null,null,null,null,null,null,null,null,null,null,{"$f":"ADDRESS(99,5,1,1,$M$1)","v":"'Concentration Risk'!$E$99"},0.2,{"$f":"IF(INDIRECT(M275)=N275,0,1)","v":0},null,null,null,null,null,null,{"$f":"ADDRESS(43,23,1,1,$V$1)","v":"'LT Variable Annuity Gte Risk'!$W$43"},"=IF(ISERROR(OR(E43*F43+H43*I43+K43*L43,N43*O43+Q43*R43+T43*U43)),0,MAX(E43*F43+H43*I43+K43*L43,N43*O43+Q43*R43+T43*U43))",{"$f":"IF(_xlfn.FORMULATEXT(INDIRECT(V275))=W275,0,1)","v":0}]
[null,null,null,null,null,null,null,null,null,null,null,null,{"$f":"ADDRESS(99,6,1,1,$M$1)","v":"'Concentration Risk'!$F$99"},"=MAX(0,(D99*E99))",{"$f":"IF(_xlfn.FORMULATEXT(INDIRECT(M276))=N276,0,1)","v":0},null,null,null,null,null,null,{"$f":"ADDRESS(43,25,1,1,$V$1)","v":"'LT Variable Annuity Gte Risk'!$Y$43"},"=+'Schedule VIII (EBS)'!F28",{"$f":"IF(_xlfn.FORMULATEXT(INDIRECT(V276))=W276,0,1)","v":0}]
[null,null,null,null,null,null,null,null,null,null,null,null,{"$f":"ADDRESS(100,2,1,1,$M$1)","v":"'Concentration Risk'!$B$100"},"Investment in Affiliates - Unregulated financial operating entities",{"$f":"IF(INDIRECT(M277)=N277,0,1)","v":0},null,null,null,null,null,null,{"$f":"ADDRESS(43,27,1,1,$V$1)","v":"'LT Variable Annuity Gte Risk'!$AA$43"},"=MAX(0,W43-Y43)",{"$f":"IF(_xlfn.FORMULATEXT(INDIRECT(V277))=W277,0,1)","v":0}]
[null,null,null,null,null,null,null,null,null,null,null,null,{"$f":"ADDRESS(100,4,1,1,$M$1)","v":"'Concentration Risk'!$D$100"},"=SUMIFS('Schedule XXI'!$M$8:$M$57,'Schedule XXI'!$J$8:$J$57,$B100)",{"$f":"IF(_xlfn.FORMULATEXT(INDIRECT(M278))=N278,0,1)","v":0},null,null,null,null,null,null,{"$f":"ADDRESS(45,5,1,1,$V$1)","v":"'LT Variable Annuity Gte Risk'!$E$45"},"=+'Schedule VIII (EBS)'!H37",{"$f":"IF(_xlfn.FORMULATEXT(INDIRECT(V278))=W278,0,1)","v":0}]
[null,null,null,null,null,null,null,null,null,null,null,null,{"$f":"ADDRESS(100,5,1,1,$M$1)","v":"'Concentration Risk'!$E$100"},0.55000000000000004,{"$f":"IF(INDIRECT(M279)=N279,0,1)","v":0},null,null,null,null,null,null,{"$f":"ADDRESS(45,6,1,1,$V$1)","v":"'LT Variable Annuity Gte Risk'!$F$45"},3.2000000000000001E-2,{"$f":"IF(INDIRECT(V279)=W279,0,1)","v":0}]
[null,null,null,null,null,null,null,null,null,null,null,null,{"$f":"ADDRESS(100,6,1,1,$M$1)","v":"'Concentration Risk'!$F$100"},"=MAX(0,(D100*E100))",{"$f":"IF(_xlfn.FORMULATEXT(INDIRECT(M280))=N280,0,1)","v":0},null,null,null,null,null,null,{"$f":"ADDRESS(45,8,1,1,$V$1)","v":"'LT Variable Annuity Gte Risk'!$H$45"},"=+'Schedule VIII (EBS)'!J37",{"$f":"IF(_xlfn.FORMULATEXT(INDIRECT(V280))=W280,0,1)","v":0}]
[null,null,null,null,null,null,null,null,null,null,null,null,{"$f":"ADDRESS(101,2,1,1,$M$1)","v":"'Concentration Risk'!$B$101"},"Investment in Affiliates - Regulated non-insurance financial operating entities",{"$f":"IF(INDIRECT(M281)=N281,0,1)","v":0},null,null,null,null,null,null,{"$f":"ADDRESS(45,9,1,1,$V$1)","v":"'LT Variable Annuity Gte Risk'!$I$45"},0.05,{"$f":"IF(INDIRECT(V281)=W281,0,1)","v":0}]
[null,null,null,null,null,null,null,null,null,null,null,null,{"$f":"ADDRESS(101,4,1,1,$M$1)","v":"'Concentration Risk'!$D$101"},"=SUMIFS('Schedule XXI'!$M$8:$M$57,'Schedule XXI'!$J$8:$J$57,$B101)",{"$f":"IF(_xlfn.FORMULATEXT(INDIRECT(M282))=N282,0,1)","v":0},null,null,null,null,null,null,{"$f":"ADDRESS(45,11,1,1,$V$1)","v":"'LT Variable Annuity Gte Risk'!$K$45"},"=+'Schedule VIII (EBS)'!L37",{"$f":"IF(_xlfn.FORMULATEXT(INDIRECT(V282))=W282,0,1)","v":0}]
[null,null,null,null,null,null,null,null,null,null,null,null,{"$f":"ADDRESS(101,5,1,1,$M$1)","v":"'Concentration Risk'!$E$101"},0.55000000000000004,{"$f":"IF(INDIRECT(M283)=N283,0,1)","v":0},null,null,null,null,null,null,{"$f":"ADDRESS(45,12,1,1,$V$1)","v":"'LT Variable Annuity Gte Risk'!$L$45"},0.09,{"$f":"IF(INDIRECT(V283)=W283,0,1)","v":0}]
[null,null,null,null,null,null,null,null,null,null,null,null,{"$f":"ADDRESS(101,6,1,1,$M$1)","v":"'Concentration Risk'!$F$101"},"=MAX(0,(D101*E101))",{"$f":"IF(_xlfn.FORMULATEXT(INDIRECT(M284))=N284,0,1)","v":0},null,null,null,null,null,null,{"$f":"ADDRESS(45,23,1,1,$V$1)","v":"'LT Variable Annuity Gte Risk'!$W$45"},"=IF(ISERROR(OR(E45*F45+H45*I45+K45*L45,N45*O45+Q45*R45+T45*U45)),0,MAX(E45*F45+H45*I45+K45*L45,N45*O45+Q45*R45+T45*U45))",{"$f":"IF(_xlfn.FORMULATEXT(INDIRECT(V284))=W284,0,1)","v":0}]
[null,null,null,null,null,null,null,null,null,null,null,null,{"$f":"ADDRESS(102,2,1,1,$M$1)","v":"'Concentration Risk'!$B$102"},"Investment in Affiliates - Regulated insurance financial operating entities",{"$f":"IF(INDIRECT(M285)=N285,0,1)","v":0},null,null,null,null,null,null,{"$f":"ADDRESS(45,25,1,1,$V$1)","v":"'LT Variable Annuity Gte Risk'!$Y$45"},"=+'Schedule VIII (EBS)'!F30",{"$f":"IF(_xlfn.FORMULATEXT(INDIRECT(V285))=W285,0,1)","v":0}]
[null,null,null,null,null,null,null,null,null,null,null,null,{"$f":"ADDRESS(102,4,1,1,$M$1)","v":"'Concentration Risk'!$D$102"},"=SUMIFS('Schedule XXI'!$M$8:$M$57,'Schedule XXI'!$J$8:$J$57,$B102)",{"$f":"IF(_xlfn.FORMULATEXT(INDIRECT(M286))=N286,0,1)","v":0},null,null,null,null,null,null,{"$f":"ADDRESS(45,27,1,1,$V$1)","v":"'LT Variable Annuity Gte Risk'!$AA$45"},"=MAX(0,W45-Y45)",{"$f":"IF(_xlfn.FORMULATEXT(INDIRECT(V286))=W286,0,1)","v":0}]
[null,null,null,null,null,null,null,null,null,null,null,null,{"$f":"ADDRESS(102,5,1,1,$M$1)","v":"'Concentration Risk'!$E$102"},0.2,{"$f":"IF(INDIRECT(M287)=N287,0,1)","v":0},null,null,null,null,null,null,{"$f":"ADDRESS(46,5,1,1,$V$1)","v":"'LT Variable Annuity Gte Risk'!$E$46"},"=+'Schedule VIII (EBS)'!H38",{"$f":"IF(_xlfn.FORMULATEXT(INDIRECT(V287))=W287,0,1)","v":0}]
[null,null,null,null,null,null,null,null,null,null,null,null,{"$f":"ADDRESS(102,6,1,1,$M$1)","v":"'Concentration Risk'!$F$102"},"=MAX(0,(D102*E102))",{"$f":"IF(_xlfn.FORMULATEXT(INDIRECT(M288))=N288,0,1)","v":0},null,null,null,null,null,null,{"$f":"ADDRESS(46,6,1,1,$V$1)","v":"'LT Variable Annuity Gte Risk'!$F$46"},0.03,{"$f":"IF(INDIRECT(V288)=W288,0,1)","v":0}]
[null,null,null,null,null,null,null,null,null,null,null,null,{"$f":"ADDRESS(103,2,1,1,$M$1)","v":"'Concentration Risk'!$B$103"},"Advances to Affiliates - ",{"$f":"IF(INDIRECT(M289)=N289,0,1)","v":0},null,null,null,null,null,null,{"$f":"ADDRESS(46,8,1,1,$V$1)","v":"'LT Variable Annuity Gte Risk'!$H$46"},"=+'Schedule VIII (EBS)'!J38",{"$f":"IF(_xlfn.FORMULATEXT(INDIRECT(V289))=W289,0,1)","v":0}]
[null,null,null,null,null,null,null,null,null,null,null,null,{"$f":"ADDRESS(103,4,1,1,$M$1)","v":"'Concentration Risk'!$D$103"},"=SUMIFS('Schedule XXI'!$M$8:$M$57,'Schedule XXI'!$J$8:$J$57,$B103)",{"$f":"IF(_xlfn.FORMULATEXT(INDIRECT(M290))=N290,0,1)","v":0},null,null,null,null,null,null,{"$f":"ADDRESS(46,9,1,1,$V$1)","v":"'LT Variable Annuity Gte Risk'!$I$46"},0.05,{"$f":"IF(INDIRECT(V290)=W290,0,1)","v":0}]
[null,null,null,null,null,null,null,null,null,null,null,null,{"$f":"ADDRESS(103,5,1,1,$M$1)","v":"'Concentration Risk'!$E$103"},0.05,{"$f":"IF(INDIRECT(M291)=N291,0,1)","v":0},null,null,null,null,null,null,{"$f":"ADDRESS(46,11,1,1,$V$1)","v":"'LT Variable Annuity Gte Risk'!$K$46"},"=+'Schedule VIII (EBS)'!L38",{"$f":"IF(_xlfn.FORMULATEXT(INDIRECT(V291))=W291,0,1)","v":0}]
[null,null,null,null,null,null,null,null,null,null,null,null,{"$f":"ADDRESS(103,6,1,1,$M$1)","v":"'Concentration Risk'!$F$103"},"=MAX(0,(D103*E103))",{"$f":"IF(_xlfn.FORMULATEXT(INDIRECT(M292))=N292,0,1)","v":0},null,null,null,null,null,null,{"$f":"ADDRESS(46,12,1,1,$V$1)","v":"'LT Variable Annuity Gte Risk'!$L$46"},8.8999999999999996E-2,{"$f":"IF(INDIRECT(V292)=W292,0,1)","v":0}]
[null,null,null,null,null,null,null,null,null,null,null,null,{"$f":"ADDRESS(104,2,1,1,$M$1)","v":"'Concentration Risk'!$B$104"},"Policy Loans",{"$f":"IF(INDIRECT(M293)=N293,0,1)","v":0},null,null,null,null,null,null,{"$f":"ADDRESS(46,23,1,1,$V$1)","v":"'LT Variable Annuity Gte Risk'!$W$46"},"=IF(ISERROR(OR(E46*F46+H46*I46+K46*L46,N46*O46+Q46*R46+T46*U46)),0,MAX(E46*F46+H46*I46+K46*L46,N46*O46+Q46*R46+T46*U46))",{"$f":"IF(_xlfn.FORMULATEXT(INDIRECT(V293))=W293,0,1)","v":0}]
[null,null,null,null,null,null,null,null,null,null,null,null,{"$f":"ADDRESS(104,4,1,1,$M$1)","v":"'Concentration Risk'!$D$104"},"=SUMIFS('Schedule XXI'!$M$8:$M$57,'Schedule XXI'!$J$8:$J$57,$B104)",{"$f":"IF(_xlfn.FORMULATEXT(INDIRECT(M294))=N294,0,1)","v":0},null,null,null,null,null,null,{"$f":"ADDRESS(46,25,1,1,$V$1)","v":"'LT Variable Annuity Gte Risk'!$Y$46"},"=+'Schedule VIII (EBS)'!F31",{"$f":"IF(_xlfn.FORMULATEXT(INDIRECT(V294))=W294,0,1)","v":0}]
[null,null,null,null,null,null,null,null,null,null,null,null,{"$f":"ADDRESS(104,5,1,1,$M$1)","v":"'Concentration Risk'!$E$104"},0,{"$f":"IF(INDIRECT(M295)=N295,0,1)","v":0},null,null,null,null,null,null,{"$f":"ADDRESS(46,27,1,1,$V$1)","v":"'LT Variable Annuity Gte Risk'!$AA$46"},"=MAX(0,W46-Y46)",{"$f":"IF(_xlfn.FORMULATEXT(INDIRECT(V295))=W295,0,1)","v":0}]
[null,null,null,null,null,null,null,null,null,null,null,null,{"$f":"ADDRESS(104,6,1,1,$M$1)","v":"'Concentration Risk'!$F$104"},"=MAX(0,(D104*E104))",{"$f":"IF(_xlfn.FORMULATEXT(INDIRECT(M296))=N296,0,1)","v":0},null,null,null,null,null,null,{"$f":"ADDRESS(47,5,1,1,$V$1)","v":"'LT Variable Annuity Gte Risk'!$E$47"},"=+'Schedule VIII (EBS)'!H39",{"$f":"IF(_xlfn.FORMULATEXT(INDIRECT(V296))=W296,0,1)","v":0}]
[null,null,null,null,null,null,null,null,null,null,null,null,{"$f":"ADDRESS(105,2,1,1,$M$1)","v":"'Concentration Risk'!$B$105"},"Real Estate: Occupied by company",{"$f":"IF(INDIRECT(M297)=N297,0,1)","v":0},null,null,null,null,null,null,{"$f":"ADDRESS(47,6,1,1,$V$1)","v":"'LT Variable Annuity Gte Risk'!$F$47"},0.03,{"$f":"IF(INDIRECT(V297)=W297,0,1)","v":0}]
[null,null,null,null,null,null,null,null,null,null,null,null,{"$f":"ADDRESS(105,4,1,1,$M$1)","v":"'Concentration Risk'!$D$105"},"=SUMIFS('Schedule XXI'!$M$8:$M$57,'Schedule XXI'!$J$8:$J$57,$B105)",{"$f":"IF(_xlfn.FORMULATEXT(INDIRECT(M298))=N298,0,1)","v":0},null,null,null,null,null,null,{"$f":"ADDRESS(47,8,1,1,$V$1)","v":"'LT Variable Annuity Gte Risk'!$H$47"},"=+'Schedule VIII (EBS)'!J39",{"$f":"IF(_xlfn.FORMULATEXT(INDIRECT(V298))=W298,0,1)","v":0}]
[null,null,null,null,null,null,null,null,null,null,null,null,{"$f":"ADDRESS(105,5,1,1,$M$1)","v":"'Concentration Risk'!$E$105"},0.1,{"$f":"IF(INDIRECT(M299)=N299,0,1)","v":0},null,null,null,null,null,null,{"$f":"ADDRESS(47,9,1,1,$V$1)","v":"'LT Variable Annuity Gte Risk'!$I$47"},0.05,{"$f":"IF(INDIRECT(V299)=W299,0,1)","v":0}]
[null,null,null,null,null,null,null,null,null,null,null,null,{"$f":"ADDRESS(105,6,1,1,$M$1)","v":"'Concentration Risk'!$F$105"},"=MAX(0,(D105*E105))",{"$f":"IF(_xlfn.FORMULATEXT(INDIRECT(M300))=N300,0,1)","v":0},null,null,null,null,null,null,{"$f":"ADDRESS(47,11,1,1,$V$1)","v":"'LT Variable Annuity Gte Risk'!$K$47"},"=+'Schedule VIII (EBS)'!L39",{"$f":"IF(_xlfn.FORMULATEXT(INDIRECT(V300))=W300,0,1)","v":0}]
[null,null,null,null,null,null,null,null,null,null,null,null,{"$f":"ADDRESS(106,2,1,1,$M$1)","v":"'Concentration Risk'!$B$106"},"Real Estate: Other properties",{"$f":"IF(INDIRECT(M301)=N301,0,1)","v":0},null,null,null,null,null,null,{"$f":"ADDRESS(47,12,1,1,$V$1)","v":"'LT Variable Annuity Gte Risk'!$L$47"},8.8999999999999996E-2,{"$f":"IF(INDIRECT(V301)=W301,0,1)","v":0}]
[null,null,null,null,null,null,null,null,null,null,null,null,{"$f":"ADDRESS(106,4,1,1,$M$1)","v":"'Concentration Risk'!$D$106"},"=SUMIFS('Schedule XXI'!$M$8:$M$57,'Schedule XXI'!$J$8:$J$57,$B106)",{"$f":"IF(_xlfn.FORMULATEXT(INDIRECT(M302))=N302,0,1)","v":0},null,null,null,null,null,null,{"$f":"ADDRESS(47,23,1,1,$V$1)","v":"'LT Variable Annuity Gte Risk'!$W$47"},"=IF(ISERROR(OR(E47*F47+H47*I47+K47*L47,N47*O47+Q47*R47+T47*U47)),0,MAX(E47*F47+H47*I47+K47*L47,N47*O47+Q47*R47+T47*U47))",{"$f":"IF(_xlfn.FORMULATEXT(INDIRECT(V302))=W302,0,1)","v":0}]
[null,null,null,null,null,null,null,null,null,null,null,null,{"$f":"ADDRESS(106,5,1,1,$M$1)","v":"'Concentration Risk'!$E$106"},0.2,{"$f":"IF(INDIRECT(M303)=N303,0,1)","v":0},null,null,null,null,null,null,{"$f":"ADDRESS(47,25,1,1,$V$1)","v":"'LT Variable Annuity Gte Risk'!$Y$47"},"=+'Schedule VIII (EBS)'!F32",{"$f":"IF(_xlfn.FORMULATEXT(INDIRECT(V303))=W303,0,1)","v":0}]
[null,null,null,null,null,null,null,null,null,null,null,null,{"$f":"ADDRESS(106,6,1,1,$M$1)","v":"'Concentration Risk'!$F$106"},"=MAX(0,(D106*E106))",{"$f":"IF(_xlfn.FORMULATEXT(INDIRECT(M304))=N304,0,1)","v":0},null,null,null,null,null,null,{"$f":"ADDRESS(47,27,1,1,$V$1)","v":"'LT Variable Annuity Gte Risk'!$AA$47"},"=MAX(0,W47-Y47)",{"$f":"IF(_xlfn.FORMULATEXT(INDIRECT(V304))=W304,0,1)","v":0}]
[null,null,null,null,null,null,null,null,null,null,null,null,{"$f":"ADDRESS(107,2,1,1,$M$1)","v":"'Concentration Risk'!$B$107"},"Collateral Loans",{"$f":"IF(INDIRECT(M305)=N305,0,1)","v":0},null,null,null,null,null,null,{"$f":"ADDRESS(48,5,1,1,$V$1)","v":"'LT Variable Annuity Gte Risk'!$E$48"},"=+'Schedule VIII (EBS)'!H40",{"$f":"IF(_xlfn.FORMULATEXT(INDIRECT(V305))=W305,0,1)","v":0}]
[null,null,null,null,null,null,null,null,null,null,null,null,{"$f":"ADDRESS(107,4,1,1,$M$1)","v":"'Concentration Risk'!$D$107"},"=SUMIFS('Schedule XXI'!$M$8:$M$57,'Schedule XXI'!$J$8:$J$57,$B107)",{"$f":"IF(_xlfn.FORMULATEXT(INDIRECT(M306))=N306,0,1)","v":0},null,null,null,null,null,null,{"$f":"ADDRESS(48,6,1,1,$V$1)","v":"'LT Variable Annuity Gte Risk'!$F$48"},2.8000000000000001E-2,{"$f":"IF(INDIRECT(V306)=W306,0,1)","v":0}]
[null,null,null,null,null,null,null,null,null,null,null,null,{"$f":"ADDRESS(107,5,1,1,$M$1)","v":"'Concentration Risk'!$E$107"},0.05,{"$f":"IF(INDIRECT(M307)=N307,0,1)","v":0},null,null,null,null,null,null,{"$f":"ADDRESS(48,8,1,1,$V$1)","v":"'LT Variable Annuity Gte Risk'!$H$48"},"=+'Schedule VIII (EBS)'!J40",{"$f":"IF(_xlfn.FORMULATEXT(INDIRECT(V307))=W307,0,1)","v":0}]
[null,null,null,null,null,null,null,null,null,null,null,null,{"$f":"ADDRESS(107,6,1,1,$M$1)","v":"'Concentration Risk'!$F$107"},"=MAX(0,(D107*E107))",{"$f":"IF(_xlfn.FORMULATEXT(INDIRECT(M308))=N308,0,1)","v":0},null,null,null,null,null,null,{"$f":"ADDRESS(48,9,1,1,$V$1)","v":"'LT Variable Annuity Gte Risk'!$I$48"},0.05,{"$f":"IF(INDIRECT(V308)=W308,0,1)","v":0}]
[null,null,null,null,null,null,null,null,null,null,null,null,{"$f":"ADDRESS(109,4,1,1,$M$1)","v":"'Concentration Risk'!$D$109"},"=SUM(D96:D107)",{"$f":"IF(_xlfn.FORMULATEXT(INDIRECT(M309))=N309,0,1)","v":0},null,null,null,null,null,null,{"$f":"ADDRESS(48,11,1,1,$V$1)","v":"'LT Variable Annuity Gte Risk'!$K$48"},"=+'Schedule VIII (EBS)'!L40",{"$f":"IF(_xlfn.FORMULATEXT(INDIRECT(V309))=W309,0,1)","v":0}]
[null,null,null,null,null,null,null,null,null,null,null,null,{"$f":"ADDRESS(109,6,1,1,$M$1)","v":"'Concentration Risk'!$F$109"},"=SUM(F96:F107)",{"$f":"IF(_xlfn.FORMULATEXT(INDIRECT(M310))=N310,0,1)","v":0},null,null,null,null,null,null,{"$f":"ADDRESS(48,12,1,1,$V$1)","v":"'LT Variable Annuity Gte Risk'!$L$48"},8.7999999999999995E-2,{"$f":"IF(INDIRECT(V310)=W310,0,1)","v":0}]
[null,null,null,null,null,null,null,null,null,null,null,null,{"$f":"ADDRESS(111,4,1,1,$M$1)","v":"'Concentration Risk'!$D$111"},"=D109+D93+D85+D72+D59+D46+D33+D20",{"$f":"IF(_xlfn.FORMULATEXT(INDIRECT(M311))=N311,0,1)","v":0},null,null,null,null,null,null,{"$f":"ADDRESS(48,23,1,1,$V$1)","v":"'LT Variable Annuity Gte Risk'!$W$48"},"=IF(ISERROR(OR(E48*F48+H48*I48+K48*L48,N48*O48+Q48*R48+T48*U48)),0,MAX(E48*F48+H48*I48+K48*L48,N48*O48+Q48*R48+T48*U48))",{"$f":"IF(_xlfn.FORMULATEXT(INDIRECT(V311))=W311,0,1)","v":0}]
[null,null,null,null,null,null,null,null,null,null,null,null,{"$f":"ADDRESS(111,6,1,1,$M$1)","v":"'Concentration Risk'!$F$111"},"=F109+F93+F85+F72+F59+F46+F33+F20",{"$f":"IF(_xlfn.FORMULATEXT(INDIRECT(M312))=N312,0,1)","v":0},null,null,null,null,null,null,{"$f":"ADDRESS(48,25,1,1,$V$1)","v":"'LT Variable Annuity Gte Risk'!$Y$48"},"=+'Schedule VIII (EBS)'!F33",{"$f":"IF(_xlfn.FORMULATEXT(INDIRECT(V312))=W312,0,1)","v":0}]
[null,null,null,null,null,null,null,null,null,null,null,null,null,null,-313,null,null,null,null,null,null,{"$f":"ADDRESS(48,27,1,1,$V$1)","v":"'LT Variable Annuity Gte Risk'!$AA$48"},"=MAX(0,W48-Y48)",{"$f":"IF(_xlfn.FORMULATEXT(INDIRECT(V313))=W313,0,1)","v":0}]
[null,null,null,null,null,null,null,null,null,null,null,null,null,null,null,null,null,null,null,null,null,{"$f":"ADDRESS(49,5,1,1,$V$1)","v":"'LT Variable Annuity Gte Risk'!$E$49"},"=+'Schedule VIII (EBS)'!H41",{"$f":"IF(_xlfn.FORMULATEXT(INDIRECT(V314))=W314,0,1)","v":0}]
[null,null,null,null,null,null,null,null,null,null,null,null,null,null,null,null,null,null,null,null,null,{"$f":"ADDRESS(49,6,1,1,$V$1)","v":"'LT Variable Annuity Gte Risk'!$F$49"},2.4E-2,{"$f":"IF(INDIRECT(V315)=W315,0,1)","v":0}]
[null,null,null,null,null,null,null,null,null,null,null,null,null,null,null,null,null,null,null,null,null,{"$f":"ADDRESS(49,8,1,1,$V$1)","v":"'LT Variable Annuity Gte Risk'!$H$49"},"=+'Schedule VIII (EBS)'!J41",{"$f":"IF(_xlfn.FORMULATEXT(INDIRECT(V316))=W316,0,1)","v":0}]
[null,null,null,null,null,null,null,null,null,null,null,null,null,null,null,null,null,null,null,null,null,{"$f":"ADDRESS(49,9,1,1,$V$1)","v":"'LT Variable Annuity Gte Risk'!$I$49"},4.2999999999999997E-2,{"$f":"IF(INDIRECT(V317)=W317,0,1)","v":0}]
[null,null,null,null,null,null,null,null,null,null,null,null,null,null,null,null,null,null,null,null,null,{"$f":"ADDRESS(49,11,1,1,$V$1)","v":"'LT Variable Annuity Gte Risk'!$K$49"},"=+'Schedule VIII (EBS)'!L41",{"$f":"IF(_xlfn.FORMULATEXT(INDIRECT(V318))=W318,0,1)","v":0}]
[null,null,null,null,null,null,null,null,null,null,null,null,null,null,null,null,null,null,null,null,null,{"$f":"ADDRESS(49,12,1,1,$V$1)","v":"'LT Variable Annuity Gte Risk'!$L$49"},0.08,{"$f":"IF(INDIRECT(V319)=W319,0,1)","v":0}]
[null,null,null,null,null,null,null,null,null,null,null,null,null,null,null,null,null,null,null,null,null,{"$f":"ADDRESS(49,23,1,1,$V$1)","v":"'LT Variable Annuity Gte Risk'!$W$49"},"=IF(ISERROR(OR(E49*F49+H49*I49+K49*L49,N49*O49+Q49*R49+T49*U49)),0,MAX(E49*F49+H49*I49+K49*L49,N49*O49+Q49*R49+T49*U49))",{"$f":"IF(_xlfn.FORMULATEXT(INDIRECT(V320))=W320,0,1)","v":0}]
[null,null,null,null,null,null,null,null,null,null,null,null,null,null,null,null,null,null,null,null,null,{"$f":"ADDRESS(49,25,1,1,$V$1)","v":"'LT Variable Annuity Gte Risk'!$Y$49"},"=+'Schedule VIII (EBS)'!F34",{"$f":"IF(_xlfn.FORMULATEXT(INDIRECT(V321))=W321,0,1)","v":0}]
[null,null,null,null,null,null,null,null,null,null,null,null,null,null,null,null,null,null,null,null,null,{"$f":"ADDRESS(49,27,1,1,$V$1)","v":"'LT Variable Annuity Gte Risk'!$AA$49"},"=MAX(0,W49-Y49)",{"$f":"IF(_xlfn.FORMULATEXT(INDIRECT(V322))=W322,0,1)","v":0}]
[null,null,null,null,null,null,null,null,null,null,null,null,null,null,null,null,null,null,null,null,null,{"$f":"ADDRESS(50,5,1,1,$V$1)","v":"'LT Variable Annuity Gte Risk'!$E$50"},"=+'Schedule VIII (EBS)'!H42",{"$f":"IF(_xlfn.FORMULATEXT(INDIRECT(V323))=W323,0,1)","v":0}]
[null,null,null,null,null,null,null,null,null,null,null,null,null,null,null,null,null,null,null,null,null,{"$f":"ADDRESS(50,6,1,1,$V$1)","v":"'LT Variable Annuity Gte Risk'!$F$50"},0.02,{"$f":"IF(INDIRECT(V324)=W324,0,1)","v":0}]
[null,null,null,null,null,null,null,null,null,null,null,null,null,null,null,null,null,null,null,null,null,{"$f":"ADDRESS(50,8,1,1,$V$1)","v":"'LT Variable Annuity Gte Risk'!$H$50"},"=+'Schedule VIII (EBS)'!J42",{"$f":"IF(_xlfn.FORMULATEXT(INDIRECT(V325))=W325,0,1)","v":0}]
[null,null,null,null,null,null,null,null,null,null,null,null,null,null,null,null,null,null,null,null,null,{"$f":"ADDRESS(50,9,1,1,$V$1)","v":"'LT Variable Annuity Gte Risk'!$I$50"},3.5000000000000003E-2,{"$f":"IF(INDIRECT(V326)=W326,0,1)","v":0}]
[null,null,null,null,null,null,null,null,null,null,null,null,null,null,null,null,null,null,null,null,null,{"$f":"ADDRESS(50,11,1,1,$V$1)","v":"'LT Variable Annuity Gte Risk'!$K$50"},"=+'Schedule VIII (EBS)'!L42",{"$f":"IF(_xlfn.FORMULATEXT(INDIRECT(V327))=W327,0,1)","v":0}]
[null,null,null,null,null,null,null,null,null,null,null,null,null,null,null,null,null,null,null,null,null,{"$f":"ADDRESS(50,12,1,1,$V$1)","v":"'LT Variable Annuity Gte Risk'!$L$50"},6.8000000000000005E-2,{"$f":"IF(INDIRECT(V328)=W328,0,1)","v":0}]
[null,null,null,null,null,null,null,null,null,null,null,null,null,null,null,null,null,null,null,null,null,{"$f":"ADDRESS(50,23,1,1,$V$1)","v":"'LT Variable Annuity Gte Risk'!$W$50"},"=IF(ISERROR(OR(E50*F50+H50*I50+K50*L50,N50*O50+Q50*R50+T50*U50)),0,MAX(E50*F50+H50*I50+K50*L50,N50*O50+Q50*R50+T50*U50))",{"$f":"IF(_xlfn.FORMULATEXT(INDIRECT(V329))=W329,0,1)","v":0}]
[null,null,null,null,null,null,null,null,null,null,null,null,null,null,null,null,null,null,null,null,null,{"$f":"ADDRESS(50,25,1,1,$V$1)","v":"'LT Variable Annuity Gte Risk'!$Y$50"},"=+'Schedule VIII (EBS)'!F35",{"$f":"IF(_xlfn.FORMULATEXT(INDIRECT(V330))=W330,0,1)","v":0}]
[null,null,null,null,null,null,null,null,null,null,null,null,null,null,null,null,null,null,null,null,null,{"$f":"ADDRESS(50,27,1,1,$V$1)","v":"'LT Variable Annuity Gte Risk'!$AA$50"},"=MAX(0,W50-Y50)",{"$f":"IF(_xlfn.FORMULATEXT(INDIRECT(V331))=W331,0,1)","v":0}]
[null,null,null,null,null,null,null,null,null,null,null,null,null,null,null,null,null,null,null,null,null,{"$f":"ADDRESS(51,5,1,1,$V$1)","v":"'LT Variable Annuity Gte Risk'!$E$51"},"=+'Schedule VIII (EBS)'!H43",{"$f":"IF(_xlfn.FORMULATEXT(INDIRECT(V332))=W332,0,1)","v":0}]
[null,null,null,null,null,null,null,null,null,null,null,null,null,null,null,null,null,null,null,null,null,{"$f":"ADDRESS(51,6,1,1,$V$1)","v":"'LT Variable Annuity Gte Risk'!$F$51"},1.7000000000000001E-2,{"$f":"IF(INDIRECT(V333)=W333,0,1)","v":0}]
[null,null,null,null,null,null,null,null,null,null,null,null,null,null,null,null,null,null,null,null,null,{"$f":"ADDRESS(51,8,1,1,$V$1)","v":"'LT Variable Annuity Gte Risk'!$H$51"},"=+'Schedule VIII (EBS)'!J43",{"$f":"IF(_xlfn.FORMULATEXT(INDIRECT(V334))=W334,0,1)","v":0}]
[null,null,null,null,null,null,null,null,null,null,null,null,null,null,null,null,null,null,null,null,null,{"$f":"ADDRESS(51,9,1,1,$V$1)","v":"'LT Variable Annuity Gte Risk'!$I$51"},2.8000000000000001E-2,{"$f":"IF(INDIRECT(V335)=W335,0,1)","v":0}]
[null,null,null,null,null,null,null,null,null,null,null,null,null,null,null,null,null,null,null,null,null,{"$f":"ADDRESS(51,11,1,1,$V$1)","v":"'LT Variable Annuity Gte Risk'!$K$51"},"=+'Schedule VIII (EBS)'!L43",{"$f":"IF(_xlfn.FORMULATEXT(INDIRECT(V336))=W336,0,1)","v":0}]
[null,null,null,null,null,null,null,null,null,null,null,null,null,null,null,null,null,null,null,null,null,{"$f":"ADDRESS(51,12,1,1,$V$1)","v":"'LT Variable Annuity Gte Risk'!$L$51"},5.8999999999999997E-2,{"$f":"IF(INDIRECT(V337)=W337,0,1)","v":0}]
[null,null,null,null,null,null,null,null,null,null,null,null,null,null,null,null,null,null,null,null,null,{"$f":"ADDRESS(51,23,1,1,$V$1)","v":"'LT Variable Annuity Gte Risk'!$W$51"},"=IF(ISERROR(OR(E51*F51+H51*I51+K51*L51,N51*O51+Q51*R51+T51*U51)),0,MAX(E51*F51+H51*I51+K51*L51,N51*O51+Q51*R51+T51*U51))",{"$f":"IF(_xlfn.FORMULATEXT(INDIRECT(V338))=W338,0,1)","v":0}]
[null,null,null,null,null,null,null,null,null,null,null,null,null,null,null,null,null,null,null,null,null,{"$f":"ADDRESS(51,25,1,1,$V$1)","v":"'LT Variable Annuity Gte Risk'!$Y$51"},"=+'Schedule VIII (EBS)'!F36",{"$f":"IF(_xlfn.FORMULATEXT(INDIRECT(V339))=W339,0,1)","v":0}]
[null,null,null,null,null,null,null,null,null,null,null,null,null,null,null,null,null,null,null,null,null,{"$f":"ADDRESS(51,27,1,1,$V$1)","v":"'LT Variable Annuity Gte Risk'!$AA$51"},"=MAX(0,W51-Y51)",{"$f":"IF(_xlfn.FORMULATEXT(INDIRECT(V340))=W340,0,1)","v":0}]
[null,null,null,null,null,null,null,null,null,null,null,null,null,null,null,null,null,null,null,null,null,{"$f":"ADDRESS(52,5,1,1,$V$1)","v":"'LT Variable Annuity Gte Risk'!$E$52"},"=+'Schedule VIII (EBS)'!H44",{"$f":"IF(_xlfn.FORMULATEXT(INDIRECT(V341))=W341,0,1)","v":0}]
[null,null,null,null,null,null,null,null,null,null,null,null,null,null,null,null,null,null,null,null,null,{"$f":"ADDRESS(52,6,1,1,$V$1)","v":"'LT Variable Annuity Gte Risk'!$F$52"},1.4E-2,{"$f":"IF(INDIRECT(V342)=W342,0,1)","v":0}]
[null,null,null,null,null,null,null,null,null,null,null,null,null,null,null,null,null,null,null,null,null,{"$f":"ADDRESS(52,8,1,1,$V$1)","v":"'LT Variable Annuity Gte Risk'!$H$52"},"=+'Schedule VIII (EBS)'!J44",{"$f":"IF(_xlfn.FORMULATEXT(INDIRECT(V343))=W343,0,1)","v":0}]
[null,null,null,null,null,null,null,null,null,null,null,null,null,null,null,null,null,null,null,null,null,{"$f":"ADDRESS(52,9,1,1,$V$1)","v":"'LT Variable Annuity Gte Risk'!$I$52"},2.1000000000000001E-2,{"$f":"IF(INDIRECT(V344)=W344,0,1)","v":0}]
[null,null,null,null,null,null,null,null,null,null,null,null,null,null,null,null,null,null,null,null,null,{"$f":"ADDRESS(52,11,1,1,$V$1)","v":"'LT Variable Annuity Gte Risk'!$K$52"},"=+'Schedule VIII (EBS)'!L44",{"$f":"IF(_xlfn.FORMULATEXT(INDIRECT(V345))=W345,0,1)","v":0}]
[null,null,null,null,null,null,null,null,null,null,null,null,null,null,null,null,null,null,null,null,null,{"$f":"ADDRESS(52,12,1,1,$V$1)","v":"'LT Variable Annuity Gte Risk'!$L$52"},4.9000000000000002E-2,{"$f":"IF(INDIRECT(V346)=W346,0,1)","v":0}]
[null,null,null,null,null,null,null,null,null,null,null,null,null,null,null,null,null,null,null,null,null,{"$f":"ADDRESS(52,23,1,1,$V$1)","v":"'LT Variable Annuity Gte Risk'!$W$52"},"=IF(ISERROR(OR(E52*F52+H52*I52+K52*L52,N52*O52+Q52*R52+T52*U52)),0,MAX(E52*F52+H52*I52+K52*L52,N52*O52+Q52*R52+T52*U52))",{"$f":"IF(_xlfn.FORMULATEXT(INDIRECT(V347))=W347,0,1)","v":0}]
[null,null,null,null,null,null,null,null,null,null,null,null,null,null,null,null,null,null,null,null,null,{"$f":"ADDRESS(52,25,1,1,$V$1)","v":"'LT Variable Annuity Gte Risk'!$Y$52"},"=+'Schedule VIII (EBS)'!F37",{"$f":"IF(_xlfn.FORMULATEXT(INDIRECT(V348))=W348,0,1)","v":0}]
[null,null,null,null,null,null,null,null,null,null,null,null,null,null,null,null,null,null,null,null,null,{"$f":"ADDRESS(52,27,1,1,$V$1)","v":"'LT Variable Annuity Gte Risk'!$AA$52"},"=MAX(0,W52-Y52)",{"$f":"IF(_xlfn.FORMULATEXT(INDIRECT(V349))=W349,0,1)","v":0}]
[null,null,null,null,null,null,null,null,null,null,null,null,null,null,null,null,null,null,null,null,null,{"$f":"ADDRESS(53,5,1,1,$V$1)","v":"'LT Variable Annuity Gte Risk'!$E$53"},"=+'Schedule VIII (EBS)'!H45",{"$f":"IF(_xlfn.FORMULATEXT(INDIRECT(V350))=W350,0,1)","v":0}]
[null,null,null,null,null,null,null,null,null,null,null,null,null,null,null,null,null,null,null,null,null,{"$f":"ADDRESS(53,6,1,1,$V$1)","v":"'LT Variable Annuity Gte Risk'!$F$53"},1.0999999999999999E-2,{"$f":"IF(INDIRECT(V351)=W351,0,1)","v":0}]
[null,null,null,null,null,null,null,null,null,null,null,null,null,null,null,null,null,null,null,null,null,{"$f":"ADDRESS(53,8,1,1,$V$1)","v":"'LT Variable Annuity Gte Risk'!$H$53"},"=+'Schedule VIII (EBS)'!J45",{"$f":"IF(_xlfn.FORMULATEXT(INDIRECT(V352))=W352,0,1)","v":0}]
[null,null,null,null,null,null,null,null,null,null,null,null,null,null,null,null,null,null,null,null,null,{"$f":"ADDRESS(53,9,1,1,$V$1)","v":"'LT Variable Annuity Gte Risk'!$I$53"},1.7000000000000001E-2,{"$f":"IF(INDIRECT(V353)=W353,0,1)","v":0}]
[null,null,null,null,null,null,null,null,null,null,null,null,null,null,null,null,null,null,null,null,null,{"$f":"ADDRESS(53,11,1,1,$V$1)","v":"'LT Variable Annuity Gte Risk'!$K$53"},"=+'Schedule VIII (EBS)'!L45",{"$f":"IF(_xlfn.FORMULATEXT(INDIRECT(V354))=W354,0,1)","v":0}]
[null,null,null,null,null,null,null,null,null,null,null,null,null,null,null,null,null,null,null,null,null,{"$f":"ADDRESS(53,12,1,1,$V$1)","v":"'LT Variable Annuity Gte Risk'!$L$53"},4.2999999999999997E-2,{"$f":"IF(INDIRECT(V355)=W355,0,1)","v":0}]
[null,null,null,null,null,null,null,null,null,null,null,null,null,null,null,null,null,null,null,null,null,{"$f":"ADDRESS(53,23,1,1,$V$1)","v":"'LT Variable Annuity Gte Risk'!$W$53"},"=IF(ISERROR(OR(E53*F53+H53*I53+K53*L53,N53*O53+Q53*R53+T53*U53)),0,MAX(E53*F53+H53*I53+K53*L53,N53*O53+Q53*R53+T53*U53))",{"$f":"IF(_xlfn.FORMULATEXT(INDIRECT(V356))=W356,0,1)","v":0}]
[null,null,null,null,null,null,null,null,null,null,null,null,null,null,null,null,null,null,null,null,null,{"$f":"ADDRESS(53,25,1,1,$V$1)","v":"'LT Variable Annuity Gte Risk'!$Y$53"},"=+'Schedule VIII (EBS)'!F38",{"$f":"IF(_xlfn.FORMULATEXT(INDIRECT(V357))=W357,0,1)","v":0}]
[null,null,null,null,null,null,null,null,null,null,null,null,null,null,null,null,null,null,null,null,null,{"$f":"ADDRESS(53,27,1,1,$V$1)","v":"'LT Variable Annuity Gte Risk'!$AA$53"},"=MAX(0,W53-Y53)",{"$f":"IF(_xlfn.FORMULATEXT(INDIRECT(V358))=W358,0,1)","v":0}]
[null,null,null,null,null,null,null,null,null,null,null,null,null,null,null,null,null,null,null,null,null,{"$f":"ADDRESS(54,5,1,1,$V$1)","v":"'LT Variable Annuity Gte Risk'!$E$54"},"=+'Schedule VIII (EBS)'!H46",{"$f":"IF(_xlfn.FORMULATEXT(INDIRECT(V359))=W359,0,1)","v":0}]
[null,null,null,null,null,null,null,null,null,null,null,null,null,null,null,null,null,null,null,null,null,{"$f":"ADDRESS(54,6,1,1,$V$1)","v":"'LT Variable Annuity Gte Risk'!$F$54"},0.01,{"$f":"IF(INDIRECT(V360)=W360,0,1)","v":0}]
[null,null,null,null,null,null,null,null,null,null,null,null,null,null,null,null,null,null,null,null,null,{"$f":"ADDRESS(54,8,1,1,$V$1)","v":"'LT Variable Annuity Gte Risk'!$H$54"},"=+'Schedule VIII (EBS)'!J46",{"$f":"IF(_xlfn.FORMULATEXT(INDIRECT(V361))=W361,0,1)","v":0}]
[null,null,null,null,null,null,null,null,null,null,null,null,null,null,null,null,null,null,null,null,null,{"$f":"ADDRESS(54,9,1,1,$V$1)","v":"'LT Variable Annuity Gte Risk'!$I$54"},1.4E-2,{"$f":"IF(INDIRECT(V362)=W362,0,1)","v":0}]
[null,null,null,null,null,null,null,null,null,null,null,null,null,null,null,null,null,null,null,null,null,{"$f":"ADDRESS(54,11,1,1,$V$1)","v":"'LT Variable Annuity Gte Risk'!$K$54"},"=+'Schedule VIII (EBS)'!L46",{"$f":"IF(_xlfn.FORMULATEXT(INDIRECT(V363))=W363,0,1)","v":0}]
[null,null,null,null,null,null,null,null,null,null,null,null,null,null,null,null,null,null,null,null,null,{"$f":"ADDRESS(54,12,1,1,$V$1)","v":"'LT Variable Annuity Gte Risk'!$L$54"},3.9E-2,{"$f":"IF(INDIRECT(V364)=W364,0,1)","v":0}]
[null,null,null,null,null,null,null,null,null,null,null,null,null,null,null,null,null,null,null,null,null,{"$f":"ADDRESS(54,23,1,1,$V$1)","v":"'LT Variable Annuity Gte Risk'!$W$54"},"=IF(ISERROR(OR(E54*F54+H54*I54+K54*L54,N54*O54+Q54*R54+T54*U54)),0,MAX(E54*F54+H54*I54+K54*L54,N54*O54+Q54*R54+T54*U54))",{"$f":"IF(_xlfn.FORMULATEXT(INDIRECT(V365))=W365,0,1)","v":0}]
[null,null,null,null,null,null,null,null,null,null,null,null,null,null,null,null,null,null,null,null,null,{"$f":"ADDRESS(54,25,1,1,$V$1)","v":"'LT Variable Annuity Gte Risk'!$Y$54"},"=+'Schedule VIII (EBS)'!F39",0]
[null,null,null,null,null,null,null,null,null,null,null,null,null,null,null,null,null,null,null,null,null,{"$f":"ADDRESS(54,27,1,1,$V$1)","v":"'LT Variable Annuity Gte Risk'!$AA$54"},"=MAX(0,W54-Y54)",0]
[null,null,null,null,null,null,null,null,null,null,null,null,null,null,null,null,null,null,null,null,null,{"$f":"ADDRESS(57,22,1,1,$V$1)","v":"'LT Variable Annuity Gte Risk'!$V$57"},"=+'Schedule VIII (EBS)'!L50",0]
[null,null,null,null,null,null,null,null,null,null,null,null,null,null,null,null,null,null,null,null,null,{"$f":"ADDRESS(57,23,1,1,$V$1)","v":"'LT Variable Annuity Gte Risk'!$W$57"},"=IF(V57=0,0,(W14+W15+W18+W19)*(-V57))",0]
[null,null,null,null,null,null,null,null,null,null,null,null,null,null,null,null,null,null,null,null,null,{"$f":"ADDRESS(58,23,1,1,$V$1)","v":"'LT Variable Annuity Gte Risk'!$W$58"},"=-'Schedule VII (EBS)'!F47",0]
[null,null,null,null,null,null,null,null,null,null,null,null,null,null,null,null,null,null,null,null,null,{"$f":"ADDRESS(60,23,1,1,$V$1)","v":"'LT Variable Annuity Gte Risk'!$W$60"},"=MAX(0,SUM(W14:W58))",0]
[null,null,null,null,null,null,null,null,null,null,null,null,null,null,null,null,null,null,null,null,null,{"$f":"ADDRESS(60,25,1,1,$V$1)","v":"'LT Variable Annuity Gte Risk'!$Y$60"},"=MAX(0,SUM(Y14:Y58))",0]
[null,null,null,null,null,null,null,null,null,null,null,null,null,null,null,null,null,null,null,null,null,{"$f":"ADDRESS(60,27,1,1,$V$1)","v":"'LT Variable Annuity Gte Risk'!$AA$60"},"=MAX(0,SUM(AA14:AA58))",0]
[null,null,null,null,null,null,null,null,null,null,null,null,null,null,null,null,null,null,null,null,null,null,null,-374]